{"text_format":"1","workbook":"xlsx","n_sheets":23,"sheets":["About I-JEDI","Help","Wind-Inputs","Wind-Results","Solar-PV-Inputs","Solar-PV-Results","Biopower-Inputs","Biopower-Results","Geothermal-Inputs","Geothermal-Results","General Impact Estimates","CustomRegion1","CustomRegion2","CustomRegion3","Default-Data","Calculations","SouthAfrica-IO-Data","Mexico-IO-Data","Zambia-IO-Data","Philippines-IO-Data","Colombia-IO-Data","Bangladesh-IO-Data","Not-Technology-Specific"],"not_rendered":{"charts":0,"images":1,"macros":1,"external_links":0,"defined_names":41,"comments":2,"pivot_tables":0},"unopened":[],"bounds":{"document_bytes":16777216,"sheet_cells":100000,"rows_first":2000,"rows_last":500,"rows_between":2000,"halvings":0,"cell_chars":16384,"cell_head_chars":4096},"cells_cut":0,"cells_raw":0,"read":"whole","date_system":"1900"}

{"sheet":"About I-JEDI","index":0,"n_rows":19,"n_cols":2,"rows_kept":19,"cut":false,"hidden":false,"merged":[[0,1,1,1]]}
[null,"International Jobs and Economic Development Impacts (I-JEDI) Model"]
[]
[null,"The I-JEDI model was developed by the National Renewable Energy Laboratory (NREL) with support from USAID. The model is intended to provide countries outside of the United States a tool to estimate gross economic impacts that could be supported by the construction and operation of renewable energy facilities. "]
[]
[null,"This file uses macros but they should only be enabled if this model was downloaded from its official sources:"]
[null,"https://www.ec-leds.org/tools-page/development-impact-assessment-tools"]
[null,"http://www.nrel.gov/analysis/jedi"]
[]
[null,"Inquiries should be sent to jedisupport@nrel.gov"]
[]
[null,"National Renewable Energy Laboratory"]
[null,"15013 Denver West Parkway"]
[null,"Golden, CO 80401 USA"]
[]
[null,"USAID"]
[null,"1300 Pennsylvania Avenue NW"]
[null,"Washington, DC 20523 USA"]
[]
[null,"September 2024 Model Release"]

{"sheet":"Help","index":1,"n_rows":61,"n_cols":4,"rows_kept":61,"cut":false,"hidden":false,"merged":[]}
[null,"I-JEDI Help"]
[]
[null,"The best source of information about I-JEDI is the I-JEDI user guide. This can be obtained, free of charge, by clicking the link below:"]
[null,"http://www.nrel.gov/docs/fy16osti/67036.pdf"]
[]
[null,"Additional support can be obtained by e-mailing jedisupport@nrel.gov."]
[]
[null,"Macros"]
[null,null,"This model uses macros to populate default data. Please download models from http://www.nrel.gov/analysis/jedi to ensure that malicious code has not been added to macros."]
[]
[null,"Input-Output Data"]
[null,null,"Input-output data for all countries come from the Organization for Economic Cooperation and Development (OECD) Structural Analysis (STAN) dataset."]
[]
[null,"Renewable Energy Sector Data"]
[null,null,"Default data come from a number of different sources which are listed in the \"Default-Data\" tab."]
[]
[null,"Questions"]
[null,null,"Please direct questions about this model to jedisupport@nrel.gov"]
[]
[null,"Scenario Inputs"]
[null,null,"Currency year","Year in which currency is reported - this is used to adjust default project costs and data in the input-output model for inflation. The currency year does not affect how project costs are distributed. For example, solar PV modules were more expensive (in real dollars) in 2008 than in 2014. Setting the currency year to 2008 wouldn't increase module prices relative to other project costs. It would only change dollar values to 2008 values.  "]
[]
[null,"Types of Impacts"]
[null,null,"Direct","Direct effects are the expenditures specified in the scenario input and jobs/income/value added directly associated with those expenditures. "]
[null,null,"Indirect","Indirect effects provide inputs to the industries in which a direct effect occurs. These commonly include manufactured components and business to business services."]
[null,null,"Induced","Induced effects arise as a result of expenditures made by households that receive payments as a result of direct and indirect effects. These effects commonly occur in retail sales, accommodation and leisure, and real estate."]
[]
[null,"Impact Phase"]
[null,null,"Construction","Impact estimates during the construction phase are over the equivalent of one year. If a product with an impact of 200 jobs takes two years to complete, this is the equivalent of an average of 100 jobs each year."]
[null,null,"Operating","Operating estimates are annual and assumed to be ongoing for the life of the facility."]
[]
[null,"Metrics"]
[null,null,"Earnings","Earnings are all payments made to workers, including wages and salaries. These are the employer's payroll. These do not include payments for \"informal sector\" labor such as family members working on a family farm without a salary."]
[null,null,"Value Added (GDP)","Value added consists of payments made within the country of analysis to workers, property type income (including land and capital), and taxes. This is the equivalent of GDP."]
[null,null,"Output","Output is all economic activity that arises as a result of the scenario, including payments for inputs that are purchased from other industries. "]
[]
[null,"Interpreting results"]
[null,null,"Gross vs. Net","Impact results are gross, not net. Far-reaching impacts from projects such as greenhouse gas reductions, changes in property values, or changes in individual or business consumption patterns are not considered. "]
[null,null,"Prices, Taxes, Technology","Input-output models do not estimate supply-side changes such as changes in taxes, prices, or technological shifts."]
[null,null,"Feasibility / Profitability","This tool does not evaluate the feasibility or profitability of a project."]
[null,null,"National Renewable Energy Laboratory (NREL)","NREL is not responsible for how JEDI Lite is used or its results are interpreted."]
[]
[null,"Further Input-Output Data"]
[null,null,"Organisation for Economic Cooperation and Development","https://stats.oecd.org/Index.aspx?DataSetCode=STAN_IO_TOT_DOM_IMP"]
[null,null,"World Input Output Database","http://www.wiod.org/new_site/database/niots.htm"]
[null,null,"WIOD Sources of Other I-O Data","http://www.wiod.org/new_site/otherdb.htm"]
[null,null,"International Food Policy Research Institute","http://ebrary.ifpri.org/cdm/search/collection/p15738coll3/searchterm/Social%20Accounting%20Matrices/field/series/mode/all/conn/and/order/date"]
[]
[null,"Support"]
[null,null,"E-Mail","Please contact jedisupport@nrel.gov if you have questions or comments about this model."]
[]
[null,"Custom regions"]
[null,null,"The I-JEDI user guide contains detailed information about how to enter custom regions in its appendix, including how to derive total requirements tables. The format of the CustomRegion worksheets is the same as country IO Data worksheets."]
[null,null,"Direct requirements","This is the percentage of output for each industry that is paid for each input. "]
[null,null,"Total requirements","This is what is multiplied by final demand to produce impact estimates. It is also known as the Leontief inverse."]
[null,null,"Type 1 vs. type 2 total requirements","Type 2 total requirements tables include labor payments and household expenditures. These are used to calculate induced impacts. Type 1 tables only include payments between industries. "]
[]
[]
[]
[]
[null,null,"Click to access the user guide."]

{"sheet":"Wind-Inputs","index":2,"n_rows":39,"n_cols":5,"rows_kept":39,"cut":false,"hidden":false,"merged":[]}
["I-JEDI - Utility Scale Land-Based Wind",null,null,null,"Click for Help"]
[]
[]
["Country","Colombia",{"$f":"IF(B4=\"\",\"Choose a Country from the Drop-Down Menu\",\"\")","v":""}]
["Project Size (MW)",500]
["Dollar Year",2023,{"$f":"IF(B6=\"\",\"Choose a Currency Year from the Drop-Down Menu\",\"\")","v":""}]
[]
[]
[]
[]
["Wind Plant Construction"]
["Equipment",{"$f":"\"Cost (US $\"&B6&\")\"","v":"Cost (US $2023)"},{"$f":"\"% Manufactured and Purchased in \"&B4","v":"% Manufactured and Purchased in Colombia"}]
["Turbine (Generator, Gearbox, Nacelle)",{"$f":"'Default-Data'!D142","v":216249083.0276759},{"$f":"'Default-Data'!E142","v":0}]
["Blades",{"$f":"'Default-Data'!D143","v":50626875.6252084},{"$f":"'Default-Data'!E143","v":0}]
["Tower",{"$f":"'Default-Data'!D144","v":56051183.727909282},{"$f":"'Default-Data'!E144","v":0.1}]
["Equipment Shipping/Transportation",{"$f":"'Default-Data'!D145","v":38572857.619206399},{"$f":"'Default-Data'!E145","v":0.5}]
["Equipment Subtotal",{"$f":"SUM(B13:B16)","v":361500000}]
[]
["Construction",{"$f":"\"Cost (US $\"&B6&\")\"","v":"Cost (US $2023)"},{"$f":"\"% Purchased in \"&B4","v":"% Purchased in Colombia"}]
["Electrical Balance of Plant",{"$f":"'Default-Data'!D149","v":90375000},{"$f":"'Default-Data'!E149","v":0.15}]
["Construction (Excluding Site Improvements)",{"$f":"'Default-Data'!D150","v":138575000},{"$f":"'Default-Data'!E150","v":0.9}]
["Subtotal",{"$f":"SUM(B20:B21)","v":228950000}]
[]
["Other",{"$f":"\"Cost (US $\"&B6&\")\"","v":"Cost (US $2023)"},{"$f":"\"% Spent in \"&B4","v":"% Spent in Colombia"}]
["Engineering and Other Professional Services",{"$f":"'Default-Data'!D154","v":12050000},{"$f":"'Default-Data'!E154","v":0.5}]
["Site Improvement (i.e., Road Construction)",{"$f":"'Default-Data'!D157","v":0},{"$f":"'Default-Data'!E157","v":0.9},null,"default is zero - highly site specific"]
["Subtotal",{"$f":"SUM(B25:B26)","v":12050000}]
[]
["Construction Total",{"$f":"B17+B22+B27","v":602500000}]
[]
[]
["Operations and Maintenance (O&M)",{"$f":"\"Cost (US $\"&B6&\")\"","v":"Cost (US $2023)"},{"$f":"\"% Spent in \"&B4","v":"% Spent in Colombia"}]
["Plant Operations (staff, equipment such as trucks)",{"$f":"'Default-Data'!D164","v":4212357.8128528195},{"$f":"'Default-Data'!E164","v":0.5}]
["Replacement Parts",{"$f":"'Default-Data'!D165","v":28920000},{"$f":"'Default-Data'!E165","v":0}]
["Civil Works (Access Road Maintenance, Etc.)",{"$f":"'Default-Data'!D166","v":0},{"$f":"'Default-Data'!E166","v":0.9},null,"default is zero - highly site specific"]
["O&M Total",{"$f":"SUM(B33:B35)","v":33132357.812852819}]
[]
[]
[null,"Click Arrow to go to Results"]

{"sheet":"Wind-Results","index":3,"n_rows":61,"n_cols":27,"rows_kept":61,"cut":false,"hidden":false,"merged":[[11,3,11,5],[18,3,18,5],[2,0,2,2]]}
["I-JEDI - Utility Scale Land-Based Wind",null,null,null,null,null,null,"Click for help"]
["Estimated Project Gross Impacts",null,null,null,null,null,null,"Return to inputs"]
[{"$f":"wind_country","v":"Colombia"}]
[]
[null,"Nameplate Capacity (MW)",{"$f":"wind_capacity","v":500}]
[null,"Construction cost",{"$f":"'Wind-Inputs'!B29","v":602500000}]
[]
[]
[]
[]
[null,"Impact Totals"]
[null,"Construction Phase (Single Year Equivalent)",null,{"$f":"\"($ \"&wind_dollar_year&\" US)\"","v":"($ 2023 US)"}]
[null,null,"Jobs","Earnings","Output","GDP (Value Added)"]
[null,"Direct",{"$f":"TRANSPOSE(C42:F42)","v":3623.3250373850392},{"$f":"TRANSPOSE(J42:M42)","v":18284073.709463712},{"$f":"TRANSPOSE(Q42:T42)","v":169190297.18239415},{"$f":"TRANSPOSE(X42:AA42)","v":80149601.06739372}]
[null,"Indirect",2610.1783063366406,16393346.919365952,112190478.63148285,59294894.783217654]
[null,"Induced",2022.1667828741533,15678338.509284677,123427074.21246395,40134714.003410295]
[null,"Total",8255.6701265958327,50355759.138114341,404807850.02634096,{"$f":"SUM(F14:F16)","v":179579209.85402167}]
[]
[null,"Operations and Maintenance Phase (Annual, Ongoing)",null,{"$f":"\"($ \"&wind_dollar_year&\" US)\"","v":"($ 2023 US)"}]
[null,null,"Jobs","Earnings","Output","GDP"]
[null,"Direct",{"$f":"TRANSPOSE(C61:F61)","v":15},{"$f":"TRANSPOSE(J61:M61)","v":196321.16320544048},{"$f":"TRANSPOSE(Q61:T61)","v":2106178.9064264097},{"$f":"TRANSPOSE(X61:AA61)","v":1113933.1530306898}]
[null,"Indirect",21.363126141996979,187644.850261271,1489849.5255372322,877963.93001326267]
[null,"Induced",22.390457655304495,173598.52682315334,1366647.2528761178,444391.9374067965]
[null,"Total",58.753583797301474,557564.54028986488,4962675.68483976,2436289.020450749]
[]
[]
[null,"Detailed Impacts"]
[null,"Construction"]
[null,null,"Jobs",null,null,null,null,null,null,{"$f":"\"Earnings ($\"&wind_dollar_year&\" US)\"","v":"Earnings ($2023 US)"},null,null,null,null,null,null,{"$f":"\"Output ($\"&wind_dollar_year&\" US)\"","v":"Output ($2023 US)"},null,null,null,null,null,null,{"$f":"\"GDP ($\"&wind_dollar_year&\" US)\"","v":"GDP ($2023 US)"}]
[null,null,"Direct","Indirect","Induced","Total",null,null,null,"Direct","Indirect","Induced","Total",null,null,null,"Direct","Indirect","Induced","Total",null,null,null,"Direct","Indirect","Induced","Total"]
[null,"Agriculture",{"$f":"Calculations!O50","v":0},{"$f":"Calculations!P50","v":33.391267520026751},{"$f":"Calculations!Q50","v":132.97803806845488},{"$f":"SUM(C31:E31)","v":166.36930558848164},null,null,"Agriculture",{"$f":"Calculations!L50","v":0},{"$f":"Calculations!M50","v":203974.16202729539},{"$f":"Calculations!N50","v":812310.69969952246},{"$f":"SUM(J31:L31)","v":1016284.8617268179},null,null,"Agriculture",{"$f":"Calculations!D50","v":0},{"$f":"Calculations!G50","v":1115998.6953628906},{"$f":"Calculations!H50","v":4444375.0722342618},{"$f":"SUM(Q31:S31)","v":5560373.7675971519},null,null,"Agriculture",{"$f":"Calculations!I50","v":0},{"$f":"Calculations!J50","v":772606.93233625509},{"$f":"Calculations!K50","v":3076844.9864487313},{"$f":"SUM(X31:Z31)","v":3849451.9187849863}]
[null,"Mining and Extraction",{"$f":"Calculations!O51","v":0},{"$f":"Calculations!P51","v":65.902096152479388},{"$f":"Calculations!Q51","v":5.8261533792434506},{"$f":"SUM(C32:E32)","v":71.728249531722838},null,null,"Mining and Extraction",{"$f":"Calculations!L51","v":0},{"$f":"Calculations!M51","v":862531.74495543574},{"$f":"Calculations!N51","v":76253.147228425471},{"$f":"SUM(J32:L32)","v":938784.89218386123},null,null,"Mining and Extraction",{"$f":"Calculations!D51","v":0},{"$f":"Calculations!G51","v":12699157.34108174},{"$f":"Calculations!H51","v":1122684.1447516549},{"$f":"SUM(Q32:S32)","v":13821841.485833395},null,null,"Mining and Extraction",{"$f":"Calculations!I51","v":0},{"$f":"Calculations!J51","v":10399127.27502913},{"$f":"Calculations!K51","v":919347.24465231271},{"$f":"SUM(X32:Z32)","v":11318474.519681443}]
[null,"Utilities",{"$f":"Calculations!O52","v":0},{"$f":"Calculations!P52","v":25.188224577420915},{"$f":"Calculations!Q52","v":23.317599377055597},48.505823954476512,null,null,"Utilities",{"$f":"Calculations!L52","v":0},{"$f":"Calculations!M52","v":329665.43654127588},{"$f":"Calculations!N52","v":305182.54885746731},634847.98539874319,null,null,"Utilities",{"$f":"Calculations!D52","v":0},{"$f":"Calculations!G52","v":3536727.1530196797},{"$f":"Calculations!H52","v":3274069.0637637395},6810796.2167834193,null,null,"Utilities",{"$f":"Calculations!I52","v":0},{"$f":"Calculations!J52","v":1870533.2281847729},{"$f":"Calculations!K52","v":1731616.4663459994},3602149.694530772]
[null,"Construction",{"$f":"Calculations!O53","v":2684.9143913206076},{"$f":"Calculations!P53","v":44.212770874844018},{"$f":"Calculations!Q53","v":14.128159685535634},2743.2553218809871,null,null,"Construction",{"$f":"Calculations!L53","v":12213292.546122916},{"$f":"Calculations!M53","v":201117.5874786739},{"$f":"Calculations!N53","v":64266.982938295921},12478677.116539884,null,null,"Construction",{"$f":"Calculations!D53","v":124717500},{"$f":"Calculations!G53","v":2053736.3386365473},{"$f":"Calculations!H53","v":656269.99552641809},127427506.33416297,null,null,"Construction",{"$f":"Calculations!I53","v":61930060.274752773},{"$f":"Calculations!J53","v":1019808.8900131213},{"$f":"Calculations!K53","v":325879.21005041641},63275748.374816313]
[null,"Manufacturing",{"$f":"Calculations!O54","v":432.33676326017189},{"$f":"Calculations!P54","v":1042.0643188579245},{"$f":"Calculations!Q54","v":305.18963422080429},1779.5907163389006,null,null,"Manufacturing",{"$f":"Calculations!L54","v":2295149.1816607364},{"$f":"Calculations!M54","v":5532014.0962089412},{"$f":"Calculations!N54","v":1620162.3335272502},9447325.6113969274,null,null,"Manufacturing",{"$f":"Calculations!D54","v":19161368.372790929},{"$f":"Calculations!G54","v":49009314.299050584},{"$f":"Calculations!H54","v":16708242.878719639},84878925.55056116,null,null,"Manufacturing",{"$f":"Calculations!I54","v":5412343.1384216445},{"$f":"Calculations!J54","v":18158817.781947725},{"$f":"Calculations!K54","v":5002152.9407076314},28573313.861076999]
[null,{"$f":"IF(wind_country<>\"Zambia\",\"Sales\",\"Trade, Transportation, and Warehousing\")","v":"Sales"},{"$f":"Calculations!O55","v":0},{"$f":"Calculations!P55","v":668.05018404158284},{"$f":"Calculations!Q55","v":388.56367467654508},1056.6138587181279,null,null,{"$f":"IF(wind_country<>\"Zambia\",\"Sales\",\"Trade, Transportation, and Warehousing\")","v":"Sales"},{"$f":"Calculations!L55","v":0},{"$f":"Calculations!M55","v":2760541.3867874122},{"$f":"Calculations!N55","v":1605637.0179519863},4366178.4047393985,null,null,{"$f":"IF(wind_country<>\"Zambia\",\"Sales\",\"Trade, Transportation, and Warehousing\")","v":"Sales"},{"$f":"Calculations!D55","v":0},{"$f":"Calculations!G55","v":10591993.757115945},{"$f":"Calculations!H55","v":6160710.8488721214},16752704.605988067,null,null,{"$f":"IF(wind_country<>\"Zambia\",\"Sales\",\"Trade, Transportation, and Warehousing\")","v":"Sales"},{"$f":"Calculations!I55","v":0},{"$f":"Calculations!J55","v":6363538.1101445537},{"$f":"Calculations!K55","v":3701278.4534583637},10064816.563602917]
[null,{"$f":"IF(wind_country<>\"Zambia\",\"Transportation and Warehousing\",\"\")","v":"Transportation and Warehousing"},{"$f":"Calculations!O56","v":380.17685699645244},{"$f":"Calculations!P56","v":182.10943492362975},{"$f":"Calculations!Q56","v":85.680893900887995},647.96718582097026,null,null,{"$f":"IF(wind_country<>\"Zambia\",\"Transportation and Warehousing\",\"\")","v":"Transportation and Warehousing"},{"$f":"Calculations!L56","v":2127881.9449671186},{"$f":"Calculations!M56","v":1019281.8722412977},{"$f":"Calculations!N56","v":479563.19224882266},3626727.0094572389,null,null,{"$f":"IF(wind_country<>\"Zambia\",\"Transportation and Warehousing\",\"\")","v":"Transportation and Warehousing"},{"$f":"Calculations!D56","v":19286428.809603199},{"$f":"Calculations!G56","v":9238438.8675306067},{"$f":"Calculations!H56","v":4346604.5608822033},32871472.238016009,null,null,{"$f":"IF(wind_country<>\"Zambia\",\"Transportation and Warehousing\",\"\")","v":"Transportation and Warehousing"},{"$f":"Calculations!I56","v":8413058.7670100909},{"$f":"Calculations!J56","v":4029959.6091768243},{"$f":"Calculations!K56","v":1896060.6947330665},14339079.070919981]
[null,{"$f":"IF(wind_country<>\"Zambia\",\"Information\",\"\")","v":"Information"},{"$f":"Calculations!O57","v":0},{"$f":"Calculations!P57","v":36.068591400616917},{"$f":"Calculations!Q57","v":62.38321609149888},98.45180749211579,null,null,{"$f":"IF(wind_country<>\"Zambia\",\"Information\",\"\")","v":"Information"},{"$f":"Calculations!L57","v":0},{"$f":"Calculations!M57","v":201878.94925567548},{"$f":"Calculations!N57","v":349164.12387333025},551043.07312900573,null,null,{"$f":"IF(wind_country<>\"Zambia\",\"Information\",\"\")","v":"Information"},{"$f":"Calculations!D57","v":0},{"$f":"Calculations!G57","v":1521214.4204954319},{"$f":"Calculations!H57","v":2631049.4596594535},4152263.8801548854,null,null,{"$f":"IF(wind_country<>\"Zambia\",\"Information\",\"\")","v":"Information"},{"$f":"Calculations!I57","v":0},{"$f":"Calculations!J57","v":831693.8588555156},{"$f":"Calculations!K57","v":1438474.1877684963},2270168.0466240118]
[null,"Finance, Professional, and Business Services",{"$f":"Calculations!O58","v":125.89702580780732},{"$f":"Calculations!P58","v":436.65245214681505},{"$f":"Calculations!Q58","v":457.11773127679601},1019.6672092314184,null,null,"Finance, Professional, and Business Services",{"$f":"Calculations!L58","v":1647750.0367129396},{"$f":"Calculations!M58","v":4788057.3458699752},{"$f":"Calculations!N58","v":5327042.0461762995},11762849.428759214,null,null,"Finance, Professional, and Business Services",{"$f":"Calculations!D58","v":6025000},{"$f":"Calculations!G58","v":20185225.824294016},{"$f":"Calculations!H58","v":19258561.902442619},45468787.726736635,null,null,"Finance, Professional, and Business Services",{"$f":"Calculations!I58","v":4394138.8872092124},{"$f":"Calculations!J58","v":14678798.725113906},{"$f":"Calculations!K58","v":13838775.167432787},32911712.779755905]
[null,{"$f":"IF(wind_country<>\"Zambia\",\"Education and Health Care\",\"\")","v":"Education and Health Care"},{"$f":"Calculations!O59","v":0},{"$f":"Calculations!P59","v":3.8309219424370884},{"$f":"Calculations!Q59","v":243.20755935463853},247.03848129707563,null,null,{"$f":"IF(wind_country<>\"Zambia\",\"Education and Health Care\",\"\")","v":"Education and Health Care"},{"$f":"Calculations!L59","v":0},{"$f":"Calculations!M59","v":50139.40345923297},{"$f":"Calculations!N59","v":3183119.3968572561},3233258.8003164888,null,null,{"$f":"IF(wind_country<>\"Zambia\",\"Education and Health Care\",\"\")","v":"Education and Health Care"},{"$f":"Calculations!D59","v":0},{"$f":"Calculations!G59","v":88677.999599200964},{"$f":"Calculations!H59","v":7207272.5867492352},7295950.5863484358,null,null,{"$f":"IF(wind_country<>\"Zambia\",\"Education and Health Care\",\"\")","v":"Education and Health Care"},{"$f":"Calculations!I59","v":0},{"$f":"Calculations!J59","v":68090.233442639234},{"$f":"Calculations!K59","v":4311751.1128295213},4379841.3462721603]
[null,"Other",{"$f":"Calculations!O60","v":0},{"$f":"Calculations!P60","v":72.708043898863593},{"$f":"Calculations!Q60","v":303.77412284269292},376.48216674155651,null,null,"Other",{"$f":"Calculations!L60","v":0},{"$f":"Calculations!M60","v":444144.93454073672},{"$f":"Calculations!N60","v":1855637.0199260206},2299781.9544667574,null,null,"Other",{"$f":"Calculations!D60","v":0},{"$f":"Calculations!G60","v":2149993.9352962147},{"$f":"Calculations!H60","v":57617233.698862597},59767227.634158812,null,null,"Other",{"$f":"Calculations!I60","v":0},{"$f":"Calculations!J60","v":1101920.13897321},{"$f":"Calculations!K60","v":3892533.5389829697},4994453.6779561797]
[null,"Total",{"$f":"Calculations!O61","v":3623.3250373850392},{"$f":"Calculations!P61","v":2610.1783063366406},{"$f":"Calculations!Q61","v":2022.1667828741533},8255.6701265958327,null,null,"Total",{"$f":"Calculations!L61","v":18284073.709463712},{"$f":"Calculations!M61","v":16393346.919365952},{"$f":"Calculations!N61","v":15678338.509284677},50355759.138114341,null,null,"Total",{"$f":"Calculations!D61","v":169190297.18239415},{"$f":"Calculations!G61","v":112190478.63148285},{"$f":"Calculations!H61","v":123427074.21246395},404807850.02634096,null,null,"Total",{"$f":"Calculations!I61","v":80149601.06739372},{"$f":"Calculations!J61","v":59294894.783217654},{"$f":"Calculations!K61","v":40134714.003410295},179579209.85402167]
[]
[]
[]
[null,"Detailed Impacts"]
[null,"O&M"]
[null,null,"Jobs",null,null,null,null,null,null,{"$f":"\"Earnings ($\"&wind_dollar_year&\" US)\"","v":"Earnings ($2023 US)"},null,null,null,null,null,null,{"$f":"\"Output ($\"&wind_dollar_year&\" US)\"","v":"Output ($2023 US)"},null,null,null,null,null,null,{"$f":"\"GDP ($\"&wind_dollar_year&\" US)\"","v":"GDP ($2023 US)"}]
[null,null,"Direct","Indirect","Induced","Total",null,null,null,"Direct","Indirect","Induced","Total",null,null,null,"Direct","Indirect","Induced","Total",null,null,null,"Direct","Indirect","Induced","Total"]
[null,"Agriculture",{"$f":"Calculations!Z50","v":0},{"$f":"Calculations!AA50","v":0.10271275266567323},{"$f":"Calculations!AB50","v":1.4724003755146773},{"$f":"SUM(C50:E50)","v":1.5751131281803505},null,null,"Agriculture",{"$f":"Calculations!W50","v":0},{"$f":"Calculations!X50","v":627.43193686589245},{"$f":"Calculations!Y50","v":8994.316630363146},{"$f":"SUM(J50:L50)","v":9621.7485672290386},null,null,"Agriculture",{"$f":"Calculations!E50","v":0},{"$f":"Calculations!R50","v":3432.8525535388471},{"$f":"Calculations!S50","v":49210.37804691559},{"$f":"SUM(Q50:S50)","v":52643.230600454437},null,null,"Agriculture",{"$f":"Calculations!T50","v":0},{"$f":"Calculations!U50","v":2376.5670081629396},{"$f":"Calculations!V50","v":34068.390384248385},{"$f":"SUM(X50:Z50)","v":36444.957392411321}]
[null,"Mining and Extraction",{"$f":"Calculations!Z51","v":0},{"$f":"Calculations!AA51","v":1.184220324546035},{"$f":"Calculations!AB51","v":6.4510129251478573E-2},{"$f":"SUM(C51:E51)","v":1.2487304537975135},null,null,"Mining and Extraction",{"$f":"Calculations!W51","v":0},{"$f":"Calculations!X51","v":15499.167440426787},{"$f":"Calculations!Y51","v":844.31357421223902},{"$f":"SUM(J51:L51)","v":16343.481014639026},null,null,"Mining and Extraction",{"$f":"Calculations!E51","v":0},{"$f":"Calculations!R51","v":228196.08337072891},{"$f":"Calculations!S51","v":12430.929049094062},{"$f":"SUM(Q51:S51)","v":240627.01241982298},null,null,"Mining and Extraction",{"$f":"Calculations!T51","v":0},{"$f":"Calculations!U51","v":186865.95109413992},{"$f":"Calculations!V51","v":10179.479618714169},{"$f":"SUM(X51:Z51)","v":197045.43071285408}]
[null,"Utilities",{"$f":"Calculations!Z52","v":15},{"$f":"Calculations!AA52","v":4.5479989243029264},{"$f":"Calculations!AB52","v":0.25818430304410706},19.806183227347034,null,null,"Utilities",{"$f":"Calculations!W52","v":196321.16320544048},{"$f":"Calculations!X52","v":59524.562605082843},{"$f":"Calculations!Y52","v":3379.136179667003},259224.86199019031,null,null,"Utilities",{"$f":"Calculations!E52","v":2106178.9064264097},{"$f":"Calculations!R52","v":638593.29338778835},{"$f":"Calculations!S52","v":36252.155536126811},2781024.3553503249,null,null,"Utilities",{"$f":"Calculations!T52","v":1113933.1530306898},{"$f":"Calculations!U52","v":337744.45211526297},{"$f":"Calculations!V52","v":19173.336983530218},1470850.942129483]
[null,"Construction",{"$f":"Calculations!Z53","v":0},{"$f":"Calculations!AA53","v":1.7433189843552426},{"$f":"Calculations!AB53","v":0.15643415956854806},1.8997531439237907,null,null,"Construction",{"$f":"Calculations!W53","v":0},{"$f":"Calculations!X53","v":7930.109364368931},{"$f":"Calculations!Y53","v":711.59667555650094},8641.7060399254315,null,null,"Construction",{"$f":"Calculations!E53","v":0},{"$f":"Calculations!R53","v":80979.261809678472},{"$f":"Calculations!S53","v":7266.5547024738189},88245.816512152291,null,null,"Construction",{"$f":"Calculations!T53","v":0},{"$f":"Calculations!U53","v":40211.282016384015},{"$f":"Calculations!V53","v":3608.3001239921568},43819.582140376173]
[null,"Manufacturing",{"$f":"Calculations!Z54","v":0},{"$f":"Calculations!AA54","v":2.0823597322642744},{"$f":"Calculations!AB54","v":3.3792146324085159},5.4615743646727903,null,null,"Manufacturing",{"$f":"Calculations!W54","v":0},{"$f":"Calculations!X54","v":11054.637591745844},{"$f":"Calculations!Y54","v":17939.260218685362},28993.897810431205,null,null,"Manufacturing",{"$f":"Calculations!E54","v":0},{"$f":"Calculations!R54","v":106023.79933079744},{"$f":"Calculations!S54","v":185002.15107815724},291025.9504089547,null,null,"Manufacturing",{"$f":"Calculations!T54","v":0},{"$f":"Calculations!U54","v":37220.46673425287},{"$f":"Calculations!V54","v":55386.377895636389},92606.844629889267]
[null,{"$f":"IF(wind_country<>\"Zambia\",\"Sales\",\"Trade, Transportation, and Warehousing\")","v":"Sales"},{"$f":"Calculations!Z55","v":0},{"$f":"Calculations!AA55","v":2.8965441696507077},{"$f":"Calculations!AB55","v":4.3023743530536143},7.1989185227043215,null,null,{"$f":"IF(wind_country<>\"Zambia\",\"Sales\",\"Trade, Transportation, and Warehousing\")","v":"Sales"},{"$f":"Calculations!W55","v":0},{"$f":"Calculations!X55","v":11969.205682429456},{"$f":"Calculations!Y55","v":17778.428547394793},29747.634229824249,null,null,{"$f":"IF(wind_country<>\"Zambia\",\"Sales\",\"Trade, Transportation, and Warehousing\")","v":"Sales"},{"$f":"Calculations!E55","v":0},{"$f":"Calculations!R55","v":45924.959673749887},{"$f":"Calculations!S55","v":68214.519473110558},114139.47914686045,null,null,{"$f":"IF(wind_country<>\"Zambia\",\"Sales\",\"Trade, Transportation, and Warehousing\")","v":"Sales"},{"$f":"Calculations!T55","v":0},{"$f":"Calculations!U55","v":27591.144575063794},{"$f":"Calculations!V55","v":40982.434873576851},68573.579448640638]
[null,{"$f":"IF(wind_country<>\"Zambia\",\"Transportation and Warehousing\",\"\")","v":"Transportation and Warehousing"},{"$f":"Calculations!Z56","v":0},{"$f":"Calculations!AA56","v":1.6001568751367987},{"$f":"Calculations!AB56","v":0.94870237361418586},2.5488592487509845,null,null,{"$f":"IF(wind_country<>\"Zambia\",\"Transportation and Warehousing\",\"\")","v":"Transportation and Warehousing"},{"$f":"Calculations!W56","v":0},{"$f":"Calculations!X56","v":8956.2130388972382},{"$f":"Calculations!Y56","v":5309.9672292254054},14266.180268122644,null,null,{"$f":"IF(wind_country<>\"Zambia\",\"Transportation and Warehousing\",\"\")","v":"Transportation and Warehousing"},{"$f":"Calculations!E56","v":0},{"$f":"Calculations!R56","v":81176.197573780664},{"$f":"Calculations!S56","v":48127.813288703968},129304.01086248463,null,null,{"$f":"IF(wind_country<>\"Zambia\",\"Transportation and Warehousing\",\"\")","v":"Transportation and Warehousing"},{"$f":"Calculations!T56","v":0},{"$f":"Calculations!U56","v":35410.398027165385},{"$f":"Calculations!V56","v":20994.146999570221},56404.545026735606]
[null,{"$f":"IF(wind_country<>\"Zambia\",\"Information\",\"\")","v":"Information"},{"$f":"Calculations!Z57","v":0},{"$f":"Calculations!AA57","v":0.46008385182650874},{"$f":"Calculations!AB57","v":0.69073865228521225},1.150822504111721,null,null,{"$f":"IF(wind_country<>\"Zambia\",\"Information\",\"\")","v":"Information"},{"$f":"Calculations!W57","v":0},{"$f":"Calculations!X57","v":2575.1281369599265},{"$f":"Calculations!Y57","v":3866.122515980343},6441.250652940269,null,null,{"$f":"IF(wind_country<>\"Zambia\",\"Information\",\"\")","v":"Information"},{"$f":"Calculations!E57","v":0},{"$f":"Calculations!R57","v":19404.311697728172},{"$f":"Calculations!S57","v":29132.315897201148},48536.627594929319,null,null,{"$f":"IF(wind_country<>\"Zambia\",\"Information\",\"\")","v":"Information"},{"$f":"Calculations!T57","v":0},{"$f":"Calculations!U57","v":10608.923145142659},{"$f":"Calculations!V57","v":15927.516791518519},26536.439936661176]
[null,"Finance, Professional, and Business Services",{"$f":"Calculations!Z58","v":0},{"$f":"Calculations!AA58","v":5.936308178049674},{"$f":"Calculations!AB58","v":5.0614396855508703},10.997747863600544,null,null,"Finance, Professional, and Business Services",{"$f":"Calculations!W58","v":0},{"$f":"Calculations!X58","v":63664.419459756216},{"$f":"Calculations!Y58","v":58983.715078836824},122648.13453859303,null,null,"Finance, Professional, and Business Services",{"$f":"Calculations!E58","v":0},{"$f":"Calculations!R58","v":262613.58691276016},{"$f":"Calculations!S58","v":213240.57858660707},475854.16549936723,null,null,"Finance, Professional, and Business Services",{"$f":"Calculations!T58","v":0},{"$f":"Calculations!U58","v":187570.9973823544},{"$f":"Calculations!V58","v":153229.9472090413},340800.94459139567]
[null,{"$f":"IF(wind_country<>\"Zambia\",\"Education and Health Care\",\"\")","v":"Education and Health Care"},{"$f":"Calculations!Z59","v":0},{"$f":"Calculations!AA59","v":0.12888246007919782},{"$f":"Calculations!AB59","v":2.6929176195052187},2.8218000795844165,null,null,{"$f":"IF(wind_country<>\"Zambia\",\"Education and Health Care\",\"\")","v":"Education and Health Care"},{"$f":"Calculations!W59","v":0},{"$f":"Calculations!X59","v":1686.8236319684574},{"$f":"Calculations!Y59","v":35245.114631846023},36931.938263814482,null,null,{"$f":"IF(wind_country<>\"Zambia\",\"Education and Health Care\",\"\")","v":"Education and Health Care"},{"$f":"Calculations!E59","v":0},{"$f":"Calculations!R59","v":2917.1648432366187},{"$f":"Calculations!S59","v":79802.582571592269},82719.747414828889,null,null,{"$f":"IF(wind_country<>\"Zambia\",\"Education and Health Care\",\"\")","v":"Education and Health Care"},{"$f":"Calculations!T59","v":0},{"$f":"Calculations!U59","v":2291.1984906009043},{"$f":"Calculations!V59","v":47741.898210198051},50033.096700798953]
[null,"Other",{"$f":"Calculations!Z60","v":0},{"$f":"Calculations!AA60","v":0.68053988911994145},{"$f":"Calculations!AB60","v":3.3635413715080658},4.0440812606280074,null,null,"Other",{"$f":"Calculations!W60","v":0},{"$f":"Calculations!X60","v":4157.1513727693728},{"$f":"Calculations!Y60","v":20546.555541385686},24703.70691415506,null,null,"Other",{"$f":"Calculations!E60","v":0},{"$f":"Calculations!R60","v":20588.014383444352},{"$f":"Calculations!S60","v":637967.27464613528},658555.28902957961,null,null,"Other",{"$f":"Calculations!T60","v":0},{"$f":"Calculations!U60","v":10072.549424732653},{"$f":"Calculations!V60","v":43100.108316770216},53172.657741502873]
[null,"Total",{"$f":"Calculations!Z61","v":15},{"$f":"Calculations!AA61","v":21.363126141996979},{"$f":"Calculations!AB61","v":22.390457655304495},58.753583797301474,null,null,"Total",{"$f":"Calculations!W61","v":196321.16320544048},{"$f":"Calculations!X61","v":187644.850261271},{"$f":"Calculations!Y61","v":173598.52682315334},557564.54028986488,null,null,"Total",{"$f":"Calculations!E61","v":2106178.9064264097},{"$f":"Calculations!R61","v":1489849.5255372322},{"$f":"Calculations!S61","v":1366647.2528761178},4962675.68483976,null,null,"Total",{"$f":"Calculations!T61","v":1113933.1530306898},{"$f":"Calculations!U61","v":877963.93001326267},{"$f":"Calculations!V61","v":444391.9374067965},2436289.020450749]

{"sheet":"Solar-PV-Inputs","index":4,"n_rows":39,"n_cols":35,"rows_kept":39,"cut":false,"hidden":false,"merged":[]}
["I-JEDI - Solar Photovoltaics",null,null,null,"Click for Help",null,null,null,null,null,null,null,null,null,null,null,null,null,null,null,null,null,null,null,null,null,null,null,null,null,null,null,null,null,{"$f":"'Default-Data'!Z124","v":0}]
[]
["Project Description"]
["Country","Philippines","",null,"Default data is for utility-scale tracking solar photovoltaics."]
["Project Size (MW)",100,null,null,"Impacts from other solar projects can be estimated by customizing costs."]
["Dollar Year",2016]
[]
[]
[]
[]
["Solar Photovoltaic Installation","Expenditures",{"$f":"\"Local Content (\"&pv_country&\")\"","v":"Local Content (Philippines)"}]
["Equipment",{"$f":"\"Cost (US $\"&B6&\")\"","v":"Cost (US $2016)"},{"$f":"\"% Manufactured in \"&B4","v":"% Manufactured in Philippines"},null,{"$f":"\"Module purchased from retailer or wholesaler in \"&pv_country&\"? Choose yes or no - if yes is chosen the assumed reseller's margin will appear; you can change this margin.\"","v":"Module purchased from retailer or wholesaler in Philippines? Choose yes or no - if yes is chosen the assumed reseller's margin will appear; you can change this margin."}]
["Module",{"$f":"'Default-Data'!AR109","v":25254638.662661012},{"$f":"'Default-Data'!AE109","v":0},null,{"$f":"'Default-Data'!AS109","v":1611998.2125102775},"Yes"]
["Inverter",{"$f":"'Default-Data'!AP110","v":4356751.9257034529},{"$f":"'Default-Data'!AE110","v":0}]
["Subtotal",{"$f":"B13+B14","v":29611390.588364467}]
[]
["Installation",{"$f":"\"Cost (US $\"&B6&\")\"","v":"Cost (US $2016)"},{"$f":"\"% of Workers Residing in \"&B4","v":"% of Workers Residing in Philippines"}]
["Construction and installation costs",{"$f":"'Default-Data'!AP111","v":10891879.814258631},{"$f":"'Default-Data'!AE112","v":0.98}]
["Subtotal",{"$f":"SUM(B18:B18)","v":10891879.814258631}]
[]
[]
[]
["Other",{"$f":"\"Cost (US $\"&B6&\")\"","v":"Cost (US $2016)"},{"$f":"\"% of Expenditures Made in \"&B4","v":"% of Expenditures Made in Philippines"}]
["Mounting hardware",{"$f":"'Default-Data'!AP112","v":11618005.135209208},{"$f":"'Default-Data'!AE114","v":1}]
["Electrical",{"$f":"'Default-Data'!AP113","v":7261253.2095057555},{"$f":"'Default-Data'!AE116","v":0.85}]
["Overhead",{"$f":"'Default-Data'!AP114","v":5809002.5676046042},{"$f":"'Default-Data'!AE117","v":1}]
["Other",{"$f":"'Default-Data'!AP115","v":5809002.5676046042},{"$f":"'Default-Data'!AE115","v":0.88}]
["Subtotal",{"$f":"SUM(B26:B27)","v":11618005.135209208}]
[]
["Construction Total",{"$f":"B28+B19+B15","v":52121275.537832305}]
[]
["Operations and Maintenance"]
[null,{"$f":"\"Annual Cost (US $\"&B6&\")\"","v":"Annual Cost (US $2016)"},{"$f":"\"% of Expenditures Made in \"&pv_country","v":"% of Expenditures Made in Philippines"}]
["Maintenance and repair services",{"$f":"'Default-Data'!AP123","v":540087.10787023895},{"$f":"'Default-Data'!AE123","v":0.9}]
["Repair parts",{"$f":"'Default-Data'!AP124","v":810130.66180535837},{"$f":"'Default-Data'!AE124","v":0}]
["O&M Total",{"$f":"SUM(B34:B35)","v":1350217.7696755973}]
[]
[]
[null,"Click arrow to go to results"]

{"sheet":"Solar-PV-Results","index":5,"n_rows":61,"n_cols":27,"rows_kept":61,"cut":false,"hidden":false,"merged":[[11,3,11,5],[18,3,18,5],[0,0,0,2],[1,0,1,2],[2,0,2,2]]}
["I-JEDI - Solar Photovoltaics",null,null,null,null,"Click for help"]
["Estimated Project Gross Impacts",null,null,null,null,"Return to inputs"]
[{"$f":"pv_country","v":"Philippines"}]
[]
[null,"Nameplate Capacity (MW)",{"$f":"pv_nameplate","v":100}]
[null,"Construction Cost",{"$f":"'Solar-PV-Inputs'!B30","v":52121275.537832305}]
[]
[]
[]
[]
[null,"Impact Totals"]
[null,"Construction Phase (Single Year Equivalent)",null,{"$f":"\"( $ \"&pv_dollar_year&\" US)\"","v":"( $ 2016 US)"}]
[null,null,"Jobs","Earnings","Output","GDP (Value Added)"]
[null,"Direct",{"$f":"TRANSPOSE(C42:F42)","v":2566.4768244153456},{"$f":"TRANSPOSE(J42:M42)","v":6958734.9674256146},{"$f":"TRANSPOSE(Q42:T42)","v":40997035.620869495},{"$f":"TRANSPOSE(X42:AA42)","v":18918622.399242774}]
[null,"Indirect",908.86778424127579,2714669.4853975307,25968580.950403221,9941285.0626140907]
[null,"Induced",1217.6732112452542,3668169.428077572,33417008.891260602,10927841.612182725]
[null,"Total",4693.0178199018756,13341573.880900718,100382625.46253332,39787749.074039593]
[]
[null,"Operations and Maintenance Phase (Annual, Ongoing)",null,{"$f":"\"( $ \"&pv_dollar_year&\" US)\"","v":"( $ 2016 US)"}]
[null,null,"Jobs","Earnings","Output","GDP"]
[null,"Direct",{"$f":"TRANSPOSE(C61:F61)","v":24.992772604578395},{"$f":"TRANSPOSE(J61:M61)","v":82202.155440640534},{"$f":"TRANSPOSE(Q61:T61)","v":486078.39708321507},{"$f":"TRANSPOSE(X61:AA61)","v":267502.81175262242}]
[null,"Indirect",6.4052267682657522,20673.689310583839,212929.06952201881,85383.456970604093]
[null,"Induced",12.949852438066147,39010.674105946586,355387.08585107338,116216.6786929688]
[null,"Total",44.347851810910292,141886.51885717094,1054394.5524563072,469102.9474161953]
[]
[]
[null,"Detailed Impacts"]
[null,"Construction"]
[null,null,"Jobs",null,null,null,null,null,null,{"$f":"\"Earnings ($\"&pv_dollar_year&\" US)\"","v":"Earnings ($2016 US)"},null,null,null,null,null,null,{"$f":"\"Output ($\"&pv_dollar_year&\" US)\"","v":"Output ($2016 US)"},null,null,null,null,null,null,{"$f":"\"GDP ($\"&pv_dollar_year&\" US)\"","v":"GDP ($2016 US)"}]
[null,null,"Direct","Indirect","Induced","Total",null,null,null,"Direct","Indirect","Induced","Total",null,null,null,"Direct","Indirect","Induced","Total",null,null,null,"Direct","Indirect","Induced","Total"]
[null,"Agriculture",{"$f":"Calculations!O7","v":0},{"$f":"Calculations!P7","v":31.646405458081595},{"$f":"Calculations!Q7","v":281.24603811526981},{"$f":"SUM(C31:E31)","v":312.89244357335139},null,null,"Agriculture",{"$f":"Calculations!L7","v":0},{"$f":"Calculations!M7","v":56126.693223671762},{"$f":"Calculations!N7","v":498805.78451723326},{"$f":"SUM(J31:L31)","v":554932.47774090501},null,null,"Agriculture",{"$f":"Calculations!D7","v":0},{"$f":"Calculations!G7","v":276283.26255971449},{"$f":"Calculations!H7","v":2455368.0542141087},{"$f":"SUM(Q31:S31)","v":2731651.3167738235},null,null,"Agriculture",{"$f":"Calculations!I7","v":0},{"$f":"Calculations!J7","v":194988.78962674932},{"$f":"Calculations!K7","v":1732892.686092111},{"$f":"SUM(X31:Z31)","v":1927881.4757188603}]
[null,"Mining and Extraction",{"$f":"Calculations!O8","v":0},{"$f":"Calculations!P8","v":31.494495863800267},{"$f":"Calculations!Q8","v":6.277617718672329},{"$f":"SUM(C32:E32)","v":37.772113582472599},null,null,"Mining and Extraction",{"$f":"Calculations!L8","v":0},{"$f":"Calculations!M8","v":103586.56422322906},{"$f":"Calculations!N8","v":20647.317353365208},{"$f":"SUM(J32:L32)","v":124233.88157659426},null,null,"Mining and Extraction",{"$f":"Calculations!D8","v":0},{"$f":"Calculations!G8","v":688347.71450004319},{"$f":"Calculations!H8","v":137204.41272787086},{"$f":"SUM(Q32:S32)","v":825552.12722791405},null,null,"Mining and Extraction",{"$f":"Calculations!I8","v":0},{"$f":"Calculations!J8","v":396272.35214374406},{"$f":"Calculations!K8","v":78986.701358723003},{"$f":"SUM(X32:Z32)","v":475259.05350246705}]
[null,"Utilities",{"$f":"Calculations!O9","v":189.58857890730394},{"$f":"Calculations!P9","v":57.11001900225309},{"$f":"Calculations!Q9","v":22.371722498471797},269.07032040802881,null,null,"Utilities",{"$f":"Calculations!L9","v":765995.11357718718},{"$f":"Calculations!M9","v":230741.72370591492},{"$f":"Calculations!N9","v":90388.515040839455},1087125.3523239417,null,null,"Utilities",{"$f":"Calculations!D9","v":6172065.2280798918},{"$f":"Calculations!G9","v":1859219.3922774773},{"$f":"Calculations!H9","v":728312.49287744332},8759597.1132348124,null,null,"Utilities",{"$f":"Calculations!I9","v":3698647.3122834601},{"$f":"Calculations!J9","v":1114148.4339645687},{"$f":"Calculations!K9","v":436445.65388393431},5249241.4001319632]
[null,"Construction",{"$f":"Calculations!O10","v":548.82897805435573},{"$f":"Calculations!P10","v":14.184047568361033},{"$f":"Calculations!Q10","v":11.202262872737858},574.21528849545462,null,null,"Construction",{"$f":"Calculations!L10","v":1805118.8508828145},{"$f":"Calculations!M10","v":46651.858176721944},{"$f":"Calculations!N10","v":36844.657794510735},1888615.3668540472,null,null,"Construction",{"$f":"Calculations!D10","v":10674042.217973458},{"$f":"Calculations!G10","v":275862.11483066902},{"$f":"Calculations!H10","v":217870.10457126051},11167774.437375387,null,null,"Construction",{"$f":"Calculations!I10","v":5874230.0073567629},{"$f":"Calculations!J10","v":151814.79328445753},{"$f":"Calculations!K10","v":119900.13528552795},6145944.9359267484]
[null,"Manufacturing",{"$f":"Calculations!O11","v":272.69851657183511},{"$f":"Calculations!P11","v":228.11303889146527},{"$f":"Calculations!Q11","v":95.33370914945516},596.14526461275545,null,null,"Manufacturing",{"$f":"Calculations!L11","v":896915.52843415388},{"$f":"Calculations!M11","v":750272.23980576149},{"$f":"Calculations!N11","v":313556.10288714996},1960743.8711270653,null,null,"Manufacturing",{"$f":"Calculations!D11","v":11618005.135209208},{"$f":"Calculations!G11","v":14936446.172184117},{"$f":"Calculations!H11","v":4967220.8482639417},31521672.155657269,null,null,"Manufacturing",{"$f":"Calculations!I11","v":2925856.4154316867},{"$f":"Calculations!J11","v":3306443.724678576},{"$f":"Calculations!K11","v":1397044.6912979749},7629344.831408238]
[null,{"$f":"IF(pv_country<>\"Zambia\",\"Sales\",\"Trade, Transportation, and Warehousing\")","v":"Sales"},{"$f":"Calculations!O12","v":75.396967749775584},{"$f":"Calculations!P12","v":127.95248832183162},{"$f":"Calculations!Q12","v":101.43818437910113},304.78764045070835,null,null,{"$f":"IF(pv_country<>\"Zambia\",\"Sales\",\"Trade, Transportation, and Warehousing\")","v":"Sales"},{"$f":"Calculations!L12","v":247983.42147860167},{"$f":"Calculations!M12","v":420840.47658326518},{"$f":"Calculations!N12","v":333633.94817667082},1002457.8462385377,null,null,{"$f":"IF(pv_country<>\"Zambia\",\"Sales\",\"Trade, Transportation, and Warehousing\")","v":"Sales"},{"$f":"Calculations!D12","v":1611998.2125102775},{"$f":"Calculations!G12","v":2735642.9391903318},{"$f":"Calculations!H12","v":2168763.2378277667},6516404.3895283761,null,null,{"$f":"IF(pv_country<>\"Zambia\",\"Sales\",\"Trade, Transportation, and Warehousing\")","v":"Sales"},{"$f":"Calculations!I12","v":1114075.998635733},{"$f":"Calculations!J12","v":1890643.6221434888},{"$f":"Calculations!K12","v":1498864.6086802222},4503584.2294594441]
[null,{"$f":"IF(pv_country<>\"Zambia\",\"Transportation and Warehousing\",\"\")","v":"Transportation and Warehousing"},{"$f":"Calculations!O13","v":0},{"$f":"Calculations!P13","v":17.487270358770758},{"$f":"Calculations!Q13","v":26.963990106164275},44.451260464935032,null,null,{"$f":"IF(pv_country<>\"Zambia\",\"Transportation and Warehousing\",\"\")","v":"Transportation and Warehousing"},{"$f":"Calculations!L13","v":0},{"$f":"Calculations!M13","v":57516.280366622763},{"$f":"Calculations!N13","v":88685.562865513028},146201.84323213578,null,null,{"$f":"IF(pv_country<>\"Zambia\",\"Transportation and Warehousing\",\"\")","v":"Transportation and Warehousing"},{"$f":"Calculations!D13","v":0},{"$f":"Calculations!G13","v":349662.75678267673},{"$f":"Calculations!H13","v":539152.36174372095},888815.11852639774,null,null,{"$f":"IF(pv_country<>\"Zambia\",\"Transportation and Warehousing\",\"\")","v":"Transportation and Warehousing"},{"$f":"Calculations!I13","v":0},{"$f":"Calculations!J13","v":154559.33677142434},{"$f":"Calculations!K13","v":238318.29336530878},392877.63013673312]
[null,{"$f":"IF(pv_country<>\"Zambia\",\"Information\",\"\")","v":"Information"},{"$f":"Calculations!O14","v":0},{"$f":"Calculations!P14","v":6.5770191578735302},{"$f":"Calculations!Q14","v":12.688260795620533},19.265279953494062,null,null,{"$f":"IF(pv_country<>\"Zambia\",\"Information\",\"\")","v":"Information"},{"$f":"Calculations!L14","v":0},{"$f":"Calculations!M14","v":26573.143624320834},{"$f":"Calculations!N14","v":51264.405404875841},77837.549029196671,null,null,{"$f":"IF(pv_country<>\"Zambia\",\"Information\",\"\")","v":"Information"},{"$f":"Calculations!D14","v":0},{"$f":"Calculations!G14","v":247412.6647121188},{"$f":"Calculations!H14","v":477303.82695460424},724716.49166672304,null,null,{"$f":"IF(pv_country<>\"Zambia\",\"Information\",\"\")","v":"Information"},{"$f":"Calculations!I14","v":0},{"$f":"Calculations!J14","v":149857.3161004486},{"$f":"Calculations!K14","v":289101.89603720146},438959.21213765006]
[null,"Finance, Professional, and Business Services",{"$f":"Calculations!O15","v":272.60337417086021},{"$f":"Calculations!P15","v":98.618692658147538},{"$f":"Calculations!Q15","v":245.57124536812287},616.7933121971306,null,null,"Finance, Professional, and Business Services",{"$f":"Calculations!L15","v":1101399.9564901425},{"$f":"Calculations!M15","v":398449.30068517529},{"$f":"Calculations!N15","v":992181.99256094382},2492031.2497362616,null,null,"Finance, Professional, and Business Services",{"$f":"Calculations!D15","v":5809002.5676046042},{"$f":"Calculations!G15","v":2752012.9314186745},{"$f":"Calculations!H15","v":5035328.5262254514},13596344.025248731,null,null,"Finance, Professional, and Business Services",{"$f":"Calculations!I15","v":2814460.5770694031},{"$f":"Calculations!J15","v":1711081.8494756061},{"$f":"Calculations!K15","v":3301651.8806223646},7827194.3071673736]
[null,{"$f":"IF(pv_country<>\"Zambia\",\"Education and Health Care\",\"\")","v":"Education and Health Care"},{"$f":"Calculations!O16","v":0},{"$f":"Calculations!P16","v":29.850259268651733},{"$f":"Calculations!Q16","v":204.9537208705041},234.80398013915584,null,null,{"$f":"IF(pv_country<>\"Zambia\",\"Education and Health Care\",\"\")","v":"Education and Health Care"},{"$f":"Calculations!L16","v":0},{"$f":"Calculations!M16","v":120604.06207263621},{"$f":"Calculations!N16","v":828074.92730365461},948678.98937629082,null,null,{"$f":"IF(pv_country<>\"Zambia\",\"Education and Health Care\",\"\")","v":"Education and Health Care"},{"$f":"Calculations!D16","v":0},{"$f":"Calculations!G16","v":321827.67481614149},{"$f":"Calculations!H16","v":1929413.3075756417},2251240.982391783,null,null,{"$f":"IF(pv_country<>\"Zambia\",\"Education and Health Care\",\"\")","v":"Education and Health Care"},{"$f":"Calculations!I16","v":0},{"$f":"Calculations!J16","v":182870.77159292233},{"$f":"Calculations!K16","v":1215965.4851781968},1398836.2567711191]
[null,"Other",{"$f":"Calculations!O17","v":1207.3604089612154},{"$f":"Calculations!P17","v":265.83404769203935},{"$f":"Calculations!Q17","v":209.62645937113436},1682.8209160243891,null,null,"Other",{"$f":"Calculations!L17","v":2141322.0965627143},{"$f":"Calculations!M17","v":503307.14293021098},{"$f":"Calculations!N17","v":414086.21417281538},3058715.4536657408,null,null,"Other",{"$f":"Calculations!D17","v":5111922.2594920518},{"$f":"Calculations!G17","v":1525863.327131252},{"$f":"Calculations!H17","v":14761071.718278794},21398857.304902099,null,null,"Other",{"$f":"Calculations!I17","v":2491352.0884657288},{"$f":"Calculations!J17","v":688604.0728321051},{"$f":"Calculations!K17","v":618669.58038116095},3798625.7416789951]
[null,"Total",{"$f":"Calculations!O18","v":2566.4768244153456},{"$f":"Calculations!P18","v":908.86778424127579},{"$f":"Calculations!Q18","v":1217.6732112452542},4693.0178199018756,null,null,"Total",{"$f":"Calculations!L18","v":6958734.9674256146},{"$f":"Calculations!M18","v":2714669.4853975307},{"$f":"Calculations!N18","v":3668169.428077572},13341573.880900718,null,null,"Total",{"$f":"Calculations!D18","v":40997035.620869495},{"$f":"Calculations!G18","v":25968580.950403221},{"$f":"Calculations!H18","v":33417008.891260602},100382625.46253332,null,null,"Total",{"$f":"Calculations!I18","v":18918622.399242774},{"$f":"Calculations!J18","v":9941285.0626140907},{"$f":"Calculations!K18","v":10927841.612182725},39787749.074039593]
[]
[]
[]
[null,"Detailed Impacts"]
[null,"O&M"]
[null,null,"Jobs",null,null,null,null,null,null,{"$f":"\"Earnings ($\"&pv_dollar_year&\" US)\"","v":"Earnings ($2016 US)"},null,null,null,null,null,null,{"$f":"\"Output ($\"&pv_dollar_year&\" US)\"","v":"Output ($2016 US)"},null,null,null,null,null,null,{"$f":"\"GDP ($\"&pv_dollar_year&\" US)\"","v":"GDP ($2016 US)"}]
[null,null,"Direct","Indirect","Induced","Total",null,null,null,"Direct","Indirect","Induced","Total",null,null,null,"Direct","Indirect","Induced","Total",null,null,null,"Direct","Indirect","Induced","Total"]
[null,"Agriculture",{"$f":"Calculations!Z7","v":0},{"$f":"Calculations!AA7","v":0.30997010682455106},{"$f":"Calculations!AB7","v":2.9910280186412899},{"$f":"SUM(C50:E50)","v":3.3009981254658411},null,null,"Agriculture",{"$f":"Calculations!W7","v":0},{"$f":"Calculations!X7","v":549.74954793191182},{"$f":"Calculations!Y7","v":5304.7576682303916},{"$f":"SUM(J50:L50)","v":5854.5072161623029},null,null,"Agriculture",{"$f":"Calculations!E7","v":0},{"$f":"Calculations!R7","v":2706.1383803259173},{"$f":"Calculations!S7","v":26112.633249685623},{"$f":"SUM(Q50:S50)","v":28818.771630011539},null,null,"Agriculture",{"$f":"Calculations!T7","v":0},{"$f":"Calculations!U7","v":1909.8755474852378},{"$f":"Calculations!V7","v":18429.168325833423},{"$f":"SUM(X50:Z50)","v":20339.04387331866}]
[null,"Mining and Extraction",{"$f":"Calculations!Z8","v":0},{"$f":"Calculations!AA8","v":0.56602785884824236},{"$f":"Calculations!AB8","v":6.6761937742114461E-2},{"$f":"SUM(C51:E51)","v":0.63278979659035683},null,null,"Mining and Extraction",{"$f":"Calculations!W8","v":0},{"$f":"Calculations!X8","v":1861.6866072815235},{"$f":"Calculations!Y8","v":219.58248773048584},{"$f":"SUM(J51:L51)","v":2081.2690950120095},null,null,"Mining and Extraction",{"$f":"Calculations!E8","v":0},{"$f":"Calculations!R8","v":12371.177003959414},{"$f":"Calculations!S8","v":1459.1574178267692},{"$f":"SUM(Q51:S51)","v":13830.334421786183},null,null,"Mining and Extraction",{"$f":"Calculations!T8","v":0},{"$f":"Calculations!U8","v":7121.9171748194794},{"$f":"Calculations!V8","v":840.01694191746958},{"$f":"SUM(X51:Z51)","v":7961.9341167369494}]
[null,"Utilities",{"$f":"Calculations!Z9","v":0},{"$f":"Calculations!AA9","v":0.21511253332621613},{"$f":"Calculations!AB9","v":0.23792139177004848},0.45303392509626461,null,null,"Utilities",{"$f":"Calculations!W9","v":0},{"$f":"Calculations!X9","v":869.1195975346983},{"$f":"Calculations!Y9","v":961.27427380763822},1830.3938713423365,null,null,"Utilities",{"$f":"Calculations!E9","v":0},{"$f":"Calculations!R9","v":7002.9987814617562},{"$f":"Calculations!S9","v":7745.5422558880546},14748.541037349811,null,null,"Utilities",{"$f":"Calculations!T9","v":0},{"$f":"Calculations!U9","v":4196.5892555927794},{"$f":"Calculations!V9","v":4641.5629109983702},8838.1521665911496]
[null,"Construction",{"$f":"Calculations!Z10","v":24.992772604578395},{"$f":"Calculations!AA10","v":0.21252176029765704},{"$f":"Calculations!AB10","v":0.11913512577486182},25.324429490650914,null,null,"Construction",{"$f":"Calculations!W10","v":82202.155440640534},{"$f":"Calculations!X10","v":698.99194662805405},{"$f":"Calculations!Y10","v":391.83984435530192},83292.987231623891,null,null,"Construction",{"$f":"Calculations!E10","v":486078.39708321507},{"$f":"Calculations!R10","v":4133.2843788553728},{"$f":"Calculations!S10","v":2317.0302826803527},492528.71174475079,null,null,"Construction",{"$f":"Calculations!T10","v":267502.81175262242},{"$f":"Calculations!U10","v":2274.6643334731812},{"$f":"Calculations!V10","v":1275.1278790669194},271052.60396516253]
[null,"Manufacturing",{"$f":"Calculations!Z11","v":0},{"$f":"Calculations!AA11","v":2.2088328609031396},{"$f":"Calculations!AB11","v":1.0138659982479554},3.222698859151095,null,null,"Manufacturing",{"$f":"Calculations!W11","v":0},{"$f":"Calculations!X11","v":7264.9331487572881},{"$f":"Calculations!Y11","v":3334.6428466560492},10599.575995413337,null,null,"Manufacturing",{"$f":"Calculations!E11","v":0},{"$f":"Calculations!R11","v":127739.63057097714},{"$f":"Calculations!S11","v":52825.976968420109},180565.60753939726,null,null,"Manufacturing",{"$f":"Calculations!T11","v":0},{"$f":"Calculations!U11","v":32996.526871274611},{"$f":"Calculations!V11","v":14857.453079049985},47853.979950324596]
[null,{"$f":"IF(pv_country<>\"Zambia\",\"Sales\",\"Trade, Transportation, and Warehousing\")","v":"Sales"},{"$f":"Calculations!Z12","v":0},{"$f":"Calculations!AA12","v":1.3875956390162054},{"$f":"Calculations!AB12","v":1.0787865801460339},2.4663822191622393,null,null,{"$f":"IF(pv_country<>\"Zambia\",\"Sales\",\"Trade, Transportation, and Warehousing\")","v":"Sales"},{"$f":"Calculations!W12","v":0},{"$f":"Calculations!X12","v":4563.8534872385435},{"$f":"Calculations!Y12","v":3548.1690467665994},8112.0225340051429,null,null,{"$f":"IF(pv_country<>\"Zambia\",\"Sales\",\"Trade, Transportation, and Warehousing\")","v":"Sales"},{"$f":"Calculations!E12","v":0},{"$f":"Calculations!R12","v":29666.997978016658},{"$f":"Calculations!S12","v":23064.61507373628},52731.613051752938,null,null,{"$f":"IF(pv_country<>\"Zambia\",\"Sales\",\"Trade, Transportation, and Warehousing\")","v":"Sales"},{"$f":"Calculations!T12","v":0},{"$f":"Calculations!U12","v":20503.304620551778},{"$f":"Calculations!V12","v":15940.299357656824},36443.603978208601]
[null,{"$f":"IF(pv_country<>\"Zambia\",\"Transportation and Warehousing\",\"\")","v":"Transportation and Warehousing"},{"$f":"Calculations!Z13","v":0},{"$f":"Calculations!AA13","v":0.14773880508420845},{"$f":"Calculations!AB13","v":0.28675977248379642},0.43449857756800486,null,null,{"$f":"IF(pv_country<>\"Zambia\",\"Transportation and Warehousing\",\"\")","v":"Transportation and Warehousing"},{"$f":"Calculations!W13","v":0},{"$f":"Calculations!X13","v":485.91840578431345},{"$f":"Calculations!Y13","v":943.1635203017679},1429.0819260860812,null,null,{"$f":"IF(pv_country<>\"Zambia\",\"Transportation and Warehousing\",\"\")","v":"Transportation and Warehousing"},{"$f":"Calculations!E13","v":0},{"$f":"Calculations!R13","v":2954.077841177389},{"$f":"Calculations!S13","v":5733.8401319315844},8687.9179731089735,null,null,{"$f":"IF(pv_country<>\"Zambia\",\"Transportation and Warehousing\",\"\")","v":"Transportation and Warehousing"},{"$f":"Calculations!T13","v":0},{"$f":"Calculations!U13","v":1305.7733574620106},{"$f":"Calculations!V13","v":2534.4950548894935},3840.2684123515041]
[null,{"$f":"IF(pv_country<>\"Zambia\",\"Information\",\"\")","v":"Information"},{"$f":"Calculations!Z14","v":0},{"$f":"Calculations!AA14","v":4.1075048732732183E-2},{"$f":"Calculations!AB14","v":0.1349385890085836},0.17601363774131579,null,null,{"$f":"IF(pv_country<>\"Zambia\",\"Information\",\"\")","v":"Information"},{"$f":"Calculations!W14","v":0},{"$f":"Calculations!X14","v":165.95560133715185},{"$f":"Calculations!Y14","v":545.19265036588831},711.14825170304016,null,null,{"$f":"IF(pv_country<>\"Zambia\",\"Information\",\"\")","v":"Information"},{"$f":"Calculations!E14","v":0},{"$f":"Calculations!R14","v":1545.1509287424858},{"$f":"Calculations!S14","v":5076.086153579221},6621.237082321707,null,null,{"$f":"IF(pv_country<>\"Zambia\",\"Information\",\"\")","v":"Information"},{"$f":"Calculations!T14","v":0},{"$f":"Calculations!U14","v":935.894576863682},{"$f":"Calculations!V14","v":3074.5744085297488},4010.4689853934306]
[null,"Finance, Professional, and Business Services",{"$f":"Calculations!Z15","v":0},{"$f":"Calculations!AA15","v":0.74580526447567563},{"$f":"Calculations!AB15","v":2.6116295909123135},3.3574348553879894,null,null,"Finance, Professional, and Business Services",{"$f":"Calculations!W15","v":0},{"$f":"Calculations!X15","v":3013.2784978984864},{"$f":"Calculations!Y15","v":10551.772246209663},13565.05074410815,null,null,"Finance, Professional, and Business Services",{"$f":"Calculations!E15","v":0},{"$f":"Calculations!R15","v":20639.319596220357},{"$f":"Calculations!S15","v":53550.296409264818},74189.616005485179,null,null,"Finance, Professional, and Business Services",{"$f":"Calculations!T15","v":0},{"$f":"Calculations!U15","v":12297.77006912945},{"$f":"Calculations!V15","v":35112.790739806835},47410.560808936287]
[null,{"$f":"IF(pv_country<>\"Zambia\",\"Education and Health Care\",\"\")","v":"Education and Health Care"},{"$f":"Calculations!Z16","v":0},{"$f":"Calculations!AA16","v":2.7772979755586839E-2},{"$f":"Calculations!AB16","v":2.1796656257152836},2.2074386054708706,null,null,{"$f":"IF(pv_country<>\"Zambia\",\"Education and Health Care\",\"\")","v":"Education and Health Care"},{"$f":"Calculations!W16","v":0},{"$f":"Calculations!X16","v":112.21122551195029},{"$f":"Calculations!Y16","v":8806.507375881527},8918.718601393477,null,null,{"$f":"IF(pv_country<>\"Zambia\",\"Education and Health Care\",\"\")","v":"Education and Health Care"},{"$f":"Calculations!E16","v":0},{"$f":"Calculations!R16","v":295.91567212431488},{"$f":"Calculations!S16","v":20519.148647110444},20815.06431923476,null,null,{"$f":"IF(pv_country<>\"Zambia\",\"Education and Health Care\",\"\")","v":"Education and Health Care"},{"$f":"Calculations!T16","v":0},{"$f":"Calculations!U16","v":169.6475603098595},{"$f":"Calculations!V16","v":12931.690914622252},13101.33847493211]
[null,"Other",{"$f":"Calculations!Z17","v":0},{"$f":"Calculations!AA17","v":0.54277391100153771},{"$f":"Calculations!AB17","v":2.2293598076238665},2.7721337186254043,null,null,"Other",{"$f":"Calculations!W17","v":0},{"$f":"Calculations!X17","v":1087.9912446799158},{"$f":"Calculations!Y17","v":4403.7721456412701},5491.7633903211863,null,null,"Other",{"$f":"Calculations!E17","v":0},{"$f":"Calculations!R17","v":3874.3783901580177},{"$f":"Calculations!S17","v":156982.75926095014},160857.13765110818,null,null,"Other",{"$f":"Calculations!T17","v":0},{"$f":"Calculations!U17","v":1671.493603642019},{"$f":"Calculations!V17","v":6579.4990805974794},8250.992684239498]
[null,"Total",{"$f":"Calculations!Z18","v":24.992772604578395},{"$f":"Calculations!AA18","v":6.4052267682657522},{"$f":"Calculations!AB18","v":12.949852438066147},44.347851810910292,null,null,"Total",{"$f":"Calculations!W18","v":82202.155440640534},{"$f":"Calculations!X18","v":20673.689310583839},{"$f":"Calculations!Y18","v":39010.674105946586},141886.51885717094,null,null,"Total",{"$f":"Calculations!E18","v":486078.39708321507},{"$f":"Calculations!R18","v":212929.06952201881},{"$f":"Calculations!S18","v":355387.08585107338},{"$f":"SUM(Q61:S61)","v":1054394.5524563072},null,null,"Total",{"$f":"Calculations!T18","v":267502.81175262242},{"$f":"Calculations!U18","v":85383.456970604093},{"$f":"Calculations!V18","v":116216.6786929688},469102.9474161953]

{"sheet":"Biopower-Inputs","index":6,"n_rows":58,"n_cols":3,"rows_kept":58,"cut":false,"hidden":false,"merged":[]}
["I-JEDI - Biopower","Project Inputs","Click for Help"]
[]
["Project Description"]
["Country","South Africa"]
["Project Size (MW)",500]
["Plant Capacity Factor",{"$f":"'Default-Data'!C78","v":0.8},"(used to calculate fuel use and utility O&M impacts)"]
["Plant Heat Rate (Btu/kWh)",{"$f":"'Default-Data'!C79","v":14000},"(used to calculate fuel use)"]
["Boiler Type","Stoker boiler  ","<- Select from List"]
["Dollar Year",2014]
[]
[]
[]
["Biopower Facility Construction"]
["Equipment","Cost",{"$f":"\"% Manufactured in \"&B4","v":"% Manufactured in South Africa"}]
["Feedstock handling equipment",{"$f":"'Default-Data'!D90","v":222363778.30382094},{"$f":"'Default-Data'!E90","v":0.1}]
["Turbines, boilers, and air quality control equipment",{"$f":"'Default-Data'!D91","v":667091334.9114629},{"$f":"'Default-Data'!E91","v":0.1}]
["Other equipment",{"$f":"'Default-Data'!D92","v":0},{"$f":"'Default-Data'!E92","v":0}]
["Equipment Subtotal",{"$f":"SUM(B15:B17)","v":889455113.21528387}]
[]
["General Construction","Cost",{"$f":"\"% Residing in or Purchased in \"&biopower_country","v":"% Residing in or Purchased in South Africa"}]
["Construction Labor",{"$f":"'Default-Data'!D96","v":222363778.30382094},{"$f":"'Default-Data'!E96","v":1}]
["General Construction Subtotal",{"$f":"SUM(B21:B21)","v":222363778.30382094}]
[]
["Contractors and Balance of Plant",null,{"$f":"\"% Purchased in \"&biopower_country","v":"% Purchased in South Africa"}]
["Balance of Plant",{"$f":"'Default-Data'!D100","v":190597524.26041794},{"$f":"'Default-Data'!E100","v":0.2}]
["Professional Services (legal, engineering, development, etc.)",{"$f":"'Default-Data'!D101","v":285896286.39062691},{"$f":"'Default-Data'!E101","v":0.9}]
["Contractors and Balance of Plant Subtotal",{"$f":"SUM(B25:B26)","v":476493810.65104485}]
[]
["Total Construction Cost",{"$f":"B27+B22+B18","v":1588312702.1701498}]
[]
[]
["Biopower Facility O&M"]
["Feedstock Information"]
["Feedstock Type","Forest Residues","<- Select from List"]
["Feedstock Heating Value (Btu / dry kg)",{"$f":"'Default-Data'!C73","v":18893.631280974972}]
["Feedstock Cost ($/dry metric tonne)",{"$f":"'Default-Data'!C132","v":11.5}]
["Feedstock Transportation Cost ($/dry metric tonne)"]
[{"$f":"\"Percent Purchased Directly from Farmers in \"&B4","v":"Percent Purchased Directly from Farmers in South Africa"},{"$f":"'Default-Data'!D132","v":0.5},{"$f":"IF(B38+B39>1,\"You have indicated that the percentage of feedstock purchased from farmers and wholesalers in \"&B4&\" is greater than 100%. Please revise these figures.\",\"\")","v":""}]
[{"$f":"\"Percent Purchased from Wholesalers in \"&B4","v":"Percent Purchased from Wholesalers in South Africa"},{"$f":"'Default-Data'!E132","v":0.5}]
["Calculated Annual Feedstock Consumption (dry metric tonnes / yr)",{"$f":"'Default-Data'!C83","v":2598208.8498483081}]
["Annual Feedstock Material Cost",{"$f":"B36*B40","v":29879401.773255542},{"$f":"\"% Transportation Purchased in \"&biopower_country","v":"% Transportation Purchased in South Africa"}]
["Annual Feedstock Transportation Cost",{"$f":"B40*B37","v":0},{"$f":"'Default-Data'!D133","v":1}]
["Feedstock Subtotal",{"$f":"SUM(B41:B42)","v":29879401.773255542},{"$f":"'Default-Data'!D133","v":1}]
[]
["Operations",null,{"$f":"\"% Residing in / Purchased in \"&biopower_country","v":"% Residing in / Purchased in South Africa"}]
["Plant operators, including maintenance",{"$f":"'Default-Data'!G117+'Default-Data'!G118","v":39810877.832085572},{"$f":"'Default-Data'!G119","v":1}]
["Operations subtotal",{"$f":"SUM(B46:B46)","v":39810877.832085572}]
[]
["Materials",null,{"$f":"\"% Manufactured in \"&biopower_country","v":"% Manufactured in South Africa"}]
["Chemicals (including ammonia)",{"$f":"'Default-Data'!D111","v":1270000},{"$f":"'Default-Data'!E111","v":0.5}]
["Water",{"$f":"'Default-Data'!D112","v":170850},{"$f":"'Default-Data'!E112","v":1}]
["Solids/Ash Disposal",{"$f":"'Default-Data'!D113","v":320000},{"$f":"'Default-Data'!E113","v":1}]
["Materials Subtotal",{"$f":"SUM(B50:B52)","v":1760850}]
[]
["O&M Annual Total",{"$f":"B53+B47+B43","v":71451129.605341107}]
[]
[]
[null,"Click arrow to go to results"]

{"sheet":"Biopower-Results","index":7,"n_rows":61,"n_cols":27,"rows_kept":61,"cut":false,"hidden":false,"merged":[[18,3,18,5],[11,3,11,5],[0,0,0,2],[1,0,1,2],[2,0,2,2]]}
["I-JEDI - Biopower",null,null,null,null,null,"Click fof help"]
["Estimated Gross Economic Impacts",null,null,null,null,null,"Return to inputs"]
[{"$f":"biopower_country","v":"South Africa"}]
[]
[null,"Nameplate Capacity (MW)",{"$f":"biopower_capacity","v":500}]
[null,"Annual Generation (MWh)",{"$f":"biopower_capacity*365.25*24*'Biopower-Inputs'!B6","v":3506400}]
[null,"Boiler Type",{"$f":"biopower_boiler_type","v":"Stoker boiler  "}]
[null,"Fuel",{"$f":"'Biopower-Inputs'!B34","v":"Forest Residues"}]
[null,"Dollar Year",{"$f":"biopower_dollar_year","v":2014}]
[]
[null,"Impact Totals"]
[null,"Construction Phase (Single Year Equivalent)",null,{"$f":"\"( $ \"&biopower_dollar_year&\" US)\"","v":"( $ 2014 US)"}]
[null,null,"Jobs","Earnings","Output","GDP (Value Added)"]
[null,"Direct",{"$f":"TRANSPOSE(C42:F42)","v":9046.8857291674976},{"$f":"TRANSPOSE(J42:M42)","v":124176964.76487042},{"$f":"TRANSPOSE(Q42:T42)","v":584499074.39861512},{"$f":"TRANSPOSE(X42:AA42)","v":203276657.34416816}]
[null,"Indirect",6530.8662496038269,91109374.954682887,576382963.82401454,366283173.90645146]
[null,"Induced",9306.6697945451142,144185396.38474849,981862504.24730563,369736316.20228416]
[null,"Total",24884.421773316441,359471736.10430181,2142744542.4699352,939296147.45290375]
[]
[null,"Operations and Maintenance Phase (Annual, Ongoing)",null,{"$f":"\"( $ \"&biopower_dollar_year&\" US)\"","v":"( $ 2014 US)"}]
[null,null,"Jobs","Earnings","Output","GDP"]
[null,"Direct",{"$f":"TRANSPOSE(C61:F61)","v":557.8154476914591},{"$f":"TRANSPOSE(J61:M61)","v":11195491.377065569},{"$f":"TRANSPOSE(Q61:T61)","v":70816129.605341107},{"$f":"TRANSPOSE(X61:AA61)","v":34301202.449920699}]
[null,"Indirect",685.239552411251,10019639.386228835,48273484.413442999,23449789.197698426]
[null,"Induced",861.42758191951214,12777370.923234284,83494115.904405743,24049926.208507992]
[null,"Total",2104.4825820222222,33992501.68652869,202583729.92318985,81800917.856127113]
[]
[]
[null,"Detailed Impacts"]
[null,"Construction"]
[null,null,"Jobs",null,null,null,null,null,null,{"$f":"\"Earnings ($\"&biopower_dollar_year&\" US)\"","v":"Earnings ($2014 US)"},null,null,null,null,null,null,{"$f":"\"Output ($\"&biopower_dollar_year&\" US)\"","v":"Output ($2014 US)"},null,null,null,null,null,null,{"$f":"\"GDP ($\"&biopower_dollar_year&\" US)\"","v":"GDP ($2014 US)"}]
[null,null,"Direct","Indirect","Induced","Total",null,null,null,"Direct","Indirect","Induced","Total",null,null,null,"Direct","Indirect","Induced","Total",null,null,null,"Direct","Indirect","Induced","Total"]
[null,"Agriculture",{"$f":"Calculations!O28","v":0},{"$f":"Calculations!P28","v":33.114039407768701},{"$f":"Calculations!Q28","v":154.38833800149177},{"$f":"SUM(C31:E31)","v":187.50237740926048},null,null,"Agriculture",{"$f":"Calculations!L28","v":0},{"$f":"Calculations!M28","v":476555.82777237636},{"$f":"Calculations!N28","v":2221857.0591373215},{"$f":"SUM(J31:L31)","v":2698412.8869096981},null,null,"Agriculture",{"$f":"Calculations!D28","v":0},{"$f":"Calculations!G28","v":4743374.6078717001},{"$f":"Calculations!H28","v":22115143.163596753},{"$f":"SUM(Q31:S31)","v":26858517.771468453},null,null,"Agriculture",{"$f":"Calculations!I28","v":0},{"$f":"Calculations!J28","v":2892867.756243112},{"$f":"Calculations!K28","v":13487483.0413984},{"$f":"SUM(X31:Z31)","v":16380350.797641512}]
[null,"Mining and Extraction",{"$f":"Calculations!O29","v":0},{"$f":"Calculations!P29","v":128.00867476851246},{"$f":"Calculations!Q29","v":39.568309176593303},{"$f":"SUM(C32:E32)","v":167.57698394510578},null,null,"Mining and Extraction",{"$f":"Calculations!L29","v":0},{"$f":"Calculations!M29","v":2020449.2049699621},{"$f":"Calculations!N29","v":624533.91508368799},{"$f":"SUM(J32:L32)","v":2644983.1200536499},null,null,"Mining and Extraction",{"$f":"Calculations!D29","v":0},{"$f":"Calculations!G29","v":37814332.894202299},{"$f":"Calculations!H29","v":11688654.835074238},{"$f":"SUM(Q32:S32)","v":49502987.729276538},null,null,"Mining and Extraction",{"$f":"Calculations!I29","v":0},{"$f":"Calculations!J29","v":32555393.278933696},{"$f":"Calculations!K29","v":10063082.591519007},{"$f":"SUM(X32:Z32)","v":42618475.870452702}]
[null,"Utilities",{"$f":"Calculations!O30","v":0},{"$f":"Calculations!P30","v":75.811498549001271},{"$f":"Calculations!Q30","v":73.275158094463237},149.08665664346449,null,null,"Utilities",{"$f":"Calculations!L30","v":0},{"$f":"Calculations!M30","v":2090724.2786051466},{"$f":"Calculations!N30","v":2020777.2564699282},4111501.535075075,null,null,"Utilities",{"$f":"Calculations!D30","v":0},{"$f":"Calculations!G30","v":19350459.438982874},{"$f":"Calculations!H30","v":18703072.775635667},38053532.214618541,null,null,"Utilities",{"$f":"Calculations!I30","v":0},{"$f":"Calculations!J30","v":8655997.3360142205},{"$f":"Calculations!K30","v":8366403.3214134425},17022400.657427661]
[null,"Construction",{"$f":"Calculations!O31","v":2815.7474023332138},{"$f":"Calculations!P31","v":529.80962992026969},{"$f":"Calculations!Q31","v":133.02580226434813},3478.5828345178315,null,null,"Construction",{"$f":"Calculations!L31","v":29860853.625884071},{"$f":"Calculations!M31","v":5618603.3575041499},{"$f":"Calculations!N31","v":1410731.6610111964},36890188.644399419,null,null,"Construction",{"$f":"Calculations!D31","v":222363778.30382094},{"$f":"Calculations!G31","v":25400288.081451148},{"$f":"Calculations!H31","v":6377561.8806496263},254141628.26592171,null,null,"Construction",{"$f":"Calculations!I31","v":66208959.850708835},{"$f":"Calculations!J31","v":12774885.400406903},{"$f":"Calculations!K31","v":3207547.1702542938},82191392.421370029]
[null,"Manufacturing",{"$f":"Calculations!O32","v":1834.3199154993385},{"$f":"Calculations!P32","v":1137.0562569381482},{"$f":"Calculations!Q32","v":873.97924094427083},3845.3554133817574,null,null,"Manufacturing",{"$f":"Calculations!L32","v":23546499.205561161},{"$f":"Calculations!M32","v":14595978.610080188},{"$f":"Calculations!N32","v":11218954.408489402},49361432.22413075,null,null,"Manufacturing",{"$f":"Calculations!D32","v":104828638.34322989},{"$f":"Calculations!G32","v":134725341.8822569},{"$f":"Calculations!H32","v":127218899.80588114},366772880.0313679,null,null,"Manufacturing",{"$f":"Calculations!I32","v":27442843.121925026},{"$f":"Calculations!J32","v":50902115.436954796},{"$f":"Calculations!K32","v":43669365.466765225},122014324.02564505]
[null,{"$f":"IF(biopower_country<>\"Zambia\",\"Sales\",\"Trade, Transportation, and Warehousing\")","v":"Sales"},{"$f":"Calculations!O33","v":0},{"$f":"Calculations!P33","v":1452.8511673174005},{"$f":"Calculations!Q33","v":1024.7685205099754},2477.6196878273759,null,null,{"$f":"IF(biopower_country<>\"Zambia\",\"Sales\",\"Trade, Transportation, and Warehousing\")","v":"Sales"},{"$f":"Calculations!L33","v":0},{"$f":"Calculations!M33","v":13948733.988474069},{"$f":"Calculations!N33","v":9838739.0352923609},23787473.023766428,null,null,{"$f":"IF(biopower_country<>\"Zambia\",\"Sales\",\"Trade, Transportation, and Warehousing\")","v":"Sales"},{"$f":"Calculations!D33","v":0},{"$f":"Calculations!G33","v":90970902.075662762},{"$f":"Calculations!H33","v":64166322.625921369},155137224.70158413,null,null,{"$f":"IF(biopower_country<>\"Zambia\",\"Sales\",\"Trade, Transportation, and Warehousing\")","v":"Sales"},{"$f":"Calculations!I33","v":0},{"$f":"Calculations!J33","v":69271440.856093839},{"$f":"Calculations!K33","v":48860608.406824626},118132049.26291847]
[null,{"$f":"IF(biopower_country<>\"Zambia\",\"Transportation and Warehousing\",\"\")","v":"Transportation and Warehousing"},{"$f":"Calculations!O34","v":0},{"$f":"Calculations!P34","v":566.0900513427024},{"$f":"Calculations!Q34","v":442.91648666519433},1009.0065380078968,null,null,{"$f":"IF(biopower_country<>\"Zambia\",\"Transportation and Warehousing\",\"\")","v":"Transportation and Warehousing"},{"$f":"Calculations!L34","v":0},{"$f":"Calculations!M34","v":10103331.142489202},{"$f":"Calculations!N34","v":7904982.4716621013},18008313.614151303,null,null,{"$f":"IF(biopower_country<>\"Zambia\",\"Transportation and Warehousing\",\"\")","v":"Transportation and Warehousing"},{"$f":"Calculations!D34","v":0},{"$f":"Calculations!G34","v":42847689.932082936},{"$f":"Calculations!H34","v":33524610.15950416},76372300.091587096,null,null,{"$f":"IF(biopower_country<>\"Zambia\",\"Transportation and Warehousing\",\"\")","v":"Transportation and Warehousing"},{"$f":"Calculations!I34","v":0},{"$f":"Calculations!J34","v":31317166.344856583},{"$f":"Calculations!K34","v":24502973.081532065},55820139.426388651]
[null,{"$f":"IF(biopower_country<>\"Zambia\",\"Information\",\"\")","v":"Information"},{"$f":"Calculations!O35","v":0},{"$f":"Calculations!P35","v":282.8366967988012},{"$f":"Calculations!Q35","v":166.88001040580977},449.716707204611,null,null,{"$f":"IF(biopower_country<>\"Zambia\",\"Information\",\"\")","v":"Information"},{"$f":"Calculations!L35","v":0},{"$f":"Calculations!M35","v":5047947.4073572094},{"$f":"Calculations!N35","v":2978402.4682872128},8026349.8756444221,null,null,{"$f":"IF(biopower_country<>\"Zambia\",\"Information\",\"\")","v":"Information"},{"$f":"Calculations!D35","v":0},{"$f":"Calculations!G35","v":32363836.27818593},{"$f":"Calculations!H35","v":19095391.07196391},51459227.35014984,null,null,{"$f":"IF(biopower_country<>\"Zambia\",\"Information\",\"\")","v":"Information"},{"$f":"Calculations!I35","v":0},{"$f":"Calculations!J35","v":19746498.280717395},{"$f":"Calculations!K35","v":11650877.965487506},31397376.246204901]
[null,"Finance, Professional, and Business Services",{"$f":"Calculations!O36","v":4396.8184113349462},{"$f":"Calculations!P36","v":1882.2979961477072},{"$f":"Calculations!Q36","v":5359.5722882581831},11638.688695740837,null,null,"Finance, Professional, and Business Services",{"$f":"Calculations!L36","v":70769611.933425188},{"$f":"Calculations!M36","v":30300177.082957286},{"$f":"Calculations!N36","v":89142211.234643385},190212000.25102586,null,null,"Finance, Professional, and Business Services",{"$f":"Calculations!D36","v":257306657.75156423},{"$f":"Calculations!G36","v":142430687.95070457},{"$f":"Calculations!H36","v":220958824.7953662},620696170.49763501,null,null,"Finance, Professional, and Business Services",{"$f":"Calculations!I36","v":109624854.37153429},{"$f":"Calculations!J36","v":108117368.69355933},{"$f":"Calculations!K36","v":165154115.64888147},382896338.71397507]
[null,{"$f":"IF(biopower_country<>\"Zambia\",\"Education and Health Care\",\"\")","v":"Education and Health Care"},{"$f":"Calculations!O37","v":0},{"$f":"Calculations!P37","v":112.79129641388202},{"$f":"Calculations!Q37","v":732.40926922318818},845.20056563707021,null,null,{"$f":"IF(biopower_country<>\"Zambia\",\"Education and Health Care\",\"\")","v":"Education and Health Care"},{"$f":"Calculations!L37","v":0},{"$f":"Calculations!M37","v":1896544.9513089678},{"$f":"Calculations!N37","v":12315197.590602107},14211742.541911075,null,null,{"$f":"IF(biopower_country<>\"Zambia\",\"Education and Health Care\",\"\")","v":"Education and Health Care"},{"$f":"Calculations!D37","v":0},{"$f":"Calculations!G37","v":3530744.1656826101},{"$f":"Calculations!H37","v":20944850.412785538},24475594.578468148,null,null,{"$f":"IF(biopower_country<>\"Zambia\",\"Education and Health Care\",\"\")","v":"Education and Health Care"},{"$f":"Calculations!I37","v":0},{"$f":"Calculations!J37","v":2663327.3191003483},{"$f":"Calculations!K37","v":16442200.069767147},19105527.388867497]
[null,"Other",{"$f":"Calculations!O38","v":0},{"$f":"Calculations!P38","v":330.19894199963278},{"$f":"Calculations!Q38","v":305.88637100159553},636.08531300122831,null,null,"Other",{"$f":"Calculations!L38","v":0},{"$f":"Calculations!M38","v":5010329.1031643236},{"$f":"Calculations!N38","v":4509009.2840697858},9519338.3872341104,null,null,"Other",{"$f":"Calculations!D38","v":0},{"$f":"Calculations!G38","v":42205306.516930833},{"$f":"Calculations!H38","v":437069172.72092706},479274479.23785788,null,null,"Other",{"$f":"Calculations!I38","v":0},{"$f":"Calculations!J38","v":27386113.203571234},{"$f":"Calculations!K38","v":24331659.438440952},51717772.642012186]
[null,"Total",{"$f":"Calculations!O39","v":9046.8857291674976},{"$f":"Calculations!P39","v":6530.8662496038269},{"$f":"Calculations!Q39","v":9306.6697945451142},24884.421773316441,null,null,"Total",{"$f":"Calculations!L39","v":124176964.76487042},{"$f":"Calculations!M39","v":91109374.954682887},{"$f":"Calculations!N39","v":144185396.38474849},359471736.10430181,null,null,"Total",{"$f":"Calculations!D39","v":584499074.39861512},{"$f":"Calculations!G39","v":576382963.82401454},{"$f":"Calculations!H39","v":981862504.24730563},2142744542.4699352,null,null,"Total",{"$f":"Calculations!I39","v":203276657.34416816},{"$f":"Calculations!J39","v":366283173.90645146},{"$f":"Calculations!K39","v":369736316.20228416},939296147.45290375]
[]
[]
[]
[null,"Detailed Impacts"]
[null,"O&M"]
[null,null,"Jobs",null,null,null,null,null,null,{"$f":"\"Earnings ($\"&biopower_dollar_year&\" US)\"","v":"Earnings ($2014 US)"},null,null,null,null,null,null,{"$f":"\"Output ($\"&biopower_dollar_year&\" US)\"","v":"Output ($2014 US)"},null,null,null,null,null,null,{"$f":"\"GDP ($\"&biopower_dollar_year&\" US)\"","v":"GDP ($2014 US)"}]
[null,null,"Direct","Indirect","Induced","Total",null,null,null,"Direct","Indirect","Induced","Total",null,null,null,"Direct","Indirect","Induced","Total",null,null,null,"Direct","Indirect","Induced","Total"]
[null,"Agriculture",{"$f":"Calculations!Z28","v":244.34861753364646},{"$f":"Calculations!AA28","v":11.687808941524512},{"$f":"Calculations!AB28","v":16.188601521717906},{"$f":"SUM(C50:E50)","v":272.22502799688885},null,null,"Agriculture",{"$f":"Calculations!W28","v":3516507.1907978705},{"$f":"Calculations!X28","v":168203.38335609017},{"$f":"Calculations!Y28","v":232975.87780394769},{"$f":"SUM(J50:L50)","v":3917686.4519579085},null,null,"Agriculture",{"$f":"Calculations!E28","v":28385431.684592765},{"$f":"Calculations!R28","v":1357746.5901010595},{"$f":"Calculations!S28","v":1880593.5846988894},{"$f":"SUM(Q50:S50)","v":31623771.859392714},null,null,"Agriculture",{"$f":"Calculations!T28","v":11463424.600471133},{"$f":"Calculations!U28","v":548324.43047249643},{"$f":"Calculations!V28","v":759475.60008491471},{"$f":"SUM(X50:Z50)","v":12771224.631028544}]
[null,"Mining and Extraction",{"$f":"Calculations!Z29","v":0},{"$f":"Calculations!AA29","v":79.326243460281773},{"$f":"Calculations!AB29","v":12.707819802188316},{"$f":"SUM(C51:E51)","v":92.034063262470085},null,null,"Mining and Extraction",{"$f":"Calculations!W29","v":0},{"$f":"Calculations!X29","v":1252060.8140223031},{"$f":"Calculations!Y29","v":200576.28487025457},{"$f":"SUM(J51:L51)","v":1452637.0988925577},null,null,"Mining and Extraction",{"$f":"Calculations!E29","v":0},{"$f":"Calculations!R29","v":6204625.4500506567},{"$f":"Calculations!S29","v":993961.88096053898},{"$f":"SUM(Q51:S51)","v":7198587.3310111957},null,null,"Mining and Extraction",{"$f":"Calculations!T29","v":0},{"$f":"Calculations!U29","v":3695441.1684355969},{"$f":"Calculations!V29","v":591998.28971582314},{"$f":"SUM(X51:Z51)","v":4287439.4581514196}]
[null,"Utilities",{"$f":"Calculations!Z30","v":257.58311541741074},{"$f":"Calculations!AA30","v":41.178423446580688},{"$f":"Calculations!AB30","v":10.246463373976635},309.00800223796801,null,null,"Utilities",{"$f":"Calculations!W30","v":7103609.3926285654},{"$f":"Calculations!X30","v":1135615.7219185301},{"$f":"Calculations!Y30","v":282576.26027488115},8521801.3748219758,null,null,"Utilities",{"$f":"Calculations!E30","v":39981727.832085572},{"$f":"Calculations!R30","v":6391663.1962759346},{"$f":"Calculations!S30","v":1590443.1825661361},47963834.210927643,null,null,"Utilities",{"$f":"Calculations!T30","v":21739127.95546253},{"$f":"Calculations!U30","v":3475317.1412606044},{"$f":"Calculations!V30","v":864766.22513426666},26079211.321857404]
[null,"Construction",{"$f":"Calculations!Z31","v":0},{"$f":"Calculations!AA31","v":6.4429645623075444},{"$f":"Calculations!AB31","v":6.8673554009639615},13.310319963271507,null,null,"Construction",{"$f":"Calculations!W31","v":0},{"$f":"Calculations!X31","v":68327.301501690672},{"$f":"Calculations!Y31","v":72827.944102935551},141155.24560462622,null,null,"Construction",{"$f":"Calculations!E31","v":0},{"$f":"Calculations!R31","v":508810.5354781347},{"$f":"Calculations!S31","v":542325.31392842159},1051135.8494065562,null,null,"Construction",{"$f":"Calculations!T31","v":0},{"$f":"Calculations!U31","v":151498.66840750031},{"$f":"Calculations!V31","v":161477.71552455644},312976.38393205672]
[null,"Manufacturing",{"$f":"Calculations!Z32","v":12.003190331380745},{"$f":"Calculations!AA32","v":116.15053141367056},{"$f":"Calculations!AB32","v":114.65530502386039},242.80902676891171,null,null,"Manufacturing",{"$f":"Calculations!W32","v":154080.59914407987},{"$f":"Calculations!X32","v":1490982.2286441214},{"$f":"Calculations!Y32","v":1471788.5499938983},3116851.3777820999,null,null,"Manufacturing",{"$f":"Calculations!E32","v":955000},{"$f":"Calculations!R32","v":9959094.002404185},{"$f":"Calculations!S32","v":10818245.446459999},21732339.448864184,null,null,"Manufacturing",{"$f":"Calculations!T32","v":221291.6191155492},{"$f":"Calculations!U32","v":2406642.342607033},{"$f":"Calculations!V32","v":2537978.8738190061},5165912.8355415883]
[null,{"$f":"IF(biopower_country<>\"Zambia\",\"Sales\",\"Trade, Transportation, and Warehousing\")","v":"Sales"},{"$f":"Calculations!Z33","v":43.88052440902122},{"$f":"Calculations!AA33","v":178.92688943715544},{"$f":"Calculations!AB33","v":160.26631540306195},383.07372924923857,null,null,{"$f":"IF(biopower_country<>\"Zambia\",\"Sales\",\"Trade, Transportation, and Warehousing\")","v":"Sales"},{"$f":"Calculations!W33","v":421294.19449505204},{"$f":"Calculations!X33","v":1717865.9729835496},{"$f":"Calculations!Y33","v":1538706.9585372121},3677867.1260158136,null,null,{"$f":"IF(biopower_country<>\"Zambia\",\"Sales\",\"Trade, Transportation, and Warehousing\")","v":"Sales"},{"$f":"Calculations!E33","v":1493970.0886627771},{"$f":"Calculations!R33","v":6091800.9635642944},{"$f":"Calculations!S33","v":5456477.2107223263},13042248.262949398,null,null,{"$f":"IF(biopower_country<>\"Zambia\",\"Sales\",\"Trade, Transportation, and Warehousing\")","v":"Sales"},{"$f":"Calculations!T33","v":877358.27487148449},{"$f":"Calculations!U33","v":3577509.3656909447},{"$f":"Calculations!V33","v":3204405.140908754},7659272.7814711835]
[null,{"$f":"IF(biopower_country<>\"Zambia\",\"Transportation and Warehousing\",\"\")","v":"Transportation and Warehousing"},{"$f":"Calculations!Z34","v":0},{"$f":"Calculations!AA34","v":67.016125358772499},{"$f":"Calculations!AB34","v":29.424193315447184},96.440318674219682,null,null,{"$f":"IF(biopower_country<>\"Zambia\",\"Transportation and Warehousing\",\"\")","v":"Transportation and Warehousing"},{"$f":"Calculations!W34","v":0},{"$f":"Calculations!X34","v":1196074.9085419783},{"$f":"Calculations!Y34","v":525150.31479790108},1721225.2233398794,null,null,{"$f":"IF(biopower_country<>\"Zambia\",\"Transportation and Warehousing\",\"\")","v":"Transportation and Warehousing"},{"$f":"Calculations!E34","v":0},{"$f":"Calculations!R34","v":6492974.2583720526},{"$f":"Calculations!S34","v":2850814.318908588},9343788.5772806406,null,null,{"$f":"IF(biopower_country<>\"Zambia\",\"Transportation and Warehousing\",\"\")","v":"Transportation and Warehousing"},{"$f":"Calculations!T34","v":0},{"$f":"Calculations!U34","v":3433539.1388388439},{"$f":"Calculations!V34","v":1507534.4752697395},4941073.614108583]
[null,{"$f":"IF(biopower_country<>\"Zambia\",\"Information\",\"\")","v":"Information"},{"$f":"Calculations!Z35","v":0},{"$f":"Calculations!AA35","v":6.5840622529944062},{"$f":"Calculations!AB35","v":12.090373234140591},18.674435487134996,null,null,{"$f":"IF(biopower_country<>\"Zambia\",\"Information\",\"\")","v":"Information"},{"$f":"Calculations!W35","v":0},{"$f":"Calculations!X35","v":117509.50409212406},{"$f":"Calculations!Y35","v":215783.76820273939},333293.27229486348,null,null,{"$f":"IF(biopower_country<>\"Zambia\",\"Information\",\"\")","v":"Information"},{"$f":"Calculations!E35","v":0},{"$f":"Calculations!R35","v":884276.27447670954},{"$f":"Calculations!S35","v":1623804.5434118484},2508080.8178885579,null,null,{"$f":"IF(biopower_country<>\"Zambia\",\"Information\",\"\")","v":"Information"},{"$f":"Calculations!T35","v":0},{"$f":"Calculations!U35","v":359087.90414915903},{"$f":"Calculations!V35","v":659396.37539941759},1018484.2795485766]
[null,"Finance, Professional, and Business Services",{"$f":"Calculations!Z36","v":0},{"$f":"Calculations!AA36","v":134.83088125158622},{"$f":"Calculations!AB36","v":404.14756961901793},538.97845087060409,null,null,"Finance, Professional, and Business Services",{"$f":"Calculations!W36","v":0},{"$f":"Calculations!X36","v":2170386.6831766288},{"$f":"Calculations!Y36","v":6694046.8488365756},8864433.5320132039,null,null,"Finance, Professional, and Business Services",{"$f":"Calculations!E36","v":0},{"$f":"Calculations!R36","v":8393728.31243168},{"$f":"Calculations!S36","v":18789557.242241766},27183285.554673448,null,null,"Finance, Professional, and Business Services",{"$f":"Calculations!T36","v":0},{"$f":"Calculations!U36","v":4495849.7346020825},{"$f":"Calculations!V36","v":10785805.058790652},15281654.793392735]
[null,{"$f":"IF(biopower_country<>\"Zambia\",\"Education and Health Care\",\"\")","v":"Education and Health Care"},{"$f":"Calculations!Z37","v":0},{"$f":"Calculations!AA37","v":2.5299365718556235},{"$f":"Calculations!AB37","v":23.076188447065476},25.606125018921098,null,null,{"$f":"IF(biopower_country<>\"Zambia\",\"Education and Health Care\",\"\")","v":"Education and Health Care"},{"$f":"Calculations!W37","v":0},{"$f":"Calculations!X37","v":42539.970592040809},{"$f":"Calculations!Y37","v":388017.78227765707},430557.75286969787,null,null,{"$f":"IF(biopower_country<>\"Zambia\",\"Education and Health Care\",\"\")","v":"Education and Health Care"},{"$f":"Calculations!E37","v":0},{"$f":"Calculations!R37","v":206979.38389198214},{"$f":"Calculations!S37","v":1781076.0268375489},1988055.4107295312,null,null,{"$f":"IF(biopower_country<>\"Zambia\",\"Education and Health Care\",\"\")","v":"Education and Health Care"},{"$f":"Calculations!T37","v":0},{"$f":"Calculations!U37","v":95927.985472397064},{"$f":"Calculations!V37","v":844707.62186322722},940635.60733562429]
[null,"Other",{"$f":"Calculations!Z38","v":0},{"$f":"Calculations!AA38","v":40.565685714521848},{"$f":"Calculations!AB38","v":71.757396778071936},112.32308249259378,null,null,"Other",{"$f":"Calculations!W38","v":0},{"$f":"Calculations!X38","v":660072.89739977696},{"$f":"Calculations!Y38","v":1154920.3335362808},1814993.2309360579,null,null,"Other",{"$f":"Calculations!E38","v":0},{"$f":"Calculations!R38","v":1781785.4463963157},{"$f":"Calculations!S38","v":37166817.153669678},38948602.600065991,null,null,"Other",{"$f":"Calculations!T38","v":0},{"$f":"Calculations!U38","v":1210651.3177617667},{"$f":"Calculations!V38","v":2132380.8319976386},3343032.1497594053]
[null,"Total",{"$f":"Calculations!Z39","v":557.8154476914591},{"$f":"Calculations!AA39","v":685.239552411251},{"$f":"Calculations!AB39","v":861.42758191951214},2104.4825820222222,null,null,"Total",{"$f":"Calculations!W39","v":11195491.377065569},{"$f":"Calculations!X39","v":10019639.386228835},{"$f":"Calculations!Y39","v":12777370.923234284},33992501.68652869,null,null,"Total",{"$f":"Calculations!E39","v":70816129.605341107},{"$f":"Calculations!R39","v":48273484.413442999},{"$f":"Calculations!S39","v":83494115.904405743},202583729.92318985,null,null,"Total",{"$f":"Calculations!T39","v":34301202.449920699},{"$f":"Calculations!U39","v":23449789.197698426},{"$f":"Calculations!V39","v":24049926.208507992},81800917.856127113]

{"sheet":"Geothermal-Inputs","index":8,"n_rows":48,"n_cols":5,"rows_kept":48,"cut":false,"hidden":false,"merged":[]}
["I-JEDI - Geothermal","Project Inputs",null,null,"Click for Help"]
[]
["Project Description"]
["Country","Mexico"]
["Project Size (MW)",150]
["Drilling depth (m)",3000,{"$f":"IF(B6>3000,\"Default costs assume a well up to 3,000m deep. You are encouraged to customize drilling costs for wells deeper than 3,000m.\",\"\")","v":""}]
["Resource temperature (degrees celsius)",200]
["Number of exploration drills per production drill",2]
["Number of production drills",1]
["Dollar Year",2012]
[]
[]
[]
[]
["Geothermal Facility Construction"]
["Drilling",{"$f":"\"Expenditures ($\"&B10&\")\"","v":"Expenditures ($2012)"},{"$f":"\"% Spent in \"&B4","v":"% Spent in Mexico"}]
["Site preparation",{"$f":"'Default-Data'!G229","v":107763.81896194517},{"$f":"'Default-Data'!I229","v":1}]
["Rig operator and drilling services",{"$f":"'Default-Data'!G230","v":4052073.5412819409},{"$f":"'Default-Data'!I230","v":1}]
["Cement and cement additives",{"$f":"'Default-Data'!G231","v":67184.583190260702},{"$f":"'Default-Data'!I231","v":0.9}]
["Petroleum",{"$f":"'Default-Data'!G232","v":421665.03412288858},{"$f":"'Default-Data'!I232","v":1}]
["Bits and stabilizers",{"$f":"'Default-Data'!G233","v":280185.92930105742},{"$f":"'Default-Data'!I233","v":0.9}]
["Mud and detergents",{"$f":"'Default-Data'!G234","v":88924.240234392317},{"$f":"'Default-Data'!I234","v":0.8}]
["Casing and wellhead",{"$f":"'Default-Data'!G235","v":1068297.7942357138},{"$f":"'Default-Data'!I235","v":0.8}]
["Worker housing",{"$f":"'Default-Data'!G236","v":126283.80099211945},{"$f":"'Default-Data'!I236","v":1}]
["Professional services (engineers, geologists, supervisors, etc.)",{"$f":"'Default-Data'!G237","v":545110.32377759728},{"$f":"'Default-Data'!I237","v":0.9}]
["Drilling subtotal",{"$f":"SUM(B17:B25)","v":6757489.0660979161}]
[]
["Other",{"$f":"\"Expenditures ($\"&B10&\")\"","v":"Expenditures ($2012)"},{"$f":"\"% Spent in \"&B4","v":"% Spent in Mexico"}]
["Engineering and design",{"$f":"'Default-Data'!E246","v":91459200},{"$f":"'Default-Data'!G246","v":0.6}]
["Mechanical equipment (turbines, generators, pumps, condensers, heat exchangers)",{"$f":"'Default-Data'!E247","v":83953380.463945076},{"$f":"'Default-Data'!G247","v":0}]
["Permitting and environmental assessment",{"$f":"'Default-Data'!E248","v":149771.78765937407},{"$f":"'Default-Data'!G248","v":1}]
["Additional civil works (i.e., roads)",{"$f":"'Default-Data'!E249","v":0},{"$f":"'Default-Data'!G249","v":1}]
["Other subtotal",{"$f":"SUM(B29:B32)","v":175562352.25160447}]
[]
["Construction total",{"$f":"B33+B26","v":182319841.31770238}]
[]
[]
["Operations and Maintenance (O&M)"]
[null,{"$f":"\"Expenditures ($\"&B10&\")\"","v":"Expenditures ($2012)"},{"$f":"\"% Spent in \"&B4","v":"% Spent in Mexico"}]
["Plant operations, excluding equipment and field operations",{"$f":"'Default-Data'!C268","v":395096.88011609885},{"$f":"'Default-Data'!E268","v":1}]
["Civil works maintenance",{"$f":"'Default-Data'!C269","v":0},{"$f":"'Default-Data'!E269","v":1}]
["Equipment",{"$f":"'Default-Data'!C270","v":3511247.0450320896},{"$f":"'Default-Data'!E270","v":0}]
["Field operations, including well equipment",{"$f":"'Default-Data'!C271","v":304087.00797440618},{"$f":"'Default-Data'!E271","v":0.9525426549145577}]
[]
["O&M Total",{"$f":"SUM(B40:B43)","v":4210430.9331225948}]
[]
[]
[null,"Click arrow to go to results"]

{"sheet":"Geothermal-Results","index":9,"n_rows":61,"n_cols":27,"rows_kept":61,"cut":false,"hidden":false,"merged":[[0,0,0,2],[1,0,1,2],[2,0,2,2]]}
["I-JEDI - Geothermal",null,null,null,null,"Click for Help"]
["Estimated Gross Economic Impacts",null,null,null,null,"Return to Inputs"]
[{"$f":"'Geothermal-Inputs'!B4","v":"Mexico"}]
[]
[null,"Nameplate capacity (MW)",{"$f":"'Geothermal-Inputs'!B5","v":150}]
[null,"Production wells",{"$f":"'Geothermal-Inputs'!B9","v":1}]
[null,"Dollar year",{"$f":"'Geothermal-Inputs'!B10","v":2012}]
[]
[]
[]
[null,"Impact Totals"]
[null,"Construction Phase (Single Year Equivalent)",null,"( $ 2014 US)"]
[null,null,"Jobs","Earnings","Output","GDP (Value Added)"]
[null,"Direct",{"$f":"TRANSPOSE(Calculations!O83:Q83)","v":6701.466964716964},{"$f":"TRANSPOSE(Calculations!L83:N83)","v":37894230.211922988},{"$f":"Calculations!D83","v":61462088.363236368},{"$f":"TRANSPOSE(Calculations!I83:K83)","v":37894230.211922988}]
[null,"Indirect",882.45024855069732,4462813.0285488274,{"$f":"TRANSPOSE(Calculations!G83:H83)","v":31984425.585995067},18593808.231290814]
[null,"Induced",2310.3316845726413,6422808.467236096,52401009.235402897,18808434.584061835]
[null,"Total",{"$f":"SUM(C14:C16)","v":9894.2488978403017},48779851.707707912,145847523.18463433,{"$f":"SUM(F14:F16)","v":75296473.027275637}]
[]
[null,"Operations and Maintenance Phase (Annual, Ongoing)",null,"( $ 2014 US)"]
[null,null,"Jobs","Earnings","Output","GDP"]
[null,"Direct",{"$f":"TRANSPOSE(Calculations!Z83:AB83)","v":3.2014550167022917},{"$f":"TRANSPOSE(Calculations!W83:Y83)","v":58164.858844761198},{"$f":"Calculations!E83","v":684752.72601706395},{"$f":"TRANSPOSE(Calculations!T83:V83)","v":426110.43424215494}]
[null,"Indirect",7.2123375570663297,40210.985866343886,{"$f":"TRANSPOSE(Calculations!R83:S83)","v":353370.03618784033},193792.0446226825]
[null,"Induced",13.285924809190817,36935.367735008811,301340.22455570381,108160.85384235797]
[null,"Total",{"$f":"SUM(C21:C23)","v":23.699717382959438},135311.21244611387,1339462.9867606082,{"$f":"SUM(F21:F23)","v":728063.33270719543}]
[]
[]
[null,"Detailed Impacts"]
[null,"Construction"]
[null,null,"Jobs",null,null,null,null,null,null,{"$f":"\"Earnings ($\"&'Geothermal-Inputs'!B10&\" US)\"","v":"Earnings ($2012 US)"},null,null,null,null,null,null,"Output ($2014 US)",null,null,null,null,null,null,"GDP ($2014 US)"]
[null,null,"Direct","Indirect","Induced","Total",null,null,null,"Direct","Indirect","Induced","Total",null,null,null,"Direct","Indirect","Induced","Total",null,null,null,"Direct","Indirect","Induced","Total"]
[null,"Agriculture",{"$f":"Calculations!O72","v":0},{"$f":"Calculations!P72","v":5.37819621210223},{"$f":"Calculations!Q72","v":121.66013164179387},{"$f":"SUM(C31:E31)","v":127.03832785389609},null,null,"Agriculture",{"$f":"Calculations!L72","v":0},{"$f":"Calculations!M72","v":5464.4535472250709},{"$f":"Calculations!N72","v":123611.35809993258},{"$f":"SUM(J31:L31)","v":129075.81164715765},null,null,"Agriculture",{"$f":"Calculations!D72","v":0},{"$f":"Calculations!G72","v":54390.165204699435},{"$f":"Calculations!H72","v":1230359.4732993485},{"$f":"SUM(Q31:S31)","v":1284749.6385040479},null,null,"Agriculture",{"$f":"Calculations!T72","v":0},{"$f":"Calculations!U72","v":422.7200572066784},{"$f":"Calculations!V72","v":4315.0976685423002},{"$f":"SUM(X31:Z31)","v":4737.8177257489788}]
[null,"Mining and Extraction",{"$f":"Calculations!O73","v":232.63024090414245},{"$f":"Calculations!P73","v":13.127733786758485},{"$f":"Calculations!Q73","v":1.9564621138099272},{"$f":"SUM(C32:E32)","v":247.71443680471086},null,null,"Mining and Extraction",{"$f":"Calculations!L73","v":4317099.1687244391},{"$f":"Calculations!M73","v":243621.50164906436},{"$f":"Calculations!N73","v":36307.57949758583},{"$f":"SUM(J32:L32)","v":4597028.2498710891},null,null,"Mining and Extraction",{"$f":"Calculations!D73","v":5014475.5956324572},{"$f":"Calculations!G73","v":4559572.4658072433},{"$f":"Calculations!H73","v":679525.57002037391},{"$f":"SUM(Q32:S32)","v":10253573.631460074},null,null,"Mining and Extraction",{"$f":"Calculations!T73","v":249372.63881478983},{"$f":"Calculations!U73","v":54434.517037618636},{"$f":"Calculations!V73","v":3364.2616313003577},{"$f":"SUM(X32:Z32)","v":307171.41748370882}]
[null,"Utilities",{"$f":"Calculations!O74","v":686.78208283436925},{"$f":"Calculations!P74","v":5.7964560993692},{"$f":"Calculations!Q74","v":3.886782994006412},696.46532192774487,null,null,"Utilities",{"$f":"Calculations!L74","v":12383400.575138837},{"$f":"Calculations!M74","v":104516.17709428024},{"$f":"Calculations!N74","v":70082.770017497271},12557999.522250615,null,null,"Utilities",{"$f":"Calculations!D74","v":27683059.645699918},{"$f":"Calculations!G74","v":967337.52330542356},{"$f":"Calculations!H74","v":648643.06234579533},29299040.231351137,null,null,"Utilities",{"$f":"Calculations!T74","v":176737.79542736511},{"$f":"Calculations!U74","v":4181.5083711262923},{"$f":"Calculations!V74","v":1668.5878104206956},182587.89160891209]
[null,"Construction",{"$f":"Calculations!O75","v":0},{"$f":"Calculations!P75","v":10.212657237501775},{"$f":"Calculations!Q75","v":3.3616308916069033},13.574288129108679,null,null,"Construction",{"$f":"Calculations!L75","v":0},{"$f":"Calculations!M75","v":29104.657821039837},{"$f":"Calculations!N75","v":9580.182174486592},38684.839995526432,null,null,"Construction",{"$f":"Calculations!D75","v":0},{"$f":"Calculations!G75","v":131574.81426040066},{"$f":"Calculations!H75","v":43309.586319123395},174884.40057952405,null,null,"Construction",{"$f":"Calculations!T75","v":0},{"$f":"Calculations!U75","v":1191.7079646637096},{"$f":"Calculations!V75","v":125.26215015006102},1316.9701148137706]
[null,"Manufacturing",{"$f":"Calculations!O76","v":31.738704124429713},{"$f":"Calculations!P76","v":65.673140624681054},{"$f":"Calculations!Q76","v":105.9168184218053},203.32866317091606,null,null,"Manufacturing",{"$f":"Calculations!L76","v":199518.43685542638},{"$f":"Calculations!M76","v":667364.82010566071},{"$f":"Calculations!N76","v":533878.86305485875},1400762.1200159458,null,null,"Manufacturing",{"$f":"Calculations!D76","v":805437.88755258871},{"$f":"Calculations!G76","v":10995926.189560201},{"$f":"Calculations!H76","v":7085541.4676453127},18886905.544758104,null,null,"Manufacturing",{"$f":"Calculations!T76","v":0},{"$f":"Calculations!U76","v":35135.866205587314},{"$f":"Calculations!V76","v":13799.019395749265},48934.88560133658]
[null,{"$f":"IF(geo_country<>\"Zambia\",\"Sales\",\"Trade, Transportation, and Warehousing\")","v":"Sales"},{"$f":"Calculations!O77","v":0},{"$f":"Calculations!P77","v":154.1330310097506},{"$f":"Calculations!Q77","v":135.2109604053262},289.3439914150768,null,null,{"$f":"IF(geo_country<>\"Zambia\",\"Sales\",\"Trade, Transportation, and Warehousing\")","v":"Sales"},{"$f":"Calculations!L77","v":0},{"$f":"Calculations!M77","v":731384.86787050904},{"$f":"Calculations!N77","v":641596.7412230944},1372981.6090936034,null,null,{"$f":"IF(geo_country<>\"Zambia\",\"Sales\",\"Trade, Transportation, and Warehousing\")","v":"Sales"},{"$f":"Calculations!D77","v":0},{"$f":"Calculations!G77","v":4769948.3874054607},{"$f":"Calculations!H77","v":4184367.8692345265},8954316.2566399872,null,null,{"$f":"IF(geo_country<>\"Zambia\",\"Sales\",\"Trade, Transportation, and Warehousing\")","v":"Sales"},{"$f":"Calculations!T77","v":0},{"$f":"Calculations!U77","v":47299.924242593421},{"$f":"Calculations!V77","v":18323.103490149366},65623.02773274279]
[null,{"$f":"IF(geo_country<>\"Zambia\",\"Transportation and Warehousing\",\"\")","v":"Transportation and Warehousing"},{"$f":"Calculations!O78","v":0},{"$f":"Calculations!P78","v":48.587762763631723},{"$f":"Calculations!Q78","v":80.679120768213295},129.26688353184502,null,null,{"$f":"IF(geo_country<>\"Zambia\",\"Transportation and Warehousing\",\"\")","v":"Transportation and Warehousing"},{"$f":"Calculations!L78","v":0},{"$f":"Calculations!M78","v":343322.25241877674},{"$f":"Calculations!N78","v":570080.52830212528},913402.78072090202,null,null,{"$f":"IF(geo_country<>\"Zambia\",\"Transportation and Warehousing\",\"\")","v":"Transportation and Warehousing"},{"$f":"Calculations!D78","v":0},{"$f":"Calculations!G78","v":1456011.4095992849},{"$f":"Calculations!H78","v":2417681.1952923276},3873692.6048916122,null,null,{"$f":"IF(geo_country<>\"Zambia\",\"Transportation and Warehousing\",\"\")","v":"Transportation and Warehousing"},{"$f":"Calculations!T78","v":0},{"$f":"Calculations!U78","v":11954.686602512251},{"$f":"Calculations!V78","v":10161.820873900539},22116.507476412789]
[null,{"$f":"IF(geo_country<>\"Zambia\",\"Information\",\"\")","v":"Information"},{"$f":"Calculations!O79","v":0},{"$f":"Calculations!P79","v":9.51322172764573},{"$f":"Calculations!Q79","v":12.275491897379272},21.788713625025004,null,null,{"$f":"IF(geo_country<>\"Zambia\",\"Information\",\"\")","v":"Information"},{"$f":"Calculations!L79","v":0},{"$f":"Calculations!M79","v":113904.19688821075},{"$f":"Calculations!N79","v":146977.55250625795},260881.7493944687,null,null,{"$f":"IF(geo_country<>\"Zambia\",\"Information\",\"\")","v":"Information"},{"$f":"Calculations!D79","v":0},{"$f":"Calculations!G79","v":730272.42203742871},{"$f":"Calculations!H79","v":942315.17526276107},1672587.5973001898,null,null,{"$f":"IF(geo_country<>\"Zambia\",\"Information\",\"\")","v":"Information"},{"$f":"Calculations!T79","v":0},{"$f":"Calculations!U79","v":1883.6631484265667},{"$f":"Calculations!V79","v":3306.3112699697126},5189.9744183962794]
[null,"Finance, Professional, and Business Services",{"$f":"Calculations!O80","v":5683.5453724601812},{"$f":"Calculations!P80","v":513.45195195867939},{"$f":"Calculations!Q80","v":1082.2621030749053},7279.2594274937655,null,null,"Finance, Professional, and Business Services",{"$f":"Calculations!L80","v":20901339.087737188},{"$f":"Calculations!M80","v":2108909.4114717301},{"$f":"Calculations!N80","v":2073192.7678201345},25083441.267029054,null,null,"Finance, Professional, and Business Services",{"$f":"Calculations!D80","v":27832831.433359291},{"$f":"Calculations!G80","v":7880082.1519948822},{"$f":"Calculations!H80","v":7424862.9286685865},43137776.51402276,null,null,"Finance, Professional, and Business Services",{"$f":"Calculations!T80","v":0},{"$f":"Calculations!U80","v":35104.62146814783},{"$f":"Calculations!V80","v":33746.244089105603},68850.865557253434]
[null,{"$f":"IF(geo_country<>\"Zambia\",\"Education and Health Care\",\"\")","v":"Education and Health Care"},{"$f":"Calculations!O81","v":0},{"$f":"Calculations!P81","v":13.991989713256636},{"$f":"Calculations!Q81","v":598.14062270052443},612.13261241378109,null,null,{"$f":"IF(geo_country<>\"Zambia\",\"Education and Health Care\",\"\")","v":"Education and Health Care"},{"$f":"Calculations!L81","v":0},{"$f":"Calculations!M81","v":55910.410286775266},{"$f":"Calculations!N81","v":1885224.5793100842},1941134.9895968596,null,null,{"$f":"IF(geo_country<>\"Zambia\",\"Education and Health Care\",\"\")","v":"Education and Health Care"},{"$f":"Calculations!D81","v":0},{"$f":"Calculations!G81","v":72260.587842297362},{"$f":"Calculations!H81","v":2818705.0454615215},2890965.6333038188,null,null,{"$f":"IF(geo_country<>\"Zambia\",\"Education and Health Care\",\"\")","v":"Education and Health Care"},{"$f":"Calculations!T81","v":0},{"$f":"Calculations!U81","v":523.9383540474372},{"$f":"Calculations!V81","v":13516.198846863066},14040.137200910503]
[null,"Other",{"$f":"Calculations!O82","v":66.770564393841639},{"$f":"Calculations!P82","v":42.584107417320553},{"$f":"Calculations!Q82","v":164.9815596632701},274.33623147443228,null,null,"Other",{"$f":"Calculations!L82","v":92872.943467094083},{"$f":"Calculations!M82","v":59310.279395556121},{"$f":"Calculations!N82","v":332275.54523003823},484458.76809268841,null,null,"Other",{"$f":"Calculations!D82","v":126283.80099211945},{"$f":"Calculations!G82","v":367049.46897774294},{"$f":"Calculations!H82","v":24925697.861853216},25419031.131823078,null,null,"Other",{"$f":"Calculations!T82","v":0},{"$f":"Calculations!U82","v":1658.8911707523425},{"$f":"Calculations!V82","v":5834.9466162070021},7493.8377869593442]
[null,"Total",{"$f":"SUM(C31:C41)","v":6701.466964716964},{"$f":"SUM(D31:D41)","v":882.45024855069732},2310.3316845726413,null,null,null,"Total",{"$f":"SUM(J31:J41)","v":37894230.211922988},{"$f":"SUM(K31:K41)","v":4462813.0285488274},6422808.467236096,null,null,null,"Total",{"$f":"SUM(Q31:Q41)","v":61462088.363236368},{"$f":"SUM(R31:R41)","v":31984425.585995067},52401009.235402897,null,null,null,"Total",{"$f":"SUM(X31:X41)","v":426110.43424215494},{"$f":"SUM(Y31:Y41)","v":193792.0446226825},108160.85384235797]
[]
[]
[]
[null,"Detailed Impacts"]
[null,"O&M"]
[null,null,"Jobs",null,null,null,null,null,null,{"$f":"\"Earnings ($\"&'Geothermal-Inputs'!B10&\" US)\"","v":"Earnings ($2012 US)"},null,null,null,null,null,null,"Output ($2014 US)",null,null,null,null,null,null,"GDP ($2014 US)"]
[null,null,"Direct","Indirect","Induced","Total",null,null,null,"Direct","Indirect","Induced","Total",null,null,null,"Direct","Indirect","Induced","Total",null,null,null,"Direct","Indirect","Induced","Total"]
[null,"Agriculture",{"$f":"Calculations!Z72","v":0},{"$f":"Calculations!AA72","v":6.8537453268326276E-2},{"$f":"Calculations!AB72","v":0.69962567369114459},{"$f":"SUM(C50:E50)","v":0.76816312695947087},null,null,"Agriculture",{"$f":"Calculations!W72","v":0},{"$f":"Calculations!X72","v":69.636680191607553},{"$f":"Calculations!Y72","v":710.8465075573996},{"$f":"SUM(J50:L50)","v":780.48318774900713},null,null,"Agriculture",{"$f":"Calculations!E72","v":0},{"$f":"Calculations!R72","v":693.12521502753532},{"$f":"Calculations!S72","v":7075.3751765104225},{"$f":"SUM(Q50:S50)","v":7768.5003915379575},null,null,"Agriculture",{"$f":"Calculations!T72","v":0},{"$f":"Calculations!U72","v":422.7200572066784},{"$f":"Calculations!V72","v":4315.0976685423002},{"$f":"SUM(X50:Z50)","v":4737.8177257489788}]
[null,"Mining and Extraction",{"$f":"Calculations!Z73","v":0.83396521566041093},{"$f":"Calculations!AA73","v":0.18204280131295444},{"$f":"Calculations!AB73","v":1.1250942325590249E-2},{"$f":"SUM(C51:E51)","v":1.0272589592989556},null,null,"Mining and Extraction",{"$f":"Calculations!W73","v":15476.537036971906},{"$f":"Calculations!X73","v":3378.3089557314274},{"$f":"Calculations!Y73","v":208.79243202600904},{"$f":"SUM(J51:L51)","v":19063.638424729343},null,null,"Mining and Extraction",{"$f":"Calculations!E73","v":289655.84590096516},{"$f":"Calculations!R73","v":63227.770912158303},{"$f":"Calculations!S73","v":3907.7183979683323},{"$f":"SUM(Q51:S51)","v":356791.33521109179},null,null,"Mining and Extraction",{"$f":"Calculations!T73","v":249372.63881478983},{"$f":"Calculations!U73","v":54434.517037618636},{"$f":"Calculations!V73","v":3364.2616313003577},{"$f":"SUM(X51:Z51)","v":307171.41748370882}]
[null,"Utilities",{"$f":"Calculations!Z74","v":2.3674898010418808},{"$f":"Calculations!AA74","v":5.6013363738495144E-2},{"$f":"Calculations!AB74","v":2.2351555386110399E-2},2.4458547201664862,null,null,"Utilities",{"$f":"Calculations!W74","v":42688.321807789296},{"$f":"Calculations!X74","v":1009.9796399348195},{"$f":"Calculations!Y74","v":403.02196394130436},44101.32341166542,null,null,"Utilities",{"$f":"Calculations!E74","v":395096.88011609885},{"$f":"Calculations!R74","v":9347.7510433829157},{"$f":"Calculations!S74","v":3730.1236925743287},408174.7548520561,null,null,"Utilities",{"$f":"Calculations!T74","v":176737.79542736511},{"$f":"Calculations!U74","v":4181.5083711262923},{"$f":"Calculations!V74","v":1668.5878104206956},182587.89160891209]
[null,"Construction",{"$f":"Calculations!Z75","v":0},{"$f":"Calculations!AA75","v":0.18391513141613347},{"$f":"Calculations!AB75","v":1.9331585832622126E-2},0.20324671724875559,null,null,"Construction",{"$f":"Calculations!W75","v":0},{"$f":"Calculations!X75","v":524.13263693235831},{"$f":"Calculations!Y75","v":55.092340584041921},579.22497751640026,null,null,"Construction",{"$f":"Calculations!E75","v":0},{"$f":"Calculations!R75","v":2369.4714013210551},{"$f":"Calculations!S75","v":249.05857076511984},2618.5299720861749,null,null,"Construction",{"$f":"Calculations!T75","v":0},{"$f":"Calculations!U75","v":1191.7079646637096},{"$f":"Calculations!V75","v":125.26215015006102},1316.9701148137706]
[null,"Manufacturing",{"$f":"Calculations!Z76","v":0},{"$f":"Calculations!AA76","v":0.77922357971626111},{"$f":"Calculations!AB76","v":0.6090912811253435},1.3883148608416045,null,null,"Manufacturing",{"$f":"Calculations!W76","v":0},{"$f":"Calculations!X76","v":8347.1131968275731},{"$f":"Calculations!Y76","v":3070.1541597371097},11417.267356564684,null,null,"Manufacturing",{"$f":"Calculations!E76","v":0},{"$f":"Calculations!R76","v":146646.24943391123},{"$f":"Calculations!S76","v":40746.517826920877},187392.7672608321,null,null,"Manufacturing",{"$f":"Calculations!T76","v":0},{"$f":"Calculations!U76","v":35135.866205587314},{"$f":"Calculations!V76","v":13799.019395749265},48934.88560133658]
[null,{"$f":"IF(geo_country<>\"Zambia\",\"Sales\",\"Trade, Transportation, and Warehousing\")","v":"Sales"},{"$f":"Calculations!Z77","v":0},{"$f":"Calculations!AA77","v":2.0072005360008944},{"$f":"Calculations!AB77","v":0.77755184042153447},2.7847523764224289,null,null,{"$f":"IF(geo_country<>\"Zambia\",\"Sales\",\"Trade, Transportation, and Warehousing\")","v":"Sales"},{"$f":"Calculations!W77","v":0},{"$f":"Calculations!X77","v":9524.4743400897623},{"$f":"Calculations!Y77","v":3689.60271749408},13214.077057583843,null,null,{"$f":"IF(geo_country<>\"Zambia\",\"Sales\",\"Trade, Transportation, and Warehousing\")","v":"Sales"},{"$f":"Calculations!E77","v":0},{"$f":"Calculations!R77","v":62116.750038420825},{"$f":"Calculations!S77","v":24062.863897798903},86179.613936219728,null,null,{"$f":"IF(geo_country<>\"Zambia\",\"Sales\",\"Trade, Transportation, and Warehousing\")","v":"Sales"},{"$f":"Calculations!T77","v":0},{"$f":"Calculations!U77","v":47299.924242593421},{"$f":"Calculations!V77","v":18323.103490149366},65623.02773274279]
[null,{"$f":"IF(geo_country<>\"Zambia\",\"Transportation and Warehousing\",\"\")","v":"Transportation and Warehousing"},{"$f":"Calculations!Z78","v":0},{"$f":"Calculations!AA78","v":0.5458147564645569},{"$f":"Calculations!AB78","v":0.46395794134485235},1.0097726978094093,null,null,{"$f":"IF(geo_country<>\"Zambia\",\"Transportation and Warehousing\",\"\")","v":"Transportation and Warehousing"},{"$f":"Calculations!W78","v":0},{"$f":"Calculations!X78","v":3856.7396590048543},{"$f":"Calculations!Y78","v":3278.3375152502585},7135.0771742551133,null,null,{"$f":"IF(geo_country<>\"Zambia\",\"Transportation and Warehousing\",\"\")","v":"Transportation and Warehousing"},{"$f":"Calculations!E78","v":0},{"$f":"Calculations!R78","v":16356.227735904269},{"$f":"Calculations!S78","v":13903.255012143478},30259.482748047747,null,null,{"$f":"IF(geo_country<>\"Zambia\",\"Transportation and Warehousing\",\"\")","v":"Transportation and Warehousing"},{"$f":"Calculations!T78","v":0},{"$f":"Calculations!U78","v":11954.686602512251},{"$f":"Calculations!V78","v":10161.820873900539},22116.507476412789]
[null,{"$f":"IF(geo_country<>\"Zambia\",\"Information\",\"\")","v":"Information"},{"$f":"Calculations!Z79","v":0},{"$f":"Calculations!AA79","v":4.0217573481846319E-2},{"$f":"Calculations!AB79","v":7.0592141999983163E-2},0.11080971548182948,null,null,{"$f":"IF(geo_country<>\"Zambia\",\"Information\",\"\")","v":"Information"},{"$f":"Calculations!W79","v":0},{"$f":"Calculations!X79","v":481.53512441846243},{"$f":"Calculations!Y79","v":845.21747430315418},1326.7525987216166,null,null,{"$f":"IF(geo_country<>\"Zambia\",\"Information\",\"\")","v":"Information"},{"$f":"Calculations!E79","v":0},{"$f":"Calculations!R79","v":3087.2595673563073},{"$f":"Calculations!S79","v":5418.9312507378536},8506.1908180941609,null,null,{"$f":"IF(geo_country<>\"Zambia\",\"Information\",\"\")","v":"Information"},{"$f":"Calculations!T79","v":0},{"$f":"Calculations!U79","v":1883.6631484265667},{"$f":"Calculations!V79","v":3306.3112699697126},5189.9744183962794]
[null,"Finance, Professional, and Business Services",{"$f":"Calculations!Z80","v":0},{"$f":"Calculations!AA80","v":2.9590554428322893},{"$f":"Calculations!AB80","v":6.2237180147359084},9.1827734575681976,null,null,"Finance, Professional, and Business Services",{"$f":"Calculations!W80","v":0},{"$f":"Calculations!X80","v":12181.252805029515},{"$f":"Calculations!Y80","v":11922.220264797827},24103.473069827342,null,null,"Finance, Professional, and Business Services",{"$f":"Calculations!E80","v":0},{"$f":"Calculations!R80","v":46627.569107921125},{"$f":"Calculations!S80","v":42697.839123080841},89325.408231001958,null,null,"Finance, Professional, and Business Services",{"$f":"Calculations!T80","v":0},{"$f":"Calculations!U80","v":35104.62146814783},{"$f":"Calculations!V80","v":33746.244089105603},68850.865557253434]
[null,{"$f":"IF(geo_country<>\"Zambia\",\"Education and Health Care\",\"\")","v":"Education and Health Care"},{"$f":"Calculations!Z81","v":0},{"$f":"Calculations!AA81","v":0.11307471145813361},{"$f":"Calculations!AB81","v":3.4397014903042953},3.5527762017624287,null,null,{"$f":"IF(geo_country<>\"Zambia\",\"Education and Health Care\",\"\")","v":"Education and Health Care"},{"$f":"Calculations!W81","v":0},{"$f":"Calculations!X81","v":451.8337734834941},{"$f":"Calculations!Y81","v":10841.279707327089},11293.113480810583,null,null,{"$f":"IF(geo_country<>\"Zambia\",\"Education and Health Care\",\"\")","v":"Education and Health Care"},{"$f":"Calculations!E81","v":0},{"$f":"Calculations!R81","v":583.96591817970454},{"$f":"Calculations!S81","v":16209.405577284377},16793.371495464082,null,null,{"$f":"IF(geo_country<>\"Zambia\",\"Education and Health Care\",\"\")","v":"Education and Health Care"},{"$f":"Calculations!T81","v":0},{"$f":"Calculations!U81","v":523.9383540474372},{"$f":"Calculations!V81","v":13516.198846863066},14040.137200910503]
[null,"Other",{"$f":"Calculations!Z82","v":0},{"$f":"Calculations!AA82","v":0.27724220737643879},{"$f":"Calculations!AB82","v":0.94875234202343306},1.2259945493998718,null,null,"Other",{"$f":"Calculations!W82","v":0},{"$f":"Calculations!X82","v":385.9790547000116},{"$f":"Calculations!Y82","v":1910.8026519905395},2296.7817066905509,null,null,"Other",{"$f":"Calculations!E82","v":0},{"$f":"Calculations!R82","v":2313.8958142570414},{"$f":"Calculations!S82","v":143339.13602991926},145653.03184417629,null,null,"Other",{"$f":"Calculations!T82","v":0},{"$f":"Calculations!U82","v":1658.8911707523425},{"$f":"Calculations!V82","v":5834.9466162070021},7493.8377869593442]
[null,"Total",{"$f":"SUM(C50:C60)","v":3.2014550167022917},{"$f":"SUM(D50:D60)","v":7.2123375570663297},13.285924809190817,null,null,null,"Total",{"$f":"SUM(J50:J60)","v":58164.858844761198},{"$f":"SUM(K50:K60)","v":40210.985866343886},36935.367735008811,null,null,null,"Total",{"$f":"SUM(Q50:Q60)","v":684752.72601706395},{"$f":"SUM(R50:R60)","v":353370.03618784033},301340.22455570381,null,null,null,"Total",{"$f":"SUM(X50:X60)","v":426110.43424215494},{"$f":"SUM(Y50:Y60)","v":193792.0446226825},108160.85384235797]

{"sheet":"General Impact Estimates","index":10,"n_rows":51,"n_cols":31,"rows_kept":51,"cut":false,"hidden":false,"merged":[]}
[null,"General Impact Estimates",null,"Click for help"]
[]
[]
[null,"Select Country","Mexico",null,null,"Impact Totals"]
[null,"Currency Year",2012,null,null,null,null,{"$f":"\"( $ \"&general_dollar_year&\" US)\"","v":"( $ 2012 US)"}]
[null,null,null,null,null,null,"Jobs","Earnings","Output","GDP (Value Added)"]
[null,null,null,null,null,"Direct",{"$f":"TRANSPOSE(G28:J28)","v":4.5998210250756486},{"$f":"TRANSPOSE(N28:Q28)","v":46161.292871819183},{"$f":"TRANSPOSE(U28:X28)","v":1000000},{"$f":"TRANSPOSE(AB28:AE28)","v":376641.77335229964}]
[null,null,null,null,null,"Indirect",10.738857726654294,68714.359216087527,711674.19375827443,472749.4843909624]
[null,"Industry",{"$f":"\"Change in Final Demand ($ \"&general_dollar_year&\" )\"","v":"Change in Final Demand ($ 2012 )"},null,null,"Induced",15.514268574045644,43130.246719871851,351881.65243012097,126301.82390823217]
[2,{"$f":"HLOOKUP(general_country,'Default-Data'!$P$5:$X$47,'General Impact Estimates'!A10,FALSE)","v":" Agriculture, hunting, forestry and fishing"},0,null,null,"Total",30.852947325775588,158005.89880777855,2063555.8461883953,975693.08165149414]
[3,{"$f":"HLOOKUP(general_country,'Default-Data'!$P$5:$X$47,'General Impact Estimates'!A11,FALSE)","v":" Mining and quarrying"},0]
[4,{"$f":"HLOOKUP(general_country,'Default-Data'!$P$5:$X$47,'General Impact Estimates'!A12,FALSE)","v":"Manufacturing: Food products, beverages and tobacco"},0]
[5,{"$f":"HLOOKUP(general_country,'Default-Data'!$P$5:$X$47,'General Impact Estimates'!A13,FALSE)","v":"Manufacturing: Textiles, textile products, leather and footwear"},0]
[6,{"$f":"HLOOKUP(general_country,'Default-Data'!$P$5:$X$47,'General Impact Estimates'!A14,FALSE)","v":"Manufacturing: Wood and products of wood and cork"},0,null,null,"Detailed Impacts"]
[7,{"$f":"HLOOKUP(general_country,'Default-Data'!$P$5:$X$47,'General Impact Estimates'!A15,FALSE)","v":"Manufacturing: Pulp, paper, paper products, printing and publishing"},0,null,null,null,"Jobs",null,null,null,null,null,null,{"$f":"\"Earnings ( $ \"&general_dollar_year&\" US)\"","v":"Earnings ( $ 2012 US)"},null,null,null,null,null,null,{"$f":"\"Output ( $ \"&general_dollar_year&\" US)\"","v":"Output ( $ 2012 US)"},null,null,null,null,null,null,{"$f":"\"GDP ( $ \"&general_dollar_year&\" US)\"","v":"GDP ( $ 2012 US)"}]
[8,{"$f":"HLOOKUP(general_country,'Default-Data'!$P$5:$X$47,'General Impact Estimates'!A16,FALSE)","v":"Manufacturing: Coke, refined petroleum products and nuclear fuel"},0,null,null,null,"Direct","Indirect","Induced","Total",null,null,null,"Direct","Indirect","Induced","Total",null,null,null,"Direct","Indirect","Induced","Total",null,null,null,"Direct","Indirect","Induced","Total"]
[9,{"$f":"HLOOKUP(general_country,'Default-Data'!$P$5:$X$47,'General Impact Estimates'!A17,FALSE)","v":"Manufacturing: Chemicals and chemical products"},0,null,null,"Agriculture",{"$f":"Calculations!O94","v":0},{"$f":"Calculations!P94","v":7.3052670436000749E-2},{"$f":"Calculations!Q94","v":0.81696839014424016},{"$f":"SUM(G17:I17)","v":0.89002106058024089},null,null,"Agriculture",{"$f":"Calculations!L94","v":0},{"$f":"Calculations!M94","v":74.224313943769587},{"$f":"Calculations!N94","v":830.07120629937913},{"$f":"SUM(N17:P17)","v":904.29552024314876},null,null,"Agriculture",{"$f":"Calculations!D94","v":0},{"$f":"Calculations!G94","v":738.78799823583245},{"$f":"Calculations!H94","v":8262.0722551871713},{"$f":"SUM(U17:W17)","v":9000.8602534230031},null,null,"Agriculture",{"$f":"Calculations!I94","v":0},{"$f":"Calculations!J94","v":450.56866797935197},{"$f":"Calculations!K94","v":5038.8350916070558},{"$f":"SUM(AB17:AD17)","v":5489.4037595864074}]
[10,{"$f":"HLOOKUP(general_country,'Default-Data'!$P$5:$X$47,'General Impact Estimates'!A18,FALSE)","v":"Manufacturing: Rubber and plastics products"},0,null,null,"Mining and Extraction",{"$f":"Calculations!O95","v":0},{"$f":"Calculations!P95","v":0.822718116582832},{"$f":"Calculations!Q95","v":1.3137974469758963E-2},{"$f":"SUM(G18:I18)","v":0.83585609105259095},null,null,"Mining and Extraction",{"$f":"Calculations!L95","v":0},{"$f":"Calculations!M95","v":15267.815927069496},{"$f":"Calculations!N95","v":243.81154591801544},{"$f":"SUM(N18:P18)","v":15511.627472987511},null,null,"Mining and Extraction",{"$f":"Calculations!D95","v":0},{"$f":"Calculations!G95","v":285749.46235393884},{"$f":"Calculations!H95","v":4563.129297245061},{"$f":"SUM(U18:W18)","v":290312.5916511839},null,null,"Mining and Extraction",{"$f":"Calculations!I95","v":0},{"$f":"Calculations!J95","v":246009.52639316896},{"$f":"Calculations!K95","v":3928.5227976932974},{"$f":"SUM(AB18:AD18)","v":249938.04919086225}]
[11,{"$f":"HLOOKUP(general_country,'Default-Data'!$P$5:$X$47,'General Impact Estimates'!A19,FALSE)","v":"Manufacturing: Other non-metallic mineral products"},0,null,null,"Utilities",{"$f":"Calculations!O96","v":0},{"$f":"Calculations!P96","v":0.2314447569573648},{"$f":"Calculations!Q96","v":2.6100406128137098E-2},0.2575451630855019,null,null,"Utilities",{"$f":"Calculations!L96","v":0},{"$f":"Calculations!M96","v":4173.1914795888879},{"$f":"Calculations!N96","v":470.61767092791052},4643.8091505167986,null,null,"Utilities",{"$f":"Calculations!D96","v":0},{"$f":"Calculations!G96","v":38624.496440424569},{"$f":"Calculations!H96","v":4355.7480274896661},42980.244467914235,null,null,"Utilities",{"$f":"Calculations!I96","v":0},{"$f":"Calculations!J96","v":17277.808795571393},{"$f":"Calculations!K96","v":1948.4469317738101},19226.255727345204]
[12,{"$f":"HLOOKUP(general_country,'Default-Data'!$P$5:$X$47,'General Impact Estimates'!A20,FALSE)","v":"Manufacturing: Basic metals"},1000000,null,null,"Construction",{"$f":"Calculations!O97","v":0},{"$f":"Calculations!P97","v":0.10490809065023128},{"$f":"Calculations!Q97","v":2.2573920812952529E-2},0.1274820114631838,null,null,"Construction",{"$f":"Calculations!L97","v":0},{"$f":"Calculations!M97","v":298.97351982220385},{"$f":"Calculations!N97","v":64.332545943836053},363.30606576603992,null,null,"Construction",{"$f":"Calculations!D97","v":0},{"$f":"Calculations!G97","v":1351.5838454883872},{"$f":"Calculations!H97","v":290.83120768868412},1642.4150531770713,null,null,"Construction",{"$f":"Calculations!I97","v":0},{"$f":"Calculations!J97","v":679.76901205952663},{"$f":"Calculations!K97","v":146.27138626030171},826.04039831982834]
[13,{"$f":"HLOOKUP(general_country,'Default-Data'!$P$5:$X$47,'General Impact Estimates'!A21,FALSE)","v":"Manufacturing: Fabricated metal products"},0,null,null,"Manufacturing",{"$f":"Calculations!O98","v":4.5998210250756486},{"$f":"Calculations!P98","v":1.3533362532397075},{"$f":"Calculations!Q98","v":0.71124937535030641},6.6644066536656617,null,null,"Manufacturing",{"$f":"Calculations!L98","v":46161.292871819183},{"$f":"Calculations!M98","v":11118.286714615193},{"$f":"Calculations!N98","v":3585.0869910790821},60864.666577513453,null,null,"Manufacturing",{"$f":"Calculations!D98","v":1000000},{"$f":"Calculations!G98","v":196013.79891822612},{"$f":"Calculations!H98","v":47580.611067938764},1243594.4099861649,null,null,"Manufacturing",{"$f":"Calculations!I98","v":376641.77335229964},{"$f":"Calculations!J98","v":66091.441618145866},{"$f":"Calculations!K98","v":16113.420483610036},458846.6354540555]
[14,{"$f":"HLOOKUP(general_country,'Default-Data'!$P$5:$X$47,'General Impact Estimates'!A22,FALSE)","v":"Manufacturing: Machinery and equipment not classified elsewhere"},0,null,null,{"$f":"IF(general_country<>\"Zambia\",\"Sales\",\"Trade, Transportation, and Warehousing\")","v":"Sales"},{"$f":"Calculations!O99","v":0},{"$f":"Calculations!P99","v":3.0668931428890942},{"$f":"Calculations!Q99","v":0.90796450046128596},3.9748576433503802,null,null,{"$f":"IF(general_country<>\"Zambia\",\"Sales\",\"Trade, Transportation, and Warehousing\")","v":"Sales"},{"$f":"Calculations!L99","v":0},{"$f":"Calculations!M99","v":14552.878259709376},{"$f":"Calculations!N99","v":4308.4307876809398},18861.309047390314,null,null,{"$f":"IF(general_country<>\"Zambia\",\"Sales\",\"Trade, Transportation, and Warehousing\")","v":"Sales"},{"$f":"Calculations!D99","v":0},{"$f":"Calculations!G99","v":94911.012295237757},{"$f":"Calculations!H99","v":28098.738968694757},123009.75126393251,null,null,{"$f":"IF(general_country<>\"Zambia\",\"Sales\",\"Trade, Transportation, and Warehousing\")","v":"Sales"},{"$f":"Calculations!I99","v":0},{"$f":"Calculations!J99","v":72271.709137645797},{"$f":"Calculations!K99","v":21396.293652027936},93668.00278967373]
[15,{"$f":"HLOOKUP(general_country,'Default-Data'!$P$5:$X$47,'General Impact Estimates'!A23,FALSE)","v":"Manufacturing: Computer, Electronic and optical equipment"},0,null,null,{"$f":"IF(general_country<>\"Zambia\",\"Transportation and Warehousing\",\"\")","v":"Transportation and Warehousing"},{"$f":"Calculations!O100","v":0},{"$f":"Calculations!P100","v":0.9009032984420432},{"$f":"Calculations!Q100","v":0.54177396097455066},1.4426772594165937,null,null,{"$f":"IF(general_country<>\"Zambia\",\"Transportation and Warehousing\",\"\")","v":"Transportation and Warehousing"},{"$f":"Calculations!L100","v":0},{"$f":"Calculations!M100","v":6365.8034871311474},{"$f":"Calculations!N100","v":3828.1873048670145},10193.990791998162,null,null,{"$f":"IF(general_country<>\"Zambia\",\"Transportation and Warehousing\",\"\")","v":"Transportation and Warehousing"},{"$f":"Calculations!D100","v":0},{"$f":"Calculations!G100","v":26997.033962203343},{"$f":"Calculations!H100","v":16235.138720838317},43232.172683041659,null,null,{"$f":"IF(general_country<>\"Zambia\",\"Transportation and Warehousing\",\"\")","v":"Transportation and Warehousing"},{"$f":"Calculations!I100","v":0},{"$f":"Calculations!J100","v":19731.999665611009},{"$f":"Calculations!K100","v":11866.183235507724},31598.182901118733]
[16,{"$f":"HLOOKUP(general_country,'Default-Data'!$P$5:$X$47,'General Impact Estimates'!A24,FALSE)","v":"Manufacturing: Electrical machinery and apparatus not classified elsewhere"},0,null,null,{"$f":"IF(general_country<>\"Zambia\",\"Information\",\"\")","v":"Information"},{"$f":"Calculations!O101","v":0},{"$f":"Calculations!P101","v":3.9603240235918248E-2},{"$f":"Calculations!Q101","v":8.2432007250807932E-2},0.12203524748672617,null,null,{"$f":"IF(general_country<>\"Zambia\",\"Information\",\"\")","v":"Information"},{"$f":"Calculations!L101","v":0},{"$f":"Calculations!M101","v":474.17955792348471},{"$f":"Calculations!N101","v":986.97915938411097},1461.1587173075957,null,null,{"$f":"IF(general_country<>\"Zambia\",\"Information\",\"\")","v":"Information"},{"$f":"Calculations!D101","v":0},{"$f":"Calculations!G101","v":3040.1009243344301},{"$f":"Calculations!H101","v":6327.8060064044948},9367.9069307389254,null,null,{"$f":"IF(general_country<>\"Zambia\",\"Information\",\"\")","v":"Information"},{"$f":"Calculations!I101","v":0},{"$f":"Calculations!J101","v":1854.8897343186684},{"$f":"Calculations!K101","v":3860.8528776423354},5715.7426119610036]
[17,{"$f":"HLOOKUP(general_country,'Default-Data'!$P$5:$X$47,'General Impact Estimates'!A25,FALSE)","v":"Manufacturing: Motor vehicles, trailers and semi-trailers"},0,null,null,"Finance, Professional, and Business Services",{"$f":"Calculations!O102","v":0},{"$f":"Calculations!P102","v":3.8107216632985073},{"$f":"Calculations!Q102","v":7.2675733301564476},11.078294993454955,null,null,"Finance, Professional, and Business Services",{"$f":"Calculations!L102","v":0},{"$f":"Calculations!M102","v":15829.621376092404},{"$f":"Calculations!N102","v":13921.840582678151},29751.461958770553,null,null,"Finance, Professional, and Business Services",{"$f":"Calculations!D102","v":0},{"$f":"Calculations!G102","v":61553.856152582826},{"$f":"Calculations!H102","v":49859.212151240179},111413.06830382301,null,null,"Finance, Professional, and Business Services",{"$f":"Calculations!I102","v":0},{"$f":"Calculations!J102","v":46419.306331201216},{"$f":"Calculations!K102","v":39406.236425597534},85825.54275679875]
[18,{"$f":"HLOOKUP(general_country,'Default-Data'!$P$5:$X$47,'General Impact Estimates'!A26,FALSE)","v":"Manufacturing: Other transport equipment"},0,null,null,{"$f":"IF(general_country<>\"Zambia\",\"Education and Health Care\",\"\")","v":"Education and Health Care"},{"$f":"Calculations!O103","v":0},{"$f":"Calculations!P103","v":3.5561608111324902E-2},{"$f":"Calculations!Q103","v":4.0166155914272466},4.0521771995385718,null,null,{"$f":"IF(general_country<>\"Zambia\",\"Education and Health Care\",\"\")","v":"Education and Health Care"},{"$f":"Calculations!L103","v":0},{"$f":"Calculations!M103","v":142.10016878999849},{"$f":"Calculations!N103","v":12659.602359744755},12801.702528534754,null,null,{"$f":"IF(general_country<>\"Zambia\",\"Education and Health Care\",\"\")","v":"Education and Health Care"},{"$f":"Calculations!D103","v":0},{"$f":"Calculations!G103","v":183.65527415354632},{"$f":"Calculations!H103","v":18928.081798088962},19111.737072242508,null,null,{"$f":"IF(general_country<>\"Zambia\",\"Education and Health Care\",\"\")","v":"Education and Health Care"},{"$f":"Calculations!I103","v":0},{"$f":"Calculations!J103","v":164.77681155106171},{"$f":"Calculations!K103","v":15783.164666518322},15947.941478069384]
[19,{"$f":"HLOOKUP(general_country,'Default-Data'!$P$5:$X$47,'General Impact Estimates'!A27,FALSE)","v":" Manufacturing not classified elsewhere; recycling"},0,null,null,"Other",{"$f":"Calculations!O104","v":0},{"$f":"Calculations!P104","v":0.29971488581127015},{"$f":"Calculations!Q104","v":1.1078791168699103},1.4075940026811804,null,null,"Other",{"$f":"Calculations!L104","v":0},{"$f":"Calculations!M104","v":417.28441140158122},{"$f":"Calculations!N104","v":2231.2865653486579},2648.570976750239,null,null,"Other",{"$f":"Calculations!D104","v":0},{"$f":"Calculations!G104","v":2510.4055934488983},{"$f":"Calculations!H104","v":167380.28292930493},169890.68852275383,null,null,"Other",{"$f":"Calculations!I104","v":0},{"$f":"Calculations!J104","v":1797.6882237095135},{"$f":"Calculations!K104","v":6813.5963599938304},8611.2845837033437]
[20,{"$f":"HLOOKUP(general_country,'Default-Data'!$P$5:$X$47,'General Impact Estimates'!A28,FALSE)","v":" Electricity, gas and water supply"},0,null,null,"Total",{"$f":"Calculations!O105","v":4.5998210250756486},{"$f":"Calculations!P105","v":10.738857726654294},{"$f":"Calculations!Q105","v":15.514268574045644},30.852947325775588,null,null,"Total",{"$f":"Calculations!L105","v":46161.292871819183},{"$f":"Calculations!M105","v":68714.359216087527},{"$f":"Calculations!N105","v":43130.246719871851},158005.89880777855,null,null,"Total",{"$f":"Calculations!D105","v":1000000},{"$f":"Calculations!G105","v":711674.19375827443},{"$f":"Calculations!H105","v":351881.65243012097},2063555.8461883953,null,null,"Total",{"$f":"Calculations!I105","v":376641.77335229964},{"$f":"Calculations!J105","v":472749.4843909624},{"$f":"Calculations!K105","v":126301.82390823217},975693.08165149414]
[21,{"$f":"HLOOKUP(general_country,'Default-Data'!$P$5:$X$47,'General Impact Estimates'!A29,FALSE)","v":" Construction"},0]
[22,{"$f":"HLOOKUP(general_country,'Default-Data'!$P$5:$X$47,'General Impact Estimates'!A30,FALSE)","v":" Wholesale and retail trade; repairs"},0]
[23,{"$f":"HLOOKUP(general_country,'Default-Data'!$P$5:$X$47,'General Impact Estimates'!A31,FALSE)","v":" Hotels and restaurants"},0]
[24,{"$f":"HLOOKUP(general_country,'Default-Data'!$P$5:$X$47,'General Impact Estimates'!A32,FALSE)","v":" Transport and storage"},0]
[25,{"$f":"HLOOKUP(general_country,'Default-Data'!$P$5:$X$47,'General Impact Estimates'!A33,FALSE)","v":" Post and telecommunications"},0]
[26,{"$f":"HLOOKUP(general_country,'Default-Data'!$P$5:$X$47,'General Impact Estimates'!A34,FALSE)","v":" Financial intermediation"},0]
[27,{"$f":"HLOOKUP(general_country,'Default-Data'!$P$5:$X$47,'General Impact Estimates'!A35,FALSE)","v":" Real estate activities"},0]
[28,{"$f":"HLOOKUP(general_country,'Default-Data'!$P$5:$X$47,'General Impact Estimates'!A36,FALSE)","v":" Renting of machinery and equipment"},0]
[29,{"$f":"HLOOKUP(general_country,'Default-Data'!$P$5:$X$47,'General Impact Estimates'!A37,FALSE)","v":" Computer and related activities"},0]
[30,{"$f":"HLOOKUP(general_country,'Default-Data'!$P$5:$X$47,'General Impact Estimates'!A38,FALSE)","v":" R&D and other business activities"},0]
[31,{"$f":"HLOOKUP(general_country,'Default-Data'!$P$5:$X$47,'General Impact Estimates'!A39,FALSE)","v":" Public administration and defence; compulsory social security"},0]
[32,{"$f":"HLOOKUP(general_country,'Default-Data'!$P$5:$X$47,'General Impact Estimates'!A40,FALSE)","v":" Education"},0]
[33,{"$f":"HLOOKUP(general_country,'Default-Data'!$P$5:$X$47,'General Impact Estimates'!A41,FALSE)","v":" Health and social work"},0]
[34,{"$f":"HLOOKUP(general_country,'Default-Data'!$P$5:$X$47,'General Impact Estimates'!A42,FALSE)","v":" Other community, social and personal services"},0]
[35,{"$f":"HLOOKUP(general_country,'Default-Data'!$P$5:$X$47,'General Impact Estimates'!A43,FALSE)","v":" Private households with employed persons"},0]
[36,{"$f":"HLOOKUP(general_country,'Default-Data'!$P$5:$X$47,'General Impact Estimates'!A44,FALSE)","v":"Payments to workers and/or households"},0]
[37,{"$f":"IF(ISBLANK(HLOOKUP(general_country,'Default-Data'!$P$5:$X$47,'General Impact Estimates'!A45,FALSE)),\"\",HLOOKUP(general_country,'Default-Data'!$P$5:$X$47,'General Impact Estimates'!A45,FALSE))","v":""},0]
[38,{"$f":"IF(ISBLANK(HLOOKUP(general_country,'Default-Data'!$P$5:$X$47,'General Impact Estimates'!A46,FALSE)),\"\",HLOOKUP(general_country,'Default-Data'!$P$5:$X$47,'General Impact Estimates'!A46,FALSE))","v":""},0]
[39,{"$f":"IF(ISBLANK(HLOOKUP(general_country,'Default-Data'!$P$5:$X$47,'General Impact Estimates'!A47,FALSE)),\"\",HLOOKUP(general_country,'Default-Data'!$P$5:$X$47,'General Impact Estimates'!A47,FALSE))","v":""},0]
[40,{"$f":"IF(ISBLANK(HLOOKUP(general_country,'Default-Data'!$P$5:$X$47,'General Impact Estimates'!A48,FALSE)),\"\",HLOOKUP(general_country,'Default-Data'!$P$5:$X$47,'General Impact Estimates'!A48,FALSE))","v":""},0]
[41,{"$f":"IF(ISBLANK(HLOOKUP(general_country,'Default-Data'!$P$5:$X$47,'General Impact Estimates'!A49,FALSE)),\"\",HLOOKUP(general_country,'Default-Data'!$P$5:$X$47,'General Impact Estimates'!A49,FALSE))","v":""},0]
[42,{"$f":"IF(ISBLANK(HLOOKUP(general_country,'Default-Data'!$P$5:$X$47,'General Impact Estimates'!A50,FALSE)),\"\",HLOOKUP(general_country,'Default-Data'!$P$5:$X$47,'General Impact Estimates'!A50,FALSE))","v":""},0]
[43,{"$f":"IF(ISBLANK(HLOOKUP(general_country,'Default-Data'!$P$5:$X$47,'General Impact Estimates'!A51,FALSE)),\"\",HLOOKUP(general_country,'Default-Data'!$P$5:$X$47,'General Impact Estimates'!A51,FALSE))","v":""},0]

{"sheet":"CustomRegion1","index":11,"n_rows":117,"n_cols":37,"rows_kept":117,"cut":false,"hidden":false,"merged":[[1,1,1,3]]}
[]
[null,"CustomRegion1"]
[]
[null,"Enter data in boxes below"]
[]
[]
[null,null,null,"Dollar Year of Average Earnings",2014]
[null,null,"Value Added as a Percentage of Output","Payments to Workers as a Percentage of Output",{"$f":"\"Average Earnings ($\"&E7&\") per Job\"","v":"Average Earnings ($2014) per Job"}]
[null," Agriculture, hunting, forestry and fishing",0.70575679402441327,0.20314908946589125,1733.4629981939424]
[null," Mining and quarrying",0.57568630475015425,0.15048581122763727,3214.6839024772494]
[null,"Manufacturing: Food products, beverages and tobacco",0.33303297196471399,5.8272442954714385E-2,3214.6839024772494]
[null,"Manufacturing: Textiles, textile products, leather and footwear",0.38369770071617038,0.13252921221258954,3214.6839024772494]
[null,"Manufacturing: Wood and products of wood and cork",0.14513093931315665,3.7635251685745642E-2,3214.6839024772494]
[null,"Manufacturing: Pulp, paper, paper products, printing and publishing",0.2647392140842843,7.8486150278048658E-2,3214.6839024772494]
[null,"Manufacturing: Coke, refined petroleum products and nuclear fuel",0.16985240863624798,2.3092959069822068E-2,3214.6839024772494]
[null,"Manufacturing: Chemicals and chemical products",0.26987038395695767,6.9984511290454063E-2,3214.6839024772494]
[null,"Manufacturing: Rubber and plastics products",0.30754302348811319,8.6903165044664513E-2,3214.6839024772494]
[null,"Manufacturing: Other non-metallic mineral products",0.37628802293113245,8.003657120264894E-2,3214.6839024772494]
[null,"Manufacturing: Basic metals",0.20527986568762724,4.6719864143806869E-2,3214.6839024772494]
[null,"Manufacturing: Fabricated metal products",0.25183810657516981,7.7200476157131853E-2,3214.6839024772494]
[null,"Manufacturing: Machinery and equipment not classified elsewhere",0.36586740444717697,0.10884824264781227,3214.6839024772494]
[null,"Manufacturing: Computer, Electronic and optical equipment",0.24645926061535292,9.2481435289540836E-2,3214.6839024772494]
[null,"Manufacturing: Electrical machinery and apparatus not classified elsewhere",0.25983407904548844,8.6891001739995019E-2,3214.6839024772494]
[null,"Manufacturing: Motor vehicles, trailers and semi-trailers",0.1633728792721908,4.0539709859847554E-2,3214.6839024772494]
[null,"Manufacturing: Other transport equipment",0.20927218344965107,4.6992356264539716E-2,3214.6839024772494]
[null," Manufacturing not classified elsewhere; recycling",0.40537527140426033,0.13684642920016432,3214.6839024772494]
[null," Electricity, gas and water supply",0.59925603110226633,0.12410677549101107,3948.9654660753608]
[null," Construction",0.55032853415788974,0.16911295777369795,3214.6839024772494]
[null," Wholesale and retail trade; repairs",0.69111490942712817,0.15383603998693679,3214.6839024772494]
[null," Hotels and restaurants",0.37486288761076292,0.14121383809769078,3214.6839024772494]
[null," Transport and storage",0.44202401820988457,0.16449072499411319,3214.6839024772494]
[null," Post and telecommunications",0.60569783796160004,0.10740413654749835,3948.9654660753608]
[null," Financial intermediation",0.63779417152523665,0.13973232256984808,3948.9654660753608]
[null," Real estate activities",0.8114704658415588,2.0797583590108058E-2,3948.9654660753608]
[null," Renting of machinery and equipment",0.50557044140459739,0.13820335636722605,3948.9654660753608]
[null," Computer and related activities",0.4996688467588376,0.17426939316168555,3948.9654660753608]
[null," R&D and other business activities",0.48449979911611091,0.18960224989955804,3948.9654660753608]
[null," Public administration and defence; compulsory social security",0.55701796292757511,0.47307949550926814,3948.9654660753608]
[null," Education",0.68056396981880263,0.47338339055032341,3948.9654660753608]
[null," Health and social work",0.5182035609885729,0.33082646824342282,3948.9654660753608]
[null," Other community, social and personal services",0.48736110644868907,0.41888784450636141,1733.4629981939424]
[null," Private households with employed persons",0,0,1733]
[]
[null,"Total Requirements - Type 1"]
[null,null," Agriculture, hunting, forestry and fishing"," Mining and quarrying","Manufacturing: Food products, beverages and tobacco","Manufacturing: Textiles, textile products, leather and footwear","Manufacturing: Wood and products of wood and cork","Manufacturing: Pulp, paper, paper products, printing and publishing","Manufacturing: Coke, refined petroleum products and nuclear fuel","Manufacturing: Chemicals and chemical products","Manufacturing: Rubber and plastics products","Manufacturing: Other non-metallic mineral products","Manufacturing: Basic metals","Manufacturing: Fabricated metal products","Manufacturing: Machinery and equipment not classified elsewhere","Manufacturing: Computer, Electronic and optical equipment","Manufacturing: Electrical machinery and apparatus not classified elsewhere","Manufacturing: Motor vehicles, trailers and semi-trailers","Manufacturing: Other transport equipment"," Manufacturing not classified elsewhere; recycling"," Electricity, gas and water supply"," Construction"," Wholesale and retail trade; repairs"," Hotels and restaurants"," Transport and storage"," Post and telecommunications"," Financial intermediation"," Real estate activities"," Renting of machinery and equipment"," Computer and related activities"," R&D and other business activities"," Public administration and defence; compulsory social security"," Education"," Health and social work"," Other community, social and personal services"," Private households with employed persons"]
[null," Agriculture, hunting, forestry and fishing",1.0898726093504676,7.2113944447559745E-3,0.43371509699177241,0.17825753523081406,0.53506857183448775,0.2643897842351664,9.0545402077687916E-3,0.13261583001049013,0.10089194481585982,1.2439763441376843E-2,7.8900402005691005E-3,8.9849152303536923E-3,1.4039935293114196E-2,7.2368276529704923E-3,6.9014862658304966E-3,2.040968418728422E-2,1.5677898584536078E-2,8.4228735277810246E-2,4.0342926762956706E-3,1.2829173554602717E-2,6.2142644353980724E-3,0.16886329128715188,2.1513154287768867E-2,5.6761577068777025E-3,8.3871687267773262E-3,3.1452943490145736E-3,1.7503032957404525E-2,1.1921796873487203E-2,2.5711262296355935E-2,1.5486808457832922E-2,2.6132834249432031E-2,5.4055353416201601E-2,2.1859553278796247E-2,0]
[null," Mining and quarrying",4.3472704144865995E-2,1.1355197747406336,5.6245333032760032E-2,3.8645221095721931E-2,8.1168286980156268E-2,6.2727829738402976E-2,0.64673479291637836,0.15093629194659935,8.5763190977698148E-2,0.37260905275064216,0.23879505246254634,0.15355311872892502,9.9514147898364325E-2,4.3046244121242895E-2,4.8884405497448803E-2,0.13353629905919415,0.10031536129813147,6.1496427018301929E-2,0.16105447366773362,0.16450848785482808,4.8420038885987761E-2,8.2154587615865624E-2,0.16941834800036618,5.4999641125346076E-2,5.4604266435824035E-2,3.4519646149395324E-2,0.16371973507558427,4.730080308137917E-2,8.6741543874668939E-2,4.4138490444187189E-2,4.0605811082296099E-2,6.4492530409686263E-2,5.1715169069374713E-2,0]
[null,"Manufacturing: Food products, beverages and tobacco",3.7511381441152923E-2,4.1587890860945564E-3,1.0744973544552363,9.9971366649732642E-3,2.1583646755710183E-2,1.4093055149748093E-2,5.1346207374196439E-3,6.17202648367274E-2,2.7073454278729824E-2,3.6234405950572334E-3,5.9211482313032276E-3,5.1859121381865013E-3,5.5488565424936676E-3,3.9998659839115573E-3,3.6737786177094434E-3,8.4938422566432133E-3,7.0228848579977198E-3,9.1044934841072282E-3,2.1660700614449893E-3,3.4895919926244555E-3,5.3672373103181058E-3,0.25941850466746585,2.7168337248115456E-2,3.2571249143987786E-3,8.271251370542505E-3,1.6959988627555805E-3,2.228244288040454E-2,1.0197759527374128E-2,1.7745003564820339E-2,8.6532311806663091E-3,7.9492687738453253E-3,3.5849235216545164E-2,1.4375285394741534E-2,0]
[null,"Manufacturing: Textiles, textile products, leather and footwear",2.5448274395135136E-3,9.0993880768866291E-4,1.4968103838352389E-3,1.2395202405963959,4.260482878581405E-3,2.0653535203790045E-3,7.9951252447861023E-4,1.5812494220574539E-3,1.6068266082236146E-2,3.0056995042506925E-3,7.5736770982694267E-4,1.0740846092498304E-3,7.1083843162834427E-3,1.8065666956887567E-3,1.2561002832431004E-3,4.4734473633938291E-3,2.2349368060981339E-2,7.7632617623659361E-2,3.403329723669439E-4,1.1102087677857474E-3,8.9446115973620803E-4,4.6610682768693868E-3,3.1196158964227937E-3,1.5967108137109327E-3,8.2800375815514859E-4,3.9478767126730076E-4,1.9847682394400989E-2,1.624815234020974E-3,8.2058649009141438E-3,2.2899638099177213E-3,1.1376387843918187E-3,2.1373145977992458E-3,1.3633536289578295E-2,0]
[null,"Manufacturing: Wood and products of wood and cork",1.8242313247625712E-4,6.7877889524591115E-4,3.1013425256283571E-4,2.4483746420388461E-4,1.036880412072573,3.241757362450949E-4,4.7680678646809239E-4,1.8223886396627092E-3,8.0613709245137583E-4,3.976326552204844E-4,3.1576544102203494E-4,2.989095256593099E-4,2.039467360242791E-3,1.4271850330360811E-3,8.0151220574914157E-4,1.0750083496122798E-3,3.3785208632180733E-3,5.0232229057633845E-2,2.0520533601999405E-4,1.4162373735015606E-2,1.9096919675130116E-4,5.4811747065330776E-4,4.4621871157557425E-4,3.7822531760927232E-4,2.0996956546994263E-4,1.5117994264269936E-3,8.4413585595846153E-4,3.7885949335881739E-4,5.6932190684708204E-4,5.3204861444835811E-4,6.2006205562495321E-4,1.0688351480517971E-3,5.9154423175928066E-4,0]
[null,"Manufacturing: Pulp, paper, paper products, printing and publishing",4.2939091806681092E-3,4.7702698194599736E-3,8.3780517511344143E-3,5.9507025554808085E-3,2.2432326921316453E-2,1.4541975015706274,8.2804272374523372E-3,1.5911382609124124E-2,1.0706390065004635E-2,4.1494186259538497E-2,9.5892121578362004E-3,1.5305970352057869E-2,1.1737048353358492E-2,6.9542014329465381E-3,1.098721940485713E-2,1.1766248639596419E-2,1.1909952210829964E-2,2.0916646784656507E-2,4.4316686484503261E-3,7.4874816908316226E-3,1.0869757216802448E-2,7.6430864393651869E-3,9.6356692887144546E-3,1.0079315964289279E-2,1.0756363820970657E-2,3.9768476018955399E-3,6.6857509705659408E-3,1.8365790724514677E-2,2.9389624241250425E-2,3.3541193302131032E-2,0.10372148254648998,1.4292447888602221E-2,2.9481335829019892E-2,0]
[null,"Manufacturing: Coke, refined petroleum products and nuclear fuel",7.0312784886464294E-2,0.12902532899578187,9.3439269655698945E-2,6.2185935089082135E-2,0.13431118169592532,0.10106841493179229,1.1549021034165501,0.11244606358329419,9.23705695215154E-2,0.13313180865529795,0.20242117916977198,0.14939943912955497,0.107167708386538,6.8153862698093634E-2,7.2517676415909879E-2,0.15930991826063398,0.13510779928673147,8.070028439657688E-2,0.28411134945412952,0.11559380877855674,8.4081576751624781E-2,0.13806629437162393,0.29601650285355663,9.317255176000043E-2,9.4519475552722942E-2,3.1841731512521572E-2,0.2871889461753534,7.9864149668926437E-2,0.13679173412694126,7.0019664591700836E-2,6.3153283770635574E-2,7.7954732606045601E-2,7.0109338150908723E-2,0]
[null,"Manufacturing: Chemicals and chemical products",5.8013896614513977E-2,4.5277136754404576E-2,3.7152260221659891E-2,5.2507161819158446E-2,5.6016025689808388E-2,8.0089170102701585E-2,5.8604883302971318E-2,1.357029244045473,0.51972028681315596,3.3577949652072461E-2,3.2311385495623832E-2,3.7198051871561152E-2,6.5029063420128971E-2,2.6286457517692156E-2,2.3533427500239269E-2,9.4472961014919699E-2,5.3660443931473338E-2,9.3406770468181577E-2,2.4749371228544481E-2,2.5904303135261545E-2,1.1727531823060236E-2,3.1792889122744111E-2,3.7691514411509294E-2,1.5969851795148326E-2,1.3561216808510914E-2,7.4516461146544354E-3,3.10716430525965E-2,2.6501139873495221E-2,0.10601108927085323,4.1888760762898443E-2,3.6152982542647386E-2,0.30147327503991994,4.9030823629368718E-2,0]
[null,"Manufacturing: Rubber and plastics products",6.1553846621948457E-3,7.6399062101544573E-3,1.3636747382228609E-2,4.4014488001773364E-3,1.1334736993173875E-2,9.4897133474099397E-3,5.9371151965034287E-3,2.0418392214909802E-2,1.0498631523158133,6.3472770052407134E-3,4.2367961617073117E-3,8.6325558381050525E-3,5.3217487482707319E-2,1.2552305139646799E-2,1.1025406693946029E-2,0.13244988308177716,1.6133982316418456E-2,6.7899611084247385E-2,2.2742494769804372E-3,1.1444540204856926E-2,3.3224009079875984E-3,7.8767734923218223E-3,2.9221856425991049E-2,8.2628921125205597E-3,3.6646384987335102E-3,1.6615199467962781E-3,1.041859292569792E-2,4.7225936562393794E-3,2.4505083070380521E-2,7.5827800434235572E-3,5.9339508721359827E-3,9.7810915455879988E-3,9.6200658377440379E-3,0]
[null,"Manufacturing: Other non-metallic mineral products",1.7955636323855662E-3,5.8693088060076514E-3,4.3335827351182118E-3,1.9749212441467108E-3,2.9442971484309817E-3,3.1176795116405593E-3,4.4159406790573287E-3,2.7262888263066318E-2,1.1142197151881653E-2,1.1038008322878756,6.4469708273159126E-3,5.278599453745059E-3,1.7896623841719361E-2,5.1843350134387076E-3,3.8424748464539193E-3,1.1871316278838204E-2,6.7979051003322971E-3,1.4080542101488406E-2,3.9498400224577375E-3,9.4065579179496886E-2,1.8486801887501935E-3,7.280985647742314E-3,3.5459354853698824E-3,3.315405139293012E-3,2.1816869772827907E-3,3.4518392876213194E-2,2.6584051501993373E-3,2.4631746692467785E-3,5.8511340819796991E-3,4.3003907886203108E-3,5.2180404339727008E-3,9.1083236752199075E-3,1.68760394284195E-2,0]
[null,"Manufacturing: Basic metals",9.6037768636961576E-3,3.5871974803102814E-2,1.6119974512263064E-2,7.3593054949760454E-3,3.7750215009978272E-2,1.5583771593413202E-2,4.8585961618358361E-2,4.5296961300412129E-2,2.1905486483267282E-2,2.8962629764254316E-2,1.8814456462697204,1.0147690682873189,0.47441944100222816,3.3444201122092676E-2,9.0380666671081272E-2,0.55251216961896721,0.29216261255185083,8.8504554934884641E-2,1.7728495191477581E-2,0.13242284717607472,6.4915847715065061E-3,2.4397793939784432E-2,3.181397282593712E-2,1.2873865660602515E-2,7.5254625356969548E-3,1.4876772289736238E-2,3.2377342355220745E-2,9.7306897139948691E-3,3.9582177252248163E-2,1.0423024390235168E-2,1.1226828791633196E-2,1.705418252655129E-2,1.5219948202511921E-2,0]
[null,"Manufacturing: Fabricated metal products",6.1389136975506537E-3,1.3705860639423178E-2,1.2032062572646579E-2,3.9973787588701796E-3,2.5067864946578769E-2,8.7994922751434765E-3,1.3068679607417264E-2,3.6204132639146708E-2,1.5632365576642542E-2,7.882415652016219E-3,3.7821956476112528E-2,1.0486993915237541,7.8906403737982661E-2,8.398577114752552E-3,1.8067283378238173E-2,2.6789172505430146E-2,2.7870000395446546E-2,2.3205676569405753E-2,7.0995974549455639E-3,2.5978724406672728E-2,2.732533965082321E-3,1.7955847321804864E-2,1.3535626799487938E-2,6.7491654698155993E-3,3.1815617912785013E-3,4.0794089088647496E-3,6.5288927001014426E-3,3.7961779885696246E-3,2.0484975560206026E-2,4.3483531866844883E-3,5.5396461345839781E-3,1.1330272111702908E-2,6.5362959053196145E-3,0]
[null,"Manufacturing: Machinery and equipment not classified elsewhere",2.4617215033346219E-3,2.6563704445103191E-2,2.6154150461704367E-3,2.195937550187977E-3,2.1491240786383828E-2,3.4608760717392624E-3,1.7741872104855717E-2,6.0809503623949204E-3,3.813855753137902E-3,1.0894951993415719E-2,1.1017649798770495E-2,8.0666290674937871E-3,1.0277865280735219,3.9334360586437914E-3,1.0911479241234593E-2,1.0829844130338537E-2,3.3539449863647257E-2,1.0161093777687381E-2,6.5178020943733673E-3,8.4882840534352359E-3,1.7988839187479269E-3,5.7236895144424952E-3,1.8572068040137432E-2,3.2561369717038894E-3,2.0789239400193218E-3,1.4563025249648409E-3,1.3199712916769028E-2,2.4857914971119152E-3,9.3620291567643628E-3,2.13866288793695E-3,1.9820132224151535E-3,2.9221261685290567E-3,6.1631984383876907E-3,0]
[null,"Manufacturing: Computer, Electronic and optical equipment",5.6490721334758309E-3,2.3944736864919564E-2,6.2065307876686543E-3,7.1246454580021577E-3,1.2106871946829975E-2,9.907257257370362E-3,1.8213051400213863E-2,1.1829374241009865E-2,9.9793540447207455E-3,1.2862075596492951E-2,1.4748695710200469E-2,1.2899544227241174E-2,9.7314908900403438E-2,2.1035859709918165,0.94004446891648175,0.20745650405477681,3.9131318667106993E-2,1.1200257357309937E-2,2.6008430522191046E-2,1.9125575697502527E-2,8.2967772493140694E-3,1.0778429437109369E-2,7.6211443613668786E-2,7.689709667458404E-2,1.1969928568226989E-2,4.6286212099984399E-3,1.7909727928422558E-2,0.12814233025334112,2.6770617339137028E-2,4.9504515228099136E-2,2.1348518632665514E-2,2.8037470003456452E-2,0.12104049984108761,0]
[null,"Manufacturing: Electrical machinery and apparatus not classified elsewhere",5.3148551992807959E-4,8.8646768517507621E-3,7.495480034967934E-4,6.6125446423502239E-4,1.5320221968370977E-3,1.0166923545500074E-3,5.1569896599906184E-3,1.7003615169104338E-3,1.2388490595641726E-3,3.4285134840528397E-3,2.8397640254878825E-3,2.0511287102549652E-3,4.7031302569892517E-3,1.6371015696236156E-3,1.012114844535309,2.0769619619563614E-3,4.3473035021608887E-3,1.9395365419714924E-3,1.6225999356970805E-3,1.8818775271258576E-3,5.2400497382325295E-4,9.3998551583492193E-4,3.1142477282344837E-3,1.6619502279651298E-3,6.4898161181445541E-4,3.8761632773484704E-4,4.5482783919818335E-3,2.2419464696735256E-3,3.0370781470011052E-3,1.109975261415925E-3,8.8514242600903361E-4,9.2621061361827979E-4,2.8278509264989147E-3,0]
[null,"Manufacturing: Motor vehicles, trailers and semi-trailers",4.0417526282650421E-4,1.2205100214361237E-3,4.2088736497824727E-4,4.7615156422930728E-4,7.983563853064744E-4,5.7629092780078685E-4,9.4942143163530561E-4,6.8320534699847963E-4,6.3910821000539317E-4,6.7878106118368024E-4,1.417130396482335E-3,1.09281682546639E-3,9.2377728377052496E-4,6.970205504175643E-4,6.8940168525092607E-4,1.1070088423950093,2.4499186618024047E-3,7.191418489270791E-4,9.6376755147323516E-4,5.5514222357951255E-4,7.0292405305901699E-4,4.9078309210420876E-4,4.9926318615339674E-3,7.4746341094822843E-4,3.2412475483287678E-4,1.534615593729512E-4,1.6164772513553805E-2,1.5847171241104357E-3,1.5728825218869805E-3,1.0125084549695276E-3,6.4410254744214611E-4,4.8370211100378675E-4,8.3868346186257716E-4,0]
[null,"Manufacturing: Other transport equipment",2.8098071400991288E-5,9.6175700241816578E-5,3.5970985519399489E-5,2.1065182514172808E-5,3.8859466528622742E-5,5.0279852163348103E-5,7.3051264576405736E-5,6.9171042011427031E-5,9.3167879443913835E-5,4.3319944524266135E-5,9.9794291933928163E-5,1.3971111305911612E-4,2.4599008903953938E-4,4.8126885305640739E-4,4.3185688987147782E-4,1.8221342026717929E-4,1.5660132280000427,3.8157402179371716E-5,4.0465726154625992E-5,5.7629795086761627E-5,3.3615785370971635E-5,7.8549871572024347E-5,1.1049334849612137E-4,1.2755899017579533E-4,4.593577100828969E-5,2.3306631810828871E-5,4.5313317088752978E-5,6.1934019668995077E-5,1.356187353259631E-4,8.8911896380886133E-5,3.9304848953572319E-5,6.3658775745836945E-5,1.5660003414276198E-3,0]
[null," Manufacturing not classified elsewhere; recycling",3.5812308519717452E-4,6.7908130858805517E-4,4.5998874179516781E-4,2.0124094996328231E-3,1.0670909971726681E-3,1.4130544698907142E-3,6.7591336171413151E-4,9.4580386857963318E-4,8.7237860053834403E-4,6.0234122410600399E-4,1.118971065282941E-3,1.7783283298196031E-3,1.5867323838893866E-3,1.3123948810774874E-2,6.5732472199176275E-3,3.0157048826434762E-3,2.9812239705482371E-3,1.0342259710927517,5.4053213285693718E-4,8.7103876348986321E-4,9.344859023749021E-4,3.2097893701196396E-3,1.4245214370501278E-3,2.9002648791265529E-3,1.2345614597969741E-3,3.5867166090027664E-4,7.4567368582467383E-4,4.368550774290372E-3,3.1539708948027027E-3,2.7351541994973232E-3,4.5583369369562952E-3,1.148001066747539E-2,4.0853094379881142E-3,0]
[null," Electricity, gas and water supply",1.6098268968974486E-2,2.9932114138319321E-2,2.7998269366536963E-2,2.8278993986760981E-2,6.9321748977087705E-2,4.267782489995868E-2,2.6971222489936011E-2,4.5320204008901077E-2,3.1336602096130046E-2,4.1766175003608755E-2,0.11285849772601045,8.4327414796675271E-2,5.3824005920099581E-2,2.7882018451325531E-2,3.7897269143693194E-2,6.7181025444185014E-2,6.7991704659729937E-2,4.9851775071306247E-2,1.0765036058017576,2.467511558273042E-2,3.8322453443958862E-2,4.5081321065996528E-2,2.6692263454494377E-2,3.4592280723932584E-2,3.265565926513711E-2,8.6800309233578139E-3,3.2698963628231832E-2,5.6547107644342384E-2,6.9236918087641611E-2,3.7172341420250096E-2,5.3258215654736374E-2,6.0641713616092045E-2,5.3800646047673754E-2,0]
[null," Construction",2.4975661163134408E-3,2.4742047382727228E-2,3.7902364319872513E-3,3.595780077666685E-3,6.8284996278547231E-3,5.3509737617935546E-3,1.5228685516725462E-2,7.064196305043016E-3,4.8202693181977046E-3,1.0465021519977639E-2,8.7922766025367149E-3,6.8485787905399652E-3,6.7238997801462802E-3,3.4746071297463012E-3,6.3826577143720441E-3,6.8494209806957704E-3,1.4136465970005738E-2,8.2254826553457942E-3,6.8502359290798318E-3,1.0120655390629478,4.9375240385002711E-3,5.9111600475852339E-3,9.3021745569754604E-3,1.0901264526583434E-2,7.0787758164900273E-3,9.1281125568787841E-2,6.117329203303332E-3,4.4524823617711189E-3,1.0952798732795444E-2,1.6937397974651734E-2,2.2577219243698429E-2,6.8232618423319418E-3,1.6517478223853473E-2,0]
[null," Wholesale and retail trade; repairs",7.3055311538415366E-2,8.3105746588386126E-2,0.15674774583739567,0.22095568009112168,0.20068023955878225,0.19270412343934323,0.19818688464451814,0.21349154116132277,0.2245740304142507,0.15694112971400517,0.18461275271949865,0.18151827618152155,0.15841089158632379,0.26617803891289327,0.24046409680933528,0.22216366788182548,0.15536978655850106,0.18000166259695904,8.7056537941366086E-2,0.11035985539876944,1.0523266601731698,0.17980098331171851,0.14675984427856237,5.9467810020893061E-2,4.0967444560875532E-2,2.8009618386352051E-2,0.1526864529884121,8.5119408490691356E-2,0.10886386952906091,6.292598883020116E-2,6.4262140082346958E-2,0.14584157340251486,9.6993097466979039E-2,0]
[null," Hotels and restaurants",3.7778631650433711E-3,6.4419531880560779E-3,4.7698496101454451E-3,6.4533384918421472E-3,6.953342385316484E-3,6.1227989791616888E-3,7.1174258926417463E-3,1.1548033790790791E-2,8.5842758363334614E-3,5.2330985135640605E-3,1.4349014635793267E-2,1.039100245123019E-2,7.4049913541288075E-3,7.7901491499649906E-3,7.1605923214667589E-3,1.238681375475021E-2,1.2258001423798463E-2,8.2552289805522816E-3,2.9831258721340643E-3,6.2843539512545754E-3,1.4243324862991071E-2,1.0058117258208503,5.1421382816826018E-2,6.6192870029878354E-3,2.8270893209390122E-2,4.4922351685385041E-3,1.787076927633607E-2,2.5724479857898129E-2,3.8155756403863497E-2,1.931223551093425E-2,1.9805138676624711E-2,2.0840692905455791E-2,3.1192629111395045E-2,0]
[null," Transport and storage",1.0672365331015541E-2,1.187944935554067E-2,2.1519019162732859E-2,2.6944383569042062E-2,3.4617699437636672E-2,3.1386741922146778E-2,2.580646661191047E-2,3.1207061815744622E-2,3.1786128123746586E-2,2.1922338494539693E-2,3.6708755804702307E-2,3.3263435171920111E-2,2.6349361308505626E-2,2.9362039861313201E-2,2.8581078458377984E-2,4.4041621982239106E-2,2.7218321432565862E-2,2.5211462815787643E-2,1.2131776793860339E-2,1.5613811122836727E-2,1.0800360114100191E-2,2.1297172969460033E-2,1.0187250372341365,7.6437836436387286E-3,5.0405409160425279E-3,3.6567466993368777E-3,2.8067054228073665E-2,9.6802672239112326E-3,1.4704453345269177E-2,8.9279853296911453E-3,9.6986503355240856E-3,1.9851654027534422E-2,1.921757847336563E-2,0]
[null," Post and telecommunications",2.850665500782534E-3,3.7713324784628098E-3,4.5652266513295176E-3,7.4245878183910831E-3,8.9483784822246663E-3,6.8471036193663987E-3,5.8076353994097728E-3,6.9442170707547596E-3,7.0372238516016204E-3,4.9745322408278518E-3,6.390096796838495E-3,6.2361646920729465E-3,9.0311320722583372E-3,7.9119443817369153E-3,1.1385874626636448E-2,8.0943514117860858E-3,1.2047216674958E-2,6.8867523327479354E-3,2.6472647468766038E-3,5.0395923009641155E-3,2.2494480866232684E-2,5.7550894504230059E-3,6.8915808929929673E-3,1.0277003279103853,1.5269508768531649E-2,2.0016078641754255E-3,6.4936287137710236E-3,1.4014126840810335E-2,1.5863125483021722E-2,1.29531957015597E-2,8.5282116630660525E-3,7.5579330156881359E-3,1.3765547480118323E-2,0]
[null," Financial intermediation",2.0590112846504093E-2,2.4716448436151166E-2,2.5106898076187052E-2,3.787840480576448E-2,4.5258941788155836E-2,3.0819565090900451E-2,3.5270832959441598E-2,3.7547781356566973E-2,3.5769159208986559E-2,2.4712039366506355E-2,4.5652163527870708E-2,3.6882887174582678E-2,3.5360152666371006E-2,3.3833092074760575E-2,4.8490047175839823E-2,4.4853353189958776E-2,6.4768894925448378E-2,4.4032610529946066E-2,2.3240261418593405E-2,3.2977119591766905E-2,7.6672572830815411E-2,3.0248496154865193E-2,4.6953529167055988E-2,6.4323440300205134E-2,1.0570573511638452,2.0209956863054754E-2,3.7043363308970463E-2,2.708943811532832E-2,3.3120772185778302E-2,8.0634466069724409E-2,2.4369903858875275E-2,2.4678235609270238E-2,3.5164027535246431E-2,0]
[null," Real estate activities",4.2556477413243773E-3,1.2340622501714046E-2,6.6403341092235663E-3,9.869071225673029E-3,1.3353246400469082E-2,1.577550987031302E-2,1.0601473114928156E-2,1.3022592230275517E-2,1.0722186453716177E-2,1.0335871291178359E-2,1.0234236398778249E-2,1.3233070723534647E-2,1.5066465156089984E-2,1.1793248582877048E-2,1.7690695199163331E-2,1.4235777279395869E-2,2.3579615878554405E-2,2.2164452847307246E-2,4.1439630820054888E-3,7.122846574279371E-3,1.79648957080593E-2,1.6512548352262093E-2,2.3349016212230223E-2,3.9168180705651139E-2,2.5598132783917912E-2,1.0059723422501523,1.8288224797452676E-2,2.1374385507327232E-2,4.0836166412700214E-2,1.4595681285936286E-2,1.6169098131197053E-2,1.0686674528072737E-2,5.8261609412993735E-2,0]
[null," Renting of machinery and equipment",6.5858740697327632E-3,1.8887237646364654E-3,3.9449784973854263E-3,3.0196805345707807E-3,7.6910902316677521E-3,3.5900469533587695E-3,2.278877514202153E-3,3.1964142354940282E-3,4.4382574214393393E-3,2.5256638834828225E-3,3.5648081195065475E-3,5.2906235205079089E-3,3.3067958929977547E-3,2.5173995118156025E-3,2.4103468227759644E-3,4.4885784489063383E-3,6.8413510992055594E-3,3.5761314342119201E-3,1.0340398394997445E-3,5.55221979137122E-3,3.9904444927586821E-3,3.5714515390345494E-3,2.9360686951258753E-2,2.03861510934427E-2,4.5846706442298959E-3,9.211492076211668E-4,1.0293010238552278,3.6477287060672596E-3,4.8306453080763931E-3,3.9378442670298126E-3,5.1351331793831655E-3,4.1325414142157606E-3,5.7742128645815252E-3,0]
[null," Computer and related activities",7.8729965628647133E-3,3.1781011769084586E-2,6.4946413950145339E-3,5.3559973380995843E-3,1.0529013434346524E-2,9.7090776777572392E-3,2.0652970088125749E-2,9.5938940368217492E-3,9.1656350924831376E-3,1.322376651488622E-2,1.527196241934338E-2,1.232834023365297E-2,8.7910693112874996E-3,8.4413333637372925E-3,7.4199263765318641E-3,2.2855536457229361E-2,2.2947149829563643E-2,6.8696475579101898E-3,5.9820973469859283E-3,7.79317552670096E-3,7.730052269706765E-3,8.2031774827727305E-3,2.2229298485831966E-2,4.7334949117403241E-2,2.7936948579318194E-2,3.8952050139027432E-3,1.0279361230569229E-2,1.337557562484776,3.5493608719911203E-2,4.6629133309031665E-2,3.2176169861288711E-2,1.4643073934150578E-2,3.2207337516558465E-2,0]
[null," R&D and other business activities",3.3178927956544708E-2,5.587318510987202E-2,2.3167866473358389E-2,1.6979813162625857E-2,3.4642010320945146E-2,2.0238912183564609E-2,3.6530880680652071E-2,2.5618744152249542E-2,3.40773279926182E-2,2.5904807062598355E-2,2.2879177367223207E-2,2.0856587200681277E-2,1.9035906430570453E-2,2.0955656929444639E-2,1.6597581273252986E-2,2.7681734111523675E-2,4.5726461877929572E-2,1.7260416447058145E-2,1.1772081055091263E-2,2.3737905485702447E-2,1.7103975843259431E-2,2.6208529903947085E-2,2.900732635413223E-2,3.2841119881250831E-2,3.2281458145621278E-2,9.3032746876719613E-3,2.0314684404484577E-2,3.5874900870147934E-2,1.0548111038866437,4.7441289443660474E-2,2.840094724757429E-2,1.5971168124758361E-2,4.9937966802299255E-2,0]
[null," Public administration and defence; compulsory social security",1.7365111457962168E-4,2.3688102337569017E-4,2.5830476306546113E-4,2.8699170963131823E-4,4.2192289565652792E-4,1.0130581005187444E-3,2.5568832401459012E-4,5.6502480253487603E-4,5.8233963956476028E-4,2.6250981867771223E-4,3.2942147016195932E-4,6.5206985102325785E-4,5.5253616091875668E-4,4.5334662984691055E-4,4.5495459450177478E-4,4.0154499350584361E-4,4.6881288729471214E-3,4.686955350731649E-4,1.1179988871695202E-4,2.2472737350777799E-4,4.1832790656216179E-4,8.8133670052707269E-4,5.9121932942574138E-4,1.2593308950206634E-3,5.5112533449101048E-4,3.024733405198018E-4,3.7292596682843136E-4,5.7892496241942245E-4,1.4202673311459729E-3,1.000955981364281,4.1240284228902306E-4,4.8964412142515109E-4,2.731009013359165E-2,0]
[null," Education",3.4501139736465506E-4,7.3527785350099362E-4,3.1103813919295569E-4,4.5412213262421977E-4,4.7060756047494136E-4,5.96427657852736E-4,5.3961229280723687E-4,4.9654183432151062E-4,5.3505316822768988E-4,1.0436882566241497E-3,4.240322587023959E-4,5.0321894938030597E-4,4.8435126597489402E-4,8.3363302993329409E-4,5.9980766710307509E-4,3.4998571198893592E-3,2.3207085685883529E-3,1.8392204410648016E-3,1.9072823206728117E-4,3.923551333399472E-4,5.1664321931973632E-4,6.0931386799032425E-4,6.4086153784570802E-4,9.3136311960854076E-3,8.884517067017381E-4,1.3228321148777756E-3,1.0462238098960369E-3,4.2607299217164614E-3,6.7181716960934426E-3,8.6492492847423927E-2,1.0006079993524801,4.5853325946614235E-3,1.1081864972305488E-2,0]
[null," Health and social work",3.0303265351116515E-3,2.9635580482037169E-3,1.5895920601940578E-3,9.9001531378235287E-4,2.1502099946095034E-3,1.6609799282437012E-3,1.9176969032361265E-3,1.4441904528656052E-3,1.4312862312111246E-3,1.3149065464290557E-3,1.1470839922274293E-3,1.2298515096858301E-3,1.0598178856147812E-3,1.489144385133807E-3,1.1002893972431511E-3,1.3035404886463761E-3,4.5595614016110493E-3,1.582300677891231E-3,5.9091447821036508E-4,9.6207528482784323E-4,8.7332646692518949E-4,1.631814692024172E-3,2.0808697893040578E-3,3.1472690882477102E-3,2.5792337540485131E-3,2.0395934557768582E-3,6.2689110171953305E-3,7.8885535358920733E-3,1.8839734460301849E-2,7.0644952255608379E-2,1.7840616039020103E-2,1.0039909003716614,2.0816839721703652E-2,0]
[null," Other community, social and personal services",3.8483679992462922E-3,5.8042100576202087E-3,5.3302384516108981E-3,6.3989491630321001E-3,7.7054038408029928E-3,2.3584851915752249E-2,6.7331054098097457E-3,1.6289383478530973E-2,1.5427740555226945E-2,6.1837525693812876E-3,9.3303920586236544E-3,2.2091546696826614E-2,1.8787013832784801E-2,1.3167523714497751E-2,1.3409918960494328E-2,1.0686179386488083E-2,0.1821134636101131,1.1435955990217428E-2,3.0125009746022114E-3,6.2248127588647407E-3,1.4543026080807089E-2,3.0842049376962329E-2,2.0267485594019641E-2,4.7625267833006142E-2,1.9551878854781816E-2,1.1216000697540134E-2,1.3330673801229667E-2,1.7540109674649661E-2,5.169366283403181E-2,3.3771912515318803E-2,1.1299298506931401E-2,1.4715938308654895E-2,1.0955674754830864,0]
[null," Private households with employed persons",0,0,0,0,0,0,0,0,0,0,0,0,0,0,0,0,0,0,0,0,0,0,0,0,0,0,0,0,0,0,0,0,0,1]
[]
[null,"Total Requirements - Type 2 "]
[null,null," Agriculture, hunting, forestry and fishing"," Mining and quarrying","Manufacturing: Food products, beverages and tobacco","Manufacturing: Textiles, textile products, leather and footwear","Manufacturing: Wood and products of wood and cork","Manufacturing: Pulp, paper, paper products, printing and publishing","Manufacturing: Coke, refined petroleum products and nuclear fuel","Manufacturing: Chemicals and chemical products","Manufacturing: Rubber and plastics products","Manufacturing: Other non-metallic mineral products","Manufacturing: Basic metals","Manufacturing: Fabricated metal products","Manufacturing: Machinery and equipment not classified elsewhere","Manufacturing: Computer, Electronic and optical equipment","Manufacturing: Electrical machinery and apparatus not classified elsewhere","Manufacturing: Motor vehicles, trailers and semi-trailers","Manufacturing: Other transport equipment"," Manufacturing not classified elsewhere; recycling"," Electricity, gas and water supply"," Construction"," Wholesale and retail trade; repairs"," Hotels and restaurants"," Transport and storage"," Post and telecommunications"," Financial intermediation"," Real estate activities"," Renting of machinery and equipment"," Computer and related activities"," R&D and other business activities"," Public administration and defence; compulsory social security"," Education"," Health and social work"," Other community, social and personal services"," Private households with employed persons","Personal Consumption Expenditures"]
[null," Agriculture, hunting, forestry and fishing",1.1635957549725964,7.20266630194486E-2,0.4924155848289834,0.25278295002710999,0.60285171990136988,0.33407099636643539,6.4132992841064523E-2,0.19569969061371262,0.16657417422563545,7.0509284124332383E-2,6.579178163979596E-2,7.3057104109051044E-2,7.9949673160129936E-2,8.4407868509133357E-2,7.9449730700512644E-2,8.0413463232029955E-2,9.1020430678104863E-2,0.1567465645959914,5.8260203632706106E-2,8.468385270110354E-2,6.4024854382089658E-2,0.24553212093173787,0.10092951903501278,6.1723234330712952E-2,6.4367623308171945E-2,2.1445452078519368E-2,8.5050829127290048E-2,9.7854441958795085E-2,0.11439007946117383,0.18743252083212081,0.17774670795617695,0.17534106659089838,0.17984069037253458,0,0.27339637355217056]
[null," Mining and quarrying",7.2088741738388876E-2,1.1606781716933943,7.9030244779710088E-2,6.7572663807058814E-2,0.10747868240510421,8.977496899275543E-2,0.66811379211462119,0.17542263353352858,0.11125810346624435,0.39514905118503479,0.26126992647630504,0.17842308527986056,0.12509736902472424,7.3000600892590195E-2,7.7044398842385439E-2,0.1568270903352311,0.12955997250654971,8.9644614571314507E-2,0.18210255420440966,0.19239927008305677,7.0859531955063962E-2,0.1119140083899885,0.20024423938047986,7.6754616962857097E-2,7.6333382567337085E-2,4.1622951320868046E-2,0.18993877738916745,8.0656023908173488E-2,0.12116270624264933,0.11088014841097318,9.945555593623176E-2,0.11157023576905399,0.11303640163469979,0,0.10612028064566727]
[null,"Manufacturing: Food products, beverages and tobacco",9.8418687865541879E-2,5.7706740557021845E-2,1.1229935027108662,7.1567247884429849E-2,7.7583549294867743E-2,7.166106725079599E-2,5.0638378934497734E-2,0.1138377917785051,8.1337656376169881E-2,5.1598307379533227E-2,5.3757402077831445E-2,5.811995894783277E-2,6.000101762082545E-2,6.7755694534782501E-2,6.3610425610269611E-2,5.8066720978229645E-2,6.9268067836664976E-2,6.9016012644627325E-2,4.6965490201384769E-2,6.2853241276309077E-2,5.3128185201843516E-2,0.3227594250928742,9.2779168445740329E-2,4.9561124035869764E-2,5.4520209851529326E-2,1.6814904940890045E-2,7.8087906482007335E-2,8.1192097898335799E-2,9.1008126629236671E-2,0.15070834974029892,0.13320698242834095,0.13605095660123928,0.14489339398930323,0,0.22586986161182573]
[null,"Manufacturing: Textiles, textile products, leather and footwear",1.2175775217936226E-2,9.3771910067040991E-3,9.1652478624229729E-3,1.2492559941648522,1.3115449033108711E-2,1.1168276483177902E-2,7.9947793101158172E-3,9.8223162132792131E-3,2.4648775175788038E-2,1.0591709521811734E-2,8.3214596022046627E-3,9.4442633357900447E-3,1.5718614361815073E-2,1.1887936097663095E-2,1.0733562858536995E-2,1.2312142492464647E-2,3.2191867129136846E-2,8.7106106868783686E-2,7.4242265345785523E-3,1.0497066268987472E-2,8.4466453227688976E-3,1.4676830468087614E-2,1.3494306981271116E-2,8.918515432088327E-3,8.1411050933746839E-3,2.7854597179149706E-3,2.8671902955934352E-2,1.2850771618469033E-2,1.9790572118158795E-2,2.4752382669367301E-2,2.0943973522715053E-2,1.7981678806583627E-2,3.4271669246142368E-2,0,3.5715597513798311E-2]
[null,"Manufacturing: Wood and products of wood and cork",6.7343215363973251E-4,1.1104599000476775E-3,7.0108975007372786E-4,7.4118973813544313E-4,1.0373318596729537,7.8826477467848683E-4,8.4363889714997482E-4,2.2425381650880583E-3,1.2435922077774408E-3,7.8438580132351369E-4,7.0140114806926208E-4,7.2564148995150294E-4,2.4784377216147671E-3,1.9411576384260674E-3,1.2846961798782838E-3,1.4746439941068972E-3,3.880315281009935E-3,5.0715210461776919E-2,5.6635937028861423E-4,1.464093844323594E-2,5.7599781894410922E-4,1.0587452616931644E-3,9.7514556609114083E-4,7.5150863318015904E-4,5.8280916660663614E-4,1.6336816719290648E-3,1.2940159716160608E-3,9.5118591260292976E-4,1.1599383115947692E-3,1.6772370788539477E-3,1.6298369247700678E-3,1.8766191730615282E-3,1.6437261867219501E-3,0,1.8208675801158584E-3]
[null,"Manufacturing: Pulp, paper, paper products, printing and publishing",1.3750237800577894E-2,1.3084001878202054E-2,1.5907452435999721E-2,1.5509936726808997E-2,3.1126743275955101E-2,1.4631353790172079,1.5345236309031642E-2,2.4003030238136748E-2,1.9131325552303013E-2,4.894265397947592E-2,1.7016159151129244E-2,2.3524388981932851E-2,2.0191165920685025E-2,1.6852785061170262E-2,2.0292845668937354E-2,1.9462820025628744E-2,2.1573996474278077E-2,3.0218371759199798E-2,1.1387123809656391E-2,1.670414564559829E-2,1.8285012380340616E-2,1.7477252384197936E-2,1.9822256370847013E-2,1.72683686053253E-2,1.7936870978477296E-2,6.324174263367178E-3,1.534997918197571E-2,2.9388208775825167E-2,4.0764288597456413E-2,5.559634500889292E-2,0.12316870771586926,2.9849537198906838E-2,4.9745277844768447E-2,0,3.5068036367467678E-2]
[null,"Manufacturing: Coke, refined petroleum products and nuclear fuel",0.1109324491865053,0.16473696919783465,0.125781814050338,0.10324763023653107,0.17165805148074212,0.13946107195838683,1.1852489943047573,0.14720374000675279,0.12855988410635769,0.16512670545875074,0.23432363368119735,0.18470166045040298,0.14348237461068616,0.11067323360677569,0.11248999867137201,0.19237054448545707,0.17661970623712087,0.12065584866088867,0.31398851056582461,0.15518399339002195,0.11593380900251075,0.180308959089193,0.33977299274205058,0.12405313096273463,0.12536334762669751,4.1924674356826348E-2,0.32440614277588431,0.1272109519021187,0.18565161053837859,0.16475757974081418,0.14668884917858033,0.14478021749241568,0.1571531111795004,0,0.15063476769505044]
[null,"Manufacturing: Chemicals and chemical products",8.4409940136523962E-2,6.8483778789966532E-2,5.816954887149671E-2,7.919045206482582E-2,8.0285295690886951E-2,0.10503802832845928,7.8325328226540175E-2,1.3796159678751092,0.54323733795757545,5.4369325037843606E-2,5.3042688726548895E-2,6.013863955159756E-2,8.8627572335893551E-2,5.3916995198746438E-2,4.9508806078883132E-2,0.11595688373395743,8.0636297164780421E-2,0.11937125913250998,4.4164569719429426E-2,5.1631355636963111E-2,3.2426198915853216E-2,5.9243613681526468E-2,6.6125974207522753E-2,3.6037105591222342E-2,3.360461706012547E-2,1.4003886334619516E-2,5.5256646994980771E-2,5.7268707107527787E-2,0.13776190372145489,0.10345268982417241,9.0437242596012657E-2,0.3448987547388811,0.1055948366702236,0,9.7887610656654453E-2]
[null,"Manufacturing: Rubber and plastics products",1.1722250852226114E-2,1.253413480256476E-2,1.8069246271440742E-2,1.0028894677948257E-2,1.6453071432692801E-2,1.475137141450036E-2,1.0096112661629198E-2,2.518188145245142E-2,1.0548228454908888,1.0732131295346236E-2,8.6089813695128248E-3,1.3470674165533759E-2,5.8194359918486586E-2,1.8379523370317945E-2,1.6503555593880243E-2,0.13698079404629851,2.1823129070041768E-2,7.3375463325753773E-2,6.3688711562306178E-3,1.6870317693875699E-2,7.6877032276894746E-3,1.3666069540069431E-2,3.5218620021953514E-2,1.2495030788568411E-2,7.8917465159232293E-3,3.0433726672265972E-3,1.5519155843029393E-2,1.1211404361594932E-2,3.1201258401491332E-2,2.056647416905712E-2,1.7382379182612286E-2,1.8939427510614761E-2,2.1549288924039543E-2,0,2.064427684903206E-2]
[null,"Manufacturing: Other non-metallic mineral products",7.3101674991856375E-3,1.0717589867449466E-2,8.7244688602073663E-3,7.5495360702288348E-3,8.0145801278011953E-3,8.329940581345497E-3,8.5358930400939517E-3,3.1981657364405183E-2,1.6055328207625359E-2,1.1081445211063476,1.077810950216071E-2,1.0071297019253593E-2,2.2826772877467035E-2,1.0956846708634765E-2,9.2691943103744446E-3,1.6359690576359342E-2,1.2433641547977707E-2,1.9504986468251176E-2,8.0060209642435157E-3,9.9440418900796537E-2,6.1730005927662385E-3,1.3015931177442572E-2,9.4864008361985851E-3,7.5078120538979651E-3,6.3691104613822127E-3,3.58872726184781E-2,7.7110834482949451E-3,8.8910677396362488E-3,1.2484445017284832E-2,1.7162192633037563E-2,1.655898969960996E-2,1.8180680222361387E-2,2.8693269718130552E-2,0,2.0450466214335914E-2]
[null,"Manufacturing: Basic metals",1.8965260593713215E-2,4.4102321963391956E-2,2.3573856969323709E-2,1.6822662656432827E-2,4.6357428286659057E-2,2.4432004100992732E-2,5.5579912213520474E-2,5.3307451488807785E-2,3.0245921726256911E-2,3.6336390996170628E-2,1.8887981026231315,1.0229050579914054,0.4827887656354215,4.3243504140256357E-2,9.9592959556651178E-2,0.56013154609194205,0.30172972858332564,9.771298565999105E-2,2.4614188671862876E-2,0.1415470700246676,1.3832466561637216E-2,3.4133325369710345E-2,4.1898390686903528E-2,1.9990813689629135E-2,1.4633950790508769E-2,1.7200555782638106E-2,4.0954670269089423E-2,2.0642555343911392E-2,5.0842756234331307E-2,3.2256967790975324E-2,3.04790025828248E-2,3.2455237663130125E-2,3.5280647350280005E-2,0,3.4716311699077511E-2]
[null,"Manufacturing: Fabricated metal products",9.4755303035177485E-3,1.6639317963056729E-2,1.468877263084053E-2,7.3703050559985935E-3,2.813564475353264E-2,1.1953176068192583E-2,1.5561460919668594E-2,3.9059228621297036E-2,1.8605060454434282E-2,1.051056893245818E-2,4.0442516279552948E-2,1.0515992179973708,8.1889395361660927E-2,1.1891241111215946E-2,2.1350725438011864E-2,2.9504867880226864E-2,3.1279908391064586E-2,2.6487742079360097E-2,9.5537938059561608E-3,2.9230776576089228E-2,5.3489683669126539E-3,2.1425781872120655E-2,1.7129911323908124E-2,9.2857854824438448E-3,5.7151665742762835E-3,4.9076509712022882E-3,9.5860207769759825E-3,7.685381144060738E-3,2.4498467001092636E-2,1.2130399305192512E-2,1.2401498873448623E-2,1.6819510548699068E-2,1.3686322955960121E-2,0,1.2373575114129974E-2]
[null,"Manufacturing: Machinery and equipment not classified elsewhere",4.1897989921870181E-3,2.808298045554283E-2,3.9913600192195732E-3,3.942820304173574E-3,2.3080084172127372E-2,5.0942102582264169E-3,1.9032916231001257E-2,7.5596420066322096E-3,5.3534534073460009E-3,1.2256107036840004E-2,1.2374872080892513E-2,9.5684872197528397E-3,1.0293314585474327,5.7423325370763957E-3,1.2612016935406228E-2,1.2236338372252359E-2,3.5305485924172514E-2,1.1860918538658699E-2,7.7888625631789736E-3,1.0172564511816929E-2,3.153969601285157E-3,7.5208141146942183E-3,2.0433595122413873E-2,4.5698857355732777E-3,3.3911110769283925E-3,1.8852599486875884E-3,1.4783039631842507E-2,4.5000608052963064E-3,1.1440668997582296E-2,6.1690866083473047E-3,5.5358567262345677E-3,5.7650747281424728E-3,9.8662911967228352E-3,0,6.408436789864456E-3]
[null,"Manufacturing: Computer, Electronic and optical equipment",2.4564530577465892E-2,4.0574663720518205E-2,2.1267562556685032E-2,2.6245945488061088E-2,2.9498280162557108E-2,2.77856597763242E-2,3.2344762318849161E-2,2.8015066450113625E-2,2.6831720698705524E-2,2.7761217461258456E-2,2.96047897466926E-2,2.9338815990852637E-2,0.11422564835891612,2.1233860704595742,0.95865847800695558,0.2228519267463252,5.8462269928811053E-2,2.9806462713049424E-2,3.992140122668044E-2,3.7561633816459175E-2,2.3129484162880173E-2,3.0449674455935789E-2,9.65876353031664E-2,9.1277331536226469E-2,2.6333069931421892E-2,9.3239698705825571E-3,3.5240750915198925E-2,0.15019043147550851,4.9523315515377211E-2,9.3621351936459096E-2,6.024872973233223E-2,5.9156257028152331E-2,0.16157438656571929,0,7.0146460775968172E-2]
[null,"Manufacturing: Electrical machinery and apparatus not classified elsewhere",8.72053388252398E-3,1.6064252568626852E-2,7.2699037174369643E-3,8.9394175954918449E-3,9.0612651910764227E-3,8.7567692502377621E-3,1.1275015532934659E-2,8.7076152229159359E-3,8.5347253906782952E-3,9.8787823820032216E-3,9.2713962750758088E-3,9.1681643304434082E-3,1.2024277861371998E-2,1.0209136585629375E-2,1.0201733867649379,8.7420851656581956E-3,1.2716230707696086E-2,9.9947003094112714E-3,7.6459268512888865E-3,9.8633796407969748E-3,6.9455122623233792E-3,9.4562357187384354E-3,1.1935689708343465E-2,7.8875692948343814E-3,6.8672004094337026E-3,2.4203683952899397E-3,1.2051378876287898E-2,1.1787206382160874E-2,1.2887378434276361E-2,2.0209428255339664E-2,1.7726167503652569E-2,1.4398432430770363E-2,2.0376141373430006E-2,0,3.0368429158630961E-2]
[null,"Manufacturing: Motor vehicles, trailers and semi-trailers",6.1770328641666556E-3,6.2958403361806636E-3,5.017402537435856E-3,6.3118304906950541E-3,6.106085162457477E-3,6.0326467537497944E-3,5.2623147743026399E-3,5.6229585429864084E-3,5.7823255011484357E-3,5.2258886357708914E-3,5.9511000932113405E-3,6.1099606204249356E-3,6.0848095218432588E-3,6.7398640299029117E-3,6.3702591800636026E-3,1.1117074111964964,8.3495815889634926E-3,6.3976177017871965E-3,5.2099030034084984E-3,6.1816904019337589E-3,5.2297561733577833E-3,6.4943011496238516E-3,1.1211294413614707E-2,5.1362044174589781E-3,4.7076489524178191E-3,1.586447140264726E-3,2.1454072166769519E-2,8.313634063257979E-3,8.5168372246839999E-3,1.4476639757579153E-2,1.2516158411454153E-2,9.9809250703066146E-3,1.3209325007930811E-2,0,2.1408179479060874E-2]
[null,"Manufacturing: Other transport equipment",1.137489683084028E-4,1.7147750457842956E-4,1.0416869181274791E-4,1.0764814863470164E-4,1.1760932694415163E-4,1.3123486657943569E-4,1.3704092248511724E-4,1.4246131191855216E-4,1.6947691119169908E-4,1.1078459877235748E-4,1.6706402174429321E-4,2.1414961399353978E-4,3.2256343809571129E-4,5.7092548407548349E-4,5.16142796996736E-4,2.5192527872963162E-4,1.5661007602857939,1.2240797329195885E-4,1.0346490870230983E-4,1.4110992420980249E-4,1.0077961618551639E-4,1.6762303805841519E-4,2.0275857690338342E-4,1.9267398684827823E-4,1.1097336678257858E-4,4.4567592800110108E-5,1.2378974775713054E-4,1.6176980479552691E-4,2.3864499882515845E-4,2.8867690043710153E-4,2.154485031208713E-4,2.0456744191579571E-4,1.7495414257417145E-3,0,3.1762948268648344E-4]
[null," Manufacturing not classified elsewhere; recycling",2.5249204853533521E-3,2.5840672428278566E-3,2.1852551199485902E-3,4.2027863977355468E-3,3.0593058947642961E-3,3.4610553793967265E-3,2.2947244822020181E-3,2.7999019810976068E-3,2.8028453857055248E-3,2.3090628429726754E-3,2.8207614834250151E-3,3.6614744044087591E-3,3.523885871441573E-3,1.5392083319732778E-2,8.7055130924657918E-3,4.7792763002292536E-3,5.1956167678697592E-3,1.0363573430344346,2.1342861959795811E-3,2.9829200546343426E-3,2.6335972864717106E-3,5.4631633864481131E-3,3.7586482735009431E-3,4.5475448329329116E-3,2.8798833247679328E-3,8.9653170276529236E-4,2.7309713544479545E-3,6.8941976439147006E-3,5.7603305239281354E-3,7.7888116282001001E-3,9.0144211775719466E-3,1.5044719766162267E-2,8.7285339537049103E-3,0,8.0353943992204652E-3]
[null," Electricity, gas and water supply",3.8144822330690449E-2,4.9314809562224199E-2,4.5552368917511278E-2,5.0565462099936197E-2,8.9591974538828514E-2,6.3515657423208319E-2,4.3442169772687514E-2,6.4185130177142793E-2,5.0978558002640215E-2,5.9131586851170634E-2,0.13017373599485918,0.10348789579888774,7.3533997140356355E-2,5.0959648357880569E-2,5.9592473936310439E-2,8.5124867984424119E-2,9.0522527784415982E-2,7.1537884369105922E-2,1.0927196045820555,4.6162913000001859E-2,5.5610433295831194E-2,6.800876711670216E-2,5.0441346709401862E-2,5.1352890368682617E-2,4.9396345907398054E-2,1.4152605384291339E-2,5.2898808333158416E-2,8.2244853303447482E-2,9.5755893345408863E-2,8.8591882613024961E-2,9.8597617939395532E-2,9.6911624848923544E-2,0.10104414793151384,0,8.1757875190397955E-2]
[null," Construction",9.0429828600192899E-3,3.0496589468479499E-2,9.0018854020774888E-3,1.0212425280782898E-2,1.2846541160864039E-2,1.153753252508137E-2,2.0118756647591194E-2,1.2665017512080568E-2,1.0651783431095619E-2,1.5620650865005227E-2,1.3933009878468482E-2,1.2537147480243661E-2,1.2575612945225001E-2,1.0326140914510885E-2,1.2823762334122524E-2,1.2176781021166093E-2,2.0825657904464039E-2,1.4663886907238565E-2,1.1664615219621845E-2,1.0184450663610609,1.0070164543831719E-2,1.2718105641688772E-2,1.635305659889463E-2,1.5877333719964408E-2,1.2048930055640407E-2,9.2905882052038077E-2,1.2114475314199707E-2,1.2081904156321821E-2,1.8826035960866211E-2,3.22033817479387E-2,3.6038066297413351E-2,1.7591461314651734E-2,3.0543634747655663E-2,0,2.4273153105660403E-2]
[null," Wholesale and retail trade; repairs",0.15087212852290108,0.1515200532476397,0.21870773249261993,0.29961931435356798,0.27222722501689645,0.2662545679560307,0.25632371307452106,0.28007829887235391,0.29390343818682568,0.21823511310591817,0.24572964048434831,0.24914824169227712,0.22798044082098759,0.34763420457335237,0.31704077313098189,0.28549931441317666,0.23489591070306209,0.25654623492284773,0.14429348507788939,0.186204454397321,1.1133473350193681,0.26072705116355804,0.23058601133856435,0.11862704783349257,0.10005636096708377,4.7325940455993157E-2,0.22398501801708012,0.17582368947553548,0.20246681101347805,0.24441943865772328,0.22429477248002552,0.27386199446977921,0.26374655228069083,0,0.28857742552083138]
[null," Hotels and restaurants",2.1910345736674452E-2,2.2383510183332071E-2,1.9207453481662539E-2,2.4783142158437049E-2,2.3624860408607576E-2,2.3261152936770158E-2,2.0664176699566984E-2,2.7063744539245191E-2,2.4739065081804026E-2,1.9515513660681792E-2,2.8590163852284748E-2,2.6149796224409997E-2,2.3615737153012736E-2,2.6770654411245962E-2,2.5004103564962129E-2,2.7144966958596563E-2,3.0788778136602257E-2,2.6091259512729462E-2,1.6320190874590967E-2,2.3957280225889624E-2,2.8462055029999166E-2,1.0246687103619505,7.095413386169537E-2,2.0404274492283412E-2,4.2039494758920826E-2,8.9932272014767028E-3,3.4484401622958225E-2,4.6859934350439454E-2,5.9966642159547619E-2,6.1602924636895998E-2,5.7095136267012896E-2,5.0671366322460831E-2,7.0048678874670811E-2,0,6.7242857541524315E-2]
[null," Transport and storage",3.2567525706033031E-2,3.1129044421201461E-2,3.895257526565786E-2,4.9077811208486241E-2,5.4748729999665104E-2,5.208148170657876E-2,4.2164308419081427E-2,4.994244313089307E-2,5.1293203338454378E-2,3.916850260656133E-2,5.3905090878393604E-2,5.2292341755314727E-2,4.592400464060601E-2,5.2281196411051285E-2,5.0127302963841013E-2,6.1862244721612156E-2,4.9594426105362535E-2,4.6748654284909194E-2,2.8236420821904158E-2,3.6954052512859874E-2,2.7969623953504885E-2,4.406717697115077E-2,1.0423110362832582,2.4289298710502855E-2,2.1666269791047379E-2,9.0917411640244021E-3,4.8128187236412143E-2,3.5201547273951778E-2,4.1041323636215273E-2,5.9994430154606669E-2,5.4726708374469211E-2,5.5872500923699039E-2,6.6136660719589707E-2,0,8.1196446439694078E-2]
[null," Post and telecommunications",1.6903102047893824E-2,1.6125830394195417E-2,1.5754180590501685E-2,2.1629945630168245E-2,2.18685866357873E-2,2.0129103508781575E-2,1.6306189879295396E-2,1.8968689721681743E-2,1.9556973968946428E-2,1.6043216950795788E-2,1.7426800950950828E-2,1.8449023503975915E-2,2.159424778574422E-2,2.2621587408420948E-2,2.5214362178538733E-2,1.9531726885901476E-2,2.6408325965793438E-2,2.0709442431338966E-2,1.2983315474146951E-2,1.8735878735819632E-2,3.3513810550574133E-2,2.0369005536478333E-2,2.2029207170267687E-2,1.0383835126993848,2.5939994668788272E-2,5.489817748952827E-3,1.9368976225931502E-2,3.0393827302536931E-2,3.2766276328872725E-2,4.5727925975172126E-2,3.7427471480952407E-2,3.0676314279481892E-2,4.3878477224449236E-2,0,5.2112334045592013E-2]
[null," Financial intermediation",6.780926460833879E-2,6.6230168143654095E-2,6.2704144101009426E-2,8.5611404282168915E-2,8.8673567255579164E-2,7.5449887126255305E-2,7.0548191131716356E-2,7.7952546541354056E-2,7.7838161180938337E-2,6.1905155405255909E-2,8.2737818151276996E-2,7.7920669608380788E-2,7.7574872191187222E-2,8.3260596273823373E-2,9.4956683062137032E-2,8.3285347987356331E-2,0.11302525223393604,9.0479765749896301E-2,5.7971572694952025E-2,7.8999531831297418E-2,0.1136998455699028,7.9354337635716157E-2,9.7819147389506381E-2,0.1002211952667766,1.092912435184866,3.1931078063228036E-2,8.0307247556008252E-2,8.2128687666300632E-2,8.9918925471693445E-2,0.19076447502258723,0.12147751438396835,0.10236087446860996,0.1363498250888617,0,0.17510843772271448]
[null," Real estate activities",4.7870869389877765E-2,5.0685870540712441E-2,4.1368027376962734E-2,5.3958921941635367E-2,5.3454316451478953E-2,5.6999490293265981E-2,4.3186340450532879E-2,5.0343525017903568E-2,4.958033568085117E-2,4.469027918085109E-2,4.4489384702584137E-2,5.1138706679110968E-2,5.4059210264962181E-2,5.7448273519588519E-2,6.0610835604598089E-2,4.9734508386195746E-2,6.8152879934149549E-2,6.5066599418696247E-2,3.622445972251577E-2,4.9632668028772753E-2,5.2166118036284896E-2,6.1870460989675045E-2,7.0332393301523993E-2,7.2326093991547019E-2,5.871663191943801E-2,1.0167988666590111,5.8250058723005434E-2,7.2212847846584369E-2,9.3299286828090036E-2,0.11632018440415255,0.10586511762294504,8.2440303843225468E-2,0.15172455449608649,0,0.16174355190304562]
[null," Renting of machinery and equipment",9.229028035469827E-3,4.2125086862891915E-3,6.0495336667059857E-3,5.6915978002375061E-3,1.0121280846992575E-2,6.0882877789217677E-3,4.2535739175615138E-3,5.4581239729222988E-3,6.7931249963083763E-3,4.6075973466628475E-3,5.6407262889862338E-3,7.5877672288923396E-3,5.6698201990523448E-3,5.2841689023202573E-3,5.0113777251691687E-3,6.6398597758621494E-3,9.5425640061059004E-3,6.1760718807500527E-3,2.9781705515121103E-3,8.1283846923684705E-3,6.0630946596735794E-3,6.3202154369043587E-3,3.2207956660855783E-2,2.2395575021249062E-2,6.59170600987988E-3,1.5772543435072213E-3,1.0317227765329873,6.7286229045824403E-3,8.00999645062591E-3,1.0102515995540066E-2,1.0570859072072879E-2,8.4809290346799932E-3,1.1438220626285418E-2,0,9.8019245228142312E-3]
[null," Computer and related activities",1.5888599256679049E-2,3.8828099044097175E-2,1.2876894681490284E-2,1.3458827332096907E-2,1.7898785568391692E-2,1.7285218209395027E-2,2.6641414959447846E-2,1.6452732719304915E-2,1.6306983315621044E-2,1.9537417438037972E-2,2.1567371422041941E-2,1.9294635627599241E-2,1.5957153557113142E-2,1.6831810977669195E-2,1.530778708316439E-2,2.9379491029316078E-2,3.1138821496741249E-2,1.4754201358852505E-2,1.1877849003657948E-2,1.5605627842313697E-2,1.4015550760001855E-2,1.6539051817009928E-2,3.0863900574892519E-2,5.3428708337459968E-2,3.402346426929561E-2,5.8849029894299278E-3,1.762354455822741E-2,1.3469006518988234,4.5135277693097602E-2,6.5324056099785019E-2,4.8660498687033073E-2,2.7829951420730314E-2,4.9383951690768639E-2,0,2.9725219804864911E-2]
[null," R&D and other business activities",4.7083000459503963E-2,6.8097245626502989E-2,3.4238688695608643E-2,3.1035192404742416E-2,4.7425808370358077E-2,3.3380682212384855E-2,4.6918592603436338E-2,3.7516263773692542E-2,4.6464895996707778E-2,3.6856629844635926E-2,3.3799357240516047E-2,3.2940504023206314E-2,3.146638218171572E-2,3.5509997199901652E-2,3.0280069209300174E-2,3.899835506209888E-2,5.9935948192510712E-2,3.0937168138653923E-2,2.1999004921598543E-2,3.7289588069223903E-2,2.800696468447857E-2,4.0668153908045179E-2,4.3985131276168724E-2,4.3411512807116519E-2,4.2839286256182718E-2,1.2754656444912783E-2,3.3054095446100391E-2,5.2081666297131374E-2,1.0715357931674849,7.9869987802232173E-2,5.6995091931497377E-2,3.8845468120008671E-2,7.9732967622122522E-2,0,5.1562137885425373E-2]
[null," Public administration and defence; compulsory social security",3.6082413934155247E-2,3.1806832179083276E-2,2.8849893976359755E-2,3.6586520458271751E-2,3.343745643750342E-2,3.4953092784161005E-2,2.708307171071293E-2,3.1291648972303569E-2,3.2574566469189201E-2,2.8546770177541026E-2,2.8531960613547284E-2,3.1860084842255422E-2,3.265557686265276E-2,3.8041495904529286E-2,3.5791451435456374E-2,2.9627935861847272E-2,4.1385655712634029E-2,3.5790377907717351E-2,2.6523930825038455E-2,3.5223405321589234E-2,2.8576469360477266E-2,3.8224871029256452E-2,3.9273011616456126E-2,2.8558507622115946E-2,2.7817852074538563E-2,9.2160379737733621E-3,3.3273825286585519E-2,4.2434639945650762E-2,4.4613576377038486E-2,1.0847065830428664,7.4259857195327711E-2,5.9564984315346362E-2,0.10425888462674346,0,0.13316476733014201]
[null," Education",3.5162248561555802E-2,3.1345591056800369E-2,2.8033523247972918E-2,3.5650247037846576E-2,3.2482561500646247E-2,3.3504780498598452E-2,2.6551518483018784E-2,3.028916282628159E-2,3.1554806049560652E-2,2.8468186446002658E-2,2.7769293328302108E-2,3.0762597832270047E-2,3.1611549588569834E-2,3.7279208012154362E-2,3.4862174133053835E-2,3.1837847694202878E-2,3.790273353938764E-2,3.6087222756982965E-2,2.5800004481491782E-2,3.4327171453082471E-2,2.781885616466093E-2,3.6817709512400612E-2,3.8146835852820263E-2,3.578298953266084E-2,2.7326346444804205E-2,9.9654493883737875E-3,3.2947028086747356E-2,4.4844148586686693E-2,4.8598525316553128E-2,0.16769731117932637,1.072210698256377,6.1864948169880959E-2,8.569163197620068E-2,0,0.12911693196849275]
[null," Health and social work",1.885830375139633E-2,1.6879060236971836E-2,1.4192282520993986E-2,1.6990235563145471E-2,1.6702900526151768E-2,1.6621174975669457E-2,1.3742755180813779E-2,1.4987968325026465E-2,1.5532920417322894E-2,1.3782131629870211E-2,1.3578287741734809E-2,1.4985818339526365E-2,1.5210296958190931E-2,1.8057366835773258E-2,1.6676021418760754E-2,1.4186040816008131E-2,2.0735212499117289E-2,1.7151502731554837E-2,1.223293647696674E-2,1.6388902434114325E-2,1.3284960463475021E-2,1.8092214998783013E-2,1.9131151640574173E-2,1.5180285915667871E-2,1.4597947174296423E-2,5.9685424602272863E-3,2.0771072716414398E-2,2.6337846998175728E-2,3.7878616833092245E-2,0.10756080541043031,5.0391328823346897E-2,1.0300303142977774,5.4734570950088317E-2,0,5.8696784233521739E-2]
[null," Other community, social and personal services",2.5182885488853571E-2,2.4560904028438853E-2,2.2317394572571984E-2,2.796563289545493E-2,2.7320963455495742E-2,4.3749686532702746E-2,2.267209174970948E-2,3.4545030548308438E-2,3.4435321692386597E-2,2.2988315019464231E-2,2.608640138228319E-2,4.0633203088380268E-2,3.7860432952291315E-2,3.5499817147495435E-2,3.4404435359255282E-2,2.8050490996767551E-2,0.20391661043865886,3.2421670650671336E-2,1.87047728646146E-2,2.7018620402647565E-2,3.127265735052865E-2,5.3029009430782474E-2,4.3249546497190532E-2,6.3844561331432972E-2,3.57518928024292E-2,1.6511827833618011E-2,3.2878125644335558E-2,4.2407897179235141E-2,7.7356156746833687E-2,8.353076066206841E-2,5.517437753357491E-2,4.9814442952335815E-2,1.1412851575476826,0,7.9117347258080062E-2]
[null," Private households with employed persons",0,0,0,0,0,0,0,0,0,0,0,0,0,0,0,0,0,0,0,0,0,0,0,0,0,0,0,0,0,0,0,0,0,1,0]
[null,"Payments to workers and/or households",0.38514670046375499,0.33860989816096321,0.30666487458354397,0.38933793949332457,0.35411478450493261,0.36403070854070446,0.28774252806700101,0.32956462395649128,0.34313910133380326,0.30336855677844066,0.30249203934849245,0.33472787860415959,0.34432765793830272,0.4031592996512513,0.37900874593268447,0.31347356816396021,0.39360674853939559,0.37884985035564794,0.28328865389913521,0.3753854010517107,0.3020158429478092,0.40053563255942493,0.4148893890393896,0.29280284298978626,0.29245479408862191,9.5604240812120544E-2,0.35288525196381021,0.4489319390462202,0.46327857477918438,0.89828402221579484,0.79206581203113524,0.63362451301326927,0.82532986314818479,0,1.4282856530848858]

{"sheet":"CustomRegion2","index":12,"n_rows":138,"n_cols":41,"rows_kept":138,"cut":false,"hidden":false,"merged":[[1,1,1,3]]}
[]
[null,"Custom Region 2"]
[]
[null,"Enter data in boxes below"]
[]
[]
[]
[]
[]
[]
[null,null,null,"Dollar Year of Average Earnings",2014]
[null,null,"Value Added as a Percentage of Output","Payments to Workers as a Percentage of Output",{"$f":"\"Average Earnings ($\"&CustomRegion2_EarningsYear&\") per Job\"","v":"Average Earnings ($2014) per Job"}]
[null,"Agriculture, hunting, forestry and fishing",0.61618145995896256,0.11065665012979062,1051.3267752703398]
[null,"Mining and quarrying",0.81265568953323331,6.4136947368319777E-2,19202.310320220251]
[null,"Manufacturing: Food products, beverages and tobacco",0.39572608251967922,9.6162718258015423E-2,3982.062502038686]
[null,"Manufacturing: Textiles, textile products, leather and footwear",0.34814403101218488,0.154132946738606,4283.4804561984056]
[null,"Manufacturing: Wood and products of wood and cork",0.4237104829140928,0.14071874821085475,2310.0272993767235]
[null,"Manufacturing: Pulp, paper, paper products, printing and publishing",0.34925971296079888,0.13437648287623374,7375.3753739564572]
[null,"Manufacturing: Coke, refined petroleum products and nuclear fuel",0.16721622949727449,7.0937258792246702E-2,45219.985666637687]
[null,"Manufacturing: Chemicals and chemical products",0.3294932104895687,0.1168149299450873,12717.25879017399]
[null,"Manufacturing: Rubber and plastics products",0.32638329990724285,0.14819940830586117,5461.5288971282616]
[null,"Manufacturing: Other non-metallic mineral products",0.52858126728809485,0.14819757141228002,4112.7304881095006]
[null,"Manufacturing: Basic metals",0.3611880591890293,8.8317338318117375E-2,10383.999515202067]
[null,"Manufacturing: Fabricated metal products except machinery and equipment",0.34600146827430395,0.15418727546900263,4675.7659143907185]
[null,"Manufacturing: Machinery and equipment not classified elsewhere",0.37574780762793553,0.26908123465045741,8962.4495644855142]
[null,"Manufacturing: Office, accounting and computing machinery",0.16429085926256498,6.916368869114764E-2,7825.963161489366]
[null,"Manufacturing:  Electrical machinery and apparatus not classified elsewhere",0.25966527509595144,0.12146864301448963,6971.9406878051132]
[null,"Manufacturing: Radio, television and communication equipment",0,0,7825.963161489366]
[null,"Manufacturing: Medical, precision and optical instruments",0,0,6971.9406878051132]
[null,"Manufacturing: Motor vehicles, trailers and semi-trailers",0.30509557446354735,0.10610916006484145,7434.0346585700618]
[null,"Manufacturing: Other transport equipment",0,0,7434.0346585700618]
[null,"Manufacturing: Manufacturing not classified elsewhere; recycling",0.36941586836324558,0.16880194534991375,6398.9293337221088]
[null,"Electricity, gas and water supply",0.39281873433446163,0.14790681245973447,18657.291387928039]
[null,"Construction",0.48729254913452158,0.2010893158975687,2948.8410991810188]
[null,"Wholesale and retail trade; repairs",0.73366253607209098,0.17868304254417083,4909.9591750264099]
[null,"Hotels and restaurants",0.71913646256153463,0.19869477920290052,1439.2352660193437]
[null,"Transport and storage",0.62044283366741704,0.21068863416526204,7311.4359542271995]
[null,"Post and telecommunications",0.61476449769768904,0.16824027790886828,12389.099373637871]
[null,"Finance and insurance",0.61863068765188778,0.19361850897267704,13225.494199916704]
[null,"Real estate activities",0.89567053770333971,8.8159755263037629E-3,2341.8963532081798]
[null,"Renting of machinery and equipment",0.84932011450334288,3.8078118329166875E-2,2341.8963532081798]
[null,"Computer and related activities",0.51737621341656004,0.33893007276355192,12389.099373637871]
[null,"Research and development",0,0,3837.4341394883281]
[null,"Other Business Activities",0.7137140864252367,0.28158968295773279,3837.4341394883281]
[null,"Public admin. and defence; compulsory social security",0.75012384885915595,0.73994298767577038,1449.4857266622216]
[null,"Education",0.89066416011478455,0.67772581272672361,4134.6697940512486]
[null,"Health and social work",0.75025863634586576,0.43269342416870804,2283.4788244171646]
[null,"Other community, social and personal services",0.70480019524208759,0.13673498124547931,1449.4857266622216]
[null,"Private households with employed persons",1,1,5199.2056088023692]
[]
[]
[]
[]
[]
[]
[null,"Total Requirements - Type 1"]
[null,null,"Agriculture, hunting, forestry and fishing","Mining and quarrying","Manufacturing: Food products, beverages and tobacco","Manufacturing: Textiles, textile products, leather and footwear","Manufacturing: Wood and products of wood and cork","Manufacturing: Pulp, paper, paper products, printing and publishing","Manufacturing: Coke, refined petroleum products and nuclear fuel","Manufacturing: Chemicals and chemical products","Manufacturing: Rubber and plastics products","Manufacturing: Other non-metallic mineral products","Manufacturing: Basic metals","Manufacturing: Fabricated metal products except machinery and equipment","Manufacturing: Machinery and equipment not classified elsewhere","Manufacturing: Office, accounting and computing machinery","Manufacturing:  Electrical machinery and apparatus not classified elsewhere","Manufacturing: Radio, television and communication equipment","Manufacturing: Medical, precision and optical instruments","Manufacturing: Motor vehicles, trailers and semi-trailers","Manufacturing: Other transport equipment","Manufacturing: Manufacturing not classified elsewhere; recycling","Electricity, gas and water supply","Construction","Wholesale and retail trade; repairs","Hotels and restaurants","Transport and storage","Post and telecommunications","Finance and insurance","Real estate activities","Renting of machinery and equipment","Computer and related activities","Research and development","Other Business Activities","Public admin. and defence; compulsory social security","Education","Health and social work","Other community, social and personal services","Private households with employed persons"]
[null,"Agriculture, hunting, forestry and fishing",1.1494849252267274,1.3341001195289084E-3,0.27323795388048167,7.8939967018732307E-2,0.31163873501317479,8.0820932675391473E-3,2.0267718048667662E-3,9.6725224455453378E-3,1.2163798819175127E-2,6.9804276541388056E-3,3.2523069273973268E-3,4.9169088200976194E-3,5.1558734682446671E-3,1.0060437594984867E-2,7.2082838667525068E-3,0,0,7.7509170396437461E-3,0,2.5212903392398043E-2,3.3940892353464137E-3,7.7362694187110229E-3,4.9058988208280502E-3,6.5342781537957818E-3,1.9424189903948601E-3,1.5642594605572511E-3,8.5700422238402067E-4,4.869188398573489E-4,1.2984919319720615E-3,3.669660480379961E-3,0,1.8641520098010348E-3,1.3564705101852688E-3,7.9853172857922343E-4,2.4380404403796536E-3,3.0304329211959685E-3,0]
[null,"Mining and quarrying",3.5585844461528661E-2,1.0367432797930582,3.4682845330930745E-2,3.6592403031235891E-2,3.3586749344926552E-2,5.205891199443783E-2,0.70430921561977,0.30569102693735284,9.7716620190666362E-2,0.12278170727887083,0.16598858180624809,7.0175967583613399E-2,5.7006958383157356E-2,6.0092976870341534E-2,6.7207567025237058E-2,0,0,4.5216435527734258E-2,0,6.4235529985286074E-2,0.14011019462071356,6.1169105969729493E-2,1.2253176500591812E-2,2.4758238404051468E-2,6.8451848975070603E-2,2.3945542157255979E-2,6.8302752471044725E-3,8.1187208133277223E-3,1.0722014315080209E-2,2.1561781641442748E-2,0,1.8041953697666979E-2,1.879389254245166E-2,4.8013530914125411E-3,2.9966140857211152E-2,2.5643430785630403E-2,0]
[null,"Manufacturing: Food products, beverages and tobacco",9.6964562517744227E-2,1.3041568802376181E-3,1.1613141486589351,4.087612439138838E-2,2.8963353459120867E-2,1.0352994138582629E-2,2.1408699463950727E-3,7.8318233234498085E-3,7.3519066130783772E-3,4.047333936383366E-3,3.8082841227056506E-3,5.0413151451875965E-3,5.1129514629753995E-3,6.7892068922835837E-3,5.4945990659179961E-3,0,0,5.9965077548553656E-3,0,8.0602307941303724E-3,4.3313136080439865E-3,3.4444008395968879E-3,4.0410140648787759E-3,2.2361951282725997E-2,3.0789159789462728E-3,2.2955911921522113E-3,1.5802646020416026E-3,6.4848080328393373E-4,2.9526866194446414E-3,1.0153140816839937E-2,0,3.3513477818944586E-3,1.9794881796634895E-3,1.9855859856272862E-3,3.6683744505619374E-3,6.3749768891279823E-3,0]
[null,"Manufacturing: Textiles, textile products, leather and footwear",7.0119936594985411E-3,1.9389032954033939E-3,1.0853257770227836E-2,1.487906274929623,1.1173488096748339E-2,5.9729052709140779E-2,4.452160361058501E-3,9.6836322304208137E-3,4.4746613100770667E-2,1.3696639548091935E-2,1.7295093205572296E-2,2.6089750665422386E-2,2.9737635800495561E-2,4.6276721866051446E-2,4.1277022028990591E-2,0,0,6.8015750733917843E-2,0,9.2068054747374423E-2,7.012863000383231E-3,9.1866386371367015E-3,1.2168859452524461E-2,9.1546955507309947E-3,1.0004367062986736E-2,6.7818836878138578E-3,3.3030481129927426E-3,1.6644209809345445E-3,4.2749725679693609E-3,9.1135454063173936E-3,0,7.9563035503169253E-3,8.9995697701466867E-3,2.3456645807120691E-3,8.3082555549034137E-3,1.2083838523823092E-2,0]
[null,"Manufacturing: Wood and products of wood and cork",2.1526424802102866E-3,2.3016562888476745E-3,2.6701629973869055E-3,4.6393946885922134E-3,1.1423227702983878,5.8121239686883897E-3,2.3963679367798498E-3,3.1884962962790281E-3,5.3323708526243326E-3,5.876211035952577E-3,4.1500966682640611E-3,6.4134130360365615E-3,6.4237405748434053E-3,1.8050010186792732E-2,1.0235219245178978E-2,0,0,7.1828681212751039E-3,0,5.9741766744150875E-2,2.5221761713082546E-3,1.2575307264706608E-2,1.1059740936956244E-2,9.9720223536998911E-4,1.6799364740330367E-3,1.7944456181825919E-3,7.5762566312312742E-4,4.8168239392694341E-4,8.1298591521496936E-4,1.7142515672337647E-3,0,1.2353675992021118E-3,9.7081799884745355E-4,4.4333807191628124E-4,2.1133462547733395E-3,1.4872286628648821E-3,0]
[null,"Manufacturing: Pulp, paper, paper products, printing and publishing",9.2889703372144618E-3,3.3324196085492367E-3,2.6221170541288478E-2,3.4377849107877161E-2,1.3037410751145525E-2,1.3372556923886323,7.8005162637122677E-3,2.2647947936073731E-2,4.0265568497730171E-2,3.3027540944810689E-2,1.1256180923939511E-2,2.6225049121638637E-2,2.8047073804898532E-2,5.5767485679919279E-2,4.2461097571837449E-2,0,0,2.446731694076551E-2,0,5.2592776970388687E-2,1.0996825359757397E-2,1.2265863547345129E-2,1.2368767020299612E-2,1.2257515281809008E-2,1.2914739455110456E-2,1.5782113615731723E-2,1.7649503828922716E-2,1.0700865431547572E-2,6.5914751458371135E-3,2.4822933782053223E-2,0,3.6343941659024187E-2,1.6795392409426887E-2,8.2821635410488086E-3,1.1350567855134254E-2,2.0885522893828636E-2,0]
[null,"Manufacturing: Coke, refined petroleum products and nuclear fuel",2.5677421394082085E-2,1.2390881514256265E-2,2.3753008484887216E-2,1.9597923356414082E-2,2.762770008553006E-2,2.8070477152733E-2,1.0214512958708053,2.9344999350145222E-2,2.4191092865783449E-2,3.7975445325111663E-2,5.0277217033769403E-2,2.8531533508438362E-2,2.140331068552815E-2,2.1949273108607354E-2,2.5969460348318207E-2,0,0,1.910827585434937E-2,0,2.650929111871567E-2,9.5089743047657854E-2,2.5633737643325778E-2,6.8812356780161349E-3,1.7291273877307122E-2,8.8998771793063633E-2,2.3676970136597784E-2,4.4019207807963765E-3,4.5626614293589442E-3,8.4852380903704446E-3,1.1503739402695041E-2,0,1.0269760437436163E-2,1.7038749548142027E-2,3.3715994996667553E-3,1.0375867657867173E-2,1.2722912090312146E-2,0]
[null,"Manufacturing: Chemicals and chemical products",7.5654878489250732E-2,5.4876491447293306E-2,6.762715887042374E-2,8.778800617147188E-2,5.7304671505951456E-2,0.13012708521086772,0.10845032550259626,1.2767562373196131,0.33289170350611486,8.2178222609067139E-2,5.9880290706120699E-2,7.4844819874912455E-2,8.8745648996998674E-2,0.12831648807453386,0.11282392061201096,0,0,8.5239403168384437E-2,0,0.12072152727546691,0.24978684808469476,5.4535618372711023E-2,2.51355695699047E-2,5.0119384671230512E-2,3.4082661971865429E-2,2.4518411201033777E-2,1.3221352651608446E-2,1.7438255992683008E-2,1.8117382630895698E-2,4.9792133952655485E-2,0,4.3531147650298863E-2,2.7745812412372291E-2,8.933989232590301E-3,9.7423926018380111E-2,7.0487797799879182E-2,0]
[null,"Manufacturing: Rubber and plastics products",1.4045115209220978E-2,3.1925318204933063E-3,2.9943366651369572E-2,4.1113960055975798E-2,1.4008832908672584E-2,4.6797312656719457E-2,7.9999083333699948E-3,1.6706804755488448E-2,1.0754828249973212,1.5653133800511653E-2,1.33585031649527E-2,3.8551051210746388E-2,5.4246712353252832E-2,0.11604243634963224,9.8921471782223686E-2,0,0,9.0432282201520803E-2,0,8.4003204995013514E-2,9.5660522918972098E-3,3.6028952424074064E-2,1.3011182040722581E-2,1.1260276330916958E-2,1.5250748787132239E-2,1.1301891191483714E-2,4.9986680074095213E-3,2.4139869936468166E-3,5.9859071437217666E-3,1.9798929027991064E-2,0,1.6286600323258467E-2,4.7406216353818127E-3,2.771209577480786E-3,9.9786844880786797E-3,1.4209648851256224E-2,0]
[null,"Manufacturing: Other non-metallic mineral products",2.338768281933102E-3,4.4067765648590669E-3,1.1096840052701781E-2,4.4478255289023662E-3,5.2733708646465057E-3,6.4916332758615256E-3,4.10145597084304E-3,5.2770188863049024E-3,7.2034902096184935E-3,1.0682019546280481,6.2739948174546254E-3,1.3717204230156989E-2,1.1117967922408477E-2,2.636187193675529E-2,2.1547965002373611E-2,0,0,1.4658809696691566E-2,0,1.9323117195845781E-2,3.5147380235726602E-3,9.5308026773278556E-2,4.2041215664815777E-3,3.0423073258931533E-3,3.6080740970068524E-3,3.7701542486761534E-3,1.1324467688826991E-3,2.2391559454559601E-3,1.3629574324385315E-3,2.4504619333422478E-3,0,2.0848185287759176E-3,2.9077147869972409E-3,7.9835155654822383E-4,1.8763968988279648E-3,3.1762388808867265E-3,0]
[null,"Manufacturing: Basic metals",8.373507279701882E-3,1.6462621163374581E-2,1.1452209872347734E-2,2.438130140800393E-2,1.3823709644046748E-2,2.2931114201445509E-2,1.867528118226526E-2,1.6639689449287214E-2,6.4971034356765697E-2,2.7178308490556063E-2,1.3953821948167362,0.37695819511215745,0.21347364871996818,0.15413037955977535,0.24693134786857426,0,0,0.13226833835878782,0,0.11449648097717144,1.8960661927073932E-2,0.12892419639394992,1.5405266061978512E-2,6.6927150021744248E-3,1.356269611669178E-2,2.4686449910279757E-2,7.1888968243093545E-3,4.4283163885792329E-3,8.5340255836075223E-3,2.4186288335370884E-2,0,1.1701906915357036E-2,6.2894545282336737E-3,3.1739619911995798E-3,8.7126183837307105E-3,8.2531433807544081E-3,0]
[null,"Manufacturing: Fabricated metal products except machinery and equipment",9.0744998708244227E-3,4.1178073416505484E-3,1.1168852046691463E-2,1.7809673139409253E-2,1.3219902905799651E-2,1.3178423774286996E-2,1.2492605023282782E-2,9.1752620380243163E-3,3.1869867733931155E-2,1.072918652321115E-2,1.6381397887468112E-2,1.0898279908479267,6.2027105081246849E-2,5.7842243637867746E-2,6.9967493464478975E-2,0,0,5.2571447656056911E-2,0,4.0914978513569143E-2,1.4217318875140323E-2,4.3554642437501637E-2,1.2550396719796752E-2,5.6823961663456709E-3,9.0906531094595306E-3,1.3582102821183719E-2,1.1352396367530332E-2,2.4333938913857272E-3,5.8827412507578992E-3,1.4641092957643051E-2,0,1.6359210564984464E-2,5.0344701289496219E-3,2.606296378708886E-3,4.9198170334217792E-3,6.2228715193122066E-3,0]
[null,"Manufacturing: Machinery and equipment not classified elsewhere",2.6671347498328328E-3,2.8840374925984055E-3,4.2106286686756159E-3,1.0436896575329972E-2,7.0259547084934133E-3,9.1437278641104021E-3,8.9923538578668086E-3,5.1209162190439519E-3,1.6738236700266015E-2,6.2783179095401952E-3,1.0227390706723866E-2,2.5174899947928684E-2,1.0915585194569244,3.8989716581366331E-2,3.8352225061065226E-2,0,0,2.5896376852562984E-2,0,2.5204154110036858E-2,8.9803549320633096E-3,1.2677869366841151E-2,7.6763482191736952E-3,2.0123358187995252E-3,4.6202425735832045E-3,3.9742408030752794E-3,1.3719825497598627E-3,1.0756571219416651E-3,9.3883299512522375E-3,3.8216472071771388E-3,0,2.6846185319821633E-3,2.3740693233996954E-3,8.5190900587232919E-4,2.6047016724490093E-3,3.46016135615166E-3,0]
[null,"Manufacturing: Office, accounting and computing machinery",1.0061501056711865E-2,5.6116231349241253E-3,1.714109484016501E-2,3.7690510560125227E-2,1.6841814414846359E-2,4.3504625070848506E-2,1.2442355095759671E-2,2.5220702702905568E-2,7.9066024248208924E-2,3.0493649535567754E-2,2.6240651513959844E-2,7.3485878165626711E-2,0.15431740045717177,1.8824425859704044,0.24213710255578139,0,0,0.13839712966502737,0,0.13488268223150468,2.2759318114905471E-2,2.6242616576748725E-2,4.89457132275661E-2,1.0406318881614153E-2,1.7392193952553911E-2,8.0280632737919674E-2,1.0220050580654476E-2,6.2094844495972721E-3,1.3485304439198299E-2,3.0643698073786505E-2,0,2.3985851023549925E-2,1.6002932536091391E-2,7.5532978135032991E-3,4.2933768956622098E-2,1.6099815139210914E-2,0]
[null,"Manufacturing:  Electrical machinery and apparatus not classified elsewhere",4.229520181136882E-3,2.393348093677878E-3,6.8940329769050001E-3,2.0722434105717582E-2,7.2118681392207874E-3,1.8824932233481549E-2,5.4101724296559094E-3,8.3510841788620675E-3,4.3068372983569456E-2,1.3008786199311808E-2,1.6699410955796353E-2,4.5812099544122742E-2,9.3377966282149324E-2,0.23268945944841876,1.2549045829049739,0,0,0.10395448111205378,0,5.3918260020722739E-2,8.9744016031361954E-3,2.8970495575027115E-2,1.4103983927193128E-2,4.195055640408017E-3,8.0305567887697087E-3,3.1221626878340208E-2,3.8994480369451694E-3,3.0760279959216202E-3,5.4610704164387881E-3,2.4268393615275725E-2,0,7.3117247977724032E-3,5.9910787635515271E-3,2.5252438215149892E-3,9.2130925538064633E-3,6.0467126967761881E-3,0]
[null,"Manufacturing: Radio, television and communication equipment",0,0,0,0,0,0,0,0,0,0,0,0,0,0,0,1,0,0,0,0,0,0,0,0,0,0,0,0,0,0,0,0,0,0,0,0,0]
[null,"Manufacturing: Medical, precision and optical instruments",0,0,0,0,0,0,0,0,0,0,0,0,0,0,0,0,1,0,0,0,0,0,0,0,0,0,0,0,0,0,0,0,0,0,0,0,0]
[null,"Manufacturing: Motor vehicles, trailers and semi-trailers",1.1619263688043923E-2,6.8306877747015297E-3,1.8545133041556718E-2,3.3461416867308198E-2,1.5516030830233767E-2,3.0842074847953128E-2,9.720519028500756E-3,1.55856958752865E-2,3.7766426738424723E-2,2.3100732561816904E-2,3.45495003254781E-2,4.2093107931076977E-2,4.7678525040094767E-2,5.2559276442113362E-2,5.2767634451141479E-2,0,0,1.3183107313832874,0,3.0435928118914719E-2,1.4062413719110697E-2,1.7064793259691624E-2,2.0342788119140566E-2,1.1026627118285916E-2,4.9923529645070255E-2,1.1931492824169686E-2,1.0628699530047879E-2,3.0431637554643276E-3,1.5211034728105539E-2,2.1483426390382216E-2,0,1.6362206369274542E-2,7.8499270672062593E-3,5.2701258953056496E-3,8.207868571961846E-3,1.6471502998738386E-2,0]
[null,"Manufacturing: Other transport equipment",0,0,0,0,0,0,0,0,0,0,0,0,0,0,0,0,0,0,1,0,0,0,0,0,0,0,0,0,0,0,0,0,0,0,0,0,0]
[null,"Manufacturing: Manufacturing not classified elsewhere; recycling",2.0186922429166736E-3,1.1874297822847687E-3,3.5590036334570657E-3,1.7568284532211473E-2,5.9172237621026641E-3,9.8628680033361251E-3,2.1573432569155673E-3,6.1741206019021175E-3,1.2549043408753671E-2,6.184813013227263E-3,5.2347400268675012E-3,1.065092585482609E-2,1.1187598542128037E-2,2.2506057416953142E-2,1.8935671154082592E-2,0,0,9.7938336600696015E-3,0,1.0512229320416657,4.1438044599122594E-3,6.6577926712136706E-3,5.4860752513312336E-3,2.6818844136805679E-3,3.4897169377788662E-3,3.4088139546995144E-3,3.4056835847830354E-3,1.5657495978627449E-3,4.5320170788956046E-3,7.1651293951987115E-3,0,3.7842253649928658E-3,3.4124172552465197E-3,1.839097644690039E-3,1.4470795534088539E-2,8.3567874759483199E-3,0]
[null,"Electricity, gas and water supply",2.0594612837085923E-2,9.4960402207085043E-3,2.7231629929188921E-2,3.3665692282594729E-2,2.6588770510579091E-2,4.5640205179829203E-2,1.0916269790161691E-2,2.1166178218372939E-2,4.1476488503609736E-2,3.7827772569190246E-2,6.2728273922708036E-2,4.1398663180771664E-2,3.0863129298898999E-2,3.5815349372836446E-2,3.8771340851676613E-2,0,0,2.7609674246605757E-2,0,3.2541538559343504E-2,1.1675028226624127,1.8711461596321383E-2,1.6896287032995592E-2,4.7063270986589578E-2,1.2289984065800761E-2,1.3490892000779724E-2,8.1661461405237046E-3,1.3449027072491687E-2,6.6622876918109898E-3,2.1305791126077157E-2,0,1.1864836106398234E-2,2.4660860980640662E-2,9.393919766375965E-3,1.8947151985826482E-2,2.3554996346202176E-2,0]
[null,"Construction",3.2592222106294115E-3,1.0652866282301538E-3,4.3467091842338355E-3,2.7145733329898818E-3,1.6329358085469187E-3,2.0307834387931719E-3,3.9099478568877634E-3,2.4364604873976232E-3,3.0717284371004827E-3,2.6977585137274575E-3,1.6172313713547768E-3,2.5195056833227777E-3,2.4205588831484135E-3,4.7439332771689715E-3,5.1331549288857765E-3,0,0,3.3572996884183924E-3,0,3.0414173272269611E-3,4.2054853418257666E-3,1.0705237235161076,1.0548389769984292E-3,3.8492046835943415E-3,2.3192742254454658E-3,1.0170508522022144E-3,2.6128566991585295E-3,4.557682277870562E-3,6.4809513739000433E-4,3.2376258656968407E-3,0,1.5859147225813133E-3,4.5954758995158402E-3,3.0288802389231368E-3,2.1416424659890217E-3,1.4365893910786738E-3,0]
[null,"Wholesale and retail trade; repairs",9.2293643497929345E-2,3.9717016180949929E-2,0.14925682073664523,0.13764310294645718,0.13537270627871137,0.17045522039301528,6.1739600025197773E-2,0.12076818316596365,0.16007617409359903,0.1123650175689126,0.1748335474665686,0.16728894727504956,0.15139024646897939,0.14993637884789221,0.15586552692240413,0,0,0.20430063165521473,0,0.13138443317589493,0.14968140797110524,0.12847157141548576,1.0481738421564644,4.8305092236779867E-2,8.8122559047550841E-2,5.6812204834065079E-2,3.048734659042749E-2,1.769879640938966E-2,2.8043576952220119E-2,6.2938920739708401E-2,0,5.0244022865037027E-2,4.4266600618035667E-2,1.5453427985196699E-2,5.7462831585775975E-2,5.1965866249306214E-2,0]
[null,"Hotels and restaurants",1.6820144621673954E-3,3.1464259772292953E-3,3.5940704006205779E-3,1.1205940886077374E-2,3.2031839941541931E-3,6.0911966879544765E-3,3.6279781770277076E-3,6.6823990064633796E-3,8.7577688566296743E-3,4.0458345927096573E-3,3.786426329757005E-3,8.1987545627660863E-3,8.9478970827012016E-3,1.6222586401984793E-2,1.3093896699032317E-2,0,0,9.6303932942132069E-3,0,1.0757921970522761E-2,6.1479751588494969E-3,5.9121791372353594E-3,2.2126372006751258E-3,1.0023715309421262,7.9871471423398673E-3,4.0706455261156696E-3,6.752427991419784E-3,9.9216697168795368E-4,2.2531008422512593E-3,1.0673370939652271E-2,0,7.8481583135862534E-3,1.3585721239367498E-2,2.9019105218038251E-3,4.8601051312207998E-3,3.3991256918605331E-3,0]
[null,"Transport and storage",3.2893797037694725E-2,1.552302736972375E-2,5.2837372938410204E-2,5.0074871506204668E-2,5.5193980472238863E-2,7.2605323282931608E-2,2.2559786026852276E-2,4.3039826127019253E-2,5.9764942632796414E-2,3.8231319788928846E-2,4.5708346813598213E-2,4.903285777735341E-2,5.0466461506465887E-2,6.3605380669002259E-2,5.8824294620328135E-2,0,0,5.7799242357411018E-2,0,5.250896148138081E-2,5.9887736203452273E-2,4.2251512997920217E-2,1.7531416870702338E-2,1.9312161338302599E-2,1.0404620459865541,3.5557552045080869E-2,1.3598506475634813E-2,6.998286410897908E-3,1.0081826485221589E-2,2.6359129073878038E-2,0,2.2387613377766839E-2,1.9005110760024528E-2,6.7231336292264245E-3,1.9620619597546313E-2,2.4388078411772561E-2,0]
[null,"Post and telecommunications",1.000991860572103E-2,6.1523475935533435E-3,1.7067858809114933E-2,1.5481636731880844E-2,1.1323222246816436E-2,2.2975175085849689E-2,9.8675380158305438E-3,2.822137880562928E-2,2.064399273089387E-2,1.423125562967277E-2,9.2983797731994288E-3,1.7600888670359947E-2,1.6474879223952084E-2,1.934755185783649E-2,1.6047490511987051E-2,0,0,1.7224487897106247E-2,0,1.801408453882206E-2,1.6412172833677716E-2,1.4802812360455359E-2,1.9325642916650409E-2,2.4487890544668666E-2,1.5774734937676681E-2,1.0755876565717899,3.6949679491426753E-2,1.3004652957864122E-2,1.3123891077821637E-2,4.9557066159189207E-2,0,3.2809419924704028E-2,3.015712768992496E-2,2.3854547566078309E-2,1.5553679143698283E-2,4.1173431484707756E-2,0]
[null,"Finance and insurance",2.5313243704721631E-2,3.1112609926418778E-2,2.4652656638748431E-2,2.1683502144482669E-2,1.8643986645184647E-2,3.2927633759742253E-2,3.2067334058607136E-2,3.2553583379415683E-2,2.5132583711858995E-2,2.3416705424907511E-2,2.3343352789731243E-2,2.5910698429377009E-2,2.2856708540799818E-2,2.0780564689923689E-2,2.1873998214837785E-2,0,0,2.3434172684200456E-2,0,1.978255491397065E-2,4.0948388907927902E-2,2.2577435435666739E-2,3.879834663482485E-2,2.912878262811858E-2,4.5206469517942646E-2,3.2968233271768274E-2,1.1485358982896592,7.5978731442191512E-3,1.5569122416943901E-2,1.7913839757042044E-2,0,1.7246615791327025E-2,3.0117970116374411E-2,4.8250920353225257E-3,8.7286459965396756E-3,2.0103058544731267E-2,0]
[null,"Real estate activities",7.0322969515681198E-3,4.9384284953387526E-3,1.628447403688451E-2,2.5875474945797481E-2,1.3591157423562549E-2,3.0681113322014959E-2,8.4243643084148962E-3,1.6545994192307657E-2,3.0675508910033226E-2,1.7138419626465243E-2,1.2819670058615068E-2,2.4585721508638522E-2,2.2888289235962752E-2,2.5320742065390998E-2,2.525221891487452E-2,0,0,1.9986316202596013E-2,0,2.7350181972356776E-2,1.2149774921070304E-2,1.5218390075559711E-2,3.4467415460863328E-2,3.3506290126405436E-2,1.6581397034994852E-2,3.4109396235210226E-2,4.3067581410670595E-2,1.0125257457342638,1.7256846978597151E-2,4.4947691399612258E-2,0,3.2082264762109035E-2,1.7024087981696061E-2,1.4443368461533247E-2,2.1160788863019826E-2,3.3684716608552781E-2,0]
[null,"Renting of machinery and equipment",5.219889645267011E-3,1.7425698520986542E-2,9.2353197640471507E-3,7.1326608787086925E-3,4.306800071965127E-3,1.292274946000675E-2,1.3946508450496376E-2,1.780843575851361E-2,1.3543265233434708E-2,1.0729929305185449E-2,6.989275618094995E-3,8.5071173922324113E-3,1.6046875282845999E-2,1.3753269456043977E-2,1.0906668432281484E-2,0,0,1.2212700955242744E-2,0,8.3182740018455503E-3,1.0646965079259479E-2,1.3454491955212323E-2,5.7238941566229076E-3,8.7756097447239563E-3,1.3777958599736725E-2,1.4921032422939259E-2,4.3503938086805029E-3,1.2453011101199428E-3,1.0076163691316782,1.185564999161064E-2,0,5.3555627673878489E-3,4.2431258744509755E-3,2.0479101014905794E-3,3.0965055107413457E-3,7.6725712437418821E-3,0]
[null,"Computer and related activities",2.2083481541823033E-4,1.5239761024419987E-4,3.5709428562926175E-4,3.4165127126862367E-4,2.7557133065402495E-4,4.3891799620232542E-4,2.0246286496513442E-4,3.3141227230844441E-4,4.1370308365543796E-4,2.6965867584981485E-4,2.922636455119686E-4,3.9724150165485448E-4,3.9203462719522407E-4,3.6962980714514457E-4,3.457839483895165E-4,0,0,3.6237279443071519E-4,0,3.5435391057565818E-4,3.24318031480531E-4,5.3037830830504618E-4,1.1750807918003421E-3,8.933472596351148E-4,3.073001848765747E-4,3.0627912656836041E-4,1.9818337864771344E-3,2.193279985039999E-4,2.149234043418299E-4,1.0007323025393591,0,3.79171258991831E-4,9.0752102373816356E-4,2.031533953244778E-4,1.7144406535469798E-4,2.6048967801868555E-4,0]
[null,"Research and development",0,0,0,0,0,0,0,0,0,0,0,0,0,0,0,0,0,0,0,0,0,0,0,0,0,0,0,0,0,0,1,0,0,0,0,0,0]
[null,"Other Business Activities",4.1222955393539221E-2,3.5885700675888151E-2,7.4948958772957819E-2,8.3547691703911395E-2,4.3846233063046858E-2,0.10256733457368845,9.3627790469476654E-2,8.9812332410205753E-2,0.10203032185309335,7.710885109642597E-2,5.957961556197601E-2,8.5261473734848853E-2,8.6281361572416851E-2,9.9687478011765515E-2,8.4161705100163881E-2,0,0,7.4326061371191049E-2,0,7.8128315328430911E-2,7.5242144071906283E-2,6.8923373583015216E-2,8.2967053245802502E-2,7.3991048966645351E-2,7.6641006066033412E-2,0.14397943757884651,0.18707110357188739,3.6427229934940346E-2,4.595956277626298E-2,0.28899428449052789,0,1.1038288127600551,8.14787265001303E-2,4.2698749841539721E-2,5.9641998395118384E-2,8.0889811922845542E-2,0]
[null,"Public admin. and defence; compulsory social security",3.4288822038224914E-4,2.3679016295399295E-4,4.5625230675700541E-4,4.6755152842745508E-4,4.3785160859095547E-4,6.6685198448634129E-4,2.7632495334664164E-4,4.1670097118089389E-4,5.6263413419224565E-4,4.4933555684249408E-4,6.1168623407927177E-4,5.2158011660316853E-4,4.6146401920061286E-4,5.3073375493865058E-4,5.312047379552122E-4,0,0,4.736733029636472E-4,0,4.6413527173382431E-4,6.6507868972075935E-3,3.9450477342687778E-4,3.1606735313171241E-4,4.4562572866453854E-4,4.4130744349500347E-3,4.1244587751784392E-4,4.5861924782528343E-3,1.3080664883756375E-4,2.3727909518664612E-4,2.9409445347168192E-4,0,2.2327804129030157E-4,1.0003282829561988,9.7879149195479799E-5,2.155623859221157E-4,3.0576607488552439E-4,0]
[null,"Education",1.8085156637103576E-4,1.5338196287570692E-4,3.4637862711406478E-4,2.9676444562641465E-4,1.8737495211900693E-4,4.9347772644539644E-4,2.3208761089022541E-4,7.007850619212163E-4,4.106423398246083E-4,3.2412385640903299E-4,2.2363209097707437E-4,3.1660634222678129E-4,3.0930716855570079E-4,3.2570478994038118E-4,3.1777235987867094E-4,0,0,3.6008842068536946E-4,0,3.3994389413856472E-4,9.6565226256053354E-4,2.7193290752961337E-4,3.1585877579314058E-4,3.4256146515551807E-4,6.7273484628491945E-4,3.8630632578582789E-4,3.3373358459040229E-3,1.4382906484631139E-4,1.7925602217794422E-4,5.8224592884389742E-4,0,6.6130260417854043E-4,9.1629128425618524E-3,1.0017877309096086,9.9746255606544018E-4,7.9113394502574523E-4,0]
[null,"Health and social work",5.3874345253879E-5,2.4326571911921535E-5,9.353506496509696E-5,1.0089515058166131E-4,8.5066851320204031E-5,1.1805978557250558E-4,3.9671017215732617E-5,8.0648856168126932E-5,1.1442919498546069E-4,7.0737955834475301E-5,9.677150499181338E-5,1.1005459395923852E-4,1.0073522536736434E-4,1.0553247402488595E-4,1.0612994455794645E-4,0,0,1.2651902797173651E-4,0,9.9156399453052596E-5,8.602672329164681E-5,8.1217315847439462E-5,6.2123212093934729E-5,6.1703143564951067E-5,5.8517524431081985E-5,6.4238061329040876E-5,6.2042693041765821E-5,2.2657434145749516E-5,3.3538772823955482E-5,8.3873110377637357E-5,0,6.3034736701696967E-5,4.3543754691058825E-5,2.4581674755679954E-5,1.000055983932755,6.5393065369269733E-5,0]
[null,"Other community, social and personal services",6.962529530998387E-4,1.0199040544307994E-3,1.1100326688059825E-3,1.1392805731117934E-3,7.5119043573210263E-4,1.6536612311401527E-3,1.1778528994303098E-3,1.4404938648244318E-3,1.3950592824186852E-3,1.0297325976958299E-3,9.0775146599619393E-4,1.1624282159805337E-3,1.3012950236596758E-3,1.4149424631080937E-3,1.2853144912849436E-3,0,0,1.1894079924278011E-3,0,1.2756462641095947E-3,1.7239397657801429E-3,1.5222761120573497E-3,1.1497685653426106E-3,8.2477647520856397E-3,2.5739645184582999E-3,5.8818421652902537E-3,9.1553436350522606E-3,4.5013320425585027E-4,9.3338459471501312E-4,2.4372503086945775E-3,0,4.6515282183879313E-3,4.3215149701521698E-3,9.9906206202779522E-4,5.3193303489213568E-3,1.0079636372061966,0]
[null,"Private households with employed persons",0,0,0,0,0,0,0,0,0,0,0,0,0,0,0,0,0,0,0,0,0,0,0,0,0,0,0,0,0,0,0,0,0,0,0,0,1]
[]
[]
[]
[null,"Total Requirements - Type 2"]
[null,null,"C01T05 Agriculture, hunting, forestry and fishing","C10T14 Mining and quarrying","C15T16 Food products, beverages and tobacco","C17T19 Textiles, textile products, leather and footwear","C20 Wood and products of wood and cork","C21T22 Pulp, paper, paper products, printing and publishing","C23 Coke, refined petroleum products and nuclear fuel","C24 Chemicals and chemical products","C25 Rubber and plastics products","C26 Other non-metallic mineral products","C27 Basic metals","C28 Fabricated metal products except machinery and equipment","C29 Machinery and equipment n.e.c ","C30 Office, accounting and computing machinery","C31 Electrical machinery and apparatus n.e.c","C32 Radio, television and communication equipment","C33 Medical, precision and optical instruments","C34 Motor vehicles, trailers and semi-trailers","C35 Other transport equipment","C36T37 Manufacturing n.e.c; recycling","C40T41 Electricity, gas and water supply","C45 Construction","C50T52 Wholesale and retail trade; repairs","C55 Hotels and restaurants","C60T63 Transport and storage","C64 Post and telecommunications","C65T67 Finance and insurance","C70 Real estate activities","C71 Renting of machinery and equipment","C72 Computer and related activities","C73 Research and development","C74 Other Business Activities","C75 Public admin. and defence; compulsory social security","C80 Education","C85 Health and social work","C90T93 Other community, social and personal services","C95 Private households with employed persons","Households","Labor"]
[null,"Agriculture, hunting, forestry and fishing",1.1807122183366188,1.8211460723344581E-2,0.31062110055440256,0.133636924291402,0.35463669045839297,5.8260365128277987E-2,3.1926222525529173E-2,4.9643163531168148E-2,6.4001776071965305E-2,4.7381143389506802E-2,3.9799335763105133E-2,5.6214159763672486E-2,7.5329570707188501E-2,6.265451507733244E-2,6.0815501216026191E-2,0,0,5.6378840851564464E-2,0,7.9740938961639252E-2,5.0867732944452425E-2,6.0062497126690498E-2,4.3613480815964861E-2,4.802561421264772E-2,4.8804165906592263E-2,4.3810652758266642E-2,4.8138983400780128E-2,6.360139629521035E-3,1.3484292147682998E-2,7.7500263654327967E-2,0,5.6962821457461676E-2,0.12478528615339583,0.10804571747963143,7.8524468572725645E-2,3.6060062668001609E-2,0.15111595930743021,0.15111595930743021,0.15111595930743021]
[null,"Mining and quarrying",5.2926835586254301E-2,1.046115534999734,5.5442275628187265E-2,6.6966455859863411E-2,5.7464168406929965E-2,7.9923670042119366E-2,0.72091283565678743,0.32788733226155137,0.12650303790228162,0.14521683960155282,0.18628370314272938,9.8662111746188913E-2,9.5975480461821722E-2,8.9299268546825114E-2,9.6976470689210142E-2,0,0,7.2220261708533073E-2,0,9.4515778021112024E-2,0.16647303149296372,9.0226656589992446E-2,3.3748085888836307E-2,4.7799008790955888E-2,9.447489024551374E-2,4.7405607320419436E-2,3.3086677888431365E-2,1.1380209704750493E-2,1.748897463548631E-2,6.2561039241745331E-2,0,4.8639083410886984E-2,8.7335792382190511E-2,6.4357347577266119E-2,7.2218092389224511E-2,4.3985286875324971E-2,8.3916992098317017E-2,8.3916992098317031E-2,8.3916992098317017E-2]
[null,"Manufacturing: Food products, beverages and tobacco",0.16137019957706866,3.6113359129804207E-2,1.2384161045775361,0.15368745151974336,0.11764573470018234,0.11384462738242668,6.3807859928891889E-2,9.0270432194538425E-2,0.11426664741637993,8.7372962751929836E-2,7.9185764537224951E-2,0.11084081927724788,0.1498447301534182,0.11526338856015117,0.11605836045912227,0,0,0.10629058066593448,0,0.12052316045222844,0.10224470801762545,0.11136614796587078,8.3874590053992892E-2,0.10793696164013851,9.9730286087441139E-2,8.942789126768845E-2,9.9098354937119798E-2,1.2761875493537909E-2,2.8085643972124243E-2,0.16242721129610788,0,0.11699119784541814,0.25654883157436653,0.22318065713088706,0.16059503659151084,7.4497895458807847E-2,0.31167349647553116,0.31167349647553116,0.31167349647553116]
[null,"Manufacturing: Textiles, textile products, leather and footwear",2.1666176641594558E-2,9.8590239947154816E-3,2.8396227949498785E-2,1.5135741808098067,3.1351346764576966E-2,8.3276453215005264E-2,1.8483220318220413E-2,2.8440848436101934E-2,6.9072871589166765E-2,3.2655678966279758E-2,3.4445694319979014E-2,5.0162259901502866E-2,6.2668386354214595E-2,7.09577991688016E-2,6.6433540380830242E-2,0,0,9.083561190701446E-2,0,0.11765668992218575,2.9291049562756688E-2,3.3742020779839184E-2,3.0333353805432541E-2,2.8625535646873326E-2,3.1995405855686866E-2,2.6607053149016291E-2,2.5491291333357129E-2,4.4205757281009254E-3,9.993462016154404E-3,4.376038990808629E-2,0,3.3812722847201049E-2,6.6921607499574334E-2,5.2674070529319938E-2,4.4013701953404524E-2,2.7583812743082629E-2,7.0914917646340545E-2,7.0914917646340572E-2,7.0914917646340545E-2]
[null,"Manufacturing: Wood and products of wood and cork",4.123507863840031E-3,3.366846462842004E-3,5.0295461642694515E-3,8.0915139388654609E-3,1.1450365239899298,8.9790529328056326E-3,4.2834284708942244E-3,5.7111854259426836E-3,8.6040497191012377E-3,8.4260437043333618E-3,6.4567094685903216E-3,9.6509647445462334E-3,1.0852651855845287E-2,2.1369409224331063E-2,1.3618561138265923E-2,0,0,1.0251949113387825E-2,0,6.3183224745731861E-2,5.5184064462728581E-3,1.5877801351615452E-2,1.3502713921190396E-2,3.6158678261137031E-3,4.6375477690158108E-3,4.4607655531400826E-3,3.7417593087860361E-3,8.5236221891300075E-4,1.5820750492765287E-3,6.3739631706691974E-3,0,4.7128403316707632E-3,8.7608489579051891E-3,7.2120888933414088E-3,6.9154309837431887E-3,3.5718459133260673E-3,9.5374649370002628E-3,9.5374649370002628E-3,9.5374649370002628E-3]
[null,"Manufacturing: Pulp, paper, paper products, printing and publishing",1.7698678750379688E-2,7.8776000365311741E-3,3.6288689425744203E-2,4.9108087176600819E-2,2.4617033307095488E-2,1.3507690197699187,1.5852628286029374E-2,3.3412295503263259E-2,5.4225865084762084E-2,4.3907710347326247E-2,2.109852796293064E-2,4.003972467850872E-2,4.6945296266144548E-2,6.993140486207429E-2,5.6897861756363223E-2,0,0,3.7563125743557191E-2,0,6.7277523351264495E-2,2.3781779198027191E-2,2.635764908368456E-2,2.2792964750543442E-2,2.3431395665859063E-2,2.5534905599832698E-2,2.7159335710883515E-2,3.038284119147865E-2,1.2282561101210563E-2,9.8731885570695257E-3,4.4705984242944752E-2,0,5.1182363368443312E-2,5.0035556572517542E-2,3.7164511976598646E-2,3.1841126307977176E-2,2.9780612013079327E-2,4.0696487840910539E-2,4.0696487840910546E-2,4.0696487840910539E-2]
[null,"Manufacturing: Coke, refined petroleum products and nuclear fuel",3.9362748611880098E-2,1.9787366429653293E-2,4.0136131827124638E-2,4.3568805349298252E-2,4.6471507260661966E-2,5.0061050181950471E-2,1.0345546976067415,4.6862089302096524E-2,4.6909029976653319E-2,5.5681015024222902E-2,6.6293912643435968E-2,5.1012497902818123E-2,5.2156857123834464E-2,4.4998570322145486E-2,4.9462765005840945E-2,0,0,4.0419410538562461E-2,0,5.0406143358925744E-2,0.11589501573312444,4.8565649984773286E-2,2.3844791358268412E-2,3.5474806746160138E-2,0.10953588137502306,4.2191406018579979E-2,2.5123196694285956E-2,7.1365940480482932E-3,1.3825651771948746E-2,4.3859920886860887E-2,0,3.4416692353788803E-2,7.1131293664544293E-2,5.0372561927826361E-2,4.3720661974823646E-2,2.7198111377584853E-2,6.6226404692713722E-2,6.6226404692713736E-2,6.6226404692713722E-2]
[null,"Manufacturing: Chemicals and chemical products",0.1063209471963948,7.1450528077702496E-2,0.10433844666464477,0.14150193660702828,9.9529857381320613E-2,0.17940354113268367,0.13781241612246109,1.3160085164552664,0.38379803619653707,0.12185284698969176,9.5770487572489557E-2,0.12522014431906084,0.15765816771550922,0.17996533217981012,0.16546769619148749,0,0,0.13299337426842173,0,0.17426957190897074,0.29640728408082034,0.10592142656401753,6.3147489616035876E-2,9.0865028485261373E-2,8.0102198331029648E-2,6.6005542184098043E-2,5.9653568757947521E-2,2.3205921849414144E-2,3.0084176721932667E-2,0.12229583581546745,0,9.7639570593272274E-2,0.14895633577205553,0.11425370283427598,0.17214291061229797,0.10292381111754478,0.14840006703622421,0.14840006703622427,0.14840006703622421]
[null,"Manufacturing: Rubber and plastics products",2.2080203640744849E-2,7.5352420408493015E-3,3.9562416509983142E-2,5.5188022994270537E-2,2.5072628068926777E-2,5.9708673571776671E-2,1.5693329910100154E-2,2.6991642274304742E-2,1.0888212443688541,2.604863373988096E-2,2.2762411712868139E-2,5.1750336405758712E-2,7.2303092100855768E-2,0.12957540771727305,0.11271513396272508,0,0,0.10294472337582243,0,9.8033802724195387E-2,2.1781485887981167E-2,4.9493003420812427E-2,2.2971022082153281E-2,2.193640356364699E-2,2.7308735344028886E-2,2.217230204859745E-2,1.7164784442123736E-2,3.925224239114772E-3,9.1214329159221893E-3,3.8796266497101252E-2,0,3.046402773950245E-2,3.6500065055641656E-2,3.0366961105134684E-2,2.955646781789734E-2,2.2708496155828151E-2,3.8883616718772412E-2,3.8883616718772419E-2,3.8883616718772412E-2]
[null,"Manufacturing: Other non-metallic mineral products",6.585919321377514E-3,6.7022268742830899E-3,1.6181234325849857E-2,1.1887030653648979E-2,1.1121422135709127E-2,1.3316262575010058E-2,8.1680102751242531E-3,1.0713332217616087E-2,1.4253852154123654E-2,1.0736967614057578,1.1244670660600843E-2,2.0694023255070707E-2,2.0662128222221219E-2,3.3515069303613206E-2,2.8838957150987828E-2,0,0,2.1272579786754404E-2,0,2.6739347675118767E-2,9.9715171787751779E-3,0.10242479451930388,9.4686491874476659E-3,8.6854468208906934E-3,9.9816306017257318E-3,9.5159873113027649E-3,7.5631580799091413E-3,3.0379589571011062E-3,3.0203195954185075E-3,1.2491989449338195E-2,0,9.578659586120539E-3,1.9694979082102337E-2,1.5384790247764624E-2,1.22247338870106E-2,7.6685215074323012E-3,2.0552927895178427E-2,2.055292789517843E-2,2.0552927895178427E-2]
[null,"Manufacturing: Basic metals",1.6009143717419939E-2,2.0589440261831241E-2,2.0593063544660981E-2,3.7755694075142239E-2,2.4337485339862474E-2,3.5200606778124303E-2,2.598623620443247E-2,2.6413232178024784E-2,7.7646354839271209E-2,3.7057012228766242E-2,1.4043186025958621,0.3895012982585348,0.23063238347553874,0.1669905801868089,0.26003927946790772,0,0,0.14415874287262856,0,0.12782956924084188,3.0568824135077756E-2,0.14171890291972394,2.4869968060257413E-2,1.6838095081891526E-2,2.5021238521544108E-2,3.5016455104485457E-2,1.875019359734394E-2,5.8644248117622451E-3,1.1513673541642134E-2,4.2239202554667676E-2,0,2.5174525455293272E-2,3.6470026339985355E-2,2.9397833412961424E-2,2.7317122495524523E-2,1.6329483636425259E-2,3.6950577853418091E-2,3.6950577853418098E-2,3.6950577853418091E-2]
[null,"Manufacturing: Fabricated metal products except machinery and equipment",1.4762994923169693E-2,7.1922583340435827E-3,1.7978723275278365E-2,2.7773500927139282E-2,2.1052591315593751E-2,2.2319108822157461E-2,1.7939214721209403E-2,1.6456482131437265E-2,4.1312891696603175E-2,1.8088750823680579E-2,2.3038958374002688E-2,1.0991725138318607,7.4810240915139201E-2,6.7423001998451831E-2,7.9732809644405975E-2,0,0,6.1429714782717186E-2,0,5.0848034813331743E-2,2.2865317483463977E-2,5.3086608156632534E-2,1.9601532656963273E-2,1.3240632452001053E-2,1.7627186024398948E-2,2.1277883509178523E-2,1.9965480558814482E-2,3.5032844927184131E-3,8.1025578705334871E-3,2.8090386157303821E-2,0,2.6396215932079484E-2,2.7518782318047059E-2,2.2142894808035402E-2,1.8780040795320085E-2,1.2239687793918732E-2,2.7527918728839425E-2,2.7527918728839428E-2,2.7527918728839425E-2]
[null,"Manufacturing: Machinery and equipment not classified elsewhere",4.9748034049751895E-3,4.1312591428996816E-3,6.973209322285707E-3,1.4478952138251006E-2,1.0203464640813129E-2,1.2851856671008551E-2,1.1201896164055097E-2,8.0747103642694659E-3,2.0569016231212808E-2,9.2638941815448624E-3,1.2928183009980951E-2,2.8965720294760619E-2,1.0967442920746118,4.2876371233917659E-2,4.2313749831431546E-2,0,0,2.948993634395148E-2,0,2.9233726512191988E-2,1.2488614170139885E-2,1.6544730163856523E-2,1.0536803442500027E-2,5.0785079441273825E-3,8.0832831933117816E-3,7.0962109739403515E-3,4.8660779527494417E-3,1.5096828145734868E-3,1.0288849541492224E-2,9.2776618586938951E-3,0,6.7563602605069046E-3,1.149534691857375E-2,8.7773788196981849E-3,8.2274197436206092E-3,5.9010210550513517E-3,1.1167332415215609E-2,1.1167332415215609E-2,1.1167332415215609E-2]
[null,"Manufacturing: Office, accounting and computing machinery",2.5703431750752886E-2,1.4065590116122536E-2,3.586652798420617E-2,6.5088530997670854E-2,3.8379737560882185E-2,6.8639210000459944E-2,2.7419161901161601E-2,4.5242226677382487E-2,0.10503196515298077,5.0730600375284159E-2,4.4547268424670862E-2,9.9180966152618413E-2,0.18946780894417903,1.9087872618281827,0.26898926599905276,0,0,0.16275513634157276,0,0.16219608881640388,4.6539139250161878E-2,5.2453124942252086E-2,6.8334563640286144E-2,3.118956771307178E-2,4.0865512465476046E-2,0.10144209408234409,3.3903865850294548E-2,9.1514145176127305E-3,1.9589241842764241E-2,6.7625871772996712E-2,0,5.1585091399629759E-2,7.7829136080040051E-2,6.1274029890583344E-2,8.104589834981378E-2,3.2644546619177893E-2,7.5694853022712005E-2,7.5694853022712005E-2,7.5694853022712005E-2]
[null,"Manufacturing:  Electrical machinery and apparatus not classified elsewhere",1.1711309947238223E-2,6.4370179500457423E-3,1.585071209812593E-2,3.3827352733132074E-2,1.7513806955410358E-2,3.0847212857267492E-2,1.2573822625869934E-2,1.7927704616840422E-2,5.5488304686918864E-2,2.2688448809463062E-2,2.5455763463270022E-2,5.8102477893221663E-2,0.11019097815622446,0.24529054623747293,1.2677484092571829,0,0,0.11560531173136045,0,6.6982706466717751E-2,2.0348676677584703E-2,4.1507407871157136E-2,2.3377986314227255E-2,1.4136021462023338E-2,1.9258226675666956E-2,4.1343497894095298E-2,1.5227801944953042E-2,4.4832009789760206E-3,8.3806829177472553E-3,4.1957568572197304E-2,0,2.0512890193332595E-2,3.5563557123159367E-2,2.8220743395291306E-2,2.7442743690602633E-2,1.3960326757019321E-2,3.620607888945726E-2,3.6206078889457267E-2,3.620607888945726E-2]
[null,"Manufacturing: Radio, television and communication equipment",0,0,0,0,0,0,0,0,0,0,0,0,0,0,0,1,0,0,0,0,0,0,0,0,0,0,0,0,0,0,0,0,0,0,0,0,0,0,0]
[null,"Manufacturing: Medical, precision and optical instruments",0,0,0,0,0,0,0,0,0,0,0,0,0,0,0,0,1,0,0,0,0,0,0,0,0,0,0,0,0,0,0,0,0,0,0,0,0,0,0]
[null,"Manufacturing: Motor vehicles, trailers and semi-trailers",3.3253180350490401E-2,1.8523132953991047E-2,4.4443755662402933E-2,7.1354852304128941E-2,4.530452967590539E-2,6.5605015967462682E-2,3.043452145155592E-2,4.3276905457491043E-2,7.3679193044814767E-2,5.108989301342521E-2,5.986886993299935E-2,7.7631265145683415E-2,9.6294071466762318E-2,8.8995860464535934E-2,8.9906110352932181E-2,0,0,1.3519996088505963,0,6.8212336503739951E-2,4.6951618942606972E-2,5.331581397772072E-2,4.7158964601064488E-2,3.9771357036181031E-2,8.2388819667936777E-2,4.1199317885897334E-2,4.3385121727172536E-2,7.112064913710631E-3,2.3653219755292894E-2,7.2632436027001437E-2,0,5.4533943472700269E-2,9.336001921553623E-2,7.956976725888204E-2,6.091968831137512E-2,3.9354058166721391E-2,0.10469143318051785,0.10469143318051788,0.10469143318051785]
[null,"Manufacturing: Other transport equipment",0,0,0,0,0,0,0,0,0,0,0,0,0,0,0,0,0,0,1,0,0,0,0,0,0,0,0,0,0,0,0,0,0,0,0,0,0,0,0]
[null,"Manufacturing: Manufacturing not classified elsewhere; recycling",7.4568091747884971E-3,4.1265593489088299E-3,1.0069139564185734E-2,2.7093556172620166E-2,1.3405157753680313E-2,1.8601227388431854E-2,7.3642213761784953E-3,1.3134859059141257E-2,2.1576434313894107E-2,1.3220447370873703E-2,1.1599269146367741E-2,1.9584151284678466E-2,2.3408086875337894E-2,3.1665120364434196E-2,2.827116864058361E-2,0,0,1.8262205699643486E-2,0,1.0607187865957988,1.2411162913417383E-2,1.5770210576869823E-2,1.2226856666448429E-2,9.9074462436349753E-3,1.165051584100967E-2,1.0765866194043986E-2,1.163966437324288E-2,2.5885491504366812E-3,6.6541288561881157E-3,2.0022454293570528E-2,0,1.3379453686336727E-2,2.4907086353466418E-2,2.0515796091654315E-2,2.7720963957463728E-2,1.4108774628580135E-2,2.6316282173221586E-2,2.6316282173221586E-2,2.6316282173221586E-2]
[null,"Electricity, gas and water supply",3.4541042842539484E-2,1.7033642904027865E-2,4.3927327396040598E-2,5.8093915485615565E-2,4.5792099274429149E-2,6.8050337042291381E-2,2.4269671739213364E-2,3.9017477279487456E-2,6.4627861849874638E-2,5.587114738847837E-2,7.9050552570774674E-2,6.4308542600648499E-2,6.2203423615246042E-2,5.9304404851571853E-2,6.2712875006360538E-2,0,0,4.9327404738547465E-2,0,5.6894319593714722E-2,1.1887050397986518,4.208089261330613E-2,3.4183490924662469E-2,6.5593728049941166E-2,3.3218921806261473E-2,3.235856538623709E-2,2.9282763927735937E-2,1.6072067832424698E-2,1.2104591293688788E-2,5.4279297212640326E-2,0,3.6472468094904717E-2,7.9785438444539725E-2,5.7291615032353735E-2,5.2928132680455764E-2,3.830636841514292E-2,6.7489940347103011E-2,6.7489940347103025E-2,6.7489940347103011E-2]
[null,"Construction",4.3488625791223666E-3,1.6542026563602138E-3,5.6511509612988849E-3,4.6231605572586865E-3,3.1332998603042944E-3,3.7816963484797587E-3,4.953254697040368E-3,3.831189896961542E-3,4.8805548517655631E-3,4.1074948820494957E-3,2.8924977810215703E-3,4.309464077223016E-3,4.8691890941908317E-3,6.5791429370885566E-3,7.0037169356785695E-3,0,0,5.0541149914612761E-3,0,4.9441102235268783E-3,5.8620233722869695E-3,1.0723495868671489,2.4054953966960056E-3,5.2969969899378062E-3,3.9544608232173787E-3,2.4911900098429276E-3,4.2627068169295481E-3,4.7626215418332968E-3,1.0733045780771016E-3,5.8138595906442117E-3,0,3.508519229771339E-3,8.9023820308550741E-3,6.7711470627034587E-3,4.796590600484295E-3,2.5891202172967009E-3,5.2730170689293367E-3,5.2730170689293367E-3,5.2730170689293367E-3]
[null,"Wholesale and retail trade; repairs",0.17078742449432438,8.2140412995113224E-2,0.243224124199443,0.27513087590908442,0.24345354716788475,0.29658470168855727,0.13689567994929511,0.22123948359599113,0.29037753641333874,0.21391736544197026,0.26669916218391793,0.29623112510367211,0.32778077777110842,0.28213829545587432,0.29061409970559032,0,0,0.32653311554583042,0,0.26844759990871575,0.26901246171598303,0.26000021347945929,1.1454702825918963,0.15259885328710229,0.20591553222022072,0.16300389848258148,0.14933662711066562,3.2461885377268018E-2,5.8674138814620892E-2,0.2485215511641182,0,0.18874155057574205,0.35452065913179992,0.2850328974960003,0.24871576553689814,0.13499005008151241,0.37984922270385585,0.3798492227038559,0.37984922270385585]
[null,"Hotels and restaurants",2.1183708523594951E-2,1.3686472528870749E-2,2.6940144199676906E-2,4.5364627745961346E-2,3.0055750734687324E-2,3.742792840260048E-2,2.2300424056571424E-2,3.1644383740389734E-2,4.1130999850095176E-2,2.9276404381811658E-2,2.6610337858047412E-2,4.0234297655580925E-2,5.2771931714753979E-2,4.9068008030248959E-2,4.6572032269446346E-2,0,0,3.9998920264682873E-2,0,4.4811115876886728E-2,3.579564498210918E-2,3.8590326441216363E-2,2.6385831440418017E-2,1.0282832018375874,3.725268252921151E-2,3.0453855700349947E-2,3.6280401783801042E-2,4.6600402834146822E-3,9.8632304447175342E-3,5.6781172547757185E-2,0,4.2257717636538218E-2,9.0668002837314118E-2,6.9878634956610688E-2,5.2376687450481116E-2,2.402639338418594E-2,9.4373124043825488E-2,9.4373124043825501E-2,9.4373124043825488E-2]
[null,"Transport and storage",8.0981440063526075E-2,4.151287186500123E-2,0.11040455963344924,0.1343040023076246,0.12140754323651622,0.14987602415351206,6.8602653330910715E-2,0.10459155631621868,0.13959146286755139,0.10044533204524908,0.10198797598675953,0.1280267008523969,0.15852858814530202,0.14459623742830824,0.14137530928651809,0,0,0.13268252580839629,0,0.13647796577919385,0.13299351657914243,0.12282990159070797,7.7138132663358255E-2,8.3205645478652418E-2,1.1126255521009913,0.10061376658407502,8.6409138133148947E-2,1.6042597224241551E-2,2.8847026808383747E-2,0.14005261116074127,0,0.10723535020443899,0.20907604661939508,0.17187559707755842,0.13678789958762405,7.5251182009973397E-2,0.232707019500837,0.23270701950083703,0.232707019500837]
[null,"Post and telecommunications",2.8441200767088254E-2,1.6113870493837657E-2,3.9132509818157128E-2,4.7765416479075867E-2,3.6701901288378719E-2,5.2591891583833039E-2,2.7515087893532606E-2,5.1813246388493973E-2,5.1240316980275674E-2,3.8076966131038593E-2,3.0869529032281212E-2,4.7878060083082166E-2,5.7893493689374902E-2,5.0390149071839523E-2,4.7688073170662849E-2,0,0,4.5926142617703551E-2,0,5.0198161645506022E-2,4.4432536921963021E-2,4.5687316628301833E-2,4.2172015255937494E-2,4.8977317773011599E-2,4.3433939241665415E-2,1.1005227411604548,6.4856917442476639E-2,1.6471203490737937E-2,2.0316314748596916E-2,9.3134095857352481E-2,0,6.5330302209696989E-2,0.10300850548811194,8.7155043533950094E-2,6.0462164186664363E-2,6.0668506623194139E-2,8.9193157898105627E-2,8.9193157898105627E-2,8.9193157898105627E-2]
[null,"Finance and insurance",4.1738815026529423E-2,3.9990109789960773E-2,4.4316209920976318E-2,5.0454128199276332E-2,4.1260932064435242E-2,5.9321429096186748E-2,4.7794459639644474E-2,5.3578159977197198E-2,5.2399384889520437E-2,4.4667501497051773E-2,4.256710768352133E-2,5.2893077306125628E-2,5.976810732445318E-2,4.8445074955059522E-2,5.0071420541374499E-2,0,0,4.9012484195009698E-2,0,4.846432807082976E-2,6.5919548524802363E-2,5.0101056589571216E-2,5.9158553538396004E-2,5.0953245519393078E-2,6.9855771124962204E-2,5.5189856636903123E-2,1.1734062422704186,1.0687190128238771E-2,2.1978859240820634E-2,5.6748772836196913E-2,0,4.6228542645006233E-2,9.5041587010714218E-2,6.1237163757898574E-2,4.8750144097942469E-2,3.7476659811733752E-2,7.9487067890664911E-2,7.9487067890664911E-2,7.9487067890664911E-2]
[null,"Real estate activities",6.1687755182041872E-2,3.4477968610979307E-2,8.1714192980823094E-2,0.12160862905013158,8.8848175364945617E-2,0.11850545442359119,6.0755771139821078E-2,8.650446598852482E-2,0.1214047434460462,8.7849628042293168E-2,7.6785976742599085E-2,0.11436855175326975,0.14570955218770357,0.11737333832760934,0.11907805961052942,0,0,0.10509716616913577,0,0.12278768146860602,9.5240350260422671E-2,0.10680218322687438,0.1022152225952494,0.1061263528680219,9.8601002198082266E-2,0.10805099521228474,0.12582269658971978,1.022805329443879,3.8585000281892289E-2,0.17416944090265404,0,0.12851851416591811,0.23305493170819186,0.20215237226551214,0.15433078794232508,9.1494708100346558E-2,0.26449016803410197,0.26449016803410197,0.26449016803410197]
[null,"Renting of machinery and equipment",8.5428362440298448E-3,1.9221645669437248E-2,1.3213320663901362E-2,1.295305227453942E-2,8.8822818243424282E-3,1.8262300256954481E-2,1.7128157200116383E-2,2.2061776109802998E-2,1.9059427956624568E-2,1.5029034593242027E-2,1.0878303870948462E-2,1.396574055719846E-2,2.3514171527261821E-2,1.9349890023507753E-2,1.6611098846183947E-2,0,0,1.7387276717127739E-2,0,1.4120690166909733E-2,1.5698712034684367E-2,1.9022610196407098E-2,9.8428303540204678E-3,1.3190769699501382E-2,1.8764592631039946E-2,1.9416539235668901E-2,9.3817454324259981E-3,1.8702800020820663E-3,1.0089130797763537,1.9712083491566192E-2,0,1.1218701003326377E-2,1.7377385116441456E-2,1.3460256021587806E-2,1.119298498094908E-2,1.1187307389436792E-2,1.6080492831456981E-2,1.6080492831456985E-2,1.6080492831456981E-2]
[null,"Computer and related activities",4.8596839048484566E-4,2.9569389080336106E-4,6.7449378900654626E-4,8.0605270932908194E-4,6.4064305197254106E-4,8.6495379002808973E-4,4.5632246894042718E-4,6.7078075139634277E-4,8.538305127248774E-4,6.1267867955213274E-4,6.0256413743019742E-4,8.3277792442123947E-4,9.8784045510127267E-4,8.1617686266974234E-4,8.0093301094736398E-4,0,0,7.752454453822578E-4,0,8.1732112841796558E-4,7.273903321676254E-4,9.7465120039161909E-4,1.5037253387496952E-3,1.2456271138274523E-3,7.0517721027340478E-4,6.6496975176200503E-4,2.3832787702507277E-3,2.6919424914696304E-4,3.1838625540834203E-4,1.0013591571213412,0,8.4698341167069487E-4,1.955486437921219E-3,1.1137295914086442E-3,8.1745160221636495E-4,5.4092589088797877E-4,1.2830415495766934E-3,1.2830415495766936E-3,1.2830415495766934E-3]
[null,"Research and development",0,0,0,0,0,0,0,0,0,0,0,0,0,0,0,0,0,0,0,0,0,0,0,0,0,0,0,0,0,0,1,0,0,0,0,0,0,0,0]
[null,"Other Business Activities",7.6307055440017771E-2,5.4847542993153031E-2,0.11694920686825615,0.14500013698756872,9.2154761289473322E-2,0.15894300261274588,0.12722004954639979,0.13471965005169864,0.16027068145595352,0.12249936086046416,0.10064047894072903,0.14289432323865839,0.16512204129122948,0.15877732194250538,0.14438981933589703,0,0,0.12895990164886725,0,0.13939097580037715,0.12857914192182868,0.12771228626594283,0.12645531444396924,0.12060687891476682,0.12929053324006412,0.19144358004690593,0.24019276487159633,4.3025837923615216E-2,5.9650401505380576E-2,0.37194352569216749,0,1.1657325847113065,0.22015193462629803,0.16319177436826016,0.14512567600305384,0.11799885081575001,0.1697799234888589,0.1697799234888589,0.1697799234888589]
[null,"Public admin. and defence; compulsory social security",9.8272224671932282E-4,5.8260014241909362E-4,1.2222171686280471E-3,1.5882690455366825E-3,1.3188615270607056E-3,1.6949835489581773E-3,8.8895205082019282E-4,1.2356824990094317E-3,1.6247723600737829E-3,1.2771291323180568E-3,1.3605193951322662E-3,1.5726390891419931E-3,1.8992933913894771E-3,1.608364154685199E-3,1.6295939450058942E-3,0,0,1.4700388917292851E-3,0,1.5813916545955198E-3,7.6235017749395938E-3,1.466647044599991E-3,1.1091693344839238E-3,1.2957656532240295E-3,5.3732518062343379E-3,1.2780566055041007E-3,5.5549802308267711E-3,2.5114645838150538E-4,4.8696098688054727E-4,1.8068522813578008E-3,0,1.3522264709364751E-3,1.002857287176997,2.2953286185086168E-3,1.774541112967319E-3,9.8252921650498039E-4,3.0963020825150209E-3,3.0963020825150213E-3,3.0963020825150209E-3]
[null,"Education",1.0561551400867496E-2,5.763820684228523E-3,1.2773431562035652E-2,1.8479342529156114E-2,1.4480924745344128E-2,1.7173936598338574E-2,1.0171380845666499E-2,1.3987983085845312E-2,1.7642827018624928E-2,1.3754288990217425E-2,1.2372739439189805E-2,1.7369040650451383E-2,2.3636724141613077E-2,1.7809235286650963E-2,1.8138094803682177E-2,0,0,1.6525174484658785E-2,0,1.8466368359336634E-2,1.6747027986028774E-2,1.7666423726716174E-2,1.3183185719459744E-2,1.4135274904756778E-2,1.6250701426523146E-2,1.4430018868218717E-2,1.9054997690771975E-2,2.0962282646319573E-3,4.2301077510577207E-3,2.5125305983761698E-2,0,1.8977419431965365E-2,5.0193606140590159E-2,1.0374392630311529,2.629041283329258E-2,1.1770973626920655E-2,5.0234562702956308E-2,5.0234562702956315E-2,5.0234562702956308E-2]
[null,"Health and social work",9.5427642387059513E-3,5.1527703309698358E-3,1.1452975071862406E-2,1.6721400912665205E-2,1.3150652248922336E-2,1.5365493978946213E-2,9.1250757227935644E-3,1.2226338554518367E-2,1.5866190217627498E-2,1.2347112404317745E-2,1.1202144338124319E-2,1.5697507669941248E-2,2.1424084776464718E-2,1.6087046098067118E-2,1.6395501589149628E-2,0,0,1.4902856290849616E-2,0,1.6668332722292331E-2,1.4511618349547499E-2,1.5981340695528083E-2,1.1824013117219406E-2,1.266947923255168E-2,1.4298174965689414E-2,1.2901449823063946E-2,1.4429394124670876E-2,1.8073252629240372E-3,3.7363802616323721E-3,2.2518429375609779E-2,0,1.6805606877831752E-2,3.7549274308923783E-2,3.2613276871394474E-2,1.023176007061023,1.0101950470008879E-2,4.5918891975859598E-2,4.5918891975859605E-2,4.5918891975859598E-2]
[null,"Other community, social and personal services",1.3512642556259266E-2,7.9467557738647273E-3,1.6452924243781055E-2,2.3588152847982689E-2,1.8398526923910037E-2,2.2247962489252798E-2,1.344926585885518E-2,1.7845351853592366E-2,2.2670541290208828E-2,1.7611102980611394E-2,1.5907481309630038E-2,2.2215983878019402E-2,3.0102172529868746E-2,2.3000745160140952E-2,2.3286932776666228E-2,0,0,2.1147411235716437E-2,0,2.365518923925701E-2,2.1208200265604337E-2,2.2998147184490555E-2,1.7036238446037438E-2,2.5276750460662162E-2,2.1807088691248224E-2,2.3220720496061997E-2,2.8560940662828448E-2,2.8606362728635869E-3,5.9347134848373338E-3,3.2739004981559953E-2,0,2.7265272284255855E-2,5.4979501365997267E-2,4.5015740407821539E-2,3.6546926766750601E-2,1.0215197466580621,6.2021418344638979E-2,6.2021418344638986E-2,6.2021418344638979E-2]
[null,"Private households with employed persons",2.8325752226294504E-3,1.530916986673059E-3,3.3909623430962996E-3,4.9614689745462433E-3,3.900272200643371E-3,4.5515866228595285E-3,2.7121288734037905E-3,3.6256696080996026E-3,4.7021357067601145E-3,3.66468095604008E-3,3.315119500638375E-3,4.6530873329443875E-3,6.3653380195279703E-3,4.7707202865548432E-3,4.8626204994235657E-3,0,0,4.4109571595858411E-3,0,4.9461463710143896E-3,4.3062543533675373E-3,4.7464240841401141E-3,3.5110996429144254E-3,3.7636092907735908E-3,4.2507502247099566E-3,3.832099262636608E-3,4.2888687862344763E-3,5.3274997699253365E-4,1.1053534367345586E-3,6.6970498046810155E-3,0,4.9979076101174958E-3,1.1196020216005107E-2,9.728211791720974E-3,6.901671891560629E-3,2.9960621467953062E-3,1.0137074744382031,1.3707474438203119E-2,1.3707474438203117E-2]
[null,"Payments to households",0.36849588903209024,0.19916032998224678,0.44113768746930609,0.64544832069221325,0.50739491772757095,0.59212583153933884,0.35282676074769537,0.4716712675093786,0.6117110902366929,0.4767463388532287,0.43127112666803286,0.60533028030429981,0.82808070682702883,0.62063340781662646,0.63258890695845038,0,0,0.57383103792568935,0,0.64345496977759387,0.56021002149042132,0.61747266185041405,0.45676661084218639,0.48961614169795198,0.55298936832957069,0.49852615152569346,0.55794829514125233,6.9306606523745207E-2,0.14379783954548192,0.87123381647646092,0,0.65018870227243497,1.4565146902923989,1.2655642908416551,0.89785355007361833,0.3897642595891464,1.7832352479597631,1.7832352479597633,1.7832352479597631]
[null,"Payments to workers",0.36849588903209024,0.19916032998224678,0.44113768746930609,0.64544832069221325,0.50739491772757095,0.59212583153933884,0.35282676074769537,0.4716712675093786,0.6117110902366929,0.4767463388532287,0.43127112666803286,0.60533028030429981,0.82808070682702883,0.62063340781662646,0.63258890695845038,0,0,0.57383103792568935,0,0.64345496977759387,0.56021002149042132,0.61747266185041405,0.45676661084218639,0.48961614169795198,0.55298936832957069,0.49852615152569346,0.55794829514125233,6.9306606523745207E-2,0.14379783954548192,0.87123381647646092,0,0.65018870227243497,1.4565146902923989,1.2655642908416551,0.89785355007361833,0.3897642595891464,1.7832352479597631,0.78323524795976318,1.7832352479597631]

{"sheet":"CustomRegion3","index":13,"n_rows":147,"n_cols":45,"rows_kept":147,"cut":false,"hidden":false,"merged":[[1,2,1,4]]}
[]
[null,null,"Custom Region 3"]
[]
[null,null,"Enter data in boxes below"]
[]
[]
[]
[]
[]
[null,null,null,null,"Dollar Year of Earnings",2014]
[null,null,null,"Value Added as a Percentage of Output","Labor Payments as a Percentage of Output",{"$f":"\"Average Earnings ($\"&CustomRegion3_EarningsYear&\") per Job\"","v":"Average Earnings ($2014) per Job"}]
[null,null,"Agriculture - Maize",0.39483849680684985,0.31372267909867918,103.27241247823075]
[null,null,"Agriculture - Drought tolerant staples",0.53280921607330967,0.48310549895633775,103.27241247823075]
[null,null,"Agriculture - Groundnuts (Peanuts)",0.45105417566227013,0.37192702713163694,103.27241247823075]
[null,null,"Agriculture - Sugar",0.27140068842246767,9.097651240680342E-2,103.27241247823073]
[null,null,"Agriculture - Cotton",0.22202332930617175,0.15070983178147818,103.27241247823075]
[null,null,"Agriculture - Tobacco",0.28724810781054666,0.20064492107086304,103.27241247823075]
[null,null,"Agriculture - Coffee",0.31921808344135122,0.25385725569389789,103.27241247823075]
[null,null,"Agriculture - Wheat",0.21606289377121429,0.13085015471416933,103.27241247823075]
[null,null,"Agriculture - Horticulture",0.48206774989347195,0.40612728236135004,103.27241247823075]
[null,null,"Agriculture - Other Crops",0.46038809538516151,0.43274344589962804,103.27241247823075]
[null,null,"Agriculture - Livestock",0.30086181735290085,0.19350246036524735,103.27241247823075]
[null,null,"Fishing",9.1248783504656789E-2,3.8794036643326493E-2,103.27241247823075]
[null,null,"Forestry",0.32054581216219258,0.18191321721775378,103.27241247823075]
[null,null,"Mining",0.2443122122186287,8.9103054399457884E-3,1134.5687814359997]
[null,null,"Food and beverage manufacturing",0.11213204107571055,5.1915948957262217E-2,266.1726449111473]
[null,null,"Textile manufacturing",0.10148505152333756,2.7887037985281644E-2,266.17264491114736]
[null,null,"Wood and furniture manufacturing",0.1837365053970062,5.6951942954715416E-2,266.1726449111473]
[null,null,"Fertilizer and industrial chemical manufacturing",0.18636737370790524,3.5996587977751175E-2,266.1726449111473]
[null,null,"Other manufacturing",0.10732166024291469,3.6137291264551389E-3,266.1726449111473]
[null,null,"Electricity and water",0.26655932816568229,1.319548238454352E-2,590.37077558234773]
[null,null,"Equipment and machinery",0.12599400530786029,2.8255037967936554E-2,266.1726449111473]
[null,null,"Construction",6.0665831734038042E-2,2.6683936316053973E-2,287.45516025656241]
[null,null,"Trade, transportation",0.22607141540817993,8.3230021793909925E-2,401.63837509030287]
[null,null,"Tourism",0.43707898024884495,0.30632217126912781,344.81474506450985]
[null,null,"Other private and community services",0.36599151791447643,0.29283887442509154,428.61075812910872]
[null,null,"Financial services and insurance",0.20832866456119223,4.9642135950530256E-2,1008.0607580969252]
[null,null,"Public services",0.21415943308557375,0.13930419846466202,428.61075812910877]
[null,null,"Labor - less than primary schooling",0,0,0]
[null,null,"Labor - primary schooling",0,0,0]
[null,null,"Labor - secondary schooling",0,0,0]
[null,null,"Labor - post-secondary schooling",0,0,0]
[null,null,"Households - rural/remote - small",0,0,0]
[null,null,"Households - rural/remote - medium",0,0,0]
[null,null,"Households - rural/remote - non-farm",0,0,0]
[null,null,"Households - rural/non-remote - small",0,0,0]
[null,null,"Households - rural/non-remote - medium",0,0,0]
[null,null,"Households - rural/non-remote - large",0,0,0]
[null,null,"Households - rural/non-remote - non-farm",0,0,0]
[null,null,"Households - urban - low skilled self-employed",0,0,0]
[null,null,"Households - urban - private employees",0,0,0]
[null,null,"Households - urban - public employees",0,0,0]
[null,null,"Households - urban - high skilled ",0,0,0]
[]
[]
[]
[]
[]
[]
[]
[]
[]
[]
[]
[]
[]
[]
[]
[]
[]
[]
[null,"Type 1 Total Requirements"]
[null,null,null,"Agriculture - Maize","Agriculture - Drought tolerant staples","Agriculture - Groundnuts (Peanuts)","Agriculture - Sugar","Agriculture - Cotton","Agriculture - Tobacco","Agriculture - Coffee","Agriculture - Wheat","Agriculture - Horticulture","Agriculture - Other Crops","Agriculture - Livestock","Fishing","Forestry","Mining","Food and beverage manufacturing","Textile manufacturing","Wood and furniture manufacturing","Fertilizer and industrial chemical manufacturing","Other manufacturing","Electricity and water","Equipment and machinery","Construction","Trade, transportation","Tourism","Other private and community services","Financial services and insurance","Public services"]
[null,null,"Agriculture - Maize",1.3399626214614324,3.7876404724049267E-7,2.4641733359371707E-7,3.0224006751617692E-7,3.7636043748719627E-7,3.1564335887926132E-7,1.9242060553808903E-7,7.3997342489597267E-7,1.3879651754508078E-7,1.3879956554540013E-7,1.1948607502499127E-2,5.7788992392535205E-6,3.6654756811005031E-6,2.7811765311244455E-6,3.2303676217323274E-2,5.910531354039772E-6,2.9169450785493079E-5,2.0706687159359446E-7,2.0565436966365825E-5,5.0758510476885242E-6,2.1772832906964578E-7,1.1345840573088293E-5,1.3725217663127404E-5,2.6058154452529179E-3,7.9277336850809954E-6,4.1684273214480144E-6,1.0639264064405077E-3]
[null,null,"Agriculture - Drought tolerant staples",7.69443300191028E-7,1.1562969558579017,2.8216720847175879E-7,3.4567184102111347E-7,4.1425303013767036E-7,3.5723470687171708E-7,2.0837363568888579E-7,8.051107737284848E-7,1.5401281200692267E-7,1.5764925990448232E-7,1.0082439535050541E-2,6.4193882918261577E-6,4.2223838059297415E-6,3.0371150802580907E-6,3.7500399558369445E-2,6.777152309574178E-6,3.3669837050604603E-5,2.3230135006508287E-7,2.2098552260405451E-5,5.5059075671873011E-6,2.4066763114116257E-7,1.2513959116960078E-5,1.5704890666249376E-5,3.0249983277722287E-3,9.0832547177343986E-6,4.7640079241426225E-6,1.234578481533256E-3]
[null,null,"Agriculture - Groundnuts (Peanuts)",3.9449792050816254E-6,1.4800084603335304E-6,1.7545275623692937,1.2393525748251353E-6,4.8468959835811811E-6,2.0410140818361797E-6,3.1705952614396231E-6,1.1409948192270015E-5,1.5275970628367628E-6,7.3379923061893929E-7,7.0417952083758808E-3,6.1907081547396469E-5,6.6737115457809237E-6,4.0432204096114394E-5,2.6173687260416752E-2,1.9122119723082696E-5,3.6306974150965468E-5,1.769986311794011E-6,3.7363581931759943E-4,8.1733788755550252E-5,2.5948850841495945E-6,1.4009374994315558E-4,5.63800932578989E-5,2.1146828315677059E-3,2.9186059019805785E-5,1.8114054634298204E-5,1.045141910223184E-3]
[null,null,"Agriculture - Sugar",4.3700760871846475E-7,2.4619878909497391E-7,1.6025770450193554E-7,1.9433966124579392,2.3527623940568083E-7,2.0289251327874665E-7,1.183464255647753E-7,4.5726505629876528E-7,8.7472034223239234E-8,8.9537365612241241E-8,5.7263514935630136E-3,3.6459106553397618E-6,2.3981154292497184E-6,1.7249385345182224E-6,2.1298463360355992E-2,3.8491037923035346E-6,1.9122884001682877E-5,1.3193624204513751E-7,1.2550938421404451E-5,3.1270965634037747E-6,1.3668789624242068E-7,7.1073402652874546E-6,8.9196393204524304E-6,1.7180567889393537E-3,5.1588615075241237E-6,2.7057324566066329E-6,7.0118251709538079E-4]
[null,null,"Agriculture - Cotton",6.8696621081398273E-3,5.1697272370268893E-3,3.6224017954679427E-3,4.7582039630467784E-5,1.3963820031626326,4.0812528845912193E-3,1.4679913177977388E-5,1.8153495716760908E-3,9.2108349195151127E-4,4.2131747360547777E-5,1.1557428622454519E-3,1.4071054871253198E-3,1.7202660388993302E-4,1.1157451590799602E-3,4.0495691752763735E-3,0.20308883012895684,1.2177715790222222E-3,8.4610479503967922E-5,2.9044070466138923E-4,8.3365027190266327E-4,1.4587201090572239E-4,6.0485371803660438E-3,5.4028938044942713E-3,8.9721930458123685E-4,1.0604451620688758E-3,8.5682996436198394E-3,4.307244109029806E-3]
[null,null,"Agriculture - Tobacco",1.7427742276083227E-5,1.1671242101715592E-5,8.0098100297244662E-6,9.2680249508404965E-6,4.0258118695633652E-6,1.6889701299508997,1.5802560370378317E-6,8.7460440835182831E-6,2.799552231042734E-6,1.1331977495459174E-5,4.7584846792513369E-3,1.5844663419681664E-4,4.1036179440045051E-4,6.2973378450186711E-5,1.7684257298081416E-2,3.741423914491687E-4,3.6587249647892341E-3,4.0452862350220214E-6,1.495040046899714E-4,4.8470552895065975E-5,2.8911057445757696E-6,2.496719295083566E-4,1.3690909035134029E-4,1.4418674063636095E-3,2.5141218161371469E-4,7.5944361581704224E-5,8.5085657564296145E-4]
[null,null,"Agriculture - Coffee",2.2946066867874066E-7,1.292722086448239E-7,8.4146910264952551E-8,1.0308503792862178E-7,1.2353707839679065E-7,1.0653327502323727E-7,1.4881024433260688,2.4009729690846758E-7,4.5929157898220565E-8,4.7013606571673528E-8,3.0067495773259639E-3,1.9143673479062216E-6,1.2591844146103878E-6,9.057177533384085E-7,1.1183236966579723E-2,2.0210584721531577E-6,1.0040900118329546E-5,6.9276089749140009E-8,6.5901523572247974E-6,1.641952346243677E-6,7.1771052600327274E-8,3.7318687758840594E-6,4.6834571344105838E-6,9.0210433812388873E-4,2.7087762032539739E-6,1.4207056499071351E-6,3.6817164284707417E-4]
[null,null,"Agriculture - Wheat",1.2861420549637519E-6,7.2457918402100769E-7,4.7164893534995369E-7,5.7779837948244217E-7,6.9243340389597289E-7,5.9712597391685118E-7,3.4830129255610708E-7,1.3806979461890705,2.5743593384483566E-7,2.6351433958386132E-7,1.6853028026156413E-2,1.0730154187072373E-5,7.0578109961525516E-6,5.0766072425541514E-6,6.2682774595592544E-2,1.1328164916211596E-5,5.6279901850868332E-5,3.8829701378825968E-7,3.6938234966586225E-5,9.2032502864664211E-6,4.0228144374290615E-7,2.091736855779186E-5,2.6251083542421285E-5,5.0563538139548198E-3,1.5182867776645478E-5,7.963148083684927E-6,2.0636261370512946E-3]
[null,null,"Agriculture - Horticulture",6.6009517358158477E-6,2.2965905095971442E-6,1.4302960518235721E-6,1.9441428356898446E-6,8.7696607658608776E-6,3.4658212696721108E-6,5.814438251998987E-6,2.0855694762708284E-5,1.2245053350283606,1.2098202890894482E-6,9.7069658915807579E-4,1.1060942122147534E-4,7.5400320321604534E-6,7.3675174791351289E-5,3.577043353964682E-3,2.8213308322504093E-5,2.7742319815181648E-5,3.1018462180387495E-6,6.8824912925246197E-4,1.4972150088311467E-4,4.6715533778957704E-6,2.5280074508283681E-4,8.8488796390014262E-5,2.9498530074908454E-4,4.4609941262736095E-5,2.8775374809406251E-5,4.6516538898830855E-4]
[null,null,"Agriculture - Other Crops",5.2161595905979878E-6,1.8567180538732811E-6,1.1594316583357246E-6,1.5664027891208561E-6,6.7761574105390728E-6,2.7269142688436302E-6,4.4759490393918725E-6,1.6069284501379478E-5,2.1194203438101144E-6,1.2944600951612564,3.2879736803233498E-3,8.5767953761266004E-5,6.8037070167334194E-6,5.6815423306591782E-5,1.2203849739422287E-2,2.3176638556235818E-5,2.9618646724238886E-5,2.4184321692875623E-6,5.2916452681068529E-4,1.1529095233455471E-4,3.6146812597320222E-6,1.9547937289236982E-4,7.1288097775562724E-5,9.8933227642636172E-4,3.6233638227490548E-5,2.3095286527257129E-5,6.6613163294882783E-4]
[null,null,"Agriculture - Livestock",7.3998428016858286E-6,2.915659402303703E-6,1.8450798500107926E-6,2.407252289250858E-6,8.5988683869287388E-6,3.8170757593182456E-6,5.5795862067689552E-6,2.0146251681642632E-5,2.7414435244253978E-6,1.4845878059730624E-6,1.334823567045698,1.1173868072936645E-4,1.8752912722825483E-5,7.1871826399763565E-5,6.5382609894786017E-2,4.1097328954638326E-5,1.2550974417832741E-4,3.2133180211201532E-6,6.5580555306119154E-4,1.4398941161471206E-4,4.6223211797394679E-6,2.5029719746129787E-4,1.0676928829875428E-4,5.2800994265151157E-3,5.7499702345227224E-5,3.438372582764795E-5,2.3273324331200113E-3]
[null,null,"Fishing",5.9753806657288092E-6,3.4157233831847197E-6,2.2055792459611339E-6,2.1820033622925865E-6,2.9462839832775038E-6,2.5326095112395058E-6,1.3508926880899388E-6,5.2375256204572703E-6,1.0760794979949107E-6,1.032792793897329E-6,6.1714875979826958E-2,1.6400542122499058,2.6020817352358242E-5,1.9108204945848565E-5,0.2295398237527502,4.2453440189216873E-5,2.0685814622617462E-4,1.7765795822637935E-6,1.3623005496452513E-4,3.5463547883606948E-5,1.7389092269214338E-6,7.9105004097228805E-5,1.4079591904429245E-4,3.2437999836540041E-2,5.6217666024714506E-5,3.4192389099890587E-5,7.5652770445904134E-3]
[null,null,"Forestry",4.6929258622427724E-4,3.0302896363928973E-4,2.0324872090952625E-4,1.8475358249807745E-4,1.2630832578040569E-4,2.2973005731804689E-4,4.1657777684321174E-5,2.1249109496726854E-4,6.9694671782995023E-5,2.2600217242546829E-4,6.5428616818884405E-4,3.7981215335228108E-3,1.694592903440445,1.1827963941530687E-2,1.9531212605001687E-3,7.2765853623831967E-3,7.0166492242523526E-2,1.1775088946142521E-4,3.3348618289368529E-3,1.2821550753673164E-3,5.1554791748137656E-4,5.9679088301994917E-3,7.2558117880297066E-3,4.9489203118726602E-4,4.8779082230880283E-3,1.9875281389623604E-3,5.7925645478188997E-3]
[null,null,"Mining",1.2091524935405086E-3,4.1020480745694029E-4,2.5587740103677378E-4,3.6576412472205086E-4,1.4738302842360119E-3,6.6229329234642896E-4,9.182614820357765E-4,3.2974366983356254E-3,4.7605014976698787E-4,3.0038286615284343E-4,4.3748779216198821E-3,1.7616582784151694E-2,1.1908711980824897E-3,1.7824603091170808,1.0657141711780069E-2,4.9577841267702295E-3,4.4201879707366871E-3,7.0431598733510946E-4,0.10509816516770565,2.7159222604463459E-2,1.9836778631483333E-3,0.16052570531934343,1.5857444753406159E-2,2.1707994901565778E-3,7.9571752693642413E-3,6.3906169527846732E-3,4.5950049765482413E-2]
[null,null,"Food and beverage manufacturing",3.2339004136922348E-5,1.821895889272013E-5,1.1859231888570077E-5,1.4528274005406306E-5,1.7410679191083753E-5,1.501425077131552E-5,8.7577549442505408E-6,3.3838075704632433E-5,6.4730188220423631E-6,6.6258554294618925E-6,0.42375579039198819,2.6980106847942852E-4,1.7746296229200444E-4,1.2764719261366167E-4,1.5761077861790074,2.8483756570686918E-4,1.4151127177255004E-3,9.7634150806203348E-6,9.2878211141980607E-4,2.3140830201338647E-4,1.0115042287281081E-5,5.2595035339469184E-4,6.6006231271318022E-4,0.12713793649476499,3.8176095863152635E-4,2.0022693280834361E-4,5.1888214000625106E-2]
[null,null,"Textile manufacturing",6.2107991813010216E-2,4.6739040379885619E-2,3.2749810626189306E-2,4.301720521177424E-4,3.8154529280042572E-3,3.6898240796028603E-2,1.3271195723849104E-4,1.6412388042479867E-2,8.3274303579663374E-3,3.8090353067883582E-4,1.0068270736186843E-2,1.2721276600606785E-2,1.5551182127599645E-3,1.0087240789063711E-2,3.5195835686780731E-2,1.8361082892969214,1.1008496172193811E-2,7.6494725463499579E-4,2.625014872423326E-3,7.5367520978729431E-3,1.3188071447684951E-3,5.4683828913162716E-2,4.884650251701219E-2,7.9974619066705659E-3,9.5870500049693701E-3,7.7465076002451658E-2,3.8894805232121618E-2]
[null,null,"Wood and furniture manufacturing",7.946426334569108E-3,5.339541414341193E-3,3.6678011555227453E-3,4.2397643549625906E-3,1.7839532830545713E-3,4.5658558283551906E-3,6.9025799534054371E-4,3.8963470904578379E-3,1.2698513486937896E-3,5.24184052978139E-3,1.27990370228843E-2,7.2371858049840782E-2,0.19014610845069158,2.865749779193957E-2,4.0925770927468026E-2,0.17272382455253799,1.696183273161568,1.8327733361745118E-3,6.4782513641138476E-2,2.1365456338341877E-2,1.2935473483769099E-3,0.11351574525701132,6.0315073633156434E-2,1.0449963190469097E-2,0.11507556057518972,3.4319629443877425E-2,0.12643817470670499]
[null,null,"Fertilizer and industrial chemical manufacturing",0.17826829523795512,7.1108754773975564E-3,1.0298733273708414E-2,0.1433609030600704,7.0861908778547575E-2,0.17886709510591062,3.9651802465458637E-2,2.8852113511054496E-2,6.8246204091842774E-2,6.3020127451564573E-2,5.5891556812775979E-3,4.280645702254479E-3,2.9870164817827127E-4,1.5464181935146547E-2,1.2278512143344359E-2,1.6176516651532254E-2,1.2897190677395064E-3,1.1400732050911644,1.5929446179583022E-2,1.3595705445090641E-2,1.4398761186007443E-3,1.2910815533658162E-2,1.2576351786207791E-2,1.2984286094113728E-3,1.9325771547809348E-3,2.6133091283466817E-3,5.5142601360904262E-3]
[null,null,"Other manufacturing",1.3117097446594459E-2,4.5260294334197185E-3,2.8163302420591745E-3,3.7724666678852045E-3,1.7568780073115103E-2,6.8923074188079747E-3,1.1665491710115499E-2,4.1830883284116722E-2,5.4736585802888666E-3,2.4035997316536398E-3,3.3795032482536624E-2,0.22131250334099467,1.425430205995927E-2,0.14769927523950718,5.862221062925433E-2,5.5468407541590624E-2,4.9397153219840305E-2,6.1905765455392853E-3,1.3815201827438583,0.30031719099583831,9.3533534823360617E-3,0.50575625490684928,0.17431486294582244,1.7677125408331849E-2,8.594303021875517E-2,5.6211351420901404E-2,0.21747801652716955]
[null,null,"Electricity and water",4.8982541482676653E-2,6.514553116825408E-3,3.4835682711165804E-3,6.8998601872316033E-3,5.0360036698022449E-2,2.9528602131153572E-2,1.069384789069578E-2,4.6579618724033871E-2,1.9545024642654653E-2,1.6979176641906592E-3,1.1195101953930271E-2,1.9230415667788235E-2,7.6386121304267782E-3,4.4431788301005033E-2,2.138649096858921E-2,0.16914546428563551,1.1284789371222312E-2,1.7426249304900422E-2,8.7205678692195657E-2,2.0392018375920524,1.6594770418768264E-3,8.1056240486092002E-2,3.5306682300994631E-2,8.3547142162773164E-3,0.13517177058247484,2.8150214851040807E-2,7.5354687252701197E-2]
[null,null,"Equipment and machinery",7.487317696688452E-3,2.2601364728362995E-3,1.4108756782283737E-3,2.4695653482252806E-3,5.7182887669093747E-3,4.3316409412102715E-3,1.3160545819749419E-3,5.6415179535363883E-3,2.3051679771671271E-3,2.1966851528505481E-3,6.1492203070081353E-2,0.28895943143154768,5.9963210441419867E-3,0.18066068527494472,5.7904698487045894E-2,4.2137891482674238E-2,1.1189149662063217E-2,3.5000689068541979E-3,2.6673634613130038E-2,0.20263641478591837,1.2051078548601091,0.27477211386117628,6.2429863406369801E-2,1.5391596174319443E-2,5.8253742544046534E-2,3.2257999264549926E-2,0.15083556969475426]
[null,null,"Construction",3.2417332518484719E-3,1.1334878362314065E-3,7.0185589036092218E-4,1.0194798606799501E-3,2.2442965067142142E-3,1.9655188867257964E-3,4.800856339705102E-4,2.067411681835597E-3,8.7584708258395619E-4,1.9063407153675006E-3,4.3751835252654036E-3,9.6266317602186277E-3,1.8396658121697074E-3,1.9549060356165698E-2,9.9800077940212627E-3,1.2564287613305216E-2,1.1717215940589108E-2,1.3033726340527872E-3,5.826926998147278E-3,7.4390924113100942E-2,7.4751619691052883E-4,2.168775044915896,4.5797697601140552E-2,6.4711802102070948E-3,2.4558678067719591E-2,3.7273298203091776E-2,0.51815234157184364]
[null,null,"Trade, transportation",5.9984818870421085E-2,3.6213730735565434E-2,2.2727050837931195E-2,3.0178260071371697E-3,1.9144903551878558E-2,1.6312985375960976E-2,3.3159742562771377E-3,1.3745601839369282E-2,6.2232439811736205E-3,3.1736609148595085E-3,3.5720121992559688E-2,0.27562010276720389,7.9654980258007432E-3,2.1131767842543305E-2,8.1963413525463449E-2,4.491299382016211E-2,3.5332767984670256E-2,1.6747745610036547E-2,1.3054732650322641E-2,7.6755596712527685E-2,1.2439069277016979E-2,0.10692449616192011,2.1239014309876336,2.0573582543697361E-2,2.6199626992656603E-2,0.23797549437603011,0.11221805343589537]
[null,null,"Tourism",1.8182510796760316E-4,1.0952498829080942E-4,6.8734148587456029E-5,9.5050756579525503E-6,5.8995974790255154E-5,4.9705701178199581E-5,1.0838928376200931E-5,4.4460534830248588E-5,1.9160714020913253E-5,9.7444442215861142E-6,1.1060832384967862E-4,8.4712253851505933E-4,2.5258148888055945E-5,7.4441518282089379E-5,2.5303422719200893E-4,1.3947026390596595E-4,1.1015390487236991E-4,5.0952801295639321E-5,1.3876562553649782E-4,2.5315367799756049E-4,3.8184249715333988E-5,3.6025624160010504E-4,6.4169012928342491E-3,2.0000634669189461,8.9000664217926491E-5,7.2291998518354827E-4,1.2188400551998747E-3]
[null,null,"Other private and community services",2.5115351410937826E-3,1.479767605892154E-3,9.313609567348154E-4,7.1857877999503092E-2,8.3601582267114536E-4,1.3260082609646362E-3,1.5628889301909319E-4,6.3322196074075572E-4,2.8744100761977546E-4,1.475498170517911E-4,1.2073157078126352E-2,1.4573732659840355E-2,5.1581662734592271E-4,9.7447467069643658E-3,6.0635559285393591E-3,3.21805006626724E-3,1.9944828879536456E-3,8.8579941375094414E-4,1.4247774835356903E-3,5.2769756567328354E-3,5.927676690911718E-4,1.1493434553051638E-2,8.4512133062310743E-2,3.6817234721022748E-3,2.0592258206110374,5.447126135468592E-2,1.1210313037275186E-2]
[null,null,"Financial services and insurance",2.0205663853692026E-2,1.0383168471903587E-2,6.6559864247172909E-3,4.8236250345716153E-3,7.9724731106016397E-3,3.8762825144662089E-2,1.8168785019214014E-3,6.8948356893480233E-3,3.4057705679043887E-3,1.7728803745303762E-3,3.0052011965835772E-2,0.24727169991862019,1.1856979436051769E-2,4.2184513815289627E-2,9.563792528735876E-2,8.3513029672073344E-2,3.7646050974799318E-2,1.5126620213912085E-2,2.4675440139611513E-2,0.12669772115258138,7.5075562374665242E-3,0.3619478084192429,0.49297171968435438,4.1679515573767784E-2,8.3876659941675563E-2,2.3881158736158805,0.26181518361263656]
[null,null,"Public services",1.1659914557997153E-4,6.610888153857495E-5,4.1665356234854652E-5,3.212435533915712E-4,4.4129941648762698E-5,7.6854944805006237E-5,1.0494569042023744E-5,4.1221100856770124E-5,1.5569077987867991E-5,1.0135578192501768E-5,1.1705504078773239E-3,7.685715258048915E-4,5.2055738433869048E-4,2.9900956924695853E-4,4.0794515573413332E-3,2.0906339103030856E-4,2.1095774815572282E-4,4.5898277157523359E-5,4.0475851905094661E-4,4.4670403689041707E-4,3.039650390208743E-5,3.7360431746629994E-3,3.664024853276656E-3,4.1200241913690532E-4,9.054563359688815E-3,3.4594827499167201E-3,2.0371199842493937]
[]
[]
[]
[null,"Type 2 Total Requirements"]
[null,null,null,"Agriculture - Maize","Agriculture - Drought tolerant staples","Agriculture - Groundnuts (Peanuts)","Agriculture - Sugar","Agriculture - Cotton","Agriculture - Tobacco","Agriculture - Coffee","Agriculture - Wheat","Agriculture - Horticulture","Agriculture - Other Crops","Agriculture - Livestock","Fishing","Forestry","Mining","Food and beverage manufacturing","Textile manufacturing","Wood and furniture manufacturing","Fertilizer and industrial chemical manufacturing","Other manufacturing","Electricity and water","Equipment and machinery","Construction","Trade, transportation","Tourism","Other private and community services","Financial services and insurance","Public services","Labor - less than primary schooling","Labor - primary schooling","Labor - secondary schooling","Labor - post-secondary schooling","Households - rural/remote - small","Households - rural/remote - medium","Households - rural/remote - non-farm","Households - rural/non-remote - small","Households - rural/non-remote - medium","Households - rural/non-remote - large","Households - rural/non-remote - non-farm","Households - urban - low skilled self-employed","Households - urban - private employees","Households - urban - public employees","Households - urban - high skilled "]
[null,null,"Agriculture - Maize",1.3887453020367206,6.7799038558939248E-2,7.6755055586383944E-2,1.9952127444034344E-2,2.428341132495767E-2,4.4344825442384252E-2,3.8447794007123767E-2,1.8655178434876137E-2,5.4477715440593835E-2,6.5143720829430693E-2,4.5280227937141156E-2,1.0991132944017297E-2,2.9518164585678724E-2,2.5180015884624066E-3,5.1316959881482049E-2,8.8965515049611778E-3,8.1920497867871526E-3,3.0382609081027142E-3,1.2336597953086996E-3,3.4899102300409396E-3,2.7631557495578943E-3,7.8883476198622002E-3,1.749865445303787E-2,5.1299669117346541E-2,4.7416335593151983E-2,9.8136034198894901E-3,2.0714970059860366E-2,0.13294562480181882,0.10129867149600875,4.5249348495582611E-2,3.8111823096331196E-2,0.17185637416162775,0.13586885042079722,0.11079430390305704,0.22023654683829638,4.1408270912283808E-2,1.2018727536691183E-2,7.5611731495863782E-2,5.2578108932684629E-2,3.3561430235911863E-2,2.2288833287433744E-2,8.3837125497373214E-3]
[null,null,"Agriculture - Drought tolerant staples",2.9307383010218711E-2,1.1970713358921456,4.6172691878137218E-2,1.1964796819684882E-2,1.4584418345845231E-2,2.6727496074990972E-2,2.3059598189242005E-2,1.1188532250568792E-2,3.276763035311079E-2,3.9152480004317286E-2,3.0105755812178801E-2,6.5924829989800178E-3,1.7719324221075989E-2,1.5055647958864239E-3,4.8917952637921182E-2,5.3274358856481019E-3,4.9151152142922769E-3,1.8109702736834887E-3,7.4711863151233793E-4,2.0867152691699999E-3,1.6529805900565866E-3,4.7266764950940872E-3,1.0464247265470725E-2,3.214519662562839E-2,2.8419900810138208E-2,5.8657942724937382E-3,1.2997838379951023E-2,8.0211719216999419E-2,6.0479588167098218E-2,2.661995952633199E-2,2.3094215119923336E-2,0.13107614814844909,3.3871560341253833E-2,0.10933352403320681,0.11160026903469243,7.6114396810902469E-3,6.0037107425513258E-3,3.8658431406327652E-2,2.8438971552075712E-2,2.2825842087364299E-2,1.3012680594680305E-2,4.6065891083670058E-3]
[null,null,"Agriculture - Groundnuts (Peanuts)",1.3511884136025288E-2,1.8255565739107377E-2,1.7753120420196087,5.8159942360166373E-3,6.7276772074765382E-3,1.1602362997112502E-2,1.1077423547775514E-2,5.3958611374242699E-3,1.507967349725416E-2,1.779539347992266E-2,1.6390012526288248E-2,3.3263073589299683E-3,8.7342177328755422E-3,8.6801676970241031E-4,3.1589696314066162E-2,2.7836551980951261E-3,2.7607215048685982E-3,1.0369538293010128E-3,7.7304369060550893E-4,1.2774425011436569E-3,8.9021995082803191E-4,2.7446856653443965E-3,5.8158152711539112E-3,1.7766383409410995E-2,1.5150960806300082E-2,3.5106776225313904E-3,8.1446609110793575E-3,3.4042426004873581E-2,2.999137327237977E-2,1.955821789531216E-2,1.591216827893268E-2,4.9432110178539414E-2,6.1626432343407971E-2,1.5328315304863669E-2,4.0997159437061247E-2,8.7400212706846194E-3,1.653484801045892E-2,8.278317949555131E-3,8.090310959735357E-2,1.451529929208047E-2,9.3846068993087214E-3,2.7219599339840359E-3]
[null,null,"Agriculture - Sugar",1.8453768576624462E-3,2.3861473705844931E-3,2.7550216053052017E-3,1.9442526070380106,9.159213167847821E-4,1.4556299764072081E-3,1.6004602675142084E-3,7.8100293408459216E-4,2.0766637718577104E-3,2.376973623250156E-3,7.0323604680058551E-3,4.9820604278941443E-4,1.3242536519846072E-3,1.4299756643337754E-4,2.2073863232882417E-2,4.4645590293915558E-4,4.9583684772579043E-4,1.8099061298461146E-4,8.0938063789361099E-5,2.1695695527996985E-4,1.4879647677591535E-4,4.6049093443393174E-4,9.9560874005117836E-4,4.3401515564646213E-3,2.5456975400063192E-3,6.5614242401295958E-4,2.0682093413617194E-3,4.120840334852981E-3,4.4168443826693776E-3,4.0148942835407696E-3,3.7127171374151139E-3,5.2295326774843371E-3,3.6213715813502912E-3,7.6684339018350499E-3,5.2002566738338059E-3,1.3328243577764754E-3,6.7477737757536637E-4,3.5184882761005315E-3,5.9259053447475096E-3,6.4938180882726498E-3,3.5411903797870374E-3,1.2151751427731563E-3]
[null,null,"Agriculture - Cotton",1.1845361893677062E-2,1.1584421937705017E-2,1.1037697634337753E-2,2.3678427738565259E-3,1.3988508974127609,7.983003905593063E-3,4.3470391833071685E-3,3.9288395368739498E-3,6.5260317093047641E-3,6.4421225108626879E-3,4.6837873638151239E-3,2.7501836340143122E-3,3.7622974724144395E-3,1.5020797371794758E-3,6.1478013367094343E-3,0.20429479792429392,2.5236118069835193E-3,5.7952287725863527E-4,4.7749787841459113E-4,1.4198858726243379E-3,5.521102213181181E-4,7.2903592721735013E-3,8.1019158373983099E-3,8.0628545513151822E-3,8.0067420585608444E-3,1.0364571758511203E-2,8.0727548073177766E-3,1.1017618737806758E-2,1.19678246386232E-2,1.1057845762997644E-2,1.034287918774186E-2,1.3028062758083776E-2,1.1776632009417176E-2,1.3312441499904416E-2,1.4550361839362601E-2,5.0328734544158281E-3,1.9617127386963242E-3,9.819769238775854E-3,1.5583596821752249E-2,1.7576639732116709E-2,1.0410470643675495E-2,2.9121727007675644E-3]
[null,null,"Agriculture - Tobacco",1.5819666160986588E-3,2.034088444162899E-3,2.3434321799342115E-3,7.3565320014483068E-4,7.8053308416593521E-4,1.6902032762028438,1.3594056024685338E-3,6.7102532620366901E-4,1.7638258899758683E-3,2.026556005506842E-3,5.8662147396743433E-3,5.7822156382280568E-4,1.5322944559727307E-3,1.8299775636110025E-4,1.8342074424663554E-2,7.4999327592796517E-4,4.063788049997576E-3,1.577433048458916E-4,2.0760598010439378E-4,2.3019867818242735E-4,1.2916667238661267E-4,6.3488427500393331E-4,9.7520437811107123E-4,3.6691425168753973E-3,2.4093184992843358E-3,6.3142043648945845E-4,2.013046657926852E-3,3.4901138887469688E-3,3.7484205653344591E-3,3.4164865509294998E-3,3.1584650599293111E-3,4.4107421963498336E-3,3.0607529235196851E-3,6.4730092763067744E-3,4.4082908892454278E-3,1.1297932138686518E-3,5.8620988796326029E-4,3.0084534748915049E-3,5.0649969114997728E-3,5.5299004278609619E-3,3.0113929339631107E-3,1.0382694108389515E-3]
[null,null,"Agriculture - Coffee",9.6895660230093025E-4,1.2529003163720019E-3,1.4465860254277035E-3,4.4956228165133439E-4,4.8092507684905337E-4,7.6431124097520674E-4,1.4889427388266541,4.100831471118888E-4,1.0903989958178776E-3,1.2480834341126752E-3,3.6924989478115322E-3,2.6159428219909165E-4,6.9532914856045881E-4,7.5084086772443968E-5,1.1590378100266365E-2,2.3442170795242955E-4,2.6035028307256898E-4,9.5033189929604402E-5,4.2498349841396343E-5,1.1391812645787931E-4,7.8128935004512205E-5,2.4179111673952754E-4,5.2276674977006898E-4,2.2788941392437811E-3,1.3366757194380944E-3,3.4452232949449321E-4,1.0859598070344213E-3,2.1637398523256818E-3,2.319163431660479E-3,2.1081104964678675E-3,1.9494455930975092E-3,2.7458836896955352E-3,1.9014825554814552E-3,4.0264836028687818E-3,2.7305116658683255E-3,6.9982939030182819E-4,3.5430703076723896E-4,1.8474613632927905E-3,3.1115298127650953E-3,3.4097251651586257E-3,1.8593816131657755E-3,6.3805502526649951E-4]
[null,null,"Agriculture - Wheat",5.4310651268901942E-3,7.0225882145383851E-3,8.1082092810871691E-3,2.5198259906004101E-3,2.6956165088502979E-3,4.2840144925927479E-3,4.7102595384664438E-3,1.38299514328754,6.1117576850395908E-3,6.9955892744446371E-3,2.0696698096608544E-2,1.46625306032449E-3,3.8973653530915554E-3,4.2085121695426648E-4,6.496482727745384E-2,1.3139490045510531E-3,1.4592803638612064E-3,5.3266724484685548E-4,2.382060303071279E-4,6.3851854918669094E-4,4.3791779043195379E-4,1.3552550227714391E-3,2.9301418220711861E-3,1.2773350693034915E-2,7.492154827741686E-3,1.9310701890149231E-3,6.0868757415797293E-3,1.212790338362223E-2,1.2999062710693421E-2,1.181609720580859E-2,1.0926770045531366E-2,1.5390857665027211E-2,1.0657934082849754E-2,2.2568703931225412E-2,1.5304696466125804E-2,3.9225895023734612E-3,1.985914079580564E-3,1.0355141767577651E-2,1.7440328098553334E-2,1.9111732551074172E-2,1.0421955547715227E-2,3.5763401462284459E-3]
[null,null,"Agriculture - Horticulture",5.7960818945372999E-2,7.8365128327796824E-2,8.9479366748354758E-2,2.4956369432144736E-2,2.8800398312116279E-2,5.0182706918215983E-2,4.7454300626386968E-2,2.3095549311731807E-2,1.2896624720109449,7.6321846365899657E-2,4.1176158104173487E-2,1.4159589758348173E-2,3.7770673870875127E-2,3.6429063783053311E-3,2.6895517205405162E-2,1.1922533072460471E-2,1.1874871094486976E-2,4.4485143986298971E-3,2.4152023352847982E-3,5.3434582739687111E-3,3.8410943279511577E-3,1.1602989599654839E-2,2.4975997556019584E-2,6.7863601238069532E-2,6.5934749818389579E-2,1.5342410866889668E-2,3.1951089063603041E-2,0.14760124097540808,0.12599109780216106,8.3471723187839866E-2,7.5701962883823193E-2,0.12603931153343831,7.4386858373116427E-2,8.7066647642301154E-2,0.28638871886363504,2.5815811851821791E-2,7.4032966794808183E-2,6.4761163795117094E-2,0.10831528564789347,9.386595159069766E-2,6.5317416869873204E-2,2.1113293871995505E-2]
[null,null,"Agriculture - Other Crops",3.1795160505515743E-2,4.2907416125105895E-2,4.8968142195376735E-2,1.3730802787760822E-2,1.5810134306726877E-2,2.7326830547425341E-2,2.6105878238029231E-2,1.2709633873998804E-2,3.563657731206616E-2,1.3362889853083839,2.5338097816804822E-2,7.8132505722628854E-3,2.0726230930093681E-2,2.0275368655970866E-3,2.5000703700816609E-2,6.5808567718344448E-3,6.5591854843431016E-3,2.4560817371866478E-3,1.4816117708891208E-3,2.977076354454281E-3,2.1216128173112232E-3,6.4491611432631454E-3,1.380562226649899E-2,3.8328002863625109E-2,3.6320638389920466E-2,8.4528745010513714E-3,1.7978862757561623E-2,8.0190248422067553E-2,7.0107772426983822E-2,4.6046915619221342E-2,4.1336230580481206E-2,0.10760568774201963,0.11483566445245574,5.3173166524517666E-2,0.11690632853683086,1.1219508027331893E-2,2.3386096538775693E-2,3.3712621826846895E-2,6.9669934412769141E-2,6.1698419881143912E-2,3.2267642197664162E-2,1.1618349554039415E-2]
[null,null,"Agriculture - Livestock",6.441750122554922E-2,8.879531530155782E-2,0.10082890272677766,2.6770345756951579E-2,3.2043640199792119E-2,5.7743992312383044E-2,5.1359019234722129E-2,2.4954470789040596E-2,7.2134745235167261E-2,8.5641466922561346E-2,1.3790509894165703,1.495751083365696E-2,3.9934980320986455E-2,3.5893504275385582E-3,9.0746318629221043E-2,1.2230795678810153E-2,1.1648606789592524E-2,4.2838297315413122E-3,2.3545491689655595E-3,5.1018825592650278E-3,3.8459539128664574E-3,1.1352304627173697E-2,2.4593931342838236E-2,7.2974149815432349E-2,6.6103862767610891E-2,1.4253320650280182E-2,3.1187055536579467E-2,0.17219209448136852,0.13547109375903832,6.874164246625028E-2,6.2323895361773775E-2,0.3047453334142553,0.15042840305093116,7.6732831217413131E-2,0.21106665088002699,4.5562759369887247E-2,3.7639000106240834E-2,4.3028103255145028E-2,7.7487725859928955E-2,7.5803337466144469E-2,4.3833798720990601E-2,1.5107171068891343E-2]
[null,null,"Fishing",2.5432593539579568E-2,3.3503780029066968E-2,3.8488001368919819E-2,1.1448050651641985E-2,1.2630959744735944E-2,2.0838511048687874E-2,2.1548786332822208E-2,1.0502006289431555E-2,2.8574178660494106E-2,3.3059262616213676E-2,7.9558830030872663E-2,1.6465970923712498,1.7538341982494002E-2,1.8066811230069686E-3,0.24003282642862345,5.7746752646108566E-3,6.1983030520009422E-3,2.2662756771587578E-3,1.001071503950221E-3,2.6998131031826284E-3,1.8980641524756626E-3,5.7925607185853904E-3,1.2615925462999006E-2,6.587830720996829E-2,3.24991345440718E-2,8.068721212551028E-3,2.4265727839355915E-2,5.9971122500883885E-2,5.8778745682556366E-2,4.7369326269454372E-2,4.344070929186826E-2,8.1556776248594892E-2,4.262558201091602E-2,0.10299134059928071,7.8672507533533234E-2,1.5300430111200509E-2,8.9426970677435845E-3,4.5671948241270903E-2,6.8007626880098884E-2,7.205811843338561E-2,3.9424136274914576E-2,1.3535356215080238E-2]
[null,null,"Forestry",1.3997844370359778E-3,1.4855023778265763E-3,1.5750483565495303E-3,6.2826841454651752E-4,5.8784571724866729E-4,9.3815437841964834E-4,8.6584964833630936E-4,6.1491663118022578E-4,1.1189045155556342E-3,1.4147845382005476E-3,1.3182370270525524E-3,4.0567791504104297E-3,1.6952835646923818,1.1904618550592867E-2,2.3507039406254612E-3,7.5122449845331672E-3,7.0426478138126691E-2,2.168542372544758E-4,3.3719901455356764E-3,1.3996551472537488E-3,5.9562465728627966E-4,6.2145567154518596E-3,7.7914940797483142E-3,1.9071901462915932E-3,6.2447736080662843E-3,2.3501007925298819E-3,6.5540182092783091E-3,1.9731863841592127E-3,2.293872429128541E-3,2.3081562942220881E-3,2.1241107189933334E-3,2.0971863738613039E-3,1.6669700673074372E-3,3.003793830423037E-3,2.5656295141330493E-3,6.9254736433794464E-4,7.7191258813060133E-4,2.2018764752460627E-3,3.8834894565736482E-3,3.787638046854593E-3,2.026823133764353E-3,8.6246258776227671E-4]
[null,null,"Mining",6.3392404899008381E-3,6.8665221216172804E-3,7.7760611190915837E-3,2.8480077889613295E-3,4.0156174646839649E-3,4.5023643387420787E-3,5.5130376403476613E-3,5.5423983909367348E-3,6.2831634503855037E-3,6.822184078375761E-3,8.0553926796658563E-3,1.9072873639823219E-2,5.0846162693125993E-3,1.7829003355811648,1.2872446941774725E-2,6.2968214234796508E-3,5.9201131329184638E-3,1.2748561647836318E-3,0.10531150785133057,2.7839092930742208E-2,2.4421618019383846E-3,0.16194811431686723,1.8935189095556148E-2,1.0254575447961755E-2,1.5799508995528937E-2,8.503771989090211E-3,5.0410601633640868E-2,1.0605212483132703E-2,1.2762720544818513E-2,1.355186722845785E-2,1.2793195889420576E-2,1.1476995142684028E-2,1.072868828389221E-2,1.2679584976142105E-2,1.3115659564513363E-2,4.5331786903359348E-3,8.6582322316047112E-3,8.9790653334043749E-3,2.1468903631470141E-2,2.1260545134534629E-2,1.3048987743957815E-2,7.5748132361726454E-3]
[null,null,"Food and beverage manufacturing",0.13655975009023924,0.17657731387086908,0.20387437956182858,6.3358991193743192E-2,6.7779101923327464E-2,0.10771808748800828,0.11843567521375961,5.7795005424222369E-2,0.1536752151891439,0.17589844730864562,0.52040177271531662,3.6867750028549626E-2,9.7996106876606107E-2,1.0581964250050438E-2,1.6334881593924993,3.3038187445848723E-2,3.6692427202504575E-2,1.339348804296037E-2,5.9894984149003417E-3,1.6055033675290261E-2,1.1011089468503524E-2,3.4076793942661013E-2,7.3676051677199761E-2,0.32117559589174471,0.18838418744936358,4.8555201651501123E-2,0.15304957879899739,0.30494634413164223,0.32685094244047197,0.29710622939834602,0.27474481558384078,0.3869906965402245,0.26798515223579861,0.56747184883667001,0.38482424272047644,9.8630347756009498E-2,4.9934207024229696E-2,0.26037168380249337,0.43852297679846491,0.48054909303961774,0.26205166238956584,8.9924187097033204E-2]
[null,null,"Textile manufacturing",0.10697020747664188,0.10457512028802465,9.9607709580643272E-2,2.1350540226559103E-2,2.6075635442085795E-2,7.2076874250073752E-2,3.9194803083595499E-2,3.5468375591022144E-2,5.886322695792643E-2,5.8084645890562503E-2,4.1878189521359091E-2,2.483105049418706E-2,3.3926566684262548E-2,1.3570666173588684E-2,5.4114220855272809E-2,1.8469819143351345,2.2782791714702311E-2,5.227383546214227E-3,4.3116360718677979E-3,1.2822641570593948E-2,4.9816884324990597E-3,6.5880893079069136E-2,7.3182529967799004E-2,7.260702765998521E-2,7.2219018736469368E-2,9.3661574892782193E-2,7.2847578758509612E-2,9.9335375365832354E-2,0.10790642571508155,9.970610794846041E-2,9.3262246393676432E-2,0.11743791752403011,0.10623075448352697,0.11984681758452154,0.13120283816630321,4.5413164428129579E-2,1.7690814482892128E-2,8.854576736022142E-2,0.14049598353546514,0.15847715598731066,9.3884738377833246E-2,2.6247913943423237E-2]
[null,null,"Wood and furniture manufacturing",2.6704385349599607E-2,2.9194539752385149E-2,3.1330430311684462E-2,1.3170047269739232E-2,1.1089619548824437E-2,1.8860922024318542E-2,1.7291669580238211E-2,1.2001789189060563E-2,2.240899085909949E-2,2.9216295893471207E-2,2.6176866339808907E-2,7.7577071168627512E-2,0.20404099391839844,3.019763662276128E-2,4.8933061288416208E-2,0.17746284513220706,1.7014035252298094,3.8238307866667932E-3,6.5528380936718242E-2,2.3724337468250142E-2,2.9026269963547658E-3,0.11846796436404484,7.1076573038127394E-2,3.8830473449975179E-2,0.14253006565838583,4.1592403474619892E-2,0.14170093671359704,3.9837063556172017E-2,4.6241117155387611E-2,4.6310510975502948E-2,4.2413895858298252E-2,4.2001726369574235E-2,3.2056732236697159E-2,6.4023294025194966E-2,5.2122198325791631E-2,1.3335377490814246E-2,1.3373463087671228E-2,4.7282490919756497E-2,7.875032444102209E-2,7.6750751937258596E-2,3.9918140102545421E-2,1.5977995295891691E-2]
[null,null,"Fertilizer and industrial chemical manufacturing",0.19157129660448127,2.5204798526340506E-2,3.090986806351053E-2,0.14902712646830865,7.7476143535865113E-2,0.19048433325918523,5.0459040006062085E-2,3.4104948290004704E-2,8.3155786844912899E-2,8.0591819109284285E-2,1.4783052554054862E-2,7.4537358180310756E-3,8.8161487946787007E-3,1.6253468123476059E-2,1.7591224034671522E-2,1.8838762064208002E-2,3.8946766000799607E-3,1.1410497731606168,1.6310854759021859E-2,1.4731301768923698E-2,2.292157275020191E-3,1.5409851549864196E-2,1.807483979532774E-2,1.6318661840287928E-2,1.6548152352164926E-2,5.9287592128052756E-3,1.2292265766306106E-2,3.4301285421985198E-2,2.8810180565273204E-2,1.7544862547779778E-2,1.5624117735474251E-2,4.0665543272025262E-2,3.2179636491205761E-2,2.7926357629498542E-2,5.6583298253666155E-2,9.1510512296889748E-3,8.9437241686976202E-3,1.873579892462467E-2,2.3699205902046761E-2,1.9857224836730927E-2,1.2412101168340095E-2,4.8888487854534144E-3]
[null,null,"Other manufacturing",6.3498429747186863E-2,6.7788934803052009E-2,7.654985487409606E-2,2.8230611762064813E-2,4.2528719923624954E-2,4.4435853833379835E-2,5.6905914981197049E-2,6.3937896071069686E-2,6.2522158259278815E-2,6.6384965856553235E-2,6.9977429668889896E-2,0.23567814369773848,5.2661910573470722E-2,0.15205811740022815,8.0423232666205574E-2,6.8704598127255004E-2,6.4263085496355288E-2,1.1849554385105567E-2,1.383633709388167,0.3070617239654802,1.3890847713796848E-2,0.51984935631880369,0.20480431356682502,9.7676107582706576E-2,0.16354412625971956,7.719482761660848E-2,0.2617825126846578,0.10345374453398977,0.12574460662242631,0.13515560792083267,0.12733060026286092,0.11147015354307249,0.11267313749010785,0.12316616548467778,0.12653105543888235,4.715395903265019E-2,0.10051239921766865,8.9449940970679612E-2,0.21154498243196421,0.21475804000100596,0.12770134159146651,8.2978617019074927E-2]
[null,null,"Electricity and water",6.9449243067398303E-2,3.1784712759940548E-2,3.3100214879977601E-2,1.708276220143257E-2,6.0489412018325799E-2,4.426815155827455E-2,2.9423122973693649E-2,5.5740757193757096E-2,4.279163569738844E-2,2.7475958203344239E-2,2.6010954611417378E-2,2.5261419808813759E-2,2.376262695705602E-2,4.6315780983333776E-2,3.0385663429812967E-2,0.17478306734089688,1.7743153484877133E-2,1.9884504143025141E-2,8.8119801429185032E-2,2.0421448754706812,3.6123271367125599E-3,8.717208471414338E-2,4.8494890558504714E-2,4.2785449149787762E-2,0.16859191350513561,3.7382893998270904E-2,9.4943537534932204E-2,3.9924508477004177E-2,5.2334020388396456E-2,6.0383808042410392E-2,5.7835308409582308E-2,3.7958344839475272E-2,3.1814006576008781E-2,3.747224620466507E-2,4.8891810124481433E-2,1.4195928553724441E-2,2.4266928618077575E-2,3.0367290376527408E-2,9.5372292650865997E-2,9.6412000871211864E-2,6.3001363306959518E-2,3.6726414849241114E-2]
[null,null,"Equipment and machinery",2.2472486056479026E-2,2.1602121886061285E-2,2.3775453391679427E-2,9.4455452036636845E-3,1.3151220158891827E-2,1.6136139618141702E-2,1.4342587733300265E-2,1.1996267733579698E-2,1.9211976215564194E-2,2.1481466323476906E-2,7.2117833191155403E-2,0.29299771285380893,1.6804363887858401E-2,0.18182014537710453,6.4221612398723218E-2,4.575968872608932E-2,1.5111415869452884E-2,4.9852220664499888E-3,2.7235292298620997E-2,0.2043971755702936,1.2063272770653151,0.27850286927525864,7.0532029901172466E-2,3.6892737489634744E-2,7.9129511212956069E-2,3.7655467784882386E-2,0.16215699959891905,3.3389820074221303E-2,3.5787242983432846E-2,3.3165819402864651E-2,3.118968514035891E-2,4.2297319010249038E-2,2.7656496379331302E-2,3.8253180142938319E-2,4.2380003554098974E-2,1.0840014777082588E-2,1.1736541184994296E-2,2.3111891932428852E-2,4.9835234873764525E-2,5.0599157251733029E-2,3.1358433260575011E-2,1.4057733762115514E-2]
[null,null,"Construction",1.7635776581624258E-2,1.9130497833085184E-2,2.1719164824674005E-2,8.0537005063163695E-3,9.3716158013540073E-3,1.2605427529642324E-2,1.3468501131096487E-2,8.4160073369884923E-3,1.7201549906574048E-2,2.0143767202576292E-2,1.4737570665273727E-2,1.3768328789193637E-2,1.2918646122817025E-2,2.081561144750587E-2,1.6238273864898969E-2,1.6394783870574491E-2,1.6047283795849989E-2,2.9470257576822922E-3,6.4412699481309404E-3,7.6356099729670363E-2,2.0657348776487875E-3,2.1728811094018385,5.4661087759793878E-2,2.971416537097403E-2,4.7133660883939936E-2,4.3408158524231466E-2,0.5311457428467603,2.9203049901366001E-2,3.610922202279912E-2,3.9408206480433722E-2,3.7916899695320215E-2,2.8544808408761065E-2,2.1406554156122425E-2,2.2879113573820248E-2,3.7480485907736644E-2,1.0604692982414139E-2,1.5081370723175969E-2,2.2198781612684394E-2,6.79842688772863E-2,5.7286466501187856E-2,4.2773758853708363E-2,1.6899871309858667E-2]
[null,null,"Trade, transportation",0.11486830792358479,0.10575578948462927,0.10355672333653591,2.9304914442698188E-2,4.6348163838926724E-2,5.7951540287235648E-2,5.2089210111022945E-2,3.7565840564622498E-2,6.8274715543277825E-2,7.3176220063616099E-2,7.4968853509562311E-2,0.29098735987167462,4.9055210791034157E-2,2.5715438354003903E-2,0.10550942710478299,5.8953915126938414E-2,5.092386944517447E-2,2.2673800885832807E-2,1.5276406023285399E-2,8.3806078974914197E-2,1.7225795276490929E-2,0.12171983772019912,2.1559522558424944,0.10497562947556292,0.1080713653939368,0.25981056747471304,0.15822516873199782,0.11574736126959154,0.135200512677662,0.13870652064443381,0.13051862602851044,0.12776761859799712,0.12325160171730958,0.12381209095547584,0.14636805118868601,5.0777705895760916E-2,7.5035861876447937E-2,8.577017715783819E-2,0.22221851809041623,0.21660008624855429,0.13244931787260014,6.9809653092020627E-2]
[null,null,"Tourism",3.6476606559636155E-4,3.4102147918934857E-4,3.3793289769600969E-4,9.7304368734630559E-5,1.4966237871697486E-4,1.8813942105427471E-4,1.7366227760064239E-4,1.2398796784815841E-4,2.2605859940701172E-4,2.4292583827317463E-4,2.4152165816406101E-4,8.9848651391394026E-4,1.626030045244306E-4,8.9801395469197337E-5,3.3162454517699771E-4,1.8645943663965852E-4,1.6242820786715152E-4,7.081739540047218E-5,1.4621099912101715E-4,2.7680077562502174E-4,5.4219576472518921E-5,4.0985964124415228E-4,6.5243130447786559E-3,2.0003462122986697,3.6330866198856754E-4,7.9621732165276789E-4,1.3733717419619805E-3,3.8434517914928733E-4,4.5150908866873734E-4,4.6605234885896808E-4,4.3981768577620563E-4,4.2070673192993535E-4,4.0327346746787566E-4,4.0299273843808918E-4,4.8667163511709573E-4,1.6785555313054111E-4,2.3954067725330742E-4,2.8821207804249259E-4,7.39344264872938E-4,7.2637475792556433E-4,4.5187616110117226E-4,2.3409526096312646E-4]
[null,null,"Other private and community services",1.2061358522373786E-2,1.2905283531463628E-2,1.4464524782428548E-2,7.681882919967091E-2,5.5528399180776698E-3,7.7856732550897357E-3,9.1921846608721495E-3,5.0607366268652651E-3,1.1208593400774475E-2,1.1996556577996904E-2,1.9088135730723658E-2,1.7555128401845962E-2,8.4922020655948914E-3,1.0721245731910382E-2,1.0385020579120585E-2,6.0718358768822346E-3,5.3682896541663418E-3,2.1732807579573393E-3,1.8992319380477618E-3,6.8270123634950452E-3,1.5967347717171911E-3,1.4680887690570779E-2,9.1355665823303164E-2,2.1373884967933129E-2,2.0764214222407005,5.9393133883742684E-2,2.1714703796318048E-2,1.6901497308268492E-2,2.5355562719876636E-2,3.3180266820815839E-2,3.2071809612962889E-2,1.5298541057210603E-2,1.2267900875622455E-2,1.689769858653227E-2,1.7686451718946249E-2,6.4473249511592598E-3,3.9545028213616752E-2,1.5660829661162088E-2,4.439225243649509E-2,5.6917149116138634E-2,3.3297281925159586E-2,2.6694710965857418E-2]
[null,null,"Financial services and insurance",5.9594300847904097E-2,5.8830057066763919E-2,6.3370763319327089E-2,2.4508866755401006E-2,2.7487455762455853E-2,6.6768781641508998E-2,3.8022758309932819E-2,2.4605880899298035E-2,4.7964061522744739E-2,5.1321962642551511E-2,5.8564303537077159E-2,0.25893283609163753,4.2943121120950063E-2,4.584602642412406E-2,0.11297105880332732,9.4447619084490703E-2,5.016069042449868E-2,1.9927481694175714E-2,2.6450418013352399E-2,0.13241516447753424,1.129157908963601E-2,0.3737782078788236,0.51858184054773271,0.10841416075101042,0.14836084251327247,2.4060092891974385,0.29961212782372404,7.5395543028540693E-2,0.10225733187328709,0.11934396813788818,0.10950793979008966,7.4982932274657757E-2,6.0907781005052057E-2,8.2061974640852492E-2,8.5657375899609214E-2,2.4581815571566943E-2,2.9299197292513346E-2,5.8317170324127504E-2,0.18568770787768168,0.23589752154979532,9.8980518231949255E-2,5.7375052353460118E-2]
[null,null,"Public services",3.2777848160939656E-2,4.0828844312855224E-2,4.7686257215651881E-2,1.6327593746676857E-2,1.6213290828506598E-2,2.4126773558507539E-2,2.9543861692307421E-2,1.447830608204145E-2,3.7078897127830787E-2,4.1350019887382822E-2,2.4706727411587703E-2,1.0201708172255495E-2,2.5756675302624526E-2,3.1926894385129914E-3,1.8308232948709577E-2,8.9468531072460292E-3,1.0114153245002753E-2,3.7980779249890775E-3,1.8084546939277344E-3,4.9402497067595969E-3,3.0429582924922107E-3,1.3129441470807903E-2,2.3918231727687929E-2,5.3537544088823705E-2,6.0679479077793023E-2,1.750840499822294E-2,2.0669229335862607,6.5890544986306906E-2,8.218480695683511E-2,8.9952132550322306E-2,8.762296441639425E-2,6.4827887912726451E-2,5.5629476982276833E-2,4.9213362474992431E-2,8.5575947589815515E-2,2.6829444325353509E-2,1.4399128348648815E-2,5.468796674662979E-2,0.12774253799745866,0.13654491160996982,0.10225268120480148,4.1647925869063296E-2]
[null,null,"Labor - less than primary schooling",0.27746594794834017,0.42998310486905283,0.49181552794125927,8.9581439157293635E-2,0.13430912810871617,0.35098735162023381,0.17823848253882624,8.6117897717344183E-2,0.35224432860161847,0.39183596786467978,0.18790754878387217,4.8384461055197184E-2,0.15159970079154828,5.9692765675351204E-3,0.10153653008310931,2.9768260216766047E-2,2.1921534767594886E-2,7.5664765682078297E-3,3.3025075651728526E-3,9.3731561071292765E-3,6.8276144983805617E-3,2.1899948431557653E-2,4.3652572419167181E-2,0.10410720094208833,0.15114259983537517,2.4479832518601172E-2,4.7398268302410999E-2,1.13889185360147,0.11679763774474705,7.1508742566242178E-2,6.3860667331441717E-2,0.18182293475786329,0.11900294467478605,0.11733543114771582,0.21379960934728942,2.8867462107625034E-2,3.9015512848199735E-2,6.4923853151984207E-2,0.10642435685033494,8.2492018227983091E-2,4.9840055874319368E-2,1.7924564545184155E-2]
[null,null,"Labor - primary schooling",0.20569845191497901,0.24462921261091372,0.2600851054686939,0.10559746386506834,0.10901130454234408,6.36363130666492E-2,0.20270527235561314,9.8219092275950479E-2,0.15765262938892297,0.2546465343452734,0.13545364755128131,5.5571730390818842E-2,0.11521860389423674,1.6130933692771233E-2,8.1308947355454728E-2,5.2874616278772851E-2,4.5297138353962998E-2,1.668095947665995E-2,7.0398816297435485E-3,1.7246258744742123E-2,1.8609985661040471E-2,4.3942704710936628E-2,0.10796150020167079,0.35486586119608748,0.26760960541489159,4.3145468557744003E-2,8.1383642516218671E-2,9.1676599144396284E-2,1.0809396482152946,5.503496885163113E-2,4.985561583688429E-2,0.12103642268651722,8.2767903491375805E-2,8.2782567092288373E-2,0.13503194252348688,2.1978574668573427E-2,2.7536035005340288E-2,4.7598912635595673E-2,8.1188983032571327E-2,7.0423071054522085E-2,4.1885063363636815E-2,1.7282440592100257E-2]
[null,null,"Labor - secondary schooling",4.0317362140097866E-2,2.5138040876439206E-2,3.170633624535249E-2,3.1858220255351642E-2,1.9482803268937077E-2,2.0262166084772978E-2,5.4312220445582107E-2,2.7347319878839486E-2,5.8899978320858463E-2,4.4549638914495343E-2,3.6120758300343982E-2,2.3183384106998016E-2,6.6007395834697752E-2,1.1019548857068035E-2,2.4478579177299731E-2,2.6708468855889206E-2,3.6557535790782671E-2,2.1674531950537177E-2,5.5364625112502589E-3,2.1596466306153615E-2,8.0601152963755435E-3,2.9965924369016614E-2,7.6108660771109754E-2,0.1282353098113562,0.11685243682349479,6.5448278124455903E-2,0.1112313149365967,2.6195455154391145E-2,2.6420850532774997E-2,1.0227061808546569,2.1112625431392206E-2,3.0436939577930422E-2,2.2579088677244563E-2,2.3520567629938396E-2,3.7942787490145707E-2,7.741232036637292E-3,1.0470519289449851E-2,1.6216532733090247E-2,3.3109730529810033E-2,3.3705050237765107E-2,2.0215662500689117E-2,9.1870086977968307E-3]
[null,null,"Labor - post-secondary schooling",2.714125972485271E-2,1.7169118434998087E-2,4.6739252421776484E-2,2.6100676917482017E-2,9.6625548373822073E-3,1.2779936127509309E-2,3.7770207463606313E-2,1.9040372161334026E-2,5.9112573356495376E-2,2.0252954248141653E-2,3.0954689685518316E-2,1.9410893674831078E-2,6.271584131609774E-2,8.3581197053409564E-3,2.4125974149716064E-2,2.0932724798320479E-2,3.7372348467147473E-2,7.0792922128171927E-3,4.2797787386777185E-3,1.5070389649413166E-2,1.0223179923901119E-2,3.8701863722497613E-2,6.2623290253759054E-2,0.18171825603851796,0.21949859565815957,6.1544917843248594E-2,0.17024555699512017,2.4325347218279229E-2,2.58831518682337E-2,2.3992468650609153E-2,1.0225266212431436,2.6811659613290739E-2,2.0006777929835521E-2,2.188351370834965E-2,3.4732523704131539E-2,7.5909348156479924E-3,1.1603908295714465E-2,1.6082674011060064E-2,3.5248074445014488E-2,3.6323084250544778E-2,2.2480841077631871E-2,1.060514226156445E-2]
[null,null,"Households - rural/remote - small",0.12413553312637,0.17582875291099917,0.19844792876135176,4.8949347585299938E-2,6.1774900748289251E-2,0.11724454398156922,9.5110819039863292E-2,4.6076493424091917E-2,0.1388523753180842,0.16727405784852128,8.4112431326414744E-2,2.6567226827771899E-2,7.172872441852346E-2,5.5772827344207146E-3,4.7469978278066968E-2,2.0723550039365071E-2,1.7912839155377135E-2,6.4782014731038012E-3,2.6897105442505367E-3,7.4233813394345557E-3,6.2769188337240779E-3,1.7466320147784539E-2,3.8759214823538064E-2,0.11058693569144713,0.10871918944751573,2.0183265774416329E-2,4.0071582101974285E-2,0.35627422423689326,0.24480742969843153,6.8314388661010722E-2,6.8219541814920612E-2,1.0906376698399689,5.7940671190258426E-2,5.7044883515411482E-2,9.2428398575416432E-2,1.4125955928892302E-2,1.9415809290844112E-2,3.0643507576954974E-2,5.0712319343341805E-2,4.3872777582042208E-2,2.5226826769517235E-2,9.3673639476741129E-3]
[null,null,"Households - rural/remote - medium",7.4354677645737249E-3,9.9966649777484071E-3,1.1131521771652527E-2,3.2123849273139765E-3,3.7663595588232936E-3,5.6512480079390307E-3,6.2008767972471087E-3,3.0060312123732147E-3,7.6037865780524908E-3,9.7683118654924433E-3,5.0152234998725653E-3,1.7363320555073745E-3,4.3390527615944571E-3,4.2110411179314142E-4,2.888587413087782E-3,1.4672016867755973E-3,1.2905553790065101E-3,4.8106162087394229E-4,1.959148226921475E-4,5.2906940482987162E-4,4.7209536843017706E-4,1.2479082940444509E-3,2.8845722727296715E-3,8.5733675479414007E-3,7.5925579930109302E-3,1.4164805139720987E-3,2.7532764482535209E-3,1.6070307102486626E-2,2.1499646783335175E-2,5.0517716228153627E-3,3.7287451776277345E-3,4.6484245873163813E-3,1.00537208182009,3.1063205781353635E-3,5.3442753439357791E-3,8.0409186474890459E-4,1.0494207861644969E-3,1.7693302981705548E-3,3.0602201800921064E-3,2.6326744841341115E-3,1.5384519143135814E-3,6.4661188472322768E-4]
[null,null,"Households - rural/remote - non-farm",4.4447223851687015E-3,5.5530521103512309E-3,6.3224422741700453E-3,2.1574470784383815E-3,2.2360438491464238E-3,2.9966573056586531E-3,4.0381696449746122E-3,1.9694526468165552E-3,4.7039022916215111E-3,5.6483442617188007E-3,3.1262656163188749E-3,1.2374400433781791E-3,3.1653423208886557E-3,3.6983309150252113E-4,1.8719819415912117E-3,1.1428319375469474E-3,1.2053422139775443E-3,4.7793910909879541E-4,1.7609723544386935E-4,5.4234103892871757E-4,3.8595338910366305E-4,1.1358950068132262E-3,2.5592080066218939E-3,6.8895619334837371E-3,6.3021618563853642E-3,1.6149369262019224E-3,3.2661179016002834E-3,7.9585701953380009E-3,1.3202935320880769E-2,1.0821477441855725E-2,7.3218303145410517E-3,2.9099807114592335E-3,2.4849555726163272E-3,1.0056213439622259,3.3635021176688343E-3,6.3588516931038373E-4,8.7504053654462448E-4,1.2703111948464258E-3,2.2628662215940462E-3,2.1393151881251506E-3,1.1822820644299507E-3,6.1034739125393638E-4]
[null,null,"Households - rural/non-remote - small",0.14562513130615276,0.20490645080215036,0.2314099718711331,5.8132554004978229E-2,7.2470841988157259E-2,0.13617159426065858,0.11264254389785783,5.4605424469570854E-2,0.16303594303889854,0.19571959814621159,9.8983569111747896E-2,3.1748656255432599E-2,8.5671870142126377E-2,6.9015792642912153E-3,5.6049661010680561E-2,2.5114777602296273E-2,2.2215789650765348E-2,8.2653512738728088E-3,3.3321492811601481E-3,9.3945157053228756E-3,7.6400739401977519E-3,2.1496574692620972E-2,4.7946024652533878E-2,0.13434278017024504,0.13151808799666376,2.5828895792890973E-2,5.0913394295067041E-2,0.41203697381348786,0.2893293455258496,0.11070293785557093,8.455434619254322E-2,9.3679169529497175E-2,6.7852501205433929E-2,6.6902664671748421E-2,1.1202631286350886,1.6602373632441131E-2,2.2861811584920358E-2,3.6126754869084871E-2,5.9832085899476986E-2,5.2037072718845667E-2,2.9976251183956616E-2,1.1219977814495302E-2]
[null,null,"Households - rural/non-remote - medium",1.2290967267099412E-2,1.5938383323719933E-2,1.7801403111795702E-2,5.6084963928394521E-3,6.2198997730631604E-3,8.9036811085523634E-3,1.0692454627161238E-2,5.2007613543350846E-3,1.2742915560987301E-2,1.5950062259362224E-2,8.4402241533763807E-3,3.1305067358683701E-3,7.90349661263068E-3,8.5898117347923389E-4,4.9370694658150468E-3,2.783341931910808E-3,2.6782479810033861E-3,1.1233957327041635E-3,4.054522042260021E-4,1.2027027232119521E-3,8.9469082045722718E-4,2.5041207848323635E-3,5.8924658049287672E-3,1.5992995591857687E-2,1.4144116381121202E-2,3.3577112148565017E-3,6.3062847031869797E-3,2.4540671755464288E-2,3.5366380194044755E-2,2.4486725146492083E-2,7.0166127529315576E-3,7.7584367840692163E-3,5.2502314020606167E-3,5.2461057526523311E-3,8.960629321384592E-3,1.0020282678829089,1.8167627184280735E-3,3.039317760450987E-3,5.3519073506810826E-3,4.707885436617521E-3,2.7578340480366118E-3,1.1817195788089224E-3]
[null,null,"Households - rural/non-remote - large",4.4113700912103747E-3,4.1258024745112762E-3,5.7937442424097077E-3,2.9953443884570682E-3,2.0507611215023528E-3,2.491539445313334E-3,5.0375433280381021E-3,2.5048794669501519E-3,6.2335999409527491E-3,4.8668509580335143E-3,3.7693062837585211E-3,2.0251632154394661E-3,5.8439627376278922E-3,8.2163481679699724E-4,2.5515487953604475E-3,2.1411111895043105E-3,3.0710106511016907E-3,1.1371456977750365E-3,4.1044126704448906E-4,1.465019104570312E-3,8.1411478218961701E-4,2.8939539130066528E-3,5.8578857588052723E-3,1.4063476960323182E-2,1.4801023913140872E-2,5.0152595502743948E-3,1.1235832043970136E-2,5.3677051690714881E-3,8.736042308130413E-3,3.6006199962895002E-2,4.2435310022729406E-2,3.307856893639606E-3,2.3752523421679411E-3,2.4785236916200102E-3,4.0477931481673638E-3,7.7449729359283708E-4,1.0012689378844215,1.6506361599972002E-3,3.3036030441717448E-3,3.2403528661089087E-3,1.9703590054595539E-3,8.8833866099546324E-4]
[null,null,"Households - rural/non-remote - non-farm",9.1484640028582677E-3,1.1526474179875117E-2,1.2994555512640322E-2,4.3730016921875595E-3,4.6231503382359162E-3,6.1630372300652894E-3,8.2415062960020189E-3,4.0154281900681406E-3,9.5023985836063911E-3,1.1691581955249903E-2,6.3698689958208848E-3,2.480676388895015E-3,6.2681221368896672E-3,7.2515531148170393E-4,3.7869235351259542E-3,2.2723560074398622E-3,2.3157762425840972E-3,9.4167398792811732E-4,3.4332764700271143E-4,1.0414547432999188E-3,7.5552874455555544E-4,2.173707679264027E-3,4.9959593839285429E-3,1.352076740407963E-2,1.2113152911650216E-2,3.0245730502409455E-3,5.9452258088195896E-3,1.6405139438912218E-2,2.7757346698869634E-2,2.1079961527532561E-2,1.0813157375335712E-2,5.8882633171841465E-3,4.6129060781455377E-3,4.542858857385655E-3,6.7970792752173595E-3,1.1960344234158659E-3,1.6157559775248195E-3,1.0033476761684668,4.35065301546784E-3,3.9807191927341869E-3,2.2640236114801681E-3,1.0907168374903824E-3]
[null,null,"Households - urban - low skilled self-employed",3.2737421850994014E-2,4.0667730383336577E-2,4.6747916681396703E-2,1.6025072852706761E-2,1.635220318131321E-2,2.3189370814539451E-2,2.9792717645074018E-2,1.4555860602492908E-2,3.5988545078054782E-2,4.1564421621821446E-2,2.3336818480947572E-2,9.3632756901241686E-3,2.4542452812125765E-2,2.8766689873799319E-3,1.4032818586480946E-2,8.7118297896579787E-3,9.5406178988868481E-3,3.8852687184600504E-3,1.3857248806340013E-3,4.4159505221178152E-3,2.9261853091196274E-3,8.9148142758701115E-3,1.9981238340565151E-2,5.1622044066768055E-2,4.834125387888371E-2,1.3360134331212636E-2,2.6958304511177124E-2,6.241667433887578E-2,8.788298609272778E-2,0.10082964277688988,6.1417706553425551E-2,2.1279951887285972E-2,1.9007871118459616E-2,1.4662649891709361E-2,2.4851057924551487E-2,4.7503437812667724E-3,5.3395535890340901E-3,1.2481016350641494E-2,1.0235727170012792,1.3834409585208474E-2,8.3237547106784857E-3,3.4597097891909587E-3]
[null,null,"Households - urban - private employees",5.4352836443449584E-2,6.0127682440106973E-2,7.1851297364976349E-2,3.0869856711835082E-2,2.6973507590438751E-2,2.9577406006006692E-2,5.5518647195139291E-2,2.7278037404088625E-2,6.0923048356252112E-2,6.5305359227348564E-2,4.0759495507764719E-2,1.8902066810588231E-2,4.968986268342402E-2,6.7206283740022365E-3,2.5760652294470301E-2,1.8943751333122108E-2,2.305154396724423E-2,9.1545731145078729E-3,3.253126199931837E-3,1.0805222917543423E-2,6.7529588535676019E-3,2.1541802638229468E-2,4.6954209037554054E-2,0.11919500717093545,0.11314068547646966,3.4329762070138999E-2,7.2195710090779033E-2,6.7077017909383196E-2,0.16826389507589132,0.25875509075195136,0.20909608568568702,3.6350076150508698E-2,2.539354256971273E-2,2.5913784969735249E-2,4.2836660034871611E-2,7.4888106581884467E-3,1.0073173581264555E-2,1.611120090351674E-2,3.0102810645571181E-2,1.0337920762779014,1.7784308207499665E-2,7.4528657426298243E-3]
[null,null,"Households - urban - public employees",7.7170841003124685E-2,8.228572594618995E-2,0.10385027036806858,4.6236933071134585E-2,3.7481221091210493E-2,4.17477740461841E-2,8.1171083921706175E-2,3.9999254180192879E-2,9.292780029106032E-2,9.008850288901904E-2,6.0230014763564321E-2,2.9122107091358842E-2,7.9169531982340363E-2,1.072202453071905E-2,3.9048719962764343E-2,2.9569279244644656E-2,3.8570183080200743E-2,1.3879710479508199E-2,5.244948499034641E-3,1.7684465110643647E-2,1.1076644258530371E-2,3.672550326864138E-2,7.5775712581056476E-2,0.1953849867279096,0.19524646101501375,5.8961490066458802E-2,0.13184606925207124,9.3541811226297136E-2,0.22327736302318851,0.36619310096120261,0.48476945804205762,5.3515492313090045E-2,3.7679329806245533E-2,3.8767305673775815E-2,6.3777992551429463E-2,1.1488857751359636E-2,1.5748058594478635E-2,2.4656048127510134E-2,4.7217783150189228E-2,4.4747404811450085E-2,1.0335803670324535,1.2402127931771102E-2]
[null,null,"Households - urban - high skilled ",3.1057417551603184E-3,2.4945499735575805E-3,3.6550020212929965E-3,2.308322844954316E-3,1.4327967500519137E-3,1.6187453182358489E-3,3.8362550028763764E-3,1.9184035858783254E-3,4.6301287293090193E-3,3.3169326932817439E-3,2.7755149723438493E-3,1.6176227003047725E-3,4.704117464845857E-3,7.014963165486777E-4,1.9151311655092136E-3,1.7703765235673658E-3,2.5708198727516507E-3,1.0781925868447435E-3,3.5200064687004835E-4,1.2973454422408935E-3,6.4664501071186385E-4,2.3506170968535336E-3,4.9718929143405541E-3,1.0967976052489392E-2,1.1369153918803937E-2,4.3379904911793471E-3,9.1987459677840104E-3,2.9499209907654002E-3,4.7979890789440153E-3,4.0110033561260063E-2,2.9023088897619093E-2,2.3988315552960328E-3,1.7491353334349331E-3,1.8352182752420867E-3,2.9711141488474495E-3,5.9140351997831757E-4,2.3410928076001668E-3,1.2521383662828733E-3,2.5551080431044826E-3,2.5562554814786867E-3,1.5515926593477288E-3,1.0007623865002633]

{"sheet":"Default-Data","index":14,"n_rows":277,"n_cols":46,"rows_kept":277,"cut":false,"hidden":false,"merged":[]}
[]
[null,"Click to access the user guide"]
[]
[null,"Countries","Index",null,"Dollar Years","Dollar Adjustment",null,2005,null,null,null,null,null,null,null,"Industries"]
[null,"Bangladesh",1,null,2000,81.134344043625134,"Source: St. Louis Federal Reserve, https://research.stlouisfed.org/fred2/series/USAGDPDEFAISMEI#",null,null,null,null,null,null,null,null,"Zambia","Colombia","Mexico","Philippines","South Africa","Bangladesh","CustomRegion1","CustomRegion2","CustomRegion3"]
[null,"Colombia",2,null,2001,82.961237890580819,null,null,null,null,null,null,null,null,1,"Agriculture - Maize"," Agriculture, hunting, forestry and fishing"," Agriculture, hunting, forestry and fishing"," Agriculture, hunting, forestry and fishing"," Agriculture, hunting, forestry and fishing","Not implemented yet"," Agriculture, hunting, forestry and fishing","Agriculture, hunting, forestry and fishing","Agriculture - Maize"]
[null,"Mexico",3,null,2002,84.250455931327295,null,null,null,null,null,null,null,null,2,"Agriculture - Drought tolerant staples"," Mining and quarrying"," Mining and quarrying"," Mining and quarrying"," Mining and quarrying",null," Mining and quarrying","Mining and quarrying","Agriculture - Drought tolerant staples"]
[null,"Philippines",4,null,2003,85.913813501790045,null,null,null,null,null,null,null,null,3,"Agriculture - Groundnuts (Peanuts)","Manufacturing: Food products, beverages and tobacco","Manufacturing: Food products, beverages and tobacco","Manufacturing: Food products, beverages and tobacco","Manufacturing: Food products, beverages and tobacco",null,"Manufacturing: Food products, beverages and tobacco","Manufacturing: Food products, beverages and tobacco","Agriculture - Groundnuts (Peanuts)"]
[null,"South Africa",5,null,2004,88.224114790804677,null,null,null,null,null,null,null,null,4,"Agriculture - Sugar","Manufacturing: Textiles, textile products, leather and footwear","Manufacturing: Textiles, textile products, leather and footwear","Manufacturing: Textiles, textile products, leather and footwear","Manufacturing: Textiles, textile products, leather and footwear",null,"Manufacturing: Textiles, textile products, leather and footwear","Manufacturing: Textiles, textile products, leather and footwear","Agriculture - Sugar"]
[null,"Zambia",null,null,2005,90.990342309058747,null,null,null,null,null,null,null,null,5,"Agriculture - Cotton","Manufacturing: Wood and products of wood and cork","Manufacturing: Wood and products of wood and cork","Manufacturing: Wood and products of wood and cork","Manufacturing: Wood and products of wood and cork",null,"Manufacturing: Wood and products of wood and cork","Manufacturing: Wood and products of wood and cork","Agriculture - Cotton"]
[null,"CustomRegion1",null,null,2006,93.796341697466048,null,null,null,null,null,null,null,null,6,"Agriculture - Tobacco","Manufacturing: Pulp, paper, paper products, printing and publishing","Manufacturing: Pulp, paper, paper products, printing and publishing","Manufacturing: Pulp, paper, paper products, printing and publishing","Manufacturing: Pulp, paper, paper products, printing and publishing",null,"Manufacturing: Pulp, paper, paper products, printing and publishing","Manufacturing: Pulp, paper, paper products, printing and publishing","Agriculture - Tobacco"]
[null,"CustomRegion2",null,null,2007,96.337514583621967,null,null,null,null,null,null,null,null,7,"Agriculture - Coffee","Manufacturing: Coke, refined petroleum products and nuclear fuel","Manufacturing: Coke, refined petroleum products and nuclear fuel","Manufacturing: Coke, refined petroleum products and nuclear fuel","Manufacturing: Coke, refined petroleum products and nuclear fuel",null,"Manufacturing: Coke, refined petroleum products and nuclear fuel","Manufacturing: Coke, refined petroleum products and nuclear fuel","Agriculture - Coffee"]
[null,"CustomRegion3",null,null,2008,98.193668334750598,null,null,null,null,null,null,null,null,8,"Agriculture - Wheat","Manufacturing: Chemicals and chemical products","Manufacturing: Chemicals and chemical products","Manufacturing: Chemicals and chemical products","Manufacturing: Chemicals and chemical products",null,"Manufacturing: Chemicals and chemical products","Manufacturing: Chemicals and chemical products","Agriculture - Wheat"]
[null,null,null,null,2009,98.799306827394986,null,null,null,null,null,null,null,null,9,"Agriculture - Horticulture","Manufacturing: Rubber and plastics products","Manufacturing: Rubber and plastics products","Manufacturing: Rubber and plastics products","Manufacturing: Rubber and plastics products",null,"Manufacturing: Rubber and plastics products","Manufacturing: Rubber and plastics products","Agriculture - Horticulture"]
[null,null,null,null,2010,100,null,null,null,null,null,null,null,null,10,"Agriculture - Other Crops","Manufacturing: Other non-metallic mineral products","Manufacturing: Other non-metallic mineral products","Manufacturing: Other non-metallic mineral products","Manufacturing: Other non-metallic mineral products",null,"Manufacturing: Other non-metallic mineral products","Manufacturing: Other non-metallic mineral products","Agriculture - Other Crops"]
[null,null,null,null,2011,102.06310624994376,null,null,null,null,null,null,null,null,11,"Agriculture - Livestock","Manufacturing: Basic metals","Manufacturing: Basic metals","Manufacturing: Basic metals","Manufacturing: Basic metals",null,"Manufacturing: Basic metals","Manufacturing: Basic metals","Agriculture - Livestock"]
[null,null,null,null,2012,103.96369451098523,null,null,null,null,null,null,null,null,12,"Fishing","Manufacturing: Fabricated metal products","Manufacturing: Fabricated metal products","Manufacturing: Fabricated metal products","Manufacturing: Fabricated metal products",null,"Manufacturing: Fabricated metal products","Manufacturing: Fabricated metal products except machinery and equipment","Fishing"]
[null,null,"Yes",null,2013,105.73303529279485,null,null,null,null,null,null,null,null,13,"Forestry","Manufacturing: Machinery and equipment not classified elsewhere","Manufacturing: Machinery and equipment not classified elsewhere","Manufacturing: Machinery and equipment not classified elsewhere","Manufacturing: Machinery and equipment not classified elsewhere",null,"Manufacturing: Machinery and equipment not classified elsewhere","Manufacturing: Machinery and equipment not classified elsewhere","Forestry"]
[null,null,"No",null,2014,107.57449938523446,null,null,null,null,null,null,null,null,14,"Mining","Manufacturing: Computer, Electronic and optical equipment","Manufacturing: Computer, Electronic and optical equipment","Manufacturing: Computer, Electronic and optical equipment","Manufacturing: Computer, Electronic and optical equipment",null,"Manufacturing: Computer, Electronic and optical equipment","Manufacturing: Office, accounting and computing machinery","Mining"]
[null,null,null,null,2015,108.57283671908158,null,null,null,null,null,null,null,null,15,"Food and beverage manufacturing","Manufacturing: Electrical machinery and apparatus not classified elsewhere","Manufacturing: Electrical machinery and apparatus not classified elsewhere","Manufacturing: Electrical machinery and apparatus not classified elsewhere","Manufacturing: Electrical machinery and apparatus not classified elsewhere",null,"Manufacturing: Electrical machinery and apparatus not classified elsewhere","Manufacturing:  Electrical machinery and apparatus not classified elsewhere","Food and beverage manufacturing"]
[null,null,null,null,2016,109.60462881680309,null,null,null,null,null,null,null,null,16,"Textile manufacturing","Manufacturing: Motor vehicles, trailers and semi-trailers","Manufacturing: Motor vehicles, trailers and semi-trailers","Manufacturing: Motor vehicles, trailers and semi-trailers","Manufacturing: Motor vehicles, trailers and semi-trailers",null,"Manufacturing: Motor vehicles, trailers and semi-trailers","Manufacturing: Radio, television and communication equipment","Textile manufacturing"]
[null,null,null,null,2017,111.56743208555547,null,null,null,null,null,null,null,null,17,"Wood and furniture manufacturing","Manufacturing: Other transport equipment","Manufacturing: Other transport equipment","Manufacturing: Other transport equipment","Manufacturing: Other transport equipment",null,"Manufacturing: Other transport equipment","Manufacturing: Medical, precision and optical instruments","Wood and furniture manufacturing"]
[null,null,null,null,2018,114.1233210155665,null,null,null,null,null,null,null,null,18,"Fertilizer and industrial chemical manufacturing"," Manufacturing not classified elsewhere; recycling"," Manufacturing not classified elsewhere; recycling"," Manufacturing not classified elsewhere; recycling"," Manufacturing not classified elsewhere; recycling",null," Manufacturing not classified elsewhere; recycling","Manufacturing: Motor vehicles, trailers and semi-trailers","Fertilizer and industrial chemical manufacturing"]
[null,null,null,null,2019,116.03888984512007,null,null,null,null,null,null,null,null,19,"Other manufacturing"," Electricity, gas and water supply"," Electricity, gas and water supply"," Electricity, gas and water supply"," Electricity, gas and water supply",null," Electricity, gas and water supply","Manufacturing: Other transport equipment","Other manufacturing"]
[null,null,null,null,2020,117.57131659224899,null,null,null,null,null,null,null,null,20,"Electricity and water"," Construction"," Construction"," Construction"," Construction",null," Construction","Manufacturing: Manufacturing not classified elsewhere; recycling","Electricity and water"]
[null,null,null,null,2021,122.96166078269006,null,null,null,null,null,null,null,null,21,"Equipment and machinery"," Wholesale and retail trade; repairs"," Wholesale and retail trade; repairs"," Wholesale and retail trade; repairs"," Wholesale and retail trade; repairs",null," Wholesale and retail trade; repairs","Electricity, gas and water supply","Equipment and machinery"]
[null,null,null,null,2022,131.6194319803779,null,null,null,null,null,null,null,null,22,"Construction"," Hotels and restaurants"," Hotels and restaurants"," Hotels and restaurants"," Hotels and restaurants",null," Hotels and restaurants","Construction","Construction"]
[null,null,null,null,2023,{"$f":"F27*1.02","v":134.25182061998547},"Assumes 2% annual growth (US Federal Reserve long-term growth target)",null,null,null,null,null,null,null,23,"Trade, transportation"," Transport and storage"," Transport and storage"," Transport and storage"," Transport and storage",null," Transport and storage","Wholesale and retail trade; repairs","Trade, transportation"]
[null,null,null,null,2024,136.93685703238518,null,null,null,null,null,null,null,null,24,"Tourism"," Post and telecommunications"," Post and telecommunications"," Post and telecommunications"," Post and telecommunications",null," Post and telecommunications","Hotels and restaurants","Tourism"]
[null,null,null,null,2025,139.67559417303289,null,null,null,null,null,null,null,null,25,"Other private and community services"," Financial intermediation"," Financial intermediation"," Financial intermediation"," Financial intermediation",null," Financial intermediation","Transport and storage","Other private and community services"]
[null,null,null,null,2026,142.46910605649356,null,null,null,null,null,null,null,null,26,"Financial services and insurance"," Real estate activities"," Real estate activities"," Real estate activities"," Real estate activities",null," Real estate activities","Post and telecommunications","Financial services and insurance"]
[null,null,null,null,2027,145.31848817762344,null,null,null,null,null,null,null,null,27,"Public services"," Renting of machinery and equipment"," Renting of machinery and equipment"," Renting of machinery and equipment"," Renting of machinery and equipment",null," Renting of machinery and equipment","Finance and insurance","Public services"]
[null,null,null,null,2028,148.22485794117591,null,null,null,null,null,null,null,null,28,"Labor - less than primary schooling"," Computer and related activities"," Computer and related activities"," Computer and related activities"," Computer and related activities",null," Computer and related activities","Real estate activities","Labor - less than primary schooling"]
[null,null,null,null,2029,151.18935509999943,null,null,null,null,null,null,null,null,29,"Labor - primary schooling"," R&D and other business activities"," R&D and other business activities"," R&D and other business activities"," R&D and other business activities",null," R&D and other business activities","Renting of machinery and equipment","Labor - primary schooling"]
[null,null,null,null,2030,154.21314220199943,null,null,null,null,null,null,null,null,30,"Labor - secondary schooling"," Public administration and defence; compulsory social security"," Public administration and defence; compulsory social security"," Public administration and defence; compulsory social security"," Public administration and defence; compulsory social security",null," Public administration and defence; compulsory social security","Computer and related activities","Labor - secondary schooling"]
[null,null,null,null,2031,157.29740504603942,null,null,null,null,null,null,null,null,31,"Labor - post-secondary schooling"," Education"," Education"," Education"," Education",null," Education","Research and development","Labor - post-secondary schooling"]
[null,null,null,null,2032,160.44335314696022,null,null,null,null,null,null,null,null,32,"Households - rural/remote - small"," Health and social work"," Health and social work"," Health and social work"," Health and social work",null," Health and social work","Other Business Activities","Households - rural/remote - small"]
[null,null,null,null,2033,163.65222020989944,null,null,null,null,null,null,null,null,33,"Households - rural/remote - medium"," Other community, social and personal services"," Other community, social and personal services"," Other community, social and personal services"," Other community, social and personal services",null," Other community, social and personal services","Public admin. and defence; compulsory social security","Households - rural/remote - medium"]
[null,null,null,null,2034,166.92526461409744,null,null,null,null,null,null,null,null,34,"Households - rural/remote - non-farm"," Private households with employed persons"," Private households with employed persons"," Private households with employed persons"," Private households with employed persons",null," Private households with employed persons","Education","Households - rural/remote - non-farm"]
[null,null,null,null,2035,170.26376990637939,null,null,null,null,null,null,null,null,35,"Households - rural/non-remote - small","Payments to workers and/or households","Payments to workers and/or households","Payments to workers and/or households","Payments to workers and/or households",null,"Payments to workers and/or households","Health and social work","Households - rural/non-remote - small"]
[null,null,null,null,2036,173.66904530450699,null,null,null,null,null,null,null,null,36,"Households - rural/non-remote - medium","",null,"",null,null,null,"Other community, social and personal services","Households - rural/non-remote - medium"]
[null,null,null,null,2037,177.14242621059714,null,null,null,null,null,null,null,null,37,"Households - rural/non-remote - large","",null,"",null,null,null,"Private households with employed persons","Households - rural/non-remote - large"]
[null,null,null,null,2038,180.68527473480907,null,null,null,null,null,null,null,null,38,"Households - rural/non-remote - non-farm","",null,"",null,null,null,"Payments to households","Households - rural/non-remote - non-farm"]
[null,null,null,null,2039,184.29898022950525,null,null,null,null,null,null,null,null,39,"Households - urban - low skilled self-employed","",null,"",null,null,null,"Payments to workers","Households - urban - low skilled self-employed"]
[null,null,null,null,2040,187.98495983409535,null,null,null,null,null,null,null,null,40,"Households - urban - private employees","","","",null,null,null,null,"Households - urban - private employees"]
[null,null,null,null,2041,191.74465903077726,null,null,null,null,null,null,null,null,41,"Households - urban - public employees","","","","",null,null,null,"Households - urban - public employees"]
[null,null,null,null,2042,195.57955221139281,null,null,null,null,null,null,null,null,42,"Households - urban - high skilled ","","","","",null,null,null,"Households - urban - high skilled "]
[null,null,null,null,2043,199.49114325562067]
[null,null,null,null,2044,203.48096612073309]
[null,null,null,null,2045,207.55058544314775]
[null,null,null,null,2046,211.70159715201072]
[null,null,null,null,2047,215.93562909505093]
[null,null,null,null,2048,220.25434167695195]
[null,null,null,null,2049,224.65942851049098]
[null,null,null,null,2050,229.15261708070079]
[]
[null,"Earnings Index Year for Custom Regions",null,null,"Selected"]
[null,"CustomRegion1",{"$f":"VLOOKUP(CustomRegion1_EarningsYear,E5:F55,2,FALSE)","v":107.57449938523446},null,"Wind",{"$f":"wind_dollar_year","v":2023},{"$f":"VLOOKUP(F58,E5:F35,2,FALSE)","v":134.25182061998547}]
[null,"CustomRegion2",{"$f":"VLOOKUP(CustomRegion2_EarningsYear,$E$5:$F$55,2,FALSE)","v":107.57449938523446},null,"Solar",{"$f":"'Solar-PV-Inputs'!B6","v":2016},{"$f":"VLOOKUP(F59,E5:F35,2,FALSE)","v":109.60462881680309}]
[null,"CustomRegion3",{"$f":"VLOOKUP(CustomRegion3_EarningsYear,E5:F55,2,FALSE)","v":107.57449938523446},null,"Biopower",{"$f":"'Biopower-Inputs'!B9","v":2014},{"$f":"VLOOKUP(F60,$E$5:$F$55,2,FALSE)","v":107.57449938523446}]
[null,"CustomRegion4",null,null,"Geothermal",{"$f":"'Geothermal-Inputs'!B10","v":2012},{"$f":"VLOOKUP(F61,$E$5:$F$55,2,FALSE)","v":103.96369451098523}]
[null,"CustomRegion5",null,null,"General",{"$f":"general_dollar_year","v":2012},{"$f":"VLOOKUP(F62,E5:F55,2,FALSE)","v":103.96369451098523}]
[null,null,null,null,"Placeholder"]
[null,null,null,null,"Placeholder"]
[null,null,null,null,"Placeholder"]
[null,null,null,null,"Placeholder"]
[]
[null,"Biopower Defaults",null,null,null,null,null,null,null,null,null,null,null,null,null,null,null,null,null,null,null,null,null,null,null,"Solar PV Defaults"]
[null,"Bipower Dropdown Lists","Default Heat Content (Btu/kg)",null,null,"Default Capital Cost","Real Capital Cost",null,null,null,null,null,null,null,null,null,null,null,null,null,null,null,null,null,null,2,3,4,5,6,7]
[null,"Maize Stover",16666.960616589357,null,"Stoker boiler  ",3070,{"$f":"F70*$G$60/$F$17","v":3176.6254043402992},"Source: international costs in JEDI"]
[null,"Forest Residues",18893.631280974972,null,"Bubbling and circulating fluidised boilers ",3335,{"$f":"F71*$G$60/$F$17","v":3450.8292258875886},null,null,null,null,null,null,null,null,null,null,null,null,null,null,null,null,null,"Proxy Country","Country","Cost","Low","Average","High"]
[null,"Switchgrass",19114.093722993352,null,"Fixed and fluidised bed gasifiers ",3920,4056.1470960957568,null,null,null,null,null,null,null,null,null,null,null,null,null,null,null,null,null,"Colombia","Colombia","CAPEX ($ Million USD/w)",0.62500537521940958,0.65705693292296896,0.68910849062652846]
[null,"Selected",{"$f":"VLOOKUP('Biopower-Inputs'!B34,'Default-Data'!B70:C72,2,0)","v":18893.631280974972},null,"Selected",null,{"$f":"VLOOKUP(biopower_boiler_type,E70:G72,3,FALSE)","v":3176.6254043402992},null,null,null,null,null,null,null,null,null,null,null,null,null,null,null,null,null,"Mexico","Mexico","CAPEX ($ Million USD/w)",0.56090225981229058,0.61699248579351962,0.67308271177474877]
[null,"Farmer",null,null,"Fixed O&M",{"$f":"0.045*G73*1000*biopower_capacity","v":71474071.597656727},null,null,null,null,null,null,null,null,null,null,null,null,null,null,null,null,null,null,"South Africa","South Africa","CAPEX ($ Million USD/w)",0.57692803866407039,0.57692803866407039,0.57692803866407039]
[null,"Wholesaler",null,null,"Variable O&M",{"$f":"3.75*biopower_capacity*'Biopower-Inputs'!B6*365.25*24","v":13149000},null,null,null,null,null,null,null,null,null,null,null,null,null,null,null,null,null,null,"Philippines","Philippines","CAPEX ($ Million USD/w)",0.6617703972911394,0.71267581246738088,0.76358122764362246]
[null,null,null,null,null,null,null,null,null,null,null,null,null,null,null,null,null,null,null,null,null,null,null,null,null,"US","CAPEX ($ Million USD/w)"]
[null,null,null,null,"%","Fixed and fluidised bed gasifiers ","Bubbling and circulating fluidised boilers ","Stoker boiler  ","Selected",null,null,null,null,null,null,null,null,null,null,null,null,null,null,null,"CustomRegion1","CustomRegion1","CAPEX ($ Million USD/w)",{"$f":"AVERAGE(AB72:AB75)","v":0.60615151774672749},{"$f":"AVERAGE(AC72:AC75)","v":0.64091331746198499},{"$f":"AVERAGE(AD72:AD75)","v":0.67567511717724249}]
[null,"Capacity Factor",0.8,null,"Electrical/balance of plant",0.03,0.16,0.12,{"$f":"HLOOKUP(biopower_boiler_type,$F$77:$H$83,J78,FALSE)","v":0.12},2,null,null,null,null,null,null,null,null,null,null,null,null,null,null,"CustomRegion2","CustomRegion2","CAPEX ($ Million USD/w)",{"$f":"AB77","v":0.60615151774672749},{"$f":"AC77","v":0.64091331746198499},{"$f":"AD77","v":0.67567511717724249}]
[null,"Heat Rate (Btu/kWh)",14000,null,"Civils",0.19,0.15,0.14000000000000001,0.14000000000000001,3,null,null,null,null,null,null,null,null,null,null,null,null,null,null,"CustomRegion3","CustomRegion3","CAPEX ($ Million USD/w)",0.60615151774672749,0.64091331746198499,0.67567511717724249]
[null,null,null,null,"Consultancy/design",0.04,0.12,0.18,0.18,4,null,null,null,null,null,null,null,null,null,null,null,null,null,null,"Zambia","Zambia","CAPEX ($ Million USD/w)",0.80930183201487649,0.80930183201487649,0.80930183201487649]
[null,"MWh Generation",{"$f":"'Biopower-Inputs'!B5*'Biopower-Inputs'!B6*365.25*24","v":3506400},null,"Prime mover",0.08,7.0000000000000007E-2,0.04,0.04,5,null,null,null,null,null,null,null,null,null,null,null,null,null,null,null,"Placeholder"]
[null,"Btu/yr",{"$f":"'Biopower-Inputs'!B7*C81*1000","v":49089600000000},null,"Converter system",0.61,0.36,0.38,0.38,6,null,null,null,null,null,null,null,null,null,null,null,null,null,null,null,"Placeholder"]
[null,"Feedstock Consumption (Dry Metric Tonnes / yr)",{"$f":"C82/C73/1000","v":2598208.8498483081},null,"Fuel handling/preparation",0.05,0.14000000000000001,0.14000000000000001,0.14000000000000001,7,null,null,null,null,null,null,null,null,null,null,null,null,null,null,null,"Placeholder"]
[null,null,null,null,null,null,null,null,null,null,null,null,null,null,null,null,null,null,null,null,null,null,null,null,null,"Placeholder"]
[null,"Construction Defaults",null,null,null,null,null,null,null,null,null,null,null,null,null,null,null,null,null,null,null,null,null,null,null,"Placeholder"]
[null,null,null,null,null,null,null,null,null,null,null,null,null,null,null,null,null,null,null,null,null,null,null,null,null,"Placeholder",null,null,null,null,null,null,"and similar annual insolation…"]
[null,"construction cost",null,null,{"$f":"biopower_country","v":"South Africa"},null,null,null,null,null,null,null,null,null,null,null,null,null,null,null,null,null,null,null,"Selected",{"$f":"VLOOKUP(pv_country,$Y$72:$AE$86,Z69,FALSE)","v":"Philippines"},"CAPEX ($ Million USD/w)",0.6617703972911394,0.71267581246738088,0.76358122764362246,0,null,"Navigant estimates similar solar DG deployment for both countries (I didn’t find info about utility-scale, but it didn't seem like it was worth my time given that this is just a broad comparison)"]
[null,null,"2013 $/kW",{"$f":"F60&\"$ total\"","v":"2014$ total"},{"$f":"IF(LEFT(E87,6)=\"Custom\",\"Other\",biopower_country)","v":"South Africa"},"Colombia","Mexico","Philippines","South Africa","Zambia","Bangladesh","Other","Index"]
[null,"Equipment"]
[null,"Feedstock handling equipment",null,{"$f":"I83*1000*biopower_capacity*G73","v":222363778.30382094},{"$f":"HLOOKUP($E$88,$F$88:$L$92,M90,FALSE)","v":0.1},0,0.15,0,0.1,0,0,0,3,null,null,null,null,null,null,null,null,null,null,null,"O&M"]
[null,"Turbines, boilers, and air quality control equipment",null,{"$f":"(I82+I81)*G73*biopower_capacity*1000","v":667091334.9114629},{"$f":"HLOOKUP($E$88,$F$88:$L$92,M91,FALSE)","v":0.1},0,0.15,0,0.1,0,0,0,4,null,null,null,null,null,null,null,null,null,null,null,"Colombia","Colombia","Fixed O&M ($Thousand USD/MW/year)",null,9.9760473352328844]
[null,"Other equipment",null,{"$f":"C92*biopower_capacity*1000*$G$60/$F$18","v":0},0,0,0,0,0,0,0,0,5,null,null,null,null,null,null,null,null,null,null,null,"Mexico","Mexico","Fixed O&M ($Thousand USD/MW/year)",null,13.621912024012772]
[null,null,null,null,null,null,null,null,null,null,null,null,null,null,null,null,null,null,null,null,null,null,null,null,"South Africa","South Africa","Fixed O&M ($Thousand USD/MW/year)",null,12.0193341388348]
[null,null,null,null,{"$f":"biopower_country","v":"South Africa"},null,null,null,null,null,null,null,null,null,null,null,null,null,null,null,null,null,null,null,"Philippines","Philippines","Fixed O&M ($Thousand USD/MW/year)",null,13.252086358202472]
[null,"General Construction","$/kW","$",{"$f":"IF(LEFT(E94,6)=\"Custom\",\"Other\",biopower_country)","v":"South Africa"},"Colombia","Mexico","Philippines","South Africa","Zambia","Bangladesh","Other","Index",null,null,null,null,null,null,null,null,null,null,null,"CustomRegion1","CustomRegion1","Fixed O&M ($Thousand USD/MW/year)",null,{"$f":"AVERAGE(AC91:AC94)","v":12.217344964070733}]
[null,"Construction",null,{"$f":"I79*1000*G73*biopower_capacity","v":222363778.30382094},{"$f":"HLOOKUP($E$95,$F$95:$L$96,M96,FALSE)","v":1},0.9,1,0.9,1,0.9,0.9,0.9,2,null,null,null,null,null,null,null,null,null,null,null,"CustomRegion2","CustomRegion2","Fixed O&M ($Thousand USD/MW/year)",null,{"$f":"AC95","v":12.217344964070733}]
[null,null,null,null,null,null,null,null,null,null,null,null,null,null,null,null,null,null,null,null,null,null,null,null,"CustomRegion3","CustomRegion3","Fixed O&M ($Thousand USD/MW/year)",null,{"$f":"AC96","v":12.217344964070733}]
[null,null,null,null,{"$f":"biopower_country","v":"South Africa"},null,null,null,null,null,null,null,null,null,null,null,null,null,null,null,null,null,null,null,"Zambia","Zambia","Fixed O&M ($Thousand USD/MW/year)",null,15.985714404650285]
[null,"Contractors and Balance of Plant",null,null,{"$f":"IF(LEFT(E98,6)=\"Custom\",\"Other\",biopower_country)","v":"South Africa"},"Colombia","Mexico","Philippines","South Africa","Zambia","Bangladesh","Other","Index",null,null,null,null,null,null,null,null,null,null,null,null,"Placeholder"]
[null,"Balance of Plant",null,{"$f":"I78*G73*1000*biopower_capacity","v":190597524.26041794},{"$f":"HLOOKUP($E$99,$F$99:$L$102,M100,FALSE)","v":0.2},0.05,0.2,0.05,0.2,0.05,0.05,0.05,2,null,null,null,null,null,null,null,null,null,null,null,null,"Placeholder"]
[null,"Professional Services (legal, engineering, development, public relations etc.)",null,{"$f":"I80*G73*1000*biopower_capacity","v":285896286.39062691},{"$f":"HLOOKUP($E$99,$F$99:$L$102,M101,FALSE)","v":0.9},0.75,0.9,0.75,0.9,0.75,0.75,0.75,3,null,null,null,null,null,null,null,null,null,null,null,null,"Placeholder"]
[null,"Contractors and Balance of Plant Subtotal",null,null,1,1,1,1,1,1,1,1,4,null,null,null,null,null,null,null,null,null,null,null,null,"Placeholder"]
[null,null,null,null,null,null,null,null,null,null,null,null,null,null,null,null,null,null,null,null,null,null,null,null,null,"Placeholder",null,null,null,null,null,null,null,null,null,null,null,null,null,"Selected country",null,{"$f":"pv_country","v":"Philippines"}]
[null,"O&M",null,null,null,null,null,null,null,null,null,null,"$/kW",null,null,null,null,null,null,null,null,null,null,null,null,"Placeholder"]
[null,"Material Prices ($/kW)","USA","Colombia","Mexico","Philippines","South Africa","Zambia","Bangladesh","Other",null,null,null,null,null,null,null,null,null,null,null,null,null,null,"Selected",{"$f":"VLOOKUP(pv_country,$Y$91:$AC$104,Z69,FALSE)","v":"Philippines"},{"$f":"VLOOKUP(pv_country,$Y$91:$AC$104,AA69,FALSE)","v":"Fixed O&M ($Thousand USD/MW/year)"},null,{"$f":"VLOOKUP(pv_country,$Y$91:$AC$104,AC69,FALSE)*1000","v":13252.086358202472},null,null,null,null,null,null,null,null,null,null,"Nominal Capex ($2014)",null,{"$f":"AC87*1000000*pv_nameplate","v":71267581.246738091}]
[null,"Chemicals (including ammonia)",2.54,{"$f":"C106","v":2.54},{"$f":"D106","v":2.54},2.54,2.54,2.54,{"$f":"H106","v":2.54},{"$f":"I106","v":2.54},null,null,null,null,null,null,null,null,null,null,null,null,null,null,null,null,null,null,null,null,"Construction & Installation domestic content",null,null,null,null,null,null,null,null,"Real Capex",null,{"$f":"AP105*AD107","v":72612532.095057547}]
[null,"Water",0.51,{"$f":"0.75*C107","v":0.38250000000000001},{"$f":"0.53*C107","v":0.27030000000000004},{"$f":"0.39*C107","v":0.19890000000000002},{"$f":"0.67*C107","v":0.3417},{"$f":"G107","v":0.3417},0.3417,0.3417,null,null,null,null,null,null,null,null,null,null,null,null,null,null,null,null,null,2014,"Nominal -> Real $ Adjustment",{"$f":"pv_dollar_yr/F19","v":1.0188718464242956},{"$f":"pv_country","v":"Philippines"},null,null,null,null,null,null,null,null,null,null,null,null,null,null,"Default wholesale margin"]
[null,"Solids/Ash Disposal",0.64,{"$f":"C108","v":0.64},{"$f":"D108","v":0.64},0.64,0.64,0.64,0.64,0.64,null,null,null,null,null,null,null,null,null,null,null,null,null,null,null,null,null,null,null,null,{"$f":"IF(LEFT(pv_country,6)=\"Custom\",\"Other\",pv_country)","v":"Philippines"},"Colombia","Mexico","Philippines","South Africa","Zambia","Other",null,null,null,"Project Share",null,null,"Mfg","Wholesale",0.06]
[null,null,null,null,null,null,null,null,null,null,null,null,null,null,null,null,null,null,null,null,null,null,null,null,null,null,null,null,null,"Module Mfg",{"$f":"HLOOKUP($AE$108,$AF$108:$AK$117,AL109,FALSE)","v":0},0,0,0,0,0,0,2,null,"Module",0.37,{"$f":"$AP$106*AO109","v":26866636.875171293},null,{"$f":"(1-AT108)*AP109","v":25254638.662661012},{"$f":"AT108*AP109","v":1611998.2125102775}]
[null,"Materials","$/kW",null,{"$f":"IF(LEFT(biopower_country,6)=\"Custom\",\"Other\",biopower_country)","v":"South Africa"},"Colombia","Mexico","Philippines","South Africa","Zambia","Bangladesh","Other","Index",null,null,null,null,null,null,null,null,null,null,null,null,null,null,null,null,"Inverter",{"$f":"HLOOKUP($AE$108,$AF$108:$AK$117,AL110,FALSE)","v":0},0,0,0,0,0,0,3,null,"Inverter",0.06,{"$f":"$AP$106*AO110","v":4356751.9257034529}]
[null,"Chemicals (including ammonia)",{"$f":"HLOOKUP($E$110,$D$105:$L$108,M111,FALSE)","v":2.54},{"$f":"C111*biopower_capacity*1000","v":1270000},{"$f":"IF(ISNA(HLOOKUP(biopower_country,$F$110:$K$113,M111,FALSE)),L111,HLOOKUP(biopower_country,$F$110:$K$113,M111,FALSE))","v":0.5},0.5,0.5,0.5,0.5,0.5,0.5,0.5,2,null,null,null,null,null,null,null,null,null,null,null,null,null,null,null,null,null,null,"Colombia","Mexico","Philippines","South Africa","Zambia",null,"Index",null,"Construction",0.15,10891879.814258631]
[null,"Water",{"$f":"HLOOKUP($E$110,$D$105:$L$108,M112,FALSE)","v":0.3417},{"$f":"C112*biopower_capacity*1000","v":170850},{"$f":"IF(ISNA(HLOOKUP(biopower_country,$F$110:$K$113,M112,FALSE)),L112,HLOOKUP(biopower_country,$F$110:$K$113,M112,FALSE))","v":1},1,1,1,1,1,1,1,3,null,null,null,null,null,null,null,null,null,null,null,null,null,null,null,null,"Construction",0.98,0.98,0.98,0.98,0.98,0.98,0.98,5,null,"Hardware",0.16,11618005.135209208]
[null,"Solids/Ash Disposal",0.64,{"$f":"C113*biopower_capacity*1000","v":320000},{"$f":"IF(ISNA(HLOOKUP(biopower_country,$F$110:$K$113,M113,FALSE)),L113,HLOOKUP(biopower_country,$F$110:$K$113,M113,FALSE))","v":1},1,1,1,1,1,1,1,4,null,null,null,null,null,null,null,null,null,null,null,null,null,null,null,null,null,null,"Colombia","Mexico","Philippines","South Africa","Zambia",null,"Index",null,"Electrical",0.1,7261253.2095057555]
[null,null,null,null,null,null,null,null,null,null,null,null,null,null,null,null,null,null,null,null,null,null,null,null,null,null,null,null,null,"Hardware",1,1,1,1,1,1,1,7,null,"Overhead",0.08,5809002.5676046042]
[null,null,null,null,null,null,null,null,null,null,null,null,null,null,null,null,null,null,null,null,null,null,null,null,null,null,null,null,null,"Other",0.88,0.88,0.88,0.88,0.88,0.88,0.88,8,null,"Other",0.08,5809002.5676046042]
[null,"Default onsite staffing needs FTE/MW (fixed) or FTE/MWh (variable) - (this is total workers, not local workers)",null,null,null,"total utility jobs",{"$f":"biopower_country","v":"South Africa"},"Colombia","Mexico","Philippines","South Africa","Zambia","Bangladesh","CustomRegion1","CustomRegion2","CustomRegion3","CustomRegion4","CustomRegion5","Index",null,null,null,null,null,null,null,null,null,null,"Electrical",0.85,0.85,0.85,0.85,0.85,0.85,0.85,9]
["Fixed","O&M Management",0.04,"Fixed Admin/MW",{"$f":"C117+C118","v":6.6957306716032797E-2},{"$f":"E117*biopower_capacity","v":33.478653358016402},{"$f":"HLOOKUP(biopower_country,$H$116:$R$118,S117,FALSE)","v":5196514.5486180978},{"$f":"(biopower_dollar_index/F19)*F117*'Colombia-IO-Data'!AP31/('Colombia-IO-Data'!AN31*'Colombia-IO-Data'!AO31)","v":3766700.8518406898},{"$f":"(biopower_dollar_index/$F$19)*F117*'Mexico-IO-Data'!$AS$31/'Mexico-IO-Data'!$AR$31","v":5781108.1424285928},{"$f":"(biopower_dollar_index/$F$19)*F117*'Philippines-IO-Data'!$AP$31/'Philippines-IO-Data'!$AO$31","v":1069711.721391099},{"$f":"(biopower_dollar_index/$F$19)*F117*'SouthAfrica-IO-Data'!$AT$31/'SouthAfrica-IO-Data'!$AS$31","v":5196514.5486180978},{"$f":"(biopower_dollar_index/$F$19)*F117*'Zambia-IO-Data'!$BP$30/'Zambia-IO-Data'!$BN$30","v":1503913.8450398189},null,{"$f":"(biopower_dollar_index/$F$19)*F117*CustomRegion1!$E$27/CustomRegion1!$D$27","v":1065260.5020028923},{"$f":"(biopower_dollar_index/$F$19)*F117*CustomRegion2!$E$27/CustomRegion2!$D$27","v":1921575.6406518421},{"$f":"(biopower_dollar_index/$F$19)*F117*CustomRegion3!$F$31/CustomRegion3!$E$31","v":1497847.367185012},null,null,2,null,null,null,null,null,null,null,null,null,null,"Overhead",1,1,1,1,1,1,1,10]
["Fixed","O&M Administration",2.6957306716032796E-2,"Var /MWh",{"$f":"SUM(C119:C121)","v":6.3599063817917353E-5},{"$f":"E118*biopower_capacity*365.25*24*'Biopower-Inputs'!B6","v":223.00375737114547},{"$f":"HLOOKUP(biopower_country,$H$116:$R$118,S118,FALSE)","v":34614363.283467472},{"$f":"(biopower_dollar_index/F19)*F118*'Colombia-IO-Data'!AP31/('Colombia-IO-Data'!AN31*'Colombia-IO-Data'!AO31)","v":25090269.727125522},{"$f":"(biopower_dollar_index/$F$19)*F118*'Mexico-IO-Data'!$AS$31/'Mexico-IO-Data'!$AR$31","v":38508383.946745604},{"$f":"(biopower_dollar_index/$F$19)*F118*'Philippines-IO-Data'!$AP$31/'Philippines-IO-Data'!$AO$31","v":7125427.9741526917},{"$f":"(biopower_dollar_index/$F$19)*F118*'SouthAfrica-IO-Data'!$AT$31/'SouthAfrica-IO-Data'!$AS$31","v":34614363.283467472},{"$f":"(biopower_dollar_index/$F$19)*F118*'Zambia-IO-Data'!$BP$30/'Zambia-IO-Data'!$BN$30","v":10017680.060779996},null,{"$f":"(biopower_dollar_index/$F$19)*F118*CustomRegion1!$E$27/CustomRegion1!$D$27","v":7095778.0764152212},{"$f":"(biopower_dollar_index/$F$19)*F118*CustomRegion2!$E$27/CustomRegion2!$D$27","v":12799755.813225351},{"$f":"(biopower_dollar_index/$F$19)*F118*CustomRegion3!$F$31/CustomRegion3!$E$31","v":9977270.8083180301},null,null,3,null,null,null,null,null,null,null,null,null,null,null,null,null,null,null,null,null,null,null,null,null,"Total",{"$f":"SUM(AP109:AP115)","v":72612532.095057547}]
["Variable","O&M Plant operators",3.7075062742413871E-5,null,null,"% Local",{"$f":"IF(ISNA(HLOOKUP(biopower_country,$H$116:$M$119,S119,FALSE)),N119,HLOOKUP(biopower_country,$H$116:$M$119,S119,FALSE))","v":1},1,1,1,1,1,1,1,1,1,1,1,4]
["Variable","O&M Fuel handlers",1.0187519147742486E-5,null,null,null,null,null,null,null,null,null,null,null,null,null,null,null,null,null,null,null,null,null,null,null,null,null,null,null,"O&M domestic content",null,null,null,null,null,null,null,null,"Nominal Fixed O&M ($2014)",null,{"$f":"AC105*pv_nameplate","v":1325208.6358202472}]
["Variable","O&M Maintenance workers",1.6336481927761004E-5,null,null,null,null,null,null,null,null,null,null,null,null,null,null,null,null,null,null,null,null,null,null,null,null,null,null,null,{"$f":"pv_country","v":"Philippines"},null,null,null,null,null,null,null,null,"Real Fixed O&M",null,{"$f":"AP120*AD107","v":1350217.7696755973}]
[null,null,null,null,null,null,null,null,null,null,null,null,null,null,null,null,null,null,null,null,null,null,null,null,null,null,null,null,null,null,{"$f":"IF(LEFT(pv_country,6)=\"Custom\",\"Other\",pv_country)","v":"Philippines"},"Colombia","Mexico","Philippines","South Africa","Zambia","Other","Index"]
[null,{"$f":"IF(LEFT(biopower_country,6)=\"Custom\",\"Other\",biopower_country)","v":"South Africa"},null,null,null,null,null,null,null,null,null,null,null,null,null,null,null,null,null,null,null,null,null,null,null,null,null,null,null,"Services",{"$f":"HLOOKUP($AE$122,$AF$122:$AK$124,AL123,FALSE)","v":0.9},0.9,0.9,0.9,0.9,0.9,0.9,2,null,"Maintenance and repair services",0.4,{"$f":"$AP$121*AO123","v":540087.10787023895}]
[null,"Costs","Colombia","Mexico","South Africa","Zambia","Philippines","Bangladesh","Other","% Farmer","% Wholesaler",null,null,null,null,null,null,null,null,null,null,null,null,null,null,null,null,null,null,"Parts",{"$f":"HLOOKUP($AE$122,$AF$122:$AK$124,AL124,FALSE)","v":0},0,0,0,0,0,0,3,null,"Repair parts",0.6,{"$f":"$AP$121*AO124","v":810130.66180535837}]
[null,"Maize Stover",10.518518518518517,{"$f":"C125","v":10.518518518518517},{"$f":"D125","v":10.518518518518517},10.518518518518517,10.518518518518517,10.518518518518517,10.518518518518517,0.5,0.5]
[null,"Forest Residues",11.5,{"$f":"C126","v":11.5},11.5,11.5,11.5,11.5,11.5,0.1,0.9]
[null,"Switchgrass",11,11,11,11,11,11,11,0.5,0.5]
[null,"Selected"]
[null,"Maize Stover",{"$f":"HLOOKUP($B$123,'Default-Data'!$C$124:$I$127,'Default-Data'!A131,FALSE)","v":10.518518518518517},null,null,null,null,null,null,null,13.5,"GJ/US Ton"]
[null,"Forest Residues",{"$f":"HLOOKUP($B$123,'Default-Data'!$C$124:$I$127,'Default-Data'!A132,FALSE)","v":11.5},null,null,null,null,null,null,null,{"$f":"K129/0.907185","v":14.881198432513765},"GJ/metric tonne",null,"$3.1/GJ"]
[2,"Switchgrass",{"$f":"HLOOKUP($B$123,'Default-Data'!$C$124:$I$127,'Default-Data'!A133,FALSE)","v":11},"Farmer","Wholesaler",null,null,null,null,null,"1/0.907185"]
[3,{"$f":"\"Selected (\"&'Biopower-Inputs'!B34&\")\"","v":"Selected (Forest Residues)"},{"$f":"VLOOKUP('Biopower-Inputs'!B34,'Default-Data'!$B$129:$C$131,2,FALSE)","v":11.5},0.5,0.5]
[4,"Transport",null,{"$f":"D132+E132","v":1},null,null,null,null,null,null,{"$f":"K130*C125","v":156.52816129014477}]
[]
[]
[]
[null,"Wind Defaults","Country","Proxy"]
[null,"Default total",{"$f":"wind_country","v":"Colombia"},{"$f":"IF(LEFT(wind_country,6)=\"Custom\",\"Other\",wind_country)","v":"Colombia"}]
[]
[null,"Wind Plant Construction",null,{"$f":"wind_dollar_year","v":2023},"<- dollar year of scenario",null,null,null,"Vestas/Johannesburg"]
[null,"Equipment","Cost Distribution",null,{"$f":"wind_country_proxy","v":"Colombia"},"Colombia","Mexico","Philippines","South Africa","Zambia","Bangladesh","Other","Index"]
[null,"Turbine",0.59819939979993331,{"$f":"$C$146*C142","v":216249083.0276759},{"$f":"HLOOKUP(wind_country_proxy,$F$141:$L$145,M142,FALSE)","v":0},0,0.5,0,0.75,0,0,0,2]
[null,"Blades",0.14004668222740912,{"$f":"$C$146*C143","v":50626875.6252084},{"$f":"HLOOKUP(wind_country_proxy,$F$141:$L$145,M143,FALSE)","v":0},0,0.5,0,0.75,0,0,0,3]
[null,"Tower",0.15505168389463148,56051183.727909282,{"$f":"HLOOKUP(wind_country_proxy,$F$141:$L$145,M144,FALSE)","v":0.1},0.1,0.5,0.1,0.75,0.1,0.1,0.1,4]
[null,"Equipment Shipping/Transportation",0.10670223407802601,38572857.619206399,{"$f":"HLOOKUP(wind_country_proxy,$F$141:$L$145,M145,FALSE)","v":0.5},0.5,0.5,0.5,0.5,0.5,0.5,0.5,5]
[null,"Equipment Subtotal",{"$f":"F178+F179+F180","v":361500000},{"$f":"SUM(D142:D145)","v":361500000},null,null,null,null,null,null,null,null,6]
[null,null,null,null,null,null,null,null,null,null,null,null,7]
[null,"Construction",null,null,null,null,null,null,null,null,null,null,8]
[null,"Electrical Balance of Plant",null,{"$f":"F183","v":90375000},{"$f":"IF(ISNA(HLOOKUP(wind_country,$F$141:$K$157,M149,FALSE)),L149,HLOOKUP(wind_country,$F$141:$K$157,M149,FALSE))","v":0.15},0.15,0.25,0.15,0.25,0.15,0.15,0.15,9]
[null,"Construction (Excluding Site Improvements)",null,{"$f":"F184+F186+F181+F185","v":138575000},{"$f":"IF(ISNA(HLOOKUP(wind_country,$F$141:$K$157,M150,FALSE)),L150,HLOOKUP(wind_country,$F$141:$K$157,M150,FALSE))","v":0.9},0.9,0.9,0.9,0.9,0.9,0.9,0.9,10]
[null,"Subtotal",null,null,null,null,null,null,null,null,null,null,11]
[null,null,null,null,null,null,null,null,null,null,null,null,12]
[null,"Other",null,null,null,null,null,null,null,null,null,null,13]
[null,"Engineering and Other Professional Services (i.e., Project Design)",null,{"$f":"F182","v":12050000},{"$f":"IF(ISNA(HLOOKUP(wind_country,$F$141:$K$157,M154,FALSE)),L154,HLOOKUP(wind_country,$F$141:$K$157,M154,FALSE))","v":0.5},0.5,0.75,0.75,0.75,0.5,0.5,0.5,14]
[null,null,null,null,null,null,null,null,null,null,null,null,15]
[null,"Other Transportation (Not of Equipment)",0,0,{"$f":"IF(ISNA(HLOOKUP(wind_country,$F$141:$K$157,M156,FALSE)),L156,HLOOKUP(wind_country,$F$141:$K$157,M156,FALSE))","v":0.75},0.75,0.75,0.75,0.75,0.75,0.75,0.75,16,"Note: This can be highly variable, which is why the default is $1"]
[null,"Site Improvement (i.e., Road Construction)",0,0,{"$f":"IF(ISNA(HLOOKUP(wind_country,$F$141:$K$157,M157,FALSE)),L157,HLOOKUP(wind_country,$F$141:$K$157,M157,FALSE))","v":0.9},0.9,0.9,0.9,0.9,0.9,0.9,0.9,17,"Note: This can be highly variable, which is why the default is $0"]
[null,"Subtotal"]
[]
[null,"Construction Total"]
[]
[null,"Dollar year of default O&M data: "]
[null,"Operations and Maintenance (O&M)",null,"Expenditure",{"$f":"wind_country_proxy","v":"Colombia"},"Colombia","Mexico","Philippines","South Africa","Zambia","Bangladesh","Other","Index"]
[null,"Plant operations (staff, equiment such as trucks)",null,{"$f":"HLOOKUP(wind_country,$E$168:$O$169,R169,FALSE)","v":4212357.8128528195},{"$f":"HLOOKUP(wind_country_proxy,$F$163:$L$165,M164,FALSE)","v":0.5},0.5,0.75,0.5,0.75,0.5,null,{"$f":"AVERAGE(F164:J164)","v":0.6},2]
[null,"Replacement Parts",null,{"$f":"0.08*D146","v":28920000},{"$f":"HLOOKUP(wind_country_proxy,$F$163:$L$165,M165,FALSE)","v":0},0,0.5,0,0.75,0,null,{"$f":"AVERAGE(F165:J165)","v":0.25},3]
[null,"Civil Works (Access Roads, etc.)",null,null,{"$f":"HLOOKUP(wind_country_proxy,$F$163:$L$166,M166,FALSE)","v":0.9},{"$f":"F150","v":0.9},{"$f":"G150","v":0.9},0.9,0.9,0.9,null,0.9,4]
[null,"O&M Total",null,null,"Output (Below)"]
[null,null,"Jobs/MW","Jobs","Colombia","Mexico","Philippines","South Africa","Zambia","Bangladesh","CustomRegion1","CustomRegion2","CustomRegion3","CustomRegion4","CustomRegion5",null,null,"Index"]
[null,"Default",{"$f":"6/100","v":0.06},{"$f":"C169*wind_capacity","v":30},{"$f":"D169*'Colombia-IO-Data'!AP31*(wind_dollar_yr/$F$19)/('Colombia-IO-Data'!AN31*'Colombia-IO-Data'!AO31)","v":4212357.8128528195},{"$f":"(wind_dollar_index/$F$19)*D169*'Mexico-IO-Data'!AS31/'Mexico-IO-Data'!AR31","v":6465099.5681820335},{"$f":"(wind_dollar_index/$F$19)*D169*'Philippines-IO-Data'!AP31/'Philippines-IO-Data'!AO31","v":1196274.5926319219},{"$f":"(wind_dollar_index/$F$19)*D169*'SouthAfrica-IO-Data'!AT31/'SouthAfrica-IO-Data'!AS31","v":5811339.8221623879},{"$f":"(wind_dollar_index/$F$19)*D169*'Zambia-IO-Data'!BP30/'Zambia-IO-Data'!BO30","v":83256.56100119678},null,{"$f":"(wind_dollar_index/$F$19)*D169*CustomRegion1!E27/CustomRegion1!D27","v":1191296.7275175548},{"$f":"(wind_dollar_index/$F$19)*D169*CustomRegion2!E27/CustomRegion2!D27","v":2148926.7348990412},{"$f":"(wind_dollar_index/$F$19)*D169*CustomRegion3!F31/CustomRegion3!E31","v":1675065.0789110411},null,null,null,null,2]
[null,null,"Source: Industry conversations",null,"These values are looked up in cell D164"]
[]
[null,"CapEx"]
[null,null,{"$f":"wind_country","v":"Colombia"},"Colombia","Mexico","Philippines","South Africa","Zambia","Bangladesh","Other","USA"]
[null,"Capex ($millions 2015 / MW)",{"$f":"HLOOKUP(wind_country_proxy,$D$173:$K$174,2,FALSE)","v":0.97451392198860942},0.97451392198860942,1.2656550107154967,1.2292623746246358,1.29800402057404,1.0861955888070365,0,1.1918588319756953,1.3546147878264903]
[null,null,"Source: Bloomberg New Energy Finance; Zambia is estimated"]
[]
[null,"Price Distribution",null,2015,"$/kW","2015 Deflator",{"$f":"wind_dollar_yr/F20","v":1.2365138894486565}]
[null,"Rotor",0.15,{"$f":"$D$187*C178","v":73088544.149145707},{"$f":"D178/(wind_capacity*1000)","v":146.17708829829141},{"$f":"D178*$G$177","v":90375000}]
[null,"Drivetrain/nacelle",0.33,{"$f":"$D$187*C179","v":160794797.12812057},321.58959425624113,{"$f":"D179*$G$177","v":198825000.00000003}]
[null,"Tower",0.12,58470835.319316566,116.94167063863313,72300000]
[null,"Development",0.03,14617708.829829141,29.235417659658282,18075000]
[null,"Engineering",0.02,9745139.2198860943,19.49027843977219,12050000]
[null,"Electrical",0.15,73088544.149145707,146.17708829829141,90375000]
[null,"Assembly/install",0.06,29235417.659658283,58.470835319316564,36150000]
[null,"Road/civil",0.08,38980556.879544377,77.961113759088761,48200000]
[null,"Foundation",0.06,29235417.659658283,58.470835319316564,36150000]
[null,"Total",{"$f":"SUM(C178:C186)","v":1},{"$f":"C174*wind_capacity*1000000","v":487256960.99430472},974.51392198860947]
[]
[]
[]
[]
[]
[]
[]
[]
[]
[]
[]
[null,"GEOTHERMAL"]
[null,"Country used",{"$f":"IF(LEFT('Geothermal-Inputs'!B4,6)=\"Custom\",\"Other\",'Geothermal-Inputs'!B4)","v":"Mexico"}]
[]
[]
[null,"Well cost calculator"]
[null,null,"http://os.is/gogn/unu-gtp-report/UNU-GTP-2013-11.pdf"]
[null,null,"https://pangea.stanford.edu/ERE/db/WGC/papers/WGC/2015/21026.pdf",null,null,null,null,null,null,null,null,null,2015]
[null,"Hole diameter (in.)","Max depth (m)","Bit cost (USD)","# bits","Bit cost w/ stabilizers","Drilling mud tons","Drilling mud cost per ton","Drilling mud cost","Days for well + casing","Casing cost/m","Scaled multiplier","Petroleum products","bits","mud","Calculated casing costs"]
[null,26,60,30000,1,{"$f":"1.3*D207*E207","v":39000},7.2,800,{"$f":"G207*H207","v":5760},3,225,{"$f":"IF(C213>C207,1,C213/C207)","v":1},{"$f":"J207*$F$216*L207","v":15801.945762711865},{"$f":"F207*L207","v":39000},{"$f":"I207*L207","v":5760},{"$f":"IF(C213>=C207,60*K207,C213*K207)","v":13500}]
[null,17.5,300,25000,1,{"$f":"1.3*D208*E208","v":32500},7.4,800,{"$f":"G208*H208","v":5920},8,{"$f":"175*(298.5/322.5)+190*(24/322.5)","v":176.11627906976744},{"$f":"IF(C213>C208,1,IF(AND(C213>C207,C213<=C208),(C213-C207)/240,0))","v":1},{"$f":"J208*$F$216*L208","v":42138.522033898305},{"$f":"F208*L208","v":32500},{"$f":"I208*L208","v":5920},{"$f":"IF(AND(C213>C207,C213>C208),240*K208,IF(C213>C207,C213*K208,0))","v":42267.906976744183}]
[null,12.25,1200,15000,3,58500,0,800,0,15,145,{"$f":"IF(C213>C209,1,IF(AND(C213>C208,C213<=C209),(C213-C208)/900,0))","v":1},79009.728813559326,{"$f":"F209*L209","v":58500},{"$f":"I209*L209","v":0},{"$f":"IF(AND(C213>C208,C213>C209),900*K209,IF(C213>C208,C213*K209,0))","v":130500}]
[null,8.5,3000,8000,5,52000,0,800,0,26,{"$f":"170*(1826/1850)+110*(24/1850)","v":169.22162162162164},{"$f":"IF(C213>C209,(C213-C209)/1800,0)","v":1},136950.19661016949,{"$f":"F210*L210","v":52000},{"$f":"I210*L210","v":0},{"$f":"IF(C213>C209,K210*C213,0)","v":507664.86486486491}]
[null,"completion",null,null,null,null,null,null,null,3,null,"total",{"$f":"SUM(M207:M210)","v":273900.39322033897},{"$f":"SUM(N207:N210)","v":182000},{"$f":"SUM(O207:O210)","v":11680},{"$f":"SUM(P207:P210)","v":693932.77184160915}]
[null,null,null,null,null,null,null,null,"Drilling days",{"$f":"SUMPRODUCT(J207:J210,L207:L210)","v":52}]
[null,"User indicated depth",{"$f":"'Geothermal-Inputs'!B6","v":3000}]
[null,null,2015]
[null,"Petroleum use per well","L Diesel/day","Diesel cost/day","Oil cost/day","petrol cost / day","detergents/day (L)","detergent price/L","detergent cost"]
[null,null,5850,{"$f":"C220*C216","v":4446},{"$f":"C221*35068/55","v":821.31525423728829},{"$f":"D216+E216","v":5267.3152542372882},420,2.11,{"$f":"G216*H216*J212","v":46082.399999999994}]
[]
[null,null,{"$f":"'Geothermal-Inputs'!B4","v":"Mexico"},2015]
[null,null,{"$f":"C200","v":"Mexico"},"Colombia","Mexico","Philippines","South Africa","Zambia","Bangladesh","CustomRegion1","CustomRegion2","CustomRegion3",null,"USA","Index"]
[null,"Diesel $/L",{"$f":"HLOOKUP(geo_country,$D$219:$N$224,O220,FALSE)","v":0.76},0.64,0.76,0.56000000000000005,0.79,0.81,0.83,0.85,{"$f":"J220","v":0.85},{"$f":"K220","v":0.85},null,0.59,2,2015,"http://www.globalpetrolprices.com/diesel_prices/"]
[null,null,{"$f":"HLOOKUP(geo_country,$D$219:$N$224,O221,FALSE)","v":1.2881355932203391},{"$f":"D220/$N$220","v":1.0847457627118644},1.2881355932203391,0.94915254237288149,1.3389830508474578,1.3728813559322035,1.4067796610169492,1.4406779661016949,{"$f":"J221","v":1.4406779661016949},1.4406779661016949,null,{"$f":"N220/$N$220","v":1},3]
[null,"Cost /barrel oil $",{"$f":"HLOOKUP(geo_country,$D$219:$N$224,O222,FALSE)","v":29.1},35.299999999999997,29.1,29.9,31.6,35.4,27.8,30,30,30,null,36.200000000000003,4,2015,"http://marketrealist.com/2016/01/crude-oils-total-cost-production-impacts-major-oil-producers/"]
[null,"Drilling cost multiplier",{"$f":"HLOOKUP(geo_country,$D$219:$N$224,O223,FALSE)","v":0.80386740331491713},{"$f":"D222/$N$222","v":0.97513812154696122},0.80386740331491713,0.82596685082872923,0.8729281767955801,0.97790055248618768,0.7679558011049723,0.82872928176795568,{"$f":"K222/$N$222","v":0.82872928176795568},0.82872928176795568,null,null,5]
[null,"Professional services avg wage",{"$f":"HLOOKUP(geo_country,$D$219:$N$224,O224,FALSE)","v":45219.985666637687},{"$f":"'Colombia-IO-Data'!AP40","v":10487.331818181818},{"$f":"MAX('Mexico-IO-Data'!AS13:AS46)","v":45219.985666637687},{"$f":"'Philippines-IO-Data'!AP40","v":3965.4663234833888},{"$f":"MAX('SouthAfrica-IO-Data'!AT13:AT46)","v":27577.931034482757},{"$f":"MAX('Zambia-IO-Data'!BP11:BP37)","v":1139.1639334776073},null,{"$f":"IF('Geothermal-Inputs'!B4=\"CustomRegion1\",CustomRegion1!E36,0)","v":0},{"$f":"MAX(CustomRegion2!E13:E50)","v":45219.985666637687},null,null,81520,6,null,"http://bls.gov/oes","(US data)"]
[null,"Wage index",{"$f":"C224/$N$224","v":0.55471032466434844}]
[null,null,null,null,{"$f":"MIN(C223:L223)","v":0.7679558011049723},{"$f":"MAX(C223:L223)","v":0.97790055248618768}]
[null,null,"US Costs",null,"In-country costs",null,null,null,"Domestic Content"]
[null,null,"Daily","Total","Total per well","Total ($2015)","Total converted to user-specified dollar year",null,{"$f":"C200","v":"Mexico"},"Colombia","Mexico","Philippines","South Africa","Zambia","Bangladesh","Other"]
[null,"Site preparation",null,70000,{"$f":"D229*$C$223","v":56270.718232044201},{"$f":"$E$240*E229","v":112541.4364640884},{"$f":"F229*$G$61/$F$20","v":107763.81896194517},null,{"$f":"HLOOKUP($I$228,$J$228:$P$237,Q229,FALSE)","v":1},{"$f":"J230","v":0.9},{"$f":"K230","v":1},1,1,0.8,0.8,{"$f":"MIN(J229:O229)","v":0.8},2]
[null,"Rig operator and drilling services",{"$f":"(1893000+350+9500+8000+1250)/52","v":36771.153846153844},{"$f":"C230*J212+420000+300000","v":2632100},{"$f":"D230*$C$223","v":2115859.3922651932},{"$f":"$E$240*E230","v":4231718.7845303863},{"$f":"F230*$G$61/$F$20","v":4052073.5412819409},null,1,0.9,1,1,1,0.8,0.8,0.8,3]
[null,"Cement and cement additives",null,{"$f":"C213*(39674+3967)/3000","v":43641},{"$f":"D231*$C$223","v":35081.577348066297},70163.154696132595,67184.583190260702,null,0.9,0.9,0.9,0.9,0.9,0.9,0.9,0.9,4]
[null,"Petroleum",null,{"$f":"M211","v":273900.39322033897},220179.59786496861,440359.19572993723,421665.03412288858,null,1,0.7,1,0.2,0.05,0,0,{"$f":"MIN(J232:O232)","v":0},5]
[null,"Bits and stabilizers",null,{"$f":"N211","v":182000},146303.86740331491,292607.73480662983,280185.92930105742,null,0.9,0.9,0.9,0.5,0.9,0.9,0.5,{"$f":"MIN(J233:O233)","v":0.5},6]
[null,"Mud and Detergents",null,{"$f":"O211+I216","v":57762.399999999994},46433.310497237566,92866.620994475132,88924.240234392317,null,0.8,0.8,0.8,0.8,0.8,0.8,0.8,0.8,7]
[null,"Casing and wellhead",null,{"$f":"P211","v":693932.77184160915},557829.93537543714,1115659.8707508743,1068297.7942357138,null,0.8,0.8,0.8,0.8,0.8,0.8,0.8,0.8,8]
[null,"Worker housing",{"$f":"82030/52","v":1577.5},{"$f":"C236*J212","v":82030},65941.243093922647,131882.48618784529,126283.80099211945,null,1,1,1,1,1,1,1,1,9]
[null,"Professional services (engineers, geologists, supervisors, etc.)",null,{"$f":"475000","v":475000},{"$f":"D237*(I237)*C225+D237*(1-I237)","v":284638.66379400896},569277.32758801791,545110.32377759728,null,{"$f":"HLOOKUP($I$228,$J$228:$P$237,Q237,FALSE)","v":0.9},0.75,0.9,0.75,0.9,0.65,0.65,0.75,10]
[null,null,null,{"$f":"SUM(D229:D237)","v":4510366.5650619483},{"$f":"SUM(E229:E237)","v":3528538.3058741936},7057076.6117483871,6757489.0660979152]
[null,null,null,null,"per well"]
[null,null,null,"# wells:",{"$f":"'Geothermal-Inputs'!B9*'Geothermal-Inputs'!B8","v":2}]
[]
[null,"Drilling portion of total costs",0.45,"https://pangea.stanford.edu/ERE/db/WGC/papers/WGC/2015/21026.pdf"]
[null,null,null,"http://www.sciencedirect.com/science/article/pii/S0920410514000813"]
[null,null,null,null,null,null,"Domestic Content"]
[null,null,"$/kW","%",null,null,{"$f":"C200","v":"Mexico"},"Colombia","Mexico","Philippines","South Africa","Zambia","Bangladesh","Other"]
[null,"Engineering and design",null,0.16,{"$f":"D246*E253+(1-G246)*D246*E253","v":91459200},null,{"$f":"HLOOKUP($G$245,$H$245:$N$250,O246,FALSE)","v":0.6},0.6,0.6,0.6,0.6,0.6,0.6,0.6,2]
[null,"Mechanical equipment (turbines, generators, pumps, condensers, heat exchangers)",null,null,{"$f":"E253*'Default-Data'!D260","v":83953380.463945076},null,{"$f":"HLOOKUP($G$245,$H$245:$N$250,O247,FALSE)","v":0},0,0,0,0,0,0,0,3]
[null,"Permitting and environmental assessment",null,null,{"$f":"300000*G248*I237*C225+300000*(1-G248)","v":149771.78765937407},null,1,1,1,1,1,1,1,1,4]
[null,"Additional civil works (i.e., roads)",0,0,0,null,1,1,1,1,1,1,1,1,5]
[null,"Plant cost subtotal",null,null,{"$f":"SUM(E246:E249)","v":175562352.25160447},null,null,null,null,null,null,null,null,null,6]
[]
[]
[null,"Plant cost (US - only used to calculate imported mechanical equipment)",2722,null,{"$f":"C253*'Geothermal-Inputs'!B5*1000","v":408300000}]
[null,"Source: NREL Geothermal JEDI"]
[null,"Binary"]
[null,"Nominal Power (MW)",{"$f":"'Geothermal-Inputs'!B5","v":150}]
[null,"Input Flow (kg/s)",80,{"$f":"(0.0179*C257 - 0.0745)*D258","v":0.22670250000000697}]
[null,"Input Temp (degree C)",{"$f":"'Geothermal-Inputs'!B7","v":200},{"$f":"0.000000012575*C258^4 - 0.000010923*C258^3 + 0.0035388*C258^2- 0.50752*C258 + 27.383","v":0.16700000000000514}]
[null,"Input Depth (meters)",{"$f":"'Geothermal-Inputs'!B6","v":3000},{"$f":"(-0.0001*C259+ 1.20699)*D257","v":0.2056169004750063}]
[null,"Model Scalar Output",null,{"$f":"D259","v":0.2056169004750063}]
[null,"Pump Work (MW)",null,{"$f":"D260*C256","v":30.842535071250946}]
[null,"Gross power (MW)",{"$f":"D261+C256+C3","v":180.84253507125095}]
[]
[]
[null,"O&M"]
[]
[null,null,null,null,{"$f":"C200","v":"Mexico"},"South Africa","Colombia","Mexico","Philippines","South Africa","Zambia","Bangladesh","Other"]
[null,"Plant operations, excluding equipment and field operations",{"$f":"C277","v":395096.88011609885},null,1,1,1,1,1,1,1,1,1,2]
[null,"Civil works maintenance",0,null,{"$f":"G249","v":1}]
[null,"Equipment",{"$f":"0.02*E250","v":3511247.0450320896},null,{"$f":"G247","v":0}]
[null,"Field operations, including well equipment",{"$f":"0.045*G238","v":304087.00797440618},null,{"$f":"SUMPRODUCT(G229:G237,I229:I237)/G238","v":0.9525426549145577}]
[]
[null,"Site Labor",null,null,{"$f":"'Geothermal-Inputs'!B4","v":"Mexico"},"South Africa","Colombia","Mexico","Philippines","South Africa","Zambia","Bangladesh","CustomRegion1","CustomRegion2","CustomRegion3"]
[null,"operators, mechanics, electricians, general",{"$f":"$C$262^0.525","v":15.313794252344984},null,{"$f":"HLOOKUP(E273,F273:O274,2,FALSE)","v":18657.291387928039},{"$f":"'SouthAfrica-IO-Data'!AT31","v":27577.931034482757},{"$f":"'Colombia-IO-Data'!AP31","v":10487.331818181818},{"$f":"'Mexico-IO-Data'!AS31","v":18657.291387928039},{"$f":"'Philippines-IO-Data'!AP31","v":3965.4663234833888},{"$f":"'SouthAfrica-IO-Data'!AT31","v":27577.931034482757},{"$f":"'Zambia-IO-Data'!BP30","v":592.76185448308138},null,{"$f":"CustomRegion1!E27","v":3948.9654660753608},{"$f":"CustomRegion2!E27","v":6971.9406878051132},{"$f":"CustomRegion3!F31","v":590.37077558234773}]
[null,"managers and administrators",{"$f":"0.225*C262^0.65","v":6.5982368251487058},null,{"$f":"HLOOKUP(E273,F273:O275,3,FALSE)","v":0.10804520095234711},{"$f":"'SouthAfrica-IO-Data'!AS33","v":0.28199640521059166},{"$f":"'Colombia-IO-Data'!U47","v":9.3212007112226755E-2},{"$f":"'Mexico-IO-Data'!AR31","v":0.10804520095234711},{"$f":"'Philippines-IO-Data'!AO31","v":0.12410677549101107},{"$f":"'SouthAfrica-IO-Data'!AS31","v":0.17767139585518055},{"$f":"'Zambia-IO-Data'!BN30","v":1.319548238454352E-2},null,{"$f":"CustomRegion1!D27","v":0.12410677549101107},{"$f":"CustomRegion2!D27","v":0.12146864301448963},{"$f":"CustomRegion3!E31","v":1.319548238454352E-2}]
[null,null,{"$f":"SUM(C274:C275)","v":21.91203107749369}]
[null,"staff payments - real",{"$f":"C276*E274*geo_dollar_index/F19","v":395096.88011609885}]

{"sheet":"Calculations","index":15,"n_rows":318,"n_cols":245,"rows_kept":318,"cut":false,"hidden":false,"merged":[]}
[null,null,null,1,2,3,4,5,6,7,8,9,10,11,12,13,14,15,16,17,18,19,20,21,22,23,24,25]
[null,null,null,null,null,null,null,null,null,null,null,null,null,null,null,null,null,null,null,null,null,null,null,null,null,null,null,null,null,1,null,"Colombia1","Colombia2","Colombia3","Colombia4","Colombia5","Colombia6","Colombia7","Colombia8","Colombia9","Colombia10","Colombia11","Colombia12","Colombia13","Colombia14","Colombia15","Colombia16","Colombia17","Colombia18","Colombia19","Colombia20","Colombia21","Colombia22","Colombia23","Colombia24","Colombia25",null,null,"Mexico1","Mexico2","Mexico3","Mexico4","Mexico5","Mexico6","Mexico7","Mexico8","Mexico9","Mexico10","Mexico11","Mexico12","Mexico13","Mexico14","Mexico15","Mexico16","Mexico17","Mexico18","Mexico19","Mexico20","Mexico21","Mexico22","Mexico23","Mexico24","Mexico25",null,null,"Philippines1","Philippines2","Philippines3","Philippines4","Philippines5","Philippines6","Philippines7","Philippines8","Philippines9","Philippines10","Philippines11","Philippines12","Philippines13","Philippines14","Philippines15","Philippines16","Philippines17","Philippines18","Philippines19","Philippines20","Philippines21","Philippines22","Philippines23","Philippines24","Philippines25",null,null,"South Africa1","South Africa2","South Africa3","South Africa4","South Africa5","South Africa6","South Africa7","South Africa8","South Africa9","South Africa10","South Africa11","South Africa12","South Africa13","South Africa14","South Africa15","South Africa16","South Africa17","South Africa18","South Africa19","South Africa20","South Africa21","South Africa22","South Africa23","South Africa24","South Africa25",null,null,"Zambia1","Zambia2","Zambia3","Zambia4","Zambia5","Zambia6","Zambia7","Zambia8","Zambia9","Zambia10","Zambia11","Zambia12","Zambia13","Zambia14","Zambia15","Zambia16","Zambia17","Zambia18","Zambia19","Zambia20","Zambia21","Zambia22","Zambia23","Zambia24","Zambia25",null,null,"CustomRegion11","Customregion12","CustomRegion13","CustomRegion14","CustomRegion15","CustomRegion16","CustomRegion17","CustomRegion18","CustomRegion19","CustomRegion110","CustomRegion111","CustomRegion112","CustomRegion113","CustomRegion114","CustomRegion115","CustomRegion116","CustomRegion117","CustomRegion118","CustomRegion119","CustomRegion120","CustomRegion121","CustomRegion122","CustomRegion123","CustomRegion124","CustomRegion125",null,null,"CustomRegion21","CustomRegion22","CustomRegion23","CustomRegion24","CustomRegion25","CustomRegion26","CustomRegion27","CustomRegion28","CustomRegion29","CustomRegion210","CustomRegion211","CustomRegion212","CustomRegion213","CustomRegion214","CustomRegion215","CustomRegion216","CustomRegion217","CustomRegion218","CustomRegion219","CustomRegion220","CustomRegion221","CustomRegion222","CustomRegion223","CustomRegion224","CustomRegion225",null,null,"CustomRegion31","CustomRegion32","CustomRegion33","CustomRegion34","CustomRegion35","CustomRegion36","CustomRegion37","CustomRegion38","CustomRegion39","CustomRegion310","CustomRegion311","CustomRegion312","CustomRegion313","CustomRegion314","CustomRegion315","CustomRegion316","CustomRegion317","CustomRegion318","CustomRegion319","CustomRegion320","CustomRegion321","CustomRegion322","CustomRegion323","CustomRegion324","CustomRegion325"]
[null,null,null,null,null,null,null,null,null,null,null,null,null,null,null,null,null,null,null,null,null,null,null,null,null,null,null,null,null,2,"Colombia",null,null,null,null,null,null,null,null,null,null,null,null,null,null,null,null,null,null,null,null,null,null,null,null,null,null,"Mexico",null,null,null,null,null,null,null,null,null,null,null,null,null,null,null,null,null,null,null,null,null,null,null,null,null,null,"Philippines",null,null,null,null,null,null,null,null,null,null,null,null,null,null,null,null,null,null,null,null,null,null,null,null,null,null,"South Africa",null,null,null,null,null,null,null,null,null,null,null,null,null,null,null,null,null,null,null,null,null,null,null,null,null,null,"Zambia",null,null,null,null,null,null,null,null,null,null,null,null,null,null,null,null,null,null,null,null,null,null,null,null,null,null,null,null,null,null,null,null,null,null,null,null,null,null,null,null,null,null,null,null,null,null,null,null,null,null,null,null,null,null,null,null,null,null,null,null,null,null,null,null,null,null,null,null,null,null,null,null,null,null,null,null,null,null,null,null,"CR3"]
[null,null,{"$f":"pv_country","v":"Philippines"},null,null,null,"Construction",null,null,null,null,null,null,null,null,null,null,"O&M",null,null,null,null,null,null,null,null,null,null,null,3,null,null,null,null,"Construction",null,null,null,null,null,null,null,null,null,null,"O&M",null,null,null,null,null,null,null,null,null,null,null,null,null,null,null,"Construction",null,null,null,null,null,null,null,null,null,null,"O&M",null,null,null,null,null,null,null,null,null,null,null,null,null,null,null,"Construction",null,null,null,null,null,null,null,null,null,null,"O&M",null,null,null,null,null,null,null,null,null,null,null,null,null,null,null,"Construction",null,null,null,null,null,null,null,null,null,null,"O&M",null,null,null,null,null,null,null,null,null,null,null,null,null,null,null,"Construction",null,null,null,null,null,null,null,null,null,null,"O&M",null,null,null,null,null,null,null,null,null,null,null,null,null,null,null,"Construction",null,null,null,null,null,null,null,null,null,null,"O&M",null,null,null,null,null,null,null,null,null,null,null,null,null,null,null,"Construction",null,null,null,null,null,null,null,null,null,null,"O&M",null,null,null,null,null,null,null,null,null,null,null,null,null,null,null,"Construction",null,null,null,null,null,null,null,null,null,null,"O&M"]
[null,null,"PV",null,null,null,"Output",null,"Value Added",null,null,"Earnings",null,null,"Jobs",null,null,"Output",null,"Value Added",null,null,"Earnings",null,null,"Jobs",null,null,null,4,"Photovoltaics",null,null,null,"Output",null,"Value Added",null,null,"Earnings",null,null,"Jobs",null,null,"Output",null,"Value Added",null,null,"Earnings",null,null,"Jobs",null,null,null,"Photovoltaics",null,null,null,"Output",null,"Value Added",null,null,"Earnings",null,null,"Jobs",null,null,"Output",null,"Value Added",null,null,"Earnings",null,null,"Jobs",null,null,null,"Photovoltaics",null,null,null,"Output",null,"Value Added",null,null,"Earnings",null,null,"Jobs",null,null,"Output",null,"Value Added",null,null,"Earnings",null,null,"Jobs",null,null,null,"Photovoltaics",null,null,null,"Output",null,"Value Added",null,null,"Earnings",null,null,"Jobs",null,null,"Output",null,"Value Added",null,null,"Earnings",null,null,"Jobs",null,null,null,"Photovoltaics",null,null,null,"Output",null,"Value Added",null,null,"Earnings",null,null,"Jobs",null,null,"Output",null,"Value Added",null,null,"Earnings",null,null,"Jobs",null,null,null,"Photovoltaics",null,null,null,"Output",null,"Value Added",null,null,"Earnings",null,null,"Jobs",null,null,"Output",null,"Value Added",null,null,"Earnings",null,null,"Jobs",null,null,null,"Photovoltaics",null,null,null,"Output",null,"Value Added",null,null,"Earnings",null,null,"Jobs",null,null,"Output",null,"Value Added",null,null,"Earnings",null,null,"Jobs",null,null,null,"Photovoltaics",null,null,null,"Output",null,"Value Added",null,null,"Earnings",null,null,"Jobs",null,null,"Output",null,"Value Added",null,null,"Earnings",null,null,"Jobs"]
[null,null,null,"Construction","O&M",null,"Indirect","Induced","Direct","Indirect","Induced","Direct","Indirect","Induced","Direct","Indirect","Induced","Indirect","Induced","Direct","Indirect","Induced","Direct","Indirect","Induced","Direct","Indirect","Induced",null,5,"Colombia","Construction","O&M",null,"Indirect","Induced","Direct","Indirect","Induced","Direct","Indirect","Induced","Direct","Indirect","Induced","Indirect","Induced","Direct","Indirect","Induced","Direct","Indirect","Induced","Direct","Indirect","Induced",null,"Mexico","Construction","O&M",null,"Indirect","Induced","Direct","Indirect","Induced","Direct","Indirect","Induced","Direct","Indirect","Induced","Indirect","Induced","Direct","Indirect","Induced","Direct","Indirect","Induced","Direct","Indirect","Induced",null,null,"Construction","O&M",null,"Indirect","Induced","Direct","Indirect","Induced","Direct","Indirect","Induced","Direct","Indirect","Induced","Indirect","Induced","Direct","Indirect","Induced","Direct","Indirect","Induced","Direct","Indirect","Induced",null,null,"Construction","O&M",null,"Indirect","Induced","Direct","Indirect","Induced","Direct","Indirect","Induced","Direct","Indirect","Induced","Indirect","Induced","Direct","Indirect","Induced","Direct","Indirect","Induced","Direct","Indirect","Induced",null,null,"Construction","O&M",null,"Indirect","Induced","Direct","Indirect","Induced","Direct","Indirect","Induced","Direct","Indirect","Induced","Indirect","Induced","Direct","Indirect","Induced","Direct","Indirect","Induced","Direct","Indirect","Induced",null,"CR1","Construction","O&M",null,"Indirect","Induced","Direct","Indirect","Induced","Direct","Indirect","Induced","Direct","Indirect","Induced","Indirect","Induced","Direct","Indirect","Induced","Direct","Indirect","Induced","Direct","Indirect","Induced",null,"CR2","Construction","O&M",null,"Indirect","Induced","Direct","Indirect","Induced","Direct","Indirect","Induced","Direct","Indirect","Induced","Indirect","Induced","Direct","Indirect","Induced","Direct","Indirect","Induced","Direct","Indirect","Induced",null,null,"Construction","O&M",null,"Indirect","Induced","Direct","Indirect","Induced","Direct","Indirect","Induced","Direct","Indirect","Induced","Indirect","Induced","Direct","Indirect","Induced","Direct","Indirect","Induced","Direct","Indirect","Induced"]
[null,49,"Agriculture",{"$f":"HLOOKUP(pv_country&D$1,$AF$2:$IK$255,$B7,FALSE)","v":0},0,null,{"$f":"HLOOKUP(pv_country&G$1,$AF$2:$IK$255,$B7,FALSE)","v":276283.26255971449},2455368.0542141087,0,194988.78962674932,1732892.686092111,0,56126.693223671762,498805.78451723326,0,31.646405458081595,{"$f":"HLOOKUP(pv_country&Q$1,$AF$2:$IK$255,$B7,FALSE)","v":281.24603811526981},2706.1383803259173,26112.633249685623,0,1909.8755474852378,18429.168325833423,0,549.74954793191182,5304.7576682303916,0,0.30997010682455106,2.9910280186412899,null,6,"TTL_C01T05: Agriculture, hunting, forestry and fishing",0,0,null,{"$f":"MMULT(L1_Colombia,AF7:AF40)-AF7:AF40","v":173674.16232138284},{"$f":"MMULT(l2_colombia,AF7:AF41)-AI7:AI41-AF7:AF41","v":1238991.1007622534},{"$f":"AF7*'Colombia-IO-Data'!AN13","v":0},{"$f":"AI7*'Colombia-IO-Data'!$AN13","v":120234.78372755654},{"$f":"AJ7*'Colombia-IO-Data'!$AN13","v":857754.68871903419},{"$f":"AK7*'Colombia-IO-Data'!$AO13","v":0},{"$f":"AL7*'Colombia-IO-Data'!$AO13","v":31742.906037876091},{"$f":"AM7*'Colombia-IO-Data'!$AO13","v":226453.82345637865},{"$f":"(AN7*'Default-Data'!$F$19/pv_dollar_index)/'Colombia-IO-Data'!$AP13","v":0},{"$f":"(AO7*'Default-Data'!$F$19/pv_dollar_index)/'Colombia-IO-Data'!$AP13","v":6.3649605947592063},{"$f":"(AP7*'Default-Data'!$F$19/pv_dollar_index)/'Colombia-IO-Data'!$AP13","v":45.407615204245793},{"$f":"MMULT(L1_Colombia,AG7:AG40)-AG7:AG40","v":3949.6305282653038},{"$f":"MMULT(l2_colombia,AG7:AG41)-AT7:AT41-AG7:AG41","v":11875.109657026387},{"$f":"'Colombia-IO-Data'!$AN13*Calculations!AG7","v":0},{"$f":"'Colombia-IO-Data'!$AN13*Calculations!AT7","v":2734.332879584967},{"$f":"'Colombia-IO-Data'!$AN13*Calculations!AU7","v":8221.1494344878392},{"$f":"AV7*'Colombia-IO-Data'!$AO13","v":0},{"$f":"AW7*'Colombia-IO-Data'!$AO13","v":721.8848737617692},{"$f":"AX7*'Colombia-IO-Data'!$AO13","v":2170.4465707162549},{"$f":"(AY7*'Default-Data'!$F$19/pv_dollar_index)/'Colombia-IO-Data'!$AP13","v":0},{"$f":"(AZ7*'Default-Data'!$F$19/pv_dollar_index)/'Colombia-IO-Data'!$AP13","v":0.1447494684312722},{"$f":"(BA7*'Default-Data'!$F$19/pv_dollar_index)/'Colombia-IO-Data'!$AP13","v":0.43520926783310854},null,"DOM_C01T05: Agriculture, hunting, forestry and fishing",{"$f":"AF7","v":0},{"$f":"AG7","v":0},null,{"$f":"MMULT(Mexico_L1,BG7:BG40)-BG7:BG40","v":75658.894015080077},{"$f":"MMULT(Mexico_L2,BG7:BG41)-BG7:BG41-BJ7:BJ41","v":764565.70505385322},{"$f":"BG7*'Mexico-IO-Data'!AQ13","v":0},{"$f":"BJ7*'Mexico-IO-Data'!$AQ13","v":46142.502556306681},{"$f":"BK7*'Mexico-IO-Data'!$AQ13","v":466289.8587029326},{"$f":"BG7*'Mexico-IO-Data'!AR13","v":0},{"$f":"BJ7*'Mexico-IO-Data'!$AR13","v":7601.2733225547972},{"$f":"BK7*'Mexico-IO-Data'!$AR13","v":76814.140264960661},{"$f":"(Calculations!BO7*'Default-Data'!$F$19/pv_dollar_index)/'Mexico-IO-Data'!$AS13","v":0},{"$f":"(Calculations!BP7*'Default-Data'!$F$19/pv_dollar_index)/'Mexico-IO-Data'!$AS13","v":7.0962525257269879},{"$f":"(Calculations!BQ7*'Default-Data'!$F$19/pv_dollar_index)/'Mexico-IO-Data'!$AS13","v":71.710687635629952},{"$f":"MMULT(Mexico_L1,BH7:BH40)-BH7:BH40","v":1894.0918412314702},{"$f":"MMULT(Mexico_L2,BH7:BH41)-BH7:BH41-BU7:BU41","v":10991.588542297475},{"$f":"BH7*'Mexico-IO-Data'!AQ13","v":0},{"$f":"BU7*'Mexico-IO-Data'!$AQ13","v":1155.1601270893921},{"$f":"BV7*'Mexico-IO-Data'!$AQ13","v":6703.5000843356656},{"$f":"BH7*'Mexico-IO-Data'!AR13","v":0},{"$f":"BU7*'Mexico-IO-Data'!$AR13","v":190.2950072248189},{"$f":"BV7*'Mexico-IO-Data'!$AR13","v":1104.299366871684},{"$f":"(BZ7*'Default-Data'!$F$19/pv_dollar_index)/'Mexico-IO-Data'!$AS13","v":0},{"$f":"(CA7*'Default-Data'!$F$19/pv_dollar_index)/'Mexico-IO-Data'!$AS13","v":0.17765200228301903},{"$f":"(CB7*'Default-Data'!$F$19/pv_dollar_index)/'Mexico-IO-Data'!$AS13","v":1.0309308505023052},null,"TTL_C01T05: Agriculture, hunting, forestry and fishing",{"$f":"AF7","v":0},{"$f":"AG7","v":0},null,{"$f":"MMULT(Philippines_L1,CH7:CH40)-CH7:CH40","v":276283.26255971449},{"$f":"MMULT(Philippines_L2,CH7:CH41)-CK7:CK41-CH7:CH41","v":2455368.0542141087},{"$f":"CH7*'Philippines-IO-Data'!AN13","v":0},{"$f":"'Philippines-IO-Data'!$AN13*Calculations!CK7","v":194988.78962674932},{"$f":"'Philippines-IO-Data'!$AN13*Calculations!CL7","v":1732892.686092111},{"$f":"CH7*'Philippines-IO-Data'!AO13","v":0},{"$f":"'Philippines-IO-Data'!$AO13*Calculations!CK7","v":56126.693223671762},{"$f":"'Philippines-IO-Data'!$AO13*Calculations!CL7","v":498805.78451723326},{"$f":"(CP7*'Default-Data'!$F$19/pv_dollar_index)/'Philippines-IO-Data'!$AP13","v":0},{"$f":"(CQ7*'Default-Data'!$F$19/pv_dollar_index)/'Philippines-IO-Data'!$AP13","v":31.646405458081595},{"$f":"(CR7*'Default-Data'!$F$19/pv_dollar_index)/'Philippines-IO-Data'!$AP13","v":281.24603811526981},{"$f":"MMULT(Philippines_L1,CI7:CI40)-CI7:CI40","v":2706.1383803259173},{"$f":"MMULT(Philippines_L2,CI7:CI41)-CV7:CV41-CI7:CI41","v":26112.633249685623},{"$f":"CI7*'Philippines-IO-Data'!AN13","v":0},{"$f":"'Philippines-IO-Data'!$AN13*Calculations!CV7","v":1909.8755474852378},{"$f":"'Philippines-IO-Data'!$AN13*Calculations!CW7","v":18429.168325833423},{"$f":"'Philippines-IO-Data'!AO13*Calculations!CI7","v":0},{"$f":"'Philippines-IO-Data'!$AO13*Calculations!CV7","v":549.74954793191182},{"$f":"'Philippines-IO-Data'!$AO13*Calculations!CW7","v":5304.7576682303916},{"$f":"(DA7*'Default-Data'!$F$19/pv_dollar_index)/'Philippines-IO-Data'!$AP13","v":0},{"$f":"(DB7*'Default-Data'!$F$19/pv_dollar_index)/'Philippines-IO-Data'!$AP13","v":0.30997010682455106},{"$f":"(DC7*'Default-Data'!$F$19/pv_dollar_index)/'Philippines-IO-Data'!$AP13","v":2.9910280186412899},null,"DOM_C01T05: Agriculture, hunting, forestry and fishing",{"$f":"AF7","v":0},{"$f":"AG7","v":0},null,{"$f":"MMULT(SouthAfrica_L1,DI7:DI40)-DI7:DI40","v":294931.05782310892},{"$f":"MMULT(SouthAfrica_L2,DI7:DI41)-DI7:DI41-DL7:DL41","v":1499394.4446934033},{"$f":"DI7*'SouthAfrica-IO-Data'!AR13","v":0},{"$f":"DL7*'SouthAfrica-IO-Data'!$AR13","v":119107.57536682169},{"$f":"DM7*'SouthAfrica-IO-Data'!$AR13","v":605528.75693758205},{"$f":"DI7*'SouthAfrica-IO-Data'!AS13","v":0},{"$f":"DL7*'SouthAfrica-IO-Data'!$AS13","v":36537.305373711257},{"$f":"DM7*'SouthAfrica-IO-Data'!$AS13","v":185751.31797162862},{"$f":"(DQ7*'Default-Data'!$F$19/pv_dollar_index)/'SouthAfrica-IO-Data'!$AT13","v":0},{"$f":"(DR7*'Default-Data'!$F$19/pv_dollar_index)/'SouthAfrica-IO-Data'!$AT13","v":2.4918123241334547},{"$f":"(DS7*'Default-Data'!$F$19/pv_dollar_index)/'SouthAfrica-IO-Data'!$AT13","v":12.668077697890775},{"$f":"MMULT(SouthAfrica_L1,DJ7:DJ40)-DJ7:DJ40","v":3431.3289207217754},{"$f":"MMULT(SouthAfrica_L2,DJ7:DJ41)-DJ7:DJ41-DW7:DW41","v":15805.048556239428},{"$f":"DJ7*'SouthAfrica-IO-Data'!AR13","v":0},{"$f":"DW7*'SouthAfrica-IO-Data'!$AR13","v":1385.7383181338214},{"$f":"DX7*'SouthAfrica-IO-Data'!$AR13","v":6382.8510499481999},{"$f":"DJ7*'SouthAfrica-IO-Data'!AS13","v":0},{"$f":"DW7*'SouthAfrica-IO-Data'!$AS13","v":425.08752228208118},{"$f":"DX7*'SouthAfrica-IO-Data'!$AS13","v":1957.9961832707572},{"$f":"(EB7*'Default-Data'!$F$19/pv_dollar_index)/'SouthAfrica-IO-Data'!$AT13","v":0},{"$f":"(EC7*'Default-Data'!$F$19/pv_dollar_index)/'SouthAfrica-IO-Data'!$AT13","v":2.8990597856731134E-2},{"$f":"(ED7*'Default-Data'!$F$19/pv_dollar_index)/'SouthAfrica-IO-Data'!$AT13","v":0.13353363008512309},null,"MAIZE",0,0,null,{"$f":"MMULT(Zambia_L1,EJ7:EJ33)-EJ7:EJ33","v":478.22920695748235},{"$f":"MMULT(Zambia_L2,EJ7:EJ48)-EM7:EM48-EJ7:EJ48","v":447198.61427985795},{"$f":"EJ7*'Zambia-IO-Data'!BO11","v":0},{"$f":"EM7*'Zambia-IO-Data'!$BO11","v":188.82330120422424},{"$f":"EN7*'Zambia-IO-Data'!$BO11","v":176571.22863636538},{"$f":"EJ7*'Zambia-IO-Data'!$BN11","v":0},{"$f":"EM7*'Zambia-IO-Data'!$BN11","v":150.03134802993807},{"$f":"EN7*'Zambia-IO-Data'!$BN11","v":140296.34736109388},{"$f":"(ER7*'Default-Data'!$F$19/pv_dollar_index)/'Zambia-IO-Data'!$BP11","v":0},{"$f":"(ES7*'Default-Data'!$F$19/pv_dollar_index)/'Zambia-IO-Data'!$BP11","v":1.4201124340655684},{"$f":"(ET7*'Default-Data'!$F$19/pv_dollar_index)/'Zambia-IO-Data'!$BP11","v":1327.9663880758758},{"$f":"MMULT(Zambia_L1,EK7:EK33)-EK7:EK33","v":5.514967999328463},{"$f":"MMULT(Zambia_L2,EK7:EK48)-EX7:EX48-EK7:EK48","v":3828.8403986984845},{"$f":"EK7*'Zambia-IO-Data'!BO11","v":0},{"$f":"EX7*'Zambia-IO-Data'!$BO11","v":2.1775216747927306},{"$f":"EY7*'Zambia-IO-Data'!$BO11","v":1511.7735875354492},{"$f":"EK7*'Zambia-IO-Data'!BN11","v":0},{"$f":"EX7*'Zambia-IO-Data'!$BN11","v":1.7301705358928081},{"$f":"EY7*'Zambia-IO-Data'!$BN11","v":1201.1940677209434},{"$f":"(FC7*'Default-Data'!$F$19/pv_dollar_index)/'Zambia-IO-Data'!$BP11","v":0},{"$f":"(FD7*'Default-Data'!$F$19/pv_dollar_index)/'Zambia-IO-Data'!$BP11","v":1.6376822066445567E-2},{"$f":"(FE7*'Default-Data'!$F$19/pv_dollar_index)/'Zambia-IO-Data'!$BP11","v":11.369828063905146},null,"TTL_C01T05: Agriculture, hunting, forestry and fishing",{"$f":"AF7","v":0},{"$f":"CI7","v":0},null,{"$f":"MMULT(CustomRegion1_L1,FK7:FK40)-FK7:FK40","v":537344.35782271449},{"$f":"MMULT(CustomRegion1_L2,FK7:FK41)-FN7:FN41-FK7:FK41","v":3261970.0932106487},{"$f":"FK7*CustomRegion1!C9","v":0},{"$f":"FN7*CustomRegion1!$C9","v":379234.43126406614},{"$f":"FO7*CustomRegion1!$C9","v":2302157.5551878638},{"$f":"FK7*CustomRegion1!D9","v":0},{"$f":"FN7*CustomRegion1!$D9","v":109161.0170213185},{"$f":"FO7*CustomRegion1!$D9","v":662666.25430071168},{"$f":"(FS7*'Default-Data'!$C$58/pv_dollar_index)/CustomRegion1!$E9","v":0},{"$f":"(FT7*'Default-Data'!$C$58/pv_dollar_index)/CustomRegion1!$E9","v":61.806398181315672},{"$f":"(FU7*'Default-Data'!$C$58/pv_dollar_index)/CustomRegion1!$E9","v":375.1981750649328},{"$f":"MMULT(CustomRegion1_L1,FL7:FL40)-FL7:FL40","v":6235.9841173236609},{"$f":"MMULT(CustomRegion1_L2,FL7:FL41)-FY7:FY41-FL7:FL41","v":34927.00726245984},{"$f":"FL7*CustomRegion1!C9","v":0},{"$f":"FY7*CustomRegion1!$C9","v":4401.0881582295078},{"$f":"FZ7*CustomRegion1!$C9","v":24649.972670421055},{"$f":"FL7*CustomRegion1!D9","v":0},{"$f":"FY7*CustomRegion1!$D9","v":1266.8344953580613},{"$f":"FZ7*CustomRegion1!$D9","v":7095.3897231372875},{"$f":"(GD7*'Default-Data'!$C$58/pv_dollar_index)/CustomRegion1!$E9","v":0},{"$f":"(GE7*'Default-Data'!$C$58/pv_dollar_index)/CustomRegion1!$E9","v":0.71727508030302789},{"$f":"(GF7*'Default-Data'!$C$58/pv_dollar_index)/CustomRegion1!$E9","v":4.0173726339888711},null,"C01T05 Agriculture, hunting, forestry and fishing",0,0,null,{"$f":"MMULT(CustomRegion2_L1,GL7:GL43)-GL7:GL43","v":194878.97990369968},{"$f":"MMULT(CustomRegion2_L2,GL7:GL45)-GO7:GO45-GL7:GL45","v":1998824.2789393507},{"$f":"GL7*CustomRegion2!$C$13","v":0},{"$f":"GO7*CustomRegion2!C$13","v":120080.814352375},{"$f":"GP7*CustomRegion2!D$13","v":221183.19890552273},{"$f":"GL7*CustomRegion2!D13","v":0},{"$f":"GO7*CustomRegion2!$D13","v":21564.655096854192},{"$f":"GP7*CustomRegion2!$D13","v":221183.19890552273},{"$f":"(GT7*'Default-Data'!$C$59/pv_dollar_index)/CustomRegion2!$E13","v":0},{"$f":"(GU7*'Default-Data'!$C$59/pv_dollar_index)/CustomRegion2!$E13","v":20.131921548382099},{"$f":"(GV7*'Default-Data'!$C$59/pv_dollar_index)/CustomRegion2!$E13","v":206.48801421524931},{"$f":"MMULT(CustomRegion2_L1,GM7:GM43)-GM7:GM43","v":82577.266384938441},{"$f":"MMULT(CustomRegion2_L2,GM7:GM45)-GM7:GM45-GZ7:GZ45","v":558532.36366226547},{"$f":"GM7*CustomRegion2!C13","v":0},{"$f":"GZ7*CustomRegion2!$C13","v":50882.580560491529},{"$f":"HA7*CustomRegion2!$C13","v":344157.28727574495},{"$f":"GM7*CustomRegion2!D13","v":0},{"$f":"GZ7*CustomRegion2!$D13","v":9137.723675032652},{"$f":"HA7*CustomRegion2!$D13","v":61805.320351940289},{"$f":"(HE7*'Default-Data'!$C$59/pv_dollar_index)/CustomRegion2!$E13","v":0},{"$f":"(HF7*'Default-Data'!$C$59/pv_dollar_index)/CustomRegion2!$E13","v":8.5306226939556673},{"$f":"(HG7*'Default-Data'!$C$59/pv_dollar_index)/CustomRegion2!$E13","v":57.699038311046095},null,"MAIZE",{"$f":"EJ7","v":0},{"$f":"EK7","v":0},null,{"$f":"MMULT(CustomRegion3_L1,HM7:HM33)-HM7:HM33","v":478.22920695748235},{"$f":"MMULT(CustomRegion3_L2,HM7:HM48)-HM7:HM48-HP7:HP48","v":447198.61427985795},{"$f":"HM7*CustomRegion3!D12","v":0},{"$f":"HP7*CustomRegion3!$D12","v":188.82330120422424},{"$f":"HQ7*CustomRegion3!$D12","v":176571.22863636538},{"$f":"HM7*CustomRegion3!E12","v":0},{"$f":"HP7*CustomRegion3!$E12","v":150.03134802993807},{"$f":"HQ7*CustomRegion3!$E12","v":140296.34736109388},{"$f":"(HU7*'Default-Data'!$C$60/pv_dollar_index)/CustomRegion3!$F12","v":0},{"$f":"(HV7*'Default-Data'!$C$60/pv_dollar_index)/CustomRegion3!$F12","v":1.4258640752683607},{"$f":"(HW7*'Default-Data'!$C$60/pv_dollar_index)/CustomRegion3!$F12","v":1333.3448257335997},{"$f":"MMULT(CustomRegion3_L1,HN7:HN33)-HN7:HN33","v":5.514967999328463},{"$f":"MMULT(CustomRegion3_L2,HN7:HN48)-HN7:HN48-IA7:IA48","v":3828.8403986984845},{"$f":"HN7*CustomRegion3!D12","v":0},{"$f":"IA7*CustomRegion3!$D12","v":2.1775216747927306},{"$f":"IB7*CustomRegion3!$D12","v":1511.7735875354492},{"$f":"HN7*CustomRegion3!E12","v":0},{"$f":"IA7*CustomRegion3!$E12","v":1.7301705358928081},{"$f":"IB7*CustomRegion3!$E12","v":1201.1940677209434},{"$f":"(IF7*'Default-Data'!$C$60/pv_dollar_index)/CustomRegion3!$F12","v":0},{"$f":"(IG7*'Default-Data'!$C$60/pv_dollar_index)/CustomRegion3!$F12","v":1.64431503389884E-2},{"$f":"(IH7*'Default-Data'!$C$60/pv_dollar_index)/CustomRegion3!$F12","v":11.415877355491027}]
[null,50,"Mining and Extraction",0,0,null,688347.71450004319,137204.41272787086,0,396272.35214374406,78986.701358723003,0,103586.56422322906,20647.317353365208,0,31.494495863800267,6.277617718672329,12371.177003959414,1459.1574178267692,0,7121.9171748194794,840.01694191746958,0,1861.6866072815235,219.58248773048584,0,0.56602785884824236,6.6761937742114461E-2,null,7,"TTL_C10T14: Mining and quarrying",0,0,null,2268236.0984808644,312978.90967939887,{"$f":"AF8*'Colombia-IO-Data'!AN14","v":0},{"$f":"AI8*'Colombia-IO-Data'!$AN14","v":1857420.5551113184},{"$f":"AJ8*'Colombia-IO-Data'!$AN14","v":256293.18770836436},{"$f":"AK8*'Colombia-IO-Data'!$AO14","v":0},{"$f":"AL8*'Colombia-IO-Data'!$AO14","v":154059.48500729084},{"$f":"AM8*'Colombia-IO-Data'!$AO14","v":21257.650240045485},{"$f":"(AN8*'Default-Data'!$F$19/pv_dollar_index)/'Colombia-IO-Data'!$AP14","v":0},{"$f":"(AO8*'Default-Data'!$F$19/pv_dollar_index)/'Colombia-IO-Data'!$AP14","v":14.417961801000542},{"$f":"(AP8*'Default-Data'!$F$19/pv_dollar_index)/'Colombia-IO-Data'!$AP14","v":1.989439268380659},43513.219618106144,2999.7462213351391,{"$f":"'Colombia-IO-Data'!$AN14*Calculations!AG8","v":0},{"$f":"'Colombia-IO-Data'!$AN14*Calculations!AT8","v":35632.246833508041},{"$f":"'Colombia-IO-Data'!$AN14*Calculations!AU8","v":2456.4419441860846},{"$f":"AV8*'Colombia-IO-Data'!$AO14","v":0},{"$f":"AW8*'Colombia-IO-Data'!$AO14","v":2955.4349346015097},{"$f":"AX8*'Colombia-IO-Data'!$AO14","v":203.74393931962061},{"$f":"(AY8*'Default-Data'!$F$19/pv_dollar_index)/'Colombia-IO-Data'!$AP14","v":0},{"$f":"(AZ8*'Default-Data'!$F$19/pv_dollar_index)/'Colombia-IO-Data'!$AP14","v":0.2765902274073585},{"$f":"(BA8*'Default-Data'!$F$19/pv_dollar_index)/'Colombia-IO-Data'!$AP14","v":1.9067779787506383E-2},null,"DOM_C10T14: Mining and quarrying",{"$f":"AF8","v":0},{"$f":"AG8","v":0},null,2409278.7583276574,422268.41652345378,{"$f":"BG8*'Mexico-IO-Data'!AQ14","v":0},{"$f":"BJ8*'Mexico-IO-Data'!$AQ14","v":2074213.968427924},{"$f":"BK8*'Mexico-IO-Data'!$AQ14","v":363542.42735566897},{"$f":"BG8*'Mexico-IO-Data'!AR14","v":0},{"$f":"BJ8*'Mexico-IO-Data'!$AR14","v":128729.6371308052},{"$f":"BK8*'Mexico-IO-Data'!$AR14","v":22562.129783850967},{"$f":"(Calculations!BO8*'Default-Data'!$F$19/pv_dollar_index)/'Mexico-IO-Data'!$AS14","v":0},{"$f":"(Calculations!BP8*'Default-Data'!$F$19/pv_dollar_index)/'Mexico-IO-Data'!$AS14","v":6.5796910120672871},{"$f":"(Calculations!BQ8*'Default-Data'!$F$19/pv_dollar_index)/'Mexico-IO-Data'!$AS14","v":1.1532064088789007},33086.420103619341,6070.636778700893,{"$f":"BH8*'Mexico-IO-Data'!AQ14","v":0},{"$f":"BU8*'Mexico-IO-Data'!$AQ14","v":28485.003865571125},{"$f":"BV8*'Mexico-IO-Data'!$AQ14","v":5226.377213558294},{"$f":"BH8*'Mexico-IO-Data'!AR14","v":0},{"$f":"BU8*'Mexico-IO-Data'!$AR14","v":1767.833148893372},{"$f":"BV8*'Mexico-IO-Data'!$AR14","v":324.35884265111991},{"$f":"(BZ8*'Default-Data'!$F$19/pv_dollar_index)/'Mexico-IO-Data'!$AS14","v":0},{"$f":"(CA8*'Default-Data'!$F$19/pv_dollar_index)/'Mexico-IO-Data'!$AS14","v":9.0358336587160498E-2},{"$f":"(CB8*'Default-Data'!$F$19/pv_dollar_index)/'Mexico-IO-Data'!$AS14","v":1.6578784880031394E-2},null,"TTL_C10T14: Mining and quarrying",{"$f":"AF8","v":0},{"$f":"AG8","v":0},null,688347.71450004319,137204.41272787086,{"$f":"CH8*'Philippines-IO-Data'!AN14","v":0},{"$f":"'Philippines-IO-Data'!$AN14*Calculations!CK8","v":396272.35214374406},{"$f":"'Philippines-IO-Data'!$AN14*Calculations!CL8","v":78986.701358723003},{"$f":"CH8*'Philippines-IO-Data'!AO14","v":0},{"$f":"'Philippines-IO-Data'!$AO14*Calculations!CK8","v":103586.56422322906},{"$f":"'Philippines-IO-Data'!$AO14*Calculations!CL8","v":20647.317353365208},{"$f":"(CP8*'Default-Data'!$F$19/pv_dollar_index)/'Philippines-IO-Data'!$AP14","v":0},{"$f":"(CQ8*'Default-Data'!$F$19/pv_dollar_index)/'Philippines-IO-Data'!$AP14","v":31.494495863800267},{"$f":"(CR8*'Default-Data'!$F$19/pv_dollar_index)/'Philippines-IO-Data'!$AP14","v":6.277617718672329},12371.177003959414,1459.1574178267692,{"$f":"CI8*'Philippines-IO-Data'!AN14","v":0},{"$f":"'Philippines-IO-Data'!$AN14*Calculations!CV8","v":7121.9171748194794},{"$f":"'Philippines-IO-Data'!$AN14*Calculations!CW8","v":840.01694191746958},{"$f":"'Philippines-IO-Data'!AO14*Calculations!CI8","v":0},{"$f":"'Philippines-IO-Data'!$AO14*Calculations!CV8","v":1861.6866072815235},{"$f":"'Philippines-IO-Data'!$AO14*Calculations!CW8","v":219.58248773048584},{"$f":"(DA8*'Default-Data'!$F$19/pv_dollar_index)/'Philippines-IO-Data'!$AP14","v":0},{"$f":"(DB8*'Default-Data'!$F$19/pv_dollar_index)/'Philippines-IO-Data'!$AP14","v":0.56602785884824236},{"$f":"(DC8*'Default-Data'!$F$19/pv_dollar_index)/'Philippines-IO-Data'!$AP14","v":6.6761937742114461E-2},null,"DOM_C10T14: Mining and quarrying",{"$f":"AF8","v":0},{"$f":"AG8","v":0},null,4524456.4470249843,792484.31701305788,{"$f":"DI8*'SouthAfrica-IO-Data'!AR14","v":0},{"$f":"DL8*'SouthAfrica-IO-Data'!$AR14","v":2694741.6493921434},{"$f":"DM8*'SouthAfrica-IO-Data'!$AR14","v":471999.34855144407},{"$f":"DI8*'SouthAfrica-IO-Data'!AS14","v":0},{"$f":"DL8*'SouthAfrica-IO-Data'!$AS14","v":913011.53754966939},{"$f":"DM8*'SouthAfrica-IO-Data'!$AS14","v":159919.17111631247},{"$f":"(DQ8*'Default-Data'!$F$19/pv_dollar_index)/'SouthAfrica-IO-Data'!$AT14","v":0},{"$f":"(DR8*'Default-Data'!$F$19/pv_dollar_index)/'SouthAfrica-IO-Data'!$AT14","v":56.773826819062748},{"$f":"(DS8*'Default-Data'!$F$19/pv_dollar_index)/'SouthAfrica-IO-Data'!$AT14","v":9.9442591386876753},38421.861564394385,8353.5410943921743,{"$f":"DJ8*'SouthAfrica-IO-Data'!AR14","v":0},{"$f":"DW8*'SouthAfrica-IO-Data'!$AR14","v":22883.851754796433},{"$f":"DX8*'SouthAfrica-IO-Data'!$AR14","v":4975.3236373330737},{"$f":"DJ8*'SouthAfrica-IO-Data'!AS14","v":0},{"$f":"DW8*'SouthAfrica-IO-Data'!$AS14","v":7753.3297785404784},{"$f":"DX8*'SouthAfrica-IO-Data'!$AS14","v":1685.7006997139586},{"$f":"(EB8*'Default-Data'!$F$19/pv_dollar_index)/'SouthAfrica-IO-Data'!$AT14","v":0},{"$f":"(EC8*'Default-Data'!$F$19/pv_dollar_index)/'SouthAfrica-IO-Data'!$AT14","v":0.48212556360383607},{"$f":"(ED8*'Default-Data'!$F$19/pv_dollar_index)/'SouthAfrica-IO-Data'!$AT14","v":0.10482198270043958},null,"DRSTAP",0,0,null,523.72172414028319,267711.47902752773,{"$f":"EJ8*'Zambia-IO-Data'!BO12","v":0},{"$f":"EM8*'Zambia-IO-Data'!$BO12","v":279.04376127974643},{"$f":"EN8*'Zambia-IO-Data'!$BO12","v":142639.14327448333},{"$f":"EJ8*'Zambia-IO-Data'!$BN12","v":0},{"$f":"EM8*'Zambia-IO-Data'!$BN12","v":253.012844855065},{"$f":"EN8*'Zambia-IO-Data'!$BN12","v":129332.88765193294},{"$f":"(ER8*'Default-Data'!$F$19/pv_dollar_index)/'Zambia-IO-Data'!$BP12","v":0},{"$f":"(ES8*'Default-Data'!$F$19/pv_dollar_index)/'Zambia-IO-Data'!$BP12","v":2.3948774151204875},{"$f":"(ET8*'Default-Data'!$F$19/pv_dollar_index)/'Zambia-IO-Data'!$BP12","v":1224.1924391125594},6.0827651887368406,2291.4525690775063,{"$f":"EK8*'Zambia-IO-Data'!BO12","v":0},{"$f":"EX8*'Zambia-IO-Data'!$BO12","v":3.2409533517688938},{"$f":"EY8*'Zambia-IO-Data'!$BO12","v":1220.9070469993576},{"$f":"EK8*'Zambia-IO-Data'!BN12","v":0},{"$f":"EX8*'Zambia-IO-Data'!$BN12","v":2.9386173115389536},{"$f":"EY8*'Zambia-IO-Data'!$BN12","v":1107.0133367189708},{"$f":"(FC8*'Default-Data'!$F$19/pv_dollar_index)/'Zambia-IO-Data'!$BP12","v":0},{"$f":"(FD8*'Default-Data'!$F$19/pv_dollar_index)/'Zambia-IO-Data'!$BP12","v":2.7815300188091783E-2},{"$f":"(FE8*'Default-Data'!$F$19/pv_dollar_index)/'Zambia-IO-Data'!$BP12","v":10.478366186760663},null,"TTL_C10T14: Mining and quarrying",{"$f":"AF8","v":0},{"$f":"CI8","v":0},null,5380288.974387737,1266151.3291186057,{"$f":"FK8*CustomRegion1!C10","v":0},{"$f":"FN8*CustomRegion1!$C10","v":3097358.6781532736},{"$f":"FO8*CustomRegion1!$C10","v":728905.97991478653},{"$f":"FK8*CustomRegion1!D10","v":0},{"$f":"FN8*CustomRegion1!$D10","v":809657.15094985114},{"$f":"FO8*CustomRegion1!$D10","v":190537.80989936451},{"$f":"(FS8*'Default-Data'!$C$58/pv_dollar_index)/CustomRegion1!$E10","v":0},{"$f":"(FT8*'Default-Data'!$C$58/pv_dollar_index)/CustomRegion1!$E10","v":247.19706983717094},{"$f":"(FU8*'Default-Data'!$C$58/pv_dollar_index)/CustomRegion1!$E10","v":58.17325054815965},79964.022083058386,13557.106718894429,{"$f":"FL8*CustomRegion1!C10","v":0},{"$f":"FY8*CustomRegion1!$C10","v":46034.192385955612},{"$f":"FZ8*CustomRegion1!$C10","v":7804.6406701038222},{"$f":"FL8*CustomRegion1!D10","v":0},{"$f":"FY8*CustomRegion1!$D10","v":12033.450732193742},{"$f":"FZ8*CustomRegion1!$D10","v":2040.1522024924798},{"$f":"(GD8*'Default-Data'!$C$58/pv_dollar_index)/CustomRegion1!$E10","v":0},{"$f":"(GE8*'Default-Data'!$C$58/pv_dollar_index)/CustomRegion1!$E10","v":3.6739424304948747},{"$f":"(GF8*'Default-Data'!$C$58/pv_dollar_index)/CustomRegion1!$E10","v":0.6228804943998183},null,"C10T14 Mining and quarrying",0,0,null,2588640.7102429783,1109977.5430101133,{"$f":"GL8*CustomRegion2!$C$13","v":0},{"$f":"GO8*CustomRegion2!C$13","v":1595072.4121467241},{"$f":"GP8*CustomRegion2!D$13","v":122826.39662879473},{"$f":"GL8*CustomRegion2!D14","v":0},{"$f":"GO8*CustomRegion2!$D14","v":166027.51298834383},{"$f":"GP8*CustomRegion2!$D14","v":71190.571256056544},{"$f":"(GT8*'Default-Data'!$C$59/pv_dollar_index)/CustomRegion2!$E14","v":0},{"$f":"(GU8*'Default-Data'!$C$59/pv_dollar_index)/CustomRegion2!$E14","v":8.4860779484313138},{"$f":"(GV8*'Default-Data'!$C$59/pv_dollar_index)/CustomRegion2!$E14","v":3.6387266543868728},652921.61955658486,310161.52207158762,{"$f":"GM8*CustomRegion2!C14","v":0},{"$f":"GZ8*CustomRegion2!$C14","v":530600.4689519119},{"$f":"HA8*CustomRegion2!$C14","v":252054.52558576319},{"$f":"GM8*CustomRegion2!D14","v":0},{"$f":"GZ8*CustomRegion2!$D14","v":41876.39954913879},{"$f":"HA8*CustomRegion2!$D14","v":19892.813216783368},{"$f":"(HE8*'Default-Data'!$C$59/pv_dollar_index)/CustomRegion2!$E14","v":0},{"$f":"(HF8*'Default-Data'!$C$59/pv_dollar_index)/CustomRegion2!$E14","v":2.1404066372938715},{"$f":"(HG8*'Default-Data'!$C$59/pv_dollar_index)/CustomRegion2!$E14","v":1.0167710190482704},null,"DRSTAP",{"$f":"EJ8","v":0},{"$f":"EK8","v":0},null,523.72172414028319,267711.47902752773,{"$f":"HM8*CustomRegion3!D13","v":0},{"$f":"HP8*CustomRegion3!$D13","v":279.04376127974643},{"$f":"HQ8*CustomRegion3!$D13","v":142639.14327448333},{"$f":"HM8*CustomRegion3!E13","v":0},{"$f":"HP8*CustomRegion3!$E13","v":253.012844855065},{"$f":"HQ8*CustomRegion3!$E13","v":129332.88765193294},{"$f":"(HU8*'Default-Data'!$C$60/pv_dollar_index)/CustomRegion3!$F13","v":0},{"$f":"(HV8*'Default-Data'!$C$60/pv_dollar_index)/CustomRegion3!$F13","v":2.4045769820604161},{"$f":"(HW8*'Default-Data'!$C$60/pv_dollar_index)/CustomRegion3!$F13","v":1229.1505786964717},6.0827651887368406,2291.4525690775063,{"$f":"HN8*CustomRegion3!D13","v":0},{"$f":"IA8*CustomRegion3!$D13","v":3.2409533517688938},{"$f":"IB8*CustomRegion3!$D13","v":1220.9070469993576},{"$f":"HN8*CustomRegion3!E13","v":0},{"$f":"IA8*CustomRegion3!$E13","v":2.9386173115389536},{"$f":"IB8*CustomRegion3!$E13","v":1107.0133367189708},{"$f":"(IF8*'Default-Data'!$C$60/pv_dollar_index)/CustomRegion3!$F13","v":0},{"$f":"(IG8*'Default-Data'!$C$60/pv_dollar_index)/CustomRegion3!$F13","v":2.7927955793938322E-2},{"$f":"(IH8*'Default-Data'!$C$60/pv_dollar_index)/CustomRegion3!$F13","v":10.520804941081813}]
[null,51,"Utilities",6172065.2280798918,0,null,1859219.3922774773,728312.49287744332,3698647.3122834601,1114148.4339645687,436445.65388393431,765995.11357718718,230741.72370591492,90388.515040839455,189.58857890730394,57.11001900225309,22.371722498471797,7002.9987814617562,7745.5422558880546,0,4196.5892555927794,4641.5629109983702,0,869.1195975346983,961.27427380763822,0,0.21511253332621613,0.23792139177004848,null,8,"TTL_C15T16: Food products, beverages and tobacco",0,0,null,175854.42921841895,2159949.1567213545,{"$f":"AF9*'Colombia-IO-Data'!AN15","v":0},{"$f":"AI9*'Colombia-IO-Data'!$AN15","v":40261.492637381059},{"$f":"AJ9*'Colombia-IO-Data'!$AN15","v":494515.7051599914},{"$f":"AK9*'Colombia-IO-Data'!$AO15","v":0},{"$f":"AL9*'Colombia-IO-Data'!$AO15","v":14129.18281612337},{"$f":"AM9*'Colombia-IO-Data'!$AO15","v":173543.06425198101},{"$f":"(AN9*'Default-Data'!$F$19/pv_dollar_index)/'Colombia-IO-Data'!$AP15","v":0},{"$f":"(AO9*'Default-Data'!$F$19/pv_dollar_index)/'Colombia-IO-Data'!$AP15","v":3.2600148643564837},{"$f":"(AP9*'Default-Data'!$F$19/pv_dollar_index)/'Colombia-IO-Data'!$AP15","v":40.041450127025549},1581.9812353866678,20702.031736860386,{"$f":"'Colombia-IO-Data'!$AN15*Calculations!AG9","v":0},{"$f":"'Colombia-IO-Data'!$AN15*Calculations!AT9","v":362.19119497914892},{"$f":"'Colombia-IO-Data'!$AN15*Calculations!AU9","v":4739.6855572923696},{"$f":"AV9*'Colombia-IO-Data'!$AO15","v":0},{"$f":"AW9*'Colombia-IO-Data'!$AO15","v":127.10571002276339},{"$f":"AX9*'Colombia-IO-Data'!$AO15","v":1663.323422533686},{"$f":"(AY9*'Default-Data'!$F$19/pv_dollar_index)/'Colombia-IO-Data'!$AP15","v":0},{"$f":"(AZ9*'Default-Data'!$F$19/pv_dollar_index)/'Colombia-IO-Data'!$AP15","v":2.9326997138570784E-2},{"$f":"(BA9*'Default-Data'!$F$19/pv_dollar_index)/'Colombia-IO-Data'!$AP15","v":0.38377726102491466},null,"DOM_C15T16: Food products, beverages and tobacco",0,0,null,74690.632217202627,2084764.2225518788,{"$f":"BG9*'Mexico-IO-Data'!AQ15","v":0},{"$f":"BJ9*'Mexico-IO-Data'!$AQ15","v":29017.799655052237},{"$f":"BK9*'Mexico-IO-Data'!$AQ15","v":809944.55050412577},{"$f":"BG9*'Mexico-IO-Data'!AR15","v":0},{"$f":"BJ9*'Mexico-IO-Data'!$AR15","v":5010.0834657130581},{"$f":"BK9*'Mexico-IO-Data'!$AR15","v":139841.40247927461},{"$f":"(Calculations!BO9*'Default-Data'!$F$19/pv_dollar_index)/'Mexico-IO-Data'!$AS15","v":0},{"$f":"(Calculations!BP9*'Default-Data'!$F$19/pv_dollar_index)/'Mexico-IO-Data'!$AS15","v":1.2348588732111534},{"$f":"(Calculations!BQ9*'Default-Data'!$F$19/pv_dollar_index)/'Mexico-IO-Data'!$AS15","v":34.467369231591675},826.08735868379392,29971.093904060072,{"$f":"BH9*'Mexico-IO-Data'!AQ15","v":0},{"$f":"BU9*'Mexico-IO-Data'!$AQ15","v":320.94034767504075},{"$f":"BV9*'Mexico-IO-Data'!$AQ15","v":11643.966218168733},{"$f":"BH9*'Mexico-IO-Data'!AR15","v":0},{"$f":"BU9*'Mexico-IO-Data'!$AR15","v":55.412124574613181},{"$f":"BV9*'Mexico-IO-Data'!$AR15","v":2010.3951132908035},{"$f":"(BZ9*'Default-Data'!$F$19/pv_dollar_index)/'Mexico-IO-Data'!$AS15","v":0},{"$f":"(CA9*'Default-Data'!$F$19/pv_dollar_index)/'Mexico-IO-Data'!$AS15","v":1.365768737840861E-2},{"$f":"(CB9*'Default-Data'!$F$19/pv_dollar_index)/'Mexico-IO-Data'!$AS15","v":0.49551155410824321},null,"TTL_C15T16: Food products, beverages and tobacco",0,0,null,166197.55555042383,1911769.9400118135,{"$f":"CH9*'Philippines-IO-Data'!AN15","v":0},{"$f":"'Philippines-IO-Data'!$AN15*Calculations!CK9","v":55349.265858228297},{"$f":"'Philippines-IO-Data'!$AN15*Calculations!CL9","v":636682.42483493721},{"$f":"CH9*'Philippines-IO-Data'!AO15","v":0},{"$f":"'Philippines-IO-Data'!$AO15*Calculations!CK9","v":9684.7375750250485},{"$f":"'Philippines-IO-Data'!$AO15*Calculations!CL9","v":111403.50477187615},{"$f":"(CP9*'Default-Data'!$F$19/pv_dollar_index)/'Philippines-IO-Data'!$AP15","v":0},{"$f":"(CQ9*'Default-Data'!$F$19/pv_dollar_index)/'Philippines-IO-Data'!$AP15","v":2.9445510601288798},{"$f":"(CR9*'Default-Data'!$F$19/pv_dollar_index)/'Philippines-IO-Data'!$AP15","v":33.871161251083478},668.80465439835666,20331.512913358456,{"$f":"CI9*'Philippines-IO-Data'!AN15","v":0},{"$f":"'Philippines-IO-Data'!$AN15*Calculations!CV9","v":222.73400171811815},{"$f":"'Philippines-IO-Data'!$AN15*Calculations!CW9","v":6771.0641700747274},{"$f":"'Philippines-IO-Data'!AO15*Calculations!CI9","v":0},{"$f":"'Philippines-IO-Data'!$AO15*Calculations!CV9","v":38.972881071275708},{"$f":"'Philippines-IO-Data'!$AO15*Calculations!CW9","v":1184.7669264267195},{"$f":"(DA9*'Default-Data'!$F$19/pv_dollar_index)/'Philippines-IO-Data'!$AP15","v":0},{"$f":"(DB9*'Default-Data'!$F$19/pv_dollar_index)/'Philippines-IO-Data'!$AP15","v":1.1849328635464326E-2},{"$f":"(DC9*'Default-Data'!$F$19/pv_dollar_index)/'Philippines-IO-Data'!$AP15","v":0.36021695809412868},null,"DOM_C15T16: Food products, beverages and tobacco",0,0,null,325815.35481553047,3124408.7113091489,{"$f":"DI9*'SouthAfrica-IO-Data'!AR15","v":0},{"$f":"DL9*'SouthAfrica-IO-Data'!$AR15","v":85348.487374679273},{"$f":"DM9*'SouthAfrica-IO-Data'!$AR15","v":818449.93954163371},{"$f":"DI9*'SouthAfrica-IO-Data'!AS15","v":0},{"$f":"DL9*'SouthAfrica-IO-Data'!$AS15","v":44186.1983929372},{"$f":"DM9*'SouthAfrica-IO-Data'!$AS15","v":423723.87040104799},{"$f":"(DQ9*'Default-Data'!$F$19/pv_dollar_index)/'SouthAfrica-IO-Data'!$AT15","v":0},{"$f":"(DR9*'Default-Data'!$F$19/pv_dollar_index)/'SouthAfrica-IO-Data'!$AT15","v":3.378436887909404},{"$f":"(DS9*'Default-Data'!$F$19/pv_dollar_index)/'SouthAfrica-IO-Data'!$AT15","v":32.397545073247606},2679.7099281315272,32934.249934396743,{"$f":"DJ9*'SouthAfrica-IO-Data'!AR15","v":0},{"$f":"DW9*'SouthAfrica-IO-Data'!$AR15","v":701.95951660542983},{"$f":"DX9*'SouthAfrica-IO-Data'!$AR15","v":8627.2435389420352},{"$f":"DJ9*'SouthAfrica-IO-Data'!AS15","v":0},{"$f":"DW9*'SouthAfrica-IO-Data'!$AS15","v":363.41502255773719},{"$f":"DX9*'SouthAfrica-IO-Data'!$AS15","v":4466.4540207067839},{"$f":"(EB9*'Default-Data'!$F$19/pv_dollar_index)/'SouthAfrica-IO-Data'!$AT15","v":0},{"$f":"(EC9*'Default-Data'!$F$19/pv_dollar_index)/'SouthAfrica-IO-Data'!$AT15","v":2.7786384945615437E-2},{"$f":"(ED9*'Default-Data'!$F$19/pv_dollar_index)/'SouthAfrica-IO-Data'!$AT15","v":0.34150104717130464},null,"GRNDNUT",0,0,null,6686.0418086382469,146695.68581081444,{"$f":"EJ9*'Zambia-IO-Data'!BO13","v":0},{"$f":"EM9*'Zambia-IO-Data'!$BO13","v":3015.7670764387981},{"$f":"EN9*'Zambia-IO-Data'!$BO13","v":66167.701636608283},{"$f":"EJ9*'Zambia-IO-Data'!$BN13","v":0},{"$f":"EM9*'Zambia-IO-Data'!$BN13","v":2486.7196531646564},{"$f":"EN9*'Zambia-IO-Data'!$BN13","v":54560.090316652873},{"$f":"(ER9*'Default-Data'!$F$19/pv_dollar_index)/'Zambia-IO-Data'!$BP13","v":0},{"$f":"(ES9*'Default-Data'!$F$19/pv_dollar_index)/'Zambia-IO-Data'!$BP13","v":23.537890886574367},{"$f":"(ET9*'Default-Data'!$F$19/pv_dollar_index)/'Zambia-IO-Data'!$BP13","v":516.43515625119937},68.096545413745815,1266.0358632941361,{"$f":"EK9*'Zambia-IO-Data'!BO13","v":0},{"$f":"EX9*'Zambia-IO-Data'!$BO13","v":30.715231157045459},{"$f":"EY9*'Zambia-IO-Data'!$BO13","v":571.05076267700713},{"$f":"EK9*'Zambia-IO-Data'!BN13","v":0},{"$f":"EX9*'Zambia-IO-Data'!$BN13","v":25.326945693668986},{"$f":"EY9*'Zambia-IO-Data'!$BN13","v":470.87295487702357},{"$f":"(FC9*'Default-Data'!$F$19/pv_dollar_index)/'Zambia-IO-Data'!$BP13","v":0},{"$f":"(FD9*'Default-Data'!$F$19/pv_dollar_index)/'Zambia-IO-Data'!$BP13","v":0.23973063608883693},{"$f":"(FE9*'Default-Data'!$F$19/pv_dollar_index)/'Zambia-IO-Data'!$BP13","v":4.4570187955161336},null,"TTL_C15T16: Food products, beverages and tobacco",0,0,null,296085.22142927523,2694917.7268249616,{"$f":"FK9*CustomRegion1!C11","v":0},{"$f":"FN9*CustomRegion1!$C11","v":98606.141247421954},{"$f":"FO9*CustomRegion1!$C11","v":897496.45976490818},{"$f":"FK9*CustomRegion1!D11","v":0},{"$f":"FN9*CustomRegion1!$D11","v":17253.609175471418},{"$f":"FO9*CustomRegion1!$D11","v":157039.43950405615},{"$f":"(FS9*'Default-Data'!$C$58/pv_dollar_index)/CustomRegion1!$E11","v":0},{"$f":"(FT9*'Default-Data'!$C$58/pv_dollar_index)/CustomRegion1!$E11","v":5.2677131638851309},{"$f":"(FU9*'Default-Data'!$C$58/pv_dollar_index)/CustomRegion1!$E11","v":47.945836393506738},1696.2152822493179,28855.38748882357,{"$f":"FL9*CustomRegion1!C11","v":0},{"$f":"FY9*CustomRegion1!$C11","v":564.89561653945646},{"$f":"FZ9*CustomRegion1!$C11","v":9609.7954525963378},{"$f":"FL9*CustomRegion1!D11","v":0},{"$f":"FY9*CustomRegion1!$D11","v":98.84260827378813},{"$f":"FZ9*CustomRegion1!$D11","v":1681.4739213786506},{"$f":"(GD9*'Default-Data'!$C$58/pv_dollar_index)/CustomRegion1!$E11","v":0},{"$f":"(GE9*'Default-Data'!$C$58/pv_dollar_index)/CustomRegion1!$E11","v":3.0177715483250409E-2},{"$f":"(GF9*'Default-Data'!$C$58/pv_dollar_index)/CustomRegion1!$E11","v":0.51337214262208752},null,"C15T16 Food products, beverages and tobacco",0,0,null,180639.3369171505,4122533.1507826946,{"$f":"GL9*CustomRegion2!$C$13","v":0},{"$f":"GO9*CustomRegion2!C$13","v":111306.61034762872},{"$f":"GP9*CustomRegion2!D$13","v":456185.70851462398},{"$f":"GL9*CustomRegion2!D15","v":0},{"$f":"GO9*CustomRegion2!$D15","v":17370.769662278668},{"$f":"GP9*CustomRegion2!$D15","v":396433.99388804485},{"$f":"(GT9*'Default-Data'!$C$59/pv_dollar_index)/CustomRegion2!$E15","v":0},{"$f":"(GU9*'Default-Data'!$C$59/pv_dollar_index)/CustomRegion2!$E15","v":4.2814554285911477},{"$f":"(GV9*'Default-Data'!$C$59/pv_dollar_index)/CustomRegion2!$E15","v":97.710953988171696},36765.679977480402,1151961.2850633033,{"$f":"GM9*CustomRegion2!C15","v":0},{"$f":"GZ9*CustomRegion2!$C15","v":14549.138508660528},{"$f":"HA9*CustomRegion2!$C15","v":455861.1265524365},{"$f":"GM9*CustomRegion2!D15","v":0},{"$f":"GZ9*CustomRegion2!$D15","v":3535.4877252388069},{"$f":"HA9*CustomRegion2!$D15","v":110775.72849968383},{"$f":"(HE9*'Default-Data'!$C$59/pv_dollar_index)/CustomRegion2!$E15","v":0},{"$f":"(HF9*'Default-Data'!$C$59/pv_dollar_index)/CustomRegion2!$E15","v":0.87140831455567225},{"$f":"(HG9*'Default-Data'!$C$59/pv_dollar_index)/CustomRegion2!$E15","v":27.30341564375421},null,"GRNDNUT",0,0,null,6686.0418086382469,146695.68581081444,{"$f":"HM9*CustomRegion3!D14","v":0},{"$f":"HP9*CustomRegion3!$D14","v":3015.7670764387981},{"$f":"HQ9*CustomRegion3!$D14","v":66167.701636608283},{"$f":"HM9*CustomRegion3!E14","v":0},{"$f":"HP9*CustomRegion3!$E14","v":2486.7196531646564},{"$f":"HQ9*CustomRegion3!$E14","v":54560.090316652873},{"$f":"(HU9*'Default-Data'!$C$60/pv_dollar_index)/CustomRegion3!$F14","v":0},{"$f":"(HV9*'Default-Data'!$C$60/pv_dollar_index)/CustomRegion3!$F14","v":23.633222424981131},{"$f":"(HW9*'Default-Data'!$C$60/pv_dollar_index)/CustomRegion3!$F14","v":518.52678621796281},68.096545413745815,1266.0358632941361,{"$f":"HN9*CustomRegion3!D14","v":0},{"$f":"IA9*CustomRegion3!$D14","v":30.715231157045459},{"$f":"IB9*CustomRegion3!$D14","v":571.05076267700713},{"$f":"HN9*CustomRegion3!E14","v":0},{"$f":"IA9*CustomRegion3!$E14","v":25.326945693668986},{"$f":"IB9*CustomRegion3!$E14","v":470.87295487702357},{"$f":"(IF9*'Default-Data'!$C$60/pv_dollar_index)/CustomRegion3!$F14","v":0},{"$f":"(IG9*'Default-Data'!$C$60/pv_dollar_index)/CustomRegion3!$F14","v":0.24070157653765248},{"$f":"(IH9*'Default-Data'!$C$60/pv_dollar_index)/CustomRegion3!$F14","v":4.4750703049114282}]
[null,52,"Construction",10674042.217973458,486078.39708321507,null,275862.11483066902,217870.10457126051,5874230.0073567629,151814.79328445753,119900.13528552795,1805118.8508828145,46651.858176721944,36844.657794510735,548.82897805435573,14.184047568361033,11.202262872737858,4133.2843788553728,2317.0302826803527,267502.81175262242,2274.6643334731812,1275.1278790669194,82202.155440640534,698.99194662805405,391.83984435530192,24.992772604578395,0.21252176029765704,0.11913512577486182,null,9,"TTL_C17T19: Textiles, textile products, leather and footwear",0,0,null,139573.70982787956,558993.34506014676,{"$f":"AF10*'Colombia-IO-Data'!AN16","v":0},{"$f":"AI10*'Colombia-IO-Data'!$AN16","v":45977.52182578489},{"$f":"AJ10*'Colombia-IO-Data'!$AN16","v":184140.18481464518},{"$f":"AK10*'Colombia-IO-Data'!$AO16","v":0},{"$f":"AL10*'Colombia-IO-Data'!$AO16","v":23555.112068437025},{"$f":"AM10*'Colombia-IO-Data'!$AO16","v":94338.331370856293},{"$f":"(AN10*'Default-Data'!$F$19/pv_dollar_index)/'Colombia-IO-Data'!$AP16","v":0},{"$f":"(AO10*'Default-Data'!$F$19/pv_dollar_index)/'Colombia-IO-Data'!$AP16","v":5.4348518576077431},{"$f":"(AP10*'Default-Data'!$F$19/pv_dollar_index)/'Colombia-IO-Data'!$AP16","v":21.766606501589607},1382.1369596488807,5357.6714683853097,{"$f":"'Colombia-IO-Data'!$AN16*Calculations!AG10","v":0},{"$f":"'Colombia-IO-Data'!$AN16*Calculations!AT10","v":455.29514338227438},{"$f":"'Colombia-IO-Data'!$AN16*Calculations!AU10","v":1764.8915198775217},{"$f":"AV10*'Colombia-IO-Data'!$AO16","v":0},{"$f":"AW10*'Colombia-IO-Data'!$AO16","v":233.25589768020291},{"$f":"AX10*'Colombia-IO-Data'!$AO16","v":904.18569528109811},{"$f":"(AY10*'Default-Data'!$F$19/pv_dollar_index)/'Colombia-IO-Data'!$AP16","v":0},{"$f":"(AZ10*'Default-Data'!$F$19/pv_dollar_index)/'Colombia-IO-Data'!$AP16","v":5.381894363830679E-2},{"$f":"(BA10*'Default-Data'!$F$19/pv_dollar_index)/'Colombia-IO-Data'!$AP16","v":0.20862203038318619},null,"DOM_C17T19: Textiles, textile products, leather and footwear",0,0,null,76013.76538250086,221203.72268656551,{"$f":"BG10*'Mexico-IO-Data'!AQ16","v":0},{"$f":"BJ10*'Mexico-IO-Data'!$AQ16","v":29453.180851454315},{"$f":"BK10*'Mexico-IO-Data'!$AQ16","v":85710.176525503572},{"$f":"BG10*'Mexico-IO-Data'!AR16","v":0},{"$f":"BJ10*'Mexico-IO-Data'!$AR16","v":10015.858546073456},{"$f":"BK10*'Mexico-IO-Data'!$AR16","v":29146.631339006672},{"$f":"(Calculations!BO10*'Default-Data'!$F$19/pv_dollar_index)/'Mexico-IO-Data'!$AS16","v":0},{"$f":"(Calculations!BP10*'Default-Data'!$F$19/pv_dollar_index)/'Mexico-IO-Data'!$AS16","v":2.2949426161758257},{"$f":"(Calculations!BQ10*'Default-Data'!$F$19/pv_dollar_index)/'Mexico-IO-Data'!$AS16","v":6.6783936764038367},633.68399829736143,3180.0802569662001,{"$f":"BH10*'Mexico-IO-Data'!AQ16","v":0},{"$f":"BU10*'Mexico-IO-Data'!$AQ16","v":245.53459903752508},{"$f":"BV10*'Mexico-IO-Data'!$AQ16","v":1232.191017761726},{"$f":"BH10*'Mexico-IO-Data'!AR16","v":0},{"$f":"BU10*'Mexico-IO-Data'!$AR16","v":83.49657799372406},{"$f":"BV10*'Mexico-IO-Data'!$AR16","v":419.01929023853967},{"$f":"(BZ10*'Default-Data'!$F$19/pv_dollar_index)/'Mexico-IO-Data'!$AS16","v":0},{"$f":"(CA10*'Default-Data'!$F$19/pv_dollar_index)/'Mexico-IO-Data'!$AS16","v":1.913164550609266E-2},{"$f":"(CB10*'Default-Data'!$F$19/pv_dollar_index)/'Mexico-IO-Data'!$AS16","v":9.6010264296829587E-2},null,"TTL_C17T19: Textiles, textile products, leather and footwear",0,0,null,92346.559779097064,267446.54034506972,{"$f":"CH10*'Philippines-IO-Data'!AN16","v":0},{"$f":"'Philippines-IO-Data'!$AN16*Calculations!CK10","v":35433.162656287925},{"$f":"'Philippines-IO-Data'!$AN16*Calculations!CL10","v":102618.62259489775},{"$f":"CH10*'Philippines-IO-Data'!AO16","v":0},{"$f":"'Philippines-IO-Data'!$AO16*Calculations!CK10","v":12238.616818066541},{"$f":"'Philippines-IO-Data'!$AO16*Calculations!CL10","v":35444.479300914631},{"$f":"(CP10*'Default-Data'!$F$19/pv_dollar_index)/'Philippines-IO-Data'!$AP16","v":0},{"$f":"(CQ10*'Default-Data'!$F$19/pv_dollar_index)/'Philippines-IO-Data'!$AP16","v":3.721033414377855},{"$f":"(CR10*'Default-Data'!$F$19/pv_dollar_index)/'Philippines-IO-Data'!$AP16","v":10.776552105073883},229.44171702025452,2844.2715176415159,{"$f":"CI10*'Philippines-IO-Data'!AN16","v":0},{"$f":"'Philippines-IO-Data'!$AN16*Calculations!CV10","v":88.036259269041878},{"$f":"'Philippines-IO-Data'!$AN16*Calculations!CW10","v":1091.340441531542},{"$f":"'Philippines-IO-Data'!AO16*Calculations!CI10","v":0},{"$f":"'Philippines-IO-Data'!$AO16*Calculations!CV10","v":30.407730005398228},{"$f":"'Philippines-IO-Data'!$AO16*Calculations!CW10","v":376.94906355173657},{"$f":"(DA10*'Default-Data'!$F$19/pv_dollar_index)/'Philippines-IO-Data'!$AP16","v":0},{"$f":"(DB10*'Default-Data'!$F$19/pv_dollar_index)/'Philippines-IO-Data'!$AP16","v":9.2451770561554451E-3},{"$f":"(DC10*'Default-Data'!$F$19/pv_dollar_index)/'Philippines-IO-Data'!$AP16","v":0.11460772747814839},null,"DOM_C17T19: Textiles, textile products, leather and footwear",0,0,null,222770.86181117612,928042.83231854951,{"$f":"DI10*'SouthAfrica-IO-Data'!AR16","v":0},{"$f":"DL10*'SouthAfrica-IO-Data'!$AR16","v":29649.754996253319},{"$f":"DM10*'SouthAfrica-IO-Data'!$AR16","v":123518.14048103458},{"$f":"DI10*'SouthAfrica-IO-Data'!AS16","v":0},{"$f":"DL10*'SouthAfrica-IO-Data'!$AS16","v":29796.988368666218},{"$f":"DM10*'SouthAfrica-IO-Data'!$AS16","v":124131.50111013561},{"$f":"(DQ10*'Default-Data'!$F$19/pv_dollar_index)/'SouthAfrica-IO-Data'!$AT16","v":0},{"$f":"(DR10*'Default-Data'!$F$19/pv_dollar_index)/'SouthAfrica-IO-Data'!$AT16","v":2.2782508637221937},{"$f":"(DS10*'Default-Data'!$F$19/pv_dollar_index)/'SouthAfrica-IO-Data'!$AT16","v":9.4909826496656056},5247.5908498311992,9782.4572306348055,{"$f":"DJ10*'SouthAfrica-IO-Data'!AR16","v":0},{"$f":"DW10*'SouthAfrica-IO-Data'!$AR16","v":698.42968579057708},{"$f":"DX10*'SouthAfrica-IO-Data'!$AR16","v":1301.9990935596293},{"$f":"DJ10*'SouthAfrica-IO-Data'!AS16","v":0},{"$f":"DW10*'SouthAfrica-IO-Data'!$AS16","v":701.8979153946741},{"$f":"DX10*'SouthAfrica-IO-Data'!$AS16","v":1308.4645000173739},{"$f":"(EB10*'Default-Data'!$F$19/pv_dollar_index)/'SouthAfrica-IO-Data'!$AT16","v":0},{"$f":"(EC10*'Default-Data'!$F$19/pv_dollar_index)/'SouthAfrica-IO-Data'!$AT16","v":5.3666481733244474E-2},{"$f":"(ED10*'Default-Data'!$F$19/pv_dollar_index)/'SouthAfrica-IO-Data'!$AT16","v":0.10004401587273054},null,"SUGAR",0,0,null,297.44930944701895,25327.122141927252,{"$f":"EJ10*'Zambia-IO-Data'!BO14","v":0},{"$f":"EM10*'Zambia-IO-Data'!$BO14","v":80.727947354708562},{"$f":"EN10*'Zambia-IO-Data'!$BO14","v":6873.7983850789797},{"$f":"EJ10*'Zambia-IO-Data'!$BN14","v":0},{"$f":"EM10*'Zambia-IO-Data'!$BN14","v":27.06090079130183},{"$f":"EN10*'Zambia-IO-Data'!$BN14","v":2304.1732417736703},{"$f":"(ER10*'Default-Data'!$F$19/pv_dollar_index)/'Zambia-IO-Data'!$BP14","v":0},{"$f":"(ES10*'Default-Data'!$F$19/pv_dollar_index)/'Zambia-IO-Data'!$BP14","v":0.25614328069007342},{"$f":"(ET10*'Default-Data'!$F$19/pv_dollar_index)/'Zambia-IO-Data'!$BP14","v":21.810009133764563},3.4547245636759185,220.37997071732153,{"$f":"EK10*'Zambia-IO-Data'!BO14","v":0},{"$f":"EX10*'Zambia-IO-Data'!$BO14","v":0.93761462489165359},{"$f":"EY10*'Zambia-IO-Data'!$BO14","v":59.811275767204329},{"$f":"EK10*'Zambia-IO-Data'!BN14","v":0},{"$f":"EX10*'Zambia-IO-Data'!$BN14","v":0.31429879212935075},{"$f":"EY10*'Zambia-IO-Data'!$BN14","v":20.049401140175377},{"$f":"(FC10*'Default-Data'!$F$19/pv_dollar_index)/'Zambia-IO-Data'!$BP14","v":0},{"$f":"(FD10*'Default-Data'!$F$19/pv_dollar_index)/'Zambia-IO-Data'!$BP14","v":2.9749757539045472E-3},{"$f":"(FE10*'Default-Data'!$F$19/pv_dollar_index)/'Zambia-IO-Data'!$BP14","v":0.1897763649304138},null,"TTL_C17T19: Textiles, textile products, leather and footwear",0,0,null,145233.03077250754,426132.97842053173,{"$f":"FK10*CustomRegion1!C12","v":0},{"$f":"FN10*CustomRegion1!$C12","v":55725.579975451961},{"$f":"FO10*CustomRegion1!$C12","v":163506.24401929148},{"$f":"FK10*CustomRegion1!D12","v":0},{"$f":"FN10*CustomRegion1!$D12","v":19247.619155527198},{"$f":"FO10*CustomRegion1!$D12","v":56475.067927877484},{"$f":"(FS10*'Default-Data'!$C$58/pv_dollar_index)/CustomRegion1!$E12","v":0},{"$f":"(FT10*'Default-Data'!$C$58/pv_dollar_index)/CustomRegion1!$E12","v":5.8765059395897641},{"$f":"(FU10*'Default-Data'!$C$58/pv_dollar_index)/CustomRegion1!$E12","v":17.24244798461762},539.64849827302749,4562.7486478326882,{"$f":"FL10*CustomRegion1!C12","v":0},{"$f":"FY10*CustomRegion1!$C12","v":207.06188798229488},{"$f":"FZ10*CustomRegion1!$C12","v":1750.716165119218},{"$f":"FL10*CustomRegion1!D12","v":0},{"$f":"FY10*CustomRegion1!$D12","v":71.519190347831312},{"$f":"FZ10*CustomRegion1!$D12","v":604.69748382132434},{"$f":"(GD10*'Default-Data'!$C$58/pv_dollar_index)/CustomRegion1!$E12","v":0},{"$f":"(GE10*'Default-Data'!$C$58/pv_dollar_index)/CustomRegion1!$E12","v":2.1835580986804388E-2},{"$f":"(GF10*'Default-Data'!$C$58/pv_dollar_index)/CustomRegion1!$E12","v":0.18462067056800441},null,"C17T19 Textiles, textile products, leather and footwear",0,0,null,572059.28430345154,937997.9439638214,{"$f":"GL10*CustomRegion2!$C$13","v":0},{"$f":"GO10*CustomRegion2!C$13","v":352492.32498517999},{"$f":"GP10*CustomRegion2!D$13","v":103795.71030766753},{"$f":"GL10*CustomRegion2!D16","v":0},{"$f":"GO10*CustomRegion2!$D16","v":88173.183198868966},{"$f":"GP10*CustomRegion2!$D16","v":144576.38713789763},{"$f":"(GT10*'Default-Data'!$C$59/pv_dollar_index)/CustomRegion2!$E16","v":0},{"$f":"(GU10*'Default-Data'!$C$59/pv_dollar_index)/CustomRegion2!$E16","v":20.203200234521233},{"$f":"(GV10*'Default-Data'!$C$59/pv_dollar_index)/CustomRegion2!$E16","v":33.126916740010287},98058.568654063303,262105.18566967783,{"$f":"GM10*CustomRegion2!C16","v":0},{"$f":"GZ10*CustomRegion2!$C16","v":34138.505366510675},{"$f":"HA10*CustomRegion2!$C16","v":91250.355888238788},{"$f":"GM10*CustomRegion2!D16","v":0},{"$f":"GZ10*CustomRegion2!$D16","v":15114.056139620679},{"$f":"HA10*CustomRegion2!$D16","v":40399.044622736888},{"$f":"(HE10*'Default-Data'!$C$59/pv_dollar_index)/CustomRegion2!$E16","v":0},{"$f":"(HF10*'Default-Data'!$C$59/pv_dollar_index)/CustomRegion2!$E16","v":3.4630971851821322},{"$f":"(HG10*'Default-Data'!$C$59/pv_dollar_index)/CustomRegion2!$E16","v":9.2566691842762161},null,"SUGAR",0,0,null,297.44930944701895,25327.122141927252,{"$f":"HM10*CustomRegion3!D15","v":0},{"$f":"HP10*CustomRegion3!$D15","v":80.727947354708562},{"$f":"HQ10*CustomRegion3!$D15","v":6873.7983850789797},{"$f":"HM10*CustomRegion3!E15","v":0},{"$f":"HP10*CustomRegion3!$E15","v":27.06090079130183},{"$f":"HQ10*CustomRegion3!$E15","v":2304.1732417736703},{"$f":"(HU10*'Default-Data'!$C$60/pv_dollar_index)/CustomRegion3!$F15","v":0},{"$f":"(HV10*'Default-Data'!$C$60/pv_dollar_index)/CustomRegion3!$F15","v":0.25718069449738556},{"$f":"(HW10*'Default-Data'!$C$60/pv_dollar_index)/CustomRegion3!$F15","v":21.898342524950994},3.4547245636759185,220.37997071732153,{"$f":"HN10*CustomRegion3!D15","v":0},{"$f":"IA10*CustomRegion3!$D15","v":0.93761462489165359},{"$f":"IB10*CustomRegion3!$D15","v":59.811275767204329},{"$f":"HN10*CustomRegion3!E15","v":0},{"$f":"IA10*CustomRegion3!$E15","v":0.31429879212935075},{"$f":"IB10*CustomRegion3!$E15","v":20.049401140175377},{"$f":"(IF10*'Default-Data'!$C$60/pv_dollar_index)/CustomRegion3!$F15","v":0},{"$f":"(IG10*'Default-Data'!$C$60/pv_dollar_index)/CustomRegion3!$F15","v":2.9870247950318598E-3},{"$f":"(IH10*'Default-Data'!$C$60/pv_dollar_index)/CustomRegion3!$F15","v":0.19054498404370823}]
[null,53,"Manufacturing",11618005.135209208,0,null,14936446.172184117,4967220.8482639417,2925856.4154316867,3306443.724678576,1397044.6912979749,896915.52843415388,750272.23980576149,313556.10288714996,272.69851657183511,228.11303889146527,95.33370914945516,127739.63057097714,52825.976968420109,0,32996.526871274611,14857.453079049985,0,7264.9331487572881,3334.6428466560492,0,2.2088328609031396,1.0138659982479554,null,10,"TTL_C20: Wood and products of wood and cork",0,0,null,226694.1591838712,20938.921732838789,{"$f":"AF11*'Colombia-IO-Data'!AN17","v":0},{"$f":"AI11*'Colombia-IO-Data'!$AN17","v":94122.045119826857},{"$f":"AJ11*'Colombia-IO-Data'!$AN17","v":8693.7137824545898},{"$f":"AK11*'Colombia-IO-Data'!$AO17","v":0},{"$f":"AL11*'Colombia-IO-Data'!$AO17","v":38416.822019060375},{"$f":"AM11*'Colombia-IO-Data'!$AO17","v":3548.4232693840609},{"$f":"(AN11*'Default-Data'!$F$19/pv_dollar_index)/'Colombia-IO-Data'!$AP17","v":0},{"$f":"(AO11*'Default-Data'!$F$19/pv_dollar_index)/'Colombia-IO-Data'!$AP17","v":8.8638821121741476},{"$f":"(AP11*'Default-Data'!$F$19/pv_dollar_index)/'Colombia-IO-Data'!$AP17","v":0.81872481613160719},7413.4431442356199,200.68908608333186,{"$f":"'Colombia-IO-Data'!$AN17*Calculations!AG11","v":0},{"$f":"'Colombia-IO-Data'!$AN17*Calculations!AT11","v":3078.0167986112842},{"$f":"'Colombia-IO-Data'!$AN17*Calculations!AU11","v":83.324895901138447},{"$f":"AV11*'Colombia-IO-Data'!$AO17","v":0},{"$f":"AW11*'Colombia-IO-Data'!$AO17","v":1256.3222927570957},{"$f":"AX11*'Colombia-IO-Data'!$AO17","v":34.009861255303939},{"$f":"(AY11*'Default-Data'!$F$19/pv_dollar_index)/'Colombia-IO-Data'!$AP17","v":0},{"$f":"(AZ11*'Default-Data'!$F$19/pv_dollar_index)/'Colombia-IO-Data'!$AP17","v":0.28987022123720174},{"$f":"(BA11*'Default-Data'!$F$19/pv_dollar_index)/'Colombia-IO-Data'!$AP17","v":7.8470676379437405E-3},null,"DOM_C20: Wood and products of wood and cork",0,0,null,174426.2263668183,24034.942519399279,{"$f":"BG11*'Mexico-IO-Data'!AQ17","v":0},{"$f":"BJ11*'Mexico-IO-Data'!$AQ17","v":80648.123947304732},{"$f":"BK11*'Mexico-IO-Data'!$AQ17","v":11112.853059691035},{"$f":"BG11*'Mexico-IO-Data'!AR17","v":0},{"$f":"BJ11*'Mexico-IO-Data'!$AR17","v":29314.047364394624},{"$f":"BK11*'Mexico-IO-Data'!$AR17","v":4039.3090998396096},{"$f":"(Calculations!BO11*'Default-Data'!$F$19/pv_dollar_index)/'Mexico-IO-Data'!$AS17","v":0},{"$f":"(Calculations!BP11*'Default-Data'!$F$19/pv_dollar_index)/'Mexico-IO-Data'!$AS17","v":12.454867479516929},{"$f":"(Calculations!BQ11*'Default-Data'!$F$19/pv_dollar_index)/'Mexico-IO-Data'!$AS17","v":1.716209942691689},5629.1756399216356,345.53236832981111,{"$f":"BH11*'Mexico-IO-Data'!AQ17","v":0},{"$f":"BU11*'Mexico-IO-Data'!$AQ17","v":2602.7190072599724},{"$f":"BV11*'Mexico-IO-Data'!$AQ17","v":159.76116579088881},{"$f":"BH11*'Mexico-IO-Data'!AR17","v":0},{"$f":"BU11*'Mexico-IO-Data'!$AR17","v":946.03847579741262},{"$f":"BV11*'Mexico-IO-Data'!$AR17","v":58.070121805251631},{"$f":"(BZ11*'Default-Data'!$F$19/pv_dollar_index)/'Mexico-IO-Data'!$AS17","v":0},{"$f":"(CA11*'Default-Data'!$F$19/pv_dollar_index)/'Mexico-IO-Data'!$AS17","v":0.40195008557202994},{"$f":"(CB11*'Default-Data'!$F$19/pv_dollar_index)/'Mexico-IO-Data'!$AS17","v":2.4672665040525756E-2},null,"TTL_C20: Wood and products of wood and cork",0,0,null,77980.60105897201,8318.4009381550713,{"$f":"CH11*'Philippines-IO-Data'!AN17","v":0},{"$f":"'Philippines-IO-Data'!$AN17*Calculations!CK11","v":11317.397879893146},{"$f":"'Philippines-IO-Data'!$AN17*Calculations!CL11","v":1207.257341737889},{"$f":"CH11*'Philippines-IO-Data'!AO17","v":0},{"$f":"'Philippines-IO-Data'!$AO17*Calculations!CK11","v":2934.8195474601348},{"$f":"'Philippines-IO-Data'!$AO17*Calculations!CL11","v":313.06511293040876},{"$f":"(CP11*'Default-Data'!$F$19/pv_dollar_index)/'Philippines-IO-Data'!$AP17","v":0},{"$f":"(CQ11*'Default-Data'!$F$19/pv_dollar_index)/'Philippines-IO-Data'!$AP17","v":0.89230358002120136},{"$f":"(CR11*'Default-Data'!$F$19/pv_dollar_index)/'Philippines-IO-Data'!$AP17","v":9.5184428388212519E-2},3405.2801378897816,88.465496058353438,{"$f":"CI11*'Philippines-IO-Data'!AN17","v":0},{"$f":"'Philippines-IO-Data'!$AN17*Calculations!CV11","v":494.21150503637961},{"$f":"'Philippines-IO-Data'!$AN17*Calculations!CW11","v":12.839080539753192},{"$f":"'Philippines-IO-Data'!AO17*Calculations!CI11","v":0},{"$f":"'Philippines-IO-Data'!$AO17*Calculations!CV11","v":128.15857504995256},{"$f":"'Philippines-IO-Data'!$AO17*Calculations!CW11","v":3.3294212096604707},{"$f":"(DA11*'Default-Data'!$F$19/pv_dollar_index)/'Philippines-IO-Data'!$AP17","v":0},{"$f":"(DB11*'Default-Data'!$F$19/pv_dollar_index)/'Philippines-IO-Data'!$AP17","v":3.8965378783324275E-2},{"$f":"(DC11*'Default-Data'!$F$19/pv_dollar_index)/'Philippines-IO-Data'!$AP17","v":1.0122784098768893E-3},null,"DOM_C20: Wood and products of wood and cork",0,0,null,195844.63277117757,95380.821925378521,{"$f":"DI11*'SouthAfrica-IO-Data'!AR17","v":0},{"$f":"DL11*'SouthAfrica-IO-Data'!$AR17","v":51907.710812851001},{"$f":"DM11*'SouthAfrica-IO-Data'!$AR17","v":25280.244097264964},{"$f":"DI11*'SouthAfrica-IO-Data'!AS17","v":0},{"$f":"DL11*'SouthAfrica-IO-Data'!$AS17","v":43213.585057712837},{"$f":"DM11*'SouthAfrica-IO-Data'!$AS17","v":21046.005718026005},{"$f":"(DQ11*'Default-Data'!$F$19/pv_dollar_index)/'SouthAfrica-IO-Data'!$AT17","v":0},{"$f":"(DR11*'Default-Data'!$F$19/pv_dollar_index)/'SouthAfrica-IO-Data'!$AT17","v":3.3040717492710043},{"$f":"(DS11*'Default-Data'!$F$19/pv_dollar_index)/'SouthAfrica-IO-Data'!$AT17","v":1.6091586207220863},4510.4262575928824,1005.4049000914438,{"$f":"DJ11*'SouthAfrica-IO-Data'!AR17","v":0},{"$f":"DW11*'SouthAfrica-IO-Data'!$AR17","v":1195.467542352161},{"$f":"DX11*'SouthAfrica-IO-Data'!$AR17","v":266.47790171889028},{"$f":"DJ11*'SouthAfrica-IO-Data'!AS17","v":0},{"$f":"DW11*'SouthAfrica-IO-Data'!$AS17","v":995.23630528472938},{"$f":"DX11*'SouthAfrica-IO-Data'!$AS17","v":221.84498779859845},{"$f":"(EB11*'Default-Data'!$F$19/pv_dollar_index)/'SouthAfrica-IO-Data'!$AT17","v":0},{"$f":"(EC11*'Default-Data'!$F$19/pv_dollar_index)/'SouthAfrica-IO-Data'!$AT17","v":7.6094870530840616E-2},{"$f":"(ED11*'Default-Data'!$F$19/pv_dollar_index)/'SouthAfrica-IO-Data'!$AT17","v":1.6962067736888544E-2},null,"COTTON",0,0,null,136985.66968800029,69341.074753389606,{"$f":"EJ11*'Zambia-IO-Data'!BO15","v":0},{"$f":"EM11*'Zambia-IO-Data'!$BO15","v":30414.014451365358},{"$f":"EN11*'Zambia-IO-Data'!$BO15","v":15395.336274415693},{"$f":"EJ11*'Zambia-IO-Data'!$BN15","v":0},{"$f":"EM11*'Zambia-IO-Data'!$BN15","v":20645.087235151655},{"$f":"EN11*'Zambia-IO-Data'!$BN15","v":10450.381711630251},{"$f":"(ER11*'Default-Data'!$F$19/pv_dollar_index)/'Zambia-IO-Data'!$BP15","v":0},{"$f":"(ES11*'Default-Data'!$F$19/pv_dollar_index)/'Zambia-IO-Data'!$BP15","v":195.41479477446853},{"$f":"(ET11*'Default-Data'!$F$19/pv_dollar_index)/'Zambia-IO-Data'!$BP15","v":98.91744095011488},2940.0632573305561,603.62289184829388,{"$f":"EK11*'Zambia-IO-Data'!BO15","v":0},{"$f":"EX11*'Zambia-IO-Data'!$BO15","v":652.76263276327802},{"$f":"EY11*'Zambia-IO-Data'!$BO15","v":134.01836409357745},{"$f":"EK11*'Zambia-IO-Data'!BN15","v":0},{"$f":"EX11*'Zambia-IO-Data'!$BN15","v":443.09643893919286},{"$f":"EY11*'Zambia-IO-Data'!$BN15","v":90.971904489905768},{"$f":"(FC11*'Default-Data'!$F$19/pv_dollar_index)/'Zambia-IO-Data'!$BP15","v":0},{"$f":"(FD11*'Default-Data'!$F$19/pv_dollar_index)/'Zambia-IO-Data'!$BP15","v":4.1941019039711573},{"$f":"(FE11*'Default-Data'!$F$19/pv_dollar_index)/'Zambia-IO-Data'!$BP15","v":0.8610889285015364},null,"TTL_C20: Wood and products of wood and cork",0,0,null,162548.01082569355,21725.290327969065,{"$f":"FK11*CustomRegion1!C13","v":0},{"$f":"FN11*CustomRegion1!$C13","v":23590.745494618062},{"$f":"FO11*CustomRegion1!$C13","v":3153.0117921491878},{"$f":"FK11*CustomRegion1!D13","v":0},{"$f":"FN11*CustomRegion1!$D13","v":6117.5352984422843},{"$f":"FO11*CustomRegion1!$D13","v":817.63676943901123},{"$f":"(FS11*'Default-Data'!$C$58/pv_dollar_index)/CustomRegion1!$E13","v":0},{"$f":"(FT11*'Default-Data'!$C$58/pv_dollar_index)/CustomRegion1!$E13","v":1.8677495760104281},{"$f":"(FU11*'Default-Data'!$C$58/pv_dollar_index)/CustomRegion1!$E13","v":0.24963333351572281},6884.0239240098117,232.61996627233657,{"$f":"FL11*CustomRegion1!C13","v":0},{"$f":"FY11*CustomRegion1!$C13","v":999.08485834578653},{"$f":"FZ11*CustomRegion1!$C13","v":33.760354208099024},{"$f":"FL11*CustomRegion1!D13","v":0},{"$f":"FY11*CustomRegion1!$D13","v":259.08197299080359},{"$f":"FZ11*CustomRegion1!$D13","v":8.7547109777890491},{"$f":"(GD11*'Default-Data'!$C$58/pv_dollar_index)/CustomRegion1!$E13","v":0},{"$f":"(GE11*'Default-Data'!$C$58/pv_dollar_index)/CustomRegion1!$E13","v":7.9100523593012173E-2},{"$f":"(GF11*'Default-Data'!$C$58/pv_dollar_index)/CustomRegion1!$E13","v":2.672907783797009E-3},null,"C20 Wood and products of wood and cork",0,0,null,256914.59556393485,126152.89981930805,{"$f":"GL11*CustomRegion2!$C$13","v":0},{"$f":"GO11*CustomRegion2!C$13","v":158306.01057935177},{"$f":"GP11*CustomRegion2!D$13","v":13959.657298163696},{"$f":"GL11*CustomRegion2!D17","v":0},{"$f":"GO11*CustomRegion2!$D17","v":36152.700284854931},{"$f":"GP11*CustomRegion2!$D17","v":17752.078145742395},{"$f":"(GT11*'Default-Data'!$C$59/pv_dollar_index)/CustomRegion2!$E17","v":0},{"$f":"(GU11*'Default-Data'!$C$59/pv_dollar_index)/CustomRegion2!$E17","v":15.360454511016341},{"$f":"(GV11*'Default-Data'!$C$59/pv_dollar_index)/CustomRegion2!$E17","v":7.5424515094357787},134229.36064746664,35250.96130827273,{"$f":"GM11*CustomRegion2!C17","v":0},{"$f":"GZ11*CustomRegion2!$C17","v":56874.387221188015},{"$f":"HA11*CustomRegion2!$C17","v":14936.201839114239},{"$f":"GM11*CustomRegion2!D17","v":0},{"$f":"GZ11*CustomRegion2!$D17","v":18888.587603454875},{"$f":"HA11*CustomRegion2!$D17","v":4960.4711485294138},{"$f":"(HE11*'Default-Data'!$C$59/pv_dollar_index)/CustomRegion2!$E17","v":0},{"$f":"(HF11*'Default-Data'!$C$59/pv_dollar_index)/CustomRegion2!$E17","v":8.0253283537373807},{"$f":"(HG11*'Default-Data'!$C$59/pv_dollar_index)/CustomRegion2!$E17","v":2.1075906040167807},null,"COTTON",0,0,null,136985.66968800029,69341.074753389606,{"$f":"HM11*CustomRegion3!D16","v":0},{"$f":"HP11*CustomRegion3!$D16","v":30414.014451365358},{"$f":"HQ11*CustomRegion3!$D16","v":15395.336274415693},{"$f":"HM11*CustomRegion3!E16","v":0},{"$f":"HP11*CustomRegion3!$E16","v":20645.087235151655},{"$f":"HQ11*CustomRegion3!$E16","v":10450.381711630251},{"$f":"(HU11*'Default-Data'!$C$60/pv_dollar_index)/CustomRegion3!$F16","v":0},{"$f":"(HV11*'Default-Data'!$C$60/pv_dollar_index)/CustomRegion3!$F16","v":196.20625026651174},{"$f":"(HW11*'Default-Data'!$C$60/pv_dollar_index)/CustomRegion3!$F16","v":99.318069530920042},2940.0632573305561,603.62289184829388,{"$f":"HN11*CustomRegion3!D16","v":0},{"$f":"IA11*CustomRegion3!$D16","v":652.76263276327802},{"$f":"IB11*CustomRegion3!$D16","v":134.01836409357745},{"$f":"HN11*CustomRegion3!E16","v":0},{"$f":"IA11*CustomRegion3!$E16","v":443.09643893919286},{"$f":"IB11*CustomRegion3!$E16","v":90.971904489905768},{"$f":"(IF11*'Default-Data'!$C$60/pv_dollar_index)/CustomRegion3!$F16","v":0},{"$f":"(IG11*'Default-Data'!$C$60/pv_dollar_index)/CustomRegion3!$F16","v":4.2110885655487404},{"$f":"(IH11*'Default-Data'!$C$60/pv_dollar_index)/CustomRegion3!$F16","v":0.86457645134946959}]
[null,54,"Sales",1611998.2125102775,0,null,2735642.9391903318,2168763.2378277667,1114075.998635733,1890643.6221434888,1498864.6086802222,247983.42147860167,420840.47658326518,333633.94817667082,75.396967749775584,127.95248832183162,101.43818437910113,29666.997978016658,23064.61507373628,0,20503.304620551778,15940.299357656824,0,4563.8534872385435,3548.1690467665994,0,1.3875956390162054,1.0787865801460339,null,11,"TTL_C21T22: Pulp, paper, paper products, printing and publishing",0,0,null,569838.63502130168,312417.551965822,{"$f":"AF12*'Colombia-IO-Data'!AN18","v":0},{"$f":"AI12*'Colombia-IO-Data'!$AN18","v":181926.85218861428},{"$f":"AJ12*'Colombia-IO-Data'!$AN18","v":99742.520609347834},{"$f":"AK12*'Colombia-IO-Data'!$AO18","v":0},{"$f":"AL12*'Colombia-IO-Data'!$AO18","v":74673.109796261168},{"$f":"AM12*'Colombia-IO-Data'!$AO18","v":40939.993756918331},{"$f":"(AN12*'Default-Data'!$F$19/pv_dollar_index)/'Colombia-IO-Data'!$AP18","v":0},{"$f":"(AO12*'Default-Data'!$F$19/pv_dollar_index)/'Colombia-IO-Data'!$AP18","v":17.22926591520504},{"$f":"(AP12*'Default-Data'!$F$19/pv_dollar_index)/'Colombia-IO-Data'!$AP18","v":9.4460514759504157},3293.3860894793979,2994.3658885777359,{"$f":"'Colombia-IO-Data'!$AN18*Calculations!AG12","v":0},{"$f":"'Colombia-IO-Data'!$AN18*Calculations!AT12","v":1051.4474229680113},{"$f":"'Colombia-IO-Data'!$AN18*Calculations!AU12","v":955.98214464617058},{"$f":"AV12*'Colombia-IO-Data'!$AO18","v":0},{"$f":"AW12*'Colombia-IO-Data'!$AO18","v":431.57372271183584},{"$f":"AX12*'Colombia-IO-Data'!$AO18","v":392.38935204803346},{"$f":"(AY12*'Default-Data'!$F$19/pv_dollar_index)/'Colombia-IO-Data'!$AP18","v":0},{"$f":"(AZ12*'Default-Data'!$F$19/pv_dollar_index)/'Colombia-IO-Data'!$AP18","v":9.9576654178523114E-2},{"$f":"(BA12*'Default-Data'!$F$19/pv_dollar_index)/'Colombia-IO-Data'!$AP18","v":9.0535676191552852E-2},null,"DOM_C21T22: Pulp, paper, paper products, printing and publishing",0,0,null,459422.94536670682,209112.01085729152,{"$f":"BG12*'Mexico-IO-Data'!AQ18","v":0},{"$f":"BJ12*'Mexico-IO-Data'!$AQ18","v":205661.42461165841},{"$f":"BK12*'Mexico-IO-Data'!$AQ18","v":93609.329899689663},{"$f":"BG12*'Mexico-IO-Data'!AR18","v":0},{"$f":"BJ12*'Mexico-IO-Data'!$AR18","v":63988.343691067734},{"$f":"BK12*'Mexico-IO-Data'!$AR18","v":29125.082575025266},{"$f":"(Calculations!BO12*'Default-Data'!$F$19/pv_dollar_index)/'Mexico-IO-Data'!$AS18","v":0},{"$f":"(Calculations!BP12*'Default-Data'!$F$19/pv_dollar_index)/'Mexico-IO-Data'!$AS18","v":8.5152455885995479},{"$f":"(Calculations!BQ12*'Default-Data'!$F$19/pv_dollar_index)/'Mexico-IO-Data'!$AS18","v":3.8758188852636497},3092.9095737301932,3006.2467717328391,{"$f":"BH12*'Mexico-IO-Data'!AQ18","v":0},{"$f":"BU12*'Mexico-IO-Data'!$AQ18","v":1384.5459734725837},{"$f":"BV12*'Mexico-IO-Data'!$AQ18","v":1345.7512299810769},{"$f":"BH12*'Mexico-IO-Data'!AR18","v":0},{"$f":"BU12*'Mexico-IO-Data'!$AR18","v":430.7798789876972},{"$f":"BV12*'Mexico-IO-Data'!$AR18","v":418.709499797099},{"$f":"(BZ12*'Default-Data'!$F$19/pv_dollar_index)/'Mexico-IO-Data'!$AS18","v":0},{"$f":"(CA12*'Default-Data'!$F$19/pv_dollar_index)/'Mexico-IO-Data'!$AS18","v":5.7326010529625368E-2},{"$f":"(CB12*'Default-Data'!$F$19/pv_dollar_index)/'Mexico-IO-Data'!$AS18","v":5.5719745431536689E-2},null,"TTL_C21T22: Pulp, paper, paper products, printing and publishing",0,0,null,348975.10790834052,220690.46198080655,{"$f":"CH12*'Philippines-IO-Data'!AN18","v":0},{"$f":"'Philippines-IO-Data'!$AN18*Calculations!CK12","v":92387.395802632382},{"$f":"'Philippines-IO-Data'!$AN18*Calculations!CL12","v":58425.41946069635},{"$f":"CH12*'Philippines-IO-Data'!AO18","v":0},{"$f":"'Philippines-IO-Data'!$AO18*Calculations!CK12","v":27389.712762592262},{"$f":"'Philippines-IO-Data'!$AO18*Calculations!CL12","v":17321.144763957567},{"$f":"(CP12*'Default-Data'!$F$19/pv_dollar_index)/'Philippines-IO-Data'!$AP18","v":0},{"$f":"(CQ12*'Default-Data'!$F$19/pv_dollar_index)/'Philippines-IO-Data'!$AP18","v":8.3275780192224733},{"$f":"(CR12*'Default-Data'!$F$19/pv_dollar_index)/'Philippines-IO-Data'!$AP18","v":5.2663270204536374},1634.4382046531134,2347.0245471011467,{"$f":"CI12*'Philippines-IO-Data'!AN18","v":0},{"$f":"'Philippines-IO-Data'!$AN18*Calculations!CV12","v":432.69988576919388},{"$f":"'Philippines-IO-Data'!$AN18*Calculations!CW12","v":621.34943403608088},{"$f":"'Philippines-IO-Data'!AO18*Calculations!CI12","v":0},{"$f":"'Philippines-IO-Data'!$AO18*Calculations!CV12","v":128.28076255058832},{"$f":"'Philippines-IO-Data'!$AO18*Calculations!CW12","v":184.2089213100497},{"$f":"(DA12*'Default-Data'!$F$19/pv_dollar_index)/'Philippines-IO-Data'!$AP18","v":0},{"$f":"(DB12*'Default-Data'!$F$19/pv_dollar_index)/'Philippines-IO-Data'!$AP18","v":3.9002528714516968E-2},{"$f":"(DC12*'Default-Data'!$F$19/pv_dollar_index)/'Philippines-IO-Data'!$AP18","v":5.6006946014466617E-2},null,"DOM_C21T22: Pulp, paper, paper products, printing and publishing",0,0,null,1078030.5138796857,901738.91961084423,{"$f":"DI12*'SouthAfrica-IO-Data'!AR18","v":0},{"$f":"DL12*'SouthAfrica-IO-Data'!$AR18","v":247632.78669707524},{"$f":"DM12*'SouthAfrica-IO-Data'!$AR18","v":207137.10666019685},{"$f":"DI12*'SouthAfrica-IO-Data'!AS18","v":0},{"$f":"DL12*'SouthAfrica-IO-Data'!$AS18","v":206435.0040209697},{"$f":"DM12*'SouthAfrica-IO-Data'!$AS18","v":172676.44570263522},{"$f":"(DQ12*'Default-Data'!$F$19/pv_dollar_index)/'SouthAfrica-IO-Data'!$AT18","v":0},{"$f":"(DR12*'Default-Data'!$F$19/pv_dollar_index)/'SouthAfrica-IO-Data'!$AT18","v":15.78383427191709},{"$f":"(DS12*'Default-Data'!$F$19/pv_dollar_index)/'SouthAfrica-IO-Data'!$AT18","v":13.202685341858146},11988.665057108843,9505.1888847130795,{"$f":"DJ12*'SouthAfrica-IO-Data'!AR18","v":0},{"$f":"DW12*'SouthAfrica-IO-Data'!$AR18","v":2753.8984274067097},{"$f":"DX12*'SouthAfrica-IO-Data'!$AR18","v":2183.4228078874785},{"$f":"DJ12*'SouthAfrica-IO-Data'!AS18","v":0},{"$f":"DW12*'SouthAfrica-IO-Data'!$AS18","v":2295.7421774301774},{"$f":"DX12*'SouthAfrica-IO-Data'!$AS18","v":1820.1745501378398},{"$f":"(EB12*'Default-Data'!$F$19/pv_dollar_index)/'SouthAfrica-IO-Data'!$AT18","v":0},{"$f":"(EC12*'Default-Data'!$F$19/pv_dollar_index)/'SouthAfrica-IO-Data'!$AT18","v":0.1755303768925118},{"$f":"(ED12*'Default-Data'!$F$19/pv_dollar_index)/'SouthAfrica-IO-Data'!$AT18","v":0.13916890491313469},null,"TOBAC",0,0,null,6648.1681523915513,21517.581520490712,{"$f":"EJ12*'Zambia-IO-Data'!BO16","v":0},{"$f":"EM12*'Zambia-IO-Data'!$BO16","v":1909.6737221808112},{"$f":"EN12*'Zambia-IO-Data'!$BO16","v":6180.8845764201424},{"$f":"EJ12*'Zambia-IO-Data'!$BN16","v":0},{"$f":"EM12*'Zambia-IO-Data'!$BN16","v":1333.9211742024281},{"$f":"EN12*'Zambia-IO-Data'!$BN16","v":4317.3934458147205},{"$f":"(ER12*'Default-Data'!$F$19/pv_dollar_index)/'Zambia-IO-Data'!$BP16","v":0},{"$f":"(ES12*'Default-Data'!$F$19/pv_dollar_index)/'Zambia-IO-Data'!$BP16","v":12.626148271161362},{"$f":"(ET12*'Default-Data'!$F$19/pv_dollar_index)/'Zambia-IO-Data'!$BP16","v":40.866020306177774},121.36013129209545,187.24339943515554,{"$f":"EK12*'Zambia-IO-Data'!BO16","v":0},{"$f":"EX12*'Zambia-IO-Data'!$BO16","v":34.86046807729393},{"$f":"EY12*'Zambia-IO-Data'!$BO16","v":53.785312187762813},{"$f":"EK12*'Zambia-IO-Data'!BN16","v":0},{"$f":"EX12*'Zambia-IO-Data'!$BN16","v":24.350293964252067},{"$f":"EY12*'Zambia-IO-Data'!$BN16","v":37.569437100706864},{"$f":"(FC12*'Default-Data'!$F$19/pv_dollar_index)/'Zambia-IO-Data'!$BP16","v":0},{"$f":"(FD12*'Default-Data'!$F$19/pv_dollar_index)/'Zambia-IO-Data'!$BP16","v":0.23048619962333344},{"$f":"(FE12*'Default-Data'!$F$19/pv_dollar_index)/'Zambia-IO-Data'!$BP16","v":0.35561118038419393},null,"TTL_C21T22: Pulp, paper, paper products, printing and publishing",0,0,null,624051.81453747221,418406.74172832246,{"$f":"FK12*CustomRegion1!C14","v":0},{"$f":"FN12*CustomRegion1!$C14","v":165210.98692852195},{"$f":"FO12*CustomRegion1!$C14","v":110768.67197272221},{"$f":"FK12*CustomRegion1!D14","v":0},{"$f":"FN12*CustomRegion1!$D14","v":48979.424497076994},{"$f":"FO12*CustomRegion1!$D14","v":32839.134408637809},{"$f":"(FS12*'Default-Data'!$C$58/pv_dollar_index)/CustomRegion1!$E14","v":0},{"$f":"(FT12*'Default-Data'!$C$58/pv_dollar_index)/CustomRegion1!$E14","v":14.953947116732506},{"$f":"(FU12*'Default-Data'!$C$58/pv_dollar_index)/CustomRegion1!$E14","v":10.026142290327382},3639.5030984693558,4480.0212415876276,{"$f":"FL12*CustomRegion1!C14","v":0},{"$f":"FY12*CustomRegion1!$C14","v":963.5191899460948},{"$f":"FZ12*CustomRegion1!$C14","v":1186.0373025788081},{"$f":"FL12*CustomRegion1!D14","v":0},{"$f":"FY12*CustomRegion1!$D14","v":285.65058712388958},{"$f":"FZ12*CustomRegion1!$D14","v":351.61962041609667},{"$f":"(GD12*'Default-Data'!$C$58/pv_dollar_index)/CustomRegion1!$E14","v":0},{"$f":"(GE12*'Default-Data'!$C$58/pv_dollar_index)/CustomRegion1!$E14","v":8.72122083420796E-2},{"$f":"(GF12*'Default-Data'!$C$58/pv_dollar_index)/CustomRegion1!$E14","v":0.1073532664562374},null,"C21T22 Pulp, paper, paper products, printing and publishing",0,0,null,841307.87425671669,538296.07631635771,{"$f":"GL12*CustomRegion2!$C$13","v":0},{"$f":"GO12*CustomRegion2!C$13","v":518398.31423447496},{"$f":"GP12*CustomRegion2!D$13","v":59566.040583178263},{"$f":"GL12*CustomRegion2!D18","v":0},{"$f":"GO12*CustomRegion2!$D18","v":113051.9931586983},{"$f":"GP12*CustomRegion2!$D18","v":72334.333481468857},{"$f":"(GT12*'Default-Data'!$C$59/pv_dollar_index)/CustomRegion2!$E18","v":0},{"$f":"(GU12*'Default-Data'!$C$59/pv_dollar_index)/CustomRegion2!$E18","v":15.044388251002228},{"$f":"(GV12*'Default-Data'!$C$59/pv_dollar_index)/CustomRegion2!$E18","v":9.6258877563093943},130926.34534426359,150416.31374151481,{"$f":"GM12*CustomRegion2!C18","v":0},{"$f":"GZ12*CustomRegion2!$C18","v":45727.29779394393},{"$f":"HA12*CustomRegion2!$C18","v":52534.358561982932},{"$f":"GM12*CustomRegion2!D18","v":0},{"$f":"GZ12*CustomRegion2!$D18","v":17593.421803201301},{"$f":"HA12*CustomRegion2!$D18","v":20212.415207792867},{"$f":"(HE12*'Default-Data'!$C$59/pv_dollar_index)/CustomRegion2!$E18","v":0},{"$f":"(HF12*'Default-Data'!$C$59/pv_dollar_index)/CustomRegion2!$E18","v":2.3412437134076591},{"$f":"(HG12*'Default-Data'!$C$59/pv_dollar_index)/CustomRegion2!$E18","v":2.6897661277818998},null,"TOBAC",0,0,null,6648.1681523915513,21517.581520490712,{"$f":"HM12*CustomRegion3!D17","v":0},{"$f":"HP12*CustomRegion3!$D17","v":1909.6737221808112},{"$f":"HQ12*CustomRegion3!$D17","v":6180.8845764201424},{"$f":"HM12*CustomRegion3!E17","v":0},{"$f":"HP12*CustomRegion3!$E17","v":1333.9211742024281},{"$f":"HQ12*CustomRegion3!$E17","v":4317.3934458147205},{"$f":"(HU12*'Default-Data'!$C$60/pv_dollar_index)/CustomRegion3!$F17","v":0},{"$f":"(HV12*'Default-Data'!$C$60/pv_dollar_index)/CustomRegion3!$F17","v":12.677285823996579},{"$f":"(HW12*'Default-Data'!$C$60/pv_dollar_index)/CustomRegion3!$F17","v":41.031533036401711},121.36013129209545,187.24339943515554,{"$f":"HN12*CustomRegion3!D17","v":0},{"$f":"IA12*CustomRegion3!$D17","v":34.86046807729393},{"$f":"IB12*CustomRegion3!$D17","v":53.785312187762813},{"$f":"HN12*CustomRegion3!E17","v":0},{"$f":"IA12*CustomRegion3!$E17","v":24.350293964252067},{"$f":"IB12*CustomRegion3!$E17","v":37.569437100706864},{"$f":"(IF12*'Default-Data'!$C$60/pv_dollar_index)/CustomRegion3!$F17","v":0},{"$f":"(IG12*'Default-Data'!$C$60/pv_dollar_index)/CustomRegion3!$F17","v":0.2314196988946787},{"$f":"(IH12*'Default-Data'!$C$60/pv_dollar_index)/CustomRegion3!$F17","v":0.35705145220226103}]
[null,55,"Transportation and Warehousing",0,0,null,349662.75678267673,539152.36174372095,0,154559.33677142434,238318.29336530878,0,57516.280366622763,88685.562865513028,0,17.487270358770758,26.963990106164275,2954.077841177389,5733.8401319315844,0,1305.7733574620106,2534.4950548894935,0,485.91840578431345,943.1635203017679,0,0.14773880508420845,0.28675977248379642,null,12,"TTL_C23: Coke, refined petroleum products and nuclear fuel",0,0,null,529628.13898543338,483867.64727335994,{"$f":"AF13*'Colombia-IO-Data'!AN19","v":0},{"$f":"AI13*'Colombia-IO-Data'!$AN19","v":285906.04918995447},{"$f":"AJ13*'Colombia-IO-Data'!$AN19","v":261203.43157705528},{"$f":"AK13*'Colombia-IO-Data'!$AO19","v":0},{"$f":"AL13*'Colombia-IO-Data'!$AO19","v":14984.473233339773},{"$f":"AM13*'Colombia-IO-Data'!$AO19","v":13689.797190413567},{"$f":"(AN13*'Default-Data'!$F$19/pv_dollar_index)/'Colombia-IO-Data'!$AP19","v":0},{"$f":"(AO13*'Default-Data'!$F$19/pv_dollar_index)/'Colombia-IO-Data'!$AP19","v":3.4573553269829098},{"$f":"(AP13*'Default-Data'!$F$19/pv_dollar_index)/'Colombia-IO-Data'!$AP19","v":3.158635776150196},9243.0968026965602,4637.6292511895081,{"$f":"'Colombia-IO-Data'!$AN19*Calculations!AG13","v":0},{"$f":"'Colombia-IO-Data'!$AN19*Calculations!AT13","v":4989.6466872051069},{"$f":"'Colombia-IO-Data'!$AN19*Calculations!AU13","v":2503.5041743728552},{"$f":"AV13*'Colombia-IO-Data'!$AO19","v":0},{"$f":"AW13*'Colombia-IO-Data'!$AO19","v":261.50977721556512},{"$f":"AX13*'Colombia-IO-Data'!$AO19","v":131.20985511405021},{"$f":"(AY13*'Default-Data'!$F$19/pv_dollar_index)/'Colombia-IO-Data'!$AP19","v":0},{"$f":"(AZ13*'Default-Data'!$F$19/pv_dollar_index)/'Colombia-IO-Data'!$AP19","v":6.0337938293532727E-2},{"$f":"(BA13*'Default-Data'!$F$19/pv_dollar_index)/'Colombia-IO-Data'!$AP19","v":3.0273943198876746E-2},null,"DOM_C23: Coke, refined petroleum products and nuclear fuel",0,0,null,1449811.5731478557,585069.29331288161,{"$f":"BG13*'Mexico-IO-Data'!AQ19","v":0},{"$f":"BJ13*'Mexico-IO-Data'!$AQ19","v":181881.46486272063},{"$f":"BK13*'Mexico-IO-Data'!$AQ19","v":73397.99328742933},{"$f":"BG13*'Mexico-IO-Data'!AR19","v":0},{"$f":"BJ13*'Mexico-IO-Data'!$AR19","v":46555.560458760068},{"$f":"BK13*'Mexico-IO-Data'!$AR19","v":18787.426836614206},{"$f":"(Calculations!BO13*'Default-Data'!$F$19/pv_dollar_index)/'Mexico-IO-Data'!$AS19","v":0},{"$f":"(Calculations!BP13*'Default-Data'!$F$19/pv_dollar_index)/'Mexico-IO-Data'!$AS19","v":1.0104657020804544},{"$f":"(Calculations!BQ13*'Default-Data'!$F$19/pv_dollar_index)/'Mexico-IO-Data'!$AS19","v":0.40777192373317106},11798.58562610105,8411.1030593178202,{"$f":"BH13*'Mexico-IO-Data'!AQ19","v":0},{"$f":"BU13*'Mexico-IO-Data'!$AQ19","v":1480.1537501347079},{"$f":"BV13*'Mexico-IO-Data'!$AQ19","v":1055.1879801997004},{"$f":"BH13*'Mexico-IO-Data'!AR19","v":0},{"$f":"BU13*'Mexico-IO-Data'!$AR19","v":378.8697625382984},{"$f":"BV13*'Mexico-IO-Data'!$AR19","v":270.09276533275249},{"$f":"(BZ13*'Default-Data'!$F$19/pv_dollar_index)/'Mexico-IO-Data'!$AS19","v":0},{"$f":"(CA13*'Default-Data'!$F$19/pv_dollar_index)/'Mexico-IO-Data'!$AS19","v":8.223183156380218E-3},{"$f":"(CB13*'Default-Data'!$F$19/pv_dollar_index)/'Mexico-IO-Data'!$AS19","v":5.8622315585819054E-3},null,"TTL_C23: Coke, refined petroleum products and nuclear fuel",0,0,null,3567378.3610461825,927241.33669035649,{"$f":"CH13*'Philippines-IO-Data'!AN19","v":0},{"$f":"'Philippines-IO-Data'!$AN19*Calculations!CK13","v":605927.80714052473},{"$f":"'Philippines-IO-Data'!$AN19*Calculations!CL13","v":157494.17442395122},{"$f":"CH13*'Philippines-IO-Data'!AO19","v":0},{"$f":"'Philippines-IO-Data'!$AO19*Calculations!CK13","v":82381.322478208429},{"$f":"'Philippines-IO-Data'!$AO19*Calculations!CL13","v":21412.746236037507},{"$f":"(CP13*'Default-Data'!$F$19/pv_dollar_index)/'Philippines-IO-Data'!$AP19","v":0},{"$f":"(CQ13*'Default-Data'!$F$19/pv_dollar_index)/'Philippines-IO-Data'!$AP19","v":25.04724661446496},{"$f":"(CR13*'Default-Data'!$F$19/pv_dollar_index)/'Philippines-IO-Data'!$AP19","v":6.5103389886567831},32056.487321930679,9861.1338195867247,{"$f":"CI13*'Philippines-IO-Data'!AN19","v":0},{"$f":"'Philippines-IO-Data'!$AN19*Calculations!CV13","v":5444.8715840472723},{"$f":"'Philippines-IO-Data'!$AN19*Calculations!CW13","v":1674.9373311411694},{"$f":"'Philippines-IO-Data'!AO19*Calculations!CI13","v":0},{"$f":"'Philippines-IO-Data'!$AO19*Calculations!CV13","v":740.27914964761521},{"$f":"'Philippines-IO-Data'!$AO19*Calculations!CW13","v":227.7227596777544},{"$f":"(DA13*'Default-Data'!$F$19/pv_dollar_index)/'Philippines-IO-Data'!$AP19","v":0},{"$f":"(DB13*'Default-Data'!$F$19/pv_dollar_index)/'Philippines-IO-Data'!$AP19","v":0.2250747362021891},{"$f":"(DC13*'Default-Data'!$F$19/pv_dollar_index)/'Philippines-IO-Data'!$AP19","v":6.9236908922942236E-2},null,"DOM_C23: Coke, refined petroleum products and nuclear fuel",0,0,null,765704.68502621853,1332179.3411879218,{"$f":"DI13*'SouthAfrica-IO-Data'!AR19","v":0},{"$f":"DL13*'SouthAfrica-IO-Data'!$AR19","v":162461.25244108465},{"$f":"DM13*'SouthAfrica-IO-Data'!$AR19","v":282651.43008510926},{"$f":"DI13*'SouthAfrica-IO-Data'!AS19","v":0},{"$f":"DL13*'SouthAfrica-IO-Data'!$AS19","v":30805.48986827226},{"$f":"DM13*'SouthAfrica-IO-Data'!$AS19","v":53595.645945774697},{"$f":"(DQ13*'Default-Data'!$F$19/pv_dollar_index)/'SouthAfrica-IO-Data'!$AT19","v":0},{"$f":"(DR13*'Default-Data'!$F$19/pv_dollar_index)/'SouthAfrica-IO-Data'!$AT19","v":2.3553599790500606},{"$f":"(DS13*'Default-Data'!$F$19/pv_dollar_index)/'SouthAfrica-IO-Data'!$AT19","v":4.097874763615776},12886.303309838209,14042.441765481888,{"$f":"DJ13*'SouthAfrica-IO-Data'!AR19","v":0},{"$f":"DW13*'SouthAfrica-IO-Data'!$AR19","v":2734.1154050537452},{"$f":"DX13*'SouthAfrica-IO-Data'!$AR19","v":2979.4158520436213},{"$f":"DJ13*'SouthAfrica-IO-Data'!AS19","v":0},{"$f":"DW13*'SouthAfrica-IO-Data'!$AS19","v":518.43601562541255},{"$f":"DX13*'SouthAfrica-IO-Data'!$AS19","v":564.94926306679622},{"$f":"(EB13*'Default-Data'!$F$19/pv_dollar_index)/'SouthAfrica-IO-Data'!$AT19","v":0},{"$f":"(EC13*'Default-Data'!$F$19/pv_dollar_index)/'SouthAfrica-IO-Data'!$AT19","v":3.9639150298334626E-2},{"$f":"(ED13*'Default-Data'!$F$19/pv_dollar_index)/'SouthAfrica-IO-Data'!$AT19","v":4.3195511258266095E-2},null,"COFFEE",0,0,null,156.18244644274256,13298.574822157805,{"$f":"EJ13*'Zambia-IO-Data'!BO17","v":0},{"$f":"EM13*'Zambia-IO-Data'!$BO17","v":49.856261220633762},{"$f":"EN13*'Zambia-IO-Data'!$BO17","v":4245.1455672306229},{"$f":"EJ13*'Zambia-IO-Data'!$BN17","v":0},{"$f":"EM13*'Zambia-IO-Data'!$BN17","v":39.648047241513808},{"$f":"EN13*'Zambia-IO-Data'!$BN17","v":3375.9397089929466},{"$f":"(ER13*'Default-Data'!$F$19/pv_dollar_index)/'Zambia-IO-Data'!$BP17","v":0},{"$f":"(ES13*'Default-Data'!$F$19/pv_dollar_index)/'Zambia-IO-Data'!$BP17","v":0.37528613595378391},{"$f":"(ET13*'Default-Data'!$F$19/pv_dollar_index)/'Zambia-IO-Data'!$BP17","v":31.954748259943091},1.8139807927066236,115.71545766100344,{"$f":"EK13*'Zambia-IO-Data'!BO17","v":0},{"$f":"EX13*'Zambia-IO-Data'!$BO17","v":0.5790554720472314},{"$f":"EY13*'Zambia-IO-Data'!$BO17","v":36.938466619084338},{"$f":"EK13*'Zambia-IO-Data'!BN17","v":0},{"$f":"EX13*'Zambia-IO-Data'!$BN17","v":0.46049218591794494},{"$f":"EY13*'Zambia-IO-Data'!$BN17","v":29.375208523185766},{"$f":"(FC13*'Default-Data'!$F$19/pv_dollar_index)/'Zambia-IO-Data'!$BP17","v":0},{"$f":"(FD13*'Default-Data'!$F$19/pv_dollar_index)/'Zambia-IO-Data'!$BP17","v":4.3587602697645169E-3},{"$f":"(FE13*'Default-Data'!$F$19/pv_dollar_index)/'Zambia-IO-Data'!$BP17","v":0.27804921721239689},null,"TTL_C23: Coke, refined petroleum products and nuclear fuel",0,0,null,6011686.7994029364,1797266.3676360874,{"$f":"FK13*CustomRegion1!C15","v":0},{"$f":"FN13*CustomRegion1!$C15","v":1021099.4828453253},{"$f":"FO13*CustomRegion1!$C15","v":305270.02150390978},{"$f":"FK13*CustomRegion1!D15","v":0},{"$f":"FN13*CustomRegion1!$D15","v":138827.63719920165},{"$f":"FO13*CustomRegion1!$D15","v":41504.198665387943},{"$f":"(FS13*'Default-Data'!$C$58/pv_dollar_index)/CustomRegion1!$E15","v":0},{"$f":"(FT13*'Default-Data'!$C$58/pv_dollar_index)/CustomRegion1!$E15","v":42.385576521865453},{"$f":"(FU13*'Default-Data'!$C$58/pv_dollar_index)/CustomRegion1!$E15","v":12.671679962299489},56187.653283824533,19243.933476169579,{"$f":"FL13*CustomRegion1!C15","v":0},{"$f":"FY13*CustomRegion1!$C15","v":9543.6082458759847},{"$f":"FZ13*CustomRegion1!$C15","v":3268.6284525631277},{"$f":"FL13*CustomRegion1!D15","v":0},{"$f":"FY13*CustomRegion1!$D15","v":1297.5391775127134},{"$f":"FZ13*CustomRegion1!$D15","v":444.39936810756279},{"$f":"(GD13*'Default-Data'!$C$58/pv_dollar_index)/CustomRegion1!$E15","v":0},{"$f":"(GE13*'Default-Data'!$C$58/pv_dollar_index)/CustomRegion1!$E15","v":0.39615272007885},{"$f":"(GF13*'Default-Data'!$C$58/pv_dollar_index)/CustomRegion1!$E15","v":0.13567992514461721},null,"C23 Coke, refined petroleum products and nuclear fuel",0,0,null,1327783.3391198479,875982.56473596953,{"$f":"GL13*CustomRegion2!$C$13","v":0},{"$f":"GO13*CustomRegion2!C$13","v":818155.47640805412},{"$f":"GP13*CustomRegion2!D$13","v":96933.296185784842},{"$f":"GL13*CustomRegion2!D19","v":0},{"$f":"GO13*CustomRegion2!$D19","v":94189.310347178107},{"$f":"GP13*CustomRegion2!$D19","v":62139.801892171468},{"$f":"(GT13*'Default-Data'!$C$59/pv_dollar_index)/CustomRegion2!$E19","v":0},{"$f":"(GU13*'Default-Data'!$C$59/pv_dollar_index)/CustomRegion2!$E19","v":2.0443329791452793},{"$f":"(GV13*'Default-Data'!$C$59/pv_dollar_index)/CustomRegion2!$E19","v":1.3487140510688143},273615.59780931479,244776.20047147729,{"$f":"GM13*CustomRegion2!C19","v":0},{"$f":"GZ13*CustomRegion2!$C19","v":45752.968597316336},{"$f":"HA13*CustomRegion2!$C19","v":40930.553313509416},{"$f":"GM13*CustomRegion2!D19","v":0},{"$f":"GZ13*CustomRegion2!$D19","v":19409.540471394652},{"$f":"HA13*CustomRegion2!$D19","v":17363.752679028043},{"$f":"(HE13*'Default-Data'!$C$59/pv_dollar_index)/CustomRegion2!$E19","v":0},{"$f":"(HF13*'Default-Data'!$C$59/pv_dollar_index)/CustomRegion2!$E19","v":0.42127459633656711},{"$f":"(HG13*'Default-Data'!$C$59/pv_dollar_index)/CustomRegion2!$E19","v":0.37687177146342399},null,"COFFEE",0,0,null,156.18244644274256,13298.574822157805,{"$f":"HM13*CustomRegion3!D18","v":0},{"$f":"HP13*CustomRegion3!$D18","v":49.856261220633762},{"$f":"HQ13*CustomRegion3!$D18","v":4245.1455672306229},{"$f":"HM13*CustomRegion3!E18","v":0},{"$f":"HP13*CustomRegion3!$E18","v":39.648047241513808},{"$f":"HQ13*CustomRegion3!$E18","v":3375.9397089929466},{"$f":"(HU13*'Default-Data'!$C$60/pv_dollar_index)/CustomRegion3!$F18","v":0},{"$f":"(HV13*'Default-Data'!$C$60/pv_dollar_index)/CustomRegion3!$F18","v":0.37680609391669601},{"$f":"(HW13*'Default-Data'!$C$60/pv_dollar_index)/CustomRegion3!$F18","v":32.084169172194784},1.8139807927066236,115.71545766100344,{"$f":"HN13*CustomRegion3!D18","v":0},{"$f":"IA13*CustomRegion3!$D18","v":0.5790554720472314},{"$f":"IB13*CustomRegion3!$D18","v":36.938466619084338},{"$f":"HN13*CustomRegion3!E18","v":0},{"$f":"IA13*CustomRegion3!$E18","v":0.46049218591794494},{"$f":"IB13*CustomRegion3!$E18","v":29.375208523185766},{"$f":"(IF13*'Default-Data'!$C$60/pv_dollar_index)/CustomRegion3!$F18","v":0},{"$f":"(IG13*'Default-Data'!$C$60/pv_dollar_index)/CustomRegion3!$F18","v":4.376413819271791E-3},{"$f":"(IH13*'Default-Data'!$C$60/pv_dollar_index)/CustomRegion3!$F18","v":0.2791753529293729}]
[null,56,"Information",0,0,null,247412.6647121188,477303.82695460424,0,149857.3161004486,289101.89603720146,0,26573.143624320834,51264.405404875841,0,6.5770191578735302,12.688260795620533,1545.1509287424858,5076.086153579221,0,935.894576863682,3074.5744085297488,0,165.95560133715185,545.19265036588831,0,4.1075048732732183E-2,0.1349385890085836,null,13,"TTL_C24: Chemicals and chemical products",0,0,null,646471.54118692409,572457.12475836696,{"$f":"AF14*'Colombia-IO-Data'!AN20","v":0},{"$f":"AI14*'Colombia-IO-Data'!$AN20","v":199944.03427022696},{"$f":"AJ14*'Colombia-IO-Data'!$AN20","v":177052.47590756224},{"$f":"AK14*'Colombia-IO-Data'!$AO20","v":0},{"$f":"AL14*'Colombia-IO-Data'!$AO20","v":73355.85612882569},{"$f":"AM14*'Colombia-IO-Data'!$AO20","v":64957.356678990902},{"$f":"(AN14*'Default-Data'!$F$19/pv_dollar_index)/'Colombia-IO-Data'!$AP20","v":0},{"$f":"(AO14*'Default-Data'!$F$19/pv_dollar_index)/'Colombia-IO-Data'!$AP20","v":16.925337047424563},{"$f":"(AP14*'Default-Data'!$F$19/pv_dollar_index)/'Colombia-IO-Data'!$AP20","v":14.987558097214675},9657.2077529019443,5486.7150589454432,{"$f":"'Colombia-IO-Data'!$AN20*Calculations!AG14","v":0},{"$f":"'Colombia-IO-Data'!$AN20*Calculations!AT14","v":2986.8307495110867},{"$f":"'Colombia-IO-Data'!$AN20*Calculations!AU14","v":1696.959376993759},{"$f":"AV14*'Colombia-IO-Data'!$AO20","v":0},{"$f":"AW14*'Colombia-IO-Data'!$AO20","v":1095.814273939123},{"$f":"AX14*'Colombia-IO-Data'!$AO20","v":622.58375634742345},{"$f":"(AY14*'Default-Data'!$F$19/pv_dollar_index)/'Colombia-IO-Data'!$AP20","v":0},{"$f":"(AZ14*'Default-Data'!$F$19/pv_dollar_index)/'Colombia-IO-Data'!$AP20","v":0.25283633654587406},{"$f":"(BA14*'Default-Data'!$F$19/pv_dollar_index)/'Colombia-IO-Data'!$AP20","v":0.14364824395105158},null,"DOM_C24: Chemicals and chemical products",0,0,null,1771480.9287341293,557462.75677954545,{"$f":"BG14*'Mexico-IO-Data'!AQ20","v":0},{"$f":"BJ14*'Mexico-IO-Data'!$AQ20","v":519660.85145821265},{"$f":"BK14*'Mexico-IO-Data'!$AQ20","v":163530.73078314756},{"$f":"BG14*'Mexico-IO-Data'!AR20","v":0},{"$f":"BJ14*'Mexico-IO-Data'!$AR20","v":113756.41537241454},{"$f":"BK14*'Mexico-IO-Data'!$AR20","v":35797.712459812115},{"$f":"(Calculations!BO14*'Default-Data'!$F$19/pv_dollar_index)/'Mexico-IO-Data'!$AS20","v":0},{"$f":"(Calculations!BP14*'Default-Data'!$F$19/pv_dollar_index)/'Mexico-IO-Data'!$AS20","v":8.7793593856537502},{"$f":"(Calculations!BQ14*'Default-Data'!$F$19/pv_dollar_index)/'Mexico-IO-Data'!$AS20","v":2.7627539232850822},10040.306592965475,8014.2245586911577,{"$f":"BH14*'Mexico-IO-Data'!AQ20","v":0},{"$f":"BU14*'Mexico-IO-Data'!$AQ20","v":2945.3064881315554},{"$f":"BV14*'Mexico-IO-Data'!$AQ20","v":2350.958844881709},{"$f":"BH14*'Mexico-IO-Data'!AR20","v":0},{"$f":"BU14*'Mexico-IO-Data'!$AR20","v":644.74263805477926},{"$f":"BV14*'Mexico-IO-Data'!$AR20","v":514.63690237847538},{"$f":"(BZ14*'Default-Data'!$F$19/pv_dollar_index)/'Mexico-IO-Data'!$AS20","v":0},{"$f":"(CA14*'Default-Data'!$F$19/pv_dollar_index)/'Mexico-IO-Data'!$AS20","v":4.9759192149351213E-2},{"$f":"(CB14*'Default-Data'!$F$19/pv_dollar_index)/'Mexico-IO-Data'!$AS20","v":3.9718044070821537E-2},null,"TTL_C24: Chemicals and chemical products",0,0,null,672520.84940151265,455253.16070656572,{"$f":"CH14*'Philippines-IO-Data'!AN20","v":0},{"$f":"'Philippines-IO-Data'!$AN20*Calculations!CK14","v":181493.45984704554},{"$f":"'Philippines-IO-Data'!$AN20*Calculations!CL14","v":122859.34527749945},{"$f":"CH14*'Philippines-IO-Data'!AO20","v":0},{"$f":"'Philippines-IO-Data'!$AO20*Calculations!CK14","v":47066.04297800592},{"$f":"'Philippines-IO-Data'!$AO20*Calculations!CL14","v":31860.669965483547},{"$f":"(CP14*'Default-Data'!$F$19/pv_dollar_index)/'Philippines-IO-Data'!$AP20","v":0},{"$f":"(CQ14*'Default-Data'!$F$19/pv_dollar_index)/'Philippines-IO-Data'!$AP20","v":14.30997646279541},{"$f":"(CR14*'Default-Data'!$F$19/pv_dollar_index)/'Philippines-IO-Data'!$AP20","v":9.6869294388741647},3763.8585697610906,4841.5791680957191,{"$f":"CI14*'Philippines-IO-Data'!AN20","v":0},{"$f":"'Philippines-IO-Data'!$AN20*Calculations!CV14","v":1015.753957381111},{"$f":"'Philippines-IO-Data'!$AN20*Calculations!CW14","v":1306.5988290519995},{"$f":"'Philippines-IO-Data'!AO20*Calculations!CI14","v":0},{"$f":"'Philippines-IO-Data'!$AO20*Calculations!CV14","v":263.41180257111733},{"$f":"'Philippines-IO-Data'!$AO20*Calculations!CW14","v":338.83555195322202},{"$f":"(DA14*'Default-Data'!$F$19/pv_dollar_index)/'Philippines-IO-Data'!$AP20","v":0},{"$f":"(DB14*'Default-Data'!$F$19/pv_dollar_index)/'Philippines-IO-Data'!$AP20","v":8.0087818229730046E-2},{"$f":"(DC14*'Default-Data'!$F$19/pv_dollar_index)/'Philippines-IO-Data'!$AP20","v":0.10301968184312249},null,"DOM_C24: Chemicals and chemical products",0,0,null,396624.18038064212,471284.70636305591,{"$f":"DI14*'SouthAfrica-IO-Data'!AR20","v":0},{"$f":"DL14*'SouthAfrica-IO-Data'!$AR20","v":91905.347703465901},{"$f":"DM14*'SouthAfrica-IO-Data'!$AR20","v":109205.60809997573},{"$f":"DI14*'SouthAfrica-IO-Data'!AS20","v":0},{"$f":"DL14*'SouthAfrica-IO-Data'!$AS20","v":63991.718689087902},{"$f":"DM14*'SouthAfrica-IO-Data'!$AS20","v":76037.518244881052},{"$f":"(DQ14*'Default-Data'!$F$19/pv_dollar_index)/'SouthAfrica-IO-Data'!$AT20","v":0},{"$f":"(DR14*'Default-Data'!$F$19/pv_dollar_index)/'SouthAfrica-IO-Data'!$AT20","v":4.8927491117790449},{"$f":"(DS14*'Default-Data'!$F$19/pv_dollar_index)/'SouthAfrica-IO-Data'!$AT20","v":5.8137600845211397},6865.4859247670856,4967.7906265714164,{"$f":"DJ14*'SouthAfrica-IO-Data'!AR20","v":0},{"$f":"DW14*'SouthAfrica-IO-Data'!$AR20","v":1590.8633469180336},{"$f":"DX14*'SouthAfrica-IO-Data'!$AR20","v":1151.1313415508246},{"$f":"DJ14*'SouthAfrica-IO-Data'!AS20","v":0},{"$f":"DW14*'SouthAfrica-IO-Data'!$AS20","v":1107.6839630401673},{"$f":"DX14*'SouthAfrica-IO-Data'!$AS20","v":801.50801692614425},{"$f":"(EB14*'Default-Data'!$F$19/pv_dollar_index)/'SouthAfrica-IO-Data'!$AT20","v":0},{"$f":"(EC14*'Default-Data'!$F$19/pv_dollar_index)/'SouthAfrica-IO-Data'!$AT20","v":8.4692517052536109E-2},{"$f":"(ED14*'Default-Data'!$F$19/pv_dollar_index)/'SouthAfrica-IO-Data'!$AT20","v":6.1282580281249693E-2},null,"WHEAT",0,0,null,875.4128268421008,74539.381621892346,{"$f":"EJ14*'Zambia-IO-Data'!BO18","v":0},{"$f":"EM14*'Zambia-IO-Data'!$BO18","v":189.14422861194325},{"$f":"EN14*'Zambia-IO-Data'!$BO18","v":16105.194493142928},{"$f":"EJ14*'Zambia-IO-Data'!$BN18","v":0},{"$f":"EM14*'Zambia-IO-Data'!$BN18","v":114.54790383105721},{"$f":"EN14*'Zambia-IO-Data'!$BN18","v":9753.4896175231243},{"$f":"(ER14*'Default-Data'!$F$19/pv_dollar_index)/'Zambia-IO-Data'!$BP18","v":0},{"$f":"(ES14*'Default-Data'!$F$19/pv_dollar_index)/'Zambia-IO-Data'!$BP18","v":1.0842460903182116},{"$f":"(ET14*'Default-Data'!$F$19/pv_dollar_index)/'Zambia-IO-Data'!$BP18","v":92.321051988482409},10.167480979770309,648.59270812794693,{"$f":"EK14*'Zambia-IO-Data'!BO18","v":0},{"$f":"EX14*'Zambia-IO-Data'!$BO18","v":2.1968153628529539},{"$f":"EY14*'Zambia-IO-Data'!$BO18","v":140.13681739703279},{"$f":"EK14*'Zambia-IO-Data'!BN18","v":0},{"$f":"EX14*'Zambia-IO-Data'!$BN18","v":1.3304164592563188},{"$f":"EY14*'Zambia-IO-Data'!$BN18","v":84.868456205023932},{"$f":"(FC14*'Default-Data'!$F$19/pv_dollar_index)/'Zambia-IO-Data'!$BP18","v":0},{"$f":"(FD14*'Default-Data'!$F$19/pv_dollar_index)/'Zambia-IO-Data'!$BP18","v":1.2592974608868917E-2},{"$f":"(FE14*'Default-Data'!$F$19/pv_dollar_index)/'Zambia-IO-Data'!$BP18","v":0.80331711671785988},null,"TTL_C24: Chemicals and chemical products",0,0,null,1746790.7253501567,1167924.9958921776,{"$f":"FK14*CustomRegion1!C16","v":0},{"$f":"FN14*CustomRegion1!$C16","v":471407.08374269935},{"$f":"FO14*CustomRegion1!$C16","v":315188.36707435019},{"$f":"FK14*CustomRegion1!D16","v":0},{"$f":"FN14*CustomRegion1!$D16","v":122248.29524032849},{"$f":"FO14*CustomRegion1!$D16","v":81736.660061419621},{"$f":"(FS14*'Default-Data'!$C$58/pv_dollar_index)/CustomRegion1!$E16","v":0},{"$f":"(FT14*'Default-Data'!$C$58/pv_dollar_index)/CustomRegion1!$E16","v":37.323724419090965},{"$f":"(FU14*'Default-Data'!$C$58/pv_dollar_index)/CustomRegion1!$E16","v":24.955084805656607},12591.522145545634,12505.364441702815,{"$f":"FL14*CustomRegion1!C16","v":0},{"$f":"FY14*CustomRegion1!$C16","v":3398.0789160209356},{"$f":"FZ14*CustomRegion1!$C16","v":3374.8275034040244},{"$f":"FL14*CustomRegion1!D16","v":0},{"$f":"FY14*CustomRegion1!$D16","v":881.21152375894076},{"$f":"FZ14*CustomRegion1!$D16","v":875.18181896159342},{"$f":"(GD14*'Default-Data'!$C$58/pv_dollar_index)/CustomRegion1!$E16","v":0},{"$f":"(GE14*'Default-Data'!$C$58/pv_dollar_index)/CustomRegion1!$E16","v":0.26904339240925312},{"$f":"(GF14*'Default-Data'!$C$58/pv_dollar_index)/CustomRegion1!$E16","v":0.26720245843350948},null,"C24 Chemicals and chemical products",0,0,null,3647082.8983236188,1962900.9295092197,{"$f":"GL14*CustomRegion2!$C$13","v":0},{"$f":"GO14*CustomRegion2!C$13","v":2247264.8648804119},{"$f":"GP14*CustomRegion2!D$13","v":217208.04139614254},{"$f":"GL14*CustomRegion2!D20","v":0},{"$f":"GO14*CustomRegion2!$D20","v":426033.73327159946},{"$f":"GP14*CustomRegion2!$D20","v":229296.13456976623},{"$f":"(GT14*'Default-Data'!$C$59/pv_dollar_index)/CustomRegion2!$E20","v":0},{"$f":"(GU14*'Default-Data'!$C$59/pv_dollar_index)/CustomRegion2!$E20","v":32.879932464100229},{"$f":"(GV14*'Default-Data'!$C$59/pv_dollar_index)/CustomRegion2!$E20","v":17.696348505170672},582115.49289360642,548494.28603869188,{"$f":"GM14*CustomRegion2!C20","v":0},{"$f":"GZ14*CustomRegion2!$C20","v":191803.1026292321},{"$f":"HA14*CustomRegion2!$C20","v":180725.1432420724},{"$f":"GM14*CustomRegion2!D20","v":0},{"$f":"GZ14*CustomRegion2!$D20","v":67999.780522316592},{"$f":"HA14*CustomRegion2!$D20","v":64072.321598890463},{"$f":"(HE14*'Default-Data'!$C$59/pv_dollar_index)/CustomRegion2!$E20","v":0},{"$f":"(HF14*'Default-Data'!$C$59/pv_dollar_index)/CustomRegion2!$E20","v":5.2480074147603979},{"$f":"(HG14*'Default-Data'!$C$59/pv_dollar_index)/CustomRegion2!$E20","v":4.9448985900996645},null,"WHEAT",0,0,null,875.4128268421008,74539.381621892346,{"$f":"HM14*CustomRegion3!D19","v":0},{"$f":"HP14*CustomRegion3!$D19","v":189.14422861194325},{"$f":"HQ14*CustomRegion3!$D19","v":16105.194493142928},{"$f":"HM14*CustomRegion3!E19","v":0},{"$f":"HP14*CustomRegion3!$E19","v":114.54790383105721},{"$f":"HQ14*CustomRegion3!$E19","v":9753.4896175231243},{"$f":"(HU14*'Default-Data'!$C$60/pv_dollar_index)/CustomRegion3!$F19","v":0},{"$f":"(HV14*'Default-Data'!$C$60/pv_dollar_index)/CustomRegion3!$F19","v":1.0886374288752494},{"$f":"(HW14*'Default-Data'!$C$60/pv_dollar_index)/CustomRegion3!$F19","v":92.694964330748093},10.167480979770309,648.59270812794693,{"$f":"HN14*CustomRegion3!D19","v":0},{"$f":"IA14*CustomRegion3!$D19","v":2.1968153628529539},{"$f":"IB14*CustomRegion3!$D19","v":140.13681739703279},{"$f":"HN14*CustomRegion3!E19","v":0},{"$f":"IA14*CustomRegion3!$E19","v":1.3304164592563188},{"$f":"IB14*CustomRegion3!$E19","v":84.868456205023932},{"$f":"(IF14*'Default-Data'!$C$60/pv_dollar_index)/CustomRegion3!$F19","v":0},{"$f":"(IG14*'Default-Data'!$C$60/pv_dollar_index)/CustomRegion3!$F19","v":1.2643977804030536E-2},{"$f":"(IH14*'Default-Data'!$C$60/pv_dollar_index)/CustomRegion3!$F19","v":0.80657065616768719}]
[null,57,"Finance, Professional, and Business Services",5809002.5676046042,0,null,2752012.9314186745,5035328.5262254514,2814460.5770694031,1711081.8494756061,3301651.8806223646,1101399.9564901425,398449.30068517529,992181.99256094382,272.60337417086021,98.618692658147538,245.57124536812287,20639.319596220357,53550.296409264818,0,12297.77006912945,35112.790739806835,0,3013.2784978984864,10551.772246209663,0,0.74580526447567563,2.6116295909123135,null,14,"TTL_C25: Rubber and plastics products",0,0,null,529670.56819405092,154621.36193753884,{"$f":"AF15*'Colombia-IO-Data'!AN21","v":0},{"$f":"AI15*'Colombia-IO-Data'!$AN21","v":133313.20096817435},{"$f":"AJ15*'Colombia-IO-Data'!$AN21","v":38916.771925299996},{"$f":"AK15*'Colombia-IO-Data'!$AO21","v":0},{"$f":"AL15*'Colombia-IO-Data'!$AO21","v":77208.185744234273},{"$f":"AM15*'Colombia-IO-Data'!$AO21","v":22538.603330752441},{"$f":"(AN15*'Default-Data'!$F$19/pv_dollar_index)/'Colombia-IO-Data'!$AP21","v":0},{"$f":"(AO15*'Default-Data'!$F$19/pv_dollar_index)/'Colombia-IO-Data'!$AP21","v":17.814181927703238},{"$f":"(AP15*'Default-Data'!$F$19/pv_dollar_index)/'Colombia-IO-Data'!$AP21","v":5.2003136229677001},10647.105304171968,1481.9683750734057,{"$f":"'Colombia-IO-Data'!$AN21*Calculations!AG15","v":0},{"$f":"'Colombia-IO-Data'!$AN21*Calculations!AT15","v":2679.7782893316798},{"$f":"'Colombia-IO-Data'!$AN21*Calculations!AU15","v":372.99778329812568},{"$f":"AV15*'Colombia-IO-Data'!$AO21","v":0},{"$f":"AW15*'Colombia-IO-Data'!$AO21","v":1551.9904886649585},{"$f":"AX15*'Colombia-IO-Data'!$AO21","v":216.02123365070463},{"$f":"(AY15*'Default-Data'!$F$19/pv_dollar_index)/'Colombia-IO-Data'!$AP21","v":0},{"$f":"(AZ15*'Default-Data'!$F$19/pv_dollar_index)/'Colombia-IO-Data'!$AP21","v":0.35808950370534082},{"$f":"(BA15*'Default-Data'!$F$19/pv_dollar_index)/'Colombia-IO-Data'!$AP21","v":4.9842403618296643E-2},null,"DOM_C25: Rubber and plastics products",0,0,null,235809.52821716163,94285.569666237774,{"$f":"BG15*'Mexico-IO-Data'!AQ21","v":0},{"$f":"BJ15*'Mexico-IO-Data'!$AQ21","v":72734.567798918753},{"$f":"BK15*'Mexico-IO-Data'!$AQ21","v":29082.031634587504},{"$f":"BG15*'Mexico-IO-Data'!AR21","v":0},{"$f":"BJ15*'Mexico-IO-Data'!$AR21","v":25428.054107508869},{"$f":"BK15*'Mexico-IO-Data'!$AR21","v":10167.097933474884},{"$f":"(Calculations!BO15*'Default-Data'!$F$19/pv_dollar_index)/'Mexico-IO-Data'!$AS21","v":0},{"$f":"(Calculations!BP15*'Default-Data'!$F$19/pv_dollar_index)/'Mexico-IO-Data'!$AS21","v":4.5696120299392282},{"$f":"(Calculations!BQ15*'Default-Data'!$F$19/pv_dollar_index)/'Mexico-IO-Data'!$AS21","v":1.8271037504461505},5088.8306259802339,1355.4730226546235,{"$f":"BH15*'Mexico-IO-Data'!AQ21","v":0},{"$f":"BU15*'Mexico-IO-Data'!$AQ21","v":1569.6307904984651},{"$f":"BV15*'Mexico-IO-Data'!$AQ21","v":418.09058866817639},{"$f":"BH15*'Mexico-IO-Data'!AR21","v":0},{"$f":"BU15*'Mexico-IO-Data'!$AR21","v":548.74398621504167},{"$f":"BV15*'Mexico-IO-Data'!$AR21","v":146.16475263709017},{"$f":"(BZ15*'Default-Data'!$F$19/pv_dollar_index)/'Mexico-IO-Data'!$AS21","v":0},{"$f":"(CA15*'Default-Data'!$F$19/pv_dollar_index)/'Mexico-IO-Data'!$AS21","v":9.8613409825354492E-2},{"$f":"(CB15*'Default-Data'!$F$19/pv_dollar_index)/'Mexico-IO-Data'!$AS21","v":2.62669022639174E-2},null,"TTL_C25: Rubber and plastics products",0,0,null,240215.54943392737,116816.01940414836,{"$f":"CH15*'Philippines-IO-Data'!AN21","v":0},{"$f":"'Philippines-IO-Data'!$AN21*Calculations!CK15","v":73876.616361768334},{"$f":"'Philippines-IO-Data'!$AN21*Calculations!CL15","v":35925.951799397888},{"$f":"CH15*'Philippines-IO-Data'!AO21","v":0},{"$f":"'Philippines-IO-Data'!$AO21*Calculations!CK15","v":20875.491538751357},{"$f":"'Philippines-IO-Data'!$AO21*Calculations!CL15","v":10151.681814139438},{"$f":"(CP15*'Default-Data'!$F$19/pv_dollar_index)/'Philippines-IO-Data'!$AP21","v":0},{"$f":"(CQ15*'Default-Data'!$F$19/pv_dollar_index)/'Philippines-IO-Data'!$AP21","v":6.3469918792283622},{"$f":"(CR15*'Default-Data'!$F$19/pv_dollar_index)/'Philippines-IO-Data'!$AP21","v":3.08652095282386},3119.2781992530158,1242.3285654276474,{"$f":"CI15*'Philippines-IO-Data'!AN21","v":0},{"$f":"'Philippines-IO-Data'!$AN21*Calculations!CV15","v":959.3122484988296},{"$f":"'Philippines-IO-Data'!$AN21*Calculations!CW15","v":382.06948317726892},{"$f":"'Philippines-IO-Data'!AO21*Calculations!CI15","v":0},{"$f":"'Philippines-IO-Data'!$AO21*Calculations!CV15","v":271.07514816990874},{"$f":"'Philippines-IO-Data'!$AO21*Calculations!CW15","v":107.96228436106014},{"$f":"(DA15*'Default-Data'!$F$19/pv_dollar_index)/'Philippines-IO-Data'!$AP21","v":0},{"$f":"(DB15*'Default-Data'!$F$19/pv_dollar_index)/'Philippines-IO-Data'!$AP21","v":8.2417784553778531E-2},{"$f":"(DC15*'Default-Data'!$F$19/pv_dollar_index)/'Philippines-IO-Data'!$AP21","v":3.2824891372286155E-2},null,"DOM_C25: Rubber and plastics products",0,0,null,381580.82362973556,261078.77996879996,{"$f":"DI15*'SouthAfrica-IO-Data'!AR21","v":0},{"$f":"DL15*'SouthAfrica-IO-Data'!$AR21","v":112385.20000614108},{"$f":"DM15*'SouthAfrica-IO-Data'!$AR21","v":76894.301514019768},{"$f":"DI15*'SouthAfrica-IO-Data'!AS21","v":0},{"$f":"DL15*'SouthAfrica-IO-Data'!$AS21","v":106086.53325516719},{"$f":"DM15*'SouthAfrica-IO-Data'!$AS21","v":72584.734237730241},{"$f":"(DQ15*'Default-Data'!$F$19/pv_dollar_index)/'SouthAfrica-IO-Data'!$AT21","v":0},{"$f":"(DR15*'Default-Data'!$F$19/pv_dollar_index)/'SouthAfrica-IO-Data'!$AT21","v":8.1112806780176143},{"$f":"(DS15*'Default-Data'!$F$19/pv_dollar_index)/'SouthAfrica-IO-Data'!$AT21","v":5.5497633325940381},10507.004537521503,2752.0195296271067,{"$f":"DJ15*'SouthAfrica-IO-Data'!AR21","v":0},{"$f":"DW15*'SouthAfrica-IO-Data'!$AR21","v":3094.578483222203},{"$f":"DX15*'SouthAfrica-IO-Data'!$AR21","v":810.53933034659678},{"$f":"DJ15*'SouthAfrica-IO-Data'!AS21","v":0},{"$f":"DW15*'SouthAfrica-IO-Data'!$AS21","v":2921.1417798174321},{"$f":"DX15*'SouthAfrica-IO-Data'!$AS21","v":765.11237795311615},{"$f":"(EB15*'Default-Data'!$F$19/pv_dollar_index)/'SouthAfrica-IO-Data'!$AT21","v":0},{"$f":"(EC15*'Default-Data'!$F$19/pv_dollar_index)/'SouthAfrica-IO-Data'!$AT21","v":0.22334786658917466},{"$f":"(ED15*'Default-Data'!$F$19/pv_dollar_index)/'SouthAfrica-IO-Data'!$AT21","v":5.8499802542100139E-2},null,"HORTI",0,0,null,12156.421172699451,639173.0686187261,{"$f":"EJ15*'Zambia-IO-Data'!BO19","v":0},{"$f":"EM15*'Zambia-IO-Data'!$BO19","v":5860.2186014805857},{"$f":"EN15*'Zambia-IO-Data'!$BO19","v":308124.72298153501},{"$f":"EJ15*'Zambia-IO-Data'!$BN19","v":0},{"$f":"EM15*'Zambia-IO-Data'!$BN19","v":4937.0542941084041},{"$f":"EN15*'Zambia-IO-Data'!$BN19","v":259585.62131668793},{"$f":"(ER15*'Default-Data'!$F$19/pv_dollar_index)/'Zambia-IO-Data'!$BP19","v":0},{"$f":"(ES15*'Default-Data'!$F$19/pv_dollar_index)/'Zambia-IO-Data'!$BP19","v":46.731381693118585},{"$f":"(ET15*'Default-Data'!$F$19/pv_dollar_index)/'Zambia-IO-Data'!$BP19","v":2457.0916236978956},122.88098095130778,5517.081605022132,{"$f":"EK15*'Zambia-IO-Data'!BO19","v":0},{"$f":"EX15*'Zambia-IO-Data'!$BO19","v":59.23695799189953},{"$f":"EY15*'Zambia-IO-Data'!$BO19","v":2659.6071153116841},{"$f":"EK15*'Zambia-IO-Data'!BN19","v":0},{"$f":"EX15*'Zambia-IO-Data'!$BN19","v":49.905318847651451},{"$f":"EY15*'Zambia-IO-Data'!$BN19","v":2240.6373588134338},{"$f":"(FC15*'Default-Data'!$F$19/pv_dollar_index)/'Zambia-IO-Data'!$BP19","v":0},{"$f":"(FD15*'Default-Data'!$F$19/pv_dollar_index)/'Zambia-IO-Data'!$BP19","v":0.47237570515872834},{"$f":"(FE15*'Default-Data'!$F$19/pv_dollar_index)/'Zambia-IO-Data'!$BP19","v":21.208614168072703},null,"TTL_C25: Rubber and plastics products",0,0,null,433372.22297973791,246312.75390583521,{"$f":"FK15*CustomRegion1!C17","v":0},{"$f":"FN15*CustomRegion1!$C17","v":133280.60375095336},{"$f":"FO15*CustomRegion1!$C17","v":75751.769059884129},{"$f":"FK15*CustomRegion1!D17","v":0},{"$f":"FN15*CustomRegion1!$D17","v":37661.417819381313},{"$f":"FO15*CustomRegion1!$D17","v":21405.357905284633},{"$f":"(FS15*'Default-Data'!$C$58/pv_dollar_index)/CustomRegion1!$E17","v":0},{"$f":"(FT15*'Default-Data'!$C$58/pv_dollar_index)/CustomRegion1!$E17","v":11.498437480534413},{"$f":"(FU15*'Default-Data'!$C$58/pv_dollar_index)/CustomRegion1!$E17","v":6.5352868764201428},5562.9437581312641,2637.3532247924368,{"$f":"FL15*CustomRegion1!C17","v":0},{"$f":"FY15*CustomRegion1!$C17","v":1710.8445428700161},{"$f":"FZ15*CustomRegion1!$C17","v":811.09958475879148},{"$f":"FL15*CustomRegion1!D17","v":0},{"$f":"FY15*CustomRegion1!$D17","v":483.43741954706752},{"$f":"FZ15*CustomRegion1!$D17","v":229.19434257521533},{"$f":"(GD15*'Default-Data'!$C$58/pv_dollar_index)/CustomRegion1!$E17","v":0},{"$f":"(GE15*'Default-Data'!$C$58/pv_dollar_index)/CustomRegion1!$E17","v":0.14759866373252112},{"$f":"(GF15*'Default-Data'!$C$58/pv_dollar_index)/CustomRegion1!$E17","v":6.9975507338363746E-2},null,"C25 Rubber and plastics products",0,0,null,1079724.6944488527,514317.06820811424,{"$f":"GL15*CustomRegion2!$C$13","v":0},{"$f":"GO15*CustomRegion2!C$13","v":665306.33857923886},{"$f":"GP15*CustomRegion2!D$13","v":56912.603872484957},{"$f":"GL15*CustomRegion2!D21","v":0},{"$f":"GO15*CustomRegion2!$D21","v":160014.56085054672},{"$f":"GP15*CustomRegion2!$D21","v":76221.485190047781},{"$f":"(GT15*'Default-Data'!$C$59/pv_dollar_index)/CustomRegion2!$E21","v":0},{"$f":"(GU15*'Default-Data'!$C$59/pv_dollar_index)/CustomRegion2!$E21","v":28.755816671484009},{"$f":"(GV15*'Default-Data'!$C$59/pv_dollar_index)/CustomRegion2!$E21","v":13.697572539041586},384574.55924392369,143715.84876413288,{"$f":"GM15*CustomRegion2!C21","v":0},{"$f":"GZ15*CustomRegion2!$C21","v":125518.71370640528},{"$f":"HA15*CustomRegion2!$C21","v":46906.45296860794},{"$f":"GM15*CustomRegion2!D21","v":0},{"$f":"GZ15*CustomRegion2!$D21","v":56993.722129436843},{"$f":"HA15*CustomRegion2!$D21","v":21298.603751019124},{"$f":"(HE15*'Default-Data'!$C$59/pv_dollar_index)/CustomRegion2!$E21","v":0},{"$f":"(HF15*'Default-Data'!$C$59/pv_dollar_index)/CustomRegion2!$E21","v":10.242199311538387},{"$f":"(HG15*'Default-Data'!$C$59/pv_dollar_index)/CustomRegion2!$E21","v":3.8275188305826915},null,"HORTI",0,0,null,12156.421172699451,639173.0686187261,{"$f":"HM15*CustomRegion3!D20","v":0},{"$f":"HP15*CustomRegion3!$D20","v":5860.2186014805857},{"$f":"HQ15*CustomRegion3!$D20","v":308124.72298153501},{"$f":"HM15*CustomRegion3!E20","v":0},{"$f":"HP15*CustomRegion3!$E20","v":4937.0542941084041},{"$f":"HQ15*CustomRegion3!$E20","v":259585.62131668793},{"$f":"(HU15*'Default-Data'!$C$60/pv_dollar_index)/CustomRegion3!$F20","v":0},{"$f":"(HV15*'Default-Data'!$C$60/pv_dollar_index)/CustomRegion3!$F20","v":46.92064990453764},{"$f":"(HW15*'Default-Data'!$C$60/pv_dollar_index)/CustomRegion3!$F20","v":2467.0431663243039},122.88098095130778,5517.081605022132,{"$f":"HN15*CustomRegion3!D20","v":0},{"$f":"IA15*CustomRegion3!$D20","v":59.23695799189953},{"$f":"IB15*CustomRegion3!$D20","v":2659.6071153116841},{"$f":"HN15*CustomRegion3!E20","v":0},{"$f":"IA15*CustomRegion3!$E20","v":49.905318847651451},{"$f":"IB15*CustomRegion3!$E20","v":2240.6373588134338},{"$f":"(IF15*'Default-Data'!$C$60/pv_dollar_index)/CustomRegion3!$F20","v":0},{"$f":"(IG15*'Default-Data'!$C$60/pv_dollar_index)/CustomRegion3!$F20","v":0.47428888858267088},{"$f":"(IH15*'Default-Data'!$C$60/pv_dollar_index)/CustomRegion3!$F20","v":21.294511830945769}]
[null,58,"Education and Health Care",0,0,null,321827.67481614149,1929413.3075756417,0,182870.77159292233,1215965.4851781968,0,120604.06207263621,828074.92730365461,0,29.850259268651733,204.9537208705041,295.91567212431488,20519.148647110444,0,169.6475603098595,12931.690914622252,0,112.21122551195029,8806.507375881527,0,2.7772979755586839E-2,2.1796656257152836,null,15,"TTL_C26: Other non-metallic mineral products",0,0,null,1538354.3835761535,55032.665448196931,{"$f":"AF16*'Colombia-IO-Data'!AN22","v":0},{"$f":"AI16*'Colombia-IO-Data'!$AN22","v":679676.59034112771},{"$f":"AJ16*'Colombia-IO-Data'!$AN22","v":24314.56289171931},{"$f":"AK16*'Colombia-IO-Data'!$AO22","v":0},{"$f":"AL16*'Colombia-IO-Data'!$AO22","v":201164.5699702393},{"$f":"AM16*'Colombia-IO-Data'!$AO22","v":7196.4058460100259},{"$f":"(AN16*'Default-Data'!$F$19/pv_dollar_index)/'Colombia-IO-Data'!$AP22","v":0},{"$f":"(AO16*'Default-Data'!$F$19/pv_dollar_index)/'Colombia-IO-Data'!$AP22","v":46.414537685541255},{"$f":"(AP16*'Default-Data'!$F$19/pv_dollar_index)/'Colombia-IO-Data'!$AP22","v":1.6604208702829579},62397.201705745472,527.46055763735058,{"$f":"'Colombia-IO-Data'!$AN22*Calculations!AG16","v":0},{"$f":"'Colombia-IO-Data'!$AN22*Calculations!AT16","v":27568.366401764961},{"$f":"'Colombia-IO-Data'!$AN22*Calculations!AU16","v":233.04291727695866},{"$f":"AV16*'Colombia-IO-Data'!$AO22","v":0},{"$f":"AW16*'Colombia-IO-Data'!$AO22","v":8159.4373718383204},{"$f":"AX16*'Colombia-IO-Data'!$AO22","v":68.973948646812318},{"$f":"(AY16*'Default-Data'!$F$19/pv_dollar_index)/'Colombia-IO-Data'!$AP22","v":0},{"$f":"(AZ16*'Default-Data'!$F$19/pv_dollar_index)/'Colombia-IO-Data'!$AP22","v":1.8826203513075466},{"$f":"(BA16*'Default-Data'!$F$19/pv_dollar_index)/'Colombia-IO-Data'!$AP22","v":1.5914303096522805E-2},null,"DOM_C26: Other non-metallic mineral products",0,0,null,805436.73288814863,95738.178194678738,{"$f":"BG16*'Mexico-IO-Data'!AQ22","v":0},{"$f":"BJ16*'Mexico-IO-Data'!$AQ22","v":440557.05789575836},{"$f":"BK16*'Mexico-IO-Data'!$AQ22","v":52366.78238215491},{"$f":"BG16*'Mexico-IO-Data'!AR22","v":0},{"$f":"BJ16*'Mexico-IO-Data'!$AR22","v":95223.435710614358},{"$f":"BK16*'Mexico-IO-Data'!$AR22","v":11318.726703315562},{"$f":"(Calculations!BO16*'Default-Data'!$F$19/pv_dollar_index)/'Mexico-IO-Data'!$AS22","v":0},{"$f":"(Calculations!BP16*'Default-Data'!$F$19/pv_dollar_index)/'Mexico-IO-Data'!$AS22","v":22.724484201392986},{"$f":"(Calculations!BQ16*'Default-Data'!$F$19/pv_dollar_index)/'Mexico-IO-Data'!$AS22","v":2.7011441482856351},31992.191920381989,1376.3560875790899,{"$f":"BH16*'Mexico-IO-Data'!AQ22","v":0},{"$f":"BU16*'Mexico-IO-Data'!$AQ22","v":17499.060289366309},{"$f":"BV16*'Mexico-IO-Data'!$AQ22","v":752.83801172868345},{"$f":"BH16*'Mexico-IO-Data'!AR22","v":0},{"$f":"BU16*'Mexico-IO-Data'!$AR22","v":3782.3038187596371},{"$f":"BV16*'Mexico-IO-Data'!$AR22","v":162.72085698219666},{"$f":"(BZ16*'Default-Data'!$F$19/pv_dollar_index)/'Mexico-IO-Data'!$AS22","v":0},{"$f":"(CA16*'Default-Data'!$F$19/pv_dollar_index)/'Mexico-IO-Data'!$AS22","v":0.90262342177484534},{"$f":"(CB16*'Default-Data'!$F$19/pv_dollar_index)/'Mexico-IO-Data'!$AS22","v":3.8832326476504933E-2},null,"TTL_C26: Other non-metallic mineral products",0,0,null,985113.53124140657,165446.62741360033,{"$f":"CH16*'Philippines-IO-Data'!AN22","v":0},{"$f":"'Philippines-IO-Data'!$AN22*Calculations!CK16","v":370686.42303353525},{"$f":"'Philippines-IO-Data'!$AN22*Calculations!CL16","v":62255.584330087368},{"$f":"CH16*'Philippines-IO-Data'!AO22","v":0},{"$f":"'Philippines-IO-Data'!$AO22*Calculations!CK16","v":78845.109285895771},{"$f":"'Philippines-IO-Data'!$AO22*Calculations!CL16","v":13241.780775226753},{"$f":"(CP16*'Default-Data'!$F$19/pv_dollar_index)/'Philippines-IO-Data'!$AP22","v":0},{"$f":"(CQ16*'Default-Data'!$F$19/pv_dollar_index)/'Philippines-IO-Data'!$AP22","v":23.972095096563447},{"$f":"(CR16*'Default-Data'!$F$19/pv_dollar_index)/'Philippines-IO-Data'!$AP22","v":4.0260357410445691},38655.246824083908,1759.5110014704114,{"$f":"CI16*'Philippines-IO-Data'!AN22","v":0},{"$f":"'Philippines-IO-Data'!$AN22*Calculations!CV16","v":14545.506403349471},{"$f":"'Philippines-IO-Data'!$AN22*Calculations!CW16","v":662.08291606887803},{"$f":"'Philippines-IO-Data'!AO22*Calculations!CI16","v":0},{"$f":"'Philippines-IO-Data'!$AO22*Calculations!CV16","v":3093.8334147917608},{"$f":"'Philippines-IO-Data'!$AO22*Calculations!CW16","v":140.82522755103074},{"$f":"(DA16*'Default-Data'!$F$19/pv_dollar_index)/'Philippines-IO-Data'!$AP22","v":0},{"$f":"(DB16*'Default-Data'!$F$19/pv_dollar_index)/'Philippines-IO-Data'!$AP22","v":0.94065021285449435},{"$f":"(DC16*'Default-Data'!$F$19/pv_dollar_index)/'Philippines-IO-Data'!$AP22","v":4.2816552319147973E-2},null,"DOM_C26: Other non-metallic mineral products",0,0,null,1085359.5839215321,144128.46384151001,{"$f":"DI16*'SouthAfrica-IO-Data'!AR22","v":0},{"$f":"DL16*'SouthAfrica-IO-Data'!$AR22","v":357916.89467778045},{"$f":"DM16*'SouthAfrica-IO-Data'!$AR22","v":47528.959965918097},{"$f":"DI16*'SouthAfrica-IO-Data'!AS22","v":0},{"$f":"DL16*'SouthAfrica-IO-Data'!$AS22","v":161327.43063370057},{"$f":"DM16*'SouthAfrica-IO-Data'!$AS22","v":21423.199368380072},{"$f":"(DQ16*'Default-Data'!$F$19/pv_dollar_index)/'SouthAfrica-IO-Data'!$AT22","v":0},{"$f":"(DR16*'Default-Data'!$F$19/pv_dollar_index)/'SouthAfrica-IO-Data'!$AT22","v":12.334949882714028},{"$f":"(DS16*'Default-Data'!$F$19/pv_dollar_index)/'SouthAfrica-IO-Data'!$AT22","v":1.6379985071252821},44061.680952982038,1519.251573469126,{"$f":"DJ16*'SouthAfrica-IO-Data'!AR22","v":0},{"$f":"DW16*'SouthAfrica-IO-Data'!$AR22","v":14530.133841905234},{"$f":"DX16*'SouthAfrica-IO-Data'!$AR22","v":501.00060244155344},{"$f":"DJ16*'SouthAfrica-IO-Data'!AS22","v":0},{"$f":"DW16*'SouthAfrica-IO-Data'!$AS22","v":6549.3112907918685},{"$f":"DX16*'SouthAfrica-IO-Data'!$AS22","v":225.82096888886969},{"$f":"(EB16*'Default-Data'!$F$19/pv_dollar_index)/'SouthAfrica-IO-Data'!$AT22","v":0},{"$f":"(EC16*'Default-Data'!$F$19/pv_dollar_index)/'SouthAfrica-IO-Data'!$AT22","v":0.50075443599939862},{"$f":"(ED16*'Default-Data'!$F$19/pv_dollar_index)/'SouthAfrica-IO-Data'!$AT22","v":1.7266067666041753E-2},null,"OTHERCROP",0,0,null,9380.2749535909043,352072.11393218755,{"$f":"EJ16*'Zambia-IO-Data'!BO20","v":0},{"$f":"EM16*'Zambia-IO-Data'!$BO20","v":4318.5669200728507},{"$f":"EN16*'Zambia-IO-Data'!$BO20","v":162089.80997146742},{"$f":"EJ16*'Zambia-IO-Data'!$BN20","v":0},{"$f":"EM16*'Zambia-IO-Data'!$BN20","v":4059.2525069029016},{"$f":"EN16*'Zambia-IO-Data'!$BN20","v":152356.8997881813},{"$f":"(ER16*'Default-Data'!$F$19/pv_dollar_index)/'Zambia-IO-Data'!$BP20","v":0},{"$f":"(ES16*'Default-Data'!$F$19/pv_dollar_index)/'Zambia-IO-Data'!$BP20","v":38.422603234321002},{"$f":"(ET16*'Default-Data'!$F$19/pv_dollar_index)/'Zambia-IO-Data'!$BP20","v":1442.1248002231077},95.018300238355209,3039.7796108103494,{"$f":"EK16*'Zambia-IO-Data'!BO20","v":0},{"$f":"EX16*'Zambia-IO-Data'!$BO20","v":43.745294273471792},{"$f":"EY16*'Zambia-IO-Data'!$BO20","v":1399.4783454116243},{"$f":"EK16*'Zambia-IO-Data'!BN20","v":0},{"$f":"EX16*'Zambia-IO-Data'!$BN20","v":41.118546668671279},{"$f":"EY16*'Zambia-IO-Data'!$BN20","v":1315.4447035575008},{"$f":"(FC16*'Default-Data'!$F$19/pv_dollar_index)/'Zambia-IO-Data'!$BP20","v":0},{"$f":"(FD16*'Default-Data'!$F$19/pv_dollar_index)/'Zambia-IO-Data'!$BP20","v":0.38920505722066417},{"$f":"(FE16*'Default-Data'!$F$19/pv_dollar_index)/'Zambia-IO-Data'!$BP20","v":12.451260382429782},null,"TTL_C26: Other non-metallic mineral products",0,0,null,1213003.7529110776,244000.34395719296,{"$f":"FK16*CustomRegion1!C18","v":0},{"$f":"FN16*CustomRegion1!$C18","v":456438.78399095329},{"$f":"FO16*CustomRegion1!$C18","v":91814.407022168423},{"$f":"FK16*CustomRegion1!D18","v":0},{"$f":"FN16*CustomRegion1!$D18","v":97084.66123894784},{"$f":"FO16*CustomRegion1!$D18","v":19528.950902600707},{"$f":"(FS16*'Default-Data'!$C$58/pv_dollar_index)/CustomRegion1!$E18","v":0},{"$f":"(FT16*'Default-Data'!$C$58/pv_dollar_index)/CustomRegion1!$E18","v":29.640995273428683},{"$f":"(FU16*'Default-Data'!$C$58/pv_dollar_index)/CustomRegion1!$E18","v":5.9623995594350987},45723.245948274096,2612.5934763085243,{"$f":"FL16*CustomRegion1!C18","v":0},{"$f":"FY16*CustomRegion1!$C18","v":17205.109819869973},{"$f":"FZ16*CustomRegion1!$C18","v":983.08763392290905},{"$f":"FL16*CustomRegion1!D18","v":0},{"$f":"FY16*CustomRegion1!$D18","v":3659.5318299552691},{"$f":"FZ16*CustomRegion1!$D18","v":209.10302379014331},{"$f":"(GD16*'Default-Data'!$C$58/pv_dollar_index)/CustomRegion1!$E18","v":0},{"$f":"(GE16*'Default-Data'!$C$58/pv_dollar_index)/CustomRegion1!$E18","v":1.1172945786738735},{"$f":"(GF16*'Default-Data'!$C$58/pv_dollar_index)/CustomRegion1!$E18","v":6.3841410792674205E-2},null,"C26 Other non-metallic mineral products",0,0,null,1233506.0818911626,271855.41135728732,{"$f":"GL16*CustomRegion2!$C$13","v":0},{"$f":"GO16*CustomRegion2!C$13","v":760063.57840795617},{"$f":"GP16*CustomRegion2!D$13","v":30082.609140453649},{"$f":"GL16*CustomRegion2!D22","v":0},{"$f":"GO16*CustomRegion2!$D22","v":182802.60565854728},{"$f":"GP16*CustomRegion2!$D22","v":40288.31173843635},{"$f":"(GT16*'Default-Data'!$C$59/pv_dollar_index)/CustomRegion2!$E22","v":0},{"$f":"(GU16*'Default-Data'!$C$59/pv_dollar_index)/CustomRegion2!$E22","v":43.624711640162772},{"$f":"(GV16*'Default-Data'!$C$59/pv_dollar_index)/CustomRegion2!$E22","v":9.6145565087906188},1017321.90148972,75964.679376586108,{"$f":"GM16*CustomRegion2!C22","v":0},{"$f":"GZ16*CustomRegion2!$C22","v":537737.29992937052},{"$f":"HA16*CustomRegion2!$C22","v":40153.506494009685},{"$f":"GM16*CustomRegion2!D22","v":0},{"$f":"GZ16*CustomRegion2!$D22","v":150764.63514529928},{"$f":"HA16*CustomRegion2!$D22","v":11257.780996722575},{"$f":"(HE16*'Default-Data'!$C$59/pv_dollar_index)/CustomRegion2!$E22","v":0},{"$f":"(HF16*'Default-Data'!$C$59/pv_dollar_index)/CustomRegion2!$E22","v":35.979048055984364},{"$f":"(HG16*'Default-Data'!$C$59/pv_dollar_index)/CustomRegion2!$E22","v":2.686599832211765},null,"OTHERCROP",0,0,null,9380.2749535909043,352072.11393218755,{"$f":"HM16*CustomRegion3!D21","v":0},{"$f":"HP16*CustomRegion3!$D21","v":4318.5669200728507},{"$f":"HQ16*CustomRegion3!$D21","v":162089.80997146742},{"$f":"HM16*CustomRegion3!E21","v":0},{"$f":"HP16*CustomRegion3!$E21","v":4059.2525069029016},{"$f":"HQ16*CustomRegion3!$E21","v":152356.8997881813},{"$f":"(HU16*'Default-Data'!$C$60/pv_dollar_index)/CustomRegion3!$F21","v":0},{"$f":"(HV16*'Default-Data'!$C$60/pv_dollar_index)/CustomRegion3!$F21","v":38.57821980564303},{"$f":"(HW16*'Default-Data'!$C$60/pv_dollar_index)/CustomRegion3!$F21","v":1447.9655943895143},95.018300238355209,3039.7796108103494,{"$f":"HN16*CustomRegion3!D21","v":0},{"$f":"IA16*CustomRegion3!$D21","v":43.745294273471792},{"$f":"IB16*CustomRegion3!$D21","v":1399.4783454116243},{"$f":"HN16*CustomRegion3!E21","v":0},{"$f":"IA16*CustomRegion3!$E21","v":41.118546668671279},{"$f":"IB16*CustomRegion3!$E21","v":1315.4447035575008},{"$f":"(IF16*'Default-Data'!$C$60/pv_dollar_index)/CustomRegion3!$F21","v":0},{"$f":"(IG16*'Default-Data'!$C$60/pv_dollar_index)/CustomRegion3!$F21","v":0.39078138863622458},{"$f":"(IH16*'Default-Data'!$C$60/pv_dollar_index)/CustomRegion3!$F21","v":12.501689616428708}]
[null,59,"Other",5111922.2594920518,0,null,1525863.327131252,14761071.718278794,2491352.0884657288,688604.0728321051,618669.58038116095,2141322.0965627143,503307.14293021098,414086.21417281538,1207.3604089612154,265.83404769203935,209.62645937113436,3874.3783901580177,156982.75926095014,0,1671.493603642019,6579.4990805974794,0,1087.9912446799158,4403.7721456412701,0,0.54277391100153771,2.2293598076238665,null,16,"TTL_C27: Basic metals",0,0,null,1224080.2087682679,39289.601672302466,{"$f":"AF17*'Colombia-IO-Data'!AN23","v":0},{"$f":"AI17*'Colombia-IO-Data'!$AN23","v":356593.04539409181},{"$f":"AJ17*'Colombia-IO-Data'!$AN23","v":11445.654142831962},{"$f":"AK17*'Colombia-IO-Data'!$AO23","v":0},{"$f":"AL17*'Colombia-IO-Data'!$AO23","v":93211.554952580191},{"$f":"AM17*'Colombia-IO-Data'!$AO23","v":2991.8340637399451},{"$f":"(AN17*'Default-Data'!$F$19/pv_dollar_index)/'Colombia-IO-Data'!$AP23","v":0},{"$f":"(AO17*'Default-Data'!$F$19/pv_dollar_index)/'Colombia-IO-Data'!$AP23","v":21.506626294652609},{"$f":"(AP17*'Default-Data'!$F$19/pv_dollar_index)/'Colombia-IO-Data'!$AP23","v":0.69030344121177811},16420.498525983305,376.57116984331515,{"$f":"'Colombia-IO-Data'!$AN23*Calculations!AG17","v":0},{"$f":"'Colombia-IO-Data'!$AN23*Calculations!AT17","v":4783.5391294836973},{"$f":"'Colombia-IO-Data'!$AN23*Calculations!AU17","v":109.70086706749848},{"$f":"AV17*'Colombia-IO-Data'!$AO23","v":0},{"$f":"AW17*'Colombia-IO-Data'!$AO23","v":1250.392081940123},{"$f":"AX17*'Colombia-IO-Data'!$AO23","v":28.6752322600884},{"$f":"(AY17*'Default-Data'!$F$19/pv_dollar_index)/'Colombia-IO-Data'!$AP23","v":0},{"$f":"(AZ17*'Default-Data'!$F$19/pv_dollar_index)/'Colombia-IO-Data'!$AP23","v":0.28850194851657152},{"$f":"(BA17*'Default-Data'!$F$19/pv_dollar_index)/'Colombia-IO-Data'!$AP23","v":6.6162130268487369E-3},null,"DOM_C27: Basic metals",0,0,null,2656440.2685605879,37457.635620038491,{"$f":"BG17*'Mexico-IO-Data'!AQ23","v":0},{"$f":"BJ17*'Mexico-IO-Data'!$AQ23","v":1000526.3735551189},{"$f":"BK17*'Mexico-IO-Data'!$AQ23","v":14108.110305515564},{"$f":"BG17*'Mexico-IO-Data'!AR23","v":0},{"$f":"BJ17*'Mexico-IO-Data'!$AR23","v":122624.7172335193},{"$f":"BK17*'Mexico-IO-Data'!$AR23","v":1729.0928881424832},{"$f":"(Calculations!BO17*'Default-Data'!$F$19/pv_dollar_index)/'Mexico-IO-Data'!$AS23","v":0},{"$f":"(Calculations!BP17*'Default-Data'!$F$19/pv_dollar_index)/'Mexico-IO-Data'!$AS23","v":11.590276529556874},{"$f":"(Calculations!BQ17*'Default-Data'!$F$19/pv_dollar_index)/'Mexico-IO-Data'!$AS23","v":0.16343087406022122},28404.424352064158,538.50037450185118,{"$f":"BH17*'Mexico-IO-Data'!AQ23","v":0},{"$f":"BU17*'Mexico-IO-Data'!$AQ23","v":10698.292759012689},{"$f":"BV17*'Mexico-IO-Data'!$AQ23","v":202.8217360032547},{"$f":"BH17*'Mexico-IO-Data'!AR23","v":0},{"$f":"BU17*'Mexico-IO-Data'!$AR23","v":1311.1849513710665},{"$f":"BV17*'Mexico-IO-Data'!$AR23","v":24.857873498964267},{"$f":"(BZ17*'Default-Data'!$F$19/pv_dollar_index)/'Mexico-IO-Data'!$AS23","v":0},{"$f":"(CA17*'Default-Data'!$F$19/pv_dollar_index)/'Mexico-IO-Data'!$AS23","v":0.12393093750295039},{"$f":"(CB17*'Default-Data'!$F$19/pv_dollar_index)/'Mexico-IO-Data'!$AS23","v":2.3495232795610068E-3},null,"TTL_C27: Basic metals",0,0,null,7358081.0499012945,95757.758378855884,{"$f":"CH17*'Philippines-IO-Data'!AN23","v":0},{"$f":"'Philippines-IO-Data'!$AN23*Calculations!CK17","v":1510465.889642413},{"$f":"'Philippines-IO-Data'!$AN23*Calculations!CL17","v":19657.139778559798},{"$f":"CH17*'Philippines-IO-Data'!AO23","v":0},{"$f":"'Philippines-IO-Data'!$AO23*Calculations!CK17","v":343768.54701050831},{"$f":"'Philippines-IO-Data'!$AO23*Calculations!CL17","v":4473.7894621756304},{"$f":"(CP17*'Default-Data'!$F$19/pv_dollar_index)/'Philippines-IO-Data'!$AP23","v":0},{"$f":"(CQ17*'Default-Data'!$F$19/pv_dollar_index)/'Philippines-IO-Data'!$AP23","v":104.51951141651236},{"$f":"(CR17*'Default-Data'!$F$19/pv_dollar_index)/'Philippines-IO-Data'!$AP23","v":1.3602125407728036},31023.555662739847,1018.3757262247018,{"$f":"CI17*'Philippines-IO-Data'!AN23","v":0},{"$f":"'Philippines-IO-Data'!$AN23*Calculations!CV17","v":6368.5113395998633},{"$f":"'Philippines-IO-Data'!$AN23*Calculations!CW17","v":209.05203229894664},{"$f":"'Philippines-IO-Data'!AO23*Calculations!CI17","v":0},{"$f":"'Philippines-IO-Data'!$AO23*Calculations!CV17","v":1449.4163058210358},{"$f":"'Philippines-IO-Data'!$AO23*Calculations!CW17","v":47.578375576568725},{"$f":"(DA17*'Default-Data'!$F$19/pv_dollar_index)/'Philippines-IO-Data'!$AP23","v":0},{"$f":"(DB17*'Default-Data'!$F$19/pv_dollar_index)/'Philippines-IO-Data'!$AP23","v":0.44068104962176818},{"$f":"(DC17*'Default-Data'!$F$19/pv_dollar_index)/'Philippines-IO-Data'!$AP23","v":1.4465746248455584E-2},null,"DOM_C27: Basic metals",0,0,null,756554.98642783961,35448.061297656037,{"$f":"DI17*'SouthAfrica-IO-Data'!AR23","v":0},{"$f":"DL17*'SouthAfrica-IO-Data'!$AR23","v":120698.42066458672},{"$f":"DM17*'SouthAfrica-IO-Data'!$AR23","v":5655.2730350110924},{"$f":"DI17*'SouthAfrica-IO-Data'!AS23","v":0},{"$f":"DL17*'SouthAfrica-IO-Data'!$AS23","v":77701.241399693492},{"$f":"DM17*'SouthAfrica-IO-Data'!$AS23","v":3640.6585343456923},{"$f":"(DQ17*'Default-Data'!$F$19/pv_dollar_index)/'SouthAfrica-IO-Data'!$AT23","v":0},{"$f":"(DR17*'Default-Data'!$F$19/pv_dollar_index)/'SouthAfrica-IO-Data'!$AT23","v":5.9409668568146747},{"$f":"(DS17*'Default-Data'!$F$19/pv_dollar_index)/'SouthAfrica-IO-Data'!$AT23","v":0.27836146887625618},8203.7686241815936,373.65639976649254,{"$f":"DJ17*'SouthAfrica-IO-Data'!AR23","v":0},{"$f":"DW17*'SouthAfrica-IO-Data'!$AR23","v":1308.8036351616217},{"$f":"DX17*'SouthAfrica-IO-Data'!$AR23","v":59.611975510166999},{"$f":"DJ17*'SouthAfrica-IO-Data'!AS23","v":0},{"$f":"DW17*'SouthAfrica-IO-Data'!$AS23","v":842.56004876066572},{"$f":"DX17*'SouthAfrica-IO-Data'!$AS23","v":38.376015808027248},{"$f":"(EB17*'Default-Data'!$F$19/pv_dollar_index)/'SouthAfrica-IO-Data'!$AT23","v":0},{"$f":"(EC17*'Default-Data'!$F$19/pv_dollar_index)/'SouthAfrica-IO-Data'!$AT23","v":6.4421381620075602E-2},{"$f":"(ED17*'Default-Data'!$F$19/pv_dollar_index)/'SouthAfrica-IO-Data'!$AT23","v":2.934195566314148E-3},null,"LIVEST",0,0,null,11845.328238382759,628534.72403907927,{"$f":"EJ17*'Zambia-IO-Data'!BO21","v":0},{"$f":"EM17*'Zambia-IO-Data'!$BO21","v":3563.8069809414724},{"$f":"EN17*'Zambia-IO-Data'!$BO21","v":189102.09934380141},{"$f":"EJ17*'Zambia-IO-Data'!$BN21","v":0},{"$f":"EM17*'Zambia-IO-Data'!$BN21","v":2292.1001579610052},{"$f":"EN17*'Zambia-IO-Data'!$BN21","v":121623.01552655362},{"$f":"(ER17*'Default-Data'!$F$19/pv_dollar_index)/'Zambia-IO-Data'!$BP21","v":0},{"$f":"(ES17*'Default-Data'!$F$19/pv_dollar_index)/'Zambia-IO-Data'!$BP21","v":21.695732106563145},{"$f":"(ET17*'Default-Data'!$F$19/pv_dollar_index)/'Zambia-IO-Data'!$BP21","v":1151.2151219446705},121.66406053640864,5396.4459758405483,{"$f":"EK17*'Zambia-IO-Data'!BO21","v":0},{"$f":"EX17*'Zambia-IO-Data'!$BO21","v":36.604070359517252},{"$f":"EY17*'Zambia-IO-Data'!$BO21","v":1623.5845435381359},{"$f":"EK17*'Zambia-IO-Data'!BN21","v":0},{"$f":"EX17*'Zambia-IO-Data'!$BN21","v":23.542295051821466},{"$f":"EY17*'Zambia-IO-Data'!$BN21","v":1044.2255735532842},{"$f":"(FC17*'Default-Data'!$F$19/pv_dollar_index)/'Zambia-IO-Data'!$BP21","v":0},{"$f":"(FD17*'Default-Data'!$F$19/pv_dollar_index)/'Zambia-IO-Data'!$BP21","v":0.22283813595316507},{"$f":"(FE17*'Default-Data'!$F$19/pv_dollar_index)/'Zambia-IO-Data'!$BP21","v":9.8840525026567043},null,"TTL_C27: Basic metals",0,0,null,13630701.320855156,414210.21441369317,{"$f":"FK17*CustomRegion1!C19","v":0},{"$f":"FN17*CustomRegion1!$C19","v":2798108.5363733093},{"$f":"FO17*CustomRegion1!$C19","v":85029.01718128621},{"$f":"FK17*CustomRegion1!D19","v":0},{"$f":"FN17*CustomRegion1!$D19","v":636824.51389516168},{"$f":"FO17*CustomRegion1!$D19","v":19351.844944384859},{"$f":"(FS17*'Default-Data'!$C$58/pv_dollar_index)/CustomRegion1!$E19","v":0},{"$f":"(FT17*'Default-Data'!$C$58/pv_dollar_index)/CustomRegion1!$E19","v":194.42939971651671},{"$f":"(FU17*'Default-Data'!$C$58/pv_dollar_index)/CustomRegion1!$E19","v":5.9083271982260346},64367.885292541956,4435.0876168740724,{"$f":"FL17*CustomRegion1!C19","v":0},{"$f":"FY17*CustomRegion1!$C19","v":13213.43084744961},{"$f":"FZ17*CustomRegion1!$C19","v":910.43419030476832},{"$f":"FL17*CustomRegion1!D19","v":0},{"$f":"FY17*CustomRegion1!$D19","v":3007.2588560917043},{"$f":"FZ17*CustomRegion1!$D19","v":207.20669092623683},{"$f":"(GD17*'Default-Data'!$C$58/pv_dollar_index)/CustomRegion1!$E19","v":0},{"$f":"(GE17*'Default-Data'!$C$58/pv_dollar_index)/CustomRegion1!$E19","v":0.91814859733610377},{"$f":"(GF17*'Default-Data'!$C$58/pv_dollar_index)/CustomRegion1!$E19","v":6.3262439895123715E-2},null,"C27 Basic metals",0,0,null,6007670.100012227,488748.59063690528,{"$f":"GL17*CustomRegion2!$C$13","v":0},{"$f":"GO17*CustomRegion2!C$13","v":3701814.9331773408},{"$f":"GP17*CustomRegion2!D$13","v":54083.281795536284},{"$f":"GL17*CustomRegion2!D23","v":0},{"$f":"GO17*CustomRegion2!$D23","v":530581.4327264179},{"$f":"GP17*CustomRegion2!$D23","v":43164.974631782621},{"$f":"(GT17*'Default-Data'!$C$59/pv_dollar_index)/CustomRegion2!$E23","v":0},{"$f":"(GU17*'Default-Data'!$C$59/pv_dollar_index)/CustomRegion2!$E23","v":50.149640834944819},{"$f":"(GV17*'Default-Data'!$C$59/pv_dollar_index)/CustomRegion2!$E23","v":4.0798788666801773},1376142.3152273227,136571.23762269248,{"$f":"GM17*CustomRegion2!C23","v":0},{"$f":"GZ17*CustomRegion2!$C23","v":497046.17200485407},{"$f":"HA17*CustomRegion2!$C23","v":49327.900257984038},{"$f":"GM17*CustomRegion2!D23","v":0},{"$f":"GZ17*CustomRegion2!$D23","v":121537.2264278088},{"$f":"HA17*CustomRegion2!$D23","v":12061.608197647332},{"$f":"(HE17*'Default-Data'!$C$59/pv_dollar_index)/CustomRegion2!$E23","v":0},{"$f":"(HF17*'Default-Data'!$C$59/pv_dollar_index)/CustomRegion2!$E23","v":11.487488776435844},{"$f":"(HG17*'Default-Data'!$C$59/pv_dollar_index)/CustomRegion2!$E23","v":1.1400423793490244},null,"LIVEST",0,0,null,11845.328238382759,628534.72403907927,{"$f":"HM17*CustomRegion3!D22","v":0},{"$f":"HP17*CustomRegion3!$D22","v":3563.8069809414724},{"$f":"HQ17*CustomRegion3!$D22","v":189102.09934380141},{"$f":"HM17*CustomRegion3!E22","v":0},{"$f":"HP17*CustomRegion3!$E22","v":2292.1001579610052},{"$f":"HQ17*CustomRegion3!$E22","v":121623.01552655362},{"$f":"(HU17*'Default-Data'!$C$60/pv_dollar_index)/CustomRegion3!$F22","v":0},{"$f":"(HV17*'Default-Data'!$C$60/pv_dollar_index)/CustomRegion3!$F22","v":21.783602660834408},{"$f":"(HW17*'Default-Data'!$C$60/pv_dollar_index)/CustomRegion3!$F22","v":1155.8776938437829},121.66406053640864,5396.4459758405483,{"$f":"HN17*CustomRegion3!D22","v":0},{"$f":"IA17*CustomRegion3!$D22","v":36.604070359517252},{"$f":"IB17*CustomRegion3!$D22","v":1623.5845435381359},{"$f":"HN17*CustomRegion3!E22","v":0},{"$f":"IA17*CustomRegion3!$E22","v":23.542295051821466},{"$f":"IB17*CustomRegion3!$E22","v":1044.2255735532842},{"$f":"(IF17*'Default-Data'!$C$60/pv_dollar_index)/CustomRegion3!$F22","v":0},{"$f":"(IG17*'Default-Data'!$C$60/pv_dollar_index)/CustomRegion3!$F22","v":0.22374065956577255},{"$f":"(IH17*'Default-Data'!$C$60/pv_dollar_index)/CustomRegion3!$F22","v":9.924084208781613}]
[null,60,"Total",40997035.620869495,486078.39708321507,null,25968580.950403221,33417008.891260602,18918622.399242774,9941285.0626140907,10927841.612182725,6958734.9674256146,2714669.4853975307,3668169.428077572,2566.4768244153456,908.86778424127579,1217.6732112452542,212929.06952201881,355387.08585107338,267502.81175262242,85383.456970604093,116216.6786929688,82202.155440640534,20673.689310583839,39010.674105946586,24.992772604578395,6.4052267682657522,12.949852438066147,null,17,"TTL_C28: Fabricated metal products",{"$f":"'Solar-PV-Inputs'!B24*'Solar-PV-Inputs'!C24","v":11618005.135209208},0,null,3214307.294790782,46619.257158452645,{"$f":"AF18*'Colombia-IO-Data'!AN24","v":4111361.298864963},{"$f":"AI18*'Colombia-IO-Data'!$AN24","v":1137473.9863397544},{"$f":"AJ18*'Colombia-IO-Data'!$AN24","v":16497.549057043361},{"$f":"AK18*'Colombia-IO-Data'!$AO24","v":1078664.0966327714},{"$f":"AL18*'Colombia-IO-Data'!$AO24","v":298429.7075173562},{"$f":"AM18*'Colombia-IO-Data'!$AO24","v":4328.3264487563565},{"$f":"(AN18*'Default-Data'!$F$19/pv_dollar_index)/'Colombia-IO-Data'!$AP24","v":248.87929007880908},{"$f":"(AO18*'Default-Data'!$F$19/pv_dollar_index)/'Colombia-IO-Data'!$AP24","v":68.856443796731199},{"$f":"(AP18*'Default-Data'!$F$19/pv_dollar_index)/'Colombia-IO-Data'!$AP24","v":0.99867124265892349},4982.7713982924652,446.82224960712665,{"$f":"'Colombia-IO-Data'!$AN24*Calculations!AG18","v":0},{"$f":"'Colombia-IO-Data'!$AN24*Calculations!AT18","v":1763.2952688191424},{"$f":"'Colombia-IO-Data'!$AN24*Calculations!AU18","v":158.12075163740585},{"$f":"AV18*'Colombia-IO-Data'!$AO24","v":0},{"$f":"AW18*'Colombia-IO-Data'!$AO24","v":462.62129741862685},{"$f":"AX18*'Colombia-IO-Data'!$AO24","v":41.484842932909842},{"$f":"(AY18*'Default-Data'!$F$19/pv_dollar_index)/'Colombia-IO-Data'!$AP24","v":0},{"$f":"(AZ18*'Default-Data'!$F$19/pv_dollar_index)/'Colombia-IO-Data'!$AP24","v":0.10674023584942176},{"$f":"(BA18*'Default-Data'!$F$19/pv_dollar_index)/'Colombia-IO-Data'!$AP24","v":9.5717640833729613E-3},null,"DOM_C28: Fabricated metal products",11618005.135209208,0,null,932182.8745168373,64238.968274658546,{"$f":"BG18*'Mexico-IO-Data'!AQ24","v":4269892.4766025152},{"$f":"BJ18*'Mexico-IO-Data'!$AQ24","v":342599.31859166588},{"$f":"BK18*'Mexico-IO-Data'!$AQ24","v":23609.344646389065},{"$f":"BG18*'Mexico-IO-Data'!AR24","v":1550274.4212612647},{"$f":"BJ18*'Mexico-IO-Data'!$AR24","v":124387.90045992083},{"$f":"BK18*'Mexico-IO-Data'!$AR24","v":8571.8699729791188},{"$f":"(Calculations!BO18*'Default-Data'!$F$19/pv_dollar_index)/'Mexico-IO-Data'!$AS24","v":325.41401914659644},{"$f":"(Calculations!BP18*'Default-Data'!$F$19/pv_dollar_index)/'Mexico-IO-Data'!$AS24","v":26.109936451727091},{"$f":"(Calculations!BQ18*'Default-Data'!$F$19/pv_dollar_index)/'Mexico-IO-Data'!$AS24","v":1.7992986411010836},10526.188675615609,923.5155369766253,{"$f":"BH18*'Mexico-IO-Data'!AQ24","v":0},{"$f":"BU18*'Mexico-IO-Data'!$AQ24","v":3868.624028844547},{"$f":"BV18*'Mexico-IO-Data'!$AQ24","v":339.41386644868413},{"$f":"BH18*'Mexico-IO-Data'!AR24","v":0},{"$f":"BU18*'Mexico-IO-Data'!$AR24","v":1404.5854574226796},{"$f":"BV18*'Mexico-IO-Data'!$AR24","v":123.23135494865168},{"$f":"(BZ18*'Default-Data'!$F$19/pv_dollar_index)/'Mexico-IO-Data'!$AS24","v":0},{"$f":"(CA18*'Default-Data'!$F$19/pv_dollar_index)/'Mexico-IO-Data'!$AS24","v":0.29483283260450921},{"$f":"(CB18*'Default-Data'!$F$19/pv_dollar_index)/'Mexico-IO-Data'!$AS24","v":2.5867169030690848E-2},null,"TTL_C28: Fabricated metal products",11618005.135209208,0,null,585712.74241917394,60128.48391157575,{"$f":"CH18*'Philippines-IO-Data'!AN24","v":2925856.4154316867},{"$f":"'Philippines-IO-Data'!$AN24*Calculations!CK18","v":147504.78804779492},{"$f":"'Philippines-IO-Data'!$AN24*Calculations!CL18","v":15142.643539526796},{"$f":"CH18*'Philippines-IO-Data'!AO24","v":896915.52843415388},{"$f":"'Philippines-IO-Data'!$AO24*Calculations!CK18","v":45217.302606059748},{"$f":"'Philippines-IO-Data'!$AO24*Calculations!CL18","v":4641.9475885800903},{"$f":"(CP18*'Default-Data'!$F$19/pv_dollar_index)/'Philippines-IO-Data'!$AP24","v":272.69851657183511},{"$f":"(CQ18*'Default-Data'!$F$19/pv_dollar_index)/'Philippines-IO-Data'!$AP24","v":13.747884781947457},{"$f":"(CR18*'Default-Data'!$F$19/pv_dollar_index)/'Philippines-IO-Data'!$AP24","v":1.4113393973900061},7620.7268312128745,639.46138158309441,{"$f":"CI18*'Philippines-IO-Data'!AN24","v":0},{"$f":"'Philippines-IO-Data'!$AN24*Calculations!CV18","v":1919.1894158992441},{"$f":"'Philippines-IO-Data'!$AN24*Calculations!CW18","v":161.04074356582865},{"$f":"'Philippines-IO-Data'!AO24*Calculations!CI18","v":0},{"$f":"'Philippines-IO-Data'!$AO24*Calculations!CV18","v":588.3237400330645},{"$f":"'Philippines-IO-Data'!$AO24*Calculations!CW18","v":49.366723142312274},{"$f":"(DA18*'Default-Data'!$F$19/pv_dollar_index)/'Philippines-IO-Data'!$AP24","v":0},{"$f":"(DB18*'Default-Data'!$F$19/pv_dollar_index)/'Philippines-IO-Data'!$AP24","v":0.17887415936604426},{"$f":"(DC18*'Default-Data'!$F$19/pv_dollar_index)/'Philippines-IO-Data'!$AP24","v":1.5009476079005532E-2},null,"DOM_C28: Fabricated metal products",11618005.135209208,0,null,1542177.9101666119,210857.11871278286,{"$f":"DI18*'SouthAfrica-IO-Data'!AR24","v":3053162.6801872309},{"$f":"DL18*'SouthAfrica-IO-Data'!$AR24","v":405277.84131032298},{"$f":"DM18*'SouthAfrica-IO-Data'!$AR24","v":55412.360229954786},{"$f":"DI18*'SouthAfrica-IO-Data'!AS24","v":2836020.9719630145},{"$f":"DL18*'SouthAfrica-IO-Data'!$AS24","v":376454.37791002041},{"$f":"DM18*'SouthAfrica-IO-Data'!$AS24","v":51471.419042919792},{"$f":"(DQ18*'Default-Data'!$F$19/pv_dollar_index)/'SouthAfrica-IO-Data'!$AT24","v":216.83960637120623},{"$f":"(DR18*'Default-Data'!$F$19/pv_dollar_index)/'SouthAfrica-IO-Data'!$AT24","v":28.783362298701192},{"$f":"(DS18*'Default-Data'!$F$19/pv_dollar_index)/'SouthAfrica-IO-Data'!$AT24","v":3.9354582899677131},30846.63959405791,2222.6352855174046,{"$f":"DJ18*'SouthAfrica-IO-Data'!AR24","v":0},{"$f":"DW18*'SouthAfrica-IO-Data'!$AR24","v":8106.3666026747269},{"$f":"DX18*'SouthAfrica-IO-Data'!$AR24","v":584.09916559972589},{"$f":"DJ18*'SouthAfrica-IO-Data'!AS24","v":0},{"$f":"DW18*'SouthAfrica-IO-Data'!$AS24","v":7529.8397431597987},{"$f":"DX18*'SouthAfrica-IO-Data'!$AS24","v":542.55788402514372},{"$f":"(EB18*'Default-Data'!$F$19/pv_dollar_index)/'SouthAfrica-IO-Data'!$AT24","v":0},{"$f":"(EC18*'Default-Data'!$F$19/pv_dollar_index)/'SouthAfrica-IO-Data'!$AT24","v":0.57572475735779893},{"$f":"(ED18*'Default-Data'!$F$19/pv_dollar_index)/'SouthAfrica-IO-Data'!$AT24","v":4.1483486606297568E-2},null,"FISH",0,0,null,3358.9417465215952,320106.09319048648,{"$f":"EJ18*'Zambia-IO-Data'!BO22","v":0},{"$f":"EM18*'Zambia-IO-Data'!$BO22","v":306.49934823310281},{"$f":"EN18*'Zambia-IO-Data'!$BO22","v":29209.291596060193},{"$f":"EJ18*'Zambia-IO-Data'!$BN22","v":0},{"$f":"EM18*'Zambia-IO-Data'!$BN22","v":130.30690919735784},{"$f":"EN18*'Zambia-IO-Data'!$BN22","v":12418.207508983818},{"$f":"(ER18*'Default-Data'!$F$19/pv_dollar_index)/'Zambia-IO-Data'!$BP22","v":0},{"$f":"(ES18*'Default-Data'!$F$19/pv_dollar_index)/'Zambia-IO-Data'!$BP22","v":1.2334119797343608},{"$f":"(ET18*'Default-Data'!$F$19/pv_dollar_index)/'Zambia-IO-Data'!$BP22","v":117.5437741770826},38.451233592842136,2777.1873955043411,{"$f":"EK18*'Zambia-IO-Data'!BO22","v":0},{"$f":"EX18*'Zambia-IO-Data'!$BO22","v":3.5086282896002383},{"$f":"EY18*'Zambia-IO-Data'!$BO22","v":253.41497140423726},{"$f":"EK18*'Zambia-IO-Data'!BN22","v":0},{"$f":"EX18*'Zambia-IO-Data'!$BN22","v":1.4916785649818245},{"$f":"EY18*'Zambia-IO-Data'!$BN22","v":107.73830958657987},{"$f":"(FC18*'Default-Data'!$F$19/pv_dollar_index)/'Zambia-IO-Data'!$BP22","v":0},{"$f":"(FD18*'Default-Data'!$F$19/pv_dollar_index)/'Zambia-IO-Data'!$BP22","v":1.411939108443567E-2},{"$f":"(FE18*'Default-Data'!$F$19/pv_dollar_index)/'Zambia-IO-Data'!$BP22","v":1.0197902976821693},null,"TTL_C28: Fabricated metal products",11618005.135209208,0,null,1043722.1125024166,147632.65307425894,{"$f":"FK18*CustomRegion1!C20","v":2925856.4154316867},{"$f":"FN18*CustomRegion1!$C20","v":262849.00060324499},{"$f":"FO18*CustomRegion1!$C20","v":37179.527818890296},{"$f":"FK18*CustomRegion1!D20","v":896915.52843415388},{"$f":"FN18*CustomRegion1!$D20","v":80575.844060914096},{"$f":"FO18*CustomRegion1!$D20","v":11397.311113673446},{"$f":"(FS18*'Default-Data'!$C$58/pv_dollar_index)/CustomRegion1!$E20","v":273.83799458854315},{"$f":"(FT18*'Default-Data'!$C$58/pv_dollar_index)/CustomRegion1!$E20","v":24.600675147681702},{"$f":"(FU18*'Default-Data'!$C$58/pv_dollar_index)/CustomRegion1!$E20","v":3.4797221367309374},12627.696717862078,1580.7523057409635,{"$f":"FL18*CustomRegion1!C20","v":0},{"$f":"FY18*CustomRegion1!$C20","v":3180.1352318318718},{"$f":"FZ18*CustomRegion1!$C20","v":398.09366764213814},{"$f":"FL18*CustomRegion1!D20","v":0},{"$f":"FY18*CustomRegion1!$D20","v":974.86419938680353},{"$f":"FZ18*CustomRegion1!$D20","v":122.03483068968646},{"$f":"(GD18*'Default-Data'!$C$58/pv_dollar_index)/CustomRegion1!$E20","v":0},{"$f":"(GE18*'Default-Data'!$C$58/pv_dollar_index)/CustomRegion1!$E20","v":0.29763656542138484},{"$f":"(GF18*'Default-Data'!$C$58/pv_dollar_index)/CustomRegion1!$E20","v":3.7258551387060163E-2},null,"C28 Fabricated metal products except machinery and equipment",{"$f":"AF18","v":11618005.135209208},0,null,1743349.119281264,364114.23754345067,{"$f":"GL18*CustomRegion2!$C$13","v":7158799.3660239344},{"$f":"GO18*CustomRegion2!C$13","v":1074219.4055369007},{"$f":"GP18*CustomRegion2!D$13","v":40291.661791121092},{"$f":"GL18*CustomRegion2!D24","v":1791348.5581827892},{"$f":"GO18*CustomRegion2!$D24","v":268802.25089326338},{"$f":"GP18*CustomRegion2!$D24","v":56141.782246297887},{"$f":"(GT18*'Default-Data'!$C$59/pv_dollar_index)/CustomRegion2!$E24","v":376.01725605229615},{"$f":"(GU18*'Default-Data'!$C$59/pv_dollar_index)/CustomRegion2!$E24","v":56.423572252236205},{"$f":"(GV18*'Default-Data'!$C$59/pv_dollar_index)/CustomRegion2!$E24","v":11.784573590498489},464904.09216663084,101744.60450627893,{"$f":"GM18*CustomRegion2!C24","v":0},{"$f":"GZ18*CustomRegion2!$C24","v":160857.4984963866},{"$f":"HA18*CustomRegion2!$C24","v":35203.782548160874},{"$f":"GM18*CustomRegion2!D24","v":0},{"$f":"GZ18*CustomRegion2!$D24","v":71682.295325562896},{"$f":"HA18*CustomRegion2!$D24","v":15687.723362494356},{"$f":"(HE18*'Default-Data'!$C$59/pv_dollar_index)/CustomRegion2!$E24","v":0},{"$f":"(HF18*'Default-Data'!$C$59/pv_dollar_index)/CustomRegion2!$E24","v":15.046641745251081},{"$f":"(HG18*'Default-Data'!$C$59/pv_dollar_index)/CustomRegion2!$E24","v":3.2929686774396636},null,"FISH",0,0,null,3358.9417465215952,320106.09319048648,{"$f":"HM18*CustomRegion3!D23","v":0},{"$f":"HP18*CustomRegion3!$D23","v":306.49934823310281},{"$f":"HQ18*CustomRegion3!$D23","v":29209.291596060193},{"$f":"HM18*CustomRegion3!E23","v":0},{"$f":"HP18*CustomRegion3!$E23","v":130.30690919735784},{"$f":"HQ18*CustomRegion3!$E23","v":12418.207508983818},{"$f":"(HU18*'Default-Data'!$C$60/pv_dollar_index)/CustomRegion3!$F23","v":0},{"$f":"(HV18*'Default-Data'!$C$60/pv_dollar_index)/CustomRegion3!$F23","v":1.2384074596643184},{"$f":"(HW18*'Default-Data'!$C$60/pv_dollar_index)/CustomRegion3!$F23","v":118.01984184501585},38.451233592842136,2777.1873955043411,{"$f":"HN18*CustomRegion3!D23","v":0},{"$f":"IA18*CustomRegion3!$D23","v":3.5086282896002383},{"$f":"IB18*CustomRegion3!$D23","v":253.41497140423726},{"$f":"HN18*CustomRegion3!E23","v":0},{"$f":"IA18*CustomRegion3!$E23","v":1.4916785649818245},{"$f":"IB18*CustomRegion3!$E23","v":107.73830958657987},{"$f":"(IF18*'Default-Data'!$C$60/pv_dollar_index)/CustomRegion3!$F23","v":0},{"$f":"(IG18*'Default-Data'!$C$60/pv_dollar_index)/CustomRegion3!$F23","v":1.4176576466079775E-2},{"$f":"(IH18*'Default-Data'!$C$60/pv_dollar_index)/CustomRegion3!$F23","v":1.0239205818439414}]
[null,null,null,null,null,null,null,null,null,null,null,null,null,null,null,null,null,null,null,null,null,null,null,null,null,null,null,null,null,18,"TTL_C29: Machinery and equipment, nec",0,0,null,165821.71593656129,32834.652694235847,{"$f":"AF19*'Colombia-IO-Data'!AN25","v":0},{"$f":"AI19*'Colombia-IO-Data'!$AN25","v":58325.250493196596},{"$f":"AJ19*'Colombia-IO-Data'!$AN25","v":11549.086513982749},{"$f":"AK19*'Colombia-IO-Data'!$AO25","v":0},{"$f":"AL19*'Colombia-IO-Data'!$AO25","v":29814.067702063363},{"$f":"AM19*'Colombia-IO-Data'!$AO25","v":5903.5365354330161},{"$f":"(AN19*'Default-Data'!$F$19/pv_dollar_index)/'Colombia-IO-Data'!$AP25","v":0},{"$f":"(AO19*'Default-Data'!$F$19/pv_dollar_index)/'Colombia-IO-Data'!$AP25","v":6.878975602519974},{"$f":"(AP19*'Default-Data'!$F$19/pv_dollar_index)/'Colombia-IO-Data'!$AP25","v":1.3621181853363293},1818.8148528748545,314.70371421920913,{"$f":"'Colombia-IO-Data'!$AN25*Calculations!AG19","v":0},{"$f":"'Colombia-IO-Data'!$AN25*Calculations!AT19","v":639.7402854958799},{"$f":"'Colombia-IO-Data'!$AN25*Calculations!AU19","v":110.69221458302181},{"$f":"AV19*'Colombia-IO-Data'!$AO25","v":0},{"$f":"AW19*'Colombia-IO-Data'!$AO25","v":327.01548681280548},{"$f":"AX19*'Colombia-IO-Data'!$AO25","v":56.582443311657798},{"$f":"(AY19*'Default-Data'!$F$19/pv_dollar_index)/'Colombia-IO-Data'!$AP25","v":0},{"$f":"(AZ19*'Default-Data'!$F$19/pv_dollar_index)/'Colombia-IO-Data'!$AP25","v":7.5452017413772637E-2},{"$f":"(BA19*'Default-Data'!$F$19/pv_dollar_index)/'Colombia-IO-Data'!$AP25","v":1.3055221144645277E-2},null,"DOM_C29: Machinery and equipment, nec",0,0,null,57584.367757748361,11277.305634699747,{"$f":"BG19*'Mexico-IO-Data'!AQ25","v":0},{"$f":"BJ19*'Mexico-IO-Data'!$AQ25","v":20411.100730072631},{"$f":"BK19*'Mexico-IO-Data'!$AQ25","v":3997.3039600265415},{"$f":"BG19*'Mexico-IO-Data'!AR25","v":0},{"$f":"BJ19*'Mexico-IO-Data'!$AR25","v":7299.2155481798154},{"$f":"BK19*'Mexico-IO-Data'!$AR25","v":1429.4762248092954},{"$f":"(Calculations!BO19*'Default-Data'!$F$19/pv_dollar_index)/'Mexico-IO-Data'!$AS25","v":0},{"$f":"(Calculations!BP19*'Default-Data'!$F$19/pv_dollar_index)/'Mexico-IO-Data'!$AS25","v":0.79933697390538805},{"$f":"(Calculations!BQ19*'Default-Data'!$F$19/pv_dollar_index)/'Mexico-IO-Data'!$AS25","v":0.15654191772617204},806.55768466706184,162.12537729981159,{"$f":"BH19*'Mexico-IO-Data'!AQ25","v":0},{"$f":"BU19*'Mexico-IO-Data'!$AQ25","v":285.88887552973762},{"$f":"BV19*'Mexico-IO-Data'!$AQ25","v":57.466245368687161},{"$f":"BH19*'Mexico-IO-Data'!AR25","v":0},{"$f":"BU19*'Mexico-IO-Data'!$AR25","v":102.23674621544426},{"$f":"BV19*'Mexico-IO-Data'!$AR25","v":20.550509119414112},{"$f":"(BZ19*'Default-Data'!$F$19/pv_dollar_index)/'Mexico-IO-Data'!$AS25","v":0},{"$f":"(CA19*'Default-Data'!$F$19/pv_dollar_index)/'Mexico-IO-Data'!$AS25","v":1.1195944386402597E-2},{"$f":"(CB19*'Default-Data'!$F$19/pv_dollar_index)/'Mexico-IO-Data'!$AS25","v":2.2504859136299729E-3},null,"TTL_C29: Machinery and equipment, nec",0,0,null,74797.325314508067,14443.346167440424,{"$f":"CH19*'Philippines-IO-Data'!AN25","v":0},{"$f":"'Philippines-IO-Data'!$AN25*Calculations!CK19","v":27365.903272410193},{"$f":"'Philippines-IO-Data'!$AN25*Calculations!CL19","v":5284.3495738135089},{"$f":"CH19*'Philippines-IO-Data'!AO25","v":0},{"$f":"'Philippines-IO-Data'!$AO25*Calculations!CK19","v":8141.5574152409254},{"$f":"'Philippines-IO-Data'!$AO25*Calculations!CL19","v":1572.1328482799047},{"$f":"(CP19*'Default-Data'!$F$19/pv_dollar_index)/'Philippines-IO-Data'!$AP25","v":0},{"$f":"(CQ19*'Default-Data'!$F$19/pv_dollar_index)/'Philippines-IO-Data'!$AP25","v":2.4753620149677422},{"$f":"(CR19*'Default-Data'!$F$19/pv_dollar_index)/'Philippines-IO-Data'!$AP25","v":0.47799183087870667},943.14258352478055,153.60377468515185,{"$f":"CI19*'Philippines-IO-Data'!AN25","v":0},{"$f":"'Philippines-IO-Data'!$AN25*Calculations!CV19","v":345.06512905781625},{"$f":"'Philippines-IO-Data'!$AN25*Calculations!CW19","v":56.198614357345491},{"$f":"'Philippines-IO-Data'!AO25*Calculations!CI19","v":0},{"$f":"'Philippines-IO-Data'!$AO25*Calculations!CV19","v":102.65941278298986},{"$f":"'Philippines-IO-Data'!$AO25*Calculations!CW19","v":16.719500938549292},{"$f":"(DA19*'Default-Data'!$F$19/pv_dollar_index)/'Philippines-IO-Data'!$AP25","v":0},{"$f":"(DB19*'Default-Data'!$F$19/pv_dollar_index)/'Philippines-IO-Data'!$AP25","v":3.1212604409839081E-2},{"$f":"(DC19*'Default-Data'!$F$19/pv_dollar_index)/'Philippines-IO-Data'!$AP25","v":5.0834030175880927E-3},null,"DOM_C29: Machinery and equipment, nec",0,0,null,78624.277513902372,34060.334349671641,{"$f":"DI19*'SouthAfrica-IO-Data'!AR25","v":0},{"$f":"DL19*'SouthAfrica-IO-Data'!$AR25","v":23893.299735483259},{"$f":"DM19*'SouthAfrica-IO-Data'!$AR25","v":10350.66780185779},{"$f":"DI19*'SouthAfrica-IO-Data'!AS25","v":0},{"$f":"DL19*'SouthAfrica-IO-Data'!$AS25","v":19129.936500432865},{"$f":"DM19*'SouthAfrica-IO-Data'!$AS25","v":8287.160834991706},{"$f":"(DQ19*'Default-Data'!$F$19/pv_dollar_index)/'SouthAfrica-IO-Data'!$AT25","v":0},{"$f":"(DR19*'Default-Data'!$F$19/pv_dollar_index)/'SouthAfrica-IO-Data'!$AT25","v":1.4626576960003277},{"$f":"(DS19*'Default-Data'!$F$19/pv_dollar_index)/'SouthAfrica-IO-Data'!$AT25","v":0.63362884518821305},939.68568685317564,359.02843320750526,{"$f":"DJ19*'SouthAfrica-IO-Data'!AR25","v":0},{"$f":"DW19*'SouthAfrica-IO-Data'!$AR25","v":285.5630917455029},{"$f":"DX19*'SouthAfrica-IO-Data'!$AR25","v":109.10591791029205},{"$f":"DJ19*'SouthAfrica-IO-Data'!AS25","v":0},{"$f":"DW19*'SouthAfrica-IO-Data'!$AS25","v":228.6332935356811},{"$f":"DX19*'SouthAfrica-IO-Data'!$AS25","v":87.354584948587188},{"$f":"(EB19*'Default-Data'!$F$19/pv_dollar_index)/'SouthAfrica-IO-Data'!$AT25","v":0},{"$f":"(EC19*'Default-Data'!$F$19/pv_dollar_index)/'SouthAfrica-IO-Data'!$AT25","v":1.7481095472758054E-2},{"$f":"(ED19*'Default-Data'!$F$19/pv_dollar_index)/'SouthAfrica-IO-Data'!$AT25","v":6.6790528004666569E-3},null,"FOREST",0,0,null,158537.0967384449,13746.318980491895,{"$f":"EJ19*'Zambia-IO-Data'!BO23","v":0},{"$f":"EM19*'Zambia-IO-Data'!$BO23","v":50818.402431860915},{"$f":"EN19*'Zambia-IO-Data'!$BO23","v":4406.3249818423374},{"$f":"EJ19*'Zambia-IO-Data'!$BN23","v":0},{"$f":"EM19*'Zambia-IO-Data'!$BN23","v":28839.993316052773},{"$f":"EN19*'Zambia-IO-Data'!$BN23","v":2500.6371106427537},{"$f":"(ER19*'Default-Data'!$F$19/pv_dollar_index)/'Zambia-IO-Data'!$BP23","v":0},{"$f":"(ES19*'Default-Data'!$F$19/pv_dollar_index)/'Zambia-IO-Data'!$BP23","v":272.9831708125547},{"$f":"(ET19*'Default-Data'!$F$19/pv_dollar_index)/'Zambia-IO-Data'!$BP23","v":23.669625718492831},2900.871558122134,119.8902087074357,{"$f":"EK19*'Zambia-IO-Data'!BO23","v":0},{"$f":"EX19*'Zambia-IO-Data'!$BO23","v":929.86222957646453},{"$f":"EY19*'Zambia-IO-Data'!$BO23","v":38.430304320419751},{"$f":"EK19*'Zambia-IO-Data'!BN23","v":0},{"$f":"EX19*'Zambia-IO-Data'!$BN23","v":527.70687787347561},{"$f":"EY19*'Zambia-IO-Data'!$BN23","v":21.809613578877585},{"$f":"(FC19*'Default-Data'!$F$19/pv_dollar_index)/'Zambia-IO-Data'!$BP23","v":0},{"$f":"(FD19*'Default-Data'!$F$19/pv_dollar_index)/'Zambia-IO-Data'!$BP23","v":4.9949767741905715},{"$f":"(FE19*'Default-Data'!$F$19/pv_dollar_index)/'Zambia-IO-Data'!$BP23","v":0.20643754676755269},null,"TTL_C29: Machinery and equipment, nec",0,0,null,313340.38030270668,76460.88673805946,{"$f":"FK19*CustomRegion1!C21","v":0},{"$f":"FN19*CustomRegion1!$C21","v":114641.03164984263},{"$f":"FO19*CustomRegion1!$C21","v":27974.546172583392},{"$f":"FK19*CustomRegion1!D21","v":0},{"$f":"FN19*CustomRegion1!$D21","v":34106.549746546792},{"$f":"FO19*CustomRegion1!$D21","v":8322.6331527311868},{"$f":"(FS19*'Default-Data'!$C$58/pv_dollar_index)/CustomRegion1!$E21","v":0},{"$f":"(FT19*'Default-Data'!$C$58/pv_dollar_index)/CustomRegion1!$E21","v":10.413097876936158},{"$f":"(FU19*'Default-Data'!$C$58/pv_dollar_index)/CustomRegion1!$E21","v":2.5409897587778771},4125.9715066808149,818.69234544875599,{"$f":"FL19*CustomRegion1!C21","v":0},{"$f":"FY19*CustomRegion1!$C21","v":1509.5584859723178},{"$f":"FZ19*CustomRegion1!$C21","v":299.53284347010793},{"$f":"FL19*CustomRegion1!D21","v":0},{"$f":"FY19*CustomRegion1!$D21","v":449.10474771715292},{"$f":"FZ19*CustomRegion1!$D21","v":89.113223071312746},{"$f":"(GD19*'Default-Data'!$C$58/pv_dollar_index)/CustomRegion1!$E21","v":0},{"$f":"(GE19*'Default-Data'!$C$58/pv_dollar_index)/CustomRegion1!$E21","v":0.13711652834215296},{"$f":"(GF19*'Default-Data'!$C$58/pv_dollar_index)/CustomRegion1!$E21","v":2.7207229135359175E-2},null,"C29 Machinery and equipment n.e.c ",0,0,null,528890.85755221569,147711.30239863321,{"$f":"GL19*CustomRegion2!$C$13","v":0},{"$f":"GO19*CustomRegion2!C$13","v":325892.74076547194},{"$f":"GP19*CustomRegion2!D$13","v":16345.237909741258},{"$f":"GL19*CustomRegion2!D25","v":0},{"$f":"GO19*CustomRegion2!$D25","v":142314.60494548941},{"$f":"GP19*CustomRegion2!$D25","v":39746.339621251296},{"$f":"(GT19*'Default-Data'!$C$59/pv_dollar_index)/CustomRegion2!$E25","v":0},{"$f":"(GU19*'Default-Data'!$C$59/pv_dollar_index)/CustomRegion2!$E25","v":15.584870032785318},{"$f":"(GV19*'Default-Data'!$C$59/pv_dollar_index)/CustomRegion2!$E25","v":4.3526209942641589},135324.11285561486,41275.035398368578,{"$f":"GM19*CustomRegion2!C25","v":0},{"$f":"GZ19*CustomRegion2!$C25","v":50847.738724692608},{"$f":"HA19*CustomRegion2!$C25","v":15509.004060702426},{"$f":"GM19*CustomRegion2!D25","v":0},{"$f":"GZ19*CustomRegion2!$D25","v":36413.179365166681},{"$f":"HA19*CustomRegion2!$D25","v":11106.337485234351},{"$f":"(HE19*'Default-Data'!$C$59/pv_dollar_index)/CustomRegion2!$E25","v":0},{"$f":"(HF19*'Default-Data'!$C$59/pv_dollar_index)/CustomRegion2!$E25","v":3.9876066697721555},{"$f":"(HG19*'Default-Data'!$C$59/pv_dollar_index)/CustomRegion2!$E25","v":1.2162548342380453},null,"FOREST",0,0,null,158537.0967384449,13746.318980491895,{"$f":"HM19*CustomRegion3!D24","v":0},{"$f":"HP19*CustomRegion3!$D24","v":50818.402431860915},{"$f":"HQ19*CustomRegion3!$D24","v":4406.3249818423374},{"$f":"HM19*CustomRegion3!E24","v":0},{"$f":"HP19*CustomRegion3!$E24","v":28839.993316052773},{"$f":"HQ19*CustomRegion3!$E24","v":2500.6371106427537},{"$f":"(HU19*'Default-Data'!$C$60/pv_dollar_index)/CustomRegion3!$F24","v":0},{"$f":"(HV19*'Default-Data'!$C$60/pv_dollar_index)/CustomRegion3!$F24","v":274.08878837863671},{"$f":"(HW19*'Default-Data'!$C$60/pv_dollar_index)/CustomRegion3!$F24","v":23.765490800208514},2900.871558122134,119.8902087074357,{"$f":"HN19*CustomRegion3!D24","v":0},{"$f":"IA19*CustomRegion3!$D24","v":929.86222957646453},{"$f":"IB19*CustomRegion3!$D24","v":38.430304320419751},{"$f":"HN19*CustomRegion3!E24","v":0},{"$f":"IA19*CustomRegion3!$E24","v":527.70687787347561},{"$f":"IB19*CustomRegion3!$E24","v":21.809613578877585},{"$f":"(IF19*'Default-Data'!$C$60/pv_dollar_index)/CustomRegion3!$F24","v":0},{"$f":"(IG19*'Default-Data'!$C$60/pv_dollar_index)/CustomRegion3!$F24","v":5.015207083800056},{"$f":"(IH19*'Default-Data'!$C$60/pv_dollar_index)/CustomRegion3!$F24","v":0.20727364584767441}]
[null,null,null,null,null,null,null,null,null,null,null,null,null,null,null,null,null,null,null,null,null,null,null,null,null,null,null,null,null,19,"TTL_C30T33X: Computer, Electronic and optical equipment",{"$f":"'Solar-PV-Inputs'!B13*'Solar-PV-Inputs'!C13+'Solar-PV-Inputs'!B14*'Solar-PV-Inputs'!C14","v":0},{"$f":"'Solar-PV-Inputs'!B35*'Solar-PV-Inputs'!C35","v":0},null,50264.314915350638,6116.1077018923534,{"$f":"AF20*'Colombia-IO-Data'!AN26","v":0},{"$f":"AI20*'Colombia-IO-Data'!$AN26","v":12007.971508053421},{"$f":"AJ20*'Colombia-IO-Data'!$AN26","v":1461.1170399555249},{"$f":"AK20*'Colombia-IO-Data'!$AO26","v":0},{"$f":"AL20*'Colombia-IO-Data'!$AO26","v":4769.9101602429291},{"$f":"AM20*'Colombia-IO-Data'!$AO26","v":580.39753088302609},{"$f":"(AN20*'Default-Data'!$F$19/pv_dollar_index)/'Colombia-IO-Data'!$AP26","v":0},{"$f":"(AO20*'Default-Data'!$F$19/pv_dollar_index)/'Colombia-IO-Data'!$AP26","v":1.1005574934094751},{"$f":"(AP20*'Default-Data'!$F$19/pv_dollar_index)/'Colombia-IO-Data'!$AP26","v":0.13391465044640169},259.79618399053282,58.619831562528759,{"$f":"'Colombia-IO-Data'!$AN26*Calculations!AG20","v":0},{"$f":"'Colombia-IO-Data'!$AN26*Calculations!AT20","v":62.064412506427978},{"$f":"'Colombia-IO-Data'!$AN26*Calculations!AU20","v":14.004075622937904},{"$f":"AV20*'Colombia-IO-Data'!$AO26","v":0},{"$f":"AW20*'Colombia-IO-Data'!$AO26","v":24.653762011791251},{"$f":"AX20*'Colombia-IO-Data'!$AO26","v":5.5628198779337632},{"$f":"(AY20*'Default-Data'!$F$19/pv_dollar_index)/'Colombia-IO-Data'!$AP26","v":0},{"$f":"(AZ20*'Default-Data'!$F$19/pv_dollar_index)/'Colombia-IO-Data'!$AP26","v":5.6883424658524086E-3},{"$f":"(BA20*'Default-Data'!$F$19/pv_dollar_index)/'Colombia-IO-Data'!$AP26","v":1.2835049079489129E-3},null,"DOM_C30T33X: Computer, Electronic and optical equipment",0,0,null,58431.880752996447,63878.155482444876,{"$f":"BG20*'Mexico-IO-Data'!AQ26","v":0},{"$f":"BJ20*'Mexico-IO-Data'!$AQ26","v":7920.2810839440654},{"$f":"BK20*'Mexico-IO-Data'!$AQ26","v":8658.5086775407508},{"$f":"BG20*'Mexico-IO-Data'!AR26","v":0},{"$f":"BJ20*'Mexico-IO-Data'!$AR26","v":3395.7454166219991},{"$f":"BK20*'Mexico-IO-Data'!$AR26","v":3712.253497687665},{"$f":"(Calculations!BO20*'Default-Data'!$F$19/pv_dollar_index)/'Mexico-IO-Data'!$AS26","v":0},{"$f":"(Calculations!BP20*'Default-Data'!$F$19/pv_dollar_index)/'Mexico-IO-Data'!$AS26","v":0.42587070044144193},{"$f":"(Calculations!BQ20*'Default-Data'!$F$19/pv_dollar_index)/'Mexico-IO-Data'!$AS26","v":0.46556493591593134},387.55189204069779,918.3284016832572,{"$f":"BH20*'Mexico-IO-Data'!AQ26","v":0},{"$f":"BU20*'Mexico-IO-Data'!$AQ26","v":52.531595423946086},{"$f":"BV20*'Mexico-IO-Data'!$AQ26","v":124.47689471859934},{"$f":"BH20*'Mexico-IO-Data'!AR26","v":0},{"$f":"BU20*'Mexico-IO-Data'!$AR26","v":22.522423446602755},{"$f":"BV20*'Mexico-IO-Data'!$AR26","v":53.368288351899601},{"$f":"(BZ20*'Default-Data'!$F$19/pv_dollar_index)/'Mexico-IO-Data'!$AS26","v":0},{"$f":"(CA20*'Default-Data'!$F$19/pv_dollar_index)/'Mexico-IO-Data'!$AS26","v":2.8246052256723614E-3},{"$f":"(CB20*'Default-Data'!$F$19/pv_dollar_index)/'Mexico-IO-Data'!$AS26","v":6.6930784123367983E-3},null,"TTL_C30T33X: Computer, Electronic and optical equipment",0,0,null,683620.61453819217,342821.10451133572,{"$f":"CH20*'Philippines-IO-Data'!AN26","v":0},{"$f":"'Philippines-IO-Data'!$AN26*Calculations!CK20","v":168484.63120049602},{"$f":"'Philippines-IO-Data'!$AN26*Calculations!CL20","v":84491.435941202435},{"$f":"CH20*'Philippines-IO-Data'!AO26","v":0},{"$f":"'Philippines-IO-Data'!$AO26*Calculations!CK20","v":63222.215626009958},{"$f":"'Philippines-IO-Data'!$AO26*Calculations!CL20","v":31704.58779275401},{"$f":"(CP20*'Default-Data'!$F$19/pv_dollar_index)/'Philippines-IO-Data'!$AP26","v":0},{"$f":"(CQ20*'Default-Data'!$F$19/pv_dollar_index)/'Philippines-IO-Data'!$AP26","v":19.222104946378245},{"$f":"(CR20*'Default-Data'!$F$19/pv_dollar_index)/'Philippines-IO-Data'!$AP26","v":9.6394741595113889},4230.4242514332,3645.8736835777217,{"$f":"CI20*'Philippines-IO-Data'!AN26","v":0},{"$f":"'Philippines-IO-Data'!$AN26*Calculations!CV20","v":1042.6272330974843},{"$f":"'Philippines-IO-Data'!$AN26*Calculations!CW20","v":898.5593323515385},{"$f":"'Philippines-IO-Data'!AO26*Calculations!CI20","v":0},{"$f":"'Philippines-IO-Data'!$AO26*Calculations!CV20","v":391.23570665622373},{"$f":"'Philippines-IO-Data'!$AO26*Calculations!CW20","v":337.17563114163295},{"$f":"(DA20*'Default-Data'!$F$19/pv_dollar_index)/'Philippines-IO-Data'!$AP26","v":0},{"$f":"(DB20*'Default-Data'!$F$19/pv_dollar_index)/'Philippines-IO-Data'!$AP26","v":0.11895144353375783},{"$f":"(DC20*'Default-Data'!$F$19/pv_dollar_index)/'Philippines-IO-Data'!$AP26","v":0.10251499892862628},null,"DOM_C30T33X: Computer, Electronic and optical equipment",0,0,null,20170.353208641274,59922.178828055461,{"$f":"DI20*'SouthAfrica-IO-Data'!AR26","v":0},{"$f":"DL20*'SouthAfrica-IO-Data'!$AR26","v":5133.7533164765873},{"$f":"DM20*'SouthAfrica-IO-Data'!$AR26","v":15251.378154213064},{"$f":"DI20*'SouthAfrica-IO-Data'!AS26","v":0},{"$f":"DL20*'SouthAfrica-IO-Data'!$AS26","v":3588.8252137836184},{"$f":"DM20*'SouthAfrica-IO-Data'!$AS26","v":10661.69858398145},{"$f":"(DQ20*'Default-Data'!$F$19/pv_dollar_index)/'SouthAfrica-IO-Data'!$AT26","v":0},{"$f":"(DR20*'Default-Data'!$F$19/pv_dollar_index)/'SouthAfrica-IO-Data'!$AT26","v":0.27439833992244844},{"$f":"(DS20*'Default-Data'!$F$19/pv_dollar_index)/'SouthAfrica-IO-Data'!$AT26","v":0.81518386043484259},233.61743848091842,631.63695805658153,{"$f":"DJ20*'SouthAfrica-IO-Data'!AR26","v":0},{"$f":"DW20*'SouthAfrica-IO-Data'!$AR26","v":59.460252737387258},{"$f":"DX20*'SouthAfrica-IO-Data'!$AR26","v":160.76408254680203},{"$f":"DJ20*'SouthAfrica-IO-Data'!AS26","v":0},{"$f":"DW20*'SouthAfrica-IO-Data'!$AS26","v":41.566557854855773},{"$f":"DX20*'SouthAfrica-IO-Data'!$AS26","v":112.38447921972434},{"$f":"(EB20*'Default-Data'!$F$19/pv_dollar_index)/'SouthAfrica-IO-Data'!$AT26","v":0},{"$f":"(EC20*'Default-Data'!$F$19/pv_dollar_index)/'SouthAfrica-IO-Data'!$AT26","v":3.1781415344097961E-3},{"$f":"(ED20*'Default-Data'!$F$19/pv_dollar_index)/'SouthAfrica-IO-Data'!$AT26","v":8.5928159478207995E-3},null,"MINING",0,0,null,3205479.4159937161,79183.715836037882,{"$f":"EJ20*'Zambia-IO-Data'!BO24","v":0},{"$f":"EM20*'Zambia-IO-Data'!$BO24","v":783137.76734270272},{"$f":"EN20*'Zambia-IO-Data'!$BO24","v":19345.548787593678},{"$f":"EJ20*'Zambia-IO-Data'!$BN24","v":0},{"$f":"EM20*'Zambia-IO-Data'!$BN24","v":28561.800677963056},{"$f":"EN20*'Zambia-IO-Data'!$BN24","v":705.55109396896978},{"$f":"(ER20*'Default-Data'!$F$19/pv_dollar_index)/'Zambia-IO-Data'!$BP24","v":0},{"$f":"(ES20*'Default-Data'!$F$19/pv_dollar_index)/'Zambia-IO-Data'!$BP24","v":24.608197041450918},{"$f":"(ET20*'Default-Data'!$F$19/pv_dollar_index)/'Zambia-IO-Data'!$BP24","v":0.60788675542419945},78028.077532278985,691.40228551311884,{"$f":"EK20*'Zambia-IO-Data'!BO24","v":0},{"$f":"EX20*'Zambia-IO-Data'!$BO24","v":19063.212237077758},{"$f":"EY20*'Zambia-IO-Data'!$BO24","v":168.91802190672601},{"$f":"EK20*'Zambia-IO-Data'!BN24","v":0},{"$f":"EX20*'Zambia-IO-Data'!$BN24","v":695.25400370437717},{"$f":"EY20*'Zambia-IO-Data'!$BN24","v":6.1606055457984938},{"$f":"(FC20*'Default-Data'!$F$19/pv_dollar_index)/'Zambia-IO-Data'!$BP24","v":0},{"$f":"(FD20*'Default-Data'!$F$19/pv_dollar_index)/'Zambia-IO-Data'!$BP24","v":0.59901501694238135},{"$f":"(FE20*'Default-Data'!$F$19/pv_dollar_index)/'Zambia-IO-Data'!$BP24","v":5.307837446069468E-3},null,"TTL_C30T33X: Computer, Electronic and optical equipment",0,0,null,1302174.50356768,836937.42613640963,{"$f":"FK20*CustomRegion1!C22","v":0},{"$f":"FN20*CustomRegion1!$C22","v":320932.96534145466},{"$f":"FO20*CustomRegion1!$C22","v":206270.97922689607},{"$f":"FK20*CustomRegion1!D22","v":0},{"$f":"FN20*CustomRegion1!$D22","v":120426.96708738436},{"$f":"FO20*CustomRegion1!$D22","v":77401.174416629234},{"$f":"(FS20*'Default-Data'!$C$58/pv_dollar_index)/CustomRegion1!$E22","v":0},{"$f":"(FT20*'Default-Data'!$C$58/pv_dollar_index)/CustomRegion1!$E22","v":36.767653269603116},{"$f":"(FU20*'Default-Data'!$C$58/pv_dollar_index)/CustomRegion1!$E22","v":23.631414229220628},9296.5291783357206,8961.36957899544,{"$f":"FL20*CustomRegion1!C22","v":0},{"$f":"FY20*CustomRegion1!$C22","v":2291.2157075816763},{"$f":"FZ20*CustomRegion1!$C22","v":2208.6125205401327},{"$f":"FL20*CustomRegion1!D22","v":0},{"$f":"FY20*CustomRegion1!$D22","v":859.75636162358319},{"$f":"FZ20*CustomRegion1!$D22","v":828.76032082552661},{"$f":"(GD20*'Default-Data'!$C$58/pv_dollar_index)/CustomRegion1!$E22","v":0},{"$f":"(GE20*'Default-Data'!$C$58/pv_dollar_index)/CustomRegion1!$E22","v":0.26249289976366874},{"$f":"(GF20*'Default-Data'!$C$58/pv_dollar_index)/CustomRegion1!$E22","v":0.25302947385204166},null,"C30 Office, accounting and computing machinery",0,0,null,1574881.378894432,1001222.5757356072,{"$f":"GL20*CustomRegion2!$C$13","v":0},{"$f":"GO20*CustomRegion2!C$13","v":970412.70730935514},{"$f":"GP20*CustomRegion2!D$13","v":110791.93626522287},{"$f":"GL20*CustomRegion2!D26","v":0},{"$f":"GO20*CustomRegion2!$D26","v":108924.60541533983},{"$f":"GP20*CustomRegion2!$D26","v":69248.246538726526},{"$f":"(GT20*'Default-Data'!$C$59/pv_dollar_index)/CustomRegion2!$E26","v":0},{"$f":"(GU20*'Default-Data'!$C$59/pv_dollar_index)/CustomRegion2!$E26","v":13.660564121348017},{"$f":"(GV20*'Default-Data'!$C$59/pv_dollar_index)/CustomRegion2!$E26","v":8.6846319849047493},280114.797250306,279772.07284792932,{"$f":"GM20*CustomRegion2!C26","v":0},{"$f":"GZ20*CustomRegion2!$C26","v":46020.300732411946},{"$f":"HA20*CustomRegion2!$C26","v":45963.994245855232},{"$f":"GM20*CustomRegion2!D26","v":0},{"$f":"GZ20*CustomRegion2!$D26","v":19373.772634804103},{"$f":"HA20*CustomRegion2!$D26","v":19350.068550931264},{"$f":"(HE20*'Default-Data'!$C$59/pv_dollar_index)/CustomRegion2!$E26","v":0},{"$f":"(HF20*'Default-Data'!$C$59/pv_dollar_index)/CustomRegion2!$E26","v":2.4297234067637703},{"$f":"(HG20*'Default-Data'!$C$59/pv_dollar_index)/CustomRegion2!$E26","v":2.4267506059310477},null,"MINING",0,0,null,3205479.4159937161,79183.715836037882,{"$f":"HM20*CustomRegion3!D25","v":0},{"$f":"HP20*CustomRegion3!$D25","v":783137.76734270272},{"$f":"HQ20*CustomRegion3!$D25","v":19345.548787593678},{"$f":"HM20*CustomRegion3!E25","v":0},{"$f":"HP20*CustomRegion3!$E25","v":28561.800677963056},{"$f":"HQ20*CustomRegion3!$E25","v":705.55109396896978},{"$f":"(HU20*'Default-Data'!$C$60/pv_dollar_index)/CustomRegion3!$F25","v":0},{"$f":"(HV20*'Default-Data'!$C$60/pv_dollar_index)/CustomRegion3!$F25","v":24.707863459851914},{"$f":"(HW20*'Default-Data'!$C$60/pv_dollar_index)/CustomRegion3!$F25","v":0.61034877633554363},78028.077532278985,691.40228551311884,{"$f":"HN20*CustomRegion3!D25","v":0},{"$f":"IA20*CustomRegion3!$D25","v":19063.212237077758},{"$f":"IB20*CustomRegion3!$D25","v":168.91802190672601},{"$f":"HN20*CustomRegion3!E25","v":0},{"$f":"IA20*CustomRegion3!$E25","v":695.25400370437717},{"$f":"IB20*CustomRegion3!$E25","v":6.1606055457984938},{"$f":"(IF20*'Default-Data'!$C$60/pv_dollar_index)/CustomRegion3!$F25","v":0},{"$f":"(IG20*'Default-Data'!$C$60/pv_dollar_index)/CustomRegion3!$F25","v":0.60144110615186286},{"$f":"(IH20*'Default-Data'!$C$60/pv_dollar_index)/CustomRegion3!$F25","v":5.3293348823429719E-3}]
[null,null,null,null,null,null,null,null,null,null,null,null,null,null,null,null,null,null,null,null,null,null,null,null,null,null,null,null,null,20,"TTL_C31: Electrical machinery and apparatus, nec",0,0,null,219323.95567014557,22792.588197531557,{"$f":"AF21*'Colombia-IO-Data'!AN27","v":0},{"$f":"AI21*'Colombia-IO-Data'!$AN27","v":55474.099833031927},{"$f":"AJ21*'Colombia-IO-Data'!$AN27","v":5764.9804338959448},{"$f":"AK21*'Colombia-IO-Data'!$AO27","v":0},{"$f":"AL21*'Colombia-IO-Data'!$AO27","v":28713.283032843716},{"$f":"AM21*'Colombia-IO-Data'!$AO27","v":2983.9423330073591},{"$f":"(AN21*'Default-Data'!$F$19/pv_dollar_index)/'Colombia-IO-Data'!$AP27","v":0},{"$f":"(AO21*'Default-Data'!$F$19/pv_dollar_index)/'Colombia-IO-Data'!$AP27","v":6.6249924507118783},{"$f":"(AP21*'Default-Data'!$F$19/pv_dollar_index)/'Colombia-IO-Data'!$AP27","v":0.68848258859570388},4340.5523196220947,218.4555514939666,{"$f":"'Colombia-IO-Data'!$AN27*Calculations!AG21","v":0},{"$f":"'Colombia-IO-Data'!$AN27*Calculations!AT21","v":1097.8656297415603},{"$f":"'Colombia-IO-Data'!$AN27*Calculations!AU21","v":55.25445241778457},{"$f":"AV21*'Colombia-IO-Data'!$AO27","v":0},{"$f":"AW21*'Colombia-IO-Data'!$AO27","v":568.25305239167005},{"$f":"AX21*'Colombia-IO-Data'!$AO27","v":28.599593970372897},{"$f":"(AY21*'Default-Data'!$F$19/pv_dollar_index)/'Colombia-IO-Data'!$AP27","v":0},{"$f":"(AZ21*'Default-Data'!$F$19/pv_dollar_index)/'Colombia-IO-Data'!$AP27","v":0.13111256479736477},{"$f":"(BA21*'Default-Data'!$F$19/pv_dollar_index)/'Colombia-IO-Data'!$AP27","v":6.5987610657554409E-3},null,"DOM_C31: Electrical machinery and apparatus, nec",0,0,null,91405.958487882031,30948.696224177067,{"$f":"BG21*'Mexico-IO-Data'!AQ27","v":0},{"$f":"BJ21*'Mexico-IO-Data'!$AQ27","v":24523.792033354282},{"$f":"BK21*'Mexico-IO-Data'!$AQ27","v":8303.3907467399476},{"$f":"BG21*'Mexico-IO-Data'!AR27","v":0},{"$f":"BJ21*'Mexico-IO-Data'!$AR27","v":8461.564337941847},{"$f":"BK21*'Mexico-IO-Data'!$AR27","v":2864.9596657422462},{"$f":"(Calculations!BO21*'Default-Data'!$F$19/pv_dollar_index)/'Mexico-IO-Data'!$AS27","v":0},{"$f":"(Calculations!BP21*'Default-Data'!$F$19/pv_dollar_index)/'Mexico-IO-Data'!$AS27","v":1.191180061103452},{"$f":"(Calculations!BQ21*'Default-Data'!$F$19/pv_dollar_index)/'Mexico-IO-Data'!$AS27","v":0.4033158283031929},2091.2867770072075,444.92622748851818,{"$f":"BH21*'Mexico-IO-Data'!AQ27","v":0},{"$f":"BU21*'Mexico-IO-Data'!$AQ27","v":561.08248138142653},{"$f":"BV21*'Mexico-IO-Data'!$AQ27","v":119.37163018272862},{"$f":"BH21*'Mexico-IO-Data'!AR27","v":0},{"$f":"BU21*'Mexico-IO-Data'!$AR27","v":193.59304257040841},{"$f":"BV21*'Mexico-IO-Data'!$AR27","v":41.187379486108163},{"$f":"(BZ21*'Default-Data'!$F$19/pv_dollar_index)/'Mexico-IO-Data'!$AS27","v":0},{"$f":"(CA21*'Default-Data'!$F$19/pv_dollar_index)/'Mexico-IO-Data'!$AS27","v":2.7253137016779269E-2},{"$f":"(CB21*'Default-Data'!$F$19/pv_dollar_index)/'Mexico-IO-Data'!$AS27","v":5.7981696118482636E-3},null,"TTL_C31: Electrical machinery and apparatus, nec",0,0,null,24945.026963181452,194757.96630660922,{"$f":"CH21*'Philippines-IO-Data'!AN27","v":0},{"$f":"'Philippines-IO-Data'!$AN27*Calculations!CK21","v":6481.56810774313},{"$f":"'Philippines-IO-Data'!$AN27*Calculations!CL21","v":50604.756812050073},{"$f":"CH21*'Philippines-IO-Data'!AO27","v":0},{"$f":"'Philippines-IO-Data'!$AO27*Calculations!CK21","v":2167.4983812620221},{"$f":"'Philippines-IO-Data'!$AO27*Calculations!CL21","v":16922.714789225472},{"$f":"(CP21*'Default-Data'!$F$19/pv_dollar_index)/'Philippines-IO-Data'!$AP27","v":0},{"$f":"(CQ21*'Default-Data'!$F$19/pv_dollar_index)/'Philippines-IO-Data'!$AP27","v":0.65900697947989684},{"$f":"(CR21*'Default-Data'!$F$19/pv_dollar_index)/'Philippines-IO-Data'!$AP27","v":5.1451882290928941},182.563158909636,2071.2346313583043,{"$f":"CI21*'Philippines-IO-Data'!AN27","v":0},{"$f":"'Philippines-IO-Data'!$AN27*Calculations!CV21","v":47.436130262920429},{"$f":"'Philippines-IO-Data'!$AN27*Calculations!CW21","v":538.1773429261068},{"$f":"'Philippines-IO-Data'!AO27*Calculations!CI21","v":0},{"$f":"'Philippines-IO-Data'!$AO27*Calculations!CV21","v":15.863095758476168},{"$f":"'Philippines-IO-Data'!$AO27*Calculations!CW21","v":179.97165195729235},{"$f":"(DA21*'Default-Data'!$F$19/pv_dollar_index)/'Philippines-IO-Data'!$AP27","v":0},{"$f":"(DB21*'Default-Data'!$F$19/pv_dollar_index)/'Philippines-IO-Data'!$AP27","v":4.8230212817538453E-3},{"$f":"(DC21*'Default-Data'!$F$19/pv_dollar_index)/'Philippines-IO-Data'!$AP27","v":5.471864513196377E-2},null,"DOM_C31: Electrical machinery and apparatus, nec",0,0,null,266260.22644220263,115452.83723009459,{"$f":"DI21*'SouthAfrica-IO-Data'!AR27","v":0},{"$f":"DL21*'SouthAfrica-IO-Data'!$AR27","v":50084.827573031973},{"$f":"DM21*'SouthAfrica-IO-Data'!$AR27","v":21717.233259928187},{"$f":"DI21*'SouthAfrica-IO-Data'!AS27","v":0},{"$f":"DL21*'SouthAfrica-IO-Data'!$AS27","v":51098.709308654681},{"$f":"DM21*'SouthAfrica-IO-Data'!$AS27","v":22156.861530952825},{"$f":"(DQ21*'Default-Data'!$F$19/pv_dollar_index)/'SouthAfrica-IO-Data'!$AT27","v":0},{"$f":"(DR21*'Default-Data'!$F$19/pv_dollar_index)/'SouthAfrica-IO-Data'!$AT27","v":3.9069612397456819},{"$f":"(DS21*'Default-Data'!$F$19/pv_dollar_index)/'SouthAfrica-IO-Data'!$AT27","v":1.6940936545570049},7700.0245351158701,1216.9830993007199,{"$f":"DJ21*'SouthAfrica-IO-Data'!AR27","v":0},{"$f":"DW21*'SouthAfrica-IO-Data'!$AR27","v":1448.4116020727129},{"$f":"DX21*'SouthAfrica-IO-Data'!$AR27","v":228.92036674881143},{"$f":"DJ21*'SouthAfrica-IO-Data'!AS27","v":0},{"$f":"DW21*'SouthAfrica-IO-Data'!$AS27","v":1477.7322195164727},{"$f":"DX21*'SouthAfrica-IO-Data'!$AS27","v":233.55446833217485},{"$f":"(EB21*'Default-Data'!$F$19/pv_dollar_index)/'SouthAfrica-IO-Data'!$AT27","v":0},{"$f":"(EC21*'Default-Data'!$F$19/pv_dollar_index)/'SouthAfrica-IO-Data'!$AT27","v":0.11298607308260052},{"$f":"(ED21*'Default-Data'!$F$19/pv_dollar_index)/'SouthAfrica-IO-Data'!$AT27","v":1.7857364060439539E-2},null,"FOODMFG",0,0,null,22011.549128264425,1874232.6023247468,{"$f":"EJ21*'Zambia-IO-Data'!BO25","v":0},{"$f":"EM21*'Zambia-IO-Data'!$BO25","v":2468.1999309905673},{"$f":"EN21*'Zambia-IO-Data'!$BO25","v":210161.52714931438},{"$f":"EJ21*'Zambia-IO-Data'!$BN25","v":0},{"$f":"EM21*'Zambia-IO-Data'!$BN25","v":1142.7504610132455},{"$f":"EN21*'Zambia-IO-Data'!$BN25","v":97302.564116328285},{"$f":"(ER21*'Default-Data'!$F$19/pv_dollar_index)/'Zambia-IO-Data'!$BP25","v":0},{"$f":"(ES21*'Default-Data'!$F$19/pv_dollar_index)/'Zambia-IO-Data'!$BP25","v":4.1967492937416484},{"$f":"(ET21*'Default-Data'!$F$19/pv_dollar_index)/'Zambia-IO-Data'!$BP25","v":357.34351563715455},255.65310472344231,16308.340272660236,{"$f":"EK21*'Zambia-IO-Data'!BO25","v":0},{"$f":"EX21*'Zambia-IO-Data'!$BO25","v":28.666904439981963},{"$f":"EY21*'Zambia-IO-Data'!$BO25","v":1828.6874813306022},{"$f":"EK21*'Zambia-IO-Data'!BN25","v":0},{"$f":"EX21*'Zambia-IO-Data'!$BN25","v":13.272473535587844},{"$f":"EY21*'Zambia-IO-Data'!$BN25","v":846.66296117309264},{"$f":"(FC21*'Default-Data'!$F$19/pv_dollar_index)/'Zambia-IO-Data'!$BP25","v":0},{"$f":"(FD21*'Default-Data'!$F$19/pv_dollar_index)/'Zambia-IO-Data'!$BP25","v":4.8743138451499059E-2},{"$f":"(FE21*'Default-Data'!$F$19/pv_dollar_index)/'Zambia-IO-Data'!$BP25","v":3.1093684103087873},null,"TTL_C31: Electrical machinery and apparatus, nec",0,0,null,86874.9006373046,362334.38800290896,{"$f":"FK21*CustomRegion1!C23","v":0},{"$f":"FN21*CustomRegion1!$C23","v":22573.059799262359},{"$f":"FO21*CustomRegion1!$C23","v":94146.822013246521},{"$f":"FK21*CustomRegion1!D23","v":0},{"$f":"FN21*CustomRegion1!$D23","v":7548.6471424379288},{"$f":"FO21*CustomRegion1!$D23","v":31483.597938420793},{"$f":"(FS21*'Default-Data'!$C$58/pv_dollar_index)/CustomRegion1!$E23","v":0},{"$f":"(FT21*'Default-Data'!$C$58/pv_dollar_index)/CustomRegion1!$E23","v":2.3046834733149497},{"$f":"(FU21*'Default-Data'!$C$58/pv_dollar_index)/CustomRegion1!$E23","v":9.6122823706046177},914.74001189226146,3879.6357537295498,{"$f":"FL21*CustomRegion1!C23","v":0},{"$f":"FY21*CustomRegion1!$C23","v":237.68062855608491},{"$f":"FZ21*CustomRegion1!$C23","v":1008.061583102267},{"$f":"FL21*CustomRegion1!D23","v":0},{"$f":"FY21*CustomRegion1!$D23","v":79.482675964973552},{"$f":"FZ21*CustomRegion1!$D23","v":337.10543702786123},{"$f":"(GD21*'Default-Data'!$C$58/pv_dollar_index)/CustomRegion1!$E23","v":0},{"$f":"(GE21*'Default-Data'!$C$58/pv_dollar_index)/CustomRegion1!$E23","v":2.4266919125346863E-2},{"$f":"(GF21*'Default-Data'!$C$58/pv_dollar_index)/CustomRegion1!$E23","v":0.10292192956204453},null,"C31 Electrical machinery and apparatus n.e.c",{"$f":"AF20","v":0},{"$f":"AG20","v":0},null,992987.84291451809,478901.03640352061,{"$f":"GL21*CustomRegion2!$C$13","v":0},{"$f":"GO21*CustomRegion2!C$13","v":611860.69876856869},{"$f":"GP21*CustomRegion2!D$13","v":52993.584432098498},{"$f":"GL21*CustomRegion2!D27","v":0},{"$f":"GO21*CustomRegion2!$D27","v":120616.88580871171},{"$f":"GP21*CustomRegion2!$D27","v":58171.459030168349},{"$f":"(GT21*'Default-Data'!$C$59/pv_dollar_index)/CustomRegion2!$E27","v":0},{"$f":"(GU21*'Default-Data'!$C$59/pv_dollar_index)/CustomRegion2!$E27","v":16.979889730729926},{"$f":"(GV21*'Default-Data'!$C$59/pv_dollar_index)/CustomRegion2!$E27","v":8.1891101165919089},309232.29284345265,133819.53113192238,{"$f":"GM21*CustomRegion2!C27","v":0},{"$f":"GZ21*CustomRegion2!$C27","v":80296.88838974695},{"$f":"HA21*CustomRegion2!$C27","v":34748.285364581861},{"$f":"GM21*CustomRegion2!D27","v":0},{"$f":"GZ21*CustomRegion2!$D27","v":37562.026987953468},{"$f":"HA21*CustomRegion2!$D27","v":16254.876855429862},{"$f":"(HE21*'Default-Data'!$C$59/pv_dollar_index)/CustomRegion2!$E27","v":0},{"$f":"(HF21*'Default-Data'!$C$59/pv_dollar_index)/CustomRegion2!$E27","v":5.2878091822868587},{"$f":"(HG21*'Default-Data'!$C$59/pv_dollar_index)/CustomRegion2!$E27","v":2.2882867082931946},null,"FOODMFG",0,0,null,22011.549128264425,1874232.6023247468,{"$f":"HM21*CustomRegion3!D26","v":0},{"$f":"HP21*CustomRegion3!$D26","v":2468.1999309905673},{"$f":"HQ21*CustomRegion3!$D26","v":210161.52714931438},{"$f":"HM21*CustomRegion3!E26","v":0},{"$f":"HP21*CustomRegion3!$E26","v":1142.7504610132455},{"$f":"HQ21*CustomRegion3!$E26","v":97302.564116328285},{"$f":"(HU21*'Default-Data'!$C$60/pv_dollar_index)/CustomRegion3!$F26","v":0},{"$f":"(HV21*'Default-Data'!$C$60/pv_dollar_index)/CustomRegion3!$F26","v":4.2137466775942549},{"$f":"(HW21*'Default-Data'!$C$60/pv_dollar_index)/CustomRegion3!$F26","v":358.7908036397003},255.65310472344231,16308.340272660236,{"$f":"HN21*CustomRegion3!D26","v":0},{"$f":"IA21*CustomRegion3!$D26","v":28.666904439981963},{"$f":"IB21*CustomRegion3!$D26","v":1828.6874813306022},{"$f":"HN21*CustomRegion3!E26","v":0},{"$f":"IA21*CustomRegion3!$E26","v":13.272473535587844},{"$f":"IB21*CustomRegion3!$E26","v":846.66296117309264},{"$f":"(IF21*'Default-Data'!$C$60/pv_dollar_index)/CustomRegion3!$F26","v":0},{"$f":"(IG21*'Default-Data'!$C$60/pv_dollar_index)/CustomRegion3!$F26","v":4.8940554541060659E-2},{"$f":"(IH21*'Default-Data'!$C$60/pv_dollar_index)/CustomRegion3!$F26","v":3.1219617592820037}]
[null,null,null,null,null,null,null,null,null,null,null,null,null,null,null,null,null,null,null,null,null,null,null,null,null,null,null,null,null,21,"TTL_C34: Motor vehicles, trailers and semi-trailers",0,0,null,35216.883017416352,70488.210044379026,{"$f":"AF22*'Colombia-IO-Data'!AN28","v":0},{"$f":"AI22*'Colombia-IO-Data'!$AN28","v":7751.4597390463077},{"$f":"AJ22*'Colombia-IO-Data'!$AN28","v":15514.902950560121},{"$f":"AK22*'Colombia-IO-Data'!$AO28","v":0},{"$f":"AL22*'Colombia-IO-Data'!$AO28","v":1983.637152818437},{"$f":"AM22*'Colombia-IO-Data'!$AO28","v":3970.340935924145},{"$f":"(AN22*'Default-Data'!$F$19/pv_dollar_index)/'Colombia-IO-Data'!$AP28","v":0},{"$f":"(AO22*'Default-Data'!$F$19/pv_dollar_index)/'Colombia-IO-Data'!$AP28","v":0.45768298760339388},{"$f":"(AP22*'Default-Data'!$F$19/pv_dollar_index)/'Colombia-IO-Data'!$AP28","v":0.91607353631984667},346.59939238188923,675.5942179806907,{"$f":"'Colombia-IO-Data'!$AN28*Calculations!AG22","v":0},{"$f":"'Colombia-IO-Data'!$AN28*Calculations!AT22","v":76.288728741196564},{"$f":"'Colombia-IO-Data'!$AN28*Calculations!AU22","v":148.70258046460108},{"$f":"AV22*'Colombia-IO-Data'!$AO28","v":0},{"$f":"AW22*'Colombia-IO-Data'!$AO28","v":19.522665635485044},{"$f":"AX22*'Colombia-IO-Data'!$AO28","v":38.053730943566428},{"$f":"(AY22*'Default-Data'!$F$19/pv_dollar_index)/'Colombia-IO-Data'!$AP28","v":0},{"$f":"(AZ22*'Default-Data'!$F$19/pv_dollar_index)/'Colombia-IO-Data'!$AP28","v":4.5044487704494745E-3},{"$f":"(BA22*'Default-Data'!$F$19/pv_dollar_index)/'Colombia-IO-Data'!$AP28","v":8.7801064035128717E-3},null,"DOM_C34: Motor vehicles, trailers and semi-trailers",0,0,null,28432.461139055074,207953.28758532516,{"$f":"BG22*'Mexico-IO-Data'!AQ28","v":0},{"$f":"BJ22*'Mexico-IO-Data'!$AQ28","v":9625.9946781321305},{"$f":"BK22*'Mexico-IO-Data'!$AQ28","v":70403.938294556894},{"$f":"BG22*'Mexico-IO-Data'!AR28","v":0},{"$f":"BJ22*'Mexico-IO-Data'!$AR28","v":2443.526063764642},{"$f":"BK22*'Mexico-IO-Data'!$AR28","v":17871.800677933636},{"$f":"(Calculations!BO22*'Default-Data'!$F$19/pv_dollar_index)/'Mexico-IO-Data'!$AS28","v":0},{"$f":"(Calculations!BP22*'Default-Data'!$F$19/pv_dollar_index)/'Mexico-IO-Data'!$AS28","v":0.32260629115670958},{"$f":"(Calculations!BQ22*'Default-Data'!$F$19/pv_dollar_index)/'Mexico-IO-Data'!$AS28","v":2.3595227480886285},350.51684040510963,2989.5886750438967,{"$f":"BH22*'Mexico-IO-Data'!AQ28","v":0},{"$f":"BU22*'Mexico-IO-Data'!$AQ28","v":118.6697565094222},{"$f":"BV22*'Mexico-IO-Data'!$AQ28","v":1012.1446938776345},{"$f":"BH22*'Mexico-IO-Data'!AR28","v":0},{"$f":"BU22*'Mexico-IO-Data'!$AR28","v":30.123914744117069},{"$f":"BV22*'Mexico-IO-Data'!$AR28","v":256.92949378099962},{"$f":"(BZ22*'Default-Data'!$F$19/pv_dollar_index)/'Mexico-IO-Data'!$AS28","v":0},{"$f":"(CA22*'Default-Data'!$F$19/pv_dollar_index)/'Mexico-IO-Data'!$AS28","v":3.9771069172669857E-3},{"$f":"(CB22*'Default-Data'!$F$19/pv_dollar_index)/'Mexico-IO-Data'!$AS28","v":3.3921091453290413E-2},null,"TTL_C34: Motor vehicles, trailers and semi-trailers",0,0,null,13045.08866789173,127628.94469822968,{"$f":"CH22*'Philippines-IO-Data'!AN28","v":0},{"$f":"'Philippines-IO-Data'!$AN28*Calculations!CK22","v":2131.2136960345001},{"$f":"'Philippines-IO-Data'!$AN28*Calculations!CL22","v":20851.108173820994},{"$f":"CH22*'Philippines-IO-Data'!AO28","v":0},{"$f":"'Philippines-IO-Data'!$AO28*Calculations!CK22","v":528.84410969231601},{"$f":"'Philippines-IO-Data'!$AO28*Calculations!CL22","v":5174.0403877847602},{"$f":"(CP22*'Default-Data'!$F$19/pv_dollar_index)/'Philippines-IO-Data'!$AP28","v":0},{"$f":"(CQ22*'Default-Data'!$F$19/pv_dollar_index)/'Philippines-IO-Data'!$AP28","v":0.16078995138217725},{"$f":"(CR22*'Default-Data'!$F$19/pv_dollar_index)/'Philippines-IO-Data'!$AP28","v":1.5731170814880704},52.872633670518397,1357.3231187191561,{"$f":"CI22*'Philippines-IO-Data'!AN28","v":0},{"$f":"'Philippines-IO-Data'!$AN28*Calculations!CV22","v":8.6379543974563724},{"$f":"'Philippines-IO-Data'!$AN28*Calculations!CW22","v":221.74978600785818},{"$f":"'Philippines-IO-Data'!AO28*Calculations!CI22","v":0},{"$f":"'Philippines-IO-Data'!$AO28*Calculations!CV22","v":2.1434412285288222},{"$f":"'Philippines-IO-Data'!$AO28*Calculations!CW22","v":55.025485418938004},{"$f":"(DA22*'Default-Data'!$F$19/pv_dollar_index)/'Philippines-IO-Data'!$AP28","v":0},{"$f":"(DB22*'Default-Data'!$F$19/pv_dollar_index)/'Philippines-IO-Data'!$AP28","v":6.5169263419841985E-4},{"$f":"(DC22*'Default-Data'!$F$19/pv_dollar_index)/'Philippines-IO-Data'!$AP28","v":1.6729968176140392E-2},null,"DOM_C34: Motor vehicles, trailers and semi-trailers",0,0,null,60398.166182267989,199404.98885607527,{"$f":"DI22*'SouthAfrica-IO-Data'!AR28","v":0},{"$f":"DL22*'SouthAfrica-IO-Data'!$AR28","v":14603.074491145564},{"$f":"DM22*'SouthAfrica-IO-Data'!$AR28","v":48212.15759074183},{"$f":"DI22*'SouthAfrica-IO-Data'!AS28","v":0},{"$f":"DL22*'SouthAfrica-IO-Data'!$AS28","v":10720.70933293103},{"$f":"DM22*'SouthAfrica-IO-Data'!$AS28","v":35394.500531871279},{"$f":"(DQ22*'Default-Data'!$F$19/pv_dollar_index)/'SouthAfrica-IO-Data'!$AT28","v":0},{"$f":"(DR22*'Default-Data'!$F$19/pv_dollar_index)/'SouthAfrica-IO-Data'!$AT28","v":0.81969576909151232},{"$f":"(DS22*'Default-Data'!$F$19/pv_dollar_index)/'SouthAfrica-IO-Data'!$AT28","v":2.706231596631687},616.18694613390289,2101.918906249577,{"$f":"DJ22*'SouthAfrica-IO-Data'!AR28","v":0},{"$f":"DW22*'SouthAfrica-IO-Data'!$AR28","v":148.98173973875765},{"$f":"DX22*'SouthAfrica-IO-Data'!$AR28","v":508.20215749068933},{"$f":"DJ22*'SouthAfrica-IO-Data'!AS28","v":0},{"$f":"DW22*'SouthAfrica-IO-Data'!$AS28","v":109.37353833413927},{"$f":"DX22*'SouthAfrica-IO-Data'!$AS28","v":373.0918181736069},{"$f":"(EB22*'Default-Data'!$F$19/pv_dollar_index)/'SouthAfrica-IO-Data'!$AT28","v":0},{"$f":"(EC22*'Default-Data'!$F$19/pv_dollar_index)/'SouthAfrica-IO-Data'!$AT28","v":8.3626021225734759E-3},{"$f":"(ED22*'Default-Data'!$F$19/pv_dollar_index)/'SouthAfrica-IO-Data'!$AT28","v":2.852626401316246E-2},null,"TEXTILES",0,0,null,1238455.8147492872,625222.85549936607,{"$f":"EJ22*'Zambia-IO-Data'!BO26","v":0},{"$f":"EM22*'Zambia-IO-Data'!$BO26","v":125684.75216920841},{"$f":"EN22*'Zambia-IO-Data'!$BO26","v":63450.773703921397},{"$f":"EJ22*'Zambia-IO-Data'!$BN26","v":0},{"$f":"EM22*'Zambia-IO-Data'!$BN26","v":34536.864349006297},{"$f":"EN22*'Zambia-IO-Data'!$BN26","v":17435.613520577077},{"$f":"(ER22*'Default-Data'!$F$19/pv_dollar_index)/'Zambia-IO-Data'!$BP26","v":0},{"$f":"(ES22*'Default-Data'!$F$19/pv_dollar_index)/'Zambia-IO-Data'!$BP26","v":126.83658069691495},{"$f":"(ET22*'Default-Data'!$F$19/pv_dollar_index)/'Zambia-IO-Data'!$BP26","v":64.032263582334295},26580.627904482903,5442.6510018016997,{"$f":"EK22*'Zambia-IO-Data'!BO26","v":0},{"$f":"EX22*'Zambia-IO-Data'!$BO26","v":2697.5363924091116},{"$f":"EY22*'Zambia-IO-Data'!$BO26","v":552.34771734139031},{"$f":"EK22*'Zambia-IO-Data'!BN26","v":0},{"$f":"EX22*'Zambia-IO-Data'!$BN26","v":741.25498004495194},{"$f":"EY22*'Zambia-IO-Data'!$BN26","v":151.77941522787521},{"$f":"(FC22*'Default-Data'!$F$19/pv_dollar_index)/'Zambia-IO-Data'!$BP26","v":0},{"$f":"(FD22*'Default-Data'!$F$19/pv_dollar_index)/'Zambia-IO-Data'!$BP26","v":2.7222577632808966},{"$f":"(FE22*'Default-Data'!$F$19/pv_dollar_index)/'Zambia-IO-Data'!$BP26","v":0.55740966675901638},null,"TTL_C34: Motor vehicles, trailers and semi-trailers",0,0,null,39127.674796585226,255427.09401541029,{"$f":"FK22*CustomRegion1!C24","v":0},{"$f":"FN22*CustomRegion1!$C24","v":6392.4008907440611},{"$f":"FO22*CustomRegion1!$C24","v":41729.859793426156},{"$f":"FK22*CustomRegion1!D24","v":0},{"$f":"FN22*CustomRegion1!$D24","v":1586.2245837440348},{"$f":"FO22*CustomRegion1!$D24","v":10354.940281728737},{"$f":"(FS22*'Default-Data'!$C$58/pv_dollar_index)/CustomRegion1!$E24","v":0},{"$f":"(FT22*'Default-Data'!$C$58/pv_dollar_index)/CustomRegion1!$E24","v":0.4842914914605605},{"$f":"(FU22*'Default-Data'!$C$58/pv_dollar_index)/CustomRegion1!$E24","v":3.1614750675385288},269.84264219074123,2734.9435196459158,{"$f":"FL22*CustomRegion1!C24","v":0},{"$f":"FY22*CustomRegion1!$C24","v":44.084969405116944},{"$f":"FZ22*CustomRegion1!$C24","v":446.81559745137275},{"$f":"FL22*CustomRegion1!D24","v":0},{"$f":"FY22*CustomRegion1!$D24","v":10.939342422227307},{"$f":"FZ22*CustomRegion1!$D24","v":110.8738167695157},{"$f":"(GD22*'Default-Data'!$C$58/pv_dollar_index)/CustomRegion1!$E24","v":0},{"$f":"(GE22*'Default-Data'!$C$58/pv_dollar_index)/CustomRegion1!$E24","v":3.3398993506666909E-3},{"$f":"(GF22*'Default-Data'!$C$58/pv_dollar_index)/CustomRegion1!$E24","v":3.385097333474333E-2},null,"C32 Radio, television and communication equipment",0,0,null,0,0,{"$f":"GL22*CustomRegion2!$C$13","v":0},{"$f":"GO22*CustomRegion2!C$13","v":0},{"$f":"GP22*CustomRegion2!D$13","v":0},{"$f":"GL22*CustomRegion2!D28","v":0},{"$f":"GO22*CustomRegion2!$D28","v":0},{"$f":"GP22*CustomRegion2!$D28","v":0},{"$f":"(GT22*'Default-Data'!$C$59/pv_dollar_index)/CustomRegion2!$E28","v":0},{"$f":"(GU22*'Default-Data'!$C$59/pv_dollar_index)/CustomRegion2!$E28","v":0},{"$f":"(GV22*'Default-Data'!$C$59/pv_dollar_index)/CustomRegion2!$E28","v":0},0,0,{"$f":"GM22*CustomRegion2!C28","v":0},{"$f":"GZ22*CustomRegion2!$C28","v":0},{"$f":"HA22*CustomRegion2!$C28","v":0},{"$f":"GM22*CustomRegion2!D28","v":0},{"$f":"GZ22*CustomRegion2!$D28","v":0},{"$f":"HA22*CustomRegion2!$D28","v":0},{"$f":"(HE22*'Default-Data'!$C$59/pv_dollar_index)/CustomRegion2!$E28","v":0},{"$f":"(HF22*'Default-Data'!$C$59/pv_dollar_index)/CustomRegion2!$E28","v":0},{"$f":"(HG22*'Default-Data'!$C$59/pv_dollar_index)/CustomRegion2!$E28","v":0},null,"TEXTILES",0,0,null,1238455.8147492872,625222.85549936607,{"$f":"HM22*CustomRegion3!D27","v":0},{"$f":"HP22*CustomRegion3!$D27","v":125684.75216920841},{"$f":"HQ22*CustomRegion3!$D27","v":63450.773703921397},{"$f":"HM22*CustomRegion3!E27","v":0},{"$f":"HP22*CustomRegion3!$E27","v":34536.864349006297},{"$f":"HQ22*CustomRegion3!$E27","v":17435.613520577077},{"$f":"(HU22*'Default-Data'!$C$60/pv_dollar_index)/CustomRegion3!$F27","v":0},{"$f":"(HV22*'Default-Data'!$C$60/pv_dollar_index)/CustomRegion3!$F27","v":127.35028544736849},{"$f":"(HW22*'Default-Data'!$C$60/pv_dollar_index)/CustomRegion3!$F27","v":64.291602629506656},26580.627904482903,5442.6510018016997,{"$f":"HN22*CustomRegion3!D27","v":0},{"$f":"IA22*CustomRegion3!$D27","v":2697.5363924091116},{"$f":"IB22*CustomRegion3!$D27","v":552.34771734139031},{"$f":"HN22*CustomRegion3!E27","v":0},{"$f":"IA22*CustomRegion3!$E27","v":741.25498004495194},{"$f":"IB22*CustomRegion3!$E27","v":151.77941522787521},{"$f":"(IF22*'Default-Data'!$C$60/pv_dollar_index)/CustomRegion3!$F27","v":0},{"$f":"(IG22*'Default-Data'!$C$60/pv_dollar_index)/CustomRegion3!$F27","v":2.733283263473921},{"$f":"(IH22*'Default-Data'!$C$60/pv_dollar_index)/CustomRegion3!$F27","v":0.559667248855518}]
[null,null,null,null,null,null,null,null,null,null,null,null,null,null,null,null,null,null,null,null,null,null,null,null,null,null,null,null,null,22,"TTL_C35: Other transport equipment",0,0,null,2581.3249436584856,6154.5899578994349,{"$f":"AF23*'Colombia-IO-Data'!AN29","v":0},{"$f":"AI23*'Colombia-IO-Data'!$AN29","v":287.95727428398669},{"$f":"AJ23*'Colombia-IO-Data'!$AN29","v":686.56948942681856},{"$f":"AK23*'Colombia-IO-Data'!$AO29","v":0},{"$f":"AL23*'Colombia-IO-Data'!$AO29","v":108.58277995181753},{"$f":"AM23*'Colombia-IO-Data'!$AO29","v":258.89126773210904},{"$f":"(AN23*'Default-Data'!$F$19/pv_dollar_index)/'Colombia-IO-Data'!$AP29","v":0},{"$f":"(AO23*'Default-Data'!$F$19/pv_dollar_index)/'Colombia-IO-Data'!$AP29","v":2.5053216542157839E-2},{"$f":"(AP23*'Default-Data'!$F$19/pv_dollar_index)/'Colombia-IO-Data'!$AP29","v":5.9733771729222715E-2},35.9400441451197,58.988664728200945,{"$f":"'Colombia-IO-Data'!$AN29*Calculations!AG23","v":0},{"$f":"'Colombia-IO-Data'!$AN29*Calculations!AT23","v":4.0092577941803063},{"$f":"'Colombia-IO-Data'!$AN29*Calculations!AU23","v":6.5804249676177156},{"$f":"AV23*'Colombia-IO-Data'!$AO29","v":0},{"$f":"AW23*'Colombia-IO-Data'!$AO29","v":1.5118088539977494},{"$f":"AX23*'Colombia-IO-Data'!$AO29","v":2.4813432410240552},{"$f":"(AY23*'Default-Data'!$F$19/pv_dollar_index)/'Colombia-IO-Data'!$AP29","v":0},{"$f":"(AZ23*'Default-Data'!$F$19/pv_dollar_index)/'Colombia-IO-Data'!$AP29","v":3.4881842780562478E-4},{"$f":"(BA23*'Default-Data'!$F$19/pv_dollar_index)/'Colombia-IO-Data'!$AP29","v":5.7251830870770452E-4},null,"DOM_C35: Other transport equipment",0,0,null,1951.0606059385314,8155.2936388057478,{"$f":"BG23*'Mexico-IO-Data'!AQ29","v":0},{"$f":"BJ23*'Mexico-IO-Data'!$AQ29","v":687.44777399365046},{"$f":"BK23*'Mexico-IO-Data'!$AQ29","v":2873.4824747100747},{"$f":"BG23*'Mexico-IO-Data'!AR29","v":0},{"$f":"BJ23*'Mexico-IO-Data'!$AR29","v":175.30640851877322},{"$f":"BK23*'Mexico-IO-Data'!$AR29","v":732.76823584232386},{"$f":"(Calculations!BO23*'Default-Data'!$F$19/pv_dollar_index)/'Mexico-IO-Data'!$AS29","v":0},{"$f":"(Calculations!BP23*'Default-Data'!$F$19/pv_dollar_index)/'Mexico-IO-Data'!$AS29","v":2.3144811552004686E-2},{"$f":"(Calculations!BQ23*'Default-Data'!$F$19/pv_dollar_index)/'Mexico-IO-Data'!$AS29","v":9.6743655141673379E-2},20.475290607951603,117.24254897498291,{"$f":"BH23*'Mexico-IO-Data'!AQ29","v":0},{"$f":"BU23*'Mexico-IO-Data'!$AQ29","v":7.2143801722338123},{"$f":"BV23*'Mexico-IO-Data'!$AQ29","v":41.309905527728546},{"$f":"BH23*'Mexico-IO-Data'!AR29","v":0},{"$f":"BU23*'Mexico-IO-Data'!$AR29","v":1.839742778329281},{"$f":"BV23*'Mexico-IO-Data'!$AR29","v":10.53446014123365},{"$f":"(BZ23*'Default-Data'!$F$19/pv_dollar_index)/'Mexico-IO-Data'!$AS29","v":0},{"$f":"(CA23*'Default-Data'!$F$19/pv_dollar_index)/'Mexico-IO-Data'!$AS29","v":2.4289186156039967E-4},{"$f":"(CB23*'Default-Data'!$F$19/pv_dollar_index)/'Mexico-IO-Data'!$AS29","v":1.3908110766232913E-3},null,"TTL_C35: Other transport equipment",0,0,null,4655.4260731501627,1281.7636173351802,{"$f":"CH23*'Philippines-IO-Data'!AN29","v":0},{"$f":"'Philippines-IO-Data'!$AN29*Calculations!CK23","v":974.25117921656954},{"$f":"'Philippines-IO-Data'!$AN29*Calculations!CL23","v":268.23747086605619},{"$f":"CH23*'Philippines-IO-Data'!AO29","v":0},{"$f":"'Philippines-IO-Data'!$AO29*Calculations!CK23","v":218.76944059269957},{"$f":"'Philippines-IO-Data'!$AO29*Calculations!CL23","v":60.233092552739947},{"$f":"(CP23*'Default-Data'!$F$19/pv_dollar_index)/'Philippines-IO-Data'!$AP29","v":0},{"$f":"(CQ23*'Default-Data'!$F$19/pv_dollar_index)/'Philippines-IO-Data'!$AP29","v":6.6514738600892798E-2},{"$f":"(CR23*'Default-Data'!$F$19/pv_dollar_index)/'Philippines-IO-Data'!$AP29","v":1.8313290903037467E-2},1.5056430752323999,13.631448529608218,{"$f":"CI23*'Philippines-IO-Data'!AN29","v":0},{"$f":"'Philippines-IO-Data'!$AN29*Calculations!CV23","v":0.3150892138497316},{"$f":"'Philippines-IO-Data'!$AN29*Calculations!CW23","v":2.8526829973726473},{"$f":"'Philippines-IO-Data'!AO29*Calculations!CI23","v":0},{"$f":"'Philippines-IO-Data'!$AO29*Calculations!CV23","v":7.0753715798558117E-2},{"$f":"'Philippines-IO-Data'!$AO29*Calculations!CW23","v":0.64057388570508544},{"$f":"(DA23*'Default-Data'!$F$19/pv_dollar_index)/'Philippines-IO-Data'!$AP29","v":0},{"$f":"(DB23*'Default-Data'!$F$19/pv_dollar_index)/'Philippines-IO-Data'!$AP29","v":2.1511984940094048E-5},{"$f":"(DC23*'Default-Data'!$F$19/pv_dollar_index)/'Philippines-IO-Data'!$AP29","v":1.9476031225749621E-4},null,"DOM_C35: Other transport equipment",0,0,null,25993.280398723578,101789.6815060091,{"$f":"DI23*'SouthAfrica-IO-Data'!AR29","v":0},{"$f":"DL23*'SouthAfrica-IO-Data'!$AR29","v":3316.7160981098782},{"$f":"DM23*'SouthAfrica-IO-Data'!$AR29","v":12988.259661486829},{"$f":"DI23*'SouthAfrica-IO-Data'!AS29","v":0},{"$f":"DL23*'SouthAfrica-IO-Data'!$AS29","v":3385.9271943324579},{"$f":"DM23*'SouthAfrica-IO-Data'!$AS29","v":13259.290302218275},{"$f":"(DQ23*'Default-Data'!$F$19/pv_dollar_index)/'SouthAfrica-IO-Data'!$AT29","v":0},{"$f":"(DR23*'Default-Data'!$F$19/pv_dollar_index)/'SouthAfrica-IO-Data'!$AT29","v":0.25888494030155834},{"$f":"(DS23*'Default-Data'!$F$19/pv_dollar_index)/'SouthAfrica-IO-Data'!$AT29","v":1.013793381049813},365.36543031816819,1072.9603970592179,{"$f":"DJ23*'SouthAfrica-IO-Data'!AR29","v":0},{"$f":"DW23*'SouthAfrica-IO-Data'!$AR29","v":46.620256690979971},{"$f":"DX23*'SouthAfrica-IO-Data'!$AR29","v":136.90865358169367},{"$f":"DJ23*'SouthAfrica-IO-Data'!AS29","v":0},{"$f":"DW23*'SouthAfrica-IO-Data'!$AS29","v":47.593098193332125},{"$f":"DX23*'SouthAfrica-IO-Data'!$AS29","v":139.76557522239315},{"$f":"(EB23*'Default-Data'!$F$19/pv_dollar_index)/'SouthAfrica-IO-Data'!$AT29","v":0},{"$f":"(EC23*'Default-Data'!$F$19/pv_dollar_index)/'SouthAfrica-IO-Data'!$AT29","v":3.6389253747602002E-3},{"$f":"(ED23*'Default-Data'!$F$19/pv_dollar_index)/'SouthAfrica-IO-Data'!$AT29","v":1.0686349859568024E-2},null,"FURNIMFG",0,0,null,2981032.3496511402,276025.23057150375,{"$f":"EJ23*'Zambia-IO-Data'!BO27","v":0},{"$f":"EM23*'Zambia-IO-Data'!$BO27","v":547724.46640032681},{"$f":"EN23*'Zambia-IO-Data'!$BO27","v":50715.91126661098},{"$f":"EJ23*'Zambia-IO-Data'!$BN27","v":0},{"$f":"EM23*'Zambia-IO-Data'!$BN27","v":169775.58432349301},{"$f":"EN23*'Zambia-IO-Data'!$BN27","v":15720.173185570451},{"$f":"(ER23*'Default-Data'!$F$19/pv_dollar_index)/'Zambia-IO-Data'!$BP27","v":0},{"$f":"(ES23*'Default-Data'!$F$19/pv_dollar_index)/'Zambia-IO-Data'!$BP27","v":623.50056982032265},{"$f":"(ET23*'Default-Data'!$F$19/pv_dollar_index)/'Zambia-IO-Data'!$BP27","v":57.732311615557947},55177.551498234636,2407.1667255517241,{"$f":"EK23*'Zambia-IO-Data'!BO27","v":0},{"$f":"EX23*'Zambia-IO-Data'!$BO27","v":10138.130488648976},{"$f":"EY23*'Zambia-IO-Data'!$BO27","v":442.28440206082809},{"$f":"EK23*'Zambia-IO-Data'!BN27","v":0},{"$f":"EX23*'Zambia-IO-Data'!$BN27","v":3142.4687653083311},{"$f":"EY23*'Zambia-IO-Data'!$BN27","v":137.0928220361109},{"$f":"(FC23*'Default-Data'!$F$19/pv_dollar_index)/'Zambia-IO-Data'!$BP27","v":0},{"$f":"(FD23*'Default-Data'!$F$19/pv_dollar_index)/'Zambia-IO-Data'!$BP27","v":11.540711661336241},{"$f":"(FE23*'Default-Data'!$F$19/pv_dollar_index)/'Zambia-IO-Data'!$BP27","v":0.50347317606588937},null,"TTL_C35: Other transport equipment",0,0,null,11335.334567433776,3789.727931587091,{"$f":"FK23*CustomRegion1!C25","v":0},{"$f":"FN23*CustomRegion1!$C25","v":2372.1702150591723},{"$f":"FO23*CustomRegion1!$C25","v":793.08463892336044},{"$f":"FK23*CustomRegion1!D25","v":0},{"$f":"FN23*CustomRegion1!$D25","v":532.67408037060022},{"$f":"FO23*CustomRegion1!$D25","v":178.08824510681777},{"$f":"(FS23*'Default-Data'!$C$58/pv_dollar_index)/CustomRegion1!$E25","v":0},{"$f":"(FT23*'Default-Data'!$C$58/pv_dollar_index)/CustomRegion1!$E25","v":0.16263114787703251},{"$f":"(FU23*'Default-Data'!$C$58/pv_dollar_index)/CustomRegion1!$E25","v":5.4372264002366555E-2},28.012598420007233,40.577887352427524,{"$f":"FL23*CustomRegion1!C25","v":0},{"$f":"FY23*CustomRegion1!$C25","v":5.862257635453159},{"$f":"FZ23*CustomRegion1!$C25","v":8.4918230860164883},{"$f":"FL23*CustomRegion1!D25","v":0},{"$f":"FY23*CustomRegion1!$D25","v":1.3163780048484623},{"$f":"FZ23*CustomRegion1!$D25","v":1.9068505389276345},{"$f":"(GD23*'Default-Data'!$C$58/pv_dollar_index)/CustomRegion1!$E25","v":0},{"$f":"(GE23*'Default-Data'!$C$58/pv_dollar_index)/CustomRegion1!$E25","v":4.0190441746224529E-4},{"$f":"(GF23*'Default-Data'!$C$58/pv_dollar_index)/CustomRegion1!$E25","v":5.8218205729098445E-4},null,"C33 Medical, precision and optical instruments",0,0,null,0,0,{"$f":"GL23*CustomRegion2!$C$13","v":0},{"$f":"GO23*CustomRegion2!C$13","v":0},{"$f":"GP23*CustomRegion2!D$13","v":0},{"$f":"GL23*CustomRegion2!D29","v":0},{"$f":"GO23*CustomRegion2!$D29","v":0},{"$f":"GP23*CustomRegion2!$D29","v":0},{"$f":"(GT23*'Default-Data'!$C$59/pv_dollar_index)/CustomRegion2!$E29","v":0},{"$f":"(GU23*'Default-Data'!$C$59/pv_dollar_index)/CustomRegion2!$E29","v":0},{"$f":"(GV23*'Default-Data'!$C$59/pv_dollar_index)/CustomRegion2!$E29","v":0},0,0,{"$f":"GM23*CustomRegion2!C29","v":0},{"$f":"GZ23*CustomRegion2!$C29","v":0},{"$f":"HA23*CustomRegion2!$C29","v":0},{"$f":"GM23*CustomRegion2!D29","v":0},{"$f":"GZ23*CustomRegion2!$D29","v":0},{"$f":"HA23*CustomRegion2!$D29","v":0},{"$f":"(HE23*'Default-Data'!$C$59/pv_dollar_index)/CustomRegion2!$E29","v":0},{"$f":"(HF23*'Default-Data'!$C$59/pv_dollar_index)/CustomRegion2!$E29","v":0},{"$f":"(HG23*'Default-Data'!$C$59/pv_dollar_index)/CustomRegion2!$E29","v":0},null,"FURNIMFG",0,0,null,2981032.3496511402,276025.23057150375,{"$f":"HM23*CustomRegion3!D28","v":0},{"$f":"HP23*CustomRegion3!$D28","v":547724.46640032681},{"$f":"HQ23*CustomRegion3!$D28","v":50715.91126661098},{"$f":"HM23*CustomRegion3!E28","v":0},{"$f":"HP23*CustomRegion3!$E28","v":169775.58432349301},{"$f":"HQ23*CustomRegion3!$E28","v":15720.173185570451},{"$f":"(HU23*'Default-Data'!$C$60/pv_dollar_index)/CustomRegion3!$F28","v":0},{"$f":"(HV23*'Default-Data'!$C$60/pv_dollar_index)/CustomRegion3!$F28","v":626.02582872329288},{"$f":"(HW23*'Default-Data'!$C$60/pv_dollar_index)/CustomRegion3!$F28","v":57.966135032813604},55177.551498234636,2407.1667255517241,{"$f":"HN23*CustomRegion3!D28","v":0},{"$f":"IA23*CustomRegion3!$D28","v":10138.130488648976},{"$f":"IB23*CustomRegion3!$D28","v":442.28440206082809},{"$f":"HN23*CustomRegion3!E28","v":0},{"$f":"IA23*CustomRegion3!$E28","v":3142.4687653083311},{"$f":"IB23*CustomRegion3!$E28","v":137.0928220361109},{"$f":"(IF23*'Default-Data'!$C$60/pv_dollar_index)/CustomRegion3!$F28","v":0},{"$f":"(IG23*'Default-Data'!$C$60/pv_dollar_index)/CustomRegion3!$F28","v":11.587453053854615},{"$f":"(IH23*'Default-Data'!$C$60/pv_dollar_index)/CustomRegion3!$F28","v":0.50551230831661609}]
[null,null,null,null,null,null,null,null,null,null,null,null,null,null,null,null,null,null,null,null,null,null,null,null,null,null,null,null,null,23,"TTL_C36T37: Manufacturing nec; recycling",0,0,null,193732.60226495625,115306.87446643636,{"$f":"AF24*'Colombia-IO-Data'!AN30","v":0},{"$f":"AI24*'Colombia-IO-Data'!$AN30","v":72225.710396460941},{"$f":"AJ24*'Colombia-IO-Data'!$AN30","v":42987.709990825635},{"$f":"AK24*'Colombia-IO-Data'!$AO30","v":0},{"$f":"AL24*'Colombia-IO-Data'!$AO30","v":16625.593560530535},{"$f":"AM24*'Colombia-IO-Data'!$AO30","v":9895.315539055533},{"$f":"(AN24*'Default-Data'!$F$19/pv_dollar_index)/'Colombia-IO-Data'!$AP30","v":0},{"$f":"(AO24*'Default-Data'!$F$19/pv_dollar_index)/'Colombia-IO-Data'!$AP30","v":3.8360096858701254},{"$f":"(AP24*'Default-Data'!$F$19/pv_dollar_index)/'Colombia-IO-Data'!$AP30","v":2.2831381095874033},3407.475337010756,1105.158687302513,{"$f":"'Colombia-IO-Data'!$AN30*Calculations!AG24","v":0},{"$f":"'Colombia-IO-Data'!$AN30*Calculations!AT24","v":1270.345434876449},{"$f":"'Colombia-IO-Data'!$AN30*Calculations!AU24","v":412.01568738584382},{"$f":"AV24*'Colombia-IO-Data'!$AO30","v":0},{"$f":"AW24*'Colombia-IO-Data'!$AO30","v":292.420064348251},{"$f":"AX24*'Colombia-IO-Data'!$AO30","v":94.841647405593349},{"$f":"(AY24*'Default-Data'!$F$19/pv_dollar_index)/'Colombia-IO-Data'!$AP30","v":0},{"$f":"(AZ24*'Default-Data'!$F$19/pv_dollar_index)/'Colombia-IO-Data'!$AP30","v":6.7469843714070749E-2},{"$f":"(BA24*'Default-Data'!$F$19/pv_dollar_index)/'Colombia-IO-Data'!$AP30","v":2.1882736201096317E-2},null,"DOM_C36T37: Manufacturing nec; recycling",0,0,null,89714.285487377623,107492.49827730747,{"$f":"BG24*'Mexico-IO-Data'!AQ30","v":0},{"$f":"BJ24*'Mexico-IO-Data'!$AQ30","v":33730.587766315773},{"$f":"BK24*'Mexico-IO-Data'!$AQ30","v":40414.80270021654},{"$f":"BG24*'Mexico-IO-Data'!AR30","v":0},{"$f":"BJ24*'Mexico-IO-Data'!$AR30","v":13875.834034136689},{"$f":"BK24*'Mexico-IO-Data'!$AR30","v":16625.535809684359},{"$f":"(Calculations!BO24*'Default-Data'!$F$19/pv_dollar_index)/'Mexico-IO-Data'!$AS30","v":0},{"$f":"(Calculations!BP24*'Default-Data'!$F$19/pv_dollar_index)/'Mexico-IO-Data'!$AS30","v":2.1282969402938043},{"$f":"(Calculations!BQ24*'Default-Data'!$F$19/pv_dollar_index)/'Mexico-IO-Data'!$AS30","v":2.5500504623683176},1168.7096494707298,1545.3391443506644,{"$f":"BH24*'Mexico-IO-Data'!AQ30","v":0},{"$f":"BU24*'Mexico-IO-Data'!$AQ30","v":439.40898810768527},{"$f":"BV24*'Mexico-IO-Data'!$AQ30","v":581.01335092923603},{"$f":"BH24*'Mexico-IO-Data'!AR30","v":0},{"$f":"BU24*'Mexico-IO-Data'!$AR30","v":180.7607455384744},{"$f":"BV24*'Mexico-IO-Data'!$AR30","v":239.01287712402871},{"$f":"(BZ24*'Default-Data'!$F$19/pv_dollar_index)/'Mexico-IO-Data'!$AS30","v":0},{"$f":"(CA24*'Default-Data'!$F$19/pv_dollar_index)/'Mexico-IO-Data'!$AS30","v":2.7725363441816173E-2},{"$f":"(CB24*'Default-Data'!$F$19/pv_dollar_index)/'Mexico-IO-Data'!$AS30","v":3.6660165711295815E-2},null,"TTL_C36T37: Manufacturing nec; recycling",0,0,null,40860.782886861081,57418.993182044447,{"$f":"CH24*'Philippines-IO-Data'!AN30","v":0},{"$f":"'Philippines-IO-Data'!$AN30*Calculations!CK24","v":16563.950952551866},{"$f":"'Philippines-IO-Data'!$AN30*Calculations!CL24","v":23276.239944930639},{"$f":"CH24*'Philippines-IO-Data'!AO30","v":0},{"$f":"'Philippines-IO-Data'!$AO30*Calculations!CK24","v":5591.6522323901208},{"$f":"'Philippines-IO-Data'!$AO30*Calculations!CL24","v":7857.5841852313633},{"$f":"(CP24*'Default-Data'!$F$19/pv_dollar_index)/'Philippines-IO-Data'!$AP30","v":0},{"$f":"(CQ24*'Default-Data'!$F$19/pv_dollar_index)/'Philippines-IO-Data'!$AP30","v":1.7000879353939296},{"$f":"(CR24*'Default-Data'!$F$19/pv_dollar_index)/'Philippines-IO-Data'!$AP30","v":2.3890226930196494},152.00417742086242,610.64617500239808,{"$f":"CI24*'Philippines-IO-Data'!AN30","v":0},{"$f":"'Philippines-IO-Data'!$AN30*Calculations!CV24","v":61.618734676563442},{"$f":"'Philippines-IO-Data'!$AN30*Calculations!CW24","v":247.54085892357057},{"$f":"'Philippines-IO-Data'!AO30*Calculations!CI24","v":0},{"$f":"'Philippines-IO-Data'!$AO30*Calculations!CV24","v":20.801228903553266},{"$f":"'Philippines-IO-Data'!$AO30*Calculations!CW24","v":83.564748553816827},{"$f":"(DA24*'Default-Data'!$F$19/pv_dollar_index)/'Philippines-IO-Data'!$AP30","v":0},{"$f":"(DB24*'Default-Data'!$F$19/pv_dollar_index)/'Philippines-IO-Data'!$AP30","v":6.3244130411848412E-3},{"$f":"(DC24*'Default-Data'!$F$19/pv_dollar_index)/'Philippines-IO-Data'!$AP30","v":2.5407055899798938E-2},null,"DOM_C36T37: Manufacturing nec; recycling",0,0,null,648497.22322835051,610193.09268439584,{"$f":"DI24*'SouthAfrica-IO-Data'!AR30","v":0},{"$f":"DL24*'SouthAfrica-IO-Data'!$AR30","v":173522.99726067309},{"$f":"DM24*'SouthAfrica-IO-Data'!$AR30","v":163273.68962854051},{"$f":"DI24*'SouthAfrica-IO-Data'!AS30","v":0},{"$f":"DL24*'SouthAfrica-IO-Data'!$AS30","v":67341.910125750946},{"$f":"DM24*'SouthAfrica-IO-Data'!$AS30","v":63364.293531349991},{"$f":"(DQ24*'Default-Data'!$F$19/pv_dollar_index)/'SouthAfrica-IO-Data'!$AT30","v":0},{"$f":"(DR24*'Default-Data'!$F$19/pv_dollar_index)/'SouthAfrica-IO-Data'!$AT30","v":5.148901728270932},{"$f":"(DS24*'Default-Data'!$F$19/pv_dollar_index)/'SouthAfrica-IO-Data'!$AT30","v":4.844776749946643},4359.2993247994509,6432.0176006326492,{"$f":"DJ24*'SouthAfrica-IO-Data'!AR30","v":0},{"$f":"DW24*'SouthAfrica-IO-Data'!$AR30","v":1166.4486102653211},{"$f":"DX24*'SouthAfrica-IO-Data'!$AR30","v":1721.0605265801967},{"$f":"DJ24*'SouthAfrica-IO-Data'!AS30","v":0},{"$f":"DW24*'SouthAfrica-IO-Data'!$AS30","v":452.68280699872952},{"$f":"DX24*'SouthAfrica-IO-Data'!$AS30","v":667.92013238356185},{"$f":"(EB24*'Default-Data'!$F$19/pv_dollar_index)/'SouthAfrica-IO-Data'!$AT30","v":0},{"$f":"(EC24*'Default-Data'!$F$19/pv_dollar_index)/'SouthAfrica-IO-Data'!$AT30","v":3.4611719254203498E-2},{"$f":"(ED24*'Default-Data'!$F$19/pv_dollar_index)/'SouthAfrica-IO-Data'!$AT30","v":5.106857108084327E-2},null,"INDCHEMMFG",0,0,null,452125.51863051765,140951.69244160061,{"$f":"EJ24*'Zambia-IO-Data'!BO28","v":0},{"$f":"EM24*'Zambia-IO-Data'!$BO28","v":84261.44549349416},{"$f":"EN24*'Zambia-IO-Data'!$BO28","v":26268.796740025504},{"$f":"EJ24*'Zambia-IO-Data'!$BN28","v":0},{"$f":"EM24*'Zambia-IO-Data'!$BN28","v":16274.976008369806},{"$f":"EN24*'Zambia-IO-Data'!$BN28","v":5073.7799975870021},{"$f":"(ER24*'Default-Data'!$F$19/pv_dollar_index)/'Zambia-IO-Data'!$BP28","v":0},{"$f":"(ES24*'Default-Data'!$F$19/pv_dollar_index)/'Zambia-IO-Data'!$BP28","v":59.769824120855532},{"$f":"(ET24*'Default-Data'!$F$19/pv_dollar_index)/'Zambia-IO-Data'!$BP28","v":18.633449163165068},6275.6685196376329,1214.7274210106534,{"$f":"EK24*'Zambia-IO-Data'!BO28","v":0},{"$f":"EX24*'Zambia-IO-Data'!$BO28","v":1169.5798602662433},{"$f":"EY24*'Zambia-IO-Data'!$BO28","v":226.38555922473239},{"$f":"EK24*'Zambia-IO-Data'!BN28","v":0},{"$f":"EX24*'Zambia-IO-Data'!$BN28","v":225.90265398633954},{"$f":"EY24*'Zambia-IO-Data'!$BN28","v":43.726042479396774},{"$f":"(FC24*'Default-Data'!$F$19/pv_dollar_index)/'Zambia-IO-Data'!$BP28","v":0},{"$f":"(FD24*'Default-Data'!$F$19/pv_dollar_index)/'Zambia-IO-Data'!$BP28","v":0.82962714600956577},{"$f":"(FE24*'Default-Data'!$F$19/pv_dollar_index)/'Zambia-IO-Data'!$BP28","v":0.16058382311289104},null,"TTL_C36T37: Manufacturing nec; recycling",0,0,null,74005.930668048415,95872.581910483103,{"$f":"FK24*CustomRegion1!C26","v":0},{"$f":"FN24*CustomRegion1!$C26","v":30000.174230084998},{"$f":"FO24*CustomRegion1!$C26","v":38864.373912189265},{"$f":"FK24*CustomRegion1!D26","v":0},{"$f":"FN24*CustomRegion1!$D26","v":10127.447351557357},{"$f":"FO24*CustomRegion1!$D26","v":13119.82049264988},{"$f":"(FS24*'Default-Data'!$C$58/pv_dollar_index)/CustomRegion1!$E26","v":0},{"$f":"(FT24*'Default-Data'!$C$58/pv_dollar_index)/CustomRegion1!$E26","v":3.0920190197767519},{"$f":"(FU24*'Default-Data'!$C$58/pv_dollar_index)/CustomRegion1!$E26","v":4.0056228476065128},423.39312595449837,1026.5398728295393,{"$f":"FL24*CustomRegion1!C26","v":0},{"$f":"FY24*CustomRegion1!$C26","v":171.63310334450296},{"$f":"FZ24*CustomRegion1!$C26","v":416.13387955556937},{"$f":"FL24*CustomRegion1!D26","v":0},{"$f":"FY24*CustomRegion1!$D26","v":57.939837434768513},{"$f":"FZ24*CustomRegion1!$D26","v":140.47831602831323},{"$f":"(GD24*'Default-Data'!$C$58/pv_dollar_index)/CustomRegion1!$E26","v":0},{"$f":"(GE24*'Default-Data'!$C$58/pv_dollar_index)/CustomRegion1!$E26","v":1.7689657929796907E-2},{"$f":"(GF24*'Default-Data'!$C$58/pv_dollar_index)/CustomRegion1!$E26","v":4.2889546590332006E-2},null,"C34 Motor vehicles, trailers and semi-trailers",0,0,null,970024.08225656487,1384762.9290593844,{"$f":"GL24*CustomRegion2!$C$13","v":0},{"$f":"GO24*CustomRegion2!C$13","v":597710.8552002029},{"$f":"GP24*CustomRegion2!D$13","v":153233.22695362836},{"$f":"GL24*CustomRegion2!D30","v":0},{"$f":"GO24*CustomRegion2!$D30","v":102928.44061091277},{"$f":"GP24*CustomRegion2!$D30","v":146936.03129142089},{"$f":"(GT24*'Default-Data'!$C$59/pv_dollar_index)/CustomRegion2!$E30","v":0},{"$f":"(GU24*'Default-Data'!$C$59/pv_dollar_index)/CustomRegion2!$E30","v":13.589117371177966},{"$f":"(GV24*'Default-Data'!$C$59/pv_dollar_index)/CustomRegion2!$E30","v":19.399215255015701},182150.32369493728,386944.9255888731,{"$f":"GM24*CustomRegion2!C30","v":0},{"$f":"GZ24*CustomRegion2!$C30","v":55573.257646427992},{"$f":"HA24*CustomRegion2!$C30","v":118055.18435829182},{"$f":"GM24*CustomRegion2!D30","v":0},{"$f":"GZ24*CustomRegion2!$D30","v":19327.817852808781},{"$f":"HA24*CustomRegion2!$D30","v":41058.401045587896},{"$f":"(HE24*'Default-Data'!$C$59/pv_dollar_index)/CustomRegion2!$E30","v":0},{"$f":"(HF24*'Default-Data'!$C$59/pv_dollar_index)/CustomRegion2!$E30","v":2.5517532741355913},{"$f":"(HG24*'Default-Data'!$C$59/pv_dollar_index)/CustomRegion2!$E30","v":5.4207314088292406},null,"INDCHEMMFG",0,0,null,452125.51863051765,140951.69244160061,{"$f":"HM24*CustomRegion3!D29","v":0},{"$f":"HP24*CustomRegion3!$D29","v":84261.44549349416},{"$f":"HQ24*CustomRegion3!$D29","v":26268.796740025504},{"$f":"HM24*CustomRegion3!E29","v":0},{"$f":"HP24*CustomRegion3!$E29","v":16274.976008369806},{"$f":"HQ24*CustomRegion3!$E29","v":5073.7799975870021},{"$f":"(HU24*'Default-Data'!$C$60/pv_dollar_index)/CustomRegion3!$F29","v":0},{"$f":"(HV24*'Default-Data'!$C$60/pv_dollar_index)/CustomRegion3!$F29","v":60.011899730399321},{"$f":"(HW24*'Default-Data'!$C$60/pv_dollar_index)/CustomRegion3!$F29","v":18.708917070765995},6275.6685196376329,1214.7274210106534,{"$f":"HN24*CustomRegion3!D29","v":0},{"$f":"IA24*CustomRegion3!$D29","v":1169.5798602662433},{"$f":"IB24*CustomRegion3!$D29","v":226.38555922473239},{"$f":"HN24*CustomRegion3!E29","v":0},{"$f":"IA24*CustomRegion3!$E29","v":225.90265398633954},{"$f":"IB24*CustomRegion3!$E29","v":43.726042479396774},{"$f":"(IF24*'Default-Data'!$C$60/pv_dollar_index)/CustomRegion3!$F29","v":0},{"$f":"(IG24*'Default-Data'!$C$60/pv_dollar_index)/CustomRegion3!$F29","v":0.83298724452111994},{"$f":"(IH24*'Default-Data'!$C$60/pv_dollar_index)/CustomRegion3!$F29","v":0.16123420861150525}]
[null,null,{"$f":"biopower_country","v":"South Africa"},null,null,null,"Construction",null,null,null,null,null,null,null,null,null,null,"O&M",null,null,null,null,null,null,null,null,null,null,null,24,"TTL_C40T41: Electricity, gas and water supply",{"$f":"'Solar-PV-Inputs'!B25*'Solar-PV-Inputs'!C25","v":6172065.2280798918},0,null,2810427.8914810317,912736.29415911809,{"$f":"AF25*'Colombia-IO-Data'!AN31","v":3264332.4169889744},{"$f":"AI25*'Colombia-IO-Data'!$AN31","v":1486402.1251806433},{"$f":"AJ25*'Colombia-IO-Data'!$AN31","v":482735.4480362318},{"$f":"AK25*'Colombia-IO-Data'!$AO31","v":575310.58793691033},{"$f":"AL25*'Colombia-IO-Data'!$AO31","v":261965.62460913038},{"$f":"AM25*'Colombia-IO-Data'!$AO31","v":85077.98194274721},{"$f":"(AN25*'Default-Data'!$F$19/pv_dollar_index)/'Colombia-IO-Data'!$AP31","v":53.841579959799219},{"$f":"(AO25*'Default-Data'!$F$19/pv_dollar_index)/'Colombia-IO-Data'!$AP31","v":24.516571430905039},{"$f":"(AP25*'Default-Data'!$F$19/pv_dollar_index)/'Colombia-IO-Data'!$AP31","v":7.9621913165469316},8789.6801916849345,8748.1206075000646,{"$f":"'Colombia-IO-Data'!$AN31*Calculations!AG25","v":0},{"$f":"'Colombia-IO-Data'!$AN31*Calculations!AT25","v":4648.7580614259186},{"$f":"'Colombia-IO-Data'!$AN31*Calculations!AU25","v":4626.7776881022455},{"$f":"AV25*'Colombia-IO-Data'!$AO31","v":0},{"$f":"AW25*'Colombia-IO-Data'!$AO31","v":819.30373254153483},{"$f":"AX25*'Colombia-IO-Data'!$AO31","v":815.42988028491345},{"$f":"(AY25*'Default-Data'!$F$19/pv_dollar_index)/'Colombia-IO-Data'!$AP31","v":0},{"$f":"(AZ25*'Default-Data'!$F$19/pv_dollar_index)/'Colombia-IO-Data'!$AP31","v":7.6676161280442953E-2},{"$f":"(BA25*'Default-Data'!$F$19/pv_dollar_index)/'Colombia-IO-Data'!$AP31","v":7.6313619150329748E-2},null,"DOM_C40T41: Electricity, gas and water supply",6172065.2280798918,0,null,862691.651138152,403077.5160049852,{"$f":"BG25*'Mexico-IO-Data'!AQ31","v":2760936.0046685156},{"$f":"BJ25*'Mexico-IO-Data'!$AQ31","v":385905.90872534178},{"$f":"BK25*'Mexico-IO-Data'!$AQ31","v":180307.75526277514},{"$f":"BG25*'Mexico-IO-Data'!AR31","v":666862.02785888605},{"$f":"BJ25*'Mexico-IO-Data'!$AR31","v":93209.692807133761},{"$f":"BK25*'Mexico-IO-Data'!$AR31","v":43550.591216131535},{"$f":"(Calculations!BO25*'Default-Data'!$F$19/pv_dollar_index)/'Mexico-IO-Data'!$AS31","v":35.080666215288545},{"$f":"(Calculations!BP25*'Default-Data'!$F$19/pv_dollar_index)/'Mexico-IO-Data'!$AS31","v":4.9033502955555486},{"$f":"(Calculations!BQ25*'Default-Data'!$F$19/pv_dollar_index)/'Mexico-IO-Data'!$AS31","v":2.2910042709087648},6528.5729243636451,5794.7435744140021,{"$f":"BH25*'Mexico-IO-Data'!AQ31","v":0},{"$f":"BU25*'Mexico-IO-Data'!$AQ31","v":2920.4117876095611},{"$f":"BV25*'Mexico-IO-Data'!$AQ31","v":2592.1495611604801},{"$f":"BH25*'Mexico-IO-Data'!AR31","v":0},{"$f":"BU25*'Mexico-IO-Data'!$AR31","v":705.38097354492243},{"$f":"BV25*'Mexico-IO-Data'!$AR31","v":626.09423396488307},{"$f":"(BZ25*'Default-Data'!$F$19/pv_dollar_index)/'Mexico-IO-Data'!$AS31","v":0},{"$f":"(CA25*'Default-Data'!$F$19/pv_dollar_index)/'Mexico-IO-Data'!$AS31","v":3.7106977836172457E-2},{"$f":"(CB25*'Default-Data'!$F$19/pv_dollar_index)/'Mexico-IO-Data'!$AS31","v":3.2936052621797468E-2},null,"TTL_C40T41: Electricity, gas and water supply",6172065.2280798918,0,null,1859219.3922774773,728312.49287744332,{"$f":"CH25*'Philippines-IO-Data'!AN31","v":3698647.3122834601},{"$f":"'Philippines-IO-Data'!$AN31*Calculations!CK25","v":1114148.4339645687},{"$f":"'Philippines-IO-Data'!$AN31*Calculations!CL25","v":436445.65388393431},{"$f":"CH25*'Philippines-IO-Data'!AO31","v":765995.11357718718},{"$f":"'Philippines-IO-Data'!$AO31*Calculations!CK25","v":230741.72370591492},{"$f":"'Philippines-IO-Data'!$AO31*Calculations!CL25","v":90388.515040839455},{"$f":"(CP25*'Default-Data'!$F$19/pv_dollar_index)/'Philippines-IO-Data'!$AP31","v":189.58857890730394},{"$f":"(CQ25*'Default-Data'!$F$19/pv_dollar_index)/'Philippines-IO-Data'!$AP31","v":57.11001900225309},{"$f":"(CR25*'Default-Data'!$F$19/pv_dollar_index)/'Philippines-IO-Data'!$AP31","v":22.371722498471797},7002.9987814617562,7745.5422558880546,{"$f":"CI25*'Philippines-IO-Data'!AN31","v":0},{"$f":"'Philippines-IO-Data'!$AN31*Calculations!CV25","v":4196.5892555927794},{"$f":"'Philippines-IO-Data'!$AN31*Calculations!CW25","v":4641.5629109983702},{"$f":"'Philippines-IO-Data'!AO31*Calculations!CI25","v":0},{"$f":"'Philippines-IO-Data'!$AO31*Calculations!CV25","v":869.1195975346983},{"$f":"'Philippines-IO-Data'!$AO31*Calculations!CW25","v":961.27427380763822},{"$f":"(DA25*'Default-Data'!$F$19/pv_dollar_index)/'Philippines-IO-Data'!$AP31","v":0},{"$f":"(DB25*'Default-Data'!$F$19/pv_dollar_index)/'Philippines-IO-Data'!$AP31","v":0.21511253332621613},{"$f":"(DC25*'Default-Data'!$F$19/pv_dollar_index)/'Philippines-IO-Data'!$AP31","v":0.23792139177004848},null,"DOM_C40T41: Electricity, gas and water supply",6172065.2280798918,0,null,2045583.2108451296,1268057.9642209085,{"$f":"DI25*'SouthAfrica-IO-Data'!AR31","v":3355915.8900334798},{"$f":"DL25*'SouthAfrica-IO-Data'!$AR31","v":1112237.9540691429},{"$f":"DM25*'SouthAfrica-IO-Data'!$AR31","v":689476.81438167859},{"$f":"DI25*'SouthAfrica-IO-Data'!AS31","v":1096599.4443821777},{"$f":"DL25*'SouthAfrica-IO-Data'!$AS31","v":363441.62440877629},{"$f":"DM25*'SouthAfrica-IO-Data'!$AS31","v":225297.6285284074},{"$f":"(DQ25*'Default-Data'!$F$19/pv_dollar_index)/'SouthAfrica-IO-Data'!$AT31","v":39.027144675839693},{"$f":"(DR25*'Default-Data'!$F$19/pv_dollar_index)/'SouthAfrica-IO-Data'!$AT31","v":12.934612478319096},{"$f":"(DS25*'Default-Data'!$F$19/pv_dollar_index)/'SouthAfrica-IO-Data'!$AT31","v":8.0181721673728816},12148.744077749579,13366.541251082064,{"$f":"DJ25*'SouthAfrica-IO-Data'!AR31","v":0},{"$f":"DW25*'SouthAfrica-IO-Data'!$AR31","v":6605.5950136407428},{"$f":"DX25*'SouthAfrica-IO-Data'!$AR31","v":7267.7437003123086},{"$f":"DJ25*'SouthAfrica-IO-Data'!AS31","v":0},{"$f":"DW25*'SouthAfrica-IO-Data'!$AS31","v":2158.4843181811257},{"$f":"DX25*'SouthAfrica-IO-Data'!$AS31","v":2374.8520418356015},{"$f":"(EB25*'Default-Data'!$F$19/pv_dollar_index)/'SouthAfrica-IO-Data'!$AT31","v":0},{"$f":"(EC25*'Default-Data'!$F$19/pv_dollar_index)/'SouthAfrica-IO-Data'!$AT31","v":7.6818824045316189E-2},{"$f":"(ED25*'Default-Data'!$F$19/pv_dollar_index)/'SouthAfrica-IO-Data'!$AT31","v":8.4519187653472827E-2},null,"OTHERMFG",{"$f":"AF18+AF20","v":11618005.135209208},{"$f":"AG20","v":0},null,12731405.572562629,784345.79749432579,{"$f":"EJ25*'Zambia-IO-Data'!BO29","v":1246863.5998213608},{"$f":"EM25*'Zambia-IO-Data'!$BO29","v":1366355.5832733172},{"$f":"EN25*'Zambia-IO-Data'!$BO29","v":84177.293191643999},{"$f":"EJ25*'Zambia-IO-Data'!$BN29","v":41984.323548410888},{"$f":"EM25*'Zambia-IO-Data'!$BN29","v":46007.851138282836},{"$f":"EN25*'Zambia-IO-Data'!$BN29","v":2834.4132536179291},{"$f":"(ER25*'Default-Data'!$F$19/pv_dollar_index)/'Zambia-IO-Data'!$BP29","v":154.18736304318318},{"$f":"(ES25*'Default-Data'!$F$19/pv_dollar_index)/'Zambia-IO-Data'!$BP29","v":168.96376186972407},{"$f":"(ET25*'Default-Data'!$F$19/pv_dollar_index)/'Zambia-IO-Data'!$BP29","v":10.409378272965871},245837.18969993122,6850.3521442539932,{"$f":"EK25*'Zambia-IO-Data'!BO29","v":0},{"$f":"EX25*'Zambia-IO-Data'!$BO29","v":26383.655348048986},{"$f":"EY25*'Zambia-IO-Data'!$BO29","v":735.1911653699492},{"$f":"EK25*'Zambia-IO-Data'!BN29","v":0},{"$f":"EX25*'Zambia-IO-Data'!$BN29","v":888.38901278451874},{"$f":"EY25*'Zambia-IO-Data'!$BN29","v":24.75531707016507},{"$f":"(FC25*'Default-Data'!$F$19/pv_dollar_index)/'Zambia-IO-Data'!$BP29","v":0},{"$f":"(FD25*'Default-Data'!$F$19/pv_dollar_index)/'Zambia-IO-Data'!$BP29","v":3.2626072700644091},{"$f":"(FE25*'Default-Data'!$F$19/pv_dollar_index)/'Zambia-IO-Data'!$BP29","v":9.0913863503015141E-2},null,"TTL_C40T41: Electricity, gas and water supply",6172065.2280798918,0,null,2454282.6903028535,975476.52256856486,{"$f":"FK25*CustomRegion1!C27","v":3698647.3122834601},{"$f":"FN25*CustomRegion1!$C27","v":1470743.7041938805},{"$f":"FO25*CustomRegion1!$C27","v":584560.18934787856},{"$f":"FK25*CustomRegion1!D27","v":765995.11357718718},{"$f":"FN25*CustomRegion1!$D27","v":304593.11083689088},{"$f":"FO25*CustomRegion1!$D27","v":121063.24578316907},{"$f":"(FS25*'Default-Data'!$C$58/pv_dollar_index)/CustomRegion1!$E27","v":190.38077983527234},{"$f":"(FT25*'Default-Data'!$C$58/pv_dollar_index)/CustomRegion1!$E27","v":75.703712655257661},{"$f":"(FU25*'Default-Data'!$C$58/pv_dollar_index)/CustomRegion1!$E27","v":30.089115104082815},11994.040630296666,10444.754125436149,{"$f":"FL25*CustomRegion1!C27","v":0},{"$f":"FY25*CustomRegion1!$C27","v":7187.5011849909051},{"$f":"FZ25*CustomRegion1!$C27","v":6259.0819030478897},{"$f":"FL25*CustomRegion1!D27","v":0},{"$f":"FY25*CustomRegion1!$D27","v":1488.5417077342931},{"$f":"FZ25*CustomRegion1!$D27","v":1296.2647553043159},{"$f":"(GD25*'Default-Data'!$C$58/pv_dollar_index)/CustomRegion1!$E27","v":0},{"$f":"(GE25*'Default-Data'!$C$58/pv_dollar_index)/CustomRegion1!$E27","v":0.36996284455700562},{"$f":"(GF25*'Default-Data'!$C$58/pv_dollar_index)/CustomRegion1!$E27","v":0.32217424186341936},null,"C35 Other transport equipment",0,0,null,0,0,{"$f":"GL25*CustomRegion2!$C$13","v":0},{"$f":"GO25*CustomRegion2!C$13","v":0},{"$f":"GP25*CustomRegion2!D$13","v":0},{"$f":"GL25*CustomRegion2!D31","v":0},{"$f":"GO25*CustomRegion2!$D31","v":0},{"$f":"GP25*CustomRegion2!$D31","v":0},{"$f":"(GT25*'Default-Data'!$C$59/pv_dollar_index)/CustomRegion2!$E31","v":0},{"$f":"(GU25*'Default-Data'!$C$59/pv_dollar_index)/CustomRegion2!$E31","v":0},{"$f":"(GV25*'Default-Data'!$C$59/pv_dollar_index)/CustomRegion2!$E31","v":0},0,0,{"$f":"GM25*CustomRegion2!C31","v":0},{"$f":"GZ25*CustomRegion2!$C31","v":0},{"$f":"HA25*CustomRegion2!$C31","v":0},{"$f":"GM25*CustomRegion2!D31","v":0},{"$f":"GZ25*CustomRegion2!$D31","v":0},{"$f":"HA25*CustomRegion2!$D31","v":0},{"$f":"(HE25*'Default-Data'!$C$59/pv_dollar_index)/CustomRegion2!$E31","v":0},{"$f":"(HF25*'Default-Data'!$C$59/pv_dollar_index)/CustomRegion2!$E31","v":0},{"$f":"(HG25*'Default-Data'!$C$59/pv_dollar_index)/CustomRegion2!$E31","v":0},null,"OTHERMFG",11618005.135209208,0,null,12731405.572562629,784345.79749432579,{"$f":"HM25*CustomRegion3!D30","v":1246863.5998213608},{"$f":"HP25*CustomRegion3!$D30","v":1366355.5832733172},{"$f":"HQ25*CustomRegion3!$D30","v":84177.293191643999},{"$f":"HM25*CustomRegion3!E30","v":41984.323548410888},{"$f":"HP25*CustomRegion3!$E30","v":46007.851138282836},{"$f":"HQ25*CustomRegion3!$E30","v":2834.4132536179291},{"$f":"(HU25*'Default-Data'!$C$60/pv_dollar_index)/CustomRegion3!$F30","v":154.81184204143415},{"$f":"(HV25*'Default-Data'!$C$60/pv_dollar_index)/CustomRegion3!$F30","v":169.64808721695479},{"$f":"(HW25*'Default-Data'!$C$60/pv_dollar_index)/CustomRegion3!$F30","v":10.451537617207956},245837.18969993122,6850.3521442539932,{"$f":"HN25*CustomRegion3!D30","v":0},{"$f":"IA25*CustomRegion3!$D30","v":26383.655348048986},{"$f":"IB25*CustomRegion3!$D30","v":735.1911653699492},{"$f":"HN25*CustomRegion3!E30","v":0},{"$f":"IA25*CustomRegion3!$E30","v":888.38901278451874},{"$f":"IB25*CustomRegion3!$E30","v":24.75531707016507},{"$f":"(IF25*'Default-Data'!$C$60/pv_dollar_index)/CustomRegion3!$F30","v":0},{"$f":"(IG25*'Default-Data'!$C$60/pv_dollar_index)/CustomRegion3!$F30","v":3.2758212564734346},{"$f":"(IH25*'Default-Data'!$C$60/pv_dollar_index)/CustomRegion3!$F30","v":9.1282076547761146E-2}]
[null,null,"Biopower",null,null,null,"Output",null,"Value Added",null,null,"Earnings",null,null,"Jobs",null,null,"Output",null,"Value Added",null,null,"Earnings",null,null,"Jobs",null,null,null,25,"TTL_C45: Construction",{"$f":"'Solar-PV-Inputs'!B18*'Solar-PV-Inputs'!C18","v":10674042.217973458},{"$f":"'Solar-PV-Inputs'!B34*'Solar-PV-Inputs'!C34","v":486078.39708321507},null,613074.37565664202,182953.209605176,{"$f":"AF26*'Colombia-IO-Data'!AN32","v":5300331.372376387},{"$f":"AI26*'Colombia-IO-Data'!$AN32","v":304429.87581792666},{"$f":"AJ26*'Colombia-IO-Data'!$AN32","v":90847.742284026128},{"$f":"AK26*'Colombia-IO-Data'!$AO32","v":1045283.9437751442},{"$f":"AL26*'Colombia-IO-Data'!$AO32","v":60036.937097249596},{"$f":"AM26*'Colombia-IO-Data'!$AO32","v":17916.179134124399},{"$f":"(AN26*'Default-Data'!$F$19/pv_dollar_index)/'Colombia-IO-Data'!$AP32","v":281.46425617070264},{"$f":"(AO26*'Default-Data'!$F$19/pv_dollar_index)/'Colombia-IO-Data'!$AP32","v":16.166183306915585},{"$f":"(AP26*'Default-Data'!$F$19/pv_dollar_index)/'Colombia-IO-Data'!$AP32","v":4.8243006729778672},6840.7661224969197,1753.5149565076572,{"$f":"'Colombia-IO-Data'!$AN32*Calculations!AG26","v":241368.40803911819},{"$f":"'Colombia-IO-Data'!$AN32*Calculations!AT26","v":3396.8693911577852},{"$f":"'Colombia-IO-Data'!$AN32*Calculations!AU26","v":870.73014572293141},{"$f":"AV26*'Colombia-IO-Data'!$AO32","v":47600.518483194464},{"$f":"AW26*'Colombia-IO-Data'!$AO32","v":669.90019759586096},{"$f":"AX26*'Colombia-IO-Data'!$AO32","v":171.71761098346278},{"$f":"(AY26*'Default-Data'!$F$19/pv_dollar_index)/'Colombia-IO-Data'!$AP32","v":12.81742114953426},{"$f":"(AZ26*'Default-Data'!$F$19/pv_dollar_index)/'Colombia-IO-Data'!$AP32","v":0.18038444190001471},{"$f":"(BA26*'Default-Data'!$F$19/pv_dollar_index)/'Colombia-IO-Data'!$AP32","v":4.6238507665499383E-2},null,"DOM_C45: Construction",10674042.217973458,486078.39708321507,null,867794.16197125427,26913.292511884123,{"$f":"BG26*'Mexico-IO-Data'!AQ32","v":5368429.9034897266},{"$f":"BJ26*'Mexico-IO-Data'!$AQ32","v":436450.59988199809},{"$f":"BK26*'Mexico-IO-Data'!$AQ32","v":13535.839691441262},{"$f":"BG26*'Mexico-IO-Data'!AR32","v":2361123.1987499716},{"$f":"BJ26*'Mexico-IO-Data'!$AR32","v":191958.10600411231},{"$f":"BK26*'Mexico-IO-Data'!$AR32","v":5953.2834896935683},{"$f":"(Calculations!BO26*'Default-Data'!$F$19/pv_dollar_index)/'Mexico-IO-Data'!$AS32","v":785.86458099015533},{"$f":"(Calculations!BP26*'Default-Data'!$F$19/pv_dollar_index)/'Mexico-IO-Data'!$AS32","v":63.890387686017547},{"$f":"(Calculations!BQ26*'Default-Data'!$F$19/pv_dollar_index)/'Mexico-IO-Data'!$AS32","v":1.9814614661448113},37384.650483444973,386.91225051530637,{"$f":"BH26*'Mexico-IO-Data'!AQ32","v":244469.50359142508},{"$f":"BU26*'Mexico-IO-Data'!$AQ32","v":18802.331065254246},{"$f":"BV26*'Mexico-IO-Data'!$AQ32","v":194.59462997020387},{"$f":"BH26*'Mexico-IO-Data'!AR32","v":107521.68263226871},{"$f":"BU26*'Mexico-IO-Data'!$AR32","v":8269.5724572822528},{"$f":"BV26*'Mexico-IO-Data'!$AR32","v":85.585898192718034},{"$f":"(BZ26*'Default-Data'!$F$19/pv_dollar_index)/'Mexico-IO-Data'!$AS32","v":35.786985665931816},{"$f":"(CA26*'Default-Data'!$F$19/pv_dollar_index)/'Mexico-IO-Data'!$AS32","v":2.7524036431264705},{"$f":"(CB26*'Default-Data'!$F$19/pv_dollar_index)/'Mexico-IO-Data'!$AS32","v":2.8485987540800391E-2},null,"TTL_C45: Construction",10674042.217973458,486078.39708321507,null,275862.11483066902,217870.10457126051,{"$f":"CH26*'Philippines-IO-Data'!AN32","v":5874230.0073567629},{"$f":"'Philippines-IO-Data'!$AN32*Calculations!CK26","v":151814.79328445753},{"$f":"'Philippines-IO-Data'!$AN32*Calculations!CL26","v":119900.13528552795},{"$f":"CH26*'Philippines-IO-Data'!AO32","v":1805118.8508828145},{"$f":"'Philippines-IO-Data'!$AO32*Calculations!CK26","v":46651.858176721944},{"$f":"'Philippines-IO-Data'!$AO32*Calculations!CL26","v":36844.657794510735},{"$f":"(CP26*'Default-Data'!$F$19/pv_dollar_index)/'Philippines-IO-Data'!$AP32","v":548.82897805435573},{"$f":"(CQ26*'Default-Data'!$F$19/pv_dollar_index)/'Philippines-IO-Data'!$AP32","v":14.184047568361033},{"$f":"(CR26*'Default-Data'!$F$19/pv_dollar_index)/'Philippines-IO-Data'!$AP32","v":11.202262872737858},4133.2843788553728,2317.0302826803527,{"$f":"CI26*'Philippines-IO-Data'!AN32","v":267502.81175262242},{"$f":"'Philippines-IO-Data'!$AN32*Calculations!CV26","v":2274.6643334731812},{"$f":"'Philippines-IO-Data'!$AN32*Calculations!CW26","v":1275.1278790669194},{"$f":"'Philippines-IO-Data'!AO32*Calculations!CI26","v":82202.155440640534},{"$f":"'Philippines-IO-Data'!$AO32*Calculations!CV26","v":698.99194662805405},{"$f":"'Philippines-IO-Data'!$AO32*Calculations!CW26","v":391.83984435530192},{"$f":"(DA26*'Default-Data'!$F$19/pv_dollar_index)/'Philippines-IO-Data'!$AP32","v":24.992772604578395},{"$f":"(DB26*'Default-Data'!$F$19/pv_dollar_index)/'Philippines-IO-Data'!$AP32","v":0.21252176029765704},{"$f":"(DC26*'Default-Data'!$F$19/pv_dollar_index)/'Philippines-IO-Data'!$AP32","v":0.11913512577486182},null,"DOM_C45: Construction",10674042.217973458,486078.39708321507,null,1177755.9013544954,432395.15945232473,{"$f":"DI26*'SouthAfrica-IO-Data'!AR32","v":3178203.0240958179},{"$f":"DL26*'SouthAfrica-IO-Data'!$AR32","v":350677.5868872492},{"$f":"DM26*'SouthAfrica-IO-Data'!$AR32","v":128745.94041437855},{"$f":"DI26*'SouthAfrica-IO-Data'!AS32","v":1433398.9766620882},{"$f":"DL26*'SouthAfrica-IO-Data'!$AS32","v":158158.8370445648},{"$f":"DM26*'SouthAfrica-IO-Data'!$AS32","v":58065.610610848336},{"$f":"(DQ26*'Default-Data'!$F$19/pv_dollar_index)/'SouthAfrica-IO-Data'!$AT32","v":132.65969718462009},{"$f":"(DR26*'Default-Data'!$F$19/pv_dollar_index)/'SouthAfrica-IO-Data'!$AT32","v":14.637448310631665},{"$f":"(DS26*'Default-Data'!$F$19/pv_dollar_index)/'SouthAfrica-IO-Data'!$AT32","v":5.3739164363106102},34446.766070650076,4557.8576836896827,{"$f":"DJ26*'SouthAfrica-IO-Data'!AR32","v":144730.15939137101},{"$f":"DW26*'SouthAfrica-IO-Data'!$AR32","v":10256.547038170382},{"$f":"DX26*'SouthAfrica-IO-Data'!$AR32","v":1357.1050945731729},{"$f":"DJ26*'SouthAfrica-IO-Data'!AS32","v":65274.641296004775},{"$f":"DW26*'SouthAfrica-IO-Data'!$AS32","v":4625.7976338004901},{"$f":"DX26*'SouthAfrica-IO-Data'!$AS32","v":612.06695703069897},{"$f":"(EB26*'Default-Data'!$F$19/pv_dollar_index)/'SouthAfrica-IO-Data'!$AT32","v":6.0411052952802917},{"$f":"(EC26*'Default-Data'!$F$19/pv_dollar_index)/'SouthAfrica-IO-Data'!$AT32","v":0.42811312365124538},{"$f":"(ED26*'Default-Data'!$F$19/pv_dollar_index)/'SouthAfrica-IO-Data'!$AT32","v":5.6646208416783202E-2},null,"ELECWATER",{"$f":"AF25","v":6172065.2280798918},0,null,9203801.8446054161,339798.88142813463,{"$f":"EJ26*'Zambia-IO-Data'!BO30","v":1645221.5605917445},{"$f":"EM26*'Zambia-IO-Data'!$BO30","v":2453359.2362680868},{"$f":"EN26*'Zambia-IO-Data'!$BO30","v":90576.561544933895},{"$f":"EJ26*'Zambia-IO-Data'!$BN30","v":81443.3779933818},{"$f":"EM26*'Zambia-IO-Data'!$BN30","v":121448.60511131992},{"$f":"EN26*'Zambia-IO-Data'!$BN30","v":4483.8101541725428},{"$f":"(ER26*'Default-Data'!$F$19/pv_dollar_index)/'Zambia-IO-Data'!$BP30","v":134.8515579984269},{"$f":"(ES26*'Default-Data'!$F$19/pv_dollar_index)/'Zambia-IO-Data'!$BP30","v":201.09104041986154},{"$f":"(ET26*'Default-Data'!$F$19/pv_dollar_index)/'Zambia-IO-Data'!$BP30","v":7.424161423025315},39399.6874490712,2972.7797591818453,{"$f":"EK26*'Zambia-IO-Data'!BO30","v":0},{"$f":"EX26*'Zambia-IO-Data'!$BO30","v":10502.354216362284},{"$f":"EY26*'Zambia-IO-Data'!$BO30","v":792.42217539205149},{"$f":"EK26*'Zambia-IO-Data'!BN30","v":0},{"$f":"EX26*'Zambia-IO-Data'!$BN30","v":519.89788169073938},{"$f":"EY26*'Zambia-IO-Data'!$BN30","v":39.227262945411567},{"$f":"(FC26*'Default-Data'!$F$19/pv_dollar_index)/'Zambia-IO-Data'!$BP30","v":0},{"$f":"(FD26*'Default-Data'!$F$19/pv_dollar_index)/'Zambia-IO-Data'!$BP30","v":0.86083167316285891},{"$f":"(FE26*'Default-Data'!$F$19/pv_dollar_index)/'Zambia-IO-Data'!$BP30","v":6.4951352148391622E-2},null,"TTL_C45: Construction",10674042.217973458,486078.39708321507,null,406655.18036865257,289609.91131610423,{"$f":"FK26*CustomRegion1!C28","v":5874230.0073567629},{"$f":"FN26*CustomRegion1!$C28","v":223793.94931999283},{"$f":"FO26*CustomRegion1!$C28","v":159380.59797218809},{"$f":"FK26*CustomRegion1!D28","v":1805118.8508828145},{"$f":"FN26*CustomRegion1!$D28","v":68770.66034613947},{"$f":"FO26*CustomRegion1!$D28","v":48976.78870324474},{"$f":"(FS26*'Default-Data'!$C$58/pv_dollar_index)/CustomRegion1!$E28","v":551.12227456101482},{"$f":"(FT26*'Default-Data'!$C$58/pv_dollar_index)/CustomRegion1!$E28","v":20.996425102142954},{"$f":"(FU26*'Default-Data'!$C$58/pv_dollar_index)/CustomRegion1!$E28","v":14.95314238041756},5864.7978876626003,3100.9504032154218,{"$f":"FL26*CustomRegion1!C28","v":267502.81175262242},{"$f":"FY26*CustomRegion1!$C28","v":3227.5656246496469},{"$f":"FZ26*CustomRegion1!$C28","v":1706.5414898978602},{"$f":"FL26*CustomRegion1!D28","v":82202.155440640534},{"$f":"FY26*CustomRegion1!$D28","v":991.81331752755818},{"$f":"FZ26*CustomRegion1!$D28","v":524.41089459730131},{"$f":"(GD26*'Default-Data'!$C$58/pv_dollar_index)/CustomRegion1!$E28","v":25.097205570762132},{"$f":"(GE26*'Default-Data'!$C$58/pv_dollar_index)/CustomRegion1!$E28","v":0.30281131418486251},{"$f":"(GF26*'Default-Data'!$C$58/pv_dollar_index)/CustomRegion1!$E28","v":0.16010830804503282},null,"C36T37 Manufacturing n.e.c; recycling",0,0,null,293929.26902276336,348087.81269912992,{"$f":"GL26*CustomRegion2!$C$13","v":0},{"$f":"GO26*CustomRegion2!C$13","v":181113.766111117},{"$f":"GP26*CustomRegion2!D$13","v":38518.231304291709},{"$f":"GL26*CustomRegion2!D32","v":0},{"$f":"GO26*CustomRegion2!$D32","v":49615.832406320595},{"$f":"GP26*CustomRegion2!$D32","v":58757.899936209542},{"$f":"(GT26*'Default-Data'!$C$59/pv_dollar_index)/CustomRegion2!$E32","v":0},{"$f":"(GU26*'Default-Data'!$C$59/pv_dollar_index)/CustomRegion2!$E32","v":7.6101533097554253},{"$f":"(GV26*'Default-Data'!$C$59/pv_dollar_index)/CustomRegion2!$E32","v":9.0123778033573725},71065.560051049004,97266.333432791042,{"$f":"GM26*CustomRegion2!C32","v":0},{"$f":"GZ26*CustomRegion2!$C32","v":26252.745576978643},{"$f":"HA26*CustomRegion2!$C32","v":35931.727027583489},{"$f":"GM26*CustomRegion2!D32","v":0},{"$f":"GZ26*CustomRegion2!$D32","v":11996.004783998187},{"$f":"HA26*CustomRegion2!$D32","v":16418.746300508483},{"$f":"(HE26*'Default-Data'!$C$59/pv_dollar_index)/CustomRegion2!$E32","v":0},{"$f":"(HF26*'Default-Data'!$C$59/pv_dollar_index)/CustomRegion2!$E32","v":1.8399658150077924},{"$f":"(HG26*'Default-Data'!$C$59/pv_dollar_index)/CustomRegion2!$E32","v":2.5183327667990896},null,"ELECWATER",6172065.2280798918,0,null,9203801.8446054161,339798.8814281337,{"$f":"HM26*CustomRegion3!D31","v":1645221.5605917445},{"$f":"HP26*CustomRegion3!$D31","v":2453359.2362680868},{"$f":"HQ26*CustomRegion3!$D31","v":90576.561544933647},{"$f":"HM26*CustomRegion3!E31","v":81443.3779933818},{"$f":"HP26*CustomRegion3!$E31","v":121448.60511131992},{"$f":"HQ26*CustomRegion3!$E31","v":4483.81015417253},{"$f":"(HU26*'Default-Data'!$C$60/pv_dollar_index)/CustomRegion3!$F31","v":135.3977244558418},{"$f":"(HV26*'Default-Data'!$C$60/pv_dollar_index)/CustomRegion3!$F31","v":201.90548544959768},{"$f":"(HW26*'Default-Data'!$C$60/pv_dollar_index)/CustomRegion3!$F31","v":7.4542302483609078},39399.6874490712,2972.7797591818453,{"$f":"HN26*CustomRegion3!D31","v":0},{"$f":"IA26*CustomRegion3!$D31","v":10502.354216362284},{"$f":"IB26*CustomRegion3!$D31","v":792.42217539205149},{"$f":"HN26*CustomRegion3!E31","v":0},{"$f":"IA26*CustomRegion3!$E31","v":519.89788169073938},{"$f":"IB26*CustomRegion3!$E31","v":39.227262945411567},{"$f":"(IF26*'Default-Data'!$C$60/pv_dollar_index)/CustomRegion3!$F31","v":0},{"$f":"(IG26*'Default-Data'!$C$60/pv_dollar_index)/CustomRegion3!$F31","v":0.86431815409300428},{"$f":"(IH26*'Default-Data'!$C$60/pv_dollar_index)/CustomRegion3!$F31","v":6.5214413624534215E-2}]
[null,null,null,"Construction","O&M",null,"Indirect","Induced","Direct","Indirect","Induced","Direct","Indirect","Induced","Direct","Indirect","Induced","Indirect","Induced","Direct","Indirect","Induced","Direct","Indirect","Induced","Direct","Indirect","Induced",null,26,"TTL_C50T52: Wholesale and retail trade; repairs",{"$f":"'Solar-PV-Inputs'!E13","v":1611998.2125102775},0,null,1836981.4217507984,1717466.6386301969,{"$f":"AF27*'Colombia-IO-Data'!AN33","v":968468.47666450718},{"$f":"AI27*'Colombia-IO-Data'!$AN33","v":1103635.5905218807},{"$f":"AJ27*'Colombia-IO-Data'!$AN33","v":1031832.5953017729},{"$f":"AK27*'Colombia-IO-Data'!$AO33","v":420127.49281242228},{"$f":"AL27*'Colombia-IO-Data'!$AO33","v":478763.80573731015},{"$f":"AM27*'Colombia-IO-Data'!$AO33","v":447615.23137984419},{"$f":"(AN27*'Default-Data'!$F$19/pv_dollar_index)/'Colombia-IO-Data'!$AP33","v":124.53379306393232},{"$f":"(AO27*'Default-Data'!$F$19/pv_dollar_index)/'Colombia-IO-Data'!$AP33","v":141.91471334348242},{"$f":"(AP27*'Default-Data'!$F$19/pv_dollar_index)/'Colombia-IO-Data'!$AP33","v":132.6816824668264},28597.423850264477,16461.058238005604,{"$f":"'Colombia-IO-Data'!$AN33*Calculations!AG27","v":0},{"$f":"'Colombia-IO-Data'!$AN33*Calculations!AT27","v":17180.976565517318},{"$f":"'Colombia-IO-Data'!$AN33*Calculations!AU27","v":9889.5990531040261},{"$f":"AV27*'Colombia-IO-Data'!$AO33","v":0},{"$f":"AW27*'Colombia-IO-Data'!$AO33","v":7453.2117280677085},{"$f":"AX27*'Colombia-IO-Data'!$AO33","v":4290.1679870990993},{"$f":"(AY27*'Default-Data'!$F$19/pv_dollar_index)/'Colombia-IO-Data'!$AP33","v":0},{"$f":"(AZ27*'Default-Data'!$F$19/pv_dollar_index)/'Colombia-IO-Data'!$AP33","v":2.2092739534645687},{"$f":"(BA27*'Default-Data'!$F$19/pv_dollar_index)/'Colombia-IO-Data'!$AP33","v":1.2716875268942387},null,"DOM_C50T52: Wholesale and retail trade; repairs",1611998.2125102775,0,null,3392028.3670059387,2600235.3292464186,{"$f":"BG27*'Mexico-IO-Data'!AQ33","v":1227485.231982857},{"$f":"BJ27*'Mexico-IO-Data'!$AQ33","v":2582921.4292259463},{"$f":"BK27*'Mexico-IO-Data'!$AQ33","v":1979996.2813604616},{"$f":"BG27*'Mexico-IO-Data'!AR33","v":247170.61987029589},{"$f":"BJ27*'Mexico-IO-Data'!$AR33","v":520105.88323474338},{"$f":"BK27*'Mexico-IO-Data'!$AR33","v":398698.81563803693},{"$f":"(Calculations!BO27*'Default-Data'!$F$19/pv_dollar_index)/'Mexico-IO-Data'!$AS33","v":49.408242251679198},{"$f":"(Calculations!BP27*'Default-Data'!$F$19/pv_dollar_index)/'Mexico-IO-Data'!$AS33","v":103.96671533562802},{"$f":"(Calculations!BQ27*'Default-Data'!$F$19/pv_dollar_index)/'Mexico-IO-Data'!$AS33","v":79.698014589431679},45940.439588826921,37381.635957904931,{"$f":"BH27*'Mexico-IO-Data'!AQ33","v":0},{"$f":"BU27*'Mexico-IO-Data'!$AQ33","v":34982.179699982837},{"$f":"BV27*'Mexico-IO-Data'!$AQ33","v":28464.923676455441},{"$f":"BH27*'Mexico-IO-Data'!AR33","v":0},{"$f":"BU27*'Mexico-IO-Data'!$AR33","v":7044.1312168712075},{"$f":"BV27*'Mexico-IO-Data'!$AR33","v":5731.7942785387522},{"$f":"(BZ27*'Default-Data'!$F$19/pv_dollar_index)/'Mexico-IO-Data'!$AS33","v":0},{"$f":"(CA27*'Default-Data'!$F$19/pv_dollar_index)/'Mexico-IO-Data'!$AS33","v":1.4080886385219378},{"$f":"(CB27*'Default-Data'!$F$19/pv_dollar_index)/'Mexico-IO-Data'!$AS33","v":1.1457586682407526},null,"TTL_C50T52: Wholesale and retail trade; repairs",1611998.2125102775,0,null,2735642.9391903318,2168763.2378277667,{"$f":"CH27*'Philippines-IO-Data'!AN33","v":1114075.998635733},{"$f":"'Philippines-IO-Data'!$AN33*Calculations!CK27","v":1890643.6221434888},{"$f":"'Philippines-IO-Data'!$AN33*Calculations!CL27","v":1498864.6086802222},{"$f":"CH27*'Philippines-IO-Data'!AO33","v":247983.42147860167},{"$f":"'Philippines-IO-Data'!$AO33*Calculations!CK27","v":420840.47658326518},{"$f":"'Philippines-IO-Data'!$AO33*Calculations!CL27","v":333633.94817667082},{"$f":"(CP27*'Default-Data'!$F$19/pv_dollar_index)/'Philippines-IO-Data'!$AP33","v":75.396967749775584},{"$f":"(CQ27*'Default-Data'!$F$19/pv_dollar_index)/'Philippines-IO-Data'!$AP33","v":127.95248832183162},{"$f":"(CR27*'Default-Data'!$F$19/pv_dollar_index)/'Philippines-IO-Data'!$AP33","v":101.43818437910113},29666.997978016658,23064.61507373628,{"$f":"CI27*'Philippines-IO-Data'!AN33","v":0},{"$f":"'Philippines-IO-Data'!$AN33*Calculations!CV27","v":20503.304620551778},{"$f":"'Philippines-IO-Data'!$AN33*Calculations!CW27","v":15940.299357656824},{"$f":"'Philippines-IO-Data'!AO33*Calculations!CI27","v":0},{"$f":"'Philippines-IO-Data'!$AO33*Calculations!CV27","v":4563.8534872385435},{"$f":"'Philippines-IO-Data'!$AO33*Calculations!CW27","v":3548.1690467665994},{"$f":"(DA27*'Default-Data'!$F$19/pv_dollar_index)/'Philippines-IO-Data'!$AP33","v":0},{"$f":"(DB27*'Default-Data'!$F$19/pv_dollar_index)/'Philippines-IO-Data'!$AP33","v":1.3875956390162054},{"$f":"(DC27*'Default-Data'!$F$19/pv_dollar_index)/'Philippines-IO-Data'!$AP33","v":1.0787865801460339},null,"DOM_C50T52: Wholesale and retail trade; repairs",1611998.2125102775,0,null,5080962.1537105637,4350441.0968535496,{"$f":"DI27*'SouthAfrica-IO-Data'!AR33","v":946672.21355806757},{"$f":"DL27*'SouthAfrica-IO-Data'!$AR33","v":2983877.8056506556},{"$f":"DM27*'SouthAfrica-IO-Data'!$AR33","v":2554867.4130965141},{"$f":"DI27*'SouthAfrica-IO-Data'!AS33","v":454577.70113379764},{"$f":"DL27*'SouthAfrica-IO-Data'!$AS33","v":1432813.0623574445},{"$f":"DM27*'SouthAfrica-IO-Data'!$AS33","v":1226808.7503931243},{"$f":"(DQ27*'Default-Data'!$F$19/pv_dollar_index)/'SouthAfrica-IO-Data'!$AT33","v":46.470238421012567},{"$f":"(DR27*'Default-Data'!$F$19/pv_dollar_index)/'SouthAfrica-IO-Data'!$AT33","v":146.4725710355377},{"$f":"(DS27*'Default-Data'!$F$19/pv_dollar_index)/'SouthAfrica-IO-Data'!$AT33","v":125.4133121478675},79437.978079760476,45857.801474574429,{"$f":"DJ27*'SouthAfrica-IO-Data'!AR33","v":0},{"$f":"DW27*'SouthAfrica-IO-Data'!$AR33","v":46651.246859781888},{"$f":"DX27*'SouthAfrica-IO-Data'!$AR33","v":26930.741047930915},{"$f":"DJ27*'SouthAfrica-IO-Data'!AS33","v":0},{"$f":"DW27*'SouthAfrica-IO-Data'!$AS33","v":22401.224255690235},{"$f":"DX27*'SouthAfrica-IO-Data'!$AS33","v":12931.735166690958},{"$f":"(EB27*'Default-Data'!$F$19/pv_dollar_index)/'SouthAfrica-IO-Data'!$AT33","v":0},{"$f":"(EC27*'Default-Data'!$F$19/pv_dollar_index)/'SouthAfrica-IO-Data'!$AT33","v":2.2900160511351091},{"$f":"(ED27*'Default-Data'!$F$19/pv_dollar_index)/'SouthAfrica-IO-Data'!$AT33","v":1.3219760117899939},null,"EQUIPMACHIN",0,0,null,5079320.9692105027,208345.00602418464,{"$f":"EJ27*'Zambia-IO-Data'!BO31","v":0},{"$f":"EM27*'Zambia-IO-Data'!$BO31","v":639963.99315503414},{"$f":"EN27*'Zambia-IO-Data'!$BO31","v":26250.221794877303},{"$f":"EJ27*'Zambia-IO-Data'!$BN31","v":0},{"$f":"EM27*'Zambia-IO-Data'!$BN31","v":143516.40683637906},{"$f":"EN27*'Zambia-IO-Data'!$BN31","v":5886.7960556433072},{"$f":"(ER27*'Default-Data'!$F$19/pv_dollar_index)/'Zambia-IO-Data'!$BP31","v":0},{"$f":"(ES27*'Default-Data'!$F$19/pv_dollar_index)/'Zambia-IO-Data'!$BP31","v":527.06378127108155},{"$f":"(ET27*'Default-Data'!$F$19/pv_dollar_index)/'Zambia-IO-Data'!$BP31","v":21.619249374020438},133560.78866880722,1813.4396115866839,{"$f":"EK27*'Zambia-IO-Data'!BO31","v":0},{"$f":"EX27*'Zambia-IO-Data'!$BO31","v":16827.858716459701},{"$f":"EY27*'Zambia-IO-Data'!$BO31","v":228.48252004773676},{"$f":"EK27*'Zambia-IO-Data'!BN31","v":0},{"$f":"EX27*'Zambia-IO-Data'!$BN31","v":3773.7651548646982},{"$f":"EY27*'Zambia-IO-Data'!$BN31","v":51.238805077941869},{"$f":"(FC27*'Default-Data'!$F$19/pv_dollar_index)/'Zambia-IO-Data'!$BP31","v":0},{"$f":"(FD27*'Default-Data'!$F$19/pv_dollar_index)/'Zambia-IO-Data'!$BP31","v":13.859146671778673},{"$f":"(FE27*'Default-Data'!$F$19/pv_dollar_index)/'Zambia-IO-Data'!$BP31","v":0.18817443209110732},null,"TTL_C50T52: Wholesale and retail trade; repairs",1611998.2125102775,0,null,5036746.8054500772,3443099.5532025509,{"$f":"FK27*CustomRegion1!C29","v":1114075.998635733},{"$f":"FN27*CustomRegion1!$C29","v":3480970.812256007},{"$f":"FO27*CustomRegion1!$C29","v":2379577.4358601663},{"$f":"FK27*CustomRegion1!D29","v":247983.42147860167},{"$f":"FN27*CustomRegion1!$D29","v":774833.18296729424},{"$f":"FO27*CustomRegion1!$D29","v":529672.80054547184},{"$f":"(FS27*'Default-Data'!$C$58/pv_dollar_index)/CustomRegion1!$E29","v":75.712015988238178},{"$f":"(FT27*'Default-Data'!$C$58/pv_dollar_index)/CustomRegion1!$E29","v":236.56493642700769},{"$f":"(FU27*'Default-Data'!$C$58/pv_dollar_index)/CustomRegion1!$E29","v":161.71482474240349},53643.541614569251,36866.421108635164,{"$f":"FL27*CustomRegion1!C29","v":0},{"$f":"FY27*CustomRegion1!$C29","v":37073.851404303408},{"$f":"FZ27*CustomRegion1!$C29","v":25478.933285396757},{"$f":"FL27*CustomRegion1!D29","v":0},{"$f":"FY27*CustomRegion1!$D29","v":8252.3100128597835},{"$f":"FZ27*CustomRegion1!$D29","v":5671.3842318432498},{"$f":"(GD27*'Default-Data'!$C$58/pv_dollar_index)/CustomRegion1!$E29","v":0},{"$f":"(GE27*'Default-Data'!$C$58/pv_dollar_index)/CustomRegion1!$E29","v":2.519519344914964},{"$f":"(GF27*'Default-Data'!$C$58/pv_dollar_index)/CustomRegion1!$E29","v":1.7315348384037437},null,"C40T41 Electricity, gas and water supply",{"$f":"AF25","v":6172065.2280798918},0,null,1931106.1178699648,892695.46359108575,{"$f":"GL27*CustomRegion2!$C$13","v":3803112.163200215},{"$f":"GO27*CustomRegion2!C$13","v":1189911.7870447994},{"$f":"GP27*CustomRegion2!D$13","v":98782.689587050016},{"$f":"GL27*CustomRegion2!D33","v":912890.4941788608},{"$f":"GO27*CustomRegion2!$D33","v":285623.75041563879},{"$f":"GP27*CustomRegion2!$D33","v":132035.74051702244},{"$f":"(GT27*'Default-Data'!$C$59/pv_dollar_index)/CustomRegion2!$E33","v":48.023137290064994},{"$f":"(GU27*'Default-Data'!$C$59/pv_dollar_index)/CustomRegion2!$E33","v":15.025404105945292},{"$f":"(GV27*'Default-Data'!$C$59/pv_dollar_index)/CustomRegion2!$E33","v":6.9458171976561633},199726.93103912348,249446.29328531356,{"$f":"GM27*CustomRegion2!C33","v":0},{"$f":"GZ27*CustomRegion2!$C33","v":78456.480263294783},{"$f":"HA27*CustomRegion2!$C33","v":97987.17721275978},{"$f":"GM27*CustomRegion2!D33","v":0},{"$f":"GZ27*CustomRegion2!$D33","v":29540.973732361956},{"$f":"HA27*CustomRegion2!$D33","v":36894.806119726796},{"$f":"(HE27*'Default-Data'!$C$59/pv_dollar_index)/CustomRegion2!$E33","v":0},{"$f":"(HF27*'Default-Data'!$C$59/pv_dollar_index)/CustomRegion2!$E33","v":1.5540201659208739},{"$f":"(HG27*'Default-Data'!$C$59/pv_dollar_index)/CustomRegion2!$E33","v":1.9408728110064251},null,"EQUIPMACHIN",0,0,null,5079320.9692105027,208345.00602418464,{"$f":"HM27*CustomRegion3!D32","v":0},{"$f":"HP27*CustomRegion3!$D32","v":639963.99315503414},{"$f":"HQ27*CustomRegion3!$D32","v":26250.221794877303},{"$f":"HM27*CustomRegion3!E32","v":0},{"$f":"HP27*CustomRegion3!$E32","v":143516.40683637906},{"$f":"HQ27*CustomRegion3!$E32","v":5886.7960556433072},{"$f":"(HU27*'Default-Data'!$C$60/pv_dollar_index)/CustomRegion3!$F32","v":0},{"$f":"(HV27*'Default-Data'!$C$60/pv_dollar_index)/CustomRegion3!$F32","v":529.19845856010397},{"$f":"(HW27*'Default-Data'!$C$60/pv_dollar_index)/CustomRegion3!$F32","v":21.706810163215884},133560.78866880722,1813.4396115866839,{"$f":"HN27*CustomRegion3!D32","v":0},{"$f":"IA27*CustomRegion3!$D32","v":16827.858716459701},{"$f":"IB27*CustomRegion3!$D32","v":228.48252004773676},{"$f":"HN27*CustomRegion3!E32","v":0},{"$f":"IA27*CustomRegion3!$E32","v":3773.7651548646982},{"$f":"IB27*CustomRegion3!$E32","v":51.238805077941869},{"$f":"(IF27*'Default-Data'!$C$60/pv_dollar_index)/CustomRegion3!$F32","v":0},{"$f":"(IG27*'Default-Data'!$C$60/pv_dollar_index)/CustomRegion3!$F32","v":13.915278029494296},{"$f":"(IH27*'Default-Data'!$C$60/pv_dollar_index)/CustomRegion3!$F32","v":0.18893656316676352}]
[null,113,"Agriculture",{"$f":"HLOOKUP(biopower_country&D$1,$AF$2:$IK$255,$B28,FALSE)","v":0},28385431.684592765,0,4743374.6078717001,22115143.163596753,0,2892867.756243112,13487483.0413984,0,476555.82777237636,{"$f":"HLOOKUP(biopower_country&N$1,$AF$2:$IK$255,$B28,FALSE)","v":2221857.0591373215},0,33.114039407768701,154.38833800149177,1357746.5901010595,1880593.5846988894,11463424.600471133,548324.43047249643,759475.60008491471,3516507.1907978705,168203.38335609017,232975.87780394769,244.34861753364646,11.687808941524512,16.188601521717906,null,27,"TTL_C55: Hotels and restaurants",0,0,null,427828.33882984886,1164808.2737752837,{"$f":"AF28*'Colombia-IO-Data'!AN34","v":0},{"$f":"AI28*'Colombia-IO-Data'!$AN34","v":197728.92033530603},{"$f":"AJ28*'Colombia-IO-Data'!$AN34","v":538338.07036054542},{"$f":"AK28*'Colombia-IO-Data'!$AO34","v":0},{"$f":"AL28*'Colombia-IO-Data'!$AO34","v":84069.429744538327},{"$f":"AM28*'Colombia-IO-Data'!$AO34","v":228887.98719094144},{"$f":"(AN28*'Default-Data'!$F$19/pv_dollar_index)/'Colombia-IO-Data'!$AP34","v":0},{"$f":"(AO28*'Default-Data'!$F$19/pv_dollar_index)/'Colombia-IO-Data'!$AP34","v":16.857265900903233},{"$f":"(AP28*'Default-Data'!$F$19/pv_dollar_index)/'Colombia-IO-Data'!$AP34","v":45.895703983300777},2761.231027706508,11164.104384594228,{"$f":"'Colombia-IO-Data'!$AN34*Calculations!AG28","v":0},{"$f":"'Colombia-IO-Data'!$AN34*Calculations!AT28","v":1276.1548975414987},{"$f":"'Colombia-IO-Data'!$AN34*Calculations!AU28","v":5159.7009971665339},{"$f":"AV28*'Colombia-IO-Data'!$AO34","v":0},{"$f":"AW28*'Colombia-IO-Data'!$AO34","v":542.58939117292527},{"$f":"AX28*'Colombia-IO-Data'!$AO34","v":2193.7768119531006},{"$f":"(AY28*'Default-Data'!$F$19/pv_dollar_index)/'Colombia-IO-Data'!$AP34","v":0},{"$f":"(AZ28*'Default-Data'!$F$19/pv_dollar_index)/'Colombia-IO-Data'!$AP34","v":0.10879785517523885},{"$f":"(BA28*'Default-Data'!$F$19/pv_dollar_index)/'Colombia-IO-Data'!$AP34","v":0.43988735451999095},null,"DOM_C55: Hotels and restaurants",0,0,null,167501.90920814953,458129.15389080602,{"$f":"BG28*'Mexico-IO-Data'!AQ34","v":0},{"$f":"BJ28*'Mexico-IO-Data'!$AQ34","v":123185.99236246913},{"$f":"BK28*'Mexico-IO-Data'!$AQ34","v":336922.09670331038},{"$f":"BG28*'Mexico-IO-Data'!AR34","v":0},{"$f":"BJ28*'Mexico-IO-Data'!$AR34","v":30131.649548718924},{"$f":"BK28*'Mexico-IO-Data'!$AR34","v":82412.118037023945},{"$f":"(Calculations!BO28*'Default-Data'!$F$19/pv_dollar_index)/'Mexico-IO-Data'!$AS34","v":0},{"$f":"(Calculations!BP28*'Default-Data'!$F$19/pv_dollar_index)/'Mexico-IO-Data'!$AS34","v":20.548094463981649},{"$f":"(Calculations!BQ28*'Default-Data'!$F$19/pv_dollar_index)/'Mexico-IO-Data'!$AS34","v":56.20044079112062},2547.592194327327,6586.1797429743883,{"$f":"BH28*'Mexico-IO-Data'!AQ34","v":0},{"$f":"BU28*'Mexico-IO-Data'!$AQ34","v":1873.5766898221318},{"$f":"BV28*'Mexico-IO-Data'!$AQ34","v":4843.6766562922148},{"$f":"BH28*'Mexico-IO-Data'!AR34","v":0},{"$f":"BU28*'Mexico-IO-Data'!$AR34","v":458.28227006733169},{"$f":"BV28*'Mexico-IO-Data'!$AR34","v":1184.777300857897},{"$f":"(BZ28*'Default-Data'!$F$19/pv_dollar_index)/'Mexico-IO-Data'!$AS34","v":0},{"$f":"(CA28*'Default-Data'!$F$19/pv_dollar_index)/'Mexico-IO-Data'!$AS34","v":0.31252279638012209},{"$f":"(CB28*'Default-Data'!$F$19/pv_dollar_index)/'Mexico-IO-Data'!$AS34","v":0.80795164756734417},null,"TTL_C55: Hotels and restaurants",0,0,null,489273.22704867297,650129.9042814963,{"$f":"CH28*'Philippines-IO-Data'!AN34","v":0},{"$f":"'Philippines-IO-Data'!$AN34*Calculations!CK28","v":183410.37472210199},{"$f":"'Philippines-IO-Data'!$AN34*Calculations!CL28","v":243709.57324107061},{"$f":"CH28*'Philippines-IO-Data'!AO34","v":0},{"$f":"'Philippines-IO-Data'!$AO34*Calculations!CK28","v":69092.150269985999},{"$f":"'Philippines-IO-Data'!$AO34*Calculations!CL28","v":91807.339045674424},{"$f":"(CP28*'Default-Data'!$F$19/pv_dollar_index)/'Philippines-IO-Data'!$AP34","v":0},{"$f":"(CQ28*'Default-Data'!$F$19/pv_dollar_index)/'Philippines-IO-Data'!$AP34","v":21.006801965260781},{"$f":"(CR28*'Default-Data'!$F$19/pv_dollar_index)/'Philippines-IO-Data'!$AP34","v":27.913136047349525},1926.4992603884536,6914.0769857371333,{"$f":"CI28*'Philippines-IO-Data'!AN34","v":0},{"$f":"'Philippines-IO-Data'!$AN34*Calculations!CV28","v":722.17307572921482},{"$f":"'Philippines-IO-Data'!$AN34*Calculations!CW28","v":2591.8308640365412},{"$f":"'Philippines-IO-Data'!AO34*Calculations!CI28","v":0},{"$f":"'Philippines-IO-Data'!$AO34*Calculations!CV28","v":272.04835465181611},{"$f":"'Philippines-IO-Data'!$AO34*Calculations!CW28","v":976.36334805885338},{"$f":"(DA28*'Default-Data'!$F$19/pv_dollar_index)/'Philippines-IO-Data'!$AP34","v":0},{"$f":"(DB28*'Default-Data'!$F$19/pv_dollar_index)/'Philippines-IO-Data'!$AP34","v":8.2713678599004359E-2},{"$f":"(DC28*'Default-Data'!$F$19/pv_dollar_index)/'Philippines-IO-Data'!$AP34","v":0.29685385993437652},null,"DOM_C55: Hotels and restaurants",0,0,null,178920.21699893349,318210.18830389541,{"$f":"DI28*'SouthAfrica-IO-Data'!AR34","v":0},{"$f":"DL28*'SouthAfrica-IO-Data'!$AR34","v":80346.461936837964},{"$f":"DM28*'SouthAfrica-IO-Data'!$AR34","v":142896.44407610671},{"$f":"DI28*'SouthAfrica-IO-Data'!AS34","v":0},{"$f":"DL28*'SouthAfrica-IO-Data'!$AS34","v":30819.751601510507},{"$f":"DM28*'SouthAfrica-IO-Data'!$AS34","v":54813.028539163904},{"$f":"(DQ28*'Default-Data'!$F$19/pv_dollar_index)/'SouthAfrica-IO-Data'!$AT34","v":0},{"$f":"(DR28*'Default-Data'!$F$19/pv_dollar_index)/'SouthAfrica-IO-Data'!$AT34","v":3.1506191382164426},{"$f":"(DS28*'Default-Data'!$F$19/pv_dollar_index)/'SouthAfrica-IO-Data'!$AT34","v":5.6033863923364624},2886.3871648987197,3354.2391030143872,{"$f":"DJ28*'SouthAfrica-IO-Data'!AR34","v":0},{"$f":"DW28*'SouthAfrica-IO-Data'!$AR34","v":1296.1698815785307},{"$f":"DX28*'SouthAfrica-IO-Data'!$AR34","v":1506.2649092304948},{"$f":"DJ28*'SouthAfrica-IO-Data'!AS34","v":0},{"$f":"DW28*'SouthAfrica-IO-Data'!$AS34","v":497.19219515867758},{"$f":"DX28*'SouthAfrica-IO-Data'!$AS34","v":577.78163754179343},{"$f":"(EB28*'Default-Data'!$F$19/pv_dollar_index)/'SouthAfrica-IO-Data'!$AT34","v":0},{"$f":"(EC28*'Default-Data'!$F$19/pv_dollar_index)/'SouthAfrica-IO-Data'!$AT34","v":5.0826601904280122E-2},{"$f":"(ED28*'Default-Data'!$F$19/pv_dollar_index)/'SouthAfrica-IO-Data'!$AT34","v":5.9065040772748878E-2},null,"CONSTR",{"$f":"AF26","v":10674042.217973458},{"$f":"AG26","v":486078.39708321507},null,13418285.621249313,228421.68292627484,{"$f":"EJ28*'Zambia-IO-Data'!BO32","v":647549.64911759598},{"$f":"EM28*'Zambia-IO-Data'!$BO32","v":814031.45765797293},{"$f":"EN28*'Zambia-IO-Data'!$BO32","v":13857.391380811179},{"$f":"EJ28*'Zambia-IO-Data'!$BN32","v":284825.46277927526},{"$f":"EM28*'Zambia-IO-Data'!$BN32","v":358052.67898803938},{"$f":"EN28*'Zambia-IO-Data'!$BN32","v":6095.189640410591},{"$f":"(ER28*'Default-Data'!$F$19/pv_dollar_index)/'Zambia-IO-Data'!$BP32","v":968.57608865486202},{"$f":"(ES28*'Default-Data'!$F$19/pv_dollar_index)/'Zambia-IO-Data'!$BP32","v":1217.5922052846195},{"$f":"(ET28*'Default-Data'!$F$19/pv_dollar_index)/'Zambia-IO-Data'!$BP32","v":20.727272357996821},568116.30038358143,1995.8692436472047,{"$f":"EK28*'Zambia-IO-Data'!BO32","v":29488.350247001254},{"$f":"EX28*'Zambia-IO-Data'!$BO32","v":34465.247884434561},{"$f":"EY28*'Zambia-IO-Data'!$BO32","v":121.0810676982431},{"$f":"EK28*'Zambia-IO-Data'!BN32","v":12970.484992378106},{"$f":"EX28*'Zambia-IO-Data'!$BN32","v":15159.579179547676},{"$f":"EY28*'Zambia-IO-Data'!$BN32","v":53.257647792652818},{"$f":"(FC28*'Default-Data'!$F$19/pv_dollar_index)/'Zambia-IO-Data'!$BP32","v":44.107368418847294},{"$f":"(FD28*'Default-Data'!$F$19/pv_dollar_index)/'Zambia-IO-Data'!$BP32","v":51.551591504860227},{"$f":"(FE28*'Default-Data'!$F$19/pv_dollar_index)/'Zambia-IO-Data'!$BP32","v":0.18110769903300694},null,"TTL_C55: Hotels and restaurants",0,0,null,610275.62291803141,802293.70796910138,{"$f":"FK28*CustomRegion1!C30","v":0},{"$f":"FN28*CustomRegion1!$C30","v":228769.68224551034},{"$f":"FO28*CustomRegion1!$C30","v":300750.13608124352},{"$f":"FK28*CustomRegion1!D30","v":0},{"$f":"FN28*CustomRegion1!$D30","v":86179.363009714274},{"$f":"FO28*CustomRegion1!$D30","v":113294.97378394469},{"$f":"(FS28*'Default-Data'!$C$58/pv_dollar_index)/CustomRegion1!$E30","v":0},{"$f":"(FT28*'Default-Data'!$C$58/pv_dollar_index)/CustomRegion1!$E30","v":26.31148998244905},{"$f":"(FU28*'Default-Data'!$C$58/pv_dollar_index)/CustomRegion1!$E30","v":34.590178711834639},3054.6886953293929,8590.427675344441,{"$f":"FL28*CustomRegion1!C30","v":0},{"$f":"FY28*CustomRegion1!$C30","v":1145.0894250831302},{"$f":"FZ28*CustomRegion1!$C30","v":3220.2325241910307},{"$f":"FL28*CustomRegion1!D30","v":0},{"$f":"FY28*CustomRegion1!$D30","v":431.36431486109115},{"$f":"FZ28*CustomRegion1!$D30","v":1213.0872629360122},{"$f":"(GD28*'Default-Data'!$C$58/pv_dollar_index)/CustomRegion1!$E30","v":0},{"$f":"(GE28*'Default-Data'!$C$58/pv_dollar_index)/CustomRegion1!$E30","v":0.13170018265247826},{"$f":"(GF28*'Default-Data'!$C$58/pv_dollar_index)/CustomRegion1!$E30","v":0.37036863875379955},null,"C45 Construction",{"$f":"AF26","v":10674042.217973458},{"$f":"AF26","v":10674042.217973458},null,826258.07651902363,69746.667320528999,{"$f":"GL28*CustomRegion2!$C$13","v":6577146.9175344883},{"$f":"GO28*CustomRegion2!C$13","v":509124.90789237618},{"$f":"GP28*CustomRegion2!D$13","v":7717.9325634066781},{"$f":"GL28*CustomRegion2!D34","v":2146435.8474740493},{"$f":"GO28*CustomRegion2!$D34","v":166151.67136205145},{"$f":"GP28*CustomRegion2!$D34","v":14025.309617620487},{"$f":"(GT28*'Default-Data'!$C$59/pv_dollar_index)/CustomRegion2!$E34","v":714.40910359547297},{"$f":"(GU28*'Default-Data'!$C$59/pv_dollar_index)/CustomRegion2!$E34","v":55.301101469368696},{"$f":"(GV28*'Default-Data'!$C$59/pv_dollar_index)/CustomRegion2!$E34","v":4.6681147649321284},752773.20217962004,19489.342493265867,{"$f":"GM28*CustomRegion2!C34","v":5201381.2419657884},{"$f":"GZ28*CustomRegion2!$C34","v":366820.77261026367},{"$f":"HA28*CustomRegion2!$C34","v":9497.0113844992775},{"$f":"GM28*CustomRegion2!D34","v":2146435.8474740493},{"$f":"GZ28*CustomRegion2!$D34","v":151374.64825232196},{"$f":"HA28*CustomRegion2!$D34","v":3919.0985492642494},{"$f":"(HE28*'Default-Data'!$C$59/pv_dollar_index)/CustomRegion2!$E34","v":714.40910359547297},{"$f":"(HF28*'Default-Data'!$C$59/pv_dollar_index)/CustomRegion2!$E34","v":50.3827900993574},{"$f":"(HG28*'Default-Data'!$C$59/pv_dollar_index)/CustomRegion2!$E34","v":1.3044133999052776},null,"CONSTR",10674042.217973458,486078.39708321507,null,13418285.621249313,228421.68292627484,{"$f":"HM28*CustomRegion3!D33","v":647549.64911759598},{"$f":"HP28*CustomRegion3!$D33","v":814031.45765797293},{"$f":"HQ28*CustomRegion3!$D33","v":13857.391380811179},{"$f":"HM28*CustomRegion3!E33","v":284825.46277927526},{"$f":"HP28*CustomRegion3!$E33","v":358052.67898803938},{"$f":"HQ28*CustomRegion3!$E33","v":6095.189640410591},{"$f":"(HU28*'Default-Data'!$C$60/pv_dollar_index)/CustomRegion3!$F33","v":972.49894856786045},{"$f":"(HV28*'Default-Data'!$C$60/pv_dollar_index)/CustomRegion3!$F33","v":1222.5236130577805},{"$f":"(HW28*'Default-Data'!$C$60/pv_dollar_index)/CustomRegion3!$F33","v":20.811220523547664},568116.30038358143,1995.8692436472047,{"$f":"HN28*CustomRegion3!D33","v":29488.350247001254},{"$f":"IA28*CustomRegion3!$D33","v":34465.247884434561},{"$f":"IB28*CustomRegion3!$D33","v":121.0810676982431},{"$f":"HN28*CustomRegion3!E33","v":12970.484992378106},{"$f":"IA28*CustomRegion3!$E33","v":15159.579179547676},{"$f":"IB28*CustomRegion3!$E33","v":53.257647792652818},{"$f":"(IF28*'Default-Data'!$C$60/pv_dollar_index)/CustomRegion3!$F33","v":44.286009033110702},{"$f":"(IG28*'Default-Data'!$C$60/pv_dollar_index)/CustomRegion3!$F33","v":51.760382196819741},{"$f":"(IH28*'Default-Data'!$C$60/pv_dollar_index)/CustomRegion3!$F33","v":0.18184120891498085}]
[null,114,"Mining and Extraction",0,0,0,37814332.894202299,11688654.835074238,0,32555393.278933696,10063082.591519007,0,2020449.2049699621,624533.91508368799,0,128.00867476851246,39.568309176593303,6204625.4500506567,993961.88096053898,0,3695441.1684355969,591998.28971582314,0,1252060.8140223031,200576.28487025457,0,79.326243460281773,12.707819802188316,null,28,"TTL_C60T63: Transport and storage",0,0,null,1646972.8412708114,1211734.8967935643,{"$f":"AF29*'Colombia-IO-Data'!AN35","v":0},{"$f":"AI29*'Colombia-IO-Data'!$AN35","v":718436.75353633263},{"$f":"AJ29*'Colombia-IO-Data'!$AN35","v":528578.77409036539},{"$f":"AK29*'Colombia-IO-Data'!$AO35","v":0},{"$f":"AL29*'Colombia-IO-Data'!$AO35","v":181711.38925659191},{"$f":"AM29*'Colombia-IO-Data'!$AO35","v":133691.35543070346},{"$f":"(AN29*'Default-Data'!$F$19/pv_dollar_index)/'Colombia-IO-Data'!$AP35","v":0},{"$f":"(AO29*'Default-Data'!$F$19/pv_dollar_index)/'Colombia-IO-Data'!$AP35","v":39.765970266204363},{"$f":"(AP29*'Default-Data'!$F$19/pv_dollar_index)/'Colombia-IO-Data'!$AP35","v":29.257200039336844},23353.766512644041,11613.872582148826,{"$f":"'Colombia-IO-Data'!$AN35*Calculations!AG29","v":0},{"$f":"'Colombia-IO-Data'!$AN35*Calculations!AT29","v":10187.2986461898},{"$f":"'Colombia-IO-Data'!$AN35*Calculations!AU29","v":5066.1630263832949},{"$f":"AV29*'Colombia-IO-Data'!$AO35","v":0},{"$f":"AW29*'Colombia-IO-Data'!$AO35","v":2576.6334763068753},{"$f":"AX29*'Colombia-IO-Data'!$AO35","v":1281.3647369697564},{"$f":"(AY29*'Default-Data'!$F$19/pv_dollar_index)/'Colombia-IO-Data'!$AP35","v":0},{"$f":"(AZ29*'Default-Data'!$F$19/pv_dollar_index)/'Colombia-IO-Data'!$AP35","v":0.56387401265773418},{"$f":"(BA29*'Default-Data'!$F$19/pv_dollar_index)/'Colombia-IO-Data'!$AP35","v":0.28041562083128274},null,"DOM_C60T63: Transport and storage",0,0,null,972231.39632463327,1502387.0403640834,{"$f":"BG29*'Mexico-IO-Data'!AQ35","v":0},{"$f":"BJ29*'Mexico-IO-Data'!$AQ35","v":710599.15744938725},{"$f":"BK29*'Mexico-IO-Data'!$AQ35","v":1098087.3165395292},{"$f":"BG29*'Mexico-IO-Data'!AR35","v":0},{"$f":"BJ29*'Mexico-IO-Data'!$AR35","v":229248.66567514671},{"$f":"BK29*'Mexico-IO-Data'!$AR35","v":354257.45931794116},{"$f":"(Calculations!BO29*'Default-Data'!$F$19/pv_dollar_index)/'Mexico-IO-Data'!$AS35","v":0},{"$f":"(Calculations!BP29*'Default-Data'!$F$19/pv_dollar_index)/'Mexico-IO-Data'!$AS35","v":30.774044295580097},{"$f":"(Calculations!BQ29*'Default-Data'!$F$19/pv_dollar_index)/'Mexico-IO-Data'!$AS35","v":47.55506302723002},10749.63083565725,21598.693310209237,{"$f":"BH29*'Mexico-IO-Data'!AQ35","v":0},{"$f":"BU29*'Mexico-IO-Data'!$AQ35","v":7856.8524361451482},{"$f":"BV29*'Mexico-IO-Data'!$AQ35","v":15786.378969310323},{"$f":"BH29*'Mexico-IO-Data'!AR35","v":0},{"$f":"BU29*'Mexico-IO-Data'!$AR35","v":2534.7242795191328},{"$f":"BV29*'Mexico-IO-Data'!$AR35","v":5092.8941817868035},{"$f":"(BZ29*'Default-Data'!$F$19/pv_dollar_index)/'Mexico-IO-Data'!$AS35","v":0},{"$f":"(CA29*'Default-Data'!$F$19/pv_dollar_index)/'Mexico-IO-Data'!$AS35","v":0.3402581080473468},{"$f":"(CB29*'Default-Data'!$F$19/pv_dollar_index)/'Mexico-IO-Data'!$AS35","v":0.68366352616027704},null,"TTL_C60T63: Transport and storage",0,0,null,349662.75678267673,539152.36174372095,{"$f":"CH29*'Philippines-IO-Data'!AN35","v":0},{"$f":"'Philippines-IO-Data'!$AN35*Calculations!CK29","v":154559.33677142434},{"$f":"'Philippines-IO-Data'!$AN35*Calculations!CL29","v":238318.29336530878},{"$f":"CH29*'Philippines-IO-Data'!AO35","v":0},{"$f":"'Philippines-IO-Data'!$AO35*Calculations!CK29","v":57516.280366622763},{"$f":"'Philippines-IO-Data'!$AO35*Calculations!CL29","v":88685.562865513028},{"$f":"(CP29*'Default-Data'!$F$19/pv_dollar_index)/'Philippines-IO-Data'!$AP35","v":0},{"$f":"(CQ29*'Default-Data'!$F$19/pv_dollar_index)/'Philippines-IO-Data'!$AP35","v":17.487270358770758},{"$f":"(CR29*'Default-Data'!$F$19/pv_dollar_index)/'Philippines-IO-Data'!$AP35","v":26.963990106164275},2954.077841177389,5733.8401319315844,{"$f":"CI29*'Philippines-IO-Data'!AN35","v":0},{"$f":"'Philippines-IO-Data'!$AN35*Calculations!CV29","v":1305.7733574620106},{"$f":"'Philippines-IO-Data'!$AN35*Calculations!CW29","v":2534.4950548894935},{"$f":"'Philippines-IO-Data'!AO35*Calculations!CI29","v":0},{"$f":"'Philippines-IO-Data'!$AO35*Calculations!CV29","v":485.91840578431345},{"$f":"'Philippines-IO-Data'!$AO35*Calculations!CW29","v":943.1635203017679},{"$f":"(DA29*'Default-Data'!$F$19/pv_dollar_index)/'Philippines-IO-Data'!$AP35","v":0},{"$f":"(DB29*'Default-Data'!$F$19/pv_dollar_index)/'Philippines-IO-Data'!$AP35","v":0.14773880508420845},{"$f":"(DC29*'Default-Data'!$F$19/pv_dollar_index)/'Philippines-IO-Data'!$AP35","v":0.28675977248379642},null,"DOM_C60T63: Transport and storage",0,0,null,2564122.5337077463,2272949.981007373,{"$f":"DI29*'SouthAfrica-IO-Data'!AR35","v":0},{"$f":"DL29*'SouthAfrica-IO-Data'!$AR35","v":1355929.4594325947},{"$f":"DM29*'SouthAfrica-IO-Data'!$AR35","v":1201954.9762343492},{"$f":"DI29*'SouthAfrica-IO-Data'!AS35","v":0},{"$f":"DL29*'SouthAfrica-IO-Data'!$AS35","v":472338.63911295729},{"$f":"DM29*'SouthAfrica-IO-Data'!$AS35","v":418701.55840345332},{"$f":"(DQ29*'Default-Data'!$F$19/pv_dollar_index)/'SouthAfrica-IO-Data'!$AT35","v":0},{"$f":"(DR29*'Default-Data'!$F$19/pv_dollar_index)/'SouthAfrica-IO-Data'!$AT35","v":25.974957586671906},{"$f":"(DS29*'Default-Data'!$F$19/pv_dollar_index)/'SouthAfrica-IO-Data'!$AT35","v":23.02533462311613},36444.253937538437,23959.062235335121,{"$f":"DJ29*'SouthAfrica-IO-Data'!AR35","v":0},{"$f":"DW29*'SouthAfrica-IO-Data'!$AR35","v":19272.026547613899},{"$f":"DX29*'SouthAfrica-IO-Data'!$AR35","v":12669.752665171432},{"$f":"DJ29*'SouthAfrica-IO-Data'!AS35","v":0},{"$f":"DW29*'SouthAfrica-IO-Data'!$AS35","v":6713.4191451655342},{"$f":"DX29*'SouthAfrica-IO-Data'!$AS35","v":4413.5140586657726},{"$f":"(EB29*'Default-Data'!$F$19/pv_dollar_index)/'SouthAfrica-IO-Data'!$AT35","v":0},{"$f":"(EC29*'Default-Data'!$F$19/pv_dollar_index)/'SouthAfrica-IO-Data'!$AT35","v":0.36918592534523453},{"$f":"(ED29*'Default-Data'!$F$19/pv_dollar_index)/'SouthAfrica-IO-Data'!$AT35","v":0.24270900364475131},null,"TRADETRANS",{"$f":"AF27","v":1611998.2125102775},0,null,5094784.898729316,824281.37951752916,{"$f":"EJ29*'Zambia-IO-Data'!BO33","v":364426.71753765445},{"$f":"EM29*'Zambia-IO-Data'!$BO33","v":1151785.233255957},{"$f":"EN29*'Zambia-IO-Data'!$BO33","v":186346.45816213495},{"$f":"EJ29*'Zambia-IO-Data'!$BN33","v":134166.64635897425},{"$f":"EM29*'Zambia-IO-Data'!$BN33","v":424039.05815652414},{"$f":"EN29*'Zambia-IO-Data'!$BN33","v":68604.957181558086},{"$f":"(ER29*'Default-Data'!$F$19/pv_dollar_index)/'Zambia-IO-Data'!$BP33","v":326.53850783285168},{"$f":"(ES29*'Default-Data'!$F$19/pv_dollar_index)/'Zambia-IO-Data'!$BP33","v":1032.0380293534665},{"$f":"(ET29*'Default-Data'!$F$19/pv_dollar_index)/'Zambia-IO-Data'!$BP33","v":166.97264898508215},51973.687703316507,7191.6959089469383,{"$f":"EK29*'Zambia-IO-Data'!BO33","v":0},{"$f":"EX29*'Zambia-IO-Data'!$BO33","v":11749.76514307148},{"$f":"EY29*'Zambia-IO-Data'!$BO33","v":1625.8368733208515},{"$f":"EK29*'Zambia-IO-Data'!BN33","v":0},{"$f":"EX29*'Zambia-IO-Data'!$BN33","v":4325.7711602569016},{"$f":"EY29*'Zambia-IO-Data'!$BN33","v":598.56500723682655},{"$f":"(FC29*'Default-Data'!$F$19/pv_dollar_index)/'Zambia-IO-Data'!$BP33","v":0},{"$f":"(FD29*'Default-Data'!$F$19/pv_dollar_index)/'Zambia-IO-Data'!$BP33","v":10.528181915774551},{"$f":"(FE29*'Default-Data'!$F$19/pv_dollar_index)/'Zambia-IO-Data'!$BP33","v":1.4568041283607718},null,"TTL_C60T63: Transport and storage",0,0,null,829062.49306272191,968777.9560496643,{"$f":"FK29*CustomRegion1!C31","v":0},{"$f":"FN29*CustomRegion1!$C31","v":366465.53453068889},{"$f":"FO29*CustomRegion1!$C31","v":428223.12488623156},{"$f":"FK29*CustomRegion1!D31","v":0},{"$f":"FN29*CustomRegion1!$D31","v":136373.09054931407},{"$f":"FO29*CustomRegion1!$D31","v":159354.98834892441},{"$f":"(FS29*'Default-Data'!$C$58/pv_dollar_index)/CustomRegion1!$E31","v":0},{"$f":"(FT29*'Default-Data'!$C$58/pv_dollar_index)/CustomRegion1!$E31","v":41.636176928569654},{"$f":"(FU29*'Default-Data'!$C$58/pv_dollar_index)/CustomRegion1!$E31","v":48.652798456207933},7589.5362829485503,10373.030328231333,{"$f":"FL29*CustomRegion1!C31","v":0},{"$f":"FY29*CustomRegion1!$C31","v":3354.7573241386294},{"$f":"FZ29*CustomRegion1!$C31","v":4585.1285466978115},{"$f":"FL29*CustomRegion1!D31","v":0},{"$f":"FY29*CustomRegion1!$D31","v":1248.408325551334},{"$f":"FZ29*CustomRegion1!$D31","v":1706.2672790766958},{"$f":"(GD29*'Default-Data'!$C$58/pv_dollar_index)/CustomRegion1!$E31","v":0},{"$f":"(GE29*'Default-Data'!$C$58/pv_dollar_index)/CustomRegion1!$E31","v":0.38115254052234404},{"$f":"(GF29*'Default-Data'!$C$58/pv_dollar_index)/CustomRegion1!$E31","v":0.52094182241456699},null,"C50T52 Wholesale and retail trade; repairs",{"$f":"AF27","v":1611998.2125102775},0,null,4873887.5127214277,5024299.5654223803,{"$f":"GL29*CustomRegion2!$C$13","v":993283.41203582077},{"$f":"GO29*CustomRegion2!C$13","v":3003199.1232644459},{"$f":"GP29*CustomRegion2!D$13","v":555972.1591582034},{"$f":"GL29*CustomRegion2!D35","v":288036.74518710125},{"$f":"GO29*CustomRegion2!$D35","v":870881.04979110579},{"$f":"GP29*CustomRegion2!$D35","v":897757.13300302625},{"$f":"(GT29*'Default-Data'!$C$59/pv_dollar_index)/CustomRegion2!$E35","v":57.577188142577342},{"$f":"(GU29*'Default-Data'!$C$59/pv_dollar_index)/CustomRegion2!$E35","v":174.08501828840011},{"$f":"(GV29*'Default-Data'!$C$59/pv_dollar_index)/CustomRegion2!$E35","v":179.45742068318179},1371310.9770982871,1403942.2782635731,{"$f":"GM29*CustomRegion2!C35","v":0},{"$f":"GZ29*CustomRegion2!$C35","v":1006079.4892014264},{"$f":"HA29*CustomRegion2!$C35","v":1030019.8523696823},{"$f":"GM29*CustomRegion2!D35","v":0},{"$f":"GZ29*CustomRegion2!$D35","v":245030.0176621417},{"$f":"HA29*CustomRegion2!$D35","v":250860.67783653014},{"$f":"(HE29*'Default-Data'!$C$59/pv_dollar_index)/CustomRegion2!$E35","v":0},{"$f":"(HF29*'Default-Data'!$C$59/pv_dollar_index)/CustomRegion2!$E35","v":48.980345956721237},{"$f":"(HG29*'Default-Data'!$C$59/pv_dollar_index)/CustomRegion2!$E35","v":50.14586745168927},null,"TRADETRANS",1611998.2125102775,0,null,5094784.898729316,824281.37951752916,{"$f":"HM29*CustomRegion3!D34","v":364426.71753765445},{"$f":"HP29*CustomRegion3!$D34","v":1151785.233255957},{"$f":"HQ29*CustomRegion3!$D34","v":186346.45816213495},{"$f":"HM29*CustomRegion3!E34","v":134166.64635897425},{"$f":"HP29*CustomRegion3!$E34","v":424039.05815652414},{"$f":"HQ29*CustomRegion3!$E34","v":68604.957181558086},{"$f":"(HU29*'Default-Data'!$C$60/pv_dollar_index)/CustomRegion3!$F34","v":327.86103152245335},{"$f":"(HV29*'Default-Data'!$C$60/pv_dollar_index)/CustomRegion3!$F34","v":1036.217918431322},{"$f":"(HW29*'Default-Data'!$C$60/pv_dollar_index)/CustomRegion3!$F34","v":167.64891006456057},51973.687703316507,7191.6959089469383,{"$f":"HN29*CustomRegion3!D34","v":0},{"$f":"IA29*CustomRegion3!$D34","v":11749.76514307148},{"$f":"IB29*CustomRegion3!$D34","v":1625.8368733208515},{"$f":"HN29*CustomRegion3!E34","v":0},{"$f":"IA29*CustomRegion3!$E34","v":4325.7711602569016},{"$f":"IB29*CustomRegion3!$E34","v":598.56500723682655},{"$f":"(IF29*'Default-Data'!$C$60/pv_dollar_index)/CustomRegion3!$F34","v":0},{"$f":"(IG29*'Default-Data'!$C$60/pv_dollar_index)/CustomRegion3!$F34","v":10.570822430317403},{"$f":"(IH29*'Default-Data'!$C$60/pv_dollar_index)/CustomRegion3!$F34","v":1.4627043757271647}]
[null,115,"Utilities",0,39981727.832085572,0,19350459.438982874,18703072.775635667,0,8655997.3360142205,8366403.3214134425,0,2090724.2786051466,2020777.2564699282,0,75.811498549001271,73.275158094463237,6391663.1962759346,1590443.1825661361,21739127.95546253,3475317.1412606044,864766.22513426666,7103609.3926285654,1135615.7219185301,282576.26027488115,257.58311541741074,41.178423446580688,10.246463373976635,null,29,"TTL_C64: Post and telecommunications",0,0,null,682219.18407306192,733476.99354830082,{"$f":"AF30*'Colombia-IO-Data'!AN36","v":0},{"$f":"AI30*'Colombia-IO-Data'!$AN36","v":372989.82848334761},{"$f":"AJ30*'Colombia-IO-Data'!$AN36","v":401014.02072381967},{"$f":"AK30*'Colombia-IO-Data'!$AO36","v":0},{"$f":"AL30*'Colombia-IO-Data'!$AO36","v":90536.672665697741},{"$f":"AM30*'Colombia-IO-Data'!$AO36","v":97339.048832128465},{"$f":"(AN30*'Default-Data'!$F$19/pv_dollar_index)/'Colombia-IO-Data'!$AP36","v":0},{"$f":"(AO30*'Default-Data'!$F$19/pv_dollar_index)/'Colombia-IO-Data'!$AP36","v":19.813169928172826},{"$f":"(AP30*'Default-Data'!$F$19/pv_dollar_index)/'Colombia-IO-Data'!$AP36","v":21.301811281257461},2793.8731723428523,7030.0099201144039,{"$f":"'Colombia-IO-Data'!$AN36*Calculations!AG30","v":0},{"$f":"'Colombia-IO-Data'!$AN36*Calculations!AT30","v":1527.4948281794213},{"$f":"'Colombia-IO-Data'!$AN36*Calculations!AU30","v":3843.5187041865552},{"$f":"AV30*'Colombia-IO-Data'!$AO36","v":0},{"$f":"AW30*'Colombia-IO-Data'!$AO36","v":370.77230716923083},{"$f":"AX30*'Colombia-IO-Data'!$AO36","v":932.94607046090175},{"$f":"(AY30*'Default-Data'!$F$19/pv_dollar_index)/'Colombia-IO-Data'!$AP36","v":0},{"$f":"(AZ30*'Default-Data'!$F$19/pv_dollar_index)/'Colombia-IO-Data'!$AP36","v":8.1140321488619924E-2},{"$f":"(BA30*'Default-Data'!$F$19/pv_dollar_index)/'Colombia-IO-Data'!$AP36","v":0.20416720079957543},null,"DOM_C64: Post and telecommunications",0,0,null,503348.42829928821,585570.21910492354,{"$f":"BG30*'Mexico-IO-Data'!AQ36","v":0},{"$f":"BJ30*'Mexico-IO-Data'!$AQ36","v":307113.43329570268},{"$f":"BK30*'Mexico-IO-Data'!$AQ36","v":357280.30587611202},{"$f":"BG30*'Mexico-IO-Data'!AR36","v":0},{"$f":"BJ30*'Mexico-IO-Data'!$AR36","v":78509.740680629227},{"$f":"BK30*'Mexico-IO-Data'!$AR36","v":91334.279531894179},{"$f":"(Calculations!BO30*'Default-Data'!$F$19/pv_dollar_index)/'Mexico-IO-Data'!$AS36","v":0},{"$f":"(Calculations!BP30*'Default-Data'!$F$19/pv_dollar_index)/'Mexico-IO-Data'!$AS36","v":6.2196256291550824},{"$f":"(Calculations!BQ30*'Default-Data'!$F$19/pv_dollar_index)/'Mexico-IO-Data'!$AS36","v":7.2355993138204635},6961.2484412626472,8418.3044942761917,{"$f":"BH30*'Mexico-IO-Data'!AQ36","v":0},{"$f":"BU30*'Mexico-IO-Data'!$AQ36","v":4247.3419774926779},{"$f":"BV30*'Mexico-IO-Data'!$AQ36","v":5136.3513828805599},{"$f":"BH30*'Mexico-IO-Data'!AR36","v":0},{"$f":"BU30*'Mexico-IO-Data'!$AR36","v":1085.7803048746257},{"$f":"BV30*'Mexico-IO-Data'!$AR36","v":1313.0445346761283},{"$f":"(BZ30*'Default-Data'!$F$19/pv_dollar_index)/'Mexico-IO-Data'!$AS36","v":0},{"$f":"(CA30*'Default-Data'!$F$19/pv_dollar_index)/'Mexico-IO-Data'!$AS36","v":8.6016677080889281E-2},{"$f":"(CB30*'Default-Data'!$F$19/pv_dollar_index)/'Mexico-IO-Data'!$AS36","v":0.10402079244300215},null,"TTL_C64: Post and telecommunications",0,0,null,247412.6647121188,477303.82695460424,{"$f":"CH30*'Philippines-IO-Data'!AN36","v":0},{"$f":"'Philippines-IO-Data'!$AN36*Calculations!CK30","v":149857.3161004486},{"$f":"'Philippines-IO-Data'!$AN36*Calculations!CL30","v":289101.89603720146},{"$f":"CH30*'Philippines-IO-Data'!AO36","v":0},{"$f":"'Philippines-IO-Data'!$AO36*Calculations!CK30","v":26573.143624320834},{"$f":"'Philippines-IO-Data'!$AO36*Calculations!CL30","v":51264.405404875841},{"$f":"(CP30*'Default-Data'!$F$19/pv_dollar_index)/'Philippines-IO-Data'!$AP36","v":0},{"$f":"(CQ30*'Default-Data'!$F$19/pv_dollar_index)/'Philippines-IO-Data'!$AP36","v":6.5770191578735302},{"$f":"(CR30*'Default-Data'!$F$19/pv_dollar_index)/'Philippines-IO-Data'!$AP36","v":12.688260795620533},1545.1509287424858,5076.086153579221,{"$f":"CI30*'Philippines-IO-Data'!AN36","v":0},{"$f":"'Philippines-IO-Data'!$AN36*Calculations!CV30","v":935.894576863682},{"$f":"'Philippines-IO-Data'!$AN36*Calculations!CW30","v":3074.5744085297488},{"$f":"'Philippines-IO-Data'!AO36*Calculations!CI30","v":0},{"$f":"'Philippines-IO-Data'!$AO36*Calculations!CV30","v":165.95560133715185},{"$f":"'Philippines-IO-Data'!$AO36*Calculations!CW30","v":545.19265036588831},{"$f":"(DA30*'Default-Data'!$F$19/pv_dollar_index)/'Philippines-IO-Data'!$AP36","v":0},{"$f":"(DB30*'Default-Data'!$F$19/pv_dollar_index)/'Philippines-IO-Data'!$AP36","v":4.1075048732732183E-2},{"$f":"(DC30*'Default-Data'!$F$19/pv_dollar_index)/'Philippines-IO-Data'!$AP36","v":0.1349385890085836},null,"DOM_C64: Post and telecommunications",0,0,null,1407796.3607486151,1294656.9271900719,{"$f":"DI30*'SouthAfrica-IO-Data'!AR36","v":0},{"$f":"DL30*'SouthAfrica-IO-Data'!$AR36","v":571679.52962346305},{"$f":"DM30*'SouthAfrica-IO-Data'!$AR36","v":525735.74118788366},{"$f":"DI30*'SouthAfrica-IO-Data'!AS36","v":0},{"$f":"DL30*'SouthAfrica-IO-Data'!$AS36","v":187078.92203956659},{"$f":"DM30*'SouthAfrica-IO-Data'!$AS36","v":172044.07477014753},{"$f":"(DQ30*'Default-Data'!$F$19/pv_dollar_index)/'SouthAfrica-IO-Data'!$AT36","v":0},{"$f":"(DR30*'Default-Data'!$F$19/pv_dollar_index)/'SouthAfrica-IO-Data'!$AT36","v":10.287888101773419},{"$f":"(DS30*'Default-Data'!$F$19/pv_dollar_index)/'SouthAfrica-IO-Data'!$AT36","v":9.4610882429292289},20684.39883769396,13646.919708372618,{"$f":"DJ30*'SouthAfrica-IO-Data'!AR36","v":0},{"$f":"DW30*'SouthAfrica-IO-Data'!$AR36","v":8399.5439452542432},{"$f":"DX30*'SouthAfrica-IO-Data'!$AR36","v":5541.7565048562728},{"$f":"DJ30*'SouthAfrica-IO-Data'!AS36","v":0},{"$f":"DW30*'SouthAfrica-IO-Data'!$AS36","v":2748.7036800795031},{"$f":"DX30*'SouthAfrica-IO-Data'!$AS36","v":1813.5087569378613},{"$f":"(EB30*'Default-Data'!$F$19/pv_dollar_index)/'SouthAfrica-IO-Data'!$AT36","v":0},{"$f":"(EC30*'Default-Data'!$F$19/pv_dollar_index)/'SouthAfrica-IO-Data'!$AT36","v":0.15115735956405579},{"$f":"(ED30*'Default-Data'!$F$19/pv_dollar_index)/'SouthAfrica-IO-Data'!$AT36","v":9.9728900292770539E-2},null,"TOURISM",0,0,null,22018.493036063603,2763.0937271512194,{"$f":"EJ30*'Zambia-IO-Data'!BO34","v":0},{"$f":"EM30*'Zambia-IO-Data'!$BO34","v":9623.8204828189737},{"$f":"EN30*'Zambia-IO-Data'!$BO34","v":1207.6901885952352},{"$f":"EJ30*'Zambia-IO-Data'!$BN34","v":0},{"$f":"EM30*'Zambia-IO-Data'!$BN34","v":6744.7525948811726},{"$f":"EN30*'Zambia-IO-Data'!$BN34","v":846.39686992106851},{"$f":"(ER30*'Default-Data'!$F$19/pv_dollar_index)/'Zambia-IO-Data'!$BP34","v":0},{"$f":"(ES30*'Default-Data'!$F$19/pv_dollar_index)/'Zambia-IO-Data'!$BP34","v":19.120763766413805},{"$f":"(ET30*'Default-Data'!$F$19/pv_dollar_index)/'Zambia-IO-Data'!$BP34","v":2.3994585975881817},175.11277645620251,24.111140988856619,{"$f":"EK30*'Zambia-IO-Data'!BO34","v":0},{"$f":"EX30*'Zambia-IO-Data'!$BO34","v":76.538113762020942},{"$f":"EY30*'Zambia-IO-Data'!$BO34","v":10.538472916045578},{"$f":"EK30*'Zambia-IO-Data'!BN34","v":0},{"$f":"EX30*'Zambia-IO-Data'!$BN34","v":53.640925901029355},{"$f":"EY30*'Zambia-IO-Data'!$BN34","v":7.3857770594826251},{"$f":"(FC30*'Default-Data'!$F$19/pv_dollar_index)/'Zambia-IO-Data'!$BP34","v":0},{"$f":"(FD30*'Default-Data'!$F$19/pv_dollar_index)/'Zambia-IO-Data'!$BP34","v":0.15206717487957905},{"$f":"(FE30*'Default-Data'!$F$19/pv_dollar_index)/'Zambia-IO-Data'!$BP34","v":2.0938010164070917E-2},null,"TTL_C64: Post and telecommunications",0,0,null,341362.11327863007,621767.11759377562,{"$f":"FK30*CustomRegion1!C32","v":0},{"$f":"FN30*CustomRegion1!$C32","v":206762.29397486904},{"$f":"FO30*CustomRegion1!$C32","v":376602.99884216581},{"$f":"FK30*CustomRegion1!D32","v":0},{"$f":"FN30*CustomRegion1!$D32","v":36663.703026720585},{"$f":"FO30*CustomRegion1!$D32","v":66780.360398786346},{"$f":"(FS30*'Default-Data'!$C$58/pv_dollar_index)/CustomRegion1!$E32","v":0},{"$f":"(FT30*'Default-Data'!$C$58/pv_dollar_index)/CustomRegion1!$E32","v":9.1124137088539499},{"$f":"(FU30*'Default-Data'!$C$58/pv_dollar_index)/CustomRegion1!$E32","v":16.597621662400279},2449.6369476055488,6657.4689562471513,{"$f":"FL30*CustomRegion1!C32","v":0},{"$f":"FY30*CustomRegion1!$C32","v":1483.7398029555343},{"$f":"FZ30*CustomRegion1!$C32","v":4032.4145530953697},{"$f":"FL30*CustomRegion1!D32","v":0},{"$f":"FY30*CustomRegion1!$D32","v":263.10114121242344},{"$f":"FZ30*CustomRegion1!$D32","v":715.03970483750038},{"$f":"(GD30*'Default-Data'!$C$58/pv_dollar_index)/CustomRegion1!$E32","v":0},{"$f":"(GE30*'Default-Data'!$C$58/pv_dollar_index)/CustomRegion1!$E32","v":6.5391279332911709E-2},{"$f":"(GF30*'Default-Data'!$C$58/pv_dollar_index)/CustomRegion1!$E32","v":0.17771629897796842},null,"C55 Hotels and restaurants",0,0,null,262838.53131868754,1248281.7333303217,{"$f":"GL30*CustomRegion2!$C$13","v":0},{"$f":"GO30*CustomRegion2!C$13","v":161956.2299614184},{"$f":"GP30*CustomRegion2!D$13","v":138130.675028542},{"$f":"GL30*CustomRegion2!D36","v":0},{"$f":"GO30*CustomRegion2!$D36","v":52224.643946381271},{"$f":"GP30*CustomRegion2!$D36","v":248027.06338708222},{"$f":"(GT30*'Default-Data'!$C$59/pv_dollar_index)/CustomRegion2!$E36","v":0},{"$f":"(GU30*'Default-Data'!$C$59/pv_dollar_index)/CustomRegion2!$E36","v":35.614277121568158},{"$f":"(GV30*'Default-Data'!$C$59/pv_dollar_index)/CustomRegion2!$E36","v":169.14054173706572},63106.849711072122,348807.92392784875,{"$f":"GM30*CustomRegion2!C36","v":0},{"$f":"GZ30*CustomRegion2!$C36","v":45382.436664622808},{"$f":"HA30*CustomRegion2!$C36","v":250840.49652690603},{"$f":"GM30*CustomRegion2!D36","v":0},{"$f":"GZ30*CustomRegion2!$D36","v":12539.001569532102},{"$f":"HA30*CustomRegion2!$D36","v":69306.313429066024},{"$f":"(HE30*'Default-Data'!$C$59/pv_dollar_index)/CustomRegion2!$E36","v":0},{"$f":"(HF30*'Default-Data'!$C$59/pv_dollar_index)/CustomRegion2!$E36","v":8.5508955730475158},{"$f":"(HG30*'Default-Data'!$C$59/pv_dollar_index)/CustomRegion2!$E36","v":47.263017346201558},null,"TOURISM",0,0,null,22018.493036063603,2763.0937271512194,{"$f":"HM30*CustomRegion3!D35","v":0},{"$f":"HP30*CustomRegion3!$D35","v":9623.8204828189737},{"$f":"HQ30*CustomRegion3!$D35","v":1207.6901885952352},{"$f":"HM30*CustomRegion3!E35","v":0},{"$f":"HP30*CustomRegion3!$E35","v":6744.7525948811726},{"$f":"HQ30*CustomRegion3!$E35","v":846.39686992106851},{"$f":"(HU30*'Default-Data'!$C$60/pv_dollar_index)/CustomRegion3!$F35","v":0},{"$f":"(HV30*'Default-Data'!$C$60/pv_dollar_index)/CustomRegion3!$F35","v":19.198205361930942},{"$f":"(HW30*'Default-Data'!$C$60/pv_dollar_index)/CustomRegion3!$F35","v":2.4091767189166258},175.11277645620251,24.111140988856619,{"$f":"HN30*CustomRegion3!D35","v":0},{"$f":"IA30*CustomRegion3!$D35","v":76.538113762020942},{"$f":"IB30*CustomRegion3!$D35","v":10.538472916045578},{"$f":"HN30*CustomRegion3!E35","v":0},{"$f":"IA30*CustomRegion3!$E35","v":53.640925901029355},{"$f":"IB30*CustomRegion3!$E35","v":7.3857770594826251},{"$f":"(IF30*'Default-Data'!$C$60/pv_dollar_index)/CustomRegion3!$F35","v":0},{"$f":"(IG30*'Default-Data'!$C$60/pv_dollar_index)/CustomRegion3!$F35","v":0.15268306683830629},{"$f":"(IH30*'Default-Data'!$C$60/pv_dollar_index)/CustomRegion3!$F35","v":2.1022811845314831E-2}]
[null,116,"Construction",222363778.30382094,0,0,25400288.081451148,6377561.8806496263,66208959.850708835,12774885.400406903,3207547.1702542938,29860853.625884071,5618603.3575041499,1410731.6610111964,2815.7474023332138,529.80962992026969,133.02580226434813,508810.5354781347,542325.31392842159,0,151498.66840750031,161477.71552455644,0,68327.301501690672,72827.944102935551,0,6.4429645623075444,6.8673554009639615,null,30,"TTL_C65T67: Financial intermediation",0,0,null,1385865.3917459871,1092032.2568260792,{"$f":"AF31*'Colombia-IO-Data'!AN37","v":0},{"$f":"AI31*'Colombia-IO-Data'!$AN37","v":923374.72820037464},{"$f":"AJ31*'Colombia-IO-Data'!$AN37","v":727599.51604134019},{"$f":"AK31*'Colombia-IO-Data'!$AO37","v":0},{"$f":"AL31*'Colombia-IO-Data'!$AO37","v":328723.32156636723},{"$f":"AM31*'Colombia-IO-Data'!$AO37","v":259026.9393113477},{"$f":"(AN31*'Default-Data'!$F$19/pv_dollar_index)/'Colombia-IO-Data'!$AP37","v":0},{"$f":"(AO31*'Default-Data'!$F$19/pv_dollar_index)/'Colombia-IO-Data'!$AP37","v":45.194320309567445},{"$f":"(AP31*'Default-Data'!$F$19/pv_dollar_index)/'Colombia-IO-Data'!$AP37","v":35.612156777505838},14865.963161697109,10466.58268234655,{"$f":"'Colombia-IO-Data'!$AN37*Calculations!AG31","v":0},{"$f":"'Colombia-IO-Data'!$AN37*Calculations!AT31","v":9904.8975287383619},{"$f":"'Colombia-IO-Data'!$AN37*Calculations!AU31","v":6973.6772395496091},{"$f":"AV31*'Colombia-IO-Data'!$AO37","v":0},{"$f":"AW31*'Colombia-IO-Data'!$AO37","v":3526.1640978274886},{"$f":"AX31*'Colombia-IO-Data'!$AO37","v":2482.6435852152358},{"$f":"(AY31*'Default-Data'!$F$19/pv_dollar_index)/'Colombia-IO-Data'!$AP37","v":0},{"$f":"(AZ31*'Default-Data'!$F$19/pv_dollar_index)/'Colombia-IO-Data'!$AP37","v":0.48479246602264003},{"$f":"(BA31*'Default-Data'!$F$19/pv_dollar_index)/'Colombia-IO-Data'!$AP37","v":0.34132470087631889},null,"DOM_C65T67: Financial intermediation",0,0,null,1089834.4125449709,913898.75916686095,{"$f":"BG31*'Mexico-IO-Data'!AQ37","v":0},{"$f":"BJ31*'Mexico-IO-Data'!$AQ37","v":740861.65582752367},{"$f":"BK31*'Mexico-IO-Data'!$AQ37","v":621261.85426094825},{"$f":"BG31*'Mexico-IO-Data'!AR37","v":0},{"$f":"BJ31*'Mexico-IO-Data'!$AR37","v":201207.93123400584},{"$f":"BK31*'Mexico-IO-Data'!$AR37","v":168726.25471596699},{"$f":"(Calculations!BO31*'Default-Data'!$F$19/pv_dollar_index)/'Mexico-IO-Data'!$AS37","v":0},{"$f":"(Calculations!BP31*'Default-Data'!$F$19/pv_dollar_index)/'Mexico-IO-Data'!$AS37","v":14.93185020465174},{"$f":"(Calculations!BQ31*'Default-Data'!$F$19/pv_dollar_index)/'Mexico-IO-Data'!$AS37","v":12.521351149327527},20918.302658620436,13138.438022629853,{"$f":"BH31*'Mexico-IO-Data'!AQ37","v":0},{"$f":"BU31*'Mexico-IO-Data'!$AQ37","v":14220.11285969311},{"$f":"BV31*'Mexico-IO-Data'!$AQ37","v":8931.4164027016304},{"$f":"BH31*'Mexico-IO-Data'!AR37","v":0},{"$f":"BU31*'Mexico-IO-Data'!$AR37","v":3861.9888988815951},{"$f":"BV31*'Mexico-IO-Data'!$AR37","v":2425.6510014272203},{"$f":"(BZ31*'Default-Data'!$F$19/pv_dollar_index)/'Mexico-IO-Data'!$AS37","v":0},{"$f":"(CA31*'Default-Data'!$F$19/pv_dollar_index)/'Mexico-IO-Data'!$AS37","v":0.28660221978556749},{"$f":"(CB31*'Default-Data'!$F$19/pv_dollar_index)/'Mexico-IO-Data'!$AS37","v":0.18001008797188675},null,"TTL_C65T67: Financial intermediation",0,0,null,900086.52166541829,1504130.7972477742,{"$f":"CH31*'Philippines-IO-Data'!AN37","v":0},{"$f":"'Philippines-IO-Data'!$AN37*Calculations!CK31","v":574069.93738662743},{"$f":"'Philippines-IO-Data'!$AN37*Calculations!CL31","v":959325.85569623788},{"$f":"CH31*'Philippines-IO-Data'!AO37","v":0},{"$f":"'Philippines-IO-Data'!$AO37*Calculations!CK31","v":125771.18018612478},{"$f":"'Philippines-IO-Data'!$AO37*Calculations!CL31","v":210175.68974826875},{"$f":"(CP31*'Default-Data'!$F$19/pv_dollar_index)/'Philippines-IO-Data'!$AP37","v":0},{"$f":"(CQ31*'Default-Data'!$F$19/pv_dollar_index)/'Philippines-IO-Data'!$AP37","v":31.129153301810309},{"$f":"(CR31*'Default-Data'!$F$19/pv_dollar_index)/'Philippines-IO-Data'!$AP37","v":52.01979703780632},10504.430914892586,15996.304831236284,{"$f":"CI31*'Philippines-IO-Data'!AN37","v":0},{"$f":"'Philippines-IO-Data'!$AN37*Calculations!CV31","v":6699.6648127080007},{"$f":"'Philippines-IO-Data'!$AN37*Calculations!CW31","v":10202.349987303487},{"$f":"'Philippines-IO-Data'!AO37*Calculations!CI31","v":0},{"$f":"'Philippines-IO-Data'!$AO37*Calculations!CV31","v":1467.8085290124552},{"$f":"'Philippines-IO-Data'!$AO37*Calculations!CW31","v":2235.2008266039279},{"$f":"(DA31*'Default-Data'!$F$19/pv_dollar_index)/'Philippines-IO-Data'!$AP37","v":0},{"$f":"(DB31*'Default-Data'!$F$19/pv_dollar_index)/'Philippines-IO-Data'!$AP37","v":0.36329178631953518},{"$f":"(DC31*'Default-Data'!$F$19/pv_dollar_index)/'Philippines-IO-Data'!$AP37","v":0.55322617700428423},null,"DOM_C65T67: Financial intermediation",0,0,null,3042281.0737630352,3677404.1502233827,{"$f":"DI31*'SouthAfrica-IO-Data'!AR37","v":0},{"$f":"DL31*'SouthAfrica-IO-Data'!$AR37","v":1770373.9226623755},{"$f":"DM31*'SouthAfrica-IO-Data'!$AR37","v":2139966.7725615827},{"$f":"DI31*'SouthAfrica-IO-Data'!AS37","v":0},{"$f":"DL31*'SouthAfrica-IO-Data'!$AS37","v":889455.92027160653},{"$f":"DM31*'SouthAfrica-IO-Data'!$AS37","v":1075143.556213812},{"$f":"(DQ31*'Default-Data'!$F$19/pv_dollar_index)/'SouthAfrica-IO-Data'!$AT37","v":0},{"$f":"(DR31*'Default-Data'!$F$19/pv_dollar_index)/'SouthAfrica-IO-Data'!$AT37","v":54.237115420035735},{"$f":"(DS31*'Default-Data'!$F$19/pv_dollar_index)/'SouthAfrica-IO-Data'!$AT37","v":65.559949428038749},34389.991636502731,38763.349671528005,{"$f":"DJ31*'SouthAfrica-IO-Data'!AR37","v":0},{"$f":"DW31*'SouthAfrica-IO-Data'!$AR37","v":20012.33381060827},{"$f":"DX31*'SouthAfrica-IO-Data'!$AR37","v":22557.292291416208},{"$f":"DJ31*'SouthAfrica-IO-Data'!AS37","v":0},{"$f":"DW31*'SouthAfrica-IO-Data'!$AS37","v":10054.42328224566},{"$f":"DX31*'SouthAfrica-IO-Data'!$AS37","v":11333.039261968124},{"$f":"(EB31*'Default-Data'!$F$19/pv_dollar_index)/'SouthAfrica-IO-Data'!$AT37","v":0},{"$f":"(EC31*'Default-Data'!$F$19/pv_dollar_index)/'SouthAfrica-IO-Data'!$AT37","v":0.61309717953704912},{"$f":"(ED31*'Default-Data'!$F$19/pv_dollar_index)/'SouthAfrica-IO-Data'!$AT37","v":0.69106444119621369},null,"OTHER",{"$f":"AF39","v":5111922.2594920518},0,null,6039141.4704415863,176627.66277940944,{"$f":"EJ31*'Zambia-IO-Data'!BO35","v":1870920.1872122961},{"$f":"EM31*'Zambia-IO-Data'!$BO35","v":2210274.5536671793},{"$f":"EN31*'Zambia-IO-Data'!$BO35","v":64644.226406322334},{"$f":"EJ31*'Zambia-IO-Data'!$BN35","v":1496969.5606182232},{"$f":"EM31*'Zambia-IO-Data'!$BN35","v":1768495.3906980064},{"$f":"EN31*'Zambia-IO-Data'!$BN35","v":51723.4459606569},{"$f":"(ER31*'Default-Data'!$F$19/pv_dollar_index)/'Zambia-IO-Data'!$BP35","v":3414.0898216854748},{"$f":"(ES31*'Default-Data'!$F$19/pv_dollar_index)/'Zambia-IO-Data'!$BP35","v":4033.3499570867898},{"$f":"(ET31*'Default-Data'!$F$19/pv_dollar_index)/'Zambia-IO-Data'!$BP35","v":117.96398206243374},5586.710244528178,1549.3521118631697,{"$f":"EK31*'Zambia-IO-Data'!BO35","v":0},{"$f":"EX31*'Zambia-IO-Data'!$BO35","v":2044.6885625432237},{"$f":"EY31*'Zambia-IO-Data'!$BO35","v":567.04973120480122},{"$f":"EK31*'Zambia-IO-Data'!BN35","v":0},{"$f":"EX31*'Zambia-IO-Data'!$BN35","v":1636.0059397467596},{"$f":"EY31*'Zambia-IO-Data'!$BN35","v":453.71052852614918},{"$f":"(FC31*'Default-Data'!$F$19/pv_dollar_index)/'Zambia-IO-Data'!$BP35","v":0},{"$f":"(FD31*'Default-Data'!$F$19/pv_dollar_index)/'Zambia-IO-Data'!$BP35","v":3.7311855725374179},{"$f":"(FE31*'Default-Data'!$F$19/pv_dollar_index)/'Zambia-IO-Data'!$BP35","v":1.0347628556942394},null,"TTL_C65T67: Financial intermediation",0,0,null,1419695.6248493993,2089268.7035270266,{"$f":"FK31*CustomRegion1!C33","v":0},{"$f":"FN31*CustomRegion1!$C33","v":905473.59486882586},{"$f":"FO31*CustomRegion1!$C33","v":1332523.4018596252},{"$f":"FK31*CustomRegion1!D33","v":0},{"$f":"FN31*CustomRegion1!$D33","v":198377.36700245828},{"$f":"FO31*CustomRegion1!$D33","v":291938.36841632676},{"$f":"(FS31*'Default-Data'!$C$58/pv_dollar_index)/CustomRegion1!$E33","v":0},{"$f":"(FT31*'Default-Data'!$C$58/pv_dollar_index)/CustomRegion1!$E33","v":49.30480255314361},{"$f":"(FU31*'Default-Data'!$C$58/pv_dollar_index)/CustomRegion1!$E33","v":72.558497120669614},16029.465431587545,22370.500371293929,{"$f":"FL31*CustomRegion1!C33","v":0},{"$f":"FY31*CustomRegion1!$C33","v":10223.499624931797},{"$f":"FZ31*CustomRegion1!$C33","v":14267.77475091441},{"$f":"FL31*CustomRegion1!D33","v":0},{"$f":"FY31*CustomRegion1!$D33","v":2239.8344343088197},{"$f":"FZ31*CustomRegion1!$D33","v":3125.8819739305495},{"$f":"(GD31*'Default-Data'!$C$58/pv_dollar_index)/CustomRegion1!$E33","v":0},{"$f":"(GE31*'Default-Data'!$C$58/pv_dollar_index)/CustomRegion1!$E33","v":0.55668948632612891},{"$f":"(GF31*'Default-Data'!$C$58/pv_dollar_index)/CustomRegion1!$E33","v":0.77690815166009675},null,"C60T63 Transport and storage",0,0,null,1673269.7183257877,3078036.5130833364,{"$f":"GL31*CustomRegion2!$C$13","v":0},{"$f":"GO31*CustomRegion2!C$13","v":1031037.7779431059},{"$f":"GP31*CustomRegion2!D$13","v":340605.20951498346},{"$f":"GL31*CustomRegion2!D37","v":0},{"$f":"GO31*CustomRegion2!$D37","v":352538.91154415294},{"$f":"GP31*CustomRegion2!$D37","v":648507.30885233392},{"$f":"(GT31*'Default-Data'!$C$59/pv_dollar_index)/CustomRegion2!$E37","v":0},{"$f":"(GU31*'Default-Data'!$C$59/pv_dollar_index)/CustomRegion2!$E37","v":47.324367397404323},{"$f":"(GV31*'Default-Data'!$C$59/pv_dollar_index)/CustomRegion2!$E37","v":87.054782150440957},450994.43351305468,860097.12169568753,{"$f":"GM31*CustomRegion2!C37","v":0},{"$f":"GZ31*CustomRegion2!$C37","v":279816.26429707115},{"$f":"HA31*CustomRegion2!$C37","v":533641.09541406156},{"$f":"GM31*CustomRegion2!D37","v":0},{"$f":"GZ31*CustomRegion2!$D37","v":95019.401213001576},{"$f":"HA31*CustomRegion2!$D37","v":181212.68781953756},{"$f":"(HE31*'Default-Data'!$C$59/pv_dollar_index)/CustomRegion2!$E37","v":0},{"$f":"(HF31*'Default-Data'!$C$59/pv_dollar_index)/CustomRegion2!$E37","v":12.755281489890995},{"$f":"(HG31*'Default-Data'!$C$59/pv_dollar_index)/CustomRegion2!$E37","v":24.325756773572145},null,"OTHER",5111922.2594920518,0,null,6039141.4704415863,176627.66277940944,{"$f":"HM31*CustomRegion3!D36","v":1870920.1872122961},{"$f":"HP31*CustomRegion3!$D36","v":2210274.5536671793},{"$f":"HQ31*CustomRegion3!$D36","v":64644.226406322334},{"$f":"HM31*CustomRegion3!E36","v":1496969.5606182232},{"$f":"HP31*CustomRegion3!$E36","v":1768495.3906980064},{"$f":"HQ31*CustomRegion3!$E36","v":51723.4459606569},{"$f":"(HU31*'Default-Data'!$C$60/pv_dollar_index)/CustomRegion3!$F36","v":3427.917332252523},{"$f":"(HV31*'Default-Data'!$C$60/pv_dollar_index)/CustomRegion3!$F36","v":4049.6855522424817},{"$f":"(HW31*'Default-Data'!$C$60/pv_dollar_index)/CustomRegion3!$F36","v":118.44175162729368},5586.710244528178,1549.3521118631697,{"$f":"HN31*CustomRegion3!D36","v":0},{"$f":"IA31*CustomRegion3!$D36","v":2044.6885625432237},{"$f":"IB31*CustomRegion3!$D36","v":567.04973120480122},{"$f":"HN31*CustomRegion3!E36","v":0},{"$f":"IA31*CustomRegion3!$E36","v":1636.0059397467596},{"$f":"IB31*CustomRegion3!$E36","v":453.71052852614918},{"$f":"(IF31*'Default-Data'!$C$60/pv_dollar_index)/CustomRegion3!$F36","v":0},{"$f":"(IG31*'Default-Data'!$C$60/pv_dollar_index)/CustomRegion3!$F36","v":3.7462973623925566},{"$f":"(IH31*'Default-Data'!$C$60/pv_dollar_index)/CustomRegion3!$F36","v":1.0389537806753628}]
[null,117,"Manufacturing",104828638.34322989,955000,0,134725341.8822569,127218899.80588114,27442843.121925026,50902115.436954796,43669365.466765225,23546499.205561161,14595978.610080188,11218954.408489402,1834.3199154993385,1137.0562569381482,873.97924094427083,9959094.002404185,10818245.446459999,221291.6191155492,2406642.342607033,2537978.8738190061,154080.59914407987,1490982.2286441214,1471788.5499938983,12.003190331380745,116.15053141367056,114.65530502386039,null,31,"TTL_C70: Real estate activities",0,0,null,809656.8043348327,1477113.9038315979,{"$f":"AF32*'Colombia-IO-Data'!AN38","v":0},{"$f":"AI32*'Colombia-IO-Data'!$AN38","v":718068.6437724831},{"$f":"AJ32*'Colombia-IO-Data'!$AN38","v":1310023.1751812648},{"$f":"AK32*'Colombia-IO-Data'!$AO38","v":0},{"$f":"AL32*'Colombia-IO-Data'!$AO38","v":23658.351255698137},{"$f":"AM32*'Colombia-IO-Data'!$AO38","v":43161.595622274974},{"$f":"(AN32*'Default-Data'!$F$19/pv_dollar_index)/'Colombia-IO-Data'!$AP38","v":0},{"$f":"(AO32*'Default-Data'!$F$19/pv_dollar_index)/'Colombia-IO-Data'!$AP38","v":4.8628666946944357},{"$f":"(AP32*'Default-Data'!$F$19/pv_dollar_index)/'Colombia-IO-Data'!$AP38","v":8.8716700319883071},4690.8952635776113,14157.397557679811,{"$f":"'Colombia-IO-Data'!$AN38*Calculations!AG32","v":0},{"$f":"'Colombia-IO-Data'!$AN38*Calculations!AT32","v":4160.2624494253596},{"$f":"'Colombia-IO-Data'!$AN38*Calculations!AU32","v":12555.916542865087},{"$f":"AV32*'Colombia-IO-Data'!$AO38","v":0},{"$f":"AW32*'Colombia-IO-Data'!$AO38","v":137.06899917994716},{"$f":"AX32*'Colombia-IO-Data'!$AO38","v":413.68229414352891},{"$f":"(AY32*'Default-Data'!$F$19/pv_dollar_index)/'Colombia-IO-Data'!$AP38","v":0},{"$f":"(AZ32*'Default-Data'!$F$19/pv_dollar_index)/'Colombia-IO-Data'!$AP38","v":2.8173910505565142E-2},{"$f":"(BA32*'Default-Data'!$F$19/pv_dollar_index)/'Colombia-IO-Data'!$AP38","v":8.5030517496050714E-2},null,"DOM_C70: Real estate activities",0,0,null,694914.2353860687,1633114.1710507825,{"$f":"BG32*'Mexico-IO-Data'!AQ38","v":0},{"$f":"BJ32*'Mexico-IO-Data'!$AQ38","v":642229.7233084715},{"$f":"BK32*'Mexico-IO-Data'!$AQ38","v":1509300.5853051695},{"$f":"BG32*'Mexico-IO-Data'!AR38","v":0},{"$f":"BJ32*'Mexico-IO-Data'!$AR38","v":9201.1350467435277},{"$f":"BK32*'Mexico-IO-Data'!$AR38","v":21623.53750925924},{"$f":"(Calculations!BO32*'Default-Data'!$F$19/pv_dollar_index)/'Mexico-IO-Data'!$AS38","v":0},{"$f":"(Calculations!BP32*'Default-Data'!$F$19/pv_dollar_index)/'Mexico-IO-Data'!$AS38","v":3.8561522515701432},{"$f":"(Calculations!BQ32*'Default-Data'!$F$19/pv_dollar_index)/'Mexico-IO-Data'!$AS38","v":9.0623224666996567},3806.1935662754572,23478.059363807126,{"$f":"BH32*'Mexico-IO-Data'!AQ38","v":0},{"$f":"BU32*'Mexico-IO-Data'!$AQ38","v":3517.629250420413},{"$f":"BV32*'Mexico-IO-Data'!$AQ38","v":21698.084168128698},{"$f":"BH32*'Mexico-IO-Data'!AR38","v":0},{"$f":"BU32*'Mexico-IO-Data'!$AR38","v":50.396580231070246},{"$f":"BV32*'Mexico-IO-Data'!$AR38","v":310.86540445071671},{"$f":"(BZ32*'Default-Data'!$F$19/pv_dollar_index)/'Mexico-IO-Data'!$AS38","v":0},{"$f":"(CA32*'Default-Data'!$F$19/pv_dollar_index)/'Mexico-IO-Data'!$AS38","v":2.112096880897936E-2},{"$f":"(CB32*'Default-Data'!$F$19/pv_dollar_index)/'Mexico-IO-Data'!$AS38","v":0.13028222314073687},null,"TTL_C70: Real estate activities",0,0,null,687174.76367122715,1619836.5100622727,{"$f":"CH32*'Philippines-IO-Data'!AN38","v":0},{"$f":"'Philippines-IO-Data'!$AN38*Calculations!CK32","v":557622.02559085377},{"$f":"'Philippines-IO-Data'!$AN38*Calculations!CL32","v":1314449.4874073972},{"$f":"CH32*'Philippines-IO-Data'!AO38","v":0},{"$f":"'Philippines-IO-Data'!$AO38*Calculations!CK32","v":14291.574588465097},{"$f":"'Philippines-IO-Data'!$AO38*Calculations!CL32","v":33688.685220329025},{"$f":"(CP32*'Default-Data'!$F$19/pv_dollar_index)/'Philippines-IO-Data'!$AP38","v":0},{"$f":"(CQ32*'Default-Data'!$F$19/pv_dollar_index)/'Philippines-IO-Data'!$AP38","v":3.5372540484252113},{"$f":"(CR32*'Default-Data'!$F$19/pv_dollar_index)/'Philippines-IO-Data'!$AP38","v":8.3381601827073197},2014.7328919068941,17226.825379238409,{"$f":"CI32*'Philippines-IO-Data'!AN38","v":0},{"$f":"'Philippines-IO-Data'!$AN38*Calculations!CV32","v":1634.8962383419982},{"$f":"'Philippines-IO-Data'!$AN38*Calculations!CW32","v":13979.06001546178},{"$f":"'Philippines-IO-Data'!AO38*Calculations!CI32","v":0},{"$f":"'Philippines-IO-Data'!$AO38*Calculations!CV32","v":41.901575731173772},{"$f":"'Philippines-IO-Data'!$AO38*Calculations!CW32","v":358.27634081690576},{"$f":"(DA32*'Default-Data'!$F$19/pv_dollar_index)/'Philippines-IO-Data'!$AP38","v":0},{"$f":"(DB32*'Default-Data'!$F$19/pv_dollar_index)/'Philippines-IO-Data'!$AP38","v":1.0370901923579322E-2},{"$f":"(DC32*'Default-Data'!$F$19/pv_dollar_index)/'Philippines-IO-Data'!$AP38","v":8.8675633966353543E-2},null,"DOM_C70: Real estate activities",0,0,null,1279965.5060124495,2451427.4975194796,{"$f":"DI32*'SouthAfrica-IO-Data'!AR38","v":0},{"$f":"DL32*'SouthAfrica-IO-Data'!$AR38","v":752663.34181883046},{"$f":"DM32*'SouthAfrica-IO-Data'!$AR38","v":1441522.919049381},{"$f":"DI32*'SouthAfrica-IO-Data'!AS38","v":0},{"$f":"DL32*'SouthAfrica-IO-Data'!$AS38","v":46255.360211849933},{"$f":"DM32*'SouthAfrica-IO-Data'!$AS38","v":88589.623234654951},{"$f":"(DQ32*'Default-Data'!$F$19/pv_dollar_index)/'SouthAfrica-IO-Data'!$AT38","v":0},{"$f":"(DR32*'Default-Data'!$F$19/pv_dollar_index)/'SouthAfrica-IO-Data'!$AT38","v":2.8205527147869822},{"$f":"(DS32*'Default-Data'!$F$19/pv_dollar_index)/'SouthAfrica-IO-Data'!$AT38","v":5.402005328075437},16508.716344212145,25840.385608683806,{"$f":"DJ32*'SouthAfrica-IO-Data'!AR38","v":0},{"$f":"DW32*'SouthAfrica-IO-Data'!$AR38","v":9707.6878669049092},{"$f":"DX32*'SouthAfrica-IO-Data'!$AR38","v":15195.027440005088},{"$f":"DJ32*'SouthAfrica-IO-Data'!AS38","v":0},{"$f":"DW32*'SouthAfrica-IO-Data'!$AS38","v":596.5915624677466},{"$f":"DX32*'SouthAfrica-IO-Data'!$AS38","v":933.81918397662423},{"$f":"(EB32*'Default-Data'!$F$19/pv_dollar_index)/'SouthAfrica-IO-Data'!$AT38","v":0},{"$f":"(EC32*'Default-Data'!$F$19/pv_dollar_index)/'SouthAfrica-IO-Data'!$AT38","v":3.6378874652160269E-2},{"$f":"(ED32*'Default-Data'!$F$19/pv_dollar_index)/'SouthAfrica-IO-Data'!$AT38","v":5.6942292145649956E-2},null,"FIRE",{"$f":"AF35","v":5809002.5676046042},0,null,14219121.347152684,657052.81286183838,{"$f":"EJ32*'Zambia-IO-Data'!BO36","v":1210181.747341604},{"$f":"EM32*'Zambia-IO-Data'!$BO36","v":2962250.5614858591},{"$f":"EN32*'Zambia-IO-Data'!$BO36","v":136882.93504968175},{"$f":"EJ32*'Zambia-IO-Data'!$BN36","v":288371.29519800708},{"$f":"EM32*'Zambia-IO-Data'!$BN36","v":705867.55501244043},{"$f":"EN32*'Zambia-IO-Data'!$BN36","v":32617.505062765696},{"$f":"(ER32*'Default-Data'!$F$19/pv_dollar_index)/'Zambia-IO-Data'!$BP36","v":279.63424798730307},{"$f":"(ES32*'Default-Data'!$F$19/pv_dollar_index)/'Zambia-IO-Data'!$BP36","v":684.48124418558348},{"$f":"(ET32*'Default-Data'!$F$19/pv_dollar_index)/'Zambia-IO-Data'!$BP36","v":31.629262868156548},175935.0105442082,5750.5016061671195,{"$f":"EK32*'Zambia-IO-Data'!BO36","v":0},{"$f":"EX32*'Zambia-IO-Data'!$BO36","v":36652.30579623417},{"$f":"EY32*'Zambia-IO-Data'!$BO36","v":1197.994320169787},{"$f":"EK32*'Zambia-IO-Data'!BN36","v":0},{"$f":"EX32*'Zambia-IO-Data'!$BN36","v":8733.789711893558},{"$f":"EY32*'Zambia-IO-Data'!$BN36","v":285.46718251709075},{"$f":"(FC32*'Default-Data'!$F$19/pv_dollar_index)/'Zambia-IO-Data'!$BP36","v":0},{"$f":"(FD32*'Default-Data'!$F$19/pv_dollar_index)/'Zambia-IO-Data'!$BP36","v":8.4691741474741544},{"$f":"(FE32*'Default-Data'!$F$19/pv_dollar_index)/'Zambia-IO-Data'!$BP36","v":0.27681812384762122},null,"TTL_C70: Real estate activities",0,0,null,819353.85245545453,1929808.4397477205,{"$f":"FK32*CustomRegion1!C34","v":0},{"$f":"FN32*CustomRegion1!$C34","v":664881.45234110358},{"$f":"FO32*CustomRegion1!$C34","v":1565982.5535870546},{"$f":"FK32*CustomRegion1!D34","v":0},{"$f":"FN32*CustomRegion1!$D34","v":17040.58023631938},{"$f":"FO32*CustomRegion1!$D34","v":40135.352338549223},{"$f":"(FS32*'Default-Data'!$C$58/pv_dollar_index)/CustomRegion1!$E34","v":0},{"$f":"(FT32*'Default-Data'!$C$58/pv_dollar_index)/CustomRegion1!$E34","v":4.2352736939608482},{"$f":"(FU32*'Default-Data'!$C$58/pv_dollar_index)/CustomRegion1!$E34","v":9.9752590346080066},3462.2618454953863,20663.105872893808,{"$f":"FL32*CustomRegion1!C34","v":0},{"$f":"FY32*CustomRegion1!$C34","v":2809.5232326295964},{"$f":"FZ32*CustomRegion1!$C34","v":16767.500148410589},{"$f":"FL32*CustomRegion1!D34","v":0},{"$f":"FY32*CustomRegion1!$D34","v":72.00668014253209},{"$f":"FZ32*CustomRegion1!$D34","v":429.74267162276169},{"$f":"(GD32*'Default-Data'!$C$58/pv_dollar_index)/CustomRegion1!$E34","v":0},{"$f":"(GE32*'Default-Data'!$C$58/pv_dollar_index)/CustomRegion1!$E34","v":1.7896573588916102E-2},{"$f":"(GF32*'Default-Data'!$C$58/pv_dollar_index)/CustomRegion1!$E34","v":0.10680844238021434},null,"C64 Post and telecommunications",0,0,null,896008.34762853116,1179765.8588746996,{"$f":"GL32*CustomRegion2!$C$13","v":0},{"$f":"GO32*CustomRegion2!C$13","v":552103.73177716602},{"$f":"GP32*CustomRegion2!D$13","v":130548.93788056956},{"$f":"GL32*CustomRegion2!D38","v":0},{"$f":"GO32*CustomRegion2!$D38","v":150744.69341368994},{"$f":"GP32*CustomRegion2!$D38","v":198484.13596447412},{"$f":"(GT32*'Default-Data'!$C$59/pv_dollar_index)/CustomRegion2!$E38","v":0},{"$f":"(GU32*'Default-Data'!$C$59/pv_dollar_index)/CustomRegion2!$E38","v":11.942155845717116},{"$f":"(GV32*'Default-Data'!$C$59/pv_dollar_index)/CustomRegion2!$E38","v":15.724125545735417},158005.84408023983,329662.50243617472,{"$f":"GM32*CustomRegion2!C38","v":0},{"$f":"GZ32*CustomRegion2!$C38","v":97136.383369288014},{"$f":"HA32*CustomRegion2!$C38","v":202664.80271993813},{"$f":"GM32*CustomRegion2!D38","v":0},{"$f":"GZ32*CustomRegion2!$D38","v":26582.947119284858},{"$f":"HA32*CustomRegion2!$D38","v":55462.511025995002},{"$f":"(HE32*'Default-Data'!$C$59/pv_dollar_index)/CustomRegion2!$E38","v":0},{"$f":"(HF32*'Default-Data'!$C$59/pv_dollar_index)/CustomRegion2!$E38","v":2.1059295033739911},{"$f":"(HG32*'Default-Data'!$C$59/pv_dollar_index)/CustomRegion2!$E38","v":4.3937994450628226},null,"FIRE",5809002.5676046042,0,null,14219121.347152684,657052.81286183745,{"$f":"HM32*CustomRegion3!D37","v":1210181.747341604},{"$f":"HP32*CustomRegion3!$D37","v":2962250.5614858591},{"$f":"HQ32*CustomRegion3!$D37","v":136882.93504968155},{"$f":"HM32*CustomRegion3!E37","v":288371.29519800708},{"$f":"HP32*CustomRegion3!$E37","v":705867.55501244043},{"$f":"HQ32*CustomRegion3!$E37","v":32617.505062765649},{"$f":"(HU32*'Default-Data'!$C$60/pv_dollar_index)/CustomRegion3!$F37","v":280.7668032863445},{"$f":"(HV32*'Default-Data'!$C$60/pv_dollar_index)/CustomRegion3!$F37","v":687.25348280004687},{"$f":"(HW32*'Default-Data'!$C$60/pv_dollar_index)/CustomRegion3!$F37","v":31.757365521976396},175935.0105442082,5750.5016061671195,{"$f":"HN32*CustomRegion3!D37","v":0},{"$f":"IA32*CustomRegion3!$D37","v":36652.30579623417},{"$f":"IB32*CustomRegion3!$D37","v":1197.994320169787},{"$f":"HN32*CustomRegion3!E37","v":0},{"$f":"IA32*CustomRegion3!$E37","v":8733.789711893558},{"$f":"IB32*CustomRegion3!$E37","v":285.46718251709075},{"$f":"(IF32*'Default-Data'!$C$60/pv_dollar_index)/CustomRegion3!$F37","v":0},{"$f":"(IG32*'Default-Data'!$C$60/pv_dollar_index)/CustomRegion3!$F37","v":8.5034754111007107},{"$f":"(IH32*'Default-Data'!$C$60/pv_dollar_index)/CustomRegion3!$F37","v":0.27793927347536124}]
[null,118,"Sales",0,1493970.0886627771,0,90970902.075662762,64166322.625921369,0,69271440.856093839,48860608.406824626,0,13948733.988474069,9838739.0352923609,0,1452.8511673174005,1024.7685205099754,6091800.9635642944,5456477.2107223263,877358.27487148449,3577509.3656909447,3204405.140908754,421294.19449505204,1717865.9729835496,1538706.9585372121,43.88052440902122,178.92688943715544,160.26631540306195,null,32,"TTL_C71: Renting of machinery and equipment",0,0,null,159944.74162654375,26237.956880758109,{"$f":"AF33*'Colombia-IO-Data'!AN39","v":0},{"$f":"AI33*'Colombia-IO-Data'!$AN39","v":115424.38248306239},{"$f":"AJ33*'Colombia-IO-Data'!$AN39","v":18934.664183271441},{"$f":"AK33*'Colombia-IO-Data'!$AO39","v":0},{"$f":"AL33*'Colombia-IO-Data'!$AO39","v":44072.334657132509},{"$f":"AM33*'Colombia-IO-Data'!$AO39","v":7229.7970199495321},{"$f":"(AN33*'Default-Data'!$F$19/pv_dollar_index)/'Colombia-IO-Data'!$AP39","v":0},{"$f":"(AO33*'Default-Data'!$F$19/pv_dollar_index)/'Colombia-IO-Data'!$AP39","v":9.6448503129484564},{"$f":"(AP33*'Default-Data'!$F$19/pv_dollar_index)/'Colombia-IO-Data'!$AP39","v":1.5821787203444455},1294.7453138330861,251.47768611384117,{"$f":"'Colombia-IO-Data'!$AN39*Calculations!AG33","v":0},{"$f":"'Colombia-IO-Data'!$AN39*Calculations!AT33","v":934.35505789220326},{"$f":"'Colombia-IO-Data'!$AN39*Calculations!AU33","v":181.47928048634498},{"$f":"AV33*'Colombia-IO-Data'!$AO39","v":0},{"$f":"AW33*'Colombia-IO-Data'!$AO39","v":356.76351836712075},{"$f":"AX33*'Colombia-IO-Data'!$AO39","v":69.293986338661909},{"$f":"(AY33*'Default-Data'!$F$19/pv_dollar_index)/'Colombia-IO-Data'!$AP39","v":0},{"$f":"(AZ33*'Default-Data'!$F$19/pv_dollar_index)/'Colombia-IO-Data'!$AP39","v":7.8074618885996525E-2},{"$f":"(BA33*'Default-Data'!$F$19/pv_dollar_index)/'Colombia-IO-Data'!$AP39","v":1.5164391245058065E-2},null,"DOM_C71: Renting of machinery and equipment",0,0,null,203205.0728121502,41668.784916219971,{"$f":"BG33*'Mexico-IO-Data'!AQ39","v":0},{"$f":"BJ33*'Mexico-IO-Data'!$AQ39","v":167176.53352318559},{"$f":"BK33*'Mexico-IO-Data'!$AQ39","v":34280.851959126572},{"$f":"BG33*'Mexico-IO-Data'!AR39","v":0},{"$f":"BJ33*'Mexico-IO-Data'!$AR39","v":7608.3968200746713},{"$f":"BK33*'Mexico-IO-Data'!$AR39","v":1560.1611035863234},{"$f":"(Calculations!BO33*'Default-Data'!$F$19/pv_dollar_index)/'Mexico-IO-Data'!$AS39","v":0},{"$f":"(Calculations!BP33*'Default-Data'!$F$19/pv_dollar_index)/'Mexico-IO-Data'!$AS39","v":3.1886431814685503},{"$f":"(Calculations!BQ33*'Default-Data'!$F$19/pv_dollar_index)/'Mexico-IO-Data'!$AS39","v":0.65385615164248945},4122.6203110058532,599.04091411518493,{"$f":"BH33*'Mexico-IO-Data'!AQ39","v":0},{"$f":"BU33*'Mexico-IO-Data'!$AQ39","v":3391.6740516776422},{"$f":"BV33*'Mexico-IO-Data'!$AQ39","v":492.83013496870223},{"$f":"BH33*'Mexico-IO-Data'!AR39","v":0},{"$f":"BU33*'Mexico-IO-Data'!$AR39","v":154.35899719702613},{"$f":"BV33*'Mexico-IO-Data'!$AR39","v":22.42926774895},{"$f":"(BZ33*'Default-Data'!$F$19/pv_dollar_index)/'Mexico-IO-Data'!$AS39","v":0},{"$f":"(CA33*'Default-Data'!$F$19/pv_dollar_index)/'Mexico-IO-Data'!$AS39","v":6.4691126862884876E-2},{"$f":"(CB33*'Default-Data'!$F$19/pv_dollar_index)/'Mexico-IO-Data'!$AS39","v":9.4000002056044141E-3},null,"TTL_C71: Renting of machinery and equipment",0,0,null,54555.615575190946,31066.066576835925,{"$f":"CH33*'Philippines-IO-Data'!AN39","v":0},{"$f":"'Philippines-IO-Data'!$AN39*Calculations!CK33","v":27581.706647448817},{"$f":"'Philippines-IO-Data'!$AN39*Calculations!CL33","v":15706.084991955548},{"$f":"CH33*'Philippines-IO-Data'!AO39","v":0},{"$f":"'Philippines-IO-Data'!$AO39*Calculations!CK33","v":7539.7691811715022},{"$f":"'Philippines-IO-Data'!$AO39*Calculations!CL33","v":4293.4346700464257},{"$f":"(CP33*'Default-Data'!$F$19/pv_dollar_index)/'Philippines-IO-Data'!$AP39","v":0},{"$f":"(CQ33*'Default-Data'!$F$19/pv_dollar_index)/'Philippines-IO-Data'!$AP39","v":1.8661400040424012},{"$f":"(CR33*'Default-Data'!$F$19/pv_dollar_index)/'Philippines-IO-Data'!$AP39","v":1.0626519194412956},796.11419488307149,330.38501158266479,{"$f":"CI33*'Philippines-IO-Data'!AN39","v":0},{"$f":"'Philippines-IO-Data'!$AN39*Calculations!CV33","v":402.4918049155001},{"$f":"'Philippines-IO-Data'!$AN39*Calculations!CW33","v":167.03289613931085},{"$f":"'Philippines-IO-Data'!AO39*Calculations!CI33","v":0},{"$f":"'Philippines-IO-Data'!$AO39*Calculations!CV33","v":110.02565378443238},{"$f":"'Philippines-IO-Data'!$AO39*Calculations!CW33","v":45.660317494149126},{"$f":"(DA33*'Default-Data'!$F$19/pv_dollar_index)/'Philippines-IO-Data'!$AP39","v":0},{"$f":"(DB33*'Default-Data'!$F$19/pv_dollar_index)/'Philippines-IO-Data'!$AP39","v":2.7232037090841831E-2},{"$f":"(DC33*'Default-Data'!$F$19/pv_dollar_index)/'Philippines-IO-Data'!$AP39","v":1.1301214006112238E-2},null,"DOM_C71: Renting of machinery and equipment",0,0,null,195261.8188213089,87269.360686759697,{"$f":"DI33*'SouthAfrica-IO-Data'!AR39","v":0},{"$f":"DL33*'SouthAfrica-IO-Data'!$AR39","v":83275.85620493535},{"$f":"DM33*'SouthAfrica-IO-Data'!$AR39","v":37218.903191196456},{"$f":"DI33*'SouthAfrica-IO-Data'!AS39","v":0},{"$f":"DL33*'SouthAfrica-IO-Data'!$AS39","v":27543.499782039715},{"$f":"DM33*'SouthAfrica-IO-Data'!$AS39","v":12310.15685280606},{"$f":"(DQ33*'Default-Data'!$F$19/pv_dollar_index)/'SouthAfrica-IO-Data'!$AT39","v":0},{"$f":"(DR33*'Default-Data'!$F$19/pv_dollar_index)/'SouthAfrica-IO-Data'!$AT39","v":1.6795435756884298},{"$f":"(DS33*'Default-Data'!$F$19/pv_dollar_index)/'SouthAfrica-IO-Data'!$AT39","v":0.7506469773797283},4618.3801146456126,919.90235658652546,{"$f":"DJ33*'SouthAfrica-IO-Data'!AR39","v":0},{"$f":"DW33*'SouthAfrica-IO-Data'!$AR39","v":1969.660841267292},{"$f":"DX33*'SouthAfrica-IO-Data'!$AR39","v":392.32276351878721},{"$f":"DJ33*'SouthAfrica-IO-Data'!AS39","v":0},{"$f":"DW33*'SouthAfrica-IO-Data'!$AS39","v":651.46556786674751},{"$f":"DX33*'SouthAfrica-IO-Data'!$AS39","v":129.76080275748063},{"$f":"(EB33*'Default-Data'!$F$19/pv_dollar_index)/'SouthAfrica-IO-Data'!$AT39","v":0},{"$f":"(EC33*'Default-Data'!$F$19/pv_dollar_index)/'SouthAfrica-IO-Data'!$AT39","v":3.9724973875915455E-2},{"$f":"(ED33*'Default-Data'!$F$19/pv_dollar_index)/'SouthAfrica-IO-Data'!$AT39","v":7.912535602669182E-3},null,"PUBLIC",0,0,null,119627.02526001193,522470.66282470187,{"$f":"EJ33*'Zambia-IO-Data'!BO37","v":0},{"$f":"EM33*'Zambia-IO-Data'!$BO37","v":25619.255911397766},{"$f":"EN33*'Zambia-IO-Data'!$BO37","v":111892.02095438211},{"$f":"EJ33*'Zambia-IO-Data'!$BN37","v":0},{"$f":"EM33*'Zambia-IO-Data'!$BN37","v":16664.546868557838},{"$f":"EN33*'Zambia-IO-Data'!$BN37","v":72782.356906095782},{"$f":"(ER33*'Default-Data'!$F$19/pv_dollar_index)/'Zambia-IO-Data'!$BP37","v":0},{"$f":"(ES33*'Default-Data'!$F$19/pv_dollar_index)/'Zambia-IO-Data'!$BP37","v":38.006290404093107},{"$f":"(ET33*'Default-Data'!$F$19/pv_dollar_index)/'Zambia-IO-Data'!$BP37","v":165.99235578895858},1816.009877773877,4565.9279869543188,{"$f":"EK33*'Zambia-IO-Data'!BO37","v":0},{"$f":"EX33*'Zambia-IO-Data'!$BO37","v":388.91564590185556},{"$f":"EY33*'Zambia-IO-Data'!$BO37","v":977.83654919569187},{"$f":"EK33*'Zambia-IO-Data'!BN37","v":0},{"$f":"EX33*'Zambia-IO-Data'!$BN37","v":252.97780042719879},{"$f":"EY33*'Zambia-IO-Data'!$BN37","v":636.05293847003918},{"$f":"(FC33*'Default-Data'!$F$19/pv_dollar_index)/'Zambia-IO-Data'!$BP37","v":0},{"$f":"(FD33*'Default-Data'!$F$19/pv_dollar_index)/'Zambia-IO-Data'!$BP37","v":0.57695824702954512},{"$f":"(FE33*'Default-Data'!$F$19/pv_dollar_index)/'Zambia-IO-Data'!$BP37","v":1.4506252634735524},null,"TTL_C71: Renting of machinery and equipment",0,0,null,191124.42868486041,116949.55655008618,{"$f":"FK33*CustomRegion1!C35","v":0},{"$f":"FN33*CustomRegion1!$C35","v":96626.861773406374},{"$f":"FO33*CustomRegion1!$C35","v":59126.238927098995},{"$f":"FK33*CustomRegion1!D35","v":0},{"$f":"FN33*CustomRegion1!$D35","v":26414.037528016244},{"$f":"FO33*CustomRegion1!$D35","v":16162.821240880618},{"$f":"(FS33*'Default-Data'!$C$58/pv_dollar_index)/CustomRegion1!$E35","v":0},{"$f":"(FT33*'Default-Data'!$C$58/pv_dollar_index)/CustomRegion1!$E35","v":6.5649571048799533},{"$f":"(FU33*'Default-Data'!$C$58/pv_dollar_index)/CustomRegion1!$E35","v":4.0171150672319351},2698.8140964434256,1252.2181056987829,{"$f":"FL33*CustomRegion1!C35","v":0},{"$f":"FY33*CustomRegion1!$C35","v":1364.4406340078524},{"$f":"FZ33*CustomRegion1!$C35","v":633.08446043296249},{"$f":"FL33*CustomRegion1!D35","v":0},{"$f":"FY33*CustomRegion1!$D35","v":372.98516633966392},{"$f":"FZ33*CustomRegion1!$D35","v":173.06074511138164},{"$f":"(GD33*'Default-Data'!$C$58/pv_dollar_index)/CustomRegion1!$E35","v":0},{"$f":"(GE33*'Default-Data'!$C$58/pv_dollar_index)/CustomRegion1!$E35","v":9.2701905764283429E-2},{"$f":"(GF33*'Default-Data'!$C$58/pv_dollar_index)/CustomRegion1!$E35","v":4.301259763827215E-2},null,"C65T67 Finance and insurance",0,0,null,1060253.0270444343,1051382.5402010304,{"$f":"GL33*CustomRegion2!$C$13","v":0},{"$f":"GO33*CustomRegion2!C$13","v":653308.25813014898},{"$f":"GP33*CustomRegion2!D$13","v":116342.46990359595},{"$f":"GL33*CustomRegion2!D39","v":0},{"$f":"GO33*CustomRegion2!$D39","v":205284.61023011082},{"$f":"GP33*CustomRegion2!$D39","v":203567.11979362919},{"$f":"(GT33*'Default-Data'!$C$59/pv_dollar_index)/CustomRegion2!$E39","v":0},{"$f":"(GU33*'Default-Data'!$C$59/pv_dollar_index)/CustomRegion2!$E39","v":15.234384800226376},{"$f":"(GV33*'Default-Data'!$C$59/pv_dollar_index)/CustomRegion2!$E39","v":15.106928045573698},240992.49901387675,293788.29418828373,{"$f":"GM33*CustomRegion2!C39","v":0},{"$f":"GZ33*CustomRegion2!$C39","v":149085.35538390145},{"$f":"HA33*CustomRegion2!$C39","v":181746.45445777307},{"$f":"GM33*CustomRegion2!D39","v":0},{"$f":"GZ33*CustomRegion2!$D39","v":46660.608332666161},{"$f":"HA33*CustomRegion2!$D39","v":56882.851474361698},{"$f":"(HE33*'Default-Data'!$C$59/pv_dollar_index)/CustomRegion2!$E39","v":0},{"$f":"(HF33*'Default-Data'!$C$59/pv_dollar_index)/CustomRegion2!$E39","v":3.4627323575579947},{"$f":"(HG33*'Default-Data'!$C$59/pv_dollar_index)/CustomRegion2!$E39","v":4.2213356711113192},null,"PUBLIC",0,0,null,119627.02526001193,522470.66282470187,{"$f":"HM33*CustomRegion3!D38","v":0},{"$f":"HP33*CustomRegion3!$D38","v":25619.255911397766},{"$f":"HQ33*CustomRegion3!$D38","v":111892.02095438211},{"$f":"HM33*CustomRegion3!E38","v":0},{"$f":"HP33*CustomRegion3!$E38","v":16664.546868557838},{"$f":"HQ33*CustomRegion3!$E38","v":72782.356906095782},{"$f":"(HU33*'Default-Data'!$C$60/pv_dollar_index)/CustomRegion3!$F38","v":0},{"$f":"(HV33*'Default-Data'!$C$60/pv_dollar_index)/CustomRegion3!$F38","v":38.160220853971396},{"$f":"(HW33*'Default-Data'!$C$60/pv_dollar_index)/CustomRegion3!$F38","v":166.66464655270539},1816.009877773877,4565.9279869543188,{"$f":"HN33*CustomRegion3!D38","v":0},{"$f":"IA33*CustomRegion3!$D38","v":388.91564590185556},{"$f":"IB33*CustomRegion3!$D38","v":977.83654919569187},{"$f":"HN33*CustomRegion3!E38","v":0},{"$f":"IA33*CustomRegion3!$E38","v":252.97780042719879},{"$f":"IB33*CustomRegion3!$E38","v":636.05293847003918},{"$f":"(IF33*'Default-Data'!$C$60/pv_dollar_index)/CustomRegion3!$F38","v":0},{"$f":"(IG33*'Default-Data'!$C$60/pv_dollar_index)/CustomRegion3!$F38","v":0.57929500343439233},{"$f":"(IH33*'Default-Data'!$C$60/pv_dollar_index)/CustomRegion3!$F38","v":1.4565004856285471}]
[null,119,"Transportation and Warehousing",0,0,0,42847689.932082936,33524610.15950416,0,31317166.344856583,24502973.081532065,0,10103331.142489202,7904982.4716621013,0,566.0900513427024,442.91648666519433,6492974.2583720526,2850814.318908588,0,3433539.1388388439,1507534.4752697395,0,1196074.9085419783,525150.31479790108,0,67.016125358772499,29.424193315447184,null,33,"TTL_C72: Computer and related activities",0,0,null,557810.51024357032,103141.99310620141,{"$f":"AF34*'Colombia-IO-Data'!AN40","v":0},{"$f":"AI34*'Colombia-IO-Data'!$AN40","v":398187.03530328523},{"$f":"AJ34*'Colombia-IO-Data'!$AN40","v":73626.802822874233},{"$f":"AK34*'Colombia-IO-Data'!$AO40","v":0},{"$f":"AL34*'Colombia-IO-Data'!$AO40","v":153703.26103426845},{"$f":"AM34*'Colombia-IO-Data'!$AO40","v":28420.512698971554},{"$f":"(AN34*'Default-Data'!$F$19/pv_dollar_index)/'Colombia-IO-Data'!$AP40","v":0},{"$f":"(AO34*'Default-Data'!$F$19/pv_dollar_index)/'Colombia-IO-Data'!$AP40","v":14.384623875488236},{"$f":"(AP34*'Default-Data'!$F$19/pv_dollar_index)/'Colombia-IO-Data'!$AP40","v":2.6597899275025525},1556.2718118297278,988.56438728806484,{"$f":"'Colombia-IO-Data'!$AN40*Calculations!AG34","v":0},{"$f":"'Colombia-IO-Data'!$AN40*Calculations!AT34","v":1110.9279002433325},{"$f":"'Colombia-IO-Data'!$AN40*Calculations!AU34","v":705.67605907741222},{"$f":"AV34*'Colombia-IO-Data'!$AO40","v":0},{"$f":"AW34*'Colombia-IO-Data'!$AO40","v":428.8267218727899},{"$f":"AX34*'Colombia-IO-Data'!$AO40","v":272.39639138776965},{"$f":"(AY34*'Default-Data'!$F$19/pv_dollar_index)/'Colombia-IO-Data'!$AP40","v":0},{"$f":"(AZ34*'Default-Data'!$F$19/pv_dollar_index)/'Colombia-IO-Data'!$AP40","v":4.0132597450378137E-2},{"$f":"(BA34*'Default-Data'!$F$19/pv_dollar_index)/'Colombia-IO-Data'!$AP40","v":2.5492755383242992E-2},null,"DOM_C72: Computer and related activities",0,0,null,48544.113769711636,11503.395777060075,{"$f":"BG34*'Mexico-IO-Data'!AQ40","v":0},{"$f":"BJ34*'Mexico-IO-Data'!$AQ40","v":34401.328436853932},{"$f":"BK34*'Mexico-IO-Data'!$AQ40","v":8152.0099047038993},{"$f":"BG34*'Mexico-IO-Data'!AR40","v":0},{"$f":"BJ34*'Mexico-IO-Data'!$AR40","v":20278.404420764855},{"$f":"BK34*'Mexico-IO-Data'!$AR40","v":4805.330526497085},{"$f":"(Calculations!BO34*'Default-Data'!$F$19/pv_dollar_index)/'Mexico-IO-Data'!$AS40","v":0},{"$f":"(Calculations!BP34*'Default-Data'!$F$19/pv_dollar_index)/'Mexico-IO-Data'!$AS40","v":1.6064768875854853},{"$f":"(Calculations!BQ34*'Default-Data'!$F$19/pv_dollar_index)/'Mexico-IO-Data'!$AS40","v":0.38068342399374},151.80097844934346,165.37570595288554,{"$f":"BH34*'Mexico-IO-Data'!AQ40","v":0},{"$f":"BU34*'Mexico-IO-Data'!$AQ40","v":107.57545892062272},{"$f":"BV34*'Mexico-IO-Data'!$AQ40","v":117.19534118905783},{"$f":"BH34*'Mexico-IO-Data'!AR40","v":0},{"$f":"BU34*'Mexico-IO-Data'!$AR40","v":63.412047175619556},{"$f":"BV34*'Mexico-IO-Data'!$AR40","v":69.0826381668235},{"$f":"(BZ34*'Default-Data'!$F$19/pv_dollar_index)/'Mexico-IO-Data'!$AS40","v":0},{"$f":"(CA34*'Default-Data'!$F$19/pv_dollar_index)/'Mexico-IO-Data'!$AS40","v":5.0235702014996587E-3},{"$f":"(CB34*'Default-Data'!$F$19/pv_dollar_index)/'Mexico-IO-Data'!$AS40","v":5.4728004849726227E-3},null,"TTL_C72: Computer and related activities",0,0,null,188353.72750174796,106583.58334938518,{"$f":"CH34*'Philippines-IO-Data'!AN40","v":0},{"$f":"'Philippines-IO-Data'!$AN40*Calculations!CK34","v":94114.489803526754},{"$f":"'Philippines-IO-Data'!$AN40*Calculations!CL34","v":53256.496175611741},{"$f":"CH34*'Philippines-IO-Data'!AO40","v":0},{"$f":"'Philippines-IO-Data'!$AO40*Calculations!CK34","v":32824.289791471099},{"$f":"'Philippines-IO-Data'!$AO40*Calculations!CL34","v":18574.256391295286},{"$f":"(CP34*'Default-Data'!$F$19/pv_dollar_index)/'Philippines-IO-Data'!$AP40","v":0},{"$f":"(CQ34*'Default-Data'!$F$19/pv_dollar_index)/'Philippines-IO-Data'!$AP40","v":8.1242169106597633},{"$f":"(CR34*'Default-Data'!$F$19/pv_dollar_index)/'Philippines-IO-Data'!$AP40","v":4.5972445660134529},574.60850939354884,1133.5074664928839,{"$f":"CI34*'Philippines-IO-Data'!AN40","v":0},{"$f":"'Philippines-IO-Data'!$AN40*Calculations!CV34","v":287.11397122648924},{"$f":"'Philippines-IO-Data'!$AN40*Calculations!CW34","v":566.378368575031},{"$f":"'Philippines-IO-Data'!AO40*Calculations!CI34","v":0},{"$f":"'Philippines-IO-Data'!$AO40*Calculations!CV34","v":100.13667623755445},{"$f":"'Philippines-IO-Data'!$AO40*Calculations!CW34","v":197.53565832995449},{"$f":"(DA34*'Default-Data'!$F$19/pv_dollar_index)/'Philippines-IO-Data'!$AP40","v":0},{"$f":"(DB34*'Default-Data'!$F$19/pv_dollar_index)/'Philippines-IO-Data'!$AP40","v":2.4784453331196998E-2},{"$f":"(DC34*'Default-Data'!$F$19/pv_dollar_index)/'Philippines-IO-Data'!$AP40","v":4.8891310247922391E-2},null,"DOM_C72: Computer and related activities",0,0,null,26468.228883253822,13770.371456802775,{"$f":"DI34*'SouthAfrica-IO-Data'!AR40","v":0},{"$f":"DL34*'SouthAfrica-IO-Data'!$AR40","v":13224.416751513361},{"$f":"DM34*'SouthAfrica-IO-Data'!$AR40","v":6880.1404042232734},{"$f":"DI34*'SouthAfrica-IO-Data'!AS40","v":0},{"$f":"DL34*'SouthAfrica-IO-Data'!$AS40","v":9998.3185070718209},{"$f":"DM34*'SouthAfrica-IO-Data'!$AS40","v":5201.7292276369062},{"$f":"(DQ34*'Default-Data'!$F$19/pv_dollar_index)/'SouthAfrica-IO-Data'!$AT40","v":0},{"$f":"(DR34*'Default-Data'!$F$19/pv_dollar_index)/'SouthAfrica-IO-Data'!$AT40","v":0.60967603061064768},{"$f":"(DS34*'Default-Data'!$F$19/pv_dollar_index)/'SouthAfrica-IO-Data'!$AT40","v":0.31719029810602112},225.10803234071869,145.1528583972609,{"$f":"DJ34*'SouthAfrica-IO-Data'!AR40","v":0},{"$f":"DW34*'SouthAfrica-IO-Data'!$AR40","v":112.47153887468006},{"$f":"DX34*'SouthAfrica-IO-Data'!$AR40","v":72.523246666242599},{"$f":"DJ34*'SouthAfrica-IO-Data'!AS40","v":0},{"$f":"DW34*'SouthAfrica-IO-Data'!$AS40","v":85.034091845364301},{"$f":"DX34*'SouthAfrica-IO-Data'!$AS40","v":54.831190891881775},{"$f":"(EB34*'Default-Data'!$F$19/pv_dollar_index)/'SouthAfrica-IO-Data'!$AT40","v":0},{"$f":"(EC34*'Default-Data'!$F$19/pv_dollar_index)/'SouthAfrica-IO-Data'!$AT40","v":5.1851966454353462E-3},{"$f":"(ED34*'Default-Data'!$F$19/pv_dollar_index)/'SouthAfrica-IO-Data'!$AT40","v":3.343488486886332E-3},null,"LNONE",0,0,null,0,1315181.7539895228,{"$f":"EJ34*'Zambia-IO-Data'!BO38","v":0},{"$f":"EM34*'Zambia-IO-Data'!$BO38","v":0},{"$f":"EN34*'Zambia-IO-Data'!$BO38","v":0},{"$f":"EJ34*'Zambia-IO-Data'!$BN38","v":0},{"$f":"EM34*'Zambia-IO-Data'!$BN38","v":0},{"$f":"EN34*'Zambia-IO-Data'!$BN38","v":0},0,0,0,0,10645.091829816614,{"$f":"EK34*'Zambia-IO-Data'!BO38","v":0},{"$f":"EX34*'Zambia-IO-Data'!$BO38","v":0},{"$f":"EY34*'Zambia-IO-Data'!$BO38","v":0},{"$f":"EK34*'Zambia-IO-Data'!BN38","v":0},{"$f":"EX34*'Zambia-IO-Data'!$BN38","v":0},{"$f":"EY34*'Zambia-IO-Data'!$BN38","v":0},0,0,0,null,"TTL_C72: Computer and related activities",0,0,null,646621.99995235528,354660.07378872356,{"$f":"FK34*CustomRegion1!C36","v":0},{"$f":"FN34*CustomRegion1!$C36","v":323096.86900508648},{"$f":"FO34*CustomRegion1!$C36","v":177212.59006141574},{"$f":"FK34*CustomRegion1!D36","v":0},{"$f":"FN34*CustomRegion1!$D36","v":112686.42353669241},{"$f":"FO34*CustomRegion1!$D36","v":61806.395837839475},{"$f":"(FS34*'Default-Data'!$C$58/pv_dollar_index)/CustomRegion1!$E36","v":0},{"$f":"(FT34*'Default-Data'!$C$58/pv_dollar_index)/CustomRegion1!$E36","v":28.00713582829076},{"$f":"(FU34*'Default-Data'!$C$58/pv_dollar_index)/CustomRegion1!$E36","v":15.361390209742778},3788.0942682069431,3797.4642988620903,{"$f":"FL34*CustomRegion1!C36","v":0},{"$f":"FY34*CustomRegion1!$C36","v":1892.7926944087262},{"$f":"FZ34*CustomRegion1!$C36","v":1897.4746068202785},{"$f":"FL34*CustomRegion1!D36","v":0},{"$f":"FY34*CustomRegion1!$D36","v":660.14888935968327},{"$f":"FZ34*CustomRegion1!$D36","v":661.78179891586217},{"$f":"(GD34*'Default-Data'!$C$58/pv_dollar_index)/CustomRegion1!$E36","v":0},{"$f":"(GE34*'Default-Data'!$C$58/pv_dollar_index)/CustomRegion1!$E36","v":0.164073710309669},{"$f":"(GF34*'Default-Data'!$C$58/pv_dollar_index)/CustomRegion1!$E36","v":0.164479554406055},null,"C70 Real estate activities",0,0,null,937189.00334199914,3498435.0549751455,{"$f":"GL34*CustomRegion2!$C$13","v":0},{"$f":"GO34*CustomRegion2!C$13","v":577478.48833675811},{"$f":"GP34*CustomRegion2!D$13","v":387125.10388017946},{"$f":"GL34*CustomRegion2!D40","v":0},{"$f":"GO34*CustomRegion2!$D40","v":8262.2353169840808},{"$f":"GP34*CustomRegion2!$D40","v":30842.117825024041},{"$f":"(GT34*'Default-Data'!$C$59/pv_dollar_index)/CustomRegion2!$E40","v":0},{"$f":"(GU34*'Default-Data'!$C$59/pv_dollar_index)/CustomRegion2!$E40","v":3.4626638081859897},{"$f":"(GV34*'Default-Data'!$C$59/pv_dollar_index)/CustomRegion2!$E40","v":12.925785948142405},162441.73815611264,977569.27457928122,{"$f":"GM34*CustomRegion2!C40","v":0},{"$f":"GZ34*CustomRegion2!$C40","v":145494.27895975052},{"$f":"HA34*CustomRegion2!$C40","v":875579.99780468852},{"$f":"GM34*CustomRegion2!D40","v":0},{"$f":"GZ34*CustomRegion2!$D40","v":1432.0823880345331},{"$f":"HA34*CustomRegion2!$D40","v":8618.2267999574669},{"$f":"(HE34*'Default-Data'!$C$59/pv_dollar_index)/CustomRegion2!$E40","v":0},{"$f":"(HF34*'Default-Data'!$C$59/pv_dollar_index)/CustomRegion2!$E40","v":0.60017896672517357},{"$f":"(HG34*'Default-Data'!$C$59/pv_dollar_index)/CustomRegion2!$E40","v":3.6118581577563145},null,"LNONE",0,0,null,0,1315181.7539895228,{"$f":"HM34*CustomRegion3!D39","v":0},{"$f":"HP34*CustomRegion3!$D39","v":0},{"$f":"HQ34*CustomRegion3!$D39","v":0},{"$f":"HM34*CustomRegion3!E39","v":0},{"$f":"HP34*CustomRegion3!$E39","v":0},{"$f":"HQ34*CustomRegion3!$E39","v":0},0,0,0,0,10645.091829816614,{"$f":"HN34*CustomRegion3!D39","v":0},{"$f":"IA34*CustomRegion3!$D39","v":0},{"$f":"IB34*CustomRegion3!$D39","v":0},{"$f":"HN34*CustomRegion3!E39","v":0},{"$f":"IA34*CustomRegion3!$E39","v":0},{"$f":"IB34*CustomRegion3!$E39","v":0},0,0,0]
[null,120,"Information",0,0,0,32363836.27818593,19095391.07196391,0,19746498.280717395,11650877.965487506,0,5047947.4073572094,2978402.4682872128,0,282.8366967988012,166.88001040580977,884276.27447670954,1623804.5434118484,0,359087.90414915903,659396.37539941759,0,117509.50409212406,215783.76820273939,0,6.5840622529944062,12.090373234140591,null,34,"TTL_C73T74: R&D and other business activities",{"$f":"'Solar-PV-Inputs'!B26*'Solar-PV-Inputs'!C26","v":5809002.5676046042},0,null,2684820.4474145034,895247.19477873109,{"$f":"AF35*'Colombia-IO-Data'!AN41","v":4236608.1457609208},{"$f":"AI35*'Colombia-IO-Data'!$AN41","v":1958086.9598603328},{"$f":"AJ35*'Colombia-IO-Data'!$AN41","v":652919.58709413814},{"$f":"AK35*'Colombia-IO-Data'!$AO41","v":1588677.8745288041},{"$f":"AL35*'Colombia-IO-Data'!$AO41","v":734259.41755931929},{"$f":"AM35*'Colombia-IO-Data'!$AO41","v":244837.11171183572},{"$f":"(AN35*'Default-Data'!$F$19/pv_dollar_index)/'Colombia-IO-Data'!$AP41","v":148.67956301403339},{"$f":"(AO35*'Default-Data'!$F$19/pv_dollar_index)/'Colombia-IO-Data'!$AP41","v":68.717120753027103},{"$f":"(AP35*'Default-Data'!$F$19/pv_dollar_index)/'Colombia-IO-Data'!$AP41","v":22.913565652653528},29029.644748450533,8580.496342227314,{"$f":"'Colombia-IO-Data'!$AN41*Calculations!AG35","v":0},{"$f":"'Colombia-IO-Data'!$AN41*Calculations!AT35","v":21171.832509715383},{"$f":"'Colombia-IO-Data'!$AN41*Calculations!AU35","v":6257.9074935995759},{"$f":"AV35*'Colombia-IO-Data'!$AO41","v":0},{"$f":"AW35*'Colombia-IO-Data'!$AO41","v":7939.186423240325},{"$f":"AX35*'Colombia-IO-Data'!$AO41","v":2346.6411888664397},{"$f":"(AY35*'Default-Data'!$F$19/pv_dollar_index)/'Colombia-IO-Data'!$AP41","v":0},{"$f":"(AZ35*'Default-Data'!$F$19/pv_dollar_index)/'Colombia-IO-Data'!$AP41","v":0.74300447373223411},{"$f":"(BA35*'Default-Data'!$F$19/pv_dollar_index)/'Colombia-IO-Data'!$AP41","v":0.21961505985905153},null,"DOM_C73T74: R&D and other business activities",5809002.5676046042,0,null,3233740.1427230267,884609.94550275244,{"$f":"BG35*'Mexico-IO-Data'!AQ41","v":4363407.1454147007},{"$f":"BJ35*'Mexico-IO-Data'!$AQ41","v":2429009.9171001827},{"$f":"BK35*'Mexico-IO-Data'!$AQ41","v":664470.93320932891},{"$f":"BG35*'Mexico-IO-Data'!AR41","v":1930040.9498974294},{"$f":"BJ35*'Mexico-IO-Data'!$AR41","v":1074410.0771427678},{"$f":"BK35*'Mexico-IO-Data'!$AR41","v":293911.63106524159},{"$f":"(Calculations!BO35*'Default-Data'!$F$19/pv_dollar_index)/'Mexico-IO-Data'!$AS41","v":493.63509322380014},{"$f":"(Calculations!BP35*'Default-Data'!$F$19/pv_dollar_index)/'Mexico-IO-Data'!$AS41","v":274.79547447899819},{"$f":"(Calculations!BQ35*'Default-Data'!$F$19/pv_dollar_index)/'Mexico-IO-Data'!$AS41","v":75.172029592512075},26736.91038990971,12717.374683586597,{"$f":"BH35*'Mexico-IO-Data'!AQ41","v":0},{"$f":"BU35*'Mexico-IO-Data'!$AQ41","v":20083.314559413608},{"$f":"BV35*'Mexico-IO-Data'!$AQ41","v":9552.6009705587094},{"$f":"BH35*'Mexico-IO-Data'!AR41","v":0},{"$f":"BU35*'Mexico-IO-Data'!$AR41","v":8883.3377719684668},{"$f":"BV35*'Mexico-IO-Data'!$AR41","v":4225.3474032517734},{"$f":"(BZ35*'Default-Data'!$F$19/pv_dollar_index)/'Mexico-IO-Data'!$AS41","v":0},{"$f":"(CA35*'Default-Data'!$F$19/pv_dollar_index)/'Mexico-IO-Data'!$AS41","v":2.27203846086126},{"$f":"(CB35*'Default-Data'!$F$19/pv_dollar_index)/'Mexico-IO-Data'!$AS41","v":1.0806919715449448},null,"TTL_C73T74: R&D and other business activities",5809002.5676046042,0,null,769311.14607717469,400937.46311417501,{"$f":"CH35*'Philippines-IO-Data'!AN41","v":2814460.5770694031},{"$f":"'Philippines-IO-Data'!$AN41*Calculations!CK35","v":372731.09573217621},{"$f":"'Philippines-IO-Data'!$AN41*Calculations!CL35","v":194254.12033694092},{"$f":"CH35*'Philippines-IO-Data'!AO41","v":1101399.9564901425},{"$f":"'Philippines-IO-Data'!$AO41*Calculations!CK35","v":145863.12416903989},{"$f":"'Philippines-IO-Data'!$AO41*Calculations!CL35","v":76018.645075468652},{"$f":"(CP35*'Default-Data'!$F$19/pv_dollar_index)/'Philippines-IO-Data'!$AP41","v":272.60337417086021},{"$f":"(CQ35*'Default-Data'!$F$19/pv_dollar_index)/'Philippines-IO-Data'!$AP41","v":36.102035033936644},{"$f":"(CR35*'Default-Data'!$F$19/pv_dollar_index)/'Philippines-IO-Data'!$AP41","v":18.81508985483174},6701.1104601182533,4263.93628132092,{"$f":"CI35*'Philippines-IO-Data'!AN41","v":0},{"$f":"'Philippines-IO-Data'!$AN41*Calculations!CV35","v":3246.6866717821631},{"$f":"'Philippines-IO-Data'!$AN41*Calculations!CW35","v":2065.8762717438826},{"$f":"'Philippines-IO-Data'!AO41*Calculations!CI35","v":0},{"$f":"'Philippines-IO-Data'!$AO41*Calculations!CV35","v":1270.5456200638835},{"$f":"'Philippines-IO-Data'!$AO41*Calculations!CW35","v":808.45191236680125},{"$f":"(DA35*'Default-Data'!$F$19/pv_dollar_index)/'Philippines-IO-Data'!$AP41","v":0},{"$f":"(DB35*'Default-Data'!$F$19/pv_dollar_index)/'Philippines-IO-Data'!$AP41","v":0.3144679832484833},{"$f":"(DC35*'Default-Data'!$F$19/pv_dollar_index)/'Philippines-IO-Data'!$AP41","v":0.20009690200859115},null,"DOM_C73T74: R&D and other business activities",5809002.5676046042,0,null,3163035.0969603965,2295108.6762137823,{"$f":"DI35*'SouthAfrica-IO-Data'!AR41","v":2474910.9334449479},{"$f":"DL35*'SouthAfrica-IO-Data'!$AR41","v":1347603.1475684866},{"$f":"DM35*'SouthAfrica-IO-Data'!$AR41","v":977825.27897007437},{"$f":"DI35*'SouthAfrica-IO-Data'!AS41","v":1597707.8130118814},{"$f":"DL35*'SouthAfrica-IO-Data'!$AS41","v":869961.03520889301},{"$f":"DM35*'SouthAfrica-IO-Data'!$AS41","v":631246.59027482604},{"$f":"(DQ35*'Default-Data'!$F$19/pv_dollar_index)/'SouthAfrica-IO-Data'!$AT41","v":97.424797662100076},{"$f":"(DR35*'Default-Data'!$F$19/pv_dollar_index)/'SouthAfrica-IO-Data'!$AT41","v":53.048359117279496},{"$f":"(DS35*'Default-Data'!$F$19/pv_dollar_index)/'SouthAfrica-IO-Data'!$AT41","v":38.492063962860627},70678.495559932853,24192.636032356764,{"$f":"DJ35*'SouthAfrica-IO-Data'!AR41","v":0},{"$f":"DW35*'SouthAfrica-IO-Data'!$AR41","v":30112.395266654035},{"$f":"DX35*'SouthAfrica-IO-Data'!$AR41","v":10307.211733601249},{"$f":"DJ35*'SouthAfrica-IO-Data'!AS41","v":0},{"$f":"DW35*'SouthAfrica-IO-Data'!$AS41","v":19439.410338321708},{"$f":"DX35*'SouthAfrica-IO-Data'!$AS41","v":6653.9415599170561},{"$f":"(EB35*'Default-Data'!$F$19/pv_dollar_index)/'SouthAfrica-IO-Data'!$AT41","v":0},{"$f":"(EC35*'Default-Data'!$F$19/pv_dollar_index)/'SouthAfrica-IO-Data'!$AT41","v":1.1853735729759773},{"$f":"(ED35*'Default-Data'!$F$19/pv_dollar_index)/'SouthAfrica-IO-Data'!$AT41","v":0.40574309323073765},null,"LPRIM",0,0,null,0,2449946.0818467247,{"$f":"EJ35*'Zambia-IO-Data'!BO39","v":0},{"$f":"EM35*'Zambia-IO-Data'!$BO39","v":0},{"$f":"EN35*'Zambia-IO-Data'!$BO39","v":0},{"$f":"EJ35*'Zambia-IO-Data'!$BN39","v":0},{"$f":"EM35*'Zambia-IO-Data'!$BN39","v":0},{"$f":"EN35*'Zambia-IO-Data'!$BN39","v":0},0,0,0,0,21359.599469393121,{"$f":"EK35*'Zambia-IO-Data'!BO39","v":0},{"$f":"EX35*'Zambia-IO-Data'!$BO39","v":0},{"$f":"EY35*'Zambia-IO-Data'!$BO39","v":0},{"$f":"EK35*'Zambia-IO-Data'!BN39","v":0},{"$f":"EX35*'Zambia-IO-Data'!$BN39","v":0},{"$f":"EY35*'Zambia-IO-Data'!$BN39","v":0},0,0,0,null,"TTL_C73T74: R&D and other business activities",5809002.5676046042,0,null,1169597.8204507297,615202.57031560969,{"$f":"FK35*CustomRegion1!C37","v":2814460.5770694031},{"$f":"FN35*CustomRegion1!$C37","v":566669.90905501973},{"$f":"FO35*CustomRegion1!$C37","v":298065.521733628},{"$f":"FK35*CustomRegion1!D37","v":1101399.9564901425},{"$f":"FN35*CustomRegion1!$D37","v":221758.37823507766},{"$f":"FO35*CustomRegion1!$D37","v":116643.79147583066},{"$f":"(FS35*'Default-Data'!$C$58/pv_dollar_index)/CustomRegion1!$E37","v":273.74245463251111},{"$f":"(FT35*'Default-Data'!$C$58/pv_dollar_index)/CustomRegion1!$E37","v":55.115929899656109},{"$f":"(FU35*'Default-Data'!$C$58/pv_dollar_index)/CustomRegion1!$E37","v":28.990701886342805},11538.483048603104,6587.1801479786318,{"$f":"FL35*CustomRegion1!C37","v":0},{"$f":"FY35*CustomRegion1!$C37","v":5590.3927191528546},{"$f":"FZ35*CustomRegion1!$C37","v":3191.487458437281},{"$f":"FL35*CustomRegion1!D37","v":0},{"$f":"FY35*CustomRegion1!$D37","v":2187.7223464430599},{"$f":"FZ35*CustomRegion1!$D37","v":1248.9441765504523},{"$f":"(GD35*'Default-Data'!$C$58/pv_dollar_index)/CustomRegion1!$E37","v":0},{"$f":"(GE35*'Default-Data'!$C$58/pv_dollar_index)/CustomRegion1!$E37","v":0.54373752390381536},{"$f":"(GF35*'Default-Data'!$C$58/pv_dollar_index)/CustomRegion1!$E37","v":0.31041316333206248},null,"C71 Renting of machinery and equipment",0,0,null,387722.28439460311,212698.11366142065,{"$f":"GL35*CustomRegion2!$C$13","v":0},{"$f":"GO35*CustomRegion2!C$13","v":238907.28325689063},{"$f":"GP35*CustomRegion2!D$13","v":23536.460746698263},{"$f":"GL35*CustomRegion2!D41","v":0},{"$f":"GO35*CustomRegion2!$D41","v":14763.735024032589},{"$f":"GP35*CustomRegion2!$D41","v":8099.1439403901613},{"$f":"(GT35*'Default-Data'!$C$59/pv_dollar_index)/CustomRegion2!$E41","v":0},{"$f":"(GU35*'Default-Data'!$C$59/pv_dollar_index)/CustomRegion2!$E41","v":6.1874116362043159},{"$f":"(GV35*'Default-Data'!$C$59/pv_dollar_index)/CustomRegion2!$E41","v":3.3943129823509857},143613.8151513206,59434.329181181121,{"$f":"GM35*CustomRegion2!C41","v":0},{"$f":"GZ35*CustomRegion2!$C41","v":121974.10192858153},{"$f":"HA35*CustomRegion2!$C41","v":50478.771265590127},{"$f":"GM35*CustomRegion2!D41","v":0},{"$f":"GZ35*CustomRegion2!$D41","v":5468.5438470350846},{"$f":"HA35*CustomRegion2!$D41","v":2263.1474193756703},{"$f":"(HE35*'Default-Data'!$C$59/pv_dollar_index)/CustomRegion2!$E41","v":0},{"$f":"(HF35*'Default-Data'!$C$59/pv_dollar_index)/CustomRegion2!$E41","v":2.2918409045651065},{"$f":"(HG35*'Default-Data'!$C$59/pv_dollar_index)/CustomRegion2!$E41","v":0.94847439718313142},null,"LPRIM",0,0,null,0,2449946.0818467247,{"$f":"HM35*CustomRegion3!D40","v":0},{"$f":"HP35*CustomRegion3!$D40","v":0},{"$f":"HQ35*CustomRegion3!$D40","v":0},{"$f":"HM35*CustomRegion3!E40","v":0},{"$f":"HP35*CustomRegion3!$E40","v":0},{"$f":"HQ35*CustomRegion3!$E40","v":0},0,0,0,0,21359.599469393121,{"$f":"HN35*CustomRegion3!D40","v":0},{"$f":"IA35*CustomRegion3!$D40","v":0},{"$f":"IB35*CustomRegion3!$D40","v":0},{"$f":"HN35*CustomRegion3!E40","v":0},{"$f":"IA35*CustomRegion3!$E40","v":0},{"$f":"IB35*CustomRegion3!$E40","v":0},0,0,0]
[null,121,"Finance, Professional, and Business Services",257306657.75156423,0,0,142430687.95070457,220958824.7953662,109624854.37153429,108117368.69355933,165154115.64888147,70769611.933425188,30300177.082957286,89142211.234643385,4396.8184113349462,1882.2979961477072,5359.5722882581831,8393728.31243168,18789557.242241766,0,4495849.7346020825,10785805.058790652,0,2170386.6831766288,6694046.8488365756,0,134.83088125158622,404.14756961901793,null,35,"TTL_C75: Public administration and defence; compulsory social security",0,0,null,38625.708574269462,1775077.527998745,{"$f":"AF36*'Colombia-IO-Data'!AN42","v":0},{"$f":"AI36*'Colombia-IO-Data'!$AN42","v":23388.38587847925},{"$f":"AJ36*'Colombia-IO-Data'!$AN42","v":1074833.3097689175},{"$f":"AK36*'Colombia-IO-Data'!$AO42","v":0},{"$f":"AL36*'Colombia-IO-Data'!$AO42","v":19635.858590474858},{"$f":"AM36*'Colombia-IO-Data'!$AO42","v":902382.70347567997},{"$f":"(AN36*'Default-Data'!$F$19/pv_dollar_index)/'Colombia-IO-Data'!$AP42","v":0},{"$f":"(AO36*'Default-Data'!$F$19/pv_dollar_index)/'Colombia-IO-Data'!$AP42","v":1.8376606871944094},{"$f":"(AP36*'Default-Data'!$F$19/pv_dollar_index)/'Colombia-IO-Data'!$AP42","v":84.451271195540045},28.516329185018058,17013.229781666731,{"$f":"'Colombia-IO-Data'!$AN42*Calculations!AG36","v":0},{"$f":"'Colombia-IO-Data'!$AN42*Calculations!AT36","v":17.267020733989376},{"$f":"'Colombia-IO-Data'!$AN42*Calculations!AU36","v":10301.739381887381},{"$f":"AV36*'Colombia-IO-Data'!$AO42","v":0},{"$f":"AW36*'Colombia-IO-Data'!$AO42","v":14.496630044204595},{"$f":"AX36*'Colombia-IO-Data'!$AO42","v":8648.8866221758799},{"$f":"(AY36*'Default-Data'!$F$19/pv_dollar_index)/'Colombia-IO-Data'!$AP42","v":0},{"$f":"(AZ36*'Default-Data'!$F$19/pv_dollar_index)/'Colombia-IO-Data'!$AP42","v":1.3566958127290067E-3},{"$f":"(BA36*'Default-Data'!$F$19/pv_dollar_index)/'Colombia-IO-Data'!$AP42","v":0.80942317140561049},null,"DOM_C75: Public administration and defence; compulsory social security",0,0,null,1147.4733022661917,1129137.4431368287,{"$f":"BG36*'Mexico-IO-Data'!AQ42","v":0},{"$f":"BJ36*'Mexico-IO-Data'!$AQ42","v":822.29580542545887},{"$f":"BK36*'Mexico-IO-Data'!$AQ42","v":809156.06612070114},{"$f":"BG36*'Mexico-IO-Data'!AR42","v":0},{"$f":"BJ36*'Mexico-IO-Data'!$AR42","v":810.64285784097694},{"$f":"BK36*'Mexico-IO-Data'!$AR42","v":797689.32487751613},{"$f":"(Calculations!BO36*'Default-Data'!$F$19/pv_dollar_index)/'Mexico-IO-Data'!$AS42","v":0},{"$f":"(Calculations!BP36*'Default-Data'!$F$19/pv_dollar_index)/'Mexico-IO-Data'!$AS42","v":0.54890357031183257},{"$f":"(Calculations!BQ36*'Default-Data'!$F$19/pv_dollar_index)/'Mexico-IO-Data'!$AS42","v":540.13245683933167},10.534601902064276,16232.763385309894,{"$f":"BH36*'Mexico-IO-Data'!AQ42","v":0},{"$f":"BU36*'Mexico-IO-Data'!$AQ42","v":7.549246626293157},{"$f":"BV36*'Mexico-IO-Data'!$AQ42","v":11632.630768700699},{"$f":"BH36*'Mexico-IO-Data'!AR42","v":0},{"$f":"BU36*'Mexico-IO-Data'!$AR42","v":7.4422644738145793},{"$f":"BV36*'Mexico-IO-Data'!$AR42","v":11467.782017529988},{"$f":"(BZ36*'Default-Data'!$F$19/pv_dollar_index)/'Mexico-IO-Data'!$AS42","v":0},{"$f":"(CA36*'Default-Data'!$F$19/pv_dollar_index)/'Mexico-IO-Data'!$AS42","v":5.0393160210671986E-3},{"$f":"(CB36*'Default-Data'!$F$19/pv_dollar_index)/'Mexico-IO-Data'!$AS42","v":7.765079815475123},null,"TTL_C75: Public administration and defence; compulsory social security",0,0,null,152531.15692791477,1372774.1058750087,{"$f":"CH36*'Philippines-IO-Data'!AN42","v":0},{"$f":"'Philippines-IO-Data'!$AN42*Calculations!CK36","v":84962.594314973365},{"$f":"'Philippines-IO-Data'!$AN42*Calculations!CL36","v":764659.83601422072},{"$f":"CH36*'Philippines-IO-Data'!AO42","v":0},{"$f":"'Philippines-IO-Data'!$AO42*Calculations!CK36","v":72159.362768902924},{"$f":"'Philippines-IO-Data'!$AO42*Calculations!CL36","v":649431.28145553579},{"$f":"(CP36*'Default-Data'!$F$19/pv_dollar_index)/'Philippines-IO-Data'!$AP42","v":0},{"$f":"(CQ36*'Default-Data'!$F$19/pv_dollar_index)/'Philippines-IO-Data'!$AP42","v":17.859893359273194},{"$f":"(CR36*'Default-Data'!$F$19/pv_dollar_index)/'Philippines-IO-Data'!$AP42","v":160.73830180732276},48.322625026006513,14599.337439393665,{"$f":"CI36*'Philippines-IO-Data'!AN42","v":0},{"$f":"'Philippines-IO-Data'!$AN42*Calculations!CV36","v":26.916570155299208},{"$f":"'Philippines-IO-Data'!$AN42*Calculations!CW36","v":8132.0932005833392},{"$f":"'Philippines-IO-Data'!AO42*Calculations!CI36","v":0},{"$f":"'Philippines-IO-Data'!$AO42*Calculations!CV36","v":22.860443068986697},{"$f":"'Philippines-IO-Data'!$AO42*Calculations!CW36","v":6906.6471905979251},{"$f":"(DA36*'Default-Data'!$F$19/pv_dollar_index)/'Philippines-IO-Data'!$AP42","v":0},{"$f":"(DB36*'Default-Data'!$F$19/pv_dollar_index)/'Philippines-IO-Data'!$AP42","v":5.6581025620390992E-3},{"$f":"(DC36*'Default-Data'!$F$19/pv_dollar_index)/'Philippines-IO-Data'!$AP42","v":1.7094383536790501},null,"DOM_C75: Public administration and defence; compulsory social security",0,0,null,5086.5115605745741,6455905.7538324185,{"$f":"DI36*'SouthAfrica-IO-Data'!AR42","v":0},{"$f":"DL36*'SouthAfrica-IO-Data'!$AR42","v":3148.4612481835961},{"$f":"DM36*'SouthAfrica-IO-Data'!$AR42","v":3996092.1833766219},{"$f":"DI36*'SouthAfrica-IO-Data'!AS42","v":0},{"$f":"DL36*'SouthAfrica-IO-Data'!$AS42","v":2777.0283472032256},{"$f":"DM36*'SouthAfrica-IO-Data'!$AS42","v":3524661.8574950914},{"$f":"(DQ36*'Default-Data'!$F$19/pv_dollar_index)/'SouthAfrica-IO-Data'!$AT42","v":0},{"$f":"(DR36*'Default-Data'!$F$19/pv_dollar_index)/'SouthAfrica-IO-Data'!$AT42","v":0.16209633619775538},{"$f":"(DS36*'Default-Data'!$F$19/pv_dollar_index)/'SouthAfrica-IO-Data'!$AT42","v":205.73602498920351},59.07744819661459,68051.40853692517,{"$f":"DJ36*'SouthAfrica-IO-Data'!AR42","v":0},{"$f":"DW36*'SouthAfrica-IO-Data'!$AR42","v":36.567902003864504},{"$f":"DX36*'SouthAfrica-IO-Data'!$AR42","v":42122.625715337352},{"$f":"DJ36*'SouthAfrica-IO-Data'!AS42","v":0},{"$f":"DW36*'SouthAfrica-IO-Data'!$AS42","v":32.253882915366177},{"$f":"DX36*'SouthAfrica-IO-Data'!$AS42","v":37153.300120053485},{"$f":"(EB36*'Default-Data'!$F$19/pv_dollar_index)/'SouthAfrica-IO-Data'!$AT42","v":0},{"$f":"(EC36*'Default-Data'!$F$19/pv_dollar_index)/'SouthAfrica-IO-Data'!$AT42","v":1.8826729853145521E-3},{"$f":"(ED36*'Default-Data'!$F$19/pv_dollar_index)/'SouthAfrica-IO-Data'!$AT42","v":2.1686540698014594},null,"LSECD",0,0,null,0,1617691.8041034478,{"$f":"EJ36*'Zambia-IO-Data'!BO40","v":0},{"$f":"EM36*'Zambia-IO-Data'!$BO40","v":0},{"$f":"EN36*'Zambia-IO-Data'!$BO40","v":0},{"$f":"EJ36*'Zambia-IO-Data'!$BN40","v":0},{"$f":"EM36*'Zambia-IO-Data'!$BN40","v":0},{"$f":"EN36*'Zambia-IO-Data'!$BN40","v":0},0,0,0,0,14565.788484408449,{"$f":"EK36*'Zambia-IO-Data'!BO40","v":0},{"$f":"EX36*'Zambia-IO-Data'!$BO40","v":0},{"$f":"EY36*'Zambia-IO-Data'!$BO40","v":0},{"$f":"EK36*'Zambia-IO-Data'!BN40","v":0},{"$f":"EX36*'Zambia-IO-Data'!$BN40","v":0},{"$f":"EY36*'Zambia-IO-Data'!$BN40","v":0},0,0,0,null,"TTL_C75: Public administration and defence; compulsory social security",0,0,null,159196.27462928742,1588826.8116233363,{"$f":"FK36*CustomRegion1!C38","v":0},{"$f":"FN36*CustomRegion1!$C38","v":88675.184599664484},{"$f":"FO36*CustomRegion1!$C38","v":885005.07405514491},{"$f":"FK36*CustomRegion1!D38","v":0},{"$f":"FN36*CustomRegion1!$D38","v":75312.493288578204},{"$f":"FO36*CustomRegion1!$D38","v":751641.38649436692},{"$f":"(FS36*'Default-Data'!$C$58/pv_dollar_index)/CustomRegion1!$E38","v":0},{"$f":"(FT36*'Default-Data'!$C$58/pv_dollar_index)/CustomRegion1!$E38","v":18.71820191731997},{"$f":"(FU36*'Default-Data'!$C$58/pv_dollar_index)/CustomRegion1!$E38","v":186.81329786687121},109.23512149538169,17012.101277035101,{"$f":"FL36*CustomRegion1!C38","v":0},{"$f":"FY36*CustomRegion1!$C38","v":60.845924855503682},{"$f":"FZ36*CustomRegion1!$C38","v":9476.045998451691},{"$f":"FL36*CustomRegion1!D38","v":0},{"$f":"FY36*CustomRegion1!$D38","v":51.676896168928785},{"$f":"FZ36*CustomRegion1!$D38","v":8048.0762896923416},{"$f":"(GD36*'Default-Data'!$C$58/pv_dollar_index)/CustomRegion1!$E38","v":0},{"$f":"(GE36*'Default-Data'!$C$58/pv_dollar_index)/CustomRegion1!$E38","v":1.2843799676687733E-2},{"$f":"(GF36*'Default-Data'!$C$58/pv_dollar_index)/CustomRegion1!$E38","v":2.0002726036332579},null,"C72 Computer and related activities",0,0,null,17706.584241844394,16970.905071412686,{"$f":"GL36*CustomRegion2!$C$13","v":0},{"$f":"GO36*CustomRegion2!C$13","v":10910.468929026039},{"$f":"GP36*CustomRegion2!D$13","v":1877.9435048732028},{"$f":"GL36*CustomRegion2!D42","v":0},{"$f":"GO36*CustomRegion2!$D42","v":6001.2938854822823},{"$f":"GP36*CustomRegion2!$D42","v":5751.9500907172342},{"$f":"(GT36*'Default-Data'!$C$59/pv_dollar_index)/CustomRegion2!$E42","v":0},{"$f":"(GU36*'Default-Data'!$C$59/pv_dollar_index)/CustomRegion2!$E42","v":0.47542892047084173},{"$f":"(GV36*'Default-Data'!$C$59/pv_dollar_index)/CustomRegion2!$E42","v":0.45567563835645936},5661.2804543454058,4742.1876064332446,{"$f":"GM36*CustomRegion2!C42","v":0},{"$f":"GZ36*CustomRegion2!$C42","v":2929.0118445584085},{"$f":"HA36*CustomRegion2!$C42","v":2453.4950671273723},{"$f":"GM36*CustomRegion2!D42","v":0},{"$f":"GZ36*CustomRegion2!$D42","v":1918.7781963261627},{"$f":"HA36*CustomRegion2!$D42","v":1607.2699905068337},{"$f":"(HE36*'Default-Data'!$C$59/pv_dollar_index)/CustomRegion2!$E42","v":0},{"$f":"(HF36*'Default-Data'!$C$59/pv_dollar_index)/CustomRegion2!$E42","v":0.15200766099942892},{"$f":"(HG36*'Default-Data'!$C$59/pv_dollar_index)/CustomRegion2!$E42","v":0.12732964775152572},null,"LSECD",0,0,null,0,1617691.8041034478,{"$f":"HM36*CustomRegion3!D41","v":0},{"$f":"HP36*CustomRegion3!$D41","v":0},{"$f":"HQ36*CustomRegion3!$D41","v":0},{"$f":"HM36*CustomRegion3!E41","v":0},{"$f":"HP36*CustomRegion3!$E41","v":0},{"$f":"HQ36*CustomRegion3!$E41","v":0},0,0,0,0,14565.788484408449,{"$f":"HN36*CustomRegion3!D41","v":0},{"$f":"IA36*CustomRegion3!$D41","v":0},{"$f":"IB36*CustomRegion3!$D41","v":0},{"$f":"HN36*CustomRegion3!E41","v":0},{"$f":"IA36*CustomRegion3!$E41","v":0},{"$f":"IB36*CustomRegion3!$E41","v":0},0,0,0]
[null,122,"Education and Health Care",0,0,0,3530744.1656826101,20944850.412785538,0,2663327.3191003483,16442200.069767147,0,1896544.9513089678,12315197.590602107,0,112.79129641388202,732.40926922318818,206979.38389198214,1781076.0268375489,0,95927.985472397064,844707.62186322722,0,42539.970592040809,388017.78227765707,0,2.5299365718556235,23.076188447065476,null,36,"TTL_C80: Education",0,0,null,51973.046720445382,1033995.1134795961,{"$f":"AF37*'Colombia-IO-Data'!AN43","v":0},{"$f":"AI37*'Colombia-IO-Data'!$AN43","v":40973.763298903126},{"$f":"AJ37*'Colombia-IO-Data'!$AN43","v":815166.2006620263},{"$f":"AK37*'Colombia-IO-Data'!$AO43","v":0},{"$f":"AL37*'Colombia-IO-Data'!$AO43","v":30164.668429700614},{"$f":"AM37*'Colombia-IO-Data'!$AO43","v":600121.05743596843},{"$f":"(AN37*'Default-Data'!$F$19/pv_dollar_index)/'Colombia-IO-Data'!$AP43","v":0},{"$f":"(AO37*'Default-Data'!$F$19/pv_dollar_index)/'Colombia-IO-Data'!$AP43","v":2.8230201933927557},{"$f":"(AP37*'Default-Data'!$F$19/pv_dollar_index)/'Colombia-IO-Data'!$AP43","v":56.163516849860734},88.029837822434459,9910.3257076224909,{"$f":"'Colombia-IO-Data'!$AN43*Calculations!AG37","v":0},{"$f":"'Colombia-IO-Data'!$AN43*Calculations!AT37","v":69.399697839117749},{"$f":"'Colombia-IO-Data'!$AN43*Calculations!AU37","v":7812.9600895500253},{"$f":"AV37*'Colombia-IO-Data'!$AO43","v":0},{"$f":"AW37*'Colombia-IO-Data'!$AO43","v":51.091691509196522},{"$f":"AX37*'Colombia-IO-Data'!$AO43","v":5751.8600094531612},{"$f":"(AY37*'Default-Data'!$F$19/pv_dollar_index)/'Colombia-IO-Data'!$AP43","v":0},{"$f":"(AZ37*'Default-Data'!$F$19/pv_dollar_index)/'Colombia-IO-Data'!$AP43","v":4.7815170646146061E-3},{"$f":"(BA37*'Default-Data'!$F$19/pv_dollar_index)/'Colombia-IO-Data'!$AP43","v":0.53829920239622797},null,"DOM_C80: Education",0,0,null,28101.669835115477,1013923.5923210343,{"$f":"BG37*'Mexico-IO-Data'!AQ43","v":0},{"$f":"BJ37*'Mexico-IO-Data'!$AQ43","v":25213.017028956176},{"$f":"BK37*'Mexico-IO-Data'!$AQ43","v":909699.42175130558},{"$f":"BG37*'Mexico-IO-Data'!AR43","v":0},{"$f":"BJ37*'Mexico-IO-Data'!$AR43","v":21743.192757492667},{"$f":"BK37*'Mexico-IO-Data'!$AR43","v":784506.26736982539},{"$f":"(Calculations!BO37*'Default-Data'!$F$19/pv_dollar_index)/'Mexico-IO-Data'!$AS43","v":0},{"$f":"(Calculations!BP37*'Default-Data'!$F$19/pv_dollar_index)/'Mexico-IO-Data'!$AS43","v":5.1613453933644626},{"$f":"(Calculations!BQ37*'Default-Data'!$F$19/pv_dollar_index)/'Mexico-IO-Data'!$AS43","v":186.22416009992284},95.23589391373099,14576.420138195957,{"$f":"BH37*'Mexico-IO-Data'!AQ43","v":0},{"$f":"BU37*'Mexico-IO-Data'!$AQ43","v":85.446317927138807},{"$f":"BV37*'Mexico-IO-Data'!$AQ43","v":13078.067293578115},{"$f":"BH37*'Mexico-IO-Data'!AR43","v":0},{"$f":"BU37*'Mexico-IO-Data'!$AR43","v":73.687165600772076},{"$f":"BV37*'Mexico-IO-Data'!$AR43","v":11278.259072809657},{"$f":"(BZ37*'Default-Data'!$F$19/pv_dollar_index)/'Mexico-IO-Data'!$AS43","v":0},{"$f":"(CA37*'Default-Data'!$F$19/pv_dollar_index)/'Mexico-IO-Data'!$AS43","v":1.7491677370728816E-2},{"$f":"(CB37*'Default-Data'!$F$19/pv_dollar_index)/'Mexico-IO-Data'!$AS43","v":2.6772052825847146},null,"TTL_C80: Education",0,0,null,99153.017626104775,1331215.1658829548,{"$f":"CH37*'Philippines-IO-Data'!AN43","v":0},{"$f":"'Philippines-IO-Data'!$AN43*Calculations!CK37","v":67479.971295135576},{"$f":"'Philippines-IO-Data'!$AN43*Calculations!CL37","v":905977.07797629957},{"$f":"CH37*'Philippines-IO-Data'!AO43","v":0},{"$f":"'Philippines-IO-Data'!$AO43*Calculations!CK37","v":46937.391667141455},{"$f":"'Philippines-IO-Data'!$AO43*Calculations!CL37","v":630175.14877768443},{"$f":"(CP37*'Default-Data'!$F$19/pv_dollar_index)/'Philippines-IO-Data'!$AP43","v":0},{"$f":"(CQ37*'Default-Data'!$F$19/pv_dollar_index)/'Philippines-IO-Data'!$AP43","v":11.617297847021019},{"$f":"(CR37*'Default-Data'!$F$19/pv_dollar_index)/'Philippines-IO-Data'!$AP43","v":155.97228859792324},100.41244278806663,14157.361599398657,{"$f":"CI37*'Philippines-IO-Data'!AN43","v":0},{"$f":"'Philippines-IO-Data'!$AN43*Calculations!CV37","v":68.337090683050022},{"$f":"'Philippines-IO-Data'!$AN43*Calculations!CW37","v":9634.990212247023},{"$f":"'Philippines-IO-Data'!AO43*Calculations!CI37","v":0},{"$f":"'Philippines-IO-Data'!$AO43*Calculations!CV37","v":47.533582620455348},{"$f":"'Philippines-IO-Data'!$AO43*Calculations!CW37","v":6701.8598351702858},{"$f":"(DA37*'Default-Data'!$F$19/pv_dollar_index)/'Philippines-IO-Data'!$AP43","v":0},{"$f":"(DB37*'Default-Data'!$F$19/pv_dollar_index)/'Philippines-IO-Data'!$AP43","v":1.1764858834803721E-2},{"$f":"(DC37*'Default-Data'!$F$19/pv_dollar_index)/'Philippines-IO-Data'!$AP43","v":1.65875220306851},null,"DOM_C80: Education",0,0,null,6039.4847925737668,361139.12760112621,{"$f":"DI37*'SouthAfrica-IO-Data'!AR43","v":0},{"$f":"DL37*'SouthAfrica-IO-Data'!$AR43","v":3081.0145662336226},{"$f":"DM37*'SouthAfrica-IO-Data'!$AR43","v":184233.41572846298},{"$f":"DI37*'SouthAfrica-IO-Data'!AS43","v":0},{"$f":"DL37*'SouthAfrica-IO-Data'!$AS43","v":1563.0369126161277},{"$f":"DM37*'SouthAfrica-IO-Data'!$AS43","v":93463.897404730757},{"$f":"(DQ37*'Default-Data'!$F$19/pv_dollar_index)/'SouthAfrica-IO-Data'!$AT43","v":0},{"$f":"(DR37*'Default-Data'!$F$19/pv_dollar_index)/'SouthAfrica-IO-Data'!$AT43","v":9.1235135259634462E-2},{"$f":"(DS37*'Default-Data'!$F$19/pv_dollar_index)/'SouthAfrica-IO-Data'!$AT43","v":5.4555277951439116},55.120907990399147,3806.7510970809835,{"$f":"DJ37*'SouthAfrica-IO-Data'!AR43","v":0},{"$f":"DW37*'SouthAfrica-IO-Data'!$AR43","v":28.119670179692527},{"$f":"DX37*'SouthAfrica-IO-Data'!$AR43","v":1941.9960448537017},{"$f":"DJ37*'SouthAfrica-IO-Data'!AS43","v":0},{"$f":"DW37*'SouthAfrica-IO-Data'!$AS43","v":14.26545753569075},{"$f":"DX37*'SouthAfrica-IO-Data'!$AS43","v":985.19868601968051},{"$f":"(EB37*'Default-Data'!$F$19/pv_dollar_index)/'SouthAfrica-IO-Data'!$AT43","v":0},{"$f":"(EC37*'Default-Data'!$F$19/pv_dollar_index)/'SouthAfrica-IO-Data'!$AT43","v":8.3268087740226036E-4},{"$f":"(ED37*'Default-Data'!$F$19/pv_dollar_index)/'SouthAfrica-IO-Data'!$AT43","v":5.7506470033503836E-2},null,"LPOST",0,0,null,0,2136366.2213776787,{"$f":"EJ37*'Zambia-IO-Data'!BO41","v":0},{"$f":"EM37*'Zambia-IO-Data'!$BO41","v":0},{"$f":"EN37*'Zambia-IO-Data'!$BO41","v":0},{"$f":"EJ37*'Zambia-IO-Data'!$BN41","v":0},{"$f":"EM37*'Zambia-IO-Data'!$BN41","v":0},{"$f":"EN37*'Zambia-IO-Data'!$BN41","v":0},0,0,0,0,18812.13988236467,{"$f":"EK37*'Zambia-IO-Data'!BO41","v":0},{"$f":"EX37*'Zambia-IO-Data'!$BO41","v":0},{"$f":"EY37*'Zambia-IO-Data'!$BO41","v":0},{"$f":"EK37*'Zambia-IO-Data'!BN41","v":0},{"$f":"EX37*'Zambia-IO-Data'!$BN41","v":0},{"$f":"EY37*'Zambia-IO-Data'!$BN41","v":0},0,0,0,null,"TTL_C80: Education",0,0,null,107719.93949177786,1540530.933662757,{"$f":"FK37*CustomRegion1!C39","v":0},{"$f":"FN37*CustomRegion1!$C39","v":73310.309649165545},{"$f":"FO37*CustomRegion1!$C39","v":1048429.8478421924},{"$f":"FK37*CustomRegion1!D39","v":0},{"$f":"FN37*CustomRegion1!$D39","v":50992.830186493484},{"$f":"FO37*CustomRegion1!$D39","v":729261.75662493124},{"$f":"(FS37*'Default-Data'!$C$58/pv_dollar_index)/CustomRegion1!$E39","v":0},{"$f":"(FT37*'Default-Data'!$C$58/pv_dollar_index)/CustomRegion1!$E39","v":12.673781601002331},{"$f":"(FU37*'Default-Data'!$C$58/pv_dollar_index)/CustomRegion1!$E39","v":181.2510543075478},190.71535430125266,16494.981122013771,{"$f":"FL37*CustomRegion1!C39","v":0},{"$f":"FY37*CustomRegion1!$C39","v":129.79399862865998},{"$f":"FZ37*CustomRegion1!$C39","v":11225.8898344839},{"$f":"FL37*CustomRegion1!D39","v":0},{"$f":"FY37*CustomRegion1!$D39","v":90.281481049133191},{"$f":"FZ37*CustomRegion1!$D39","v":7808.4500906024568},{"$f":"(GD37*'Default-Data'!$C$58/pv_dollar_index)/CustomRegion1!$E39","v":0},{"$f":"(GE37*'Default-Data'!$C$58/pv_dollar_index)/CustomRegion1!$E39","v":2.2438601059150704E-2},{"$f":"(GF37*'Default-Data'!$C$58/pv_dollar_index)/CustomRegion1!$E39","v":1.9407157972736861},null,"C73 Research and development",0,0,null,0,0,{"$f":"GL37*CustomRegion2!$C$13","v":0},{"$f":"GO37*CustomRegion2!C$13","v":0},{"$f":"GP37*CustomRegion2!D$13","v":0},{"$f":"GL37*CustomRegion2!D43","v":0},{"$f":"GO37*CustomRegion2!$D43","v":0},{"$f":"GP37*CustomRegion2!$D43","v":0},{"$f":"(GT37*'Default-Data'!$C$59/pv_dollar_index)/CustomRegion2!$E43","v":0},{"$f":"(GU37*'Default-Data'!$C$59/pv_dollar_index)/CustomRegion2!$E43","v":0},{"$f":"(GV37*'Default-Data'!$C$59/pv_dollar_index)/CustomRegion2!$E43","v":0},0,0,{"$f":"GM37*CustomRegion2!C43","v":0},{"$f":"GZ37*CustomRegion2!$C43","v":0},{"$f":"HA37*CustomRegion2!$C43","v":0},{"$f":"GM37*CustomRegion2!D43","v":0},{"$f":"GZ37*CustomRegion2!$D43","v":0},{"$f":"HA37*CustomRegion2!$D43","v":0},{"$f":"(HE37*'Default-Data'!$C$59/pv_dollar_index)/CustomRegion2!$E43","v":0},{"$f":"(HF37*'Default-Data'!$C$59/pv_dollar_index)/CustomRegion2!$E43","v":0},{"$f":"(HG37*'Default-Data'!$C$59/pv_dollar_index)/CustomRegion2!$E43","v":0},null,"LPOST",0,0,null,0,2136366.2213776787,{"$f":"HM37*CustomRegion3!D42","v":0},{"$f":"HP37*CustomRegion3!$D42","v":0},{"$f":"HQ37*CustomRegion3!$D42","v":0},{"$f":"HM37*CustomRegion3!E42","v":0},{"$f":"HP37*CustomRegion3!$E42","v":0},{"$f":"HQ37*CustomRegion3!$E42","v":0},0,0,0,0,18812.13988236467,{"$f":"HN37*CustomRegion3!D42","v":0},{"$f":"IA37*CustomRegion3!$D42","v":0},{"$f":"IB37*CustomRegion3!$D42","v":0},{"$f":"HN37*CustomRegion3!E42","v":0},{"$f":"IA37*CustomRegion3!$E42","v":0},{"$f":"IB37*CustomRegion3!$E42","v":0},0,0,0]
[null,123,"Other",0,0,0,42205306.516930833,437069172.72092706,0,27386113.203571234,24331659.438440952,0,5010329.1031643236,4509009.2840697858,0,330.19894199963278,305.88637100159553,1781785.4463963157,37166817.153669678,0,1210651.3177617667,2132380.8319976386,0,660072.89739977696,1154920.3335362808,0,40.565685714521848,71.757396778071936,null,37,"TTL_C85: Health and social work",0,0,null,18978.04155470453,975229.23203922517,{"$f":"AF38*'Colombia-IO-Data'!AN44","v":0},{"$f":"AI38*'Colombia-IO-Data'!$AN44","v":7528.1786312977083},{"$f":"AJ38*'Colombia-IO-Data'!$AN44","v":386852.34427862294},{"$f":"AK38*'Colombia-IO-Data'!$AO44","v":0},{"$f":"AL38*'Colombia-IO-Data'!$AO44","v":5590.1136782277044},{"$f":"AM38*'Colombia-IO-Data'!$AO44","v":287260.52968719247},{"$f":"(AN38*'Default-Data'!$F$19/pv_dollar_index)/'Colombia-IO-Data'!$AP44","v":0},{"$f":"(AO38*'Default-Data'!$F$19/pv_dollar_index)/'Colombia-IO-Data'!$AP44","v":0.52316185187898945},{"$f":"(AP38*'Default-Data'!$F$19/pv_dollar_index)/'Colombia-IO-Data'!$AP44","v":26.883845183366137},7.2058781341459177,9347.0841429600114,{"$f":"'Colombia-IO-Data'!$AN44*Calculations!AG38","v":0},{"$f":"'Colombia-IO-Data'!$AN44*Calculations!AT38","v":2.8584160084613788},{"$f":"'Colombia-IO-Data'!$AN44*Calculations!AU38","v":3707.786122563833},{"$f":"AV38*'Colombia-IO-Data'!$AO44","v":0},{"$f":"AW38*'Colombia-IO-Data'!$AO44","v":2.1225413489172946},{"$f":"AX38*'Colombia-IO-Data'!$AO44","v":2753.2484196797059},{"$f":"(AY38*'Default-Data'!$F$19/pv_dollar_index)/'Colombia-IO-Data'!$AP44","v":0},{"$f":"(AZ38*'Default-Data'!$F$19/pv_dollar_index)/'Colombia-IO-Data'!$AP44","v":1.9864223282510293E-4},{"$f":"(BA38*'Default-Data'!$F$19/pv_dollar_index)/'Colombia-IO-Data'!$AP44","v":0.25766820226439474},null,"DOM_C85: Health and social work",0,0,null,0,737666.29436715087,{"$f":"BG38*'Mexico-IO-Data'!AQ44","v":0},{"$f":"BJ38*'Mexico-IO-Data'!$AQ44","v":0},{"$f":"BK38*'Mexico-IO-Data'!$AQ44","v":550862.29309710476},{"$f":"BG38*'Mexico-IO-Data'!AR44","v":0},{"$f":"BJ38*'Mexico-IO-Data'!$AR44","v":0},{"$f":"BK38*'Mexico-IO-Data'!$AR44","v":387003.43442476413},{"$f":"(Calculations!BO38*'Default-Data'!$F$19/pv_dollar_index)/'Mexico-IO-Data'!$AS44","v":0},{"$f":"(Calculations!BP38*'Default-Data'!$F$19/pv_dollar_index)/'Mexico-IO-Data'!$AS44","v":0},{"$f":"(Calculations!BQ38*'Default-Data'!$F$19/pv_dollar_index)/'Mexico-IO-Data'!$AS44","v":166.34060189580927},0,10604.875860386524,{"$f":"BH38*'Mexico-IO-Data'!AQ44","v":0},{"$f":"BU38*'Mexico-IO-Data'!$AQ44","v":0},{"$f":"BV38*'Mexico-IO-Data'!$AQ44","v":7919.334635554138},{"$f":"BH38*'Mexico-IO-Data'!AR44","v":0},{"$f":"BU38*'Mexico-IO-Data'!$AR44","v":0},{"$f":"BV38*'Mexico-IO-Data'!$AR44","v":5563.6585417513434},{"$f":"(BZ38*'Default-Data'!$F$19/pv_dollar_index)/'Mexico-IO-Data'!$AS44","v":0},{"$f":"(CA38*'Default-Data'!$F$19/pv_dollar_index)/'Mexico-IO-Data'!$AS44","v":0},{"$f":"(CB38*'Default-Data'!$F$19/pv_dollar_index)/'Mexico-IO-Data'!$AS44","v":2.3913542574971505},null,"TTL_C85: Health and social work",0,0,null,222674.65719003673,598198.14169268683,{"$f":"CH38*'Philippines-IO-Data'!AN44","v":0},{"$f":"'Philippines-IO-Data'!$AN44*Calculations!CK38","v":115390.80029778676},{"$f":"'Philippines-IO-Data'!$AN44*Calculations!CL38","v":309988.40720189724},{"$f":"CH38*'Philippines-IO-Data'!AO44","v":0},{"$f":"'Philippines-IO-Data'!$AO44*Calculations!CK38","v":73666.670405494748},{"$f":"'Philippines-IO-Data'!$AO44*Calculations!CL38","v":197899.77852597021},{"$f":"(CP38*'Default-Data'!$F$19/pv_dollar_index)/'Philippines-IO-Data'!$AP44","v":0},{"$f":"(CQ38*'Default-Data'!$F$19/pv_dollar_index)/'Philippines-IO-Data'!$AP44","v":18.232961421630716},{"$f":"(CR38*'Default-Data'!$F$19/pv_dollar_index)/'Philippines-IO-Data'!$AP44","v":48.981432272580854},195.50322933624827,6361.7870477117867,{"$f":"CI38*'Philippines-IO-Data'!AN44","v":0},{"$f":"'Philippines-IO-Data'!$AN44*Calculations!CV38","v":101.31046962680948},{"$f":"'Philippines-IO-Data'!$AN44*Calculations!CW38","v":3296.700702375228},{"$f":"'Philippines-IO-Data'!AO44*Calculations!CI38","v":0},{"$f":"'Philippines-IO-Data'!$AO44*Calculations!CV38","v":64.677642891494941},{"$f":"'Philippines-IO-Data'!$AO44*Calculations!CW38","v":2104.6475407112421},{"$f":"(DA38*'Default-Data'!$F$19/pv_dollar_index)/'Philippines-IO-Data'!$AP44","v":0},{"$f":"(DB38*'Default-Data'!$F$19/pv_dollar_index)/'Philippines-IO-Data'!$AP44","v":1.6008120920783121E-2},{"$f":"(DC38*'Default-Data'!$F$19/pv_dollar_index)/'Philippines-IO-Data'!$AP44","v":0.52091342264677343},null,"DOM_C85: Health and social work",0,0,null,113059.16208583133,1058910.1174591263,{"$f":"DI38*'SouthAfrica-IO-Data'!AR44","v":0},{"$f":"DL38*'SouthAfrica-IO-Data'!$AR44","v":52236.987607774063},{"$f":"DM38*'SouthAfrica-IO-Data'!$AR44","v":489250.70434774604},{"$f":"DI38*'SouthAfrica-IO-Data'!AS44","v":0},{"$f":"DL38*'SouthAfrica-IO-Data'!$AS44","v":23051.730212539063},{"$f":"DM38*'SouthAfrica-IO-Data'!$AS44","v":215902.09848242695},{"$f":"(DQ38*'Default-Data'!$F$19/pv_dollar_index)/'SouthAfrica-IO-Data'!$AT44","v":0},{"$f":"(DR38*'Default-Data'!$F$19/pv_dollar_index)/'SouthAfrica-IO-Data'!$AT44","v":1.3455393835770013},{"$f":"(DS38*'Default-Data'!$F$19/pv_dollar_index)/'SouthAfrica-IO-Data'!$AT44","v":12.602298128016646},931.74739217989429,11161.923323356647,{"$f":"DJ38*'SouthAfrica-IO-Data'!AR44","v":0},{"$f":"DW38*'SouthAfrica-IO-Data'!$AR44","v":430.49741463612457},{"$f":"DX38*'SouthAfrica-IO-Data'!$AR44","v":5157.1693931223263},{"$f":"DJ38*'SouthAfrica-IO-Data'!AS44","v":0},{"$f":"DW38*'SouthAfrica-IO-Data'!$AS44","v":189.97478058843177},{"$f":"DX38*'SouthAfrica-IO-Data'!$AS44","v":2275.8141875112137},{"$f":"(EB38*'Default-Data'!$F$19/pv_dollar_index)/'SouthAfrica-IO-Data'!$AT44","v":0},{"$f":"(EC38*'Default-Data'!$F$19/pv_dollar_index)/'SouthAfrica-IO-Data'!$AT44","v":1.1088909457611559E-2},{"$f":"(ED38*'Default-Data'!$F$19/pv_dollar_index)/'SouthAfrica-IO-Data'!$AT44","v":0.13284025063480659},null,"HRRS",0,0,null,0,998991.37569608761,{"$f":"EJ38*'Zambia-IO-Data'!BO42","v":0},{"$f":"EM38*'Zambia-IO-Data'!$BO42","v":0},{"$f":"EN38*'Zambia-IO-Data'!$BO42","v":0},{"$f":"EJ38*'Zambia-IO-Data'!$BN42","v":0},{"$f":"EM38*'Zambia-IO-Data'!$BN42","v":0},{"$f":"EN38*'Zambia-IO-Data'!$BN42","v":0},0,0,0,0,8490.0009003773721,{"$f":"EK38*'Zambia-IO-Data'!BO42","v":0},{"$f":"EX38*'Zambia-IO-Data'!$BO42","v":0},{"$f":"EY38*'Zambia-IO-Data'!$BO42","v":0},{"$f":"EK38*'Zambia-IO-Data'!BN42","v":0},{"$f":"EX38*'Zambia-IO-Data'!$BN42","v":0},{"$f":"EY38*'Zambia-IO-Data'!$BN42","v":0},0,0,0,null,"TTL_C85: Health and social work",0,0,null,245466.74896808609,700328.07037526311,{"$f":"FK38*CustomRegion1!C40","v":0},{"$f":"FN38*CustomRegion1!$C40","v":127201.74341955032},{"$f":"FO38*CustomRegion1!$C40","v":362912.49992871721},{"$f":"FK38*CustomRegion1!D40","v":0},{"$f":"FN38*CustomRegion1!$D40","v":81206.897632306776},{"$f":"FO38*CustomRegion1!$D40","v":231687.06213397958},{"$f":"(FS38*'Default-Data'!$C$58/pv_dollar_index)/CustomRegion1!$E40","v":0},{"$f":"(FT38*'Default-Data'!$C$58/pv_dollar_index)/CustomRegion1!$E40","v":20.183199899334358},{"$f":"(FU38*'Default-Data'!$C$58/pv_dollar_index)/CustomRegion1!$E40","v":57.58360958834696},467.6440123224956,7498.6474128049967,{"$f":"FL38*CustomRegion1!C40","v":0},{"$f":"FY38*CustomRegion1!$C40","v":242.33479246050129},{"$f":"FZ38*CustomRegion1!$C40","v":3885.8257919132984},{"$f":"FL38*CustomRegion1!D40","v":0},{"$f":"FY38*CustomRegion1!$D40","v":154.70901699183491},{"$f":"FZ38*CustomRegion1!$D40","v":2480.7510401809568},{"$f":"(GD38*'Default-Data'!$C$58/pv_dollar_index)/CustomRegion1!$E40","v":0},{"$f":"(GE38*'Default-Data'!$C$58/pv_dollar_index)/CustomRegion1!$E40","v":3.8451450642949789E-2},{"$f":"(GF38*'Default-Data'!$C$58/pv_dollar_index)/CustomRegion1!$E40","v":0.61656701098423194},null,"C74 Other Business Activities",{"$f":"AF35","v":5809002.5676046042},0,null,3341045.6718081264,2245694.1986888498,{"$f":"GL38*CustomRegion2!$C$13","v":3579399.6830119672},{"$f":"GO38*CustomRegion2!C$13","v":2058690.3998443042},{"$f":"GP38*CustomRegion2!D$13","v":248500.99724281256},{"$f":"GL38*CustomRegion2!D44","v":1635755.1913124362},{"$f":"GO38*CustomRegion2!$D44","v":940803.99147175567},{"$f":"GP38*CustomRegion2!$D44","v":632364.31742881297},{"$f":"(GT38*'Default-Data'!$C$59/pv_dollar_index)/CustomRegion2!$E44","v":418.36737526099728},{"$f":"(GU38*'Default-Data'!$C$59/pv_dollar_index)/CustomRegion2!$E44","v":240.62384068077122},{"$f":"(GV38*'Default-Data'!$C$59/pv_dollar_index)/CustomRegion2!$E44","v":161.73605995352909},735690.99943026097,627515.33592632471,{"$f":"GM38*CustomRegion2!C44","v":0},{"$f":"GZ38*CustomRegion2!$C44","v":525073.02954963804},{"$f":"HA38*CustomRegion2!$C44","v":447866.53469848237},{"$f":"GM38*CustomRegion2!D44","v":0},{"$f":"GZ38*CustomRegion2!$D44","v":207162.99528442477},{"$f":"HA38*CustomRegion2!$D44","v":176701.84449460896},{"$f":"(HE38*'Default-Data'!$C$59/pv_dollar_index)/CustomRegion2!$E44","v":0},{"$f":"(HF38*'Default-Data'!$C$59/pv_dollar_index)/CustomRegion2!$E44","v":52.98484702885883},{"$f":"(HG38*'Default-Data'!$C$59/pv_dollar_index)/CustomRegion2!$E44","v":45.193979684498046},null,"HRRS",0,0,null,0,998991.37569608761,{"$f":"HM38*CustomRegion3!D43","v":0},{"$f":"HP38*CustomRegion3!$D43","v":0},{"$f":"HQ38*CustomRegion3!$D43","v":0},{"$f":"HM38*CustomRegion3!E43","v":0},{"$f":"HP38*CustomRegion3!$E43","v":0},{"$f":"HQ38*CustomRegion3!$E43","v":0},0,0,0,0,8490.0009003773721,{"$f":"HN38*CustomRegion3!D43","v":0},{"$f":"IA38*CustomRegion3!$D43","v":0},{"$f":"IB38*CustomRegion3!$D43","v":0},{"$f":"HN38*CustomRegion3!E43","v":0},{"$f":"IA38*CustomRegion3!$E43","v":0},{"$f":"IB38*CustomRegion3!$E43","v":0},0,0,0]
[null,124,"Total",584499074.39861512,70816129.605341107,0,576382963.82401454,981862504.24730563,203276657.34416816,366283173.90645146,369736316.20228416,124176964.76487042,91109374.954682887,144185396.38474849,9046.8857291674976,6530.8662496038269,9306.6697945451142,48273484.413442999,83494115.904405743,34301202.449920699,23449789.197698426,24049926.208507992,11195491.377065569,10019639.386228835,12777370.923234284,557.8154476914591,685.239552411251,861.42758191951214,null,38,"TTL_C90T93: Other community, social and personal services",{"$f":"'Solar-PV-Inputs'!B27*'Solar-PV-Inputs'!C27","v":5111922.2594920518},0,null,770851.9631245276,730778.98817329016,{"$f":"AF39*'Colombia-IO-Data'!AN45","v":2924433.3892997876},{"$f":"AI39*'Colombia-IO-Data'!$AN45","v":440989.73042533261},{"$f":"AJ39*'Colombia-IO-Data'!$AN45","v":418064.74447931832},{"$f":"AK39*'Colombia-IO-Data'!$AO45","v":1116948.0667150787},{"$f":"AL39*'Colombia-IO-Data'!$AO45","v":168430.10637274792},{"$f":"AM39*'Colombia-IO-Data'!$AO45","v":159674.21580414721},{"$f":"(AN39*'Default-Data'!$F$19/pv_dollar_index)/'Colombia-IO-Data'!$AP45","v":223.96596022276591},{"$f":"(AO39*'Default-Data'!$F$19/pv_dollar_index)/'Colombia-IO-Data'!$AP45","v":33.77293146237006},{"$f":"(AP39*'Default-Data'!$F$19/pv_dollar_index)/'Colombia-IO-Data'!$AP45","v":32.017235295967772},1952.7150072185675,7004.1508887914433,{"$f":"'Colombia-IO-Data'!$AN45*Calculations!AG39","v":0},{"$f":"'Colombia-IO-Data'!$AN45*Calculations!AT39","v":1117.1110742721251},{"$f":"'Colombia-IO-Data'!$AN45*Calculations!AU39","v":4006.9413584765271},{"$f":"AV39*'Colombia-IO-Data'!$AO45","v":0},{"$f":"AW39*'Colombia-IO-Data'!$AO45","v":426.66557538279619},{"$f":"AX39*'Colombia-IO-Data'!$AO45","v":1530.3974507221212},{"$f":"(AY39*'Default-Data'!$F$19/pv_dollar_index)/'Colombia-IO-Data'!$AP45","v":0},{"$f":"(AZ39*'Default-Data'!$F$19/pv_dollar_index)/'Colombia-IO-Data'!$AP45","v":8.5553275154182096E-2},{"$f":"(BA39*'Default-Data'!$F$19/pv_dollar_index)/'Colombia-IO-Data'!$AP45","v":0.30686917752720055},null,"DOM_C90T93: Other community, social and personal services",5111922.2594920518,0,null,127265.1473920783,321389.24583164696,{"$f":"BG39*'Mexico-IO-Data'!AQ45","v":3270578.7028892678},{"$f":"BJ39*'Mexico-IO-Data'!$AQ45","v":81423.515372855822},{"$f":"BK39*'Mexico-IO-Data'!$AQ45","v":205623.00625813386},{"$f":"BG39*'Mexico-IO-Data'!AR45","v":574030.82114936085},{"$f":"BJ39*'Mexico-IO-Data'!$AR45","v":14290.928803840652},{"$f":"BK39*'Mexico-IO-Data'!$AR45","v":36089.620171893177},{"$f":"(Calculations!BO39*'Default-Data'!$F$19/pv_dollar_index)/'Mexico-IO-Data'!$AS45","v":388.68851325860646},{"$f":"(Calculations!BP39*'Default-Data'!$F$19/pv_dollar_index)/'Mexico-IO-Data'!$AS45","v":9.6766927230970037},{"$f":"(Calculations!BQ39*'Default-Data'!$F$19/pv_dollar_index)/'Mexico-IO-Data'!$AS45","v":24.43705162136413},331.63361239122946,4620.3724921874782,{"$f":"BH39*'Mexico-IO-Data'!AQ45","v":0},{"$f":"BU39*'Mexico-IO-Data'!$AQ45","v":212.1772935484282},{"$f":"BV39*'Mexico-IO-Data'!$AQ45","v":2956.0879655993272},{"$f":"BH39*'Mexico-IO-Data'!AR45","v":0},{"$f":"BU39*'Mexico-IO-Data'!$AR45","v":37.239986286603333},{"$f":"BV39*'Mexico-IO-Data'!$AR45","v":518.83344093926769},{"$f":"(BZ39*'Default-Data'!$F$19/pv_dollar_index)/'Mexico-IO-Data'!$AS45","v":0},{"$f":"(CA39*'Default-Data'!$F$19/pv_dollar_index)/'Mexico-IO-Data'!$AS45","v":2.5215989055306247E-2},{"$f":"(CB39*'Default-Data'!$F$19/pv_dollar_index)/'Mexico-IO-Data'!$AS45","v":0.35131318974083192},null,"TTL_C90T93: Other community, social and personal services",5111922.2594920518,0,null,1036590.1000825791,769367.93309658021,{"$f":"CH39*'Philippines-IO-Data'!AN45","v":2491352.0884657288},{"$f":"'Philippines-IO-Data'!$AN45*Calculations!CK39","v":505193.69811000308},{"$f":"'Philippines-IO-Data'!$AN45*Calculations!CL39","v":374960.00714009034},{"$f":"CH39*'Philippines-IO-Data'!AO45","v":2141322.0965627143},{"$f":"'Philippines-IO-Data'!$AO45*Calculations!CK39","v":434214.99266022496},{"$f":"'Philippines-IO-Data'!$AO45*Calculations!CL39","v":322278.87512714096},{"$f":"(CP39*'Default-Data'!$F$19/pv_dollar_index)/'Philippines-IO-Data'!$AP45","v":1207.3604089612154},{"$f":"(CQ39*'Default-Data'!$F$19/pv_dollar_index)/'Philippines-IO-Data'!$AP45","v":244.82724572677859},{"$f":"(CR39*'Default-Data'!$F$19/pv_dollar_index)/'Philippines-IO-Data'!$AP45","v":181.71332332378483},1947.8791297695641,8182.1634180420024,{"$f":"CI39*'Philippines-IO-Data'!AN45","v":0},{"$f":"'Philippines-IO-Data'!$AN45*Calculations!CV39","v":949.32052791280432},{"$f":"'Philippines-IO-Data'!$AN45*Calculations!CW39","v":3987.6682165609382},{"$f":"'Philippines-IO-Data'!AO45*Calculations!CI39","v":0},{"$f":"'Philippines-IO-Data'!$AO45*Calculations!CV39","v":815.94289002809978},{"$f":"'Philippines-IO-Data'!$AO45*Calculations!CW39","v":3427.4087975824168},{"$f":"(DA39*'Default-Data'!$F$19/pv_dollar_index)/'Philippines-IO-Data'!$AP45","v":0},{"$f":"(DB39*'Default-Data'!$F$19/pv_dollar_index)/'Philippines-IO-Data'!$AP45","v":0.46006023240253341},{"$f":"(DC39*'Default-Data'!$F$19/pv_dollar_index)/'Philippines-IO-Data'!$AP45","v":1.9325059476894901},null,"DOM_C90T93: Other community, social and personal services",5111922.2594920518,0,null,1879712.95406307,2212666.7730240542,{"$f":"DI39*'SouthAfrica-IO-Data'!AR45","v":3597707.8622406507},{"$f":"DL39*'SouthAfrica-IO-Data'!$AR45","v":1322918.8024194015},{"$f":"DM39*'SouthAfrica-IO-Data'!$AR45","v":1557247.5952751071},{"$f":"DI39*'SouthAfrica-IO-Data'!AS45","v":2000726.5431100875},{"$f":"DL39*'SouthAfrica-IO-Data'!$AS45","v":735690.29607964912},{"$f":"DM39*'SouthAfrica-IO-Data'!$AS45","v":866003.22131793399},{"$f":"(DQ39*'Default-Data'!$F$19/pv_dollar_index)/'SouthAfrica-IO-Data'!$AT45","v":116.78326679609235},{"$f":"(DR39*'Default-Data'!$F$19/pv_dollar_index)/'SouthAfrica-IO-Data'!$AT45","v":42.942558253268693},{"$f":"(DS39*'Default-Data'!$F$19/pv_dollar_index)/'SouthAfrica-IO-Data'!$AT45","v":50.548979614293486},21600.010885669653,23323.619685394871,{"$f":"DJ39*'SouthAfrica-IO-Data'!AR45","v":0},{"$f":"DW39*'SouthAfrica-IO-Data'!$AR45","v":15201.821358601626},{"$f":"DX39*'SouthAfrica-IO-Data'!$AR45","v":16414.875981778692},{"$f":"DJ39*'SouthAfrica-IO-Data'!AS45","v":0},{"$f":"DW39*'SouthAfrica-IO-Data'!$AS45","v":8453.9069486397566},{"$f":"DX39*'SouthAfrica-IO-Data'!$AS45","v":9128.5005164791528},{"$f":"(EB39*'Default-Data'!$F$19/pv_dollar_index)/'SouthAfrica-IO-Data'!$AT45","v":0},{"$f":"(EC39*'Default-Data'!$F$19/pv_dollar_index)/'SouthAfrica-IO-Data'!$AT45","v":0.49345817600722053},{"$f":"(ED39*'Default-Data'!$F$19/pv_dollar_index)/'SouthAfrica-IO-Data'!$AT45","v":0.53283449201762967},null,"HRRM",0,0,null,0,70552.646608761672,{"$f":"EJ39*'Zambia-IO-Data'!BO43","v":0},{"$f":"EM39*'Zambia-IO-Data'!$BO43","v":0},{"$f":"EN39*'Zambia-IO-Data'!$BO43","v":0},{"$f":"EJ39*'Zambia-IO-Data'!$BN43","v":0},{"$f":"EM39*'Zambia-IO-Data'!$BN43","v":0},{"$f":"EN39*'Zambia-IO-Data'!$BN43","v":0},0,0,0,0,606.58126327597608,{"$f":"EK39*'Zambia-IO-Data'!BO43","v":0},{"$f":"EX39*'Zambia-IO-Data'!$BO43","v":0},{"$f":"EY39*'Zambia-IO-Data'!$BO43","v":0},{"$f":"EK39*'Zambia-IO-Data'!BN43","v":0},{"$f":"EX39*'Zambia-IO-Data'!$BN43","v":0},{"$f":"EY39*'Zambia-IO-Data'!$BN43","v":0},0,0,0,null,"TTL_C90T93: Other community, social and personal services",{"$f":"AF39","v":5111922.2594920518},{"$f":"CI39","v":0},null,1153962.4270544266,943971.63084817305,{"$f":"FK39*CustomRegion1!C41","v":2491352.0884657288},{"$f":"FN39*CustomRegion1!$C41","v":562396.40524946002},{"$f":"FO39*CustomRegion1!$C41","v":460055.05846633908},{"$f":"FK39*CustomRegion1!D41","v":2141322.0965627143},{"$f":"FN39*CustomRegion1!$D41","v":483380.83371015807},{"$f":"FO39*CustomRegion1!$D41","v":395418.24172114593},{"$f":"(FS39*'Default-Data'!$C$58/pv_dollar_index)/CustomRegion1!$E41","v":1212.4053965964622},{"$f":"(FT39*'Default-Data'!$C$58/pv_dollar_index)/CustomRegion1!$E41","v":273.68770552652285},{"$f":"(FU39*'Default-Data'!$C$58/pv_dollar_index)/CustomRegion1!$E41","v":223.88374497463693},3025.7470079721188,10107.420688746661,{"$f":"FL39*CustomRegion1!C41","v":0},{"$f":"FY39*CustomRegion1!$C41","v":1474.6314096391022},{"$f":"FZ39*CustomRegion1!$C41","v":4925.9637302099436},{"$f":"FL39*CustomRegion1!D41","v":0},{"$f":"FY39*CustomRegion1!$D41","v":1267.4486421910133},{"$f":"FZ39*CustomRegion1!$D41","v":4233.8756658280918},{"$f":"(GD39*'Default-Data'!$C$58/pv_dollar_index)/CustomRegion1!$E41","v":0},{"$f":"(GE39*'Default-Data'!$C$58/pv_dollar_index)/CustomRegion1!$E41","v":0.71762280703492354},{"$f":"(GF39*'Default-Data'!$C$58/pv_dollar_index)/CustomRegion1!$E41","v":2.3971983075354584},null,"C75 Public admin. and defence; compulsory social security",0,0,null,54689.346755324608,40955.063951059397,{"$f":"GL39*CustomRegion2!$C$13","v":0},{"$f":"GO39*CustomRegion2!C$13","v":33698.561527897866},{"$f":"GP39*CustomRegion2!D$13","v":4531.9501826755795},{"$f":"GL39*CustomRegion2!D45","v":0},{"$f":"GO39*CustomRegion2!$D45","v":40466.998632171089},{"$f":"GP39*CustomRegion2!$D45","v":30304.412380399132},{"$f":"(GT39*'Default-Data'!$C$59/pv_dollar_index)/CustomRegion2!$E45","v":0},{"$f":"(GU39*'Default-Data'!$C$59/pv_dollar_index)/CustomRegion2!$E45","v":27.401067947680801},{"$f":"(GV39*'Default-Data'!$C$59/pv_dollar_index)/CustomRegion2!$E45","v":20.519764025437574},4210.9606067505465,11444.091866175759,{"$f":"GM39*CustomRegion2!C45","v":0},{"$f":"GZ39*CustomRegion2!$C45","v":3158.7419777300065},{"$f":"HA39*CustomRegion2!$C45","v":8584.4862373535216},{"$f":"GM39*CustomRegion2!D45","v":0},{"$f":"GZ39*CustomRegion2!$D45","v":3115.8707723439743},{"$f":"HA39*CustomRegion2!$D45","v":8467.9755266940738},{"$f":"(HE39*'Default-Data'!$C$59/pv_dollar_index)/CustomRegion2!$E45","v":0},{"$f":"(HF39*'Default-Data'!$C$59/pv_dollar_index)/CustomRegion2!$E45","v":2.1098225624599349},{"$f":"(HG39*'Default-Data'!$C$59/pv_dollar_index)/CustomRegion2!$E45","v":5.7338468537120102},null,"HRRM",0,0,null,0,70552.646608761672,{"$f":"HM39*CustomRegion3!D44","v":0},{"$f":"HP39*CustomRegion3!$D44","v":0},{"$f":"HQ39*CustomRegion3!$D44","v":0},{"$f":"HM39*CustomRegion3!E44","v":0},{"$f":"HP39*CustomRegion3!$E44","v":0},{"$f":"HQ39*CustomRegion3!$E44","v":0},0,0,0,0,606.58126327597608,{"$f":"HN39*CustomRegion3!D44","v":0},{"$f":"IA39*CustomRegion3!$D44","v":0},{"$f":"IB39*CustomRegion3!$D44","v":0},{"$f":"HN39*CustomRegion3!E44","v":0},{"$f":"IA39*CustomRegion3!$E44","v":0},{"$f":"IB39*CustomRegion3!$E44","v":0},0,0,0]
[null,null,null,null,null,null,null,null,null,null,null,null,null,null,null,null,null,null,null,null,null,null,null,null,null,null,null,null,null,39,"TTL_C95: Private households with employed persons",0,0,null,0,128747.36619424664,{"$f":"AF40*'Colombia-IO-Data'!AN46","v":0},{"$f":"AI40*'Colombia-IO-Data'!$AN46","v":0},{"$f":"AJ40*'Colombia-IO-Data'!$AN46","v":128747.36619424664},{"$f":"AK40*'Colombia-IO-Data'!$AO46","v":0},{"$f":"AL40*'Colombia-IO-Data'!$AO46","v":0},{"$f":"AM40*'Colombia-IO-Data'!$AO46","v":128747.36619424664},{"$f":"(AN40*'Default-Data'!$F$19/pv_dollar_index)/'Colombia-IO-Data'!$AP46","v":0},{"$f":"(AO40*'Default-Data'!$F$19/pv_dollar_index)/'Colombia-IO-Data'!$AP46","v":0},{"$f":"(AP40*'Default-Data'!$F$19/pv_dollar_index)/'Colombia-IO-Data'!$AP46","v":25.815907073145976},0,1233.9790743205549,{"$f":"'Colombia-IO-Data'!$AN46*Calculations!AG40","v":0},{"$f":"'Colombia-IO-Data'!$AN46*Calculations!AT40","v":0},{"$f":"'Colombia-IO-Data'!$AN46*Calculations!AU40","v":1233.9790743205549},{"$f":"AV40*'Colombia-IO-Data'!$AO46","v":0},{"$f":"AW40*'Colombia-IO-Data'!$AO46","v":0},{"$f":"AX40*'Colombia-IO-Data'!$AO46","v":1233.9790743205549},{"$f":"(AY40*'Default-Data'!$F$19/pv_dollar_index)/'Colombia-IO-Data'!$AP46","v":0},{"$f":"(AZ40*'Default-Data'!$F$19/pv_dollar_index)/'Colombia-IO-Data'!$AP46","v":0},{"$f":"(BA40*'Default-Data'!$F$19/pv_dollar_index)/'Colombia-IO-Data'!$AP46","v":0.24743254991953148},null,"DOM_C95: Private households with employed persons",0,0,null,0,87979.775547142504,{"$f":"BG40*'Mexico-IO-Data'!AQ46","v":0},{"$f":"BJ40*'Mexico-IO-Data'!$AQ46","v":0},{"$f":"BK40*'Mexico-IO-Data'!$AQ46","v":87979.775547142504},{"$f":"BG40*'Mexico-IO-Data'!AR46","v":0},{"$f":"BJ40*'Mexico-IO-Data'!$AR46","v":0},{"$f":"BK40*'Mexico-IO-Data'!$AR46","v":87979.775547142504},{"$f":"(Calculations!BO40*'Default-Data'!$F$19/pv_dollar_index)/'Mexico-IO-Data'!$AS46","v":0},{"$f":"(Calculations!BP40*'Default-Data'!$F$19/pv_dollar_index)/'Mexico-IO-Data'!$AS46","v":0},{"$f":"(Calculations!BQ40*'Default-Data'!$F$19/pv_dollar_index)/'Mexico-IO-Data'!$AS46","v":16.60834261164516},0,1264.8193431456104,{"$f":"BH40*'Mexico-IO-Data'!AQ46","v":0},{"$f":"BU40*'Mexico-IO-Data'!$AQ46","v":0},{"$f":"BV40*'Mexico-IO-Data'!$AQ46","v":1264.8193431456104},{"$f":"BH40*'Mexico-IO-Data'!AR46","v":0},{"$f":"BU40*'Mexico-IO-Data'!$AR46","v":0},{"$f":"BV40*'Mexico-IO-Data'!$AR46","v":1264.8193431456104},{"$f":"(BZ40*'Default-Data'!$F$19/pv_dollar_index)/'Mexico-IO-Data'!$AS46","v":0},{"$f":"(CA40*'Default-Data'!$F$19/pv_dollar_index)/'Mexico-IO-Data'!$AS46","v":0},{"$f":"(CB40*'Default-Data'!$F$19/pv_dollar_index)/'Mexico-IO-Data'!$AS46","v":0.23876570339216505},null,"TTL_C95: Private households with employed persons",0,0,null,0,0,{"$f":"CH40*'Philippines-IO-Data'!AN46","v":0},{"$f":"'Philippines-IO-Data'!$AN46*Calculations!CK40","v":0},{"$f":"'Philippines-IO-Data'!$AN46*Calculations!CL40","v":0},{"$f":"CH40*'Philippines-IO-Data'!AO46","v":0},{"$f":"'Philippines-IO-Data'!$AO46*Calculations!CK40","v":0},{"$f":"'Philippines-IO-Data'!$AO46*Calculations!CL40","v":0},{"$f":"(CP40*'Default-Data'!$F$19/pv_dollar_index)/'Philippines-IO-Data'!$AP46","v":0},{"$f":"(CQ40*'Default-Data'!$F$19/pv_dollar_index)/'Philippines-IO-Data'!$AP46","v":0},{"$f":"(CR40*'Default-Data'!$F$19/pv_dollar_index)/'Philippines-IO-Data'!$AP46","v":0},0,0,{"$f":"CI40*'Philippines-IO-Data'!AN46","v":0},{"$f":"'Philippines-IO-Data'!$AN46*Calculations!CV40","v":0},{"$f":"'Philippines-IO-Data'!$AN46*Calculations!CW40","v":0},{"$f":"'Philippines-IO-Data'!AO46*Calculations!CI40","v":0},{"$f":"'Philippines-IO-Data'!$AO46*Calculations!CV40","v":0},{"$f":"'Philippines-IO-Data'!$AO46*Calculations!CW40","v":0},{"$f":"(DA40*'Default-Data'!$F$19/pv_dollar_index)/'Philippines-IO-Data'!$AP46","v":0},{"$f":"(DB40*'Default-Data'!$F$19/pv_dollar_index)/'Philippines-IO-Data'!$AP46","v":0},{"$f":"(DC40*'Default-Data'!$F$19/pv_dollar_index)/'Philippines-IO-Data'!$AP46","v":0},null,"DOM_C95: Private households with employed persons",0,0,null,0,0,{"$f":"DI40*'SouthAfrica-IO-Data'!AR46","v":0},{"$f":"DL40*'SouthAfrica-IO-Data'!$AR46","v":0},{"$f":"DM40*'SouthAfrica-IO-Data'!$AR46","v":0},{"$f":"DI40*'SouthAfrica-IO-Data'!AS46","v":0},{"$f":"DL40*'SouthAfrica-IO-Data'!$AS46","v":0},{"$f":"DM40*'SouthAfrica-IO-Data'!$AS46","v":0},{"$f":"(DQ40*'Default-Data'!$F$19/pv_dollar_index)/'SouthAfrica-IO-Data'!$AT46","v":0},{"$f":"(DR40*'Default-Data'!$F$19/pv_dollar_index)/'SouthAfrica-IO-Data'!$AT46","v":0},{"$f":"(DS40*'Default-Data'!$F$19/pv_dollar_index)/'SouthAfrica-IO-Data'!$AT46","v":0},0,0,{"$f":"DJ40*'SouthAfrica-IO-Data'!AR46","v":0},{"$f":"DW40*'SouthAfrica-IO-Data'!$AR46","v":0},{"$f":"DX40*'SouthAfrica-IO-Data'!$AR46","v":0},{"$f":"DJ40*'SouthAfrica-IO-Data'!AS46","v":0},{"$f":"DW40*'SouthAfrica-IO-Data'!$AS46","v":0},{"$f":"DX40*'SouthAfrica-IO-Data'!$AS46","v":0},{"$f":"(EB40*'Default-Data'!$F$19/pv_dollar_index)/'SouthAfrica-IO-Data'!$AT46","v":0},{"$f":"(EC40*'Default-Data'!$F$19/pv_dollar_index)/'SouthAfrica-IO-Data'!$AT46","v":0},{"$f":"(ED40*'Default-Data'!$F$19/pv_dollar_index)/'SouthAfrica-IO-Data'!$AT46","v":0},null,"HRRN",0,0,null,0,63240.627071246337,{"$f":"EJ40*'Zambia-IO-Data'!BO44","v":0},{"$f":"EM40*'Zambia-IO-Data'!$BO44","v":0},{"$f":"EN40*'Zambia-IO-Data'!$BO44","v":0},{"$f":"EJ40*'Zambia-IO-Data'!$BN44","v":0},{"$f":"EM40*'Zambia-IO-Data'!$BN44","v":0},{"$f":"EN40*'Zambia-IO-Data'!$BN44","v":0},0,0,0,0,552.13402416660062,{"$f":"EK40*'Zambia-IO-Data'!BO44","v":0},{"$f":"EX40*'Zambia-IO-Data'!$BO44","v":0},{"$f":"EY40*'Zambia-IO-Data'!$BO44","v":0},{"$f":"EK40*'Zambia-IO-Data'!BN44","v":0},{"$f":"EX40*'Zambia-IO-Data'!$BN44","v":0},{"$f":"EY40*'Zambia-IO-Data'!$BN44","v":0},0,0,0,null,"TTL_C95: Private households with employed persons",{"$f":"AF40","v":0},{"$f":"CI40","v":0},null,0,0,{"$f":"FK40*CustomRegion1!C42","v":0},{"$f":"FN40*CustomRegion1!$C42","v":0},{"$f":"FO40*CustomRegion1!$C42","v":0},{"$f":"FK40*CustomRegion1!D42","v":0},{"$f":"FN40*CustomRegion1!$D42","v":0},{"$f":"FO40*CustomRegion1!$D42","v":0},{"$f":"(FS40*'Default-Data'!$C$58/pv_dollar_index)/CustomRegion1!$E42","v":0},{"$f":"(FT40*'Default-Data'!$C$58/pv_dollar_index)/CustomRegion1!$E42","v":0},{"$f":"(FU40*'Default-Data'!$C$58/pv_dollar_index)/CustomRegion1!$E42","v":0},0,0,{"$f":"FL40*CustomRegion1!C42","v":0},{"$f":"FY40*CustomRegion1!$C42","v":0},{"$f":"FZ40*CustomRegion1!$C42","v":0},{"$f":"FL40*CustomRegion1!D42","v":0},{"$f":"FY40*CustomRegion1!$D42","v":0},{"$f":"FZ40*CustomRegion1!$D42","v":0},{"$f":"(GD40*'Default-Data'!$C$58/pv_dollar_index)/CustomRegion1!$E42","v":0},{"$f":"(GE40*'Default-Data'!$C$58/pv_dollar_index)/CustomRegion1!$E42","v":0},{"$f":"(GF40*'Default-Data'!$C$58/pv_dollar_index)/CustomRegion1!$E42","v":0},null,"C80 Education",0,0,null,20935.913728862302,664457.04366867081,{"$f":"GL40*CustomRegion2!$C$13","v":0},{"$f":"GO40*CustomRegion2!C$13","v":12900.321887025262},{"$f":"GP40*CustomRegion2!D$13","v":73526.590607519116},{"$f":"GL40*CustomRegion2!D46","v":0},{"$f":"GO40*CustomRegion2!$D46","v":14188.809147069775},{"$f":"GP40*CustomRegion2!$D46","v":450319.68994234601},{"$f":"(GT40*'Default-Data'!$C$59/pv_dollar_index)/CustomRegion2!$E46","v":0},{"$f":"(GU40*'Default-Data'!$C$59/pv_dollar_index)/CustomRegion2!$E46","v":3.3681044704586931},{"$f":"(GV40*'Default-Data'!$C$59/pv_dollar_index)/CustomRegion2!$E46","v":106.89577575603776},2902.6233354273654,185669.52936414906,{"$f":"GM40*CustomRegion2!C46","v":0},{"$f":"GZ40*CustomRegion2!$C46","v":2585.2625751779888},{"$f":"HA40*CustomRegion2!$C46","v":165369.19543002715},{"$f":"GM40*CustomRegion2!D46","v":0},{"$f":"GZ40*CustomRegion2!$D46","v":1967.1827590420644},{"$f":"HA40*CustomRegion2!$D46","v":125833.0326869062},{"$f":"(HE40*'Default-Data'!$C$59/pv_dollar_index)/CustomRegion2!$E46","v":0},{"$f":"(HF40*'Default-Data'!$C$59/pv_dollar_index)/CustomRegion2!$E46","v":0.46696498460599528},{"$f":"(HG40*'Default-Data'!$C$59/pv_dollar_index)/CustomRegion2!$E46","v":29.869934504804387},null,"HRRN",0,0,null,0,63240.627071246337,{"$f":"HM40*CustomRegion3!D45","v":0},{"$f":"HP40*CustomRegion3!$D45","v":0},{"$f":"HQ40*CustomRegion3!$D45","v":0},{"$f":"HM40*CustomRegion3!E45","v":0},{"$f":"HP40*CustomRegion3!$E45","v":0},{"$f":"HQ40*CustomRegion3!$E45","v":0},0,0,0,0,552.13402416660062,{"$f":"HN40*CustomRegion3!D45","v":0},{"$f":"IA40*CustomRegion3!$D45","v":0},{"$f":"IB40*CustomRegion3!$D45","v":0},{"$f":"HN40*CustomRegion3!E45","v":0},{"$f":"IA40*CustomRegion3!$E45","v":0},{"$f":"IB40*CustomRegion3!$E45","v":0},0,0,0]
[null,null,null,null,null,null,null,null,null,null,null,null,null,null,null,null,null,null,null,null,null,null,null,null,null,null,null,null,null,40,"HH",0,0,null,0,14038045.041254031,{"$f":"AF41*'Colombia-IO-Data'!AN47","v":0},{"$f":"AI41*'Colombia-IO-Data'!$AN47","v":0},{"$f":"AJ41*'Colombia-IO-Data'!$AN47","v":0},0,0,0,0,0,0,0,134547.63648633772,{"$f":"'Colombia-IO-Data'!$AN47*Calculations!AG41","v":0},{"$f":"'Colombia-IO-Data'!$AN47*Calculations!AT41","v":0},{"$f":"'Colombia-IO-Data'!$AN47*Calculations!AU41","v":0},{"$f":"AV41*'Colombia-IO-Data'!$AO47","v":0},{"$f":"AW41*'Colombia-IO-Data'!$AO47","v":0},{"$f":"AX41*'Colombia-IO-Data'!$AO47","v":0},0,0,0,null,"L",0,0,null,0,14621742.305484142,{"$f":"BG41*'Mexico-IO-Data'!AQ47","v":0},{"$f":"BJ41*'Mexico-IO-Data'!$AQ47","v":0},{"$f":"BK41*'Mexico-IO-Data'!$AQ47","v":0},{"$f":"BG41*'Mexico-IO-Data'!AR47","v":0},{"$f":"BJ41*'Mexico-IO-Data'!$AR47","v":0},{"$f":"BK41*'Mexico-IO-Data'!$AR47","v":0},0,0,0,0,210205.83859704447,{"$f":"BH41*'Mexico-IO-Data'!AQ47","v":0},{"$f":"BU41*'Mexico-IO-Data'!$AQ47","v":0},{"$f":"BV41*'Mexico-IO-Data'!$AQ47","v":0},{"$f":"BH41*'Mexico-IO-Data'!AR47","v":0},{"$f":"BU41*'Mexico-IO-Data'!$AR47","v":0},{"$f":"BV41*'Mexico-IO-Data'!$AR47","v":0},0,0,0,null,"LHH",0,0,null,0,13341573.880900716,{"$f":"CH41*'Philippines-IO-Data'!AN47","v":0},{"$f":"'Philippines-IO-Data'!$AN47*Calculations!CK41","v":0},{"$f":"'Philippines-IO-Data'!$AN47*Calculations!CL41","v":0},{"$f":"CH41*'Philippines-IO-Data'!AO47","v":0},{"$f":"'Philippines-IO-Data'!$AO47*Calculations!CK41","v":0},{"$f":"'Philippines-IO-Data'!$AO47*Calculations!CL41","v":0},0,0,0,0,141886.518857171,{"$f":"CI41*'Philippines-IO-Data'!AN47","v":0},{"$f":"'Philippines-IO-Data'!$AN47*Calculations!CV41","v":0},{"$f":"'Philippines-IO-Data'!$AN47*Calculations!CW41","v":0},{"$f":"'Philippines-IO-Data'!AO47*Calculations!CI41","v":0},{"$f":"'Philippines-IO-Data'!$AO47*Calculations!CV41","v":0},{"$f":"'Philippines-IO-Data'!$AO47*Calculations!CW41","v":0},0,0,0,null,"L",0,0,null,0,27102170.615015063,{"$f":"DI41*'SouthAfrica-IO-Data'!AR47","v":0},{"$f":"DL41*'SouthAfrica-IO-Data'!$AR47","v":0},{"$f":"DM41*'SouthAfrica-IO-Data'!$AR47","v":0},{"$f":"DI41*'SouthAfrica-IO-Data'!AS47","v":0},{"$f":"DL41*'SouthAfrica-IO-Data'!$AS47","v":0},{"$f":"DM41*'SouthAfrica-IO-Data'!$AS47","v":0},0,0,0,0,285682.74616849591,{"$f":"DJ41*'SouthAfrica-IO-Data'!AR47","v":0},{"$f":"DW41*'SouthAfrica-IO-Data'!$AR47","v":0},{"$f":"DX41*'SouthAfrica-IO-Data'!$AR47","v":0},{"$f":"DJ41*'SouthAfrica-IO-Data'!AS47","v":0},{"$f":"DW41*'SouthAfrica-IO-Data'!$AS47","v":0},{"$f":"DX41*'SouthAfrica-IO-Data'!$AS47","v":0},0,0,0,null,"HRS",0,0,null,0,1225791.1065622659,{"$f":"EJ41*'Zambia-IO-Data'!BO45","v":0},{"$f":"EM41*'Zambia-IO-Data'!$BO45","v":0},{"$f":"EN41*'Zambia-IO-Data'!$BO45","v":0},{"$f":"EJ41*'Zambia-IO-Data'!$BN45","v":0},{"$f":"EM41*'Zambia-IO-Data'!$BN45","v":0},{"$f":"EN41*'Zambia-IO-Data'!$BN45","v":0},0,0,0,0,10449.020569368809,{"$f":"EK41*'Zambia-IO-Data'!BO45","v":0},{"$f":"EX41*'Zambia-IO-Data'!$BO45","v":0},{"$f":"EY41*'Zambia-IO-Data'!$BO45","v":0},{"$f":"EK41*'Zambia-IO-Data'!BN45","v":0},{"$f":"EX41*'Zambia-IO-Data'!$BN45","v":0},{"$f":"EY41*'Zambia-IO-Data'!$BN45","v":0},0,0,0,null,"LHH",0,0,null,0,17041283.409838952,{"$f":"FK41*CustomRegion1!AM43","v":0},{"$f":"FN41*CustomRegion1!$AM43","v":0},{"$f":"FO41*CustomRegion1!$AM43","v":0},{"$f":"FK41*CustomRegion1!AN43","v":0},{"$f":"FN41*CustomRegion1!$AN43","v":0},{"$f":"FO41*CustomRegion1!$AN43","v":0},0,0,0,0,182466.73403165536,{"$f":"FL41*CustomRegion1!AM43","v":0},{"$f":"FY41*CustomRegion1!$AM43","v":0},{"$f":"FZ41*CustomRegion1!$AM43","v":0},{"$f":"FL41*CustomRegion1!AN43","v":0},{"$f":"FY41*CustomRegion1!$AN43","v":0},{"$f":"FZ41*CustomRegion1!$AN43","v":0},0,0,0,null,"C85 Health and social work",0,0,null,3477.0901641487217,607373.28184256551,{"$f":"GL41*CustomRegion2!$C$13","v":0},{"$f":"GO41*CustomRegion2!C$13","v":2142.518493754108},{"$f":"GP41*CustomRegion2!D$13","v":67209.892747035483},{"$f":"GL41*CustomRegion2!D47","v":0},{"$f":"GO41*CustomRegion2!$D47","v":1504.5140492688454},{"$f":"GP41*CustomRegion2!$D47","v":262806.42506904545},{"$f":"(GT41*'Default-Data'!$C$59/pv_dollar_index)/CustomRegion2!$E47","v":0},{"$f":"(GU41*'Default-Data'!$C$59/pv_dollar_index)/CustomRegion2!$E47","v":0.64666550798978351},{"$f":"(GV41*'Default-Data'!$C$59/pv_dollar_index)/CustomRegion2!$E47","v":112.95863302362878},866.91705818605362,169718.58822569801,{"$f":"GM41*CustomRegion2!C47","v":0},{"$f":"GZ41*CustomRegion2!$C47","v":650.41200989963818},{"$f":"HA41*CustomRegion2!$C47","v":127332.8365647577},{"$f":"GM41*CustomRegion2!D47","v":0},{"$f":"GZ41*CustomRegion2!$D47","v":375.10931037678665},{"$f":"HA41*CustomRegion2!$D47","v":73436.117084456244},{"$f":"(HE41*'Default-Data'!$C$59/pv_dollar_index)/CustomRegion2!$E47","v":0},{"$f":"(HF41*'Default-Data'!$C$59/pv_dollar_index)/CustomRegion2!$E47","v":0.16122830681733077},{"$f":"(HG41*'Default-Data'!$C$59/pv_dollar_index)/CustomRegion2!$E47","v":31.564081427019804},null,"HRS",0,0,null,0,1225791.1065622659,{"$f":"HM41*CustomRegion3!D46","v":0},{"$f":"HP41*CustomRegion3!$D46","v":0},{"$f":"HQ41*CustomRegion3!$D46","v":0},{"$f":"HM41*CustomRegion3!E46","v":0},{"$f":"HP41*CustomRegion3!$E46","v":0},{"$f":"HQ41*CustomRegion3!$E46","v":0},0,0,0,0,10449.020569368809,{"$f":"HN41*CustomRegion3!D46","v":0},{"$f":"IA41*CustomRegion3!$D46","v":0},{"$f":"IB41*CustomRegion3!$D46","v":0},{"$f":"HN41*CustomRegion3!E46","v":0},{"$f":"IA41*CustomRegion3!$E46","v":0},{"$f":"IB41*CustomRegion3!$E46","v":0},0,0,0]
[null,null,null,null,null,null,null,null,null,null,null,null,null,null,null,null,null,null,null,null,null,null,null,null,null,null,null,null,null,41,"Total",{"$f":"SUM(AF7:AF41)","v":40997035.620869495},{"$f":"SUM(AG7:AG41)","v":486078.39708321507},null,26399354.834704999,34408672.548306547,20805535.09995554,14148567.508086869,11188649.174216779,{"$f":"SUM(AN7:AN41)","v":5825012.0624011308},{"$f":"SUM(AO7:AO41)","v":3842267.3319345294},4370765.6469183657,{"$f":"SUM(AQ7:AQ41)","v":1081.3644425100426},{"$f":"SUM(AR7:AR41)","v":690.2631209779413},{"$f":"SUM(AS7:AS41)","v":690.50327775394635},{"$f":"SUM(AT7:AT41)","v":311341.58542382688},{"$f":"SUM(AU7:AU41)","v":329789.90681407694},{"$f":"SUM(AV7:AV41)","v":241368.40803911819},{"$f":"SUM(AW7:AW41)","v":167941.76459318519},{"$f":"SUM(AX7:AX41)","v":107237.60305952144},{"$f":"SUM(AY7:AY41)","v":47600.518483194464},{"$f":"SUM(AZ7:AZ41)","v":45055.516594232809},{"$f":"SUM(BA7:BA41)","v":41891.601408910428},{"$f":"SUM(BB7:BB41)","v":12.81742114953426},{"$f":"SUM(BC7:BC41)","v":8.8138498046666207},{"$f":"SUM(BD7:BD41)","v":6.6181283600984528},null,null,null,null,null,null,null,null,null,null,null,null,null,null,null,null,null,null,null,null,null,null,null,null,null,null,null,null,null,null,null,null,null,null,null,null,null,null,null,null,null,null,null,null,null,null,null,null,null,null,null,null,null,null,null,null,null,null,null,null,null,null,null,null,null,null,null,null,null,null,null,null,null,null,null,null,null,null,null,null,null,null,"HRM",0,0,null,0,140170.01720733749,{"$f":"EJ42*'Zambia-IO-Data'!BO46","v":0},{"$f":"EM42*'Zambia-IO-Data'!$BO46","v":0},{"$f":"EN42*'Zambia-IO-Data'!$BO46","v":0},{"$f":"EJ42*'Zambia-IO-Data'!$BN46","v":0},{"$f":"EM42*'Zambia-IO-Data'!$BN46","v":0},{"$f":"EN42*'Zambia-IO-Data'!$BN46","v":0},0,0,0,0,1217.1990171940777,{"$f":"EK42*'Zambia-IO-Data'!BO46","v":0},{"$f":"EX42*'Zambia-IO-Data'!$BO46","v":0},{"$f":"EY42*'Zambia-IO-Data'!$BO46","v":0},{"$f":"EK42*'Zambia-IO-Data'!BN46","v":0},{"$f":"EX42*'Zambia-IO-Data'!$BN46","v":0},{"$f":"EY42*'Zambia-IO-Data'!$BN46","v":0},0,0,0,null,null,null,null,null,null,null,null,null,null,null,null,null,null,null,null,null,null,null,null,null,null,null,null,null,null,null,null,"C90T93 Other community, social and personal services",{"$f":"AF39","v":5111922.2594920518},0,null,109977.86369067151,820362.83506836277,{"$f":"GL42*CustomRegion2!$C$13","v":3149871.7210505311},{"$f":"GO42*CustomRegion2!C$13","v":67766.32061208575},{"$f":"GP42*CustomRegion2!D$13","v":90778.603219642944},{"$f":"GL42*CustomRegion2!D48","v":698978.59427999391},{"$f":"GO42*CustomRegion2!$D48","v":15037.821129161848},{"$f":"GP42*CustomRegion2!$D48","v":112172.29686756081},{"$f":"(GT42*'Default-Data'!$C$59/pv_dollar_index)/CustomRegion2!$E48","v":473.29331562074782},{"$f":"(GU42*'Default-Data'!$C$59/pv_dollar_index)/CustomRegion2!$E48","v":10.182429448020736},{"$f":"(GV42*'Default-Data'!$C$59/pv_dollar_index)/CustomRegion2!$E48","v":75.954254879479109},16248.839487512645,229234.35449490693,{"$f":"GM42*CustomRegion2!C48","v":0},{"$f":"GZ42*CustomRegion2!$C48","v":11452.185243256255},{"$f":"HA42*CustomRegion2!$C48","v":161564.41780420433},{"$f":"GM42*CustomRegion2!D48","v":0},{"$f":"GZ42*CustomRegion2!$D48","v":2221.7847625858453},{"$f":"HA42*CustomRegion2!$D48","v":31344.355162680655},{"$f":"(HE42*'Default-Data'!$C$59/pv_dollar_index)/CustomRegion2!$E48","v":0},{"$f":"(HF42*'Default-Data'!$C$59/pv_dollar_index)/CustomRegion2!$E48","v":1.5044178541162634},{"$f":"(HG42*'Default-Data'!$C$59/pv_dollar_index)/CustomRegion2!$E48","v":21.223931465627775},null,"HRM",0,0,null,0,140170.01720733749,{"$f":"HM42*CustomRegion3!D47","v":0},{"$f":"HP42*CustomRegion3!$D47","v":0},{"$f":"HQ42*CustomRegion3!$D47","v":0},{"$f":"HM42*CustomRegion3!E47","v":0},{"$f":"HP42*CustomRegion3!$E47","v":0},{"$f":"HQ42*CustomRegion3!$E47","v":0},0,0,0,0,1217.1990171940777,{"$f":"HN42*CustomRegion3!D47","v":0},{"$f":"IA42*CustomRegion3!$D47","v":0},{"$f":"IB42*CustomRegion3!$D47","v":0},{"$f":"HN42*CustomRegion3!E47","v":0},{"$f":"IA42*CustomRegion3!$E47","v":0},{"$f":"IB42*CustomRegion3!$E47","v":0},0,0,0]
[null,null,null,null,null,null,null,null,null,null,null,null,null,null,null,null,null,null,null,null,null,null,null,null,null,null,null,null,null,42,null,null,null,null,null,null,null,null,null,null,null,null,null,null,null,null,null,null,null,null,null,null,null,null,null,null,null,null,null,null,null,null,null,null,null,null,null,null,null,null,null,null,null,null,null,null,null,null,null,null,null,null,null,null,null,null,null,null,null,null,null,null,null,null,null,null,null,null,null,null,null,null,null,null,null,null,null,null,null,null,null,null,null,null,null,null,null,null,null,null,null,null,null,null,null,null,null,null,null,null,null,null,null,null,null,null,null,null,"HRL",0,0,null,0,158939.12904820827,{"$f":"EJ43*'Zambia-IO-Data'!BO47","v":0},{"$f":"EM43*'Zambia-IO-Data'!$BO47","v":0},{"$f":"EN43*'Zambia-IO-Data'!$BO47","v":0},{"$f":"EJ43*'Zambia-IO-Data'!$BN47","v":0},{"$f":"EM43*'Zambia-IO-Data'!$BN47","v":0},{"$f":"EN43*'Zambia-IO-Data'!$BN47","v":0},0,0,0,0,1406.6884792669719,{"$f":"EK43*'Zambia-IO-Data'!BO47","v":0},{"$f":"EX43*'Zambia-IO-Data'!$BO47","v":0},{"$f":"EY43*'Zambia-IO-Data'!$BO47","v":0},{"$f":"EK43*'Zambia-IO-Data'!BN47","v":0},{"$f":"EX43*'Zambia-IO-Data'!$BN47","v":0},{"$f":"EY43*'Zambia-IO-Data'!$BN47","v":0},0,0,0,null,null,null,null,null,null,null,null,null,null,null,null,null,null,null,null,null,null,null,null,null,null,null,null,null,null,null,null,"C95 Private households with employed persons",0,0,null,0,181309.98761210096,{"$f":"GL43*CustomRegion2!$C$13","v":0},{"$f":"GO43*CustomRegion2!C$13","v":0},{"$f":"GP43*CustomRegion2!D$13","v":20063.155864228927},{"$f":"GL43*CustomRegion2!D49","v":0},{"$f":"GO43*CustomRegion2!$D49","v":0},{"$f":"GP43*CustomRegion2!$D49","v":181309.98761210096},{"$f":"(GT43*'Default-Data'!$C$59/pv_dollar_index)/CustomRegion2!$E49","v":0},{"$f":"(GU43*'Default-Data'!$C$59/pv_dollar_index)/CustomRegion2!$E49","v":0},{"$f":"(GV43*'Default-Data'!$C$59/pv_dollar_index)/CustomRegion2!$E49","v":34.226711473722496},0,50663.531058517583,{"$f":"GM43*CustomRegion2!C49","v":0},{"$f":"GZ43*CustomRegion2!$C49","v":0},{"$f":"HA43*CustomRegion2!$C49","v":50663.531058517583},{"$f":"GM43*CustomRegion2!D49","v":0},{"$f":"GZ43*CustomRegion2!$D49","v":0},{"$f":"HA43*CustomRegion2!$D49","v":50663.531058517583},{"$f":"(HE43*'Default-Data'!$C$59/pv_dollar_index)/CustomRegion2!$E49","v":0},{"$f":"(HF43*'Default-Data'!$C$59/pv_dollar_index)/CustomRegion2!$E49","v":0},{"$f":"(HG43*'Default-Data'!$C$59/pv_dollar_index)/CustomRegion2!$E49","v":9.5639853193841731},null,"HRL",0,0,null,0,158939.12904820827,{"$f":"HM43*CustomRegion3!D48","v":0},{"$f":"HP43*CustomRegion3!$D48","v":0},{"$f":"HQ43*CustomRegion3!$D48","v":0},{"$f":"HM43*CustomRegion3!E48","v":0},{"$f":"HP43*CustomRegion3!$E48","v":0},{"$f":"HQ43*CustomRegion3!$E48","v":0},0,0,0,0,1406.6884792669719,{"$f":"HN43*CustomRegion3!D48","v":0},{"$f":"IA43*CustomRegion3!$D48","v":0},{"$f":"IB43*CustomRegion3!$D48","v":0},{"$f":"HN43*CustomRegion3!E48","v":0},{"$f":"IA43*CustomRegion3!$E48","v":0},{"$f":"IB43*CustomRegion3!$E48","v":0},0,0,0]
[null,null,null,null,null,null,null,null,null,null,null,null,null,null,null,null,null,null,null,null,null,null,null,null,null,null,null,null,null,43,null,null,null,null,null,null,null,null,null,null,null,null,null,null,null,null,null,null,null,null,null,null,null,null,null,null,null,null,null,null,null,null,null,null,null,null,null,null,null,null,null,null,null,null,null,null,null,null,null,null,null,null,null,null,null,null,null,null,null,null,null,null,null,null,null,null,null,null,null,null,null,null,null,null,null,null,null,null,null,null,null,null,null,null,null,null,null,null,null,null,null,null,null,null,null,null,null,null,null,null,null,null,null,null,null,null,null,null,"HRN",0,0,null,0,121163.68272479423,{"$f":"EJ44*'Zambia-IO-Data'!BO48","v":0},{"$f":"EM44*'Zambia-IO-Data'!$BO48","v":0},{"$f":"EN44*'Zambia-IO-Data'!$BO48","v":0},{"$f":"EJ44*'Zambia-IO-Data'!$BN48","v":0},{"$f":"EM44*'Zambia-IO-Data'!$BN48","v":0},{"$f":"EN44*'Zambia-IO-Data'!$BN48","v":0},0,0,0,0,1056.5923444641337,{"$f":"EK44*'Zambia-IO-Data'!BO48","v":0},{"$f":"EX44*'Zambia-IO-Data'!$BO48","v":0},{"$f":"EY44*'Zambia-IO-Data'!$BO48","v":0},{"$f":"EK44*'Zambia-IO-Data'!BN48","v":0},{"$f":"EX44*'Zambia-IO-Data'!$BN48","v":0},{"$f":"EY44*'Zambia-IO-Data'!$BN48","v":0},0,0,0,null,null,null,null,null,null,null,null,null,null,null,null,null,null,null,null,null,null,null,null,null,null,null,null,null,null,null,null,"L",0,0,null,0,23587011.75585993,{"$f":"GL44*CustomRegion2!$C$13","v":0},{"$f":"GO44*CustomRegion2!C$13","v":0},{"$f":"GP44*CustomRegion2!D$13","v":2610059.7074754504},{"$f":"GL44*CustomRegion2!D50","v":0},{"$f":"GO44*CustomRegion2!$D50","v":0},{"$f":"GP44*CustomRegion2!$D50","v":0},0,0,0,0,6590929.2610357683,{"$f":"GM44*CustomRegion2!C50","v":0},{"$f":"GZ44*CustomRegion2!$C50","v":0},{"$f":"HA44*CustomRegion2!$C50","v":0},{"$f":"GM44*CustomRegion2!D50","v":0},{"$f":"GZ44*CustomRegion2!$D50","v":0},{"$f":"HA44*CustomRegion2!$D50","v":0},0,0,0,null,"HRN",0,0,null,0,121163.68272479423,{"$f":"HM44*CustomRegion3!D49","v":0},{"$f":"HP44*CustomRegion3!$D49","v":0},{"$f":"HQ44*CustomRegion3!$D49","v":0},{"$f":"HM44*CustomRegion3!E49","v":0},{"$f":"HP44*CustomRegion3!$E49","v":0},{"$f":"HQ44*CustomRegion3!$E49","v":0},0,0,0,0,1056.5923444641337,{"$f":"HN44*CustomRegion3!D49","v":0},{"$f":"IA44*CustomRegion3!$D49","v":0},{"$f":"IB44*CustomRegion3!$D49","v":0},{"$f":"HN44*CustomRegion3!E49","v":0},{"$f":"IA44*CustomRegion3!$E49","v":0},{"$f":"IB44*CustomRegion3!$E49","v":0},0,0,0]
[null,null,null,null,null,null,null,null,null,null,null,null,null,null,null,null,null,null,null,null,null,null,null,null,null,null,null,null,null,44,null,null,null,null,null,null,null,null,null,null,null,null,null,null,null,null,null,null,null,null,null,null,null,null,null,null,null,null,null,null,null,null,null,null,null,null,null,null,null,null,null,null,null,null,null,null,null,null,null,null,null,null,null,null,null,null,null,null,null,null,null,null,null,null,null,null,null,null,null,null,null,null,null,null,null,null,null,null,null,null,null,null,null,null,null,null,null,null,null,null,null,null,null,null,null,null,null,null,null,null,null,null,null,null,null,null,null,null,"HUSE",0,0,null,0,495447.50426921929,{"$f":"EJ45*'Zambia-IO-Data'!BO49","v":0},{"$f":"EM45*'Zambia-IO-Data'!$BO49","v":0},{"$f":"EN45*'Zambia-IO-Data'!$BO49","v":0},{"$f":"EJ45*'Zambia-IO-Data'!$BN49","v":0},{"$f":"EM45*'Zambia-IO-Data'!$BN49","v":0},{"$f":"EN45*'Zambia-IO-Data'!$BN49","v":0},0,0,0,0,4333.2986335095065,{"$f":"EK45*'Zambia-IO-Data'!BO49","v":0},{"$f":"EX45*'Zambia-IO-Data'!$BO49","v":0},{"$f":"EY45*'Zambia-IO-Data'!$BO49","v":0},{"$f":"EK45*'Zambia-IO-Data'!BN49","v":0},{"$f":"EX45*'Zambia-IO-Data'!$BN49","v":0},{"$f":"EY45*'Zambia-IO-Data'!$BN49","v":0},0,0,0,null,null,null,null,null,null,null,null,null,null,null,null,null,null,null,null,null,null,null,null,null,null,null,null,null,null,null,null,"HH",0,0,null,0,23587011.75585993,{"$f":"GL45*CustomRegion2!$C$13","v":0},{"$f":"GO45*CustomRegion2!C$13","v":0},{"$f":"GP45*CustomRegion2!D$13","v":2610059.7074754504},{"$f":"GL45*CustomRegion2!D51","v":0},{"$f":"GO45*CustomRegion2!$D51","v":0},{"$f":"GP45*CustomRegion2!$D51","v":0},0,0,0,0,6590929.2610357683,{"$f":"GM45*CustomRegion2!C51","v":0},{"$f":"GZ45*CustomRegion2!$C51","v":0},{"$f":"HA45*CustomRegion2!$C51","v":0},{"$f":"GM45*CustomRegion2!D51","v":0},{"$f":"GZ45*CustomRegion2!$D51","v":0},{"$f":"HA45*CustomRegion2!$D51","v":0},0,0,0,null,"HUSE",0,0,null,0,495447.50426921929,{"$f":"HM45*CustomRegion3!D50","v":0},{"$f":"HP45*CustomRegion3!$D50","v":0},{"$f":"HQ45*CustomRegion3!$D50","v":0},{"$f":"HM45*CustomRegion3!E50","v":0},{"$f":"HP45*CustomRegion3!$E50","v":0},{"$f":"HQ45*CustomRegion3!$E50","v":0},0,0,0,0,4333.2986335095065,{"$f":"HN45*CustomRegion3!D50","v":0},{"$f":"IA45*CustomRegion3!$D50","v":0},{"$f":"IB45*CustomRegion3!$D50","v":0},{"$f":"HN45*CustomRegion3!E50","v":0},{"$f":"IA45*CustomRegion3!$E50","v":0},{"$f":"IB45*CustomRegion3!$E50","v":0},0,0,0]
[null,null,null,null,null,null,null,null,null,null,null,null,null,null,null,null,null,null,null,null,null,null,null,null,null,null,null,null,null,45,null,null,null,null,null,null,null,null,null,null,null,null,null,null,null,null,null,null,null,null,null,null,null,null,null,null,null,null,null,null,null,null,null,null,null,null,null,null,null,null,null,null,null,null,null,null,null,null,null,null,null,null,null,null,null,null,null,null,null,null,null,null,null,null,null,null,null,null,null,null,null,null,null,null,null,null,null,null,null,null,null,null,null,null,null,null,null,null,null,null,null,null,null,null,null,null,null,null,null,null,null,null,null,null,null,null,null,null,"HUPR",0,0,null,0,1187901.6539494446,{"$f":"EJ46*'Zambia-IO-Data'!BO50","v":0},{"$f":"EM46*'Zambia-IO-Data'!$BO50","v":0},{"$f":"EN46*'Zambia-IO-Data'!$BO50","v":0},{"$f":"EJ46*'Zambia-IO-Data'!$BN50","v":0},{"$f":"EM46*'Zambia-IO-Data'!$BN50","v":0},{"$f":"EN46*'Zambia-IO-Data'!$BN50","v":0},0,0,0,0,10471.004896673554,{"$f":"EK46*'Zambia-IO-Data'!BO50","v":0},{"$f":"EX46*'Zambia-IO-Data'!$BO50","v":0},{"$f":"EY46*'Zambia-IO-Data'!$BO50","v":0},{"$f":"EK46*'Zambia-IO-Data'!BN50","v":0},{"$f":"EX46*'Zambia-IO-Data'!$BN50","v":0},{"$f":"EY46*'Zambia-IO-Data'!$BN50","v":0},0,0,0,null,null,null,null,null,null,null,null,null,null,null,null,null,null,null,null,null,null,null,null,null,null,null,null,null,null,null,null,null,null,null,null,null,null,null,null,null,null,null,null,null,null,null,null,null,null,null,null,null,null,null,null,null,null,null,"HUPR",0,0,null,0,1187901.6539494446,{"$f":"HM46*CustomRegion3!D51","v":0},{"$f":"HP46*CustomRegion3!$D51","v":0},{"$f":"HQ46*CustomRegion3!$D51","v":0},{"$f":"HM46*CustomRegion3!E51","v":0},{"$f":"HP46*CustomRegion3!$E51","v":0},{"$f":"HQ46*CustomRegion3!$E51","v":0},0,0,0,0,10471.004896673554,{"$f":"HN46*CustomRegion3!D51","v":0},{"$f":"IA46*CustomRegion3!$D51","v":0},{"$f":"IB46*CustomRegion3!$D51","v":0},{"$f":"HN46*CustomRegion3!E51","v":0},{"$f":"IA46*CustomRegion3!$E51","v":0},{"$f":"IB46*CustomRegion3!$E51","v":0},0,0,0]
[null,null,{"$f":"wind_country","v":"Colombia"},null,null,null,"Construction",null,null,null,null,null,null,null,null,null,null,"O&M",null,null,null,null,null,null,null,null,null,null,null,46,null,null,null,null,null,null,null,null,null,null,null,null,null,null,null,null,null,null,null,null,null,null,null,null,null,null,null,null,null,null,null,null,null,null,null,null,null,null,null,null,null,null,null,null,null,null,null,null,null,null,null,null,null,null,null,null,null,null,null,null,null,null,null,null,null,null,null,null,null,null,null,null,null,null,null,null,null,null,null,null,null,null,null,null,null,null,null,null,null,null,null,null,null,null,null,null,null,null,null,null,null,null,null,null,null,null,null,null,"HUPU",0,0,null,0,2024837.5737159923,{"$f":"EJ47*'Zambia-IO-Data'!BO51","v":0},{"$f":"EM47*'Zambia-IO-Data'!$BO51","v":0},{"$f":"EN47*'Zambia-IO-Data'!$BO51","v":0},{"$f":"EJ47*'Zambia-IO-Data'!$BN51","v":0},{"$f":"EM47*'Zambia-IO-Data'!$BN51","v":0},{"$f":"EN47*'Zambia-IO-Data'!$BN51","v":0},0,0,0,0,17851.473760895577,{"$f":"EK47*'Zambia-IO-Data'!BO51","v":0},{"$f":"EX47*'Zambia-IO-Data'!$BO51","v":0},{"$f":"EY47*'Zambia-IO-Data'!$BO51","v":0},{"$f":"EK47*'Zambia-IO-Data'!BN51","v":0},{"$f":"EX47*'Zambia-IO-Data'!$BN51","v":0},{"$f":"EY47*'Zambia-IO-Data'!$BN51","v":0},0,0,0,null,null,null,null,null,null,null,null,null,null,null,null,null,null,null,null,null,null,null,null,null,null,null,null,null,null,null,null,null,null,null,null,null,null,null,null,null,null,null,null,null,null,null,null,null,null,null,null,null,null,null,null,null,null,null,"HUPU",0,0,null,0,2024837.5737159923,{"$f":"HM47*CustomRegion3!D52","v":0},{"$f":"HP47*CustomRegion3!$D52","v":0},{"$f":"HQ47*CustomRegion3!$D52","v":0},{"$f":"HM47*CustomRegion3!E52","v":0},{"$f":"HP47*CustomRegion3!$E52","v":0},{"$f":"HQ47*CustomRegion3!$E52","v":0},0,0,0,0,17851.473760895577,{"$f":"HN47*CustomRegion3!D52","v":0},{"$f":"IA47*CustomRegion3!$D52","v":0},{"$f":"IB47*CustomRegion3!$D52","v":0},{"$f":"HN47*CustomRegion3!E52","v":0},{"$f":"IA47*CustomRegion3!$E52","v":0},{"$f":"IB47*CustomRegion3!$E52","v":0},0,0,0]
[null,null,"Wind",null,null,null,"Output",null,"Value Added",null,null,"Earnings",null,null,"Jobs",null,null,"Output",null,"Value Added",null,null,"Earnings",null,null,"Jobs",null,null,null,47,null,null,null,null,null,null,null,null,null,null,null,null,null,null,null,null,null,null,null,null,null,null,null,null,null,null,null,null,null,null,null,null,null,null,null,null,null,null,null,null,null,null,null,null,null,null,null,null,null,null,null,null,null,null,null,null,null,null,null,null,null,null,null,null,null,null,null,null,null,null,null,null,null,null,null,null,null,null,null,null,null,null,null,null,null,null,null,null,null,null,null,null,null,null,null,null,null,null,null,null,null,null,null,null,null,null,null,null,"HUEM",0,0,null,0,128519.74352724076,{"$f":"EJ48*'Zambia-IO-Data'!BO52","v":0},{"$f":"EM48*'Zambia-IO-Data'!$BO52","v":0},{"$f":"EN48*'Zambia-IO-Data'!$BO52","v":0},{"$f":"EJ48*'Zambia-IO-Data'!$BN52","v":0},{"$f":"EM48*'Zambia-IO-Data'!$BN52","v":0},{"$f":"EN48*'Zambia-IO-Data'!$BN52","v":0},0,0,0,0,1142.584190594966,{"$f":"EK48*'Zambia-IO-Data'!BO52","v":0},{"$f":"EX48*'Zambia-IO-Data'!$BO52","v":0},{"$f":"EY48*'Zambia-IO-Data'!$BO52","v":0},{"$f":"EK48*'Zambia-IO-Data'!BN52","v":0},{"$f":"EX48*'Zambia-IO-Data'!$BN52","v":0},{"$f":"EY48*'Zambia-IO-Data'!$BN52","v":0},0,0,0,null,null,null,null,null,null,null,null,null,null,null,null,null,null,null,null,null,null,null,null,null,null,null,null,null,null,null,null,null,null,null,null,null,null,null,null,null,null,null,null,null,null,null,null,null,null,null,null,null,null,null,null,null,null,null,"HUEM",0,0,null,0,128519.74352724076,{"$f":"HM48*CustomRegion3!D53","v":0},{"$f":"HP48*CustomRegion3!$D53","v":0},{"$f":"HQ48*CustomRegion3!$D53","v":0},{"$f":"HM48*CustomRegion3!E53","v":0},{"$f":"HP48*CustomRegion3!$E53","v":0},{"$f":"HQ48*CustomRegion3!$E53","v":0},0,0,0,0,1142.584190594966,{"$f":"HN48*CustomRegion3!D53","v":0},{"$f":"IA48*CustomRegion3!$D53","v":0},{"$f":"IB48*CustomRegion3!$D53","v":0},{"$f":"HN48*CustomRegion3!E53","v":0},{"$f":"IA48*CustomRegion3!$E53","v":0},{"$f":"IB48*CustomRegion3!$E53","v":0},0,0,0]
[null,null,null,"Construction","O&M",null,"Indirect","Induced","Direct","Indirect","Induced","Direct","Indirect","Induced","Direct","Indirect","Induced","Indirect","Induced","Direct","Indirect","Induced","Direct","Indirect","Induced","Direct","Indirect","Induced",null,48]
[null,178,"Agriculture",{"$f":"HLOOKUP(wind_country&D$1,$AF$2:$IK$255,$B50,FALSE)","v":0},0,0,1115998.6953628906,4444375.0722342618,0,772606.93233625509,3076844.9864487313,0,203974.16202729539,{"$f":"HLOOKUP(wind_country&N$1,$AF$2:$IK$255,$B50,FALSE)","v":812310.69969952246},0,33.391267520026751,132.97803806845488,3432.8525535388471,49210.37804691559,0,2376.5670081629396,34068.390384248385,0,627.43193686589245,8994.316630363146,0,0.10271275266567323,1.4724003755146773,null,49,"Agriculture",{"$f":"AF7","v":0},{"$f":"AG7","v":0},null,{"$f":"AI7","v":173674.16232138284},1238991.1007622534,0,120234.78372755654,857754.68871903419,0,31742.906037876091,226453.82345637865,0,6.3649605947592063,45.407615204245793,3949.6305282653038,11875.109657026387,0,2734.332879584967,8221.1494344878392,0,721.8848737617692,2170.4465707162549,0,0.1447494684312722,0.43520926783310854,null,"Agriculture",{"$f":"BG7","v":0},{"$f":"BH7","v":0},null,{"$f":"BJ7","v":75658.894015080077},764565.70505385322,0,46142.502556306681,466289.8587029326,0,7601.2733225547972,76814.140264960661,0,7.0962525257269879,71.710687635629952,1894.0918412314702,10991.588542297475,0,1155.1601270893921,6703.5000843356656,0,190.2950072248189,1104.299366871684,0,0.17765200228301903,1.0309308505023052,null,"Agriculture",{"$f":"CH7","v":0},{"$f":"CI7","v":0},null,{"$f":"CK7","v":276283.26255971449},2455368.0542141087,0,194988.78962674932,1732892.686092111,0,56126.693223671762,498805.78451723326,0,31.646405458081595,281.24603811526981,2706.1383803259173,26112.633249685623,0,1909.8755474852378,18429.168325833423,0,549.74954793191182,5304.7576682303916,0,0.30997010682455106,2.9910280186412899,null,"Agriculture",{"$f":"DI7","v":0},{"$f":"DJ7","v":0},null,{"$f":"DL7","v":294931.05782310892},1499394.4446934033,0,119107.57536682169,605528.75693758205,0,36537.305373711257,185751.31797162862,0,2.4918123241334547,12.668077697890775,3431.3289207217754,15805.048556239428,0,1385.7383181338214,6382.8510499481999,0,425.08752228208118,1957.9961832707572,0,2.8990597856731134E-2,0.13353363008512309,null,"Agriculture",{"$f":"SUM(EJ7:EJ19)","v":0},{"$f":"SUM(EK7:EK19)","v":0},{"$f":"SUM(EL7:EL19)","v":0},347928.93801249936,3019261.8327390291,0,100994.54503224517,1127110.6817184517,0,65308.736291490051,902875.08430646372,0,618.17579911464418,8546.1081998393656,6435.4399870016641,26012.268054744654,0,1800.4274729749241,9702.9369132625779,0,1143.3123908884509,7771.770325865612,0,10.821952636177969,73.563210751537241,null,"Agriculture",{"$f":"FK7","v":0},{"$f":"FL7","v":0},null,{"$f":"FN7","v":537344.35782271449},3261970.0932106487,0,379234.43126406614,2302157.5551878638,0,109161.0170213185,662666.25430071168,0,61.806398181315672,375.1981750649328,6235.9841173236609,34927.00726245984,0,4401.0881582295078,24649.972670421055,0,1266.8344953580613,7095.3897231372875,0,0.71727508030302789,4.0173726339888711,null,"Agriculture",{"$f":"GL7","v":0},{"$f":"GM7","v":0},0,194878.97990369968,1998824.2789393507,0,120080.814352375,221183.19890552273,0,21564.655096854192,221183.19890552273,0,20.131921548382099,206.48801421524931,82577.266384938441,558532.36366226547,0,50882.580560491529,344157.28727574495,0,9137.723675032652,61805.320351940289,0,8.5306226939556673,{"$f":"HJ7","v":57.699038311046095},null,"Agriculture",{"$f":"SUM(HM7:HM19)","v":0},{"$f":"SUM(HN7:HN19)","v":0},{"$f":"SUM(HO7:HO19)","v":0},347928.93801249936,3019261.8327390291,0,100994.54503224517,1127110.6817184517,0,65308.736291490051,902875.08430646372,0,620.67949199942359,8580.7210564460747,6435.4399870016641,26012.268054744654,0,1800.4274729749241,9702.9369132625779,0,1143.3123908884509,7771.770325865612,0,0,0]
[null,179,"Mining and Extraction",0,0,0,12699157.34108174,1122684.1447516549,0,10399127.27502913,919347.24465231271,0,862531.74495543574,76253.147228425471,0,65.902096152479388,5.8261533792434506,228196.08337072891,12430.929049094062,0,186865.95109413992,10179.479618714169,0,15499.167440426787,844.31357421223902,0,1.184220324546035,6.4510129251478573E-2,null,50,"Mining and Extraction",{"$f":"AF8","v":0},{"$f":"AG8","v":0},null,{"$f":"AI8","v":2268236.0984808644},312978.90967939887,0,1857420.5551113184,256293.18770836436,0,154059.48500729084,21257.650240045485,0,14.417961801000542,1.989439268380659,43513.219618106144,2999.7462213351391,0,35632.246833508041,2456.4419441860846,0,2955.4349346015097,203.74393931962061,0,0.2765902274073585,1.9067779787506383E-2,null,"Mining and Extraction",{"$f":"BG8","v":0},{"$f":"BH8","v":0},null,{"$f":"BJ8","v":2409278.7583276574},422268.41652345378,0,2074213.968427924,363542.42735566897,0,128729.6371308052,22562.129783850967,0,6.5796910120672871,1.1532064088789007,33086.420103619341,6070.636778700893,0,28485.003865571125,5226.377213558294,0,1767.833148893372,324.35884265111991,0,9.0358336587160498E-2,1.6578784880031394E-2,null,"Mining and Extraction",{"$f":"CH8","v":0},{"$f":"CI8","v":0},null,{"$f":"CK8","v":688347.71450004319},137204.41272787086,0,396272.35214374406,78986.701358723003,0,103586.56422322906,20647.317353365208,0,31.494495863800267,6.277617718672329,12371.177003959414,1459.1574178267692,0,7121.9171748194794,840.01694191746958,0,1861.6866072815235,219.58248773048584,0,0.56602785884824236,6.6761937742114461E-2,null,"Mining and Extraction",{"$f":"DI8","v":0},{"$f":"DJ8","v":0},null,{"$f":"DL8","v":4524456.4470249843},792484.31701305788,0,2694741.6493921434,471999.34855144407,0,913011.53754966939,159919.17111631247,0,56.773826819062748,9.9442591386876753,38421.861564394385,8353.5410943921743,0,22883.851754796433,4975.3236373330737,0,7753.3297785404784,1685.7006997139586,0,0.48212556360383607,0.10482198270043958,null,"Mining and Extraction",{"$f":"EJ20","v":0},{"$f":"EK20","v":0},{"$f":"EL20","v":0},3205479.4159937161,79183.715836037882,0,783137.76734270272,19345.548787593678,0,28561.800677963056,705.55109396896978,0,24.608197041450918,0.60788675542419945,78028.077532278985,691.40228551311884,0,19063.212237077758,168.91802190672601,0,695.25400370437717,6.1606055457984938,0,0.59901501694238135,5.307837446069468E-3,null,"Mining and Extraction",{"$f":"FK8","v":0},{"$f":"FL8","v":0},null,{"$f":"FN8","v":5380288.974387737},1266151.3291186057,0,3097358.6781532736,728905.97991478653,0,809657.15094985114,190537.80989936451,0,247.19706983717094,58.17325054815965,79964.022083058386,13557.106718894429,0,46034.192385955612,7804.6406701038222,0,12033.450732193742,2040.1522024924798,0,3.6739424304948747,0.6228804943998183,null,"Mining and Extraction",{"$f":"GL8","v":0},{"$f":"GM8","v":0},0,2588640.7102429783,1109977.5430101133,0,1595072.4121467241,122826.39662879473,0,166027.51298834383,71190.571256056544,0,8.4860779484313138,3.6387266543868728,652921.61955658486,310161.52207158762,0,530600.4689519119,252054.52558576319,0,41876.39954913879,19892.813216783368,0,2.1404066372938715,{"$f":"HJ8","v":1.0167710190482704},null,"Mining and Extraction",{"$f":"HM20","v":0},{"$f":"HN20","v":0},{"$f":"HO20","v":0},3205479.4159937161,79183.715836037882,0,783137.76734270272,19345.548787593678,0,28561.800677963056,705.55109396896978,0,24.707863459851914,0.61034877633554363,78028.077532278985,691.40228551311884,0,19063.212237077758,168.91802190672601,0,695.25400370437717,6.1606055457984938,0,0.60144110615186286,5.3293348823429719E-3]
[null,180,"Utilities",0,2106178.9064264097,0,3536727.1530196797,3274069.0637637395,0,1870533.2281847729,1731616.4663459994,0,329665.43654127588,305182.54885746731,0,25.188224577420915,23.317599377055597,638593.29338778835,36252.155536126811,1113933.1530306898,337744.45211526297,19173.336983530218,196321.16320544048,59524.562605082843,3379.136179667003,15,4.5479989243029264,0.25818430304410706,null,51,"Utilities",{"$f":"AF25","v":6172065.2280798918},{"$f":"AG25","v":0},null,{"$f":"AI25","v":2810427.8914810317},912736.29415911809,3264332.4169889744,1486402.1251806433,482735.4480362318,575310.58793691033,261965.62460913038,85077.98194274721,53.841579959799219,24.516571430905039,7.9621913165469316,8789.6801916849345,8748.1206075000646,0,4648.7580614259186,4626.7776881022455,0,819.30373254153483,815.42988028491345,0,7.6676161280442953E-2,7.6313619150329748E-2,null,"Utilities",{"$f":"BG25","v":6172065.2280798918},{"$f":"BH25","v":0},null,{"$f":"BJ25","v":862691.651138152},403077.5160049852,2760936.0046685156,385905.90872534178,180307.75526277514,666862.02785888605,93209.692807133761,43550.591216131535,35.080666215288545,4.9033502955555486,2.2910042709087648,6528.5729243636451,5794.7435744140021,0,2920.4117876095611,2592.1495611604801,0,705.38097354492243,626.09423396488307,0,3.7106977836172457E-2,3.2936052621797468E-2,null,"Utilities",{"$f":"CH25","v":6172065.2280798918},{"$f":"CI25","v":0},null,{"$f":"CK25","v":1859219.3922774773},728312.49287744332,3698647.3122834601,1114148.4339645687,436445.65388393431,765995.11357718718,230741.72370591492,90388.515040839455,189.58857890730394,57.11001900225309,22.371722498471797,7002.9987814617562,7745.5422558880546,0,4196.5892555927794,4641.5629109983702,0,869.1195975346983,961.27427380763822,0,0.21511253332621613,0.23792139177004848,null,"Utilities",{"$f":"DI25","v":6172065.2280798918},{"$f":"DJ25","v":0},null,{"$f":"DL25","v":2045583.2108451296},1268057.9642209085,3355915.8900334798,1112237.9540691429,689476.81438167859,1096599.4443821777,363441.62440877629,225297.6285284074,39.027144675839693,12.934612478319096,8.0181721673728816,12148.744077749579,13366.541251082064,0,6605.5950136407428,7267.7437003123086,0,2158.4843181811257,2374.8520418356015,0,7.6818824045316189E-2,8.4519187653472827E-2,null,"Utilities",{"$f":"EJ26","v":6172065.2280798918},{"$f":"EK26","v":0},{"$f":"EL26","v":0},9203801.8446054161,339798.88142813463,1645221.5605917445,2453359.2362680868,90576.561544933895,81443.3779933818,121448.60511131992,4483.8101541725428,134.8515579984269,201.09104041986154,7.424161423025315,39399.6874490712,2972.7797591818453,0,10502.354216362284,792.42217539205149,0,519.89788169073938,39.227262945411567,0,0.86083167316285891,6.4951352148391622E-2,null,"Utilities",{"$f":"FK25","v":6172065.2280798918},{"$f":"FL25","v":0},null,{"$f":"FN25","v":2454282.6903028535},975476.52256856486,3698647.3122834601,1470743.7041938805,584560.18934787856,765995.11357718718,304593.11083689088,121063.24578316907,190.38077983527234,75.703712655257661,30.089115104082815,11994.040630296666,10444.754125436149,0,7187.5011849909051,6259.0819030478897,0,1488.5417077342931,1296.2647553043159,0,0.36996284455700562,0.32217424186341936,null,"Utilities",{"$f":"GL27","v":6172065.2280798918},{"$f":"GM27","v":0},0,1931106.1178699648,892695.46359108575,3803112.163200215,1189911.7870447994,98782.689587050016,912890.4941788608,285623.75041563879,132035.74051702244,48.023137290064994,15.025404105945292,6.9458171976561633,199726.93103912348,249446.29328531356,0,78456.480263294783,97987.17721275978,0,29540.973732361956,36894.806119726796,0,1.5540201659208739,{"$f":"HJ27","v":1.9408728110064251},null,"Utilities",{"$f":"HM26","v":6172065.2280798918},{"$f":"HN26","v":0},{"$f":"HO26","v":0},9203801.8446054161,339798.8814281337,1645221.5605917445,2453359.2362680868,90576.561544933647,81443.3779933818,121448.60511131992,4483.81015417253,135.3977244558418,201.90548544959768,7.4542302483609078,39399.6874490712,2972.7797591818453,0,10502.354216362284,792.42217539205149,0,519.89788169073938,39.227262945411567,0,0.86431815409300428,6.5214413624534215E-2]
[null,181,"Construction",124717500,0,0,2053736.3386365473,656269.99552641809,61930060.274752773,1019808.8900131213,325879.21005041641,12213292.546122916,201117.5874786739,64266.982938295921,2684.9143913206076,44.212770874844018,14.128159685535634,80979.261809678472,7266.5547024738189,0,40211.282016384015,3608.3001239921568,0,7930.109364368931,711.59667555650094,0,1.7433189843552426,0.15643415956854806,null,52,"Construction",{"$f":"AF26","v":10674042.217973458},{"$f":"AG26","v":486078.39708321507},null,{"$f":"AI26","v":613074.37565664202},182953.209605176,5300331.372376387,304429.87581792666,90847.742284026128,1045283.9437751442,60036.937097249596,17916.179134124399,281.46425617070264,16.166183306915585,4.8243006729778672,6840.7661224969197,1753.5149565076572,241368.40803911819,3396.8693911577852,870.73014572293141,47600.518483194464,669.90019759586096,171.71761098346278,12.81742114953426,0.18038444190001471,4.6238507665499383E-2,null,"Construction",{"$f":"BG26","v":10674042.217973458},{"$f":"BH26","v":486078.39708321507},null,{"$f":"BJ26","v":867794.16197125427},26913.292511884123,5368429.9034897266,436450.59988199809,13535.839691441262,2361123.1987499716,191958.10600411231,5953.2834896935683,785.86458099015533,63.890387686017547,1.9814614661448113,37384.650483444973,386.91225051530637,244469.50359142508,18802.331065254246,194.59462997020387,107521.68263226871,8269.5724572822528,85.585898192718034,35.786985665931816,2.7524036431264705,2.8485987540800391E-2,null,"Construction",{"$f":"CH26","v":10674042.217973458},{"$f":"CI26","v":486078.39708321507},null,{"$f":"CK26","v":275862.11483066902},217870.10457126051,5874230.0073567629,151814.79328445753,119900.13528552795,1805118.8508828145,46651.858176721944,36844.657794510735,548.82897805435573,14.184047568361033,11.202262872737858,4133.2843788553728,2317.0302826803527,267502.81175262242,2274.6643334731812,1275.1278790669194,82202.155440640534,698.99194662805405,391.83984435530192,24.992772604578395,0.21252176029765704,0.11913512577486182,null,"Construction",{"$f":"DI26","v":10674042.217973458},{"$f":"DJ26","v":486078.39708321507},null,{"$f":"DL26","v":1177755.9013544954},432395.15945232473,3178203.0240958179,350677.5868872492,128745.94041437855,1433398.9766620882,158158.8370445648,58065.610610848336,132.65969718462009,14.637448310631665,5.3739164363106102,34446.766070650076,4557.8576836896827,144730.15939137101,10256.547038170382,1357.1050945731729,65274.641296004775,4625.7976338004901,612.06695703069897,6.0411052952802917,0.42811312365124538,5.6646208416783202E-2,null,"Construction",{"$f":"EJ28","v":10674042.217973458},{"$f":"EK28","v":486078.39708321507},{"$f":"EL28","v":0},13418285.621249313,228421.68292627484,647549.64911759598,814031.45765797293,13857.391380811179,284825.46277927526,358052.67898803938,6095.189640410591,968.57608865486202,1217.5922052846195,20.727272357996821,568116.30038358143,1995.8692436472047,29488.350247001254,34465.247884434561,121.0810676982431,12970.484992378106,15159.579179547676,53.257647792652818,44.107368418847294,51.551591504860227,0.18110769903300694,null,"Construction",{"$f":"FK26","v":10674042.217973458},{"$f":"FL26","v":486078.39708321507},null,{"$f":"FN26","v":406655.18036865257},289609.91131610423,5874230.0073567629,223793.94931999283,159380.59797218809,1805118.8508828145,68770.66034613947,48976.78870324474,551.12227456101482,20.996425102142954,14.95314238041756,5864.7978876626003,3100.9504032154218,267502.81175262242,3227.5656246496469,1706.5414898978602,82202.155440640534,991.81331752755818,524.41089459730131,25.097205570762132,0.30281131418486251,0.16010830804503282,null,"Construction",{"$f":"GL28","v":10674042.217973458},{"$f":"GM28","v":10674042.217973458},0,826258.07651902363,69746.667320528999,6577146.9175344883,509124.90789237618,7717.9325634066781,2146435.8474740493,166151.67136205145,14025.309617620487,714.40910359547297,55.301101469368696,4.6681147649321284,752773.20217962004,19489.342493265867,5201381.2419657884,366820.77261026367,9497.0113844992775,2146435.8474740493,151374.64825232196,3919.0985492642494,714.40910359547297,50.3827900993574,{"$f":"HJ28","v":1.3044133999052776},null,"Construction",{"$f":"HM28","v":10674042.217973458},{"$f":"HN28","v":486078.39708321507},{"$f":"HO28","v":0},13418285.621249313,228421.68292627484,647549.64911759598,814031.45765797293,13857.391380811179,284825.46277927526,358052.67898803938,6095.189640410591,972.49894856786045,1222.5236130577805,20.811220523547664,568116.30038358143,1995.8692436472047,29488.350247001254,34465.247884434561,121.0810676982431,12970.484992378106,15159.579179547676,53.257647792652818,44.286009033110702,51.760382196819741,0.18184120891498085]
[null,182,"Manufacturing",19161368.372790929,0,0,49009314.299050584,16708242.878719639,5412343.1384216445,18158817.781947725,5002152.9407076314,2295149.1816607364,5532014.0962089412,1620162.3335272502,432.33676326017189,1042.0643188579245,305.18963422080429,106023.79933079744,185002.15107815724,0,37220.46673425287,55386.377895636389,0,11054.637591745844,17939.260218685362,0,2.0823597322642744,3.3792146324085159,null,53,"Manufacturing",{"$f":"SUM(AF9:AF24)","v":11618005.135209208},{"$f":"SUM(AG9:AG24)","v":0},null,{"$f":"SUM(AI9:AI24)","v":9461413.865501171},4657879.6567907529,4111361.298864963,3361267.2675190107,1394486.9362865982,1078664.0966327714,991143.64863490814,451664.56034983811,248.87929007880908,228.68576826503619,104.21219681319832,137228.00704856752,44643.445509490011,0,52868.72083521208,13365.459423805607,0,16063.399754242613,4328.9787788202575,0,3.706295166000205,0.99882175424423358,null,"Manufacturing",{"$f":"SUM(BG9:BG24)","v":11618005.135209208},{"$f":"SUM(BH9:BH24)","v":0},null,{"$f":"SUM(BJ9:BJ24)","v":8963235.4896289464},4403072.5373059362,4269892.4766025152,2999639.3672936778,1491123.3298820248,1550274.4212612647,671955.60821915057,331761.14639918413,325.41401914659644,104.17448463630663,62.431034544406103,112857.48249794026,63299.67631565121,0,44079.604110557855,21436.763380237247,0,10117.234287008327,4769.4815389135092,0,2.0432674548490453,0.89752422773623752,null,"Manufacturing",{"$f":"SUM(CH9:CH24)","v":11618005.135209208},{"$f":"SUM(CI9:CI24)","v":0},null,{"$f":"SUM(CK9:CK24)","v":14936446.172184117},4967220.8482639417,2925856.4154316867,3306443.724678576,1397044.6912979749,896915.52843415388,750272.23980576149,313556.10288714996,272.69851657183511,228.11303889146527,95.33370914945516,127739.63057097714,52825.976968420109,0,32996.526871274611,14857.453079049985,0,7264.9331487572881,3334.6428466560492,0,2.2088328609031396,1.0138659982479554,null,"Manufacturing",{"$f":"SUM(DI9:DI24)","v":11618005.135209208},{"$f":"SUM(DJ9:DJ24)","v":0},null,{"$f":"SUM(DL9:DL24)","v":7850407.0598042393},8625370.8699899483,3053162.6801872309,1935738.3651591609,2023526.7498068865,2836020.9719630145,1295264.5852721138,1173454.8036212421,216.83960637120623,99.034762293228738,89.721296220001847,152011.45439771429,90919.641524775754,0,39870.102040341109,21329.903314459007,0,26182.845776295871,12369.333643608741,0,2.0019167798608368,0.94574809737662868,null,"Manufacturing",{"$f":"SUM(EJ21:EJ25)+EJ27","v":11618005.135209208},{"$f":"SUM(EK21:EK25)+EK27","v":0},{"$f":"SUM(EL21:EL25)+EL27","v":0},22504351.773932341,3909123.1843557274,1246863.5998213608,2766458.4404223715,461024.52384639357,41984.323548410888,411254.43311654427,144253.34012932406,154.18736304318318,1510.3312670726405,529.77016764519806,467687.47939581703,34036.677176864992,0,57245.427710272998,4013.3788453752391,0,8785.0530405244281,1255.2553630645825,0,32.263093650921284,4.609923371840706,null,"Manufacturing",{"$f":"SUM(FK9:FK24)","v":11618005.135209208},{"$f":"SUM(FL9:FL24)","v":0},null,{"$f":"SUM(FN9:FN24)","v":27134053.736106191},9209352.1709158886,2925856.4154316867,5983228.7470789468,2494937.1629668241,896915.52843415388,1379149.0675724943,582955.8567300284,273.83799458854315,421.06910063430428,177.9827170784863,224878.82701265512,98607.620844106219,0,55245.804309227169,26714.128554303687,0,12477.476708156366,6241.9037759057564,0,3.8095083549862276,1.9057206149532864,null,"Manufacturing",{"$f":"SUM(GL9:GL26)","v":11618005.135209208},{"$f":"SUM(GM9:GM26)","v":0},0,21250750.754758723,13563584.529169405,7158799.3660239344,13094318.625291256,1500900.8277501399,1791348.5581827892,2441572.9092390281,1511209.2593394327,376.01725605229615,336.19209983300095,255.86581020931141,5476541.0001491522,3790078.5009625126,0,1968996.0153241262,1258037.5767231316,0,668191.55491806602,422277.88030223682,0,109.22259581515563,{"$f":"SUM(HJ9:HJ26)","v":71.496697965065948},null,"Manufacturing",{"$f":"SUM(HM21:HM25)+HM27","v":11618005.135209208},{"$f":"SUM(HN21:HN25)+HN27","v":0},{"$f":"SUM(HO21:HO25)+HO27","v":0},22504351.773932341,3909123.1843557274,1246863.5998213608,2766458.4404223715,461024.52384639357,41984.323548410888,411254.43311654427,144253.34012932406,154.81184204143415,1516.4483063557136,531.91580615321038,467687.47939581703,34036.677176864992,0,57245.427710272998,4013.3788453752391,0,8785.0530405244281,1255.2553630645825,0,32.393763402358445,4.6285941647801687]
[null,183,"Sales",0,0,0,10591993.757115945,6160710.8488721214,0,6363538.1101445537,3701278.4534583637,0,2760541.3867874122,1605637.0179519863,0,668.05018404158284,388.56367467654508,45924.959673749887,68214.519473110558,0,27591.144575063794,40982.434873576851,0,11969.205682429456,17778.428547394793,0,2.8965441696507077,4.3023743530536143,null,54,"Sales",{"$f":"AF27","v":1611998.2125102775},{"$f":"AG27","v":0},null,{"$f":"AI27","v":1836981.4217507984},1717466.6386301969,968468.47666450718,1103635.5905218807,1031832.5953017729,420127.49281242228,478763.80573731015,447615.23137984419,124.53379306393232,141.91471334348242,132.6816824668264,28597.423850264477,16461.058238005604,0,17180.976565517318,9889.5990531040261,0,7453.2117280677085,4290.1679870990993,0,2.2092739534645687,1.2716875268942387,null,"Sales",{"$f":"BG27","v":1611998.2125102775},{"$f":"BH27","v":0},null,{"$f":"BJ27","v":3392028.3670059387},2600235.3292464186,1227485.231982857,2582921.4292259463,1979996.2813604616,247170.61987029589,520105.88323474338,398698.81563803693,49.408242251679198,103.96671533562802,79.698014589431679,45940.439588826921,37381.635957904931,0,34982.179699982837,28464.923676455441,0,7044.1312168712075,5731.7942785387522,0,1.4080886385219378,1.1457586682407526,null,"Sales",{"$f":"CH27","v":1611998.2125102775},{"$f":"CI27","v":0},null,{"$f":"CK27","v":2735642.9391903318},2168763.2378277667,1114075.998635733,1890643.6221434888,1498864.6086802222,247983.42147860167,420840.47658326518,333633.94817667082,75.396967749775584,127.95248832183162,101.43818437910113,29666.997978016658,23064.61507373628,0,20503.304620551778,15940.299357656824,0,4563.8534872385435,3548.1690467665994,0,1.3875956390162054,1.0787865801460339,null,"Sales",{"$f":"DI27","v":1611998.2125102775},{"$f":"DJ27","v":0},null,{"$f":"DL27","v":5080962.1537105637},4350441.0968535496,946672.21355806757,2983877.8056506556,2554867.4130965141,454577.70113379764,1432813.0623574445,1226808.7503931243,46.470238421012567,146.4725710355377,125.4133121478675,79437.978079760476,45857.801474574429,0,46651.246859781888,26930.741047930915,0,22401.224255690235,12931.735166690958,0,2.2900160511351091,1.3219760117899939,null,"Trade, Transportation, and Warehousing (Sales for other countries)",{"$f":"EJ29","v":1611998.2125102775},{"$f":"EK29","v":0},{"$f":"EL29","v":0},5094784.898729316,824281.37951752916,364426.71753765445,1151785.233255957,186346.45816213495,134166.64635897425,424039.05815652414,68604.957181558086,326.53850783285168,1032.0380293534665,166.97264898508215,51973.687703316507,7191.6959089469383,0,11749.76514307148,1625.8368733208515,0,4325.7711602569016,598.56500723682655,0,10.528181915774551,1.4568041283607718,null,"Sales",{"$f":"FK27","v":1611998.2125102775},{"$f":"FL27","v":0},null,{"$f":"FN27","v":5036746.8054500772},3443099.5532025509,1114075.998635733,3480970.812256007,2379577.4358601663,247983.42147860167,774833.18296729424,529672.80054547184,75.712015988238178,236.56493642700769,161.71482474240349,53643.541614569251,36866.421108635164,0,37073.851404303408,25478.933285396757,0,8252.3100128597835,5671.3842318432498,0,2.519519344914964,1.7315348384037437,null,"Sales",{"$f":"GL29","v":1611998.2125102775},{"$f":"GM29","v":0},0,4873887.5127214277,5024299.5654223803,993283.41203582077,3003199.1232644459,555972.1591582034,288036.74518710125,870881.04979110579,897757.13300302625,57.577188142577342,174.08501828840011,179.45742068318179,1371310.9770982871,1403942.2782635731,0,1006079.4892014264,1030019.8523696823,0,245030.0176621417,250860.67783653014,0,48.980345956721237,{"$f":"HJ29","v":50.14586745168927},null,"Trade, Transportation, and Warehousing (Sales for other countries)",{"$f":"HM29","v":1611998.2125102775},{"$f":"HN29","v":0},{"$f":"HO29","v":0},5094784.898729316,824281.37951752916,364426.71753765445,1151785.233255957,186346.45816213495,134166.64635897425,424039.05815652414,68604.957181558086,327.86103152245335,1036.217918431322,167.64891006456057,51973.687703316507,7191.6959089469383,0,11749.76514307148,1625.8368733208515,0,4325.7711602569016,598.56500723682655,0,10.570822430317403,1.4627043757271647]
[null,184,"Transportation and Warehousing",19286428.809603199,0,0,9238438.8675306067,4346604.5608822033,8413058.7670100909,4029959.6091768243,1896060.6947330665,2127881.9449671186,1019281.8722412977,479563.19224882266,380.17685699645244,182.10943492362975,85.680893900887995,81176.197573780664,48127.813288703968,0,35410.398027165385,20994.146999570221,0,8956.2130388972382,5309.9672292254054,0,1.6001568751367987,0.94870237361418586,null,55,"Transportation and Warehousing",{"$f":"AF29","v":0},{"$f":"AG29","v":0},null,{"$f":"AI29","v":1646972.8412708114},1211734.8967935643,0,718436.75353633263,528578.77409036539,0,181711.38925659191,133691.35543070346,0,39.765970266204363,29.257200039336844,23353.766512644041,11613.872582148826,0,10187.2986461898,5066.1630263832949,0,2576.6334763068753,1281.3647369697564,0,0.56387401265773418,0.28041562083128274,null,"Transportation and Warehousing",{"$f":"BG29","v":0},{"$f":"BH29","v":0},null,{"$f":"BJ29","v":972231.39632463327},1502387.0403640834,0,710599.15744938725,1098087.3165395292,0,229248.66567514671,354257.45931794116,0,30.774044295580097,47.55506302723002,10749.63083565725,21598.693310209237,0,7856.8524361451482,15786.378969310323,0,2534.7242795191328,5092.8941817868035,0,0.3402581080473468,0.68366352616027704,null,"Transportation and Warehousing",{"$f":"CH29","v":0},{"$f":"CI29","v":0},null,{"$f":"CK29","v":349662.75678267673},539152.36174372095,0,154559.33677142434,238318.29336530878,0,57516.280366622763,88685.562865513028,0,17.487270358770758,26.963990106164275,2954.077841177389,5733.8401319315844,0,1305.7733574620106,2534.4950548894935,0,485.91840578431345,943.1635203017679,0,0.14773880508420845,0.28675977248379642,null,"Transportation and Warehousing",{"$f":"DI29","v":0},{"$f":"DJ29","v":0},null,{"$f":"DL29","v":2564122.5337077463},2272949.981007373,0,1355929.4594325947,1201954.9762343492,0,472338.63911295729,418701.55840345332,0,25.974957586671906,23.02533462311613,36444.253937538437,23959.062235335121,0,19272.026547613899,12669.752665171432,0,6713.4191451655342,4413.5140586657726,0,0.36918592534523453,0.24270900364475131,null,"Transportation and Warehousing",null,null,null,null,null,null,null,null,null,null,null,null,null,null,null,null,null,null,null,null,null,null,null,null,null,null,"Transportation and Warehousing",{"$f":"FK29","v":0},{"$f":"FL29","v":0},null,{"$f":"FN29","v":829062.49306272191},968777.9560496643,0,366465.53453068889,428223.12488623156,0,136373.09054931407,159354.98834892441,0,41.636176928569654,48.652798456207933,7589.5362829485503,10373.030328231333,0,3354.7573241386294,4585.1285466978115,0,1248.408325551334,1706.2672790766958,0,0.38115254052234404,0.52094182241456699,null,"Transportation and Warehousing",{"$f":"GL31","v":0},{"$f":"GM31","v":0},0,1673269.7183257877,3078036.5130833364,0,1031037.7779431059,340605.20951498346,0,352538.91154415294,648507.30885233392,0,47.324367397404323,87.054782150440957,450994.43351305468,860097.12169568753,0,279816.26429707115,533641.09541406156,0,95019.401213001576,181212.68781953756,0,12.755281489890995,{"$f":"HJ31","v":24.325756773572145},null,"Transportation and Warehousing"]
[null,185,"Information",0,0,0,1521214.4204954319,2631049.4596594535,0,831693.8588555156,1438474.1877684963,0,201878.94925567548,349164.12387333025,0,36.068591400616917,62.38321609149888,19404.311697728172,29132.315897201148,0,10608.923145142659,15927.516791518519,0,2575.1281369599265,3866.122515980343,0,0.46008385182650874,0.69073865228521225,null,56,"Information",{"$f":"AF30","v":0},{"$f":"AG30","v":0},null,{"$f":"AI30","v":682219.18407306192},733476.99354830082,0,372989.82848334761,401014.02072381967,0,90536.672665697741,97339.048832128465,0,19.813169928172826,21.301811281257461,2793.8731723428523,7030.0099201144039,0,1527.4948281794213,3843.5187041865552,0,370.77230716923083,932.94607046090175,0,8.1140321488619924E-2,0.20416720079957543,null,"Information",{"$f":"BG30","v":0},{"$f":"BH30","v":0},null,{"$f":"BJ30","v":503348.42829928821},585570.21910492354,0,307113.43329570268,357280.30587611202,0,78509.740680629227,91334.279531894179,0,6.2196256291550824,7.2355993138204635,6961.2484412626472,8418.3044942761917,0,4247.3419774926779,5136.3513828805599,0,1085.7803048746257,1313.0445346761283,0,8.6016677080889281E-2,0.10402079244300215,null,"Information",{"$f":"CH30","v":0},{"$f":"CI30","v":0},null,{"$f":"CK30","v":247412.6647121188},477303.82695460424,0,149857.3161004486,289101.89603720146,0,26573.143624320834,51264.405404875841,0,6.5770191578735302,12.688260795620533,1545.1509287424858,5076.086153579221,0,935.894576863682,3074.5744085297488,0,165.95560133715185,545.19265036588831,0,4.1075048732732183E-2,0.1349385890085836,null,"Information",{"$f":"DI30","v":0},{"$f":"DJ30","v":0},null,{"$f":"DL30","v":1407796.3607486151},1294656.9271900719,0,571679.52962346305,525735.74118788366,0,187078.92203956659,172044.07477014753,0,10.287888101773419,9.4610882429292289,20684.39883769396,13646.919708372618,0,8399.5439452542432,5541.7565048562728,0,2748.7036800795031,1813.5087569378613,0,0.15115735956405579,9.9728900292770539E-2,null,"Information",null,null,null,null,null,null,null,null,null,null,null,null,null,null,null,null,null,null,null,null,null,null,null,null,null,null,"Information",{"$f":"FK30","v":0},{"$f":"FL30","v":0},null,{"$f":"FN30","v":341362.11327863007},621767.11759377562,0,206762.29397486904,376602.99884216581,0,36663.703026720585,66780.360398786346,0,9.1124137088539499,16.597621662400279,2449.6369476055488,6657.4689562471513,0,1483.7398029555343,4032.4145530953697,0,263.10114121242344,715.03970483750038,0,6.5391279332911709E-2,0.17771629897796842,null,"Information",{"$f":"GL32","v":0},{"$f":"GM32","v":0},0,896008.34762853116,1179765.8588746996,0,552103.73177716602,130548.93788056956,0,150744.69341368994,198484.13596447412,0,11.942155845717116,15.724125545735417,158005.84408023983,329662.50243617472,0,97136.383369288014,202664.80271993813,0,26582.947119284858,55462.511025995002,0,2.1059295033739911,{"$f":"HJ32","v":4.3937994450628226},null,"Information"]
[null,186,"Finance, Professional, and Business Services",6025000,0,0,20185225.824294016,19258561.902442619,4394138.8872092124,14678798.725113906,13838775.167432787,1647750.0367129396,4788057.3458699752,5327042.0461762995,125.89702580780732,436.65245214681505,457.11773127679601,262613.58691276016,213240.57858660707,0,187570.9973823544,153229.9472090413,0,63664.419459756216,58983.715078836824,0,5.936308178049674,5.0614396855508703,null,57,"Finance, Professional, and Business Services",{"$f":"AF35+AF36+AF32+AF31+AF34+AF33","v":5809002.5676046042},{"$f":"AG35+AG36+AG32+AG31+AG34+AG33","v":0},null,{"$f":"AI35+AI36+AI32+AI31+AI34+AI33","v":5636723.6039397074},5368850.8334221132,4236608.1457609208,4136530.1354980175,3857937.0550918067,1588677.8745288041,1304052.5446632602,1485058.6598400595,148.67956301403339,144.64144263292008,156.09063230553471,51466.036628573085,51457.748437322305,0,37299.542466748622,36976.395997465414,0,12402.506390531877,14233.544068127516,0,1.3755347624095429,1.4960505962653325,null,"Finance, Professional, and Business Services",{"$f":"BG35+BG36+BG32+BG31+BG34+BG33","v":5809002.5676046042},{"$f":"BH35+BH36+BH32+BH31+BH34+BH33","v":0},null,{"$f":"BJ35+BJ36+BJ32+BJ31+BJ34+BJ33","v":5271385.4505381947},4613932.4995505046,4363407.1454147007,4014501.4540016428,3646622.3007599781,1930040.9498974294,1313516.5875221977,1288316.2397980674,493.63509322380014,298.92750057458596,637.92269962350724,55746.362506162863,66331.052075401545,0,41327.855426751696,52424.757786247501,0,13020.936559927593,18521.15773257547,0,2.6545156625412587,9.1709368988232676,null,"Finance, Professional, and Business Services",{"$f":"CH35+CH36+CH32+CH31+CH34+CH33","v":5809002.5676046042},{"$f":"CI35+CI36+CI32+CI31+CI34+CI33","v":0},null,{"$f":"CK35+CK36+CK32+CK31+CK34+CK33","v":2752012.9314186745},5035328.5262254514,2814460.5770694031,1711081.8494756061,3301651.8806223646,1101399.9564901425,398449.30068517529,992181.99256094382,272.60337417086021,98.618692658147538,245.57124536812287,20639.319596220357,53550.296409264818,0,12297.77006912945,35112.790739806835,0,3013.2784978984864,10551.772246209663,0,0.74580526447567563,2.6116295909123135,null,"Finance, Professional, and Business Services",{"$f":"DI35+DI36+DI32+DI31+DI34+DI33","v":5809002.5676046042},{"$f":"DJ35+DJ36+DJ32+DJ31+DJ34+DJ33","v":0},null,{"$f":"DL35+DL36+DL32+DL31+DL34+DL33","v":7712098.2360010184},14980885.809932627,2474910.9334449479,3970289.1462543248,8599506.1975530796,1597707.8130118814,1845991.1623286644,5337153.5132988272,97.424797662100076,112.55734319459904,316.25788098366411,126479.76913583068,157912.83506447755,0,61951.11722631305,90647.003190544929,0,30859.178725662598,56258.69211956465,0,1.8816424706718522,3.3336599204636159,null,"Finance, Professional, and Business Services",{"$f":"EJ32","v":5809002.5676046042},{"$f":"EK32","v":0},{"$f":"EL32","v":0},14219121.347152684,657052.81286183838,1210181.747341604,2962250.5614858591,136882.93504968175,288371.29519800708,705867.55501244043,32617.505062765696,279.63424798730307,684.48124418558348,31.629262868156548,175935.0105442082,5750.5016061671195,0,36652.30579623417,1197.994320169787,0,8733.789711893558,285.46718251709075,0,8.4691741474741544,0.27681812384762122,null,"Finance, Professional, and Business Services",{"$f":"FK35+FK36+FK32+FK31+FK34+FK33","v":5809002.5676046042},{"$f":"FL35+FL36+FL32+FL31+FL34+FL33","v":0},null,{"$f":"FN35+FN36+FN32+FN31+FN34+FN33","v":4405590.0010220865},6694716.1555525037,2814460.5770694031,2645423.871643106,4317915.3802239671,1101399.9564901425,651589.27982714213,1278328.1158037935,273.74245463251111,161.94630099725126,317.71626118546635,37626.353811831788,71682.570073762356,0,21941.494829986332,46233.367423467214,0,5584.3744127626869,13687.487655823348,0,1.3879429995695005,3.4018945130499585,null,"Finance, Professional, and Business Services",{"$f":"SUM(GL33:GL38)","v":5809002.5676046042},{"$f":"SUM(GM33:GM38)","v":0},0,5743916.5708310073,7025180.8125978597,3579399.6830119672,3539294.8984971279,777382.97527815949,1635755.1913124362,1175115.8659283654,880624.64907857357,418.36737526099728,265.98372984585876,193.61876256795264,1288400.3322059163,1963049.4214815036,0,944555.77766642999,1558125.2532936614,0,262643.00804848672,246073.34017881064,0,59.491606918706537,{"$f":"SUM(HJ33:HJ38)","v":54.102977558300339},null,"Finance, Professional, and Business Services",{"$f":"HM32","v":5809002.5676046042},{"$f":"HN32","v":0},{"$f":"HO32","v":0},14219121.347152684,657052.81286183745,1210181.747341604,2962250.5614858591,136882.93504968155,288371.29519800708,705867.55501244043,32617.505062765649,280.7668032863445,687.25348280004687,31.757365521976396,175935.0105442082,5750.5016061671195,0,36652.30579623417,1197.994320169787,0,8733.789711893558,285.46718251709075,0,8.5034754111007107,0.27793927347536124]
[null,187,"Education and Health Care",0,0,0,88677.999599200964,7207272.5867492352,0,68090.233442639234,4311751.1128295213,0,50139.40345923297,3183119.3968572561,0,3.8309219424370884,243.20755935463853,2917.1648432366187,79802.582571592269,0,2291.1984906009043,47741.898210198051,0,1686.8236319684574,35245.114631846023,0,0.12888246007919782,2.6929176195052187,null,58,"Education and Health Care",{"$f":"AF37+AF38","v":0},{"$f":"AG37+AG38","v":0},null,{"$f":"AI37+AI38","v":70951.088275149916},2009224.3455188214,0,48501.941930200832,1202018.5449406493,0,35754.782107928317,887381.58712316095,0,3.3461820452717452,83.047362033226875,95.235715956580378,19257.409850582502,0,72.258113847579125,11520.746212113858,0,53.214232858113817,8505.1084291328661,0,4.9801592974397088E-3,0.79596740466062266,null,"Education and Health Care",{"$f":"BG37+BG38","v":0},{"$f":"BH37+BH38","v":0},null,{"$f":"BJ37+BJ38","v":28101.669835115477},1751589.8866881852,0,25213.017028956176,1460561.7148484103,0,21743.192757492667,1171509.7017945894,0,5.1613453933644626,352.56476199573211,95.23589391373099,25181.295998582482,0,85.446317927138807,20997.401929132255,0,73.687165600772076,16841.917614561,0,1.7491677370728816E-2,5.068559540081865,null,"Education and Health Care",{"$f":"CH37+CH38","v":0},{"$f":"CI37+CI38","v":0},null,{"$f":"CK37+CK38","v":321827.67481614149},1929413.3075756417,0,182870.77159292233,1215965.4851781968,0,120604.06207263621,828074.92730365461,0,29.850259268651733,204.9537208705041,295.91567212431488,20519.148647110444,0,169.6475603098595,12931.690914622252,0,112.21122551195029,8806.507375881527,0,2.7772979755586839E-2,2.1796656257152836,null,"Education and Health Care",{"$f":"DI37+DI38","v":0},{"$f":"DJ37+DJ38","v":0},null,{"$f":"DL37+DL38","v":119098.6468784051},1420049.2450602525,0,55318.002174007685,673484.12007620907,0,24614.767125155191,309365.99588715774,0,1.4367745188366359,18.057825923160557,986.86830017029342,14968.67442043763,0,458.61708481581712,7099.1654379760275,0,204.24023812412253,3261.0128735308945,0,1.192159033501382E-2,0.19034672066831043,null,"Education and Health Care",null,null,null,null,null,null,null,null,null,null,null,null,null,null,null,null,null,null,null,null,null,null,null,null,null,null,"Education and Health Care",{"$f":"FK37+FK38","v":0},{"$f":"FL37+FL38","v":0},null,{"$f":"FN37+FN38","v":353186.68845986394},2240859.00403802,0,200512.05306871585,1411342.3477709095,0,132199.72781880025,960948.81875891075,0,32.856981500336687,238.83466389589478,658.3593666237482,23993.628534818767,0,372.12879108916127,15111.715626397199,0,244.99049804096811,10289.201130783415,0,6.0890051702100489E-2,2.5572828082579182,null,"Education and Health Care",{"$f":"GL41+GL40","v":0},{"$f":"GM41+GM40","v":0},0,24413.003893011024,1271830.3255112362,0,15042.840380779369,140736.4833545546,0,15693.323196338621,713126.11501139146,0,4.0147699784484763,219.85440877966653,3769.5403936134189,355388.11758984707,0,3235.6745850776269,292702.03199478483,0,2342.292069418851,199269.14977136243,0,0.62819329142332603,{"$f":"HJ41+HJ40","v":61.434015931824192},null,"Education and Health Care"]
[null,188,"Other",0,0,0,2149993.9352962147,57617233.698862597,0,1101920.13897321,3892533.5389829697,0,444144.93454073672,1855637.0199260206,0,72.708043898863593,303.77412284269292,20588.014383444352,637967.27464613528,0,10072.549424732653,43100.108316770216,0,4157.1513727693728,20546.555541385686,0,0.68053988911994145,3.3635413715080658,null,59,"Other",{"$f":"AF40+AF39+AF28+AF41","v":5111922.2594920518},{"$f":"AG40+AG39+AG28+AG41","v":0},null,{"$f":"AI40+AI39+AI28+AI41","v":1198680.3019543765},16062379.669396851,2924433.3892997876,638718.65076063864,1085150.1810341105,1116948.0667150787,252499.53611728625,517309.56918933534,223.96596022276591,50.630197363273297,103.72884635241452,4713.9460349250758,153949.87083404395,0,2393.2659718136238,10400.621429963616,0,969.25496655572147,4958.153336995776,0,0.19435113032942095,0.99418908196672295,null,"Other",{"$f":"BG40+BG39+BG28+BG41","v":5111922.2594920518},{"$f":"BH40+BH39+BH28+BH41","v":0},null,{"$f":"BJ40+BJ39+BJ28+BJ41","v":294767.05660022784},15489240.480753738,3270578.7028892678,204609.50773532497,630524.87850858667,574030.82114936085,44422.578352559576,206481.51375605963,388.68851325860646,30.224787187078654,97.245835024129917,2879.2258067185567,222677.21017535194,0,2085.75398337056,9064.5839650371527,0,495.52225635393501,2968.430084942775,0,0.33773878543542835,1.3980305407003413,null,"Other",{"$f":"CH40+CH39+CH28+CH41","v":5111922.2594920518},{"$f":"CI40+CI39+CI28+CI41","v":0},null,{"$f":"CK40+CK39+CK28+CK41","v":1525863.327131252},14761071.718278794,2491352.0884657288,688604.0728321051,618669.58038116095,2141322.0965627143,503307.14293021098,414086.21417281538,1207.3604089612154,265.83404769203935,209.62645937113436,3874.3783901580177,156982.75926095014,0,1671.493603642019,6579.4990805974794,0,1087.9912446799158,4403.7721456412701,0,0.54277391100153771,2.2293598076238665,null,"Other",{"$f":"DI40+DI39+DI28+DI41","v":5111922.2594920518},{"$f":"DJ40+DJ39+DJ28+DJ41","v":0},null,{"$f":"DL40+DL39+DL28+DL41","v":2058633.1710620036},29633047.576343015,3597707.8622406507,1403265.2643562395,1700144.0393512137,2000726.5431100875,766510.04768115957,920816.24985709786,116.78326679609235,46.093177391485135,56.152366006629947,24486.398050568372,312360.60495690518,0,16497.991240180156,17921.140891009189,0,8951.0991437984339,9706.2821540209461,0,0.54428477791150065,0.59189953279037855,null,"Other",{"$f":"SUM(EJ33:EJ48)+EJ31+EJ30","v":5111922.2594920518},{"$f":"SUM(EK33:EK48)+EK31+EK30","v":0},{"$f":"SUM(EL33:EL48)+EL31+EL30","v":0},6180786.9887376614,14836602.341029238,1870920.1872122961,2245517.6300613959,177743.93754929968,1496969.5606182232,1791904.6901614454,125352.19973667375,3414.0898216854748,4090.4770112572969,286.35579644898053,7577.8328987582572,129098.58898557673,0,2510.1423222071003,1555.4247533165385,0,1942.6246660749878,1097.149244055671,0,4.460210994446542,2.5063261293318626,null,"Other",{"$f":"FK40+FK39+FK28+FK41","v":5111922.2594920518},{"$f":"FL40+FL39+FL28+FL41","v":0},null,{"$f":"FN40+FN39+FN28+FN41","v":1764238.049972458},18787548.748656228,2491352.0884657288,791166.0874949703,760805.19454758265,2141322.0965627143,569560.1967198723,508713.2155050906,1212.4053965964622,299.99919550897192,258.47392368647155,6080.4357033015112,201164.58239574646,0,2619.7208347222322,8146.1962544009748,0,1698.8129570521044,5446.9629287641037,0,0.84932298968740183,2.767566946289258,null,"Other",{"$f":"GL39+SUM(GL42:GL45)","v":5111922.2594920518},{"$f":"GM39+SUM(GM42:GM45)","v":0},0,164667.21044599611,48216651.398351386,3149871.7210505311,101464.88213998362,5335493.1242174478,698978.59427999391,55504.819761332939,323786.69686006091,473.29331562074782,37.583497395701535,130.70073037863918,20459.800094263192,13473200.499491137,0,14610.927220986261,220812.43510007544,0,5337.6555349298196,90475.861747892312,0,3.6142404165761981,{"$f":"HJ39+SUM(HJ42:HJ45)","v":36.521763638723961},null,"Other",{"$f":"SUM(HM33:HM48)+HM31+HM30","v":5111922.2594920518},{"$f":"SUM(HN33:HN48)+HN31+HN30","v":0},{"$f":"SUM(HO33:HO48)+HO31+HO30","v":0},6180786.9887376614,14836602.341029238,1870920.1872122961,2245517.6300613959,177743.93754929968,1496969.5606182232,1791904.6901614454,125352.19973667375,3427.917332252523,4107.0439784583841,287.5155748989157,7577.8328987582572,129098.58898557673,0,2510.1423222071003,1555.4247533165385,0,1942.6246660749878,1097.149244055671,0,4.4782754326652547,2.5164770781492249]
[null,189,"Total",169190297.18239415,2106178.9064264097,0,112190478.63148285,123427074.21246395,80149601.06739372,59294894.783217654,40134714.003410295,18284073.709463712,16393346.919365952,15678338.509284677,3623.3250373850392,2610.1783063366406,2022.1667828741533,1489849.5255372322,1366647.2528761178,1113933.1530306898,877963.93001326267,444391.9374067965,196321.16320544048,187644.850261271,173598.52682315334,15,21.363126141996979,22.390457655304495,null,60,"Total",{"$f":"SUM(AF50:AF60)","v":40997035.620869495},{"$f":"SUM(AG50:AG60)","v":486078.39708321507},null,{"$f":"SUM(AI50:AI60)","v":26399354.834704999},34408672.548306547,20805535.09995554,14148567.508086873,11188649.174216779,5825012.0624011308,3842267.3319345294,4370765.6469183657,1081.3644425100426,690.2631209779413,690.50327775394635,311341.585423827,329789.90681407682,241368.40803911819,167941.76459318513,107237.60305952147,47600.518483194464,45055.516594232809,41891.601408910421,12.81742114953426,8.8138498046666207,6.618128360098452,null,"Total",{"$f":"SUM(BG50:BG60)","v":40997035.620869495},{"$f":"SUM(BH50:BH60)","v":486078.39708321507},null,{"$f":"SUM(BJ50:BJ60)","v":23640521.323684491},32562852.923107967,21260729.465047583,13787310.345622208,11687872.008787921,7329502.0387872085,3301000.9657065263,3991239.3009904092,2078.0911150861261,661.91818457106626,1361.78936789982,314123.36092314159,468131.74947330519,244469.50359142508,186027.94079775221,168027.78257832513,107521.68263226871,45305.09765710096,57379.058307674837,35.786985665931816,9.9448979636794554,19.577425869730675,null,"Total",{"$f":"SUM(CH50:CH60)","v":40997035.620869495},{"$f":"SUM(CI50:CI60)","v":486078.39708321507},null,{"$f":"SUM(CK50:CK60)","v":25968580.950403221},33417008.891260602,18918622.399242774,9941285.0626140907,10927841.612182725,6958734.9674256146,2714669.4853975307,3668169.428077572,2566.4768244153456,908.86778424127579,1217.6732112452542,212929.06952201881,355387.08585107338,267502.81175262242,85383.456970604093,116216.6786929688,82202.155440640534,20673.689310583839,39010.674105946586,24.992772604578395,6.4052267682657522,12.949852438066147,null,"Total",{"$f":"SUM(DI50:DI60)","v":40997035.620869495},{"$f":"SUM(DJ50:DJ60)","v":486078.39708321507},null,{"$f":"SUM(DL50:DL60)","v":34835844.77896031},66569733.391756527,16606572.603560194,16552862.338365803,19174970.097591218,9419031.4502630476,7495760.4902937822,10187378.674458249,649.20475111087103,528.69517405427951,674.09352958763111,528979.82137279236,701708.52797028166,144730.15939137101,234232.37706904151,202122.48653411452,65274.641296004775,113023.41021762048,107384.69465487084,6.0411052952802917,8.2661730639807303,7.1055891958822688,null,"Total",{"$f":"SUM(EJ50:EJ60)","v":40997035.620869495},{"$f":"SUM(EK50:EK60)","v":486078.39708321507},{"$f":"SUM(EL50:EL60)","v":0},74174540.82841295,23893725.830693807,6985163.4616222559,13277534.871526591,2212888.0380393001,2327760.6664962722,3906437.5575157665,1284987.6373053375,5277.8775872021015,9378.7947937295648,9589.5953963232296,1395153.5158940332,207749.78302064262,29488.350247001254,173988.88278263528,19177.992970442014,12970.484992378106,41305.28203458112,11106.852639023644,44.107368418847294,119.55405153975995,82.664449393545681,null,"Total",{"$f":"SUM(FK50:FK60)","v":40997035.620869495},{"$f":"SUM(FL50:FL60)","v":486078.39708321507},null,{"$f":"SUM(FN50:FN60)","v":48642811.090233982},47759328.562222555,18918622.399242774,18845660.162978515,15944407.967520563,6958734.9674256146,4972550.1876358371,5109998.2547774957,2577.2009162020418,1608.8887114811826,1698.3864938049237,436985.53545787686,511375.14075155335,267502.81175262242,182941.84465024812,170722.12097722964,82202.155440640534,45550.114308449316,54714.464282565459,25.097205570762132,14.137719230255222,18.185193520643843,null,"Total",{"$f":"SUM(GL50:GL60)","v":40997035.620869495},{"$f":"SUM(GM50:GM60)","v":10674042.217973458},0,40167797.003140144,83430592.955871388,25261613.262856957,24750651.800730139,9232149.9348388314,7473445.4306152305,5701419.1627369011,5611930.1184055153,2087.6873759621567,976.07014365665873,1304.0167131471524,10457480.946694793,23313047.963432867,5201381.2419657884,5341190.8340503685,5799699.0490741031,2146435.8474740493,1537076.621774185,1568144.1469200796,714.40910359547297,299.40603298837567,{"$f":"SUM(HJ50:HJ60)","v":364.38197430524474},null,"Total",{"$f":"SUM(HM50:HM60)","v":40997035.620869495},{"$f":"SUM(HN50:HN60)","v":486078.39708321507},{"$f":"SUM(HO50:HO60)","v":0},74174540.82841295,23893725.830693807,6985163.4616222559,13277534.871526591,2212888.0380392997,2327760.6664962722,3906437.5575157665,1284987.6373053372,5299.2536821264566,9416.7801400121207,9628.4345126329845,1395153.5158940332,207749.78302064262,29488.350247001254,173988.88278263528,19177.992970442014,12970.484992378106,41305.28203458112,11106.852639023644,44.286009033110702,109.17247813350643,9.1380998495537789]
[null,null,null,null,null,null,null,null,null,null,null,null,null,null,null,null,null,null,null,null,null,null,null,null,null,null,null,null,null,61]
[null,null,null,null,null,null,null,null,null,null,null,null,null,null,null,null,null,null,null,null,null,null,null,null,null,null,null,null,null,62]
[null,null,null,null,null,null,null,null,null,null,null,null,null,null,null,null,null,null,null,null,null,null,null,null,null,null,null,null,null,63]
[null,null,null,null,null,null,null,null,null,null,null,null,null,null,null,null,null,null,null,null,null,null,null,null,null,null,null,null,null,64]
[null,null,null,null,null,null,null,null,null,null,null,null,null,null,null,null,null,null,null,null,null,null,null,null,null,null,null,null,null,65]
[null,null,null,null,null,null,null,null,null,null,null,null,null,null,null,null,null,null,null,null,null,null,null,null,null,null,null,null,null,66]
[null,null,null,null,null,null,null,null,null,null,null,null,null,null,null,null,null,null,null,null,null,null,null,null,null,null,null,null,null,67,null,null,null,null,"Construction",null,null,null,null,null,null,null,null,null,null,"O&M",null,null,null,null,null,null,null,null,null,null,null,null,null,null,null,"Construction",null,null,null,null,null,null,null,null,null,null,"O&M",null,null,null,null,null,null,null,null,null,null,null,null,null,null,null,"Construction",null,null,null,null,null,null,null,null,null,null,"O&M",null,null,null,null,null,null,null,null,null,null,null,null,null,null,null,"Construction",null,null,null,null,null,null,null,null,null,null,"O&M",null,null,null,null,null,null,null,null,null,null,null,null,null,null,null,"Construction",null,null,null,null,null,null,null,null,null,null,"O&M",null,null,null,null,null,null,null,null,null,null,null,null,null,null,null,"Construction",null,null,null,null,null,null,null,null,null,null,"O&M",null,null,null,null,null,null,null,null,null,null,null,null,null,null,null,"Construction",null,null,null,null,null,null,null,null,null,null,"O&M",null,null,null,null,null,null,null,null,null,null,null,null,null,null,null,"Construction",null,null,null,null,null,null,null,null,null,null,"O&M"]
[null,null,{"$f":"geo_country","v":"Mexico"},null,null,null,"Construction",null,null,null,null,null,null,null,null,null,null,"O&M",null,null,null,null,null,null,null,null,null,null,null,68,"Biopower",null,null,null,"Output",null,"Value Added",null,null,"Earnings",null,null,"Jobs",null,null,"Output",null,"Value Added",null,null,"Earnings",null,null,"Jobs",null,null,null,"Biopower",null,null,null,"Output",null,"Value Added",null,null,"Earnings",null,null,"Jobs",null,null,"Output",null,"Value Added",null,null,"Earnings",null,null,"Jobs",null,null,null,"Biopower",null,null,null,"Output",null,"Value Added",null,null,"Earnings",null,null,"Jobs",null,null,"Output",null,"Value Added",null,null,"Earnings",null,null,"Jobs",null,null,null,"Biopower",null,null,null,"Output",null,"Value Added",null,null,"Earnings",null,null,"Jobs",null,null,"Output",null,"Value Added",null,null,"Earnings",null,null,"Jobs",null,null,null,"Biopower",null,null,null,"Output",null,"Value Added",null,null,"Earnings",null,null,"Jobs",null,null,"Output",null,"Value Added",null,null,"Earnings",null,null,"Jobs",null,null,null,"Biopower",null,null,null,"Output",null,"Value Added",null,null,"Earnings",null,null,"Jobs",null,null,"Output",null,"Value Added",null,null,"Earnings",null,null,"Jobs",null,null,null,"Biopower",null,null,null,"Output",null,"Value Added",null,null,"Earnings",null,null,"Jobs",null,null,"Output",null,"Value Added",null,null,"Earnings",null,null,"Jobs",null,null,null,"Biopower",null,null,null,"Output",null,"Value Added",null,null,"Earnings",null,null,"Jobs",null,null,"Output",null,"Value Added",null,null,"Earnings",null,null,"Jobs"]
[null,null,"Geothermal",null,null,null,"Output",null,"Value Added",null,null,"Earnings",null,null,"Jobs",null,null,"Output",null,"Value Added",null,null,"Earnings",null,null,"Jobs",null,null,null,69,"Colombia","Construction","O&M",null,"Indirect","Induced","Direct","Indirect","Induced","Direct","Indirect","Induced","Direct","Indirect","Induced","Indirect","Induced","Direct","Indirect","Induced","Direct","Indirect","Induced","Direct","Indirect","Induced",null,"Mexico","Construction","O&M",null,"Indirect","Induced","Direct","Indirect","Induced","Direct","Indirect","Induced","Direct","Indirect","Induced","Indirect","Induced","Direct","Indirect","Induced","Direct","Indirect","Induced","Direct","Indirect","Induced",null,"Philippines","Construction","O&M",null,"Indirect","Induced","Direct","Indirect","Induced","Direct","Indirect","Induced","Direct","Indirect","Induced","Indirect","Induced","Direct","Indirect","Induced","Direct","Indirect","Induced","Direct","Indirect","Induced",null,"South Africa","Construction","O&M",null,"Indirect","Induced","Direct","Indirect","Induced","Direct","Indirect","Induced","Direct","Indirect","Induced","Indirect","Induced","Direct","Indirect","Induced","Direct","Indirect","Induced","Direct","Indirect","Induced",null,"Zambia","Construction","O&M",null,"Indirect","Induced","Direct","Indirect","Induced","Direct","Indirect","Induced","Direct","Indirect","Induced","Indirect","Induced","Direct","Indirect","Induced","Direct","Indirect","Induced","Direct","Indirect","Induced",null,"CR1","Construction","O&M",null,"Indirect","Induced","Direct","Indirect","Induced","Direct","Indirect","Induced","Direct","Indirect","Induced","Indirect","Induced","Direct","Indirect","Induced","Direct","Indirect","Induced","Direct","Indirect","Induced",null,"CR2","Construction","O&M",null,"Indirect","Induced","Direct","Indirect","Induced","Direct","Indirect","Induced","Direct","Indirect","Induced","Indirect","Induced","Direct","Indirect","Induced","Direct","Indirect","Induced","Direct","Indirect","Induced",null,"CR3","Construction","O&M",null,"Indirect","Induced","Direct","Indirect","Induced","Direct","Indirect","Induced","Direct","Indirect","Induced","Indirect","Induced","Direct","Indirect","Induced","Direct","Indirect","Induced","Direct","Indirect","Induced"]
[null,null,null,"Construction","O&M",null,"Indirect","Induced","Direct","Indirect","Induced","Direct","Indirect","Induced","Direct","Indirect","Induced","Indirect","Induced","Direct","Indirect","Induced","Direct","Indirect","Induced","Direct","Indirect","Induced",null,70,"TTL_C01T05: Agriculture, hunting, forestry and fishing",0,{"$f":"'Biopower-Inputs'!B41*'Biopower-Inputs'!B38+'Biopower-Inputs'!B41*'Biopower-Inputs'!B39*0.9","v":28385431.684592765},null,{"$f":"MMULT(L1_Colombia,AF71:AF104)-AF71:AF104","v":2994075.6034670044},{"$f":"MMULT(l2_colombia,AF71:AF105)-AI71:AI105-AF71:AF105","v":20321461.919571564},{"$f":"'Colombia-IO-Data'!$AN13*Calculations!AF71","v":0},{"$f":"'Colombia-IO-Data'!$AN13*AI71","v":2072801.3184865452},{"$f":"'Colombia-IO-Data'!$AN13*AJ71","v":14068566.943228245},{"$f":"'Colombia-IO-Data'!$AO13*Calculations!AK71","v":0},{"$f":"'Colombia-IO-Data'!$AO13*Calculations!AL71","v":547235.46255129296},{"$f":"'Colombia-IO-Data'!$AO13*Calculations!AM71","v":3714209.6880913926},{"$f":"(AN71*'Default-Data'!$F$19/biopower_dollar_index)/'Colombia-IO-Data'!$AP13","v":0},{"$f":"(AO71*'Default-Data'!$F$19/biopower_dollar_index)/'Colombia-IO-Data'!$AP13","v":111.80026447696984},{"$f":"(AP71*'Default-Data'!$F$19/biopower_dollar_index)/'Colombia-IO-Data'!$AP13","v":758.81344296582313},{"$f":"MMULT(L1_Colombia,AG71:AG104)-AG71:AG104","v":2128869.8252097256},{"$f":"MMULT(l2_colombia,AG71:AG105)-AT71:AT105-AG71:AG105","v":1945268.1262958683},{"$f":"'Colombia-IO-Data'!$AN13*AG71","v":19651260.694119625},{"$f":"'Colombia-IO-Data'!$AN13*AT71","v":1473818.5553735534},{"$f":"'Colombia-IO-Data'!$AN13*AU71","v":1346710.9288512536},{"$f":"'Colombia-IO-Data'!$AO13*AV71","v":5188083.7009089356},{"$f":"'Colombia-IO-Data'!$AO13*AW71","v":389099.41424362338},{"$f":"'Colombia-IO-Data'!$AO13*AX71","v":355542.02493989823},{"$f":"(AY71*'Default-Data'!$F$19/biopower_dollar_index)/'Colombia-IO-Data'!$AP13","v":1059.9260639763615},{"$f":"(AZ71*'Default-Data'!$F$19/biopower_dollar_index)/'Colombia-IO-Data'!$AP13","v":79.493052620276245},{"$f":"(BA71*'Default-Data'!$F$19/biopower_dollar_index)/'Colombia-IO-Data'!$AP13","v":72.637274338251146},null,"DOM_C01T05: Agriculture, hunting, forestry and fishing",{"$f":"AF71","v":0},{"$f":"AG71","v":28385431.684592765},null,{"$f":"MMULT(Mexico_L1,BG71:BG104)-BG71:BG104","v":1072031.1854791809},{"$f":"MMULT(Mexico_L2,BG71:BG105)-BG71:BG105-BJ71:BJ105","v":13837252.779192695},{"$f":"BG71*'Mexico-IO-Data'!AQ13","v":0},{"$f":"BJ71*'Mexico-IO-Data'!$AQ13","v":653805.50905957143},{"$f":"BK71*'Mexico-IO-Data'!$AQ13","v":8439000.8610078264},{"$f":"BG71*'Mexico-IO-Data'!AR13","v":0},{"$f":"BJ71*'Mexico-IO-Data'!$AR13","v":107704.482826639},{"$f":"BK71*'Mexico-IO-Data'!$AR13","v":1390196.6421417738},{"$f":"(BO71*'Default-Data'!$F$19/biopower_dollar_index)/'Mexico-IO-Data'!$AS13","v":0},{"$f":"(BP71*'Default-Data'!$F$19/biopower_dollar_index)/'Mexico-IO-Data'!$AS13","v":102.44624731348985},{"$f":"(BQ71*'Default-Data'!$F$19/biopower_dollar_index)/'Mexico-IO-Data'!$AS13","v":1322.32591696744},{"$f":"MMULT(Mexico_L1,BH71:BH104)-BH71:BH104","v":3520140.3290717453},{"$f":"MMULT(Mexico_L2,BH71:BH105)-BH71:BH105-BU71:BU105","v":908617.97824161127},{"$f":"BH71*'Mexico-IO-Data'!AQ13","v":17311578.118061446},{"$f":"BU71*'Mexico-IO-Data'!$AQ13","v":2146847.1915592188},{"$f":"BV71*'Mexico-IO-Data'!$AQ13","v":554143.80463139236},{"$f":"BH71*'Mexico-IO-Data'!AR13","v":2851818.3806690462},{"$f":"BU71*'Mexico-IO-Data'!$AR13","v":353660.32141163864},{"$f":"BV71*'Mexico-IO-Data'!$AR13","v":91286.737511984044},{"$f":"(BZ71*'Default-Data'!$F$19/biopower_dollar_index)/'Mexico-IO-Data'!$AS13","v":2712.5898890340022},{"$f":"(CA71*'Default-Data'!$F$19/biopower_dollar_index)/'Mexico-IO-Data'!$AS13","v":336.39428741905471},{"$f":"(CB71*'Default-Data'!$F$19/biopower_dollar_index)/'Mexico-IO-Data'!$AS13","v":86.830031974131373},null,"TTL_C01T05: Agriculture, hunting, forestry and fishing",0,{"$f":"'Biopower-Inputs'!B41*'Biopower-Inputs'!B38+'Biopower-Inputs'!B41*'Biopower-Inputs'!B39*0.9","v":28385431.684592765},null,{"$f":"MMULT(Philippines_L1,CH71:CH104)-CH71:CH104","v":5668196.324848175},{"$f":"MMULT(Philippines_L2,CH71:CH105)-CK71:CK105-CH71:CH105","v":35019935.232406765},{"$f":"CH71*'Philippines-IO-Data'!AN13","v":0},{"$f":"CK71*'Philippines-IO-Data'!$AN13","v":4000368.0661258097},{"$f":"CL71*'Philippines-IO-Data'!$AN13","v":24715557.216565996},{"$f":"CH71*'Philippines-IO-Data'!AO13","v":0},{"$f":"CK71*'Philippines-IO-Data'!$AO13","v":1151488.922306818},{"$f":"CL71*'Philippines-IO-Data'!$AO13","v":7114267.9556179186},{"$f":"(CP71*'Default-Data'!$F$19/biopower_dollar_index)/'Philippines-IO-Data'!$AP13","v":0},{"$f":"(CQ71*'Default-Data'!$F$19/biopower_dollar_index)/'Philippines-IO-Data'!$AP13","v":661.5067167837127},{"$f":"(CR71*'Default-Data'!$F$19/biopower_dollar_index)/'Philippines-IO-Data'!$AP13","v":4087.0007053236932},{"$f":"MMULT(Philippines_L1,CI71:CI104)-CI71:CI104","v":2429866.3403330967},{"$f":"MMULT(Philippines_L2,CI71:CI105)-CV71:CV105-CI71:CI105","v":3484157.5680419095},{"$f":"CI71*'Philippines-IO-Data'!AN13","v":20033211.262717191},{"$f":"CV71*'Philippines-IO-Data'!$AN13","v":1714894.6782613201},{"$f":"CW71*'Philippines-IO-Data'!$AN13","v":2458967.8750971546},{"$f":"CI71*'Philippines-IO-Data'!AO13","v":5766474.6008212799},{"$f":"CV71*'Philippines-IO-Data'!$AO13","v":493625.13456248603},{"$f":"CW71*'Philippines-IO-Data'!$AO13","v":707803.43750340794},{"$f":"(DA71*'Default-Data'!$F$19/biopower_dollar_index)/'Philippines-IO-Data'!$AP13","v":3312.7211271508454},{"$f":"(DB71*'Default-Data'!$F$19/biopower_dollar_index)/'Philippines-IO-Data'!$AP13","v":283.57749324430046},{"$f":"(DC71*'Default-Data'!$F$19/biopower_dollar_index)/'Philippines-IO-Data'!$AP13","v":406.61852580666618},null,"DOM_C01T05: Agriculture, hunting, forestry and fishing",{"$f":"AF71","v":0},{"$f":"AG71","v":28385431.684592765},null,{"$f":"MMULT(SouthAfrica_L1,DI71:DI104)-DI71:DI104","v":4743374.6078717001},{"$f":"MMULT(SouthAfrica_L2,DI71:DI105)-DI71:DI105-DL71:DL105","v":22115143.163596753},{"$f":"DI71*'SouthAfrica-IO-Data'!AR13","v":0},{"$f":"DL71*'Mexico-IO-Data'!$AQ13","v":2892867.756243112},{"$f":"DM71*'Mexico-IO-Data'!$AQ13","v":13487483.0413984},{"$f":"DI71*'SouthAfrica-IO-Data'!AS13","v":0},{"$f":"DL71*'Mexico-IO-Data'!$AR13","v":476555.82777237636},{"$f":"DM71*'Mexico-IO-Data'!$AR13","v":2221857.0591373215},{"$f":"(DQ71*'Default-Data'!$F$19/biopower_dollar_index)/'SouthAfrica-IO-Data'!$AT13","v":0},{"$f":"(DR71*'Default-Data'!$F$19/biopower_dollar_index)/'SouthAfrica-IO-Data'!$AT13","v":33.114039407768701},{"$f":"(DS71*'Default-Data'!$F$19/biopower_dollar_index)/'SouthAfrica-IO-Data'!$AT13","v":154.38833800149177},{"$f":"MMULT(SouthAfrica_L1,DJ71:DJ104)-DJ71:DJ104","v":1357746.5901010595},{"$f":"MMULT(SouthAfrica_L2,DJ71:DJ105)-DJ71:DJ105-DW71:DW105","v":1880593.5846988894},{"$f":"DJ71*'SouthAfrica-IO-Data'!AR13","v":11463424.600471133},{"$f":"DW71*'SouthAfrica-IO-Data'!$AR13","v":548324.43047249643},{"$f":"DX71*'SouthAfrica-IO-Data'!$AR13","v":759475.60008491471},{"$f":"DJ71*'SouthAfrica-IO-Data'!AS13","v":3516507.1907978705},{"$f":"DW71*'SouthAfrica-IO-Data'!$AS13","v":168203.38335609017},{"$f":"DX71*'SouthAfrica-IO-Data'!$AS13","v":232975.87780394769},{"$f":"(EB71*'Default-Data'!$F$19/biopower_dollar_index)/'SouthAfrica-IO-Data'!$AT13","v":244.34861753364646},{"$f":"(EC71*'Default-Data'!$F$19/biopower_dollar_index)/'SouthAfrica-IO-Data'!$AT13","v":11.687808941524512},{"$f":"(ED71*'Default-Data'!$F$19/biopower_dollar_index)/'SouthAfrica-IO-Data'!$AT13","v":16.188601521717906},null,"MAIZE",0,{"$f":"IF(biopower_feedstock=\"Maize Stover\",'Biopower-Inputs'!B41*'Biopower-Inputs'!B38+'Biopower-Inputs'!B41*'Biopower-Inputs'!B39*0.9,0)","v":0},null,{"$f":"MMULT(Zambia_L1,EJ71:EJ97)-EJ71:EJ97","v":4585.586800182502},{"$f":"MMULT(Zambia_L2,EJ71:EJ112)-EM71:EM112-EJ71:EJ112","v":14239693.883583222},{"$f":"EJ71*'Zambia-IO-Data'!BO11","v":0},{"$f":"EM71*'Zambia-IO-Data'!$BO11","v":1810.5661991613915},{"$f":"EN71*'Zambia-IO-Data'!$BO11","v":5622379.3279836932},{"$f":"EJ71*'Zambia-IO-Data'!BN11","v":0},{"$f":"EM71*'Zambia-IO-Data'!$BN11","v":1438.6025761927942},{"$f":"EN71*'Zambia-IO-Data'!$BN11","v":4467314.9147028038},{"$f":"(ER71*'Default-Data'!$F$19/biopower_dollar_index)/'Zambia-IO-Data'!$BP11","v":0},{"$f":"(ES71*'Default-Data'!$F$19/biopower_dollar_index)/'Zambia-IO-Data'!$BP11","v":13.873981599975892},{"$f":"(ET71*'Default-Data'!$F$19/biopower_dollar_index)/'Zambia-IO-Data'!$BP11","v":43083.090461238266},{"$f":"MMULT(Zambia_L1,EK71:EK97)-EK71:EK97","v":227.58399420199933},{"$f":"MMULT(Zambia_L2,EK71:EK112)-EX71:EX112-EK71:EK112","v":2017481.699777616},{"$f":"EK71*'Zambia-IO-Data'!BO11","v":0},{"$f":"EX71*'Zambia-IO-Data'!$BO11","v":89.85892216801625},{"$f":"EY71*'Zambia-IO-Data'!$BO11","v":796579.44167552225},{"$f":"EK71*'Zambia-IO-Data'!BN11","v":0},{"$f":"EX71*'Zambia-IO-Data'!$BN11","v":71.398260381029502},{"$f":"EY71*'Zambia-IO-Data'!$BN11","v":632929.76388679084},{"$f":"(FC71*'Default-Data'!$F$19/biopower_dollar_index)/'Zambia-IO-Data'!$BP11","v":0},{"$f":"(FD71*'Default-Data'!$F$19/biopower_dollar_index)/'Zambia-IO-Data'!$BP11","v":0.68856970451020427},{"$f":"(FE71*'Default-Data'!$F$19/biopower_dollar_index)/'Zambia-IO-Data'!$BP11","v":6104.0179154146063},null,"TTL_C01T05: Agriculture, hunting, forestry and fishing",{"$f":"CH71","v":0},{"$f":"CI71","v":28385431.684592765},null,{"$f":"MMULT(CustomRegion1_L1,FK71:FK104)-FK71:FK104","v":10668095.629038401},{"$f":"MMULT(CustomRegion1_L2,FK71:FK105)-FK71:FK105-FN71:FN105","v":45957812.659341253},{"$f":"FK71*CustomRegion1!C9","v":0},{"$f":"FN71*CustomRegion1!$C9","v":7529080.9694959987},{"$f":"FO71*CustomRegion1!$C9","v":32435038.522831276},{"$f":"FK71*CustomRegion1!D9","v":0},{"$f":"FN71*CustomRegion1!$D9","v":2167213.9133742056},{"$f":"FO71*CustomRegion1!$D9","v":9336287.7955891863},{"$f":"(FS71*'Default-Data'!$F$19/biopower_dollar_index)/CustomRegion1!$E9","v":0},{"$f":"(FT71*'Default-Data'!$F$19/biopower_dollar_index)/CustomRegion1!$E9","v":1250.2221943197974},{"$f":"(FU71*'Default-Data'!$F$19/biopower_dollar_index)/CustomRegion1!$E9","v":5385.9169796623646},{"$f":"MMULT(CustomRegion1_L1,FL71:FL104)-FL71:FL104","v":2848302.8476619646},{"$f":"MMULT(CustomRegion1_L2,FL71:FL105)-FY71:FY105-FL71:FL105","v":4407321.3060007133},{"$f":"FL71*CustomRegion1!C9","v":20033211.262717191},{"$f":"FY71*CustomRegion1!$C9","v":2010209.0861765149},{"$f":"FZ71*CustomRegion1!$C9","v":3110496.9551585536},{"$f":"FL71*CustomRegion1!D9","v":5766474.6008212799},{"$f":"FY71*CustomRegion1!$D9","v":578630.13002563326},{"$f":"FZ71*CustomRegion1!$D9","v":895343.31029766751},{"$f":"(GD71*'Default-Data'!$C$58/biopower_dollar_index)/CustomRegion1!$E9","v":3326.5634206379045},{"$f":"(GE71*'Default-Data'!$C$58/biopower_dollar_index)/CustomRegion1!$E9","v":333.80010454708031},{"$f":"(GF71*'Default-Data'!$C$58/biopower_dollar_index)/CustomRegion1!$E9","v":516.50557942713874},null,"C01T05 Agriculture, hunting, forestry and fishing",{"$f":"BG71","v":0},{"$f":"BH71","v":28385431.684592765},null,{"$f":"MMULT(CustomRegion2_L1,GL71:GL107)-GL71:GL107","v":6559267.142766417},{"$f":"MMULT(CustomRegion2_L2,GL71:GL109)-GL71:GL109-GO71:GO109","v":21985254.656726815},{"$f":"GL71*CustomRegion2!C13","v":0},{"$f":"GO71*CustomRegion2!$C13","v":4041698.8042906639},{"$f":"GP71*CustomRegion2!$C13","v":13546906.311951509},{"$f":"GL71*CustomRegion2!D13","v":0},{"$f":"GO71*CustomRegion2!$D13","v":725826.52932493482},{"$f":"GP71*CustomRegion2!$D13","v":2432814.6325637689},{"$f":"(GT71*'Default-Data'!$C$59/biopower_dollar_index)/CustomRegion2!$E13","v":0},{"$f":"(GU71*'Default-Data'!$C$59/biopower_dollar_index)/CustomRegion2!$E13","v":690.39098632135062},{"$f":"(GV71*'Default-Data'!$C$59/biopower_dollar_index)/CustomRegion2!$E13","v":2314.0423032964145},{"$f":"MMULT(CustomRegion2_L1,GM71:GM107)-GM71:GM107","v":4257502.0596310832},{"$f":"MMULT(CustomRegion2_L2,GM71:GM109)-GM71:GM109-GZ71:GZ109","v":995496.36120358109},{"$f":"GM71*CustomRegion2!C13","v":17490576.736977763},{"$f":"GZ71*CustomRegion2!$C13","v":2623393.8348817709},{"$f":"HA71*CustomRegion2!$C13","v":613406.40123025735},{"$f":"GM71*CustomRegion2!D13","v":3141036.7827050546},{"$f":"GZ71*CustomRegion2!$D13","v":471120.91583945975},{"$f":"HA71*CustomRegion2!$D13","v":110158.29254718433},{"$f":"(HE71*'Default-Data'!$C$59/biopower_dollar_index)/CustomRegion2!$E13","v":2987.6883730059694},{"$f":"(HF71*'Default-Data'!$C$59/biopower_dollar_index)/CustomRegion2!$E13","v":448.12034366604519},{"$f":"(HG71*'Default-Data'!$C$59/biopower_dollar_index)/CustomRegion2!$E13","v":104.78025970456052},null,"MAIZE",{"$f":"EJ71","v":0},{"$f":"EK71","v":0},null,{"$f":"MMULT(CustomRegion3_L1,HM71:HM97)-HM71:HM97","v":4585.586800182502},{"$f":"MMULT(CustomRegion3_L2,HM71:HM112)-HM71:HM112-HP71:HP112","v":14239693.883583222},{"$f":"HM71*CustomRegion3!D12","v":0},{"$f":"HP71*CustomRegion3!$D12","v":1810.5661991613915},{"$f":"HQ71*CustomRegion3!$D12","v":5622379.3279836932},{"$f":"HM71*CustomRegion3!E12","v":0},{"$f":"HP71*CustomRegion3!$E12","v":1438.6025761927942},{"$f":"HQ71*CustomRegion3!$E12","v":4467314.9147028038},{"$f":"(HU71*'Default-Data'!$C$60/biopower_dollar_index)/CustomRegion3!$F12","v":0},{"$f":"(HV71*'Default-Data'!$C$60/biopower_dollar_index)/CustomRegion3!$F12","v":13.930173041092109},{"$f":"(HW71*'Default-Data'!$C$60/biopower_dollar_index)/CustomRegion3!$F12","v":43257.582615729916},{"$f":"MMULT(CustomRegion3_L1,HN71:HN97)-HN71:HN97","v":227.58399420199933},{"$f":"MMULT(CustomRegion3_L2,HN71:HN112)-HN71:HN112-IA71:IA112","v":2017481.699777616},{"$f":"HN71*CustomRegion3!D12","v":0},{"$f":"IA71*CustomRegion3!$D12","v":89.85892216801625},{"$f":"IB71*CustomRegion3!$D12","v":796579.44167552225},{"$f":"HN71*CustomRegion3!E12","v":0},{"$f":"IA71*CustomRegion3!$E12","v":71.398260381029502},{"$f":"IB71*CustomRegion3!$E12","v":632929.76388679084},{"$f":"(IF71*'Default-Data'!$C$60/biopower_dollar_index)/CustomRegion3!$F12","v":0},{"$f":"(IG71*'Default-Data'!$C$60/biopower_dollar_index)/CustomRegion3!$F12","v":0.69135850192402404},{"$f":"(IH71*'Default-Data'!$C$60/biopower_dollar_index)/CustomRegion3!$F12","v":6128.7399867821323}]
[null,242,"Agriculture",{"$f":"HLOOKUP(geo_country&D$1,$AF$2:$IK$320,$B72,FALSE)","v":0},0,0,54390.165204699435,1230359.4732993485,0,33171.226855306159,750366.04593474173,0,5464.4535472250709,{"$f":"HLOOKUP(geo_country&N$1,$AF$2:$IK$320,$B72,FALSE)","v":123611.35809993258},0,5.37819621210223,121.66013164179387,693.12521502753532,7075.3751765104225,0,422.7200572066784,4315.0976685423002,0,69.636680191607553,710.8465075573996,0,6.8537453268326276E-2,0.69962567369114459,null,71,"TTL_C10T14: Mining and quarrying",0,0,null,25215291.24502562,5133361.3217770681,{"$f":"'Colombia-IO-Data'!$AN14*Calculations!AF72","v":0},{"$f":"'Colombia-IO-Data'!$AN14*AI72","v":20648379.7224622},{"$f":"'Colombia-IO-Data'!$AN14*AJ72","v":4203623.6184883956},{"$f":"'Colombia-IO-Data'!$AO14*Calculations!AK72","v":0},{"$f":"'Colombia-IO-Data'!$AO14*Calculations!AL72","v":1712632.4663112529},{"$f":"'Colombia-IO-Data'!$AO14*Calculations!AM72","v":348659.91336571291},{"$f":"(AN72*'Default-Data'!$F$19/biopower_dollar_index)/'Colombia-IO-Data'!$AP14","v":0},{"$f":"(AO72*'Default-Data'!$F$19/biopower_dollar_index)/'Colombia-IO-Data'!$AP14","v":163.30488021195947},{"$f":"(AP72*'Default-Data'!$F$19/biopower_dollar_index)/'Colombia-IO-Data'!$AP14","v":33.245816897034153},4608617.0909314696,491390.04858679138,{"$f":"'Colombia-IO-Data'!$AN14*AG72","v":0},{"$f":"'Colombia-IO-Data'!$AN14*AT72","v":3773919.3556907652},{"$f":"'Colombia-IO-Data'!$AN14*AU72","v":402391.08152521792},{"$f":"'Colombia-IO-Data'!$AO14*AV72","v":0},{"$f":"'Colombia-IO-Data'!$AO14*AW72","v":313019.07949539268},{"$f":"'Colombia-IO-Data'!$AO14*AX72","v":33375.404735728553},{"$f":"(AY72*'Default-Data'!$F$19/biopower_dollar_index)/'Colombia-IO-Data'!$AP14","v":0},{"$f":"(AZ72*'Default-Data'!$F$19/biopower_dollar_index)/'Colombia-IO-Data'!$AP14","v":29.847351540142331},{"$f":"(BA72*'Default-Data'!$F$19/biopower_dollar_index)/'Colombia-IO-Data'!$AP14","v":3.1824495795838019},null,"DOM_C10T14: Mining and quarrying",{"$f":"AF72","v":0},{"$f":"AG72","v":0},null,21383071.736699145,7642292.5871268287,{"$f":"BG72*'Mexico-IO-Data'!AQ14","v":0},{"$f":"BJ72*'Mexico-IO-Data'!$AQ14","v":18409271.210669007},{"$f":"BK72*'Mexico-IO-Data'!$AQ14","v":6579458.6783451969},{"$f":"BG72*'Mexico-IO-Data'!AR14","v":0},{"$f":"BJ72*'Mexico-IO-Data'!$AR14","v":1142514.1469797927},{"$f":"BK72*'Mexico-IO-Data'!$AR14","v":408333.63436581031},{"$f":"(BO72*'Default-Data'!$F$19/biopower_dollar_index)/'Mexico-IO-Data'!$AS14","v":0},{"$f":"(BP72*'Default-Data'!$F$19/biopower_dollar_index)/'Mexico-IO-Data'!$AS14","v":59.498785715212215},{"$f":"(BQ72*'Default-Data'!$F$19/biopower_dollar_index)/'Mexico-IO-Data'!$AS14","v":21.264818011811336},6651302.3672634261,501828.25669613015,{"$f":"BH72*'Mexico-IO-Data'!AQ14","v":0},{"$f":"BU72*'Mexico-IO-Data'!$AQ14","v":5726288.0979334386},{"$f":"BV72*'Mexico-IO-Data'!$AQ14","v":432037.66944488487},{"$f":"BH72*'Mexico-IO-Data'!AR14","v":0},{"$f":"BU72*'Mexico-IO-Data'!$AR14","v":355384.25648155826},{"$f":"BV72*'Mexico-IO-Data'!$AR14","v":26813.073897400751},{"$f":"(BZ72*'Default-Data'!$F$19/biopower_dollar_index)/'Mexico-IO-Data'!$AS14","v":0},{"$f":"(CA72*'Default-Data'!$F$19/biopower_dollar_index)/'Mexico-IO-Data'!$AS14","v":18.507369715160504},{"$f":"(CB72*'Default-Data'!$F$19/biopower_dollar_index)/'Mexico-IO-Data'!$AS14","v":1.3963462442936505},null,"TTL_C10T14: Mining and quarrying",0,0,null,9264338.0931519996,1956891.8146849312,{"$f":"CH72*'Philippines-IO-Data'!AN14","v":0},{"$f":"CK72*'Philippines-IO-Data'!$AN14","v":5333352.5628027646},{"$f":"CL72*'Philippines-IO-Data'!$AN14","v":1126555.8175917917},{"$f":"CH72*'Philippines-IO-Data'!AO14","v":0},{"$f":"CK72*'Philippines-IO-Data'!$AO14","v":1394151.4334350808},{"$f":"CL72*'Philippines-IO-Data'!$AO14","v":294484.45221758506},{"$f":"(CP72*'Default-Data'!$F$19/biopower_dollar_index)/'Philippines-IO-Data'!$AP14","v":0},{"$f":"(CQ72*'Default-Data'!$F$19/biopower_dollar_index)/'Philippines-IO-Data'!$AP14","v":431.8776642921739},{"$f":"(CR72*'Default-Data'!$F$19/biopower_dollar_index)/'Philippines-IO-Data'!$AP14","v":91.224851435777097},1080526.4091840347,194692.51958137262,{"$f":"CI72*'Philippines-IO-Data'!AN14","v":0},{"$f":"CV72*'Philippines-IO-Data'!$AN14","v":622044.25568811002},{"$f":"CW72*'Philippines-IO-Data'!$AN14","v":112081.81716029745},{"$f":"CI72*'Philippines-IO-Data'!AO14","v":0},{"$f":"CV72*'Philippines-IO-Data'!$AO14","v":162603.8932389454},{"$f":"CW72*'Philippines-IO-Data'!$AO14","v":29298.461749155511},{"$f":"(DA72*'Default-Data'!$F$19/biopower_dollar_index)/'Philippines-IO-Data'!$AP14","v":0},{"$f":"(DB72*'Default-Data'!$F$19/biopower_dollar_index)/'Philippines-IO-Data'!$AP14","v":50.371134679265673},{"$f":"(DC72*'Default-Data'!$F$19/biopower_dollar_index)/'Philippines-IO-Data'!$AP14","v":9.0760235395677249},null,"DOM_C10T14: Mining and quarrying",{"$f":"AF72","v":0},{"$f":"AG72","v":0},null,37814332.894202299,11688654.835074238,{"$f":"DI72*'SouthAfrica-IO-Data'!AR14","v":0},{"$f":"DL72*'Mexico-IO-Data'!$AQ14","v":32555393.278933696},{"$f":"DM72*'Mexico-IO-Data'!$AQ14","v":10063082.591519007},{"$f":"DI72*'SouthAfrica-IO-Data'!AS14","v":0},{"$f":"DL72*'Mexico-IO-Data'!$AR14","v":2020449.2049699621},{"$f":"DM72*'Mexico-IO-Data'!$AR14","v":624533.91508368799},{"$f":"(DQ72*'Default-Data'!$F$19/biopower_dollar_index)/'SouthAfrica-IO-Data'!$AT14","v":0},{"$f":"(DR72*'Default-Data'!$F$19/biopower_dollar_index)/'SouthAfrica-IO-Data'!$AT14","v":128.00867476851246},{"$f":"(DS72*'Default-Data'!$F$19/biopower_dollar_index)/'SouthAfrica-IO-Data'!$AT14","v":39.568309176593303},6204625.4500506567,993961.88096053898,{"$f":"DJ72*'SouthAfrica-IO-Data'!AR14","v":0},{"$f":"DW72*'SouthAfrica-IO-Data'!$AR14","v":3695441.1684355969},{"$f":"DX72*'SouthAfrica-IO-Data'!$AR14","v":591998.28971582314},{"$f":"DJ72*'SouthAfrica-IO-Data'!AS14","v":0},{"$f":"DW72*'SouthAfrica-IO-Data'!$AS14","v":1252060.8140223031},{"$f":"DX72*'SouthAfrica-IO-Data'!$AS14","v":200576.28487025457},{"$f":"(EB72*'Default-Data'!$F$19/biopower_dollar_index)/'SouthAfrica-IO-Data'!$AT14","v":0},{"$f":"(EC72*'Default-Data'!$F$19/biopower_dollar_index)/'SouthAfrica-IO-Data'!$AT14","v":79.326243460281773},{"$f":"(ED72*'Default-Data'!$F$19/biopower_dollar_index)/'SouthAfrica-IO-Data'!$AT14","v":12.707819802188316},null,"DRSTAP",0,0,null,5145.0620037789749,8531805.9778162614,{"$f":"EJ72*'Zambia-IO-Data'!BO12","v":0},{"$f":"EM72*'Zambia-IO-Data'!$BO12","v":2741.3364528820475},{"$f":"EN72*'Zambia-IO-Data'!$BO12","v":4545824.8547298592},{"$f":"EJ72*'Zambia-IO-Data'!BN12","v":0},{"$f":"EM72*'Zambia-IO-Data'!$BN12","v":2485.6077464969367},{"$f":"EN72*'Zambia-IO-Data'!$BN12","v":4121762.3839115901},{"$f":"(ER72*'Default-Data'!$F$19/biopower_dollar_index)/'Zambia-IO-Data'!$BP12","v":0},{"$f":"(ES72*'Default-Data'!$F$19/biopower_dollar_index)/'Zambia-IO-Data'!$BP12","v":23.971371044614685},{"$f":"(ET72*'Default-Data'!$F$19/biopower_dollar_index)/'Zambia-IO-Data'!$BP12","v":39750.558229362221},248.29512480745632,1211904.9823014892,{"$f":"EK72*'Zambia-IO-Data'!BO12","v":0},{"$f":"EX72*'Zambia-IO-Data'!$BO12","v":132.29393080348538},{"$f":"EY72*'Zambia-IO-Data'!$BO12","v":645714.14357539464},{"$f":"EK72*'Zambia-IO-Data'!BN12","v":0},{"$f":"EX72*'Zambia-IO-Data'!$BN12","v":119.95274015853234},{"$f":"EY72*'Zambia-IO-Data'!$BN12","v":585477.96116243268},{"$f":"(FC72*'Default-Data'!$F$19/biopower_dollar_index)/'Zambia-IO-Data'!$BP12","v":0},{"$f":"(FD72*'Default-Data'!$F$19/biopower_dollar_index)/'Zambia-IO-Data'!$BP12","v":1.1568324270838344},{"$f":"(FE72*'Default-Data'!$F$19/biopower_dollar_index)/'Zambia-IO-Data'!$BP12","v":5646.3894857299347},null,"TTL_C10T14: Mining and quarrying",{"$f":"CH72","v":0},{"$f":"CI72","v":0},null,67401857.574010432,17838773.477145746,{"$f":"FK72*CustomRegion1!C10","v":0},{"$f":"FN72*CustomRegion1!$C10","v":38802326.320078261},{"$f":"FO72*CustomRegion1!$C10","v":10269537.584333096},{"$f":"FK72*CustomRegion1!D10","v":0},{"$f":"FN72*CustomRegion1!$D10","v":10143023.215274626},{"$f":"FO72*CustomRegion1!$D10","v":2684482.2980143372},{"$f":"(FS72*'Default-Data'!$F$19/biopower_dollar_index)/CustomRegion1!$E10","v":0},{"$f":"(FT72*'Default-Data'!$F$19/biopower_dollar_index)/CustomRegion1!$E10","v":3155.2163518964862},{"$f":"(FU72*'Default-Data'!$F$19/biopower_dollar_index)/CustomRegion1!$E10","v":835.06882152415153},7889709.8545682803,1710725.595265355,{"$f":"FL72*CustomRegion1!C10","v":0},{"$f":"FY72*CustomRegion1!$C10","v":4541997.9117272906},{"$f":"FZ72*CustomRegion1!$C10","v":984841.29637982021},{"$f":"FL72*CustomRegion1!D10","v":0},{"$f":"FY72*CustomRegion1!$D10","v":1187289.3878153916},{"$f":"FZ72*CustomRegion1!$D10","v":257439.92899138961},{"$f":"(GD72*'Default-Data'!$C$58/biopower_dollar_index)/CustomRegion1!$E10","v":0},{"$f":"(GE72*'Default-Data'!$C$58/biopower_dollar_index)/CustomRegion1!$E10","v":369.33316737625785},{"$f":"(GF72*'Default-Data'!$C$58/biopower_dollar_index)/CustomRegion1!$E10","v":80.082501670850206},null,"C10T14 Mining and quarrying",{"$f":"BG72","v":0},{"$f":"BH72","v":0},null,23407304.790675834,12208746.513362594,{"$f":"GL72*CustomRegion2!C14","v":0},{"$f":"GO72*CustomRegion2!$C14","v":19022079.414781224},{"$f":"GP72*CustomRegion2!$C14","v":9921507.316153137},{"$f":"GL72*CustomRegion2!D14","v":0},{"$f":"GO72*CustomRegion2!$D14","v":1501273.0753937953},{"$f":"GP72*CustomRegion2!$D14","v":783031.73256069422},{"$f":"(GT72*'Default-Data'!$C$59/biopower_dollar_index)/CustomRegion2!$E14","v":0},{"$f":"(GU72*'Default-Data'!$C$59/biopower_dollar_index)/CustomRegion2!$E14","v":78.181898446508157},{"$f":"(GV72*'Default-Data'!$C$59/biopower_dollar_index)/CustomRegion2!$E14","v":40.777995954796801},1511374.9275065039,552814.28023807681,{"$f":"GM72*CustomRegion2!C14","v":0},{"$f":"GZ72*CustomRegion2!$C14","v":1228227.4338560384},{"$f":"HA72*CustomRegion2!$C14","v":449247.67009069241},{"$f":"GM72*CustomRegion2!D14","v":0},{"$f":"GZ72*CustomRegion2!$D14","v":96934.974179282755},{"$f":"HA72*CustomRegion2!$D14","v":35455.82039608511},{"$f":"(HE72*'Default-Data'!$C$59/biopower_dollar_index)/CustomRegion2!$E14","v":0},{"$f":"(HF72*'Default-Data'!$C$59/biopower_dollar_index)/CustomRegion2!$E14","v":5.0480891394203296},{"$f":"(HG72*'Default-Data'!$C$59/biopower_dollar_index)/CustomRegion2!$E14","v":1.8464351322741477},null,"DRSTAP",{"$f":"EJ72","v":0},{"$f":"EK72","v":0},null,5145.0620037789749,8531805.9778162614,{"$f":"HM72*CustomRegion3!D13","v":0},{"$f":"HP72*CustomRegion3!$D13","v":2741.3364528820475},{"$f":"HQ72*CustomRegion3!$D13","v":4545824.8547298592},{"$f":"HM72*CustomRegion3!E13","v":0},{"$f":"HP72*CustomRegion3!$E13","v":2485.6077464969367},{"$f":"HQ72*CustomRegion3!$E13","v":4121762.3839115901},{"$f":"(HU72*'Default-Data'!$C$60/biopower_dollar_index)/CustomRegion3!$F13","v":0},{"$f":"(HV72*'Default-Data'!$C$60/biopower_dollar_index)/CustomRegion3!$F13","v":24.06845823438945},{"$f":"(HW72*'Default-Data'!$C$60/biopower_dollar_index)/CustomRegion3!$F13","v":39911.553192198691},248.29512480745632,1211904.9823014892,{"$f":"HN72*CustomRegion3!D13","v":0},{"$f":"IA72*CustomRegion3!$D13","v":132.29393080348538},{"$f":"IB72*CustomRegion3!$D13","v":645714.14357539464},{"$f":"HN72*CustomRegion3!E13","v":0},{"$f":"IA72*CustomRegion3!$E13","v":119.95274015853234},{"$f":"IB72*CustomRegion3!$E13","v":585477.96116243268},{"$f":"(IF72*'Default-Data'!$C$60/biopower_dollar_index)/CustomRegion3!$F13","v":0},{"$f":"(IG72*'Default-Data'!$C$60/biopower_dollar_index)/CustomRegion3!$F13","v":1.1615177498038762},{"$f":"(IH72*'Default-Data'!$C$60/biopower_dollar_index)/CustomRegion3!$F13","v":5669.2581020691096}]
[null,243,"Mining and Extraction",5014475.5956324572,289655.84590096516,0,4559572.4658072433,679525.57002037391,4317099.1687244391,3925460.6242415272,585022.14588840876,4317099.1687244391,243621.50164906436,36307.57949758583,232.63024090414245,13.127733786758485,1.9564621138099272,63227.770912158303,3907.7183979683323,249372.63881478983,54434.517037618636,3364.2616313003577,15476.537036971906,3378.3089557314274,208.79243202600904,0.83396521566041093,0.18204280131295444,1.1250942325590249E-2,null,72,"TTL_C15T16: Food products, beverages and tobacco",0,0,null,2882014.5086391713,35426666.510776088,{"$f":"'Colombia-IO-Data'!$AN15*Calculations!AF73","v":0},{"$f":"'Colombia-IO-Data'!$AN15*AI73","v":659831.01157083618},{"$f":"'Colombia-IO-Data'!$AN15*AJ73","v":8110858.9600492828},{"$f":"'Colombia-IO-Data'!$AO15*Calculations!AK73","v":0},{"$f":"'Colombia-IO-Data'!$AO15*Calculations!AL73","v":231558.05658273268},{"$f":"'Colombia-IO-Data'!$AO15*Calculations!AM73","v":2846387.491752544},{"$f":"(AN73*'Default-Data'!$F$19/biopower_dollar_index)/'Colombia-IO-Data'!$AP15","v":0},{"$f":"(AO73*'Default-Data'!$F$19/biopower_dollar_index)/'Colombia-IO-Data'!$AP15","v":54.435472095913617},{"$f":"(AP73*'Default-Data'!$F$19/biopower_dollar_index)/'Colombia-IO-Data'!$AP15","v":669.13865649107106},2934913.7256532842,3391210.9993402939,{"$f":"'Colombia-IO-Data'!$AN15*AG73","v":0},{"$f":"'Colombia-IO-Data'!$AN15*AT73","v":671942.17331866815},{"$f":"'Colombia-IO-Data'!$AN15*AU73","v":776410.45089721435},{"$f":"'Colombia-IO-Data'!$AO15*AV73","v":0},{"$f":"'Colombia-IO-Data'!$AO15*AW73","v":235808.29191285255},{"$f":"'Colombia-IO-Data'!$AO15*AX73","v":272469.90815462975},{"$f":"(AY73*'Default-Data'!$F$19/biopower_dollar_index)/'Colombia-IO-Data'!$AP15","v":0},{"$f":"(AZ73*'Default-Data'!$F$19/biopower_dollar_index)/'Colombia-IO-Data'!$AP15","v":55.434632177528584},{"$f":"(BA73*'Default-Data'!$F$19/biopower_dollar_index)/'Colombia-IO-Data'!$AP15","v":64.053172242047225},null,"DOM_C15T16: Food products, beverages and tobacco",0,0,null,707287.69189224904,37730451.865396671,{"$f":"BG73*'Mexico-IO-Data'!AQ15","v":0},{"$f":"BJ73*'Mexico-IO-Data'!$AQ15","v":274785.89928291645},{"$f":"BK73*'Mexico-IO-Data'!$AQ15","v":14658527.59072653},{"$f":"BG73*'Mexico-IO-Data'!AR15","v":0},{"$f":"BJ73*'Mexico-IO-Data'!$AR15","v":47443.304005606733},{"$f":"BK73*'Mexico-IO-Data'!$AR15","v":2530875.7930310913},{"$f":"(BO73*'Default-Data'!$F$19/biopower_dollar_index)/'Mexico-IO-Data'!$AS15","v":0},{"$f":"(BP73*'Default-Data'!$F$19/biopower_dollar_index)/'Mexico-IO-Data'!$AS15","v":11.914253978011974},{"$f":"(BQ73*'Default-Data'!$F$19/biopower_dollar_index)/'Mexico-IO-Data'!$AS15","v":635.5690780180787},2418673.0290610446,2477555.8732026648,{"$f":"BH73*'Mexico-IO-Data'!AQ15","v":0},{"$f":"BU73*'Mexico-IO-Data'!$AQ15","v":939670.30810869124},{"$f":"BV73*'Mexico-IO-Data'!$AQ15","v":962546.67859451589},{"$f":"BH73*'Mexico-IO-Data'!AR15","v":0},{"$f":"BU73*'Mexico-IO-Data'!$AR15","v":162239.27140723704},{"$f":"BV73*'Mexico-IO-Data'!$AR15","v":166189.00318873004},{"$f":"(BZ73*'Default-Data'!$F$19/biopower_dollar_index)/'Mexico-IO-Data'!$AS15","v":0},{"$f":"(CA73*'Default-Data'!$F$19/biopower_dollar_index)/'Mexico-IO-Data'!$AS15","v":40.742522580741969},{"$f":"(CB73*'Default-Data'!$F$19/biopower_dollar_index)/'Mexico-IO-Data'!$AS15","v":41.734403491569182},null,"TTL_C15T16: Food products, beverages and tobacco",0,0,null,3517082.9635086576,27266812.143935233,{"$f":"CH73*'Philippines-IO-Data'!AN15","v":0},{"$f":"CK73*'Philippines-IO-Data'!$AN15","v":1171304.5919837519},{"$f":"CL73*'Philippines-IO-Data'!$AN15","v":9080747.4842983056},{"$f":"CH73*'Philippines-IO-Data'!AO15","v":0},{"$f":"CK73*'Philippines-IO-Data'!$AO15","v":204949.01635805608},{"$f":"CL73*'Philippines-IO-Data'!$AO15","v":1588903.7552143794},{"$f":"(CP73*'Default-Data'!$F$19/biopower_dollar_index)/'Philippines-IO-Data'!$AP15","v":0},{"$f":"(CQ73*'Default-Data'!$F$19/biopower_dollar_index)/'Philippines-IO-Data'!$AP15","v":63.488728957948915},{"$f":"(CR73*'Default-Data'!$F$19/biopower_dollar_index)/'Philippines-IO-Data'!$AP15","v":492.20767997654104},906881.73445737548,2712793.9916849504,{"$f":"CI73*'Philippines-IO-Data'!AN15","v":0},{"$f":"CV73*'Philippines-IO-Data'!$AN15","v":302021.5192468543},{"$f":"CW73*'Philippines-IO-Data'!$AN15","v":903449.84537885862},{"$f":"CI73*'Philippines-IO-Data'!AO15","v":0},{"$f":"CV73*'Philippines-IO-Data'!$AO15","v":52846.214137839852},{"$f":"CW73*'Philippines-IO-Data'!$AO15","v":158081.13312835319},{"$f":"(DA73*'Default-Data'!$F$19/biopower_dollar_index)/'Philippines-IO-Data'!$AP15","v":0},{"$f":"(DB73*'Default-Data'!$F$19/biopower_dollar_index)/'Philippines-IO-Data'!$AP15","v":16.370602921018406},{"$f":"(DC73*'Default-Data'!$F$19/biopower_dollar_index)/'Philippines-IO-Data'!$AP15","v":48.970082379011856},null,"DOM_C15T16: Food products, beverages and tobacco",0,0,null,5063779.3269327423,46083101.212449536,{"$f":"DI73*'SouthAfrica-IO-Data'!AR15","v":0},{"$f":"DL73*'Mexico-IO-Data'!$AQ15","v":1967311.4237274679},{"$f":"DM73*'Mexico-IO-Data'!$AQ15","v":17903586.551224381},{"$f":"DI73*'SouthAfrica-IO-Data'!AS15","v":0},{"$f":"DL73*'Mexico-IO-Data'!$AR15","v":339667.18886658672},{"$f":"DM73*'Mexico-IO-Data'!$AR15","v":3091153.1550819953},{"$f":"(DQ73*'Default-Data'!$F$19/biopower_dollar_index)/'SouthAfrica-IO-Data'!$AT15","v":0},{"$f":"(DR73*'Default-Data'!$F$19/biopower_dollar_index)/'SouthAfrica-IO-Data'!$AT15","v":26.460761055830449},{"$f":"(DS73*'Default-Data'!$F$19/biopower_dollar_index)/'SouthAfrica-IO-Data'!$AT15","v":240.80708324090716},3527175.9870911352,3918743.9964583851,{"$f":"DJ73*'SouthAfrica-IO-Data'!AR15","v":0},{"$f":"DW73*'SouthAfrica-IO-Data'!$AR15","v":923956.25544708117},{"$f":"DX73*'SouthAfrica-IO-Data'!$AR15","v":1026528.8838081065},{"$f":"DJ73*'SouthAfrica-IO-Data'!AS15","v":0},{"$f":"DW73*'SouthAfrica-IO-Data'!$AS15","v":478346.0804683477},{"$f":"DX73*'SouthAfrica-IO-Data'!$AS15","v":531449.47627369501},{"$f":"(EB73*'Default-Data'!$F$19/biopower_dollar_index)/'SouthAfrica-IO-Data'!$AT15","v":0},{"$f":"(EC73*'Default-Data'!$F$19/biopower_dollar_index)/'SouthAfrica-IO-Data'!$AT15","v":37.264127216707777},{"$f":"(ED73*'Default-Data'!$F$19/biopower_dollar_index)/'SouthAfrica-IO-Data'!$AT15","v":41.400989161917309},null,"GRNDNUT",0,0,null,38933.56112346545,4563148.7457441501,{"$f":"EJ73*'Zambia-IO-Data'!BO13","v":0},{"$f":"EM73*'Zambia-IO-Data'!$BO13","v":17561.145318141316},{"$f":"EN73*'Zambia-IO-Data'!$BO13","v":2058227.2959359495},{"$f":"EJ73*'Zambia-IO-Data'!BN13","v":0},{"$f":"EM73*'Zambia-IO-Data'!$BN13","v":14480.443644298381},{"$f":"EN73*'Zambia-IO-Data'!$BN13","v":1697158.3473640797},{"$f":"(ER73*'Default-Data'!$F$19/biopower_dollar_index)/'Zambia-IO-Data'!$BP13","v":0},{"$f":"(ES73*'Default-Data'!$F$19/biopower_dollar_index)/'Zambia-IO-Data'!$BP13","v":139.65038851255315},{"$f":"(ET73*'Default-Data'!$F$19/biopower_dollar_index)/'Zambia-IO-Data'!$BP13","v":16367.511134235014},3374.6078144916091,562508.62147543952,{"$f":"EK73*'Zambia-IO-Data'!BO13","v":0},{"$f":"EX73*'Zambia-IO-Data'!$BO13","v":1522.1309459489678},{"$f":"EY73*'Zambia-IO-Data'!$BO13","v":253721.8625625243},{"$f":"EK73*'Zambia-IO-Data'!BN13","v":0},{"$f":"EX73*'Zambia-IO-Data'!$BN13","v":1255.1078521790548},{"$f":"EY73*'Zambia-IO-Data'!$BN13","v":209212.15932127548},{"$f":"(FC73*'Default-Data'!$F$19/biopower_dollar_index)/'Zambia-IO-Data'!$BP13","v":0},{"$f":"(FD73*'Default-Data'!$F$19/biopower_dollar_index)/'Zambia-IO-Data'!$BP13","v":12.10434593631912},{"$f":"(FE73*'Default-Data'!$F$19/biopower_dollar_index)/'Zambia-IO-Data'!$BP13","v":2017.6563680264176},null,"TTL_C15T16: Food products, beverages and tobacco",0,0,null,5852068.452931934,37968626.468875892,{"$f":"FK73*CustomRegion1!C11","v":0},{"$f":"FN73*CustomRegion1!$C11","v":1948931.749020868},{"$f":"FO73*CustomRegion1!$C11","v":12644804.514347842},{"$f":"FK73*CustomRegion1!D11","v":0},{"$f":"FN73*CustomRegion1!$D11","v":341014.32509055978},{"$f":"FO73*CustomRegion1!$D11","v":2212524.6199764293},{"$f":"(FS73*'Default-Data'!$F$19/biopower_dollar_index)/CustomRegion1!$E11","v":0},{"$f":"(FT73*'Default-Data'!$F$19/biopower_dollar_index)/CustomRegion1!$E11","v":106.08020428626673},{"$f":"(FU73*'Default-Data'!$F$19/biopower_dollar_index)/CustomRegion1!$E11","v":688.25573123113224},1218341.3238739143,3641164.0744578945,{"$f":"FL73*CustomRegion1!C11","v":0},{"$f":"FY73*CustomRegion1!$C11","v":405747.8319571538},{"$f":"FZ73*CustomRegion1!$C11","v":1212627.6931278598},{"$f":"FL73*CustomRegion1!D11","v":0},{"$f":"FY73*CustomRegion1!$D11","v":70995.725294813878},{"$f":"FZ73*CustomRegion1!$D11","v":212179.52581760305},{"$f":"(GD73*'Default-Data'!$C$58/biopower_dollar_index)/CustomRegion1!$E11","v":0},{"$f":"(GE73*'Default-Data'!$C$58/biopower_dollar_index)/CustomRegion1!$E11","v":22.084823095702898},{"$f":"(GF73*'Default-Data'!$C$58/biopower_dollar_index)/CustomRegion1!$E11","v":66.003231500956147},null,"C15T16 Food products, beverages and tobacco",0,0,null,3102581.256251595,45344126.597686768,{"$f":"GL73*CustomRegion2!C15","v":0},{"$f":"GO73*CustomRegion2!$C15","v":1227772.3262354287},{"$f":"GP73*CustomRegion2!$C15","v":17943853.583778974},{"$f":"GL73*CustomRegion2!D15","v":0},{"$f":"GO73*CustomRegion2!$D15","v":298352.64721752168},{"$f":"GP73*CustomRegion2!$D15","v":4360414.4706691364},{"$f":"(GT73*'Default-Data'!$C$59/biopower_dollar_index)/CustomRegion2!$E15","v":0},{"$f":"(GU73*'Default-Data'!$C$59/biopower_dollar_index)/CustomRegion2!$E15","v":74.924149750229901},{"$f":"(GV73*'Default-Data'!$C$59/biopower_dollar_index)/CustomRegion2!$E15","v":1095.0140708330787},2766331.209422783,2053190.3648493765,{"$f":"GM73*CustomRegion2!C15","v":0},{"$f":"GZ73*CustomRegion2!$C15","v":1094709.4124568042},{"$f":"HA73*CustomRegion2!$C15","v":812500.97974899469},{"$f":"GM73*CustomRegion2!D15","v":0},{"$f":"GZ73*CustomRegion2!$D15","v":266017.92870007816},{"$f":"HA73*CustomRegion2!$D15","v":197440.36658508249},{"$f":"(HE73*'Default-Data'!$C$59/biopower_dollar_index)/CustomRegion2!$E15","v":0},{"$f":"(HF73*'Default-Data'!$C$59/biopower_dollar_index)/CustomRegion2!$E15","v":66.804056582207252},{"$f":"(HG73*'Default-Data'!$C$59/biopower_dollar_index)/CustomRegion2!$E15","v":49.58243786580433},null,"GRNDNUT",0,0,null,38933.56112346545,4563148.7457441501,{"$f":"HM73*CustomRegion3!D14","v":0},{"$f":"HP73*CustomRegion3!$D14","v":17561.145318141316},{"$f":"HQ73*CustomRegion3!$D14","v":2058227.2959359495},{"$f":"HM73*CustomRegion3!E14","v":0},{"$f":"HP73*CustomRegion3!$E14","v":14480.443644298381},{"$f":"HQ73*CustomRegion3!$E14","v":1697158.3473640797},{"$f":"(HU73*'Default-Data'!$C$60/biopower_dollar_index)/CustomRegion3!$F14","v":0},{"$f":"(HV73*'Default-Data'!$C$60/biopower_dollar_index)/CustomRegion3!$F14","v":140.21599086155538},{"$f":"(HW73*'Default-Data'!$C$60/biopower_dollar_index)/CustomRegion3!$F14","v":16433.801696283906},3374.6078144916091,562508.62147543952,{"$f":"HN73*CustomRegion3!D14","v":0},{"$f":"IA73*CustomRegion3!$D14","v":1522.1309459489678},{"$f":"IB73*CustomRegion3!$D14","v":253721.8625625243},{"$f":"HN73*CustomRegion3!E14","v":0},{"$f":"IA73*CustomRegion3!$E14","v":1255.1078521790548},{"$f":"IB73*CustomRegion3!$E14","v":209212.15932127548},{"$f":"(IF73*'Default-Data'!$C$60/biopower_dollar_index)/CustomRegion3!$F14","v":0},{"$f":"(IG73*'Default-Data'!$C$60/biopower_dollar_index)/CustomRegion3!$F14","v":12.153370121411898},{"$f":"(IH73*'Default-Data'!$C$60/biopower_dollar_index)/CustomRegion3!$F14","v":2025.8281403601009}]
[null,244,"Utilities",27683059.645699918,395096.88011609885,0,967337.52330542356,648643.06234579533,12383400.575138837,432716.91047757713,290156.03672841971,12383400.575138837,104516.17709428024,70082.770017497271,686.78208283436925,5.7964560993692,3.886782994006412,9347.7510433829157,3730.1236925743287,176737.79542736511,4181.5083711262923,1668.5878104206956,42688.321807789296,1009.9796399348195,403.02196394130436,2.3674898010418808,5.6013363738495144E-2,2.2351555386110399E-2,null,73,"TTL_C17T19: Textiles, textile products, leather and footwear",0,0,null,1087552.6906233977,9168396.7446941808,{"$f":"'Colombia-IO-Data'!$AN16*Calculations!AF74","v":0},{"$f":"'Colombia-IO-Data'!$AN16*AI74","v":358254.98678434035},{"$f":"'Colombia-IO-Data'!$AN16*AJ74","v":3020197.4423153866},{"$f":"'Colombia-IO-Data'!$AO16*Calculations!AK74","v":0},{"$f":"'Colombia-IO-Data'!$AO16*Calculations!AL74","v":183540.47864426201},{"$f":"'Colombia-IO-Data'!$AO16*Calculations!AM74","v":1547301.5159909902},{"$f":"(AN74*'Default-Data'!$F$19/biopower_dollar_index)/'Colombia-IO-Data'!$AP16","v":0},{"$f":"(AO74*'Default-Data'!$F$19/biopower_dollar_index)/'Colombia-IO-Data'!$AP16","v":43.147333118770838},{"$f":"(AP74*'Default-Data'!$F$19/biopower_dollar_index)/'Colombia-IO-Data'!$AP16","v":363.74501384536705},207386.65287140678,877643.05674837052,{"$f":"'Colombia-IO-Data'!$AN16*AG74","v":0},{"$f":"'Colombia-IO-Data'!$AN16*AT74","v":68316.048706666668},{"$f":"'Colombia-IO-Data'!$AN16*AU74","v":289107.83303430234},{"$f":"'Colombia-IO-Data'!$AO16*AV74","v":0},{"$f":"'Colombia-IO-Data'!$AO16*AW74","v":34999.541503254237},{"$f":"'Colombia-IO-Data'!$AO16*AX74","v":148115.14706664419},{"$f":"(AY74*'Default-Data'!$F$19/biopower_dollar_index)/'Colombia-IO-Data'!$AP16","v":0},{"$f":"(AZ74*'Default-Data'!$F$19/biopower_dollar_index)/'Colombia-IO-Data'!$AP16","v":8.2278137629361972},{"$f":"(BA74*'Default-Data'!$F$19/biopower_dollar_index)/'Colombia-IO-Data'!$AP16","v":34.819423146470172},null,"DOM_C17T19: Textiles, textile products, leather and footwear",0,0,null,875905.04348668293,4003386.2443475071,{"$f":"BG74*'Mexico-IO-Data'!AQ16","v":0},{"$f":"BJ74*'Mexico-IO-Data'!$AQ16","v":339388.39267727203},{"$f":"BK74*'Mexico-IO-Data'!$AQ16","v":1551198.7661663219},{"$f":"BG74*'Mexico-IO-Data'!AR16","v":0},{"$f":"BJ74*'Mexico-IO-Data'!$AR16","v":115412.53049641132},{"$f":"BK74*'Mexico-IO-Data'!$AR16","v":527501.17201682145},{"$f":"(BO74*'Default-Data'!$F$19/biopower_dollar_index)/'Mexico-IO-Data'!$AS16","v":0},{"$f":"(BP74*'Default-Data'!$F$19/biopower_dollar_index)/'Mexico-IO-Data'!$AS16","v":26.943634195739996},{"$f":"(BQ74*'Default-Data'!$F$19/biopower_dollar_index)/'Mexico-IO-Data'!$AS16","v":123.14779474562594},118854.2345470763,262880.84589515545,{"$f":"BH74*'Mexico-IO-Data'!AQ16","v":0},{"$f":"BU74*'Mexico-IO-Data'!$AQ16","v":46052.649115078428},{"$f":"BV74*'Mexico-IO-Data'!$AQ16","v":101858.88118516686},{"$f":"BH74*'Mexico-IO-Data'!AR16","v":0},{"$f":"BU74*'Mexico-IO-Data'!$AR16","v":15660.679284010335},{"$f":"BV74*'Mexico-IO-Data'!$AR16","v":34638.165254791471},{"$f":"(BZ74*'Default-Data'!$F$19/biopower_dollar_index)/'Mexico-IO-Data'!$AS16","v":0},{"$f":"(CA74*'Default-Data'!$F$19/biopower_dollar_index)/'Mexico-IO-Data'!$AS16","v":3.6560641385321526},{"$f":"(CB74*'Default-Data'!$F$19/biopower_dollar_index)/'Mexico-IO-Data'!$AS16","v":8.0864534364031826},null,"TTL_C17T19: Textiles, textile products, leather and footwear",0,0,null,1853565.6294934927,3814483.3337474428,{"$f":"CH74*'Philippines-IO-Data'!AN16","v":0},{"$f":"CK74*'Philippines-IO-Data'!$AN16","v":711208.87016317411},{"$f":"CL74*'Philippines-IO-Data'!$AN16","v":1463608.4845790463},{"$f":"CH74*'Philippines-IO-Data'!AO16","v":0},{"$f":"CK74*'Philippines-IO-Data'!$AO16","v":245651.59266110521},{"$f":"CL74*'Philippines-IO-Data'!$AO16","v":505530.47121960082},{"$f":"(CP74*'Default-Data'!$F$19/biopower_dollar_index)/'Philippines-IO-Data'!$AP16","v":0},{"$f":"(CQ74*'Default-Data'!$F$19/biopower_dollar_index)/'Philippines-IO-Data'!$AP16","v":76.097498108028034},{"$f":"(CR74*'Default-Data'!$F$19/biopower_dollar_index)/'Philippines-IO-Data'!$AP16","v":156.60229864764526},51413.432042153174,379505.58409792173,{"$f":"CI74*'Philippines-IO-Data'!AN16","v":0},{"$f":"CV74*'Philippines-IO-Data'!$AN16","v":19727.215660501253},{"$f":"CW74*'Philippines-IO-Data'!$AN16","v":145615.42002731981},{"$f":"CI74*'Philippines-IO-Data'!AO16","v":0},{"$f":"CV74*'Philippines-IO-Data'!$AO16","v":6813.7816456920682},{"$f":"CW74*'Philippines-IO-Data'!$AO16","v":50295.576090776216},{"$f":"(DA74*'Default-Data'!$F$19/biopower_dollar_index)/'Philippines-IO-Data'!$AP16","v":0},{"$f":"(DB74*'Default-Data'!$F$19/biopower_dollar_index)/'Philippines-IO-Data'!$AP16","v":2.1107607334217211},{"$f":"(DC74*'Default-Data'!$F$19/biopower_dollar_index)/'Philippines-IO-Data'!$AP16","v":15.580470962751559},null,"DOM_C17T19: Textiles, textile products, leather and footwear",0,0,null,3655177.7807005979,13688059.317087341,{"$f":"DI74*'SouthAfrica-IO-Data'!AR16","v":0},{"$f":"DL74*'Mexico-IO-Data'!$AQ16","v":1416277.8501691718},{"$f":"DM74*'Mexico-IO-Data'!$AQ16","v":5303735.2450957326},{"$f":"DI74*'SouthAfrica-IO-Data'!AS16","v":0},{"$f":"DL74*'Mexico-IO-Data'!$AR16","v":481619.92012930632},{"$f":"DM74*'Mexico-IO-Data'!$AR16","v":1803589.9840026989},{"$f":"(DQ74*'Default-Data'!$F$19/biopower_dollar_index)/'SouthAfrica-IO-Data'!$AT16","v":0},{"$f":"(DR74*'Default-Data'!$F$19/biopower_dollar_index)/'SouthAfrica-IO-Data'!$AT16","v":37.51916594827555},{"$f":"(DS74*'Default-Data'!$F$19/biopower_dollar_index)/'SouthAfrica-IO-Data'!$AT16","v":140.50330786624636},420218.50959007803,1163984.1690496127,{"$f":"DJ74*'SouthAfrica-IO-Data'!AR16","v":0},{"$f":"DW74*'SouthAfrica-IO-Data'!$AR16","v":55929.109188423798},{"$f":"DX74*'SouthAfrica-IO-Data'!$AR16","v":154920.82380635254},{"$f":"DJ74*'SouthAfrica-IO-Data'!AS16","v":0},{"$f":"DW74*'SouthAfrica-IO-Data'!$AS16","v":56206.839353914263},{"$f":"DX74*'SouthAfrica-IO-Data'!$AS16","v":155690.12241771969},{"$f":"(EB74*'Default-Data'!$F$19/biopower_dollar_index)/'SouthAfrica-IO-Data'!$AT16","v":0},{"$f":"(EC74*'Default-Data'!$F$19/biopower_dollar_index)/'SouthAfrica-IO-Data'!$AT16","v":4.3786264749626422},{"$f":"(ED74*'Default-Data'!$F$19/biopower_dollar_index)/'SouthAfrica-IO-Data'!$AT16","v":12.128575449971958},null,"SUGAR",0,0,null,2922.1532534255216,770097.40851805487,{"$f":"EJ74*'Zambia-IO-Data'!BO14","v":0},{"$f":"EM74*'Zambia-IO-Data'!$BO14","v":793.07440465564025},{"$f":"EN74*'Zambia-IO-Data'!$BO14","v":209004.96682415841},{"$f":"EJ74*'Zambia-IO-Data'!BN14","v":0},{"$f":"EM74*'Zambia-IO-Data'!$BN14","v":265.84731171484793},{"$f":"EN74*'Zambia-IO-Data'!$BN14","v":70060.776440489979},{"$f":"(ER74*'Default-Data'!$F$19/biopower_dollar_index)/'Zambia-IO-Data'!$BP14","v":0},{"$f":"(ES74*'Default-Data'!$F$19/biopower_dollar_index)/'Zambia-IO-Data'!$BP14","v":2.5638496497732959},{"$f":"(ET74*'Default-Data'!$F$19/biopower_dollar_index)/'Zambia-IO-Data'!$BP14","v":675.67091794580335},141.01995393503395,77664.972095240926,{"$f":"EK74*'Zambia-IO-Data'!BO14","v":0},{"$f":"EX74*'Zambia-IO-Data'!$BO14","v":38.272912579272891},{"$f":"EY74*'Zambia-IO-Data'!$BO14","v":21078.326892960129},{"$f":"EK74*'Zambia-IO-Data'!BN14","v":0},{"$f":"EX74*'Zambia-IO-Data'!$BN14","v":12.829503588777463},{"$f":"EY74*'Zambia-IO-Data'!$BN14","v":7065.6882973967276},{"$f":"(FC74*'Default-Data'!$F$19/biopower_dollar_index)/'Zambia-IO-Data'!$BP14","v":0},{"$f":"(FD74*'Default-Data'!$F$19/biopower_dollar_index)/'Zambia-IO-Data'!$BP14","v":0.12372860974473127},{"$f":"(FE74*'Default-Data'!$F$19/biopower_dollar_index)/'Zambia-IO-Data'!$BP14","v":68.141981010959796},null,"TTL_C17T19: Textiles, textile products, leather and footwear",0,0,null,2880369.9670290696,6003776.561587627,{"$f":"FK74*CustomRegion1!C12","v":0},{"$f":"FN74*CustomRegion1!$C12","v":1105191.3335609655},{"$f":"FO74*CustomRegion1!$C12","v":2303635.2622948079},{"$f":"FK74*CustomRegion1!D12","v":0},{"$f":"FN74*CustomRegion1!$D12","v":381733.16261116508},{"$f":"FO74*CustomRegion1!$D12","v":795675.7780076178},{"$f":"(FS74*'Default-Data'!$F$19/biopower_dollar_index)/CustomRegion1!$E12","v":0},{"$f":"(FT74*'Default-Data'!$F$19/biopower_dollar_index)/CustomRegion1!$E12","v":118.74671793298242},{"$f":"(FU74*'Default-Data'!$F$19/biopower_dollar_index)/CustomRegion1!$E12","v":247.51291328969128},88689.517123029218,575757.87064736639,{"$f":"FL74*CustomRegion1!C12","v":0},{"$f":"FY74*CustomRegion1!$C12","v":34029.963797733733},{"$f":"FZ74*CustomRegion1!$C12","v":220916.97113663272},{"$f":"FL74*CustomRegion1!D12","v":0},{"$f":"FY74*CustomRegion1!$D12","v":11753.951835830032},{"$f":"FZ74*CustomRegion1!$D12","v":76304.737022093497},{"$f":"(GD74*'Default-Data'!$C$58/biopower_dollar_index)/CustomRegion1!$E12","v":0},{"$f":"(GE74*'Default-Data'!$C$58/biopower_dollar_index)/CustomRegion1!$E12","v":3.6563320663572507},{"$f":"(GF74*'Default-Data'!$C$58/biopower_dollar_index)/CustomRegion1!$E12","v":23.736311045478761},null,"C17T19 Textiles, textile products, leather and footwear",0,0,null,25129810.975993048,10317126.864435349,{"$f":"GL74*CustomRegion2!C16","v":0},{"$f":"GO74*CustomRegion2!$C16","v":8748793.6917564683},{"$f":"GP74*CustomRegion2!$C16","v":3591846.135048626},{"$f":"GL74*CustomRegion2!D16","v":0},{"$f":"GO74*CustomRegion2!$D16","v":3873331.8167139729},{"$f":"GP74*CustomRegion2!$D16","v":1590209.1654914548},{"$f":"(GT74*'Default-Data'!$C$59/biopower_dollar_index)/CustomRegion2!$E16","v":0},{"$f":"(GU74*'Default-Data'!$C$59/biopower_dollar_index)/CustomRegion2!$E16","v":904.24874265717085},{"$f":"(GV74*'Default-Data'!$C$59/biopower_dollar_index)/CustomRegion2!$E16","v":371.24230675322542},218763.3433330078,467161.3957620688,{"$f":"GM74*CustomRegion2!C16","v":0},{"$f":"GZ74*CustomRegion2!$C16","v":76161.152185655912},{"$f":"HA74*CustomRegion2!$C16","v":162639.45145388527},{"$f":"GM74*CustomRegion2!D16","v":0},{"$f":"GZ74*CustomRegion2!$D16","v":33718.638746305871},{"$f":"HA74*CustomRegion2!$D16","v":72004.962531327794},{"$f":"(HE74*'Default-Data'!$C$59/biopower_dollar_index)/CustomRegion2!$E16","v":0},{"$f":"(HF74*'Default-Data'!$C$59/biopower_dollar_index)/CustomRegion2!$E16","v":7.8717853603168315},{"$f":"(HG74*'Default-Data'!$C$59/biopower_dollar_index)/CustomRegion2!$E16","v":16.809919706096263},null,"SUGAR",0,0,null,2922.1532534255216,770097.40851805487,{"$f":"HM74*CustomRegion3!D15","v":0},{"$f":"HP74*CustomRegion3!$D15","v":793.07440465564025},{"$f":"HQ74*CustomRegion3!$D15","v":209004.96682415841},{"$f":"HM74*CustomRegion3!E15","v":0},{"$f":"HP74*CustomRegion3!$E15","v":265.84731171484793},{"$f":"HQ74*CustomRegion3!$E15","v":70060.776440489979},{"$f":"(HU74*'Default-Data'!$C$60/biopower_dollar_index)/CustomRegion3!$F15","v":0},{"$f":"(HV74*'Default-Data'!$C$60/biopower_dollar_index)/CustomRegion3!$F15","v":2.5742335763763347},{"$f":"(HW74*'Default-Data'!$C$60/biopower_dollar_index)/CustomRegion3!$F15","v":678.40747358602096},141.01995393503395,77664.972095240926,{"$f":"HN74*CustomRegion3!D15","v":0},{"$f":"IA74*CustomRegion3!$D15","v":38.272912579272891},{"$f":"IB74*CustomRegion3!$D15","v":21078.326892960129},{"$f":"HN74*CustomRegion3!E15","v":0},{"$f":"IA74*CustomRegion3!$E15","v":12.829503588777463},{"$f":"IB74*CustomRegion3!$E15","v":7065.6882973967276},{"$f":"(IF74*'Default-Data'!$C$60/biopower_dollar_index)/CustomRegion3!$F15","v":0},{"$f":"(IG74*'Default-Data'!$C$60/biopower_dollar_index)/CustomRegion3!$F15","v":0.12422972680609987},{"$f":"(IH74*'Default-Data'!$C$60/biopower_dollar_index)/CustomRegion3!$F15","v":68.417964951541506}]
[null,245,"Construction",0,0,0,131574.81426040066,43309.586319123395,0,66174.571263382823,21782.233342852021,0,29104.657821039837,9580.182174486592,0,10.212657237501775,3.3616308916069033,2369.4714013210551,249.05857076511984,0,1191.7079646637096,125.26215015006102,0,524.13263693235831,55.092340584041921,0,0.18391513141613347,1.9331585832622126E-2,null,74,"TTL_C20: Wood and products of wood and cork",0,0,null,3669307.2554736473,343432.24932688614,{"$f":"'Colombia-IO-Data'!$AN17*Calculations!AF75","v":0},{"$f":"'Colombia-IO-Data'!$AN17*AI75","v":1523474.2011066799},{"$f":"'Colombia-IO-Data'!$AN17*AJ75","v":142590.9947707582},{"$f":"'Colombia-IO-Data'!$AO17*Calculations!AK75","v":0},{"$f":"'Colombia-IO-Data'!$AO17*Calculations!AL75","v":621820.71330934949},{"$f":"'Colombia-IO-Data'!$AO17*Calculations!AM75","v":58199.892072628427},{"$f":"(AN75*'Default-Data'!$F$19/biopower_dollar_index)/'Colombia-IO-Data'!$AP17","v":0},{"$f":"(AO75*'Default-Data'!$F$19/biopower_dollar_index)/'Colombia-IO-Data'!$AP17","v":146.17977274273051},{"$f":"(AP75*'Default-Data'!$F$19/biopower_dollar_index)/'Colombia-IO-Data'!$AP17","v":13.681832744924659},97106.865995363769,32874.987577260355,{"$f":"'Colombia-IO-Data'!$AN17*AG75","v":0},{"$f":"'Colombia-IO-Data'!$AN17*AT75","v":40318.184004234776},{"$f":"'Colombia-IO-Data'!$AN17*AU75","v":13649.496198756922},{"$f":"'Colombia-IO-Data'!$AO17*AV75","v":0},{"$f":"'Colombia-IO-Data'!$AO17*AW75","v":16456.256311159759},{"$f":"'Colombia-IO-Data'!$AO17*AX75","v":5571.1737399023741},{"$f":"(AY75*'Default-Data'!$F$19/biopower_dollar_index)/'Colombia-IO-Data'!$AP17","v":0},{"$f":"(AZ75*'Default-Data'!$F$19/biopower_dollar_index)/'Colombia-IO-Data'!$AP17","v":3.8685938828877688},{"$f":"(BA75*'Default-Data'!$F$19/biopower_dollar_index)/'Colombia-IO-Data'!$AP17","v":1.3096908703394139},null,"DOM_C20: Wood and products of wood and cork",0,0,null,2864131.0195564567,434988.8740443429,{"$f":"BG75*'Mexico-IO-Data'!AQ17","v":0},{"$f":"BJ75*'Mexico-IO-Data'!$AQ17","v":1324266.4149641364},{"$f":"BK75*'Mexico-IO-Data'!$AQ17","v":201122.48805894182},{"$f":"BG75*'Mexico-IO-Data'!AR17","v":0},{"$f":"BJ75*'Mexico-IO-Data'!$AR17","v":481345.46113807173},{"$f":"BK75*'Mexico-IO-Data'!$AR17","v":73104.169724480584},{"$f":"(BO75*'Default-Data'!$F$19/biopower_dollar_index)/'Mexico-IO-Data'!$AS17","v":0},{"$f":"(BP75*'Default-Data'!$F$19/biopower_dollar_index)/'Mexico-IO-Data'!$AS17","v":208.37219597705413},{"$f":"(BQ75*'Default-Data'!$F$19/biopower_dollar_index)/'Mexico-IO-Data'!$AS17","v":31.646452725560895},72377.692491141395,28563.380144799186,{"$f":"BH75*'Mexico-IO-Data'!AQ17","v":0},{"$f":"BU75*'Mexico-IO-Data'!$AQ17","v":33464.721656994436},{"$f":"BV75*'Mexico-IO-Data'!$AQ17","v":13206.632226436599},{"$f":"BH75*'Mexico-IO-Data'!AR17","v":0},{"$f":"BU75*'Mexico-IO-Data'!$AR17","v":12163.784942231159},{"$f":"BV75*'Mexico-IO-Data'!$AR17","v":4800.3576978784904},{"$f":"(BZ75*'Default-Data'!$F$19/biopower_dollar_index)/'Mexico-IO-Data'!$AS17","v":0},{"$f":"(CA75*'Default-Data'!$F$19/biopower_dollar_index)/'Mexico-IO-Data'!$AS17","v":5.2656455382640335},{"$f":"(CB75*'Default-Data'!$F$19/biopower_dollar_index)/'Mexico-IO-Data'!$AS17","v":2.0780523672485134},null,"TTL_C20: Wood and products of wood and cork",0,0,null,1678461.1664242591,118642.03478228534,{"$f":"CH75*'Philippines-IO-Data'!AN17","v":0},{"$f":"CK75*'Philippines-IO-Data'!$AN17","v":243596.64568380927},{"$f":"CL75*'Philippines-IO-Data'!$AN17","v":17218.629949977276},{"$f":"CH75*'Philippines-IO-Data'!AO17","v":0},{"$f":"CK75*'Philippines-IO-Data'!$AO17","v":63169.308443127193},{"$f":"CL75*'Philippines-IO-Data'!$AO17","v":4465.1228395402977},{"$f":"(CP75*'Default-Data'!$F$19/biopower_dollar_index)/'Philippines-IO-Data'!$AP17","v":0},{"$f":"(CQ75*'Default-Data'!$F$19/biopower_dollar_index)/'Philippines-IO-Data'!$AP17","v":19.568472069171417},{"$f":"(CR75*'Default-Data'!$F$19/biopower_dollar_index)/'Philippines-IO-Data'!$AP17","v":1.3831975325427222},3981.3079773819882,11803.778066158991,{"$f":"CI75*'Philippines-IO-Data'!AN17","v":0},{"$f":"CV75*'Philippines-IO-Data'!$AN17","v":577.81096645241178},{"$f":"CW75*'Philippines-IO-Data'!$AN17","v":1713.0933981856901},{"$f":"CI75*'Philippines-IO-Data'!AO17","v":0},{"$f":"CV75*'Philippines-IO-Data'!$AO17","v":149.83752776723804},{"$f":"CW75*'Philippines-IO-Data'!$AO17","v":444.23815836257762},{"$f":"(DA75*'Default-Data'!$F$19/biopower_dollar_index)/'Philippines-IO-Data'!$AP17","v":0},{"$f":"(DB75*'Default-Data'!$F$19/biopower_dollar_index)/'Philippines-IO-Data'!$AP17","v":4.6416393487459573E-2},{"$f":"(DC75*'Default-Data'!$F$19/biopower_dollar_index)/'Philippines-IO-Data'!$AP17","v":0.13761527881542057},null,"DOM_C20: Wood and products of wood and cork",0,0,null,3010433.2435677336,1406808.2881103377,{"$f":"DI75*'SouthAfrica-IO-Data'!AR17","v":0},{"$f":"DL75*'Mexico-IO-Data'!$AQ17","v":1391911.0584423167},{"$f":"DM75*'Mexico-IO-Data'!$AQ17","v":650455.21853473585},{"$f":"DI75*'SouthAfrica-IO-Data'!AS17","v":0},{"$f":"DL75*'Mexico-IO-Data'!$AR17","v":505932.99257479323},{"$f":"DM75*'Mexico-IO-Data'!$AR17","v":236428.00540535254},{"$f":"(DQ75*'Default-Data'!$F$19/biopower_dollar_index)/'SouthAfrica-IO-Data'!$AT17","v":0},{"$f":"(DR75*'Default-Data'!$F$19/biopower_dollar_index)/'SouthAfrica-IO-Data'!$AT17","v":39.413203469708961},{"$f":"(DS75*'Default-Data'!$F$19/biopower_dollar_index)/'SouthAfrica-IO-Data'!$AT17","v":18.418219842820491},184215.30196810249,119630.00293285257,{"$f":"DJ75*'SouthAfrica-IO-Data'!AR17","v":0},{"$f":"DW75*'SouthAfrica-IO-Data'!$AR17","v":48825.410666396128},{"$f":"DX75*'SouthAfrica-IO-Data'!$AR17","v":31707.376959543166},{"$f":"DJ75*'SouthAfrica-IO-Data'!AS17","v":0},{"$f":"DW75*'SouthAfrica-IO-Data'!$AS17","v":40647.545495065577},{"$f":"DX75*'SouthAfrica-IO-Data'!$AS17","v":26396.645310333344},{"$f":"(EB75*'Default-Data'!$F$19/biopower_dollar_index)/'SouthAfrica-IO-Data'!$AT17","v":0},{"$f":"(EC75*'Default-Data'!$F$19/biopower_dollar_index)/'SouthAfrica-IO-Data'!$AT17","v":3.1665260116524956},{"$f":"(ED75*'Default-Data'!$F$19/biopower_dollar_index)/'SouthAfrica-IO-Data'!$AT17","v":2.056352062037357},null,"COTTON",0,0,null,1633126.7452937271,2106050.0889423946,{"$f":"EJ75*'Zambia-IO-Data'!BO15","v":0},{"$f":"EM75*'Zambia-IO-Data'!$BO15","v":362592.23716906563},{"$f":"EN75*'Zambia-IO-Data'!$BO15","v":467592.25243254955},{"$f":"EJ75*'Zambia-IO-Data'!BN15","v":0},{"$f":"EM75*'Zambia-IO-Data'!$BN15","v":246128.25706105056},{"$f":"EN75*'Zambia-IO-Data'!$BN15","v":317402.45462787541},{"$f":"(ER75*'Default-Data'!$F$19/biopower_dollar_index)/'Zambia-IO-Data'!$BP15","v":0},{"$f":"(ES75*'Default-Data'!$F$19/biopower_dollar_index)/'Zambia-IO-Data'!$BP15","v":2373.6777385288933},{"$f":"(ET75*'Default-Data'!$F$19/biopower_dollar_index)/'Zambia-IO-Data'!$BP15","v":3061.0509727769136},42679.270858873933,209610.112358604,{"$f":"EK75*'Zambia-IO-Data'!BO15","v":0},{"$f":"EX75*'Zambia-IO-Data'!$BO15","v":9475.7938084470661},{"$f":"EY75*'Zambia-IO-Data'!$BO15","v":46538.335002098},{"$f":"EK75*'Zambia-IO-Data'!BN15","v":0},{"$f":"EX75*'Zambia-IO-Data'!$BN15","v":6432.1857316970345},{"$f":"EY75*'Zambia-IO-Data'!$BN15","v":31590.304773261949},{"$f":"(FC75*'Default-Data'!$F$19/biopower_dollar_index)/'Zambia-IO-Data'!$BP15","v":0},{"$f":"(FD75*'Default-Data'!$F$19/biopower_dollar_index)/'Zambia-IO-Data'!$BP15","v":62.032438955699888},{"$f":"(FE75*'Default-Data'!$F$19/biopower_dollar_index)/'Zambia-IO-Data'!$BP15","v":304.65905901667895},null,"TTL_C20: Wood and products of wood and cork",0,0,null,3462293.5993057676,306087.05608329643,{"$f":"FK75*CustomRegion1!C13","v":0},{"$f":"FN75*CustomRegion1!$C13","v":502485.9222451761},{"$f":"FO75*CustomRegion1!$C13","v":44422.701960967672},{"$f":"FK75*CustomRegion1!D13","v":0},{"$f":"FN75*CustomRegion1!$D13","v":130304.29101981873},{"$f":"FO75*CustomRegion1!$D13","v":11519.663393443803},{"$f":"(FS75*'Default-Data'!$F$19/biopower_dollar_index)/CustomRegion1!$E13","v":0},{"$f":"(FT75*'Default-Data'!$F$19/biopower_dollar_index)/CustomRegion1!$E13","v":40.534091367243192},{"$f":"(FU75*'Default-Data'!$F$19/biopower_dollar_index)/CustomRegion1!$E13","v":3.5834513572443938},15408.306677717568,29353.529371958575,{"$f":"FL75*CustomRegion1!C13","v":0},{"$f":"FY75*CustomRegion1!$C13","v":2236.222021362335},{"$f":"FZ75*CustomRegion1!$C13","v":4260.1052899086817},{"$f":"FL75*CustomRegion1!D13","v":0},{"$f":"FY75*CustomRegion1!$D13","v":579.89549986705595},{"$f":"FZ75*CustomRegion1!$D13","v":1104.7274657785881},{"$f":"(GD75*'Default-Data'!$C$58/biopower_dollar_index)/CustomRegion1!$E13","v":0},{"$f":"(GE75*'Default-Data'!$C$58/biopower_dollar_index)/CustomRegion1!$E13","v":0.18038958649097225},{"$f":"(GF75*'Default-Data'!$C$58/biopower_dollar_index)/CustomRegion1!$E13","v":0.34365041767474569},null,"C20 Wood and products of wood and cork",0,0,null,14312275.321616469,1387567.5102784727,{"$f":"GL75*CustomRegion2!C17","v":0},{"$f":"GO75*CustomRegion2!$C17","v":6064261.0881215669},{"$f":"GP75*CustomRegion2!$C17","v":587926.89985599706},{"$f":"GL75*CustomRegion2!D17","v":0},{"$f":"GO75*CustomRegion2!$D17","v":2014005.4673069781},{"$f":"GP75*CustomRegion2!$D17","v":195256.76310443901},{"$f":"(GT75*'Default-Data'!$C$59/biopower_dollar_index)/CustomRegion2!$E17","v":0},{"$f":"(GU75*'Default-Data'!$C$59/biopower_dollar_index)/CustomRegion2!$E17","v":871.85353517267265},{"$f":"(GV75*'Default-Data'!$C$59/biopower_dollar_index)/CustomRegion2!$E17","v":84.525738356911148},67916.755784580426,62829.31123492257,{"$f":"GM75*CustomRegion2!C17","v":0},{"$f":"GZ75*CustomRegion2!$C17","v":28777.041391443079},{"$f":"HA75*CustomRegion2!$C17","v":26621.437804508878},{"$f":"GM75*CustomRegion2!D17","v":0},{"$f":"GZ75*CustomRegion2!$D17","v":9557.1608565484858},{"$f":"HA75*CustomRegion2!$D17","v":8841.2620279284965},{"$f":"(HE75*'Default-Data'!$C$59/biopower_dollar_index)/CustomRegion2!$E17","v":0},{"$f":"(HF75*'Default-Data'!$C$59/biopower_dollar_index)/CustomRegion2!$E17","v":4.1372501784403743},{"$f":"(HG75*'Default-Data'!$C$59/biopower_dollar_index)/CustomRegion2!$E17","v":3.8273409280981174},null,"COTTON",0,0,null,1633126.7452937271,2106050.0889423946,{"$f":"HM75*CustomRegion3!D16","v":0},{"$f":"HP75*CustomRegion3!$D16","v":362592.23716906563},{"$f":"HQ75*CustomRegion3!$D16","v":467592.25243254955},{"$f":"HM75*CustomRegion3!E16","v":0},{"$f":"HP75*CustomRegion3!$E16","v":246128.25706105056},{"$f":"HQ75*CustomRegion3!$E16","v":317402.45462787541},{"$f":"(HU75*'Default-Data'!$C$60/biopower_dollar_index)/CustomRegion3!$F16","v":0},{"$f":"(HV75*'Default-Data'!$C$60/biopower_dollar_index)/CustomRegion3!$F16","v":2383.2914440043032},{"$f":"(HW75*'Default-Data'!$C$60/biopower_dollar_index)/CustomRegion3!$F16","v":3073.4486298050037},42679.270858873933,209610.112358604,{"$f":"HN75*CustomRegion3!D16","v":0},{"$f":"IA75*CustomRegion3!$D16","v":9475.7938084470661},{"$f":"IB75*CustomRegion3!$D16","v":46538.335002098},{"$f":"HN75*CustomRegion3!E16","v":0},{"$f":"IA75*CustomRegion3!$E16","v":6432.1857316970345},{"$f":"IB75*CustomRegion3!$E16","v":31590.304773261949},{"$f":"(IF75*'Default-Data'!$C$60/biopower_dollar_index)/CustomRegion3!$F16","v":0},{"$f":"(IG75*'Default-Data'!$C$60/biopower_dollar_index)/CustomRegion3!$F16","v":62.283678451424798},{"$f":"(IH75*'Default-Data'!$C$60/biopower_dollar_index)/CustomRegion3!$F16","v":305.8929680752932}]
[null,246,"Manufacturing",805437.88755258871,0,0,10995926.189560201,7085541.4676453127,199518.43685542638,2713942.3104955372,2399555.3327215915,199518.43685542638,667364.82010566071,533878.86305485875,31.738704124429713,65.673140624681054,105.9168184218053,146646.24943391123,40746.517826920877,0,35135.866205587314,13799.019395749265,0,8347.1131968275731,3070.1541597371097,0,0.77922357971626111,0.6090912811253435,null,75,"TTL_C21T22: Pulp, paper, paper products, printing and publishing",0,0,null,8991036.3596921079,5124154.145557072,{"$f":"'Colombia-IO-Data'!$AN18*Calculations!AF76","v":0},{"$f":"'Colombia-IO-Data'!$AN18*AI76","v":2870480.9437342146},{"$f":"'Colombia-IO-Data'!$AN18*AJ76","v":1635938.9773485407},{"$f":"'Colombia-IO-Data'!$AO18*Calculations!AK76","v":0},{"$f":"'Colombia-IO-Data'!$AO18*Calculations!AL76","v":1178208.3628716527},{"$f":"'Colombia-IO-Data'!$AO18*Calculations!AM76","v":671482.24358260015},{"$f":"(AN76*'Default-Data'!$F$19/biopower_dollar_index)/'Colombia-IO-Data'!$AP18","v":0},{"$f":"(AO76*'Default-Data'!$F$19/biopower_dollar_index)/'Colombia-IO-Data'!$AP18","v":276.97731362396729},{"$f":"(AP76*'Default-Data'!$F$19/biopower_dollar_index)/'Colombia-IO-Data'!$AP18","v":157.85437774384837},493429.02856415894,490508.69337205496,{"$f":"'Colombia-IO-Data'!$AN18*AG76","v":0},{"$f":"'Colombia-IO-Data'!$AN18*AT76","v":157532.29849325251},{"$f":"'Colombia-IO-Data'!$AN18*AU76","v":156599.95141079251},{"$f":"'Colombia-IO-Data'!$AO18*AV76","v":0},{"$f":"'Colombia-IO-Data'!$AO18*AW76","v":64660.199856853433},{"$f":"'Colombia-IO-Data'!$AO18*AX76","v":64277.511676306123},{"$f":"(AY76*'Default-Data'!$F$19/biopower_dollar_index)/'Colombia-IO-Data'!$AP18","v":0},{"$f":"(AZ76*'Default-Data'!$F$19/biopower_dollar_index)/'Colombia-IO-Data'!$AP18","v":15.200544334186709},{"$f":"(BA76*'Default-Data'!$F$19/biopower_dollar_index)/'Colombia-IO-Data'!$AP18","v":15.110580667704752},null,"DOM_C21T22: Pulp, paper, paper products, printing and publishing",0,0,null,7194324.3676199513,3784548.1876457157,{"$f":"BG76*'Mexico-IO-Data'!AQ18","v":0},{"$f":"BJ76*'Mexico-IO-Data'!$AQ18","v":3220550.9400103856},{"$f":"BK76*'Mexico-IO-Data'!$AQ18","v":1694159.1177197911},{"$f":"BG76*'Mexico-IO-Data'!AR18","v":0},{"$f":"BJ76*'Mexico-IO-Data'!$AR18","v":1002024.1803396211},{"$f":"BK76*'Mexico-IO-Data'!$AR18","v":527111.17846581712},{"$f":"(BO76*'Default-Data'!$F$19/biopower_dollar_index)/'Mexico-IO-Data'!$AS18","v":0},{"$f":"(BP76*'Default-Data'!$F$19/biopower_dollar_index)/'Mexico-IO-Data'!$AS18","v":135.8607704060619},{"$f":"(BQ76*'Default-Data'!$F$19/biopower_dollar_index)/'Mexico-IO-Data'!$AS18","v":71.469064520719144},477607.42704428046,248510.92754389858,{"$f":"BH76*'Mexico-IO-Data'!AQ18","v":0},{"$f":"BU76*'Mexico-IO-Data'!$AQ18","v":213801.7372480882},{"$f":"BV76*'Mexico-IO-Data'!$AQ18","v":111246.31868233751},{"$f":"BH76*'Mexico-IO-Data'!AR18","v":0},{"$f":"BU76*'Mexico-IO-Data'!$AR18","v":66521.074968779023},{"$f":"BV76*'Mexico-IO-Data'!$AR18","v":34612.556475542056},{"$f":"(BZ76*'Default-Data'!$F$19/biopower_dollar_index)/'Mexico-IO-Data'!$AS18","v":0},{"$f":"(CA76*'Default-Data'!$F$19/biopower_dollar_index)/'Mexico-IO-Data'!$AS18","v":9.0193477071926118},{"$f":"(CB76*'Default-Data'!$F$19/biopower_dollar_index)/'Mexico-IO-Data'!$AS18","v":4.6929891321551063},null,"TTL_C21T22: Pulp, paper, paper products, printing and publishing",0,0,null,6006011.6974284574,3147620.0367245786,{"$f":"CH76*'Philippines-IO-Data'!AN18","v":0},{"$f":"CK76*'Philippines-IO-Data'!$AN18","v":1590026.8165582281},{"$f":"CL76*'Philippines-IO-Data'!$AN18","v":833298.45475841104},{"$f":"CH76*'Philippines-IO-Data'!AO18","v":0},{"$f":"CK76*'Philippines-IO-Data'!$AO18","v":471388.73665608803},{"$f":"CL76*'Philippines-IO-Data'!$AO18","v":247044.5792205623},{"$f":"(CP76*'Default-Data'!$F$19/biopower_dollar_index)/'Philippines-IO-Data'!$AP18","v":0},{"$f":"(CQ76*'Default-Data'!$F$19/biopower_dollar_index)/'Philippines-IO-Data'!$AP18","v":146.02593497254389},{"$f":"(CR76*'Default-Data'!$F$19/biopower_dollar_index)/'Philippines-IO-Data'!$AP18","v":76.529014919803956},160263.35008241329,313158.89362713194,{"$f":"CI76*'Philippines-IO-Data'!AN18","v":0},{"$f":"CV76*'Philippines-IO-Data'!$AN18","v":42427.993347332616},{"$f":"CW76*'Philippines-IO-Data'!$AN18","v":82905.439382350902},{"$f":"CI76*'Philippines-IO-Data'!AO18","v":0},{"$f":"CV76*'Philippines-IO-Data'!$AO18","v":12578.453378631812},{"$f":"CW76*'Philippines-IO-Data'!$AO18","v":24578.63598612653},{"$f":"(DA76*'Default-Data'!$F$19/biopower_dollar_index)/'Philippines-IO-Data'!$AP18","v":0},{"$f":"(DB76*'Default-Data'!$F$19/biopower_dollar_index)/'Philippines-IO-Data'!$AP18","v":3.8965301295761066},{"$f":"(DC76*'Default-Data'!$F$19/biopower_dollar_index)/'Philippines-IO-Data'!$AP18","v":7.6139246043175177},null,"DOM_C21T22: Pulp, paper, paper products, printing and publishing",0,0,null,24974396.326576754,13300092.830114923,{"$f":"DI76*'SouthAfrica-IO-Data'!AR18","v":0},{"$f":"DL76*'Mexico-IO-Data'!$AQ18","v":11179828.911767183},{"$f":"DM76*'Mexico-IO-Data'!$AQ18","v":5953808.0683485167},{"$f":"DI76*'SouthAfrica-IO-Data'!AS18","v":0},{"$f":"DL76*'Mexico-IO-Data'!$AR18","v":3478429.3465063418},{"$f":"DM76*'Mexico-IO-Data'!$AR18","v":1852434.49357367},{"$f":"(DQ76*'Default-Data'!$F$19/biopower_dollar_index)/'SouthAfrica-IO-Data'!$AT18","v":0},{"$f":"(DR76*'Default-Data'!$F$19/biopower_dollar_index)/'SouthAfrica-IO-Data'!$AT18","v":270.9766818944783},{"$f":"(DS76*'Default-Data'!$F$19/biopower_dollar_index)/'SouthAfrica-IO-Data'!$AT18","v":144.30839395937011},886837.24691282015,1130992.8706853553,{"$f":"DJ76*'SouthAfrica-IO-Data'!AR18","v":0},{"$f":"DW76*'SouthAfrica-IO-Data'!$AR18","v":203714.06557819713},{"$f":"DX76*'SouthAfrica-IO-Data'!$AR18","v":259798.69094280284},{"$f":"DJ76*'SouthAfrica-IO-Data'!AS18","v":0},{"$f":"DW76*'SouthAfrica-IO-Data'!$AS18","v":169822.88374522378},{"$f":"DX76*'SouthAfrica-IO-Data'!$AS18","v":216576.91020949773},{"$f":"(EB76*'Default-Data'!$F$19/biopower_dollar_index)/'SouthAfrica-IO-Data'!$AT18","v":0},{"$f":"(EC76*'Default-Data'!$F$19/biopower_dollar_index)/'SouthAfrica-IO-Data'!$AT18","v":13.229546143650147},{"$f":"(ED76*'Default-Data'!$F$19/biopower_dollar_index)/'SouthAfrica-IO-Data'!$AT18","v":16.871779374352478},null,"TOBAC",0,0,null,120511.09242944777,654138.23064159055,{"$f":"EJ76*'Zambia-IO-Data'!BO16","v":0},{"$f":"EM76*'Zambia-IO-Data'!$BO16","v":34616.583270540767},{"$f":"EN76*'Zambia-IO-Data'!$BO16","v":187899.96899833583},{"$f":"EJ76*'Zambia-IO-Data'!BN16","v":0},{"$f":"EM76*'Zambia-IO-Data'!$BN16","v":24179.938628670028},{"$f":"EN76*'Zambia-IO-Data'!$BN16","v":131249.51365651595},{"$f":"(ER76*'Default-Data'!$F$19/biopower_dollar_index)/'Zambia-IO-Data'!$BP16","v":0},{"$f":"(ES76*'Default-Data'!$F$19/biopower_dollar_index)/'Zambia-IO-Data'!$BP16","v":233.19298128224401},{"$f":"(ET76*'Default-Data'!$F$19/biopower_dollar_index)/'Zambia-IO-Data'!$BP16","v":1265.7792830424153},2468.0008609753122,65867.97811409476,{"$f":"EK76*'Zambia-IO-Data'!BO16","v":0},{"$f":"EX76*'Zambia-IO-Data'!$BO16","v":708.92857738995849},{"$f":"EY76*'Zambia-IO-Data'!$BO16","v":18920.45207858022},{"$f":"EK76*'Zambia-IO-Data'!BN16","v":0},{"$f":"EX76*'Zambia-IO-Data'!$BN16","v":495.19183795321356},{"$f":"EY76*'Zambia-IO-Data'!$BN16","v":13216.075269799878},{"$f":"(FC76*'Default-Data'!$F$19/biopower_dollar_index)/'Zambia-IO-Data'!$BP16","v":0},{"$f":"(FD76*'Default-Data'!$F$19/biopower_dollar_index)/'Zambia-IO-Data'!$BP16","v":4.7756639407688697},{"$f":"(FE76*'Default-Data'!$F$19/biopower_dollar_index)/'Zambia-IO-Data'!$BP16","v":127.45673346585681},null,"TTL_C21T22: Pulp, paper, paper products, printing and publishing",0,0,null,10428886.393655088,5894921.8117536772,{"$f":"FK76*CustomRegion1!C14","v":0},{"$f":"FN76*CustomRegion1!$C14","v":2760935.1876305342},{"$f":"FO76*CustomRegion1!$C14","v":1560616.9675319737},{"$f":"FK76*CustomRegion1!D14","v":0},{"$f":"FN76*CustomRegion1!$D14","v":818523.14472511015},{"$f":"FO76*CustomRegion1!$D14","v":462669.71919464599},{"$f":"(FS76*'Default-Data'!$F$19/biopower_dollar_index)/CustomRegion1!$E14","v":0},{"$f":"(FT76*'Default-Data'!$F$19/biopower_dollar_index)/CustomRegion1!$E14","v":254.62010249105757},{"$f":"(FU76*'Default-Data'!$F$19/biopower_dollar_index)/CustomRegion1!$E14","v":143.92386101728718},330504.69799667055,565318.77813095972,{"$f":"FL76*CustomRegion1!C14","v":0},{"$f":"FY76*CustomRegion1!$C14","v":87497.553998802294},{"$f":"FZ76*CustomRegion1!$C14","v":149662.04902947816},{"$f":"FL76*CustomRegion1!D14","v":0},{"$f":"FY76*CustomRegion1!$D14","v":25940.041394567772},{"$f":"FZ76*CustomRegion1!$D14","v":44369.694575389352},{"$f":"(GD76*'Default-Data'!$C$58/biopower_dollar_index)/CustomRegion1!$E14","v":0},{"$f":"(GE76*'Default-Data'!$C$58/biopower_dollar_index)/CustomRegion1!$E14","v":8.0692354774222945},{"$f":"(GF76*'Default-Data'!$C$58/biopower_dollar_index)/CustomRegion1!$E14","v":13.802195152437188},null,"C21T22 Pulp, paper, paper products, printing and publishing",0,0,null,16880351.04345512,5920768.7455206588,{"$f":"GL76*CustomRegion2!C18","v":0},{"$f":"GO76*CustomRegion2!$C18","v":5895626.5601146575},{"$f":"GP76*CustomRegion2!$C18","v":2067885.9925678147},{"$f":"GL76*CustomRegion2!D18","v":0},{"$f":"GO76*CustomRegion2!$D18","v":2268322.2029356612},{"$f":"GP76*CustomRegion2!$D18","v":795612.07994659676},{"$f":"(GT76*'Default-Data'!$C$59/biopower_dollar_index)/CustomRegion2!$E18","v":0},{"$f":"(GU76*'Default-Data'!$C$59/biopower_dollar_index)/CustomRegion2!$E18","v":307.55345835622722},{"$f":"(GV76*'Default-Data'!$C$59/biopower_dollar_index)/CustomRegion2!$E18","v":107.87411346628144},301729.15136388596,268093.49419522204,{"$f":"GM76*CustomRegion2!C18","v":0},{"$f":"GZ76*CustomRegion2!$C18","v":105381.83679725626},{"$f":"HA76*CustomRegion2!$C18","v":93634.256829280857},{"$f":"GM76*CustomRegion2!D18","v":0},{"$f":"GZ76*CustomRegion2!$D18","v":40545.302141509761},{"$f":"HA76*CustomRegion2!$D18","v":36025.460831953926},{"$f":"(HE76*'Default-Data'!$C$59/biopower_dollar_index)/CustomRegion2!$E18","v":0},{"$f":"(HF76*'Default-Data'!$C$59/biopower_dollar_index)/CustomRegion2!$E18","v":5.4973882800163949},{"$f":"(HG76*'Default-Data'!$C$59/biopower_dollar_index)/CustomRegion2!$E18","v":4.8845596332852645},null,"TOBAC",0,0,null,120511.09242944777,654138.23064159055,{"$f":"HM76*CustomRegion3!D17","v":0},{"$f":"HP76*CustomRegion3!$D17","v":34616.583270540767},{"$f":"HQ76*CustomRegion3!$D17","v":187899.96899833583},{"$f":"HM76*CustomRegion3!E17","v":0},{"$f":"HP76*CustomRegion3!$E17","v":24179.938628670028},{"$f":"HQ76*CustomRegion3!$E17","v":131249.51365651595},{"$f":"(HU76*'Default-Data'!$C$60/biopower_dollar_index)/CustomRegion3!$F17","v":0},{"$f":"(HV76*'Default-Data'!$C$60/biopower_dollar_index)/CustomRegion3!$F17","v":234.1374433735343},{"$f":"(HW76*'Default-Data'!$C$60/biopower_dollar_index)/CustomRegion3!$F17","v":1270.9058547865591},2468.0008609753122,65867.97811409476,{"$f":"HN76*CustomRegion3!D17","v":0},{"$f":"IA76*CustomRegion3!$D17","v":708.92857738995849},{"$f":"IB76*CustomRegion3!$D17","v":18920.45207858022},{"$f":"HN76*CustomRegion3!E17","v":0},{"$f":"IA76*CustomRegion3!$E17","v":495.19183795321356},{"$f":"IB76*CustomRegion3!$E17","v":13216.075269799878},{"$f":"(IF76*'Default-Data'!$C$60/biopower_dollar_index)/CustomRegion3!$F17","v":0},{"$f":"(IG76*'Default-Data'!$C$60/biopower_dollar_index)/CustomRegion3!$F17","v":4.7950060047023424},{"$f":"(IH76*'Default-Data'!$C$60/biopower_dollar_index)/CustomRegion3!$F17","v":127.97294991618168}]
[null,247,"Sales",0,0,0,4769948.3874054607,4184367.8692345265,0,3632163.5827020602,3186262.692357799,0,731384.86787050904,641596.7412230944,0,154.1330310097506,135.2109604053262,62116.750038420825,24062.863897798903,0,47299.924242593421,18323.103490149366,0,9524.4743400897623,3689.60271749408,0,2.0072005360008944,0.77755184042153447,null,76,"TTL_C23: Coke, refined petroleum products and nuclear fuel",0,0,null,9099741.0751294177,7936213.5548260678,{"$f":"'Colombia-IO-Data'!$AN19*Calculations!AF77","v":0},{"$f":"'Colombia-IO-Data'!$AN19*AI77","v":4912259.8063343372},{"$f":"'Colombia-IO-Data'!$AN19*AJ77","v":4284159.5753100477},{"$f":"'Colombia-IO-Data'!$AO19*Calculations!AK77","v":0},{"$f":"'Colombia-IO-Data'!$AO19*Calculations!AL77","v":257453.89365414644},{"$f":"'Colombia-IO-Data'!$AO19*Calculations!AM77","v":224534.85914506938},{"$f":"(AN77*'Default-Data'!$F$19/biopower_dollar_index)/'Colombia-IO-Data'!$AP19","v":0},{"$f":"(AO77*'Default-Data'!$F$19/biopower_dollar_index)/'Colombia-IO-Data'!$AP19","v":60.523155405682715},{"$f":"(AP77*'Default-Data'!$F$19/biopower_dollar_index)/'Colombia-IO-Data'!$AP19","v":52.784434452119015},742762.72890087322,759692.55227705918,{"$f":"'Colombia-IO-Data'!$AN19*AG77","v":0},{"$f":"'Colombia-IO-Data'!$AN19*AT77","v":400961.24369902204},{"$f":"'Colombia-IO-Data'!$AN19*AU77","v":410100.3708689668},{"$f":"'Colombia-IO-Data'!$AO19*AV77","v":0},{"$f":"'Colombia-IO-Data'!$AO19*AW77","v":21014.571188113652},{"$f":"'Colombia-IO-Data'!$AO19*AX77","v":21493.557228605365},{"$f":"(AY77*'Default-Data'!$F$19/biopower_dollar_index)/'Colombia-IO-Data'!$AP19","v":0},{"$f":"(AZ77*'Default-Data'!$F$19/biopower_dollar_index)/'Colombia-IO-Data'!$AP19","v":4.9401783742706309},{"$f":"(BA77*'Default-Data'!$F$19/biopower_dollar_index)/'Colombia-IO-Data'!$AP19","v":5.0527800760913699},null,"DOM_C23: Coke, refined petroleum products and nuclear fuel",0,0,null,9110920.7083253451,10588693.22989545,{"$f":"BG77*'Mexico-IO-Data'!AQ19","v":0},{"$f":"BJ77*'Mexico-IO-Data'!$AQ19","v":1142981.3607297738},{"$f":"BK77*'Mexico-IO-Data'!$AQ19","v":1328370.5767735308},{"$f":"BG77*'Mexico-IO-Data'!AR19","v":0},{"$f":"BJ77*'Mexico-IO-Data'!$AR19","v":292564.92893794295},{"$f":"BK77*'Mexico-IO-Data'!$AR19","v":340018.35616012657},{"$f":"(BO77*'Default-Data'!$F$19/biopower_dollar_index)/'Mexico-IO-Data'!$AS19","v":0},{"$f":"(BP77*'Default-Data'!$F$19/biopower_dollar_index)/'Mexico-IO-Data'!$AS19","v":6.4698147207461618},{"$f":"(BQ77*'Default-Data'!$F$19/biopower_dollar_index)/'Mexico-IO-Data'!$AS19","v":7.5192053059624167},5934295.8373449054,695302.54222395178,{"$f":"BH77*'Mexico-IO-Data'!AQ19","v":0},{"$f":"BU77*'Mexico-IO-Data'!$AQ19","v":744468.0673099875},{"$f":"BV77*'Mexico-IO-Data'!$AQ19","v":87226.95227759023},{"$f":"BH77*'Mexico-IO-Data'!AR19","v":0},{"$f":"BU77*'Mexico-IO-Data'!$AR19","v":190558.87934169755},{"$f":"BV77*'Mexico-IO-Data'!$AR19","v":22327.176952625665},{"$f":"(BZ77*'Default-Data'!$F$19/biopower_dollar_index)/'Mexico-IO-Data'!$AS19","v":0},{"$f":"(CA77*'Default-Data'!$F$19/biopower_dollar_index)/'Mexico-IO-Data'!$AS19","v":4.2140411265607218},{"$f":"(CB77*'Default-Data'!$F$19/biopower_dollar_index)/'Mexico-IO-Data'!$AS19","v":0.49374577686118476},null,"TTL_C23: Coke, refined petroleum products and nuclear fuel",0,0,null,42552418.053621173,13224873.354516253,{"$f":"CH77*'Philippines-IO-Data'!AN19","v":0},{"$f":"CK77*'Philippines-IO-Data'!$AN19","v":7227630.699704119},{"$f":"CL77*'Philippines-IO-Data'!$AN19","v":2246276.593173922},{"$f":"CH77*'Philippines-IO-Data'!AO19","v":0},{"$f":"CK77*'Philippines-IO-Data'!$AO19","v":982661.24843423138},{"$f":"CL77*'Philippines-IO-Data'!$AO19","v":305401.45907942433},{"$f":"(CP77*'Default-Data'!$F$19/biopower_dollar_index)/'Philippines-IO-Data'!$AP19","v":0},{"$f":"(CQ77*'Default-Data'!$F$19/biopower_dollar_index)/'Philippines-IO-Data'!$AP19","v":304.40699237280472},{"$f":"(CR77*'Default-Data'!$F$19/biopower_dollar_index)/'Philippines-IO-Data'!$AP19","v":94.60670172225268},9709111.5213850103,1315751.7933355346,{"$f":"CI77*'Philippines-IO-Data'!AN19","v":0},{"$f":"CV77*'Philippines-IO-Data'!$AN19","v":1649115.97762519},{"$f":"CW77*'Philippines-IO-Data'!$AN19","v":223483.61126550334},{"$f":"CI77*'Philippines-IO-Data'!AO19","v":0},{"$f":"CV77*'Philippines-IO-Data'!$AO19","v":224212.1149676819},{"$f":"CW77*'Philippines-IO-Data'!$AO19","v":30384.602309542486},{"$f":"(DA77*'Default-Data'!$F$19/biopower_dollar_index)/'Philippines-IO-Data'!$AP19","v":0},{"$f":"(DB77*'Default-Data'!$F$19/biopower_dollar_index)/'Philippines-IO-Data'!$AP19","v":69.456016180153242},{"$f":"(DC77*'Default-Data'!$F$19/biopower_dollar_index)/'Philippines-IO-Data'!$AP19","v":9.412486162682594},null,"DOM_C23: Coke, refined petroleum products and nuclear fuel",0,0,null,13273232.910306541,19648823.53287708,{"$f":"DI77*'SouthAfrica-IO-Data'!AR19","v":0},{"$f":"DL77*'Mexico-IO-Data'!$AQ19","v":1665150.8995399806},{"$f":"DM77*'Mexico-IO-Data'!$AQ19","v":2464980.1899631545},{"$f":"DI77*'SouthAfrica-IO-Data'!AS19","v":0},{"$f":"DL77*'Mexico-IO-Data'!$AR19","v":426222.83383853256},{"$f":"DM77*'Mexico-IO-Data'!$AR19","v":630952.33123447862},{"$f":"(DQ77*'Default-Data'!$F$19/biopower_dollar_index)/'SouthAfrica-IO-Data'!$AT19","v":0},{"$f":"(DR77*'Default-Data'!$F$19/biopower_dollar_index)/'SouthAfrica-IO-Data'!$AT19","v":33.203620874815023},{"$f":"(DS77*'Default-Data'!$F$19/biopower_dollar_index)/'SouthAfrica-IO-Data'!$AT19","v":49.152462827289206},1186019.742425496,1670866.4831812743,{"$f":"DJ77*'SouthAfrica-IO-Data'!AR19","v":0},{"$f":"DW77*'SouthAfrica-IO-Data'!$AR19","v":251640.42553520625},{"$f":"DX77*'SouthAfrica-IO-Data'!$AR19","v":354511.4282671074},{"$f":"DJ77*'SouthAfrica-IO-Data'!AS19","v":0},{"$f":"DW77*'SouthAfrica-IO-Data'!$AS19","v":47715.418063046673},{"$f":"DX77*'SouthAfrica-IO-Data'!$AS19","v":67221.556202328837},{"$f":"(EB77*'Default-Data'!$F$19/biopower_dollar_index)/'SouthAfrica-IO-Data'!$AT19","v":0},{"$f":"(EC77*'Default-Data'!$F$19/biopower_dollar_index)/'SouthAfrica-IO-Data'!$AT19","v":3.7171275808487003},{"$f":"(ED77*'Default-Data'!$F$19/biopower_dollar_index)/'SouthAfrica-IO-Data'!$AT19","v":5.2366951968667932},null,"COFFEE",0,0,null,1534.3422543124391,404356.95576220256,{"$f":"EJ77*'Zambia-IO-Data'!BO17","v":0},{"$f":"EM77*'Zambia-IO-Data'!$BO17","v":489.78979376469908},{"$f":"EN77*'Zambia-IO-Data'!$BO17","v":129078.05244458954},{"$f":"EJ77*'Zambia-IO-Data'!BN17","v":0},{"$f":"EM77*'Zambia-IO-Data'!$BN17","v":389.50391397494457},{"$f":"EN77*'Zambia-IO-Data'!$BN17","v":102648.94711053162},{"$f":"(ER77*'Default-Data'!$F$19/biopower_dollar_index)/'Zambia-IO-Data'!$BP17","v":0},{"$f":"(ES77*'Default-Data'!$F$19/biopower_dollar_index)/'Zambia-IO-Data'!$BP17","v":3.7564023761922978},{"$f":"(ET77*'Default-Data'!$F$19/biopower_dollar_index)/'Zambia-IO-Data'!$BP17","v":989.95346389367012},74.045696874409714,40779.739469869615,{"$f":"EK77*'Zambia-IO-Data'!BO17","v":0},{"$f":"EX77*'Zambia-IO-Data'!$BO17","v":23.63672544332832},{"$f":"EY77*'Zambia-IO-Data'!$BO17","v":13017.630276809403},{"$f":"EK77*'Zambia-IO-Data'!BN17","v":0},{"$f":"EX77*'Zambia-IO-Data'!$BN17","v":18.797037404479884},{"$f":"EY77*'Zambia-IO-Data'!$BN17","v":10352.232749733232},{"$f":"(FC77*'Default-Data'!$F$19/biopower_dollar_index)/'Zambia-IO-Data'!$BP17","v":0},{"$f":"(FD77*'Default-Data'!$F$19/biopower_dollar_index)/'Zambia-IO-Data'!$BP17","v":0.18127991385500117},{"$f":"(FE77*'Default-Data'!$F$19/biopower_dollar_index)/'Zambia-IO-Data'!$BP17","v":99.837640405572699},null,"TTL_C23: Coke, refined petroleum products and nuclear fuel",0,0,null,70814702.867469013,25321639.58053188,{"$f":"FK77*CustomRegion1!C15","v":0},{"$f":"FN77*CustomRegion1!$C15","v":12028047.848899828},{"$f":"FO77*CustomRegion1!$C15","v":4300941.4733722918},{"$f":"FK77*CustomRegion1!D15","v":0},{"$f":"FN77*CustomRegion1!$D15","v":1635321.0348600734},{"$f":"FO77*CustomRegion1!$D15","v":584751.5864140091},{"$f":"(FS77*'Default-Data'!$F$19/biopower_dollar_index)/CustomRegion1!$E15","v":0},{"$f":"(FT77*'Default-Data'!$F$19/biopower_dollar_index)/CustomRegion1!$E15","v":508.7035255938813},{"$f":"(FU77*'Default-Data'!$F$19/biopower_dollar_index)/CustomRegion1!$E15","v":181.90018183853067},13588122.751226336,2428327.0932274368,{"$f":"FL77*CustomRegion1!C15","v":0},{"$f":"FY77*CustomRegion1!$C15","v":2307975.3781407936},{"$f":"FZ77*CustomRegion1!$C15","v":412457.20574133884},{"$f":"FL77*CustomRegion1!D15","v":0},{"$f":"FY77*CustomRegion1!$D15","v":313789.96252978779},{"$f":"FZ77*CustomRegion1!$D15","v":56077.258172041191},{"$f":"(GD77*'Default-Data'!$C$58/biopower_dollar_index)/CustomRegion1!$E15","v":0},{"$f":"(GE77*'Default-Data'!$C$58/biopower_dollar_index)/CustomRegion1!$E15","v":97.611451716288457},{"$f":"(GF77*'Default-Data'!$C$58/biopower_dollar_index)/CustomRegion1!$E15","v":17.444097109774248},null,"C23 Coke, refined petroleum products and nuclear fuel",0,0,null,10495753.666000109,9635013.9246819355,{"$f":"GL77*CustomRegion2!C19","v":0},{"$f":"GO77*CustomRegion2!$C19","v":1755060.3537607344},{"$f":"GP77*CustomRegion2!$C19","v":1611130.6996390498},{"$f":"GL77*CustomRegion2!D19","v":0},{"$f":"GO77*CustomRegion2!$D19","v":744539.99402472179},{"$f":"GP77*CustomRegion2!$D19","v":683481.47624206298},{"$f":"(GT77*'Default-Data'!$C$59/biopower_dollar_index)/CustomRegion2!$E19","v":0},{"$f":"(GU77*'Default-Data'!$C$59/biopower_dollar_index)/CustomRegion2!$E19","v":16.464843653721612},{"$f":"(GV77*'Default-Data'!$C$59/biopower_dollar_index)/CustomRegion2!$E19","v":15.114588520233005},898950.39704943658,436275.19680477679,{"$f":"GM77*CustomRegion2!C19","v":0},{"$f":"GZ77*CustomRegion2!$C19","v":150319.09589968462},{"$f":"HA77*CustomRegion2!$C19","v":72952.293432876148},{"$f":"GM77*CustomRegion2!D19","v":0},{"$f":"GZ77*CustomRegion2!$D19","v":63769.076956888806},{"$f":"HA77*CustomRegion2!$D19","v":30948.166540378814},{"$f":"(HE77*'Default-Data'!$C$59/biopower_dollar_index)/CustomRegion2!$E19","v":0},{"$f":"(HF77*'Default-Data'!$C$59/biopower_dollar_index)/CustomRegion2!$E19","v":1.4101967529798718},{"$f":"(HG77*'Default-Data'!$C$59/biopower_dollar_index)/CustomRegion2!$E19","v":0.68439133900946125},null,"COFFEE",0,0,null,1534.3422543124391,404356.95576220256,{"$f":"HM77*CustomRegion3!D18","v":0},{"$f":"HP77*CustomRegion3!$D18","v":489.78979376469908},{"$f":"HQ77*CustomRegion3!$D18","v":129078.05244458954},{"$f":"HM77*CustomRegion3!E18","v":0},{"$f":"HP77*CustomRegion3!$E18","v":389.50391397494457},{"$f":"HQ77*CustomRegion3!$E18","v":102648.94711053162},{"$f":"(HU77*'Default-Data'!$C$60/biopower_dollar_index)/CustomRegion3!$F18","v":0},{"$f":"(HV77*'Default-Data'!$C$60/biopower_dollar_index)/CustomRegion3!$F18","v":3.7716162974022693},{"$f":"(HW77*'Default-Data'!$C$60/biopower_dollar_index)/CustomRegion3!$F18","v":993.96290497396342},74.045696874409714,40779.739469869615,{"$f":"HN77*CustomRegion3!D18","v":0},{"$f":"IA77*CustomRegion3!$D18","v":23.63672544332832},{"$f":"IB77*CustomRegion3!$D18","v":13017.630276809403},{"$f":"HN77*CustomRegion3!E18","v":0},{"$f":"IA77*CustomRegion3!$E18","v":18.797037404479884},{"$f":"IB77*CustomRegion3!$E18","v":10352.232749733232},{"$f":"(IF77*'Default-Data'!$C$60/biopower_dollar_index)/CustomRegion3!$F18","v":0},{"$f":"(IG77*'Default-Data'!$C$60/biopower_dollar_index)/CustomRegion3!$F18","v":0.18201412122954128},{"$f":"(IH77*'Default-Data'!$C$60/biopower_dollar_index)/CustomRegion3!$F18","v":100.24199591459553}]
[null,248,"Transportation and Warehousing",0,0,0,1456011.4095992849,2417681.1952923276,0,1064191.5955494144,1767071.3236073125,0,343322.25241877674,570080.52830212528,0,48.587762763631723,80.679120768213295,16356.227735904269,13903.255012143478,0,11954.686602512251,10161.820873900539,0,3856.7396590048543,3278.3375152502585,0,0.5458147564645569,0.46395794134485235,null,77,"TTL_C24: Chemicals and chemical products",0,{"$f":"'Biopower-Inputs'!B50*'Biopower-Inputs'!C50+'Biopower-Inputs'!B52*'Biopower-Inputs'!C52","v":955000},null,8837803.0592681691,9389224.5506909713,{"$f":"'Colombia-IO-Data'!$AN20*Calculations!AF78","v":0},{"$f":"'Colombia-IO-Data'!$AN20*AI78","v":2733401.0628085681},{"$f":"'Colombia-IO-Data'!$AN20*AJ78","v":2903947.5301379026},{"$f":"'Colombia-IO-Data'!$AO20*Calculations!AK78","v":0},{"$f":"'Colombia-IO-Data'!$AO20*Calculations!AL78","v":1002835.497631159},{"$f":"'Colombia-IO-Data'!$AO20*Calculations!AM78","v":1065405.9172305851},{"$f":"(AN78*'Default-Data'!$F$19/biopower_dollar_index)/'Colombia-IO-Data'!$AP20","v":0},{"$f":"(AO78*'Default-Data'!$F$19/biopower_dollar_index)/'Colombia-IO-Data'!$AP20","v":235.75005142862898},{"$f":"(AP78*'Default-Data'!$F$19/biopower_dollar_index)/'Colombia-IO-Data'!$AP20","v":250.45932296251416},2054243.1827387991,898781.75701046642,{"$f":"'Colombia-IO-Data'!$AN20*AG78","v":295367.29857819906},{"$f":"'Colombia-IO-Data'!$AN20*AT78","v":635346.86859501654},{"$f":"'Colombia-IO-Data'!$AN20*AU78","v":277979.83202046994},{"$f":"'Colombia-IO-Data'!$AO20*AV78","v":108364.92890995261},{"$f":"'Colombia-IO-Data'!$AO20*AW78","v":233097.29472381648},{"$f":"'Colombia-IO-Data'!$AO20*AX78","v":101985.78136544659},{"$f":"(AY78*'Default-Data'!$F$19/biopower_dollar_index)/'Colombia-IO-Data'!$AP20","v":25.474803817701716},{"$f":"(AZ78*'Default-Data'!$F$19/biopower_dollar_index)/'Colombia-IO-Data'!$AP20","v":54.79732154358333},{"$f":"(BA78*'Default-Data'!$F$19/biopower_dollar_index)/'Colombia-IO-Data'!$AP20","v":23.975171659445952},null,"DOM_C24: Chemicals and chemical products",0,955000,null,8517464.0040547624,10089064.981015399,{"$f":"BG78*'Mexico-IO-Data'!AQ20","v":0},{"$f":"BJ78*'Mexico-IO-Data'!$AQ20","v":2498583.2615057607},{"$f":"BK78*'Mexico-IO-Data'!$AQ20","v":2959609.6765197362},{"$f":"BG78*'Mexico-IO-Data'!AR20","v":0},{"$f":"BJ78*'Mexico-IO-Data'!$AR20","v":546952.64140224981},{"$f":"BK78*'Mexico-IO-Data'!$AR20","v":647873.67906906782},{"$f":"(BO78*'Default-Data'!$F$19/biopower_dollar_index)/'Mexico-IO-Data'!$AS20","v":0},{"$f":"(BP78*'Default-Data'!$F$19/biopower_dollar_index)/'Mexico-IO-Data'!$AS20","v":43.008690035061143},{"$f":"(BQ78*'Default-Data'!$F$19/biopower_dollar_index)/'Mexico-IO-Data'!$AS20","v":50.944444062870566},8111030.82301585,662494.64194100164,{"$f":"BH78*'Mexico-IO-Data'!AQ20","v":280147.59012800874},{"$f":"BU78*'Mexico-IO-Data'!$AQ20","v":2379356.7942637587},{"$f":"BV78*'Mexico-IO-Data'!$AQ20","v":194341.65174082684},{"$f":"BH78*'Mexico-IO-Data'!AR20","v":61325.738775119833},{"$f":"BU78*'Mexico-IO-Data'!$AR20","v":520853.3585855657},{"$f":"BV78*'Mexico-IO-Data'!$AR20","v":42542.380472869547},{"$f":"(BZ78*'Default-Data'!$F$19/biopower_dollar_index)/'Mexico-IO-Data'!$AS20","v":4.8222450912537278},{"$f":"(CA78*'Default-Data'!$F$19/biopower_dollar_index)/'Mexico-IO-Data'!$AS20","v":40.95641735214226},{"$f":"(CB78*'Default-Data'!$F$19/biopower_dollar_index)/'Mexico-IO-Data'!$AS20","v":3.3452476807140217},null,"TTL_C24: Chemicals and chemical products",0,{"$f":"'Biopower-Inputs'!B50*'Biopower-Inputs'!C50+'Biopower-Inputs'!B52*'Biopower-Inputs'!C52","v":955000},null,16270493.163557332,6493094.2531934455,{"$f":"CH78*'Philippines-IO-Data'!AN20","v":0},{"$f":"CK78*'Philippines-IO-Data'!$AN20","v":4390924.2372182719},{"$f":"CL78*'Philippines-IO-Data'!$AN20","v":1752293.8391780304},{"$f":"CH78*'Philippines-IO-Data'!AO20","v":0},{"$f":"CK78*'Philippines-IO-Data'!$AO20","v":1138682.5125062338},{"$f":"CL78*'Philippines-IO-Data'!$AO20","v":454416.02807259909},{"$f":"(CP78*'Default-Data'!$F$19/biopower_dollar_index)/'Philippines-IO-Data'!$AP20","v":0},{"$f":"(CQ78*'Default-Data'!$F$19/biopower_dollar_index)/'Philippines-IO-Data'!$AP20","v":352.73897230794324},{"$f":"(CR78*'Default-Data'!$F$19/biopower_dollar_index)/'Philippines-IO-Data'!$AP20","v":140.76816055582356},1296631.4408140429,646002.43638767768,{"$f":"CI78*'Philippines-IO-Data'!AN20","v":257726.21667889456},{"$f":"CV78*'Philippines-IO-Data'!$AN20","v":349922.42478314898},{"$f":"CW78*'Philippines-IO-Data'!$AN20","v":174336.92554507271},{"$f":"CI78*'Philippines-IO-Data'!AO20","v":66835.208282383624},{"$f":"CV78*'Philippines-IO-Data'!$AO20","v":90744.117709208105},{"$f":"CW78*'Philippines-IO-Data'!$AO20","v":45210.164803034262},{"$f":"(DA78*'Default-Data'!$F$19/biopower_dollar_index)/'Philippines-IO-Data'!$AP20","v":20.704087772127149},{"$f":"(DB78*'Default-Data'!$F$19/biopower_dollar_index)/'Philippines-IO-Data'!$AP20","v":28.11054571593051},{"$f":"(DC78*'Default-Data'!$F$19/biopower_dollar_index)/'Philippines-IO-Data'!$AP20","v":14.005121616731376},null,"DOM_C24: Chemicals and chemical products",0,955000,null,6409505.1658495292,6951158.7087171376,{"$f":"DI78*'SouthAfrica-IO-Data'!AR20","v":0},{"$f":"DL78*'Mexico-IO-Data'!$AQ20","v":1880217.2001316948},{"$f":"DM78*'Mexico-IO-Data'!$AQ20","v":2039110.3254915467},{"$f":"DI78*'SouthAfrica-IO-Data'!AS20","v":0},{"$f":"DL78*'Mexico-IO-Data'!$AR20","v":411589.15128656477},{"$f":"DM78*'Mexico-IO-Data'!$AR20","v":446371.66822532617},{"$f":"(DQ78*'Default-Data'!$F$19/biopower_dollar_index)/'SouthAfrica-IO-Data'!$AT20","v":0},{"$f":"(DR78*'Default-Data'!$F$19/biopower_dollar_index)/'SouthAfrica-IO-Data'!$AT20","v":32.063627404540256},{"$f":"(DS78*'Default-Data'!$F$19/biopower_dollar_index)/'SouthAfrica-IO-Data'!$AT20","v":34.773255828492736},1662467.7520239404,591101.96018786402,{"$f":"DJ78*'SouthAfrica-IO-Data'!AR20","v":221291.6191155492},{"$f":"DW78*'SouthAfrica-IO-Data'!$AR20","v":385225.3199714818},{"$f":"DX78*'SouthAfrica-IO-Data'!$AR20","v":136969.53909146317},{"$f":"DJ78*'SouthAfrica-IO-Data'!AS20","v":154080.59914407987},{"$f":"DW78*'SouthAfrica-IO-Data'!$AS20","v":268224.11234508938},{"$f":"DX78*'SouthAfrica-IO-Data'!$AS20","v":95368.946786372922},{"$f":"(EB78*'Default-Data'!$F$19/biopower_dollar_index)/'SouthAfrica-IO-Data'!$AT20","v":12.003190331380745},{"$f":"(EC78*'Default-Data'!$F$19/biopower_dollar_index)/'SouthAfrica-IO-Data'!$AT20","v":20.895200887252404},{"$f":"(ED78*'Default-Data'!$F$19/biopower_dollar_index)/'SouthAfrica-IO-Data'!$AT20","v":7.4294338569499221},null,"WHEAT",0,0,null,8600.0886833550321,2266447.1825060504,{"$f":"EJ78*'Zambia-IO-Data'!BO18","v":0},{"$f":"EM78*'Zambia-IO-Data'!$BO18","v":1858.1600476147605},{"$f":"EN78*'Zambia-IO-Data'!$BO18","v":489695.13683187269},{"$f":"EJ78*'Zambia-IO-Data'!BN18","v":0},{"$f":"EM78*'Zambia-IO-Data'!$BN18","v":1125.3229347725828},{"$f":"EN78*'Zambia-IO-Data'!$BN18","v":296564.96448240988},{"$f":"(ER78*'Default-Data'!$F$19/biopower_dollar_index)/'Zambia-IO-Data'!$BP18","v":0},{"$f":"(ES78*'Default-Data'!$F$19/biopower_dollar_index)/'Zambia-IO-Data'!$BP18","v":10.852691319644451},{"$f":"(ET78*'Default-Data'!$F$19/biopower_dollar_index)/'Zambia-IO-Data'!$BP18","v":2860.0927931850506},415.03097366376517,228573.10677541775,{"$f":"EK78*'Zambia-IO-Data'!BO18","v":0},{"$f":"EX78*'Zambia-IO-Data'!$BO18","v":89.672793174477732},{"$f":"EY78*'Zambia-IO-Data'!$BO18","v":49386.16688817351},{"$f":"EK78*'Zambia-IO-Data'!BN18","v":0},{"$f":"EX78*'Zambia-IO-Data'!$BN18","v":54.30686711507601},{"$f":"EY78*'Zambia-IO-Data'!$BN18","v":29908.826385061759},{"$f":"(FC78*'Default-Data'!$F$19/biopower_dollar_index)/'Zambia-IO-Data'!$BP18","v":0},{"$f":"(FD78*'Default-Data'!$F$19/biopower_dollar_index)/'Zambia-IO-Data'!$BP18","v":0.52373913933956873},{"$f":"(FE78*'Default-Data'!$F$19/biopower_dollar_index)/'Zambia-IO-Data'!$BP18","v":288.44276648063652},null,"TTL_C24: Chemicals and chemical products",0,955000,null,38272652.860649355,16454865.197290577,{"$f":"FK78*CustomRegion1!C16","v":0},{"$f":"FN78*CustomRegion1!$C16","v":10328655.522554796},{"$f":"FO78*CustomRegion1!$C16","v":4440680.7887527877},{"$f":"FK78*CustomRegion1!D16","v":0},{"$f":"FN78*CustomRegion1!$D16","v":2678492.9062417438},{"$f":"FO78*CustomRegion1!$D16","v":1151585.699182682},{"$f":"(FS78*'Default-Data'!$F$19/biopower_dollar_index)/CustomRegion1!$E16","v":0},{"$f":"(FT78*'Default-Data'!$F$19/biopower_dollar_index)/CustomRegion1!$E16","v":833.2056860015648},{"$f":"(FU78*'Default-Data'!$F$19/biopower_dollar_index)/CustomRegion1!$E16","v":358.22672900911505},2994755.6334041483,1578009.7827751557,{"$f":"FL78*CustomRegion1!C16","v":257726.21667889456},{"$f":"FY78*CustomRegion1!$C16","v":808195.85264403943},{"$f":"FZ78*CustomRegion1!$C16","v":425858.10596536665},{"$f":"FL78*CustomRegion1!D16","v":66835.208282383624},{"$f":"FY78*CustomRegion1!$D16","v":209586.50943812352},{"$f":"FZ78*CustomRegion1!$D16","v":110436.24345907485},{"$f":"(GD78*'Default-Data'!$C$58/biopower_dollar_index)/CustomRegion1!$E16","v":20.790600354479682},{"$f":"(GE78*'Default-Data'!$C$58/biopower_dollar_index)/CustomRegion1!$E16","v":65.196615218253726},{"$f":"(GF78*'Default-Data'!$C$58/biopower_dollar_index)/CustomRegion1!$E16","v":34.35368664831158},null,"C24 Chemicals and chemical products",0,955000,null,41726755.434442453,21590130.386091538,{"$f":"GL78*CustomRegion2!C20","v":0},{"$f":"GO78*CustomRegion2!$C20","v":13748682.611407502},{"$f":"GP78*CustomRegion2!$C20","v":7113801.3758016918},{"$f":"GL78*CustomRegion2!D20","v":0},{"$f":"GO78*CustomRegion2!$D20","v":4874308.0129101863},{"$f":"GP78*CustomRegion2!$D20","v":2522049.5685565835},{"$f":"(GT78*'Default-Data'!$C$59/biopower_dollar_index)/CustomRegion2!$E20","v":0},{"$f":"(GU78*'Default-Data'!$C$59/biopower_dollar_index)/CustomRegion2!$E20","v":383.28291444979703},{"$f":"(GV78*'Default-Data'!$C$59/biopower_dollar_index)/CustomRegion2!$E20","v":198.31707525722831},2784972.6711829109,977605.06179484352,{"$f":"GM78*CustomRegion2!C20","v":314666.01601753809},{"$f":"GZ78*CustomRegion2!$C20","v":917629.58655376721},{"$f":"HA78*CustomRegion2!$C20","v":322114.23040163622},{"$f":"GM78*CustomRegion2!D20","v":111558.25809755837},{"$f":"GZ78*CustomRegion2!$D20","v":325326.38748321438},{"$f":"HA78*CustomRegion2!$D20","v":114198.86680752739},{"$f":"(HE78*'Default-Data'!$C$59/biopower_dollar_index)/CustomRegion2!$E20","v":8.772193751671864},{"$f":"(HF78*'Default-Data'!$C$59/biopower_dollar_index)/CustomRegion2!$E20","v":25.581486769348306},{"$f":"(HG78*'Default-Data'!$C$59/biopower_dollar_index)/CustomRegion2!$E20","v":8.979833523224622},null,"WHEAT",0,0,null,8600.0886833550321,2266447.1825060504,{"$f":"HM78*CustomRegion3!D19","v":0},{"$f":"HP78*CustomRegion3!$D19","v":1858.1600476147605},{"$f":"HQ78*CustomRegion3!$D19","v":489695.13683187269},{"$f":"HM78*CustomRegion3!E19","v":0},{"$f":"HP78*CustomRegion3!$E19","v":1125.3229347725828},{"$f":"HQ78*CustomRegion3!$E19","v":296564.96448240988},{"$f":"(HU78*'Default-Data'!$C$60/biopower_dollar_index)/CustomRegion3!$F19","v":0},{"$f":"(HV78*'Default-Data'!$C$60/biopower_dollar_index)/CustomRegion3!$F19","v":10.896646139740318},{"$f":"(HW78*'Default-Data'!$C$60/biopower_dollar_index)/CustomRegion3!$F19","v":2871.6765432871448},415.03097366376517,228573.10677541775,{"$f":"HN78*CustomRegion3!D19","v":0},{"$f":"IA78*CustomRegion3!$D19","v":89.672793174477732},{"$f":"IB78*CustomRegion3!$D19","v":49386.16688817351},{"$f":"HN78*CustomRegion3!E19","v":0},{"$f":"IA78*CustomRegion3!$E19","v":54.30686711507601},{"$f":"IB78*CustomRegion3!$E19","v":29908.826385061759},{"$f":"(IF78*'Default-Data'!$C$60/biopower_dollar_index)/CustomRegion3!$F19","v":0},{"$f":"(IG78*'Default-Data'!$C$60/biopower_dollar_index)/CustomRegion3!$F19","v":0.52586035139368503},{"$f":"(IH78*'Default-Data'!$C$60/biopower_dollar_index)/CustomRegion3!$F19","v":289.61099743231404}]
[null,249,"Information",0,0,0,730272.42203742871,942315.17526276107,0,445569.02964983438,574944.97340421635,0,113904.19688821075,146977.55250625795,0,9.51322172764573,12.275491897379272,3087.2595673563073,5418.9312507378536,0,1883.6631484265667,3306.3112699697126,0,481.53512441846243,845.21747430315418,0,4.0217573481846319E-2,7.0592141999983163E-2,null,78,"TTL_C25: Rubber and plastics products",0,0,null,7639748.9876888013,2536040.9099249253,{"$f":"'Colombia-IO-Data'!$AN21*Calculations!AF79","v":0},{"$f":"'Colombia-IO-Data'!$AN21*AI79","v":1922854.4180106907},{"$f":"'Colombia-IO-Data'!$AN21*AJ79","v":638298.12677919259},{"$f":"'Colombia-IO-Data'!$AO21*Calculations!AK79","v":0},{"$f":"'Colombia-IO-Data'!$AO21*Calculations!AL79","v":1113618.906355212},{"$f":"'Colombia-IO-Data'!$AO21*Calculations!AM79","v":369669.61992255872},{"$f":"(AN79*'Default-Data'!$F$19/biopower_dollar_index)/'Colombia-IO-Data'!$AP21","v":0},{"$f":"(AO79*'Default-Data'!$F$19/biopower_dollar_index)/'Colombia-IO-Data'!$AP21","v":261.79339987992216},{"$f":"(AP79*'Default-Data'!$F$19/biopower_dollar_index)/'Colombia-IO-Data'!$AP21","v":86.903218039453975},518156.04764292866,242762.03988592443,{"$f":"'Colombia-IO-Data'!$AN21*AG79","v":0},{"$f":"'Colombia-IO-Data'!$AN21*AT79","v":130415.10225463292},{"$f":"'Colombia-IO-Data'!$AN21*AU79","v":61100.968326598624},{"$f":"'Colombia-IO-Data'!$AO21*AV79","v":0},{"$f":"'Colombia-IO-Data'!$AO21*AW79","v":75529.755235063247},{"$f":"'Colombia-IO-Data'!$AO21*AX79","v":35386.554950689409},{"$f":"(AY79*'Default-Data'!$F$19/biopower_dollar_index)/'Colombia-IO-Data'!$AP21","v":0},{"$f":"(AZ79*'Default-Data'!$F$19/biopower_dollar_index)/'Colombia-IO-Data'!$AP21","v":17.755797160270632},{"$f":"(BA79*'Default-Data'!$F$19/biopower_dollar_index)/'Colombia-IO-Data'!$AP21","v":8.3187942281789322},null,"DOM_C25: Rubber and plastics products",0,0,null,3981781.0740142176,1706397.8311844626,{"$f":"BG79*'Mexico-IO-Data'!AQ21","v":0},{"$f":"BJ79*'Mexico-IO-Data'!$AQ21","v":1228165.4930483904},{"$f":"BK79*'Mexico-IO-Data'!$AQ21","v":526332.03451352951},{"$f":"BG79*'Mexico-IO-Data'!AR21","v":0},{"$f":"BJ79*'Mexico-IO-Data'!$AR21","v":429367.48722488503},{"$f":"BK79*'Mexico-IO-Data'!$AR21","v":184006.03533007053},{"$f":"(BO79*'Default-Data'!$F$19/biopower_dollar_index)/'Mexico-IO-Data'!$AS21","v":0},{"$f":"(BP79*'Default-Data'!$F$19/biopower_dollar_index)/'Mexico-IO-Data'!$AS21","v":78.616719843897855},{"$f":"(BQ79*'Default-Data'!$F$19/biopower_dollar_index)/'Mexico-IO-Data'!$AS21","v":33.691304906730998},177369.01524092376,112049.96918016401,{"$f":"BH79*'Mexico-IO-Data'!AQ21","v":0},{"$f":"BU79*'Mexico-IO-Data'!$AQ21","v":54708.809953547636},{"$f":"BV79*'Mexico-IO-Data'!$AQ21","v":34561.394282151261},{"$f":"BH79*'Mexico-IO-Data'!AR21","v":0},{"$f":"BU79*'Mexico-IO-Data'!$AR21","v":19126.23697032416},{"$f":"BV79*'Mexico-IO-Data'!$AR21","v":12082.686821857411},{"$f":"(BZ79*'Default-Data'!$F$19/biopower_dollar_index)/'Mexico-IO-Data'!$AS21","v":0},{"$f":"(CA79*'Default-Data'!$F$19/biopower_dollar_index)/'Mexico-IO-Data'!$AS21","v":3.5019931837000748},{"$f":"(CB79*'Default-Data'!$F$19/biopower_dollar_index)/'Mexico-IO-Data'!$AS21","v":2.2123268135064955},null,"TTL_C25: Rubber and plastics products",0,0,null,7880716.4769955631,1666100.2926301491,{"$f":"CH79*'Philippines-IO-Data'!AN21","v":0},{"$f":"CK79*'Philippines-IO-Data'!$AN21","v":2423659.372587807},{"$f":"CL79*'Philippines-IO-Data'!$AN21","v":512397.52142990619},{"$f":"CH79*'Philippines-IO-Data'!AO21","v":0},{"$f":"CK79*'Philippines-IO-Data'!$AO21","v":684859.20467055251},{"$f":"CL79*'Philippines-IO-Data'!$AO21","v":144789.3887114017},{"$f":"(CP79*'Default-Data'!$F$19/biopower_dollar_index)/'Philippines-IO-Data'!$AP21","v":0},{"$f":"(CQ79*'Default-Data'!$F$19/biopower_dollar_index)/'Philippines-IO-Data'!$AP21","v":212.15442353586121},{"$f":"(CR79*'Default-Data'!$F$19/biopower_dollar_index)/'Philippines-IO-Data'!$AP21","v":44.852590264817607},132212.60855168418,165761.4700073002,{"$f":"CI79*'Philippines-IO-Data'!AN21","v":0},{"$f":"CV79*'Philippines-IO-Data'!$AN21","v":40661.065377235325},{"$f":"CW79*'Philippines-IO-Data'!$AN21","v":50978.783663879294},{"$f":"CI79*'Philippines-IO-Data'!AO21","v":0},{"$f":"CV79*'Philippines-IO-Data'!$AO21","v":11489.694141952634},{"$f":"CW79*'Philippines-IO-Data'!$AO21","v":14405.196386090616},{"$f":"(DA79*'Default-Data'!$F$19/biopower_dollar_index)/'Philippines-IO-Data'!$AP21","v":0},{"$f":"(DB79*'Default-Data'!$F$19/biopower_dollar_index)/'Philippines-IO-Data'!$AP21","v":3.5592562977406574},{"$f":"(DC79*'Default-Data'!$F$19/biopower_dollar_index)/'Philippines-IO-Data'!$AP21","v":4.4624152152296128},null,"DOM_C25: Rubber and plastics products",0,0,null,7549342.1772988159,3850750.959109908,{"$f":"DI79*'SouthAfrica-IO-Data'!AR21","v":0},{"$f":"DL79*'Mexico-IO-Data'!$AQ21","v":2328566.3839940447},{"$f":"DM79*'Mexico-IO-Data'!$AQ21","v":1187749.743743168},{"$f":"DI79*'SouthAfrica-IO-Data'!AS21","v":0},{"$f":"DL79*'Mexico-IO-Data'!$AR21","v":814068.38312177407},{"$f":"DM79*'Mexico-IO-Data'!$AR21","v":415238.11392648489},{"$f":"(DQ79*'Default-Data'!$F$19/biopower_dollar_index)/'SouthAfrica-IO-Data'!$AT21","v":0},{"$f":"(DR79*'Default-Data'!$F$19/biopower_dollar_index)/'SouthAfrica-IO-Data'!$AT21","v":63.417573657231422},{"$f":"(DS79*'Default-Data'!$F$19/biopower_dollar_index)/'SouthAfrica-IO-Data'!$AT21","v":32.347888974928502},331999.67099366698,327454.24691148265,{"$f":"DJ79*'SouthAfrica-IO-Data'!AR21","v":0},{"$f":"DW79*'SouthAfrica-IO-Data'!$AR21","v":97782.297002434294},{"$f":"DX79*'SouthAfrica-IO-Data'!$AR21","v":96443.55468899796},{"$f":"DJ79*'SouthAfrica-IO-Data'!AS21","v":0},{"$f":"DW79*'SouthAfrica-IO-Data'!$AS21","v":92302.054916025823},{"$f":"DX79*'SouthAfrica-IO-Data'!$AS21","v":91038.342870785855},{"$f":"(EB79*'Default-Data'!$F$19/biopower_dollar_index)/'SouthAfrica-IO-Data'!$AT21","v":0},{"$f":"(EC79*'Default-Data'!$F$19/biopower_dollar_index)/'SouthAfrica-IO-Data'!$AT21","v":7.1905167768630429},{"$f":"(ED79*'Default-Data'!$F$19/biopower_dollar_index)/'SouthAfrica-IO-Data'!$AT21","v":7.0920710524348181},null,"HORTI",0,0,null,68181.876303001423,19880009.52429859,{"$f":"EJ79*'Zambia-IO-Data'!BO19","v":0},{"$f":"EM79*'Zambia-IO-Data'!$BO19","v":32868.283692902929},{"$f":"EN79*'Zambia-IO-Data'!$BO19","v":9583511.4592394121},{"$f":"EJ79*'Zambia-IO-Data'!BN19","v":0},{"$f":"EM79*'Zambia-IO-Data'!$BN19","v":27690.520129235701},{"$f":"EN79*'Zambia-IO-Data'!$BN19","v":8073814.2414211417},{"$f":"(ER79*'Default-Data'!$F$19/biopower_dollar_index)/'Zambia-IO-Data'!$BP19","v":0},{"$f":"(ES79*'Default-Data'!$F$19/biopower_dollar_index)/'Zambia-IO-Data'!$BP19","v":267.04926928706726},{"$f":"(ET79*'Default-Data'!$F$19/biopower_dollar_index)/'Zambia-IO-Data'!$BP19","v":77864.416539240527},6155.6274482133122,2415475.3475388377,{"$f":"EK79*'Zambia-IO-Data'!BO19","v":0},{"$f":"EX79*'Zambia-IO-Data'!$BO19","v":2967.4294731426858},{"$f":"EY79*'Zambia-IO-Data'!$BO19","v":1164422.7657111997},{"$f":"EK79*'Zambia-IO-Data'!BN19","v":0},{"$f":"EX79*'Zambia-IO-Data'!$BN19","v":2499.9682467718044},{"$f":"EY79*'Zambia-IO-Data'!$BN19","v":980990.43850678566},{"$f":"(FC79*'Default-Data'!$F$19/biopower_dollar_index)/'Zambia-IO-Data'!$BP19","v":0},{"$f":"(FD79*'Default-Data'!$F$19/biopower_dollar_index)/'Zambia-IO-Data'!$BP19","v":24.109864691072094},{"$f":"(FE79*'Default-Data'!$F$19/biopower_dollar_index)/'Zambia-IO-Data'!$BP19","v":9460.7388578535738},null,"TTL_C25: Rubber and plastics products",0,0,null,12820547.744179424,3470294.0481189117,{"$f":"FK79*CustomRegion1!C17","v":0},{"$f":"FN79*CustomRegion1!$C17","v":3942870.0160186491},{"$f":"FO79*CustomRegion1!$C17","v":1067264.7239512939},{"$f":"FK79*CustomRegion1!D17","v":0},{"$f":"FN79*CustomRegion1!$D17","v":1114146.1765754258},{"$f":"FO79*CustomRegion1!$D17","v":301579.5364171947},{"$f":"(FS79*'Default-Data'!$F$19/biopower_dollar_index)/CustomRegion1!$E17","v":0},{"$f":"(FT79*'Default-Data'!$F$19/biopower_dollar_index)/CustomRegion1!$E17","v":346.58032029738911},{"$f":"(FU79*'Default-Data'!$F$19/biopower_dollar_index)/CustomRegion1!$E17","v":93.813123021145628},290114.8065763351,332798.71280499676,{"$f":"FL79*CustomRegion1!C17","v":0},{"$f":"FY79*CustomRegion1!$C17","v":89222.784773155247},{"$f":"FZ79*CustomRegion1!$C17","v":102349.92234900095},{"$f":"FL79*CustomRegion1!D17","v":0},{"$f":"FY79*CustomRegion1!$D17","v":25211.894917804169},{"$f":"FZ79*CustomRegion1!$D17","v":28921.26146554454},{"$f":"(GD79*'Default-Data'!$C$58/biopower_dollar_index)/CustomRegion1!$E17","v":0},{"$f":"(GE79*'Default-Data'!$C$58/biopower_dollar_index)/CustomRegion1!$E17","v":7.8427290777720859},{"$f":"(GF79*'Default-Data'!$C$58/biopower_dollar_index)/CustomRegion1!$E17","v":8.9966112821412043},null,"C25 Rubber and plastics products",0,0,null,27609072.512490552,5657021.3990279734,{"$f":"GL79*CustomRegion2!C21","v":0},{"$f":"GO79*CustomRegion2!$C21","v":9011140.1940050181},{"$f":"GP79*CustomRegion2!$C21","v":1846357.3118606375},{"$f":"GL79*CustomRegion2!D21","v":0},{"$f":"GO79*CustomRegion2!$D21","v":4091648.2102247155},{"$f":"GP79*CustomRegion2!$D21","v":838367.22410954069},{"$f":"(GT79*'Default-Data'!$C$59/biopower_dollar_index)/CustomRegion2!$E21","v":0},{"$f":"(GU79*'Default-Data'!$C$59/biopower_dollar_index)/CustomRegion2!$E21","v":749.17633638744519},{"$f":"(GV79*'Default-Data'!$C$59/biopower_dollar_index)/CustomRegion2!$E21","v":153.50412675658723},428923.05280574679,256150.96599574795,{"$f":"GM79*CustomRegion2!C21","v":0},{"$f":"GZ79*CustomRegion2!$C21","v":139993.32138102822},{"$f":"HA79*CustomRegion2!$C21","v":83603.397556120166},{"$f":"GM79*CustomRegion2!D21","v":0},{"$f":"GZ79*CustomRegion2!$D21","v":63566.142634555319},{"$f":"HA79*CustomRegion2!$D21","v":37961.421597544613},{"$f":"(HE79*'Default-Data'!$C$59/biopower_dollar_index)/CustomRegion2!$E21","v":0},{"$f":"(HF79*'Default-Data'!$C$59/biopower_dollar_index)/CustomRegion2!$E21","v":11.638891568985228},{"$f":"(HG79*'Default-Data'!$C$59/biopower_dollar_index)/CustomRegion2!$E21","v":6.9506949999852958},null,"HORTI",0,0,null,68181.876303001423,19880009.52429859,{"$f":"HM79*CustomRegion3!D20","v":0},{"$f":"HP79*CustomRegion3!$D20","v":32868.283692902929},{"$f":"HQ79*CustomRegion3!$D20","v":9583511.4592394121},{"$f":"HM79*CustomRegion3!E20","v":0},{"$f":"HP79*CustomRegion3!$E20","v":27690.520129235701},{"$f":"HQ79*CustomRegion3!$E20","v":8073814.2414211417},{"$f":"(HU79*'Default-Data'!$C$60/biopower_dollar_index)/CustomRegion3!$F20","v":0},{"$f":"(HV79*'Default-Data'!$C$60/biopower_dollar_index)/CustomRegion3!$F20","v":268.13085377542342},{"$f":"(HW79*'Default-Data'!$C$60/biopower_dollar_index)/CustomRegion3!$F20","v":78179.77761605072},6155.6274482133122,2415475.3475388377,{"$f":"HN79*CustomRegion3!D20","v":0},{"$f":"IA79*CustomRegion3!$D20","v":2967.4294731426858},{"$f":"IB79*CustomRegion3!$D20","v":1164422.7657111997},{"$f":"HN79*CustomRegion3!E20","v":0},{"$f":"IA79*CustomRegion3!$E20","v":2499.9682467718044},{"$f":"IB79*CustomRegion3!$E20","v":980990.43850678566},{"$f":"(IF79*'Default-Data'!$C$60/biopower_dollar_index)/CustomRegion3!$F20","v":0},{"$f":"(IG79*'Default-Data'!$C$60/biopower_dollar_index)/CustomRegion3!$F20","v":24.207512798239161},{"$f":"(IH79*'Default-Data'!$C$60/biopower_dollar_index)/CustomRegion3!$F20","v":9499.0560883195503}]
[null,250,"Finance, Professional, and Business Services",27832831.433359291,0,0,7880082.1519948822,7424862.9286685865,20901339.087737188,5955150.633666656,5868241.6221751515,20901339.087737188,2108909.4114717301,2073192.7678201345,5683.5453724601812,513.45195195867939,1082.2621030749053,46627.569107921125,42697.839123080841,0,35104.62146814783,33746.244089105603,0,12181.252805029515,11922.220264797827,0,2.9590554428322893,6.2237180147359084,null,79,"TTL_C26: Other non-metallic mineral products",0,0,null,29662574.931104194,902624.89742664248,{"$f":"'Colombia-IO-Data'!$AN22*Calculations!AF80","v":0},{"$f":"'Colombia-IO-Data'!$AN22*AI80","v":13105535.372833731},{"$f":"'Colombia-IO-Data'!$AN22*AJ80","v":398798.23478240869},{"$f":"'Colombia-IO-Data'!$AO22*Calculations!AK80","v":0},{"$f":"'Colombia-IO-Data'!$AO22*Calculations!AL80","v":3878858.5997682675},{"$f":"'Colombia-IO-Data'!$AO22*Calculations!AM80","v":118032.71812646886},{"$f":"(AN80*'Default-Data'!$F$19/biopower_dollar_index)/'Colombia-IO-Data'!$AP22","v":0},{"$f":"(AO80*'Default-Data'!$F$19/biopower_dollar_index)/'Colombia-IO-Data'!$AP22","v":911.85555012740326},{"$f":"(AP80*'Default-Data'!$F$19/biopower_dollar_index)/'Colombia-IO-Data'!$AP22","v":27.747541281003127},299425.25427532336,86403.598811662057,{"$f":"'Colombia-IO-Data'!$AN22*AG80","v":0},{"$f":"'Colombia-IO-Data'!$AN22*AT80","v":132292.23257048198},{"$f":"'Colombia-IO-Data'!$AN22*AU80","v":38174.886138390248},{"$f":"'Colombia-IO-Data'!$AO22*AV80","v":0},{"$f":"'Colombia-IO-Data'!$AO22*AW80","v":39154.666283396858},{"$f":"'Colombia-IO-Data'!$AO22*AX80","v":11298.65977852472},{"$f":"(AY80*'Default-Data'!$F$19/biopower_dollar_index)/'Colombia-IO-Data'!$AP22","v":0},{"$f":"(AZ80*'Default-Data'!$F$19/biopower_dollar_index)/'Colombia-IO-Data'!$AP22","v":9.2046149261627459},{"$f":"(BA80*'Default-Data'!$F$19/biopower_dollar_index)/'Colombia-IO-Data'!$AP22","v":2.6561281787030171},null,"DOM_C26: Other non-metallic mineral products",0,0,null,15266408.242542978,1732687.4113531597,{"$f":"BG80*'Mexico-IO-Data'!AQ22","v":0},{"$f":"BJ80*'Mexico-IO-Data'!$AQ22","v":8350406.2148408294},{"$f":"BK80*'Mexico-IO-Data'!$AQ22","v":947743.79790395289},{"$f":"BG80*'Mexico-IO-Data'!AR22","v":0},{"$f":"BJ80*'Mexico-IO-Data'!$AR22","v":1804883.9647566248},{"$f":"BK80*'Mexico-IO-Data'!$AR22","v":204848.42767220922},{"$f":"(BO80*'Default-Data'!$F$19/biopower_dollar_index)/'Mexico-IO-Data'!$AS22","v":0},{"$f":"(BP80*'Default-Data'!$F$19/biopower_dollar_index)/'Mexico-IO-Data'!$AS22","v":438.8529639797224},{"$f":"(BQ80*'Default-Data'!$F$19/biopower_dollar_index)/'Mexico-IO-Data'!$AS22","v":49.808376275677603},160378.86650960468,113776.26453393657,{"$f":"BH80*'Mexico-IO-Data'!AQ22","v":0},{"$f":"BU80*'Mexico-IO-Data'!$AQ22","v":87723.887790377252},{"$f":"BV80*'Mexico-IO-Data'!$AQ22","v":62233.238583124672},{"$f":"BH80*'Mexico-IO-Data'!AR22","v":0},{"$f":"BU80*'Mexico-IO-Data'!$AR22","v":18960.92648972759},{"$f":"BV80*'Mexico-IO-Data'!$AR22","v":13451.294644076914},{"$f":"(BZ80*'Default-Data'!$F$19/biopower_dollar_index)/'Mexico-IO-Data'!$AS22","v":0},{"$f":"(CA80*'Default-Data'!$F$19/biopower_dollar_index)/'Mexico-IO-Data'!$AS22","v":4.6103012450114038},{"$f":"(CB80*'Default-Data'!$F$19/biopower_dollar_index)/'Mexico-IO-Data'!$AS22","v":3.2706482184929344},null,"TTL_C26: Other non-metallic mineral products",0,0,null,19570518.401501454,2359699.2583252005,{"$f":"CH80*'Philippines-IO-Data'!AN22","v":0},{"$f":"CK80*'Philippines-IO-Data'!$AN22","v":7364151.6770383287},{"$f":"CL80*'Philippines-IO-Data'!$AN22","v":887926.56862724933},{"$f":"CH80*'Philippines-IO-Data'!AO22","v":0},{"$f":"CK80*'Philippines-IO-Data'!$AO22","v":1566357.1895145224},{"$f":"CL80*'Philippines-IO-Data'!$AO22","v":188862.23770578281},{"$f":"(CP80*'Default-Data'!$F$19/biopower_dollar_index)/'Philippines-IO-Data'!$AP22","v":0},{"$f":"(CQ80*'Default-Data'!$F$19/biopower_dollar_index)/'Philippines-IO-Data'!$AP22","v":485.22324636428118},{"$f":"(CR80*'Default-Data'!$F$19/biopower_dollar_index)/'Philippines-IO-Data'!$AP22","v":58.505396284244426},142576.41983223715,234768.11063855319,{"$f":"CI80*'Philippines-IO-Data'!AN22","v":0},{"$f":"CV80*'Philippines-IO-Data'!$AN22","v":53649.79913527162},{"$f":"CW80*'Philippines-IO-Data'!$AN22","v":88340.428199458547},{"$f":"CI80*'Philippines-IO-Data'!AO22","v":0},{"$f":"CV80*'Philippines-IO-Data'!$AO22","v":11411.327777721617},{"$f":"CW80*'Philippines-IO-Data'!$AO22","v":18790.034603233926},{"$f":"(DA80*'Default-Data'!$F$19/biopower_dollar_index)/'Philippines-IO-Data'!$AP22","v":0},{"$f":"(DB80*'Default-Data'!$F$19/biopower_dollar_index)/'Philippines-IO-Data'!$AP22","v":3.5349801097086515},{"$f":"(DC80*'Default-Data'!$F$19/biopower_dollar_index)/'Philippines-IO-Data'!$AP22","v":5.8207423252573589},null,"DOM_C26: Other non-metallic mineral products",0,0,null,21863873.452991936,2125805.9365799874,{"$f":"DI80*'SouthAfrica-IO-Data'!AR22","v":0},{"$f":"DL80*'Mexico-IO-Data'!$AQ22","v":11959081.786741581},{"$f":"DM80*'Mexico-IO-Data'!$AQ22","v":1162771.4143589647},{"$f":"DI80*'SouthAfrica-IO-Data'!AS22","v":0},{"$f":"DL80*'Mexico-IO-Data'!$AR22","v":2584874.8425844484},{"$f":"DM80*'Mexico-IO-Data'!$AR22","v":251325.19621907762},{"$f":"(DQ80*'Default-Data'!$F$19/biopower_dollar_index)/'SouthAfrica-IO-Data'!$AT22","v":0},{"$f":"(DR80*'Default-Data'!$F$19/biopower_dollar_index)/'SouthAfrica-IO-Data'!$AT22","v":201.36697865073882},{"$f":"(DS80*'Default-Data'!$F$19/biopower_dollar_index)/'SouthAfrica-IO-Data'!$AT22","v":19.578741139682993},191720.52138849991,180771.02088254879,{"$f":"DJ80*'SouthAfrica-IO-Data'!AR22","v":0},{"$f":"DW80*'SouthAfrica-IO-Data'!$AR22","v":63223.299151645835},{"$f":"DX80*'SouthAfrica-IO-Data'!$AR22","v":59612.503911599248},{"$f":"DJ80*'SouthAfrica-IO-Data'!AS22","v":0},{"$f":"DW80*'SouthAfrica-IO-Data'!$AS22","v":28497.264476725017},{"$f":"DX80*'SouthAfrica-IO-Data'!$AS22","v":26869.734937652735},{"$f":"(EB80*'Default-Data'!$F$19/biopower_dollar_index)/'SouthAfrica-IO-Data'!$AT22","v":0},{"$f":"(EC80*'Default-Data'!$F$19/biopower_dollar_index)/'SouthAfrica-IO-Data'!$AT22","v":2.2199945440111457},{"$f":"(ED80*'Default-Data'!$F$19/biopower_dollar_index)/'SouthAfrica-IO-Data'!$AT22","v":2.0932067009215594},null,"OTHERCROP",0,{"$f":"IF(biopower_feedstock<>\"Maize Stover\",'Biopower-Inputs'!B41*'Biopower-Inputs'!B38+'Biopower-Inputs'!B41*'Biopower-Inputs'!B39*0.9,0)","v":28385431.684592765},null,53169.610401806276,10948838.082548248,{"$f":"EJ80*'Zambia-IO-Data'!BO20","v":0},{"$f":"EM80*'Zambia-IO-Data'!$BO20","v":24478.655665258662},{"$f":"EN80*'Zambia-IO-Data'!$BO20","v":5040714.7115049111},{"$f":"EJ80*'Zambia-IO-Data'!BN20","v":0},{"$f":"EM80*'Zambia-IO-Data'!$BN20","v":23008.800422418353},{"$f":"EN80*'Zambia-IO-Data'!$BN20","v":4738037.9204390049},{"$f":"(ER80*'Default-Data'!$F$19/biopower_dollar_index)/'Zambia-IO-Data'!$BP20","v":0},{"$f":"(ES80*'Default-Data'!$F$19/biopower_dollar_index)/'Zambia-IO-Data'!$BP20","v":221.89844435213149},{"$f":"(ET80*'Default-Data'!$F$19/biopower_dollar_index)/'Zambia-IO-Data'!$BP20","v":45693.961637497625},8363095.2584047504,1324612.1616670713,{"$f":"EK80*'Zambia-IO-Data'!BO20","v":13068314.82995528},{"$f":"EX80*'Zambia-IO-Data'!$BO20","v":3850269.4975416381},{"$f":"EY80*'Zambia-IO-Data'!$BO20","v":609835.67023392464},{"$f":"EK80*'Zambia-IO-Data'!BN20","v":12283609.520539157},{"$f":"EX80*'Zambia-IO-Data'!$BN20","v":3619074.6605089121},{"$f":"EY80*'Zambia-IO-Data'!$BN20","v":573217.23132036359},{"$f":"(FC80*'Default-Data'!$F$19/biopower_dollar_index)/'Zambia-IO-Data'!$BP20","v":118463.97002865493},{"$f":"(FD80*'Default-Data'!$F$19/biopower_dollar_index)/'Zambia-IO-Data'!$BP20","v":34902.603456835895},{"$f":"(FE80*'Default-Data'!$F$19/biopower_dollar_index)/'Zambia-IO-Data'!$BP20","v":5528.1461688846957},null,"TTL_C26: Other non-metallic mineral products",0,0,null,23762654.856832121,3437714.5638886653,{"$f":"FK80*CustomRegion1!C18","v":0},{"$f":"FN80*CustomRegion1!$C18","v":8941602.4156722315},{"$f":"FO80*CustomRegion1!$C18","v":1293570.816647226},{"$f":"FK80*CustomRegion1!D18","v":0},{"$f":"FN80*CustomRegion1!$D18","v":1901881.4174128156},{"$f":"FO80*CustomRegion1!$D18","v":275142.88646705839},{"$f":"(FS80*'Default-Data'!$F$19/biopower_dollar_index)/CustomRegion1!$E18","v":0},{"$f":"(FT80*'Default-Data'!$F$19/biopower_dollar_index)/CustomRegion1!$E18","v":591.62315024106022},{"$f":"(FU80*'Default-Data'!$F$19/biopower_dollar_index)/CustomRegion1!$E18","v":85.589406241475899},237687.20877732834,329674.36360998871,{"$f":"FL80*CustomRegion1!C18","v":0},{"$f":"FY80*CustomRegion1!$C18","v":89438.849866840188},{"$f":"FZ80*CustomRegion1!$C18","v":124052.51449388193},{"$f":"FL80*CustomRegion1!D18","v":0},{"$f":"FY80*CustomRegion1!$D18","v":19023.669209265525},{"$f":"FZ80*CustomRegion1!$D18","v":26386.005676758839},{"$f":"(GD80*'Default-Data'!$C$58/biopower_dollar_index)/CustomRegion1!$E18","v":0},{"$f":"(GE80*'Default-Data'!$C$58/biopower_dollar_index)/CustomRegion1!$E18","v":5.9177417706934738},{"$f":"(GF80*'Default-Data'!$C$58/biopower_dollar_index)/CustomRegion1!$E18","v":8.2079627351310247},null,"C26 Other non-metallic mineral products",0,0,null,6210527.1326209512,2990163.0230700877,{"$f":"GL80*CustomRegion2!C22","v":0},{"$f":"GO80*CustomRegion2!$C22","v":3282768.3022878803},{"$f":"GP80*CustomRegion2!$C22","v":1580544.1601323877},{"$f":"GL80*CustomRegion2!D22","v":0},{"$f":"GO80*CustomRegion2!$D22","v":920385.0382444961},{"$f":"GP80*CustomRegion2!$D22","v":443134.89814578841},{"$f":"(GT80*'Default-Data'!$C$59/biopower_dollar_index)/CustomRegion2!$E22","v":0},{"$f":"(GU80*'Default-Data'!$C$59/biopower_dollar_index)/CustomRegion2!$E22","v":223.78929057118197},{"$f":"(GV80*'Default-Data'!$C$59/biopower_dollar_index)/CustomRegion2!$E22","v":107.74712795476279},76677.413806028926,135395.12984267256,{"$f":"GM80*CustomRegion2!C22","v":0},{"$f":"GZ80*CustomRegion2!$C22","v":40530.244561964428},{"$f":"HA80*CustomRegion2!$C22","v":71567.329316876014},{"$f":"GM80*CustomRegion2!D22","v":0},{"$f":"GZ80*CustomRegion2!$D22","v":11363.406508227918},{"$f":"HA80*CustomRegion2!$D22","v":20065.229423734392},{"$f":"(HE80*'Default-Data'!$C$59/biopower_dollar_index)/CustomRegion2!$E22","v":0},{"$f":"(HF80*'Default-Data'!$C$59/biopower_dollar_index)/CustomRegion2!$E22","v":2.7629835072055342},{"$f":"(HG80*'Default-Data'!$C$59/biopower_dollar_index)/CustomRegion2!$E22","v":4.8788097060446525},null,"OTHERCROP",0,28385431.684592765,null,53169.610401806276,10948838.082548248,{"$f":"HM80*CustomRegion3!D21","v":0},{"$f":"HP80*CustomRegion3!$D21","v":24478.655665258662},{"$f":"HQ80*CustomRegion3!$D21","v":5040714.7115049111},{"$f":"HM80*CustomRegion3!E21","v":0},{"$f":"HP80*CustomRegion3!$E21","v":23008.800422418353},{"$f":"HQ80*CustomRegion3!$E21","v":4738037.9204390049},{"$f":"(HU80*'Default-Data'!$C$60/biopower_dollar_index)/CustomRegion3!$F21","v":0},{"$f":"(HV80*'Default-Data'!$C$60/biopower_dollar_index)/CustomRegion3!$F21","v":222.79716209078083},{"$f":"(HW80*'Default-Data'!$C$60/biopower_dollar_index)/CustomRegion3!$F21","v":45879.028161928116},8363095.2584047504,1324612.1616670713,{"$f":"HN80*CustomRegion3!D21","v":13068314.82995528},{"$f":"IA80*CustomRegion3!$D21","v":3850269.4975416381},{"$f":"IB80*CustomRegion3!$D21","v":609835.67023392464},{"$f":"HN80*CustomRegion3!E21","v":12283609.520539157},{"$f":"IA80*CustomRegion3!$E21","v":3619074.6605089121},{"$f":"IB80*CustomRegion3!$E21","v":573217.23132036359},{"$f":"(IF80*'Default-Data'!$C$60/biopower_dollar_index)/CustomRegion3!$F21","v":118943.76461020966},{"$f":"(IG80*'Default-Data'!$C$60/biopower_dollar_index)/CustomRegion3!$F21","v":35043.963568409839},{"$f":"(IH80*'Default-Data'!$C$60/biopower_dollar_index)/CustomRegion3!$F21","v":5550.5358843165841}]
[null,251,"Education and Health Care",0,0,0,72260.587842297362,2818705.0454615215,0,64832.710742106698,2350374.7687394749,0,55910.410286775266,1885224.5793100842,0,13.991989713256636,598.14062270052443,583.96591817970454,16209.405577284377,0,523.9383540474372,13516.198846863066,0,451.8337734834941,10841.279707327089,0,0.11307471145813361,3.4397014903042953,null,80,"TTL_C27: Basic metals",0,0,null,12677769.083020918,644413.1388253253,{"$f":"'Colombia-IO-Data'!$AN23*Calculations!AF81","v":0},{"$f":"'Colombia-IO-Data'!$AN23*AI81","v":3693225.5368024912},{"$f":"'Colombia-IO-Data'!$AN23*AJ81","v":187727.27638241788},{"$f":"'Colombia-IO-Data'!$AO23*Calculations!AK81","v":0},{"$f":"'Colombia-IO-Data'!$AO23*Calculations!AL81","v":965389.81767152995},{"$f":"'Colombia-IO-Data'!$AO23*Calculations!AM81","v":49070.927110425},{"$f":"(AN81*'Default-Data'!$F$19/biopower_dollar_index)/'Colombia-IO-Data'!$AP23","v":0},{"$f":"(AO81*'Default-Data'!$F$19/biopower_dollar_index)/'Colombia-IO-Data'!$AP23","v":226.94719094242248},{"$f":"(AP81*'Default-Data'!$F$19/biopower_dollar_index)/'Colombia-IO-Data'!$AP23","v":11.535763958555105},140217.24683918728,61686.326706440334,{"$f":"'Colombia-IO-Data'!$AN23*AG81","v":0},{"$f":"'Colombia-IO-Data'!$AN23*AT81","v":40847.400937454862},{"$f":"'Colombia-IO-Data'!$AN23*AU81","v":17970.158280362099},{"$f":"'Colombia-IO-Data'!$AO23*AV81","v":0},{"$f":"'Colombia-IO-Data'!$AO23*AW81","v":10677.29672894718},{"$f":"'Colombia-IO-Data'!$AO23*AX81","v":4697.305283128464},{"$f":"(AY81*'Default-Data'!$F$19/biopower_dollar_index)/'Colombia-IO-Data'!$AP23","v":0},{"$f":"(AZ81*'Default-Data'!$F$19/biopower_dollar_index)/'Colombia-IO-Data'!$AP23","v":2.5100559951397337},{"$f":"(BA81*'Default-Data'!$F$19/biopower_dollar_index)/'Colombia-IO-Data'!$AP23","v":1.104258838752038},null,"DOM_C27: Basic metals",0,0,null,26950022.137307469,677915.2781236209,{"$f":"BG81*'Mexico-IO-Data'!AQ23","v":0},{"$f":"BJ81*'Mexico-IO-Data'!$AQ23","v":10150504.129679218},{"$f":"BK81*'Mexico-IO-Data'!$AQ23","v":255331.21253509799},{"$f":"BG81*'Mexico-IO-Data'!AR23","v":0},{"$f":"BJ81*'Mexico-IO-Data'!$AR23","v":1244047.8647822605},{"$f":"BK81*'Mexico-IO-Data'!$AR23","v":31293.445695745224},{"$f":"(BO81*'Default-Data'!$F$19/biopower_dollar_index)/'Mexico-IO-Data'!$AS23","v":0},{"$f":"(BP81*'Default-Data'!$F$19/biopower_dollar_index)/'Mexico-IO-Data'!$AS23","v":119.804306901304},{"$f":"(BQ81*'Default-Data'!$F$19/biopower_dollar_index)/'Mexico-IO-Data'!$AS23","v":3.0136216445245347},154909.52589023451,44515.050729867566,{"$f":"BH81*'Mexico-IO-Data'!AQ23","v":0},{"$f":"BU81*'Mexico-IO-Data'!$AQ23","v":58345.398540461902},{"$f":"BV81*'Mexico-IO-Data'!$AQ23","v":16766.227647764899},{"$f":"BH81*'Mexico-IO-Data'!AR23","v":0},{"$f":"BU81*'Mexico-IO-Data'!$AR23","v":7150.8239932537717},{"$f":"BV81*'Mexico-IO-Data'!$AR23","v":2054.872293945305},{"$f":"(BZ81*'Default-Data'!$F$19/biopower_dollar_index)/'Mexico-IO-Data'!$AS23","v":0},{"$f":"(CA81*'Default-Data'!$F$19/biopower_dollar_index)/'Mexico-IO-Data'!$AS23","v":0.68863870638524582},{"$f":"(CB81*'Default-Data'!$F$19/biopower_dollar_index)/'Mexico-IO-Data'!$AS23","v":0.19788832722276165},null,"TTL_C27: Basic metals",0,0,null,36276190.132118113,1365754.7147250548,{"$f":"CH81*'Philippines-IO-Data'!AN23","v":0},{"$f":"CK81*'Philippines-IO-Data'!$AN23","v":7446771.4379800353},{"$f":"CL81*'Philippines-IO-Data'!$AN23","v":280361.9444010029},{"$f":"CH81*'Philippines-IO-Data'!AO23","v":0},{"$f":"CK81*'Philippines-IO-Data'!$AO23","v":1694818.6746274657},{"$f":"CL81*'Philippines-IO-Data'!$AO23","v":63807.874725718269},{"$f":"(CP81*'Default-Data'!$F$19/biopower_dollar_index)/'Philippines-IO-Data'!$AP23","v":0},{"$f":"(CQ81*'Default-Data'!$F$19/biopower_dollar_index)/'Philippines-IO-Data'!$AP23","v":525.01780871349763},{"$f":"(CR81*'Default-Data'!$F$19/biopower_dollar_index)/'Philippines-IO-Data'!$AP23","v":19.766285956534904},181845.23698754609,135879.88081128109,{"$f":"CI81*'Philippines-IO-Data'!AN23","v":0},{"$f":"CV81*'Philippines-IO-Data'!$AN23","v":37329.165824738207},{"$f":"CW81*'Philippines-IO-Data'!$AN23","v":27893.403682590582},{"$f":"CI81*'Philippines-IO-Data'!AO23","v":0},{"$f":"CV81*'Philippines-IO-Data'!$AO23","v":8495.7847672565167},{"$f":"CW81*'Philippines-IO-Data'!$AO23","v":6348.2895713797225},{"$f":"(DA81*'Default-Data'!$F$19/biopower_dollar_index)/'Philippines-IO-Data'!$AP23","v":0},{"$f":"(DB81*'Default-Data'!$F$19/biopower_dollar_index)/'Philippines-IO-Data'!$AP23","v":2.6318085637019357},{"$f":"(DC81*'Default-Data'!$F$19/biopower_dollar_index)/'Philippines-IO-Data'!$AP23","v":1.9665614556537396},null,"DOM_C27: Basic metals",0,0,null,8142335.4727722295,522837.03814169951,{"$f":"DI81*'SouthAfrica-IO-Data'!AR23","v":0},{"$f":"DL81*'Mexico-IO-Data'!$AQ23","v":3066743.6716942675},{"$f":"DM81*'Mexico-IO-Data'!$AQ23","v":196922.26921995362},{"$f":"DI81*'SouthAfrica-IO-Data'!AS23","v":0},{"$f":"DL81*'Mexico-IO-Data'!$AR23","v":375860.73241924122},{"$f":"DM81*'Mexico-IO-Data'!$AR23","v":24134.833641893489},{"$f":"(DQ81*'Default-Data'!$F$19/biopower_dollar_index)/'SouthAfrica-IO-Data'!$AT23","v":0},{"$f":"(DR81*'Default-Data'!$F$19/biopower_dollar_index)/'SouthAfrica-IO-Data'!$AT23","v":29.280311307081682},{"$f":"(DS81*'Default-Data'!$F$19/biopower_dollar_index)/'SouthAfrica-IO-Data'!$AT23","v":1.8801523581107478},99300.218305851813,44460.213189609451,{"$f":"DJ81*'SouthAfrica-IO-Data'!AR23","v":0},{"$f":"DW81*'SouthAfrica-IO-Data'!$AR23","v":15842.046825644928},{"$f":"DX81*'SouthAfrica-IO-Data'!$AR23","v":7093.0436130415028},{"$f":"DJ81*'SouthAfrica-IO-Data'!AS23","v":0},{"$f":"DW81*'SouthAfrica-IO-Data'!$AS23","v":10198.531993102109},{"$f":"DX81*'SouthAfrica-IO-Data'!$AS23","v":4566.2427975513483},{"$f":"(EB81*'Default-Data'!$F$19/biopower_dollar_index)/'SouthAfrica-IO-Data'!$AT23","v":0},{"$f":"(EC81*'Default-Data'!$F$19/biopower_dollar_index)/'SouthAfrica-IO-Data'!$AT23","v":0.79448627078228684},{"$f":"(ED81*'Default-Data'!$F$19/biopower_dollar_index)/'SouthAfrica-IO-Data'!$AT23","v":0.35571955004570871},null,"LIVEST",0,0,null,70936.638393769099,19865534.815979157,{"$f":"EJ81*'Zambia-IO-Data'!BO21","v":0},{"$f":"EM81*'Zambia-IO-Data'!$BO21","v":21342.125944054933},{"$f":"EN81*'Zambia-IO-Data'!$BO21","v":5976780.9074228136},{"$f":"EJ81*'Zambia-IO-Data'!BN21","v":0},{"$f":"EM81*'Zambia-IO-Data'!$BN21","v":13726.414059234188},{"$f":"EN81*'Zambia-IO-Data'!$BN21","v":3844029.8633634481},{"$f":"(ER81*'Default-Data'!$F$19/biopower_dollar_index)/'Zambia-IO-Data'!$BP21","v":0},{"$f":"(ES81*'Default-Data'!$F$19/biopower_dollar_index)/'Zambia-IO-Data'!$BP21","v":132.37847564228449},{"$f":"(ET81*'Default-Data'!$F$19/biopower_dollar_index)/'Zambia-IO-Data'!$BP21","v":37072.086813026137},5961.664973444108,2669824.0788234789,{"$f":"EK81*'Zambia-IO-Data'!BO21","v":0},{"$f":"EX81*'Zambia-IO-Data'!$BO21","v":1793.6373583595278},{"$f":"EY81*'Zambia-IO-Data'!$BO21","v":803248.12436736631},{"$f":"EK81*'Zambia-IO-Data'!BN21","v":0},{"$f":"EX81*'Zambia-IO-Data'!$BN21","v":1153.5968402347519},{"$f":"EY81*'Zambia-IO-Data'!$BN21","v":516617.52799472323},{"$f":"(FC81*'Default-Data'!$F$19/biopower_dollar_index)/'Zambia-IO-Data'!$BP21","v":0},{"$f":"(FD81*'Default-Data'!$F$19/biopower_dollar_index)/'Zambia-IO-Data'!$BP21","v":11.125366796967539},{"$f":"(FE81*'Default-Data'!$F$19/biopower_dollar_index)/'Zambia-IO-Data'!$BP21","v":4982.2947603725561},null,"TTL_C27: Basic metals",0,0,null,74724178.449442878,5835797.0464632362,{"$f":"FK81*CustomRegion1!C19","v":0},{"$f":"FN81*CustomRegion1!$C19","v":15339369.315719923},{"$f":"FO81*CustomRegion1!$C19","v":1197971.6338782248},{"$f":"FK81*CustomRegion1!D19","v":0},{"$f":"FN81*CustomRegion1!$D19","v":3491103.4654155523},{"$f":"FO81*CustomRegion1!$D19","v":272647.6451815918},{"$f":"(FS81*'Default-Data'!$F$19/biopower_dollar_index)/CustomRegion1!$E19","v":0},{"$f":"(FT81*'Default-Data'!$F$19/biopower_dollar_index)/CustomRegion1!$E19","v":1085.9865452790841},{"$f":"(FU81*'Default-Data'!$F$19/biopower_dollar_index)/CustomRegion1!$E19","v":84.813205109058572},1034380.0532151572,559648.75550153921,{"$f":"FL81*CustomRegion1!C19","v":0},{"$f":"FY81*CustomRegion1!$C19","v":212337.39839396821},{"$f":"FZ81*CustomRegion1!$C19","v":114884.6213616037},{"$f":"FL81*CustomRegion1!D19","v":0},{"$f":"FY81*CustomRegion1!$D19","v":48326.095559275869},{"$f":"FZ81*CustomRegion1!$D19","v":26146.713825282499},{"$f":"(GD81*'Default-Data'!$C$58/biopower_dollar_index)/CustomRegion1!$E19","v":0},{"$f":"(GE81*'Default-Data'!$C$58/biopower_dollar_index)/CustomRegion1!$E19","v":15.032922995021554},{"$f":"(GF81*'Default-Data'!$C$58/biopower_dollar_index)/CustomRegion1!$E19","v":8.1335256026677243},null,"C27 Basic metals",0,0,null,51309274.55516988,5375791.329676345,{"$f":"GL81*CustomRegion2!C23","v":0},{"$f":"GO81*CustomRegion2!$C23","v":18532297.294978853},{"$f":"GP81*CustomRegion2!$C23","v":1941671.6369710101},{"$f":"GL81*CustomRegion2!D23","v":0},{"$f":"GO81*CustomRegion2!$D23","v":4531498.5597461099},{"$f":"GP81*CustomRegion2!$D23","v":474775.58159062784},{"$f":"(GT81*'Default-Data'!$C$59/biopower_dollar_index)/CustomRegion2!$E23","v":0},{"$f":"(GU81*'Default-Data'!$C$59/biopower_dollar_index)/CustomRegion2!$E23","v":436.3924086390839},{"$f":"(GV81*'Default-Data'!$C$59/biopower_dollar_index)/CustomRegion2!$E23","v":45.72184165605568},281903.18405278283,243416.816900281,{"$f":"GM81*CustomRegion2!C23","v":0},{"$f":"GZ81*CustomRegion2!$C23","v":101820.06392723235},{"$f":"HA81*CustomRegion2!$C23","v":87919.247670183802},{"$f":"GM81*CustomRegion2!D23","v":0},{"$f":"GZ81*CustomRegion2!$D23","v":24896.938878944133},{"$f":"HA81*CustomRegion2!$D23","v":21497.925370501347},{"$f":"(HE81*'Default-Data'!$C$59/biopower_dollar_index)/CustomRegion2!$E23","v":0},{"$f":"(HF81*'Default-Data'!$C$59/biopower_dollar_index)/CustomRegion2!$E23","v":2.397625196582037},{"$f":"(HG81*'Default-Data'!$C$59/biopower_dollar_index)/CustomRegion2!$E23","v":2.0702933719352172},null,"LIVEST",0,0,null,70936.638393769099,19865534.815979157,{"$f":"HM81*CustomRegion3!D22","v":0},{"$f":"HP81*CustomRegion3!$D22","v":21342.125944054933},{"$f":"HQ81*CustomRegion3!$D22","v":5976780.9074228136},{"$f":"HM81*CustomRegion3!E22","v":0},{"$f":"HP81*CustomRegion3!$E22","v":13726.414059234188},{"$f":"HQ81*CustomRegion3!$E22","v":3844029.8633634481},{"$f":"(HU81*'Default-Data'!$C$60/biopower_dollar_index)/CustomRegion3!$F22","v":0},{"$f":"(HV81*'Default-Data'!$C$60/biopower_dollar_index)/CustomRegion3!$F22","v":132.91462579251396},{"$f":"(HW81*'Default-Data'!$C$60/biopower_dollar_index)/CustomRegion3!$F22","v":37222.233616104866},5961.664973444108,2669824.0788234789,{"$f":"HN81*CustomRegion3!D22","v":0},{"$f":"IA81*CustomRegion3!$D22","v":1793.6373583595278},{"$f":"IB81*CustomRegion3!$D22","v":803248.12436736631},{"$f":"HN81*CustomRegion3!E22","v":0},{"$f":"IA81*CustomRegion3!$E22","v":1153.5968402347519},{"$f":"IB81*CustomRegion3!$E22","v":516617.52799472323},{"$f":"(IF81*'Default-Data'!$C$60/biopower_dollar_index)/CustomRegion3!$F22","v":0},{"$f":"(IG81*'Default-Data'!$C$60/biopower_dollar_index)/CustomRegion3!$F22","v":11.170425988430585},{"$f":"(IH81*'Default-Data'!$C$60/biopower_dollar_index)/CustomRegion3!$F22","v":5002.47370616643}]
[null,252,"Other",126283.80099211945,0,0,367049.46897774294,24925697.861853216,92872.943467094083,260435.03564741058,1014657.4091618687,92872.943467094083,59310.279395556121,332275.54523003823,66.770564393841639,42.584107417320553,164.9815596632701,2313.8958142570414,143339.13602991926,0,1658.8911707523425,5834.9466162070021,0,385.9790547000116,1910.8026519905395,0,0.27724220737643879,0.94875234202343306,null,81,"TTL_C28: Fabricated metal products",0,0,null,14551643.497569762,764631.36699001677,{"$f":"'Colombia-IO-Data'!$AN24*Calculations!AF82","v":0},{"$f":"'Colombia-IO-Data'!$AN24*AI82","v":5149512.6068999618},{"$f":"'Colombia-IO-Data'!$AN24*AJ82","v":270586.5399055325},{"$f":"'Colombia-IO-Data'!$AO24*Calculations!AK82","v":0},{"$f":"'Colombia-IO-Data'!$AO24*Calculations!AL82","v":1351035.3287983448},{"$f":"'Colombia-IO-Data'!$AO24*Calculations!AM82","v":70991.568099054348},{"$f":"(AN82*'Default-Data'!$F$19/biopower_dollar_index)/'Colombia-IO-Data'!$AP24","v":0},{"$f":"(AO82*'Default-Data'!$F$19/biopower_dollar_index)/'Colombia-IO-Data'!$AP24","v":317.60607696722218},{"$f":"(AP82*'Default-Data'!$F$19/biopower_dollar_index)/'Colombia-IO-Data'!$AP24","v":16.688944368128706},137499.33857345456,73194.194022981246,{"$f":"'Colombia-IO-Data'!$AN24*AG82","v":0},{"$f":"'Colombia-IO-Data'!$AN24*AT82","v":48658.048662521251},{"$f":"'Colombia-IO-Data'!$AN24*AU82","v":25901.845721836948},{"$f":"'Colombia-IO-Data'!$AO24*AV82","v":0},{"$f":"'Colombia-IO-Data'!$AO24*AW82","v":12766.012590273156},{"$f":"'Colombia-IO-Data'!$AO24*AX82","v":6795.6545255168858},{"$f":"(AY82*'Default-Data'!$F$19/biopower_dollar_index)/'Colombia-IO-Data'!$AP24","v":0},{"$f":"(AZ82*'Default-Data'!$F$19/biopower_dollar_index)/'Colombia-IO-Data'!$AP24","v":3.0010785735093135},{"$f":"(BA82*'Default-Data'!$F$19/biopower_dollar_index)/'Colombia-IO-Data'!$AP24","v":1.5975460657965674},null,"DOM_C28: Fabricated metal products",0,0,null,7036340.4957515066,1162608.8332438907,{"$f":"BG82*'Mexico-IO-Data'!AQ24","v":0},{"$f":"BJ82*'Mexico-IO-Data'!$AQ24","v":2586022.0404423117},{"$f":"BK82*'Mexico-IO-Data'!$AQ24","v":427286.32433250558},{"$f":"BG82*'Mexico-IO-Data'!AR24","v":0},{"$f":"BJ82*'Mexico-IO-Data'!$AR24","v":938909.78381392662},{"$f":"BK82*'Mexico-IO-Data'!$AR24","v":155135.30207076736},{"$f":"(BO82*'Default-Data'!$F$19/biopower_dollar_index)/'Mexico-IO-Data'!$AS24","v":0},{"$f":"(BP82*'Default-Data'!$F$19/biopower_dollar_index)/'Mexico-IO-Data'!$AS24","v":200.80341937653918},{"$f":"(BQ82*'Default-Data'!$F$19/biopower_dollar_index)/'Mexico-IO-Data'!$AS24","v":33.178586120683171},173165.55960982805,76342.26998702847,{"$f":"BH82*'Mexico-IO-Data'!AQ24","v":0},{"$f":"BU82*'Mexico-IO-Data'!$AQ24","v":63642.450797673424},{"$f":"BV82*'Mexico-IO-Data'!$AQ24","v":28057.595126764503},{"$f":"BH82*'Mexico-IO-Data'!AR24","v":0},{"$f":"BU82*'Mexico-IO-Data'!$AR24","v":23106.732574333219},{"$f":"BV82*'Mexico-IO-Data'!$AR24","v":10186.901025137186},{"$f":"(BZ82*'Default-Data'!$F$19/biopower_dollar_index)/'Mexico-IO-Data'!$AS24","v":0},{"$f":"(CA82*'Default-Data'!$F$19/biopower_dollar_index)/'Mexico-IO-Data'!$AS24","v":4.9418069675423792},{"$f":"(CB82*'Default-Data'!$F$19/biopower_dollar_index)/'Mexico-IO-Data'!$AS24","v":2.1786593280439281},null,"TTL_C28: Fabricated metal products",0,0,null,10501869.941762544,857588.58375322632,{"$f":"CH82*'Philippines-IO-Data'!AN24","v":0},{"$f":"CK82*'Philippines-IO-Data'!$AN24","v":2644771.041632168},{"$f":"CL82*'Philippines-IO-Data'!$AN24","v":215973.48515289396},{"$f":"CH82*'Philippines-IO-Data'!AO24","v":0},{"$f":"CK82*'Philippines-IO-Data'!$AO24","v":810749.36004433897},{"$f":"CL82*'Philippines-IO-Data'!$AO24","v":66206.247012669424},{"$f":"(CP82*'Default-Data'!$F$19/biopower_dollar_index)/'Philippines-IO-Data'!$AP24","v":0},{"$f":"(CQ82*'Default-Data'!$F$19/biopower_dollar_index)/'Philippines-IO-Data'!$AP24","v":251.15244409252941},{"$f":"(CR82*'Default-Data'!$F$19/biopower_dollar_index)/'Philippines-IO-Data'!$AP24","v":20.509249307968975},245827.50868158182,85322.081109537277,{"$f":"CI82*'Philippines-IO-Data'!AN24","v":0},{"$f":"CV82*'Philippines-IO-Data'!$AN24","v":61908.734330460684},{"$f":"CW82*'Philippines-IO-Data'!$AN24","v":21487.351355678933},{"$f":"CI82*'Philippines-IO-Data'!AO24","v":0},{"$f":"CV82*'Philippines-IO-Data'!$AO24","v":18978.00072273958},{"$f":"CW82*'Philippines-IO-Data'!$AO24","v":6586.9052883737031},{"$f":"(DA82*'Default-Data'!$F$19/biopower_dollar_index)/'Philippines-IO-Data'!$AP24","v":0},{"$f":"(DB82*'Default-Data'!$F$19/biopower_dollar_index)/'Philippines-IO-Data'!$AP24","v":5.8789701236954013},{"$f":"(DC82*'Default-Data'!$F$19/biopower_dollar_index)/'Philippines-IO-Data'!$AP24","v":2.0404793931512817},null,"DOM_C28: Fabricated metal products",0,0,null,21780681.339311037,3110012.4346200898,{"$f":"DI82*'SouthAfrica-IO-Data'!AR24","v":0},{"$f":"DL82*'Mexico-IO-Data'!$AQ24","v":8004917.0493266694},{"$f":"DM82*'Mexico-IO-Data'!$AQ24","v":1143003.3419834143},{"$f":"DI82*'SouthAfrica-IO-Data'!AS24","v":0},{"$f":"DL82*'Mexico-IO-Data'!$AR24","v":2906353.7814806113},{"$f":"DM82*'Mexico-IO-Data'!$AR24","v":414991.44397728628},{"$f":"(DQ82*'Default-Data'!$F$19/biopower_dollar_index)/'SouthAfrica-IO-Data'!$AT24","v":0},{"$f":"(DR82*'Default-Data'!$F$19/biopower_dollar_index)/'SouthAfrica-IO-Data'!$AT24","v":226.41083824459102},{"$f":"(DS82*'Default-Data'!$F$19/biopower_dollar_index)/'SouthAfrica-IO-Data'!$AT24","v":32.328672886947864},663116.21599950595,264464.46173170919,{"$f":"DJ82*'SouthAfrica-IO-Data'!AR24","v":0},{"$f":"DW82*'SouthAfrica-IO-Data'!$AR24","v":174264.14085331775},{"$f":"DX82*'SouthAfrica-IO-Data'!$AR24","v":69500.143561480581},{"$f":"DJ82*'SouthAfrica-IO-Data'!AS24","v":0},{"$f":"DW82*'SouthAfrica-IO-Data'!$AS24","v":161870.43072687456},{"$f":"DX82*'SouthAfrica-IO-Data'!$AS24","v":64557.275632201854},{"$f":"(EB82*'Default-Data'!$F$19/biopower_dollar_index)/'SouthAfrica-IO-Data'!$AT24","v":0},{"$f":"(EC82*'Default-Data'!$F$19/biopower_dollar_index)/'SouthAfrica-IO-Data'!$AT24","v":12.610033968133816},{"$f":"(ED82*'Default-Data'!$F$19/biopower_dollar_index)/'SouthAfrica-IO-Data'!$AT24","v":5.0291423514269233},null,"FISH",0,0,null,32237.554831672642,9817033.3025529124,{"$f":"EJ82*'Zambia-IO-Data'!BO22","v":0},{"$f":"EM82*'Zambia-IO-Data'!$BO22","v":2941.6376615547993},{"$f":"EN82*'Zambia-IO-Data'!$BO22","v":895792.34648265655},{"$f":"EJ82*'Zambia-IO-Data'!BN22","v":0},{"$f":"EM82*'Zambia-IO-Data'!$BN22","v":1250.6248834311555},{"$f":"EN82*'Zambia-IO-Data'!$BN22","v":380842.34966799419},{"$f":"(ER82*'Default-Data'!$F$19/biopower_dollar_index)/'Zambia-IO-Data'!$BP22","v":0},{"$f":"(ES82*'Default-Data'!$F$19/biopower_dollar_index)/'Zambia-IO-Data'!$BP22","v":12.061111879220306},{"$f":"(ET82*'Default-Data'!$F$19/biopower_dollar_index)/'Zambia-IO-Data'!$BP22","v":3672.8696578374734},1659.2517138970402,1065697.4900648003,{"$f":"EK82*'Zambia-IO-Data'!BO22","v":0},{"$f":"EX82*'Zambia-IO-Data'!$BO22","v":151.40470042112176},{"$f":"EY82*'Zambia-IO-Data'!$BO22","v":97243.599552379092},{"$f":"EK82*'Zambia-IO-Data'!BN22","v":0},{"$f":"EX82*'Zambia-IO-Data'!$BN22","v":64.369071789424069},{"$f":"EY82*'Zambia-IO-Data'!$BN22","v":41342.707480274934},{"$f":"(FC82*'Default-Data'!$F$19/biopower_dollar_index)/'Zambia-IO-Data'!$BP22","v":0},{"$f":"(FD82*'Default-Data'!$F$19/biopower_dollar_index)/'Zambia-IO-Data'!$BP22","v":0.62077972915732771},{"$f":"(FE82*'Default-Data'!$F$19/biopower_dollar_index)/'Zambia-IO-Data'!$BP22","v":398.71189748074715},null,"TTL_C28: Fabricated metal products",0,0,null,17000141.626764618,2079992.6481576338,{"$f":"FK82*CustomRegion1!C20","v":0},{"$f":"FN82*CustomRegion1!$C20","v":4281283.4787941286},{"$f":"FO82*CustomRegion1!$C20","v":523821.41020229185},{"$f":"FK82*CustomRegion1!D20","v":0},{"$f":"FN82*CustomRegion1!$D20","v":1312419.0283249065},{"$f":"FO82*CustomRegion1!$D20","v":160576.42284110296},{"$f":"(FS82*'Default-Data'!$F$19/biopower_dollar_index)/CustomRegion1!$E20","v":0},{"$f":"(FT82*'Default-Data'!$F$19/biopower_dollar_index)/CustomRegion1!$E20","v":408.25756688349691},{"$f":"(FU82*'Default-Data'!$F$19/biopower_dollar_index)/CustomRegion1!$E20","v":49.950921369706698},496767.159220909,199469.80467719631,{"$f":"FL82*CustomRegion1!C20","v":0},{"$f":"FY82*CustomRegion1!$C20","v":125104.90078691964},{"$f":"FZ82*CustomRegion1!$C20","v":50234.097928824071},{"$f":"FL82*CustomRegion1!D20","v":0},{"$f":"FY82*CustomRegion1!$D20","v":38350.66123107991},{"$f":"FZ82*CustomRegion1!$D20","v":15399.163900049642},{"$f":"(GD82*'Default-Data'!$C$58/biopower_dollar_index)/CustomRegion1!$E20","v":0},{"$f":"(GE82*'Default-Data'!$C$58/biopower_dollar_index)/CustomRegion1!$E20","v":11.929838949803656},{"$f":"(GF82*'Default-Data'!$C$58/biopower_dollar_index)/CustomRegion1!$E20","v":4.7902575703268928},null,"C28 Fabricated metal products except machinery and equipment",0,0,null,17416578.340688247,4004926.4564570487,{"$f":"GL82*CustomRegion2!C24","v":0},{"$f":"GO82*CustomRegion2!$C24","v":6026161.6781925736},{"$f":"GP82*CustomRegion2!$C24","v":1385710.4342647439},{"$f":"GL82*CustomRegion2!D24","v":0},{"$f":"GO82*CustomRegion2!$D24","v":2685414.7623431636},{"$f":"GP82*CustomRegion2!$D24","v":617508.69877483952},{"$f":"(GT82*'Default-Data'!$C$59/biopower_dollar_index)/CustomRegion2!$E24","v":0},{"$f":"(GU82*'Default-Data'!$C$59/biopower_dollar_index)/CustomRegion2!$E24","v":574.32617703940161},{"$f":"(GV82*'Default-Data'!$C$59/biopower_dollar_index)/CustomRegion2!$E24","v":132.06578560195197},287586.22054188611,181343.80413333286,{"$f":"GM82*CustomRegion2!C24","v":0},{"$f":"GZ82*CustomRegion2!$C24","v":99505.254562950387},{"$f":"HA82*CustomRegion2!$C24","v":62745.222492580957},{"$f":"GM82*CustomRegion2!D24","v":0},{"$f":"GZ82*CustomRegion2!$D24","v":44342.135807781138},{"$f":"HA82*CustomRegion2!$D24","v":27960.90708250305},{"$f":"(HE82*'Default-Data'!$C$59/biopower_dollar_index)/CustomRegion2!$E24","v":0},{"$f":"(HF82*'Default-Data'!$C$59/biopower_dollar_index)/CustomRegion2!$E24","v":9.483395152718888},{"$f":"(HG82*'Default-Data'!$C$59/biopower_dollar_index)/CustomRegion2!$E24","v":5.9799629824168674},null,"FISH",0,0,null,32237.554831672642,9817033.3025529124,{"$f":"HM82*CustomRegion3!D23","v":0},{"$f":"HP82*CustomRegion3!$D23","v":2941.6376615547993},{"$f":"HQ82*CustomRegion3!$D23","v":895792.34648265655},{"$f":"HM82*CustomRegion3!E23","v":0},{"$f":"HP82*CustomRegion3!$E23","v":1250.6248834311555},{"$f":"HQ82*CustomRegion3!$E23","v":380842.34966799419},{"$f":"(HU82*'Default-Data'!$C$60/biopower_dollar_index)/CustomRegion3!$F23","v":0},{"$f":"(HV82*'Default-Data'!$C$60/biopower_dollar_index)/CustomRegion3!$F23","v":12.109960960723951},{"$f":"(HW82*'Default-Data'!$C$60/biopower_dollar_index)/CustomRegion3!$F23","v":3687.7452606064921},1659.2517138970402,1065697.4900648003,{"$f":"HN82*CustomRegion3!D23","v":0},{"$f":"IA82*CustomRegion3!$D23","v":151.40470042112176},{"$f":"IB82*CustomRegion3!$D23","v":97243.599552379092},{"$f":"HN82*CustomRegion3!E23","v":0},{"$f":"IA82*CustomRegion3!$E23","v":64.369071789424069},{"$f":"IB82*CustomRegion3!$E23","v":41342.707480274934},{"$f":"(IF82*'Default-Data'!$C$60/biopower_dollar_index)/CustomRegion3!$F23","v":0},{"$f":"(IG82*'Default-Data'!$C$60/biopower_dollar_index)/CustomRegion3!$F23","v":0.62329396829954675},{"$f":"(IH82*'Default-Data'!$C$60/biopower_dollar_index)/CustomRegion3!$F23","v":400.32673284348562}]
[null,253,"Total",61462088.363236368,684752.72601706395,0,31984425.585995067,52401009.235402897,37894230.211922988,18593808.231290814,18808434.584061835,37894230.211922988,4462813.0285488274,6422808.467236096,6701.466964716964,882.45024855069732,2310.3316845726413,353370.03618784033,301340.22455570381,426110.43424215494,193792.0446226825,108160.85384235797,58164.858844761198,40210.985866343886,36935.367735008811,3.2014550167022917,7.2123375570663297,13.285924809190817,null,82,"TTL_C29: Machinery and equipment, nec",{"$f":"'Biopower-Inputs'!B16*'Biopower-Inputs'!C16+'Biopower-Inputs'!B17*'Biopower-Inputs'!C17","v":66709133.491146296},0,null,2194701.2668518126,538541.51491297781,{"$f":"'Colombia-IO-Data'!$AN25*Calculations!AF83","v":23463916.647345025},{"$f":"'Colombia-IO-Data'!$AN25*AI83","v":771952.57824879559},{"$f":"'Colombia-IO-Data'!$AN25*AJ83","v":189423.73488826881},{"$f":"'Colombia-IO-Data'!$AO25*Calculations!AK83","v":11994029.919530587},{"$f":"'Colombia-IO-Data'!$AO25*Calculations!AL83","v":394598.32981560135},{"$f":"'Colombia-IO-Data'!$AO25*Calculations!AM83","v":96827.56625272111},{"$f":"(AN83*'Default-Data'!$F$19/biopower_dollar_index)/'Colombia-IO-Data'!$AP25","v":2819.5982063309789},{"$f":"(AO83*'Default-Data'!$F$19/biopower_dollar_index)/'Colombia-IO-Data'!$AP25","v":92.763545733493885},{"$f":"(AP83*'Default-Data'!$F$19/biopower_dollar_index)/'Colombia-IO-Data'!$AP25","v":22.762560537305337},55228.697046795016,51551.78538796294,{"$f":"'Colombia-IO-Data'!$AN25*AG83","v":0},{"$f":"'Colombia-IO-Data'!$AN25*AT83","v":19425.848849010446},{"$f":"'Colombia-IO-Data'!$AN25*AU83","v":18132.551452276348},{"$f":"'Colombia-IO-Data'!$AO25*AV83","v":0},{"$f":"'Colombia-IO-Data'!$AO25*AW83","v":9929.8943057604902},{"$f":"'Colombia-IO-Data'!$AO25*AX83","v":9268.8005973051713},{"$f":"(AY83*'Default-Data'!$F$19/biopower_dollar_index)/'Colombia-IO-Data'!$AP25","v":0},{"$f":"(AZ83*'Default-Data'!$F$19/biopower_dollar_index)/'Colombia-IO-Data'!$AP25","v":2.3343540379190792},{"$f":"(BA83*'Default-Data'!$F$19/biopower_dollar_index)/'Colombia-IO-Data'!$AP25","v":2.1789418330902404},null,"DOM_C29: Machinery and equipment, nec",66709133.491146296,0,null,2094952.896006152,204098.78144425154,{"$f":"BG83*'Mexico-IO-Data'!AQ25","v":23645424.901282094},{"$f":"BJ83*'Mexico-IO-Data'!$AQ25","v":742567.75319696486},{"$f":"BK83*'Mexico-IO-Data'!$AQ25","v":72343.952867020067},{"$f":"BG83*'Mexico-IO-Data'!AR25","v":8455842.5028233286},{"$f":"BJ83*'Mexico-IO-Data'!$AR25","v":265549.72029149113},{"$f":"BK83*'Mexico-IO-Data'!$AR25","v":25870.927421652163},{"$f":"(BO83*'Default-Data'!$F$19/biopower_dollar_index)/'Mexico-IO-Data'!$AS25","v":943.47448674415307},{"$f":"(BP83*'Default-Data'!$F$19/biopower_dollar_index)/'Mexico-IO-Data'!$AS25","v":29.629145289001681},{"$f":"(BQ83*'Default-Data'!$F$19/biopower_dollar_index)/'Mexico-IO-Data'!$AS25","v":2.8865911306399941},22770.842871858029,13402.069407614541,{"$f":"BH83*'Mexico-IO-Data'!AQ25","v":0},{"$f":"BU83*'Mexico-IO-Data'!$AQ25","v":8071.252419084025},{"$f":"BV83*'Mexico-IO-Data'!$AQ25","v":4750.4383450218074},{"$f":"BH83*'Mexico-IO-Data'!AR25","v":0},{"$f":"BU83*'Mexico-IO-Data'!$AR25","v":2886.3612957365685},{"$f":"BV83*'Mexico-IO-Data'!$AR25","v":1698.8046792383536},{"$f":"(BZ83*'Default-Data'!$F$19/biopower_dollar_index)/'Mexico-IO-Data'!$AS25","v":0},{"$f":"(CA83*'Default-Data'!$F$19/biopower_dollar_index)/'Mexico-IO-Data'!$AS25","v":0.32205049244282791},{"$f":"(CB83*'Default-Data'!$F$19/biopower_dollar_index)/'Mexico-IO-Data'!$AS25","v":0.1895469165003745},null,"TTL_C29: Machinery and equipment, nec",{"$f":"'Biopower-Inputs'!B16*'Biopower-Inputs'!C16+'Biopower-Inputs'!B17*'Biopower-Inputs'!C17","v":66709133.491146296},0,null,2227479.6584902406,205999.68564993143,{"$f":"CH83*'Philippines-IO-Data'!AN25","v":24406697.523325939},{"$f":"CK83*'Philippines-IO-Data'!$AN25","v":814962.20111070853},{"$f":"CL83*'Philippines-IO-Data'!$AN25","v":75368.570305674773},{"$f":"CH83*'Philippines-IO-Data'!AO25","v":7261171.9490695922},{"$f":"CK83*'Philippines-IO-Data'!$AO25","v":242457.24636041172},{"$f":"CL83*'Philippines-IO-Data'!$AO25","v":22422.703768996787},{"$f":"(CP83*'Default-Data'!$F$19/biopower_dollar_index)/'Philippines-IO-Data'!$AP25","v":2249.3524779164914},{"$f":"(CQ83*'Default-Data'!$F$19/biopower_dollar_index)/'Philippines-IO-Data'!$AP25","v":75.10795939207614},{"$f":"(CR83*'Default-Data'!$F$19/biopower_dollar_index)/'Philippines-IO-Data'!$AP25","v":6.9460638913588939},69305.843718477132,20495.05114753294,{"$f":"CI83*'Philippines-IO-Data'!AN25","v":0},{"$f":"CV83*'Philippines-IO-Data'!$AN25","v":25356.749154300913},{"$f":"CW83*'Philippines-IO-Data'!$AN25","v":7498.4711673600132},{"$f":"CI83*'Philippines-IO-Data'!AO25","v":0},{"$f":"CV83*'Philippines-IO-Data'!$AO25","v":7543.8192939801547},{"$f":"CW83*'Philippines-IO-Data'!$AO25","v":2230.8503003859887},{"$f":"(DA83*'Default-Data'!$F$19/biopower_dollar_index)/'Philippines-IO-Data'!$AP25","v":0},{"$f":"(DB83*'Default-Data'!$F$19/biopower_dollar_index)/'Philippines-IO-Data'!$AP25","v":2.3369104520438713},{"$f":"(DC83*'Default-Data'!$F$19/biopower_dollar_index)/'Philippines-IO-Data'!$AP25","v":0.69106869885885958},null,"DOM_C29: Machinery and equipment, nec",66709133.491146296,0,null,2097829.5325319171,502368.92167286575,{"$f":"DI83*'SouthAfrica-IO-Data'!AR25","v":20272381.152456235},{"$f":"DL83*'Mexico-IO-Data'!$AQ25","v":743587.39307802089},{"$f":"DM83*'Mexico-IO-Data'!$AQ25","v":178067.46975255449},{"$f":"DI83*'SouthAfrica-IO-Data'!AS25","v":16230883.488358673},{"$f":"DL83*'Mexico-IO-Data'!$AR25","v":265914.35380007903},{"$f":"DM83*'Mexico-IO-Data'!$AR25","v":63678.723701946066},{"$f":"(DQ83*'Default-Data'!$F$19/biopower_dollar_index)/'SouthAfrica-IO-Data'!$AT25","v":1264.4186538699587},{"$f":"(DR83*'Default-Data'!$F$19/biopower_dollar_index)/'SouthAfrica-IO-Data'!$AT25","v":20.715266024659044},{"$f":"(DS83*'Default-Data'!$F$19/biopower_dollar_index)/'SouthAfrica-IO-Data'!$AT25","v":4.9607013790174044},131115.49119027838,42719.676931836002,{"$f":"DJ83*'SouthAfrica-IO-Data'!AR25","v":0},{"$f":"DW83*'SouthAfrica-IO-Data'!$AR25","v":39844.966847809774},{"$f":"DX83*'SouthAfrica-IO-Data'!$AR25","v":12982.173926557027},{"$f":"DJ83*'SouthAfrica-IO-Data'!AS25","v":0},{"$f":"DW83*'SouthAfrica-IO-Data'!$AS25","v":31901.482595494552},{"$f":"DX83*'SouthAfrica-IO-Data'!$AS25","v":10394.050449373319},{"$f":"(EB83*'Default-Data'!$F$19/biopower_dollar_index)/'SouthAfrica-IO-Data'!$AT25","v":0},{"$f":"(EC83*'Default-Data'!$F$19/biopower_dollar_index)/'SouthAfrica-IO-Data'!$AT25","v":2.4851900211582474},{"$f":"(ED83*'Default-Data'!$F$19/biopower_dollar_index)/'SouthAfrica-IO-Data'!$AT25","v":0.80971755400001721},null,"FOREST",0,0,null,2636209.2039478077,414943.45507713687,{"$f":"EJ83*'Zambia-IO-Data'!BO23","v":0},{"$f":"EM83*'Zambia-IO-Data'!$BO23","v":845025.82030889718},{"$f":"EN83*'Zambia-IO-Data'!$BO23","v":133008.3868090871},{"$f":"EJ83*'Zambia-IO-Data'!BN23","v":0},{"$f":"EM83*'Zambia-IO-Data'!$BN23","v":479561.29754919931},{"$f":"EN83*'Zambia-IO-Data'!$BN23","v":75483.69887653245},{"$f":"(ER83*'Default-Data'!$F$19/biopower_dollar_index)/'Zambia-IO-Data'!$BP23","v":0},{"$f":"(ES83*'Default-Data'!$F$19/biopower_dollar_index)/'Zambia-IO-Data'!$BP23","v":4624.9219404751684},{"$f":"(ET83*'Default-Data'!$F$19/biopower_dollar_index)/'Zambia-IO-Data'!$BP23","v":727.96995267634202},68630.362367534719,39336.893543967206,{"$f":"EK83*'Zambia-IO-Data'!BO23","v":0},{"$f":"EX83*'Zambia-IO-Data'!$BO23","v":21999.175244086993},{"$f":"EY83*'Zambia-IO-Data'!$BO23","v":12609.276488988678},{"$f":"EK83*'Zambia-IO-Data'!BN23","v":0},{"$f":"EX83*'Zambia-IO-Data'!$BN23","v":12484.770017098497},{"$f":"EY83*'Zambia-IO-Data'!$BN23","v":7155.9008599353629},{"$f":"(FC83*'Default-Data'!$F$19/biopower_dollar_index)/'Zambia-IO-Data'!$BP23","v":0},{"$f":"(FD83*'Default-Data'!$F$19/biopower_dollar_index)/'Zambia-IO-Data'!$BP23","v":120.40397561052474},{"$f":"(FE83*'Default-Data'!$F$19/biopower_dollar_index)/'Zambia-IO-Data'!$BP23","v":69.011997131784483},null,"TTL_C29: Machinery and equipment, nec",66709133.491146296,0,null,6565954.7419293672,1077255.464661926,{"$f":"FK83*CustomRegion1!C21","v":24406697.523325939},{"$f":"FN83*CustomRegion1!$C21","v":2402268.8191473312},{"$f":"FO83*CustomRegion1!$C21","v":394132.66078239644},{"$f":"FK83*CustomRegion1!D21","v":7261171.9490695922},{"$f":"FN83*CustomRegion1!$D21","v":714692.63496408134},{"$f":"FO83*CustomRegion1!$D21","v":117257.36421120308},{"$f":"(FS83*'Default-Data'!$F$19/biopower_dollar_index)/CustomRegion1!$E21","v":2258.7514571725392},{"$f":"(FT83*'Default-Data'!$F$19/biopower_dollar_index)/CustomRegion1!$E21","v":222.32127843528758},{"$f":"(FU83*'Default-Data'!$F$19/biopower_dollar_index)/CustomRegion1!$E21","v":36.475550246431396},338964.80332370423,103308.02722494362,{"$f":"FL83*CustomRegion1!C21","v":0},{"$f":"FY83*CustomRegion1!$C21","v":124016.17279099149},{"$f":"FZ83*CustomRegion1!$C21","v":37797.039779348415},{"$f":"FL83*CustomRegion1!D21","v":0},{"$f":"FY83*CustomRegion1!$D21","v":36895.723161246518},{"$f":"FZ83*CustomRegion1!$D21","v":11244.89721484746},{"$f":"(GD83*'Default-Data'!$C$58/biopower_dollar_index)/CustomRegion1!$E21","v":0},{"$f":"(GE83*'Default-Data'!$C$58/biopower_dollar_index)/CustomRegion1!$E21","v":11.477247617662973},{"$f":"(GF83*'Default-Data'!$C$58/biopower_dollar_index)/CustomRegion1!$E21","v":3.4979791344903592},null,"C29 Machinery and equipment n.e.c ",66709133.491146296,0,null,15589928.06449236,1624690.3908101469,{"$f":"GL83*CustomRegion2!C25","v":25065810.658057511},{"$f":"GO83*CustomRegion2!$C25","v":5857881.2913102284},{"$f":"GP83*CustomRegion2!$C25","v":610473.85242108651},{"$f":"GL83*CustomRegion2!D25","v":17950176.002259824},{"$f":"GO83*CustomRegion2!$D25","v":4194957.0917054201},{"$f":"GP83*CustomRegion2!$D25","v":437173.69628392853},{"$f":"(GT83*'Default-Data'!$C$59/biopower_dollar_index)/CustomRegion2!$E25","v":2002.8203085670862},{"$f":"(GU83*'Default-Data'!$C$59/biopower_dollar_index)/CustomRegion2!$E25","v":468.05921322316863},{"$f":"(GV83*'Default-Data'!$C$59/biopower_dollar_index)/CustomRegion2!$E25","v":48.778371709478549},94014.627878248095,73566.278734871055,{"$f":"GM83*CustomRegion2!C25","v":0},{"$f":"GZ83*CustomRegion2!$C25","v":35325.790310207907},{"$f":"HA83*CustomRegion2!$C25","v":27642.367949973413},{"$f":"GM83*CustomRegion2!D25","v":0},{"$f":"GZ83*CustomRegion2!$D25","v":25297.572144682312},{"$f":"HA83*CustomRegion2!$D25","v":19795.305110618792},{"$f":"(HE83*'Default-Data'!$C$59/biopower_dollar_index)/CustomRegion2!$E25","v":0},{"$f":"(HF83*'Default-Data'!$C$59/biopower_dollar_index)/CustomRegion2!$E25","v":2.822618075857982},{"$f":"(HG83*'Default-Data'!$C$59/biopower_dollar_index)/CustomRegion2!$E25","v":2.2086936130786623},null,"FOREST",0,0,null,2636209.2039478077,414943.45507713687,{"$f":"HM83*CustomRegion3!D24","v":0},{"$f":"HP83*CustomRegion3!$D24","v":845025.82030889718},{"$f":"HQ83*CustomRegion3!$D24","v":133008.3868090871},{"$f":"HM83*CustomRegion3!E24","v":0},{"$f":"HP83*CustomRegion3!$E24","v":479561.29754919931},{"$f":"HQ83*CustomRegion3!$E24","v":75483.69887653245},{"$f":"(HU83*'Default-Data'!$C$60/biopower_dollar_index)/CustomRegion3!$F24","v":0},{"$f":"(HV83*'Default-Data'!$C$60/biopower_dollar_index)/CustomRegion3!$F24","v":4643.6534795804073},{"$f":"(HW83*'Default-Data'!$C$60/biopower_dollar_index)/CustomRegion3!$F24","v":730.91832625139841},68630.362367534719,39336.893543967206,{"$f":"HN83*CustomRegion3!D24","v":0},{"$f":"IA83*CustomRegion3!$D24","v":21999.175244086993},{"$f":"IB83*CustomRegion3!$D24","v":12609.276488988678},{"$f":"HN83*CustomRegion3!E24","v":0},{"$f":"IA83*CustomRegion3!$E24","v":12484.770017098497},{"$f":"IB83*CustomRegion3!$E24","v":7155.9008599353629},{"$f":"(IF83*'Default-Data'!$C$60/biopower_dollar_index)/CustomRegion3!$F24","v":0},{"$f":"(IG83*'Default-Data'!$C$60/biopower_dollar_index)/CustomRegion3!$F24","v":120.89162746856735},{"$f":"(IH83*'Default-Data'!$C$60/biopower_dollar_index)/CustomRegion3!$F24","v":69.291504751511326}]
[null,null,null,null,null,null,null,null,null,null,null,null,null,null,null,null,null,null,null,null,null,null,null,null,null,null,null,null,null,83,"TTL_C30T33X: Computer, Electronic and optical equipment",0,0,null,593661.95013765094,100314.07786830666,{"$f":"'Colombia-IO-Data'!$AN26*Calculations!AF84","v":0},{"$f":"'Colombia-IO-Data'!$AN26*AI84","v":141823.79277771193},{"$f":"'Colombia-IO-Data'!$AN26*AJ84","v":23964.687292125123},{"$f":"'Colombia-IO-Data'!$AO26*Calculations!AK84","v":0},{"$f":"'Colombia-IO-Data'!$AO26*Calculations!AL84","v":56336.471957890193},{"$f":"'Colombia-IO-Data'!$AO26*Calculations!AM84","v":9519.4600790889635},{"$f":"(AN84*'Default-Data'!$F$19/biopower_dollar_index)/'Colombia-IO-Data'!$AP26","v":0},{"$f":"(AO84*'Default-Data'!$F$19/biopower_dollar_index)/'Colombia-IO-Data'!$AP26","v":13.243773473069631},{"$f":"(AP84*'Default-Data'!$F$19/biopower_dollar_index)/'Colombia-IO-Data'!$AP26","v":2.2378677345578177},28442.31483577039,9602.546267010548,{"$f":"'Colombia-IO-Data'!$AN26*AG84","v":0},{"$f":"'Colombia-IO-Data'!$AN26*AT84","v":6794.7709373178368},{"$f":"'Colombia-IO-Data'!$AN26*AU84","v":2294.0151909603128},{"$f":"'Colombia-IO-Data'!$AO26*AV84","v":0},{"$f":"'Colombia-IO-Data'!$AO26*AW84","v":2699.0776009669007},{"$f":"'Colombia-IO-Data'!$AO26*AX84","v":911.24852851079402},{"$f":"(AY84*'Default-Data'!$F$19/biopower_dollar_index)/'Colombia-IO-Data'!$AP26","v":0},{"$f":"(AZ84*'Default-Data'!$F$19/biopower_dollar_index)/'Colombia-IO-Data'!$AP26","v":0.63450853578763133},{"$f":"(BA84*'Default-Data'!$F$19/biopower_dollar_index)/'Colombia-IO-Data'!$AP26","v":0.21421946866473515},null,"DOM_C30T33X: Computer, Electronic and optical equipment",0,0,null,874500.54602619307,1156078.7760116768,{"$f":"BG84*'Mexico-IO-Data'!AQ26","v":0},{"$f":"BJ84*'Mexico-IO-Data'!$AQ26","v":118536.1491592041},{"$f":"BK84*'Mexico-IO-Data'!$AQ26","v":156703.30551057847},{"$f":"BG84*'Mexico-IO-Data'!AR26","v":0},{"$f":"BJ84*'Mexico-IO-Data'!$AR26","v":50821.250021968488},{"$f":"BK84*'Mexico-IO-Data'!$AR26","v":67185.056416215142},{"$f":"(BO84*'Default-Data'!$F$19/biopower_dollar_index)/'Mexico-IO-Data'!$AS26","v":0},{"$f":"(BP84*'Default-Data'!$F$19/biopower_dollar_index)/'Mexico-IO-Data'!$AS26","v":6.4939291143170488},{"$f":"(BQ84*'Default-Data'!$F$19/biopower_dollar_index)/'Mexico-IO-Data'!$AS26","v":8.5848930067579179},76759.519836860709,75913.47624488789,{"$f":"BH84*'Mexico-IO-Data'!AQ26","v":0},{"$f":"BU84*'Mexico-IO-Data'!$AQ26","v":10404.542266001603},{"$f":"BV84*'Mexico-IO-Data'!$AQ26","v":10289.863378871127},{"$f":"BH84*'Mexico-IO-Data'!AR26","v":0},{"$f":"BU84*'Mexico-IO-Data'!$AR26","v":4460.8488432876347},{"$f":"BV84*'Mexico-IO-Data'!$AR26","v":4411.6813577868916},{"$f":"(BZ84*'Default-Data'!$F$19/biopower_dollar_index)/'Mexico-IO-Data'!$AS26","v":0},{"$f":"(CA84*'Default-Data'!$F$19/biopower_dollar_index)/'Mexico-IO-Data'!$AS26","v":0.57000636870346399},{"$f":"(CB84*'Default-Data'!$F$19/biopower_dollar_index)/'Mexico-IO-Data'!$AS26","v":0.56372375728731394},null,"TTL_C30T33X: Computer, Electronic and optical equipment",0,0,null,32198380.354541261,4889520.6792660393,{"$f":"CH84*'Philippines-IO-Data'!AN26","v":0},{"$f":"CK84*'Philippines-IO-Data'!$AN26","v":7935589.0151921446},{"$f":"CL84*'Philippines-IO-Data'!$AN26","v":1205067.6513753862},{"$f":"CH84*'Philippines-IO-Data'!AO26","v":0},{"$f":"CK84*'Philippines-IO-Data'!$AO26","v":2977752.4291865304},{"$f":"CL84*'Philippines-IO-Data'!$AO26","v":452189.89029641397},{"$f":"(CP84*'Default-Data'!$F$19/biopower_dollar_index)/'Philippines-IO-Data'!$AP26","v":0},{"$f":"(CQ84*'Default-Data'!$F$19/biopower_dollar_index)/'Philippines-IO-Data'!$AP26","v":922.44266520514248},{"$f":"(CR84*'Default-Data'!$F$19/biopower_dollar_index)/'Philippines-IO-Data'!$AP26","v":140.07855169403544},626134.55332433002,486461.79285327776,{"$f":"CI84*'Philippines-IO-Data'!AN26","v":0},{"$f":"CV84*'Philippines-IO-Data'!$AN26","v":154316.65905803864},{"$f":"CW84*'Philippines-IO-Data'!$AN26","v":119893.01378423782},{"$f":"CI84*'Philippines-IO-Data'!AO26","v":0},{"$f":"CV84*'Philippines-IO-Data'!$AO26","v":57905.822175809582},{"$f":"CW84*'Philippines-IO-Data'!$AO26","v":44988.684816594425},{"$f":"(DA84*'Default-Data'!$F$19/biopower_dollar_index)/'Philippines-IO-Data'!$AP26","v":0},{"$f":"(DB84*'Default-Data'!$F$19/biopower_dollar_index)/'Philippines-IO-Data'!$AP26","v":17.937958983830235},{"$f":"(DC84*'Default-Data'!$F$19/biopower_dollar_index)/'Philippines-IO-Data'!$AP26","v":13.936511954296488},null,"DOM_C30T33X: Computer, Electronic and optical equipment",0,0,null,1656038.5802943755,883815.17495089001,{"$f":"DI84*'SouthAfrica-IO-Data'!AR26","v":0},{"$f":"DL84*'Mexico-IO-Data'!$AQ26","v":224471.48496267616},{"$f":"DM84*'Mexico-IO-Data'!$AQ26","v":119798.72154820686},{"$f":"DI84*'SouthAfrica-IO-Data'!AS26","v":0},{"$f":"DL84*'Mexico-IO-Data'!$AR26","v":96240.020795419128},{"$f":"DM84*'Mexico-IO-Data'!$AR26","v":51362.565962358654},{"$f":"(DQ84*'Default-Data'!$F$19/biopower_dollar_index)/'SouthAfrica-IO-Data'!$AT26","v":0},{"$f":"(DR84*'Default-Data'!$F$19/biopower_dollar_index)/'SouthAfrica-IO-Data'!$AT26","v":7.4972922841716612},{"$f":"(DS84*'Default-Data'!$F$19/biopower_dollar_index)/'SouthAfrica-IO-Data'!$AT26","v":4.0012477792729104},15851.789045277983,75156.51767554984,{"$f":"DJ84*'SouthAfrica-IO-Data'!AR26","v":0},{"$f":"DW84*'SouthAfrica-IO-Data'!$AR26","v":4034.5934323261658},{"$f":"DX84*'SouthAfrica-IO-Data'!$AR26","v":19128.818314712898},{"$f":"DJ84*'SouthAfrica-IO-Data'!AS26","v":0},{"$f":"DW84*'SouthAfrica-IO-Data'!$AS26","v":2820.4414479415445},{"$f":"DX84*'SouthAfrica-IO-Data'!$AS26","v":13372.27974265884},{"$f":"(EB84*'Default-Data'!$F$19/biopower_dollar_index)/'SouthAfrica-IO-Data'!$AT26","v":0},{"$f":"(EC84*'Default-Data'!$F$19/biopower_dollar_index)/'SouthAfrica-IO-Data'!$AT26","v":0.21971809368745054},{"$f":"(ED84*'Default-Data'!$F$19/biopower_dollar_index)/'SouthAfrica-IO-Data'!$AT26","v":1.0417276399964488},null,"MINING",0,0,null,37950482.772703938,2382239.1660401449,{"$f":"EJ84*'Zambia-IO-Data'!BO24","v":0},{"$f":"EM84*'Zambia-IO-Data'!$BO24","v":9271766.4009642564},{"$f":"EN84*'Zambia-IO-Data'!$BO24","v":582010.12068912887},{"$f":"EJ84*'Zambia-IO-Data'!BN24","v":0},{"$f":"EM84*'Zambia-IO-Data'!$BN24","v":338150.39309819281},{"$f":"EN84*'Zambia-IO-Data'!$BN24","v":21226.478600419421},{"$f":"(ER84*'Default-Data'!$F$19/biopower_dollar_index)/'Zambia-IO-Data'!$BP24","v":0},{"$f":"(ES84*'Default-Data'!$F$19/biopower_dollar_index)/'Zambia-IO-Data'!$BP24","v":296.8408524538666},{"$f":"(ET84*'Default-Data'!$F$19/biopower_dollar_index)/'Zambia-IO-Data'!$BP24","v":18.63338363919215},1118762.3135412042,217449.45697362302,{"$f":"EK84*'Zambia-IO-Data'!BO24","v":0},{"$f":"EX84*'Zambia-IO-Data'!$BO24","v":273327.29576808272},{"$f":"EY84*'Zambia-IO-Data'!$BO24","v":53125.557878965359},{"$f":"EK84*'Zambia-IO-Data'!BN24","v":0},{"$f":"EX84*'Zambia-IO-Data'!$BN24","v":9968.5139283525277},{"$f":"EY84*'Zambia-IO-Data'!$BN24","v":1937.5410793853309},{"$f":"(FC84*'Default-Data'!$F$19/biopower_dollar_index)/'Zambia-IO-Data'!$BP24","v":0},{"$f":"(FD84*'Default-Data'!$F$19/biopower_dollar_index)/'Zambia-IO-Data'!$BP24","v":8.7507281747596508},{"$f":"(FE84*'Default-Data'!$F$19/biopower_dollar_index)/'Zambia-IO-Data'!$BP24","v":1.7008448235105731},null,"TTL_C30T33X: Computer, Electronic and optical equipment",0,0,null,53466916.290363736,11791589.848731473,{"$f":"FK84*CustomRegion1!C22","v":0},{"$f":"FN84*CustomRegion1!$C22","v":13177416.656306015},{"$f":"FO84*CustomRegion1!$C22","v":2906146.5155978599},{"$f":"FK84*CustomRegion1!D22","v":0},{"$f":"FN84*CustomRegion1!$D22","v":4944697.1590385707},{"$f":"FO84*CustomRegion1!$D22","v":1090503.1535562663},{"$f":"(FS84*'Default-Data'!$F$19/biopower_dollar_index)/CustomRegion1!$E22","v":0},{"$f":"(FT84*'Default-Data'!$F$19/biopower_dollar_index)/CustomRegion1!$E22","v":1538.1596788499689},{"$f":"(FU84*'Default-Data'!$F$19/biopower_dollar_index)/CustomRegion1!$E22","v":339.22562424128853},1223905.5310470019,1130805.0180097716,{"$f":"FL84*CustomRegion1!C22","v":0},{"$f":"FY84*CustomRegion1!$C22","v":301642.85224488494},{"$f":"FZ84*CustomRegion1!$C22","v":278697.36863881914},{"$f":"FL84*CustomRegion1!D22","v":0},{"$f":"FY84*CustomRegion1!$D22","v":113188.54017003442},{"$f":"FZ84*CustomRegion1!$D22","v":104578.47109815876},{"$f":"(GD84*'Default-Data'!$C$58/biopower_dollar_index)/CustomRegion1!$E22","v":0},{"$f":"(GE84*'Default-Data'!$C$58/biopower_dollar_index)/CustomRegion1!$E22","v":35.209850673906338},{"$f":"(GF84*'Default-Data'!$C$58/biopower_dollar_index)/CustomRegion1!$E22","v":32.531494315061622},null,"C30 Office, accounting and computing machinery",0,0,null,52987407.985612206,11012540.485695772,{"$f":"GL84*CustomRegion2!C26","v":0},{"$f":"GO84*CustomRegion2!$C26","v":8705346.7880523261},{"$f":"GP84*CustomRegion2!$C26","v":1809259.739058743},{"$f":"GL84*CustomRegion2!D26","v":0},{"$f":"GO84*CustomRegion2!$D26","v":3664804.5904677133},{"$f":"GP84*CustomRegion2!$D26","v":761667.92185132217},{"$f":"(GT84*'Default-Data'!$C$59/biopower_dollar_index)/CustomRegion2!$E26","v":0},{"$f":"(GU84*'Default-Data'!$C$59/biopower_dollar_index)/CustomRegion2!$E26","v":468.28799405826248},{"$f":"(GV84*'Default-Data'!$C$59/biopower_dollar_index)/CustomRegion2!$E26","v":97.325773982606947},343687.56247305707,498649.85201628553,{"$f":"GM84*CustomRegion2!C26","v":0},{"$f":"GZ84*CustomRegion2!$C26","v":56464.72495655503},{"$f":"HA84*CustomRegion2!$C26","v":81923.612658906422},{"$f":"GM84*CustomRegion2!D26","v":0},{"$f":"GZ84*CustomRegion2!$D26","v":23770.699577905874},{"$f":"HA84*CustomRegion2!$D26","v":34488.463130741213},{"$f":"(HE84*'Default-Data'!$C$59/biopower_dollar_index)/CustomRegion2!$E26","v":0},{"$f":"(HF84*'Default-Data'!$C$59/biopower_dollar_index)/CustomRegion2!$E26","v":3.0374152148937599},{"$f":"(HG84*'Default-Data'!$C$59/biopower_dollar_index)/CustomRegion2!$E26","v":4.406928887738041},null,"MINING",0,0,null,37950482.772703938,2382239.1660401449,{"$f":"HM84*CustomRegion3!D25","v":0},{"$f":"HP84*CustomRegion3!$D25","v":9271766.4009642564},{"$f":"HQ84*CustomRegion3!$D25","v":582010.12068912887},{"$f":"HM84*CustomRegion3!E25","v":0},{"$f":"HP84*CustomRegion3!$E25","v":338150.39309819281},{"$f":"HQ84*CustomRegion3!$E25","v":21226.478600419421},{"$f":"(HU84*'Default-Data'!$C$60/biopower_dollar_index)/CustomRegion3!$F25","v":0},{"$f":"(HV84*'Default-Data'!$C$60/biopower_dollar_index)/CustomRegion3!$F25","v":298.04309675276187},{"$f":"(HW84*'Default-Data'!$C$60/biopower_dollar_index)/CustomRegion3!$F25","v":18.708851281412411},1118762.3135412042,217449.45697362302,{"$f":"HN84*CustomRegion3!D25","v":0},{"$f":"IA84*CustomRegion3!$D25","v":273327.29576808272},{"$f":"IB84*CustomRegion3!$D25","v":53125.557878965359},{"$f":"HN84*CustomRegion3!E25","v":0},{"$f":"IA84*CustomRegion3!$E25","v":9968.5139283525277},{"$f":"IB84*CustomRegion3!$E25","v":1937.5410793853309},{"$f":"(IF84*'Default-Data'!$C$60/biopower_dollar_index)/CustomRegion3!$F25","v":0},{"$f":"(IG84*'Default-Data'!$C$60/biopower_dollar_index)/CustomRegion3!$F25","v":8.7861697690426404},{"$f":"(IH84*'Default-Data'!$C$60/biopower_dollar_index)/CustomRegion3!$F25","v":1.7077334676290199}]
[null,null,null,null,null,null,null,null,null,null,null,null,null,null,null,null,null,null,null,null,null,null,null,null,null,null,null,null,null,84,"TTL_C31: Electrical machinery and apparatus, nec",{"$f":"'Biopower-Inputs'!B25*'Biopower-Inputs'!C25","v":38119504.852083586},0,null,20516905.494999319,373835.38333702087,{"$f":"'Colombia-IO-Data'!$AN27*Calculations!AF85","v":9641651.8263539411},{"$f":"'Colombia-IO-Data'!$AN27*AI85","v":5189386.9058527099},{"$f":"'Colombia-IO-Data'!$AN27*AJ85","v":94555.02164819173},{"$f":"'Colombia-IO-Data'!$AO27*Calculations!AK85","v":4990499.6859343257},{"$f":"'Colombia-IO-Data'!$AO27*Calculations!AL85","v":2686016.2750393595},{"$f":"'Colombia-IO-Data'!$AO27*Calculations!AM85","v":48941.48993733761},{"$f":"(AN85*'Default-Data'!$F$19/biopower_dollar_index)/'Colombia-IO-Data'!$AP27","v":1173.1839971686884},{"$f":"(AO85*'Default-Data'!$F$19/biopower_dollar_index)/'Colombia-IO-Data'!$AP27","v":631.43803392923337},{"$f":"(AP85*'Default-Data'!$F$19/biopower_dollar_index)/'Colombia-IO-Data'!$AP27","v":11.505335418396514},316760.07315969997,35785.321871293592,{"$f":"'Colombia-IO-Data'!$AN27*AG85","v":0},{"$f":"'Colombia-IO-Data'!$AN27*AT85","v":80118.835481917195},{"$f":"'Colombia-IO-Data'!$AN27*AU85","v":9051.2616917730611},{"$f":"'Colombia-IO-Data'!$AO27*AV85","v":0},{"$f":"'Colombia-IO-Data'!$AO27*AW85","v":41469.348874126619},{"$f":"'Colombia-IO-Data'!$AO27*AX85","v":4684.9149340403355},{"$f":"(AY85*'Default-Data'!$F$19/biopower_dollar_index)/'Colombia-IO-Data'!$AP27","v":0},{"$f":"(AZ85*'Default-Data'!$F$19/biopower_dollar_index)/'Colombia-IO-Data'!$AP27","v":9.748758548017463},{"$f":"(BA85*'Default-Data'!$F$19/biopower_dollar_index)/'Colombia-IO-Data'!$AP27","v":1.1013460724592166},null,"DOM_C31: Electrical machinery and apparatus, nec",38119504.852083586,0,null,2045165.8817415461,560115.27852953225,{"$f":"BG85*'Mexico-IO-Data'!AQ27","v":10227285.23251437},{"$f":"BJ85*'Mexico-IO-Data'!$AQ27","v":548708.46044670651},{"$f":"BK85*'Mexico-IO-Data'!$AQ27","v":150276.31494268071},{"$f":"BG85*'Mexico-IO-Data'!AR27","v":3528770.4234199696},{"$f":"BJ85*'Mexico-IO-Data'!$AR27","v":189323.57339061081},{"$f":"BK85*'Mexico-IO-Data'!$AR27","v":51850.574561506059},{"$f":"(BO85*'Default-Data'!$F$19/biopower_dollar_index)/'Mexico-IO-Data'!$AS27","v":506.13890470873861},{"$f":"(BP85*'Default-Data'!$F$19/biopower_dollar_index)/'Mexico-IO-Data'!$AS27","v":27.155075160315675},{"$f":"(BQ85*'Default-Data'!$F$19/biopower_dollar_index)/'Mexico-IO-Data'!$AS27","v":7.4370360970224354},146149.58302421169,36779.758242549608,{"$f":"BH85*'Mexico-IO-Data'!AQ27","v":0},{"$f":"BU85*'Mexico-IO-Data'!$AQ27","v":39211.250985594925},{"$f":"BV85*'Mexico-IO-Data'!$AQ27","v":9867.8374703210702},{"$f":"BH85*'Mexico-IO-Data'!AR27","v":0},{"$f":"BU85*'Mexico-IO-Data'!$AR27","v":13529.250392212536},{"$f":"BV85*'Mexico-IO-Data'!$AR27","v":3404.7483977156598},{"$f":"(BZ85*'Default-Data'!$F$19/biopower_dollar_index)/'Mexico-IO-Data'!$AS27","v":0},{"$f":"(CA85*'Default-Data'!$F$19/biopower_dollar_index)/'Mexico-IO-Data'!$AS27","v":1.9405286129121928},{"$f":"(CB85*'Default-Data'!$F$19/biopower_dollar_index)/'Mexico-IO-Data'!$AS27","v":0.48835016678656423},null,"TTL_C31: Electrical machinery and apparatus, nec",{"$f":"'Biopower-Inputs'!B25*'Biopower-Inputs'!C25","v":38119504.852083586},0,null,843727.2789972797,2777755.1941131353,{"$f":"CH85*'Philippines-IO-Data'!AN27","v":9904746.4369111676},{"$f":"CK85*'Philippines-IO-Data'!$AN27","v":219229.10050381406},{"$f":"CL85*'Philippines-IO-Data'!$AN27","v":721755.46267620847},{"$f":"CH85*'Philippines-IO-Data'!AO27","v":3312241.9624301433},{"$f":"CK85*'Philippines-IO-Data'!$AO27","v":73312.30846743389},{"$f":"CL85*'Philippines-IO-Data'!$AO27","v":241361.93140496465},{"$f":"(CP85*'Default-Data'!$F$19/biopower_dollar_index)/'Philippines-IO-Data'!$AP27","v":1026.0602169882341},{"$f":"(CQ85*'Default-Data'!$F$19/biopower_dollar_index)/'Philippines-IO-Data'!$AP27","v":22.710551942531904},{"$f":"(CR85*'Default-Data'!$F$19/biopower_dollar_index)/'Philippines-IO-Data'!$AP27","v":74.768654741750439},14778.779153411127,276360.78472187131,{"$f":"CI85*'Philippines-IO-Data'!AN27","v":0},{"$f":"CV85*'Philippines-IO-Data'!$AN27","v":3840.0304707432438},{"$f":"CW85*'Philippines-IO-Data'!$AN27","v":71807.94998249592},{"$f":"CI85*'Philippines-IO-Data'!AO27","v":0},{"$f":"CV85*'Philippines-IO-Data'!$AO27","v":1284.1429251340485},{"$f":"CW85*'Philippines-IO-Data'!$AO27","v":24013.265426134509},{"$f":"(DA85*'Default-Data'!$F$19/biopower_dollar_index)/'Philippines-IO-Data'!$AP27","v":0},{"$f":"(DB85*'Default-Data'!$F$19/biopower_dollar_index)/'Philippines-IO-Data'!$AP27","v":0.39779943112617222},{"$f":"(DC85*'Default-Data'!$F$19/biopower_dollar_index)/'Philippines-IO-Data'!$AP27","v":7.4387851531409019},null,"DOM_C31: Electrical machinery and apparatus, nec",38119504.852083586,0,null,5678876.2220160887,1702858.1325103492,{"$f":"DI85*'SouthAfrica-IO-Data'!AR27","v":7170461.9694687892},{"$f":"DL85*'Mexico-IO-Data'!$AQ27","v":1523615.984731962},{"$f":"DM85*'Mexico-IO-Data'!$AQ27","v":456868.88901806303},{"$f":"DI85*'SouthAfrica-IO-Data'!AS27","v":7315615.7172024865},{"$f":"DL85*'Mexico-IO-Data'!$AR27","v":525700.70173453388},{"$f":"DM85*'Mexico-IO-Data'!$AR27","v":157635.715274886},{"$f":"(DQ85*'Default-Data'!$F$19/biopower_dollar_index)/'SouthAfrica-IO-Data'!$AT27","v":569.90126162937997},{"$f":"(DR85*'Default-Data'!$F$19/biopower_dollar_index)/'SouthAfrica-IO-Data'!$AT27","v":40.953147997299162},{"$f":"(DS85*'Default-Data'!$F$19/biopower_dollar_index)/'SouthAfrica-IO-Data'!$AT27","v":12.280141068886151},279839.39016451797,144805.03499170835,{"$f":"DJ85*'SouthAfrica-IO-Data'!AR27","v":0},{"$f":"DW85*'SouthAfrica-IO-Data'!$AR27","v":52639.133496623479},{"$f":"DX85*'SouthAfrica-IO-Data'!$AR27","v":27238.522651977422},{"$f":"DJ85*'SouthAfrica-IO-Data'!AS27","v":0},{"$f":"DW85*'SouthAfrica-IO-Data'!$AS27","v":53704.7227901757},{"$f":"DX85*'SouthAfrica-IO-Data'!$AS27","v":27789.919990461131},{"$f":"(EB85*'Default-Data'!$F$19/biopower_dollar_index)/'SouthAfrica-IO-Data'!$AT27","v":0},{"$f":"(EC85*'Default-Data'!$F$19/biopower_dollar_index)/'SouthAfrica-IO-Data'!$AT27","v":4.1837065336287544},{"$f":"(ED85*'Default-Data'!$F$19/biopower_dollar_index)/'SouthAfrica-IO-Data'!$AT27","v":2.1648909777890357},null,"FOODMFG",0,0,null,216242.29021634461,56987985.52485314,{"$f":"EJ85*'Zambia-IO-Data'!BO25","v":0},{"$f":"EM85*'Zambia-IO-Data'!$BO25","v":24247.689368844876},{"$f":"EN85*'Zambia-IO-Data'!$BO25","v":6390179.1336948304},{"$f":"EJ85*'Zambia-IO-Data'!BN25","v":0},{"$f":"EM85*'Zambia-IO-Data'!$BN25","v":11226.42370127323},{"$f":"EN85*'Zambia-IO-Data'!$BN25","v":2958585.3476854735},{"$f":"(ER85*'Default-Data'!$F$19/biopower_dollar_index)/'Zambia-IO-Data'!$BP25","v":0},{"$f":"(ES85*'Default-Data'!$F$19/biopower_dollar_index)/'Zambia-IO-Data'!$BP25","v":42.007091413672356},{"$f":"(ET85*'Default-Data'!$F$19/biopower_dollar_index)/'Zambia-IO-Data'!$BP25","v":11070.450257572236},10435.618929078317,5747286.3258543834,{"$f":"EK85*'Zambia-IO-Data'!BO25","v":0},{"$f":"EX85*'Zambia-IO-Data'!$BO25","v":1170.1672504058724},{"$f":"EY85*'Zambia-IO-Data'!$BO25","v":644454.94636457332},{"$f":"EK85*'Zambia-IO-Data'!BN25","v":0},{"$f":"EX85*'Zambia-IO-Data'!$BN25","v":541.77505965946932},{"$f":"EY85*'Zambia-IO-Data'!$BN25","v":298375.82353582728},{"$f":"(FC85*'Default-Data'!$F$19/biopower_dollar_index)/'Zambia-IO-Data'!$BP25","v":0},{"$f":"(FD85*'Default-Data'!$F$19/biopower_dollar_index)/'Zambia-IO-Data'!$BP25","v":2.0272167755597899},{"$f":"(FE85*'Default-Data'!$F$19/biopower_dollar_index)/'Zambia-IO-Data'!$BP25","v":1116.4642301428328},null,"TTL_C31: Electrical machinery and apparatus, nec",38119504.852083586,0,null,1975475.443757616,5104919.863776125,{"$f":"FK85*CustomRegion1!C23","v":9904746.4369111676},{"$f":"FN85*CustomRegion1!$C23","v":513295.84260573774},{"$f":"FO85*CustomRegion1!$C23","v":1326432.1514052898},{"$f":"FK85*CustomRegion1!D23","v":3312241.9624301433},{"$f":"FN85*CustomRegion1!$D23","v":171651.04022086045},{"$f":"FO85*CustomRegion1!$D23","v":443571.60076590639},{"$f":"(FS85*'Default-Data'!$F$19/biopower_dollar_index)/CustomRegion1!$E23","v":1030.347636941136},{"$f":"(FT85*'Default-Data'!$F$19/biopower_dollar_index)/CustomRegion1!$E23","v":53.395931117390859},{"$f":"(FU85*'Default-Data'!$F$19/biopower_dollar_index)/CustomRegion1!$E23","v":137.98296013617022},82367.487932520919,489558.15734354372,{"$f":"FL85*CustomRegion1!C23","v":0},{"$f":"FY85*CustomRegion1!$C23","v":21401.880370236955},{"$f":"FZ85*CustomRegion1!$C23","v":127203.89295256601},{"$f":"FL85*CustomRegion1!D23","v":0},{"$f":"FY85*CustomRegion1!$D23","v":7156.9935372636937},{"$f":"FZ85*CustomRegion1!$D23","v":42538.198701566609},{"$f":"(GD85*'Default-Data'!$C$58/biopower_dollar_index)/CustomRegion1!$E23","v":0},{"$f":"(GE85*'Default-Data'!$C$58/biopower_dollar_index)/CustomRegion1!$E23","v":2.226344410331754},{"$f":"(GF85*'Default-Data'!$C$58/biopower_dollar_index)/CustomRegion1!$E23","v":13.232467014497596},null,"C31 Electrical machinery and apparatus n.e.c",38119504.852083586,0,null,29340637.497087725,5267477.1622689962,{"$f":"GL85*CustomRegion2!C27","v":9898311.7139377408},{"$f":"GO85*CustomRegion2!$C27","v":7618744.7071718723},{"$f":"GP85*CustomRegion2!$C27","v":1367780.9064022205},{"$f":"GL85*CustomRegion2!D27","v":4630324.5267668469},{"$f":"GO85*CustomRegion2!$D27","v":3563967.4219512972},{"$f":"GP85*CustomRegion2!$D27","v":639833.30301062961},{"$f":"(GT85*'Default-Data'!$C$59/biopower_dollar_index)/CustomRegion2!$E27","v":664.13710817504852},{"$f":"(GU85*'Default-Data'!$C$59/biopower_dollar_index)/CustomRegion2!$E27","v":511.18728364760307},{"$f":"(GV85*'Default-Data'!$C$59/biopower_dollar_index)/CustomRegion2!$E27","v":91.77262568079307},141439.52910981339,238512.33154387289,{"$f":"GM85*CustomRegion2!C27","v":0},{"$f":"GZ85*CustomRegion2!$C27","v":36726.934235741523},{"$f":"HA85*CustomRegion2!$C27","v":61933.370184116531},{"$f":"GM85*CustomRegion2!D27","v":0},{"$f":"GZ85*CustomRegion2!$D27","v":17180.467669577436},{"$f":"HA85*CustomRegion2!$D27","v":28971.769254856292},{"$f":"(HE85*'Default-Data'!$C$59/biopower_dollar_index)/CustomRegion2!$E27","v":0},{"$f":"(HF85*'Default-Data'!$C$59/biopower_dollar_index)/CustomRegion2!$E27","v":2.4642303253710183},{"$f":"(HG85*'Default-Data'!$C$59/biopower_dollar_index)/CustomRegion2!$E27","v":4.1554813146262006},null,"FOODMFG",0,0,null,216242.29021634461,56987985.52485314,{"$f":"HM85*CustomRegion3!D26","v":0},{"$f":"HP85*CustomRegion3!$D26","v":24247.689368844876},{"$f":"HQ85*CustomRegion3!$D26","v":6390179.1336948304},{"$f":"HM85*CustomRegion3!E26","v":0},{"$f":"HP85*CustomRegion3!$E26","v":11226.42370127323},{"$f":"HQ85*CustomRegion3!$E26","v":2958585.3476854735},{"$f":"(HU85*'Default-Data'!$C$60/biopower_dollar_index)/CustomRegion3!$F26","v":0},{"$f":"(HV85*'Default-Data'!$C$60/biopower_dollar_index)/CustomRegion3!$F26","v":42.17722563120936},{"$f":"(HW85*'Default-Data'!$C$60/biopower_dollar_index)/CustomRegion3!$F26","v":11115.287029864006},10435.618929078317,5747286.3258543834,{"$f":"HN85*CustomRegion3!D26","v":0},{"$f":"IA85*CustomRegion3!$D26","v":1170.1672504058724},{"$f":"IB85*CustomRegion3!$D26","v":644454.94636457332},{"$f":"HN85*CustomRegion3!E26","v":0},{"$f":"IA85*CustomRegion3!$E26","v":541.77505965946932},{"$f":"IB85*CustomRegion3!$E26","v":298375.82353582728},{"$f":"(IF85*'Default-Data'!$C$60/biopower_dollar_index)/CustomRegion3!$F26","v":0},{"$f":"(IG85*'Default-Data'!$C$60/biopower_dollar_index)/CustomRegion3!$F26","v":2.035427268795118},{"$f":"(IH85*'Default-Data'!$C$60/biopower_dollar_index)/CustomRegion3!$F26","v":1120.9860563824277}]
[null,null,null,null,null,null,null,null,null,null,null,null,null,null,null,null,null,null,null,null,null,null,null,null,null,null,null,null,null,85,"TTL_C34: Motor vehicles, trailers and semi-trailers",0,0,null,382027.28103279672,1156120.8755368411,{"$f":"'Colombia-IO-Data'!$AN28*Calculations!AF86","v":0},{"$f":"'Colombia-IO-Data'!$AN28*AI86","v":84086.632161016925},{"$f":"'Colombia-IO-Data'!$AN28*AJ86","v":254469.55131613606},{"$f":"'Colombia-IO-Data'!$AO28*Calculations!AK86","v":0},{"$f":"'Colombia-IO-Data'!$AO28*Calculations!AL86","v":21518.187957523027},{"$f":"'Colombia-IO-Data'!$AO28*Calculations!AM86","v":65120.025549385071},{"$f":"(AN86*'Default-Data'!$F$19/biopower_dollar_index)/'Colombia-IO-Data'!$AP28","v":0},{"$f":"(AO86*'Default-Data'!$F$19/biopower_dollar_index)/'Colombia-IO-Data'!$AP28","v":5.0585703533828896},{"$f":"(AP86*'Default-Data'!$F$19/biopower_dollar_index)/'Colombia-IO-Data'!$AP28","v":15.308641754868969},50693.070766438977,110669.45371489816,{"$f":"'Colombia-IO-Data'!$AN28*AG86","v":0},{"$f":"'Colombia-IO-Data'!$AN28*AT86","v":11157.867006581693},{"$f":"'Colombia-IO-Data'!$AN28*AU86","v":24359.050015557485},{"$f":"'Colombia-IO-Data'!$AO28*AV86","v":0},{"$f":"'Colombia-IO-Data'!$AO28*AW86","v":2855.3537379509908},{"$f":"'Colombia-IO-Data'!$AO28*AX86","v":6233.6022175053304},{"$f":"(AY86*'Default-Data'!$F$19/biopower_dollar_index)/'Colombia-IO-Data'!$AP28","v":0},{"$f":"(AZ86*'Default-Data'!$F$19/biopower_dollar_index)/'Colombia-IO-Data'!$AP28","v":0.67124647278536731},{"$f":"(BA86*'Default-Data'!$F$19/biopower_dollar_index)/'Colombia-IO-Data'!$AP28","v":1.4654168573348636},null,"DOM_C34: Motor vehicles, trailers and semi-trailers",0,0,null,305726.32347583509,3763577.3976804493,{"$f":"BG86*'Mexico-IO-Data'!AQ28","v":0},{"$f":"BJ86*'Mexico-IO-Data'!$AQ28","v":103505.63563070769},{"$f":"BK86*'Mexico-IO-Data'!$AQ28","v":1274183.6108956127},{"$f":"BG86*'Mexico-IO-Data'!AR28","v":0},{"$f":"BJ86*'Mexico-IO-Data'!$AR28","v":26274.554149165382},{"$f":"BK86*'Mexico-IO-Data'!$AR28","v":323447.1831070378},{"$f":"(BO86*'Default-Data'!$F$19/biopower_dollar_index)/'Mexico-IO-Data'!$AS28","v":0},{"$f":"(BP86*'Default-Data'!$F$19/biopower_dollar_index)/'Mexico-IO-Data'!$AS28","v":3.5343599210794236},{"$f":"(BQ86*'Default-Data'!$F$19/biopower_dollar_index)/'Mexico-IO-Data'!$AS28","v":43.508968946514564},38711.874744498964,247133.8885402444,{"$f":"BH86*'Mexico-IO-Data'!AQ28","v":0},{"$f":"BU86*'Mexico-IO-Data'!$AQ28","v":13106.157024134738},{"$f":"BV86*'Mexico-IO-Data'!$AQ28","v":83668.785626398036},{"$f":"BH86*'Mexico-IO-Data'!AR28","v":0},{"$f":"BU86*'Mexico-IO-Data'!$AR28","v":3326.9534583286918},{"$f":"BV86*'Mexico-IO-Data'!$AR28","v":21239.03713203712},{"$f":"(BZ86*'Default-Data'!$F$19/biopower_dollar_index)/'Mexico-IO-Data'!$AS28","v":0},{"$f":"(CA86*'Default-Data'!$F$19/biopower_dollar_index)/'Mexico-IO-Data'!$AS28","v":0.44752999025816104},{"$f":"(CB86*'Default-Data'!$F$19/biopower_dollar_index)/'Mexico-IO-Data'!$AS28","v":2.8570000151334312},null,"TTL_C34: Motor vehicles, trailers and semi-trailers",0,0,null,224917.06324401431,1820320.7333586498,{"$f":"CH86*'Philippines-IO-Data'!AN28","v":0},{"$f":"CK86*'Philippines-IO-Data'!$AN28","v":36745.348219620049},{"$f":"CL86*'Philippines-IO-Data'!$AN28","v":297391.03940766852},{"$f":"CH86*'Philippines-IO-Data'!AO28","v":0},{"$f":"CK86*'Philippines-IO-Data'!$AO28","v":9118.0724864413223},{"$f":"CL86*'Philippines-IO-Data'!$AO28","v":73795.274382224583},{"$f":"(CP86*'Default-Data'!$F$19/biopower_dollar_index)/'Philippines-IO-Data'!$AP28","v":0},{"$f":"(CQ86*'Default-Data'!$F$19/biopower_dollar_index)/'Philippines-IO-Data'!$AP28","v":2.8245797076637174},{"$f":"(CR86*'Default-Data'!$F$19/biopower_dollar_index)/'Philippines-IO-Data'!$AP28","v":22.860164234432364},20786.425379273936,181104.96827892837,{"$f":"CI86*'Philippines-IO-Data'!AN28","v":0},{"$f":"CV86*'Philippines-IO-Data'!$AN28","v":3395.9381639885237},{"$f":"CW86*'Philippines-IO-Data'!$AN28","v":29587.640118227308},{"$f":"CI86*'Philippines-IO-Data'!AO28","v":0},{"$f":"CV86*'Philippines-IO-Data'!$AO28","v":842.67565389913705},{"$f":"CW86*'Philippines-IO-Data'!$AO28","v":7341.9428682046509},{"$f":"(DA86*'Default-Data'!$F$19/biopower_dollar_index)/'Philippines-IO-Data'!$AP28","v":0},{"$f":"(DB86*'Default-Data'!$F$19/biopower_dollar_index)/'Philippines-IO-Data'!$AP28","v":0.26104251262370942},{"$f":"(DC86*'Default-Data'!$F$19/biopower_dollar_index)/'Philippines-IO-Data'!$AP28","v":2.2743735445396713},null,"DOM_C34: Motor vehicles, trailers and semi-trailers",0,0,null,1001384.4069860351,2941100.5834353692,{"$f":"DI86*'SouthAfrica-IO-Data'!AR28","v":0},{"$f":"DL86*'Mexico-IO-Data'!$AQ28","v":339025.20521417045},{"$f":"DM86*'Mexico-IO-Data'!$AQ28","v":995728.7350377104},{"$f":"DI86*'SouthAfrica-IO-Data'!AS28","v":0},{"$f":"DL86*'Mexico-IO-Data'!$AR28","v":86060.397175986334},{"$f":"DM86*'Mexico-IO-Data'!$AR28","v":252762.35837023857},{"$f":"(DQ86*'Default-Data'!$F$19/biopower_dollar_index)/'SouthAfrica-IO-Data'!$AT28","v":0},{"$f":"(DR86*'Default-Data'!$F$19/biopower_dollar_index)/'SouthAfrica-IO-Data'!$AT28","v":6.7042790139440882},{"$f":"(DS86*'Default-Data'!$F$19/biopower_dollar_index)/'SouthAfrica-IO-Data'!$AT28","v":19.690698978199123},103624.00581002493,250100.79510890134,{"$f":"DJ86*'SouthAfrica-IO-Data'!AR28","v":0},{"$f":"DW86*'SouthAfrica-IO-Data'!$AR28","v":25054.222198536823},{"$f":"DX86*'SouthAfrica-IO-Data'!$AR28","v":60469.394554933759},{"$f":"DJ86*'SouthAfrica-IO-Data'!AS28","v":0},{"$f":"DW86*'SouthAfrica-IO-Data'!$AS28","v":18393.320798030851},{"$f":"DX86*'SouthAfrica-IO-Data'!$AS28","v":44393.035381339898},{"$f":"(EB86*'Default-Data'!$F$19/biopower_dollar_index)/'SouthAfrica-IO-Data'!$AT28","v":0},{"$f":"(EC86*'Default-Data'!$F$19/biopower_dollar_index)/'SouthAfrica-IO-Data'!$AT28","v":1.4328768942445476},{"$f":"(ED86*'Default-Data'!$F$19/biopower_dollar_index)/'SouthAfrica-IO-Data'!$AT28","v":3.4583072497769161},null,"TEXTILES",0,0,null,14764763.360949779,18989418.894349709,{"$f":"EJ86*'Zambia-IO-Data'!BO26","v":0},{"$f":"EM86*'Zambia-IO-Data'!$BO26","v":1498402.7704158749},{"$f":"EN86*'Zambia-IO-Data'!$BO26","v":1927142.15489132},{"$f":"EJ86*'Zambia-IO-Data'!BN26","v":0},{"$f":"EM86*'Zambia-IO-Data'!$BN26","v":411745.51669050119},{"$f":"EN86*'Zambia-IO-Data'!$BN26","v":529558.64602515532},{"$f":"(ER86*'Default-Data'!$F$19/biopower_dollar_index)/'Zambia-IO-Data'!$BP26","v":0},{"$f":"(ES86*'Default-Data'!$F$19/biopower_dollar_index)/'Zambia-IO-Data'!$BP26","v":1540.6715459016575},{"$f":"(ET86*'Default-Data'!$F$19/biopower_dollar_index)/'Zambia-IO-Data'!$BP26","v":1981.5053345934505},385850.22058794397,1889903.5546974468,{"$f":"EK86*'Zambia-IO-Data'!BO26","v":0},{"$f":"EX86*'Zambia-IO-Data'!$BO26","v":39158.029516658658},{"$f":"EY86*'Zambia-IO-Data'!$BO26","v":191796.9596226092},{"$f":"EK86*'Zambia-IO-Data'!BN26","v":0},{"$f":"EX86*'Zambia-IO-Data'!$BN26","v":10760.219758165294},{"$f":"EY86*'Zambia-IO-Data'!$BN26","v":52703.812218366504},{"$f":"(FC86*'Default-Data'!$F$19/biopower_dollar_index)/'Zambia-IO-Data'!$BP26","v":0},{"$f":"(FD86*'Default-Data'!$F$19/biopower_dollar_index)/'Zambia-IO-Data'!$BP26","v":40.262647040587758},{"$f":"(FE86*'Default-Data'!$F$19/biopower_dollar_index)/'Zambia-IO-Data'!$BP26","v":197.20740251900992},null,"TTL_C34: Motor vehicles, trailers and semi-trailers",0,0,null,616060.7000988092,3598705.7512614992,{"$f":"FK86*CustomRegion1!C24","v":0},{"$f":"FN86*CustomRegion1!$C24","v":100647.61038158409},{"$f":"FO86*CustomRegion1!$C24","v":587930.92023698357},{"$f":"FK86*CustomRegion1!D24","v":0},{"$f":"FN86*CustomRegion1!$D24","v":24974.922038060282},{"$f":"FO86*CustomRegion1!$D24","v":145890.4870271059},{"$f":"(FS86*'Default-Data'!$F$19/biopower_dollar_index)/CustomRegion1!$E24","v":0},{"$f":"(FT86*'Default-Data'!$F$19/biopower_dollar_index)/CustomRegion1!$E24","v":7.7690133138174176},{"$f":"(FU86*'Default-Data'!$F$19/biopower_dollar_index)/CustomRegion1!$E24","v":45.382529496813689},51708.389864217803,345113.30313146103,{"$f":"FL86*CustomRegion1!C24","v":0},{"$f":"FY86*CustomRegion1!$C24","v":8447.748534646229},{"$f":"FZ86*CustomRegion1!$C24","v":56382.154007723169},{"$f":"FL86*CustomRegion1!D24","v":0},{"$f":"FY86*CustomRegion1!$D24","v":2096.243122415272},{"$f":"FZ86*CustomRegion1!$D24","v":13990.793177723048},{"$f":"(GD86*'Default-Data'!$C$58/biopower_dollar_index)/CustomRegion1!$E24","v":0},{"$f":"(GE86*'Default-Data'!$C$58/biopower_dollar_index)/CustomRegion1!$E24","v":0.65208374633658317},{"$f":"(GF86*'Default-Data'!$C$58/biopower_dollar_index)/CustomRegion1!$E24","v":4.3521520628954162},null,"C32 Radio, television and communication equipment",0,0,null,0,0,{"$f":"GL86*CustomRegion2!C28","v":0},{"$f":"GO86*CustomRegion2!$C28","v":0},{"$f":"GP86*CustomRegion2!$C28","v":0},{"$f":"GL86*CustomRegion2!D28","v":0},{"$f":"GO86*CustomRegion2!$D28","v":0},{"$f":"GP86*CustomRegion2!$D28","v":0},{"$f":"(GT86*'Default-Data'!$C$59/biopower_dollar_index)/CustomRegion2!$E28","v":0},{"$f":"(GU86*'Default-Data'!$C$59/biopower_dollar_index)/CustomRegion2!$E28","v":0},{"$f":"(GV86*'Default-Data'!$C$59/biopower_dollar_index)/CustomRegion2!$E28","v":0},0,0,{"$f":"GM86*CustomRegion2!C28","v":0},{"$f":"GZ86*CustomRegion2!$C28","v":0},{"$f":"HA86*CustomRegion2!$C28","v":0},{"$f":"GM86*CustomRegion2!D28","v":0},{"$f":"GZ86*CustomRegion2!$D28","v":0},{"$f":"HA86*CustomRegion2!$D28","v":0},{"$f":"(HE86*'Default-Data'!$C$59/biopower_dollar_index)/CustomRegion2!$E28","v":0},{"$f":"(HF86*'Default-Data'!$C$59/biopower_dollar_index)/CustomRegion2!$E28","v":0},{"$f":"(HG86*'Default-Data'!$C$59/biopower_dollar_index)/CustomRegion2!$E28","v":0},null,"TEXTILES",0,0,null,14764763.360949779,18989418.894349709,{"$f":"HM86*CustomRegion3!D27","v":0},{"$f":"HP86*CustomRegion3!$D27","v":1498402.7704158749},{"$f":"HQ86*CustomRegion3!$D27","v":1927142.15489132},{"$f":"HM86*CustomRegion3!E27","v":0},{"$f":"HP86*CustomRegion3!$E27","v":411745.51669050119},{"$f":"HQ86*CustomRegion3!$E27","v":529558.64602515532},{"$f":"(HU86*'Default-Data'!$C$60/biopower_dollar_index)/CustomRegion3!$F27","v":0},{"$f":"(HV86*'Default-Data'!$C$60/biopower_dollar_index)/CustomRegion3!$F27","v":1546.9114672845076},{"$f":"(HW86*'Default-Data'!$C$60/biopower_dollar_index)/CustomRegion3!$F27","v":1989.5306905107786},385850.22058794397,1889903.5546974468,{"$f":"HN86*CustomRegion3!D27","v":0},{"$f":"IA86*CustomRegion3!$D27","v":39158.029516658658},{"$f":"IB86*CustomRegion3!$D27","v":191796.9596226092},{"$f":"HN86*CustomRegion3!E27","v":0},{"$f":"IA86*CustomRegion3!$E27","v":10760.219758165294},{"$f":"IB86*CustomRegion3!$E27","v":52703.812218366504},{"$f":"(IF86*'Default-Data'!$C$60/biopower_dollar_index)/CustomRegion3!$F27","v":0},{"$f":"(IG86*'Default-Data'!$C$60/biopower_dollar_index)/CustomRegion3!$F27","v":40.425716030124832},{"$f":"(IH86*'Default-Data'!$C$60/biopower_dollar_index)/CustomRegion3!$F27","v":198.00611830701035}]
[null,null,null,null,null,null,null,null,null,null,null,null,null,null,null,null,null,null,null,null,null,null,null,null,null,null,null,null,null,86,"TTL_C35: Other transport equipment",0,0,null,41229.550142619148,100945.24922986541,{"$f":"'Colombia-IO-Data'!$AN29*Calculations!AF87","v":0},{"$f":"'Colombia-IO-Data'!$AN29*AI87","v":4599.3236567098002},{"$f":"'Colombia-IO-Data'!$AN29*AJ87","v":11260.852257892058},{"$f":"'Colombia-IO-Data'!$AO29*Calculations!AK87","v":0},{"$f":"'Colombia-IO-Data'!$AO29*Calculations!AL87","v":1734.3105840458395},{"$f":"'Colombia-IO-Data'!$AO29*Calculations!AM87","v":4246.2363412384102},{"$f":"(AN87*'Default-Data'!$F$19/biopower_dollar_index)/'Colombia-IO-Data'!$AP29","v":0},{"$f":"(AO87*'Default-Data'!$F$19/biopower_dollar_index)/'Colombia-IO-Data'!$AP29","v":0.40770775500849044},{"$f":"(AP87*'Default-Data'!$F$19/biopower_dollar_index)/'Colombia-IO-Data'!$AP29","v":0.99821998542103152},4081.8415189243387,9662.965027074677,{"$f":"'Colombia-IO-Data'!$AN29*AG87","v":0},{"$f":"'Colombia-IO-Data'!$AN29*AT87","v":455.3459883988042},{"$f":"'Colombia-IO-Data'!$AN29*AU87","v":1077.9429678288682},{"$f":"'Colombia-IO-Data'!$AO29*AV87","v":0},{"$f":"'Colombia-IO-Data'!$AO29*AW87","v":171.70162963651765},{"$f":"'Colombia-IO-Data'!$AO29*AX87","v":406.4701764086675},{"$f":"(AY87*'Default-Data'!$F$19/biopower_dollar_index)/'Colombia-IO-Data'!$AP29","v":0},{"$f":"(AZ87*'Default-Data'!$F$19/biopower_dollar_index)/'Colombia-IO-Data'!$AP29","v":4.036421538009459E-2},{"$f":"(BA87*'Default-Data'!$F$19/biopower_dollar_index)/'Colombia-IO-Data'!$AP29","v":9.5554420659121536E-2},null,"DOM_C35: Other transport equipment",0,0,null,20343.705004069834,147596.02585202118,{"$f":"BG87*'Mexico-IO-Data'!AQ29","v":0},{"$f":"BJ87*'Mexico-IO-Data'!$AQ29","v":7168.0165532858409},{"$f":"BK87*'Mexico-IO-Data'!$AQ29","v":52004.821948354132},{"$f":"BG87*'Mexico-IO-Data'!AR29","v":0},{"$f":"BJ87*'Mexico-IO-Data'!$AR29","v":1827.9195681434599},{"$f":"BK87*'Mexico-IO-Data'!$AR29","v":13261.776248777902},{"$f":"(BO87*'Default-Data'!$F$19/biopower_dollar_index)/'Mexico-IO-Data'!$AS29","v":0},{"$f":"(BP87*'Default-Data'!$F$19/biopower_dollar_index)/'Mexico-IO-Data'!$AS29","v":0.24588526313046008},{"$f":"(BQ87*'Default-Data'!$F$19/biopower_dollar_index)/'Mexico-IO-Data'!$AS29","v":1.7839271482934957},3950.432136605174,9691.8372993676585,{"$f":"BH87*'Mexico-IO-Data'!AQ29","v":0},{"$f":"BU87*'Mexico-IO-Data'!$AQ29","v":1391.9176935643416},{"$f":"BV87*'Mexico-IO-Data'!$AQ29","v":3414.8769941228766},{"$f":"BH87*'Mexico-IO-Data'!AR29","v":0},{"$f":"BU87*'Mexico-IO-Data'!$AR29","v":354.95364308904266},{"$f":"BV87*'Mexico-IO-Data'!$AR29","v":870.82952919503475},{"$f":"(BZ87*'Default-Data'!$F$19/biopower_dollar_index)/'Mexico-IO-Data'!$AS29","v":0},{"$f":"(CA87*'Default-Data'!$F$19/biopower_dollar_index)/'Mexico-IO-Data'!$AS29","v":4.7747106301131784E-2},{"$f":"(CB87*'Default-Data'!$F$19/biopower_dollar_index)/'Mexico-IO-Data'!$AS29","v":0.11714090250993517},null,"TTL_C35: Other transport equipment",0,0,null,13482.646019087118,18281.283241953908,{"$f":"CH87*'Philippines-IO-Data'!AN29","v":0},{"$f":"CK87*'Philippines-IO-Data'!$AN29","v":2821.5427710931071},{"$f":"CL87*'Philippines-IO-Data'!$AN29","v":3825.76406030521},{"$f":"CH87*'Philippines-IO-Data'!AO29","v":0},{"$f":"CK87*'Philippines-IO-Data'!$AO29","v":633.58130511761999},{"$f":"CL87*'Philippines-IO-Data'!$AO29","v":859.08057507885769},{"$f":"(CP87*'Default-Data'!$F$19/biopower_dollar_index)/'Philippines-IO-Data'!$AP29","v":0},{"$f":"(CQ87*'Default-Data'!$F$19/biopower_dollar_index)/'Philippines-IO-Data'!$AP29","v":0.19626965021954809},{"$f":"(CR87*'Default-Data'!$F$19/biopower_dollar_index)/'Philippines-IO-Data'!$AP29","v":0.26612439890383771},125.0388009390723,1818.8175088921807,{"$f":"CI87*'Philippines-IO-Data'!AN29","v":0},{"$f":"CV87*'Philippines-IO-Data'!$AN29","v":26.167142888445941},{"$f":"CW87*'Philippines-IO-Data'!$AN29","v":380.62791138232183},{"$f":"CI87*'Philippines-IO-Data'!AO29","v":0},{"$f":"CV87*'Philippines-IO-Data'!$AO29","v":5.8758678806197491},{"$f":"CW87*'Philippines-IO-Data'!$AO29","v":85.470520358043984},{"$f":"(DA87*'Default-Data'!$F$19/biopower_dollar_index)/'Philippines-IO-Data'!$AP29","v":0},{"$f":"(DB87*'Default-Data'!$F$19/biopower_dollar_index)/'Philippines-IO-Data'!$AP29","v":1.8202155340606551E-3},{"$f":"(DC87*'Default-Data'!$F$19/biopower_dollar_index)/'Philippines-IO-Data'!$AP29","v":2.6476900437650767E-2},null,"DOM_C35: Other transport equipment",0,0,null,429111.5011066366,1501335.0136445332,{"$f":"DI87*'SouthAfrica-IO-Data'!AR29","v":0},{"$f":"DL87*'Mexico-IO-Data'!$AQ29","v":151195.58322942481},{"$f":"DM87*'Mexico-IO-Data'!$AQ29","v":528988.90480759239},{"$f":"DI87*'SouthAfrica-IO-Data'!AS29","v":0},{"$f":"DL87*'Mexico-IO-Data'!$AR29","v":38556.46302535927},{"$f":"DM87*'Mexico-IO-Data'!$AR29","v":134897.73122598659},{"$f":"(DQ87*'Default-Data'!$F$19/biopower_dollar_index)/'SouthAfrica-IO-Data'!$AT29","v":0},{"$f":"(DR87*'Default-Data'!$F$19/biopower_dollar_index)/'SouthAfrica-IO-Data'!$AT29","v":3.0036264576403235},{"$f":"(DS87*'Default-Data'!$F$19/biopower_dollar_index)/'SouthAfrica-IO-Data'!$AT29","v":10.508806119470318},64832.214744805002,127668.22146515764,{"$f":"DJ87*'SouthAfrica-IO-Data'!AR29","v":0},{"$f":"DW87*'SouthAfrica-IO-Data'!$AR29","v":8272.5245533368925},{"$f":"DX87*'SouthAfrica-IO-Data'!$AR29","v":16290.334996399253},{"$f":"DJ87*'SouthAfrica-IO-Data'!AS29","v":0},{"$f":"DW87*'SouthAfrica-IO-Data'!$AS29","v":8445.1502698373006},{"$f":"DX87*'SouthAfrica-IO-Data'!$AS29","v":16630.271219332644},{"$f":"(EB87*'Default-Data'!$F$19/biopower_dollar_index)/'SouthAfrica-IO-Data'!$AT29","v":0},{"$f":"(EC87*'Default-Data'!$F$19/biopower_dollar_index)/'SouthAfrica-IO-Data'!$AT29","v":0.65789428798351957},{"$f":"(ED87*'Default-Data'!$F$19/biopower_dollar_index)/'SouthAfrica-IO-Data'!$AT29","v":1.2955317659523955},null,"FURNIMFG",0,0,null,54987098.699975669,8334098.7232921869,{"$f":"EJ87*'Zambia-IO-Data'!BO27","v":0},{"$f":"EM87*'Zambia-IO-Data'!$BO27","v":10103137.357053792},{"$f":"EN87*'Zambia-IO-Data'!$BO27","v":1531278.1750513574},{"$f":"EJ87*'Zambia-IO-Data'!BN27","v":0},{"$f":"EM87*'Zambia-IO-Data'!$BN27","v":3131622.1084063207},{"$f":"EN87*'Zambia-IO-Data'!$BN27","v":474643.11506790319},{"$f":"(ER87*'Default-Data'!$F$19/biopower_dollar_index)/'Zambia-IO-Data'!$BP27","v":0},{"$f":"(ES87*'Default-Data'!$F$19/biopower_dollar_index)/'Zambia-IO-Data'!$BP27","v":11717.920121434759},{"$f":"(ET87*'Default-Data'!$F$19/biopower_dollar_index)/'Zambia-IO-Data'!$BP27","v":1776.0221112326565},1094878.9810270069,792816.22631097981,{"$f":"EK87*'Zambia-IO-Data'!BO27","v":0},{"$f":"EX87*'Zambia-IO-Data'!$BO27","v":201169.23780653731},{"$f":"EY87*'Zambia-IO-Data'!$BO27","v":145669.28284442142},{"$f":"EK87*'Zambia-IO-Data'!BN27","v":0},{"$f":"EX87*'Zambia-IO-Data'!$BN27","v":62355.485269767036},{"$f":"EY87*'Zambia-IO-Data'!$BN27","v":45152.424494435669},{"$f":"(FC87*'Default-Data'!$F$19/biopower_dollar_index)/'Zambia-IO-Data'!$BP27","v":0},{"$f":"(FD87*'Default-Data'!$F$19/biopower_dollar_index)/'Zambia-IO-Data'!$BP27","v":233.32208364574117},{"$f":"(FE87*'Default-Data'!$F$19/biopower_dollar_index)/'Zambia-IO-Data'!$BP27","v":168.95158010752644},null,"TTL_C35: Other transport equipment",0,0,null,80582.33898968398,53393.379256375978,{"$f":"FK87*CustomRegion1!C25","v":0},{"$f":"FN87*CustomRegion1!$C25","v":16863.642027851114},{"$f":"FO87*CustomRegion1!$C25","v":11173.749058737107},{"$f":"FK87*CustomRegion1!D25","v":0},{"$f":"FN87*CustomRegion1!$D25","v":3786.7539824331388},{"$f":"FO87*CustomRegion1!$D25","v":2509.0807001833045},{"$f":"(FS87*'Default-Data'!$F$19/biopower_dollar_index)/CustomRegion1!$E25","v":0},{"$f":"(FT87*'Default-Data'!$F$19/biopower_dollar_index)/CustomRegion1!$E25","v":1.1779553129671785},{"$f":"(FU87*'Default-Data'!$F$19/biopower_dollar_index)/CustomRegion1!$E25","v":0.7805061947925257},2531.7448588356633,5120.3868151930401,{"$f":"FL87*CustomRegion1!C25","v":0},{"$f":"FY87*CustomRegion1!$C25","v":529.82377454596792},{"$f":"FZ87*CustomRegion1!$C25","v":1071.5545289222525},{"$f":"FL87*CustomRegion1!D25","v":0},{"$f":"FY87*CustomRegion1!$D25","v":118.97265637732229},{"$f":"FZ87*CustomRegion1!$D25","v":240.61904143180323},{"$f":"(GD87*'Default-Data'!$C$58/biopower_dollar_index)/CustomRegion1!$E25","v":0},{"$f":"(GE87*'Default-Data'!$C$58/biopower_dollar_index)/CustomRegion1!$E25","v":3.7009130597767781E-2},{"$f":"(GF87*'Default-Data'!$C$58/biopower_dollar_index)/CustomRegion1!$E25","v":7.484998486052738E-2},null,"C33 Medical, precision and optical instruments",0,0,null,0,0,{"$f":"GL87*CustomRegion2!C29","v":0},{"$f":"GO87*CustomRegion2!$C29","v":0},{"$f":"GP87*CustomRegion2!$C29","v":0},{"$f":"GL87*CustomRegion2!D29","v":0},{"$f":"GO87*CustomRegion2!$D29","v":0},{"$f":"GP87*CustomRegion2!$D29","v":0},{"$f":"(GT87*'Default-Data'!$C$59/biopower_dollar_index)/CustomRegion2!$E29","v":0},{"$f":"(GU87*'Default-Data'!$C$59/biopower_dollar_index)/CustomRegion2!$E29","v":0},{"$f":"(GV87*'Default-Data'!$C$59/biopower_dollar_index)/CustomRegion2!$E29","v":0},0,0,{"$f":"GM87*CustomRegion2!C29","v":0},{"$f":"GZ87*CustomRegion2!$C29","v":0},{"$f":"HA87*CustomRegion2!$C29","v":0},{"$f":"GM87*CustomRegion2!D29","v":0},{"$f":"GZ87*CustomRegion2!$D29","v":0},{"$f":"HA87*CustomRegion2!$D29","v":0},{"$f":"(HE87*'Default-Data'!$C$59/biopower_dollar_index)/CustomRegion2!$E29","v":0},{"$f":"(HF87*'Default-Data'!$C$59/biopower_dollar_index)/CustomRegion2!$E29","v":0},{"$f":"(HG87*'Default-Data'!$C$59/biopower_dollar_index)/CustomRegion2!$E29","v":0},null,"FURNIMFG",0,0,null,54987098.699975669,8334098.7232921869,{"$f":"HM87*CustomRegion3!D28","v":0},{"$f":"HP87*CustomRegion3!$D28","v":10103137.357053792},{"$f":"HQ87*CustomRegion3!$D28","v":1531278.1750513574},{"$f":"HM87*CustomRegion3!E28","v":0},{"$f":"HP87*CustomRegion3!$E28","v":3131622.1084063207},{"$f":"HQ87*CustomRegion3!$E28","v":474643.11506790319},{"$f":"(HU87*'Default-Data'!$C$60/biopower_dollar_index)/CustomRegion3!$F28","v":0},{"$f":"(HV87*'Default-Data'!$C$60/biopower_dollar_index)/CustomRegion3!$F28","v":11765.379231407143},{"$f":"(HW87*'Default-Data'!$C$60/biopower_dollar_index)/CustomRegion3!$F28","v":1783.2152332045491},1094878.9810270069,792816.22631097981,{"$f":"HN87*CustomRegion3!D28","v":0},{"$f":"IA87*CustomRegion3!$D28","v":201169.23780653731},{"$f":"IB87*CustomRegion3!$D28","v":145669.28284442142},{"$f":"HN87*CustomRegion3!E28","v":0},{"$f":"IA87*CustomRegion3!$E28","v":62355.485269767036},{"$f":"IB87*CustomRegion3!$E28","v":45152.424494435669},{"$f":"(IF87*'Default-Data'!$C$60/biopower_dollar_index)/CustomRegion3!$F28","v":0},{"$f":"(IG87*'Default-Data'!$C$60/biopower_dollar_index)/CustomRegion3!$F28","v":234.26706861849871},{"$f":"(IH87*'Default-Data'!$C$60/biopower_dollar_index)/CustomRegion3!$F28","v":169.63585611702609}]
[null,null,null,null,null,null,null,null,null,null,null,null,null,null,null,null,null,null,null,null,null,null,null,null,null,null,null,null,null,87,"TTL_C36T37: Manufacturing nec; recycling",0,0,null,2253014.2871007575,1891219.6036702106,{"$f":"'Colombia-IO-Data'!$AN30*Calculations!AF88","v":0},{"$f":"'Colombia-IO-Data'!$AN30*AI88","v":839949.2677885904},{"$f":"'Colombia-IO-Data'!$AN30*AJ88","v":705068.10827834776},{"$f":"'Colombia-IO-Data'!$AO30*Calculations!AK88","v":0},{"$f":"'Colombia-IO-Data'!$AO30*Calculations!AL88","v":193347.42519060904},{"$f":"'Colombia-IO-Data'!$AO30*Calculations!AM88","v":162299.21085417707},{"$f":"(AN88*'Default-Data'!$F$19/biopower_dollar_index)/'Colombia-IO-Data'!$AP30","v":0},{"$f":"(AO88*'Default-Data'!$F$19/biopower_dollar_index)/'Colombia-IO-Data'!$AP30","v":45.452784170434221},{"$f":"(AP88*'Default-Data'!$F$19/biopower_dollar_index)/'Colombia-IO-Data'!$AP30","v":38.153862120037211},42807.239301816131,181036.64142895138,{"$f":"'Colombia-IO-Data'!$AN30*AG88","v":0},{"$f":"'Colombia-IO-Data'!$AN30*AT88","v":15959.024100943678},{"$f":"'Colombia-IO-Data'!$AN30*AU88","v":67492.512267567756},{"$f":"'Colombia-IO-Data'!$AO30*AV88","v":0},{"$f":"'Colombia-IO-Data'!$AO30*AW88","v":3673.5983193320294},{"$f":"'Colombia-IO-Data'!$AO30*AX88","v":15536.061482542173},{"$f":"(AY88*'Default-Data'!$F$19/biopower_dollar_index)/'Colombia-IO-Data'!$AP30","v":0},{"$f":"(AZ88*'Default-Data'!$F$19/biopower_dollar_index)/'Colombia-IO-Data'!$AP30","v":0.86360225057488205},{"$f":"(BA88*'Default-Data'!$F$19/biopower_dollar_index)/'Colombia-IO-Data'!$AP30","v":3.6522712869252323},null,"DOM_C36T37: Manufacturing nec; recycling",0,0,null,1038715.9042899519,1945419.2892751736,{"$f":"BG88*'Mexico-IO-Data'!AQ30","v":0},{"$f":"BJ88*'Mexico-IO-Data'!$AQ30","v":390534.2140728496},{"$f":"BK88*'Mexico-IO-Data'!$AQ30","v":731434.63967522024},{"$f":"BG88*'Mexico-IO-Data'!AR30","v":0},{"$f":"BJ88*'Mexico-IO-Data'!$AR30","v":160655.01071814736},{"$f":"BK88*'Mexico-IO-Data'!$AR30","v":300892.04899913556},{"$f":"(BO88*'Default-Data'!$F$19/biopower_dollar_index)/'Mexico-IO-Data'!$AS30","v":0},{"$f":"(BP88*'Default-Data'!$F$19/biopower_dollar_index)/'Mexico-IO-Data'!$AS30","v":25.106545539032865},{"$f":"(BQ88*'Default-Data'!$F$19/biopower_dollar_index)/'Mexico-IO-Data'!$AS30","v":47.022249083678133},80103.88968218003,127745.22296155877,{"$f":"BH88*'Mexico-IO-Data'!AQ30","v":0},{"$f":"BU88*'Mexico-IO-Data'!$AQ30","v":30117.291428779219},{"$f":"BV88*'Mexico-IO-Data'!$AQ30","v":48029.379395087308},{"$f":"BH88*'Mexico-IO-Data'!AR30","v":0},{"$f":"BU88*'Mexico-IO-Data'!$AR30","v":12389.423520238684},{"$f":"BV88*'Mexico-IO-Data'!$AR30","v":19757.962768568996},{"$f":"(BZ88*'Default-Data'!$F$19/biopower_dollar_index)/'Mexico-IO-Data'!$AS30","v":0},{"$f":"(CA88*'Default-Data'!$F$19/biopower_dollar_index)/'Mexico-IO-Data'!$AS30","v":1.9361713302484689},{"$f":"(CB88*'Default-Data'!$F$19/biopower_dollar_index)/'Mexico-IO-Data'!$AS30","v":3.0876982285841632},null,"TTL_C36T37: Manufacturing nec; recycling",0,0,null,747654.36094341008,818944.19815965346,{"$f":"CH88*'Philippines-IO-Data'!AN30","v":0},{"$f":"CK88*'Philippines-IO-Data'!$AN30","v":303080.58948401368},{"$f":"CL88*'Philippines-IO-Data'!$AN30","v":331979.72659391386},{"$f":"CH88*'Philippines-IO-Data'!AO30","v":0},{"$f":"CK88*'Philippines-IO-Data'!$AO30","v":102313.82957103646},{"$f":"CL88*'Philippines-IO-Data'!$AO30","v":112069.58923234035},{"$f":"(CP88*'Default-Data'!$F$19/biopower_dollar_index)/'Philippines-IO-Data'!$AP30","v":0},{"$f":"(CQ88*'Default-Data'!$F$19/biopower_dollar_index)/'Philippines-IO-Data'!$AP30","v":31.694589755614498},{"$f":"(CR88*'Default-Data'!$F$19/biopower_dollar_index)/'Philippines-IO-Data'!$AP30","v":34.716711022268079},15409.561317589252,81477.324469222905,{"$f":"CI88*'Philippines-IO-Data'!AN30","v":0},{"$f":"CV88*'Philippines-IO-Data'!$AN30","v":6246.6551013383341},{"$f":"CW88*'Philippines-IO-Data'!$AN30","v":33028.892520004214},{"$f":"CI88*'Philippines-IO-Data'!AO30","v":0},{"$f":"CV88*'Philippines-IO-Data'!$AO30","v":2108.7434418530684},{"$f":"CW88*'Philippines-IO-Data'!$AO30","v":11149.880914396328},{"$f":"(DA88*'Default-Data'!$F$19/biopower_dollar_index)/'Philippines-IO-Data'!$AP30","v":0},{"$f":"(DB88*'Default-Data'!$F$19/biopower_dollar_index)/'Philippines-IO-Data'!$AP30","v":0.65324266103216744},{"$f":"(DC88*'Default-Data'!$F$19/biopower_dollar_index)/'Philippines-IO-Data'!$AP30","v":3.4539895817347768},null,"DOM_C36T37: Manufacturing nec; recycling",0,0,null,8139344.4430139549,8999971.7218591198,{"$f":"DI88*'SouthAfrica-IO-Data'!AR30","v":0},{"$f":"DL88*'Mexico-IO-Data'!$AQ30","v":3060213.5502041527},{"$f":"DM88*'Mexico-IO-Data'!$AQ30","v":3383790.3786375318},{"$f":"DI88*'SouthAfrica-IO-Data'!AS30","v":0},{"$f":"DL88*'Mexico-IO-Data'!$AR30","v":1258887.5007406098},{"$f":"DM88*'Mexico-IO-Data'!$AR30","v":1391998.0886657219},{"$f":"(DQ88*'Default-Data'!$F$19/biopower_dollar_index)/'SouthAfrica-IO-Data'!$AT30","v":0},{"$f":"(DR88*'Default-Data'!$F$19/biopower_dollar_index)/'SouthAfrica-IO-Data'!$AT30","v":98.069882653142159},{"$f":"(DS88*'Default-Data'!$F$19/biopower_dollar_index)/'SouthAfrica-IO-Data'!$AT30","v":108.43946669462855},210759.94475018416,765325.77507615101,{"$f":"DJ88*'SouthAfrica-IO-Data'!AR30","v":0},{"$f":"DW88*'SouthAfrica-IO-Data'!$AR30","v":56394.531858570648},{"$f":"DX88*'SouthAfrica-IO-Data'!$AR30","v":204783.64072393105},{"$f":"DJ88*'SouthAfrica-IO-Data'!AS30","v":0},{"$f":"DW88*'SouthAfrica-IO-Data'!$AS30","v":21885.949159226344},{"$f":"DX88*'SouthAfrica-IO-Data'!$AS30","v":79473.739772592642},{"$f":"(EB88*'Default-Data'!$F$19/biopower_dollar_index)/'SouthAfrica-IO-Data'!$AT30","v":0},{"$f":"(EC88*'Default-Data'!$F$19/biopower_dollar_index)/'SouthAfrica-IO-Data'!$AT30","v":1.7049597081035859},{"$f":"(ED88*'Default-Data'!$F$19/biopower_dollar_index)/'SouthAfrica-IO-Data'!$AT30","v":6.1911650794207436},null,"INDCHEMMFG",0,{"$f":"'Biopower-Inputs'!B50*'Biopower-Inputs'!C50+'Biopower-Inputs'!B52*'Biopower-Inputs'!C52","v":955000},null,3519102.944487452,4405723.3689494804,{"$f":"EJ88*'Zambia-IO-Data'!BO28","v":0},{"$f":"EM88*'Zambia-IO-Data'!$BO28","v":655845.9735718827},{"$f":"EN88*'Zambia-IO-Data'!$BO28","v":821083.09355465905},{"$f":"EJ88*'Zambia-IO-Data'!BN28","v":0},{"$f":"EM88*'Zambia-IO-Data'!$BN28","v":126675.69874400577},{"$f":"EN88*'Zambia-IO-Data'!$BN28","v":158591.00885602427},{"$f":"(ER88*'Default-Data'!$F$19/biopower_dollar_index)/'Zambia-IO-Data'!$BP28","v":0},{"$f":"(ES88*'Default-Data'!$F$19/biopower_dollar_index)/'Zambia-IO-Data'!$BP28","v":473.99579764896674},{"$f":"(ET88*'Default-Data'!$F$19/biopower_dollar_index)/'Zambia-IO-Data'!$BP28","v":593.41667334771773},2484991.9215766899,553330.35540436534,{"$f":"EK88*'Zambia-IO-Data'!BO28","v":177980.84189104949},{"$f":"EX88*'Zambia-IO-Data'!$BO28","v":463121.41810960852},{"$f":"EY88*'Zambia-IO-Data'!$BO28","v":103122.72512957337},{"$f":"EK88*'Zambia-IO-Data'!BN28","v":34376.741518752373},{"$f":"EX88*'Zambia-IO-Data'!$BN28","v":89451.230329036262},{"$f":"EY88*'Zambia-IO-Data'!$BN28","v":19918.004819073562},{"$f":"(FC88*'Default-Data'!$F$19/biopower_dollar_index)/'Zambia-IO-Data'!$BP28","v":128.63107271807669},{"$f":"(FD88*'Default-Data'!$F$19/biopower_dollar_index)/'Zambia-IO-Data'!$BP28","v":334.70908541169041},{"$f":"(FE88*'Default-Data'!$F$19/biopower_dollar_index)/'Zambia-IO-Data'!$BP28","v":74.529295479725803},null,"TTL_C36T37: Manufacturing nec; recycling",0,0,null,1361643.6517912848,1350746.3381654005,{"$f":"FK88*CustomRegion1!C26","v":0},{"$f":"FN88*CustomRegion1!$C26","v":551976.66490078019},{"$f":"FO88*CustomRegion1!$C26","v":547559.1634321101},{"$f":"FK88*CustomRegion1!D26","v":0},{"$f":"FN88*CustomRegion1!$D26","v":186336.07159070927},{"$f":"FO88*CustomRegion1!$D26","v":184844.8131331327},{"$f":"(FS88*'Default-Data'!$F$19/biopower_dollar_index)/CustomRegion1!$E26","v":0},{"$f":"(FT88*'Default-Data'!$F$19/biopower_dollar_index)/CustomRegion1!$E26","v":57.964041642513564},{"$f":"(FU88*'Default-Data'!$F$19/biopower_dollar_index)/CustomRegion1!$E26","v":57.500152033825309},34076.223670841471,129535.60604213814,{"$f":"FL88*CustomRegion1!C26","v":0},{"$f":"FY88*CustomRegion1!$C26","v":13813.658418999641},{"$f":"FZ88*CustomRegion1!$C26","v":52510.531455847093},{"$f":"FL88*CustomRegion1!D26","v":0},{"$f":"FY88*CustomRegion1!$D26","v":4663.2095299807706},{"$f":"FZ88*CustomRegion1!$D26","v":17726.485141145833},{"$f":"(GD88*'Default-Data'!$C$58/biopower_dollar_index)/CustomRegion1!$E26","v":0},{"$f":"(GE88*'Default-Data'!$C$58/biopower_dollar_index)/CustomRegion1!$E26","v":1.4505965971918051},{"$f":"(GF88*'Default-Data'!$C$58/biopower_dollar_index)/CustomRegion1!$E26","v":5.5142233821140945},null,"C34 Motor vehicles, trailers and semi-trailers",0,0,null,15873817.668591097,15231136.60132264,{"$f":"GL88*CustomRegion2!C30","v":0},{"$f":"GO88*CustomRegion2!$C30","v":4843031.5205284087},{"$f":"GP88*CustomRegion2!$C30","v":4646952.3711132929},{"$f":"GL88*CustomRegion2!D30","v":0},{"$f":"GO88*CustomRegion2!$D30","v":1684357.4598366409},{"$f":"GP88*CustomRegion2!$D30","v":1616163.111599209},{"$f":"(GT88*'Default-Data'!$C$59/biopower_dollar_index)/CustomRegion2!$E30","v":0},{"$f":"(GU88*'Default-Data'!$C$59/biopower_dollar_index)/CustomRegion2!$E30","v":226.57379702889727},{"$f":"(GV88*'Default-Data'!$C$59/biopower_dollar_index)/CustomRegion2!$E30","v":217.40053494855221},365710.98067389126,689668.65748684783,{"$f":"GM88*CustomRegion2!C30","v":0},{"$f":"GZ88*CustomRegion2!$C30","v":111576.80173632811},{"$f":"HA88*CustomRegion2!$C30","v":210414.85524545331},{"$f":"GM88*CustomRegion2!D30","v":0},{"$f":"GZ88*CustomRegion2!$D30","v":38805.284985796061},{"$f":"HA88*CustomRegion2!$D30","v":73180.161968976245},{"$f":"(HE88*'Default-Data'!$C$59/biopower_dollar_index)/CustomRegion2!$E30","v":0},{"$f":"(HF88*'Default-Data'!$C$59/biopower_dollar_index)/CustomRegion2!$E30","v":5.2199494309675796},{"$f":"(HG88*'Default-Data'!$C$59/biopower_dollar_index)/CustomRegion2!$E30","v":9.8439360764363801},null,"INDCHEMMFG",0,955000,null,3519102.944487452,4405723.3689494804,{"$f":"HM88*CustomRegion3!D29","v":0},{"$f":"HP88*CustomRegion3!$D29","v":655845.9735718827},{"$f":"HQ88*CustomRegion3!$D29","v":821083.09355465905},{"$f":"HM88*CustomRegion3!E29","v":0},{"$f":"HP88*CustomRegion3!$E29","v":126675.69874400577},{"$f":"HQ88*CustomRegion3!$E29","v":158591.00885602427},{"$f":"(HU88*'Default-Data'!$C$60/biopower_dollar_index)/CustomRegion3!$F29","v":0},{"$f":"(HV88*'Default-Data'!$C$60/biopower_dollar_index)/CustomRegion3!$F29","v":475.91554265951015},{"$f":"(HW88*'Default-Data'!$C$60/biopower_dollar_index)/CustomRegion3!$F29","v":595.82008853300647},2484991.9215766899,553330.35540436534,{"$f":"HN88*CustomRegion3!D29","v":177980.84189104949},{"$f":"IA88*CustomRegion3!$D29","v":463121.41810960852},{"$f":"IB88*CustomRegion3!$D29","v":103122.72512957337},{"$f":"HN88*CustomRegion3!E29","v":34376.741518752373},{"$f":"IA88*CustomRegion3!$E29","v":89451.230329036262},{"$f":"IB88*CustomRegion3!$E29","v":19918.004819073562},{"$f":"(IF88*'Default-Data'!$C$60/biopower_dollar_index)/CustomRegion3!$F29","v":129.15204539605443},{"$f":"(IG88*'Default-Data'!$C$60/biopower_dollar_index)/CustomRegion3!$F29","v":336.06470100973945},{"$f":"(IH88*'Default-Data'!$C$60/biopower_dollar_index)/CustomRegion3!$F29","v":74.831148879790078}]
[null,null,null,null,null,null,null,null,null,null,null,null,null,null,null,null,null,null,null,null,null,null,null,null,null,null,null,null,null,88,"TTL_C40T41: Electricity, gas and water supply",0,{"$f":"'Biopower-Inputs'!B46*'Biopower-Inputs'!C46+'Biopower-Inputs'!B51*'Biopower-Inputs'!C51","v":39981727.832085572},null,10777400.313965235,14970354.373775762,{"$f":"'Colombia-IO-Data'!$AN31*Calculations!AF89","v":0},{"$f":"'Colombia-IO-Data'!$AN31*AI89","v":5700039.7623290448},{"$f":"'Colombia-IO-Data'!$AN31*AJ89","v":7917643.6525334055},{"$f":"'Colombia-IO-Data'!$AO31*Calculations!AK89","v":0},{"$f":"'Colombia-IO-Data'!$AO31*Calculations!AL89","v":1004583.1147166424},{"$f":"'Colombia-IO-Data'!$AO31*Calculations!AM89","v":1395416.7783609414},{"$f":"(AN89*'Default-Data'!$F$19/biopower_dollar_index)/'Colombia-IO-Data'!$AP31","v":0},{"$f":"(AO89*'Default-Data'!$F$19/biopower_dollar_index)/'Colombia-IO-Data'!$AP31","v":95.790152551004766},{"$f":"(AP89*'Default-Data'!$F$19/biopower_dollar_index)/'Colombia-IO-Data'!$AP31","v":133.05736888592736},12548206.104978964,1433034.3613031656,{"$f":"'Colombia-IO-Data'!$AN31*AG89","v":21145863.730625153},{"$f":"'Colombia-IO-Data'!$AN31*AT89","v":6636598.0348339211},{"$f":"'Colombia-IO-Data'!$AN31*AU89","v":757914.95186713908},{"$f":"'Colombia-IO-Data'!$AO31*AV89","v":3726777.099043475},{"$f":"'Colombia-IO-Data'!$AO31*AW89","v":1169643.4767029865},{"$f":"'Colombia-IO-Data'!$AO31*AX89","v":133576.009077856},{"$f":"(AY89*'Default-Data'!$F$19/biopower_dollar_index)/'Colombia-IO-Data'!$AP31","v":355.35989169164901},{"$f":"(AZ89*'Default-Data'!$F$19/biopower_dollar_index)/'Colombia-IO-Data'!$AP31","v":111.52917605555146},{"$f":"(BA89*'Default-Data'!$F$19/biopower_dollar_index)/'Colombia-IO-Data'!$AP31","v":12.73689165115155},null,"DOM_C40T41: Electricity, gas and water supply",0,39981727.832085572,null,8599815.277708862,7294972.088994259,{"$f":"BG89*'Mexico-IO-Data'!AQ31","v":0},{"$f":"BJ89*'Mexico-IO-Data'!$AQ31","v":3846935.9535772926},{"$f":"BK89*'Mexico-IO-Data'!$AQ31","v":3263243.3957315655},{"$f":"BG89*'Mexico-IO-Data'!AR31","v":0},{"$f":"BJ89*'Mexico-IO-Data'!$AR31","v":929168.76983311877},{"$f":"BK89*'Mexico-IO-Data'!$AR31","v":788186.72529714811},{"$f":"(BO89*'Default-Data'!$F$19/biopower_dollar_index)/'Mexico-IO-Data'!$AS31","v":0},{"$f":"(BP89*'Default-Data'!$F$19/biopower_dollar_index)/'Mexico-IO-Data'!$AS31","v":49.801911248185014},{"$f":"(BQ89*'Default-Data'!$F$19/biopower_dollar_index)/'Mexico-IO-Data'!$AS31","v":42.245506537306603},1260095.593994908,479021.58734847605,{"$f":"BH89*'Mexico-IO-Data'!AQ31","v":17884936.049971614},{"$f":"BU89*'Mexico-IO-Data'!$AQ31","v":563675.71732015221},{"$f":"BV89*'Mexico-IO-Data'!$AQ31","v":214279.64524855031},{"$f":"BH89*'Mexico-IO-Data'!AR31","v":4319833.8180397348},{"$f":"BU89*'Mexico-IO-Data'!$AR31","v":136147.28167234705},{"$f":"BV89*'Mexico-IO-Data'!$AR31","v":51755.983665578387},{"$f":"(BZ89*'Default-Data'!$F$19/biopower_dollar_index)/'Mexico-IO-Data'!$AS31","v":231.53595708082406},{"$f":"(CA89*'Default-Data'!$F$19/biopower_dollar_index)/'Mexico-IO-Data'!$AS31","v":7.2972694075217905},{"$f":"(CB89*'Default-Data'!$F$19/biopower_dollar_index)/'Mexico-IO-Data'!$AS31","v":2.7740352331671483},null,"TTL_C40T41: Electricity, gas and water supply",0,{"$f":"'Biopower-Inputs'!B46*'Biopower-Inputs'!C46+'Biopower-Inputs'!B51*'Biopower-Inputs'!C51","v":39981727.832085572},null,22353182.793143138,10387630.598087419,{"$f":"CH89*'Philippines-IO-Data'!AN31","v":0},{"$f":"CK89*'Philippines-IO-Data'!$AN31","v":13395279.60312243},{"$f":"CL89*'Philippines-IO-Data'!$AN31","v":6224850.2847663276},{"$f":"CH89*'Philippines-IO-Data'!AO31","v":0},{"$f":"CK89*'Philippines-IO-Data'!$AO31","v":2774181.4384181472},{"$f":"CL89*'Philippines-IO-Data'!$AO31","v":1289175.3385203923},{"$f":"(CP89*'Default-Data'!$F$19/biopower_dollar_index)/'Philippines-IO-Data'!$AP31","v":0},{"$f":"(CQ89*'Default-Data'!$F$19/biopower_dollar_index)/'Philippines-IO-Data'!$AP31","v":699.58517160756514},{"$f":"(CR89*'Default-Data'!$F$19/biopower_dollar_index)/'Philippines-IO-Data'!$AP31","v":325.10056405874116},3256689.1624103636,1033472.5499108881,{"$f":"CI89*'Philippines-IO-Data'!AN31","v":23959291.53726662},{"$f":"CV89*'Philippines-IO-Data'!$AN31","v":1951590.6219997986},{"$f":"CW89*'Philippines-IO-Data'!$AN31","v":619314.6585127376},{"$f":"CI89*'Philippines-IO-Data'!AO31","v":4962003.3197993524},{"$f":"CV89*'Philippines-IO-Data'!$AO31","v":404177.19072327187},{"$f":"CW89*'Philippines-IO-Data'!$AO31","v":128260.94572791332},{"$f":"(DA89*'Default-Data'!$F$19/biopower_dollar_index)/'Philippines-IO-Data'!$AP31","v":1251.3038606366413},{"$f":"(DB89*'Default-Data'!$F$19/biopower_dollar_index)/'Philippines-IO-Data'!$AP31","v":101.92425247183289},{"$f":"(DC89*'Default-Data'!$F$19/biopower_dollar_index)/'Philippines-IO-Data'!$AP31","v":32.344479883325533},null,"DOM_C40T41: Electricity, gas and water supply",0,39981727.832085572,null,19350459.438982874,18703072.775635667,{"$f":"DI89*'SouthAfrica-IO-Data'!AR31","v":0},{"$f":"DL89*'Mexico-IO-Data'!$AQ31","v":8655997.3360142205},{"$f":"DM89*'Mexico-IO-Data'!$AQ31","v":8366403.3214134425},{"$f":"DI89*'SouthAfrica-IO-Data'!AS31","v":0},{"$f":"DL89*'Mexico-IO-Data'!$AR31","v":2090724.2786051466},{"$f":"DM89*'Mexico-IO-Data'!$AR31","v":2020777.2564699282},{"$f":"(DQ89*'Default-Data'!$F$19/biopower_dollar_index)/'SouthAfrica-IO-Data'!$AT31","v":0},{"$f":"(DR89*'Default-Data'!$F$19/biopower_dollar_index)/'SouthAfrica-IO-Data'!$AT31","v":75.811498549001271},{"$f":"(DS89*'Default-Data'!$F$19/biopower_dollar_index)/'SouthAfrica-IO-Data'!$AT31","v":73.275158094463237},6391663.1962759346,1590443.1825661361,{"$f":"DJ89*'SouthAfrica-IO-Data'!AR31","v":21739127.95546253},{"$f":"DW89*'SouthAfrica-IO-Data'!$AR31","v":3475317.1412606044},{"$f":"DX89*'SouthAfrica-IO-Data'!$AR31","v":864766.22513426666},{"$f":"DJ89*'SouthAfrica-IO-Data'!AS31","v":7103609.3926285654},{"$f":"DW89*'SouthAfrica-IO-Data'!$AS31","v":1135615.7219185301},{"$f":"DX89*'SouthAfrica-IO-Data'!$AS31","v":282576.26027488115},{"$f":"(EB89*'Default-Data'!$F$19/biopower_dollar_index)/'SouthAfrica-IO-Data'!$AT31","v":257.58311541741074},{"$f":"(EC89*'Default-Data'!$F$19/biopower_dollar_index)/'SouthAfrica-IO-Data'!$AT31","v":41.178423446580688},{"$f":"(ED89*'Default-Data'!$F$19/biopower_dollar_index)/'SouthAfrica-IO-Data'!$AT31","v":10.246463373976635},null,"OTHERMFG",0,0,null,135556084.91400313,23576733.279914111,{"$f":"EJ89*'Zambia-IO-Data'!BO29","v":0},{"$f":"EM89*'Zambia-IO-Data'!$BO29","v":14548104.089000337},{"$f":"EN89*'Zambia-IO-Data'!$BO29","v":2530294.1587047619},{"$f":"EJ89*'Zambia-IO-Data'!BN29","v":0},{"$f":"EM89*'Zambia-IO-Data'!$BN29","v":489862.97232195915},{"$f":"EN89*'Zambia-IO-Data'!$BN29","v":85199.927760289822},{"$f":"(ER89*'Default-Data'!$F$19/biopower_dollar_index)/'Zambia-IO-Data'!$BP29","v":0},{"$f":"(ES89*'Default-Data'!$F$19/biopower_dollar_index)/'Zambia-IO-Data'!$BP29","v":1832.9718533755315},{"$f":"(ET89*'Default-Data'!$F$19/biopower_dollar_index)/'Zambia-IO-Data'!$BP29","v":318.80153903855131},12341760.601523427,2136751.4298563302,{"$f":"EK89*'Zambia-IO-Data'!BO29","v":0},{"$f":"EX89*'Zambia-IO-Data'!$BO29","v":1324538.2380760876},{"$f":"EY89*'Zambia-IO-Data'!$BO29","v":229319.71097860322},{"$f":"EK89*'Zambia-IO-Data'!BN29","v":0},{"$f":"EX89*'Zambia-IO-Data'!$BN29","v":44599.779757461707},{"$f":"EY89*'Zambia-IO-Data'!$BN29","v":7721.6408780664851},{"$f":"(FC89*'Default-Data'!$F$19/biopower_dollar_index)/'Zambia-IO-Data'!$BP29","v":0},{"$f":"(FD89*'Default-Data'!$F$19/biopower_dollar_index)/'Zambia-IO-Data'!$BP29","v":166.88369111606454},{"$f":"(FE89*'Default-Data'!$F$19/biopower_dollar_index)/'Zambia-IO-Data'!$BP29","v":28.892876561544778},null,"TTL_C40T41: Electricity, gas and water supply",0,39981727.832085572,null,28337149.848165214,13743463.611484632,{"$f":"FK89*CustomRegion1!C27","v":0},{"$f":"FN89*CustomRegion1!$C27","v":16981207.950761676},{"$f":"FO89*CustomRegion1!$C27","v":8235853.4574167002},{"$f":"FK89*CustomRegion1!D27","v":0},{"$f":"FN89*CustomRegion1!$D27","v":3516832.2942613787},{"$f":"FO89*CustomRegion1!$D27","v":1705656.9528994034},{"$f":"(FS89*'Default-Data'!$F$19/biopower_dollar_index)/CustomRegion1!$E27","v":0},{"$f":"(FT89*'Default-Data'!$F$19/biopower_dollar_index)/CustomRegion1!$E27","v":890.57053663134377},{"$f":"(FU89*'Default-Data'!$F$19/biopower_dollar_index)/CustomRegion1!$E27","v":431.92501113324579},3616236.0533960089,1317988.3133717924,{"$f":"FL89*CustomRegion1!C27","v":23959291.53726662},{"$f":"FY89*CustomRegion1!$C27","v":2167051.2648870153},{"$f":"FZ89*CustomRegion1!$C27","v":789812.44571035041},{"$f":"FL89*CustomRegion1!D27","v":4962003.3197993524},{"$f":"FY89*CustomRegion1!$D27","v":448799.39600131841},{"$f":"FZ89*CustomRegion1!$D27","v":163571.27970740938},{"$f":"(GD89*'Default-Data'!$C$58/biopower_dollar_index)/CustomRegion1!$E27","v":1256.532467155452},{"$f":"(GE89*'Default-Data'!$C$58/biopower_dollar_index)/CustomRegion1!$E27","v":113.64986598562309},{"$f":"(GF89*'Default-Data'!$C$58/biopower_dollar_index)/CustomRegion1!$E27","v":41.421299100387685},null,"C35 Other transport equipment",0,39981727.832085572,null,0,0,{"$f":"GL89*CustomRegion2!C31","v":0},{"$f":"GO89*CustomRegion2!$C31","v":0},{"$f":"GP89*CustomRegion2!$C31","v":0},{"$f":"GL89*CustomRegion2!D31","v":0},{"$f":"GO89*CustomRegion2!$D31","v":0},{"$f":"GP89*CustomRegion2!$D31","v":0},{"$f":"(GT89*'Default-Data'!$C$59/biopower_dollar_index)/CustomRegion2!$E31","v":0},{"$f":"(GU89*'Default-Data'!$C$59/biopower_dollar_index)/CustomRegion2!$E31","v":0},{"$f":"(GV89*'Default-Data'!$C$59/biopower_dollar_index)/CustomRegion2!$E31","v":0},0,0,{"$f":"GM89*CustomRegion2!C31","v":0},{"$f":"GZ89*CustomRegion2!$C31","v":0},{"$f":"HA89*CustomRegion2!$C31","v":0},{"$f":"GM89*CustomRegion2!D31","v":0},{"$f":"GZ89*CustomRegion2!$D31","v":0},{"$f":"HA89*CustomRegion2!$D31","v":0},{"$f":"(HE89*'Default-Data'!$C$59/biopower_dollar_index)/CustomRegion2!$E31","v":0},{"$f":"(HF89*'Default-Data'!$C$59/biopower_dollar_index)/CustomRegion2!$E31","v":0},{"$f":"(HG89*'Default-Data'!$C$59/biopower_dollar_index)/CustomRegion2!$E31","v":0},null,"OTHERMFG",0,0,null,135556084.91400313,23576733.279914111,{"$f":"HM89*CustomRegion3!D30","v":0},{"$f":"HP89*CustomRegion3!$D30","v":14548104.089000337},{"$f":"HQ89*CustomRegion3!$D30","v":2530294.1587047619},{"$f":"HM89*CustomRegion3!E30","v":0},{"$f":"HP89*CustomRegion3!$E30","v":489862.97232195915},{"$f":"HQ89*CustomRegion3!$E30","v":85199.927760289822},{"$f":"(HU89*'Default-Data'!$C$60/biopower_dollar_index)/CustomRegion3!$F30","v":0},{"$f":"(HV89*'Default-Data'!$C$60/biopower_dollar_index)/CustomRegion3!$F30","v":1840.3956292559037},{"$f":"(HW89*'Default-Data'!$C$60/biopower_dollar_index)/CustomRegion3!$F30","v":320.09272699202779},12341760.601523427,2136751.4298563302,{"$f":"HN89*CustomRegion3!D30","v":0},{"$f":"IA89*CustomRegion3!$D30","v":1324538.2380760876},{"$f":"IB89*CustomRegion3!$D30","v":229319.71097860322},{"$f":"HN89*CustomRegion3!E30","v":0},{"$f":"IA89*CustomRegion3!$E30","v":44599.779757461707},{"$f":"IB89*CustomRegion3!$E30","v":7721.6408780664851},{"$f":"(IF89*'Default-Data'!$C$60/biopower_dollar_index)/CustomRegion3!$F30","v":0},{"$f":"(IG89*'Default-Data'!$C$60/biopower_dollar_index)/CustomRegion3!$F30","v":167.55959190453186},{"$f":"(IH89*'Default-Data'!$C$60/biopower_dollar_index)/CustomRegion3!$F30","v":29.009896492722206}]
[null,null,null,null,null,null,null,null,null,null,null,null,null,null,null,null,null,null,null,null,null,null,null,null,null,null,null,null,null,89,"TTL_C45: Construction",{"$f":"'Biopower-Inputs'!B21*'Biopower-Inputs'!C21","v":222363778.30382094},0,null,4647899.1738146842,3000729.1253082156,{"$f":"'Colombia-IO-Data'!$AN32*Calculations!AF90","v":110417561.23460937},{"$f":"'Colombia-IO-Data'!$AN32*AI90","v":2307973.4278294304},{"$f":"'Colombia-IO-Data'!$AN32*AJ90","v":1490050.198236366},{"$f":"'Colombia-IO-Data'!$AO32*Calculations!AK90","v":21775563.782835484},{"$f":"'Colombia-IO-Data'!$AO32*Calculations!AL90","v":455157.8754760297},{"$f":"'Colombia-IO-Data'!$AO32*Calculations!AM90","v":293854.37215355318},{"$f":"(AN90*'Default-Data'!$F$19/biopower_dollar_index)/'Colombia-IO-Data'!$AP32","v":5974.1750130738901},{"$f":"(AO90*'Default-Data'!$F$19/biopower_dollar_index)/'Colombia-IO-Data'!$AP32","v":124.87358921177916},{"$f":"(AP90*'Default-Data'!$F$19/biopower_dollar_index)/'Colombia-IO-Data'!$AP32","v":80.619609444329058},1691401.5954526286,287244.23204453941,{"$f":"'Colombia-IO-Data'!$AN32*AG90","v":0},{"$f":"'Colombia-IO-Data'!$AN32*AT90","v":839886.96658603882},{"$f":"'Colombia-IO-Data'!$AN32*AU90","v":142634.77542520815},{"$f":"'Colombia-IO-Data'!$AO32*AV90","v":0},{"$f":"'Colombia-IO-Data'!$AO32*AW90","v":165634.99507480502},{"$f":"'Colombia-IO-Data'!$AO32*AX90","v":28129.154594554686},{"$f":"(AY90*'Default-Data'!$F$19/biopower_dollar_index)/'Colombia-IO-Data'!$AP32","v":0},{"$f":"(AZ90*'Default-Data'!$F$19/biopower_dollar_index)/'Colombia-IO-Data'!$AP32","v":45.442334294302533},{"$f":"(BA90*'Default-Data'!$F$19/biopower_dollar_index)/'Colombia-IO-Data'!$AP32","v":7.7172969753437517},null,"DOM_C45: Construction",222363778.30382094,0,null,17310297.065265745,487081.78923758864,{"$f":"BG90*'Mexico-IO-Data'!AQ32","v":111836203.42901671},{"$f":"BJ90*'Mexico-IO-Data'!$AQ32","v":8706084.7714265771},{"$f":"BK90*'Mexico-IO-Data'!$AQ32","v":244974.1521900034},{"$f":"BG90*'Mexico-IO-Data'!AR32","v":49187389.818524398},{"$f":"BJ90*'Mexico-IO-Data'!$AR32","v":3829078.3513326119},{"$f":"BK90*'Mexico-IO-Data'!$AR32","v":107743.63533254433},{"$f":"(BO90*'Default-Data'!$F$19/biopower_dollar_index)/'Mexico-IO-Data'!$AS32","v":16680.244260087533},{"$f":"(BP90*'Default-Data'!$F$19/biopower_dollar_index)/'Mexico-IO-Data'!$AS32","v":1298.5027753431887},{"$f":"(BQ90*'Default-Data'!$F$19/biopower_dollar_index)/'Mexico-IO-Data'!$AS32","v":36.537619935664878},219182.55191614729,31984.041748575721,{"$f":"BH90*'Mexico-IO-Data'!AQ32","v":0},{"$f":"BU90*'Mexico-IO-Data'!$AQ32","v":110236.22934978732},{"$f":"BV90*'Mexico-IO-Data'!$AQ32","v":16086.135191445494},{"$f":"BH90*'Mexico-IO-Data'!AR32","v":0},{"$f":"BU90*'Mexico-IO-Data'!$AR32","v":48483.695072801551},{"$f":"BV90*'Mexico-IO-Data'!$AR32","v":7074.9451257733008},{"$f":"(BZ90*'Default-Data'!$F$19/biopower_dollar_index)/'Mexico-IO-Data'!$AS32","v":0},{"$f":"(CA90*'Default-Data'!$F$19/biopower_dollar_index)/'Mexico-IO-Data'!$AS32","v":16.44160992135755},{"$f":"(CB90*'Default-Data'!$F$19/biopower_dollar_index)/'Mexico-IO-Data'!$AS32","v":2.3992290149978661},null,"TTL_C45: Construction",{"$f":"'Biopower-Inputs'!B21*'Biopower-Inputs'!C21","v":222363778.30382094},0,null,4548772.3192991018,3107394.403893292,{"$f":"CH90*'Philippines-IO-Data'!AN32","v":122373132.16375174},{"$f":"CK90*'Philippines-IO-Data'!$AN32","v":2503319.2026978591},{"$f":"CL90*'Philippines-IO-Data'!$AN32","v":1710087.807345025},{"$f":"CH90*'Philippines-IO-Data'!AO32","v":37604596.250693999},{"$f":"CK90*'Philippines-IO-Data'!$AO32","v":769256.34115579503},{"$f":"CL90*'Philippines-IO-Data'!$AO32","v":525500.6586118316},{"$f":"(CP90*'Default-Data'!$F$19/biopower_dollar_index)/'Philippines-IO-Data'!$AP32","v":11649.082593118614},{"$f":"(CQ90*'Default-Data'!$F$19/biopower_dollar_index)/'Philippines-IO-Data'!$AP32","v":238.29881309359109},{"$f":"(CR90*'Default-Data'!$F$19/biopower_dollar_index)/'Philippines-IO-Data'!$AP32","v":162.78862653111133},190639.1627024989,309156.81760590803,{"$f":"CI90*'Philippines-IO-Data'!AN32","v":0},{"$f":"CV90*'Philippines-IO-Data'!$AN32","v":104914.17096315367},{"$f":"CW90*'Philippines-IO-Data'!$AN32","v":170137.81825797746},{"$f":"CI90*'Philippines-IO-Data'!AO32","v":0},{"$f":"CV90*'Philippines-IO-Data'!$AO32","v":32239.55267212083},{"$f":"CW90*'Philippines-IO-Data'!$AO32","v":52282.423841238764},{"$f":"(DA90*'Default-Data'!$F$19/biopower_dollar_index)/'Philippines-IO-Data'!$AP32","v":0},{"$f":"(DB90*'Default-Data'!$F$19/biopower_dollar_index)/'Philippines-IO-Data'!$AP32","v":9.9871092708727698},{"$f":"(DC90*'Default-Data'!$F$19/biopower_dollar_index)/'Philippines-IO-Data'!$AP32","v":16.195953000925631},null,"DOM_C45: Construction",222363778.30382094,0,null,25400288.081451148,6377561.8806496263,{"$f":"DI90*'SouthAfrica-IO-Data'!AR32","v":66208959.850708835},{"$f":"DL90*'Mexico-IO-Data'!$AQ32","v":12774885.400406903},{"$f":"DM90*'Mexico-IO-Data'!$AQ32","v":3207547.1702542938},{"$f":"DI90*'SouthAfrica-IO-Data'!AS32","v":29860853.625884071},{"$f":"DL90*'Mexico-IO-Data'!$AR32","v":5618603.3575041499},{"$f":"DM90*'Mexico-IO-Data'!$AR32","v":1410731.6610111964},{"$f":"(DQ90*'Default-Data'!$F$19/biopower_dollar_index)/'SouthAfrica-IO-Data'!$AT32","v":2815.7474023332138},{"$f":"(DR90*'Default-Data'!$F$19/biopower_dollar_index)/'SouthAfrica-IO-Data'!$AT32","v":529.80962992026969},{"$f":"(DS90*'Default-Data'!$F$19/biopower_dollar_index)/'SouthAfrica-IO-Data'!$AT32","v":133.02580226434813},508810.5354781347,542325.31392842159,{"$f":"DJ90*'SouthAfrica-IO-Data'!AR32","v":0},{"$f":"DW90*'SouthAfrica-IO-Data'!$AR32","v":151498.66840750031},{"$f":"DX90*'SouthAfrica-IO-Data'!$AR32","v":161477.71552455644},{"$f":"DJ90*'SouthAfrica-IO-Data'!AS32","v":0},{"$f":"DW90*'SouthAfrica-IO-Data'!$AS32","v":68327.301501690672},{"$f":"DX90*'SouthAfrica-IO-Data'!$AS32","v":72827.944102935551},{"$f":"(EB90*'Default-Data'!$F$19/biopower_dollar_index)/'SouthAfrica-IO-Data'!$AT32","v":0},{"$f":"(EC90*'Default-Data'!$F$19/biopower_dollar_index)/'SouthAfrica-IO-Data'!$AT32","v":6.4429645623075444},{"$f":"(ED90*'Default-Data'!$F$19/biopower_dollar_index)/'SouthAfrica-IO-Data'!$AT32","v":6.8673554009639615},null,"ELECWATER",0,{"$f":"'Biopower-Inputs'!B46*'Biopower-Inputs'!C46+'Biopower-Inputs'!B51*'Biopower-Inputs'!C51","v":39981727.832085572},null,52978529.119190171,10163882.123406626,{"$f":"EJ90*'Zambia-IO-Data'!BO30","v":0},{"$f":"EM90*'Zambia-IO-Data'!$BO30","v":14121921.129217368},{"$f":"EN90*'Zambia-IO-Data'!$BO30","v":2709277.5903704586},{"$f":"EJ90*'Zambia-IO-Data'!BN30","v":0},{"$f":"EM90*'Zambia-IO-Data'!$BN30","v":699077.24775129987},{"$f":"EN90*'Zambia-IO-Data'!$BN30","v":134117.32751798892},{"$f":"(ER90*'Default-Data'!$F$19/biopower_dollar_index)/'Zambia-IO-Data'!$BP30","v":0},{"$f":"(ES90*'Default-Data'!$F$19/biopower_dollar_index)/'Zambia-IO-Data'!$BP30","v":1179.3559967871599},{"$f":"(ET90*'Default-Data'!$F$19/biopower_dollar_index)/'Zambia-IO-Data'!$BP30","v":226.2583641367174},41666670.354445376,871438.97017982602,{"$f":"EK90*'Zambia-IO-Data'!BO30","v":10657502.50982389},{"$f":"EX90*'Zambia-IO-Data'!$BO30","v":11106639.65658191},{"$f":"EY90*'Zambia-IO-Data'!$BO30","v":232290.18642852845},{"$f":"EK90*'Zambia-IO-Data'!BN30","v":527578.18531189859},{"$f":"EX90*'Zambia-IO-Data'!$BN30","v":549811.81468466565},{"$f":"EY90*'Zambia-IO-Data'!$BN30","v":11499.05758021264},{"$f":"(FC90*'Default-Data'!$F$19/biopower_dollar_index)/'Zambia-IO-Data'!$BP30","v":890.03396780984451},{"$f":"(FD90*'Default-Data'!$F$19/biopower_dollar_index)/'Zambia-IO-Data'!$BP30","v":927.54250383424153},{"$f":"(FE90*'Default-Data'!$F$19/biopower_dollar_index)/'Zambia-IO-Data'!$BP30","v":19.399118707192123},null,"TTL_C45: Construction",222363778.30382094,0,null,6193016.1679976583,4080306.5841273665,{"$f":"FK90*CustomRegion1!C28","v":122373132.16375174},{"$f":"FN90*CustomRegion1!$C28","v":3408193.5097502628},{"$f":"FO90*CustomRegion1!$C28","v":2245509.1413575998},{"$f":"FK90*CustomRegion1!D28","v":37604596.250693999},{"$f":"FN90*CustomRegion1!$D28","v":1047319.2817104167},{"$f":"FO90*CustomRegion1!$D28","v":690032.71506527311},{"$f":"(FS90*'Default-Data'!$F$19/biopower_dollar_index)/CustomRegion1!$E28","v":11697.758595087913},{"$f":"(FT90*'Default-Data'!$F$19/biopower_dollar_index)/CustomRegion1!$E28","v":325.79230601906079},{"$f":"(FU90*'Default-Data'!$F$19/biopower_dollar_index)/CustomRegion1!$E28","v":214.65025364812101},358901.58157130139,391298.47794407705,{"$f":"FL90*CustomRegion1!C28","v":0},{"$f":"FY90*CustomRegion1!$C28","v":197513.78129308257},{"$f":"FZ90*CustomRegion1!$C28","v":215342.71778517726},{"$f":"FL90*CustomRegion1!D28","v":0},{"$f":"FY90*CustomRegion1!$D28","v":60694.908009180901},{"$f":"FZ90*CustomRegion1!$D28","v":66173.642977468975},{"$f":"(GD90*'Default-Data'!$C$58/biopower_dollar_index)/CustomRegion1!$E28","v":0},{"$f":"(GE90*'Default-Data'!$C$58/biopower_dollar_index)/CustomRegion1!$E28","v":18.880521335988629},{"$f":"(GF90*'Default-Data'!$C$58/biopower_dollar_index)/CustomRegion1!$E28","v":20.584805531416411},null,"C36T37 Manufacturing n.e.c; recycling",222363778.30382094,0,null,14024376.285055965,3828650.3149513006,{"$f":"GL90*CustomRegion2!C32","v":82144708.25463824},{"$f":"GO90*CustomRegion2!$C32","v":5180827.1435968578},{"$f":"GP90*CustomRegion2!$C32","v":1414364.1807569484},{"$f":"GL90*CustomRegion2!D32","v":37535438.353041917},{"$f":"GO90*CustomRegion2!$D32","v":2367341.9992366433},{"$f":"GP90*CustomRegion2!$D32","v":646283.6212283395},{"$f":"(GT90*'Default-Data'!$C$59/biopower_dollar_index)/CustomRegion2!$E32","v":5865.8935574161787},{"$f":"(GU90*'Default-Data'!$C$59/biopower_dollar_index)/CustomRegion2!$E32","v":369.95907842908076},{"$f":"(GV90*'Default-Data'!$C$59/biopower_dollar_index)/CustomRegion2!$E32","v":100.99871205366338},69388.455844721437,173361.98813092822,{"$f":"GM90*CustomRegion2!C32","v":0},{"$f":"GZ90*CustomRegion2!$C32","v":25633.196670262492},{"$f":"HA90*CustomRegion2!$C32","v":64042.669386565525},{"$f":"GM90*CustomRegion2!D32","v":0},{"$f":"GZ90*CustomRegion2!$D32","v":11712.90633141557},{"$f":"HA90*CustomRegion2!$D32","v":29263.840846229341},{"$f":"(HE90*'Default-Data'!$C$59/biopower_dollar_index)/CustomRegion2!$E32","v":0},{"$f":"(HF90*'Default-Data'!$C$59/biopower_dollar_index)/CustomRegion2!$E32","v":1.8304478328411926},{"$f":"(HG90*'Default-Data'!$C$59/biopower_dollar_index)/CustomRegion2!$E32","v":4.5732401969201373},null,"ELECWATER",0,39981727.832085572,null,52978529.119190171,10163882.123406626,{"$f":"HM90*CustomRegion3!D31","v":0},{"$f":"HP90*CustomRegion3!$D31","v":14121921.129217368},{"$f":"HQ90*CustomRegion3!$D31","v":2709277.5903704586},{"$f":"HM90*CustomRegion3!E31","v":0},{"$f":"HP90*CustomRegion3!$E31","v":699077.24775129987},{"$f":"HQ90*CustomRegion3!$E31","v":134117.32751798892},{"$f":"(HU90*'Default-Data'!$C$60/biopower_dollar_index)/CustomRegion3!$F31","v":0},{"$f":"(HV90*'Default-Data'!$C$60/biopower_dollar_index)/CustomRegion3!$F31","v":1184.1325429120759},{"$f":"(HW90*'Default-Data'!$C$60/biopower_dollar_index)/CustomRegion3!$F31","v":227.17474012106075},41666670.354445376,871438.97017982602,{"$f":"HN90*CustomRegion3!D31","v":10657502.50982389},{"$f":"IA90*CustomRegion3!$D31","v":11106639.65658191},{"$f":"IB90*CustomRegion3!$D31","v":232290.18642852845},{"$f":"HN90*CustomRegion3!E31","v":527578.18531189859},{"$f":"IA90*CustomRegion3!$E31","v":549811.81468466565},{"$f":"IB90*CustomRegion3!$E31","v":11499.05758021264},{"$f":"(IF90*'Default-Data'!$C$60/biopower_dollar_index)/CustomRegion3!$F31","v":893.63872185490573},{"$f":"(IG90*'Default-Data'!$C$60/biopower_dollar_index)/CustomRegion3!$F31","v":931.29917235880396},{"$f":"(IH90*'Default-Data'!$C$60/biopower_dollar_index)/CustomRegion3!$F31","v":19.477687676646681}]
[null,null,{"$f":"general_country","v":"Mexico"},null,null,null,"Construction",null,null,null,null,null,null,null,null,null,null,null,null,null,null,null,null,null,null,null,null,null,null,90,"TTL_C50T52: Wholesale and retail trade; repairs",0,{"$f":"'Biopower-Inputs'!B41*'Biopower-Inputs'!B39*0.1","v":1493970.0886627771},null,24407507.814007767,28169236.141878702,{"$f":"'Colombia-IO-Data'!$AN33*Calculations!AF91","v":0},{"$f":"'Colombia-IO-Data'!$AN33*AI91","v":14663727.12349298},{"$f":"'Colombia-IO-Data'!$AN33*AJ91","v":16923726.715952616},{"$f":"'Colombia-IO-Data'!$AO33*Calculations!AK91","v":0},{"$f":"'Colombia-IO-Data'!$AO33*Calculations!AL91","v":6361213.6689222977},{"$f":"'Colombia-IO-Data'!$AO33*Calculations!AM91","v":7341615.1847334113},{"$f":"(AN91*'Default-Data'!$F$19/biopower_dollar_index)/'Colombia-IO-Data'!$AP33","v":0},{"$f":"(AO91*'Default-Data'!$F$19/biopower_dollar_index)/'Colombia-IO-Data'!$AP33","v":1921.1693932900193},{"$f":"(AP91*'Default-Data'!$F$19/biopower_dollar_index)/'Colombia-IO-Data'!$AP33","v":2217.2634224079807},2694004.7386792181,2696494.8400746547,{"$f":"'Colombia-IO-Data'!$AN33*AG91","v":897558.6478451842},{"$f":"'Colombia-IO-Data'!$AN33*AT91","v":1618524.5400072003},{"$f":"'Colombia-IO-Data'!$AN33*AU91","v":1620020.5619546585},{"$f":"'Colombia-IO-Data'!$AO33*AV91","v":389366.37945102132},{"$f":"'Colombia-IO-Data'!$AO33*AW91","v":702125.75156864116},{"$f":"'Colombia-IO-Data'!$AO33*AX91","v":702774.73495335865},{"$f":"(AY91*'Default-Data'!$F$19/biopower_dollar_index)/'Colombia-IO-Data'!$AP33","v":117.59371873200749},{"$f":"(AZ91*'Default-Data'!$F$19/biopower_dollar_index)/'Colombia-IO-Data'!$AP33","v":212.05112331699954},{"$f":"(BA91*'Default-Data'!$F$19/biopower_dollar_index)/'Colombia-IO-Data'!$AP33","v":212.24712475326072},null,"DOM_C50T52: Wholesale and retail trade; repairs",0,1493970.0886627771,null,35931380.323660836,47059544.128566101,{"$f":"BG91*'Mexico-IO-Data'!AQ33","v":0},{"$f":"BJ91*'Mexico-IO-Data'!$AQ33","v":27360600.259829313},{"$f":"BK91*'Mexico-IO-Data'!$AQ33","v":35834342.118597217},{"$f":"BG91*'Mexico-IO-Data'!AR33","v":0},{"$f":"BJ91*'Mexico-IO-Data'!$AR33","v":5509423.9425764745},{"$f":"BK91*'Mexico-IO-Data'!$AR33","v":7215725.5527955908},{"$f":"(BO91*'Default-Data'!$F$19/biopower_dollar_index)/'Mexico-IO-Data'!$AS33","v":0},{"$f":"(BP91*'Default-Data'!$F$19/biopower_dollar_index)/'Mexico-IO-Data'!$AS33","v":1122.0915991723782},{"$f":"(BQ91*'Default-Data'!$F$19/biopower_dollar_index)/'Mexico-IO-Data'!$AS33","v":1469.6100915659401},8908107.4045198523,3090147.1936226226,{"$f":"BH91*'Mexico-IO-Data'!AQ33","v":1137610.5796060159},{"$f":"BU91*'Mexico-IO-Data'!$AQ33","v":6783239.7077769982},{"$f":"BV91*'Mexico-IO-Data'!$AQ33","v":2353048.5427265051},{"$f":"BH91*'Mexico-IO-Data'!AR33","v":229073.15282156694},{"$f":"BU91*'Mexico-IO-Data'!$AR33","v":1365896.3216947776},{"$f":"BV91*'Mexico-IO-Data'!$AR33","v":473817.89347566618},{"$f":"(BZ91*'Default-Data'!$F$19/biopower_dollar_index)/'Mexico-IO-Data'!$AS33","v":46.654797862007641},{"$f":"(CA91*'Default-Data'!$F$19/biopower_dollar_index)/'Mexico-IO-Data'!$AS33","v":278.18893660911766},{"$f":"(CB91*'Default-Data'!$F$19/biopower_dollar_index)/'Mexico-IO-Data'!$AS33","v":96.501391678703229},null,"TTL_C50T52: Wholesale and retail trade; repairs",0,{"$f":"'Biopower-Inputs'!B41*'Biopower-Inputs'!B39*0.1","v":1493970.0886627771},null,41159121.680898018,30932205.04877121,{"$f":"CH91*'Philippines-IO-Data'!AN33","v":0},{"$f":"CK91*'Philippines-IO-Data'!$AN33","v":28445682.652593981},{"$f":"CL91*'Philippines-IO-Data'!$AN33","v":21377708.090662871},{"$f":"CH91*'Philippines-IO-Data'!AO33","v":0},{"$f":"CK91*'Philippines-IO-Data'!$AO33","v":6331756.2887298241},{"$f":"CL91*'Philippines-IO-Data'!$AO33","v":4758487.9327668957},{"$f":"(CP91*'Default-Data'!$F$19/biopower_dollar_index)/'Philippines-IO-Data'!$AP33","v":0},{"$f":"(CQ91*'Default-Data'!$F$19/biopower_dollar_index)/'Philippines-IO-Data'!$AP33","v":1961.4398057937046},{"$f":"(CR91*'Default-Data'!$F$19/biopower_dollar_index)/'Philippines-IO-Data'!$AP33","v":1474.0756310111112},3432431.4921835009,3077466.4659336656,{"$f":"CI91*'Philippines-IO-Data'!AN33","v":1032505.0025130138},{"$f":"CV91*'Philippines-IO-Data'!$AN33","v":2372204.5798352226},{"$f":"CW91*'Philippines-IO-Data'!$AN33","v":2126882.9578687693},{"$f":"CI91*'Philippines-IO-Data'!AO33","v":229826.44229881448},{"$f":"CV91*'Philippines-IO-Data'!$AO33","v":528031.66828396218},{"$f":"CW91*'Philippines-IO-Data'!$AO33","v":473425.25431182841},{"$f":"(DA91*'Default-Data'!$F$19/biopower_dollar_index)/'Philippines-IO-Data'!$AP33","v":71.195212164313304},{"$f":"(DB91*'Default-Data'!$F$19/biopower_dollar_index)/'Philippines-IO-Data'!$AP33","v":163.57267804752902},{"$f":"(DC91*'Default-Data'!$F$19/biopower_dollar_index)/'Philippines-IO-Data'!$AP33","v":146.65680366252818},null,"DOM_C50T52: Wholesale and retail trade; repairs",0,1493970.0886627771,null,90970902.075662762,64166322.625921369,{"$f":"DI91*'SouthAfrica-IO-Data'!AR33","v":0},{"$f":"DL91*'Mexico-IO-Data'!$AQ33","v":69271440.856093839},{"$f":"DM91*'Mexico-IO-Data'!$AQ33","v":48860608.406824626},{"$f":"DI91*'SouthAfrica-IO-Data'!AS33","v":0},{"$f":"DL91*'Mexico-IO-Data'!$AR33","v":13948733.988474069},{"$f":"DM91*'Mexico-IO-Data'!$AR33","v":9838739.0352923609},{"$f":"(DQ91*'Default-Data'!$F$19/biopower_dollar_index)/'SouthAfrica-IO-Data'!$AT33","v":0},{"$f":"(DR91*'Default-Data'!$F$19/biopower_dollar_index)/'SouthAfrica-IO-Data'!$AT33","v":1452.8511673174005},{"$f":"(DS91*'Default-Data'!$F$19/biopower_dollar_index)/'SouthAfrica-IO-Data'!$AT33","v":1024.7685205099754},6091800.9635642944,5456477.2107223263,{"$f":"DJ91*'SouthAfrica-IO-Data'!AR33","v":877358.27487148449},{"$f":"DW91*'SouthAfrica-IO-Data'!$AR33","v":3577509.3656909447},{"$f":"DX91*'SouthAfrica-IO-Data'!$AR33","v":3204405.140908754},{"$f":"DJ91*'SouthAfrica-IO-Data'!AS33","v":421294.19449505204},{"$f":"DW91*'SouthAfrica-IO-Data'!$AS33","v":1717865.9729835496},{"$f":"DX91*'SouthAfrica-IO-Data'!$AS33","v":1538706.9585372121},{"$f":"(EB91*'Default-Data'!$F$19/biopower_dollar_index)/'SouthAfrica-IO-Data'!$AT33","v":43.88052440902122},{"$f":"(EC91*'Default-Data'!$F$19/biopower_dollar_index)/'SouthAfrica-IO-Data'!$AT33","v":178.92688943715544},{"$f":"(ED91*'Default-Data'!$F$19/biopower_dollar_index)/'SouthAfrica-IO-Data'!$AT33","v":160.26631540306195},null,"EQUIPMACHIN",{"$f":"'Biopower-Inputs'!B25*'Biopower-Inputs'!C25+'Biopower-Inputs'!B16*'Biopower-Inputs'!C16+'Biopower-Inputs'!B17*'Biopower-Inputs'!C17","v":104828638.34322989},0,null,97589618.344713628,6328889.5033319592,{"$f":"EJ91*'Zambia-IO-Data'!BO31","v":13207780.015832674},{"$f":"EM91*'Zambia-IO-Data'!$BO31","v":12295706.891715908},{"$f":"EN91*'Zambia-IO-Data'!$BO31","v":797402.13767566811},{"$f":"EJ91*'Zambia-IO-Data'!BN31","v":2961937.1565150502},{"$f":"EM91*'Zambia-IO-Data'!$BN31","v":2757398.3716063211},{"$f":"EN91*'Zambia-IO-Data'!$BN31","v":178823.01321151963},{"$f":"(ER91*'Default-Data'!$F$19/biopower_dollar_index)/'Zambia-IO-Data'!$BP31","v":11082.992073528212},{"$f":"(ES91*'Default-Data'!$F$19/biopower_dollar_index)/'Zambia-IO-Data'!$BP31","v":10317.647769417546},{"$f":"(ET91*'Default-Data'!$F$19/biopower_dollar_index)/'Zambia-IO-Data'!$BP31","v":669.12089394886277},8260718.7555534523,631327.81259345077,{"$f":"EK91*'Zambia-IO-Data'!BO31","v":0},{"$f":"EX91*'Zambia-IO-Data'!$BO31","v":1040801.0427339426},{"$f":"EY91*'Zambia-IO-Data'!$BO31","v":79543.51977089906},{"$f":"EK91*'Zambia-IO-Data'!BN31","v":0},{"$f":"EX91*'Zambia-IO-Data'!$BN31","v":233406.9220806084},{"$f":"EY91*'Zambia-IO-Data'!$BN31","v":17838.191315042284},{"$f":"(FC91*'Default-Data'!$F$19/biopower_dollar_index)/'Zambia-IO-Data'!$BP31","v":0},{"$f":"(FD91*'Default-Data'!$F$19/biopower_dollar_index)/'Zambia-IO-Data'!$BP31","v":873.36325203118997},{"$f":"(FE91*'Default-Data'!$F$19/biopower_dollar_index)/'Zambia-IO-Data'!$BP31","v":66.747038341388546},null,"TTL_C50T52: Wholesale and retail trade; repairs",0,1493970.0886627771,null,72285258.456317663,48509740.957740217,{"$f":"FK91*CustomRegion1!C29","v":0},{"$f":"FN91*CustomRegion1!$C29","v":49957419.850954533},{"$f":"FO91*CustomRegion1!$C29","v":33525805.228342079},{"$f":"FK91*CustomRegion1!D29","v":0},{"$f":"FN91*CustomRegion1!$D29","v":11120077.910352144},{"$f":"FO91*CustomRegion1!$D29","v":7462546.4497308694},{"$f":"(FS91*'Default-Data'!$F$19/biopower_dollar_index)/CustomRegion1!$E29","v":0},{"$f":"(FT91*'Default-Data'!$F$19/biopower_dollar_index)/CustomRegion1!$E29","v":3459.1512720062342},{"$f":"(FU91*'Default-Data'!$F$19/biopower_dollar_index)/CustomRegion1!$E29","v":2321.3935416730083},5836436.2477930617,4652049.4014017936,{"$f":"FL91*CustomRegion1!C29","v":1032505.0025130138},{"$f":"FY91*CustomRegion1!$C29","v":4033648.1087707095},{"$f":"FZ91*CustomRegion1!$C29","v":3215100.7007003264},{"$f":"FL91*CustomRegion1!D29","v":229826.44229881448},{"$f":"FY91*CustomRegion1!$D29","v":897854.23999670078},{"$f":"FZ91*CustomRegion1!$D29","v":715652.85773525166},{"$f":"(GD91*'Default-Data'!$C$58/biopower_dollar_index)/CustomRegion1!$E29","v":71.492703255119196},{"$f":"(GE91*'Default-Data'!$C$58/biopower_dollar_index)/CustomRegion1!$E29","v":279.29783059068745},{"$f":"(GF91*'Default-Data'!$C$58/biopower_dollar_index)/CustomRegion1!$E29","v":222.6199774054819},null,"C40T41 Electricity, gas and water supply",0,1493970.0886627771,null,12487107.372906404,9818840.6578536984,{"$f":"GL91*CustomRegion2!C33","v":0},{"$f":"GO91*CustomRegion2!$C33","v":4905169.7137236176},{"$f":"GP91*CustomRegion2!$C33","v":3857024.5598498425},{"$f":"GL91*CustomRegion2!D33","v":0},{"$f":"GO91*CustomRegion2!$D33","v":1846928.2483690351},{"$f":"GP91*CustomRegion2!$D33","v":1452273.4237531829},{"$f":"(GT91*'Default-Data'!$C$59/biopower_dollar_index)/CustomRegion2!$E33","v":0},{"$f":"(GU91*'Default-Data'!$C$59/biopower_dollar_index)/CustomRegion2!$E33","v":98.992303328877966},{"$f":"(GV91*'Default-Data'!$C$59/biopower_dollar_index)/CustomRegion2!$E33","v":77.839456626209838},855044.88278051559,444598.90498199593,{"$f":"GM91*CustomRegion2!C33","v":586859.43936205551},{"$f":"GZ91*CustomRegion2!$C33","v":335877.64865300024},{"$f":"HA91*CustomRegion2!$C33","v":174646.7791415152},{"$f":"GM91*CustomRegion2!D33","v":220968.35372429824},{"$f":"GZ91*CustomRegion2!$D33","v":126466.96312207336},{"$f":"HA91*CustomRegion2!$D33","v":65759.206858975376},{"$f":"(HE91*'Default-Data'!$C$59/biopower_dollar_index)/CustomRegion2!$E33","v":11.843538760791022},{"$f":"(HF91*'Default-Data'!$C$59/biopower_dollar_index)/CustomRegion2!$E33","v":6.7784203233220754},{"$f":"(HG91*'Default-Data'!$C$59/biopower_dollar_index)/CustomRegion2!$E33","v":3.5245848655997318},null,"EQUIPMACHIN",104828638.34322989,0,null,97589618.344713628,6328889.5033319592,{"$f":"HM91*CustomRegion3!D32","v":13207780.015832674},{"$f":"HP91*CustomRegion3!$D32","v":12295706.891715908},{"$f":"HQ91*CustomRegion3!$D32","v":797402.13767566811},{"$f":"HM91*CustomRegion3!E32","v":2961937.1565150502},{"$f":"HP91*CustomRegion3!$E32","v":2757398.3716063211},{"$f":"HQ91*CustomRegion3!$E32","v":178823.01321151963},{"$f":"(HU91*'Default-Data'!$C$60/biopower_dollar_index)/CustomRegion3!$F32","v":11127.879641815905},{"$f":"(HV91*'Default-Data'!$C$60/biopower_dollar_index)/CustomRegion3!$F32","v":10359.435593115832},{"$f":"(HW91*'Default-Data'!$C$60/biopower_dollar_index)/CustomRegion3!$F32","v":671.83092113471548},8260718.7555534523,631327.81259345077,{"$f":"HN91*CustomRegion3!D32","v":0},{"$f":"IA91*CustomRegion3!$D32","v":1040801.0427339426},{"$f":"IB91*CustomRegion3!$D32","v":79543.51977089906},{"$f":"HN91*CustomRegion3!E32","v":0},{"$f":"IA91*CustomRegion3!$E32","v":233406.9220806084},{"$f":"IB91*CustomRegion3!$E32","v":17838.191315042284},{"$f":"(IF91*'Default-Data'!$C$60/biopower_dollar_index)/CustomRegion3!$F32","v":0},{"$f":"(IG91*'Default-Data'!$C$60/biopower_dollar_index)/CustomRegion3!$F32","v":876.90048749571304},{"$f":"(IH91*'Default-Data'!$C$60/biopower_dollar_index)/CustomRegion3!$F32","v":67.017372581607546}]
[null,null,"General",null,null,null,"Output",null,"Value Added",null,null,"Earnings",null,null,"Jobs",null,null,null,null,null,null,null,null,null,null,null,null,null,null,91,"TTL_C55: Hotels and restaurants",0,0,null,7105519.4097508611,19104743.338804986,{"$f":"'Colombia-IO-Data'!$AN34*Calculations!AF92","v":0},{"$f":"'Colombia-IO-Data'!$AN34*AI92","v":3283949.5512483255},{"$f":"'Colombia-IO-Data'!$AN34*AJ92","v":8829616.7663811743},{"$f":"'Colombia-IO-Data'!$AO34*Calculations!AK92","v":0},{"$f":"'Colombia-IO-Data'!$AO34*Calculations!AL92","v":1396253.8490328423},{"$f":"'Colombia-IO-Data'!$AO34*Calculations!AM92","v":3754133.9180616378},{"$f":"(AN92*'Default-Data'!$F$19/biopower_dollar_index)/'Colombia-IO-Data'!$AP34","v":0},{"$f":"(AO92*'Default-Data'!$F$19/biopower_dollar_index)/'Colombia-IO-Data'!$AP34","v":285.25481311297028},{"$f":"(AP92*'Default-Data'!$F$19/biopower_dollar_index)/'Colombia-IO-Data'!$AP34","v":766.9699674880153},426426.53597560752,1828797.9686268647,{"$f":"'Colombia-IO-Data'!$AN34*AG92","v":0},{"$f":"'Colombia-IO-Data'!$AN34*AT92","v":197081.05075833926},{"$f":"'Colombia-IO-Data'!$AN34*AU92","v":845213.40694031224},{"$f":"'Colombia-IO-Data'!$AO34*AV92","v":0},{"$f":"'Colombia-IO-Data'!$AO34*AW92","v":83793.971679061273},{"$f":"'Colombia-IO-Data'!$AO34*AX92","v":359363.76435684587},{"$f":"(AY92*'Default-Data'!$F$19/biopower_dollar_index)/'Colombia-IO-Data'!$AP34","v":0},{"$f":"(AZ92*'Default-Data'!$F$19/biopower_dollar_index)/'Colombia-IO-Data'!$AP34","v":17.119117521402739},{"$f":"(BA92*'Default-Data'!$F$19/biopower_dollar_index)/'Colombia-IO-Data'!$AP34","v":73.418056116509462},null,"DOM_C55: Hotels and restaurants",0,0,null,2910678.3561301166,8291306.9027314549,{"$f":"BG92*'Mexico-IO-Data'!AQ34","v":0},{"$f":"BJ92*'Mexico-IO-Data'!$AQ34","v":2140601.2829518472},{"$f":"BK92*'Mexico-IO-Data'!$AQ34","v":6097678.9675008152},{"$f":"BG92*'Mexico-IO-Data'!AR34","v":0},{"$f":"BJ92*'Mexico-IO-Data'!$AR34","v":523597.25683465163},{"$f":"BK92*'Mexico-IO-Data'!$AR34","v":1491509.8883053402},{"$f":"(BO92*'Default-Data'!$F$19/biopower_dollar_index)/'Mexico-IO-Data'!$AS34","v":0},{"$f":"(BP92*'Default-Data'!$F$19/biopower_dollar_index)/'Mexico-IO-Data'!$AS34","v":363.80240895765706},{"$f":"(BQ92*'Default-Data'!$F$19/biopower_dollar_index)/'Mexico-IO-Data'!$AS34","v":1036.3211099117786},181750.77504991397,544445.5366363565,{"$f":"BH92*'Mexico-IO-Data'!AQ34","v":0},{"$f":"BU92*'Mexico-IO-Data'!$AQ34","v":133665.04115095924},{"$f":"BV92*'Mexico-IO-Data'!$AQ34","v":400401.7866717159},{"$f":"BH92*'Mexico-IO-Data'!AR34","v":0},{"$f":"BU92*'Mexico-IO-Data'!$AR34","v":32694.85515061584},{"$f":"BV92*'Mexico-IO-Data'!$AR34","v":97939.433561350379},{"$f":"(BZ92*'Default-Data'!$F$19/biopower_dollar_index)/'Mexico-IO-Data'!$AS34","v":0},{"$f":"(CA92*'Default-Data'!$F$19/biopower_dollar_index)/'Mexico-IO-Data'!$AS34","v":22.716824637742313},{"$f":"(CB92*'Default-Data'!$F$19/biopower_dollar_index)/'Mexico-IO-Data'!$AS34","v":68.04963432575731},null,"TTL_C55: Hotels and restaurants",0,0,null,10498951.723563241,9272543.5201102737,{"$f":"CH92*'Philippines-IO-Data'!AN34","v":0},{"$f":"CK92*'Philippines-IO-Data'!$AN34","v":3935667.3599809129},{"$f":"CL92*'Philippines-IO-Data'!$AN34","v":3475932.4394450057},{"$f":"CH92*'Philippines-IO-Data'!AO34","v":0},{"$f":"CK92*'Philippines-IO-Data'!$AO34","v":1482597.268886731},{"$f":"CL92*'Philippines-IO-Data'!$AO34","v":1309411.4594026438},{"$f":"(CP92*'Default-Data'!$F$19/biopower_dollar_index)/'Philippines-IO-Data'!$AP34","v":0},{"$f":"(CQ92*'Default-Data'!$F$19/biopower_dollar_index)/'Philippines-IO-Data'!$AP34","v":459.2762523617011},{"$f":"(CR92*'Default-Data'!$F$19/biopower_dollar_index)/'Philippines-IO-Data'!$AP34","v":405.62707115026865},152506.56898564185,922531.76558402053,{"$f":"CI92*'Philippines-IO-Data'!AN34","v":0},{"$f":"CV92*'Philippines-IO-Data'!$AN34","v":57169.052829567721},{"$f":"CW92*'Philippines-IO-Data'!$AN34","v":345822.92155948136},{"$f":"CI92*'Philippines-IO-Data'!AO34","v":0},{"$f":"CV92*'Philippines-IO-Data'!$AO34","v":21536.037941572737},{"$f":"CW92*'Philippines-IO-Data'!$AO34","v":130274.2513851587},{"$f":"(DA92*'Default-Data'!$F$19/biopower_dollar_index)/'Philippines-IO-Data'!$AP34","v":0},{"$f":"(DB92*'Default-Data'!$F$19/biopower_dollar_index)/'Philippines-IO-Data'!$AP34","v":6.6713941837704764},{"$f":"(DC92*'Default-Data'!$F$19/biopower_dollar_index)/'Philippines-IO-Data'!$AP34","v":40.356117747558677},null,"DOM_C55: Hotels and restaurants",0,0,null,4008935.0019267779,4693403.9907655586,{"$f":"DI92*'SouthAfrica-IO-Data'!AR34","v":0},{"$f":"DL92*'Mexico-IO-Data'!$AQ34","v":2948292.5828343933},{"$f":"DM92*'Mexico-IO-Data'!$AQ34","v":3451671.8698529243},{"$f":"DI92*'SouthAfrica-IO-Data'!AS34","v":0},{"$f":"DL92*'Mexico-IO-Data'!$AR34","v":721160.88176368899},{"$f":"DM92*'Mexico-IO-Data'!$AR34","v":844288.90935546474},{"$f":"(DQ92*'Default-Data'!$F$19/biopower_dollar_index)/'SouthAfrica-IO-Data'!$AT34","v":0},{"$f":"(DR92*'Default-Data'!$F$19/biopower_dollar_index)/'SouthAfrica-IO-Data'!$AT34","v":75.113585918247168},{"$f":"(DS92*'Default-Data'!$F$19/biopower_dollar_index)/'SouthAfrica-IO-Data'!$AT34","v":87.938169049878724},170173.24553098931,399110.48145339702,{"$f":"DJ92*'SouthAfrica-IO-Data'!AR34","v":0},{"$f":"DW92*'SouthAfrica-IO-Data'!$AR34","v":76418.520075935943},{"$f":"DX92*'SouthAfrica-IO-Data'!$AR34","v":179225.77808453911},{"$f":"DJ92*'SouthAfrica-IO-Data'!AS34","v":0},{"$f":"DW92*'SouthAfrica-IO-Data'!$AS34","v":29313.049382894562},{"$f":"DX92*'SouthAfrica-IO-Data'!$AS34","v":68748.440541106},{"$f":"(EB92*'Default-Data'!$F$19/biopower_dollar_index)/'SouthAfrica-IO-Data'!$AT34","v":0},{"$f":"(EC92*'Default-Data'!$F$19/biopower_dollar_index)/'SouthAfrica-IO-Data'!$AT34","v":3.0531443246936458},{"$f":"(ED92*'Default-Data'!$F$19/biopower_dollar_index)/'SouthAfrica-IO-Data'!$AT34","v":7.1605962357536734},null,"CONSTR",{"$f":"'Biopower-Inputs'!B21*'Biopower-Inputs'!C21","v":222363778.30382094},0,null,266290707.45217988,6859920.4596343637,{"$f":"EJ92*'Zambia-IO-Data'!BO32","v":13489883.55832454},{"$f":"EM92*'Zambia-IO-Data'!$BO32","v":16154747.250631895},{"$f":"EN92*'Zambia-IO-Data'!$BO32","v":416162.78031306324},{"$f":"EJ92*'Zambia-IO-Data'!BN32","v":5933540.899256302},{"$f":"EM92*'Zambia-IO-Data'!$BN32","v":7105684.279210927},{"$f":"EN92*'Zambia-IO-Data'!$BN32","v":183049.68067807905},{"$f":"(ER92*'Default-Data'!$F$19/biopower_dollar_index)/'Zambia-IO-Data'!$BP32","v":20558.358442477867},{"$f":"(ES92*'Default-Data'!$F$19/biopower_dollar_index)/'Zambia-IO-Data'!$BP32","v":24619.56643956187},{"$f":"(ET92*'Default-Data'!$F$19/biopower_dollar_index)/'Zambia-IO-Data'!$BP32","v":634.22516370161622},3098055.0964222029,611059.66881361976,{"$f":"EK92*'Zambia-IO-Data'!BO32","v":0},{"$f":"EX92*'Zambia-IO-Data'!$BO32","v":187946.08918232837},{"$f":"EY92*'Zambia-IO-Data'!$BO32","v":37070.443047704073},{"$f":"EK92*'Zambia-IO-Data'!BN32","v":0},{"$f":"EX92*'Zambia-IO-Data'!$BN32","v":82668.30489655651},{"$f":"EY92*'Zambia-IO-Data'!$BN32","v":16305.477287931662},{"$f":"(FC92*'Default-Data'!$F$19/biopower_dollar_index)/'Zambia-IO-Data'!$BP32","v":0},{"$f":"(FD92*'Default-Data'!$F$19/biopower_dollar_index)/'Zambia-IO-Data'!$BP32","v":286.42671766338913},{"$f":"(FE92*'Default-Data'!$F$19/biopower_dollar_index)/'Zambia-IO-Data'!$BP32","v":56.49473937274049},null,"TTL_C55: Hotels and restaurants",0,0,null,11982081.633545781,11303495.39542242,{"$f":"FK92*CustomRegion1!C30","v":0},{"$f":"FN92*CustomRegion1!$C30","v":4491637.7207388589},{"$f":"FO92*CustomRegion1!$C30","v":4237260.9240230108},{"$f":"FK92*CustomRegion1!D30","v":0},{"$f":"FN92*CustomRegion1!$D30","v":1692035.7358728482},{"$f":"FO92*CustomRegion1!$D30","v":1596209.9687071748},{"$f":"(FS92*'Default-Data'!$F$19/biopower_dollar_index)/CustomRegion1!$E30","v":0},{"$f":"(FT92*'Default-Data'!$F$19/biopower_dollar_index)/CustomRegion1!$E30","v":526.34591368966574},{"$f":"(FU92*'Default-Data'!$F$19/biopower_dollar_index)/CustomRegion1!$E30","v":496.5371455268521},258814.27707221577,1083997.1096492198,{"$f":"FL92*CustomRegion1!C30","v":0},{"$f":"FY92*CustomRegion1!$C30","v":97019.867258182872},{"$f":"FZ92*CustomRegion1!$C30","v":406350.2866848273},{"$f":"FL92*CustomRegion1!D30","v":0},{"$f":"FY92*CustomRegion1!$D30","v":36548.157419846764},{"$f":"FZ92*CustomRegion1!$D30","v":153075.3923403697},{"$f":"(GD92*'Default-Data'!$C$58/biopower_dollar_index)/CustomRegion1!$E30","v":0},{"$f":"(GE92*'Default-Data'!$C$58/biopower_dollar_index)/CustomRegion1!$E30","v":11.369129447434192},{"$f":"(GF92*'Default-Data'!$C$58/biopower_dollar_index)/CustomRegion1!$E30","v":47.617556495184218},null,"C45 Construction",0,0,null,1200206.951865044,767150.09851364233,{"$f":"GL92*CustomRegion2!C34","v":0},{"$f":"GO92*CustomRegion2!$C34","v":584851.90506329131},{"$f":"GP92*CustomRegion2!$C34","v":373826.52707351214},{"$f":"GL92*CustomRegion2!D34","v":0},{"$f":"GO92*CustomRegion2!$D34","v":241348.79488604786},{"$f":"GP92*CustomRegion2!$D34","v":154265.68850086076},{"$f":"(GT92*'Default-Data'!$C$59/biopower_dollar_index)/CustomRegion2!$E34","v":0},{"$f":"(GU92*'Default-Data'!$C$59/biopower_dollar_index)/CustomRegion2!$E34","v":81.845303550970442},{"$f":"(GV92*'Default-Data'!$C$59/biopower_dollar_index)/CustomRegion2!$E34","v":52.314005167557163},101124.11847919076,34736.697095006195,{"$f":"GM92*CustomRegion2!C34","v":0},{"$f":"GZ92*CustomRegion2!$C34","v":49277.029472706243},{"$f":"HA92*CustomRegion2!$C34","v":16926.933675939301},{"$f":"GM92*CustomRegion2!D34","v":0},{"$f":"GZ92*CustomRegion2!$D34","v":20334.979805725154},{"$f":"HA92*CustomRegion2!$D34","v":6985.1786553758575},{"$f":"(HE92*'Default-Data'!$C$59/biopower_dollar_index)/CustomRegion2!$E34","v":0},{"$f":"(HF92*'Default-Data'!$C$59/biopower_dollar_index)/CustomRegion2!$E34","v":6.8959225410188374},{"$f":"(HG92*'Default-Data'!$C$59/biopower_dollar_index)/CustomRegion2!$E34","v":2.3687877442144476},null,"CONSTR",222363778.30382094,0,null,266290707.45217988,6859920.4596343338,{"$f":"HM92*CustomRegion3!D33","v":13489883.55832454},{"$f":"HP92*CustomRegion3!$D33","v":16154747.250631895},{"$f":"HQ92*CustomRegion3!$D33","v":416162.78031306138},{"$f":"HM92*CustomRegion3!E33","v":5933540.899256302},{"$f":"HP92*CustomRegion3!$E33","v":7105684.279210927},{"$f":"HQ92*CustomRegion3!$E33","v":183049.68067807826},{"$f":"(HU92*'Default-Data'!$C$60/biopower_dollar_index)/CustomRegion3!$F33","v":20641.622484565723},{"$f":"(HV92*'Default-Data'!$C$60/biopower_dollar_index)/CustomRegion3!$F33","v":24719.278905513085},{"$f":"(HW92*'Default-Data'!$C$60/biopower_dollar_index)/CustomRegion3!$F33","v":636.79385861329081},3098055.0964222029,611059.66881361976,{"$f":"HN92*CustomRegion3!D33","v":0},{"$f":"IA92*CustomRegion3!$D33","v":187946.08918232837},{"$f":"IB92*CustomRegion3!$D33","v":37070.443047704073},{"$f":"HN92*CustomRegion3!E33","v":0},{"$f":"IA92*CustomRegion3!$E33","v":82668.30489655651},{"$f":"IB92*CustomRegion3!$E33","v":16305.477287931662},{"$f":"(IF92*'Default-Data'!$C$60/biopower_dollar_index)/CustomRegion3!$F33","v":0},{"$f":"(IG92*'Default-Data'!$C$60/biopower_dollar_index)/CustomRegion3!$F33","v":287.58678335352391},{"$f":"(IH92*'Default-Data'!$C$60/biopower_dollar_index)/CustomRegion3!$F33","v":56.723550460456273}]
[null,null,null,"Final Demand",null,null,"Indirect","Induced","Direct","Indirect","Induced","Direct","Indirect","Induced","Direct","Indirect","Induced",null,null,null,null,null,null,null,null,null,null,null,null,92,"TTL_C60T63: Transport and storage",0,{"$f":"'Biopower-Inputs'!B42*'Biopower-Inputs'!C42","v":0},null,26639562.667993668,19874416.004002821,{"$f":"'Colombia-IO-Data'!$AN35*Calculations!AF93","v":0},{"$f":"'Colombia-IO-Data'!$AN35*AI93","v":11620617.194909809},{"$f":"'Colombia-IO-Data'!$AN35*AJ93","v":8669548.4919647854},{"$f":"'Colombia-IO-Data'!$AO35*Calculations!AK93","v":0},{"$f":"'Colombia-IO-Data'!$AO35*Calculations!AL93","v":2939157.1131519433},{"$f":"'Colombia-IO-Data'!$AO35*Calculations!AM93","v":2192754.8847522093},{"$f":"(AN93*'Default-Data'!$F$19/biopower_dollar_index)/'Colombia-IO-Data'!$AP35","v":0},{"$f":"(AO93*'Default-Data'!$F$19/biopower_dollar_index)/'Colombia-IO-Data'!$AP35","v":655.34772872643612},{"$f":"(AP93*'Default-Data'!$F$19/biopower_dollar_index)/'Colombia-IO-Data'!$AP35","v":488.92144177862809},2653621.3351570703,1902474.7399741346,{"$f":"'Colombia-IO-Data'!$AN35*AG93","v":0},{"$f":"'Colombia-IO-Data'!$AN35*AT93","v":1157553.4516245951},{"$f":"'Colombia-IO-Data'!$AN35*AU93","v":829890.9014293527},{"$f":"'Colombia-IO-Data'!$AO35*AV93","v":0},{"$f":"'Colombia-IO-Data'!$AO35*AW93","v":292775.45281211875},{"$f":"'Colombia-IO-Data'!$AO35*AX93","v":209901.04958836408},{"$f":"(AY93*'Default-Data'!$F$19/biopower_dollar_index)/'Colombia-IO-Data'!$AP35","v":0},{"$f":"(AZ93*'Default-Data'!$F$19/biopower_dollar_index)/'Colombia-IO-Data'!$AP35","v":65.280527933913461},{"$f":"(BA93*'Default-Data'!$F$19/biopower_dollar_index)/'Colombia-IO-Data'!$AP35","v":46.801913204807363},null,"DOM_C60T63: Transport and storage",0,0,null,11249250.145590611,27190480.964924663,{"$f":"BG93*'Mexico-IO-Data'!AQ35","v":0},{"$f":"BJ93*'Mexico-IO-Data'!$AQ35","v":8222021.7384596197},{"$f":"BK93*'Mexico-IO-Data'!$AQ35","v":19873389.130777981},{"$f":"BG93*'Mexico-IO-Data'!AR35","v":0},{"$f":"BJ93*'Mexico-IO-Data'!$AR35","v":2652532.7154334118},{"$f":"BK93*'Mexico-IO-Data'!$AR35","v":6411417.5944520673},{"$f":"(BO93*'Default-Data'!$F$19/biopower_dollar_index)/'Mexico-IO-Data'!$AS35","v":0},{"$f":"(BP93*'Default-Data'!$F$19/biopower_dollar_index)/'Mexico-IO-Data'!$AS35","v":362.79230674240074},{"$f":"(BQ93*'Default-Data'!$F$19/biopower_dollar_index)/'Mexico-IO-Data'!$AS35","v":876.90265422419873},2243682.8874250925,1785452.6643407885,{"$f":"BH93*'Mexico-IO-Data'!AQ35","v":0},{"$f":"BU93*'Mexico-IO-Data'!$AQ35","v":1639896.8140867506},{"$f":"BV93*'Mexico-IO-Data'!$AQ35","v":1304978.5922801946},{"$f":"BH93*'Mexico-IO-Data'!AR35","v":0},{"$f":"BU93*'Mexico-IO-Data'!$AR35","v":529052.35326160444},{"$f":"BV93*'Mexico-IO-Data'!$AR35","v":421003.31513012532},{"$f":"(BZ93*'Default-Data'!$F$19/biopower_dollar_index)/'Mexico-IO-Data'!$AS35","v":0},{"$f":"(CA93*'Default-Data'!$F$19/biopower_dollar_index)/'Mexico-IO-Data'!$AS35","v":72.359568841702853},{"$f":"(CB93*'Default-Data'!$F$19/biopower_dollar_index)/'Mexico-IO-Data'!$AS35","v":57.581481635863462},null,"TTL_C60T63: Transport and storage",0,{"$f":"'Biopower-Inputs'!B42*'Biopower-Inputs'!C42","v":0},null,4186954.7117296485,7689715.0943456115,{"$f":"CH93*'Philippines-IO-Data'!AN35","v":0},{"$f":"CK93*'Philippines-IO-Data'!$AN35","v":1850734.5457415481},{"$f":"CL93*'Philippines-IO-Data'!$AN35","v":3399038.7648918489},{"$f":"CH93*'Philippines-IO-Data'!AO35","v":0},{"$f":"CK93*'Philippines-IO-Data'!$AO35","v":688715.2160499281},{"$f":"CL93*'Philippines-IO-Data'!$AO35","v":1264886.8108670851},{"$f":"(CP93*'Default-Data'!$F$19/biopower_dollar_index)/'Philippines-IO-Data'!$AP35","v":0},{"$f":"(CQ93*'Default-Data'!$F$19/biopower_dollar_index)/'Philippines-IO-Data'!$AP35","v":213.34893164170268},{"$f":"(CR93*'Default-Data'!$F$19/biopower_dollar_index)/'Philippines-IO-Data'!$AP35","v":391.83430750077912},369908.05308035674,765055.07118292665,{"$f":"CI93*'Philippines-IO-Data'!AN35","v":0},{"$f":"CV93*'Philippines-IO-Data'!$AN35","v":163508.24399077456},{"$f":"CW93*'Philippines-IO-Data'!$AN35","v":338172.71671612648},{"$f":"CI93*'Philippines-IO-Data'!AO35","v":0},{"$f":"CV93*'Philippines-IO-Data'!$AO35","v":60846.443832348785},{"$f":"CW93*'Philippines-IO-Data'!$AO35","v":125844.46331930248},{"$f":"(DA93*'Default-Data'!$F$19/biopower_dollar_index)/'Philippines-IO-Data'!$AP35","v":0},{"$f":"(DB93*'Default-Data'!$F$19/biopower_dollar_index)/'Philippines-IO-Data'!$AP35","v":18.848899346645759},{"$f":"(DC93*'Default-Data'!$F$19/biopower_dollar_index)/'Philippines-IO-Data'!$AP35","v":38.98386615615334},null,"DOM_C60T63: Transport and storage",0,0,null,42847689.932082936,33524610.15950416,{"$f":"DI93*'SouthAfrica-IO-Data'!AR35","v":0},{"$f":"DL93*'Mexico-IO-Data'!$AQ35","v":31317166.344856583},{"$f":"DM93*'Mexico-IO-Data'!$AQ35","v":24502973.081532065},{"$f":"DI93*'SouthAfrica-IO-Data'!AS35","v":0},{"$f":"DL93*'Mexico-IO-Data'!$AR35","v":10103331.142489202},{"$f":"DM93*'Mexico-IO-Data'!$AR35","v":7904982.4716621013},{"$f":"(DQ93*'Default-Data'!$F$19/biopower_dollar_index)/'SouthAfrica-IO-Data'!$AT35","v":0},{"$f":"(DR93*'Default-Data'!$F$19/biopower_dollar_index)/'SouthAfrica-IO-Data'!$AT35","v":566.0900513427024},{"$f":"(DS93*'Default-Data'!$F$19/biopower_dollar_index)/'SouthAfrica-IO-Data'!$AT35","v":442.91648666519433},6492974.2583720526,2850814.318908588,{"$f":"DJ93*'SouthAfrica-IO-Data'!AR35","v":0},{"$f":"DW93*'SouthAfrica-IO-Data'!$AR35","v":3433539.1388388439},{"$f":"DX93*'SouthAfrica-IO-Data'!$AR35","v":1507534.4752697395},{"$f":"DJ93*'SouthAfrica-IO-Data'!AS35","v":0},{"$f":"DW93*'SouthAfrica-IO-Data'!$AS35","v":1196074.9085419783},{"$f":"DX93*'SouthAfrica-IO-Data'!$AS35","v":525150.31479790108},{"$f":"(EB93*'Default-Data'!$F$19/biopower_dollar_index)/'SouthAfrica-IO-Data'!$AT35","v":0},{"$f":"(EC93*'Default-Data'!$F$19/biopower_dollar_index)/'SouthAfrica-IO-Data'!$AT35","v":67.016125358772499},{"$f":"(ED93*'Default-Data'!$F$19/biopower_dollar_index)/'SouthAfrica-IO-Data'!$AT35","v":29.424193315447184},null,"TRADETRANS",0,{"$f":"'Biopower-Inputs'!B41*'Biopower-Inputs'!B39*0.1+'Biopower-Inputs'!B42*'Biopower-Inputs'!C42","v":1493970.0886627771},null,31821444.110181887,24857877.391185258,{"$f":"EJ93*'Zambia-IO-Data'!BO33","v":0},{"$f":"EM93*'Zambia-IO-Data'!$BO33","v":7193918.9103211099},{"$f":"EN93*'Zambia-IO-Data'!$BO33","v":5619655.5258682463},{"$f":"EJ93*'Zambia-IO-Data'!BN33","v":0},{"$f":"EM93*'Zambia-IO-Data'!$BN33","v":2648499.4868041249},{"$f":"EN93*'Zambia-IO-Data'!$BN33","v":2068921.6770186897},{"$f":"(ER93*'Default-Data'!$F$19/biopower_dollar_index)/'Zambia-IO-Data'!$BP33","v":0},{"$f":"(ES93*'Default-Data'!$F$19/biopower_dollar_index)/'Zambia-IO-Data'!$BP33","v":6567.6393254581926},{"$f":"(ET93*'Default-Data'!$F$19/biopower_dollar_index)/'Zambia-IO-Data'!$BP33","v":5130.426279099288},4853976.3299968131,2322485.6798018962,{"$f":"EK93*'Zambia-IO-Data'!BO33","v":337743.9325214781},{"$f":"EX93*'Zambia-IO-Data'!$BO33","v":1097345.2992801822},{"$f":"EY93*'Zambia-IO-Data'!$BO33","v":525047.62489804369},{"$f":"EK93*'Zambia-IO-Data'!BN33","v":124343.16303885248},{"$f":"EX93*'Zambia-IO-Data'!$BN33","v":403996.55573275767},{"$f":"EY93*'Zambia-IO-Data'!$BN33","v":193300.53374595553},{"$f":"(FC93*'Default-Data'!$F$19/biopower_dollar_index)/'Zambia-IO-Data'!$BP33","v":308.34102535970152},{"$f":"(FD93*'Default-Data'!$F$19/biopower_dollar_index)/'Zambia-IO-Data'!$BP33","v":1001.8139252055487},{"$f":"(FE93*'Default-Data'!$F$19/biopower_dollar_index)/'Zambia-IO-Data'!$BP33","v":479.3386569970238},null,"TTL_C60T63: Transport and storage",0,0,null,10102739.399238687,13649087.680263679,{"$f":"FK93*CustomRegion1!C31","v":0},{"$f":"FN93*CustomRegion1!$C31","v":4465653.4641787997},{"$f":"FO93*CustomRegion1!$C31","v":6033224.5813291837},{"$f":"FK93*CustomRegion1!D31","v":0},{"$f":"FN93*CustomRegion1!$D31","v":1661806.9282073632},{"$f":"FO93*CustomRegion1!$D31","v":2245148.3280347912},{"$f":"(FS93*'Default-Data'!$F$19/biopower_dollar_index)/CustomRegion1!$E31","v":0},{"$f":"(FT93*'Default-Data'!$F$19/biopower_dollar_index)/CustomRegion1!$E31","v":516.94256064391516},{"$f":"(FU93*'Default-Data'!$F$19/biopower_dollar_index)/CustomRegion1!$E31","v":698.40407210944443},833927.25389958208,1308937.7291865284,{"$f":"FL93*CustomRegion1!C31","v":0},{"$f":"FY93*CustomRegion1!$C31","v":368615.87566342793},{"$f":"FZ93*CustomRegion1!$C31","v":578581.91464155097},{"$f":"FL93*CustomRegion1!D31","v":0},{"$f":"FY93*CustomRegion1!$D31","v":137173.29858629216},{"$f":"FZ93*CustomRegion1!$D31","v":215308.11604604023},{"$f":"(GD93*'Default-Data'!$C$58/biopower_dollar_index)/CustomRegion1!$E31","v":0},{"$f":"(GE93*'Default-Data'!$C$58/biopower_dollar_index)/CustomRegion1!$E31","v":42.67085124001953},{"$f":"(GF93*'Default-Data'!$C$58/biopower_dollar_index)/CustomRegion1!$E31","v":66.97645012006403},null,"C50T52 Wholesale and retail trade; repairs",0,0,null,52471566.89902027,55262739.492091432,{"$f":"GL93*CustomRegion2!C35","v":0},{"$f":"GO93*CustomRegion2!$C35","v":38496422.842811592},{"$f":"GP93*CustomRegion2!$C35","v":40544201.606059097},{"$f":"GL93*CustomRegion2!D35","v":0},{"$f":"GO93*CustomRegion2!$D35","v":9375779.2205769457},{"$f":"GP93*CustomRegion2!$D35","v":9874514.4317728039},{"$f":"(GT93*'Default-Data'!$C$59/biopower_dollar_index)/CustomRegion2!$E35","v":0},{"$f":"(GU93*'Default-Data'!$C$59/biopower_dollar_index)/CustomRegion2!$E35","v":1909.5432133662323},{"$f":"(GV93*'Default-Data'!$C$59/biopower_dollar_index)/CustomRegion2!$E35","v":2011.119457366912},2958748.0736938897,2502306.9749926911,{"$f":"GM93*CustomRegion2!C35","v":0},{"$f":"GZ93*CustomRegion2!$C35","v":2170722.6153446729},{"$f":"HA93*CustomRegion2!$C35","v":1835848.8813040201},{"$f":"GM93*CustomRegion2!D35","v":0},{"$f":"GZ93*CustomRegion2!$D35","v":528678.10792932881},{"$f":"HA93*CustomRegion2!$D35","v":447119.82367119443},{"$f":"(HE93*'Default-Data'!$C$59/biopower_dollar_index)/CustomRegion2!$E35","v":0},{"$f":"(HF93*'Default-Data'!$C$59/biopower_dollar_index)/CustomRegion2!$E35","v":107.67464434701438},{"$f":"(HG93*'Default-Data'!$C$59/biopower_dollar_index)/CustomRegion2!$E35","v":91.063857708916586},null,"TRADETRANS",0,1493970.0886627771,null,31821444.110181887,24857877.391185258,{"$f":"HM93*CustomRegion3!D34","v":0},{"$f":"HP93*CustomRegion3!$D34","v":7193918.9103211099},{"$f":"HQ93*CustomRegion3!$D34","v":5619655.5258682463},{"$f":"HM93*CustomRegion3!E34","v":0},{"$f":"HP93*CustomRegion3!$E34","v":2648499.4868041249},{"$f":"HQ93*CustomRegion3!$E34","v":2068921.6770186897},{"$f":"(HU93*'Default-Data'!$C$60/biopower_dollar_index)/CustomRegion3!$F34","v":0},{"$f":"(HV93*'Default-Data'!$C$60/biopower_dollar_index)/CustomRegion3!$F34","v":6594.2391242088015},{"$f":"(HW93*'Default-Data'!$C$60/biopower_dollar_index)/CustomRegion3!$F34","v":5151.205176929423},4853976.3299968131,2322485.6798018962,{"$f":"HN93*CustomRegion3!D34","v":337743.9325214781},{"$f":"IA93*CustomRegion3!$D34","v":1097345.2992801822},{"$f":"IB93*CustomRegion3!$D34","v":525047.62489804369},{"$f":"HN93*CustomRegion3!E34","v":124343.16303885248},{"$f":"IA93*CustomRegion3!$E34","v":403996.55573275767},{"$f":"IB93*CustomRegion3!$E34","v":193300.53374595553},{"$f":"(IF93*'Default-Data'!$C$60/biopower_dollar_index)/CustomRegion3!$F34","v":309.58984686385014},{"$f":"(IG93*'Default-Data'!$C$60/biopower_dollar_index)/CustomRegion3!$F34","v":1005.8714027062891},{"$f":"(IH93*'Default-Data'!$C$60/biopower_dollar_index)/CustomRegion3!$F34","v":481.28004128712689}]
[null,306,"Agriculture",{"$f":"HLOOKUP(general_country&D$1,$AF$2:$IK$320,$B94,FALSE)","v":0},null,null,{"$f":"HLOOKUP(general_country&G$1,$AF$2:$IK$320,$B94,FALSE)","v":738.78799823583245},8262.0722551871713,0,450.56866797935197,5038.8350916070558,0,74.224313943769587,830.07120629937913,0,7.3052670436000749E-2,0.81696839014424016,null,null,null,null,null,null,null,null,null,null,null,null,93,"TTL_C64: Post and telecommunications",0,0,null,9827302.3140018377,12030211.342198959,{"$f":"'Colombia-IO-Data'!$AN36*Calculations!AF94","v":0},{"$f":"'Colombia-IO-Data'!$AN36*AI94","v":5372882.9240325168},{"$f":"'Colombia-IO-Data'!$AN36*AJ94","v":6577279.8096288424},{"$f":"'Colombia-IO-Data'!$AO36*Calculations!AK94","v":0},{"$f":"'Colombia-IO-Data'!$AO36*Calculations!AL94","v":1304172.1393374847},{"$f":"'Colombia-IO-Data'!$AO36*Calculations!AM94","v":1596518.1452170755},{"$f":"(AN94*'Default-Data'!$F$19/biopower_dollar_index)/'Colombia-IO-Data'!$AP36","v":0},{"$f":"(AO94*'Default-Data'!$F$19/biopower_dollar_index)/'Colombia-IO-Data'!$AP36","v":290.79297787744144},{"$f":"(AP94*'Default-Data'!$F$19/biopower_dollar_index)/'Colombia-IO-Data'!$AP36","v":355.97775146376273},557044.19464877388,1151589.7217042379,{"$f":"'Colombia-IO-Data'!$AN36*AG94","v":0},{"$f":"'Colombia-IO-Data'!$AN36*AT94","v":304552.88193338091},{"$f":"'Colombia-IO-Data'!$AN36*AU94","v":629608.87469803146},{"$f":"'Colombia-IO-Data'!$AO36*AV94","v":0},{"$f":"'Colombia-IO-Data'!$AO36*AW94","v":73924.816376670773},{"$f":"'Colombia-IO-Data'!$AO36*AX94","v":152826.39965743438},{"$f":"(AY94*'Default-Data'!$F$19/biopower_dollar_index)/'Colombia-IO-Data'!$AP36","v":0},{"$f":"(AZ94*'Default-Data'!$F$19/biopower_dollar_index)/'Colombia-IO-Data'!$AP36","v":16.483113574359486},{"$f":"(BA94*'Default-Data'!$F$19/biopower_dollar_index)/'Colombia-IO-Data'!$AP36","v":34.075903413524188},null,"DOM_C64: Post and telecommunications",0,0,null,8727166.6447447538,10597759.07834024,{"$f":"BG94*'Mexico-IO-Data'!AQ36","v":0},{"$f":"BJ94*'Mexico-IO-Data'!$AQ36","v":5324800.7950819489},{"$f":"BK94*'Mexico-IO-Data'!$AQ36","v":6466125.6354505541},{"$f":"BG94*'Mexico-IO-Data'!AR36","v":0},{"$f":"BJ94*'Mexico-IO-Data'!$AR36","v":1361219.2899272367},{"$f":"BK94*'Mexico-IO-Data'!$AR36","v":1652984.8316950691},{"$f":"(BO94*'Default-Data'!$F$19/biopower_dollar_index)/'Mexico-IO-Data'!$AS36","v":0},{"$f":"(BP94*'Default-Data'!$F$19/biopower_dollar_index)/'Mexico-IO-Data'!$AS36","v":109.87233606534026},{"$f":"(BQ94*'Default-Data'!$F$19/biopower_dollar_index)/'Mexico-IO-Data'!$AS36","v":133.42251779918487},327505.76464484225,695897.84773844969,{"$f":"BH94*'Mexico-IO-Data'!AQ36","v":0},{"$f":"BU94*'Mexico-IO-Data'!$AQ36","v":199824.6426318564},{"$f":"BV94*'Mexico-IO-Data'!$AQ36","v":424595.69798233069},{"$f":"BH94*'Mexico-IO-Data'!AR36","v":0},{"$f":"BU94*'Mexico-IO-Data'!$AR36","v":51082.69184539761},{"$f":"BV94*'Mexico-IO-Data'!$AR36","v":108542.62473959323},{"$f":"(BZ94*'Default-Data'!$F$19/biopower_dollar_index)/'Mexico-IO-Data'!$AS36","v":0},{"$f":"(CA94*'Default-Data'!$F$19/biopower_dollar_index)/'Mexico-IO-Data'!$AS36","v":4.1231965540686391},{"$f":"(CB94*'Default-Data'!$F$19/biopower_dollar_index)/'Mexico-IO-Data'!$AS36","v":8.7611392455657846},null,"TTL_C64: Post and telecommunications",0,0,null,4828994.3861495554,6807594.1109693032,{"$f":"CH94*'Philippines-IO-Data'!AN36","v":0},{"$f":"CK94*'Philippines-IO-Data'!$AN36","v":2924911.4592194897},{"$f":"CL94*'Philippines-IO-Data'!$AN36","v":4123345.0347342277},{"$f":"CH94*'Philippines-IO-Data'!AO36","v":0},{"$f":"CK94*'Philippines-IO-Data'!$AO36","v":518653.9724371098},{"$f":"CL94*'Philippines-IO-Data'!$AO36","v":731163.76745449263},{"$f":"(CP94*'Default-Data'!$F$19/biopower_dollar_index)/'Philippines-IO-Data'!$AP36","v":0},{"$f":"(CQ94*'Default-Data'!$F$19/biopower_dollar_index)/'Philippines-IO-Data'!$AP36","v":130.79268114462465},{"$f":"(CR94*'Default-Data'!$F$19/biopower_dollar_index)/'Philippines-IO-Data'!$AP36","v":184.38279582014346},140342.06666371302,677292.24467389751,{"$f":"CI94*'Philippines-IO-Data'!AN36","v":0},{"$f":"CV94*'Philippines-IO-Data'!$AN36","v":85004.886353273716},{"$f":"CW94*'Philippines-IO-Data'!$AN36","v":410234.44826713874},{"$f":"CI94*'Philippines-IO-Data'!AO36","v":0},{"$f":"CV94*'Philippines-IO-Data'!$AO36","v":15073.318491307549},{"$f":"CW94*'Philippines-IO-Data'!$AO36","v":72743.988729516946},{"$f":"(DA94*'Default-Data'!$F$19/biopower_dollar_index)/'Philippines-IO-Data'!$AP36","v":0},{"$f":"(DB94*'Default-Data'!$F$19/biopower_dollar_index)/'Philippines-IO-Data'!$AP36","v":3.801146513852292},{"$f":"(DC94*'Default-Data'!$F$19/biopower_dollar_index)/'Philippines-IO-Data'!$AP36","v":18.344371833075201},null,"DOM_C64: Post and telecommunications",0,0,null,32363836.27818593,19095391.07196391,{"$f":"DI94*'SouthAfrica-IO-Data'!AR36","v":0},{"$f":"DL94*'Mexico-IO-Data'!$AQ36","v":19746498.280717395},{"$f":"DM94*'Mexico-IO-Data'!$AQ36","v":11650877.965487506},{"$f":"DI94*'SouthAfrica-IO-Data'!AS36","v":0},{"$f":"DL94*'Mexico-IO-Data'!$AR36","v":5047947.4073572094},{"$f":"DM94*'Mexico-IO-Data'!$AR36","v":2978402.4682872128},{"$f":"(DQ94*'Default-Data'!$F$19/biopower_dollar_index)/'SouthAfrica-IO-Data'!$AT36","v":0},{"$f":"(DR94*'Default-Data'!$F$19/biopower_dollar_index)/'SouthAfrica-IO-Data'!$AT36","v":282.8366967988012},{"$f":"(DS94*'Default-Data'!$F$19/biopower_dollar_index)/'SouthAfrica-IO-Data'!$AT36","v":166.88001040580977},884276.27447670954,1623804.5434118484,{"$f":"DJ94*'SouthAfrica-IO-Data'!AR36","v":0},{"$f":"DW94*'SouthAfrica-IO-Data'!$AR36","v":359087.90414915903},{"$f":"DX94*'SouthAfrica-IO-Data'!$AR36","v":659396.37539941759},{"$f":"DJ94*'SouthAfrica-IO-Data'!AS36","v":0},{"$f":"DW94*'SouthAfrica-IO-Data'!$AS36","v":117509.50409212406},{"$f":"DX94*'SouthAfrica-IO-Data'!$AS36","v":215783.76820273939},{"$f":"(EB94*'Default-Data'!$F$19/biopower_dollar_index)/'SouthAfrica-IO-Data'!$AT36","v":0},{"$f":"(EC94*'Default-Data'!$F$19/biopower_dollar_index)/'SouthAfrica-IO-Data'!$AT36","v":6.5840622529944062},{"$f":"(ED94*'Default-Data'!$F$19/biopower_dollar_index)/'SouthAfrica-IO-Data'!$AT36","v":12.090373234140591},null,"TOURISM",0,0,null,107011.20539113373,83292.234931796382,{"$f":"EJ94*'Zambia-IO-Data'!BO34","v":0},{"$f":"EM94*'Zambia-IO-Data'!$BO34","v":46772.348527556431},{"$f":"EN94*'Zambia-IO-Data'!$BO34","v":36405.285106636788},{"$f":"EJ94*'Zambia-IO-Data'!BN34","v":0},{"$f":"EM94*'Zambia-IO-Data'!$BN34","v":32779.904785538682},{"$f":"EN94*'Zambia-IO-Data'!$BN34","v":25514.258254166161},{"$f":"(ER94*'Default-Data'!$F$19/biopower_dollar_index)/'Zambia-IO-Data'!$BP34","v":0},{"$f":"(ES94*'Default-Data'!$F$19/biopower_dollar_index)/'Zambia-IO-Data'!$BP34","v":94.681790401398814},{"$f":"(ET94*'Default-Data'!$F$19/biopower_dollar_index)/'Zambia-IO-Data'!$BP34","v":73.695627491079719},20033.440227779258,7743.8469842753075,{"$f":"EK94*'Zambia-IO-Data'!BO34","v":0},{"$f":"EX94*'Zambia-IO-Data'!$BO34","v":8756.1956256339454},{"$f":"EY94*'Zambia-IO-Data'!$BO34","v":3384.6727430901446},{"$f":"EK94*'Zambia-IO-Data'!BN34","v":0},{"$f":"EX94*'Zambia-IO-Data'!$BN34","v":6136.6869085636326},{"$f":"EY94*'Zambia-IO-Data'!$BN34","v":2372.1120221990996},{"$f":"(FC94*'Default-Data'!$F$19/biopower_dollar_index)/'Zambia-IO-Data'!$BP34","v":0},{"$f":"(FD94*'Default-Data'!$F$19/biopower_dollar_index)/'Zambia-IO-Data'!$BP34","v":17.725265141464373},{"$f":"(FE94*'Default-Data'!$F$19/biopower_dollar_index)/'Zambia-IO-Data'!$BP34","v":6.8516310454195413},null,"TTL_C64: Post and telecommunications",0,0,null,6238793.4827429522,8760060.9115296528,{"$f":"FK94*CustomRegion1!C32","v":0},{"$f":"FN94*CustomRegion1!$C32","v":3778823.7239863272},{"$f":"FO94*CustomRegion1!$C32","v":5305949.9545254344},{"$f":"FK94*CustomRegion1!D32","v":0},{"$f":"FN94*CustomRegion1!$D32","v":670072.22711216682},{"$f":"FO94*CustomRegion1!$D32","v":940866.7783063337},{"$f":"(FS94*'Default-Data'!$F$19/biopower_dollar_index)/CustomRegion1!$E32","v":0},{"$f":"(FT94*'Default-Data'!$F$19/biopower_dollar_index)/CustomRegion1!$E32","v":169.68297972433558},{"$f":"(FU94*'Default-Data'!$F$19/biopower_dollar_index)/CustomRegion1!$E32","v":238.25652221805944},226997.3983139029,840083.56497361057,{"$f":"FL94*CustomRegion1!C32","v":0},{"$f":"FY94*CustomRegion1!$C32","v":137491.83338163915},{"$f":"FZ94*CustomRegion1!$C32","v":508836.79901158926},{"$f":"FL94*CustomRegion1!D32","v":0},{"$f":"FY94*CustomRegion1!$D32","v":24380.459564433299},{"$f":"FZ94*CustomRegion1!$D32","v":90228.449923734865},{"$f":"(GD94*'Default-Data'!$C$58/biopower_dollar_index)/CustomRegion1!$E32","v":0},{"$f":"(GE94*'Default-Data'!$C$58/biopower_dollar_index)/CustomRegion1!$E32","v":6.1738852299115115},{"$f":"(GF94*'Default-Data'!$C$58/biopower_dollar_index)/CustomRegion1!$E32","v":22.848629773763886},null,"C55 Hotels and restaurants",0,0,null,4067949.3430664307,13729967.201103918,{"$f":"GL94*CustomRegion2!C36","v":0},{"$f":"GO94*CustomRegion2!$C36","v":2925410.7004523114},{"$f":"GP94*CustomRegion2!$C36","v":9873720.0440877657},{"$f":"GL94*CustomRegion2!D36","v":0},{"$f":"GO94*CustomRegion2!$D36","v":808280.29652916861},{"$f":"GP94*CustomRegion2!$D36","v":2728072.8014864093},{"$f":"(GT94*'Default-Data'!$C$59/biopower_dollar_index)/CustomRegion2!$E36","v":0},{"$f":"(GU94*'Default-Data'!$C$59/biopower_dollar_index)/CustomRegion2!$E36","v":561.60400986054287},{"$f":"(GV94*'Default-Data'!$C$59/biopower_dollar_index)/CustomRegion2!$E36","v":1895.501636109675},63311.288652685107,621695.43184988003,{"$f":"GM94*CustomRegion2!C36","v":0},{"$f":"GZ94*CustomRegion2!$C36","v":45529.456161904192},{"$f":"HA94*CustomRegion2!$C36","v":447083.85365118837},{"$f":"GM94*CustomRegion2!D36","v":0},{"$f":"GZ94*CustomRegion2!$D36","v":12579.622519896368},{"$f":"HA94*CustomRegion2!$D36","v":123527.6365628638},{"$f":"(HE94*'Default-Data'!$C$59/biopower_dollar_index)/CustomRegion2!$E36","v":0},{"$f":"(HF94*'Default-Data'!$C$59/biopower_dollar_index)/CustomRegion2!$E36","v":8.7404907431772827},{"$f":"(HG94*'Default-Data'!$C$59/biopower_dollar_index)/CustomRegion2!$E36","v":85.828661567276768},null,"TOURISM",0,0,null,107011.20539113373,83292.234931796382,{"$f":"HM94*CustomRegion3!D35","v":0},{"$f":"HP94*CustomRegion3!$D35","v":46772.348527556431},{"$f":"HQ94*CustomRegion3!$D35","v":36405.285106636788},{"$f":"HM94*CustomRegion3!E35","v":0},{"$f":"HP94*CustomRegion3!$E35","v":32779.904785538682},{"$f":"HQ94*CustomRegion3!$E35","v":25514.258254166161},{"$f":"(HU94*'Default-Data'!$C$60/biopower_dollar_index)/CustomRegion3!$F35","v":0},{"$f":"(HV94*'Default-Data'!$C$60/biopower_dollar_index)/CustomRegion3!$F35","v":95.065264043177834},{"$f":"(HW94*'Default-Data'!$C$60/biopower_dollar_index)/CustomRegion3!$F35","v":73.994104426690953},20033.440227779258,7743.8469842753075,{"$f":"HN94*CustomRegion3!D35","v":0},{"$f":"IA94*CustomRegion3!$D35","v":8756.1956256339454},{"$f":"IB94*CustomRegion3!$D35","v":3384.6727430901446},{"$f":"HN94*CustomRegion3!E35","v":0},{"$f":"IA94*CustomRegion3!$E35","v":6136.6869085636326},{"$f":"IB94*CustomRegion3!$E35","v":2372.1120221990996},{"$f":"(IF94*'Default-Data'!$C$60/biopower_dollar_index)/CustomRegion3!$F35","v":0},{"$f":"(IG94*'Default-Data'!$C$60/biopower_dollar_index)/CustomRegion3!$F35","v":17.797054784926754},{"$f":"(IH94*'Default-Data'!$C$60/biopower_dollar_index)/CustomRegion3!$F35","v":6.8793810478009334}]
[null,307,"Mining and Extraction",0,null,null,285749.46235393884,4563.129297245061,0,246009.52639316896,3928.5227976932974,0,15267.815927069496,243.81154591801544,0,0.822718116582832,1.3137974469758963E-2,null,null,null,null,null,null,null,null,null,null,null,null,94,"TTL_C65T67: Financial intermediation",0,0,null,20362947.515695151,17911098.722486515,{"$f":"'Colombia-IO-Data'!$AN37*Calculations!AF95","v":0},{"$f":"'Colombia-IO-Data'!$AN37*AI95","v":13567429.592837255},{"$f":"'Colombia-IO-Data'!$AN37*AJ95","v":11933811.186243551},{"$f":"'Colombia-IO-Data'!$AO37*Calculations!AK95","v":0},{"$f":"'Colombia-IO-Data'!$AO37*Calculations!AL95","v":4830033.1216206644},{"$f":"'Colombia-IO-Data'!$AO37*Calculations!AM95","v":4248461.5750026945},{"$f":"(AN95*'Default-Data'!$F$19/biopower_dollar_index)/'Colombia-IO-Data'!$AP37","v":0},{"$f":"(AO95*'Default-Data'!$F$19/biopower_dollar_index)/'Colombia-IO-Data'!$AP37","v":676.58601010844541},{"$f":"(AP95*'Default-Data'!$F$19/biopower_dollar_index)/'Colombia-IO-Data'!$AP37","v":595.12007345523648},2714324.2650390347,1714536.5618718374,{"$f":"'Colombia-IO-Data'!$AN37*AG95","v":0},{"$f":"'Colombia-IO-Data'!$AN37*AT95","v":1808500.6274097669},{"$f":"'Colombia-IO-Data'!$AN37*AU95","v":1142361.8348773855},{"$f":"'Colombia-IO-Data'!$AO37*AV95","v":0},{"$f":"'Colombia-IO-Data'!$AO37*AW95","v":643829.98054933816},{"$f":"'Colombia-IO-Data'!$AO37*AX95","v":406683.18649290031},{"$f":"(AY95*'Default-Data'!$F$19/biopower_dollar_index)/'Colombia-IO-Data'!$AP37","v":0},{"$f":"(AZ95*'Default-Data'!$F$19/biopower_dollar_index)/'Colombia-IO-Data'!$AP37","v":90.187033247902832},{"$f":"(BA95*'Default-Data'!$F$19/biopower_dollar_index)/'Colombia-IO-Data'!$AP37","v":56.96775728011874},null,"DOM_C65T67: Financial intermediation",0,0,null,19825543.175343946,16539910.254399493,{"$f":"BG95*'Mexico-IO-Data'!AQ37","v":0},{"$f":"BJ95*'Mexico-IO-Data'!$AQ37","v":13477262.76165765},{"$f":"BK95*'Mexico-IO-Data'!$AQ37","v":11243712.950573955},{"$f":"BG95*'Mexico-IO-Data'!AR37","v":0},{"$f":"BJ95*'Mexico-IO-Data'!$AR37","v":3660240.9338371065},{"$f":"BK95*'Mexico-IO-Data'!$AR37","v":3053639.238012698},{"$f":"(BO95*'Default-Data'!$F$19/biopower_dollar_index)/'Mexico-IO-Data'!$AS37","v":0},{"$f":"(BP95*'Default-Data'!$F$19/biopower_dollar_index)/'Mexico-IO-Data'!$AS37","v":276.75645828495084},{"$f":"(BQ95*'Default-Data'!$F$19/biopower_dollar_index)/'Mexico-IO-Data'!$AS37","v":230.89036915020765},1024355.0538119961,1086086.9607187146,{"$f":"BH95*'Mexico-IO-Data'!AQ37","v":0},{"$f":"BU95*'Mexico-IO-Data'!$AQ37","v":696349.25506734452},{"$f":"BV95*'Mexico-IO-Data'!$AQ37","v":738314.16482047166},{"$f":"BH95*'Mexico-IO-Data'!AR37","v":0},{"$f":"BU95*'Mexico-IO-Data'!$AR37","v":189118.96968394326},{"$f":"BV95*'Mexico-IO-Data'!$AR37","v":200516.06738691061},{"$f":"(BZ95*'Default-Data'!$F$19/biopower_dollar_index)/'Mexico-IO-Data'!$AS37","v":0},{"$f":"(CA95*'Default-Data'!$F$19/biopower_dollar_index)/'Mexico-IO-Data'!$AS37","v":14.299576773859563},{"$f":"(CB95*'Default-Data'!$F$19/biopower_dollar_index)/'Mexico-IO-Data'!$AS37","v":15.161328896743495},null,"TTL_C65T67: Financial intermediation",0,0,null,13309693.760162005,21452817.637779765,{"$f":"CH95*'Philippines-IO-Data'!AN37","v":0},{"$f":"CK95*'Philippines-IO-Data'!$AN37","v":8488845.1050171386},{"$f":"CL95*'Philippines-IO-Data'!$AN37","v":13682482.052169729},{"$f":"CH95*'Philippines-IO-Data'!AO37","v":0},{"$f":"CK95*'Philippines-IO-Data'!$AO37","v":1859794.4218008516},{"$f":"CL95*'Philippines-IO-Data'!$AO37","v":2997652.0341943684},{"$f":"(CP95*'Default-Data'!$F$19/biopower_dollar_index)/'Philippines-IO-Data'!$AP37","v":0},{"$f":"(CQ95*'Default-Data'!$F$19/biopower_dollar_index)/'Philippines-IO-Data'!$AP37","v":468.99765880930505},{"$f":"(CR95*'Default-Data'!$F$19/biopower_dollar_index)/'Philippines-IO-Data'!$AP37","v":755.93934979156188},1135448.1772365707,2134355.6586399944,{"$f":"CI95*'Philippines-IO-Data'!AN37","v":0},{"$f":"CV95*'Philippines-IO-Data'!$AN37","v":724182.22951043874},{"$f":"CW95*'Philippines-IO-Data'!$AN37","v":1361279.5990424962},{"$f":"CI95*'Philippines-IO-Data'!AO37","v":0},{"$f":"CV95*'Philippines-IO-Data'!$AO37","v":158658.81096296653},{"$f":"CW95*'Philippines-IO-Data'!$AO37","v":298238.47337186424},{"$f":"(DA95*'Default-Data'!$F$19/biopower_dollar_index)/'Philippines-IO-Data'!$AP37","v":0},{"$f":"(DB95*'Default-Data'!$F$19/biopower_dollar_index)/'Philippines-IO-Data'!$AP37","v":40.010126935990641},{"$f":"(DC95*'Default-Data'!$F$19/biopower_dollar_index)/'Philippines-IO-Data'!$AP37","v":75.208928545352592},null,"DOM_C65T67: Financial intermediation",0,0,null,51429193.716446802,54239442.823349014,{"$f":"DI95*'SouthAfrica-IO-Data'!AR37","v":0},{"$f":"DL95*'Mexico-IO-Data'!$AQ37","v":34961198.85374698},{"$f":"DM95*'Mexico-IO-Data'!$AQ37","v":36871586.140716121},{"$f":"DI95*'SouthAfrica-IO-Data'!AS37","v":0},{"$f":"DL95*'Mexico-IO-Data'!$AR37","v":9494985.250607688},{"$f":"DM95*'Mexico-IO-Data'!$AR37","v":10013820.408080451},{"$f":"(DQ95*'Default-Data'!$F$19/biopower_dollar_index)/'SouthAfrica-IO-Data'!$AT37","v":0},{"$f":"(DR95*'Default-Data'!$F$19/biopower_dollar_index)/'SouthAfrica-IO-Data'!$AT37","v":589.91034180742452},{"$f":"(DS95*'Default-Data'!$F$19/biopower_dollar_index)/'SouthAfrica-IO-Data'!$AT37","v":622.14485476434334},4967530.6531440746,4612330.4496231563,{"$f":"DJ95*'SouthAfrica-IO-Data'!AR37","v":0},{"$f":"DW95*'SouthAfrica-IO-Data'!$AR37","v":2890721.3091505649},{"$f":"DX95*'SouthAfrica-IO-Data'!$AR37","v":2684022.0718378252},{"$f":"DJ95*'SouthAfrica-IO-Data'!AS37","v":0},{"$f":"DW95*'SouthAfrica-IO-Data'!$AS37","v":1452331.1427975667},{"$f":"DX95*'SouthAfrica-IO-Data'!$AS37","v":1348483.1036969007},{"$f":"(EB95*'Default-Data'!$F$19/biopower_dollar_index)/'SouthAfrica-IO-Data'!$AT37","v":0},{"$f":"(EC95*'Default-Data'!$F$19/biopower_dollar_index)/'SouthAfrica-IO-Data'!$AT37","v":90.231331408381863},{"$f":"(ED95*'Default-Data'!$F$19/biopower_dollar_index)/'SouthAfrica-IO-Data'!$AT37","v":83.77939592612465},null,"OTHER",{"$f":"'Biopower-Inputs'!B26*'Biopower-Inputs'!C26","v":257306657.75156423},0,null,275163718.2660929,5238561.4104907811,{"$f":"EJ95*'Zambia-IO-Data'!BO35","v":94172054.239995673},{"$f":"EM95*'Zambia-IO-Data'!$BO35","v":100707586.92319869},{"$f":"EN95*'Zambia-IO-Data'!$BO35","v":1917269.0423137215},{"$f":"EJ95*'Zambia-IO-Data'!BN35","v":75349392.038050324},{"$f":"EM95*'Zambia-IO-Data'!$BN35","v":80578633.539665639},{"$f":"EN95*'Zambia-IO-Data'!$BN35","v":1534054.4270548404},{"$f":"(ER95*'Default-Data'!$F$19/biopower_dollar_index)/'Zambia-IO-Data'!$BP35","v":175089.97786170887},{"$f":"(ES95*'Default-Data'!$F$19/biopower_dollar_index)/'Zambia-IO-Data'!$BP35","v":187241.20767241518},{"$f":"(ET95*'Default-Data'!$F$19/biopower_dollar_index)/'Zambia-IO-Data'!$BP35","v":3564.6943977471074},342275.40710034396,409765.89561201783,{"$f":"EK95*'Zambia-IO-Data'!BO35","v":0},{"$f":"EX95*'Zambia-IO-Data'!$BO35","v":125269.89578945025},{"$f":"EY95*'Zambia-IO-Data'!$BO35","v":149970.84212462729},{"$f":"EK95*'Zambia-IO-Data'!BN35","v":0},{"$f":"EX95*'Zambia-IO-Data'!$BN35","v":100231.54495865472},{"$f":"EY95*'Zambia-IO-Data'!$BN35","v":119995.38364881286},{"$f":"(FC95*'Default-Data'!$F$19/biopower_dollar_index)/'Zambia-IO-Data'!$BP35","v":0},{"$f":"(FD95*'Default-Data'!$F$19/biopower_dollar_index)/'Zambia-IO-Data'!$BP35","v":232.90883327888662},{"$f":"(FE95*'Default-Data'!$F$19/biopower_dollar_index)/'Zambia-IO-Data'!$BP35","v":278.83422146217413},null,"TTL_C65T67: Financial intermediation",0,0,null,20062373.836361274,29435652.972897843,{"$f":"FK95*CustomRegion1!C33","v":0},{"$f":"FN95*CustomRegion1!$C33","v":12795665.099791622},{"$f":"FO95*CustomRegion1!$C33","v":18773887.901153747},{"$f":"FK95*CustomRegion1!D33","v":0},{"$f":"FN95*CustomRegion1!$D33","v":2803362.0924193142},{"$f":"FO95*CustomRegion1!$D33","v":4113112.1562630688},{"$f":"(FS95*'Default-Data'!$F$19/biopower_dollar_index)/CustomRegion1!$E33","v":0},{"$f":"(FT95*'Default-Data'!$F$19/biopower_dollar_index)/CustomRegion1!$E33","v":709.89784957664028},{"$f":"(FU95*'Default-Data'!$F$19/biopower_dollar_index)/CustomRegion1!$E33","v":1041.5670108026657},1664049.7099927962,2822858.0299312184,{"$f":"FL95*CustomRegion1!C33","v":0},{"$f":"FY95*CustomRegion1!$C33","v":1061321.2061616657},{"$f":"FZ95*CustomRegion1!$C33","v":1800402.3985333431},{"$f":"FL95*CustomRegion1!D33","v":0},{"$f":"FY95*CustomRegion1!$D33","v":232521.53084897556},{"$f":"FZ95*CustomRegion1!$D33","v":394444.50880723487},{"$f":"(GD95*'Default-Data'!$C$58/biopower_dollar_index)/CustomRegion1!$E33","v":0},{"$f":"(GE95*'Default-Data'!$C$58/biopower_dollar_index)/CustomRegion1!$E33","v":58.881631872072234},{"$f":"(GF95*'Default-Data'!$C$58/biopower_dollar_index)/CustomRegion1!$E33","v":99.885530070043785},null,"C60T63 Transport and storage",0,0,null,19879139.048413828,33855610.668662444,{"$f":"GL95*CustomRegion2!C37","v":0},{"$f":"GO95*CustomRegion2!$C37","v":12333869.362066476},{"$f":"GP95*CustomRegion2!$C37","v":21005471.018805761},{"$f":"GL95*CustomRegion2!D37","v":0},{"$f":"GO95*CustomRegion2!$D37","v":4188308.6544916364},{"$f":"GP95*CustomRegion2!$D37","v":7132992.370611364},{"$f":"(GT95*'Default-Data'!$C$59/biopower_dollar_index)/CustomRegion2!$E37","v":0},{"$f":"(GU95*'Default-Data'!$C$59/biopower_dollar_index)/CustomRegion2!$E37","v":572.84351264406723},{"$f":"(GV95*'Default-Data'!$C$59/biopower_dollar_index)/CustomRegion2!$E37","v":975.59390730726898},1064278.1491773315,1532988.2575031365,{"$f":"GM95*CustomRegion2!C37","v":0},{"$f":"GZ95*CustomRegion2!$C37","v":660323.75068589754},{"$f":"HA95*CustomRegion2!$C37","v":951131.57846412202},{"$f":"GM95*CustomRegion2!D37","v":0},{"$f":"GZ95*CustomRegion2!$D37","v":224231.30962210498},{"$f":"HA95*CustomRegion2!$D37","v":322983.20216472086},{"$f":"(HE95*'Default-Data'!$C$59/biopower_dollar_index)/CustomRegion2!$E37","v":0},{"$f":"(HF95*'Default-Data'!$C$59/biopower_dollar_index)/CustomRegion2!$E37","v":30.668573318003666},{"$f":"(HG95*'Default-Data'!$C$59/biopower_dollar_index)/CustomRegion2!$E37","v":44.175070969196419},null,"OTHER",257306657.75156423,0,null,275163718.2660929,5238561.4104907513,{"$f":"HM95*CustomRegion3!D36","v":94172054.239995673},{"$f":"HP95*CustomRegion3!$D36","v":100707586.92319869},{"$f":"HQ95*CustomRegion3!$D36","v":1917269.0423137108},{"$f":"HM95*CustomRegion3!E36","v":75349392.038050324},{"$f":"HP95*CustomRegion3!$E36","v":80578633.539665639},{"$f":"HQ95*CustomRegion3!$E36","v":1534054.4270548315},{"$f":"(HU95*'Default-Data'!$C$60/biopower_dollar_index)/CustomRegion3!$F36","v":175799.11518542221},{"$f":"(HV95*'Default-Data'!$C$60/biopower_dollar_index)/CustomRegion3!$F36","v":187999.5590670481},{"$f":"(HW95*'Default-Data'!$C$60/biopower_dollar_index)/CustomRegion3!$F36","v":3579.1318765562442},342275.40710034396,409765.89561201783,{"$f":"HN95*CustomRegion3!D36","v":0},{"$f":"IA95*CustomRegion3!$D36","v":125269.89578945025},{"$f":"IB95*CustomRegion3!$D36","v":149970.84212462729},{"$f":"HN95*CustomRegion3!E36","v":0},{"$f":"IA95*CustomRegion3!$E36","v":100231.54495865472},{"$f":"IB95*CustomRegion3!$E36","v":119995.38364881286},{"$f":"(IF95*'Default-Data'!$C$60/biopower_dollar_index)/CustomRegion3!$F36","v":0},{"$f":"(IG95*'Default-Data'!$C$60/biopower_dollar_index)/CustomRegion3!$F36","v":233.85214453357784},{"$f":"(IH95*'Default-Data'!$C$60/biopower_dollar_index)/CustomRegion3!$F36","v":279.96353654909223}]
[null,308,"Utilities",0,null,null,38624.496440424569,4355.7480274896661,0,17277.808795571393,1948.4469317738101,0,4173.1914795888879,470.61767092791052,0,0.2314447569573648,2.6100406128137098E-2,null,null,null,null,null,null,null,null,null,null,null,null,95,"TTL_C70: Real estate activities",0,0,null,11827650.312312115,24227061.783669274,{"$f":"'Colombia-IO-Data'!$AN38*Calculations!AF96","v":0},{"$f":"'Colombia-IO-Data'!$AN38*AI96","v":10489709.681072289},{"$f":"'Colombia-IO-Data'!$AN38*AJ96","v":21486503.05222059},{"$f":"'Colombia-IO-Data'!$AO38*Calculations!AK96","v":0},{"$f":"'Colombia-IO-Data'!$AO38*Calculations!AL96","v":345606.56332423951},{"$f":"'Colombia-IO-Data'!$AO38*Calculations!AM96","v":707920.11442728958},{"$f":"(AN96*'Default-Data'!$F$19/biopower_dollar_index)/'Colombia-IO-Data'!$AP38","v":0},{"$f":"(AO96*'Default-Data'!$F$19/biopower_dollar_index)/'Colombia-IO-Data'!$AP38","v":72.378475667095699},{"$f":"(AP96*'Default-Data'!$F$19/biopower_dollar_index)/'Colombia-IO-Data'!$AP38","v":148.25580360362773},601903.24130767712,2319130.9398948103,{"$f":"'Colombia-IO-Data'!$AN38*AG96","v":0},{"$f":"'Colombia-IO-Data'!$AN38*AT96","v":533816.1080769801},{"$f":"'Colombia-IO-Data'!$AN38*AU96","v":2056791.4699477898},{"$f":"'Colombia-IO-Data'!$AO38*AV96","v":0},{"$f":"'Colombia-IO-Data'!$AO38*AW96","v":17587.746102497164},{"$f":"'Colombia-IO-Data'!$AO38*AX96","v":67765.520020626762},{"$f":"(AY96*'Default-Data'!$F$19/biopower_dollar_index)/'Colombia-IO-Data'!$AP38","v":0},{"$f":"(AZ96*'Default-Data'!$F$19/biopower_dollar_index)/'Colombia-IO-Data'!$AP38","v":3.6833046255674704},{"$f":"(BA96*'Default-Data'!$F$19/biopower_dollar_index)/'Colombia-IO-Data'!$AP38","v":14.19175896054813},null,"DOM_C70: Real estate activities",0,0,null,7727585.2814788949,29556404.966555104,{"$f":"BG96*'Mexico-IO-Data'!AQ38","v":0},{"$f":"BJ96*'Mexico-IO-Data'!$AQ38","v":7141722.9701872654},{"$f":"BK96*'Mexico-IO-Data'!$AQ38","v":27315603.591165628},{"$f":"BG96*'Mexico-IO-Data'!AR38","v":0},{"$f":"BJ96*'Mexico-IO-Data'!$AR38","v":102318.46196187499},{"$f":"BK96*'Mexico-IO-Data'!$AR38","v":391346.81626204978},{"$f":"(BO96*'Default-Data'!$F$19/biopower_dollar_index)/'Mexico-IO-Data'!$AS38","v":0},{"$f":"(BP96*'Default-Data'!$F$19/biopower_dollar_index)/'Mexico-IO-Data'!$AS38","v":43.690431398344437},{"$f":"(BQ96*'Default-Data'!$F$19/biopower_dollar_index)/'Mexico-IO-Data'!$AS38","v":167.10680458848705},455256.54166461923,1940810.1704396366,{"$f":"BH96*'Mexico-IO-Data'!AQ38","v":0},{"$f":"BU96*'Mexico-IO-Data'!$AQ38","v":420741.5360043745},{"$f":"BV96*'Mexico-IO-Data'!$AQ38","v":1793668.7943415574},{"$f":"BH96*'Mexico-IO-Data'!AR38","v":0},{"$f":"BU96*'Mexico-IO-Data'!$AR38","v":6027.9048945405439},{"$f":"BV96*'Mexico-IO-Data'!$AR38","v":25697.640901524152},{"$f":"(BZ96*'Default-Data'!$F$19/biopower_dollar_index)/'Mexico-IO-Data'!$AS38","v":0},{"$f":"(CA96*'Default-Data'!$F$19/biopower_dollar_index)/'Mexico-IO-Data'!$AS38","v":2.5739417913533518},{"$f":"(CB96*'Default-Data'!$F$19/biopower_dollar_index)/'Mexico-IO-Data'!$AS38","v":10.973005217041642},null,"TTL_C70: Real estate activities",0,0,null,11949788.418349085,23103082.070368104,{"$f":"CH96*'Philippines-IO-Data'!AN38","v":0},{"$f":"CK96*'Philippines-IO-Data'!$AN38","v":9696900.3745457958},{"$f":"CL96*'Philippines-IO-Data'!$AN38","v":18747468.770017371},{"$f":"CH96*'Philippines-IO-Data'!AO38","v":0},{"$f":"CK96*'Philippines-IO-Data'!$AO38","v":248526.72351472024},{"$f":"CL96*'Philippines-IO-Data'!$AO38","v":480488.28054760734},{"$f":"(CP96*'Default-Data'!$F$19/biopower_dollar_index)/'Philippines-IO-Data'!$AP38","v":0},{"$f":"(CQ96*'Default-Data'!$F$19/biopower_dollar_index)/'Philippines-IO-Data'!$AP38","v":62.672761093178735},{"$f":"(CR96*'Default-Data'!$F$19/biopower_dollar_index)/'Philippines-IO-Data'!$AP38","v":121.1681656964701},185373.06941826711,2298541.60798328,{"$f":"CI96*'Philippines-IO-Data'!AN38","v":0},{"$f":"CV96*'Philippines-IO-Data'!$AN38","v":150424.77099532084},{"$f":"CW96*'Philippines-IO-Data'!$AN38","v":1865198.6293863978},{"$f":"CI96*'Philippines-IO-Data'!AO38","v":0},{"$f":"CV96*'Philippines-IO-Data'!$AO38","v":3855.3119065813139},{"$f":"CW96*'Philippines-IO-Data'!$AO38","v":47804.111227373651},{"$f":"(DA96*'Default-Data'!$F$19/biopower_dollar_index)/'Philippines-IO-Data'!$AP38","v":0},{"$f":"(DB96*'Default-Data'!$F$19/biopower_dollar_index)/'Philippines-IO-Data'!$AP38","v":0.97222157297119305},{"$f":"(DC96*'Default-Data'!$F$19/biopower_dollar_index)/'Philippines-IO-Data'!$AP38","v":12.055104577305055},null,"DOM_C70: Real estate activities",0,0,null,26347236.970290855,36157043.43489591,{"$f":"DI96*'SouthAfrica-IO-Data'!AR38","v":0},{"$f":"DL96*'Mexico-IO-Data'!$AQ38","v":24349736.769994292},{"$f":"DM96*'Mexico-IO-Data'!$AQ38","v":33415818.554853439},{"$f":"DI96*'SouthAfrica-IO-Data'!AS38","v":0},{"$f":"DL96*'Mexico-IO-Data'!$AR38","v":348855.25886157429},{"$f":"DM96*'Mexico-IO-Data'!$AR38","v":478743.73929125338},{"$f":"(DQ96*'Default-Data'!$F$19/biopower_dollar_index)/'SouthAfrica-IO-Data'!$AT38","v":0},{"$f":"(DR96*'Default-Data'!$F$19/biopower_dollar_index)/'SouthAfrica-IO-Data'!$AT38","v":21.673896226766427},{"$f":"(DS96*'Default-Data'!$F$19/biopower_dollar_index)/'SouthAfrica-IO-Data'!$AT38","v":29.74368842388596},878104.31079924433,3074667.1374604711,{"$f":"DJ96*'SouthAfrica-IO-Data'!AR38","v":0},{"$f":"DW96*'SouthAfrica-IO-Data'!$AR38","v":516355.2626435011},{"$f":"DX96*'SouthAfrica-IO-Data'!$AR38","v":1808009.0688311304},{"$f":"DJ96*'SouthAfrica-IO-Data'!AS38","v":0},{"$f":"DW96*'SouthAfrica-IO-Data'!$AS38","v":31732.910776739489},{"$f":"DX96*'SouthAfrica-IO-Data'!$AS38","v":111112.24115549588},{"$f":"(EB96*'Default-Data'!$F$19/biopower_dollar_index)/'SouthAfrica-IO-Data'!$AT38","v":0},{"$f":"(EC96*'Default-Data'!$F$19/biopower_dollar_index)/'SouthAfrica-IO-Data'!$AT38","v":1.9715219927964422},{"$f":"(ED96*'Default-Data'!$F$19/biopower_dollar_index)/'SouthAfrica-IO-Data'!$AT38","v":6.9032503399447123},null,"FIRE",0,0,null,102853112.15950628,19619535.781067699,{"$f":"EJ96*'Zambia-IO-Data'!BO36","v":0},{"$f":"EM96*'Zambia-IO-Data'!$BO36","v":21427251.502152465},{"$f":"EN96*'Zambia-IO-Data'!$BO36","v":4087311.6885803612},{"$f":"EJ96*'Zambia-IO-Data'!BN36","v":0},{"$f":"EM96*'Zambia-IO-Data'!$BN36","v":5105848.1767573468},{"$f":"EN96*'Zambia-IO-Data'!$BN36","v":973955.6625300555},{"$f":"(ER96*'Default-Data'!$F$19/biopower_dollar_index)/'Zambia-IO-Data'!$BP36","v":0},{"$f":"(ES96*'Default-Data'!$F$19/biopower_dollar_index)/'Zambia-IO-Data'!$BP36","v":5044.5890278466668},{"$f":"(ET96*'Default-Data'!$F$19/biopower_dollar_index)/'Zambia-IO-Data'!$BP36","v":962.27029843424725},5866848.7048935294,1677910.9299173979,{"$f":"EK96*'Zambia-IO-Data'!BO36","v":0},{"$f":"EX96*'Zambia-IO-Data'!$BO36","v":1222232.7558730291},{"$f":"EY96*'Zambia-IO-Data'!$BO36","v":349556.9432823197},{"$f":"EK96*'Zambia-IO-Data'!BN36","v":0},{"$f":"EX96*'Zambia-IO-Data'!$BN36","v":291242.90100951697},{"$f":"EY96*'Zambia-IO-Data'!$BN36","v":83295.082495840106},{"$f":"(FC96*'Default-Data'!$F$19/biopower_dollar_index)/'Zambia-IO-Data'!$BP36","v":0},{"$f":"(FD96*'Default-Data'!$F$19/biopower_dollar_index)/'Zambia-IO-Data'!$BP36","v":287.74861531505843},{"$f":"(FE96*'Default-Data'!$F$19/biopower_dollar_index)/'Zambia-IO-Data'!$BP36","v":82.295721432703161},null,"TTL_C70: Real estate activities",0,0,null,13770711.948392315,27189021.42203486,{"$f":"FK96*CustomRegion1!C34","v":0},{"$f":"FN96*CustomRegion1!$C34","v":11174526.039731832},{"$f":"FO96*CustomRegion1!$C34","v":22063087.879114751},{"$f":"FK96*CustomRegion1!D34","v":0},{"$f":"FN96*CustomRegion1!$D34","v":286397.53284198896},{"$f":"FO96*CustomRegion1!$D34","v":565465.94575800863},{"$f":"(FS96*'Default-Data'!$F$19/biopower_dollar_index)/CustomRegion1!$E34","v":0},{"$f":"(FT96*'Default-Data'!$F$19/biopower_dollar_index)/CustomRegion1!$E34","v":72.524699266773339},{"$f":"(FU96*'Default-Data'!$F$19/biopower_dollar_index)/CustomRegion1!$E34","v":143.19343904518649},325756.7947397086,2607407.67387866,{"$f":"FL96*CustomRegion1!C34","v":0},{"$f":"FY96*CustomRegion1!$C34","v":264342.01797848439},{"$f":"FZ96*CustomRegion1!$C34","v":2115834.3197611715},{"$f":"FL96*CustomRegion1!D34","v":0},{"$f":"FY96*CustomRegion1!$D34","v":6774.9541686447619},{"$f":"FZ96*CustomRegion1!$D34","v":54227.779050980644},{"$f":"(GD96*'Default-Data'!$C$58/biopower_dollar_index)/CustomRegion1!$E34","v":0},{"$f":"(GE96*'Default-Data'!$C$58/biopower_dollar_index)/CustomRegion1!$E34","v":1.7156276059759978},{"$f":"(GF96*'Default-Data'!$C$58/biopower_dollar_index)/CustomRegion1!$E34","v":13.732148208648269},null,"C64 Post and telecommunications",0,0,null,9093291.7605033629,12976354.708096538,{"$f":"GL96*CustomRegion2!C38","v":0},{"$f":"GO96*CustomRegion2!$C38","v":5590232.9415643839},{"$f":"GP96*CustomRegion2!$C38","v":7977402.1840700107},{"$f":"GL96*CustomRegion2!D38","v":0},{"$f":"GO96*CustomRegion2!$D38","v":1529857.9328935079},{"$f":"GP96*CustomRegion2!$D38","v":2183145.5223342129},{"$f":"(GT96*'Default-Data'!$C$59/biopower_dollar_index)/CustomRegion2!$E38","v":0},{"$f":"(GU96*'Default-Data'!$C$59/biopower_dollar_index)/CustomRegion2!$E38","v":123.48419257567778},{"$f":"(GV96*'Default-Data'!$C$59/biopower_dollar_index)/CustomRegion2!$E38","v":176.21503036609877},335606.57281388261,587571.72001391731,{"$f":"GM96*CustomRegion2!C38","v":0},{"$f":"GZ96*CustomRegion2!$C38","v":206319.00615996943},{"$f":"HA96*CustomRegion2!$C38","v":361218.23331572308},{"$f":"GM96*CustomRegion2!D38","v":0},{"$f":"GZ96*CustomRegion2!$D38","v":56462.543078250448},{"$f":"HA96*CustomRegion2!$D38","v":98853.229466533186},{"$f":"(HE96*'Default-Data'!$C$59/biopower_dollar_index)/CustomRegion2!$E38","v":0},{"$f":"(HF96*'Default-Data'!$C$59/biopower_dollar_index)/CustomRegion2!$E38","v":4.5574372579813343},{"$f":"(HG96*'Default-Data'!$C$59/biopower_dollar_index)/CustomRegion2!$E38","v":7.9790488787972675},null,"FIRE",0,0,null,102853112.15950628,19619535.781067699,{"$f":"HM96*CustomRegion3!D37","v":0},{"$f":"HP96*CustomRegion3!$D37","v":21427251.502152465},{"$f":"HQ96*CustomRegion3!$D37","v":4087311.6885803612},{"$f":"HM96*CustomRegion3!E37","v":0},{"$f":"HP96*CustomRegion3!$E37","v":5105848.1767573468},{"$f":"HQ96*CustomRegion3!$E37","v":973955.6625300555},{"$f":"(HU96*'Default-Data'!$C$60/biopower_dollar_index)/CustomRegion3!$F37","v":0},{"$f":"(HV96*'Default-Data'!$C$60/biopower_dollar_index)/CustomRegion3!$F37","v":5065.0202735760286},{"$f":"(HW96*'Default-Data'!$C$60/biopower_dollar_index)/CustomRegion3!$F37","v":966.16761907163686},5866848.7048935294,1677910.9299173979,{"$f":"HN96*CustomRegion3!D37","v":0},{"$f":"IA96*CustomRegion3!$D37","v":1222232.7558730291},{"$f":"IB96*CustomRegion3!$D37","v":349556.9432823197},{"$f":"HN96*CustomRegion3!E37","v":0},{"$f":"IA96*CustomRegion3!$E37","v":291242.90100951697},{"$f":"IB96*CustomRegion3!$E37","v":83295.082495840106},{"$f":"(IF96*'Default-Data'!$C$60/biopower_dollar_index)/CustomRegion3!$F37","v":0},{"$f":"(IG96*'Default-Data'!$C$60/biopower_dollar_index)/CustomRegion3!$F37","v":288.91403486367426},{"$f":"(IH96*'Default-Data'!$C$60/biopower_dollar_index)/CustomRegion3!$F37","v":82.62902987424026}]
[null,309,"Construction",0,null,null,1351.5838454883872,290.83120768868412,0,679.76901205952663,146.27138626030171,0,298.97351982220385,64.332545943836053,0,0.10490809065023128,2.2573920812952529E-2,null,null,null,null,null,null,null,null,null,null,null,null,96,"TTL_C71: Renting of machinery and equipment",0,0,null,1540238.7330168653,430345.01318988856,{"$f":"'Colombia-IO-Data'!$AN39*Calculations!AF97","v":0},{"$f":"'Colombia-IO-Data'!$AN39*AI97","v":1111515.7824323389},{"$f":"'Colombia-IO-Data'!$AN39*AJ97","v":310559.17748198623},{"$f":"'Colombia-IO-Data'!$AO39*Calculations!AK97","v":0},{"$f":"'Colombia-IO-Data'!$AO39*Calculations!AL97","v":424408.55637439509},{"$f":"'Colombia-IO-Data'!$AO39*Calculations!AM97","v":118580.38749168422},{"$f":"(AN97*'Default-Data'!$F$19/biopower_dollar_index)/'Colombia-IO-Data'!$AP39","v":0},{"$f":"(AO97*'Default-Data'!$F$19/biopower_dollar_index)/'Colombia-IO-Data'!$AP39","v":94.630934231941794},{"$f":"(AP97*'Default-Data'!$F$19/biopower_dollar_index)/'Colombia-IO-Data'!$AP39","v":26.440025021608488},152227.23951094595,41194.695577606093,{"$f":"'Colombia-IO-Data'!$AN39*AG97","v":0},{"$f":"'Colombia-IO-Data'!$AN39*AT97","v":109855.03455110904},{"$f":"'Colombia-IO-Data'!$AN39*AU97","v":29728.218947798319},{"$f":"'Colombia-IO-Data'!$AO39*AV97","v":0},{"$f":"'Colombia-IO-Data'!$AO39*AW97","v":41945.798126472917},{"$f":"'Colombia-IO-Data'!$AO39*AX97","v":11351.085325668824},{"$f":"(AY97*'Default-Data'!$F$19/biopower_dollar_index)/'Colombia-IO-Data'!$AP39","v":0},{"$f":"(AZ97*'Default-Data'!$F$19/biopower_dollar_index)/'Colombia-IO-Data'!$AP39","v":9.3527097986001895},{"$f":"(BA97*'Default-Data'!$F$19/biopower_dollar_index)/'Colombia-IO-Data'!$AP39","v":2.530966430297283},null,"DOM_C71: Renting of machinery and equipment",0,0,null,3015113.5633976059,754129.44378264388,{"$f":"BG97*'Mexico-IO-Data'!AQ39","v":0},{"$f":"BJ97*'Mexico-IO-Data'!$AQ39","v":2480529.7758167605},{"$f":"BK97*'Mexico-IO-Data'!$AQ39","v":620421.25471885467},{"$f":"BG97*'Mexico-IO-Data'!AR39","v":0},{"$f":"BJ97*'Mexico-IO-Data'!$AR39","v":112891.77051758472},{"$f":"BK97*'Mexico-IO-Data'!$AR39","v":28236.08674033788},{"$f":"(BO97*'Default-Data'!$F$19/biopower_dollar_index)/'Mexico-IO-Data'!$AS39","v":0},{"$f":"(BP97*'Default-Data'!$F$19/biopower_dollar_index)/'Mexico-IO-Data'!$AS39","v":48.205280461252485},{"$f":"(BQ97*'Default-Data'!$F$19/biopower_dollar_index)/'Mexico-IO-Data'!$AS39","v":12.056932708254603},253217.36524786442,49519.625136328948,{"$f":"BH97*'Mexico-IO-Data'!AQ39","v":0},{"$f":"BU97*'Mexico-IO-Data'!$AQ39","v":208321.5776268809},{"$f":"BV97*'Mexico-IO-Data'!$AQ39","v":40739.727395053909},{"$f":"BH97*'Mexico-IO-Data'!AR39","v":0},{"$f":"BU97*'Mexico-IO-Data'!$AR39","v":9480.9552235958872},{"$f":"BV97*'Mexico-IO-Data'!$AR39","v":1854.1119727204325},{"$f":"(BZ97*'Default-Data'!$F$19/biopower_dollar_index)/'Mexico-IO-Data'!$AS39","v":0},{"$f":"(CA97*'Default-Data'!$F$19/biopower_dollar_index)/'Mexico-IO-Data'!$AS39","v":4.0484094057398661},{"$f":"(CB97*'Default-Data'!$F$19/biopower_dollar_index)/'Mexico-IO-Data'!$AS39","v":0.79171393310402993},null,"TTL_C71: Renting of machinery and equipment",0,0,null,817275.99839249952,443082.91686830041,{"$f":"CH97*'Philippines-IO-Data'!AN39","v":0},{"$f":"CK97*'Philippines-IO-Data'!$AN39","v":413190.58725667902},{"$f":"CL97*'Philippines-IO-Data'!$AN39","v":224009.62585994316},{"$f":"CH97*'Philippines-IO-Data'!AO39","v":0},{"$f":"CK97*'Philippines-IO-Data'!$AO39","v":112950.28605621908},{"$f":"CL97*'Philippines-IO-Data'!$AO39","v":61235.546260179719},{"$f":"(CP97*'Default-Data'!$F$19/biopower_dollar_index)/'Philippines-IO-Data'!$AP39","v":0},{"$f":"(CQ97*'Default-Data'!$F$19/biopower_dollar_index)/'Philippines-IO-Data'!$AP39","v":28.483481346778916},{"$f":"(CR97*'Default-Data'!$F$19/biopower_dollar_index)/'Philippines-IO-Data'!$AP39","v":15.442205598253199},74466.15759137609,44082.625733933426,{"$f":"CI97*'Philippines-IO-Data'!AN39","v":0},{"$f":"CV97*'Philippines-IO-Data'!$AN39","v":37647.888163176322},{"$f":"CW97*'Philippines-IO-Data'!$AN39","v":22286.872550578388},{"$f":"CI97*'Philippines-IO-Data'!AO39","v":0},{"$f":"CV97*'Philippines-IO-Data'!$AO39","v":10291.472914898966},{"$f":"CW97*'Philippines-IO-Data'!$AO39","v":6092.3668339098513},{"$f":"(DA97*'Default-Data'!$F$19/biopower_dollar_index)/'Philippines-IO-Data'!$AP39","v":0},{"$f":"(DB97*'Default-Data'!$F$19/biopower_dollar_index)/'Philippines-IO-Data'!$AP39","v":2.5952743196816805},{"$f":"(DC97*'Default-Data'!$F$19/biopower_dollar_index)/'Philippines-IO-Data'!$AP39","v":1.5363557112642749},null,"DOM_C71: Renting of machinery and equipment",0,0,null,3798239.0899283569,1287169.2383640213,{"$f":"DI97*'SouthAfrica-IO-Data'!AR39","v":0},{"$f":"DL97*'Mexico-IO-Data'!$AQ39","v":3124806.0678754612},{"$f":"DM97*'Mexico-IO-Data'!$AQ39","v":1058952.3595520672},{"$f":"DI97*'SouthAfrica-IO-Data'!AS39","v":0},{"$f":"DL97*'Mexico-IO-Data'!$AR39","v":142213.52751566889},{"$f":"DM97*'Mexico-IO-Data'!$AR39","v":48194.143012955268},{"$f":"(DQ97*'Default-Data'!$F$19/biopower_dollar_index)/'SouthAfrica-IO-Data'!$AT39","v":0},{"$f":"(DR97*'Default-Data'!$F$19/biopower_dollar_index)/'SouthAfrica-IO-Data'!$AT39","v":8.8355303786320842},{"$f":"(DS97*'Default-Data'!$F$19/biopower_dollar_index)/'SouthAfrica-IO-Data'!$AT39","v":2.9942356546650539},140690.54283494563,109456.32113626593,{"$f":"DJ97*'SouthAfrica-IO-Data'!AR39","v":0},{"$f":"DW97*'SouthAfrica-IO-Data'!$AR39","v":60002.131933632532},{"$f":"DX97*'SouthAfrica-IO-Data'!$AR39","v":46681.265772733757},{"$f":"DJ97*'SouthAfrica-IO-Data'!AS39","v":0},{"$f":"DW97*'SouthAfrica-IO-Data'!$AS39","v":19845.712588878556},{"$f":"DX97*'SouthAfrica-IO-Data'!$AS39","v":15439.834451806324},{"$f":"(EB97*'Default-Data'!$F$19/biopower_dollar_index)/'SouthAfrica-IO-Data'!$AT39","v":0},{"$f":"(EC97*'Default-Data'!$F$19/biopower_dollar_index)/'SouthAfrica-IO-Data'!$AT39","v":1.2329867596127109},{"$f":"(ED97*'Default-Data'!$F$19/biopower_dollar_index)/'SouthAfrica-IO-Data'!$AT39","v":0.95925562584019697},null,"PUBLIC",0,0,null,3163746.5358200204,15687988.806597793,{"$f":"EJ97*'Zambia-IO-Data'!BO37","v":0},{"$f":"EM97*'Zambia-IO-Data'!$BO37","v":677546.16453766346},{"$f":"EN97*'Zambia-IO-Data'!$BO37","v":3359730.78907381},{"$f":"EJ97*'Zambia-IO-Data'!BN37","v":0},{"$f":"EM97*'Zambia-IO-Data'!$BN37","v":440723.17531775904},{"$f":"EN97*'Zambia-IO-Data'!$BN37","v":2185402.7062256951},{"$f":"(ER97*'Default-Data'!$F$19/biopower_dollar_index)/'Zambia-IO-Data'!$BP37","v":0},{"$f":"(ES97*'Default-Data'!$F$19/biopower_dollar_index)/'Zambia-IO-Data'!$BP37","v":1024.1119260864195},{"$f":"(ET97*'Default-Data'!$F$19/biopower_dollar_index)/'Zambia-IO-Data'!$BP37","v":5078.2375424973161},23665.478376411455,1386952.6926848842,{"$f":"EK97*'Zambia-IO-Data'!BO37","v":0},{"$f":"EX97*'Zambia-IO-Data'!$BO37","v":5068.1854327911815},{"$f":"EY97*'Zambia-IO-Data'!$BO37","v":297029.00238190481},{"$f":"EK97*'Zambia-IO-Data'!BN37","v":0},{"$f":"EX97*'Zambia-IO-Data'!$BN37","v":3296.700496508789},{"$f":"EY97*'Zambia-IO-Data'!$BN37","v":193208.3331628725},{"$f":"(FC97*'Default-Data'!$F$19/biopower_dollar_index)/'Zambia-IO-Data'!$BP37","v":0},{"$f":"(FD97*'Default-Data'!$F$19/biopower_dollar_index)/'Zambia-IO-Data'!$BP37","v":7.6605690017899706},{"$f":"(FE97*'Default-Data'!$F$19/biopower_dollar_index)/'Zambia-IO-Data'!$BP37","v":448.95973094384016},null,"TTL_C71: Renting of machinery and equipment",0,0,null,2790044.4858469432,1647699.2912070872,{"$f":"FK97*CustomRegion1!C35","v":0},{"$f":"FN97*CustomRegion1!$C35","v":1410564.0222481021},{"$f":"FO97*CustomRegion1!$C35","v":833028.0579576093},{"$f":"FK97*CustomRegion1!D35","v":0},{"$f":"FN97*CustomRegion1!$D35","v":385593.51235791907},{"$f":"FO97*CustomRegion1!$D35","v":227717.57232871884},{"$f":"(FS97*'Default-Data'!$F$19/biopower_dollar_index)/CustomRegion1!$E35","v":0},{"$f":"(FT97*'Default-Data'!$F$19/biopower_dollar_index)/CustomRegion1!$E35","v":97.644184450449814},{"$f":"(FU97*'Default-Data'!$F$19/biopower_dollar_index)/CustomRegion1!$E35","v":57.665121228581832},237299.75822768989,158013.18147684378,{"$f":"FL97*CustomRegion1!C35","v":0},{"$f":"FY97*CustomRegion1!$C35","v":119971.74351237742},{"$f":"FZ97*CustomRegion1!$C35","v":79886.793906992665},{"$f":"FL97*CustomRegion1!D35","v":0},{"$f":"FY97*CustomRegion1!$D35","v":32795.623052198011},{"$f":"FZ97*CustomRegion1!$D35","v":21837.952030363402},{"$f":"(GD97*'Default-Data'!$C$58/biopower_dollar_index)/CustomRegion1!$E35","v":0},{"$f":"(GE97*'Default-Data'!$C$58/biopower_dollar_index)/CustomRegion1!$E35","v":8.3048644851259255},{"$f":"(GF97*'Default-Data'!$C$58/biopower_dollar_index)/CustomRegion1!$E35","v":5.5300438096934865},null,"C65T67 Finance and insurance",0,0,null,10763539.710703541,11564254.612827484,{"$f":"GL97*CustomRegion2!C39","v":0},{"$f":"GO97*CustomRegion2!$C39","v":6658655.9728009328},{"$f":"GP97*CustomRegion2!$C39","v":7154002.7833149815},{"$f":"GL97*CustomRegion2!D39","v":0},{"$f":"GO97*CustomRegion2!$D39","v":2084020.5100546191},{"$f":"GP97*CustomRegion2!$D39","v":2239053.7355160601},{"$f":"(GT97*'Default-Data'!$C$59/biopower_dollar_index)/CustomRegion2!$E39","v":0},{"$f":"(GU97*'Default-Data'!$C$59/biopower_dollar_index)/CustomRegion2!$E39","v":157.57600272266157},{"$f":"(GV97*'Default-Data'!$C$59/biopower_dollar_index)/CustomRegion2!$E39","v":169.29830384184524},810791.6902305407,523631.56883329689,{"$f":"GM97*CustomRegion2!C39","v":0},{"$f":"GZ97*CustomRegion2!$C39","v":501580.6208697558},{"$f":"HA97*CustomRegion2!$C39","v":323934.55750357924},{"$f":"GM97*CustomRegion2!D39","v":0},{"$f":"GZ97*CustomRegion2!$D39","v":156984.27814987392},{"$f":"HA97*CustomRegion2!$D39","v":101384.76360852666},{"$f":"(HE97*'Default-Data'!$C$59/biopower_dollar_index)/CustomRegion2!$E39","v":0},{"$f":"(HF97*'Default-Data'!$C$59/biopower_dollar_index)/CustomRegion2!$E39","v":11.869823219979381},{"$f":"(HG97*'Default-Data'!$C$59/biopower_dollar_index)/CustomRegion2!$E39","v":7.6658582338015924},null,"PUBLIC",0,0,null,3163746.5358200204,15687988.806597793,{"$f":"HM97*CustomRegion3!D38","v":0},{"$f":"HP97*CustomRegion3!$D38","v":677546.16453766346},{"$f":"HQ97*CustomRegion3!$D38","v":3359730.78907381},{"$f":"HM97*CustomRegion3!E38","v":0},{"$f":"HP97*CustomRegion3!$E38","v":440723.17531775904},{"$f":"HQ97*CustomRegion3!$E38","v":2185402.7062256951},{"$f":"(HU97*'Default-Data'!$C$60/biopower_dollar_index)/CustomRegion3!$F38","v":0},{"$f":"(HV97*'Default-Data'!$C$60/biopower_dollar_index)/CustomRegion3!$F38","v":1028.2597134087841},{"$f":"(HW97*'Default-Data'!$C$60/biopower_dollar_index)/CustomRegion3!$F38","v":5098.8050691144681},23665.478376411455,1386952.6926848842,{"$f":"HN97*CustomRegion3!D38","v":0},{"$f":"IA97*CustomRegion3!$D38","v":5068.1854327911815},{"$f":"IB97*CustomRegion3!$D38","v":297029.00238190481},{"$f":"HN97*CustomRegion3!E38","v":0},{"$f":"IA97*CustomRegion3!$E38","v":3296.700496508789},{"$f":"IB97*CustomRegion3!$E38","v":193208.3331628725},{"$f":"(IF97*'Default-Data'!$C$60/biopower_dollar_index)/CustomRegion3!$F38","v":0},{"$f":"(IG97*'Default-Data'!$C$60/biopower_dollar_index)/CustomRegion3!$F38","v":7.6915953087573614},{"$f":"(IH97*'Default-Data'!$C$60/biopower_dollar_index)/CustomRegion3!$F38","v":450.77807660785101}]
[null,310,"Manufacturing",1000000,null,null,196013.79891822612,47580.611067938764,376641.77335229964,66091.441618145866,16113.420483610036,46161.292871819183,11118.286714615193,3585.0869910790821,4.5998210250756486,1.3533362532397075,0.71124937535030641,null,null,null,null,null,null,null,null,null,null,null,null,97,"TTL_C72: Computer and related activities",0,0,null,7190039.7823913703,1691695.8353670863,{"$f":"'Colombia-IO-Data'!$AN40*Calculations!AF98","v":0},{"$f":"'Colombia-IO-Data'!$AN40*AI98","v":5132532.5932151498},{"$f":"'Colombia-IO-Data'!$AN40*AJ98","v":1207598.8834014607},{"$f":"'Colombia-IO-Data'!$AO40*Calculations!AK98","v":0},{"$f":"'Colombia-IO-Data'!$AO40*Calculations!AL98","v":1981197.0933231695},{"$f":"'Colombia-IO-Data'!$AO40*Calculations!AM98","v":466142.46558472631},{"$f":"(AN98*'Default-Data'!$F$19/biopower_dollar_index)/'Colombia-IO-Data'!$AP40","v":0},{"$f":"(AO98*'Default-Data'!$F$19/biopower_dollar_index)/'Colombia-IO-Data'!$AP40","v":188.91336020172275},{"$f":"(AP98*'Default-Data'!$F$19/biopower_dollar_index)/'Colombia-IO-Data'!$AP40","v":44.448146932528466},235710.81095276715,161937.26617461961,{"$f":"'Colombia-IO-Data'!$AN40*AG98","v":0},{"$f":"'Colombia-IO-Data'!$AN40*AT98","v":168259.62809706191},{"$f":"'Colombia-IO-Data'!$AN40*AU98","v":115597.17635122134},{"$f":"'Colombia-IO-Data'!$AO40*AV98","v":0},{"$f":"'Colombia-IO-Data'!$AO40*AW98","v":64949.511777131091},{"$f":"'Colombia-IO-Data'!$AO40*AX98","v":44621.399986072189},{"$f":"(AY98*'Default-Data'!$F$19/biopower_dollar_index)/'Colombia-IO-Data'!$AP40","v":0},{"$f":"(AZ98*'Default-Data'!$F$19/biopower_dollar_index)/'Colombia-IO-Data'!$AP40","v":6.1931397712169796},{"$f":"(BA98*'Default-Data'!$F$19/biopower_dollar_index)/'Colombia-IO-Data'!$AP40","v":4.2547905186629418},null,"DOM_C72: Computer and related activities",0,0,null,720876.80951370695,208190.60302353802,{"$f":"BG98*'Mexico-IO-Data'!AQ40","v":0},{"$f":"BJ98*'Mexico-IO-Data'!$AQ40","v":510857.40290237736},{"$f":"BK98*'Mexico-IO-Data'!$AQ40","v":147536.59621958222},{"$f":"BG98*'Mexico-IO-Data'!AR40","v":0},{"$f":"BJ98*'Mexico-IO-Data'!$AR40","v":301132.93550309789},{"$f":"BK98*'Mexico-IO-Data'!$AR40","v":86967.768424857437},{"$f":"(BO98*'Default-Data'!$F$19/biopower_dollar_index)/'Mexico-IO-Data'!$AS40","v":0},{"$f":"(BP98*'Default-Data'!$F$19/biopower_dollar_index)/'Mexico-IO-Data'!$AS40","v":24.306281386673128},{"$f":"(BQ98*'Default-Data'!$F$19/biopower_dollar_index)/'Mexico-IO-Data'!$AS40","v":7.0197006095464607},20023.04503056606,13670.757326381889,{"$f":"BH98*'Mexico-IO-Data'!AQ40","v":0},{"$f":"BU98*'Mexico-IO-Data'!$AQ40","v":14189.554508505569},{"$f":"BV98*'Mexico-IO-Data'!$AQ40","v":9687.9348749965684},{"$f":"BH98*'Mexico-IO-Data'!AR40","v":0},{"$f":"BU98*'Mexico-IO-Data'!$AR40","v":8364.256206039634},{"$f":"BV98*'Mexico-IO-Data'!$AR40","v":5710.7056710853785},{"$f":"(BZ98*'Default-Data'!$F$19/biopower_dollar_index)/'Mexico-IO-Data'!$AS40","v":0},{"$f":"(CA98*'Default-Data'!$F$19/biopower_dollar_index)/'Mexico-IO-Data'!$AS40","v":0.67513028621253179},{"$f":"(CB98*'Default-Data'!$F$19/biopower_dollar_index)/'Mexico-IO-Data'!$AS40","v":0.46094598960412692},null,"TTL_C72: Computer and related activities",0,0,null,3869475.3969869339,1520159.1383936037,{"$f":"CH98*'Philippines-IO-Data'!AN40","v":0},{"$f":"CK98*'Philippines-IO-Data'!$AN40","v":1933456.3091741565},{"$f":"CL98*'Philippines-IO-Data'!$AN40","v":759576.16357104015},{"$f":"CH98*'Philippines-IO-Data'!AO40","v":0},{"$f":"CK98*'Philippines-IO-Data'!$AO40","v":674331.12928698526},{"$f":"CL98*'Philippines-IO-Data'!$AO40","v":264917.21055704408},{"$f":"(CP98*'Default-Data'!$F$19/biopower_dollar_index)/'Philippines-IO-Data'!$AP40","v":0},{"$f":"(CQ98*'Default-Data'!$F$19/biopower_dollar_index)/'Philippines-IO-Data'!$AP40","v":170.05090304099011},{"$f":"(CR98*'Default-Data'!$F$19/biopower_dollar_index)/'Philippines-IO-Data'!$AP40","v":66.806067419665425},104468.97078244225,151241.68367281562,{"$f":"CI98*'Philippines-IO-Data'!AN40","v":0},{"$f":"CV98*'Philippines-IO-Data'!$AN40","v":52199.89015294562},{"$f":"CW98*'Philippines-IO-Data'!$AN40","v":75570.757662660704},{"$f":"CI98*'Philippines-IO-Data'!AO40","v":0},{"$f":"CV98*'Philippines-IO-Data'!$AO40","v":18205.744142482068},{"$f":"CW98*'Philippines-IO-Data'!$AO40","v":26356.796434413183},{"$f":"(DA98*'Default-Data'!$F$19/biopower_dollar_index)/'Philippines-IO-Data'!$AP40","v":0},{"$f":"(DB98*'Default-Data'!$F$19/biopower_dollar_index)/'Philippines-IO-Data'!$AP40","v":4.5910726904092272},{"$f":"(DC98*'Default-Data'!$F$19/biopower_dollar_index)/'Philippines-IO-Data'!$AP40","v":6.6465818353642083},null,"DOM_C72: Computer and related activities",0,0,null,617631.42529247329,203104.48478777101,{"$f":"DI98*'SouthAfrica-IO-Data'!AR40","v":0},{"$f":"DL98*'Mexico-IO-Data'!$AQ40","v":437691.40817368351},{"$f":"DM98*'Mexico-IO-Data'!$AQ40","v":143932.26172235917},{"$f":"DI98*'SouthAfrica-IO-Data'!AS40","v":0},{"$f":"DL98*'Mexico-IO-Data'!$AR40","v":258004.08849710447},{"$f":"DM98*'Mexico-IO-Data'!$AR40","v":84843.136734061962},{"$f":"(DQ98*'Default-Data'!$F$19/biopower_dollar_index)/'SouthAfrica-IO-Data'!$AT40","v":0},{"$f":"(DR98*'Default-Data'!$F$19/biopower_dollar_index)/'SouthAfrica-IO-Data'!$AT40","v":16.029438278832398},{"$f":"(DS98*'Default-Data'!$F$19/biopower_dollar_index)/'SouthAfrica-IO-Data'!$AT40","v":5.2711871024340251},20024.289935408491,17271.287293504265,{"$f":"DJ98*'SouthAfrica-IO-Data'!AR40","v":0},{"$f":"DW98*'SouthAfrica-IO-Data'!$AR40","v":10004.808271342959},{"$f":"DX98*'SouthAfrica-IO-Data'!$AR40","v":8629.315622584998},{"$f":"DJ98*'SouthAfrica-IO-Data'!AS40","v":0},{"$f":"DW98*'SouthAfrica-IO-Data'!$AS40","v":7564.1339484878436},{"$f":"DX98*'SouthAfrica-IO-Data'!$AS40","v":6524.1929163176228},{"$f":"(EB98*'Default-Data'!$F$19/biopower_dollar_index)/'SouthAfrica-IO-Data'!$AT40","v":0},{"$f":"(EC98*'Default-Data'!$F$19/biopower_dollar_index)/'SouthAfrica-IO-Data'!$AT40","v":0.46994921269035406},{"$f":"(ED98*'Default-Data'!$F$19/biopower_dollar_index)/'SouthAfrica-IO-Data'!$AT40","v":0.40533911024624147},null,"LNONE",0,0,null,0,44475482.016420238,{"$f":"EJ98*'Zambia-IO-Data'!BO38","v":0},{"$f":"EM98*'Zambia-IO-Data'!$BO38","v":0},{"$f":"EN98*'Zambia-IO-Data'!$BO38","v":0},{"$f":"EJ98*'Zambia-IO-Data'!BN38","v":0},{"$f":"EM98*'Zambia-IO-Data'!$BN38","v":0},{"$f":"EN98*'Zambia-IO-Data'!$BN38","v":0},0,0,0,0,11569629.696402106,{"$f":"EK98*'Zambia-IO-Data'!BO38","v":0},{"$f":"EX98*'Zambia-IO-Data'!$BO38","v":0},{"$f":"EY98*'Zambia-IO-Data'!$BO38","v":0},{"$f":"EK98*'Zambia-IO-Data'!BN38","v":0},{"$f":"EX98*'Zambia-IO-Data'!$BN38","v":0},{"$f":"EY98*'Zambia-IO-Data'!$BN38","v":0},0,0,0,null,"TTL_C72: Computer and related activities",0,0,null,11734950.322093129,4996796.6483982541,{"$f":"FK98*CustomRegion1!C36","v":0},{"$f":"FN98*CustomRegion1!$C36","v":5863589.0942125237},{"$f":"FO98*CustomRegion1!$C36","v":2496743.6187935807},{"$f":"FK98*CustomRegion1!D36","v":0},{"$f":"FN98*CustomRegion1!$D36","v":2045042.6714136959},{"$f":"FO98*CustomRegion1!$D36","v":870788.71966870793},{"$f":"(FS98*'Default-Data'!$F$19/biopower_dollar_index)/CustomRegion1!$E36","v":0},{"$f":"(FT98*'Default-Data'!$F$19/biopower_dollar_index)/CustomRegion1!$E36","v":517.86795528656285},{"$f":"(FU98*'Default-Data'!$F$19/biopower_dollar_index)/CustomRegion1!$E36","v":220.51059376169536},483363.62976036902,479189.2184573402,{"$f":"FL98*CustomRegion1!C36","v":0},{"$f":"FY98*CustomRegion1!$C36","v":241521.74744752934},{"$f":"FZ98*CustomRegion1!$C36","v":239435.92416584789},{"$f":"FL98*CustomRegion1!D36","v":0},{"$f":"FY98*CustomRegion1!$D36","v":84235.486434769162},{"$f":"FZ98*CustomRegion1!$D36","v":83508.014310183047},{"$f":"(GD98*'Default-Data'!$C$58/biopower_dollar_index)/CustomRegion1!$E36","v":0},{"$f":"(GE98*'Default-Data'!$C$58/biopower_dollar_index)/CustomRegion1!$E36","v":21.331026355742164},{"$f":"(GF98*'Default-Data'!$C$58/biopower_dollar_index)/CustomRegion1!$E36","v":21.146807949469519},null,"C70 Real estate activities",0,0,null,13011451.443540558,38479613.437786549,{"$f":"GL98*CustomRegion2!C40","v":0},{"$f":"GO98*CustomRegion2!$C40","v":11653973.710736867},{"$f":"GP98*CustomRegion2!$C40","v":34465056.058438934},{"$f":"GL98*CustomRegion2!D40","v":0},{"$f":"GO98*CustomRegion2!$D40","v":114708.63748794333},{"$f":"GP98*CustomRegion2!$D40","v":339235.33032915561},{"$f":"(GT98*'Default-Data'!$C$59/biopower_dollar_index)/CustomRegion2!$E40","v":0},{"$f":"(GU98*'Default-Data'!$C$59/biopower_dollar_index)/CustomRegion2!$E40","v":48.98109061522009},{"$f":"(GV98*'Default-Data'!$C$59/biopower_dollar_index)/CustomRegion2!$E40","v":144.85497185408519},233567.60947422482,1742363.950563387,{"$f":"GM98*CustomRegion2!C40","v":0},{"$f":"GZ98*CustomRegion2!$C40","v":209199.6263678626},{"$f":"HA98*CustomRegion2!$C40","v":1560584.056476024},{"$f":"GM98*CustomRegion2!D40","v":0},{"$f":"GZ98*CustomRegion2!$D40","v":2059.1263288620407},{"$f":"HA98*CustomRegion2!$D40","v":15360.63794608076},{"$f":"(HE98*'Default-Data'!$C$59/biopower_dollar_index)/CustomRegion2!$E40","v":0},{"$f":"(HF98*'Default-Data'!$C$59/biopower_dollar_index)/CustomRegion2!$E40","v":0.87925596111084492},{"$f":"(HG98*'Default-Data'!$C$59/biopower_dollar_index)/CustomRegion2!$E40","v":6.5590596804329611},null,"LNONE",0,0,null,0,44475482.016420238,{"$f":"HM98*CustomRegion3!D39","v":0},{"$f":"HP98*CustomRegion3!$D39","v":0},{"$f":"HQ98*CustomRegion3!$D39","v":0},{"$f":"HM98*CustomRegion3!E39","v":0},{"$f":"HP98*CustomRegion3!$E39","v":0},{"$f":"HQ98*CustomRegion3!$E39","v":0},0,0,0,0,11569629.696402106,{"$f":"HN98*CustomRegion3!D39","v":0},{"$f":"IA98*CustomRegion3!$D39","v":0},{"$f":"IB98*CustomRegion3!$D39","v":0},{"$f":"HN98*CustomRegion3!E39","v":0},{"$f":"IA98*CustomRegion3!$E39","v":0},{"$f":"IB98*CustomRegion3!$E39","v":0},0,0,0]
[null,311,"Sales",0,null,null,94911.012295237757,28098.738968694757,0,72271.709137645797,21396.293652027936,0,14552.878259709376,4308.4307876809398,0,3.0668931428890942,0.90796450046128596,null,null,null,null,null,null,null,null,null,null,null,null,98,"TTL_C73T74: R&D and other business activities",{"$f":"'Biopower-Inputs'!B26*'Biopower-Inputs'!C26","v":257306657.75156423},0,null,38347527.608803064,14683504.801694423,{"$f":"'Colombia-IO-Data'!$AN41*Calculations!AF99","v":187658288.92348215},{"$f":"'Colombia-IO-Data'!$AN41*AI99","v":27967529.01148057},{"$f":"'Colombia-IO-Data'!$AN41*AJ99","v":10708939.327742515},{"$f":"'Colombia-IO-Data'!$AO41*Calculations!AK99","v":70369635.644252896},{"$f":"'Colombia-IO-Data'!$AO41*Calculations!AL99","v":10487492.120374391},{"$f":"'Colombia-IO-Data'!$AO41*Calculations!AM99","v":4015725.4068160346},{"$f":"(AN99*'Default-Data'!$F$19/biopower_dollar_index)/'Colombia-IO-Data'!$AP41","v":6709.9655912720837},{"$f":"(AO99*'Default-Data'!$F$19/biopower_dollar_index)/'Colombia-IO-Data'!$AP41","v":1000.015285317119},{"$f":"(AP99*'Default-Data'!$F$19/biopower_dollar_index)/'Colombia-IO-Data'!$AP41","v":382.91201960960154},3297827.2762370273,1405575.7398801777,{"$f":"'Colombia-IO-Data'!$AN41*AG99","v":0},{"$f":"'Colombia-IO-Data'!$AN41*AT99","v":2405163.6643671962},{"$f":"'Colombia-IO-Data'!$AN41*AU99","v":1025111.2062282737},{"$f":"'Colombia-IO-Data'!$AO41*AV99","v":0},{"$f":"'Colombia-IO-Data'!$AO41*AW99","v":901907.88638879568},{"$f":"'Colombia-IO-Data'!$AO41*AX99","v":384404.56049632857},{"$f":"(AY99*'Default-Data'!$F$19/biopower_dollar_index)/'Colombia-IO-Data'!$AP41","v":0},{"$f":"(AZ99*'Default-Data'!$F$19/biopower_dollar_index)/'Colombia-IO-Data'!$AP41","v":85.999747316582855},{"$f":"(BA99*'Default-Data'!$F$19/biopower_dollar_index)/'Colombia-IO-Data'!$AP41","v":36.654181174079852},null,"DOM_C73T74: R&D and other business activities",257306657.75156423,0,null,52689213.2171323,16009835.840135276,{"$f":"BG99*'Mexico-IO-Data'!AQ41","v":193274782.7066153},{"$f":"BJ99*'Mexico-IO-Data'!$AQ41","v":39577274.542799354},{"$f":"BK99*'Mexico-IO-Data'!$AQ41","v":12025718.923131581},{"$f":"BG99*'Mexico-IO-Data'!AR41","v":85490130.252523631},{"$f":"BJ99*'Mexico-IO-Data'!$AR41","v":17505989.701925024},{"$f":"BK99*'Mexico-IO-Data'!$AR41","v":5319267.5356895821},{"$f":"(BO99*'Default-Data'!$F$19/biopower_dollar_index)/'Mexico-IO-Data'!$AS41","v":22277.94071377147},{"$f":"(BP99*'Default-Data'!$F$19/biopower_dollar_index)/'Mexico-IO-Data'!$AS41","v":4561.8997136089538},{"$f":"(BQ99*'Default-Data'!$F$19/biopower_dollar_index)/'Mexico-IO-Data'!$AS41","v":1386.1521376882411},2888217.494003864,1051279.8244835027,{"$f":"BH99*'Mexico-IO-Data'!AQ41","v":0},{"$f":"BU99*'Mexico-IO-Data'!$AQ41","v":2169472.0744537292},{"$f":"BV99*'Mexico-IO-Data'!$AQ41","v":789664.2916915057},{"$f":"BH99*'Mexico-IO-Data'!AR41","v":0},{"$f":"BU99*'Mexico-IO-Data'!$AR41","v":959610.18621760351},{"$f":"BV99*'Mexico-IO-Data'!$AR41","v":349287.69396134466},{"$f":"(BZ99*'Default-Data'!$F$19/biopower_dollar_index)/'Mexico-IO-Data'!$AS41","v":0},{"$f":"(CA99*'Default-Data'!$F$19/biopower_dollar_index)/'Mexico-IO-Data'!$AS41","v":250.06557802332864},{"$f":"(CB99*'Default-Data'!$F$19/biopower_dollar_index)/'Mexico-IO-Data'!$AS41","v":91.021156654409097},null,"TTL_C73T74: R&D and other business activities",{"$f":"'Biopower-Inputs'!B26*'Biopower-Inputs'!C26","v":257306657.75156423},0,null,15535279.448945612,5718411.1222779155,{"$f":"CH99*'Philippines-IO-Data'!AN41","v":124665023.99187078},{"$f":"CK99*'Philippines-IO-Data'!$AN41","v":7526839.7722267946},{"$f":"CL99*'Philippines-IO-Data'!$AN41","v":2770569.0400069845},{"$f":"CH99*'Philippines-IO-Data'!AO41","v":48785921.223832138},{"$f":"CK99*'Philippines-IO-Data'!$AO41","v":2945523.936338454},{"$f":"CL99*'Philippines-IO-Data'!$AO41","v":1084223.6146345495},{"$f":"(CP99*'Default-Data'!$F$19/biopower_dollar_index)/'Philippines-IO-Data'!$AP41","v":12302.694625074277},{"$f":"(CQ99*'Default-Data'!$F$19/biopower_dollar_index)/'Philippines-IO-Data'!$AP41","v":742.79383458513757},{"$f":"(CR99*'Default-Data'!$F$19/biopower_dollar_index)/'Philippines-IO-Data'!$AP41","v":273.41642222852965},962565.57637449796,568928.67609939934,{"$f":"CI99*'Philippines-IO-Data'!AN41","v":0},{"$f":"CV99*'Philippines-IO-Data'!$AN41","v":466362.8283895278},{"$f":"CW99*'Philippines-IO-Data'!$AN41","v":275645.82928155392},{"$f":"CI99*'Philippines-IO-Data'!AO41","v":0},{"$f":"CV99*'Philippines-IO-Data'!$AO41","v":182504.59895646968},{"$f":"CW99*'Philippines-IO-Data'!$AO41","v":107870.15702082303},{"$f":"(DA99*'Default-Data'!$F$19/biopower_dollar_index)/'Philippines-IO-Data'!$AP41","v":0},{"$f":"(DB99*'Default-Data'!$F$19/biopower_dollar_index)/'Philippines-IO-Data'!$AP41","v":46.023489816489466},{"$f":"(DC99*'Default-Data'!$F$19/biopower_dollar_index)/'Philippines-IO-Data'!$AP41","v":27.202388879718569},null,"DOM_C73T74: R&D and other business activities",257306657.75156423,0,null,60126373.023218542,33851437.245293736,{"$f":"DI99*'SouthAfrica-IO-Data'!AR41","v":109624854.37153429},{"$f":"DL99*'Mexico-IO-Data'!$AQ41","v":45163664.95351135},{"$f":"DM99*'Mexico-IO-Data'!$AQ41","v":25427360.625109971},{"$f":"DI99*'SouthAfrica-IO-Data'!AS41","v":70769611.933425188},{"$f":"DL99*'Mexico-IO-Data'!$AR41","v":19976985.851371843},{"$f":"DM99*'Mexico-IO-Data'!$AR41","v":11247139.13205263},{"$f":"(DQ99*'Default-Data'!$F$19/biopower_dollar_index)/'SouthAfrica-IO-Data'!$AT41","v":4396.8184113349462},{"$f":"(DR99*'Default-Data'!$F$19/biopower_dollar_index)/'SouthAfrica-IO-Data'!$AT41","v":1241.1425864100863},{"$f":"(DS99*'Default-Data'!$F$19/biopower_dollar_index)/'SouthAfrica-IO-Data'!$AT41","v":698.76924656836013},2378932.0901844837,2878606.5387597093,{"$f":"DJ99*'SouthAfrica-IO-Data'!AR41","v":0},{"$f":"DW99*'SouthAfrica-IO-Data'!$AR41","v":1013538.0336642623},{"$f":"DX99*'SouthAfrica-IO-Data'!$AR41","v":1226423.0757261124},{"$f":"DJ99*'SouthAfrica-IO-Data'!AS41","v":0},{"$f":"DW99*'SouthAfrica-IO-Data'!$AS41","v":654301.37839993171},{"$f":"DX99*'SouthAfrica-IO-Data'!$AS41","v":791731.81695803371},{"$f":"(EB99*'Default-Data'!$F$19/biopower_dollar_index)/'SouthAfrica-IO-Data'!$AT41","v":0},{"$f":"(EC99*'Default-Data'!$F$19/biopower_dollar_index)/'SouthAfrica-IO-Data'!$AT41","v":40.650842480484066},{"$f":"(ED99*'Default-Data'!$F$19/biopower_dollar_index)/'SouthAfrica-IO-Data'!$AT41","v":49.189206137169641},null,"LPRIM",0,0,null,0,80579858.456367552,{"$f":"EJ99*'Zambia-IO-Data'!BO39","v":0},{"$f":"EM99*'Zambia-IO-Data'!$BO39","v":0},{"$f":"EN99*'Zambia-IO-Data'!$BO39","v":0},{"$f":"EJ99*'Zambia-IO-Data'!BN39","v":0},{"$f":"EM99*'Zambia-IO-Data'!$BN39","v":0},{"$f":"EN99*'Zambia-IO-Data'!$BN39","v":0},0,0,0,0,8095008.5959587358,{"$f":"EK99*'Zambia-IO-Data'!BO39","v":0},{"$f":"EX99*'Zambia-IO-Data'!$BO39","v":0},{"$f":"EY99*'Zambia-IO-Data'!$BO39","v":0},{"$f":"EK99*'Zambia-IO-Data'!BN39","v":0},{"$f":"EX99*'Zambia-IO-Data'!$BN39","v":0},{"$f":"EY99*'Zambia-IO-Data'!$BN39","v":0},0,0,0,null,"TTL_C73T74: R&D and other business activities",257306657.75156423,0,null,21284272.704646379,8667573.1739409566,{"$f":"FK99*CustomRegion1!C37","v":124665023.99187078},{"$f":"FN99*CustomRegion1!$C37","v":10312225.849733694},{"$f":"FO99*CustomRegion1!$C37","v":4199437.4615985854},{"$f":"FK99*CustomRegion1!D37","v":48785921.223832138},{"$f":"FN99*CustomRegion1!$D37","v":4035545.9922767049},{"$f":"FO99*CustomRegion1!$D37","v":1643391.3749482587},{"$f":"(FS99*'Default-Data'!$F$19/biopower_dollar_index)/CustomRegion1!$E37","v":12354.101762332586},{"$f":"(FT99*'Default-Data'!$F$19/biopower_dollar_index)/CustomRegion1!$E37","v":1021.924862839429},{"$f":"(FU99*'Default-Data'!$F$19/biopower_dollar_index)/CustomRegion1!$E37","v":416.15744403597597},1462485.0626128733,831214.05720481207,{"$f":"FL99*CustomRegion1!C37","v":0},{"$f":"FY99*CustomRegion1!$C37","v":708573.71904624999},{"$f":"FZ99*CustomRegion1!$C37","v":402723.04373821896},{"$f":"FL99*CustomRegion1!D37","v":0},{"$f":"FY99*CustomRegion1!$D37","v":277290.4583158968},{"$f":"FZ99*CustomRegion1!$D37","v":157600.05539417232},{"$f":"(GD99*'Default-Data'!$C$58/biopower_dollar_index)/CustomRegion1!$E37","v":0},{"$f":"(GE99*'Default-Data'!$C$58/biopower_dollar_index)/CustomRegion1!$E37","v":70.218506770452748},{"$f":"(GF99*'Default-Data'!$C$58/biopower_dollar_index)/CustomRegion1!$E37","v":39.909200712965855},null,"C71 Renting of machinery and equipment",257306657.75156423,0,null,5295655.2670746744,2339486.3886349797,{"$f":"GL99*CustomRegion2!C41","v":218535720.02403098},{"$f":"GO99*CustomRegion2!$C41","v":4497706.5378020937},{"$f":"GP99*CustomRegion2!$C41","v":1986972.8474744731},{"$f":"GL99*CustomRegion2!D41","v":9797753.3607465066},{"$f":"GO99*CustomRegion2!$D41","v":201648.58789014525},{"$f":"GP99*CustomRegion2!$D41","v":89083.239535918037},{"$f":"(GT99*'Default-Data'!$C$59/biopower_dollar_index)/CustomRegion2!$E41","v":4183.6835978349327},{"$f":"(GU99*'Default-Data'!$C$59/biopower_dollar_index)/CustomRegion2!$E41","v":86.104830221843713},{"$f":"(GV99*'Default-Data'!$C$59/biopower_dollar_index)/CustomRegion2!$E41","v":38.038933454028523},181082.12443967114,105932.37255311172,{"$f":"GM99*CustomRegion2!C41","v":0},{"$f":"GZ99*CustomRegion2!$C41","v":153796.69066361009},{"$f":"HA99*CustomRegion2!$C41","v":89970.494786419629},{"$f":"GM99*CustomRegion2!D41","v":0},{"$f":"GZ99*CustomRegion2!$D41","v":6895.2665617107186},{"$f":"HA99*CustomRegion2!$D41","v":4033.7054169667776},{"$f":"(HE99*'Default-Data'!$C$59/biopower_dollar_index)/CustomRegion2!$E41","v":0},{"$f":"(HF99*'Default-Data'!$C$59/biopower_dollar_index)/CustomRegion2!$E41","v":2.9443090221584085},{"$f":"(HG99*'Default-Data'!$C$59/biopower_dollar_index)/CustomRegion2!$E41","v":1.7224098801131729},null,"LPRIM",0,0,null,0,80579858.456367552,{"$f":"HM99*CustomRegion3!D40","v":0},{"$f":"HP99*CustomRegion3!$D40","v":0},{"$f":"HQ99*CustomRegion3!$D40","v":0},{"$f":"HM99*CustomRegion3!E40","v":0},{"$f":"HP99*CustomRegion3!$E40","v":0},{"$f":"HQ99*CustomRegion3!$E40","v":0},0,0,0,0,8095008.5959587358,{"$f":"HN99*CustomRegion3!D40","v":0},{"$f":"IA99*CustomRegion3!$D40","v":0},{"$f":"IB99*CustomRegion3!$D40","v":0},{"$f":"HN99*CustomRegion3!E40","v":0},{"$f":"IA99*CustomRegion3!$E40","v":0},{"$f":"IB99*CustomRegion3!$E40","v":0},0,0,0]
[null,312,"Transportation and Warehousing",0,null,null,26997.033962203343,16235.138720838317,0,19731.999665611009,11866.183235507724,0,6365.8034871311474,3828.1873048670145,0,0.9009032984420432,0.54177396097455066,null,null,null,null,null,null,null,null,null,null,null,null,99,"TTL_C75: Public administration and defence; compulsory social security",0,0,null,214974.81078800326,29114148.089781571,{"$f":"'Colombia-IO-Data'!$AN42*Calculations!AF100","v":0},{"$f":"'Colombia-IO-Data'!$AN42*AI100","v":130170.13834698251},{"$f":"'Colombia-IO-Data'!$AN42*AJ100","v":17629008.118717201},{"$f":"'Colombia-IO-Data'!$AO42*Calculations!AK100","v":0},{"$f":"'Colombia-IO-Data'!$AO42*Calculations!AL100","v":109285.11452497433},{"$f":"'Colombia-IO-Data'!$AO42*Calculations!AM100","v":14800538.707888467},{"$f":"(AN100*'Default-Data'!$F$19/biopower_dollar_index)/'Colombia-IO-Data'!$AP42","v":0},{"$f":"(AO100*'Default-Data'!$F$19/biopower_dollar_index)/'Colombia-IO-Data'!$AP42","v":10.420678626331576},{"$f":"(AP100*'Default-Data'!$F$19/biopower_dollar_index)/'Colombia-IO-Data'!$AP42","v":1411.2778125537011},1734.0812341086071,2786946.3588525085,{"$f":"'Colombia-IO-Data'!$AN42*AG100","v":0},{"$f":"'Colombia-IO-Data'!$AN42*AT100","v":1050.0095026082945},{"$f":"'Colombia-IO-Data'!$AN42*AU100","v":1687533.4917968682},{"$f":"'Colombia-IO-Data'!$AO42*AV100","v":0},{"$f":"'Colombia-IO-Data'!$AO42*AW100","v":881.54172840301692},{"$f":"'Colombia-IO-Data'!$AO42*AX100","v":1416778.7885740206},{"$f":"(AY100*'Default-Data'!$F$19/biopower_dollar_index)/'Colombia-IO-Data'!$AP42","v":0},{"$f":"(AZ100*'Default-Data'!$F$19/biopower_dollar_index)/'Colombia-IO-Data'!$AP42","v":8.4057770239966453E-2},{"$f":"(BA100*'Default-Data'!$F$19/biopower_dollar_index)/'Colombia-IO-Data'!$AP42","v":135.09430359758053},null,"DOM_C75: Public administration and defence; compulsory social security",0,0,null,8239.4245873409564,20435340.115124717,{"$f":"BG100*'Mexico-IO-Data'!AQ42","v":0},{"$f":"BJ100*'Mexico-IO-Data'!$AQ42","v":5904.4896852145976},{"$f":"BK100*'Mexico-IO-Data'!$AQ42","v":14644257.453243552},{"$f":"BG100*'Mexico-IO-Data'!AR42","v":0},{"$f":"BJ100*'Mexico-IO-Data'!$AR42","v":5820.8157708385907},{"$f":"BK100*'Mexico-IO-Data'!$AR42","v":14436730.23081292},{"$f":"(BO100*'Default-Data'!$F$19/biopower_dollar_index)/'Mexico-IO-Data'!$AS42","v":0},{"$f":"(BP100*'Default-Data'!$F$19/biopower_dollar_index)/'Mexico-IO-Data'!$AS42","v":4.0157799858039125},{"$f":"(BQ100*'Default-Data'!$F$19/biopower_dollar_index)/'Mexico-IO-Data'!$AS42","v":9959.8981661287926},2385.3003220228848,1341878.8914519926,{"$f":"BH100*'Mexico-IO-Data'!AQ42","v":0},{"$f":"BU100*'Mexico-IO-Data'!$AQ42","v":1709.3403790796017},{"$f":"BV100*'Mexico-IO-Data'!$AQ42","v":961609.63540567469},{"$f":"BH100*'Mexico-IO-Data'!AR42","v":0},{"$f":"BU100*'Mexico-IO-Data'!$AR42","v":1685.1169138618179},{"$f":"BV100*'Mexico-IO-Data'!$AR42","v":947982.43871540669},{"$f":"(BZ100*'Default-Data'!$F$19/biopower_dollar_index)/'Mexico-IO-Data'!$AS42","v":0},{"$f":"(CA100*'Default-Data'!$F$19/biopower_dollar_index)/'Mexico-IO-Data'!$AS42","v":1.1625619230774986},{"$f":"(CB100*'Default-Data'!$F$19/biopower_dollar_index)/'Mexico-IO-Data'!$AS42","v":654.01295182006174},null,"TTL_C75: Public administration and defence; compulsory social security",0,0,null,366329.99184238026,19579329.540415943,{"$f":"CH100*'Philippines-IO-Data'!AN42","v":0},{"$f":"CK100*'Philippines-IO-Data'!$AN42","v":204052.38581531786},{"$f":"CL100*'Philippines-IO-Data'!$AN42","v":10906038.256090183},{"$f":"CH100*'Philippines-IO-Data'!AO42","v":0},{"$f":"CK100*'Philippines-IO-Data'!$AO42","v":173303.20773070757},{"$f":"CL100*'Philippines-IO-Data'!$AO42","v":9262579.3413896859},{"$f":"(CP100*'Default-Data'!$F$19/biopower_dollar_index)/'Philippines-IO-Data'!$AP42","v":0},{"$f":"(CQ100*'Default-Data'!$F$19/biopower_dollar_index)/'Philippines-IO-Data'!$AP42","v":43.703109191574889},{"$f":"(CR100*'Default-Data'!$F$19/biopower_dollar_index)/'Philippines-IO-Data'!$AP42","v":2335.8108695910319},4022.9362816291637,1947961.0325578148,{"$f":"CI100*'Philippines-IO-Data'!AN42","v":0},{"$f":"CV100*'Philippines-IO-Data'!$AN42","v":2240.8477725805105},{"$f":"CW100*'Philippines-IO-Data'!$AN42","v":1085049.2862176499},{"$f":"CI100*'Philippines-IO-Data'!AO42","v":0},{"$f":"CV100*'Philippines-IO-Data'!$AO42","v":1903.1686665790558},{"$f":"CW100*'Philippines-IO-Data'!$AO42","v":921540.42255416408},{"$f":"(DA100*'Default-Data'!$F$19/biopower_dollar_index)/'Philippines-IO-Data'!$AP42","v":0},{"$f":"(DB100*'Default-Data'!$F$19/biopower_dollar_index)/'Philippines-IO-Data'!$AP42","v":0.47993565228597207},{"$f":"(DC100*'Default-Data'!$F$19/biopower_dollar_index)/'Philippines-IO-Data'!$AP42","v":232.39143832765029},null,"DOM_C75: Public administration and defence; compulsory social security",0,0,null,112013.72552753716,95220627.568675742,{"$f":"DI100*'SouthAfrica-IO-Data'!AR42","v":0},{"$f":"DL100*'Mexico-IO-Data'!$AQ42","v":80270.640257567473},{"$f":"DM100*'Mexico-IO-Data'!$AQ42","v":68236465.706927523},{"$f":"DI100*'SouthAfrica-IO-Data'!AS42","v":0},{"$f":"DL100*'Mexico-IO-Data'!$AR42","v":79133.106103407146},{"$f":"DM100*'Mexico-IO-Data'!$AR42","v":67269470.675472021},{"$f":"(DQ100*'Default-Data'!$F$19/biopower_dollar_index)/'SouthAfrica-IO-Data'!$AT42","v":0},{"$f":"(DR100*'Default-Data'!$F$19/biopower_dollar_index)/'SouthAfrica-IO-Data'!$AT42","v":4.7062030459654034},{"$f":"(DS100*'Default-Data'!$F$19/biopower_dollar_index)/'SouthAfrica-IO-Data'!$AT42","v":4000.6490757444949},8446.4255335240687,8097225.5079686586,{"$f":"DJ100*'SouthAfrica-IO-Data'!AR42","v":0},{"$f":"DW100*'SouthAfrica-IO-Data'!$AR42","v":5228.1889387792926},{"$f":"DX100*'SouthAfrica-IO-Data'!$AR42","v":5012040.2610002654},{"$f":"DJ100*'SouthAfrica-IO-Data'!AS42","v":0},{"$f":"DW100*'SouthAfrica-IO-Data'!$AS42","v":4611.4046650250557},{"$f":"DX100*'SouthAfrica-IO-Data'!$AS42","v":4420755.6596580213},{"$f":"(EB100*'Default-Data'!$F$19/biopower_dollar_index)/'SouthAfrica-IO-Data'!$AT42","v":0},{"$f":"(EC100*'Default-Data'!$F$19/biopower_dollar_index)/'SouthAfrica-IO-Data'!$AT42","v":0.27424939762077127},{"$f":"(ED100*'Default-Data'!$F$19/biopower_dollar_index)/'SouthAfrica-IO-Data'!$AT42","v":262.91112247969249},null,"LSECD",0,0,null,0,37575177.043648817,{"$f":"EJ100*'Zambia-IO-Data'!BO40","v":0},{"$f":"EM100*'Zambia-IO-Data'!$BO40","v":0},{"$f":"EN100*'Zambia-IO-Data'!$BO40","v":0},{"$f":"EJ100*'Zambia-IO-Data'!BN40","v":0},{"$f":"EM100*'Zambia-IO-Data'!$BN40","v":0},{"$f":"EN100*'Zambia-IO-Data'!$BN40","v":0},0,0,0,0,2262428.0106611066,{"$f":"EK100*'Zambia-IO-Data'!BO40","v":0},{"$f":"EX100*'Zambia-IO-Data'!$BO40","v":0},{"$f":"EY100*'Zambia-IO-Data'!$BO40","v":0},{"$f":"EK100*'Zambia-IO-Data'!BN40","v":0},{"$f":"EX100*'Zambia-IO-Data'!$BN40","v":0},{"$f":"EY100*'Zambia-IO-Data'!$BN40","v":0},0,0,0,null,"TTL_C75: Public administration and defence; compulsory social security",0,0,null,469617.32034239086,22384940.042431101,{"$f":"FK100*CustomRegion1!C38","v":0},{"$f":"FN100*CustomRegion1!$C38","v":261585.28313262505},{"$f":"FO100*CustomRegion1!$C38","v":12468813.702690879},{"$f":"FK100*CustomRegion1!D38","v":0},{"$f":"FN100*CustomRegion1!$D38","v":222166.32498999263},{"$f":"FO100*CustomRegion1!$D38","v":10589856.14227852},{"$f":"(FS100*'Default-Data'!$F$19/biopower_dollar_index)/CustomRegion1!$E38","v":0},{"$f":"(FT100*'Default-Data'!$F$19/biopower_dollar_index)/CustomRegion1!$E38","v":56.259373979988318},{"$f":"(FU100*'Default-Data'!$F$19/biopower_dollar_index)/CustomRegion1!$E38","v":2681.6785898113067},10563.682638269465,2146699.7116213362,{"$f":"FL100*CustomRegion1!C38","v":0},{"$f":"FY100*CustomRegion1!$C38","v":5884.1609841822501},{"$f":"FZ100*CustomRegion1!$C38","v":1195750.3003845296},{"$f":"FL100*CustomRegion1!D38","v":0},{"$f":"FY100*CustomRegion1!$D38","v":4997.4616532325335},{"$f":"FZ100*CustomRegion1!$D38","v":1015559.6165837131},{"$f":"(GD100*'Default-Data'!$C$58/biopower_dollar_index)/CustomRegion1!$E38","v":0},{"$f":"(GE100*'Default-Data'!$C$58/biopower_dollar_index)/CustomRegion1!$E38","v":1.2655116121334964},{"$f":"(GF100*'Default-Data'!$C$58/biopower_dollar_index)/CustomRegion1!$E38","v":257.17105538352979},null,"C72 Computer and related activities",0,0,null,173430.1004332467,186664.56760677841,{"$f":"GL100*CustomRegion2!C42","v":0},{"$f":"GO100*CustomRegion2!$C42","v":89728.608654606884},{"$f":"GP100*CustomRegion2!$C42","v":96575.807167434483},{"$f":"GL100*CustomRegion2!D42","v":0},{"$f":"GO100*CustomRegion2!$D42","v":58780.676559230422},{"$f":"GP100*CustomRegion2!$D42","v":63266.235481342359},{"$f":"(GT100*'Default-Data'!$C$59/biopower_dollar_index)/CustomRegion2!$E42","v":0},{"$f":"(GU100*'Default-Data'!$C$59/biopower_dollar_index)/CustomRegion2!$E42","v":4.7445479922702702},{"$f":"(GV100*'Default-Data'!$C$59/biopower_dollar_index)/CustomRegion2!$E42","v":5.1066048930048407},7069.5117249343011,8452.2058406692086,{"$f":"GM100*CustomRegion2!C42","v":0},{"$f":"GZ100*CustomRegion2!$C42","v":3657.5972069504824},{"$f":"HA100*CustomRegion2!$C42","v":4372.9702528627677},{"$f":"GM100*CustomRegion2!D42","v":0},{"$f":"GZ100*CustomRegion2!$D42","v":2396.0701233347659},{"$f":"HA100*CustomRegion2!$D42","v":2864.7067405905332},{"$f":"(HE100*'Default-Data'!$C$59/biopower_dollar_index)/CustomRegion2!$E42","v":0},{"$f":"(HF100*'Default-Data'!$C$59/biopower_dollar_index)/CustomRegion2!$E42","v":0.19340147746600858},{"$f":"(HG100*'Default-Data'!$C$59/biopower_dollar_index)/CustomRegion2!$E42","v":0.23122800570041399},null,"LSECD",0,0,null,0,37575177.043648817,{"$f":"HM100*CustomRegion3!D41","v":0},{"$f":"HP100*CustomRegion3!$D41","v":0},{"$f":"HQ100*CustomRegion3!$D41","v":0},{"$f":"HM100*CustomRegion3!E41","v":0},{"$f":"HP100*CustomRegion3!$E41","v":0},{"$f":"HQ100*CustomRegion3!$E41","v":0},0,0,0,0,2262428.0106611066,{"$f":"HN100*CustomRegion3!D41","v":0},{"$f":"IA100*CustomRegion3!$D41","v":0},{"$f":"IB100*CustomRegion3!$D41","v":0},{"$f":"HN100*CustomRegion3!E41","v":0},{"$f":"IA100*CustomRegion3!$E41","v":0},{"$f":"IB100*CustomRegion3!$E41","v":0},0,0,0]
[null,313,"Information",0,null,null,3040.1009243344301,6327.8060064044948,0,1854.8897343186684,3860.8528776423354,0,474.17955792348471,986.97915938411097,0,3.9603240235918248E-2,8.2432007250807932E-2,null,null,null,null,null,null,null,null,null,null,null,null,100,"TTL_C80: Education",0,0,null,363024.74620720325,16959195.518572722,{"$f":"'Colombia-IO-Data'!$AN43*Calculations!AF101","v":0},{"$f":"'Colombia-IO-Data'!$AN43*AI101","v":286196.22980245517},{"$f":"'Colombia-IO-Data'!$AN43*AJ101","v":13370046.721630072},{"$f":"'Colombia-IO-Data'!$AO43*Calculations!AK101","v":0},{"$f":"'Colombia-IO-Data'!$AO43*Calculations!AL101","v":210696.15487461383},{"$f":"'Colombia-IO-Data'!$AO43*Calculations!AM101","v":9842957.8778372388},{"$f":"(AN101*'Default-Data'!$F$19/biopower_dollar_index)/'Colombia-IO-Data'!$AP43","v":0},{"$f":"(AO101*'Default-Data'!$F$19/biopower_dollar_index)/'Colombia-IO-Data'!$AP43","v":20.090539569781829},{"$f":"(AP101*'Default-Data'!$F$19/biopower_dollar_index)/'Colombia-IO-Data'!$AP43","v":938.55692262664638},59341.38470137187,1623415.8064251514,{"$f":"'Colombia-IO-Data'!$AN43*AG101","v":0},{"$f":"'Colombia-IO-Data'!$AN43*AT101","v":46782.707653478239},{"$f":"'Colombia-IO-Data'!$AN43*AU101","v":1279845.2118065876},{"$f":"'Colombia-IO-Data'!$AO43*AV101","v":0},{"$f":"'Colombia-IO-Data'!$AO43*AW101","v":34441.182624993737},{"$f":"'Colombia-IO-Data'!$AO43*AX101","v":942215.29454969929},{"$f":"(AY101*'Default-Data'!$F$19/biopower_dollar_index)/'Colombia-IO-Data'!$AP43","v":0},{"$f":"(AZ101*'Default-Data'!$F$19/biopower_dollar_index)/'Colombia-IO-Data'!$AP43","v":3.2840748459282358},{"$f":"(BA101*'Default-Data'!$F$19/biopower_dollar_index)/'Colombia-IO-Data'!$AP43","v":89.843185176632517},null,"DOM_C80: Education",0,0,null,374402.89679904433,18350178.346993811,{"$f":"BG101*'Mexico-IO-Data'!AQ43","v":0},{"$f":"BJ101*'Mexico-IO-Data'!$AQ43","v":335916.92835594213},{"$f":"BK101*'Mexico-IO-Data'!$AQ43","v":16463909.862359844},{"$f":"BG101*'Mexico-IO-Data'!AR43","v":0},{"$f":"BJ101*'Mexico-IO-Data'!$AR43","v":289687.92252667935},{"$f":"BK101*'Mexico-IO-Data'!$AR43","v":14198140.796404919},{"$f":"(BO101*'Default-Data'!$F$19/biopower_dollar_index)/'Mexico-IO-Data'!$AS43","v":0},{"$f":"(BP101*'Default-Data'!$F$19/biopower_dollar_index)/'Mexico-IO-Data'!$AS43","v":70.063133685661555},{"$f":"(BQ101*'Default-Data'!$F$19/biopower_dollar_index)/'Mexico-IO-Data'!$AS43","v":3433.9237481146565},60591.018364428586,1204957.5313887622,{"$f":"BH101*'Mexico-IO-Data'!AQ43","v":0},{"$f":"BU101*'Mexico-IO-Data'!$AQ43","v":54362.690430415721},{"$f":"BV101*'Mexico-IO-Data'!$AQ43","v":1081096.4236762414},{"$f":"BH101*'Mexico-IO-Data'!AR43","v":0},{"$f":"BU101*'Mexico-IO-Data'!$AR43","v":46881.277852901476},{"$f":"BV101*'Mexico-IO-Data'!$AR43","v":932315.55360598781},{"$f":"(BZ101*'Default-Data'!$F$19/biopower_dollar_index)/'Mexico-IO-Data'!$AS43","v":0},{"$f":"(CA101*'Default-Data'!$F$19/biopower_dollar_index)/'Mexico-IO-Data'!$AS43","v":11.338578456821839},{"$f":"(CB101*'Default-Data'!$F$19/biopower_dollar_index)/'Mexico-IO-Data'!$AS43","v":225.48730613200496},null,"TTL_C80: Education",0,0,null,1734618.5003670899,18986590.95511451,{"$f":"CH101*'Philippines-IO-Data'!AN43","v":0},{"$f":"CK101*'Philippines-IO-Data'!$AN43","v":1180518.8527309648},{"$f":"CL101*'Philippines-IO-Data'!$AN43","v":12921589.713738503},{"$f":"CH101*'Philippines-IO-Data'!AO43","v":0},{"$f":"CK101*'Philippines-IO-Data'!$AO43","v":821139.58701509039},{"$f":"CL101*'Philippines-IO-Data'!$AO43","v":8987936.8013242092},{"$f":"(CP101*'Default-Data'!$F$19/biopower_dollar_index)/'Philippines-IO-Data'!$AP43","v":0},{"$f":"(CQ101*'Default-Data'!$F$19/biopower_dollar_index)/'Philippines-IO-Data'!$AP43","v":207.07264165939907},{"$f":"(CR101*'Default-Data'!$F$19/biopower_dollar_index)/'Philippines-IO-Data'!$AP43","v":2266.5522962830073},9465.3697563656751,1888989.0609038707,{"$f":"CI101*'Philippines-IO-Data'!AN43","v":0},{"$f":"CV101*'Philippines-IO-Data'!$AN43","v":6441.789617195057},{"$f":"CW101*'Philippines-IO-Data'!$AN43","v":1285577.8942330303},{"$f":"CI101*'Philippines-IO-Data'!AO43","v":0},{"$f":"CV101*'Philippines-IO-Data'!$AO43","v":4480.748828080872},{"$f":"CW101*'Philippines-IO-Data'!$AO43","v":894216.0463631457},{"$f":"(DA101*'Default-Data'!$F$19/biopower_dollar_index)/'Philippines-IO-Data'!$AP43","v":0},{"$f":"(DB101*'Default-Data'!$F$19/biopower_dollar_index)/'Philippines-IO-Data'!$AP43","v":1.1299424739900055},{"$f":"(DC101*'Default-Data'!$F$19/biopower_dollar_index)/'Philippines-IO-Data'!$AP43","v":225.50085498586168},null,"DOM_C80: Education",0,0,null,177450.68210088278,5326579.3648504913,{"$f":"DI101*'SouthAfrica-IO-Data'!AR43","v":0},{"$f":"DL101*'Mexico-IO-Data'!$AQ43","v":159210.00765650984},{"$f":"DM101*'Mexico-IO-Data'!$AQ43","v":4779044.6980571803},{"$f":"DI101*'SouthAfrica-IO-Data'!AS43","v":0},{"$f":"DL101*'Mexico-IO-Data'!$AR43","v":137299.47040537468},{"$f":"DM101*'Mexico-IO-Data'!$AR43","v":4121350.8858218766},{"$f":"(DQ101*'Default-Data'!$F$19/biopower_dollar_index)/'SouthAfrica-IO-Data'!$AT43","v":0},{"$f":"(DR101*'Default-Data'!$F$19/biopower_dollar_index)/'SouthAfrica-IO-Data'!$AT43","v":8.1654722991265238},{"$f":"(DS101*'Default-Data'!$F$19/biopower_dollar_index)/'SouthAfrica-IO-Data'!$AT43","v":245.10492570582949},6169.2209108921179,452953.47662122856,{"$f":"DJ101*'SouthAfrica-IO-Data'!AR43","v":0},{"$f":"DW101*'SouthAfrica-IO-Data'!$AR43","v":3147.1988326129253},{"$f":"DX101*'SouthAfrica-IO-Data'!$AR43","v":231072.07108330846},{"$f":"DJ101*'SouthAfrica-IO-Data'!AS43","v":0},{"$f":"DW101*'SouthAfrica-IO-Data'!$AS43","v":1596.6130120344853},{"$f":"DX101*'SouthAfrica-IO-Data'!$AS43","v":117225.72834810878},{"$f":"(EB101*'Default-Data'!$F$19/biopower_dollar_index)/'SouthAfrica-IO-Data'!$AT43","v":0},{"$f":"(EC101*'Default-Data'!$F$19/biopower_dollar_index)/'SouthAfrica-IO-Data'!$AT43","v":9.4953748063999865E-2},{"$f":"(ED101*'Default-Data'!$F$19/biopower_dollar_index)/'SouthAfrica-IO-Data'!$AT43","v":6.9716469753691257},null,"LPOST",0,0,null,0,66156024.705657594,{"$f":"EJ101*'Zambia-IO-Data'!BO41","v":0},{"$f":"EM101*'Zambia-IO-Data'!$BO41","v":0},{"$f":"EN101*'Zambia-IO-Data'!$BO41","v":0},{"$f":"EJ101*'Zambia-IO-Data'!BN41","v":0},{"$f":"EM101*'Zambia-IO-Data'!$BN41","v":0},{"$f":"EN101*'Zambia-IO-Data'!$BN41","v":0},0,0,0,0,1277747.113064128,{"$f":"EK101*'Zambia-IO-Data'!BO41","v":0},{"$f":"EX101*'Zambia-IO-Data'!$BO41","v":0},{"$f":"EY101*'Zambia-IO-Data'!$BO41","v":0},{"$f":"EK101*'Zambia-IO-Data'!BN41","v":0},{"$f":"EX101*'Zambia-IO-Data'!$BN41","v":0},{"$f":"EY101*'Zambia-IO-Data'!$BN41","v":0},0,0,0,null,"TTL_C80: Education",0,0,null,1871050.8997443088,21704500.661288261,{"$f":"FK101*CustomRegion1!C39","v":0},{"$f":"FN101*CustomRegion1!$C39","v":1273369.8280630293},{"$f":"FO101*CustomRegion1!$C39","v":14771301.132981166},{"$f":"FK101*CustomRegion1!D39","v":0},{"$f":"FN101*CustomRegion1!$D39","v":885724.41881319415},{"$f":"FO101*CustomRegion1!$D39","v":10274550.113242375},{"$f":"(FS101*'Default-Data'!$F$19/biopower_dollar_index)/CustomRegion1!$E39","v":0},{"$f":"(FT101*'Default-Data'!$F$19/biopower_dollar_index)/CustomRegion1!$E39","v":224.29277399922728},{"$f":"(FU101*'Default-Data'!$F$19/biopower_dollar_index)/CustomRegion1!$E39","v":2601.8333666142771},18664.988682660369,2081446.062493559,{"$f":"FL101*CustomRegion1!C39","v":0},{"$f":"FY101*CustomRegion1!$C39","v":12702.718794494363},{"$f":"FZ101*CustomRegion1!$C39","v":1416557.1952543322},{"$f":"FL101*CustomRegion1!D39","v":0},{"$f":"FY101*CustomRegion1!$D39","v":8835.6956271811796},{"$f":"FZ101*CustomRegion1!$D39","v":985321.99431082129},{"$f":"(GD101*'Default-Data'!$C$58/biopower_dollar_index)/CustomRegion1!$E39","v":0},{"$f":"(GE101*'Default-Data'!$C$58/biopower_dollar_index)/CustomRegion1!$E39","v":2.2374709789403262},{"$f":"(GF101*'Default-Data'!$C$58/biopower_dollar_index)/CustomRegion1!$E39","v":249.51395568674687},null,"C73 Research and development",0,0,null,0,0,{"$f":"GL101*CustomRegion2!C43","v":0},{"$f":"GO101*CustomRegion2!$C43","v":0},{"$f":"GP101*CustomRegion2!$C43","v":0},{"$f":"GL101*CustomRegion2!D43","v":0},{"$f":"GO101*CustomRegion2!$D43","v":0},{"$f":"GP101*CustomRegion2!$D43","v":0},{"$f":"(GT101*'Default-Data'!$C$59/biopower_dollar_index)/CustomRegion2!$E43","v":0},{"$f":"(GU101*'Default-Data'!$C$59/biopower_dollar_index)/CustomRegion2!$E43","v":0},{"$f":"(GV101*'Default-Data'!$C$59/biopower_dollar_index)/CustomRegion2!$E43","v":0},0,0,{"$f":"GM101*CustomRegion2!C43","v":0},{"$f":"GZ101*CustomRegion2!$C43","v":0},{"$f":"HA101*CustomRegion2!$C43","v":0},{"$f":"GM101*CustomRegion2!D43","v":0},{"$f":"GZ101*CustomRegion2!$D43","v":0},{"$f":"HA101*CustomRegion2!$D43","v":0},{"$f":"(HE101*'Default-Data'!$C$59/biopower_dollar_index)/CustomRegion2!$E43","v":0},{"$f":"(HF101*'Default-Data'!$C$59/biopower_dollar_index)/CustomRegion2!$E43","v":0},{"$f":"(HG101*'Default-Data'!$C$59/biopower_dollar_index)/CustomRegion2!$E43","v":0},null,"LPOST",0,0,null,0,66156024.705657594,{"$f":"HM101*CustomRegion3!D42","v":0},{"$f":"HP101*CustomRegion3!$D42","v":0},{"$f":"HQ101*CustomRegion3!$D42","v":0},{"$f":"HM101*CustomRegion3!E42","v":0},{"$f":"HP101*CustomRegion3!$E42","v":0},{"$f":"HQ101*CustomRegion3!$E42","v":0},0,0,0,0,1277747.113064128,{"$f":"HN101*CustomRegion3!D42","v":0},{"$f":"IA101*CustomRegion3!$D42","v":0},{"$f":"IB101*CustomRegion3!$D42","v":0},{"$f":"HN101*CustomRegion3!E42","v":0},{"$f":"IA101*CustomRegion3!$E42","v":0},{"$f":"IB101*CustomRegion3!$E42","v":0},0,0,0]
[null,314,"Finance, Professional, and Business Services",0,null,null,61553.856152582826,49859.212151240179,0,46419.306331201216,39406.236425597534,0,15829.621376092404,13921.840582678151,0,3.8107216632985073,7.2675733301564476,null,null,null,null,null,null,null,null,null,null,null,null,101,"TTL_C85: Health and social work",0,0,null,21843.807440496013,15995339.82895086,{"$f":"'Colombia-IO-Data'!$AN44*Calculations!AF102","v":0},{"$f":"'Colombia-IO-Data'!$AN44*AI102","v":8664.9659779546309},{"$f":"'Colombia-IO-Data'!$AN44*AJ102","v":6345005.3659937708},{"$f":"'Colombia-IO-Data'!$AO44*Calculations!AK102","v":0},{"$f":"'Colombia-IO-Data'!$AO44*Calculations!AL102","v":6434.2448827349508},{"$f":"'Colombia-IO-Data'!$AO44*Calculations!AM102","v":4711538.2115681488},{"$f":"(AN102*'Default-Data'!$F$19/biopower_dollar_index)/'Colombia-IO-Data'!$AP44","v":0},{"$f":"(AO102*'Default-Data'!$F$19/biopower_dollar_index)/'Colombia-IO-Data'!$AP44","v":0.61352544138824172},{"$f":"(AP102*'Default-Data'!$F$19/biopower_dollar_index)/'Colombia-IO-Data'!$AP44","v":449.25995412863608},1090.3610299537445,1531150.901528493,{"$f":"'Colombia-IO-Data'!$AN44*AG102","v":0},{"$f":"'Colombia-IO-Data'!$AN44*AT102","v":432.52263846280408},{"$f":"'Colombia-IO-Data'!$AN44*AU102","v":607374.44719745649},{"$f":"'Colombia-IO-Data'!$AO44*AV102","v":0},{"$f":"'Colombia-IO-Data'!$AO44*AW102","v":321.17339875040506},{"$f":"'Colombia-IO-Data'!$AO44*AX102","v":451011.11057180259},{"$f":"(AY102*'Default-Data'!$F$19/biopower_dollar_index)/'Colombia-IO-Data'!$AP44","v":0},{"$f":"(AZ102*'Default-Data'!$F$19/biopower_dollar_index)/'Colombia-IO-Data'!$AP44","v":3.0624891470830442E-2},{"$f":"(BA102*'Default-Data'!$F$19/biopower_dollar_index)/'Colombia-IO-Data'!$AP44","v":43.005324747128498},null,"DOM_C85: Health and social work",0,0,null,0,13350422.225817297,{"$f":"BG102*'Mexico-IO-Data'!AQ44","v":0},{"$f":"BJ102*'Mexico-IO-Data'!$AQ44","v":0},{"$f":"BK102*'Mexico-IO-Data'!$AQ44","v":9969608.5578066539},{"$f":"BG102*'Mexico-IO-Data'!AR44","v":0},{"$f":"BJ102*'Mexico-IO-Data'!$AR44","v":0},{"$f":"BK102*'Mexico-IO-Data'!$AR44","v":7004060.3615277158},{"$f":"(BO102*'Default-Data'!$F$19/biopower_dollar_index)/'Mexico-IO-Data'!$AS44","v":0},{"$f":"(BP102*'Default-Data'!$F$19/biopower_dollar_index)/'Mexico-IO-Data'!$AS44","v":0},{"$f":"(BQ102*'Default-Data'!$F$19/biopower_dollar_index)/'Mexico-IO-Data'!$AS44","v":3067.2762482548674},0,876650.43380103447,{"$f":"BH102*'Mexico-IO-Data'!AQ44","v":0},{"$f":"BU102*'Mexico-IO-Data'!$AQ44","v":0},{"$f":"BV102*'Mexico-IO-Data'!$AQ44","v":654650.58102255373},{"$f":"BH102*'Mexico-IO-Data'!AR44","v":0},{"$f":"BU102*'Mexico-IO-Data'!$AR44","v":0},{"$f":"BV102*'Mexico-IO-Data'!$AR44","v":459918.97862436424},{"$f":"(BZ102*'Default-Data'!$F$19/biopower_dollar_index)/'Mexico-IO-Data'!$AS44","v":0},{"$f":"(CA102*'Default-Data'!$F$19/biopower_dollar_index)/'Mexico-IO-Data'!$AS44","v":0},{"$f":"(CB102*'Default-Data'!$F$19/biopower_dollar_index)/'Mexico-IO-Data'!$AS44","v":201.41153651457839},null,"TTL_C85: Health and social work",0,0,null,4845849.2512791576,8531861.5033171028,{"$f":"CH102*'Philippines-IO-Data'!AN44","v":0},{"$f":"CK102*'Philippines-IO-Data'!$AN44","v":2511136.3380266693},{"$f":"CL102*'Philippines-IO-Data'!$AN44","v":4421241.0128802415},{"$f":"CH102*'Philippines-IO-Data'!AO44","v":0},{"$f":"CK102*'Philippines-IO-Data'!$AO44","v":1603135.1934407186},{"$f":"CL102*'Philippines-IO-Data'!$AO44","v":2822565.6086844173},{"$f":"(CP102*'Default-Data'!$F$19/biopower_dollar_index)/'Philippines-IO-Data'!$AP44","v":0},{"$f":"(CQ102*'Default-Data'!$F$19/biopower_dollar_index)/'Philippines-IO-Data'!$AP44","v":404.27406581339335},{"$f":"(CR102*'Default-Data'!$F$19/biopower_dollar_index)/'Philippines-IO-Data'!$AP44","v":711.78655382073396},84669.973032774127,848840.79964715615,{"$f":"CI102*'Philippines-IO-Data'!AN44","v":0},{"$f":"CV102*'Philippines-IO-Data'!$AN44","v":43876.281534389993},{"$f":"CW102*'Philippines-IO-Data'!$AN44","v":439872.32508954406},{"$f":"CI102*'Philippines-IO-Data'!AO44","v":0},{"$f":"CV102*'Philippines-IO-Data'!$AO44","v":28011.068144698518},{"$f":"CW102*'Philippines-IO-Data'!$AO44","v":280819.00384819153},{"$f":"(DA102*'Default-Data'!$F$19/biopower_dollar_index)/'Philippines-IO-Data'!$AP44","v":0},{"$f":"(DB102*'Default-Data'!$F$19/biopower_dollar_index)/'Philippines-IO-Data'!$AP44","v":7.0637513623095725},{"$f":"(DC102*'Default-Data'!$F$19/biopower_dollar_index)/'Philippines-IO-Data'!$AP44","v":70.816136348249557},null,"DOM_C85: Health and social work",0,0,null,3353293.4835817274,15618271.047935048,{"$f":"DI102*'SouthAfrica-IO-Data'!AR44","v":0},{"$f":"DL102*'Mexico-IO-Data'!$AQ44","v":2504117.3114438383},{"$f":"DM102*'Mexico-IO-Data'!$AQ44","v":11663155.371709967},{"$f":"DI102*'SouthAfrica-IO-Data'!AS44","v":0},{"$f":"DL102*'Mexico-IO-Data'!$AR44","v":1759245.4809035931},{"$f":"DM102*'Mexico-IO-Data'!$AR44","v":8193846.7047802312},{"$f":"(DQ102*'Default-Data'!$F$19/biopower_dollar_index)/'SouthAfrica-IO-Data'!$AT44","v":0},{"$f":"(DR102*'Default-Data'!$F$19/biopower_dollar_index)/'SouthAfrica-IO-Data'!$AT44","v":104.6258241147555},{"$f":"(DS102*'Default-Data'!$F$19/biopower_dollar_index)/'SouthAfrica-IO-Data'!$AT44","v":487.30434351735869},200810.16298109002,1328122.5502163204,{"$f":"DJ102*'SouthAfrica-IO-Data'!AR44","v":0},{"$f":"DW102*'SouthAfrica-IO-Data'!$AR44","v":92780.786639784143},{"$f":"DX102*'SouthAfrica-IO-Data'!$AR44","v":613635.55077991879},{"$f":"DJ102*'SouthAfrica-IO-Data'!AS44","v":0},{"$f":"DW102*'SouthAfrica-IO-Data'!$AS44","v":40943.357580006326},{"$f":"DX102*'SouthAfrica-IO-Data'!$AS44","v":270792.0539295483},{"$f":"(EB102*'Default-Data'!$F$19/biopower_dollar_index)/'SouthAfrica-IO-Data'!$AT44","v":0},{"$f":"(EC102*'Default-Data'!$F$19/biopower_dollar_index)/'SouthAfrica-IO-Data'!$AT44","v":2.4349828237916236},{"$f":"(ED102*'Default-Data'!$F$19/biopower_dollar_index)/'SouthAfrica-IO-Data'!$AT44","v":16.104541471696351},null,"HRRS",0,0,null,0,32516049.065655194,{"$f":"EJ102*'Zambia-IO-Data'!BO42","v":0},{"$f":"EM102*'Zambia-IO-Data'!$BO42","v":0},{"$f":"EN102*'Zambia-IO-Data'!$BO42","v":0},{"$f":"EJ102*'Zambia-IO-Data'!BN42","v":0},{"$f":"EM102*'Zambia-IO-Data'!$BN42","v":0},{"$f":"EN102*'Zambia-IO-Data'!$BN42","v":0},0,0,0,0,5109037.7439841088,{"$f":"EK102*'Zambia-IO-Data'!BO42","v":0},{"$f":"EX102*'Zambia-IO-Data'!$BO42","v":0},{"$f":"EY102*'Zambia-IO-Data'!$BO42","v":0},{"$f":"EK102*'Zambia-IO-Data'!BN42","v":0},{"$f":"EX102*'Zambia-IO-Data'!$BN42","v":0},{"$f":"EY102*'Zambia-IO-Data'!$BN42","v":0},0,0,0,null,"TTL_C85: Health and social work",0,0,null,5174161.8220789693,9866904.152608322,{"$f":"FK102*CustomRegion1!C40","v":0},{"$f":"FN102*CustomRegion1!$C40","v":2681269.0813324447},{"$f":"FO102*CustomRegion1!$C40","v":5113064.8678145697},{"$f":"FK102*CustomRegion1!D40","v":0},{"$f":"FN102*CustomRegion1!$D40","v":1711749.681718339},{"$f":"FO102*CustomRegion1!$D40","v":3264233.053303774},{"$f":"(FS102*'Default-Data'!$F$19/biopower_dollar_index)/CustomRegion1!$E40","v":0},{"$f":"(FT102*'Default-Data'!$F$19/biopower_dollar_index)/CustomRegion1!$E40","v":433.46787821356764},{"$f":"(FU102*'Default-Data'!$F$19/biopower_dollar_index)/CustomRegion1!$E40","v":826.60460856040322},112326.83418597658,946229.03875775915,{"$f":"FL102*CustomRegion1!C40","v":0},{"$f":"FY102*CustomRegion1!$C40","v":58208.165469746033},{"$f":"FZ102*CustomRegion1!$C40","v":490339.25739506516},{"$f":"FL102*CustomRegion1!D40","v":0},{"$f":"FY102*CustomRegion1!$D40","v":37160.689842711203},{"$f":"FZ102*CustomRegion1!$D40","v":313037.61104159831},{"$f":"(GD102*'Default-Data'!$C$58/biopower_dollar_index)/CustomRegion1!$E40","v":0},{"$f":"(GE102*'Default-Data'!$C$58/biopower_dollar_index)/CustomRegion1!$E40","v":9.4102341896757515},{"$f":"(GF102*'Default-Data'!$C$58/biopower_dollar_index)/CustomRegion1!$E40","v":79.270789712098349},null,"C74 Other Business Activities",0,0,null,38162566.271483198,24700599.92742689,{"$f":"GL102*CustomRegion2!C44","v":0},{"$f":"GO102*CustomRegion2!$C44","v":27237161.122094184},{"$f":"GP102*CustomRegion2!$C44","v":17629166.111358751},{"$f":"GL102*CustomRegion2!D44","v":0},{"$f":"GO102*CustomRegion2!$D44","v":10746184.93724042},{"$f":"GP102*CustomRegion2!$D44","v":6955434.1024299357},{"$f":"(GT102*'Default-Data'!$C$59/biopower_dollar_index)/CustomRegion2!$E44","v":0},{"$f":"(GU102*'Default-Data'!$C$59/biopower_dollar_index)/CustomRegion2!$E44","v":2800.3568391334748},{"$f":"(GV102*'Default-Data'!$C$59/biopower_dollar_index)/CustomRegion2!$E44","v":1812.5220784524922},1368311.6742623521,1118447.6928392153,{"$f":"GM102*CustomRegion2!C44","v":0},{"$f":"GZ102*CustomRegion2!$C44","v":976583.31654114067},{"$f":"HA102*CustomRegion2!$C44","v":798251.8733091543},{"$f":"GM102*CustomRegion2!D44","v":0},{"$f":"GZ102*CustomRegion2!$D44","v":385302.45054290025},{"$f":"HA102*CustomRegion2!$D44","v":314943.33123140235},{"$f":"(HE102*'Default-Data'!$C$59/biopower_dollar_index)/CustomRegion2!$E44","v":0},{"$f":"(HF102*'Default-Data'!$C$59/biopower_dollar_index)/CustomRegion2!$E44","v":100.40627058013179},{"$f":"(HG102*'Default-Data'!$C$59/biopower_dollar_index)/CustomRegion2!$E44","v":82.07133198470892},null,"HRRS",0,0,null,0,32516049.065655194,{"$f":"HM102*CustomRegion3!D43","v":0},{"$f":"HP102*CustomRegion3!$D43","v":0},{"$f":"HQ102*CustomRegion3!$D43","v":0},{"$f":"HM102*CustomRegion3!E43","v":0},{"$f":"HP102*CustomRegion3!$E43","v":0},{"$f":"HQ102*CustomRegion3!$E43","v":0},0,0,0,0,5109037.7439841088,{"$f":"HN102*CustomRegion3!D43","v":0},{"$f":"IA102*CustomRegion3!$D43","v":0},{"$f":"IB102*CustomRegion3!$D43","v":0},{"$f":"HN102*CustomRegion3!E43","v":0},{"$f":"IA102*CustomRegion3!$E43","v":0},{"$f":"IB102*CustomRegion3!$E43","v":0},0,0,0]
[null,315,"Education and Health Care",0,null,null,183.65527415354632,18928.081798088962,0,164.77681155106171,15783.164666518322,0,142.10016878999849,12659.602359744755,0,3.5561608111324902E-2,4.0166155914272466,null,null,null,null,null,null,null,null,null,null,null,null,102,"TTL_C90T93: Other community, social and personal services",0,0,null,5381681.9199316856,11985959.681752553,{"$f":"'Colombia-IO-Data'!$AN45*Calculations!AF103","v":0},{"$f":"'Colombia-IO-Data'!$AN45*AI103","v":3078757.7545835092},{"$f":"'Colombia-IO-Data'!$AN45*AJ103","v":6856939.3110452332},{"$f":"'Colombia-IO-Data'!$AO45*Calculations!AK103","v":0},{"$f":"'Colombia-IO-Data'!$AO45*Calculations!AL103","v":1175890.1859240092},{"$f":"'Colombia-IO-Data'!$AO45*Calculations!AM103","v":2618915.9018213763},{"$f":"(AN103*'Default-Data'!$F$19/biopower_dollar_index)/'Colombia-IO-Data'!$AP45","v":0},{"$f":"(AO103*'Default-Data'!$F$19/biopower_dollar_index)/'Colombia-IO-Data'!$AP45","v":240.23449278902524},{"$f":"(AP103*'Default-Data'!$F$19/biopower_dollar_index)/'Colombia-IO-Data'!$AP45","v":535.0448033859426},295646.68510885723,1147353.7398175632,{"$f":"'Colombia-IO-Data'!$AN45*AG103","v":0},{"$f":"'Colombia-IO-Data'!$AN45*AT103","v":169133.83918597651},{"$f":"'Colombia-IO-Data'!$AN45*AU103","v":656379.22795677837},{"$f":"'Colombia-IO-Data'!$AO45*AV103","v":0},{"$f":"'Colombia-IO-Data'!$AO45*AW103","v":64598.398919288797},{"$f":"'Colombia-IO-Data'!$AO45*AX103","v":250695.23292298321},{"$f":"(AY103*'Default-Data'!$F$19/biopower_dollar_index)/'Colombia-IO-Data'!$AP45","v":0},{"$f":"(AZ103*'Default-Data'!$F$19/biopower_dollar_index)/'Colombia-IO-Data'!$AP45","v":13.197459920259378},{"$f":"(BA103*'Default-Data'!$F$19/biopower_dollar_index)/'Colombia-IO-Data'!$AP45","v":51.217063333643161},null,"DOM_C90T93: Other community, social and personal services",0,0,null,890246.85156562203,5816562.5343780629,{"$f":"BG103*'Mexico-IO-Data'!AQ45","v":0},{"$f":"BJ103*'Mexico-IO-Data'!$AQ45","v":569574.8576063168},{"$f":"BK103*'Mexico-IO-Data'!$AQ45","v":3721403.5314478348},{"$f":"BG103*'Mexico-IO-Data'!AR45","v":0},{"$f":"BJ103*'Mexico-IO-Data'!$AR45","v":99968.095226985286},{"$f":"BK103*'Mexico-IO-Data'!$AR45","v":653156.67930509907},{"$f":"(BO103*'Default-Data'!$F$19/biopower_dollar_index)/'Mexico-IO-Data'!$AS45","v":0},{"$f":"(BP103*'Default-Data'!$F$19/biopower_dollar_index)/'Mexico-IO-Data'!$AS45","v":68.967974908718219},{"$f":"(BQ103*'Default-Data'!$F$19/biopower_dollar_index)/'Mexico-IO-Data'!$AS45","v":450.61270165739705},39995.711111563221,381942.38225160044,{"$f":"BH103*'Mexico-IO-Data'!AQ45","v":0},{"$f":"BU103*'Mexico-IO-Data'!$AQ45","v":25589.027831066473},{"$f":"BV103*'Mexico-IO-Data'!$AQ45","v":244364.55754063066},{"$f":"BH103*'Mexico-IO-Data'!AR45","v":0},{"$f":"BU103*'Mexico-IO-Data'!$AR45","v":4491.220665414533},{"$f":"BV103*'Mexico-IO-Data'!$AR45","v":42889.286688294596},{"$f":"(BZ103*'Default-Data'!$F$19/biopower_dollar_index)/'Mexico-IO-Data'!$AS45","v":0},{"$f":"(CA103*'Default-Data'!$F$19/biopower_dollar_index)/'Mexico-IO-Data'!$AS45","v":3.0984925086200152},{"$f":"(CB103*'Default-Data'!$F$19/biopower_dollar_index)/'Mexico-IO-Data'!$AS45","v":29.589312884823755},null,"TTL_C90T93: Other community, social and personal services",0,0,null,14766717.357229587,10973187.966948856,{"$f":"CH103*'Philippines-IO-Data'!AN45","v":0},{"$f":"CK103*'Philippines-IO-Data'!$AN45","v":7196723.7098344732},{"$f":"CL103*'Philippines-IO-Data'!$AN45","v":5347905.0288416352},{"$f":"CH103*'Philippines-IO-Data'!AO45","v":0},{"$f":"CK103*'Philippines-IO-Data'!$AO45","v":6185598.4042045753},{"$f":"CL103*'Philippines-IO-Data'!$AO45","v":4596535.0548383482},{"$f":"(CP103*'Default-Data'!$F$19/biopower_dollar_index)/'Philippines-IO-Data'!$AP45","v":0},{"$f":"(CQ103*'Default-Data'!$F$19/biopower_dollar_index)/'Philippines-IO-Data'!$AP45","v":3553.4991370222351},{"$f":"(CR103*'Default-Data'!$F$19/biopower_dollar_index)/'Philippines-IO-Data'!$AP45","v":2640.6149063214093},162164.07157435876,1091730.0573763459,{"$f":"CI103*'Philippines-IO-Data'!AN45","v":0},{"$f":"CV103*'Philippines-IO-Data'!$AN45","v":79032.461348703902},{"$f":"CW103*'Philippines-IO-Data'!$AN45","v":532066.76870622672},{"$f":"CI103*'Philippines-IO-Data'!AO45","v":0},{"$f":"CV103*'Philippines-IO-Data'!$AO45","v":67928.55839815845},{"$f":"CW103*'Philippines-IO-Data'!$AO45","v":457312.45051718375},{"$f":"(DA103*'Default-Data'!$F$19/biopower_dollar_index)/'Philippines-IO-Data'!$AP45","v":0},{"$f":"(DB103*'Default-Data'!$F$19/biopower_dollar_index)/'Philippines-IO-Data'!$AP45","v":39.023560514847368},{"$f":"(DC103*'Default-Data'!$F$19/biopower_dollar_index)/'Philippines-IO-Data'!$AP45","v":262.71660267464574},null,"DOM_C90T93: Other community, social and personal services",0,0,null,38196371.515004054,32635470.027212575,{"$f":"DI103*'SouthAfrica-IO-Data'!AR45","v":0},{"$f":"DL103*'Mexico-IO-Data'!$AQ45","v":24437820.620736841},{"$f":"DM103*'Mexico-IO-Data'!$AQ45","v":20879987.56858803},{"$f":"DI103*'SouthAfrica-IO-Data'!AS45","v":0},{"$f":"DL103*'Mexico-IO-Data'!$AR45","v":4289168.2214006344},{"$f":"DM103*'Mexico-IO-Data'!$AR45","v":3664720.374714321},{"$f":"(DQ103*'Default-Data'!$F$19/biopower_dollar_index)/'SouthAfrica-IO-Data'!$AT45","v":0},{"$f":"(DR103*'Default-Data'!$F$19/biopower_dollar_index)/'SouthAfrica-IO-Data'!$AT45","v":255.08535608138558},{"$f":"(DS103*'Default-Data'!$F$19/biopower_dollar_index)/'SouthAfrica-IO-Data'!$AT45","v":217.94820195171678},1611612.2008653264,2775204.9856876107,{"$f":"DJ103*'SouthAfrica-IO-Data'!AR45","v":0},{"$f":"DW103*'SouthAfrica-IO-Data'!$AR45","v":1134232.7976858309},{"$f":"DX103*'SouthAfrica-IO-Data'!$AR45","v":1953155.0539130992},{"$f":"DJ103*'SouthAfrica-IO-Data'!AS45","v":0},{"$f":"DW103*'SouthAfrica-IO-Data'!$AS45","v":630759.84801688243},{"$f":"DX103*'SouthAfrica-IO-Data'!$AS45","v":1086171.8929951747},{"$f":"(EB103*'Default-Data'!$F$19/biopower_dollar_index)/'SouthAfrica-IO-Data'!$AT45","v":0},{"$f":"(EC103*'Default-Data'!$F$19/biopower_dollar_index)/'SouthAfrica-IO-Data'!$AT45","v":37.512541389828201},{"$f":"(ED103*'Default-Data'!$F$19/biopower_dollar_index)/'SouthAfrica-IO-Data'!$AT45","v":64.596800542318263},null,"HRRM",0,0,null,0,2280594.4388476475,{"$f":"EJ103*'Zambia-IO-Data'!BO43","v":0},{"$f":"EM103*'Zambia-IO-Data'!$BO43","v":0},{"$f":"EN103*'Zambia-IO-Data'!$BO43","v":0},{"$f":"EJ103*'Zambia-IO-Data'!BN43","v":0},{"$f":"EM103*'Zambia-IO-Data'!$BN43","v":0},{"$f":"EN103*'Zambia-IO-Data'!$BN43","v":0},0,0,0,0,303199.73662190291,{"$f":"EK103*'Zambia-IO-Data'!BO43","v":0},{"$f":"EX103*'Zambia-IO-Data'!$BO43","v":0},{"$f":"EY103*'Zambia-IO-Data'!$BO43","v":0},{"$f":"EK103*'Zambia-IO-Data'!BN43","v":0},{"$f":"EX103*'Zambia-IO-Data'!$BN43","v":0},{"$f":"EY103*'Zambia-IO-Data'!$BN43","v":0},0,0,0,null,"TTL_C90T93: Other community, social and personal services",0,0,null,16449741.37960784,13299592.003172794,{"$f":"FK103*CustomRegion1!C41","v":0},{"$f":"FN103*CustomRegion1!$C41","v":8016964.1595604615},{"$f":"FO103*CustomRegion1!$C41","v":6481703.8739824304},{"$f":"FK103*CustomRegion1!D41","v":0},{"$f":"FN103*CustomRegion1!$D41","v":6890596.709191028},{"$f":"FO103*CustomRegion1!$D41","v":5571037.4270230932},{"$f":"(FS103*'Default-Data'!$F$19/biopower_dollar_index)/CustomRegion1!$E41","v":0},{"$f":"(FT103*'Default-Data'!$F$19/biopower_dollar_index)/CustomRegion1!$E41","v":3975.0468953592845},{"$f":"(FU103*'Default-Data'!$F$19/biopower_dollar_index)/CustomRegion1!$E41","v":3213.8196389697596},266965.78818558221,1275421.3441615184,{"$f":"FL103*CustomRegion1!C41","v":0},{"$f":"FY103*CustomRegion1!$C41","v":130108.74191407171},{"$f":"FZ103*CustomRegion1!$C41","v":621590.75747883192},{"$f":"FL103*CustomRegion1!D41","v":0},{"$f":"FY103*CustomRegion1!$D41","v":111828.72357000038},{"$f":"FZ103*CustomRegion1!$D41","v":534258.49769322458},{"$f":"(GD103*'Default-Data'!$C$58/biopower_dollar_index)/CustomRegion1!$E41","v":0},{"$f":"(GE103*'Default-Data'!$C$58/biopower_dollar_index)/CustomRegion1!$E41","v":64.511745382804435},{"$f":"(GF103*'Default-Data'!$C$58/biopower_dollar_index)/CustomRegion1!$E41","v":308.20300072736308},null,"C75 Public admin. and defence; compulsory social security",0,0,null,215293.49004774308,450468.5679145155,{"$f":"GL103*CustomRegion2!C45","v":0},{"$f":"GO103*CustomRegion2!$C45","v":161496.78138893342},{"$f":"GP103*CustomRegion2!$C45","v":337907.21595410845},{"$f":"GL103*CustomRegion2!D45","v":0},{"$f":"GO103*CustomRegion2!$D45","v":159304.90825307075},{"$f":"GP103*CustomRegion2!$D45","v":333321.05799669225},{"$f":"(GT103*'Default-Data'!$C$59/biopower_dollar_index)/CustomRegion2!$E45","v":0},{"$f":"(GU103*'Default-Data'!$C$59/biopower_dollar_index)/CustomRegion2!$E45","v":109.9044339125073},{"$f":"(GV103*'Default-Data'!$C$59/biopower_dollar_index)/CustomRegion2!$E45","v":229.95815127082457},20067.056273088139,20397.29933527407,{"$f":"GM103*CustomRegion2!C45","v":0},{"$f":"GZ103*CustomRegion2!$C45","v":15052.777486842144},{"$f":"HA103*CustomRegion2!$C45","v":15300.500683708089},{"$f":"GM103*CustomRegion2!D45","v":0},{"$f":"GZ103*CustomRegion2!$D45","v":14848.477572566648},{"$f":"HA103*CustomRegion2!$D45","v":15092.838610659701},{"$f":"(HE103*'Default-Data'!$C$59/biopower_dollar_index)/CustomRegion2!$E45","v":0},{"$f":"(HF103*'Default-Data'!$C$59/biopower_dollar_index)/CustomRegion2!$E45","v":10.243962599589528},{"$f":"(HG103*'Default-Data'!$C$59/biopower_dollar_index)/CustomRegion2!$E45","v":10.412547245576867},null,"HRRM",0,0,null,0,2280594.4388476475,{"$f":"HM103*CustomRegion3!D44","v":0},{"$f":"HP103*CustomRegion3!$D44","v":0},{"$f":"HQ103*CustomRegion3!$D44","v":0},{"$f":"HM103*CustomRegion3!E44","v":0},{"$f":"HP103*CustomRegion3!$E44","v":0},{"$f":"HQ103*CustomRegion3!$E44","v":0},0,0,0,0,303199.73662190291,{"$f":"HN103*CustomRegion3!D44","v":0},{"$f":"IA103*CustomRegion3!$D44","v":0},{"$f":"IB103*CustomRegion3!$D44","v":0},{"$f":"HN103*CustomRegion3!E44","v":0},{"$f":"IA103*CustomRegion3!$E44","v":0},{"$f":"IB103*CustomRegion3!$E44","v":0},0,0,0]
[null,316,"Other",0,null,null,2510.4055934488983,167380.28292930493,0,1797.6882237095135,6813.5963599938304,0,417.28441140158122,2231.2865653486579,0,0.29971488581127015,1.1078791168699103,null,null,null,null,null,null,null,null,null,null,null,null,103,"TTL_C95: Private households with employed persons",0,0,null,0,2111665.4492125846,{"$f":"'Colombia-IO-Data'!$AN46*Calculations!AF104","v":0},{"$f":"'Colombia-IO-Data'!$AN46*AI104","v":0},{"$f":"'Colombia-IO-Data'!$AN46*AJ104","v":2111665.4492125846},{"$f":"'Colombia-IO-Data'!$AO46*Calculations!AK104","v":0},{"$f":"'Colombia-IO-Data'!$AO46*Calculations!AL104","v":0},{"$f":"'Colombia-IO-Data'!$AO46*Calculations!AM104","v":2111665.4492125846},{"$f":"(AN104*'Default-Data'!$F$19/biopower_dollar_index)/'Colombia-IO-Data'!$AP46","v":0},{"$f":"(AO104*'Default-Data'!$F$19/biopower_dollar_index)/'Colombia-IO-Data'!$AP46","v":0},{"$f":"(AP104*'Default-Data'!$F$19/biopower_dollar_index)/'Colombia-IO-Data'!$AP46","v":431.41348078610281},0,202138.77859827195,{"$f":"'Colombia-IO-Data'!$AN46*AG104","v":0},{"$f":"'Colombia-IO-Data'!$AN46*AT104","v":0},{"$f":"'Colombia-IO-Data'!$AN46*AU104","v":202138.77859827195},{"$f":"'Colombia-IO-Data'!$AO46*AV104","v":0},{"$f":"'Colombia-IO-Data'!$AO46*AW104","v":0},{"$f":"'Colombia-IO-Data'!$AO46*AX104","v":202138.77859827195},{"$f":"(AY104*'Default-Data'!$F$19/biopower_dollar_index)/'Colombia-IO-Data'!$AP46","v":0},{"$f":"(AZ104*'Default-Data'!$F$19/biopower_dollar_index)/'Colombia-IO-Data'!$AP46","v":0},{"$f":"(BA104*'Default-Data'!$F$19/biopower_dollar_index)/'Colombia-IO-Data'!$AP46","v":41.296974437617358},null,"DOM_C95: Private households with employed persons",0,0,null,0,1592274.3927112166,{"$f":"BG104*'Mexico-IO-Data'!AQ46","v":0},{"$f":"BJ104*'Mexico-IO-Data'!$AQ46","v":0},{"$f":"BK104*'Mexico-IO-Data'!$AQ46","v":1592274.3927112166},{"$f":"BG104*'Mexico-IO-Data'!AR46","v":0},{"$f":"BJ104*'Mexico-IO-Data'!$AR46","v":0},{"$f":"BK104*'Mexico-IO-Data'!$AR46","v":1592274.3927112166},{"$f":"(BO104*'Default-Data'!$F$19/biopower_dollar_index)/'Mexico-IO-Data'!$AS46","v":0},{"$f":"(BP104*'Default-Data'!$F$19/biopower_dollar_index)/'Mexico-IO-Data'!$AS46","v":0},{"$f":"(BQ104*'Default-Data'!$F$19/biopower_dollar_index)/'Mexico-IO-Data'!$AS46","v":306.25339956078312},0,104556.09669042607,{"$f":"BH104*'Mexico-IO-Data'!AQ46","v":0},{"$f":"BU104*'Mexico-IO-Data'!$AQ46","v":0},{"$f":"BV104*'Mexico-IO-Data'!$AQ46","v":104556.09669042607},{"$f":"BH104*'Mexico-IO-Data'!AR46","v":0},{"$f":"BU104*'Mexico-IO-Data'!$AR46","v":0},{"$f":"BV104*'Mexico-IO-Data'!$AR46","v":104556.09669042607},{"$f":"(BZ104*'Default-Data'!$F$19/biopower_dollar_index)/'Mexico-IO-Data'!$AS46","v":0},{"$f":"(CA104*'Default-Data'!$F$19/biopower_dollar_index)/'Mexico-IO-Data'!$AS46","v":0},{"$f":"(CB104*'Default-Data'!$F$19/biopower_dollar_index)/'Mexico-IO-Data'!$AS46","v":20.110013828537635},null,"TTL_C95: Private households with employed persons",0,0,null,0,0,{"$f":"CH104*'Philippines-IO-Data'!AN46","v":0},{"$f":"CK104*'Philippines-IO-Data'!$AN46","v":0},{"$f":"CL104*'Philippines-IO-Data'!$AN46","v":0},{"$f":"CH104*'Philippines-IO-Data'!AO46","v":0},{"$f":"CK104*'Philippines-IO-Data'!$AO46","v":0},{"$f":"CL104*'Philippines-IO-Data'!$AO46","v":0},{"$f":"(CP104*'Default-Data'!$F$19/biopower_dollar_index)/'Philippines-IO-Data'!$AP46","v":0},{"$f":"(CQ104*'Default-Data'!$F$19/biopower_dollar_index)/'Philippines-IO-Data'!$AP46","v":0},{"$f":"(CR104*'Default-Data'!$F$19/biopower_dollar_index)/'Philippines-IO-Data'!$AP46","v":0},0,0,{"$f":"CI104*'Philippines-IO-Data'!AN46","v":0},{"$f":"CV104*'Philippines-IO-Data'!$AN46","v":0},{"$f":"CW104*'Philippines-IO-Data'!$AN46","v":0},{"$f":"CI104*'Philippines-IO-Data'!AO46","v":0},{"$f":"CV104*'Philippines-IO-Data'!$AO46","v":0},{"$f":"CW104*'Philippines-IO-Data'!$AO46","v":0},{"$f":"(DA104*'Default-Data'!$F$19/biopower_dollar_index)/'Philippines-IO-Data'!$AP46","v":0},{"$f":"(DB104*'Default-Data'!$F$19/biopower_dollar_index)/'Philippines-IO-Data'!$AP46","v":0},{"$f":"(DC104*'Default-Data'!$F$19/biopower_dollar_index)/'Philippines-IO-Data'!$AP46","v":0},null,"DOM_C95: Private households with employed persons",0,0,null,0,0,{"$f":"DI104*'SouthAfrica-IO-Data'!AR46","v":0},{"$f":"DL104*'Mexico-IO-Data'!$AQ46","v":0},{"$f":"DM104*'Mexico-IO-Data'!$AQ46","v":0},{"$f":"DI104*'SouthAfrica-IO-Data'!AS46","v":0},{"$f":"DL104*'Mexico-IO-Data'!$AR46","v":0},{"$f":"DM104*'Mexico-IO-Data'!$AR46","v":0},{"$f":"(DQ104*'Default-Data'!$F$19/biopower_dollar_index)/'SouthAfrica-IO-Data'!$AT46","v":0},{"$f":"(DR104*'Default-Data'!$F$19/biopower_dollar_index)/'SouthAfrica-IO-Data'!$AT46","v":0},{"$f":"(DS104*'Default-Data'!$F$19/biopower_dollar_index)/'SouthAfrica-IO-Data'!$AT46","v":0},0,0,{"$f":"DJ104*'SouthAfrica-IO-Data'!AR46","v":0},{"$f":"DW104*'SouthAfrica-IO-Data'!$AR46","v":0},{"$f":"DX104*'SouthAfrica-IO-Data'!$AR46","v":0},{"$f":"DJ104*'SouthAfrica-IO-Data'!AS46","v":0},{"$f":"DW104*'SouthAfrica-IO-Data'!$AS46","v":0},{"$f":"DX104*'SouthAfrica-IO-Data'!$AS46","v":0},{"$f":"(EB104*'Default-Data'!$F$19/biopower_dollar_index)/'SouthAfrica-IO-Data'!$AT46","v":0},{"$f":"(EC104*'Default-Data'!$F$19/biopower_dollar_index)/'SouthAfrica-IO-Data'!$AT46","v":0},{"$f":"(ED104*'Default-Data'!$F$19/biopower_dollar_index)/'SouthAfrica-IO-Data'!$AT46","v":0},null,"HRRN",0,0,null,0,1914629.0775910369,{"$f":"EJ104*'Zambia-IO-Data'!BO44","v":0},{"$f":"EM104*'Zambia-IO-Data'!$BO44","v":0},{"$f":"EN104*'Zambia-IO-Data'!$BO44","v":0},{"$f":"EJ104*'Zambia-IO-Data'!BN44","v":0},{"$f":"EM104*'Zambia-IO-Data'!$BN44","v":0},{"$f":"EN104*'Zambia-IO-Data'!$BN44","v":0},0,0,0,0,186294.2340444478,{"$f":"EK104*'Zambia-IO-Data'!BO44","v":0},{"$f":"EX104*'Zambia-IO-Data'!$BO44","v":0},{"$f":"EY104*'Zambia-IO-Data'!$BO44","v":0},{"$f":"EK104*'Zambia-IO-Data'!BN44","v":0},{"$f":"EX104*'Zambia-IO-Data'!$BN44","v":0},{"$f":"EY104*'Zambia-IO-Data'!$BN44","v":0},0,0,0,null,"TTL_C95: Private households with employed persons",0,0,null,0,0,{"$f":"FK104*CustomRegion1!C42","v":0},{"$f":"FN104*CustomRegion1!$C42","v":0},{"$f":"FO104*CustomRegion1!$C42","v":0},{"$f":"FK104*CustomRegion1!D42","v":0},{"$f":"FN104*CustomRegion1!$D42","v":0},{"$f":"FO104*CustomRegion1!$D42","v":0},{"$f":"(FS104*'Default-Data'!$F$19/biopower_dollar_index)/CustomRegion1!$E42","v":0},{"$f":"(FT104*'Default-Data'!$F$19/biopower_dollar_index)/CustomRegion1!$E42","v":0},{"$f":"(FU104*'Default-Data'!$F$19/biopower_dollar_index)/CustomRegion1!$E42","v":0},0,0,{"$f":"FL104*CustomRegion1!C42","v":0},{"$f":"FY104*CustomRegion1!$C42","v":0},{"$f":"FZ104*CustomRegion1!$C42","v":0},{"$f":"FL104*CustomRegion1!D42","v":0},{"$f":"FY104*CustomRegion1!$D42","v":0},{"$f":"FZ104*CustomRegion1!$D42","v":0},{"$f":"(GD104*'Default-Data'!$C$58/biopower_dollar_index)/CustomRegion1!$E42","v":0},{"$f":"(GE104*'Default-Data'!$C$58/biopower_dollar_index)/CustomRegion1!$E42","v":0},{"$f":"(GF104*'Default-Data'!$C$58/biopower_dollar_index)/CustomRegion1!$E42","v":0},null,"C80 Education",0,0,null,154461.91487161626,7308424.9913470391,{"$f":"GL104*CustomRegion2!C46","v":0},{"$f":"GO104*CustomRegion2!$C46","v":137573.69167884946},{"$f":"GP104*CustomRegion2!$C46","v":6509352.2066800119},{"$f":"GL104*CustomRegion2!D46","v":0},{"$f":"GO104*CustomRegion2!$D46","v":104682.82679169213},{"$f":"GP104*CustomRegion2!$D46","v":4953108.2670129696},{"$f":"(GT104*'Default-Data'!$C$59/biopower_dollar_index)/CustomRegion2!$E46","v":0},{"$f":"(GU104*'Default-Data'!$C$59/biopower_dollar_index)/CustomRegion2!$E46","v":25.318304001520129},{"$f":"(GV104*'Default-Data'!$C$59/biopower_dollar_index)/CustomRegion2!$E46","v":1197.945304880029},7245.455112726363,330926.82339202065,{"$f":"GM104*CustomRegion2!C46","v":0},{"$f":"GZ104*CustomRegion2!$C46","v":6453.2671926257981},{"$f":"HA104*CustomRegion2!$C46","v":294744.66121590772},{"$f":"GM104*CustomRegion2!D46","v":0},{"$f":"GZ104*CustomRegion2!$D46","v":4910.4319548474696},{"$f":"HA104*CustomRegion2!$D46","v":224277.65033643012},{"$f":"(HE104*'Default-Data'!$C$59/biopower_dollar_index)/CustomRegion2!$E46","v":0},{"$f":"(HF104*'Default-Data'!$C$59/biopower_dollar_index)/CustomRegion2!$E46","v":1.1876237279969364},{"$f":"(HG104*'Default-Data'!$C$59/biopower_dollar_index)/CustomRegion2!$E46","v":54.243183012851311},null,"HRRN",0,0,null,0,1914629.0775910369,{"$f":"HM104*CustomRegion3!D45","v":0},{"$f":"HP104*CustomRegion3!$D45","v":0},{"$f":"HQ104*CustomRegion3!$D45","v":0},{"$f":"HM104*CustomRegion3!E45","v":0},{"$f":"HP104*CustomRegion3!$E45","v":0},{"$f":"HQ104*CustomRegion3!$E45","v":0},0,0,0,0,186294.2340444478,{"$f":"HN104*CustomRegion3!D45","v":0},{"$f":"IA104*CustomRegion3!$D45","v":0},{"$f":"IB104*CustomRegion3!$D45","v":0},{"$f":"HN104*CustomRegion3!E45","v":0},{"$f":"IA104*CustomRegion3!$E45","v":0},{"$f":"IB104*CustomRegion3!$E45","v":0},0,0,0]
[null,317,"Total",1000000,null,null,711674.19375827443,351881.65243012097,376641.77335229964,472749.4843909624,126301.82390823217,46161.292871819183,68714.359216087527,43130.246719871851,4.5998210250756486,10.738857726654294,15.514268574045644,null,null,null,null,null,null,null,null,null,null,null,null,104,"HH",0,0,null,0,230246688.25754109,{"$f":"'Colombia-IO-Data'!$AN47*Calculations!AF105","v":0},{"$f":"'Colombia-IO-Data'!$AN47*AI105","v":0},{"$f":"'Colombia-IO-Data'!$AN47*AJ105","v":0},{"$f":"'Colombia-IO-Data'!$AO47*Calculations!AK105","v":0},{"$f":"'Colombia-IO-Data'!$AO47*Calculations!AL105","v":0},{"$f":"'Colombia-IO-Data'!$AO47*Calculations!AM105","v":0},0,0,0,0,22040320.997831985,{"$f":"'Colombia-IO-Data'!$AN47*AG105","v":0},{"$f":"'Colombia-IO-Data'!$AN47*AT105","v":0},{"$f":"'Colombia-IO-Data'!$AN47*AU105","v":0},{"$f":"'Colombia-IO-Data'!$AO47*AV105","v":0},{"$f":"'Colombia-IO-Data'!$AO47*AW105","v":0},{"$f":"'Colombia-IO-Data'!$AO47*AX105","v":0},0,0,0,null,"L",0,0,null,0,264627020.30160883,{"$f":"BG105*'Mexico-IO-Data'!AQ47","v":0},{"$f":"BJ105*'Mexico-IO-Data'!$AQ47","v":0},{"$f":"BK105*'Mexico-IO-Data'!$AQ47","v":0},{"$f":"BG105*'Mexico-IO-Data'!AR47","v":0},{"$f":"BJ105*'Mexico-IO-Data'!$AR47","v":0},{"$f":"BK105*'Mexico-IO-Data'!$AR47","v":0},0,0,0,0,17376633.354281694,{"$f":"BH105*'Mexico-IO-Data'!AQ47","v":0},{"$f":"BU105*'Mexico-IO-Data'!$AQ47","v":0},{"$f":"BV105*'Mexico-IO-Data'!$AQ47","v":0},{"$f":"BH105*'Mexico-IO-Data'!AR47","v":0},{"$f":"BU105*'Mexico-IO-Data'!$AR47","v":0},{"$f":"BV105*'Mexico-IO-Data'!$AR47","v":0},0,0,0,null,"LHH",0,0,null,0,190285546.9694773,{"$f":"CH105*'Philippines-IO-Data'!AN47","v":0},{"$f":"CK105*'Philippines-IO-Data'!$AN47","v":0},{"$f":"CL105*'Philippines-IO-Data'!$AN47","v":0},{"$f":"CH105*'Philippines-IO-Data'!AO47","v":0},{"$f":"CK105*'Philippines-IO-Data'!$AO47","v":0},{"$f":"CL105*'Philippines-IO-Data'!$AO47","v":0},0,0,0,0,18931640.625913743,{"$f":"CI105*'Philippines-IO-Data'!AN47","v":0},{"$f":"CV105*'Philippines-IO-Data'!$AN47","v":0},{"$f":"CW105*'Philippines-IO-Data'!$AN47","v":0},{"$f":"CI105*'Philippines-IO-Data'!AO47","v":0},{"$f":"CV105*'Philippines-IO-Data'!$AO47","v":0},{"$f":"CW105*'Philippines-IO-Data'!$AO47","v":0},0,0,0,null,"L",0,0,null,0,399740298.70294893,{"$f":"DI105*'SouthAfrica-IO-Data'!AR47","v":0},{"$f":"DL105*'Mexico-IO-Data'!$AQ47","v":0},{"$f":"DM105*'Mexico-IO-Data'!$AQ47","v":0},{"$f":"DI105*'SouthAfrica-IO-Data'!AS47","v":0},{"$f":"DL105*'Mexico-IO-Data'!$AR47","v":0},{"$f":"DM105*'Mexico-IO-Data'!$AR47","v":0},0,0,0,0,33992501.686528668,{"$f":"DJ105*'SouthAfrica-IO-Data'!AR47","v":0},{"$f":"DW105*'SouthAfrica-IO-Data'!$AR47","v":0},{"$f":"DX105*'SouthAfrica-IO-Data'!$AR47","v":0},{"$f":"DJ105*'SouthAfrica-IO-Data'!AS47","v":0},{"$f":"DW105*'SouthAfrica-IO-Data'!$AS47","v":0},{"$f":"DX105*'SouthAfrica-IO-Data'!$AS47","v":0},0,0,0,null,"HRS",0,0,null,0,39421437.77353169,{"$f":"EJ105*'Zambia-IO-Data'!BO45","v":0},{"$f":"EM105*'Zambia-IO-Data'!$BO45","v":0},{"$f":"EN105*'Zambia-IO-Data'!$BO45","v":0},{"$f":"EJ105*'Zambia-IO-Data'!BN45","v":0},{"$f":"EM105*'Zambia-IO-Data'!$BN45","v":0},{"$f":"EN105*'Zambia-IO-Data'!$BN45","v":0},0,0,0,0,6010717.5897274334,{"$f":"EK105*'Zambia-IO-Data'!BO45","v":0},{"$f":"EX105*'Zambia-IO-Data'!$BO45","v":0},{"$f":"EY105*'Zambia-IO-Data'!$BO45","v":0},{"$f":"EK105*'Zambia-IO-Data'!BN45","v":0},{"$f":"EX105*'Zambia-IO-Data'!$BN45","v":0},{"$f":"EY105*'Zambia-IO-Data'!$BN45","v":0},0,0,0,null,"LHH",0,0,null,0,240094203.20995665,{"$f":"FK105*CustomRegion1!AM43","v":0},{"$f":"FN105*CustomRegion1!$AM43","v":0},{"$f":"FO105*CustomRegion1!$AM43","v":0},{"$f":"FK105*CustomRegion1!AN43","v":0},{"$f":"FN105*CustomRegion1!$AN43","v":0},{"$f":"FO105*CustomRegion1!$AN43","v":0},0,0,0,0,23024862.064218096,{"$f":"FL105*CustomRegion1!AM43","v":0},{"$f":"FY105*CustomRegion1!$AM43","v":0},{"$f":"FZ105*CustomRegion1!$AM43","v":0},{"$f":"FL105*CustomRegion1!AN43","v":0},{"$f":"FY105*CustomRegion1!$AN43","v":0},{"$f":"FZ105*CustomRegion1!$AN43","v":0},0,0,0,null,"C85 Health and social work",0,0,null,41444.121698624891,6680555.3713238062,{"$f":"GL105*CustomRegion2!C47","v":0},{"$f":"GO105*CustomRegion2!$C47","v":31093.810230162417},{"$f":"GP105*CustomRegion2!$C47","v":5012144.3629224477},{"$f":"GL105*CustomRegion2!D47","v":0},{"$f":"GO105*CustomRegion2!$D47","v":17932.598929442658},{"$f":"GP105*CustomRegion2!$D47","v":2890632.3789667524},{"$f":"(GT105*'Default-Data'!$C$59/biopower_dollar_index)/CustomRegion2!$E47","v":0},{"$f":"(GU105*'Default-Data'!$C$59/biopower_dollar_index)/CustomRegion2!$E47","v":7.8531925663991116},{"$f":"(GV105*'Default-Data'!$C$59/biopower_dollar_index)/CustomRegion2!$E47","v":1265.8897240724611},1734.7875558200976,302496.77189602156,{"$f":"GM105*CustomRegion2!C47","v":0},{"$f":"GZ105*CustomRegion2!$C47","v":1301.5393459793638},{"$f":"HA105*CustomRegion2!$C47","v":226950.81558173554},{"$f":"GM105*CustomRegion2!D47","v":0},{"$f":"GZ105*CustomRegion2!$D47","v":750.63116773306183},{"$f":"HA105*CustomRegion2!$D47","v":130888.36403167018},{"$f":"(HE105*'Default-Data'!$C$59/biopower_dollar_index)/CustomRegion2!$E47","v":0},{"$f":"(HF105*'Default-Data'!$C$59/biopower_dollar_index)/CustomRegion2!$E47","v":0.32872263132313173},{"$f":"(HG105*'Default-Data'!$C$59/biopower_dollar_index)/CustomRegion2!$E47","v":57.319718769486791},null,"HRS",0,0,null,0,39421437.77353169,{"$f":"HM105*CustomRegion3!D46","v":0},{"$f":"HP105*CustomRegion3!$D46","v":0},{"$f":"HQ105*CustomRegion3!$D46","v":0},{"$f":"HM105*CustomRegion3!E46","v":0},{"$f":"HP105*CustomRegion3!$E46","v":0},{"$f":"HQ105*CustomRegion3!$E46","v":0},0,0,0,0,6010717.5897274334,{"$f":"HN105*CustomRegion3!D46","v":0},{"$f":"IA105*CustomRegion3!$D46","v":0},{"$f":"IB105*CustomRegion3!$D46","v":0},{"$f":"HN105*CustomRegion3!E46","v":0},{"$f":"IA105*CustomRegion3!$E46","v":0},{"$f":"IB105*CustomRegion3!$E46","v":0},0,0,0]
[null,null,null,null,null,null,null,null,null,null,null,null,null,null,null,null,null,null,null,null,null,null,null,null,null,null,null,null,null,105,"Total",{"$f":"SUM(AF71:AF105)","v":584499074.39861512},{"$f":"SUM(AG71:AG105)","v":70816129.605341107},null,{"$f":"SUM(AI71:AI105)","v":321945219.05708712},{"$f":"SUM(AJ71:AJ105)","v":564357991.32313013},{"$f":"SUM(AK71:AK105)","v":331181418.63179052},171403505.22191074,183511978.4035652,109129729.03255329,49429319.500554666,71687639.724433064,16676.92280784564,9275.7968331587163,11539.103456872706,42791150.074839421,54023062.74451299,41990050.371168159,23705470.271896549,17566649.672883254,9412592.1083133854,5765443.0383704752,6862285.8511481211,1558.3544782177198,978.49141383565666,1104.5785116014038,null,null,null,null,null,null,null,null,null,null,null,null,null,null,null,null,null,null,null,null,null,null,null,null,null,null,null,null,null,null,null,null,null,null,null,null,null,null,null,null,null,null,null,null,null,null,null,null,null,null,null,null,null,null,null,null,null,null,null,null,null,null,null,null,null,null,null,null,null,null,null,null,null,null,null,null,null,null,null,null,null,null,"HRM",0,0,null,0,4289990.2923666183,{"$f":"EJ106*'Zambia-IO-Data'!BO46","v":0},{"$f":"EM106*'Zambia-IO-Data'!$BO46","v":0},{"$f":"EN106*'Zambia-IO-Data'!$BO46","v":0},{"$f":"EJ106*'Zambia-IO-Data'!BN46","v":0},{"$f":"EM106*'Zambia-IO-Data'!$BN46","v":0},{"$f":"EN106*'Zambia-IO-Data'!$BN46","v":0},0,0,0,0,510711.54615626042,{"$f":"EK106*'Zambia-IO-Data'!BO46","v":0},{"$f":"EX106*'Zambia-IO-Data'!$BO46","v":0},{"$f":"EY106*'Zambia-IO-Data'!$BO46","v":0},{"$f":"EK106*'Zambia-IO-Data'!BN46","v":0},{"$f":"EX106*'Zambia-IO-Data'!$BN46","v":0},{"$f":"EY106*'Zambia-IO-Data'!$BN46","v":0},0,0,0,null,null,null,null,null,null,null,null,null,null,null,null,null,null,null,null,null,null,null,null,null,null,null,null,null,null,null,null,"C90T93 Other community, social and personal services",0,0,null,659627.40896114917,9023247.3309073634,{"$f":"GL106*CustomRegion2!C48","v":0},{"$f":"GO106*CustomRegion2!$C48","v":464905.52662285027},{"$f":"GP106*CustomRegion2!$C48","v":6359586.4805411557},{"$f":"GL106*CustomRegion2!D48","v":0},{"$f":"GO106*CustomRegion2!$D48","v":90194.14139330684},{"$f":"GP106*CustomRegion2!$D48","v":1233793.5545649396},{"$f":"(GT106*'Default-Data'!$C$59/biopower_dollar_index)/CustomRegion2!$E48","v":0},{"$f":"(GU106*'Default-Data'!$C$59/biopower_dollar_index)/CustomRegion2!$E48","v":62.224925526517488},{"$f":"(GV106*'Default-Data'!$C$59/biopower_dollar_index)/CustomRegion2!$E48","v":851.19400065155287},23714.626721050619,408574.29328933125,{"$f":"GM106*CustomRegion2!C48","v":0},{"$f":"GZ106*CustomRegion2!$C48","v":16714.073543089704},{"$f":"HA106*CustomRegion2!$C48","v":287963.24168121861},{"$f":"GM106*CustomRegion2!D48","v":0},{"$f":"GZ106*CustomRegion2!$D48","v":3242.619039946399},{"$f":"HA106*CustomRegion2!$D48","v":55866.398330301672},{"$f":"(HE106*'Default-Data'!$C$59/biopower_dollar_index)/CustomRegion2!$E48","v":0},{"$f":"(HF106*'Default-Data'!$C$59/biopower_dollar_index)/CustomRegion2!$E48","v":2.237082421924419},{"$f":"(HG106*'Default-Data'!$C$59/biopower_dollar_index)/CustomRegion2!$E48","v":38.542220390777537},null,"HRM",0,0,null,0,4289990.2923666183,{"$f":"HM106*CustomRegion3!D47","v":0},{"$f":"HP106*CustomRegion3!$D47","v":0},{"$f":"HQ106*CustomRegion3!$D47","v":0},{"$f":"HM106*CustomRegion3!E47","v":0},{"$f":"HP106*CustomRegion3!$E47","v":0},{"$f":"HQ106*CustomRegion3!$E47","v":0},0,0,0,0,510711.54615626042,{"$f":"HN106*CustomRegion3!D47","v":0},{"$f":"IA106*CustomRegion3!$D47","v":0},{"$f":"IB106*CustomRegion3!$D47","v":0},{"$f":"HN106*CustomRegion3!E47","v":0},{"$f":"IA106*CustomRegion3!$E47","v":0},{"$f":"IB106*CustomRegion3!$E47","v":0},0,0,0]
[null,null,null,null,null,null,null,null,null,null,null,null,null,null,null,null,null,null,null,null,null,null,null,null,null,null,null,null,null,106,null,null,null,null,null,null,null,null,null,null,null,null,null,null,null,null,null,null,null,null,null,null,null,null,null,null,null,null,null,null,null,null,null,null,null,null,null,null,null,null,null,null,null,null,null,null,null,null,null,null,null,null,null,null,null,null,null,null,null,null,null,null,null,null,null,null,null,null,null,null,null,null,null,null,null,null,null,null,null,null,null,null,null,null,null,null,null,null,null,null,null,null,null,null,null,null,null,null,null,null,null,null,null,null,null,null,null,null,"HRL",0,0,null,0,4537255.0647965753,{"$f":"EJ107*'Zambia-IO-Data'!BO47","v":0},{"$f":"EM107*'Zambia-IO-Data'!$BO47","v":0},{"$f":"EN107*'Zambia-IO-Data'!$BO47","v":0},{"$f":"EJ107*'Zambia-IO-Data'!BN47","v":0},{"$f":"EM107*'Zambia-IO-Data'!$BN47","v":0},{"$f":"EN107*'Zambia-IO-Data'!$BN47","v":0},0,0,0,0,206559.14074392497,{"$f":"EK107*'Zambia-IO-Data'!BO47","v":0},{"$f":"EX107*'Zambia-IO-Data'!$BO47","v":0},{"$f":"EY107*'Zambia-IO-Data'!$BO47","v":0},{"$f":"EK107*'Zambia-IO-Data'!BN47","v":0},{"$f":"EX107*'Zambia-IO-Data'!$BN47","v":0},{"$f":"EY107*'Zambia-IO-Data'!$BN47","v":0},0,0,0,null,null,null,null,null,null,null,null,null,null,null,null,null,null,null,null,null,null,null,null,null,null,null,null,null,null,null,null,"C95 Private households with employed persons",0,0,null,0,1994245.4629254446,{"$f":"GL107*CustomRegion2!C49","v":0},{"$f":"GO107*CustomRegion2!$C49","v":0},{"$f":"GP107*CustomRegion2!$C49","v":1994245.4629254446},{"$f":"GL107*CustomRegion2!D49","v":0},{"$f":"GO107*CustomRegion2!$D49","v":0},{"$f":"GP107*CustomRegion2!$D49","v":1994245.4629254446},{"$f":"(GT107*'Default-Data'!$C$59/biopower_dollar_index)/CustomRegion2!$E49","v":0},{"$f":"(GU107*'Default-Data'!$C$59/biopower_dollar_index)/CustomRegion2!$E49","v":0},{"$f":"(GV107*'Default-Data'!$C$59/biopower_dollar_index)/CustomRegion2!$E49","v":383.56733950839401},0,90299.800147258487,{"$f":"GM107*CustomRegion2!C49","v":0},{"$f":"GZ107*CustomRegion2!$C49","v":0},{"$f":"HA107*CustomRegion2!$C49","v":90299.800147258487},{"$f":"GM107*CustomRegion2!D49","v":0},{"$f":"GZ107*CustomRegion2!$D49","v":0},{"$f":"HA107*CustomRegion2!$D49","v":90299.800147258487},{"$f":"(HE107*'Default-Data'!$C$59/biopower_dollar_index)/CustomRegion2!$E49","v":0},{"$f":"(HF107*'Default-Data'!$C$59/biopower_dollar_index)/CustomRegion2!$E49","v":0},{"$f":"(HG107*'Default-Data'!$C$59/biopower_dollar_index)/CustomRegion2!$E49","v":17.367999448680958},null,"HRL",0,0,null,0,4537255.0647965753,{"$f":"HM107*CustomRegion3!D48","v":0},{"$f":"HP107*CustomRegion3!$D48","v":0},{"$f":"HQ107*CustomRegion3!$D48","v":0},{"$f":"HM107*CustomRegion3!E48","v":0},{"$f":"HP107*CustomRegion3!$E48","v":0},{"$f":"HQ107*CustomRegion3!$E48","v":0},0,0,0,0,206559.14074392497,{"$f":"HN107*CustomRegion3!D48","v":0},{"$f":"IA107*CustomRegion3!$D48","v":0},{"$f":"IB107*CustomRegion3!$D48","v":0},{"$f":"HN107*CustomRegion3!E48","v":0},{"$f":"IA107*CustomRegion3!$E48","v":0},{"$f":"IB107*CustomRegion3!$E48","v":0},0,0,0]
[null,null,null,null,null,null,null,null,null,null,null,null,null,null,null,null,null,null,null,null,null,null,null,null,null,null,null,null,null,107,null,null,null,null,null,null,null,null,null,null,null,null,null,null,null,null,null,null,null,null,null,null,null,null,null,null,null,null,null,null,null,null,null,null,null,null,null,null,null,null,null,null,null,null,null,null,null,null,null,null,null,null,null,null,null,null,null,null,null,null,null,null,null,null,null,null,null,null,null,null,null,null,null,null,null,null,null,null,null,null,null,null,null,null,null,null,null,null,null,null,null,null,null,null,null,null,null,null,null,null,null,null,null,null,null,null,null,null,"HRN",0,0,null,0,3679349.7925404538,{"$f":"EJ108*'Zambia-IO-Data'!BO48","v":0},{"$f":"EM108*'Zambia-IO-Data'!$BO48","v":0},{"$f":"EN108*'Zambia-IO-Data'!$BO48","v":0},{"$f":"EJ108*'Zambia-IO-Data'!BN48","v":0},{"$f":"EM108*'Zambia-IO-Data'!$BN48","v":0},{"$f":"EN108*'Zambia-IO-Data'!$BN48","v":0},0,0,0,0,381872.87351385021,{"$f":"EK108*'Zambia-IO-Data'!BO48","v":0},{"$f":"EX108*'Zambia-IO-Data'!$BO48","v":0},{"$f":"EY108*'Zambia-IO-Data'!$BO48","v":0},{"$f":"EK108*'Zambia-IO-Data'!BN48","v":0},{"$f":"EX108*'Zambia-IO-Data'!$BN48","v":0},{"$f":"EY108*'Zambia-IO-Data'!$BN48","v":0},0,0,0,null,null,null,null,null,null,null,null,null,null,null,null,null,null,null,null,null,null,null,null,null,null,null,null,null,null,null,null,"L",0,0,null,0,259435742.0548043,{"$f":"GL108*CustomRegion2!C50","v":0},{"$f":"GO108*CustomRegion2!$C50","v":0},{"$f":"GP108*CustomRegion2!$C50","v":0},{"$f":"GL108*CustomRegion2!D50","v":0},{"$f":"GO108*CustomRegion2!$D50","v":0},{"$f":"GP108*CustomRegion2!$D50","v":0},0,0,0,0,11747297.960120952,{"$f":"GM108*CustomRegion2!C50","v":0},{"$f":"GZ108*CustomRegion2!$C50","v":0},{"$f":"HA108*CustomRegion2!$C50","v":0},{"$f":"GM108*CustomRegion2!D50","v":0},{"$f":"GZ108*CustomRegion2!$D50","v":0},{"$f":"HA108*CustomRegion2!$D50","v":0},0,0,0,null,"HRN",0,0,null,0,3679349.7925404538,{"$f":"HM108*CustomRegion3!D49","v":0},{"$f":"HP108*CustomRegion3!$D49","v":0},{"$f":"HQ108*CustomRegion3!$D49","v":0},{"$f":"HM108*CustomRegion3!E49","v":0},{"$f":"HP108*CustomRegion3!$E49","v":0},{"$f":"HQ108*CustomRegion3!$E49","v":0},0,0,0,0,381872.87351385021,{"$f":"HN108*CustomRegion3!D49","v":0},{"$f":"IA108*CustomRegion3!$D49","v":0},{"$f":"IB108*CustomRegion3!$D49","v":0},{"$f":"HN108*CustomRegion3!E49","v":0},{"$f":"IA108*CustomRegion3!$E49","v":0},{"$f":"IB108*CustomRegion3!$E49","v":0},0,0,0]
[null,null,null,null,null,null,null,null,null,null,null,null,null,null,null,null,null,null,null,null,null,null,null,null,null,null,null,null,null,108,null,null,null,null,null,null,null,null,null,null,null,null,null,null,null,null,null,null,null,null,null,null,null,null,null,null,null,null,null,null,null,null,null,null,null,null,null,null,null,null,null,null,null,null,null,null,null,null,null,null,null,null,null,null,null,null,null,null,null,null,null,null,null,null,null,null,null,null,null,null,null,null,null,null,null,null,null,null,null,null,null,null,null,null,null,null,null,null,null,null,null,null,null,null,null,null,null,null,null,null,null,null,null,null,null,null,null,null,"HUSE",0,0,null,0,14727606.273849702,{"$f":"EJ109*'Zambia-IO-Data'!BO49","v":0},{"$f":"EM109*'Zambia-IO-Data'!$BO49","v":0},{"$f":"EN109*'Zambia-IO-Data'!$BO49","v":0},{"$f":"EJ109*'Zambia-IO-Data'!BN49","v":0},{"$f":"EM109*'Zambia-IO-Data'!$BN49","v":0},{"$f":"EN109*'Zambia-IO-Data'!$BN49","v":0},0,0,0,0,1389943.1863924693,{"$f":"EK109*'Zambia-IO-Data'!BO49","v":0},{"$f":"EX109*'Zambia-IO-Data'!$BO49","v":0},{"$f":"EY109*'Zambia-IO-Data'!$BO49","v":0},{"$f":"EK109*'Zambia-IO-Data'!BN49","v":0},{"$f":"EX109*'Zambia-IO-Data'!$BN49","v":0},{"$f":"EY109*'Zambia-IO-Data'!$BN49","v":0},0,0,0,null,null,null,null,null,null,null,null,null,null,null,null,null,null,null,null,null,null,null,null,null,null,null,null,null,null,null,null,"HH",0,0,null,0,259435742.0548043,{"$f":"GL109*CustomRegion2!C51","v":0},{"$f":"GO109*CustomRegion2!$C51","v":0},{"$f":"GP109*CustomRegion2!$C51","v":0},{"$f":"GL109*CustomRegion2!D51","v":0},{"$f":"GO109*CustomRegion2!$D51","v":0},{"$f":"GP109*CustomRegion2!$D51","v":0},0,0,0,0,11747297.960120952,{"$f":"GM109*CustomRegion2!C51","v":0},{"$f":"GZ109*CustomRegion2!$C51","v":0},{"$f":"HA109*CustomRegion2!$C51","v":0},{"$f":"GM109*CustomRegion2!D51","v":0},{"$f":"GZ109*CustomRegion2!$D51","v":0},{"$f":"HA109*CustomRegion2!$D51","v":0},0,0,0,null,"HUSE",0,0,null,0,14727606.273849702,{"$f":"HM109*CustomRegion3!D50","v":0},{"$f":"HP109*CustomRegion3!$D50","v":0},{"$f":"HQ109*CustomRegion3!$D50","v":0},{"$f":"HM109*CustomRegion3!E50","v":0},{"$f":"HP109*CustomRegion3!$E50","v":0},{"$f":"HQ109*CustomRegion3!$E50","v":0},0,0,0,0,1389943.1863924693,{"$f":"HN109*CustomRegion3!D50","v":0},{"$f":"IA109*CustomRegion3!$D50","v":0},{"$f":"IB109*CustomRegion3!$D50","v":0},{"$f":"HN109*CustomRegion3!E50","v":0},{"$f":"IA109*CustomRegion3!$E50","v":0},{"$f":"IB109*CustomRegion3!$E50","v":0},0,0,0]
[null,null,null,null,null,null,null,null,null,null,null,null,null,null,null,null,null,null,null,null,null,null,null,null,null,null,null,null,null,109,null,null,null,null,null,null,null,null,null,null,null,null,null,null,null,null,null,null,null,null,null,null,null,null,null,null,null,null,null,null,null,null,null,null,null,null,null,null,null,null,null,null,null,null,null,null,null,null,null,null,null,null,null,null,null,null,null,null,null,null,null,null,null,null,null,null,null,null,null,null,null,null,null,null,null,null,null,null,null,null,null,null,null,null,null,null,null,null,null,null,null,null,null,null,null,null,null,null,null,null,null,null,null,null,null,null,null,null,"HUPR",0,0,null,0,34609871.743190631,{"$f":"EJ110*'Zambia-IO-Data'!BO50","v":0},{"$f":"EM110*'Zambia-IO-Data'!$BO50","v":0},{"$f":"EN110*'Zambia-IO-Data'!$BO50","v":0},{"$f":"EJ110*'Zambia-IO-Data'!BN50","v":0},{"$f":"EM110*'Zambia-IO-Data'!$BN50","v":0},{"$f":"EN110*'Zambia-IO-Data'!$BN50","v":0},0,0,0,0,2364623.0960032074,{"$f":"EK110*'Zambia-IO-Data'!BO50","v":0},{"$f":"EX110*'Zambia-IO-Data'!$BO50","v":0},{"$f":"EY110*'Zambia-IO-Data'!$BO50","v":0},{"$f":"EK110*'Zambia-IO-Data'!BN50","v":0},{"$f":"EX110*'Zambia-IO-Data'!$BN50","v":0},{"$f":"EY110*'Zambia-IO-Data'!$BN50","v":0},0,0,0,null,null,null,null,null,null,null,null,null,null,null,null,null,null,null,null,null,null,null,null,null,null,null,null,null,null,null,null,null,null,null,null,null,null,null,null,null,null,null,null,null,null,null,null,null,null,null,null,null,null,null,null,null,null,null,"HUPR",0,0,null,0,34609871.743190631,{"$f":"HM110*CustomRegion3!D51","v":0},{"$f":"HP110*CustomRegion3!$D51","v":0},{"$f":"HQ110*CustomRegion3!$D51","v":0},{"$f":"HM110*CustomRegion3!E51","v":0},{"$f":"HP110*CustomRegion3!$E51","v":0},{"$f":"HQ110*CustomRegion3!$E51","v":0},0,0,0,0,2364623.0960032074,{"$f":"HN110*CustomRegion3!D51","v":0},{"$f":"IA110*CustomRegion3!$D51","v":0},{"$f":"IB110*CustomRegion3!$D51","v":0},{"$f":"HN110*CustomRegion3!E51","v":0},{"$f":"IA110*CustomRegion3!$E51","v":0},{"$f":"IB110*CustomRegion3!$E51","v":0},0,0,0]
[null,null,null,null,null,null,null,null,null,null,null,null,null,null,null,null,null,null,null,null,null,null,null,null,null,null,null,null,null,110,null,null,null,null,null,null,null,null,null,null,null,null,null,null,null,null,null,null,null,null,null,null,null,null,null,null,null,null,null,null,null,null,null,null,null,null,null,null,null,null,null,null,null,null,null,null,null,null,null,null,null,null,null,null,null,null,null,null,null,null,null,null,null,null,null,null,null,null,null,null,null,null,null,null,null,null,null,null,null,null,null,null,null,null,null,null,null,null,null,null,null,null,null,null,null,null,null,null,null,null,null,null,null,null,null,null,null,null,"HUPU",0,0,null,0,59565785.52355279,{"$f":"EJ111*'Zambia-IO-Data'!BO51","v":0},{"$f":"EM111*'Zambia-IO-Data'!$BO51","v":0},{"$f":"EN111*'Zambia-IO-Data'!$BO51","v":0},{"$f":"EJ111*'Zambia-IO-Data'!BN51","v":0},{"$f":"EM111*'Zambia-IO-Data'!$BN51","v":0},{"$f":"EN111*'Zambia-IO-Data'!$BN51","v":0},0,0,0,0,3390718.2867843914,{"$f":"EK111*'Zambia-IO-Data'!BO51","v":0},{"$f":"EX111*'Zambia-IO-Data'!$BO51","v":0},{"$f":"EY111*'Zambia-IO-Data'!$BO51","v":0},{"$f":"EK111*'Zambia-IO-Data'!BN51","v":0},{"$f":"EX111*'Zambia-IO-Data'!$BN51","v":0},{"$f":"EY111*'Zambia-IO-Data'!$BN51","v":0},0,0,0,null,null,null,null,null,null,null,null,null,null,null,null,null,null,null,null,null,null,null,null,null,null,null,null,null,null,null,null,null,null,null,null,null,null,null,null,null,null,null,null,null,null,null,null,null,null,null,null,null,null,null,null,null,null,null,"HUPU",0,0,null,0,59565785.52355279,{"$f":"HM111*CustomRegion3!D52","v":0},{"$f":"HP111*CustomRegion3!$D52","v":0},{"$f":"HQ111*CustomRegion3!$D52","v":0},{"$f":"HM111*CustomRegion3!E52","v":0},{"$f":"HP111*CustomRegion3!$E52","v":0},{"$f":"HQ111*CustomRegion3!$E52","v":0},0,0,0,0,3390718.2867843914,{"$f":"HN111*CustomRegion3!D52","v":0},{"$f":"IA111*CustomRegion3!$D52","v":0},{"$f":"IB111*CustomRegion3!$D52","v":0},{"$f":"HN111*CustomRegion3!E52","v":0},{"$f":"IA111*CustomRegion3!$E52","v":0},{"$f":"IB111*CustomRegion3!$E52","v":0},0,0,0]
[null,null,null,null,null,null,null,null,null,null,null,null,null,null,null,null,null,null,null,null,null,null,null,null,null,null,null,null,null,111,null,null,null,null,null,null,null,null,null,null,null,null,null,null,null,null,null,null,null,null,null,null,null,null,null,null,null,null,null,null,null,null,null,null,null,null,null,null,null,null,null,null,null,null,null,null,null,null,null,null,null,null,null,null,null,null,null,null,null,null,null,null,null,null,null,null,null,null,null,null,null,null,null,null,null,null,null,null,null,null,null,null,null,null,null,null,null,null,null,null,null,null,null,null,null,null,null,null,null,null,null,null,null,null,null,null,null,null,"HUEM",0,0,null,0,3515838.0112768183,{"$f":"EJ112*'Zambia-IO-Data'!BO52","v":0},{"$f":"EM112*'Zambia-IO-Data'!$BO52","v":0},{"$f":"EN112*'Zambia-IO-Data'!$BO52","v":0},{"$f":"EJ112*'Zambia-IO-Data'!BN52","v":0},{"$f":"EM112*'Zambia-IO-Data'!$BN52","v":0},{"$f":"EN112*'Zambia-IO-Data'!$BN52","v":0},0,0,0,0,154480.21196190926,{"$f":"EK112*'Zambia-IO-Data'!BO52","v":0},{"$f":"EX112*'Zambia-IO-Data'!$BO52","v":0},{"$f":"EY112*'Zambia-IO-Data'!$BO52","v":0},{"$f":"EK112*'Zambia-IO-Data'!BN52","v":0},{"$f":"EX112*'Zambia-IO-Data'!$BN52","v":0},{"$f":"EY112*'Zambia-IO-Data'!$BN52","v":0},0,0,0,null,null,null,null,null,null,null,null,null,null,null,null,null,null,null,null,null,null,null,null,null,null,null,null,null,null,null,null,null,null,null,null,null,null,null,null,null,null,null,null,null,null,null,null,null,null,null,null,null,null,null,null,null,null,null,"HUEM",0,0,null,0,3515838.0112768183,{"$f":"HM112*CustomRegion3!D53","v":0},{"$f":"HP112*CustomRegion3!$D53","v":0},{"$f":"HQ112*CustomRegion3!$D53","v":0},{"$f":"HM112*CustomRegion3!E53","v":0},{"$f":"HP112*CustomRegion3!$E53","v":0},{"$f":"HQ112*CustomRegion3!$E53","v":0},0,0,0,0,154480.21196190926,{"$f":"HN112*CustomRegion3!D53","v":0},{"$f":"IA112*CustomRegion3!$D53","v":0},{"$f":"IB112*CustomRegion3!$D53","v":0},{"$f":"HN112*CustomRegion3!E53","v":0},{"$f":"IA112*CustomRegion3!$E53","v":0},{"$f":"IB112*CustomRegion3!$E53","v":0},0,0,0]
[null,null,null,null,null,null,null,null,null,null,null,null,null,null,null,null,null,null,null,null,null,null,null,null,null,null,null,null,null,112,null,null,null,null,null,null,null,null,null,null,null,null,null,null,null,null,null,null,null,null,null,null,null,null,null,null,null,null,null,null,null,null,null,null,null,null,null,null,null,null,null,null,null,null,null,null,null,null,null,null,null,null,null,null,null,null,null,null,null,null,null,null,null,null,null,null,null,null,null,null,null,null,null,null,null,null,null,null,null,null,null,null,null,null,null,null,null,null,null,null,null,null,null,null,null,null,null,null,null,null,null,null,null,null,null,null,null,null,null,{"$f":"SUM(EJ71:EJ112)","v":584499074.39861512},{"$f":"SUM(EK71:EK112)","v":70816129.605341107}]
[null,null,null,null,null,null,null,null,null,null,null,null,null,null,null,null,null,null,null,null,null,null,null,null,null,null,null,null,null,113,"Agriculture",{"$f":"AF71","v":0},{"$f":"AG71","v":28385431.684592765},null,{"$f":"AI71","v":2994075.6034670044},20321461.919571564,0,2072801.3184865452,14068566.943228245,0,547235.46255129296,3714209.6880913926,0,111.80026447696984,758.81344296582313,2128869.8252097256,1945268.1262958683,19651260.694119625,1473818.5553735534,1346710.9288512536,5188083.7009089356,389099.41424362338,355542.02493989823,1059.9260639763615,79.493052620276245,72.637274338251146,null,"Agriculture",{"$f":"BG71","v":0},{"$f":"BH71","v":28385431.684592765},null,{"$f":"BJ71","v":1072031.1854791809},13837252.779192695,0,653805.50905957143,8439000.8610078264,0,107704.482826639,1390196.6421417738,0,102.44624731348985,1322.32591696744,3520140.3290717453,908617.97824161127,17311578.118061446,2146847.1915592188,554143.80463139236,2851818.3806690462,353660.32141163864,91286.737511984044,2712.5898890340022,336.39428741905471,86.830031974131373,null,"Agriculture",{"$f":"CH71","v":0},{"$f":"CI71","v":28385431.684592765},null,{"$f":"CK71","v":5668196.324848175},35019935.232406765,0,4000368.0661258097,24715557.216565996,0,1151488.922306818,7114267.9556179186,0,661.5067167837127,4087.0007053236932,2429866.3403330967,3484157.5680419095,20033211.262717191,1714894.6782613201,2458967.8750971546,5766474.6008212799,493625.13456248603,707803.43750340794,3312.7211271508454,283.57749324430046,406.61852580666618,null,"Agriculture",{"$f":"DI71","v":0},{"$f":"DJ71","v":28385431.684592765},null,{"$f":"DL71","v":4743374.6078717001},22115143.163596753,0,2892867.756243112,13487483.0413984,0,476555.82777237636,2221857.0591373215,0,33.114039407768701,154.38833800149177,1357746.5901010595,1880593.5846988894,11463424.600471133,548324.43047249643,759475.60008491471,3516507.1907978705,168203.38335609017,232975.87780394769,244.34861753364646,11.687808941524512,16.188601521717906,null,"Agriculture",{"$f":"SUM(EJ71:EJ83)","v":0},{"$f":"SUM(EK71:EK83)","v":28385431.684592765},{"$f":"SUM(EL71:EL83)","v":0},4676093.5157197518,94462097.653969973,0,1349119.4159284947,35339509.667639889,0,835731.18086068984,28316370.376064416,0,8059.8486459497635,273085.01185595745,8495130.0201856624,11929337.184005927,13068314.82995528,3889261.7329336032,4532315.7953059208,12283609.520539157,3643737.1345152841,3639076.8180078352,118463.97002865493,35140.45004229094,35095.50563127402,null,"Agriculture",{"$f":"FK71","v":0},{"$f":"FL71","v":28385431.684592765},null,{"$f":"FN71","v":10668095.629038401},45957812.659341253,0,7529080.9694959987,32435038.522831276,0,2167213.9133742056,9336287.7955891863,0,1250.2221943197974,5385.9169796623646,2848302.8476619646,4407321.3060007133,20033211.262717191,2010209.0861765149,3110496.9551585536,5766474.6008212799,578630.13002563326,895343.31029766751,3326.5634206379045,333.80010454708031,516.50557942713874,null,"Agriculture",{"$f":"GL71","v":0},{"$f":"GM71","v":28385431.684592765},0,6559267.142766417,21985254.656726815,0,4041698.8042906639,13546906.311951509,0,725826.52932493482,2432814.6325637689,0,690.39098632135062,2314.0423032964145,4257502.0596310832,995496.36120358109,17490576.736977763,2623393.8348817709,613406.40123025735,3141036.7827050546,471120.91583945975,110158.29254718433,2987.6883730059694,448.12034366604519,{"$f":"HJ71","v":104.78025970456052},null,"Agriculture",{"$f":"SUM(HM71:HM83)","v":0},{"$f":"SUM(HN71:HN83)","v":28385431.684592765},{"$f":"SUM(HO71:HO83)","v":0},4676093.5157197518,94462097.653969973,0,1349119.4159284947,35339509.667639889,0,835731.18086068984,28316370.376064416,0,8092.4920877282439,274191.04189159279,8495130.0201856624,11929337.184005927,13068314.82995528,3889261.7329336032,4532315.7953059208,12283609.520539157,3643737.1345152841,3639076.8180078352,0,0,0]
[null,null,null,null,null,null,null,null,null,null,null,null,null,null,null,null,null,null,null,null,null,null,null,null,null,null,null,null,null,114,"Mining and Extraction",{"$f":"AF72","v":0},{"$f":"AG72","v":0},null,{"$f":"AI72","v":25215291.24502562},5133361.3217770681,0,20648379.7224622,4203623.6184883956,0,1712632.4663112529,348659.91336571291,0,163.30488021195947,33.245816897034153,4608617.0909314696,491390.04858679138,0,3773919.3556907652,402391.08152521792,0,313019.07949539268,33375.404735728553,0,29.847351540142331,3.1824495795838019,null,"Mining and Extraction",{"$f":"BG72","v":0},{"$f":"BH72","v":0},null,{"$f":"BJ72","v":21383071.736699145},7642292.5871268287,0,18409271.210669007,6579458.6783451969,0,1142514.1469797927,408333.63436581031,0,59.498785715212215,21.264818011811336,6651302.3672634261,501828.25669613015,0,5726288.0979334386,432037.66944488487,0,355384.25648155826,26813.073897400751,0,18.507369715160504,1.3963462442936505,null,"Mining and Extraction",{"$f":"CH72","v":0},{"$f":"CI72","v":0},null,{"$f":"CK72","v":9264338.0931519996},1956891.8146849312,0,5333352.5628027646,1126555.8175917917,0,1394151.4334350808,294484.45221758506,0,431.8776642921739,91.224851435777097,1080526.4091840347,194692.51958137262,0,622044.25568811002,112081.81716029745,0,162603.8932389454,29298.461749155511,0,50.371134679265673,9.0760235395677249,null,"Mining and Extraction",{"$f":"DI72","v":0},{"$f":"DJ72","v":0},null,{"$f":"DL72","v":37814332.894202299},11688654.835074238,0,32555393.278933696,10063082.591519007,0,2020449.2049699621,624533.91508368799,0,128.00867476851246,39.568309176593303,6204625.4500506567,993961.88096053898,0,3695441.1684355969,591998.28971582314,0,1252060.8140223031,200576.28487025457,0,79.326243460281773,12.707819802188316,null,"Mining and Extraction",{"$f":"EJ84","v":0},{"$f":"EK84","v":0},{"$f":"EL84","v":0},37950482.772703938,2382239.1660401449,0,9271766.4009642564,582010.12068912887,0,338150.39309819281,21226.478600419421,0,296.8408524538666,18.63338363919215,1118762.3135412042,217449.45697362302,0,273327.29576808272,53125.557878965359,0,9968.5139283525277,1937.5410793853309,0,8.7507281747596508,1.7008448235105731,null,"Mining and Extraction",{"$f":"FK72","v":0},{"$f":"FL72","v":0},null,{"$f":"FN72","v":67401857.574010432},17838773.477145746,0,38802326.320078261,10269537.584333096,0,10143023.215274626,2684482.2980143372,0,3155.2163518964862,835.06882152415153,7889709.8545682803,1710725.595265355,0,4541997.9117272906,984841.29637982021,0,1187289.3878153916,257439.92899138961,0,369.33316737625785,80.082501670850206,null,"Mining and Extraction",{"$f":"GL72","v":0},{"$f":"GM72","v":0},0,23407304.790675834,12208746.513362594,0,19022079.414781224,9921507.316153137,0,1501273.0753937953,783031.73256069422,0,78.181898446508157,40.777995954796801,1511374.9275065039,552814.28023807681,0,1228227.4338560384,449247.67009069241,0,96934.974179282755,35455.82039608511,0,5.0480891394203296,{"$f":"HJ72","v":1.8464351322741477},null,"Mining and Extraction",{"$f":"HM84","v":0},{"$f":"HN84","v":0},{"$f":"HO84","v":0},37950482.772703938,2382239.1660401449,0,9271766.4009642564,582010.12068912887,0,338150.39309819281,21226.478600419421,0,298.04309675276187,18.708851281412411,1118762.3135412042,217449.45697362302,0,273327.29576808272,53125.557878965359,0,9968.5139283525277,1937.5410793853309,0,8.7861697690426404,1.7077334676290199]
[null,null,null,null,null,null,null,null,null,null,null,null,null,null,null,null,null,null,null,null,null,null,null,null,null,null,null,null,null,115,"Utilities",{"$f":"AF89","v":0},{"$f":"AG89","v":39981727.832085572},null,{"$f":"AI89","v":10777400.313965235},14970354.373775762,0,5700039.7623290448,7917643.6525334055,0,1004583.1147166424,1395416.7783609414,0,95.790152551004766,133.05736888592736,12548206.104978964,1433034.3613031656,21145863.730625153,6636598.0348339211,757914.95186713908,3726777.099043475,1169643.4767029865,133576.009077856,355.35989169164901,111.52917605555146,12.73689165115155,null,"Utilities",{"$f":"BG89","v":0},{"$f":"BH89","v":39981727.832085572},null,{"$f":"BJ89","v":8599815.277708862},7294972.088994259,0,3846935.9535772926,3263243.3957315655,0,929168.76983311877,788186.72529714811,0,49.801911248185014,42.245506537306603,1260095.593994908,479021.58734847605,17884936.049971614,563675.71732015221,214279.64524855031,4319833.8180397348,136147.28167234705,51755.983665578387,231.53595708082406,7.2972694075217905,2.7740352331671483,null,"Utilities",{"$f":"CH89","v":0},{"$f":"CI89","v":39981727.832085572},null,{"$f":"CK89","v":22353182.793143138},10387630.598087419,0,13395279.60312243,6224850.2847663276,0,2774181.4384181472,1289175.3385203923,0,699.58517160756514,325.10056405874116,3256689.1624103636,1033472.5499108881,23959291.53726662,1951590.6219997986,619314.6585127376,4962003.3197993524,404177.19072327187,128260.94572791332,1251.3038606366413,101.92425247183289,32.344479883325533,null,"Utilities",{"$f":"DI89","v":0},{"$f":"DJ89","v":39981727.832085572},null,{"$f":"DL89","v":19350459.438982874},18703072.775635667,0,8655997.3360142205,8366403.3214134425,0,2090724.2786051466,2020777.2564699282,0,75.811498549001271,73.275158094463237,6391663.1962759346,1590443.1825661361,21739127.95546253,3475317.1412606044,864766.22513426666,7103609.3926285654,1135615.7219185301,282576.26027488115,257.58311541741074,41.178423446580688,10.246463373976635,null,"Utilities",{"$f":"EJ90","v":0},{"$f":"EK90","v":39981727.832085572},{"$f":"EL90","v":0},52978529.119190171,10163882.123406626,0,14121921.129217368,2709277.5903704586,0,699077.24775129987,134117.32751798892,0,1179.3559967871599,226.2583641367174,41666670.354445376,871438.97017982602,10657502.50982389,11106639.65658191,232290.18642852845,527578.18531189859,549811.81468466565,11499.05758021264,890.03396780984451,927.54250383424153,19.399118707192123,null,"Utilities",{"$f":"FK89","v":0},{"$f":"FL89","v":39981727.832085572},null,{"$f":"FN89","v":28337149.848165214},13743463.611484632,0,16981207.950761676,8235853.4574167002,0,3516832.2942613787,1705656.9528994034,0,890.57053663134377,431.92501113324579,3616236.0533960089,1317988.3133717924,23959291.53726662,2167051.2648870153,789812.44571035041,4962003.3197993524,448799.39600131841,163571.27970740938,1256.532467155452,113.64986598562309,41.421299100387685,null,"Utilities",{"$f":"GL91","v":0},{"$f":"GM91","v":1493970.0886627771},0,12487107.372906404,9818840.6578536984,0,4905169.7137236176,3857024.5598498425,0,1846928.2483690351,1452273.4237531829,0,98.992303328877966,77.839456626209838,855044.88278051559,444598.90498199593,586859.43936205551,335877.64865300024,174646.7791415152,220968.35372429824,126466.96312207336,65759.206858975376,11.843538760791022,6.7784203233220754,{"$f":"HJ91","v":3.5245848655997318},null,"Utilities",{"$f":"HM90","v":0},{"$f":"HN90","v":39981727.832085572},{"$f":"HO90","v":0},52978529.119190171,10163882.123406626,0,14121921.129217368,2709277.5903704586,0,699077.24775129987,134117.32751798892,0,1184.1325429120759,227.17474012106075,41666670.354445376,871438.97017982602,10657502.50982389,11106639.65658191,232290.18642852845,527578.18531189859,549811.81468466565,11499.05758021264,893.63872185490573,931.29917235880396,19.477687676646681]
[null,null,null,null,null,null,null,null,null,null,null,null,null,null,null,null,null,null,null,null,null,null,null,null,null,null,null,null,null,116,"Construction",{"$f":"AF90","v":222363778.30382094},{"$f":"AG90","v":0},null,{"$f":"AI90","v":4647899.1738146842},3000729.1253082156,110417561.23460937,2307973.4278294304,1490050.198236366,21775563.782835484,455157.8754760297,293854.37215355318,5974.1750130738901,124.87358921177916,80.619609444329058,1691401.5954526286,287244.23204453941,0,839886.96658603882,142634.77542520815,0,165634.99507480502,28129.154594554686,0,45.442334294302533,7.7172969753437517,null,"Construction",{"$f":"BG90","v":222363778.30382094},{"$f":"BH90","v":0},null,{"$f":"BJ90","v":17310297.065265745},487081.78923758864,111836203.42901671,8706084.7714265771,244974.1521900034,49187389.818524398,3829078.3513326119,107743.63533254433,16680.244260087533,1298.5027753431887,36.537619935664878,219182.55191614729,31984.041748575721,0,110236.22934978732,16086.135191445494,0,48483.695072801551,7074.9451257733008,0,16.44160992135755,2.3992290149978661,null,"Construction",{"$f":"CH90","v":222363778.30382094},{"$f":"CI90","v":0},null,{"$f":"CK90","v":4548772.3192991018},3107394.403893292,122373132.16375174,2503319.2026978591,1710087.807345025,37604596.250693999,769256.34115579503,525500.6586118316,11649.082593118614,238.29881309359109,162.78862653111133,190639.1627024989,309156.81760590803,0,104914.17096315367,170137.81825797746,0,32239.55267212083,52282.423841238764,0,9.9871092708727698,16.195953000925631,null,"Construction",{"$f":"DI90","v":222363778.30382094},{"$f":"DJ90","v":0},null,{"$f":"DL90","v":25400288.081451148},6377561.8806496263,66208959.850708835,12774885.400406903,3207547.1702542938,29860853.625884071,5618603.3575041499,1410731.6610111964,2815.7474023332138,529.80962992026969,133.02580226434813,508810.5354781347,542325.31392842159,0,151498.66840750031,161477.71552455644,0,68327.301501690672,72827.944102935551,0,6.4429645623075444,6.8673554009639615,null,"Construction",{"$f":"EJ92","v":222363778.30382094},{"$f":"EK92","v":0},{"$f":"EL92","v":0},266290707.45217988,6859920.4596343637,13489883.55832454,16154747.250631895,416162.78031306324,5933540.899256302,7105684.279210927,183049.68067807905,20558.358442477867,24619.56643956187,634.22516370161622,3098055.0964222029,611059.66881361976,0,187946.08918232837,37070.443047704073,0,82668.30489655651,16305.477287931662,0,286.42671766338913,56.49473937274049,null,"Construction",{"$f":"FK90","v":222363778.30382094},{"$f":"FL90","v":0},null,{"$f":"FN90","v":6193016.1679976583},4080306.5841273665,122373132.16375174,3408193.5097502628,2245509.1413575998,37604596.250693999,1047319.2817104167,690032.71506527311,11697.758595087913,325.79230601906079,214.65025364812101,358901.58157130139,391298.47794407705,0,197513.78129308257,215342.71778517726,0,60694.908009180901,66173.642977468975,0,18.880521335988629,20.584805531416411,null,"Construction",{"$f":"GL92","v":0},{"$f":"GM92","v":0},0,1200206.951865044,767150.09851364233,0,584851.90506329131,373826.52707351214,0,241348.79488604786,154265.68850086076,0,81.845303550970442,52.314005167557163,101124.11847919076,34736.697095006195,0,49277.029472706243,16926.933675939301,0,20334.979805725154,6985.1786553758575,0,6.8959225410188374,{"$f":"HJ92","v":2.3687877442144476},null,"Construction",{"$f":"HM92","v":222363778.30382094},{"$f":"HN92","v":0},{"$f":"HO92","v":0},266290707.45217988,6859920.4596343338,13489883.55832454,16154747.250631895,416162.78031306138,5933540.899256302,7105684.279210927,183049.68067807826,20641.622484565723,24719.278905513085,636.79385861329081,3098055.0964222029,611059.66881361976,0,187946.08918232837,37070.443047704073,0,82668.30489655651,16305.477287931662,0,287.58678335352391,56.723550460456273]
[null,null,null,null,null,null,null,null,null,null,null,null,null,null,null,null,null,null,null,null,null,null,null,null,null,null,null,null,null,117,"Manufacturing",{"$f":"SUM(AF73:AF88)","v":104828638.34322989},{"$f":"SUM(AG73:AG88)","v":955000},null,{"$f":"SUM(AI73:AI88)","v":125080731.27847454},76396774.773593396,33105568.473698966,43960628.447371386,22871845.613462433,16984529.605464913,14137870.655831687,7408030.7420468731,3992.782203499667,3323.579731747287,1741.5055934375719,8123153.3086842243,7313066.9194497038,295367.29857819906,2460541.2936061216,2189403.1264836546,108364.92890995261,804962.86080150399,709132.35170570645,25.474803817701716,189.23346479094016,166.70529591266288,null,"Manufacturing",{"$f":"SUM(BG73:BG88)","v":104828638.34322989},{"$f":"SUM(BH73:BH88)","v":955000},null,{"$f":"SUM(BJ73:BJ88)","v":88883990.041095361},79687628.285043314,33872710.133796468,33026674.376240715,26986628.231089398,11984612.926243298,7597404.1750371279,6004275.1259905221,1449.6133914528916,1362.8117097010158,1151.2115937393407,18167108.153051104,5232658.0180786923,280147.59012800874,4723537.2366018184,1772066.7515565015,61325.738775119833,1073289.5597100526,394268.45869199611,4.8222450912537278,122.86081244693909,75.593874559019085,null,"Manufacturing",{"$f":"SUM(CH73:CH88)","v":104828638.34322989},{"$f":"SUM(CI73:CI88)","v":955000},null,{"$f":"SUM(CK73:CK88)","v":182362968.98864633},70845489.780122235,34311443.960237108,44526473.187831081,19925491.219967898,10573413.911499735,11268874.311292695,4472125.633461697,3275.4126949047254,3490.851137147858,1385.3668451509241,13577284.762505447,7048466.7587457728,257726.21667889456,2750523.9053884838,1982400.8973826063,66835.208282383624,507410.40613504796,444934.87117134716,20.704087772127149,157.18466142462432,137.8311052266107,null,"Manufacturing",{"$f":"SUM(DI73:DI88)","v":104828638.34322989},{"$f":"SUM(DJ73:DJ88)","v":955000},null,{"$f":"SUM(DL73:DL88)","v":134725341.8822569},127218899.80588114,27442843.121925026,50902115.436954796,43669365.466765225,23546499.205561161,14595978.610080188,11218954.408489402,1834.3199154993385,1137.0562569381482,873.97924094427083,9959094.002404185,10818245.446459999,221291.6191155492,2406642.342607033,2537978.8738190061,154080.59914407987,1490982.2286441214,1471788.5499938983,12.003190331380745,116.15053141367056,114.65530502386039,null,"Manufacturing",{"$f":"SUM(EJ85:EJ89)+EJ91","v":104828638.34322989},{"$f":"SUM(EK85:EK89)+EK91","v":955000},{"$f":"SUM(EL85:EL89)+EL91","v":0},306632910.55434602,118622849.29469058,13207780.015832674,39125444.771126643,13997378.853572596,2961937.1565150502,6928531.0914703812,4385401.0586063648,11082.992073528212,25925.214179192131,16409.316809733475,24578636.099197596,11751415.704716956,177980.84189104949,3069958.1334932405,1393907.1447106795,34376.741518752373,441115.41225469817,441709.8972608117,128.63107271807669,1650.5679760208336,1652.7924231520285,null,"Manufacturing",{"$f":"SUM(FK73:FK88)","v":104828638.34322989},{"$f":"SUM(FL73:FL88)","v":955000},null,{"$f":"SUM(FN73:FN88)","v":324085129.98518974},129750325.62860422,34311443.960237108,77941842.02548641,35151105.453453079,10573413.911499735,19851077.534111883,8213250.0564695727,3289.0990941136752,6175.1258090459723,2554.916845833709,22028325.638788663,12442963.263771541,257726.21667889456,4631638.872515073,3370965.8277871208,66835.208282383624,927678.08908773353,787644.79575448961,20.790600354479682,288.57521212983363,245.01469495881912,null,"Manufacturing",{"$f":"SUM(GL73:GL90)","v":327192416.64705086},{"$f":"SUM(GM73:GM90)","v":40936727.832085572},0,342009147.73956776,149187131.19197503,117108830.6266335,106498395.55152036,49519559.279673219,60115938.882068589,41777235.274865232,16621931.580604501,8532.850974158313,6586.0792230639436,2867.4027935314102,9127994.5553227793,6755220.6494260496,314666.01601753809,3020554.4576268815,2242254.7221319582,111558.25809755837,999870.04942343116,752644.10910990427,8.772193751671864,152.95972022873224,{"$f":"SUM(HJ73:HJ90)","v":129.83652414469952},null,"Manufacturing",{"$f":"SUM(HM85:HM89)+HM91","v":104828638.34322989},{"$f":"SUM(HN85:HN89)+HN91","v":955000},{"$f":"SUM(HO85:HO89)+HO91","v":0},306632910.55434602,118622849.29469058,13207780.015832674,39125444.771126643,13997378.853572596,2961937.1565150502,6928531.0914703812,4385401.0586063648,11127.879641815905,26030.214689354107,16475.776690239087,24578636.099197596,11751415.704716956,177980.84189104949,3069958.1334932405,1393907.1447106795,34376.741518752373,441115.41225469817,441709.8972608117,129.15204539605443,1657.252992327403,1659.4864487605842]
[null,null,null,null,null,null,null,null,null,null,null,null,null,null,null,null,null,null,null,null,null,null,null,null,null,null,null,null,null,118,"Sales",{"$f":"AF91","v":0},{"$f":"AG91","v":1493970.0886627771},null,{"$f":"AI91","v":24407507.814007767},28169236.141878702,0,14663727.12349298,16923726.715952616,0,6361213.6689222977,7341615.1847334113,0,1921.1693932900193,2217.2634224079807,2694004.7386792181,2696494.8400746547,897558.6478451842,1618524.5400072003,1620020.5619546585,389366.37945102132,702125.75156864116,702774.73495335865,117.59371873200749,212.05112331699954,212.24712475326072,null,"Sales",{"$f":"BG91","v":0},{"$f":"BH91","v":1493970.0886627771},null,{"$f":"BJ91","v":35931380.323660836},47059544.128566101,0,27360600.259829313,35834342.118597217,0,5509423.9425764745,7215725.5527955908,0,1122.0915991723782,1469.6100915659401,8908107.4045198523,3090147.1936226226,1137610.5796060159,6783239.7077769982,2353048.5427265051,229073.15282156694,1365896.3216947776,473817.89347566618,46.654797862007641,278.18893660911766,96.501391678703229,null,"Sales",{"$f":"CH91","v":0},{"$f":"CI91","v":1493970.0886627771},null,{"$f":"CK91","v":41159121.680898018},30932205.04877121,0,28445682.652593981,21377708.090662871,0,6331756.2887298241,4758487.9327668957,0,1961.4398057937046,1474.0756310111112,3432431.4921835009,3077466.4659336656,1032505.0025130138,2372204.5798352226,2126882.9578687693,229826.44229881448,528031.66828396218,473425.25431182841,71.195212164313304,163.57267804752902,146.65680366252818,null,"Sales",{"$f":"DI91","v":0},{"$f":"DJ91","v":1493970.0886627771},null,{"$f":"DL91","v":90970902.075662762},64166322.625921369,0,69271440.856093839,48860608.406824626,0,13948733.988474069,9838739.0352923609,0,1452.8511673174005,1024.7685205099754,6091800.9635642944,5456477.2107223263,877358.27487148449,3577509.3656909447,3204405.140908754,421294.19449505204,1717865.9729835496,1538706.9585372121,43.88052440902122,178.92688943715544,160.26631540306195,null,"Trade, Transportation, and Warehousing (Sales for other countries)",{"$f":"EJ93","v":0},{"$f":"EK93","v":1493970.0886627771},{"$f":"EL93","v":0},31821444.110181887,24857877.391185258,0,7193918.9103211099,5619655.5258682463,0,2648499.4868041249,2068921.6770186897,0,6567.6393254581926,5130.426279099288,4853976.3299968131,2322485.6798018962,337743.9325214781,1097345.2992801822,525047.62489804369,124343.16303885248,403996.55573275767,193300.53374595553,308.34102535970152,1001.8139252055487,479.3386569970238,null,"Sales",{"$f":"FK91","v":0},{"$f":"FL91","v":1493970.0886627771},null,{"$f":"FN91","v":72285258.456317663},48509740.957740217,0,49957419.850954533,33525805.228342079,0,11120077.910352144,7462546.4497308694,0,3459.1512720062342,2321.3935416730083,5836436.2477930617,4652049.4014017936,1032505.0025130138,4033648.1087707095,3215100.7007003264,229826.44229881448,897854.23999670078,715652.85773525166,71.492703255119196,279.29783059068745,222.6199774054819,null,"Sales",{"$f":"GL93","v":0},{"$f":"GM93","v":0},0,52471566.89902027,55262739.492091432,0,38496422.842811592,40544201.606059097,0,9375779.2205769457,9874514.4317728039,0,1909.5432133662323,2011.119457366912,2958748.0736938897,2502306.9749926911,0,2170722.6153446729,1835848.8813040201,0,528678.10792932881,447119.82367119443,0,107.67464434701438,{"$f":"HJ93","v":91.063857708916586},null,"Trade, Transportation, and Warehousing (Sales for other countries)",{"$f":"HM93","v":0},{"$f":"HN93","v":1493970.0886627771},{"$f":"HO93","v":0},31821444.110181887,24857877.391185258,0,7193918.9103211099,5619655.5258682463,0,2648499.4868041249,2068921.6770186897,0,6594.2391242088015,5151.205176929423,4853976.3299968131,2322485.6798018962,337743.9325214781,1097345.2992801822,525047.62489804369,124343.16303885248,403996.55573275767,193300.53374595553,309.58984686385014,1005.8714027062891,481.28004128712689]
[null,null,null,null,null,null,null,null,null,null,null,null,null,null,null,null,null,null,null,null,null,null,null,null,null,null,null,null,null,119,"Transportation and Warehousing",{"$f":"AF93","v":0},{"$f":"AG93","v":0},null,{"$f":"AI93","v":26639562.667993668},19874416.004002821,0,11620617.194909809,8669548.4919647854,0,2939157.1131519433,2192754.8847522093,0,655.34772872643612,488.92144177862809,2653621.3351570703,1902474.7399741346,0,1157553.4516245951,829890.9014293527,0,292775.45281211875,209901.04958836408,0,65.280527933913461,46.801913204807363,null,"Transportation and Warehousing",{"$f":"BG93","v":0},{"$f":"BH93","v":0},null,{"$f":"BJ93","v":11249250.145590611},27190480.964924663,0,8222021.7384596197,19873389.130777981,0,2652532.7154334118,6411417.5944520673,0,362.79230674240074,876.90265422419873,2243682.8874250925,1785452.6643407885,0,1639896.8140867506,1304978.5922801946,0,529052.35326160444,421003.31513012532,0,72.359568841702853,57.581481635863462,null,"Transportation and Warehousing",{"$f":"CH93","v":0},{"$f":"CI93","v":0},null,{"$f":"CK93","v":4186954.7117296485},7689715.0943456115,0,1850734.5457415481,3399038.7648918489,0,688715.2160499281,1264886.8108670851,0,213.34893164170268,391.83430750077912,369908.05308035674,765055.07118292665,0,163508.24399077456,338172.71671612648,0,60846.443832348785,125844.46331930248,0,18.848899346645759,38.98386615615334,null,"Transportation and Warehousing",{"$f":"DI93","v":0},{"$f":"DJ93","v":0},null,{"$f":"DL93","v":42847689.932082936},33524610.15950416,0,31317166.344856583,24502973.081532065,0,10103331.142489202,7904982.4716621013,0,566.0900513427024,442.91648666519433,6492974.2583720526,2850814.318908588,0,3433539.1388388439,1507534.4752697395,0,1196074.9085419783,525150.31479790108,0,67.016125358772499,29.424193315447184,null,"Transportation and Warehousing",null,null,null,null,null,null,null,null,null,null,null,null,null,null,null,null,null,null,null,null,null,null,null,null,null,null,"Transportation and Warehousing",{"$f":"FK93","v":0},{"$f":"FL93","v":0},null,{"$f":"FN93","v":10102739.399238687},13649087.680263679,0,4465653.4641787997,6033224.5813291837,0,1661806.9282073632,2245148.3280347912,0,516.94256064391516,698.40407210944443,833927.25389958208,1308937.7291865284,0,368615.87566342793,578581.91464155097,0,137173.29858629216,215308.11604604023,0,42.67085124001953,66.97645012006403,null,"Transportation and Warehousing",{"$f":"GL95","v":0},{"$f":"GM95","v":0},0,19879139.048413828,33855610.668662444,0,12333869.362066476,21005471.018805761,0,4188308.6544916364,7132992.370611364,0,572.84351264406723,975.59390730726898,1064278.1491773315,1532988.2575031365,0,660323.75068589754,951131.57846412202,0,224231.30962210498,322983.20216472086,0,30.668573318003666,{"$f":"HJ95","v":44.175070969196419},null,"Transportation and Warehousing"]
[null,null,null,null,null,null,null,null,null,null,null,null,null,null,null,null,null,null,null,null,null,null,null,null,null,null,null,null,null,120,"Information",{"$f":"AF94","v":0},{"$f":"AG94","v":0},null,{"$f":"AI94","v":9827302.3140018377},12030211.342198959,0,5372882.9240325168,6577279.8096288424,0,1304172.1393374847,1596518.1452170755,0,290.79297787744144,355.97775146376273,557044.19464877388,1151589.7217042379,0,304552.88193338091,629608.87469803146,0,73924.816376670773,152826.39965743438,0,16.483113574359486,34.075903413524188,null,"Information",{"$f":"BG94","v":0},{"$f":"BH94","v":0},null,{"$f":"BJ94","v":8727166.6447447538},10597759.07834024,0,5324800.7950819489,6466125.6354505541,0,1361219.2899272367,1652984.8316950691,0,109.87233606534026,133.42251779918487,327505.76464484225,695897.84773844969,0,199824.6426318564,424595.69798233069,0,51082.69184539761,108542.62473959323,0,4.1231965540686391,8.7611392455657846,null,"Information",{"$f":"CH94","v":0},{"$f":"CI94","v":0},null,{"$f":"CK94","v":4828994.3861495554},6807594.1109693032,0,2924911.4592194897,4123345.0347342277,0,518653.9724371098,731163.76745449263,0,130.79268114462465,184.38279582014346,140342.06666371302,677292.24467389751,0,85004.886353273716,410234.44826713874,0,15073.318491307549,72743.988729516946,0,3.801146513852292,18.344371833075201,null,"Information",{"$f":"DI94","v":0},{"$f":"DJ94","v":0},null,{"$f":"DL94","v":32363836.27818593},19095391.07196391,0,19746498.280717395,11650877.965487506,0,5047947.4073572094,2978402.4682872128,0,282.8366967988012,166.88001040580977,884276.27447670954,1623804.5434118484,0,359087.90414915903,659396.37539941759,0,117509.50409212406,215783.76820273939,0,6.5840622529944062,12.090373234140591,null,"Information",null,null,null,null,null,null,null,null,null,null,null,null,null,null,null,null,null,null,null,null,null,null,null,null,null,null,"Information",{"$f":"FK94","v":0},{"$f":"FL94","v":0},null,{"$f":"FN94","v":6238793.4827429522},8760060.9115296528,0,3778823.7239863272,5305949.9545254344,0,670072.22711216682,940866.7783063337,0,169.68297972433558,238.25652221805944,226997.3983139029,840083.56497361057,0,137491.83338163915,508836.79901158926,0,24380.459564433299,90228.449923734865,0,6.1738852299115115,22.848629773763886,null,"Information",{"$f":"GL96","v":0},{"$f":"GM96","v":0},0,9093291.7605033629,12976354.708096538,0,5590232.9415643839,7977402.1840700107,0,1529857.9328935079,2183145.5223342129,0,123.48419257567778,176.21503036609877,335606.57281388261,587571.72001391731,0,206319.00615996943,361218.23331572308,0,56462.543078250448,98853.229466533186,0,4.5574372579813343,{"$f":"HJ96","v":7.9790488787972675},null,"Information"]
[null,null,null,null,null,null,null,null,null,null,null,null,null,null,null,null,null,null,null,null,null,null,null,null,null,null,null,null,null,121,"Finance, Professional, and Business Services",{"$f":"AF99+AF100+AF96+AF95+AF98+AF97","v":257306657.75156423},{"$f":"AG99+AG100+AG96+AG95+AG98+AG97","v":0},null,{"$f":"AI99+AI100+AI96+AI95+AI98+AI97","v":79483378.763006568},88057854.246188745,187658288.92348215,58398886.799384587,63276419.745807305,70369635.644252896,18178022.569541831,24357368.657210898,6709.9655912720837,2042.9447441526563,2608.4538811763036,7003726.914281561,8429321.5622515604,0,5026645.0720047224,6057123.3981493367,0,1671102.4646726381,2331604.5408956171,0,195.49999253011029,249.69375796128747,null,"Finance, Professional, and Business Services",{"$f":"BG99+BG100+BG96+BG95+BG98+BG97","v":257306657.75156423},{"$f":"BH99+BH100+BH96+BH95+BH98+BH97","v":0},null,{"$f":"BJ99+BJ100+BJ96+BJ95+BJ98+BJ97","v":83986571.471453786},83503811.223020777,193274782.7066153,63193551.943048626,65997250.769053146,85490130.252523631,21688394.619515531,23316187.675942447,22277.94071377147,4958.873945125978,11763.124110873528,4643454.8000809327,5483246.2295565577,0,3510783.3380399146,4333684.5485292599,0,1174287.3891395847,1531048.6586089917,0,272.82519820357146,772.42110251096415,null,"Finance, Professional, and Business Services",{"$f":"CH99+CH100+CH96+CH95+CH98+CH97","v":257306657.75156423},{"$f":"CI99+CI100+CI96+CI95+CI98+CI97","v":0},null,{"$f":"CK99+CK100+CK96+CK95+CK98+CK97","v":45847843.014678515},71816882.426103637,124665023.99187078,28263284.534035884,47090143.907715254,48785921.223832138,6014429.7047279375,14151096.027583435,12302.694625074277,1516.7017480669651,3568.5830803255117,2466344.8876847834,7145111.2846872378,0,1433058.4549839899,4685030.974141337,0,375419.10754997755,1407902.327442548,0,94.672120987828166,355.04079787665495,null,"Finance, Professional, and Business Services",{"$f":"DI99+DI100+DI96+DI95+DI98+DI97","v":257306657.75156423},{"$f":"DJ99+DJ100+DJ96+DJ95+DJ98+DJ97","v":0},null,{"$f":"DL99+DL100+DL96+DL95+DL98+DL97","v":142430687.95070457},220958824.7953662,109624854.37153429,108117368.69355933,165154115.64888147,70769611.933425188,30300177.082957286,89142211.234643385,4396.8184113349462,1882.2979961477072,5359.5722882581831,8393728.31243168,18789557.242241766,0,4495849.7346020825,10785805.058790652,0,2170386.6831766288,6694046.8488365756,0,134.83088125158622,404.14756961901793,null,"Finance, Professional, and Business Services",{"$f":"EJ96","v":0},{"$f":"EK96","v":0},{"$f":"EL96","v":0},102853112.15950628,19619535.781067699,0,21427251.502152465,4087311.6885803612,0,5105848.1767573468,973955.6625300555,0,5044.5890278466668,962.27029843424725,5866848.7048935294,1677910.9299173979,0,1222232.7558730291,349556.9432823197,0,291242.90100951697,83295.082495840106,0,287.74861531505843,82.295721432703161,null,"Finance, Professional, and Business Services",{"$f":"FK99+FK100+FK96+FK95+FK98+FK97","v":257306657.75156423},{"$f":"FL99+FL100+FL96+FL95+FL98+FL97","v":0},null,{"$f":"FN99+FN100+FN96+FN95+FN98+FN97","v":70111970.617682427},94321683.5509101,124665023.99187078,41818155.388850406,60834998.621309154,48785921.223832138,9778108.1262996141,18010331.911245286,12354.101762332586,2476.1189253998436,4560.7721986854121,4183518.6379717067,9045381.8725702092,0,2401614.5951304892,5834032.7804901032,0,638615.51447371673,1727177.9261766477,0,161.71716870150257,437.3747861343507,null,"Finance, Professional, and Business Services",{"$f":"SUM(GL97:GL102)","v":257306657.75156423},{"$f":"SUM(GM97:GM102)","v":0},0,67406642.793235213,77270618.934282675,218535720.02403098,50137225.952088684,61331773.607754573,9797753.3607465066,13205343.349232357,9686072.6432924122,4183.6835978349327,3097.7633106854705,2169.8208924954561,2600822.6101317229,3498827.7906296803,0,1844817.8516493198,2777113.9523280398,0,553637.19170668162,438587.14494356711,0,116.29306026084643,{"$f":"SUM(HJ97:HJ102)","v":98.24988778475705},null,"Finance, Professional, and Business Services",{"$f":"HM96","v":0},{"$f":"HN96","v":0},{"$f":"HO96","v":0},102853112.15950628,19619535.781067699,0,21427251.502152465,4087311.6885803612,0,5105848.1767573468,973955.6625300555,0,5065.0202735760286,966.16761907163686,5866848.7048935294,1677910.9299173979,0,1222232.7558730291,349556.9432823197,0,291242.90100951697,83295.082495840106,0,288.91403486367426,82.62902987424026]
[null,null,null,null,null,null,null,null,null,null,null,null,null,null,null,null,null,null,null,null,null,null,null,null,null,null,null,null,null,122,"Education and Health Care",{"$f":"AF101+AF102","v":0},{"$f":"AG101+AG102","v":0},null,{"$f":"AI101+AI102","v":384868.55364769924},32954535.347523581,0,294861.19578040979,19715052.087623842,0,217130.39975734879,14554496.089405388,0,20.704065011170069,1387.8168767552825,60431.745731325616,3154566.7079536445,0,47215.230291941043,1887219.6590040443,0,34762.356023744142,1393226.405121502,0,3.3146997373990663,132.84850992376101,null,"Education and Health Care",{"$f":"BG101+BG102","v":0},{"$f":"BH101+BH102","v":0},null,{"$f":"BJ101+BJ102","v":374402.89679904433},31700600.572811108,0,335916.92835594213,26433518.4201665,0,289687.92252667935,21202201.157932635,0,70.063133685661555,6501.1999963695234,60591.018364428586,2081607.9651897966,0,54362.690430415721,1735747.0046987953,0,46881.277852901476,1392234.5322303521,0,11.338578456821839,426.89884264658338,null,"Education and Health Care",{"$f":"CH101+CH102","v":0},{"$f":"CI101+CI102","v":0},null,{"$f":"CK101+CK102","v":6580467.7516462477},27518452.458431613,0,3691655.1907576341,17342830.726618744,0,2424274.7804558091,11810502.410008626,0,611.34670747279245,2978.3388501037412,94135.342789139802,2737829.8605510266,0,50318.071151585049,1725450.2193225743,0,32491.81697277939,1175035.0502113372,0,8.1936938362995786,296.31699133411121,null,"Education and Health Care",{"$f":"DI101+DI102","v":0},{"$f":"DJ101+DJ102","v":0},null,{"$f":"DL101+DL102","v":3530744.1656826101},20944850.412785538,0,2663327.3191003483,16442200.069767147,0,1896544.9513089678,12315197.590602107,0,112.79129641388202,732.40926922318818,206979.38389198214,1781076.0268375489,0,95927.985472397064,844707.62186322722,0,42539.970592040809,388017.78227765707,0,2.5299365718556235,23.076188447065476,null,"Education and Health Care",null,null,null,null,null,null,null,null,null,null,null,null,null,null,null,null,null,null,null,null,null,null,null,null,null,null,"Education and Health Care",{"$f":"FK101+FK102","v":0},{"$f":"FL101+FL102","v":0},null,{"$f":"FN101+FN102","v":7045212.7218232779},31571404.813896582,0,3954638.909395474,19884366.000795737,0,2597474.1005315334,13538783.166546149,0,657.76065221279487,3428.4379751746801,130991.82286863695,3027675.1012513181,0,70910.884264240391,1906896.4526493973,0,45996.385469892382,1298359.6053524197,0,11.647705168616078,328.78474539884519,null,"Education and Health Care",{"$f":"GL105+GL104","v":0},{"$f":"GM105+GM104","v":0},0,195906.03657024115,13988980.362670846,0,168667.50190901186,11521496.56960246,0,122615.42572113479,7843740.645979722,0,33.171496567919242,2463.8350289524901,8980.2426685464598,633423.59528804221,0,7754.8065386051621,521695.47679764323,0,5661.0631225805319,355166.01436810032,0,1.5163463593200681,{"$f":"HJ105+HJ104","v":111.5629017823381},null,"Education and Health Care"]
[null,null,null,null,null,null,null,null,null,null,null,null,null,null,null,null,null,null,null,null,null,null,null,null,null,null,null,null,null,123,"Other",{"$f":"AF104+AF103+AF92+AF105","v":0},{"$f":"AG104+AG103+AG92+AG105","v":0},null,{"$f":"AI104+AI103+AI92+AI105","v":12487201.329682548},263449056.72731122,0,6362707.3058318347,17798221.526638992,0,2572144.0349568515,8484715.2690955997,0,525.48930590199552,1733.4282516600606,722073.22108446481,25218611.484874684,0,366214.88994431577,1703731.4134953627,0,148392.37059835007,812197.77587810101,0,30.316577441662119,165.93209388776998,null,"Other",{"$f":"BG104+BG103+BG92+BG105","v":0},{"$f":"BH104+BH103+BH92+BH105","v":0},null,{"$f":"BJ104+BJ103+BJ92+BJ105","v":3800925.2076957384},280327164.13142955,0,2710176.1405581641,11411356.891659867,0,623565.35206163698,3736940.9603216555,0,432.77038386637525,1793.1872111299588,221746.48616147719,18407577.369860075,0,159254.06898202572,749322.44090277259,0,37186.075816030374,245384.81694007106,0,25.815317146362329,117.7489610391187,null,"Other",{"$f":"CH104+CH103+CH92+CH105","v":0},{"$f":"CI104+CI103+CI92+CI105","v":0},null,{"$f":"CK104+CK103+CK92+CK105","v":25265669.080792829},210531278.45653641,0,11132391.069815386,8823837.4682866409,0,7668195.6730913064,5905946.5142409923,0,4012.7753893839363,3046.2419774716782,314670.64056000061,20945902.448874108,0,136201.51417827164,877889.69026570814,0,89464.596339731186,587586.70190234249,0,45.694954698617842,303.07272042220444,null,"Other",{"$f":"DI104+DI103+DI92+DI105","v":0},{"$f":"DJ104+DJ103+DJ92+DJ105","v":0},null,{"$f":"DL104+DL103+DL92+DL105","v":42205306.516930833},437069172.72092706,0,27386113.203571234,24331659.438440952,0,5010329.1031643236,4509009.2840697858,0,330.19894199963278,305.88637100159553,1781785.4463963157,37166817.153669678,0,1210651.3177617667,2132380.8319976386,0,660072.89739977696,1154920.3335362808,0,40.565685714521848,71.757396778071936,null,"Other",{"$f":"SUM(EJ97:EJ112)+EJ95+EJ94","v":257306657.75156423},{"$f":"SUM(EK97:EK112)+EK95+EK94","v":0},{"$f":"SUM(EL97:EL112)+EL95+EL94","v":0},278434476.00730401,450854791.73131377,94172054.239995673,101431905.4362639,5313405.1164941676,75349392.038050324,81052136.619768947,3744971.3915347015,175089.97786170887,188360.00138890301,8716.6275677355025,385974.32570453471,45017433.497301146,0,139094.27684787539,450384.51724962221,0,109664.93236372713,315575.82883388444,0,258.29466742214095,734.64558345143394,null,"Other",{"$f":"FK104+FK103+FK92+FK105","v":0},{"$f":"FL104+FL103+FL92+FL105","v":0},null,{"$f":"FN104+FN103+FN92+FN105","v":28431823.01315362},264697290.60855186,0,12508601.88029932,10718964.798005441,0,8582632.445063876,7167247.3957302682,0,4501.3928090489499,3710.3567844966119,525780.06525779795,25384280.518028833,0,227128.60917225457,1027941.0441636592,0,148376.88098984715,687333.89003359433,0,75.880874830238625,355.82055722254728,null,"Other",{"$f":"GL103+SUM(GL106:GL109)","v":0},{"$f":"GM103+SUM(GM106:GM109)","v":0},0,874920.89900889224,530339445.47135592,0,626402.30801178375,8691739.1594207082,0,249499.04964637759,3561360.0754870763,0,172.1293594390248,1464.7194914307715,43781.682994138755,24013867.313013766,0,31766.851029931848,393563.54251218523,0,18091.096612513047,161259.03708821986,0,12.481045021513946,{"$f":"HJ103+SUM(HJ106:HJ109)","v":66.322767085035366},null,"Other",{"$f":"SUM(HM97:HM112)+HM95+HM94","v":257306657.75156423},{"$f":"SUM(HN97:HN112)+HN95+HN94","v":0},{"$f":"SUM(HO97:HO112)+HO95+HO94","v":0},278434476.00730401,450854791.73131371,94172054.239995673,101431905.4362639,5313405.1164941574,75349392.038050324,81052136.619768947,3744971.3915346931,175799.11518542221,189122.88404450004,8751.9310500974025,385974.32570453471,45017433.497301146,0,139094.27684787539,450384.51724962221,0,109664.93236372713,315575.82883388444,0,259.34079462726197,737.62099420474419]
[null,null,null,null,null,null,null,null,null,null,null,null,null,null,null,null,null,null,null,null,null,null,null,null,null,null,null,null,null,124,"Total",{"$f":"SUM(AF114:AF124)","v":584499074.39861512},{"$f":"SUM(AG114:AG124)","v":70816129.605341107},null,{"$f":"SUM(AI114:AI124)","v":321945219.05708712},{"$f":"SUM(AJ114:AJ124)","v":564357991.32313001},{"$f":"SUM(AK114:AK124)","v":331181418.63179052},{"$f":"SUM(AL114:AL124)","v":171403505.22191072},{"$f":"SUM(AM114:AM124)","v":183511978.40356523},{"$f":"SUM(AN114:AN124)","v":109129729.03255329},{"$f":"SUM(AO114:AO124)","v":49429319.500554658},{"$f":"SUM(AP114:AP124)","v":71687639.724433064},{"$f":"SUM(AQ114:AQ124)","v":16676.92280784564},{"$f":"SUM(AR114:AR124)","v":9275.7968331587181},{"$f":"SUM(AS114:AS124)","v":11539.103456872705},{"$f":"SUM(AT114:AT124)","v":42791150.074839428},{"$f":"SUM(AU114:AU124)","v":54023062.744512983},{"$f":"SUM(AV114:AV124)","v":41990050.371168166},{"$f":"SUM(AW114:AW124)","v":23705470.271896549},{"$f":"SUM(AX114:AX124)","v":17566649.672883257},{"$f":"SUM(AY114:AY124)","v":9412592.1083133835},{"$f":"SUM(AZ114:AZ124)","v":5765443.0383704733},{"$f":"SUM(BA114:BA124)","v":6862285.8511481201},{"$f":"SUM(BB114:BB124)","v":1558.3544782177198},{"$f":"SUM(BC114:BC124)","v":978.49141383565677},{"$f":"SUM(BD114:BD124)","v":1104.5785116014038},null,"Total",{"$f":"SUM(BG114:BG124)","v":584499074.39861512},{"$f":"SUM(BH114:BH124)","v":70816129.605341107},null,{"$f":"SUM(BJ114:BJ124)","v":281318901.99619305},589328587.62868714,338983696.26942849,171789839.62630674,211529288.28406924,146662132.99729133,45730693.768050261,72234193.536267266,40407.798365311894,9929.5251339792267,25111.032037153898,46222917.356493957,38698039.152421772,36614272.337767094,25617945.734712373,13889990.833192632,7462051.0903054681,5171351.2239586944,4743231.0400175322,2995.6028890680877,1166.1521447216783,1648.9064357824079,null,"Total",{"$f":"SUM(CH114:CH124)","v":584499074.39861512},{"$f":"SUM(CI114:CI124)","v":70816129.605341107},null,{"$f":"SUM(CK114:CK124)","v":352066509.14498359},476613469.42435241,281349600.11585963,146067452.07474387,155859446.33914661,96963931.386025876,41003978.082100451,52317637.501350954,27227.189913097616,13968.524766428627,17694.93823473321,27352838.320096936,47418603.58978872,45282734.019175723,11384263.382793983,15506564.072992425,11025139.571201829,2701383.1288019782,5205117.9259099383,4655.9242877239276,937.82814452166872,1760.4816387418232,null,"Total",{"$f":"SUM(DI114:DI124)","v":584499074.39861512},{"$f":"SUM(DJ114:DJ124)","v":70816129.605341107},null,{"$f":"SUM(DL114:DL124)","v":576382963.82401454},981862504.24730563,203276657.34416816,366283173.90645146,369736316.20228416,124176964.76487042,91109374.954682887,144185396.38474849,9046.8857291674976,6530.8662496038269,9306.6697945451142,48273484.413442999,83494115.904405743,34301202.449920699,23449789.197698426,24049926.208507992,11195491.377065569,10019639.386228835,12777370.923234284,557.8154476914591,685.239552411251,861.42758191951214,null,"Total",{"$f":"SUM(EJ114:EJ124)","v":584499074.39861512},{"$f":"SUM(EK114:EK124)","v":70816129.605341107},{"$f":"SUM(EL114:EL124)","v":0},{"$f":"SUM(EM114:EM124)","v":1081637755.6911321},{"$f":"SUM(EN114:EN124)","v":727823193.60130835},{"$f":"SUM(EO114:EO124)","v":120869717.8141529},{"$f":"SUM(EP114:EP124)","v":210076074.81660616},{"$f":"SUM(EQ114:EQ124)","v":68064711.343527913},{"$f":"SUM(ER114:ER124)","v":84244870.093821675},{"$f":"SUM(ES114:ES124)","v":104713658.47572191},{"$f":"SUM(ET114:ET124)","v":39828013.65255072},{"$f":"SUM(EU114:EU124)","v":206731.32837771496},{"$f":"SUM(EV114:EV124)","v":260053.05585615267},{"$f":"SUM(EW114:EW124)","v":305182.76972243754},{"$f":"SUM(EX114:EX124)","v":90064053.244386911},{"$f":"SUM(EY114:EY124)","v":74398531.091710389},{"$f":"SUM(EZ114:EZ124)","v":24241542.114191696},{"$f":"SUM(FA114:FA124)","v":20985805.23996025},{"$f":"SUM(FB114:FB124)","v":7573698.2128017833},{"$f":"SUM(FC114:FC124)","v":12969907.61040866},{"$f":"SUM(FD114:FD124)","v":5532205.5693855593},{"$f":"SUM(FE114:FE124)","v":4702700.2362918565},{"$f":"SUM(FF114:FF124)","v":119790.97609454255},{"$f":"SUM(FG114:FG124)","v":39561.595175926916},{"$f":"SUM(FH114:FH124)","v":38122.172719210663},null,"Total",{"$f":"SUM(FK114:FK124)","v":584499074.39861512},{"$f":"SUM(FL114:FL124)","v":70816129.605341107},null,{"$f":"SUM(FN114:FN124)","v":630901046.89536023},672879950.48359537,281349600.11585963,261145943.99323747,224640353.34369877,96963931.386025876,71135637.976299211,71994633.847631469,27340.959451534174,23577.976396948732,24380.099006158813,48479127.402090907,64528705.14376577,45282734.019175723,20787820.822981741,21542848.93447765,11025139.571201829,5095488.6900201393,6904233.802996113,4675.3791914029553,1701.6271871357594,2338.0340267436654,null,"Total",{"$f":"SUM(GL114:GL124)","v":584499074.39861512},{"$f":"SUM(GM114:GM124)","v":70816129.605341107},0,535584501.43453318,917660872.75559163,335644550.65066445,242405016.29783106,228290908.14041382,69913692.242815092,74764015.555400997,61726142.747460596,12716.534571993245,13444.42479999004,14613.680362495385,22865257.875199582,41551852.54438594,18392102.192357358,12179035.285898793,10337054.170992097,3473563.394526911,3101489.1944414321,2794971.0592698613,3008.3041055184322,892.99360246321851,{"$f":"SUM(HJ114:HJ124)","v":661.71012580038916},null,"Total",{"$f":"SUM(HM114:HM124)","v":584499074.39861512},{"$f":"SUM(HN114:HN124)","v":70816129.605341107},{"$f":"SUM(HO114:HO124)","v":0},1081637755.6911321,727823193.60130835,120869717.8141529,210076074.81660616,68064711.343527898,84244870.093821675,104713658.47572191,39828013.652550705,207568.61731180386,261106.30476454514,306418.79987794609,90064053.244386911,74398531.091710389,24241542.114191696,20985805.23996025,7573698.2128017833,12969907.61040866,5532205.5693855593,4702700.2362918565,1332.3806141148102,4439.0513500059988,3038.9254857314272]
[null,null,null,null,null,null,null,null,null,null,null,null,null,null,null,null,null,null,null,null,null,null,null,null,null,null,null,null,null,125]
[null,null,null,null,null,null,null,null,null,null,null,null,null,null,null,null,null,null,null,null,null,null,null,null,null,null,null,null,null,126]
[null,null,null,null,null,null,null,null,null,null,null,null,null,null,null,null,null,null,null,null,null,null,null,null,null,null,null,null,null,127]
[null,null,null,null,null,null,null,null,null,null,null,null,null,null,null,null,null,null,null,null,null,null,null,null,null,null,null,null,null,128]
[null,null,null,null,null,null,null,null,null,null,null,null,null,null,null,null,null,null,null,null,null,null,null,null,null,null,null,null,null,129]
[null,null,null,null,null,null,null,null,null,null,null,null,null,null,null,null,null,null,null,null,null,null,null,null,null,null,null,null,null,130]
[null,null,null,null,null,null,null,null,null,null,null,null,null,null,null,null,null,null,null,null,null,null,null,null,null,null,null,null,null,131]
[null,null,null,null,null,null,null,null,null,null,null,null,null,null,null,null,null,null,null,null,null,null,null,null,null,null,null,null,null,132,null,null,null,null,"Construction",null,null,null,null,null,null,null,null,null,null,"O&M",null,null,null,null,null,null,null,null,null,null,null,null,null,null,null,"Construction",null,null,null,null,null,null,null,null,null,null,"O&M",null,null,null,null,null,null,null,null,null,null,null,null,null,null,null,"Construction",null,null,null,null,null,null,null,null,null,null,"O&M",null,null,null,null,null,null,null,null,null,null,null,null,null,null,null,"Construction",null,null,null,null,null,null,null,null,null,null,"O&M",null,null,null,null,null,null,null,null,null,null,null,null,null,null,null,"Construction",null,null,null,null,null,null,null,null,null,null,"O&M",null,null,null,null,null,null,null,null,null,null,null,null,null,null,null,"Construction",null,null,null,null,null,null,null,null,null,null,"O&M",null,null,null,null,null,null,null,null,null,null,null,null,null,null,null,"Construction",null,null,null,null,null,null,null,null,null,null,"O&M",null,null,null,null,null,null,null,null,null,null,null,null,null,null,null,"Construction",null,null,null,null,null,null,null,null,null,null,"O&M"]
[null,null,null,null,null,null,null,null,null,null,null,null,null,null,null,null,null,null,null,null,null,null,null,null,null,null,null,null,null,133,"Wind",null,null,null,"Output",null,"Value Added",null,null,"Earnings",null,null,"Jobs",null,null,"Output",null,"Value Added",null,null,"Earnings",null,null,"Jobs",null,null,null,"Wind",null,null,null,"Output",null,"Value Added",null,null,"Earnings",null,null,"Jobs",null,null,"Output",null,"Value Added",null,null,"Earnings",null,null,"Jobs",null,null,null,"Wind",null,null,null,"Output",null,"Value Added",null,null,"Earnings",null,null,"Jobs",null,null,"Output",null,"Value Added",null,null,"Earnings",null,null,"Jobs",null,null,null,"Wind",null,null,null,"Output",null,"Value Added",null,null,"Earnings",null,null,"Jobs",null,null,"Output",null,"Value Added",null,null,"Earnings",null,null,"Jobs",null,null,null,"Wind",null,null,null,"Output",null,"Value Added",null,null,"Earnings",null,null,"Jobs",null,null,"Output",null,"Value Added",null,null,"Earnings",null,null,"Jobs",null,null,null,"Wind",null,null,null,"Output",null,"Value Added",null,null,"Earnings",null,null,"Jobs",null,null,"Output",null,"Value Added",null,null,"Earnings",null,null,"Jobs",null,null,null,"Wind",null,null,null,"Output",null,"Value Added",null,null,"Earnings",null,null,"Jobs",null,null,"Output",null,"Value Added",null,null,"Earnings",null,null,"Jobs",null,null,null,"Wind",null,null,null,"Output",null,"Value Added",null,null,"Earnings",null,null,"Jobs",null,null,"Output",null,"Value Added",null,null,"Earnings",null,null,"Jobs"]
[null,null,null,null,null,null,null,null,null,null,null,null,null,null,null,null,null,null,null,null,null,null,null,null,null,null,null,null,null,134,"Colombia","Construction","O&M",null,"Indirect","Induced","Direct","Indirect","Induced","Direct","Indirect","Induced","Direct","Indirect","Induced","Indirect","Induced","Direct","Indirect","Induced","Direct","Indirect","Induced","Direct","Indirect","Induced",null,"Mexico","Construction","O&M",null,"Indirect","Induced","Direct","Indirect","Induced","Direct","Indirect","Induced","Direct","Indirect","Induced","Indirect","Induced","Direct","Indirect","Induced","Direct","Indirect","Induced","Direct","Indirect","Induced",null,"Philippines","Construction","O&M",null,"Indirect","Induced","Direct","Indirect","Induced","Direct","Indirect","Induced","Direct","Indirect","Induced","Indirect","Induced","Direct","Indirect","Induced","Direct","Indirect","Induced","Direct","Indirect","Induced",null,"South Africa","Construction","O&M",null,"Indirect","Induced","Direct","Indirect","Induced","Direct","Indirect","Induced","Direct","Indirect","Induced","Indirect","Induced","Direct","Indirect","Induced","Direct","Indirect","Induced","Direct","Indirect","Induced",null,"Zambia","Construction","O&M",null,"Indirect","Induced","Direct","Indirect","Induced","Direct","Indirect","Induced","Direct","Indirect","Induced","Indirect","Induced","Direct","Indirect","Induced","Direct","Indirect","Induced","Direct","Indirect","Induced",null,"CR1","Construction","O&M",null,"Indirect","Induced","Direct","Indirect","Induced","Direct","Indirect","Induced","Direct","Indirect","Induced","Indirect","Induced","Direct","Indirect","Induced","Direct","Indirect","Induced","Direct","Indirect","Induced",null,"CR2","Construction","O&M",null,"Indirect","Induced","Direct","Indirect","Induced","Direct","Indirect","Induced","Direct","Indirect","Induced","Indirect","Induced","Direct","Indirect","Induced","Direct","Indirect","Induced","Direct","Indirect","Induced",null,"CR3","Construction","O&M",null,"Indirect","Induced","Direct","Indirect","Induced","Direct","Indirect","Induced","Direct","Indirect","Induced","Indirect","Induced","Direct","Indirect","Induced","Direct","Indirect","Induced","Direct","Indirect","Induced"]
[null,null,null,null,null,null,null,null,null,null,null,null,null,null,null,null,null,null,null,null,null,null,null,null,null,null,null,null,null,135,"TTL_C01T05: Agriculture, hunting, forestry and fishing",0,0,null,{"$f":"MMULT(L1_Colombia,AF136:AF169)-AF136:AF169","v":1115998.6953628906},{"$f":"MMULT(l2_colombia,AF136:AF170)-AI136:AI170-AF136:AF170","v":4444375.0722342618},{"$f":"AF136*'Colombia-IO-Data'!AN13","v":0},{"$f":"AI136*'Colombia-IO-Data'!$AN13","v":772606.93233625509},{"$f":"AJ136*'Colombia-IO-Data'!$AN13","v":3076844.9864487313},{"$f":"AK136*'Colombia-IO-Data'!$AO13","v":0},{"$f":"AL136*'Colombia-IO-Data'!$AO13","v":203974.16202729539},{"$f":"AM136*'Colombia-IO-Data'!$AO13","v":812310.69969952246},{"$f":"(Calculations!AN136*'Default-Data'!$F$19/wind_dollar_index)/'Colombia-IO-Data'!$AP13","v":0},{"$f":"(Calculations!AO136*'Default-Data'!$F$19/wind_dollar_index)/'Colombia-IO-Data'!$AP13","v":33.391267520026751},{"$f":"(Calculations!AP136*'Default-Data'!$F$19/wind_dollar_index)/'Colombia-IO-Data'!$AP13","v":132.97803806845488},{"$f":"MMULT(L1_Colombia,AG136:AG169)-AG136:AG169","v":3432.8525535388471},{"$f":"MMULT(l2_colombia,AG136:AG170)-AT136:AT170-AG136:AG170","v":49210.37804691559},{"$f":"AG136*'Colombia-IO-Data'!AN13","v":0},{"$f":"AT136*'Colombia-IO-Data'!$AN13","v":2376.5670081629396},{"$f":"AU136*'Colombia-IO-Data'!$AN13","v":34068.390384248385},{"$f":"AV136*'Colombia-IO-Data'!$AO13","v":0},{"$f":"AW136*'Colombia-IO-Data'!$AO13","v":627.43193686589245},{"$f":"AX136*'Colombia-IO-Data'!$AO13","v":8994.316630363146},{"$f":"(AY136*'Default-Data'!$F$19/wind_dollar_index)/'Colombia-IO-Data'!$AP13","v":0},{"$f":"(AZ136*'Default-Data'!$F$19/wind_dollar_index)/'Colombia-IO-Data'!$AP13","v":0.10271275266567323},{"$f":"(BA136*'Default-Data'!$F$19/wind_dollar_index)/'Colombia-IO-Data'!$AP13","v":1.4724003755146773},null,"DOM_C01T05: Agriculture, hunting, forestry and fishing",{"$f":"AF136","v":0},{"$f":"AG136","v":0},null,{"$f":"MMULT(Mexico_L1,BG136:BG169)-BG136:BG169","v":519465.11238675221},{"$f":"MMULT(Mexico_L2,BG136:BG170)-BG136:BG170-BJ136:BJ170","v":3640868.4918307695},{"$f":"BG136*'Mexico-IO-Data'!AQ13","v":0},{"$f":"BJ136*'Mexico-IO-Data'!$AQ13","v":316809.02276261593},{"$f":"BK136*'Mexico-IO-Data'!$AQ13","v":2220476.3349830727},{"$f":"BG136*'Mexico-IO-Data'!AR13","v":0},{"$f":"BJ136*'Mexico-IO-Data'!$AR13","v":52189.453099807783},{"$f":"BK136*'Mexico-IO-Data'!$AR13","v":365789.59946688369},{"$f":"(BO136*'Default-Data'!$F$19/wind_dollar_index)/'Mexico-IO-Data'!$AS13","v":0},{"$f":"(BP136*'Default-Data'!$F$19/wind_dollar_index)/'Mexico-IO-Data'!$AS13","v":39.77719646480908},{"$f":"(BQ136*'Default-Data'!$F$19/wind_dollar_index)/'Mexico-IO-Data'!$AS13","v":278.79358564942777},{"$f":"MMULT(Mexico_L1,BH136:BH169)-BH136:BH169","v":3000.4994871173417},{"$f":"MMULT(Mexico_L2,BH136:BH170)-BH136:BH170-BU136:BU170","v":29130.697108049946},{"$f":"BH136*'Mexico-IO-Data'!AQ13","v":0},{"$f":"BU136*'Mexico-IO-Data'!$AQ13","v":1829.93099564624},{"$f":"BV136*'Mexico-IO-Data'!$AQ13","v":17766.09720870723},{"$f":"BH136*'Mexico-IO-Data'!AR13","v":0},{"$f":"BX136*'Mexico-IO-Data'!$AR13","v":183.84891611750825},{"$f":"BY136*'Mexico-IO-Data'!$AR13","v":1784.9185150862079},{"$f":"(CA136*'Default-Data'!$F$19/wind_dollar_index)/'Mexico-IO-Data'!$AS13","v":0.14012399099609005},{"$f":"(CB136*'Default-Data'!$F$19/wind_dollar_index)/'Mexico-IO-Data'!$AS13","v":1.3604100106678616},{"$f":"(CC136*'Default-Data'!$F$19/wind_dollar_index)/'Mexico-IO-Data'!$AS13","v":1.0679819749452672E-4},null,"TTL_C01T05: Agriculture, hunting, forestry and fishing",0,0,null,{"$f":"MMULT(Philippines_L1,CH136:CH169)-CH136:CH169","v":1117385.272107559},{"$f":"MMULT(Philippines_L2,CH136:CH170)-CK136:CK170-CH136:CH170","v":9131348.0107289646},{"$f":"CH136*'Philippines-IO-Data'!AN13","v":0},{"$f":"CK136*'Philippines-IO-Data'!$AN13","v":788602.24733272754},{"$f":"CL136*'Philippines-IO-Data'!$AN13","v":6444510.897173278},{"$f":"CH136*'Philippines-IO-Data'!AO13","v":0},{"$f":"CK136*'Philippines-IO-Data'!$AO13","v":226995.80061124775},{"$f":"CL136*'Philippines-IO-Data'!$AO13","v":1855025.0339757665},{"$f":"(CP136*'Default-Data'!$F$19/wind_dollar_index)/'Philippines-IO-Data'!$AP13","v":0},{"$f":"(CQ136*'Default-Data'!$F$19/wind_dollar_index)/'Philippines-IO-Data'!$AP13","v":104.49162101889695},{"$f":"(CR136*'Default-Data'!$F$19/wind_dollar_index)/'Philippines-IO-Data'!$AP13","v":853.91259357578463},{"$f":"MMULT(Philippines_L1,CI136:CI169)-CI136:CI169","v":2906.2204844875223},{"$f":"MMULT(Philippines_L2,CI136:CI170)-CV136:CV170-CI136:CI170","v":83754.849332120735},{"$f":"CI136*'Philippines-IO-Data'!AN13","v":0},{"$f":"CV136*'Philippines-IO-Data'!$AN13","v":2051.084851859991},{"$f":"CW136*'Philippines-IO-Data'!$AN13","v":59110.553948635301},{"$f":"CI136*'Philippines-IO-Data'!AO13","v":0},{"$f":"CV136*'Philippines-IO-Data'!$AO13","v":590.39604521076149},{"$f":"CW136*'Philippines-IO-Data'!$AO13","v":17014.721380173236},{"$f":"(DA136*'Default-Data'!$F$19/wind_dollar_index)/'Philippines-IO-Data'!$AP13","v":0},{"$f":"(DB136*'Default-Data'!$F$19/wind_dollar_index)/'Philippines-IO-Data'!$AP13","v":0.27177348497680359},{"$f":"(DC136*'Default-Data'!$F$19/wind_dollar_index)/'Philippines-IO-Data'!$AP13","v":7.8322850617135575},null,"DOM_C01T05: Agriculture, hunting, forestry and fishing",{"$f":"AF136","v":0},{"$f":"AG136","v":0},null,{"$f":"MMULT(SouthAfrica_L1,DI136:DI169)-DI136:DI169","v":1172619.6645752527},{"$f":"MMULT(SouthAfrica_L2,DI136:DI170)-DI136:DI170-DL136:DL170","v":5609831.396974992},{"$f":"DI136*'SouthAfrica-IO-Data'!AR13","v":0},{"$f":"DL136*'SouthAfrica-IO-Data'!$AR13","v":473561.13020414015},{"$f":"DM136*'SouthAfrica-IO-Data'!$AR13","v":2265524.0883824192},{"$f":"DI136*'SouthAfrica-IO-Data'!AS13","v":0},{"$f":"DL136*'SouthAfrica-IO-Data'!$AS13","v":145269.07775681489},{"$f":"DM136*'SouthAfrica-IO-Data'!$AS13","v":694969.61208216485},{"$f":"(DQ136*'Default-Data'!$F$19/wind_dollar_index)/'SouthAfrica-IO-Data'!$AT13","v":0},{"$f":"(DR136*'Default-Data'!$F$19/wind_dollar_index)/'SouthAfrica-IO-Data'!$AT13","v":8.0883643352980901},{"$f":"(DS136*'Default-Data'!$F$19/wind_dollar_index)/'SouthAfrica-IO-Data'!$AT13","v":38.694865495679302},{"$f":"MMULT(SouthAfrica_L1,DJ136:DJ169)-DJ136:DJ169","v":3354.4173727859243},{"$f":"MMULT(SouthAfrica_L2,DJ136:DJ170)-DJ136:DJ170-DW136:DW170","v":54742.346301140402},{"$f":"DJ136*'SouthAfrica-IO-Data'!AR13","v":0},{"$f":"'SouthAfrica-IO-Data'!$AR13*Calculations!DW136","v":1354.6776761656138},{"$f":"'SouthAfrica-IO-Data'!$AR13*Calculations!DX136","v":22107.634868791527},{"$f":"DJ136*'SouthAfrica-IO-Data'!AS13","v":0},{"$f":"DW136*'SouthAfrica-IO-Data'!$AS13","v":415.55939481243212},{"$f":"DX136*'SouthAfrica-IO-Data'!$AS13","v":6781.7131177749498},{"$f":"(EB136*'Default-Data'!$F$19/wind_dollar_index)/'SouthAfrica-IO-Data'!$AT13","v":0},{"$f":"(EC136*'Default-Data'!$F$19/wind_dollar_index)/'SouthAfrica-IO-Data'!$AT13","v":2.3137723733785132E-2},{"$f":"(ED136*'Default-Data'!$F$19/wind_dollar_index)/'SouthAfrica-IO-Data'!$AT13","v":0.37759561333389718},null,"MAIZE",0,0,null,{"$f":"MMULT(Zambia_L1,EJ136:EJ162)-EJ136:EJ162","v":1731.6718732014631},{"$f":"MMULT(Zambia_L2,EJ136:EJ177)-EM136:EM177-EJ136:EJ177","v":1658199.1429167383},{"$f":"EJ136*'Zambia-IO-Data'!BO11","v":0},{"$f":"EM136*'Zambia-IO-Data'!$BO11","v":683.73071937756754},{"$f":"EN136*'Zambia-IO-Data'!$BO11","v":654720.85699565173},{"$f":"EJ136*'Zambia-IO-Data'!BN11","v":0},{"$f":"EM136*'Zambia-IO-Data'!$BN11","v":543.26473938059132},{"$f":"EN136*'Zambia-IO-Data'!$BN11","v":520214.67759497272},{"$f":"(ER136*'Default-Data'!$F$19/wind_dollar_index)/'Zambia-IO-Data'!$BP11","v":0},{"$f":"(ES136*'Default-Data'!$F$19/wind_dollar_index)/'Zambia-IO-Data'!$BP11","v":4.1981789651250336},{"$f":"(ET136*'Default-Data'!$F$19/wind_dollar_index)/'Zambia-IO-Data'!$BP11","v":4020.0553404562429},{"$f":"MMULT(Zambia_L1,EK136:EK162)-EK136:EK162","v":10.690650408803963},{"$f":"MMULT(Zambia_L2,EK136:EK177)-EK136:EK177-EX136:EX177","v":7339.6846614251626},{"$f":"EK136*'Zambia-IO-Data'!BO11","v":0},{"$f":"EX136*'Zambia-IO-Data'!$BO11","v":4.2210803372996919},{"$f":"EY136*'Zambia-IO-Data'!$BO11","v":2897.9900587534039},{"$f":"EK136*'Zambia-IO-Data'!BN11","v":0},{"$f":"EX136*'Zambia-IO-Data'!$BN11","v":3.3538994875573689},{"$f":"EY136*'Zambia-IO-Data'!$BN11","v":2302.6255357217842},{"$f":"(FC136*'Default-Data'!$F$19/wind_dollar_index)/'Zambia-IO-Data'!$BP11","v":0},{"$f":"(FD136*'Default-Data'!$F$19/wind_dollar_index)/'Zambia-IO-Data'!$BP11","v":2.5917879919577946E-2},{"$f":"(FE136*'Default-Data'!$F$19/wind_dollar_index)/'Zambia-IO-Data'!$BP11","v":17.793965608091355},null,"TTL_C01T05: Agriculture, hunting, forestry and fishing",{"$f":"CH136","v":0},{"$f":"CI136","v":0},null,{"$f":"MMULT(CustomRegion1_L1,FK136:FK169)-FK136:FK169","v":2313764.5133995623},{"$f":"MMULT(CustomRegion1_L2,FK136:FK170)-FN136:FN170-FK136:FK170","v":12370098.226573523},{"$f":"FK136*CustomRegion1!C9","v":0},{"$f":"FN136*CustomRegion1!$C9","v":1632955.0251043318},{"$f":"FO136*CustomRegion1!$C9","v":8730280.866153609},{"$f":"FK136*CustomRegion1!D9","v":0},{"$f":"FN136*CustomRegion1!$D9","v":470039.15413561201},{"$f":"FO136*CustomRegion1!$D9","v":2512974.1913320473},{"$f":"(FS136*'Default-Data'!$C$58/wind_dollar_index)/CustomRegion1!$E9","v":0},{"$f":"(FT136*'Default-Data'!$C$58/wind_dollar_index)/CustomRegion1!$E9","v":217.27442534692483},{"$f":"(FU136*'Default-Data'!$C$58/wind_dollar_index)/CustomRegion1!$E9","v":1161.6160452365095},{"$f":"MMULT(CustomRegion1_L1,FL136:FL169)-FL136:FL169","v":8496.9421371644894},{"$f":"MMULT(CustomRegion1_L2,FL136:FL170)-FY136:FY170-FL136:FL170","v":114209.4698381484},{"$f":"FL136*CustomRegion1!C9","v":0},{"$f":"FY136*CustomRegion1!$C9","v":5996.7746417361568},{"$f":"FZ136*CustomRegion1!$C9","v":80604.10928019954},{"$f":"FL136*CustomRegion1!D9","v":0},{"$f":"FY136*CustomRegion1!$D9","v":1726.14605840933},{"$f":"FZ136*CustomRegion1!$D9","v":23201.549806002018},{"$f":"(GD136*'Default-Data'!$C$58/wind_dollar_index)/CustomRegion1!$E9","v":0},{"$f":"(GE136*'Default-Data'!$C$58/wind_dollar_index)/CustomRegion1!$E9","v":0.79790670544339537},{"$f":"(GF136*'Default-Data'!$C$58/wind_dollar_index)/CustomRegion1!$E9","v":10.724858465307177},null,"C01T05 Agriculture, hunting, forestry and fishing",{"$f":"BG136","v":0},{"$f":"BH136","v":0},null,{"$f":"MMULT(CustomRegion2_L1,GL136:GL172)-GL136:GL172","v":3372208.115220082},{"$f":"MMULT(CustomRegion2_L2,GL136:GL174)-GL136:GL174-GO136:GO174","v":8634790.7508761734},{"$f":"GL136*CustomRegion2!C13","v":0},{"$f":"GO136*CustomRegion2!$C13","v":2077892.1197217715},{"$f":"GP136*CustomRegion2!$C13","v":5320597.9713150272},{"$f":"GL136*CustomRegion2!D13","v":0},{"$f":"GO136*CustomRegion2!$D13","v":373157.25357074925},{"$f":"GP136*CustomRegion2!$D13","v":955497.01906365668},{"$f":"(GT136*'Default-Data'!$C$59/wind_dollar_index)/CustomRegion2!$E13","v":0},{"$f":"(GU136*'Default-Data'!$C$59/wind_dollar_index)/CustomRegion2!$E13","v":284.40898507148637},{"$f":"(GV136*'Default-Data'!$C$59/wind_dollar_index)/CustomRegion2!$E13","v":728.25044892019525},{"$f":"MMULT(CustomRegion2_L1,GM136:GM172)-GM136:GM172","v":0},{"$f":"MMULT(CustomRegion2_L2,GM136:GM174)-GM136:GM174-GZ136:GZ174","v":0},{"$f":"GM136*CustomRegion2!C13","v":0},{"$f":"GZ136*CustomRegion2!$C13","v":0},{"$f":"HA136*CustomRegion2!$C13","v":0},{"$f":"GM136*CustomRegion2!D13","v":0},{"$f":"GZ136*CustomRegion2!$D13","v":0},{"$f":"HA136*CustomRegion2!$D13","v":0},{"$f":"(HE136*'Default-Data'!$C$59/wind_dollar_index)/CustomRegion2!$E13","v":0},{"$f":"(HF136*'Default-Data'!$C$59/wind_dollar_index)/CustomRegion2!$E13","v":0},{"$f":"(HG136*'Default-Data'!$C$59/wind_dollar_index)/CustomRegion2!$E13","v":0},null,"MAIZE",{"$f":"EJ136","v":0},{"$f":"EK136","v":0},null,{"$f":"MMULT(CustomRegion3_L1,HM136:HM162)-HM136:HM162","v":1731.6718732014631},{"$f":"MMULT(CustomRegion3_L2,HM136:HM177)-HM136:HM177-HP136:HP177","v":1658199.1429167383},{"$f":"HM136*CustomRegion3!D12","v":0},{"$f":"HP136*CustomRegion3!$D12","v":683.73071937756754},{"$f":"HQ136*CustomRegion3!$D12","v":654720.85699565173},{"$f":"HM136*CustomRegion3!E12","v":0},{"$f":"HP136*CustomRegion3!$E12","v":543.26473938059132},{"$f":"HQ136*CustomRegion3!$E12","v":520214.67759497272},{"$f":"(HU136*'Default-Data'!$C$60/wind_dollar_index)/CustomRegion3!$F12","v":0},{"$f":"(HV136*'Default-Data'!$C$60/wind_dollar_index)/CustomRegion3!$F12","v":4.21518213933384},{"$f":"(HW136*'Default-Data'!$C$60/wind_dollar_index)/CustomRegion3!$F12","v":4036.3370906747655},{"$f":"MMULT(CustomRegion3_L1,HN136:HN162)-HN136:HN162","v":10.690650408803963},{"$f":"MMULT(CustomRegion3_L2,HN136:HN177)-HN136:HN177-IA136:IA177","v":7339.6846614251626},{"$f":"HN136*CustomRegion3!D12","v":0},{"$f":"IA136*CustomRegion3!$D12","v":4.2210803372996919},{"$f":"IB136*CustomRegion3!$D12","v":2897.9900587534039},{"$f":"HN136*CustomRegion3!E12","v":0},{"$f":"IA136*CustomRegion3!$E12","v":3.3538994875573689},{"$f":"IB136*CustomRegion3!$E12","v":2302.6255357217842},{"$f":"(IF136*'Default-Data'!$C$60/wind_dollar_index)/CustomRegion3!$F12","v":0},{"$f":"(IG136*'Default-Data'!$C$60/wind_dollar_index)/CustomRegion3!$F12","v":2.6022850725028683E-2},{"$f":"(IH136*'Default-Data'!$C$60/wind_dollar_index)/CustomRegion3!$F12","v":17.866033497434149}]
[null,null,null,null,null,null,null,null,null,null,null,null,null,null,null,null,null,null,null,null,null,null,null,null,null,null,null,null,null,136,"TTL_C10T14: Mining and quarrying",0,0,null,12699157.34108174,1122684.1447516549,{"$f":"AF137*'Colombia-IO-Data'!AN14","v":0},{"$f":"AI137*'Colombia-IO-Data'!$AN14","v":10399127.27502913},{"$f":"AJ137*'Colombia-IO-Data'!$AN14","v":919347.24465231271},{"$f":"AK137*'Colombia-IO-Data'!$AO14","v":0},{"$f":"AL137*'Colombia-IO-Data'!$AO14","v":862531.74495543574},{"$f":"AM137*'Colombia-IO-Data'!$AO14","v":76253.147228425471},{"$f":"(Calculations!AN137*'Default-Data'!$F$19/wind_dollar_index)/'Colombia-IO-Data'!$AP14","v":0},{"$f":"(Calculations!AO137*'Default-Data'!$F$19/wind_dollar_index)/'Colombia-IO-Data'!$AP14","v":65.902096152479388},{"$f":"(Calculations!AP137*'Default-Data'!$F$19/wind_dollar_index)/'Colombia-IO-Data'!$AP14","v":5.8261533792434506},228196.08337072891,12430.929049094062,{"$f":"AG137*'Colombia-IO-Data'!AN14","v":0},{"$f":"AT137*'Colombia-IO-Data'!$AN14","v":186865.95109413992},{"$f":"AU137*'Colombia-IO-Data'!$AN14","v":10179.479618714169},{"$f":"AV137*'Colombia-IO-Data'!$AO14","v":0},{"$f":"AW137*'Colombia-IO-Data'!$AO14","v":15499.167440426787},{"$f":"AX137*'Colombia-IO-Data'!$AO14","v":844.31357421223902},{"$f":"(AY137*'Default-Data'!$F$19/wind_dollar_index)/'Colombia-IO-Data'!$AP14","v":0},{"$f":"(AZ137*'Default-Data'!$F$19/wind_dollar_index)/'Colombia-IO-Data'!$AP14","v":1.184220324546035},{"$f":"(BA137*'Default-Data'!$F$19/wind_dollar_index)/'Colombia-IO-Data'!$AP14","v":6.4510129251478573E-2},null,"DOM_C10T14: Mining and quarrying",{"$f":"AF137","v":0},{"$f":"AG137","v":0},null,10489235.284919778,2010845.8470645454,{"$f":"BG137*'Mexico-IO-Data'!AQ14","v":0},{"$f":"BJ137*'Mexico-IO-Data'!$AQ14","v":9030469.5008433554},{"$f":"BK137*'Mexico-IO-Data'!$AQ14","v":1731192.1793689444},{"$f":"BG137*'Mexico-IO-Data'!AR14","v":0},{"$f":"BJ137*'Mexico-IO-Data'!$AR14","v":560447.99604036775},{"$f":"BK137*'Mexico-IO-Data'!$AR14","v":107441.05692372592},{"$f":"(BO137*'Default-Data'!$F$19/wind_dollar_index)/'Mexico-IO-Data'!$AS14","v":0},{"$f":"(BP137*'Default-Data'!$F$19/wind_dollar_index)/'Mexico-IO-Data'!$AS14","v":23.386809953301071},{"$f":"(BQ137*'Default-Data'!$F$19/wind_dollar_index)/'Mexico-IO-Data'!$AS14","v":4.4833840021010554},305239.2846640881,16088.837438993156,{"$f":"BH137*'Mexico-IO-Data'!AQ14","v":0},{"$f":"BU137*'Mexico-IO-Data'!$AQ14","v":262788.84739874268},{"$f":"BV137*'Mexico-IO-Data'!$AQ14","v":13851.320124903234},{"$f":"BH137*'Mexico-IO-Data'!AR14","v":0},{"$f":"BX137*'Mexico-IO-Data'!$AR14","v":14041.012419477798},{"$f":"BY137*'Mexico-IO-Data'!$AR14","v":740.08680286505796},{"$f":"(CA137*'Default-Data'!$F$19/wind_dollar_index)/'Mexico-IO-Data'!$AS14","v":0.58591428879445095},{"$f":"(CB137*'Default-Data'!$F$19/wind_dollar_index)/'Mexico-IO-Data'!$AS14","v":3.0882917826161035E-2},{"$f":"(CC137*'Default-Data'!$F$19/wind_dollar_index)/'Mexico-IO-Data'!$AS14","v":2.4449487227664944E-5},null,"TTL_C10T14: Mining and quarrying",0,0,null,3821870.0093317996,510253.94709180901,{"$f":"CH137*'Philippines-IO-Data'!AN14","v":0},{"$f":"CK137*'Philippines-IO-Data'!$AN14","v":2200198.2229076615},{"$f":"CL137*'Philippines-IO-Data'!$AN14","v":293746.20928546425},{"$f":"CH137*'Philippines-IO-Data'!AO14","v":0},{"$f":"CK137*'Philippines-IO-Data'!$AO14","v":575137.20876087341},{"$f":"CL137*'Philippines-IO-Data'!$AO14","v":76785.979160214789},{"$f":"(CP137*'Default-Data'!$F$19/wind_dollar_index)/'Philippines-IO-Data'!$AP14","v":0},{"$f":"(CQ137*'Default-Data'!$F$19/wind_dollar_index)/'Philippines-IO-Data'!$AP14","v":142.76160090708044},{"$f":"(CR137*'Default-Data'!$F$19/wind_dollar_index)/'Philippines-IO-Data'!$AP14","v":19.059954990127792},47241.257937177936,4680.1679674874467,{"$f":"CI137*'Philippines-IO-Data'!AN14","v":0},{"$f":"CV137*'Philippines-IO-Data'!$AN14","v":27196.14521360286},{"$f":"CW137*'Philippines-IO-Data'!$AN14","v":2694.3086028128882},{"$f":"CI137*'Philippines-IO-Data'!AO14","v":0},{"$f":"CV137*'Philippines-IO-Data'!$AO14","v":7109.1390240902792},{"$f":"CW137*'Philippines-IO-Data'!$AO14","v":704.29887326895073},{"$f":"(DA137*'Default-Data'!$F$19/wind_dollar_index)/'Philippines-IO-Data'!$AP14","v":0},{"$f":"(DB137*'Default-Data'!$F$19/wind_dollar_index)/'Philippines-IO-Data'!$AP14","v":1.7646433802061672},{"$f":"(DC137*'Default-Data'!$F$19/wind_dollar_index)/'Philippines-IO-Data'!$AP14","v":0.17482234349183454},null,"DOM_C10T14: Mining and quarrying",{"$f":"AF137","v":0},{"$f":"AG137","v":0},null,13981958.137256352,2964999.249479821,{"$f":"DI137*'SouthAfrica-IO-Data'!AR14","v":0},{"$f":"DL137*'SouthAfrica-IO-Data'!$AR14","v":8327578.2126926566},{"$f":"DM137*'SouthAfrica-IO-Data'!$AR14","v":1765937.4250896838},{"$f":"DI137*'SouthAfrica-IO-Data'!AS14","v":0},{"$f":"DL137*'SouthAfrica-IO-Data'!$AS14","v":2821485.6848153542},{"$f":"DM137*'SouthAfrica-IO-Data'!$AS14","v":598321.26915072906},{"$f":"(DQ137*'Default-Data'!$F$19/wind_dollar_index)/'SouthAfrica-IO-Data'!$AT14","v":0},{"$f":"(DR137*'Default-Data'!$F$19/wind_dollar_index)/'SouthAfrica-IO-Data'!$AT14","v":143.23807170270624},{"$f":"(DS137*'Default-Data'!$F$19/wind_dollar_index)/'SouthAfrica-IO-Data'!$AT14","v":30.374913937397821},286169.58724281372,28933.314428160549,{"$f":"DJ137*'SouthAfrica-IO-Data'!AR14","v":0},{"$f":"'SouthAfrica-IO-Data'!$AR14*Calculations!DW137","v":170441.04956290021},{"$f":"'SouthAfrica-IO-Data'!$AR14*Calculations!DX137","v":17232.524692726325},{"$f":"DJ137*'SouthAfrica-IO-Data'!AS14","v":0},{"$f":"DW137*'SouthAfrica-IO-Data'!$AS14","v":57747.519046252586},{"$f":"DX137*'SouthAfrica-IO-Data'!$AS14","v":5838.590823397757},{"$f":"(EB137*'Default-Data'!$F$19/wind_dollar_index)/'SouthAfrica-IO-Data'!$AT14","v":0},{"$f":"(EC137*'Default-Data'!$F$19/wind_dollar_index)/'SouthAfrica-IO-Data'!$AT14","v":2.9316623218458191},{"$f":"(ED137*'Default-Data'!$F$19/wind_dollar_index)/'SouthAfrica-IO-Data'!$AT14","v":0.2964071359657956},null,"DRSTAP",0,0,null,1922.9390827767413,992297.5690059365,{"$f":"EJ137*'Zambia-IO-Data'!BO12","v":0},{"$f":"EM137*'Zambia-IO-Data'!$BO12","v":1024.5596652510046},{"$f":"EN137*'Zambia-IO-Data'!$BO12","v":528705.28985350393},{"$f":"EJ137*'Zambia-IO-Data'!BN12","v":0},{"$f":"EM137*'Zambia-IO-Data'!$BN12","v":928.98244504750005},{"$f":"EN137*'Zambia-IO-Data'!$BN12","v":479384.41218777397},{"$f":"(ER137*'Default-Data'!$F$19/wind_dollar_index)/'Zambia-IO-Data'!$BP12","v":0},{"$f":"(ES137*'Default-Data'!$F$19/wind_dollar_index)/'Zambia-IO-Data'!$BP12","v":7.1788840266266867},{"$f":"(ET137*'Default-Data'!$F$19/wind_dollar_index)/'Zambia-IO-Data'!$BP12","v":3704.5318968246688},11.596426378743445,4383.3992572650177,{"$f":"EK137*'Zambia-IO-Data'!BO12","v":0},{"$f":"EX137*'Zambia-IO-Data'!$BO12","v":6.1786828481101441},{"$f":"EY137*'Zambia-IO-Data'!$BO12","v":2335.5155219997018},{"$f":"EK137*'Zambia-IO-Data'!BN12","v":0},{"$f":"EX137*'Zambia-IO-Data'!$BN12","v":5.6022973518132888},{"$f":"EY137*'Zambia-IO-Data'!$BN12","v":2117.6442853058566},{"$f":"(FC137*'Default-Data'!$F$19/wind_dollar_index)/'Zambia-IO-Data'!$BP12","v":0},{"$f":"(FD137*'Default-Data'!$F$19/wind_dollar_index)/'Zambia-IO-Data'!$BP12","v":4.3292791145573259E-2},{"$f":"(FE137*'Default-Data'!$F$19/wind_dollar_index)/'Zambia-IO-Data'!$BP12","v":16.364488710098485},null,"TTL_C10T14: Mining and quarrying",{"$f":"CH137","v":0},{"$f":"CI137","v":0},null,25830552.672640678,4801520.5116389617,{"$f":"FK137*CustomRegion1!C10","v":0},{"$f":"FN137*CustomRegion1!$C10","v":14870295.417766733},{"$f":"FO137*CustomRegion1!$C10","v":2764169.600527504},{"$f":"FK137*CustomRegion1!D10","v":0},{"$f":"FN137*CustomRegion1!$D10","v":3887131.6734005464},{"$f":"FO137*CustomRegion1!$D10","v":722560.70932012913},{"$f":"(FS137*'Default-Data'!$C$58/wind_dollar_index)/CustomRegion1!$E10","v":0},{"$f":"(FT137*'Default-Data'!$C$58/wind_dollar_index)/CustomRegion1!$E10","v":968.90261150810761},{"$f":"(FU137*'Default-Data'!$C$58/wind_dollar_index)/CustomRegion1!$E10","v":180.10477057520643},339209.53522458818,44331.023247111356,{"$f":"FL137*CustomRegion1!C10","v":0},{"$f":"FY137*CustomRegion1!$C10","v":195278.28386946046},{"$f":"FZ137*CustomRegion1!$C10","v":25520.762958922722},{"$f":"FL137*CustomRegion1!D10","v":0},{"$f":"FY137*CustomRegion1!$D10","v":51046.222084421948},{"$f":"FZ137*CustomRegion1!$D10","v":6671.1899958927988},{"$f":"(GD137*'Default-Data'!$C$58/wind_dollar_index)/CustomRegion1!$E10","v":0},{"$f":"(GE137*'Default-Data'!$C$58/wind_dollar_index)/CustomRegion1!$E10","v":12.723731028630587},{"$f":"(GF137*'Default-Data'!$C$58/wind_dollar_index)/CustomRegion1!$E10","v":1.6628542462603748},null,"C10T14 Mining and quarrying",{"$f":"BG137","v":0},{"$f":"BH137","v":0},null,9616642.0491756015,4795030.7203341778,{"$f":"GL137*CustomRegion2!C14","v":0},{"$f":"GO137*CustomRegion2!$C14","v":7815018.8754670843},{"$f":"GP137*CustomRegion2!$C14","v":3896708.9963662075},{"$f":"GL137*CustomRegion2!D14","v":0},{"$f":"GO137*CustomRegion2!$D14","v":616782.06496794638},{"$f":"GP137*CustomRegion2!$D14","v":307538.63293954963},{"$f":"(GT137*'Default-Data'!$C$59/wind_dollar_index)/CustomRegion2!$E14","v":0},{"$f":"(GU137*'Default-Data'!$C$59/wind_dollar_index)/CustomRegion2!$E14","v":25.737561803987589},{"$f":"(GV137*'Default-Data'!$C$59/wind_dollar_index)/CustomRegion2!$E14","v":12.83321131071939},0,0,{"$f":"GM137*CustomRegion2!C14","v":0},{"$f":"GZ137*CustomRegion2!$C14","v":0},{"$f":"HA137*CustomRegion2!$C14","v":0},{"$f":"GM137*CustomRegion2!D14","v":0},{"$f":"GZ137*CustomRegion2!$D14","v":0},{"$f":"HA137*CustomRegion2!$D14","v":0},{"$f":"(HE137*'Default-Data'!$C$59/wind_dollar_index)/CustomRegion2!$E14","v":0},{"$f":"(HF137*'Default-Data'!$C$59/wind_dollar_index)/CustomRegion2!$E14","v":0},{"$f":"(HG137*'Default-Data'!$C$59/wind_dollar_index)/CustomRegion2!$E14","v":0},null,"DRSTAP",{"$f":"EJ137","v":0},{"$f":"EK137","v":0},null,1922.9390827767413,992297.5690059365,{"$f":"HM137*CustomRegion3!D13","v":0},{"$f":"HP137*CustomRegion3!$D13","v":1024.5596652510046},{"$f":"HQ137*CustomRegion3!$D13","v":528705.28985350393},{"$f":"HM137*CustomRegion3!E13","v":0},{"$f":"HP137*CustomRegion3!$E13","v":928.98244504750005},{"$f":"HQ137*CustomRegion3!$E13","v":479384.41218777397},{"$f":"(HU137*'Default-Data'!$C$60/wind_dollar_index)/CustomRegion3!$F13","v":0},{"$f":"(HV137*'Default-Data'!$C$60/wind_dollar_index)/CustomRegion3!$F13","v":7.2079594464083483},{"$f":"(HW137*'Default-Data'!$C$60/wind_dollar_index)/CustomRegion3!$F13","v":3719.5357358051051},11.596426378743445,4383.3992572650177,{"$f":"HN137*CustomRegion3!D13","v":0},{"$f":"IA137*CustomRegion3!$D13","v":6.1786828481101441},{"$f":"IB137*CustomRegion3!$D13","v":2335.5155219997018},{"$f":"HN137*CustomRegion3!E13","v":0},{"$f":"IA137*CustomRegion3!$E13","v":5.6022973518132888},{"$f":"IB137*CustomRegion3!$E13","v":2117.6442853058566},{"$f":"(IF137*'Default-Data'!$C$60/wind_dollar_index)/CustomRegion3!$F13","v":0},{"$f":"(IG137*'Default-Data'!$C$60/wind_dollar_index)/CustomRegion3!$F13","v":4.3468132615279209E-2},{"$f":"(IH137*'Default-Data'!$C$60/wind_dollar_index)/CustomRegion3!$F13","v":16.430767030934089}]
[null,null,null,null,null,null,null,null,null,null,null,null,null,null,null,null,null,null,null,null,null,null,null,null,null,null,null,null,null,137,"TTL_C15T16: Food products, beverages and tobacco",0,0,null,578169.78946317174,7747936.3520205365,{"$f":"AF138*'Colombia-IO-Data'!AN15","v":0},{"$f":"AI138*'Colombia-IO-Data'!$AN15","v":132370.7274538725},{"$f":"AJ138*'Colombia-IO-Data'!$AN15","v":1773873.3324955062},{"$f":"AK138*'Colombia-IO-Data'!$AO15","v":0},{"$f":"AL138*'Colombia-IO-Data'!$AO15","v":46453.573506177505},{"$f":"AM138*'Colombia-IO-Data'!$AO15","v":622514.93836084788},{"$f":"(Calculations!AN138*'Default-Data'!$F$19/wind_dollar_index)/'Colombia-IO-Data'!$AP15","v":0},{"$f":"(Calculations!AO138*'Default-Data'!$F$19/wind_dollar_index)/'Colombia-IO-Data'!$AP15","v":8.7504497624843136},{"$f":"(Calculations!AP138*'Default-Data'!$F$19/wind_dollar_index)/'Colombia-IO-Data'!$AP15","v":117.2630065542369},5250.3291861334483,85789.086377603002,{"$f":"AG138*'Colombia-IO-Data'!AN15","v":0},{"$f":"AT138*'Colombia-IO-Data'!$AN15","v":1202.0515537245178},{"$f":"AU138*'Colombia-IO-Data'!$AN15","v":19641.226467315733},{"$f":"AV138*'Colombia-IO-Data'!$AO15","v":0},{"$f":"AW138*'Colombia-IO-Data'!$AO15","v":421.84243664155508},{"$f":"AX138*'Colombia-IO-Data'!$AO15","v":6892.8015657304459},{"$f":"(AY138*'Default-Data'!$F$19/wind_dollar_index)/'Colombia-IO-Data'!$AP15","v":0},{"$f":"(AZ138*'Default-Data'!$F$19/wind_dollar_index)/'Colombia-IO-Data'!$AP15","v":7.9462370080635891E-2},{"$f":"(BA138*'Default-Data'!$F$19/wind_dollar_index)/'Colombia-IO-Data'!$AP15","v":1.2983955651049459},null,"DOM_C15T16: Food products, beverages and tobacco",0,0,null,263436.56314101123,9927665.2361101769,{"$f":"BG138*'Mexico-IO-Data'!AQ15","v":0},{"$f":"BJ138*'Mexico-IO-Data'!$AQ15","v":102346.82963736847},{"$f":"BK138*'Mexico-IO-Data'!$AQ15","v":3856962.9458501502},{"$f":"BG138*'Mexico-IO-Data'!AR15","v":0},{"$f":"BJ138*'Mexico-IO-Data'!$AR15","v":17670.745715726734},{"$f":"BK138*'Mexico-IO-Data'!$AR15","v":665925.9665647099},{"$f":"(BO138*'Default-Data'!$F$19/wind_dollar_index)/'Mexico-IO-Data'!$AS15","v":0},{"$f":"(BP138*'Default-Data'!$F$19/wind_dollar_index)/'Mexico-IO-Data'!$AS15","v":3.555788775807613},{"$f":"(BQ138*'Default-Data'!$F$19/wind_dollar_index)/'Mexico-IO-Data'!$AS15","v":134.0006876632398},5614.7218992664903,79431.544872366925,{"$f":"BH138*'Mexico-IO-Data'!AQ15","v":0},{"$f":"BU138*'Mexico-IO-Data'!$AQ15","v":2181.3562203885635},{"$f":"BV138*'Mexico-IO-Data'!$AQ15","v":30859.675262820547},{"$f":"BH138*'Mexico-IO-Data'!AR15","v":0},{"$f":"BX138*'Mexico-IO-Data'!$AR15","v":146.32058141933862},{"$f":"BY138*'Mexico-IO-Data'!$AR15","v":2069.9991980509985},{"$f":"(CA138*'Default-Data'!$F$19/wind_dollar_index)/'Mexico-IO-Data'!$AS15","v":2.9443300778047035E-2},{"$f":"(CB138*'Default-Data'!$F$19/wind_dollar_index)/'Mexico-IO-Data'!$AS15","v":0.41653476501615716},{"$f":"(CC138*'Default-Data'!$F$19/wind_dollar_index)/'Mexico-IO-Data'!$AS15","v":5.9247164841566802E-6},null,"TTL_C15T16: Food products, beverages and tobacco",0,0,null,664956.28774468449,7109743.3269676529,{"$f":"CH138*'Philippines-IO-Data'!AN15","v":0},{"$f":"CK138*'Philippines-IO-Data'!$AN15","v":221452.36873423579},{"$f":"CL138*'Philippines-IO-Data'!$AN15","v":2367778.9500863305},{"$f":"CH138*'Philippines-IO-Data'!AO15","v":0},{"$f":"CK138*'Philippines-IO-Data'!$AO15","v":38748.62734498077},{"$f":"CL138*'Philippines-IO-Data'!$AO15","v":414302.11244338384},{"$f":"(CP138*'Default-Data'!$F$19/wind_dollar_index)/'Philippines-IO-Data'!$AP15","v":0},{"$f":"(CQ138*'Default-Data'!$F$19/wind_dollar_index)/'Philippines-IO-Data'!$AP15","v":9.6182545459709772},{"$f":"(CR138*'Default-Data'!$F$19/wind_dollar_index)/'Philippines-IO-Data'!$AP15","v":102.83882164228784},1395.6889545013419,65212.220631670905,{"$f":"CI138*'Philippines-IO-Data'!AN15","v":0},{"$f":"CV138*'Philippines-IO-Data'!$AN15","v":464.81044045590636},{"$f":"CW138*'Philippines-IO-Data'!$AN15","v":21717.819645383999},{"$f":"CI138*'Philippines-IO-Data'!AO15","v":0},{"$f":"CV138*'Philippines-IO-Data'!$AO15","v":81.330204983704405},{"$f":"CW138*'Philippines-IO-Data'!$AO15","v":3800.0754067092912},{"$f":"(DA138*'Default-Data'!$F$19/wind_dollar_index)/'Philippines-IO-Data'!$AP15","v":0},{"$f":"(DB138*'Default-Data'!$F$19/wind_dollar_index)/'Philippines-IO-Data'!$AP15","v":2.018793096449116E-2},{"$f":"(DC138*'Default-Data'!$F$19/wind_dollar_index)/'Philippines-IO-Data'!$AP15","v":0.94326160847472174},null,"DOM_C15T16: Food products, beverages and tobacco",0,0,null,1086237.0948331859,11689656.546158701,{"$f":"DI138*'SouthAfrica-IO-Data'!AR15","v":0},{"$f":"DL138*'SouthAfrica-IO-Data'!$AR15","v":284543.65825320937},{"$f":"DM138*'SouthAfrica-IO-Data'!$AR15","v":3062146.9780300432},{"$f":"DI138*'SouthAfrica-IO-Data'!AS15","v":0},{"$f":"DL138*'SouthAfrica-IO-Data'!$AS15","v":147312.5408753113},{"$f":"DM138*'SouthAfrica-IO-Data'!$AS15","v":1585319.6470323156},{"$f":"(DQ138*'Default-Data'!$F$19/wind_dollar_index)/'SouthAfrica-IO-Data'!$AT15","v":0},{"$f":"(DR138*'Default-Data'!$F$19/wind_dollar_index)/'SouthAfrica-IO-Data'!$AT15","v":9.1955477561545909},{"$f":"(DS138*'Default-Data'!$F$19/wind_dollar_index)/'SouthAfrica-IO-Data'!$AT15","v":98.958869600890608},4421.2550514648156,114071.0266508684,{"$f":"DJ138*'SouthAfrica-IO-Data'!AR15","v":0},{"$f":"'SouthAfrica-IO-Data'!$AR15*Calculations!DW138","v":1158.1634363237044},{"$f":"'SouthAfrica-IO-Data'!$AR15*Calculations!DX138","v":29881.30987086393},{"$f":"DJ138*'SouthAfrica-IO-Data'!AS15","v":0},{"$f":"DW138*'SouthAfrica-IO-Data'!$AS15","v":599.5986682715054},{"$f":"DX138*'SouthAfrica-IO-Data'!$AS15","v":15470.004528592712},{"$f":"(EB138*'Default-Data'!$F$19/wind_dollar_index)/'SouthAfrica-IO-Data'!$AT15","v":0},{"$f":"(EC138*'Default-Data'!$F$19/wind_dollar_index)/'SouthAfrica-IO-Data'!$AT15","v":3.7428165693538559E-2},{"$f":"(ED138*'Default-Data'!$F$19/wind_dollar_index)/'SouthAfrica-IO-Data'!$AT15","v":0.96566907735988405},null,"GRNDNUT",0,0,null,18785.080468009543,544033.93246507493,{"$f":"EJ138*'Zambia-IO-Data'!BO13","v":0},{"$f":"EM138*'Zambia-IO-Data'!$BO13","v":8473.0889852474556},{"$f":"EN138*'Zambia-IO-Data'!$BO13","v":245388.7769403375},{"$f":"EJ138*'Zambia-IO-Data'!BN13","v":0},{"$f":"EM138*'Zambia-IO-Data'!$BN13","v":6986.6791328953686},{"$f":"EN138*'Zambia-IO-Data'!$BN13","v":202340.92316046907},{"$f":"(ER138*'Default-Data'!$F$19/wind_dollar_index)/'Zambia-IO-Data'!$BP13","v":0},{"$f":"(ES138*'Default-Data'!$F$19/wind_dollar_index)/'Zambia-IO-Data'!$BP13","v":53.990857947529882},{"$f":"(ET138*'Default-Data'!$F$19/wind_dollar_index)/'Zambia-IO-Data'!$BP13","v":1563.6269866599221},172.145981819252,2518.3764682621131,{"$f":"EK138*'Zambia-IO-Data'!BO13","v":0},{"$f":"EX138*'Zambia-IO-Data'!$BO13","v":77.647163923054848},{"$f":"EY138*'Zambia-IO-Data'!$BO13","v":1135.9242218992267},{"$f":"EK138*'Zambia-IO-Data'!BN13","v":0},{"$f":"EX138*'Zambia-IO-Data'!$BN13","v":64.025743250691221},{"$f":"EY138*'Zambia-IO-Data'!$BN13","v":936.65227303899894},{"$f":"(FC138*'Default-Data'!$F$19/wind_dollar_index)/'Zambia-IO-Data'!$BP13","v":0},{"$f":"(FD138*'Default-Data'!$F$19/wind_dollar_index)/'Zambia-IO-Data'!$BP13","v":0.49477079783976641},{"$f":"(FE138*'Default-Data'!$F$19/wind_dollar_index)/'Zambia-IO-Data'!$BP13","v":7.2381540439974996},null,"TTL_C15T16: Food products, beverages and tobacco",0,0,null,1144977.3508210049,10219712.640144747,{"$f":"FK138*CustomRegion1!C11","v":0},{"$f":"FN138*CustomRegion1!$C11","v":381315.20997620421},{"$f":"FO138*CustomRegion1!$C11","v":3403501.2731727585},{"$f":"FK138*CustomRegion1!D11","v":0},{"$f":"FN138*CustomRegion1!$D11","v":66720.627360157014},{"$f":"FO138*CustomRegion1!$D11","v":595527.62183640827},{"$f":"(FS138*'Default-Data'!$C$58/wind_dollar_index)/CustomRegion1!$E11","v":0},{"$f":"(FT138*'Default-Data'!$C$58/wind_dollar_index)/CustomRegion1!$E11","v":16.630717846036305},{"$f":"(FU138*'Default-Data'!$C$58/wind_dollar_index)/CustomRegion1!$E11","v":148.4406283355278},4562.1310732571937,94355.593718875651,{"$f":"FL138*CustomRegion1!C11","v":0},{"$f":"FY138*CustomRegion1!$C11","v":1519.3400698194134},{"$f":"FZ138*CustomRegion1!$C11","v":31423.523797692258},{"$f":"FL138*CustomRegion1!D11","v":0},{"$f":"FY138*CustomRegion1!$D11","v":265.84652271830976},{"$f":"FZ138*CustomRegion1!$D11","v":5498.330952441388},{"$f":"(GD138*'Default-Data'!$C$58/wind_dollar_index)/CustomRegion1!$E11","v":0},{"$f":"(GE138*'Default-Data'!$C$58/wind_dollar_index)/CustomRegion1!$E11","v":6.6264642354341402E-2},{"$f":"(GF138*'Default-Data'!$C$58/wind_dollar_index)/CustomRegion1!$E11","v":1.3705085565305393},null,"C15T16 Food products, beverages and tobacco",0,0,null,1203721.8277606694,17809074.812443241,{"$f":"GL138*CustomRegion2!C15","v":0},{"$f":"GO138*CustomRegion2!$C15","v":476344.12334315776},{"$f":"GP138*CustomRegion2!$C15","v":7047515.4088280546},{"$f":"GL138*CustomRegion2!D15","v":0},{"$f":"GO138*CustomRegion2!$D15","v":115753.16298397262},{"$f":"GP138*CustomRegion2!$D15","v":1712569.0436248982},{"$f":"(GT138*'Default-Data'!$C$59/wind_dollar_index)/CustomRegion2!$E15","v":0},{"$f":"(GU138*'Default-Data'!$C$59/wind_dollar_index)/CustomRegion2!$E15","v":23.292384165560481},{"$f":"(GV138*'Default-Data'!$C$59/wind_dollar_index)/CustomRegion2!$E15","v":344.61102440613956},0,0,{"$f":"GM138*CustomRegion2!C15","v":0},{"$f":"GZ138*CustomRegion2!$C15","v":0},{"$f":"HA138*CustomRegion2!$C15","v":0},{"$f":"GM138*CustomRegion2!D15","v":0},{"$f":"GZ138*CustomRegion2!$D15","v":0},{"$f":"HA138*CustomRegion2!$D15","v":0},{"$f":"(HE138*'Default-Data'!$C$59/wind_dollar_index)/CustomRegion2!$E15","v":0},{"$f":"(HF138*'Default-Data'!$C$59/wind_dollar_index)/CustomRegion2!$E15","v":0},{"$f":"(HG138*'Default-Data'!$C$59/wind_dollar_index)/CustomRegion2!$E15","v":0},null,"GRNDNUT",0,0,null,18785.080468009543,544033.93246507493,{"$f":"HM138*CustomRegion3!D14","v":0},{"$f":"HP138*CustomRegion3!$D14","v":8473.0889852474556},{"$f":"HQ138*CustomRegion3!$D14","v":245388.7769403375},{"$f":"HM138*CustomRegion3!E14","v":0},{"$f":"HP138*CustomRegion3!$E14","v":6986.6791328953686},{"$f":"HQ138*CustomRegion3!$E14","v":202340.92316046907},{"$f":"(HU138*'Default-Data'!$C$60/wind_dollar_index)/CustomRegion3!$F14","v":0},{"$f":"(HV138*'Default-Data'!$C$60/wind_dollar_index)/CustomRegion3!$F14","v":54.20952798779993},{"$f":"(HW138*'Default-Data'!$C$60/wind_dollar_index)/CustomRegion3!$F14","v":1569.9598805819367},172.145981819252,2518.3764682621131,{"$f":"HN138*CustomRegion3!D14","v":0},{"$f":"IA138*CustomRegion3!$D14","v":77.647163923054848},{"$f":"IB138*CustomRegion3!$D14","v":1135.9242218992267},{"$f":"HN138*CustomRegion3!E14","v":0},{"$f":"IA138*CustomRegion3!$E14","v":64.025743250691221},{"$f":"IB138*CustomRegion3!$E14","v":936.65227303899894},{"$f":"(IF138*'Default-Data'!$C$60/wind_dollar_index)/CustomRegion3!$F14","v":0},{"$f":"(IG138*'Default-Data'!$C$60/wind_dollar_index)/CustomRegion3!$F14","v":0.49677468431982963},{"$f":"(IH138*'Default-Data'!$C$60/wind_dollar_index)/CustomRegion3!$F14","v":7.267469515105959}]
[null,null,null,null,null,null,null,null,null,null,null,null,null,null,null,null,null,null,null,null,null,null,null,null,null,null,null,null,null,138,"TTL_C17T19: Textiles, textile products, leather and footwear",0,0,null,436029.65960480948,2005160.5591046789,{"$f":"AF139*'Colombia-IO-Data'!AN16","v":0},{"$f":"AI139*'Colombia-IO-Data'!$AN16","v":143634.23610285969},{"$f":"AJ139*'Colombia-IO-Data'!$AN16","v":660527.78481082676},{"$f":"AK139*'Colombia-IO-Data'!$AO16","v":0},{"$f":"AL139*'Colombia-IO-Data'!$AO16","v":73586.404701999098},{"$f":"AM139*'Colombia-IO-Data'!$AO16","v":338400.27425771055},{"$f":"(Calculations!AN139*'Default-Data'!$F$19/wind_dollar_index)/'Colombia-IO-Data'!$AP16","v":0},{"$f":"(Calculations!AO139*'Default-Data'!$F$19/wind_dollar_index)/'Colombia-IO-Data'!$AP16","v":13.861455404739816},{"$f":"(Calculations!AP139*'Default-Data'!$F$19/wind_dollar_index)/'Colombia-IO-Data'!$AP16","v":63.744387697304454},1077.91821487122,22202.156108462837,{"$f":"AG139*'Colombia-IO-Data'!AN16","v":0},{"$f":"AT139*'Colombia-IO-Data'!$AN16","v":355.08125643267164},{"$f":"AU139*'Colombia-IO-Data'!$AN16","v":7313.6991079134496},{"$f":"AV139*'Colombia-IO-Data'!$AO16","v":0},{"$f":"AW139*'Colombia-IO-Data'!$AO16","v":181.91451945507771},{"$f":"AX139*'Colombia-IO-Data'!$AO16","v":3746.9397062004064},{"$f":"(AY139*'Default-Data'!$F$19/wind_dollar_index)/'Colombia-IO-Data'!$AP16","v":0},{"$f":"(AZ139*'Default-Data'!$F$19/wind_dollar_index)/'Colombia-IO-Data'!$AP16","v":3.4267199343586491E-2},{"$f":"(BA139*'Default-Data'!$F$19/wind_dollar_index)/'Colombia-IO-Data'!$AP16","v":0.7058102356281426},null,"DOM_C17T19: Textiles, textile products, leather and footwear",0,0,null,226512.46739761048,1053374.0382044208,{"$f":"BG139*'Mexico-IO-Data'!AQ16","v":0},{"$f":"BJ139*'Mexico-IO-Data'!$AQ16","v":87767.164720757544},{"$f":"BK139*'Mexico-IO-Data'!$AQ16","v":408152.60098408273},{"$f":"BG139*'Mexico-IO-Data'!AR16","v":0},{"$f":"BJ139*'Mexico-IO-Data'!$AR16","v":29846.131433699818},{"$f":"BK139*'Mexico-IO-Data'!$AR16","v":138796.51020669573},{"$f":"(BO139*'Default-Data'!$F$19/wind_dollar_index)/'Mexico-IO-Data'!$AS16","v":0},{"$f":"(BP139*'Default-Data'!$F$19/wind_dollar_index)/'Mexico-IO-Data'!$AS16","v":5.5831642846121836},{"$f":"(BQ139*'Default-Data'!$F$19/wind_dollar_index)/'Mexico-IO-Data'!$AS16","v":25.963958522941212},3880.2571524043951,8428.0770143901973,{"$f":"BH139*'Mexico-IO-Data'!AQ16","v":0},{"$f":"BU139*'Mexico-IO-Data'!$AQ16","v":1503.4897309037337},{"$f":"BV139*'Mexico-IO-Data'!$AQ16","v":3265.6411017887231},{"$f":"BH139*'Mexico-IO-Data'!AR16","v":0},{"$f":"BX139*'Mexico-IO-Data'!$AR16","v":198.1054404347731},{"$f":"BY139*'Mexico-IO-Data'!$AR16","v":430.29310774399659},{"$f":"(CA139*'Default-Data'!$F$19/wind_dollar_index)/'Mexico-IO-Data'!$AS16","v":3.7058579001428782E-2},{"$f":"(CB139*'Default-Data'!$F$19/wind_dollar_index)/'Mexico-IO-Data'!$AS16","v":8.0492747155782918E-2},{"$f":"(CC139*'Default-Data'!$F$19/wind_dollar_index)/'Mexico-IO-Data'!$AS16","v":6.9323602349896829E-6},null,"TTL_C17T19: Textiles, textile products, leather and footwear",0,0,null,132289.0747407279,994615.62594042835,{"$f":"CH139*'Philippines-IO-Data'!AN16","v":0},{"$f":"CK139*'Philippines-IO-Data'!$AN16","v":50759.013807886906},{"$f":"CL139*'Philippines-IO-Data'!$AN16","v":381631.72876971692},{"$f":"CH139*'Philippines-IO-Data'!AO16","v":0},{"$f":"CK139*'Philippines-IO-Data'!$AO16","v":17532.166859721045},{"$f":"CL139*'Philippines-IO-Data'!$AO16","v":131815.6253602166},{"$f":"(CP139*'Default-Data'!$F$19/wind_dollar_index)/'Philippines-IO-Data'!$AP16","v":0},{"$f":"(CQ139*'Default-Data'!$F$19/wind_dollar_index)/'Philippines-IO-Data'!$AP16","v":4.3518662505880137},{"$f":"(CR139*'Default-Data'!$F$19/wind_dollar_index)/'Philippines-IO-Data'!$AP16","v":32.719513560140008},166.29193429393553,9122.846024062912,{"$f":"CI139*'Philippines-IO-Data'!AN16","v":0},{"$f":"CV139*'Philippines-IO-Data'!$AN16","v":63.805832836227545},{"$f":"CW139*'Philippines-IO-Data'!$AN16","v":3500.4150434205962},{"$f":"CI139*'Philippines-IO-Data'!AO16","v":0},{"$f":"CV139*'Philippines-IO-Data'!$AO16","v":22.038539049282978},{"$f":"CW139*'Philippines-IO-Data'!$AO16","v":1209.0435967058124},{"$f":"(DA139*'Default-Data'!$F$19/wind_dollar_index)/'Philippines-IO-Data'!$AP16","v":0},{"$f":"(DB139*'Default-Data'!$F$19/wind_dollar_index)/'Philippines-IO-Data'!$AP16","v":5.4704461272944236E-3},{"$f":"(DC139*'Default-Data'!$F$19/wind_dollar_index)/'Philippines-IO-Data'!$AP16","v":0.30011099404271169},null,"DOM_C17T19: Textiles, textile products, leather and footwear",0,0,null,1529154.031767719,3472177.6093699974,{"$f":"DI139*'SouthAfrica-IO-Data'!AR16","v":0},{"$f":"DL139*'SouthAfrica-IO-Data'!$AR16","v":203523.21674760085},{"$f":"DM139*'SouthAfrica-IO-Data'!$AR16","v":462130.5254389969},{"$f":"DI139*'SouthAfrica-IO-Data'!AS16","v":0},{"$f":"DL139*'SouthAfrica-IO-Data'!$AS16","v":204533.86285816255},{"$f":"DM139*'SouthAfrica-IO-Data'!$AS16","v":464425.35167833435},{"$f":"(DQ139*'Default-Data'!$F$19/wind_dollar_index)/'SouthAfrica-IO-Data'!$AT16","v":0},{"$f":"(DR139*'Default-Data'!$F$19/wind_dollar_index)/'SouthAfrica-IO-Data'!$AT16","v":12.767418798749528},{"$f":"(DS139*'Default-Data'!$F$19/wind_dollar_index)/'SouthAfrica-IO-Data'!$AT16","v":28.990372952305442},2751.1203802935161,33882.506560481139,{"$f":"DJ139*'SouthAfrica-IO-Data'!AR16","v":0},{"$f":"'SouthAfrica-IO-Data'!$AR16*Calculations!DW139","v":366.16119620725794},{"$f":"'SouthAfrica-IO-Data'!$AR16*Calculations!DX139","v":4509.6024229090253},{"$f":"DJ139*'SouthAfrica-IO-Data'!AS16","v":0},{"$f":"DW139*'SouthAfrica-IO-Data'!$AS16","v":367.97946242130087},{"$f":"DX139*'SouthAfrica-IO-Data'!$AS16","v":4531.99599658443},{"$f":"(EB139*'Default-Data'!$F$19/wind_dollar_index)/'SouthAfrica-IO-Data'!$AT16","v":0},{"$f":"(EC139*'Default-Data'!$F$19/wind_dollar_index)/'SouthAfrica-IO-Data'!$AT16","v":2.2970024818479429E-2},{"$f":"(ED139*'Default-Data'!$F$19/wind_dollar_index)/'SouthAfrica-IO-Data'!$AT16","v":0.2828963872978576},null,"SUGAR",0,0,null,1092.1389660120672,93729.848019082419,{"$f":"EJ139*'Zambia-IO-Data'!BO14","v":0},{"$f":"EM139*'Zambia-IO-Data'!$BO14","v":296.40726722867703},{"$f":"EN139*'Zambia-IO-Data'!$BO14","v":25438.345278112236},{"$f":"EJ139*'Zambia-IO-Data'!BN14","v":0},{"$f":"EM139*'Zambia-IO-Data'!$BN14","v":99.358994191350291},{"$f":"EN139*'Zambia-IO-Data'!$BN14","v":8527.2146811958501},{"$f":"(ER139*'Default-Data'!$F$19/wind_dollar_index)/'Zambia-IO-Data'!$BP14","v":0},{"$f":"(ES139*'Default-Data'!$F$19/wind_dollar_index)/'Zambia-IO-Data'!$BP14","v":0.76781504333540695},{"$f":"(ET139*'Default-Data'!$F$19/wind_dollar_index)/'Zambia-IO-Data'!$BP14","v":65.895631928032216},6.5862248201995461,450.36393799297082,{"$f":"EK139*'Zambia-IO-Data'!BO14","v":0},{"$f":"EX139*'Zambia-IO-Data'!$BO14","v":1.7875059503073001},{"$f":"EY139*'Zambia-IO-Data'!$BO14","v":122.22908281194583},{"$f":"EK139*'Zambia-IO-Data'!BN14","v":0},{"$f":"EX139*'Zambia-IO-Data'!$BN14","v":0.59919176406888064},{"$f":"EY139*'Zambia-IO-Data'!$BN14","v":40.972540392394357},{"$f":"(FC139*'Default-Data'!$F$19/wind_dollar_index)/'Zambia-IO-Data'!$BP14","v":0},{"$f":"(FD139*'Default-Data'!$F$19/wind_dollar_index)/'Zambia-IO-Data'!$BP14","v":4.6303654142144882E-3},{"$f":"(FE139*'Default-Data'!$F$19/wind_dollar_index)/'Zambia-IO-Data'!$BP14","v":0.31662289994967246},null,"TTL_C17T19: Textiles, textile products, leather and footwear",0,0,null,271117.4287659438,1615988.6970195796,{"$f":"FK139*CustomRegion1!C12","v":0},{"$f":"FN139*CustomRegion1!$C12","v":104027.13404157275},{"$f":"FO139*CustomRegion1!$C12","v":620051.14742973272},{"$f":"FK139*CustomRegion1!D12","v":0},{"$f":"FN139*CustomRegion1!$D12","v":35930.979251453391},{"$f":"FO139*CustomRegion1!$D12","v":214165.70896045392},{"$f":"(FS139*'Default-Data'!$C$58/wind_dollar_index)/CustomRegion1!$E12","v":0},{"$f":"(FT139*'Default-Data'!$C$58/wind_dollar_index)/CustomRegion1!$E12","v":8.9561204908505498},{"$f":"(FU139*'Default-Data'!$C$58/wind_dollar_index)/CustomRegion1!$E12","v":53.382733630358004},716.80212756065941,14919.947196099931,{"$f":"FL139*CustomRegion1!C12","v":0},{"$f":"FY139*CustomRegion1!$C12","v":275.03532821348409},{"$f":"FZ139*CustomRegion1!$C12","v":5724.7494339502164},{"$f":"FL139*CustomRegion1!D12","v":0},{"$f":"FY139*CustomRegion1!$D12","v":94.997221277922307},{"$f":"FZ139*CustomRegion1!$D12","v":1977.3288481525581},{"$f":"(GD139*'Default-Data'!$C$58/wind_dollar_index)/CustomRegion1!$E12","v":0},{"$f":"(GE139*'Default-Data'!$C$58/wind_dollar_index)/CustomRegion1!$E12","v":2.3678913789321486E-2},{"$f":"(GF139*'Default-Data'!$C$58/wind_dollar_index)/CustomRegion1!$E12","v":0.49286704072705484},null,"C17T19 Textiles, textile products, leather and footwear",0,0,null,12448745.939879663,4052090.0492451061,{"$f":"GL139*CustomRegion2!C16","v":0},{"$f":"GO139*CustomRegion2!$C16","v":4333956.5925562764},{"$f":"GP139*CustomRegion2!$C16","v":1410710.9637685539},{"$f":"GL139*CustomRegion2!D16","v":0},{"$f":"GO139*CustomRegion2!$D16","v":1918761.89491391},{"$f":"GP139*CustomRegion2!$D16","v":624560.57974033128},{"$f":"(GT139*'Default-Data'!$C$59/wind_dollar_index)/CustomRegion2!$E16","v":0},{"$f":"(GU139*'Default-Data'!$C$59/wind_dollar_index)/CustomRegion2!$E16","v":358.93304652080167},{"$f":"(GV139*'Default-Data'!$C$59/wind_dollar_index)/CustomRegion2!$E16","v":116.83337688601191},0,0,{"$f":"GM139*CustomRegion2!C16","v":0},{"$f":"GZ139*CustomRegion2!$C16","v":0},{"$f":"HA139*CustomRegion2!$C16","v":0},{"$f":"GM139*CustomRegion2!D16","v":0},{"$f":"GZ139*CustomRegion2!$D16","v":0},{"$f":"HA139*CustomRegion2!$D16","v":0},{"$f":"(HE139*'Default-Data'!$C$59/wind_dollar_index)/CustomRegion2!$E16","v":0},{"$f":"(HF139*'Default-Data'!$C$59/wind_dollar_index)/CustomRegion2!$E16","v":0},{"$f":"(HG139*'Default-Data'!$C$59/wind_dollar_index)/CustomRegion2!$E16","v":0},null,"SUGAR",0,0,null,1092.1389660120672,93729.848019082419,{"$f":"HM139*CustomRegion3!D15","v":0},{"$f":"HP139*CustomRegion3!$D15","v":296.40726722867703},{"$f":"HQ139*CustomRegion3!$D15","v":25438.345278112236},{"$f":"HM139*CustomRegion3!E15","v":0},{"$f":"HP139*CustomRegion3!$E15","v":99.358994191350291},{"$f":"HQ139*CustomRegion3!$E15","v":8527.2146811958501},{"$f":"(HU139*'Default-Data'!$C$60/wind_dollar_index)/CustomRegion3!$F15","v":0},{"$f":"(HV139*'Default-Data'!$C$60/wind_dollar_index)/CustomRegion3!$F15","v":0.77092479474201114},{"$f":"(HW139*'Default-Data'!$C$60/wind_dollar_index)/CustomRegion3!$F15","v":66.162517860856738},6.5862248201995461,450.36393799297082,{"$f":"HN139*CustomRegion3!D15","v":0},{"$f":"IA139*CustomRegion3!$D15","v":1.7875059503073001},{"$f":"IB139*CustomRegion3!$D15","v":122.22908281194583},{"$f":"HN139*CustomRegion3!E15","v":0},{"$f":"IA139*CustomRegion3!$E15","v":0.59919176406888064},{"$f":"IB139*CustomRegion3!$E15","v":40.972540392394357},{"$f":"(IF139*'Default-Data'!$C$60/wind_dollar_index)/CustomRegion3!$F15","v":0},{"$f":"(IG139*'Default-Data'!$C$60/wind_dollar_index)/CustomRegion3!$F15","v":4.6491190001007364E-3},{"$f":"(IH139*'Default-Data'!$C$60/wind_dollar_index)/CustomRegion3!$F15","v":0.31790526412972858}]
[null,null,null,null,null,null,null,null,null,null,null,null,null,null,null,null,null,null,null,null,null,null,null,null,null,null,null,null,null,139,"TTL_C20: Wood and products of wood and cork",0,0,null,1959777.2428179851,75109.838748350041,{"$f":"AF140*'Colombia-IO-Data'!AN17","v":0},{"$f":"AI140*'Colombia-IO-Data'!$AN17","v":813687.66949002212},{"$f":"AJ140*'Colombia-IO-Data'!$AN17","v":31185.151205775313},{"$f":"AK140*'Colombia-IO-Data'!$AO17","v":0},{"$f":"AL140*'Colombia-IO-Data'!$AO17","v":332114.48325528804},{"$f":"AM140*'Colombia-IO-Data'!$AO17","v":12728.520741177454},{"$f":"(Calculations!AN140*'Default-Data'!$F$19/wind_dollar_index)/'Colombia-IO-Data'!$AP17","v":0},{"$f":"(Calculations!AO140*'Default-Data'!$F$19/wind_dollar_index)/'Colombia-IO-Data'!$AP17","v":62.560334582922209},{"$f":"(Calculations!AP140*'Default-Data'!$F$19/wind_dollar_index)/'Colombia-IO-Data'!$AP17","v":2.3976687451526479},1524.8338246472149,831.65428204758064,{"$f":"AG140*'Colombia-IO-Data'!AN17","v":0},{"$f":"AT140*'Colombia-IO-Data'!$AN17","v":633.10179036096872},{"$f":"AU140*'Colombia-IO-Data'!$AN17","v":345.29783273105534},{"$f":"AV140*'Colombia-IO-Data'!$AO17","v":0},{"$f":"AW140*'Colombia-IO-Data'!$AO17","v":258.40661206714913},{"$f":"AX140*'Colombia-IO-Data'!$AO17","v":140.93664631604886},{"$f":"(AY140*'Default-Data'!$F$19/wind_dollar_index)/'Colombia-IO-Data'!$AP17","v":0},{"$f":"(AZ140*'Default-Data'!$F$19/wind_dollar_index)/'Colombia-IO-Data'!$AP17","v":4.867599856201945E-2},{"$f":"(BA140*'Default-Data'!$F$19/wind_dollar_index)/'Colombia-IO-Data'!$AP17","v":2.6548206094792765E-2},null,"DOM_C20: Wood and products of wood and cork",0,0,null,1492845.4452561119,114454.60389265209,{"$f":"BG140*'Mexico-IO-Data'!AQ17","v":0},{"$f":"BJ140*'Mexico-IO-Data'!$AQ17","v":690235.56268421013},{"$f":"BK140*'Mexico-IO-Data'!$AQ17","v":52919.502263738883},{"$f":"BG140*'Mexico-IO-Data'!AR17","v":0},{"$f":"BJ140*'Mexico-IO-Data'!$AR17","v":250887.39807927943},{"$f":"BK140*'Mexico-IO-Data'!$AR17","v":19235.224825230103},{"$f":"(BO140*'Default-Data'!$F$19/wind_dollar_index)/'Mexico-IO-Data'!$AS17","v":0},{"$f":"(BP140*'Default-Data'!$F$19/wind_dollar_index)/'Mexico-IO-Data'!$AS17","v":87.026373225151701},{"$f":"(BQ140*'Default-Data'!$F$19/wind_dollar_index)/'Mexico-IO-Data'!$AS17","v":6.6722038154391869},1676.7472922089296,915.75469042610712,{"$f":"BH140*'Mexico-IO-Data'!AQ17","v":0},{"$f":"BU140*'Mexico-IO-Data'!$AQ17","v":775.26485705189771},{"$f":"BV140*'Mexico-IO-Data'!$AQ17","v":423.4105118085605},{"$f":"BH140*'Mexico-IO-Data'!AR17","v":0},{"$f":"BX140*'Mexico-IO-Data'!$AR17","v":130.29090414291753},{"$f":"BY140*'Mexico-IO-Data'!$AR17","v":71.158311776100348},{"$f":"(CA140*'Default-Data'!$F$19/wind_dollar_index)/'Mexico-IO-Data'!$AS17","v":4.5194557154285629E-2},{"$f":"(CB140*'Default-Data'!$F$19/wind_dollar_index)/'Mexico-IO-Data'!$AS17","v":2.4682984662074428E-2},{"$f":"(CC140*'Default-Data'!$F$19/wind_dollar_index)/'Mexico-IO-Data'!$AS17","v":1.5676827249057207E-5},null,"TTL_C20: Wood and products of wood and cork",0,0,null,880595.48697413364,30935.571442620596,{"$f":"CH140*'Philippines-IO-Data'!AN17","v":0},{"$f":"CK140*'Philippines-IO-Data'!$AN17","v":127801.65017948262},{"$f":"CL140*'Philippines-IO-Data'!$AN17","v":4489.7085416567916},{"$f":"CH140*'Philippines-IO-Data'!AO17","v":0},{"$f":"CK140*'Philippines-IO-Data'!$AO17","v":33141.432785603269},{"$f":"CL140*'Philippines-IO-Data'!$AO17","v":1164.2680172853916},{"$f":"(CP140*'Default-Data'!$F$19/wind_dollar_index)/'Philippines-IO-Data'!$AP17","v":0},{"$f":"(CQ140*'Default-Data'!$F$19/wind_dollar_index)/'Philippines-IO-Data'!$AP17","v":8.2264265444079143},{"$f":"(CR140*'Default-Data'!$F$19/wind_dollar_index)/'Philippines-IO-Data'!$AP17","v":0.28899671852335623},89.666122463115784,283.74826171726215,{"$f":"CI140*'Philippines-IO-Data'!AN17","v":0},{"$f":"CV140*'Philippines-IO-Data'!$AN17","v":13.013328577640529},{"$f":"CW140*'Philippines-IO-Data'!$AN17","v":41.180651751501664},{"$f":"CI140*'Philippines-IO-Data'!AO17","v":0},{"$f":"CV140*'Philippines-IO-Data'!$AO17","v":3.3746070865842537},{"$f":"CW140*'Philippines-IO-Data'!$AO17","v":10.678937245121986},{"$f":"(DA140*'Default-Data'!$F$19/wind_dollar_index)/'Philippines-IO-Data'!$AP17","v":0},{"$f":"(DB140*'Default-Data'!$F$19/wind_dollar_index)/'Philippines-IO-Data'!$AP17","v":8.3765109051299675E-4},{"$f":"(DC140*'Default-Data'!$F$19/wind_dollar_index)/'Philippines-IO-Data'!$AP17","v":2.6507451680694953E-3},null,"DOM_C20: Wood and products of wood and cork",0,0,null,1297203.8073804779,356857.6176869066,{"$f":"DI140*'SouthAfrica-IO-Data'!AR17","v":0},{"$f":"DL140*'SouthAfrica-IO-Data'!$AR17","v":343817.84757669794},{"$f":"DM140*'SouthAfrica-IO-Data'!$AR17","v":94583.455048766671},{"$f":"DI140*'SouthAfrica-IO-Data'!AS17","v":0},{"$f":"DL140*'SouthAfrica-IO-Data'!$AS17","v":286231.11225581204},{"$f":"DM140*'SouthAfrica-IO-Data'!$AS17","v":78741.483987583793},{"$f":"(DQ140*'Default-Data'!$F$19/wind_dollar_index)/'SouthAfrica-IO-Data'!$AT17","v":0},{"$f":"(DR140*'Default-Data'!$F$19/wind_dollar_index)/'SouthAfrica-IO-Data'!$AT17","v":17.8671269017985},{"$f":"(DS140*'Default-Data'!$F$19/wind_dollar_index)/'SouthAfrica-IO-Data'!$AT17","v":4.9152032277494904},3036.8516021989853,3482.3191474436508,{"$f":"DJ140*'SouthAfrica-IO-Data'!AR17","v":0},{"$f":"'SouthAfrica-IO-Data'!$AR17*Calculations!DW140","v":804.90342021610627},{"$f":"'SouthAfrica-IO-Data'!$AR17*Calculations!DX140","v":922.97252524022792},{"$f":"DJ140*'SouthAfrica-IO-Data'!AS17","v":0},{"$f":"DW140*'SouthAfrica-IO-Data'!$AS17","v":670.08854499785366},{"$f":"DX140*'SouthAfrica-IO-Data'!$AS17","v":768.38202072140155},{"$f":"(EB140*'Default-Data'!$F$19/wind_dollar_index)/'SouthAfrica-IO-Data'!$AT17","v":0},{"$f":"(EC140*'Default-Data'!$F$19/wind_dollar_index)/'SouthAfrica-IO-Data'!$AT17","v":4.1828286850305728E-2},{"$f":"(ED140*'Default-Data'!$F$19/wind_dollar_index)/'SouthAfrica-IO-Data'!$AT17","v":4.7963965080846584E-2},null,"COTTON",0,0,null,867745.2519562362,256566.9618263304,{"$f":"EJ140*'Zambia-IO-Data'!BO15","v":0},{"$f":"EM140*'Zambia-IO-Data'!$BO15","v":192659.6898289464},{"$f":"EN140*'Zambia-IO-Data'!$BO15","v":56963.85105465135},{"$f":"EJ140*'Zambia-IO-Data'!BN15","v":0},{"$f":"EM140*'Zambia-IO-Data'!$BN15","v":130777.74095150076},{"$f":"EN140*'Zambia-IO-Data'!$BN15","v":38667.163657531186},{"$f":"(ER140*'Default-Data'!$F$19/wind_dollar_index)/'Zambia-IO-Data'!$BP15","v":0},{"$f":"(ES140*'Default-Data'!$F$19/wind_dollar_index)/'Zambia-IO-Data'!$BP15","v":1010.6092322412482},{"$f":"(ET140*'Default-Data'!$F$19/wind_dollar_index)/'Zambia-IO-Data'!$BP15","v":298.80767394029408},1755.8166180180303,1234.7170564362061,{"$f":"EK140*'Zambia-IO-Data'!BO15","v":0},{"$f":"EX140*'Zambia-IO-Data'!$BO15","v":389.83225118346593},{"$f":"EY140*'Zambia-IO-Data'!$BO15","v":274.13599162108284},{"$f":"EK140*'Zambia-IO-Data'!BN15","v":0},{"$f":"EX140*'Zambia-IO-Data'!$BN15","v":264.61882714062125},{"$f":"EY140*'Zambia-IO-Data'!$BN15","v":186.08399987322252},{"$f":"(FC140*'Default-Data'!$F$19/wind_dollar_index)/'Zambia-IO-Data'!$BP15","v":0},{"$f":"(FD140*'Default-Data'!$F$19/wind_dollar_index)/'Zambia-IO-Data'!$BP15","v":2.0448910325828189},{"$f":"(FE140*'Default-Data'!$F$19/wind_dollar_index)/'Zambia-IO-Data'!$BP15","v":1.4379985988135378},null,"TTL_C20: Wood and products of wood and cork",0,0,null,1790872.89931314,82387.013883775566,{"$f":"FK140*CustomRegion1!C13","v":0},{"$f":"FN140*CustomRegion1!$C13","v":259911.06606779221},{"$f":"FO140*CustomRegion1!$C13","v":11956.904712158426},{"$f":"FK140*CustomRegion1!D13","v":0},{"$f":"FN140*CustomRegion1!$D13","v":67399.952302831036},{"$f":"FO140*CustomRegion1!$D13","v":3100.6560031529139},{"$f":"(FS140*'Default-Data'!$C$58/wind_dollar_index)/CustomRegion1!$E13","v":0},{"$f":"(FT140*'Default-Data'!$C$58/wind_dollar_index)/CustomRegion1!$E13","v":16.800045712010974},{"$f":"(FU140*'Default-Data'!$C$58/wind_dollar_index)/CustomRegion1!$E13","v":0.7728664607378688},432.19915021145505,760.6550089473684,{"$f":"FL140*CustomRegion1!C13","v":0},{"$f":"FY140*CustomRegion1!$C13","v":62.725468640536562},{"$f":"FZ140*CustomRegion1!$C13","v":110.39457594178916},{"$f":"FL140*CustomRegion1!D13","v":0},{"$f":"FY140*CustomRegion1!$D13","v":16.265923796573496},{"$f":"FZ140*CustomRegion1!$D13","v":28.627442707757314},{"$f":"(GD140*'Default-Data'!$C$58/wind_dollar_index)/CustomRegion1!$E13","v":0},{"$f":"(GE140*'Default-Data'!$C$58/wind_dollar_index)/CustomRegion1!$E13","v":4.0544281411760523E-3},{"$f":"(GF140*'Default-Data'!$C$58/wind_dollar_index)/CustomRegion1!$E13","v":7.1356481670402719E-3},null,"C20 Wood and products of wood and cork",0,0,null,7843744.0704191104,544972.31399150193,{"$f":"GL140*CustomRegion2!C17","v":0},{"$f":"GO140*CustomRegion2!$C17","v":3323476.5879318332},{"$f":"GP140*CustomRegion2!$C17","v":230910.4823361499},{"$f":"GL140*CustomRegion2!D17","v":0},{"$f":"GO140*CustomRegion2!$D17","v":1103761.8468756918},{"$f":"GP140*CustomRegion2!$D17","v":76687.821834457034},{"$f":"(GT140*'Default-Data'!$C$59/wind_dollar_index)/CustomRegion2!$E17","v":0},{"$f":"(GU140*'Default-Data'!$C$59/wind_dollar_index)/CustomRegion2!$E17","v":382.86654161694184},{"$f":"(GV140*'Default-Data'!$C$59/wind_dollar_index)/CustomRegion2!$E17","v":26.601029210245468},0,0,{"$f":"GM140*CustomRegion2!C17","v":0},{"$f":"GZ140*CustomRegion2!$C17","v":0},{"$f":"HA140*CustomRegion2!$C17","v":0},{"$f":"GM140*CustomRegion2!D17","v":0},{"$f":"GZ140*CustomRegion2!$D17","v":0},{"$f":"HA140*CustomRegion2!$D17","v":0},{"$f":"(HE140*'Default-Data'!$C$59/wind_dollar_index)/CustomRegion2!$E17","v":0},{"$f":"(HF140*'Default-Data'!$C$59/wind_dollar_index)/CustomRegion2!$E17","v":0},{"$f":"(HG140*'Default-Data'!$C$59/wind_dollar_index)/CustomRegion2!$E17","v":0},null,"COTTON",0,0,null,867745.2519562362,256566.9618263304,{"$f":"HM140*CustomRegion3!D16","v":0},{"$f":"HP140*CustomRegion3!$D16","v":192659.6898289464},{"$f":"HQ140*CustomRegion3!$D16","v":56963.85105465135},{"$f":"HM140*CustomRegion3!E16","v":0},{"$f":"HP140*CustomRegion3!$E16","v":130777.74095150076},{"$f":"HQ140*CustomRegion3!$E16","v":38667.163657531186},{"$f":"(HU140*'Default-Data'!$C$60/wind_dollar_index)/CustomRegion3!$F16","v":0},{"$f":"(HV140*'Default-Data'!$C$60/wind_dollar_index)/CustomRegion3!$F16","v":1014.7023318864926},{"$f":"(HW140*'Default-Data'!$C$60/wind_dollar_index)/CustomRegion3!$F16","v":300.01788412360003},1755.8166180180303,1234.7170564362061,{"$f":"HN140*CustomRegion3!D16","v":0},{"$f":"IA140*CustomRegion3!$D16","v":389.83225118346593},{"$f":"IB140*CustomRegion3!$D16","v":274.13599162108284},{"$f":"HN140*CustomRegion3!E16","v":0},{"$f":"IA140*CustomRegion3!$E16","v":264.61882714062125},{"$f":"IB140*CustomRegion3!$E16","v":186.08399987322252},{"$f":"(IF140*'Default-Data'!$C$60/wind_dollar_index)/CustomRegion3!$F16","v":0},{"$f":"(IG140*'Default-Data'!$C$60/wind_dollar_index)/CustomRegion3!$F16","v":2.0531731088720546},{"$f":"(IH140*'Default-Data'!$C$60/wind_dollar_index)/CustomRegion3!$F16","v":1.4438226813242552}]
[null,null,null,null,null,null,null,null,null,null,null,null,null,null,null,null,null,null,null,null,null,null,null,null,null,null,null,null,null,140,"TTL_C21T22: Pulp, paper, paper products, printing and publishing",0,0,null,1436163.8258049896,1120670.5029851429,{"$f":"AF141*'Colombia-IO-Data'!AN18","v":0},{"$f":"AI141*'Colombia-IO-Data'!$AN18","v":458510.0903979459},{"$f":"AJ141*'Colombia-IO-Data'!$AN18","v":357785.59827045893},{"$f":"AK141*'Colombia-IO-Data'!$AO18","v":0},{"$f":"AL141*'Colombia-IO-Data'!$AO18","v":188198.57492769955},{"$f":"AM141*'Colombia-IO-Data'!$AO18","v":146855.52430419627},{"$f":"(Calculations!AN141*'Default-Data'!$F$19/wind_dollar_index)/'Colombia-IO-Data'!$AP18","v":0},{"$f":"(Calculations!AO141*'Default-Data'!$F$19/wind_dollar_index)/'Colombia-IO-Data'!$AP18","v":35.450925536589267},{"$f":"(Calculations!AP141*'Default-Data'!$F$19/wind_dollar_index)/'Colombia-IO-Data'!$AP18","v":27.663143882704183},10538.552832374779,12408.632984749824,{"$f":"AG141*'Colombia-IO-Data'!AN18","v":0},{"$f":"AT141*'Colombia-IO-Data'!$AN18","v":3364.5415133104802},{"$f":"AU141*'Colombia-IO-Data'!$AN18","v":3961.5838592533419},{"$f":"AV141*'Colombia-IO-Data'!$AO18","v":0},{"$f":"AW141*'Colombia-IO-Data'!$AO18","v":1380.9988729813017},{"$f":"AX141*'Colombia-IO-Data'!$AO18","v":1626.0589513329396},{"$f":"(AY141*'Default-Data'!$F$19/wind_dollar_index)/'Colombia-IO-Data'!$AP18","v":0},{"$f":"(AZ141*'Default-Data'!$F$19/wind_dollar_index)/'Colombia-IO-Data'!$AP18","v":0.26013846401856094},{"$f":"(BA141*'Default-Data'!$F$19/wind_dollar_index)/'Colombia-IO-Data'!$AP18","v":0.30630037886287992},null,"DOM_C21T22: Pulp, paper, paper products, printing and publishing",0,0,null,1226721.386308158,995793.20202448661,{"$f":"BG141*'Mexico-IO-Data'!AQ18","v":0},{"$f":"BJ141*'Mexico-IO-Data'!$AQ18","v":549143.81280706299},{"$f":"BK141*'Mexico-IO-Data'!$AQ18","v":445768.43758531602},{"$f":"BG141*'Mexico-IO-Data'!AR18","v":0},{"$f":"BJ141*'Mexico-IO-Data'!$AR18","v":170857.53002087187},{"$f":"BK141*'Mexico-IO-Data'!$AR18","v":138693.89480647663},{"$f":"(BO141*'Default-Data'!$F$19/wind_dollar_index)/'Mexico-IO-Data'!$AS18","v":0},{"$f":"(BP141*'Default-Data'!$F$19/wind_dollar_index)/'Mexico-IO-Data'!$AS18","v":18.56261445989945},{"$f":"(BQ141*'Default-Data'!$F$19/wind_dollar_index)/'Mexico-IO-Data'!$AS18","v":15.068234317328445},15231.157857459249,7967.3710312574622,{"$f":"BH141*'Mexico-IO-Data'!AQ18","v":0},{"$f":"BU141*'Mexico-IO-Data'!$AQ18","v":6818.2524513437711},{"$f":"BV141*'Mexico-IO-Data'!$AQ18","v":3566.6065293934521},{"$f":"BH141*'Mexico-IO-Data'!AR18","v":0},{"$f":"BX141*'Mexico-IO-Data'!$AR18","v":949.64495271521321},{"$f":"BY141*'Mexico-IO-Data'!$AR18","v":496.75630421869886},{"$f":"(CA141*'Default-Data'!$F$19/wind_dollar_index)/'Mexico-IO-Data'!$AS18","v":0.10317305376525421},{"$f":"(CB141*'Default-Data'!$F$19/wind_dollar_index)/'Mexico-IO-Data'!$AS18","v":5.3969501693076009E-2},{"$f":"(CC141*'Default-Data'!$F$19/wind_dollar_index)/'Mexico-IO-Data'!$AS18","v":1.1209114514654028E-5},null,"TTL_C21T22: Pulp, paper, paper products, printing and publishing",0,0,null,744050.41440161457,820732.92740639695,{"$f":"CH141*'Philippines-IO-Data'!AN18","v":0},{"$f":"CK141*'Philippines-IO-Data'!$AN18","v":196979.32194776949},{"$f":"CL141*'Philippines-IO-Data'!$AN18","v":217280.1901746635},{"$f":"CH141*'Philippines-IO-Data'!AO18","v":0},{"$f":"CK141*'Philippines-IO-Data'!$AO18","v":58397.652639169501},{"$f":"CL141*'Philippines-IO-Data'!$AO18","v":64416.167878561268},{"$f":"(CP141*'Default-Data'!$F$19/wind_dollar_index)/'Philippines-IO-Data'!$AP18","v":0},{"$f":"(CQ141*'Default-Data'!$F$19/wind_dollar_index)/'Philippines-IO-Data'!$AP18","v":14.495571235853921},{"$f":"(CR141*'Default-Data'!$F$19/wind_dollar_index)/'Philippines-IO-Data'!$AP18","v":15.989498002495212},4250.5392272768358,7527.9534408354621,{"$f":"CI141*'Philippines-IO-Data'!AN18","v":0},{"$f":"CV141*'Philippines-IO-Data'!$AN18","v":1125.2844144636906},{"$f":"CW141*'Philippines-IO-Data'!$AN18","v":1992.9444775898639},{"$f":"CI141*'Philippines-IO-Data'!AO18","v":0},{"$f":"CV141*'Philippines-IO-Data'!$AO18","v":333.60846055479055},{"$f":"CW141*'Philippines-IO-Data'!$AO18","v":590.84008504356552},{"$f":"(DA141*'Default-Data'!$F$19/wind_dollar_index)/'Philippines-IO-Data'!$AP18","v":0},{"$f":"(DB141*'Default-Data'!$F$19/wind_dollar_index)/'Philippines-IO-Data'!$AP18","v":8.280889704138461E-2},{"$f":"(DC141*'Default-Data'!$F$19/wind_dollar_index)/'Philippines-IO-Data'!$AP18","v":0.14665939733341984},null,"DOM_C21T22: Pulp, paper, paper products, printing and publishing",0,0,null,4230031.3684707172,3373764.2026155489,{"$f":"DI141*'SouthAfrica-IO-Data'!AR18","v":0},{"$f":"DL141*'SouthAfrica-IO-Data'!$AR18","v":971674.21710602229},{"$f":"DM141*'SouthAfrica-IO-Data'!$AR18","v":774982.35940078949},{"$f":"DI141*'SouthAfrica-IO-Data'!AS18","v":0},{"$f":"DL141*'SouthAfrica-IO-Data'!$AS18","v":810020.24647378165},{"$f":"DM141*'SouthAfrica-IO-Data'!$AS18","v":646051.31094691227},{"$f":"(DQ141*'Default-Data'!$F$19/wind_dollar_index)/'SouthAfrica-IO-Data'!$AT18","v":0},{"$f":"(DR141*'Default-Data'!$F$19/wind_dollar_index)/'SouthAfrica-IO-Data'!$AT18","v":50.563107632543115},{"$f":"(DS141*'Default-Data'!$F$19/wind_dollar_index)/'SouthAfrica-IO-Data'!$AT18","v":40.327833919903917},14060.45431395475,32922.160266271268,{"$f":"DJ141*'SouthAfrica-IO-Data'!AR18","v":0},{"$f":"'SouthAfrica-IO-Data'!$AR18*Calculations!DW141","v":3229.8060575863437},{"$f":"'SouthAfrica-IO-Data'!$AR18*Calculations!DX141","v":7562.5004912749218},{"$f":"DJ141*'SouthAfrica-IO-Data'!AS18","v":0},{"$f":"DW141*'SouthAfrica-IO-Data'!$AS18","v":2692.474754162527},{"$f":"DX141*'SouthAfrica-IO-Data'!$AS18","v":6304.354282596144},{"$f":"(EB141*'Default-Data'!$F$19/wind_dollar_index)/'SouthAfrica-IO-Data'!$AT18","v":0},{"$f":"(EC141*'Default-Data'!$F$19/wind_dollar_index)/'SouthAfrica-IO-Data'!$AT18","v":0.16806973823836566},{"$f":"(ED141*'Default-Data'!$F$19/wind_dollar_index)/'SouthAfrica-IO-Data'!$AT18","v":0.39353058831833854},null,"TOBAC",0,0,null,35349.102229306263,79631.441301024926,{"$f":"EJ141*'Zambia-IO-Data'!BO16","v":0},{"$f":"EM141*'Zambia-IO-Data'!$BO16","v":10153.962728169801},{"$f":"EN141*'Zambia-IO-Data'!$BO16","v":22873.980835946026},{"$f":"EJ141*'Zambia-IO-Data'!BN16","v":0},{"$f":"EM141*'Zambia-IO-Data'!$BN16","v":7092.6178267250243},{"$f":"EN141*'Zambia-IO-Data'!$BN16","v":15977.64425460321},{"$f":"(ER141*'Default-Data'!$F$19/wind_dollar_index)/'Zambia-IO-Data'!$BP16","v":0},{"$f":"(ES141*'Default-Data'!$F$19/wind_dollar_index)/'Zambia-IO-Data'!$BP16","v":54.809518839336633},{"$f":"(ET141*'Default-Data'!$F$19/wind_dollar_index)/'Zambia-IO-Data'!$BP16","v":123.4702073585791},102.0876560904135,382.7519441846564,{"$f":"EK141*'Zambia-IO-Data'!BO16","v":0},{"$f":"EX141*'Zambia-IO-Data'!$BO16","v":29.324486042785107},{"$f":"EY141*'Zambia-IO-Data'!$BO16","v":109.94477172785052},{"$f":"EK141*'Zambia-IO-Data'!BN16","v":0},{"$f":"EX141*'Zambia-IO-Data'!$BN16","v":20.483369698570428},{"$f":"EY141*'Zambia-IO-Data'!$BN16","v":76.797233630649757},{"$f":"(FC141*'Default-Data'!$F$19/wind_dollar_index)/'Zambia-IO-Data'!$BP16","v":0},{"$f":"(FD141*'Default-Data'!$F$19/wind_dollar_index)/'Zambia-IO-Data'!$BP16","v":0.15828903584183188},{"$f":"(FE141*'Default-Data'!$F$19/wind_dollar_index)/'Zambia-IO-Data'!$BP16","v":0.59346485688650419},null,"TTL_C21T22: Pulp, paper, paper products, printing and publishing",0,0,null,1531467.4022903051,1586689.1313971635,{"$f":"FK141*CustomRegion1!C14","v":0},{"$f":"FN141*CustomRegion1!$C14","v":405439.47647803585},{"$f":"FO141*CustomRegion1!$C14","v":420058.83364216075},{"$f":"FK141*CustomRegion1!D14","v":0},{"$f":"FN141*CustomRegion1!$D14","v":120198.98068208969},{"$f":"FO141*CustomRegion1!$D14","v":124533.12161138427},{"$f":"(FS141*'Default-Data'!$C$58/wind_dollar_index)/CustomRegion1!$E14","v":0},{"$f":"(FT141*'Default-Data'!$C$58/wind_dollar_index)/CustomRegion1!$E14","v":29.960679510917259},{"$f":"(FU141*'Default-Data'!$C$58/wind_dollar_index)/CustomRegion1!$E14","v":31.041003209178815},9333.8870276373127,14649.432945126919,{"$f":"FL141*CustomRegion1!C14","v":0},{"$f":"FY141*CustomRegion1!$C14","v":2471.0459160481987},{"$f":"FZ141*CustomRegion1!$C14","v":3878.279364673323},{"$f":"FL141*CustomRegion1!D14","v":0},{"$f":"FY141*CustomRegion1!$D14","v":732.58085992947099},{"$f":"FZ141*CustomRegion1!$D14","v":1149.7775956194282},{"$f":"(GD141*'Default-Data'!$C$58/wind_dollar_index)/CustomRegion1!$E14","v":0},{"$f":"(GE141*'Default-Data'!$C$58/wind_dollar_index)/CustomRegion1!$E14","v":0.1826023834447501},{"$f":"(GF141*'Default-Data'!$C$58/wind_dollar_index)/CustomRegion1!$E14","v":0.28659243078189994},null,"C21T22 Pulp, paper, paper products, printing and publishing",0,0,null,7560110.4027749579,2325404.0037355665,{"$f":"GL141*CustomRegion2!C18","v":0},{"$f":"GO141*CustomRegion2!$C18","v":2640441.9892251315},{"$f":"GP141*CustomRegion2!$C18","v":812169.93486257643},{"$f":"GL141*CustomRegion2!D18","v":0},{"$f":"GO141*CustomRegion2!$D18","v":1015901.0460809257},{"$f":"GP141*CustomRegion2!$D18","v":312479.61128829775},{"$f":"(GT141*'Default-Data'!$C$59/wind_dollar_index)/CustomRegion2!$E18","v":0},{"$f":"(GU141*'Default-Data'!$C$59/wind_dollar_index)/CustomRegion2!$E18","v":110.37136873923622},{"$f":"(GV141*'Default-Data'!$C$59/wind_dollar_index)/CustomRegion2!$E18","v":33.948978135264724},0,0,{"$f":"GM141*CustomRegion2!C18","v":0},{"$f":"GZ141*CustomRegion2!$C18","v":0},{"$f":"HA141*CustomRegion2!$C18","v":0},{"$f":"GM141*CustomRegion2!D18","v":0},{"$f":"GZ141*CustomRegion2!$D18","v":0},{"$f":"HA141*CustomRegion2!$D18","v":0},{"$f":"(HE141*'Default-Data'!$C$59/wind_dollar_index)/CustomRegion2!$E18","v":0},{"$f":"(HF141*'Default-Data'!$C$59/wind_dollar_index)/CustomRegion2!$E18","v":0},{"$f":"(HG141*'Default-Data'!$C$59/wind_dollar_index)/CustomRegion2!$E18","v":0},null,"TOBAC",0,0,null,35349.102229306263,79631.441301024926,{"$f":"HM141*CustomRegion3!D17","v":0},{"$f":"HP141*CustomRegion3!$D17","v":10153.962728169801},{"$f":"HQ141*CustomRegion3!$D17","v":22873.980835946026},{"$f":"HM141*CustomRegion3!E17","v":0},{"$f":"HP141*CustomRegion3!$E17","v":7092.6178267250243},{"$f":"HQ141*CustomRegion3!$E17","v":15977.64425460321},{"$f":"(HU141*'Default-Data'!$C$60/wind_dollar_index)/CustomRegion3!$F17","v":0},{"$f":"(HV141*'Default-Data'!$C$60/wind_dollar_index)/CustomRegion3!$F17","v":55.0315045633536},{"$f":"(HW141*'Default-Data'!$C$60/wind_dollar_index)/CustomRegion3!$F17","v":123.97027785646767},102.0876560904135,382.7519441846564,{"$f":"HN141*CustomRegion3!D17","v":0},{"$f":"IA141*CustomRegion3!$D17","v":29.324486042785107},{"$f":"IB141*CustomRegion3!$D17","v":109.94477172785052},{"$f":"HN141*CustomRegion3!E17","v":0},{"$f":"IA141*CustomRegion3!$E17","v":20.483369698570428},{"$f":"IB141*CustomRegion3!$E17","v":76.797233630649757},{"$f":"(IF141*'Default-Data'!$C$60/wind_dollar_index)/CustomRegion3!$F17","v":0},{"$f":"(IG141*'Default-Data'!$C$60/wind_dollar_index)/CustomRegion3!$F17","v":0.15893012715168806},{"$f":"(IH141*'Default-Data'!$C$60/wind_dollar_index)/CustomRegion3!$F17","v":0.59586846722143061}]
[null,null,null,null,null,null,null,null,null,null,null,null,null,null,null,null,null,null,null,null,null,null,null,null,null,null,null,null,null,141,"TTL_C23: Coke, refined petroleum products and nuclear fuel",0,0,null,4785801.1114248224,1735677.7691779509,{"$f":"AF142*'Colombia-IO-Data'!AN19","v":0},{"$f":"AI142*'Colombia-IO-Data'!$AN19","v":2583490.9198697177},{"$f":"AJ142*'Colombia-IO-Data'!$AN19","v":936960.74117797206},{"$f":"AK142*'Colombia-IO-Data'!$AO19","v":0},{"$f":"AL142*'Colombia-IO-Data'!$AO19","v":135401.99882809728},{"$f":"AM142*'Colombia-IO-Data'!$AO19","v":49106.562056486975},{"$f":"(Calculations!AN142*'Default-Data'!$F$19/wind_dollar_index)/'Colombia-IO-Data'!$AP19","v":0},{"$f":"(Calculations!AO142*'Default-Data'!$F$19/wind_dollar_index)/'Colombia-IO-Data'!$AP19","v":25.5056457244923},{"$f":"(Calculations!AP142*'Default-Data'!$F$19/wind_dollar_index)/'Colombia-IO-Data'!$AP19","v":9.2501926515182831},19879.612978139943,19218.305791175102,{"$f":"AG142*'Colombia-IO-Data'!AN19","v":0},{"$f":"AT142*'Colombia-IO-Data'!$AN19","v":10731.494774603842},{"$f":"AU142*'Colombia-IO-Data'!$AN19","v":10374.505197939297},{"$f":"AV142*'Colombia-IO-Data'!$AO19","v":0},{"$f":"AW142*'Colombia-IO-Data'!$AO19","v":562.44279076774058},{"$f":"AX142*'Colombia-IO-Data'!$AO19","v":543.7327957492123},{"$f":"(AY142*'Default-Data'!$F$19/wind_dollar_index)/'Colombia-IO-Data'!$AP19","v":0},{"$f":"(AZ142*'Default-Data'!$F$19/wind_dollar_index)/'Colombia-IO-Data'!$AP19","v":0.10594722888714041},{"$f":"(BA142*'Default-Data'!$F$19/wind_dollar_index)/'Colombia-IO-Data'!$AP19","v":0.10242283110439089},null,"DOM_C23: Coke, refined petroleum products and nuclear fuel",0,0,null,5734142.3052925058,2786105.0286195166,{"$f":"BG142*'Mexico-IO-Data'!AQ19","v":0},{"$f":"BJ142*'Mexico-IO-Data'!$AQ19","v":719358.44735565339},{"$f":"BK142*'Mexico-IO-Data'!$AQ19","v":349521.87805099768},{"$f":"BG142*'Mexico-IO-Data'!AR19","v":0},{"$f":"BJ142*'Mexico-IO-Data'!$AR19","v":184131.65801508893},{"$f":"BK142*'Mexico-IO-Data'!$AR19","v":89465.88888287438},{"$f":"(BO142*'Default-Data'!$F$19/wind_dollar_index)/'Mexico-IO-Data'!$AS19","v":0},{"$f":"(BP142*'Default-Data'!$F$19/wind_dollar_index)/'Mexico-IO-Data'!$AS19","v":3.2627755045247886},{"$f":"(BQ142*'Default-Data'!$F$19/wind_dollar_index)/'Mexico-IO-Data'!$AS19","v":1.5853173424075639},283827.70956163935,22291.709212248679,{"$f":"BH142*'Mexico-IO-Data'!AQ19","v":0},{"$f":"BU142*'Mexico-IO-Data'!$AQ19","v":35606.695752619111},{"$f":"BV142*'Mexico-IO-Data'!$AQ19","v":2796.5349435130424},{"$f":"BH142*'Mexico-IO-Data'!AR19","v":0},{"$f":"BX142*'Mexico-IO-Data'!$AR19","v":1143.3828419844449},{"$f":"BY142*'Mexico-IO-Data'!$AR19","v":89.800808635481246},{"$f":"(CA142*'Default-Data'!$F$19/wind_dollar_index)/'Mexico-IO-Data'!$AS19","v":2.0260511252307708E-2},{"$f":"(CB142*'Default-Data'!$F$19/wind_dollar_index)/'Mexico-IO-Data'!$AS19","v":1.5912520522590205E-3},{"$f":"(CC142*'Default-Data'!$F$19/wind_dollar_index)/'Mexico-IO-Data'!$AS19","v":3.5901213585857864E-7},null,"TTL_C23: Coke, refined petroleum products and nuclear fuel",0,0,null,13619095.262488225,3448347.9251599181,{"$f":"CH142*'Philippines-IO-Data'!AN19","v":0},{"$f":"CK142*'Philippines-IO-Data'!$AN19","v":2313236.133780139},{"$f":"CL142*'Philippines-IO-Data'!$AN19","v":585710.20090422034},{"$f":"CH142*'Philippines-IO-Data'!AO19","v":0},{"$f":"CK142*'Philippines-IO-Data'!$AO19","v":314505.20946464821},{"$f":"CL142*'Philippines-IO-Data'!$AO19","v":79632.557494223845},{"$f":"(CP142*'Default-Data'!$F$19/wind_dollar_index)/'Philippines-IO-Data'!$AP19","v":0},{"$f":"(CQ142*'Default-Data'!$F$19/wind_dollar_index)/'Philippines-IO-Data'!$AP19","v":78.067053414131919},{"$f":"(CR142*'Default-Data'!$F$19/wind_dollar_index)/'Philippines-IO-Data'!$AP19","v":19.766537826154153},434716.8739326534,31629.049793869432,{"$f":"CI142*'Philippines-IO-Data'!AN19","v":0},{"$f":"CV142*'Philippines-IO-Data'!$AN19","v":73837.70811228134},{"$f":"CW142*'Philippines-IO-Data'!$AN19","v":5372.2702903645459},{"$f":"CI142*'Philippines-IO-Data'!AO19","v":0},{"$f":"CV142*'Philippines-IO-Data'!$AO19","v":10038.898976687764},{"$f":"CW142*'Philippines-IO-Data'!$AO19","v":730.40835230719085},{"$f":"(DA142*'Default-Data'!$F$19/wind_dollar_index)/'Philippines-IO-Data'!$AP19","v":0},{"$f":"(DB142*'Default-Data'!$F$19/wind_dollar_index)/'Philippines-IO-Data'!$AP19","v":2.4918737084393197},{"$f":"(DC142*'Default-Data'!$F$19/wind_dollar_index)/'Philippines-IO-Data'!$AP19","v":0.18130328572539256},null,"DOM_C23: Coke, refined petroleum products and nuclear fuel",0,0,null,4580491.253730719,4984213.1408760874,{"$f":"DI142*'SouthAfrica-IO-Data'!AR19","v":0},{"$f":"DL142*'SouthAfrica-IO-Data'!$AR19","v":971852.93551004736},{"$f":"DM142*'SouthAfrica-IO-Data'!$AR19","v":1057511.4990609142},{"$f":"DI142*'SouthAfrica-IO-Data'!AS19","v":0},{"$f":"DL142*'SouthAfrica-IO-Data'!$AS19","v":184280.28411982331},{"$f":"DM142*'SouthAfrica-IO-Data'!$AS19","v":200522.64327899515},{"$f":"(DQ142*'Default-Data'!$F$19/wind_dollar_index)/'SouthAfrica-IO-Data'!$AT19","v":0},{"$f":"(DR142*'Default-Data'!$F$19/wind_dollar_index)/'SouthAfrica-IO-Data'!$AT19","v":11.503149311475692},{"$f":"(DS142*'Default-Data'!$F$19/wind_dollar_index)/'SouthAfrica-IO-Data'!$AT19","v":12.517030332285721},15790.500551046007,48637.383637529987,{"$f":"DJ142*'SouthAfrica-IO-Data'!AR19","v":0},{"$f":"'SouthAfrica-IO-Data'!$AR19*Calculations!DW142","v":3350.3053414211922},{"$f":"'SouthAfrica-IO-Data'!$AR19*Calculations!DX142","v":10319.500997881549},{"$f":"DJ142*'SouthAfrica-IO-Data'!AS19","v":0},{"$f":"DW142*'SouthAfrica-IO-Data'!$AS19","v":635.27638559967704},{"$f":"DX142*'SouthAfrica-IO-Data'!$AS19","v":1956.7575570128549},{"$f":"(EB142*'Default-Data'!$F$19/wind_dollar_index)/'SouthAfrica-IO-Data'!$AT19","v":0},{"$f":"(EC142*'Default-Data'!$F$19/wind_dollar_index)/'SouthAfrica-IO-Data'!$AT19","v":3.9655241213194949E-2},{"$f":"(ED142*'Default-Data'!$F$19/wind_dollar_index)/'SouthAfrica-IO-Data'!$AT19","v":0.12214477773455942},null,"COFFEE",0,0,null,573.45211486394112,49214.963704375994,{"$f":"EJ142*'Zambia-IO-Data'!BO17","v":0},{"$f":"EM142*'Zambia-IO-Data'!$BO17","v":183.05628505225687},{"$f":"EN142*'Zambia-IO-Data'!$BO17","v":15710.306390346568},{"$f":"EJ142*'Zambia-IO-Data'!BN17","v":0},{"$f":"EM142*'Zambia-IO-Data'!$BN17","v":145.57498015122201},{"$f":"EN142*'Zambia-IO-Data'!$BN17","v":12493.57562506768},{"$f":"(ER142*'Default-Data'!$F$19/wind_dollar_index)/'Zambia-IO-Data'!$BP17","v":0},{"$f":"(ES142*'Default-Data'!$F$19/wind_dollar_index)/'Zambia-IO-Data'!$BP17","v":1.1249576407557076},{"$f":"(ET142*'Default-Data'!$F$19/wind_dollar_index)/'Zambia-IO-Data'!$BP17","v":96.546421268127332},3.4582453970157854,236.47370960818591,{"$f":"EK142*'Zambia-IO-Data'!BO17","v":0},{"$f":"EX142*'Zambia-IO-Data'!$BO17","v":1.1039344677052538},{"$f":"EY142*'Zambia-IO-Data'!$BO17","v":75.486684365391753},{"$f":"EK142*'Zambia-IO-Data'!BN17","v":0},{"$f":"EX142*'Zambia-IO-Data'!$BN17","v":0.87790068600248161},{"$f":"EY142*'Zambia-IO-Data'!$BN17","v":60.030566964889807},{"$f":"(FC142*'Default-Data'!$F$19/wind_dollar_index)/'Zambia-IO-Data'!$BP17","v":0},{"$f":"(FD142*'Default-Data'!$F$19/wind_dollar_index)/'Zambia-IO-Data'!$BP17","v":6.7841402658427828E-3},{"$f":"(FE142*'Default-Data'!$F$19/wind_dollar_index)/'Zambia-IO-Data'!$BP17","v":0.46389733260412253},null,"TTL_C23: Coke, refined petroleum products and nuclear fuel",0,0,null,22770311.545270197,6815623.9547533169,{"$f":"FK142*CustomRegion1!C15","v":0},{"$f":"FN142*CustomRegion1!$C15","v":3867592.2613619086},{"$f":"FO142*CustomRegion1!$C15","v":1157650.145073761},{"$f":"FK142*CustomRegion1!D15","v":0},{"$f":"FN142*CustomRegion1!$D15","v":525833.87252202153},{"$f":"FO142*CustomRegion1!$D15","v":157392.92502241716},{"$f":"(FS142*'Default-Data'!$C$58/wind_dollar_index)/CustomRegion1!$E15","v":0},{"$f":"(FT142*'Default-Data'!$C$58/wind_dollar_index)/CustomRegion1!$E15","v":131.06883304014818},{"$f":"(FU142*'Default-Data'!$C$58/wind_dollar_index)/CustomRegion1!$E15","v":39.231605435611826},598389.33129663009,62926.646517355577,{"$f":"FL142*CustomRegion1!C15","v":0},{"$f":"FY142*CustomRegion1!$C15","v":101637.86922296639},{"$f":"FZ142*CustomRegion1!$C15","v":10688.24247837461},{"$f":"FL142*CustomRegion1!D15","v":0},{"$f":"FY142*CustomRegion1!$D15","v":13818.580335451275},{"$f":"FZ142*CustomRegion1!$D15","v":1453.1624724264536},{"$f":"(GD142*'Default-Data'!$C$58/wind_dollar_index)/CustomRegion1!$E15","v":0},{"$f":"(GE142*'Default-Data'!$C$58/wind_dollar_index)/CustomRegion1!$E15","v":3.4444057210545842},{"$f":"(GF142*'Default-Data'!$C$58/wind_dollar_index)/CustomRegion1!$E15","v":0.36221384629552428},null,"C23 Coke, refined petroleum products and nuclear fuel",0,0,null,4001981.6561379996,3784187.6485133744,{"$f":"GL142*CustomRegion2!C19","v":0},{"$f":"GO142*CustomRegion2!$C19","v":669196.28305665439},{"$f":"GP142*CustomRegion2!$C19","v":632777.59029456391},{"$f":"GL142*CustomRegion2!D19","v":0},{"$f":"GO142*CustomRegion2!$D19","v":283889.6084232853},{"$f":"GP142*CustomRegion2!$D19","v":268439.89854101674},{"$f":"(GT142*'Default-Data'!$C$59/wind_dollar_index)/CustomRegion2!$E19","v":0},{"$f":"(GU142*'Default-Data'!$C$59/wind_dollar_index)/CustomRegion2!$E19","v":5.0304660824632617},{"$f":"(GV142*'Default-Data'!$C$59/wind_dollar_index)/CustomRegion2!$E19","v":4.7567003677606348},0,0,{"$f":"GM142*CustomRegion2!C19","v":0},{"$f":"GZ142*CustomRegion2!$C19","v":0},{"$f":"HA142*CustomRegion2!$C19","v":0},{"$f":"GM142*CustomRegion2!D19","v":0},{"$f":"GZ142*CustomRegion2!$D19","v":0},{"$f":"HA142*CustomRegion2!$D19","v":0},{"$f":"(HE142*'Default-Data'!$C$59/wind_dollar_index)/CustomRegion2!$E19","v":0},{"$f":"(HF142*'Default-Data'!$C$59/wind_dollar_index)/CustomRegion2!$E19","v":0},{"$f":"(HG142*'Default-Data'!$C$59/wind_dollar_index)/CustomRegion2!$E19","v":0},null,"COFFEE",0,0,null,573.45211486394112,49214.963704375994,{"$f":"HM142*CustomRegion3!D18","v":0},{"$f":"HP142*CustomRegion3!$D18","v":183.05628505225687},{"$f":"HQ142*CustomRegion3!$D18","v":15710.306390346568},{"$f":"HM142*CustomRegion3!E18","v":0},{"$f":"HP142*CustomRegion3!$E18","v":145.57498015122201},{"$f":"HQ142*CustomRegion3!$E18","v":12493.57562506768},{"$f":"(HU142*'Default-Data'!$C$60/wind_dollar_index)/CustomRegion3!$F18","v":0},{"$f":"(HV142*'Default-Data'!$C$60/wind_dollar_index)/CustomRegion3!$F18","v":1.1295138664197861},{"$f":"(HW142*'Default-Data'!$C$60/wind_dollar_index)/CustomRegion3!$F18","v":96.937446908933921},3.4582453970157854,236.47370960818591,{"$f":"HN142*CustomRegion3!D18","v":0},{"$f":"IA142*CustomRegion3!$D18","v":1.1039344677052538},{"$f":"IB142*CustomRegion3!$D18","v":75.486684365391753},{"$f":"HN142*CustomRegion3!E18","v":0},{"$f":"IA142*CustomRegion3!$E18","v":0.87790068600248161},{"$f":"IB142*CustomRegion3!$E18","v":60.030566964889807},{"$f":"(IF142*'Default-Data'!$C$60/wind_dollar_index)/CustomRegion3!$F18","v":0},{"$f":"(IG142*'Default-Data'!$C$60/wind_dollar_index)/CustomRegion3!$F18","v":6.811616921734623E-3},{"$f":"(IH142*'Default-Data'!$C$60/wind_dollar_index)/CustomRegion3!$F18","v":0.46577617750968592}]
[null,null,null,null,null,null,null,null,null,null,null,null,null,null,null,null,null,null,null,null,null,null,null,null,null,null,null,null,null,142,"TTL_C24: Chemicals and chemical products",0,0,null,3099505.5231823381,2053456.3756218525,{"$f":"AF143*'Colombia-IO-Data'!AN20","v":0},{"$f":"AI143*'Colombia-IO-Data'!$AN20","v":958630.96681735583},{"$f":"AJ143*'Colombia-IO-Data'!$AN20","v":635103.52085403795},{"$f":"AK143*'Colombia-IO-Data'!$AO20","v":0},{"$f":"AL143*'Colombia-IO-Data'!$AO20","v":351704.39337765396},{"$f":"AM143*'Colombia-IO-Data'!$AO20","v":233008.01483136229},{"$f":"(Calculations!AN143*'Default-Data'!$F$19/wind_dollar_index)/'Colombia-IO-Data'!$AP20","v":0},{"$f":"(Calculations!AO143*'Default-Data'!$F$19/wind_dollar_index)/'Colombia-IO-Data'!$AP20","v":66.250481786657787},{"$f":"(Calculations!AP143*'Default-Data'!$F$19/wind_dollar_index)/'Colombia-IO-Data'!$AP20","v":43.891670202011355},16951.637831089327,22736.911917832382,{"$f":"AG143*'Colombia-IO-Data'!AN20","v":0},{"$f":"AT143*'Colombia-IO-Data'!$AN20","v":5242.8895001516821},{"$f":"AU143*'Colombia-IO-Data'!$AN20","v":7032.1887446917381},{"$f":"AV143*'Colombia-IO-Data'!$AO20","v":0},{"$f":"AW143*'Colombia-IO-Data'!$AO20","v":1923.5214957835165},{"$f":"AX143*'Colombia-IO-Data'!$AO20","v":2579.9830823117909},{"$f":"(AY143*'Default-Data'!$F$19/wind_dollar_index)/'Colombia-IO-Data'!$AP20","v":0},{"$f":"(AZ143*'Default-Data'!$F$19/wind_dollar_index)/'Colombia-IO-Data'!$AP20","v":0.36233333510228283},{"$f":"(BA143*'Default-Data'!$F$19/wind_dollar_index)/'Colombia-IO-Data'!$AP20","v":0.4859908645526817},null,"DOM_C24: Chemicals and chemical products",0,0,null,3193143.7720722198,2654642.4631808507,{"$f":"BG143*'Mexico-IO-Data'!AQ20","v":0},{"$f":"BJ143*'Mexico-IO-Data'!$AQ20","v":936703.17557936325},{"$f":"BK143*'Mexico-IO-Data'!$AQ20","v":778734.75257758796},{"$f":"BG143*'Mexico-IO-Data'!AR20","v":0},{"$f":"BJ143*'Mexico-IO-Data'!$AR20","v":205049.11082460915},{"$f":"BK143*'Mexico-IO-Data'!$AR20","v":170469.01595640788},{"$f":"(BO143*'Default-Data'!$F$19/wind_dollar_index)/'Mexico-IO-Data'!$AS20","v":0},{"$f":"(BP143*'Default-Data'!$F$19/wind_dollar_index)/'Mexico-IO-Data'!$AS20","v":12.919732774362695},{"$f":"(BQ143*'Default-Data'!$F$19/wind_dollar_index)/'Mexico-IO-Data'!$AS20","v":10.740910426815836},363564.46336460119,21239.873315557197,{"$f":"BH143*'Mexico-IO-Data'!AQ20","v":0},{"$f":"BU143*'Mexico-IO-Data'!$AQ20","v":106651.00342175469},{"$f":"BV143*'Mexico-IO-Data'!$AQ20","v":6230.6799203953378},{"$f":"BH143*'Mexico-IO-Data'!AR20","v":0},{"$f":"BX143*'Mexico-IO-Data'!$AR20","v":6848.6403936617171},{"$f":"BY143*'Mexico-IO-Data'!$AR20","v":400.10581066968473},{"$f":"(CA143*'Default-Data'!$F$19/wind_dollar_index)/'Mexico-IO-Data'!$AS20","v":0.43151908046799586},{"$f":"(CB143*'Default-Data'!$F$19/wind_dollar_index)/'Mexico-IO-Data'!$AS20","v":2.5209863795720922E-2},{"$f":"(CC143*'Default-Data'!$F$19/wind_dollar_index)/'Mexico-IO-Data'!$AS20","v":2.7189150853982236E-5},null,"TTL_C24: Chemicals and chemical products",0,0,null,1646865.4246521711,1693055.766633949,{"$f":"CH143*'Philippines-IO-Data'!AN20","v":0},{"$f":"CK143*'Philippines-IO-Data'!$AN20","v":444440.20447631954},{"$f":"CL143*'Philippines-IO-Data'!$AN20","v":456905.60980204516},{"$f":"CH143*'Philippines-IO-Data'!AO20","v":0},{"$f":"CK143*'Philippines-IO-Data'!$AO20","v":115255.0719054283},{"$f":"CL143*'Philippines-IO-Data'!$AO20","v":118487.68041536196},{"$f":"(CP143*'Default-Data'!$F$19/wind_dollar_index)/'Philippines-IO-Data'!$AP20","v":0},{"$f":"(CQ143*'Default-Data'!$F$19/wind_dollar_index)/'Philippines-IO-Data'!$AP20","v":28.608822950839102},{"$f":"(CR143*'Default-Data'!$F$19/wind_dollar_index)/'Philippines-IO-Data'!$AP20","v":29.41122689715699},17356.28635747865,15529.101560765539,{"$f":"CI143*'Philippines-IO-Data'!AN20","v":0},{"$f":"CV143*'Philippines-IO-Data'!$AN20","v":4683.9476633596696},{"$f":"CW143*'Philippines-IO-Data'!$AN20","v":4190.8446007103867},{"$f":"CI143*'Philippines-IO-Data'!AO20","v":0},{"$f":"CV143*'Philippines-IO-Data'!$AO20","v":1214.6712185453184},{"$f":"CW143*'Philippines-IO-Data'!$AO20","v":1086.7965835100038},{"$f":"(DA143*'Default-Data'!$F$19/wind_dollar_index)/'Philippines-IO-Data'!$AP20","v":0},{"$f":"(DB143*'Default-Data'!$F$19/wind_dollar_index)/'Philippines-IO-Data'!$AP20","v":0.30150789254079091},{"$f":"(DC143*'Default-Data'!$F$19/wind_dollar_index)/'Philippines-IO-Data'!$AP20","v":0.26976661874565316},null,"DOM_C24: Chemicals and chemical products",0,0,null,2131090.0748712402,1763263.6642256081,{"$f":"DI143*'SouthAfrica-IO-Data'!AR20","v":0},{"$f":"DL143*'SouthAfrica-IO-Data'!$AR20","v":493814.00329773163},{"$f":"DM143*'SouthAfrica-IO-Data'!$AR20","v":408581.64521895384},{"$f":"DI143*'SouthAfrica-IO-Data'!AS20","v":0},{"$f":"DL143*'SouthAfrica-IO-Data'!$AS20","v":343832.07912687195},{"$f":"DM143*'SouthAfrica-IO-Data'!$AS20","v":284486.61972028},{"$f":"(DQ143*'Default-Data'!$F$19/wind_dollar_index)/'SouthAfrica-IO-Data'!$AT20","v":0},{"$f":"(DR143*'Default-Data'!$F$19/wind_dollar_index)/'SouthAfrica-IO-Data'!$AT20","v":21.462696148763271},{"$f":"(DS143*'Default-Data'!$F$19/wind_dollar_index)/'SouthAfrica-IO-Data'!$AT20","v":17.758232137473456},11222.97414224551,17206.433366126752,{"$f":"DJ143*'SouthAfrica-IO-Data'!AR20","v":0},{"$f":"'SouthAfrica-IO-Data'!$AR20*Calculations!DW143","v":2600.576041077959},{"$f":"'SouthAfrica-IO-Data'!$AR20*Calculations!DX143","v":3987.0570667999982},{"$f":"DJ143*'SouthAfrica-IO-Data'!AS20","v":0},{"$f":"DW143*'SouthAfrica-IO-Data'!$AS20","v":1810.72521467613},{"$f":"DX143*'SouthAfrica-IO-Data'!$AS20","v":2776.1021593565415},{"$f":"(EB143*'Default-Data'!$F$19/wind_dollar_index)/'SouthAfrica-IO-Data'!$AT20","v":0},{"$f":"(EC143*'Default-Data'!$F$19/wind_dollar_index)/'SouthAfrica-IO-Data'!$AT20","v":0.11302914256920656},{"$f":"(ED143*'Default-Data'!$F$19/wind_dollar_index)/'SouthAfrica-IO-Data'!$AT20","v":0.17328993058326417},null,"WHEAT",0,0,null,3214.2366083096454,275853.09028421319,{"$f":"EJ143*'Zambia-IO-Data'!BO18","v":0},{"$f":"EM143*'Zambia-IO-Data'!$BO18","v":694.47726285675503},{"$f":"EN143*'Zambia-IO-Data'!$BO18","v":59601.616942539142},{"$f":"EJ143*'Zambia-IO-Data'!BN18","v":0},{"$f":"EM143*'Zambia-IO-Data'!$BN18","v":420.583357485264},{"$f":"EN143*'Zambia-IO-Data'!$BN18","v":36095.419542071017},{"$f":"(ER143*'Default-Data'!$F$19/wind_dollar_index)/'Zambia-IO-Data'!$BP18","v":0},{"$f":"(ES143*'Default-Data'!$F$19/wind_dollar_index)/'Zambia-IO-Data'!$BP18","v":3.2501358481123952},{"$f":"(ET143*'Default-Data'!$F$19/wind_dollar_index)/'Zambia-IO-Data'!$BP18","v":278.93404462741273},19.383691623918388,1325.4506080350841,{"$f":"EK143*'Zambia-IO-Data'!BO18","v":0},{"$f":"EX143*'Zambia-IO-Data'!$BO18","v":4.1880965042326546},{"$f":"EY143*'Zambia-IO-Data'!$BO18","v":286.38069392287576},{"$f":"EK143*'Zambia-IO-Data'!BN18","v":0},{"$f":"EX143*'Zambia-IO-Data'!$BN18","v":2.536359047921469},{"$f":"EY143*'Zambia-IO-Data'!$BN18","v":173.43541712738056},{"$f":"(FC143*'Default-Data'!$F$19/wind_dollar_index)/'Zambia-IO-Data'!$BP18","v":0},{"$f":"(FD143*'Default-Data'!$F$19/wind_dollar_index)/'Zambia-IO-Data'!$BP18","v":1.9600184645020387E-2},{"$f":"(FE143*'Default-Data'!$F$19/wind_dollar_index)/'Zambia-IO-Data'!$BP18","v":1.3402543312897874},null,"TTL_C24: Chemicals and chemical products",0,0,null,5123895.9590800144,4429024.9473859128,{"$f":"FK143*CustomRegion1!C16","v":0},{"$f":"FN143*CustomRegion1!$C16","v":1382787.7698324274},{"$f":"FO143*CustomRegion1!$C16","v":1195262.6631059805},{"$f":"FK143*CustomRegion1!D16","v":0},{"$f":"FN143*CustomRegion1!$D16","v":358593.35459934722},{"$f":"FO143*CustomRegion1!$D16","v":309963.14643603214},{"$f":"(FS143*'Default-Data'!$C$58/wind_dollar_index)/CustomRegion1!$E16","v":0},{"$f":"(FT143*'Default-Data'!$C$58/wind_dollar_index)/CustomRegion1!$E16","v":89.382626299564137},{"$f":"(FU143*'Default-Data'!$C$58/wind_dollar_index)/CustomRegion1!$E16","v":77.261108520775053},52126.603628877063,40891.881525583733,{"$f":"FL143*CustomRegion1!C16","v":0},{"$f":"FY143*CustomRegion1!$C16","v":14067.426535697196},{"$f":"FZ143*CustomRegion1!$C16","v":11035.507768031706},{"$f":"FL143*CustomRegion1!D16","v":0},{"$f":"FY143*CustomRegion1!$D16","v":3648.0548801981704},{"$f":"FZ143*CustomRegion1!$D16","v":2861.7983443151247},{"$f":"(GD143*'Default-Data'!$C$58/wind_dollar_index)/CustomRegion1!$E16","v":0},{"$f":"(GE143*'Default-Data'!$C$58/wind_dollar_index)/CustomRegion1!$E16","v":0.90931056556073675},{"$f":"(GF143*'Default-Data'!$C$58/wind_dollar_index)/CustomRegion1!$E16","v":0.7133290360063349},null,"C24 Chemicals and chemical products",0,0,null,17599003.030213658,8479604.2201400287,{"$f":"GL143*CustomRegion2!C20","v":0},{"$f":"GO143*CustomRegion2!$C20","v":5798752.0098407464},{"$f":"GP143*CustomRegion2!$C20","v":2793972.0181748336},{"$f":"GL143*CustomRegion2!D20","v":0},{"$f":"GO143*CustomRegion2!$D20","v":2055826.3060777874},{"$f":"GP143*CustomRegion2!$D20","v":990544.37293772411},{"$f":"(GT143*'Default-Data'!$C$59/wind_dollar_index)/CustomRegion2!$E20","v":0},{"$f":"(GU143*'Default-Data'!$C$59/wind_dollar_index)/CustomRegion2!$E20","v":129.53348784696354},{"$f":"(GV143*'Default-Data'!$C$59/wind_dollar_index)/CustomRegion2!$E20","v":62.412212118542612},0,0,{"$f":"GM143*CustomRegion2!C20","v":0},{"$f":"GZ143*CustomRegion2!$C20","v":0},{"$f":"HA143*CustomRegion2!$C20","v":0},{"$f":"GM143*CustomRegion2!D20","v":0},{"$f":"GZ143*CustomRegion2!$D20","v":0},{"$f":"HA143*CustomRegion2!$D20","v":0},{"$f":"(HE143*'Default-Data'!$C$59/wind_dollar_index)/CustomRegion2!$E20","v":0},{"$f":"(HF143*'Default-Data'!$C$59/wind_dollar_index)/CustomRegion2!$E20","v":0},{"$f":"(HG143*'Default-Data'!$C$59/wind_dollar_index)/CustomRegion2!$E20","v":0},null,"WHEAT",0,0,null,3214.2366083096454,275853.09028421319,{"$f":"HM143*CustomRegion3!D19","v":0},{"$f":"HP143*CustomRegion3!$D19","v":694.47726285675503},{"$f":"HQ143*CustomRegion3!$D19","v":59601.616942539142},{"$f":"HM143*CustomRegion3!E19","v":0},{"$f":"HP143*CustomRegion3!$E19","v":420.583357485264},{"$f":"HQ143*CustomRegion3!$E19","v":36095.419542071017},{"$f":"(HU143*'Default-Data'!$C$60/wind_dollar_index)/CustomRegion3!$F19","v":0},{"$f":"(HV143*'Default-Data'!$C$60/wind_dollar_index)/CustomRegion3!$F19","v":3.2632993236304277},{"$f":"(HW143*'Default-Data'!$C$60/wind_dollar_index)/CustomRegion3!$F19","v":280.06376401121361},19.383691623918388,1325.4506080350841,{"$f":"HN143*CustomRegion3!D19","v":0},{"$f":"IA143*CustomRegion3!$D19","v":4.1880965042326546},{"$f":"IB143*CustomRegion3!$D19","v":286.38069392287576},{"$f":"HN143*CustomRegion3!E19","v":0},{"$f":"IA143*CustomRegion3!$E19","v":2.536359047921469},{"$f":"IB143*CustomRegion3!$E19","v":173.43541712738056},{"$f":"(IF143*'Default-Data'!$C$60/wind_dollar_index)/CustomRegion3!$F19","v":0},{"$f":"(IG143*'Default-Data'!$C$60/wind_dollar_index)/CustomRegion3!$F19","v":1.9679567957835906E-2},{"$f":"(IH143*'Default-Data'!$C$60/wind_dollar_index)/CustomRegion3!$F19","v":1.3456825367256051}]
[null,null,null,null,null,null,null,null,null,null,null,null,null,null,null,null,null,null,null,null,null,null,null,null,null,null,null,null,null,143,"TTL_C25: Rubber and plastics products",0,0,null,3623020.3683985746,554641.05126125086,{"$f":"AF144*'Colombia-IO-Data'!AN21","v":0},{"$f":"AI144*'Colombia-IO-Data'!$AN21","v":911880.83969044872},{"$f":"AJ144*'Colombia-IO-Data'!$AN21","v":139598.04144696501},{"$f":"AK144*'Colombia-IO-Data'!$AO21","v":0},{"$f":"AL144*'Colombia-IO-Data'!$AO21","v":528114.73084526777},{"$f":"AM144*'Colombia-IO-Data'!$AO21","v":80848.043819318627},{"$f":"(Calculations!AN144*'Default-Data'!$F$19/wind_dollar_index)/'Colombia-IO-Data'!$AP21","v":0},{"$f":"(Calculations!AO144*'Default-Data'!$F$19/wind_dollar_index)/'Colombia-IO-Data'!$AP21","v":99.480859539791837},{"$f":"(Calculations!AP144*'Default-Data'!$F$19/wind_dollar_index)/'Colombia-IO-Data'!$AP21","v":15.229328821000147},11520.203257642968,6141.26741539471,{"$f":"AG144*'Colombia-IO-Data'!AN21","v":0},{"$f":"AT144*'Colombia-IO-Data'!$AN21","v":2899.5289984051324},{"$f":"AU144*'Colombia-IO-Data'!$AN21","v":1545.7004151453457},{"$f":"AV144*'Colombia-IO-Data'!$AO21","v":0},{"$f":"AW144*'Colombia-IO-Data'!$AO21","v":1679.2588569912182},{"$f":"AX144*'Colombia-IO-Data'!$AO21","v":895.19060296190708},{"$f":"(AY144*'Default-Data'!$F$19/wind_dollar_index)/'Colombia-IO-Data'!$AP21","v":0},{"$f":"(AZ144*'Default-Data'!$F$19/wind_dollar_index)/'Colombia-IO-Data'!$AP21","v":0.31632163377817224},{"$f":"(BA144*'Default-Data'!$F$19/wind_dollar_index)/'Colombia-IO-Data'!$AP21","v":0.16862686350759465},null,"DOM_C25: Rubber and plastics products",0,0,null,1660311.3503557988,448988.69719501818,{"$f":"BG144*'Mexico-IO-Data'!AQ21","v":0},{"$f":"BJ144*'Mexico-IO-Data'!$AQ21","v":512116.83171918348},{"$f":"BK144*'Mexico-IO-Data'!$AQ21","v":138488.88585623555},{"$f":"BG144*'Mexico-IO-Data'!AR21","v":0},{"$f":"BJ144*'Mexico-IO-Data'!$AR21","v":179036.39081656843},{"$f":"BK144*'Mexico-IO-Data'!$AR21","v":48415.808183207861},{"$f":"(BO144*'Default-Data'!$F$19/wind_dollar_index)/'Mexico-IO-Data'!$AS21","v":0},{"$f":"(BP144*'Default-Data'!$F$19/wind_dollar_index)/'Mexico-IO-Data'!$AS21","v":26.267348023698929},{"$f":"(BQ144*'Default-Data'!$F$19/wind_dollar_index)/'Mexico-IO-Data'!$AS21","v":7.1033317729240144},3892.0146281079274,3592.3719223237381,{"$f":"BH144*'Mexico-IO-Data'!AQ21","v":0},{"$f":"BU144*'Mexico-IO-Data'!$AQ21","v":1200.4773682503703},{"$f":"BV144*'Mexico-IO-Data'!$AQ21","v":1108.0536953645117},{"$f":"BH144*'Mexico-IO-Data'!AR21","v":0},{"$f":"BX144*'Mexico-IO-Data'!$AR21","v":129.45110278410149},{"$f":"BY144*'Mexico-IO-Data'!$AR21","v":119.484778807608},{"$f":"(CA144*'Default-Data'!$F$19/wind_dollar_index)/'Mexico-IO-Data'!$AS21","v":1.8992435858279942E-2},{"$f":"(CB144*'Default-Data'!$F$19/wind_dollar_index)/'Mexico-IO-Data'!$AS21","v":1.7530225303132495E-2},{"$f":"(CC144*'Default-Data'!$F$19/wind_dollar_index)/'Mexico-IO-Data'!$AS21","v":2.786477767072206E-6},null,"TTL_C25: Rubber and plastics products",0,0,null,1342880.6950899977,434430.88891565893,{"$f":"CH144*'Philippines-IO-Data'!AN21","v":0},{"$f":"CK144*'Philippines-IO-Data'!$AN21","v":412993.58915179694},{"$f":"CL144*'Philippines-IO-Data'!$AN21","v":133606.18907375037},{"$f":"CH144*'Philippines-IO-Data'!AO21","v":0},{"$f":"CK144*'Philippines-IO-Data'!$AO21","v":116700.58268069987},{"$f":"CL144*'Philippines-IO-Data'!$AO21","v":37753.419239937823},{"$f":"(CP144*'Default-Data'!$F$19/wind_dollar_index)/'Philippines-IO-Data'!$AP21","v":0},{"$f":"(CQ144*'Default-Data'!$F$19/wind_dollar_index)/'Philippines-IO-Data'!$AP21","v":28.967630256752784},{"$f":"(CR144*'Default-Data'!$F$19/wind_dollar_index)/'Philippines-IO-Data'!$AP21","v":9.3712221854361086},1042.0140140327483,3984.7012296101902,{"$f":"CI144*'Philippines-IO-Data'!AN21","v":0},{"$f":"CV144*'Philippines-IO-Data'!$AN21","v":320.46414039261663},{"$f":"CW144*'Philippines-IO-Data'!$AN21","v":1225.4670638511202},{"$f":"CI144*'Philippines-IO-Data'!AO21","v":0},{"$f":"CV144*'Philippines-IO-Data'!$AO21","v":90.554315840341289},{"$f":"CW144*'Philippines-IO-Data'!$AO21","v":346.28314861049199},{"$f":"(DA144*'Default-Data'!$F$19/wind_dollar_index)/'Philippines-IO-Data'!$AP21","v":0},{"$f":"(DB144*'Default-Data'!$F$19/wind_dollar_index)/'Philippines-IO-Data'!$AP21","v":2.2477556488242265E-2},{"$f":"(DC144*'Default-Data'!$F$19/wind_dollar_index)/'Philippines-IO-Data'!$AP21","v":8.5955031094732071E-2},null,"DOM_C25: Rubber and plastics products",0,0,null,3192773.9550275924,976799.62876772089,{"$f":"DI144*'SouthAfrica-IO-Data'!AR21","v":0},{"$f":"DL144*'SouthAfrica-IO-Data'!$AR21","v":940352.65215097181},{"$f":"DM144*'SouthAfrica-IO-Data'!$AR21","v":287692.18694151897},{"$f":"DI144*'SouthAfrica-IO-Data'!AS21","v":0},{"$f":"DL144*'SouthAfrica-IO-Data'!$AS21","v":887650.26799389604},{"$f":"DM144*'SouthAfrica-IO-Data'!$AS21","v":271568.38049454469},{"$f":"(DQ144*'Default-Data'!$F$19/wind_dollar_index)/'SouthAfrica-IO-Data'!$AT21","v":0},{"$f":"(DR144*'Default-Data'!$F$19/wind_dollar_index)/'SouthAfrica-IO-Data'!$AT21","v":55.408931117481437},{"$f":"(DS144*'Default-Data'!$F$19/wind_dollar_index)/'SouthAfrica-IO-Data'!$AT21","v":16.951849428847005},4664.8172759233257,9531.8913815595188,{"$f":"DJ144*'SouthAfrica-IO-Data'!AR21","v":0},{"$f":"'SouthAfrica-IO-Data'!$AR21*Calculations!DW144","v":1373.9066275915741},{"$f":"'SouthAfrica-IO-Data'!$AR21*Calculations!DX144","v":2807.3830051607965},{"$f":"DJ144*'SouthAfrica-IO-Data'!AS21","v":0},{"$f":"DW144*'SouthAfrica-IO-Data'!$AS21","v":1296.9055634507365},{"$f":"DX144*'SouthAfrica-IO-Data'!$AS21","v":2650.0422699849082},{"$f":"(EB144*'Default-Data'!$F$19/wind_dollar_index)/'SouthAfrica-IO-Data'!$AT21","v":0},{"$f":"(EC144*'Default-Data'!$F$19/wind_dollar_index)/'SouthAfrica-IO-Data'!$AT21","v":8.0955477198835765E-2},{"$f":"(ED144*'Default-Data'!$F$19/wind_dollar_index)/'SouthAfrica-IO-Data'!$AT21","v":0.16542101646390497},null,"HORTI",0,0,null,33593.598048147185,2366057.5471881074,{"$f":"EJ144*'Zambia-IO-Data'!BO19","v":0},{"$f":"EM144*'Zambia-IO-Data'!$BO19","v":16194.390221896045},{"$f":"EN144*'Zambia-IO-Data'!$BO19","v":1140600.0378914382},{"$f":"EJ144*'Zambia-IO-Data'!BN19","v":0},{"$f":"EM144*'Zambia-IO-Data'!$BN19","v":13643.27668003357},{"$f":"EN144*'Zambia-IO-Data'!$BN19","v":960920.52155006782},{"$f":"(ER144*'Default-Data'!$F$19/wind_dollar_index)/'Zambia-IO-Data'!$BP19","v":0},{"$f":"(ES144*'Default-Data'!$F$19/wind_dollar_index)/'Zambia-IO-Data'!$BP19","v":105.43094926205349},{"$f":"(ET144*'Default-Data'!$F$19/wind_dollar_index)/'Zambia-IO-Data'!$BP19","v":7425.6914323723795},315.34026699851921,10938.938837004052,{"$f":"EK144*'Zambia-IO-Data'!BO19","v":0},{"$f":"EX144*'Zambia-IO-Data'!$BO19","v":152.01537296278283},{"$f":"EY144*'Zambia-IO-Data'!$BO19","v":5273.3096313768565},{"$f":"EK144*'Zambia-IO-Data'!BN19","v":0},{"$f":"EX144*'Zambia-IO-Data'!$BN19","v":128.06828565521113},{"$f":"EY144*'Zambia-IO-Data'!$BN19","v":4442.6015017894824},{"$f":"(FC144*'Default-Data'!$F$19/wind_dollar_index)/'Zambia-IO-Data'!$BP19","v":0},{"$f":"(FD144*'Default-Data'!$F$19/wind_dollar_index)/'Zambia-IO-Data'!$BP19","v":0.98967141425438809},{"$f":"(FE144*'Default-Data'!$F$19/wind_dollar_index)/'Zambia-IO-Data'!$BP19","v":34.33102652034885},null,"TTL_C25: Rubber and plastics products",0,0,null,2336412.4889697204,934071.39648973197,{"$f":"FK144*CustomRegion1!C17","v":0},{"$f":"FN144*CustomRegion1!$C17","v":718547.36097313568},{"$f":"FO144*CustomRegion1!$C17","v":287267.14143021632},{"$f":"FK144*CustomRegion1!D17","v":0},{"$f":"FN144*CustomRegion1!$D17","v":203041.64014135103},{"$f":"FO144*CustomRegion1!$D17","v":81173.760732647439},{"$f":"(FS144*'Default-Data'!$C$58/wind_dollar_index)/CustomRegion1!$E17","v":0},{"$f":"(FT144*'Default-Data'!$C$58/wind_dollar_index)/CustomRegion1!$E17","v":50.609959195373214},{"$f":"(FU144*'Default-Data'!$C$58/wind_dollar_index)/CustomRegion1!$E17","v":20.233291631974005},4789.9762763674917,8624.0058106330143,{"$f":"FL144*CustomRegion1!C17","v":0},{"$f":"FY144*CustomRegion1!$C17","v":1473.1237864703924},{"$f":"FZ144*CustomRegion1!$C17","v":2652.252821581134},{"$f":"FL144*CustomRegion1!D17","v":0},{"$f":"FY144*CustomRegion1!$D17","v":416.2640989051917},{"$f":"FZ144*CustomRegion1!$D17","v":749.45340030758666},{"$f":"(GD144*'Default-Data'!$C$58/wind_dollar_index)/CustomRegion1!$E17","v":0},{"$f":"(GE144*'Default-Data'!$C$58/wind_dollar_index)/CustomRegion1!$E17","v":0.10375757921096533},{"$f":"(GF144*'Default-Data'!$C$58/wind_dollar_index)/CustomRegion1!$E17","v":0.18680801623743365},null,"C25 Rubber and plastics products",0,0,null,12320761.452943234,2221816.249869531,{"$f":"GL144*CustomRegion2!C21","v":0},{"$f":"GO144*CustomRegion2!$C21","v":4021290.7803815687},{"$f":"GP144*CustomRegion2!$C21","v":725163.71941995271},{"$f":"GL144*CustomRegion2!D21","v":0},{"$f":"GO144*CustomRegion2!$D21","v":1825929.5572038498},{"$f":"GP144*CustomRegion2!$D21","v":329271.85359501193},{"$f":"(GT144*'Default-Data'!$C$59/wind_dollar_index)/CustomRegion2!$E21","v":0},{"$f":"(GU144*'Default-Data'!$C$59/wind_dollar_index)/CustomRegion2!$E21","v":267.89149919231659},{"$f":"(GV144*'Default-Data'!$C$59/wind_dollar_index)/CustomRegion2!$E21","v":48.309164038332561},0,0,{"$f":"GM144*CustomRegion2!C21","v":0},{"$f":"GZ144*CustomRegion2!$C21","v":0},{"$f":"HA144*CustomRegion2!$C21","v":0},{"$f":"GM144*CustomRegion2!D21","v":0},{"$f":"GZ144*CustomRegion2!$D21","v":0},{"$f":"HA144*CustomRegion2!$D21","v":0},{"$f":"(HE144*'Default-Data'!$C$59/wind_dollar_index)/CustomRegion2!$E21","v":0},{"$f":"(HF144*'Default-Data'!$C$59/wind_dollar_index)/CustomRegion2!$E21","v":0},{"$f":"(HG144*'Default-Data'!$C$59/wind_dollar_index)/CustomRegion2!$E21","v":0},null,"HORTI",0,0,null,33593.598048147185,2366057.5471881074,{"$f":"HM144*CustomRegion3!D20","v":0},{"$f":"HP144*CustomRegion3!$D20","v":16194.390221896045},{"$f":"HQ144*CustomRegion3!$D20","v":1140600.0378914382},{"$f":"HM144*CustomRegion3!E20","v":0},{"$f":"HP144*CustomRegion3!$E20","v":13643.27668003357},{"$f":"HQ144*CustomRegion3!$E20","v":960920.52155006782},{"$f":"(HU144*'Default-Data'!$C$60/wind_dollar_index)/CustomRegion3!$F20","v":0},{"$f":"(HV144*'Default-Data'!$C$60/wind_dollar_index)/CustomRegion3!$F20","v":105.85795840392058},{"$f":"(HW144*'Default-Data'!$C$60/wind_dollar_index)/CustomRegion3!$F20","v":7455.7664544460777},315.34026699851921,10938.938837004052,{"$f":"HN144*CustomRegion3!D20","v":0},{"$f":"IA144*CustomRegion3!$D20","v":152.01537296278283},{"$f":"IB144*CustomRegion3!$D20","v":5273.3096313768565},{"$f":"HN144*CustomRegion3!E20","v":0},{"$f":"IA144*CustomRegion3!$E20","v":128.06828565521113},{"$f":"IB144*CustomRegion3!$E20","v":4442.6015017894824},{"$f":"(IF144*'Default-Data'!$C$60/wind_dollar_index)/CustomRegion3!$F20","v":0},{"$f":"(IG144*'Default-Data'!$C$60/wind_dollar_index)/CustomRegion3!$F20","v":0.99367971299673152},{"$f":"(IH144*'Default-Data'!$C$60/wind_dollar_index)/CustomRegion3!$F20","v":34.470071670529876}]
[null,null,null,null,null,null,null,null,null,null,null,null,null,null,null,null,null,null,null,null,null,null,null,null,null,null,null,null,null,144,"TTL_C26: Other non-metallic mineral products",{"$f":"'Wind-Inputs'!B14*'Wind-Inputs'!C14","v":0},{"$f":"0.5*'Wind-Inputs'!C34*'Wind-Inputs'!B34","v":0},null,16233278.918599904,197407.23426188901,{"$f":"AF145*'Colombia-IO-Data'!AN22","v":0},{"$f":"AI145*'Colombia-IO-Data'!$AN22","v":7172196.3308620835},{"$f":"AJ145*'Colombia-IO-Data'!$AN22","v":87218.574162271994},{"$f":"AK145*'Colombia-IO-Data'!$AO22","v":0},{"$f":"AL145*'Colombia-IO-Data'!$AO22","v":2122762.2241864563},{"$f":"AM145*'Colombia-IO-Data'!$AO22","v":25814.169877419114},{"$f":"(Calculations!AN145*'Default-Data'!$F$19/wind_dollar_index)/'Colombia-IO-Data'!$AP22","v":0},{"$f":"(Calculations!AO145*'Default-Data'!$F$19/wind_dollar_index)/'Colombia-IO-Data'!$AP22","v":399.86426874076511},{"$f":"(Calculations!AP145*'Default-Data'!$F$19/wind_dollar_index)/'Colombia-IO-Data'!$AP22","v":4.8626096901361748},11121.654627421502,2185.7931586183804,{"$f":"AG145*'Colombia-IO-Data'!AN22","v":0},{"$f":"AT145*'Colombia-IO-Data'!$AN22","v":4913.7756402689574},{"$f":"AU145*'Colombia-IO-Data'!$AN22","v":965.72835043841565},{"$f":"AV145*'Colombia-IO-Data'!$AO22","v":0},{"$f":"AW145*'Colombia-IO-Data'!$AO22","v":1454.3351612401834},{"$f":"AX145*'Colombia-IO-Data'!$AO22","v":285.82759960367139},{"$f":"(AY145*'Default-Data'!$F$19/wind_dollar_index)/'Colombia-IO-Data'!$AP22","v":0},{"$f":"(AZ145*'Default-Data'!$F$19/wind_dollar_index)/'Colombia-IO-Data'!$AP22","v":0.27395280504210084},{"$f":"(BA145*'Default-Data'!$F$19/wind_dollar_index)/'Colombia-IO-Data'!$AP22","v":5.3841284152893062E-2},null,"DOM_C26: Other non-metallic mineral products",0,0,null,8383504.3272555117,455906.03155517578,{"$f":"BG145*'Mexico-IO-Data'!AQ22","v":0},{"$f":"BJ145*'Mexico-IO-Data'!$AQ22","v":4585601.6375465617},{"$f":"BK145*'Mexico-IO-Data'!$AQ22","v":249371.07005122339},{"$f":"BG145*'Mexico-IO-Data'!AR22","v":0},{"$f":"BJ145*'Mexico-IO-Data'!$AR22","v":991146.85578529921},{"$f":"BK145*'Mexico-IO-Data'!$AR22","v":53899.874333027685},{"$f":"(BO145*'Default-Data'!$F$19/wind_dollar_index)/'Mexico-IO-Data'!$AS22","v":0},{"$f":"(BP145*'Default-Data'!$F$19/wind_dollar_index)/'Mexico-IO-Data'!$AS22","v":193.10650632681475},{"$f":"(BQ145*'Default-Data'!$F$19/wind_dollar_index)/'Mexico-IO-Data'!$AS22","v":10.501386714947101},4719.1646140144821,3647.7177203092724,{"$f":"BH145*'Mexico-IO-Data'!AQ22","v":0},{"$f":"BU145*'Mexico-IO-Data'!$AQ22","v":2581.2844053199055},{"$f":"BV145*'Mexico-IO-Data'!$AQ22","v":1995.2253495208349},{"$f":"BH145*'Mexico-IO-Data'!AR22","v":0},{"$f":"BX145*'Mexico-IO-Data'!$AR22","v":305.17452157837653},{"$f":"BY145*'Mexico-IO-Data'!$AR22","v":235.8871963996576},{"$f":"(CA145*'Default-Data'!$F$19/wind_dollar_index)/'Mexico-IO-Data'!$AS22","v":5.9457572142793555E-2},{"$f":"(CB145*'Default-Data'!$F$19/wind_dollar_index)/'Mexico-IO-Data'!$AS22","v":4.5958227197193814E-2},{"$f":"(CC145*'Default-Data'!$F$19/wind_dollar_index)/'Mexico-IO-Data'!$AS22","v":1.1584200629958459E-5},null,"TTL_C26: Other non-metallic mineral products",{"$f":"'Wind-Inputs'!B14*'Wind-Inputs'!C14","v":0},{"$f":"0.5*'Wind-Inputs'!B34*'Wind-Inputs'!C34","v":0},null,10012813.157281879,615284.83663462289,{"$f":"CH145*'Philippines-IO-Data'!AN22","v":0},{"$f":"CK145*'Philippines-IO-Data'!$AN22","v":3767701.6669324287},{"$f":"CL145*'Philippines-IO-Data'!$AN22","v":231524.31471674706},{"$f":"CH145*'Philippines-IO-Data'!AO22","v":0},{"$f":"CK145*'Philippines-IO-Data'!$AO22","v":801391.23320161132},{"$f":"CL145*'Philippines-IO-Data'!$AO22","v":49245.288637217214},{"$f":"(CP145*'Default-Data'!$F$19/wind_dollar_index)/'Philippines-IO-Data'!$AP22","v":0},{"$f":"(CQ145*'Default-Data'!$F$19/wind_dollar_index)/'Philippines-IO-Data'!$AP22","v":198.9227851407006},{"$f":"(CR145*'Default-Data'!$F$19/wind_dollar_index)/'Philippines-IO-Data'!$AP22","v":12.223754846477707},5240.415016227641,5643.5357329631852,{"$f":"CI145*'Philippines-IO-Data'!AN22","v":0},{"$f":"CV145*'Philippines-IO-Data'!$AN22","v":1971.9054057949174},{"$f":"CW145*'Philippines-IO-Data'!$AN22","v":2123.5949032979165},{"$f":"CI145*'Philippines-IO-Data'!AO22","v":0},{"$f":"CV145*'Philippines-IO-Data'!$AO22","v":419.42484957773428},{"$f":"CW145*'Philippines-IO-Data'!$AO22","v":451.68924952600156},{"$f":"(DA145*'Default-Data'!$F$19/wind_dollar_index)/'Philippines-IO-Data'!$AP22","v":0},{"$f":"(DB145*'Default-Data'!$F$19/wind_dollar_index)/'Philippines-IO-Data'!$AP22","v":0.10411039674330011},{"$f":"(DC145*'Default-Data'!$F$19/wind_dollar_index)/'Philippines-IO-Data'!$AP22","v":0.1121191246064213},null,"DOM_C26: Other non-metallic mineral products",0,0,null,11526210.02861453,539241.948319491,{"$f":"DI145*'SouthAfrica-IO-Data'!AR22","v":0},{"$f":"DL145*'SouthAfrica-IO-Data'!$AR22","v":3800975.6047299602},{"$f":"DM145*'SouthAfrica-IO-Data'!$AR22","v":177824.75640484315},{"$f":"DI145*'SouthAfrica-IO-Data'!AS22","v":0},{"$f":"DL145*'SouthAfrica-IO-Data'!$AS22","v":1713251.4204575445},{"$f":"DM145*'SouthAfrica-IO-Data'!$AS22","v":80152.715561761361},{"$f":"(DQ145*'Default-Data'!$F$19/wind_dollar_index)/'SouthAfrica-IO-Data'!$AT22","v":0},{"$f":"(DR145*'Default-Data'!$F$19/wind_dollar_index)/'SouthAfrica-IO-Data'!$AT22","v":106.94463052165956},{"$f":"(DS145*'Default-Data'!$F$19/wind_dollar_index)/'SouthAfrica-IO-Data'!$AT22","v":5.0032951665500516},3634.0633722554899,5262.0778390816449,{"$f":"DJ145*'SouthAfrica-IO-Data'!AR22","v":0},{"$f":"'SouthAfrica-IO-Data'!$AR22*Calculations!DW145","v":1198.3979286941862},{"$f":"'SouthAfrica-IO-Data'!$AR22*Calculations!DX145","v":1735.265056500418},{"$f":"DJ145*'SouthAfrica-IO-Data'!AS22","v":0},{"$f":"DW145*'SouthAfrica-IO-Data'!$AS22","v":540.16578034695374},{"$f":"DX145*'SouthAfrica-IO-Data'!$AS22","v":782.15322382499085},{"$f":"(EB145*'Default-Data'!$F$19/wind_dollar_index)/'SouthAfrica-IO-Data'!$AT22","v":0},{"$f":"(EC145*'Default-Data'!$F$19/wind_dollar_index)/'SouthAfrica-IO-Data'!$AT22","v":3.3718244216731072E-2},{"$f":"(ED145*'Default-Data'!$F$19/wind_dollar_index)/'SouthAfrica-IO-Data'!$AT22","v":4.882359152572574E-2},null,"OTHERCROP",0,0,null,26042.161420913137,1304027.0955153196,{"$f":"EJ145*'Zambia-IO-Data'!BO20","v":0},{"$f":"EM145*'Zambia-IO-Data'!$BO20","v":11989.501096287131},{"$f":"EN145*'Zambia-IO-Data'!$BO20","v":600358.55083494214},{"$f":"EJ145*'Zambia-IO-Data'!BN20","v":0},{"$f":"EM145*'Zambia-IO-Data'!$BN20","v":11269.574671960305},{"$f":"EN145*'Zambia-IO-Data'!$BN20","v":564309.17885978275},{"$f":"(ER145*'Default-Data'!$F$19/wind_dollar_index)/'Zambia-IO-Data'!$BP20","v":0},{"$f":"(ES145*'Default-Data'!$F$19/wind_dollar_index)/'Zambia-IO-Data'!$BP20","v":87.087727040176574},{"$f":"(ET145*'Default-Data'!$F$19/wind_dollar_index)/'Zambia-IO-Data'!$BP20","v":4360.8037716882563},242.82337190885178,6027.4320486635879,{"$f":"EK145*'Zambia-IO-Data'!BO20","v":0},{"$f":"EX145*'Zambia-IO-Data'!$BO20","v":111.79298970811901},{"$f":"EY145*'Zambia-IO-Data'!$BO20","v":2774.9579609477114},{"$f":"EK145*'Zambia-IO-Data'!BN20","v":0},{"$f":"EX145*'Zambia-IO-Data'!$BN20","v":105.08022270480346},{"$f":"EY145*'Zambia-IO-Data'!$BN20","v":2608.3317146645354},{"$f":"(FC145*'Default-Data'!$F$19/wind_dollar_index)/'Zambia-IO-Data'!$BP20","v":0},{"$f":"(FD145*'Default-Data'!$F$19/wind_dollar_index)/'Zambia-IO-Data'!$BP20","v":0.81202689707588294},{"$f":"(FE145*'Default-Data'!$F$19/wind_dollar_index)/'Zambia-IO-Data'!$BP20","v":20.156366767072331},null,"TTL_C26: Other non-metallic mineral products",0,0,null,11916942.110882893,925302.23632350937,{"$f":"FK145*CustomRegion1!C18","v":0},{"$f":"FN145*CustomRegion1!$C18","v":4484202.5862888796},{"$f":"FO145*CustomRegion1!$C18","v":348180.14911992883},{"$f":"FK145*CustomRegion1!D18","v":0},{"$f":"FN145*CustomRegion1!$D18","v":953791.18577552424},{"$f":"FO145*CustomRegion1!$D18","v":74058.018321476848},{"$f":"(FS145*'Default-Data'!$C$58/wind_dollar_index)/CustomRegion1!$E18","v":0},{"$f":"(FT145*'Default-Data'!$C$58/wind_dollar_index)/CustomRegion1!$E18","v":237.74105134001562},{"$f":"(FU145*'Default-Data'!$C$58/wind_dollar_index)/CustomRegion1!$E18","v":18.459628688631835},8319.0697390593032,8543.0427402380137,{"$f":"FL145*CustomRegion1!C18","v":0},{"$f":"FY145*CustomRegion1!$C18","v":3130.3663047368373},{"$f":"FZ145*CustomRegion1!$C18","v":3214.6446625403264},{"$f":"FL145*CustomRegion1!D18","v":0},{"$f":"FY145*CustomRegion1!$D18","v":665.82981751002205},{"$f":"FZ145*CustomRegion1!$D18","v":683.75584856633293},{"$f":"(GD145*'Default-Data'!$C$58/wind_dollar_index)/CustomRegion1!$E18","v":0},{"$f":"(GE145*'Default-Data'!$C$58/wind_dollar_index)/CustomRegion1!$E18","v":0.16596408437099805},{"$f":"(GF145*'Default-Data'!$C$58/wind_dollar_index)/CustomRegion1!$E18","v":0.17043230921228331},null,"C26 Other non-metallic mineral products",0,0,null,2868221.3327194089,1174397.6778234672,{"$f":"GL145*CustomRegion2!C22","v":0},{"$f":"GO145*CustomRegion2!$C22","v":1516088.0669115735},{"$f":"GP145*CustomRegion2!$C22","v":620764.61284412397},{"$f":"GL145*CustomRegion2!D22","v":0},{"$f":"GO145*CustomRegion2!$D22","v":425063.43578190956},{"$f":"GP145*CustomRegion2!$D22","v":174042.88372565911},{"$f":"(GT145*'Default-Data'!$C$59/wind_dollar_index)/CustomRegion2!$E22","v":0},{"$f":"(GU145*'Default-Data'!$C$59/wind_dollar_index)/CustomRegion2!$E22","v":82.815694336316923},{"$f":"(GV145*'Default-Data'!$C$59/wind_dollar_index)/CustomRegion2!$E22","v":33.909014623950306},0,0,{"$f":"GM145*CustomRegion2!C22","v":0},{"$f":"GZ145*CustomRegion2!$C22","v":0},{"$f":"HA145*CustomRegion2!$C22","v":0},{"$f":"GM145*CustomRegion2!D22","v":0},{"$f":"GZ145*CustomRegion2!$D22","v":0},{"$f":"HA145*CustomRegion2!$D22","v":0},{"$f":"(HE145*'Default-Data'!$C$59/wind_dollar_index)/CustomRegion2!$E22","v":0},{"$f":"(HF145*'Default-Data'!$C$59/wind_dollar_index)/CustomRegion2!$E22","v":0},{"$f":"(HG145*'Default-Data'!$C$59/wind_dollar_index)/CustomRegion2!$E22","v":0},null,"OTHERCROP",0,0,null,26042.161420913137,1304027.0955153196,{"$f":"HM145*CustomRegion3!D21","v":0},{"$f":"HP145*CustomRegion3!$D21","v":11989.501096287131},{"$f":"HQ145*CustomRegion3!$D21","v":600358.55083494214},{"$f":"HM145*CustomRegion3!E21","v":0},{"$f":"HP145*CustomRegion3!$E21","v":11269.574671960305},{"$f":"HQ145*CustomRegion3!$E21","v":564309.17885978275},{"$f":"(HU145*'Default-Data'!$C$60/wind_dollar_index)/CustomRegion3!$F21","v":0},{"$f":"(HV145*'Default-Data'!$C$60/wind_dollar_index)/CustomRegion3!$F21","v":87.440443731535865},{"$f":"(HW145*'Default-Data'!$C$60/wind_dollar_index)/CustomRegion3!$F21","v":4378.4655976457461},242.82337190885178,6027.4320486635879,{"$f":"HN145*CustomRegion3!D21","v":0},{"$f":"IA145*CustomRegion3!$D21","v":111.79298970811901},{"$f":"IB145*CustomRegion3!$D21","v":2774.9579609477114},{"$f":"HN145*CustomRegion3!E21","v":0},{"$f":"IA145*CustomRegion3!$E21","v":105.08022270480346},{"$f":"IB145*CustomRegion3!$E21","v":2608.3317146645354},{"$f":"(IF145*'Default-Data'!$C$60/wind_dollar_index)/CustomRegion3!$F21","v":0},{"$f":"(IG145*'Default-Data'!$C$60/wind_dollar_index)/CustomRegion3!$F21","v":0.81531571227597688},{"$f":"(IH145*'Default-Data'!$C$60/wind_dollar_index)/CustomRegion3!$F21","v":20.238002690267646}]
[null,null,null,null,null,null,null,null,null,null,null,null,null,null,null,null,null,null,null,null,null,null,null,null,null,null,null,null,null,145,"TTL_C27: Basic metals",0,0,null,4987843.5443016076,140935.41605179571,{"$f":"AF146*'Colombia-IO-Data'!AN23","v":0},{"$f":"AI146*'Colombia-IO-Data'!$AN23","v":1453034.1285409064},{"$f":"AJ146*'Colombia-IO-Data'!$AN23","v":41056.614471664361},{"$f":"AK146*'Colombia-IO-Data'!$AO23","v":0},{"$f":"AL146*'Colombia-IO-Data'!$AO23","v":379815.51314547646},{"$f":"AM146*'Colombia-IO-Data'!$AO23","v":10731.984051352025},{"$f":"(Calculations!AN146*'Default-Data'!$F$19/wind_dollar_index)/'Colombia-IO-Data'!$AP23","v":0},{"$f":"(Calculations!AO146*'Default-Data'!$F$19/wind_dollar_index)/'Colombia-IO-Data'!$AP23","v":71.545767439177055},{"$f":"(Calculations!AP146*'Default-Data'!$F$19/wind_dollar_index)/'Colombia-IO-Data'!$AP23","v":2.0215815534761914},3574.7868362573035,1560.5085060072388,{"$f":"AG146*'Colombia-IO-Data'!AN23","v":0},{"$f":"AT146*'Colombia-IO-Data'!$AN23","v":1041.3893758305392},{"$f":"AU146*'Colombia-IO-Data'!$AN23","v":454.59968761397647},{"$f":"AV146*'Colombia-IO-Data'!$AO23","v":0},{"$f":"AW146*'Colombia-IO-Data'!$AO23","v":272.21373014996487},{"$f":"AX146*'Colombia-IO-Data'!$AO23","v":118.82997806820947},{"$f":"(AY146*'Default-Data'!$F$19/wind_dollar_index)/'Colombia-IO-Data'!$AP23","v":0},{"$f":"(AZ146*'Default-Data'!$F$19/wind_dollar_index)/'Colombia-IO-Data'!$AP23","v":5.1276842459040663E-2},{"$f":"(BA146*'Default-Data'!$F$19/wind_dollar_index)/'Colombia-IO-Data'!$AP23","v":2.2383977698178646E-2},null,"DOM_C27: Basic metals",0,0,null,9796786.0427561812,178373.58438391984,{"$f":"BG146*'Mexico-IO-Data'!AQ23","v":0},{"$f":"BJ146*'Mexico-IO-Data'!$AQ23","v":3689878.8682967462},{"$f":"BK146*'Mexico-IO-Data'!$AQ23","v":67182.943141565629},{"$f":"BG146*'Mexico-IO-Data'!AR23","v":0},{"$f":"BJ146*'Mexico-IO-Data'!$AR23","v":452232.3097222186},{"$f":"BK146*'Mexico-IO-Data'!$AR23","v":8233.9552693422775},{"$f":"(BO146*'Default-Data'!$F$19/wind_dollar_index)/'Mexico-IO-Data'!$AS23","v":0},{"$f":"(BP146*'Default-Data'!$F$19/wind_dollar_index)/'Mexico-IO-Data'!$AS23","v":34.896838037346548},{"$f":"(BQ146*'Default-Data'!$F$19/wind_dollar_index)/'Mexico-IO-Data'!$AS23","v":0.63537920060928454},4880.1151155298267,1427.1723547345946,{"$f":"BH146*'Mexico-IO-Data'!AQ23","v":0},{"$f":"BU146*'Mexico-IO-Data'!$AQ23","v":1838.0552112765165},{"$f":"BV146*'Mexico-IO-Data'!$AQ23","v":537.532726566615},{"$f":"BH146*'Mexico-IO-Data'!AR23","v":0},{"$f":"BX146*'Mexico-IO-Data'!$AR23","v":84.84700492230877},{"$f":"BY146*'Mexico-IO-Data'!$AR23","v":24.813205619229016},{"$f":"(CA146*'Default-Data'!$F$19/wind_dollar_index)/'Mexico-IO-Data'!$AS23","v":6.5472813973563009E-3},{"$f":"(CB146*'Default-Data'!$F$19/wind_dollar_index)/'Mexico-IO-Data'!$AS23","v":1.9147292200627781E-3},{"$f":"(CC146*'Default-Data'!$F$19/wind_dollar_index)/'Mexico-IO-Data'!$AS23","v":5.0522577356053384E-7},null,"TTL_C27: Basic metals",0,0,null,11923878.793211177,356116.63798588887,{"$f":"CH146*'Philippines-IO-Data'!AN23","v":0},{"$f":"CK146*'Philippines-IO-Data'!$AN23","v":2447732.237145937},{"$f":"CL146*'Philippines-IO-Data'!$AN23","v":73103.575614872636},{"$f":"CH146*'Philippines-IO-Data'!AO23","v":0},{"$f":"CK146*'Philippines-IO-Data'!$AO23","v":557081.99728604604},{"$f":"CL146*'Philippines-IO-Data'!$AO23","v":16637.72094604998},{"$f":"(CP146*'Default-Data'!$F$19/wind_dollar_index)/'Philippines-IO-Data'!$AP23","v":0},{"$f":"(CQ146*'Default-Data'!$F$19/wind_dollar_index)/'Philippines-IO-Data'!$AP23","v":138.27990357364649},{"$f":"(CR146*'Default-Data'!$F$19/wind_dollar_index)/'Philippines-IO-Data'!$AP23","v":4.1298452639166943},5503.3947465964966,3266.3846919561756,{"$f":"CI146*'Philippines-IO-Data'!AN23","v":0},{"$f":"CV146*'Philippines-IO-Data'!$AN23","v":1129.7361344073222},{"$f":"CW146*'Philippines-IO-Data'!$AN23","v":670.52301084888541},{"$f":"CI146*'Philippines-IO-Data'!AO23","v":0},{"$f":"CV146*'Philippines-IO-Data'!$AO23","v":257.11785489072878},{"$f":"CW146*'Philippines-IO-Data'!$AO23","v":152.60504904960297},{"$f":"(DA146*'Default-Data'!$F$19/wind_dollar_index)/'Philippines-IO-Data'!$AP23","v":0},{"$f":"(DB146*'Default-Data'!$F$19/wind_dollar_index)/'Philippines-IO-Data'!$AP23","v":6.3822260196099476E-2},{"$f":"(DC146*'Default-Data'!$F$19/wind_dollar_index)/'Philippines-IO-Data'!$AP23","v":3.7879902007666742E-2},null,"DOM_C27: Basic metals",0,0,null,2756772.7325986507,132625.30612493306,{"$f":"DI146*'SouthAfrica-IO-Data'!AR23","v":0},{"$f":"DL146*'SouthAfrica-IO-Data'!$AR23","v":439806.91545886843},{"$f":"DM146*'SouthAfrica-IO-Data'!$AR23","v":21158.627299542062},{"$f":"DI146*'SouthAfrica-IO-Data'!AS23","v":0},{"$f":"DL146*'SouthAfrica-IO-Data'!$AS23","v":283131.65258632699},{"$f":"DM146*'SouthAfrica-IO-Data'!$AS23","v":13621.152608587796},{"$f":"(DQ146*'Default-Data'!$F$19/wind_dollar_index)/'SouthAfrica-IO-Data'!$AT23","v":0},{"$f":"(DR146*'Default-Data'!$F$19/wind_dollar_index)/'SouthAfrica-IO-Data'!$AT23","v":17.67365233921425},{"$f":"(DS146*'Default-Data'!$F$19/wind_dollar_index)/'SouthAfrica-IO-Data'!$AT23","v":0.85025998847006912},3127.4300573017886,1294.19583627784,{"$f":"DJ146*'SouthAfrica-IO-Data'!AR23","v":0},{"$f":"'SouthAfrica-IO-Data'!$AR23*Calculations!DW146","v":498.94042789616532},{"$f":"'SouthAfrica-IO-Data'!$AR23*Calculations!DX146","v":206.47196340211875},{"$f":"DJ146*'SouthAfrica-IO-Data'!AS23","v":0},{"$f":"DW146*'SouthAfrica-IO-Data'!$AS23","v":321.1996513174015},{"$f":"DX146*'SouthAfrica-IO-Data'!$AS23","v":132.91912008657965},{"$f":"(EB146*'Default-Data'!$F$19/wind_dollar_index)/'SouthAfrica-IO-Data'!$AT23","v":0},{"$f":"(EC146*'Default-Data'!$F$19/wind_dollar_index)/'SouthAfrica-IO-Data'!$AT23","v":2.0049934074854964E-2},{"$f":"(ED146*'Default-Data'!$F$19/wind_dollar_index)/'SouthAfrica-IO-Data'!$AT23","v":8.2970812206459906E-3},null,"LIVEST",0,0,null,33710.644707697676,2328419.0264678234,{"$f":"EJ146*'Zambia-IO-Data'!BO21","v":0},{"$f":"EM146*'Zambia-IO-Data'!$BO21","v":10142.245830895872},{"$f":"EN146*'Zambia-IO-Data'!$BO21","v":700532.37986218149},{"$f":"EJ146*'Zambia-IO-Data'!BN21","v":0},{"$f":"EM146*'Zambia-IO-Data'!$BN21","v":6523.0926914382053},{"$f":"EN146*'Zambia-IO-Data'!$BN21","v":450554.81038277782},{"$f":"(ER146*'Default-Data'!$F$19/wind_dollar_index)/'Zambia-IO-Data'!$BP21","v":0},{"$f":"(ES146*'Default-Data'!$F$19/wind_dollar_index)/'Zambia-IO-Data'!$BP21","v":50.408407797605491},{"$f":"(ET146*'Default-Data'!$F$19/wind_dollar_index)/'Zambia-IO-Data'!$BP21","v":3481.7458054456088},303.26746149165643,10442.209967897134,{"$f":"EK146*'Zambia-IO-Data'!BO21","v":0},{"$f":"EX146*'Zambia-IO-Data'!$BO21","v":91.241599608380625},{"$f":"EY146*'Zambia-IO-Data'!$BO21","v":3141.6622681221079},{"$f":"EK146*'Zambia-IO-Data'!BN21","v":0},{"$f":"EX146*'Zambia-IO-Data'!$BN21","v":58.682999947358425},{"$f":"EY146*'Zambia-IO-Data'!$BN21","v":2020.5933204386058},{"$f":"(FC146*'Default-Data'!$F$19/wind_dollar_index)/'Zambia-IO-Data'!$BP21","v":0},{"$f":"(FD146*'Default-Data'!$F$19/wind_dollar_index)/'Zambia-IO-Data'!$BP21","v":0.45348375871094698},{"$f":"(FE146*'Default-Data'!$F$19/wind_dollar_index)/'Zambia-IO-Data'!$BP21","v":15.614509391147424},null,"TTL_C27: Basic metals",0,0,null,24280630.644042011,1570774.9894494712,{"$f":"FK146*CustomRegion1!C19","v":0},{"$f":"FN146*CustomRegion1!$C19","v":4984324.59741983},{"$f":"FO146*CustomRegion1!$C19","v":322448.47885967157},{"$f":"FK146*CustomRegion1!D19","v":0},{"$f":"FN146*CustomRegion1!$D19","v":1134387.7650155968},{"$f":"FO146*CustomRegion1!$D19","v":73386.394107568965},{"$f":"(FS146*'Default-Data'!$C$58/wind_dollar_index)/CustomRegion1!$E19","v":0},{"$f":"(FT146*'Default-Data'!$C$58/wind_dollar_index)/CustomRegion1!$E19","v":282.75637676686449},{"$f":"(FU146*'Default-Data'!$C$58/wind_dollar_index)/CustomRegion1!$E19","v":18.292220298723048},37339.382614972114,14502.502364505359,{"$f":"FL146*CustomRegion1!C19","v":0},{"$f":"FY146*CustomRegion1!$C19","v":7665.0234480603986},{"$f":"FZ146*CustomRegion1!$C19","v":2977.0717375201566},{"$f":"FL146*CustomRegion1!D19","v":0},{"$f":"FY146*CustomRegion1!$D19","v":1744.4908829851213},{"$f":"FZ146*CustomRegion1!$D19","v":677.55494021492825},{"$f":"(GD146*'Default-Data'!$C$58/wind_dollar_index)/CustomRegion1!$E19","v":0},{"$f":"(GE146*'Default-Data'!$C$58/wind_dollar_index)/CustomRegion1!$E19","v":0.4348300789094981},{"$f":"(GF146*'Default-Data'!$C$58/wind_dollar_index)/CustomRegion1!$E19","v":0.16888667690543058},null,"C27 Basic metals",0,0,null,20088603.327349581,2111362.0914064236,{"$f":"GL146*CustomRegion2!C23","v":0},{"$f":"GO146*CustomRegion2!$C23","v":7255763.6476236712},{"$f":"GP146*CustomRegion2!$C23","v":762598.77604037605},{"$f":"GL146*CustomRegion2!D23","v":0},{"$f":"GO146*CustomRegion2!$D23","v":1774171.9763999914},{"$f":"GP146*CustomRegion2!$D23","v":186469.88013878898},{"$f":"(GT146*'Default-Data'!$C$59/wind_dollar_index)/CustomRegion2!$E23","v":0},{"$f":"(GU146*'Default-Data'!$C$59/wind_dollar_index)/CustomRegion2!$E23","v":136.90528248381736},{"$f":"(GV146*'Default-Data'!$C$59/wind_dollar_index)/CustomRegion2!$E23","v":14.389085136450696},0,0,{"$f":"GM146*CustomRegion2!C23","v":0},{"$f":"GZ146*CustomRegion2!$C23","v":0},{"$f":"HA146*CustomRegion2!$C23","v":0},{"$f":"GM146*CustomRegion2!D23","v":0},{"$f":"GZ146*CustomRegion2!$D23","v":0},{"$f":"HA146*CustomRegion2!$D23","v":0},{"$f":"(HE146*'Default-Data'!$C$59/wind_dollar_index)/CustomRegion2!$E23","v":0},{"$f":"(HF146*'Default-Data'!$C$59/wind_dollar_index)/CustomRegion2!$E23","v":0},{"$f":"(HG146*'Default-Data'!$C$59/wind_dollar_index)/CustomRegion2!$E23","v":0},null,"LIVEST",0,0,null,33710.644707697676,2328419.0264678234,{"$f":"HM146*CustomRegion3!D22","v":0},{"$f":"HP146*CustomRegion3!$D22","v":10142.245830895872},{"$f":"HQ146*CustomRegion3!$D22","v":700532.37986218149},{"$f":"HM146*CustomRegion3!E22","v":0},{"$f":"HP146*CustomRegion3!$E22","v":6523.0926914382053},{"$f":"HQ146*CustomRegion3!$E22","v":450554.81038277782},{"$f":"(HU146*'Default-Data'!$C$60/wind_dollar_index)/CustomRegion3!$F22","v":0},{"$f":"(HV146*'Default-Data'!$C$60/wind_dollar_index)/CustomRegion3!$F22","v":50.612568445946437},{"$f":"(HW146*'Default-Data'!$C$60/wind_dollar_index)/CustomRegion3!$F22","v":3495.8473316007735},303.26746149165643,10442.209967897134,{"$f":"HN146*CustomRegion3!D22","v":0},{"$f":"IA146*CustomRegion3!$D22","v":91.241599608380625},{"$f":"IB146*CustomRegion3!$D22","v":3141.6622681221079},{"$f":"HN146*CustomRegion3!E22","v":0},{"$f":"IA146*CustomRegion3!$E22","v":58.682999947358425},{"$f":"IB146*CustomRegion3!$E22","v":2020.5933204386058},{"$f":"(IF146*'Default-Data'!$C$60/wind_dollar_index)/CustomRegion3!$F22","v":0},{"$f":"(IG146*'Default-Data'!$C$60/wind_dollar_index)/CustomRegion3!$F22","v":0.45532042727945737},{"$f":"(IH146*'Default-Data'!$C$60/wind_dollar_index)/CustomRegion3!$F22","v":15.677750197594277}]
[null,null,null,null,null,null,null,null,null,null,null,null,null,null,null,null,null,null,null,null,null,null,null,null,null,null,null,null,null,146,"TTL_C28: Fabricated metal products",{"$f":"'Wind-Inputs'!B15*'Wind-Inputs'!C15","v":5605118.3727909289},0,null,3688436.4809329808,167227.56464808807,{"$f":"AF147*'Colombia-IO-Data'!AN24","v":1983530.4327427989},{"$f":"AI147*'Colombia-IO-Data'!$AN24","v":1305258.0735286844},{"$f":"AJ147*'Colombia-IO-Data'!$AN24","v":59178.22633026469},{"$f":"AK147*'Colombia-IO-Data'!$AO24","v":520402.58854623104},{"$f":"AL147*'Colombia-IO-Data'!$AO24","v":342449.84043220506},{"$f":"AM147*'Colombia-IO-Data'!$AO24","v":15526.105200846094},{"$f":"(Calculations!AN147*'Default-Data'!$F$19/wind_dollar_index)/'Colombia-IO-Data'!$AP24","v":98.028124934996001},{"$f":"(Calculations!AO147*'Default-Data'!$F$19/wind_dollar_index)/'Colombia-IO-Data'!$AP24","v":64.507203616408248},{"$f":"(Calculations!AP147*'Default-Data'!$F$19/wind_dollar_index)/'Colombia-IO-Data'!$AP24","v":2.9246491348826615},4556.8273344345835,1851.6285287462488,{"$f":"AG147*'Colombia-IO-Data'!AN24","v":0},{"$f":"AT147*'Colombia-IO-Data'!$AN24","v":1612.5628565636691},{"$f":"AU147*'Colombia-IO-Data'!$AN24","v":655.25137787129358},{"$f":"AV147*'Colombia-IO-Data'!$AO24","v":0},{"$f":"AW147*'Colombia-IO-Data'!$AO24","v":423.07487240759338},{"$f":"AX147*'Colombia-IO-Data'!$AO24","v":171.91292231457382},{"$f":"(AY147*'Default-Data'!$F$19/wind_dollar_index)/'Colombia-IO-Data'!$AP24","v":0},{"$f":"(AZ147*'Default-Data'!$F$19/wind_dollar_index)/'Colombia-IO-Data'!$AP24","v":7.9694523743793211E-2},{"$f":"(BA147*'Default-Data'!$F$19/wind_dollar_index)/'Colombia-IO-Data'!$AP24","v":3.2383200617181779E-2},null,"DOM_C28: Fabricated metal products",5605118.3727909289,0,null,3354507.0955086667,305906.52182396315,{"$f":"BG147*'Mexico-IO-Data'!AQ24","v":2060013.9603928267},{"$f":"BJ147*'Mexico-IO-Data'!$AQ24","v":1232860.9294907397},{"$f":"BK147*'Mexico-IO-Data'!$AQ24","v":112427.90314503184},{"$f":"BG147*'Mexico-IO-Data'!AR24","v":747931.46847088786},{"$f":"BJ147*'Mexico-IO-Data'!$AR24","v":447616.13423171028},{"$f":"BK147*'Mexico-IO-Data'!$AR24","v":40819.318855650614},{"$f":"(BO147*'Default-Data'!$F$19/wind_dollar_index)/'Mexico-IO-Data'!$AS24","v":128.17348568617541},{"$f":"(BP147*'Default-Data'!$F$19/wind_dollar_index)/'Mexico-IO-Data'!$AS24","v":76.708258165878249},{"$f":"(BQ147*'Default-Data'!$F$19/wind_dollar_index)/'Mexico-IO-Data'!$AS24","v":6.995232319560853},6450.9948496734632,2447.5671809145788,{"$f":"BH147*'Mexico-IO-Data'!AQ24","v":0},{"$f":"BU147*'Mexico-IO-Data'!$AQ24","v":2370.8936305893862},{"$f":"BV147*'Mexico-IO-Data'!$AQ24","v":899.53899745614081},{"$f":"BH147*'Mexico-IO-Data'!AR24","v":0},{"$f":"BX147*'Mexico-IO-Data'!$AR24","v":316.36547826054937},{"$f":"BY147*'Mexico-IO-Data'!$AR24","v":120.03199193440064},{"$f":"(CA147*'Default-Data'!$F$19/wind_dollar_index)/'Mexico-IO-Data'!$AS24","v":5.4215750785737801E-2},{"$f":"(CB147*'Default-Data'!$F$19/wind_dollar_index)/'Mexico-IO-Data'!$AS24","v":2.0569957875339561E-2},{"$f":"(CC147*'Default-Data'!$F$19/wind_dollar_index)/'Mexico-IO-Data'!$AS24","v":9.2909872765588805E-6},null,"TTL_C28: Fabricated metal products",{"$f":"'Wind-Inputs'!B15*'Wind-Inputs'!C15","v":5605118.3727909289},0,null,2456069.2459654314,223613.77187905833,{"$f":"CH147*'Philippines-IO-Data'!AN24","v":1411582.3981333643},{"$f":"CK147*'Philippines-IO-Data'!$AN24","v":618531.82852143922},{"$f":"CL147*'Philippines-IO-Data'!$AN24","v":56314.468914154},{"$f":"CH147*'Philippines-IO-Data'!AO24","v":432717.80729654781},{"$f":"CK147*'Philippines-IO-Data'!$AO24","v":189609.71526341909},{"$f":"CL147*'Philippines-IO-Data'!$AO24","v":17263.089664355564},{"$f":"(CP147*'Default-Data'!$F$19/wind_dollar_index)/'Philippines-IO-Data'!$AP24","v":107.40999881358968},{"$f":"(CQ147*'Default-Data'!$F$19/wind_dollar_index)/'Philippines-IO-Data'!$AP24","v":47.065267359177163},{"$f":"(CR147*'Default-Data'!$F$19/wind_dollar_index)/'Philippines-IO-Data'!$AP24","v":4.2850754212123139},6836.506505818903,2051.0375631629013,{"$f":"CI147*'Philippines-IO-Data'!AN24","v":0},{"$f":"CV147*'Philippines-IO-Data'!$AN24","v":1721.6928540142626},{"$f":"CW147*'Philippines-IO-Data'!$AN24","v":516.52941642149528},{"$f":"CI147*'Philippines-IO-Data'!AO24","v":0},{"$f":"CV147*'Philippines-IO-Data'!$AO24","v":527.78155750054907},{"$f":"CW147*'Philippines-IO-Data'!$AO24","v":158.34107649233937},{"$f":"(DA147*'Default-Data'!$F$19/wind_dollar_index)/'Philippines-IO-Data'!$AP24","v":0},{"$f":"(DB147*'Default-Data'!$F$19/wind_dollar_index)/'Philippines-IO-Data'!$AP24","v":0.13100689527694589},{"$f":"(DC147*'Default-Data'!$F$19/wind_dollar_index)/'Philippines-IO-Data'!$AP24","v":3.9303709141161491E-2},null,"DOM_C28: Fabricated metal products",5605118.3727909289,0,null,9498155.8103623353,788900.40510490537,{"$f":"DI147*'SouthAfrica-IO-Data'!AR24","v":1473001.4348137812},{"$f":"DL147*'SouthAfrica-IO-Data'!$AR24","v":2496075.2309290133},{"$f":"DM147*'SouthAfrica-IO-Data'!$AR24","v":207319.69449310386},{"$f":"DI147*'SouthAfrica-IO-Data'!AS24","v":1368241.197225468},{"$f":"DL147*'SouthAfrica-IO-Data'!$AS24","v":2318553.7241264856},{"$f":"DM147*'SouthAfrica-IO-Data'!$AS24","v":192575.06496422645},{"$f":"(DQ147*'Default-Data'!$F$19/wind_dollar_index)/'SouthAfrica-IO-Data'!$AT24","v":85.408392226934609},{"$f":"(DR147*'Default-Data'!$F$19/wind_dollar_index)/'SouthAfrica-IO-Data'!$AT24","v":144.72882871161136},{"$f":"(DS147*'Default-Data'!$F$19/wind_dollar_index)/'SouthAfrica-IO-Data'!$AT24","v":12.020926365135409},13708.992504726028,7698.3167794757264,{"$f":"DJ147*'SouthAfrica-IO-Data'!AR24","v":0},{"$f":"'SouthAfrica-IO-Data'!$AR24*Calculations!DW147","v":3602.6653294849202},{"$f":"'SouthAfrica-IO-Data'!$AR24*Calculations!DX147","v":2023.0851353407663},{"$f":"DJ147*'SouthAfrica-IO-Data'!AS24","v":0},{"$f":"DW147*'SouthAfrica-IO-Data'!$AS24","v":3346.4428527459663},{"$f":"DX147*'SouthAfrica-IO-Data'!$AS24","v":1879.2028047261481},{"$f":"(EB147*'Default-Data'!$F$19/wind_dollar_index)/'SouthAfrica-IO-Data'!$AT24","v":0},{"$f":"(EC147*'Default-Data'!$F$19/wind_dollar_index)/'SouthAfrica-IO-Data'!$AT24","v":0.20889175410879771},{"$f":"(ED147*'Default-Data'!$F$19/wind_dollar_index)/'SouthAfrica-IO-Data'!$AT24","v":0.11730365270792109},null,"FISH",0,0,null,12953.260135889326,1184973.3716424827,{"$f":"EJ147*'Zambia-IO-Data'!BO22","v":0},{"$f":"EM147*'Zambia-IO-Data'!$BO22","v":1181.9692298192663},{"$f":"EN147*'Zambia-IO-Data'!$BO22","v":108127.37864778811},{"$f":"EJ147*'Zambia-IO-Data'!BN22","v":0},{"$f":"EM147*'Zambia-IO-Data'!$BN22","v":502.50924836223084},{"$f":"EN147*'Zambia-IO-Data'!$BN22","v":45969.900400864615},{"$f":"(ER147*'Default-Data'!$F$19/wind_dollar_index)/'Zambia-IO-Data'!$BP22","v":0},{"$f":"(ES147*'Default-Data'!$F$19/wind_dollar_index)/'Zambia-IO-Data'!$BP22","v":3.8832333544422868},{"$f":"(ET147*'Default-Data'!$F$19/wind_dollar_index)/'Zambia-IO-Data'!$BP22","v":355.24092565227403},74.6925764994959,5611.5968327173841,{"$f":"EK147*'Zambia-IO-Data'!BO22","v":0},{"$f":"EX147*'Zambia-IO-Data'!$BO22","v":6.8156067424075166},{"$f":"EY147*'Zambia-IO-Data'!$BO22","v":512.05138450404627},{"$f":"EK147*'Zambia-IO-Data'!BN22","v":0},{"$f":"EX147*'Zambia-IO-Data'!$BN22","v":2.8976265497059113},{"$f":"EY147*'Zambia-IO-Data'!$BN22","v":217.69649315601308},{"$f":"(FC147*'Default-Data'!$F$19/wind_dollar_index)/'Zambia-IO-Data'!$BP22","v":0},{"$f":"(FD147*'Default-Data'!$F$19/wind_dollar_index)/'Zambia-IO-Data'!$BP22","v":2.2391946224290114E-2},{"$f":"(FE147*'Default-Data'!$F$19/wind_dollar_index)/'Zambia-IO-Data'!$BP22","v":1.6822899998830863},null,"TTL_C28: Fabricated metal products",5605118.3727909289,0,null,4142367.9060709029,559855.04704021476,{"$f":"FK147*CustomRegion1!C20","v":1411582.3981333643},{"$f":"FN147*CustomRegion1!$C20","v":1043206.090202647},{"$f":"FO147*CustomRegion1!$C20","v":140992.83500316032},{"$f":"FK147*CustomRegion1!D20","v":432717.80729654781},{"$f":"FN147*CustomRegion1!$D20","v":319792.77476669493},{"$f":"FO147*CustomRegion1!$D20","v":43221.07621047803},{"$f":"(FS147*'Default-Data'!$C$58/wind_dollar_index)/CustomRegion1!$E20","v":107.85881435524111},{"$f":"(FT147*'Default-Data'!$C$58/wind_dollar_index)/CustomRegion1!$E20","v":79.711231994827969},{"$f":"(FU147*'Default-Data'!$C$58/wind_dollar_index)/CustomRegion1!$E20","v":10.773242877025618},14953.02240372497,5168.9765867271835,{"$f":"FL147*CustomRegion1!C20","v":0},{"$f":"FY147*CustomRegion1!$C20","v":3765.7408497301908},{"$f":"FZ147*CustomRegion1!$C20","v":1301.745276532758},{"$f":"FL147*CustomRegion1!D20","v":0},{"$f":"FY147*CustomRegion1!$D20","v":1154.3804495558279},{"$f":"FZ147*CustomRegion1!$D20","v":399.04745374040471},{"$f":"(GD147*'Default-Data'!$C$58/wind_dollar_index)/CustomRegion1!$E20","v":0},{"$f":"(GE147*'Default-Data'!$C$58/wind_dollar_index)/CustomRegion1!$E20","v":0.28773973361959021},{"$f":"(GF147*'Default-Data'!$C$58/wind_dollar_index)/CustomRegion1!$E20","v":9.9466175198150569E-2},null,"C28 Fabricated metal products except machinery and equipment",5605118.3727909289,0,null,6832303.0368409641,1572949.8004051391,{"$f":"GL147*CustomRegion2!C24","v":1939379.1868369388},{"$f":"GO147*CustomRegion2!$C24","v":2363986.8824419593},{"$f":"GP147*CustomRegion2!$C24","v":544242.94046195142},{"$f":"GL147*CustomRegion2!D24","v":864237.93058188271},{"$f":"GO147*CustomRegion2!$D24","v":1053454.190429101},{"$f":"GP147*CustomRegion2!$D24","v":242528.84417397989},{"$f":"(GT147*'Default-Data'!$C$59/wind_dollar_index)/CustomRegion2!$E24","v":148.10499717488284},{"$f":"(GU147*'Default-Data'!$C$59/wind_dollar_index)/CustomRegion2!$E24","v":180.53110651174794},{"$f":"(GV147*'Default-Data'!$C$59/wind_dollar_index)/CustomRegion2!$E24","v":41.5623204098789},0,0,{"$f":"GM147*CustomRegion2!C24","v":0},{"$f":"GZ147*CustomRegion2!$C24","v":0},{"$f":"HA147*CustomRegion2!$C24","v":0},{"$f":"GM147*CustomRegion2!D24","v":0},{"$f":"GZ147*CustomRegion2!$D24","v":0},{"$f":"HA147*CustomRegion2!$D24","v":0},{"$f":"(HE147*'Default-Data'!$C$59/wind_dollar_index)/CustomRegion2!$E24","v":0},{"$f":"(HF147*'Default-Data'!$C$59/wind_dollar_index)/CustomRegion2!$E24","v":0},{"$f":"(HG147*'Default-Data'!$C$59/wind_dollar_index)/CustomRegion2!$E24","v":0},null,"FISH",0,0,null,12953.260135889326,1184973.3716424827,{"$f":"HM147*CustomRegion3!D23","v":0},{"$f":"HP147*CustomRegion3!$D23","v":1181.9692298192663},{"$f":"HQ147*CustomRegion3!$D23","v":108127.37864778811},{"$f":"HM147*CustomRegion3!E23","v":0},{"$f":"HP147*CustomRegion3!$E23","v":502.50924836223084},{"$f":"HQ147*CustomRegion3!$E23","v":45969.900400864615},{"$f":"(HU147*'Default-Data'!$C$60/wind_dollar_index)/CustomRegion3!$F23","v":0},{"$f":"(HV147*'Default-Data'!$C$60/wind_dollar_index)/CustomRegion3!$F23","v":3.898960957712069},{"$f":"(HW147*'Default-Data'!$C$60/wind_dollar_index)/CustomRegion3!$F23","v":356.679697890223},74.6925764994959,5611.5968327173841,{"$f":"HN147*CustomRegion3!D23","v":0},{"$f":"IA147*CustomRegion3!$D23","v":6.8156067424075166},{"$f":"IB147*CustomRegion3!$D23","v":512.05138450404627},{"$f":"HN147*CustomRegion3!E23","v":0},{"$f":"IA147*CustomRegion3!$E23","v":2.8976265497059113},{"$f":"IB147*CustomRegion3!$E23","v":217.69649315601308},{"$f":"(IF147*'Default-Data'!$C$60/wind_dollar_index)/CustomRegion3!$F23","v":0},{"$f":"(IG147*'Default-Data'!$C$60/wind_dollar_index)/CustomRegion3!$F23","v":2.2482636536849118E-2},{"$f":"(IH147*'Default-Data'!$C$60/wind_dollar_index)/CustomRegion3!$F23","v":1.6891034945376413}]
[null,null,null,null,null,null,null,null,null,null,null,null,null,null,null,null,null,null,null,null,null,null,null,null,null,null,null,null,null,147,"TTL_C29: Machinery and equipment, nec",0,0,null,626382.43201610225,117780.92017767706,{"$f":"AF148*'Colombia-IO-Data'!AN25","v":0},{"$f":"AI148*'Colombia-IO-Data'!$AN25","v":220320.43297545961},{"$f":"AJ148*'Colombia-IO-Data'!$AN25","v":41427.635903311508},{"$f":"AK148*'Colombia-IO-Data'!$AO25","v":0},{"$f":"AL148*'Colombia-IO-Data'!$AO25","v":112621.00461350735},{"$f":"AM148*'Colombia-IO-Data'!$AO25","v":21176.52870949663},{"$f":"(Calculations!AN148*'Default-Data'!$F$19/wind_dollar_index)/'Colombia-IO-Data'!$AP25","v":0},{"$f":"(Calculations!AO148*'Default-Data'!$F$19/wind_dollar_index)/'Colombia-IO-Data'!$AP25","v":21.214394688924372},{"$f":"(Calculations!AP148*'Default-Data'!$F$19/wind_dollar_index)/'Colombia-IO-Data'!$AP25","v":3.9890182095811175},952.00702153866962,1304.1301677860638,{"$f":"AG148*'Colombia-IO-Data'!AN25","v":0},{"$f":"AT148*'Colombia-IO-Data'!$AN25","v":334.853898290183},{"$f":"AU148*'Colombia-IO-Data'!$AN25","v":458.70782534271035},{"$f":"AV148*'Colombia-IO-Data'!$AO25","v":0},{"$f":"AW148*'Colombia-IO-Data'!$AO25","v":171.1669767297077},{"$f":"AX148*'Colombia-IO-Data'!$AO25","v":234.47728118765758},{"$f":"(AY148*'Default-Data'!$F$19/wind_dollar_index)/'Colombia-IO-Data'!$AP25","v":0},{"$f":"(AZ148*'Default-Data'!$F$19/wind_dollar_index)/'Colombia-IO-Data'!$AP25","v":3.2242687005994253E-2},{"$f":"(BA148*'Default-Data'!$F$19/wind_dollar_index)/'Colombia-IO-Data'!$AP25","v":4.41684355930907E-2},null,"DOM_C29: Machinery and equipment, nec",0,0,null,324959.53303271602,53702.626846481115,{"$f":"BG148*'Mexico-IO-Data'!AQ25","v":0},{"$f":"BJ148*'Mexico-IO-Data'!$AQ25","v":115183.72121113801},{"$f":"BK148*'Mexico-IO-Data'!$AQ25","v":19035.195986597198},{"$f":"BG148*'Mexico-IO-Data'!AR25","v":0},{"$f":"BJ148*'Mexico-IO-Data'!$AR25","v":41190.860790904342},{"$f":"BK148*'Mexico-IO-Data'!$AR25","v":6807.178130443036},{"$f":"(BO148*'Default-Data'!$F$19/wind_dollar_index)/'Mexico-IO-Data'!$AS25","v":0},{"$f":"(BP148*'Default-Data'!$F$19/wind_dollar_index)/'Mexico-IO-Data'!$AS25","v":3.6826741450531748},{"$f":"(BQ148*'Default-Data'!$F$19/wind_dollar_index)/'Mexico-IO-Data'!$AS25","v":0.60859662605763176},715.54510072515143,429.67631489069129,{"$f":"BH148*'Mexico-IO-Data'!AQ25","v":0},{"$f":"BU148*'Mexico-IO-Data'!$AQ25","v":253.62895689422282},{"$f":"BV148*'Mexico-IO-Data'!$AQ25","v":152.30116932872329},{"$f":"BH148*'Mexico-IO-Data'!AR25","v":0},{"$f":"BX148*'Mexico-IO-Data'!$AR25","v":32.149218576457073},{"$f":"BY148*'Mexico-IO-Data'!$AR25","v":19.305223039817086},{"$f":"(CA148*'Default-Data'!$F$19/wind_dollar_index)/'Mexico-IO-Data'!$AS25","v":2.8743049735276568E-3},{"$f":"(CB148*'Default-Data'!$F$19/wind_dollar_index)/'Mexico-IO-Data'!$AS25","v":1.7259859198892537E-3},{"$f":"(CC148*'Default-Data'!$F$19/wind_dollar_index)/'Mexico-IO-Data'!$AS25","v":2.5697760153012954E-7},null,"TTL_C29: Machinery and equipment, nec",0,0,null,460433.85470995423,53713.829202905472,{"$f":"CH148*'Philippines-IO-Data'!AN25","v":0},{"$f":"CK148*'Philippines-IO-Data'!$AN25","v":168457.73934233954},{"$f":"CL148*'Philippines-IO-Data'!$AN25","v":19652.139273386001},{"$f":"CH148*'Philippines-IO-Data'!AO25","v":0},{"$f":"CK148*'Philippines-IO-Data'!$AO25","v":50117.415940736639},{"$f":"CL148*'Philippines-IO-Data'!$AO25","v":5846.6559146210002},{"$f":"(CP148*'Default-Data'!$F$19/wind_dollar_index)/'Philippines-IO-Data'!$AP25","v":0},{"$f":"(CQ148*'Default-Data'!$F$19/wind_dollar_index)/'Philippines-IO-Data'!$AP25","v":12.440235867264828},{"$f":"(CR148*'Default-Data'!$F$19/wind_dollar_index)/'Philippines-IO-Data'!$AP25","v":1.4512675333985932},2700.1801785018542,492.67574367494126,{"$f":"CI148*'Philippines-IO-Data'!AN25","v":0},{"$f":"CV148*'Philippines-IO-Data'!$AN25","v":987.90791344818842},{"$f":"CW148*'Philippines-IO-Data'!$AN25","v":180.25399557243341},{"$f":"CI148*'Philippines-IO-Data'!AO25","v":0},{"$f":"CV148*'Philippines-IO-Data'!$AO25","v":293.90986726238287},{"$f":"CW148*'Philippines-IO-Data'!$AO25","v":53.626888894221366},{"$f":"(DA148*'Default-Data'!$F$19/wind_dollar_index)/'Philippines-IO-Data'!$AP25","v":0},{"$f":"(DB148*'Default-Data'!$F$19/wind_dollar_index)/'Philippines-IO-Data'!$AP25","v":7.2954840225283937E-2},{"$f":"(DC148*'Default-Data'!$F$19/wind_dollar_index)/'Philippines-IO-Data'!$AP25","v":1.3311363607824365E-2},null,"DOM_C29: Machinery and equipment, nec",0,0,null,333461.28210171586,127433.26727832732,{"$f":"DI148*'SouthAfrica-IO-Data'!AR25","v":0},{"$f":"DL148*'SouthAfrica-IO-Data'!$AR25","v":101336.26171669457},{"$f":"DM148*'SouthAfrica-IO-Data'!$AR25","v":38725.967953278072},{"$f":"DI148*'SouthAfrica-IO-Data'!AS25","v":0},{"$f":"DL148*'SouthAfrica-IO-Data'!$AS25","v":81133.885787768304},{"$f":"DM148*'SouthAfrica-IO-Data'!$AS25","v":31005.567086400759},{"$f":"(DQ148*'Default-Data'!$F$19/wind_dollar_index)/'SouthAfrica-IO-Data'!$AT25","v":0},{"$f":"(DR148*'Default-Data'!$F$19/wind_dollar_index)/'SouthAfrica-IO-Data'!$AT25","v":5.0645418032352518},{"$f":"(DS148*'Default-Data'!$F$19/wind_dollar_index)/'SouthAfrica-IO-Data'!$AT25","v":1.935430419946252},3609.4427539598414,1243.5304297019798,{"$f":"DJ148*'SouthAfrica-IO-Data'!AR25","v":0},{"$f":"'SouthAfrica-IO-Data'!$AR25*Calculations!DW148","v":1096.8812728763248},{"$f":"'SouthAfrica-IO-Data'!$AR25*Calculations!DX148","v":377.89912004991078},{"$f":"DJ148*'SouthAfrica-IO-Data'!AS25","v":0},{"$f":"DW148*'SouthAfrica-IO-Data'!$AS25","v":878.20725186301559},{"$f":"DX148*'SouthAfrica-IO-Data'!$AS25","v":302.56123056073295},{"$f":"(EB148*'Default-Data'!$F$19/wind_dollar_index)/'SouthAfrica-IO-Data'!$AT25","v":0},{"$f":"(EC148*'Default-Data'!$F$19/wind_dollar_index)/'SouthAfrica-IO-Data'!$AT25","v":5.4819478887021669E-2},{"$f":"(ED148*'Default-Data'!$F$19/wind_dollar_index)/'SouthAfrica-IO-Data'!$AT25","v":1.8886486026583788E-2},null,"FOREST",0,0,null,923509.3676409109,50862.449866746087,{"$f":"EJ148*'Zambia-IO-Data'!BO23","v":0},{"$f":"EM148*'Zambia-IO-Data'!$BO23","v":296027.06028984865},{"$f":"EN148*'Zambia-IO-Data'!$BO23","v":16303.745301094928},{"$f":"EJ148*'Zambia-IO-Data'!BN23","v":0},{"$f":"EM148*'Zambia-IO-Data'!$BN23","v":167998.56019829147},{"$f":"EN148*'Zambia-IO-Data'!$BN23","v":9252.551890836492},{"$f":"(ER148*'Default-Data'!$F$19/wind_dollar_index)/'Zambia-IO-Data'!$BP23","v":0},{"$f":"(ES148*'Default-Data'!$F$19/wind_dollar_index)/'Zambia-IO-Data'!$BP23","v":1298.2400116744186},{"$f":"(ET148*'Default-Data'!$F$19/wind_dollar_index)/'Zambia-IO-Data'!$BP23","v":71.500809653366858},2700.4479745062054,247.47617291079086,{"$f":"EK148*'Zambia-IO-Data'!BO23","v":0},{"$f":"EX148*'Zambia-IO-Data'!$BO23","v":865.61728918983954},{"$f":"EY148*'Zambia-IO-Data'!$BO23","v":79.327450836480665},{"$f":"EK148*'Zambia-IO-Data'!BN23","v":0},{"$f":"EX148*'Zambia-IO-Data'!$BN23","v":491.24717897159053},{"$f":"EY148*'Zambia-IO-Data'!$BN23","v":45.019186798939089},{"$f":"(FC148*'Default-Data'!$F$19/wind_dollar_index)/'Zambia-IO-Data'!$BP23","v":0},{"$f":"(FD148*'Default-Data'!$F$19/wind_dollar_index)/'Zambia-IO-Data'!$BP23","v":3.7962036258545799},{"$f":"(FE148*'Default-Data'!$F$19/wind_dollar_index)/'Zambia-IO-Data'!$BP23","v":0.34789411008310483},null,"TTL_C29: Machinery and equipment, nec",0,0,null,1666365.8114637169,289956.26949778735,{"$f":"FK148*CustomRegion1!C21","v":0},{"$f":"FN148*CustomRegion1!$C21","v":609668.93429974397},{"$f":"FO148*CustomRegion1!$C21","v":106085.54772434161},{"$f":"FK148*CustomRegion1!D21","v":0},{"$f":"FN148*CustomRegion1!$D21","v":181380.99018622126},{"$f":"FO148*CustomRegion1!$D21","v":31561.230379549605},{"$f":"(FS148*'Default-Data'!$C$58/wind_dollar_index)/CustomRegion1!$E21","v":0},{"$f":"(FT148*'Default-Data'!$C$58/wind_dollar_index)/CustomRegion1!$E21","v":45.210846926524269},{"$f":"(FU148*'Default-Data'!$C$58/wind_dollar_index)/CustomRegion1!$E21","v":7.8669211918933541},13727.657287431062,2677.0807481908305,{"$f":"FL148*CustomRegion1!C21","v":0},{"$f":"FY148*CustomRegion1!$C21","v":5022.5023408927764},{"$f":"FZ148*CustomRegion1!$C21","v":979.45658483608565},{"$f":"FL148*CustomRegion1!D21","v":0},{"$f":"FY148*CustomRegion1!$D21","v":1494.2313714083048},{"$f":"FZ148*CustomRegion1!$D21","v":291.39553486686236},{"$f":"(GD148*'Default-Data'!$C$58/wind_dollar_index)/CustomRegion1!$E21","v":0},{"$f":"(GE148*'Default-Data'!$C$58/wind_dollar_index)/CustomRegion1!$E21","v":0.3724506395967575},{"$f":"(GF148*'Default-Data'!$C$58/wind_dollar_index)/CustomRegion1!$E21","v":7.2632963952906957E-2},null,"C29 Machinery and equipment n.e.c ",0,0,null,4009033.7668370078,638103.20956697548,{"$f":"GL148*CustomRegion2!C25","v":0},{"$f":"GO148*CustomRegion2!$C25","v":1506385.6485953697},{"$f":"GP148*CustomRegion2!$C25","v":239765.88203514012},{"$f":"GL148*CustomRegion2!D25","v":0},{"$f":"GO148*CustomRegion2!$D25","v":1078755.755735876},{"$f":"GP148*CustomRegion2!$D25","v":171701.59946470134},{"$f":"(GT148*'Default-Data'!$C$59/wind_dollar_index)/CustomRegion2!$E25","v":0},{"$f":"(GU148*'Default-Data'!$C$59/wind_dollar_index)/CustomRegion2!$E25","v":96.44629546933507},{"$f":"(GV148*'Default-Data'!$C$59/wind_dollar_index)/CustomRegion2!$E25","v":15.351003326265982},0,0,{"$f":"GM148*CustomRegion2!C25","v":0},{"$f":"GZ148*CustomRegion2!$C25","v":0},{"$f":"HA148*CustomRegion2!$C25","v":0},{"$f":"GM148*CustomRegion2!D25","v":0},{"$f":"GZ148*CustomRegion2!$D25","v":0},{"$f":"HA148*CustomRegion2!$D25","v":0},{"$f":"(HE148*'Default-Data'!$C$59/wind_dollar_index)/CustomRegion2!$E25","v":0},{"$f":"(HF148*'Default-Data'!$C$59/wind_dollar_index)/CustomRegion2!$E25","v":0},{"$f":"(HG148*'Default-Data'!$C$59/wind_dollar_index)/CustomRegion2!$E25","v":0},null,"FOREST",0,0,null,923509.3676409109,50862.449866746087,{"$f":"HM148*CustomRegion3!D24","v":0},{"$f":"HP148*CustomRegion3!$D24","v":296027.06028984865},{"$f":"HQ148*CustomRegion3!$D24","v":16303.745301094928},{"$f":"HM148*CustomRegion3!E24","v":0},{"$f":"HP148*CustomRegion3!$E24","v":167998.56019829147},{"$f":"HQ148*CustomRegion3!$E24","v":9252.551890836492},{"$f":"(HU148*'Default-Data'!$C$60/wind_dollar_index)/CustomRegion3!$F24","v":0},{"$f":"(HV148*'Default-Data'!$C$60/wind_dollar_index)/CustomRegion3!$F24","v":1303.4980536175367},{"$f":"(HW148*'Default-Data'!$C$60/wind_dollar_index)/CustomRegion3!$F24","v":71.790397289507737},2700.4479745062054,247.47617291079086,{"$f":"HN148*CustomRegion3!D24","v":0},{"$f":"IA148*CustomRegion3!$D24","v":865.61728918983954},{"$f":"IB148*CustomRegion3!$D24","v":79.327450836480665},{"$f":"HN148*CustomRegion3!E24","v":0},{"$f":"IA148*CustomRegion3!$E24","v":491.24717897159053},{"$f":"IB148*CustomRegion3!$E24","v":45.019186798939089},{"$f":"(IF148*'Default-Data'!$C$60/wind_dollar_index)/CustomRegion3!$F24","v":0},{"$f":"(IG148*'Default-Data'!$C$60/wind_dollar_index)/CustomRegion3!$F24","v":3.811578747334325},{"$f":"(IH148*'Default-Data'!$C$60/wind_dollar_index)/CustomRegion3!$F24","v":0.34930312675654829}]
[null,null,null,null,null,null,null,null,null,null,null,null,null,null,null,null,null,null,null,null,null,null,null,null,null,null,null,null,null,148,"TTL_C30T33X: Computer, Electronic and optical equipment",0,0,null,153387.35905203538,21939.041041269171,{"$f":"AF149*'Colombia-IO-Data'!AN26","v":0},{"$f":"AI149*'Colombia-IO-Data'!$AN26","v":36643.711155603487},{"$f":"AJ149*'Colombia-IO-Data'!$AN26","v":5241.1612528935457},{"$f":"AK149*'Colombia-IO-Data'!$AO26","v":0},{"$f":"AL149*'Colombia-IO-Data'!$AO26","v":14555.931452110392},{"$f":"AM149*'Colombia-IO-Data'!$AO26","v":2081.939342950785},{"$f":"(Calculations!AN149*'Default-Data'!$F$19/wind_dollar_index)/'Colombia-IO-Data'!$AP26","v":0},{"$f":"(Calculations!AO149*'Default-Data'!$F$19/wind_dollar_index)/'Colombia-IO-Data'!$AP26","v":2.7418977121516654},{"$f":"(Calculations!AP149*'Default-Data'!$F$19/wind_dollar_index)/'Colombia-IO-Data'!$AP26","v":0.39217447128384608},1222.2384349171523,242.9202049963128,{"$f":"AG149*'Colombia-IO-Data'!AN26","v":0},{"$f":"AT149*'Colombia-IO-Data'!$AN26","v":291.98854748641486},{"$f":"AU149*'Colombia-IO-Data'!$AN26","v":58.03279931773983},{"$f":"AV149*'Colombia-IO-Data'!$AO26","v":0},{"$f":"AW149*'Colombia-IO-Data'!$AO26","v":115.98621285834493},{"$f":"AX149*'Colombia-IO-Data'!$AO26","v":23.052289798270788},{"$f":"(AY149*'Default-Data'!$F$19/wind_dollar_index)/'Colombia-IO-Data'!$AP26","v":0},{"$f":"(AZ149*'Default-Data'!$F$19/wind_dollar_index)/'Colombia-IO-Data'!$AP26","v":2.1848298250355086E-2},{"$f":"(BA149*'Default-Data'!$F$19/wind_dollar_index)/'Colombia-IO-Data'!$AP26","v":4.342354926971834E-3},null,"DOM_C30T33X: Computer, Electronic and optical equipment",0,0,null,227652.47793770776,304188.32819073263,{"$f":"BG149*'Mexico-IO-Data'!AQ26","v":0},{"$f":"BJ149*'Mexico-IO-Data'!$AQ26","v":30857.668647445636},{"$f":"BK149*'Mexico-IO-Data'!$AQ26","v":41231.893115165214},{"$f":"BG149*'Mexico-IO-Data'!AR26","v":0},{"$f":"BJ149*'Mexico-IO-Data'!$AR26","v":13229.932847916574},{"$f":"BK149*'Mexico-IO-Data'!$AR26","v":17677.783222656552},{"$f":"(BO149*'Default-Data'!$F$19/wind_dollar_index)/'Mexico-IO-Data'!$AS26","v":0},{"$f":"(BP149*'Default-Data'!$F$19/wind_dollar_index)/'Mexico-IO-Data'!$AS26","v":1.3545935092560399},{"$f":"(BQ149*'Default-Data'!$F$19/wind_dollar_index)/'Mexico-IO-Data'!$AS26","v":1.8100024154859475},3666.4116115673728,2433.8198625439932,{"$f":"BH149*'Mexico-IO-Data'!AQ26","v":0},{"$f":"BU149*'Mexico-IO-Data'!$AQ26","v":496.97203237054441},{"$f":"BV149*'Mexico-IO-Data'!$AQ26","v":329.89760333952648},{"$f":"BH149*'Mexico-IO-Data'!AR26","v":0},{"$f":"BX149*'Mexico-IO-Data'!$AR26","v":28.881331207622555},{"$f":"BY149*'Mexico-IO-Data'!$AR26","v":19.171867481560259},{"$f":"(CA149*'Default-Data'!$F$19/wind_dollar_index)/'Mexico-IO-Data'!$AS26","v":2.9571173370453157E-3},{"$f":"(CB149*'Default-Data'!$F$19/wind_dollar_index)/'Mexico-IO-Data'!$AS26","v":1.9629795214665948E-3},{"$f":"(CC149*'Default-Data'!$F$19/wind_dollar_index)/'Mexico-IO-Data'!$AS26","v":3.0277492689623882E-7},null,"TTL_C30T33X: Computer, Electronic and optical equipment",0,0,null,10249151.408671066,1274928.5408934113,{"$f":"CH149*'Philippines-IO-Data'!AN26","v":0},{"$f":"CK149*'Philippines-IO-Data'!$AN26","v":2525998.2781158737},{"$f":"CL149*'Philippines-IO-Data'!$AN26","v":314217.94552600087},{"$f":"CH149*'Philippines-IO-Data'!AO26","v":0},{"$f":"CK149*'Philippines-IO-Data'!$AO26","v":947856.23277371947},{"$f":"CL149*'Philippines-IO-Data'!$AO26","v":117907.22135342273},{"$f":"(CP149*'Default-Data'!$F$19/wind_dollar_index)/'Philippines-IO-Data'!$AP26","v":0},{"$f":"(CQ149*'Default-Data'!$F$19/wind_dollar_index)/'Philippines-IO-Data'!$AP26","v":235.27859293275503},{"$f":"(CR149*'Default-Data'!$F$19/wind_dollar_index)/'Philippines-IO-Data'!$AP26","v":29.26714429620338},29313.229636675558,11693.94132457599,{"$f":"CI149*'Philippines-IO-Data'!AN26","v":0},{"$f":"CV149*'Philippines-IO-Data'!$AN26","v":7224.5169025031082},{"$f":"CW149*'Philippines-IO-Data'!$AN26","v":2882.0801325343191},{"$f":"CI149*'Philippines-IO-Data'!AO26","v":0},{"$f":"CV149*'Philippines-IO-Data'!$AO26","v":2710.9295497716612},{"$f":"CW149*'Philippines-IO-Data'!$AO26","v":1081.4724778884618},{"$f":"(DA149*'Default-Data'!$F$19/wind_dollar_index)/'Philippines-IO-Data'!$AP26","v":0},{"$f":"(DB149*'Default-Data'!$F$19/wind_dollar_index)/'Philippines-IO-Data'!$AP26","v":0.67291184881871247},{"$f":"(DC149*'Default-Data'!$F$19/wind_dollar_index)/'Philippines-IO-Data'!$AP26","v":0.2684450595935905},null,"DOM_C30T33X: Computer, Electronic and optical equipment",0,0,null,270482.51362323092,224192.72083771956,{"$f":"DI149*'SouthAfrica-IO-Data'!AR26","v":0},{"$f":"DL149*'SouthAfrica-IO-Data'!$AR26","v":68843.142556734849},{"$f":"DM149*'SouthAfrica-IO-Data'!$AR26","v":57061.475930796725},{"$f":"DI149*'SouthAfrica-IO-Data'!AS26","v":0},{"$f":"DL149*'SouthAfrica-IO-Data'!$AS26","v":48125.803982587371},{"$f":"DM149*'SouthAfrica-IO-Data'!$AS26","v":39889.657903683241},{"$f":"(DQ149*'Default-Data'!$F$19/wind_dollar_index)/'SouthAfrica-IO-Data'!$AT26","v":0},{"$f":"(DR149*'Default-Data'!$F$19/wind_dollar_index)/'SouthAfrica-IO-Data'!$AT26","v":3.00411035065776},{"$f":"(DS149*'Default-Data'!$F$19/wind_dollar_index)/'SouthAfrica-IO-Data'!$AT26","v":2.4899933980533451},441.39620160756573,2187.7369735053458,{"$f":"DJ149*'SouthAfrica-IO-Data'!AR26","v":0},{"$f":"'SouthAfrica-IO-Data'!$AR26*Calculations!DW149","v":112.34405220589858},{"$f":"'SouthAfrica-IO-Data'!$AR26*Calculations!DX149","v":556.82227411366637},{"$f":"DJ149*'SouthAfrica-IO-Data'!AS26","v":0},{"$f":"DW149*'SouthAfrica-IO-Data'!$AS26","v":78.535750029350012},{"$f":"DX149*'SouthAfrica-IO-Data'!$AS26","v":389.25474087776468},{"$f":"(EB149*'Default-Data'!$F$19/wind_dollar_index)/'SouthAfrica-IO-Data'!$AT26","v":0},{"$f":"(EC149*'Default-Data'!$F$19/wind_dollar_index)/'SouthAfrica-IO-Data'!$AT26","v":4.902360896561932E-3},{"$f":"(ED149*'Default-Data'!$F$19/wind_dollar_index)/'SouthAfrica-IO-Data'!$AT26","v":2.4298070875586626E-2},null,"MINING",0,0,null,20412150.095770653,292793.23164201528,{"$f":"EJ149*'Zambia-IO-Data'!BO24","v":0},{"$f":"EM149*'Zambia-IO-Data'!$BO24","v":4986937.5460364223},{"$f":"EN149*'Zambia-IO-Data'!$BO24","v":71532.962145102152},{"$f":"EJ149*'Zambia-IO-Data'!BN24","v":0},{"$f":"EM149*'Zambia-IO-Data'!$BN24","v":181878.49203933519},{"$f":"EN149*'Zambia-IO-Data'!$BN24","v":2608.8771246791562},{"$f":"(ER149*'Default-Data'!$F$19/wind_dollar_index)/'Zambia-IO-Data'!$BP24","v":0},{"$f":"(ES149*'Default-Data'!$F$19/wind_dollar_index)/'Zambia-IO-Data'!$BP24","v":127.93349603421507},{"$f":"(ET149*'Default-Data'!$F$19/wind_dollar_index)/'Zambia-IO-Data'!$BP24","v":1.8350865324510814},57202.181764460278,1431.9285403135436,{"$f":"EK149*'Zambia-IO-Data'!BO24","v":0},{"$f":"EX149*'Zambia-IO-Data'!$BO24","v":13975.191570607392},{"$f":"EY149*'Zambia-IO-Data'!$BO24","v":349.8376294229937},{"$f":"EK149*'Zambia-IO-Data'!BN24","v":0},{"$f":"EX149*'Zambia-IO-Data'!$BN24","v":509.68891135263817},{"$f":"EY149*'Zambia-IO-Data'!$BN24","v":12.7589206623694},{"$f":"(FC149*'Default-Data'!$F$19/wind_dollar_index)/'Zambia-IO-Data'!$BP24","v":0},{"$f":"(FD149*'Default-Data'!$F$19/wind_dollar_index)/'Zambia-IO-Data'!$BP24","v":0.35851564188861784},{"$f":"(FE149*'Default-Data'!$F$19/wind_dollar_index)/'Zambia-IO-Data'!$BP24","v":8.9746363501137967E-3},null,"TTL_C30T33X: Computer, Electronic and optical equipment",0,0,null,16832214.842351478,3173848.2803234048,{"$f":"FK149*CustomRegion1!C22","v":0},{"$f":"FN149*CustomRegion1!$C22","v":4148455.2245647144},{"$f":"FO149*CustomRegion1!$C22","v":782224.30047381576},{"$f":"FK149*CustomRegion1!D22","v":0},{"$f":"FN149*CustomRegion1!$D22","v":1556667.387722577},{"$f":"FO149*CustomRegion1!$D22","v":293522.04435554944},{"$f":"(FS149*'Default-Data'!$C$58/wind_dollar_index)/CustomRegion1!$E22","v":0},{"$f":"(FT149*'Default-Data'!$C$58/wind_dollar_index)/CustomRegion1!$E22","v":388.01337951447664},{"$f":"(FU149*'Default-Data'!$C$58/wind_dollar_index)/CustomRegion1!$E22","v":73.163015613128493},54778.407755095592,29303.205423524145,{"$f":"FL149*CustomRegion1!C22","v":0},{"$f":"FY149*CustomRegion1!$C22","v":13500.645873007174},{"$f":"FZ149*CustomRegion1!$C22","v":7222.0463423415604},{"$f":"FL149*CustomRegion1!D22","v":0},{"$f":"FY149*CustomRegion1!$D22","v":5065.9857720669552},{"$f":"FZ149*CustomRegion1!$D22","v":2710.0024961517702},{"$f":"(GD149*'Default-Data'!$C$58/wind_dollar_index)/CustomRegion1!$E22","v":0},{"$f":"(GE149*'Default-Data'!$C$58/wind_dollar_index)/CustomRegion1!$E22","v":1.2627426227948113},{"$f":"(GF149*'Default-Data'!$C$58/wind_dollar_index)/CustomRegion1!$E22","v":0.67549255243465867},null,"C30 Office, accounting and computing machinery",0,0,null,21541836.036521204,4325216.3422378339,{"$f":"GL149*CustomRegion2!C26","v":0},{"$f":"GO149*CustomRegion2!$C26","v":3539126.7525333557},{"$f":"GP149*CustomRegion2!$C26","v":710593.50936274207},{"$f":"GL149*CustomRegion2!D26","v":0},{"$f":"GO149*CustomRegion2!$D26","v":1489912.8414656983},{"$f":"GP149*CustomRegion2!$D26","v":299147.91661640181},{"$f":"(GT149*'Default-Data'!$C$59/wind_dollar_index)/CustomRegion2!$E26","v":0},{"$f":"(GU149*'Default-Data'!$C$59/wind_dollar_index)/CustomRegion2!$E26","v":152.55000063923111},{"$f":"(GV149*'Default-Data'!$C$59/wind_dollar_index)/CustomRegion2!$E26","v":30.629318441314602},0,0,{"$f":"GM149*CustomRegion2!C26","v":0},{"$f":"GZ149*CustomRegion2!$C26","v":0},{"$f":"HA149*CustomRegion2!$C26","v":0},{"$f":"GM149*CustomRegion2!D26","v":0},{"$f":"GZ149*CustomRegion2!$D26","v":0},{"$f":"HA149*CustomRegion2!$D26","v":0},{"$f":"(HE149*'Default-Data'!$C$59/wind_dollar_index)/CustomRegion2!$E26","v":0},{"$f":"(HF149*'Default-Data'!$C$59/wind_dollar_index)/CustomRegion2!$E26","v":0},{"$f":"(HG149*'Default-Data'!$C$59/wind_dollar_index)/CustomRegion2!$E26","v":0},null,"MINING",0,0,null,20412150.095770653,292793.23164201528,{"$f":"HM149*CustomRegion3!D25","v":0},{"$f":"HP149*CustomRegion3!$D25","v":4986937.5460364223},{"$f":"HQ149*CustomRegion3!$D25","v":71532.962145102152},{"$f":"HM149*CustomRegion3!E25","v":0},{"$f":"HP149*CustomRegion3!$E25","v":181878.49203933519},{"$f":"HQ149*CustomRegion3!$E25","v":2608.8771246791562},{"$f":"(HU149*'Default-Data'!$C$60/wind_dollar_index)/CustomRegion3!$F25","v":0},{"$f":"(HV149*'Default-Data'!$C$60/wind_dollar_index)/CustomRegion3!$F25","v":128.45164343533389},{"$f":"(HW149*'Default-Data'!$C$60/wind_dollar_index)/CustomRegion3!$F25","v":1.8425188730584499},57202.181764460278,1431.9285403135436,{"$f":"HN149*CustomRegion3!D25","v":0},{"$f":"IA149*CustomRegion3!$D25","v":13975.191570607392},{"$f":"IB149*CustomRegion3!$D25","v":349.8376294229937},{"$f":"HN149*CustomRegion3!E25","v":0},{"$f":"IA149*CustomRegion3!$E25","v":509.68891135263817},{"$f":"IB149*CustomRegion3!$E25","v":12.7589206623694},{"$f":"(IF149*'Default-Data'!$C$60/wind_dollar_index)/CustomRegion3!$F25","v":0},{"$f":"(IG149*'Default-Data'!$C$60/wind_dollar_index)/CustomRegion3!$F25","v":0.35996767715587391},{"$f":"(IH149*'Default-Data'!$C$60/wind_dollar_index)/CustomRegion3!$F25","v":9.0109848018089991E-3}]
[null,null,null,null,null,null,null,null,null,null,null,null,null,null,null,null,null,null,null,null,null,null,null,null,null,null,null,null,null,149,"TTL_C31: Electrical machinery and apparatus, nec",{"$f":"'Wind-Inputs'!B13*'Wind-Inputs'!C13+'Wind-Inputs'!B20*'Wind-Inputs'!C20","v":13556250},{"$f":"0.5*'Wind-Inputs'!B34*'Wind-Inputs'!C34","v":0},null,6173804.4237450324,81759.110904414207,{"$f":"AF150*'Colombia-IO-Data'!AN27","v":3428812.7056788458},{"$f":"AI150*'Colombia-IO-Data'!$AN27","v":1561554.1945975644},{"$f":"AJ150*'Colombia-IO-Data'!$AN27","v":20679.51522538027},{"$f":"AK150*'Colombia-IO-Data'!$AO27","v":1774746.5931145053},{"$f":"AL150*'Colombia-IO-Data'!$AO27","v":808257.32541054918},{"$f":"AM150*'Colombia-IO-Data'!$AO27","v":10703.675687131774},{"$f":"(Calculations!AN150*'Default-Data'!$F$19/wind_dollar_index)/'Colombia-IO-Data'!$AP27","v":334.30863832517588},{"$f":"(Calculations!AO150*'Default-Data'!$F$19/wind_dollar_index)/'Colombia-IO-Data'!$AP27","v":152.25126050258356},{"$f":"(Calculations!AP150*'Default-Data'!$F$19/wind_dollar_index)/'Colombia-IO-Data'!$AP27","v":2.0162491129281142},15737.436904401568,905.27840044867298,{"$f":"AG150*'Colombia-IO-Data'!AN27","v":0},{"$f":"AT150*'Colombia-IO-Data'!$AN27","v":3980.5051996408488},{"$f":"AU150*'Colombia-IO-Data'!$AN27","v":228.97409546408721},{"$f":"AV150*'Colombia-IO-Data'!$AO27","v":0},{"$f":"AW150*'Colombia-IO-Data'!$AO27","v":2060.3015236839956},{"$f":"AX150*'Colombia-IO-Data'!$AO27","v":118.51653348207884},{"$f":"(AY150*'Default-Data'!$F$19/wind_dollar_index)/'Colombia-IO-Data'!$AP27","v":0},{"$f":"(AZ150*'Default-Data'!$F$19/wind_dollar_index)/'Colombia-IO-Data'!$AP27","v":0.38809855987008635},{"$f":"(BA150*'Default-Data'!$F$19/wind_dollar_index)/'Colombia-IO-Data'!$AP27","v":2.2324934208146734E-2},null,"DOM_C31: Electrical machinery and apparatus, nec",13556250,0,null,807474.86835486442,147377.95875621401,{"$f":"BG150*'Mexico-IO-Data'!AQ27","v":3637078.6024439866},{"$f":"BJ150*'Mexico-IO-Data'!$AQ27","v":216641.73836457368},{"$f":"BK150*'Mexico-IO-Data'!$AQ27","v":39540.818461159855},{"$f":"BG150*'Mexico-IO-Data'!AR27","v":1254919.0824516241},{"$f":"BJ150*'Mexico-IO-Data'!$AR27","v":74748.962353057257},{"$f":"BK150*'Mexico-IO-Data'!$AR27","v":13642.962675956947},{"$f":"(BO150*'Default-Data'!$F$19/wind_dollar_index)/'Mexico-IO-Data'!$AS27","v":144.22853401080332},{"$f":"(BP150*'Default-Data'!$F$19/wind_dollar_index)/'Mexico-IO-Data'!$AS27","v":8.5909389774744849},{"$f":"(BQ150*'Default-Data'!$F$19/wind_dollar_index)/'Mexico-IO-Data'!$AS27","v":1.5679931350420195},7482.6025606959483,1179.1754320605432,{"$f":"BH150*'Mexico-IO-Data'!AQ27","v":0},{"$f":"BU150*'Mexico-IO-Data'!$AQ27","v":2007.5473426721853},{"$f":"BV150*'Mexico-IO-Data'!$AQ27","v":316.36726472844958},{"$f":"BH150*'Mexico-IO-Data'!AR27","v":0},{"$f":"BX150*'Mexico-IO-Data'!$AR27","v":185.84117799866297},{"$f":"BY150*'Mexico-IO-Data'!$AR27","v":29.286514896874579},{"$f":"(CA150*'Default-Data'!$F$19/wind_dollar_index)/'Mexico-IO-Data'!$AS27","v":2.1358827861015624E-2},{"$f":"(CB150*'Default-Data'!$F$19/wind_dollar_index)/'Mexico-IO-Data'!$AS27","v":3.3659151167020379E-3},{"$f":"(CC150*'Default-Data'!$F$19/wind_dollar_index)/'Mexico-IO-Data'!$AS27","v":2.4547817254999285E-6},null,"TTL_C31: Electrical machinery and apparatus, nec",{"$f":"'Wind-Inputs'!B13*'Wind-Inputs'!C13+'Wind-Inputs'!B20*'Wind-Inputs'!C20","v":13556250},{"$f":"0.5*'Wind-Inputs'!B34*'Wind-Inputs'!C34","v":0},null,170005.42504600808,724291.72691858932,{"$f":"CH150*'Philippines-IO-Data'!AN27","v":3522375.7340604025},{"$f":"CK150*'Philippines-IO-Data'!$AN27","v":44173.203049566328},{"$f":"CL150*'Philippines-IO-Data'!$AN27","v":188195.67382415806},{"$f":"CH150*'Philippines-IO-Data'!AO27","v":1177916.1423378075},{"$f":"CK150*'Philippines-IO-Data'!$AO27","v":14771.94168348128},{"$f":"CL150*'Philippines-IO-Data'!$AO27","v":62934.433703947143},{"$f":"(CP150*'Default-Data'!$F$19/wind_dollar_index)/'Philippines-IO-Data'!$AP27","v":292.38448087324969},{"$f":"(CQ150*'Default-Data'!$F$19/wind_dollar_index)/'Philippines-IO-Data'!$AP27","v":3.6667181519751577},{"$f":"(CR150*'Default-Data'!$F$19/wind_dollar_index)/'Philippines-IO-Data'!$AP27","v":15.621699258709549},614.13370689831811,6643.3723026755233,{"$f":"CI150*'Philippines-IO-Data'!AN27","v":0},{"$f":"CV150*'Philippines-IO-Data'!$AN27","v":159.57286614271641},{"$f":"CW150*'Philippines-IO-Data'!$AN27","v":1726.1745240220005},{"$f":"CI150*'Philippines-IO-Data'!AO27","v":0},{"$f":"CV150*'Philippines-IO-Data'!$AO27","v":53.362692994691351},{"$f":"CW150*'Philippines-IO-Data'!$AO27","v":577.24927431121364},{"$f":"(DA150*'Default-Data'!$F$19/wind_dollar_index)/'Philippines-IO-Data'!$AP27","v":0},{"$f":"(DB150*'Default-Data'!$F$19/wind_dollar_index)/'Philippines-IO-Data'!$AP27","v":1.3245784422552642E-2},{"$f":"(DC150*'Default-Data'!$F$19/wind_dollar_index)/'Philippines-IO-Data'!$AP27","v":0.14328586164798587},null,"DOM_C31: Electrical machinery and apparatus, nec",13556250,0,null,2269271.4303407408,431955.01587687805,{"$f":"DI150*'SouthAfrica-IO-Data'!AR27","v":2549995.7423580787},{"$f":"DL150*'SouthAfrica-IO-Data'!$AR27","v":426860.85647754482},{"$f":"DM150*'SouthAfrica-IO-Data'!$AR27","v":81252.81337953014},{"$f":"DI150*'SouthAfrica-IO-Data'!AS27","v":2601616.0480349343},{"$f":"DL150*'SouthAfrica-IO-Data'!$AS27","v":435501.92498085101},{"$f":"DM150*'SouthAfrica-IO-Data'!$AS27","v":82897.637719463048},{"$f":"(DQ150*'Default-Data'!$F$19/wind_dollar_index)/'SouthAfrica-IO-Data'!$AT27","v":162.39815341405748},{"$f":"(DR150*'Default-Data'!$F$19/wind_dollar_index)/'SouthAfrica-IO-Data'!$AT27","v":27.184913960911999},{"$f":"(DS150*'Default-Data'!$F$19/wind_dollar_index)/'SouthAfrica-IO-Data'!$AT27","v":5.1746387781536107},12944.888109552314,4215.141132119752,{"$f":"DJ150*'SouthAfrica-IO-Data'!AR27","v":0},{"$f":"'SouthAfrica-IO-Data'!$AR27*Calculations!DW150","v":2434.995634092033},{"$f":"'SouthAfrica-IO-Data'!$AR27*Calculations!DX150","v":792.8882943545434},{"$f":"DJ150*'SouthAfrica-IO-Data'!AS27","v":0},{"$f":"DW150*'SouthAfrica-IO-Data'!$AS27","v":2484.287959120546},{"$f":"DX150*'SouthAfrica-IO-Data'!$AS27","v":808.93896277030069},{"$f":"(EB150*'Default-Data'!$F$19/wind_dollar_index)/'SouthAfrica-IO-Data'!$AT27","v":0},{"$f":"(EC150*'Default-Data'!$F$19/wind_dollar_index)/'SouthAfrica-IO-Data'!$AT27","v":0.15507429599947514},{"$f":"(ED150*'Default-Data'!$F$19/wind_dollar_index)/'SouthAfrica-IO-Data'!$AT27","v":5.0495611709424612E-2},null,"FOODMFG",0,0,null,80819.385830675164,6936103.3592322785,{"$f":"EJ150*'Zambia-IO-Data'!BO25","v":0},{"$f":"EM150*'Zambia-IO-Data'!$BO25","v":9062.4426916789671},{"$f":"EN150*'Zambia-IO-Data'!$BO25","v":777759.4267828078},{"$f":"EJ150*'Zambia-IO-Data'!BN25","v":0},{"$f":"EM150*'Zambia-IO-Data'!$BN25","v":4195.8151095426128},{"$f":"EN150*'Zambia-IO-Data'!$BN25","v":360094.38796019799},{"$f":"(ER150*'Default-Data'!$F$19/wind_dollar_index)/'Zambia-IO-Data'!$BP25","v":0},{"$f":"(ES150*'Default-Data'!$F$19/wind_dollar_index)/'Zambia-IO-Data'!$BP25","v":12.580174784053819},{"$f":"(ET150*'Default-Data'!$F$19/wind_dollar_index)/'Zambia-IO-Data'!$BP25","v":1079.6591892224724},487.38728447254664,33327.385984389475,{"$f":"EK150*'Zambia-IO-Data'!BO25","v":0},{"$f":"EX150*'Zambia-IO-Data'!$BO25","v":54.651731002254621},{"$f":"EY150*'Zambia-IO-Data'!$BO25","v":3737.0678141476205},{"$f":"EK150*'Zambia-IO-Data'!BN25","v":0},{"$f":"EX150*'Zambia-IO-Data'!$BN25","v":25.30317338309537},{"$f":"EY150*'Zambia-IO-Data'!$BN25","v":1730.2228696445402},{"$f":"(FC150*'Default-Data'!$F$19/wind_dollar_index)/'Zambia-IO-Data'!$BP25","v":0},{"$f":"(FD150*'Default-Data'!$F$19/wind_dollar_index)/'Zambia-IO-Data'!$BP25","v":7.586567459242935E-2},{"$f":"(FE150*'Default-Data'!$F$19/wind_dollar_index)/'Zambia-IO-Data'!$BP25","v":5.1876704638370628},null,"TTL_C31: Electrical machinery and apparatus, nec",13556250,0,null,488792.8538816534,1374050.6020549629,{"$f":"FK150*CustomRegion1!C23","v":3522375.7340604025},{"$f":"FN150*CustomRegion1!$C23","v":127005.04103235541},{"$f":"FO150*CustomRegion1!$C23","v":357025.17274685024},{"$f":"FK150*CustomRegion1!D23","v":1177916.1423378075},{"$f":"FN150*CustomRegion1!$D23","v":42471.700717127875},{"$f":"FO150*CustomRegion1!$D23","v":119392.63325399898},{"$f":"(FS150*'Default-Data'!$C$58/wind_dollar_index)/CustomRegion1!$E23","v":293.60621721626319},{"$f":"(FT150*'Default-Data'!$C$58/wind_dollar_index)/CustomRegion1!$E23","v":10.586454279799645},{"$f":"(FU150*'Default-Data'!$C$58/wind_dollar_index)/CustomRegion1!$E23","v":29.759690145363702},3417.4857581340398,12686.20409612991,{"$f":"FL150*CustomRegion1!C23","v":0},{"$f":"FY150*CustomRegion1!$C23","v":887.97926461583108},{"$f":"FZ150*CustomRegion1!$C23","v":3296.3081579010181},{"$f":"FL150*CustomRegion1!D23","v":0},{"$f":"FY150*CustomRegion1!$D23","v":296.94876095643303},{"$f":"FZ150*CustomRegion1!$D23","v":1102.3169821907559},{"$f":"(GD150*'Default-Data'!$C$58/wind_dollar_index)/CustomRegion1!$E23","v":0},{"$f":"(GE150*'Default-Data'!$C$58/wind_dollar_index)/CustomRegion1!$E23","v":7.4017155617238456E-2},{"$f":"(GF150*'Default-Data'!$C$58/wind_dollar_index)/CustomRegion1!$E23","v":0.27476244503444291},null,"C31 Electrical machinery and apparatus n.e.c",13556250,0,null,10741801.518193565,2068821.2982466221,{"$f":"GL150*CustomRegion2!C27","v":3520087.3855194915},{"$f":"GO150*CustomRegion2!$C27","v":2789272.8462478411},{"$f":"GP150*CustomRegion2!$C27","v":537201.05153357249},{"$f":"GL150*CustomRegion2!D27","v":1646659.2918651751},{"$f":"GO150*CustomRegion2!$D27","v":1304792.053945957},{"$f":"GP150*CustomRegion2!$D27","v":251296.91573749192},{"$f":"(GT150*'Default-Data'!$C$59/wind_dollar_index)/CustomRegion2!$E27","v":189.25144975643232},{"$f":"(GU150*'Default-Data'!$C$59/wind_dollar_index)/CustomRegion2!$E27","v":149.96046180278307},{"$f":"(GV150*'Default-Data'!$C$59/wind_dollar_index)/CustomRegion2!$E27","v":28.881691469260133},0,0,{"$f":"GM150*CustomRegion2!C27","v":0},{"$f":"GZ150*CustomRegion2!$C27","v":0},{"$f":"HA150*CustomRegion2!$C27","v":0},{"$f":"GM150*CustomRegion2!D27","v":0},{"$f":"GZ150*CustomRegion2!$D27","v":0},{"$f":"HA150*CustomRegion2!$D27","v":0},{"$f":"(HE150*'Default-Data'!$C$59/wind_dollar_index)/CustomRegion2!$E27","v":0},{"$f":"(HF150*'Default-Data'!$C$59/wind_dollar_index)/CustomRegion2!$E27","v":0},{"$f":"(HG150*'Default-Data'!$C$59/wind_dollar_index)/CustomRegion2!$E27","v":0},null,"FOODMFG",0,0,null,80819.385830675164,6936103.3592322785,{"$f":"HM150*CustomRegion3!D26","v":0},{"$f":"HP150*CustomRegion3!$D26","v":9062.4426916789671},{"$f":"HQ150*CustomRegion3!$D26","v":777759.4267828078},{"$f":"HM150*CustomRegion3!E26","v":0},{"$f":"HP150*CustomRegion3!$E26","v":4195.8151095426128},{"$f":"HQ150*CustomRegion3!$E26","v":360094.38796019799},{"$f":"(HU150*'Default-Data'!$C$60/wind_dollar_index)/CustomRegion3!$F26","v":0},{"$f":"(HV150*'Default-Data'!$C$60/wind_dollar_index)/CustomRegion3!$F26","v":12.631126138249867},{"$f":"(HW150*'Default-Data'!$C$60/wind_dollar_index)/CustomRegion3!$F26","v":1084.0319502298012},487.38728447254664,33327.385984389475,{"$f":"HN150*CustomRegion3!D26","v":0},{"$f":"IA150*CustomRegion3!$D26","v":54.651731002254621},{"$f":"IB150*CustomRegion3!$D26","v":3737.0678141476205},{"$f":"HN150*CustomRegion3!E26","v":0},{"$f":"IA150*CustomRegion3!$E26","v":25.30317338309537},{"$f":"IB150*CustomRegion3!$E26","v":1730.2228696445402},{"$f":"(IF150*'Default-Data'!$C$60/wind_dollar_index)/CustomRegion3!$F26","v":0},{"$f":"(IG150*'Default-Data'!$C$60/wind_dollar_index)/CustomRegion3!$F26","v":7.6172940502787029E-2},{"$f":"(IH150*'Default-Data'!$C$60/wind_dollar_index)/CustomRegion3!$F26","v":5.2086812081067198}]
[null,null,null,null,null,null,null,null,null,null,null,null,null,null,null,null,null,null,null,null,null,null,null,null,null,null,null,null,null,150,"TTL_C34: Motor vehicles, trailers and semi-trailers",0,0,null,252877.3466066861,252847.69472106526,{"$f":"AF151*'Colombia-IO-Data'!AN28","v":0},{"$f":"AI151*'Colombia-IO-Data'!$AN28","v":55659.910906061537},{"$f":"AJ151*'Colombia-IO-Data'!$AN28","v":55653.384337612442},{"$f":"AK151*'Colombia-IO-Data'!$AO28","v":0},{"$f":"AL151*'Colombia-IO-Data'!$AO28","v":14243.648411107124},{"$f":"AM151*'Colombia-IO-Data'!$AO28","v":14241.978229735889},{"$f":"(Calculations!AN151*'Default-Data'!$F$19/wind_dollar_index)/'Colombia-IO-Data'!$AP28","v":0},{"$f":"(Calculations!AO151*'Default-Data'!$F$19/wind_dollar_index)/'Colombia-IO-Data'!$AP28","v":2.6830730221283772},{"$f":"(Calculations!AP151*'Default-Data'!$F$19/wind_dollar_index)/'Colombia-IO-Data'!$AP28","v":2.6827584104186606},913.18956017709229,2799.65809439651,{"$f":"AG151*'Colombia-IO-Data'!AN28","v":0},{"$f":"AT151*'Colombia-IO-Data'!$AN28","v":200.99882508992832},{"$f":"AU151*'Colombia-IO-Data'!$AN28","v":616.22253710180155},{"$f":"AV151*'Colombia-IO-Data'!$AO28","v":0},{"$f":"AW151*'Colombia-IO-Data'!$AO28","v":51.436600400931852},{"$f":"AX151*'Colombia-IO-Data'!$AO28","v":157.69441629707325},{"$f":"(AY151*'Default-Data'!$F$19/wind_dollar_index)/'Colombia-IO-Data'!$AP28","v":0},{"$f":"(AZ151*'Default-Data'!$F$19/wind_dollar_index)/'Colombia-IO-Data'!$AP28","v":9.6891014789525325E-3},{"$f":"(BA151*'Default-Data'!$F$19/wind_dollar_index)/'Colombia-IO-Data'!$AP28","v":2.9704863662390255E-2},null,"DOM_C34: Motor vehicles, trailers and semi-trailers",0,0,null,198671.467952779,990275.35179426288,{"$f":"BG151*'Mexico-IO-Data'!AQ28","v":0},{"$f":"BJ151*'Mexico-IO-Data'!$AQ28","v":67261.517877650243},{"$f":"BK151*'Mexico-IO-Data'!$AQ28","v":335264.16231211275},{"$f":"BG151*'Mexico-IO-Data'!AR28","v":0},{"$f":"BJ151*'Mexico-IO-Data'!$AR28","v":17074.107925260356},{"$f":"BK151*'Mexico-IO-Data'!$AR28","v":85105.669206003877},{"$f":"(BO151*'Default-Data'!$F$19/wind_dollar_index)/'Mexico-IO-Data'!$AS28","v":0},{"$f":"(BP151*'Default-Data'!$F$19/wind_dollar_index)/'Mexico-IO-Data'!$AS28","v":1.8403591741814271},{"$f":"(BQ151*'Default-Data'!$F$19/wind_dollar_index)/'Mexico-IO-Data'!$AS28","v":9.1732464023142057},1281.9810131553227,7923.222547425954,{"$f":"BH151*'Mexico-IO-Data'!AQ28","v":0},{"$f":"BU151*'Mexico-IO-Data'!$AQ28","v":434.02301157632718},{"$f":"BV151*'Mexico-IO-Data'!$AQ28","v":2682.4585357619681},{"$f":"BH151*'Mexico-IO-Data'!AR28","v":0},{"$f":"BX151*'Mexico-IO-Data'!$AR28","v":37.300553612771935},{"$f":"BY151*'Mexico-IO-Data'!$AR28","v":230.53429370905823},{"$f":"(CA151*'Default-Data'!$F$19/wind_dollar_index)/'Mexico-IO-Data'!$AS28","v":4.0204979577147804E-3},{"$f":"(CB151*'Default-Data'!$F$19/wind_dollar_index)/'Mexico-IO-Data'!$AS28","v":2.4848495994523913E-2},{"$f":"(CC151*'Default-Data'!$F$19/wind_dollar_index)/'Mexico-IO-Data'!$AS28","v":4.3335560098641353E-7},null,"TTL_C34: Motor vehicles, trailers and semi-trailers",0,0,null,68806.962088510729,474643.42801129865,{"$f":"CH151*'Philippines-IO-Data'!AN28","v":0},{"$f":"CK151*'Philippines-IO-Data'!$AN28","v":11241.191510372473},{"$f":"CL151*'Philippines-IO-Data'!$AN28","v":77543.863461828674},{"$f":"CH151*'Philippines-IO-Data'!AO28","v":0},{"$f":"CK151*'Philippines-IO-Data'!$AO28","v":2789.4142794057552},{"$f":"CL151*'Philippines-IO-Data'!$AO28","v":19241.906858461487},{"$f":"(CP151*'Default-Data'!$F$19/wind_dollar_index)/'Philippines-IO-Data'!$AP28","v":0},{"$f":"(CQ151*'Default-Data'!$F$19/wind_dollar_index)/'Philippines-IO-Data'!$AP28","v":0.69239347073196478},{"$f":"(CR151*'Default-Data'!$F$19/wind_dollar_index)/'Philippines-IO-Data'!$AP28","v":4.7762610135019514},872.69014492547092,4353.539997912535,{"$f":"CI151*'Philippines-IO-Data'!AN28","v":0},{"$f":"CV151*'Philippines-IO-Data'!$AN28","v":142.57390168893966},{"$f":"CW151*'Philippines-IO-Data'!$AN28","v":711.25036448561832},{"$f":"CI151*'Philippines-IO-Data'!AO28","v":0},{"$f":"CV151*'Philippines-IO-Data'!$AO28","v":35.378605272826903},{"$f":"CW151*'Philippines-IO-Data'!$AO28","v":176.4912483786155},{"$f":"(DA151*'Default-Data'!$F$19/wind_dollar_index)/'Philippines-IO-Data'!$AP28","v":0},{"$f":"(DB151*'Default-Data'!$F$19/wind_dollar_index)/'Philippines-IO-Data'!$AP28","v":8.7817415560543111E-3},{"$f":"(DC151*'Default-Data'!$F$19/wind_dollar_index)/'Philippines-IO-Data'!$AP28","v":4.3808977720125576E-2},null,"DOM_C34: Motor vehicles, trailers and semi-trailers",0,0,null,295038.86669198476,746053.42920754687,{"$f":"DI151*'SouthAfrica-IO-Data'!AR28","v":0},{"$f":"DL151*'SouthAfrica-IO-Data'!$AR28","v":71334.525870938174},{"$f":"DM151*'SouthAfrica-IO-Data'!$AR28","v":180380.87064124996},{"$f":"DI151*'SouthAfrica-IO-Data'!AS28","v":0},{"$f":"DL151*'SouthAfrica-IO-Data'!$AS28","v":52369.569006066486},{"$f":"DM151*'SouthAfrica-IO-Data'!$AS28","v":132424.91398221802},{"$f":"(DQ151*'Default-Data'!$F$19/wind_dollar_index)/'SouthAfrica-IO-Data'!$AT28","v":0},{"$f":"(DR151*'Default-Data'!$F$19/wind_dollar_index)/'SouthAfrica-IO-Data'!$AT28","v":3.2690147756810939},{"$f":"(DS151*'Default-Data'!$F$19/wind_dollar_index)/'SouthAfrica-IO-Data'!$AT28","v":8.2662318726744068},1461.8400472395288,7280.203680070591,{"$f":"DJ151*'SouthAfrica-IO-Data'!AR28","v":0},{"$f":"'SouthAfrica-IO-Data'!$AR28*Calculations!DW151","v":353.44382873408927},{"$f":"'SouthAfrica-IO-Data'!$AR28*Calculations!DX151","v":1760.2083535111526},{"$f":"DJ151*'SouthAfrica-IO-Data'!AS28","v":0},{"$f":"DW151*'SouthAfrica-IO-Data'!$AS28","v":259.47745152392076},{"$f":"DX151*'SouthAfrica-IO-Data'!$AS28","v":1292.2403521828387},{"$f":"(EB151*'Default-Data'!$F$19/wind_dollar_index)/'SouthAfrica-IO-Data'!$AT28","v":0},{"$f":"(EC151*'Default-Data'!$F$19/wind_dollar_index)/'SouthAfrica-IO-Data'!$AT28","v":1.6197109105280438E-2},{"$f":"(ED151*'Default-Data'!$F$19/wind_dollar_index)/'SouthAfrica-IO-Data'!$AT28","v":8.0664265243956687E-2},null,"TEXTILES",0,0,null,7845137.1516633481,2313368.3403168786,{"$f":"EJ151*'Zambia-IO-Data'!BO26","v":0},{"$f":"EM151*'Zambia-IO-Data'!$BO26","v":796164.14804420457},{"$f":"EN151*'Zambia-IO-Data'!$BO26","v":234772.30520951631},{"$f":"EJ151*'Zambia-IO-Data'!BN26","v":0},{"$f":"EM151*'Zambia-IO-Data'!$BN26","v":218777.63774818004},{"$f":"EN151*'Zambia-IO-Data'!$BN26","v":64512.990780364751},{"$f":"(ER151*'Default-Data'!$F$19/wind_dollar_index)/'Zambia-IO-Data'!$BP26","v":0},{"$f":"(ES151*'Default-Data'!$F$19/wind_dollar_index)/'Zambia-IO-Data'!$BP26","v":655.9538134688064},{"$f":"(ET151*'Default-Data'!$F$19/wind_dollar_index)/'Zambia-IO-Data'!$BP26","v":193.42718367480975},15873.748291504984,11133.028909146396,{"$f":"EK151*'Zambia-IO-Data'!BO26","v":0},{"$f":"EX151*'Zambia-IO-Data'!$BO26","v":1610.9481632318748},{"$f":"EY151*'Zambia-IO-Data'!$BO26","v":1129.8360124555286},{"$f":"EK151*'Zambia-IO-Data'!BN26","v":0},{"$f":"EX151*'Zambia-IO-Data'!$BN26","v":442.67182157399907},{"$f":"EY151*'Zambia-IO-Data'!$BN26","v":310.46720008060424},{"$f":"(FC151*'Default-Data'!$F$19/wind_dollar_index)/'Zambia-IO-Data'!$BP26","v":0},{"$f":"(FD151*'Default-Data'!$F$19/wind_dollar_index)/'Zambia-IO-Data'!$BP26","v":1.3272483991754012},{"$f":"(FE151*'Default-Data'!$F$19/wind_dollar_index)/'Zambia-IO-Data'!$BP26","v":0.93086362000244882},null,"TTL_C34: Motor vehicles, trailers and semi-trailers",0,0,null,190473.67569587808,968634.95139800862,{"$f":"FK151*CustomRegion1!C24","v":0},{"$f":"FN151*CustomRegion1!$C24","v":31118.232823993112},{"$f":"FO151*CustomRegion1!$C24","v":158248.68097357126},{"$f":"FK151*CustomRegion1!D24","v":0},{"$f":"FN151*CustomRegion1!$D24","v":7721.7475486495941},{"$f":"FO151*CustomRegion1!$D24","v":39268.179889782805},{"$f":"(FS151*'Default-Data'!$C$58/wind_dollar_index)/CustomRegion1!$E24","v":0},{"$f":"(FT151*'Default-Data'!$C$58/wind_dollar_index)/CustomRegion1!$E24","v":1.9247151869048564},{"$f":"(FU151*'Default-Data'!$C$58/wind_dollar_index)/CustomRegion1!$E24","v":9.7879478343208124},2029.8668876111569,8943.1209226954215,{"$f":"FL151*CustomRegion1!C24","v":0},{"$f":"FY151*CustomRegion1!$C24","v":331.62519796831521},{"$f":"FZ151*CustomRegion1!$C24","v":1461.0634148201227},{"$f":"FL151*CustomRegion1!D24","v":0},{"$f":"FY151*CustomRegion1!$D24","v":82.290214677868093},{"$f":"FZ151*CustomRegion1!$D24","v":362.55152744760454},{"$f":"(GD151*'Default-Data'!$C$58/wind_dollar_index)/CustomRegion1!$E24","v":0},{"$f":"(GE151*'Default-Data'!$C$58/wind_dollar_index)/CustomRegion1!$E24","v":2.0511577842486268E-2},{"$f":"(GF151*'Default-Data'!$C$58/wind_dollar_index)/CustomRegion1!$E24","v":9.0369236564330893E-2},null,"C32 Radio, television and communication equipment",0,0,null,0,0,{"$f":"GL151*CustomRegion2!C28","v":0},{"$f":"GO151*CustomRegion2!$C28","v":0},{"$f":"GP151*CustomRegion2!$C28","v":0},{"$f":"GL151*CustomRegion2!D28","v":0},{"$f":"GO151*CustomRegion2!$D28","v":0},{"$f":"GP151*CustomRegion2!$D28","v":0},{"$f":"(GT151*'Default-Data'!$C$59/wind_dollar_index)/CustomRegion2!$E28","v":0},{"$f":"(GU151*'Default-Data'!$C$59/wind_dollar_index)/CustomRegion2!$E28","v":0},{"$f":"(GV151*'Default-Data'!$C$59/wind_dollar_index)/CustomRegion2!$E28","v":0},0,0,{"$f":"GM151*CustomRegion2!C28","v":0},{"$f":"GZ151*CustomRegion2!$C28","v":0},{"$f":"HA151*CustomRegion2!$C28","v":0},{"$f":"GM151*CustomRegion2!D28","v":0},{"$f":"GZ151*CustomRegion2!$D28","v":0},{"$f":"HA151*CustomRegion2!$D28","v":0},{"$f":"(HE151*'Default-Data'!$C$59/wind_dollar_index)/CustomRegion2!$E28","v":0},{"$f":"(HF151*'Default-Data'!$C$59/wind_dollar_index)/CustomRegion2!$E28","v":0},{"$f":"(HG151*'Default-Data'!$C$59/wind_dollar_index)/CustomRegion2!$E28","v":0},null,"TEXTILES",0,0,null,7845137.1516633481,2313368.3403168786,{"$f":"HM151*CustomRegion3!D27","v":0},{"$f":"HP151*CustomRegion3!$D27","v":796164.14804420457},{"$f":"HQ151*CustomRegion3!$D27","v":234772.30520951631},{"$f":"HM151*CustomRegion3!E27","v":0},{"$f":"HP151*CustomRegion3!$E27","v":218777.63774818004},{"$f":"HQ151*CustomRegion3!$E27","v":64512.990780364751},{"$f":"(HU151*'Default-Data'!$C$60/wind_dollar_index)/CustomRegion3!$F27","v":0},{"$f":"(HV151*'Default-Data'!$C$60/wind_dollar_index)/CustomRegion3!$F27","v":658.61051225558811},{"$f":"(HW151*'Default-Data'!$C$60/wind_dollar_index)/CustomRegion3!$F27","v":194.21058908178802},15873.748291504984,11133.028909146396,{"$f":"HN151*CustomRegion3!D27","v":0},{"$f":"IA151*CustomRegion3!$D27","v":1610.9481632318748},{"$f":"IB151*CustomRegion3!$D27","v":1129.8360124555286},{"$f":"HN151*CustomRegion3!E27","v":0},{"$f":"IA151*CustomRegion3!$E27","v":442.67182157399907},{"$f":"IB151*CustomRegion3!$E27","v":310.46720008060424},{"$f":"(IF151*'Default-Data'!$C$60/wind_dollar_index)/CustomRegion3!$F27","v":0},{"$f":"(IG151*'Default-Data'!$C$60/wind_dollar_index)/CustomRegion3!$F27","v":1.3326239288841173},{"$f":"(IH151*'Default-Data'!$C$60/wind_dollar_index)/CustomRegion3!$F27","v":0.93463373948211448}]
[null,null,null,null,null,null,null,null,null,null,null,null,null,null,null,null,null,null,null,null,null,null,null,null,null,null,null,null,null,151,"TTL_C35: Other transport equipment",0,0,null,43958.447734856738,22077.080434139709,{"$f":"AF152*'Colombia-IO-Data'!AN29","v":0},{"$f":"AI152*'Colombia-IO-Data'!$AN29","v":4903.7432588956281},{"$f":"AJ152*'Colombia-IO-Data'!$AN29","v":2462.7879266347345},{"$f":"AK152*'Colombia-IO-Data'!$AO29","v":0},{"$f":"AL152*'Colombia-IO-Data'!$AO29","v":1849.1009700826398},{"$f":"AM152*'Colombia-IO-Data'!$AO29","v":928.66679673472424},{"$f":"(Calculations!AN152*'Default-Data'!$F$19/wind_dollar_index)/'Colombia-IO-Data'!$AP29","v":0},{"$f":"(Calculations!AO152*'Default-Data'!$F$19/wind_dollar_index)/'Colombia-IO-Data'!$AP29","v":0.34831475650236965},{"$f":"(Calculations!AP152*'Default-Data'!$F$19/wind_dollar_index)/'Colombia-IO-Data'!$AP29","v":0.17493276700949145},124.89185643858383,244.44864726280093,{"$f":"AG152*'Colombia-IO-Data'!AN29","v":0},{"$f":"AT152*'Colombia-IO-Data'!$AN29","v":13.93219348407599},{"$f":"AU152*'Colombia-IO-Data'!$AN29","v":27.269238745448206},{"$f":"AV152*'Colombia-IO-Data'!$AO29","v":0},{"$f":"AW152*'Colombia-IO-Data'!$AO29","v":5.2535443082282844},{"$f":"AX152*'Colombia-IO-Data'!$AO29","v":10.282670432664387},{"$f":"(AY152*'Default-Data'!$F$19/wind_dollar_index)/'Colombia-IO-Data'!$AP29","v":0},{"$f":"(AZ152*'Default-Data'!$F$19/wind_dollar_index)/'Colombia-IO-Data'!$AP29","v":9.8960902411573764E-4},{"$f":"(BA152*'Default-Data'!$F$19/wind_dollar_index)/'Colombia-IO-Data'!$AP29","v":1.9369444426755905E-3},null,"DOM_C35: Other transport equipment",0,0,null,20737.131574033952,38835.578753907525,{"$f":"BG152*'Mexico-IO-Data'!AQ29","v":0},{"$f":"BJ152*'Mexico-IO-Data'!$AQ29","v":7306.6387052213458},{"$f":"BK152*'Mexico-IO-Data'!$AQ29","v":13683.548365882973},{"$f":"BG152*'Mexico-IO-Data'!AR29","v":0},{"$f":"BJ152*'Mexico-IO-Data'!$AR29","v":1863.269674022458},{"$f":"BK152*'Mexico-IO-Data'!$AR29","v":3489.4486687770241},{"$f":"(BO152*'Default-Data'!$F$19/wind_dollar_index)/'Mexico-IO-Data'!$AS29","v":0},{"$f":"(BP152*'Default-Data'!$F$19/wind_dollar_index)/'Mexico-IO-Data'!$AS29","v":0.20083540841908901},{"$f":"(BQ152*'Default-Data'!$F$19/wind_dollar_index)/'Mexico-IO-Data'!$AS29","v":0.37611563066894693},142.42360279164524,310.72462085194257,{"$f":"BH152*'Mexico-IO-Data'!AQ29","v":0},{"$f":"BU152*'Mexico-IO-Data'!$AQ29","v":50.182341033006857},{"$f":"BV152*'Mexico-IO-Data'!$AQ29","v":109.48247751993138},{"$f":"BH152*'Mexico-IO-Data'!AR29","v":0},{"$f":"BX152*'Mexico-IO-Data'!$AR29","v":4.508976272076838},{"$f":"BY152*'Mexico-IO-Data'!$AR29","v":9.8372033504945744},{"$f":"(CA152*'Default-Data'!$F$19/wind_dollar_index)/'Mexico-IO-Data'!$AS29","v":4.8600699285766315E-4},{"$f":"(CB152*'Default-Data'!$F$19/wind_dollar_index)/'Mexico-IO-Data'!$AS29","v":1.0603182030720884E-3},{"$f":"(CC152*'Default-Data'!$F$19/wind_dollar_index)/'Mexico-IO-Data'!$AS29","v":5.238501665429111E-8},null,"TTL_C35: Other transport equipment",0,0,null,1040.0187323400755,4766.7923500473025,{"$f":"CH152*'Philippines-IO-Data'!AN29","v":0},{"$f":"CK152*'Philippines-IO-Data'!$AN29","v":217.64699094534583},{"$f":"CL152*'Philippines-IO-Data'!$AN29","v":997.55704314549246},{"$f":"CH152*'Philippines-IO-Data'!AO29","v":0},{"$f":"CK152*'Philippines-IO-Data'!$AO29","v":48.872930791919799},{"$f":"CL152*'Philippines-IO-Data'!$AO29","v":224.00280435250534},{"$f":"(CP152*'Default-Data'!$F$19/wind_dollar_index)/'Philippines-IO-Data'!$AP29","v":0},{"$f":"(CQ152*'Default-Data'!$F$19/wind_dollar_index)/'Philippines-IO-Data'!$AP29","v":1.2131327506887736E-2},{"$f":"(CR152*'Default-Data'!$F$19/wind_dollar_index)/'Philippines-IO-Data'!$AP29","v":5.5602382300977506E-2},2.3705700551228106,43.722128935029566,{"$f":"CI152*'Philippines-IO-Data'!AN29","v":0},{"$f":"CV152*'Philippines-IO-Data'!$AN29","v":0.49609437145591029},{"$f":"CW152*'Philippines-IO-Data'!$AN29","v":9.1498253873008046},{"$f":"CI152*'Philippines-IO-Data'!AO29","v":0},{"$f":"CV152*'Philippines-IO-Data'!$AO29","v":0.11139867258038066},{"$f":"CW152*'Philippines-IO-Data'!$AO29","v":2.0546058595590497},{"$f":"(DA152*'Default-Data'!$F$19/wind_dollar_index)/'Philippines-IO-Data'!$AP29","v":0},{"$f":"(DB152*'Default-Data'!$F$19/wind_dollar_index)/'Philippines-IO-Data'!$AP29","v":2.7651580517217166E-5},{"$f":"(DC152*'Default-Data'!$F$19/wind_dollar_index)/'Philippines-IO-Data'!$AP29","v":5.0999799226287255E-4},null,"DOM_C35: Other transport equipment",0,0,null,322766.13126529678,380835.71219130204,{"$f":"DI152*'SouthAfrica-IO-Data'!AR29","v":0},{"$f":"DL152*'SouthAfrica-IO-Data'!$AR29","v":41184.629530054423},{"$f":"DM152*'SouthAfrica-IO-Data'!$AR29","v":48594.248897575031},{"$f":"DI152*'SouthAfrica-IO-Data'!AS29","v":0},{"$f":"DL152*'SouthAfrica-IO-Data'!$AS29","v":42044.043864287101},{"$f":"DM152*'SouthAfrica-IO-Data'!$AS29","v":49608.282398431707},{"$f":"(DQ152*'Default-Data'!$F$19/wind_dollar_index)/'SouthAfrica-IO-Data'!$AT29","v":0},{"$f":"(DR152*'Default-Data'!$F$19/wind_dollar_index)/'SouthAfrica-IO-Data'!$AT29","v":2.6244745418053212},{"$f":"(DS152*'Default-Data'!$F$19/wind_dollar_index)/'SouthAfrica-IO-Data'!$AT29","v":3.0966496619028447},869.79903874577531,3716.3042817756627,{"$f":"DJ152*'SouthAfrica-IO-Data'!AR29","v":0},{"$f":"'SouthAfrica-IO-Data'!$AR29*Calculations!DW152","v":110.98547123241416},{"$f":"'SouthAfrica-IO-Data'!$AR29*Calculations!DX152","v":474.19664035345397},{"$f":"DJ152*'SouthAfrica-IO-Data'!AS29","v":0},{"$f":"DW152*'SouthAfrica-IO-Data'!$AS29","v":113.30144459327929},{"$f":"DX152*'SouthAfrica-IO-Data'!$AS29","v":484.09187055498683},{"$f":"(EB152*'Default-Data'!$F$19/wind_dollar_index)/'SouthAfrica-IO-Data'!$AT29","v":0},{"$f":"(EC152*'Default-Data'!$F$19/wind_dollar_index)/'SouthAfrica-IO-Data'!$AT29","v":7.0725061044236842E-3},{"$f":"(ED152*'Default-Data'!$F$19/wind_dollar_index)/'SouthAfrica-IO-Data'!$AT29","v":3.0217996971638877E-2},null,"FURNIMFG",0,0,null,16038778.72257857,1021424.8396423347,{"$f":"EJ152*'Zambia-IO-Data'!BO27","v":0},{"$f":"EM152*'Zambia-IO-Data'!$BO27","v":2946909.1533224457},{"$f":"EN152*'Zambia-IO-Data'!$BO27","v":187673.03056158003},{"$f":"EJ152*'Zambia-IO-Data'!BN27","v":0},{"$f":"EM152*'Zambia-IO-Data'!$BN27","v":913439.61087159812},{"$f":"EN152*'Zambia-IO-Data'!$BN27","v":58172.12919983959},{"$f":"(ER152*'Default-Data'!$F$19/wind_dollar_index)/'Zambia-IO-Data'!$BP27","v":0},{"$f":"(ES152*'Default-Data'!$F$19/wind_dollar_index)/'Zambia-IO-Data'!$BP27","v":2738.7360165866494},{"$f":"(ET152*'Default-Data'!$F$19/wind_dollar_index)/'Zambia-IO-Data'!$BP27","v":174.4155864328155},44999.473465990101,4968.2256785800782,{"$f":"EK152*'Zambia-IO-Data'!BO27","v":0},{"$f":"EX152*'Zambia-IO-Data'!$BO27","v":8268.0459993463282},{"$f":"EY152*'Zambia-IO-Data'!$BO27","v":912.84442420597338},{"$f":"EK152*'Zambia-IO-Data'!BN27","v":0},{"$f":"EX152*'Zambia-IO-Data'!$BN27","v":2562.8074458272981},{"$f":"EY152*'Zambia-IO-Data'!$BN27","v":282.95010543264493},{"$f":"(FC152*'Default-Data'!$F$19/wind_dollar_index)/'Zambia-IO-Data'!$BP27","v":0},{"$f":"(FD152*'Default-Data'!$F$19/wind_dollar_index)/'Zambia-IO-Data'!$BP27","v":7.683981482657968},{"$f":"(FE152*'Default-Data'!$F$19/wind_dollar_index)/'Zambia-IO-Data'!$BP27","v":0.84836001791727145},null,"TTL_C35: Other transport equipment",0,0,null,16773.026238788185,14371.470438461274,{"$f":"FK152*CustomRegion1!C25","v":0},{"$f":"FN152*CustomRegion1!$C25","v":3510.1278240494917},{"$f":"FO152*CustomRegion1!$C25","v":3007.5489980389052},{"$f":"FK152*CustomRegion1!D25","v":0},{"$f":"FN152*CustomRegion1!$D25","v":788.20402464760696},{"$f":"FO152*CustomRegion1!$D25","v":675.34925888947294},{"$f":"(FS152*'Default-Data'!$C$58/wind_dollar_index)/CustomRegion1!$E25","v":0},{"$f":"(FT152*'Default-Data'!$C$58/wind_dollar_index)/CustomRegion1!$E25","v":0.19646695868528999},{"$f":"(FU152*'Default-Data'!$C$58/wind_dollar_index)/CustomRegion1!$E25","v":0.16833689095117224},85.228058860100745,132.68754940403852,{"$f":"FL152*CustomRegion1!C25","v":0},{"$f":"FY152*CustomRegion1!$C25","v":17.835861968828663},{"$f":"FZ152*CustomRegion1!$C25","v":27.767813180366588},{"$f":"FL152*CustomRegion1!D25","v":0},{"$f":"FY152*CustomRegion1!$D25","v":4.0050673056890149},{"$f":"FZ152*CustomRegion1!$D25","v":6.2353005934632924},{"$f":"(GD152*'Default-Data'!$C$58/wind_dollar_index)/CustomRegion1!$E25","v":0},{"$f":"(GE152*'Default-Data'!$C$58/wind_dollar_index)/CustomRegion1!$E25","v":9.982991310281662E-4},{"$f":"(GF152*'Default-Data'!$C$58/wind_dollar_index)/CustomRegion1!$E25","v":1.5542048832267858E-3},null,"C33 Medical, precision and optical instruments",0,0,null,0,0,{"$f":"GL152*CustomRegion2!C29","v":0},{"$f":"GO152*CustomRegion2!$C29","v":0},{"$f":"GP152*CustomRegion2!$C29","v":0},{"$f":"GL152*CustomRegion2!D29","v":0},{"$f":"GO152*CustomRegion2!$D29","v":0},{"$f":"GP152*CustomRegion2!$D29","v":0},{"$f":"(GT152*'Default-Data'!$C$59/wind_dollar_index)/CustomRegion2!$E29","v":0},{"$f":"(GU152*'Default-Data'!$C$59/wind_dollar_index)/CustomRegion2!$E29","v":0},{"$f":"(GV152*'Default-Data'!$C$59/wind_dollar_index)/CustomRegion2!$E29","v":0},0,0,{"$f":"GM152*CustomRegion2!C29","v":0},{"$f":"GZ152*CustomRegion2!$C29","v":0},{"$f":"HA152*CustomRegion2!$C29","v":0},{"$f":"GM152*CustomRegion2!D29","v":0},{"$f":"GZ152*CustomRegion2!$D29","v":0},{"$f":"HA152*CustomRegion2!$D29","v":0},{"$f":"(HE152*'Default-Data'!$C$59/wind_dollar_index)/CustomRegion2!$E29","v":0},{"$f":"(HF152*'Default-Data'!$C$59/wind_dollar_index)/CustomRegion2!$E29","v":0},{"$f":"(HG152*'Default-Data'!$C$59/wind_dollar_index)/CustomRegion2!$E29","v":0},null,"FURNIMFG",0,0,null,16038778.72257857,1021424.8396423347,{"$f":"HM152*CustomRegion3!D28","v":0},{"$f":"HP152*CustomRegion3!$D28","v":2946909.1533224457},{"$f":"HQ152*CustomRegion3!$D28","v":187673.03056158003},{"$f":"HM152*CustomRegion3!E28","v":0},{"$f":"HP152*CustomRegion3!$E28","v":913439.61087159812},{"$f":"HQ152*CustomRegion3!$E28","v":58172.12919983959},{"$f":"(HU152*'Default-Data'!$C$60/wind_dollar_index)/CustomRegion3!$F28","v":0},{"$f":"(HV152*'Default-Data'!$C$60/wind_dollar_index)/CustomRegion3!$F28","v":2749.8282558620099},{"$f":"(HW152*'Default-Data'!$C$60/wind_dollar_index)/CustomRegion3!$F28","v":175.12199238298675},44999.473465990101,4968.2256785800782,{"$f":"HN152*CustomRegion3!D28","v":0},{"$f":"IA152*CustomRegion3!$D28","v":8268.0459993463282},{"$f":"IB152*CustomRegion3!$D28","v":912.84442420597338},{"$f":"HN152*CustomRegion3!E28","v":0},{"$f":"IA152*CustomRegion3!$E28","v":2562.8074458272981},{"$f":"IB152*CustomRegion3!$E28","v":282.95010543264493},{"$f":"(IF152*'Default-Data'!$C$60/wind_dollar_index)/CustomRegion3!$F28","v":0},{"$f":"(IG152*'Default-Data'!$C$60/wind_dollar_index)/CustomRegion3!$F28","v":7.7151026132367768},{"$f":"(IH152*'Default-Data'!$C$60/wind_dollar_index)/CustomRegion3!$F28","v":0.85179598701155301}]
[null,null,null,null,null,null,null,null,null,null,null,null,null,null,null,null,null,null,null,null,null,null,null,null,null,null,null,null,null,152,"TTL_C36T37: Manufacturing nec; recycling",0,0,null,930877.82536468364,413616.36755953671,{"$f":"AF153*'Colombia-IO-Data'!AN30","v":0},{"$f":"AI153*'Colombia-IO-Data'!$AN30","v":347041.80630024307},{"$f":"AJ153*'Colombia-IO-Data'!$AN30","v":154200.8708360545},{"$f":"AK153*'Colombia-IO-Data'!$AO30","v":0},{"$f":"AL153*'Colombia-IO-Data'!$AO30","v":79885.34814526276},{"$f":"AM153*'Colombia-IO-Data'!$AO30","v":35495.407260483364},{"$f":"(Calculations!AN153*'Default-Data'!$F$19/wind_dollar_index)/'Colombia-IO-Data'!$AP30","v":0},{"$f":"(Calculations!AO153*'Default-Data'!$F$19/wind_dollar_index)/'Colombia-IO-Data'!$AP30","v":15.047986041606297},{"$f":"(Calculations!AP153*'Default-Data'!$F$19/wind_dollar_index)/'Colombia-IO-Data'!$AP30","v":6.6862623171600815},1077.6786303120909,4579.7704926295501,{"$f":"AG153*'Colombia-IO-Data'!AN30","v":0},{"$f":"AT153*'Colombia-IO-Data'!$AN30","v":401.77081060896546},{"$f":"AU153*'Colombia-IO-Data'!$AN30","v":1707.3903587509519},{"$f":"AV153*'Colombia-IO-Data'!$AO30","v":0},{"$f":"AW153*'Colombia-IO-Data'!$AO30","v":92.483385279334726},{"$f":"AX153*'Colombia-IO-Data'!$AO30","v":393.02317689841203},{"$f":"(AY153*'Default-Data'!$F$19/wind_dollar_index)/'Colombia-IO-Data'!$AP30","v":0},{"$f":"(AZ153*'Default-Data'!$F$19/wind_dollar_index)/'Colombia-IO-Data'!$AP30","v":1.742107561743729E-2},{"$f":"(BA153*'Default-Data'!$F$19/wind_dollar_index)/'Colombia-IO-Data'!$AP30","v":7.403369225155941E-2},null,"DOM_C36T37: Manufacturing nec; recycling",0,0,null,348628.15422846616,511880.20532317186,{"$f":"BG153*'Mexico-IO-Data'!AQ30","v":0},{"$f":"BJ153*'Mexico-IO-Data'!$AQ30","v":131076.47784439466},{"$f":"BK153*'Mexico-IO-Data'!$AQ30","v":192455.63956391576},{"$f":"BG153*'Mexico-IO-Data'!AR30","v":0},{"$f":"BJ153*'Mexico-IO-Data'!$AR30","v":53921.249903753844},{"$f":"BK153*'Mexico-IO-Data'!$AR30","v":79170.945138090305},{"$f":"(BO153*'Default-Data'!$F$19/wind_dollar_index)/'Mexico-IO-Data'!$AS30","v":0},{"$f":"(BP153*'Default-Data'!$F$19/wind_dollar_index)/'Mexico-IO-Data'!$AS30","v":6.7521454082574142},{"$f":"(BQ153*'Default-Data'!$F$19/wind_dollar_index)/'Mexico-IO-Data'!$AS30","v":9.9139714794396969},3698.9201559918165,4095.568749690734,{"$f":"BH153*'Mexico-IO-Data'!AQ30","v":0},{"$f":"BU153*'Mexico-IO-Data'!$AQ30","v":1390.7121957721047},{"$f":"BV153*'Mexico-IO-Data'!$AQ30","v":1539.8432971286379},{"$f":"BH153*'Mexico-IO-Data'!AR30","v":0},{"$f":"BX153*'Mexico-IO-Data'!$AR30","v":215.09720010531183},{"$f":"BY153*'Mexico-IO-Data'!$AR30","v":238.1628512500497},{"$f":"(CA153*'Default-Data'!$F$19/wind_dollar_index)/'Mexico-IO-Data'!$AS30","v":2.6934975999489914E-2},{"$f":"(CB153*'Default-Data'!$F$19/wind_dollar_index)/'Mexico-IO-Data'!$AS30","v":2.9823310946164926E-2},{"$f":"(CC153*'Default-Data'!$F$19/wind_dollar_index)/'Mexico-IO-Data'!$AS30","v":3.3728608821402396E-6},null,"TTL_C36T37: Manufacturing nec; recycling",0,0,null,110537.42493307969,213537.35879680119,{"$f":"CH153*'Philippines-IO-Data'!AN30","v":0},{"$f":"CK153*'Philippines-IO-Data'!$AN30","v":44809.138632575232},{"$f":"CL153*'Philippines-IO-Data'!$AN30","v":86562.764777202203},{"$f":"CH153*'Philippines-IO-Data'!AO30","v":0},{"$f":"CK153*'Philippines-IO-Data'!$AO30","v":15126.651895073168},{"$f":"CL153*'Philippines-IO-Data'!$AO30","v":29221.82505217654},{"$f":"(CP153*'Default-Data'!$F$19/wind_dollar_index)/'Philippines-IO-Data'!$AP30","v":0},{"$f":"(CQ153*'Default-Data'!$F$19/wind_dollar_index)/'Philippines-IO-Data'!$AP30","v":3.7547649639246896},{"$f":"(CR153*'Default-Data'!$F$19/wind_dollar_index)/'Philippines-IO-Data'!$AP30","v":7.2534944050365828},500.6212406457401,1958.6143570249626,{"$f":"CI153*'Philippines-IO-Data'!AN30","v":0},{"$f":"CV153*'Philippines-IO-Data'!$AN30","v":202.93947129750441},{"$f":"CW153*'Philippines-IO-Data'!$AN30","v":793.97382655527508},{"$f":"CI153*'Philippines-IO-Data'!AO30","v":0},{"$f":"CV153*'Philippines-IO-Data'!$AO30","v":68.508229164125694},{"$f":"CW153*'Philippines-IO-Data'!$AO30","v":268.02938093904191},{"$f":"(DA153*'Default-Data'!$F$19/wind_dollar_index)/'Philippines-IO-Data'!$AP30","v":0},{"$f":"(DB153*'Default-Data'!$F$19/wind_dollar_index)/'Philippines-IO-Data'!$AP30","v":1.7005236875303829E-2},{"$f":"(DC153*'Default-Data'!$F$19/wind_dollar_index)/'Philippines-IO-Data'!$AP30","v":6.6530738978671441E-2},null,"DOM_C36T37: Manufacturing nec; recycling",0,0,null,1705884.4987385601,2282975.2248803014,{"$f":"DI153*'SouthAfrica-IO-Data'!AR30","v":0},{"$f":"DL153*'SouthAfrica-IO-Data'!$AR30","v":456455.60319909645},{"$f":"DM153*'SouthAfrica-IO-Data'!$AR30","v":610871.85804895288},{"$f":"DI153*'SouthAfrica-IO-Data'!AS30","v":0},{"$f":"DL153*'SouthAfrica-IO-Data'!$AS30","v":177144.19813099623},{"$f":"DM153*'SouthAfrica-IO-Data'!$AS30","v":237071.04195120049},{"$f":"(DQ153*'Default-Data'!$F$19/wind_dollar_index)/'SouthAfrica-IO-Data'!$AT30","v":0},{"$f":"(DR153*'Default-Data'!$F$19/wind_dollar_index)/'SouthAfrica-IO-Data'!$AT30","v":11.057700342145724},{"$f":"(DS153*'Default-Data'!$F$19/wind_dollar_index)/'SouthAfrica-IO-Data'!$AT30","v":14.798455548389404},4936.4407865842313,22277.928071904673,{"$f":"DJ153*'SouthAfrica-IO-Data'!AR30","v":0},{"$f":"'SouthAfrica-IO-Data'!$AR30*Calculations!DW153","v":1320.8784408106974},{"$f":"'SouthAfrica-IO-Data'!$AR30*Calculations!DX153","v":5961.0630752591132},{"$f":"DJ153*'SouthAfrica-IO-Data'!AS30","v":0},{"$f":"DW153*'SouthAfrica-IO-Data'!$AS30","v":512.61491936132893},{"$f":"DX153*'SouthAfrica-IO-Data'!$AS30","v":2313.4073304703738},{"$f":"(EB153*'Default-Data'!$F$19/wind_dollar_index)/'SouthAfrica-IO-Data'!$AT30","v":0},{"$f":"(EC153*'Default-Data'!$F$19/wind_dollar_index)/'SouthAfrica-IO-Data'!$AT30","v":3.1998463562544072E-2},{"$f":"(ED153*'Default-Data'!$F$19/wind_dollar_index)/'SouthAfrica-IO-Data'!$AT30","v":0.14440758037555276},null,"INDCHEMMFG",0,0,null,1891991.3238054831,522109.43565910449,{"$f":"EJ153*'Zambia-IO-Data'!BO28","v":0},{"$f":"EM153*'Zambia-IO-Data'!$BO28","v":352605.45409577078},{"$f":"EN153*'Zambia-IO-Data'!$BO28","v":97304.164311903834},{"$f":"EJ153*'Zambia-IO-Data'!BN28","v":0},{"$f":"EM153*'Zambia-IO-Data'!$BN28","v":68105.232140505977},{"$f":"EN153*'Zambia-IO-Data'!$BN28","v":18794.158234716971},{"$f":"(ER153*'Default-Data'!$F$19/wind_dollar_index)/'Zambia-IO-Data'!$BP28","v":0},{"$f":"(ES153*'Default-Data'!$F$19/wind_dollar_index)/'Zambia-IO-Data'!$BP28","v":204.19768308845295},{"$f":"(ET153*'Default-Data'!$F$19/wind_dollar_index)/'Zambia-IO-Data'!$BP28","v":56.349908024826576},28634.988026436589,2391.7690234725596,{"$f":"EK153*'Zambia-IO-Data'!BO28","v":0},{"$f":"EX153*'Zambia-IO-Data'!$BO28","v":5336.6275146442995},{"$f":"EY153*'Zambia-IO-Data'!$BO28","v":445.74771142050207},{"$f":"EK153*'Zambia-IO-Data'!BN28","v":0},{"$f":"EX153*'Zambia-IO-Data'!$BN28","v":1030.7618657354762},{"$f":"EY153*'Zambia-IO-Data'!$BN28","v":86.095524075890012},{"$f":"(FC153*'Default-Data'!$F$19/wind_dollar_index)/'Zambia-IO-Data'!$BP28","v":0},{"$f":"(FD153*'Default-Data'!$F$19/wind_dollar_index)/'Zambia-IO-Data'!$BP28","v":3.0904994841641775},{"$f":"(FE153*'Default-Data'!$F$19/wind_dollar_index)/'Zambia-IO-Data'!$BP28","v":0.25813738516173051},null,"TTL_C36T37: Manufacturing nec; recycling",0,0,null,254186.70632948904,363569.62865364528,{"$f":"FK153*CustomRegion1!C26","v":0},{"$f":"FN153*CustomRegion1!$C26","v":103041.00506567163},{"$f":"FO153*CustomRegion1!$C26","v":147382.1368898176},{"$f":"FK153*CustomRegion1!D26","v":0},{"$f":"FN153*CustomRegion1!$D26","v":34784.54311134138},{"$f":"FO153*CustomRegion1!$D26","v":49753.205446881104},{"$f":"(FS153*'Default-Data'!$C$58/wind_dollar_index)/CustomRegion1!$E26","v":0},{"$f":"(FT153*'Default-Data'!$C$58/wind_dollar_index)/CustomRegion1!$E26","v":8.6703609479765973},{"$f":"(FU153*'Default-Data'!$C$58/wind_dollar_index)/CustomRegion1!$E26","v":12.401434975371146},1138.4573764689587,3356.7311897802974,{"$f":"FL153*CustomRegion1!C26","v":0},{"$f":"FY153*CustomRegion1!$C26","v":461.50246796828634},{"$f":"FZ153*CustomRegion1!$C26","v":1360.7358170883338},{"$f":"FL153*CustomRegion1!D26","v":0},{"$f":"FY153*CustomRegion1!$D26","v":155.79382676636419},{"$f":"FZ153*CustomRegion1!$D26","v":459.35667710625285},{"$f":"(GD153*'Default-Data'!$C$58/wind_dollar_index)/CustomRegion1!$E26","v":0},{"$f":"(GE153*'Default-Data'!$C$58/wind_dollar_index)/CustomRegion1!$E26","v":3.8833015779658038E-2},{"$f":"(GF153*'Default-Data'!$C$58/wind_dollar_index)/CustomRegion1!$E26","v":0.1144987928007534},null,"C34 Motor vehicles, trailers and semi-trailers",0,0,null,5231147.1814168664,5982085.6980699981,{"$f":"GL153*CustomRegion2!C30","v":0},{"$f":"GO153*CustomRegion2!$C30","v":1595999.8544177455},{"$f":"GP153*CustomRegion2!$C30","v":1825107.8725428367},{"$f":"GL153*CustomRegion2!D30","v":0},{"$f":"GO153*CustomRegion2!$D30","v":555072.63359570643},{"$f":"GP153*CustomRegion2!$D30","v":634754.08885810815},{"$f":"(GT153*'Default-Data'!$C$59/wind_dollar_index)/CustomRegion2!$E30","v":0},{"$f":"(GU153*'Default-Data'!$C$59/wind_dollar_index)/CustomRegion2!$E30","v":59.829363738739936},{"$f":"(GV153*'Default-Data'!$C$59/wind_dollar_index)/CustomRegion2!$E30","v":68.417952837871567},0,0,{"$f":"GM153*CustomRegion2!C30","v":0},{"$f":"GZ153*CustomRegion2!$C30","v":0},{"$f":"HA153*CustomRegion2!$C30","v":0},{"$f":"GM153*CustomRegion2!D30","v":0},{"$f":"GZ153*CustomRegion2!$D30","v":0},{"$f":"HA153*CustomRegion2!$D30","v":0},{"$f":"(HE153*'Default-Data'!$C$59/wind_dollar_index)/CustomRegion2!$E30","v":0},{"$f":"(HF153*'Default-Data'!$C$59/wind_dollar_index)/CustomRegion2!$E30","v":0},{"$f":"(HG153*'Default-Data'!$C$59/wind_dollar_index)/CustomRegion2!$E30","v":0},null,"INDCHEMMFG",0,0,null,1891991.3238054831,522109.43565910449,{"$f":"HM153*CustomRegion3!D29","v":0},{"$f":"HP153*CustomRegion3!$D29","v":352605.45409577078},{"$f":"HQ153*CustomRegion3!$D29","v":97304.164311903834},{"$f":"HM153*CustomRegion3!E29","v":0},{"$f":"HP153*CustomRegion3!$E29","v":68105.232140505977},{"$f":"HQ153*CustomRegion3!$E29","v":18794.158234716971},{"$f":"(HU153*'Default-Data'!$C$60/wind_dollar_index)/CustomRegion3!$F29","v":0},{"$f":"(HV153*'Default-Data'!$C$60/wind_dollar_index)/CustomRegion3!$F29","v":205.02471042755161},{"$f":"(HW153*'Default-Data'!$C$60/wind_dollar_index)/CustomRegion3!$F29","v":56.578132526629759},28634.988026436589,2391.7690234725596,{"$f":"HN153*CustomRegion3!D29","v":0},{"$f":"IA153*CustomRegion3!$D29","v":5336.6275146442995},{"$f":"IB153*CustomRegion3!$D29","v":445.74771142050207},{"$f":"HN153*CustomRegion3!E29","v":0},{"$f":"IA153*CustomRegion3!$E29","v":1030.7618657354762},{"$f":"IB153*CustomRegion3!$E29","v":86.095524075890012},{"$f":"(IF153*'Default-Data'!$C$60/wind_dollar_index)/CustomRegion3!$F29","v":0},{"$f":"(IG153*'Default-Data'!$C$60/wind_dollar_index)/CustomRegion3!$F29","v":3.1030164115172019},{"$f":"(IH153*'Default-Data'!$C$60/wind_dollar_index)/CustomRegion3!$F29","v":0.25918287535311391}]
[null,null,null,null,null,null,null,null,null,null,null,null,null,null,null,null,null,null,null,null,null,null,null,null,null,null,null,null,null,153,"TTL_C40T41: Electricity, gas and water supply",0,{"$f":"'Wind-Inputs'!B33*'Wind-Inputs'!C33","v":2106178.9064264097},null,3536727.1530196797,3274069.0637637395,{"$f":"AF154*'Colombia-IO-Data'!AN31","v":0},{"$f":"AI154*'Colombia-IO-Data'!$AN31","v":1870533.2281847729},{"$f":"AJ154*'Colombia-IO-Data'!$AN31","v":1731616.4663459994},{"$f":"AK154*'Colombia-IO-Data'!$AO31","v":0},{"$f":"AL154*'Colombia-IO-Data'!$AO31","v":329665.43654127588},{"$f":"AM154*'Colombia-IO-Data'!$AO31","v":305182.54885746731},{"$f":"(Calculations!AN154*'Default-Data'!$F$19/wind_dollar_index)/'Colombia-IO-Data'!$AP31","v":0},{"$f":"(Calculations!AO154*'Default-Data'!$F$19/wind_dollar_index)/'Colombia-IO-Data'!$AP31","v":25.188224577420915},{"$f":"(Calculations!AP154*'Default-Data'!$F$19/wind_dollar_index)/'Colombia-IO-Data'!$AP31","v":23.317599377055597},638593.29338778835,36252.155536126811,{"$f":"AG154*'Colombia-IO-Data'!AN31","v":1113933.1530306898},{"$f":"AT154*'Colombia-IO-Data'!$AN31","v":337744.45211526297},{"$f":"AU154*'Colombia-IO-Data'!$AN31","v":19173.336983530218},{"$f":"AV154*'Colombia-IO-Data'!$AO31","v":196321.16320544048},{"$f":"AW154*'Colombia-IO-Data'!$AO31","v":59524.562605082843},{"$f":"AX154*'Colombia-IO-Data'!$AO31","v":3379.136179667003},{"$f":"(AY154*'Default-Data'!$F$19/wind_dollar_index)/'Colombia-IO-Data'!$AP31","v":15},{"$f":"(AZ154*'Default-Data'!$F$19/wind_dollar_index)/'Colombia-IO-Data'!$AP31","v":4.5479989243029264},{"$f":"(BA154*'Default-Data'!$F$19/wind_dollar_index)/'Colombia-IO-Data'!$AP31","v":0.25818430304410706},null,"DOM_C40T41: Electricity, gas and water supply",0,2106178.9064264097,null,2291792.7937938231,1919458.6130234492,{"$f":"BG154*'Mexico-IO-Data'!AQ31","v":0},{"$f":"BJ154*'Mexico-IO-Data'!$AQ31","v":1025182.4965877223},{"$f":"BK154*'Mexico-IO-Data'!$AQ31","v":858627.08807051764},{"$f":"BG154*'Mexico-IO-Data'!AR31","v":0},{"$f":"BJ154*'Mexico-IO-Data'!$AR31","v":247617.21294659463},{"$f":"BK154*'Mexico-IO-Data'!$AR31","v":207388.29156383203},{"$f":"(BO154*'Default-Data'!$F$19/wind_dollar_index)/'Mexico-IO-Data'!$AS31","v":0},{"$f":"(BP154*'Default-Data'!$F$19/wind_dollar_index)/'Mexico-IO-Data'!$AS31","v":10.634605560011209},{"$f":"(BQ154*'Default-Data'!$F$19/wind_dollar_index)/'Mexico-IO-Data'!$AS31","v":8.9068633488804672},37136.666838256642,15357.645460934844,{"$f":"BH154*'Mexico-IO-Data'!AQ31","v":942152.25538617151},{"$f":"BU154*'Mexico-IO-Data'!$AQ31","v":16612.261338498425},{"$f":"BV154*'Mexico-IO-Data'!$AQ31","v":6869.9008732316925},{"$f":"BH154*'Mexico-IO-Data'!AR31","v":227562.52318643613},{"$f":"BX154*'Mexico-IO-Data'!$AR31","v":1794.8751145909691},{"$f":"BY154*'Mexico-IO-Data'!$AR31","v":742.25982037102312},{"$f":"(CA154*'Default-Data'!$F$19/wind_dollar_index)/'Mexico-IO-Data'!$AS31","v":7.708587236732882E-2},{"$f":"(CB154*'Default-Data'!$F$19/wind_dollar_index)/'Mexico-IO-Data'!$AS31","v":3.1878399400259307E-2},{"$f":"(CC154*'Default-Data'!$F$19/wind_dollar_index)/'Mexico-IO-Data'!$AS31","v":3.3106658342557013E-6},null,"TTL_C40T41: Electricity, gas and water supply",0,{"$f":"'Wind-Inputs'!B33*'Wind-Inputs'!C33","v":2106178.9064264097},null,3173218.2068067454,2708544.9864069922,{"$f":"CH154*'Philippines-IO-Data'!AN31","v":0},{"$f":"CK154*'Philippines-IO-Data'!$AN31","v":1901570.1484324608},{"$f":"CL154*'Philippines-IO-Data'!$AN31","v":1623111.9186161961},{"$f":"CH154*'Philippines-IO-Data'!AO31","v":0},{"$f":"CK154*'Philippines-IO-Data'!$AO31","v":393817.87957615347},{"$f":"CL154*'Philippines-IO-Data'!$AO31","v":336148.78453531623},{"$f":"(CP154*'Default-Data'!$F$19/wind_dollar_index)/'Philippines-IO-Data'!$AP31","v":0},{"$f":"(CQ154*'Default-Data'!$F$19/wind_dollar_index)/'Philippines-IO-Data'!$AP31","v":79.577504020009812},{"$f":"(CR154*'Default-Data'!$F$19/wind_dollar_index)/'Philippines-IO-Data'!$AP31","v":67.924496677169913},148353.06663175207,24843.405045918189,{"$f":"CI154*'Philippines-IO-Data'!AN31","v":1262140.412256402},{"$f":"CV154*'Philippines-IO-Data'!$AN31","v":88901.469911593798},{"$f":"CW154*'Philippines-IO-Data'!$AN31","v":14887.560306882951},{"$f":"CI154*'Philippines-IO-Data'!AO31","v":261391.07268376564},{"$f":"CV154*'Philippines-IO-Data'!$AO31","v":18411.620733869859},{"$f":"CW154*'Philippines-IO-Data'!$AO31","v":3083.23489246602},{"$f":"(DA154*'Default-Data'!$F$19/wind_dollar_index)/'Philippines-IO-Data'!$AP31","v":52.818447856338956},{"$f":"(DB154*'Default-Data'!$F$19/wind_dollar_index)/'Philippines-IO-Data'!$AP31","v":3.7203765977849792},{"$f":"(DC154*'Default-Data'!$F$19/wind_dollar_index)/'Philippines-IO-Data'!$AP31","v":0.62301929336959971},null,"DOM_C40T41: Electricity, gas and water supply",0,2106178.9064264097,null,4524059.6642072322,4744309.5484625855,{"$f":"DI154*'SouthAfrica-IO-Data'!AR31","v":0},{"$f":"DL154*'SouthAfrica-IO-Data'!$AR31","v":2459851.468435592},{"$f":"DM154*'SouthAfrica-IO-Data'!$AR31","v":2579607.1837491384},{"$f":"DI154*'SouthAfrica-IO-Data'!AS31","v":0},{"$f":"DL154*'SouthAfrica-IO-Data'!$AS31","v":803795.99547181837},{"$f":"DM154*'SouthAfrica-IO-Data'!$AS31","v":842928.09984440892},{"$f":"(DQ154*'Default-Data'!$F$19/wind_dollar_index)/'SouthAfrica-IO-Data'!$AT31","v":0},{"$f":"(DR154*'Default-Data'!$F$19/wind_dollar_index)/'SouthAfrica-IO-Data'!$AT31","v":23.354646962585505},{"$f":"(DS154*'Default-Data'!$F$19/wind_dollar_index)/'SouthAfrica-IO-Data'!$AT31","v":24.491647504605425},287091.01897836383,46296.335465944372,{"$f":"DJ154*'SouthAfrica-IO-Data'!AR31","v":1145185.4441156976},{"$f":"'SouthAfrica-IO-Data'!$AR31*Calculations!DW154","v":156099.01659693275},{"$f":"'SouthAfrica-IO-Data'!$AR31*Calculations!DX154","v":25172.547939649252},{"$f":"DJ154*'SouthAfrica-IO-Data'!AS31","v":374207.74622551788},{"$f":"DW154*'SouthAfrica-IO-Data'!$AS31","v":51007.862079372033},{"$f":"DX154*'SouthAfrica-IO-Data'!$AS31","v":8225.5345452140373},{"$f":"(EB154*'Default-Data'!$F$19/wind_dollar_index)/'SouthAfrica-IO-Data'!$AT31","v":10.872771017765256},{"$f":"(EC154*'Default-Data'!$F$19/wind_dollar_index)/'SouthAfrica-IO-Data'!$AT31","v":1.4820559170374132},{"$f":"(ED154*'Default-Data'!$F$19/wind_dollar_index)/'SouthAfrica-IO-Data'!$AT31","v":0.23899653203579621},null,"OTHERMFG",{"$f":"'Wind-Inputs'!B14*'Wind-Inputs'!C14","v":0},{"$f":"0.5*'Wind-Inputs'!B34*'Wind-Inputs'!C34","v":0},null,67135596.724669293,2900180.1962965429,{"$f":"EJ154*'Zambia-IO-Data'!BO29","v":0},{"$f":"EM154*'Zambia-IO-Data'!$BO29","v":7205103.7018902935},{"$f":"EN154*'Zambia-IO-Data'!$BO29","v":311252.1536701672},{"$f":"EJ154*'Zambia-IO-Data'!BN29","v":0},{"$f":"EM154*'Zambia-IO-Data'!$BN29","v":242609.86130588365},{"$f":"EN154*'Zambia-IO-Data'!$BN29","v":10480.4656473252},{"$f":"(ER154*'Default-Data'!$F$19/wind_dollar_index)/'Zambia-IO-Data'!$BP29","v":0},{"$f":"(ES154*'Default-Data'!$F$19/wind_dollar_index)/'Zambia-IO-Data'!$BP29","v":727.4091874595922},{"$f":"(ET154*'Default-Data'!$F$19/wind_dollar_index)/'Zambia-IO-Data'!$BP29","v":31.423236300799566},632521.73291266593,14205.19307435723,{"$f":"EK154*'Zambia-IO-Data'!BO29","v":0},{"$f":"EX154*'Zambia-IO-Data'!$BO29","v":67883.282515912768},{"$f":"EY154*'Zambia-IO-Data'!$BO29","v":1524.5249048111714},{"$f":"EK154*'Zambia-IO-Data'!BN29","v":0},{"$f":"EX154*'Zambia-IO-Data'!$BN29","v":2285.7622093423788},{"$f":"EY154*'Zambia-IO-Data'!$BN29","v":51.333719959723545},{"$f":"(FC154*'Default-Data'!$F$19/wind_dollar_index)/'Zambia-IO-Data'!$BP29","v":0},{"$f":"(FD154*'Default-Data'!$F$19/wind_dollar_index)/'Zambia-IO-Data'!$BP29","v":6.8533258395760823},{"$f":"(FE154*'Default-Data'!$F$19/wind_dollar_index)/'Zambia-IO-Data'!$BP29","v":0.1539122083669201},null,"TTL_C40T41: Electricity, gas and water supply",0,2106178.9064264097,null,4995779.5948854974,3699218.5878726421,{"$f":"FK154*CustomRegion1!C27","v":0},{"$f":"FN154*CustomRegion1!$C27","v":2993751.0522927712},{"$f":"FO154*CustomRegion1!$C27","v":2216779.04914829},{"$f":"FK154*CustomRegion1!D27","v":0},{"$f":"FN154*CustomRegion1!$D27","v":620010.09658502869},{"$f":"FO154*CustomRegion1!$D27","v":459098.09077728499},{"$f":"(FS154*'Default-Data'!$C$58/wind_dollar_index)/CustomRegion1!$E27","v":0},{"$f":"(FT154*'Default-Data'!$C$58/wind_dollar_index)/CustomRegion1!$E27","v":125.8069332221484},{"$f":"(FU154*'Default-Data'!$C$58/wind_dollar_index)/CustomRegion1!$E27","v":93.156100468297424},161130.28080522316,34153.79457769962,{"$f":"FL154*CustomRegion1!C27","v":1262140.412256402},{"$f":"FY154*CustomRegion1!$C27","v":96558.29256573171},{"$f":"FZ154*CustomRegion1!$C27","v":20466.86738571438},{"$f":"FL154*CustomRegion1!D27","v":261391.07268376564},{"$f":"FY154*CustomRegion1!$D27","v":19997.359584697399},{"$f":"FZ154*CustomRegion1!$D27","v":4238.7173158206779},{"$f":"(GD154*'Default-Data'!$C$58/wind_dollar_index)/CustomRegion1!$E27","v":53.039151147891658},{"$f":"(GE154*'Default-Data'!$C$58/wind_dollar_index)/CustomRegion1!$E27","v":4.0576863114781467},{"$f":"(GF154*'Default-Data'!$C$58/wind_dollar_index)/CustomRegion1!$E27","v":0.86008281032224199},null,"C35 Other transport equipment",0,2106178.9064264097,null,0,0,{"$f":"GL154*CustomRegion2!C31","v":0},{"$f":"GO154*CustomRegion2!$C31","v":0},{"$f":"GP154*CustomRegion2!$C31","v":0},{"$f":"GL154*CustomRegion2!D31","v":0},{"$f":"GO154*CustomRegion2!$D31","v":0},{"$f":"GP154*CustomRegion2!$D31","v":0},{"$f":"(GT154*'Default-Data'!$C$59/wind_dollar_index)/CustomRegion2!$E31","v":0},{"$f":"(GU154*'Default-Data'!$C$59/wind_dollar_index)/CustomRegion2!$E31","v":0},{"$f":"(GV154*'Default-Data'!$C$59/wind_dollar_index)/CustomRegion2!$E31","v":0},0,0,{"$f":"GM154*CustomRegion2!C31","v":0},{"$f":"GZ154*CustomRegion2!$C31","v":0},{"$f":"HA154*CustomRegion2!$C31","v":0},{"$f":"GM154*CustomRegion2!D31","v":0},{"$f":"GZ154*CustomRegion2!$D31","v":0},{"$f":"HA154*CustomRegion2!$D31","v":0},{"$f":"(HE154*'Default-Data'!$C$59/wind_dollar_index)/CustomRegion2!$E31","v":0},{"$f":"(HF154*'Default-Data'!$C$59/wind_dollar_index)/CustomRegion2!$E31","v":0},{"$f":"(HG154*'Default-Data'!$C$59/wind_dollar_index)/CustomRegion2!$E31","v":0},null,"OTHERMFG",0,0,null,67135596.724669293,2900180.1962965429,{"$f":"HM154*CustomRegion3!D30","v":0},{"$f":"HP154*CustomRegion3!$D30","v":7205103.7018902935},{"$f":"HQ154*CustomRegion3!$D30","v":311252.1536701672},{"$f":"HM154*CustomRegion3!E30","v":0},{"$f":"HP154*CustomRegion3!$E30","v":242609.86130588365},{"$f":"HQ154*CustomRegion3!$E30","v":10480.4656473252},{"$f":"(HU154*'Default-Data'!$C$60/wind_dollar_index)/CustomRegion3!$F30","v":0},{"$f":"(HV154*'Default-Data'!$C$60/wind_dollar_index)/CustomRegion3!$F30","v":730.35528986213535},{"$f":"(HW154*'Default-Data'!$C$60/wind_dollar_index)/CustomRegion3!$F30","v":31.550504520059732},632521.73291266593,14205.19307435723,{"$f":"HN154*CustomRegion3!D30","v":0},{"$f":"IA154*CustomRegion3!$D30","v":67883.282515912768},{"$f":"IB154*CustomRegion3!$D30","v":1524.5249048111714},{"$f":"HN154*CustomRegion3!E30","v":0},{"$f":"IA154*CustomRegion3!$E30","v":2285.7622093423788},{"$f":"IB154*CustomRegion3!$E30","v":51.333719959723545},{"$f":"(IF154*'Default-Data'!$C$60/wind_dollar_index)/CustomRegion3!$F30","v":0},{"$f":"(IG154*'Default-Data'!$C$60/wind_dollar_index)/CustomRegion3!$F30","v":6.881082706095599},{"$f":"(IH154*'Default-Data'!$C$60/wind_dollar_index)/CustomRegion3!$F30","v":0.15453557295272374}]
[null,null,null,null,null,null,null,null,null,null,null,null,null,null,null,null,null,null,null,null,null,null,null,null,null,null,null,null,null,154,"TTL_C45: Construction",{"$f":"'Wind-Inputs'!B21*'Wind-Inputs'!C21+'Wind-Inputs'!B26*'Wind-Inputs'!C26","v":124717500},{"$f":"'Wind-Inputs'!B35*'Wind-Inputs'!C35","v":0},null,2053736.3386365473,656269.99552641809,{"$f":"AF155*'Colombia-IO-Data'!AN32","v":61930060.274752773},{"$f":"AI155*'Colombia-IO-Data'!$AN32","v":1019808.8900131213},{"$f":"AJ155*'Colombia-IO-Data'!$AN32","v":325879.21005041641},{"$f":"AK155*'Colombia-IO-Data'!$AO32","v":12213292.546122916},{"$f":"AL155*'Colombia-IO-Data'!$AO32","v":201117.5874786739},{"$f":"AM155*'Colombia-IO-Data'!$AO32","v":64266.982938295921},{"$f":"(Calculations!AN155*'Default-Data'!$F$19/wind_dollar_index)/'Colombia-IO-Data'!$AP32","v":2684.9143913206076},{"$f":"(Calculations!AO155*'Default-Data'!$F$19/wind_dollar_index)/'Colombia-IO-Data'!$AP32","v":44.212770874844018},{"$f":"(Calculations!AP155*'Default-Data'!$F$19/wind_dollar_index)/'Colombia-IO-Data'!$AP32","v":14.128159685535634},80979.261809678472,7266.5547024738189,{"$f":"AG155*'Colombia-IO-Data'!AN32","v":0},{"$f":"AT155*'Colombia-IO-Data'!$AN32","v":40211.282016384015},{"$f":"AU155*'Colombia-IO-Data'!$AN32","v":3608.3001239921568},{"$f":"AV155*'Colombia-IO-Data'!$AO32","v":0},{"$f":"AW155*'Colombia-IO-Data'!$AO32","v":7930.109364368931},{"$f":"AX155*'Colombia-IO-Data'!$AO32","v":711.59667555650094},{"$f":"(AY155*'Default-Data'!$F$19/wind_dollar_index)/'Colombia-IO-Data'!$AP32","v":0},{"$f":"(AZ155*'Default-Data'!$F$19/wind_dollar_index)/'Colombia-IO-Data'!$AP32","v":1.7433189843552426},{"$f":"(BA155*'Default-Data'!$F$19/wind_dollar_index)/'Colombia-IO-Data'!$AP32","v":0.15643415956854806},null,"DOM_C45: Construction",124717500,0,null,9671172.0006831884,128161.33142021298,{"$f":"BG155*'Mexico-IO-Data'!AQ32","v":62725736.212761238},{"$f":"BJ155*'Mexico-IO-Data'!$AQ32","v":4864043.8092737263},{"$f":"BK155*'Mexico-IO-Data'!$AQ32","v":64457.785534031296},{"$f":"BG155*'Mexico-IO-Data'!AR32","v":27587803.807282247},{"$f":"BJ155*'Mexico-IO-Data'!$AR32","v":2139285.9521825658},{"$f":"BK155*'Mexico-IO-Data'!$AR32","v":28349.587402737496},{"$f":"(BO155*'Default-Data'!$F$19/wind_dollar_index)/'Mexico-IO-Data'!$AS32","v":7496.4372095970357},{"$f":"(BP155*'Default-Data'!$F$19/wind_dollar_index)/'Mexico-IO-Data'!$AS32","v":581.30842621391912},{"$f":"(BQ155*'Default-Data'!$F$19/wind_dollar_index)/'Mexico-IO-Data'!$AS32","v":7.7034367565897517},8421.4328725145278,1025.4226251081727,{"$f":"BH155*'Mexico-IO-Data'!AQ32","v":0},{"$f":"BU155*'Mexico-IO-Data'!$AQ32","v":4235.4968380124874},{"$f":"BV155*'Mexico-IO-Data'!$AQ32","v":515.72865948349192},{"$f":"BH155*'Mexico-IO-Data'!AR32","v":0},{"$f":"BX155*'Mexico-IO-Data'!$AR32","v":936.90184451622929},{"$f":"BY155*'Mexico-IO-Data'!$AR32","v":114.08039028703469},{"$f":"(CA155*'Default-Data'!$F$19/wind_dollar_index)/'Mexico-IO-Data'!$AS32","v":0.25458444963703886},{"$f":"(CB155*'Default-Data'!$F$19/wind_dollar_index)/'Mexico-IO-Data'!$AS32","v":3.0999078020387261E-2},{"$f":"(CC155*'Default-Data'!$F$19/wind_dollar_index)/'Mexico-IO-Data'!$AS32","v":6.9178262777847761E-5},null,"TTL_C45: Construction",{"$f":"'Wind-Inputs'!B21*'Wind-Inputs'!C21+'Wind-Inputs'!B26*'Wind-Inputs'!C26","v":124717500},{"$f":"'Wind-Inputs'!B35*'Wind-Inputs'!C35","v":0},null,1295570.529540062,810244.20862673223,{"$f":"CH155*'Philippines-IO-Data'!AN32","v":68635598.958836615},{"$f":"CK155*'Philippines-IO-Data'!$AN32","v":712989.4304199433},{"$f":"CL155*'Philippines-IO-Data'!$AN32","v":445900.50764346897},{"$f":"CH155*'Philippines-IO-Data'!AO32","v":21091345.311141174},{"$f":"CK155*'Philippines-IO-Data'!$AO32","v":219097.76425495598},{"$f":"CL155*'Philippines-IO-Data'!$AO32","v":137022.79463987588},{"$f":"(CP155*'Default-Data'!$F$19/wind_dollar_index)/'Philippines-IO-Data'!$AP32","v":5235.3319799805631},{"$f":"(CQ155*'Default-Data'!$F$19/wind_dollar_index)/'Philippines-IO-Data'!$AP32","v":54.384844353209779},{"$f":"(CR155*'Default-Data'!$F$19/wind_dollar_index)/'Philippines-IO-Data'!$AP32","v":34.012046561369296},7505.6117736796396,7431.7484708743314,{"$f":"CI155*'Philippines-IO-Data'!AN32","v":0},{"$f":"CV155*'Philippines-IO-Data'!$AN32","v":4130.5523253673146},{"$f":"CW155*'Philippines-IO-Data'!$AN32","v":4089.9032422064092},{"$f":"CI155*'Philippines-IO-Data'!AO32","v":0},{"$f":"CV155*'Philippines-IO-Data'!$AO32","v":1269.296206948055},{"$f":"CW155*'Philippines-IO-Data'!$AO32","v":1256.8049653397152},{"$f":"(DA155*'Default-Data'!$F$19/wind_dollar_index)/'Philippines-IO-Data'!$AP32","v":0},{"$f":"(DB155*'Default-Data'!$F$19/wind_dollar_index)/'Philippines-IO-Data'!$AP32","v":0.31506700621856326},{"$f":"(DC155*'Default-Data'!$F$19/wind_dollar_index)/'Philippines-IO-Data'!$AP32","v":0.31196640757504002},null,"DOM_C45: Construction",124717500,0,null,9905541.7244265974,1617762.3906641304,{"$f":"DI155*'SouthAfrica-IO-Data'!AR32","v":37134716.873260155},{"$f":"DL155*'SouthAfrica-IO-Data'!$AR32","v":2949381.5014961557},{"$f":"DM155*'SouthAfrica-IO-Data'!$AR32","v":481689.80572510645},{"$f":"DI155*'SouthAfrica-IO-Data'!AS32","v":16748100.974421171},{"$f":"DL155*'SouthAfrica-IO-Data'!$AS32","v":1330198.3523325808},{"$f":"DM155*'SouthAfrica-IO-Data'!$AS32","v":217246.5601977577},{"$f":"(DQ155*'Default-Data'!$F$19/wind_dollar_index)/'SouthAfrica-IO-Data'!$AT32","v":1265.4535071877979},{"$f":"(DR155*'Default-Data'!$F$19/wind_dollar_index)/'SouthAfrica-IO-Data'!$AT32","v":100.50716632205345},{"$f":"(DS155*'Default-Data'!$F$19/wind_dollar_index)/'SouthAfrica-IO-Data'!$AT32","v":16.414722000220017},11350.334060695102,15786.590140738859,{"$f":"DJ155*'SouthAfrica-IO-Data'!AR32","v":0},{"$f":"'SouthAfrica-IO-Data'!$AR32*Calculations!DW155","v":3379.5693608421739},{"$f":"'SouthAfrica-IO-Data'!$AR32*Calculations!DX155","v":4700.4674987113895},{"$f":"DJ155*'SouthAfrica-IO-Data'!AS32","v":0},{"$f":"DW155*'SouthAfrica-IO-Data'!$AS32","v":1524.2170580867437},{"$f":"DX155*'SouthAfrica-IO-Data'!$AS32","v":2119.9543425653669},{"$f":"(EB155*'Default-Data'!$F$19/wind_dollar_index)/'SouthAfrica-IO-Data'!$AT32","v":0},{"$f":"(EC155*'Default-Data'!$F$19/wind_dollar_index)/'SouthAfrica-IO-Data'!$AT32","v":0.11516683741142771},{"$f":"(ED155*'Default-Data'!$F$19/wind_dollar_index)/'SouthAfrica-IO-Data'!$AT32","v":0.16017957271541122},null,"ELECWATER",0,{"$f":"'Wind-Inputs'!B33*'Wind-Inputs'!C33","v":2106178.9064264097},null,11636279.256190592,1255881.8833497055,{"$f":"EJ155*'Zambia-IO-Data'!BO30","v":0},{"$f":"EM155*'Zambia-IO-Data'!$BO30","v":3101758.7808784293},{"$f":"EN155*'Zambia-IO-Data'!$BO30","v":334767.03108114924},{"$f":"EJ155*'Zambia-IO-Data'!BN30","v":0},{"$f":"EM155*'Zambia-IO-Data'!$BN30","v":153546.31794669214},{"$f":"EN155*'Zambia-IO-Data'!$BN30","v":16571.967268808377},{"$f":"(ER155*'Default-Data'!$F$19/wind_dollar_index)/'Zambia-IO-Data'!$BP30","v":0},{"$f":"(ES155*'Default-Data'!$F$19/wind_dollar_index)/'Zambia-IO-Data'!$BP30","v":207.5622205029203},{"$f":"(ET155*'Default-Data'!$F$19/wind_dollar_index)/'Zambia-IO-Data'!$BP30","v":22.401802729061689},2188744.9898559446,6198.5643007820472,{"$f":"EK155*'Zambia-IO-Data'!BO30","v":561421.63429375517},{"$f":"EX155*'Zambia-IO-Data'!$BO30","v":583430.39402200375},{"$f":"EY155*'Zambia-IO-Data'!$BO30","v":1652.2851356082447},{"$f":"EK155*'Zambia-IO-Data'!BN30","v":27792.046658446823},{"$f":"EX155*'Zambia-IO-Data'!$BN30","v":28881.545957902003},{"$f":"EY155*'Zambia-IO-Data'!$BN30","v":81.793046040429829},{"$f":"(FC155*'Default-Data'!$F$19/wind_dollar_index)/'Zambia-IO-Data'!$BP30","v":37.568982401458236},{"$f":"(FD155*'Default-Data'!$F$19/wind_dollar_index)/'Zambia-IO-Data'!$BP30","v":39.041755548058887},{"$f":"(FE155*'Default-Data'!$F$19/wind_dollar_index)/'Zambia-IO-Data'!$BP30","v":0.11056693826903288},null,"TTL_C45: Construction",124717500,0,null,1875092.2062627226,1098263.6100269556,{"$f":"FK155*CustomRegion1!C28","v":68635598.958836615},{"$f":"FN155*CustomRegion1!$C28","v":1031916.7452834476},{"$f":"FO155*CustomRegion1!$C28","v":604405.80262508674},{"$f":"FK155*CustomRegion1!D28","v":21091345.311141174},{"$f":"FN155*CustomRegion1!$D28","v":317102.38909949793},{"$f":"FO155*CustomRegion1!$D28","v":185730.60750687763},{"$f":"(FS155*'Default-Data'!$C$58/wind_dollar_index)/CustomRegion1!$E28","v":5257.20795413822},{"$f":"(FT155*'Default-Data'!$C$58/wind_dollar_index)/CustomRegion1!$E28","v":79.040629113853072},{"$f":"(FU155*'Default-Data'!$C$58/wind_dollar_index)/CustomRegion1!$E28","v":46.295028254850102},14427.822417872261,10139.944109275732,{"$f":"FL155*CustomRegion1!C28","v":0},{"$f":"FY155*CustomRegion1!$C28","v":7940.0423623179822},{"$f":"FZ155*CustomRegion1!$C28","v":5580.3005781006423},{"$f":"FL155*CustomRegion1!D28","v":0},{"$f":"FY155*CustomRegion1!$D28","v":2439.9317233200445},{"$f":"FZ155*CustomRegion1!$D28","v":1714.7959399796041},{"$f":"(GD155*'Default-Data'!$C$58/wind_dollar_index)/CustomRegion1!$E28","v":0},{"$f":"(GE155*'Default-Data'!$C$58/wind_dollar_index)/CustomRegion1!$E28","v":0.60817497765856265},{"$f":"(GF155*'Default-Data'!$C$58/wind_dollar_index)/CustomRegion1!$E28","v":0.42742834666988488},null,"C36T37 Manufacturing n.e.c; recycling",124717500,0,null,6837904.6218643785,1503716.6884835511,{"$f":"GL155*CustomRegion2!C32","v":46072623.56259308},{"$f":"GO155*CustomRegion2!$C32","v":2526030.4736710796},{"$f":"GP155*CustomRegion2!$C32","v":555496.80624845508},{"$f":"GL155*CustomRegion2!D32","v":21052556.619177867},{"$f":"GO155*CustomRegion2!$D32","v":1154251.6022878734},{"$f":"GP155*CustomRegion2!$D32","v":253830.30227115366},{"$f":"(GT155*'Default-Data'!$C$59/wind_dollar_index)/CustomRegion2!$E32","v":2636.2505276118427},{"$f":"(GU155*'Default-Data'!$C$59/wind_dollar_index)/CustomRegion2!$E32","v":144.53809342834344},{"$f":"(GV155*'Default-Data'!$C$59/wind_dollar_index)/CustomRegion2!$E32","v":31.785225917722002},0,0,{"$f":"GM155*CustomRegion2!C32","v":0},{"$f":"GZ155*CustomRegion2!$C32","v":0},{"$f":"HA155*CustomRegion2!$C32","v":0},{"$f":"GM155*CustomRegion2!D32","v":0},{"$f":"GZ155*CustomRegion2!$D32","v":0},{"$f":"HA155*CustomRegion2!$D32","v":0},{"$f":"(HE155*'Default-Data'!$C$59/wind_dollar_index)/CustomRegion2!$E32","v":0},{"$f":"(HF155*'Default-Data'!$C$59/wind_dollar_index)/CustomRegion2!$E32","v":0},{"$f":"(HG155*'Default-Data'!$C$59/wind_dollar_index)/CustomRegion2!$E32","v":0},null,"ELECWATER",0,2106178.9064264097,null,11636279.256190592,1255881.8833497055,{"$f":"HM155*CustomRegion3!D31","v":0},{"$f":"HP155*CustomRegion3!$D31","v":3101758.7808784293},{"$f":"HQ155*CustomRegion3!$D31","v":334767.03108114924},{"$f":"HM155*CustomRegion3!E31","v":0},{"$f":"HP155*CustomRegion3!$E31","v":153546.31794669214},{"$f":"HQ155*CustomRegion3!$E31","v":16571.967268808377},{"$f":"(HU155*'Default-Data'!$C$60/wind_dollar_index)/CustomRegion3!$F31","v":0},{"$f":"(HV155*'Default-Data'!$C$60/wind_dollar_index)/CustomRegion3!$F31","v":208.40287465885206},{"$f":"(HW155*'Default-Data'!$C$60/wind_dollar_index)/CustomRegion3!$F31","v":22.4925329617549},2188744.9898559446,6198.5643007820472,{"$f":"HN155*CustomRegion3!D31","v":561421.63429375517},{"$f":"IA155*CustomRegion3!$D31","v":583430.39402200375},{"$f":"IB155*CustomRegion3!$D31","v":1652.2851356082447},{"$f":"HN155*CustomRegion3!E31","v":27792.046658446823},{"$f":"IA155*CustomRegion3!$E31","v":28881.545957902003},{"$f":"IB155*CustomRegion3!$E31","v":81.793046040429829},{"$f":"(IF155*'Default-Data'!$C$60/wind_dollar_index)/CustomRegion3!$F31","v":37.721141696696982},{"$f":"(IG155*'Default-Data'!$C$60/wind_dollar_index)/CustomRegion3!$F31","v":39.1998797672777},{"$f":"(IH155*'Default-Data'!$C$60/wind_dollar_index)/CustomRegion3!$F31","v":0.11101474883850598}]
[null,null,null,null,null,null,null,null,null,null,null,null,null,null,null,null,null,null,null,null,null,null,null,null,null,null,null,null,null,155,"TTL_C50T52: Wholesale and retail trade; repairs",0,0,null,10591993.757115945,6160710.8488721214,{"$f":"AF156*'Colombia-IO-Data'!AN33","v":0},{"$f":"AI156*'Colombia-IO-Data'!$AN33","v":6363538.1101445537},{"$f":"AJ156*'Colombia-IO-Data'!$AN33","v":3701278.4534583637},{"$f":"AK156*'Colombia-IO-Data'!$AO33","v":0},{"$f":"AL156*'Colombia-IO-Data'!$AO33","v":2760541.3867874122},{"$f":"AM156*'Colombia-IO-Data'!$AO33","v":1605637.0179519863},{"$f":"(Calculations!AN156*'Default-Data'!$F$19/wind_dollar_index)/'Colombia-IO-Data'!$AP33","v":0},{"$f":"(Calculations!AO156*'Default-Data'!$F$19/wind_dollar_index)/'Colombia-IO-Data'!$AP33","v":668.05018404158284},{"$f":"(Calculations!AP156*'Default-Data'!$F$19/wind_dollar_index)/'Colombia-IO-Data'!$AP33","v":388.56367467654508},45924.959673749887,68214.519473110558,{"$f":"AG156*'Colombia-IO-Data'!AN33","v":0},{"$f":"AT156*'Colombia-IO-Data'!$AN33","v":27591.144575063794},{"$f":"AU156*'Colombia-IO-Data'!$AN33","v":40982.434873576851},{"$f":"AV156*'Colombia-IO-Data'!$AO33","v":0},{"$f":"AW156*'Colombia-IO-Data'!$AO33","v":11969.205682429456},{"$f":"AX156*'Colombia-IO-Data'!$AO33","v":17778.428547394793},{"$f":"(AY156*'Default-Data'!$F$19/wind_dollar_index)/'Colombia-IO-Data'!$AP33","v":0},{"$f":"(AZ156*'Default-Data'!$F$19/wind_dollar_index)/'Colombia-IO-Data'!$AP33","v":2.8965441696507077},{"$f":"(BA156*'Default-Data'!$F$19/wind_dollar_index)/'Colombia-IO-Data'!$AP33","v":4.3023743530536143},null,"DOM_C50T52: Wholesale and retail trade; repairs",0,0,null,14861291.587553339,12382343.098859856,{"$f":"BG156*'Mexico-IO-Data'!AQ33","v":0},{"$f":"BJ156*'Mexico-IO-Data'!$AQ33","v":11316399.615298264},{"$f":"BK156*'Mexico-IO-Data'!$AQ33","v":9428759.3951649088},{"$f":"BG156*'Mexico-IO-Data'!AR33","v":0},{"$f":"BJ156*'Mexico-IO-Data'!$AR33","v":2278708.8876783438},{"$f":"BK156*'Mexico-IO-Data'!$AR33","v":1898607.2040525654},{"$f":"(BO156*'Default-Data'!$F$19/wind_dollar_index)/'Mexico-IO-Data'!$AS33","v":0},{"$f":"(BP156*'Default-Data'!$F$19/wind_dollar_index)/'Mexico-IO-Data'!$AS33","v":371.87768166444778},{"$f":"(BQ156*'Default-Data'!$F$19/wind_dollar_index)/'Mexico-IO-Data'!$AS33","v":309.84635608888323},298696.7945875416,99071.495471527451,{"$f":"BH156*'Mexico-IO-Data'!AQ33","v":0},{"$f":"BU156*'Mexico-IO-Data'!$AQ33","v":227448.08359673456},{"$f":"BV156*'Mexico-IO-Data'!$AQ33","v":75439.784398012242},{"$f":"BH156*'Mexico-IO-Data'!AR33","v":0},{"$f":"BX156*'Mexico-IO-Data'!$AR33","v":34875.028628828171},{"$f":"BY156*'Mexico-IO-Data'!$AR33","v":11567.319447272203},{"$f":"(CA156*'Default-Data'!$F$19/wind_dollar_index)/'Mexico-IO-Data'!$AS33","v":5.6914882215093057},{"$f":"(CB156*'Default-Data'!$F$19/wind_dollar_index)/'Mexico-IO-Data'!$AS33","v":1.8877479095218566},{"$f":"(CC156*'Default-Data'!$F$19/wind_dollar_index)/'Mexico-IO-Data'!$AS33","v":9.2883187338239589E-4},null,"TTL_C50T52: Wholesale and retail trade; repairs",0,0,null,12232111.592639327,8065484.0497300923,{"$f":"CH156*'Philippines-IO-Data'!AN33","v":0},{"$f":"CK156*'Philippines-IO-Data'!$AN33","v":8453794.6954494528},{"$f":"CL156*'Philippines-IO-Data'!$AN33","v":5574176.2785151592},{"$f":"CH156*'Philippines-IO-Data'!AO33","v":0},{"$f":"CK156*'Philippines-IO-Data'!$AO33","v":1881739.6080899367},{"$f":"CL156*'Philippines-IO-Data'!$AO33","v":1240762.1267882793},{"$f":"(CP156*'Default-Data'!$F$19/wind_dollar_index)/'Philippines-IO-Data'!$AP33","v":0},{"$f":"(CQ156*'Default-Data'!$F$19/wind_dollar_index)/'Philippines-IO-Data'!$AP33","v":467.08881784915928},{"$f":"(CR156*'Default-Data'!$F$19/wind_dollar_index)/'Philippines-IO-Data'!$AP33","v":307.98422509786855},97719.215547853426,73978.496995411217,{"$f":"CI156*'Philippines-IO-Data'!AN33","v":0},{"$f":"CV156*'Philippines-IO-Data'!$AN33","v":67535.206802644738},{"$f":"CW156*'Philippines-IO-Data'!$AN33","v":51127.642250538694},{"$f":"CI156*'Philippines-IO-Data'!AO33","v":0},{"$f":"CV156*'Philippines-IO-Data'!$AO33","v":15032.737150511675},{"$f":"CW156*'Philippines-IO-Data'!$AO33","v":11380.559021959563},{"$f":"(DA156*'Default-Data'!$F$19/wind_dollar_index)/'Philippines-IO-Data'!$AP33","v":0},{"$f":"(DB156*'Default-Data'!$F$19/wind_dollar_index)/'Philippines-IO-Data'!$AP33","v":3.7314532757255137},{"$f":"(DC156*'Default-Data'!$F$19/wind_dollar_index)/'Philippines-IO-Data'!$AP33","v":2.8249029978305127},null,"DOM_C50T52: Wholesale and retail trade; repairs",0,0,null,26068088.991514225,16276731.678040702,{"$f":"DI156*'SouthAfrica-IO-Data'!AR33","v":0},{"$f":"DL156*'SouthAfrica-IO-Data'!$AR33","v":15308909.971057506},{"$f":"DM156*'SouthAfrica-IO-Data'!$AR33","v":9558775.8643642236},{"$f":"DI156*'SouthAfrica-IO-Data'!AS33","v":0},{"$f":"DL156*'SouthAfrica-IO-Data'!$AS33","v":7351107.3863168089},{"$f":"DM156*'SouthAfrica-IO-Data'!$AS33","v":4589979.821784839},{"$f":"(DQ156*'Default-Data'!$F$19/wind_dollar_index)/'SouthAfrica-IO-Data'!$AT33","v":0},{"$f":"(DR156*'Default-Data'!$F$19/wind_dollar_index)/'SouthAfrica-IO-Data'!$AT33","v":613.51933124997811},{"$f":"(DS156*'Default-Data'!$F$19/wind_dollar_index)/'SouthAfrica-IO-Data'!$AT33","v":383.07716140211022},119765.79614151096,158833.02351128013,{"$f":"DJ156*'SouthAfrica-IO-Data'!AR33","v":0},{"$f":"'SouthAfrica-IO-Data'!$AR33*Calculations!DW156","v":70334.41505203009},{"$f":"'SouthAfrica-IO-Data'!$AR33*Calculations!DX156","v":93277.28082241003},{"$f":"DJ156*'SouthAfrica-IO-Data'!AS33","v":0},{"$f":"DW156*'SouthAfrica-IO-Data'!$AS33","v":33773.523979090642},{"$f":"DX156*'SouthAfrica-IO-Data'!$AS33","v":44790.341658910387},{"$f":"(EB156*'Default-Data'!$F$19/wind_dollar_index)/'SouthAfrica-IO-Data'!$AT33","v":0},{"$f":"(EC156*'Default-Data'!$F$19/wind_dollar_index)/'SouthAfrica-IO-Data'!$AT33","v":2.8187195148551183},{"$f":"(ED156*'Default-Data'!$F$19/wind_dollar_index)/'SouthAfrica-IO-Data'!$AT33","v":3.7381769870731216},null,"EQUIPMACHIN",{"$f":"'Wind-Inputs'!B15*'Wind-Inputs'!C15+'Wind-Inputs'!B13*'Wind-Inputs'!C13+'Wind-Inputs'!B20*'Wind-Inputs'!C20","v":19161368.372790929},{"$f":"0.5*'Wind-Inputs'!B34*'Wind-Inputs'!C34","v":0},null,39754066.188616827,770694.649967473,{"$f":"EJ156*'Zambia-IO-Data'!BO31","v":2414217.5484672864},{"$f":"EM156*'Zambia-IO-Data'!$BO31","v":5008774.0263776174},{"$f":"EN156*'Zambia-IO-Data'!$BO31","v":97102.905818741317},{"$f":"EJ156*'Zambia-IO-Data'!BN31","v":541405.1908908264},{"$f":"EM156*'Zambia-IO-Data'!$BN31","v":1123252.6495392313},{"$f":"EN156*'Zambia-IO-Data'!$BN31","v":21776.006596516523},{"$f":"(ER156*'Default-Data'!$F$19/wind_dollar_index)/'Zambia-IO-Data'!$BP31","v":1623.2774210928194},{"$f":"(ES156*'Default-Data'!$F$19/wind_dollar_index)/'Zambia-IO-Data'!$BP31","v":3367.8115667483435},{"$f":"(ET156*'Default-Data'!$F$19/wind_dollar_index)/'Zambia-IO-Data'!$BP31","v":65.290286137691552},426788.54249597393,3708.4772233139374,{"$f":"EK156*'Zambia-IO-Data'!BO31","v":0},{"$f":"EX156*'Zambia-IO-Data'!$BO31","v":53772.797888571695},{"$f":"EY156*'Zambia-IO-Data'!$BO31","v":467.24589895829519},{"$f":"EK156*'Zambia-IO-Data'!BN31","v":0},{"$f":"EX156*'Zambia-IO-Data'!$BN31","v":12058.926472504047},{"$f":"EY156*'Zambia-IO-Data'!$BN31","v":104.78316474796323},{"$f":"(FC156*'Default-Data'!$F$19/wind_dollar_index)/'Zambia-IO-Data'!$BP31","v":0},{"$f":"(FD156*'Default-Data'!$F$19/wind_dollar_index)/'Zambia-IO-Data'!$BP31","v":36.155883605817827},{"$f":"(FE156*'Default-Data'!$F$19/wind_dollar_index)/'Zambia-IO-Data'!$BP31","v":0.31416792507317615},null,"TTL_C50T52: Wholesale and retail trade; repairs",0,0,null,21527406.205589499,13056980.432050977,{"$f":"FK156*CustomRegion1!C29","v":0},{"$f":"FN156*CustomRegion1!$C29","v":14877911.389976984},{"$f":"FO156*CustomRegion1!$C29","v":9023873.8486886956},{"$f":"FK156*CustomRegion1!D29","v":0},{"$f":"FN156*CustomRegion1!$D29","v":3311690.9218580974},{"$f":"FO156*CustomRegion1!$D29","v":2008634.1638536453},{"$f":"(FS156*'Default-Data'!$C$58/wind_dollar_index)/CustomRegion1!$E29","v":0},{"$f":"(FT156*'Default-Data'!$C$58/wind_dollar_index)/CustomRegion1!$E29","v":825.46881667349294},{"$f":"(FU156*'Default-Data'!$C$58/wind_dollar_index)/CustomRegion1!$E29","v":500.67017287830873},183356.64387861567,120551.25072718886,{"$f":"FL156*CustomRegion1!C29","v":0},{"$f":"FY156*CustomRegion1!$C29","v":126720.51032703166},{"$f":"FZ156*CustomRegion1!$C29","v":83314.766727648152},{"$f":"FL156*CustomRegion1!D29","v":0},{"$f":"FY156*CustomRegion1!$D29","v":28206.859999581247},{"$f":"FZ156*CustomRegion1!$D29","v":18545.127027343067},{"$f":"(GD156*'Default-Data'!$C$58/wind_dollar_index)/CustomRegion1!$E29","v":0},{"$f":"(GE156*'Default-Data'!$C$58/wind_dollar_index)/CustomRegion1!$E29","v":7.0308141355369225},{"$f":"(GF156*'Default-Data'!$C$58/wind_dollar_index)/CustomRegion1!$E29","v":4.622540093122991},null,"C40T41 Electricity, gas and water supply",0,0,null,5182147.0526506444,3856386.2834684448,{"$f":"GL156*CustomRegion2!C33","v":0},{"$f":"GO156*CustomRegion2!$C33","v":2035644.4463572868},{"$f":"GP156*CustomRegion2!$C33","v":1514860.7789768528},{"$f":"GL156*CustomRegion2!D33","v":0},{"$f":"GO156*CustomRegion2!$D33","v":766474.85225516465},{"$f":"GP156*CustomRegion2!$D33","v":570385.80280125968},{"$f":"(GT156*'Default-Data'!$C$59/wind_dollar_index)/CustomRegion2!$E33","v":0},{"$f":"(GU156*'Default-Data'!$C$59/wind_dollar_index)/CustomRegion2!$E33","v":32.918380868617405},{"$f":"(GV156*'Default-Data'!$C$59/wind_dollar_index)/CustomRegion2!$E33","v":24.496794700334476},0,0,{"$f":"GM156*CustomRegion2!C33","v":0},{"$f":"GZ156*CustomRegion2!$C33","v":0},{"$f":"HA156*CustomRegion2!$C33","v":0},{"$f":"GM156*CustomRegion2!D33","v":0},{"$f":"GZ156*CustomRegion2!$D33","v":0},{"$f":"HA156*CustomRegion2!$D33","v":0},{"$f":"(HE156*'Default-Data'!$C$59/wind_dollar_index)/CustomRegion2!$E33","v":0},{"$f":"(HF156*'Default-Data'!$C$59/wind_dollar_index)/CustomRegion2!$E33","v":0},{"$f":"(HG156*'Default-Data'!$C$59/wind_dollar_index)/CustomRegion2!$E33","v":0},null,"EQUIPMACHIN",19161368.372790929,0,null,39754066.188616827,770694.64996747673,{"$f":"HM156*CustomRegion3!D32","v":2414217.5484672864},{"$f":"HP156*CustomRegion3!$D32","v":5008774.0263776174},{"$f":"HQ156*CustomRegion3!$D32","v":97102.905818741783},{"$f":"HM156*CustomRegion3!E32","v":541405.1908908264},{"$f":"HP156*CustomRegion3!$E32","v":1123252.6495392313},{"$f":"HQ156*CustomRegion3!$E32","v":21776.006596516629},{"$f":"(HU156*'Default-Data'!$C$60/wind_dollar_index)/CustomRegion3!$F32","v":1629.8519070805171},{"$f":"(HV156*'Default-Data'!$C$60/wind_dollar_index)/CustomRegion3!$F32","v":3381.4516443266339},{"$f":"(HW156*'Default-Data'!$C$60/wind_dollar_index)/CustomRegion3!$F32","v":65.554720340846146},426788.54249597393,3708.4772233139374,{"$f":"HN156*CustomRegion3!D32","v":0},{"$f":"IA156*CustomRegion3!$D32","v":53772.797888571695},{"$f":"IB156*CustomRegion3!$D32","v":467.24589895829519},{"$f":"HN156*CustomRegion3!E32","v":0},{"$f":"IA156*CustomRegion3!$E32","v":12058.926472504047},{"$f":"IB156*CustomRegion3!$E32","v":104.78316474796323},{"$f":"(IF156*'Default-Data'!$C$60/wind_dollar_index)/CustomRegion3!$F32","v":0},{"$f":"(IG156*'Default-Data'!$C$60/wind_dollar_index)/CustomRegion3!$F32","v":36.302319666007243},{"$f":"(IH156*'Default-Data'!$C$60/wind_dollar_index)/CustomRegion3!$F32","v":0.31544034628370904}]
[null,null,null,null,null,null,null,null,null,null,null,null,null,null,null,null,null,null,null,null,null,null,null,null,null,null,null,null,null,156,"TTL_C55: Hotels and restaurants",0,0,null,1165025.6252899542,4178274.446615627,{"$f":"AF157*'Colombia-IO-Data'!AN34","v":0},{"$f":"AI157*'Colombia-IO-Data'!$AN34","v":538438.5234545283},{"$f":"AJ157*'Colombia-IO-Data'!$AN34","v":1931068.1883615935},{"$f":"AK157*'Colombia-IO-Data'!$AO34","v":0},{"$f":"AL157*'Colombia-IO-Data'!$AO34","v":228930.69735348568},{"$f":"AM157*'Colombia-IO-Data'!$AO34","v":821042.26897146599},{"$f":"(Calculations!AN157*'Default-Data'!$F$19/wind_dollar_index)/'Colombia-IO-Data'!$AP34","v":0},{"$f":"(Calculations!AO157*'Default-Data'!$F$19/wind_dollar_index)/'Colombia-IO-Data'!$AP34","v":37.476737655887895},{"$f":"(Calculations!AP157*'Default-Data'!$F$19/wind_dollar_index)/'Colombia-IO-Data'!$AP34","v":134.40742580330974},15516.59052198399,46263.976770609537,{"$f":"AG157*'Colombia-IO-Data'!AN34","v":0},{"$f":"AT157*'Colombia-IO-Data'!$AN34","v":7171.2843978227893},{"$f":"AU157*'Colombia-IO-Data'!$AN34","v":21381.767748929869},{"$f":"AV157*'Colombia-IO-Data'!$AO34","v":0},{"$f":"AW157*'Colombia-IO-Data'!$AO34","v":3049.0521509878336},{"$f":"AX157*'Colombia-IO-Data'!$AO34","v":9090.997000006013},{"$f":"(AY157*'Default-Data'!$F$19/wind_dollar_index)/'Colombia-IO-Data'!$AP34","v":0},{"$f":"(AZ157*'Default-Data'!$F$19/wind_dollar_index)/'Colombia-IO-Data'!$AP34","v":0.49914025896340491},{"$f":"(BA157*'Default-Data'!$F$19/wind_dollar_index)/'Colombia-IO-Data'!$AP34","v":1.4882272824846299},null,"DOM_C55: Hotels and restaurants",0,0,null,840916.65690929373,2181614.988175069,{"$f":"BG157*'Mexico-IO-Data'!AQ34","v":0},{"$f":"BJ157*'Mexico-IO-Data'!$AQ34","v":618435.65464542992},{"$f":"BK157*'Mexico-IO-Data'!$AQ34","v":1604425.9348544006},{"$f":"BG157*'Mexico-IO-Data'!AR34","v":0},{"$f":"BJ157*'Mexico-IO-Data'!$AR34","v":151271.14744814119},{"$f":"BK157*'Mexico-IO-Data'!$AR34","v":392447.21797311609},{"$f":"(BO157*'Default-Data'!$F$19/wind_dollar_index)/'Mexico-IO-Data'!$AS34","v":0},{"$f":"(BP157*'Default-Data'!$F$19/wind_dollar_index)/'Mexico-IO-Data'!$AS34","v":84.219655149358061},{"$f":"(BQ157*'Default-Data'!$F$19/wind_dollar_index)/'Mexico-IO-Data'!$AS34","v":218.49354566013062},7692.1191055654726,17455.166416887943,{"$f":"BH157*'Mexico-IO-Data'!AQ34","v":0},{"$f":"BU157*'Mexico-IO-Data'!$AQ34","v":5657.0180594890144},{"$f":"BV157*'Mexico-IO-Data'!$AQ34","v":12837.059631626991},{"$f":"BH157*'Mexico-IO-Data'!AR34","v":0},{"$f":"BX157*'Mexico-IO-Data'!$AR34","v":1017.6318972428986},{"$f":"BY157*'Mexico-IO-Data'!$AR34","v":2309.2380491945587},{"$f":"(CA157*'Default-Data'!$F$19/wind_dollar_index)/'Mexico-IO-Data'!$AS34","v":0.56656281717017565},{"$f":"(CB157*'Default-Data'!$F$19/wind_dollar_index)/'Mexico-IO-Data'!$AS34","v":1.2856597933033782},{"$f":"(CC157*'Default-Data'!$F$19/wind_dollar_index)/'Mexico-IO-Data'!$AS34","v":3.1543176532642422E-4},null,"TTL_C55: Hotels and restaurants",0,0,null,1730937.9112223254,2417789.2181937555,{"$f":"CH157*'Philippines-IO-Data'!AN34","v":0},{"$f":"CK157*'Philippines-IO-Data'!$AN34","v":648864.38367574324},{"$f":"CL157*'Philippines-IO-Data'!$AN34","v":906339.44796628016},{"$f":"CH157*'Philippines-IO-Data'!AO34","v":0},{"$f":"CK157*'Philippines-IO-Data'!$AO34","v":244432.38595250453},{"$f":"CL157*'Philippines-IO-Data'!$AO34","v":341425.29521235538},{"$f":"(CP157*'Default-Data'!$F$19/wind_dollar_index)/'Philippines-IO-Data'!$AP34","v":0},{"$f":"(CQ157*'Default-Data'!$F$19/wind_dollar_index)/'Philippines-IO-Data'!$AP34","v":60.673450092542247},{"$f":"(CR157*'Default-Data'!$F$19/wind_dollar_index)/'Philippines-IO-Data'!$AP34","v":84.7492059150605},2737.0580433099658,22176.525464664453,{"$f":"CI157*'Philippines-IO-Data'!AN34","v":0},{"$f":"CV157*'Philippines-IO-Data'!$AN34","v":1026.0214816734383},{"$f":"CW157*'Philippines-IO-Data'!$AN34","v":8313.156372857733},{"$f":"CI157*'Philippines-IO-Data'!AO34","v":0},{"$f":"CV157*'Philippines-IO-Data'!$AO34","v":386.51047139195583},{"$f":"CW157*'Philippines-IO-Data'!$AO34","v":3131.632276536443},{"$f":"(DA157*'Default-Data'!$F$19/wind_dollar_index)/'Philippines-IO-Data'!$AP34","v":0},{"$f":"(DB157*'Default-Data'!$F$19/wind_dollar_index)/'Philippines-IO-Data'!$AP34","v":9.5940330103399404E-2},{"$f":"(DC157*'Default-Data'!$F$19/wind_dollar_index)/'Philippines-IO-Data'!$AP34","v":0.77733944255467213},null,"DOM_C55: Hotels and restaurants",0,0,null,1188324.527538571,1190550.9664266729,{"$f":"DI157*'SouthAfrica-IO-Data'!AR34","v":0},{"$f":"DL157*'SouthAfrica-IO-Data'!$AR34","v":533632.66053415241},{"$f":"DM157*'SouthAfrica-IO-Data'!$AR34","v":534632.47201648832},{"$f":"DI157*'SouthAfrica-IO-Data'!AS34","v":0},{"$f":"DL157*'SouthAfrica-IO-Data'!$AS34","v":204693.84273628172},{"$f":"DM157*'SouthAfrica-IO-Data'!$AS34","v":205077.35609568955},{"$f":"(DQ157*'Default-Data'!$F$19/wind_dollar_index)/'SouthAfrica-IO-Data'!$AT34","v":0},{"$f":"(DR157*'Default-Data'!$F$19/wind_dollar_index)/'SouthAfrica-IO-Data'!$AT34","v":17.083634193714872},{"$f":"(DS157*'Default-Data'!$F$19/wind_dollar_index)/'SouthAfrica-IO-Data'!$AT34","v":17.115642005249125},3482.5633097908285,11617.73833852299,{"$f":"DJ157*'SouthAfrica-IO-Data'!AR34","v":0},{"$f":"'SouthAfrica-IO-Data'!$AR34*Calculations!DW157","v":1563.890571485307},{"$f":"'SouthAfrica-IO-Data'!$AR34*Calculations!DX157","v":5217.0972451584084},{"$f":"DJ157*'SouthAfrica-IO-Data'!AS34","v":0},{"$f":"DW157*'SouthAfrica-IO-Data'!$AS34","v":599.8860159270173},{"$f":"DX157*'SouthAfrica-IO-Data'!$AS34","v":2001.2037531049841},{"$f":"(EB157*'Default-Data'!$F$19/wind_dollar_index)/'SouthAfrica-IO-Data'!$AT34","v":0},{"$f":"(EC157*'Default-Data'!$F$19/wind_dollar_index)/'SouthAfrica-IO-Data'!$AT34","v":5.0066153026525249E-2},{"$f":"(ED157*'Default-Data'!$F$19/wind_dollar_index)/'SouthAfrica-IO-Data'!$AT34","v":0.16701935147693175},null,"CONSTR",{"$f":"'Wind-Inputs'!B21*'Wind-Inputs'!C21+'Wind-Inputs'!B26*'Wind-Inputs'!C26","v":124717500},{"$f":"'Wind-Inputs'!B35*'Wind-Inputs'!C35","v":0},null,146812265.16729802,844314.38603740931,{"$f":"EJ157*'Zambia-IO-Data'!BO32","v":7566090.8692898899},{"$f":"EM157*'Zambia-IO-Data'!$BO32","v":8906488.1751322765},{"$f":"EN157*'Zambia-IO-Data'!$BO32","v":51221.034473973108},{"$f":"EJ157*'Zambia-IO-Data'!BN32","v":3327953.8274974613},{"$f":"EM157*'Zambia-IO-Data'!$BN32","v":3917529.1341398093},{"$f":"EN157*'Zambia-IO-Data'!$BN32","v":22529.631307750438},{"$f":"(ER157*'Default-Data'!$F$19/wind_dollar_index)/'Zambia-IO-Data'!$BP32","v":9239.3397119003384},{"$f":"(ES157*'Default-Data'!$F$19/wind_dollar_index)/'Zambia-IO-Data'!$BP32","v":10876.167272068953},{"$f":"(ET157*'Default-Data'!$F$19/wind_dollar_index)/'Zambia-IO-Data'!$BP32","v":62.548619369729103},156680.59519658098,4139.0114310420176,{"$f":"EK157*'Zambia-IO-Data'!BO32","v":0},{"$f":"EX157*'Zambia-IO-Data'!$BO32","v":9505.1586241847108},{"$f":"EY157*'Zambia-IO-Data'!$BO32","v":251.09657102085504},{"$f":"EK157*'Zambia-IO-Data'!BN32","v":0},{"$f":"EX157*'Zambia-IO-Data'!$BN32","v":4180.8550241869989},{"$f":"EY157*'Zambia-IO-Data'!$BN32","v":110.44511743734462},{"$f":"(FC157*'Default-Data'!$F$19/wind_dollar_index)/'Zambia-IO-Data'!$BP32","v":0},{"$f":"(FD157*'Default-Data'!$F$19/wind_dollar_index)/'Zambia-IO-Data'!$BP32","v":11.607234311816322},{"$f":"(FE157*'Default-Data'!$F$19/wind_dollar_index)/'Zambia-IO-Data'!$BP32","v":0.30662683811683178},null,"TTL_C55: Hotels and restaurants",0,0,null,2160705.7636459279,3042471.7856230759,{"$f":"FK157*CustomRegion1!C30","v":0},{"$f":"FN157*CustomRegion1!$C30","v":809968.40183753113},{"$f":"FO157*CustomRegion1!$C30","v":1140509.7590329403},{"$f":"FK157*CustomRegion1!D30","v":0},{"$f":"FN157*CustomRegion1!$D30","v":305121.55388424336},{"$f":"FO157*CustomRegion1!$D30","v":429639.11815176922},{"$f":"(FS157*'Default-Data'!$C$58/wind_dollar_index)/CustomRegion1!$E30","v":0},{"$f":"(FT157*'Default-Data'!$C$58/wind_dollar_index)/CustomRegion1!$E30","v":76.054297931006019},{"$f":"(FU157*'Default-Data'!$C$58/wind_dollar_index)/CustomRegion1!$E30","v":107.09142333198099},6282.9967871036533,28090.244981812622,{"$f":"FL157*CustomRegion1!C30","v":0},{"$f":"FY157*CustomRegion1!$C30","v":2355.2623184628214},{"$f":"FZ157*CustomRegion1!$C30","v":10529.990347576022},{"$f":"FL157*CustomRegion1!D30","v":0},{"$f":"FY157*CustomRegion1!$D30","v":887.24609106236665},{"$f":"FZ157*CustomRegion1!$D30","v":3966.7313069861584},{"$f":"(GD157*'Default-Data'!$C$58/wind_dollar_index)/CustomRegion1!$E30","v":0},{"$f":"(GE157*'Default-Data'!$C$58/wind_dollar_index)/CustomRegion1!$E30","v":0.22115408658864455},{"$f":"(GF157*'Default-Data'!$C$58/wind_dollar_index)/CustomRegion1!$E30","v":0.98874353775816126},null,"C45 Construction",0,0,null,487275.27464732958,301301.06194392196,{"$f":"GL157*CustomRegion2!C34","v":0},{"$f":"GO157*CustomRegion2!$C34","v":237445.61071312134},{"$f":"GP157*CustomRegion2!$C34","v":146821.76253159213},{"$f":"GL157*CustomRegion2!D34","v":0},{"$f":"GO157*CustomRegion2!$D34","v":97985.851632631413},{"$f":"GP157*CustomRegion2!$D34","v":60588.42442551424},{"$f":"(GT157*'Default-Data'!$C$59/wind_dollar_index)/CustomRegion2!$E34","v":0},{"$f":"(GU157*'Default-Data'!$C$59/wind_dollar_index)/CustomRegion2!$E34","v":26.625707117687185},{"$f":"(GV157*'Default-Data'!$C$59/wind_dollar_index)/CustomRegion2!$E34","v":16.463699774984992},0,0,{"$f":"GM157*CustomRegion2!C34","v":0},{"$f":"GZ157*CustomRegion2!$C34","v":0},{"$f":"HA157*CustomRegion2!$C34","v":0},{"$f":"GM157*CustomRegion2!D34","v":0},{"$f":"GZ157*CustomRegion2!$D34","v":0},{"$f":"HA157*CustomRegion2!$D34","v":0},{"$f":"(HE157*'Default-Data'!$C$59/wind_dollar_index)/CustomRegion2!$E34","v":0},{"$f":"(HF157*'Default-Data'!$C$59/wind_dollar_index)/CustomRegion2!$E34","v":0},{"$f":"(HG157*'Default-Data'!$C$59/wind_dollar_index)/CustomRegion2!$E34","v":0},null,"CONSTR",124717500,0,null,146812265.16729802,844314.38603740931,{"$f":"HM157*CustomRegion3!D33","v":7566090.8692898899},{"$f":"HP157*CustomRegion3!$D33","v":8906488.1751322765},{"$f":"HQ157*CustomRegion3!$D33","v":51221.034473973108},{"$f":"HM157*CustomRegion3!E33","v":3327953.8274974613},{"$f":"HP157*CustomRegion3!$E33","v":3917529.1341398093},{"$f":"HQ157*CustomRegion3!$E33","v":22529.631307750438},{"$f":"(HU157*'Default-Data'!$C$60/wind_dollar_index)/CustomRegion3!$F33","v":9276.7602468515197},{"$f":"(HV157*'Default-Data'!$C$60/wind_dollar_index)/CustomRegion3!$F33","v":10920.217172844346},{"$f":"(HW157*'Default-Data'!$C$60/wind_dollar_index)/CustomRegion3!$F33","v":62.801949463681424},156680.59519658098,4139.0114310420176,{"$f":"HN157*CustomRegion3!D33","v":0},{"$f":"IA157*CustomRegion3!$D33","v":9505.1586241847108},{"$f":"IB157*CustomRegion3!$D33","v":251.09657102085504},{"$f":"HN157*CustomRegion3!E33","v":0},{"$f":"IA157*CustomRegion3!$E33","v":4180.8550241869989},{"$f":"IB157*CustomRegion3!$E33","v":110.44511743734462},{"$f":"(IF157*'Default-Data'!$C$60/wind_dollar_index)/CustomRegion3!$F33","v":0},{"$f":"(IG157*'Default-Data'!$C$60/wind_dollar_index)/CustomRegion3!$F33","v":11.654245129774713},{"$f":"(IH157*'Default-Data'!$C$60/wind_dollar_index)/CustomRegion3!$F33","v":0.30786871693831752}]
[null,null,null,null,null,null,null,null,null,null,null,null,null,null,null,null,null,null,null,null,null,null,null,null,null,null,null,null,null,157,"TTL_C60T63: Transport and storage",{"$f":"'Wind-Inputs'!B16*'Wind-Inputs'!C16","v":19286428.809603199},0,null,9238438.8675306067,4346604.5608822033,{"$f":"AF158*'Colombia-IO-Data'!AN35","v":8413058.7670100909},{"$f":"AI158*'Colombia-IO-Data'!$AN35","v":4029959.6091768243},{"$f":"AJ158*'Colombia-IO-Data'!$AN35","v":1896060.6947330665},{"$f":"AK158*'Colombia-IO-Data'!$AO35","v":2127881.9449671186},{"$f":"AL158*'Colombia-IO-Data'!$AO35","v":1019281.8722412977},{"$f":"AM158*'Colombia-IO-Data'!$AO35","v":479563.19224882266},{"$f":"(Calculations!AN158*'Default-Data'!$F$19/wind_dollar_index)/'Colombia-IO-Data'!$AP35","v":380.17685699645244},{"$f":"(Calculations!AO158*'Default-Data'!$F$19/wind_dollar_index)/'Colombia-IO-Data'!$AP35","v":182.10943492362975},{"$f":"(Calculations!AP158*'Default-Data'!$F$19/wind_dollar_index)/'Colombia-IO-Data'!$AP35","v":85.680893900887995},81176.197573780664,48127.813288703968,{"$f":"AG158*'Colombia-IO-Data'!AN35","v":0},{"$f":"AT158*'Colombia-IO-Data'!$AN35","v":35410.398027165385},{"$f":"AU158*'Colombia-IO-Data'!$AN35","v":20994.146999570221},{"$f":"AV158*'Colombia-IO-Data'!$AO35","v":0},{"$f":"AW158*'Colombia-IO-Data'!$AO35","v":8956.2130388972382},{"$f":"AX158*'Colombia-IO-Data'!$AO35","v":5309.9672292254054},{"$f":"(AY158*'Default-Data'!$F$19/wind_dollar_index)/'Colombia-IO-Data'!$AP35","v":0},{"$f":"(AZ158*'Default-Data'!$F$19/wind_dollar_index)/'Colombia-IO-Data'!$AP35","v":1.6001568751367987},{"$f":"(BA158*'Default-Data'!$F$19/wind_dollar_index)/'Colombia-IO-Data'!$AP35","v":0.94870237361418586},null,"DOM_C60T63: Transport and storage",19286428.809603199,0,null,4137224.2542571463,7154380.063922938,{"$f":"BG158*'Mexico-IO-Data'!AQ35","v":14096356.190636201},{"$f":"BJ158*'Mexico-IO-Data'!$AQ35","v":3023876.9086949402},{"$f":"BK158*'Mexico-IO-Data'!$AQ35","v":5229101.2867051996},{"$f":"BG158*'Mexico-IO-Data'!AR35","v":4547670.5308577754},{"$f":"BJ158*'Mexico-IO-Data'!$AR35","v":975542.5955927585},{"$f":"BK158*'Mexico-IO-Data'!$AR35","v":1686977.0813691716},{"$f":"(BO158*'Default-Data'!$F$19/wind_dollar_index)/'Mexico-IO-Data'!$AS35","v":498.39705000866462},{"$f":"(BP158*'Default-Data'!$F$19/wind_dollar_index)/'Mexico-IO-Data'!$AS35","v":106.91353925094454},{"$f":"(BQ158*'Default-Data'!$F$19/wind_dollar_index)/'Mexico-IO-Data'!$AS35","v":184.88243488211415},79021.772247683199,57242.407712785149,{"$f":"BH158*'Mexico-IO-Data'!AQ35","v":0},{"$f":"BU158*'Mexico-IO-Data'!$AQ35","v":57756.625625995861},{"$f":"BV158*'Mexico-IO-Data'!$AQ35","v":41838.194944999865},{"$f":"BH158*'Mexico-IO-Data'!AR35","v":0},{"$f":"BX158*'Mexico-IO-Data'!$AR35","v":13618.804544589526},{"$f":"BY158*'Mexico-IO-Data'!$AR35","v":9865.2958561680553},{"$f":"(CA158*'Default-Data'!$F$19/wind_dollar_index)/'Mexico-IO-Data'!$AS35","v":1.4925382046943829},{"$f":"(CB158*'Default-Data'!$F$19/wind_dollar_index)/'Mexico-IO-Data'!$AS35","v":1.0811764658002734},{"$f":"(CC158*'Default-Data'!$F$19/wind_dollar_index)/'Mexico-IO-Data'!$AS35","v":1.6357311577375855E-4},null,"TTL_C60T63: Transport and storage",{"$f":"'Wind-Inputs'!B16*'Wind-Inputs'!C16","v":19286428.809603199},0,null,1197060.8644050099,2005071.2305386364,{"$f":"CH158*'Philippines-IO-Data'!AN35","v":8525064.7593396865},{"$f":"CK158*'Philippines-IO-Data'!$AN35","v":529129.6533261002},{"$f":"CL158*'Philippines-IO-Data'!$AN35","v":886289.64211972593},{"$f":"CH158*'Philippines-IO-Data'!AO35","v":3172438.6574389818},{"$f":"CK158*'Philippines-IO-Data'!$AO35","v":196905.40944805989},{"$f":"CL158*'Philippines-IO-Data'!$AO35","v":329815.62037613895},{"$f":"(CP158*'Default-Data'!$F$19/wind_dollar_index)/'Philippines-IO-Data'!$AP35","v":787.46847642021135},{"$f":"(CQ158*'Default-Data'!$F$19/wind_dollar_index)/'Philippines-IO-Data'!$AP35","v":48.876217799632556},{"$f":"(CR158*'Default-Data'!$F$19/wind_dollar_index)/'Philippines-IO-Data'!$AP35","v":81.867431374338665},10087.822578280377,18390.980019228002,{"$f":"CI158*'Philippines-IO-Data'!AN35","v":0},{"$f":"CV158*'Philippines-IO-Data'!$AN35","v":4459.0598710398899},{"$f":"CW158*'Philippines-IO-Data'!$AN35","v":8129.2548869168613},{"$f":"CI158*'Philippines-IO-Data'!AO35","v":0},{"$f":"CV158*'Philippines-IO-Data'!$AO35","v":1659.3532495133234},{"$f":"CW158*'Philippines-IO-Data'!$AO35","v":3025.1456367150636},{"$f":"(DA158*'Default-Data'!$F$19/wind_dollar_index)/'Philippines-IO-Data'!$AP35","v":0},{"$f":"(DB158*'Default-Data'!$F$19/wind_dollar_index)/'Philippines-IO-Data'!$AP35","v":0.41188767264992138},{"$f":"(DC158*'Default-Data'!$F$19/wind_dollar_index)/'Philippines-IO-Data'!$AP35","v":0.75090713571632872},null,"DOM_C60T63: Transport and storage",19286428.809603199,0,null,12998930.052186392,8504010.5439473987,{"$f":"DI158*'SouthAfrica-IO-Data'!AR35","v":10198824.996235976},{"$f":"DL158*'SouthAfrica-IO-Data'!$AR35","v":6873943.0222846521},{"$f":"DM158*'SouthAfrica-IO-Data'!$AR35","v":4496991.9605167918},{"$f":"DI158*'SouthAfrica-IO-Data'!AS35","v":3552765.2900831364},{"$f":"DL158*'SouthAfrica-IO-Data'!$AS35","v":2394541.1539657945},{"$f":"DM158*'SouthAfrica-IO-Data'!$AS35","v":1566529.1789008465},{"$f":"(DQ158*'Default-Data'!$F$19/wind_dollar_index)/'SouthAfrica-IO-Data'!$AT35","v":159.50584492980835},{"$f":"(DR158*'Default-Data'!$F$19/wind_dollar_index)/'SouthAfrica-IO-Data'!$AT35","v":107.50592251298838},{"$f":"(DS158*'Default-Data'!$F$19/wind_dollar_index)/'SouthAfrica-IO-Data'!$AT35","v":70.331288415039481},87106.880513386233,82984.577824629072,{"$f":"DJ158*'SouthAfrica-IO-Data'!AR35","v":0},{"$f":"'SouthAfrica-IO-Data'!$AR35*Calculations!DW158","v":46062.847564693431},{"$f":"'SouthAfrica-IO-Data'!$AR35*Calculations!DX158","v":43882.939396146794},{"$f":"DJ158*'SouthAfrica-IO-Data'!AS35","v":0},{"$f":"DW158*'SouthAfrica-IO-Data'!$AS35","v":16046.013736938416},{"$f":"DX158*'SouthAfrica-IO-Data'!$AS35","v":15286.641742650887},{"$f":"(EB158*'Default-Data'!$F$19/wind_dollar_index)/'SouthAfrica-IO-Data'!$AT35","v":0},{"$f":"(EC158*'Default-Data'!$F$19/wind_dollar_index)/'SouthAfrica-IO-Data'!$AT35","v":0.72040587257757782},{"$f":"(ED158*'Default-Data'!$F$19/wind_dollar_index)/'SouthAfrica-IO-Data'!$AT35","v":0.68631291633783953},null,"TRADETRANS",{"$f":"'Wind-Inputs'!B16*'Wind-Inputs'!C16","v":19286428.809603199},0,null,35407603.129090779,3048381.4066902399,{"$f":"EJ158*'Zambia-IO-Data'!BO33","v":4360110.2591560939},{"$f":"EM158*'Zambia-IO-Data'!$BO33","v":8004646.9556046529},{"$f":"EN158*'Zambia-IO-Data'!$BO33","v":689151.89931444114},{"$f":"EJ158*'Zambia-IO-Data'!BN33","v":1605209.8901499666},{"$f":"EM158*'Zambia-IO-Data'!$BN33","v":2946975.5801043389},{"$f":"EN158*'Zambia-IO-Data'!$BN33","v":253716.85091497845},{"$f":"(ER158*'Default-Data'!$F$19/wind_dollar_index)/'Zambia-IO-Data'!$BP33","v":3189.557076228311},{"$f":"(ES158*'Default-Data'!$F$19/wind_dollar_index)/'Zambia-IO-Data'!$BP33","v":5855.6497020558927},{"$f":"(ET158*'Default-Data'!$F$19/wind_dollar_index)/'Zambia-IO-Data'!$BP33","v":504.13617693236944},161661.0187460981,14849.577021172008,{"$f":"EK158*'Zambia-IO-Data'!BO33","v":0},{"$f":"EX158*'Zambia-IO-Data'!$BO33","v":36546.935324258709},{"$f":"EY158*'Zambia-IO-Data'!$BO33","v":3357.06489538914},{"$f":"EK158*'Zambia-IO-Data'!BN33","v":0},{"$f":"EX158*'Zambia-IO-Data'!$BN33","v":13455.050113463425},{"$f":"EY158*'Zambia-IO-Data'!$BN33","v":1235.9306191024903},{"$f":"(FC158*'Default-Data'!$F$19/wind_dollar_index)/'Zambia-IO-Data'!$BP33","v":0},{"$f":"(FD158*'Default-Data'!$F$19/wind_dollar_index)/'Zambia-IO-Data'!$BP33","v":26.735226691379538},{"$f":"(FE158*'Default-Data'!$F$19/wind_dollar_index)/'Zambia-IO-Data'!$BP33","v":2.4557980087683715},null,"TTL_C60T63: Transport and storage",19286428.809603199,0,null,2970946.6541666389,3673816.1704843044,{"$f":"FK158*CustomRegion1!C31","v":8525064.7593396865},{"$f":"FN158*CustomRegion1!$C31","v":1313229.7779619501},{"$f":"FO158*CustomRegion1!$C31","v":1623914.9858419227},{"$f":"FK158*CustomRegion1!D31","v":3172438.6574389818},{"$f":"FN158*CustomRegion1!$D31","v":488693.1690627053},{"$f":"FO158*CustomRegion1!$D31","v":604308.68537805974},{"$f":"(FS158*'Default-Data'!$C$58/wind_dollar_index)/CustomRegion1!$E31","v":790.75893442860718},{"$f":"(FT158*'Default-Data'!$C$58/wind_dollar_index)/CustomRegion1!$E31","v":121.8111778850043},{"$f":"(FU158*'Default-Data'!$C$58/wind_dollar_index)/CustomRegion1!$E31","v":150.62938758326428},25551.692380702065,33919.261547371942,{"$f":"FL158*CustomRegion1!C31","v":0},{"$f":"FY158*CustomRegion1!$C31","v":11294.461738180818},{"$f":"FZ158*CustomRegion1!$C31","v":14993.128283881373},{"$f":"FL158*CustomRegion1!D31","v":0},{"$f":"FY158*CustomRegion1!$D31","v":4203.0164045282409},{"$f":"FZ158*CustomRegion1!$D31","v":5579.4039231921561},{"$f":"(GD158*'Default-Data'!$C$58/wind_dollar_index)/CustomRegion1!$E31","v":0},{"$f":"(GE158*'Default-Data'!$C$58/wind_dollar_index)/CustomRegion1!$E31","v":1.0476397283954835},{"$f":"(GF158*'Default-Data'!$C$58/wind_dollar_index)/CustomRegion1!$E31","v":1.3907167253509229},null,"C50T52 Wholesale and retail trade; repairs",19286428.809603199,0,null,20534628.374265589,21704647.013874255,{"$f":"GL158*CustomRegion2!C35","v":14149730.272227323},{"$f":"GO158*CustomRegion2!$C35","v":15065487.53036161},{"$f":"GP158*CustomRegion2!$C35","v":15923886.372748522},{"$f":"GL158*CustomRegion2!D35","v":3446157.7795114503},{"$f":"GO158*CustomRegion2!$D35","v":3669189.8754276359},{"$f":"GP158*CustomRegion2!$D35","v":3878252.3657863038},{"$f":"(GT158*'Default-Data'!$C$59/wind_dollar_index)/CustomRegion2!$E35","v":562.40144259950739},{"$f":"(GU158*'Default-Data'!$C$59/wind_dollar_index)/CustomRegion2!$E35","v":598.79953592970799},{"$f":"(GV158*'Default-Data'!$C$59/wind_dollar_index)/CustomRegion2!$E35","v":632.91783627863413},0,0,{"$f":"GM158*CustomRegion2!C35","v":0},{"$f":"GZ158*CustomRegion2!$C35","v":0},{"$f":"HA158*CustomRegion2!$C35","v":0},{"$f":"GM158*CustomRegion2!D35","v":0},{"$f":"GZ158*CustomRegion2!$D35","v":0},{"$f":"HA158*CustomRegion2!$D35","v":0},{"$f":"(HE158*'Default-Data'!$C$59/wind_dollar_index)/CustomRegion2!$E35","v":0},{"$f":"(HF158*'Default-Data'!$C$59/wind_dollar_index)/CustomRegion2!$E35","v":0},{"$f":"(HG158*'Default-Data'!$C$59/wind_dollar_index)/CustomRegion2!$E35","v":0},null,"TRADETRANS",19286428.809603199,0,null,35407603.129090779,3048381.4066902399,{"$f":"HM158*CustomRegion3!D34","v":4360110.2591560939},{"$f":"HP158*CustomRegion3!$D34","v":8004646.9556046529},{"$f":"HQ158*CustomRegion3!$D34","v":689151.89931444114},{"$f":"HM158*CustomRegion3!E34","v":1605209.8901499666},{"$f":"HP158*CustomRegion3!$E34","v":2946975.5801043389},{"$f":"HQ158*CustomRegion3!$E34","v":253716.85091497845},{"$f":"(HU158*'Default-Data'!$C$60/wind_dollar_index)/CustomRegion3!$F34","v":3202.4751997924932},{"$f":"(HV158*'Default-Data'!$C$60/wind_dollar_index)/CustomRegion3!$F34","v":5879.3658496562912},{"$f":"(HW158*'Default-Data'!$C$60/wind_dollar_index)/CustomRegion3!$F34","v":506.1779944233698},161661.0187460981,14849.577021172008,{"$f":"HN158*CustomRegion3!D34","v":0},{"$f":"IA158*CustomRegion3!$D34","v":36546.935324258709},{"$f":"IB158*CustomRegion3!$D34","v":3357.06489538914},{"$f":"HN158*CustomRegion3!E34","v":0},{"$f":"IA158*CustomRegion3!$E34","v":13455.050113463425},{"$f":"IB158*CustomRegion3!$E34","v":1235.9306191024903},{"$f":"(IF158*'Default-Data'!$C$60/wind_dollar_index)/CustomRegion3!$F34","v":0},{"$f":"(IG158*'Default-Data'!$C$60/wind_dollar_index)/CustomRegion3!$F34","v":26.843507858219191},{"$f":"(IH158*'Default-Data'!$C$60/wind_dollar_index)/CustomRegion3!$F34","v":2.4657443120850244}]
[null,null,null,null,null,null,null,null,null,null,null,null,null,null,null,null,null,null,null,null,null,null,null,null,null,null,null,null,null,158,"TTL_C64: Post and telecommunications",0,0,null,1521214.4204954319,2631049.4596594535,{"$f":"AF159*'Colombia-IO-Data'!AN36","v":0},{"$f":"AI159*'Colombia-IO-Data'!$AN36","v":831693.8588555156},{"$f":"AJ159*'Colombia-IO-Data'!$AN36","v":1438474.1877684963},{"$f":"AK159*'Colombia-IO-Data'!$AO36","v":0},{"$f":"AL159*'Colombia-IO-Data'!$AO36","v":201878.94925567548},{"$f":"AM159*'Colombia-IO-Data'!$AO36","v":349164.12387333025},{"$f":"(Calculations!AN159*'Default-Data'!$F$19/wind_dollar_index)/'Colombia-IO-Data'!$AP36","v":0},{"$f":"(Calculations!AO159*'Default-Data'!$F$19/wind_dollar_index)/'Colombia-IO-Data'!$AP36","v":36.068591400616917},{"$f":"(Calculations!AP159*'Default-Data'!$F$19/wind_dollar_index)/'Colombia-IO-Data'!$AP36","v":62.38321609149888},19404.311697728172,29132.315897201148,{"$f":"AG159*'Colombia-IO-Data'!AN36","v":0},{"$f":"AT159*'Colombia-IO-Data'!$AN36","v":10608.923145142659},{"$f":"AU159*'Colombia-IO-Data'!$AN36","v":15927.516791518519},{"$f":"AV159*'Colombia-IO-Data'!$AO36","v":0},{"$f":"AW159*'Colombia-IO-Data'!$AO36","v":2575.1281369599265},{"$f":"AX159*'Colombia-IO-Data'!$AO36","v":3866.122515980343},{"$f":"(AY159*'Default-Data'!$F$19/wind_dollar_index)/'Colombia-IO-Data'!$AP36","v":0},{"$f":"(AZ159*'Default-Data'!$F$19/wind_dollar_index)/'Colombia-IO-Data'!$AP36","v":0.46008385182650874},{"$f":"(BA159*'Default-Data'!$F$19/wind_dollar_index)/'Colombia-IO-Data'!$AP36","v":0.69073865228521225},null,"DOM_C64: Post and telecommunications",0,0,null,2151103.0270741642,2788490.4415682447,{"$f":"BG159*'Mexico-IO-Data'!AQ36","v":0},{"$f":"BJ159*'Mexico-IO-Data'!$AQ36","v":1312475.8097480675},{"$f":"BK159*'Mexico-IO-Data'!$AQ36","v":1701371.9027907108},{"$f":"BG159*'Mexico-IO-Data'!AR36","v":0},{"$f":"BJ159*'Mexico-IO-Data'!$AR36","v":335518.16463106655},{"$f":"BK159*'Mexico-IO-Data'!$AR36","v":434934.62808185304},{"$f":"(BO159*'Default-Data'!$F$19/wind_dollar_index)/'Mexico-IO-Data'!$AS36","v":0},{"$f":"(BP159*'Default-Data'!$F$19/wind_dollar_index)/'Mexico-IO-Data'!$AS36","v":21.700285650197507},{"$f":"(BQ159*'Default-Data'!$F$19/wind_dollar_index)/'Mexico-IO-Data'!$AS36","v":28.130237535475349},12364.363962446574,22310.794972210351,{"$f":"BH159*'Mexico-IO-Data'!AQ36","v":0},{"$f":"BU159*'Mexico-IO-Data'!$AQ36","v":7544.0034249333039},{"$f":"BV159*'Mexico-IO-Data'!$AQ36","v":13612.72720493704},{"$f":"BH159*'Mexico-IO-Data'!AR36","v":0},{"$f":"BX159*'Mexico-IO-Data'!$AR36","v":1176.6754782298185},{"$f":"BY159*'Mexico-IO-Data'!$AR36","v":2123.2443030105019},{"$f":"(CA159*'Default-Data'!$F$19/wind_dollar_index)/'Mexico-IO-Data'!$AS36","v":7.6103760353026018E-2},{"$f":"(CB159*'Default-Data'!$F$19/wind_dollar_index)/'Mexico-IO-Data'!$AS36","v":0.13732492823792763},{"$f":"(CC159*'Default-Data'!$F$19/wind_dollar_index)/'Mexico-IO-Data'!$AS36","v":4.9221577631446252E-6},null,"TTL_C64: Post and telecommunications",0,0,null,689730.577629623,1775060.7055813684,{"$f":"CH159*'Philippines-IO-Data'!AN36","v":0},{"$f":"CK159*'Philippines-IO-Data'!$AN36","v":417768.31964626821},{"$f":"CL159*'Philippines-IO-Data'!$AN36","v":1075150.4316212272},{"$f":"CH159*'Philippines-IO-Data'!AO36","v":0},{"$f":"CK159*'Philippines-IO-Data'!$AO36","v":74079.917140716934},{"$f":"CL159*'Philippines-IO-Data'!$AO36","v":190648.86240236007},{"$f":"(CP159*'Default-Data'!$F$19/wind_dollar_index)/'Philippines-IO-Data'!$AP36","v":0},{"$f":"(CQ159*'Default-Data'!$F$19/wind_dollar_index)/'Philippines-IO-Data'!$AP36","v":14.969089037836451},{"$f":"(CR159*'Default-Data'!$F$19/wind_dollar_index)/'Philippines-IO-Data'!$AP36","v":38.523798438410886},2767.9832894031674,16281.269947947909,{"$f":"CI159*'Philippines-IO-Data'!AN36","v":0},{"$f":"CV159*'Philippines-IO-Data'!$AN36","v":1676.5614939053364},{"$f":"CW159*'Philippines-IO-Data'!$AN36","v":9861.5300067412209},{"$f":"CI159*'Philippines-IO-Data'!AO36","v":0},{"$f":"CV159*'Philippines-IO-Data'!$AO36","v":297.29285517625141},{"$f":"CW159*'Philippines-IO-Data'!$AO36","v":1748.6757406560785},{"$f":"(DA159*'Default-Data'!$F$19/wind_dollar_index)/'Philippines-IO-Data'!$AP36","v":0},{"$f":"(DB159*'Default-Data'!$F$19/wind_dollar_index)/'Philippines-IO-Data'!$AP36","v":6.0073004819816901E-2},{"$f":"(DC159*'Default-Data'!$F$19/wind_dollar_index)/'Philippines-IO-Data'!$AP36","v":0.35334924592940919},null,"DOM_C64: Post and telecommunications",0,0,null,6902617.7747731684,4843826.8556791479,{"$f":"DI159*'SouthAfrica-IO-Data'!AR36","v":0},{"$f":"DL159*'SouthAfrica-IO-Data'!$AR36","v":2803022.7898547021},{"$f":"DM159*'SouthAfrica-IO-Data'!$AR36","v":1966986.6577575449},{"$f":"DI159*'SouthAfrica-IO-Data'!AS36","v":0},{"$f":"DL159*'SouthAfrica-IO-Data'!$AS36","v":917273.49818480248},{"$f":"DM159*'SouthAfrica-IO-Data'!$AS36","v":643685.35959624569},{"$f":"(DQ159*'Default-Data'!$F$19/wind_dollar_index)/'SouthAfrica-IO-Data'!$AT36","v":0},{"$f":"(DR159*'Default-Data'!$F$19/wind_dollar_index)/'SouthAfrica-IO-Data'!$AT36","v":41.182141912972874},{"$f":"(DS159*'Default-Data'!$F$19/wind_dollar_index)/'SouthAfrica-IO-Data'!$AT36","v":28.899059962653524},19457.994797322102,47267.453937980463,{"$f":"DJ159*'SouthAfrica-IO-Data'!AR36","v":0},{"$f":"'SouthAfrica-IO-Data'!$AR36*Calculations!DW159","v":7901.5244131144718},{"$f":"'SouthAfrica-IO-Data'!$AR36*Calculations!DX159","v":19194.420860268558},{"$f":"DJ159*'SouthAfrica-IO-Data'!AS36","v":0},{"$f":"DW159*'SouthAfrica-IO-Data'!$AS36","v":2585.7295793823459},{"$f":"DX159*'SouthAfrica-IO-Data'!$AS36","v":6281.2666496523698},{"$f":"(EB159*'Default-Data'!$F$19/wind_dollar_index)/'SouthAfrica-IO-Data'!$AT36","v":0},{"$f":"(EC159*'Default-Data'!$F$19/wind_dollar_index)/'SouthAfrica-IO-Data'!$AT36","v":0.11608956619527427},{"$f":"(ED159*'Default-Data'!$F$19/wind_dollar_index)/'SouthAfrica-IO-Data'!$AT36","v":0.28200532891346247},null,"TOURISM",0,0,null,169957.25925100673,10217.965591837652,{"$f":"EJ159*'Zambia-IO-Data'!BO34","v":0},{"$f":"EM159*'Zambia-IO-Data'!$BO34","v":74284.745559318588},{"$f":"EN159*'Zambia-IO-Data'!$BO34","v":4466.0579810981862},{"$f":"EJ159*'Zambia-IO-Data'!BN34","v":0},{"$f":"EM159*'Zambia-IO-Data'!$BN34","v":52061.676676718438},{"$f":"EN159*'Zambia-IO-Data'!$BN34","v":3129.9894060449483},{"$f":"(ER159*'Default-Data'!$F$19/wind_dollar_index)/'Zambia-IO-Data'!$BP34","v":0},{"$f":"(ES159*'Default-Data'!$F$19/wind_dollar_index)/'Zambia-IO-Data'!$BP34","v":120.49418106771277},{"$f":"(ET159*'Default-Data'!$F$19/wind_dollar_index)/'Zambia-IO-Data'!$BP34","v":7.2442059938622601},533.18693668272545,49.805018221164801,{"$f":"EK159*'Zambia-IO-Data'!BO34","v":0},{"$f":"EX159*'Zambia-IO-Data'!$BO34","v":233.0448025672911},{"$f":"EY159*'Zambia-IO-Data'!$BO34","v":21.768726575381852},{"$f":"EK159*'Zambia-IO-Data'!BN34","v":0},{"$f":"EX159*'Zambia-IO-Data'!$BN34","v":163.32698013698743},{"$f":"EY159*'Zambia-IO-Data'!$BN34","v":15.256381321605675},{"$f":"(FC159*'Default-Data'!$F$19/wind_dollar_index)/'Zambia-IO-Data'!$BP34","v":0},{"$f":"(FD159*'Default-Data'!$F$19/wind_dollar_index)/'Zambia-IO-Data'!$BP34","v":0.37801223422121566},{"$f":"(FE159*'Default-Data'!$F$19/wind_dollar_index)/'Zambia-IO-Data'!$BP34","v":3.531014156187752E-2},null,"TTL_C64: Post and telecommunications",0,0,null,1046318.872307657,2357875.7925147573,{"$f":"FK159*CustomRegion1!C32","v":0},{"$f":"FN159*CustomRegion1!$C32","v":633753.07877516735},{"$f":"FO159*CustomRegion1!$C32","v":1428160.2697081827},{"$f":"FK159*CustomRegion1!D32","v":0},{"$f":"FN159*CustomRegion1!$D32","v":112378.97503355608},{"$f":"FO159*CustomRegion1!$D32","v":253245.61358129588},{"$f":"(FS159*'Default-Data'!$C$58/wind_dollar_index)/CustomRegion1!$E32","v":0},{"$f":"(FT159*'Default-Data'!$C$58/wind_dollar_index)/CustomRegion1!$E32","v":22.80294189641663},{"$f":"(FU159*'Default-Data'!$C$58/wind_dollar_index)/CustomRegion1!$E32","v":51.386347048390007},5575.6131695977519,21769.572017530158,{"$f":"FL159*CustomRegion1!C32","v":0},{"$f":"FY159*CustomRegion1!$C32","v":3377.1368421355824},{"$f":"FZ159*CustomRegion1!$C32","v":13185.782704367364},{"$f":"FL159*CustomRegion1!D32","v":0},{"$f":"FY159*CustomRegion1!$D32","v":598.84391820350697},{"$f":"FZ159*CustomRegion1!$D32","v":2338.1420855514084},{"$f":"(GD159*'Default-Data'!$C$58/wind_dollar_index)/CustomRegion1!$E32","v":0},{"$f":"(GE159*'Default-Data'!$C$58/wind_dollar_index)/CustomRegion1!$E32","v":0.12151208059816859},{"$f":"(GF159*'Default-Data'!$C$58/wind_dollar_index)/CustomRegion1!$E32","v":0.47443499201229583},null,"C55 Hotels and restaurants",0,0,null,1621409.0627455574,5392495.8181756157,{"$f":"GL159*CustomRegion2!C36","v":0},{"$f":"GO159*CustomRegion2!$C36","v":1166014.3777480535},{"$f":"GP159*CustomRegion2!$C36","v":3877940.3670606809},{"$f":"GL159*CustomRegion2!D36","v":0},{"$f":"GO159*CustomRegion2!$D36","v":322165.51571981038},{"$f":"GP159*CustomRegion2!$D36","v":1071460.7659449684},{"$f":"(GT159*'Default-Data'!$C$59/wind_dollar_index)/CustomRegion2!$E36","v":0},{"$f":"(GU159*'Default-Data'!$C$59/wind_dollar_index)/CustomRegion2!$E36","v":179.36446634173348},{"$f":"(GV159*'Default-Data'!$C$59/wind_dollar_index)/CustomRegion2!$E36","v":596.53184190255263},0,0,{"$f":"GM159*CustomRegion2!C36","v":0},{"$f":"GZ159*CustomRegion2!$C36","v":0},{"$f":"HA159*CustomRegion2!$C36","v":0},{"$f":"GM159*CustomRegion2!D36","v":0},{"$f":"GZ159*CustomRegion2!$D36","v":0},{"$f":"HA159*CustomRegion2!$D36","v":0},{"$f":"(HE159*'Default-Data'!$C$59/wind_dollar_index)/CustomRegion2!$E36","v":0},{"$f":"(HF159*'Default-Data'!$C$59/wind_dollar_index)/CustomRegion2!$E36","v":0},{"$f":"(HG159*'Default-Data'!$C$59/wind_dollar_index)/CustomRegion2!$E36","v":0},null,"TOURISM",0,0,null,169957.25925100673,10217.965591837652,{"$f":"HM159*CustomRegion3!D35","v":0},{"$f":"HP159*CustomRegion3!$D35","v":74284.745559318588},{"$f":"HQ159*CustomRegion3!$D35","v":4466.0579810981862},{"$f":"HM159*CustomRegion3!E35","v":0},{"$f":"HP159*CustomRegion3!$E35","v":52061.676676718438},{"$f":"HQ159*CustomRegion3!$E35","v":3129.9894060449483},{"$f":"(HU159*'Default-Data'!$C$60/wind_dollar_index)/CustomRegion3!$F35","v":0},{"$f":"(HV159*'Default-Data'!$C$60/wind_dollar_index)/CustomRegion3!$F35","v":120.98219826966182},{"$f":"(HW159*'Default-Data'!$C$60/wind_dollar_index)/CustomRegion3!$F35","v":7.2735459761596664},533.18693668272545,49.805018221164801,{"$f":"HN159*CustomRegion3!D35","v":0},{"$f":"IA159*CustomRegion3!$D35","v":233.0448025672911},{"$f":"IB159*CustomRegion3!$D35","v":21.768726575381852},{"$f":"HN159*CustomRegion3!E35","v":0},{"$f":"IA159*CustomRegion3!$E35","v":163.32698013698743},{"$f":"IB159*CustomRegion3!$E35","v":15.256381321605675},{"$f":"(IF159*'Default-Data'!$C$60/wind_dollar_index)/CustomRegion3!$F35","v":0},{"$f":"(IG159*'Default-Data'!$C$60/wind_dollar_index)/CustomRegion3!$F35","v":0.37954323323886513},{"$f":"(IH159*'Default-Data'!$C$60/wind_dollar_index)/CustomRegion3!$F35","v":3.5453152256109871E-2}]
[null,null,null,null,null,null,null,null,null,null,null,null,null,null,null,null,null,null,null,null,null,null,null,null,null,null,null,null,null,159,"TTL_C65T67: Financial intermediation",0,0,null,5739208.9721685918,3917220.178036497,{"$f":"AF160*'Colombia-IO-Data'!AN37","v":0},{"$f":"AI160*'Colombia-IO-Data'!$AN37","v":3823921.5412434875},{"$f":"AJ160*'Colombia-IO-Data'!$AN37","v":2609966.4070826573},{"$f":"AK160*'Colombia-IO-Data'!$AO37","v":0},{"$f":"AL160*'Colombia-IO-Data'!$AO37","v":1361324.0129460925},{"$f":"AM160*'Colombia-IO-Data'!$AO37","v":929153.46317196335},{"$f":"(Calculations!AN160*'Default-Data'!$F$19/wind_dollar_index)/'Colombia-IO-Data'!$AP37","v":0},{"$f":"(Calculations!AO160*'Default-Data'!$F$19/wind_dollar_index)/'Colombia-IO-Data'!$AP37","v":152.80007227310551},{"$f":"(Calculations!AP160*'Default-Data'!$F$19/wind_dollar_index)/'Colombia-IO-Data'!$AP37","v":104.29164179527653},104914.50639911553,43373.451322431778,{"$f":"AG160*'Colombia-IO-Data'!AN37","v":0},{"$f":"AT160*'Colombia-IO-Data'!$AN37","v":69902.462683270394},{"$f":"AU160*'Colombia-IO-Data'!$AN37","v":28898.873631230203},{"$f":"AV160*'Colombia-IO-Data'!$AO37","v":0},{"$f":"AW160*'Colombia-IO-Data'!$AO37","v":24885.421938824464},{"$f":"AX160*'Colombia-IO-Data'!$AO37","v":10288.059050629799},{"$f":"(AY160*'Default-Data'!$F$19/wind_dollar_index)/'Colombia-IO-Data'!$AP37","v":0},{"$f":"(AZ160*'Default-Data'!$F$19/wind_dollar_index)/'Colombia-IO-Data'!$AP37","v":2.7932323492700184},{"$f":"(BA160*'Default-Data'!$F$19/wind_dollar_index)/'Colombia-IO-Data'!$AP37","v":1.154770026486311},null,"DOM_C65T67: Financial intermediation",0,0,null,6209346.4048766969,4351993.7854647702,{"$f":"BG160*'Mexico-IO-Data'!AQ37","v":0},{"$f":"BJ160*'Mexico-IO-Data'!$AQ37","v":4221069.3717967048},{"$f":"BK160*'Mexico-IO-Data'!$AQ37","v":2958454.3164877151},{"$f":"BG160*'Mexico-IO-Data'!AR37","v":0},{"$f":"BJ160*'Mexico-IO-Data'!$AR37","v":1146384.9278928856},{"$f":"BK160*'Mexico-IO-Data'!$AR37","v":803475.88242492138},{"$f":"(BO160*'Default-Data'!$F$19/wind_dollar_index)/'Mexico-IO-Data'!$AS37","v":0},{"$f":"(BP160*'Default-Data'!$F$19/wind_dollar_index)/'Mexico-IO-Data'!$AS37","v":69.455670448747952},{"$f":"(BQ160*'Default-Data'!$F$19/wind_dollar_index)/'Mexico-IO-Data'!$AS37","v":48.679945754168713},33598.551534540609,34820.431736259088,{"$f":"BH160*'Mexico-IO-Data'!AQ37","v":0},{"$f":"BU160*'Mexico-IO-Data'!$AQ37","v":22840.055550419685},{"$f":"BV160*'Mexico-IO-Data'!$AQ37","v":23670.680991356261},{"$f":"BH160*'Mexico-IO-Data'!AR37","v":0},{"$f":"BX160*'Mexico-IO-Data'!$AR37","v":4216.7876823031447},{"$f":"BY160*'Mexico-IO-Data'!$AR37","v":4370.1398105506887},{"$f":"(CA160*'Default-Data'!$F$19/wind_dollar_index)/'Mexico-IO-Data'!$AS37","v":0.25548121620258479},{"$f":"(CB160*'Default-Data'!$F$19/wind_dollar_index)/'Mexico-IO-Data'!$AS37","v":0.26477231435209808},{"$f":"(CC160*'Default-Data'!$F$19/wind_dollar_index)/'Mexico-IO-Data'!$AS37","v":1.5478761737584579E-5},null,"TTL_C65T67: Financial intermediation",0,0,null,3986659.6724668154,5593760.8782324595,{"$f":"CH160*'Philippines-IO-Data'!AN37","v":0},{"$f":"CK160*'Philippines-IO-Data'!$AN37","v":2542668.3029540437},{"$f":"CL160*'Philippines-IO-Data'!$AN37","v":3567668.0850425516},{"$f":"CH160*'Philippines-IO-Data'!AO37","v":0},{"$f":"CK160*'Philippines-IO-Data'!$AO37","v":557065.21532933798},{"$f":"CL160*'Philippines-IO-Data'!$AO37","v":781629.19941577467},{"$f":"(CP160*'Default-Data'!$F$19/wind_dollar_index)/'Philippines-IO-Data'!$AP37","v":0},{"$f":"(CQ160*'Default-Data'!$F$19/wind_dollar_index)/'Philippines-IO-Data'!$AP37","v":112.56436467533682},{"$f":"(CR160*'Default-Data'!$F$19/wind_dollar_index)/'Philippines-IO-Data'!$AP37","v":157.94128195908402},31451.392327448437,51307.27675758244,{"$f":"CI160*'Philippines-IO-Data'!AN37","v":0},{"$f":"CV160*'Philippines-IO-Data'!$AN37","v":20059.514712800159},{"$f":"CW160*'Philippines-IO-Data'!$AN37","v":32723.482072818322},{"$f":"CI160*'Philippines-IO-Data'!AO37","v":0},{"$f":"CV160*'Philippines-IO-Data'!$AO37","v":4394.7760979698696},{"$f":"CW160*'Philippines-IO-Data'!$AO37","v":7169.2849460709785},{"$f":"(DA160*'Default-Data'!$F$19/wind_dollar_index)/'Philippines-IO-Data'!$AP37","v":0},{"$f":"(DB160*'Default-Data'!$F$19/wind_dollar_index)/'Philippines-IO-Data'!$AP37","v":0.88803817891567594},{"$f":"(DC160*'Default-Data'!$F$19/wind_dollar_index)/'Philippines-IO-Data'!$AP37","v":1.4486741999387498},null,"DOM_C65T67: Financial intermediation",0,0,null,12204275.854877207,13758632.582840882,{"$f":"DI160*'SouthAfrica-IO-Data'!AR37","v":0},{"$f":"DL160*'SouthAfrica-IO-Data'!$AR37","v":7101951.1986536421},{"$f":"DM160*'SouthAfrica-IO-Data'!$AR37","v":8006467.4320265101},{"$f":"DI160*'SouthAfrica-IO-Data'!AS37","v":0},{"$f":"DL160*'SouthAfrica-IO-Data'!$AS37","v":3568100.7601054641},{"$f":"DM160*'SouthAfrica-IO-Data'!$AS37","v":4022539.9655504837},{"$f":"(DQ160*'Default-Data'!$F$19/wind_dollar_index)/'SouthAfrica-IO-Data'!$AT37","v":0},{"$f":"(DR160*'Default-Data'!$F$19/wind_dollar_index)/'SouthAfrica-IO-Data'!$AT37","v":177.6306786988869},{"$f":"(DS160*'Default-Data'!$F$19/wind_dollar_index)/'SouthAfrica-IO-Data'!$AT37","v":200.25401529103959},129481.53166049653,134260.68916904874,{"$f":"DJ160*'SouthAfrica-IO-Data'!AR37","v":0},{"$f":"'SouthAfrica-IO-Data'!$AR37*Calculations!DW160","v":75348.306602909463},{"$f":"'SouthAfrica-IO-Data'!$AR37*Calculations!DX160","v":78129.409209898877},{"$f":"DJ160*'SouthAfrica-IO-Data'!AS37","v":0},{"$f":"DW160*'SouthAfrica-IO-Data'!$AS37","v":37855.84306936217},{"$f":"DX160*'SouthAfrica-IO-Data'!$AS37","v":39253.100534016587},{"$f":"(EB160*'Default-Data'!$F$19/wind_dollar_index)/'SouthAfrica-IO-Data'!$AT37","v":0},{"$f":"(EC160*'Default-Data'!$F$19/wind_dollar_index)/'SouthAfrica-IO-Data'!$AT37","v":1.8845765714672815},{"$f":"(ED160*'Default-Data'!$F$19/wind_dollar_index)/'SouthAfrica-IO-Data'!$AT37","v":1.9541362079379494},null,"OTHER",{"$f":"'Wind-Inputs'!B25*'Wind-Inputs'!C25","v":6025000},0,null,9456563.4705726244,652359.3773859106,{"$f":"EJ160*'Zambia-IO-Data'!BO35","v":2205098.8954347204},{"$f":"EM160*'Zambia-IO-Data'!$BO35","v":3461022.0188494641},{"$f":"EN160*'Zambia-IO-Data'!$BO35","v":238757.99875521217},{"$f":"EJ160*'Zambia-IO-Data'!BN35","v":1764354.2184111765},{"$f":"EM160*'Zambia-IO-Data'!$BN35","v":2769249.4026519246},{"$f":"EN160*'Zambia-IO-Data'!$BN35","v":191036.18579434359},{"$f":"(ER160*'Default-Data'!$F$19/wind_dollar_index)/'Zambia-IO-Data'!$BP35","v":3285.1595379589676},{"$f":"(ES160*'Default-Data'!$F$19/wind_dollar_index)/'Zambia-IO-Data'!$BP35","v":5156.2356318117863},{"$f":"(ET160*'Default-Data'!$F$19/wind_dollar_index)/'Zambia-IO-Data'!$BP35","v":355.70201341017395},11114.254817936349,3264.6546159692243,{"$f":"EK160*'Zambia-IO-Data'!BO35","v":0},{"$f":"EX160*'Zambia-IO-Data'!$BO35","v":4067.7229913048072},{"$f":"EY160*'Zambia-IO-Data'!$BO35","v":1194.8358983650785},{"$f":"EK160*'Zambia-IO-Data'!BN35","v":0},{"$f":"EX160*'Zambia-IO-Data'!$BN35","v":3254.6858709581311},{"$f":"EY160*'Zambia-IO-Data'!$BN35","v":956.01778312710712},{"$f":"(FC160*'Default-Data'!$F$19/wind_dollar_index)/'Zambia-IO-Data'!$BP35","v":0},{"$f":"(FD160*'Default-Data'!$F$19/wind_dollar_index)/'Zambia-IO-Data'!$BP35","v":6.0600996219834036},{"$f":"(FE160*'Default-Data'!$F$19/wind_dollar_index)/'Zambia-IO-Data'!$BP35","v":1.7800682572270654},null,"TTL_C65T67: Financial intermediation",0,0,null,6082018.6133168628,7922960.1577669261,{"$f":"FK160*CustomRegion1!C33","v":0},{"$f":"FN160*CustomRegion1!$C33","v":3879076.022681497},{"$f":"FO160*CustomRegion1!$C33","v":5053217.8098504152},{"$f":"FK160*CustomRegion1!D33","v":0},{"$f":"FN160*CustomRegion1!$D33","v":849854.58675181202},{"$f":"FO160*CustomRegion1!$D33","v":1107093.6244731424},{"$f":"(FS160*'Default-Data'!$C$58/wind_dollar_index)/CustomRegion1!$E33","v":0},{"$f":"(FT160*'Default-Data'!$C$58/wind_dollar_index)/CustomRegion1!$E33","v":172.44493248241639},{"$f":"(FU160*'Default-Data'!$C$58/wind_dollar_index)/CustomRegion1!$E33","v":224.64158963201317},48948.148379676939,73150.355202796229,{"$f":"FL160*CustomRegion1!C33","v":0},{"$f":"FY160*CustomRegion1!$C33","v":31218.84374351041},{"$f":"FZ160*CustomRegion1!$C33","v":46654.870193344206},{"$f":"FL160*CustomRegion1!D33","v":0},{"$f":"FY160*CustomRegion1!$D33","v":6839.638458585805},{"$f":"FZ160*CustomRegion1!$D33","v":10221.469029296088},{"$f":"(GD160*'Default-Data'!$C$58/wind_dollar_index)/CustomRegion1!$E33","v":0},{"$f":"(GE160*'Default-Data'!$C$58/wind_dollar_index)/CustomRegion1!$E33","v":1.3878385909558109},{"$f":"(GF160*'Default-Data'!$C$58/wind_dollar_index)/CustomRegion1!$E33","v":2.07404956577922},null,"C60T63 Transport and storage",0,0,null,8019919.6474809591,13296917.339894688,{"$f":"GL160*CustomRegion2!C37","v":0},{"$f":"GO160*CustomRegion2!$C37","v":4975901.6718680784},{"$f":"GP160*CustomRegion2!$C37","v":8249977.0734056728},{"$f":"GL160*CustomRegion2!D37","v":0},{"$f":"GO160*CustomRegion2!$D37","v":1689705.9166429131},{"$f":"GP160*CustomRegion2!$D37","v":2801509.3529508011},{"$f":"(GT160*'Default-Data'!$C$59/wind_dollar_index)/CustomRegion2!$E37","v":0},{"$f":"(GU160*'Default-Data'!$C$59/wind_dollar_index)/CustomRegion2!$E37","v":185.18149864259632},{"$f":"(GV160*'Default-Data'!$C$59/wind_dollar_index)/CustomRegion2!$E37","v":307.02839785955223},0,0,{"$f":"GM160*CustomRegion2!C37","v":0},{"$f":"GZ160*CustomRegion2!$C37","v":0},{"$f":"HA160*CustomRegion2!$C37","v":0},{"$f":"GM160*CustomRegion2!D37","v":0},{"$f":"GZ160*CustomRegion2!$D37","v":0},{"$f":"HA160*CustomRegion2!$D37","v":0},{"$f":"(HE160*'Default-Data'!$C$59/wind_dollar_index)/CustomRegion2!$E37","v":0},{"$f":"(HF160*'Default-Data'!$C$59/wind_dollar_index)/CustomRegion2!$E37","v":0},{"$f":"(HG160*'Default-Data'!$C$59/wind_dollar_index)/CustomRegion2!$E37","v":0},null,"OTHER",6025000,0,null,9456563.4705726244,652359.3773859106,{"$f":"HM160*CustomRegion3!D36","v":2205098.8954347204},{"$f":"HP160*CustomRegion3!$D36","v":3461022.0188494641},{"$f":"HQ160*CustomRegion3!$D36","v":238757.99875521217},{"$f":"HM160*CustomRegion3!E36","v":1764354.2184111765},{"$f":"HP160*CustomRegion3!$E36","v":2769249.4026519246},{"$f":"HQ160*CustomRegion3!$E36","v":191036.18579434359},{"$f":"(HU160*'Default-Data'!$C$60/wind_dollar_index)/CustomRegion3!$F36","v":3298.4648640042974},{"$f":"(HV160*'Default-Data'!$C$60/wind_dollar_index)/CustomRegion3!$F36","v":5177.1190608979814},{"$f":"(HW160*'Default-Data'!$C$60/wind_dollar_index)/CustomRegion3!$F36","v":357.14265311388317},11114.254817936349,3264.6546159692243,{"$f":"HN160*CustomRegion3!D36","v":0},{"$f":"IA160*CustomRegion3!$D36","v":4067.7229913048072},{"$f":"IB160*CustomRegion3!$D36","v":1194.8358983650785},{"$f":"HN160*CustomRegion3!E36","v":0},{"$f":"IA160*CustomRegion3!$E36","v":3254.6858709581311},{"$f":"IB160*CustomRegion3!$E36","v":956.01778312710712},{"$f":"(IF160*'Default-Data'!$C$60/wind_dollar_index)/CustomRegion3!$F36","v":0},{"$f":"(IG160*'Default-Data'!$C$60/wind_dollar_index)/CustomRegion3!$F36","v":6.0846438185151088},{"$f":"(IH160*'Default-Data'!$C$60/wind_dollar_index)/CustomRegion3!$F36","v":1.7872777666197395}]
[null,null,null,null,null,null,null,null,null,null,null,null,null,null,null,null,null,null,null,null,null,null,null,null,null,null,null,null,null,160,"TTL_C70: Real estate activities",0,0,null,2239653.9495186014,5298543.4754139539,{"$f":"AF161*'Colombia-IO-Data'!AN38","v":0},{"$f":"AI161*'Colombia-IO-Data'!$AN38","v":1986304.8954077926},{"$f":"AJ161*'Colombia-IO-Data'!$AN38","v":4699173.6585055618},{"$f":"AK161*'Colombia-IO-Data'!$AO38","v":0},{"$f":"AL161*'Colombia-IO-Data'!$AO38","v":65443.184748448279},{"$f":"AM161*'Colombia-IO-Data'!$AO38","v":154824.61459447027},{"$f":"(Calculations!AN161*'Default-Data'!$F$19/wind_dollar_index)/'Colombia-IO-Data'!$AP38","v":0},{"$f":"(Calculations!AO161*'Default-Data'!$F$19/wind_dollar_index)/'Colombia-IO-Data'!$AP38","v":10.981989558745243},{"$f":"(Calculations!AP161*'Default-Data'!$F$19/wind_dollar_index)/'Colombia-IO-Data'!$AP38","v":25.981044587741344},17988.631740316156,58668.164429258803,{"$f":"AG161*'Colombia-IO-Data'!AN38","v":0},{"$f":"AT161*'Colombia-IO-Data'!$AN38","v":15953.76254227047},{"$f":"AU161*'Colombia-IO-Data'!$AN38","v":52031.637403391738},{"$f":"AV161*'Colombia-IO-Data'!$AO38","v":0},{"$f":"AW161*'Colombia-IO-Data'!$AO38","v":525.63180602358204},{"$f":"AX161*'Colombia-IO-Data'!$AO38","v":1714.2967664364335},{"$f":"(AY161*'Default-Data'!$F$19/wind_dollar_index)/'Colombia-IO-Data'!$AP38","v":0},{"$f":"(AZ161*'Default-Data'!$F$19/wind_dollar_index)/'Colombia-IO-Data'!$AP38","v":8.820602218067107E-2},{"$f":"(BA161*'Default-Data'!$F$19/wind_dollar_index)/'Colombia-IO-Data'!$AP38","v":0.28767532115010702},null,"DOM_C70: Real estate activities",0,0,null,1464798.2009257684,7776903.7894817786,{"$f":"BG161*'Mexico-IO-Data'!AQ38","v":0},{"$f":"BJ161*'Mexico-IO-Data'!$AQ38","v":1353745.3909843483},{"$f":"BK161*'Mexico-IO-Data'!$AQ38","v":7187302.4246520055},{"$f":"BG161*'Mexico-IO-Data'!AR38","v":0},{"$f":"BJ161*'Mexico-IO-Data'!$AR38","v":19394.920087451057},{"$f":"BK161*'Mexico-IO-Data'!$AR38","v":102971.47240450369},{"$f":"(BO161*'Default-Data'!$F$19/wind_dollar_index)/'Mexico-IO-Data'!$AS38","v":0},{"$f":"(BP161*'Default-Data'!$F$19/wind_dollar_index)/'Mexico-IO-Data'!$AS38","v":6.6360473157498712},{"$f":"(BQ161*'Default-Data'!$F$19/wind_dollar_index)/'Mexico-IO-Data'!$AS38","v":35.232089638298845},14565.832534923295,62223.238559194186,{"$f":"BH161*'Mexico-IO-Data'!AQ38","v":0},{"$f":"BU161*'Mexico-IO-Data'!$AQ38","v":13461.532549357322},{"$f":"BV161*'Mexico-IO-Data'!$AQ38","v":57505.820500319867},{"$f":"BH161*'Mexico-IO-Data'!AR38","v":0},{"$f":"BX161*'Mexico-IO-Data'!$AR38","v":178.23980660571388},{"$f":"BY161*'Mexico-IO-Data'!$AR38","v":761.41600424011563},{"$f":"(CA161*'Default-Data'!$F$19/wind_dollar_index)/'Mexico-IO-Data'!$AS38","v":6.0985442829997863E-2},{"$f":"(CB161*'Default-Data'!$F$19/wind_dollar_index)/'Mexico-IO-Data'!$AS38","v":0.26052144625106655},{"$f":"(CC161*'Default-Data'!$F$19/wind_dollar_index)/'Mexico-IO-Data'!$AS38","v":2.0866406376877824E-5},null,"TTL_C70: Real estate activities",0,0,null,1360332.3856548744,6024062.6119075017,{"$f":"CH161*'Philippines-IO-Data'!AN38","v":0},{"$f":"CK161*'Philippines-IO-Data'!$AN38","v":1103869.55468672},{"$f":"CL161*'Philippines-IO-Data'!$AN38","v":4888348.8939432977},{"$f":"CH161*'Philippines-IO-Data'!AO38","v":0},{"$f":"CK161*'Philippines-IO-Data'!$AO38","v":28291.626500988361},{"$f":"CL161*'Philippines-IO-Data'!$AO38","v":125285.94572319095},{"$f":"(CP161*'Default-Data'!$F$19/wind_dollar_index)/'Philippines-IO-Data'!$AP38","v":0},{"$f":"(CQ161*'Default-Data'!$F$19/wind_dollar_index)/'Philippines-IO-Data'!$AP38","v":5.7167973786209547},{"$f":"(CR161*'Default-Data'!$F$19/wind_dollar_index)/'Philippines-IO-Data'!$AP38","v":25.316125464308808},3712.7541159959319,55254.1044142393,{"$f":"CI161*'Philippines-IO-Data'!AN38","v":0},{"$f":"CV161*'Philippines-IO-Data'!$AN38","v":3012.7903120623837},{"$f":"CW161*'Philippines-IO-Data'!$AN38","v":44837.073848680899},{"$f":"CI161*'Philippines-IO-Data'!AO38","v":0},{"$f":"CV161*'Philippines-IO-Data'!$AO38","v":77.216314076943135},{"$f":"CW161*'Philippines-IO-Data'!$AO38","v":1149.1518552517005},{"$f":"(DA161*'Default-Data'!$F$19/wind_dollar_index)/'Philippines-IO-Data'!$AP38","v":0},{"$f":"(DB161*'Default-Data'!$F$19/wind_dollar_index)/'Philippines-IO-Data'!$AP38","v":1.560285061328728E-2},{"$f":"(DC161*'Default-Data'!$F$19/wind_dollar_index)/'Philippines-IO-Data'!$AP38","v":0.23220539524338857},null,"DOM_C70: Real estate activities",0,0,null,5691471.4605456041,9171765.9696976095,{"$f":"DI161*'SouthAfrica-IO-Data'!AR38","v":0},{"$f":"DL161*'SouthAfrica-IO-Data'!$AR38","v":3346779.1977505749},{"$f":"DM161*'SouthAfrica-IO-Data'!$AR38","v":5393310.9858865878},{"$f":"DI161*'SouthAfrica-IO-Data'!AS38","v":0},{"$f":"DL161*'SouthAfrica-IO-Data'!$AS38","v":205678.24781712514},{"$f":"DM161*'SouthAfrica-IO-Data'!$AS38","v":331449.04039548675},{"$f":"(DQ161*'Default-Data'!$F$19/wind_dollar_index)/'SouthAfrica-IO-Data'!$AT38","v":0},{"$f":"(DR161*'Default-Data'!$F$19/wind_dollar_index)/'SouthAfrica-IO-Data'!$AT38","v":10.239275516500246},{"$f":"(DS161*'Default-Data'!$F$19/wind_dollar_index)/'SouthAfrica-IO-Data'!$AT38","v":16.500520012726572},15542.789939812232,89500.7270943904,{"$f":"DJ161*'SouthAfrica-IO-Data'!AR38","v":0},{"$f":"'SouthAfrica-IO-Data'!$AR38*Calculations!DW161","v":9139.6902200373734},{"$f":"'SouthAfrica-IO-Data'!$AR38*Calculations!DX161","v":52629.47793018401},{"$f":"DJ161*'SouthAfrica-IO-Data'!AS38","v":0},{"$f":"DW161*'SouthAfrica-IO-Data'!$AS38","v":561.68493915346141},{"$f":"DX161*'SouthAfrica-IO-Data'!$AS38","v":3234.374951142815},{"$f":"(EB161*'Default-Data'!$F$19/wind_dollar_index)/'SouthAfrica-IO-Data'!$AT38","v":0},{"$f":"(EC161*'Default-Data'!$F$19/wind_dollar_index)/'SouthAfrica-IO-Data'!$AT38","v":2.7962348505489888E-2},{"$f":"(ED161*'Default-Data'!$F$19/wind_dollar_index)/'SouthAfrica-IO-Data'!$AT38","v":0.16101681436854826},null,"FIRE",0,0,null,55298101.700161025,2430409.8732324913,{"$f":"EJ161*'Zambia-IO-Data'!BO36","v":0},{"$f":"EM161*'Zambia-IO-Data'!$BO36","v":11520179.67996354},{"$f":"EN161*'Zambia-IO-Data'!$BO36","v":506324.04322686139},{"$f":"EJ161*'Zambia-IO-Data'!BN36","v":0},{"$f":"EM161*'Zambia-IO-Data'!$BN36","v":2745115.882405642},{"$f":"EN161*'Zambia-IO-Data'!$BN36","v":120650.73734251833},{"$f":"(ER161*'Default-Data'!$F$19/wind_dollar_index)/'Zambia-IO-Data'!$BP36","v":0},{"$f":"(ES161*'Default-Data'!$F$19/wind_dollar_index)/'Zambia-IO-Data'!$BP36","v":2173.240182116806},{"$f":"(ET161*'Default-Data'!$F$19/wind_dollar_index)/'Zambia-IO-Data'!$BP36","v":95.516197358125268},266848.06778386206,12041.958529704192,{"$f":"EK161*'Zambia-IO-Data'!BO36","v":0},{"$f":"EX161*'Zambia-IO-Data'!$BO36","v":55592.101602146489},{"$f":"EY161*'Zambia-IO-Data'!$BO36","v":2508.6851391945324},{"$f":"EK161*'Zambia-IO-Data'!BN36","v":0},{"$f":"EX161*'Zambia-IO-Data'!$BN36","v":13246.908059062793},{"$f":"EY161*'Zambia-IO-Data'!$BN36","v":597.78854244222293},{"$f":"(FC161*'Default-Data'!$F$19/wind_dollar_index)/'Zambia-IO-Data'!$BP36","v":0},{"$f":"(FD161*'Default-Data'!$F$19/wind_dollar_index)/'Zambia-IO-Data'!$BP36","v":10.487248668545696},{"$f":"(FE161*'Default-Data'!$F$19/wind_dollar_index)/'Zambia-IO-Data'!$BP36","v":0.47325436757372741},null,"TTL_C70: Real estate activities",0,0,null,1898693.0738502389,7318252.2451190073,{"$f":"FK161*CustomRegion1!C34","v":0},{"$f":"FN161*CustomRegion1!$C34","v":1540733.3531273946},{"$f":"FO161*CustomRegion1!$C34","v":5938545.5584927546},{"$f":"FK161*CustomRegion1!D34","v":0},{"$f":"FN161*CustomRegion1!$D34","v":39488.227915359552},{"$f":"FO161*CustomRegion1!$D34","v":152201.96280135852},{"$f":"(FS161*'Default-Data'!$C$58/wind_dollar_index)/CustomRegion1!$E34","v":0},{"$f":"(FT161*'Default-Data'!$C$58/wind_dollar_index)/CustomRegion1!$E34","v":8.0125999234067553},{"$f":"(FU161*'Default-Data'!$C$58/wind_dollar_index)/CustomRegion1!$E34","v":30.88346831107523},8727.9276323297345,67567.265331926057,{"$f":"FL161*CustomRegion1!C34","v":0},{"$f":"FY161*CustomRegion1!$C34","v":7082.4555016380227},{"$f":"FZ161*CustomRegion1!$C34","v":54828.840274538241},{"$f":"FL161*CustomRegion1!D34","v":0},{"$f":"FY161*CustomRegion1!$D34","v":181.51980450179155},{"$f":"FZ161*CustomRegion1!$D34","v":1405.2358486957423},{"$f":"(GD161*'Default-Data'!$C$58/wind_dollar_index)/CustomRegion1!$E34","v":0},{"$f":"(GE161*'Default-Data'!$C$58/wind_dollar_index)/CustomRegion1!$E34","v":3.6832383938964645E-2},{"$f":"(GF161*'Default-Data'!$C$58/wind_dollar_index)/CustomRegion1!$E34","v":0.28513795751387316},null,"C64 Post and telecommunications",0,0,null,3014664.5262430124,5096511.70127689,{"$f":"GL161*CustomRegion2!C38","v":0},{"$f":"GO161*CustomRegion2!$C38","v":1853308.7232028272},{"$f":"GP161*CustomRegion2!$C38","v":3133154.4560458818},{"$f":"GL161*CustomRegion2!D38","v":0},{"$f":"GO161*CustomRegion2!$D38","v":507187.99769713113},{"$f":"GP161*CustomRegion2!$D38","v":857438.54498862301},{"$f":"(GT161*'Default-Data'!$C$59/wind_dollar_index)/CustomRegion2!$E38","v":0},{"$f":"(GU161*'Default-Data'!$C$59/wind_dollar_index)/CustomRegion2!$E38","v":32.803363837191107},{"$f":"(GV161*'Default-Data'!$C$59/wind_dollar_index)/CustomRegion2!$E38","v":55.456494804692923},0,0,{"$f":"GM161*CustomRegion2!C38","v":0},{"$f":"GZ161*CustomRegion2!$C38","v":0},{"$f":"HA161*CustomRegion2!$C38","v":0},{"$f":"GM161*CustomRegion2!D38","v":0},{"$f":"GZ161*CustomRegion2!$D38","v":0},{"$f":"HA161*CustomRegion2!$D38","v":0},{"$f":"(HE161*'Default-Data'!$C$59/wind_dollar_index)/CustomRegion2!$E38","v":0},{"$f":"(HF161*'Default-Data'!$C$59/wind_dollar_index)/CustomRegion2!$E38","v":0},{"$f":"(HG161*'Default-Data'!$C$59/wind_dollar_index)/CustomRegion2!$E38","v":0},null,"FIRE",0,0,null,55298101.700161025,2430409.8732324913,{"$f":"HM161*CustomRegion3!D37","v":0},{"$f":"HP161*CustomRegion3!$D37","v":11520179.67996354},{"$f":"HQ161*CustomRegion3!$D37","v":506324.04322686139},{"$f":"HM161*CustomRegion3!E37","v":0},{"$f":"HP161*CustomRegion3!$E37","v":2745115.882405642},{"$f":"HQ161*CustomRegion3!$E37","v":120650.73734251833},{"$f":"(HU161*'Default-Data'!$C$60/wind_dollar_index)/CustomRegion3!$F37","v":0},{"$f":"(HV161*'Default-Data'!$C$60/wind_dollar_index)/CustomRegion3!$F37","v":2182.0420892582297},{"$f":"(HW161*'Default-Data'!$C$60/wind_dollar_index)/CustomRegion3!$F37","v":95.903050457274773},266848.06778386206,12041.958529704192,{"$f":"HN161*CustomRegion3!D37","v":0},{"$f":"IA161*CustomRegion3!$D37","v":55592.101602146489},{"$f":"IB161*CustomRegion3!$D37","v":2508.6851391945324},{"$f":"HN161*CustomRegion3!E37","v":0},{"$f":"IA161*CustomRegion3!$E37","v":13246.908059062793},{"$f":"IB161*CustomRegion3!$E37","v":597.78854244222293},{"$f":"(IF161*'Default-Data'!$C$60/wind_dollar_index)/CustomRegion3!$F37","v":0},{"$f":"(IG161*'Default-Data'!$C$60/wind_dollar_index)/CustomRegion3!$F37","v":10.529723398080492},{"$f":"(IH161*'Default-Data'!$C$60/wind_dollar_index)/CustomRegion3!$F37","v":0.47517110969543797}]
[null,null,null,null,null,null,null,null,null,null,null,null,null,null,null,null,null,null,null,null,null,null,null,null,null,null,null,null,null,161,"TTL_C71: Renting of machinery and equipment",0,0,null,569596.08428366203,94117.965363477473,{"$f":"AF162*'Colombia-IO-Data'!AN39","v":0},{"$f":"AI162*'Colombia-IO-Data'!$AN39","v":411049.93902657466},{"$f":"AJ162*'Colombia-IO-Data'!$AN39","v":67920.382515649893},{"$f":"AK162*'Colombia-IO-Data'!$AO39","v":0},{"$f":"AL162*'Colombia-IO-Data'!$AO39","v":156950.63801819758},{"$f":"AM162*'Colombia-IO-Data'!$AO39","v":25933.947090506917},{"$f":"(Calculations!AN162*'Default-Data'!$F$19/wind_dollar_index)/'Colombia-IO-Data'!$AP39","v":0},{"$f":"(Calculations!AO162*'Default-Data'!$F$19/wind_dollar_index)/'Colombia-IO-Data'!$AP39","v":28.041499391672467},{"$f":"(Calculations!AP162*'Default-Data'!$F$19/wind_dollar_index)/'Colombia-IO-Data'!$AP39","v":4.6334743887934851},4688.3839024260678,1042.121913939829,{"$f":"AG162*'Colombia-IO-Data'!AN39","v":0},{"$f":"AT162*'Colombia-IO-Data'!$AN39","v":3383.3798553040492},{"$f":"AU162*'Colombia-IO-Data'!$AN39","v":752.04897119674774},{"$f":"AV162*'Colombia-IO-Data'!$AO39","v":0},{"$f":"AW162*'Colombia-IO-Data'!$AO39","v":1291.8713191040188},{"$f":"AX162*'Colombia-IO-Data'!$AO39","v":287.15383374044882},{"$f":"(AY162*'Default-Data'!$F$19/wind_dollar_index)/'Colombia-IO-Data'!$AP39","v":0},{"$f":"(AZ162*'Default-Data'!$F$19/wind_dollar_index)/'Colombia-IO-Data'!$AP39","v":0.23081147847627245},{"$f":"(BA162*'Default-Data'!$F$19/wind_dollar_index)/'Colombia-IO-Data'!$AP39","v":5.1304181721233903E-2},null,"DOM_C71: Renting of machinery and equipment",0,0,null,1333174.003040931,198427.11370849749,{"$f":"BG162*'Mexico-IO-Data'!AQ39","v":0},{"$f":"BJ162*'Mexico-IO-Data'!$AQ39","v":1096800.4160882609},{"$f":"BK162*'Mexico-IO-Data'!$AQ39","v":163245.71314941169},{"$f":"BG162*'Mexico-IO-Data'!AR39","v":0},{"$f":"BJ162*'Mexico-IO-Data'!$AR39","v":49916.651710361934},{"$f":"BK162*'Mexico-IO-Data'!$AR39","v":7429.5006520430607},{"$f":"(BO162*'Default-Data'!$F$19/wind_dollar_index)/'Mexico-IO-Data'!$AS39","v":0},{"$f":"(BP162*'Default-Data'!$F$19/wind_dollar_index)/'Mexico-IO-Data'!$AS39","v":17.079176459618111},{"$f":"(BQ162*'Default-Data'!$F$19/wind_dollar_index)/'Mexico-IO-Data'!$AS39","v":2.5420325341403229},5846.9426373515862,1587.6212393928718,{"$f":"BH162*'Mexico-IO-Data'!AQ39","v":0},{"$f":"BU162*'Mexico-IO-Data'!$AQ39","v":4810.2716546105084},{"$f":"BV162*'Mexico-IO-Data'!$AQ39","v":1306.1338069785336},{"$f":"BH162*'Mexico-IO-Data'!AR39","v":0},{"$f":"BX162*'Mexico-IO-Data'!$AR39","v":180.10601336939456},{"$f":"BY162*'Mexico-IO-Data'!$AR39","v":48.904213689557572},{"$f":"(CA162*'Default-Data'!$F$19/wind_dollar_index)/'Mexico-IO-Data'!$AS39","v":6.162397273003959E-2},{"$f":"(CB162*'Default-Data'!$F$19/wind_dollar_index)/'Mexico-IO-Data'!$AS39","v":1.6732766854421079E-2},{"$f":"(CC162*'Default-Data'!$F$19/wind_dollar_index)/'Mexico-IO-Data'!$AS39","v":2.1084881864793836E-5},null,"TTL_C71: Renting of machinery and equipment",0,0,null,427778.02280721121,115532.60406345077,{"$f":"CH162*'Philippines-IO-Data'!AN39","v":0},{"$f":"CK162*'Philippines-IO-Data'!$AN39","v":216271.92381382771},{"$f":"CL162*'Philippines-IO-Data'!$AN39","v":58409.869632981383},{"$f":"CH162*'Philippines-IO-Data'!AO39","v":0},{"$f":"CK162*'Philippines-IO-Data'!$AO39","v":59120.358532092367},{"$f":"CL162*'Philippines-IO-Data'!$AO39","v":15966.993651414716},{"$f":"(CP162*'Default-Data'!$F$19/wind_dollar_index)/'Philippines-IO-Data'!$AP39","v":0},{"$f":"(CQ162*'Default-Data'!$F$19/wind_dollar_index)/'Philippines-IO-Data'!$AP39","v":11.946259458345015},{"$f":"(CR162*'Default-Data'!$F$19/wind_dollar_index)/'Philippines-IO-Data'!$AP39","v":3.2263987172203135},371.93184644597153,1059.6919353979815,{"$f":"CI162*'Philippines-IO-Data'!AN39","v":0},{"$f":"CV162*'Philippines-IO-Data'!$AN39","v":188.03774778011677},{"$f":"CW162*'Philippines-IO-Data'!$AN39","v":535.74891953204963},{"$f":"CI162*'Philippines-IO-Data'!AO39","v":0},{"$f":"CV162*'Philippines-IO-Data'!$AO39","v":51.402229518693005},{"$f":"CW162*'Philippines-IO-Data'!$AO39","v":146.45298218728274},{"$f":"(DA162*'Default-Data'!$F$19/wind_dollar_index)/'Philippines-IO-Data'!$AP39","v":0},{"$f":"(DB162*'Default-Data'!$F$19/wind_dollar_index)/'Philippines-IO-Data'!$AP39","v":1.0386682114493173E-2},{"$f":"(DC162*'Default-Data'!$F$19/wind_dollar_index)/'Philippines-IO-Data'!$AP39","v":2.9593279998597132E-2},null,"DOM_C71: Renting of machinery and equipment",0,0,null,1484880.0238419594,326509.41272136429,{"$f":"DI162*'SouthAfrica-IO-Data'!AR39","v":0},{"$f":"DL162*'SouthAfrica-IO-Data'!$AR39","v":633276.16271056444},{"$f":"DM162*'SouthAfrica-IO-Data'!$AR39","v":139250.73046781914},{"$f":"DI162*'SouthAfrica-IO-Data'!AS39","v":0},{"$f":"DL162*'SouthAfrica-IO-Data'!$AS39","v":209456.16946482554},{"$f":"DM162*'SouthAfrica-IO-Data'!$AS39","v":46057.196396161933},{"$f":"(DQ162*'Default-Data'!$F$19/wind_dollar_index)/'SouthAfrica-IO-Data'!$AT39","v":0},{"$f":"(DR162*'Default-Data'!$F$19/wind_dollar_index)/'SouthAfrica-IO-Data'!$AT39","v":10.427351703657136},{"$f":"(DS162*'Default-Data'!$F$19/wind_dollar_index)/'SouthAfrica-IO-Data'!$AT39","v":2.2928643569405134},2786.8879694441739,3186.1726452978819,{"$f":"DJ162*'SouthAfrica-IO-Data'!AR39","v":0},{"$f":"'SouthAfrica-IO-Data'!$AR39*Calculations!DW162","v":1188.5604835786276},{"$f":"'SouthAfrica-IO-Data'!$AR39*Calculations!DX162","v":1358.8486302933552},{"$f":"DJ162*'SouthAfrica-IO-Data'!AS39","v":0},{"$f":"DW162*'SouthAfrica-IO-Data'!$AS39","v":393.11652755422261},{"$f":"DX162*'SouthAfrica-IO-Data'!$AS39","v":449.43935322867151},{"$f":"(EB162*'Default-Data'!$F$19/wind_dollar_index)/'SouthAfrica-IO-Data'!$AT39","v":0},{"$f":"(EC162*'Default-Data'!$F$19/wind_dollar_index)/'SouthAfrica-IO-Data'!$AT39","v":1.9570511118397412E-2},{"$f":"(ED162*'Default-Data'!$F$19/wind_dollar_index)/'SouthAfrica-IO-Data'!$AT39","v":2.237442906338721E-2},null,"PUBLIC",0,0,null,591752.10197600757,1930917.394356308,{"$f":"EJ162*'Zambia-IO-Data'!BO37","v":0},{"$f":"EM162*'Zambia-IO-Data'!$BO37","v":126729.29468637842},{"$f":"EN162*'Zambia-IO-Data'!$BO37","v":413524.17451042018},{"$f":"EJ162*'Zambia-IO-Data'!BN37","v":0},{"$f":"EM162*'Zambia-IO-Data'!$BN37","v":82433.552255546674},{"$f":"EN162*'Zambia-IO-Data'!$BN37","v":268984.89992227918},{"$f":"(ER162*'Default-Data'!$F$19/wind_dollar_index)/'Zambia-IO-Data'!$BP37","v":0},{"$f":"(ES162*'Default-Data'!$F$19/wind_dollar_index)/'Zambia-IO-Data'!$BP37","v":153.48809644585631},{"$f":"(ET162*'Default-Data'!$F$19/wind_dollar_index)/'Zambia-IO-Data'!$BP37","v":500.83951415513337},940.83861991412118,9464.2111049421983,{"$f":"EK162*'Zambia-IO-Data'!BO37","v":0},{"$f":"EX162*'Zambia-IO-Data'!$BO37","v":201.48946546582178},{"$f":"EY162*'Zambia-IO-Data'!$BO37","v":2026.8500848366127},{"$f":"EK162*'Zambia-IO-Data'!BN37","v":0},{"$f":"EX162*'Zambia-IO-Data'!$BN37","v":131.06276983173547},{"$f":"EY162*'Zambia-IO-Data'!$BN37","v":1318.4043420743262},{"$f":"(FC162*'Default-Data'!$F$19/wind_dollar_index)/'Zambia-IO-Data'!$BP37","v":0},{"$f":"(FD162*'Default-Data'!$F$19/wind_dollar_index)/'Zambia-IO-Data'!$BP37","v":0.24403382489247155},{"$f":"(FE162*'Default-Data'!$F$19/wind_dollar_index)/'Zambia-IO-Data'!$BP37","v":2.4548180598067559},null,"TTL_C71: Renting of machinery and equipment",0,0,null,1350156.2437125733,443498.08880524267,{"$f":"FK162*CustomRegion1!C35","v":0},{"$f":"FN162*CustomRegion1!$C35","v":682599.08809893881},{"$f":"FO162*CustomRegion1!$C35","v":224219.52451936188},{"$f":"FK162*CustomRegion1!D35","v":0},{"$f":"FN162*CustomRegion1!$D35","v":186596.12450124408},{"$f":"FO162*CustomRegion1!$D35","v":61292.924415334623},{"$f":"(FS162*'Default-Data'!$C$58/wind_dollar_index)/CustomRegion1!$E35","v":0},{"$f":"(FT162*'Default-Data'!$C$58/wind_dollar_index)/CustomRegion1!$E35","v":37.862425634580468},{"$f":"(FU162*'Default-Data'!$C$58/wind_dollar_index)/CustomRegion1!$E35","v":12.437014963759852},2177.8728983589122,4094.6870969762017,{"$f":"FL162*CustomRegion1!C35","v":0},{"$f":"FY162*CustomRegion1!$C35","v":1101.0681625464251},{"$f":"FZ162*CustomRegion1!$C35","v":2070.1527630319679},{"$f":"FL162*CustomRegion1!D35","v":0},{"$f":"FY162*CustomRegion1!$D35","v":300.98934429442022},{"$f":"FZ162*CustomRegion1!$D35","v":565.89950007568427},{"$f":"(GD162*'Default-Data'!$C$58/wind_dollar_index)/CustomRegion1!$E35","v":0},{"$f":"(GE162*'Default-Data'!$C$58/wind_dollar_index)/CustomRegion1!$E35","v":6.1074080159004819E-2},{"$f":"(GF162*'Default-Data'!$C$58/wind_dollar_index)/CustomRegion1!$E35","v":0.11482729234346455},null,"C65T67 Finance and insurance",0,0,null,3751078.2254663203,4541904.1230467316,{"$f":"GL162*CustomRegion2!C39","v":0},{"$f":"GO162*CustomRegion2!$C39","v":2320532.1020562528},{"$f":"GP162*CustomRegion2!$C39","v":2809761.2708893437},{"$f":"GL162*CustomRegion2!D39","v":0},{"$f":"GO162*CustomRegion2!$D39","v":726278.17305466428},{"$f":"GP162*CustomRegion2!$D39","v":879396.70420116244},{"$f":"(GT162*'Default-Data'!$C$59/wind_dollar_index)/CustomRegion2!$E39","v":0},{"$f":"(GU162*'Default-Data'!$C$59/wind_dollar_index)/CustomRegion2!$E39","v":44.002791919571386},{"$f":"(GV162*'Default-Data'!$C$59/wind_dollar_index)/CustomRegion2!$E39","v":53.279737193490071},0,0,{"$f":"GM162*CustomRegion2!C39","v":0},{"$f":"GZ162*CustomRegion2!$C39","v":0},{"$f":"HA162*CustomRegion2!$C39","v":0},{"$f":"GM162*CustomRegion2!D39","v":0},{"$f":"GZ162*CustomRegion2!$D39","v":0},{"$f":"HA162*CustomRegion2!$D39","v":0},{"$f":"(HE162*'Default-Data'!$C$59/wind_dollar_index)/CustomRegion2!$E39","v":0},{"$f":"(HF162*'Default-Data'!$C$59/wind_dollar_index)/CustomRegion2!$E39","v":0},{"$f":"(HG162*'Default-Data'!$C$59/wind_dollar_index)/CustomRegion2!$E39","v":0},null,"PUBLIC",0,0,null,591752.10197600757,1930917.394356308,{"$f":"HM162*CustomRegion3!D38","v":0},{"$f":"HP162*CustomRegion3!$D38","v":126729.29468637842},{"$f":"HQ162*CustomRegion3!$D38","v":413524.17451042018},{"$f":"HM162*CustomRegion3!E38","v":0},{"$f":"HP162*CustomRegion3!$E38","v":82433.552255546674},{"$f":"HQ162*CustomRegion3!$E38","v":268984.89992227918},{"$f":"(HU162*'Default-Data'!$C$60/wind_dollar_index)/CustomRegion3!$F38","v":0},{"$f":"(HV162*'Default-Data'!$C$60/wind_dollar_index)/CustomRegion3!$F38","v":154.10974332287768},{"$f":"(HW162*'Default-Data'!$C$60/wind_dollar_index)/CustomRegion3!$F38","v":502.86797973046396},940.83861991412118,9464.2111049421983,{"$f":"HN162*CustomRegion3!D38","v":0},{"$f":"IA162*CustomRegion3!$D38","v":201.48946546582178},{"$f":"IB162*CustomRegion3!$D38","v":2026.8500848366127},{"$f":"HN162*CustomRegion3!E38","v":0},{"$f":"IA162*CustomRegion3!$E38","v":131.06276983173547},{"$f":"IB162*CustomRegion3!$E38","v":1318.4043420743262},{"$f":"(IF162*'Default-Data'!$C$60/wind_dollar_index)/CustomRegion3!$F38","v":0},{"$f":"(IG162*'Default-Data'!$C$60/wind_dollar_index)/CustomRegion3!$F38","v":0.24502219381908405},{"$f":"(IH162*'Default-Data'!$C$60/wind_dollar_index)/CustomRegion3!$F38","v":2.4647603942018721}]
[null,null,null,null,null,null,null,null,null,null,null,null,null,null,null,null,null,null,null,null,null,null,null,null,null,null,null,null,null,162,"TTL_C72: Computer and related activities",0,0,null,1240905.7468676073,369979.81888630311,{"$f":"AF163*'Colombia-IO-Data'!AN40","v":0},{"$f":"AI163*'Colombia-IO-Data'!$AN40","v":885807.22550434759},{"$f":"AJ163*'Colombia-IO-Data'!$AN40","v":264106.11578482995},{"$f":"AK163*'Colombia-IO-Data'!$AO40","v":0},{"$f":"AL163*'Colombia-IO-Data'!$AO40","v":341928.40835220565},{"$f":"AM163*'Colombia-IO-Data'!$AO40","v":101946.99389020396},{"$f":"(Calculations!AN163*'Default-Data'!$F$19/wind_dollar_index)/'Colombia-IO-Data'!$AP40","v":0},{"$f":"(Calculations!AO163*'Default-Data'!$F$19/wind_dollar_index)/'Colombia-IO-Data'!$AP40","v":26.12518203101677},{"$f":"(Calculations!AP163*'Default-Data'!$F$19/wind_dollar_index)/'Colombia-IO-Data'!$AP40","v":7.789302403189315},8628.5043597487729,4096.6044632167923,{"$f":"AG163*'Colombia-IO-Data'!AN40","v":0},{"$f":"AT163*'Colombia-IO-Data'!$AN40","v":6159.3650657632761},{"$f":"AU163*'Colombia-IO-Data'!$AN40","v":2924.3170504374752},{"$f":"AV163*'Colombia-IO-Data'!$AO40","v":0},{"$f":"AW163*'Colombia-IO-Data'!$AO40","v":2377.5623327044973},{"$f":"AX163*'Colombia-IO-Data'!$AO40","v":1128.8088940615612},{"$f":"(AY163*'Default-Data'!$F$19/wind_dollar_index)/'Colombia-IO-Data'!$AP40","v":0},{"$f":"(AZ163*'Default-Data'!$F$19/wind_dollar_index)/'Colombia-IO-Data'!$AP40","v":0.18165863734847282},{"$f":"(BA163*'Default-Data'!$F$19/wind_dollar_index)/'Colombia-IO-Data'!$AP40","v":8.6247112305486748E-2},null,"DOM_C72: Computer and related activities",0,0,null,78131.715423802118,54779.270057381305,{"$f":"BG163*'Mexico-IO-Data'!AQ40","v":0},{"$f":"BJ163*'Mexico-IO-Data'!$AQ40","v":55368.9128280277},{"$f":"BK163*'Mexico-IO-Data'!$AQ40","v":38819.941583749445},{"$f":"BG163*'Mexico-IO-Data'!AR40","v":0},{"$f":"BJ163*'Mexico-IO-Data'!$AR40","v":32638.077006990796},{"$f":"BK163*'Mexico-IO-Data'!$AR40","v":22883.025475911818},{"$f":"(BO163*'Default-Data'!$F$19/wind_dollar_index)/'Mexico-IO-Data'!$AS40","v":0},{"$f":"(BP163*'Default-Data'!$F$19/wind_dollar_index)/'Mexico-IO-Data'!$AS40","v":2.1109306999924624},{"$f":"(BQ163*'Default-Data'!$F$19/wind_dollar_index)/'Mexico-IO-Data'!$AS40","v":1.4800038916344695},739.2367484043225,438.29056924800807,{"$f":"BH163*'Mexico-IO-Data'!AQ40","v":0},{"$f":"BU163*'Mexico-IO-Data'!$AQ40","v":523.8683786687269},{"$f":"BV163*'Mexico-IO-Data'!$AQ40","v":310.59950738834885},{"$f":"BH163*'Mexico-IO-Data'!AR40","v":0},{"$f":"BX163*'Mexico-IO-Data'!$AR40","v":218.83631239598452},{"$f":"BY163*'Mexico-IO-Data'!$AR40","v":129.74719146363549},{"$f":"(CA163*'Default-Data'!$F$19/wind_dollar_index)/'Mexico-IO-Data'!$AS40","v":1.415366138179279E-2},{"$f":"(CB163*'Default-Data'!$F$19/wind_dollar_index)/'Mexico-IO-Data'!$AS40","v":8.3916503303709897E-3},{"$f":"(CC163*'Default-Data'!$F$19/wind_dollar_index)/'Mexico-IO-Data'!$AS40","v":9.1541540029226154E-7},null,"TTL_C72: Computer and related activities",0,0,null,398402.1340202748,396377.15010725072,{"$f":"CH163*'Philippines-IO-Data'!AN40","v":0},{"$f":"CK163*'Philippines-IO-Data'!$AN40","v":199069.13485217057},{"$f":"CL163*'Philippines-IO-Data'!$AN40","v":198057.31347564462},{"$f":"CH163*'Philippines-IO-Data'!AO40","v":0},{"$f":"CK163*'Philippines-IO-Data'!$AO40","v":69429.2981300338},{"$f":"CL163*'Philippines-IO-Data'!$AO40","v":69076.405412348919},{"$f":"(CP163*'Default-Data'!$F$19/wind_dollar_index)/'Philippines-IO-Data'!$AP40","v":0},{"$f":"(CQ163*'Default-Data'!$F$19/wind_dollar_index)/'Philippines-IO-Data'!$AP40","v":14.029353509788628},{"$f":"(CR163*'Default-Data'!$F$19/wind_dollar_index)/'Philippines-IO-Data'!$AP40","v":13.958045620745033},1334.1890505801193,3635.663480016452,{"$f":"CI163*'Philippines-IO-Data'!AN40","v":0},{"$f":"CV163*'Philippines-IO-Data'!$AN40","v":666.6527042616367},{"$f":"CW163*'Philippines-IO-Data'!$AN40","v":1816.6277782630427},{"$f":"CI163*'Philippines-IO-Data'!AO40","v":0},{"$f":"CV163*'Philippines-IO-Data'!$AO40","v":232.50831620756279},{"$f":"CW163*'Philippines-IO-Data'!$AO40","v":633.58486840256899},{"$f":"(DA163*'Default-Data'!$F$19/wind_dollar_index)/'Philippines-IO-Data'!$AP40","v":0},{"$f":"(DB163*'Default-Data'!$F$19/wind_dollar_index)/'Philippines-IO-Data'!$AP40","v":4.698220275729046E-2},{"$f":"(DC163*'Default-Data'!$F$19/wind_dollar_index)/'Philippines-IO-Data'!$AP40","v":0.12802644325490348},null,"DOM_C72: Computer and related activities",0,0,null,102494.23429626309,51520.440414981262,{"$f":"DI163*'SouthAfrica-IO-Data'!AR40","v":0},{"$f":"DL163*'SouthAfrica-IO-Data'!$AR40","v":51209.564302150997},{"$f":"DM163*'SouthAfrica-IO-Data'!$AR40","v":25741.34364163268},{"$f":"DI163*'SouthAfrica-IO-Data'!AS40","v":0},{"$f":"DL163*'SouthAfrica-IO-Data'!$AS40","v":38716.984205952831},{"$f":"DM163*'SouthAfrica-IO-Data'!$AS40","v":19461.739399552644},{"$f":"(DQ163*'Default-Data'!$F$19/wind_dollar_index)/'SouthAfrica-IO-Data'!$AT40","v":0},{"$f":"(DR163*'Default-Data'!$F$19/wind_dollar_index)/'SouthAfrica-IO-Data'!$AT40","v":1.927446741014738},{"$f":"(DS163*'Default-Data'!$F$19/wind_dollar_index)/'SouthAfrica-IO-Data'!$AT40","v":0.96886332831621713},521.73627505703359,502.75125778379049,{"$f":"DJ163*'SouthAfrica-IO-Data'!AR40","v":0},{"$f":"'SouthAfrica-IO-Data'!$AR40*Calculations!DW163","v":260.67697865880859},{"$f":"'SouthAfrica-IO-Data'!$AR40*Calculations!DX163","v":251.19142593960518},{"$f":"DJ163*'SouthAfrica-IO-Data'!AS40","v":0},{"$f":"DW163*'SouthAfrica-IO-Data'!$AS40","v":197.08479466919943},{"$f":"DX163*'SouthAfrica-IO-Data'!$AS40","v":189.91324381109723},{"$f":"(EB163*'Default-Data'!$F$19/wind_dollar_index)/'SouthAfrica-IO-Data'!$AT40","v":0},{"$f":"(EC163*'Default-Data'!$F$19/wind_dollar_index)/'SouthAfrica-IO-Data'!$AT40","v":9.8114678345815279E-3},{"$f":"(ED163*'Default-Data'!$F$19/wind_dollar_index)/'SouthAfrica-IO-Data'!$AT40","v":9.4544466819023593E-3},null,"LNONE",0,0,null,0,4614669.6493501216,{"$f":"EJ163*'Zambia-IO-Data'!BO38","v":0},{"$f":"EM163*'Zambia-IO-Data'!$BO38","v":0},{"$f":"EN163*'Zambia-IO-Data'!$BO38","v":0},{"$f":"EJ163*'Zambia-IO-Data'!BN38","v":0},{"$f":"EM163*'Zambia-IO-Data'!$BN38","v":0},{"$f":"EN163*'Zambia-IO-Data'!$BN38","v":0},0,0,0,0,19741.543679477563,{"$f":"EK163*'Zambia-IO-Data'!BO38","v":0},{"$f":"EX163*'Zambia-IO-Data'!$BO38","v":0},{"$f":"EY163*'Zambia-IO-Data'!$BO38","v":0},{"$f":"EK163*'Zambia-IO-Data'!BN38","v":0},{"$f":"EX163*'Zambia-IO-Data'!$BN38","v":0},{"$f":"EY163*'Zambia-IO-Data'!$BN38","v":0},0,0,0,null,"TTL_C72: Computer and related activities",0,0,null,1784206.3273147363,1344947.9377329811,{"$f":"FK163*CustomRegion1!C36","v":0},{"$f":"FN163*CustomRegion1!$C36","v":891512.31794917549},{"$f":"FO163*CustomRegion1!$C36","v":672028.58499771554},{"$f":"FK163*CustomRegion1!D36","v":0},{"$f":"FN163*CustomRegion1!$D36","v":310932.5539363788},{"$f":"FO163*CustomRegion1!$D36","v":234383.26094278705},{"$f":"(FS163*'Default-Data'!$C$58/wind_dollar_index)/CustomRegion1!$E36","v":0},{"$f":"(FT163*'Default-Data'!$C$58/wind_dollar_index)/CustomRegion1!$E36","v":63.091667805286242},{"$f":"(FU163*'Default-Data'!$C$58/wind_dollar_index)/CustomRegion1!$E36","v":47.558966249470942},12599.367248411148,12417.50777681117,{"$f":"FL163*CustomRegion1!C36","v":0},{"$f":"FY163*CustomRegion1!$C36","v":6295.5113029046679},{"$f":"FZ163*CustomRegion1!$C36","v":6204.6417904581349},{"$f":"FL163*CustomRegion1!D36","v":0},{"$f":"FY163*CustomRegion1!$D36","v":2195.6840846018267},{"$f":"FZ163*CustomRegion1!$D36","v":2163.9915448453935},{"$f":"(GD163*'Default-Data'!$C$58/wind_dollar_index)/CustomRegion1!$E36","v":0},{"$f":"(GE163*'Default-Data'!$C$58/wind_dollar_index)/CustomRegion1!$E36","v":0.44552868175841609},{"$f":"(GF163*'Default-Data'!$C$58/wind_dollar_index)/CustomRegion1!$E36","v":0.43909791352619088},null,"C70 Real estate activities",0,0,null,4659903.4497215701,15113011.670675706,{"$f":"GL163*CustomRegion2!C40","v":0},{"$f":"GO163*CustomRegion2!$C40","v":4173738.2284577661},{"$f":"GP163*CustomRegion2!$C40","v":13536279.289390959},{"$f":"GL163*CustomRegion2!D40","v":0},{"$f":"GO163*CustomRegion2!$D40","v":41081.59476768384},{"$f":"GP163*CustomRegion2!$D40","v":133235.94101742018},{"$f":"(GT163*'Default-Data'!$C$59/wind_dollar_index)/CustomRegion2!$E40","v":0},{"$f":"(GU163*'Default-Data'!$C$59/wind_dollar_index)/CustomRegion2!$E40","v":14.056227375806673},{"$f":"(GV163*'Default-Data'!$C$59/wind_dollar_index)/CustomRegion2!$E40","v":45.587195243053898},0,0,{"$f":"GM163*CustomRegion2!C40","v":0},{"$f":"GZ163*CustomRegion2!$C40","v":0},{"$f":"HA163*CustomRegion2!$C40","v":0},{"$f":"GM163*CustomRegion2!D40","v":0},{"$f":"GZ163*CustomRegion2!$D40","v":0},{"$f":"HA163*CustomRegion2!$D40","v":0},{"$f":"(HE163*'Default-Data'!$C$59/wind_dollar_index)/CustomRegion2!$E40","v":0},{"$f":"(HF163*'Default-Data'!$C$59/wind_dollar_index)/CustomRegion2!$E40","v":0},{"$f":"(HG163*'Default-Data'!$C$59/wind_dollar_index)/CustomRegion2!$E40","v":0},null,"LNONE",0,0,null,0,4614669.6493501216,{"$f":"HM163*CustomRegion3!D39","v":0},{"$f":"HP163*CustomRegion3!$D39","v":0},{"$f":"HQ163*CustomRegion3!$D39","v":0},{"$f":"HM163*CustomRegion3!E39","v":0},{"$f":"HP163*CustomRegion3!$E39","v":0},{"$f":"HQ163*CustomRegion3!$E39","v":0},0,0,0,0,19741.543679477563,{"$f":"HN163*CustomRegion3!D39","v":0},{"$f":"IA163*CustomRegion3!$D39","v":0},{"$f":"IB163*CustomRegion3!$D39","v":0},{"$f":"HN163*CustomRegion3!E39","v":0},{"$f":"IA163*CustomRegion3!$E39","v":0},{"$f":"IB163*CustomRegion3!$E39","v":0},0,0,0]
[null,null,null,null,null,null,null,null,null,null,null,null,null,null,null,null,null,null,null,null,null,null,null,null,null,null,null,null,null,163,"TTL_C73T74: R&D and other business activities",{"$f":"'Wind-Inputs'!B25*'Wind-Inputs'!C25","v":6025000},0,null,10313715.8718426,3211334.0551957116,{"$f":"AF164*'Colombia-IO-Data'!AN41","v":4394138.8872092124},{"$f":"AI164*'Colombia-IO-Data'!$AN41","v":7521975.1010938473},{"$f":"AJ164*'Colombia-IO-Data'!$AN41","v":2342082.6309966356},{"$f":"AK164*'Colombia-IO-Data'!$AO41","v":1647750.0367129396},{"$f":"AL164*'Colombia-IO-Data'!$AO41","v":2820651.5695394971},{"$f":"AM164*'Colombia-IO-Data'!$AO41","v":878253.246032572},{"$f":"(Calculations!AN164*'Default-Data'!$F$19/wind_dollar_index)/'Colombia-IO-Data'!$AP41","v":125.89702580780732},{"$f":"(Calculations!AO164*'Default-Data'!$F$19/wind_dollar_index)/'Colombia-IO-Data'!$AP41","v":215.51305448825886},{"$f":"(Calculations!AP164*'Default-Data'!$F$19/wind_dollar_index)/'Colombia-IO-Data'!$AP41","v":67.103303970865554},126320.63685728954,35557.521658870901,{"$f":"AG164*'Colombia-IO-Data'!AN41","v":0},{"$f":"AT164*'Colombia-IO-Data'!$AN41","v":92127.870982846347},{"$f":"AU164*'Colombia-IO-Data'!$AN41","v":25932.728407307623},{"$f":"AV164*'Colombia-IO-Data'!$AO41","v":0},{"$f":"AW164*'Colombia-IO-Data'!$AO41","v":34546.860418124605},{"$f":"AX164*'Colombia-IO-Data'!$AO41","v":9724.4659948258359},{"$f":"(AY164*'Default-Data'!$F$19/wind_dollar_index)/'Colombia-IO-Data'!$AP41","v":0},{"$f":"(AZ164*'Default-Data'!$F$19/wind_dollar_index)/'Colombia-IO-Data'!$AP41","v":2.639567216345367},{"$f":"(BA164*'Default-Data'!$F$19/wind_dollar_index)/'Colombia-IO-Data'!$AP41","v":0.74300186256407252},null,"DOM_C73T74: R&D and other business activities",6025000,0,null,9909204.0195685141,4212520.2017977461,{"$f":"BG164*'Mexico-IO-Data'!AQ41","v":4525652.6822236031},{"$f":"BJ164*'Mexico-IO-Data'!$AQ41","v":7443255.7261180338},{"$f":"BK164*'Mexico-IO-Data'!$AQ41","v":3164216.3236825033},{"$f":"BG164*'Mexico-IO-Data'!AR41","v":2001806.0911147317},{"$f":"BJ164*'Mexico-IO-Data'!$AR41","v":3292332.7741860305},{"$f":"BK164*'Mexico-IO-Data'!$AR41","v":1399609.7259589355},{"$f":"(BO164*'Default-Data'!$F$19/wind_dollar_index)/'Mexico-IO-Data'!$AS41","v":417.9941668605137},{"$f":"(BP164*'Default-Data'!$F$19/wind_dollar_index)/'Mexico-IO-Data'!$AS41","v":687.46713334612355},{"$f":"(BQ164*'Default-Data'!$F$19/wind_dollar_index)/'Mexico-IO-Data'!$AS41","v":292.25043520888494},115158.5852702362,33704.49944441866,{"$f":"BH164*'Mexico-IO-Data'!AQ41","v":0},{"$f":"BU164*'Mexico-IO-Data'!$AQ41","v":86500.873080385049},{"$f":"BV164*'Mexico-IO-Data'!$AQ41","v":25316.988931724023},{"$f":"BH164*'Mexico-IO-Data'!AR41","v":0},{"$f":"BX164*'Mexico-IO-Data'!$AR41","v":28739.912799843503},{"$f":"BY164*'Mexico-IO-Data'!$AR41","v":8411.5689049310204},{"$f":"(CA164*'Default-Data'!$F$19/wind_dollar_index)/'Mexico-IO-Data'!$AS41","v":6.0011386516087279},{"$f":"(CB164*'Default-Data'!$F$19/wind_dollar_index)/'Mexico-IO-Data'!$AS41","v":1.7564072524369843},{"$f":"(CC164*'Default-Data'!$F$19/wind_dollar_index)/'Mexico-IO-Data'!$AS41","v":1.2530888791015512E-3},null,"TTL_C73T74: R&D and other business activities",{"$f":"'Wind-Inputs'!B25*'Wind-Inputs'!C25","v":6025000},0,null,2503629.9849412739,1491059.3546050545,{"$f":"CH164*'Philippines-IO-Data'!AN41","v":2919111.289674568},{"$f":"CK164*'Philippines-IO-Data'!$AN41","v":1213008.2247651189},{"$f":"CL164*'Philippines-IO-Data'!$AN41","v":722417.95777634683},{"$f":"CH164*'Philippines-IO-Data'!AO41","v":1142353.5556448372},{"$f":"CK164*'Philippines-IO-Data'!$AO41","v":474693.87806086213},{"$f":"CL164*'Philippines-IO-Data'!$AO41","v":282708.20836690126},{"$f":"(CP164*'Default-Data'!$F$19/wind_dollar_index)/'Philippines-IO-Data'!$AP41","v":230.83168484995332},{"$f":"(CQ164*'Default-Data'!$F$19/wind_dollar_index)/'Philippines-IO-Data'!$AP41","v":95.919855214084237},{"$f":"(CR164*'Default-Data'!$F$19/wind_dollar_index)/'Philippines-IO-Data'!$AP41","v":57.125932453903523},7647.3321489488262,13676.343453722591,{"$f":"CI164*'Philippines-IO-Data'!AN41","v":0},{"$f":"CV164*'Philippines-IO-Data'!$AN41","v":3705.1308899398832},{"$f":"CW164*'Philippines-IO-Data'!$AN41","v":6626.1856559715343},{"$f":"CI164*'Philippines-IO-Data'!AO41","v":0},{"$f":"CV164*'Philippines-IO-Data'!$AO41","v":1449.9513811699196},{"$f":"CW164*'Philippines-IO-Data'!$AO41","v":2593.0654892248954},{"$f":"(DA164*'Default-Data'!$F$19/wind_dollar_index)/'Philippines-IO-Data'!$AP41","v":0},{"$f":"(DB164*'Default-Data'!$F$19/wind_dollar_index)/'Philippines-IO-Data'!$AP41","v":0.29298698166789572},{"$f":"(DC164*'Default-Data'!$F$19/wind_dollar_index)/'Philippines-IO-Data'!$AP41","v":0.52397234888123079},null,"DOM_C73T74: R&D and other business activities",6025000,0,null,21442607.338231161,8586915.0421765745,{"$f":"DI164*'SouthAfrica-IO-Data'!AR41","v":2566936.0962521727},{"$f":"DL164*'SouthAfrica-IO-Data'!$AR41","v":9135568.9251895919},{"$f":"DM164*'SouthAfrica-IO-Data'!$AR41","v":3658433.5563840326},{"$f":"DI164*'SouthAfrica-IO-Data'!AS41","v":1657115.7374037851},{"$f":"DL164*'SouthAfrica-IO-Data'!$AS41","v":5897573.787743194},{"$f":"DM164*'SouthAfrica-IO-Data'!$AS41","v":2361744.7389444131},{"$f":"(DQ164*'Default-Data'!$F$19/wind_dollar_index)/'SouthAfrica-IO-Data'!$AT41","v":82.496154931717911},{"$f":"(DR164*'Default-Data'!$F$19/wind_dollar_index)/'SouthAfrica-IO-Data'!$AT41","v":293.59878126385217},{"$f":"(DS164*'Default-Data'!$F$19/wind_dollar_index)/'SouthAfrica-IO-Data'!$AT41","v":117.57468443234818},56260.860351589348,83793.583734223896,{"$f":"DJ164*'SouthAfrica-IO-Data'!AR41","v":0},{"$f":"'SouthAfrica-IO-Data'!$AR41*Calculations!DW164","v":23969.79804858048},{"$f":"'SouthAfrica-IO-Data'!$AR41*Calculations!DX164","v":35700.045596964024},{"$f":"DJ164*'SouthAfrica-IO-Data'!AS41","v":0},{"$f":"DW164*'SouthAfrica-IO-Data'!$AS41","v":15473.98457900338},{"$f":"DX164*'SouthAfrica-IO-Data'!$AS41","v":23046.583618165019},{"$f":"(EB164*'Default-Data'!$F$19/wind_dollar_index)/'SouthAfrica-IO-Data'!$AT41","v":0},{"$f":"(EC164*'Default-Data'!$F$19/wind_dollar_index)/'SouthAfrica-IO-Data'!$AT41","v":0.77034102110480662},{"$f":"(ED164*'Default-Data'!$F$19/wind_dollar_index)/'SouthAfrica-IO-Data'!$AT41","v":1.1473275462277863},null,"LPRIM",0,0,null,0,9531556.725891998,{"$f":"EJ164*'Zambia-IO-Data'!BO39","v":0},{"$f":"EM164*'Zambia-IO-Data'!$BO39","v":0},{"$f":"EN164*'Zambia-IO-Data'!$BO39","v":0},{"$f":"EJ164*'Zambia-IO-Data'!BN39","v":0},{"$f":"EM164*'Zambia-IO-Data'!$BN39","v":0},{"$f":"EN164*'Zambia-IO-Data'!$BN39","v":0},0,0,0,0,36323.706382947872,{"$f":"EK164*'Zambia-IO-Data'!BO39","v":0},{"$f":"EX164*'Zambia-IO-Data'!$BO39","v":0},{"$f":"EY164*'Zambia-IO-Data'!$BO39","v":0},{"$f":"EK164*'Zambia-IO-Data'!BN39","v":0},{"$f":"EX164*'Zambia-IO-Data'!$BN39","v":0},{"$f":"EY164*'Zambia-IO-Data'!$BN39","v":0},0,0,0,null,"TTL_C73T74: R&D and other business activities",6025000,0,null,4192121.4642638117,2332981.6051606387,{"$f":"FK164*CustomRegion1!C37","v":2919111.289674568},{"$f":"FN164*CustomRegion1!$C37","v":2031082.0073061534},{"$f":"FO164*CustomRegion1!$C37","v":1130329.1190419113},{"$f":"FK164*CustomRegion1!D37","v":1142353.5556448372},{"$f":"FN164*CustomRegion1!$D37","v":794835.66147664841},{"$f":"FO164*CustomRegion1!$D37","v":442338.56131273945},{"$f":"(FS164*'Default-Data'!$C$58/wind_dollar_index)/CustomRegion1!$E37","v":231.79622119489872},{"$f":"(FT164*'Default-Data'!$C$58/wind_dollar_index)/CustomRegion1!$E37","v":161.28098161101695},{"$f":"(FU164*'Default-Data'!$C$58/wind_dollar_index)/CustomRegion1!$E37","v":89.755405841235728},24794.108802975174,21539.73132526645,{"$f":"FL164*CustomRegion1!C37","v":0},{"$f":"FY164*CustomRegion1!$C37","v":12012.740734304469},{"$f":"FZ164*CustomRegion1!$C37","v":10435.995500106596},{"$f":"FL164*CustomRegion1!D37","v":0},{"$f":"FY164*CustomRegion1!$D37","v":4701.0188132985304},{"$f":"FZ164*CustomRegion1!$D37","v":4083.9815215025078},{"$f":"(GD164*'Default-Data'!$C$58/wind_dollar_index)/CustomRegion1!$E37","v":0},{"$f":"(GE164*'Default-Data'!$C$58/wind_dollar_index)/CustomRegion1!$E37","v":0.95388891758088279},{"$f":"(GF164*'Default-Data'!$C$58/wind_dollar_index)/CustomRegion1!$E37","v":0.82868519946060604},null,"C71 Renting of machinery and equipment",6025000,0,null,1389253.3629387515,918842.00323352683,{"$f":"GL164*CustomRegion2!C41","v":5117153.6898826407},{"$f":"GO164*CustomRegion2!$C41","v":1179920.8252852946},{"$f":"GP164*CustomRegion2!$C41","v":780390.99539677997},{"$f":"GL164*CustomRegion2!D41","v":229420.66293323043},{"$f":"GO164*CustomRegion2!$D41","v":52900.153943174795},{"$f":"GP164*CustomRegion2!$D41","v":34987.774524934968},{"$f":"(GT164*'Default-Data'!$C$59/wind_dollar_index)/CustomRegion2!$E41","v":78.497171814627706},{"$f":"(GU164*'Default-Data'!$C$59/wind_dollar_index)/CustomRegion2!$E41","v":18.099993348490042},{"$f":"(GV164*'Default-Data'!$C$59/wind_dollar_index)/CustomRegion2!$E41","v":11.971203086857901},0,0,{"$f":"GM164*CustomRegion2!C41","v":0},{"$f":"GZ164*CustomRegion2!$C41","v":0},{"$f":"HA164*CustomRegion2!$C41","v":0},{"$f":"GM164*CustomRegion2!D41","v":0},{"$f":"GZ164*CustomRegion2!$D41","v":0},{"$f":"HA164*CustomRegion2!$D41","v":0},{"$f":"(HE164*'Default-Data'!$C$59/wind_dollar_index)/CustomRegion2!$E41","v":0},{"$f":"(HF164*'Default-Data'!$C$59/wind_dollar_index)/CustomRegion2!$E41","v":0},{"$f":"(HG164*'Default-Data'!$C$59/wind_dollar_index)/CustomRegion2!$E41","v":0},null,"LPRIM",0,0,null,0,9531556.725891998,{"$f":"HM164*CustomRegion3!D40","v":0},{"$f":"HP164*CustomRegion3!$D40","v":0},{"$f":"HQ164*CustomRegion3!$D40","v":0},{"$f":"HM164*CustomRegion3!E40","v":0},{"$f":"HP164*CustomRegion3!$E40","v":0},{"$f":"HQ164*CustomRegion3!$E40","v":0},0,0,0,0,36323.706382947872,{"$f":"HN164*CustomRegion3!D40","v":0},{"$f":"IA164*CustomRegion3!$D40","v":0},{"$f":"IB164*CustomRegion3!$D40","v":0},{"$f":"HN164*CustomRegion3!E40","v":0},{"$f":"IA164*CustomRegion3!$E40","v":0},{"$f":"IB164*CustomRegion3!$E40","v":0},0,0,0]
[null,null,null,null,null,null,null,null,null,null,null,null,null,null,null,null,null,null,null,null,null,null,null,null,null,null,null,null,null,164,"TTL_C75: Public administration and defence; compulsory social security",0,0,null,82145.19961295549,6367366.409546678,{"$f":"AF165*'Colombia-IO-Data'!AN42","v":0},{"$f":"AI165*'Colombia-IO-Data'!$AN42","v":49740.022837855329},{"$f":"AJ165*'Colombia-IO-Data'!$AN42","v":3855525.9725474501},{"$f":"AK165*'Colombia-IO-Data'!$AO42","v":0},{"$f":"AL165*'Colombia-IO-Data'!$AO42","v":41759.53226553413},{"$f":"AM165*'Colombia-IO-Data'!$AO42","v":3236929.7813965832},{"$f":"(Calculations!AN165*'Default-Data'!$F$19/wind_dollar_index)/'Colombia-IO-Data'!$AP42","v":0},{"$f":"(Calculations!AO165*'Default-Data'!$F$19/wind_dollar_index)/'Colombia-IO-Data'!$AP42","v":3.1906544040161493},{"$f":"(Calculations!AP165*'Default-Data'!$F$19/wind_dollar_index)/'Colombia-IO-Data'!$AP42","v":247.31896413092977},72.923653864054359,70502.714798888948,{"$f":"AG165*'Colombia-IO-Data'!AN42","v":0},{"$f":"AT165*'Colombia-IO-Data'!$AN42","v":44.1562528998451},{"$f":"AU165*'Colombia-IO-Data'!$AN42","v":42690.341745477512},{"$f":"AV165*'Colombia-IO-Data'!$AO42","v":0},{"$f":"AW165*'Colombia-IO-Data'!$AO42","v":37.07164497505633},{"$f":"AX165*'Colombia-IO-Data'!$AO42","v":35840.930539142748},{"$f":"(AY165*'Default-Data'!$F$19/wind_dollar_index)/'Colombia-IO-Data'!$AP42","v":0},{"$f":"(AZ165*'Default-Data'!$F$19/wind_dollar_index)/'Colombia-IO-Data'!$AP42","v":2.8324744288721437E-3},{"$f":"(BA165*'Default-Data'!$F$19/wind_dollar_index)/'Colombia-IO-Data'!$AP42","v":2.7384411813236587},null,"DOM_C75: Public administration and defence; compulsory social security",0,0,null,3407.8426768786794,5376962.2577743921,{"$f":"BG165*'Mexico-IO-Data'!AQ42","v":0},{"$f":"BJ165*'Mexico-IO-Data'!$AQ42","v":2442.1088780130385},{"$f":"BK165*'Mexico-IO-Data'!$AQ42","v":3853208.1764053069},{"$f":"BG165*'Mexico-IO-Data'!AR42","v":0},{"$f":"BJ165*'Mexico-IO-Data'!$AR42","v":2407.5011777629325},{"$f":"BK165*'Mexico-IO-Data'!$AR42","v":3798603.4555548625},{"$f":"(BO165*'Default-Data'!$F$19/wind_dollar_index)/'Mexico-IO-Data'!$AS42","v":0},{"$f":"(BP165*'Default-Data'!$F$19/wind_dollar_index)/'Mexico-IO-Data'!$AS42","v":1.3308886300340543},{"$f":"(BQ165*'Default-Data'!$F$19/wind_dollar_index)/'Mexico-IO-Data'!$AS42","v":2099.9026690834935},68.494160015998389,43021.234972944665,{"$f":"BH165*'Mexico-IO-Data'!AQ42","v":0},{"$f":"BU165*'Mexico-IO-Data'!$AQ42","v":49.083896214458449},{"$f":"BV165*'Mexico-IO-Data'!$AQ42","v":30829.633240799238},{"$f":"BH165*'Mexico-IO-Data'!AR42","v":0},{"$f":"BX165*'Mexico-IO-Data'!$AR42","v":34.675760928534537},{"$f":"BY165*'Mexico-IO-Data'!$AR42","v":21779.872304787667},{"$f":"(CA165*'Default-Data'!$F$19/wind_dollar_index)/'Mexico-IO-Data'!$AS42","v":1.9169077209111998E-2},{"$f":"(CB165*'Default-Data'!$F$19/wind_dollar_index)/'Mexico-IO-Data'!$AS42","v":12.040112246578442},{"$f":"(CC165*'Default-Data'!$F$19/wind_dollar_index)/'Mexico-IO-Data'!$AS42","v":1.0596840882777025E-5},null,"TTL_C75: Public administration and defence; compulsory social security",0,0,null,33588.376304804253,5105254.2120306157,{"$f":"CH165*'Philippines-IO-Data'!AN42","v":0},{"$f":"CK165*'Philippines-IO-Data'!$AN42","v":18709.328947346898},{"$f":"CL165*'Philippines-IO-Data'!$AN42","v":2843718.301412716},{"$f":"CH165*'Philippines-IO-Data'!AO42","v":0},{"$f":"CK165*'Philippines-IO-Data'!$AO42","v":15889.972117252251},{"$f":"CL165*'Philippines-IO-Data'!$AO42","v":2415191.0870740097},{"$f":"(CP165*'Default-Data'!$F$19/wind_dollar_index)/'Philippines-IO-Data'!$AP42","v":0},{"$f":"(CQ165*'Default-Data'!$F$19/wind_dollar_index)/'Philippines-IO-Data'!$AP42","v":3.2108352251537844},{"$f":"(CR165*'Default-Data'!$F$19/wind_dollar_index)/'Philippines-IO-Data'!$AP42","v":488.02984427109715},74.748203505810537,46826.579912231813,{"$f":"CI165*'Philippines-IO-Data'!AN42","v":0},{"$f":"CV165*'Philippines-IO-Data'!$AN42","v":41.636092049302412},{"$f":"CW165*'Philippines-IO-Data'!$AN42","v":26083.246153576674},{"$f":"CI165*'Philippines-IO-Data'!AO42","v":0},{"$f":"CV165*'Philippines-IO-Data'!$AO42","v":35.361842404752956},{"$f":"CW165*'Philippines-IO-Data'!$AO42","v":22152.694801303056},{"$f":"(DA165*'Default-Data'!$F$19/wind_dollar_index)/'Philippines-IO-Data'!$AP42","v":0},{"$f":"(DB165*'Default-Data'!$F$19/wind_dollar_index)/'Philippines-IO-Data'!$AP42","v":7.1454530178968944E-3},{"$f":"(DC165*'Default-Data'!$F$19/wind_dollar_index)/'Philippines-IO-Data'!$AP42","v":4.4763233236185673},null,"DOM_C75: Public administration and defence; compulsory social security",0,0,null,34069.036185203717,24154112.963361125,{"$f":"DI165*'SouthAfrica-IO-Data'!AR42","v":0},{"$f":"DL165*'SouthAfrica-IO-Data'!$AR42","v":21088.134552467607},{"$f":"DM165*'SouthAfrica-IO-Data'!$AR42","v":14950971.357037693},{"$f":"DI165*'SouthAfrica-IO-Data'!AS42","v":0},{"$f":"DL165*'SouthAfrica-IO-Data'!$AS42","v":18600.307523436732},{"$f":"DM165*'SouthAfrica-IO-Data'!$AS42","v":13187162.872234926},{"$f":"(DQ165*'Default-Data'!$F$19/wind_dollar_index)/'SouthAfrica-IO-Data'!$AT42","v":0},{"$f":"(DR165*'Default-Data'!$F$19/wind_dollar_index)/'SouthAfrica-IO-Data'!$AT42","v":0.88638362036431517},{"$f":"(DS165*'Default-Data'!$F$19/wind_dollar_index)/'SouthAfrica-IO-Data'!$AT42","v":628.42429644226377},97.163408823035937,235702.77301920028,{"$f":"DJ165*'SouthAfrica-IO-Data'!AR42","v":0},{"$f":"'SouthAfrica-IO-Data'!$AR42*Calculations!DW165","v":60.142442178228826},{"$f":"'SouthAfrica-IO-Data'!$AR42*Calculations!DX165","v":145895.87344937405},{"$f":"DJ165*'SouthAfrica-IO-Data'!AS42","v":0},{"$f":"DW165*'SouthAfrica-IO-Data'!$AS42","v":53.047267739225823},{"$f":"DX165*'SouthAfrica-IO-Data'!$AS42","v":128684.12356754542},{"$f":"(EB165*'Default-Data'!$F$19/wind_dollar_index)/'SouthAfrica-IO-Data'!$AT42","v":0},{"$f":"(EC165*'Default-Data'!$F$19/wind_dollar_index)/'SouthAfrica-IO-Data'!$AT42","v":2.5279275178587105E-3},{"$f":"(ED165*'Default-Data'!$F$19/wind_dollar_index)/'SouthAfrica-IO-Data'!$AT42","v":6.1323448113687196},null,"LSECD",0,0,null,0,6063618.2104316521,{"$f":"EJ165*'Zambia-IO-Data'!BO40","v":0},{"$f":"EM165*'Zambia-IO-Data'!$BO40","v":0},{"$f":"EN165*'Zambia-IO-Data'!$BO40","v":0},{"$f":"EJ165*'Zambia-IO-Data'!BN40","v":0},{"$f":"EM165*'Zambia-IO-Data'!$BN40","v":0},{"$f":"EN165*'Zambia-IO-Data'!$BN40","v":0},0,0,0,0,45486.021787369427,{"$f":"EK165*'Zambia-IO-Data'!BO40","v":0},{"$f":"EX165*'Zambia-IO-Data'!$BO40","v":0},{"$f":"EY165*'Zambia-IO-Data'!$BO40","v":0},{"$f":"EK165*'Zambia-IO-Data'!BN40","v":0},{"$f":"EX165*'Zambia-IO-Data'!$BN40","v":0},{"$f":"EY165*'Zambia-IO-Data'!$BN40","v":0},0,0,0,null,"TTL_C75: Public administration and defence; compulsory social security",0,0,null,57809.46330746988,6025175.9406689014,{"$f":"FK165*CustomRegion1!C38","v":0},{"$f":"FN165*CustomRegion1!$C38","v":32200.909489463269},{"$f":"FO165*CustomRegion1!$C38","v":3356131.2287516277},{"$f":"FK165*CustomRegion1!D38","v":0},{"$f":"FN165*CustomRegion1!$D38","v":27348.471737159398},{"$f":"FO165*CustomRegion1!$D38","v":2850387.1943662241},{"$f":"(FS165*'Default-Data'!$C$58/wind_dollar_index)/CustomRegion1!$E38","v":0},{"$f":"(FT165*'Default-Data'!$C$58/wind_dollar_index)/CustomRegion1!$E38","v":5.549308594352504},{"$f":"(FU165*'Default-Data'!$C$58/wind_dollar_index)/CustomRegion1!$E38","v":578.37521258771949},235.4705673564643,55628.673051852769,{"$f":"FL165*CustomRegion1!C38","v":0},{"$f":"FY165*CustomRegion1!$C38","v":131.16133575829812},{"$f":"FZ165*CustomRegion1!$C38","v":30986.170143707121},{"$f":"FL165*CustomRegion1!D38","v":0},{"$f":"FY165*CustomRegion1!$D38","v":111.39629721227728},{"$f":"FZ165*CustomRegion1!$D38","v":26316.784583220528},{"$f":"(GD165*'Default-Data'!$C$58/wind_dollar_index)/CustomRegion1!$E38","v":0},{"$f":"(GE165*'Default-Data'!$C$58/wind_dollar_index)/CustomRegion1!$E38","v":2.2603545654772437E-2},{"$f":"(GF165*'Default-Data'!$C$58/wind_dollar_index)/CustomRegion1!$E38","v":5.3399678149093477},null,"C72 Computer and related activities",0,0,null,75066.278679684692,73313.205011894039,{"$f":"GL165*CustomRegion2!C42","v":0},{"$f":"GO165*CustomRegion2!$C42","v":38837.507018567521},{"$f":"GP165*CustomRegion2!$C42","v":37930.508402485706},{"$f":"GL165*CustomRegion2!D42","v":0},{"$f":"GO165*CustomRegion2!$D42","v":25442.2192949946},{"$f":"GP165*CustomRegion2!$D42","v":24848.049909210444},{"$f":"(GT165*'Default-Data'!$C$59/wind_dollar_index)/CustomRegion2!$E42","v":0},{"$f":"(GU165*'Default-Data'!$C$59/wind_dollar_index)/CustomRegion2!$E42","v":1.6455246972498156},{"$f":"(GV165*'Default-Data'!$C$59/wind_dollar_index)/CustomRegion2!$E42","v":1.6070956440559401},0,0,{"$f":"GM165*CustomRegion2!C42","v":0},{"$f":"GZ165*CustomRegion2!$C42","v":0},{"$f":"HA165*CustomRegion2!$C42","v":0},{"$f":"GM165*CustomRegion2!D42","v":0},{"$f":"GZ165*CustomRegion2!$D42","v":0},{"$f":"HA165*CustomRegion2!$D42","v":0},{"$f":"(HE165*'Default-Data'!$C$59/wind_dollar_index)/CustomRegion2!$E42","v":0},{"$f":"(HF165*'Default-Data'!$C$59/wind_dollar_index)/CustomRegion2!$E42","v":0},{"$f":"(HG165*'Default-Data'!$C$59/wind_dollar_index)/CustomRegion2!$E42","v":0},null,"LSECD",0,0,null,0,6063618.2104316521,{"$f":"HM165*CustomRegion3!D41","v":0},{"$f":"HP165*CustomRegion3!$D41","v":0},{"$f":"HQ165*CustomRegion3!$D41","v":0},{"$f":"HM165*CustomRegion3!E41","v":0},{"$f":"HP165*CustomRegion3!$E41","v":0},{"$f":"HQ165*CustomRegion3!$E41","v":0},0,0,0,0,45486.021787369427,{"$f":"HN165*CustomRegion3!D41","v":0},{"$f":"IA165*CustomRegion3!$D41","v":0},{"$f":"IB165*CustomRegion3!$D41","v":0},{"$f":"HN165*CustomRegion3!E41","v":0},{"$f":"IA165*CustomRegion3!$E41","v":0},{"$f":"IB165*CustomRegion3!$E41","v":0},0,0,0]
[null,null,null,null,null,null,null,null,null,null,null,null,null,null,null,null,null,null,null,null,null,null,null,null,null,null,null,null,null,165,"TTL_C80: Education",0,0,null,84030.279102469067,3709035.6051254352,{"$f":"AF166*'Colombia-IO-Data'!AN43","v":0},{"$f":"AI166*'Colombia-IO-Data'!$AN43","v":66246.583241595814},{"$f":"AJ166*'Colombia-IO-Data'!$AN43","v":2924076.1614198317},{"$f":"AK166*'Colombia-IO-Data'!$AO43","v":0},{"$f":"AL166*'Colombia-IO-Data'!$AO43","v":48770.38517320653},{"$f":"AM166*'Colombia-IO-Data'!$AO43","v":2152689.4473659974},{"$f":"(Calculations!AN166*'Default-Data'!$F$19/wind_dollar_index)/'Colombia-IO-Data'!$AP43","v":0},{"$f":"(Calculations!AO166*'Default-Data'!$F$19/wind_dollar_index)/'Colombia-IO-Data'!$AP43","v":3.7263215317879954},{"$f":"(Calculations!AP166*'Default-Data'!$F$19/wind_dollar_index)/'Colombia-IO-Data'!$AP43","v":164.47713116236835},2895.2239064854639,41068.325996603067,{"$f":"AG166*'Colombia-IO-Data'!AN43","v":0},{"$f":"AT166*'Colombia-IO-Data'!$AN43","v":2282.4949955261054},{"$f":"AU166*'Colombia-IO-Data'!$AN43","v":32376.856363993891},{"$f":"AV166*'Colombia-IO-Data'!$AO43","v":0},{"$f":"AW166*'Colombia-IO-Data'!$AO43","v":1680.360776974057},{"$f":"AX166*'Colombia-IO-Data'!$AO43","v":23835.670887522861},{"$f":"(AY166*'Default-Data'!$F$19/wind_dollar_index)/'Colombia-IO-Data'!$AP43","v":0},{"$f":"(AZ166*'Default-Data'!$F$19/wind_dollar_index)/'Colombia-IO-Data'!$AP43","v":0.12838866295955381},{"$f":"(BA166*'Default-Data'!$F$19/wind_dollar_index)/'Colombia-IO-Data'!$AP43","v":1.8211743322786855},null,"DOM_C80: Education",0,0,null,70076.486038590287,4828312.9049654407,{"$f":"BG166*'Mexico-IO-Data'!AQ43","v":0},{"$f":"BJ166*'Mexico-IO-Data'!$AQ43","v":62873.119148690836},{"$f":"BK166*'Mexico-IO-Data'!$AQ43","v":4331996.5044177696},{"$f":"BG166*'Mexico-IO-Data'!AR43","v":0},{"$f":"BJ166*'Mexico-IO-Data'!$AR43","v":54220.498377674106},{"$f":"BK166*'Mexico-IO-Data'!$AR43","v":3735825.6218271996},{"$f":"(BO166*'Default-Data'!$F$19/wind_dollar_index)/'Mexico-IO-Data'!$AS43","v":0},{"$f":"(BP166*'Default-Data'!$F$19/wind_dollar_index)/'Mexico-IO-Data'!$AS43","v":10.507800616678661},{"$f":"(BQ166*'Default-Data'!$F$19/wind_dollar_index)/'Mexico-IO-Data'!$AS43","v":723.99391277088671},3001.4359511962839,38631.475180448411,{"$f":"BH166*'Mexico-IO-Data'!AQ43","v":0},{"$f":"BU166*'Mexico-IO-Data'!$AQ43","v":2692.9095741588417},{"$f":"BV166*'Mexico-IO-Data'!$AQ43","v":34660.432895742946},{"$f":"BH166*'Mexico-IO-Data'!AR43","v":0},{"$f":"BX166*'Mexico-IO-Data'!$AR43","v":2083.5933342390499},{"$f":"BY166*'Mexico-IO-Data'!$AR43","v":26817.92498211456},{"$f":"(CA166*'Default-Data'!$F$19/wind_dollar_index)/'Mexico-IO-Data'!$AS43","v":0.403795316854552},{"$f":"(CB166*'Default-Data'!$F$19/wind_dollar_index)/'Mexico-IO-Data'!$AS43","v":5.1972485885732596},{"$f":"(CC166*'Default-Data'!$F$19/wind_dollar_index)/'Mexico-IO-Data'!$AS43","v":7.8254549596750298E-5},null,"TTL_C80: Education",0,0,null,78066.266176252408,4950699.320199579,{"$f":"CH166*'Philippines-IO-Data'!AN43","v":0},{"$f":"CK166*'Philippines-IO-Data'!$AN43","v":53129.088017841656},{"$f":"CL166*'Philippines-IO-Data'!$AN43","v":3369267.5827342728},{"$f":"CH166*'Philippines-IO-Data'!AO43","v":0},{"$f":"CK166*'Philippines-IO-Data'!$AO43","v":36955.273770118394},{"$f":"CL166*'Philippines-IO-Data'!$AO43","v":2343578.8297912581},{"$f":"(CP166*'Default-Data'!$F$19/wind_dollar_index)/'Philippines-IO-Data'!$AP43","v":0},{"$f":"(CQ166*'Default-Data'!$F$19/wind_dollar_index)/'Philippines-IO-Data'!$AP43","v":7.467432535483673},{"$f":"(CR166*'Default-Data'!$F$19/wind_dollar_index)/'Philippines-IO-Data'!$AP43","v":473.55938727220871},126.6504270606946,45408.966470750762,{"$f":"CI166*'Philippines-IO-Data'!AN43","v":0},{"$f":"CV166*'Philippines-IO-Data'!$AN43","v":86.193717419673021},{"$f":"CW166*'Philippines-IO-Data'!$AN43","v":30903.706486703042},{"$f":"CI166*'Philippines-IO-Data'!AO43","v":0},{"$f":"CV166*'Philippines-IO-Data'!$AO43","v":59.954208576638038},{"$f":"CW166*'Philippines-IO-Data'!$AO43","v":21495.850509309948},{"$f":"(DA166*'Default-Data'!$F$19/wind_dollar_index)/'Philippines-IO-Data'!$AP43","v":0},{"$f":"(DB166*'Default-Data'!$F$19/wind_dollar_index)/'Philippines-IO-Data'!$AP43","v":1.2114752837425044E-2},{"$f":"(DC166*'Default-Data'!$F$19/wind_dollar_index)/'Philippines-IO-Data'!$AP43","v":4.3435969239364161},null,"DOM_C80: Education",0,0,null,35940.305049779832,1351165.2146391792,{"$f":"DI166*'SouthAfrica-IO-Data'!AR43","v":0},{"$f":"DL166*'SouthAfrica-IO-Data'!$AR43","v":18334.776421559967},{"$f":"DM166*'SouthAfrica-IO-Data'!$AR43","v":689290.53564474953},{"$f":"DI166*'SouthAfrica-IO-Data'!AS43","v":0},{"$f":"DL166*'SouthAfrica-IO-Data'!$AS43","v":9301.4595404834035},{"$f":"DM166*'SouthAfrica-IO-Data'!$AS43","v":349685.64009313798},{"$f":"(DQ166*'Default-Data'!$F$19/wind_dollar_index)/'SouthAfrica-IO-Data'!$AT43","v":0},{"$f":"(DR166*'Default-Data'!$F$19/wind_dollar_index)/'SouthAfrica-IO-Data'!$AT43","v":0.44325403608394387},{"$f":"(DS166*'Default-Data'!$F$19/wind_dollar_index)/'SouthAfrica-IO-Data'!$AT43","v":16.66400532704197},190.62300259688666,13185.058312040816,{"$f":"DJ166*'SouthAfrica-IO-Data'!AR43","v":0},{"$f":"'SouthAfrica-IO-Data'!$AR43*Calculations!DW166","v":97.245422056921925},{"$f":"'SouthAfrica-IO-Data'!$AR43*Calculations!DX166","v":6726.2950584772552},{"$f":"DJ166*'SouthAfrica-IO-Data'!AS43","v":0},{"$f":"DW166*'SouthAfrica-IO-Data'!$AS43","v":49.333809039310474},{"$f":"DX166*'SouthAfrica-IO-Data'!$AS43","v":3412.332929798361},{"$f":"(EB166*'Default-Data'!$F$19/wind_dollar_index)/'SouthAfrica-IO-Data'!$AT43","v":0},{"$f":"(EC166*'Default-Data'!$F$19/wind_dollar_index)/'SouthAfrica-IO-Data'!$AT43","v":2.3509654454651808E-3},{"$f":"(ED166*'Default-Data'!$F$19/wind_dollar_index)/'SouthAfrica-IO-Data'!$AT43","v":0.16261215102986573},null,"LPOST",0,0,null,0,7552948.4734164393,{"$f":"EJ166*'Zambia-IO-Data'!BO41","v":0},{"$f":"EM166*'Zambia-IO-Data'!$BO41","v":0},{"$f":"EN166*'Zambia-IO-Data'!$BO41","v":0},{"$f":"EJ166*'Zambia-IO-Data'!BN41","v":0},{"$f":"EM166*'Zambia-IO-Data'!$BN41","v":0},{"$f":"EN166*'Zambia-IO-Data'!$BN41","v":0},0,0,0,0,31740.936791220905,{"$f":"EK166*'Zambia-IO-Data'!BO41","v":0},{"$f":"EX166*'Zambia-IO-Data'!$BO41","v":0},{"$f":"EY166*'Zambia-IO-Data'!$BO41","v":0},{"$f":"EK166*'Zambia-IO-Data'!BN41","v":0},{"$f":"EX166*'Zambia-IO-Data'!$BN41","v":0},{"$f":"EY166*'Zambia-IO-Data'!$BN41","v":0},0,0,0,null,"TTL_C80: Education",0,0,null,112722.21070363608,5842027.4944110923,{"$f":"FK166*CustomRegion1!C39","v":0},{"$f":"FN166*CustomRegion1!$C39","v":76714.675203218096},{"$f":"FO166*CustomRegion1!$C39","v":3975873.4233870059},{"$f":"FK166*CustomRegion1!D39","v":0},{"$f":"FN166*CustomRegion1!$D39","v":53360.822293215206},{"$f":"FO166*CustomRegion1!$D39","v":2765518.7829925334},{"$f":"(FS166*'Default-Data'!$C$58/wind_dollar_index)/CustomRegion1!$E39","v":0},{"$f":"(FT166*'Default-Data'!$C$58/wind_dollar_index)/CustomRegion1!$E39","v":10.82750336469852},{"$f":"(FU166*'Default-Data'!$C$58/wind_dollar_index)/CustomRegion1!$E39","v":561.15446953664991},401.70777924010872,53937.717445384718,{"$f":"FL166*CustomRegion1!C39","v":0},{"$f":"FY166*CustomRegion1!$C39","v":273.38784094674361},{"$f":"FZ166*CustomRegion1!$C39","v":36708.067107595911},{"$f":"FL166*CustomRegion1!D39","v":0},{"$f":"FY166*CustomRegion1!$D39","v":190.16179054712347},{"$f":"FZ166*CustomRegion1!$D39","v":25533.219562841547},{"$f":"(GD166*'Default-Data'!$C$58/wind_dollar_index)/CustomRegion1!$E39","v":0},{"$f":"(GE166*'Default-Data'!$C$58/wind_dollar_index)/CustomRegion1!$E39","v":3.8585938868634574E-2},{"$f":"(GF166*'Default-Data'!$C$58/wind_dollar_index)/CustomRegion1!$E39","v":5.1809737715268458},null,"C73 Research and development",0,0,null,0,0,{"$f":"GL166*CustomRegion2!C43","v":0},{"$f":"GO166*CustomRegion2!$C43","v":0},{"$f":"GP166*CustomRegion2!$C43","v":0},{"$f":"GL166*CustomRegion2!D43","v":0},{"$f":"GO166*CustomRegion2!$D43","v":0},{"$f":"GP166*CustomRegion2!$D43","v":0},{"$f":"(GT166*'Default-Data'!$C$59/wind_dollar_index)/CustomRegion2!$E43","v":0},{"$f":"(GU166*'Default-Data'!$C$59/wind_dollar_index)/CustomRegion2!$E43","v":0},{"$f":"(GV166*'Default-Data'!$C$59/wind_dollar_index)/CustomRegion2!$E43","v":0},0,0,{"$f":"GM166*CustomRegion2!C43","v":0},{"$f":"GZ166*CustomRegion2!$C43","v":0},{"$f":"HA166*CustomRegion2!$C43","v":0},{"$f":"GM166*CustomRegion2!D43","v":0},{"$f":"GZ166*CustomRegion2!$D43","v":0},{"$f":"HA166*CustomRegion2!$D43","v":0},{"$f":"(HE166*'Default-Data'!$C$59/wind_dollar_index)/CustomRegion2!$E43","v":0},{"$f":"(HF166*'Default-Data'!$C$59/wind_dollar_index)/CustomRegion2!$E43","v":0},{"$f":"(HG166*'Default-Data'!$C$59/wind_dollar_index)/CustomRegion2!$E43","v":0},null,"LPOST",0,0,null,0,7552948.4734164393,{"$f":"HM166*CustomRegion3!D42","v":0},{"$f":"HP166*CustomRegion3!$D42","v":0},{"$f":"HQ166*CustomRegion3!$D42","v":0},{"$f":"HM166*CustomRegion3!E42","v":0},{"$f":"HP166*CustomRegion3!$E42","v":0},{"$f":"HQ166*CustomRegion3!$E42","v":0},0,0,0,0,31740.936791220905,{"$f":"HN166*CustomRegion3!D42","v":0},{"$f":"IA166*CustomRegion3!$D42","v":0},{"$f":"IB166*CustomRegion3!$D42","v":0},{"$f":"HN166*CustomRegion3!E42","v":0},{"$f":"IA166*CustomRegion3!$E42","v":0},{"$f":"IB166*CustomRegion3!$E42","v":0},0,0,0]
[null,null,null,null,null,null,null,null,null,null,null,null,null,null,null,null,null,null,null,null,null,null,null,null,null,null,null,null,null,166,"TTL_C85: Health and social work",0,0,null,4647.7204967318912,3498236.9816238,{"$f":"AF167*'Colombia-IO-Data'!AN44","v":0},{"$f":"AI167*'Colombia-IO-Data'!$AN44","v":1843.6502010434203},{"$f":"AJ167*'Colombia-IO-Data'!$AN44","v":1387674.9514096898},{"$f":"AK167*'Colombia-IO-Data'!$AO44","v":0},{"$f":"AL167*'Colombia-IO-Data'!$AO44","v":1369.0182860264429},{"$f":"AM167*'Colombia-IO-Data'!$AO44","v":1030429.9494912589},{"$f":"(Calculations!AN167*'Default-Data'!$F$19/wind_dollar_index)/'Colombia-IO-Data'!$AP44","v":0},{"$f":"(Calculations!AO167*'Default-Data'!$F$19/wind_dollar_index)/'Colombia-IO-Data'!$AP44","v":0.10460041064909281},{"$f":"(Calculations!AP167*'Default-Data'!$F$19/wind_dollar_index)/'Colombia-IO-Data'!$AP44","v":78.730428192270168},21.940936751155039,38734.256574989209,{"$f":"AG167*'Colombia-IO-Data'!AN44","v":0},{"$f":"AT167*'Colombia-IO-Data'!$AN44","v":8.7034950747989104},{"$f":"AU167*'Colombia-IO-Data'!$AN44","v":15365.041846204158},{"$f":"AV167*'Colombia-IO-Data'!$AO44","v":0},{"$f":"AW167*'Colombia-IO-Data'!$AO44","v":6.4628549944004119},{"$f":"AX167*'Colombia-IO-Data'!$AO44","v":11409.44374432316},{"$f":"(AY167*'Default-Data'!$F$19/wind_dollar_index)/'Colombia-IO-Data'!$AP44","v":0},{"$f":"(AZ167*'Default-Data'!$F$19/wind_dollar_index)/'Colombia-IO-Data'!$AP44","v":4.9379711964400014E-4},{"$f":"(BA167*'Default-Data'!$F$19/wind_dollar_index)/'Colombia-IO-Data'!$AP44","v":0.87174328722653316},null,"DOM_C85: Health and social work",0,0,null,0,3512773.265781973,{"$f":"BG167*'Mexico-IO-Data'!AQ44","v":0},{"$f":"BJ167*'Mexico-IO-Data'!$AQ44","v":0},{"$f":"BK167*'Mexico-IO-Data'!$AQ44","v":2623210.9981098701},{"$f":"BG167*'Mexico-IO-Data'!AR44","v":0},{"$f":"BJ167*'Mexico-IO-Data'!$AR44","v":0},{"$f":"BK167*'Mexico-IO-Data'!$AR44","v":1842913.6976895556},{"$f":"(BO167*'Default-Data'!$F$19/wind_dollar_index)/'Mexico-IO-Data'!$AS44","v":0},{"$f":"(BP167*'Default-Data'!$F$19/wind_dollar_index)/'Mexico-IO-Data'!$AS44","v":0},{"$f":"(BQ167*'Default-Data'!$F$19/wind_dollar_index)/'Mexico-IO-Data'!$AS44","v":646.69150960107459},0,28105.803393984945,{"$f":"BH167*'Mexico-IO-Data'!AQ44","v":0},{"$f":"BU167*'Mexico-IO-Data'!$AQ44","v":0},{"$f":"BV167*'Mexico-IO-Data'!$AQ44","v":20988.389228532422},{"$f":"BH167*'Mexico-IO-Data'!AR44","v":0},{"$f":"BX167*'Mexico-IO-Data'!$AR44","v":0},{"$f":"BY167*'Mexico-IO-Data'!$AR44","v":11011.183209142273},{"$f":"(CA167*'Default-Data'!$F$19/wind_dollar_index)/'Mexico-IO-Data'!$AS44","v":0},{"$f":"(CB167*'Default-Data'!$F$19/wind_dollar_index)/'Mexico-IO-Data'!$AS44","v":3.8639024176452503},{"$f":"(CC167*'Default-Data'!$F$19/wind_dollar_index)/'Mexico-IO-Data'!$AS44","v":0},null,"TTL_C85: Health and social work",0,0,null,193727.91466421346,2224658.4994833372,{"$f":"CH167*'Philippines-IO-Data'!AN44","v":0},{"$f":"CK167*'Philippines-IO-Data'!$AN44","v":100390.49524188579},{"$f":"CL167*'Philippines-IO-Data'!$AN44","v":1152825.9564157606},{"$f":"CH167*'Philippines-IO-Data'!AO44","v":0},{"$f":"CK167*'Philippines-IO-Data'!$AO44","v":64090.321808524939},{"$f":"CL167*'Philippines-IO-Data'!$AO44","v":735975.91443178488},{"$f":"(CP167*'Default-Data'!$F$19/wind_dollar_index)/'Philippines-IO-Data'!$AP44","v":0},{"$f":"(CQ167*'Default-Data'!$F$19/wind_dollar_index)/'Philippines-IO-Data'!$AP44","v":12.950523848360186},{"$f":"(CR167*'Default-Data'!$F$19/wind_dollar_index)/'Philippines-IO-Data'!$AP44","v":148.71627045567007},323.23166803833897,20405.08556028346,{"$f":"CI167*'Philippines-IO-Data'!AN44","v":0},{"$f":"CV167*'Philippines-IO-Data'!$AN44","v":167.49980140174353},{"$f":"CW167*'Philippines-IO-Data'!$AN44","v":10573.987999615398},{"$f":"CI167*'Philippines-IO-Data'!AO44","v":0},{"$f":"CV167*'Philippines-IO-Data'!$AO44","v":106.93359116155413},{"$f":"CW167*'Philippines-IO-Data'!$AO44","v":6750.5423901134418},{"$f":"(DA167*'Default-Data'!$F$19/wind_dollar_index)/'Philippines-IO-Data'!$AP44","v":0},{"$f":"(DB167*'Default-Data'!$F$19/wind_dollar_index)/'Philippines-IO-Data'!$AP44","v":2.1607724590084681E-2},{"$f":"(DC167*'Default-Data'!$F$19/wind_dollar_index)/'Philippines-IO-Data'!$AP44","v":1.3640602472509658},null,"DOM_C85: Health and social work",0,0,null,365813.23297108785,3961804.2100398457,{"$f":"DI167*'SouthAfrica-IO-Data'!AR44","v":0},{"$f":"DL167*'SouthAfrica-IO-Data'!$AR44","v":169017.53882594215},{"$f":"DM167*'SouthAfrica-IO-Data'!$AR44","v":1830481.6133978232},{"$f":"DI167*'SouthAfrica-IO-Data'!AS44","v":0},{"$f":"DL167*'SouthAfrica-IO-Data'!$AS44","v":74585.976041679867},{"$f":"DM167*'SouthAfrica-IO-Data'!$AS44","v":807775.68239367905},{"$f":"(DQ167*'Default-Data'!$F$19/wind_dollar_index)/'SouthAfrica-IO-Data'!$AT44","v":0},{"$f":"(DR167*'Default-Data'!$F$19/wind_dollar_index)/'SouthAfrica-IO-Data'!$AT44","v":3.5543384102079059},{"$f":"(DS167*'Default-Data'!$F$19/wind_dollar_index)/'SouthAfrica-IO-Data'!$AT44","v":38.493940645884066},1016.6842200892344,38660.423584256983,{"$f":"DJ167*'SouthAfrica-IO-Data'!AR44","v":0},{"$f":"'SouthAfrica-IO-Data'!$AR44*Calculations!DW167","v":469.74097477834027},{"$f":"'SouthAfrica-IO-Data'!$AR44*Calculations!DX167","v":17862.365423767937},{"$f":"DJ167*'SouthAfrica-IO-Data'!AS44","v":0},{"$f":"DW167*'SouthAfrica-IO-Data'!$AS44","v":207.29262379505801},{"$f":"DX167*'SouthAfrica-IO-Data'!$AS44","v":7882.5071575376469},{"$f":"(EB167*'Default-Data'!$F$19/wind_dollar_index)/'SouthAfrica-IO-Data'!$AT44","v":0},{"$f":"(EC167*'Default-Data'!$F$19/wind_dollar_index)/'SouthAfrica-IO-Data'!$AT44","v":9.8783735764994586E-3},{"$f":"(ED167*'Default-Data'!$F$19/wind_dollar_index)/'SouthAfrica-IO-Data'!$AT44","v":0.37563493093015754},null,"HRRS",0,0,null,0,3701190.0908819805,{"$f":"EJ167*'Zambia-IO-Data'!BO42","v":0},{"$f":"EM167*'Zambia-IO-Data'!$BO42","v":0},{"$f":"EN167*'Zambia-IO-Data'!$BO42","v":0},{"$f":"EJ167*'Zambia-IO-Data'!BN42","v":0},{"$f":"EM167*'Zambia-IO-Data'!$BN42","v":0},{"$f":"EN167*'Zambia-IO-Data'!$BN42","v":0},0,0,0,0,15634.96919147649,{"$f":"EK167*'Zambia-IO-Data'!BO42","v":0},{"$f":"EX167*'Zambia-IO-Data'!$BO42","v":0},{"$f":"EY167*'Zambia-IO-Data'!$BO42","v":0},{"$f":"EK167*'Zambia-IO-Data'!BN42","v":0},{"$f":"EX167*'Zambia-IO-Data'!$BN42","v":0},{"$f":"EY167*'Zambia-IO-Data'!$BN42","v":0},0,0,0,null,"TTL_C85: Health and social work",0,0,null,295438.83294642408,2655795.9680255293,{"$f":"FK167*CustomRegion1!C40","v":0},{"$f":"FN167*CustomRegion1!$C40","v":153097.45528714507},{"$f":"FO167*CustomRegion1!$C40","v":1376242.9278899233},{"$f":"FK167*CustomRegion1!D40","v":0},{"$f":"FN167*CustomRegion1!$D40","v":97738.985685624066},{"$f":"FO167*CustomRegion1!$D40","v":878607.60047700815},{"$f":"(FS167*'Default-Data'!$C$58/wind_dollar_index)/CustomRegion1!$E40","v":0},{"$f":"(FT167*'Default-Data'!$C$58/wind_dollar_index)/CustomRegion1!$E40","v":19.832325494501863},{"$f":"(FU167*'Default-Data'!$C$58/wind_dollar_index)/CustomRegion1!$E40","v":178.27923824225039},1244.5716095086393,24520.181161932906,{"$f":"FL167*CustomRegion1!C40","v":0},{"$f":"FY167*CustomRegion1!$C40","v":644.94143995265654},{"$f":"FZ167*CustomRegion1!$C40","v":12706.445194198555},{"$f":"FL167*CustomRegion1!D40","v":0},{"$f":"FY167*CustomRegion1!$D40","v":411.73723004977552},{"$f":"FZ167*CustomRegion1!$D40","v":8111.9249344911705},{"$f":"(GD167*'Default-Data'!$C$58/wind_dollar_index)/CustomRegion1!$E40","v":0},{"$f":"(GE167*'Default-Data'!$C$58/wind_dollar_index)/CustomRegion1!$E40","v":8.3546055929172525E-2},{"$f":"(GF167*'Default-Data'!$C$58/wind_dollar_index)/CustomRegion1!$E40","v":1.6459996444536193},null,"C74 Other Business Activities",0,0,null,13239830.466354825,9701252.7316430174,{"$f":"GL167*CustomRegion2!C44","v":0},{"$f":"GO167*CustomRegion2!$C44","v":9449453.5057194494},{"$f":"GP167*CustomRegion2!$C44","v":6923920.7305449285},{"$f":"GL167*CustomRegion2!D44","v":0},{"$f":"GO167*CustomRegion2!$D44","v":3728199.6634349865},{"$f":"GP167*CustomRegion2!$D44","v":2731772.6809961963},{"$f":"(GT167*'Default-Data'!$C$59/wind_dollar_index)/CustomRegion2!$E44","v":0},{"$f":"(GU167*'Default-Data'!$C$59/wind_dollar_index)/CustomRegion2!$E44","v":778.47985333052839},{"$f":"(GV167*'Default-Data'!$C$59/wind_dollar_index)/CustomRegion2!$E44","v":570.41741001470052},0,0,{"$f":"GM167*CustomRegion2!C44","v":0},{"$f":"GZ167*CustomRegion2!$C44","v":0},{"$f":"HA167*CustomRegion2!$C44","v":0},{"$f":"GM167*CustomRegion2!D44","v":0},{"$f":"GZ167*CustomRegion2!$D44","v":0},{"$f":"HA167*CustomRegion2!$D44","v":0},{"$f":"(HE167*'Default-Data'!$C$59/wind_dollar_index)/CustomRegion2!$E44","v":0},{"$f":"(HF167*'Default-Data'!$C$59/wind_dollar_index)/CustomRegion2!$E44","v":0},{"$f":"(HG167*'Default-Data'!$C$59/wind_dollar_index)/CustomRegion2!$E44","v":0},null,"HRRS",0,0,null,0,3701190.0908819805,{"$f":"HM167*CustomRegion3!D43","v":0},{"$f":"HP167*CustomRegion3!$D43","v":0},{"$f":"HQ167*CustomRegion3!$D43","v":0},{"$f":"HM167*CustomRegion3!E43","v":0},{"$f":"HP167*CustomRegion3!$E43","v":0},{"$f":"HQ167*CustomRegion3!$E43","v":0},0,0,0,0,15634.96919147649,{"$f":"HN167*CustomRegion3!D43","v":0},{"$f":"IA167*CustomRegion3!$D43","v":0},{"$f":"IB167*CustomRegion3!$D43","v":0},{"$f":"HN167*CustomRegion3!E43","v":0},{"$f":"IA167*CustomRegion3!$E43","v":0},{"$f":"IB167*CustomRegion3!$E43","v":0},0,0,0]
[null,null,null,null,null,null,null,null,null,null,null,null,null,null,null,null,null,null,null,null,null,null,null,null,null,null,null,null,null,167,"TTL_C90T93: Other community, social and personal services",0,0,null,984968.31000626029,2621371.4661483881,{"$f":"AF168*'Colombia-IO-Data'!AN45","v":0},{"$f":"AI168*'Colombia-IO-Data'!$AN45","v":563481.61551868182},{"$f":"AJ168*'Colombia-IO-Data'!$AN45","v":1499636.7026371448},{"$f":"AK168*'Colombia-IO-Data'!$AO45","v":0},{"$f":"AL168*'Colombia-IO-Data'!$AO45","v":215214.23718725104},{"$f":"AM168*'Colombia-IO-Data'!$AO45","v":572766.10297032353},{"$f":"(Calculations!AN168*'Default-Data'!$F$19/wind_dollar_index)/'Colombia-IO-Data'!$AP45","v":0},{"$f":"(Calculations!AO168*'Default-Data'!$F$19/wind_dollar_index)/'Colombia-IO-Data'!$AP45","v":35.231306242975698},{"$f":"(Calculations!AP168*'Default-Data'!$F$19/wind_dollar_index)/'Colombia-IO-Data'!$AP45","v":93.763768805805626},5071.4238614603628,29025.15623770469,{"$f":"AG168*'Colombia-IO-Data'!AN45","v":0},{"$f":"AT168*'Colombia-IO-Data'!$AN45","v":2901.2650269098649},{"$f":"AU168*'Colombia-IO-Data'!$AN45","v":16604.739219884174},{"$f":"AV168*'Colombia-IO-Data'!$AO45","v":0},{"$f":"AW168*'Colombia-IO-Data'!$AO45","v":1108.0992217815394},{"$f":"AX168*'Colombia-IO-Data'!$AO45","v":6341.9571934235055},{"$f":"(AY168*'Default-Data'!$F$19/wind_dollar_index)/'Colombia-IO-Data'!$AP45","v":0},{"$f":"(AZ168*'Default-Data'!$F$19/wind_dollar_index)/'Colombia-IO-Data'!$AP45","v":0.18139963015653651},{"$f":"(BA168*'Default-Data'!$F$19/wind_dollar_index)/'Colombia-IO-Data'!$AP45","v":1.0382000697609153},null,"DOM_C90T93: Other community, social and personal services",0,0,null,125001.57029885105,1530458.3648298399,{"$f":"BG168*'Mexico-IO-Data'!AQ45","v":0},{"$f":"BJ168*'Mexico-IO-Data'!$AQ45","v":79975.29166019852},{"$f":"BK168*'Mexico-IO-Data'!$AQ45","v":979178.53198506578},{"$f":"BG168*'Mexico-IO-Data'!AR45","v":0},{"$f":"BJ168*'Mexico-IO-Data'!$AR45","v":14036.745944320946},{"$f":"BK168*'Mexico-IO-Data'!$AR45","v":171859.08300285393},{"$f":"(BO168*'Default-Data'!$F$19/wind_dollar_index)/'Mexico-IO-Data'!$AS45","v":0},{"$f":"(BP168*'Default-Data'!$F$19/wind_dollar_index)/'Mexico-IO-Data'!$AS45","v":7.7596413046544024},{"$f":"(BQ168*'Default-Data'!$F$19/wind_dollar_index)/'Mexico-IO-Data'!$AS45","v":95.005270048968498},1571.0315694933629,12245.24290354724,{"$f":"BH168*'Mexico-IO-Data'!AQ45","v":0},{"$f":"BU168*'Mexico-IO-Data'!$AQ45","v":1005.1370368966157},{"$f":"BV168*'Mexico-IO-Data'!$AQ45","v":7834.4365620354774},{"$f":"BH168*'Mexico-IO-Data'!AR45","v":0},{"$f":"BX168*'Mexico-IO-Data'!$AR45","v":112.86940789955041},{"$f":"BY168*'Mexico-IO-Data'!$AR45","v":879.74891335586699},{"$f":"(CA168*'Default-Data'!$F$19/wind_dollar_index)/'Mexico-IO-Data'!$AS45","v":6.2395239113349016E-2},{"$f":"(CB168*'Default-Data'!$F$19/wind_dollar_index)/'Mexico-IO-Data'!$AS45","v":0.48633323085561192},{"$f":"(CC168*'Default-Data'!$F$19/wind_dollar_index)/'Mexico-IO-Data'!$AS45","v":3.4492657811023264E-5},null,"TTL_C90T93: Other community, social and personal services",0,0,null,1353943.3582460266,2861227.3965781154,{"$f":"CH168*'Philippines-IO-Data'!AN45","v":0},{"$f":"CK168*'Philippines-IO-Data'!$AN45","v":659859.33314363728},{"$f":"CL168*'Philippines-IO-Data'!$AN45","v":1394450.9497976124},{"$f":"CH168*'Philippines-IO-Data'!AO45","v":0},{"$f":"CK168*'Philippines-IO-Data'!$AO45","v":567150.41491938231},{"$f":"CL168*'Philippines-IO-Data'!$AO45","v":1198533.3767951548},{"$f":"(CP168*'Default-Data'!$F$19/wind_dollar_index)/'Philippines-IO-Data'!$AP45","v":0},{"$f":"(CQ168*'Default-Data'!$F$19/wind_dollar_index)/'Philippines-IO-Data'!$AP45","v":261.07296283405242},{"$f":"(CR168*'Default-Data'!$F$19/wind_dollar_index)/'Philippines-IO-Data'!$AP45","v":551.71371033888897},3013.0909800197423,26243.843649783892,{"$f":"CI168*'Philippines-IO-Data'!AN45","v":0},{"$f":"CV168*'Philippines-IO-Data'!$AN45","v":1468.4633538529865},{"$f":"CW168*'Philippines-IO-Data'!$AN45","v":12790.228678625081},{"$f":"CI168*'Philippines-IO-Data'!AO45","v":0},{"$f":"CV168*'Philippines-IO-Data'!$AO45","v":1262.1471859220298},{"$f":"CW168*'Philippines-IO-Data'!$AO45","v":10993.227098019936},{"$f":"(DA168*'Default-Data'!$F$19/wind_dollar_index)/'Philippines-IO-Data'!$AP45","v":0},{"$f":"(DB168*'Default-Data'!$F$19/wind_dollar_index)/'Philippines-IO-Data'!$AP45","v":0.58099667512041675},{"$f":"(DC168*'Default-Data'!$F$19/wind_dollar_index)/'Philippines-IO-Data'!$AP45","v":5.0604465660059823},null,"DOM_C90T93: Other community, social and personal services",0,0,null,8563536.4068865832,8278467.0693453345,{"$f":"DI168*'SouthAfrica-IO-Data'!AR45","v":0},{"$f":"DL168*'SouthAfrica-IO-Data'!$AR45","v":6026911.3448335724},{"$f":"DM168*'SouthAfrica-IO-Data'!$AR45","v":5826283.0596417328},{"$f":"DI168*'SouthAfrica-IO-Data'!AS45","v":0},{"$f":"DL168*'SouthAfrica-IO-Data'!$AS45","v":3351634.4189964323},{"$f":"DM168*'SouthAfrica-IO-Data'!$AS45","v":3240062.7320079342},{"$f":"(DQ168*'Default-Data'!$F$19/wind_dollar_index)/'SouthAfrica-IO-Data'!$AT45","v":0},{"$f":"(DR168*'Default-Data'!$F$19/wind_dollar_index)/'SouthAfrica-IO-Data'!$AT45","v":159.71960929701834},{"$f":"(DS168*'Default-Data'!$F$19/wind_dollar_index)/'SouthAfrica-IO-Data'!$AT45","v":154.4027447388163},21069.263203730487,80783.659807861681,{"$f":"DJ168*'SouthAfrica-IO-Data'!AR45","v":0},{"$f":"'SouthAfrica-IO-Data'!$AR45*Calculations!DW168","v":14828.287683547602},{"$f":"'SouthAfrica-IO-Data'!$AR45*Calculations!DX168","v":56854.543805248948},{"$f":"DJ168*'SouthAfrica-IO-Data'!AS45","v":0},{"$f":"DW168*'SouthAfrica-IO-Data'!$AS45","v":8246.1805942379287},{"$f":"DX168*'SouthAfrica-IO-Data'!$AS45","v":31617.462907822948},{"$f":"(EB168*'Default-Data'!$F$19/wind_dollar_index)/'SouthAfrica-IO-Data'!$AT45","v":0},{"$f":"(EC168*'Default-Data'!$F$19/wind_dollar_index)/'SouthAfrica-IO-Data'!$AT45","v":0.39296551415016912},{"$f":"(ED168*'Default-Data'!$F$19/wind_dollar_index)/'SouthAfrica-IO-Data'!$AT45","v":1.5067063382504982},null,"HRRM",0,0,null,0,266060.25561611488,{"$f":"EJ168*'Zambia-IO-Data'!BO43","v":0},{"$f":"EM168*'Zambia-IO-Data'!$BO43","v":0},{"$f":"EN168*'Zambia-IO-Data'!$BO43","v":0},{"$f":"EJ168*'Zambia-IO-Data'!BN43","v":0},{"$f":"EM168*'Zambia-IO-Data'!$BN43","v":0},{"$f":"EN168*'Zambia-IO-Data'!$BN43","v":0},0,0,0,0,1114.3148204882505,{"$f":"EK168*'Zambia-IO-Data'!BO43","v":0},{"$f":"EX168*'Zambia-IO-Data'!$BO43","v":0},{"$f":"EY168*'Zambia-IO-Data'!$BO43","v":0},{"$f":"EK168*'Zambia-IO-Data'!BN43","v":0},{"$f":"EX168*'Zambia-IO-Data'!$BN43","v":0},{"$f":"EY168*'Zambia-IO-Data'!$BN43","v":0},0,0,0,null,"TTL_C90T93: Other community, social and personal services",0,0,null,1784298.7700694257,3579745.2039780626,{"$f":"FK168*CustomRegion1!C41","v":0},{"$f":"FN168*CustomRegion1!$C41","v":869597.8228160704},{"$f":"FO168*CustomRegion1!$C41","v":1744628.5834151367},{"$f":"FK168*CustomRegion1!D41","v":0},{"$f":"FN168*CustomRegion1!$D41","v":747421.06574973348},{"$f":"FO168*CustomRegion1!$D41","v":1499511.7523763557},{"$f":"(FS168*'Default-Data'!$C$58/wind_dollar_index)/CustomRegion1!$E41","v":0},{"$f":"(FT168*'Default-Data'!$C$58/wind_dollar_index)/CustomRegion1!$E41","v":345.49352138887218},{"$f":"(FU168*'Default-Data'!$C$58/wind_dollar_index)/CustomRegion1!$E41","v":693.14556336839564},6344.8660082961787,33050.732048652178,{"$f":"FL168*CustomRegion1!C41","v":0},{"$f":"FY168*CustomRegion1!$C41","v":3092.2409180719028},{"$f":"FZ168*CustomRegion1!$C41","v":16107.641340170274},{"$f":"FL168*CustomRegion1!D41","v":0},{"$f":"FY168*CustomRegion1!$D41","v":2657.7872458968677},{"$f":"FZ168*CustomRegion1!$D41","v":13844.54990721723},{"$f":"(GD168*'Default-Data'!$C$58/wind_dollar_index)/CustomRegion1!$E41","v":0},{"$f":"(GE168*'Default-Data'!$C$58/wind_dollar_index)/CustomRegion1!$E41","v":1.2285555181218393},{"$f":"(GF168*'Default-Data'!$C$58/wind_dollar_index)/CustomRegion1!$E41","v":6.3996086258158433},null,"C75 Public admin. and defence; compulsory social security",0,0,null,75535.870329537458,176923.20987505885,{"$f":"GL168*CustomRegion2!C45","v":0},{"$f":"GO168*CustomRegion2!$C45","v":56661.25777851876},{"$f":"GP168*CustomRegion2!$C45","v":132714.31914399538},{"$f":"GL168*CustomRegion2!D45","v":0},{"$f":"GO168*CustomRegion2!$D45","v":55892.237568327524},{"$f":"GP168*CustomRegion2!$D45","v":130913.0885041384},{"$f":"(GT168*'Default-Data'!$C$59/wind_dollar_index)/CustomRegion2!$E45","v":0},{"$f":"(GU168*'Default-Data'!$C$59/wind_dollar_index)/CustomRegion2!$E45","v":30.897739188634439},{"$f":"(GV168*'Default-Data'!$C$59/wind_dollar_index)/CustomRegion2!$E45","v":72.369950478984251},0,0,{"$f":"GM168*CustomRegion2!C45","v":0},{"$f":"GZ168*CustomRegion2!$C45","v":0},{"$f":"HA168*CustomRegion2!$C45","v":0},{"$f":"GM168*CustomRegion2!D45","v":0},{"$f":"GZ168*CustomRegion2!$D45","v":0},{"$f":"HA168*CustomRegion2!$D45","v":0},{"$f":"(HE168*'Default-Data'!$C$59/wind_dollar_index)/CustomRegion2!$E45","v":0},{"$f":"(HF168*'Default-Data'!$C$59/wind_dollar_index)/CustomRegion2!$E45","v":0},{"$f":"(HG168*'Default-Data'!$C$59/wind_dollar_index)/CustomRegion2!$E45","v":0},null,"HRRM",0,0,null,0,266060.25561611488,{"$f":"HM168*CustomRegion3!D44","v":0},{"$f":"HP168*CustomRegion3!$D44","v":0},{"$f":"HQ168*CustomRegion3!$D44","v":0},{"$f":"HM168*CustomRegion3!E44","v":0},{"$f":"HP168*CustomRegion3!$E44","v":0},{"$f":"HQ168*CustomRegion3!$E44","v":0},0,0,0,0,1114.3148204882505,{"$f":"HN168*CustomRegion3!D44","v":0},{"$f":"IA168*CustomRegion3!$D44","v":0},{"$f":"IB168*CustomRegion3!$D44","v":0},{"$f":"HN168*CustomRegion3!E44","v":0},{"$f":"IA168*CustomRegion3!$E44","v":0},{"$f":"IB168*CustomRegion3!$E44","v":0},0,0,0]
[null,null,null,null,null,null,null,null,null,null,null,null,null,null,null,null,null,null,null,null,null,null,null,null,null,null,null,null,null,168,"TTL_C95: Private households with employed persons",0,0,null,0,461828.64798423118,{"$f":"AF169*'Colombia-IO-Data'!AN46","v":0},{"$f":"AI169*'Colombia-IO-Data'!$AN46","v":0},{"$f":"AJ169*'Colombia-IO-Data'!$AN46","v":461828.64798423118},{"$f":"AK169*'Colombia-IO-Data'!$AO46","v":0},{"$f":"AL169*'Colombia-IO-Data'!$AO46","v":0},{"$f":"AM169*'Colombia-IO-Data'!$AO46","v":461828.64798423118},{"$f":"(Calculations!AN169*'Default-Data'!$F$19/wind_dollar_index)/'Colombia-IO-Data'!$AP46","v":0},{"$f":"(Calculations!AO169*'Default-Data'!$F$19/wind_dollar_index)/'Colombia-IO-Data'!$AP46","v":0},{"$f":"(Calculations!AP169*'Default-Data'!$F$19/wind_dollar_index)/'Colombia-IO-Data'!$AP46","v":75.602928233577529},0,5113.6013479561689,{"$f":"AG169*'Colombia-IO-Data'!AN46","v":0},{"$f":"AT169*'Colombia-IO-Data'!$AN46","v":0},{"$f":"AU169*'Colombia-IO-Data'!$AN46","v":5113.6013479561689},{"$f":"AV169*'Colombia-IO-Data'!$AO46","v":0},{"$f":"AW169*'Colombia-IO-Data'!$AO46","v":0},{"$f":"AX169*'Colombia-IO-Data'!$AO46","v":5113.6013479561689},{"$f":"(AY169*'Default-Data'!$F$19/wind_dollar_index)/'Colombia-IO-Data'!$AP46","v":0},{"$f":"(AZ169*'Default-Data'!$F$19/wind_dollar_index)/'Colombia-IO-Data'!$AP46","v":0},{"$f":"(BA169*'Default-Data'!$F$19/wind_dollar_index)/'Colombia-IO-Data'!$AP46","v":0.8371140192625206},null,"DOM_C95: Private households with employed persons",0,0,null,0,418960.45113005943,{"$f":"BG169*'Mexico-IO-Data'!AQ46","v":0},{"$f":"BJ169*'Mexico-IO-Data'!$AQ46","v":0},{"$f":"BK169*'Mexico-IO-Data'!$AQ46","v":418960.45113005943},{"$f":"BG169*'Mexico-IO-Data'!AR46","v":0},{"$f":"BJ169*'Mexico-IO-Data'!$AR46","v":0},{"$f":"BK169*'Mexico-IO-Data'!$AR46","v":418960.45113005943},{"$f":"(BO169*'Default-Data'!$F$19/wind_dollar_index)/'Mexico-IO-Data'!$AS46","v":0},{"$f":"(BP169*'Default-Data'!$F$19/wind_dollar_index)/'Mexico-IO-Data'!$AS46","v":0},{"$f":"(BQ169*'Default-Data'!$F$19/wind_dollar_index)/'Mexico-IO-Data'!$AS46","v":64.569167317454898},0,3352.1150323077927,{"$f":"BH169*'Mexico-IO-Data'!AQ46","v":0},{"$f":"BU169*'Mexico-IO-Data'!$AQ46","v":0},{"$f":"BV169*'Mexico-IO-Data'!$AQ46","v":3352.1150323077927},{"$f":"BH169*'Mexico-IO-Data'!AR46","v":0},{"$f":"BX169*'Mexico-IO-Data'!$AR46","v":0},{"$f":"BY169*'Mexico-IO-Data'!$AR46","v":3352.1150323077927},{"$f":"(CA169*'Default-Data'!$F$19/wind_dollar_index)/'Mexico-IO-Data'!$AS46","v":0},{"$f":"(CB169*'Default-Data'!$F$19/wind_dollar_index)/'Mexico-IO-Data'!$AS46","v":0.51661982844592247},{"$f":"(CC169*'Default-Data'!$F$19/wind_dollar_index)/'Mexico-IO-Data'!$AS46","v":0},null,"TTL_C95: Private households with employed persons",0,0,null,0,0,{"$f":"CH169*'Philippines-IO-Data'!AN46","v":0},{"$f":"CK169*'Philippines-IO-Data'!$AN46","v":0},{"$f":"CL169*'Philippines-IO-Data'!$AN46","v":0},{"$f":"CH169*'Philippines-IO-Data'!AO46","v":0},{"$f":"CK169*'Philippines-IO-Data'!$AO46","v":0},{"$f":"CL169*'Philippines-IO-Data'!$AO46","v":0},{"$f":"(CP169*'Default-Data'!$F$19/wind_dollar_index)/'Philippines-IO-Data'!$AP46","v":0},{"$f":"(CQ169*'Default-Data'!$F$19/wind_dollar_index)/'Philippines-IO-Data'!$AP46","v":0},{"$f":"(CR169*'Default-Data'!$F$19/wind_dollar_index)/'Philippines-IO-Data'!$AP46","v":0},0,0,{"$f":"CI169*'Philippines-IO-Data'!AN46","v":0},{"$f":"CV169*'Philippines-IO-Data'!$AN46","v":0},{"$f":"CW169*'Philippines-IO-Data'!$AN46","v":0},{"$f":"CI169*'Philippines-IO-Data'!AO46","v":0},{"$f":"CV169*'Philippines-IO-Data'!$AO46","v":0},{"$f":"CW169*'Philippines-IO-Data'!$AO46","v":0},{"$f":"(DA169*'Default-Data'!$F$19/wind_dollar_index)/'Philippines-IO-Data'!$AP46","v":0},{"$f":"(DB169*'Default-Data'!$F$19/wind_dollar_index)/'Philippines-IO-Data'!$AP46","v":0},{"$f":"(DC169*'Default-Data'!$F$19/wind_dollar_index)/'Philippines-IO-Data'!$AP46","v":0},null,"DOM_C95: Private households with employed persons",0,0,null,0,0,{"$f":"DI169*'SouthAfrica-IO-Data'!AR46","v":0},{"$f":"DL169*'SouthAfrica-IO-Data'!$AR46","v":0},{"$f":"DM169*'SouthAfrica-IO-Data'!$AR46","v":0},{"$f":"DI169*'SouthAfrica-IO-Data'!AS46","v":0},{"$f":"DL169*'SouthAfrica-IO-Data'!$AS46","v":0},{"$f":"DM169*'SouthAfrica-IO-Data'!$AS46","v":0},{"$f":"(DQ169*'Default-Data'!$F$19/wind_dollar_index)/'SouthAfrica-IO-Data'!$AT46","v":0},{"$f":"(DR169*'Default-Data'!$F$19/wind_dollar_index)/'SouthAfrica-IO-Data'!$AT46","v":0},{"$f":"(DS169*'Default-Data'!$F$19/wind_dollar_index)/'SouthAfrica-IO-Data'!$AT46","v":0},0,0,{"$f":"DJ169*'SouthAfrica-IO-Data'!AR46","v":0},{"$f":"'SouthAfrica-IO-Data'!$AR46*Calculations!DW169","v":0},{"$f":"'SouthAfrica-IO-Data'!$AR46*Calculations!DX169","v":0},{"$f":"DJ169*'SouthAfrica-IO-Data'!AS46","v":0},{"$f":"DW169*'SouthAfrica-IO-Data'!$AS46","v":0},{"$f":"DX169*'SouthAfrica-IO-Data'!$AS46","v":0},{"$f":"(EB169*'Default-Data'!$F$19/wind_dollar_index)/'SouthAfrica-IO-Data'!$AT46","v":0},{"$f":"(EC169*'Default-Data'!$F$19/wind_dollar_index)/'SouthAfrica-IO-Data'!$AT46","v":0},{"$f":"(ED169*'Default-Data'!$F$19/wind_dollar_index)/'SouthAfrica-IO-Data'!$AT46","v":0},null,"HRRN",0,0,null,0,236389.88878897246,{"$f":"EJ169*'Zambia-IO-Data'!BO44","v":0},{"$f":"EM169*'Zambia-IO-Data'!$BO44","v":0},{"$f":"EN169*'Zambia-IO-Data'!$BO44","v":0},{"$f":"EJ169*'Zambia-IO-Data'!BN44","v":0},{"$f":"EM169*'Zambia-IO-Data'!$BN44","v":0},{"$f":"EN169*'Zambia-IO-Data'!$BN44","v":0},0,0,0,0,1142.2672562810492,{"$f":"EK169*'Zambia-IO-Data'!BO44","v":0},{"$f":"EX169*'Zambia-IO-Data'!$BO44","v":0},{"$f":"EY169*'Zambia-IO-Data'!$BO44","v":0},{"$f":"EK169*'Zambia-IO-Data'!BN44","v":0},{"$f":"EX169*'Zambia-IO-Data'!$BN44","v":0},{"$f":"EY169*'Zambia-IO-Data'!$BN44","v":0},0,0,0,null,"TTL_C95: Private households with employed persons",0,0,null,0,0,{"$f":"FK169*CustomRegion1!C42","v":0},{"$f":"FN169*CustomRegion1!$C42","v":0},{"$f":"FO169*CustomRegion1!$C42","v":0},{"$f":"FK169*CustomRegion1!D42","v":0},{"$f":"FN169*CustomRegion1!$D42","v":0},{"$f":"FO169*CustomRegion1!$D42","v":0},{"$f":"(FS169*'Default-Data'!$C$58/wind_dollar_index)/CustomRegion1!$E42","v":0},{"$f":"(FT169*'Default-Data'!$C$58/wind_dollar_index)/CustomRegion1!$E42","v":0},{"$f":"(FU169*'Default-Data'!$C$58/wind_dollar_index)/CustomRegion1!$E42","v":0},0,0,{"$f":"FL169*CustomRegion1!C42","v":0},{"$f":"FY169*CustomRegion1!$C42","v":0},{"$f":"FZ169*CustomRegion1!$C42","v":0},{"$f":"FL169*CustomRegion1!D42","v":0},{"$f":"FY169*CustomRegion1!$D42","v":0},{"$f":"FZ169*CustomRegion1!$D42","v":0},{"$f":"(GD169*'Default-Data'!$C$58/wind_dollar_index)/CustomRegion1!$E42","v":0},{"$f":"(GE169*'Default-Data'!$C$58/wind_dollar_index)/CustomRegion1!$E42","v":0},{"$f":"(GF169*'Default-Data'!$C$58/wind_dollar_index)/CustomRegion1!$E42","v":0},null,"C80 Education",0,0,null,55651.175523434074,2870411.1689444068,{"$f":"GL169*CustomRegion2!C46","v":0},{"$f":"GO169*CustomRegion2!$C46","v":49566.507506979862},{"$f":"GP169*CustomRegion2!$C46","v":2556572.3529719668},{"$f":"GL169*CustomRegion2!D46","v":0},{"$f":"GO169*CustomRegion2!$D46","v":37716.238160816909},{"$f":"GP169*CustomRegion2!$D46","v":1945351.7423327127},{"$f":"(GT169*'Default-Data'!$C$59/wind_dollar_index)/CustomRegion2!$E46","v":0},{"$f":"(GU169*'Default-Data'!$C$59/wind_dollar_index)/CustomRegion2!$E46","v":7.3093151568709702},{"$f":"(GV169*'Default-Data'!$C$59/wind_dollar_index)/CustomRegion2!$E46","v":377.00443281350493},0,0,{"$f":"GM169*CustomRegion2!C46","v":0},{"$f":"GZ169*CustomRegion2!$C46","v":0},{"$f":"HA169*CustomRegion2!$C46","v":0},{"$f":"GM169*CustomRegion2!D46","v":0},{"$f":"GZ169*CustomRegion2!$D46","v":0},{"$f":"HA169*CustomRegion2!$D46","v":0},{"$f":"(HE169*'Default-Data'!$C$59/wind_dollar_index)/CustomRegion2!$E46","v":0},{"$f":"(HF169*'Default-Data'!$C$59/wind_dollar_index)/CustomRegion2!$E46","v":0},{"$f":"(HG169*'Default-Data'!$C$59/wind_dollar_index)/CustomRegion2!$E46","v":0},null,"HRRN",0,0,null,0,236389.88878897246,{"$f":"HM169*CustomRegion3!D45","v":0},{"$f":"HP169*CustomRegion3!$D45","v":0},{"$f":"HQ169*CustomRegion3!$D45","v":0},{"$f":"HM169*CustomRegion3!E45","v":0},{"$f":"HP169*CustomRegion3!$E45","v":0},{"$f":"HQ169*CustomRegion3!$E45","v":0},0,0,0,0,1142.2672562810492,{"$f":"HN169*CustomRegion3!D45","v":0},{"$f":"IA169*CustomRegion3!$D45","v":0},{"$f":"IB169*CustomRegion3!$D45","v":0},{"$f":"HN169*CustomRegion3!E45","v":0},{"$f":"IA169*CustomRegion3!$E45","v":0},{"$f":"IB169*CustomRegion3!$E45","v":0},0,0,0]
[null,null,null,null,null,null,null,null,null,null,null,null,null,null,null,null,null,null,null,null,null,null,null,null,null,null,null,null,null,169,"HH",0,0,null,0,50355759.138114348,{"$f":"AF170*'Colombia-IO-Data'!AN47","v":0},{"$f":"AI170*'Colombia-IO-Data'!$AN47","v":0},{"$f":"AJ170*'Colombia-IO-Data'!$AN47","v":0},{"$f":"AK170*'Colombia-IO-Data'!$AO47","v":0},{"$f":"AL170*'Colombia-IO-Data'!$AO47","v":0},{"$f":"AM170*'Colombia-IO-Data'!$AO47","v":0},0,0,0,0,557564.54028986488,{"$f":"AG170*'Colombia-IO-Data'!AN47","v":0},{"$f":"AT170*'Colombia-IO-Data'!$AN47","v":0},{"$f":"AU170*'Colombia-IO-Data'!$AN47","v":0},{"$f":"AV170*'Colombia-IO-Data'!$AO47","v":0},{"$f":"AW170*'Colombia-IO-Data'!$AO47","v":0},{"$f":"AX170*'Colombia-IO-Data'!$AO47","v":0},0,0,0,null,"L",0,0,null,0,69628863.16220066,{"$f":"BG170*'Mexico-IO-Data'!AQ47","v":0},{"$f":"BJ170*'Mexico-IO-Data'!$AQ47","v":0},{"$f":"BK170*'Mexico-IO-Data'!$AQ47","v":0},{"$f":"BG170*'Mexico-IO-Data'!AR47","v":0},{"$f":"BJ170*'Mexico-IO-Data'!$AR47","v":0},{"$f":"BK170*'Mexico-IO-Data'!$AR47","v":0},0,0,0,0,557102.60541050124,{"$f":"BH170*'Mexico-IO-Data'!AQ47","v":0},{"$f":"BU170*'Mexico-IO-Data'!$AQ47","v":0},{"$f":"BV170*'Mexico-IO-Data'!$AQ47","v":0},{"$f":"BH170*'Mexico-IO-Data'!AR47","v":0},{"$f":"BX170*'Mexico-IO-Data'!$AR47","v":0},{"$f":"BY170*'Mexico-IO-Data'!$AR47","v":0},0,0,0,null,"L/HH",0,0,null,0,49616412.459332652,{"$f":"CH170*'Philippines-IO-Data'!AN47","v":0},{"$f":"CK170*'Philippines-IO-Data'!$AN47","v":0},{"$f":"CL170*'Philippines-IO-Data'!$AN47","v":0},{"$f":"CH170*'Philippines-IO-Data'!AO47","v":0},{"$f":"CK170*'Philippines-IO-Data'!$AO47","v":0},{"$f":"CL170*'Philippines-IO-Data'!$AO47","v":0},0,0,0,0,455093.28360381012,{"$f":"CI170*'Philippines-IO-Data'!AN47","v":0},{"$f":"CV170*'Philippines-IO-Data'!$AN47","v":0},{"$f":"CW170*'Philippines-IO-Data'!$AN47","v":0},{"$f":"CI170*'Philippines-IO-Data'!AO47","v":0},{"$f":"CV170*'Philippines-IO-Data'!$AO47","v":0},{"$f":"CW170*'Philippines-IO-Data'!$AO47","v":0},0,0,0,null,"L",0,0,null,0,101400007.30319726,{"$f":"DI170*'SouthAfrica-IO-Data'!AR47","v":0},{"$f":"DL170*'SouthAfrica-IO-Data'!$AR47","v":0},{"$f":"DM170*'SouthAfrica-IO-Data'!$AR47","v":0},{"$f":"DI170*'SouthAfrica-IO-Data'!AS47","v":0},{"$f":"DL170*'SouthAfrica-IO-Data'!$AS47","v":0},{"$f":"DM170*'SouthAfrica-IO-Data'!$AS47","v":0},0,0,0,0,989490.40032165824,{"$f":"DJ170*'SouthAfrica-IO-Data'!AR47","v":0},{"$f":"'SouthAfrica-IO-Data'!$AR47*Calculations!DW170","v":0},{"$f":"'SouthAfrica-IO-Data'!$AR47*Calculations!DX170","v":0},{"$f":"DJ170*'SouthAfrica-IO-Data'!AS47","v":0},{"$f":"DW170*'SouthAfrica-IO-Data'!$AS47","v":0},{"$f":"DX170*'SouthAfrica-IO-Data'!$AS47","v":0},0,0,0,null,"HRS",0,0,null,0,4544497.3967349185,{"$f":"EJ170*'Zambia-IO-Data'!BO45","v":0},{"$f":"EM170*'Zambia-IO-Data'!$BO45","v":0},{"$f":"EN170*'Zambia-IO-Data'!$BO45","v":0},{"$f":"EJ170*'Zambia-IO-Data'!BN45","v":0},{"$f":"EM170*'Zambia-IO-Data'!$BN45","v":0},{"$f":"EN170*'Zambia-IO-Data'!$BN45","v":0},0,0,0,0,19786.530814642665,{"$f":"EK170*'Zambia-IO-Data'!BO45","v":0},{"$f":"EX170*'Zambia-IO-Data'!$BO45","v":0},{"$f":"EY170*'Zambia-IO-Data'!$BO45","v":0},{"$f":"EK170*'Zambia-IO-Data'!BN45","v":0},{"$f":"EX170*'Zambia-IO-Data'!$BN45","v":0},{"$f":"EY170*'Zambia-IO-Data'!$BN45","v":0},0,0,0,null,"L/HH",0,0,null,0,64624243.528578728,{"$f":"FK170*CustomRegion1!AM43","v":0},{"$f":"FN170*CustomRegion1!$AM43","v":0},{"$f":"FO170*CustomRegion1!$AM43","v":0},{"$f":"FK170*CustomRegion1!AN43","v":0},{"$f":"FN170*CustomRegion1!$AN43","v":0},{"$f":"FO170*CustomRegion1!$AN43","v":0},0,0,0,0,596656.58727229026,{"$f":"FL170*CustomRegion1!AM43","v":0},{"$f":"FY170*CustomRegion1!$AM43","v":0},{"$f":"FZ170*CustomRegion1!$AM43","v":0},{"$f":"FL170*CustomRegion1!AN43","v":0},{"$f":"FY170*CustomRegion1!$AN43","v":0},{"$f":"FZ170*CustomRegion1!$AN43","v":0},0,0,0,null,"C85 Health and social work",0,0,null,15822.337350048605,2623813.0343135707,{"$f":"GL170*CustomRegion2!C47","v":0},{"$f":"GO170*CustomRegion2!$C47","v":11870.845244051725},{"$f":"GP170*CustomRegion2!$C47","v":1968538.3891506079},{"$f":"GL170*CustomRegion2!D47","v":0},{"$f":"GO170*CustomRegion2!$D47","v":6846.221326344973},{"$f":"GP170*CustomRegion2!$D47","v":1135306.6461956268},{"$f":"(GT170*'Default-Data'!$C$59/wind_dollar_index)/CustomRegion2!$E47","v":0},{"$f":"(GU170*'Default-Data'!$C$59/wind_dollar_index)/CustomRegion2!$E47","v":2.4023877027707181},{"$f":"(GV170*'Default-Data'!$C$59/wind_dollar_index)/CustomRegion2!$E47","v":398.38716799860703},0,0,{"$f":"GM170*CustomRegion2!C47","v":0},{"$f":"GZ170*CustomRegion2!$C47","v":0},{"$f":"HA170*CustomRegion2!$C47","v":0},{"$f":"GM170*CustomRegion2!D47","v":0},{"$f":"GZ170*CustomRegion2!$D47","v":0},{"$f":"HA170*CustomRegion2!$D47","v":0},{"$f":"(HE170*'Default-Data'!$C$59/wind_dollar_index)/CustomRegion2!$E47","v":0},{"$f":"(HF170*'Default-Data'!$C$59/wind_dollar_index)/CustomRegion2!$E47","v":0},{"$f":"(HG170*'Default-Data'!$C$59/wind_dollar_index)/CustomRegion2!$E47","v":0},null,"HRS",0,0,null,0,4544497.3967349185,{"$f":"HM170*CustomRegion3!D46","v":0},{"$f":"HP170*CustomRegion3!$D46","v":0},{"$f":"HQ170*CustomRegion3!$D46","v":0},{"$f":"HM170*CustomRegion3!E46","v":0},{"$f":"HP170*CustomRegion3!$E46","v":0},{"$f":"HQ170*CustomRegion3!$E46","v":0},0,0,0,0,19786.530814642665,{"$f":"HN170*CustomRegion3!D46","v":0},{"$f":"IA170*CustomRegion3!$D46","v":0},{"$f":"IB170*CustomRegion3!$D46","v":0},{"$f":"HN170*CustomRegion3!E46","v":0},{"$f":"IA170*CustomRegion3!$E46","v":0},{"$f":"IB170*CustomRegion3!$E46","v":0},0,0,0]
[null,null,null,null,null,null,null,null,null,null,null,null,null,null,null,null,null,null,null,null,null,null,null,null,null,null,null,null,null,170,"Total",{"$f":"SUM(AF136:AF170)","v":169190297.18239415},{"$f":"SUM(AG136:AG170)","v":2106178.9064264097},null,{"$f":"SUM(AI136:AI170)","v":112190478.63148287},{"$f":"SUM(AJ136:AJ170)","v":123427074.21246395},80149601.06739372,59294894.783217646,40134714.003410302,18284073.709463712,16393346.919365954,15678338.509284677,3623.3250373850392,2610.1783063366406,2022.1667828741533,1489849.5255372322,1366647.2528761178,1113933.1530306898,877963.93001326255,444391.9374067965,196321.16320544048,187644.85026127094,173598.52682315331,15,21.363126141996982,22.390457655304495,null,null,null,null,null,null,null,null,null,null,null,null,null,null,null,null,null,null,null,null,null,null,null,null,null,null,null,null,null,null,null,null,null,null,null,null,null,null,null,null,null,null,null,null,null,null,null,null,null,null,null,null,null,null,null,null,null,null,null,null,null,null,null,null,null,null,null,null,null,null,null,null,null,null,null,null,null,null,null,null,null,null,"HRM",0,0,null,0,528314.10782890092,{"$f":"EJ171*'Zambia-IO-Data'!BO46","v":0},{"$f":"EM171*'Zambia-IO-Data'!$BO46","v":0},{"$f":"EN171*'Zambia-IO-Data'!$BO46","v":0},{"$f":"EJ171*'Zambia-IO-Data'!BN46","v":0},{"$f":"EM171*'Zambia-IO-Data'!$BN46","v":0},{"$f":"EN171*'Zambia-IO-Data'!$BN46","v":0},0,0,0,0,2533.107106330614,{"$f":"EK171*'Zambia-IO-Data'!BO46","v":0},{"$f":"EX171*'Zambia-IO-Data'!$BO46","v":0},{"$f":"EY171*'Zambia-IO-Data'!$BO46","v":0},{"$f":"EK171*'Zambia-IO-Data'!BN46","v":0},{"$f":"EX171*'Zambia-IO-Data'!$BN46","v":0},{"$f":"EY171*'Zambia-IO-Data'!$BN46","v":0},0,0,0,null,null,null,null,null,null,null,null,null,null,null,null,null,null,null,null,null,null,null,null,null,null,null,null,null,null,null,null,"C90T93 Other community, social and personal services",0,0,null,210833.57703317079,3543914.0374909313,{"$f":"GL171*CustomRegion2!C48","v":0},{"$f":"GO171*CustomRegion2!$C48","v":148595.54625656648},{"$f":"GP171*CustomRegion2!$C48","v":2497751.3055447834},{"$f":"GL171*CustomRegion2!D48","v":0},{"$f":"GO171*CustomRegion2!$D48","v":28828.325201547927},{"$f":"GP171*CustomRegion2!$D48","v":484577.01945191337},{"$f":"(GT171*'Default-Data'!$C$59/wind_dollar_index)/CustomRegion2!$E48","v":0},{"$f":"(GU171*'Default-Data'!$C$59/wind_dollar_index)/CustomRegion2!$E48","v":15.936561355835135},{"$f":"(GV171*'Default-Data'!$C$59/wind_dollar_index)/CustomRegion2!$E48","v":267.87860023545443},0,0,{"$f":"GM171*CustomRegion2!C48","v":0},{"$f":"GZ171*CustomRegion2!$C48","v":0},{"$f":"HA171*CustomRegion2!$C48","v":0},{"$f":"GM171*CustomRegion2!D48","v":0},{"$f":"GZ171*CustomRegion2!$D48","v":0},{"$f":"HA171*CustomRegion2!$D48","v":0},{"$f":"(HE171*'Default-Data'!$C$59/wind_dollar_index)/CustomRegion2!$E48","v":0},{"$f":"(HF171*'Default-Data'!$C$59/wind_dollar_index)/CustomRegion2!$E48","v":0},{"$f":"(HG171*'Default-Data'!$C$59/wind_dollar_index)/CustomRegion2!$E48","v":0},null,"HRM",0,0,null,0,528314.10782890092,{"$f":"HM171*CustomRegion3!D47","v":0},{"$f":"HP171*CustomRegion3!$D47","v":0},{"$f":"HQ171*CustomRegion3!$D47","v":0},{"$f":"HM171*CustomRegion3!E47","v":0},{"$f":"HP171*CustomRegion3!$E47","v":0},{"$f":"HQ171*CustomRegion3!$E47","v":0},0,0,0,0,2533.107106330614,{"$f":"HN171*CustomRegion3!D47","v":0},{"$f":"IA171*CustomRegion3!$D47","v":0},{"$f":"IB171*CustomRegion3!$D47","v":0},{"$f":"HN171*CustomRegion3!E47","v":0},{"$f":"IA171*CustomRegion3!$E47","v":0},{"$f":"IB171*CustomRegion3!$E47","v":0},0,0,0]
[null,null,null,null,null,null,null,null,null,null,null,null,null,null,null,null,null,null,null,null,null,null,null,null,null,null,null,null,null,171,null,null,null,null,null,null,null,null,null,null,null,null,null,null,null,null,null,null,null,null,null,null,null,null,null,null,null,null,null,null,null,null,null,null,null,null,null,null,null,null,null,null,null,null,null,null,null,null,null,null,null,null,null,null,null,null,null,null,null,null,null,null,null,null,null,null,null,null,null,null,null,null,null,null,null,null,null,null,null,null,null,null,null,null,null,null,null,null,null,null,null,null,null,null,null,null,null,null,null,null,null,null,null,null,null,null,null,null,"HRL",0,0,null,0,578680.11612333695,{"$f":"EJ172*'Zambia-IO-Data'!BO47","v":0},{"$f":"EM172*'Zambia-IO-Data'!$BO47","v":0},{"$f":"EN172*'Zambia-IO-Data'!$BO47","v":0},{"$f":"EJ172*'Zambia-IO-Data'!BN47","v":0},{"$f":"EM172*'Zambia-IO-Data'!$BN47","v":0},{"$f":"EN172*'Zambia-IO-Data'!$BN47","v":0},0,0,0,0,3085.5923355576974,{"$f":"EK172*'Zambia-IO-Data'!BO47","v":0},{"$f":"EX172*'Zambia-IO-Data'!$BO47","v":0},{"$f":"EY172*'Zambia-IO-Data'!$BO47","v":0},{"$f":"EK172*'Zambia-IO-Data'!BN47","v":0},{"$f":"EX172*'Zambia-IO-Data'!$BN47","v":0},{"$f":"EY172*'Zambia-IO-Data'!$BN47","v":0},0,0,0,null,null,null,null,null,null,null,null,null,null,null,null,null,null,null,null,null,null,null,null,null,null,null,null,null,null,null,null,"C95 Private households with employed persons",0,0,null,0,783247.34223520313,{"$f":"GL172*CustomRegion2!C49","v":0},{"$f":"GO172*CustomRegion2!$C49","v":0},{"$f":"GP172*CustomRegion2!$C49","v":783247.34223520313},{"$f":"GL172*CustomRegion2!D49","v":0},{"$f":"GO172*CustomRegion2!$D49","v":0},{"$f":"GP172*CustomRegion2!$D49","v":783247.34223520313},{"$f":"(GT172*'Default-Data'!$C$59/wind_dollar_index)/CustomRegion2!$E49","v":0},{"$f":"(GU172*'Default-Data'!$C$59/wind_dollar_index)/CustomRegion2!$E49","v":0},{"$f":"(GV172*'Default-Data'!$C$59/wind_dollar_index)/CustomRegion2!$E49","v":120.71217833407604},0,0,{"$f":"GM172*CustomRegion2!C49","v":0},{"$f":"GZ172*CustomRegion2!$C49","v":0},{"$f":"HA172*CustomRegion2!$C49","v":0},{"$f":"GM172*CustomRegion2!D49","v":0},{"$f":"GZ172*CustomRegion2!$D49","v":0},{"$f":"HA172*CustomRegion2!$D49","v":0},{"$f":"(HE172*'Default-Data'!$C$59/wind_dollar_index)/CustomRegion2!$E49","v":0},{"$f":"(HF172*'Default-Data'!$C$59/wind_dollar_index)/CustomRegion2!$E49","v":0},{"$f":"(HG172*'Default-Data'!$C$59/wind_dollar_index)/CustomRegion2!$E49","v":0},null,"HRL",0,0,null,0,578680.11612333695,{"$f":"HM172*CustomRegion3!D48","v":0},{"$f":"HP172*CustomRegion3!$D48","v":0},{"$f":"HQ172*CustomRegion3!$D48","v":0},{"$f":"HM172*CustomRegion3!E48","v":0},{"$f":"HP172*CustomRegion3!$E48","v":0},{"$f":"HQ172*CustomRegion3!$E48","v":0},0,0,0,0,3085.5923355576974,{"$f":"HN172*CustomRegion3!D48","v":0},{"$f":"IA172*CustomRegion3!$D48","v":0},{"$f":"IB172*CustomRegion3!$D48","v":0},{"$f":"HN172*CustomRegion3!E48","v":0},{"$f":"IA172*CustomRegion3!$E48","v":0},{"$f":"IB172*CustomRegion3!$E48","v":0},0,0,0]
[null,null,null,null,null,null,null,null,null,null,null,null,null,null,null,null,null,null,null,null,null,null,null,null,null,null,null,null,null,172,null,null,null,null,null,null,null,null,null,null,null,null,null,null,null,null,null,null,null,null,null,null,null,null,null,null,null,null,null,null,null,null,null,null,null,null,null,null,null,null,null,null,null,null,null,null,null,null,null,null,null,null,null,null,null,null,null,null,null,null,null,null,null,null,null,null,null,null,null,null,null,null,null,null,null,null,null,null,null,null,null,null,null,null,null,null,null,null,null,null,null,null,null,null,null,null,null,null,null,null,null,null,null,null,null,null,null,null,"HRN",0,0,null,0,454912.31336577196,{"$f":"EJ173*'Zambia-IO-Data'!BO48","v":0},{"$f":"EM173*'Zambia-IO-Data'!$BO48","v":0},{"$f":"EN173*'Zambia-IO-Data'!$BO48","v":0},{"$f":"EJ173*'Zambia-IO-Data'!BN48","v":0},{"$f":"EM173*'Zambia-IO-Data'!$BN48","v":0},{"$f":"EN173*'Zambia-IO-Data'!$BN48","v":0},0,0,0,0,2193.4900123360203,{"$f":"EK173*'Zambia-IO-Data'!BO48","v":0},{"$f":"EX173*'Zambia-IO-Data'!$BO48","v":0},{"$f":"EY173*'Zambia-IO-Data'!$BO48","v":0},{"$f":"EK173*'Zambia-IO-Data'!BN48","v":0},{"$f":"EX173*'Zambia-IO-Data'!$BN48","v":0},{"$f":"EY173*'Zambia-IO-Data'!$BN48","v":0},0,0,0,null,null,null,null,null,null,null,null,null,null,null,null,null,null,null,null,null,null,null,null,null,null,null,null,null,null,null,null,"L",0,0,null,0,101894355.14480595,{"$f":"GL173*CustomRegion2!C50","v":0},{"$f":"GO173*CustomRegion2!$C50","v":0},{"$f":"GP173*CustomRegion2!$C50","v":0},{"$f":"GL173*CustomRegion2!D50","v":0},{"$f":"GO173*CustomRegion2!$D50","v":0},{"$f":"GP173*CustomRegion2!$D50","v":0},0,0,0,0,0,{"$f":"GM173*CustomRegion2!C50","v":0},{"$f":"GZ173*CustomRegion2!$C50","v":0},{"$f":"HA173*CustomRegion2!$C50","v":0},{"$f":"GM173*CustomRegion2!D50","v":0},{"$f":"GZ173*CustomRegion2!$D50","v":0},{"$f":"HA173*CustomRegion2!$D50","v":0},0,0,0,null,"HRN",0,0,null,0,454912.31336577196,{"$f":"HM173*CustomRegion3!D49","v":0},{"$f":"HP173*CustomRegion3!$D49","v":0},{"$f":"HQ173*CustomRegion3!$D49","v":0},{"$f":"HM173*CustomRegion3!E49","v":0},{"$f":"HP173*CustomRegion3!$E49","v":0},{"$f":"HQ173*CustomRegion3!$E49","v":0},0,0,0,0,2193.4900123360203,{"$f":"HN173*CustomRegion3!D49","v":0},{"$f":"IA173*CustomRegion3!$D49","v":0},{"$f":"IB173*CustomRegion3!$D49","v":0},{"$f":"HN173*CustomRegion3!E49","v":0},{"$f":"IA173*CustomRegion3!$E49","v":0},{"$f":"IB173*CustomRegion3!$E49","v":0},0,0,0]
[null,null,null,null,null,null,null,null,null,null,null,null,null,null,null,null,null,null,null,null,null,null,null,null,null,null,null,null,null,173,null,null,null,null,null,null,null,null,null,null,null,null,null,null,null,null,null,null,null,null,null,null,null,null,null,null,null,null,null,null,null,null,null,null,null,null,null,null,null,null,null,null,null,null,null,null,null,null,null,null,null,null,null,null,null,null,null,null,null,null,null,null,null,null,null,null,null,null,null,null,null,null,null,null,null,null,null,null,null,null,null,null,null,null,null,null,null,null,null,null,null,null,null,null,null,null,null,null,null,null,null,null,null,null,null,null,null,null,"HUSE",0,0,null,0,1844525.849489219,{"$f":"EJ174*'Zambia-IO-Data'!BO49","v":0},{"$f":"EM174*'Zambia-IO-Data'!$BO49","v":0},{"$f":"EN174*'Zambia-IO-Data'!$BO49","v":0},{"$f":"EJ174*'Zambia-IO-Data'!BN49","v":0},{"$f":"EM174*'Zambia-IO-Data'!$BN49","v":0},{"$f":"EN174*'Zambia-IO-Data'!$BN49","v":0},0,0,0,0,9300.7818415072325,{"$f":"EK174*'Zambia-IO-Data'!BO49","v":0},{"$f":"EX174*'Zambia-IO-Data'!$BO49","v":0},{"$f":"EY174*'Zambia-IO-Data'!$BO49","v":0},{"$f":"EK174*'Zambia-IO-Data'!BN49","v":0},{"$f":"EX174*'Zambia-IO-Data'!$BN49","v":0},{"$f":"EY174*'Zambia-IO-Data'!$BN49","v":0},0,0,0,null,null,null,null,null,null,null,null,null,null,null,null,null,null,null,null,null,null,null,null,null,null,null,null,null,null,null,null,"HH",0,0,null,0,101894355.14480595,{"$f":"GL174*CustomRegion2!C51","v":0},{"$f":"GO174*CustomRegion2!$C51","v":0},{"$f":"GP174*CustomRegion2!$C51","v":0},{"$f":"GL174*CustomRegion2!D51","v":0},{"$f":"GO174*CustomRegion2!$D51","v":0},{"$f":"GP174*CustomRegion2!$D51","v":0},0,0,0,0,0,{"$f":"GM174*CustomRegion2!C51","v":0},{"$f":"GZ174*CustomRegion2!$C51","v":0},{"$f":"HA174*CustomRegion2!$C51","v":0},{"$f":"GM174*CustomRegion2!D51","v":0},{"$f":"GZ174*CustomRegion2!$D51","v":0},{"$f":"HA174*CustomRegion2!$D51","v":0},0,0,0,null,"HUSE",0,0,null,0,1844525.849489219,{"$f":"HM174*CustomRegion3!D50","v":0},{"$f":"HP174*CustomRegion3!$D50","v":0},{"$f":"HQ174*CustomRegion3!$D50","v":0},{"$f":"HM174*CustomRegion3!E50","v":0},{"$f":"HP174*CustomRegion3!$E50","v":0},{"$f":"HQ174*CustomRegion3!$E50","v":0},0,0,0,0,9300.7818415072325,{"$f":"HN174*CustomRegion3!D50","v":0},{"$f":"IA174*CustomRegion3!$D50","v":0},{"$f":"IB174*CustomRegion3!$D50","v":0},{"$f":"HN174*CustomRegion3!E50","v":0},{"$f":"IA174*CustomRegion3!$E50","v":0},{"$f":"IB174*CustomRegion3!$E50","v":0},0,0,0]
[null,null,null,null,null,null,null,null,null,null,null,null,null,null,null,null,null,null,null,null,null,null,null,null,null,null,null,null,null,174,null,null,null,null,null,null,null,null,null,null,null,null,null,null,null,null,null,null,null,null,null,null,null,null,null,null,null,null,null,null,null,null,null,null,null,null,null,null,null,null,null,null,null,null,null,null,null,null,null,null,null,null,null,null,null,null,null,null,null,null,null,null,null,null,null,null,null,null,null,null,null,null,null,null,null,null,null,null,null,null,null,null,null,null,null,null,null,null,null,null,null,null,null,null,null,null,null,null,null,null,null,null,null,null,null,null,null,null,"HUPR",0,0,null,0,4403287.342642636,{"$f":"EJ175*'Zambia-IO-Data'!BO50","v":0},{"$f":"EM175*'Zambia-IO-Data'!$BO50","v":0},{"$f":"EN175*'Zambia-IO-Data'!$BO50","v":0},{"$f":"EJ175*'Zambia-IO-Data'!BN50","v":0},{"$f":"EM175*'Zambia-IO-Data'!$BN50","v":0},{"$f":"EN175*'Zambia-IO-Data'!$BN50","v":0},0,0,0,0,22757.732588165189,{"$f":"EK175*'Zambia-IO-Data'!BO50","v":0},{"$f":"EX175*'Zambia-IO-Data'!$BO50","v":0},{"$f":"EY175*'Zambia-IO-Data'!$BO50","v":0},{"$f":"EK175*'Zambia-IO-Data'!BN50","v":0},{"$f":"EX175*'Zambia-IO-Data'!$BN50","v":0},{"$f":"EY175*'Zambia-IO-Data'!$BN50","v":0},0,0,0,null,null,null,null,null,null,null,null,null,null,null,null,null,null,null,null,null,null,null,null,null,null,null,null,null,null,null,null,null,null,null,null,null,null,null,null,null,null,null,null,null,null,null,null,null,null,null,null,null,null,null,null,null,null,null,"HUPR",0,0,null,0,4403287.342642636,{"$f":"HM175*CustomRegion3!D51","v":0},{"$f":"HP175*CustomRegion3!$D51","v":0},{"$f":"HQ175*CustomRegion3!$D51","v":0},{"$f":"HM175*CustomRegion3!E51","v":0},{"$f":"HP175*CustomRegion3!$E51","v":0},{"$f":"HQ175*CustomRegion3!$E51","v":0},0,0,0,0,22757.732588165189,{"$f":"HN175*CustomRegion3!D51","v":0},{"$f":"IA175*CustomRegion3!$D51","v":0},{"$f":"IB175*CustomRegion3!$D51","v":0},{"$f":"HN175*CustomRegion3!E51","v":0},{"$f":"IA175*CustomRegion3!$E51","v":0},{"$f":"IB175*CustomRegion3!$E51","v":0},0,0,0]
[null,null,null,null,null,null,null,null,null,null,null,null,null,null,null,null,null,null,null,null,null,null,null,null,null,null,null,null,null,175,null,null,null,null,null,null,null,null,null,null,null,null,null,null,null,null,null,null,null,null,null,null,null,null,null,null,null,null,null,null,null,null,null,null,null,null,null,null,null,null,null,null,null,null,null,null,null,null,null,null,null,null,null,null,null,null,null,null,null,null,null,null,null,null,null,null,null,null,null,null,null,null,null,null,null,null,null,null,null,null,null,null,null,null,null,null,null,null,null,null,null,null,null,null,null,null,null,null,null,null,null,null,null,null,null,null,null,null,"HUPU",0,0,null,0,7430359.4286857983,{"$f":"EJ176*'Zambia-IO-Data'!BO51","v":0},{"$f":"EM176*'Zambia-IO-Data'!$BO51","v":0},{"$f":"EN176*'Zambia-IO-Data'!$BO51","v":0},{"$f":"EJ176*'Zambia-IO-Data'!BN51","v":0},{"$f":"EM176*'Zambia-IO-Data'!$BN51","v":0},{"$f":"EN176*'Zambia-IO-Data'!$BN51","v":0},0,0,0,0,37246.647387471436,{"$f":"EK176*'Zambia-IO-Data'!BO51","v":0},{"$f":"EX176*'Zambia-IO-Data'!$BO51","v":0},{"$f":"EY176*'Zambia-IO-Data'!$BO51","v":0},{"$f":"EK176*'Zambia-IO-Data'!BN51","v":0},{"$f":"EX176*'Zambia-IO-Data'!$BN51","v":0},{"$f":"EY176*'Zambia-IO-Data'!$BN51","v":0},0,0,0,null,null,null,null,null,null,null,null,null,null,null,null,null,null,null,null,null,null,null,null,null,null,null,null,null,null,null,null,null,null,null,null,null,null,null,null,null,null,null,null,null,null,null,null,null,null,null,null,null,null,null,null,null,null,null,"HUPU",0,0,null,0,7430359.4286857983,{"$f":"HM176*CustomRegion3!D52","v":0},{"$f":"HP176*CustomRegion3!$D52","v":0},{"$f":"HQ176*CustomRegion3!$D52","v":0},{"$f":"HM176*CustomRegion3!E52","v":0},{"$f":"HP176*CustomRegion3!$E52","v":0},{"$f":"HQ176*CustomRegion3!$E52","v":0},0,0,0,0,37246.647387471436,{"$f":"HN176*CustomRegion3!D52","v":0},{"$f":"IA176*CustomRegion3!$D52","v":0},{"$f":"IB176*CustomRegion3!$D52","v":0},{"$f":"HN176*CustomRegion3!E52","v":0},{"$f":"IA176*CustomRegion3!$E52","v":0},{"$f":"IB176*CustomRegion3!$E52","v":0},0,0,0]
[null,null,null,null,null,null,null,null,null,null,null,null,null,null,null,null,null,null,null,null,null,null,null,null,null,null,null,null,null,176,null,null,null,null,null,null,null,null,null,null,null,null,null,null,null,null,null,null,null,null,null,null,null,null,null,null,null,null,null,null,null,null,null,null,null,null,null,null,null,null,null,null,null,null,null,null,null,null,null,null,null,null,null,null,null,null,null,null,null,null,null,null,null,null,null,null,null,null,null,null,null,null,null,null,null,null,null,null,null,null,null,null,null,null,null,null,null,null,null,null,null,null,null,null,null,null,null,null,null,null,null,null,null,null,null,null,null,null,"HUEM",0,0,null,0,469942.90213570133,{"$f":"EJ177*'Zambia-IO-Data'!BO52","v":0},{"$f":"EM177*'Zambia-IO-Data'!$BO52","v":0},{"$f":"EN177*'Zambia-IO-Data'!$BO52","v":0},{"$f":"EJ177*'Zambia-IO-Data'!BN52","v":0},{"$f":"EM177*'Zambia-IO-Data'!$BN52","v":0},{"$f":"EN177*'Zambia-IO-Data'!$BN52","v":0},0,0,0,0,2732.4416047962122,{"$f":"EK177*'Zambia-IO-Data'!BO52","v":0},{"$f":"EX177*'Zambia-IO-Data'!$BO52","v":0},{"$f":"EY177*'Zambia-IO-Data'!$BO52","v":0},{"$f":"EK177*'Zambia-IO-Data'!BN52","v":0},{"$f":"EX177*'Zambia-IO-Data'!$BN52","v":0},{"$f":"EY177*'Zambia-IO-Data'!$BN52","v":0},0,0,0,null,null,null,null,null,null,null,null,null,null,null,null,null,null,null,null,null,null,null,null,null,null,null,null,null,null,null,null,null,null,null,null,null,null,null,null,null,null,null,null,null,null,null,null,null,null,null,null,null,null,null,null,null,null,null,"HUEM",0,0,null,0,469942.90213570133,{"$f":"HM177*CustomRegion3!D53","v":0},{"$f":"HP177*CustomRegion3!$D53","v":0},{"$f":"HQ177*CustomRegion3!$D53","v":0},{"$f":"HM177*CustomRegion3!E53","v":0},{"$f":"HP177*CustomRegion3!$E53","v":0},{"$f":"HQ177*CustomRegion3!$E53","v":0},0,0,0,0,2732.4416047962122,{"$f":"HN177*CustomRegion3!D53","v":0},{"$f":"IA177*CustomRegion3!$D53","v":0},{"$f":"IB177*CustomRegion3!$D53","v":0},{"$f":"HN177*CustomRegion3!E53","v":0},{"$f":"IA177*CustomRegion3!$E53","v":0},{"$f":"IB177*CustomRegion3!$E53","v":0},0,0,0]
[null,null,null,null,null,null,null,null,null,null,null,null,null,null,null,null,null,null,null,null,null,null,null,null,null,null,null,null,null,177]
[null,null,null,null,null,null,null,null,null,null,null,null,null,null,null,null,null,null,null,null,null,null,null,null,null,null,null,null,null,178,"Agriculture",{"$f":"AF136","v":0},{"$f":"AG136","v":0},null,{"$f":"AI136","v":1115998.6953628906},4444375.0722342618,0,772606.93233625509,3076844.9864487313,0,203974.16202729539,812310.69969952246,0,33.391267520026751,132.97803806845488,3432.8525535388471,49210.37804691559,0,2376.5670081629396,34068.390384248385,0,627.43193686589245,8994.316630363146,0,0.10271275266567323,1.4724003755146773,null,"Agriculture",{"$f":"BG136","v":0},{"$f":"BH136","v":0},null,{"$f":"BJ136","v":519465.11238675221},3640868.4918307695,0,316809.02276261593,2220476.3349830727,0,52189.453099807783,365789.59946688369,0,39.77719646480908,278.79358564942777,3000.4994871173417,29130.697108049946,0,1829.93099564624,17766.09720870723,0,183.84891611750825,1784.9185150862079,0.14012399099609005,1.3604100106678616,1.0679819749452672E-4,null,"Agriculture",{"$f":"CH136","v":0},{"$f":"CI136","v":0},null,{"$f":"CK136","v":1117385.272107559},9131348.0107289646,0,788602.24733272754,6444510.897173278,0,226995.80061124775,1855025.0339757665,0,104.49162101889695,853.91259357578463,2906.2204844875223,83754.849332120735,0,2051.084851859991,59110.553948635301,0,590.39604521076149,17014.721380173236,0,0.27177348497680359,7.8322850617135575,null,"Agriculture",{"$f":"DI136","v":0},{"$f":"DJ136","v":0},null,{"$f":"DL136","v":1172619.6645752527},5609831.396974992,0,473561.13020414015,2265524.0883824192,0,145269.07775681489,694969.61208216485,0,8.0883643352980901,38.694865495679302,3354.4173727859243,54742.346301140402,0,1354.6776761656138,22107.634868791527,0,415.55939481243212,6781.7131177749498,0,2.3137723733785132E-2,0.37759561333389718,null,"Agriculture",{"$f":"SUM(EJ136:EJ148)","v":0},{"$f":"SUM(EK136:EK148)","v":0},{"$f":"SUM(EL136:EL148)","v":0},1960222.9052522741,11183866.440203259,0,549704.1394108769,4175325.1168285334,0,346931.81591746293,3344707.9937880142,0,2680.9799096807665,25846.850947875162,5718.3371459611053,51138.871502402348,0,1741.7660594684905,19018.915722888687,0,1148.073902255916,15228.484068902751,0,8.8719538697747335,117.68093317026573,null,"Agriculture",{"$f":"FK136","v":0},{"$f":"FL136","v":0},null,{"$f":"FN136","v":2313764.5133995623},12370098.226573523,0,1632955.0251043318,8730280.866153609,0,470039.15413561201,2512974.1913320473,0,217.27442534692483,1161.6160452365095,8496.9421371644894,114209.4698381484,0,5996.7746417361568,80604.10928019954,0,1726.14605840933,23201.549806002018,0,0.79790670544339537,10.724858465307177,null,"Agriculture",{"$f":"GL136","v":0},{"$f":"GM136","v":0},0,3372208.115220082,8634790.7508761734,0,2077892.1197217715,5320597.9713150272,0,373157.25357074925,955497.01906365668,0,284.40898507148637,728.25044892019525,0,0,0,0,0,0,0,0,0,0,{"$f":"HJ136","v":0},null,"Agriculture",{"$f":"SUM(HM136:HM148)","v":0},{"$f":"SUM(HN136:HN148)","v":0},{"$f":"SUM(HO136:HO148)","v":0},1960222.9052522741,11183866.440203259,0,549704.1394108769,4175325.1168285334,0,346931.81591746293,3344707.9937880142,0,2691.8382291648322,25951.53407669521,5718.3371459611053,51138.871502402348,0,1741.7660594684905,19018.915722888687,0,1148.073902255916,15228.484068902751,0,0,0]
[null,null,null,null,null,null,null,null,null,null,null,null,null,null,null,null,null,null,null,null,null,null,null,null,null,null,null,null,null,179,"Mining and Extraction",{"$f":"AF137","v":0},{"$f":"AG137","v":0},null,{"$f":"AI137","v":12699157.34108174},1122684.1447516549,0,10399127.27502913,919347.24465231271,0,862531.74495543574,76253.147228425471,0,65.902096152479388,5.8261533792434506,228196.08337072891,12430.929049094062,0,186865.95109413992,10179.479618714169,0,15499.167440426787,844.31357421223902,0,1.184220324546035,6.4510129251478573E-2,null,"Mining and Extraction",{"$f":"BG137","v":0},{"$f":"BH137","v":0},null,{"$f":"BJ137","v":10489235.284919778},2010845.8470645454,0,9030469.5008433554,1731192.1793689444,0,560447.99604036775,107441.05692372592,0,23.386809953301071,4.4833840021010554,305239.2846640881,16088.837438993156,0,262788.84739874268,13851.320124903234,0,14041.012419477798,740.08680286505796,0.58591428879445095,3.0882917826161035E-2,2.4449487227664944E-5,null,"Mining and Extraction",{"$f":"CH137","v":0},{"$f":"CI137","v":0},null,{"$f":"CK137","v":3821870.0093317996},510253.94709180901,0,2200198.2229076615,293746.20928546425,0,575137.20876087341,76785.979160214789,0,142.76160090708044,19.059954990127792,47241.257937177936,4680.1679674874467,0,27196.14521360286,2694.3086028128882,0,7109.1390240902792,704.29887326895073,0,1.7646433802061672,0.17482234349183454,null,"Mining and Extraction",{"$f":"DI137","v":0},{"$f":"DJ137","v":0},null,{"$f":"DL137","v":13981958.137256352},2964999.249479821,0,8327578.2126926566,1765937.4250896838,0,2821485.6848153542,598321.26915072906,0,143.23807170270624,30.374913937397821,286169.58724281372,28933.314428160549,0,170441.04956290021,17232.524692726325,0,57747.519046252586,5838.590823397757,0,2.9316623218458191,0.2964071359657956,null,"Mining and Extraction",{"$f":"EJ149","v":0},{"$f":"EK149","v":0},{"$f":"EL149","v":0},20412150.095770653,292793.23164201528,0,4986937.5460364223,71532.962145102152,0,181878.49203933519,2608.8771246791562,0,127.93349603421507,1.8350865324510814,57202.181764460278,1431.9285403135436,0,13975.191570607392,349.8376294229937,0,509.68891135263817,12.7589206623694,0,0.35851564188861784,8.9746363501137967E-3,null,"Mining and Extraction",{"$f":"FK137","v":0},{"$f":"FL137","v":0},null,{"$f":"FN137","v":25830552.672640678},4801520.5116389617,0,14870295.417766733,2764169.600527504,0,3887131.6734005464,722560.70932012913,0,968.90261150810761,180.10477057520643,339209.53522458818,44331.023247111356,0,195278.28386946046,25520.762958922722,0,51046.222084421948,6671.1899958927988,0,12.723731028630587,1.6628542462603748,null,"Mining and Extraction",{"$f":"GL137","v":0},{"$f":"GM137","v":0},0,9616642.0491756015,4795030.7203341778,0,7815018.8754670843,3896708.9963662075,0,616782.06496794638,307538.63293954963,0,25.737561803987589,12.83321131071939,0,0,0,0,0,0,0,0,0,0,{"$f":"HJ137","v":0},null,"Mining and Extraction",{"$f":"HM149","v":0},{"$f":"HN149","v":0},{"$f":"HO149","v":0},20412150.095770653,292793.23164201528,0,4986937.5460364223,71532.962145102152,0,181878.49203933519,2608.8771246791562,0,128.45164343533389,1.8425188730584499,57202.181764460278,1431.9285403135436,0,13975.191570607392,349.8376294229937,0,509.68891135263817,12.7589206623694,0,0.35996767715587391,9.0109848018089991E-3]
[null,null,null,null,null,null,null,null,null,null,null,null,null,null,null,null,null,null,null,null,null,null,null,null,null,null,null,null,null,180,"Utilities",{"$f":"AF154","v":0},{"$f":"AG154","v":2106178.9064264097},null,{"$f":"AI154","v":3536727.1530196797},3274069.0637637395,0,1870533.2281847729,1731616.4663459994,0,329665.43654127588,305182.54885746731,0,25.188224577420915,23.317599377055597,638593.29338778835,36252.155536126811,1113933.1530306898,337744.45211526297,19173.336983530218,196321.16320544048,59524.562605082843,3379.136179667003,15,4.5479989243029264,0.25818430304410706,null,"Utilities",{"$f":"BG154","v":0},{"$f":"BH154","v":2106178.9064264097},null,{"$f":"BJ154","v":2291792.7937938231},1919458.6130234492,0,1025182.4965877223,858627.08807051764,0,247617.21294659463,207388.29156383203,0,10.634605560011209,8.9068633488804672,37136.666838256642,15357.645460934844,942152.25538617151,16612.261338498425,6869.9008732316925,227562.52318643613,1794.8751145909691,742.25982037102312,7.708587236732882E-2,3.1878399400259307E-2,3.3106658342557013E-6,null,"Utilities",{"$f":"CH154","v":0},{"$f":"CI154","v":2106178.9064264097},null,{"$f":"CK154","v":3173218.2068067454},2708544.9864069922,0,1901570.1484324608,1623111.9186161961,0,393817.87957615347,336148.78453531623,0,79.577504020009812,67.924496677169913,148353.06663175207,24843.405045918189,1262140.412256402,88901.469911593798,14887.560306882951,261391.07268376564,18411.620733869859,3083.23489246602,52.818447856338956,3.7203765977849792,0.62301929336959971,null,"Utilities",{"$f":"DI154","v":0},{"$f":"DJ154","v":2106178.9064264097},null,{"$f":"DL154","v":4524059.6642072322},4744309.5484625855,0,2459851.468435592,2579607.1837491384,0,803795.99547181837,842928.09984440892,0,23.354646962585505,24.491647504605425,287091.01897836383,46296.335465944372,1145185.4441156976,156099.01659693275,25172.547939649252,374207.74622551788,51007.862079372033,8225.5345452140373,10.872771017765256,1.4820559170374132,0.23899653203579621,null,"Utilities",{"$f":"EJ155","v":0},{"$f":"EK155","v":2106178.9064264097},{"$f":"EL155","v":0},11636279.256190592,1255881.8833497055,0,3101758.7808784293,334767.03108114924,0,153546.31794669214,16571.967268808377,0,207.5622205029203,22.401802729061689,2188744.9898559446,6198.5643007820472,561421.63429375517,583430.39402200375,1652.2851356082447,27792.046658446823,28881.545957902003,81.793046040429829,37.568982401458236,39.041755548058887,0.11056693826903288,null,"Utilities",{"$f":"FK154","v":0},{"$f":"FL154","v":2106178.9064264097},null,{"$f":"FN154","v":4995779.5948854974},3699218.5878726421,0,2993751.0522927712,2216779.04914829,0,620010.09658502869,459098.09077728499,0,125.8069332221484,93.156100468297424,161130.28080522316,34153.79457769962,1262140.412256402,96558.29256573171,20466.86738571438,261391.07268376564,19997.359584697399,4238.7173158206779,53.039151147891658,4.0576863114781467,0.86008281032224199,null,"Utilities",{"$f":"GL156","v":0},{"$f":"GM156","v":0},0,5182147.0526506444,3856386.2834684448,0,2035644.4463572868,1514860.7789768528,0,766474.85225516465,570385.80280125968,0,32.918380868617405,24.496794700334476,0,0,0,0,0,0,0,0,0,0,{"$f":"HJ156","v":0},null,"Utilities",{"$f":"HM155","v":0},{"$f":"HN155","v":2106178.9064264097},{"$f":"HO155","v":0},11636279.256190592,1255881.8833497055,0,3101758.7808784293,334767.03108114924,0,153546.31794669214,16571.967268808377,0,208.40287465885206,22.4925329617549,2188744.9898559446,6198.5643007820472,561421.63429375517,583430.39402200375,1652.2851356082447,27792.046658446823,28881.545957902003,81.793046040429829,37.721141696696982,39.1998797672777,0.11101474883850598]
[null,null,null,null,null,null,null,null,null,null,null,null,null,null,null,null,null,null,null,null,null,null,null,null,null,null,null,null,null,181,"Construction",{"$f":"AF155","v":124717500},{"$f":"AG155","v":0},null,{"$f":"AI155","v":2053736.3386365473},656269.99552641809,61930060.274752773,1019808.8900131213,325879.21005041641,12213292.546122916,201117.5874786739,64266.982938295921,2684.9143913206076,44.212770874844018,14.128159685535634,80979.261809678472,7266.5547024738189,0,40211.282016384015,3608.3001239921568,0,7930.109364368931,711.59667555650094,0,1.7433189843552426,0.15643415956854806,null,"Construction",{"$f":"BG155","v":124717500},{"$f":"BH155","v":0},null,{"$f":"BJ155","v":9671172.0006831884},128161.33142021298,62725736.212761238,4864043.8092737263,64457.785534031296,27587803.807282247,2139285.9521825658,28349.587402737496,7496.4372095970357,581.30842621391912,7.7034367565897517,8421.4328725145278,1025.4226251081727,0,4235.4968380124874,515.72865948349192,0,936.90184451622929,114.08039028703469,0.25458444963703886,3.0999078020387261E-2,6.9178262777847761E-5,null,"Construction",{"$f":"CH155","v":124717500},{"$f":"CI155","v":0},null,{"$f":"CK155","v":1295570.529540062},810244.20862673223,68635598.958836615,712989.4304199433,445900.50764346897,21091345.311141174,219097.76425495598,137022.79463987588,5235.3319799805631,54.384844353209779,34.012046561369296,7505.6117736796396,7431.7484708743314,0,4130.5523253673146,4089.9032422064092,0,1269.296206948055,1256.8049653397152,0,0.31506700621856326,0.31196640757504002,null,"Construction",{"$f":"DI155","v":124717500},{"$f":"DJ155","v":0},null,{"$f":"DL155","v":9905541.7244265974},1617762.3906641304,37134716.873260155,2949381.5014961557,481689.80572510645,16748100.974421171,1330198.3523325808,217246.5601977577,1265.4535071877979,100.50716632205345,16.414722000220017,11350.334060695102,15786.590140738859,0,3379.5693608421739,4700.4674987113895,0,1524.2170580867437,2119.9543425653669,0,0.11516683741142771,0.16017957271541122,null,"Construction",{"$f":"EJ157","v":124717500},{"$f":"EK157","v":0},{"$f":"EL157","v":0},146812265.16729802,844314.38603740931,7566090.8692898899,8906488.1751322765,51221.034473973108,3327953.8274974613,3917529.1341398093,22529.631307750438,9239.3397119003384,10876.167272068953,62.548619369729103,156680.59519658098,4139.0114310420176,0,9505.1586241847108,251.09657102085504,0,4180.8550241869989,110.44511743734462,0,11.607234311816322,0.30662683811683178,null,"Construction",{"$f":"FK155","v":124717500},{"$f":"FL155","v":0},null,{"$f":"FN155","v":1875092.2062627226},1098263.6100269556,68635598.958836615,1031916.7452834476,604405.80262508674,21091345.311141174,317102.38909949793,185730.60750687763,5257.20795413822,79.040629113853072,46.295028254850102,14427.822417872261,10139.944109275732,0,7940.0423623179822,5580.3005781006423,0,2439.9317233200445,1714.7959399796041,0,0.60817497765856265,0.42742834666988488,null,"Construction",{"$f":"GL157","v":0},{"$f":"GM157","v":0},0,487275.27464732958,301301.06194392196,0,237445.61071312134,146821.76253159213,0,97985.851632631413,60588.42442551424,0,26.625707117687185,16.463699774984992,0,0,0,0,0,0,0,0,0,0,{"$f":"HJ157","v":0},null,"Construction",{"$f":"HM157","v":124717500},{"$f":"HN157","v":0},{"$f":"HO157","v":0},146812265.16729802,844314.38603740931,7566090.8692898899,8906488.1751322765,51221.034473973108,3327953.8274974613,3917529.1341398093,22529.631307750438,9276.7602468515197,10920.217172844346,62.801949463681424,156680.59519658098,4139.0114310420176,0,9505.1586241847108,251.09657102085504,0,4180.8550241869989,110.44511743734462,0,11.654245129774713,0.30786871693831752]
[null,null,null,null,null,null,null,null,null,null,null,null,null,null,null,null,null,null,null,null,null,null,null,null,null,null,null,null,null,182,"Manufacturing",{"$f":"SUM(AF138:AF153)","v":19161368.372790929},{"$f":"SUM(AG138:AG153)","v":0},null,{"$f":"SUM(AI138:AI153)","v":49009314.299050584},16708242.878719639,5412343.1384216445,18158817.781947725,5002152.9407076314,2295149.1816607364,5532014.0962089412,1620162.3335272502,432.33676326017189,1042.0643188579245,305.18963422080429,106023.79933079744,185002.15107815724,0,37220.46673425287,55386.377895636389,0,11054.637591745844,17939.260218685362,0,2.0823597322642744,3.3792146324085159,null,"Manufacturing",{"$f":"SUM(BG138:BG153)","v":19161368.372790929},{"$f":"SUM(BH138:BH153)","v":0},null,{"$f":"SUM(BJ138:BJ153)","v":37260034.388424344},20967469.456654947,5697092.5628368128,13674341.022488071,7100742.1773107629,2002850.5509225121,3130502.6481399876,1579849.4449255508,272.40201969697875,484.31094620073856,242.71656778522177,710725.23037983244,167761.34684199264,0,166159.83892981632,56813.249386434989,0,10756.001679676641,4604.6286675837109,0.86449385372513765,0.7512412596726179,9.8331208673555721E-5,null,"Manufacturing",{"$f":"SUM(CH138:CH153)","v":19161368.372790929},{"$f":"SUM(CI138:CI153)","v":0},null,{"$f":"SUM(CK138:CK153)","v":54483468.936731003},18472758.955139246,4933958.1321937665,13396525.21231911,5195514.8805038799,1610633.9496343553,3273074.2189345355,1166093.9757835751,399.7944796868394,812.44841798622747,289.44996125295143,510600.90228904522,169436.44478541295,0,94050.375476035508,47654.471772197256,0,16151.000927855064,10695.685361470536,0,4.009030738386806,2.65490241588041,null,"Manufacturing",{"$f":"SUM(DI138:DI153)","v":19161368.372790929},{"$f":"SUM(DJ138:DJ153)","v":0},null,{"$f":"SUM(DL138:DL153)","v":47025024.880418696},32270945.43952198,4022997.1771718599,12112451.301111188,7570818.9621888539,3969857.2452604026,8015116.6166265728,4390361.4713149397,247.80654564099208,500.31984501388854,274.05527279873104,100682.26618909948,314909.15603419393,0,23613.354506450869,73878.226293015585,0,16607.281654481492,42842.408450903713,0,1.0366602235376172,2.674310079495692,null,"Manufacturing",{"$f":"SUM(EJ150:EJ154)+EJ156","v":19161368.372790929},{"$f":"SUM(EK150:EK154)+EK156","v":0},{"$f":"SUM(EL150:EL154)+EL156","v":0},132746389.4971642,14463880.821114613,2414217.5484672864,16318618.926422011,1705863.9863547166,541405.1908908264,2570380.8067149417,533830.13841896097,1623.2774210928194,7706.6884421358982,1600.5653897934153,1149305.8724770441,69734.079893259681,0,136926.35381270922,8217.2667659990911,0,18406.232988366293,2565.8525839413664,0,55.186804485983885,7.6931116203586107,null,"Manufacturing",{"$f":"SUM(FK138:FK153)","v":19161368.372790929},{"$f":"SUM(FL138:FL153)","v":0},null,{"$f":"SUM(FN138:FN153)","v":94757802.651467144},34923861.256253682,4933958.1321937665,22654152.118252967,9461342.9593559615,1610633.9496343553,5609505.7057276322,2210695.0718266717,401.46503157150431,1398.2198660109761,551.03567573957253,806139.50846189843,322441.71434381744,0,156289.78793680423,87353.790047005765,0,29656.546005509499,20410.695816848674,0,7.3921614412179428,5.0875499317320116,null,"Manufacturing",{"$f":"SUM(GL138:GL155)","v":143878868.37279093},{"$f":"SUM(GM138:GM155)","v":2106178.9064264097},0,141128919.20187226,58593802.104178347,51532090.134949513,44356112.53877797,19448991.568753883,23563453.841624923,17155297.912201535,6528325.6125480225,2973.6069745431578,2281.4950925745984,902.39809732501169,0,0,0,0,0,0,0,0,0,0,{"$f":"SUM(HJ138:HJ155)","v":0},null,"Manufacturing",{"$f":"SUM(HM150:HM154)+HM156","v":19161368.372790929},{"$f":"SUM(HN150:HN154)+HN156","v":0},{"$f":"SUM(HO150:HO154)+HO156","v":0},132746389.4971642,14463880.821114616,2414217.5484672864,16318618.926422011,1705863.9863547171,541405.1908908264,2570380.8067149417,533830.13841896108,1629.8519070805171,7737.9015388721691,1607.0478890821116,1149305.8724770441,69734.079893259681,0,136926.35381270922,8217.2667659990911,0,18406.232988366293,2565.8525839413664,0,55.410318266243728,7.7242697291899329]
[null,null,null,null,null,null,null,null,null,null,null,null,null,null,null,null,null,null,null,null,null,null,null,null,null,null,null,null,null,183,"Sales",{"$f":"AF156","v":0},{"$f":"AG156","v":0},null,{"$f":"AI156","v":10591993.757115945},6160710.8488721214,0,6363538.1101445537,3701278.4534583637,0,2760541.3867874122,1605637.0179519863,0,668.05018404158284,388.56367467654508,45924.959673749887,68214.519473110558,0,27591.144575063794,40982.434873576851,0,11969.205682429456,17778.428547394793,0,2.8965441696507077,4.3023743530536143,null,"Sales",{"$f":"BG156","v":0},{"$f":"BH156","v":0},null,{"$f":"BJ156","v":14861291.587553339},12382343.098859856,0,11316399.615298264,9428759.3951649088,0,2278708.8876783438,1898607.2040525654,0,371.87768166444778,309.84635608888323,298696.7945875416,99071.495471527451,0,227448.08359673456,75439.784398012242,0,34875.028628828171,11567.319447272203,5.6914882215093057,1.8877479095218566,9.2883187338239589E-4,null,"Sales",{"$f":"CH156","v":0},{"$f":"CI156","v":0},null,{"$f":"CK156","v":12232111.592639327},8065484.0497300923,0,8453794.6954494528,5574176.2785151592,0,1881739.6080899367,1240762.1267882793,0,467.08881784915928,307.98422509786855,97719.215547853426,73978.496995411217,0,67535.206802644738,51127.642250538694,0,15032.737150511675,11380.559021959563,0,3.7314532757255137,2.8249029978305127,null,"Sales",{"$f":"DI156","v":0},{"$f":"DJ156","v":0},null,{"$f":"DL156","v":26068088.991514225},16276731.678040702,0,15308909.971057506,9558775.8643642236,0,7351107.3863168089,4589979.821784839,0,613.51933124997811,383.07716140211022,119765.79614151096,158833.02351128013,0,70334.41505203009,93277.28082241003,0,33773.523979090642,44790.341658910387,0,2.8187195148551183,3.7381769870731216,null,"Trade, Transportation, and Warehousing (Sales for other countries)",{"$f":"EJ158","v":19286428.809603199},{"$f":"EK158","v":0},{"$f":"EL158","v":0},35407603.129090779,3048381.4066902399,4360110.2591560939,8004646.9556046529,689151.89931444114,1605209.8901499666,2946975.5801043389,253716.85091497845,3189.557076228311,5855.6497020558927,504.13617693236944,161661.0187460981,14849.577021172008,0,36546.935324258709,3357.06489538914,0,13455.050113463425,1235.9306191024903,0,26.735226691379538,2.4557980087683715,null,"Sales",{"$f":"FK156","v":0},{"$f":"FL156","v":0},null,{"$f":"FN156","v":21527406.205589499},13056980.432050977,0,14877911.389976984,9023873.8486886956,0,3311690.9218580974,2008634.1638536453,0,825.46881667349294,500.67017287830873,183356.64387861567,120551.25072718886,0,126720.51032703166,83314.766727648152,0,28206.859999581247,18545.127027343067,0,7.0308141355369225,4.622540093122991,null,"Sales",{"$f":"GL158","v":19286428.809603199},{"$f":"GM158","v":0},0,20534628.374265589,21704647.013874255,14149730.272227323,15065487.53036161,15923886.372748522,3446157.7795114503,3669189.8754276359,3878252.3657863038,562.40144259950739,598.79953592970799,632.91783627863413,0,0,0,0,0,0,0,0,0,0,{"$f":"HJ158","v":0},null,"Trade, Transportation, and Warehousing (Sales for other countries)",{"$f":"HM158","v":19286428.809603199},{"$f":"HN158","v":0},{"$f":"HO158","v":0},35407603.129090779,3048381.4066902399,4360110.2591560939,8004646.9556046529,689151.89931444114,1605209.8901499666,2946975.5801043389,253716.85091497845,3202.4751997924932,5879.3658496562912,506.1779944233698,161661.0187460981,14849.577021172008,0,36546.935324258709,3357.06489538914,0,13455.050113463425,1235.9306191024903,0,26.843507858219191,2.4657443120850244]
[null,null,null,null,null,null,null,null,null,null,null,null,null,null,null,null,null,null,null,null,null,null,null,null,null,null,null,null,null,184,"Transportation and Warehousing",{"$f":"AF158","v":19286428.809603199},{"$f":"AG158","v":0},null,{"$f":"AI158","v":9238438.8675306067},4346604.5608822033,8413058.7670100909,4029959.6091768243,1896060.6947330665,2127881.9449671186,1019281.8722412977,479563.19224882266,380.17685699645244,182.10943492362975,85.680893900887995,81176.197573780664,48127.813288703968,0,35410.398027165385,20994.146999570221,0,8956.2130388972382,5309.9672292254054,0,1.6001568751367987,0.94870237361418586,null,"Transportation and Warehousing",{"$f":"BG158","v":19286428.809603199},{"$f":"BH158","v":0},null,{"$f":"BJ158","v":4137224.2542571463},7154380.063922938,14096356.190636201,3023876.9086949402,5229101.2867051996,4547670.5308577754,975542.5955927585,1686977.0813691716,498.39705000866462,106.91353925094454,184.88243488211415,79021.772247683199,57242.407712785149,0,57756.625625995861,41838.194944999865,0,13618.804544589526,9865.2958561680553,1.4925382046943829,1.0811764658002734,1.6357311577375855E-4,null,"Transportation and Warehousing",{"$f":"CH158","v":19286428.809603199},{"$f":"CI158","v":0},null,{"$f":"CK158","v":1197060.8644050099},2005071.2305386364,8525064.7593396865,529129.6533261002,886289.64211972593,3172438.6574389818,196905.40944805989,329815.62037613895,787.46847642021135,48.876217799632556,81.867431374338665,10087.822578280377,18390.980019228002,0,4459.0598710398899,8129.2548869168613,0,1659.3532495133234,3025.1456367150636,0,0.41188767264992138,0.75090713571632872,null,"Transportation and Warehousing",{"$f":"DI158","v":19286428.809603199},{"$f":"DJ158","v":0},null,{"$f":"DL158","v":12998930.052186392},8504010.5439473987,10198824.996235976,6873943.0222846521,4496991.9605167918,3552765.2900831364,2394541.1539657945,1566529.1789008465,159.50584492980835,107.50592251298838,70.331288415039481,87106.880513386233,82984.577824629072,0,46062.847564693431,43882.939396146794,0,16046.013736938416,15286.641742650887,0,0.72040587257757782,0.68631291633783953,null,"Transportation and Warehousing",null,null,null,null,null,null,null,null,null,null,null,null,null,null,null,null,null,null,null,null,null,null,null,null,null,null,"Transportation and Warehousing",{"$f":"FK158","v":19286428.809603199},{"$f":"FL158","v":0},null,{"$f":"FN158","v":2970946.6541666389},3673816.1704843044,8525064.7593396865,1313229.7779619501,1623914.9858419227,3172438.6574389818,488693.1690627053,604308.68537805974,790.75893442860718,121.8111778850043,150.62938758326428,25551.692380702065,33919.261547371942,0,11294.461738180818,14993.128283881373,0,4203.0164045282409,5579.4039231921561,0,1.0476397283954835,1.3907167253509229,null,"Transportation and Warehousing",{"$f":"GL160","v":0},{"$f":"GM160","v":0},0,8019919.6474809591,13296917.339894688,0,4975901.6718680784,8249977.0734056728,0,1689705.9166429131,2801509.3529508011,0,185.18149864259632,307.02839785955223,0,0,0,0,0,0,0,0,0,0,{"$f":"HJ160","v":0},null,"Transportation and Warehousing"]
[null,null,null,null,null,null,null,null,null,null,null,null,null,null,null,null,null,null,null,null,null,null,null,null,null,null,null,null,null,185,"Information",{"$f":"AF159","v":0},{"$f":"AG159","v":0},null,{"$f":"AI159","v":1521214.4204954319},2631049.4596594535,0,831693.8588555156,1438474.1877684963,0,201878.94925567548,349164.12387333025,0,36.068591400616917,62.38321609149888,19404.311697728172,29132.315897201148,0,10608.923145142659,15927.516791518519,0,2575.1281369599265,3866.122515980343,0,0.46008385182650874,0.69073865228521225,null,"Information",{"$f":"BG159","v":0},{"$f":"BH159","v":0},null,{"$f":"BJ159","v":2151103.0270741642},2788490.4415682447,0,1312475.8097480675,1701371.9027907108,0,335518.16463106655,434934.62808185304,0,21.700285650197507,28.130237535475349,12364.363962446574,22310.794972210351,0,7544.0034249333039,13612.72720493704,0,1176.6754782298185,2123.2443030105019,7.6103760353026018E-2,0.13732492823792763,4.9221577631446252E-6,null,"Information",{"$f":"CH159","v":0},{"$f":"CI159","v":0},null,{"$f":"CK159","v":689730.577629623},1775060.7055813684,0,417768.31964626821,1075150.4316212272,0,74079.917140716934,190648.86240236007,0,14.969089037836451,38.523798438410886,2767.9832894031674,16281.269947947909,0,1676.5614939053364,9861.5300067412209,0,297.29285517625141,1748.6757406560785,0,6.0073004819816901E-2,0.35334924592940919,null,"Information",{"$f":"DI159","v":0},{"$f":"DJ159","v":0},null,{"$f":"DL159","v":6902617.7747731684},4843826.8556791479,0,2803022.7898547021,1966986.6577575449,0,917273.49818480248,643685.35959624569,0,41.182141912972874,28.899059962653524,19457.994797322102,47267.453937980463,0,7901.5244131144718,19194.420860268558,0,2585.7295793823459,6281.2666496523698,0,0.11608956619527427,0.28200532891346247,null,"Information",null,null,null,null,null,null,null,null,null,null,null,null,null,null,null,null,null,null,null,null,null,null,null,null,null,null,"Information",{"$f":"FK159","v":0},{"$f":"FL159","v":0},null,{"$f":"FN159","v":1046318.872307657},2357875.7925147573,0,633753.07877516735,1428160.2697081827,0,112378.97503355608,253245.61358129588,0,22.80294189641663,51.386347048390007,5575.6131695977519,21769.572017530158,0,3377.1368421355824,13185.782704367364,0,598.84391820350697,2338.1420855514084,0,0.12151208059816859,0.47443499201229583,null,"Information",{"$f":"GL161","v":0},{"$f":"GM161","v":0},0,3014664.5262430124,5096511.70127689,0,1853308.7232028272,3133154.4560458818,0,507187.99769713113,857438.54498862301,0,32.803363837191107,55.456494804692923,0,0,0,0,0,0,0,0,0,0,{"$f":"HJ161","v":0},null,"Information"]
[null,null,null,null,null,null,null,null,null,null,null,null,null,null,null,null,null,null,null,null,null,null,null,null,null,null,null,null,null,186,"Finance, Professional, and Business Services",{"$f":"AF164+AF165+AF161+AF160+AF163+AF162","v":6025000},{"$f":"AG164+AG165+AG161+AG160+AG163+AG162","v":0},null,{"$f":"AI164+AI165+AI161+AI160+AI163+AI162","v":20185225.824294016},19258561.902442619,4394138.8872092124,14678798.725113906,13838775.167432787,1647750.0367129396,4788057.3458699752,5327042.0461762995,125.89702580780732,436.65245214681505,457.11773127679601,262613.58691276016,213240.57858660707,0,187570.9973823544,153229.9472090413,0,63664.419459756216,58983.715078836824,0,5.936308178049674,5.0614396855508703,null,"Finance, Professional, and Business Services",{"$f":"BG164+BG165+BG161+BG160+BG163+BG162","v":6025000},{"$f":"BH164+BH165+BH161+BH160+BH163+BH162","v":0},null,{"$f":"BJ164+BJ165+BJ161+BJ160+BJ163+BJ162","v":18998062.186512593},21971586.418284565,4525652.6822236031,14172681.926693389,17365246.895960692,2001806.0911147317,4543074.852061484,6134973.0624711774,417.9941668605137,784.07984690026603,2480.0871761106209,169977.64288547201,175795.31652145745,0,128185.68510965575,138939.85697856624,0,33568.558375446279,35501.64842966268,6.4125520219622549,14.346937676803384,1.322031185363877E-3,null,"Finance, Professional, and Business Services",{"$f":"CH164+CH165+CH161+CH160+CH163+CH162","v":6025000},{"$f":"CI164+CI165+CI161+CI160+CI163+CI162","v":0},null,{"$f":"CK164+CK165+CK161+CK160+CK163+CK162","v":8710390.5761952531},18726046.810946334,2919111.289674568,5293596.4700192278,12278620.421283538,1142353.5556448372,1204490.3486705669,3689857.83964364,230.83168484995332,243.38746546132944,745.59762848635876,44592.347692925097,171759.6599531906,0,27673.762458893481,112622.36442884254,0,6241.2161813477414,33844.234942440489,0,1.2611423490865392,6.8387949909354369,null,"Finance, Professional, and Business Services",{"$f":"DI164+DI165+DI161+DI160+DI163+DI162","v":6025000},{"$f":"DJ164+DJ165+DJ161+DJ160+DJ163+DJ162","v":0},null,{"$f":"DL164+DL165+DL161+DL160+DL163+DL162","v":40959797.947977401},56049456.411212541,2566936.0962521727,20289873.183158994,32174175.405444276,1657115.7374037851,9938126.2568599973,19968415.552921023,82.496154931717911,494.70991754427547,966.01524386363474,204690.9696052224,546946.69691994484,0,109967.17477594297,313964.8462426539,0,54534.761177481661,194857.53526790958,0,2.7147898475484151,9.4266542556482928,null,"Finance, Professional, and Business Services",{"$f":"EJ161","v":0},{"$f":"EK161","v":0},{"$f":"EL161","v":0},55298101.700161025,2430409.8732324913,0,11520179.67996354,506324.04322686139,0,2745115.882405642,120650.73734251833,0,2173.240182116806,95.516197358125268,266848.06778386206,12041.958529704192,0,55592.101602146489,2508.6851391945324,0,13246.908059062793,597.78854244222293,0,10.487248668545696,0.47325436757372741,null,"Finance, Professional, and Business Services",{"$f":"FK164+FK165+FK161+FK160+FK163+FK162","v":6025000},{"$f":"FL164+FL165+FL161+FL160+FL163+FL162","v":0},null,{"$f":"FN164+FN165+FN161+FN160+FN163+FN162","v":15365005.185765691},25387815.975253697,2919111.289674568,9057203.6986526232,16374471.825653786,1142353.5556448372,2209055.6263186024,4847697.528311586,231.79622119489872,448.24191605105932,983.65165758527451,97482.895529108355,234398.21978562887,0,57841.780780662295,151180.67066518631,0,14330.24680249465,44757.362027635936,0,2.9077662000478521,9.0817657435327028,null,"Finance, Professional, and Business Services",{"$f":"SUM(GL162:GL167)","v":6025000},{"$f":"SUM(GM162:GM167)","v":0},0,23115131.783161148,30348323.733610872,5117153.6898826407,17162482.16853733,24088282.794624496,229420.66293323043,4573901.8044955041,3804241.1506489245,78.497171814627706,856.28439067164629,682.86264118215831,0,0,0,0,0,0,0,0,0,0,{"$f":"SUM(HJ162:HJ167)","v":0},null,"Finance, Professional, and Business Services",{"$f":"HM161","v":0},{"$f":"HN161","v":0},{"$f":"HO161","v":0},55298101.700161025,2430409.8732324913,0,11520179.67996354,506324.04322686139,0,2745115.882405642,120650.73734251833,0,2182.0420892582297,95.903050457274773,266848.06778386206,12041.958529704192,0,55592.101602146489,2508.6851391945324,0,13246.908059062793,597.78854244222293,0,10.529723398080492,0.47517110969543797]
[null,null,null,null,null,null,null,null,null,null,null,null,null,null,null,null,null,null,null,null,null,null,null,null,null,null,null,null,null,187,"Education and Health Care",{"$f":"AF166+AF167","v":0},{"$f":"AG166+AG167","v":0},null,{"$f":"AI166+AI167","v":88677.999599200964},7207272.5867492352,0,68090.233442639234,4311751.1128295213,0,50139.40345923297,3183119.3968572561,0,3.8309219424370884,243.20755935463853,2917.1648432366187,79802.582571592269,0,2291.1984906009043,47741.898210198051,0,1686.8236319684574,35245.114631846023,0,0.12888246007919782,2.6929176195052187,null,"Education and Health Care",{"$f":"BG166+BG167","v":0},{"$f":"BH166+BH167","v":0},null,{"$f":"BJ166+BJ167","v":70076.486038590287},8341086.1707474142,0,62873.119148690836,6955207.5025276393,0,54220.498377674106,5578739.3195167556,0,10.507800616678661,1370.6854223719613,3001.4359511962839,66737.278574433352,0,2692.9095741588417,55648.822124275364,0,2083.5933342390499,37829.108191256833,0.403795316854552,9.061151006218509,7.8254549596750298E-5,null,"Education and Health Care",{"$f":"CH166+CH167","v":0},{"$f":"CI166+CI167","v":0},null,{"$f":"CK166+CK167","v":271794.18084046588},7175357.8196829166,0,153519.58325972746,4522093.5391500331,0,101045.59557864333,3079554.7442230429,0,20.417956383843858,622.27565772787875,449.88209509903356,65814.052031034225,0,253.69351882141655,41477.69448631844,0,166.88779973819217,28246.39289942339,0,3.3722477427509723E-2,5.7076571711873818,null,"Education and Health Care",{"$f":"DI166+DI167","v":0},{"$f":"DJ166+DJ167","v":0},null,{"$f":"DL166+DL167","v":401753.53802086768},5312969.4246790251,0,187352.31524750212,2519772.1490425728,0,83887.435582163278,1157461.3224868169,0,3.9975924462918497,55.157945972926036,1207.3072226861211,51845.481896297802,0,566.98639683526221,24588.660482245192,0,256.62643283436847,11294.840087336008,0,1.2229339021964639E-2,0.53824708196002324,null,"Education and Health Care",null,null,null,null,null,null,null,null,null,null,null,null,null,null,null,null,null,null,null,null,null,null,null,null,null,null,"Education and Health Care",{"$f":"FK166+FK167","v":0},{"$f":"FL166+FL167","v":0},null,{"$f":"FN166+FN167","v":408161.04365006019},8497823.462436622,0,229812.13049036317,5352116.3512769295,0,151099.80797883926,3644126.3834695416,0,30.659828859200381,739.43370777890027,1646.279388748748,78457.89860731762,0,918.32928089940015,49414.512301794464,0,601.89902059689894,33645.144497332716,0,0.12213199479780709,6.8269734159804649,null,"Education and Health Care",{"$f":"GL170+GL169","v":0},{"$f":"GM170+GM169","v":0},0,71473.512873482687,5494224.203257978,0,61437.352751031591,4525110.7421225747,0,44562.459487161883,3080658.3885283396,0,9.7117028596416883,775.39160081211196,0,0,0,0,0,0,0,0,0,0,{"$f":"HJ170+HJ169","v":0},null,"Education and Health Care"]
[null,null,null,null,null,null,null,null,null,null,null,null,null,null,null,null,null,null,null,null,null,null,null,null,null,null,null,null,null,188,"Other",{"$f":"AF169+AF168+AF157+AF170","v":0},{"$f":"AG169+AG168+AG157+AG170","v":0},null,{"$f":"AI169+AI168+AI157+AI170","v":2149993.9352962147},57617233.698862597,0,1101920.13897321,3892533.5389829697,0,444144.93454073672,1855637.0199260206,0,72.708043898863593,303.77412284269292,20588.014383444352,637967.27464613528,0,10072.549424732653,43100.108316770216,0,4157.1513727693728,20546.555541385686,0,0.68053988911994145,3.3635413715080658,null,"Other",{"$f":"BG169+BG168+BG157+BG170","v":0},{"$f":"BH169+BH168+BH157+BH170","v":0},null,{"$f":"BJ169+BJ168+BJ157+BJ170","v":965918.22720814473},73759896.966335624,0,698410.9463056284,3002564.9179695258,0,165307.89339246214,983266.75210602942,0,91.97929645401247,378.06798302655403,9263.150675058836,590155.12976324419,0,6662.1550963856298,24023.61122597026,0,1130.5013051424489,6541.1019948582179,0.62895805628352464,2.2886128526049125,3.4992442313744749E-4,null,"Other",{"$f":"CH169+CH168+CH157+CH170","v":0},{"$f":"CI169+CI168+CI157+CI170","v":0},null,{"$f":"CK169+CK168+CK157+CK170","v":3084881.2694683522},54895429.074104525,0,1308723.7168193804,2300790.3977638925,0,811582.80087188678,1539958.6720075102,0,321.74641292659464,636.46291625394952,5750.1490233297081,503513.65271825844,0,2494.4848355264248,21103.385051482815,0,1648.6576573139857,14124.859374556378,0,0.67693700522381617,5.8377860085606548,null,"Other",{"$f":"DI169+DI168+DI157+DI170","v":0},{"$f":"DJ169+DJ168+DJ157+DJ170","v":0},null,{"$f":"DL169+DL168+DL157+DL170","v":9751860.9344251547},110869025.33896928,0,6560544.0053677252,6360915.531658221,0,3556328.2617327143,3445140.0881036236,0,176.80324349073322,171.51838674406542,24551.826513521315,1081891.7984680429,0,16392.178255032908,62071.641050407357,0,8846.0666101649458,33618.666660927935,0,0.44303166717669434,1.67372568972743,null,"Other",{"$f":"SUM(EJ162:EJ177)+EJ160+EJ159","v":6025000},{"$f":"SUM(EK162:EK177)+EK160+EK159","v":0},{"$f":"SUM(EL162:EL177)+EL160+EL159","v":0},10218272.831799638,54814447.488717623,2205098.8954347204,3662036.059095161,656748.23124673055,1764354.2184111765,2903744.6315841898,463151.07512266771,3285.1595379589676,5430.2179093253553,863.78573355916956,12588.280374533195,263598.7543392012,0,4502.25725933792,3243.4547097770733,0,3549.0756209268538,2289.6785065230388,0,6.682145681097091,4.2701964585956986,null,"Other",{"$f":"FK169+FK168+FK157+FK170","v":0},{"$f":"FL169+FL168+FL157+FL170","v":0},null,{"$f":"FN169+FN168+FN157+FN170","v":3945004.5337153533},71246460.518179864,0,1679566.2246536016,2885138.3424480772,0,1052542.6196339768,1929150.870528125,0,421.54781931987822,800.23698670037663,12627.862795399833,657797.56430275505,0,5447.5032365347242,26637.631687746296,0,3545.0333369592345,17811.281214203387,0,1.4497096047104838,7.3883521635740044,null,"Other",{"$f":"GL168+SUM(GL171:GL174)","v":0},{"$f":"GM168+SUM(GM171:GM174)","v":0},0,286369.44736270828,208292794.87921309,0,205256.80403508525,3413712.9669239814,0,84720.562769875454,1398737.450191255,0,46.834300544469571,460.96072904851474,0,0,0,0,0,0,0,0,0,0,{"$f":"HJ168+SUM(HJ171:HJ174)","v":0},null,"Other",{"$f":"SUM(HM162:HM177)+HM160+HM159","v":6025000},{"$f":"SUM(HN162:HN177)+HN160+HN159","v":0},{"$f":"SUM(HO162:HO177)+HO160+HO159","v":0},10218272.831799638,54814447.488717623,2205098.8954347204,3662036.059095161,656748.23124673055,1764354.2184111765,2903744.6315841898,463151.07512266771,3298.4648640042974,5452.2110024905214,867.28417882050678,12588.280374533195,263598.7543392012,0,4502.25725933792,3243.4547097770733,0,3549.0756209268538,2289.6785065230388,0,6.7092092455730583,4.2874913130777212]
[null,null,null,null,null,null,null,null,null,null,null,null,null,null,null,null,null,null,null,null,null,null,null,null,null,null,null,null,null,189,"Total",{"$f":"SUM(AF179:AF189)","v":169190297.18239415},{"$f":"SUM(AG179:AG189)","v":2106178.9064264097},null,{"$f":"SUM(AI179:AI189)","v":112190478.63148285},{"$f":"SUM(AJ179:AJ189)","v":123427074.21246395},{"$f":"SUM(AK179:AK189)","v":80149601.06739372},{"$f":"SUM(AL179:AL189)","v":59294894.783217654},{"$f":"SUM(AM179:AM189)","v":40134714.003410295},{"$f":"SUM(AN179:AN189)","v":18284073.709463712},{"$f":"SUM(AO179:AO189)","v":16393346.919365952},{"$f":"SUM(AP179:AP189)","v":15678338.509284677},{"$f":"SUM(AQ179:AQ189)","v":3623.3250373850392},{"$f":"SUM(AR179:AR189)","v":2610.1783063366406},{"$f":"SUM(AS179:AS189)","v":2022.1667828741533},{"$f":"SUM(AT179:AT189)","v":1489849.5255372322},{"$f":"SUM(AU179:AU189)","v":1366647.2528761178},{"$f":"SUM(AV179:AV189)","v":1113933.1530306898},{"$f":"SUM(AW179:AW189)","v":877963.93001326267},{"$f":"SUM(AX179:AX189)","v":444391.9374067965},{"$f":"SUM(AY179:AY189)","v":196321.16320544048},{"$f":"SUM(AZ179:AZ189)","v":187644.850261271},{"$f":"SUM(BA179:BA189)","v":173598.52682315334},{"$f":"SUM(BB179:BB189)","v":15},{"$f":"SUM(BC179:BC189)","v":21.363126141996979},{"$f":"SUM(BD179:BD189)","v":22.390457655304495},null,"Total",{"$f":"SUM(BG179:BG189)","v":169190297.18239415},{"$f":"SUM(BH179:BH189)","v":2106178.9064264097},null,{"$f":"SUM(BJ179:BJ189)","v":101415375.34885184},155064586.89971256,87044837.648457855,59497564.177844465,55657747.466386005,36140130.980177268,14482416.154143112,19006316.027880285,8685.230446163192,2526.4764349293259,5294.3034475578297,1636848.2745512077,1240676.3724907367,942152.25538617151,881915.83792858,445319.29312952171,227562.52318643613,114165.80164085444,111413.69241842153,16.627638037177093,31.008362504774151,3.1496051270252247E-3,null,"Total",{"$f":"SUM(CH179:CH189)","v":169190297.18239415},{"$f":"SUM(CI179:CI189)","v":2106178.9064264097},null,{"$f":"SUM(CK179:CK189)","v":90077482.015695199},124275599.79857761,85013733.140044644,35156417.699932061,40639905.123675868,27016771.473859347,8957966.5519375782,13641674.433535721,6653.4266209375673,2310.1499477438206,3697.0707104362082,877974.45934303314,1139884.7272668842,1262140.412256402,320422.39675929077,372758.66898357542,261391.07268376564,68577.5978315752,125124.61308846943,52.818447856338956,16.256106992506435,33.910393072190168,null,"Total",{"$f":"SUM(DI179:DI189)","v":169190297.18239415},{"$f":"SUM(DJ179:DJ189)","v":2106178.9064264097},null,{"$f":"SUM(DL179:DL189)","v":173692253.30978134},249063868.27763158,53923475.142920159,78346468.900910825,71741195.033918828,25927839.247168496,37357129.719645418,38115038.336383395,1755.2620526903161,2213.2262434937716,2059.0305080970629,1145428.3986374072,2430436.7749283533,1145185.4441156976,606112.7941609408,700071.19014702586,374207.74622551788,243345.16074889764,371937.493347243,10.872771017765256,12.413948830941106,20.092611193206761,null,"Total",{"$f":"SUM(EJ179:EJ189)","v":169190297.18239415},{"$f":"SUM(EK179:EK189)","v":2106178.9064264097},{"$f":"SUM(EL179:EL189)","v":0},{"$f":"SUM(EM179:EM189)","v":414491284.58272719},{"$f":"SUM(EN179:EN189)","v":88333975.530987352},{"$f":"SUM(EO179:EO189)","v":16545517.572347989},{"$f":"SUM(EP179:EP189)","v":57050370.262543365},{"$f":"SUM(EQ179:EQ189)","v":8190934.3046715064},{"$f":"SUM(ER179:ER189)","v":7238923.1269494304},{"$f":"SUM(ES179:ES189)","v":15766102.660852414},{"$f":"SUM(ET179:ET189)","v":4757767.2712883772},{"$f":"SUM(EU179:EU189)","v":17337.333747180437},{"$f":"SUM(EV179:EV189)","v":35058.439133920809},{"$f":"SUM(EW179:EW189)","v":28997.639954149479},{"$f":"SUM(EX179:EX189)","v":3998749.343344484},{"$f":"SUM(EY179:EY189)","v":423132.745557877},{"$f":"SUM(EZ179:EZ189)","v":561421.63429375517},{"$f":"SUM(FA179:FA189)","v":842220.1582747167},{"$f":"SUM(FB179:FB189)","v":38598.606569300617},{"$f":"SUM(FC179:FC189)","v":27792.046658446823},{"$f":"SUM(FD179:FD189)","v":83377.430577516934},{"$f":"SUM(FE179:FE189)","v":22122.731405052014},{"$f":"SUM(FF179:FF189)","v":37.568982401458236},{"$f":"SUM(FG179:FG189)","v":158.9708848985448},{"$f":"SUM(FH179:FH189)","v":132.99946203829813},null,"Total",{"$f":"SUM(FK179:FK189)","v":169190297.18239415},{"$f":"SUM(FL179:FL189)","v":2106178.9064264097},null,{"$f":"SUM(FN179:FN189)","v":175035834.13385051},181113734.54328597,85013733.140044644,70974546.659210935,60464653.901428036,27016771.473859347,18229250.138834093,19378221.915885266,6681.2281413332303,4659.776965887062,5258.2158798489509,1655645.0761889189,1672169.7131038452,1262140.412256402,667662.90358149505,558252.32262056693,261391.07268376564,156352.10493872198,178913.40964980246,53.039151147891658,38.259234208515345,48.547556933865074,null,"Total",{"$f":"SUM(GL179:GL189)","v":169190297.18239415},{"$f":"SUM(GM179:GM189)","v":2106178.9064264097},0,214829378.98495281,360414729.79192889,70798974.097059473,95845987.841793194,89662105.483814701,27239032.284069605,29578966.551148243,24243172.74487225,3614.5055889572927,4380.8005199216295,4599.0599520169098,0,0,0,0,0,0,0,0,0,0,{"$f":"SUM(HJ179:HJ189)","v":0},null,"Total",{"$f":"SUM(HM179:HM189)","v":169190297.18239415},{"$f":"SUM(HN179:HN189)","v":2106178.9064264097},{"$f":"SUM(HO179:HO189)","v":0},414491284.58272719,88333975.530987352,16545517.572347989,57050370.262543365,8190934.3046715073,7238923.1269494304,15766102.660852414,4757767.2712883782,17407.552217728829,35200.430400380581,29115.084190776972,3998749.343344484,423132.745557877,561421.63429375517,842220.1582747167,38598.606569300617,27792.046658446823,83377.430577516934,22122.731405052014,37.721141696696982,150.70685134232474,15.38057091462675]
[null,null,null,null,null,null,null,null,null,null,null,null,null,null,null,null,null,null,null,null,null,null,null,null,null,null,null,null,null,190]
[null,null,null,null,null,null,null,null,null,null,null,null,null,null,null,null,null,null,null,null,null,null,null,null,null,null,null,null,null,191]
[null,null,null,null,null,null,null,null,null,null,null,null,null,null,null,null,null,null,null,null,null,null,null,null,null,null,null,null,null,192]
[null,null,null,null,null,null,null,null,null,null,null,null,null,null,null,null,null,null,null,null,null,null,null,null,null,null,null,null,null,193]
[null,null,null,null,null,null,null,null,null,null,null,null,null,null,null,null,null,null,null,null,null,null,null,null,null,null,null,null,null,194]
[null,null,null,null,null,null,null,null,null,null,null,null,null,null,null,null,null,null,null,null,null,null,null,null,null,null,null,null,null,195]
[null,null,null,null,null,null,null,null,null,null,null,null,null,null,null,null,null,null,null,null,null,null,null,null,null,null,null,null,null,196,null,null,null,null,"Construction",null,null,null,null,null,null,null,null,null,null,"O&M",null,null,null,null,null,null,null,null,null,null,null,null,null,null,null,"Construction",null,null,null,null,null,null,null,null,null,null,"O&M",null,null,null,null,null,null,null,null,null,null,null,null,null,null,null,"Construction",null,null,null,null,null,null,null,null,null,null,"O&M",null,null,null,null,null,null,null,null,null,null,null,null,null,null,null,"Construction",null,null,null,null,null,null,null,null,null,null,"O&M",null,null,null,null,null,null,null,null,null,null,null,null,null,null,null,"Construction",null,null,null,null,null,null,null,null,null,null,"O&M",null,null,null,null,null,null,null,null,null,null,null,null,null,null,null,"Construction",null,null,null,null,null,null,null,null,null,null,"O&M",null,null,null,null,null,null,null,null,null,null,null,null,null,null,null,"Construction",null,null,null,null,null,null,null,null,null,null,"O&M",null,null,null,null,null,null,null,null,null,null,null,null,null,null,null,"Construction",null,null,null,null,null,null,null,null,null,null,"O&M"]
[null,null,null,null,null,null,null,null,null,null,null,null,null,null,null,null,null,null,null,null,null,null,null,null,null,null,null,"Constr","OM",197,"Geothermal",null,null,null,"Output",null,"Value Added",null,null,"Earnings",null,null,"Jobs",null,null,"Output",null,"Value Added",null,null,"Earnings",null,null,"Jobs",null,null,null,"Geothermal",null,null,null,"Output",null,"Value Added",null,null,"Earnings",null,null,"Jobs",null,null,"Output",null,"Value Added",null,null,"Earnings",null,null,"Jobs",null,null,null,"Geothermal",null,null,null,"Output",null,"Value Added",null,null,"Earnings",null,null,"Jobs",null,null,"Output",null,"Value Added",null,null,"Earnings",null,null,"Jobs",null,null,null,"Geothermal",null,null,null,"Output",null,"Value Added",null,null,"Earnings",null,null,"Jobs",null,null,"Output",null,"Value Added",null,null,"Earnings",null,null,"Jobs",null,null,null,"Geothermal",null,null,null,"Output",null,"Value Added",null,null,"Earnings",null,null,"Jobs",null,null,"Output",null,"Value Added",null,null,"Earnings",null,null,"Jobs",null,null,null,"Geothermal",null,null,null,"Output",null,"Value Added",null,null,"Earnings",null,null,"Jobs",null,null,"Output",null,"Value Added",null,null,"Earnings",null,null,"Jobs",null,null,null,"Geothermal",null,null,null,"Output",null,"Value Added",null,null,"Earnings",null,null,"Jobs",null,null,"Output",null,"Value Added",null,null,"Earnings",null,null,"Jobs",null,null,null,"Geothermal",null,null,null,"Output",null,"Value Added",null,null,"Earnings",null,null,"Jobs",null,null,"Output",null,"Value Added",null,null,"Earnings",null,null,"Jobs"]
[null,null,null,null,null,null,null,null,null,null,null,null,null,null,null,null,null,null,null,null,null,null,null,null,null,null,"Colombia",{"$f":"SUM(AF200:AF234)","v":61462088.363236375},{"$f":"SUM(AG200:AG234)","v":684752.72601706395},198,"Colombia","Construction","O&M",null,"Indirect","Induced","Direct","Indirect","Induced","Direct","Indirect","Induced","Direct","Indirect","Induced","Indirect","Induced","Direct","Indirect","Induced","Direct","Indirect","Induced","Direct","Indirect","Induced",null,"Mexico","Construction","O&M",null,"Indirect","Induced","Direct","Indirect","Induced","Direct","Indirect","Induced","Direct","Indirect","Induced","Indirect","Induced","Direct","Indirect","Induced","Direct","Indirect","Induced","Direct","Indirect","Induced",null,"Philippines","Construction","O&M",null,"Indirect","Induced","Direct","Indirect","Induced","Direct","Indirect","Induced","Direct","Indirect","Induced","Indirect","Induced","Direct","Indirect","Induced","Direct","Indirect","Induced","Direct","Indirect","Induced",null,"South Africa","Construction","O&M",null,"Indirect","Induced","Direct","Indirect","Induced","Direct","Indirect","Induced","Direct","Indirect","Induced","Indirect","Induced","Direct","Indirect","Induced","Direct","Indirect","Induced","Direct","Indirect","Induced",null,"Zambia","Construction","O&M",null,"Indirect","Induced","Direct","Indirect","Induced","Direct","Indirect","Induced","Direct","Indirect","Induced","Indirect","Induced","Direct","Indirect","Induced","Direct","Indirect","Induced","Direct","Indirect","Induced",null,"CR1","Construction","O&M",null,"Indirect","Induced","Direct","Indirect","Induced","Direct","Indirect","Induced","Direct","Indirect","Induced","Indirect","Induced","Direct","Indirect","Induced","Direct","Indirect","Induced","Direct","Indirect","Induced",null,"CR2","Construction","O&M",null,"Indirect","Induced","Direct","Indirect","Induced","Direct","Indirect","Induced","Direct","Indirect","Induced","Indirect","Induced","Direct","Indirect","Induced","Direct","Indirect","Induced","Direct","Indirect","Induced",null,"CR3","Construction","O&M",null,"Indirect","Induced","Direct","Indirect","Induced","Direct","Indirect","Induced","Direct","Indirect","Induced","Indirect","Induced","Direct","Indirect","Induced","Direct","Indirect","Induced","Direct","Indirect","Induced"]
[null,null,null,null,null,null,null,null,null,null,null,null,null,null,null,null,null,null,null,null,null,null,null,null,null,null,"Mexico",{"$f":"SUM(BG200:BG236)","v":61462088.363236375},{"$f":"SUM(BH200:BH236)","v":684752.72601706395},199,"TTL_C01T05: Agriculture, hunting, forestry and fishing",0,0,null,{"$f":"MMULT(L1_Colombia,AF200:AF233)-AF200:AF233","v":176655.78310190927},{"$f":"MMULT(l2_colombia,AF200:AF234)-AI200:AI234-AF200:AF234","v":1940756.3426498668},{"$f":"AF200*'Colombia-IO-Data'!AN13","v":0},{"$f":"AI200*'Colombia-IO-Data'!$AN13","v":122298.96256056448},{"$f":"AJ200*'Colombia-IO-Data'!$AN13","v":1343587.4168466374},{"$f":"'Colombia-IO-Data'!$AO13*AK200","v":0},{"$f":"'Colombia-IO-Data'!$AO13*AL200","v":32287.865098059661},{"$f":"'Colombia-IO-Data'!$AO13*AM200","v":354717.39378910436},{"$f":"(AN200*'Default-Data'!$F$19/geo_dollar_index)/'Colombia-IO-Data'!$AP13","v":0},{"$f":"(AO200*'Default-Data'!$F$19/geo_dollar_index)/'Colombia-IO-Data'!$AP13","v":6.8255170677640429},{"$f":"(AP200*'Default-Data'!$F$19/geo_dollar_index)/'Colombia-IO-Data'!$AP13","v":74.985745207595315},{"$f":"MMULT(L1_Colombia,AG200:AG233)-AG200:AG233","v":809.52221910459093},{"$f":"MMULT(l2_colombia,AG200:AG234)","v":13534.253797492058},{"$f":"AG200*'Colombia-IO-Data'!AN13","v":0},{"$f":"AT200*'Colombia-IO-Data'!$AN13","v":560.4329834427449},{"$f":"AU200*'Colombia-IO-Data'!$AN13","v":9369.7764624540578},{"$f":"AV200*'Colombia-IO-Data'!$AO13","v":0},{"$f":"AW200*'Colombia-IO-Data'!$AO13","v":147.95861049877192},{"$f":"AX200*'Colombia-IO-Data'!$AO13","v":2473.6929249818727},{"$f":"(Calculations!AY200*'Default-Data'!$F$19/geo_dollar_index)/'Colombia-IO-Data'!$AP13","v":0},{"$f":"(Calculations!AZ200*'Default-Data'!$F$19/geo_dollar_index)/'Colombia-IO-Data'!$AP13","v":3.1277819645706757E-2},{"$f":"(Calculations!BA200*'Default-Data'!$F$19/geo_dollar_index)/'Colombia-IO-Data'!$AP13","v":0.52292814122558973},null,"DOM_C01T05: Agriculture, hunting, forestry and fishing",{"$f":"AF200","v":0},{"$f":"AG200","v":0},null,{"$f":"MMULT(Mexico_L1,BG200:BG233)-BG200:BG233","v":54390.165204699435},{"$f":"MMULT(Mexico_L2,BG200:BG234)-BG200:BG234-BJ200:BJ234","v":1230359.4732993485},{"$f":"BG200*'Mexico-IO-Data'!AQ13","v":0},{"$f":"BJ200*'Mexico-IO-Data'!$AQ13","v":33171.226855306159},{"$f":"BK200*'Mexico-IO-Data'!$AQ13","v":750366.04593474173},{"$f":"BG200*'Mexico-IO-Data'!AQ13","v":0},{"$f":"BJ200*'Mexico-IO-Data'!$AR13","v":5464.4535472250709},{"$f":"BK200*'Mexico-IO-Data'!$AR13","v":123611.35809993258},{"$f":"(BO200*'Default-Data'!$F$19/geo_dollar_index)/'Mexico-IO-Data'!$AS13","v":0},{"$f":"(BP200*'Default-Data'!$F$19/geo_dollar_index)/'Mexico-IO-Data'!$AS13","v":5.37819621210223},{"$f":"(BQ200*'Default-Data'!$F$19/geo_dollar_index)/'Mexico-IO-Data'!$AS13","v":121.66013164179387},{"$f":"MMULT(Mexico_L1,BH200:BH233)-BH200:BH233","v":693.12521502753532},{"$f":"MMULT(Mexico_L2,BH200:BH234)-BH200:BH234-BU200:BU234","v":7075.3751765104225},{"$f":"BH200*'Mexico-IO-Data'!AQ13","v":0},{"$f":"BU200*'Mexico-IO-Data'!$AQ13","v":422.7200572066784},{"$f":"BV200*'Mexico-IO-Data'!$AQ13","v":4315.0976685423002},{"$f":"BH200*'Mexico-IO-Data'!AR13","v":0},{"$f":"BU200*'Mexico-IO-Data'!$AR13","v":69.636680191607553},{"$f":"BV200*'Mexico-IO-Data'!$AR13","v":710.8465075573996},{"$f":"(BZ200*'Default-Data'!$F$19/geo_dollar_index)/'Mexico-IO-Data'!$AS13","v":0},{"$f":"(CA200*'Default-Data'!$F$19/geo_dollar_index)/'Mexico-IO-Data'!$AS13","v":6.8537453268326276E-2},{"$f":"(CB200*'Default-Data'!$F$19/geo_dollar_index)/'Mexico-IO-Data'!$AS13","v":0.69962567369114459},null,"TTL_C01T05: Agriculture, hunting, forestry and fishing",{"$f":"AF200","v":0},{"$f":"AG200","v":0},null,{"$f":"MMULT(Philippines_L1,CH200:CH233)-CH200:CH233","v":502601.6048658645},{"$f":"MMULT(Philippines_L2,CH200:CH234)-CK200:CK234-CH200:CH234","v":3357808.2025789535},{"$f":"CH200*'Philippines-IO-Data'!AN13","v":0},{"$f":"CK200*'Philippines-IO-Data'!$AN13","v":354714.49732165749},{"$f":"CL200*'Philippines-IO-Data'!$AN13","v":2369795.9520009998},{"$f":"CH200*'Philippines-IO-Data'!AO13","v":0},{"$f":"CK200*'Philippines-IO-Data'!$AO13","v":102103.05839259602},{"$f":"CL200*'Philippines-IO-Data'!$AO13","v":682135.67895501526},{"$f":"(CP200*'Default-Data'!$F$19/geo_dollar_index)/'Philippines-IO-Data'!$AP13","v":0},{"$f":"(CQ200*'Default-Data'!$F$19/geo_dollar_index)/'Philippines-IO-Data'!$AP13","v":60.6933171789575},{"$f":"(CR200*'Default-Data'!$F$19/geo_dollar_index)/'Philippines-IO-Data'!$AP13","v":405.48322228222747},{"$f":"MMULT(Philippines_L1,CI200:CI233)-CI200:CI233","v":1402.334404059945},{"$f":"MMULT(Philippines_L2,CI200:CI234)-CV200:CV234-CI200:CI234","v":29809.911985645656},{"$f":"CI200*'Philippines-IO-Data'!AN13","v":0},{"$f":"CV200*'Philippines-IO-Data'!$AN13","v":989.70703315948288},{"$f":"CW200*'Philippines-IO-Data'!$AN13","v":21038.547913139209},{"$f":"CI200*'Philippines-IO-Data'!AO13","v":0},{"$f":"CV200*'Philippines-IO-Data'!$AO13","v":284.88295731147105},{"$f":"CW200*'Philippines-IO-Data'!$AO13","v":6055.8564769422728},{"$f":"(DA200*'Default-Data'!$F$19/geo_dollar_index)/'Philippines-IO-Data'!$AP13","v":0},{"$f":"(DB200*'Default-Data'!$F$19/geo_dollar_index)/'Philippines-IO-Data'!$AP13","v":0.16934352368271796},{"$f":"(DC200*'Default-Data'!$F$19/geo_dollar_index)/'Philippines-IO-Data'!$AP13","v":3.5997944011827396},null,"DOM_C01T05: Agriculture, hunting, forestry and fishing",{"$f":"AF200","v":0},{"$f":"AG200","v":0},null,{"$f":"MMULT(SouthAfrica_L1,DI200:DI233)-DI200:DI233","v":341134.07532393036},{"$f":"MMULT(SouthAfrica_L2,DI200:DI234)-DI200:DI234-DL200:DL234","v":2075543.6380722537},{"$f":"DI200*'SouthAfrica-IO-Data'!AR13","v":0},{"$f":"DL200*'SouthAfrica-IO-Data'!$AR13","v":137766.61192191479},{"$f":"DM200*'SouthAfrica-IO-Data'!$AR13","v":838205.95946558262},{"$f":"DI200*'SouthAfrica-IO-Data'!AS13","v":0},{"$f":"DL200*'SouthAfrica-IO-Data'!$AS13","v":42261.130365472323},{"$f":"DM200*'SouthAfrica-IO-Data'!$AS13","v":257127.11397859314},{"$f":"(DQ200*'Default-Data'!$F$19/geo_dollar_index)/'SouthAfrica-IO-Data'!$AT13","v":0},{"$f":"(DR200*'Default-Data'!$F$19/geo_dollar_index)/'SouthAfrica-IO-Data'!$AT13","v":3.0385550903081477},{"$f":"(DS200*'Default-Data'!$F$19/geo_dollar_index)/'SouthAfrica-IO-Data'!$AT13","v":18.487316696910252},{"$f":"MMULT(SouthAfrica_L1,DJ200:DJ233)-DJ200:DJ233","v":1705.9693582651721},{"$f":"MMULT(SouthAfrica_L2,DJ200:DJ234)-DJ200:DJ234-DW200:DW234","v":18546.361747666422},{"$f":"DJ200*'SouthAfrica-IO-Data'!AR13","v":0},{"$f":"DW200*'SouthAfrica-IO-Data'!$AR13","v":688.95380301021805},{"$f":"DX200*'SouthAfrica-IO-Data'!$AR13","v":7489.9272933317807},{"$f":"DJ200*'SouthAfrica-IO-Data'!$AS13","v":0},{"$f":"DZ200*'SouthAfrica-IO-Data'!$AS13","v":85.350507589003371},{"$f":"EA200*'SouthAfrica-IO-Data'!$AS13","v":927.88383415181818},{"$f":"(EB200*'Default-Data'!$F$19/geo_dollar_index)/'SouthAfrica-IO-Data'!$AT13","v":0},{"$f":"(EC200*'Default-Data'!$F$19/geo_dollar_index)/'SouthAfrica-IO-Data'!$AT13","v":6.1366607341585685E-3},{"$f":"(ED200*'Default-Data'!$F$19/geo_dollar_index)/'SouthAfrica-IO-Data'!$AT13","v":6.671440453897895E-2},null,"MAIZE",0,0,null,{"$f":"MMULT(Zambia_L1,EJ200:EJ226)-EJ200:EJ226","v":863.74405227205727},{"$f":"MMULT(Zambia_L2,EJ200:EJ241)-EM200:EM241-EJ200:EJ241","v":1432852.8289042755},{"$f":"EJ200*'Zambia-IO-Data'!BO11","v":0},{"$f":"EM200*'Zambia-IO-Data'!$BO11","v":341.03940322495623},{"$f":"EN200*'Zambia-IO-Data'!$BO11","v":565745.4571100066},{"$f":"EJ200*'Zambia-IO-Data'!BN11","v":0},{"$f":"EM200*'Zambia-IO-Data'!$BN11","v":270.9760981343394},{"$f":"EN200*'Zambia-IO-Data'!$BN11","v":449518.42823797069},{"$f":"(ER200*'Default-Data'!$F$19/geo_dollar_index)/'Zambia-IO-Data'!$BP11","v":0},{"$f":"(ES200*'Default-Data'!$F$19/geo_dollar_index)/'Zambia-IO-Data'!$BP11","v":2.7040760070227874},{"$f":"(ET200*'Default-Data'!$F$19/geo_dollar_index)/'Zambia-IO-Data'!$BP11","v":4485.7535586414624},{"$f":"MMULT(Zambia_L1,EK200:EK226)-EK200:EK226","v":2.8110369535985305},{"$f":"MMULT(Zambia_L2,EK200:EK241)-EX200:EX240-EK200:EK241","v":2105.3954869068857},{"$f":"EK200*'Zambia-IO-Data'!BO11","v":0},{"$f":"EX200*'Zambia-IO-Data'!$BO11","v":1.1099056052273504},{"$f":"EY200*'Zambia-IO-Data'!$BO11","v":831.29118923424051},{"$f":"EK200*'Zambia-IO-Data'!BN11","v":0},{"$f":"EX200*'Zambia-IO-Data'!$BN11","v":0.8818860441283205},{"$f":"EY200*'Zambia-IO-Data'!$BN11","v":660.51031271469628},{"$f":"(FC200*'Default-Data'!$F$19/geo_dollar_index)/'Zambia-IO-Data'!$BP11","v":0},{"$f":"(FD200*'Default-Data'!$F$19/geo_dollar_index)/'Zambia-IO-Data'!$BP11","v":8.8003588112535135E-3},{"$f":"(FE200*'Default-Data'!$F$19/geo_dollar_index)/'Zambia-IO-Data'!$BP11","v":6.5912458748205331},null,"TTL_C01T05: Agriculture, hunting, forestry and fishing",{"$f":"CH200","v":0},{"$f":"CI200","v":0},null,{"$f":"MMULT(CustomRegion1_L1,FK200:FK233)-FK200:FK233","v":899523.59819355432},{"$f":"MMULT(CustomRegion1_L2,FK200:FK234)-FK200:FK234-FN200:FN234","v":4363869.8998754863},{"$f":"FK200*CustomRegion1!C9","v":0},{"$f":"FN200*CustomRegion1!$C9","v":634844.89081038744},{"$f":"FO200*CustomRegion1!$C9","v":3079830.8300757604},{"$f":"FK200*CustomRegion1!D9","v":0},{"$f":"FN200*CustomRegion1!$D9","v":182737.39992610278},{"$f":"FO200*CustomRegion1!$D9","v":886516.19670731504},{"$f":"(FS200*'Default-Data'!$C$58/geo_dollar_index)/CustomRegion1!$E9","v":0},{"$f":"(FT200*'Default-Data'!$C$58/geo_dollar_index)/CustomRegion1!$E9","v":109.07883596724949},{"$f":"(FU200*'Default-Data'!$C$58/geo_dollar_index)/CustomRegion1!$E9","v":529.17549906068325},{"$f":"MMULT(CustomRegion1_L1,FL200:FL233)-FL200:FL233","v":3682.7590079009592},{"$f":"MMULT(CustomRegion1_L2,FL200:FL234)-FL200:FL234-FY200:FY234","v":40198.609686631979},{"$f":"FL200*CustomRegion1!C9","v":0},{"$f":"FY200*CustomRegion1!$C9","v":2599.1321905807099},{"$f":"FZ200*CustomRegion1!$C9","v":28370.441896676108},{"$f":"FL200*CustomRegion1!D9","v":0},{"$f":"FY200*CustomRegion1!$D9","v":748.14913917738886},{"$f":"FZ200*CustomRegion1!$D9","v":8166.3109556340423},{"$f":"(GD200*'Default-Data'!$C$58/geo_dollar_index)/CustomRegion1!$E9","v":0},{"$f":"(GE200*'Default-Data'!$C$58/geo_dollar_index)/CustomRegion1!$E9","v":0.44658202023433891},{"$f":"(GF200*'Default-Data'!$C$58/geo_dollar_index)/CustomRegion1!$E9","v":4.8745998003001985},null,"C01T05 Agriculture, hunting, forestry and fishing",{"$f":"BG200","v":0},{"$f":"BH200","v":0},null,{"$f":"MMULT(CustomRegion2_L1,GL200:GL236)-GL200:GL236","v":47367.298592181403},{"$f":"MMULT(CustomRegion2_L2,GL200:GL238)-GO200:GO238-GL200:GL238","v":470466.44929320179},{"$f":"GL200*CustomRegion2!C13","v":0},{"$f":"GO200*CustomRegion2!$C13","v":29186.851200842448},{"$f":"GP200*CustomRegion2!$C13","v":289892.70358719432},{"$f":"GL200*CustomRegion2!D13","v":0},{"$f":"GO200*CustomRegion2!$D13","v":5241.5065879083413},{"$f":"GP200*CustomRegion2!$D13","v":52060.241277242712},{"$f":"(GT200*'Default-Data'!$C$59/geo_dollar_index)/CustomRegion2!$E13","v":0},{"$f":"(GU200*'Default-Data'!$C$59/geo_dollar_index)/CustomRegion2!$E13","v":5.1587685087217441},{"$f":"(GV200*'Default-Data'!$C$59/geo_dollar_index)/CustomRegion2!$E13","v":51.238461452486497},{"$f":"MMULT(CustomRegion2_L1,GM200:GM236)-GM200:GM236","v":386.42989863872469},{"$f":"MMULT(CustomRegion2_L2,GM200:GM238)-GM200:GM238-GZ200:GZ238","v":4888.626162273853},{"$f":"GM200*CustomRegion2!C13","v":0},{"$f":"GZ200*CustomRegion2!$C13","v":238.1109391150033},{"$f":"HA200*CustomRegion2!$C13","v":3012.2808058634828},{"$f":"GM200*CustomRegion2!D13","v":0},{"$f":"GZ200*CustomRegion2!$D13","v":42.761038093355808},{"$f":"HA200*CustomRegion2!$D13","v":540.95899485407881},{"$f":"(HE200*'Default-Data'!$C$59/geo_dollar_index)/CustomRegion2!$E13","v":0},{"$f":"(HF200*'Default-Data'!$C$59/geo_dollar_index)/CustomRegion2!$E13","v":4.2086047783502736E-2},{"$f":"(HG200*'Default-Data'!$C$59/geo_dollar_index)/CustomRegion2!$E13","v":0.53241986447194956},null,"MAIZE",{"$f":"EJ200","v":0},{"$f":"EK200","v":0},null,{"$f":"MMULT(CustomRegion3_L1,HM200:HM226)-HM200:HM226","v":863.74405227205727},{"$f":"MMULT(CustomRegion3_L2,HM200:HM241)-HM200:HM241-HP200:HP241","v":1432852.8289042755},{"$f":"HM200*CustomRegion3!D12","v":0},{"$f":"HP200*CustomRegion3!$D12","v":341.03940322495623},{"$f":"HQ200*CustomRegion3!$D12","v":565745.4571100066},{"$f":"HM200*CustomRegion3!E12","v":0},{"$f":"HP200*CustomRegion3!E$12","v":270.9760981343394},{"$f":"HQ200*CustomRegion3!F$12","v":147974168.36720213},{"$f":"(HU200*'Default-Data'!$C$60/geo_dollar_index)/CustomRegion3!$F12","v":0},{"$f":"(HV200*'Default-Data'!$C$60/geo_dollar_index)/CustomRegion3!$F12","v":2.7150278687235883},{"$f":"(HW200*'Default-Data'!$C$60/geo_dollar_index)/CustomRegion3!$F12","v":1482617.816605272},{"$f":"MMULT(CustomRegion3_L1,HN200:HN226)-HN200:HN226","v":2.8110369535985305},{"$f":"MMULT(CustomRegion3_L2,HN200:HN241)-HN200:HN241-IA200:IA241","v":2105.3954869068857},{"$f":"HN200*CustomRegion3!D12","v":0},{"$f":"IA200*CustomRegion3!$D12","v":1.1099056052273504},{"$f":"IB200*CustomRegion3!$D12","v":831.29118923424051},{"$f":"HN200*CustomRegion3!E12","v":0},{"$f":"IA200*CustomRegion3!$E12","v":0.8818860441283205},{"$f":"IB200*CustomRegion3!$E12","v":660.51031271469628},{"$f":"(IF200*'Default-Data'!$C$60/geo_dollar_index)/CustomRegion3!$F12","v":0},{"$f":"(IG200*'Default-Data'!$C$60/geo_dollar_index)/CustomRegion3!$F12","v":8.8360014161092803E-3},{"$f":"(IH200*'Default-Data'!$C$60/geo_dollar_index)/CustomRegion3!$F12","v":6.6179412831853623}]
[null,null,null,null,null,null,null,null,null,null,null,null,null,null,null,null,null,null,null,null,null,null,null,null,null,null,"Philippines",{"$f":"SUM(CH200:CH233)","v":61462088.363236375},{"$f":"SUM(CI200:CI233)","v":684752.72601706395},200,"TTL_C10T14: Mining and quarrying",{"$f":"'Geothermal-Inputs'!B18*'Geothermal-Inputs'!C18+'Geothermal-Inputs'!B17*'Geothermal-Inputs'!C17+'Geothermal-Inputs'!B23*'Geothermal-Inputs'!C23","v":5014475.5956324572},{"$f":"'Geothermal-Inputs'!B43*'Geothermal-Inputs'!C43","v":289655.84590096516},null,3975400.3305062549,490250.33650543168,{"$f":"AF201*'Colombia-IO-Data'!AN14","v":4106270.0883165463},{"$f":"AI201*'Colombia-IO-Data'!$AN14","v":3255388.7549995449},{"$f":"AJ201*'Colombia-IO-Data'!$AN14","v":401457.79038844252},{"$f":"'Colombia-IO-Data'!$AO14*AK201","v":340585.14824014984},{"$f":"'Colombia-IO-Data'!$AO14*AL201","v":270010.748892406},{"$f":"'Colombia-IO-Data'!$AO14*AM201","v":33297.995044370386},{"$f":"(AN201*'Default-Data'!$F$19/geo_dollar_index)/'Colombia-IO-Data'!$AP14","v":33.603794947171515},{"$f":"(AO201*'Default-Data'!$F$19/geo_dollar_index)/'Colombia-IO-Data'!$AP14","v":26.640579855569328},{"$f":"(AP201*'Default-Data'!$F$19/geo_dollar_index)/'Colombia-IO-Data'!$AP14","v":3.285342897083642},75111.919942908629,367982.13325370924,{"$f":"AG201*'Colombia-IO-Data'!AN14","v":237194.32136934047},{"$f":"AT201*'Colombia-IO-Data'!$AN14","v":61507.893349053513},{"$f":"AU201*'Colombia-IO-Data'!$AN14","v":301334.40635960229},{"$f":"AV201*'Colombia-IO-Data'!$AO14","v":19673.538605059966},{"$f":"AW201*'Colombia-IO-Data'!$AO14","v":5101.6310480480543},{"$f":"AX201*'Colombia-IO-Data'!$AO14","v":24993.49074768681},{"$f":"(Calculations!AY201*'Default-Data'!$F$19/geo_dollar_index)/'Colombia-IO-Data'!$AP14","v":1.9410874507761742},{"$f":"(Calculations!AZ201*'Default-Data'!$F$19/geo_dollar_index)/'Colombia-IO-Data'!$AP14","v":0.50335184760860641},{"$f":"(Calculations!BA201*'Default-Data'!$F$19/geo_dollar_index)/'Colombia-IO-Data'!$AP14","v":2.4659799243714859},null,"DOM_C10T14: Mining and quarrying",{"$f":"AF201","v":5014475.5956324572},{"$f":"AG201","v":289655.84590096516},null,4559572.4658072433,679525.57002037391,{"$f":"BG201*'Mexico-IO-Data'!AQ14","v":4317099.1687244391},{"$f":"BJ201*'Mexico-IO-Data'!$AQ14","v":3925460.6242415272},{"$f":"BK201*'Mexico-IO-Data'!$AQ14","v":585022.14588840876},{"$f":"BG201*'Mexico-IO-Data'!AQ14","v":4317099.1687244391},{"$f":"BJ201*'Mexico-IO-Data'!$AR14","v":243621.50164906436},{"$f":"BK201*'Mexico-IO-Data'!$AR14","v":36307.57949758583},{"$f":"(BO201*'Default-Data'!$F$19/geo_dollar_index)/'Mexico-IO-Data'!$AS14","v":232.63024090414245},{"$f":"(BP201*'Default-Data'!$F$19/geo_dollar_index)/'Mexico-IO-Data'!$AS14","v":13.127733786758485},{"$f":"(BQ201*'Default-Data'!$F$19/geo_dollar_index)/'Mexico-IO-Data'!$AS14","v":1.9564621138099272},63227.770912158303,3907.7183979683323,{"$f":"BH201*'Mexico-IO-Data'!AQ14","v":249372.63881478983},{"$f":"BU201*'Mexico-IO-Data'!$AQ14","v":54434.517037618636},{"$f":"BV201*'Mexico-IO-Data'!$AQ14","v":3364.2616313003577},{"$f":"BH201*'Mexico-IO-Data'!AR14","v":15476.537036971906},{"$f":"BU201*'Mexico-IO-Data'!$AR14","v":3378.3089557314274},{"$f":"BV201*'Mexico-IO-Data'!$AR14","v":208.79243202600904},{"$f":"(BZ201*'Default-Data'!$F$19/geo_dollar_index)/'Mexico-IO-Data'!$AS14","v":0.83396521566041093},{"$f":"(CA201*'Default-Data'!$F$19/geo_dollar_index)/'Mexico-IO-Data'!$AS14","v":0.18204280131295444},{"$f":"(CB201*'Default-Data'!$F$19/geo_dollar_index)/'Mexico-IO-Data'!$AS14","v":1.1250942325590249E-2},null,"TTL_C10T14: Mining and quarrying",{"$f":"AF201","v":5014475.5956324572},{"$f":"AG201","v":289655.84590096516},null,1085278.8721645093,187632.19701297581,{"$f":"CH201*'Philippines-IO-Data'!AN14","v":2886764.9259094782},{"$f":"CK201*'Philippines-IO-Data'!$AN14","v":624780.18353980139},{"$f":"CL201*'Philippines-IO-Data'!$AN14","v":108017.28615055297},{"$f":"CH201*'Philippines-IO-Data'!AO14","v":754607.42788993986},{"$f":"CK201*'Philippines-IO-Data'!$AO14","v":163319.07148589141},{"$f":"CL201*'Philippines-IO-Data'!$AO14","v":28235.983379921523},{"$f":"(CP201*'Default-Data'!$F$19/geo_dollar_index)/'Philippines-IO-Data'!$AP14","v":241.87974350708504},{"$f":"(CQ201*'Default-Data'!$F$19/geo_dollar_index)/'Philippines-IO-Data'!$AP14","v":52.349836034988428},{"$f":"(CR201*'Default-Data'!$F$19/geo_dollar_index)/'Philippines-IO-Data'!$AP14","v":9.0506827327465071},15041.693481547583,1665.7590133748017,{"$f":"CI201*'Philippines-IO-Data'!AN14","v":166750.90357600673},{"$f":"CV201*'Philippines-IO-Data'!$AN14","v":8659.2969375766115},{"$f":"CW201*'Philippines-IO-Data'!$AN14","v":958.95465101400237},{"$f":"CI201*'Philippines-IO-Data'!AO14","v":43589.094947234233},{"$f":"CV201*'Philippines-IO-Data'!$AO14","v":2263.5614458081518},{"$f":"CW201*'Philippines-IO-Data'!$AO14","v":250.67309643745571},{"$f":"(DA201*'Default-Data'!$F$19/geo_dollar_index)/'Philippines-IO-Data'!$AP14","v":13.97192595231218},{"$f":"(DB201*'Default-Data'!$F$19/geo_dollar_index)/'Philippines-IO-Data'!$AP14","v":0.72555562228637005},{"$f":"(DC201*'Default-Data'!$F$19/geo_dollar_index)/'Philippines-IO-Data'!$AP14","v":8.035004961448898E-2},null,"DOM_C10T14: Mining and quarrying",{"$f":"AF201","v":5014475.5956324572},{"$f":"AG201","v":289655.84590096516},null,4645187.0954636885,1097000.0511005055,{"$f":"DI201*'SouthAfrica-IO-Data'!AR14","v":2986594.3888787841},{"$f":"DL201*'SouthAfrica-IO-Data'!$AR14","v":2766648.1668965435},{"$f":"DM201*'SouthAfrica-IO-Data'!$AR14","v":653367.26338245999},{"$f":"DI201*'SouthAfrica-IO-Data'!AS14","v":1011894.8269651455},{"$f":"DL201*'SouthAfrica-IO-Data'!$AS14","v":937374.34803331748},{"$f":"DM201*'SouthAfrica-IO-Data'!$AS14","v":221368.84619718554},{"$f":"(DQ201*'Default-Data'!$F$19/geo_dollar_index)/'SouthAfrica-IO-Data'!$AT14","v":66.336792671892468},{"$f":"(DR201*'Default-Data'!$F$19/geo_dollar_index)/'SouthAfrica-IO-Data'!$AT14","v":61.451453376763233},{"$f":"(DS201*'Default-Data'!$F$19/geo_dollar_index)/'SouthAfrica-IO-Data'!$AT14","v":14.512278215949971},62108.581345017767,9802.4244885618682,{"$f":"DJ201*'SouthAfrica-IO-Data'!AR14","v":172517.44625644159},{"$f":"DW201*'SouthAfrica-IO-Data'!$AR14","v":36991.533213924442},{"$f":"DX201*'SouthAfrica-IO-Data'!$AR14","v":5838.2707058033666},{"$f":"DJ201*'SouthAfrica-IO-Data'!$AS14","v":58451.027725149841},{"$f":"DZ201*'SouthAfrica-IO-Data'!$AS14","v":7464.6970329822507},{"$f":"EA201*'SouthAfrica-IO-Data'!$AS14","v":1178.1323516202012},{"$f":"(EB201*'Default-Data'!$F$19/geo_dollar_index)/'SouthAfrica-IO-Data'!$AT14","v":3.8318742267825234},{"$f":"(EC201*'Default-Data'!$F$19/geo_dollar_index)/'SouthAfrica-IO-Data'!$AT14","v":0.48936316921451245},{"$f":"(ED201*'Default-Data'!$F$19/geo_dollar_index)/'SouthAfrica-IO-Data'!$AT14","v":7.7234826650784308E-2},null,"DRSTAP",0,0,null,987.52688364577489,858439.14790604555,{"$f":"EJ201*'Zambia-IO-Data'!BO12","v":0},{"$f":"EM201*'Zambia-IO-Data'!$BO12","v":526.16342472662382},{"$f":"EN201*'Zambia-IO-Data'!$BO12","v":457384.28944246005},{"$f":"EJ201*'Zambia-IO-Data'!BN12","v":0},{"$f":"EM201*'Zambia-IO-Data'!$BN12","v":477.07966785648938},{"$f":"EN201*'Zambia-IO-Data'!$BN12","v":414716.67287280358},{"$f":"(ER201*'Default-Data'!$F$19/geo_dollar_index)/'Zambia-IO-Data'!$BP12","v":0},{"$f":"(ES201*'Default-Data'!$F$19/geo_dollar_index)/'Zambia-IO-Data'!$BP12","v":4.7607877306195912},{"$f":"(ET201*'Default-Data'!$F$19/geo_dollar_index)/'Zambia-IO-Data'!$BP12","v":4138.4661324324888},3.0550850396740574,1257.4952520112142,{"$f":"EK201*'Zambia-IO-Data'!BO12","v":0},{"$f":"EX201*'Zambia-IO-Data'!$BO12","v":1.6277774650260306},{"$f":"EY201*'Zambia-IO-Data'!$BO12","v":670.00505944000406},{"$f":"EK201*'Zambia-IO-Data'!BN12","v":0},{"$f":"EX201*'Zambia-IO-Data'!$BN12","v":1.4759283824457785},{"$f":"EY201*'Zambia-IO-Data'!$BN12","v":607.50287115810329},{"$f":"(FC201*'Default-Data'!$F$19/geo_dollar_index)/'Zambia-IO-Data'!$BP12","v":0},{"$f":"(FD201*'Default-Data'!$F$19/geo_dollar_index)/'Zambia-IO-Data'!$BP12","v":1.4728319414640728E-2},{"$f":"(FE201*'Default-Data'!$F$19/geo_dollar_index)/'Zambia-IO-Data'!$BP12","v":6.0622835349916322},null,"TTL_C10T14: Mining and quarrying",{"$f":"CH201","v":5014475.5956324572},{"$f":"CI201","v":289655.84590096516},null,7900992.3020119919,1693859.6970365355,{"$f":"FK201*CustomRegion1!C10","v":2886764.9259094782},{"$f":"FN201*CustomRegion1!$C10","v":4548493.0622046981},{"$f":"FO201*CustomRegion1!$C10","v":975131.82975217886},{"$f":"FK201*CustomRegion1!D10","v":754607.42788993986},{"$f":"FN201*CustomRegion1!$D10","v":1188987.2360715917},{"$f":"FO201*CustomRegion1!$D10","v":254901.85061434293},{"$f":"(FS201*'Default-Data'!$C$58/geo_dollar_index)/CustomRegion1!$E10","v":242.89044445947073},{"$f":"(FT201*'Default-Data'!$C$58/geo_dollar_index)/CustomRegion1!$E10","v":382.70712366773495},{"$f":"(FU201*'Default-Data'!$C$58/geo_dollar_index)/CustomRegion1!$E10","v":82.046931292981483},102886.21506366844,15603.307703337225,{"$f":"FL201*CustomRegion1!C10","v":166750.90357600673},{"$f":"FY201*CustomRegion1!$C10","v":59230.184959732942},{"$f":"FZ201*CustomRegion1!$C10","v":8982.6105536138239},{"$f":"FL201*CustomRegion1!D10","v":43589.094947234233},{"$f":"FY201*CustomRegion1!$D10","v":15482.915537997298},{"$f":"FZ201*CustomRegion1!$D10","v":2348.0764175711438},{"$f":"(GD201*'Default-Data'!$C$58/geo_dollar_index)/CustomRegion1!$E10","v":14.030308017142882},{"$f":"(GE201*'Default-Data'!$C$58/geo_dollar_index)/CustomRegion1!$E10","v":4.9835876212725321},{"$f":"(GF201*'Default-Data'!$C$58/geo_dollar_index)/CustomRegion1!$E10","v":0.75579076432287562},null,"C10T14 Mining and quarrying",{"$f":"BG201","v":5014475.5956324572},{"$f":"BH201","v":289655.84590096516},null,835869.91957682371,261257.17951168027,{"$f":"GL201*CustomRegion2!C14","v":4075042.1228162651},{"$f":"GO201*CustomRegion2!$C14","v":679274.4458537919},{"$f":"GP201*CustomRegion2!$C14","v":212312.13336157225},{"$f":"GL201*CustomRegion2!D14","v":321613.1573568029},{"$f":"GO201*CustomRegion2!$D14","v":53610.145038660427},{"$f":"GP201*CustomRegion2!$D14","v":16756.237971936309},{"$f":"(GT201*'Default-Data'!$C$59/geo_dollar_index)/CustomRegion2!$E14","v":17.33037471454724},{"$f":"(GU201*'Default-Data'!$C$59/geo_dollar_index)/CustomRegion2!$E14","v":2.8888242933123225},{"$f":"(GV201*'Default-Data'!$C$59/geo_dollar_index)/CustomRegion2!$E14","v":0.90292289421982774},10642.905789634155,2714.7285098893335,{"$f":"GM201*CustomRegion2!C14","v":235390.4711779808},{"$f":"GZ201*CustomRegion2!$C14","v":8649.0179431123852},{"$f":"HA201*CustomRegion2!$C14","v":2206.1395690996433},{"$f":"GM201*CustomRegion2!D14","v":18577.641743476346},{"$f":"GZ201*CustomRegion2!$D14","v":682.60348847575165},{"$f":"HA201*CustomRegion2!$D14","v":174.11439955804937},{"$f":"(HE201*'Default-Data'!$C$59/geo_dollar_index)/CustomRegion2!$E14","v":1.0010706507566012},{"$f":"(HF201*'Default-Data'!$C$59/geo_dollar_index)/CustomRegion2!$E14","v":3.6782619013368788E-2},{"$f":"(HG201*'Default-Data'!$C$59/geo_dollar_index)/CustomRegion2!$E14","v":9.382289618803644E-3},null,"DRSTAP",{"$f":"EJ201","v":0},{"$f":"EK201","v":0},null,987.52688364577489,858439.14790604555,{"$f":"HM201*CustomRegion3!D13","v":0},{"$f":"HP201*CustomRegion3!$D13","v":526.16342472662382},{"$f":"HQ201*CustomRegion3!$D13","v":457384.28944246005},{"$f":"HM201*CustomRegion3!E13","v":0},{"$f":"HP201*CustomRegion3!E$12","v":309.80957961932211},{"$f":"HQ201*CustomRegion3!F$12","v":88653081.770014063},{"$f":"(HU201*'Default-Data'!$C$60/geo_dollar_index)/CustomRegion3!$F13","v":0},{"$f":"(HV201*'Default-Data'!$C$60/geo_dollar_index)/CustomRegion3!$F13","v":3.1041174791991941},{"$f":"(HW201*'Default-Data'!$C$60/geo_dollar_index)/CustomRegion3!$F13","v":888253.94310051575},3.0550850396740574,1257.4952520112142,{"$f":"HN201*CustomRegion3!D13","v":0},{"$f":"IA201*CustomRegion3!$D13","v":1.6277774650260306},{"$f":"IB201*CustomRegion3!$D13","v":670.00505944000406},{"$f":"HN201*CustomRegion3!E13","v":0},{"$f":"IA201*CustomRegion3!$E13","v":1.4759283824457785},{"$f":"IB201*CustomRegion3!$E13","v":607.50287115810329},{"$f":"(IF201*'Default-Data'!$C$60/geo_dollar_index)/CustomRegion3!$F13","v":0},{"$f":"(IG201*'Default-Data'!$C$60/geo_dollar_index)/CustomRegion3!$F13","v":1.4787971035710347E-2},{"$f":"(IH201*'Default-Data'!$C$60/geo_dollar_index)/CustomRegion3!$F13","v":6.0868365766568227}]
[null,null,null,null,null,null,null,null,null,null,null,null,null,null,null,null,null,null,null,null,null,null,null,null,null,null,"South Africa",{"$f":"SUM(DI200:DI236)","v":61462088.363236375},{"$f":"SUM(DJ200:DJ236)","v":684752.72601706395},201,"TTL_C15T16: Food products, beverages and tobacco",0,0,null,310849.7259234612,3383345.5487527177,{"$f":"AF202*'Colombia-IO-Data'!AN15","v":0},{"$f":"AI202*'Colombia-IO-Data'!$AN15","v":71168.374929327663},{"$f":"AJ202*'Colombia-IO-Data'!$AN15","v":774609.67293370876},{"$f":"'Colombia-IO-Data'!$AO15*AK202","v":0},{"$f":"'Colombia-IO-Data'!$AO15*AL202","v":24975.501756963451},{"$f":"'Colombia-IO-Data'!$AO15*AM202","v":271837.95142896194},{"$f":"(AN202*'Default-Data'!$F$19/geo_dollar_index)/'Colombia-IO-Data'!$AP15","v":0},{"$f":"(AO202*'Default-Data'!$F$19/geo_dollar_index)/'Colombia-IO-Data'!$AP15","v":6.0752471304946933},{"$f":"(AP202*'Default-Data'!$F$19/geo_dollar_index)/'Colombia-IO-Data'!$AP15","v":66.12410635225396},1215.0876997944069,23398.276283904808,{"$f":"AG202*'Colombia-IO-Data'!AN15","v":0},{"$f":"AT202*'Colombia-IO-Data'!$AN15","v":278.1917105896859},{"$f":"AU202*'Colombia-IO-Data'!$AN15","v":5356.9849364543124},{"$f":"AV202*'Colombia-IO-Data'!$AO15","v":0},{"$f":"AW202*'Colombia-IO-Data'!$AO15","v":97.627317800988408},{"$f":"AX202*'Colombia-IO-Data'!$AO15","v":1879.9556239032052},{"$f":"(Calculations!AY202*'Default-Data'!$F$19/geo_dollar_index)/'Colombia-IO-Data'!$AP15","v":0},{"$f":"(Calculations!AZ202*'Default-Data'!$F$19/geo_dollar_index)/'Colombia-IO-Data'!$AP15","v":2.3747674345040236E-2},{"$f":"(Calculations!BA202*'Default-Data'!$F$19/geo_dollar_index)/'Colombia-IO-Data'!$AP15","v":0.45729591824480359},null,"DOM_C15T16: Food products, beverages and tobacco",0,0,null,108759.66750743429,3354858.0505995695,{"$f":"BG202*'Mexico-IO-Data'!AQ15","v":0},{"$f":"BJ202*'Mexico-IO-Data'!$AQ15","v":42253.842933116124},{"$f":"BK202*'Mexico-IO-Data'!$AQ15","v":1303384.3186698288},{"$f":"BG202*'Mexico-IO-Data'!AQ15","v":0},{"$f":"BJ202*'Mexico-IO-Data'!$AR15","v":7295.3594813721093},{"$f":"BK202*'Mexico-IO-Data'!$AR15","v":225036.5052506816},{"$f":"(BO202*'Default-Data'!$F$19/geo_dollar_index)/'Mexico-IO-Data'!$AS15","v":0},{"$f":"(BP202*'Default-Data'!$F$19/geo_dollar_index)/'Mexico-IO-Data'!$AS15","v":1.8956853492041943},{"$f":"(BQ202*'Default-Data'!$F$19/geo_dollar_index)/'Mexico-IO-Data'!$AS15","v":58.475309836218699},1182.8569237161987,19292.637547850307,{"$f":"BH202*'Mexico-IO-Data'!AQ15","v":0},{"$f":"BU202*'Mexico-IO-Data'!$AQ15","v":459.54765964723799},{"$f":"BV202*'Mexico-IO-Data'!$AQ15","v":7495.3160063373962},{"$f":"BH202*'Mexico-IO-Data'!AR15","v":0},{"$f":"BU202*'Mexico-IO-Data'!$AR15","v":79.343442944506549},{"$f":"BV202*'Mexico-IO-Data'!$AR15","v":1294.1077283613847},{"$f":"(BZ202*'Default-Data'!$F$19/geo_dollar_index)/'Mexico-IO-Data'!$AS15","v":0},{"$f":"(CA202*'Default-Data'!$F$19/geo_dollar_index)/'Mexico-IO-Data'!$AS15","v":2.0617243431166856E-2},{"$f":"(CB202*'Default-Data'!$F$19/geo_dollar_index)/'Mexico-IO-Data'!$AS15","v":0.33627144312910495},null,"TTL_C15T16: Food products, beverages and tobacco",0,0,null,384508.7769385234,2614417.3273730185,{"$f":"CH202*'Philippines-IO-Data'!AN15","v":0},{"$f":"CK202*'Philippines-IO-Data'!$AN15","v":128054.10073035373},{"$f":"CL202*'Philippines-IO-Data'!$AN15","v":870687.17249108094},{"$f":"CH202*'Philippines-IO-Data'!AO15","v":0},{"$f":"CK202*'Philippines-IO-Data'!$AO15","v":22406.265769737103},{"$f":"CL202*'Philippines-IO-Data'!$AO15","v":152348.48456916105},{"$f":"(CP202*'Default-Data'!$F$19/geo_dollar_index)/'Philippines-IO-Data'!$AP15","v":0},{"$f":"(CQ202*'Default-Data'!$F$19/geo_dollar_index)/'Philippines-IO-Data'!$AP15","v":7.1820414390700194},{"$f":"(CR202*'Default-Data'!$F$19/geo_dollar_index)/'Philippines-IO-Data'!$AP15","v":48.833354946323674},774.31720121615501,23210.244814721253,{"$f":"CI202*'Philippines-IO-Data'!AN15","v":0},{"$f":"CV202*'Philippines-IO-Data'!$AN15","v":257.87315876441556},{"$f":"CW202*'Philippines-IO-Data'!$AN15","v":7729.776810675211},{"$f":"CI202*'Philippines-IO-Data'!AO15","v":0},{"$f":"CV202*'Philippines-IO-Data'!$AO15","v":45.12135493672249},{"$f":"CW202*'Philippines-IO-Data'!$AO15","v":1352.5176669307996},{"$f":"(DA202*'Default-Data'!$F$19/geo_dollar_index)/'Philippines-IO-Data'!$AP15","v":0},{"$f":"(DB202*'Default-Data'!$F$19/geo_dollar_index)/'Philippines-IO-Data'!$AP15","v":1.4463072261698422E-2},{"$f":"(DC202*'Default-Data'!$F$19/geo_dollar_index)/'Philippines-IO-Data'!$AP15","v":0.43353221062347863},null,"DOM_C15T16: Food products, beverages and tobacco",0,0,null,463855.77582938911,4324977.0908823516,{"$f":"DI202*'SouthAfrica-IO-Data'!AR15","v":0},{"$f":"DL202*'SouthAfrica-IO-Data'!$AR15","v":121508.66508259355},{"$f":"DM202*'SouthAfrica-IO-Data'!$AR15","v":1132943.0831949064},{"$f":"DI202*'SouthAfrica-IO-Data'!AS15","v":0},{"$f":"DL202*'SouthAfrica-IO-Data'!$AS15","v":62906.867443713913},{"$f":"DM202*'SouthAfrica-IO-Data'!$AS15","v":586541.71130404528},{"$f":"(DQ202*'Default-Data'!$F$19/geo_dollar_index)/'SouthAfrica-IO-Data'!$AT15","v":0},{"$f":"(DR202*'Default-Data'!$F$19/geo_dollar_index)/'SouthAfrica-IO-Data'!$AT15","v":5.0707759592296799},{"$f":"(DS202*'Default-Data'!$F$19/geo_dollar_index)/'SouthAfrica-IO-Data'!$AT15","v":47.279760217390901},2149.3609452728961,38646.544551756466,{"$f":"DJ202*'SouthAfrica-IO-Data'!AR15","v":0},{"$f":"DW202*'SouthAfrica-IO-Data'!$AR15","v":563.03272018936877},{"$f":"DX202*'SouthAfrica-IO-Data'!$AR15","v":10123.599366942244},{"$f":"DJ202*'SouthAfrica-IO-Data'!$AS15","v":0},{"$f":"DZ202*'SouthAfrica-IO-Data'!$AS15","v":76.356976760926699},{"$f":"EA202*'SouthAfrica-IO-Data'!$AS15","v":1372.9352023068038},{"$f":"(EB202*'Default-Data'!$F$19/geo_dollar_index)/'SouthAfrica-IO-Data'!$AT15","v":0},{"$f":"(EC202*'Default-Data'!$F$19/geo_dollar_index)/'SouthAfrica-IO-Data'!$AT15","v":6.1549579213303687E-3},{"$f":"(ED202*'Default-Data'!$F$19/geo_dollar_index)/'SouthAfrica-IO-Data'!$AT15","v":0.11066910657515426},null,"GRNDNUT",0,0,null,3721.0489331457834,459665.75825713179,{"$f":"EJ202*'Zambia-IO-Data'!BO13","v":0},{"$f":"EM202*'Zambia-IO-Data'!$BO13","v":1678.3946591390411},{"$f":"EN202*'Zambia-IO-Data'!$BO13","v":207334.15967084293},{"$f":"EJ202*'Zambia-IO-Data'!BN13","v":0},{"$f":"EM202*'Zambia-IO-Data'!$BN13","v":1383.9586675162604},{"$f":"EN202*'Zambia-IO-Data'!$BN13","v":170962.11894278473},{"$f":"(ER202*'Default-Data'!$F$19/geo_dollar_index)/'Zambia-IO-Data'!$BP13","v":0},{"$f":"(ES202*'Default-Data'!$F$19/geo_dollar_index)/'Zambia-IO-Data'!$BP13","v":13.810551754592929},{"$f":"(ET202*'Default-Data'!$F$19/geo_dollar_index)/'Zambia-IO-Data'!$BP13","v":1706.0344699249913},44.004189216486672,712.13548919745313,{"$f":"EK202*'Zambia-IO-Data'!BO13","v":0},{"$f":"EX202*'Zambia-IO-Data'!$BO13","v":19.848273292728951},{"$f":"EY202*'Zambia-IO-Data'!$BO13","v":321.2116860398047},{"$f":"EK202*'Zambia-IO-Data'!BN13","v":0},{"$f":"EX202*'Zambia-IO-Data'!$BN13","v":16.366347276625923},{"$f":"EY202*'Zambia-IO-Data'!$BN13","v":264.8624354121427},{"$f":"(FC202*'Default-Data'!$F$19/geo_dollar_index)/'Zambia-IO-Data'!$BP13","v":0},{"$f":"(FD202*'Default-Data'!$F$19/geo_dollar_index)/'Zambia-IO-Data'!$BP13","v":0.16332011309494376},{"$f":"(FE202*'Default-Data'!$F$19/geo_dollar_index)/'Zambia-IO-Data'!$BP13","v":2.6430676420933983},null,"TTL_C15T16: Food products, beverages and tobacco",0,0,null,614192.5951221009,3605266.1473536296,{"$f":"FK202*CustomRegion1!C11","v":0},{"$f":"FN202*CustomRegion1!$C11","v":204546.38531223356},{"$f":"FO202*CustomRegion1!$C11","v":1200672.4997769538},{"$f":"FK202*CustomRegion1!D11","v":0},{"$f":"FN202*CustomRegion1!$D11","v":35790.50296246061},{"$f":"FO202*CustomRegion1!$D11","v":210087.6659082273},{"$f":"(FS202*'Default-Data'!$C$58/geo_dollar_index)/CustomRegion1!$E11","v":0},{"$f":"(FT202*'Default-Data'!$C$58/geo_dollar_index)/CustomRegion1!$E11","v":11.52012404156717},{"$f":"(FU202*'Default-Data'!$C$58/geo_dollar_index)/CustomRegion1!$E11","v":67.622295596253579},2060.4250940462225,33210.588307875805,{"$f":"FL202*CustomRegion1!C11","v":0},{"$f":"FY202*CustomRegion1!$C11","v":686.18949258088878},{"$f":"FZ202*CustomRegion1!$C11","v":11060.220924868461},{"$f":"FL202*CustomRegion1!D11","v":0},{"$f":"FY202*CustomRegion1!$D11","v":120.06600375527053},{"$f":"FZ202*CustomRegion1!$D11","v":1935.2621126631973},{"$f":"(GD202*'Default-Data'!$C$58/geo_dollar_index)/CustomRegion1!$E11","v":0},{"$f":"(GE202*'Default-Data'!$C$58/geo_dollar_index)/CustomRegion1!$E11","v":3.8646432487600121E-2},{"$f":"(GF202*'Default-Data'!$C$58/geo_dollar_index)/CustomRegion1!$E11","v":0.62291551516359633},null,"C15T16 Food products, beverages and tobacco",0,0,null,93210.551491744976,970327.18382399634,{"$f":"GL202*CustomRegion2!C15","v":0},{"$f":"GO202*CustomRegion2!$C15","v":36885.846391327083},{"$f":"GP202*CustomRegion2!$C15","v":383983.77521702275},{"$f":"GL202*CustomRegion2!D15","v":0},{"$f":"GO202*CustomRegion2!$D15","v":8963.3800017749109},{"$f":"GP202*CustomRegion2!$D15","v":93309.299596160505},{"$f":"(GT202*'Default-Data'!$C$59/geo_dollar_index)/CustomRegion2!$E15","v":0},{"$f":"(GU202*'Default-Data'!$C$59/geo_dollar_index)/CustomRegion2!$E15","v":2.3291173234302032},{"$f":"(GV202*'Default-Data'!$C$59/geo_dollar_index)/CustomRegion2!$E15","v":24.246244841066805},377.75666433279099,10082.688922735988,{"$f":"GM202*CustomRegion2!C15","v":0},{"$f":"GZ202*CustomRegion2!$C15","v":149.48816492211682},{"$f":"HA202*CustomRegion2!$C15","v":3989.9829886588773},{"$f":"GM202*CustomRegion2!D15","v":0},{"$f":"GZ202*CustomRegion2!$D15","v":36.326107682321883},{"$f":"HA202*CustomRegion2!$D15","v":969.57877416027384},{"$f":"(HE202*'Default-Data'!$C$59/geo_dollar_index)/CustomRegion2!$E15","v":0},{"$f":"(HF202*'Default-Data'!$C$59/geo_dollar_index)/CustomRegion2!$E15","v":9.4392703063948015E-3},{"$f":"(HG202*'Default-Data'!$C$59/geo_dollar_index)/CustomRegion2!$E15","v":0.2519432087984374},null,"GRNDNUT",0,0,null,3721.0489331457834,459665.75825713179,{"$f":"HM202*CustomRegion3!D14","v":0},{"$f":"HP202*CustomRegion3!$D14","v":1678.3946591390411},{"$f":"HQ202*CustomRegion3!$D14","v":207334.15967084293},{"$f":"HM202*CustomRegion3!E14","v":0},{"$f":"HP202*CustomRegion3!E$12","v":1167.3774403637772},{"$f":"HQ202*CustomRegion3!F$12","v":47470791.788849212},{"$f":"(HU202*'Default-Data'!$C$60/geo_dollar_index)/CustomRegion3!$F14","v":0},{"$f":"(HV202*'Default-Data'!$C$60/geo_dollar_index)/CustomRegion3!$F14","v":11.696464395673628},{"$f":"(HW202*'Default-Data'!$C$60/geo_dollar_index)/CustomRegion3!$F14","v":475630.5945227854},44.004189216486672,712.13548919745313,{"$f":"HN202*CustomRegion3!D14","v":0},{"$f":"IA202*CustomRegion3!$D14","v":19.848273292728951},{"$f":"IB202*CustomRegion3!$D14","v":321.2116860398047},{"$f":"HN202*CustomRegion3!E14","v":0},{"$f":"IA202*CustomRegion3!$E14","v":16.366347276625923},{"$f":"IB202*CustomRegion3!$E14","v":264.8624354121427},{"$f":"(IF202*'Default-Data'!$C$60/geo_dollar_index)/CustomRegion3!$F14","v":0},{"$f":"(IG202*'Default-Data'!$C$60/geo_dollar_index)/CustomRegion3!$F14","v":0.1639815809260734},{"$f":"(IH202*'Default-Data'!$C$60/geo_dollar_index)/CustomRegion3!$F14","v":2.6537724119322976}]
[null,null,null,null,null,null,null,null,null,null,null,null,null,null,null,null,null,null,null,null,null,null,null,null,null,null,"Zambia",{"$f":"SUM(EJ200:EJ241)","v":61462088.363236375},{"$f":"SUM(EK200:EK241)","v":684752.72601706395},202,"TTL_C17T19: Textiles, textile products, leather and footwear",0,0,null,45788.768830842237,875607.48358653346,{"$f":"AF203*'Colombia-IO-Data'!AN16","v":0},{"$f":"AI203*'Colombia-IO-Data'!$AN16","v":15083.457485596959},{"$f":"AJ203*'Colombia-IO-Data'!$AN16","v":288437.28691503848},{"$f":"'Colombia-IO-Data'!$AO16*AK203","v":0},{"$f":"'Colombia-IO-Data'!$AO16*AL203","v":7727.5267857844456},{"$f":"'Colombia-IO-Data'!$AO16*AM203","v":147771.61421930708},{"$f":"(AN203*'Default-Data'!$F$19/geo_dollar_index)/'Colombia-IO-Data'!$AP16","v":0},{"$f":"(AO203*'Default-Data'!$F$19/geo_dollar_index)/'Colombia-IO-Data'!$AP16","v":1.8797073783740335},{"$f":"(AP203*'Default-Data'!$F$19/geo_dollar_index)/'Colombia-IO-Data'!$AP16","v":35.945186767033078},489.49946714285227,6230.4933012544934,{"$f":"AG203*'Colombia-IO-Data'!AN16","v":0},{"$f":"AT203*'Colombia-IO-Data'!$AN16","v":161.24793460046757},{"$f":"AU203*'Colombia-IO-Data'!$AN16","v":2052.4111746911144},{"$f":"AV203*'Colombia-IO-Data'!$AO16","v":0},{"$f":"AW203*'Colombia-IO-Data'!$AO16","v":82.610219504869491},{"$f":"AX203*'Colombia-IO-Data'!$AO16","v":1051.4871900566245},{"$f":"(Calculations!AY203*'Default-Data'!$F$19/geo_dollar_index)/'Colombia-IO-Data'!$AP16","v":0},{"$f":"(Calculations!AZ203*'Default-Data'!$F$19/geo_dollar_index)/'Colombia-IO-Data'!$AP16","v":2.0094791443241614E-2},{"$f":"(Calculations!BA203*'Default-Data'!$F$19/geo_dollar_index)/'Colombia-IO-Data'!$AP16","v":0.25577242036238079},null,"DOM_C17T19: Textiles, textile products, leather and footwear",0,0,null,97092.081173745202,355966.91551490396,{"$f":"BG203*'Mexico-IO-Data'!AQ16","v":0},{"$f":"BJ203*'Mexico-IO-Data'!$AQ16","v":37620.43113723617},{"$f":"BK203*'Mexico-IO-Data'!$AQ16","v":137927.09632311453},{"$f":"BG203*'Mexico-IO-Data'!AQ16","v":0},{"$f":"BJ203*'Mexico-IO-Data'!$AR16","v":12793.21641398367},{"$f":"BK203*'Mexico-IO-Data'!$AR16","v":46903.534576122052},{"$f":"(BO203*'Default-Data'!$F$19/geo_dollar_index)/'Mexico-IO-Data'!$AS16","v":0},{"$f":"(BP203*'Default-Data'!$F$19/geo_dollar_index)/'Mexico-IO-Data'!$AS16","v":3.0903707609567923},{"$f":"(BQ203*'Default-Data'!$F$19/geo_dollar_index)/'Mexico-IO-Data'!$AS16","v":11.33016961091475},785.47778324609044,2047.0435936411527,{"$f":"BH203*'Mexico-IO-Data'!AQ16","v":0},{"$f":"BU203*'Mexico-IO-Data'!$AQ16","v":304.35039085792221},{"$f":"BV203*'Mexico-IO-Data'!$AQ16","v":793.17140613854713},{"$f":"BH203*'Mexico-IO-Data'!AR16","v":0},{"$f":"BU203*'Mexico-IO-Data'!$AR16","v":103.49749586128654},{"$f":"BV203*'Mexico-IO-Data'!$AR16","v":269.72613405460419},{"$f":"(BZ203*'Default-Data'!$F$19/geo_dollar_index)/'Mexico-IO-Data'!$AS16","v":0},{"$f":"(CA203*'Default-Data'!$F$19/geo_dollar_index)/'Mexico-IO-Data'!$AS16","v":2.5001190059784979E-2},{"$f":"(CB203*'Default-Data'!$F$19/geo_dollar_index)/'Mexico-IO-Data'!$AS16","v":6.5155917884508086E-2},null,"TTL_C17T19: Textiles, textile products, leather and footwear",0,0,null,158464.23095452416,365743.20716633776,{"$f":"CH203*'Philippines-IO-Data'!AN16","v":0},{"$f":"CK203*'Philippines-IO-Data'!$AN16","v":60802.361063007113},{"$f":"CL203*'Philippines-IO-Data'!$AN16","v":140334.82764228177},{"$f":"CH203*'Philippines-IO-Data'!AO16","v":0},{"$f":"CK203*'Philippines-IO-Data'!$AO16","v":21001.139692276931},{"$f":"CL203*'Philippines-IO-Data'!$AO16","v":48471.659117860676},{"$f":"(CP203*'Default-Data'!$F$19/geo_dollar_index)/'Philippines-IO-Data'!$AP16","v":0},{"$f":"(CQ203*'Default-Data'!$F$19/geo_dollar_index)/'Philippines-IO-Data'!$AP16","v":6.7316462764335432},{"$f":"(CR203*'Default-Data'!$F$19/geo_dollar_index)/'Philippines-IO-Data'!$AP16","v":15.536969345206341},138.0903622038185,3246.9909408769845,{"$f":"CI203*'Philippines-IO-Data'!AN16","v":0},{"$f":"CV203*'Philippines-IO-Data'!$AN16","v":52.984954468668313},{"$f":"CW203*'Philippines-IO-Data'!$AN16","v":1245.8629582607336},{"$f":"CI203*'Philippines-IO-Data'!AO16","v":0},{"$f":"CV203*'Philippines-IO-Data'!$AO16","v":18.301006917023216},{"$f":"CW203*'Philippines-IO-Data'!$AO16","v":430.32115145584163},{"$f":"(DA203*'Default-Data'!$F$19/geo_dollar_index)/'Philippines-IO-Data'!$AP16","v":0},{"$f":"(DB203*'Default-Data'!$F$19/geo_dollar_index)/'Philippines-IO-Data'!$AP16","v":5.8661533075401876E-3},{"$f":"(DC203*'Default-Data'!$F$19/geo_dollar_index)/'Philippines-IO-Data'!$AP16","v":0.13793393212529242},null,"DOM_C17T19: Textiles, textile products, leather and footwear",0,0,null,158459.96509576688,1284647.5477446429,{"$f":"DI203*'SouthAfrica-IO-Data'!AR16","v":0},{"$f":"DL203*'SouthAfrica-IO-Data'!$AR16","v":21090.276814508572},{"$f":"DM203*'SouthAfrica-IO-Data'!$AR16","v":170980.55256190331},{"$f":"DI203*'SouthAfrica-IO-Data'!AS16","v":0},{"$f":"DL203*'SouthAfrica-IO-Data'!$AS16","v":21195.005928827191},{"$f":"DM203*'SouthAfrica-IO-Data'!$AS16","v":171829.59982633742},{"$f":"(DQ203*'Default-Data'!$F$19/geo_dollar_index)/'SouthAfrica-IO-Data'!$AT16","v":0},{"$f":"(DR203*'Default-Data'!$F$19/geo_dollar_index)/'SouthAfrica-IO-Data'!$AT16","v":1.7084800259016411},{"$f":"(DS203*'Default-Data'!$F$19/geo_dollar_index)/'SouthAfrica-IO-Data'!$AT16","v":13.850783535884291},2141.0536282276671,11479.17957574415,{"$f":"DJ203*'SouthAfrica-IO-Data'!AR16","v":0},{"$f":"DW203*'SouthAfrica-IO-Data'!$AR16","v":284.96417796595682},{"$f":"DX203*'SouthAfrica-IO-Data'!$AR16","v":1527.824865476792},{"$f":"DJ203*'SouthAfrica-IO-Data'!$AS16","v":0},{"$f":"DZ203*'SouthAfrica-IO-Data'!$AS16","v":38.115731237487005},{"$f":"EA203*'SouthAfrica-IO-Data'!$AS16","v":204.35607859953564},{"$f":"(EB203*'Default-Data'!$F$19/geo_dollar_index)/'SouthAfrica-IO-Data'!$AT16","v":0},{"$f":"(EC203*'Default-Data'!$F$19/geo_dollar_index)/'SouthAfrica-IO-Data'!$AT16","v":3.0724202536462865E-3},{"$f":"(ED203*'Default-Data'!$F$19/geo_dollar_index)/'SouthAfrica-IO-Data'!$AT16","v":1.647266717599884E-2},null,"SUGAR",0,0,null,560.86882796964517,77624.376995839819,{"$f":"EJ203*'Zambia-IO-Data'!BO14","v":0},{"$f":"EM203*'Zambia-IO-Data'!$BO14","v":152.22018602566428},{"$f":"EN203*'Zambia-IO-Data'!$BO14","v":21067.30935503609},{"$f":"EJ203*'Zambia-IO-Data'!BN14","v":0},{"$f":"EM203*'Zambia-IO-Data'!$BN14","v":51.025889886369718},{"$f":"EN203*'Zambia-IO-Data'!$BN14","v":7061.9950968324074},{"$f":"(ER203*'Default-Data'!$F$19/geo_dollar_index)/'Zambia-IO-Data'!$BP14","v":0},{"$f":"(ES203*'Default-Data'!$F$19/geo_dollar_index)/'Zambia-IO-Data'!$BP14","v":0.50918839531859761},{"$f":"(ET203*'Default-Data'!$F$19/geo_dollar_index)/'Zambia-IO-Data'!$BP14","v":70.471793027257888},1.7351446263656527,125.40395259127784,{"$f":"EK203*'Zambia-IO-Data'!BO14","v":0},{"$f":"EX203*'Zambia-IO-Data'!$BO14","v":0.47091944610818359},{"$f":"EY203*'Zambia-IO-Data'!$BO14","v":34.034719064171306},{"$f":"EK203*'Zambia-IO-Data'!BN14","v":0},{"$f":"EX203*'Zambia-IO-Data'!$BN14","v":0.15785740662815309},{"$f":"EY203*'Zambia-IO-Data'!$BN14","v":11.408814248782576},{"$f":"(FC203*'Default-Data'!$F$19/geo_dollar_index)/'Zambia-IO-Data'!$BP14","v":0},{"$f":"(FD203*'Default-Data'!$F$19/geo_dollar_index)/'Zambia-IO-Data'!$BP14","v":1.5752622786029233E-3},{"$f":"(FE203*'Default-Data'!$F$19/geo_dollar_index)/'Zambia-IO-Data'!$BP14","v":0.11384878995275187},null,"TTL_C17T19: Textiles, textile products, leather and footwear",0,0,null,242981.5684620403,570081.52274115942,{"$f":"FK203*CustomRegion1!C12","v":0},{"$f":"FN203*CustomRegion1!$C12","v":93231.469135293606},{"$f":"FO203*CustomRegion1!$C12","v":218738.96949655606},{"$f":"FK203*CustomRegion1!D12","v":0},{"$f":"FN203*CustomRegion1!$D12","v":32202.155850453593},{"$f":"FO203*CustomRegion1!$D12","v":75552.455105839312},{"$f":"(FS203*'Default-Data'!$C$58/geo_dollar_index)/CustomRegion1!$E12","v":0},{"$f":"(FT203*'Default-Data'!$C$58/geo_dollar_index)/CustomRegion1!$E12","v":10.365119210316871},{"$f":"(FU203*'Default-Data'!$C$58/geo_dollar_index)/CustomRegion1!$E12","v":24.318564491175437},398.03359064199333,5251.4133436669472,{"$f":"FL203*CustomRegion1!C12","v":0},{"$f":"FY203*CustomRegion1!$C12","v":152.72457353713423},{"$f":"FZ203*CustomRegion1!$C12","v":2014.9552254752239},{"$f":"FL203*CustomRegion1!D12","v":0},{"$f":"FY203*CustomRegion1!$D12","v":52.751078201931726},{"$f":"FZ203*CustomRegion1!$D12","v":695.96567343886124},{"$f":"(GD203*'Default-Data'!$C$58/geo_dollar_index)/CustomRegion1!$E12","v":0},{"$f":"(GE203*'Default-Data'!$C$58/geo_dollar_index)/CustomRegion1!$E12","v":1.697933568718097E-2},{"$f":"(GF203*'Default-Data'!$C$58/geo_dollar_index)/CustomRegion1!$E12","v":0.22401503815405724},null,"C17T19 Textiles, textile products, leather and footwear",0,0,null,140565.35318349506,220778.0677825021,{"$f":"GL203*CustomRegion2!C16","v":0},{"$f":"GO203*CustomRegion2!$C16","v":48936.988677953421},{"$f":"GP203*CustomRegion2!$C16","v":76862.566476881664},{"$f":"GL203*CustomRegion2!D16","v":0},{"$f":"GO203*CustomRegion2!$D16","v":21665.752095524986},{"$f":"GP203*CustomRegion2!$D16","v":34029.174162572745},{"$f":"(GT203*'Default-Data'!$C$59/geo_dollar_index)/CustomRegion2!$E16","v":0},{"$f":"(GU203*'Default-Data'!$C$59/geo_dollar_index)/CustomRegion2!$E16","v":5.2336491952847091},{"$f":"(GV203*'Default-Data'!$C$59/geo_dollar_index)/CustomRegion2!$E16","v":8.2201974428082547},561.61467415023901,2294.1092607969867,{"$f":"GM203*CustomRegion2!C16","v":0},{"$f":"GZ203*CustomRegion2!$C16","v":195.52279653425893},{"$f":"HA203*CustomRegion2!$C16","v":798.68044563624665},{"$f":"GM203*CustomRegion2!D16","v":0},{"$f":"GZ203*CustomRegion2!$D16","v":86.563324658418352},{"$f":"HA203*CustomRegion2!$D16","v":353.59782050696475},{"$f":"(HE203*'Default-Data'!$C$59/geo_dollar_index)/CustomRegion2!$E16","v":0},{"$f":"(HF203*'Default-Data'!$C$59/geo_dollar_index)/CustomRegion2!$E16","v":2.0910516858229682E-2},{"$f":"(HG203*'Default-Data'!$C$59/geo_dollar_index)/CustomRegion2!$E16","v":8.5416233906458389E-2},null,"SUGAR",0,0,null,560.86882796964517,77624.376995839819,{"$f":"HM203*CustomRegion3!D15","v":0},{"$f":"HP203*CustomRegion3!$D15","v":152.22018602566428},{"$f":"HQ203*CustomRegion3!$D15","v":21067.30935503609},{"$f":"HM203*CustomRegion3!E15","v":0},{"$f":"HP203*CustomRegion3!E$12","v":175.95727133357329},{"$f":"HQ203*CustomRegion3!F$12","v":8016456.6794800563},{"$f":"(HU203*'Default-Data'!$C$60/geo_dollar_index)/CustomRegion3!$F15","v":0},{"$f":"(HV203*'Default-Data'!$C$60/geo_dollar_index)/CustomRegion3!$F15","v":1.7629927460922046},{"$f":"(HW203*'Default-Data'!$C$60/geo_dollar_index)/CustomRegion3!$F15","v":80320.380443346425},1.7351446263656527,125.40395259127784,{"$f":"HN203*CustomRegion3!D15","v":0},{"$f":"IA203*CustomRegion3!$D15","v":0.47091944610818359},{"$f":"IB203*CustomRegion3!$D15","v":34.034719064171306},{"$f":"HN203*CustomRegion3!E15","v":0},{"$f":"IA203*CustomRegion3!$E15","v":0.15785740662815309},{"$f":"IB203*CustomRegion3!$E15","v":11.408814248782576},{"$f":"(IF203*'Default-Data'!$C$60/geo_dollar_index)/CustomRegion3!$F15","v":0},{"$f":"(IG203*'Default-Data'!$C$60/geo_dollar_index)/CustomRegion3!$F15","v":1.5816422969799739E-3},{"$f":"(IH203*'Default-Data'!$C$60/geo_dollar_index)/CustomRegion3!$F15","v":0.11430989245102773}]
[null,null,null,null,null,null,null,null,null,null,null,null,null,null,null,null,null,null,null,null,null,null,null,null,null,null,null,null,null,203,"TTL_C20: Wood and products of wood and cork",0,0,null,31197.925524821094,32798.73853513159,{"$f":"AF204*'Colombia-IO-Data'!AN17","v":0},{"$f":"AI204*'Colombia-IO-Data'!$AN17","v":12953.190168038207},{"$f":"AJ204*'Colombia-IO-Data'!$AN17","v":13617.838057191102},{"$f":"'Colombia-IO-Data'!$AO17*AK204","v":0},{"$f":"'Colombia-IO-Data'!$AO17*AL204","v":5286.9697065235414},{"$f":"'Colombia-IO-Data'!$AO17*AM204","v":5558.2521635762332},{"$f":"(AN204*'Default-Data'!$F$19/geo_dollar_index)/'Colombia-IO-Data'!$AP17","v":0},{"$f":"(AO204*'Default-Data'!$F$19/geo_dollar_index)/'Colombia-IO-Data'!$AP17","v":1.2860461363749858},{"$f":"(AP204*'Default-Data'!$F$19/geo_dollar_index)/'Colombia-IO-Data'!$AP17","v":1.3520351196915432},530.11421488757344,745.16189233038676,{"$f":"AG204*'Colombia-IO-Data'!AN17","v":0},{"$f":"AT204*'Colombia-IO-Data'!$AN17","v":220.10021886730519},{"$f":"AU204*'Colombia-IO-Data'!$AN17","v":309.38671514076776},{"$f":"AV204*'Colombia-IO-Data'!$AO17","v":0},{"$f":"AW204*'Colombia-IO-Data'!$AO17","v":89.836030696280858},{"$f":"AX204*'Colombia-IO-Data'!$AO17","v":126.27917673795729},{"$f":"(Calculations!AY204*'Default-Data'!$F$19/geo_dollar_index)/'Colombia-IO-Data'!$AP17","v":0},{"$f":"(Calculations!AZ204*'Default-Data'!$F$19/geo_dollar_index)/'Colombia-IO-Data'!$AP17","v":2.1852457380578751E-2},{"$f":"(Calculations!BA204*'Default-Data'!$F$19/geo_dollar_index)/'Colombia-IO-Data'!$AP17","v":3.0717188931133666E-2},null,"DOM_C20: Wood and products of wood and cork",0,0,null,35431.611132458274,38677.668934765054,{"$f":"BG204*'Mexico-IO-Data'!AQ17","v":0},{"$f":"BJ204*'Mexico-IO-Data'!$AQ17","v":16382.243804632282},{"$f":"BK204*'Mexico-IO-Data'!$AQ17","v":17883.098793204997},{"$f":"BG204*'Mexico-IO-Data'!AQ17","v":0},{"$f":"BJ204*'Mexico-IO-Data'!$AR17","v":5954.6316432336607},{"$f":"BK204*'Mexico-IO-Data'!$AR17","v":6500.1636664070138},{"$f":"(BO204*'Default-Data'!$F$19/geo_dollar_index)/'Mexico-IO-Data'!$AS17","v":0},{"$f":"(BP204*'Default-Data'!$F$19/geo_dollar_index)/'Mexico-IO-Data'!$AS17","v":2.6672604045188875},{"$f":"(BQ204*'Default-Data'!$F$19/geo_dollar_index)/'Mexico-IO-Data'!$AS17","v":2.9116207700271035},662.32705376192087,222.42200316666583,{"$f":"BH204*'Mexico-IO-Data'!AQ17","v":0},{"$f":"BU204*'Mexico-IO-Data'!$AQ17","v":306.23510832087783},{"$f":"BV204*'Mexico-IO-Data'!$AQ17","v":102.83956520546192},{"$f":"BH204*'Mexico-IO-Data'!AR17","v":0},{"$f":"BU204*'Mexico-IO-Data'!$AR17","v":111.31059261619369},{"$f":"BV204*'Mexico-IO-Data'!$AR17","v":37.380210943734049},{"$f":"(BZ204*'Default-Data'!$F$19/geo_dollar_index)/'Mexico-IO-Data'!$AS17","v":0},{"$f":"(CA204*'Default-Data'!$F$19/geo_dollar_index)/'Mexico-IO-Data'!$AS17","v":4.9859395858024486E-2},{"$f":"(CB204*'Default-Data'!$F$19/geo_dollar_index)/'Mexico-IO-Data'!$AS17","v":1.6743732028509137E-2},null,"TTL_C20: Wood and products of wood and cork",0,0,null,7959.5929849086579,11375.726280440525,{"$f":"CH204*'Philippines-IO-Data'!AN17","v":0},{"$f":"CK204*'Philippines-IO-Data'!$AN17","v":1155.1832064502059},{"$f":"CL204*'Philippines-IO-Data'!$AN17","v":1650.9698404496951},{"$f":"CH204*'Philippines-IO-Data'!AO17","v":0},{"$f":"CK204*'Philippines-IO-Data'!$AO17","v":299.56128530313276},{"$f":"CL204*'Philippines-IO-Data'!$AO17","v":428.12832167253032},{"$f":"(CP204*'Default-Data'!$F$19/geo_dollar_index)/'Philippines-IO-Data'!$AP17","v":0},{"$f":"(CQ204*'Default-Data'!$F$19/geo_dollar_index)/'Philippines-IO-Data'!$AP17","v":9.6020532234069811E-2},{"$f":"(CR204*'Default-Data'!$F$19/geo_dollar_index)/'Philippines-IO-Data'!$AP17","v":0.13723104863125479},93.047959295680528,100.99129513480744,{"$f":"CI204*'Philippines-IO-Data'!AN17","v":0},{"$f":"CV204*'Philippines-IO-Data'!$AN17","v":13.504137733754481},{"$f":"CW204*'Philippines-IO-Data'!$AN17","v":14.656961525366832},{"$f":"CI204*'Philippines-IO-Data'!AO17","v":0},{"$f":"CV204*'Philippines-IO-Data'!$AO17","v":3.5018833669379523},{"$f":"CW204*'Philippines-IO-Data'!$AO17","v":3.8008328104678974},{"$f":"(DA204*'Default-Data'!$F$19/geo_dollar_index)/'Philippines-IO-Data'!$AP17","v":0},{"$f":"(DB204*'Default-Data'!$F$19/geo_dollar_index)/'Philippines-IO-Data'!$AP17","v":1.1224838495894319E-3},{"$f":"(DC204*'Default-Data'!$F$19/geo_dollar_index)/'Philippines-IO-Data'!$AP17","v":1.2183082637815955E-3},null,"DOM_C20: Wood and products of wood and cork",0,0,null,136411.6702025054,132031.34028004381,{"$f":"DI204*'SouthAfrica-IO-Data'!AR17","v":0},{"$f":"DL204*'SouthAfrica-IO-Data'!$AR17","v":36155.279969519477},{"$f":"DM204*'SouthAfrica-IO-Data'!$AR17","v":34994.293856891745},{"$f":"DI204*'SouthAfrica-IO-Data'!AS17","v":0},{"$f":"DL204*'SouthAfrica-IO-Data'!$AS17","v":30099.560196005437},{"$f":"DM204*'SouthAfrica-IO-Data'!$AS17","v":29133.029957179326},{"$f":"(DQ204*'Default-Data'!$F$19/geo_dollar_index)/'SouthAfrica-IO-Data'!$AT17","v":0},{"$f":"(DR204*'Default-Data'!$F$19/geo_dollar_index)/'SouthAfrica-IO-Data'!$AT17","v":2.4262553903491599},{"$f":"(DS204*'Default-Data'!$F$19/geo_dollar_index)/'SouthAfrica-IO-Data'!$AT17","v":2.3483456406180485},1976.4417118592787,1179.7877693081236,{"$f":"DJ204*'SouthAfrica-IO-Data'!AR17","v":0},{"$f":"DW204*'SouthAfrica-IO-Data'!$AR17","v":523.8467011629341},{"$f":"DX204*'SouthAfrica-IO-Data'!$AR17","v":312.69727172629132},{"$f":"DJ204*'SouthAfrica-IO-Data'!$AS17","v":0},{"$f":"DZ204*'SouthAfrica-IO-Data'!$AS17","v":115.58802331006876},{"$f":"EA204*'SouthAfrica-IO-Data'!$AS17","v":68.997398385928634},{"$f":"(EB204*'Default-Data'!$F$19/geo_dollar_index)/'SouthAfrica-IO-Data'!$AT17","v":0},{"$f":"(EC204*'Default-Data'!$F$19/geo_dollar_index)/'SouthAfrica-IO-Data'!$AT17","v":9.3172811426353377E-3},{"$f":"(ED204*'Default-Data'!$F$19/geo_dollar_index)/'SouthAfrica-IO-Data'!$AT17","v":5.561719462470565E-3},null,"COTTON",0,0,null,58883.684057802944,212287.32829150837,{"$f":"EJ204*'Zambia-IO-Data'!BO15","v":0},{"$f":"EM204*'Zambia-IO-Data'!$BO15","v":13073.551576326159},{"$f":"EN204*'Zambia-IO-Data'!$BO15","v":47132.739396792953},{"$f":"EJ204*'Zambia-IO-Data'!BN15","v":0},{"$f":"EM204*'Zambia-IO-Data'!$BN15","v":8874.35011902519},{"$f":"EN204*'Zambia-IO-Data'!$BN15","v":31993.78753615266},{"$f":"(ER204*'Default-Data'!$F$19/geo_dollar_index)/'Zambia-IO-Data'!$BP15","v":0},{"$f":"(ES204*'Default-Data'!$F$19/geo_dollar_index)/'Zambia-IO-Data'!$BP15","v":88.557320737857452},{"$f":"(ET204*'Default-Data'!$F$19/geo_dollar_index)/'Zambia-IO-Data'!$BP15","v":319.26665800392846},652.55472939989261,343.52392587832821,{"$f":"EK204*'Zambia-IO-Data'!BO15","v":0},{"$f":"EX204*'Zambia-IO-Data'!$BO15","v":144.88237357585214},{"$f":"EY204*'Zambia-IO-Data'!$BO15","v":76.270325719832996},{"$f":"EK204*'Zambia-IO-Data'!BN15","v":0},{"$f":"EX204*'Zambia-IO-Data'!$BN15","v":98.346413496065821},{"$f":"EY204*'Zambia-IO-Data'!$BN15","v":51.772433082035825},{"$f":"(FC204*'Default-Data'!$F$19/geo_dollar_index)/'Zambia-IO-Data'!$BP15","v":0},{"$f":"(FD204*'Default-Data'!$F$19/geo_dollar_index)/'Zambia-IO-Data'!$BP15","v":0.98140086502984769},{"$f":"(FE204*'Default-Data'!$F$19/geo_dollar_index)/'Zambia-IO-Data'!$BP15","v":0.51663816508613625},null,"TTL_C20: Wood and products of wood and cork",0,0,null,25424.023190967648,29064.135420985829,{"$f":"FK204*CustomRegion1!C13","v":0},{"$f":"FN204*CustomRegion1!$C13","v":3689.812366824613},{"$f":"FO204*CustomRegion1!$C13","v":4218.105273972461},{"$f":"FK204*CustomRegion1!D13","v":0},{"$f":"FN204*CustomRegion1!$D13","v":956.83951165630151},{"$f":"FO204*CustomRegion1!$D13","v":1093.8360515973966},{"$f":"(FS204*'Default-Data'!$C$58/geo_dollar_index)/CustomRegion1!$E13","v":0},{"$f":"(FT204*'Default-Data'!$C$58/geo_dollar_index)/CustomRegion1!$E13","v":0.30798421228432277},{"$f":"(FU204*'Default-Data'!$C$58/geo_dollar_index)/CustomRegion1!$E13","v":0.35208018755022674},277.68826312685235,267.72975878610873,{"$f":"FL204*CustomRegion1!C13","v":0},{"$f":"FY204*CustomRegion1!$C13","v":40.301158463839087},{"$f":"FZ204*CustomRegion1!$C13","v":38.855871374712812},{"$f":"FL204*CustomRegion1!D13","v":0},{"$f":"FY204*CustomRegion1!$D13","v":10.450867672956649},{"$f":"FZ204*CustomRegion1!$D13","v":10.076076855679172},{"$f":"(GD204*'Default-Data'!$C$58/geo_dollar_index)/CustomRegion1!$E13","v":0},{"$f":"(GE204*'Default-Data'!$C$58/geo_dollar_index)/CustomRegion1!$E13","v":3.3638893552500057E-3},{"$f":"(GF204*'Default-Data'!$C$58/geo_dollar_index)/CustomRegion1!$E13","v":3.2432529755599669E-3},null,"C20 Wood and products of wood and cork",0,0,null,39102.198242680424,29692.808653257198,{"$f":"GL204*CustomRegion2!C17","v":0},{"$f":"GO204*CustomRegion2!$C17","v":16568.011300408714},{"$f":"GP204*CustomRegion2!$C17","v":12581.154293547361},{"$f":"GL204*CustomRegion2!D17","v":0},{"$f":"GO204*CustomRegion2!$D17","v":5502.412389002674},{"$f":"GP204*CustomRegion2!$D17","v":4178.3348645507886},{"$f":"(GT204*'Default-Data'!$C$59/geo_dollar_index)/CustomRegion2!$E17","v":0},{"$f":"(GU204*'Default-Data'!$C$59/geo_dollar_index)/CustomRegion2!$E17","v":2.4646976629021196},{"$f":"(GV204*'Default-Data'!$C$59/geo_dollar_index)/CustomRegion2!$E17","v":1.8716031164918505},666.68819931944938,308.5385608937238,{"$f":"GM204*CustomRegion2!C17","v":0},{"$f":"GZ204*CustomRegion2!$C17","v":282.48277888677086},{"$f":"HA204*CustomRegion2!$C17","v":130.73102263389893},{"$f":"GM204*CustomRegion2!D17","v":0},{"$f":"GZ204*CustomRegion2!$D17","v":93.815528855181739},{"$f":"HA204*CustomRegion2!$D17","v":43.417160063743395},{"$f":"(HE204*'Default-Data'!$C$59/geo_dollar_index)/CustomRegion2!$E17","v":0},{"$f":"(HF204*'Default-Data'!$C$59/geo_dollar_index)/CustomRegion2!$E17","v":4.2022825329383076E-2},{"$f":"(HG204*'Default-Data'!$C$59/geo_dollar_index)/CustomRegion2!$E17","v":1.9447864931539865E-2},null,"COTTON",0,0,null,58883.684057802944,212287.32829150837,{"$f":"HM204*CustomRegion3!D16","v":0},{"$f":"HP204*CustomRegion3!$D16","v":13073.551576326159},{"$f":"HQ204*CustomRegion3!$D16","v":47132.739396792953},{"$f":"HM204*CustomRegion3!E16","v":0},{"$f":"HP204*CustomRegion3!E$12","v":18473.147117814126},{"$f":"HQ204*CustomRegion3!F$12","v":21923424.531222235},{"$f":"(HU204*'Default-Data'!$C$60/geo_dollar_index)/CustomRegion3!$F16","v":0},{"$f":"(HV204*'Default-Data'!$C$60/geo_dollar_index)/CustomRegion3!$F16","v":185.09052862304938},{"$f":"(HW204*'Default-Data'!$C$60/geo_dollar_index)/CustomRegion3!$F16","v":219660.36484375715},652.55472939989261,343.52392587832821,{"$f":"HN204*CustomRegion3!D16","v":0},{"$f":"IA204*CustomRegion3!$D16","v":144.88237357585214},{"$f":"IB204*CustomRegion3!$D16","v":76.270325719832996},{"$f":"HN204*CustomRegion3!E16","v":0},{"$f":"IA204*CustomRegion3!$E16","v":98.346413496065821},{"$f":"IB204*CustomRegion3!$E16","v":51.772433082035825},{"$f":"(IF204*'Default-Data'!$C$60/geo_dollar_index)/CustomRegion3!$F16","v":0},{"$f":"(IG204*'Default-Data'!$C$60/geo_dollar_index)/CustomRegion3!$F16","v":0.98537566696549572},{"$f":"(IH204*'Default-Data'!$C$60/geo_dollar_index)/CustomRegion3!$F16","v":0.51873061726524816}]
[null,null,null,null,null,null,null,null,null,null,null,null,null,null,null,null,null,null,null,null,null,null,null,null,null,null,null,null,null,204,"TTL_C21T22: Pulp, paper, paper products, printing and publishing",0,0,null,798548.73528044869,489371.02547370095,{"$f":"AF205*'Colombia-IO-Data'!AN18","v":0},{"$f":"AI205*'Colombia-IO-Data'!$AN18","v":254944.90685655299},{"$f":"AJ205*'Colombia-IO-Data'!$AN18","v":156236.73921901852},{"$f":"'Colombia-IO-Data'!$AO18*AK205","v":0},{"$f":"'Colombia-IO-Data'!$AO18*AL205","v":104643.86533747987},{"$f":"'Colombia-IO-Data'!$AO18*AM205","v":64128.428769910533},{"$f":"(AN205*'Default-Data'!$F$19/geo_dollar_index)/'Colombia-IO-Data'!$AP18","v":0},{"$f":"(AO205*'Default-Data'!$F$19/geo_dollar_index)/'Colombia-IO-Data'!$AP18","v":25.454437264234219},{"$f":"(AP205*'Default-Data'!$F$19/geo_dollar_index)/'Colombia-IO-Data'!$AP18","v":15.599128164018106},2459.705528453193,5668.3076618310943,{"$f":"AG205*'Colombia-IO-Data'!AN18","v":0},{"$f":"AT205*'Colombia-IO-Data'!$AN18","v":785.28631896939294},{"$f":"AU205*'Colombia-IO-Data'!$AN18","v":1809.6655908825599},{"$f":"AV205*'Colombia-IO-Data'!$AO18","v":0},{"$f":"AW205*'Colombia-IO-Data'!$AO18","v":322.32609322074097},{"$f":"AX205*'Colombia-IO-Data'!$AO18","v":742.78950983216328},{"$f":"(Calculations!AY205*'Default-Data'!$F$19/geo_dollar_index)/'Colombia-IO-Data'!$AP18","v":0},{"$f":"(Calculations!AZ205*'Default-Data'!$F$19/geo_dollar_index)/'Colombia-IO-Data'!$AP18","v":7.8405258560096808E-2},{"$f":"(Calculations!BA205*'Default-Data'!$F$19/geo_dollar_index)/'Colombia-IO-Data'!$AP18","v":0.18068224943313652},null,"DOM_C21T22: Pulp, paper, paper products, printing and publishing",0,0,null,737179.25672556495,336508.61114784458,{"$f":"BG205*'Mexico-IO-Data'!AQ18","v":0},{"$f":"BJ205*'Mexico-IO-Data'!$AQ18","v":329999.48666327517},{"$f":"BK205*'Mexico-IO-Data'!$AQ18","v":150638.62408421093},{"$f":"BG205*'Mexico-IO-Data'!AQ18","v":0},{"$f":"BJ205*'Mexico-IO-Data'!$AR18","v":102674.19186830118},{"$f":"BK205*'Mexico-IO-Data'!$AR18","v":46868.857731833603},{"$f":"(BO205*'Default-Data'!$F$19/geo_dollar_index)/'Mexico-IO-Data'!$AS18","v":0},{"$f":"(BP205*'Default-Data'!$F$19/geo_dollar_index)/'Mexico-IO-Data'!$AS18","v":14.404719098495388},{"$f":"(BQ205*'Default-Data'!$F$19/geo_dollar_index)/'Mexico-IO-Data'!$AS18","v":6.5754861841074002},3277.3333921120702,1935.1455616566591,{"$f":"BH205*'Mexico-IO-Data'!AQ18","v":0},{"$f":"BU205*'Mexico-IO-Data'!$AQ18","v":1467.1035940774148},{"$f":"BV205*'Mexico-IO-Data'!$AQ18","v":866.27104078044874},{"$f":"BH205*'Mexico-IO-Data'!AR18","v":0},{"$f":"BU205*'Mexico-IO-Data'!$AR18","v":456.4663946361901},{"$f":"BV205*'Mexico-IO-Data'!$AR18","v":269.52671942123681},{"$f":"(BZ205*'Default-Data'!$F$19/geo_dollar_index)/'Mexico-IO-Data'!$AS18","v":0},{"$f":"(CA205*'Default-Data'!$F$19/geo_dollar_index)/'Mexico-IO-Data'!$AS18","v":6.4040145561323453E-2},{"$f":"(CB205*'Default-Data'!$F$19/geo_dollar_index)/'Mexico-IO-Data'!$AS18","v":3.7813364898765155E-2},null,"TTL_C21T22: Pulp, paper, paper products, printing and publishing",0,0,null,575447.81413121591,301802.51070639351,{"$f":"CH205*'Philippines-IO-Data'!AN18","v":0},{"$f":"CK205*'Philippines-IO-Data'!$AN18","v":152343.60205961741},{"$f":"CL205*'Philippines-IO-Data'!$AN18","v":79898.959493074421},{"$f":"CH205*'Philippines-IO-Data'!AO18","v":0},{"$f":"CK205*'Philippines-IO-Data'!$AO18","v":45164.683617077222},{"$f":"CL205*'Philippines-IO-Data'!$AO18","v":23687.317209594392},{"$f":"(CP205*'Default-Data'!$F$19/geo_dollar_index)/'Philippines-IO-Data'!$AP18","v":0},{"$f":"(CQ205*'Default-Data'!$F$19/geo_dollar_index)/'Philippines-IO-Data'!$AP18","v":14.476960715089357},{"$f":"(CR205*'Default-Data'!$F$19/geo_dollar_index)/'Philippines-IO-Data'!$AP18","v":7.5926660661804455},1348.5623462002363,2679.3389432709673,{"$f":"CI205*'Philippines-IO-Data'!AN18","v":0},{"$f":"CV205*'Philippines-IO-Data'!$AN18","v":357.01733567670908},{"$f":"CW205*'Philippines-IO-Data'!$AN18","v":709.32608610697264},{"$f":"CI205*'Philippines-IO-Data'!AO18","v":0},{"$f":"CV205*'Philippines-IO-Data'!$AO18","v":105.84346696318963},{"$f":"CW205*'Philippines-IO-Data'!$AO18","v":210.29099894739323},{"$f":"(DA205*'Default-Data'!$F$19/geo_dollar_index)/'Philippines-IO-Data'!$AP18","v":0},{"$f":"(DB205*'Default-Data'!$F$19/geo_dollar_index)/'Philippines-IO-Data'!$AP18","v":3.3926767342516699E-2},{"$f":"(DC205*'Default-Data'!$F$19/geo_dollar_index)/'Philippines-IO-Data'!$AP18","v":6.7406085611262878E-2},null,"DOM_C21T22: Pulp, paper, paper products, printing and publishing",0,0,null,2138947.415954629,1248236.2359179873,{"$f":"DI205*'SouthAfrica-IO-Data'!AR18","v":0},{"$f":"DL205*'SouthAfrica-IO-Data'!$AR18","v":491334.4310683097},{"$f":"DM205*'SouthAfrica-IO-Data'!$AR18","v":286730.49007139407},{"$f":"DI205*'SouthAfrica-IO-Data'!AS18","v":0},{"$f":"DL205*'SouthAfrica-IO-Data'!$AS18","v":409592.87583070813},{"$f":"DM205*'SouthAfrica-IO-Data'!$AS18","v":239028.16206333126},{"$f":"(DQ205*'Default-Data'!$F$19/geo_dollar_index)/'SouthAfrica-IO-Data'!$AT18","v":0},{"$f":"(DR205*'Default-Data'!$F$19/geo_dollar_index)/'SouthAfrica-IO-Data'!$AT18","v":33.016327028085797},{"$f":"(DS205*'Default-Data'!$F$19/geo_dollar_index)/'SouthAfrica-IO-Data'!$AT18","v":19.267503009176036},5092.0120233469243,11153.820306752126,{"$f":"DJ205*'SouthAfrica-IO-Data'!AR18","v":0},{"$f":"DW205*'SouthAfrica-IO-Data'!$AR18","v":1169.6785118803609},{"$f":"DX205*'SouthAfrica-IO-Data'!$AR18","v":2562.1274809181482},{"$f":"DJ205*'SouthAfrica-IO-Data'!$AS18","v":0},{"$f":"DZ205*'SouthAfrica-IO-Data'!$AS18","v":223.98492917818535},{"$f":"EA205*'SouthAfrica-IO-Data'!$AS18","v":490.62878092577307},{"$f":"(EB205*'Default-Data'!$F$19/geo_dollar_index)/'SouthAfrica-IO-Data'!$AT18","v":0},{"$f":"(EC205*'Default-Data'!$F$19/geo_dollar_index)/'SouthAfrica-IO-Data'!$AT18","v":1.8054903069569386E-2},{"$f":"(ED205*'Default-Data'!$F$19/geo_dollar_index)/'SouthAfrica-IO-Data'!$AT18","v":3.954844245663007E-2},null,"TOBAC",0,0,null,8938.7314077266037,65936.530038965313,{"$f":"EJ205*'Zambia-IO-Data'!BO16","v":0},{"$f":"EM205*'Zambia-IO-Data'!$BO16","v":2567.6336830961709},{"$f":"EN205*'Zambia-IO-Data'!$BO16","v":18940.143489286056},{"$f":"EJ205*'Zambia-IO-Data'!BN16","v":0},{"$f":"EM205*'Zambia-IO-Data'!$BN16","v":1793.511057776949},{"$f":"EN205*'Zambia-IO-Data'!$BN16","v":13229.829865354784},{"$f":"(ER205*'Default-Data'!$F$19/geo_dollar_index)/'Zambia-IO-Data'!$BP16","v":0},{"$f":"(ES205*'Default-Data'!$F$19/geo_dollar_index)/'Zambia-IO-Data'!$BP16","v":17.897483405567268},{"$f":"(ET205*'Default-Data'!$F$19/geo_dollar_index)/'Zambia-IO-Data'!$BP16","v":132.02074191120647},37.391171430573351,106.56597804290679,{"$f":"EK205*'Zambia-IO-Data'!BO16","v":0},{"$f":"EX205*'Zambia-IO-Data'!$BO16","v":10.740543242251967},{"$f":"EY205*'Zambia-IO-Data'!$BO16","v":30.61087554980524},{"$f":"EK205*'Zambia-IO-Data'!BN16","v":0},{"$f":"EX205*'Zambia-IO-Data'!$BN16","v":7.5023486404344988},{"$f":"EY205*'Zambia-IO-Data'!$BN16","v":21.381922253258356},{"$f":"(FC205*'Default-Data'!$F$19/geo_dollar_index)/'Zambia-IO-Data'!$BP16","v":0},{"$f":"(FD205*'Default-Data'!$F$19/geo_dollar_index)/'Zambia-IO-Data'!$BP16","v":7.4866090015295331E-2},{"$f":"(FE205*'Default-Data'!$F$19/geo_dollar_index)/'Zambia-IO-Data'!$BP16","v":0.21337063802726414},null,"TTL_C21T22: Pulp, paper, paper products, printing and publishing",0,0,null,977178.14358585875,559745.34835052968,{"$f":"FK205*CustomRegion1!C14","v":0},{"$f":"FN205*CustomRegion1!$C14","v":258697.37375326015},{"$f":"FO205*CustomRegion1!$C14","v":148186.54360965316},{"$f":"FK205*CustomRegion1!D14","v":0},{"$f":"FN205*CustomRegion1!$D14","v":76694.950625904326},{"$f":"FO205*CustomRegion1!$D14","v":43932.257528078371},{"$f":"(FS205*'Default-Data'!$C$58/geo_dollar_index)/CustomRegion1!$E14","v":0},{"$f":"(FT205*'Default-Data'!$C$58/geo_dollar_index)/CustomRegion1!$E14","v":24.686307021139005},{"$f":"(FU205*'Default-Data'!$C$58/geo_dollar_index)/CustomRegion1!$E14","v":14.140764008831383},3132.6749964425753,5156.1997260488433,{"$f":"FL205*CustomRegion1!C14","v":0},{"$f":"FY205*CustomRegion1!$C14","v":829.34191653969549},{"$f":"FZ205*CustomRegion1!$C14","v":1365.0482631357729},{"$f":"FL205*CustomRegion1!D14","v":0},{"$f":"FY205*CustomRegion1!$D14","v":245.87160054307751},{"$f":"FZ205*CustomRegion1!$D14","v":404.69026656230284},{"$f":"(GD205*'Default-Data'!$C$58/geo_dollar_index)/CustomRegion1!$E14","v":0},{"$f":"(GE205*'Default-Data'!$C$58/geo_dollar_index)/CustomRegion1!$E14","v":7.9140305447112202E-2},{"$f":"(GF205*'Default-Data'!$C$58/geo_dollar_index)/CustomRegion1!$E14","v":0.13026031162798982},null,"C21T22 Pulp, paper, paper products, printing and publishing",0,0,null,217959.80586067325,126699.60354264005,{"$f":"GL205*CustomRegion2!C18","v":0},{"$f":"GO205*CustomRegion2!$C18","v":76124.579231890195},{"$f":"GP205*CustomRegion2!$C18","v":44251.067165549481},{"$f":"GL205*CustomRegion2!D18","v":0},{"$f":"GO205*CustomRegion2!$D18","v":29288.672119943989},{"$f":"GP205*CustomRegion2!$D18","v":17025.447105873176},{"$f":"(GT205*'Default-Data'!$C$59/geo_dollar_index)/CustomRegion2!$E18","v":0},{"$f":"(GU205*'Default-Data'!$C$59/geo_dollar_index)/CustomRegion2!$E18","v":4.109066621112401},{"$f":"(GV205*'Default-Data'!$C$59/geo_dollar_index)/CustomRegion2!$E18","v":2.388592290075866},965.2548206112923,1316.5380816396187,{"$f":"GM205*CustomRegion2!C18","v":0},{"$f":"GZ205*CustomRegion2!$C18","v":337.12462158072736},{"$f":"HA205*CustomRegion2!$C18","v":459.81371249541405},{"$f":"GM205*CustomRegion2!D18","v":0},{"$f":"GZ205*CustomRegion2!$D18","v":129.70754787307538},{"$f":"HA205*CustomRegion2!$D18","v":176.91175698335584},{"$f":"(HE205*'Default-Data'!$C$59/geo_dollar_index)/CustomRegion2!$E18","v":0},{"$f":"(HF205*'Default-Data'!$C$59/geo_dollar_index)/CustomRegion2!$E18","v":1.8197375193007282E-2},{"$f":"(HG205*'Default-Data'!$C$59/geo_dollar_index)/CustomRegion2!$E18","v":2.4819909640343446E-2},null,"TOBAC",0,0,null,8938.7314077266037,65936.530038965313,{"$f":"HM205*CustomRegion3!D17","v":0},{"$f":"HP205*CustomRegion3!$D17","v":2567.6336830961709},{"$f":"HQ205*CustomRegion3!$D17","v":18940.143489286056},{"$f":"HM205*CustomRegion3!E17","v":0},{"$f":"HP205*CustomRegion3!E$12","v":2804.2827649754981},{"$f":"HQ205*CustomRegion3!F$12","v":6809424.5275672777},{"$f":"(HU205*'Default-Data'!$C$60/geo_dollar_index)/CustomRegion3!$F17","v":0},{"$f":"(HV205*'Default-Data'!$C$60/geo_dollar_index)/CustomRegion3!$F17","v":28.097333717290223},{"$f":"(HW205*'Default-Data'!$C$60/geo_dollar_index)/CustomRegion3!$F17","v":68226.59817453564},37.391171430573351,106.56597804290679,{"$f":"HN205*CustomRegion3!D17","v":0},{"$f":"IA205*CustomRegion3!$D17","v":10.740543242251967},{"$f":"IB205*CustomRegion3!$D17","v":30.61087554980524},{"$f":"HN205*CustomRegion3!E17","v":0},{"$f":"IA205*CustomRegion3!$E17","v":7.5023486404344988},{"$f":"IB205*CustomRegion3!$E17","v":21.381922253258356},{"$f":"(IF205*'Default-Data'!$C$60/geo_dollar_index)/CustomRegion3!$F17","v":0},{"$f":"(IG205*'Default-Data'!$C$60/geo_dollar_index)/CustomRegion3!$F17","v":7.5169307477303729E-2},{"$f":"(IH205*'Default-Data'!$C$60/geo_dollar_index)/CustomRegion3!$F17","v":0.2142348170342955}]
[null,null,null,null,null,null,null,null,null,null,null,null,null,null,null,null,null,null,null,null,null,null,null,null,null,null,null,null,null,205,"TTL_C23: Coke, refined petroleum products and nuclear fuel",{"$f":"'Geothermal-Inputs'!B20*'Geothermal-Inputs'!C20","v":421665.03412288858},0,null,719456.66023216734,757930.54919531371,{"$f":"AF206*'Colombia-IO-Data'!AN19","v":227624.96006832848},{"$f":"AI206*'Colombia-IO-Data'!$AN19","v":388380.0654633189},{"$f":"AJ206*'Colombia-IO-Data'!$AN19","v":409149.19908884313},{"$f":"'Colombia-IO-Data'!$AO19*AK206","v":11929.933385626824},{"$f":"'Colombia-IO-Data'!$AO19*AL206","v":20355.185599557888},{"$f":"'Colombia-IO-Data'!$AO19*AM206","v":21443.705859178404},{"$f":"(AN206*'Default-Data'!$F$19/geo_dollar_index)/'Colombia-IO-Data'!$AP19","v":2.9019354355039018},{"$f":"(AO206*'Default-Data'!$F$19/geo_dollar_index)/'Colombia-IO-Data'!$AP19","v":4.9513633042396181},{"$f":"(AP206*'Default-Data'!$F$19/geo_dollar_index)/'Colombia-IO-Data'!$AP19","v":5.2161439540178005},5814.1259803505309,10783.561133864867,{"$f":"AG206*'Colombia-IO-Data'!AN19","v":0},{"$f":"AT206*'Colombia-IO-Data'!$AN19","v":3138.6054972815746},{"$f":"AU206*'Colombia-IO-Data'!$AN19","v":5821.2265041046949},{"$f":"AV206*'Colombia-IO-Data'!$AO19","v":0},{"$f":"AW206*'Colombia-IO-Data'!$AO19","v":164.49582020834441},{"$f":"AX206*'Colombia-IO-Data'!$AO19","v":305.09327446237779},{"$f":"(Calculations!AY206*'Default-Data'!$F$19/geo_dollar_index)/'Colombia-IO-Data'!$AP19","v":0},{"$f":"(Calculations!AZ206*'Default-Data'!$F$19/geo_dollar_index)/'Colombia-IO-Data'!$AP19","v":4.0013320630104432E-2},{"$f":"(Calculations!BA206*'Default-Data'!$F$19/geo_dollar_index)/'Colombia-IO-Data'!$AP19","v":7.4213405530241611E-2},null,"DOM_C23: Coke, refined petroleum products and nuclear fuel",421665.03412288858,0,null,4105304.9240658036,941509.07215143228,{"$f":"BG206*'Mexico-IO-Data'!AQ19","v":52898.635593826024},{"$f":"BJ206*'Mexico-IO-Data'!$AQ19","v":515017.87344408245},{"$f":"BK206*'Mexico-IO-Data'!$AQ19","v":118114.00349952898},{"$f":"BG206*'Mexico-IO-Data'!AQ19","v":52898.635593826024},{"$f":"BJ206*'Mexico-IO-Data'!$AR19","v":131827.31820730161},{"$f":"BK206*'Mexico-IO-Data'!$AR19","v":30233.227091605611},{"$f":"(BO206*'Default-Data'!$F$19/geo_dollar_index)/'Mexico-IO-Data'!$AS19","v":1.210435575518569},{"$f":"(BP206*'Default-Data'!$F$19/geo_dollar_index)/'Mexico-IO-Data'!$AS19","v":3.016495113570536},{"$f":"(BQ206*'Default-Data'!$F$19/geo_dollar_index)/'Mexico-IO-Data'!$AS19","v":0.69180184372623765},56050.045728299781,5414.2956283304447,{"$f":"BH206*'Mexico-IO-Data'!AQ19","v":0},{"$f":"BU206*'Mexico-IO-Data'!$AQ19","v":7031.5788696259651},{"$f":"BV206*'Mexico-IO-Data'!$AQ19","v":679.23310747370977},{"$f":"BH206*'Mexico-IO-Data'!AR19","v":0},{"$f":"BU206*'Mexico-IO-Data'!$AR19","v":1799.84857408364},{"$f":"BV206*'Mexico-IO-Data'!$AR19","v":173.86091553887189},{"$f":"(BZ206*'Default-Data'!$F$19/geo_dollar_index)/'Mexico-IO-Data'!$AS19","v":0},{"$f":"(CA206*'Default-Data'!$F$19/geo_dollar_index)/'Mexico-IO-Data'!$AS19","v":4.118444115166324E-2},{"$f":"(CB206*'Default-Data'!$F$19/geo_dollar_index)/'Mexico-IO-Data'!$AS19","v":3.9783150358804658E-3},null,"TTL_C23: Coke, refined petroleum products and nuclear fuel",421665.03412288858,0,null,8684140.252193056,1268037.4173499136,{"$f":"CH206*'Philippines-IO-Data'!AN19","v":71620.821683458315},{"$f":"CK206*'Philippines-IO-Data'!$AN19","v":1475022.1387699845},{"$f":"CL206*'Philippines-IO-Data'!$AN19","v":215379.20957777006},{"$f":"CH206*'Philippines-IO-Data'!AO19","v":9737.4933741749919},{"$f":"CK206*'Philippines-IO-Data'!$AO19","v":200542.49540048852},{"$f":"CL206*'Philippines-IO-Data'!$AO19","v":29282.736177864437},{"$f":"(CP206*'Default-Data'!$F$19/geo_dollar_index)/'Philippines-IO-Data'!$AP19","v":3.1212287511313894},{"$f":"(CQ206*'Default-Data'!$F$19/geo_dollar_index)/'Philippines-IO-Data'!$AP19","v":64.281327690317625},{"$f":"(CR206*'Default-Data'!$F$19/geo_dollar_index)/'Philippines-IO-Data'!$AP19","v":9.386205931861749},105416.46355017008,11257.368356142004,{"$f":"CI206*'Philippines-IO-Data'!AN19","v":0},{"$f":"CV206*'Philippines-IO-Data'!$AN19","v":17905.24024391163},{"$f":"CW206*'Philippines-IO-Data'!$AN19","v":1912.0911301961989},{"$f":"CI206*'Philippines-IO-Data'!AO19","v":0},{"$f":"CV206*'Philippines-IO-Data'!$AO19","v":2434.3780780494676},{"$f":"CW206*'Philippines-IO-Data'!$AO19","v":259.96594668229744},{"$f":"(DA206*'Default-Data'!$F$19/geo_dollar_index)/'Philippines-IO-Data'!$AP19","v":0},{"$f":"(DB206*'Default-Data'!$F$19/geo_dollar_index)/'Philippines-IO-Data'!$AP19","v":0.78030870536800068},{"$f":"(DC206*'Default-Data'!$F$19/geo_dollar_index)/'Philippines-IO-Data'!$AP19","v":8.3328753706969641E-2},null,"DOM_C23: Coke, refined petroleum products and nuclear fuel",421665.03412288858,0,null,894429.32705466182,1844075.3639975409,{"$f":"DI206*'SouthAfrica-IO-Data'!AR19","v":89465.600634102841},{"$f":"DL206*'SouthAfrica-IO-Data'!$AR19","v":189773.04375297288},{"$f":"DM206*'SouthAfrica-IO-Data'!$AR19","v":391261.53867078829},{"$f":"DI206*'SouthAfrica-IO-Data'!AS19","v":16964.23985708347},{"$f":"DL206*'SouthAfrica-IO-Data'!$AS19","v":35984.282336635442},{"$f":"DM206*'SouthAfrica-IO-Data'!$AS19","v":74190.018753785698},{"$f":"(DQ206*'Default-Data'!$F$19/geo_dollar_index)/'SouthAfrica-IO-Data'!$AT19","v":1.3674478340679272},{"$f":"(DR206*'Default-Data'!$F$19/geo_dollar_index)/'SouthAfrica-IO-Data'!$AT19","v":2.9006091258002655},{"$f":"(DS206*'Default-Data'!$F$19/geo_dollar_index)/'SouthAfrica-IO-Data'!$AT19","v":5.9802844871921552},7354.095285274756,16478.038892221753,{"$f":"DJ206*'SouthAfrica-IO-Data'!AR19","v":0},{"$f":"DW206*'SouthAfrica-IO-Data'!$AR19","v":1560.3346224476907},{"$f":"DX206*'SouthAfrica-IO-Data'!$AR19","v":3496.1818682245421},{"$f":"DJ206*'SouthAfrica-IO-Data'!$AS19","v":0},{"$f":"DZ206*'SouthAfrica-IO-Data'!$AS19","v":62.774687608553542},{"$f":"EA206*'SouthAfrica-IO-Data'!$AS19","v":140.65683183790432},{"$f":"(EB206*'Default-Data'!$F$19/geo_dollar_index)/'SouthAfrica-IO-Data'!$AT19","v":0},{"$f":"(EC206*'Default-Data'!$F$19/geo_dollar_index)/'SouthAfrica-IO-Data'!$AT19","v":5.060121250806536E-3},{"$f":"(ED206*'Default-Data'!$F$19/geo_dollar_index)/'SouthAfrica-IO-Data'!$AT19","v":1.1338019366855769E-2},null,"COFFEE",0,0,null,294.49678618728018,40758.424100370736,{"$f":"EJ206*'Zambia-IO-Data'!BO17","v":0},{"$f":"EM206*'Zambia-IO-Data'!$BO17","v":94.008699666340974},{"$f":"EN206*'Zambia-IO-Data'!$BO17","v":13010.826025410126},{"$f":"EJ206*'Zambia-IO-Data'!BN17","v":0},{"$f":"EM206*'Zambia-IO-Data'!$BN17","v":74.760145952175563},{"$f":"EN206*'Zambia-IO-Data'!$BN17","v":10346.821688528144},{"$f":"(ER206*'Default-Data'!$F$19/geo_dollar_index)/'Zambia-IO-Data'!$BP17","v":0},{"$f":"(ES206*'Default-Data'!$F$19/geo_dollar_index)/'Zambia-IO-Data'!$BP17","v":0.74603302041266395},{"$f":"(ET206*'Default-Data'!$F$19/geo_dollar_index)/'Zambia-IO-Data'!$BP17","v":103.25114454567596},0.91107669129094371,65.846164328662113,{"$f":"EK206*'Zambia-IO-Data'!BO17","v":0},{"$f":"EX206*'Zambia-IO-Data'!$BO17","v":0.29083215526198264},{"$f":"EY206*'Zambia-IO-Data'!$BO17","v":21.019286378959787},{"$f":"EK206*'Zambia-IO-Data'!BN17","v":0},{"$f":"EX206*'Zambia-IO-Data'!$BN17","v":0.23128342857779557},{"$f":"EY206*'Zambia-IO-Data'!$BN17","v":16.715526574443597},{"$f":"(FC206*'Default-Data'!$F$19/geo_dollar_index)/'Zambia-IO-Data'!$BP17","v":0},{"$f":"(FD206*'Default-Data'!$F$19/geo_dollar_index)/'Zambia-IO-Data'!$BP17","v":2.3079820483987209E-3},{"$f":"(FE206*'Default-Data'!$F$19/geo_dollar_index)/'Zambia-IO-Data'!$BP17","v":0.16680458042574775},null,"TTL_C23: Coke, refined petroleum products and nuclear fuel",421665.03412288858,0,null,12445841.806608092,2404386.4228276908,{"$f":"FK206*CustomRegion1!C15","v":71620.821683458315},{"$f":"FN206*CustomRegion1!$C15","v":2113956.2083580964},{"$f":"FO206*CustomRegion1!$C15","v":408390.82520957547},{"$f":"FK206*CustomRegion1!D15","v":9737.4933741749919},{"$f":"FN206*CustomRegion1!$D15","v":287411.31542948104},{"$f":"FO206*CustomRegion1!$D15","v":55524.397250395763},{"$f":"(FS206*'Default-Data'!$C$58/geo_dollar_index)/CustomRegion1!$E15","v":3.1342708886235258},{"$f":"(FT206*'Default-Data'!$C$58/geo_dollar_index)/CustomRegion1!$E15","v":92.510966056286378},{"$f":"(FU206*'Default-Data'!$C$58/geo_dollar_index)/CustomRegion1!$E15","v":17.872002087501102},149624.44858782482,22148.458493193262,{"$f":"FL206*CustomRegion1!C15","v":0},{"$f":"FY206*CustomRegion1!$C15","v":25414.072983512498},{"$f":"FZ206*CustomRegion1!$C15","v":3761.9690226488392},{"$f":"FL206*CustomRegion1!D15","v":0},{"$f":"FY206*CustomRegion1!$D15","v":3455.2712670833348},{"$f":"FZ206*CustomRegion1!$D15","v":511.47344544296493},{"$f":"(GD206*'Default-Data'!$C$58/geo_dollar_index)/CustomRegion1!$E15","v":0},{"$f":"(GE206*'Default-Data'!$C$58/geo_dollar_index)/CustomRegion1!$E15","v":1.1121708358167866},{"$f":"(GF206*'Default-Data'!$C$58/geo_dollar_index)/CustomRegion1!$E15","v":0.16463131411287663},null,"C23 Coke, refined petroleum products and nuclear fuel",421665.03412288858,0,null,322614.9822129705,206181.40934968565,{"$f":"GL206*CustomRegion2!C19","v":70509.237116869015},{"$f":"GO206*CustomRegion2!$C19","v":53946.460904983207},{"$f":"GP206*CustomRegion2!$C19","v":34476.877863888534},{"$f":"GL206*CustomRegion2!D19","v":29911.761649216882},{"$f":"GO206*CustomRegion2!$D19","v":22885.422483497554},{"$f":"GP206*CustomRegion2!$D19","v":14625.943993188805},{"$f":"(GT206*'Default-Data'!$C$59/geo_dollar_index)/CustomRegion2!$E19","v":0.68444601680557982},{"$f":"(GU206*'Default-Data'!$C$59/geo_dollar_index)/CustomRegion2!$E19","v":0.5236681291271541},{"$f":"(GV206*'Default-Data'!$C$59/geo_dollar_index)/CustomRegion2!$E19","v":0.33467333771769547},3589.0912664705306,2142.4350948630549,{"$f":"GM206*CustomRegion2!C19","v":0},{"$f":"GZ206*CustomRegion2!$C19","v":600.15430890079983},{"$f":"HA206*CustomRegion2!$C19","v":358.24991850563566},{"$f":"GM206*CustomRegion2!D19","v":0},{"$f":"GZ206*CustomRegion2!$D19","v":254.60029599861249},{"$f":"HA206*CustomRegion2!$D19","v":151.97847276989214},{"$f":"(HE206*'Default-Data'!$C$59/geo_dollar_index)/CustomRegion2!$E19","v":0},{"$f":"(HF206*'Default-Data'!$C$59/geo_dollar_index)/CustomRegion2!$E19","v":5.8258072699751617E-3},{"$f":"(HG206*'Default-Data'!$C$59/geo_dollar_index)/CustomRegion2!$E19","v":3.4775972591460967E-3},null,"COFFEE",0,0,null,294.49678618728018,40758.424100370736,{"$f":"HM206*CustomRegion3!D18","v":0},{"$f":"HP206*CustomRegion3!$D18","v":94.008699666340974},{"$f":"HQ206*CustomRegion3!$D18","v":13010.826025410126},{"$f":"HM206*CustomRegion3!E18","v":0},{"$f":"HP206*CustomRegion3!E$12","v":92.390320748624433},{"$f":"HQ206*CustomRegion3!F$12","v":4209220.7856561476},{"$f":"(HU206*'Default-Data'!$C$60/geo_dollar_index)/CustomRegion3!$F18","v":0},{"$f":"(HV206*'Default-Data'!$C$60/geo_dollar_index)/CustomRegion3!$F18","v":0.92569897256572287},{"$f":"(HW206*'Default-Data'!$C$60/geo_dollar_index)/CustomRegion3!$F18","v":42174.021315346443},0.91107669129094371,65.846164328662113,{"$f":"HN206*CustomRegion3!D18","v":0},{"$f":"IA206*CustomRegion3!$D18","v":0.29083215526198264},{"$f":"IB206*CustomRegion3!$D18","v":21.019286378959787},{"$f":"HN206*CustomRegion3!E18","v":0},{"$f":"IA206*CustomRegion3!$E18","v":0.23128342857779557},{"$f":"IB206*CustomRegion3!$E18","v":16.715526574443597},{"$f":"(IF206*'Default-Data'!$C$60/geo_dollar_index)/CustomRegion3!$F18","v":0},{"$f":"(IG206*'Default-Data'!$C$60/geo_dollar_index)/CustomRegion3!$F18","v":2.317329677731753E-3},{"$f":"(IH206*'Default-Data'!$C$60/geo_dollar_index)/CustomRegion3!$F18","v":0.16748016080556641}]
[null,null,null,null,null,null,null,null,null,null,null,null,null,null,null,null,null,null,null,null,null,null,null,null,null,null,null,null,null,206,"TTL_C24: Chemicals and chemical products",{"$f":"'Geothermal-Inputs'!B22*'Geothermal-Inputs'!C22","v":71139.392187513862},0,null,424357.53748907935,896697.15552145313,{"$f":"AF207*'Colombia-IO-Data'!AN20","v":22002.356118241896},{"$f":"AI207*'Colombia-IO-Data'!$AN20","v":131247.47589470807},{"$f":"AJ207*'Colombia-IO-Data'!$AN20","v":277335.09577919042},{"$f":"'Colombia-IO-Data'!$AO20*AK207","v":8072.2672011488776},{"$f":"'Colombia-IO-Data'!$AO20*AL207","v":48152.329196237311},{"$f":"'Colombia-IO-Data'!$AO20*AM207","v":101749.23927941255},{"$f":"(AN207*'Default-Data'!$F$19/geo_dollar_index)/'Colombia-IO-Data'!$AP20","v":1.9635648816021467},{"$f":"(AO207*'Default-Data'!$F$19/geo_dollar_index)/'Colombia-IO-Data'!$AP20","v":11.712969878353448},{"$f":"(AP207*'Default-Data'!$F$19/geo_dollar_index)/'Colombia-IO-Data'!$AP20","v":24.750324537120513},4214.4004759951222,10093.670511271557,{"$f":"AG207*'Colombia-IO-Data'!AN20","v":0},{"$f":"AT207*'Colombia-IO-Data'!$AN20","v":1303.4513965668646},{"$f":"AU207*'Colombia-IO-Data'!$AN20","v":3121.8221902122609},{"$f":"AV207*'Colombia-IO-Data'!$AO20","v":0},{"$f":"AW207*'Colombia-IO-Data'!$AO20","v":478.21278322437894},{"$f":"AX207*'Colombia-IO-Data'!$AO20","v":1145.3401962245312},{"$f":"(Calculations!AY207*'Default-Data'!$F$19/geo_dollar_index)/'Colombia-IO-Data'!$AP20","v":0},{"$f":"(Calculations!AZ207*'Default-Data'!$F$19/geo_dollar_index)/'Colombia-IO-Data'!$AP20","v":0.11632442332173644},{"$f":"(Calculations!BA207*'Default-Data'!$F$19/geo_dollar_index)/'Colombia-IO-Data'!$AP20","v":0.27860200000239355},null,"DOM_C24: Chemicals and chemical products",71139.392187513862,0,null,5139390.8346083714,897083.89910972212,{"$f":"BG207*'Mexico-IO-Data'!AQ20","v":20868.617051835914},{"$f":"BJ207*'Mexico-IO-Data'!$AQ20","v":1507631.3686298542},{"$f":"BK207*'Mexico-IO-Data'!$AQ20","v":263158.00259500142},{"$f":"BG207*'Mexico-IO-Data'!AQ20","v":20868.617051835914},{"$f":"BJ207*'Mexico-IO-Data'!$AR20","v":330028.20920045872},{"$f":"BK207*'Mexico-IO-Data'!$AR20","v":57606.631263003954},{"$f":"(BO207*'Default-Data'!$F$19/geo_dollar_index)/'Mexico-IO-Data'!$AS20","v":1.6979613089176906},{"$f":"(BP207*'Default-Data'!$F$19/geo_dollar_index)/'Mexico-IO-Data'!$AS20","v":26.852528305150599},{"$f":"(BQ207*'Default-Data'!$F$19/geo_dollar_index)/'Mexico-IO-Data'!$AS20","v":4.6871256863215951},74073.408121158282,5158.8217010979424,{"$f":"BH207*'Mexico-IO-Data'!AQ20","v":0},{"$f":"BU207*'Mexico-IO-Data'!$AQ20","v":21729.305526398915},{"$f":"BV207*'Mexico-IO-Data'!$AQ20","v":1513.3313795420556},{"$f":"BH207*'Mexico-IO-Data'!AR20","v":0},{"$f":"BU207*'Mexico-IO-Data'!$AR20","v":4756.6559964617727},{"$f":"BV207*'Mexico-IO-Data'!$AR20","v":331.27597071094425},{"$f":"(BZ207*'Default-Data'!$F$19/geo_dollar_index)/'Mexico-IO-Data'!$AS20","v":0},{"$f":"(CA207*'Default-Data'!$F$19/geo_dollar_index)/'Mexico-IO-Data'!$AS20","v":0.38702218847381042},{"$f":"(CB207*'Default-Data'!$F$19/geo_dollar_index)/'Mexico-IO-Data'!$AS20","v":2.6954051600263949E-2},null,"TTL_C24: Chemicals and chemical products",71139.392187513862,0,null,1709970.0818475073,622575.82713389839,{"$f":"CH207*'Philippines-IO-Data'!AN20","v":19198.415084108961},{"$f":"CK207*'Philippines-IO-Data'!$AN20","v":461470.2825430971},{"$f":"CL207*'Philippines-IO-Data'!$AN20","v":168014.77751094566},{"$f":"CH207*'Philippines-IO-Data'!AO20","v":4978.6555957431037},{"$f":"CK207*'Philippines-IO-Data'!$AO20","v":119671.42049939554},{"$f":"CL207*'Philippines-IO-Data'!$AO20","v":43570.665003216091},{"$f":"(CP207*'Default-Data'!$F$19/geo_dollar_index)/'Philippines-IO-Data'!$AP20","v":1.5958442681591181},{"$f":"(CQ207*'Default-Data'!$F$19/geo_dollar_index)/'Philippines-IO-Data'!$AP20","v":38.359140694469978},{"$f":"(CR207*'Default-Data'!$F$19/geo_dollar_index)/'Philippines-IO-Data'!$AP20","v":13.966018469868727},8559.2832695114248,5527.0966927169829,{"$f":"CI207*'Philippines-IO-Data'!AN20","v":0},{"$f":"CV207*'Philippines-IO-Data'!$AN20","v":2309.8970623394121},{"$f":"CW207*'Philippines-IO-Data'!$AN20","v":1491.599706630763},{"$f":"CI207*'Philippines-IO-Data'!AO20","v":0},{"$f":"CV207*'Philippines-IO-Data'!$AO20","v":599.01725661331693},{"$f":"CW207*'Philippines-IO-Data'!$AO20","v":386.81116089488302},{"$f":"(DA207*'Default-Data'!$F$19/geo_dollar_index)/'Philippines-IO-Data'!$AP20","v":0},{"$f":"(DB207*'Default-Data'!$F$19/geo_dollar_index)/'Philippines-IO-Data'!$AP20","v":0.19200730741690925},{"$f":"(DC207*'Default-Data'!$F$19/geo_dollar_index)/'Philippines-IO-Data'!$AP20","v":0.12398736207057079},null,"DOM_C24: Chemicals and chemical products",71139.392187513862,0,null,513020.05470503995,652378.01665498887,{"$f":"DI207*'SouthAfrica-IO-Data'!AR20","v":16484.346890126697},{"$f":"DL207*'SouthAfrica-IO-Data'!$AR20","v":118876.48015123133},{"$f":"DM207*'SouthAfrica-IO-Data'!$AR20","v":151168.36395913427},{"$f":"DI207*'SouthAfrica-IO-Data'!AS20","v":11477.696514133833},{"$f":"DL207*'SouthAfrica-IO-Data'!$AS20","v":82771.138640713281},{"$f":"DM207*'SouthAfrica-IO-Data'!$AS20","v":105255.283428929},{"$f":"(DQ207*'Default-Data'!$F$19/geo_dollar_index)/'SouthAfrica-IO-Data'!$AT20","v":0.92519036340951955},{"$f":"(DR207*'Default-Data'!$F$19/geo_dollar_index)/'SouthAfrica-IO-Data'!$AT20","v":6.6719885601192246},{"$f":"(DS207*'Default-Data'!$F$19/geo_dollar_index)/'SouthAfrica-IO-Data'!$AT20","v":8.4843830647086662},7270.6617593360234,5829.4311288710096,{"$f":"DJ207*'SouthAfrica-IO-Data'!AR20","v":0},{"$f":"DW207*'SouthAfrica-IO-Data'!$AR20","v":1684.750275146572},{"$f":"DX207*'SouthAfrica-IO-Data'!$AR20","v":1350.7897937491618},{"$f":"DJ207*'SouthAfrica-IO-Data'!$AS20","v":0},{"$f":"DZ207*'SouthAfrica-IO-Data'!$AS20","v":271.81919560496044},{"$f":"EA207*'SouthAfrica-IO-Data'!$AS20","v":217.93769710845962},{"$f":"(EB207*'Default-Data'!$F$19/geo_dollar_index)/'SouthAfrica-IO-Data'!$AT20","v":0},{"$f":"(EC207*'Default-Data'!$F$19/geo_dollar_index)/'SouthAfrica-IO-Data'!$AT20","v":2.19107117925408E-2},{"$f":"(ED207*'Default-Data'!$F$19/geo_dollar_index)/'SouthAfrica-IO-Data'!$AT20","v":1.756744978751739E-2},null,"WHEAT",0,0,null,1650.6737470438718,228453.63273532418,{"$f":"EJ207*'Zambia-IO-Data'!BO18","v":0},{"$f":"EM207*'Zambia-IO-Data'!$BO18","v":356.64934645847234},{"$f":"EN207*'Zambia-IO-Data'!$BO18","v":49360.352981340351},{"$f":"EJ207*'Zambia-IO-Data'!BN18","v":0},{"$f":"EM207*'Zambia-IO-Data'!$BN18","v":215.99091518330823},{"$f":"EN207*'Zambia-IO-Data'!$BN18","v":29893.193188431189},{"$f":"(ER207*'Default-Data'!$F$19/geo_dollar_index)/'Zambia-IO-Data'!$BP18","v":0},{"$f":"(ES207*'Default-Data'!$F$19/geo_dollar_index)/'Zambia-IO-Data'!$BP18","v":2.1553777455033156},{"$f":"(ET207*'Default-Data'!$F$19/geo_dollar_index)/'Zambia-IO-Data'!$BP18","v":298.30478418823384},5.1066444402594646,369.0720574849986,{"$f":"EK207*'Zambia-IO-Data'!BO18","v":0},{"$f":"EX207*'Zambia-IO-Data'!$BO18","v":1.1033563752231428},{"$f":"EY207*'Zambia-IO-Data'!$BO18","v":79.742776750304742},{"$f":"EK207*'Zambia-IO-Data'!BN18","v":0},{"$f":"EX207*'Zambia-IO-Data'!$BN18","v":0.66820521507820363},{"$f":"EY207*'Zambia-IO-Data'!$BN18","v":48.293135822588866},{"$f":"(FC207*'Default-Data'!$F$19/geo_dollar_index)/'Zambia-IO-Data'!$BP18","v":0},{"$f":"(FD207*'Default-Data'!$F$19/geo_dollar_index)/'Zambia-IO-Data'!$BP18","v":6.6680334623635037E-3},{"$f":"(FE207*'Default-Data'!$F$19/geo_dollar_index)/'Zambia-IO-Data'!$BP18","v":0.48191818681002124},null,"TTL_C24: Chemicals and chemical products",71139.392187513862,0,null,3918700.3417518265,1562452.3184605869,{"$f":"FK207*CustomRegion1!C16","v":19198.415084108961},{"$f":"FN207*CustomRegion1!$C16","v":1057541.1658408267},{"$f":"FO207*CustomRegion1!$C16","v":421659.60709739733},{"$f":"FK207*CustomRegion1!D16","v":4978.6555957431037},{"$f":"FN207*CustomRegion1!$D16","v":274248.32831123687},{"$f":"FO207*CustomRegion1!$D16","v":109347.46192210108},{"$f":"(FS207*'Default-Data'!$C$58/geo_dollar_index)/CustomRegion1!$E16","v":1.6025125459499798},{"$f":"(FT207*'Default-Data'!$C$58/geo_dollar_index)/CustomRegion1!$E16","v":88.274109018575203},{"$f":"(FU207*'Default-Data'!$C$58/geo_dollar_index)/CustomRegion1!$E16","v":35.196385093956295},22893.186703803804,14392.823879915028,{"$f":"FL207*CustomRegion1!C16","v":0},{"$f":"FY207*CustomRegion1!$C16","v":6178.1930857538509},{"$f":"FZ207*CustomRegion1!$C16","v":3884.1969066975375},{"$f":"FL207*CustomRegion1!D16","v":0},{"$f":"FY207*CustomRegion1!$D16","v":1602.16848334683},{"$f":"FZ207*CustomRegion1!$D16","v":1007.2747453254301},{"$f":"(GD207*'Default-Data'!$C$58/geo_dollar_index)/CustomRegion1!$E16","v":0},{"$f":"(GE207*'Default-Data'!$C$58/geo_dollar_index)/CustomRegion1!$E16","v":0.51570048297460669},{"$f":"(GF207*'Default-Data'!$C$58/geo_dollar_index)/CustomRegion1!$E16","v":0.32421813189543297},null,"C24 Chemicals and chemical products",71139.392187513862,0,null,880326.23147217231,462011.11340840813,{"$f":"GL207*CustomRegion2!C20","v":23439.946724140485},{"$f":"GO207*CustomRegion2!$C20","v":290061.51628594927},{"$f":"GP207*CustomRegion2!$C20","v":152229.52503879662},{"$f":"GL207*CustomRegion2!D20","v":8310.1431147205221},{"$f":"GO207*CustomRegion2!$D20","v":102835.24705824451},{"$f":"GP207*CustomRegion2!$D20","v":53969.795846654975},{"$f":"(GT207*'Default-Data'!$C$59/geo_dollar_index)/CustomRegion2!$E20","v":0.67614933204799199},{"$f":"(GU207*'Default-Data'!$C$59/geo_dollar_index)/CustomRegion2!$E20","v":8.3671222805120955},{"$f":"(GV207*'Default-Data'!$C$59/geo_dollar_index)/CustomRegion2!$E20","v":4.391216963260387},15895.296550242821,4800.7666001747584,{"$f":"GM207*CustomRegion2!C20","v":0},{"$f":"GZ207*CustomRegion2!$C20","v":5237.3922920232735},{"$f":"HA207*CustomRegion2!$C20","v":1581.8199999026729},{"$f":"GM207*CustomRegion2!D20","v":0},{"$f":"GZ207*CustomRegion2!$D20","v":1856.807952973003},{"$f":"HA207*CustomRegion2!$D20","v":560.80121408212938},{"$f":"(HE207*'Default-Data'!$C$59/geo_dollar_index)/CustomRegion2!$E20","v":0},{"$f":"(HF207*'Default-Data'!$C$59/geo_dollar_index)/CustomRegion2!$E20","v":0.15107795856369177},{"$f":"(HG207*'Default-Data'!$C$59/geo_dollar_index)/CustomRegion2!$E20","v":4.562922215402631E-2},null,"WHEAT",0,0,null,1650.6737470438718,228453.63273532418,{"$f":"HM207*CustomRegion3!D19","v":0},{"$f":"HP207*CustomRegion3!$D19","v":356.64934645847234},{"$f":"HQ207*CustomRegion3!$D19","v":49360.352981340351},{"$f":"HM207*CustomRegion3!E19","v":0},{"$f":"HP207*CustomRegion3!E$12","v":517.85379024045892},{"$f":"HQ207*CustomRegion3!F$12","v":23592957.791992638},{"$f":"(HU207*'Default-Data'!$C$60/geo_dollar_index)/CustomRegion3!$F19","v":0},{"$f":"(HV207*'Default-Data'!$C$60/geo_dollar_index)/CustomRegion3!$F19","v":5.1886032831203863},{"$f":"(HW207*'Default-Data'!$C$60/geo_dollar_index)/CustomRegion3!$F19","v":236388.14770712031},5.1066444402594646,369.0720574849986,{"$f":"HN207*CustomRegion3!D19","v":0},{"$f":"IA207*CustomRegion3!$D19","v":1.1033563752231428},{"$f":"IB207*CustomRegion3!$D19","v":79.742776750304742},{"$f":"HN207*CustomRegion3!E19","v":0},{"$f":"IA207*CustomRegion3!$E19","v":0.66820521507820363},{"$f":"IB207*CustomRegion3!$E19","v":48.293135822588866},{"$f":"(IF207*'Default-Data'!$C$60/geo_dollar_index)/CustomRegion3!$F19","v":0},{"$f":"(IG207*'Default-Data'!$C$60/geo_dollar_index)/CustomRegion3!$F19","v":6.6950398705067872E-3},{"$f":"(IH207*'Default-Data'!$C$60/geo_dollar_index)/CustomRegion3!$F19","v":0.48387001853344058}]
[null,null,null,null,null,null,null,null,null,null,null,null,null,null,null,null,null,null,null,null,null,null,null,null,null,null,null,null,null,207,"TTL_C25: Rubber and plastics products",0,0,null,309950.46096328797,242198.9865018581,{"$f":"AF208*'Colombia-IO-Data'!AN21","v":0},{"$f":"AI208*'Colombia-IO-Data'!$AN21","v":78011.674753728905},{"$f":"AJ208*'Colombia-IO-Data'!$AN21","v":60959.25297850636},{"$f":"'Colombia-IO-Data'!$AO21*AK208","v":0},{"$f":"'Colombia-IO-Data'!$AO21*AL208","v":45180.370967482719},{"$f":"'Colombia-IO-Data'!$AO21*AM208","v":35304.480671181795},{"$f":"(AN208*'Default-Data'!$F$19/geo_dollar_index)/'Colombia-IO-Data'!$AP21","v":0},{"$f":"(AO208*'Default-Data'!$F$19/geo_dollar_index)/'Colombia-IO-Data'!$AP21","v":10.990046235942245},{"$f":"(AP208*'Default-Data'!$F$19/geo_dollar_index)/'Colombia-IO-Data'!$AP21","v":8.5877531902397983},2834.4044908192591,4422.4024399001046,{"$f":"AG208*'Colombia-IO-Data'!AN21","v":0},{"$f":"AT208*'Colombia-IO-Data'!$AN21","v":713.39349059555275},{"$f":"AU208*'Colombia-IO-Data'!$AN21","v":1113.0779405824064},{"$f":"AV208*'Colombia-IO-Data'!$AO21","v":0},{"$f":"AW208*'Colombia-IO-Data'!$AO21","v":413.1610127925606},{"$f":"AX208*'Colombia-IO-Data'!$AO21","v":644.63779850888295},{"$f":"(Calculations!AY208*'Default-Data'!$F$19/geo_dollar_index)/'Colombia-IO-Data'!$AP21","v":0},{"$f":"(Calculations!AZ208*'Default-Data'!$F$19/geo_dollar_index)/'Colombia-IO-Data'!$AP21","v":0.1005006939130043},{"$f":"(Calculations!BA208*'Default-Data'!$F$19/geo_dollar_index)/'Colombia-IO-Data'!$AP21","v":0.15680701728074747},null,"DOM_C25: Rubber and plastics products",0,0,null,95169.455050267541,151726.84710741823,{"$f":"BG208*'Mexico-IO-Data'!AQ21","v":0},{"$f":"BJ208*'Mexico-IO-Data'!$AQ21","v":29354.66277836377},{"$f":"BK208*'Mexico-IO-Data'!$AQ21","v":46799.579013141571},{"$f":"BG208*'Mexico-IO-Data'!AQ21","v":0},{"$f":"BJ208*'Mexico-IO-Data'!$AR21","v":10262.409965774305},{"$f":"BK208*'Mexico-IO-Data'!$AR21","v":16361.164482955666},{"$f":"(BO208*'Default-Data'!$F$19/geo_dollar_index)/'Mexico-IO-Data'!$AS21","v":0},{"$f":"(BP208*'Default-Data'!$F$19/geo_dollar_index)/'Mexico-IO-Data'!$AS21","v":1.9442976595871337},{"$f":"(BQ208*'Default-Data'!$F$19/geo_dollar_index)/'Mexico-IO-Data'!$AS21","v":3.0997566768841009},857.69817514765009,872.52903800158606,{"$f":"BH208*'Mexico-IO-Data'!AQ21","v":0},{"$f":"BU208*'Mexico-IO-Data'!$AQ21","v":264.55379705367426},{"$f":"BV208*'Mexico-IO-Data'!$AQ21","v":269.12832128058614},{"$f":"BH208*'Mexico-IO-Data'!AR21","v":0},{"$f":"BU208*'Mexico-IO-Data'!$AR21","v":92.488186420869226},{"$f":"BV208*'Mexico-IO-Data'!$AR21","v":94.087443185267787},{"$f":"(BZ208*'Default-Data'!$F$19/geo_dollar_index)/'Mexico-IO-Data'!$AS21","v":0},{"$f":"(CA208*'Default-Data'!$F$19/geo_dollar_index)/'Mexico-IO-Data'!$AS21","v":1.7522644778105657E-2},{"$f":"(CB208*'Default-Data'!$F$19/geo_dollar_index)/'Mexico-IO-Data'!$AS21","v":1.7825637076646559E-2},null,"TTL_C25: Rubber and plastics products",0,0,null,460850.34670745628,159750.30198615894,{"$f":"CH208*'Philippines-IO-Data'!AN21","v":0},{"$f":"CK208*'Philippines-IO-Data'!$AN21","v":141731.30900195634},{"$f":"CL208*'Philippines-IO-Data'!$AN21","v":49130.090875962451},{"$f":"CH208*'Philippines-IO-Data'!AO21","v":0},{"$f":"CK208*'Philippines-IO-Data'!$AO21","v":40049.353740808932},{"$f":"CL208*'Philippines-IO-Data'!$AO21","v":13882.806859438168},{"$f":"(CP208*'Default-Data'!$F$19/geo_dollar_index)/'Philippines-IO-Data'!$AP21","v":0},{"$f":"(CQ208*'Default-Data'!$F$19/geo_dollar_index)/'Philippines-IO-Data'!$AP21","v":12.837307257283264},{"$f":"(CR208*'Default-Data'!$F$19/geo_dollar_index)/'Philippines-IO-Data'!$AP21","v":4.4499558819729339},1244.2623376078593,1418.2294385457055,{"$f":"CI208*'Philippines-IO-Data'!AN21","v":0},{"$f":"CV208*'Philippines-IO-Data'!$AN21","v":382.66420132030851},{"$f":"CW208*'Philippines-IO-Data'!$AN21","v":436.16656953019549},{"$f":"CI208*'Philippines-IO-Data'!AO21","v":0},{"$f":"CV208*'Philippines-IO-Data'!$AO21","v":108.13033528399588},{"$f":"CW208*'Philippines-IO-Data'!$AO21","v":123.24862696913934},{"$f":"(DA208*'Default-Data'!$F$19/geo_dollar_index)/'Philippines-IO-Data'!$AP21","v":0},{"$f":"(DB208*'Default-Data'!$F$19/geo_dollar_index)/'Philippines-IO-Data'!$AP21","v":3.4659793684992314E-2},{"$f":"(DC208*'Default-Data'!$F$19/geo_dollar_index)/'Philippines-IO-Data'!$AP21","v":3.9505768399676872E-2},null,"DOM_C25: Rubber and plastics products",0,0,null,250002.18767723138,361399.49878946762,{"$f":"DI208*'SouthAfrica-IO-Data'!AR21","v":0},{"$f":"DL208*'SouthAfrica-IO-Data'!$AR21","v":73631.965036434238},{"$f":"DM208*'SouthAfrica-IO-Data'!$AR21","v":106441.28959946081},{"$f":"DI208*'SouthAfrica-IO-Data'!AS21","v":0},{"$f":"DL208*'SouthAfrica-IO-Data'!$AS21","v":69505.236517389756},{"$f":"DM208*'SouthAfrica-IO-Data'!$AS21","v":100475.75132845828},{"$f":"(DQ208*'Default-Data'!$F$19/geo_dollar_index)/'SouthAfrica-IO-Data'!$AT21","v":0},{"$f":"(DR208*'Default-Data'!$F$19/geo_dollar_index)/'SouthAfrica-IO-Data'!$AT21","v":5.6026551105617264},{"$f":"(DS208*'Default-Data'!$F$19/geo_dollar_index)/'SouthAfrica-IO-Data'!$AT21","v":8.099116122381286},3174.2906675389904,3229.3446965057128,{"$f":"DJ208*'SouthAfrica-IO-Data'!AR21","v":0},{"$f":"DW208*'SouthAfrica-IO-Data'!$AR21","v":934.90885667556506},{"$f":"DX208*'SouthAfrica-IO-Data'!$AR21","v":951.12366012850998},{"$f":"DJ208*'SouthAfrica-IO-Data'!$AS21","v":0},{"$f":"DZ208*'SouthAfrica-IO-Data'!$AS21","v":259.92197032024472},{"$f":"EA208*'SouthAfrica-IO-Data'!$AS21","v":264.42998586823251},{"$f":"(EB208*'Default-Data'!$F$19/geo_dollar_index)/'SouthAfrica-IO-Data'!$AT21","v":0},{"$f":"(EC208*'Default-Data'!$F$19/geo_dollar_index)/'SouthAfrica-IO-Data'!$AT21","v":2.0951704192786212E-2},{"$f":"(ED208*'Default-Data'!$F$19/geo_dollar_index)/'SouthAfrica-IO-Data'!$AT21","v":2.131508481867771E-2},null,"HORTI",0,0,null,5900.3741613450011,2002228.1063068565,{"$f":"EJ208*'Zambia-IO-Data'!BO19","v":0},{"$f":"EM208*'Zambia-IO-Data'!$BO19","v":2844.3800954891663},{"$f":"EN208*'Zambia-IO-Data'!$BO19","v":965209.59798081371},{"$f":"EJ208*'Zambia-IO-Data'!BN19","v":0},{"$f":"EM208*'Zambia-IO-Data'!$BN19","v":2396.3029230621751},{"$f":"EN208*'Zambia-IO-Data'!$BN19","v":813159.45948191592},{"$f":"(ER208*'Default-Data'!$F$19/geo_dollar_index)/'Zambia-IO-Data'!$BP19","v":0},{"$f":"(ES208*'Default-Data'!$F$19/geo_dollar_index)/'Zambia-IO-Data'!$BP19","v":23.912755716921478},{"$f":"(ET208*'Default-Data'!$F$19/geo_dollar_index)/'Zambia-IO-Data'!$BP19","v":8114.5348221028898},80.494942961308666,3085.8778786603352,{"$f":"EK208*'Zambia-IO-Data'!BO19","v":0},{"$f":"EX208*'Zambia-IO-Data'!$BO19","v":38.804016031161439},{"$f":"EY208*'Zambia-IO-Data'!$BO19","v":1487.6022054118282},{"$f":"EK208*'Zambia-IO-Data'!BN19","v":0},{"$f":"EX208*'Zambia-IO-Data'!$BN19","v":32.69119242870817},{"$f":"EY208*'Zambia-IO-Data'!$BN19","v":1253.2591965593299},{"$f":"(FC208*'Default-Data'!$F$19/geo_dollar_index)/'Zambia-IO-Data'!$BP19","v":0},{"$f":"(FD208*'Default-Data'!$F$19/geo_dollar_index)/'Zambia-IO-Data'!$BP19","v":0.32622607564306183},{"$f":"(FE208*'Default-Data'!$F$19/geo_dollar_index)/'Zambia-IO-Data'!$BP19","v":12.506299069656876},null,"TTL_C25: Rubber and plastics products",0,0,null,788291.04859236244,329517.67858397134,{"$f":"FK208*CustomRegion1!C17","v":0},{"$f":"FN208*CustomRegion1!$C17","v":242433.4124727103},{"$f":"FO208*CustomRegion1!$C17","v":101340.86316449883},{"$f":"FK208*CustomRegion1!D17","v":0},{"$f":"FN208*CustomRegion1!$D17","v":68504.987099053731},{"$f":"FO208*CustomRegion1!$D17","v":28636.129207117574},{"$f":"(FS208*'Default-Data'!$C$58/geo_dollar_index)/CustomRegion1!$E17","v":0},{"$f":"(FT208*'Default-Data'!$C$58/geo_dollar_index)/CustomRegion1!$E17","v":22.050149719181285},{"$f":"(FU208*'Default-Data'!$C$58/geo_dollar_index)/CustomRegion1!$E17","v":9.2172988147819783},3111.4923688669664,3035.4141736947845,{"$f":"FL208*CustomRegion1!C17","v":0},{"$f":"FY208*CustomRegion1!$C17","v":956.9177706815384},{"$f":"FZ208*CustomRegion1!$C17","v":933.5204525167668},{"$f":"FL208*CustomRegion1!D17","v":0},{"$f":"FY208*CustomRegion1!$D17","v":270.39853486686013},{"$f":"FZ208*CustomRegion1!$D17","v":263.78709891551182},{"$f":"(GD208*'Default-Data'!$C$58/geo_dollar_index)/CustomRegion1!$E17","v":0},{"$f":"(GE208*'Default-Data'!$C$58/geo_dollar_index)/CustomRegion1!$E17","v":8.7034950740745187E-2},{"$f":"(GF208*'Default-Data'!$C$58/geo_dollar_index)/CustomRegion1!$E17","v":8.4906884467625329E-2},null,"C25 Rubber and plastics products",0,0,null,204461.88524474751,121055.62627003854,{"$f":"GL208*CustomRegion2!C21","v":0},{"$f":"GO208*CustomRegion2!$C21","v":66732.944811436697},{"$f":"GP208*CustomRegion2!$C21","v":39510.534774353095},{"$f":"GL208*CustomRegion2!D21","v":0},{"$f":"GO208*CustomRegion2!$D21","v":30301.130414372466},{"$f":"GP208*CustomRegion2!$D21","v":17940.372185315176},{"$f":"(GT208*'Default-Data'!$C$59/geo_dollar_index)/CustomRegion2!$E21","v":0},{"$f":"(GU208*'Default-Data'!$C$59/geo_dollar_index)/CustomRegion2!$E21","v":5.7407974485517226},{"$f":"(GV208*'Default-Data'!$C$59/geo_dollar_index)/CustomRegion2!$E21","v":3.3989505163369866},924.73550503073693,1257.8914023799825,{"$f":"GM208*CustomRegion2!C21","v":0},{"$f":"GZ208*CustomRegion2!$C21","v":301.81822567332267},{"$f":"HA208*CustomRegion2!$C21","v":410.55474683372813},{"$f":"GM208*CustomRegion2!D21","v":0},{"$f":"GZ208*CustomRegion2!$D21","v":137.04525468497692},{"$f":"HA208*CustomRegion2!$D21","v":186.41876154574334},{"$f":"(HE208*'Default-Data'!$C$59/geo_dollar_index)/CustomRegion2!$E21","v":0},{"$f":"(HF208*'Default-Data'!$C$59/geo_dollar_index)/CustomRegion2!$E21","v":2.596434646736694E-2},{"$f":"(HG208*'Default-Data'!$C$59/geo_dollar_index)/CustomRegion2!$E21","v":3.5318561915312588E-2},null,"HORTI",0,0,null,5900.3741613450011,2002228.1063068565,{"$f":"HM208*CustomRegion3!D20","v":0},{"$f":"HP208*CustomRegion3!$D20","v":2844.3800954891663},{"$f":"HQ208*CustomRegion3!$D20","v":965209.59798081371},{"$f":"HM208*CustomRegion3!E20","v":0},{"$f":"HP208*CustomRegion3!E$12","v":1851.081189581776},{"$f":"HQ208*CustomRegion3!F$12","v":206774926.87002853},{"$f":"(HU208*'Default-Data'!$C$60/geo_dollar_index)/CustomRegion3!$F20","v":0},{"$f":"(HV208*'Default-Data'!$C$60/geo_dollar_index)/CustomRegion3!$F20","v":18.546790848294556},{"$f":"(HW208*'Default-Data'!$C$60/geo_dollar_index)/CustomRegion3!$F20","v":2071768.2956933321},80.494942961308666,3085.8778786603352,{"$f":"HN208*CustomRegion3!D20","v":0},{"$f":"IA208*CustomRegion3!$D20","v":38.804016031161439},{"$f":"IB208*CustomRegion3!$D20","v":1487.6022054118282},{"$f":"HN208*CustomRegion3!E20","v":0},{"$f":"IA208*CustomRegion3!$E20","v":32.69119242870817},{"$f":"IB208*CustomRegion3!$E20","v":1253.2591965593299},{"$f":"(IF208*'Default-Data'!$C$60/geo_dollar_index)/CustomRegion3!$F20","v":0},{"$f":"(IG208*'Default-Data'!$C$60/geo_dollar_index)/CustomRegion3!$F20","v":0.32754733394140811},{"$f":"(IH208*'Default-Data'!$C$60/geo_dollar_index)/CustomRegion3!$F20","v":12.556951217541782}]
[null,null,null,null,null,null,null,null,null,null,null,null,null,null,null,null,null,null,null,null,null,null,null,null,null,null,null,null,null,208,"TTL_C26: Other non-metallic mineral products",{"$f":"'Geothermal-Inputs'!B19*'Geothermal-Inputs'!C19","v":60466.124871234635},0,null,183696.6546019286,86203.197469140519,{"$f":"AF209*'Colombia-IO-Data'!AN22","v":26715.176959475386},{"$f":"AI209*'Colombia-IO-Data'!$AN22","v":81160.958222556364},{"$f":"AJ209*'Colombia-IO-Data'!$AN22","v":38086.344705649513},{"$f":"'Colombia-IO-Data'!$AO22*AK209","v":7906.918027049368},{"$f":"'Colombia-IO-Data'!$AO22*AL209","v":24021.291142334005},{"$f":"'Colombia-IO-Data'!$AO22*AM209","v":11272.454080851803},{"$f":"(AN209*'Default-Data'!$F$19/geo_dollar_index)/'Colombia-IO-Data'!$AP22","v":1.9233439841301816},{"$f":"(AO209*'Default-Data'!$F$19/geo_dollar_index)/'Colombia-IO-Data'!$AP22","v":5.843137067008227},{"$f":"(AP209*'Default-Data'!$F$19/geo_dollar_index)/'Colombia-IO-Data'!$AP22","v":2.7420047442784323},2444.0810242709472,3009.2795115245503,{"$f":"AG209*'Colombia-IO-Data'!AN22","v":0},{"$f":"AT209*'Colombia-IO-Data'!$AN22","v":1079.8452390613897},{"$f":"AU209*'Colombia-IO-Data'!$AN22","v":1329.5615494147094},{"$f":"AV209*'Colombia-IO-Data'!$AO22","v":0},{"$f":"AW209*'Colombia-IO-Data'!$AO22","v":319.6028909001696},{"$f":"AX209*'Colombia-IO-Data'!$AO22","v":393.51168061082893},{"$f":"(Calculations!AY209*'Default-Data'!$F$19/geo_dollar_index)/'Colombia-IO-Data'!$AP22","v":0},{"$f":"(Calculations!AZ209*'Default-Data'!$F$19/geo_dollar_index)/'Colombia-IO-Data'!$AP22","v":7.774284435737934E-2},{"$f":"(Calculations!BA209*'Default-Data'!$F$19/geo_dollar_index)/'Colombia-IO-Data'!$AP22","v":9.572102821840342E-2},null,"DOM_C26: Other non-metallic mineral products",60466.124871234635,0,null,84735.640874500619,154064.42339700158,{"$f":"BG209*'Mexico-IO-Data'!AQ22","v":33073.706459980895},{"$f":"BJ209*'Mexico-IO-Data'!$AQ22","v":46348.624439712155},{"$f":"BK209*'Mexico-IO-Data'!$AQ22","v":84270.019390356218},{"$f":"BG209*'Mexico-IO-Data'!AQ22","v":33073.706459980895},{"$f":"BJ209*'Mexico-IO-Data'!$AR22","v":10017.94246740822},{"$f":"BK209*'Mexico-IO-Data'!$AR22","v":18214.396137647418},{"$f":"(BO209*'Default-Data'!$F$19/geo_dollar_index)/'Mexico-IO-Data'!$AS22","v":8.3210905153576871},{"$f":"(BP209*'Default-Data'!$F$19/geo_dollar_index)/'Mexico-IO-Data'!$AS22","v":2.5204373797601169},{"$f":"(BQ209*'Default-Data'!$F$19/geo_dollar_index)/'Mexico-IO-Data'!$AS22","v":4.5826021685031648},1578.1769173722687,885.97163718616912,{"$f":"BH209*'Mexico-IO-Data'!AQ22","v":0},{"$f":"BU209*'Mexico-IO-Data'!$AQ22","v":863.22978722784103},{"$f":"BV209*'Mexico-IO-Data'!$AQ22","v":484.60796723065641},{"$f":"BH209*'Mexico-IO-Data'!AR22","v":0},{"$f":"BU209*'Mexico-IO-Data'!$AR22","v":186.58129446430789},{"$f":"BV209*'Mexico-IO-Data'!$AR22","v":104.74474256035795},{"$f":"(BZ209*'Default-Data'!$F$19/geo_dollar_index)/'Mexico-IO-Data'!$AS22","v":0},{"$f":"(CA209*'Default-Data'!$F$19/geo_dollar_index)/'Mexico-IO-Data'!$AS22","v":4.6942420608004888E-2},{"$f":"(CB209*'Default-Data'!$F$19/geo_dollar_index)/'Mexico-IO-Data'!$AS22","v":2.6352972712846666E-2},null,"TTL_C26: Other non-metallic mineral products",60466.124871234635,0,null,194389.34150801061,226254.48826906015,{"$f":"CH209*'Philippines-IO-Data'!AN22","v":22752.678582103857},{"$f":"CK209*'Philippines-IO-Data'!$AN22","v":73146.380994934036},{"$f":"CL209*'Philippines-IO-Data'!$AN22","v":85136.854070059737},{"$f":"CH209*'Philippines-IO-Data'!AO22","v":4839.501308604833},{"$f":"CK209*'Philippines-IO-Data'!$AO22","v":15558.256372641932},{"$f":"CL209*'Philippines-IO-Data'!$AO22","v":18108.633460265533},{"$f":"(CP209*'Default-Data'!$F$19/geo_dollar_index)/'Philippines-IO-Data'!$AP22","v":1.5512401441644292},{"$f":"(CQ209*'Default-Data'!$F$19/geo_dollar_index)/'Philippines-IO-Data'!$AP22","v":4.9869997587420674},{"$f":"(CR209*'Default-Data'!$F$19/geo_dollar_index)/'Philippines-IO-Data'!$AP22","v":5.8044904605308076},2088.5904291813572,2008.6395573391569,{"$f":"CI209*'Philippines-IO-Data'!AN22","v":0},{"$f":"CV209*'Philippines-IO-Data'!$AN22","v":785.91156330953834},{"$f":"CW209*'Philippines-IO-Data'!$AN22","v":755.82700781241635},{"$f":"CI209*'Philippines-IO-Data'!AO22","v":0},{"$f":"CV209*'Philippines-IO-Data'!$AO22","v":167.16361659834482},{"$f":"CW209*'Philippines-IO-Data'!$AO22","v":160.76462295143267},{"$f":"(DA209*'Default-Data'!$F$19/geo_dollar_index)/'Philippines-IO-Data'!$AP22","v":0},{"$f":"(DB209*'Default-Data'!$F$19/geo_dollar_index)/'Philippines-IO-Data'!$AP22","v":5.3582155717160011E-2},{"$f":"(DC209*'Default-Data'!$F$19/geo_dollar_index)/'Philippines-IO-Data'!$AP22","v":5.1531040283077208E-2},null,"DOM_C26: Other non-metallic mineral products",60466.124871234635,0,null,213517.90608917386,199510.48721708503,{"$f":"DI209*'SouthAfrica-IO-Data'!AR22","v":19939.795039093551},{"$f":"DL209*'SouthAfrica-IO-Data'!$AR22","v":70411.379820702889},{"$f":"DM209*'SouthAfrica-IO-Data'!$AR22","v":65792.180857134867},{"$f":"DI209*'SouthAfrica-IO-Data'!AS22","v":8987.6615182291735},{"$f":"DL209*'SouthAfrica-IO-Data'!$AS22","v":31737.219345496229},{"$f":"DM209*'SouthAfrica-IO-Data'!$AS22","v":29655.161997940275},{"$f":"(DQ209*'Default-Data'!$F$19/geo_dollar_index)/'SouthAfrica-IO-Data'!$AT22","v":0.72447444624560342},{"$f":"(DR209*'Default-Data'!$F$19/geo_dollar_index)/'SouthAfrica-IO-Data'!$AT22","v":2.5582632772794804},{"$f":"(DS209*'Default-Data'!$F$19/geo_dollar_index)/'SouthAfrica-IO-Data'!$AT22","v":2.3904334874211512},1798.0173001275332,1782.7587917245339,{"$f":"DJ209*'SouthAfrica-IO-Data'!AR22","v":0},{"$f":"DW209*'SouthAfrica-IO-Data'!$AR22","v":592.92862768427835},{"$f":"DX209*'SouthAfrica-IO-Data'!$AR22","v":587.89685938746743},{"$f":"DJ209*'SouthAfrica-IO-Data'!$AS22","v":0},{"$f":"DZ209*'SouthAfrica-IO-Data'!$AS22","v":88.132682910354504},{"$f":"EA209*'SouthAfrica-IO-Data'!$AS22","v":87.384762808211363},{"$f":"(EB209*'Default-Data'!$F$19/geo_dollar_index)/'SouthAfrica-IO-Data'!$AT22","v":0},{"$f":"(EC209*'Default-Data'!$F$19/geo_dollar_index)/'SouthAfrica-IO-Data'!$AT22","v":7.1041701468302163E-3},{"$f":"(ED209*'Default-Data'!$F$19/geo_dollar_index)/'SouthAfrica-IO-Data'!$AT22","v":7.0438820506733783E-3},null,"OTHERCROP",0,0,null,4738.3680447187171,1102677.5363233951,{"$f":"EJ209*'Zambia-IO-Data'!BO20","v":0},{"$f":"EM209*'Zambia-IO-Data'!$BO20","v":2181.4882393419621},{"$f":"EN209*'Zambia-IO-Data'!$BO20","v":507659.61077193014},{"$f":"EJ209*'Zambia-IO-Data'!BN20","v":0},{"$f":"EM209*'Zambia-IO-Data'!$BN20","v":2050.4977156122604},{"$f":"EN209*'Zambia-IO-Data'!$BN20","v":477176.47678469826},{"$f":"(ER209*'Default-Data'!$F$19/geo_dollar_index)/'Zambia-IO-Data'!$BP20","v":0},{"$f":"(ES209*'Default-Data'!$F$19/geo_dollar_index)/'Zambia-IO-Data'!$BP20","v":20.461958502676868},{"$f":"(ET209*'Default-Data'!$F$19/geo_dollar_index)/'Zambia-IO-Data'!$BP20","v":4761.7537888875995},62.008015071088685,1701.5134703411225,{"$f":"EK209*'Zambia-IO-Data'!BO20","v":0},{"$f":"EX209*'Zambia-IO-Data'!$BO20","v":28.547751957192911},{"$f":"EY209*'Zambia-IO-Data'!$BO20","v":783.3565458825459},{"$f":"EK209*'Zambia-IO-Data'!BN20","v":0},{"$f":"EX209*'Zambia-IO-Data'!$BN20","v":26.833562115258985},{"$f":"EY209*'Zambia-IO-Data'!$BN20","v":736.31880240005194},{"$f":"(FC209*'Default-Data'!$F$19/geo_dollar_index)/'Zambia-IO-Data'!$BP20","v":0},{"$f":"(FD209*'Default-Data'!$F$19/geo_dollar_index)/'Zambia-IO-Data'!$BP20","v":0.2677726633396833},{"$f":"(FE209*'Default-Data'!$F$19/geo_dollar_index)/'Zambia-IO-Data'!$BP20","v":7.3477403387166715},null,"TTL_C26: Other non-metallic mineral products",60466.124871234635,0,null,313725.04177697632,326424.13208210061,{"$f":"FK209*CustomRegion1!C18","v":22752.678582103857},{"$f":"FN209*CustomRegion1!$C18","v":118050.97571424535},{"$f":"FO209*CustomRegion1!$C18","v":122829.49129818448},{"$f":"FK209*CustomRegion1!D18","v":4839.501308604833},{"$f":"FN209*CustomRegion1!$D18","v":25109.476644236976},{"$f":"FO209*CustomRegion1!$D18","v":26125.868289651928},{"$f":"(FS209*'Default-Data'!$C$58/geo_dollar_index)/CustomRegion1!$E18","v":1.5577220424348395},{"$f":"(FT209*'Default-Data'!$C$58/geo_dollar_index)/CustomRegion1!$E18","v":8.0821520128913189},{"$f":"(FU209*'Default-Data'!$C$58/geo_dollar_index)/CustomRegion1!$E18","v":8.4093046612425848},3260.6490768888839,3006.9173873034993,{"$f":"FL209*CustomRegion1!C18","v":0},{"$f":"FY209*CustomRegion1!$C18","v":1226.9431946147402},{"$f":"FZ209*CustomRegion1!$C18","v":1131.4669987856801},{"$f":"FL209*CustomRegion1!D18","v":0},{"$f":"FY209*CustomRegion1!$D18","v":260.97117200926868},{"$f":"FZ209*CustomRegion1!$D18","v":240.66335756939964},{"$f":"(GD209*'Default-Data'!$C$58/geo_dollar_index)/CustomRegion1!$E18","v":0},{"$f":"(GE209*'Default-Data'!$C$58/geo_dollar_index)/CustomRegion1!$E18","v":8.4000503596534118E-2},{"$f":"(GF209*'Default-Data'!$C$58/geo_dollar_index)/CustomRegion1!$E18","v":7.746389410530119E-2},null,"C26 Other non-metallic mineral products",60466.124871234635,0,null,81919.158633182611,63987.040506769008,{"$f":"GL209*CustomRegion2!C22","v":31961.260912437396},{"$f":"GO209*CustomRegion2!$C22","v":43300.932685502143},{"$f":"GP209*CustomRegion2!$C22","v":33822.350961082622},{"$f":"GL209*CustomRegion2!D22","v":8960.9328586286356},{"$f":"GO209*CustomRegion2!$D22","v":12140.220361574975},{"$f":"GP209*CustomRegion2!$D22","v":9482.7240049623542},{"$f":"(GT209*'Default-Data'!$C$59/geo_dollar_index)/CustomRegion2!$E22","v":2.2545018807890465},{"$f":"(GU209*'Default-Data'!$C$59/geo_dollar_index)/CustomRegion2!$E22","v":3.0543861973041206},{"$f":"(GV209*'Default-Data'!$C$59/geo_dollar_index)/CustomRegion2!$E22","v":2.3857805254734203},1276.4485935908024,664.89060109984757,{"$f":"GM209*CustomRegion2!C22","v":0},{"$f":"GZ209*CustomRegion2!$C22","v":674.70681522833263},{"$f":"HA209*CustomRegion2!$C22","v":351.44871653730058},{"$f":"GM209*CustomRegion2!D22","v":0},{"$f":"GZ209*CustomRegion2!$D22","v":189.16658160277731},{"$f":"HA209*CustomRegion2!$D22","v":98.535172337848451},{"$f":"(HE209*'Default-Data'!$C$59/geo_dollar_index)/CustomRegion2!$E22","v":0},{"$f":"(HF209*'Default-Data'!$C$59/geo_dollar_index)/CustomRegion2!$E22","v":4.7592858995169761E-2},{"$f":"(HG209*'Default-Data'!$C$59/geo_dollar_index)/CustomRegion2!$E22","v":2.4790692538851279E-2},null,"OTHERCROP",0,0,null,4738.3680447187171,1102677.5363233951,{"$f":"HM209*CustomRegion3!D21","v":0},{"$f":"HP209*CustomRegion3!$D21","v":2181.4882393419621},{"$f":"HQ209*CustomRegion3!$D21","v":507659.61077193014},{"$f":"HM209*CustomRegion3!E21","v":0},{"$f":"HP209*CustomRegion3!E$12","v":1486.533517544726},{"$f":"HQ209*CustomRegion3!F$12","v":113876169.36166893},{"$f":"(HU209*'Default-Data'!$C$60/geo_dollar_index)/CustomRegion3!$F21","v":0},{"$f":"(HV209*'Default-Data'!$C$60/geo_dollar_index)/CustomRegion3!$F21","v":14.894228515773944},{"$f":"(HW209*'Default-Data'!$C$60/geo_dollar_index)/CustomRegion3!$F21","v":1140975.0731857556},62.008015071088685,1701.5134703411225,{"$f":"HN209*CustomRegion3!D21","v":0},{"$f":"IA209*CustomRegion3!$D21","v":28.547751957192911},{"$f":"IB209*CustomRegion3!$D21","v":783.3565458825459},{"$f":"HN209*CustomRegion3!E21","v":0},{"$f":"IA209*CustomRegion3!$E21","v":26.833562115258985},{"$f":"IB209*CustomRegion3!$E21","v":736.31880240005194},{"$f":"(IF209*'Default-Data'!$C$60/geo_dollar_index)/CustomRegion3!$F21","v":0},{"$f":"(IG209*'Default-Data'!$C$60/geo_dollar_index)/CustomRegion3!$F21","v":0.2688571776686205},{"$f":"(IH209*'Default-Data'!$C$60/geo_dollar_index)/CustomRegion3!$F21","v":7.377499648659894}]
[null,null,null,null,null,null,null,null,null,null,null,null,null,null,null,null,null,null,null,null,null,null,null,null,null,null,null,null,null,209,"TTL_C27: Basic metals",0,0,null,82689.425686368166,61543.253699560679,{"$f":"AF210*'Colombia-IO-Data'!AN23","v":0},{"$f":"AI210*'Colombia-IO-Data'!$AN23","v":24088.678107998545},{"$f":"AJ210*'Colombia-IO-Data'!$AN23","v":17928.478953409951},{"$f":"'Colombia-IO-Data'!$AO23*AK210","v":0},{"$f":"'Colombia-IO-Data'!$AO23*AL210","v":6296.654329635795},{"$f":"'Colombia-IO-Data'!$AO23*AM210","v":4686.4105252952231},{"$f":"(AN210*'Default-Data'!$F$19/geo_dollar_index)/'Colombia-IO-Data'!$AP23","v":0},{"$f":"(AO210*'Default-Data'!$F$19/geo_dollar_index)/'Colombia-IO-Data'!$AP23","v":1.5316501554236555},{"$f":"(AP210*'Default-Data'!$F$19/geo_dollar_index)/'Colombia-IO-Data'!$AP23","v":1.1399611656723521},984.76055540316452,1388.2740550515821,{"$f":"AG210*'Colombia-IO-Data'!AN23","v":0},{"$f":"AT210*'Colombia-IO-Data'!$AN23","v":286.8756172347118},{"$f":"AU210*'Colombia-IO-Data'!$AN23","v":404.42519173689789},{"$f":"AV210*'Colombia-IO-Data'!$AO23","v":0},{"$f":"AW210*'Colombia-IO-Data'!$AO23","v":74.987784270656846},{"$f":"AX210*'Colombia-IO-Data'!$AO23","v":105.71462755851104},{"$f":"(Calculations!AY210*'Default-Data'!$F$19/geo_dollar_index)/'Colombia-IO-Data'!$AP23","v":0},{"$f":"(Calculations!AZ210*'Default-Data'!$F$19/geo_dollar_index)/'Colombia-IO-Data'!$AP23","v":1.8240647401025496E-2},{"$f":"(Calculations!BA210*'Default-Data'!$F$19/geo_dollar_index)/'Colombia-IO-Data'!$AP23","v":2.5714898302177051E-2},null,"DOM_C27: Basic metals",0,0,null,144614.01564389086,60277.823773513926,{"$f":"BG210*'Mexico-IO-Data'!AQ23","v":0},{"$f":"BJ210*'Mexico-IO-Data'!$AQ23","v":54467.679303712255},{"$f":"BK210*'Mexico-IO-Data'!$AQ23","v":22703.146439873693},{"$f":"BG210*'Mexico-IO-Data'!AQ23","v":0},{"$f":"BJ210*'Mexico-IO-Data'!$AR23","v":6675.5699295074874},{"$f":"BK210*'Mexico-IO-Data'!$AR23","v":2782.5022768850813},{"$f":"(BO210*'Default-Data'!$F$19/geo_dollar_index)/'Mexico-IO-Data'!$AS23","v":0},{"$f":"(BP210*'Default-Data'!$F$19/geo_dollar_index)/'Mexico-IO-Data'!$AS23","v":0.66519858967938794},{"$f":"(BQ210*'Default-Data'!$F$19/geo_dollar_index)/'Mexico-IO-Data'!$AS23","v":0.27726720113921416},2465.2258694454772,346.63708231344162,{"$f":"BH210*'Mexico-IO-Data'!AQ23","v":0},{"$f":"BU210*'Mexico-IO-Data'!$AQ23","v":928.50704318190924},{"$f":"BV210*'Mexico-IO-Data'!$AQ23","v":130.55800539220172},{"$f":"BH210*'Mexico-IO-Data'!AR23","v":0},{"$f":"BU210*'Mexico-IO-Data'!$AR23","v":113.79801335465775},{"$f":"BV210*'Mexico-IO-Data'!$AR23","v":16.001215876903672},{"$f":"(BZ210*'Default-Data'!$F$19/geo_dollar_index)/'Mexico-IO-Data'!$AS23","v":0},{"$f":"(CA210*'Default-Data'!$F$19/geo_dollar_index)/'Mexico-IO-Data'!$AS23","v":1.1339597785835702E-2},{"$f":"(CB210*'Default-Data'!$F$19/geo_dollar_index)/'Mexico-IO-Data'!$AS23","v":1.5944685392962469E-3},null,"TTL_C27: Basic metals",0,0,null,661793.16631590249,130952.33767225547,{"$f":"CH210*'Philippines-IO-Data'!AN23","v":0},{"$f":"CK210*'Philippines-IO-Data'!$AN23","v":135852.81229431802},{"$f":"CL210*'Philippines-IO-Data'!$AN23","v":26881.87828884141},{"$f":"CH210*'Philippines-IO-Data'!AO23","v":0},{"$f":"CK210*'Philippines-IO-Data'!$AO23","v":30918.886821578748},{"$f":"CL210*'Philippines-IO-Data'!$AO23","v":6118.0754253616979},{"$f":"(CP210*'Default-Data'!$F$19/geo_dollar_index)/'Philippines-IO-Data'!$AP23","v":0},{"$f":"(CQ210*'Default-Data'!$F$19/geo_dollar_index)/'Philippines-IO-Data'!$AP23","v":9.910653059485691},{"$f":"(CR210*'Default-Data'!$F$19/geo_dollar_index)/'Philippines-IO-Data'!$AP23","v":1.9610706970927452},3841.8464093337757,1162.5671940780571,{"$f":"CI210*'Philippines-IO-Data'!AN23","v":0},{"$f":"CV210*'Philippines-IO-Data'!$AN23","v":788.65371490053042},{"$f":"CW210*'Philippines-IO-Data'!$AN23","v":238.65163745318523},{"$f":"CI210*'Philippines-IO-Data'!AO23","v":0},{"$f":"CV210*'Philippines-IO-Data'!$AO23","v":179.49054230544624},{"$f":"CW210*'Philippines-IO-Data'!$AO23","v":54.314981365373583},{"$f":"(DA210*'Default-Data'!$F$19/geo_dollar_index)/'Philippines-IO-Data'!$AP23","v":0},{"$f":"(DB210*'Default-Data'!$F$19/geo_dollar_index)/'Philippines-IO-Data'!$AP23","v":5.7533393828613458E-2},{"$f":"(DC210*'Default-Data'!$F$19/geo_dollar_index)/'Philippines-IO-Data'!$AP23","v":1.7409971431085372E-2},null,"DOM_C27: Basic metals",0,0,null,102379.71963678296,49069.141458230108,{"$f":"DI210*'SouthAfrica-IO-Data'!AR23","v":0},{"$f":"DL210*'SouthAfrica-IO-Data'!$AR23","v":16333.340854163413},{"$f":"DM210*'SouthAfrica-IO-Data'!$AR23","v":7828.3376405192275},{"$f":"DI210*'SouthAfrica-IO-Data'!AS23","v":0},{"$f":"DL210*'SouthAfrica-IO-Data'!$AS23","v":10514.809171361354},{"$f":"DM210*'SouthAfrica-IO-Data'!$AS23","v":5039.5982765560757},{"$f":"(DQ210*'Default-Data'!$F$19/geo_dollar_index)/'SouthAfrica-IO-Data'!$AT23","v":0},{"$f":"(DR210*'Default-Data'!$F$19/geo_dollar_index)/'SouthAfrica-IO-Data'!$AT23","v":0.84757425903830841},{"$f":"(DS210*'Default-Data'!$F$19/geo_dollar_index)/'SouthAfrica-IO-Data'!$AT23","v":0.40623027061077216},1223.8529008917169,438.46538874846306,{"$f":"DJ210*'SouthAfrica-IO-Data'!AR23","v":0},{"$f":"DW210*'SouthAfrica-IO-Data'!$AR23","v":195.24967109246924},{"$f":"DX210*'SouthAfrica-IO-Data'!$AR23","v":69.951399286787023},{"$f":"DJ210*'SouthAfrica-IO-Data'!$AS23","v":0},{"$f":"DZ210*'SouthAfrica-IO-Data'!$AS23","v":20.052926884269151},{"$f":"EA210*'SouthAfrica-IO-Data'!$AS23","v":7.1842901834438004},{"$f":"(EB210*'Default-Data'!$F$19/geo_dollar_index)/'SouthAfrica-IO-Data'!$AT23","v":0},{"$f":"(EC210*'Default-Data'!$F$19/geo_dollar_index)/'SouthAfrica-IO-Data'!$AT23","v":1.6164196961154435E-3},{"$f":"(ED210*'Default-Data'!$F$19/geo_dollar_index)/'SouthAfrica-IO-Data'!$AT23","v":5.7910888630613162E-4},null,"LIVEST",0,0,null,6995.9975996163821,1999305.2862676226,{"$f":"EJ210*'Zambia-IO-Data'!BO21","v":0},{"$f":"EM210*'Zambia-IO-Data'!$BO21","v":2104.8285520171166},{"$f":"EN210*'Zambia-IO-Data'!$BO21","v":601514.62186973868},{"$f":"EJ210*'Zambia-IO-Data'!BN21","v":0},{"$f":"EM210*'Zambia-IO-Data'!$BN21","v":1353.7427482351345},{"$f":"EN210*'Zambia-IO-Data'!$BN21","v":386870.49191403016},{"$f":"(ER210*'Default-Data'!$F$19/geo_dollar_index)/'Zambia-IO-Data'!$BP21","v":0},{"$f":"(ES210*'Default-Data'!$F$19/geo_dollar_index)/'Zambia-IO-Data'!$BP21","v":13.50902648014705},{"$f":"(ET210*'Default-Data'!$F$19/geo_dollar_index)/'Zambia-IO-Data'!$BP21","v":3860.5885250115421},77.707861970996333,2977.7063542370261,{"$f":"EK210*'Zambia-IO-Data'!BO21","v":0},{"$f":"EX210*'Zambia-IO-Data'!$BO21","v":23.379328575202329},{"$f":"EY210*'Zambia-IO-Data'!$BO21","v":895.87814527903242},{"$f":"EK210*'Zambia-IO-Data'!BN21","v":0},{"$f":"EX210*'Zambia-IO-Data'!$BN21","v":15.036662481110829},{"$f":"EY210*'Zambia-IO-Data'!$BN21","v":576.19350579009529},{"$f":"(FC210*'Default-Data'!$F$19/geo_dollar_index)/'Zambia-IO-Data'!$BP21","v":0},{"$f":"(FD210*'Default-Data'!$F$19/geo_dollar_index)/'Zambia-IO-Data'!$BP21","v":0.15005116141540181},{"$f":"(FE210*'Default-Data'!$F$19/geo_dollar_index)/'Zambia-IO-Data'!$BP21","v":5.7498467397552941},null,"TTL_C27: Basic metals",0,0,null,2052408.2973905348,554131.22599225049,{"$f":"FK210*CustomRegion1!C19","v":0},{"$f":"FN210*CustomRegion1!$C19","v":421318.09962450067},{"$f":"FO210*CustomRegion1!$C19","v":113751.9836450094},{"$f":"FK210*CustomRegion1!D19","v":0},{"$f":"FN210*CustomRegion1!$D19","v":95888.236821707746},{"$f":"FO210*CustomRegion1!$D19","v":25888.935596199084},{"$f":"(FS210*'Default-Data'!$C$58/geo_dollar_index)/CustomRegion1!$E19","v":0},{"$f":"(FT210*'Default-Data'!$C$58/geo_dollar_index)/CustomRegion1!$E19","v":30.864175993052243},{"$f":"(FU210*'Default-Data'!$C$58/geo_dollar_index)/CustomRegion1!$E19","v":8.3330415804766549},17395.000345036908,5104.4841803081472,{"$f":"FL210*CustomRegion1!C19","v":0},{"$f":"FY210*CustomRegion1!$C19","v":3570.8433344654059},{"$f":"FZ210*CustomRegion1!$C19","v":1047.8478269382745},{"$f":"FL210*CustomRegion1!D19","v":0},{"$f":"FY210*CustomRegion1!$D19","v":812.69205290159789},{"$f":"FZ210*CustomRegion1!$D19","v":238.48080742820801},{"$f":"(GD210*'Default-Data'!$C$58/geo_dollar_index)/CustomRegion1!$E19","v":0},{"$f":"(GE210*'Default-Data'!$C$58/geo_dollar_index)/CustomRegion1!$E19","v":0.26158652385640052},{"$f":"(GF210*'Default-Data'!$C$58/geo_dollar_index)/CustomRegion1!$E19","v":7.676138236972041E-2},null,"C27 Basic metals",0,0,null,444461.17396433523,115037.53304218256,{"$f":"GL210*CustomRegion2!C23","v":0},{"$f":"GO210*CustomRegion2!$C23","v":160534.06880905575},{"$f":"GP210*CustomRegion2!$C23","v":41550.18329339975},{"$f":"GL210*CustomRegion2!D23","v":0},{"$f":"GO210*CustomRegion2!$D23","v":39253.627870275814},{"$f":"GP210*CustomRegion2!$D23","v":10159.808724968043},{"$f":"(GT210*'Default-Data'!$C$59/geo_dollar_index)/CustomRegion2!$E23","v":0},{"$f":"(GU210*'Default-Data'!$C$59/geo_dollar_index)/CustomRegion2!$E23","v":3.9114949247537054},{"$f":"(GV210*'Default-Data'!$C$59/geo_dollar_index)/CustomRegion2!$E23","v":1.0123915271096111},4768.4944588243952,1195.3572768437225,{"$f":"GM210*CustomRegion2!C23","v":0},{"$f":"GZ210*CustomRegion2!$C23","v":1722.323258836424},{"$f":"HA210*CustomRegion2!$C23","v":431.74877486066731},{"$f":"GM210*CustomRegion2!D23","v":0},{"$f":"GZ210*CustomRegion2!$D23","v":421.14073838806212},{"$f":"HA210*CustomRegion2!$D23","v":105.57077303003054},{"$f":"(HE210*'Default-Data'!$C$59/geo_dollar_index)/CustomRegion2!$E23","v":0},{"$f":"(HF210*'Default-Data'!$C$59/geo_dollar_index)/CustomRegion2!$E23","v":4.1965289584337179E-2},{"$f":"(HG210*'Default-Data'!$C$59/geo_dollar_index)/CustomRegion2!$E23","v":1.0519780344226012E-2},null,"LIVEST",0,0,null,6995.9975996163821,1999305.2862676226,{"$f":"HM210*CustomRegion3!D22","v":0},{"$f":"HP210*CustomRegion3!$D22","v":2104.8285520171166},{"$f":"HQ210*CustomRegion3!$D22","v":601514.62186973868},{"$f":"HM210*CustomRegion3!E22","v":0},{"$f":"HP210*CustomRegion3!E$12","v":2194.80310991958},{"$f":"HQ210*CustomRegion3!F$12","v":206473080.19333711},{"$f":"(HU210*'Default-Data'!$C$60/geo_dollar_index)/CustomRegion3!$F22","v":0},{"$f":"(HV210*'Default-Data'!$C$60/geo_dollar_index)/CustomRegion3!$F22","v":21.990690879454043},{"$f":"(HW210*'Default-Data'!$C$60/geo_dollar_index)/CustomRegion3!$F22","v":2068743.9620161508},77.707861970996333,2977.7063542370261,{"$f":"HN210*CustomRegion3!D22","v":0},{"$f":"IA210*CustomRegion3!$D22","v":23.379328575202329},{"$f":"IB210*CustomRegion3!$D22","v":895.87814527903242},{"$f":"HN210*CustomRegion3!E22","v":0},{"$f":"IA210*CustomRegion3!$E22","v":15.036662481110829},{"$f":"IB210*CustomRegion3!$E22","v":576.19350579009529},{"$f":"(IF210*'Default-Data'!$C$60/geo_dollar_index)/CustomRegion3!$F22","v":0},{"$f":"(IG210*'Default-Data'!$C$60/geo_dollar_index)/CustomRegion3!$F22","v":0.15065888825577101},{"$f":"(IH210*'Default-Data'!$C$60/geo_dollar_index)/CustomRegion3!$F22","v":5.7731343715123371}]
[null,null,null,null,null,null,null,null,null,null,null,null,null,null,null,null,null,null,null,null,null,null,null,null,null,null,null,null,null,210,"TTL_C28: Fabricated metal products",{"$f":"'Geothermal-Inputs'!B21*'Geothermal-Inputs'!C21","v":252167.33637095167},0,null,149915.4293022065,73024.430090127222,{"$f":"AF211*'Colombia-IO-Data'!AN24","v":89236.578528567232},{"$f":"AI211*'Colombia-IO-Data'!$AN24","v":53051.835230120974},{"$f":"AJ211*'Colombia-IO-Data'!$AN24","v":25841.76992953385},{"$f":"'Colombia-IO-Data'!$AO24*AK211","v":23412.268192457359},{"$f":"'Colombia-IO-Data'!$AO24*AL211","v":13918.774285054296},{"$f":"'Colombia-IO-Data'!$AO24*AM211","v":6779.8929333036185},{"$f":"(AN211*'Default-Data'!$F$19/geo_dollar_index)/'Colombia-IO-Data'!$AP24","v":5.6949932993815402},{"$f":"(AO211*'Default-Data'!$F$19/geo_dollar_index)/'Colombia-IO-Data'!$AP24","v":3.3857175066243923},{"$f":"(AP211*'Default-Data'!$F$19/geo_dollar_index)/'Colombia-IO-Data'!$AP24","v":1.6491971007801656},1079.0152093161541,1557.8060039879158,{"$f":"AG211*'Colombia-IO-Data'!AN24","v":0},{"$f":"AT211*'Colombia-IO-Data'!$AN24","v":381.84019724908046},{"$f":"AU211*'Colombia-IO-Data'!$AN24","v":551.27392709833441},{"$f":"AV211*'Colombia-IO-Data'!$AO24","v":0},{"$f":"AW211*'Colombia-IO-Data'!$AO24","v":100.18027642996663},{"$f":"AX211*'Colombia-IO-Data'!$AO24","v":144.63321254079256},{"$f":"(Calculations!AY211*'Default-Data'!$F$19/geo_dollar_index)/'Colombia-IO-Data'!$AP24","v":0},{"$f":"(Calculations!AZ211*'Default-Data'!$F$19/geo_dollar_index)/'Colombia-IO-Data'!$AP24","v":2.4368677067463911E-2},{"$f":"(Calculations!BA211*'Default-Data'!$F$19/geo_dollar_index)/'Colombia-IO-Data'!$AP24","v":3.5181776046508947E-2},null,"DOM_C28: Fabricated metal products",252167.33637095167,0,null,124580.40344529389,103375.05677962891,{"$f":"BG211*'Mexico-IO-Data'!AQ24","v":92677.477749783546},{"$f":"BJ211*'Mexico-IO-Data'!$AQ24","v":45786.25342409849},{"$f":"BK211*'Mexico-IO-Data'!$AQ24","v":37992.785514786825},{"$f":"BG211*'Mexico-IO-Data'!AQ24","v":92677.477749783546},{"$f":"BJ211*'Mexico-IO-Data'!$AR24","v":16623.663925430865},{"$f":"BK211*'Mexico-IO-Data'!$AR24","v":13794.081209020205},{"$f":"(BO211*'Default-Data'!$F$19/geo_dollar_index)/'Mexico-IO-Data'!$AS24","v":20.509216724635767},{"$f":"(BP211*'Default-Data'!$F$19/geo_dollar_index)/'Mexico-IO-Data'!$AS24","v":3.6787613828319503},{"$f":"(BQ211*'Default-Data'!$F$19/geo_dollar_index)/'Mexico-IO-Data'!$AS24","v":3.0525841650204155},2096.2664641517622,594.47448203699605,{"$f":"BH211*'Mexico-IO-Data'!AQ24","v":0},{"$f":"BU211*'Mexico-IO-Data'!$AQ24","v":770.4276508804096},{"$f":"BV211*'Mexico-IO-Data'!$AQ24","v":218.48347361194706},{"$f":"BH211*'Mexico-IO-Data'!AR24","v":0},{"$f":"BU211*'Mexico-IO-Data'!$AR24","v":279.71998993816516},{"$f":"BV211*'Mexico-IO-Data'!$AR24","v":79.325028080898562},{"$f":"(BZ211*'Default-Data'!$F$19/geo_dollar_index)/'Mexico-IO-Data'!$AS24","v":0},{"$f":"(CA211*'Default-Data'!$F$19/geo_dollar_index)/'Mexico-IO-Data'!$AS24","v":6.1901100840739749E-2},{"$f":"(CB211*'Default-Data'!$F$19/geo_dollar_index)/'Mexico-IO-Data'!$AS24","v":1.7554364146501241E-2},null,"TTL_C28: Fabricated metal products",252167.33637095167,0,null,481116.61339048838,82227.964211078943,{"$f":"CH211*'Philippines-IO-Data'!AN24","v":63505.344531764422},{"$f":"CK211*'Philippines-IO-Data'!$AN24","v":121163.49695811859},{"$f":"CL211*'Philippines-IO-Data'!$AN24","v":20708.134814448946},{"$f":"CH211*'Philippines-IO-Data'!AO24","v":19467.438439113103},{"$f":"CK211*'Philippines-IO-Data'!$AO24","v":37142.431640852425},{"$f":"CL211*'Philippines-IO-Data'!$AO24","v":6348.037990526891},{"$f":"(CP211*'Default-Data'!$F$19/geo_dollar_index)/'Philippines-IO-Data'!$AP24","v":6.2400379884405597},{"$f":"(CQ211*'Default-Data'!$F$19/geo_dollar_index)/'Philippines-IO-Data'!$AP24","v":11.90553061959675},{"$f":"(CR211*'Default-Data'!$F$19/geo_dollar_index)/'Philippines-IO-Data'!$AP24","v":2.0347822512367642},3365.7591566176852,730.00249806062402,{"$f":"CI211*'Philippines-IO-Data'!AN24","v":0},{"$f":"CV211*'Philippines-IO-Data'!$AN24","v":847.62641319063823},{"$f":"CW211*'Philippines-IO-Data'!$AN24","v":183.84244690673162},{"$f":"CI211*'Philippines-IO-Data'!AO24","v":0},{"$f":"CV211*'Philippines-IO-Data'!$AO24","v":259.83820952111182},{"$f":"CW211*'Philippines-IO-Data'!$AO24","v":56.356540446175899},{"$f":"(DA211*'Default-Data'!$F$19/geo_dollar_index)/'Philippines-IO-Data'!$AP24","v":0},{"$f":"(DB211*'Default-Data'!$F$19/geo_dollar_index)/'Philippines-IO-Data'!$AP24","v":8.3287809196430834E-2},{"$f":"(DC211*'Default-Data'!$F$19/geo_dollar_index)/'Philippines-IO-Data'!$AP24","v":1.806436703940828E-2},null,"DOM_C28: Fabricated metal products",252167.33637095167,0,null,537378.92458355846,291879.93381958641,{"$f":"DI211*'SouthAfrica-IO-Data'!AR24","v":66268.510954324505},{"$f":"DL211*'SouthAfrica-IO-Data'!$AR24","v":141220.91172824433},{"$f":"DM211*'SouthAfrica-IO-Data'!$AR24","v":76704.813835274035},{"$f":"DI211*'SouthAfrica-IO-Data'!AS24","v":61555.477559977247},{"$f":"DL211*'SouthAfrica-IO-Data'!$AS24","v":131177.24448160693},{"$f":"DM211*'SouthAfrica-IO-Data'!$AS24","v":71249.547919279503},{"$f":"(DQ211*'Default-Data'!$F$19/geo_dollar_index)/'SouthAfrica-IO-Data'!$AT24","v":4.9618435705659225},{"$f":"(DR211*'Default-Data'!$F$19/geo_dollar_index)/'SouthAfrica-IO-Data'!$AT24","v":10.573891925400508},{"$f":"(DS211*'Default-Data'!$F$19/geo_dollar_index)/'SouthAfrica-IO-Data'!$AT24","v":5.7432599869693268},7467.3766772509662,2608.1411829677636,{"$f":"DJ211*'SouthAfrica-IO-Data'!AR24","v":0},{"$f":"DW211*'SouthAfrica-IO-Data'!$AR24","v":1962.3950518655565},{"$f":"DX211*'SouthAfrica-IO-Data'!$AR24","v":685.40848724225998},{"$f":"DJ211*'SouthAfrica-IO-Data'!$AS24","v":0},{"$f":"DZ211*'SouthAfrica-IO-Data'!$AS24","v":479.0317664347416},{"$f":"EA211*'SouthAfrica-IO-Data'!$AS24","v":167.31210061954329},{"$f":"(EB211*'Default-Data'!$F$19/geo_dollar_index)/'SouthAfrica-IO-Data'!$AT24","v":0},{"$f":"(EC211*'Default-Data'!$F$19/geo_dollar_index)/'SouthAfrica-IO-Data'!$AT24","v":3.8613634149213122E-2},{"$f":"(ED211*'Default-Data'!$F$19/geo_dollar_index)/'SouthAfrica-IO-Data'!$AT24","v":1.3486638454361244E-2},null,"FISH",0,0,null,7872.8444293427701,989210.95701173344,{"$f":"EJ211*'Zambia-IO-Data'!BO22","v":0},{"$f":"EM211*'Zambia-IO-Data'!$BO22","v":718.3874768989416},{"$f":"EN211*'Zambia-IO-Data'!$BO22","v":90264.296456798023},{"$f":"EJ211*'Zambia-IO-Data'!BN22","v":0},{"$f":"EM211*'Zambia-IO-Data'!$BN22","v":305.41941527913229},{"$f":"EN211*'Zambia-IO-Data'!$BN22","v":38375.486114293257},{"$f":"(ER211*'Default-Data'!$F$19/geo_dollar_index)/'Zambia-IO-Data'!$BP22","v":0},{"$f":"(ES211*'Default-Data'!$F$19/geo_dollar_index)/'Zambia-IO-Data'!$BP22","v":3.0477865709240253},{"$f":"(ET211*'Default-Data'!$F$19/geo_dollar_index)/'Zambia-IO-Data'!$BP22","v":382.94975820358621},19.546340393899758,1570.4571425280092,{"$f":"EK211*'Zambia-IO-Data'!BO22","v":0},{"$f":"EX211*'Zambia-IO-Data'!$BO22","v":1.7835797829112869},{"$f":"EY211*'Zambia-IO-Data'!$BO22","v":143.30230380188024},{"$f":"EK211*'Zambia-IO-Data'!BN22","v":0},{"$f":"EX211*'Zambia-IO-Data'!$BN22","v":0.75828144548387999},{"$f":"EY211*'Zambia-IO-Data'!$BN22","v":60.924371934005407},{"$f":"(FC211*'Default-Data'!$F$19/geo_dollar_index)/'Zambia-IO-Data'!$BP22","v":0},{"$f":"(FD211*'Default-Data'!$F$19/geo_dollar_index)/'Zambia-IO-Data'!$BP22","v":7.5669060017499552E-3},{"$f":"(FE211*'Default-Data'!$F$19/geo_dollar_index)/'Zambia-IO-Data'!$BP22","v":0.60796554944858194},null,"TTL_C28: Fabricated metal products",252167.33637095167,0,null,856115.03724886943,197503.24882819387,{"$f":"FK211*CustomRegion1!C20","v":63505.344531764422},{"$f":"FN211*CustomRegion1!$C20","v":215602.38999128624},{"$f":"FO211*CustomRegion1!$C20","v":49738.844227336973},{"$f":"FK211*CustomRegion1!D20","v":19467.438439113103},{"$f":"FN211*CustomRegion1!$D20","v":66092.488520893399},{"$f":"FO211*CustomRegion1!$D20","v":15247.344852117061},{"$f":"(FS211*'Default-Data'!$C$58/geo_dollar_index)/CustomRegion1!$E20","v":6.266112153421866},{"$f":"(FT211*'Default-Data'!$C$58/geo_dollar_index)/CustomRegion1!$E20","v":21.273622971298984},{"$f":"(FU211*'Default-Data'!$C$58/geo_dollar_index)/CustomRegion1!$E20","v":4.90776293882133},6775.0114618420521,1819.3383839680591,{"$f":"FL211*CustomRegion1!C20","v":0},{"$f":"FY211*CustomRegion1!$C20","v":1706.2060585753757},{"$f":"FZ211*CustomRegion1!$C20","v":458.17873383804528},{"$f":"FL211*CustomRegion1!D20","v":0},{"$f":"FY211*CustomRegion1!$D20","v":523.03411082423236},{"$f":"FZ211*CustomRegion1!$D20","v":140.45378953328094},{"$f":"(GD211*'Default-Data'!$C$58/geo_dollar_index)/CustomRegion1!$E20","v":0},{"$f":"(GE211*'Default-Data'!$C$58/geo_dollar_index)/CustomRegion1!$E20","v":0.16835242133886169},{"$f":"(GF211*'Default-Data'!$C$58/geo_dollar_index)/CustomRegion1!$E20","v":4.5208782878203062E-2},null,"C28 Fabricated metal products except machinery and equipment",252167.33637095167,0,null,220414.84461431438,85702.147146758216,{"$f":"GL211*CustomRegion2!C24","v":87250.268635169559},{"$f":"GO211*CustomRegion2!$C24","v":76263.859866005325},{"$f":"GP211*CustomRegion2!$C24","v":29653.068747038793},{"$f":"GL211*CustomRegion2!D24","v":38880.994557312573},{"$f":"GO211*CustomRegion2!$D24","v":33985.164364004704},{"$f":"GP211*CustomRegion2!$D24","v":13214.180570402206},{"$f":"(GT211*'Default-Data'!$C$59/geo_dollar_index)/CustomRegion2!$E24","v":8.604234418185488},{"$f":"(GU211*'Default-Data'!$C$59/geo_dollar_index)/CustomRegion2!$E24","v":7.5208035251624947},{"$f":"(GV211*'Default-Data'!$C$59/geo_dollar_index)/CustomRegion2!$E24","v":2.9242540878005601},1192.7469688029942,890.5327028826664,{"$f":"GM211*CustomRegion2!C24","v":0},{"$f":"GZ211*CustomRegion2!$C24","v":412.69220248556138},{"$f":"HA211*CustomRegion2!$C24","v":308.12562274368702},{"$f":"GM211*CustomRegion2!D24","v":0},{"$f":"GZ211*CustomRegion2!$D24","v":183.90640544364516},{"$f":"HA211*CustomRegion2!$D24","v":137.30881117352516},{"$f":"(HE211*'Default-Data'!$C$59/geo_dollar_index)/CustomRegion2!$E24","v":0},{"$f":"(HF211*'Default-Data'!$C$59/geo_dollar_index)/CustomRegion2!$E24","v":4.0697874153154359E-2},{"$f":"(HG211*'Default-Data'!$C$59/geo_dollar_index)/CustomRegion2!$E24","v":3.0385981955216666E-2},null,"FISH",0,0,null,7872.8444293427701,989210.95701173344,{"$f":"HM211*CustomRegion3!D23","v":0},{"$f":"HP211*CustomRegion3!$D23","v":718.3874768989416},{"$f":"HQ211*CustomRegion3!$D23","v":90264.296456798023},{"$f":"HM211*CustomRegion3!E23","v":0},{"$f":"HP211*CustomRegion3!E$12","v":2469.8898465005259},{"$f":"HQ211*CustomRegion3!F$12","v":102158201.98050112},{"$f":"(HU211*'Default-Data'!$C$60/geo_dollar_index)/CustomRegion3!$F23","v":0},{"$f":"(HV211*'Default-Data'!$C$60/geo_dollar_index)/CustomRegion3!$F23","v":24.746905029984855},{"$f":"(HW211*'Default-Data'!$C$60/geo_dollar_index)/CustomRegion3!$F23","v":1023567.6404870527},19.546340393899758,1570.4571425280092,{"$f":"HN211*CustomRegion3!D23","v":0},{"$f":"IA211*CustomRegion3!$D23","v":1.7835797829112869},{"$f":"IB211*CustomRegion3!$D23","v":143.30230380188024},{"$f":"HN211*CustomRegion3!E23","v":0},{"$f":"IA211*CustomRegion3!$E23","v":0.75828144548387999},{"$f":"IB211*CustomRegion3!$E23","v":60.924371934005407},{"$f":"(IF211*'Default-Data'!$C$60/geo_dollar_index)/CustomRegion3!$F23","v":0},{"$f":"(IG211*'Default-Data'!$C$60/geo_dollar_index)/CustomRegion3!$F23","v":7.5975529613098568E-3},{"$f":"(IH211*'Default-Data'!$C$60/geo_dollar_index)/CustomRegion3!$F23","v":0.61042788948603643}]
[null,null,null,null,null,null,null,null,null,null,null,null,null,null,null,null,null,null,null,null,null,null,null,null,null,null,null,null,null,211,"TTL_C29: Machinery and equipment, nec",{"$f":"'Geothermal-Inputs'!B30*'Geothermal-Inputs'!C30","v":0},{"$f":"'Geothermal-Inputs'!B42*'Geothermal-Inputs'!C42","v":0},null,28645.908107888019,51432.218065036323,{"$f":"AF212*'Colombia-IO-Data'!AN25","v":0},{"$f":"AI212*'Colombia-IO-Data'!$AN25","v":10075.759719172447},{"$f":"AJ212*'Colombia-IO-Data'!$AN25","v":18090.495476548997},{"$f":"'Colombia-IO-Data'!$AO25*AK212","v":0},{"$f":"'Colombia-IO-Data'!$AO25*AL212","v":5150.4173557243557},{"$f":"'Colombia-IO-Data'!$AO25*AM212","v":9247.3028806728562},{"$f":"(AN212*'Default-Data'!$F$19/geo_dollar_index)/'Colombia-IO-Data'!$AP25","v":0},{"$f":"(AO212*'Default-Data'!$F$19/geo_dollar_index)/'Colombia-IO-Data'!$AP25","v":1.2528300158170169},{"$f":"(AP212*'Default-Data'!$F$19/geo_dollar_index)/'Colombia-IO-Data'!$AP25","v":2.2493902559919365},389.48840104907174,726.70804834652199,{"$f":"AG212*'Colombia-IO-Data'!AN25","v":0},{"$f":"AT212*'Colombia-IO-Data'!$AN25","v":136.99658351185204},{"$f":"AU212*'Colombia-IO-Data'!$AN25","v":255.60843292351643},{"$f":"AV212*'Colombia-IO-Data'!$AO25","v":0},{"$f":"AW212*'Colombia-IO-Data'!$AO25","v":70.028424760047372},{"$f":"AX212*'Colombia-IO-Data'!$AO25","v":130.65914093740528},{"$f":"(Calculations!AY212*'Default-Data'!$F$19/geo_dollar_index)/'Colombia-IO-Data'!$AP25","v":0},{"$f":"(Calculations!AZ212*'Default-Data'!$F$19/geo_dollar_index)/'Colombia-IO-Data'!$AP25","v":1.7034291871951036E-2},{"$f":"(Calculations!BA212*'Default-Data'!$F$19/geo_dollar_index)/'Colombia-IO-Data'!$AP25","v":3.1782607563892347E-2},null,"DOM_C29: Machinery and equipment, nec",0,0,null,18920.441408427563,18147.740252052805,{"$f":"BG212*'Mexico-IO-Data'!AQ25","v":0},{"$f":"BJ212*'Mexico-IO-Data'!$AQ25","v":6706.4561179086359},{"$f":"BK212*'Mexico-IO-Data'!$AQ25","v":6432.5678779029686},{"$f":"BG212*'Mexico-IO-Data'!AQ25","v":0},{"$f":"BJ212*'Mexico-IO-Data'!$AR25","v":2398.2963690390925},{"$f":"BK212*'Mexico-IO-Data'!$AR25","v":2300.3511711611795},{"$f":"(BO212*'Default-Data'!$F$19/geo_dollar_index)/'Mexico-IO-Data'!$AS25","v":0},{"$f":"(BP212*'Default-Data'!$F$19/geo_dollar_index)/'Mexico-IO-Data'!$AS25","v":0.27688775782207248},{"$f":"(BQ212*'Default-Data'!$F$19/geo_dollar_index)/'Mexico-IO-Data'!$AS25","v":0.26557980331738362},329.78709146721178,104.36142743291816,{"$f":"BH212*'Mexico-IO-Data'!AQ25","v":0},{"$f":"BU212*'Mexico-IO-Data'!$AQ25","v":116.89487625761407},{"$f":"BV212*'Mexico-IO-Data'!$AQ25","v":36.991490757156647},{"$f":"BH212*'Mexico-IO-Data'!AR25","v":0},{"$f":"BU212*'Mexico-IO-Data'!$AR25","v":41.802787099326416},{"$f":"BV212*'Mexico-IO-Data'!$AR25","v":13.228530301022474},{"$f":"(BZ212*'Default-Data'!$F$19/geo_dollar_index)/'Mexico-IO-Data'!$AS25","v":0},{"$f":"(CA212*'Default-Data'!$F$19/geo_dollar_index)/'Mexico-IO-Data'!$AS25","v":4.8262091958565937E-3},{"$f":"(CB212*'Default-Data'!$F$19/geo_dollar_index)/'Mexico-IO-Data'!$AS25","v":1.5272583245410209E-3},null,"TTL_C29: Machinery and equipment, nec",0,0,null,184946.87015456017,19751.819345569122,{"$f":"CH212*'Philippines-IO-Data'!AN25","v":0},{"$f":"CK212*'Philippines-IO-Data'!$AN25","v":67666.031344077986},{"$f":"CL212*'Philippines-IO-Data'!$AN25","v":7226.5468770729121},{"$f":"CH212*'Philippines-IO-Data'!AO25","v":0},{"$f":"CK212*'Philippines-IO-Data'!$AO25","v":20131.141799536996},{"$f":"CL212*'Philippines-IO-Data'!$AO25","v":2149.9508248622606},{"$f":"(CP212*'Default-Data'!$F$19/geo_dollar_index)/'Philippines-IO-Data'!$AP25","v":0},{"$f":"(CQ212*'Default-Data'!$F$19/geo_dollar_index)/'Philippines-IO-Data'!$AP25","v":6.4527795977207907},{"$f":"(CR212*'Default-Data'!$F$19/geo_dollar_index)/'Philippines-IO-Data'!$AP25","v":0.68913919324204731},3699.7375855730156,175.35248016714058,{"$f":"CI212*'Philippines-IO-Data'!AN25","v":0},{"$f":"CV212*'Philippines-IO-Data'!$AN25","v":1353.6133875692644},{"$f":"CW212*'Philippines-IO-Data'!$AN25","v":64.155756782126801},{"$f":"CI212*'Philippines-IO-Data'!AO25","v":0},{"$f":"CV212*'Philippines-IO-Data'!$AO25","v":402.70993444768271},{"$f":"CW212*'Philippines-IO-Data'!$AO25","v":19.086809310128608},{"$f":"(DA212*'Default-Data'!$F$19/geo_dollar_index)/'Philippines-IO-Data'!$AP25","v":0},{"$f":"(DB212*'Default-Data'!$F$19/geo_dollar_index)/'Philippines-IO-Data'!$AP25","v":0.12908351024894427},{"$f":"(DC212*'Default-Data'!$F$19/geo_dollar_index)/'Philippines-IO-Data'!$AP25","v":6.1180321974989918E-3},null,"DOM_C29: Machinery and equipment, nec",0,0,null,148691.57834166227,47148.174064717314,{"$f":"DI212*'SouthAfrica-IO-Data'!AR25","v":0},{"$f":"DL212*'SouthAfrica-IO-Data'!$AR25","v":45186.201537193541},{"$f":"DM212*'SouthAfrica-IO-Data'!$AR25","v":14327.959385189086},{"$f":"DI212*'SouthAfrica-IO-Data'!AS25","v":0},{"$f":"DL212*'SouthAfrica-IO-Data'!$AS25","v":36177.889854977424},{"$f":"DM212*'SouthAfrica-IO-Data'!$AS25","v":11471.540400608657},{"$f":"(DQ212*'Default-Data'!$F$19/geo_dollar_index)/'SouthAfrica-IO-Data'!$AT25","v":0},{"$f":"(DR212*'Default-Data'!$F$19/geo_dollar_index)/'SouthAfrica-IO-Data'!$AT25","v":2.9162153765870031},{"$f":"(DS212*'Default-Data'!$F$19/geo_dollar_index)/'SouthAfrica-IO-Data'!$AT25","v":0.92469413344712803},2092.2513685591048,421.30026847248064,{"$f":"DJ212*'SouthAfrica-IO-Data'!AR25","v":0},{"$f":"DW212*'SouthAfrica-IO-Data'!$AR25","v":635.81874011011871},{"$f":"DX212*'SouthAfrica-IO-Data'!$AR25","v":128.0298390210661},{"$f":"DJ212*'SouthAfrica-IO-Data'!$AS25","v":0},{"$f":"DZ212*'SouthAfrica-IO-Data'!$AS25","v":154.69995411965598},{"$f":"EA212*'SouthAfrica-IO-Data'!$AS25","v":31.150717921707674},{"$f":"(EB212*'Default-Data'!$F$19/geo_dollar_index)/'SouthAfrica-IO-Data'!$AT25","v":0},{"$f":"(EC212*'Default-Data'!$F$19/geo_dollar_index)/'SouthAfrica-IO-Data'!$AT25","v":1.24700027218137E-2},{"$f":"(ED212*'Default-Data'!$F$19/geo_dollar_index)/'SouthAfrica-IO-Data'!$AT25","v":2.5109867645448096E-3},null,"FOREST",0,0,null,231160.17451391905,41839.831107106991,{"$f":"EJ212*'Zambia-IO-Data'!BO23","v":0},{"$f":"EM212*'Zambia-IO-Data'!$BO23","v":74097.425879118353},{"$f":"EN212*'Zambia-IO-Data'!$BO23","v":13411.582642956579},{"$f":"EJ212*'Zambia-IO-Data'!BN23","v":0},{"$f":"EM212*'Zambia-IO-Data'!$BN23","v":42051.091038444429},{"$f":"EN212*'Zambia-IO-Data'!$BN23","v":7611.2182845412854},{"$f":"(ER212*'Default-Data'!$F$19/geo_dollar_index)/'Zambia-IO-Data'!$BP23","v":0},{"$f":"(ES212*'Default-Data'!$F$19/geo_dollar_index)/'Zambia-IO-Data'!$BP23","v":419.62869466743837},{"$f":"(ET212*'Default-Data'!$F$19/geo_dollar_index)/'Zambia-IO-Data'!$BP23","v":75.952502413101442},3932.6143708728332,68.627367445860727,{"$f":"EK212*'Zambia-IO-Data'!BO23","v":0},{"$f":"EX212*'Zambia-IO-Data'!$BO23","v":1260.5830674321423},{"$f":"EY212*'Zambia-IO-Data'!$BO23","v":21.998215234486644},{"$f":"EK212*'Zambia-IO-Data'!BN23","v":0},{"$f":"EX212*'Zambia-IO-Data'!$BN23","v":715.39453228224977},{"$f":"EY212*'Zambia-IO-Data'!$BN23","v":12.484225201261467},{"$f":"(FC212*'Default-Data'!$F$19/geo_dollar_index)/'Zambia-IO-Data'!$BP23","v":0},{"$f":"(FD212*'Default-Data'!$F$19/geo_dollar_index)/'Zambia-IO-Data'!$BP23","v":7.1389366206781828},{"$f":"(FE212*'Default-Data'!$F$19/geo_dollar_index)/'Zambia-IO-Data'!$BP23","v":0.12458033776936411},null,"TTL_C29: Machinery and equipment, nec",0,0,null,584455.12210231181,102289.52216591022,{"$f":"FK212*CustomRegion1!C21","v":0},{"$f":"FN212*CustomRegion1!$C21","v":213833.07853943072},{"$f":"FO212*CustomRegion1!$C21","v":37424.40197698355},{"$f":"FK212*CustomRegion1!D21","v":0},{"$f":"FN212*CustomRegion1!$D21","v":63616.912947349185},{"$f":"FO212*CustomRegion1!$D21","v":11134.034729043768},{"$f":"(FS212*'Default-Data'!$C$58/geo_dollar_index)/CustomRegion1!$E21","v":0},{"$f":"(FT212*'Default-Data'!$C$58/geo_dollar_index)/CustomRegion1!$E21","v":20.476793217008698},{"$f":"(FU212*'Default-Data'!$C$58/geo_dollar_index)/CustomRegion1!$E21","v":3.5837848184540477},10269.495554010686,942.25920362493707,{"$f":"FL212*CustomRegion1!C21","v":0},{"$f":"FY212*CustomRegion1!$C21","v":3757.2736833277131},{"$f":"FZ212*CustomRegion1!$C21","v":344.74192914671971},{"$f":"FL212*CustomRegion1!D21","v":0},{"$f":"FY212*CustomRegion1!$D21","v":1117.8165439335844},{"$f":"FZ212*CustomRegion1!$D21","v":102.5632584333015},{"$f":"(GD212*'Default-Data'!$C$58/geo_dollar_index)/CustomRegion1!$E21","v":0},{"$f":"(GE212*'Default-Data'!$C$58/geo_dollar_index)/CustomRegion1!$E21","v":0.35979894597562501},{"$f":"(GF212*'Default-Data'!$C$58/geo_dollar_index)/CustomRegion1!$E21","v":3.3012708999876884E-2},null,"C29 Machinery and equipment n.e.c ",0,0,null,287416.99118526146,34767.044152993185,{"$f":"GL212*CustomRegion2!C25","v":0},{"$f":"GO212*CustomRegion2!$C25","v":107996.30431287967},{"$f":"GP212*CustomRegion2!$C25","v":13063.640618190824},{"$f":"GL212*CustomRegion2!D25","v":0},{"$f":"GO212*CustomRegion2!$D25","v":77338.518847649786},{"$f":"GP212*CustomRegion2!$D25","v":9355.1591658343732},{"$f":"(GT212*'Default-Data'!$C$59/geo_dollar_index)/CustomRegion2!$E25","v":0},{"$f":"(GU212*'Default-Data'!$C$59/geo_dollar_index)/CustomRegion2!$E25","v":8.9288752438822492},{"$f":"(GV212*'Default-Data'!$C$59/geo_dollar_index)/CustomRegion2!$E25","v":1.0800704529000047},835.37831952868964,361.26504214401393,{"$f":"GM212*CustomRegion2!C25","v":0},{"$f":"GZ212*CustomRegion2!$C25","v":313.89157210281411},{"$f":"HA212*CustomRegion2!$C25","v":135.74454755822697},{"$f":"GM212*CustomRegion2!D25","v":0},{"$f":"GZ212*CustomRegion2!$D25","v":224.78462961900414},{"$f":"HA212*CustomRegion2!$D25","v":97.209643576160801},{"$f":"(HE212*'Default-Data'!$C$59/geo_dollar_index)/CustomRegion2!$E25","v":0},{"$f":"(HF212*'Default-Data'!$C$59/geo_dollar_index)/CustomRegion2!$E25","v":2.5951801825480125E-2},{"$f":"(HG212*'Default-Data'!$C$59/geo_dollar_index)/CustomRegion2!$E25","v":1.1223033398191022E-2},null,"FOREST",0,0,null,231160.17451391905,41839.831107106991,{"$f":"HM212*CustomRegion3!D24","v":0},{"$f":"HP212*CustomRegion3!$D24","v":74097.425879118353},{"$f":"HQ212*CustomRegion3!$D24","v":13411.582642956579},{"$f":"HM212*CustomRegion3!E24","v":0},{"$f":"HP212*CustomRegion3!E$12","v":72520.189249424904},{"$f":"HQ212*CustomRegion3!F$12","v":4320900.2961126631},{"$f":"(HU212*'Default-Data'!$C$60/geo_dollar_index)/CustomRegion3!$F24","v":0},{"$f":"(HV212*'Default-Data'!$C$60/geo_dollar_index)/CustomRegion3!$F24","v":726.61144733025435},{"$f":"(HW212*'Default-Data'!$C$60/geo_dollar_index)/CustomRegion3!$F24","v":43292.987103629828},3932.6143708728332,68.627367445860727,{"$f":"HN212*CustomRegion3!D24","v":0},{"$f":"IA212*CustomRegion3!$D24","v":1260.5830674321423},{"$f":"IB212*CustomRegion3!$D24","v":21.998215234486644},{"$f":"HN212*CustomRegion3!E24","v":0},{"$f":"IA212*CustomRegion3!$E24","v":715.39453228224977},{"$f":"IB212*CustomRegion3!$E24","v":12.484225201261467},{"$f":"(IF212*'Default-Data'!$C$60/geo_dollar_index)/CustomRegion3!$F24","v":0},{"$f":"(IG212*'Default-Data'!$C$60/geo_dollar_index)/CustomRegion3!$F24","v":7.1678502482379844},{"$f":"(IH212*'Default-Data'!$C$60/geo_dollar_index)/CustomRegion3!$F24","v":0.12508490444069498}]
[null,null,null,null,null,null,null,null,null,null,null,null,null,null,null,null,null,null,null,null,null,null,null,null,null,null,null,null,null,212,"TTL_C30T33X: Computer, Electronic and optical equipment",0,0,null,29988.966473551533,9580.2744728954713,{"$f":"AF213*'Colombia-IO-Data'!AN26","v":0},{"$f":"AI213*'Colombia-IO-Data'!$AN26","v":7164.2606803022418},{"$f":"AJ213*'Colombia-IO-Data'!$AN26","v":2288.6945361455114},{"$f":"'Colombia-IO-Data'!$AO26*AK213","v":0},{"$f":"'Colombia-IO-Data'!$AO26*AL213","v":2845.8495081108213},{"$f":"'Colombia-IO-Data'!$AO26*AM213","v":909.13501204856345},{"$f":"(AN213*'Default-Data'!$F$19/geo_dollar_index)/'Colombia-IO-Data'!$AP26","v":0},{"$f":"(AO213*'Default-Data'!$F$19/geo_dollar_index)/'Colombia-IO-Data'!$AP26","v":0.69224791662692287},{"$f":"(AP213*'Default-Data'!$F$19/geo_dollar_index)/'Colombia-IO-Data'!$AP26","v":0.22114550197736696},282.5729799616584,345.38685228342746,{"$f":"AG213*'Colombia-IO-Data'!AN26","v":0},{"$f":"AT213*'Colombia-IO-Data'!$AN26","v":67.505710523254123},{"$f":"AU213*'Colombia-IO-Data'!$AN26","v":82.511728021365016},{"$f":"AV213*'Colombia-IO-Data'!$AO26","v":0},{"$f":"AW213*'Colombia-IO-Data'!$AO26","v":26.815201408775309},{"$f":"AX213*'Colombia-IO-Data'!$AO26","v":32.776021292551462},{"$f":"(Calculations!AY213*'Default-Data'!$F$19/geo_dollar_index)/'Colombia-IO-Data'!$AP26","v":0},{"$f":"(Calculations!AZ213*'Default-Data'!$F$19/geo_dollar_index)/'Colombia-IO-Data'!$AP26","v":6.5227508539194247E-3},{"$f":"(Calculations!BA213*'Default-Data'!$F$19/geo_dollar_index)/'Colombia-IO-Data'!$AP26","v":7.9727098676241268E-3},null,"DOM_C30T33X: Computer, Electronic and optical equipment",0,0,null,83030.515212646947,102794.4272352354,{"$f":"BG213*'Mexico-IO-Data'!AQ26","v":0},{"$f":"BJ213*'Mexico-IO-Data'!$AQ26","v":11254.558479963593},{"$f":"BK213*'Mexico-IO-Data'!$AQ26","v":13933.502517362469},{"$f":"BG213*'Mexico-IO-Data'!AQ26","v":0},{"$f":"BJ213*'Mexico-IO-Data'!$AR26","v":4825.2852353832604},{"$f":"BK213*'Mexico-IO-Data'!$AR26","v":5973.8570903424825},{"$f":"(BO213*'Default-Data'!$F$19/geo_dollar_index)/'Mexico-IO-Data'!$AS26","v":0},{"$f":"(BP213*'Default-Data'!$F$19/geo_dollar_index)/'Mexico-IO-Data'!$AS26","v":0.63798845636562429},{"$f":"(BQ213*'Default-Data'!$F$19/geo_dollar_index)/'Mexico-IO-Data'!$AS26","v":0.78985006641036892},729.71613461805362,591.13548074972698,{"$f":"BH213*'Mexico-IO-Data'!AQ26","v":0},{"$f":"BU213*'Mexico-IO-Data'!$AQ26","v":98.911019518531759},{"$f":"BV213*'Mexico-IO-Data'!$AQ26","v":80.126792187673132},{"$f":"BH213*'Mexico-IO-Data'!AR26","v":0},{"$f":"BU213*'Mexico-IO-Data'!$AR26","v":42.407161769087956},{"$f":"BV213*'Mexico-IO-Data'!$AR26","v":34.35360240831524},{"$f":"(BZ213*'Default-Data'!$F$19/geo_dollar_index)/'Mexico-IO-Data'!$AS26","v":0},{"$f":"(CA213*'Default-Data'!$F$19/geo_dollar_index)/'Mexico-IO-Data'!$AS26","v":5.6069803868825192E-3},{"$f":"(CB213*'Default-Data'!$F$19/geo_dollar_index)/'Mexico-IO-Data'!$AS26","v":4.5421567227493867E-3},null,"TTL_C30T33X: Computer, Electronic and optical equipment",0,0,null,795341.16663394519,468820.75979186851,{"$f":"CH213*'Philippines-IO-Data'!AN26","v":0},{"$f":"CK213*'Philippines-IO-Data'!$AN26","v":196019.19586555433},{"$f":"CL213*'Philippines-IO-Data'!$AN26","v":115545.21781943188},{"$f":"CH213*'Philippines-IO-Data'!AO26","v":0},{"$f":"CK213*'Philippines-IO-Data'!$AO26","v":73554.292635165111},{"$f":"CL213*'Philippines-IO-Data'!$AO26","v":43357.216759085059},{"$f":"(CP213*'Default-Data'!$F$19/geo_dollar_index)/'Philippines-IO-Data'!$AP26","v":0},{"$f":"(CQ213*'Default-Data'!$F$19/geo_dollar_index)/'Philippines-IO-Data'!$AP26","v":23.576886178005775},{"$f":"(CR213*'Default-Data'!$F$19/geo_dollar_index)/'Philippines-IO-Data'!$AP26","v":13.897600369762269},8097.8895484313362,4162.0916810273047,{"$f":"CI213*'Philippines-IO-Data'!AN26","v":0},{"$f":"CV213*'Philippines-IO-Data'!$AN26","v":1995.7998706511812},{"$f":"CW213*'Philippines-IO-Data'!$AN26","v":1025.7860383193008},{"$f":"CI213*'Philippines-IO-Data'!AO26","v":0},{"$f":"CV213*'Philippines-IO-Data'!$AO26","v":748.90444825510167},{"$f":"CW213*'Philippines-IO-Data'!$AO26","v":384.91621246806289},{"$f":"(DA213*'Default-Data'!$F$19/geo_dollar_index)/'Philippines-IO-Data'!$AP26","v":0},{"$f":"(DB213*'Default-Data'!$F$19/geo_dollar_index)/'Philippines-IO-Data'!$AP26","v":0.24005172644772743},{"$f":"(DC213*'Default-Data'!$F$19/geo_dollar_index)/'Philippines-IO-Data'!$AP26","v":0.12337996062910862},null,"DOM_C30T33X: Computer, Electronic and optical equipment",0,0,null,31549.792398233836,82947.55091708363,{"$f":"DI213*'SouthAfrica-IO-Data'!AR26","v":0},{"$f":"DL213*'SouthAfrica-IO-Data'!$AR26","v":8030.0453682284042},{"$f":"DM213*'SouthAfrica-IO-Data'!$AR26","v":21111.790170920554},{"$f":"DI213*'SouthAfrica-IO-Data'!AS26","v":0},{"$f":"DL213*'SouthAfrica-IO-Data'!$AS26","v":5613.5204613031938},{"$f":"DM213*'SouthAfrica-IO-Data'!$AS26","v":14758.505172100702},{"$f":"(DQ213*'Default-Data'!$F$19/geo_dollar_index)/'SouthAfrica-IO-Data'!$AT26","v":0},{"$f":"(DR213*'Default-Data'!$F$19/geo_dollar_index)/'SouthAfrica-IO-Data'!$AT26","v":0.45249280020641924},{"$f":"(DS213*'Default-Data'!$F$19/geo_dollar_index)/'SouthAfrica-IO-Data'!$AT26","v":1.1896487023108535},194.78638547488899,741.19149179635735,{"$f":"DJ213*'SouthAfrica-IO-Data'!AR26","v":0},{"$f":"DW213*'SouthAfrica-IO-Data'!$AR26","v":49.576982717773632},{"$f":"DX213*'SouthAfrica-IO-Data'!$AR26","v":188.64787541368491},{"$f":"DJ213*'SouthAfrica-IO-Data'!$AS26","v":0},{"$f":"DZ213*'SouthAfrica-IO-Data'!$AS26","v":8.8210218115880998},{"$f":"EA213*'SouthAfrica-IO-Data'!$AS26","v":33.565314638183729},{"$f":"(EB213*'Default-Data'!$F$19/geo_dollar_index)/'SouthAfrica-IO-Data'!$AT26","v":0},{"$f":"(EC213*'Default-Data'!$F$19/geo_dollar_index)/'SouthAfrica-IO-Data'!$AT26","v":7.1104200790260853E-4},{"$f":"(ED213*'Default-Data'!$F$19/geo_dollar_index)/'SouthAfrica-IO-Data'!$AT26","v":2.7056217778380237E-3},null,"MINING",{"$f":"AF201","v":5014475.5956324572},{"$f":"AG201","v":289655.84590096516},null,4910115.8069869699,240225.77924755774,{"$f":"EJ213*'Zambia-IO-Data'!BO24","v":1225097.6258852915},{"$f":"EM213*'Zambia-IO-Data'!$BO24","v":1199601.2550546438},{"$f":"EN213*'Zambia-IO-Data'!$BO24","v":58690.091559914777},{"$f":"EJ213*'Zambia-IO-Data'!BN24","v":44680.509178239277},{"$f":"EM213*'Zambia-IO-Data'!$BN24","v":43750.631585759802},{"$f":"EN213*'Zambia-IO-Data'!$BN24","v":2140.48506764473},{"$f":"(ER213*'Default-Data'!$F$19/geo_dollar_index)/'Zambia-IO-Data'!$BP24","v":40.584436136291465},{"$f":"(ES213*'Default-Data'!$F$19/geo_dollar_index)/'Zambia-IO-Data'!$BP24","v":39.739804809105706},{"$f":"(ET213*'Default-Data'!$F$19/geo_dollar_index)/'Zambia-IO-Data'!$BP24","v":1.9442567044607784},237374.72683864087,396.07088246929925,{"$f":"EK213*'Zambia-IO-Data'!BO24","v":70766.460494123006},{"$f":"EX213*'Zambia-IO-Data'!$BO24","v":57993.544638741048},{"$f":"EY213*'Zambia-IO-Data'!$BO24","v":96.764953491458982},{"$f":"EK213*'Zambia-IO-Data'!BN24","v":2580.9220594434687},{"$f":"EX213*'Zambia-IO-Data'!$BN24","v":2115.0813198559872},{"$f":"EY213*'Zambia-IO-Data'!$BN24","v":3.5291125386703261},{"$f":"(FC213*'Default-Data'!$F$19/geo_dollar_index)/'Zambia-IO-Data'!$BP24","v":2.3443167596049537},{"$f":"(FD213*'Default-Data'!$F$19/geo_dollar_index)/'Zambia-IO-Data'!$BP24","v":1.9211818380656387},{"$f":"(FE213*'Default-Data'!$F$19/geo_dollar_index)/'Zambia-IO-Data'!$BP24","v":3.2055821448249535E-3},null,"TTL_C30T33X: Computer, Electronic and optical equipment",0,0,null,1602483.2544332631,1119656.5074577732,{"$f":"FK213*CustomRegion1!C22","v":0},{"$f":"FN213*CustomRegion1!$C22","v":394946.83803610649},{"$f":"FO213*CustomRegion1!$C22","v":275949.71497121116},{"$f":"FK213*CustomRegion1!D22","v":0},{"$f":"FN213*CustomRegion1!$D22","v":148199.95139744264},{"$f":"FO213*CustomRegion1!$D22","v":103547.44084096934},{"$f":"(FS213*'Default-Data'!$C$58/geo_dollar_index)/CustomRegion1!$E22","v":0},{"$f":"(FT213*'Default-Data'!$C$58/geo_dollar_index)/CustomRegion1!$E22","v":47.702090826817177},{"$f":"(FU213*'Default-Data'!$C$58/geo_dollar_index)/CustomRegion1!$E22","v":33.329494249521282},17211.582767518303,10313.926849120042,{"$f":"FL213*CustomRegion1!C22","v":0},{"$f":"FY213*CustomRegion1!$C22","v":4241.9539629025103},{"$f":"FZ213*CustomRegion1!$C22","v":2541.9627852749622},{"$f":"FL213*CustomRegion1!D22","v":0},{"$f":"FY213*CustomRegion1!$D22","v":1591.7518779448201},{"$f":"FZ213*CustomRegion1!$D22","v":953.84675847795302},{"$f":"(GD213*'Default-Data'!$C$58/geo_dollar_index)/CustomRegion1!$E22","v":0},{"$f":"(GE213*'Default-Data'!$C$58/geo_dollar_index)/CustomRegion1!$E22","v":0.51234762184133131},{"$f":"(GF213*'Default-Data'!$C$58/geo_dollar_index)/CustomRegion1!$E22","v":0.30702091518071595},null,"C30 Office, accounting and computing machinery",0,0,null,436772.67572836066,235659.34990967636,{"$f":"GL213*CustomRegion2!C26","v":0},{"$f":"GO213*CustomRegion2!$C26","v":71757.758197822026},{"$f":"GP213*CustomRegion2!$C26","v":38716.677089918194},{"$f":"GL213*CustomRegion2!D26","v":0},{"$f":"GO213*CustomRegion2!$D26","v":30208.809372875912},{"$f":"GP213*CustomRegion2!$D26","v":16299.069914311087},{"$f":"(GT213*'Default-Data'!$C$59/geo_dollar_index)/CustomRegion2!$E26","v":0},{"$f":"(GU213*'Default-Data'!$C$59/geo_dollar_index)/CustomRegion2!$E26","v":3.9941414279758556},{"$f":"(GV213*'Default-Data'!$C$59/geo_dollar_index)/CustomRegion2!$E26","v":2.1550266870391099},1625.4394460238734,2448.7409571578546,{"$f":"GM213*CustomRegion2!C26","v":0},{"$f":"GZ213*CustomRegion2!$C26","v":267.04484326652977},{"$f":"HA213*CustomRegion2!$C26","v":402.30575596289975},{"$f":"GM213*CustomRegion2!D26","v":0},{"$f":"GZ213*CustomRegion2!$D26","v":112.42138783110666},{"$f":"HA213*CustomRegion2!$D26","v":169.36395724612876},{"$f":"(HE213*'Default-Data'!$C$59/geo_dollar_index)/CustomRegion2!$E26","v":0},{"$f":"(HF213*'Default-Data'!$C$59/geo_dollar_index)/CustomRegion2!$E26","v":1.486410526758261E-2},{"$f":"(HG213*'Default-Data'!$C$59/geo_dollar_index)/CustomRegion2!$E26","v":2.2392924848275621E-2},null,"MINING",5014475.5956324572,289655.84590096516,null,4910115.8069869699,240225.77924755774,{"$f":"HM213*CustomRegion3!D25","v":1225097.6258852915},{"$f":"HP213*CustomRegion3!$D25","v":1199601.2550546438},{"$f":"HQ213*CustomRegion3!$D25","v":58690.091559914777},{"$f":"HM213*CustomRegion3!E25","v":44680.509178239277},{"$f":"HP213*CustomRegion3!E$12","v":1540414.6856527254},{"$f":"HQ213*CustomRegion3!F$12","v":24808695.762358189},{"$f":"(HU213*'Default-Data'!$C$60/geo_dollar_index)/CustomRegion3!$F25","v":40.748808413777482},{"$f":"(HV213*'Default-Data'!$C$60/geo_dollar_index)/CustomRegion3!$F25","v":1404.8645384283811},{"$f":"(HW213*'Default-Data'!$C$60/geo_dollar_index)/CustomRegion3!$F25","v":22625.632724623854},237374.72683864087,396.07088246929925,{"$f":"HN213*CustomRegion3!D25","v":70766.460494123006},{"$f":"IA213*CustomRegion3!$D25","v":57993.544638741048},{"$f":"IB213*CustomRegion3!$D25","v":96.764953491458982},{"$f":"HN213*CustomRegion3!E25","v":2580.9220594434687},{"$f":"IA213*CustomRegion3!$E25","v":2115.0813198559872},{"$f":"IB213*CustomRegion3!$E25","v":3.5291125386703261},{"$f":"(IF213*'Default-Data'!$C$60/geo_dollar_index)/CustomRegion3!$F25","v":2.3538115492733591},{"$f":"(IG213*'Default-Data'!$C$60/geo_dollar_index)/CustomRegion3!$F25","v":1.928962875927718},{"$f":"(IH213*'Default-Data'!$C$60/geo_dollar_index)/CustomRegion3!$F25","v":3.218565172014094E-3}]
[null,null,null,null,null,null,null,null,null,null,null,null,null,null,null,null,null,null,null,null,null,null,null,null,null,null,null,null,null,213,"TTL_C31: Electrical machinery and apparatus, nec",0,0,null,224451.36260299559,35702.322706395295,{"$f":"AF214*'Colombia-IO-Data'!AN27","v":0},{"$f":"AI214*'Colombia-IO-Data'!$AN27","v":56770.986364229124},{"$f":"AJ214*'Colombia-IO-Data'!$AN27","v":9030.2685269108006},{"$f":"'Colombia-IO-Data'!$AO27*AK214","v":0},{"$f":"'Colombia-IO-Data'!$AO27*AL214","v":29384.548905455042},{"$f":"'Colombia-IO-Data'!$AO27*AM214","v":4674.0489139289766},{"$f":"(AN214*'Default-Data'!$F$19/geo_dollar_index)/'Colombia-IO-Data'!$AP27","v":0},{"$f":"(AO214*'Default-Data'!$F$19/geo_dollar_index)/'Colombia-IO-Data'!$AP27","v":7.1477401397541005},{"$f":"(AP214*'Default-Data'!$F$19/geo_dollar_index)/'Colombia-IO-Data'!$AP27","v":1.1369542253228897},3042.511848986333,3276.5971193420919,{"$f":"AG214*'Colombia-IO-Data'!AN27","v":0},{"$f":"AT214*'Colombia-IO-Data'!$AN27","v":769.54934329056903},{"$f":"AU214*'Colombia-IO-Data'!$AN27","v":828.75705554197293},{"$f":"AV214*'Colombia-IO-Data'!$AO27","v":0},{"$f":"AW214*'Colombia-IO-Data'!$AO27","v":398.31719970486},{"$f":"AX214*'Colombia-IO-Data'!$AO27","v":428.96299305200034},{"$f":"(Calculations!AY214*'Default-Data'!$F$19/geo_dollar_index)/'Colombia-IO-Data'!$AP27","v":0},{"$f":"(Calculations!AZ214*'Default-Data'!$F$19/geo_dollar_index)/'Colombia-IO-Data'!$AP27","v":9.6889962335148835E-2},{"$f":"(Calculations!BA214*'Default-Data'!$F$19/geo_dollar_index)/'Colombia-IO-Data'!$AP27","v":0.10434449797994479},null,"DOM_C31: Electrical machinery and apparatus, nec",0,0,null,104945.13661239817,49803.465331992542,{"$f":"BG214*'Mexico-IO-Data'!AQ27","v":0},{"$f":"BJ214*'Mexico-IO-Data'!$AQ27","v":28156.290331287368},{"$f":"BK214*'Mexico-IO-Data'!$AQ27","v":13362.037295457885},{"$f":"BG214*'Mexico-IO-Data'!AQ27","v":0},{"$f":"BJ214*'Mexico-IO-Data'!$AR27","v":9714.9030554460896},{"$f":"BK214*'Mexico-IO-Data'!$AR27","v":4610.369314326259},{"$f":"(BO214*'Default-Data'!$F$19/geo_dollar_index)/'Mexico-IO-Data'!$AS27","v":0},{"$f":"(BP214*'Default-Data'!$F$19/geo_dollar_index)/'Mexico-IO-Data'!$AS27","v":1.441824552103913},{"$f":"(BQ214*'Default-Data'!$F$19/geo_dollar_index)/'Mexico-IO-Data'!$AS27","v":0.68424189451233286},1433.5290303043839,286.4026408227146,{"$f":"BH214*'Mexico-IO-Data'!AQ27","v":0},{"$f":"BU214*'Mexico-IO-Data'!$AQ27","v":384.6091479651343},{"$f":"BV214*'Mexico-IO-Data'!$AQ27","v":76.840491774623942},{"$f":"BH214*'Mexico-IO-Data'!AR27","v":0},{"$f":"BU214*'Mexico-IO-Data'!$AR27","v":132.70358213940756},{"$f":"BV214*'Mexico-IO-Data'!$AR27","v":26.5126520411591},{"$f":"(BZ214*'Default-Data'!$F$19/geo_dollar_index)/'Mexico-IO-Data'!$AS27","v":0},{"$f":"(CA214*'Default-Data'!$F$19/geo_dollar_index)/'Mexico-IO-Data'!$AS27","v":1.9695027504517945E-2},{"$f":"(CB214*'Default-Data'!$F$19/geo_dollar_index)/'Mexico-IO-Data'!$AS27","v":3.9348403618810817E-3},null,"TTL_C31: Electrical machinery and apparatus, nec",0,0,null,70444.470534729611,266338.84710666776,{"$f":"CH214*'Philippines-IO-Data'!AN27","v":0},{"$f":"CK214*'Philippines-IO-Data'!$AN27","v":18303.874125238515},{"$f":"CL214*'Philippines-IO-Data'!$AN27","v":69203.909051998169},{"$f":"CH214*'Philippines-IO-Data'!AO27","v":0},{"$f":"CK214*'Philippines-IO-Data'!$AO27","v":6120.9906118062181},{"$f":"CL214*'Philippines-IO-Data'!$AO27","v":23142.449227373734},{"$f":"(CP214*'Default-Data'!$F$19/geo_dollar_index)/'Philippines-IO-Data'!$AP27","v":0},{"$f":"(CQ214*'Default-Data'!$F$19/geo_dollar_index)/'Philippines-IO-Data'!$AP27","v":1.9620051227602044},{"$f":"(CR214*'Default-Data'!$F$19/geo_dollar_index)/'Philippines-IO-Data'!$AP27","v":7.4180156149474392},1466.4985918262539,2364.5000284739817,{"$f":"CI214*'Philippines-IO-Data'!AN27","v":0},{"$f":"CV214*'Philippines-IO-Data'!$AN27","v":381.04631102868035},{"$f":"CW214*'Philippines-IO-Data'!$AN27","v":614.37768730156824},{"$f":"CI214*'Philippines-IO-Data'!AO27","v":0},{"$f":"CV214*'Philippines-IO-Data'!$AO27","v":127.42553169407527},{"$f":"CW214*'Philippines-IO-Data'!$AO27","v":205.45377608835102},{"$f":"(DA214*'Default-Data'!$F$19/geo_dollar_index)/'Philippines-IO-Data'!$AP27","v":0},{"$f":"(DB214*'Default-Data'!$F$19/geo_dollar_index)/'Philippines-IO-Data'!$AP27","v":4.0844621697670634E-2},{"$f":"(DC214*'Default-Data'!$F$19/geo_dollar_index)/'Philippines-IO-Data'!$AP27","v":6.5855575794915855E-2},null,"DOM_C31: Electrical machinery and apparatus, nec",0,0,null,247783.54686400687,159816.11953972079,{"$f":"DI214*'SouthAfrica-IO-Data'!AR27","v":0},{"$f":"DL214*'SouthAfrica-IO-Data'!$AR27","v":46609.275391764022},{"$f":"DM214*'SouthAfrica-IO-Data'!$AR27","v":30062.179761104861},{"$f":"DI214*'SouthAfrica-IO-Data'!AS27","v":0},{"$f":"DL214*'SouthAfrica-IO-Data'!$AS27","v":47552.800513447044},{"$f":"DM214*'SouthAfrica-IO-Data'!$AS27","v":30670.737211928601},{"$f":"(DQ214*'Default-Data'!$F$19/geo_dollar_index)/'SouthAfrica-IO-Data'!$AT27","v":0},{"$f":"(DR214*'Default-Data'!$F$19/geo_dollar_index)/'SouthAfrica-IO-Data'!$AT27","v":3.8331204117481037},{"$f":"(DS214*'Default-Data'!$F$19/geo_dollar_index)/'SouthAfrica-IO-Data'!$AT27","v":2.4722966382844382},3228.9331192225836,1428.0632368900242,{"$f":"DJ214*'SouthAfrica-IO-Data'!AR27","v":0},{"$f":"DW214*'SouthAfrica-IO-Data'!$AR27","v":607.37782988485594},{"$f":"DX214*'SouthAfrica-IO-Data'!$AR27","v":268.62555455141785},{"$f":"DJ214*'SouthAfrica-IO-Data'!$AS27","v":0},{"$f":"DZ214*'SouthAfrica-IO-Data'!$AS27","v":116.56349723921244},{"$f":"EA214*'SouthAfrica-IO-Data'!$AS27","v":51.55264572674983},{"$f":"(EB214*'Default-Data'!$F$19/geo_dollar_index)/'SouthAfrica-IO-Data'!$AT27","v":0},{"$f":"(EC214*'Default-Data'!$F$19/geo_dollar_index)/'SouthAfrica-IO-Data'!$AT27","v":9.3959118223966992E-3},{"$f":"(ED214*'Default-Data'!$F$19/geo_dollar_index)/'SouthAfrica-IO-Data'!$AT27","v":4.1555386114208708E-3},null,"FOODMFG",0,0,null,41504.85938030023,5744282.2475242112,{"$f":"EJ214*'Zambia-IO-Data'!BO25","v":0},{"$f":"EM214*'Zambia-IO-Data'!$BO25","v":4654.0245968734152},{"$f":"EN214*'Zambia-IO-Data'!$BO25","v":644118.09292985976},{"$f":"EJ214*'Zambia-IO-Data'!BN25","v":0},{"$f":"EM214*'Zambia-IO-Data'!$BN25","v":2154.7641610660125},{"$f":"EN214*'Zambia-IO-Data'!$BN25","v":298219.86395857442},{"$f":"(ER214*'Default-Data'!$F$19/geo_dollar_index)/'Zambia-IO-Data'!$BP25","v":0},{"$f":"(ES214*'Default-Data'!$F$19/geo_dollar_index)/'Zambia-IO-Data'!$BP25","v":8.3427370520033417},{"$f":"(ET214*'Default-Data'!$F$19/geo_dollar_index)/'Zambia-IO-Data'!$BP25","v":1154.6367596255811},128.40245371184653,9280.0190676963721,{"$f":"EK214*'Zambia-IO-Data'!BO25","v":0},{"$f":"EX214*'Zambia-IO-Data'!$BO25","v":14.398029213838798},{"$f":"EY214*'Zambia-IO-Data'!$BO25","v":1040.5874792823067},{"$f":"EK214*'Zambia-IO-Data'!BN25","v":0},{"$f":"EX214*'Zambia-IO-Data'!$BN25","v":6.6661352328914489},{"$f":"EY214*'Zambia-IO-Data'!$BN25","v":481.78099624094494},{"$f":"(FC214*'Default-Data'!$F$19/geo_dollar_index)/'Zambia-IO-Data'!$BP25","v":0},{"$f":"(FD214*'Default-Data'!$F$19/geo_dollar_index)/'Zambia-IO-Data'!$BP25","v":2.5809698530346332E-2},{"$f":"(FE214*'Default-Data'!$F$19/geo_dollar_index)/'Zambia-IO-Data'!$BP25","v":1.8653420364583824},null,"TTL_C31: Electrical machinery and apparatus, nec",0,0,null,176750.8214459756,484731.64508366073,{"$f":"FK214*CustomRegion1!C23","v":0},{"$f":"FN214*CustomRegion1!$C23","v":45925.88691094864},{"$f":"FO214*CustomRegion1!$C23","v":125949.80058451755},{"$f":"FK214*CustomRegion1!D23","v":0},{"$f":"FN214*CustomRegion1!$D23","v":15358.055933807815},{"$f":"FO214*CustomRegion1!$D23","v":42118.818216395011},{"$f":"(FS214*'Default-Data'!$C$58/geo_dollar_index)/CustomRegion1!$E23","v":0},{"$f":"(FT214*'Default-Data'!$C$58/geo_dollar_index)/CustomRegion1!$E23","v":4.9433982411581336},{"$f":"(FU214*'Default-Data'!$C$58/geo_dollar_index)/CustomRegion1!$E23","v":13.557060398005955},3208.7896444030707,4465.1968666694393,{"$f":"FL214*CustomRegion1!C23","v":0},{"$f":"FY214*CustomRegion1!$C23","v":833.75290210417222},{"$f":"FZ214*CustomRegion1!$C23","v":1160.2103156078545},{"$f":"FL214*CustomRegion1!D23","v":0},{"$f":"FY214*CustomRegion1!$D23","v":278.81494657510524},{"$f":"FZ214*CustomRegion1!$D23","v":387.98542871119457},{"$f":"(GD214*'Default-Data'!$C$58/geo_dollar_index)/CustomRegion1!$E23","v":0},{"$f":"(GE214*'Default-Data'!$C$58/geo_dollar_index)/CustomRegion1!$E23","v":8.9743996404774498E-2},{"$f":"(GF214*'Default-Data'!$C$58/geo_dollar_index)/CustomRegion1!$E23","v":0.12488341585368681},null,"C31 Electrical machinery and apparatus n.e.c",0,0,null,185688.02626957014,112719.69854156204,{"$f":"GL214*CustomRegion2!C27","v":0},{"$f":"GO214*CustomRegion2!$C27","v":48216.732423312191},{"$f":"GP214*CustomRegion2!$C27","v":29269.391530527424},{"$f":"GL214*CustomRegion2!D27","v":0},{"$f":"GO214*CustomRegion2!$D27","v":22555.27257500359},{"$f":"GP214*CustomRegion2!$D27","v":13691.908822845888},{"$f":"(GT214*'Default-Data'!$C$59/geo_dollar_index)/CustomRegion2!$E27","v":0},{"$f":"(GU214*'Default-Data'!$C$59/geo_dollar_index)/CustomRegion2!$E27","v":3.347511096346492},{"$f":"(GV214*'Default-Data'!$C$59/geo_dollar_index)/CustomRegion2!$E27","v":2.0320666293093446},693.24726660972817,1171.272612790468,{"$f":"GM214*CustomRegion2!C27","v":0},{"$f":"GZ214*CustomRegion2!$C27","v":180.01224219373145},{"$f":"HA214*CustomRegion2!$C27","v":304.13882521259069},{"$f":"GM214*CustomRegion2!D27","v":0},{"$f":"GZ214*CustomRegion2!$D27","v":84.20780474858779},{"$f":"HA214*CustomRegion2!$D27","v":142.27289487569391},{"$f":"(HE214*'Default-Data'!$C$59/geo_dollar_index)/CustomRegion2!$E27","v":0},{"$f":"(HF214*'Default-Data'!$C$59/geo_dollar_index)/CustomRegion2!$E27","v":1.2497590523790493E-2},{"$f":"(HG214*'Default-Data'!$C$59/geo_dollar_index)/CustomRegion2!$E27","v":2.1115244461001489E-2},null,"FOODMFG",0,0,null,41504.85938030023,5744282.2475242112,{"$f":"HM214*CustomRegion3!D26","v":0},{"$f":"HP214*CustomRegion3!$D26","v":4654.0245968734152},{"$f":"HQ214*CustomRegion3!$D26","v":644118.09292985976},{"$f":"HM214*CustomRegion3!E26","v":0},{"$f":"HP214*CustomRegion3!E$12","v":13021.015680401733},{"$f":"HQ214*CustomRegion3!F$12","v":593225885.65769875},{"$f":"(HU214*'Default-Data'!$C$60/geo_dollar_index)/CustomRegion3!$F26","v":0},{"$f":"(HV214*'Default-Data'!$C$60/geo_dollar_index)/CustomRegion3!$F26","v":50.6184766499698},{"$f":"(HW214*'Default-Data'!$C$60/geo_dollar_index)/CustomRegion3!$F26","v":2306132.745582826},128.40245371184653,9280.0190676963721,{"$f":"HN214*CustomRegion3!D26","v":0},{"$f":"IA214*CustomRegion3!$D26","v":14.398029213838798},{"$f":"IB214*CustomRegion3!$D26","v":1040.5874792823067},{"$f":"HN214*CustomRegion3!E26","v":0},{"$f":"IA214*CustomRegion3!$E26","v":6.6661352328914489},{"$f":"IB214*CustomRegion3!$E26","v":481.78099624094494},{"$f":"(IF214*'Default-Data'!$C$60/geo_dollar_index)/CustomRegion3!$F26","v":0},{"$f":"(IG214*'Default-Data'!$C$60/geo_dollar_index)/CustomRegion3!$F26","v":2.5914231187013376E-2},{"$f":"(IH214*'Default-Data'!$C$60/geo_dollar_index)/CustomRegion3!$F26","v":1.8728969158164055}]
[null,null,null,null,null,null,null,null,null,null,null,null,null,null,null,null,null,null,null,null,null,null,null,null,null,null,null,null,null,214,"TTL_C34: Motor vehicles, trailers and semi-trailers",0,0,null,27003.995609026013,110412.77103725942,{"$f":"AF215*'Colombia-IO-Data'!AN28","v":0},{"$f":"AI215*'Colombia-IO-Data'!$AN28","v":5943.7510313797493},{"$f":"AJ215*'Colombia-IO-Data'!$AN28","v":24302.552527110158},{"$f":"'Colombia-IO-Data'!$AO28*AK215","v":0},{"$f":"'Colombia-IO-Data'!$AO28*AL215","v":1521.035491361318},{"$f":"'Colombia-IO-Data'!$AO28*AM215","v":6219.1442288299177},{"$f":"(AN215*'Default-Data'!$F$19/geo_dollar_index)/'Colombia-IO-Data'!$AP28","v":0},{"$f":"(AO215*'Default-Data'!$F$19/geo_dollar_index)/'Colombia-IO-Data'!$AP28","v":0.36998922360777114},{"$f":"(AP215*'Default-Data'!$F$19/geo_dollar_index)/'Colombia-IO-Data'!$AP28","v":1.5127959589359323},284.20715490826774,1008.1377398042365,{"$f":"AG215*'Colombia-IO-Data'!AN28","v":0},{"$f":"AT215*'Colombia-IO-Data'!$AN28","v":62.555800799600597},{"$f":"AU215*'Colombia-IO-Data'!$AN28","v":221.89752277738594},{"$f":"AV215*'Colombia-IO-Data'!$AO28","v":0},{"$f":"AW215*'Colombia-IO-Data'!$AO28","v":16.008340979355207},{"$f":"AX215*'Colombia-IO-Data'!$AO28","v":56.784681223636625},{"$f":"(Calculations!AY215*'Default-Data'!$F$19/geo_dollar_index)/'Colombia-IO-Data'!$AP28","v":0},{"$f":"(Calculations!AZ215*'Default-Data'!$F$19/geo_dollar_index)/'Colombia-IO-Data'!$AP28","v":3.8940009512198341E-3},{"$f":"(Calculations!BA215*'Default-Data'!$F$19/geo_dollar_index)/'Colombia-IO-Data'!$AP28","v":1.381277441458287E-2},null,"DOM_C34: Motor vehicles, trailers and semi-trailers",0,0,null,23430.40674206083,334643.96283158817,{"$f":"BG215*'Mexico-IO-Data'!AQ28","v":0},{"$f":"BJ215*'Mexico-IO-Data'!$AQ28","v":7932.5166225495586},{"$f":"BK215*'Mexico-IO-Data'!$AQ28","v":113295.89055029552},{"$f":"BG215*'Mexico-IO-Data'!AQ28","v":0},{"$f":"BJ215*'Mexico-IO-Data'!$AR28","v":2013.6424095974398},{"$f":"BK215*'Mexico-IO-Data'!$AR28","v":28759.777117474245},{"$f":"(BO215*'Default-Data'!$F$19/geo_dollar_index)/'Mexico-IO-Data'!$AS28","v":0},{"$f":"(BP215*'Default-Data'!$F$19/geo_dollar_index)/'Mexico-IO-Data'!$AS28","v":0.28027566852124042},{"$f":"(BQ215*'Default-Data'!$F$19/geo_dollar_index)/'Mexico-IO-Data'!$AS28","v":4.0030274092873448},291.15623988549328,1924.4226089781343,{"$f":"BH215*'Mexico-IO-Data'!AQ28","v":0},{"$f":"BU215*'Mexico-IO-Data'!$AQ28","v":98.572839049552087},{"$f":"BV215*'Mexico-IO-Data'!$AQ28","v":651.52579306809582},{"$f":"BH215*'Mexico-IO-Data'!AR28","v":0},{"$f":"BU215*'Mexico-IO-Data'!$AR28","v":25.022380486459625},{"$f":"BV215*'Mexico-IO-Data'!$AR28","v":165.38761030000313},{"$f":"(BZ215*'Default-Data'!$F$19/geo_dollar_index)/'Mexico-IO-Data'!$AS28","v":0},{"$f":"(CA215*'Default-Data'!$F$19/geo_dollar_index)/'Mexico-IO-Data'!$AS28","v":3.4828251458198871E-3},{"$f":"(CB215*'Default-Data'!$F$19/geo_dollar_index)/'Mexico-IO-Data'!$AS28","v":2.3020037133222038E-2},null,"TTL_C34: Motor vehicles, trailers and semi-trailers",0,0,null,33755.271084117034,174537.38418510888,{"$f":"CH215*'Philippines-IO-Data'!AN28","v":0},{"$f":"CK215*'Philippines-IO-Data'!$AN28","v":5514.6958276255255},{"$f":"CL215*'Philippines-IO-Data'!$AN28","v":28514.674994957775},{"$f":"CH215*'Philippines-IO-Data'!AO28","v":0},{"$f":"CK215*'Philippines-IO-Data'!$AO28","v":1368.4288959906064},{"$f":"CL215*'Philippines-IO-Data'!$AO28","v":7075.6949145610588},{"$f":"(CP215*'Default-Data'!$F$19/geo_dollar_index)/'Philippines-IO-Data'!$AP28","v":0},{"$f":"(CQ215*'Default-Data'!$F$19/geo_dollar_index)/'Philippines-IO-Data'!$AP28","v":0.43863235125505201},{"$f":"(CR215*'Default-Data'!$F$19/geo_dollar_index)/'Philippines-IO-Data'!$AP28","v":2.2680233560039036},299.60186833013438,1549.506030977831,{"$f":"CI215*'Philippines-IO-Data'!AN28","v":0},{"$f":"CV215*'Philippines-IO-Data'!$AN28","v":48.946819864421848},{"$f":"CW215*'Philippines-IO-Data'!$AN28","v":253.14726173047271},{"$f":"CI215*'Philippines-IO-Data'!AO28","v":0},{"$f":"CV215*'Philippines-IO-Data'!$AO28","v":12.145772815571897},{"$f":"CW215*'Philippines-IO-Data'!$AO28","v":62.816524921925222},{"$f":"(DA215*'Default-Data'!$F$19/geo_dollar_index)/'Philippines-IO-Data'!$AP28","v":0},{"$f":"(DB215*'Default-Data'!$F$19/geo_dollar_index)/'Philippines-IO-Data'!$AP28","v":3.8931718728779062E-3},{"$f":"(DC215*'Default-Data'!$F$19/geo_dollar_index)/'Philippines-IO-Data'!$AP28","v":2.0135032302302954E-2},null,"DOM_C34: Motor vehicles, trailers and semi-trailers",0,0,null,89492.692912236016,276027.2705323546,{"$f":"DI215*'SouthAfrica-IO-Data'!AR28","v":0},{"$f":"DL215*'SouthAfrica-IO-Data'!$AR28","v":21637.55199233639},{"$f":"DM215*'SouthAfrica-IO-Data'!$AR28","v":66737.900303253919},{"$f":"DI215*'SouthAfrica-IO-Data'!AS28","v":0},{"$f":"DL215*'SouthAfrica-IO-Data'!$AS28","v":15885.004608219584},{"$f":"DM215*'SouthAfrica-IO-Data'!$AS28","v":48994.999722499386},{"$f":"(DQ215*'Default-Data'!$F$19/geo_dollar_index)/'SouthAfrica-IO-Data'!$AT28","v":0},{"$f":"(DR215*'Default-Data'!$F$19/geo_dollar_index)/'SouthAfrica-IO-Data'!$AT28","v":1.2804531961742371},{"$f":"(DS215*'Default-Data'!$F$19/geo_dollar_index)/'SouthAfrica-IO-Data'!$AT28","v":3.9493727284641769},896.82353009690235,2466.4871013113438,{"$f":"DJ215*'SouthAfrica-IO-Data'!AR28","v":0},{"$f":"DW215*'SouthAfrica-IO-Data'!$AR28","v":216.83408029136643},{"$f":"DX215*'SouthAfrica-IO-Data'!$AR28","v":596.34749113415455},{"$f":"DJ215*'SouthAfrica-IO-Data'!$AS28","v":0},{"$f":"DZ215*'SouthAfrica-IO-Data'!$AS28","v":38.488174314134078},{"$f":"EA215*'SouthAfrica-IO-Data'!$AS28","v":105.85202362897078},{"$f":"(EB215*'Default-Data'!$F$19/geo_dollar_index)/'SouthAfrica-IO-Data'!$AT28","v":0},{"$f":"(EC215*'Default-Data'!$F$19/geo_dollar_index)/'SouthAfrica-IO-Data'!$AT28","v":3.1024420219521605E-3},{"$f":"(ED215*'Default-Data'!$F$19/geo_dollar_index)/'SouthAfrica-IO-Data'!$AT28","v":8.532484901332231E-3},null,"TEXTILES",0,0,null,532325.00609124196,1914110.7312088113,{"$f":"EJ215*'Zambia-IO-Data'!BO26","v":0},{"$f":"EM215*'Zambia-IO-Data'!$BO26","v":54023.030670330671},{"$f":"EN215*'Zambia-IO-Data'!$BO26","v":194253.62617809954},{"$f":"EJ215*'Zambia-IO-Data'!BN26","v":0},{"$f":"EM215*'Zambia-IO-Data'!$BN26","v":14844.967665381748},{"$f":"EN215*'Zambia-IO-Data'!$BN26","v":53378.87866925534},{"$f":"(ER215*'Default-Data'!$F$19/geo_dollar_index)/'Zambia-IO-Data'!$BP26","v":0},{"$f":"(ES215*'Default-Data'!$F$19/geo_dollar_index)/'Zambia-IO-Data'!$BP26","v":57.476202739747379},{"$f":"(ET215*'Default-Data'!$F$19/geo_dollar_index)/'Zambia-IO-Data'!$BP26","v":206.67038969502536},5899.575503641031,3097.4329656980763,{"$f":"EK215*'Zambia-IO-Data'!BO26","v":0},{"$f":"EX215*'Zambia-IO-Data'!$BO26","v":598.71872395283015},{"$f":"EY215*'Zambia-IO-Data'!$BO26","v":314.34314411395354},{"$f":"EK215*'Zambia-IO-Data'!BN26","v":0},{"$f":"EX215*'Zambia-IO-Data'!$BN26","v":164.52168616707451},{"$f":"EY215*'Zambia-IO-Data'!$BN26","v":86.378230771285828},{"$f":"(FC215*'Default-Data'!$F$19/geo_dollar_index)/'Zambia-IO-Data'!$BP26","v":0},{"$f":"(FD215*'Default-Data'!$F$19/geo_dollar_index)/'Zambia-IO-Data'!$BP26","v":0.63698904587547966},{"$f":"(FE215*'Default-Data'!$F$19/geo_dollar_index)/'Zambia-IO-Data'!$BP26","v":0.33443607396253894},null,"TTL_C34: Motor vehicles, trailers and semi-trailers",0,0,null,77321.63275538804,341710.86041116988,{"$f":"FK215*CustomRegion1!C24","v":0},{"$f":"FN215*CustomRegion1!$C24","v":12632.257773274683},{"$f":"FO215*CustomRegion1!$C24","v":55826.287143950496},{"$f":"FK215*CustomRegion1!D24","v":0},{"$f":"FN215*CustomRegion1!$D24","v":3134.5965577931161},{"$f":"FO215*CustomRegion1!$D24","v":13852.859137027695},{"$f":"(FS215*'Default-Data'!$C$58/geo_dollar_index)/CustomRegion1!$E24","v":0},{"$f":"(FT215*'Default-Data'!$C$58/geo_dollar_index)/CustomRegion1!$E24","v":1.008953162908095},{"$f":"(FU215*'Default-Data'!$C$58/geo_dollar_index)/CustomRegion1!$E24","v":4.458910671255472},734.30941543389235,3147.7339651541251,{"$f":"FL215*CustomRegion1!C24","v":0},{"$f":"FY215*CustomRegion1!$C24","v":119.96624347611429},{"$f":"FZ215*CustomRegion1!$C24","v":514.25436107009932},{"$f":"FL215*CustomRegion1!D24","v":0},{"$f":"FY215*CustomRegion1!$D24","v":29.76869064904426},{"$f":"FZ215*CustomRegion1!$D24","v":127.60822166333573},{"$f":"(GD215*'Default-Data'!$C$58/geo_dollar_index)/CustomRegion1!$E24","v":0},{"$f":"(GE215*'Default-Data'!$C$58/geo_dollar_index)/CustomRegion1!$E24","v":9.5818437978289154E-3},{"$f":"(GF215*'Default-Data'!$C$58/geo_dollar_index)/CustomRegion1!$E24","v":4.1074095656809376E-2},null,"C32 Radio, television and communication equipment",0,0,null,0,0,{"$f":"GL215*CustomRegion2!C28","v":0},{"$f":"GO215*CustomRegion2!$C28","v":0},{"$f":"GP215*CustomRegion2!$C28","v":0},{"$f":"GL215*CustomRegion2!D28","v":0},{"$f":"GO215*CustomRegion2!$D28","v":0},{"$f":"GP215*CustomRegion2!$D28","v":0},{"$f":"(GT215*'Default-Data'!$C$59/geo_dollar_index)/CustomRegion2!$E28","v":0},{"$f":"(GU215*'Default-Data'!$C$59/geo_dollar_index)/CustomRegion2!$E28","v":0},{"$f":"(GV215*'Default-Data'!$C$59/geo_dollar_index)/CustomRegion2!$E28","v":0},0,0,{"$f":"GM215*CustomRegion2!C28","v":0},{"$f":"GZ215*CustomRegion2!$C28","v":0},{"$f":"HA215*CustomRegion2!$C28","v":0},{"$f":"GM215*CustomRegion2!D28","v":0},{"$f":"GZ215*CustomRegion2!$D28","v":0},{"$f":"HA215*CustomRegion2!$D28","v":0},{"$f":"(HE215*'Default-Data'!$C$59/geo_dollar_index)/CustomRegion2!$E28","v":0},{"$f":"(HF215*'Default-Data'!$C$59/geo_dollar_index)/CustomRegion2!$E28","v":0},{"$f":"(HG215*'Default-Data'!$C$59/geo_dollar_index)/CustomRegion2!$E28","v":0},null,"TEXTILES",0,0,null,532325.00609124196,1914110.7312088113,{"$f":"HM215*CustomRegion3!D27","v":0},{"$f":"HP215*CustomRegion3!$D27","v":54023.030670330671},{"$f":"HQ215*CustomRegion3!$D27","v":194253.62617809954},{"$f":"HM215*CustomRegion3!E27","v":0},{"$f":"HP215*CustomRegion3!E$12","v":167002.42706216514},{"$f":"HQ215*CustomRegion3!F$12","v":197674832.96240422},{"$f":"(HU215*'Default-Data'!$C$60/geo_dollar_index)/CustomRegion3!$F27","v":0},{"$f":"(HV215*'Default-Data'!$C$60/geo_dollar_index)/CustomRegion3!$F27","v":649.21267758381794},{"$f":"(HW215*'Default-Data'!$C$60/geo_dollar_index)/CustomRegion3!$F27","v":768449.95522541495},5899.575503641031,3097.4329656980763,{"$f":"HN215*CustomRegion3!D27","v":0},{"$f":"IA215*CustomRegion3!$D27","v":598.71872395283015},{"$f":"IB215*CustomRegion3!$D27","v":314.34314411395354},{"$f":"HN215*CustomRegion3!E27","v":0},{"$f":"IA215*CustomRegion3!$E27","v":164.52168616707451},{"$f":"IB215*CustomRegion3!$E27","v":86.378230771285828},{"$f":"(IF215*'Default-Data'!$C$60/geo_dollar_index)/CustomRegion3!$F27","v":0},{"$f":"(IG215*'Default-Data'!$C$60/geo_dollar_index)/CustomRegion3!$F27","v":0.63956893487165989},{"$f":"(IH215*'Default-Data'!$C$60/geo_dollar_index)/CustomRegion3!$F27","v":0.33579058382849092}]
[null,null,null,null,null,null,null,null,null,null,null,null,null,null,null,null,null,null,null,null,null,null,null,null,null,null,null,null,null,215,"TTL_C35: Other transport equipment",0,0,null,4287.0304010867521,9640.553099900364,{"$f":"AF216*'Colombia-IO-Data'!AN29","v":0},{"$f":"AI216*'Colombia-IO-Data'!$AN29","v":478.23564100376649},{"$f":"AJ216*'Colombia-IO-Data'!$AN29","v":1075.4428263893251},{"$f":"'Colombia-IO-Data'!$AO29*AK216","v":0},{"$f":"'Colombia-IO-Data'!$AO29*AL216","v":180.33284799402654},{"$f":"'Colombia-IO-Data'!$AO29*AM216","v":405.52742436861797},{"$f":"(AN216*'Default-Data'!$F$19/geo_dollar_index)/'Colombia-IO-Data'!$AP29","v":0},{"$f":"(AO216*'Default-Data'!$F$19/geo_dollar_index)/'Colombia-IO-Data'!$AP29","v":4.3865649946519661E-2},{"$f":"(AP216*'Default-Data'!$F$19/geo_dollar_index)/'Colombia-IO-Data'!$AP29","v":9.8643836876888713E-2},41.09434354891917,104.30343773944884,{"$f":"AG216*'Colombia-IO-Data'!AN29","v":0},{"$f":"AT216*'Colombia-IO-Data'!$AN29","v":4.58424081241981},{"$f":"AU216*'Colombia-IO-Data'!$AN29","v":11.635471816009725},{"$f":"AV216*'Colombia-IO-Data'!$AO29","v":0},{"$f":"AW216*'Colombia-IO-Data'!$AO29","v":1.7286231529272482},{"$f":"AX216*'Colombia-IO-Data'!$AO29","v":4.3874976903252936},{"$f":"(Calculations!AY216*'Default-Data'!$F$19/geo_dollar_index)/'Colombia-IO-Data'!$AP29","v":0},{"$f":"(Calculations!AZ216*'Default-Data'!$F$19/geo_dollar_index)/'Colombia-IO-Data'!$AP29","v":4.2048455929819022E-4},{"$f":"(Calculations!BA216*'Default-Data'!$F$19/geo_dollar_index)/'Colombia-IO-Data'!$AP29","v":1.0672511412416E-3},null,"DOM_C35: Other transport equipment",0,0,null,2726.3801696933656,13123.715489351978,{"$f":"BG216*'Mexico-IO-Data'!AQ29","v":0},{"$f":"BJ216*'Mexico-IO-Data'!$AQ29","v":960.62827213640321},{"$f":"BK216*'Mexico-IO-Data'!$AQ29","v":4624.0844452605616},{"$f":"BG216*'Mexico-IO-Data'!AQ29","v":0},{"$f":"BJ216*'Mexico-IO-Data'!$AR29","v":244.97030709911499},{"$f":"BK216*'Mexico-IO-Data'!$AR29","v":1179.1901398951074},{"$f":"(BO216*'Default-Data'!$F$19/geo_dollar_index)/'Mexico-IO-Data'!$AS29","v":0},{"$f":"(BP216*'Default-Data'!$F$19/geo_dollar_index)/'Mexico-IO-Data'!$AS29","v":3.4097025501059107E-2},{"$f":"(BQ216*'Default-Data'!$F$19/geo_dollar_index)/'Mexico-IO-Data'!$AS29","v":0.16412959083377088},52.581493968230617,75.46998483942626,{"$f":"BH216*'Mexico-IO-Data'!AQ29","v":0},{"$f":"BU216*'Mexico-IO-Data'!$AQ29","v":18.526862195719776},{"$f":"BV216*'Mexico-IO-Data'!$AQ29","v":26.591523053299081},{"$f":"BH216*'Mexico-IO-Data'!AR29","v":0},{"$f":"BU216*'Mexico-IO-Data'!$AR29","v":4.7245446061824987},{"$f":"BV216*'Mexico-IO-Data'!$AR29","v":6.7811178970536332},{"$f":"(BZ216*'Default-Data'!$F$19/geo_dollar_index)/'Mexico-IO-Data'!$AS29","v":0},{"$f":"(CA216*'Default-Data'!$F$19/geo_dollar_index)/'Mexico-IO-Data'!$AS29","v":6.5760181234012871E-4},{"$f":"(CB216*'Default-Data'!$F$19/geo_dollar_index)/'Mexico-IO-Data'!$AS29","v":9.4385296160802087E-4},null,"TTL_C35: Other transport equipment",0,0,null,1078.9219744934635,1752.8599757859479,{"$f":"CH216*'Philippines-IO-Data'!AN29","v":0},{"$f":"CK216*'Philippines-IO-Data'!$AN29","v":225.78835737405583},{"$f":"CL216*'Philippines-IO-Data'!$AN29","v":366.82483441422784},{"$f":"CH216*'Philippines-IO-Data'!AO29","v":0},{"$f":"CK216*'Philippines-IO-Data'!$AO29","v":50.701085807037465},{"$f":"CL216*'Philippines-IO-Data'!$AO29","v":82.371020463985715},{"$f":"(CP216*'Default-Data'!$F$19/geo_dollar_index)/'Philippines-IO-Data'!$AP29","v":0},{"$f":"(CQ216*'Default-Data'!$F$19/geo_dollar_index)/'Philippines-IO-Data'!$AP29","v":1.6251583508565176E-2},{"$f":"(CR216*'Default-Data'!$F$19/geo_dollar_index)/'Philippines-IO-Data'!$AP29","v":2.640297532977854E-2},1.3277715605706017,15.561520625629436,{"$f":"CI216*'Philippines-IO-Data'!AN29","v":0},{"$f":"CV216*'Philippines-IO-Data'!$AN29","v":0.27786565360296045},{"$f":"CW216*'Philippines-IO-Data'!$AN29","v":3.2565933991222522},{"$f":"CI216*'Philippines-IO-Data'!AO29","v":0},{"$f":"CV216*'Philippines-IO-Data'!$AO29","v":6.2395114212257595E-2},{"$f":"CW216*'Philippines-IO-Data'!$AO29","v":0.73127252125756137},{"$f":"(DA216*'Default-Data'!$F$19/geo_dollar_index)/'Philippines-IO-Data'!$AP29","v":0},{"$f":"(DB216*'Default-Data'!$F$19/geo_dollar_index)/'Philippines-IO-Data'!$AP29","v":1.9999954498138524E-5},{"$f":"(DC216*'Default-Data'!$F$19/geo_dollar_index)/'Philippines-IO-Data'!$AP29","v":2.3440003813659312E-4},null,"DOM_C35: Other transport equipment",0,0,null,39716.910048605219,140902.83355318051,{"$f":"DI216*'SouthAfrica-IO-Data'!AR29","v":0},{"$f":"DL216*'SouthAfrica-IO-Data'!$AR29","v":5067.8372604274919},{"$f":"DM216*'SouthAfrica-IO-Data'!$AR29","v":17979.058016012452},{"$f":"DI216*'SouthAfrica-IO-Data'!AS29","v":0},{"$f":"DL216*'SouthAfrica-IO-Data'!$AS29","v":5173.5896256877286},{"$f":"DM216*'SouthAfrica-IO-Data'!$AS29","v":18354.233423713675},{"$f":"(DQ216*'Default-Data'!$F$19/geo_dollar_index)/'SouthAfrica-IO-Data'!$AT29","v":0},{"$f":"(DR216*'Default-Data'!$F$19/geo_dollar_index)/'SouthAfrica-IO-Data'!$AT29","v":0.41703100095280438},{"$f":"(DS216*'Default-Data'!$F$19/geo_dollar_index)/'SouthAfrica-IO-Data'!$AT29","v":1.4794919756309901},550.01485477653682,1259.0604574210083,{"$f":"DJ216*'SouthAfrica-IO-Data'!AR29","v":0},{"$f":"DW216*'SouthAfrica-IO-Data'!$AR29","v":70.18133513946502},{"$f":"DX216*'SouthAfrica-IO-Data'!$AR29","v":160.65483169361372},{"$f":"DJ216*'SouthAfrica-IO-Data'!$AS29","v":0},{"$f":"DZ216*'SouthAfrica-IO-Data'!$AS29","v":9.141935436319292},{"$f":"EA216*'SouthAfrica-IO-Data'!$AS29","v":20.927160988846282},{"$f":"(EB216*'Default-Data'!$F$19/geo_dollar_index)/'SouthAfrica-IO-Data'!$AT29","v":0},{"$f":"(EC216*'Default-Data'!$F$19/geo_dollar_index)/'SouthAfrica-IO-Data'!$AT29","v":7.3691010719609457E-4},{"$f":"(ED216*'Default-Data'!$F$19/geo_dollar_index)/'SouthAfrica-IO-Data'!$AT29","v":1.6868896695916276E-3},null,"FURNIMFG",0,0,null,3946210.201934048,840350.72617726773,{"$f":"EJ216*'Zambia-IO-Data'!BO27","v":0},{"$f":"EM216*'Zambia-IO-Data'!$BO27","v":725062.87206537614},{"$f":"EN216*'Zambia-IO-Data'!$BO27","v":154403.10573564764},{"$f":"EJ216*'Zambia-IO-Data'!BN27","v":0},{"$f":"EM216*'Zambia-IO-Data'!$BN27","v":224744.33830786392},{"$f":"EN216*'Zambia-IO-Data'!$BN27","v":47859.606619201426},{"$f":"(ER216*'Default-Data'!$F$19/geo_dollar_index)/'Zambia-IO-Data'!$BP27","v":0},{"$f":"(ES216*'Default-Data'!$F$19/geo_dollar_index)/'Zambia-IO-Data'!$BP27","v":870.15690733476458},{"$f":"(ET216*'Default-Data'!$F$19/geo_dollar_index)/'Zambia-IO-Data'!$BP27","v":185.30107408078609},16742.236905864902,1378.0967908380808,{"$f":"EK216*'Zambia-IO-Data'!BO27","v":0},{"$f":"EX216*'Zambia-IO-Data'!$BO27","v":3076.1601016124027},{"$f":"EY216*'Zambia-IO-Data'!$BO27","v":253.20668844741795},{"$f":"EK216*'Zambia-IO-Data'!BN27","v":0},{"$f":"EX216*'Zambia-IO-Data'!$BN27","v":953.50292119714902},{"$f":"EY216*'Zambia-IO-Data'!$BN27","v":78.485289817886766},{"$f":"(FC216*'Default-Data'!$F$19/geo_dollar_index)/'Zambia-IO-Data'!$BP27","v":0},{"$f":"(FD216*'Default-Data'!$F$19/geo_dollar_index)/'Zambia-IO-Data'!$BP27","v":3.6917377287031905},{"$f":"(FE216*'Default-Data'!$F$19/geo_dollar_index)/'Zambia-IO-Data'!$BP27","v":0.30387647392323824},null,"TTL_C35: Other transport equipment",0,0,null,5453.6373398908154,5069.9053568245936,{"$f":"FK216*CustomRegion1!C25","v":0},{"$f":"FN216*CustomRegion1!$C25","v":1141.2945938614978},{"$f":"FO216*CustomRegion1!$C25","v":1060.990163905765},{"$f":"FK216*CustomRegion1!D25","v":0},{"$f":"FN216*CustomRegion1!$D25","v":256.27926881374589},{"$f":"FO216*CustomRegion1!$D25","v":238.24679875539965},{"$f":"(FS216*'Default-Data'!$C$58/geo_dollar_index)/CustomRegion1!$E25","v":0},{"$f":"(FT216*'Default-Data'!$C$58/geo_dollar_index)/CustomRegion1!$E25","v":8.2490289927278332E-2},{"$f":"(FU216*'Default-Data'!$C$58/geo_dollar_index)/CustomRegion1!$E25","v":7.6686060462666392E-2},43.845735963986193,46.702388307445055,{"$f":"FL216*CustomRegion1!C25","v":0},{"$f":"FY216*CustomRegion1!$C25","v":9.175692900140282},{"$f":"FZ216*CustomRegion1!$C25","v":9.7735107734124806},{"$f":"FL216*CustomRegion1!D25","v":0},{"$f":"FY216*CustomRegion1!$D25","v":2.060414445100581},{"$f":"FZ216*CustomRegion1!$D25","v":2.1946552697483321},{"$f":"(GD216*'Default-Data'!$C$58/geo_dollar_index)/CustomRegion1!$E25","v":0},{"$f":"(GE216*'Default-Data'!$C$58/geo_dollar_index)/CustomRegion1!$E25","v":6.6319911763999438E-4},{"$f":"(GF216*'Default-Data'!$C$58/geo_dollar_index)/CustomRegion1!$E25","v":7.0640809274175259E-4},null,"C33 Medical, precision and optical instruments",0,0,null,0,0,{"$f":"GL216*CustomRegion2!C29","v":0},{"$f":"GO216*CustomRegion2!$C29","v":0},{"$f":"GP216*CustomRegion2!$C29","v":0},{"$f":"GL216*CustomRegion2!D29","v":0},{"$f":"GO216*CustomRegion2!$D29","v":0},{"$f":"GP216*CustomRegion2!$D29","v":0},{"$f":"(GT216*'Default-Data'!$C$59/geo_dollar_index)/CustomRegion2!$E29","v":0},{"$f":"(GU216*'Default-Data'!$C$59/geo_dollar_index)/CustomRegion2!$E29","v":0},{"$f":"(GV216*'Default-Data'!$C$59/geo_dollar_index)/CustomRegion2!$E29","v":0},0,0,{"$f":"GM216*CustomRegion2!C29","v":0},{"$f":"GZ216*CustomRegion2!$C29","v":0},{"$f":"HA216*CustomRegion2!$C29","v":0},{"$f":"GM216*CustomRegion2!D29","v":0},{"$f":"GZ216*CustomRegion2!$D29","v":0},{"$f":"HA216*CustomRegion2!$D29","v":0},{"$f":"(HE216*'Default-Data'!$C$59/geo_dollar_index)/CustomRegion2!$E29","v":0},{"$f":"(HF216*'Default-Data'!$C$59/geo_dollar_index)/CustomRegion2!$E29","v":0},{"$f":"(HG216*'Default-Data'!$C$59/geo_dollar_index)/CustomRegion2!$E29","v":0},null,"FURNIMFG",0,0,null,3946210.201934048,840350.72617726773,{"$f":"HM216*CustomRegion3!D28","v":0},{"$f":"HP216*CustomRegion3!$D28","v":725062.87206537614},{"$f":"HQ216*CustomRegion3!$D28","v":154403.10573564764},{"$f":"HM216*CustomRegion3!E28","v":0},{"$f":"HP216*CustomRegion3!E$12","v":1238015.6368372892},{"$f":"HQ216*CustomRegion3!F$12","v":86785046.82015954},{"$f":"(HU216*'Default-Data'!$C$60/geo_dollar_index)/CustomRegion3!$F28","v":0},{"$f":"(HV216*'Default-Data'!$C$60/geo_dollar_index)/CustomRegion3!$F28","v":4812.717159988274},{"$f":"(HW216*'Default-Data'!$C$60/geo_dollar_index)/CustomRegion3!$F28","v":337372.05866702768},16742.236905864902,1378.0967908380808,{"$f":"HN216*CustomRegion3!D28","v":0},{"$f":"IA216*CustomRegion3!$D28","v":3076.1601016124027},{"$f":"IB216*CustomRegion3!$D28","v":253.20668844741795},{"$f":"HN216*CustomRegion3!E28","v":0},{"$f":"IA216*CustomRegion3!$E28","v":953.50292119714902},{"$f":"IB216*CustomRegion3!$E28","v":78.485289817886766},{"$f":"(IF216*'Default-Data'!$C$60/geo_dollar_index)/CustomRegion3!$F28","v":0},{"$f":"(IG216*'Default-Data'!$C$60/geo_dollar_index)/CustomRegion3!$F28","v":3.7066897496284081},{"$f":"(IH216*'Default-Data'!$C$60/geo_dollar_index)/CustomRegion3!$F28","v":0.30510721340981001}]
[null,null,null,null,null,null,null,null,null,null,null,null,null,null,null,null,null,null,null,null,null,null,null,null,null,null,null,null,null,216,"TTL_C36T37: Manufacturing nec; recycling",0,0,null,41704.49137158387,180616.75167335159,{"$f":"AF217*'Colombia-IO-Data'!AN30","v":0},{"$f":"AI217*'Colombia-IO-Data'!$AN30","v":15547.90717112345},{"$f":"AJ217*'Colombia-IO-Data'!$AN30","v":67335.97260655131},{"$f":"'Colombia-IO-Data'!$AO30*AK217","v":0},{"$f":"'Colombia-IO-Data'!$AO30*AL217","v":3578.9635563989232},{"$f":"'Colombia-IO-Data'!$AO30*AM217","v":15500.027710553268},{"$f":"(AN217*'Default-Data'!$F$19/geo_dollar_index)/'Colombia-IO-Data'!$AP30","v":0},{"$f":"(AO217*'Default-Data'!$F$19/geo_dollar_index)/'Colombia-IO-Data'!$AP30","v":0.87057662695787164},{"$f":"(AP217*'Default-Data'!$F$19/geo_dollar_index)/'Colombia-IO-Data'!$AP30","v":3.7703546374147332},328.62795975813071,1512.856826152361,{"$f":"AG217*'Colombia-IO-Data'!AN30","v":0},{"$f":"AT217*'Colombia-IO-Data'!$AN30","v":122.51622892676126},{"$f":"AU217*'Colombia-IO-Data'!$AN30","v":564.01017546624109},{"$f":"AV217*'Colombia-IO-Data'!$AO30","v":0},{"$f":"AW217*'Colombia-IO-Data'!$AO30","v":28.20193827827071},{"$f":"AX217*'Colombia-IO-Data'!$AO30","v":129.82916872444784},{"$f":"(Calculations!AY217*'Default-Data'!$F$19/geo_dollar_index)/'Colombia-IO-Data'!$AP30","v":0},{"$f":"(Calculations!AZ217*'Default-Data'!$F$19/geo_dollar_index)/'Colombia-IO-Data'!$AP30","v":6.8600721725913996E-3},{"$f":"(Calculations!BA217*'Default-Data'!$F$19/geo_dollar_index)/'Colombia-IO-Data'!$AP30","v":3.1580718274370694E-2},null,"DOM_C36T37: Manufacturing nec; recycling",0,0,null,90615.419187643492,172979.78798929212,{"$f":"BG217*'Mexico-IO-Data'!AQ30","v":0},{"$f":"BJ217*'Mexico-IO-Data'!$AQ30","v":34069.394113609029},{"$f":"BK217*'Mexico-IO-Data'!$AQ30","v":65036.575712264123},{"$f":"BG217*'Mexico-IO-Data'!AQ30","v":0},{"$f":"BJ217*'Mexico-IO-Data'!$AR30","v":14015.209626323911},{"$f":"BK217*'Mexico-IO-Data'!$AR30","v":26754.254535497257},{"$f":"(BO217*'Default-Data'!$F$19/geo_dollar_index)/'Mexico-IO-Data'!$AS30","v":0},{"$f":"(BP217*'Default-Data'!$F$19/geo_dollar_index)/'Mexico-IO-Data'!$AS30","v":2.2663131206121601},{"$f":"(BQ217*'Default-Data'!$F$19/geo_dollar_index)/'Mexico-IO-Data'!$AS30","v":4.3262655145814302},780.66301525636891,994.74740881659136,{"$f":"BH217*'Mexico-IO-Data'!AQ30","v":0},{"$f":"BU217*'Mexico-IO-Data'!$AQ30","v":293.51203332858825},{"$f":"BV217*'Mexico-IO-Data'!$AQ30","v":374.00303191540257},{"$f":"BH217*'Mexico-IO-Data'!AR30","v":0},{"$f":"BU217*'Mexico-IO-Data'!$AR30","v":120.74275994551786},{"$f":"BV217*'Mexico-IO-Data'!$AR30","v":153.85453805535298},{"$f":"(BZ217*'Default-Data'!$F$19/geo_dollar_index)/'Mexico-IO-Data'!$AS30","v":0},{"$f":"(CA217*'Default-Data'!$F$19/geo_dollar_index)/'Mexico-IO-Data'!$AS30","v":1.9524567122384567E-2},{"$f":"(CB217*'Default-Data'!$F$19/geo_dollar_index)/'Mexico-IO-Data'!$AS30","v":2.4878868569019497E-2},null,"TTL_C36T37: Manufacturing nec; recycling",0,0,null,65184.497510928457,78522.633688090427,{"$f":"CH217*'Philippines-IO-Data'!AN30","v":0},{"$f":"CK217*'Philippines-IO-Data'!$AN30","v":26424.183369842955},{"$f":"CL217*'Philippines-IO-Data'!$AN30","v":31831.133942686971},{"$f":"CH217*'Philippines-IO-Data'!AO30","v":0},{"$f":"CK217*'Philippines-IO-Data'!$AO30","v":8920.2657235775587},{"$f":"CL217*'Philippines-IO-Data'!$AO30","v":10745.542031607705},{"$f":"(CP217*'Default-Data'!$F$19/geo_dollar_index)/'Philippines-IO-Data'!$AP30","v":0},{"$f":"(CQ217*'Default-Data'!$F$19/geo_dollar_index)/'Philippines-IO-Data'!$AP30","v":2.8592768974819509},{"$f":"(CR217*'Default-Data'!$F$19/geo_dollar_index)/'Philippines-IO-Data'!$AP30","v":3.4443458338564863},166.57554669353965,697.10735631810746,{"$f":"CI217*'Philippines-IO-Data'!AN30","v":0},{"$f":"CV217*'Philippines-IO-Data'!$AN30","v":67.525607450206678},{"$f":"CW217*'Philippines-IO-Data'!$AN30","v":282.59008376535922},{"$f":"CI217*'Philippines-IO-Data'!AO30","v":0},{"$f":"CV217*'Philippines-IO-Data'!$AO30","v":22.795268757076141},{"$f":"CW217*'Philippines-IO-Data'!$AO30","v":95.396652481299611},{"$f":"(DA217*'Default-Data'!$F$19/geo_dollar_index)/'Philippines-IO-Data'!$AP30","v":0},{"$f":"(DB217*'Default-Data'!$F$19/geo_dollar_index)/'Philippines-IO-Data'!$AP30","v":7.3067313630271156E-3},{"$f":"(DC217*'Default-Data'!$F$19/geo_dollar_index)/'Philippines-IO-Data'!$AP30","v":3.0578174797633608E-2},null,"DOM_C36T37: Manufacturing nec; recycling",0,0,null,623739.65405010665,844662.58761929884,{"$f":"DI217*'SouthAfrica-IO-Data'!AR30","v":0},{"$f":"DL217*'SouthAfrica-IO-Data'!$AR30","v":166898.43904389162},{"$f":"DM217*'SouthAfrica-IO-Data'!$AR30","v":226012.35383554848},{"$f":"DI217*'SouthAfrica-IO-Data'!AS30","v":0},{"$f":"DL217*'SouthAfrica-IO-Data'!$AS30","v":64771.009374266476},{"$f":"DM217*'SouthAfrica-IO-Data'!$AS30","v":87712.313984749169},{"$f":"(DQ217*'Default-Data'!$F$19/geo_dollar_index)/'SouthAfrica-IO-Data'!$AT30","v":0},{"$f":"(DR217*'Default-Data'!$F$19/geo_dollar_index)/'SouthAfrica-IO-Data'!$AT30","v":5.2210400952478269},{"$f":"(DS217*'Default-Data'!$F$19/geo_dollar_index)/'SouthAfrica-IO-Data'!$AT30","v":7.0702851875469683},2782.6484582376406,7547.6215567586923,{"$f":"DJ217*'SouthAfrica-IO-Data'!AR30","v":0},{"$f":"DW217*'SouthAfrica-IO-Data'!$AR30","v":744.57296577531019},{"$f":"DX217*'SouthAfrica-IO-Data'!$AR30","v":2019.5705822735122},{"$f":"DJ217*'SouthAfrica-IO-Data'!$AS30","v":0},{"$f":"DZ217*'SouthAfrica-IO-Data'!$AS30","v":77.318705381177878},{"$f":"EA217*'SouthAfrica-IO-Data'!$AS30","v":209.71830837922352},{"$f":"(EB217*'Default-Data'!$F$19/geo_dollar_index)/'SouthAfrica-IO-Data'!$AT30","v":0},{"$f":"(EC217*'Default-Data'!$F$19/geo_dollar_index)/'SouthAfrica-IO-Data'!$AT30","v":6.2324806237799239E-3},{"$f":"(ED217*'Default-Data'!$F$19/geo_dollar_index)/'SouthAfrica-IO-Data'!$AT30","v":1.6904904020076876E-2},null,"INDCHEMMFG",{"$f":"AF206+AF207","v":492804.42631040246},0,null,578759.96450982278,443629.68004009966,{"$f":"EJ217*'Zambia-IO-Data'!BO28","v":91842.66668310063},{"$f":"EM217*'Zambia-IO-Data'!$BO28","v":107861.97459297611},{"$f":"EN217*'Zambia-IO-Data'!$BO28","v":82678.098367951679},{"$f":"EJ217*'Zambia-IO-Data'!BN28","v":17739.277887507596},{"$f":"EM217*'Zambia-IO-Data'!$BN28","v":20833.383980477982},{"$f":"EN217*'Zambia-IO-Data'!$BN28","v":15969.154807105051},{"$f":"(ER217*'Default-Data'!$F$19/geo_dollar_index)/'Zambia-IO-Data'!$BP28","v":68.682287176466218},{"$f":"(ES217*'Default-Data'!$F$19/geo_dollar_index)/'Zambia-IO-Data'!$BP28","v":80.661933956874378},{"$f":"(ET217*'Default-Data'!$F$19/geo_dollar_index)/'Zambia-IO-Data'!$BP28","v":61.828789389416201},9850.9115039240678,677.29192315628461,{"$f":"EK217*'Zambia-IO-Data'!BO28","v":0},{"$f":"EX217*'Zambia-IO-Data'!$BO28","v":1835.8885056153194},{"$f":"EY217*'Zambia-IO-Data'!$BO28","v":126.22511695221313},{"$f":"EK217*'Zambia-IO-Data'!BN28","v":0},{"$f":"EX217*'Zambia-IO-Data'!$BN28","v":354.59920261204383},{"$f":"EY217*'Zambia-IO-Data'!$BN28","v":24.380198298515488},{"$f":"(FC217*'Default-Data'!$F$19/geo_dollar_index)/'Zambia-IO-Data'!$BP28","v":0},{"$f":"(FD217*'Default-Data'!$F$19/geo_dollar_index)/'Zambia-IO-Data'!$BP28","v":1.3729242205229475},{"$f":"(FE217*'Default-Data'!$F$19/geo_dollar_index)/'Zambia-IO-Data'!$BP28","v":9.4394359881866799E-2},null,"TTL_C36T37: Manufacturing nec; recycling",0,0,null,107332.52816217743,128258.52551293965,{"$f":"FK217*CustomRegion1!C26","v":0},{"$f":"FN217*CustomRegion1!$C26","v":43509.952734248094},{"$f":"FO217*CustomRegion1!$C26","v":51992.834589718157},{"$f":"FK217*CustomRegion1!D26","v":0},{"$f":"FN217*CustomRegion1!$D26","v":14688.073216020057},{"$f":"FO217*CustomRegion1!$D26","v":17551.721230923966},{"$f":"(FS217*'Default-Data'!$C$58/geo_dollar_index)/CustomRegion1!$E26","v":0},{"$f":"(FT217*'Default-Data'!$C$58/geo_dollar_index)/CustomRegion1!$E26","v":4.7277465074365734},{"$f":"(FU217*'Default-Data'!$C$58/geo_dollar_index)/CustomRegion1!$E26","v":5.6494876849126836},410.26243016888401,1181.4775702237828,{"$f":"FL217*CustomRegion1!C26","v":0},{"$f":"FY217*CustomRegion1!$C26","v":166.31024397668276},{"$f":"FZ217*CustomRegion1!$C26","v":478.94179068751197},{"$f":"FL217*CustomRegion1!D26","v":0},{"$f":"FY217*CustomRegion1!$D26","v":56.142948603593545},{"$f":"FZ217*CustomRegion1!$D26","v":161.68098666521107},{"$f":"(GD217*'Default-Data'!$C$58/geo_dollar_index)/CustomRegion1!$E26","v":0},{"$f":"(GE217*'Default-Data'!$C$58/geo_dollar_index)/CustomRegion1!$E26","v":1.8071099270415565E-2},{"$f":"(GF217*'Default-Data'!$C$58/geo_dollar_index)/CustomRegion1!$E26","v":5.204132010940999E-2},null,"C34 Motor vehicles, trailers and semi-trailers",0,0,null,477931.79553558573,325933.85282128141,{"$f":"GL217*CustomRegion2!C30","v":0},{"$f":"GO217*CustomRegion2!$C30","v":145814.87571332417},{"$f":"GP217*CustomRegion2!$C30","v":99440.976063626149},{"$f":"GL217*CustomRegion2!D30","v":0},{"$f":"GO217*CustomRegion2!$D30","v":50712.941392562541},{"$f":"GP217*CustomRegion2!$D30","v":34584.567359563822},{"$f":"(GT217*'Default-Data'!$C$59/geo_dollar_index)/CustomRegion2!$E30","v":0},{"$f":"(GU217*'Default-Data'!$C$59/geo_dollar_index)/CustomRegion2!$E30","v":7.05865325627527},{"$f":"(GV217*'Default-Data'!$C$59/geo_dollar_index)/CustomRegion2!$E30","v":4.8137706531307369},1978.5486454665529,3386.7850990577676,{"$f":"GM217*CustomRegion2!C30","v":0},{"$f":"GZ217*CustomRegion2!$C30","v":603.64643559269143},{"$f":"HA217*CustomRegion2!$C30","v":1033.2931453816118},{"$f":"GM217*CustomRegion2!D30","v":0},{"$f":"GZ217*CustomRegion2!$D30","v":209.94213491788568},{"$f":"HA217*CustomRegion2!$D30","v":359.36892218114053},{"$f":"(HE217*'Default-Data'!$C$59/geo_dollar_index)/CustomRegion2!$E30","v":0},{"$f":"(HF217*'Default-Data'!$C$59/geo_dollar_index)/CustomRegion2!$E30","v":2.9221510201828872E-2},{"$f":"(HG217*'Default-Data'!$C$59/geo_dollar_index)/CustomRegion2!$E30","v":5.0019985887272224E-2},null,"INDCHEMMFG",492804.42631040246,0,null,578759.96450982278,443629.68004009966,{"$f":"HM217*CustomRegion3!D29","v":91842.66668310063},{"$f":"HP217*CustomRegion3!$D29","v":107861.97459297611},{"$f":"HQ217*CustomRegion3!$D29","v":82678.098367951679},{"$f":"HM217*CustomRegion3!E29","v":17739.277887507596},{"$f":"HP217*CustomRegion3!E$12","v":181570.12662107809},{"$f":"HQ217*CustomRegion3!F$12","v":45814707.304686703},{"$f":"(HU217*'Default-Data'!$C$60/geo_dollar_index)/CustomRegion3!$F29","v":68.960459427726079},{"$f":"(HV217*'Default-Data'!$C$60/geo_dollar_index)/CustomRegion3!$F29","v":705.8438020725539},{"$f":"(HW217*'Default-Data'!$C$60/geo_dollar_index)/CustomRegion3!$F29","v":178102.13495234307},9850.9115039240678,677.29192315628461,{"$f":"HN217*CustomRegion3!D29","v":0},{"$f":"IA217*CustomRegion3!$D29","v":1835.8885056153194},{"$f":"IB217*CustomRegion3!$D29","v":126.22511695221313},{"$f":"HN217*CustomRegion3!E29","v":0},{"$f":"IA217*CustomRegion3!$E29","v":354.59920261204383},{"$f":"IB217*CustomRegion3!$E29","v":24.380198298515488},{"$f":"(IF217*'Default-Data'!$C$60/geo_dollar_index)/CustomRegion3!$F29","v":0},{"$f":"(IG217*'Default-Data'!$C$60/geo_dollar_index)/CustomRegion3!$F29","v":1.3784847432855458},{"$f":"(IH217*'Default-Data'!$C$60/geo_dollar_index)/CustomRegion3!$F29","v":9.4776669392426752E-2}]
[null,null,null,null,null,null,null,null,null,null,null,null,null,null,null,null,null,null,null,null,null,null,null,null,null,null,null,null,null,217,"TTL_C40T41: Electricity, gas and water supply",{"$f":"0.5*('Geothermal-Inputs'!B25*'Geothermal-Inputs'!C25+'Geothermal-Inputs'!B29*'Geothermal-Inputs'!C29)","v":27683059.645699918},{"$f":"'Geothermal-Inputs'!B40*'Geothermal-Inputs'!C40","v":395096.88011609885},null,8907500.1034788266,1429710.6338909492,{"$f":"AF218*'Colombia-IO-Data'!AN31","v":14641243.354294609},{"$f":"AI218*'Colombia-IO-Data'!$AN31","v":4711071.6215104461},{"$f":"AJ218*'Colombia-IO-Data'!$AN31","v":756157.07168668148},{"$f":"'Colombia-IO-Data'!$AO31*AK218","v":2580393.5525831785},{"$f":"'Colombia-IO-Data'!$AO31*AL218","v":830285.96299762896},{"$f":"'Colombia-IO-Data'!$AO31*AM218","v":133266.19777466939},{"$f":"(AN218*'Default-Data'!$F$19/geo_dollar_index)/'Colombia-IO-Data'!$AP31","v":254.59423663085801},{"$f":"(AO218*'Default-Data'!$F$19/geo_dollar_index)/'Colombia-IO-Data'!$AP31","v":81.920070185838128},{"$f":"(AP218*'Default-Data'!$F$19/geo_dollar_index)/'Colombia-IO-Data'!$AP31","v":13.148694259127053},121828.69406331994,526299.59174732666,{"$f":"AG218*'Colombia-IO-Data'!AN31","v":208962.07443605029},{"$f":"AT218*'Colombia-IO-Data'!$AN31","v":64433.757689571161},{"$f":"AU218*'Colombia-IO-Data'!$AN31","v":278353.63932524907},{"$f":"AV218*'Colombia-IO-Data'!$AO31","v":36827.773199400406},{"$f":"AW218*'Colombia-IO-Data'!$AO31","v":11355.897097503475},{"$f":"AX218*'Colombia-IO-Data'!$AO31","v":49057.441289113849},{"$f":"(Calculations!AY218*'Default-Data'!$F$19/geo_dollar_index)/'Colombia-IO-Data'!$AP31","v":3.6336080576272796},{"$f":"(Calculations!AZ218*'Default-Data'!$F$19/geo_dollar_index)/'Colombia-IO-Data'!$AP31","v":1.1204282966461481},{"$f":"(Calculations!BA218*'Default-Data'!$F$19/geo_dollar_index)/'Colombia-IO-Data'!$AP31","v":4.840246869924882},null,"DOM_C40T41: Electricity, gas and water supply",27683059.645699918,395096.88011609885,null,967337.52330542356,648643.06234579533,{"$f":"BG218*'Mexico-IO-Data'!AQ31","v":12383400.575138837},{"$f":"BJ218*'Mexico-IO-Data'!$AQ31","v":432716.91047757713},{"$f":"BK218*'Mexico-IO-Data'!$AQ31","v":290156.03672841971},{"$f":"BG218*'Mexico-IO-Data'!AQ31","v":12383400.575138837},{"$f":"BJ218*'Mexico-IO-Data'!$AR31","v":104516.17709428024},{"$f":"BK218*'Mexico-IO-Data'!$AR31","v":70082.770017497271},{"$f":"(BO218*'Default-Data'!$F$19/geo_dollar_index)/'Mexico-IO-Data'!$AS31","v":686.78208283436925},{"$f":"(BP218*'Default-Data'!$F$19/geo_dollar_index)/'Mexico-IO-Data'!$AS31","v":5.7964560993692},{"$f":"(BQ218*'Default-Data'!$F$19/geo_dollar_index)/'Mexico-IO-Data'!$AS31","v":3.886782994006412},9347.7510433829157,3730.1236925743287,{"$f":"BH218*'Mexico-IO-Data'!AQ31","v":176737.79542736511},{"$f":"BU218*'Mexico-IO-Data'!$AQ31","v":4181.5083711262923},{"$f":"BV218*'Mexico-IO-Data'!$AQ31","v":1668.5878104206956},{"$f":"BH218*'Mexico-IO-Data'!AR31","v":42688.321807789296},{"$f":"BU218*'Mexico-IO-Data'!$AR31","v":1009.9796399348195},{"$f":"BV218*'Mexico-IO-Data'!$AR31","v":403.02196394130436},{"$f":"(BZ218*'Default-Data'!$F$19/geo_dollar_index)/'Mexico-IO-Data'!$AS31","v":2.3674898010418808},{"$f":"(CA218*'Default-Data'!$F$19/geo_dollar_index)/'Mexico-IO-Data'!$AS31","v":5.6013363738495144E-2},{"$f":"(CB218*'Default-Data'!$F$19/geo_dollar_index)/'Mexico-IO-Data'!$AS31","v":2.2351555386110399E-2},null,"TTL_C40T41: Electricity, gas and water supply",27683059.645699918,395096.88011609885,null,3790324.2690732516,995994.73831524327,{"$f":"CH218*'Philippines-IO-Data'!AN31","v":16589240.452049443},{"$f":"CK218*'Philippines-IO-Data'!$AN31","v":2271374.6780754356},{"$f":"CL218*'Philippines-IO-Data'!$AN31","v":596855.85388153302},{"$f":"CH218*'Philippines-IO-Data'!AO31","v":3435655.2683531484},{"$f":"CK218*'Philippines-IO-Data'!$AO31","v":470404.92310000467},{"$f":"CL218*'Philippines-IO-Data'!$AO31","v":123609.69537831821},{"$f":"(CP218*'Default-Data'!$F$19/geo_dollar_index)/'Philippines-IO-Data'!$AP31","v":896.48482746742627},{"$f":"(CQ218*'Default-Data'!$F$19/geo_dollar_index)/'Philippines-IO-Data'!$AP31","v":122.74539887911371},{"$f":"(CR218*'Default-Data'!$F$19/geo_dollar_index)/'Philippines-IO-Data'!$AP31","v":32.254172138653061},34319.055388940847,8842.2309125754982,{"$f":"CI218*'Philippines-IO-Data'!AN31","v":236764.18827926132},{"$f":"CV218*'Philippines-IO-Data'!$AN31","v":20565.900923555539},{"$f":"CW218*'Philippines-IO-Data'!$AN31","v":5298.7602027597632},{"$f":"CI218*'Philippines-IO-Data'!AO31","v":49034.199797767593},{"$f":"CV218*'Philippines-IO-Data'!$AO31","v":4259.2273022188556},{"$f":"CW218*'Philippines-IO-Data'!$AO31","v":1097.3807667066853},{"$f":"(DA218*'Default-Data'!$F$19/geo_dollar_index)/'Philippines-IO-Data'!$AP31","v":12.794769181477303},{"$f":"(DB218*'Default-Data'!$F$19/geo_dollar_index)/'Philippines-IO-Data'!$AP31","v":1.1113841043209514},{"$f":"(DC218*'Default-Data'!$F$19/geo_dollar_index)/'Philippines-IO-Data'!$AP31","v":0.28634572751493892},null,"DOM_C40T41: Electricity, gas and water supply",27683059.645699918,395096.88011609885,null,5215662.9644545019,1755315.0537940785,{"$f":"DI218*'SouthAfrica-IO-Data'!AR31","v":15052015.219652895},{"$f":"DL218*'SouthAfrica-IO-Data'!$AR31","v":2835894.5624619089},{"$f":"DM218*'SouthAfrica-IO-Data'!$AR31","v":954411.4430681566},{"$f":"DI218*'SouthAfrica-IO-Data'!AS31","v":4918487.8487937246},{"$f":"DL218*'SouthAfrica-IO-Data'!$AS31","v":926674.11920480023},{"$f":"DM218*'SouthAfrica-IO-Data'!$AS31","v":311869.27577320527},{"$f":"(DQ218*'Default-Data'!$F$19/geo_dollar_index)/'SouthAfrica-IO-Data'!$AT31","v":184.54298915533749},{"$f":"(DR218*'Default-Data'!$F$19/geo_dollar_index)/'SouthAfrica-IO-Data'!$AT31","v":34.769062603841633},{"$f":"(DS218*'Default-Data'!$F$19/geo_dollar_index)/'SouthAfrica-IO-Data'!$AT31","v":11.701419246367093},66845.068812275073,15684.906533223286,{"$f":"DJ218*'SouthAfrica-IO-Data'!AR31","v":214824.67360390414},{"$f":"DW218*'SouthAfrica-IO-Data'!$AR31","v":36345.440352269652},{"$f":"DX218*'SouthAfrica-IO-Data'!$AR31","v":8528.3005158565411},{"$f":"DJ218*'SouthAfrica-IO-Data'!$AS31","v":70197.414188254217},{"$f":"DZ218*'SouthAfrica-IO-Data'!$AS31","v":6457.5451203589537},{"$f":"EA218*'SouthAfrica-IO-Data'!$AS31","v":1515.235056924688},{"$f":"(EB218*'Default-Data'!$F$19/geo_dollar_index)/'SouthAfrica-IO-Data'!$AT31","v":2.6338258919258792},{"$f":"(EC218*'Default-Data'!$F$19/geo_dollar_index)/'SouthAfrica-IO-Data'!$AT31","v":0.24228883261524614},{"$f":"(ED218*'Default-Data'!$F$19/geo_dollar_index)/'SouthAfrica-IO-Data'!$AT31","v":5.6852027548755478E-2},null,"OTHERMFG",{"$f":"AF209","v":60466.124871234635},0,null,11496781.960492531,2377601.2994580483,{"$f":"EJ218*'Zambia-IO-Data'!BO29","v":6489.324909636297},{"$f":"EM218*'Zambia-IO-Data'!$BO29","v":1233853.72745085},{"$f":"EN218*'Zambia-IO-Data'!$BO29","v":255168.11885354912},{"$f":"EJ218*'Zambia-IO-Data'!BN29","v":218.50819661105407},{"$f":"EM218*'Zambia-IO-Data'!$BN29","v":41546.255831135873},{"$f":"EN218*'Zambia-IO-Data'!$BN29","v":8592.0070669491361},{"$f":"(ER218*'Default-Data'!$F$19/geo_dollar_index)/'Zambia-IO-Data'!$BP29","v":0.84601204204715008},{"$f":"(ES218*'Default-Data'!$F$19/geo_dollar_index)/'Zambia-IO-Data'!$BP29","v":160.85727345815482},{"$f":"(ET218*'Default-Data'!$F$19/geo_dollar_index)/'Zambia-IO-Data'!$BP29","v":33.266218644108555},161436.34371614523,3927.3080473580922,{"$f":"EK218*'Zambia-IO-Data'!BO29","v":0},{"$f":"EX218*'Zambia-IO-Data'!$BO29","v":17325.616431162533},{"$f":"EY218*'Zambia-IO-Data'!$BO29","v":421.48521992782986},{"$f":"EK218*'Zambia-IO-Data'!BN29","v":0},{"$f":"EX218*'Zambia-IO-Data'!$BN29","v":583.3872173554571},{"$f":"EY218*'Zambia-IO-Data'!$BN29","v":14.192227479299596},{"$f":"(FC218*'Default-Data'!$F$19/geo_dollar_index)/'Zambia-IO-Data'!$BP29","v":0},{"$f":"(FD218*'Default-Data'!$F$19/geo_dollar_index)/'Zambia-IO-Data'!$BP29","v":2.258737286352793},{"$f":"(FE218*'Default-Data'!$F$19/geo_dollar_index)/'Zambia-IO-Data'!$BP29","v":5.4948947166188457E-2},null,"TTL_C40T41: Electricity, gas and water supply",27683059.645699918,395096.88011609885,null,4234284.811646089,1304994.3786217496,{"$f":"FK218*CustomRegion1!C27","v":16589240.452049443},{"$f":"FN218*CustomRegion1!$C27","v":2537420.7107836427},{"$f":"FO218*CustomRegion1!$C27","v":782025.75194363785},{"$f":"FK218*CustomRegion1!D27","v":3435655.2683531484},{"$f":"FN218*CustomRegion1!$D27","v":525503.43448395922},{"$f":"FO218*CustomRegion1!$D27","v":161958.64436464096},{"$f":"(FS218*'Default-Data'!$C$58/geo_dollar_index)/CustomRegion1!$E27","v":900.23081320307824},{"$f":"(FT218*'Default-Data'!$C$58/geo_dollar_index)/CustomRegion1!$E27","v":137.6955332288822},{"$f":"(FU218*'Default-Data'!$C$58/geo_dollar_index)/CustomRegion1!$E27","v":42.437366596310731},38896.34781024541,12021.201564914139,{"$f":"FL218*CustomRegion1!C27","v":236764.18827926132},{"$f":"FY218*CustomRegion1!$C27","v":23308.871013140993},{"$f":"FZ218*CustomRegion1!$C27","v":7203.7775388708005},{"$f":"FL218*CustomRegion1!D27","v":49034.199797767593},{"$f":"FY218*CustomRegion1!$D27","v":4827.300305106407},{"$f":"FZ218*CustomRegion1!$D27","v":1491.9125637489901},{"$f":"(GD218*'Default-Data'!$C$58/geo_dollar_index)/CustomRegion1!$E27","v":12.848232465379356},{"$f":"(GE218*'Default-Data'!$C$58/geo_dollar_index)/CustomRegion1!$E27","v":1.2648779169641415},{"$f":"(GF218*'Default-Data'!$C$58/geo_dollar_index)/CustomRegion1!$E27","v":0.39091979712371716},null,"C35 Other transport equipment",27683059.645699918,395096.88011609885,null,0,0,{"$f":"GL218*CustomRegion2!C31","v":0},{"$f":"GO218*CustomRegion2!$C31","v":0},{"$f":"GP218*CustomRegion2!$C31","v":0},{"$f":"GL218*CustomRegion2!D31","v":0},{"$f":"GO218*CustomRegion2!$D31","v":0},{"$f":"GP218*CustomRegion2!$D31","v":0},{"$f":"(GT218*'Default-Data'!$C$59/geo_dollar_index)/CustomRegion2!$E31","v":0},{"$f":"(GU218*'Default-Data'!$C$59/geo_dollar_index)/CustomRegion2!$E31","v":0},{"$f":"(GV218*'Default-Data'!$C$59/geo_dollar_index)/CustomRegion2!$E31","v":0},0,0,{"$f":"GM218*CustomRegion2!C31","v":0},{"$f":"GZ218*CustomRegion2!$C31","v":0},{"$f":"HA218*CustomRegion2!$C31","v":0},{"$f":"GM218*CustomRegion2!D31","v":0},{"$f":"GZ218*CustomRegion2!$D31","v":0},{"$f":"HA218*CustomRegion2!$D31","v":0},{"$f":"(HE218*'Default-Data'!$C$59/geo_dollar_index)/CustomRegion2!$E31","v":0},{"$f":"(HF218*'Default-Data'!$C$59/geo_dollar_index)/CustomRegion2!$E31","v":0},{"$f":"(HG218*'Default-Data'!$C$59/geo_dollar_index)/CustomRegion2!$E31","v":0},null,"OTHERMFG",60466.124871234635,0,null,11496781.960492531,2377601.2994580474,{"$f":"HM218*CustomRegion3!D30","v":6489.324909636297},{"$f":"HP218*CustomRegion3!$D30","v":1233853.72745085},{"$f":"HQ218*CustomRegion3!$D30","v":255168.11885354901},{"$f":"HM218*CustomRegion3!E30","v":218.50819661105407},{"$f":"HP218*CustomRegion3!E$12","v":3606801.2376590818},{"$f":"HQ218*CustomRegion3!F$12","v":245540622.10640889},{"$f":"(HU218*'Default-Data'!$C$60/geo_dollar_index)/CustomRegion3!$F30","v":0.84943850153188682},{"$f":"(HV218*'Default-Data'!$C$60/geo_dollar_index)/CustomRegion3!$F30","v":14021.23987181126},{"$f":"(HW218*'Default-Data'!$C$60/geo_dollar_index)/CustomRegion3!$F30","v":954525.55712834012},161436.34371614523,3927.3080473580922,{"$f":"HN218*CustomRegion3!D30","v":0},{"$f":"IA218*CustomRegion3!$D30","v":17325.616431162533},{"$f":"IB218*CustomRegion3!$D30","v":421.48521992782986},{"$f":"HN218*CustomRegion3!E30","v":0},{"$f":"IA218*CustomRegion3!$E30","v":583.3872173554571},{"$f":"IB218*CustomRegion3!$E30","v":14.192227479299596},{"$f":"(IF218*'Default-Data'!$C$60/geo_dollar_index)/CustomRegion3!$F30","v":0},{"$f":"(IG218*'Default-Data'!$C$60/geo_dollar_index)/CustomRegion3!$F30","v":2.2678854679550602},{"$f":"(IH218*'Default-Data'!$C$60/geo_dollar_index)/CustomRegion3!$F30","v":5.5171497593175634E-2}]
[null,null,null,null,null,null,null,null,null,null,null,null,null,null,null,null,null,null,null,null,null,null,null,null,null,null,null,null,null,218,"TTL_C45: Construction",{"$f":"'Geothermal-Inputs'!B32*'Geothermal-Inputs'!C32","v":0},{"$f":"'Geothermal-Inputs'!B41*'Geothermal-Inputs'!C41","v":0},null,1232163.0285400243,286578.00829315651,{"$f":"AF219*'Colombia-IO-Data'!AN32","v":0},{"$f":"AI219*'Colombia-IO-Data'!$AN32","v":611846.21745789994},{"$f":"AJ219*'Colombia-IO-Data'!$AN32","v":142303.95355113584},{"$f":"'Colombia-IO-Data'!$AO32*AK219","v":0},{"$f":"'Colombia-IO-Data'!$AO32*AL219","v":120662.83827110163},{"$f":"'Colombia-IO-Data'!$AO32*AM219","v":28063.912863628277},{"$f":"(AN219*'Default-Data'!$F$19/geo_dollar_index)/'Colombia-IO-Data'!$AP32","v":0},{"$f":"(AO219*'Default-Data'!$F$19/geo_dollar_index)/'Colombia-IO-Data'!$AP32","v":34.253874253779742},{"$f":"(AP219*'Default-Data'!$F$19/geo_dollar_index)/'Colombia-IO-Data'!$AP32","v":7.9668086386294004},17395.045628993936,19274.018353009502,{"$f":"AG219*'Colombia-IO-Data'!AN32","v":0},{"$f":"AT219*'Colombia-IO-Data'!$AN32","v":8637.7310664956349},{"$f":"AU219*'Colombia-IO-Data'!$AN32","v":9570.7588617360816},{"$f":"AV219*'Colombia-IO-Data'!$AO32","v":0},{"$f":"AW219*'Colombia-IO-Data'!$AO32","v":1703.4560596552983},{"$f":"AX219*'Colombia-IO-Data'!$AO32","v":1887.459455847393},{"$f":"(Calculations!AY219*'Default-Data'!$F$19/geo_dollar_index)/'Colombia-IO-Data'!$AP32","v":0},{"$f":"(Calculations!AZ219*'Default-Data'!$F$19/geo_dollar_index)/'Colombia-IO-Data'!$AP32","v":0.48357862702659743},{"$f":"(Calculations!BA219*'Default-Data'!$F$19/geo_dollar_index)/'Colombia-IO-Data'!$AP32","v":0.53581367541217761},null,"DOM_C45: Construction",0,0,null,131574.81426040066,43309.586319123395,{"$f":"BG219*'Mexico-IO-Data'!AQ32","v":0},{"$f":"BJ219*'Mexico-IO-Data'!$AQ32","v":66174.571263382823},{"$f":"BK219*'Mexico-IO-Data'!$AQ32","v":21782.233342852021},{"$f":"BG219*'Mexico-IO-Data'!AQ32","v":0},{"$f":"BJ219*'Mexico-IO-Data'!$AR32","v":29104.657821039837},{"$f":"BK219*'Mexico-IO-Data'!$AR32","v":9580.182174486592},{"$f":"(BO219*'Default-Data'!$F$19/geo_dollar_index)/'Mexico-IO-Data'!$AS32","v":0},{"$f":"(BP219*'Default-Data'!$F$19/geo_dollar_index)/'Mexico-IO-Data'!$AS32","v":10.212657237501775},{"$f":"(BQ219*'Default-Data'!$F$19/geo_dollar_index)/'Mexico-IO-Data'!$AS32","v":3.3616308916069033},2369.4714013210551,249.05857076511984,{"$f":"BH219*'Mexico-IO-Data'!AQ32","v":0},{"$f":"BU219*'Mexico-IO-Data'!$AQ32","v":1191.7079646637096},{"$f":"BV219*'Mexico-IO-Data'!$AQ32","v":125.26215015006102},{"$f":"BH219*'Mexico-IO-Data'!AR32","v":0},{"$f":"BU219*'Mexico-IO-Data'!$AR32","v":524.13263693235831},{"$f":"BV219*'Mexico-IO-Data'!$AR32","v":55.092340584041921},{"$f":"(BZ219*'Default-Data'!$F$19/geo_dollar_index)/'Mexico-IO-Data'!$AS32","v":0},{"$f":"(CA219*'Default-Data'!$F$19/geo_dollar_index)/'Mexico-IO-Data'!$AS32","v":0.18391513141613347},{"$f":"(CB219*'Default-Data'!$F$19/geo_dollar_index)/'Mexico-IO-Data'!$AS32","v":1.9331585832622126E-2},null,"TTL_C45: Construction",0,0,null,452653.37884354743,297945.5658268996,{"$f":"CH219*'Philippines-IO-Data'!AN32","v":0},{"$f":"CK219*'Philippines-IO-Data'!$AN32","v":249108.07046058538},{"$f":"CL219*'Philippines-IO-Data'!$AN32","v":163967.9465003607},{"$f":"CH219*'Philippines-IO-Data'!AO32","v":0},{"$f":"CK219*'Philippines-IO-Data'!$AO32","v":76549.551742490541},{"$f":"CL219*'Philippines-IO-Data'!$AO32","v":50386.455892545018},{"$f":"(CP219*'Default-Data'!$F$19/geo_dollar_index)/'Philippines-IO-Data'!$AP32","v":0},{"$f":"(CQ219*'Default-Data'!$F$19/geo_dollar_index)/'Philippines-IO-Data'!$AP32","v":24.536978111692388},{"$f":"(CR219*'Default-Data'!$F$19/geo_dollar_index)/'Philippines-IO-Data'!$AP32","v":16.150732920293219},7692.1955720484657,2645.0978012954092,{"$f":"CI219*'Philippines-IO-Data'!AN32","v":0},{"$f":"CV219*'Philippines-IO-Data'!$AN32","v":4233.234713621242},{"$f":"CW219*'Philippines-IO-Data'!$AN32","v":1455.6727956911598},{"$f":"CI219*'Philippines-IO-Data'!AO32","v":0},{"$f":"CV219*'Philippines-IO-Data'!$AO32","v":1300.8499449628584},{"$f":"CW219*'Philippines-IO-Data'!$AO32","v":447.32031277777185},{"$f":"(DA219*'Default-Data'!$F$19/geo_dollar_index)/'Philippines-IO-Data'!$AP32","v":0},{"$f":"(DB219*'Default-Data'!$F$19/geo_dollar_index)/'Philippines-IO-Data'!$AP32","v":0.41697078427740275},{"$f":"(DC219*'Default-Data'!$F$19/geo_dollar_index)/'Philippines-IO-Data'!$AP32","v":0.14338279550566158},null,"DOM_C45: Construction",0,0,null,1155846.0957884227,598544.98295010277,{"$f":"DI219*'SouthAfrica-IO-Data'!AR32","v":0},{"$f":"DL219*'SouthAfrica-IO-Data'!$AR32","v":344153.92800662469},{"$f":"DM219*'SouthAfrica-IO-Data'!$AR32","v":178217.15860053635},{"$f":"DI219*'SouthAfrica-IO-Data'!AS32","v":0},{"$f":"DL219*'SouthAfrica-IO-Data'!$AS32","v":155216.60651596601},{"$f":"DM219*'SouthAfrica-IO-Data'!$AS32","v":80377.587845984075},{"$f":"(DQ219*'Default-Data'!$F$19/geo_dollar_index)/'SouthAfrica-IO-Data'!$AT32","v":0},{"$f":"(DR219*'Default-Data'!$F$19/geo_dollar_index)/'SouthAfrica-IO-Data'!$AT32","v":15.144581859996457},{"$f":"(DS219*'Default-Data'!$F$19/geo_dollar_index)/'SouthAfrica-IO-Data'!$AT32","v":7.8424917678982302},5963.7064037911623,5348.3971969646427,{"$f":"DJ219*'SouthAfrica-IO-Data'!AR32","v":0},{"$f":"DW219*'SouthAfrica-IO-Data'!$AR32","v":1775.6974668353141},{"$f":"DX219*'SouthAfrica-IO-Data'!$AR32","v":1592.4887496543806},{"$f":"DJ219*'SouthAfrica-IO-Data'!$AS32","v":0},{"$f":"DZ219*'SouthAfrica-IO-Data'!$AS32","v":238.45539298479949},{"$f":"EA219*'SouthAfrica-IO-Data'!$AS32","v":213.85260592812784},{"$f":"(EB219*'Default-Data'!$F$19/geo_dollar_index)/'SouthAfrica-IO-Data'!$AT32","v":0},{"$f":"(EC219*'Default-Data'!$F$19/geo_dollar_index)/'SouthAfrica-IO-Data'!$AT32","v":2.32662425759479E-2},{"$f":"(ED219*'Default-Data'!$F$19/geo_dollar_index)/'SouthAfrica-IO-Data'!$AT32","v":2.0865733178614194E-2},null,"ELECWATER",{"$f":"AF218","v":27683059.645699918},{"$f":"AG218","v":395096.88011609885},null,32759677.018976897,1025132.3968922049,{"$f":"EJ219*'Zambia-IO-Data'!BO30","v":7379177.7807282805},{"$f":"EM219*'Zambia-IO-Data'!$BO30","v":8732397.4971032236},{"$f":"EN219*'Zambia-IO-Data'!$BO30","v":273258.60299646168},{"$f":"EJ219*'Zambia-IO-Data'!BN30","v":365291.32590510085},{"$f":"EM219*'Zambia-IO-Data'!$BN30","v":432279.74102724483},{"$f":"EN219*'Zambia-IO-Data'!$BN30","v":13527.116485015966},{"$f":"(ER219*'Default-Data'!$F$19/geo_dollar_index)/'Zambia-IO-Data'!$BP30","v":637.65642636649318},{"$f":"(ES219*'Default-Data'!$F$19/geo_dollar_index)/'Zambia-IO-Data'!$BP30","v":754.5921167744242},{"$f":"(ET219*'Default-Data'!$F$19/geo_dollar_index)/'Zambia-IO-Data'!$BP30","v":23.613078507972627},423455.33106875705,1708.4945779808331,{"$f":"EK219*'Zambia-IO-Data'!BO30","v":105316.75892410442},{"$f":"EX219*'Zambia-IO-Data'!$BO30","v":112875.96855786444},{"$f":"EY219*'Zambia-IO-Data'!$BO30","v":455.41516688128178},{"$f":"EK219*'Zambia-IO-Data'!BN30","v":5213.493921760085},{"$f":"EX219*'Zambia-IO-Data'!$BN30","v":5587.6973617588283},{"$f":"EY219*'Zambia-IO-Data'!$BN30","v":22.544410107834199},{"$f":"(FC219*'Default-Data'!$F$19/geo_dollar_index)/'Zambia-IO-Data'!$BP30","v":9.1007304780530731},{"$f":"(FD219*'Default-Data'!$F$19/geo_dollar_index)/'Zambia-IO-Data'!$BP30","v":9.7539439856347911},{"$f":"(FE219*'Default-Data'!$F$19/geo_dollar_index)/'Zambia-IO-Data'!$BP30","v":3.9353762228772009E-2},null,"TTL_C45: Construction",0,0,null,629477.80533690262,387440.69951113535,{"$f":"FK219*CustomRegion1!C28","v":0},{"$f":"FN219*CustomRegion1!$C28","v":346419.59789598308},{"$f":"FO219*CustomRegion1!$C28","v":213219.67223507055},{"$f":"FK219*CustomRegion1!D28","v":0},{"$f":"FN219*CustomRegion1!$D28","v":106452.85351341967},{"$f":"FO219*CustomRegion1!$D28","v":65521.242656238624},{"$f":"(FS219*'Default-Data'!$C$58/geo_dollar_index)/CustomRegion1!$E28","v":0},{"$f":"(FT219*'Default-Data'!$C$58/geo_dollar_index)/CustomRegion1!$E28","v":34.264678491376593},{"$f":"(FU219*'Default-Data'!$C$58/geo_dollar_index)/CustomRegion1!$E28","v":21.089752316394865},9873.185507604263,3568.9829930099859,{"$f":"FL219*CustomRegion1!C28","v":0},{"$f":"FY219*CustomRegion1!$C28","v":5433.4957078687748},{"$f":"FZ219*CustomRegion1!$C28","v":1964.1131789776236},{"$f":"FL219*CustomRegion1!D28","v":0},{"$f":"FY219*CustomRegion1!$D28","v":1669.6836038393662},{"$f":"FZ219*CustomRegion1!$D28","v":603.56127019194389},{"$f":"(GD219*'Default-Data'!$C$58/geo_dollar_index)/CustomRegion1!$E28","v":0},{"$f":"(GE219*'Default-Data'!$C$58/geo_dollar_index)/CustomRegion1!$E28","v":0.53743201783376082},{"$f":"(GF219*'Default-Data'!$C$58/geo_dollar_index)/CustomRegion1!$E28","v":0.19427222653422593},null,"C36T37 Manufacturing n.e.c; recycling",0,0,null,137737.02906187269,81929.98204409235,{"$f":"GL219*CustomRegion2!C32","v":0},{"$f":"GO219*CustomRegion2!$C32","v":50882.244196665291},{"$f":"GP219*CustomRegion2!$C32","v":30266.235461803495},{"$f":"GL219*CustomRegion2!D32","v":0},{"$f":"GO219*CustomRegion2!$D32","v":23250.278452361716},{"$f":"GP219*CustomRegion2!$D32","v":13829.940351526291},{"$f":"(GT219*'Default-Data'!$C$59/geo_dollar_index)/CustomRegion2!$E32","v":0},{"$f":"(GU219*'Default-Data'!$C$59/geo_dollar_index)/CustomRegion2!$E32","v":3.7596591502637695},{"$f":"(GV219*'Default-Data'!$C$59/geo_dollar_index)/CustomRegion2!$E32","v":2.2363543686908538},343.94597803569354,851.33606083302971,{"$f":"GM219*CustomRegion2!C32","v":0},{"$f":"GZ219*CustomRegion2!$C32","v":127.05910214610152},{"$f":"HA219*CustomRegion2!$C32","v":314.49705018157852},{"$f":"GM219*CustomRegion2!D32","v":0},{"$f":"GZ219*CustomRegion2!$D32","v":58.058750187703772},{"$f":"HA219*CustomRegion2!$D32","v":143.70718321514792},{"$f":"(HE219*'Default-Data'!$C$59/geo_dollar_index)/CustomRegion2!$E32","v":0},{"$f":"(HF219*'Default-Data'!$C$59/geo_dollar_index)/CustomRegion2!$E32","v":9.388322460022247E-3},{"$f":"(HG219*'Default-Data'!$C$59/geo_dollar_index)/CustomRegion2!$E32","v":2.3238002393841491E-2},null,"ELECWATER",27683059.645699918,395096.88011609885,null,32759677.018976897,1025132.3968922049,{"$f":"HM219*CustomRegion3!D31","v":7379177.7807282805},{"$f":"HP219*CustomRegion3!$D31","v":8732397.4971032236},{"$f":"HQ219*CustomRegion3!$D31","v":273258.60299646168},{"$f":"HM219*CustomRegion3!E31","v":365291.32590510085},{"$f":"HP219*CustomRegion3!E$12","v":10277453.640800864},{"$f":"HQ219*CustomRegion3!F$12","v":105867895.73664914},{"$f":"(HU219*'Default-Data'!$C$60/geo_dollar_index)/CustomRegion3!$F31","v":640.23901834099968},{"$f":"(HV219*'Default-Data'!$C$60/geo_dollar_index)/CustomRegion3!$F31","v":18013.093559579636},{"$f":"(HW219*'Default-Data'!$C$60/geo_dollar_index)/CustomRegion3!$F31","v":185552.60646366494},423455.33106875705,1708.4945779808331,{"$f":"HN219*CustomRegion3!D31","v":105316.75892410442},{"$f":"IA219*CustomRegion3!$D31","v":112875.96855786444},{"$f":"IB219*CustomRegion3!$D31","v":455.41516688128178},{"$f":"HN219*CustomRegion3!E31","v":5213.493921760085},{"$f":"IA219*CustomRegion3!$E31","v":5587.6973617588283},{"$f":"IB219*CustomRegion3!$E31","v":22.544410107834199},{"$f":"(IF219*'Default-Data'!$C$60/geo_dollar_index)/CustomRegion3!$F31","v":9.1375896274678983},{"$f":"(IG219*'Default-Data'!$C$60/geo_dollar_index)/CustomRegion3!$F31","v":9.7934487352389432},{"$f":"(IH219*'Default-Data'!$C$60/geo_dollar_index)/CustomRegion3!$F31","v":3.9513150115878859E-2}]
[null,null,null,null,null,null,null,null,null,null,null,null,null,null,null,null,null,null,null,null,null,null,null,null,null,null,null,null,null,219,"TTL_C50T52: Wholesale and retail trade; repairs",0,0,null,1247418.514199089,2690240.6887026541,{"$f":"AF220*'Colombia-IO-Data'!AN33","v":0},{"$f":"AI220*'Colombia-IO-Data'!$AN33","v":749433.5284207348},{"$f":"AJ220*'Colombia-IO-Data'!$AN33","v":1616263.1455970816},{"$f":"'Colombia-IO-Data'!$AO33*AK220","v":0},{"$f":"'Colombia-IO-Data'!$AO33*AL220","v":325108.80520279671},{"$f":"'Colombia-IO-Data'!$AO33*AM220","v":701144.74497247883},{"$f":"(AN220*'Default-Data'!$F$19/geo_dollar_index)/'Colombia-IO-Data'!$AP33","v":0},{"$f":"(AO220*'Default-Data'!$F$19/geo_dollar_index)/'Colombia-IO-Data'!$AP33","v":101.59726969636179},{"$f":"(AP220*'Default-Data'!$F$19/geo_dollar_index)/'Colombia-IO-Data'!$AP33","v":219.10938926037724},13779.93794201054,31418.726435293043,{"$f":"AG220*'Colombia-IO-Data'!AN33","v":0},{"$f":"AT220*'Colombia-IO-Data'!$AN33","v":8278.8153260097406},{"$f":"AU220*'Colombia-IO-Data'!$AN33","v":18875.980068329722},{"$f":"AV220*'Colombia-IO-Data'!$AO33","v":0},{"$f":"AW220*'Colombia-IO-Data'!$AO33","v":3591.4002470711471},{"$f":"AX220*'Colombia-IO-Data'!$AO33","v":8188.5145170623955},{"$f":"(Calculations!AY220*'Default-Data'!$F$19/geo_dollar_index)/'Colombia-IO-Data'!$AP33","v":0},{"$f":"(Calculations!AZ220*'Default-Data'!$F$19/geo_dollar_index)/'Colombia-IO-Data'!$AP33","v":1.1223210619031516},{"$f":"(Calculations!BA220*'Default-Data'!$F$19/geo_dollar_index)/'Colombia-IO-Data'!$AP33","v":2.558930131971108},null,"DOM_C50T52: Wholesale and retail trade; repairs",0,0,null,4769948.3874054607,4184367.8692345265,{"$f":"BG220*'Mexico-IO-Data'!AQ33","v":0},{"$f":"BJ220*'Mexico-IO-Data'!$AQ33","v":3632163.5827020602},{"$f":"BK220*'Mexico-IO-Data'!$AQ33","v":3186262.692357799},{"$f":"BG220*'Mexico-IO-Data'!AQ33","v":0},{"$f":"BJ220*'Mexico-IO-Data'!$AR33","v":731384.86787050904},{"$f":"BK220*'Mexico-IO-Data'!$AR33","v":641596.7412230944},{"$f":"(BO220*'Default-Data'!$F$19/geo_dollar_index)/'Mexico-IO-Data'!$AS33","v":0},{"$f":"(BP220*'Default-Data'!$F$19/geo_dollar_index)/'Mexico-IO-Data'!$AS33","v":154.1330310097506},{"$f":"(BQ220*'Default-Data'!$F$19/geo_dollar_index)/'Mexico-IO-Data'!$AS33","v":135.2109604053262},62116.750038420825,24062.863897798903,{"$f":"BH220*'Mexico-IO-Data'!AQ33","v":0},{"$f":"BU220*'Mexico-IO-Data'!$AQ33","v":47299.924242593421},{"$f":"BV220*'Mexico-IO-Data'!$AQ33","v":18323.103490149366},{"$f":"BH220*'Mexico-IO-Data'!AR33","v":0},{"$f":"BU220*'Mexico-IO-Data'!$AR33","v":9524.4743400897623},{"$f":"BV220*'Mexico-IO-Data'!$AR33","v":3689.60271749408},{"$f":"(BZ220*'Default-Data'!$F$19/geo_dollar_index)/'Mexico-IO-Data'!$AS33","v":0},{"$f":"(CA220*'Default-Data'!$F$19/geo_dollar_index)/'Mexico-IO-Data'!$AS33","v":2.0072005360008944},{"$f":"(CB220*'Default-Data'!$F$19/geo_dollar_index)/'Mexico-IO-Data'!$AS33","v":0.77755184042153447},null,"TTL_C50T52: Wholesale and retail trade; repairs",0,0,null,3326726.5516240196,2965865.3320553266,{"$f":"CH220*'Philippines-IO-Data'!AN33","v":0},{"$f":"CK220*'Philippines-IO-Data'!$AN33","v":2299150.3194144568},{"$f":"CL220*'Philippines-IO-Data'!$AN33","v":2049753.7503364764},{"$f":"CH220*'Philippines-IO-Data'!AO33","v":0},{"$f":"CK220*'Philippines-IO-Data'!$AO33","v":511770.43882123701},{"$f":"CL220*'Philippines-IO-Data'!$AO33","v":456256.97781793278},{"$f":"(CP220*'Default-Data'!$F$19/geo_dollar_index)/'Philippines-IO-Data'!$AP33","v":0},{"$f":"(CQ220*'Default-Data'!$F$19/geo_dollar_index)/'Philippines-IO-Data'!$AP33","v":164.04145771891817},{"$f":"(CR220*'Default-Data'!$F$19/geo_dollar_index)/'Philippines-IO-Data'!$AP33","v":146.24732899397776},30537.853379721448,26330.325967380268,{"$f":"CI220*'Philippines-IO-Data'!AN33","v":0},{"$f":"CV220*'Philippines-IO-Data'!$AN33","v":21105.165772625107},{"$f":"CW220*'Philippines-IO-Data'!$AN33","v":18197.280846132773},{"$f":"CI220*'Philippines-IO-Data'!AO33","v":0},{"$f":"CV220*'Philippines-IO-Data'!$AO33","v":4697.8224336380417},{"$f":"CW220*'Philippines-IO-Data'!$AO33","v":4050.5530783869908},{"$f":"(DA220*'Default-Data'!$F$19/geo_dollar_index)/'Philippines-IO-Data'!$AP33","v":0},{"$f":"(DB220*'Default-Data'!$F$19/geo_dollar_index)/'Philippines-IO-Data'!$AP33","v":1.505826795884563},{"$f":"(DC220*'Default-Data'!$F$19/geo_dollar_index)/'Philippines-IO-Data'!$AP33","v":1.2983528964214968},null,"DOM_C50T52: Wholesale and retail trade; repairs",0,0,null,6339001.4018961303,6022118.04461422,{"$f":"DI220*'SouthAfrica-IO-Data'!AR33","v":0},{"$f":"DL220*'SouthAfrica-IO-Data'!$AR33","v":3722681.8505808013},{"$f":"DM220*'SouthAfrica-IO-Data'!$AR33","v":3536586.9362380439},{"$f":"DI220*'SouthAfrica-IO-Data'!AS33","v":0},{"$f":"DL220*'SouthAfrica-IO-Data'!$AS33","v":1787575.6079596097},{"$f":"DM220*'SouthAfrica-IO-Data'!$AS33","v":1698215.6403350476},{"$f":"(DQ220*'Default-Data'!$F$19/geo_dollar_index)/'SouthAfrica-IO-Data'!$AT33","v":0},{"$f":"(DR220*'Default-Data'!$F$19/geo_dollar_index)/'SouthAfrica-IO-Data'!$AT33","v":192.65415671709482},{"$f":"(DS220*'Default-Data'!$F$19/geo_dollar_index)/'SouthAfrica-IO-Data'!$AT33","v":183.02347640890511},38331.336748366404,53811.626840233555,{"$f":"DJ220*'SouthAfrica-IO-Data'!AR33","v":0},{"$f":"DW220*'SouthAfrica-IO-Data'!$AR33","v":22510.702013563412},{"$f":"DX220*'SouthAfrica-IO-Data'!$AR33","v":31601.754580531109},{"$f":"DJ220*'SouthAfrica-IO-Data'!$AS33","v":0},{"$f":"DZ220*'SouthAfrica-IO-Data'!$AS33","v":6347.93704659171},{"$f":"EA220*'SouthAfrica-IO-Data'!$AS33","v":8911.5811900571225},{"$f":"(EB220*'Default-Data'!$F$19/geo_dollar_index)/'SouthAfrica-IO-Data'!$AT33","v":0},{"$f":"(EC220*'Default-Data'!$F$19/geo_dollar_index)/'SouthAfrica-IO-Data'!$AT33","v":0.68414250740434368},{"$f":"(ED220*'Default-Data'!$F$19/geo_dollar_index)/'SouthAfrica-IO-Data'!$AT33","v":0.96043666714944997},null,"EQUIPMACHIN",{"$f":"AF211+AF212","v":252167.33637095167},{"$f":"AG212","v":0},null,8207750.2081267433,637946.70582383103,{"$f":"EJ220*'Zambia-IO-Data'!BO31","v":31771.572717190676},{"$f":"EM220*'Zambia-IO-Data'!$BO31","v":1034127.3232883123},{"$f":"EN220*'Zambia-IO-Data'!$BO31","v":80377.460639699755},{"$f":"EJ220*'Zambia-IO-Data'!BN31","v":7124.9976634346676},{"$f":"EM220*'Zambia-IO-Data'!$BN31","v":231910.29376196029},{"$f":"EN220*'Zambia-IO-Data'!$BN31","v":18025.208394572397},{"$f":"(ER220*'Default-Data'!$F$19/geo_dollar_index)/'Zambia-IO-Data'!$BP31","v":27.586305302556301},{"$f":"(ES220*'Default-Data'!$F$19/geo_dollar_index)/'Zambia-IO-Data'!$BP31","v":897.90179151286361},{"$f":"(ET220*'Default-Data'!$F$19/geo_dollar_index)/'Zambia-IO-Data'!$BP31","v":69.789342453646739},132390.43889419024,1031.515489216923,{"$f":"EK220*'Zambia-IO-Data'!BO31","v":0},{"$f":"EX220*'Zambia-IO-Data'!$BO31","v":16680.401660744559},{"$f":"EY220*'Zambia-IO-Data'!$BO31","v":129.96476802353709},{"$f":"EK220*'Zambia-IO-Data'!BN31","v":0},{"$f":"EX220*'Zambia-IO-Data'!$BN31","v":3740.6968775471296},{"$f":"EY220*'Zambia-IO-Data'!$BN31","v":29.14550931233881},{"$f":"(FC220*'Default-Data'!$F$19/geo_dollar_index)/'Zambia-IO-Data'!$BP31","v":0},{"$f":"(FD220*'Default-Data'!$F$19/geo_dollar_index)/'Zambia-IO-Data'!$BP31","v":14.483093326179365},{"$f":"(FE220*'Default-Data'!$F$19/geo_dollar_index)/'Zambia-IO-Data'!$BP31","v":0.11284451673786133},null,"TTL_C50T52: Wholesale and retail trade; repairs",0,0,null,6026557.2934757899,4606185.2417863514,{"$f":"FK220*CustomRegion1!C29","v":0},{"$f":"FN220*CustomRegion1!$C29","v":4165043.598037919},{"$f":"FO220*CustomRegion1!$C29","v":3183403.2961817486},{"$f":"FK220*CustomRegion1!D29","v":0},{"$f":"FN220*CustomRegion1!$D29","v":927101.70878270722},{"$f":"FO220*CustomRegion1!$D29","v":708597.29704268323},{"$f":"(FS220*'Default-Data'!$C$58/geo_dollar_index)/CustomRegion1!$E29","v":0},{"$f":"(FT220*'Default-Data'!$C$58/geo_dollar_index)/CustomRegion1!$E29","v":298.4123105374598},{"$f":"(FU220*'Default-Data'!$C$58/geo_dollar_index)/CustomRegion1!$E29","v":228.08086173063688},58467.83186163276,42430.74310812456,{"$f":"FL220*CustomRegion1!C29","v":0},{"$f":"FY220*CustomRegion1!$C29","v":40407.990321452882},{"$f":"FZ220*CustomRegion1!$C29","v":29324.519180097246},{"$f":"FL220*CustomRegion1!D29","v":0},{"$f":"FY220*CustomRegion1!$D29","v":8994.4597202156347},{"$f":"FZ220*CustomRegion1!$D29","v":6527.3774934568928},{"$f":"(GD220*'Default-Data'!$C$58/geo_dollar_index)/CustomRegion1!$E29","v":0},{"$f":"(GE220*'Default-Data'!$C$58/geo_dollar_index)/CustomRegion1!$E29","v":2.8951057707248253},{"$f":"(GF220*'Default-Data'!$C$58/geo_dollar_index)/CustomRegion1!$E29","v":2.1010098256967171},null,"C40T41 Electricity, gas and water supply",0,0,null,256439.57817838798,210115.15093197933,{"$f":"GL220*CustomRegion2!C33","v":0},{"$f":"GO220*CustomRegion2!$C33","v":100734.27053329759},{"$f":"GP220*CustomRegion2!$C33","v":82537.167653594501},{"$f":"GL220*CustomRegion2!D33","v":0},{"$f":"GO220*CustomRegion2!$D33","v":37929.160596884249},{"$f":"GP220*CustomRegion2!$D33","v":31077.462223845068},{"$f":"(GT220*'Default-Data'!$C$59/geo_dollar_index)/CustomRegion2!$E33","v":0},{"$f":"(GU220*'Default-Data'!$C$59/geo_dollar_index)/CustomRegion2!$E33","v":2.1035472249184992},{"$f":"(GV220*'Default-Data'!$C$59/geo_dollar_index)/CustomRegion2!$E33","v":1.7235527596634701},2750.5835628389095,2183.3106813022541,{"$f":"GM220*CustomRegion2!C33","v":0},{"$f":"GZ220*CustomRegion2!$C33","v":1080.4807538355547},{"$f":"HA220*CustomRegion2!$C33","v":857.64533848806263},{"$f":"GM220*CustomRegion2!D33","v":0},{"$f":"GZ220*CustomRegion2!$D33","v":406.83004718364288},{"$f":"HA220*CustomRegion2!$D33","v":322.9265234807076},{"$f":"(HE220*'Default-Data'!$C$59/geo_dollar_index)/CustomRegion2!$E33","v":0},{"$f":"(HF220*'Default-Data'!$C$59/geo_dollar_index)/CustomRegion2!$E33","v":2.2562751278943784E-2},{"$f":"(HG220*'Default-Data'!$C$59/geo_dollar_index)/CustomRegion2!$E33","v":1.7909470751014261E-2},null,"EQUIPMACHIN",252167.33637095167,0,null,8207750.2081267433,637946.70582383033,{"$f":"HM220*CustomRegion3!D32","v":31771.572717190676},{"$f":"HP220*CustomRegion3!$D32","v":1034127.3232883123},{"$f":"HQ220*CustomRegion3!$D32","v":80377.460639699668},{"$f":"HM220*CustomRegion3!E32","v":7124.9976634346676},{"$f":"HP220*CustomRegion3!E$12","v":2574957.3846662636},{"$f":"HQ220*CustomRegion3!F$12","v":65882295.342967138},{"$f":"(HU220*'Default-Data'!$C$60/geo_dollar_index)/CustomRegion3!$F32","v":27.69803344914871},{"$f":"(HV220*'Default-Data'!$C$60/geo_dollar_index)/CustomRegion3!$F32","v":10010.004092582063},{"$f":"(HW220*'Default-Data'!$C$60/geo_dollar_index)/CustomRegion3!$F32","v":256113.7710235448},132390.43889419024,1031.515489216923,{"$f":"HN220*CustomRegion3!D32","v":0},{"$f":"IA220*CustomRegion3!$D32","v":16680.401660744559},{"$f":"IB220*CustomRegion3!$D32","v":129.96476802353709},{"$f":"HN220*CustomRegion3!E32","v":0},{"$f":"IA220*CustomRegion3!$E32","v":3740.6968775471296},{"$f":"IB220*CustomRegion3!$E32","v":29.14550931233881},{"$f":"(IF220*'Default-Data'!$C$60/geo_dollar_index)/CustomRegion3!$F32","v":0},{"$f":"(IG220*'Default-Data'!$C$60/geo_dollar_index)/CustomRegion3!$F32","v":14.541751749498884},{"$f":"(IH220*'Default-Data'!$C$60/geo_dollar_index)/CustomRegion3!$F32","v":0.11330155179819139}]
[null,null,null,null,null,null,null,null,null,null,null,null,null,null,null,null,null,null,null,null,null,null,null,null,null,null,null,null,null,220,"TTL_C55: Hotels and restaurants",{"$f":"'Geothermal-Inputs'!B24*'Geothermal-Inputs'!C24","v":126283.80099211945},0,null,771488.05772889999,1824556.3215987987,{"$f":"AF221*'Colombia-IO-Data'!AN34","v":58364.435825606219},{"$f":"AI221*'Colombia-IO-Data'!$AN34","v":356557.72855894512},{"$f":"AJ221*'Colombia-IO-Data'!$AN34","v":843253.04992049246},{"$f":"'Colombia-IO-Data'!$AO34*AK221","v":24815.109640510665},{"$f":"'Colombia-IO-Data'!$AO34*AL221","v":151599.49723149341},{"$f":"'Colombia-IO-Data'!$AO34*AM221","v":358530.26920362056},{"$f":"(AN221*'Default-Data'!$F$19/geo_dollar_index)/'Colombia-IO-Data'!$AP34","v":5.2458084136358778},{"$f":"(AO221*'Default-Data'!$F$19/geo_dollar_index)/'Colombia-IO-Data'!$AP34","v":32.047487583196975},{"$f":"(AP221*'Default-Data'!$F$19/geo_dollar_index)/'Colombia-IO-Data'!$AP34","v":75.791770819384737},3527.1600180573541,15490.016421914179,{"$f":"AG221*'Colombia-IO-Data'!AN34","v":0},{"$f":"AT221*'Colombia-IO-Data'!$AN34","v":1630.1433984664347},{"$f":"AU221*'Colombia-IO-Data'!$AN34","v":7159.0026772381798},{"$f":"AV221*'Colombia-IO-Data'!$AO34","v":0},{"$f":"AW221*'Colombia-IO-Data'!$AO34","v":693.09651657682377},{"$f":"AX221*'Colombia-IO-Data'!$AO34","v":3043.8302681996256},{"$f":"(Calculations!AY221*'Default-Data'!$F$19/geo_dollar_index)/'Colombia-IO-Data'!$AP34","v":0},{"$f":"(Calculations!AZ221*'Default-Data'!$F$19/geo_dollar_index)/'Colombia-IO-Data'!$AP34","v":0.14651764956076979},{"$f":"(Calculations!BA221*'Default-Data'!$F$19/geo_dollar_index)/'Colombia-IO-Data'!$AP34","v":0.64345274560199606},null,"DOM_C55: Hotels and restaurants",126283.80099211945,0,null,267669.67638281477,737233.62264132185,{"$f":"BG221*'Mexico-IO-Data'!AQ34","v":92872.943467094083},{"$f":"BJ221*'Mexico-IO-Data'!$AQ34","v":196852.41121391198},{"$f":"BK221*'Mexico-IO-Data'!$AQ34","v":542184.00158767134},{"$f":"BG221*'Mexico-IO-Data'!AQ34","v":92872.943467094083},{"$f":"BJ221*'Mexico-IO-Data'!$AR34","v":48150.668381716423},{"$f":"BK221*'Mexico-IO-Data'!$AR34","v":132619.77286095324},{"$f":"(BO221*'Default-Data'!$F$19/geo_dollar_index)/'Mexico-IO-Data'!$AS34","v":66.770564393841639},{"$f":"(BP221*'Default-Data'!$F$19/geo_dollar_index)/'Mexico-IO-Data'!$AS34","v":34.617695787008607},{"$f":"(BQ221*'Default-Data'!$F$19/geo_dollar_index)/'Mexico-IO-Data'!$AS34","v":95.346359802264587},1866.1766983660441,4239.5776081094536,{"$f":"BH221*'Mexico-IO-Data'!AQ34","v":0},{"$f":"BU221*'Mexico-IO-Data'!$AQ34","v":1372.4430342239502},{"$f":"BV221*'Mexico-IO-Data'!$AQ34","v":3117.9141618241133},{"$f":"BH221*'Mexico-IO-Data'!AR34","v":0},{"$f":"BU221*'Mexico-IO-Data'!$AR34","v":335.70353040737257},{"$f":"BV221*'Mexico-IO-Data'!$AR34","v":762.65080992840899},{"$f":"(BZ221*'Default-Data'!$F$19/geo_dollar_index)/'Mexico-IO-Data'!$AS34","v":0},{"$f":"(CA221*'Default-Data'!$F$19/geo_dollar_index)/'Mexico-IO-Data'!$AS34","v":0.24135246884091027},{"$f":"(CB221*'Default-Data'!$F$19/geo_dollar_index)/'Mexico-IO-Data'!$AS34","v":0.54830420048421069},null,"TTL_C55: Hotels and restaurants",126283.80099211945,0,null,1053874.5879875401,889077.10662424297,{"$f":"CH221*'Philippines-IO-Data'!AN34","v":47339.110298368825},{"$f":"CK221*'Philippines-IO-Data'!$AN34","v":395058.47123261233},{"$f":"CL221*'Philippines-IO-Data'!$AN34","v":333282.01149778586},{"$f":"CH221*'Philippines-IO-Data'!AO34","v":17833.020227662157},{"$f":"CK221*'Philippines-IO-Data'!$AO34","v":148821.67544334306},{"$f":"CL221*'Philippines-IO-Data'!$AO34","v":125549.99059119921},{"$f":"(CP221*'Default-Data'!$F$19/geo_dollar_index)/'Philippines-IO-Data'!$AP34","v":5.7161461697839293},{"$f":"(CQ221*'Default-Data'!$F$19/geo_dollar_index)/'Philippines-IO-Data'!$AP34","v":47.702881464056652},{"$f":"(CR221*'Default-Data'!$F$19/geo_dollar_index)/'Philippines-IO-Data'!$AP34","v":40.24344102526566},1759.0227490453569,7893.0387615842419,{"$f":"CI221*'Philippines-IO-Data'!AN34","v":0},{"$f":"CV221*'Philippines-IO-Data'!$AN34","v":659.39234708016488},{"$f":"CW221*'Philippines-IO-Data'!$AN34","v":2958.8073021911491},{"$f":"CI221*'Philippines-IO-Data'!AO34","v":0},{"$f":"CV221*'Philippines-IO-Data'!$AO34","v":248.39835369384599},{"$f":"CW221*'Philippines-IO-Data'!$AO34","v":1114.6062977771549},{"$f":"(DA221*'Default-Data'!$F$19/geo_dollar_index)/'Philippines-IO-Data'!$AP34","v":0},{"$f":"(DB221*'Default-Data'!$F$19/geo_dollar_index)/'Philippines-IO-Data'!$AP34","v":7.9620909970439288E-2},{"$f":"(DC221*'Default-Data'!$F$19/geo_dollar_index)/'Philippines-IO-Data'!$AP34","v":0.3572727691954834},null,"DOM_C55: Hotels and restaurants",126283.80099211945,0,null,307902.55921938631,440483.91284988052,{"$f":"DI221*'SouthAfrica-IO-Data'!AR34","v":56709.391369187906},{"$f":"DL221*'SouthAfrica-IO-Data'!$AR34","v":138267.66851463681},{"$f":"DM221*'SouthAfrica-IO-Data'!$AR34","v":197805.05820531919},{"$f":"DI221*'SouthAfrica-IO-Data'!AS34","v":21752.910001751825},{"$f":"DL221*'SouthAfrica-IO-Data'!$AS34","v":53037.496554497411},{"$f":"DM221*'SouthAfrica-IO-Data'!$AS34","v":75875.186193048488},{"$f":"(DQ221*'Default-Data'!$F$19/geo_dollar_index)/'SouthAfrica-IO-Data'!$AT34","v":2.3443979174194722},{"$f":"(DR221*'Default-Data'!$F$19/geo_dollar_index)/'SouthAfrica-IO-Data'!$AT34","v":5.7160626535710675},{"$f":"(DS221*'Default-Data'!$F$19/geo_dollar_index)/'SouthAfrica-IO-Data'!$AT34","v":8.1773716013384981},1524.3344923302107,3936.0164931675895,{"$f":"DJ221*'SouthAfrica-IO-Data'!AR34","v":0},{"$f":"DW221*'SouthAfrica-IO-Data'!$AR34","v":684.52232688577919},{"$f":"DX221*'SouthAfrica-IO-Data'!$AR34","v":1767.5196501295393},{"$f":"DJ221*'SouthAfrica-IO-Data'!$AS34","v":0},{"$f":"DZ221*'SouthAfrica-IO-Data'!$AS34","v":117.91181809506438},{"$f":"EA221*'SouthAfrica-IO-Data'!$AS34","v":304.46261178023201},{"$f":"(EB221*'Default-Data'!$F$19/geo_dollar_index)/'SouthAfrica-IO-Data'!$AT34","v":0},{"$f":"(EC221*'Default-Data'!$F$19/geo_dollar_index)/'SouthAfrica-IO-Data'!$AT34","v":1.2707827171580753E-2},{"$f":"(ED221*'Default-Data'!$F$19/geo_dollar_index)/'SouthAfrica-IO-Data'!$AT34","v":3.2813150651208794E-2},null,"CONSTR",{"$f":"AF219","v":0},{"$f":"AG219","v":0},null,2916860.9715413759,691758.57476286404,{"$f":"EJ221*'Zambia-IO-Data'!BO32","v":0},{"$f":"EM221*'Zambia-IO-Data'!$BO32","v":176953.79689111182},{"$f":"EN221*'Zambia-IO-Data'!$BO32","v":41966.109297141884},{"$f":"EJ221*'Zambia-IO-Data'!BN32","v":0},{"$f":"EM221*'Zambia-IO-Data'!$BN32","v":77833.332407393391},{"$f":"EN221*'Zambia-IO-Data'!$BN32","v":18458.841755056525},{"$f":"(ER221*'Default-Data'!$F$19/geo_dollar_index)/'Zambia-IO-Data'!$BP32","v":0},{"$f":"(ES221*'Default-Data'!$F$19/geo_dollar_index)/'Zambia-IO-Data'!$BP32","v":279.04082540633709},{"$f":"(ET221*'Default-Data'!$F$19/geo_dollar_index)/'Zambia-IO-Data'!$BP32","v":66.176922920579713},35054.121640073849,1143.2986827257337,{"$f":"EK221*'Zambia-IO-Data'!BO32","v":0},{"$f":"EX221*'Zambia-IO-Data'!$BO32","v":2126.5874450012216},{"$f":"EY221*'Zambia-IO-Data'!$BO32","v":69.359165507986702},{"$f":"EK221*'Zambia-IO-Data'!BN32","v":0},{"$f":"EX221*'Zambia-IO-Data'!$BN32","v":935.38194945893997},{"$f":"EY221*'Zambia-IO-Data'!$BN32","v":30.507709240081873},{"$f":"(FC221*'Default-Data'!$F$19/geo_dollar_index)/'Zambia-IO-Data'!$BP32","v":0},{"$f":"(FD221*'Default-Data'!$F$19/geo_dollar_index)/'Zambia-IO-Data'!$BP32","v":3.3534443813999921},{"$f":"(FE221*'Default-Data'!$F$19/geo_dollar_index)/'Zambia-IO-Data'!$BP32","v":0.10937340216979249},null,"TTL_C55: Hotels and restaurants",126283.80099211945,0,null,1181538.8900519954,1073310.0742869875,{"$f":"FK221*CustomRegion1!C30","v":47339.110298368825},{"$f":"FN221*CustomRegion1!$C30","v":442915.08014930674},{"$f":"FO221*CustomRegion1!$C30","v":402344.11374894262},{"$f":"FK221*CustomRegion1!D30","v":17833.020227662157},{"$f":"FN221*CustomRegion1!$D30","v":166849.64152592776},{"$f":"FO221*CustomRegion1!$D30","v":151566.23505898312},{"$f":"(FS221*'Default-Data'!$C$58/geo_dollar_index)/CustomRegion1!$E30","v":5.7400312388434935},{"$f":"(FT221*'Default-Data'!$C$58/geo_dollar_index)/CustomRegion1!$E30","v":53.704988965529687},{"$f":"(FU221*'Default-Data'!$C$58/geo_dollar_index)/CustomRegion1!$E30","v":48.785618638111764},3044.5731250145877,9886.9979488214485,{"$f":"FL221*CustomRegion1!C30","v":0},{"$f":"FY221*CustomRegion1!$C30","v":1141.2974731850927},{"$f":"FZ221*CustomRegion1!$C30","v":3706.2686008968981},{"$f":"FL221*CustomRegion1!D30","v":0},{"$f":"FY221*CustomRegion1!$D30","v":429.93585635239049},{"$f":"FZ221*CustomRegion1!$D30","v":1396.1809276170729},{"$f":"(GD221*'Default-Data'!$C$58/geo_dollar_index)/CustomRegion1!$E30","v":0},{"$f":"(GE221*'Default-Data'!$C$58/geo_dollar_index)/CustomRegion1!$E30","v":0.13838627527229441},{"$f":"(GF221*'Default-Data'!$C$58/geo_dollar_index)/CustomRegion1!$E30","v":0.44939791674593449},null,"C45 Construction",126283.80099211945,0,null,35294.495678432402,16416.384006369219,{"$f":"GL221*CustomRegion2!C34","v":61537.155299846512},{"$f":"GO221*CustomRegion2!$C34","v":17198.744769560682},{"$f":"GP221*CustomRegion2!$C34","v":7999.5816100348466},{"$f":"GL221*CustomRegion2!D34","v":25394.323150450007},{"$f":"GO221*CustomRegion2!$D34","v":7097.3459909256671},{"$f":"GP221*CustomRegion2!$D34","v":3301.1594293525745},{"$f":"(GT221*'Default-Data'!$C$59/geo_dollar_index)/CustomRegion2!$E34","v":8.9107221156340835},{"$f":"(GU221*'Default-Data'!$C$59/geo_dollar_index)/CustomRegion2!$E34","v":2.4904179374644024},{"$f":"(GV221*'Default-Data'!$C$59/geo_dollar_index)/CustomRegion2!$E34","v":1.1583578802274437},308.56649942699221,170.58297029264912,{"$f":"GM221*CustomRegion2!C34","v":0},{"$f":"GZ221*CustomRegion2!$C34","v":150.36215608329493},{"$f":"HA221*CustomRegion2!$C34","v":83.123810432843356},{"$f":"GM221*CustomRegion2!D34","v":0},{"$f":"GZ221*CustomRegion2!$D34","v":62.049426278681388},{"$f":"HA221*CustomRegion2!$D34","v":34.302412799924099},{"$f":"(HE221*'Default-Data'!$C$59/geo_dollar_index)/CustomRegion2!$E34","v":0},{"$f":"(HF221*'Default-Data'!$C$59/geo_dollar_index)/CustomRegion2!$E34","v":2.1772787237845908E-2},{"$f":"(HG221*'Default-Data'!$C$59/geo_dollar_index)/CustomRegion2!$E34","v":1.2036519601054096E-2},null,"CONSTR",0,0,null,2916860.9715413759,691758.57476286404,{"$f":"HM221*CustomRegion3!D33","v":0},{"$f":"HP221*CustomRegion3!$D33","v":176953.79689111182},{"$f":"HQ221*CustomRegion3!$D33","v":41966.109297141884},{"$f":"HM221*CustomRegion3!E33","v":0},{"$f":"HP221*CustomRegion3!E$12","v":915085.43855033664},{"$f":"HQ221*CustomRegion3!F$12","v":71439576.868263513},{"$f":"(HU221*'Default-Data'!$C$60/geo_dollar_index)/CustomRegion3!$F33","v":0},{"$f":"(HV221*'Default-Data'!$C$60/geo_dollar_index)/CustomRegion3!$F33","v":3293.9663980829932},{"$f":"(HW221*'Default-Data'!$C$60/geo_dollar_index)/CustomRegion3!$F33","v":257155.84117491418},35054.121640073849,1143.2986827257337,{"$f":"HN221*CustomRegion3!D33","v":0},{"$f":"IA221*CustomRegion3!$D33","v":2126.5874450012216},{"$f":"IB221*CustomRegion3!$D33","v":69.359165507986702},{"$f":"HN221*CustomRegion3!E33","v":0},{"$f":"IA221*CustomRegion3!$E33","v":935.38194945893997},{"$f":"IB221*CustomRegion3!$E33","v":30.507709240081873},{"$f":"(IF221*'Default-Data'!$C$60/geo_dollar_index)/CustomRegion3!$F33","v":0},{"$f":"(IG221*'Default-Data'!$C$60/geo_dollar_index)/CustomRegion3!$F33","v":3.3670262699974418},{"$f":"(IH221*'Default-Data'!$C$60/geo_dollar_index)/CustomRegion3!$F33","v":0.10981637876187006}]
[null,null,null,null,null,null,null,null,null,null,null,null,null,null,null,null,null,null,null,null,null,null,null,null,null,null,null,null,null,221,"TTL_C60T63: Transport and storage",0,0,null,2662194.6382109006,1898062.2097410443,{"$f":"AF222*'Colombia-IO-Data'!AN35","v":0},{"$f":"AI222*'Colombia-IO-Data'!$AN35","v":1161293.2680069492},{"$f":"AJ222*'Colombia-IO-Data'!$AN35","v":827966.08286762331},{"$f":"'Colombia-IO-Data'!$AO35*AK222","v":0},{"$f":"'Colombia-IO-Data'!$AO35*AL222","v":293721.3498963883},{"$f":"'Colombia-IO-Data'!$AO35*AM222","v":209414.2127816485},{"$f":"(AN222*'Default-Data'!$F$19/geo_dollar_index)/'Colombia-IO-Data'!$AP35","v":0},{"$f":"(AO222*'Default-Data'!$F$19/geo_dollar_index)/'Colombia-IO-Data'!$AP35","v":67.766045241744408},{"$f":"(AP222*'Default-Data'!$F$19/geo_dollar_index)/'Colombia-IO-Data'!$AP35","v":48.315088510356809},26717.65913462398,39162.463053213098,{"$f":"AG222*'Colombia-IO-Data'!AN35","v":0},{"$f":"AT222*'Colombia-IO-Data'!$AN35","v":11654.684163436898},{"$f":"AU222*'Colombia-IO-Data'!$AN35","v":17083.313161817121},{"$f":"AV222*'Colombia-IO-Data'!$AO35","v":0},{"$f":"AW222*'Colombia-IO-Data'!$AO35","v":2947.7735378383854},{"$f":"AX222*'Colombia-IO-Data'!$AO35","v":4320.8153709555791},{"$f":"(Calculations!AY222*'Default-Data'!$F$19/geo_dollar_index)/'Colombia-IO-Data'!$AP35","v":0},{"$f":"(Calculations!AZ222*'Default-Data'!$F$19/geo_dollar_index)/'Colombia-IO-Data'!$AP35","v":0.68009681624450857},{"$f":"(Calculations!BA222*'Default-Data'!$F$19/geo_dollar_index)/'Colombia-IO-Data'!$AP35","v":0.9968787424294786},null,"DOM_C60T63: Transport and storage",0,0,null,1456011.4095992849,2417681.1952923276,{"$f":"BG222*'Mexico-IO-Data'!AQ35","v":0},{"$f":"BJ222*'Mexico-IO-Data'!$AQ35","v":1064191.5955494144},{"$f":"BK222*'Mexico-IO-Data'!$AQ35","v":1767071.3236073125},{"$f":"BG222*'Mexico-IO-Data'!AQ35","v":0},{"$f":"BJ222*'Mexico-IO-Data'!$AR35","v":343322.25241877674},{"$f":"BK222*'Mexico-IO-Data'!$AR35","v":570080.52830212528},{"$f":"(BO222*'Default-Data'!$F$19/geo_dollar_index)/'Mexico-IO-Data'!$AS35","v":0},{"$f":"(BP222*'Default-Data'!$F$19/geo_dollar_index)/'Mexico-IO-Data'!$AS35","v":48.587762763631723},{"$f":"(BQ222*'Default-Data'!$F$19/geo_dollar_index)/'Mexico-IO-Data'!$AS35","v":80.679120768213295},16356.227735904269,13903.255012143478,{"$f":"BH222*'Mexico-IO-Data'!AQ35","v":0},{"$f":"BU222*'Mexico-IO-Data'!$AQ35","v":11954.686602512251},{"$f":"BV222*'Mexico-IO-Data'!$AQ35","v":10161.820873900539},{"$f":"BH222*'Mexico-IO-Data'!AR35","v":0},{"$f":"BU222*'Mexico-IO-Data'!$AR35","v":3856.7396590048543},{"$f":"BV222*'Mexico-IO-Data'!$AR35","v":3278.3375152502585},{"$f":"(BZ222*'Default-Data'!$F$19/geo_dollar_index)/'Mexico-IO-Data'!$AS35","v":0},{"$f":"(CA222*'Default-Data'!$F$19/geo_dollar_index)/'Mexico-IO-Data'!$AS35","v":0.5458147564645569},{"$f":"(CB222*'Default-Data'!$F$19/geo_dollar_index)/'Mexico-IO-Data'!$AS35","v":0.46395794134485235},null,"TTL_C60T63: Transport and storage",0,0,null,336365.74845735735,737311.14143794938,{"$f":"CH222*'Philippines-IO-Data'!AN35","v":0},{"$f":"CK222*'Philippines-IO-Data'!$AN35","v":148681.73972129638},{"$f":"CL222*'Philippines-IO-Data'!$AN35","v":325909.2334093189},{"$f":"CH222*'Philippines-IO-Data'!AO35","v":0},{"$f":"CK222*'Philippines-IO-Data'!$AO35","v":55329.045826938222},{"$f":"CL222*'Philippines-IO-Data'!$AO35","v":121280.84420136543},{"$f":"(CP222*'Default-Data'!$F$19/geo_dollar_index)/'Philippines-IO-Data'!$AP35","v":0},{"$f":"(CQ222*'Default-Data'!$F$19/geo_dollar_index)/'Philippines-IO-Data'!$AP35","v":17.735016802754679},{"$f":"(CR222*'Default-Data'!$F$19/geo_dollar_index)/'Philippines-IO-Data'!$AP35","v":38.875020843324648},3196.6318921462116,6545.6925786946886,{"$f":"CI222*'Philippines-IO-Data'!AN35","v":0},{"$f":"CV222*'Philippines-IO-Data'!$AN35","v":1412.9880737043347},{"$f":"CW222*'Philippines-IO-Data'!$AN35","v":2893.3533356012472},{"$f":"CI222*'Philippines-IO-Data'!AO35","v":0},{"$f":"CV222*'Philippines-IO-Data'!$AO35","v":525.81629747843419},{"$f":"CW222*'Philippines-IO-Data'!$AO35","v":1076.7057178580756},{"$f":"(DA222*'Default-Data'!$F$19/geo_dollar_index)/'Philippines-IO-Data'!$AP35","v":0},{"$f":"(DB222*'Default-Data'!$F$19/geo_dollar_index)/'Philippines-IO-Data'!$AP35","v":0.16854367776575707},{"$f":"(DC222*'Default-Data'!$F$19/geo_dollar_index)/'Philippines-IO-Data'!$AP35","v":0.34512422385816699},null,"DOM_C60T63: Transport and storage",0,0,null,3895008.4436136889,3146341.4376601628,{"$f":"DI222*'SouthAfrica-IO-Data'!AR35","v":0},{"$f":"DL222*'SouthAfrica-IO-Data'!$AR35","v":2059713.0690933119},{"$f":"DM222*'SouthAfrica-IO-Data'!$AR35","v":1663811.689446809},{"$f":"DI222*'SouthAfrica-IO-Data'!AS35","v":0},{"$f":"DL222*'SouthAfrica-IO-Data'!$AS35","v":717501.97714991902},{"$f":"DM222*'SouthAfrica-IO-Data'!$AS35","v":579589.5528830816},{"$f":"(DQ222*'Default-Data'!$F$19/geo_dollar_index)/'SouthAfrica-IO-Data'!$AT35","v":0},{"$f":"(DR222*'Default-Data'!$F$19/geo_dollar_index)/'SouthAfrica-IO-Data'!$AT35","v":41.59792489471252},{"$f":"(DS222*'Default-Data'!$F$19/geo_dollar_index)/'SouthAfrica-IO-Data'!$AT35","v":33.602308367650416},55090.610844739182,28114.651705765202,{"$f":"DJ222*'SouthAfrica-IO-Data'!AR35","v":0},{"$f":"DW222*'SouthAfrica-IO-Data'!$AR35","v":29132.376163982764},{"$f":"DX222*'SouthAfrica-IO-Data'!$AR35","v":14867.263162501773},{"$f":"DJ222*'SouthAfrica-IO-Data'!$AS35","v":0},{"$f":"DZ222*'SouthAfrica-IO-Data'!$AS35","v":5366.4935004197241},{"$f":"EA222*'SouthAfrica-IO-Data'!$AS35","v":2738.7079818513412},{"$f":"(EB222*'Default-Data'!$F$19/geo_dollar_index)/'SouthAfrica-IO-Data'!$AT35","v":0},{"$f":"(EC222*'Default-Data'!$F$19/geo_dollar_index)/'SouthAfrica-IO-Data'!$AT35","v":0.31112805356322881},{"$f":"(ED222*'Default-Data'!$F$19/geo_dollar_index)/'SouthAfrica-IO-Data'!$AT35","v":0.15877944948686565},null,"TRADETRANS",0,0,null,2987665.000708852,2506434.7997748246,{"$f":"EJ222*'Zambia-IO-Data'!BO33","v":0},{"$f":"EM222*'Zambia-IO-Data'!$BO33","v":675425.65547573101},{"$f":"EN222*'Zambia-IO-Data'!$BO33","v":566633.2628134127},{"$f":"EJ222*'Zambia-IO-Data'!BN33","v":0},{"$f":"EM222*'Zambia-IO-Data'!$BN33","v":248663.42312189966},{"$f":"EN222*'Zambia-IO-Data'!$BN33","v":208610.62301027292},{"$f":"(ER222*'Default-Data'!$F$19/geo_dollar_index)/'Zambia-IO-Data'!$BP33","v":0},{"$f":"(ES222*'Default-Data'!$F$19/geo_dollar_index)/'Zambia-IO-Data'!$BP33","v":638.04151663985874},{"$f":"(ET222*'Default-Data'!$F$19/geo_dollar_index)/'Zambia-IO-Data'!$BP33","v":535.27067480049539},36446.836882383875,4113.3105045112316,{"$f":"EK222*'Zambia-IO-Data'!BO33","v":0},{"$f":"EX222*'Zambia-IO-Data'!$BO33","v":8239.5880011515783},{"$f":"EY222*'Zambia-IO-Data'!$BO33","v":929.90192776818878},{"$f":"EK222*'Zambia-IO-Data'!BN33","v":0},{"$f":"EX222*'Zambia-IO-Data'!$BN33","v":3033.4710280398899},{"$f":"EY222*'Zambia-IO-Data'!$BN33","v":342.35092293558841},{"$f":"(FC222*'Default-Data'!$F$19/geo_dollar_index)/'Zambia-IO-Data'!$BP33","v":0},{"$f":"(FD222*'Default-Data'!$F$19/geo_dollar_index)/'Zambia-IO-Data'!$BP33","v":7.7835349932620872},{"$f":"(FE222*'Default-Data'!$F$19/geo_dollar_index)/'Zambia-IO-Data'!$BP33","v":0.87843278014313175},null,"TTL_C60T63: Transport and storage",0,0,null,829320.06350292102,1296033.023376656,{"$f":"FK222*CustomRegion1!C31","v":0},{"$f":"FN222*CustomRegion1!$C31","v":366579.3868516378},{"$f":"FO222*CustomRegion1!$C31","v":572877.7247256547},{"$f":"FK222*CustomRegion1!D31","v":0},{"$f":"FN222*CustomRegion1!$D31","v":136415.45849775948},{"$f":"FO222*CustomRegion1!$D31","v":213185.41163153859},{"$f":"(FS222*'Default-Data'!$C$58/geo_dollar_index)/CustomRegion1!$E31","v":0},{"$f":"(FT222*'Default-Data'!$C$58/geo_dollar_index)/CustomRegion1!$E31","v":43.908938768749977},{"$f":"(FU222*'Default-Data'!$C$58/geo_dollar_index)/CustomRegion1!$E31","v":68.619387339256207},8234.1791134359155,11938.652352855497,{"$f":"FL222*CustomRegion1!C31","v":0},{"$f":"FY222*CustomRegion1!$C31","v":3639.7049383808485},{"$f":"FZ222*CustomRegion1!$C31","v":5277.1710850200798},{"$f":"FL222*CustomRegion1!D31","v":0},{"$f":"FY222*CustomRegion1!$D31","v":1354.4460921004579},{"$f":"FZ222*CustomRegion1!$D31","v":1963.7975809738759},{"$f":"(GD222*'Default-Data'!$C$58/geo_dollar_index)/CustomRegion1!$E31","v":0},{"$f":"(GE222*'Default-Data'!$C$58/geo_dollar_index)/CustomRegion1!$E31","v":0.43596445137915574},{"$f":"(GF222*'Default-Data'!$C$58/geo_dollar_index)/CustomRegion1!$E31","v":0.63210041359511671},null,"C50T52 Wholesale and retail trade; repairs",0,0,null,1084746.2659676194,1182577.3789299501,{"$f":"GL222*CustomRegion2!C35","v":0},{"$f":"GO222*CustomRegion2!$C35","v":795837.69648453454},{"$f":"GP222*CustomRegion2!$C35","v":867612.71892723325},{"$f":"GL222*CustomRegion2!D35","v":0},{"$f":"GO222*CustomRegion2!$D35","v":193825.76319152259},{"$f":"GP222*CustomRegion2!$D35","v":211306.5241111143},{"$f":"(GT222*'Default-Data'!$C$59/geo_dollar_index)/CustomRegion2!$E35","v":0},{"$f":"(GU222*'Default-Data'!$C$59/geo_dollar_index)/CustomRegion2!$E35","v":40.847102094785015},{"$f":"(GV222*'Default-Data'!$C$59/geo_dollar_index)/CustomRegion2!$E35","v":44.531021168388939},11504.265918555373,12288.184890198778,{"$f":"GM222*CustomRegion2!C35","v":0},{"$f":"GZ222*CustomRegion2!$C35","v":8440.2489094550583},{"$f":"HA222*CustomRegion2!$C35","v":9015.3808902659839},{"$f":"GM222*CustomRegion2!D35","v":0},{"$f":"GZ222*CustomRegion2!$D35","v":2055.6172365646844},{"$f":"HA222*CustomRegion2!$D35","v":2195.6902635260253},{"$f":"(HE222*'Default-Data'!$C$59/geo_dollar_index)/CustomRegion2!$E35","v":0},{"$f":"(HF222*'Default-Data'!$C$59/geo_dollar_index)/CustomRegion2!$E35","v":0.43320354191918864},{"$f":"(HG222*'Default-Data'!$C$59/geo_dollar_index)/CustomRegion2!$E35","v":0.46272272006560394},null,"TRADETRANS",0,0,null,2987665.000708852,2506434.7997748246,{"$f":"HM222*CustomRegion3!D34","v":0},{"$f":"HP222*CustomRegion3!$D34","v":675425.65547573101},{"$f":"HQ222*CustomRegion3!$D34","v":566633.2628134127},{"$f":"HM222*CustomRegion3!E34","v":0},{"$f":"HP222*CustomRegion3!E$12","v":937298.26827173831},{"$f":"HQ222*CustomRegion3!F$12","v":258845568.4921374},{"$f":"(HU222*'Default-Data'!$C$60/geo_dollar_index)/CustomRegion3!$F34","v":0},{"$f":"(HV222*'Default-Data'!$C$60/geo_dollar_index)/CustomRegion3!$F34","v":2414.7392565864329},{"$f":"(HW222*'Default-Data'!$C$60/geo_dollar_index)/CustomRegion3!$F34","v":666857.68745086994},36446.836882383875,4113.3105045112316,{"$f":"HN222*CustomRegion3!D34","v":0},{"$f":"IA222*CustomRegion3!$D34","v":8239.5880011515783},{"$f":"IB222*CustomRegion3!$D34","v":929.90192776818878},{"$f":"HN222*CustomRegion3!E34","v":0},{"$f":"IA222*CustomRegion3!$E34","v":3033.4710280398899},{"$f":"IB222*CustomRegion3!$E34","v":342.35092293558841},{"$f":"(IF222*'Default-Data'!$C$60/geo_dollar_index)/CustomRegion3!$F34","v":0},{"$f":"(IG222*'Default-Data'!$C$60/geo_dollar_index)/CustomRegion3!$F34","v":7.81505932858704},{"$f":"(IH222*'Default-Data'!$C$60/geo_dollar_index)/CustomRegion3!$F34","v":0.88199054785993847}]
[null,null,null,null,null,null,null,null,null,null,null,null,null,null,null,null,null,null,null,null,null,null,null,null,null,null,null,null,null,222,"TTL_C64: Post and telecommunications",0,0,null,1063274.3877187034,1148918.7666810954,{"$f":"AF223*'Colombia-IO-Data'!AN36","v":0},{"$f":"AI223*'Colombia-IO-Data'!$AN36","v":581324.21480464109},{"$f":"AJ223*'Colombia-IO-Data'!$AN36","v":628148.5829337032},{"$f":"'Colombia-IO-Data'!$AO36*AK223","v":0},{"$f":"'Colombia-IO-Data'!$AO36*AL223","v":141106.15391958685},{"$f":"'Colombia-IO-Data'!$AO36*AM223","v":152471.93970338954},{"$f":"(AN223*'Default-Data'!$F$19/geo_dollar_index)/'Colombia-IO-Data'!$AP36","v":0},{"$f":"(AO223*'Default-Data'!$F$19/geo_dollar_index)/'Colombia-IO-Data'!$AP36","v":32.555365872369812},{"$f":"(AP223*'Default-Data'!$F$19/geo_dollar_index)/'Colombia-IO-Data'!$AP36","v":35.177627937775839},4047.851758833317,11580.833921564528,{"$f":"AG223*'Colombia-IO-Data'!AN36","v":0},{"$f":"AT223*'Colombia-IO-Data'!$AN36","v":2213.0827870292837},{"$f":"AU223*'Colombia-IO-Data'!$AN36","v":6331.5916041960636},{"$f":"AV223*'Colombia-IO-Data'!$AO36","v":0},{"$f":"AW223*'Colombia-IO-Data'!$AO36","v":537.18663773241678},{"$f":"AX223*'Colombia-IO-Data'!$AO36","v":1536.8816861652617},{"$f":"(Calculations!AY223*'Default-Data'!$F$19/geo_dollar_index)/'Colombia-IO-Data'!$AP36","v":0},{"$f":"(Calculations!AZ223*'Default-Data'!$F$19/geo_dollar_index)/'Colombia-IO-Data'!$AP36","v":0.12393724190862142},{"$f":"(Calculations!BA223*'Default-Data'!$F$19/geo_dollar_index)/'Colombia-IO-Data'!$AP36","v":0.35458230704925747},null,"DOM_C64: Post and telecommunications",0,0,null,730272.42203742871,942315.17526276107,{"$f":"BG223*'Mexico-IO-Data'!AQ36","v":0},{"$f":"BJ223*'Mexico-IO-Data'!$AQ36","v":445569.02964983438},{"$f":"BK223*'Mexico-IO-Data'!$AQ36","v":574944.97340421635},{"$f":"BG223*'Mexico-IO-Data'!AQ36","v":0},{"$f":"BJ223*'Mexico-IO-Data'!$AR36","v":113904.19688821075},{"$f":"BK223*'Mexico-IO-Data'!$AR36","v":146977.55250625795},{"$f":"(BO223*'Default-Data'!$F$19/geo_dollar_index)/'Mexico-IO-Data'!$AS36","v":0},{"$f":"(BP223*'Default-Data'!$F$19/geo_dollar_index)/'Mexico-IO-Data'!$AS36","v":9.51322172764573},{"$f":"(BQ223*'Default-Data'!$F$19/geo_dollar_index)/'Mexico-IO-Data'!$AS36","v":12.275491897379272},3087.2595673563073,5418.9312507378536,{"$f":"BH223*'Mexico-IO-Data'!AQ36","v":0},{"$f":"BU223*'Mexico-IO-Data'!$AQ36","v":1883.6631484265667},{"$f":"BV223*'Mexico-IO-Data'!$AQ36","v":3306.3112699697126},{"$f":"BH223*'Mexico-IO-Data'!AR36","v":0},{"$f":"BU223*'Mexico-IO-Data'!$AR36","v":481.53512441846243},{"$f":"BV223*'Mexico-IO-Data'!$AR36","v":845.21747430315418},{"$f":"(BZ223*'Default-Data'!$F$19/geo_dollar_index)/'Mexico-IO-Data'!$AS36","v":0},{"$f":"(CA223*'Default-Data'!$F$19/geo_dollar_index)/'Mexico-IO-Data'!$AS36","v":4.0217573481846319E-2},{"$f":"(CB223*'Default-Data'!$F$19/geo_dollar_index)/'Mexico-IO-Data'!$AS36","v":7.0592141999983163E-2},null,"TTL_C64: Post and telecommunications",0,0,null,416144.27881682437,652730.94293127093,{"$f":"CH223*'Philippines-IO-Data'!AN36","v":0},{"$f":"CK223*'Philippines-IO-Data'!$AN36","v":252057.6899594398},{"$f":"CL223*'Philippines-IO-Data'!$AN36","v":395357.72090410732},{"$f":"CH223*'Philippines-IO-Data'!AO36","v":0},{"$f":"CK223*'Philippines-IO-Data'!$AO36","v":44695.616945502428},{"$f":"CL223*'Philippines-IO-Data'!$AO36","v":70106.003323367579},{"$f":"(CP223*'Default-Data'!$F$19/geo_dollar_index)/'Philippines-IO-Data'!$AP36","v":0},{"$f":"(CQ223*'Default-Data'!$F$19/geo_dollar_index)/'Philippines-IO-Data'!$AP36","v":11.662678387737552},{"$f":"(CR223*'Default-Data'!$F$19/geo_dollar_index)/'Philippines-IO-Data'!$AP36","v":18.293153237084262},1111.7756488458335,5794.8074413970826,{"$f":"CI223*'Philippines-IO-Data'!AN36","v":0},{"$f":"CV223*'Philippines-IO-Data'!$AN36","v":673.40010680427645},{"$f":"CW223*'Philippines-IO-Data'!$AN36","v":3509.9023386580043},{"$f":"CI223*'Philippines-IO-Data'!AO36","v":0},{"$f":"CV223*'Philippines-IO-Data'!$AO36","v":119.40930359882148},{"$f":"CW223*'Philippines-IO-Data'!$AO36","v":622.38628970227182},{"$f":"(DA223*'Default-Data'!$F$19/geo_dollar_index)/'Philippines-IO-Data'!$AP36","v":0},{"$f":"(DB223*'Default-Data'!$F$19/geo_dollar_index)/'Philippines-IO-Data'!$AP36","v":3.11581403177589E-2},{"$f":"(DC223*'Default-Data'!$F$19/geo_dollar_index)/'Philippines-IO-Data'!$AP36","v":0.16240275055572906},null,"DOM_C64: Post and telecommunications",0,0,null,2493029.5906657716,1792134.7902986193,{"$f":"DI223*'SouthAfrica-IO-Data'!AR36","v":0},{"$f":"DL223*'SouthAfrica-IO-Data'!$AR36","v":1012372.2602687407},{"$f":"DM223*'SouthAfrica-IO-Data'!$AR36","v":727752.11138843407},{"$f":"DI223*'SouthAfrica-IO-Data'!AS36","v":0},{"$f":"DL223*'SouthAfrica-IO-Data'!$AS36","v":331293.14824090287},{"$f":"DM223*'SouthAfrica-IO-Data'!$AS36","v":238152.79969923041},{"$f":"(DQ223*'Default-Data'!$F$19/geo_dollar_index)/'SouthAfrica-IO-Data'!$AT36","v":0},{"$f":"(DR223*'Default-Data'!$F$19/geo_dollar_index)/'SouthAfrica-IO-Data'!$AT36","v":19.207065537853474},{"$f":"(DS223*'Default-Data'!$F$19/geo_dollar_index)/'SouthAfrica-IO-Data'!$AT36","v":13.807156761721572},7075.52897176443,16013.915348138511,{"$f":"DJ223*'SouthAfrica-IO-Data'!AR36","v":0},{"$f":"DW223*'SouthAfrica-IO-Data'!$AR36","v":2873.2387632146774},{"$f":"DX223*'SouthAfrica-IO-Data'!$AR36","v":6502.9487565840654},{"$f":"DJ223*'SouthAfrica-IO-Data'!$AS36","v":0},{"$f":"DZ223*'SouthAfrica-IO-Data'!$AS36","v":381.81829813700074},{"$f":"EA223*'SouthAfrica-IO-Data'!$AS36","v":864.16237275493586},{"$f":"(EB223*'Default-Data'!$F$19/geo_dollar_index)/'SouthAfrica-IO-Data'!$AT36","v":0},{"$f":"(EC223*'Default-Data'!$F$19/geo_dollar_index)/'SouthAfrica-IO-Data'!$AT36","v":2.2136313759608298E-2},{"$f":"(ED223*'Default-Data'!$F$19/geo_dollar_index)/'SouthAfrica-IO-Data'!$AT36","v":5.01007141771058E-2},null,"TOURISM",{"$f":"AF221","v":126283.80099211945},0,null,136362.6571363282,8398.4641936201951,{"$f":"EJ223*'Zambia-IO-Data'!BO34","v":55195.994959583644},{"$f":"EM223*'Zambia-IO-Data'!$BO34","v":59601.251125169205},{"$f":"EN223*'Zambia-IO-Data'!$BO34","v":3670.7921654039528},{"$f":"EJ223*'Zambia-IO-Data'!BN34","v":38683.528116024463},{"$f":"EM223*'Zambia-IO-Data'!$BN34","v":41770.905214027676},{"$f":"EN223*'Zambia-IO-Data'!$BN34","v":2572.6357871157629},{"$f":"(ER223*'Default-Data'!$F$19/geo_dollar_index)/'Zambia-IO-Data'!$BP34","v":115.61454652480489},{"$f":"(ES223*'Default-Data'!$F$19/geo_dollar_index)/'Zambia-IO-Data'!$BP34","v":124.84187713606956},{"$f":"(ET223*'Default-Data'!$F$19/geo_dollar_index)/'Zambia-IO-Data'!$BP34","v":7.6889088039946074},121.58264931490241,13.791972715977423,{"$f":"EK223*'Zambia-IO-Data'!BO34","v":0},{"$f":"EX223*'Zambia-IO-Data'!$BO34","v":53.141220378510475},{"$f":"EY223*'Zambia-IO-Data'!$BO34","v":6.0281813703193041},{"$f":"EK223*'Zambia-IO-Data'!BN34","v":0},{"$f":"EX223*'Zambia-IO-Data'!$BN34","v":37.243461126793839},{"$f":"EY223*'Zambia-IO-Data'!$BN34","v":4.2247870284427735},{"$f":"(FC223*'Default-Data'!$F$19/geo_dollar_index)/'Zambia-IO-Data'!$BP34","v":0},{"$f":"(FD223*'Default-Data'!$F$19/geo_dollar_index)/'Zambia-IO-Data'!$BP34","v":0.11131057788404716},{"$f":"(FE223*'Default-Data'!$F$19/geo_dollar_index)/'Zambia-IO-Data'!$BP34","v":1.2626739603282269E-2},null,"TTL_C64: Post and telecommunications",0,0,null,538818.52121041506,831801.25251522404,{"$f":"FK223*CustomRegion1!C32","v":0},{"$f":"FN223*CustomRegion1!$C32","v":326361.21335081494},{"$f":"FO223*CustomRegion1!$C32","v":503820.22026222211},{"$f":"FK223*CustomRegion1!D32","v":0},{"$f":"FN223*CustomRegion1!$D32","v":57871.338026404555},{"$f":"FO223*CustomRegion1!$D32","v":89338.895305525279},{"$f":"(FS223*'Default-Data'!$C$58/geo_dollar_index)/CustomRegion1!$E32","v":0},{"$f":"(FT223*'Default-Data'!$C$58/geo_dollar_index)/CustomRegion1!$E32","v":15.163791947506105},{"$f":"(FU223*'Default-Data'!$C$58/geo_dollar_index)/CustomRegion1!$E32","v":23.40910833295246},2138.314541555209,7662.2939395294879,{"$f":"FL223*CustomRegion1!C32","v":0},{"$f":"FY223*CustomRegion1!$C32","v":1295.1724947018399},{"$f":"FZ223*CustomRegion1!$C32","v":4641.034872999282},{"$f":"FL223*CustomRegion1!D32","v":0},{"$f":"FY223*CustomRegion1!$D32","v":229.66382700269699},{"$f":"FZ223*CustomRegion1!$D32","v":822.96206454829417},{"$f":"(GD223*'Default-Data'!$C$58/geo_dollar_index)/CustomRegion1!$E32","v":0},{"$f":"(GE223*'Default-Data'!$C$58/geo_dollar_index)/CustomRegion1!$E32","v":6.0177880956337346E-2},{"$f":"(GF223*'Default-Data'!$C$58/geo_dollar_index)/CustomRegion1!$E32","v":0.21563741142129139},null,"C55 Hotels and restaurants",0,0,null,84812.850964509154,293810.05673450662,{"$f":"GL223*CustomRegion2!C36","v":0},{"$f":"GO223*CustomRegion2!$C36","v":60992.013622375751},{"$f":"GP223*CustomRegion2!$C36","v":211289.52486505688},{"$f":"GL223*CustomRegion2!D36","v":0},{"$f":"GO223*CustomRegion2!$D36","v":16851.870695961654},{"$f":"GP223*CustomRegion2!$D36","v":58378.524350454471},{"$f":"(GT223*'Default-Data'!$C$59/geo_dollar_index)/CustomRegion2!$E36","v":0},{"$f":"(GU223*'Default-Data'!$C$59/geo_dollar_index)/CustomRegion2!$E36","v":12.115572904826415},{"$f":"(GV223*'Default-Data'!$C$59/geo_dollar_index)/CustomRegion2!$E36","v":41.970964565590251},911.38067799912244,3052.9860997512565,{"$f":"GM223*CustomRegion2!C36","v":0},{"$f":"GZ223*CustomRegion2!$C36","v":655.40707682322193},{"$f":"HA223*CustomRegion2!$C36","v":2195.5136240246552},{"$f":"GM223*CustomRegion2!D36","v":0},{"$f":"GZ223*CustomRegion2!$D36","v":181.08658258482541},{"$f":"HA223*CustomRegion2!$D36","v":606.61239899960037},{"$f":"(HE223*'Default-Data'!$C$59/geo_dollar_index)/CustomRegion2!$E36","v":0},{"$f":"(HF223*'Default-Data'!$C$59/geo_dollar_index)/CustomRegion2!$E36","v":0.13019134391519391},{"$f":"(HG223*'Default-Data'!$C$59/geo_dollar_index)/CustomRegion2!$E36","v":0.43612112136681169},null,"TOURISM",126283.80099211945,0,null,136362.6571363282,8398.4641936201951,{"$f":"HM223*CustomRegion3!D35","v":55195.994959583644},{"$f":"HP223*CustomRegion3!$D35","v":59601.251125169205},{"$f":"HQ223*CustomRegion3!$D35","v":3670.7921654039528},{"$f":"HM223*CustomRegion3!E35","v":38683.528116024463},{"$f":"HP223*CustomRegion3!E$12","v":42780.058125823503},{"$f":"HQ223*CustomRegion3!F$12","v":867329.65838719637},{"$f":"(HU223*'Default-Data'!$C$60/geo_dollar_index)/CustomRegion3!$F35","v":116.08280056827556},{"$f":"(HV223*'Default-Data'!$C$60/geo_dollar_index)/CustomRegion3!$F35","v":128.37580224907288},{"$f":"(HW223*'Default-Data'!$C$60/geo_dollar_index)/CustomRegion3!$F35","v":2602.7113002602377},121.58264931490241,13.791972715977423,{"$f":"HN223*CustomRegion3!D35","v":0},{"$f":"IA223*CustomRegion3!$D35","v":53.141220378510475},{"$f":"IB223*CustomRegion3!$D35","v":6.0281813703193041},{"$f":"HN223*CustomRegion3!E35","v":0},{"$f":"IA223*CustomRegion3!$E35","v":37.243461126793839},{"$f":"IB223*CustomRegion3!$E35","v":4.2247870284427735},{"$f":"(IF223*'Default-Data'!$C$60/geo_dollar_index)/CustomRegion3!$F35","v":0},{"$f":"(IG223*'Default-Data'!$C$60/geo_dollar_index)/CustomRegion3!$F35","v":0.11176140029127841},{"$f":"(IH223*'Default-Data'!$C$60/geo_dollar_index)/CustomRegion3!$F35","v":1.2677879551089958E-2}]
[null,null,null,null,null,null,null,null,null,null,null,null,null,null,null,null,null,null,null,null,null,null,null,null,null,null,null,null,null,223,"TTL_C65T67: Financial intermediation",0,0,null,2655411.249139301,1710559.9285657345,{"$f":"AF224*'Colombia-IO-Data'!AN37","v":0},{"$f":"AI224*'Colombia-IO-Data'!$AN37","v":1769248.048935788},{"$f":"AJ224*'Colombia-IO-Data'!$AN37","v":1139712.2826769736},{"$f":"'Colombia-IO-Data'!$AO37*AK224","v":0},{"$f":"'Colombia-IO-Data'!$AO37*AL224","v":629855.9810646883},{"$f":"'Colombia-IO-Data'!$AO37*AM224","v":405739.94040506292},{"$f":"(AN224*'Default-Data'!$F$19/geo_dollar_index)/'Colombia-IO-Data'!$AP37","v":0},{"$f":"(AO224*'Default-Data'!$F$19/geo_dollar_index)/'Colombia-IO-Data'!$AP37","v":91.29390661940181},{"$f":"(AP224*'Default-Data'!$F$19/geo_dollar_index)/'Colombia-IO-Data'!$AP37","v":58.809609410214001},22780.995156895591,33996.424657965887,{"$f":"AG224*'Colombia-IO-Data'!AN37","v":0},{"$f":"AT224*'Colombia-IO-Data'!$AN37","v":15178.526959700612},{"$f":"AU224*'Colombia-IO-Data'!$AN37","v":22651.146038638828},{"$f":"AV224*'Colombia-IO-Data'!$AO37","v":0},{"$f":"AW224*'Colombia-IO-Data'!$AO37","v":5403.5871313067782},{"$f":"AX224*'Colombia-IO-Data'!$AO37","v":8063.8550479046944},{"$f":"(Calculations!AY224*'Default-Data'!$F$19/geo_dollar_index)/'Colombia-IO-Data'!$AP37","v":0},{"$f":"(Calculations!AZ224*'Default-Data'!$F$19/geo_dollar_index)/'Colombia-IO-Data'!$AP37","v":0.78321805905762631},{"$f":"(Calculations!BA224*'Default-Data'!$F$19/geo_dollar_index)/'Colombia-IO-Data'!$AP37","v":1.1688081908683101},null,"DOM_C65T67: Financial intermediation",0,0,null,1487974.3689469539,1470670.1968776735,{"$f":"BG224*'Mexico-IO-Data'!AQ37","v":0},{"$f":"BJ224*'Mexico-IO-Data'!$AQ37","v":1011514.3567844222},{"$f":"BK224*'Mexico-IO-Data'!$AQ37","v":999751.104106399},{"$f":"BG224*'Mexico-IO-Data'!AQ37","v":0},{"$f":"BJ224*'Mexico-IO-Data'!$AR37","v":274713.51707999752},{"$f":"BK224*'Mexico-IO-Data'!$AR37","v":271518.77793091279},{"$f":"(BO224*'Default-Data'!$F$19/geo_dollar_index)/'Mexico-IO-Data'!$AS37","v":0},{"$f":"(BP224*'Default-Data'!$F$19/geo_dollar_index)/'Mexico-IO-Data'!$AS37","v":21.492936172944709},{"$f":"(BQ224*'Default-Data'!$F$19/geo_dollar_index)/'Mexico-IO-Data'!$AS37","v":21.242987334058526},9682.1564245049158,8457.3196936650857,{"$f":"BH224*'Mexico-IO-Data'!AQ37","v":0},{"$f":"BU224*'Mexico-IO-Data'!$AQ37","v":6581.8608387389449},{"$f":"BV224*'Mexico-IO-Data'!$AQ37","v":5749.2255704055342},{"$f":"BH224*'Mexico-IO-Data'!AR37","v":0},{"$f":"BU224*'Mexico-IO-Data'!$AR37","v":1787.5437237382018},{"$f":"BV224*'Mexico-IO-Data'!$AR37","v":1561.4113297938734},{"$f":"(BZ224*'Default-Data'!$F$19/geo_dollar_index)/'Mexico-IO-Data'!$AS37","v":0},{"$f":"(CA224*'Default-Data'!$F$19/geo_dollar_index)/'Mexico-IO-Data'!$AS37","v":0.13985319531788884},{"$f":"(CB224*'Default-Data'!$F$19/geo_dollar_index)/'Mexico-IO-Data'!$AS37","v":0.12216113137672746},null,"TTL_C65T67: Financial intermediation",0,0,null,1149865.946679156,2056955.461354139,{"$f":"CH224*'Philippines-IO-Data'!AN37","v":0},{"$f":"CK224*'Philippines-IO-Data'!$AN37","v":733377.79882731428},{"$f":"CL224*'Philippines-IO-Data'!$AN37","v":1311914.204338674},{"$f":"CH224*'Philippines-IO-Data'!AO37","v":0},{"$f":"CK224*'Philippines-IO-Data'!$AO37","v":160673.43937345556},{"$f":"CL224*'Philippines-IO-Data'!$AO37","v":287423.16403774725},{"$f":"(CP224*'Default-Data'!$F$19/geo_dollar_index)/'Philippines-IO-Data'!$AP37","v":0},{"$f":"(CQ224*'Default-Data'!$F$19/geo_dollar_index)/'Philippines-IO-Data'!$AP37","v":41.925423048731908},{"$f":"(CR224*'Default-Data'!$F$19/geo_dollar_index)/'Philippines-IO-Data'!$AP37","v":74.99894066671996},10487.92325665552,18261.216115400879,{"$f":"CI224*'Philippines-IO-Data'!AN37","v":0},{"$f":"CV224*'Philippines-IO-Data'!$AN37","v":6689.1363244988697},{"$f":"CW224*'Philippines-IO-Data'!$AN37","v":11646.897203365404},{"$f":"CI224*'Philippines-IO-Data'!AO37","v":0},{"$f":"CV224*'Philippines-IO-Data'!$AO37","v":1465.5018755868007},{"$f":"CW224*'Philippines-IO-Data'!$AO37","v":2551.6821407549037},{"$f":"(DA224*'Default-Data'!$F$19/geo_dollar_index)/'Philippines-IO-Data'!$AP37","v":0},{"$f":"(DB224*'Default-Data'!$F$19/geo_dollar_index)/'Philippines-IO-Data'!$AP37","v":0.38240163621491086},{"$f":"(DC224*'Default-Data'!$F$19/geo_dollar_index)/'Philippines-IO-Data'!$AP37","v":0.66582475394945184},null,"DOM_C65T67: Financial intermediation",0,0,null,5205327.1493361825,5090463.5638938667,{"$f":"DI224*'SouthAfrica-IO-Data'!AR37","v":0},{"$f":"DL224*'SouthAfrica-IO-Data'!$AR37","v":3029100.6059846552},{"$f":"DM224*'SouthAfrica-IO-Data'!$AR37","v":2962258.8213499933},{"$f":"DI224*'SouthAfrica-IO-Data'!AS37","v":0},{"$f":"DL224*'SouthAfrica-IO-Data'!$AS37","v":1521854.4696137495},{"$f":"DM224*'SouthAfrica-IO-Data'!$AS37","v":1488272.399575454},{"$f":"(DQ224*'Default-Data'!$F$19/geo_dollar_index)/'SouthAfrica-IO-Data'!$AT37","v":0},{"$f":"(DR224*'Default-Data'!$F$19/geo_dollar_index)/'SouthAfrica-IO-Data'!$AT37","v":97.834598910229616},{"$f":"(DS224*'Default-Data'!$F$19/geo_dollar_index)/'SouthAfrica-IO-Data'!$AT37","v":95.675727337177207},46194.448141410503,45486.674906521199,{"$f":"DJ224*'SouthAfrica-IO-Data'!AR37","v":0},{"$f":"DW224*'SouthAfrica-IO-Data'!$AR37","v":26881.620855687768},{"$f":"DX224*'SouthAfrica-IO-Data'!$AR37","v":26469.751193475218},{"$f":"DJ224*'SouthAfrica-IO-Data'!$AS37","v":0},{"$f":"DZ224*'SouthAfrica-IO-Data'!$AS37","v":7859.2399048170719},{"$f":"EA224*'SouthAfrica-IO-Data'!$AS37","v":7738.8237103389956},{"$f":"(EB224*'Default-Data'!$F$19/geo_dollar_index)/'SouthAfrica-IO-Data'!$AT37","v":0},{"$f":"(EC224*'Default-Data'!$F$19/geo_dollar_index)/'SouthAfrica-IO-Data'!$AT37","v":0.50524251771734752},{"$f":"(ED224*'Default-Data'!$F$19/geo_dollar_index)/'SouthAfrica-IO-Data'!$AT37","v":0.49750138982090103},null,"OTHER",{"$f":"AF228","v":27683059.645699918},0,null,29520375.280590147,528557.08211503178,{"$f":"EJ224*'Zambia-IO-Data'!BO35","v":10131765.020246701},{"$f":"EM224*'Zambia-IO-Data'!$BO35","v":10804206.958348176},{"$f":"EN224*'Zambia-IO-Data'!$BO35","v":193447.40878772704},{"$f":"EJ224*'Zambia-IO-Data'!BN35","v":8106676.0272894371},{"$f":"EM224*'Zambia-IO-Data'!$BN35","v":8644713.4697743151},{"$f":"EN224*'Zambia-IO-Data'!$BN35","v":154782.06099597659},{"$f":"(ER224*'Default-Data'!$F$19/geo_dollar_index)/'Zambia-IO-Data'!$BP35","v":19491.801586479931},{"$f":"(ES224*'Default-Data'!$F$19/geo_dollar_index)/'Zambia-IO-Data'!$BP35","v":20785.466097027653},{"$f":"(ET224*'Default-Data'!$F$19/geo_dollar_index)/'Zambia-IO-Data'!$BP35","v":372.16008286552596},4907.539468920153,895.26331799938816,{"$f":"EK224*'Zambia-IO-Data'!BO35","v":0},{"$f":"EX224*'Zambia-IO-Data'!$BO35","v":1796.1178194552904},{"$f":"EY224*'Zambia-IO-Data'!$BO35","v":327.65878068774668},{"$f":"EK224*'Zambia-IO-Data'!BN35","v":0},{"$f":"EX224*'Zambia-IO-Data'!$BN35","v":1437.118334275289},{"$f":"EY224*'Zambia-IO-Data'!$BN35","v":262.16790235701365},{"$f":"(FC224*'Default-Data'!$F$19/geo_dollar_index)/'Zambia-IO-Data'!$BP35","v":0},{"$f":"(FD224*'Default-Data'!$F$19/geo_dollar_index)/'Zambia-IO-Data'!$BP35","v":3.455426778335513},{"$f":"(FE224*'Default-Data'!$F$19/geo_dollar_index)/'Zambia-IO-Data'!$BP35","v":0.63036005360080793},null,"TTL_C65T67: Financial intermediation",0,0,null,1728421.0496575856,2795027.7125623855,{"$f":"FK224*CustomRegion1!C33","v":0},{"$f":"FN224*CustomRegion1!$C33","v":1102376.8714131396},{"$f":"FO224*CustomRegion1!$C33","v":1782652.3843238039},{"$f":"FK224*CustomRegion1!D33","v":0},{"$f":"FN224*CustomRegion1!$D33","v":241516.28764726914},{"$f":"FO224*CustomRegion1!$D33","v":390555.71392343187},{"$f":"(FS224*'Default-Data'!$C$58/geo_dollar_index)/CustomRegion1!$E33","v":0},{"$f":"(FT224*'Default-Data'!$C$58/geo_dollar_index)/CustomRegion1!$E33","v":63.283533139431732},{"$f":"(FU224*'Default-Data'!$C$58/geo_dollar_index)/CustomRegion1!$E33","v":102.33572942693161},16341.41855900975,25746.924326002707,{"$f":"FL224*CustomRegion1!C33","v":0},{"$f":"FY224*CustomRegion1!$C33","v":10422.461511390749},{"$f":"FZ224*CustomRegion1!$C33","v":16421.238269825859},{"$f":"FL224*CustomRegion1!D33","v":0},{"$f":"FY224*CustomRegion1!$D33","v":2283.4243693364524},{"$f":"FZ224*CustomRegion1!$D33","v":3597.6775351024785},{"$f":"(GD224*'Default-Data'!$C$58/geo_dollar_index)/CustomRegion1!$E33","v":0},{"$f":"(GE224*'Default-Data'!$C$58/geo_dollar_index)/CustomRegion1!$E33","v":0.59831642476773261},{"$f":"(GF224*'Default-Data'!$C$58/geo_dollar_index)/CustomRegion1!$E33","v":0.94268485051476436},null,"C60T63 Transport and storage",0,0,null,393469.86629745562,724482.34913054353,{"$f":"GL224*CustomRegion2!C37","v":0},{"$f":"GO224*CustomRegion2!$C37","v":244125.55880833307},{"$f":"GP224*CustomRegion2!$C37","v":449499.88163658138},{"$f":"GL224*CustomRegion2!D37","v":0},{"$f":"GO224*CustomRegion2!$D37","v":82899.628715399202},{"$f":"GP224*CustomRegion2!$D37","v":152640.19661515474},{"$f":"(GT224*'Default-Data'!$C$59/geo_dollar_index)/CustomRegion2!$E37","v":0},{"$f":"(GU224*'Default-Data'!$C$59/geo_dollar_index)/CustomRegion2!$E37","v":11.732148047030218},{"$f":"(GV224*'Default-Data'!$C$59/geo_dollar_index)/CustomRegion2!$E37","v":21.601995236489437},4496.3356237211674,7528.1103921141412,{"$f":"GM224*CustomRegion2!C37","v":0},{"$f":"GZ224*CustomRegion2!$C37","v":2789.719215501314},{"$f":"HA224*CustomRegion2!$C37","v":4670.7621438444276},{"$f":"GM224*CustomRegion2!D37","v":0},{"$f":"GZ224*CustomRegion2!$D37","v":947.32681131042432},{"$f":"HA224*CustomRegion2!$D37","v":1586.0872963598435},{"$f":"(HE224*'Default-Data'!$C$59/geo_dollar_index)/CustomRegion2!$E37","v":0},{"$f":"(HF224*'Default-Data'!$C$59/geo_dollar_index)/CustomRegion2!$E37","v":0.13406789115269491},{"$f":"(HG224*'Default-Data'!$C$59/geo_dollar_index)/CustomRegion2!$E37","v":0.22446675895607443},null,"OTHER",27683059.645699918,0,null,29520375.280590147,528557.08211503178,{"$f":"HM224*CustomRegion3!D36","v":10131765.020246701},{"$f":"HP224*CustomRegion3!$D36","v":10804206.958348176},{"$f":"HQ224*CustomRegion3!$D36","v":193447.40878772704},{"$f":"HM224*CustomRegion3!E36","v":8106676.0272894371},{"$f":"HP224*CustomRegion3!E$12","v":9261211.2210251633},{"$f":"HQ224*CustomRegion3!F$12","v":54585365.002473645},{"$f":"(HU224*'Default-Data'!$C$60/geo_dollar_index)/CustomRegion3!$F36","v":19570.745933724669},{"$f":"(HV224*'Default-Data'!$C$60/geo_dollar_index)/CustomRegion3!$F36","v":22357.969065879417},{"$f":"(HW224*'Default-Data'!$C$60/geo_dollar_index)/CustomRegion3!$F36","v":131777.35320455732},4907.539468920153,895.26331799938816,{"$f":"HN224*CustomRegion3!D36","v":0},{"$f":"IA224*CustomRegion3!$D36","v":1796.1178194552904},{"$f":"IB224*CustomRegion3!$D36","v":327.65878068774668},{"$f":"HN224*CustomRegion3!E36","v":0},{"$f":"IA224*CustomRegion3!$E36","v":1437.118334275289},{"$f":"IB224*CustomRegion3!$E36","v":262.16790235701365},{"$f":"(IF224*'Default-Data'!$C$60/geo_dollar_index)/CustomRegion3!$F36","v":0},{"$f":"(IG224*'Default-Data'!$C$60/geo_dollar_index)/CustomRegion3!$F36","v":3.4694217089866077},{"$f":"(IH224*'Default-Data'!$C$60/geo_dollar_index)/CustomRegion3!$F36","v":0.63291309431076426}]
[null,null,null,null,null,null,null,null,null,null,null,null,null,null,null,null,null,null,null,null,null,null,null,null,null,null,null,null,null,224,"TTL_C70: Real estate activities",0,0,null,1100539.8691422942,2313752.0325318025,{"$f":"AF225*'Colombia-IO-Data'!AN38","v":0},{"$f":"AI225*'Colombia-IO-Data'!$AN38","v":976047.0943016255},{"$f":"AJ225*'Colombia-IO-Data'!$AN38","v":2052021.0231431019},{"$f":"'Colombia-IO-Data'!$AO38*AK225","v":0},{"$f":"'Colombia-IO-Data'!$AO38*AL225","v":32158.018873760866},{"$f":"'Colombia-IO-Data'!$AO38*AM225","v":67608.347155426862},{"$f":"(AN225*'Default-Data'!$F$19/geo_dollar_index)/'Colombia-IO-Data'!$AP38","v":0},{"$f":"(AO225*'Default-Data'!$F$19/geo_dollar_index)/'Colombia-IO-Data'!$AP38","v":6.9685812162566467},{"$f":"(AP225*'Default-Data'!$F$19/geo_dollar_index)/'Colombia-IO-Data'!$AP38","v":14.650599587584832},3969.6095454648012,19139.918618223677,{"$f":"AG225*'Colombia-IO-Data'!AN38","v":0},{"$f":"AT225*'Colombia-IO-Data'!$AN38","v":3520.5683783019399},{"$f":"AU225*'Colombia-IO-Data'!$AN38","v":16974.816157315774},{"$f":"AV225*'Colombia-IO-Data'!$AO38","v":0},{"$f":"AW225*'Colombia-IO-Data'!$AO38","v":115.99287064811757},{"$f":"AX225*'Colombia-IO-Data'!$AO38","v":559.27266373982013},{"$f":"(Calculations!AY225*'Default-Data'!$F$19/geo_dollar_index)/'Colombia-IO-Data'!$AP38","v":0},{"$f":"(Calculations!AZ225*'Default-Data'!$F$19/geo_dollar_index)/'Colombia-IO-Data'!$AP38","v":2.5135433335966201E-2},{"$f":"(Calculations!BA225*'Default-Data'!$F$19/geo_dollar_index)/'Colombia-IO-Data'!$AP38","v":0.12119331711951754},null,"DOM_C70: Real estate activities",0,0,null,768892.98699624545,2628050.7718956792,{"$f":"BG225*'Mexico-IO-Data'!AQ38","v":0},{"$f":"BJ225*'Mexico-IO-Data'!$AQ38","v":710599.81958504929},{"$f":"BK225*'Mexico-IO-Data'!$AQ38","v":2428806.6557414681},{"$f":"BG225*'Mexico-IO-Data'!AQ38","v":0},{"$f":"BJ225*'Mexico-IO-Data'!$AR38","v":10180.663813738158},{"$f":"BK225*'Mexico-IO-Data'!$AR38","v":34797.171838732902},{"$f":"(BO225*'Default-Data'!$F$19/geo_dollar_index)/'Mexico-IO-Data'!$AS38","v":0},{"$f":"(BP225*'Default-Data'!$F$19/geo_dollar_index)/'Mexico-IO-Data'!$AS38","v":4.4981719739702548},{"$f":"(BQ225*'Default-Data'!$F$19/geo_dollar_index)/'Mexico-IO-Data'!$AS38","v":15.374602874833821},3323.8291705325009,15113.01826629304,{"$f":"BH225*'Mexico-IO-Data'!AQ38","v":0},{"$f":"BU225*'Mexico-IO-Data'!$AQ38","v":3071.8350262745371},{"$f":"BV225*'Mexico-IO-Data'!$AQ38","v":13967.233717877347},{"$f":"BH225*'Mexico-IO-Data'!AR38","v":0},{"$f":"BU225*'Mexico-IO-Data'!$AR38","v":44.009748992095808},{"$f":"BV225*'Mexico-IO-Data'!$AR38","v":200.10659582302142},{"$f":"(BZ225*'Default-Data'!$F$19/geo_dollar_index)/'Mexico-IO-Data'!$AS38","v":0},{"$f":"(CA225*'Default-Data'!$F$19/geo_dollar_index)/'Mexico-IO-Data'!$AS38","v":1.9445040433470749E-2},{"$f":"(CB225*'Default-Data'!$F$19/geo_dollar_index)/'Mexico-IO-Data'!$AS38","v":8.841406588075934E-2},null,"TTL_C70: Real estate activities",0,0,null,1152475.500150831,2215187.377301306,{"$f":"CH225*'Philippines-IO-Data'!AN38","v":0},{"$f":"CK225*'Philippines-IO-Data'!$AN38","v":935199.8309783783},{"$f":"CL225*'Philippines-IO-Data'!$AN38","v":1797559.1329850317},{"$f":"CH225*'Philippines-IO-Data'!AO38","v":0},{"$f":"CK225*'Philippines-IO-Data'!$AO38","v":23968.705549938499},{"$f":"CL225*'Philippines-IO-Data'!$AO38","v":46070.544647176146},{"$f":"(CP225*'Default-Data'!$F$19/geo_dollar_index)/'Philippines-IO-Data'!$AP38","v":0},{"$f":"(CQ225*'Default-Data'!$F$19/geo_dollar_index)/'Philippines-IO-Data'!$AP38","v":6.2542889729021169},{"$f":"(CR225*'Default-Data'!$F$19/geo_dollar_index)/'Philippines-IO-Data'!$AP38","v":12.021445995992377},3448.307196698277,19665.965643406191,{"$f":"CI225*'Philippines-IO-Data'!AN38","v":0},{"$f":"CV225*'Philippines-IO-Data'!$AN38","v":2798.1994472695505},{"$f":"CW225*'Philippines-IO-Data'!$AN38","v":15958.350301878912},{"$f":"CI225*'Philippines-IO-Data'!AO38","v":0},{"$f":"CV225*'Philippines-IO-Data'!$AO38","v":71.716457167703609},{"$f":"CW225*'Philippines-IO-Data'!$AO38","v":409.00456434893346},{"$f":"(DA225*'Default-Data'!$F$19/geo_dollar_index)/'Philippines-IO-Data'!$AP38","v":0},{"$f":"(DB225*'Default-Data'!$F$19/geo_dollar_index)/'Philippines-IO-Data'!$AP38","v":1.871337800470942E-2},{"$f":"(DC225*'Default-Data'!$F$19/geo_dollar_index)/'Philippines-IO-Data'!$AP38","v":0.10672385838044275},null,"DOM_C70: Real estate activities",0,0,null,1986424.8007774365,3393399.7586021116,{"$f":"DI225*'SouthAfrica-IO-Data'!AR38","v":0},{"$f":"DL225*'SouthAfrica-IO-Data'!$AR38","v":1168085.4849618173},{"$f":"DM225*'SouthAfrica-IO-Data'!$AR38","v":1995434.7132319016},{"$f":"DI225*'SouthAfrica-IO-Data'!AS38","v":0},{"$f":"DL225*'SouthAfrica-IO-Data'!$AS38","v":71785.36785726386},{"$f":"DM225*'SouthAfrica-IO-Data'!$AS38","v":122630.59233989903},{"$f":"(DQ225*'Default-Data'!$F$19/geo_dollar_index)/'SouthAfrica-IO-Data'!$AT38","v":0},{"$f":"(DR225*'Default-Data'!$F$19/geo_dollar_index)/'SouthAfrica-IO-Data'!$AT38","v":4.61482540687427},{"$f":"(DS225*'Default-Data'!$F$19/geo_dollar_index)/'SouthAfrica-IO-Data'!$AT38","v":7.8834836413385156},6110.2494915685838,30322.281990626972,{"$f":"DJ225*'SouthAfrica-IO-Data'!AR38","v":0},{"$f":"DW225*'SouthAfrica-IO-Data'!$AR38","v":3593.0349529482464},{"$f":"DX225*'SouthAfrica-IO-Data'!$AR38","v":17830.535266327915},{"$f":"DJ225*'SouthAfrica-IO-Data'!$AS38","v":0},{"$f":"DZ225*'SouthAfrica-IO-Data'!$AS38","v":129.84500380807287},{"$f":"EA225*'SouthAfrica-IO-Data'!$AS38","v":644.35942034368338},{"$f":"(EB225*'Default-Data'!$F$19/geo_dollar_index)/'SouthAfrica-IO-Data'!$AT38","v":0},{"$f":"(EC225*'Default-Data'!$F$19/geo_dollar_index)/'SouthAfrica-IO-Data'!$AT38","v":8.3472724374783237E-3},{"$f":"(ED225*'Default-Data'!$F$19/geo_dollar_index)/'SouthAfrica-IO-Data'!$AT38","v":4.1423570191538875E-2},null,"FIRE",0,0,null,6096191.996565572,1979272.2018775307,{"$f":"EJ225*'Zambia-IO-Data'!BO36","v":0},{"$f":"EM225*'Zambia-IO-Data'!$BO36","v":1270011.5375531337},{"$f":"EN225*'Zambia-IO-Data'!$BO36","v":412339.13462023641},{"$f":"EJ225*'Zambia-IO-Data'!BN36","v":0},{"$f":"EM225*'Zambia-IO-Data'!$BN36","v":302627.99187404261},{"$f":"EN225*'Zambia-IO-Data'!$BN36","v":98255.299728709739},{"$f":"(ER225*'Default-Data'!$F$19/geo_dollar_index)/'Zambia-IO-Data'!$BP36","v":0},{"$f":"(ES225*'Default-Data'!$F$19/geo_dollar_index)/'Zambia-IO-Data'!$BP36","v":309.38169851501732},{"$f":"(ET225*'Default-Data'!$F$19/geo_dollar_index)/'Zambia-IO-Data'!$BP36","v":100.44804953410427},62276.865378293034,3319.5225519184751,{"$f":"EK225*'Zambia-IO-Data'!BO36","v":0},{"$f":"EX225*'Zambia-IO-Data'!$BO36","v":12974.056197316935},{"$f":"EY225*'Zambia-IO-Data'!$BO36","v":691.55170022193681},{"$f":"EK225*'Zambia-IO-Data'!BN36","v":0},{"$f":"EX225*'Zambia-IO-Data'!$BN36","v":3091.5566176820935},{"$f":"EY225*'Zambia-IO-Data'!$BN36","v":164.78818981318807},{"$f":"(FC225*'Default-Data'!$F$19/geo_dollar_index)/'Zambia-IO-Data'!$BP36","v":0},{"$f":"(FD225*'Default-Data'!$F$19/geo_dollar_index)/'Zambia-IO-Data'!$BP36","v":3.1605504550680252},{"$f":"(FE225*'Default-Data'!$F$19/geo_dollar_index)/'Zambia-IO-Data'!$BP36","v":0.16846574483710913},null,"TTL_C70: Real estate activities",0,0,null,1320699.2547905273,2581701.4632564634,{"$f":"FK225*CustomRegion1!C34","v":0},{"$f":"FN225*CustomRegion1!$C34","v":1071708.4395214687},{"$f":"FO225*CustomRegion1!$C34","v":2094974.4890525565},{"$f":"FK225*CustomRegion1!D34","v":0},{"$f":"FN225*CustomRegion1!$D34","v":27467.353148899412},{"$f":"FO225*CustomRegion1!$D34","v":53693.151986780584},{"$f":"(FS225*'Default-Data'!$C$58/geo_dollar_index)/CustomRegion1!$E34","v":0},{"$f":"(FT225*'Default-Data'!$C$58/geo_dollar_index)/CustomRegion1!$E34","v":7.197159124065001},{"$f":"(FU225*'Default-Data'!$C$58/geo_dollar_index)/CustomRegion1!$E34","v":14.068998808389036},5211.8003346951291,23781.829392259009,{"$f":"FL225*CustomRegion1!C34","v":0},{"$f":"FY225*CustomRegion1!$C34","v":4229.2220454682483},{"$f":"FZ225*CustomRegion1!$C34","v":19298.252175500893},{"$f":"FL225*CustomRegion1!D34","v":0},{"$f":"FY225*CustomRegion1!$D34","v":108.3928531157751},{"$f":"FZ225*CustomRegion1!$D34","v":494.60458471119546},{"$f":"(GD225*'Default-Data'!$C$58/geo_dollar_index)/CustomRegion1!$E34","v":0},{"$f":"(GE225*'Default-Data'!$C$58/geo_dollar_index)/CustomRegion1!$E34","v":2.8401739605437622E-2},{"$f":"(GF225*'Default-Data'!$C$58/geo_dollar_index)/CustomRegion1!$E34","v":0.12959923296435996},null,"C64 Post and telecommunications",0,0,null,414919.18773761846,277683.36640209774,{"$f":"GL225*CustomRegion2!C38","v":0},{"$f":"GO225*CustomRegion2!$C38","v":255077.58603465016},{"$f":"GP225*CustomRegion2!$C38","v":170709.87526518895},{"$f":"GL225*CustomRegion2!D38","v":0},{"$f":"GO225*CustomRegion2!$D38","v":69806.119454698826},{"$f":"GP225*CustomRegion2!$D38","v":46717.526734159022},{"$f":"(GT225*'Default-Data'!$C$59/geo_dollar_index)/CustomRegion2!$E38","v":0},{"$f":"(GU225*'Default-Data'!$C$59/geo_dollar_index)/CustomRegion2!$E38","v":5.8301722891810988},{"$f":"(GV225*'Default-Data'!$C$59/geo_dollar_index)/CustomRegion2!$E38","v":3.9018245379092913},1782.0634464874611,2885.4133421436891,{"$f":"GM225*CustomRegion2!C38","v":0},{"$f":"GZ225*CustomRegion2!$C38","v":1095.5493395452766},{"$f":"HA225*CustomRegion2!$C38","v":1773.8496839331751},{"$f":"GM225*CustomRegion2!D38","v":0},{"$f":"GZ225*CustomRegion2!$D38","v":299.81484948828609},{"$f":"HA225*CustomRegion2!$D38","v":485.44274256421068},{"$f":"(HE225*'Default-Data'!$C$59/geo_dollar_index)/CustomRegion2!$E38","v":0},{"$f":"(HF225*'Default-Data'!$C$59/geo_dollar_index)/CustomRegion2!$E38","v":2.5040386731509497E-2},{"$f":"(HG225*'Default-Data'!$C$59/geo_dollar_index)/CustomRegion2!$E38","v":4.0543935800909585E-2},null,"FIRE",0,0,null,6096191.996565572,1979272.2018775307,{"$f":"HM225*CustomRegion3!D37","v":0},{"$f":"HP225*CustomRegion3!$D37","v":1270011.5375531337},{"$f":"HQ225*CustomRegion3!$D37","v":412339.13462023641},{"$f":"HM225*CustomRegion3!E37","v":0},{"$f":"HP225*CustomRegion3!E$12","v":1912513.6854624774},{"$f":"HQ225*CustomRegion3!F$12","v":204404215.23899233},{"$f":"(HU225*'Default-Data'!$C$60/geo_dollar_index)/CustomRegion3!$F37","v":0},{"$f":"(HV225*'Default-Data'!$C$60/geo_dollar_index)/CustomRegion3!$F37","v":1963.1137819148009},{"$f":"(HW225*'Default-Data'!$C$60/geo_dollar_index)/CustomRegion3!$F37","v":209812.21471370119},62276.865378293034,3319.5225519184751,{"$f":"HN225*CustomRegion3!D37","v":0},{"$f":"IA225*CustomRegion3!$D37","v":12974.056197316935},{"$f":"IB225*CustomRegion3!$D37","v":691.55170022193681},{"$f":"HN225*CustomRegion3!E37","v":0},{"$f":"IA225*CustomRegion3!$E37","v":3091.5566176820935},{"$f":"IB225*CustomRegion3!$E37","v":164.78818981318807},{"$f":"(IF225*'Default-Data'!$C$60/geo_dollar_index)/CustomRegion3!$F37","v":0},{"$f":"(IG225*'Default-Data'!$C$60/geo_dollar_index)/CustomRegion3!$F37","v":3.1733510980205208},{"$f":"(IH225*'Default-Data'!$C$60/geo_dollar_index)/CustomRegion3!$F37","v":0.16914805315018419}]
[null,null,null,null,null,null,null,null,null,null,null,null,null,null,null,null,null,null,null,null,null,null,null,null,null,null,null,null,null,225,"TTL_C71: Renting of machinery and equipment",0,0,null,99714.92217049576,41099.150109453592,{"$f":"AF226*'Colombia-IO-Data'!AN39","v":0},{"$f":"AI226*'Colombia-IO-Data'!$AN39","v":71959.435482723158},{"$f":"AJ226*'Colombia-IO-Data'!$AN39","v":29659.268405577259},{"$f":"'Colombia-IO-Data'!$AO39*AK226","v":0},{"$f":"'Colombia-IO-Data'!$AO39*AL226","v":27476.173180292222},{"$f":"'Colombia-IO-Data'!$AO39*AM226","v":11324.758034101955},{"$f":"(AN226*'Default-Data'!$F$19/geo_dollar_index)/'Colombia-IO-Data'!$AP39","v":0},{"$f":"(AO226*'Default-Data'!$F$19/geo_dollar_index)/'Colombia-IO-Data'!$AP39","v":6.3391768949124732},{"$f":"(AP226*'Default-Data'!$F$19/geo_dollar_index)/'Colombia-IO-Data'!$AP39","v":2.6127963308131252},987.90541096129618,1257.3754323904629,{"$f":"AG226*'Colombia-IO-Data'!AN39","v":0},{"$f":"AT226*'Colombia-IO-Data'!$AN39","v":712.92354379570259},{"$f":"AU226*'Colombia-IO-Data'!$AN39","v":907.38702227493116},{"$f":"AV226*'Colombia-IO-Data'!$AO39","v":0},{"$f":"AW226*'Colombia-IO-Data'!$AO39","v":272.21462511808312},{"$f":"AX226*'Colombia-IO-Data'!$AO39","v":346.46635008082478},{"$f":"(Calculations!AY226*'Default-Data'!$F$19/geo_dollar_index)/'Colombia-IO-Data'!$AP39","v":0},{"$f":"(Calculations!AZ226*'Default-Data'!$F$19/geo_dollar_index)/'Colombia-IO-Data'!$AP39","v":6.2804112155019562E-2},{"$f":"(Calculations!BA226*'Default-Data'!$F$19/geo_dollar_index)/'Colombia-IO-Data'!$AP39","v":7.9935130226663612E-2},null,"DOM_C71: Renting of machinery and equipment",0,0,null,173392.13167053624,67054.517255561659,{"$f":"BG226*'Mexico-IO-Data'!AQ39","v":0},{"$f":"BJ226*'Mexico-IO-Data'!$AQ39","v":142649.46790808064},{"$f":"BK226*'Mexico-IO-Data'!$AQ39","v":55165.658990306249},{"$f":"BG226*'Mexico-IO-Data'!AQ39","v":0},{"$f":"BJ226*'Mexico-IO-Data'!$AR39","v":6492.1417805726933},{"$f":"BK226*'Mexico-IO-Data'!$AR39","v":2510.6527548674098},{"$f":"(BO226*'Default-Data'!$F$19/geo_dollar_index)/'Mexico-IO-Data'!$AS39","v":0},{"$f":"(BP226*'Default-Data'!$F$19/geo_dollar_index)/'Mexico-IO-Data'!$AS39","v":2.8684544291705376},{"$f":"(BQ226*'Default-Data'!$F$19/geo_dollar_index)/'Mexico-IO-Data'!$AS39","v":1.1092938599029407},2854.7480923562125,385.60752134547783,{"$f":"BH226*'Mexico-IO-Data'!AQ39","v":0},{"$f":"BU226*'Mexico-IO-Data'!$AQ39","v":2348.597323666334},{"$f":"BV226*'Mexico-IO-Data'!$AQ39","v":317.23877670415254},{"$f":"BH226*'Mexico-IO-Data'!AR39","v":0},{"$f":"BU226*'Mexico-IO-Data'!$AR39","v":106.88737248245772},{"$f":"BV226*'Mexico-IO-Data'!$AR39","v":14.437902551350017},{"$f":"(BZ226*'Default-Data'!$F$19/geo_dollar_index)/'Mexico-IO-Data'!$AS39","v":0},{"$f":"(CA226*'Default-Data'!$F$19/geo_dollar_index)/'Mexico-IO-Data'!$AS39","v":4.7226565189502148E-2},{"$f":"(CB226*'Default-Data'!$F$19/geo_dollar_index)/'Mexico-IO-Data'!$AS39","v":6.379168373260519E-3},null,"TTL_C71: Renting of machinery and equipment",0,0,null,49057.003543946579,42484.014970599317,{"$f":"CH226*'Philippines-IO-Data'!AN39","v":0},{"$f":"CK226*'Philippines-IO-Data'!$AN39","v":24801.770935699969},{"$f":"CL226*'Philippines-IO-Data'!$AN39","v":21478.66220132542},{"$f":"CH226*'Philippines-IO-Data'!AO39","v":0},{"$f":"CK226*'Philippines-IO-Data'!$AO39","v":6779.8425430923207},{"$f":"CL226*'Philippines-IO-Data'!$AO39","v":5871.4334608923045},{"$f":"(CP226*'Default-Data'!$F$19/geo_dollar_index)/'Philippines-IO-Data'!$AP39","v":0},{"$f":"(CQ226*'Default-Data'!$F$19/geo_dollar_index)/'Philippines-IO-Data'!$AP39","v":1.7691023975795703},{"$f":"(CR226*'Default-Data'!$F$19/geo_dollar_index)/'Philippines-IO-Data'!$AP39","v":1.5320661131690307},195.95173256325518,377.16411142772529,{"$f":"CI226*'Philippines-IO-Data'!AN39","v":0},{"$f":"CV226*'Philippines-IO-Data'!$AN39","v":99.067403926000537},{"$f":"CW226*'Philippines-IO-Data'!$AN39","v":190.68302629648784},{"$f":"CI226*'Philippines-IO-Data'!AO39","v":0},{"$f":"CV226*'Philippines-IO-Data'!$AO39","v":27.081187126214928},{"$f":"CW226*'Philippines-IO-Data'!$AO39","v":52.125346100574077},{"$f":"(DA226*'Default-Data'!$F$19/geo_dollar_index)/'Philippines-IO-Data'!$AP39","v":0},{"$f":"(DB226*'Default-Data'!$F$19/geo_dollar_index)/'Philippines-IO-Data'!$AP39","v":7.0664462736086051E-3},{"$f":"(DC226*'Default-Data'!$F$19/geo_dollar_index)/'Philippines-IO-Data'!$AP39","v":1.3601359349435679E-2},null,"DOM_C71: Renting of machinery and equipment",0,0,null,197792.8415580717,120803.01285168147,{"$f":"DI226*'SouthAfrica-IO-Data'!AR39","v":0},{"$f":"DL226*'SouthAfrica-IO-Data'!$AR39","v":84355.29450347423},{"$f":"DM226*'SouthAfrica-IO-Data'!$AR39","v":51520.437472549747},{"$f":"DI226*'SouthAfrica-IO-Data'!AS39","v":0},{"$f":"DL226*'SouthAfrica-IO-Data'!$AS39","v":27900.524133339855},{"$f":"DM226*'SouthAfrica-IO-Data'!$AS39","v":17040.39109251049},{"$f":"(DQ226*'Default-Data'!$F$19/geo_dollar_index)/'SouthAfrica-IO-Data'!$AT39","v":0},{"$f":"(DR226*'Default-Data'!$F$19/geo_dollar_index)/'SouthAfrica-IO-Data'!$AT39","v":1.793625239779514},{"$f":"(DS226*'Default-Data'!$F$19/geo_dollar_index)/'SouthAfrica-IO-Data'!$AT39","v":1.0954659996052958},1076.6104220649654,1079.4552017399146,{"$f":"DJ226*'SouthAfrica-IO-Data'!AR39","v":0},{"$f":"DW226*'SouthAfrica-IO-Data'!$AR39","v":459.15609737643547},{"$f":"DX226*'SouthAfrica-IO-Data'!$AR39","v":460.36934769119665},{"$f":"DJ226*'SouthAfrica-IO-Data'!$AS39","v":0},{"$f":"DZ226*'SouthAfrica-IO-Data'!$AS39","v":64.768247803650567},{"$f":"EA226*'SouthAfrica-IO-Data'!$AS39","v":64.939388070508201},{"$f":"(EB226*'Default-Data'!$F$19/geo_dollar_index)/'SouthAfrica-IO-Data'!$AT39","v":0},{"$f":"(EC226*'Default-Data'!$F$19/geo_dollar_index)/'SouthAfrica-IO-Data'!$AT39","v":4.1637197724935897E-3},{"$f":"(ED226*'Default-Data'!$F$19/geo_dollar_index)/'SouthAfrica-IO-Data'!$AT39","v":4.1747217701876629E-3},null,"PUBLIC",{"$f":"AF229","v":149771.78765937407},0,null,419961.62958561932,1581907.1737345366,{"$f":"EJ226*'Zambia-IO-Data'!BO37","v":32075.04113734448},{"$f":"EM226*'Zambia-IO-Data'!$BO37","v":89938.744509749944},{"$f":"EN226*'Zambia-IO-Data'!$BO37","v":338780.34352099057},{"$f":"EJ226*'Zambia-IO-Data'!BN37","v":20863.838832508663},{"$f":"EM226*'Zambia-IO-Data'!$BN37","v":58502.418195337988},{"$f":"EN226*'Zambia-IO-Data'!$BN37","v":220366.31088258847},{"$f":"(ER226*'Default-Data'!$F$19/geo_dollar_index)/'Zambia-IO-Data'!$BP37","v":50.165296539120483},{"$f":"(ES226*'Default-Data'!$F$19/geo_dollar_index)/'Zambia-IO-Data'!$BP37","v":140.66400630223282},{"$f":"(ET226*'Default-Data'!$F$19/geo_dollar_index)/'Zambia-IO-Data'!$BP37","v":529.85174115859706},263.10124102338148,2613.5571651233654,{"$f":"EK226*'Zambia-IO-Data'!BO37","v":0},{"$f":"EX226*'Zambia-IO-Data'!$BO37","v":56.345612621678278},{"$f":"EY226*'Zambia-IO-Data'!$BO37","v":559.71792081955925},{"$f":"EK226*'Zambia-IO-Data'!BN37","v":0},{"$f":"EX226*'Zambia-IO-Data'!$BN37","v":36.651107495820007},{"$f":"EY226*'Zambia-IO-Data'!$BN37","v":364.07948602908476},{"$f":"(FC226*'Default-Data'!$F$19/geo_dollar_index)/'Zambia-IO-Data'!$BP37","v":0},{"$f":"(FD226*'Default-Data'!$F$19/geo_dollar_index)/'Zambia-IO-Data'!$BP37","v":8.8124419037889867E-2},{"$f":"(FE226*'Default-Data'!$F$19/geo_dollar_index)/'Zambia-IO-Data'!$BP37","v":0.87539764503939721},null,"TTL_C71: Renting of machinery and equipment",0,0,null,175539.3358984169,156455.34295208214,{"$f":"FK226*CustomRegion1!C35","v":0},{"$f":"FN226*CustomRegion1!$C35","v":88747.499534032526},{"$f":"FO226*CustomRegion1!$C35","v":79099.196796391829},{"$f":"FK226*CustomRegion1!D35","v":0},{"$f":"FN226*CustomRegion1!$D35","v":24260.12539563511},{"$f":"FO226*CustomRegion1!$D35","v":21622.653517563176},{"$f":"(FS226*'Default-Data'!$C$58/geo_dollar_index)/CustomRegion1!$E35","v":0},{"$f":"(FT226*'Default-Data'!$C$58/geo_dollar_index)/CustomRegion1!$E35","v":6.3567822460225827},{"$f":"(FU226*'Default-Data'!$C$58/geo_dollar_index)/CustomRegion1!$E35","v":5.6656961887374875},955.6257942211314,1441.2178660272039,{"$f":"FL226*CustomRegion1!C35","v":0},{"$f":"FY226*CustomRegion1!$C35","v":483.13615460199634},{"$f":"FZ226*CustomRegion1!$C35","v":728.63715268756539},{"$f":"FL226*CustomRegion1!D35","v":0},{"$f":"FY226*CustomRegion1!$D35","v":132.07069219245645},{"$f":"FZ226*CustomRegion1!$D35","v":199.18114634137072},{"$f":"(GD226*'Default-Data'!$C$58/geo_dollar_index)/CustomRegion1!$E35","v":0},{"$f":"(GE226*'Default-Data'!$C$58/geo_dollar_index)/CustomRegion1!$E35","v":3.4605947729353929E-2},{"$f":"(GF226*'Default-Data'!$C$58/geo_dollar_index)/CustomRegion1!$E35","v":5.2190627795891675E-2},null,"C65T67 Finance and insurance",0,0,null,616335.784745579,247465.58051602193,{"$f":"GL226*CustomRegion2!C39","v":0},{"$f":"GO226*CustomRegion2!$C39","v":381284.23034162342},{"$f":"GP226*CustomRegion2!$C39","v":153089.80224480026},{"$f":"GL226*CustomRegion2!D39","v":0},{"$f":"GO226*CustomRegion2!$D39","v":119334.01566894383},{"$f":"GP226*CustomRegion2!$D39","v":47913.916721570124},{"$f":"(GT226*'Default-Data'!$C$59/geo_dollar_index)/CustomRegion2!$E39","v":0},{"$f":"(GU226*'Default-Data'!$C$59/geo_dollar_index)/CustomRegion2!$E39","v":9.3364112887350359},{"$f":"(GV226*'Default-Data'!$C$59/geo_dollar_index)/CustomRegion2!$E39","v":3.7486715791731884},9011.9493464235966,2571.4197324599591,{"$f":"GM226*CustomRegion2!C39","v":0},{"$f":"GZ226*CustomRegion2!$C39","v":5575.0684212620099},{"$f":"HA226*CustomRegion2!$C39","v":1590.7591573333377},{"$f":"GM226*CustomRegion2!D39","v":0},{"$f":"GZ226*CustomRegion2!$D39","v":1744.8801953918282},{"$f":"HA226*CustomRegion2!$D39","v":497.87445454181739},{"$f":"(HE226*'Default-Data'!$C$59/geo_dollar_index)/CustomRegion2!$E39","v":0},{"$f":"(HF226*'Default-Data'!$C$59/geo_dollar_index)/CustomRegion2!$E39","v":0.1365153017136429},{"$f":"(HG226*'Default-Data'!$C$59/geo_dollar_index)/CustomRegion2!$E39","v":3.8952520383228315E-2},null,"PUBLIC",149771.78765937407,0,null,419961.62958561932,1581907.1737345366,{"$f":"HM226*CustomRegion3!D38","v":32075.04113734448},{"$f":"HP226*CustomRegion3!$D38","v":89938.744509749944},{"$f":"HQ226*CustomRegion3!$D38","v":338780.34352099057},{"$f":"HM226*CustomRegion3!E38","v":20863.838832508663},{"$f":"HP226*CustomRegion3!E$12","v":131751.48755224762},{"$f":"HQ226*CustomRegion3!F$12","v":163367370.14818528},{"$f":"(HU226*'Default-Data'!$C$60/geo_dollar_index)/CustomRegion3!$F38","v":50.368472555049493},{"$f":"(HV226*'Default-Data'!$C$60/geo_dollar_index)/CustomRegion3!$F38","v":318.06808124506603},{"$f":"(HW226*'Default-Data'!$C$60/geo_dollar_index)/CustomRegion3!$F38","v":394393.61882331426},263.10124102338148,2613.5571651233654,{"$f":"HN226*CustomRegion3!D38","v":0},{"$f":"IA226*CustomRegion3!$D38","v":56.345612621678278},{"$f":"IB226*CustomRegion3!$D38","v":559.71792081955925},{"$f":"HN226*CustomRegion3!E38","v":0},{"$f":"IA226*CustomRegion3!$E38","v":36.651107495820007},{"$f":"IB226*CustomRegion3!$E38","v":364.07948602908476},{"$f":"(IF226*'Default-Data'!$C$60/geo_dollar_index)/CustomRegion3!$F38","v":0},{"$f":"(IG226*'Default-Data'!$C$60/geo_dollar_index)/CustomRegion3!$F38","v":8.8481334467507916E-2},{"$f":"(IH226*'Default-Data'!$C$60/geo_dollar_index)/CustomRegion3!$F38","v":0.87894312006183706}]
[null,null,null,null,null,null,null,null,null,null,null,null,null,null,null,null,null,null,null,null,null,null,null,null,null,null,null,null,null,226,"TTL_C72: Computer and related activities",0,0,null,534065.43983364489,161561.67481046345,{"$f":"AF227*'Colombia-IO-Data'!AN40","v":0},{"$f":"AI227*'Colombia-IO-Data'!$AN40","v":381236.8720920051},{"$f":"AJ227*'Colombia-IO-Data'!$AN40","v":115329.0644941795},{"$f":"'Colombia-IO-Data'!$AO40*AK227","v":0},{"$f":"'Colombia-IO-Data'!$AO40*AL227","v":147160.36754540214},{"$f":"'Colombia-IO-Data'!$AO40*AM227","v":44517.906745218941},{"$f":"(AN227*'Default-Data'!$F$19/geo_dollar_index)/'Colombia-IO-Data'!$AP40","v":0},{"$f":"(AO227*'Default-Data'!$F$19/geo_dollar_index)/'Colombia-IO-Data'!$AP40","v":14.519560940629203},{"$f":"(AP227*'Default-Data'!$F$19/geo_dollar_index)/'Colombia-IO-Data'!$AP40","v":4.3923542100221526},1872.9868234277333,2932.2794817275826,{"$f":"AG227*'Colombia-IO-Data'!AN40","v":0},{"$f":"AT227*'Colombia-IO-Data'!$AN40","v":1337.0115060348191},{"$f":"AU227*'Colombia-IO-Data'!$AN40","v":2093.1761809219483},{"$f":"AV227*'Colombia-IO-Data'!$AO40","v":0},{"$f":"AW227*'Colombia-IO-Data'!$AO40","v":516.09673419267824},{"$f":"AX227*'Colombia-IO-Data'!$AO40","v":807.98211996508201},{"$f":"(Calculations!AY227*'Default-Data'!$F$19/geo_dollar_index)/'Colombia-IO-Data'!$AP40","v":0},{"$f":"(Calculations!AZ227*'Default-Data'!$F$19/geo_dollar_index)/'Colombia-IO-Data'!$AP40","v":5.0920625630120141E-2},{"$f":"(Calculations!BA227*'Default-Data'!$F$19/geo_dollar_index)/'Colombia-IO-Data'!$AP40","v":7.9719464047630556E-2},null,"DOM_C72: Computer and related activities",0,0,null,74991.000861550157,18511.570524106501,{"$f":"BG227*'Mexico-IO-Data'!AQ40","v":0},{"$f":"BJ227*'Mexico-IO-Data'!$AQ40","v":53143.210373246206},{"$f":"BK227*'Mexico-IO-Data'!$AQ40","v":13118.431217073899},{"$f":"BG227*'Mexico-IO-Data'!AQ40","v":0},{"$f":"BJ227*'Mexico-IO-Data'!$AR40","v":31326.101669143176},{"$f":"BK227*'Mexico-IO-Data'!$AR40","v":7732.8657256393772},{"$f":"(BO227*'Default-Data'!$F$19/geo_dollar_index)/'Mexico-IO-Data'!$AS40","v":0},{"$f":"(BP227*'Default-Data'!$F$19/geo_dollar_index)/'Mexico-IO-Data'!$AS40","v":2.6163403911605712},{"$f":"(BQ227*'Default-Data'!$F$19/geo_dollar_index)/'Mexico-IO-Data'!$AS40","v":0.64584508953886954},177.83346585533883,106.45369049198047,{"$f":"BH227*'Mexico-IO-Data'!AQ40","v":0},{"$f":"BU227*'Mexico-IO-Data'!$AQ40","v":126.02367189100096},{"$f":"BV227*'Mexico-IO-Data'!$AQ40","v":75.439596802666458},{"$f":"BH227*'Mexico-IO-Data'!AR40","v":0},{"$f":"BU227*'Mexico-IO-Data'!$AR40","v":74.28663663051276},{"$f":"BV227*'Mexico-IO-Data'!$AR40","v":44.469057528169472},{"$f":"(BZ227*'Default-Data'!$F$19/geo_dollar_index)/'Mexico-IO-Data'!$AS40","v":0},{"$f":"(CA227*'Default-Data'!$F$19/geo_dollar_index)/'Mexico-IO-Data'!$AS40","v":6.2043828495687518E-3},{"$f":"(CB227*'Default-Data'!$F$19/geo_dollar_index)/'Mexico-IO-Data'!$AS40","v":3.7140335109872979E-3},null,"TTL_C72: Computer and related activities",0,0,null,446766.08927873144,145757.06066411786,{"$f":"CH227*'Philippines-IO-Data'!AN40","v":0},{"$f":"CK227*'Philippines-IO-Data'!$AN40","v":223235.09660085963},{"$f":"CL227*'Philippines-IO-Data'!$AN40","v":72830.262408997703},{"$f":"CH227*'Philippines-IO-Data'!AO40","v":0},{"$f":"CK227*'Philippines-IO-Data'!$AO40","v":77857.655263823952},{"$f":"CL227*'Philippines-IO-Data'!$AO40","v":25400.994510966808},{"$f":"(CP227*'Default-Data'!$F$19/geo_dollar_index)/'Philippines-IO-Data'!$AP40","v":0},{"$f":"(CQ227*'Default-Data'!$F$19/geo_dollar_index)/'Philippines-IO-Data'!$AP40","v":20.315835319433759},{"$f":"(CR227*'Default-Data'!$F$19/geo_dollar_index)/'Philippines-IO-Data'!$AP40","v":6.6280241767622083},3465.8661092363386,1294.0003977435658,{"$f":"CI227*'Philippines-IO-Data'!AN40","v":0},{"$f":"CV227*'Philippines-IO-Data'!$AN40","v":1731.7853218226608},{"$f":"CW227*'Philippines-IO-Data'!$AN40","v":646.57168644600472},{"$f":"CI227*'Philippines-IO-Data'!AO40","v":0},{"$f":"CV227*'Philippines-IO-Data'!$AO40","v":603.99438363626894},{"$f":"CW227*'Philippines-IO-Data'!$AO40","v":225.50466406575094},{"$f":"(DA227*'Default-Data'!$F$19/geo_dollar_index)/'Philippines-IO-Data'!$AP40","v":0},{"$f":"(DB227*'Default-Data'!$F$19/geo_dollar_index)/'Philippines-IO-Data'!$AP40","v":0.15760364719741071},{"$f":"(DC227*'Default-Data'!$F$19/geo_dollar_index)/'Philippines-IO-Data'!$AP40","v":5.8842198668840558E-2},null,"DOM_C72: Computer and related activities",0,0,null,49779.322882956352,19061.699856373023,{"$f":"DI227*'SouthAfrica-IO-Data'!AR40","v":0},{"$f":"DL227*'SouthAfrica-IO-Data'!$AR40","v":24871.422803392095},{"$f":"DM227*'SouthAfrica-IO-Data'!$AR40","v":9523.8659150491021},{"$f":"DI227*'SouthAfrica-IO-Data'!AS40","v":0},{"$f":"DL227*'SouthAfrica-IO-Data'!$AS40","v":18804.035866754275},{"$f":"DM227*'SouthAfrica-IO-Data'!$AS40","v":7200.5175446704643},{"$f":"(DQ227*'Default-Data'!$F$19/geo_dollar_index)/'SouthAfrica-IO-Data'!$AT40","v":0},{"$f":"(DR227*'Default-Data'!$F$19/geo_dollar_index)/'SouthAfrica-IO-Data'!$AT40","v":1.2088444352924186},{"$f":"(DS227*'Default-Data'!$F$19/geo_dollar_index)/'SouthAfrica-IO-Data'!$AT40","v":0.46289560532532381},163.40316580027655,170.32895602719594,{"$f":"DJ227*'SouthAfrica-IO-Data'!AR40","v":0},{"$f":"DW227*'SouthAfrica-IO-Data'!$AR40","v":81.641713640563196},{"$f":"DX227*'SouthAfrica-IO-Data'!$AR40","v":85.102071214858171},{"$f":"DJ227*'SouthAfrica-IO-Data'!$AS40","v":0},{"$f":"DZ227*'SouthAfrica-IO-Data'!$AS40","v":30.839987822455054},{"$f":"EA227*'SouthAfrica-IO-Data'!$AS40","v":32.147130711719143},{"$f":"(EB227*'Default-Data'!$F$19/geo_dollar_index)/'SouthAfrica-IO-Data'!$AT40","v":0},{"$f":"(EC227*'Default-Data'!$F$19/geo_dollar_index)/'SouthAfrica-IO-Data'!$AT40","v":1.9825928820723796E-3},{"$f":"(ED227*'Default-Data'!$F$19/geo_dollar_index)/'SouthAfrica-IO-Data'!$AT40","v":2.0666244388624104E-3},null,"LNONE",0,0,null,0,4499396.1982647115,{"$f":"EJ227*'Zambia-IO-Data'!BO38","v":0},{"$f":"EM227*'Zambia-IO-Data'!$BO38","v":0},{"$f":"EN227*'Zambia-IO-Data'!$BO38","v":0},{"$f":"EJ227*'Zambia-IO-Data'!BN38","v":0},{"$f":"EM227*'Zambia-IO-Data'!$BN38","v":0},{"$f":"EN227*'Zambia-IO-Data'!$BN38","v":0},0,0,0,0,5432.3405883541309,{"$f":"EK227*'Zambia-IO-Data'!BO38","v":0},{"$f":"EX227*'Zambia-IO-Data'!$BO38","v":0},{"$f":"EY227*'Zambia-IO-Data'!$BO38","v":0},{"$f":"EK227*'Zambia-IO-Data'!BN38","v":0},{"$f":"EX227*'Zambia-IO-Data'!$BN38","v":0},{"$f":"EY227*'Zambia-IO-Data'!$BN38","v":0},0,0,0,null,"TTL_C72: Computer and related activities",0,0,null,1328858.743666844,474464.93268455728,{"$f":"FK227*CustomRegion1!C36","v":0},{"$f":"FN227*CustomRegion1!$C36","v":663989.31595340976},{"$f":"FO227*CustomRegion1!$C36","v":237075.34574200225},{"$f":"FK227*CustomRegion1!D36","v":0},{"$f":"FN227*CustomRegion1!$D36","v":231579.40685642074},{"$f":"FO227*CustomRegion1!$D36","v":82684.715895437781},{"$f":"(FS227*'Default-Data'!$C$58/geo_dollar_index)/CustomRegion1!$E36","v":0},{"$f":"(FT227*'Default-Data'!$C$58/geo_dollar_index)/CustomRegion1!$E36","v":60.679812574843353},{"$f":"(FU227*'Default-Data'!$C$58/geo_dollar_index)/CustomRegion1!$E36","v":21.665540694860049},11569.063845907656,4370.623111272138,{"$f":"FL227*CustomRegion1!C36","v":0},{"$f":"FY227*CustomRegion1!$C36","v":5780.7007899640412},{"$f":"FZ227*CustomRegion1!$C36","v":2183.8642096268718},{"$f":"FL227*CustomRegion1!D36","v":0},{"$f":"FY227*CustomRegion1!$D36","v":2016.1337358751232},{"$f":"FZ227*CustomRegion1!$D36","v":761.6658373398335},{"$f":"(GD227*'Default-Data'!$C$58/geo_dollar_index)/CustomRegion1!$E36","v":0},{"$f":"(GE227*'Default-Data'!$C$58/geo_dollar_index)/CustomRegion1!$E36","v":0.52827934434848589},{"$f":"(GF227*'Default-Data'!$C$58/geo_dollar_index)/CustomRegion1!$E36","v":0.1995762096545019},null,"C70 Real estate activities",0,0,null,523105.02717204881,823432.22250151844,{"$f":"GL227*CustomRegion2!C40","v":0},{"$f":"GO227*CustomRegion2!$C40","v":468529.76096250908},{"$f":"GP227*CustomRegion2!$C40","v":737523.98149019107},{"$f":"GL227*CustomRegion2!D40","v":0},{"$f":"GO227*CustomRegion2!$D40","v":4611.6811172352473},{"$f":"GP227*CustomRegion2!$D40","v":7259.3583211433015},{"$f":"(GT227*'Default-Data'!$C$59/geo_dollar_index)/CustomRegion2!$E40","v":0},{"$f":"(GU227*'Default-Data'!$C$59/geo_dollar_index)/CustomRegion2!$E40","v":2.0376013916148112},{"$f":"(GV227*'Default-Data'!$C$59/geo_dollar_index)/CustomRegion2!$E40","v":3.2074374271263406},1430.4446832387769,8556.3004797213598,{"$f":"GM227*CustomRegion2!C40","v":0},{"$f":"GZ227*CustomRegion2!$C40","v":1281.2071585913586},{"$f":"HA227*CustomRegion2!$C40","v":7663.626251423374},{"$f":"GM227*CustomRegion2!D40","v":0},{"$f":"GZ227*CustomRegion2!$D40","v":12.610765319164395},{"$f":"HA227*CustomRegion2!$D40","v":75.432135624924655},{"$f":"(HE227*'Default-Data'!$C$59/geo_dollar_index)/CustomRegion2!$E40","v":0},{"$f":"(HF227*'Default-Data'!$C$59/geo_dollar_index)/CustomRegion2!$E40","v":5.5718754854112776E-3},{"$f":"(HG227*'Default-Data'!$C$59/geo_dollar_index)/CustomRegion2!$E40","v":3.3328545624587508E-2},null,"LNONE",0,0,null,0,4499396.1982647115,{"$f":"HM227*CustomRegion3!D39","v":0},{"$f":"HP227*CustomRegion3!$D39","v":0},{"$f":"HQ227*CustomRegion3!$D39","v":0},{"$f":"HM227*CustomRegion3!E39","v":0},{"$f":"HP227*CustomRegion3!E$12","v":0},{"$f":"HQ227*CustomRegion3!F$12","v":464663500.09017658},0,0,0,0,5432.3405883541309,{"$f":"HN227*CustomRegion3!D39","v":0},{"$f":"IA227*CustomRegion3!$D39","v":0},{"$f":"IB227*CustomRegion3!$D39","v":0},{"$f":"HN227*CustomRegion3!E39","v":0},{"$f":"IA227*CustomRegion3!$E39","v":0},{"$f":"IB227*CustomRegion3!$E39","v":0},0,0,0]
[null,null,null,null,null,null,null,null,null,null,null,null,null,null,null,null,null,null,null,null,null,null,null,null,null,null,null,null,null,227,"TTL_C73T74: R&D and other business activities",{"$f":"0.5*('Geothermal-Inputs'!B25*'Geothermal-Inputs'!C25+'Geothermal-Inputs'!B29*'Geothermal-Inputs'!C29)","v":27683059.645699918},0,null,3720433.2347415574,1402315.6989888065,{"$f":"AF228*'Colombia-IO-Data'!AN41","v":20189744.216780428},{"$f":"AI228*'Colombia-IO-Data'!$AN41","v":2713377.6521233921},{"$f":"AJ228*'Colombia-IO-Data'!$AN41","v":1022733.600841607},{"$f":"'Colombia-IO-Data'!$AO41*AK228","v":7570914.9456478888},{"$f":"'Colombia-IO-Data'!$AO41*AL228","v":1017484.4811839737},{"$f":"'Colombia-IO-Data'!$AO41*AM228","v":383512.98663766589},{"$f":"(AN228*'Default-Data'!$F$19/geo_dollar_index)/'Colombia-IO-Data'!$AP41","v":746.98346275698395},{"$f":"(AO228*'Default-Data'!$F$19/geo_dollar_index)/'Colombia-IO-Data'!$AP41","v":100.38999070953854},{"$f":"(AP228*'Default-Data'!$F$19/geo_dollar_index)/'Colombia-IO-Data'!$AP41","v":37.83926524436221},25994.096018907541,35188.496400682088,{"$f":"AG228*'Colombia-IO-Data'!AN41","v":0},{"$f":"AT228*'Colombia-IO-Data'!$AN41","v":18957.953220669177},{"$f":"AU228*'Colombia-IO-Data'!$AN41","v":25663.591770399758},{"$f":"AV228*'Colombia-IO-Data'!$AO41","v":0},{"$f":"AW228*'Colombia-IO-Data'!$AO41","v":7109.007911945987},{"$f":"AX228*'Colombia-IO-Data'!$AO41","v":9623.5429437505463},{"$f":"(Calculations!AY228*'Default-Data'!$F$19/geo_dollar_index)/'Colombia-IO-Data'!$AP41","v":0},{"$f":"(Calculations!AZ228*'Default-Data'!$F$19/geo_dollar_index)/'Colombia-IO-Data'!$AP41","v":0.70140945776769315},{"$f":"(Calculations!BA228*'Default-Data'!$F$19/geo_dollar_index)/'Colombia-IO-Data'!$AP41","v":0.94950577093006128},null,"DOM_C73T74: R&D and other business activities",27683059.645699918,0,null,5373737.8666860349,1423537.8587213494,{"$f":"BG228*'Mexico-IO-Data'!AQ41","v":20794010.479289263},{"$f":"BJ228*'Mexico-IO-Data'!$AQ41","v":4036459.948536796},{"$f":"BK228*'Mexico-IO-Data'!$AQ41","v":1069284.3034969491},{"$f":"BG228*'Mexico-IO-Data'!AQ41","v":20794010.479289263},{"$f":"BJ228*'Mexico-IO-Data'!$AR41","v":1785424.2644955998},{"$f":"BK228*'Mexico-IO-Data'!$AR41","v":472970.41602005303},{"$f":"(BO228*'Default-Data'!$F$19/geo_dollar_index)/'Mexico-IO-Data'!$AS41","v":5606.9276593925497},{"$f":"(BP228*'Default-Data'!$F$19/geo_dollar_index)/'Mexico-IO-Data'!$AS41","v":481.42443240189925},{"$f":"(BQ228*'Default-Data'!$F$19/geo_dollar_index)/'Mexico-IO-Data'!$AS41","v":127.53244066595654},30574.757963126554,8186.2777887265183,{"$f":"BH228*'Mexico-IO-Data'!AQ41","v":0},{"$f":"BU228*'Mexico-IO-Data'!$AQ41","v":22966.09715919687},{"$f":"BV228*'Mexico-IO-Data'!$AQ41","v":6149.0871422369582},{"$f":"BH228*'Mexico-IO-Data'!AR41","v":0},{"$f":"BU228*'Mexico-IO-Data'!$AR41","v":10158.46252696189},{"$f":"BV228*'Mexico-IO-Data'!$AR41","v":2719.8905794240632},{"$f":"(BZ228*'Default-Data'!$F$19/geo_dollar_index)/'Mexico-IO-Data'!$AS41","v":0},{"$f":"(CA228*'Default-Data'!$F$19/geo_dollar_index)/'Mexico-IO-Data'!$AS41","v":2.7391428207682695},{"$f":"(CB228*'Default-Data'!$F$19/geo_dollar_index)/'Mexico-IO-Data'!$AS41","v":0.73339530801348607},null,"TTL_C73T74: R&D and other business activities",27683059.645699918,0,null,1570072.6129874103,548297.06693274528,{"$f":"CH228*'Philippines-IO-Data'!AN41","v":13412436.837260926},{"$f":"CK228*'Philippines-IO-Data'!$AN41","v":760699.86559010763},{"$f":"CL228*'Philippines-IO-Data'!$AN41","v":265649.81878486788},{"$f":"CH228*'Philippines-IO-Data'!AO41","v":5248770.3929283665},{"$f":"CK228*'Philippines-IO-Data'!$AO41","v":297689.29992809106},{"$f":"CL228*'Philippines-IO-Data'!$AO41","v":103958.35750377706},{"$f":"(CP228*'Default-Data'!$F$19/geo_dollar_index)/'Philippines-IO-Data'!$AP41","v":1369.5911413068038},{"$f":"(CQ228*'Default-Data'!$F$19/geo_dollar_index)/'Philippines-IO-Data'!$AP41","v":77.677741170131227},{"$f":"(CR228*'Default-Data'!$F$19/geo_dollar_index)/'Philippines-IO-Data'!$AP41","v":27.126438164223568},14253.687770523456,4867.6655488242668,{"$f":"CI228*'Philippines-IO-Data'!AN41","v":0},{"$f":"CV228*'Philippines-IO-Data'!$AN41","v":6905.9088614823813},{"$f":"CW228*'Philippines-IO-Data'!$AN41","v":2358.382980569771},{"$f":"CI228*'Philippines-IO-Data'!AO41","v":0},{"$f":"CV228*'Philippines-IO-Data'!$AO41","v":2702.5312706570626},{"$f":"CW228*'Philippines-IO-Data'!$AO41","v":922.92033981564794},{"$f":"(DA228*'Default-Data'!$F$19/geo_dollar_index)/'Philippines-IO-Data'!$AP41","v":0},{"$f":"(DB228*'Default-Data'!$F$19/geo_dollar_index)/'Philippines-IO-Data'!$AP41","v":0.70518666474406166},{"$f":"(DC228*'Default-Data'!$F$19/geo_dollar_index)/'Philippines-IO-Data'!$AP41","v":0.24082278837085103},null,"DOM_C73T74: R&D and other business activities",27683059.645699918,0,null,3332371.9654779509,3177014.7131457478,{"$f":"DI228*'SouthAfrica-IO-Data'!AR41","v":11794297.935145063},{"$f":"DL228*'SouthAfrica-IO-Data'!$AR41","v":1419748.6944936351},{"$f":"DM228*'SouthAfrica-IO-Data'!$AR41","v":1353559.1278834958},{"$f":"DI228*'SouthAfrica-IO-Data'!AS41","v":7613947.5184028195},{"$f":"DL228*'SouthAfrica-IO-Data'!$AS41","v":916535.44014550967},{"$f":"DM228*'SouthAfrica-IO-Data'!$AS41","v":873805.98823521833},{"$f":"(DQ228*'Default-Data'!$F$19/geo_dollar_index)/'SouthAfrica-IO-Data'!$AT41","v":489.47354458638699},{"$f":"(DR228*'Default-Data'!$F$19/geo_dollar_index)/'SouthAfrica-IO-Data'!$AT41","v":58.920796281135139},{"$f":"(DS228*'Default-Data'!$F$19/geo_dollar_index)/'SouthAfrica-IO-Data'!$AT41","v":56.173872135123794},19926.48410393489,28388.737806730052,{"$f":"DJ228*'SouthAfrica-IO-Data'!AR41","v":0},{"$f":"DW228*'SouthAfrica-IO-Data'!$AR41","v":8489.6284344872365},{"$f":"DX228*'SouthAfrica-IO-Data'!$AR41","v":12094.950340769146},{"$f":"DJ228*'SouthAfrica-IO-Data'!$AS41","v":0},{"$f":"DZ228*'SouthAfrica-IO-Data'!$AS41","v":2334.9870346057191},{"$f":"EA228*'SouthAfrica-IO-Data'!$AS41","v":3326.5946145735811},{"$f":"(EB228*'Default-Data'!$F$19/geo_dollar_index)/'SouthAfrica-IO-Data'!$AT41","v":0},{"$f":"(EC228*'Default-Data'!$F$19/geo_dollar_index)/'SouthAfrica-IO-Data'!$AT41","v":0.15010799294706295},{"$f":"(ED228*'Default-Data'!$F$19/geo_dollar_index)/'SouthAfrica-IO-Data'!$AT41","v":0.21385490948838082},null,"LPRIM",0,0,null,0,8036911.790256721,{"$f":"EJ228*'Zambia-IO-Data'!BO39","v":0},{"$f":"EM228*'Zambia-IO-Data'!$BO39","v":0},{"$f":"EN228*'Zambia-IO-Data'!$BO39","v":0},{"$f":"EJ228*'Zambia-IO-Data'!BN39","v":0},{"$f":"EM228*'Zambia-IO-Data'!$BN39","v":0},{"$f":"EN228*'Zambia-IO-Data'!$BN39","v":0},0,0,0,0,11486.362267674631,{"$f":"EK228*'Zambia-IO-Data'!BO39","v":0},{"$f":"EX228*'Zambia-IO-Data'!$BO39","v":0},{"$f":"EY228*'Zambia-IO-Data'!$BO39","v":0},{"$f":"EK228*'Zambia-IO-Data'!BN39","v":0},{"$f":"EX228*'Zambia-IO-Data'!$BN39","v":0},{"$f":"EY228*'Zambia-IO-Data'!$BN39","v":0},0,0,0,null,"TTL_C73T74: R&D and other business activities",27683059.645699918,0,null,2157868.0931050964,823019.18846959993,{"$f":"FK228*CustomRegion1!C37","v":13412436.837260926},{"$f":"FN228*CustomRegion1!$C37","v":1045486.6576284845},{"$f":"FO228*CustomRegion1!$C37","v":398752.63148222578},{"$f":"FK228*CustomRegion1!D37","v":5248770.3929283665},{"$f":"FN228*CustomRegion1!$D37","v":409136.64543919527},{"$f":"FO228*CustomRegion1!$D37","v":156046.28984434454},{"$f":"(FS228*'Default-Data'!$C$58/geo_dollar_index)/CustomRegion1!$E37","v":1375.3140143792955},{"$f":"(FT228*'Default-Data'!$C$58/geo_dollar_index)/CustomRegion1!$E37","v":107.20441553830749},{"$f":"(FU228*'Default-Data'!$C$58/geo_dollar_index)/CustomRegion1!$E37","v":40.888176324871594},20835.10719352158,7581.3963021312302,{"$f":"FL228*CustomRegion1!C37","v":0},{"$f":"FY228*CustomRegion1!$C37","v":10094.605249823842},{"$f":"FZ228*CustomRegion1!$C37","v":3673.1849854022071},{"$f":"FL228*CustomRegion1!D37","v":0},{"$f":"FY228*CustomRegion1!$D37","v":3950.3832007901583},{"$f":"FZ228*CustomRegion1!$D37","v":1437.4497962642708},{"$f":"(GD228*'Default-Data'!$C$58/geo_dollar_index)/CustomRegion1!$E37","v":0},{"$f":"(GE228*'Default-Data'!$C$58/geo_dollar_index)/CustomRegion1!$E37","v":1.0351028853415098},{"$f":"(GF228*'Default-Data'!$C$58/geo_dollar_index)/CustomRegion1!$E37","v":0.37664913908835479},null,"C71 Renting of machinery and equipment",27683059.645699918,0,null,311641.51783944666,50063.093269381672,{"$f":"GL228*CustomRegion2!C41","v":23511779.388088726},{"$f":"GO228*CustomRegion2!$C41","v":264683.40961539443},{"$f":"GP228*CustomRegion2!$C41","v":42519.592107942779},{"$f":"GL228*CustomRegion2!D41","v":1054118.8209023459},{"$f":"GO228*CustomRegion2!$D41","v":11866.722592571619},{"$f":"GP228*CustomRegion2!$D41","v":1906.308389435633},{"$f":"(GT228*'Default-Data'!$C$59/geo_dollar_index)/CustomRegion2!$E41","v":465.74642127156829},{"$f":"(GU228*'Default-Data'!$C$59/geo_dollar_index)/CustomRegion2!$E41","v":5.2431314858618867},{"$f":"(GV228*'Default-Data'!$C$59/geo_dollar_index)/CustomRegion2!$E41","v":0.84227346349777821},5047.455445511554,520.2065904779156,{"$f":"GM228*CustomRegion2!C41","v":0},{"$f":"GZ228*CustomRegion2!$C41","v":4286.9054369323949},{"$f":"HA228*CustomRegion2!$C41","v":441.82192099009688},{"$f":"GM228*CustomRegion2!D41","v":0},{"$f":"GZ228*CustomRegion2!$D41","v":192.19760571538666},{"$f":"HA228*CustomRegion2!$D41","v":19.808488107830524},{"$f":"(HE228*'Default-Data'!$C$59/geo_dollar_index)/CustomRegion2!$E41","v":0},{"$f":"(HF228*'Default-Data'!$C$59/geo_dollar_index)/CustomRegion2!$E41","v":8.4919598496759952E-2},{"$f":"(HG228*'Default-Data'!$C$59/geo_dollar_index)/CustomRegion2!$E41","v":8.7520801868664864E-3},null,"LPRIM",0,0,null,0,8036911.790256721,{"$f":"HM228*CustomRegion3!D40","v":0},{"$f":"HP228*CustomRegion3!$D40","v":0},{"$f":"HQ228*CustomRegion3!$D40","v":0},{"$f":"HM228*CustomRegion3!E40","v":0},{"$f":"HP228*CustomRegion3!E$12","v":0},{"$f":"HQ228*CustomRegion3!F$12","v":829991269.454548},0,0,0,0,11486.362267674631,{"$f":"HN228*CustomRegion3!D40","v":0},{"$f":"IA228*CustomRegion3!$D40","v":0},{"$f":"IB228*CustomRegion3!$D40","v":0},{"$f":"HN228*CustomRegion3!E40","v":0},{"$f":"IA228*CustomRegion3!$E40","v":0},{"$f":"IB228*CustomRegion3!$E40","v":0},0,0,0]
[null,null,null,null,null,null,null,null,null,null,null,null,null,null,null,null,null,null,null,null,null,null,null,null,null,null,null,null,null,228,"TTL_C75: Public administration and defence; compulsory social security",{"$f":"'Geothermal-Inputs'!B31*'Geothermal-Inputs'!C31","v":149771.78765937407},0,null,2399.3727266045462,2780482.4175406741,{"$f":"AF229*'Colombia-IO-Data'!AN42","v":90688.831164137388},{"$f":"AI229*'Colombia-IO-Data'!$AN42","v":1452.8524464016875},{"$f":"AJ229*'Colombia-IO-Data'!$AN42","v":1683619.4884225007},{"$f":"'Colombia-IO-Data'!$AO42*AK229","v":76138.348055605034},{"$f":"'Colombia-IO-Data'!$AO42*AL229","v":1219.7509199050346},{"$f":"'Colombia-IO-Data'!$AO42*AM229","v":1413492.7637418222},{"$f":"(AN229*'Default-Data'!$F$19/geo_dollar_index)/'Colombia-IO-Data'!$AP42","v":7.5121814585786852},{"$f":"(AO229*'Default-Data'!$F$19/geo_dollar_index)/'Colombia-IO-Data'!$AP42","v":0.12034658590048498},{"$f":"(AP229*'Default-Data'!$F$19/geo_dollar_index)/'Colombia-IO-Data'!$AP42","v":139.46210290590577},14.972297670066878,18245.438247518585,{"$f":"AG229*'Colombia-IO-Data'!AN42","v":0},{"$f":"AT229*'Colombia-IO-Data'!$AN42","v":9.0659275472360168},{"$f":"AU229*'Colombia-IO-Data'!$AN42","v":11047.858175453543},{"$f":"AV229*'Colombia-IO-Data'!$AO42","v":0},{"$f":"AW229*'Colombia-IO-Data'!$AO42","v":7.6113534398634588},{"$f":"AX229*'Colombia-IO-Data'!$AO42","v":9275.295096804377},{"$f":"(Calculations!AY229*'Default-Data'!$F$19/geo_dollar_index)/'Colombia-IO-Data'!$AP42","v":0},{"$f":"(Calculations!AZ229*'Default-Data'!$F$19/geo_dollar_index)/'Colombia-IO-Data'!$AP42","v":7.5097332219335082E-4},{"$f":"(Calculations!BA229*'Default-Data'!$F$19/geo_dollar_index)/'Colombia-IO-Data'!$AP42","v":0.91514593668584598},null,"DOM_C75: Public administration and defence; compulsory social security",149771.78765937407,0,null,1093.7968335620826,1817038.0133942165,{"$f":"BG229*'Mexico-IO-Data'!AQ42","v":107328.6084479252},{"$f":"BJ229*'Mexico-IO-Data'!$AQ42","v":783.83047906163847},{"$f":"BK229*'Mexico-IO-Data'!$AQ42","v":1302115.468622956},{"$f":"BG229*'Mexico-IO-Data'!AQ42","v":107328.6084479252},{"$f":"BJ229*'Mexico-IO-Data'!$AR42","v":772.7226326791573},{"$f":"BK229*'Mexico-IO-Data'!$AR42","v":1283662.8835499291},{"$f":"(BO229*'Default-Data'!$F$19/geo_dollar_index)/'Mexico-IO-Data'!$AS42","v":76.617713067631371},{"$f":"(BP229*'Default-Data'!$F$19/geo_dollar_index)/'Mexico-IO-Data'!$AS42","v":0.55161658953401693},{"$f":"(BQ229*'Default-Data'!$F$19/geo_dollar_index)/'Mexico-IO-Data'!$AS42","v":916.3569332506147},14.243991545608729,10449.16216255874,{"$f":"BH229*'Mexico-IO-Data'!AQ42","v":0},{"$f":"BU229*'Mexico-IO-Data'!$AQ42","v":10.207448380138974},{"$f":"BV229*'Mexico-IO-Data'!$AQ42","v":7488.0192850789481},{"$f":"BH229*'Mexico-IO-Data'!AR42","v":0},{"$f":"BU229*'Mexico-IO-Data'!$AR42","v":10.062796224357246},{"$f":"BV229*'Mexico-IO-Data'!$AR42","v":7381.9047996773506},{"$f":"(BZ229*'Default-Data'!$F$19/geo_dollar_index)/'Mexico-IO-Data'!$AS42","v":0},{"$f":"(CA229*'Default-Data'!$F$19/geo_dollar_index)/'Mexico-IO-Data'!$AS42","v":7.1834382735887587E-3},{"$f":"(CB229*'Default-Data'!$F$19/geo_dollar_index)/'Mexico-IO-Data'!$AS42","v":5.2696543075806872},null,"TTL_C75: Public administration and defence; compulsory social security",149771.78765937407,0,null,35166.031461732899,1877320.2433272116,{"$f":"CH229*'Philippines-IO-Data'!AN42","v":83425.576066045876},{"$f":"CK229*'Philippines-IO-Data'!$AN42","v":19588.111209061477},{"$f":"CL229*'Philippines-IO-Data'!$AN42","v":1045701.097700823},{"$f":"CH229*'Philippines-IO-Data'!AO42","v":70853.96174741791},{"$f":"CK229*'Philippines-IO-Data'!$AO42","v":16636.328422979652},{"$f":"CL229*'Philippines-IO-Data'!$AO42","v":888121.71362257376},{"$f":"(CP229*'Default-Data'!$F$19/geo_dollar_index)/'Philippines-IO-Data'!$AP42","v":18.488322230002165},{"$f":"(CQ229*'Default-Data'!$F$19/geo_dollar_index)/'Philippines-IO-Data'!$AP42","v":4.3410106227320524},{"$f":"(CR229*'Default-Data'!$F$19/geo_dollar_index)/'Philippines-IO-Data'!$AP42","v":231.74258737217653},39.466414678109523,16666.45259234076,{"$f":"CI229*'Philippines-IO-Data'!AN42","v":0},{"$f":"CV229*'Philippines-IO-Data'!$AN42","v":21.983501908055516},{"$f":"CW229*'Philippines-IO-Data'!$AN42","v":9283.513472214654},{"$f":"CI229*'Philippines-IO-Data'!AO42","v":0},{"$f":"CV229*'Philippines-IO-Data'!$AO42","v":18.670751545479629},{"$f":"CW229*'Philippines-IO-Data'!$AO42","v":7884.5569843137009},{"$f":"(DA229*'Default-Data'!$F$19/geo_dollar_index)/'Philippines-IO-Data'!$AP42","v":0},{"$f":"(DB229*'Default-Data'!$F$19/geo_dollar_index)/'Philippines-IO-Data'!$AP42","v":4.871864075571157E-3},{"$f":"(DC229*'Default-Data'!$F$19/geo_dollar_index)/'Philippines-IO-Data'!$AP42","v":2.0573617419793484},null,"DOM_C75: Public administration and defence; compulsory social security",149771.78765937407,0,null,14415.087972282839,8936617.1542011239,{"$f":"DI229*'SouthAfrica-IO-Data'!AR42","v":92706.103957710235},{"$f":"DL229*'SouthAfrica-IO-Data'!$AR42","v":8922.6860746116599},{"$f":"DM229*'SouthAfrica-IO-Data'!$AR42","v":5531608.9356684154},{"$f":"DI229*'SouthAfrica-IO-Data'!AS42","v":81769.302003591933},{"$f":"DL229*'SouthAfrica-IO-Data'!$AS42","v":7870.0514979141781},{"$f":"DM229*'SouthAfrica-IO-Data'!$AS42","v":4879029.344526994},{"$f":"(DQ229*'Default-Data'!$F$19/geo_dollar_index)/'SouthAfrica-IO-Data'!$AT42","v":5.0318810666227787},{"$f":"(DR229*'Default-Data'!$F$19/geo_dollar_index)/'SouthAfrica-IO-Data'!$AT42","v":0.48430354858551938},{"$f":"(DS229*'Default-Data'!$F$19/geo_dollar_index)/'SouthAfrica-IO-Data'!$AT42","v":300.2434260860374},51.268473850292104,79854.613269492475,{"$f":"DJ229*'SouthAfrica-IO-Data'!AR42","v":0},{"$f":"DW229*'SouthAfrica-IO-Data'!$AR42","v":31.734284145207969},{"$f":"DX229*'SouthAfrica-IO-Data'!$AR42","v":49428.601974765639},{"$f":"DJ229*'SouthAfrica-IO-Data'!$AS42","v":0},{"$f":"DZ229*'SouthAfrica-IO-Data'!$AS42","v":17.325627908233745},{"$f":"EA229*'SouthAfrica-IO-Data'!$AS42","v":26986.005479764222},{"$f":"(EB229*'Default-Data'!$F$19/geo_dollar_index)/'SouthAfrica-IO-Data'!$AT42","v":0},{"$f":"(EC229*'Default-Data'!$F$19/geo_dollar_index)/'SouthAfrica-IO-Data'!$AT42","v":1.0661763877471153E-3},{"$f":"(ED229*'Default-Data'!$F$19/geo_dollar_index)/'SouthAfrica-IO-Data'!$AT42","v":1.6606521849903917},null,"LSECD",0,0,null,0,3933848.4287866824,{"$f":"EJ229*'Zambia-IO-Data'!BO40","v":0},{"$f":"EM229*'Zambia-IO-Data'!$BO40","v":0},{"$f":"EN229*'Zambia-IO-Data'!$BO40","v":0},{"$f":"EJ229*'Zambia-IO-Data'!BN40","v":0},{"$f":"EM229*'Zambia-IO-Data'!$BN40","v":0},{"$f":"EN229*'Zambia-IO-Data'!$BN40","v":0},0,0,0,0,11724.573204734797,{"$f":"EK229*'Zambia-IO-Data'!BO40","v":0},{"$f":"EX229*'Zambia-IO-Data'!$BO40","v":0},{"$f":"EY229*'Zambia-IO-Data'!$BO40","v":0},{"$f":"EK229*'Zambia-IO-Data'!BN40","v":0},{"$f":"EX229*'Zambia-IO-Data'!$BN40","v":0},{"$f":"EY229*'Zambia-IO-Data'!$BN40","v":0},0,0,0,null,"TTL_C75: Public administration and defence; compulsory social security",149771.78765937407,0,null,44182.933941696741,2125535.5816379874,{"$f":"FK229*CustomRegion1!C38","v":83425.576066045876},{"$f":"FN229*CustomRegion1!$C38","v":24610.687860367536},{"$f":"FO229*CustomRegion1!$C38","v":1183961.4998140703},{"$f":"FK229*CustomRegion1!D38","v":70853.96174741791},{"$f":"FN229*CustomRegion1!$D38","v":20902.040099257214},{"$f":"FO229*CustomRegion1!$D38","v":1005547.3006482979},{"$f":"(FS229*'Default-Data'!$C$58/geo_dollar_index)/CustomRegion1!$E38","v":18.565576177004679},{"$f":"(FT229*'Default-Data'!$C$58/geo_dollar_index)/CustomRegion1!$E38","v":5.4768767779129588},{"$f":"(FU229*'Default-Data'!$C$58/geo_dollar_index)/CustomRegion1!$E38","v":263.47948017808233},112.78576043316662,19579.771437217154,{"$f":"FL229*CustomRegion1!C38","v":0},{"$f":"FY229*CustomRegion1!$C38","v":62.823694523719972},{"$f":"FZ229*CustomRegion1!$C38","v":10906.284400546219},{"$f":"FL229*CustomRegion1!D38","v":0},{"$f":"FY229*CustomRegion1!$D38","v":53.35663064635164},{"$f":"FZ229*CustomRegion1!$D38","v":9262.7883937054685},{"$f":"(GD229*'Default-Data'!$C$58/geo_dollar_index)/CustomRegion1!$E38","v":0},{"$f":"(GE229*'Default-Data'!$C$58/geo_dollar_index)/CustomRegion1!$E38","v":1.3980821486657991E-2},{"$f":"(GF229*'Default-Data'!$C$58/geo_dollar_index)/CustomRegion1!$E38","v":2.4270908682263017},null,"C72 Computer and related activities",149771.78765937407,0,null,7116.0124932323524,3994.4689157349057,{"$f":"GL229*CustomRegion2!C42","v":77488.360375836026},{"$f":"GO229*CustomRegion2!$C42","v":3681.6555983734893},{"$f":"GP229*CustomRegion2!$C42","v":2066.6432022330778},{"$f":"GL229*CustomRegion2!D42","v":50762.162889318897},{"$f":"GO229*CustomRegion2!$D42","v":2411.8306321175855},{"$f":"GP229*CustomRegion2!$D42","v":1353.8456402617778},{"$f":"(GT229*'Default-Data'!$C$59/geo_dollar_index)/CustomRegion2!$E42","v":4.2396305327968333},{"$f":"(GU229*'Default-Data'!$C$59/geo_dollar_index)/CustomRegion2!$E42","v":0.20143489177471491},{"$f":"(GV229*'Default-Data'!$C$59/geo_dollar_index)/CustomRegion2!$E42","v":0.11307251280176342},44.142858708569307,41.506605359825869,{"$f":"GM229*CustomRegion2!C42","v":0},{"$f":"GZ229*CustomRegion2!$C42","v":22.83846508802181},{"$f":"HA229*CustomRegion2!$C42","v":21.474530312842205},{"$f":"GM229*CustomRegion2!D42","v":0},{"$f":"GZ229*CustomRegion2!$D42","v":14.961342314086586},{"$f":"HA229*CustomRegion2!$D42","v":14.067836774773816},{"$f":"(HE229*'Default-Data'!$C$59/geo_dollar_index)/CustomRegion2!$E42","v":0},{"$f":"(HF229*'Default-Data'!$C$59/geo_dollar_index)/CustomRegion2!$E42","v":1.249563849844811E-3},{"$f":"(HG229*'Default-Data'!$C$59/geo_dollar_index)/CustomRegion2!$E42","v":1.1749387127332755E-3},null,"LSECD",0,0,null,0,3933848.4287866824,{"$f":"HM229*CustomRegion3!D41","v":0},{"$f":"HP229*CustomRegion3!$D41","v":0},{"$f":"HQ229*CustomRegion3!$D41","v":0},{"$f":"HM229*CustomRegion3!E41","v":0},{"$f":"HP229*CustomRegion3!E$12","v":0},{"$f":"HQ229*CustomRegion3!F$12","v":406258017.56449819},0,0,0,0,11724.573204734797,{"$f":"HN229*CustomRegion3!D41","v":0},{"$f":"IA229*CustomRegion3!$D41","v":0},{"$f":"IB229*CustomRegion3!$D41","v":0},{"$f":"HN229*CustomRegion3!E41","v":0},{"$f":"IA229*CustomRegion3!$E41","v":0},{"$f":"IB229*CustomRegion3!$E41","v":0},0,0,0]
[null,null,null,null,null,null,null,null,null,null,null,null,null,null,null,null,null,null,null,null,null,null,null,null,null,null,null,null,null,229,"TTL_C80: Education",0,0,null,57692.035920390917,1619650.5152619025,{"$f":"AF230*'Colombia-IO-Data'!AN43","v":0},{"$f":"AI230*'Colombia-IO-Data'!$AN43","v":45482.417776058697},{"$f":"AJ230*'Colombia-IO-Data'!$AN43","v":1276876.7856971035},{"$f":"'Colombia-IO-Data'!$AO43*AK230","v":0},{"$f":"'Colombia-IO-Data'!$AO43*AL230","v":33483.916075452587},{"$f":"'Colombia-IO-Data'!$AO43*AM230","v":940029.95490448654},{"$f":"(AN230*'Default-Data'!$F$19/geo_dollar_index)/'Colombia-IO-Data'!$AP43","v":0},{"$f":"(AO230*'Default-Data'!$F$19/geo_dollar_index)/'Colombia-IO-Data'!$AP43","v":3.3036867744873852},{"$f":"(AP230*'Default-Data'!$F$19/geo_dollar_index)/'Colombia-IO-Data'!$AP43","v":92.747948676070408},566.60082864130561,11185.975143999578,{"$f":"AG230*'Colombia-IO-Data'!AN43","v":0},{"$f":"AT230*'Colombia-IO-Data'!$AN43","v":446.68861463106236},{"$f":"AU230*'Colombia-IO-Data'!$AN43","v":8818.6382507637773},{"$f":"AV230*'Colombia-IO-Data'!$AO43","v":0},{"$f":"AW230*'Colombia-IO-Data'!$AO43","v":328.84980208857257},{"$f":"AX230*'Colombia-IO-Data'!$AO43","v":6492.2349674159786},{"$f":"(Calculations!AY230*'Default-Data'!$F$19/geo_dollar_index)/'Colombia-IO-Data'!$AP43","v":0},{"$f":"(Calculations!AZ230*'Default-Data'!$F$19/geo_dollar_index)/'Colombia-IO-Data'!$AP43","v":3.2445928352725591E-2},{"$f":"(Calculations!BA230*'Default-Data'!$F$19/geo_dollar_index)/'Colombia-IO-Data'!$AP43","v":0.64055562528543952},null,"DOM_C80: Education",0,0,null,72260.587842297362,1631632.8194789002,{"$f":"BG230*'Mexico-IO-Data'!AQ43","v":0},{"$f":"BJ230*'Mexico-IO-Data'!$AQ43","v":64832.710742106698},{"$f":"BK230*'Mexico-IO-Data'!$AQ43","v":1463912.5113881775},{"$f":"BG230*'Mexico-IO-Data'!AQ43","v":0},{"$f":"BJ230*'Mexico-IO-Data'!$AR43","v":55910.410286775266},{"$f":"BK230*'Mexico-IO-Data'!$AR43","v":1262448.3566826866},{"$f":"(BO230*'Default-Data'!$F$19/geo_dollar_index)/'Mexico-IO-Data'!$AS43","v":0},{"$f":"(BP230*'Default-Data'!$F$19/geo_dollar_index)/'Mexico-IO-Data'!$AS43","v":13.991989713256636},{"$f":"(BQ230*'Default-Data'!$F$19/geo_dollar_index)/'Mexico-IO-Data'!$AS43","v":315.93694858647956},583.96591817970454,9382.9605076011321,{"$f":"BH230*'Mexico-IO-Data'!AQ43","v":0},{"$f":"BU230*'Mexico-IO-Data'!$AQ43","v":523.9383540474372},{"$f":"BV230*'Mexico-IO-Data'!$AQ43","v":8418.4585630762922},{"$f":"BH230*'Mexico-IO-Data'!AR43","v":0},{"$f":"BU230*'Mexico-IO-Data'!$AR43","v":451.8337734834941},{"$f":"BV230*'Mexico-IO-Data'!$AR43","v":7259.9073346800742},{"$f":"(BZ230*'Default-Data'!$F$19/geo_dollar_index)/'Mexico-IO-Data'!$AS43","v":0},{"$f":"(CA230*'Default-Data'!$F$19/geo_dollar_index)/'Mexico-IO-Data'!$AS43","v":0.11307471145813361},{"$f":"(CB230*'Default-Data'!$F$19/geo_dollar_index)/'Mexico-IO-Data'!$AS43","v":1.8168449887062859},null,"TTL_C80: Education",0,0,null,195366.8532157781,1820486.8291446406,{"$f":"CH230*'Philippines-IO-Data'!AN43","v":0},{"$f":"CK230*'Philippines-IO-Data'!$AN43","v":132959.64119553726},{"$f":"CL230*'Philippines-IO-Data'!$AN43","v":1238957.743445521},{"$f":"CH230*'Philippines-IO-Data'!AO43","v":0},{"$f":"CK230*'Philippines-IO-Data'!$AO43","v":92483.423376432387},{"$f":"CL230*'Philippines-IO-Data'!$AO43","v":861788.22763269732},{"$f":"(CP230*'Default-Data'!$F$19/geo_dollar_index)/'Philippines-IO-Data'!$AP43","v":0},{"$f":"(CQ230*'Default-Data'!$F$19/geo_dollar_index)/'Philippines-IO-Data'!$AP43","v":24.132219146934411},{"$f":"(CR230*'Default-Data'!$F$19/geo_dollar_index)/'Philippines-IO-Data'!$AP43","v":224.87124295595794},165.16516133291151,16161.897545591819,{"$f":"CI230*'Philippines-IO-Data'!AN43","v":0},{"$f":"CV230*'Philippines-IO-Data'!$AN43","v":112.40545787248925},{"$f":"CW230*'Philippines-IO-Data'!$AN43","v":10999.205153432731},{"$f":"CI230*'Philippines-IO-Data'!AO43","v":0},{"$f":"CV230*'Philippines-IO-Data'!$AO43","v":78.186444072564825},{"$f":"CW230*'Philippines-IO-Data'!$AO43","v":7650.7738578592052},{"$f":"(DA230*'Default-Data'!$F$19/geo_dollar_index)/'Philippines-IO-Data'!$AP43","v":0},{"$f":"(DB230*'Default-Data'!$F$19/geo_dollar_index)/'Philippines-IO-Data'!$AP43","v":2.0401628030126347E-2},{"$f":"(DC230*'Default-Data'!$F$19/geo_dollar_index)/'Philippines-IO-Data'!$AP43","v":1.9963593976187586},null,"DOM_C80: Education",0,0,null,13907.027937188273,499908.49399522197,{"$f":"DI230*'SouthAfrica-IO-Data'!AR43","v":0},{"$f":"DL230*'SouthAfrica-IO-Data'!$AR43","v":7094.6044437732817},{"$f":"DM230*'SouthAfrica-IO-Data'!$AR43","v":255025.95083558696},{"$f":"DI230*'SouthAfrica-IO-Data'!AS43","v":0},{"$f":"DL230*'SouthAfrica-IO-Data'!$AS43","v":3599.1808502171166},{"$f":"DM230*'SouthAfrica-IO-Data'!$AS43","v":129377.82871904234},{"$f":"(DQ230*'Default-Data'!$F$19/geo_dollar_index)/'SouthAfrica-IO-Data'!$AT43","v":0},{"$f":"(DR230*'Default-Data'!$F$19/geo_dollar_index)/'SouthAfrica-IO-Data'!$AT43","v":0.22148470797467765},{"$f":"(DS230*'Default-Data'!$F$19/geo_dollar_index)/'SouthAfrica-IO-Data'!$AT43","v":7.9615923191262707},54.405395176915988,4467.0146174222509,{"$f":"DJ230*'SouthAfrica-IO-Data'!AR43","v":0},{"$f":"DW230*'SouthAfrica-IO-Data'!$AR43","v":27.754654706290044},{"$f":"DX230*'SouthAfrica-IO-Data'!$AR43","v":2278.826352999442},{"$f":"DJ230*'SouthAfrica-IO-Data'!$AS43","v":0},{"$f":"DZ230*'SouthAfrica-IO-Data'!$AS43","v":7.1829884986528683},{"$f":"EA230*'SouthAfrica-IO-Data'!$AS43","v":589.76714562809502},{"$f":"(EB230*'Default-Data'!$F$19/geo_dollar_index)/'SouthAfrica-IO-Data'!$AT43","v":0},{"$f":"(EC230*'Default-Data'!$F$19/geo_dollar_index)/'SouthAfrica-IO-Data'!$AT43","v":4.4202338704753562E-4},{"$f":"(ED230*'Default-Data'!$F$19/geo_dollar_index)/'SouthAfrica-IO-Data'!$AT43","v":3.6292814798294465E-2},null,"LPOST",0,0,null,0,6590270.2923069857,{"$f":"EJ230*'Zambia-IO-Data'!BO41","v":0},{"$f":"EM230*'Zambia-IO-Data'!$BO41","v":0},{"$f":"EN230*'Zambia-IO-Data'!$BO41","v":0},{"$f":"EJ230*'Zambia-IO-Data'!BN41","v":0},{"$f":"EM230*'Zambia-IO-Data'!$BN41","v":0},{"$f":"EN230*'Zambia-IO-Data'!$BN41","v":0},0,0,0,0,8375.2421660091495,{"$f":"EK230*'Zambia-IO-Data'!BO41","v":0},{"$f":"EX230*'Zambia-IO-Data'!$BO41","v":0},{"$f":"EY230*'Zambia-IO-Data'!$BO41","v":0},{"$f":"EK230*'Zambia-IO-Data'!BN41","v":0},{"$f":"EX230*'Zambia-IO-Data'!$BN41","v":0},{"$f":"EY230*'Zambia-IO-Data'!$BN41","v":0},0,0,0,null,"TTL_C80: Education",0,0,null,208430.46588063359,2060925.2626902771,{"$f":"FK230*CustomRegion1!C39","v":0},{"$f":"FN230*CustomRegion1!$C39","v":141850.26529090648},{"$f":"FO230*CustomRegion1!$C39","v":1402591.4782763536},{"$f":"FK230*CustomRegion1!D39","v":0},{"$f":"FN230*CustomRegion1!$D39","v":98667.520632557833},{"$f":"FO230*CustomRegion1!$D39","v":975607.78852313932},{"$f":"(FS230*'Default-Data'!$C$58/geo_dollar_index)/CustomRegion1!$E39","v":0},{"$f":"(FT230*'Default-Data'!$C$58/geo_dollar_index)/CustomRegion1!$E39","v":25.8534501857504},{"$f":"(FU230*'Default-Data'!$C$58/geo_dollar_index)/CustomRegion1!$E39","v":255.63455126580109},288.33365806791829,18984.601312374092,{"$f":"FL230*CustomRegion1!C39","v":0},{"$f":"FY230*CustomRegion1!$C39","v":196.22949896707971},{"$f":"FZ230*CustomRegion1!$C39","v":12920.235634576562},{"$f":"FL230*CustomRegion1!D39","v":0},{"$f":"FY230*CustomRegion1!$D39","v":136.49236466596878},{"$f":"FZ230*CustomRegion1!$D39","v":8986.9949374977678},{"$f":"(GD230*'Default-Data'!$C$58/geo_dollar_index)/CustomRegion1!$E39","v":0},{"$f":"(GE230*'Default-Data'!$C$58/geo_dollar_index)/CustomRegion1!$E39","v":3.5764540631038066E-2},{"$f":"(GF230*'Default-Data'!$C$58/geo_dollar_index)/CustomRegion1!$E39","v":2.3548258276545924},null,"C73 Research and development",0,0,null,0,0,{"$f":"GL230*CustomRegion2!C43","v":0},{"$f":"GO230*CustomRegion2!$C43","v":0},{"$f":"GP230*CustomRegion2!$C43","v":0},{"$f":"GL230*CustomRegion2!D43","v":0},{"$f":"GO230*CustomRegion2!$D43","v":0},{"$f":"GP230*CustomRegion2!$D43","v":0},{"$f":"(GT230*'Default-Data'!$C$59/geo_dollar_index)/CustomRegion2!$E43","v":0},{"$f":"(GU230*'Default-Data'!$C$59/geo_dollar_index)/CustomRegion2!$E43","v":0},{"$f":"(GV230*'Default-Data'!$C$59/geo_dollar_index)/CustomRegion2!$E43","v":0},0,0,{"$f":"GM230*CustomRegion2!C43","v":0},{"$f":"GZ230*CustomRegion2!$C43","v":0},{"$f":"HA230*CustomRegion2!$C43","v":0},{"$f":"GM230*CustomRegion2!D43","v":0},{"$f":"GZ230*CustomRegion2!$D43","v":0},{"$f":"HA230*CustomRegion2!$D43","v":0},{"$f":"(HE230*'Default-Data'!$C$59/geo_dollar_index)/CustomRegion2!$E43","v":0},{"$f":"(HF230*'Default-Data'!$C$59/geo_dollar_index)/CustomRegion2!$E43","v":0},{"$f":"(HG230*'Default-Data'!$C$59/geo_dollar_index)/CustomRegion2!$E43","v":0},null,"LPOST",0,0,null,0,6590270.2923069857,{"$f":"HM230*CustomRegion3!D42","v":0},{"$f":"HP230*CustomRegion3!$D42","v":0},{"$f":"HQ230*CustomRegion3!$D42","v":0},{"$f":"HM230*CustomRegion3!E42","v":0},{"$f":"HP230*CustomRegion3!E$12","v":0},{"$f":"HQ230*CustomRegion3!F$12","v":680593111.97015738},0,0,0,0,8375.2421660091495,{"$f":"HN230*CustomRegion3!D42","v":0},{"$f":"IA230*CustomRegion3!$D42","v":0},{"$f":"IB230*CustomRegion3!$D42","v":0},{"$f":"HN230*CustomRegion3!E42","v":0},{"$f":"IA230*CustomRegion3!$E42","v":0},{"$f":"IB230*CustomRegion3!$E42","v":0},0,0,0]
[null,null,null,null,null,null,null,null,null,null,null,null,null,null,null,null,null,null,null,null,null,null,null,null,null,null,null,null,null,230,"TTL_C85: Health and social work",0,0,null,1631.1303308569009,1527599.6062064264,{"$f":"AF231*'Colombia-IO-Data'!AN44","v":0},{"$f":"AI231*'Colombia-IO-Data'!$AN44","v":647.0341244760574},{"$f":"AJ231*'Colombia-IO-Data'!$AN44","v":605965.72514992882},{"$f":"'Colombia-IO-Data'!$AO44*AK231","v":0},{"$f":"'Colombia-IO-Data'!$AO44*AL231","v":480.46074444572497},{"$f":"'Colombia-IO-Data'!$AO44*AM231","v":449965.05192038242},{"$f":"(AN231*'Default-Data'!$F$19/geo_dollar_index)/'Colombia-IO-Data'!$AP44","v":0},{"$f":"(AO231*'Default-Data'!$F$19/geo_dollar_index)/'Colombia-IO-Data'!$AP44","v":4.7404604751394824E-2},{"$f":"(AP231*'Default-Data'!$F$19/geo_dollar_index)/'Colombia-IO-Data'!$AP44","v":44.395750713898671},5.1219870127103562,10020.956804116306,{"$f":"AG231*'Colombia-IO-Data'!AN44","v":0},{"$f":"AT231*'Colombia-IO-Data'!$AN44","v":2.0317814705865636},{"$f":"AU231*'Colombia-IO-Data'!$AN44","v":3975.0968328554841},{"$f":"AV231*'Colombia-IO-Data'!$AO44","v":0},{"$f":"AW231*'Colombia-IO-Data'!$AO44","v":1.5087167754861943},{"$f":"AX231*'Colombia-IO-Data'!$AO44","v":2951.7422826873822},{"$f":"(Calculations!AY231*'Default-Data'!$F$19/geo_dollar_index)/'Colombia-IO-Data'!$AP44","v":0},{"$f":"(Calculations!AZ231*'Default-Data'!$F$19/geo_dollar_index)/'Colombia-IO-Data'!$AP44","v":1.4885736920345041E-4},{"$f":"(Calculations!BA231*'Default-Data'!$F$19/geo_dollar_index)/'Colombia-IO-Data'!$AP44","v":0.2912333168866868},null,"DOM_C85: Health and social work",0,0,null,0,1187072.2259826215,{"$f":"BG231*'Mexico-IO-Data'!AQ44","v":0},{"$f":"BJ231*'Mexico-IO-Data'!$AQ44","v":0},{"$f":"BK231*'Mexico-IO-Data'!$AQ44","v":886462.25735129765},{"$f":"BG231*'Mexico-IO-Data'!AQ44","v":0},{"$f":"BJ231*'Mexico-IO-Data'!$AR44","v":0},{"$f":"BK231*'Mexico-IO-Data'!$AR44","v":622776.22262739774},{"$f":"(BO231*'Default-Data'!$F$19/geo_dollar_index)/'Mexico-IO-Data'!$AS44","v":0},{"$f":"(BP231*'Default-Data'!$F$19/geo_dollar_index)/'Mexico-IO-Data'!$AS44","v":0},{"$f":"(BQ231*'Default-Data'!$F$19/geo_dollar_index)/'Mexico-IO-Data'!$AS44","v":282.20367411404487},0,6826.4450696832446,{"$f":"BH231*'Mexico-IO-Data'!AQ44","v":0},{"$f":"BU231*'Mexico-IO-Data'!$AQ44","v":0},{"$f":"BV231*'Mexico-IO-Data'!$AQ44","v":5097.740283786773},{"$f":"BH231*'Mexico-IO-Data'!AR44","v":0},{"$f":"BU231*'Mexico-IO-Data'!$AR44","v":0},{"$f":"BV231*'Mexico-IO-Data'!$AR44","v":3581.3723726470139},{"$f":"(BZ231*'Default-Data'!$F$19/geo_dollar_index)/'Mexico-IO-Data'!$AS44","v":0},{"$f":"(CA231*'Default-Data'!$F$19/geo_dollar_index)/'Mexico-IO-Data'!$AS44","v":0},{"$f":"(CB231*'Default-Data'!$F$19/geo_dollar_index)/'Mexico-IO-Data'!$AS44","v":1.6228565015980092},null,"TTL_C85: Health and social work",0,0,null,532694.36682467384,818058.46724111412,{"$f":"CH231*'Philippines-IO-Data'!AN44","v":0},{"$f":"CK231*'Philippines-IO-Data'!$AN44","v":276044.11780709907},{"$f":"CL231*'Philippines-IO-Data'!$AN44","v":423920.81082119915},{"$f":"CH231*'Philippines-IO-Data'!AO44","v":0},{"$f":"CK231*'Philippines-IO-Data'!$AO44","v":176229.3960297732},{"$f":"CL231*'Philippines-IO-Data'!$AO44","v":270635.39353400556},{"$f":"(CP231*'Default-Data'!$F$19/geo_dollar_index)/'Philippines-IO-Data'!$AP44","v":0},{"$f":"(CQ231*'Default-Data'!$F$19/geo_dollar_index)/'Philippines-IO-Data'!$AP44","v":45.984526197871325},{"$f":"(CR231*'Default-Data'!$F$19/geo_dollar_index)/'Philippines-IO-Data'!$AP44","v":70.618413411194794},755.14789767323703,7262.5502817105598,{"$f":"CI231*'Philippines-IO-Data'!AN44","v":0},{"$f":"CV231*'Philippines-IO-Data'!$AN44","v":391.32032964730587},{"$f":"CW231*'Philippines-IO-Data'!$AN44","v":3763.4794178409752},{"$f":"CI231*'Philippines-IO-Data'!AO44","v":0},{"$f":"CV231*'Philippines-IO-Data'!$AO44","v":249.82291198868265},{"$f":"CW231*'Philippines-IO-Data'!$AO44","v":2402.6438601385798},{"$f":"(DA231*'Default-Data'!$F$19/geo_dollar_index)/'Philippines-IO-Data'!$AP44","v":0},{"$f":"(DB231*'Default-Data'!$F$19/geo_dollar_index)/'Philippines-IO-Data'!$AP44","v":6.5187695696529727E-2},{"$f":"(DC231*'Default-Data'!$F$19/geo_dollar_index)/'Philippines-IO-Data'!$AP44","v":0.6269353582306515},null,"DOM_C85: Health and social work",0,0,null,321670.58902937314,1465801.1875134318,{"$f":"DI231*'SouthAfrica-IO-Data'!AR44","v":0},{"$f":"DL231*'SouthAfrica-IO-Data'!$AR44","v":148622.21038005134},{"$f":"DM231*'SouthAfrica-IO-Data'!$AR44","v":677247.53177872126},{"$f":"DI231*'SouthAfrica-IO-Data'!AS44","v":0},{"$f":"DL231*'SouthAfrica-IO-Data'!$AS44","v":65585.694240191966},{"$f":"DM231*'SouthAfrica-IO-Data'!$AS44","v":298863.47020798863},{"$f":"(DQ231*'Default-Data'!$F$19/geo_dollar_index)/'SouthAfrica-IO-Data'!$AT44","v":0},{"$f":"(DR231*'Default-Data'!$F$19/geo_dollar_index)/'SouthAfrica-IO-Data'!$AT44","v":4.0359817804735032},{"$f":"(DS231*'Default-Data'!$F$19/geo_dollar_index)/'SouthAfrica-IO-Data'!$AT44","v":18.391320463744435},378.78279478439799,13097.907736130554,{"$f":"DJ231*'SouthAfrica-IO-Data'!AR44","v":0},{"$f":"DW231*'SouthAfrica-IO-Data'!$AR44","v":175.00989563472348},{"$f":"DX231*'SouthAfrica-IO-Data'!$AR44","v":6051.6567740047294},{"$f":"DJ231*'SouthAfrica-IO-Data'!$AS44","v":0},{"$f":"DZ231*'SouthAfrica-IO-Data'!$AS44","v":35.682918785772983},{"$f":"EA231*'SouthAfrica-IO-Data'!$AS44","v":1233.8775267707729},{"$f":"(EB231*'Default-Data'!$F$19/geo_dollar_index)/'SouthAfrica-IO-Data'!$AT44","v":0},{"$f":"(EC231*'Default-Data'!$F$19/geo_dollar_index)/'SouthAfrica-IO-Data'!$AT44","v":2.195838768833835E-3},{"$f":"(ED231*'Default-Data'!$F$19/geo_dollar_index)/'SouthAfrica-IO-Data'!$AT44","v":7.5929778209632481E-2},null,"HRRS",0,0,null,0,3268053.7503637327,{"$f":"EJ231*'Zambia-IO-Data'!BO42","v":0},{"$f":"EM231*'Zambia-IO-Data'!$BO42","v":0},{"$f":"EN231*'Zambia-IO-Data'!$BO42","v":0},{"$f":"EJ231*'Zambia-IO-Data'!BN42","v":0},{"$f":"EM231*'Zambia-IO-Data'!$BN42","v":0},{"$f":"EN231*'Zambia-IO-Data'!$BN42","v":0},0,0,0,0,4548.4473553901398,{"$f":"EK231*'Zambia-IO-Data'!BO42","v":0},{"$f":"EX231*'Zambia-IO-Data'!$BO42","v":0},{"$f":"EY231*'Zambia-IO-Data'!$BO42","v":0},{"$f":"EK231*'Zambia-IO-Data'!BN42","v":0},{"$f":"EX231*'Zambia-IO-Data'!$BN42","v":0},{"$f":"EY231*'Zambia-IO-Data'!$BN42","v":0},0,0,0,null,"TTL_C85: Health and social work",0,0,null,564848.19582262426,936900.24709589966,{"$f":"FK231*CustomRegion1!C40","v":0},{"$f":"FN231*CustomRegion1!$C40","v":292706.34649325465},{"$f":"FO231*CustomRegion1!$C40","v":485505.04433616903},{"$f":"FK231*CustomRegion1!D40","v":0},{"$f":"FN231*CustomRegion1!$D40","v":186866.73371766807},{"$f":"FO231*CustomRegion1!$D40","v":309951.39984312665},{"$f":"(FS231*'Default-Data'!$C$58/geo_dollar_index)/CustomRegion1!$E40","v":0},{"$f":"(FT231*'Default-Data'!$C$58/geo_dollar_index)/CustomRegion1!$E40","v":48.963932209617688},{"$f":"(FU231*'Default-Data'!$C$58/geo_dollar_index)/CustomRegion1!$E40","v":81.215307980523889},1091.8803800854087,8630.4331275759941,{"$f":"FL231*CustomRegion1!C40","v":0},{"$f":"FY231*CustomRegion1!$C40","v":565.81630113381527},{"$f":"FZ231*CustomRegion1!$C40","v":4472.3211795836269},{"$f":"FL231*CustomRegion1!D40","v":0},{"$f":"FY231*CustomRegion1!$D40","v":361.22292988794192},{"$f":"FZ231*CustomRegion1!$D40","v":2855.1757110070039},{"$f":"(GD231*'Default-Data'!$C$58/geo_dollar_index)/CustomRegion1!$E40","v":0},{"$f":"(GE231*'Default-Data'!$C$58/geo_dollar_index)/CustomRegion1!$E40","v":9.4649779014788826E-2},{"$f":"(GF231*'Default-Data'!$C$58/geo_dollar_index)/CustomRegion1!$E40","v":0.74813010951170655},null,"C74 Other Business Activities",0,0,null,1576267.7764493614,528572.61490545655,{"$f":"GL231*CustomRegion2!C44","v":0},{"$f":"GO231*CustomRegion2!$C44","v":1125004.5160300953},{"$f":"GP231*CustomRegion2!$C44","v":377249.72095664637},{"$f":"GL231*CustomRegion2!D44","v":0},{"$f":"GO231*CustomRegion2!$D44","v":443860.74342686607},{"$f":"GP231*CustomRegion2!$D44","v":148840.5950513673},{"$f":"(GT231*'Default-Data'!$C$59/geo_dollar_index)/CustomRegion2!$E44","v":0},{"$f":"(GU231*'Default-Data'!$C$59/geo_dollar_index)/CustomRegion2!$E44","v":119.68326560753462},{"$f":"(GV231*'Default-Data'!$C$59/geo_dollar_index)/CustomRegion2!$E44","v":40.133597608078233},10394.502985023219,5492.4084762480761,{"$f":"GM231*CustomRegion2!C44","v":0},{"$f":"GZ231*CustomRegion2!$C44","v":7418.7032018002419},{"$f":"HA231*CustomRegion2!$C44","v":3920.0092978996222},{"$f":"GM231*CustomRegion2!D44","v":0},{"$f":"GZ231*CustomRegion2!$D44","v":2926.9848000558954},{"$f":"HA231*CustomRegion2!$D44","v":1546.60556150106},{"$f":"(HE231*'Default-Data'!$C$59/geo_dollar_index)/CustomRegion2!$E44","v":0},{"$f":"(HF231*'Default-Data'!$C$59/geo_dollar_index)/CustomRegion2!$E44","v":0.78923649915443883},{"$f":"(HG231*'Default-Data'!$C$59/geo_dollar_index)/CustomRegion2!$E44","v":0.4170290050391009},null,"HRRS",0,0,null,0,3268053.7503637327,{"$f":"HM231*CustomRegion3!D43","v":0},{"$f":"HP231*CustomRegion3!$D43","v":0},{"$f":"HQ231*CustomRegion3!$D43","v":0},{"$f":"HM231*CustomRegion3!E43","v":0},{"$f":"HP231*CustomRegion3!E$12","v":0},{"$f":"HQ231*CustomRegion3!F$12","v":337499794.90859234},0,0,0,0,4548.4473553901398,{"$f":"HN231*CustomRegion3!D43","v":0},{"$f":"IA231*CustomRegion3!$D43","v":0},{"$f":"IB231*CustomRegion3!$D43","v":0},{"$f":"HN231*CustomRegion3!E43","v":0},{"$f":"IA231*CustomRegion3!$E43","v":0},{"$f":"IB231*CustomRegion3!$E43","v":0},0,0,0]
[null,null,null,null,null,null,null,null,null,null,null,null,null,null,null,null,null,null,null,null,null,null,null,null,null,null,null,null,null,231,"TTL_C90T93: Other community, social and personal services",0,0,null,463807.41110266687,1144692.6095756632,{"$f":"AF232*'Colombia-IO-Data'!AN45","v":0},{"$f":"AI232*'Colombia-IO-Data'!$AN45","v":265335.38860352477},{"$f":"AJ232*'Colombia-IO-Data'!$AN45","v":654856.84601557476},{"$f":"'Colombia-IO-Data'!$AO45*AK232","v":0},{"$f":"'Colombia-IO-Data'!$AO45*AL232","v":101341.28902240496},{"$f":"'Colombia-IO-Data'!$AO45*AM232","v":250113.77958154245},{"$f":"(AN232*'Default-Data'!$F$19/geo_dollar_index)/'Colombia-IO-Data'!$AP45","v":0},{"$f":"(AO232*'Default-Data'!$F$19/geo_dollar_index)/'Colombia-IO-Data'!$AP45","v":21.423116573080645},{"$f":"(AP232*'Default-Data'!$F$19/geo_dollar_index)/'Colombia-IO-Data'!$AP45","v":52.872986994714104},1219.8000622724969,8725.0730718282575,{"$f":"AG232*'Colombia-IO-Data'!AN45","v":0},{"$f":"AT232*'Colombia-IO-Data'!$AN45","v":697.82438959353601},{"$f":"AU232*'Colombia-IO-Data'!$AN45","v":4991.4481715671509},{"$f":"AV232*'Colombia-IO-Data'!$AO45","v":0},{"$f":"AW232*'Colombia-IO-Data'!$AO45","v":266.52465592651225},{"$f":"AX232*'Colombia-IO-Data'!$AO45","v":1906.4166090222832},{"$f":"(Calculations!AY232*'Default-Data'!$F$19/geo_dollar_index)/'Colombia-IO-Data'!$AP45","v":0},{"$f":"(Calculations!AZ232*'Default-Data'!$F$19/geo_dollar_index)/'Colombia-IO-Data'!$AP45","v":5.6342176309317871E-2},{"$f":"(Calculations!BA232*'Default-Data'!$F$19/geo_dollar_index)/'Colombia-IO-Data'!$AP45","v":0.4030083458175876},null,"DOM_C90T93: Other community, social and personal services",0,0,null,99379.792594928193,517188.12472454133,{"$f":"BG232*'Mexico-IO-Data'!AQ45","v":0},{"$f":"BJ232*'Mexico-IO-Data'!$AQ45","v":63582.624433498597},{"$f":"BK232*'Mexico-IO-Data'!$AQ45","v":330894.01212439412},{"$f":"BG232*'Mexico-IO-Data'!AQ45","v":0},{"$f":"BJ232*'Mexico-IO-Data'!$AR45","v":11159.611013839696},{"$f":"BK232*'Mexico-IO-Data'!$AR45","v":58076.376919281698},{"$f":"(BO232*'Default-Data'!$F$19/geo_dollar_index)/'Mexico-IO-Data'!$AS45","v":0},{"$f":"(BP232*'Default-Data'!$F$19/geo_dollar_index)/'Mexico-IO-Data'!$AS45","v":7.9664116303119474},{"$f":"(BQ232*'Default-Data'!$F$19/geo_dollar_index)/'Mexico-IO-Data'!$AS45","v":41.458463378550874},447.71911589099716,2974.1714504372999,{"$f":"BH232*'Mexico-IO-Data'!AQ45","v":0},{"$f":"BU232*'Mexico-IO-Data'!$AQ45","v":286.44813652839235},{"$f":"BV232*'Mexico-IO-Data'!$AQ45","v":1902.8579291243113},{"$f":"BH232*'Mexico-IO-Data'!AR45","v":0},{"$f":"BU232*'Mexico-IO-Data'!$AR45","v":50.275524292639055},{"$f":"BV232*'Mexico-IO-Data'!$AR45","v":333.97731680355253},{"$f":"(BZ232*'Default-Data'!$F$19/geo_dollar_index)/'Mexico-IO-Data'!$AS45","v":0},{"$f":"(CA232*'Default-Data'!$F$19/geo_dollar_index)/'Mexico-IO-Data'!$AS45","v":3.5889738535528487E-2},{"$f":"(CB232*'Default-Data'!$F$19/geo_dollar_index)/'Mexico-IO-Data'!$AS45","v":0.23841339788139837},null,"TTL_C90T93: Other community, social and personal services",0,0,null,1417538.4454851977,1052139.5976131072,{"$f":"CH232*'Philippines-IO-Data'!AN45","v":0},{"$f":"CK232*'Philippines-IO-Data'!$AN45","v":690853.10522522067},{"$f":"CL232*'Philippines-IO-Data'!$AN45","v":512771.91843120242},{"$f":"CH232*'Philippines-IO-Data'!AO45","v":0},{"$f":"CK232*'Philippines-IO-Data'!$AO45","v":593789.62393419282},{"$f":"CL232*'Philippines-IO-Data'!$AO45","v":440728.48816394492},{"$f":"(CP232*'Default-Data'!$F$19/geo_dollar_index)/'Philippines-IO-Data'!$AP45","v":0},{"$f":"(CQ232*'Default-Data'!$F$19/geo_dollar_index)/'Philippines-IO-Data'!$AP45","v":352.96750704996731},{"$f":"(CR232*'Default-Data'!$F$19/geo_dollar_index)/'Philippines-IO-Data'!$AP45","v":261.98308202564516},1590.8863692100197,9340.6731144948062,{"$f":"CI232*'Philippines-IO-Data'!AN45","v":0},{"$f":"CV232*'Philippines-IO-Data'!$AN45","v":775.33614113233284},{"$f":"CW232*'Philippines-IO-Data'!$AN45","v":4552.2807840557116},{"$f":"CI232*'Philippines-IO-Data'!AO45","v":0},{"$f":"CV232*'Philippines-IO-Data'!$AO45","v":666.40296205293657},{"$f":"CW232*'Philippines-IO-Data'!$AO45","v":3912.694427169251},{"$f":"(DA232*'Default-Data'!$F$19/geo_dollar_index)/'Philippines-IO-Data'!$AP45","v":0},{"$f":"(DB232*'Default-Data'!$F$19/geo_dollar_index)/'Philippines-IO-Data'!$AP45","v":0.3961311931456169},{"$f":"(DC232*'Default-Data'!$F$19/geo_dollar_index)/'Philippines-IO-Data'!$AP45","v":2.3258304661101432},null,"DOM_C90T93: Other community, social and personal services",0,0,null,2611278.4347530501,3062894.1304787956,{"$f":"DI232*'SouthAfrica-IO-Data'!AR45","v":0},{"$f":"DL232*'SouthAfrica-IO-Data'!$AR45","v":1837785.5683869512},{"$f":"DM232*'SouthAfrica-IO-Data'!$AR45","v":2155627.1271483013},{"$f":"DI232*'SouthAfrica-IO-Data'!AS45","v":0},{"$f":"DL232*'SouthAfrica-IO-Data'!$AS45","v":1022013.600883774},{"$f":"DM232*'SouthAfrica-IO-Data'!$AS45","v":1198768.9316296314},{"$f":"(DQ232*'Default-Data'!$F$19/geo_dollar_index)/'SouthAfrica-IO-Data'!$AT45","v":0},{"$f":"(DR232*'Default-Data'!$F$19/geo_dollar_index)/'SouthAfrica-IO-Data'!$AT45","v":62.89219501827381},{"$f":"(DS232*'Default-Data'!$F$19/geo_dollar_index)/'SouthAfrica-IO-Data'!$AT45","v":73.769281900654903},13319.326763843725,27368.994559625069,{"$f":"DJ232*'SouthAfrica-IO-Data'!AR45","v":0},{"$f":"DW232*'SouthAfrica-IO-Data'!$AR45","v":9373.9779647577016},{"$f":"DX232*'SouthAfrica-IO-Data'!$AR45","v":19261.960943547056},{"$f":"DJ232*'SouthAfrica-IO-Data'!$AS45","v":0},{"$f":"DZ232*'SouthAfrica-IO-Data'!$AS45","v":3668.8285886576423},{"$f":"EA232*'SouthAfrica-IO-Data'!$AS45","v":7538.8307129564519},{"$f":"(EB232*'Default-Data'!$F$19/geo_dollar_index)/'SouthAfrica-IO-Data'!$AT45","v":0},{"$f":"(EC232*'Default-Data'!$F$19/geo_dollar_index)/'SouthAfrica-IO-Data'!$AT45","v":0.22577065793150355},{"$f":"(ED232*'Default-Data'!$F$19/geo_dollar_index)/'SouthAfrica-IO-Data'!$AT45","v":0.46392103881886509},null,"HRRM",0,0,null,0,228806.11508101449,{"$f":"EJ232*'Zambia-IO-Data'!BO43","v":0},{"$f":"EM232*'Zambia-IO-Data'!$BO43","v":0},{"$f":"EN232*'Zambia-IO-Data'!$BO43","v":0},{"$f":"EJ232*'Zambia-IO-Data'!BN43","v":0},{"$f":"EM232*'Zambia-IO-Data'!$BN43","v":0},{"$f":"EN232*'Zambia-IO-Data'!$BN43","v":0},0,0,0,0,331.00893892698053,{"$f":"EK232*'Zambia-IO-Data'!BO43","v":0},{"$f":"EX232*'Zambia-IO-Data'!$BO43","v":0},{"$f":"EY232*'Zambia-IO-Data'!$BO43","v":0},{"$f":"EK232*'Zambia-IO-Data'!BN43","v":0},{"$f":"EX232*'Zambia-IO-Data'!$BN43","v":0},{"$f":"EY232*'Zambia-IO-Data'!$BN43","v":0},0,0,0,null,"TTL_C90T93: Other community, social and personal services",0,0,null,1562434.6023275501,1262847.0735426501,{"$f":"FK232*CustomRegion1!C41","v":0},{"$f":"FN232*CustomRegion1!$C41","v":761469.85654407227},{"$f":"FO232*CustomRegion1!$C41","v":615462.547037235},{"$f":"FK232*CustomRegion1!D41","v":0},{"$f":"FN232*CustomRegion1!$D41","v":654484.86275114142},{"$f":"FO232*CustomRegion1!$D41","v":528991.28857744718},{"$f":"(FS232*'Default-Data'!$C$58/geo_dollar_index)/CustomRegion1!$E41","v":0},{"$f":"(FT232*'Default-Data'!$C$58/geo_dollar_index)/CustomRegion1!$E41","v":390.67233645629818},{"$f":"(FU232*'Default-Data'!$C$58/geo_dollar_index)/CustomRegion1!$E41","v":315.76324287298235},2871.4531104389121,11632.95372410046,{"$f":"FL232*CustomRegion1!C41","v":0},{"$f":"FY232*CustomRegion1!$C41","v":1399.434565019038},{"$f":"FZ232*CustomRegion1!$C41","v":5669.4491982439986},{"$f":"FL232*CustomRegion1!D41","v":0},{"$f":"FY232*CustomRegion1!$D41","v":1202.8168040328428},{"$f":"FZ232*CustomRegion1!$D41","v":4872.9029107306915},{"$f":"(GD232*'Default-Data'!$C$58/geo_dollar_index)/CustomRegion1!$E41","v":0},{"$f":"(GE232*'Default-Data'!$C$58/geo_dollar_index)/CustomRegion1!$E41","v":0.717980319949865},{"$f":"(GF232*'Default-Data'!$C$58/geo_dollar_index)/CustomRegion1!$E41","v":2.9087125979622748},null,"C75 Public admin. and defence; compulsory social security",0,0,null,8154.7119257759723,9639.6585335931741,{"$f":"GL232*CustomRegion2!C45","v":0},{"$f":"GO232*CustomRegion2!$C45","v":6117.0438961007321},{"$f":"GP232*CustomRegion2!$C45","v":7230.9377609069188},{"$f":"GL232*CustomRegion2!D45","v":0},{"$f":"GO232*CustomRegion2!$D45","v":6034.0219059939081},{"$f":"GP232*CustomRegion2!$D45","v":7132.7977355211688},{"$f":"(GT232*'Default-Data'!$C$59/geo_dollar_index)/CustomRegion2!$E45","v":0},{"$f":"(GU232*'Default-Data'!$C$59/geo_dollar_index)/CustomRegion2!$E45","v":4.3074532104974885},{"$f":"(GV232*'Default-Data'!$C$59/geo_dollar_index)/CustomRegion2!$E45","v":5.0918264773251707},68.587654951466206,100.16588212295913,{"$f":"GM232*CustomRegion2!C45","v":0},{"$f":"GZ232*CustomRegion2!$C45","v":51.449235716417576},{"$f":"HA232*CustomRegion2!$C45","v":75.136817022446621},{"$f":"GM232*CustomRegion2!D45","v":0},{"$f":"GZ232*CustomRegion2!$D45","v":50.750954322462754},{"$f":"HA232*CustomRegion2!$D45","v":74.117042081241422},{"$f":"(HE232*'Default-Data'!$C$59/geo_dollar_index)/CustomRegion2!$E45","v":0},{"$f":"(HF232*'Default-Data'!$C$59/geo_dollar_index)/CustomRegion2!$E45","v":3.6229129515580563E-2},{"$f":"(HG232*'Default-Data'!$C$59/geo_dollar_index)/CustomRegion2!$E45","v":5.2909269445688877E-2},null,"HRRM",0,0,null,0,228806.11508101449,{"$f":"HM232*CustomRegion3!D44","v":0},{"$f":"HP232*CustomRegion3!$D44","v":0},{"$f":"HQ232*CustomRegion3!$D44","v":0},{"$f":"HM232*CustomRegion3!E44","v":0},{"$f":"HP232*CustomRegion3!E$12","v":0},{"$f":"HQ232*CustomRegion3!F$12","v":23629359.494188063},0,0,0,0,331.00893892698053,{"$f":"HN232*CustomRegion3!D44","v":0},{"$f":"IA232*CustomRegion3!$D44","v":0},{"$f":"IB232*CustomRegion3!$D44","v":0},{"$f":"HN232*CustomRegion3!E44","v":0},{"$f":"IA232*CustomRegion3!$E44","v":0},{"$f":"IB232*CustomRegion3!$E44","v":0},0,0,0]
[null,null,null,null,null,null,null,null,null,null,null,null,null,null,null,null,null,null,null,null,null,null,null,null,null,null,null,null,null,232,"TTL_C95: Private households with employed persons",0,0,null,0,201669.94531859481,{"$f":"AF233*'Colombia-IO-Data'!AN46","v":0},{"$f":"AI233*'Colombia-IO-Data'!$AN46","v":0},{"$f":"AJ233*'Colombia-IO-Data'!$AN46","v":201669.94531859481},{"$f":"'Colombia-IO-Data'!$AO46*AK233","v":0},{"$f":"'Colombia-IO-Data'!$AO46*AL233","v":0},{"$f":"'Colombia-IO-Data'!$AO46*AM233","v":201669.94531859481},{"$f":"(AN233*'Default-Data'!$F$19/geo_dollar_index)/'Colombia-IO-Data'!$AP46","v":0},{"$f":"(AO233*'Default-Data'!$F$19/geo_dollar_index)/'Colombia-IO-Data'!$AP46","v":0},{"$f":"(AP233*'Default-Data'!$F$19/geo_dollar_index)/'Colombia-IO-Data'!$AP46","v":42.632166903776834},0,1322.265894596211,{"$f":"AG233*'Colombia-IO-Data'!AN46","v":0},{"$f":"AT233*'Colombia-IO-Data'!$AN46","v":0},{"$f":"AU233*'Colombia-IO-Data'!$AN46","v":1322.265894596211},{"$f":"AV233*'Colombia-IO-Data'!$AO46","v":0},{"$f":"AW233*'Colombia-IO-Data'!$AO46","v":0},{"$f":"AX233*'Colombia-IO-Data'!$AO46","v":1322.265894596211},{"$f":"(Calculations!AY233*'Default-Data'!$F$19/geo_dollar_index)/'Colombia-IO-Data'!$AP46","v":0},{"$f":"(Calculations!AZ233*'Default-Data'!$F$19/geo_dollar_index)/'Colombia-IO-Data'!$AP46","v":0},{"$f":"(Calculations!BA233*'Default-Data'!$F$19/geo_dollar_index)/'Colombia-IO-Data'!$AP46","v":0.27952137449406944},null,"DOM_C95: Private households with employed persons",0,0,null,0,141579.39544980333,{"$f":"BG233*'Mexico-IO-Data'!AQ46","v":0},{"$f":"BJ233*'Mexico-IO-Data'!$AQ46","v":0},{"$f":"BK233*'Mexico-IO-Data'!$AQ46","v":141579.39544980333},{"$f":"BG233*'Mexico-IO-Data'!AQ46","v":0},{"$f":"BJ233*'Mexico-IO-Data'!$AR46","v":0},{"$f":"BK233*'Mexico-IO-Data'!$AR46","v":141579.39544980333},{"$f":"(BO233*'Default-Data'!$F$19/geo_dollar_index)/'Mexico-IO-Data'!$AS46","v":0},{"$f":"(BP233*'Default-Data'!$F$19/geo_dollar_index)/'Mexico-IO-Data'!$AS46","v":0},{"$f":"(BQ233*'Default-Data'!$F$19/geo_dollar_index)/'Mexico-IO-Data'!$AS46","v":28.176736482454661},0,814.17452525857789,{"$f":"BH233*'Mexico-IO-Data'!AQ46","v":0},{"$f":"BU233*'Mexico-IO-Data'!$AQ46","v":0},{"$f":"BV233*'Mexico-IO-Data'!$AQ46","v":814.17452525857789},{"$f":"BH233*'Mexico-IO-Data'!AR46","v":0},{"$f":"BU233*'Mexico-IO-Data'!$AR46","v":0},{"$f":"BV233*'Mexico-IO-Data'!$AR46","v":814.17452525857789},{"$f":"(BZ233*'Default-Data'!$F$19/geo_dollar_index)/'Mexico-IO-Data'!$AS46","v":0},{"$f":"(CA233*'Default-Data'!$F$19/geo_dollar_index)/'Mexico-IO-Data'!$AS46","v":0},{"$f":"(CB233*'Default-Data'!$F$19/geo_dollar_index)/'Mexico-IO-Data'!$AS46","v":0.162034743657824},null,"TTL_C95: Private households with employed persons",0,0,null,0,0,{"$f":"CH233*'Philippines-IO-Data'!AN46","v":0},{"$f":"CK233*'Philippines-IO-Data'!$AN46","v":0},{"$f":"CL233*'Philippines-IO-Data'!$AN46","v":0},{"$f":"CH233*'Philippines-IO-Data'!AO46","v":0},{"$f":"CK233*'Philippines-IO-Data'!$AO46","v":0},{"$f":"CL233*'Philippines-IO-Data'!$AO46","v":0},{"$f":"(CP233*'Default-Data'!$F$19/geo_dollar_index)/'Philippines-IO-Data'!$AP46","v":0},{"$f":"(CQ233*'Default-Data'!$F$19/geo_dollar_index)/'Philippines-IO-Data'!$AP46","v":0},{"$f":"(CR233*'Default-Data'!$F$19/geo_dollar_index)/'Philippines-IO-Data'!$AP46","v":0},0,0,{"$f":"CI233*'Philippines-IO-Data'!AN46","v":0},{"$f":"CV233*'Philippines-IO-Data'!$AN46","v":0},{"$f":"CW233*'Philippines-IO-Data'!$AN46","v":0},{"$f":"CI233*'Philippines-IO-Data'!AO46","v":0},{"$f":"CV233*'Philippines-IO-Data'!$AO46","v":0},{"$f":"CW233*'Philippines-IO-Data'!$AO46","v":0},{"$f":"(DA233*'Default-Data'!$F$19/geo_dollar_index)/'Philippines-IO-Data'!$AP46","v":0},{"$f":"(DB233*'Default-Data'!$F$19/geo_dollar_index)/'Philippines-IO-Data'!$AP46","v":0},{"$f":"(DC233*'Default-Data'!$F$19/geo_dollar_index)/'Philippines-IO-Data'!$AP46","v":0},null,"DOM_C95: Private households with employed persons",0,0,null,0,0,{"$f":"DI233*'SouthAfrica-IO-Data'!AR46","v":0},{"$f":"DL233*'SouthAfrica-IO-Data'!$AR46","v":0},{"$f":"DM233*'SouthAfrica-IO-Data'!$AR46","v":0},{"$f":"DI233*'SouthAfrica-IO-Data'!AS46","v":0},{"$f":"DL233*'SouthAfrica-IO-Data'!$AS46","v":0},{"$f":"DM233*'SouthAfrica-IO-Data'!$AS46","v":0},{"$f":"(DQ233*'Default-Data'!$F$19/geo_dollar_index)/'SouthAfrica-IO-Data'!$AT46","v":0},{"$f":"(DR233*'Default-Data'!$F$19/geo_dollar_index)/'SouthAfrica-IO-Data'!$AT46","v":0},{"$f":"(DS233*'Default-Data'!$F$19/geo_dollar_index)/'SouthAfrica-IO-Data'!$AT46","v":0},0,0,{"$f":"DJ233*'SouthAfrica-IO-Data'!AR46","v":0},{"$f":"DW233*'SouthAfrica-IO-Data'!$AR46","v":0},{"$f":"DX233*'SouthAfrica-IO-Data'!$AR46","v":0},{"$f":"DJ233*'SouthAfrica-IO-Data'!$AS46","v":0},{"$f":"DZ233*'SouthAfrica-IO-Data'!$AS46","v":0},{"$f":"EA233*'SouthAfrica-IO-Data'!$AS46","v":0},{"$f":"(EB233*'Default-Data'!$F$19/geo_dollar_index)/'SouthAfrica-IO-Data'!$AT46","v":0},{"$f":"(EC233*'Default-Data'!$F$19/geo_dollar_index)/'SouthAfrica-IO-Data'!$AT46","v":0},{"$f":"(ED233*'Default-Data'!$F$19/geo_dollar_index)/'SouthAfrica-IO-Data'!$AT46","v":0},null,"HRRN",0,0,null,0,193034.01655689429,{"$f":"EJ233*'Zambia-IO-Data'!BO44","v":0},{"$f":"EM233*'Zambia-IO-Data'!$BO44","v":0},{"$f":"EN233*'Zambia-IO-Data'!$BO44","v":0},{"$f":"EJ233*'Zambia-IO-Data'!BN44","v":0},{"$f":"EM233*'Zambia-IO-Data'!$BN44","v":0},{"$f":"EN233*'Zambia-IO-Data'!$BN44","v":0},0,0,0,0,321.40156940099183,{"$f":"EK233*'Zambia-IO-Data'!BO44","v":0},{"$f":"EX233*'Zambia-IO-Data'!$BO44","v":0},{"$f":"EY233*'Zambia-IO-Data'!$BO44","v":0},{"$f":"EK233*'Zambia-IO-Data'!BN44","v":0},{"$f":"EX233*'Zambia-IO-Data'!$BN44","v":0},{"$f":"EY233*'Zambia-IO-Data'!$BN44","v":0},0,0,0,null,"TTL_C95: Private households with employed persons",0,0,null,0,0,{"$f":"FK233*CustomRegion1!C42","v":0},{"$f":"FN233*CustomRegion1!$C42","v":0},{"$f":"FO233*CustomRegion1!$C42","v":0},{"$f":"FK233*CustomRegion1!D42","v":0},{"$f":"FN233*CustomRegion1!$D42","v":0},{"$f":"FO233*CustomRegion1!$D42","v":0},{"$f":"(FS233*'Default-Data'!$C$58/geo_dollar_index)/CustomRegion1!$E42","v":0},{"$f":"(FT233*'Default-Data'!$C$58/geo_dollar_index)/CustomRegion1!$E42","v":0},{"$f":"(FU233*'Default-Data'!$C$58/geo_dollar_index)/CustomRegion1!$E42","v":0},0,0,{"$f":"FL233*CustomRegion1!C42","v":0},{"$f":"FY233*CustomRegion1!$C42","v":0},{"$f":"FZ233*CustomRegion1!$C42","v":0},{"$f":"FL233*CustomRegion1!D42","v":0},{"$f":"FY233*CustomRegion1!$D42","v":0},{"$f":"FZ233*CustomRegion1!$D42","v":0},{"$f":"(GD233*'Default-Data'!$C$58/geo_dollar_index)/CustomRegion1!$E42","v":0},{"$f":"(GE233*'Default-Data'!$C$58/geo_dollar_index)/CustomRegion1!$E42","v":0},{"$f":"(GF233*'Default-Data'!$C$58/geo_dollar_index)/CustomRegion1!$E42","v":0},null,"C80 Education",0,0,null,6100.1829435489371,156394.31106397056,{"$f":"GL233*CustomRegion2!C46","v":0},{"$f":"GO233*CustomRegion2!$C46","v":5433.2143179625482},{"$f":"GP233*CustomRegion2!$C46","v":139294.80771052168},{"$f":"GL233*CustomRegion2!D46","v":0},{"$f":"GO233*CustomRegion2!$D46","v":4134.2514431984009},{"$f":"GP233*CustomRegion2!$D46","v":105992.46157166547},{"$f":"(GT233*'Default-Data'!$C$59/geo_dollar_index)/CustomRegion2!$E46","v":0},{"$f":"(GU233*'Default-Data'!$C$59/geo_dollar_index)/CustomRegion2!$E46","v":1.0346267066999344},{"$f":"(GV233*'Default-Data'!$C$59/geo_dollar_index)/CustomRegion2!$E46","v":26.525389894058492},44.427982202713324,1625.0963737089792,{"$f":"GM233*CustomRegion2!C46","v":0},{"$f":"GZ233*CustomRegion2!$C46","v":39.570411454174256},{"$f":"HA233*CustomRegion2!$C46","v":1447.41509679509},{"$f":"GM233*CustomRegion2!D46","v":0},{"$f":"GZ233*CustomRegion2!$D46","v":30.1099903461423},{"$f":"HA233*CustomRegion2!$D46","v":1101.3697606311694},{"$f":"(HE233*'Default-Data'!$C$59/geo_dollar_index)/CustomRegion2!$E46","v":0},{"$f":"(HF233*'Default-Data'!$C$59/geo_dollar_index)/CustomRegion2!$E46","v":7.5352456372356708E-3},{"$f":"(HG233*'Default-Data'!$C$59/geo_dollar_index)/CustomRegion2!$E46","v":0.2756258500375971},null,"HRRN",0,0,null,0,193034.01655689429,{"$f":"HM233*CustomRegion3!D45","v":0},{"$f":"HP233*CustomRegion3!$D45","v":0},{"$f":"HQ233*CustomRegion3!$D45","v":0},{"$f":"HM233*CustomRegion3!E45","v":0},{"$f":"HP233*CustomRegion3!E$12","v":0},{"$f":"HQ233*CustomRegion3!F$12","v":19935088.58019321},0,0,0,0,321.40156940099183,{"$f":"HN233*CustomRegion3!D45","v":0},{"$f":"IA233*CustomRegion3!$D45","v":0},{"$f":"IB233*CustomRegion3!$D45","v":0},{"$f":"HN233*CustomRegion3!E45","v":0},{"$f":"IA233*CustomRegion3!$E45","v":0},{"$f":"IB233*CustomRegion3!$E45","v":0},0,0,0]
[null,null,null,null,null,null,null,null,null,null,null,null,null,null,null,null,null,null,null,null,null,null,null,null,null,null,null,null,null,233,"HH",0,0,null,0,21989201.484544106,{"$f":"AF234*'Colombia-IO-Data'!AN47","v":0},{"$f":"AI234*'Colombia-IO-Data'!$AN47","v":0},{"$f":"AJ234*'Colombia-IO-Data'!$AN47","v":0},{"$f":"'Colombia-IO-Data'!$AO47*AK234","v":0},{"$f":"'Colombia-IO-Data'!$AO47*AL234","v":0},{"$f":"'Colombia-IO-Data'!$AO47*AM234","v":0},0,0,0,0,144174.04202933627,{"$f":"AG234*'Colombia-IO-Data'!AN47","v":0},{"$f":"AT234*'Colombia-IO-Data'!$AN47","v":0},{"$f":"AU234*'Colombia-IO-Data'!$AN47","v":0},{"$f":"AV234*'Colombia-IO-Data'!$AO47","v":0},{"$f":"AW234*'Colombia-IO-Data'!$AO47","v":0},{"$f":"AX234*'Colombia-IO-Data'!$AO47","v":0},0,0,0,null,"L",0,0,null,0,23529696.719037548,{"$f":"BG234*'Mexico-IO-Data'!AQ47","v":0},{"$f":"BJ234*'Mexico-IO-Data'!$AQ47","v":0},{"$f":"BK234*'Mexico-IO-Data'!$AQ47","v":0},{"$f":"BG234*'Mexico-IO-Data'!AQ47","v":0},{"$f":"BJ234*'Mexico-IO-Data'!$AR47","v":0},{"$f":"BK234*'Mexico-IO-Data'!$AR47","v":0},0,0,0,0,135311.21244611393,{"$f":"BH234*'Mexico-IO-Data'!AQ47","v":0},{"$f":"BU234*'Mexico-IO-Data'!$AQ47","v":0},{"$f":"BV234*'Mexico-IO-Data'!$AQ47","v":0},{"$f":"BH234*'Mexico-IO-Data'!AR47","v":0},{"$f":"BU234*'Mexico-IO-Data'!$AR47","v":0},{"$f":"BV234*'Mexico-IO-Data'!$AR47","v":0},0,0,0,null,"LHH",0,0,null,0,18245104.287202355,{"$f":"CH234*'Philippines-IO-Data'!AN47","v":0},{"$f":"CK234*'Philippines-IO-Data'!$AN47","v":0},{"$f":"CL234*'Philippines-IO-Data'!$AN47","v":0},{"$f":"CH234*'Philippines-IO-Data'!AO47","v":0},{"$f":"CK234*'Philippines-IO-Data'!$AO47","v":0},{"$f":"CL234*'Philippines-IO-Data'!$AO47","v":0},0,0,0,0,161976.18212758534,{"$f":"CI234*'Philippines-IO-Data'!AN47","v":0},{"$f":"CV234*'Philippines-IO-Data'!$AN47","v":0},{"$f":"CW234*'Philippines-IO-Data'!$AN47","v":0},{"$f":"CI234*'Philippines-IO-Data'!AO47","v":0},{"$f":"CV234*'Philippines-IO-Data'!$AO47","v":0},{"$f":"CW234*'Philippines-IO-Data'!$AO47","v":0},0,0,0,null,"L",0,0,null,0,37516303.996608227,{"$f":"DI234*'SouthAfrica-IO-Data'!AR47","v":0},{"$f":"DL234*'SouthAfrica-IO-Data'!$AR47","v":0},{"$f":"DM234*'SouthAfrica-IO-Data'!$AR47","v":0},{"$f":"DI234*'SouthAfrica-IO-Data'!AS47","v":0},{"$f":"DL234*'SouthAfrica-IO-Data'!$AS47","v":0},{"$f":"DM234*'SouthAfrica-IO-Data'!$AS47","v":0},0,0,0,0,335233.10837384476,{"$f":"DJ234*'SouthAfrica-IO-Data'!AR47","v":0},{"$f":"DW234*'SouthAfrica-IO-Data'!$AR47","v":0},{"$f":"DX234*'SouthAfrica-IO-Data'!$AR47","v":0},{"$f":"DJ234*'SouthAfrica-IO-Data'!$AS47","v":0},{"$f":"DZ234*'SouthAfrica-IO-Data'!$AS47","v":0},{"$f":"EA234*'SouthAfrica-IO-Data'!$AS47","v":0},0,0,0,null,"HRS",0,0,null,0,3966291.7818426839,{"$f":"EJ234*'Zambia-IO-Data'!BO45","v":0},{"$f":"EM234*'Zambia-IO-Data'!$BO45","v":0},{"$f":"EN234*'Zambia-IO-Data'!$BO45","v":0},{"$f":"EJ234*'Zambia-IO-Data'!BN45","v":0},{"$f":"EM234*'Zambia-IO-Data'!$BN45","v":0},{"$f":"EN234*'Zambia-IO-Data'!$BN45","v":0},0,0,0,0,5710.8266252255926,{"$f":"EK234*'Zambia-IO-Data'!BO45","v":0},{"$f":"EX234*'Zambia-IO-Data'!$BO45","v":0},{"$f":"EY234*'Zambia-IO-Data'!$BO45","v":0},{"$f":"EK234*'Zambia-IO-Data'!BN45","v":0},{"$f":"EX234*'Zambia-IO-Data'!$BN45","v":0},{"$f":"EY234*'Zambia-IO-Data'!$BN45","v":0},0,0,0,null,"LHH",0,0,null,0,22797861.906283684,{"$f":"FK234*CustomRegion1!AM43","v":0},{"$f":"FN234*CustomRegion1!$AM43","v":0},{"$f":"FO234*CustomRegion1!$AM43","v":0},{"$f":"FK234*CustomRegion1!AN43","v":0},{"$f":"FN234*CustomRegion1!$AN43","v":0},{"$f":"FO234*CustomRegion1!$AN43","v":0},0,0,0,0,210006.79981009109,{"$f":"FL234*CustomRegion1!AM43","v":0},{"$f":"FY234*CustomRegion1!$AM43","v":0},{"$f":"FZ234*CustomRegion1!$AM43","v":0},{"$f":"FL234*CustomRegion1!AN43","v":0},{"$f":"FY234*CustomRegion1!$AN43","v":0},{"$f":"FZ234*CustomRegion1!$AN43","v":0},0,0,0,null,"C85 Health and social work",0,0,null,1127.753722057362,142958.41526182566,{"$f":"GL234*CustomRegion2!C47","v":0},{"$f":"GO234*CustomRegion2!$C47","v":846.10696964473095},{"$f":"GP234*CustomRegion2!$C47","v":107255.78568850333},{"$f":"GL234*CustomRegion2!D47","v":0},{"$f":"GO234*CustomRegion2!$D47","v":487.9716196160054},{"$f":"GP234*CustomRegion2!$D47","v":61857.166213371434},{"$f":"(GT234*'Default-Data'!$C$59/geo_dollar_index)/CustomRegion2!$E47","v":0},{"$f":"(GU234*'Default-Data'!$C$59/geo_dollar_index)/CustomRegion2!$E47","v":0.22111856380459011},{"$f":"(GV234*'Default-Data'!$C$59/geo_dollar_index)/CustomRegion2!$E47","v":28.029842729144399},7.0463337650182911,1485.4837151854458,{"$f":"GM234*CustomRegion2!C47","v":0},{"$f":"GZ234*CustomRegion2!$C47","v":5.2865727617804534},{"$f":"HA234*CustomRegion2!$C47","v":1114.4969864690231},{"$f":"GM234*CustomRegion2!D47","v":0},{"$f":"GZ234*CustomRegion2!$D47","v":3.0489022846213492},{"$f":"HA234*CustomRegion2!$D47","v":642.75903527044443},{"$f":"(HE234*'Default-Data'!$C$59/geo_dollar_index)/CustomRegion2!$E47","v":0},{"$f":"(HF234*'Default-Data'!$C$59/geo_dollar_index)/CustomRegion2!$E47","v":1.3815739835167529E-3},{"$f":"(HG234*'Default-Data'!$C$59/geo_dollar_index)/CustomRegion2!$E47","v":0.29125864914698579},null,"HRS",0,0,null,0,3966291.7818426839,{"$f":"HM234*CustomRegion3!D46","v":0},{"$f":"HP234*CustomRegion3!$D46","v":0},{"$f":"HQ234*CustomRegion3!$D46","v":0},{"$f":"HM234*CustomRegion3!E46","v":0},{"$f":"HP234*CustomRegion3!E$12","v":0},{"$f":"HQ234*CustomRegion3!F$12","v":409608520.90347445},0,0,0,0,5710.8266252255926,{"$f":"HN234*CustomRegion3!D46","v":0},{"$f":"IA234*CustomRegion3!$D46","v":0},{"$f":"IB234*CustomRegion3!$D46","v":0},{"$f":"HN234*CustomRegion3!E46","v":0},{"$f":"IA234*CustomRegion3!$E46","v":0},{"$f":"IB234*CustomRegion3!$E46","v":0},0,0,0]
[null,null,null,null,null,null,null,null,null,null,null,null,null,null,null,null,null,null,null,null,null,null,null,null,null,null,null,null,null,234,"Total",{"$f":"SUM(AF200:AF234)","v":61462088.363236375},{"$f":"SUM(AG200:AG234)","v":684752.72601706395},null,{"$f":"SUM(AI200:AI234)","v":32084322.586993169},{"$f":"SUM(AJ200:AJ234)","v":53897763.631396994},39451889.998055935,18980072.609924883,17525906.229016688,10644168.490973614,4498663.2768918853,6846369.7166785961,1060.4233218078457,711.4995523053625,1140.2911740193176,347063.57617375156,1385201.5055844965,446156.39580539078,209291.68061413057,770358.14912227436,56501.311804460376,42783.933513699638,144174.04202933621,5.5746955084034537,6.5775973350077743,19.628707471941368,null,null,null,null,null,null,null,null,null,null,null,null,null,null,null,null,null,null,null,null,null,null,null,null,null,null,null,null,null,null,null,null,null,null,null,null,null,null,null,null,null,null,null,null,null,null,null,null,null,null,null,null,null,null,null,null,null,null,null,null,null,null,null,null,null,null,null,null,null,null,null,null,null,null,null,null,null,null,null,null,null,null,"HRM",0,0,null,0,432922.15088887146,{"$f":"EJ235*'Zambia-IO-Data'!BO46","v":0},{"$f":"EM235*'Zambia-IO-Data'!$BO46","v":0},{"$f":"EN235*'Zambia-IO-Data'!$BO46","v":0},{"$f":"EJ235*'Zambia-IO-Data'!BN46","v":0},{"$f":"EM235*'Zambia-IO-Data'!$BN46","v":0},{"$f":"EN235*'Zambia-IO-Data'!$BN46","v":0},0,0,0,0,723.99301206530947,{"$f":"EK235*'Zambia-IO-Data'!BO46","v":0},{"$f":"EX235*'Zambia-IO-Data'!$BO46","v":0},{"$f":"EY235*'Zambia-IO-Data'!$BO46","v":0},{"$f":"EK235*'Zambia-IO-Data'!BN46","v":0},{"$f":"EX235*'Zambia-IO-Data'!$BN46","v":0},{"$f":"EY235*'Zambia-IO-Data'!$BN46","v":0},0,0,0,null,null,null,null,null,null,null,null,null,null,null,null,null,null,null,null,null,null,null,null,null,null,null,null,null,null,null,null,"C90T93 Other community, social and personal services",0,0,null,32465.021155805636,193090.10512495777,{"$f":"GL235*CustomRegion2!C48","v":0},{"$f":"GO235*CustomRegion2!$C48","v":22881.353249150317},{"$f":"GP235*CustomRegion2!$C48","v":136089.94379138545},{"$f":"GL235*CustomRegion2!D48","v":0},{"$f":"GO235*CustomRegion2!$D48","v":4439.104058873173},{"$f":"GP235*CustomRegion2!$D48","v":26402.171902948729},{"$f":"(GT235*'Default-Data'!$C$59/geo_dollar_index)/CustomRegion2!$E48","v":0},{"$f":"(GU235*'Default-Data'!$C$59/geo_dollar_index)/CustomRegion2!$E48","v":3.1689034822912339},{"$f":"(GV235*'Default-Data'!$C$59/geo_dollar_index)/CustomRegion2!$E48","v":18.847482143625136},295.42117162397722,2006.4030942231896,{"$f":"GM235*CustomRegion2!C48","v":0},{"$f":"GZ235*CustomRegion2!$C48","v":208.2128994392254},{"$f":"HA235*CustomRegion2!$C48","v":1414.1132925428326},{"$f":"GM235*CustomRegion2!D48","v":0},{"$f":"GZ235*CustomRegion2!$D48","v":40.394408361522046},{"$f":"HA235*CustomRegion2!$D48","v":274.3454894594795},{"$f":"(HE235*'Default-Data'!$C$59/geo_dollar_index)/CustomRegion2!$E48","v":0},{"$f":"(HF235*'Default-Data'!$C$59/geo_dollar_index)/CustomRegion2!$E48","v":2.8835994746745027E-2},{"$f":"(HG235*'Default-Data'!$C$59/geo_dollar_index)/CustomRegion2!$E48","v":0.19584455903016623},null,"HRM",0,0,null,0,432922.15088887146,{"$f":"HM235*CustomRegion3!D47","v":0},{"$f":"HP235*CustomRegion3!$D47","v":0},{"$f":"HQ235*CustomRegion3!$D47","v":0},{"$f":"HM235*CustomRegion3!E47","v":0},{"$f":"HP235*CustomRegion3!E$12","v":0},{"$f":"HQ235*CustomRegion3!F$12","v":44708914.937558383},0,0,0,0,723.99301206530947,{"$f":"HN235*CustomRegion3!D47","v":0},{"$f":"IA235*CustomRegion3!$D47","v":0},{"$f":"IB235*CustomRegion3!$D47","v":0},{"$f":"HN235*CustomRegion3!E47","v":0},{"$f":"IA235*CustomRegion3!$E47","v":0},{"$f":"IB235*CustomRegion3!$E47","v":0},0,0,0]
[null,null,null,null,null,null,null,null,null,null,null,null,null,null,null,null,null,null,null,null,null,null,null,null,null,null,null,null,null,235,null,null,null,null,null,null,null,null,null,null,null,null,null,null,null,null,null,null,null,null,null,null,null,null,null,null,null,null,null,null,null,null,null,null,null,null,null,null,null,null,null,null,null,null,null,null,null,null,null,null,null,null,null,null,null,null,null,null,null,null,null,null,null,null,null,null,null,null,null,null,null,null,null,null,null,null,null,null,null,null,null,null,null,null,null,null,null,null,null,null,null,null,null,null,null,null,null,null,null,null,null,null,null,null,null,null,null,null,"HRL",0,0,null,0,458663.20815520425,{"$f":"EJ236*'Zambia-IO-Data'!BO47","v":0},{"$f":"EM236*'Zambia-IO-Data'!$BO47","v":0},{"$f":"EN236*'Zambia-IO-Data'!$BO47","v":0},{"$f":"EJ236*'Zambia-IO-Data'!BN47","v":0},{"$f":"EM236*'Zambia-IO-Data'!$BN47","v":0},{"$f":"EN236*'Zambia-IO-Data'!$BN47","v":0},0,0,0,0,816.81580540722985,{"$f":"EK236*'Zambia-IO-Data'!BO47","v":0},{"$f":"EX236*'Zambia-IO-Data'!$BO47","v":0},{"$f":"EY236*'Zambia-IO-Data'!$BO47","v":0},{"$f":"EK236*'Zambia-IO-Data'!BN47","v":0},{"$f":"EX236*'Zambia-IO-Data'!$BN47","v":0},{"$f":"EY236*'Zambia-IO-Data'!$BN47","v":0},0,0,0,null,null,null,null,null,null,null,null,null,null,null,null,null,null,null,null,null,null,null,null,null,null,null,null,null,null,null,null,"C95 Private households with employed persons",0,0,null,0,42675.220124163687,{"$f":"GL236*CustomRegion2!C49","v":0},{"$f":"GO236*CustomRegion2!$C49","v":0},{"$f":"GP236*CustomRegion2!$C49","v":42675.220124163687},{"$f":"GL236*CustomRegion2!D49","v":0},{"$f":"GO236*CustomRegion2!$D49","v":0},{"$f":"GP236*CustomRegion2!$D49","v":42675.220124163687},{"$f":"(GT236*'Default-Data'!$C$59/geo_dollar_index)/CustomRegion2!$E49","v":0},{"$f":"(GU236*'Default-Data'!$C$59/geo_dollar_index)/CustomRegion2!$E49","v":0},{"$f":"(GV236*'Default-Data'!$C$59/geo_dollar_index)/CustomRegion2!$E49","v":8.4931033075051658},0,443.43905477894151,{"$f":"GM236*CustomRegion2!C49","v":0},{"$f":"GZ236*CustomRegion2!$C49","v":0},{"$f":"HA236*CustomRegion2!$C49","v":443.43905477894151},{"$f":"GM236*CustomRegion2!D49","v":0},{"$f":"GZ236*CustomRegion2!$D49","v":0},{"$f":"HA236*CustomRegion2!$D49","v":443.43905477894151},{"$f":"(HE236*'Default-Data'!$C$59/geo_dollar_index)/CustomRegion2!$E49","v":0},{"$f":"(HF236*'Default-Data'!$C$59/geo_dollar_index)/CustomRegion2!$E49","v":0},{"$f":"(HG236*'Default-Data'!$C$59/geo_dollar_index)/CustomRegion2!$E49","v":8.8252004134068862E-2},null,"HRL",0,0,null,0,458663.20815520425,{"$f":"HM236*CustomRegion3!D48","v":0},{"$f":"HP236*CustomRegion3!$D48","v":0},{"$f":"HQ236*CustomRegion3!$D48","v":0},{"$f":"HM236*CustomRegion3!E48","v":0},{"$f":"HP236*CustomRegion3!E$12","v":0},{"$f":"HQ236*CustomRegion3!F$12","v":47367256.021192864},0,0,0,0,816.81580540722985,{"$f":"HN236*CustomRegion3!D48","v":0},{"$f":"IA236*CustomRegion3!$D48","v":0},{"$f":"IB236*CustomRegion3!$D48","v":0},{"$f":"HN236*CustomRegion3!E48","v":0},{"$f":"IA236*CustomRegion3!$E48","v":0},{"$f":"IB236*CustomRegion3!$E48","v":0},0,0,0]
[null,null,null,null,null,null,null,null,null,null,null,null,null,null,null,null,null,null,null,null,null,null,null,null,null,null,null,null,null,236,null,null,null,null,null,null,null,null,null,null,null,null,null,null,null,null,null,null,null,null,null,null,null,null,null,null,null,null,null,null,null,null,null,null,null,null,null,null,null,null,null,null,null,null,null,null,null,null,null,null,null,null,null,null,null,null,null,null,null,null,null,null,null,null,null,null,null,null,null,null,null,null,null,null,null,null,null,null,null,null,null,null,null,null,null,null,null,null,null,null,null,null,null,null,null,null,null,null,null,null,null,null,null,null,null,null,null,null,"HRN",0,0,null,0,371069.28341061063,{"$f":"EJ237*'Zambia-IO-Data'!BO48","v":0},{"$f":"EM237*'Zambia-IO-Data'!$BO48","v":0},{"$f":"EN237*'Zambia-IO-Data'!$BO48","v":0},{"$f":"EJ237*'Zambia-IO-Data'!BN48","v":0},{"$f":"EM237*'Zambia-IO-Data'!$BN48","v":0},{"$f":"EN237*'Zambia-IO-Data'!$BN48","v":0},0,0,0,0,621.52099501672137,{"$f":"EK237*'Zambia-IO-Data'!BO48","v":0},{"$f":"EX237*'Zambia-IO-Data'!$BO48","v":0},{"$f":"EY237*'Zambia-IO-Data'!$BO48","v":0},{"$f":"EK237*'Zambia-IO-Data'!BN48","v":0},{"$f":"EX237*'Zambia-IO-Data'!$BN48","v":0},{"$f":"EY237*'Zambia-IO-Data'!$BN48","v":0},0,0,0,null,null,null,null,null,null,null,null,null,null,null,null,null,null,null,null,null,null,null,null,null,null,null,null,null,null,null,null,"L",0,0,null,0,5551712.4677437134,{"$f":"GL237*CustomRegion2!C50","v":0},{"$f":"GO237*CustomRegion2!$C50","v":0},{"$f":"GP237*CustomRegion2!$C50","v":0},{"$f":"GL237*CustomRegion2!D50","v":0},{"$f":"GO237*CustomRegion2!$D50","v":0},{"$f":"GP237*CustomRegion2!$D50","v":0},0,0,0,0,57687.953850923041,{"$f":"GM237*CustomRegion2!C50","v":0},{"$f":"GZ237*CustomRegion2!$C50","v":0},{"$f":"HA237*CustomRegion2!$C50","v":0},{"$f":"GM237*CustomRegion2!D50","v":0},{"$f":"GZ237*CustomRegion2!$D50","v":0},{"$f":"HA237*CustomRegion2!$D50","v":0},0,0,0,null,"HRN",0,0,null,0,371069.28341061063,{"$f":"HM237*CustomRegion3!D49","v":0},{"$f":"HP237*CustomRegion3!$D49","v":0},{"$f":"HQ237*CustomRegion3!$D49","v":0},{"$f":"HM237*CustomRegion3!E49","v":0},{"$f":"HP237*CustomRegion3!E$12","v":0},{"$f":"HQ237*CustomRegion3!F$12","v":38321220.094382085},0,0,0,0,621.52099501672137,{"$f":"HN237*CustomRegion3!D49","v":0},{"$f":"IA237*CustomRegion3!$D49","v":0},{"$f":"IB237*CustomRegion3!$D49","v":0},{"$f":"HN237*CustomRegion3!E49","v":0},{"$f":"IA237*CustomRegion3!$E49","v":0},{"$f":"IB237*CustomRegion3!$E49","v":0},0,0,0]
[null,null,null,null,null,null,null,null,null,null,null,null,null,null,null,null,null,null,null,null,null,null,null,null,null,null,null,null,null,237,null,null,null,null,null,null,null,null,null,null,null,null,null,null,null,null,null,null,null,null,null,null,null,null,null,null,null,null,null,null,null,null,null,null,null,null,null,null,null,null,null,null,null,null,null,null,null,null,null,null,null,null,null,null,null,null,null,null,null,null,null,null,null,null,null,null,null,null,null,null,null,null,null,null,null,null,null,null,null,null,null,null,null,null,null,null,null,null,null,null,null,null,null,null,null,null,null,null,null,null,null,null,null,null,null,null,null,null,"HUSE",0,0,null,0,1488198.7993965361,{"$f":"EJ238*'Zambia-IO-Data'!BO49","v":0},{"$f":"EM238*'Zambia-IO-Data'!$BO49","v":0},{"$f":"EN238*'Zambia-IO-Data'!$BO49","v":0},{"$f":"EJ238*'Zambia-IO-Data'!BN49","v":0},{"$f":"EM238*'Zambia-IO-Data'!$BN49","v":0},{"$f":"EN238*'Zambia-IO-Data'!$BN49","v":0},0,0,0,0,2577.9722629524135,{"$f":"EK238*'Zambia-IO-Data'!BO49","v":0},{"$f":"EX238*'Zambia-IO-Data'!$BO49","v":0},{"$f":"EY238*'Zambia-IO-Data'!$BO49","v":0},{"$f":"EK238*'Zambia-IO-Data'!BN49","v":0},{"$f":"EX238*'Zambia-IO-Data'!$BN49","v":0},{"$f":"EY238*'Zambia-IO-Data'!$BN49","v":0},0,0,0,null,null,null,null,null,null,null,null,null,null,null,null,null,null,null,null,null,null,null,null,null,null,null,null,null,null,null,null,"HH",0,0,null,0,5551712.4677437134,{"$f":"GL238*CustomRegion2!C51","v":0},{"$f":"GO238*CustomRegion2!$C51","v":0},{"$f":"GP238*CustomRegion2!$C51","v":0},{"$f":"GL238*CustomRegion2!D51","v":0},{"$f":"GO238*CustomRegion2!$D51","v":0},{"$f":"GP238*CustomRegion2!$D51","v":0},0,0,0,0,57687.953850923041,{"$f":"GM238*CustomRegion2!C51","v":0},{"$f":"GZ238*CustomRegion2!$C51","v":0},{"$f":"HA238*CustomRegion2!$C51","v":0},{"$f":"GM238*CustomRegion2!D51","v":0},{"$f":"GZ238*CustomRegion2!$D51","v":0},{"$f":"HA238*CustomRegion2!$D51","v":0},0,0,0,null,"HUSE",0,0,null,0,1488198.7993965361,{"$f":"HM238*CustomRegion3!D50","v":0},{"$f":"HP238*CustomRegion3!$D50","v":0},{"$f":"HQ238*CustomRegion3!$D50","v":0},{"$f":"HM238*CustomRegion3!E50","v":0},{"$f":"HP238*CustomRegion3!E$12","v":0},{"$f":"HQ238*CustomRegion3!F$12","v":153689880.26088685},0,0,0,0,2577.9722629524135,{"$f":"HN238*CustomRegion3!D50","v":0},{"$f":"IA238*CustomRegion3!$D50","v":0},{"$f":"IB238*CustomRegion3!$D50","v":0},{"$f":"HN238*CustomRegion3!E50","v":0},{"$f":"IA238*CustomRegion3!$E50","v":0},{"$f":"IB238*CustomRegion3!$E50","v":0},0,0,0]
[null,null,null,null,null,null,null,null,null,null,null,null,null,null,null,null,null,null,null,null,null,null,null,null,null,null,null,null,null,238,null,null,null,null,null,null,null,null,null,null,null,null,null,null,null,null,null,null,null,null,null,null,null,null,null,null,null,null,null,null,null,null,null,null,null,null,null,null,null,null,null,null,null,null,null,null,null,null,null,null,null,null,null,null,null,null,null,null,null,null,null,null,null,null,null,null,null,null,null,null,null,null,null,null,null,null,null,null,null,null,null,null,null,null,null,null,null,null,null,null,null,null,null,null,null,null,null,null,null,null,null,null,null,null,null,null,null,null,"HUPR",0,0,null,0,3497178.6747406996,{"$f":"EJ239*'Zambia-IO-Data'!BO50","v":0},{"$f":"EM239*'Zambia-IO-Data'!$BO50","v":0},{"$f":"EN239*'Zambia-IO-Data'!$BO50","v":0},{"$f":"EJ239*'Zambia-IO-Data'!BN50","v":0},{"$f":"EM239*'Zambia-IO-Data'!$BN50","v":0},{"$f":"EN239*'Zambia-IO-Data'!$BN50","v":0},0,0,0,0,6215.7791603380228,{"$f":"EK239*'Zambia-IO-Data'!BO50","v":0},{"$f":"EX239*'Zambia-IO-Data'!$BO50","v":0},{"$f":"EY239*'Zambia-IO-Data'!$BO50","v":0},{"$f":"EK239*'Zambia-IO-Data'!BN50","v":0},{"$f":"EX239*'Zambia-IO-Data'!$BN50","v":0},{"$f":"EY239*'Zambia-IO-Data'!$BN50","v":0},0,0,0,null,null,null,null,null,null,null,null,null,null,null,null,null,null,null,null,null,null,null,null,null,null,null,null,null,null,null,null,null,null,null,null,null,null,null,null,null,null,null,null,null,null,null,null,null,null,null,null,null,null,null,null,null,null,null,"HUPR",0,0,null,0,3497178.6747406996,{"$f":"HM239*CustomRegion3!D51","v":0},{"$f":"HP239*CustomRegion3!$D51","v":0},{"$f":"HQ239*CustomRegion3!$D51","v":0},{"$f":"HM239*CustomRegion3!E51","v":0},{"$f":"HP239*CustomRegion3!E$12","v":0},{"$f":"HQ239*CustomRegion3!F$12","v":361162078.60789388},0,0,0,0,6215.7791603380228,{"$f":"HN239*CustomRegion3!D51","v":0},{"$f":"IA239*CustomRegion3!$D51","v":0},{"$f":"IB239*CustomRegion3!$D51","v":0},{"$f":"HN239*CustomRegion3!E51","v":0},{"$f":"IA239*CustomRegion3!$E51","v":0},{"$f":"IB239*CustomRegion3!$E51","v":0},0,0,0]
[null,null,null,null,null,null,null,null,null,null,null,null,null,null,null,null,null,null,null,null,null,null,null,null,null,null,null,null,null,239,null,null,null,null,null,null,null,null,null,null,null,null,null,null,null,null,null,null,null,null,null,null,null,null,null,null,null,null,null,null,null,null,null,null,null,null,null,null,null,null,null,null,null,null,null,null,null,null,null,null,null,null,null,null,null,null,null,null,null,null,null,null,null,null,null,null,null,null,null,null,null,null,null,null,null,null,null,null,null,null,null,null,null,null,null,null,null,null,null,null,null,null,null,null,null,null,null,null,null,null,null,null,null,null,null,null,null,null,"HUPU",0,0,null,0,6002715.9313139962,{"$f":"EJ240*'Zambia-IO-Data'!BO51","v":0},{"$f":"EM240*'Zambia-IO-Data'!$BO51","v":0},{"$f":"EN240*'Zambia-IO-Data'!$BO51","v":0},{"$f":"EJ240*'Zambia-IO-Data'!BN51","v":0},{"$f":"EM240*'Zambia-IO-Data'!$BN51","v":0},{"$f":"EN240*'Zambia-IO-Data'!$BN51","v":0},0,0,0,0,10092.77407695363,{"$f":"EK240*'Zambia-IO-Data'!BO51","v":0},{"$f":"EX240*'Zambia-IO-Data'!$BO51","v":0},{"$f":"EY240*'Zambia-IO-Data'!$BO51","v":0},{"$f":"EK240*'Zambia-IO-Data'!BN51","v":0},{"$f":"EX240*'Zambia-IO-Data'!$BN51","v":0},{"$f":"EY240*'Zambia-IO-Data'!$BN51","v":0},0,0,0,null,null,null,null,null,null,null,null,null,null,null,null,null,null,null,null,null,null,null,null,null,null,null,null,null,null,null,null,null,null,null,null,null,null,null,null,null,null,null,null,null,null,null,null,null,null,null,null,null,null,null,null,null,null,null,"HUPU",0,0,null,0,6002715.9313139962,{"$f":"HM240*CustomRegion3!D52","v":0},{"$f":"HP240*CustomRegion3!$D52","v":0},{"$f":"HQ240*CustomRegion3!$D52","v":0},{"$f":"HM240*CustomRegion3!E52","v":0},{"$f":"HP240*CustomRegion3!E$12","v":0},{"$f":"HQ240*CustomRegion3!F$12","v":619914955.64830601},0,0,0,0,10092.77407695363,{"$f":"HN240*CustomRegion3!D52","v":0},{"$f":"IA240*CustomRegion3!$D52","v":0},{"$f":"IB240*CustomRegion3!$D52","v":0},{"$f":"HN240*CustomRegion3!E52","v":0},{"$f":"IA240*CustomRegion3!$E52","v":0},{"$f":"IB240*CustomRegion3!$E52","v":0},0,0,0]
[null,null,null,null,null,null,null,null,null,null,null,null,null,null,null,null,null,null,null,null,null,null,null,null,null,null,null,null,null,240,null,null,null,null,null,null,null,null,null,null,null,null,null,null,null,null,null,null,null,null,null,null,null,null,null,null,null,null,null,null,null,null,null,null,null,null,null,null,null,null,null,null,null,null,null,null,null,null,null,null,null,null,null,null,null,null,null,null,null,null,null,null,null,null,null,null,null,null,null,null,null,null,null,null,null,null,null,null,null,null,null,null,null,null,null,null,null,null,null,null,null,null,null,null,null,null,null,null,null,null,null,null,null,null,null,null,null,null,"HUEM",0,0,null,0,357643.56875091104,{"$f":"EJ241*'Zambia-IO-Data'!BO52","v":0},{"$f":"EM241*'Zambia-IO-Data'!$BO52","v":0},{"$f":"EN241*'Zambia-IO-Data'!$BO52","v":0},{"$f":"EJ241*'Zambia-IO-Data'!BN52","v":0},{"$f":"EM241*'Zambia-IO-Data'!$BN52","v":0},{"$f":"EN241*'Zambia-IO-Data'!$BN52","v":0},0,0,0,null,null,{"$f":"EK241*'Zambia-IO-Data'!BO52","v":0},{"$f":"EX241*'Zambia-IO-Data'!$BO52","v":0},{"$f":"EY241*'Zambia-IO-Data'!$BO52","v":0},{"$f":"EK241*'Zambia-IO-Data'!BN52","v":0},{"$f":"EX241*'Zambia-IO-Data'!$BN52","v":0},{"$f":"EY241*'Zambia-IO-Data'!$BN52","v":0},0,0,0,null,null,null,null,null,null,null,null,null,null,null,null,null,null,null,null,null,null,null,null,null,null,null,null,null,null,null,null,null,null,null,null,null,null,null,null,null,null,null,null,null,null,null,null,null,null,null,null,null,null,null,null,null,null,null,"HUEM",0,0,null,0,357643.56875091104,{"$f":"HM241*CustomRegion3!D53","v":0},{"$f":"HP241*CustomRegion3!$D53","v":0},{"$f":"HQ241*CustomRegion3!$D53","v":0},{"$f":"HM241*CustomRegion3!E53","v":0},{"$f":"HP241*CustomRegion3!E$12","v":0},{"$f":"HQ241*CustomRegion3!F$12","v":36934714.152230561},0,0,0,0,715.76964562853595,{"$f":"HN241*CustomRegion3!D53","v":0},{"$f":"IA241*CustomRegion3!$D53","v":0},{"$f":"IB241*CustomRegion3!$D53","v":0},{"$f":"HN241*CustomRegion3!E53","v":0},{"$f":"IA241*CustomRegion3!$E53","v":0},{"$f":"IB241*CustomRegion3!$E53","v":0},0,0,0]
[null,null,null,null,null,null,null,null,null,null,null,null,null,null,null,null,null,null,null,null,null,null,null,null,null,null,null,null,null,241]
[null,null,null,null,null,null,null,null,null,null,null,null,null,null,null,null,null,null,null,null,null,null,null,null,null,null,null,null,null,242,"Agriculture",{"$f":"AF200","v":0},{"$f":"AG200","v":0},null,{"$f":"AI200","v":176655.78310190927},1940756.3426498668,0,122298.96256056448,1343587.4168466374,0,32287.865098059661,354717.39378910436,0,6.8255170677640429,74.985745207595315,809.52221910459093,13534.253797492058,0,560.4329834427449,9369.7764624540578,0,147.95861049877192,2473.6929249818727,0,3.1277819645706757E-2,0.52292814122558973,null,"Agriculture",{"$f":"BG200","v":0},{"$f":"BH200","v":0},null,{"$f":"BJ200","v":54390.165204699435},1230359.4732993485,0,33171.226855306159,750366.04593474173,0,5464.4535472250709,123611.35809993258,0,5.37819621210223,121.66013164179387,693.12521502753532,7075.3751765104225,0,422.7200572066784,4315.0976685423002,0,69.636680191607553,710.8465075573996,0,6.8537453268326276E-2,0.69962567369114459,null,"Agriculture",{"$f":"CH200","v":0},{"$f":"CI200","v":0},null,{"$f":"CK200","v":502601.6048658645},3357808.2025789535,0,354714.49732165749,2369795.9520009998,0,102103.05839259602,682135.67895501526,0,60.6933171789575,405.48322228222747,1402.334404059945,29809.911985645656,0,989.70703315948288,21038.547913139209,0,284.88295731147105,6055.8564769422728,0,0.16934352368271796,3.5997944011827396,null,"Agriculture",{"$f":"DI200","v":0},{"$f":"DJ200","v":0},null,{"$f":"DL200","v":341134.07532393036},2075543.6380722537,0,137766.61192191479,838205.95946558262,0,42261.130365472323,257127.11397859314,0,3.0385550903081477,18.487316696910252,1705.9693582651721,18546.361747666422,0,688.95380301021805,7489.9272933317807,0,85.350507589003371,927.88383415181818,0,6.1366607341585685E-3,6.671440453897895E-2,null,"Agriculture",{"$f":"SUM(EJ200:EJ212)","v":0},{"$f":"SUM(EK200:EK212)","v":0},{"$f":"SUM(EL200:EL212)","v":0},332568.53344473592,9511279.7442461774,0,100736.17122152896,3558034.9871934126,0,61298.706401964213,2850915.9800083372,0,611.70104073500238,28449.348679293966,4919.9406090682678,14489.62051965408,0,1533.17172493629,5396.323333786896,0,916.34450064279611,4321.6275531507963,0,0,0,null,"Agriculture",{"$f":"FK200","v":0},{"$f":"FL200","v":0},null,{"$f":"FN200","v":899523.59819355432},4363869.8998754863,0,634844.89081038744,3079830.8300757604,0,182737.39992610278,886516.19670731504,0,109.07883596724949,529.17549906068325,3682.7590079009592,40198.609686631979,0,2599.1321905807099,28370.441896676108,0,748.14913917738886,8166.3109556340423,0,0.44658202023433891,4.8745998003001985,null,"Agriculture",{"$f":"GL200","v":0},{"$f":"GM200","v":0},0,47367.298592181403,470466.44929320179,0,29186.851200842448,289892.70358719432,0,5241.5065879083413,52060.241277242712,0,5.1587685087217441,51.238461452486497,386.42989863872469,4888.626162273853,0,238.1109391150033,3012.2808058634828,0,42.761038093355808,540.95899485407881,0,4.2086047783502736E-2,{"$f":"HJ200","v":0.53241986447194956},null,"Agriculture",{"$f":"SUM(HM200:HM212)","v":0},{"$f":"SUM(HN200:HN212)","v":0},{"$f":"SUM(HO200:HO212)","v":0},332568.53344473592,9511279.7442461774,0,100736.17122152896,3558034.9871934126,0,104334.29129620123,982252804.94363225,0,1045.3708296894761,9841619.8251986001,4919.9406090682678,14489.62051965408,0,1533.17172493629,5396.323333786896,0,916.34450064279611,4321.6275531507963,0,0,0]
[null,null,null,null,null,null,null,null,null,null,null,null,null,null,null,null,null,null,null,null,null,null,null,null,null,null,null,null,null,243,"Mining and Extraction",{"$f":"AF201","v":5014475.5956324572},{"$f":"AG201","v":289655.84590096516},null,{"$f":"AI201","v":3975400.3305062549},490250.33650543168,4106270.0883165463,3255388.7549995449,401457.79038844252,340585.14824014984,270010.748892406,33297.995044370386,33.603794947171515,26.640579855569328,3.285342897083642,75111.919942908629,367982.13325370924,237194.32136934047,61507.893349053513,301334.40635960229,19673.538605059966,5101.6310480480543,24993.49074768681,1.9410874507761742,0.50335184760860641,2.4659799243714859,null,"Mining and Extraction",{"$f":"BG201","v":5014475.5956324572},{"$f":"BH201","v":289655.84590096516},null,{"$f":"BJ201","v":4559572.4658072433},679525.57002037391,4317099.1687244391,3925460.6242415272,585022.14588840876,4317099.1687244391,243621.50164906436,36307.57949758583,232.63024090414245,13.127733786758485,1.9564621138099272,63227.770912158303,3907.7183979683323,249372.63881478983,54434.517037618636,3364.2616313003577,15476.537036971906,3378.3089557314274,208.79243202600904,0.83396521566041093,0.18204280131295444,1.1250942325590249E-2,null,"Mining and Extraction",{"$f":"CH201","v":5014475.5956324572},{"$f":"CI201","v":289655.84590096516},null,{"$f":"CK201","v":1085278.8721645093},187632.19701297581,2886764.9259094782,624780.18353980139,108017.28615055297,754607.42788993986,163319.07148589141,28235.983379921523,241.87974350708504,52.349836034988428,9.0506827327465071,15041.693481547583,1665.7590133748017,166750.90357600673,8659.2969375766115,958.95465101400237,43589.094947234233,2263.5614458081518,250.67309643745571,13.97192595231218,0.72555562228637005,8.035004961448898E-2,null,"Mining and Extraction",{"$f":"DI201","v":5014475.5956324572},{"$f":"DJ201","v":289655.84590096516},null,{"$f":"DL201","v":4645187.0954636885},1097000.0511005055,2986594.3888787841,2766648.1668965435,653367.26338245999,1011894.8269651455,937374.34803331748,221368.84619718554,66.336792671892468,61.451453376763233,14.512278215949971,62108.581345017767,9802.4244885618682,172517.44625644159,36991.533213924442,5838.2707058033666,58451.027725149841,7464.6970329822507,1178.1323516202012,3.8318742267825234,0.48936316921451245,7.7234826650784308E-2,null,"Mining and Extraction",{"$f":"EJ213","v":5014475.5956324572},{"$f":"EK213","v":289655.84590096516},{"$f":"EL213","v":0},4910115.8069869699,240225.77924755774,1225097.6258852915,1199601.2550546438,58690.091559914777,44680.509178239277,43750.631585759802,2140.48506764473,40.584436136291465,39.739804809105706,1.9442567044607784,237374.72683864087,396.07088246929925,70766.460494123006,57993.544638741048,96.764953491458982,2580.9220594434687,2115.0813198559872,3.5291125386703261,2.3443167596049537,1.9211818380656387,3.2055821448249535E-3,null,"Mining and Extraction",{"$f":"FK201","v":5014475.5956324572},{"$f":"FL201","v":289655.84590096516},null,{"$f":"FN201","v":7900992.3020119919},1693859.6970365355,2886764.9259094782,4548493.0622046981,975131.82975217886,754607.42788993986,1188987.2360715917,254901.85061434293,242.89044445947073,382.70712366773495,82.046931292981483,102886.21506366844,15603.307703337225,166750.90357600673,59230.184959732942,8982.6105536138239,43589.094947234233,15482.915537997298,2348.0764175711438,14.030308017142882,4.9835876212725321,0.75579076432287562,null,"Mining and Extraction",{"$f":"GL201","v":5014475.5956324572},{"$f":"GM201","v":289655.84590096516},0,835869.91957682371,261257.17951168027,4075042.1228162651,679274.4458537919,212312.13336157225,321613.1573568029,53610.145038660427,16756.237971936309,17.33037471454724,2.8888242933123225,0.90292289421982774,10642.905789634155,2714.7285098893335,235390.4711779808,8649.0179431123852,2206.1395690996433,18577.641743476346,682.60348847575165,174.11439955804937,1.0010706507566012,3.6782619013368788E-2,{"$f":"HJ201","v":9.382289618803644E-3},null,"Mining and Extraction",{"$f":"HM213","v":5014475.5956324572},{"$f":"HN213","v":289655.84590096516},{"$f":"HO213","v":0},4910115.8069869699,240225.77924755774,1225097.6258852915,1199601.2550546438,58690.091559914777,44680.509178239277,1540414.6856527254,24808695.762358189,40.748808413777482,1404.8645384283811,22625.632724623854,237374.72683864087,396.07088246929925,70766.460494123006,57993.544638741048,96.764953491458982,2580.9220594434687,2115.0813198559872,3.5291125386703261,2.3538115492733591,1.928962875927718,3.218565172014094E-3]
[null,null,null,null,null,null,null,null,null,null,null,null,null,null,null,null,null,null,null,null,null,null,null,null,null,null,null,null,null,244,"Utilities",{"$f":"AF218","v":27683059.645699918},{"$f":"AG218","v":395096.88011609885},null,{"$f":"AI218","v":8907500.1034788266},1429710.6338909492,14641243.354294609,4711071.6215104461,756157.07168668148,2580393.5525831785,830285.96299762896,133266.19777466939,254.59423663085801,81.920070185838128,13.148694259127053,121828.69406331994,526299.59174732666,208962.07443605029,64433.757689571161,278353.63932524907,36827.773199400406,11355.897097503475,49057.441289113849,3.6336080576272796,1.1204282966461481,4.840246869924882,null,"Utilities",{"$f":"BG218","v":27683059.645699918},{"$f":"BH218","v":395096.88011609885},null,{"$f":"BJ218","v":967337.52330542356},648643.06234579533,12383400.575138837,432716.91047757713,290156.03672841971,12383400.575138837,104516.17709428024,70082.770017497271,686.78208283436925,5.7964560993692,3.886782994006412,9347.7510433829157,3730.1236925743287,176737.79542736511,4181.5083711262923,1668.5878104206956,42688.321807789296,1009.9796399348195,403.02196394130436,2.3674898010418808,5.6013363738495144E-2,2.2351555386110399E-2,null,"Utilities",{"$f":"CH218","v":27683059.645699918},{"$f":"CI218","v":395096.88011609885},null,{"$f":"CK218","v":3790324.2690732516},995994.73831524327,16589240.452049443,2271374.6780754356,596855.85388153302,3435655.2683531484,470404.92310000467,123609.69537831821,896.48482746742627,122.74539887911371,32.254172138653061,34319.055388940847,8842.2309125754982,236764.18827926132,20565.900923555539,5298.7602027597632,49034.199797767593,4259.2273022188556,1097.3807667066853,12.794769181477303,1.1113841043209514,0.28634572751493892,null,"Utilities",{"$f":"DI218","v":27683059.645699918},{"$f":"DJ218","v":395096.88011609885},null,{"$f":"DL218","v":5215662.9644545019},1755315.0537940785,15052015.219652895,2835894.5624619089,954411.4430681566,4918487.8487937246,926674.11920480023,311869.27577320527,184.54298915533749,34.769062603841633,11.701419246367093,66845.068812275073,15684.906533223286,214824.67360390414,36345.440352269652,8528.3005158565411,70197.414188254217,6457.5451203589537,1515.235056924688,2.6338258919258792,0.24228883261524614,5.6852027548755478E-2,null,"Utilities",{"$f":"EJ219","v":27683059.645699918},{"$f":"EK219","v":395096.88011609885},{"$f":"EL219","v":0},32759677.018976897,1025132.3968922049,7379177.7807282805,8732397.4971032236,273258.60299646168,365291.32590510085,432279.74102724483,13527.116485015966,637.65642636649318,754.5921167744242,23.613078507972627,423455.33106875705,1708.4945779808331,105316.75892410442,112875.96855786444,455.41516688128178,5213.493921760085,5587.6973617588283,22.544410107834199,9.1007304780530731,9.7539439856347911,3.9353762228772009E-2,null,"Utilities",{"$f":"FK218","v":27683059.645699918},{"$f":"FL218","v":395096.88011609885},null,{"$f":"FN218","v":4234284.811646089},1304994.3786217496,16589240.452049443,2537420.7107836427,782025.75194363785,3435655.2683531484,525503.43448395922,161958.64436464096,900.23081320307824,137.6955332288822,42.437366596310731,38896.34781024541,12021.201564914139,236764.18827926132,23308.871013140993,7203.7775388708005,49034.199797767593,4827.300305106407,1491.9125637489901,12.848232465379356,1.2648779169641415,0.39091979712371716,null,"Utilities",{"$f":"GL220","v":0},{"$f":"GM220","v":0},0,256439.57817838798,210115.15093197933,0,100734.27053329759,82537.167653594501,0,37929.160596884249,31077.462223845068,0,2.1035472249184992,1.7235527596634701,2750.5835628389095,2183.3106813022541,0,1080.4807538355547,857.64533848806263,0,406.83004718364288,322.9265234807076,0,2.2562751278943784E-2,{"$f":"HJ220","v":1.7909470751014261E-2},null,"Utilities",{"$f":"HM219","v":27683059.645699918},{"$f":"HN219","v":395096.88011609885},{"$f":"HO219","v":0},32759677.018976897,1025132.3968922049,7379177.7807282805,8732397.4971032236,273258.60299646168,365291.32590510085,10277453.640800864,105867895.73664914,640.23901834099968,18013.093559579636,185552.60646366494,423455.33106875705,1708.4945779808331,105316.75892410442,112875.96855786444,455.41516688128178,5213.493921760085,5587.6973617588283,22.544410107834199,9.1375896274678983,9.7934487352389432,3.9513150115878859E-2]
[null,null,null,null,null,null,null,null,null,null,null,null,null,null,null,null,null,null,null,null,null,null,null,null,null,null,null,null,null,245,"Construction",{"$f":"AF219","v":0},{"$f":"AG219","v":0},null,{"$f":"AI219","v":1232163.0285400243},286578.00829315651,0,611846.21745789994,142303.95355113584,0,120662.83827110163,28063.912863628277,0,34.253874253779742,7.9668086386294004,17395.045628993936,19274.018353009502,0,8637.7310664956349,9570.7588617360816,0,1703.4560596552983,1887.459455847393,0,0.48357862702659743,0.53581367541217761,null,"Construction",{"$f":"BG219","v":0},{"$f":"BH219","v":0},null,{"$f":"BJ219","v":131574.81426040066},43309.586319123395,0,66174.571263382823,21782.233342852021,0,29104.657821039837,9580.182174486592,0,10.212657237501775,3.3616308916069033,2369.4714013210551,249.05857076511984,0,1191.7079646637096,125.26215015006102,0,524.13263693235831,55.092340584041921,0,0.18391513141613347,1.9331585832622126E-2,null,"Construction",{"$f":"CH219","v":0},{"$f":"CI219","v":0},null,{"$f":"CK219","v":452653.37884354743},297945.5658268996,0,249108.07046058538,163967.9465003607,0,76549.551742490541,50386.455892545018,0,24.536978111692388,16.150732920293219,7692.1955720484657,2645.0978012954092,0,4233.234713621242,1455.6727956911598,0,1300.8499449628584,447.32031277777185,0,0.41697078427740275,0.14338279550566158,null,"Construction",{"$f":"DI219","v":0},{"$f":"DJ219","v":0},null,{"$f":"DL219","v":1155846.0957884227},598544.98295010277,0,344153.92800662469,178217.15860053635,0,155216.60651596601,80377.587845984075,0,15.144581859996457,7.8424917678982302,5963.7064037911623,5348.3971969646427,0,1775.6974668353141,1592.4887496543806,0,238.45539298479949,213.85260592812784,0,2.32662425759479E-2,2.0865733178614194E-2,null,"Construction",{"$f":"EJ221","v":0},{"$f":"EK221","v":0},{"$f":"EL221","v":0},2916860.9715413759,691758.57476286404,0,176953.79689111182,41966.109297141884,0,77833.332407393391,18458.841755056525,0,279.04082540633709,66.176922920579713,35054.121640073849,1143.2986827257337,0,2126.5874450012216,69.359165507986702,0,935.38194945893997,30.507709240081873,0,3.3534443813999921,0.10937340216979249,null,"Construction",{"$f":"FK219","v":0},{"$f":"FL219","v":0},null,{"$f":"FN219","v":629477.80533690262},387440.69951113535,0,346419.59789598308,213219.67223507055,0,106452.85351341967,65521.242656238624,0,34.264678491376593,21.089752316394865,9873.185507604263,3568.9829930099859,0,5433.4957078687748,1964.1131789776236,0,1669.6836038393662,603.56127019194389,0,0.53743201783376082,0.19427222653422593,null,"Construction",{"$f":"GL221","v":126283.80099211945},{"$f":"GM221","v":0},0,35294.495678432402,16416.384006369219,61537.155299846512,17198.744769560682,7999.5816100348466,25394.323150450007,7097.3459909256671,3301.1594293525745,8.9107221156340835,2.4904179374644024,1.1583578802274437,308.56649942699221,170.58297029264912,0,150.36215608329493,83.123810432843356,0,62.049426278681388,34.302412799924099,0,2.1772787237845908E-2,{"$f":"HJ221","v":1.2036519601054096E-2},null,"Construction",{"$f":"HM221","v":0},{"$f":"HN221","v":0},{"$f":"HO221","v":0},2916860.9715413759,691758.57476286404,0,176953.79689111182,41966.109297141884,0,915085.43855033664,71439576.868263513,0,3293.9663980829932,257155.84117491418,35054.121640073849,1143.2986827257337,0,2126.5874450012216,69.359165507986702,0,935.38194945893997,30.507709240081873,0,3.3670262699974418,0.10981637876187006]
[null,null,null,null,null,null,null,null,null,null,null,null,null,null,null,null,null,null,null,null,null,null,null,null,null,null,null,null,null,246,"Manufacturing",{"$f":"SUM(AF202:AF217)","v":805437.88755258871},{"$f":"SUM(AG202:AG217)","v":0},null,{"$f":"SUM(AI202:AI217)","v":3412533.0784007427},7296105.2598803742,365579.07167461299,1206071.5177191584,2184325.1050597462,51321.386806282433,343219.61677209788,707487.61610138125,12.483837600617772,83.487571629779737,172.09512551162547,26433.697334645592,74271.222818589449,0,9512.5455288804824,23834.256106864548,0,2684.1399573331923,7322.8417933562414,0,0.65291235116380009,1.7812684615935825,null,"Manufacturing",{"$f":"SUM(BG202:BG217)","v":805437.88755258871},{"$f":"SUM(BH202:BH217)","v":0},null,{"$f":"SUM(BJ202:BJ217)","v":10995926.189560201},7085541.4676453127,199518.43685542638,2713942.3104955372,2399555.3327215915,199518.43685542638,667364.82010566071,533878.86305485875,31.738704124429713,65.673140624681054,105.9168184218053,146646.24943391123,40746.517826920877,0,35135.866205587314,13799.019395749265,0,8347.1131968275731,3070.1541597371097,0,0.77922357971626111,0.6090912811253435,null,"Manufacturing",{"$f":"SUM(CH202:CH217)","v":805437.88755258871},{"$f":"SUM(CI202:CI217)","v":0},null,{"$f":"SUM(CK202:CK217)","v":14469391.414864365},6792861.412241647,177077.25988143554,3064895.4365115501,1910511.1821254769,39023.088717636034,642900.31559204403,428799.76891291532,12.508351151895496,206.07345977345472,137.44627244204736,140601.85393375295,60305.588828476539,0,27548.582647832965,16961.114736395724,0,5234.8291016392768,3806.793777244829,0,1.6779574035581968,1.2202189753142003,null,"Manufacturing",{"$f":"SUM(DI202:DI217)","v":805437.88755258871},{"$f":"SUM(DJ202:DJ217)","v":0},null,{"$f":"SUM(DL202:DL217)","v":6589377.1214435883},11939709.19298828,192158.25351764759,1573765.1248725215,2801076.1857194365,98985.075449423719,1060658.0543303592,1624360.1947714423,7.9789562142889725,85.497173542682177,130.93588918803718,49392.620615494408,106689.23639725002,0,11796.451150029641,25029.477227169649,0,2040.8121785518795,3474.5892999275184,0,0.16450511292051492,0.28007854477944982,null,"Manufacturing",{"$f":"SUM(EJ214:EJ218)+EJ220","v":805437.88755258871},{"$f":"SUM(EK214:EK218)+EK220","v":0},{"$f":"SUM(EL214:EL218)+EL220","v":0},24803332.200534686,11957921.390232269,130103.56430992761,3159582.9526647185,1410998.5027048076,25082.78374755332,536034.00370788574,442044.71951565781,97.114604521069666,2075.3968460544083,1711.4925738885638,326447.90897747735,19391.66428396383,0,39531.183452301484,2285.8124167472583,0,5803.3740401117457,714.36245192027138,0,22.469291306164124,2.7658424081300765,null,"Manufacturing",{"$f":"SUM(FK202:FK217)","v":805437.88755258871},{"$f":"SUM(FL202:FL217)","v":0},null,{"$f":"SUM(FN202:FN217)","v":24788654.899968635},12320289.146629376,177077.25988143554,5441056.6011571484,3337731.7622294244,39023.088717636034,1208153.1510983112,779879.47266443993,12.560617630430212,388.8761825018488,251.0249233432026,240806.89603601993,113490.66447786028,0,49890.166297412296,30746.144918839876,0,10430.030593356609,7184.0066829555799,0,3.3571823877086935,2.3123633716436034,null,"Manufacturing",{"$f":"SUM(GL202:GL219)","v":28488497.533252507},{"$f":"SUM(GM202:GM219)","v":395096.88011609885},0,4170582.7027009665,3192482.4609958427,213160.71338861645,1294023.1238085153,1059678.0245956269,86063.832179878606,510886.8497986701,355695.72666873032,12.219331647828106,70.34364348288436,63.491193439211493,35694.687357040588,33173.148276293476,0,11405.359660373455,11011.135273105037,0,4078.4944454643628,3696.0413177477785,0,0.49561745299941434,{"$f":"SUM(HJ202:HJ219)","v":0.6597382444321398},null,"Manufacturing",{"$f":"SUM(HM214:HM218)+HM220","v":805437.88755258871},{"$f":"SUM(HN214:HN218)+HN220","v":0},{"$f":"SUM(HO214:HO218)+HO220","v":0},24803332.200534686,11957921.390232265,130103.56430992761,3159582.9526647185,1410998.5027048071,25082.78374755332,7781367.828526279,1234923390.1943252,97.507931378406681,30249.636080687938,4800696.2225794969,326447.90897747735,19391.66428396383,0,39531.183452301484,2285.8124167472583,0,5803.3740401117457,714.36245192027138,0,22.560294876426575,2.7770444318385001]
[null,null,null,null,null,null,null,null,null,null,null,null,null,null,null,null,null,null,null,null,null,null,null,null,null,null,null,null,null,247,"Sales",{"$f":"AF220","v":0},{"$f":"AG220","v":0},null,{"$f":"AI220","v":1247418.514199089},2690240.6887026541,0,749433.5284207348,1616263.1455970816,0,325108.80520279671,701144.74497247883,0,101.59726969636179,219.10938926037724,13779.93794201054,31418.726435293043,0,8278.8153260097406,18875.980068329722,0,3591.4002470711471,8188.5145170623955,0,1.1223210619031516,2.558930131971108,null,"Sales",{"$f":"BG220","v":0},{"$f":"BH220","v":0},null,{"$f":"BJ220","v":4769948.3874054607},4184367.8692345265,0,3632163.5827020602,3186262.692357799,0,731384.86787050904,641596.7412230944,0,154.1330310097506,135.2109604053262,62116.750038420825,24062.863897798903,0,47299.924242593421,18323.103490149366,0,9524.4743400897623,3689.60271749408,0,2.0072005360008944,0.77755184042153447,null,"Sales",{"$f":"CH220","v":0},{"$f":"CI220","v":0},null,{"$f":"CK220","v":3326726.5516240196},2965865.3320553266,0,2299150.3194144568,2049753.7503364764,0,511770.43882123701,456256.97781793278,0,164.04145771891817,146.24732899397776,30537.853379721448,26330.325967380268,0,21105.165772625107,18197.280846132773,0,4697.8224336380417,4050.5530783869908,0,1.505826795884563,1.2983528964214968,null,"Sales",{"$f":"DI220","v":0},{"$f":"DJ220","v":0},null,{"$f":"DL220","v":6339001.4018961303},6022118.04461422,0,3722681.8505808013,3536586.9362380439,0,1787575.6079596097,1698215.6403350476,0,192.65415671709482,183.02347640890511,38331.336748366404,53811.626840233555,0,22510.702013563412,31601.754580531109,0,6347.93704659171,8911.5811900571225,0,0.68414250740434368,0.96043666714944997,null,"Trade, Transportation, and Warehousing (Sales for other countries)",{"$f":"EJ222","v":0},{"$f":"EK222","v":0},{"$f":"EL222","v":0},2987665.000708852,2506434.7997748246,0,675425.65547573101,566633.2628134127,0,248663.42312189966,208610.62301027292,0,638.04151663985874,535.27067480049539,36446.836882383875,4113.3105045112316,0,8239.5880011515783,929.90192776818878,0,3033.4710280398899,342.35092293558841,0,7.7835349932620872,0.87843278014313175,null,"Sales",{"$f":"FK220","v":0},{"$f":"FL220","v":0},null,{"$f":"FN220","v":6026557.2934757899},4606185.2417863514,0,4165043.598037919,3183403.2961817486,0,927101.70878270722,708597.29704268323,0,298.4123105374598,228.08086173063688,58467.83186163276,42430.74310812456,0,40407.990321452882,29324.519180097246,0,8994.4597202156347,6527.3774934568928,0,2.8951057707248253,2.1010098256967171,null,"Sales",{"$f":"GL222","v":0},{"$f":"GM222","v":0},0,1084746.2659676194,1182577.3789299501,0,795837.69648453454,867612.71892723325,0,193825.76319152259,211306.5241111143,0,40.847102094785015,44.531021168388939,11504.265918555373,12288.184890198778,0,8440.2489094550583,9015.3808902659839,0,2055.6172365646844,2195.6902635260253,0,0.43320354191918864,{"$f":"HJ222","v":0.46272272006560394},null,"Trade, Transportation, and Warehousing (Sales for other countries)",{"$f":"HM222","v":0},{"$f":"HN222","v":0},{"$f":"HO222","v":0},2987665.000708852,2506434.7997748246,0,675425.65547573101,566633.2628134127,0,937298.26827173831,258845568.4921374,0,2414.7392565864329,666857.68745086994,36446.836882383875,4113.3105045112316,0,8239.5880011515783,929.90192776818878,0,3033.4710280398899,342.35092293558841,0,7.81505932858704,0.88199054785993847]
[null,null,null,null,null,null,null,null,null,null,null,null,null,null,null,null,null,null,null,null,null,null,null,null,null,null,null,null,null,248,"Transportation and Warehousing",{"$f":"AF222","v":0},{"$f":"AG222","v":0},null,{"$f":"AI222","v":2662194.6382109006},1898062.2097410443,0,1161293.2680069492,827966.08286762331,0,293721.3498963883,209414.2127816485,0,67.766045241744408,48.315088510356809,26717.65913462398,39162.463053213098,0,11654.684163436898,17083.313161817121,0,2947.7735378383854,4320.8153709555791,0,0.68009681624450857,0.9968787424294786,null,"Transportation and Warehousing",{"$f":"BG222","v":0},{"$f":"BH222","v":0},null,{"$f":"BJ222","v":1456011.4095992849},2417681.1952923276,0,1064191.5955494144,1767071.3236073125,0,343322.25241877674,570080.52830212528,0,48.587762763631723,80.679120768213295,16356.227735904269,13903.255012143478,0,11954.686602512251,10161.820873900539,0,3856.7396590048543,3278.3375152502585,0,0.5458147564645569,0.46395794134485235,null,"Transportation and Warehousing",{"$f":"CH222","v":0},{"$f":"CI222","v":0},null,{"$f":"CK222","v":336365.74845735735},737311.14143794938,0,148681.73972129638,325909.2334093189,0,55329.045826938222,121280.84420136543,0,17.735016802754679,38.875020843324648,3196.6318921462116,6545.6925786946886,0,1412.9880737043347,2893.3533356012472,0,525.81629747843419,1076.7057178580756,0,0.16854367776575707,0.34512422385816699,null,"Transportation and Warehousing",{"$f":"DI222","v":0},{"$f":"DJ222","v":0},null,{"$f":"DL222","v":3895008.4436136889},3146341.4376601628,0,2059713.0690933119,1663811.689446809,0,717501.97714991902,579589.5528830816,0,41.59792489471252,33.602308367650416,55090.610844739182,28114.651705765202,0,29132.376163982764,14867.263162501773,0,5366.4935004197241,2738.7079818513412,0,0.31112805356322881,0.15877944948686565,null,"Transportation and Warehousing",null,null,null,null,null,null,null,null,null,null,null,null,null,null,null,null,null,null,null,null,null,null,null,null,null,null,"Transportation and Warehousing",{"$f":"FK222","v":0},{"$f":"FL222","v":0},null,{"$f":"FN222","v":829320.06350292102},1296033.023376656,0,366579.3868516378,572877.7247256547,0,136415.45849775948,213185.41163153859,0,43.908938768749977,68.619387339256207,8234.1791134359155,11938.652352855497,0,3639.7049383808485,5277.1710850200798,0,1354.4460921004579,1963.7975809738759,0,0.43596445137915574,0.63210041359511671,null,"Transportation and Warehousing",{"$f":"GL224","v":0},{"$f":"GM224","v":0},0,393469.86629745562,724482.34913054353,0,244125.55880833307,449499.88163658138,0,82899.628715399202,152640.19661515474,0,11.732148047030218,21.601995236489437,4496.3356237211674,7528.1103921141412,0,2789.719215501314,4670.7621438444276,0,947.32681131042432,1586.0872963598435,0,0.13406789115269491,{"$f":"HJ224","v":0.22446675895607443},null,"Transportation and Warehousing"]
[null,null,null,null,null,null,null,null,null,null,null,null,null,null,null,null,null,null,null,null,null,null,null,null,null,null,null,null,null,249,"Information",{"$f":"AF223","v":0},{"$f":"AG223","v":0},null,{"$f":"AI223","v":1063274.3877187034},1148918.7666810954,0,581324.21480464109,628148.5829337032,0,141106.15391958685,152471.93970338954,0,32.555365872369812,35.177627937775839,4047.851758833317,11580.833921564528,0,2213.0827870292837,6331.5916041960636,0,537.18663773241678,1536.8816861652617,0,0.12393724190862142,0.35458230704925747,null,"Information",{"$f":"BG223","v":0},{"$f":"BH223","v":0},null,{"$f":"BJ223","v":730272.42203742871},942315.17526276107,0,445569.02964983438,574944.97340421635,0,113904.19688821075,146977.55250625795,0,9.51322172764573,12.275491897379272,3087.2595673563073,5418.9312507378536,0,1883.6631484265667,3306.3112699697126,0,481.53512441846243,845.21747430315418,0,4.0217573481846319E-2,7.0592141999983163E-2,null,"Information",{"$f":"CH223","v":0},{"$f":"CI223","v":0},null,{"$f":"CK223","v":416144.27881682437},652730.94293127093,0,252057.6899594398,395357.72090410732,0,44695.616945502428,70106.003323367579,0,11.662678387737552,18.293153237084262,1111.7756488458335,5794.8074413970826,0,673.40010680427645,3509.9023386580043,0,119.40930359882148,622.38628970227182,0,3.11581403177589E-2,0.16240275055572906,null,"Information",{"$f":"DI223","v":0},{"$f":"DJ223","v":0},null,{"$f":"DL223","v":2493029.5906657716},1792134.7902986193,0,1012372.2602687407,727752.11138843407,0,331293.14824090287,238152.79969923041,0,19.207065537853474,13.807156761721572,7075.52897176443,16013.915348138511,0,2873.2387632146774,6502.9487565840654,0,381.81829813700074,864.16237275493586,0,2.2136313759608298E-2,5.01007141771058E-2,null,"Information",null,null,null,null,null,null,null,null,null,null,null,null,null,null,null,null,null,null,null,null,null,null,null,null,null,null,"Information",{"$f":"FK223","v":0},{"$f":"FL223","v":0},null,{"$f":"FN223","v":538818.52121041506},831801.25251522404,0,326361.21335081494,503820.22026222211,0,57871.338026404555,89338.895305525279,0,15.163791947506105,23.40910833295246,2138.314541555209,7662.2939395294879,0,1295.1724947018399,4641.034872999282,0,229.66382700269699,822.96206454829417,0,6.0177880956337346E-2,0.21563741142129139,null,"Information",{"$f":"GL225","v":0},{"$f":"GM225","v":0},0,414919.18773761846,277683.36640209774,0,255077.58603465016,170709.87526518895,0,69806.119454698826,46717.526734159022,0,5.8301722891810988,3.9018245379092913,1782.0634464874611,2885.4133421436891,0,1095.5493395452766,1773.8496839331751,0,299.81484948828609,485.44274256421068,0,2.5040386731509497E-2,{"$f":"HJ225","v":4.0543935800909585E-2},null,"Information"]
[null,null,null,null,null,null,null,null,null,null,null,null,null,null,null,null,null,null,null,null,null,null,null,null,null,null,null,null,null,250,"Finance, Professional, and Business Services",{"$f":"AF228+AF229+AF225+AF224+AF227+AF226","v":27832831.433359291},{"$f":"AG228+AG229+AG225+AG224+AG227+AG226","v":0},null,{"$f":"AI228+AI229+AI225+AI224+AI227+AI226","v":8112564.0877538975},8409770.9025469348,20280433.047944564,5913321.9553819345,6043074.7279839395,7647053.2937034937,1855354.7727680223,2326196.7027192991,754.49564421556261,219.63156296663914,257.76672768890205,55620.565253327033,110759.93283850829,0,39716.04953604949,79337.975345004772,0,13424.51062665151,28676.414222245345,0,1.6242386612686188,3.314307809878029,null,"Finance, Professional, and Business Services",{"$f":"BG228+BG229+BG225+BG224+BG227+BG226","v":27832831.433359291},{"$f":"BH228+BH229+BH225+BH224+BH227+BH226","v":0},null,{"$f":"BJ228+BJ229+BJ225+BJ224+BJ227+BJ226","v":7880082.1519948822},7424862.9286685865,20901339.087737188,5955150.633666656,5868241.6221751515,20901339.087737188,2108909.4114717301,2073192.7678201345,5683.5453724601812,513.45195195867939,1082.2621030749053,46627.569107921125,42697.839123080841,0,35104.62146814783,33746.244089105603,0,12181.252805029515,11922.220264797827,0,2.9590554428322893,6.2237180147359084,null,"Finance, Professional, and Business Services",{"$f":"CH228+CH229+CH225+CH224+CH227+CH226","v":27832831.433359291},{"$f":"CI228+CI229+CI225+CI224+CI227+CI226","v":0},null,{"$f":"CK228+CK229+CK225+CK224+CK227+CK226","v":4403403.1841018088},6886001.2245501196,13495862.413326971,2696902.4741414208,4515133.1784197195,5319624.3546757847,583605.27108138101,1356846.2077831335,1388.0794635368061,152.28340153151061,354.04950248904373,31891.202480354958,61132.46440914338,0,18246.080860907517,40084.398670771232,0,4889.4959257195305,12045.794039399512,0,1.2758436365102723,3.1431767006983704,null,"Finance, Professional, and Business Services",{"$f":"DI228+DI229+DI225+DI224+DI227+DI226","v":27832831.433359291},{"$f":"DJ228+DJ229+DJ225+DJ224+DJ227+DJ226","v":0},null,{"$f":"DL228+DL229+DL225+DL224+DL227+DL226","v":10786111.16800488},20737359.902550906,11887004.039102774,5735084.1888215858,11903905.901521405,7695716.8204064118,2564749.8891145312,7387979.233314747,494.50542565300975,164.85699382189645,461.53487080460758,73522.463798629527,185302.09213113779,0,39536.816338285462,106369.31019424397,0,10437.005806765204,38792.869743802708,0,0.67091027214420196,2.4196734007002623,null,"Finance, Professional, and Business Services",{"$f":"EJ225","v":0},{"$f":"EK225","v":0},{"$f":"EL225","v":0},6096191.996565572,1979272.2018775307,0,1270011.5375531337,412339.13462023641,0,302627.99187404261,98255.299728709739,0,309.38169851501732,100.44804953410427,62276.865378293034,3319.5225519184751,0,12974.056197316935,691.55170022193681,0,3091.5566176820935,164.78818981318807,0,3.1605504550680252,0.16846574483710913,null,"Finance, Professional, and Business Services",{"$f":"FK228+FK229+FK225+FK224+FK227+FK226","v":27832831.433359291},{"$f":"FL228+FL229+FL225+FL224+FL227+FL226","v":0},null,{"$f":"FN228+FN229+FN225+FN224+FN227+FN226","v":6755569.4110601665},8956204.2215630766,13495862.413326971,3996919.4719109028,5776515.547211051,5319624.3546757847,954861.85858667688,1710149.825815856,1393.8795905563002,250.19857940058313,448.10362162187215,55025.801487788412,82501.76243490944,0,31072.9494457726,53211.461193589617,0,8543.7614819563169,15753.367293464618,0,2.2386871632791778,4.127790928244174,null,"Finance, Professional, and Business Services",{"$f":"SUM(GL226:GL231)","v":27832831.433359291},{"$f":"SUM(GM226:GM231)","v":0},0,3034466.118699668,1653527.9801081135,23589267.748464562,2243183.5725479955,1312449.7400018135,1104880.9837916649,582084.99343773432,207274.02412377813,469.9860518043651,136.50184466552108,48.045052590677301,25928.495318905716,17181.841884267138,0,18584.722683674026,13637.691157959272,0,4891.6347087963613,2153.7884765504064,0,1.0174928387000977,{"$f":"SUM(HJ226:HJ231)","v":0.4992370899465165},null,"Finance, Professional, and Business Services",{"$f":"HM225","v":0},{"$f":"HN225","v":0},{"$f":"HO225","v":0},6096191.996565572,1979272.2018775307,0,1270011.5375531337,412339.13462023641,0,1912513.6854624774,204404215.23899233,0,1963.1137819148009,209812.21471370119,62276.865378293034,3319.5225519184751,0,12974.056197316935,691.55170022193681,0,3091.5566176820935,164.78818981318807,0,3.1733510980205208,0.16914805315018419]
[null,null,null,null,null,null,null,null,null,null,null,null,null,null,null,null,null,null,null,null,null,null,null,null,null,null,null,null,null,251,"Education and Health Care",{"$f":"AF230+AF231","v":0},{"$f":"AG230+AG231","v":0},null,{"$f":"AI230+AI231","v":59323.166251247821},3147250.1214683289,0,46129.451900534754,1882842.5108470323,0,33964.376819898309,1389995.006824869,0,3.3510913792387802,137.14369938996907,571.72281565401602,21206.931948115882,0,448.72039610164893,12793.735083619262,0,330.35851886405879,9443.9772501033603,0,3.2594785721929039E-2,0.93178894217212638,null,"Education and Health Care",{"$f":"BG230+BG231","v":0},{"$f":"BH230+BH231","v":0},null,{"$f":"BJ230+BJ231","v":72260.587842297362},2818705.0454615215,0,64832.710742106698,2350374.7687394749,0,55910.410286775266,1885224.5793100842,0,13.991989713256636,598.14062270052443,583.96591817970454,16209.405577284377,0,523.9383540474372,13516.198846863066,0,451.8337734834941,10841.279707327089,0,0.11307471145813361,3.4397014903042953,null,"Education and Health Care",{"$f":"CH230+CH231","v":0},{"$f":"CI230+CI231","v":0},null,{"$f":"CK230+CK231","v":728061.22004045197},2638545.2963857548,0,409003.7590026363,1662878.5542667201,0,268712.81940620556,1132423.6211667028,0,70.116745344805736,295.48965636715275,920.31305900614848,23424.447827302378,0,503.72578751979512,14762.684571273707,0,328.00935606124744,10053.417717997785,0,8.5589323726656077E-2,2.6232947558494102,null,"Education and Health Care",{"$f":"DI230+DI231","v":0},{"$f":"DJ230+DJ231","v":0},null,{"$f":"DL230+DL231","v":335577.61696656141},1965709.6815086538,0,155716.81482382462,932273.48261430825,0,69184.875090409085,428241.29892703099,0,4.2574664884481805,26.352912782870707,433.18818996131398,17564.922353552804,0,202.76455034101352,8330.4831270041723,0,42.865907284425852,1823.6446723988679,0,2.6378621558813707E-3,0.11222259300792695,null,"Education and Health Care",null,null,null,null,null,null,null,null,null,null,null,null,null,null,null,null,null,null,null,null,null,null,null,null,null,null,"Education and Health Care",{"$f":"FK230+FK231","v":0},{"$f":"FL230+FL231","v":0},null,{"$f":"FN230+FN231","v":773278.66170325782},2997825.5097861765,0,434556.61178416113,1888096.5226125226,0,285534.25435022591,1285559.188366266,0,74.817382395368085,336.84985924632497,1380.214038153327,27615.034439950086,0,762.04580010089501,17392.556814160191,0,497.71529455391067,11842.170648504773,0,0.13041431964582689,3.1029559371662989,null,"Education and Health Care",{"$f":"GL234+GL233","v":0},{"$f":"GM234+GM233","v":0},0,7227.9366656062994,299352.72632579622,0,6279.3212876072794,246550.59339902501,0,4622.2230628144061,167849.62778503689,0,1.2557452705045244,54.55523262320289,51.474315967731613,3110.580088894425,0,44.856984215954711,2561.9120832641129,0,33.158892630763653,1744.1287959016138,0,8.9168196207524246E-3,{"$f":"HJ234+HJ233","v":0.56688449918458295},null,"Education and Health Care"]
[null,null,null,null,null,null,null,null,null,null,null,null,null,null,null,null,null,null,null,null,null,null,null,null,null,null,null,null,null,252,"Other",{"$f":"AF233+AF232+AF221+AF234","v":126283.80099211945},{"$f":"AG233+AG232+AG221+AG234","v":0},null,{"$f":"AI233+AI232+AI221+AI234","v":1235295.4688315669},25160120.361037161,58364.435825606219,621893.11716246989,1699779.841254662,24815.109640510665,252940.78625389838,810313.9941037579,5.2458084136358778,53.470604156277616,171.29692471787567,4746.9600803298508,169711.39741767492,0,2327.9677880599706,13472.716743401543,0,959.62117250333608,6272.5127718181193,0,0.20285982587008766,1.3259824659136532,null,"Other",{"$f":"BG233+BG232+BG221+BG234","v":126283.80099211945},{"$f":"BH233+BH232+BH221+BH234","v":0},null,{"$f":"BJ233+BJ232+BJ221+BJ234","v":367049.46897774294},24925697.861853216,92872.943467094083,260435.03564741058,1014657.4091618687,92872.943467094083,59310.279395556121,332275.54523003823,66.770564393841639,42.584107417320553,164.9815596632701,2313.8958142570414,143339.13602991926,0,1658.8911707523425,5834.9466162070021,0,385.9790547000116,1910.8026519905395,0,0.27724220737643879,0.94875234202343306,null,"Other",{"$f":"CH233+CH232+CH221+CH234","v":126283.80099211945},{"$f":"CI233+CI232+CI221+CI234","v":0},null,{"$f":"CK233+CK232+CK221+CK234","v":2471413.0334727378},20186320.991439704,47339.110298368825,1085911.5764578329,846053.92992898822,17833.020227662157,742611.29937753594,566278.47875514417,5.7161461697839293,400.67038851402395,302.22652305091083,3349.9091182553766,179209.89400366438,0,1434.7284882124977,7511.0880862468603,0,914.80131574678262,5027.3007249464063,0,0.4757521031160562,2.6831032353056266,null,"Other",{"$f":"DI233+DI232+DI221+DI234","v":126283.80099211945},{"$f":"DJ233+DJ232+DJ221+DJ234","v":0},null,{"$f":"DL233+DL232+DL221+DL234","v":2919180.9939724365},41019682.0399369,56709.391369187906,1976053.236901588,2353432.1853536204,21752.910001751825,1075051.0974382714,1274644.1178226799,2.3443979174194722,68.608257671844882,81.946653501993396,14843.661256173935,366538.11942663742,0,10058.500291643481,21029.480593676595,0,3786.7404067527068,7843.2933247366836,0,0.23847848510308431,0.49673418947007386,null,"Other",{"$f":"SUM(EJ226:EJ241)+EJ224+EJ223","v":27959115.234351411},{"$f":"SUM(EK226:EK241)+EK224+EK223","v":0},{"$f":"SUM(EL226:EL241)+EL224+EL223","v":0},30076699.567312095,45443866.710159451,10219036.05634363,10953746.953983095,535898.54447412153,8166223.39423797,8744986.7931836825,377721.00766568084,19657.581429543858,21050.971980465954,909.70073282811768,5292.2233592584371,72501.670484288465,0,1905.6046524554793,893.40488287762525,0,1511.0129028979029,630.4721754145412,0,3.6548617752574502,1.5183844382434875,null,"Other",{"$f":"FK233+FK232+FK221+FK234","v":126283.80099211945},{"$f":"FL233+FL232+FL221+FL234","v":0},null,{"$f":"FN233+FN232+FN221+FN234","v":2743973.4923795452},25134019.054113321,47339.110298368825,1204384.936693379,1017806.6607861776,17833.020227662157,821334.50427706912,680557.52363643027,5.7400312388434935,444.37732542182789,364.54886151109412,5916.0262354534998,231526.75148301301,0,2540.7320382041307,9375.7177991408971,0,1632.7526603852334,6269.083838347764,0,0.85636659522215941,3.3581105147082093,null,"Other",{"$f":"GL232+SUM(GL235:GL238)","v":0},{"$f":"GM232+SUM(GM235:GM238)","v":0},0,40619.733081581609,11348829.919270141,0,28998.397145251049,185996.10167645605,0,10473.125964867082,76210.189762633585,0,7.4763566927887224,32.432411928455473,364.00882657544344,117925.91573297117,0,259.662135155643,1932.6891643442207,0,91.1453626839848,791.90158631966233,0,6.5065124262325594E-2,{"$f":"HJ232+SUM(HJ235:HJ238)","v":0.33700583260992395},null,"Other",{"$f":"SUM(HM226:HM241)+HM224+HM223","v":27959115.234351411},{"$f":"SUM(HN226:HN241)+HN224+HN223","v":0},{"$f":"SUM(HO226:HO241)+HO224+HO223","v":0},30076699.567312095,45443866.710159451,10219036.05634363,10953746.953983095,535898.54447412153,8166223.39423797,9435742.766703235,4693097747.497324,19737.197206847992,22804.412949373556,528773.6833281318,5292.2233592584371,73217.440129916999,0,1905.6046524554793,893.40488287762525,0,1511.0129028979029,630.4721754145412,0,3.6696644437453938,1.5245340939236913]
[null,null,null,null,null,null,null,null,null,null,null,null,null,null,null,null,null,null,null,null,null,null,null,null,null,null,null,null,null,253,"Total",{"$f":"SUM(AF243:AF253)","v":61462088.363236368},{"$f":"SUM(AG243:AG253)","v":684752.72601706395},null,{"$f":"SUM(AI243:AI253)","v":32084322.586993162},53897763.631396994,39451889.998055942,18980072.609924879,17525906.229016684,10644168.490973616,4498663.2768918844,6846369.7166785961,1060.4233218078457,711.49955230536261,1140.2911740193176,347063.57617375144,1385201.5055844968,446156.39580539078,209291.68061413057,770358.14912227448,56501.311804460376,42783.933513699638,144174.04202933624,5.5746955084034537,6.5775973350077761,19.628707471941368,null,"Total",{"$f":"SUM(BG243:BG253)","v":61462088.363236368},{"$f":"SUM(BH243:BH253)","v":684752.72601706395},null,{"$f":"SUM(BJ243:BJ253)","v":31984425.585995067},52401009.235402897,37894230.211922988,18593808.231290814,18808434.584061835,37894230.211922988,4462813.0285488274,6422808.467236096,6701.466964716964,882.45024855069732,2310.3316845726413,353370.03618784033,301340.22455570381,426110.43424215494,193792.0446226825,108160.85384235797,58164.858844761198,40210.985866343886,36935.367735008811,3.2014550167022917,7.2123375570663297,13.285924809190817,null,"Total",{"$f":"SUM(CH243:CH253)","v":61462088.363236368},{"$f":"SUM(CI243:CI253)","v":684752.72601706395},null,{"$f":"SUM(CK243:CK253)","v":31982363.556324735},45699017.044775844,33196284.161465701,13456580.424606115,14944234.587924253,9566743.1598641705,3662001.4117718269,5016359.7155663613,2544.6685318329969,1282.9086782779575,1755.5662674974615,270064.81835867983,405706.22076895006,403515.09185526805,105372.81134551935,132671.75814768369,92623.294745001826,24818.705384183471,44534.181998400054,26.766695133789483,7.6439251154467005,15.58554651182083,null,"Total",{"$f":"SUM(DI243:DI253)","v":61462088.363236368},{"$f":"SUM(DJ243:DJ253)","v":684752.72601706395},null,{"$f":"SUM(DL243:DL253)","v":44715116.567593597},92149458.815474689,30174481.292521287,22319849.814649366,26543040.316798795,13746837.481616456,9667540.8534435593,14101925.661548229,755.7085616119482,691.08269160544182,983.7467737429115,375312.73634447833,823416.65416913154,387342.11986034573,191912.47410710008,237179.70490635742,128648.44191340407,42649.721198417661,68283.952434154024,6.4657001187084031,2.8549935121907284,4.6996925506882672,null,"Total",{"$f":"SUM(EJ243:EJ253)","v":61462088.363236375},{"$f":"SUM(EK243:EK253)","v":684752.72601706395},{"$f":"SUM(EL243:EL253)","v":0},{"$f":"SUM(EM243:EM253)","v":104883111.09607117},{"$f":"SUM(EN243:EN253)","v":73355891.597192883},{"$f":"SUM(EO243:EO253)","v":18953415.027267128},{"$f":"SUM(EP243:EP253)","v":26268455.819947183},{"$f":"SUM(EQ243:EQ253)","v":6857819.235659509},{"$f":"SUM(ER243:ER253)","v":8601278.0130688641},{"$f":"SUM(ES243:ES253)","v":10447474.623309873},{"$f":"SUM(ET243:ET253)","v":4011674.073236376},{"$f":"SUM(EU243:EU253)","v":20432.936896567713},{"$f":"SUM(EV243:EV253)","v":25758.865829400107},{"$f":"SUM(EW243:EW253)","v":31797.994968478262},{"$f":"SUM(EX243:EX253)","v":1131267.9547539526},{"$f":"SUM(EY243:EY253)","v":117063.65248751195},{"$f":"SUM(EZ243:EZ253)","v":176083.21941822744},{"$f":"SUM(FA243:FA253)","v":237179.70466976849},{"$f":"SUM(FB243:FB253)","v":10818.533547282632},{"$f":"SUM(FC243:FC253)","v":7794.4159812035541},{"$f":"SUM(FD243:FD253)","v":22993.919720448186},{"$f":"SUM(FE243:FE253)","v":6230.1825251209711},{"$f":"SUM(FF243:FF253)","v":11.445047237658027},{"$f":"SUM(FG243:FG253)","v":52.096808734852111},{"$f":"SUM(FH243:FH253)","v":5.483058117897194},null,"Total",{"$f":"SUM(FK243:FK253)","v":61462088.363236368},{"$f":"SUM(FL243:FL253)","v":684752.72601706395},null,{"$f":"SUM(FN243:FN253)","v":56120450.860489279},63892522.124815084,33196284.161465701,24002080.081480671,21330459.818015449,9566743.1598641705,6394953.1976142284,6836165.5488052778,2555.3014970881231,2179.5006823285867,2395.3861723917098,527307.77070345811,588558.0041841357,403515.09185526805,220180.44520734891,196489.54903198555,92623.294745001826,54410.878255691321,62972.626809397916,26.87854048252224,17.206378145220949,22.065550990756428,null,"Total",{"$f":"SUM(GL243:GL253)","v":61462088.363236383},{"$f":"SUM(GM243:GM253)","v":684752.72601706395},0,10321003.10317634,19637191.344905715,27939007.739969291,5693919.5684743794,4885238.5217143204,1537952.2964787965,1558476.8618400854,1320888.9167029834,508.44648028237452,286.62857050711199,323.58202651093205,93909.816557792248,204050.44293064089,235390.4711779808,52738.090720066975,50762.609920600262,18577.641743476346,13591.436306970298,13725.382809662298,1.0010706507566012,2.3026082606996439,{"$f":"SUM(HJ243:HJ253)","v":3.3623472254385729},null,"Total",{"$f":"SUM(HM243:HM253)","v":61462088.363236375},{"$f":"SUM(HN243:HN253)","v":684752.72601706395},{"$f":"SUM(HO243:HO253)","v":0},104883111.09607117,73355891.597192883,18953415.027267128,26268455.819947183,6857819.235659508,8601278.0130688641,32904210.605263859,7575639894.7336817,20515.692964981175,81189.197394343224,16513093.713634003,1131267.9547539526,117779.42213314048,176083.21941822744,237179.70466976849,10818.533547282632,7794.4159812035541,22993.919720448186,6230.1825251209711,11.491401176741258,52.307807627943632,5.5052652208220767]
[null,null,null,null,null,null,null,null,null,null,null,null,null,null,null,null,null,null,null,null,null,null,null,null,null,null,null,null,null,254]
[null,null,null,null,null,null,null,null,null,null,null,null,null,null,null,null,null,null,null,null,null,null,null,null,null,null,null,null,null,255]
[null,null,null,null,null,null,null,null,null,null,null,null,null,null,null,null,null,null,null,null,null,null,null,null,null,null,null,null,null,256]
[null,null,null,null,null,null,null,null,null,null,null,null,null,null,null,null,null,null,null,null,null,null,null,null,null,null,null,null,null,257]
[null,null,null,null,null,null,null,null,null,null,null,null,null,null,null,null,null,null,null,null,null,null,null,null,null,null,null,null,null,258]
[null,null,null,null,null,null,null,null,null,null,null,null,null,null,null,null,null,null,null,null,null,null,null,null,null,null,null,null,null,259]
[null,null,null,null,null,null,null,null,null,null,null,null,null,null,null,null,null,null,null,null,null,null,null,null,null,null,null,null,null,260]
[null,null,null,null,null,null,null,null,null,null,null,null,null,null,null,null,null,null,null,null,null,null,null,null,null,null,null,null,null,261,"General",null,null,null,"Output",null,"Value Added",null,null,"Earnings",null,null,"Jobs",null,null,null,null,null,null,null,null,null,null,null,null,null,null,"General",null,null,null,"Output",null,"Value Added",null,null,"Earnings",null,null,"Jobs",null,null,null,null,null,null,null,null,null,null,null,null,null,null,"General",null,null,null,"Output",null,"Value Added",null,null,"Earnings",null,null,"Jobs",null,null,null,null,null,null,null,null,null,null,null,null,null,null,"General",null,null,null,"Output",null,"Value Added",null,null,"Earnings",null,null,"Jobs",null,null,null,null,null,null,null,null,null,null,null,null,null,null,"General",null,null,null,"Output",null,"Value Added",null,null,"Earnings",null,null,"Jobs",null,null,null,null,null,null,null,null,null,null,null,null,null,null,"General",null,null,null,"Output",null,"Value Added",null,null,"Earnings",null,null,"Jobs",null,null,null,null,null,null,null,null,null,null,null,null,null,null,"General",null,null,null,"Output",null,"Value Added",null,null,"Earnings",null,null,"Jobs",null,null,null,null,null,null,null,null,null,null,null,null,null,null,"General",null,null,null,"Output",null,"Value Added",null,null,"Earnings",null,null,"Jobs"]
[null,null,null,null,null,null,null,null,null,null,null,null,null,null,null,null,null,null,null,null,null,null,null,null,null,null,null,null,null,262,"Colombia","Final Demand",null,null,"Indirect","Induced","Direct","Indirect","Induced","Direct","Indirect","Induced","Direct","Indirect","Induced",null,null,null,null,null,null,null,null,null,null,null,null,"Mexico","Final Demand",null,null,"Indirect","Induced","Direct","Indirect","Induced","Direct","Indirect","Induced","Direct","Indirect","Induced",null,null,null,null,null,null,null,null,null,null,null,null,"Philippines","Final Demand",null,null,"Indirect","Induced","Direct","Indirect","Induced","Direct","Indirect","Induced","Direct","Indirect","Induced",null,null,null,null,null,null,null,null,null,null,null,null,"South Africa","Final Demand",null,null,"Indirect","Induced","Direct","Indirect","Induced","Direct","Indirect","Induced","Direct","Indirect","Induced",null,null,null,null,null,null,null,null,null,null,null,null,"Zambia","Final Demand",null,null,"Indirect","Induced","Direct","Indirect","Induced","Direct","Indirect","Induced","Direct","Indirect","Induced",null,null,null,null,null,null,null,null,null,null,null,null,"CR1","Final Demand",null,null,"Indirect","Induced","Direct","Indirect","Induced","Direct","Indirect","Induced","Direct","Indirect","Induced",null,null,null,null,null,null,null,null,null,null,null,null,"CR2","Final Demand",null,null,"Indirect","Induced","Direct","Indirect","Induced","Direct","Indirect","Induced","Direct","Indirect","Induced",null,null,null,null,null,null,null,null,null,null,null,null,"CR3","Final Demand",null,null,"Indirect","Induced","Direct","Indirect","Induced","Direct","Indirect","Induced","Direct","Indirect","Induced"]
[null,null,null,null,null,null,null,null,null,null,null,null,null,null,null,null,null,null,null,null,null,null,null,null,null,null,null,null,null,263,"TTL_C01T05: Agriculture, hunting, forestry and fishing",{"$f":"'General Impact Estimates'!C10","v":0},null,null,{"$f":"MMULT(L1_Colombia,AF264:AF297)-AF264:AF297","v":1821.3278887375748},{"$f":"MMULT(l2_colombia,AF264:AF298)-AI264:AI298-AF264:AF298","v":21511.408393330272},{"$f":"'Colombia-IO-Data'!$AN13*Calculations!AF264","v":0},{"$f":"AI264*'Colombia-IO-Data'!$AN13","v":1260.9069873853521},{"$f":"AJ264*'Colombia-IO-Data'!$AN13","v":14892.367991164158},{"$f":"AK264*'Colombia-IO-Data'!$AO13","v":0},{"$f":"AL264*'Colombia-IO-Data'!$AO13","v":332.88912561083913},{"$f":"AM264*'Colombia-IO-Data'!$AO13","v":3931.6994896931255},{"$f":"(AN264*'Default-Data'!$F$19/general_dollar_index)/'Colombia-IO-Data'!$AP13","v":0},{"$f":"(AO264*'Default-Data'!$F$19/general_dollar_index)/'Colombia-IO-Data'!$AP13","v":7.0371342348874447E-2},{"$f":"(AP264*'Default-Data'!$F$19/general_dollar_index)/'Colombia-IO-Data'!$AP13","v":0.83114451484227458},null,null,null,null,null,null,null,null,null,null,null,null,"DOM_C01T05: Agriculture, hunting, forestry and fishing",{"$f":"'General Impact Estimates'!C10","v":0},null,null,{"$f":"MMULT(Mexico_L1,BG264:BG297)-BG264:BG297","v":738.78799823583245},{"$f":"MMULT(Mexico_L2,BG264:BG298)-BJ264:BJ298-BG264:BG298","v":8262.0722551871713},{"$f":"BG264*'Mexico-IO-Data'!AQ13","v":0},{"$f":"BJ264*'Mexico-IO-Data'!$AQ13","v":450.56866797935197},{"$f":"BK264*'Mexico-IO-Data'!$AQ13","v":5038.8350916070558},{"$f":"BG264*'Mexico-IO-Data'!AR13","v":0},{"$f":"BJ264*'Mexico-IO-Data'!$AR13","v":74.224313943769587},{"$f":"BK264*'Mexico-IO-Data'!$AR13","v":830.07120629937913},{"$f":"(BO264*'Default-Data'!$F$19/general_dollar_index)/'Mexico-IO-Data'!$AS13","v":0},{"$f":"(BP264*'Default-Data'!$F$19/general_dollar_index)/'Mexico-IO-Data'!$AS13","v":7.3052670436000749E-2},{"$f":"(BQ264*'Default-Data'!$F$19/general_dollar_index)/'Mexico-IO-Data'!$AS13","v":0.81696839014424016},null,null,null,null,null,null,null,null,null,null,null,null,"TTL_C01T05: Agriculture, hunting, forestry and fishing",{"$f":"'General Impact Estimates'!C10","v":0},null,null,{"$f":"MMULT(Philippines_L1,CH264:CH297)-CH264:CH297","v":2809.6336584306177},{"$f":"MMULT(Philippines_L2,CH264:CH298)-CK264:CK298-CH264:CH298","v":29779.142638120276},{"$f":"CH264*'Philippines-IO-Data'!$AN13","v":0},{"$f":"CK264*'Philippines-IO-Data'!$AN13","v":1982.9180431570762},{"$f":"CL264*'Philippines-IO-Data'!$AN13","v":21016.832237075476},{"$f":"CH264*'Philippines-IO-Data'!AO13","v":0},{"$f":"CK264*'Philippines-IO-Data'!$AO13","v":570.7745194429009},{"$f":"CL264*'Philippines-IO-Data'!$AO13","v":6049.6057120090327},{"$f":"(CP264*'Default-Data'!$F$19/general_dollar_index)/'Philippines-IO-Data'!$AP13","v":0},{"$f":"(CQ264*'Default-Data'!$F$19/general_dollar_index)/'Philippines-IO-Data'!$AP13","v":0.33928659426647589},{"$f":"(CR264*'Default-Data'!$F$19/general_dollar_index)/'Philippines-IO-Data'!$AP13","v":3.5960787469733866},null,null,null,null,null,null,null,null,null,null,null,null,"DOM_C01T05: Agriculture, hunting, forestry and fishing",{"$f":"'General Impact Estimates'!C10","v":0},null,null,{"$f":"MMULT(SouthAfrica_L1,DI264:DI297)-DI264:DI297","v":4718.7505288514121},{"$f":"MMULT(SouthAfrica_L2,DI264:DI298)-DI264:DI298","v":31070.151495445487},{"$f":"DI264*'SouthAfrica-IO-Data'!AR13","v":0},{"$f":"DL264*'SouthAfrica-IO-Data'!$AR13","v":1905.662083880952},{"$f":"DM264*'SouthAfrica-IO-Data'!$AR13","v":12547.645670880507},{"$f":"DI264*'SouthAfrica-IO-Data'!AS13","v":0},{"$f":"DL264*'SouthAfrica-IO-Data'!$AS13","v":584.57874978501695},{"$f":"DM264*'SouthAfrica-IO-Data'!$AS13","v":3849.1016225135404},{"$f":"(DQ264*'Default-Data'!$F$19/general_dollar_index)/'SouthAfrica-IO-Data'!$AT13","v":0},{"$f":"(DR264*'Default-Data'!$F$19/general_dollar_index)/'SouthAfrica-IO-Data'!$AT13","v":4.2030932927825011E-2},{"$f":"(DS264*'Default-Data'!$F$19/general_dollar_index)/'SouthAfrica-IO-Data'!$AT13","v":0.27674856841399947},null,null,null,null,null,null,null,null,null,null,null,null,"MAIZE",{"$f":"'General Impact Estimates'!C10","v":0},null,null,{"$f":"MMULT(Zambia_L1,EJ264:EJ290)-EJ264:EJ290","v":11948.607502499128},{"$f":"MMULT(Zambia_L2,EJ264:EJ305)-EJ264:EJ305-EM264:EM305","v":33331.620434642027},{"$f":"EJ264*'Zambia-IO-Data'!BO11","v":0},{"$f":"EM264*'Zambia-IO-Data'!$BO11","v":4717.7702252218041},{"$f":"EN264*'Zambia-IO-Data'!$BO11","v":13160.606908550537},{"$f":"EJ264*'Zambia-IO-Data'!BN11","v":0},{"$f":"EM264*'Zambia-IO-Data'!$BN11","v":3748.5491571826042},{"$f":"EN264*'Zambia-IO-Data'!$BN11","v":10456.885261456178},{"$f":"(ER264*'Default-Data'!$F$19/general_dollar_index)/'Zambia-IO-Data'!$BP11","v":0},{"$f":"(ES264*'Default-Data'!$F$19/general_dollar_index)/'Zambia-IO-Data'!$BP11","v":37.406848452212039},{"$f":"(ET264*'Default-Data'!$F$19/general_dollar_index)/'Zambia-IO-Data'!$BP11","v":104.34947118352709},null,null,null,null,null,null,null,null,null,null,null,null,"TTL_C01T05: Agriculture, hunting, forestry and fishing",{"$f":"'General Impact Estimates'!C10","v":0},null,null,{"$f":"MMULT(CustomRegion1_L1,FK264:FK297)-FK264:FK297","v":7890.0402005691003},{"$f":"MMULT(CustomRegion1_L2,FK264:FK298)-FN264:FN298-FK264:FK298","v":57901.741439226855},{"$f":"FK264*CustomRegion1!C9","v":0},{"$f":"FN264*CustomRegion1!$C9","v":5568.4494766773869},{"$f":"FO264*CustomRegion1!$C9","v":40864.547406579259},{"$f":"FK264*CustomRegion1!D9","v":0},{"$f":"FN264*CustomRegion1!$D9","v":1602.8544825948907},{"$f":"FO264*CustomRegion1!$D9","v":11762.686051868399},{"$f":"(FT264*'Default-Data'!$C$58/general_dollar_index)/CustomRegion1!$E9","v":0.95676911927739583},{"$f":"(FU264*'Default-Data'!$C$58/general_dollar_index)/CustomRegion1!$E9","v":7.021332813670675},{"$f":"(FV264*'Default-Data'!$C$58/general_dollar_index)/CustomRegion1!$E9","v":5.7111057650153878E-4},null,null,null,null,null,null,null,null,null,null,null,null,"C01T05 Agriculture, hunting, forestry and fishing",{"$f":"'General Impact Estimates'!C10","v":0},null,null,{"$f":"MMULT(CustomRegion2_L1,GL264:GL300)-GL264:GL300","v":3252.3069273973269},{"$f":"MMULT(CustomRegion2_L2,GL264:GL302)-GO264:GO302-GL264:GL302","v":36547.02883570781},{"$f":"GL264*CustomRegion2!C13","v":0},{"$f":"GO264*CustomRegion2!$C13","v":2004.0112307583327},{"$f":"GP264*CustomRegion2!$C13","v":22519.601585148743},{"$f":"GL264*CustomRegion2!D13","v":0},{"$f":"GO264*CustomRegion2!$D13","v":359.88938977970037},{"$f":"GP264*CustomRegion2!$D13","v":4044.1717831562883},{"$f":"(GT264*'Default-Data'!$C$59/general_dollar_index)/CustomRegion2!$E13","v":0},{"$f":"(GU264*'Default-Data'!$C$59/general_dollar_index)/CustomRegion2!$E13","v":0.35420847412489592},{"$f":"(GV264*'Default-Data'!$C$59/general_dollar_index)/CustomRegion2!$E13","v":3.9803338389264953},null,null,null,null,null,null,null,null,null,null,null,null,"MAIZE",{"$f":"'General Impact Estimates'!C10","v":0},null,null,{"$f":"MMULT(CustomRegion3_L1,HM264:HM290)-HM264:HM290","v":11948.607502499128},{"$f":"MMULT(CustomRegion3_L2,HM264:HM305)-HP264:HP305-HM264:HM305","v":33331.620434642027},{"$f":"HM264*CustomRegion3!D12","v":0},{"$f":"HP264*CustomRegion3!$D12","v":4717.7702252218041},{"$f":"HQ264*CustomRegion3!$D12","v":13160.606908550537},{"$f":"HM264*CustomRegion3!E12","v":0},{"$f":"HP264*CustomRegion3!$E12","v":3748.5491571826042},{"$f":"HQ264*CustomRegion3!$E12","v":10456.885261456178},{"$f":"(HU264*'Default-Data'!$C$60/general_dollar_index)/CustomRegion3!$F12","v":0},{"$f":"(HV264*'Default-Data'!$C$60/general_dollar_index)/CustomRegion3!$F12","v":37.558351083738472},{"$f":"(HW264*'Default-Data'!$C$60/general_dollar_index)/CustomRegion3!$F12","v":104.77210019764713}]
[null,null,null,null,null,null,null,null,null,null,null,null,null,null,null,null,null,null,null,null,null,null,null,null,null,null,null,null,null,264,"TTL_C10T14: Mining and quarrying",{"$f":"'General Impact Estimates'!C11","v":0},null,null,432611.53895172017,5433.9511724265758,{"$f":"'Colombia-IO-Data'!$AN14*Calculations!AF265","v":0},{"$f":"AI265*'Colombia-IO-Data'!$AN14","v":354258.34434318024},{"$f":"AJ265*'Colombia-IO-Data'!$AN14","v":4449.7716132355781},{"$f":"AK265*'Colombia-IO-Data'!$AO14","v":0},{"$f":"AL265*'Colombia-IO-Data'!$AO14","v":29383.145318845127},{"$f":"AM265*'Colombia-IO-Data'!$AO14","v":369.07609385966441},{"$f":"(AN265*'Default-Data'!$F$19/general_dollar_index)/'Colombia-IO-Data'!$AP14","v":0},{"$f":"(AO265*'Default-Data'!$F$19/general_dollar_index)/'Colombia-IO-Data'!$AP14","v":2.8990846937964525},{"$f":"(AP265*'Default-Data'!$F$19/general_dollar_index)/'Colombia-IO-Data'!$AP14","v":3.6414850859022692E-2},null,null,null,null,null,null,null,null,null,null,null,null,"DOM_C10T14: Mining and quarrying",{"$f":"'General Impact Estimates'!C11","v":0},null,null,285749.46235393884,4563.129297245061,{"$f":"BG265*'Mexico-IO-Data'!AQ14","v":0},{"$f":"BJ265*'Mexico-IO-Data'!$AQ14","v":246009.52639316896},{"$f":"BK265*'Mexico-IO-Data'!$AQ14","v":3928.5227976932974},{"$f":"BG265*'Mexico-IO-Data'!AR14","v":0},{"$f":"BJ265*'Mexico-IO-Data'!$AR14","v":15267.815927069496},{"$f":"BK265*'Mexico-IO-Data'!$AR14","v":243.81154591801544},{"$f":"(BO265*'Default-Data'!$F$19/general_dollar_index)/'Mexico-IO-Data'!$AS14","v":0},{"$f":"(BP265*'Default-Data'!$F$19/general_dollar_index)/'Mexico-IO-Data'!$AS14","v":0.822718116582832},{"$f":"(BQ265*'Default-Data'!$F$19/general_dollar_index)/'Mexico-IO-Data'!$AS14","v":1.3137974469758963E-2},null,null,null,null,null,null,null,null,null,null,null,null,"TTL_C10T14: Mining and quarrying",{"$f":"'General Impact Estimates'!C11","v":0},null,null,31080.532147249767,1664.0396417108932,{"$f":"CH265*'Philippines-IO-Data'!$AN14","v":0},{"$f":"CK265*'Philippines-IO-Data'!$AN14","v":17892.636701518597},{"$f":"CL265*'Philippines-IO-Data'!$AN14","v":957.96483229431476},{"$f":"CH265*'Philippines-IO-Data'!AO14","v":0},{"$f":"CK265*'Philippines-IO-Data'!$AO14","v":4677.1790935655399},{"$f":"CL265*'Philippines-IO-Data'!$AO14","v":250.41435539781062},{"$f":"(CP265*'Default-Data'!$F$19/general_dollar_index)/'Philippines-IO-Data'!$AP14","v":0},{"$f":"(CQ265*'Default-Data'!$F$19/general_dollar_index)/'Philippines-IO-Data'!$AP14","v":1.4992098376923697},{"$f":"(CR265*'Default-Data'!$F$19/general_dollar_index)/'Philippines-IO-Data'!$AP14","v":8.0267113489040129E-2},null,null,null,null,null,null,null,null,null,null,null,null,"DOM_C10T14: Mining and quarrying",{"$f":"'General Impact Estimates'!C11","v":0},null,null,293215.74228317454,307143.41293131962,{"$f":"DI265*'SouthAfrica-IO-Data'!AR14","v":0},{"$f":"DL265*'SouthAfrica-IO-Data'!$AR14","v":174637.70117788477},{"$f":"DM265*'SouthAfrica-IO-Data'!$AR14","v":182932.94605735564},{"$f":"DI265*'SouthAfrica-IO-Data'!AS14","v":0},{"$f":"DL265*'SouthAfrica-IO-Data'!$AS14","v":59169.396109837384},{"$f":"DM265*'SouthAfrica-IO-Data'!$AS14","v":61979.926864600136},{"$f":"(DQ265*'Default-Data'!$F$19/general_dollar_index)/'SouthAfrica-IO-Data'!$AT14","v":0},{"$f":"(DR265*'Default-Data'!$F$19/general_dollar_index)/'SouthAfrica-IO-Data'!$AT14","v":3.878968305462601},{"$f":"(DS265*'Default-Data'!$F$19/general_dollar_index)/'SouthAfrica-IO-Data'!$AT14","v":4.0632182798753034},null,null,null,null,null,null,null,null,null,null,null,null,"DRSTAP",{"$f":"'General Impact Estimates'!C11","v":0},null,null,10082.43953505054,20023.316277128262,{"$f":"EJ265*'Zambia-IO-Data'!BO12","v":0},{"$f":"EM265*'Zambia-IO-Data'!$BO12","v":5372.0167047768227},{"$f":"EN265*'Zambia-IO-Data'!$BO12","v":10668.607448804651},{"$f":"EJ265*'Zambia-IO-Data'!BN12","v":0},{"$f":"EM265*'Zambia-IO-Data'!$BN12","v":4870.8819822776968},{"$f":"EN265*'Zambia-IO-Data'!$BN12","v":9673.3742008226091},{"$f":"(ER265*'Default-Data'!$F$19/general_dollar_index)/'Zambia-IO-Data'!$BP12","v":0},{"$f":"(ES265*'Default-Data'!$F$19/general_dollar_index)/'Zambia-IO-Data'!$BP12","v":48.606630592145173},{"$f":"(ET265*'Default-Data'!$F$19/general_dollar_index)/'Zambia-IO-Data'!$BP12","v":96.530798337902695},null,null,null,null,null,null,null,null,null,null,null,null,"TTL_C10T14: Mining and quarrying",{"$f":"'General Impact Estimates'!C11","v":0},null,null,238795.05246254633,22474.874013758701,{"$f":"FK265*CustomRegion1!C10","v":0},{"$f":"FN265*CustomRegion1!$C10","v":137471.04134478251},{"$f":"FO265*CustomRegion1!$C10","v":12938.477170706014},{"$f":"FK265*CustomRegion1!D10","v":0},{"$f":"FN265*CustomRegion1!$D10","v":35935.267186972487},{"$f":"FO265*CustomRegion1!$D10","v":3382.1496481994222},{"$f":"(FT265*'Default-Data'!$C$58/general_dollar_index)/CustomRegion1!$E10","v":11.566720252436498},{"$f":"(FU265*'Default-Data'!$C$58/general_dollar_index)/CustomRegion1!$E10","v":1.0886347005312218},{"$f":"(FV265*'Default-Data'!$C$58/general_dollar_index)/CustomRegion1!$E10","v":3.7230561470996048E-3},null,null,null,null,null,null,null,null,null,null,null,null,"C10T14 Mining and quarrying",{"$f":"'General Impact Estimates'!C11","v":0},null,null,165988.58180624808,20295.121336481301,{"$f":"GL265*CustomRegion2!C14","v":0},{"$f":"GO265*CustomRegion2!$C14","v":134891.56540240004},{"$f":"GP265*CustomRegion2!$C14","v":16492.945823858849},{"$f":"GL265*CustomRegion2!D14","v":0},{"$f":"GO265*CustomRegion2!$D14","v":10646.000935049375},{"$f":"GP265*CustomRegion2!$D14","v":1301.6671289915651},{"$f":"(GT265*'Default-Data'!$C$59/general_dollar_index)/CustomRegion2!$E14","v":0},{"$f":"(GU265*'Default-Data'!$C$59/general_dollar_index)/CustomRegion2!$E14","v":0.57366802693068797},{"$f":"(GV265*'Default-Data'!$C$59/general_dollar_index)/CustomRegion2!$E14","v":7.0141343981167059E-2},null,null,null,null,null,null,null,null,null,null,null,null,"DRSTAP",{"$f":"'General Impact Estimates'!C11","v":0},null,null,10082.43953505054,20023.316277128262,{"$f":"HM265*CustomRegion3!D13","v":0},{"$f":"HP265*CustomRegion3!$D13","v":5372.0167047768227},{"$f":"HQ265*CustomRegion3!$D13","v":10668.607448804651},{"$f":"HM265*CustomRegion3!E13","v":0},{"$f":"HP265*CustomRegion3!$E13","v":4870.8819822776968},{"$f":"HQ265*CustomRegion3!$E13","v":9673.3742008226091},{"$f":"(HU265*'Default-Data'!$C$60/general_dollar_index)/CustomRegion3!$F13","v":0},{"$f":"(HV265*'Default-Data'!$C$60/general_dollar_index)/CustomRegion3!$F13","v":48.803493807012124},{"$f":"(HW265*'Default-Data'!$C$60/general_dollar_index)/CustomRegion3!$F13","v":96.921760703797361}]
[null,null,null,null,null,null,null,null,null,null,null,null,null,null,null,null,null,null,null,null,null,null,null,null,null,null,null,null,null,265,"TTL_C15T16: Food products, beverages and tobacco",{"$f":"'General Impact Estimates'!C12","v":0},null,null,2360.1730762510761,37501.115537050297,{"$f":"'Colombia-IO-Data'!$AN15*Calculations!AF266","v":0},{"$f":"AI266*'Colombia-IO-Data'!$AN15","v":540.35654009262169},{"$f":"AJ266*'Colombia-IO-Data'!$AN15","v":8585.7995945795919},{"$f":"AK266*'Colombia-IO-Data'!$AO15","v":0},{"$f":"AL266*'Colombia-IO-Data'!$AO15","v":189.63023575951505},{"$f":"AM266*'Colombia-IO-Data'!$AO15","v":3013.0609708637962},{"$f":"(AN266*'Default-Data'!$F$19/general_dollar_index)/'Colombia-IO-Data'!$AP15","v":0},{"$f":"(AO266*'Default-Data'!$F$19/general_dollar_index)/'Colombia-IO-Data'!$AP15","v":4.6127223263165124E-2},{"$f":"(AP266*'Default-Data'!$F$19/general_dollar_index)/'Colombia-IO-Data'!$AP15","v":0.73292181255746602},null,null,null,null,null,null,null,null,null,null,null,null,"DOM_C15T16: Food products, beverages and tobacco",{"$f":"'General Impact Estimates'!C12","v":0},null,null,1153.8354055853904,22528.440038439203,{"$f":"BG266*'Mexico-IO-Data'!AQ15","v":0},{"$f":"BJ266*'Mexico-IO-Data'!$AQ15","v":448.27260983434724},{"$f":"BK266*'Mexico-IO-Data'!$AQ15","v":8752.446460424002},{"$f":"BG266*'Mexico-IO-Data'!AR15","v":0},{"$f":"BJ266*'Mexico-IO-Data'!$AR15","v":77.396743287256015},{"$f":"BK266*'Mexico-IO-Data'!$AR15","v":1511.1582482882829},{"$f":"(BO266*'Default-Data'!$F$19/general_dollar_index)/'Mexico-IO-Data'!$AS15","v":0},{"$f":"(BP266*'Default-Data'!$F$19/general_dollar_index)/'Mexico-IO-Data'!$AS15","v":2.0111397210843714E-2},{"$f":"(BQ266*'Default-Data'!$F$19/general_dollar_index)/'Mexico-IO-Data'!$AS15","v":0.39267160979850491},null,null,null,null,null,null,null,null,null,null,null,null,"TTL_C15T16: Food products, beverages and tobacco",{"$f":"'General Impact Estimates'!C12","v":0},null,null,2458.85861958754,23186.287545434545,{"$f":"CH266*'Philippines-IO-Data'!$AN15","v":0},{"$f":"CK266*'Philippines-IO-Data'!$AN15","v":818.8809937222926},{"$f":"CL266*'Philippines-IO-Data'!$AN15","v":7721.7982500845001},{"$f":"CH266*'Philippines-IO-Data'!AO15","v":0},{"$f":"CK266*'Philippines-IO-Data'!$AO15","v":143.28369864362267},{"$f":"CL266*'Philippines-IO-Data'!$AO15","v":1351.1216183229392},{"$f":"(CP266*'Default-Data'!$F$19/general_dollar_index)/'Philippines-IO-Data'!$AP15","v":0},{"$f":"(CQ266*'Default-Data'!$F$19/general_dollar_index)/'Philippines-IO-Data'!$AP15","v":4.5927753949595015E-2},{"$f":"(CR266*'Default-Data'!$F$19/general_dollar_index)/'Philippines-IO-Data'!$AP15","v":0.43308472512742818},null,null,null,null,null,null,null,null,null,null,null,null,"DOM_C15T16: Food products, beverages and tobacco",{"$f":"'General Impact Estimates'!C12","v":0},null,null,4284.646950609178,59195.179016814225,{"$f":"DI266*'SouthAfrica-IO-Data'!AR15","v":0},{"$f":"DL266*'SouthAfrica-IO-Data'!$AR15","v":1122.3784599595378},{"$f":"DM266*'SouthAfrica-IO-Data'!$AR15","v":15506.38702039965},{"$f":"DI266*'SouthAfrica-IO-Data'!AS15","v":0},{"$f":"DL266*'SouthAfrica-IO-Data'!$AS15","v":581.07224661189048},{"$f":"DM266*'SouthAfrica-IO-Data'!$AS15","v":8027.8902921051331},{"$f":"(DQ266*'Default-Data'!$F$19/general_dollar_index)/'SouthAfrica-IO-Data'!$AT15","v":0},{"$f":"(DR266*'Default-Data'!$F$19/general_dollar_index)/'SouthAfrica-IO-Data'!$AT15","v":4.6838879416965587E-2},{"$f":"(DS266*'Default-Data'!$F$19/general_dollar_index)/'SouthAfrica-IO-Data'!$AT15","v":0.6471095247742753},null,null,null,null,null,null,null,null,null,null,null,null,"GRNDNUT",{"$f":"'General Impact Estimates'!C12","v":0},null,null,7041.795208375881,9348.2173179123656,{"$f":"EJ266*'Zambia-IO-Data'!BO13","v":0},{"$f":"EM266*'Zambia-IO-Data'!$BO13","v":3176.2311328965066},{"$f":"EN266*'Zambia-IO-Data'!$BO13","v":4216.5524562427199},{"$f":"EJ266*'Zambia-IO-Data'!BN13","v":0},{"$f":"EM266*'Zambia-IO-Data'!$BN13","v":2619.0339575210473},{"$f":"EN266*'Zambia-IO-Data'!$BN13","v":3476.8546760316308},{"$f":"(ER266*'Default-Data'!$F$19/general_dollar_index)/'Zambia-IO-Data'!$BP13","v":0},{"$f":"(ES266*'Default-Data'!$F$19/general_dollar_index)/'Zambia-IO-Data'!$BP13","v":26.135393250070305},{"$f":"(ET266*'Default-Data'!$F$19/general_dollar_index)/'Zambia-IO-Data'!$BP13","v":34.695603686422309},null,null,null,null,null,null,null,null,null,null,null,null,"TTL_C15T16: Food products, beverages and tobacco",{"$f":"'General Impact Estimates'!C12","v":0},null,null,5921.1482313032275,47836.25384652822,{"$f":"FK266*CustomRegion1!C11","v":0},{"$f":"FN266*CustomRegion1!$C11","v":1971.9375929145235},{"$f":"FO266*CustomRegion1!$C11","v":15931.049786167774},{"$f":"FK266*CustomRegion1!D11","v":0},{"$f":"FN266*CustomRegion1!$D11","v":345.03977253502529},{"$f":"FO266*CustomRegion1!$D11","v":2787.5353734390524},{"$f":"(FT266*'Default-Data'!$C$58/general_dollar_index)/CustomRegion1!$E11","v":0.1110602156959556},{"$f":"(FU266*'Default-Data'!$C$58/general_dollar_index)/CustomRegion1!$E11","v":0.89724230212568046},{"$f":"(FV266*'Default-Data'!$C$58/general_dollar_index)/CustomRegion1!$E11","v":3.5747680390034192E-5},null,null,null,null,null,null,null,null,null,null,null,null,"C15T16 Food products, beverages and tobacco",{"$f":"'General Impact Estimates'!C12","v":0},null,null,3808.2841227056506,75377.480414519305,{"$f":"GL266*CustomRegion2!C15","v":0},{"$f":"GO266*CustomRegion2!$C15","v":1507.0373570002005},{"$f":"GP266*CustomRegion2!$C15","v":29828.835034641572},{"$f":"GL266*CustomRegion2!D15","v":0},{"$f":"GO266*CustomRegion2!$D15","v":366.21495313821691},{"$f":"GP266*CustomRegion2!$D15","v":7248.5034121004956},{"$f":"(GT266*'Default-Data'!$C$59/general_dollar_index)/CustomRegion2!$E15","v":0},{"$f":"(GU266*'Default-Data'!$C$59/general_dollar_index)/CustomRegion2!$E15","v":9.5160262231937062E-2},{"$f":"(GV266*'Default-Data'!$C$59/general_dollar_index)/CustomRegion2!$E15","v":1.8835098883148031},null,null,null,null,null,null,null,null,null,null,null,null,"GRNDNUT",{"$f":"'General Impact Estimates'!C12","v":0},null,null,7041.795208375881,9348.2173179123656,{"$f":"HM266*CustomRegion3!D14","v":0},{"$f":"HP266*CustomRegion3!$D14","v":3176.2311328965066},{"$f":"HQ266*CustomRegion3!$D14","v":4216.5524562427199},{"$f":"HM266*CustomRegion3!E14","v":0},{"$f":"HP266*CustomRegion3!$E14","v":2619.0339575210473},{"$f":"HQ266*CustomRegion3!$E14","v":3476.8546760316308},{"$f":"(HU266*'Default-Data'!$C$60/general_dollar_index)/CustomRegion3!$F14","v":0},{"$f":"(HV266*'Default-Data'!$C$60/general_dollar_index)/CustomRegion3!$F14","v":26.241245012974694},{"$f":"(HW266*'Default-Data'!$C$60/general_dollar_index)/CustomRegion3!$F14","v":34.83612542183679}]
[null,null,null,null,null,null,null,null,null,null,null,null,null,null,null,null,null,null,null,null,null,null,null,null,null,null,null,null,null,266,"TTL_C17T19: Textiles, textile products, leather and footwear",{"$f":"'General Impact Estimates'!C13","v":0},null,null,3442.4654007189138,9705.262715240442,{"$f":"'Colombia-IO-Data'!$AN16*Calculations!AF267","v":0},{"$f":"AI267*'Colombia-IO-Data'!$AN16","v":1133.995996031395},{"$f":"AJ267*'Colombia-IO-Data'!$AN16","v":3197.0485621197654},{"$f":"AK267*'Colombia-IO-Data'!$AO16","v":0},{"$f":"AL267*'Colombia-IO-Data'!$AO16","v":580.96656172317262},{"$f":"AM267*'Colombia-IO-Data'!$AO16","v":1637.9055281473068},{"$f":"(AN267*'Default-Data'!$F$19/general_dollar_index)/'Colombia-IO-Data'!$AP16","v":0},{"$f":"(AO267*'Default-Data'!$F$19/general_dollar_index)/'Colombia-IO-Data'!$AP16","v":0.14131910026744524},{"$f":"(AP267*'Default-Data'!$F$19/general_dollar_index)/'Colombia-IO-Data'!$AP16","v":0.39841765569830678},null,null,null,null,null,null,null,null,null,null,null,null,"DOM_C17T19: Textiles, textile products, leather and footwear",{"$f":"'General Impact Estimates'!C13","v":0},null,null,832.04390759592275,2390.3781295344133,{"$f":"BG267*'Mexico-IO-Data'!AQ16","v":0},{"$f":"BJ267*'Mexico-IO-Data'!$AQ16","v":322.39344496957472},{"$f":"BK267*'Mexico-IO-Data'!$AQ16","v":926.20381319441822},{"$f":"BG267*'Mexico-IO-Data'!AR16","v":0},{"$f":"BJ267*'Mexico-IO-Data'!$AR16","v":109.6332228862519},{"$f":"BK267*'Mexico-IO-Data'!$AR16","v":314.96517895896733},{"$f":"(BO267*'Default-Data'!$F$19/general_dollar_index)/'Mexico-IO-Data'!$AS16","v":0},{"$f":"(BP267*'Default-Data'!$F$19/general_dollar_index)/'Mexico-IO-Data'!$AS16","v":2.6483356137616605E-2},{"$f":"(BQ267*'Default-Data'!$F$19/general_dollar_index)/'Mexico-IO-Data'!$AS16","v":7.608400798335456E-2},null,null,null,null,null,null,null,null,null,null,null,null,"TTL_C17T19: Textiles, textile products, leather and footwear",{"$f":"'General Impact Estimates'!C13","v":0},null,null,194.99092222366386,3243.6394451489969,{"$f":"CH267*'Philippines-IO-Data'!$AN16","v":0},{"$f":"CK267*'Philippines-IO-Data'!$AN16","v":74.817568517745428},{"$f":"CL267*'Philippines-IO-Data'!$AN16","v":1244.5769970559447},{"$f":"CH267*'Philippines-IO-Data'!AO16","v":0},{"$f":"CK267*'Philippines-IO-Data'!$AO16","v":25.841993310908489},{"$f":"CL267*'Philippines-IO-Data'!$AO16","v":429.87698036727761},{"$f":"(CP267*'Default-Data'!$F$19/general_dollar_index)/'Philippines-IO-Data'!$AP16","v":0},{"$f":"(CQ267*'Default-Data'!$F$19/general_dollar_index)/'Philippines-IO-Data'!$AP16","v":8.2833198862521887E-3},{"$f":"(CR267*'Default-Data'!$F$19/general_dollar_index)/'Philippines-IO-Data'!$AP16","v":0.13779155877326285},null,null,null,null,null,null,null,null,null,null,null,null,"DOM_C17T19: Textiles, textile products, leather and footwear",{"$f":"'General Impact Estimates'!C13","v":0},null,null,3384.5802549840237,19694.650547128094,{"$f":"DI267*'SouthAfrica-IO-Data'!AR16","v":0},{"$f":"DL267*'SouthAfrica-IO-Data'!$AR16","v":450.47172915501267},{"$f":"DM267*'SouthAfrica-IO-Data'!$AR16","v":2621.2654505692576},{"$f":"DI267*'SouthAfrica-IO-Data'!AS16","v":0},{"$f":"DL267*'SouthAfrica-IO-Data'!$AS16","v":452.7086606867756},{"$f":"DM267*'SouthAfrica-IO-Data'!$AS16","v":2634.2820084573582},{"$f":"(DQ267*'Default-Data'!$F$19/general_dollar_index)/'SouthAfrica-IO-Data'!$AT16","v":0},{"$f":"(DR267*'Default-Data'!$F$19/general_dollar_index)/'SouthAfrica-IO-Data'!$AT16","v":3.6491789949635436E-2},{"$f":"(DS267*'Default-Data'!$F$19/general_dollar_index)/'SouthAfrica-IO-Data'!$AT16","v":0.21234333263007929},null,null,null,null,null,null,null,null,null,null,null,null,"SUGAR",{"$f":"'General Impact Estimates'!C13","v":0},null,null,5726.3514935630137,1306.0089744428415,{"$f":"EJ267*'Zambia-IO-Data'!BO14","v":0},{"$f":"EM267*'Zambia-IO-Data'!$BO14","v":1554.135737502028},{"$f":"EN267*'Zambia-IO-Data'!$BO14","v":354.45173474970818},{"$f":"EJ267*'Zambia-IO-Data'!BN14","v":0},{"$f":"EM267*'Zambia-IO-Data'!$BN14","v":520.96348769985286},{"$f":"EN267*'Zambia-IO-Data'!$BN14","v":118.81614166679577},{"$f":"(ER267*'Default-Data'!$F$19/general_dollar_index)/'Zambia-IO-Data'!$BP14","v":0},{"$f":"(ES267*'Default-Data'!$F$19/general_dollar_index)/'Zambia-IO-Data'!$BP14","v":5.1987052633907691},{"$f":"(ET267*'Default-Data'!$F$19/general_dollar_index)/'Zambia-IO-Data'!$BP14","v":1.1856686997128472},null,null,null,null,null,null,null,null,null,null,null,null,"TTL_C17T19: Textiles, textile products, leather and footwear",{"$f":"'General Impact Estimates'!C13","v":0},null,null,757.3677098269427,7564.0918923777199,{"$f":"FK267*CustomRegion1!C12","v":0},{"$f":"FN267*CustomRegion1!$C12","v":290.60024885726961},{"$f":"FO267*CustomRegion1!$C12","v":2902.3246671111574},{"$f":"FK267*CustomRegion1!D12","v":0},{"$f":"FN267*CustomRegion1!$D12","v":100.37334593861782},{"$f":"FO267*CustomRegion1!$D12","v":1002.4631396004548},{"$f":"(FT267*'Default-Data'!$C$58/general_dollar_index)/CustomRegion1!$E12","v":3.2307827495266714E-2},{"$f":"(FU267*'Default-Data'!$C$58/general_dollar_index)/CustomRegion1!$E12","v":0.32266938878754842},{"$f":"(FV267*'Default-Data'!$C$58/general_dollar_index)/CustomRegion1!$E12","v":1.0399132436037683E-5},null,null,null,null,null,null,null,null,null,null,null,null,"C17T19 Textiles, textile products, leather and footwear",{"$f":"'General Impact Estimates'!C13","v":0},null,null,17295.093205572295,17150.601114406716,{"$f":"GL267*CustomRegion2!C16","v":0},{"$f":"GO267*CustomRegion2!$C16","v":6021.1834653193891},{"$f":"GP267*CustomRegion2!$C16","v":5970.8794062516245},{"$f":"GL267*CustomRegion2!D16","v":0},{"$f":"GO267*CustomRegion2!$D16","v":2665.743679893701},{"$f":"GP267*CustomRegion2!$D16","v":2643.4726881019269},{"$f":"(GT267*'Default-Data'!$C$59/general_dollar_index)/CustomRegion2!$E16","v":0},{"$f":"(GU267*'Default-Data'!$C$59/general_dollar_index)/CustomRegion2!$E16","v":0.64394567073407227},{"$f":"(GV267*'Default-Data'!$C$59/general_dollar_index)/CustomRegion2!$E16","v":0.63856581787896249},null,null,null,null,null,null,null,null,null,null,null,null,"SUGAR",{"$f":"'General Impact Estimates'!C13","v":0},null,null,5726.3514935630137,1306.0089744428415,{"$f":"HM267*CustomRegion3!D15","v":0},{"$f":"HP267*CustomRegion3!$D15","v":1554.135737502028},{"$f":"HQ267*CustomRegion3!$D15","v":354.45173474970818},{"$f":"HM267*CustomRegion3!E15","v":0},{"$f":"HP267*CustomRegion3!$E15","v":520.96348769985286},{"$f":"HQ267*CustomRegion3!$E15","v":118.81614166679577},{"$f":"(HU267*'Default-Data'!$C$60/general_dollar_index)/CustomRegion3!$F15","v":0},{"$f":"(HV267*'Default-Data'!$C$60/general_dollar_index)/CustomRegion3!$F15","v":5.219760700042702},{"$f":"(HW267*'Default-Data'!$C$60/general_dollar_index)/CustomRegion3!$F15","v":1.190470813110732}]
[null,null,null,null,null,null,null,null,null,null,null,null,null,null,null,null,null,null,null,null,null,null,null,null,null,null,null,null,null,267,"TTL_C20: Wood and products of wood and cork",{"$f":"'General Impact Estimates'!C14","v":0},null,null,3169.7014026865668,363.54231796658087,{"$f":"'Colombia-IO-Data'!$AN17*Calculations!AF268","v":0},{"$f":"AI268*'Colombia-IO-Data'!$AN17","v":1316.0408698402391},{"$f":"AJ268*'Colombia-IO-Data'!$AN17","v":150.94057375718859},{"$f":"AK268*'Colombia-IO-Data'!$AO17","v":0},{"$f":"AL268*'Colombia-IO-Data'!$AO17","v":537.15479516086043},{"$f":"AM268*'Colombia-IO-Data'!$AO17","v":61.60785340036432},{"$f":"(AN268*'Default-Data'!$F$19/general_dollar_index)/'Colombia-IO-Data'!$AP17","v":0},{"$f":"(AO268*'Default-Data'!$F$19/general_dollar_index)/'Colombia-IO-Data'!$AP17","v":0.13066196465993415},{"$f":"(AP268*'Default-Data'!$F$19/general_dollar_index)/'Colombia-IO-Data'!$AP17","v":1.4986002612826258E-2},null,null,null,null,null,null,null,null,null,null,null,null,"DOM_C20: Wood and products of wood and cork",{"$f":"'General Impact Estimates'!C14","v":0},null,null,1204.7746849667931,259.72709792228966,{"$f":"BG268*'Mexico-IO-Data'!AQ17","v":0},{"$f":"BJ268*'Mexico-IO-Data'!$AQ17","v":557.04248234691249},{"$f":"BK268*'Mexico-IO-Data'!$AQ17","v":120.08803734399483},{"$f":"BG268*'Mexico-IO-Data'!AR17","v":0},{"$f":"BJ268*'Mexico-IO-Data'!$AR17","v":202.47426613626851},{"$f":"BK268*'Mexico-IO-Data'!$AR17","v":43.649699984331782},{"$f":"(BO268*'Default-Data'!$F$19/general_dollar_index)/'Mexico-IO-Data'!$AS17","v":0},{"$f":"(BP268*'Default-Data'!$F$19/general_dollar_index)/'Mexico-IO-Data'!$AS17","v":9.0694374623988272E-2},{"$f":"(BQ268*'Default-Data'!$F$19/general_dollar_index)/'Mexico-IO-Data'!$AS17","v":1.9552026626136067E-2},null,null,null,null,null,null,null,null,null,null,null,null,"TTL_C20: Wood and products of wood and cork",{"$f":"'General Impact Estimates'!C14","v":0},null,null,45.821954671902105,100.88705342290511,{"$f":"CH268*'Philippines-IO-Data'!$AN17","v":0},{"$f":"CK268*'Philippines-IO-Data'!$AN17","v":6.6501833226980391},{"$f":"CL268*'Philippines-IO-Data'!$AN17","v":14.641832827802835},{"$f":"CH268*'Philippines-IO-Data'!AO17","v":0},{"$f":"CK268*'Philippines-IO-Data'!$AO17","v":1.7245207968098641},{"$f":"CL268*'Philippines-IO-Data'!$AO17","v":3.7969096474043003},{"$f":"(CP268*'Default-Data'!$F$19/general_dollar_index)/'Philippines-IO-Data'!$AP17","v":0},{"$f":"(CQ268*'Default-Data'!$F$19/general_dollar_index)/'Philippines-IO-Data'!$AP17","v":5.5277304806207407E-4},{"$f":"(CR268*'Default-Data'!$F$19/general_dollar_index)/'Philippines-IO-Data'!$AP17","v":1.2170507441223832E-3},null,null,null,null,null,null,null,null,null,null,null,null,"DOM_C20: Wood and products of wood and cork",{"$f":"'General Impact Estimates'!C14","v":0},null,null,3845.4097058351754,5521.69861831871,{"$f":"DI268*'SouthAfrica-IO-Data'!AR17","v":0},{"$f":"DL268*'SouthAfrica-IO-Data'!$AR17","v":1019.2079922896859},{"$f":"DM268*'SouthAfrica-IO-Data'!$AR17","v":1463.5005872756713},{"$f":"DI268*'SouthAfrica-IO-Data'!AS17","v":0},{"$f":"DL268*'SouthAfrica-IO-Data'!$AS17","v":848.49881793298061},{"$f":"DM268*'SouthAfrica-IO-Data'!$AS17","v":1218.3759622586276},{"$f":"(DQ268*'Default-Data'!$F$19/general_dollar_index)/'SouthAfrica-IO-Data'!$AT17","v":0},{"$f":"(DR268*'Default-Data'!$F$19/general_dollar_index)/'SouthAfrica-IO-Data'!$AT17","v":6.839551200445762E-2},{"$f":"(DS268*'Default-Data'!$F$19/general_dollar_index)/'SouthAfrica-IO-Data'!$AT17","v":9.8210446486661551E-2},null,null,null,null,null,null,null,null,null,null,null,null,"COTTON",{"$f":"'General Impact Estimates'!C14","v":0},null,null,1155.7428622454518,3528.0445015696723,{"$f":"EJ268*'Zambia-IO-Data'!BO15","v":0},{"$f":"EM268*'Zambia-IO-Data'!$BO15","v":256.6018780975794},{"$f":"EN268*'Zambia-IO-Data'!$BO15","v":783.30818617883187},{"$f":"EJ268*'Zambia-IO-Data'!BN15","v":0},{"$f":"EM268*'Zambia-IO-Data'!$BN15","v":174.18181235165613},{"$f":"EN268*'Zambia-IO-Data'!$BN15","v":531.71099334913436},{"$f":"(ER268*'Default-Data'!$F$19/general_dollar_index)/'Zambia-IO-Data'!$BP15","v":0},{"$f":"(ES268*'Default-Data'!$F$19/general_dollar_index)/'Zambia-IO-Data'!$BP15","v":1.7381638560842914},{"$f":"(ET268*'Default-Data'!$F$19/general_dollar_index)/'Zambia-IO-Data'!$BP15","v":5.3059548413485835},null,null,null,null,null,null,null,null,null,null,null,null,"TTL_C20: Wood and products of wood and cork",{"$f":"'General Impact Estimates'!C14","v":0},null,null,315.76544102203496,385.63570704722707,{"$f":"FK268*CustomRegion1!C13","v":0},{"$f":"FN268*CustomRegion1!$C13","v":45.827335058161104},{"$f":"FO268*CustomRegion1!$C13","v":55.967672396457367},{"$f":"FK268*CustomRegion1!D13","v":0},{"$f":"FN268*CustomRegion1!$D13","v":11.883911846524757},{"$f":"FO268*CustomRegion1!$D13","v":14.513496893732865},{"$f":"(FT268*'Default-Data'!$C$58/general_dollar_index)/CustomRegion1!$E13","v":3.825152686862452E-3},{"$f":"(FU268*'Default-Data'!$C$58/general_dollar_index)/CustomRegion1!$E13","v":4.6715544810328521E-3},{"$f":"(FV268*'Default-Data'!$C$58/general_dollar_index)/CustomRegion1!$E13","v":1.2312269955191439E-6},null,null,null,null,null,null,null,null,null,null,null,null,"C20 Wood and products of wood and cork",{"$f":"'General Impact Estimates'!C14","v":0},null,null,4150.096668264061,2306.6128003262602,{"$f":"GL268*CustomRegion2!C17","v":0},{"$f":"GO268*CustomRegion2!$C17","v":1758.4394634503328},{"$f":"GP268*CustomRegion2!$C17","v":977.33602352206765},{"$f":"GL268*CustomRegion2!D17","v":0},{"$f":"GO268*CustomRegion2!$D17","v":583.99640811215761},{"$f":"GP268*CustomRegion2!$D17","v":324.5836658690456},{"$f":"(GT268*'Default-Data'!$C$59/general_dollar_index)/CustomRegion2!$E17","v":0},{"$f":"(GU268*'Default-Data'!$C$59/general_dollar_index)/CustomRegion2!$E17","v":0.26158973200446678},{"$f":"(GV268*'Default-Data'!$C$59/general_dollar_index)/CustomRegion2!$E17","v":0.14539088423880228},null,null,null,null,null,null,null,null,null,null,null,null,"COTTON",{"$f":"'General Impact Estimates'!C14","v":0},null,null,1155.7428622454518,3528.0445015696723,{"$f":"HM268*CustomRegion3!D16","v":0},{"$f":"HP268*CustomRegion3!$D16","v":256.6018780975794},{"$f":"HQ268*CustomRegion3!$D16","v":783.30818617883187},{"$f":"HM268*CustomRegion3!E16","v":0},{"$f":"HP268*CustomRegion3!$E16","v":174.18181235165613},{"$f":"HQ268*CustomRegion3!$E16","v":531.71099334913436},{"$f":"(HU268*'Default-Data'!$C$60/general_dollar_index)/CustomRegion3!$F16","v":0},{"$f":"(HV268*'Default-Data'!$C$60/general_dollar_index)/CustomRegion3!$F16","v":1.7452036471684649},{"$f":"(HW268*'Default-Data'!$C$60/general_dollar_index)/CustomRegion3!$F16","v":5.3274446528265988}]
[null,null,null,null,null,null,null,null,null,null,null,null,null,null,null,null,null,null,null,null,null,null,null,null,null,null,null,null,null,268,"TTL_C21T22: Pulp, paper, paper products, printing and publishing",{"$f":"'General Impact Estimates'!C15","v":0},null,null,8020.4379861240259,5424.2048594591715,{"$f":"'Colombia-IO-Data'!$AN18*Calculations!AF269","v":0},{"$f":"AI269*'Colombia-IO-Data'!$AN18","v":2560.6074181596823},{"$f":"AJ269*'Colombia-IO-Data'!$AN18","v":1731.7332575575595},{"$f":"AK269*'Colombia-IO-Data'!$AO18","v":0},{"$f":"AL269*'Colombia-IO-Data'!$AO18","v":1051.0186736102137},{"$f":"AM269*'Colombia-IO-Data'!$AO18","v":710.80165530135878},{"$f":"(AN269*'Default-Data'!$F$19/general_dollar_index)/'Colombia-IO-Data'!$AP18","v":0},{"$f":"(AO269*'Default-Data'!$F$19/general_dollar_index)/'Colombia-IO-Data'!$AP18","v":0.25565845455603403},{"$f":"(AP269*'Default-Data'!$F$19/general_dollar_index)/'Colombia-IO-Data'!$AP18","v":0.17290125975212764},null,null,null,null,null,null,null,null,null,null,null,null,"DOM_C21T22: Pulp, paper, paper products, printing and publishing",{"$f":"'General Impact Estimates'!C15","v":0},null,null,3642.3828460979616,2259.7123199617404,{"$f":"BG269*'Mexico-IO-Data'!AQ18","v":0},{"$f":"BJ269*'Mexico-IO-Data'!$AQ18","v":1630.5185726229922},{"$f":"BK269*'Mexico-IO-Data'!$AQ18","v":1011.5638751236072},{"$f":"BG269*'Mexico-IO-Data'!AR18","v":0},{"$f":"BJ269*'Mexico-IO-Data'!$AR18","v":507.31041573148167},{"$f":"BK269*'Mexico-IO-Data'!$AR18","v":314.73231807618441},{"$f":"(BO269*'Default-Data'!$F$19/general_dollar_index)/'Mexico-IO-Data'!$AS18","v":0},{"$f":"(BP269*'Default-Data'!$F$19/general_dollar_index)/'Mexico-IO-Data'!$AS18","v":7.1173328967871041E-2},{"$f":"(BQ269*'Default-Data'!$F$19/general_dollar_index)/'Mexico-IO-Data'!$AS18","v":4.4155503448431978E-2},null,null,null,null,null,null,null,null,null,null,null,null,"TTL_C21T22: Pulp, paper, paper products, printing and publishing",{"$f":"'General Impact Estimates'!C15","v":0},null,null,3851.2875425437146,2676.5733694872038,{"$f":"CH269*'Philippines-IO-Data'!$AN18","v":0},{"$f":"CK269*'Philippines-IO-Data'!$AN18","v":1019.5868372256176},{"$f":"CL269*'Philippines-IO-Data'!$AN18","v":708.59393027696706},{"$f":"CH269*'Philippines-IO-Data'!AO18","v":0},{"$f":"CK269*'Philippines-IO-Data'!$AO18","v":302.27273282806271},{"$f":"CL269*'Philippines-IO-Data'!$AO18","v":210.07393970779574},{"$f":"(CP269*'Default-Data'!$F$19/general_dollar_index)/'Philippines-IO-Data'!$AP18","v":0},{"$f":"(CQ269*'Default-Data'!$F$19/general_dollar_index)/'Philippines-IO-Data'!$AP18","v":9.6889652001015222E-2},{"$f":"(CR269*'Default-Data'!$F$19/general_dollar_index)/'Philippines-IO-Data'!$AP18","v":6.7336510052821194E-2},null,null,null,null,null,null,null,null,null,null,null,null,"DOM_C21T22: Pulp, paper, paper products, printing and publishing",{"$f":"'General Impact Estimates'!C15","v":0},null,null,13737.436228370256,29585.223261293126,{"$f":"DI269*'SouthAfrica-IO-Data'!AR18","v":0},{"$f":"DL269*'SouthAfrica-IO-Data'!$AR18","v":3155.6060533592185},{"$f":"DM269*'SouthAfrica-IO-Data'!$AR18","v":6795.9776526945352},{"$f":"DI269*'SouthAfrica-IO-Data'!AS18","v":0},{"$f":"DL269*'SouthAfrica-IO-Data'!$AS18","v":2630.6191397453613},{"$f":"DM269*'SouthAfrica-IO-Data'!$AS18","v":5665.3551121911523},{"$f":"(DQ269*'Default-Data'!$F$19/general_dollar_index)/'SouthAfrica-IO-Data'!$AT18","v":0},{"$f":"(DR269*'Default-Data'!$F$19/general_dollar_index)/'SouthAfrica-IO-Data'!$AT18","v":0.21204807732074077},{"$f":"(DS269*'Default-Data'!$F$19/general_dollar_index)/'SouthAfrica-IO-Data'!$AT18","v":0.45667107059657813},null,null,null,null,null,null,null,null,null,null,null,null,"TOBAC",{"$f":"'General Impact Estimates'!C15","v":0},null,null,4758.4846792513372,1107.7300604230059,{"$f":"EJ269*'Zambia-IO-Data'!BO16","v":0},{"$f":"EM269*'Zambia-IO-Data'!$BO16","v":1366.8657201604226},{"$f":"EN269*'Zambia-IO-Data'!$BO16","v":318.19336382137095},{"$f":"EJ269*'Zambia-IO-Data'!BN16","v":0},{"$f":"EM269*'Zambia-IO-Data'!$BN16","v":954.76578288529561},{"$f":"EN269*'Zambia-IO-Data'!$BN16","v":222.26041054139637},{"$f":"(ER269*'Default-Data'!$F$19/general_dollar_index)/'Zambia-IO-Data'!$BP16","v":0},{"$f":"(ES269*'Default-Data'!$F$19/general_dollar_index)/'Zambia-IO-Data'!$BP16","v":9.5276272099339181},{"$f":"(ET269*'Default-Data'!$F$19/general_dollar_index)/'Zambia-IO-Data'!$BP16","v":2.2179411674828517},null,null,null,null,null,null,null,null,null,null,null,null,"TTL_C21T22: Pulp, paper, paper products, printing and publishing",{"$f":"'General Impact Estimates'!C15","v":0},null,null,9589.2121578362003,7426.9469932930424,{"$f":"FK269*CustomRegion1!C14","v":0},{"$f":"FN269*CustomRegion1!$C14","v":2538.6404903530197},{"$f":"FO269*CustomRegion1!$C14","v":1966.2041100500383},{"$f":"FK269*CustomRegion1!D14","v":0},{"$f":"FN269*CustomRegion1!$D14","v":752.62034646802329},{"$f":"FO269*CustomRegion1!$D14","v":582.91247782269932},{"$f":"(FT269*'Default-Data'!$C$58/general_dollar_index)/CustomRegion1!$E14","v":0.24225084952320558},{"$f":"(FU269*'Default-Data'!$C$58/general_dollar_index)/CustomRegion1!$E14","v":0.18762586423940811},{"$f":"(FV269*'Default-Data'!$C$58/general_dollar_index)/CustomRegion1!$E14","v":7.7974870557406825E-5},null,null,null,null,null,null,null,null,null,null,null,null,"C21T22 Pulp, paper, paper products, printing and publishing",{"$f":"'General Impact Estimates'!C15","v":0},null,null,11256.180923939512,9842.3470389911272,{"$f":"GL269*CustomRegion2!C18","v":0},{"$f":"GO269*CustomRegion2!$C18","v":3931.3305185299337},{"$f":"GP269*CustomRegion2!$C18","v":3437.5353016986101},{"$f":"GL269*CustomRegion2!D18","v":0},{"$f":"GO269*CustomRegion2!$D18","v":1512.5660031775467},{"$f":"GP269*CustomRegion2!$D18","v":1322.5799783469411},{"$f":"(GT269*'Default-Data'!$C$59/general_dollar_index)/CustomRegion2!$E18","v":0},{"$f":"(GU269*'Default-Data'!$C$59/general_dollar_index)/CustomRegion2!$E18","v":0.21220608604013885},{"$f":"(GV269*'Default-Data'!$C$59/general_dollar_index)/CustomRegion2!$E18","v":0.18555191647204555},null,null,null,null,null,null,null,null,null,null,null,null,"TOBAC",{"$f":"'General Impact Estimates'!C15","v":0},null,null,4758.4846792513372,1107.7300604230059,{"$f":"HM269*CustomRegion3!D17","v":0},{"$f":"HP269*CustomRegion3!$D17","v":1366.8657201604226},{"$f":"HQ269*CustomRegion3!$D17","v":318.19336382137095},{"$f":"HM269*CustomRegion3!E17","v":0},{"$f":"HP269*CustomRegion3!$E17","v":954.76578288529561},{"$f":"HQ269*CustomRegion3!$E17","v":222.26041054139637},{"$f":"(HU269*'Default-Data'!$C$60/general_dollar_index)/CustomRegion3!$F17","v":0},{"$f":"(HV269*'Default-Data'!$C$60/general_dollar_index)/CustomRegion3!$F17","v":9.5662153469792486},{"$f":"(HW269*'Default-Data'!$C$60/general_dollar_index)/CustomRegion3!$F17","v":2.2269241194648597}]
[null,null,null,null,null,null,null,null,null,null,null,null,null,null,null,null,null,null,null,null,null,null,null,null,null,null,null,null,null,269,"TTL_C23: Coke, refined petroleum products and nuclear fuel",{"$f":"'General Impact Estimates'!C16","v":0},null,null,13389.32856871625,8400.9276276589007,{"$f":"'Colombia-IO-Data'!$AN19*Calculations!AF270","v":0},{"$f":"AI270*'Colombia-IO-Data'!$AN19","v":7227.8826418117042},{"$f":"AJ270*'Colombia-IO-Data'!$AN19","v":4535.0234452341911},{"$f":"AK270*'Colombia-IO-Data'!$AO19","v":0},{"$f":"AL270*'Colombia-IO-Data'!$AO19","v":378.81679763967043},{"$f":"AM270*'Colombia-IO-Data'!$AO19","v":237.68275494769668},{"$f":"(AN270*'Default-Data'!$F$19/general_dollar_index)/'Colombia-IO-Data'!$AP19","v":0},{"$f":"(AO270*'Default-Data'!$F$19/general_dollar_index)/'Colombia-IO-Data'!$AP19","v":9.2146523630979249E-2},{"$f":"(AP270*'Default-Data'!$F$19/general_dollar_index)/'Colombia-IO-Data'!$AP19","v":5.7815914531585709E-2},null,null,null,null,null,null,null,null,null,null,null,null,"DOM_C23: Coke, refined petroleum products and nuclear fuel",{"$f":"'General Impact Estimates'!C16","v":0},null,null,22147.24500859125,6322.3928874783232,{"$f":"BG270*'Mexico-IO-Data'!AQ19","v":0},{"$f":"BJ270*'Mexico-IO-Data'!$AQ19","v":2778.4116497912314},{"$f":"BK270*'Mexico-IO-Data'!$AQ19","v":793.15553904392164},{"$f":"BG270*'Mexico-IO-Data'!AR19","v":0},{"$f":"BJ270*'Mexico-IO-Data'!$AR19","v":711.18028238231614},{"$f":"BK270*'Mexico-IO-Data'!$AR19","v":203.02124066919271},{"$f":"(BO270*'Default-Data'!$F$19/general_dollar_index)/'Mexico-IO-Data'!$AS19","v":0},{"$f":"(BP270*'Default-Data'!$F$19/general_dollar_index)/'Mexico-IO-Data'!$AS19","v":1.6273348163697597E-2},{"$f":"(BQ270*'Default-Data'!$F$19/general_dollar_index)/'Mexico-IO-Data'!$AS19","v":4.6455665544725272E-3},null,null,null,null,null,null,null,null,null,null,null,null,"TTL_C23: Coke, refined petroleum products and nuclear fuel",{"$f":"'General Impact Estimates'!C16","v":0},null,null,103556.08257225875,11245.748668055166,{"$f":"CH270*'Philippines-IO-Data'!$AN19","v":0},{"$f":"CK270*'Philippines-IO-Data'!$AN19","v":17589.250053832329},{"$f":"CL270*'Philippines-IO-Data'!$AN19","v":1910.1174981870477},{"$f":"CH270*'Philippines-IO-Data'!AO19","v":0},{"$f":"CK270*'Philippines-IO-Data'!$AO19","v":2391.4163762722856},{"$f":"CL270*'Philippines-IO-Data'!$AO19","v":259.69761370090401},{"$f":"(CP270*'Default-Data'!$F$19/general_dollar_index)/'Philippines-IO-Data'!$AP19","v":0},{"$f":"(CQ270*'Default-Data'!$F$19/general_dollar_index)/'Philippines-IO-Data'!$AP19","v":0.76653788225862574},{"$f":"(CR270*'Default-Data'!$F$19/general_dollar_index)/'Philippines-IO-Data'!$AP19","v":8.3242743007478623E-2},null,null,null,null,null,null,null,null,null,null,null,null,"DOM_C23: Coke, refined petroleum products and nuclear fuel",{"$f":"'General Impact Estimates'!C16","v":0},null,null,20272.943256024937,43685.589676916745,{"$f":"DI270*'SouthAfrica-IO-Data'!AR19","v":0},{"$f":"DL270*'SouthAfrica-IO-Data'!$AR19","v":4301.3551000123198},{"$f":"DM270*'SouthAfrica-IO-Data'!$AR19","v":9268.867947825338},{"$f":"DI270*'SouthAfrica-IO-Data'!AS19","v":0},{"$f":"DL270*'SouthAfrica-IO-Data'!$AS19","v":815.61202417371976},{"$f":"DM270*'SouthAfrica-IO-Data'!$AS19","v":1757.5391877557572},{"$f":"(DQ270*'Default-Data'!$F$19/general_dollar_index)/'SouthAfrica-IO-Data'!$AT19","v":0},{"$f":"(DR270*'Default-Data'!$F$19/general_dollar_index)/'SouthAfrica-IO-Data'!$AT19","v":6.5744584213150659E-2},{"$f":"(DS270*'Default-Data'!$F$19/general_dollar_index)/'SouthAfrica-IO-Data'!$AT19","v":0.14167113739449935},null,null,null,null,null,null,null,null,null,null,null,null,"COFFEE",{"$f":"'General Impact Estimates'!C16","v":0},null,null,3006.7495773259639,685.74937048556831,{"$f":"EJ270*'Zambia-IO-Data'!BO17","v":0},{"$f":"EM270*'Zambia-IO-Data'!$BO17","v":959.80883746208701},{"$f":"EN270*'Zambia-IO-Data'!$BO17","v":218.90359976751623},{"$f":"EJ270*'Zambia-IO-Data'!BN17","v":0},{"$f":"EM270*'Zambia-IO-Data'!$BN17","v":763.28519625875663},{"$f":"EN270*'Zambia-IO-Data'!$BN17","v":174.08245328528443},{"$f":"(ER270*'Default-Data'!$F$19/general_dollar_index)/'Zambia-IO-Data'!$BP17","v":0},{"$f":"(ES270*'Default-Data'!$F$19/general_dollar_index)/'Zambia-IO-Data'!$BP17","v":7.6168385327319212},{"$f":"(ET270*'Default-Data'!$F$19/general_dollar_index)/'Zambia-IO-Data'!$BP17","v":1.7371723499355729},null,null,null,null,null,null,null,null,null,null,null,null,"TTL_C23: Coke, refined petroleum products and nuclear fuel",{"$f":"'General Impact Estimates'!C16","v":0},null,null,202421.17916977199,31902.454511425371,{"$f":"FK270*CustomRegion1!C15","v":0},{"$f":"FN270*CustomRegion1!$C15","v":34381.724840975279},{"$f":"FO270*CustomRegion1!$C15","v":5418.7087401739354},{"$f":"FK270*CustomRegion1!D15","v":0},{"$f":"FN270*CustomRegion1!$D15","v":4674.5040054326637},{"$f":"FO270*CustomRegion1!$D15","v":736.72207625920646},{"$f":"(FT270*'Default-Data'!$C$58/general_dollar_index)/CustomRegion1!$E15","v":1.5046132777700589},{"$f":"(FU270*'Default-Data'!$C$58/general_dollar_index)/CustomRegion1!$E15","v":0.23713356896852822},{"$f":"(FV270*'Default-Data'!$C$58/general_dollar_index)/CustomRegion1!$E15","v":4.8429974880991077E-4},null,null,null,null,null,null,null,null,null,null,null,null,"C23 Coke, refined petroleum products and nuclear fuel",{"$f":"'General Impact Estimates'!C16","v":0},null,null,50277.217033769404,16016.69560966656,{"$f":"GL270*CustomRegion2!C19","v":0},{"$f":"GO270*CustomRegion2!$C19","v":8407.1666620030628},{"$f":"GP270*CustomRegion2!$C19","v":2678.2514488539923},{"$f":"GL270*CustomRegion2!D19","v":0},{"$f":"GO270*CustomRegion2!$D19","v":3566.5279560784543},{"$f":"GP270*CustomRegion2!$D19","v":1136.1804814595582},{"$f":"(GT270*'Default-Data'!$C$59/general_dollar_index)/CustomRegion2!$E19","v":0},{"$f":"(GU270*'Default-Data'!$C$59/general_dollar_index)/CustomRegion2!$E19","v":8.1609899209248146E-2},{"$f":"(GV270*'Default-Data'!$C$59/general_dollar_index)/CustomRegion2!$E19","v":2.59982749938635E-2},null,null,null,null,null,null,null,null,null,null,null,null,"COFFEE",{"$f":"'General Impact Estimates'!C16","v":0},null,null,3006.7495773259639,685.74937048556831,{"$f":"HM270*CustomRegion3!D18","v":0},{"$f":"HP270*CustomRegion3!$D18","v":959.80883746208701},{"$f":"HQ270*CustomRegion3!$D18","v":218.90359976751623},{"$f":"HM270*CustomRegion3!E18","v":0},{"$f":"HP270*CustomRegion3!$E18","v":763.28519625875663},{"$f":"HQ270*CustomRegion3!$E18","v":174.08245328528443},{"$f":"(HU270*'Default-Data'!$C$60/general_dollar_index)/CustomRegion3!$F18","v":0},{"$f":"(HV270*'Default-Data'!$C$60/general_dollar_index)/CustomRegion3!$F18","v":7.6476877255767848},{"$f":"(HW270*'Default-Data'!$C$60/general_dollar_index)/CustomRegion3!$F18","v":1.7442081252900894}]
[null,null,null,null,null,null,null,null,null,null,null,null,null,null,null,null,null,null,null,null,null,null,null,null,null,null,null,null,null,270,"TTL_C24: Chemicals and chemical products",{"$f":"'General Impact Estimates'!C17","v":0},null,null,8498.856451301901,9939.0213462976535,{"$f":"'Colombia-IO-Data'!$AN20*Calculations!AF271","v":0},{"$f":"AI271*'Colombia-IO-Data'!$AN20","v":2628.5699173036041},{"$f":"AJ271*'Colombia-IO-Data'!$AN20","v":3073.9915032115114},{"$f":"AK271*'Colombia-IO-Data'!$AO20","v":0},{"$f":"AL271*'Colombia-IO-Data'!$AO20","v":964.37484310075661},{"$f":"AM271*'Colombia-IO-Data'!$AO20","v":1127.7919807602584},{"$f":"(AN271*'Default-Data'!$F$19/general_dollar_index)/'Colombia-IO-Data'!$AP20","v":0},{"$f":"(AO271*'Default-Data'!$F$19/general_dollar_index)/'Colombia-IO-Data'!$AP20","v":0.23458249428905417},{"$f":"(AP271*'Default-Data'!$F$19/general_dollar_index)/'Colombia-IO-Data'!$AP20","v":0.274333427275325},null,null,null,null,null,null,null,null,null,null,null,null,"DOM_C24: Chemicals and chemical products",{"$f":"'General Impact Estimates'!C17","v":0},null,null,28044.950978877183,6024.0703259950969,{"$f":"BG271*'Mexico-IO-Data'!AQ20","v":0},{"$f":"BJ271*'Mexico-IO-Data'!$AQ20","v":8226.9376251210288},{"$f":"BK271*'Mexico-IO-Data'!$AQ20","v":1767.1505597792402},{"$f":"BG271*'Mexico-IO-Data'!AR20","v":0},{"$f":"BJ271*'Mexico-IO-Data'!$AR20","v":1800.9186782111658},{"$f":"BK271*'Mexico-IO-Data'!$AR20","v":386.83828604704325},{"$f":"(BO271*'Default-Data'!$F$19/general_dollar_index)/'Mexico-IO-Data'!$AS20","v":0},{"$f":"(BP271*'Default-Data'!$F$19/general_dollar_index)/'Mexico-IO-Data'!$AS20","v":0.14653056446022286},{"$f":"(BQ271*'Default-Data'!$F$19/general_dollar_index)/'Mexico-IO-Data'!$AS20","v":3.1474842864976926E-2},null,null,null,null,null,null,null,null,null,null,null,null,"TTL_C24: Chemicals and chemical products",{"$f":"'General Impact Estimates'!C17","v":0},null,null,8163.7648197754097,5521.3917057641011,{"$f":"CH271*'Philippines-IO-Data'!$AN20","v":0},{"$f":"CK271*'Philippines-IO-Data'!$AN20","v":2203.1583464470932},{"$f":"CL271*'Philippines-IO-Data'!$AN20","v":1490.0600996113194},{"$f":"CH271*'Philippines-IO-Data'!AO20","v":0},{"$f":"CK271*'Philippines-IO-Data'!$AO20","v":571.33709120218384},{"$f":"CL271*'Philippines-IO-Data'!$AO20","v":386.41190017106715},{"$f":"(CP271*'Default-Data'!$F$19/general_dollar_index)/'Philippines-IO-Data'!$AP20","v":0},{"$f":"(CQ271*'Default-Data'!$F$19/general_dollar_index)/'Philippines-IO-Data'!$AP20","v":0.18313478501330646},{"$f":"(CR271*'Default-Data'!$F$19/general_dollar_index)/'Philippines-IO-Data'!$AP20","v":0.12385938416060099},null,null,null,null,null,null,null,null,null,null,null,null,"DOM_C24: Chemicals and chemical products",{"$f":"'General Impact Estimates'!C17","v":0},null,null,8450.1229656712931,16732.808226210505,{"$f":"DI271*'SouthAfrica-IO-Data'!AR20","v":0},{"$f":"DL271*'SouthAfrica-IO-Data'!$AR20","v":1958.0538144490963},{"$f":"DM271*'SouthAfrica-IO-Data'!$AR20","v":3877.3091358409465},{"$f":"DI271*'SouthAfrica-IO-Data'!AS20","v":0},{"$f":"DL271*'SouthAfrica-IO-Data'!$AS20","v":1363.3507951746408},{"$f":"DM271*'SouthAfrica-IO-Data'!$AS20","v":2699.6870333586421},{"$f":"(DQ271*'Default-Data'!$F$19/general_dollar_index)/'SouthAfrica-IO-Data'!$AT20","v":0},{"$f":"(DR271*'Default-Data'!$F$19/general_dollar_index)/'SouthAfrica-IO-Data'!$AT20","v":0.10989652985588387},{"$f":"(DS271*'Default-Data'!$F$19/general_dollar_index)/'SouthAfrica-IO-Data'!$AT20","v":0.2176154792391756},null,null,null,null,null,null,null,null,null,null,null,null,"WHEAT",{"$f":"'General Impact Estimates'!C17","v":0},null,null,16853.028026156411,3843.6700704521318,{"$f":"EJ271*'Zambia-IO-Data'!BO18","v":0},{"$f":"EM271*'Zambia-IO-Data'!$BO18","v":3641.3140041387301},{"$f":"EN271*'Zambia-IO-Data'!$BO18","v":830.47447812369467},{"$f":"EJ271*'Zambia-IO-Data'!BN18","v":0},{"$f":"EM271*'Zambia-IO-Data'!$BN18","v":2205.2213246247984},{"$f":"EN271*'Zambia-IO-Data'!$BN18","v":502.94482338888355},{"$f":"(ER271*'Default-Data'!$F$19/general_dollar_index)/'Zambia-IO-Data'!$BP18","v":0},{"$f":"(ES271*'Default-Data'!$F$19/general_dollar_index)/'Zambia-IO-Data'!$BP18","v":22.00594855099235},{"$f":"(ET271*'Default-Data'!$F$19/general_dollar_index)/'Zambia-IO-Data'!$BP18","v":5.0188966449282821},null,null,null,null,null,null,null,null,null,null,null,null,"TTL_C24: Chemicals and chemical products",{"$f":"'General Impact Estimates'!C17","v":0},null,null,32311.385495623832,20731.303230925067,{"$f":"FK271*CustomRegion1!C16","v":0},{"$f":"FN271*CustomRegion1!$C16","v":8719.8860098852765},{"$f":"FO271*CustomRegion1!$C16","v":5594.7647628578652},{"$f":"FK271*CustomRegion1!D16","v":0},{"$f":"FN271*CustomRegion1!$D16","v":2261.2965230286995},{"$f":"FO271*CustomRegion1!$D16","v":1450.8701250305021},{"$f":"(FT271*'Default-Data'!$C$58/general_dollar_index)/CustomRegion1!$E16","v":0.72785835022711276},{"$f":"(FU271*'Default-Data'!$C$58/general_dollar_index)/CustomRegion1!$E16","v":0.46700108758142883},{"$f":"(FV271*'Default-Data'!$C$58/general_dollar_index)/CustomRegion1!$E16","v":2.3428054330785819E-4},null,null,null,null,null,null,null,null,null,null,null,null,"C24 Chemicals and chemical products",{"$f":"'General Impact Estimates'!C17","v":0},null,null,59880.290706120701,35890.196866368853,{"$f":"GL271*CustomRegion2!C20","v":0},{"$f":"GO271*CustomRegion2!$C20","v":19730.149229808394},{"$f":"GP271*CustomRegion2!$C20","v":11825.576190602531},{"$f":"GL271*CustomRegion2!D20","v":0},{"$f":"GO271*CustomRegion2!$D20","v":6994.911963926952},{"$f":"GP271*CustomRegion2!$D20","v":4192.5108326602694},{"$f":"(GT271*'Default-Data'!$C$59/general_dollar_index)/CustomRegion2!$E20","v":0},{"$f":"(GU271*'Default-Data'!$C$59/general_dollar_index)/CustomRegion2!$E20","v":0.56913641400058823},{"$f":"(GV271*'Default-Data'!$C$59/general_dollar_index)/CustomRegion2!$E20","v":0.34112088804893564},null,null,null,null,null,null,null,null,null,null,null,null,"WHEAT",{"$f":"'General Impact Estimates'!C17","v":0},null,null,16853.028026156411,3843.6700704521318,{"$f":"HM271*CustomRegion3!D19","v":0},{"$f":"HP271*CustomRegion3!$D19","v":3641.3140041387301},{"$f":"HQ271*CustomRegion3!$D19","v":830.47447812369467},{"$f":"HM271*CustomRegion3!E19","v":0},{"$f":"HP271*CustomRegion3!$E19","v":2205.2213246247984},{"$f":"HQ271*CustomRegion3!$E19","v":502.94482338888355},{"$f":"(HU271*'Default-Data'!$C$60/general_dollar_index)/CustomRegion3!$F19","v":0},{"$f":"(HV271*'Default-Data'!$C$60/general_dollar_index)/CustomRegion3!$F19","v":22.095075522460419},{"$f":"(HW271*'Default-Data'!$C$60/general_dollar_index)/CustomRegion3!$F19","v":5.0392238331445594}]
[null,null,null,null,null,null,null,null,null,null,null,null,null,null,null,null,null,null,null,null,null,null,null,null,null,null,null,null,null,271,"TTL_C25: Rubber and plastics products",{"$f":"'General Impact Estimates'!C18","v":0},null,null,5479.0814672779252,2684.541689544847,{"$f":"'Colombia-IO-Data'!$AN21*Calculations!AF272","v":0},{"$f":"AI272*'Colombia-IO-Data'!$AN21","v":1379.0343142128652},{"$f":"AJ272*'Colombia-IO-Data'!$AN21","v":675.67440453783956},{"$f":"AK272*'Colombia-IO-Data'!$AO21","v":0},{"$f":"AL272*'Colombia-IO-Data'!$AO21","v":798.66612388099281},{"$f":"AM272*'Colombia-IO-Data'!$AO21","v":391.31604784312617},{"$f":"(AN272*'Default-Data'!$F$19/general_dollar_index)/'Colombia-IO-Data'!$AP21","v":0},{"$f":"(AO272*'Default-Data'!$F$19/general_dollar_index)/'Colombia-IO-Data'!$AP21","v":0.19427413809528382},{"$f":"(AP272*'Default-Data'!$F$19/general_dollar_index)/'Colombia-IO-Data'!$AP21","v":9.5186944386918951E-2},null,null,null,null,null,null,null,null,null,null,null,null,"DOM_C25: Rubber and plastics products",{"$f":"'General Impact Estimates'!C18","v":0},null,null,1439.4485112306352,1018.8714770420816,{"$f":"BG272*'Mexico-IO-Data'!AQ21","v":0},{"$f":"BJ272*'Mexico-IO-Data'!$AQ21","v":443.99251431748411},{"$f":"BK272*'Mexico-IO-Data'!$AQ21","v":314.26709974609264},{"$f":"BG272*'Mexico-IO-Data'!AR21","v":0},{"$f":"BJ272*'Mexico-IO-Data'!$AR21","v":155.2200833667664},{"$f":"BK272*'Mexico-IO-Data'!$AR21","v":109.867990673237},{"$f":"(BO272*'Default-Data'!$F$19/general_dollar_index)/'Mexico-IO-Data'!$AS21","v":0},{"$f":"(BP272*'Default-Data'!$F$19/general_dollar_index)/'Mexico-IO-Data'!$AS21","v":2.9407716688129127E-2},{"$f":"(BQ272*'Default-Data'!$F$19/general_dollar_index)/'Mexico-IO-Data'!$AS21","v":2.0815391106176521E-2},null,null,null,null,null,null,null,null,null,null,null,null,"TTL_C25: Rubber and plastics products",{"$f":"'General Impact Estimates'!C18","v":0},null,null,908.92639841056257,1416.7655632250965,{"$f":"CH272*'Philippines-IO-Data'!$AN21","v":0},{"$f":"CK272*'Philippines-IO-Data'!$AN21","v":279.53397269534577},{"$f":"CL272*'Philippines-IO-Data'!$AN21","v":435.71636488808576},{"$f":"CH272*'Philippines-IO-Data'!AO21","v":0},{"$f":"CK272*'Philippines-IO-Data'!$AO21","v":78.988580814525605},{"$f":"CL272*'Philippines-IO-Data'!$AO21","v":123.12141157054764},{"$f":"(CP272*'Default-Data'!$F$19/general_dollar_index)/'Philippines-IO-Data'!$AP21","v":0},{"$f":"(CQ272*'Default-Data'!$F$19/general_dollar_index)/'Philippines-IO-Data'!$AP21","v":2.5318777633597189E-2},{"$f":"(CR272*'Default-Data'!$F$19/general_dollar_index)/'Philippines-IO-Data'!$AP21","v":3.9464991133453087E-2},null,null,null,null,null,null,null,null,null,null,null,null,"DOM_C25: Rubber and plastics products",{"$f":"'General Impact Estimates'!C18","v":0},null,null,5064.994812941708,9653.3749014339082,{"$f":"DI272*'SouthAfrica-IO-Data'!AR21","v":0},{"$f":"DL272*'SouthAfrica-IO-Data'!$AR21","v":1491.769029868414},{"$f":"DM272*'SouthAfrica-IO-Data'!$AR21","v":2843.1629732122869},{"$f":"DI272*'SouthAfrica-IO-Data'!AS21","v":0},{"$f":"DL272*'SouthAfrica-IO-Data'!$AS21","v":1408.1623273128166},{"$f":"DM272*'SouthAfrica-IO-Data'!$AS21","v":2683.8169375599609},{"$f":"(DQ272*'Default-Data'!$F$19/general_dollar_index)/'SouthAfrica-IO-Data'!$AT21","v":0},{"$f":"(DR272*'Default-Data'!$F$19/general_dollar_index)/'SouthAfrica-IO-Data'!$AT21","v":0.11350868301334041},{"$f":"(DS272*'Default-Data'!$F$19/general_dollar_index)/'SouthAfrica-IO-Data'!$AT21","v":0.21633622780738831},null,null,null,null,null,null,null,null,null,null,null,null,"HORTI",{"$f":"'General Impact Estimates'!C18","v":0},null,null,970.69658915807577,40205.461515015413,{"$f":"EJ272*'Zambia-IO-Data'!BO19","v":0},{"$f":"EM272*'Zambia-IO-Data'!$BO19","v":467.94152056470159},{"$f":"EN272*'Zambia-IO-Data'!$BO19","v":19381.756365972062},{"$f":"EJ272*'Zambia-IO-Data'!BN19","v":0},{"$f":"EM272*'Zambia-IO-Data'!$BN19","v":394.22636775220121},{"$f":"EN272*'Zambia-IO-Data'!$BN19","v":16328.534821177058},{"$f":"(ER272*'Default-Data'!$F$19/general_dollar_index)/'Zambia-IO-Data'!$BP19","v":0},{"$f":"(ES272*'Default-Data'!$F$19/general_dollar_index)/'Zambia-IO-Data'!$BP19","v":3.9339929599472603},{"$f":"(ET272*'Default-Data'!$F$19/general_dollar_index)/'Zambia-IO-Data'!$BP19","v":162.94278183122765},null,null,null,null,null,null,null,null,null,null,null,null,"TTL_C25: Rubber and plastics products",{"$f":"'General Impact Estimates'!C18","v":0},null,null,4236.7961617073115,4372.1852078055135,{"$f":"FK272*CustomRegion1!C17","v":0},{"$f":"FN272*CustomRegion1!$C17","v":1302.9971014742996},{"$f":"FO272*CustomRegion1!$C17","v":1344.6350580585122},{"$f":"FK272*CustomRegion1!D17","v":0},{"$f":"FN272*CustomRegion1!$D17","v":368.19099610145162},{"$f":"FO272*CustomRegion1!$D17","v":379.95673271976335},{"$f":"(FT272*'Default-Data'!$C$58/general_dollar_index)/CustomRegion1!$E17","v":0.11851205194086731},{"$f":"(FU272*'Default-Data'!$C$58/general_dollar_index)/CustomRegion1!$E17","v":0.122299166791573},{"$f":"(FV272*'Default-Data'!$C$58/general_dollar_index)/CustomRegion1!$E17","v":3.8146251820250467E-5},null,null,null,null,null,null,null,null,null,null,null,null,"C25 Rubber and plastics products",{"$f":"'General Impact Estimates'!C18","v":0},null,null,13358.503164952699,9403.9085479154401,{"$f":"GL272*CustomRegion2!C21","v":0},{"$f":"GO272*CustomRegion2!$C21","v":4359.9923447986093},{"$f":"GP272*CustomRegion2!$C21","v":3069.2787038945698},{"$f":"GL272*CustomRegion2!D21","v":0},{"$f":"GO272*CustomRegion2!$D21","v":1979.7222648979639},{"$f":"GP272*CustomRegion2!$D21","v":1393.6536825634985},{"$f":"(GT272*'Default-Data'!$C$59/general_dollar_index)/CustomRegion2!$E21","v":0},{"$f":"(GU272*'Default-Data'!$C$59/general_dollar_index)/CustomRegion2!$E21","v":0.37507460519613234},{"$f":"(GV272*'Default-Data'!$C$59/general_dollar_index)/CustomRegion2!$E21","v":0.26403910994787017},null,null,null,null,null,null,null,null,null,null,null,null,"HORTI",{"$f":"'General Impact Estimates'!C18","v":0},null,null,970.69658915807577,40205.461515015413,{"$f":"HM272*CustomRegion3!D20","v":0},{"$f":"HP272*CustomRegion3!$D20","v":467.94152056470159},{"$f":"HQ272*CustomRegion3!$D20","v":19381.756365972062},{"$f":"HM272*CustomRegion3!E20","v":0},{"$f":"HP272*CustomRegion3!$E20","v":394.22636775220121},{"$f":"HQ272*CustomRegion3!$E20","v":16328.534821177058},{"$f":"(HU272*'Default-Data'!$C$60/general_dollar_index)/CustomRegion3!$F20","v":0},{"$f":"(HV272*'Default-Data'!$C$60/general_dollar_index)/CustomRegion3!$F20","v":3.9499261462620581},{"$f":"(HW272*'Default-Data'!$C$60/general_dollar_index)/CustomRegion3!$F20","v":163.60272142135929}]
[null,null,null,null,null,null,null,null,null,null,null,null,null,null,null,null,null,null,null,null,null,null,null,null,null,null,null,null,null,272,"TTL_C26: Other non-metallic mineral products",{"$f":"'General Impact Estimates'!C19","v":0},null,null,3021.7903913780856,955.47913193352588,{"$f":"'Colombia-IO-Data'!$AN22*Calculations!AF273","v":0},{"$f":"AI273*'Colombia-IO-Data'!$AN22","v":1335.0891133179309},{"$f":"AJ273*'Colombia-IO-Data'!$AN22","v":422.15032210263865},{"$f":"AK273*'Colombia-IO-Data'!$AO22","v":0},{"$f":"AL273*'Colombia-IO-Data'!$AO22","v":395.14767930693893},{"$f":"AM273*'Colombia-IO-Data'!$AO22","v":124.94425910116068},{"$f":"(AN273*'Default-Data'!$F$19/general_dollar_index)/'Colombia-IO-Data'!$AP22","v":0},{"$f":"(AO273*'Default-Data'!$F$19/general_dollar_index)/'Colombia-IO-Data'!$AP22","v":9.6118982040542908E-2},{"$f":"(AP273*'Default-Data'!$F$19/general_dollar_index)/'Colombia-IO-Data'!$AP22","v":3.0392472550205135E-2},null,null,null,null,null,null,null,null,null,null,null,null,"DOM_C26: Other non-metallic mineral products",{"$f":"'General Impact Estimates'!C19","v":0},null,null,1468.8111743401944,1034.5686977533253,{"$f":"BG273*'Mexico-IO-Data'!AQ22","v":0},{"$f":"BJ273*'Mexico-IO-Data'!$AQ22","v":803.40901171885366},{"$f":"BK273*'Mexico-IO-Data'!$AQ22","v":565.88745343024516},{"$f":"BG273*'Mexico-IO-Data'!AR22","v":0},{"$f":"BJ273*'Mexico-IO-Data'!$AR22","v":173.6514374372824},{"$f":"BK273*'Mexico-IO-Data'!$AR22","v":122.31275512537201},{"$f":"(BO273*'Default-Data'!$F$19/general_dollar_index)/'Mexico-IO-Data'!$AS22","v":0},{"$f":"(BP273*'Default-Data'!$F$19/general_dollar_index)/'Mexico-IO-Data'!$AS22","v":4.3689367890653821E-2},{"$f":"(BQ273*'Default-Data'!$F$19/general_dollar_index)/'Mexico-IO-Data'!$AS22","v":3.0772949739168366E-2},null,null,null,null,null,null,null,null,null,null,null,null,"TTL_C26: Other non-metallic mineral products",{"$f":"'General Impact Estimates'!C19","v":0},null,null,3298.8062913143199,2006.5662694803154,{"$f":"CH273*'Philippines-IO-Data'!$AN22","v":0},{"$f":"CK273*'Philippines-IO-Data'!$AN22","v":1241.3012973914467},{"$f":"CL273*'Philippines-IO-Data'!$AN22","v":755.04685442304583},{"$f":"CH273*'Philippines-IO-Data'!AO22","v":0},{"$f":"CK273*'Philippines-IO-Data'!$AO22","v":264.02514461852485},{"$f":"CL273*'Philippines-IO-Data'!$AO22","v":160.59868410009491},{"$f":"(CP273*'Default-Data'!$F$19/general_dollar_index)/'Philippines-IO-Data'!$AP22","v":0},{"$f":"(CQ273*'Default-Data'!$F$19/general_dollar_index)/'Philippines-IO-Data'!$AP22","v":8.4629877601820017E-2},{"$f":"(CR273*'Default-Data'!$F$19/general_dollar_index)/'Philippines-IO-Data'!$AP22","v":5.1477850710173495E-2},null,null,null,null,null,null,null,null,null,null,null,null,"DOM_C26: Other non-metallic mineral products",{"$f":"'General Impact Estimates'!C19","v":0},null,null,2784.3848988486743,5317.3987797714353,{"$f":"DI273*'SouthAfrica-IO-Data'!AR22","v":0},{"$f":"DL273*'SouthAfrica-IO-Data'!$AR22","v":918.20113015713014},{"$f":"DM273*'SouthAfrica-IO-Data'!$AR22","v":1753.5081342745164},{"$f":"DI273*'SouthAfrica-IO-Data'!AS22","v":0},{"$f":"DL273*'SouthAfrica-IO-Data'!$AS22","v":413.86989923056535},{"$f":"DM273*'SouthAfrica-IO-Data'!$AS22","v":790.37610714765606},{"$f":"(DQ273*'Default-Data'!$F$19/general_dollar_index)/'SouthAfrica-IO-Data'!$AT22","v":0},{"$f":"(DR273*'Default-Data'!$F$19/general_dollar_index)/'SouthAfrica-IO-Data'!$AT22","v":3.3361087915320629E-2},{"$f":"(DS273*'Default-Data'!$F$19/general_dollar_index)/'SouthAfrica-IO-Data'!$AT22","v":6.3710375762390067E-2},null,null,null,null,null,null,null,null,null,null,null,null,"OTHERCROP",{"$f":"'General Impact Estimates'!C19","v":0},null,null,3287.97368032335,22050.12413648147,{"$f":"EJ273*'Zambia-IO-Data'!BO20","v":0},{"$f":"EM273*'Zambia-IO-Data'!$BO20","v":1513.743940360607},{"$f":"EN273*'Zambia-IO-Data'!$BO20","v":10151.614654201083},{"$f":"EJ273*'Zambia-IO-Data'!BN20","v":0},{"$f":"EM273*'Zambia-IO-Data'!$BN20","v":1422.8490604504086},{"$f":"EN273*'Zambia-IO-Data'!$BN20","v":9542.0467013355519},{"$f":"(ER273*'Default-Data'!$F$19/general_dollar_index)/'Zambia-IO-Data'!$BP20","v":0},{"$f":"(ES273*'Default-Data'!$F$19/general_dollar_index)/'Zambia-IO-Data'!$BP20","v":14.198639778448021},{"$f":"(ET273*'Default-Data'!$F$19/general_dollar_index)/'Zambia-IO-Data'!$BP20","v":95.220278543462385},null,null,null,null,null,null,null,null,null,null,null,null,"TTL_C26: Other non-metallic mineral products",{"$f":"'General Impact Estimates'!C19","v":0},null,null,6446.9708273159122,4331.1386748447985,{"$f":"FK273*CustomRegion1!C18","v":0},{"$f":"FN273*CustomRegion1!$C18","v":2425.9179065053918},{"$f":"FO273*CustomRegion1!$C18","v":1629.7556089979141},{"$f":"FK273*CustomRegion1!D18","v":0},{"$f":"FN273*CustomRegion1!$D18","v":515.99343966187053},{"$f":"FO273*CustomRegion1!$D18","v":346.64948893776227},{"$f":"(FT273*'Default-Data'!$C$58/general_dollar_index)/CustomRegion1!$E18","v":0.16608619431178234},{"$f":"(FU273*'Default-Data'!$C$58/general_dollar_index)/CustomRegion1!$E18","v":0.11157834567727284},{"$f":"(FV273*'Default-Data'!$C$58/general_dollar_index)/CustomRegion1!$E18","v":5.3459253201062531E-5},null,null,null,null,null,null,null,null,null,null,null,null,"C26 Other non-metallic mineral products",{"$f":"'General Impact Estimates'!C19","v":0},null,null,6273.9948174546253,4970.6758431462176,{"$f":"GL273*CustomRegion2!C22","v":0},{"$f":"GO273*CustomRegion2!$C22","v":3316.316131569105},{"$f":"GP273*CustomRegion2!$C22","v":2627.4061364485469},{"$f":"GL273*CustomRegion2!D22","v":0},{"$f":"GO273*CustomRegion2!$D22","v":929.7907950000066},{"$f":"GP273*CustomRegion2!$D22","v":736.64208823195679},{"$f":"(GT273*'Default-Data'!$C$59/general_dollar_index)/CustomRegion2!$E22","v":0},{"$f":"(GU273*'Default-Data'!$C$59/general_dollar_index)/CustomRegion2!$E22","v":0.23392822255658086},{"$f":"(GV273*'Default-Data'!$C$59/general_dollar_index)/CustomRegion2!$E22","v":0.18533349145542835},null,null,null,null,null,null,null,null,null,null,null,null,"OTHERCROP",{"$f":"'General Impact Estimates'!C19","v":0},null,null,3287.97368032335,22050.12413648147,{"$f":"HM273*CustomRegion3!D21","v":0},{"$f":"HP273*CustomRegion3!$D21","v":1513.743940360607},{"$f":"HQ273*CustomRegion3!$D21","v":10151.614654201083},{"$f":"HM273*CustomRegion3!E21","v":0},{"$f":"HP273*CustomRegion3!$E21","v":1422.8490604504086},{"$f":"HQ273*CustomRegion3!$E21","v":9542.0467013355519},{"$f":"(HU273*'Default-Data'!$C$60/general_dollar_index)/CustomRegion3!$F21","v":0},{"$f":"(HV273*'Default-Data'!$C$60/general_dollar_index)/CustomRegion3!$F21","v":14.256146127673857},{"$f":"(HW273*'Default-Data'!$C$60/general_dollar_index)/CustomRegion3!$F21","v":95.605933132686729}]
[null,null,null,null,null,null,null,null,null,null,null,null,null,null,null,null,null,null,null,null,null,null,null,null,null,null,null,null,null,273,"TTL_C27: Basic metals",{"$f":"'General Impact Estimates'!C20","v":1000000},null,null,66588.865922044264,682.14748811745085,{"$f":"'Colombia-IO-Data'!$AN23*Calculations!AF274","v":291315.09752364509},{"$f":"AI274*'Colombia-IO-Data'!$AN23","v":19398.341970069254},{"$f":"AJ274*'Colombia-IO-Data'!$AN23","v":198.71986202644473},{"$f":"AK274*'Colombia-IO-Data'!$AO23","v":76148.241173161703},{"$f":"AL274*'Colombia-IO-Data'!$AO23","v":5070.6250216791559},{"$f":"AM274*'Colombia-IO-Data'!$AO23","v":51.944331440834105},{"$f":"(AN274*'Default-Data'!$F$19/general_dollar_index)/'Colombia-IO-Data'!$AP23","v":18.522926513397671},{"$f":"(AO274*'Default-Data'!$F$19/general_dollar_index)/'Colombia-IO-Data'!$AP23","v":1.2334206700845165},{"$f":"(AP274*'Default-Data'!$F$19/general_dollar_index)/'Colombia-IO-Data'!$AP23","v":1.2635367793698353E-2},null,null,null,null,null,null,null,null,null,null,null,null,"DOM_C27: Basic metals",{"$f":"'General Impact Estimates'!C20","v":1000000},null,null,122026.26368855499,404.77579618780874,{"$f":"BG274*'Mexico-IO-Data'!AQ23","v":376641.77335229964},{"$f":"BJ274*'Mexico-IO-Data'!$AQ23","v":45960.188351212681},{"$f":"BK274*'Mexico-IO-Data'!$AQ23","v":152.45547368626529},{"$f":"BG274*'Mexico-IO-Data'!AR23","v":46161.292871819183},{"$f":"BJ274*'Mexico-IO-Data'!$AR23","v":5632.8900961812215},{"$f":"BK274*'Mexico-IO-Data'!$AR23","v":18.684974075249229},{"$f":"(BO274*'Default-Data'!$F$19/general_dollar_index)/'Mexico-IO-Data'!$AS23","v":4.5998210250756486},{"$f":"(BP274*'Default-Data'!$F$19/general_dollar_index)/'Mexico-IO-Data'!$AS23","v":0.56129897332604051},{"$f":"(BQ274*'Default-Data'!$F$19/general_dollar_index)/'Mexico-IO-Data'!$AS23","v":1.8618962177464184E-3},null,null,null,null,null,null,null,null,null,null,null,null,"TTL_C27: Basic metals",{"$f":"'General Impact Estimates'!C20","v":1000000},null,null,482473.58005258162,1161.3672095218208,{"$f":"CH274*'Philippines-IO-Data'!$AN23","v":205279.86568762723},{"$f":"CK274*'Philippines-IO-Data'!$AN23","v":99042.111711022619},{"$f":"CL274*'Philippines-IO-Data'!$AN23","v":238.40530478465382},{"$f":"CH274*'Philippines-IO-Data'!AO23","v":46719.864143806866},{"$f":"CK274*'Philippines-IO-Data'!$AO23","v":22541.100113032742},{"$f":"CL274*'Philippines-IO-Data'!$AO23","v":54.258918249931554},{"$f":"(CP274*'Default-Data'!$F$19/general_dollar_index)/'Philippines-IO-Data'!$AP23","v":14.97545390904642},{"$f":"(CQ274*'Default-Data'!$F$19/general_dollar_index)/'Philippines-IO-Data'!$AP23","v":7.2252608604100557},{"$f":"(CR274*'Default-Data'!$F$19/general_dollar_index)/'Philippines-IO-Data'!$AP23","v":1.7392001117671883E-2},null,null,null,null,null,null,null,null,null,null,null,null,"DOM_C27: Basic metals",{"$f":"'General Impact Estimates'!C20","v":1000000},null,null,12951.819548868458,13574.80843618128,{"$f":"DI274*'SouthAfrica-IO-Data'!AR23","v":159536.8781249834},{"$f":"DL274*'SouthAfrica-IO-Data'!$AR23","v":2066.2928568646048},{"$f":"DM274*'SouthAfrica-IO-Data'!$AR23","v":2165.6825590530493},{"$f":"DI274*'SouthAfrica-IO-Data'!AS23","v":102704.02388935236},{"$f":"DL274*'SouthAfrica-IO-Data'!$AS23","v":1330.2039843575669},{"$f":"DM274*'SouthAfrica-IO-Data'!$AS23","v":1394.1874499229441},{"$f":"(DQ274*'Default-Data'!$F$19/general_dollar_index)/'SouthAfrica-IO-Data'!$AT23","v":8.2787319797835437},{"$f":"(DR274*'Default-Data'!$F$19/general_dollar_index)/'SouthAfrica-IO-Data'!$AT23","v":0.10722464269560297},{"$f":"(DS274*'Default-Data'!$F$19/general_dollar_index)/'SouthAfrica-IO-Data'!$AT23","v":0.1123822007200494},null,null,null,null,null,null,null,null,null,null,null,null,"LIVEST",{"$f":"'General Impact Estimates'!C20","v":1000000},null,null,334823.56704569794,44227.42237087246,{"$f":"EJ274*'Zambia-IO-Data'!BO21","v":300861.81735290086},{"$f":"EM274*'Zambia-IO-Data'!$BO21","v":100735.62687394953},{"$f":"EN274*'Zambia-IO-Data'!$BO21","v":13306.342671335031},{"$f":"EJ274*'Zambia-IO-Data'!BN21","v":193502.46036524736},{"$f":"EM274*'Zambia-IO-Data'!$BN21","v":64789.184011610902},{"$f":"EN274*'Zambia-IO-Data'!$BN21","v":8558.115044376802},{"$f":"(ER274*'Default-Data'!$F$19/general_dollar_index)/'Zambia-IO-Data'!$BP21","v":1930.96499645566},{"$f":"(ES274*'Default-Data'!$F$19/general_dollar_index)/'Zambia-IO-Data'!$BP21","v":646.53258795366742},{"$f":"(ET274*'Default-Data'!$F$19/general_dollar_index)/'Zambia-IO-Data'!$BP21","v":85.401604481614712},null,null,null,null,null,null,null,null,null,null,null,null,"TTL_C27: Basic metals",{"$f":"'General Impact Estimates'!C20","v":1000000},null,null,881445.64626972051,7352.4563534110785,{"$f":"FK274*CustomRegion1!C19","v":205279.86568762723},{"$f":"FN274*CustomRegion1!$C19","v":180943.04387719202},{"$f":"FO274*CustomRegion1!$C19","v":1509.3112527023677},{"$f":"FK274*CustomRegion1!D19","v":46719.864143806866},{"$f":"FN274*CustomRegion1!$D19","v":41181.020843871389},{"$f":"FO274*CustomRegion1!$D19","v":343.50576195463526},{"$f":"(FT274*'Default-Data'!$C$58/general_dollar_index)/CustomRegion1!$E19","v":13.255205403996525},{"$f":"(FU274*'Default-Data'!$C$58/general_dollar_index)/CustomRegion1!$E19","v":0.11056645364444978},{"$f":"(FV274*'Default-Data'!$C$58/general_dollar_index)/CustomRegion1!$E19","v":4.2665399424717436E-3},null,null,null,null,null,null,null,null,null,null,null,null,"C27 Basic metals",{"$f":"'General Impact Estimates'!C20","v":1000000},null,null,395382.19481673627,8936.4077791257296,{"$f":"GL274*CustomRegion2!C23","v":361188.05918902927},{"$f":"GO274*CustomRegion2!$C23","v":142807.32758375566},{"$f":"GP274*CustomRegion2!$C23","v":3227.7237818641661},{"$f":"GL274*CustomRegion2!D23","v":88317.33831811737},{"$f":"GO274*CustomRegion2!$D23","v":34919.103064589493},{"$f":"GP274*CustomRegion2!$D23","v":789.23974917770295},{"$f":"(GT274*'Default-Data'!$C$59/general_dollar_index)/CustomRegion2!$E23","v":8.8005323161648636},{"$f":"(GU274*'Default-Data'!$C$59/general_dollar_index)/CustomRegion2!$E23","v":3.4795737827208804},{"$f":"(GV274*'Default-Data'!$C$59/general_dollar_index)/CustomRegion2!$E23","v":7.8645145450623066E-2},null,null,null,null,null,null,null,null,null,null,null,null,"LIVEST",{"$f":"'General Impact Estimates'!C20","v":1000000},null,null,334823.56704569794,44227.42237087246,{"$f":"HM274*CustomRegion3!D22","v":300861.81735290086},{"$f":"HP274*CustomRegion3!$D22","v":100735.62687394953},{"$f":"HQ274*CustomRegion3!$D22","v":13306.342671335031},{"$f":"HM274*CustomRegion3!E22","v":193502.46036524736},{"$f":"HP274*CustomRegion3!$E22","v":64789.184011610902},{"$f":"HQ274*CustomRegion3!$E22","v":8558.115044376802},{"$f":"(HU274*'Default-Data'!$C$60/general_dollar_index)/CustomRegion3!$F22","v":1938.7856573895046},{"$f":"(HV274*'Default-Data'!$C$60/general_dollar_index)/CustomRegion3!$F22","v":649.15112954419237},{"$f":"(HW274*'Default-Data'!$C$60/general_dollar_index)/CustomRegion3!$F22","v":85.747492155955243}]
[null,null,null,null,null,null,null,null,null,null,null,null,null,null,null,null,null,null,null,null,null,null,null,null,null,null,null,null,null,274,"TTL_C28: Fabricated metal products",{"$f":"'General Impact Estimates'!C21","v":0},null,null,4479.0094154209246,809.40523229933842,{"$f":"'Colombia-IO-Data'!$AN24*Calculations!AF275","v":0},{"$f":"AI275*'Colombia-IO-Data'!$AN24","v":1585.0247743483865},{"$f":"AJ275*'Colombia-IO-Data'!$AN24","v":286.43104461103178},{"$f":"AK275*'Colombia-IO-Data'!$AO24","v":0},{"$f":"AL275*'Colombia-IO-Data'!$AO24","v":415.84993195199598},{"$f":"AM275*'Colombia-IO-Data'!$AO24","v":75.148560664866906},{"$f":"(AN275*'Default-Data'!$F$19/general_dollar_index)/'Colombia-IO-Data'!$AP24","v":0},{"$f":"(AO275*'Default-Data'!$F$19/general_dollar_index)/'Colombia-IO-Data'!$AP24","v":0.1011547687967226},{"$f":"(AP275*'Default-Data'!$F$19/general_dollar_index)/'Colombia-IO-Data'!$AP24","v":1.8279755977785268E-2},null,null,null,null,null,null,null,null,null,null,null,null,"DOM_C28: Fabricated metal products",{"$f":"'General Impact Estimates'!C21","v":0},null,null,9715.8432813280069,694.18101541253054,{"$f":"BG275*'Mexico-IO-Data'!AQ24","v":0},{"$f":"BJ275*'Mexico-IO-Data'!$AQ24","v":3570.8028743305003},{"$f":"BK275*'Mexico-IO-Data'!$AQ24","v":255.12798975509179},{"$f":"BG275*'Mexico-IO-Data'!AR24","v":0},{"$f":"BJ275*'Mexico-IO-Data'!$AR24","v":1296.4552128126336},{"$f":"BK275*'Mexico-IO-Data'!$AR24","v":92.6295916893515},{"$f":"(BO275*'Default-Data'!$F$19/general_dollar_index)/'Mexico-IO-Data'!$AS24","v":0},{"$f":"(BP275*'Default-Data'!$F$19/general_dollar_index)/'Mexico-IO-Data'!$AS24","v":0.28690121460950302},{"$f":"(BQ275*'Default-Data'!$F$19/general_dollar_index)/'Mexico-IO-Data'!$AS24","v":2.0498619699173538E-2},null,null,null,null,null,null,null,null,null,null,null,null,"TTL_C28: Fabricated metal products",{"$f":"'General Impact Estimates'!C21","v":0},null,null,18745.141335080694,729.2490003459061,{"$f":"CH275*'Philippines-IO-Data'!$AN24","v":0},{"$f":"CK275*'Philippines-IO-Data'!$AN24","v":4720.7409013106726},{"$f":"CL275*'Philippines-IO-Data'!$AN24","v":183.65268746894833},{"$f":"CH275*'Philippines-IO-Data'!AO24","v":0},{"$f":"CK275*'Philippines-IO-Data'!$AO24","v":1447.1338367009639},{"$f":"CL275*'Philippines-IO-Data'!$AO24","v":56.298370063816364},{"$f":"(CP275*'Default-Data'!$F$19/general_dollar_index)/'Philippines-IO-Data'!$AP24","v":0},{"$f":"(CQ275*'Default-Data'!$F$19/general_dollar_index)/'Philippines-IO-Data'!$AP24","v":0.46386021168705693},{"$f":"(CR275*'Default-Data'!$F$19/general_dollar_index)/'Philippines-IO-Data'!$AP24","v":1.804572126858122E-2},null,null,null,null,null,null,null,null,null,null,null,null,"DOM_C28: Fabricated metal products",{"$f":"'General Impact Estimates'!C21","v":0},null,null,25408.226076076233,29113.975754905736,{"$f":"DI275*'SouthAfrica-IO-Data'!AR24","v":0},{"$f":"DL275*'SouthAfrica-IO-Data'!$AR24","v":6677.1744996168036},{"$f":"DM275*'SouthAfrica-IO-Data'!$AR24","v":7651.0298637558135},{"$f":"DI275*'SouthAfrica-IO-Data'!AS24","v":0},{"$f":"DL275*'SouthAfrica-IO-Data'!$AS24","v":6202.2921468464438},{"$f":"DM275*'SouthAfrica-IO-Data'!$AS24","v":7106.8866692017164},{"$f":"(DQ275*'Default-Data'!$F$19/general_dollar_index)/'SouthAfrica-IO-Data'!$AT24","v":0},{"$f":"(DR275*'Default-Data'!$F$19/general_dollar_index)/'SouthAfrica-IO-Data'!$AT24","v":0.49995231344953467},{"$f":"(DS275*'Default-Data'!$F$19/general_dollar_index)/'SouthAfrica-IO-Data'!$AT24","v":0.57286956943774925},null,null,null,null,null,null,null,null,null,null,null,null,"FISH",{"$f":"'General Impact Estimates'!C21","v":0},null,null,61714.87597982696,17843.954051045701,{"$f":"EJ275*'Zambia-IO-Data'!BO22","v":0},{"$f":"EM275*'Zambia-IO-Data'!$BO22","v":5631.4073572999741},{"$f":"EN275*'Zambia-IO-Data'!$BO22","v":1628.2391000709126},{"$f":"EJ275*'Zambia-IO-Data'!BN22","v":0},{"$f":"EM275*'Zambia-IO-Data'!$BN22","v":2394.1691601997572},{"$f":"EN275*'Zambia-IO-Data'!$BN22","v":692.23900731810113},{"$f":"(ER275*'Default-Data'!$F$19/general_dollar_index)/'Zambia-IO-Data'!$BP22","v":0},{"$f":"(ES275*'Default-Data'!$F$19/general_dollar_index)/'Zambia-IO-Data'!$BP22","v":23.891462853821498},{"$f":"(ET275*'Default-Data'!$F$19/general_dollar_index)/'Zambia-IO-Data'!$BP22","v":6.9078671650447561},null,null,null,null,null,null,null,null,null,null,null,null,"TTL_C28: Fabricated metal products",{"$f":"'General Impact Estimates'!C21","v":0},null,null,37821.956476112529,2620.5598034404175,{"$f":"FK275*CustomRegion1!C20","v":0},{"$f":"FN275*CustomRegion1!$C20","v":9525.0099059126605},{"$f":"FO275*CustomRegion1!$C20","v":659.95681906543393},{"$f":"FK275*CustomRegion1!D20","v":0},{"$f":"FN275*CustomRegion1!$D20","v":2919.8730491502042},{"$f":"FO275*CustomRegion1!$D20","v":202.30846462384008},{"$f":"(FT275*'Default-Data'!$C$58/general_dollar_index)/CustomRegion1!$E20","v":0.93983869819097765},{"$f":"(FU275*'Default-Data'!$C$58/general_dollar_index)/CustomRegion1!$E20","v":6.5118353032650733E-2},{"$f":"(FV275*'Default-Data'!$C$58/general_dollar_index)/CustomRegion1!$E20","v":3.0251204889691522E-4},null,null,null,null,null,null,null,null,null,null,null,null,"C28 Fabricated metal products except machinery and equipment",{"$f":"'General Impact Estimates'!C21","v":0},null,null,16381.397887468112,6657.560486534574,{"$f":"GL275*CustomRegion2!C24","v":0},{"$f":"GO275*CustomRegion2!$C24","v":5667.9877214495482},{"$f":"GP275*CustomRegion2!$C24","v":2303.5257034659521},{"$f":"GL275*CustomRegion2!D24","v":0},{"$f":"GO275*CustomRegion2!$D24","v":2525.8031086423834},{"$f":"GP275*CustomRegion2!$D24","v":1026.5111126888535},{"$f":"(GT275*'Default-Data'!$C$59/general_dollar_index)/CustomRegion2!$E24","v":0},{"$f":"(GU275*'Default-Data'!$C$59/general_dollar_index)/CustomRegion2!$E24","v":0.55895180378952825},{"$f":"(GV275*'Default-Data'!$C$59/general_dollar_index)/CustomRegion2!$E24","v":0.22716348557977314},null,null,null,null,null,null,null,null,null,null,null,null,"FISH",{"$f":"'General Impact Estimates'!C21","v":0},null,null,61714.87597982696,17843.954051045701,{"$f":"HM275*CustomRegion3!D23","v":0},{"$f":"HP275*CustomRegion3!$D23","v":5631.4073572999741},{"$f":"HQ275*CustomRegion3!$D23","v":1628.2391000709126},{"$f":"HM275*CustomRegion3!E23","v":0},{"$f":"HP275*CustomRegion3!$E23","v":2394.1691601997572},{"$f":"HQ275*CustomRegion3!$E23","v":692.23900731810113},{"$f":"(HU275*'Default-Data'!$C$60/general_dollar_index)/CustomRegion3!$F23","v":0},{"$f":"(HV275*'Default-Data'!$C$60/general_dollar_index)/CustomRegion3!$F23","v":23.988226404966262},{"$f":"(HW275*'Default-Data'!$C$60/general_dollar_index)/CustomRegion3!$F23","v":6.9358449310700436}]
[null,null,null,null,null,null,null,null,null,null,null,null,null,null,null,null,null,null,null,null,null,null,null,null,null,null,null,null,null,275,"TTL_C29: Machinery and equipment, nec",{"$f":"'General Impact Estimates'!C22","v":0},null,null,1709.5775987581258,570.07643002788677,{"$f":"'Colombia-IO-Data'!$AN25*Calculations!AF276","v":0},{"$f":"AI276*'Colombia-IO-Data'!$AN25","v":601.317753359108},{"$f":"AJ276*'Colombia-IO-Data'!$AN25","v":200.51565860266587},{"$f":"AK276*'Colombia-IO-Data'!$AO25","v":0},{"$f":"AL276*'Colombia-IO-Data'!$AO25","v":307.37507438896091},{"$f":"AM276*'Colombia-IO-Data'!$AO25","v":102.4974152764425},{"$f":"(AN276*'Default-Data'!$F$19/general_dollar_index)/'Colombia-IO-Data'!$AP25","v":0},{"$f":"(AO276*'Default-Data'!$F$19/general_dollar_index)/'Colombia-IO-Data'!$AP25","v":7.4768449372452792E-2},{"$f":"(AP276*'Default-Data'!$F$19/general_dollar_index)/'Colombia-IO-Data'!$AP25","v":2.4932317040145761E-2},null,null,null,null,null,null,null,null,null,null,null,null,"DOM_C29: Machinery and equipment, nec",{"$f":"'General Impact Estimates'!C22","v":0},null,null,1360.9383748297964,121.86514956377255,{"$f":"BG276*'Mexico-IO-Data'!AQ25","v":0},{"$f":"BJ276*'Mexico-IO-Data'!$AQ25","v":482.39220708183552},{"$f":"BK276*'Mexico-IO-Data'!$AQ25","v":43.195782815499122},{"$f":"BG276*'Mexico-IO-Data'!AR25","v":0},{"$f":"BJ276*'Mexico-IO-Data'!$AR25","v":172.50832009587467},{"$f":"BK276*'Mexico-IO-Data'!$AR25","v":15.44724773603955},{"$f":"(BO276*'Default-Data'!$F$19/general_dollar_index)/'Mexico-IO-Data'!$AS25","v":0},{"$f":"(BP276*'Default-Data'!$F$19/general_dollar_index)/'Mexico-IO-Data'!$AS25","v":1.991640506720899E-2},{"$f":"(BQ276*'Default-Data'!$F$19/general_dollar_index)/'Mexico-IO-Data'!$AS25","v":1.7834133618222386E-3},null,null,null,null,null,null,null,null,null,null,null,null,"TTL_C29: Machinery and equipment, nec",{"$f":"'General Impact Estimates'!C22","v":0},null,null,1887.2677033143407,175.1714839466797,{"$f":"CH276*'Philippines-IO-Data'!$AN25","v":0},{"$f":"CK276*'Philippines-IO-Data'!$AN25","v":690.48973610860264},{"$f":"CL276*'Philippines-IO-Data'!$AN25","v":64.089536164732024},{"$f":"CH276*'Philippines-IO-Data'!AO25","v":0},{"$f":"CK276*'Philippines-IO-Data'!$AO25","v":205.42577291173873},{"$f":"CL276*'Philippines-IO-Data'!$AO25","v":19.067108189605545},{"$f":"(CP276*'Default-Data'!$F$19/general_dollar_index)/'Philippines-IO-Data'!$AP25","v":0},{"$f":"(CQ276*'Default-Data'!$F$19/general_dollar_index)/'Philippines-IO-Data'!$AP25","v":6.5846599735409905E-2},{"$f":"(CR276*'Default-Data'!$F$19/general_dollar_index)/'Philippines-IO-Data'!$AP25","v":6.1117172557123125E-3},null,null,null,null,null,null,null,null,null,null,null,null,"DOM_C29: Machinery and equipment, nec",{"$f":"'General Impact Estimates'!C22","v":0},null,null,1796.9956488295502,2395.5956574403467,{"$f":"DI276*'SouthAfrica-IO-Data'!AR25","v":0},{"$f":"DL276*'SouthAfrica-IO-Data'!$AR25","v":546.09284839853274},{"$f":"DM276*'SouthAfrica-IO-Data'!$AR25","v":728.00268438871581},{"$f":"DI276*'SouthAfrica-IO-Data'!AS25","v":0},{"$f":"DL276*'SouthAfrica-IO-Data'!$AS25","v":437.22389242413072},{"$f":"DM276*'SouthAfrica-IO-Data'!$AS25","v":582.86822158007499},{"$f":"(DQ276*'Default-Data'!$F$19/general_dollar_index)/'SouthAfrica-IO-Data'!$AT25","v":0},{"$f":"(DR276*'Default-Data'!$F$19/general_dollar_index)/'SouthAfrica-IO-Data'!$AT25","v":3.524359887239386E-2},{"$f":"(DS276*'Default-Data'!$F$19/general_dollar_index)/'SouthAfrica-IO-Data'!$AT25","v":4.6983648773033057E-2},null,null,null,null,null,null,null,null,null,null,null,null,"FOREST",{"$f":"'General Impact Estimates'!C22","v":0},null,null,654.28616818884404,663.95085886370828,{"$f":"EJ276*'Zambia-IO-Data'!BO23","v":0},{"$f":"EM276*'Zambia-IO-Data'!$BO23","v":209.72869116858195},{"$f":"EN276*'Zambia-IO-Data'!$BO23","v":212.82666729025266},{"$f":"EJ276*'Zambia-IO-Data'!BN23","v":0},{"$f":"EM276*'Zambia-IO-Data'!$BN23","v":119.02330183630896},{"$f":"EN276*'Zambia-IO-Data'!$BN23","v":120.78143681038794},{"$f":"(ER276*'Default-Data'!$F$19/general_dollar_index)/'Zambia-IO-Data'!$BP23","v":0},{"$f":"(ES276*'Default-Data'!$F$19/general_dollar_index)/'Zambia-IO-Data'!$BP23","v":1.1877359552672966},{"$f":"(ET276*'Default-Data'!$F$19/general_dollar_index)/'Zambia-IO-Data'!$BP23","v":1.2052804200125145},null,null,null,null,null,null,null,null,null,null,null,null,"TTL_C29: Machinery and equipment, nec",{"$f":"'General Impact Estimates'!C22","v":0},null,null,11017.649798770495,1357.2222821220184,{"$f":"FK276*CustomRegion1!C21","v":0},{"$f":"FN276*CustomRegion1!$C21","v":4030.9989349841226},{"$f":"FO276*CustomRegion1!$C21","v":496.56339361785706},{"$f":"FK276*CustomRegion1!D21","v":0},{"$f":"FN276*CustomRegion1!$D21","v":1199.251818705191},{"$f":"FO276*CustomRegion1!$D21","v":147.73126029143498},{"$f":"(FT276*'Default-Data'!$C$58/general_dollar_index)/CustomRegion1!$E21","v":0.38601105223498655},{"$f":"(FU276*'Default-Data'!$C$58/general_dollar_index)/CustomRegion1!$E21","v":4.7551230145030987E-2},{"$f":"(FV276*'Default-Data'!$C$58/general_dollar_index)/CustomRegion1!$E21","v":1.2424791034166521E-4},null,null,null,null,null,null,null,null,null,null,null,null,"C29 Machinery and equipment n.e.c ",{"$f":"'General Impact Estimates'!C22","v":0},null,null,10227.390706723867,2700.7923032570834,{"$f":"GL276*CustomRegion2!C25","v":0},{"$f":"GO276*CustomRegion2!$C25","v":3842.9196358058152},{"$f":"GP276*CustomRegion2!$C25","v":1014.8167868072514},{"$f":"GL276*CustomRegion2!D25","v":0},{"$f":"GO276*CustomRegion2!$D25","v":2751.9989186178723},{"$f":"GP276*CustomRegion2!$D25","v":726.73252749486858},{"$f":"(GT276*'Default-Data'!$C$59/general_dollar_index)/CustomRegion2!$E25","v":0},{"$f":"(GU276*'Default-Data'!$C$59/general_dollar_index)/CustomRegion2!$E25","v":0.31772337228287323},{"$f":"(GV276*'Default-Data'!$C$59/general_dollar_index)/CustomRegion2!$E25","v":8.3902616320536083E-2},null,null,null,null,null,null,null,null,null,null,null,null,"FOREST",{"$f":"'General Impact Estimates'!C22","v":0},null,null,654.28616818884404,663.95085886370828,{"$f":"HM276*CustomRegion3!D24","v":0},{"$f":"HP276*CustomRegion3!$D24","v":209.72869116858195},{"$f":"HQ276*CustomRegion3!$D24","v":212.82666729025266},{"$f":"HM276*CustomRegion3!E24","v":0},{"$f":"HP276*CustomRegion3!$E24","v":119.02330183630896},{"$f":"HQ276*CustomRegion3!$E24","v":120.78143681038794},{"$f":"(HU276*'Default-Data'!$C$60/general_dollar_index)/CustomRegion3!$F24","v":0},{"$f":"(HV276*'Default-Data'!$C$60/general_dollar_index)/CustomRegion3!$F24","v":1.1925464413207112},{"$f":"(HW276*'Default-Data'!$C$60/general_dollar_index)/CustomRegion3!$F24","v":1.2101619634441261}]
[null,null,null,null,null,null,null,null,null,null,null,null,null,null,null,null,null,null,null,null,null,null,null,null,null,null,null,null,null,276,"TTL_C30T33X: Computer, Electronic and optical equipment",{"$f":"'General Impact Estimates'!C23","v":0},null,null,1039.0378773128755,106.18808357223634,{"$f":"'Colombia-IO-Data'!$AN26*Calculations!AF277","v":0},{"$f":"AI277*'Colombia-IO-Data'!$AN26","v":248.22256600081383},{"$f":"AJ277*'Colombia-IO-Data'!$AN26","v":25.36796699960184},{"$f":"AK277*'Colombia-IO-Data'!$AO26","v":0},{"$f":"AL277*'Colombia-IO-Data'!$AO26","v":98.601111667759767},{"$f":"AM277*'Colombia-IO-Data'!$AO26","v":10.076882965199808},{"$f":"(AN277*'Default-Data'!$F$19/general_dollar_index)/'Colombia-IO-Data'!$AP26","v":0},{"$f":"(AO277*'Default-Data'!$F$19/general_dollar_index)/'Colombia-IO-Data'!$AP26","v":2.3984548000367163E-2},{"$f":"(AP277*'Default-Data'!$F$19/general_dollar_index)/'Colombia-IO-Data'!$AP26","v":2.4511841609585398E-3},null,null,null,null,null,null,null,null,null,null,null,null,"DOM_C30T33X: Computer, Electronic and optical equipment",{"$f":"'General Impact Estimates'!C23","v":0},null,null,433.00897728074096,690.2819896778733,{"$f":"BG277*'Mexico-IO-Data'!AQ26","v":0},{"$f":"BJ277*'Mexico-IO-Data'!$AQ26","v":58.693178582288702},{"$f":"BK277*'Mexico-IO-Data'!$AQ26","v":93.565829389336699},{"$f":"BG277*'Mexico-IO-Data'!AR26","v":0},{"$f":"BJ277*'Mexico-IO-Data'!$AR26","v":25.164143803155824},{"$f":"BK277*'Mexico-IO-Data'!$AR26","v":40.115462182947937},{"$f":"(BO277*'Default-Data'!$F$19/general_dollar_index)/'Mexico-IO-Data'!$AS26","v":0},{"$f":"(BP277*'Default-Data'!$F$19/general_dollar_index)/'Mexico-IO-Data'!$AS26","v":3.3271469928891797E-3},{"$f":"(BQ277*'Default-Data'!$F$19/general_dollar_index)/'Mexico-IO-Data'!$AS26","v":5.3039769767019235E-3},null,null,null,null,null,null,null,null,null,null,null,null,"TTL_C30T33X: Computer, Electronic and optical equipment",{"$f":"'General Impact Estimates'!C23","v":0},null,null,3380.9369447074127,4157.7956319337136,{"$f":"CH277*'Philippines-IO-Data'!$AN26","v":0},{"$f":"CK277*'Philippines-IO-Data'!$AN26","v":833.26321957971925},{"$f":"CL277*'Philippines-IO-Data'!$AN26","v":1024.7272372361272},{"$f":"CH277*'Philippines-IO-Data'!AO26","v":0},{"$f":"CK277*'Philippines-IO-Data'!$AO26","v":312.67390126997651},{"$f":"CL277*'Philippines-IO-Data'!$AO26","v":384.51890768181329},{"$f":"(CP277*'Default-Data'!$F$19/general_dollar_index)/'Philippines-IO-Data'!$AP26","v":0},{"$f":"(CQ277*'Default-Data'!$F$19/general_dollar_index)/'Philippines-IO-Data'!$AP26","v":0.1002236132925691},{"$f":"(CR277*'Default-Data'!$F$19/general_dollar_index)/'Philippines-IO-Data'!$AP26","v":0.12325260966986758},null,null,null,null,null,null,null,null,null,null,null,null,"DOM_C30T33X: Computer, Electronic and optical equipment",{"$f":"'General Impact Estimates'!C23","v":0},null,null,243.67833977369924,1296.7923930359975,{"$f":"DI277*'SouthAfrica-IO-Data'!AR26","v":0},{"$f":"DL277*'SouthAfrica-IO-Data'!$AR26","v":62.020950849328571},{"$f":"DM277*'SouthAfrica-IO-Data'!$AR26","v":330.059279560758},{"$f":"DI277*'SouthAfrica-IO-Data'!AS26","v":0},{"$f":"DL277*'SouthAfrica-IO-Data'!$AS26","v":43.356651258745764},{"$f":"DM277*'SouthAfrica-IO-Data'!$AS26","v":230.73275857046264},{"$f":"(DQ277*'Default-Data'!$F$19/general_dollar_index)/'SouthAfrica-IO-Data'!$AT26","v":0},{"$f":"(DR277*'Default-Data'!$F$19/general_dollar_index)/'SouthAfrica-IO-Data'!$AT26","v":3.494878600850159E-3},{"$f":"(DS277*'Default-Data'!$F$19/general_dollar_index)/'SouthAfrica-IO-Data'!$AT26","v":1.8598829868816835E-2},null,null,null,null,null,null,null,null,null,null,null,null,"MINING",{"$f":"'General Impact Estimates'!C23","v":0},null,null,4374.8779216198818,3680.5147580459743,{"$f":"EJ277*'Zambia-IO-Data'!BO24","v":0},{"$f":"EM277*'Zambia-IO-Data'!$BO24","v":1068.8361032173898},{"$f":"EN277*'Zambia-IO-Data'!$BO24","v":899.19470264152289},{"$f":"EJ277*'Zambia-IO-Data'!BN24","v":0},{"$f":"EM277*'Zambia-IO-Data'!$BN24","v":38.981498544108355},{"$f":"EN277*'Zambia-IO-Data'!$BN24","v":32.7945106704178},{"$f":"(ER277*'Default-Data'!$F$19/general_dollar_index)/'Zambia-IO-Data'!$BP24","v":0},{"$f":"(ES277*'Default-Data'!$F$19/general_dollar_index)/'Zambia-IO-Data'!$BP24","v":3.5407880690196014E-2},{"$f":"(ET277*'Default-Data'!$F$19/general_dollar_index)/'Zambia-IO-Data'!$BP24","v":2.9788083179963183E-2},null,null,null,null,null,null,null,null,null,null,null,null,"TTL_C30T33X: Computer, Electronic and optical equipment",{"$f":"'General Impact Estimates'!C23","v":0},null,null,14748.695710200469,14856.094036492132,{"$f":"FK277*CustomRegion1!C22","v":0},{"$f":"FN277*CustomRegion1!$C22","v":3634.952639776835},{"$f":"FO277*CustomRegion1!$C22","v":3661.4219518660047},{"$f":"FK277*CustomRegion1!D22","v":0},{"$f":"FN277*CustomRegion1!$D22","v":1363.9805479280333},{"$f":"FO277*CustomRegion1!$D22","v":1373.9128992911806},{"$f":"(FT277*'Default-Data'!$C$58/general_dollar_index)/CustomRegion1!$E22","v":0.43903336924034692},{"$f":"(FU277*'Default-Data'!$C$58/general_dollar_index)/CustomRegion1!$E22","v":0.44223036034851598},{"$f":"(FV277*'Default-Data'!$C$58/general_dollar_index)/CustomRegion1!$E22","v":1.4131455144234266E-4},null,null,null,null,null,null,null,null,null,null,null,null,"C30 Office, accounting and computing machinery",{"$f":"'General Impact Estimates'!C23","v":0},null,null,26240.651513959845,18306.616910711014,{"$f":"GL277*CustomRegion2!C26","v":0},{"$f":"GO277*CustomRegion2!$C26","v":4311.0991848379899},{"$f":"GP277*CustomRegion2!$C26","v":3007.6098224513153},{"$f":"GL277*CustomRegion2!D26","v":0},{"$f":"GO277*CustomRegion2!$D26","v":1814.9002523644108},{"$f":"GP277*CustomRegion2!$D26","v":1266.1531530005154},{"$f":"(GT277*'Default-Data'!$C$59/general_dollar_index)/CustomRegion2!$E26","v":0},{"$f":"(GU277*'Default-Data'!$C$59/general_dollar_index)/CustomRegion2!$E26","v":0.23996206524184566},{"$f":"(GV277*'Default-Data'!$C$59/general_dollar_index)/CustomRegion2!$E26","v":0.16740794713685073},null,null,null,null,null,null,null,null,null,null,null,null,"MINING",{"$f":"'General Impact Estimates'!C23","v":0},null,null,4374.8779216198818,3680.5147580459743,{"$f":"HM277*CustomRegion3!D25","v":0},{"$f":"HP277*CustomRegion3!$D25","v":1068.8361032173898},{"$f":"HQ277*CustomRegion3!$D25","v":899.19470264152289},{"$f":"HM277*CustomRegion3!E25","v":0},{"$f":"HP277*CustomRegion3!$E25","v":38.981498544108355},{"$f":"HQ277*CustomRegion3!$E25","v":32.7945106704178},{"$f":"(HU277*'Default-Data'!$C$60/general_dollar_index)/CustomRegion3!$F25","v":0},{"$f":"(HV277*'Default-Data'!$C$60/general_dollar_index)/CustomRegion3!$F25","v":3.555128724068881E-2},{"$f":"(HW277*'Default-Data'!$C$60/general_dollar_index)/CustomRegion3!$F25","v":2.9908728815097561E-2}]
[null,null,null,null,null,null,null,null,null,null,null,null,null,null,null,null,null,null,null,null,null,null,null,null,null,null,null,null,null,277,"TTL_C31: Electrical machinery and apparatus, nec",{"$f":"'General Impact Estimates'!C24","v":0},null,null,2007.4883172071316,395.72574230473242,{"$f":"'Colombia-IO-Data'!$AN27*Calculations!AF278","v":0},{"$f":"AI278*'Colombia-IO-Data'!$AN27","v":507.75852086983184},{"$f":"AJ278*'Colombia-IO-Data'!$AN27","v":100.09179922018694},{"$f":"AK278*'Colombia-IO-Data'!$AO27","v":0},{"$f":"AL278*'Colombia-IO-Data'!$AO27","v":262.81479403821322},{"$f":"AM278*'Colombia-IO-Data'!$AO27","v":51.807314925811525},{"$f":"(AN278*'Default-Data'!$F$19/general_dollar_index)/'Colombia-IO-Data'!$AP27","v":0},{"$f":"(AO278*'Default-Data'!$F$19/general_dollar_index)/'Colombia-IO-Data'!$AP27","v":6.3929239094747736E-2},{"$f":"(AP278*'Default-Data'!$F$19/general_dollar_index)/'Colombia-IO-Data'!$AP27","v":1.2602038766004676E-2},null,null,null,null,null,null,null,null,null,null,null,null,"DOM_C31: Electrical machinery and apparatus, nec",{"$f":"'General Impact Estimates'!C24","v":0},null,null,1004.1733313713025,334.43870516004699,{"$f":"BG278*'Mexico-IO-Data'!AQ27","v":0},{"$f":"BJ278*'Mexico-IO-Data'!$AQ27","v":269.41501791981256},{"$f":"BK278*'Mexico-IO-Data'!$AQ27","v":89.728343632396871},{"$f":"BG278*'Mexico-IO-Data'!AR27","v":0},{"$f":"BJ278*'Mexico-IO-Data'!$AR27","v":92.957586030566389},{"$f":"BK278*'Mexico-IO-Data'!$AR27","v":30.959410826427323},{"$f":"(BO278*'Default-Data'!$F$19/general_dollar_index)/'Mexico-IO-Data'!$AS27","v":0},{"$f":"(BP278*'Default-Data'!$F$19/general_dollar_index)/'Mexico-IO-Data'!$AS27","v":1.3796177797991215E-2},{"$f":"(BQ278*'Default-Data'!$F$19/general_dollar_index)/'Mexico-IO-Data'!$AS27","v":4.5948002150356946E-3},null,null,null,null,null,null,null,null,null,null,null,null,"TTL_C31: Electrical machinery and apparatus, nec",{"$f":"'General Impact Estimates'!C24","v":0},null,null,496.99669090827535,2362.0594267326906,{"$f":"CH278*'Philippines-IO-Data'!$AN27","v":0},{"$f":"CK278*'Philippines-IO-Data'!$AN27","v":129.136677470807},{"$f":"CL278*'Philippines-IO-Data'!$AN27","v":613.74353579580304},{"$f":"CH278*'Philippines-IO-Data'!AO27","v":0},{"$f":"CK278*'Philippines-IO-Data'!$AO27","v":43.184540334482719},{"$f":"CL278*'Philippines-IO-Data'!$AO27","v":205.24170975820186},{"$f":"(CP278*'Default-Data'!$F$19/general_dollar_index)/'Philippines-IO-Data'!$AP27","v":0},{"$f":"(CQ278*'Default-Data'!$F$19/general_dollar_index)/'Philippines-IO-Data'!$AP27","v":1.3842251154065675E-2},{"$f":"(CR278*'Default-Data'!$F$19/general_dollar_index)/'Philippines-IO-Data'!$AP27","v":6.5787600649632155E-2},null,null,null,null,null,null,null,null,null,null,null,null,"DOM_C31: Electrical machinery and apparatus, nec",{"$f":"'General Impact Estimates'!C24","v":0},null,null,1411.5850556311084,3440.6335273981499,{"$f":"DI278*'SouthAfrica-IO-Data'!AR27","v":0},{"$f":"DL278*'SouthAfrica-IO-Data'!$AR27","v":265.52592950378005},{"$f":"DM278*'SouthAfrica-IO-Data'!$AR27","v":647.19969356420404},{"$f":"DI278*'SouthAfrica-IO-Data'!AS27","v":0},{"$f":"DL278*'SouthAfrica-IO-Data'!$AS27","v":270.90104814356312},{"$f":"DM278*'SouthAfrica-IO-Data'!$AS27","v":660.30114524931832},{"$f":"(DQ278*'Default-Data'!$F$19/general_dollar_index)/'SouthAfrica-IO-Data'!$AT27","v":0},{"$f":"(DR278*'Default-Data'!$F$19/general_dollar_index)/'SouthAfrica-IO-Data'!$AT27","v":2.1836702065726046E-2},{"$f":"(DS278*'Default-Data'!$F$19/general_dollar_index)/'SouthAfrica-IO-Data'!$AT27","v":5.3225336266790178E-2},null,null,null,null,null,null,null,null,null,null,null,null,"FOODMFG",{"$f":"'General Impact Estimates'!C24","v":0},null,null,423755.79039198818,96645.982323328441,{"$f":"EJ278*'Zambia-IO-Data'!BO25","v":0},{"$f":"EM278*'Zambia-IO-Data'!$BO25","v":47516.601694304605},{"$f":"EN278*'Zambia-IO-Data'!$BO25","v":10837.11125968186},{"$f":"EJ278*'Zambia-IO-Data'!BN25","v":0},{"$f":"EM278*'Zambia-IO-Data'!$BN25","v":21999.683984334766},{"$f":"EN278*'Zambia-IO-Data'!$BN25","v":5017.467885222386},{"$f":"(ER278*'Default-Data'!$F$19/general_dollar_index)/'Zambia-IO-Data'!$BP25","v":0},{"$f":"(ES278*'Default-Data'!$F$19/general_dollar_index)/'Zambia-IO-Data'!$BP25","v":85.177571645554835},{"$f":"(ET278*'Default-Data'!$F$19/general_dollar_index)/'Zambia-IO-Data'!$BP25","v":19.426448606130894},null,null,null,null,null,null,null,null,null,null,null,null,"TTL_C31: Electrical machinery and apparatus, nec",{"$f":"'General Impact Estimates'!C24","v":0},null,null,2839.7640254878825,6431.6322495879267,{"$f":"FK278*CustomRegion1!C23","v":0},{"$f":"FN278*CustomRegion1!$C23","v":737.86747026915293},{"$f":"FO278*CustomRegion1!$C23","v":1671.1572423309419},{"$f":"FK278*CustomRegion1!D23","v":0},{"$f":"FN278*CustomRegion1!$D23","v":246.74994087984285},{"$f":"FO278*CustomRegion1!$D23","v":558.85096898995266},{"$f":"(FT278*'Default-Data'!$C$58/general_dollar_index)/CustomRegion1!$E23","v":7.9423022614872094E-2},{"$f":"(FU278*'Default-Data'!$C$58/general_dollar_index)/CustomRegion1!$E23","v":0.17988102850264182},{"$f":"(FV278*'Default-Data'!$C$58/general_dollar_index)/CustomRegion1!$E23","v":2.5564409453513227E-5},null,null,null,null,null,null,null,null,null,null,null,null,"C31 Electrical machinery and apparatus n.e.c",{"$f":"'General Impact Estimates'!C24","v":0},null,null,16699.410955796353,8756.3525074736681,{"$f":"GL278*CustomRegion2!C27","v":0},{"$f":"GO278*CustomRegion2!$C27","v":4336.2571397772053},{"$f":"GP278*CustomRegion2!$C27","v":2273.7206826902743},{"$f":"GL278*CustomRegion2!D27","v":0},{"$f":"GO278*CustomRegion2!$D27","v":2028.4547879418842},{"$f":"GP278*CustomRegion2!$D27","v":1063.6222568393503},{"$f":"(GT278*'Default-Data'!$C$59/general_dollar_index)/CustomRegion2!$E27","v":0},{"$f":"(GU278*'Default-Data'!$C$59/general_dollar_index)/CustomRegion2!$E27","v":0.30105044789384672},{"$f":"(GV278*'Default-Data'!$C$59/general_dollar_index)/CustomRegion2!$E27","v":0.15785609751560525},null,null,null,null,null,null,null,null,null,null,null,null,"FOODMFG",{"$f":"'General Impact Estimates'!C24","v":0},null,null,423755.79039198818,96645.982323328441,{"$f":"HM278*CustomRegion3!D26","v":0},{"$f":"HP278*CustomRegion3!$D26","v":47516.601694304605},{"$f":"HQ278*CustomRegion3!$D26","v":10837.11125968186},{"$f":"HM278*CustomRegion3!E26","v":0},{"$f":"HP278*CustomRegion3!$E26","v":21999.683984334766},{"$f":"HQ278*CustomRegion3!$E26","v":5017.467885222386},{"$f":"(HU278*'Default-Data'!$C$60/general_dollar_index)/CustomRegion3!$F26","v":0},{"$f":"(HV278*'Default-Data'!$C$60/general_dollar_index)/CustomRegion3!$F26","v":85.522551957590963},{"$f":"(HW278*'Default-Data'!$C$60/general_dollar_index)/CustomRegion3!$F26","v":19.505128265252715}]
[null,null,null,null,null,null,null,null,null,null,null,null,null,null,null,null,null,null,null,null,null,null,null,null,null,null,null,null,null,278,"TTL_C34: Motor vehicles, trailers and semi-trailers",{"$f":"'General Impact Estimates'!C25","v":0},null,null,871.69962844638076,1223.818857332084,{"$f":"'Colombia-IO-Data'!$AN28*Calculations!AF279","v":0},{"$f":"AI279*'Colombia-IO-Data'!$AN28","v":191.86662746677862},{"$f":"AJ279*'Colombia-IO-Data'!$AN28","v":269.37030729845844},{"$f":"AK279*'Colombia-IO-Data'!$AO28","v":0},{"$f":"AL279*'Colombia-IO-Data'!$AO28","v":49.099625546904072},{"$f":"AM279*'Colombia-IO-Data'!$AO28","v":68.933203217421678},{"$f":"(AN279*'Default-Data'!$F$19/general_dollar_index)/'Colombia-IO-Data'!$AP28","v":0},{"$f":"(AO279*'Default-Data'!$F$19/general_dollar_index)/'Colombia-IO-Data'!$AP28","v":1.1943398059221197E-2},{"$f":"(AP279*'Default-Data'!$F$19/general_dollar_index)/'Colombia-IO-Data'!$AP28","v":1.6767881146799633E-2},null,null,null,null,null,null,null,null,null,null,null,null,"DOM_C34: Motor vehicles, trailers and semi-trailers",{"$f":"'General Impact Estimates'!C25","v":0},null,null,949.83108418105462,2247.1908906935023,{"$f":"BG279*'Mexico-IO-Data'!AQ28","v":0},{"$f":"BJ279*'Mexico-IO-Data'!$AQ28","v":321.57149241267422},{"$f":"BK279*'Mexico-IO-Data'!$AQ28","v":760.80109452253896},{"$f":"BG279*'Mexico-IO-Data'!AR28","v":0},{"$f":"BJ279*'Mexico-IO-Data'!$AR28","v":81.629831445796853},{"$f":"BK279*'Mexico-IO-Data'!$AR28","v":193.12677452749503},{"$f":"(BO279*'Default-Data'!$F$19/general_dollar_index)/'Mexico-IO-Data'!$AS28","v":0},{"$f":"(BP279*'Default-Data'!$F$19/general_dollar_index)/'Mexico-IO-Data'!$AS28","v":1.1361925767306791E-2},{"$f":"(BQ279*'Default-Data'!$F$19/general_dollar_index)/'Mexico-IO-Data'!$AS28","v":2.6881007065631755E-2},null,null,null,null,null,null,null,null,null,null,null,null,"TTL_C34: Motor vehicles, trailers and semi-trailers",{"$f":"'General Impact Estimates'!C25","v":0},null,null,422.00309110669747,1547.9066539121497,{"$f":"CH279*'Philippines-IO-Data'!$AN28","v":0},{"$f":"CK279*'Philippines-IO-Data'!$AN28","v":68.943860055865812},{"$f":"CL279*'Philippines-IO-Data'!$AN28","v":252.88596689421047},{"$f":"CH279*'Philippines-IO-Data'!AO28","v":0},{"$f":"CK279*'Philippines-IO-Data'!$AO28","v":17.10788287342433},{"$f":"CL279*'Philippines-IO-Data'!$AO28","v":62.75168663972601},{"$f":"(CP279*'Default-Data'!$F$19/general_dollar_index)/'Philippines-IO-Data'!$AP28","v":0},{"$f":"(CQ279*'Default-Data'!$F$19/general_dollar_index)/'Philippines-IO-Data'!$AP28","v":5.4837126808360394E-3},{"$f":"(CR279*'Default-Data'!$F$19/general_dollar_index)/'Philippines-IO-Data'!$AP28","v":2.0114249221606758E-2},null,null,null,null,null,null,null,null,null,null,null,null,"DOM_C34: Motor vehicles, trailers and semi-trailers",{"$f":"'General Impact Estimates'!C25","v":0},null,null,1285.6704469231129,4790.1524294211367,{"$f":"DI279*'SouthAfrica-IO-Data'!AR28","v":0},{"$f":"DL279*'SouthAfrica-IO-Data'!$AR28","v":310.84952564329035},{"$f":"DM279*'SouthAfrica-IO-Data'!$AR28","v":1158.1635200592452},{"$f":"DI279*'SouthAfrica-IO-Data'!AS28","v":0},{"$f":"DL279*'SouthAfrica-IO-Data'!$AS28","v":228.20724585920951},{"$f":"DM279*'SouthAfrica-IO-Data'!$AS28","v":850.25481901690841},{"$f":"(DQ279*'Default-Data'!$F$19/general_dollar_index)/'SouthAfrica-IO-Data'!$AT28","v":0},{"$f":"(DR279*'Default-Data'!$F$19/general_dollar_index)/'SouthAfrica-IO-Data'!$AT28","v":1.8395254175711313E-2},{"$f":"(DS279*'Default-Data'!$F$19/general_dollar_index)/'SouthAfrica-IO-Data'!$AT28","v":6.8537059158887609E-2},null,null,null,null,null,null,null,null,null,null,null,null,"TEXTILES",{"$f":"'General Impact Estimates'!C25","v":0},null,null,10068.270736186843,31809.918785172245,{"$f":"EJ279*'Zambia-IO-Data'!BO26","v":0},{"$f":"EM279*'Zambia-IO-Data'!$BO26","v":1021.7789744128336},{"$f":"EN279*'Zambia-IO-Data'!$BO26","v":3228.2312468663886},{"$f":"EJ279*'Zambia-IO-Data'!BN26","v":0},{"$f":"EM279*'Zambia-IO-Data'!$BN26","v":280.77424846614207},{"$f":"EN279*'Zambia-IO-Data'!$BN26","v":887.0844134708226},{"$f":"(ER279*'Default-Data'!$F$19/general_dollar_index)/'Zambia-IO-Data'!$BP26","v":0},{"$f":"(ES279*'Default-Data'!$F$19/general_dollar_index)/'Zambia-IO-Data'!$BP26","v":1.0870914637674416},{"$f":"(ET279*'Default-Data'!$F$19/general_dollar_index)/'Zambia-IO-Data'!$BP26","v":3.4345809802481471},null,null,null,null,null,null,null,null,null,null,null,null,"TTL_C34: Motor vehicles, trailers and semi-trailers",{"$f":"'General Impact Estimates'!C25","v":0},null,null,1417.1303964823351,4533.9696967290056,{"$f":"FK279*CustomRegion1!C24","v":0},{"$f":"FN279*CustomRegion1!$C24","v":231.5206731774604},{"$f":"FO279*CustomRegion1!$C24","v":740.72768388747932},{"$f":"FK279*CustomRegion1!D24","v":0},{"$f":"FN279*CustomRegion1!$D24","v":57.450055106964591},{"$f":"FO279*CustomRegion1!$D24","v":183.8058160187349},{"$f":"(FT279*'Default-Data'!$C$58/general_dollar_index)/CustomRegion1!$E24","v":1.8491826217733612E-2},{"$f":"(FU279*'Default-Data'!$C$58/general_dollar_index)/CustomRegion1!$E24","v":5.9162784113937578E-2},{"$f":"(FV279*'Default-Data'!$C$58/general_dollar_index)/CustomRegion1!$E24","v":5.9520854458746434E-6},null,null,null,null,null,null,null,null,null,null,null,null,"C32 Radio, television and communication equipment",{"$f":"'General Impact Estimates'!C25","v":0},null,null,0,0,{"$f":"GL279*CustomRegion2!C28","v":0},{"$f":"GO279*CustomRegion2!$C28","v":0},{"$f":"GP279*CustomRegion2!$C28","v":0},{"$f":"GL279*CustomRegion2!D28","v":0},{"$f":"GO279*CustomRegion2!$D28","v":0},{"$f":"GP279*CustomRegion2!$D28","v":0},{"$f":"(GT279*'Default-Data'!$C$59/general_dollar_index)/CustomRegion2!$E28","v":0},{"$f":"(GU279*'Default-Data'!$C$59/general_dollar_index)/CustomRegion2!$E28","v":0},{"$f":"(GV279*'Default-Data'!$C$59/general_dollar_index)/CustomRegion2!$E28","v":0},null,null,null,null,null,null,null,null,null,null,null,null,"TEXTILES",{"$f":"'General Impact Estimates'!C25","v":0},null,null,10068.270736186843,31809.918785172245,{"$f":"HM279*CustomRegion3!D27","v":0},{"$f":"HP279*CustomRegion3!$D27","v":1021.7789744128336},{"$f":"HQ279*CustomRegion3!$D27","v":3228.2312468663886},{"$f":"HM279*CustomRegion3!E27","v":0},{"$f":"HP279*CustomRegion3!$E27","v":280.77424846614207},{"$f":"HQ279*CustomRegion3!$E27","v":887.0844134708226},{"$f":"(HU279*'Default-Data'!$C$60/general_dollar_index)/CustomRegion3!$F27","v":0},{"$f":"(HV279*'Default-Data'!$C$60/general_dollar_index)/CustomRegion3!$F27","v":1.0914943264593118},{"$f":"(HW279*'Default-Data'!$C$60/general_dollar_index)/CustomRegion3!$F27","v":3.4484914826889757}]
[null,null,null,null,null,null,null,null,null,null,null,null,null,null,null,null,null,null,null,null,null,null,null,null,null,null,null,null,null,279,"TTL_C35: Other transport equipment",{"$f":"'General Impact Estimates'!C26","v":0},null,null,76.928262564800193,106.85621389565476,{"$f":"'Colombia-IO-Data'!$AN29*Calculations!AF280","v":0},{"$f":"AI280*'Colombia-IO-Data'!$AN29","v":8.5816599177036714},{"$f":"AJ280*'Colombia-IO-Data'!$AN29","v":11.920244357182465},{"$f":"AK280*'Colombia-IO-Data'!$AO29","v":0},{"$f":"AL280*'Colombia-IO-Data'!$AO29","v":3.2359678802431588},{"$f":"AM280*'Colombia-IO-Data'!$AO29","v":4.4948795727638133},{"$f":"(AN280*'Default-Data'!$F$19/general_dollar_index)/'Colombia-IO-Data'!$AP29","v":0},{"$f":"(AO280*'Default-Data'!$F$19/general_dollar_index)/'Colombia-IO-Data'!$AP29","v":7.8714352849143499E-4},{"$f":"(AP280*'Default-Data'!$F$19/general_dollar_index)/'Colombia-IO-Data'!$AP29","v":1.0933715963779959E-3},null,null,null,null,null,null,null,null,null,null,null,null,"DOM_C35: Other transport equipment",{"$f":"'General Impact Estimates'!C26","v":0},null,null,191.2425885859264,88.127972338669508,{"$f":"BG280*'Mexico-IO-Data'!AQ29","v":0},{"$f":"BJ280*'Mexico-IO-Data'!$AQ29","v":67.383499731386905},{"$f":"BK280*'Mexico-IO-Data'!$AQ29","v":31.051510253649727},{"$f":"BG280*'Mexico-IO-Data'!AR29","v":0},{"$f":"BJ280*'Mexico-IO-Data'!$AR29","v":17.183500737387313},{"$f":"BK280*'Mexico-IO-Data'!$AR29","v":7.9184615145782304},{"$f":"(BO280*'Default-Data'!$F$19/general_dollar_index)/'Mexico-IO-Data'!$AS29","v":0},{"$f":"(BP280*'Default-Data'!$F$19/general_dollar_index)/'Mexico-IO-Data'!$AS29","v":2.391744002684805E-3},{"$f":"(BQ280*'Default-Data'!$F$19/general_dollar_index)/'Mexico-IO-Data'!$AS29","v":1.1021580018777078E-3},null,null,null,null,null,null,null,null,null,null,null,null,"TTL_C35: Other transport equipment",{"$f":"'General Impact Estimates'!C26","v":0},null,null,3.9792152225422184,15.545458255623647,{"$f":"CH280*'Philippines-IO-Data'!$AN29","v":0},{"$f":"CK280*'Philippines-IO-Data'!$AN29","v":0.83273905803749926},{"$f":"CL280*'Philippines-IO-Data'!$AN29","v":3.2532319918797645},{"$f":"CH280*'Philippines-IO-Data'!AO29","v":0},{"$f":"CK280*'Philippines-IO-Data'!$AO29","v":0.18699269939098362},{"$f":"CL280*'Philippines-IO-Data'!$AO29","v":0.7305177126437965},{"$f":"(CP280*'Default-Data'!$F$19/general_dollar_index)/'Philippines-IO-Data'!$AP29","v":0},{"$f":"(CQ280*'Default-Data'!$F$19/general_dollar_index)/'Philippines-IO-Data'!$AP29","v":5.9938114169988494E-5},{"$f":"(CR280*'Default-Data'!$F$19/general_dollar_index)/'Philippines-IO-Data'!$AP29","v":2.3415809390553132E-4},null,null,null,null,null,null,null,null,null,null,null,null,"DOM_C35: Other transport equipment",{"$f":"'General Impact Estimates'!C26","v":0},null,null,874.7274327680783,2663.6501015960453,{"$f":"DI280*'SouthAfrica-IO-Data'!AR29","v":0},{"$f":"DL280*'SouthAfrica-IO-Data'!$AR29","v":111.61432928883721},{"$f":"DM280*'SouthAfrica-IO-Data'!$AR29","v":339.8790393585507},{"$f":"DI280*'SouthAfrica-IO-Data'!AS29","v":0},{"$f":"DL280*'SouthAfrica-IO-Data'!$AS29","v":113.94342525476289},{"$f":"DM280*'SouthAfrica-IO-Data'!$AS29","v":346.97141633663699},{"$f":"(DQ280*'Default-Data'!$F$19/general_dollar_index)/'SouthAfrica-IO-Data'!$AT29","v":0},{"$f":"(DR280*'Default-Data'!$F$19/general_dollar_index)/'SouthAfrica-IO-Data'!$AT29","v":9.1847139266806894E-3},{"$f":"(DS280*'Default-Data'!$F$19/general_dollar_index)/'SouthAfrica-IO-Data'!$AT29","v":2.7968557138438516E-2},null,null,null,null,null,null,null,null,null,null,null,null,"FURNIMFG",{"$f":"'General Impact Estimates'!C26","v":0},null,null,12799.0370228843,13377.829316924608,{"$f":"EJ280*'Zambia-IO-Data'!BO27","v":0},{"$f":"EM280*'Zambia-IO-Data'!$BO27","v":2351.6503350316634},{"$f":"EN280*'Zambia-IO-Data'!$BO27","v":2457.9956084893461},{"$f":"EJ280*'Zambia-IO-Data'!BN27","v":0},{"$f":"EM280*'Zambia-IO-Data'!$BN27","v":728.93002640259726},{"$f":"EN280*'Zambia-IO-Data'!$BN27","v":761.89337211540976},{"$f":"(ER280*'Default-Data'!$F$19/general_dollar_index)/'Zambia-IO-Data'!$BP27","v":0},{"$f":"(ES280*'Default-Data'!$F$19/general_dollar_index)/'Zambia-IO-Data'!$BP27","v":2.8222446100914236},{"$f":"(ET280*'Default-Data'!$F$19/general_dollar_index)/'Zambia-IO-Data'!$BP27","v":2.9498708861383691},null,null,null,null,null,null,null,null,null,null,null,null,"TTL_C35: Other transport equipment",{"$f":"'General Impact Estimates'!C26","v":0},null,null,99.794291933928164,67.269729810365035,{"$f":"FK280*CustomRegion1!C25","v":0},{"$f":"FN280*CustomRegion1!$C25","v":20.884169368825049},{"$f":"FO280*CustomRegion1!$C25","v":14.077683237483173},{"$f":"FK280*CustomRegion1!D25","v":0},{"$f":"FN280*CustomRegion1!$D25","v":4.6895689197266348},{"$f":"FO280*CustomRegion1!$D25","v":3.1611631090680015},{"$f":"(FT280*'Default-Data'!$C$58/general_dollar_index)/CustomRegion1!$E25","v":1.5094623205880421E-3},{"$f":"(FU280*'Default-Data'!$C$58/general_dollar_index)/CustomRegion1!$E25","v":1.0175043130935043E-3},{"$f":"(FV280*'Default-Data'!$C$58/general_dollar_index)/CustomRegion1!$E25","v":4.8586054204057943E-7},null,null,null,null,null,null,null,null,null,null,null,null,"C33 Medical, precision and optical instruments",{"$f":"'General Impact Estimates'!C26","v":0},null,null,0,0,{"$f":"GL280*CustomRegion2!C29","v":0},{"$f":"GO280*CustomRegion2!$C29","v":0},{"$f":"GP280*CustomRegion2!$C29","v":0},{"$f":"GL280*CustomRegion2!D29","v":0},{"$f":"GO280*CustomRegion2!$D29","v":0},{"$f":"GP280*CustomRegion2!$D29","v":0},{"$f":"(GT280*'Default-Data'!$C$59/general_dollar_index)/CustomRegion2!$E29","v":0},{"$f":"(GU280*'Default-Data'!$C$59/general_dollar_index)/CustomRegion2!$E29","v":0},{"$f":"(GV280*'Default-Data'!$C$59/general_dollar_index)/CustomRegion2!$E29","v":0},null,null,null,null,null,null,null,null,null,null,null,null,"FURNIMFG",{"$f":"'General Impact Estimates'!C26","v":0},null,null,12799.0370228843,13377.829316924608,{"$f":"HM280*CustomRegion3!D28","v":0},{"$f":"HP280*CustomRegion3!$D28","v":2351.6503350316634},{"$f":"HQ280*CustomRegion3!$D28","v":2457.9956084893461},{"$f":"HM280*CustomRegion3!E28","v":0},{"$f":"HP280*CustomRegion3!$E28","v":728.93002640259726},{"$f":"HQ280*CustomRegion3!$E28","v":761.89337211540976},{"$f":"(HU280*'Default-Data'!$C$60/general_dollar_index)/CustomRegion3!$F28","v":0},{"$f":"(HV280*'Default-Data'!$C$60/general_dollar_index)/CustomRegion3!$F28","v":2.8336750700989368},{"$f":"(HW280*'Default-Data'!$C$60/general_dollar_index)/CustomRegion3!$F28","v":2.9618182492658485}]
[null,null,null,null,null,null,null,null,null,null,null,null,null,null,null,null,null,null,null,null,null,null,null,null,null,null,null,null,null,280,"TTL_C36T37: Manufacturing nec; recycling",{"$f":"'General Impact Estimates'!C27","v":0},null,null,28665.643876779668,2001.962133287303,{"$f":"'Colombia-IO-Data'!$AN30*Calculations!AF281","v":0},{"$f":"AI281*'Colombia-IO-Data'!$AN30","v":10686.877008655554},{"$f":"AJ281*'Colombia-IO-Data'!$AN30","v":746.35417876511394},{"$f":"AK281*'Colombia-IO-Data'!$AO30","v":0},{"$f":"AL281*'Colombia-IO-Data'!$AO30","v":2460.0058982042451},{"$f":"AM281*'Colombia-IO-Data'!$AO30","v":171.80282700217447},{"$f":"(AN281*'Default-Data'!$F$19/general_dollar_index)/'Colombia-IO-Data'!$AP30","v":0},{"$f":"(AO281*'Default-Data'!$F$19/general_dollar_index)/'Colombia-IO-Data'!$AP30","v":0.59839213319902518},{"$f":"(AP281*'Default-Data'!$F$19/general_dollar_index)/'Colombia-IO-Data'!$AP30","v":4.1790737255752178E-2},null,null,null,null,null,null,null,null,null,null,null,null,"DOM_C36T37: Manufacturing nec; recycling",{"$f":"'General Impact Estimates'!C27","v":0},null,null,399.00507480896061,1161.5885747780715,{"$f":"BG281*'Mexico-IO-Data'!AQ30","v":0},{"$f":"BJ281*'Mexico-IO-Data'!$AQ30","v":150.01708615226735},{"$f":"BK281*'Mexico-IO-Data'!$AQ30","v":436.73162146973777},{"$f":"BG281*'Mexico-IO-Data'!AR30","v":0},{"$f":"BJ281*'Mexico-IO-Data'!$AR30","v":61.712894069767685},{"$f":"BK281*'Mexico-IO-Data'!$AR30","v":179.65935070438277},{"$f":"(BO281*'Default-Data'!$F$19/general_dollar_index)/'Mexico-IO-Data'!$AS30","v":0},{"$f":"(BP281*'Default-Data'!$F$19/general_dollar_index)/'Mexico-IO-Data'!$AS30","v":9.9792115330598428E-3},{"$f":"(BQ281*'Default-Data'!$F$19/general_dollar_index)/'Mexico-IO-Data'!$AS30","v":2.9051605691095217E-2},null,null,null,null,null,null,null,null,null,null,null,null,"TTL_C36T37: Manufacturing nec; recycling",{"$f":"'General Impact Estimates'!C27","v":0},null,null,400.31930352196258,696.38781247915313,{"$f":"CH281*'Philippines-IO-Data'!$AN30","v":0},{"$f":"CK281*'Philippines-IO-Data'!$AN30","v":162.27954631358006},{"$f":"CL281*'Philippines-IO-Data'!$AN30","v":282.29839848635584},{"$f":"CH281*'Philippines-IO-Data'!AO30","v":0},{"$f":"CK281*'Philippines-IO-Data'!$AO30","v":54.782267226877345},{"$f":"CL281*'Philippines-IO-Data'!$AO30","v":95.298185476285738},{"$f":"(CP281*'Default-Data'!$F$19/general_dollar_index)/'Philippines-IO-Data'!$AP30","v":0},{"$f":"(CQ281*'Default-Data'!$F$19/general_dollar_index)/'Philippines-IO-Data'!$AP30","v":1.7559753927450489E-2},{"$f":"(CR281*'Default-Data'!$F$19/general_dollar_index)/'Philippines-IO-Data'!$AP30","v":3.0546612460666867E-2},null,null,null,null,null,null,null,null,null,null,null,null,"DOM_C36T37: Manufacturing nec; recycling",{"$f":"'General Impact Estimates'!C27","v":0},null,null,48329.834603884476,59053.792471862689,{"$f":"DI281*'SouthAfrica-IO-Data'!AR30","v":0},{"$f":"DL281*'SouthAfrica-IO-Data'!$AR30","v":12931.956309434512},{"$f":"DM281*'SouthAfrica-IO-Data'!$AR30","v":15801.441705971836},{"$f":"DI281*'SouthAfrica-IO-Data'!AS30","v":0},{"$f":"DL281*'SouthAfrica-IO-Data'!$AS30","v":5018.7159816737876},{"$f":"DM281*'SouthAfrica-IO-Data'!$AS30","v":6132.3241531052872},{"$f":"(DQ281*'Default-Data'!$F$19/general_dollar_index)/'SouthAfrica-IO-Data'!$AT30","v":0},{"$f":"(DR281*'Default-Data'!$F$19/general_dollar_index)/'SouthAfrica-IO-Data'!$AT30","v":0.40454699749345457},{"$f":"(DS281*'Default-Data'!$F$19/general_dollar_index)/'SouthAfrica-IO-Data'!$AT30","v":0.49431235655777472},null,null,null,null,null,null,null,null,null,null,null,null,"INDCHEMMFG",{"$f":"'General Impact Estimates'!C27","v":0},null,null,5589.155681277598,9193.8968727772644,{"$f":"EJ281*'Zambia-IO-Data'!BO28","v":0},{"$f":"EM281*'Zambia-IO-Data'!$BO28","v":1041.6362655643238},{"$f":"EN281*'Zambia-IO-Data'!$BO28","v":1713.4424143208216},{"$f":"EJ281*'Zambia-IO-Data'!BN28","v":0},{"$f":"EM281*'Zambia-IO-Data'!$BN28","v":201.19053420245686},{"$f":"EN281*'Zambia-IO-Data'!$BN28","v":330.9489176392982},{"$f":"(ER281*'Default-Data'!$F$19/general_dollar_index)/'Zambia-IO-Data'!$BP28","v":0},{"$f":"(ES281*'Default-Data'!$F$19/general_dollar_index)/'Zambia-IO-Data'!$BP28","v":0.77896215025815119},{"$f":"(ET281*'Default-Data'!$F$19/general_dollar_index)/'Zambia-IO-Data'!$BP28","v":1.2813559123536904},null,null,null,null,null,null,null,null,null,null,null,null,"TTL_C36T37: Manufacturing nec; recycling",{"$f":"'General Impact Estimates'!C27","v":0},null,null,1118.971065282941,1701.7904181420738,{"$f":"FK281*CustomRegion1!C26","v":0},{"$f":"FN281*CustomRegion1!$C26","v":453.6031992825865},{"$f":"FO281*CustomRegion1!$C26","v":689.86375262751289},{"$f":"FK281*CustomRegion1!D26","v":0},{"$f":"FN281*CustomRegion1!$D26","v":153.12719466227443},{"$f":"FO281*CustomRegion1!$D26","v":232.88394196979735},{"$f":"(FT281*'Default-Data'!$C$58/general_dollar_index)/CustomRegion1!$E26","v":4.9288054948455111E-2},{"$f":"(FU281*'Default-Data'!$C$58/general_dollar_index)/CustomRegion1!$E26","v":7.4959882558653754E-2},{"$f":"(FV281*'Default-Data'!$C$58/general_dollar_index)/CustomRegion1!$E26","v":1.5864669668636163E-5},null,null,null,null,null,null,null,null,null,null,null,null,"C34 Motor vehicles, trailers and semi-trailers",{"$f":"'General Impact Estimates'!C27","v":0},null,null,34549.500325478097,25319.36960752125,{"$f":"GL281*CustomRegion2!C30","v":0},{"$f":"GO281*CustomRegion2!$C30","v":10540.899649230256},{"$f":"GP281*CustomRegion2!$C30","v":7724.8276154615769},{"$f":"GL281*CustomRegion2!D30","v":0},{"$f":"GO281*CustomRegion2!$D30","v":3666.018460196447},{"$f":"GP281*CustomRegion2!$D30","v":2686.6170424253542},{"$f":"(GT281*'Default-Data'!$C$59/general_dollar_index)/CustomRegion2!$E30","v":0},{"$f":"(GU281*'Default-Data'!$C$59/general_dollar_index)/CustomRegion2!$E30","v":0.51026724995734507},{"$f":"(GV281*'Default-Data'!$C$59/general_dollar_index)/CustomRegion2!$E30","v":0.37394593202715642},null,null,null,null,null,null,null,null,null,null,null,null,"INDCHEMMFG",{"$f":"'General Impact Estimates'!C27","v":0},null,null,5589.155681277598,9193.8968727772644,{"$f":"HM281*CustomRegion3!D29","v":0},{"$f":"HP281*CustomRegion3!$D29","v":1041.6362655643238},{"$f":"HQ281*CustomRegion3!$D29","v":1713.4424143208216},{"$f":"HM281*CustomRegion3!E29","v":0},{"$f":"HP281*CustomRegion3!$E29","v":201.19053420245686},{"$f":"HQ281*CustomRegion3!$E29","v":330.9489176392982},{"$f":"(HU281*'Default-Data'!$C$60/general_dollar_index)/CustomRegion3!$F29","v":0},{"$f":"(HV281*'Default-Data'!$C$60/general_dollar_index)/CustomRegion3!$F29","v":0.78211704890657274},{"$f":"(HW281*'Default-Data'!$C$60/general_dollar_index)/CustomRegion3!$F29","v":1.2865455714849998}]
[null,null,null,null,null,null,null,null,null,null,null,null,null,null,null,null,null,null,null,null,null,null,null,null,null,null,null,null,null,281,"TTL_C40T41: Electricity, gas and water supply",{"$f":"'General Impact Estimates'!C28","v":0},null,null,25868.272152916961,15846.960617386419,{"$f":"'Colombia-IO-Data'!$AN31*Calculations!AF282","v":0},{"$f":"AI282*'Colombia-IO-Data'!$AN31","v":13681.423679076999},{"$f":"AJ282*'Colombia-IO-Data'!$AN31","v":8381.2703434722207},{"$f":"AK282*'Colombia-IO-Data'!$AO31","v":0},{"$f":"AL282*'Colombia-IO-Data'!$AO31","v":2411.2335678987133},{"$f":"AM282*'Colombia-IO-Data'!$AO31","v":1477.1270057750003},{"$f":"(AN282*'Default-Data'!$F$19/general_dollar_index)/'Colombia-IO-Data'!$AP31","v":0},{"$f":"(AO282*'Default-Data'!$F$19/general_dollar_index)/'Colombia-IO-Data'!$AP31","v":0.23790408596522972},{"$f":"(AP282*'Default-Data'!$F$19/general_dollar_index)/'Colombia-IO-Data'!$AP31","v":0.14574056816474265},null,null,null,null,null,null,null,null,null,null,null,null,"DOM_C40T41: Electricity, gas and water supply",{"$f":"'General Impact Estimates'!C28","v":0},null,null,38624.496440424569,4355.7480274896661,{"$f":"BG282*'Mexico-IO-Data'!AQ31","v":0},{"$f":"BJ282*'Mexico-IO-Data'!$AQ31","v":17277.808795571393},{"$f":"BK282*'Mexico-IO-Data'!$AQ31","v":1948.4469317738101},{"$f":"BG282*'Mexico-IO-Data'!AR31","v":0},{"$f":"BJ282*'Mexico-IO-Data'!$AR31","v":4173.1914795888879},{"$f":"BK282*'Mexico-IO-Data'!$AR31","v":470.61767092791052},{"$f":"(BO282*'Default-Data'!$F$19/general_dollar_index)/'Mexico-IO-Data'!$AS31","v":0},{"$f":"(BP282*'Default-Data'!$F$19/general_dollar_index)/'Mexico-IO-Data'!$AS31","v":0.2314447569573648},{"$f":"(BQ282*'Default-Data'!$F$19/general_dollar_index)/'Mexico-IO-Data'!$AS31","v":2.6100406128137098E-2},null,null,null,null,null,null,null,null,null,null,null,null,"TTL_C40T41: Electricity, gas and water supply",{"$f":"'General Impact Estimates'!C28","v":0},null,null,82296.938120783991,8833.1040934163611,{"$f":"CH282*'Philippines-IO-Data'!$AN31","v":0},{"$f":"CK282*'Philippines-IO-Data'!$AN31","v":49316.936510129817},{"$f":"CL282*'Philippines-IO-Data'!$AN31","v":5293.2909013338713},{"$f":"CH282*'Philippines-IO-Data'!AO31","v":0},{"$f":"CK282*'Philippines-IO-Data'!$AO31","v":10213.607622953768},{"$f":"CL282*'Philippines-IO-Data'!$AO31","v":1096.2480666103552},{"$f":"(CP282*'Default-Data'!$F$19/general_dollar_index)/'Philippines-IO-Data'!$AP31","v":0},{"$f":"(CQ282*'Default-Data'!$F$19/general_dollar_index)/'Philippines-IO-Data'!$AP31","v":2.6650940075465472},{"$f":"(CR282*'Default-Data'!$F$19/general_dollar_index)/'Philippines-IO-Data'!$AP31","v":0.28605016571635439},null,null,null,null,null,null,null,null,null,null,null,null,"DOM_C40T41: Electricity, gas and water supply",{"$f":"'General Impact Estimates'!C28","v":0},null,null,50891.854734888861,73177.587473415173,{"$f":"DI282*'SouthAfrica-IO-Data'!AR31","v":0},{"$f":"DL282*'SouthAfrica-IO-Data'!$AR31","v":27671.253894252979},{"$f":"DM282*'SouthAfrica-IO-Data'!$AR31","v":39788.599037983164},{"$f":"DI282*'SouthAfrica-IO-Data'!AS31","v":0},{"$f":"DL282*'SouthAfrica-IO-Data'!$AS31","v":9042.0268684067833},{"$f":"DM282*'SouthAfrica-IO-Data'!$AS31","v":13001.564111716249},{"$f":"(DQ282*'Default-Data'!$F$19/general_dollar_index)/'SouthAfrica-IO-Data'!$AT31","v":0},{"$f":"(DR282*'Default-Data'!$F$19/general_dollar_index)/'SouthAfrica-IO-Data'!$AT31","v":0.33925928407608108},{"$f":"(DS282*'Default-Data'!$F$19/general_dollar_index)/'SouthAfrica-IO-Data'!$AT31","v":0.4878221881669027},null,null,null,null,null,null,null,null,null,null,null,null,"OTHERMFG",{"$f":"'General Impact Estimates'!C28","v":0},null,null,33795.032482536626,36182.397186353264,{"$f":"EJ282*'Zambia-IO-Data'!BO29","v":0},{"$f":"EM282*'Zambia-IO-Data'!$BO29","v":3626.9389939890616},{"$f":"EN282*'Zambia-IO-Data'!$BO29","v":3883.1549376079975},{"$f":"EJ282*'Zambia-IO-Data'!BN29","v":0},{"$f":"EM282*'Zambia-IO-Data'!$BN29","v":122.12609321164012},{"$f":"EN282*'Zambia-IO-Data'!$BN29","v":130.75338257729325},{"$f":"(ER282*'Default-Data'!$F$19/general_dollar_index)/'Zambia-IO-Data'!$BP29","v":0},{"$f":"(ES282*'Default-Data'!$F$19/general_dollar_index)/'Zambia-IO-Data'!$BP29","v":0.47284334001040129},{"$f":"(ET282*'Default-Data'!$F$19/general_dollar_index)/'Zambia-IO-Data'!$BP29","v":0.50624616336791473},null,null,null,null,null,null,null,null,null,null,null,null,"TTL_C40T41: Electricity, gas and water supply",{"$f":"'General Impact Estimates'!C28","v":0},null,null,112858.49772601045,17315.238268848727,{"$f":"FK282*CustomRegion1!C27","v":0},{"$f":"FN282*CustomRegion1!$C27","v":67631.135423453175},{"$f":"FO282*CustomRegion1!$C27","v":10376.260962580365},{"$f":"FK282*CustomRegion1!D27","v":0},{"$f":"FN282*CustomRegion1!$D27","v":14006.504239534763},{"$f":"FO282*CustomRegion1!$D27","v":2148.9383884053723},{"$f":"(FT282*'Default-Data'!$C$58/general_dollar_index)/CustomRegion1!$E27","v":3.6700674883870992},{"$f":"(FU282*'Default-Data'!$C$58/general_dollar_index)/CustomRegion1!$E27","v":0.56307760872783552},{"$f":"(FV282*'Default-Data'!$C$58/general_dollar_index)/CustomRegion1!$E27","v":9.6165289632350014E-4},null,null,null,null,null,null,null,null,null,null,null,null,"C35 Other transport equipment",{"$f":"'General Impact Estimates'!C28","v":0},null,null,0,0,{"$f":"GL282*CustomRegion2!C31","v":0},{"$f":"GO282*CustomRegion2!$C31","v":0},{"$f":"GP282*CustomRegion2!$C31","v":0},{"$f":"GL282*CustomRegion2!D31","v":0},{"$f":"GO282*CustomRegion2!$D31","v":0},{"$f":"GP282*CustomRegion2!$D31","v":0},{"$f":"(GT282*'Default-Data'!$C$59/general_dollar_index)/CustomRegion2!$E31","v":0},{"$f":"(GU282*'Default-Data'!$C$59/general_dollar_index)/CustomRegion2!$E31","v":0},{"$f":"(GV282*'Default-Data'!$C$59/general_dollar_index)/CustomRegion2!$E31","v":0},null,null,null,null,null,null,null,null,null,null,null,null,"OTHERMFG",{"$f":"'General Impact Estimates'!C28","v":0},null,null,33795.032482536626,36182.397186353264,{"$f":"HM282*CustomRegion3!D30","v":0},{"$f":"HP282*CustomRegion3!$D30","v":3626.9389939890616},{"$f":"HQ282*CustomRegion3!$D30","v":3883.1549376079975},{"$f":"HM282*CustomRegion3!E30","v":0},{"$f":"HP282*CustomRegion3!$E30","v":122.12609321164012},{"$f":"HQ282*CustomRegion3!$E30","v":130.75338257729325},{"$f":"(HU282*'Default-Data'!$C$60/general_dollar_index)/CustomRegion3!$F30","v":0},{"$f":"(HV282*'Default-Data'!$C$60/general_dollar_index)/CustomRegion3!$F30","v":0.47475841741669067},{"$f":"(HW282*'Default-Data'!$C$60/general_dollar_index)/CustomRegion3!$F30","v":0.50829652658010516}]
[null,null,null,null,null,null,null,null,null,null,null,null,null,null,null,null,null,null,null,null,null,null,null,null,null,null,null,null,null,282,"TTL_C45: Construction",{"$f":"'General Impact Estimates'!C29","v":0},null,null,4587.8636764776184,3176.4402555161269,{"$f":"'Colombia-IO-Data'!$AN32*Calculations!AF283","v":0},{"$f":"AI283*'Colombia-IO-Data'!$AN32","v":2278.1620383395093},{"$f":"AJ283*'Colombia-IO-Data'!$AN32","v":1577.3017939203787},{"$f":"AK283*'Colombia-IO-Data'!$AO32","v":0},{"$f":"AL283*'Colombia-IO-Data'!$AO32","v":449.27873989257455},{"$f":"AM283*'Colombia-IO-Data'!$AO32","v":311.06135142141142},{"$f":"(AN283*'Default-Data'!$F$19/general_dollar_index)/'Colombia-IO-Data'!$AP32","v":0},{"$f":"(AO283*'Default-Data'!$F$19/general_dollar_index)/'Colombia-IO-Data'!$AP32","v":0.12754164978781715},{"$f":"(AP283*'Default-Data'!$F$19/general_dollar_index)/'Colombia-IO-Data'!$AP32","v":8.8304374150891055E-2},null,null,null,null,null,null,null,null,null,null,null,null,"DOM_C45: Construction",{"$f":"'General Impact Estimates'!C29","v":0},null,null,1351.5838454883872,290.83120768868412,{"$f":"BG283*'Mexico-IO-Data'!AQ32","v":0},{"$f":"BJ283*'Mexico-IO-Data'!$AQ32","v":679.76901205952663},{"$f":"BK283*'Mexico-IO-Data'!$AQ32","v":146.27138626030171},{"$f":"BG283*'Mexico-IO-Data'!AR32","v":0},{"$f":"BJ283*'Mexico-IO-Data'!$AR32","v":298.97351982220385},{"$f":"BK283*'Mexico-IO-Data'!$AR32","v":64.332545943836053},{"$f":"(BO283*'Default-Data'!$F$19/general_dollar_index)/'Mexico-IO-Data'!$AS32","v":0},{"$f":"(BP283*'Default-Data'!$F$19/general_dollar_index)/'Mexico-IO-Data'!$AS32","v":0.10490809065023128},{"$f":"(BQ283*'Default-Data'!$F$19/general_dollar_index)/'Mexico-IO-Data'!$AS32","v":2.2573920812952529E-2},null,null,null,null,null,null,null,null,null,null,null,null,"TTL_C45: Construction",{"$f":"'General Impact Estimates'!C29","v":0},null,null,3126.7243556513308,2642.3675707088209,{"$f":"CH283*'Philippines-IO-Data'!$AN32","v":0},{"$f":"CK283*'Philippines-IO-Data'!$AN32","v":1720.7256313613691},{"$f":"CL283*'Philippines-IO-Data'!$AN32","v":1454.1702718945296},{"$f":"CH283*'Philippines-IO-Data'!AO32","v":0},{"$f":"CK283*'Philippines-IO-Data'!$AO32","v":528.76960392725641},{"$f":"CL283*'Philippines-IO-Data'!$AO32","v":446.85859540786964},{"$f":"(CP283*'Default-Data'!$F$19/general_dollar_index)/'Philippines-IO-Data'!$AP32","v":0},{"$f":"(CQ283*'Default-Data'!$F$19/general_dollar_index)/'Philippines-IO-Data'!$AP32","v":0.16949032231222866},{"$f":"(CR283*'Default-Data'!$F$19/general_dollar_index)/'Philippines-IO-Data'!$AP32","v":0.14323479791793972},null,null,null,null,null,null,null,null,null,null,null,null,"DOM_C45: Construction",{"$f":"'General Impact Estimates'!C29","v":0},null,null,9742.6714579945747,17341.884769120486,{"$f":"DI283*'SouthAfrica-IO-Data'!AR32","v":0},{"$f":"DL283*'SouthAfrica-IO-Data'!$AR32","v":2900.8867735628219},{"$f":"DM283*'SouthAfrica-IO-Data'!$AR32","v":5163.5574875217335},{"$f":"DI283*'SouthAfrica-IO-Data'!AS32","v":0},{"$f":"DL283*'SouthAfrica-IO-Data'!$AS32","v":1308.3267812384329},{"$f":"DM283*'SouthAfrica-IO-Data'!$AS32","v":2328.812213201888},{"$f":"(DQ283*'Default-Data'!$F$19/general_dollar_index)/'SouthAfrica-IO-Data'!$AT32","v":0},{"$f":"(DR283*'Default-Data'!$F$19/general_dollar_index)/'SouthAfrica-IO-Data'!$AT32","v":0.12765426640127578},{"$f":"(DS283*'Default-Data'!$F$19/general_dollar_index)/'SouthAfrica-IO-Data'!$AT32","v":0.22722367142956226},null,null,null,null,null,null,null,null,null,null,null,null,"ELECWATER",{"$f":"'General Impact Estimates'!C29","v":0},null,null,11195.101953930271,14815.852657487108,{"$f":"EJ283*'Zambia-IO-Data'!BO30","v":0},{"$f":"EM283*'Zambia-IO-Data'!$BO30","v":2984.1588555859698},{"$f":"EN283*'Zambia-IO-Data'!$BO30","v":3949.3037305815024},{"$f":"EJ283*'Zambia-IO-Data'!BN30","v":0},{"$f":"EM283*'Zambia-IO-Data'!$BN30","v":147.72477062625563},{"$f":"EN283*'Zambia-IO-Data'!$BN30","v":195.50232275386344},{"$f":"(ER283*'Default-Data'!$F$19/general_dollar_index)/'Zambia-IO-Data'!$BP30","v":0},{"$f":"(ES283*'Default-Data'!$F$19/general_dollar_index)/'Zambia-IO-Data'!$BP30","v":0.25786993186862511},{"$f":"(ET283*'Default-Data'!$F$19/general_dollar_index)/'Zambia-IO-Data'!$BP30","v":0.34127093536834663},null,null,null,null,null,null,null,null,null,null,null,null,"TTL_C45: Construction",{"$f":"'General Impact Estimates'!C29","v":0},null,null,8792.2766025367146,5140.7332759317669,{"$f":"FK283*CustomRegion1!C28","v":0},{"$f":"FN283*CustomRegion1!$C28","v":4838.6406945847411},{"$f":"FO283*CustomRegion1!$C28","v":2829.0922082402158},{"$f":"FK283*CustomRegion1!D28","v":0},{"$f":"FN283*CustomRegion1!$D28","v":1486.8879018194639},{"$f":"FO283*CustomRegion1!$D28","v":869.36460941849282},{"$f":"(FT283*'Default-Data'!$C$58/general_dollar_index)/CustomRegion1!$E28","v":0.47859436574087583},{"$f":"(FU283*'Default-Data'!$C$58/general_dollar_index)/CustomRegion1!$E28","v":0.27982809150109478},{"$f":"(FV283*'Default-Data'!$C$58/general_dollar_index)/CustomRegion1!$E28","v":1.5404830898053975E-4},null,null,null,null,null,null,null,null,null,null,null,null,"C36T37 Manufacturing n.e.c; recycling",{"$f":"'General Impact Estimates'!C29","v":0},null,null,5234.740026867501,6364.529119500241,{"$f":"GL283*CustomRegion2!C32","v":0},{"$f":"GO283*CustomRegion2!$C32","v":1933.7960326810974},{"$f":"GP283*CustomRegion2!$C32","v":2351.1580514033444},{"$f":"GL283*CustomRegion2!D32","v":0},{"$f":"GO283*CustomRegion2!$D32","v":883.63429993629393},{"$f":"GP283*CustomRegion2!$D32","v":1074.3448966078142},{"$f":"(GT283*'Default-Data'!$C$59/general_dollar_index)/CustomRegion2!$E32","v":0},{"$f":"(GU283*'Default-Data'!$C$59/general_dollar_index)/CustomRegion2!$E32","v":0.14288705350558709},{"$f":"(GV283*'Default-Data'!$C$59/general_dollar_index)/CustomRegion2!$E32","v":0.17372568803194099},null,null,null,null,null,null,null,null,null,null,null,null,"ELECWATER",{"$f":"'General Impact Estimates'!C29","v":0},null,null,11195.101953930271,14815.852657487108,{"$f":"HM283*CustomRegion3!D31","v":0},{"$f":"HP283*CustomRegion3!$D31","v":2984.1588555859698},{"$f":"HQ283*CustomRegion3!$D31","v":3949.3037305815024},{"$f":"HM283*CustomRegion3!E31","v":0},{"$f":"HP283*CustomRegion3!$E31","v":147.72477062625563},{"$f":"HQ283*CustomRegion3!$E31","v":195.50232275386344},{"$f":"(HU283*'Default-Data'!$C$60/general_dollar_index)/CustomRegion3!$F31","v":0},{"$f":"(HV283*'Default-Data'!$C$60/general_dollar_index)/CustomRegion3!$F31","v":0.25891433883917081},{"$f":"(HW283*'Default-Data'!$C$60/general_dollar_index)/CustomRegion3!$F31","v":0.34265312731744502}]
[null,null,null,null,null,null,null,null,null,null,null,null,null,null,null,null,null,null,null,null,null,null,null,null,null,null,null,null,null,283,"TTL_C50T52: Wholesale and retail trade; repairs",{"$f":"'General Impact Estimates'!C30","v":0},null,null,71753.413738091258,29818.718022078581,{"$f":"'Colombia-IO-Data'!$AN33*Calculations!AF284","v":0},{"$f":"AI284*'Colombia-IO-Data'!$AN33","v":43108.558532576113},{"$f":"AJ284*'Colombia-IO-Data'!$AN33","v":17914.714913957643},{"$f":"AK284*'Colombia-IO-Data'!$AO33","v":0},{"$f":"AL284*'Colombia-IO-Data'!$AO33","v":18700.753872160079},{"$f":"AM284*'Colombia-IO-Data'!$AO33","v":7771.5118691030148},{"$f":"(AN284*'Default-Data'!$F$19/general_dollar_index)/'Colombia-IO-Data'!$AP33","v":0},{"$f":"(AO284*'Default-Data'!$F$19/general_dollar_index)/'Colombia-IO-Data'!$AP33","v":5.8440297656348603},{"$f":"(AP284*'Default-Data'!$F$19/general_dollar_index)/'Colombia-IO-Data'!$AP33","v":2.4286158193138458},null,null,null,null,null,null,null,null,null,null,null,null,"DOM_C50T52: Wholesale and retail trade; repairs",{"$f":"'General Impact Estimates'!C30","v":0},null,null,94911.012295237757,28098.738968694757,{"$f":"BG284*'Mexico-IO-Data'!AQ33","v":0},{"$f":"BJ284*'Mexico-IO-Data'!$AQ33","v":72271.709137645797},{"$f":"BK284*'Mexico-IO-Data'!$AQ33","v":21396.293652027936},{"$f":"BG284*'Mexico-IO-Data'!AR33","v":0},{"$f":"BJ284*'Mexico-IO-Data'!$AR33","v":14552.878259709376},{"$f":"BK284*'Mexico-IO-Data'!$AR33","v":4308.4307876809398},{"$f":"(BO284*'Default-Data'!$F$19/general_dollar_index)/'Mexico-IO-Data'!$AS33","v":0},{"$f":"(BP284*'Default-Data'!$F$19/general_dollar_index)/'Mexico-IO-Data'!$AS33","v":3.0668931428890942},{"$f":"(BQ284*'Default-Data'!$F$19/general_dollar_index)/'Mexico-IO-Data'!$AS33","v":0.90796450046128596},null,null,null,null,null,null,null,null,null,null,null,null,"TTL_C50T52: Wholesale and retail trade; repairs",{"$f":"'General Impact Estimates'!C30","v":0},null,null,90600.855280782562,26303.148196760274,{"$f":"CH284*'Philippines-IO-Data'!$AN33","v":0},{"$f":"CK284*'Philippines-IO-Data'!$AN33","v":62615.601891398386},{"$f":"CL284*'Philippines-IO-Data'!$AN33","v":18178.497883652308},{"$f":"CH284*'Philippines-IO-Data'!AO33","v":0},{"$f":"CK284*'Philippines-IO-Data'!$AO33","v":13937.67679582514},{"$f":"CL284*'Philippines-IO-Data'!$AO33","v":4046.372157779138},{"$f":"(CP284*'Default-Data'!$F$19/general_dollar_index)/'Philippines-IO-Data'!$AP33","v":0},{"$f":"(CQ284*'Default-Data'!$F$19/general_dollar_index)/'Philippines-IO-Data'!$AP33","v":4.4675437371264977},{"$f":"(CR284*'Default-Data'!$F$19/general_dollar_index)/'Philippines-IO-Data'!$AP33","v":1.2970127558836826},null,null,null,null,null,null,null,null,null,null,null,null,"DOM_C50T52: Wholesale and retail trade; repairs",{"$f":"'General Impact Estimates'!C30","v":0},null,null,137661.92939374354,214119.60744535123,{"$f":"DI284*'SouthAfrica-IO-Data'!AR33","v":0},{"$f":"DL284*'SouthAfrica-IO-Data'!$AR33","v":80844.210874718163},{"$f":"DM284*'SouthAfrica-IO-Data'!$AR33","v":125745.22798683487},{"$f":"DI284*'SouthAfrica-IO-Data'!AS33","v":0},{"$f":"DL284*'SouthAfrica-IO-Data'!$AS33","v":38820.169223389959},{"$f":"DM284*'SouthAfrica-IO-Data'!$AS33","v":60380.959584692086},{"$f":"(DQ284*'Default-Data'!$F$19/general_dollar_index)/'SouthAfrica-IO-Data'!$AT33","v":0},{"$f":"(DR284*'Default-Data'!$F$19/general_dollar_index)/'SouthAfrica-IO-Data'!$AT33","v":4.1838045518442186},{"$f":"(DS284*'Default-Data'!$F$19/general_dollar_index)/'SouthAfrica-IO-Data'!$AT33","v":6.5074969689453708},null,null,null,null,null,null,null,null,null,null,null,null,"EQUIPMACHIN",{"$f":"'General Impact Estimates'!C30","v":0},null,null,61492.203070081356,10625.630121074042,{"$f":"EJ284*'Zambia-IO-Data'!BO31","v":0},{"$f":"EM284*'Zambia-IO-Data'!$BO31","v":7747.6489600038531},{"$f":"EN284*'Zambia-IO-Data'!$BO31","v":1338.7656978739631},{"$f":"EJ284*'Zambia-IO-Data'!BN31","v":0},{"$f":"EM284*'Zambia-IO-Data'!$BN31","v":1737.4645324772134},{"$f":"EN284*'Zambia-IO-Data'!$BN31","v":300.22758250419736},{"$f":"(ER284*'Default-Data'!$F$19/general_dollar_index)/'Zambia-IO-Data'!$BP31","v":0},{"$f":"(ES284*'Default-Data'!$F$19/general_dollar_index)/'Zambia-IO-Data'!$BP31","v":6.727051615926352},{"$f":"(ET284*'Default-Data'!$F$19/general_dollar_index)/'Zambia-IO-Data'!$BP31","v":1.1624101708430186},null,null,null,null,null,null,null,null,null,null,null,null,"TTL_C50T52: Wholesale and retail trade; repairs",{"$f":"'General Impact Estimates'!C30","v":0},null,null,184612.75271949865,61116.887764849671,{"$f":"FK284*CustomRegion1!C29","v":0},{"$f":"FN284*CustomRegion1!$C29","v":127588.62587482911},{"$f":"FO284*CustomRegion1!$C29","v":42238.792352072036},{"$f":"FK284*CustomRegion1!D29","v":0},{"$f":"FN284*CustomRegion1!$D29","v":28400.094809455266},{"$f":"FO284*CustomRegion1!$D29","v":9401.979990070542},{"$f":"(FT284*'Default-Data'!$C$58/general_dollar_index)/CustomRegion1!$E29","v":9.1413248743766573},{"$f":"(FU284*'Default-Data'!$C$58/general_dollar_index)/CustomRegion1!$E29","v":3.0262769940827519},{"$f":"(FV284*'Default-Data'!$C$58/general_dollar_index)/CustomRegion1!$E29","v":2.9423782216063741E-3},null,null,null,null,null,null,null,null,null,null,null,null,"C40T41 Electricity, gas and water supply",{"$f":"'General Impact Estimates'!C30","v":0},null,null,62728.273922708038,16322.278648066633,{"$f":"GL284*CustomRegion2!C33","v":0},{"$f":"GO284*CustomRegion2!$C33","v":24640.841169303585},{"$f":"GP284*CustomRegion2!$C33","v":6411.6968399879424},{"$f":"GL284*CustomRegion2!D33","v":0},{"$f":"GO284*CustomRegion2!$D33","v":9277.939047008831},{"$f":"GP284*CustomRegion2!$D33","v":2414.1762069151196},{"$f":"(GT284*'Default-Data'!$C$59/general_dollar_index)/CustomRegion2!$E33","v":0},{"$f":"(GU284*'Default-Data'!$C$59/general_dollar_index)/CustomRegion2!$E33","v":0.51455351576912134},{"$f":"(GV284*'Default-Data'!$C$59/general_dollar_index)/CustomRegion2!$E33","v":0.13388995645049254},null,null,null,null,null,null,null,null,null,null,null,null,"EQUIPMACHIN",{"$f":"'General Impact Estimates'!C30","v":0},null,null,61492.203070081356,10625.630121074042,{"$f":"HM284*CustomRegion3!D32","v":0},{"$f":"HP284*CustomRegion3!$D32","v":7747.6489600038531},{"$f":"HQ284*CustomRegion3!$D32","v":1338.7656978739631},{"$f":"HM284*CustomRegion3!E32","v":0},{"$f":"HP284*CustomRegion3!$E32","v":1737.4645324772134},{"$f":"HQ284*CustomRegion3!$E32","v":300.22758250419736},{"$f":"(HU284*'Default-Data'!$C$60/general_dollar_index)/CustomRegion3!$F32","v":0},{"$f":"(HV284*'Default-Data'!$C$60/general_dollar_index)/CustomRegion3!$F32","v":6.7542970553150496},{"$f":"(HW284*'Default-Data'!$C$60/general_dollar_index)/CustomRegion3!$F32","v":1.1671180841552236}]
[null,null,null,null,null,null,null,null,null,null,null,null,null,null,null,null,null,null,null,null,null,null,null,null,null,null,null,null,null,284,"TTL_C55: Hotels and restaurants",{"$f":"'General Impact Estimates'!C31","v":0},null,null,6030.7461381554485,20223.443462745443,{"$f":"'Colombia-IO-Data'!$AN34*Calculations!AF285","v":0},{"$f":"AI285*'Colombia-IO-Data'!$AN34","v":2787.2228519860682},{"$f":"AJ285*'Colombia-IO-Data'!$AN34","v":9346.6450873444865},{"$f":"AK285*'Colombia-IO-Data'!$AO34","v":0},{"$f":"AL285*'Colombia-IO-Data'!$AO34","v":1185.0579841333147},{"$f":"AM285*'Colombia-IO-Data'!$AO34","v":3973.9615286683829},{"$f":"(AN285*'Default-Data'!$F$19/general_dollar_index)/'Colombia-IO-Data'!$AP34","v":0},{"$f":"(AO285*'Default-Data'!$F$19/general_dollar_index)/'Colombia-IO-Data'!$AP34","v":0.25051620701543614},{"$f":"(AP285*'Default-Data'!$F$19/general_dollar_index)/'Colombia-IO-Data'!$AP34","v":0.84007852975679631},null,null,null,null,null,null,null,null,null,null,null,null,"DOM_C55: Hotels and restaurants",{"$f":"'General Impact Estimates'!C31","v":0},null,null,2002.8533259205872,4950.6486448891828,{"$f":"BG285*'Mexico-IO-Data'!AQ34","v":0},{"$f":"BJ285*'Mexico-IO-Data'!$AQ34","v":1472.9591780557175},{"$f":"BK285*'Mexico-IO-Data'!$AQ34","v":3640.8574030087279},{"$f":"BG285*'Mexico-IO-Data'!AR34","v":0},{"$f":"BJ285*'Mexico-IO-Data'!$AR34","v":360.29006952470638},{"$f":"BK285*'Mexico-IO-Data'!$AR34","v":890.56423721875649},{"$f":"(BO285*'Default-Data'!$F$19/general_dollar_index)/'Mexico-IO-Data'!$AS34","v":0},{"$f":"(BP285*'Default-Data'!$F$19/general_dollar_index)/'Mexico-IO-Data'!$AS34","v":0.25902884510368379},{"$f":"(BQ285*'Default-Data'!$F$19/general_dollar_index)/'Mexico-IO-Data'!$AS34","v":0.64026695534998324},null,null,null,null,null,null,null,null,null,null,null,null,"TTL_C55: Hotels and restaurants",{"$f":"'General Impact Estimates'!C31","v":0},null,null,9019.6242841705916,7884.891684437438,{"$f":"CH285*'Philippines-IO-Data'!$AN34","v":0},{"$f":"CK285*'Philippines-IO-Data'!$AN34","v":3381.1224043283482},{"$f":"CL285*'Philippines-IO-Data'!$AN34","v":2955.7532653263106},{"$f":"CH285*'Philippines-IO-Data'!AO34","v":0},{"$f":"CK285*'Philippines-IO-Data'!$AO34","v":1273.695763366866},{"$f":"CL285*'Philippines-IO-Data'!$AO34","v":1113.4558177439767},{"$f":"(CP285*'Default-Data'!$F$19/general_dollar_index)/'Philippines-IO-Data'!$AP34","v":0},{"$f":"(CQ285*'Default-Data'!$F$19/general_dollar_index)/'Philippines-IO-Data'!$AP34","v":0.40826685924720629},{"$f":"(CR285*'Default-Data'!$F$19/general_dollar_index)/'Philippines-IO-Data'!$AP34","v":0.35690399755999436},null,null,null,null,null,null,null,null,null,null,null,null,"DOM_C55: Hotels and restaurants",{"$f":"'General Impact Estimates'!C31","v":0},null,null,2356.651100151149,7949.0982999711923,{"$f":"DI285*'SouthAfrica-IO-Data'!AR34","v":0},{"$f":"DL285*'SouthAfrica-IO-Data'!$AR34","v":1058.2849780348204},{"$f":"DM285*'SouthAfrica-IO-Data'!$AR34","v":3569.6464865936632},{"$f":"DI285*'SouthAfrica-IO-Data'!AS34","v":0},{"$f":"DL285*'SouthAfrica-IO-Data'!$AS34","v":405.9429545545309},{"$f":"DM285*'SouthAfrica-IO-Data'!$AS34","v":1369.2652466577431},{"$f":"(DQ285*'Default-Data'!$F$19/general_dollar_index)/'SouthAfrica-IO-Data'!$AT34","v":0},{"$f":"(DR285*'Default-Data'!$F$19/general_dollar_index)/'SouthAfrica-IO-Data'!$AT34","v":4.3750092156502607E-2},{"$f":"(DS285*'Default-Data'!$F$19/general_dollar_index)/'SouthAfrica-IO-Data'!$AT34","v":0.14757117978241779},null,null,null,null,null,null,null,null,null,null,null,null,"CONSTR",{"$f":"'General Impact Estimates'!C31","v":0},null,null,4375.1835252654037,10362.387140008323,{"$f":"EJ285*'Zambia-IO-Data'!BO32","v":0},{"$f":"EM285*'Zambia-IO-Data'!$BO32","v":265.42414754928637},{"$f":"EN285*'Zambia-IO-Data'!$BO32","v":628.64283459870455},{"$f":"EJ285*'Zambia-IO-Data'!BN32","v":0},{"$f":"EM285*'Zambia-IO-Data'!$BN32","v":116.74711855923054},{"$f":"EN285*'Zambia-IO-Data'!$BN32","v":276.50927852627876},{"$f":"(ER285*'Default-Data'!$F$19/general_dollar_index)/'Zambia-IO-Data'!$BP32","v":0},{"$f":"(ES285*'Default-Data'!$F$19/general_dollar_index)/'Zambia-IO-Data'!$BP32","v":0.41855091281540291},{"$f":"(ET285*'Default-Data'!$F$19/general_dollar_index)/'Zambia-IO-Data'!$BP32","v":0.99131535199634335},null,null,null,null,null,null,null,null,null,null,null,null,"TTL_C55: Hotels and restaurants",{"$f":"'General Impact Estimates'!C31","v":0},null,null,14349.014635793268,14241.149216491482,{"$f":"FK285*CustomRegion1!C30","v":0},{"$f":"FN285*CustomRegion1!$C30","v":5378.9130607425641},{"$f":"FO285*CustomRegion1!$C30","v":5338.478318189751},{"$f":"FK285*CustomRegion1!D30","v":0},{"$f":"FN285*CustomRegion1!$D30","v":2026.279429640306},{"$f":"FO285*CustomRegion1!$D30","v":2011.047339782684},{"$f":"(FT285*'Default-Data'!$C$58/general_dollar_index)/CustomRegion1!$E30","v":0.65221185622386868},{"$f":"(FU285*'Default-Data'!$C$58/general_dollar_index)/CustomRegion1!$E30","v":0.6473090035102268},{"$f":"(FV285*'Default-Data'!$C$58/general_dollar_index)/CustomRegion1!$E30","v":2.0993170989970297E-4},null,null,null,null,null,null,null,null,null,null,null,null,"C45 Construction",{"$f":"'General Impact Estimates'!C31","v":0},null,null,1617.2313713547767,1275.2664096667934,{"$f":"GL285*CustomRegion2!C34","v":0},{"$f":"GO285*CustomRegion2!$C34","v":788.06479748778725},{"$f":"GP285*CustomRegion2!$C34","v":621.42781959216086},{"$f":"GL285*CustomRegion2!D34","v":0},{"$f":"GO285*CustomRegion2!$D34","v":325.20795011381892},{"$f":"GP285*CustomRegion2!$D34","v":256.44244990704408},{"$f":"(GT285*'Default-Data'!$C$59/general_dollar_index)/CustomRegion2!$E34","v":0},{"$f":"(GU285*'Default-Data'!$C$59/general_dollar_index)/CustomRegion2!$E34","v":0.11411360153569913},{"$f":"(GV285*'Default-Data'!$C$59/general_dollar_index)/CustomRegion2!$E34","v":8.9984182537016733E-2},null,null,null,null,null,null,null,null,null,null,null,null,"CONSTR",{"$f":"'General Impact Estimates'!C31","v":0},null,null,4375.1835252654037,10362.387140008323,{"$f":"HM285*CustomRegion3!D33","v":0},{"$f":"HP285*CustomRegion3!$D33","v":265.42414754928637},{"$f":"HQ285*CustomRegion3!$D33","v":628.64283459870455},{"$f":"HM285*CustomRegion3!E33","v":0},{"$f":"HP285*CustomRegion3!$E33","v":116.74711855923054},{"$f":"HQ285*CustomRegion3!$E33","v":276.50927852627876},{"$f":"(HU285*'Default-Data'!$C$60/general_dollar_index)/CustomRegion3!$F33","v":0},{"$f":"(HV285*'Default-Data'!$C$60/general_dollar_index)/CustomRegion3!$F33","v":0.42024609878650482},{"$f":"(HW285*'Default-Data'!$C$60/general_dollar_index)/CustomRegion3!$F33","v":0.99533030890167751}]
[null,null,null,null,null,null,null,null,null,null,null,null,null,null,null,null,null,null,null,null,null,null,null,null,null,null,null,null,null,285,"TTL_C60T63: Transport and storage",{"$f":"'General Impact Estimates'!C32","v":0},null,null,50018.605241357844,21038.185192242163,{"$f":"'Colombia-IO-Data'!$AN35*Calculations!AF286","v":0},{"$f":"AI286*'Colombia-IO-Data'!$AN35","v":21818.941676226284},{"$f":"AJ286*'Colombia-IO-Data'!$AN35","v":9177.2038318179621},{"$f":"AK286*'Colombia-IO-Data'!$AO35","v":0},{"$f":"AL286*'Colombia-IO-Data'!$AO35","v":5518.5793106771034},{"$f":"AM286*'Colombia-IO-Data'!$AO35","v":2321.1541580552321},{"$f":"(AN286*'Default-Data'!$F$19/general_dollar_index)/'Colombia-IO-Data'!$AP35","v":0},{"$f":"(AO286*'Default-Data'!$F$19/general_dollar_index)/'Colombia-IO-Data'!$AP35","v":1.2732213554425642},{"$f":"(AP286*'Default-Data'!$F$19/general_dollar_index)/'Colombia-IO-Data'!$AP35","v":0.53552606149781334},null,null,null,null,null,null,null,null,null,null,null,null,"DOM_C60T63: Transport and storage",{"$f":"'General Impact Estimates'!C32","v":0},null,null,26997.033962203343,16235.138720838317,{"$f":"BG286*'Mexico-IO-Data'!AQ35","v":0},{"$f":"BJ286*'Mexico-IO-Data'!$AQ35","v":19731.999665611009},{"$f":"BK286*'Mexico-IO-Data'!$AQ35","v":11866.183235507724},{"$f":"BG286*'Mexico-IO-Data'!AR35","v":0},{"$f":"BJ286*'Mexico-IO-Data'!$AR35","v":6365.8034871311474},{"$f":"BK286*'Mexico-IO-Data'!$AR35","v":3828.1873048670145},{"$f":"(BO286*'Default-Data'!$F$19/general_dollar_index)/'Mexico-IO-Data'!$AS35","v":0},{"$f":"(BP286*'Default-Data'!$F$19/general_dollar_index)/'Mexico-IO-Data'!$AS35","v":0.9009032984420432},{"$f":"(BQ286*'Default-Data'!$F$19/general_dollar_index)/'Mexico-IO-Data'!$AS35","v":0.54177396097455066},null,null,null,null,null,null,null,null,null,null,null,null,"TTL_C60T63: Transport and storage",{"$f":"'General Impact Estimates'!C32","v":0},null,null,15450.211877177684,6538.9362122268831,{"$f":"CH286*'Philippines-IO-Data'!$AN35","v":0},{"$f":"CK286*'Philippines-IO-Data'!$AN35","v":6829.3647361441635},{"$f":"CL286*'Philippines-IO-Data'!$AN35","v":2890.3668593466496},{"$f":"CH286*'Philippines-IO-Data'!AO35","v":0},{"$f":"CK286*'Philippines-IO-Data'!$AO35","v":2541.4165529896159},{"$f":"CL286*'Philippines-IO-Data'!$AO35","v":1075.5943582394605},{"$f":"(CP286*'Default-Data'!$F$19/general_dollar_index)/'Philippines-IO-Data'!$AP35","v":0},{"$f":"(CQ286*'Default-Data'!$F$19/general_dollar_index)/'Philippines-IO-Data'!$AP35","v":0.81461851720792433},{"$f":"(CR286*'Default-Data'!$F$19/general_dollar_index)/'Philippines-IO-Data'!$AP35","v":0.34476799177038275},null,null,null,null,null,null,null,null,null,null,null,null,"DOM_C60T63: Transport and storage",{"$f":"'General Impact Estimates'!C32","v":0},null,null,86178.959312016712,126125.36336767874,{"$f":"DI286*'SouthAfrica-IO-Data'!AR35","v":0},{"$f":"DL286*'SouthAfrica-IO-Data'!$AR35","v":45572.155066020343},{"$f":"DM286*'SouthAfrica-IO-Data'!$AR35","v":66696.147911692751},{"$f":"DI286*'SouthAfrica-IO-Data'!AS35","v":0},{"$f":"DL286*'SouthAfrica-IO-Data'!$AS35","v":15875.08078358023},{"$f":"DM286*'SouthAfrica-IO-Data'!$AS35","v":23233.633224451329},{"$f":"(DQ286*'Default-Data'!$F$19/general_dollar_index)/'SouthAfrica-IO-Data'!$AT35","v":0},{"$f":"(DR286*'Default-Data'!$F$19/general_dollar_index)/'SouthAfrica-IO-Data'!$AT35","v":0.9203743531913402},{"$f":"(DS286*'Default-Data'!$F$19/general_dollar_index)/'SouthAfrica-IO-Data'!$AT35","v":1.346994099920207},null,null,null,null,null,null,null,null,null,null,null,null,"TRADETRANS",{"$f":"'General Impact Estimates'!C32","v":0},null,null,35720.121992559689,39248.73151700262,{"$f":"EJ286*'Zambia-IO-Data'!BO33","v":0},{"$f":"EM286*'Zambia-IO-Data'!$BO33","v":8075.2985374108257},{"$f":"EN286*'Zambia-IO-Data'!$BO33","v":8873.0162870244239},{"$f":"EJ286*'Zambia-IO-Data'!BN33","v":0},{"$f":"EM286*'Zambia-IO-Data'!$BN33","v":2972.9865319218643},{"$f":"EN286*'Zambia-IO-Data'!$BN33","v":3266.6727795434472},{"$f":"(ER286*'Default-Data'!$F$19/general_dollar_index)/'Zambia-IO-Data'!$BP33","v":0},{"$f":"(ES286*'Default-Data'!$F$19/general_dollar_index)/'Zambia-IO-Data'!$BP33","v":7.6283387880790503},{"$f":"(ET286*'Default-Data'!$F$19/general_dollar_index)/'Zambia-IO-Data'!$BP33","v":8.3819036529722855},null,null,null,null,null,null,null,null,null,null,null,null,"TTL_C60T63: Transport and storage",{"$f":"'General Impact Estimates'!C32","v":0},null,null,36708.755804702305,17196.335073691298,{"$f":"FK286*CustomRegion1!C31","v":0},{"$f":"FN286*CustomRegion1!$C31","v":16226.151744279938},{"$f":"FO286*CustomRegion1!$C31","v":7601.1931277565991},{"$f":"FK286*CustomRegion1!D31","v":0},{"$f":"FN286*CustomRegion1!$D31","v":6038.2498559473433},{"$f":"FO286*CustomRegion1!$D31","v":2828.6376235131784},{"$f":"(FT286*'Default-Data'!$C$58/general_dollar_index)/CustomRegion1!$E31","v":1.9435711034139129},{"$f":"(FU286*'Default-Data'!$C$58/general_dollar_index)/CustomRegion1!$E31","v":0.91047215306513463},{"$f":"(FV286*'Default-Data'!$C$58/general_dollar_index)/CustomRegion1!$E31","v":6.2558998453914202E-4},null,null,null,null,null,null,null,null,null,null,null,null,"C50T52 Wholesale and retail trade; repairs",{"$f":"'General Impact Estimates'!C32","v":0},null,null,174833.54746656859,91865.614717349352,{"$f":"GL286*CustomRegion2!C35","v":0},{"$f":"GO286*CustomRegion2!$C35","v":128268.82382480301},{"$f":"GP286*CustomRegion2!$C35","v":67398.359871352135},{"$f":"GL286*CustomRegion2!D35","v":0},{"$f":"GO286*CustomRegion2!$D35","v":31239.790200117186},{"$f":"GP286*CustomRegion2!$D35","v":16414.827542886542},{"$f":"(GT286*'Default-Data'!$C$59/general_dollar_index)/CustomRegion2!$E35","v":0},{"$f":"(GU286*'Default-Data'!$C$59/general_dollar_index)/CustomRegion2!$E35","v":6.5835154146301953},{"$f":"(GV286*'Default-Data'!$C$59/general_dollar_index)/CustomRegion2!$E35","v":3.4592828397639002},null,null,null,null,null,null,null,null,null,null,null,null,"TRADETRANS",{"$f":"'General Impact Estimates'!C32","v":0},null,null,35720.121992559689,39248.73151700262,{"$f":"HM286*CustomRegion3!D34","v":0},{"$f":"HP286*CustomRegion3!$D34","v":8075.2985374108257},{"$f":"HQ286*CustomRegion3!$D34","v":8873.0162870244239},{"$f":"HM286*CustomRegion3!E34","v":0},{"$f":"HP286*CustomRegion3!$E34","v":2972.9865319218643},{"$f":"HQ286*CustomRegion3!$E34","v":3266.6727795434472},{"$f":"(HU286*'Default-Data'!$C$60/general_dollar_index)/CustomRegion3!$F34","v":0},{"$f":"(HV286*'Default-Data'!$C$60/general_dollar_index)/CustomRegion3!$F34","v":7.6592345584630621},{"$f":"(HW286*'Default-Data'!$C$60/general_dollar_index)/CustomRegion3!$F34","v":8.4158514596753431}]
[null,null,null,null,null,null,null,null,null,null,null,null,null,null,null,null,null,null,null,null,null,null,null,null,null,null,null,null,null,286,"TTL_C64: Post and telecommunications",{"$f":"'General Impact Estimates'!C33","v":0},null,null,5339.0829919479656,12734.654143700092,{"$f":"'Colombia-IO-Data'!$AN36*Calculations!AF287","v":0},{"$f":"AI287*'Colombia-IO-Data'!$AN36","v":2919.0378926837093},{"$f":"AJ287*'Colombia-IO-Data'!$AN36","v":6962.4199608329427},{"$f":"AK287*'Colombia-IO-Data'!$AO36","v":0},{"$f":"AL287*'Colombia-IO-Data'!$AO36","v":708.54473234106456},{"$f":"AM287*'Colombia-IO-Data'!$AO36","v":1690.0040934579931},{"$f":"(AN287*'Default-Data'!$F$19/general_dollar_index)/'Colombia-IO-Data'!$AP36","v":0},{"$f":"(AO287*'Default-Data'!$F$19/general_dollar_index)/'Colombia-IO-Data'!$AP36","v":0.16347219704853561},{"$f":"(AP287*'Default-Data'!$F$19/general_dollar_index)/'Colombia-IO-Data'!$AP36","v":0.38991000789151636},null,null,null,null,null,null,null,null,null,null,null,null,"DOM_C64: Post and telecommunications",{"$f":"'General Impact Estimates'!C33","v":0},null,null,3040.1009243344301,6327.8060064044948,{"$f":"BG287*'Mexico-IO-Data'!AQ36","v":0},{"$f":"BJ287*'Mexico-IO-Data'!$AQ36","v":1854.8897343186684},{"$f":"BK287*'Mexico-IO-Data'!$AQ36","v":3860.8528776423354},{"$f":"BG287*'Mexico-IO-Data'!AR36","v":0},{"$f":"BJ287*'Mexico-IO-Data'!$AR36","v":474.17955792348471},{"$f":"BK287*'Mexico-IO-Data'!$AR36","v":986.97915938411097},{"$f":"(BO287*'Default-Data'!$F$19/general_dollar_index)/'Mexico-IO-Data'!$AS36","v":0},{"$f":"(BP287*'Default-Data'!$F$19/general_dollar_index)/'Mexico-IO-Data'!$AS36","v":3.9603240235918248E-2},{"$f":"(BQ287*'Default-Data'!$F$19/general_dollar_index)/'Mexico-IO-Data'!$AS36","v":8.2432007250807932E-2},null,null,null,null,null,null,null,null,null,null,null,null,"TTL_C64: Post and telecommunications",{"$f":"'General Impact Estimates'!C33","v":0},null,null,3141.7597720164413,5788.8261273934459,{"$f":"CH287*'Philippines-IO-Data'!$AN36","v":0},{"$f":"CK287*'Philippines-IO-Data'!$AN36","v":1902.9571013050879},{"$f":"CL287*'Philippines-IO-Data'!$AN36","v":3506.2794696978322},{"$f":"CH287*'Philippines-IO-Data'!AO36","v":0},{"$f":"CK287*'Philippines-IO-Data'!$AO36","v":337.43799555309113},{"$f":"CL287*'Philippines-IO-Data'!$AO36","v":621.74387183629176},{"$f":"(CP287*'Default-Data'!$F$19/general_dollar_index)/'Philippines-IO-Data'!$AP36","v":0},{"$f":"(CQ287*'Default-Data'!$F$19/general_dollar_index)/'Philippines-IO-Data'!$AP36","v":8.8049591590535714E-2},{"$f":"(CR287*'Default-Data'!$F$19/general_dollar_index)/'Philippines-IO-Data'!$AP36","v":0.16223512085345654},null,null,null,null,null,null,null,null,null,null,null,null,"DOM_C64: Post and telecommunications",{"$f":"'General Impact Estimates'!C33","v":0},null,null,13511.340784857299,36264.542201139884,{"$f":"DI287*'SouthAfrica-IO-Data'!AR36","v":0},{"$f":"DL287*'SouthAfrica-IO-Data'!$AR36","v":5486.7004630997235},{"$f":"DM287*'SouthAfrica-IO-Data'!$AR36","v":14726.346086399533},{"$f":"DI287*'SouthAfrica-IO-Data'!AS36","v":0},{"$f":"DL287*'SouthAfrica-IO-Data'!$AS36","v":1795.4919758396043},{"$f":"DM287*'SouthAfrica-IO-Data'!$AS36","v":4819.1142216335602},{"$f":"(DQ287*'Default-Data'!$F$19/general_dollar_index)/'SouthAfrica-IO-Data'!$AT36","v":0},{"$f":"(DR287*'Default-Data'!$F$19/general_dollar_index)/'SouthAfrica-IO-Data'!$AT36","v":0.10409551853322484},{"$f":"(DS287*'Default-Data'!$F$19/general_dollar_index)/'SouthAfrica-IO-Data'!$AT36","v":0.27939316940539588},null,null,null,null,null,null,null,null,null,null,null,null,"TOURISM",{"$f":"'General Impact Estimates'!C33","v":0},null,null,110.60832384967863,130.91333431438238,{"$f":"EJ287*'Zambia-IO-Data'!BO34","v":0},{"$f":"EM287*'Zambia-IO-Data'!$BO34","v":48.34457339525153},{"$f":"EN287*'Zambia-IO-Data'!$BO34","v":57.219466663106374},{"$f":"EJ287*'Zambia-IO-Data'!BN34","v":0},{"$f":"EM287*'Zambia-IO-Data'!$BN34","v":33.881781922072413},{"$f":"EN287*'Zambia-IO-Data'!$BN34","v":40.101656815262828},{"$f":"(ER287*'Default-Data'!$F$19/general_dollar_index)/'Zambia-IO-Data'!$BP34","v":0},{"$f":"(ES287*'Default-Data'!$F$19/general_dollar_index)/'Zambia-IO-Data'!$BP34","v":0.10126343286537098},{"$f":"(ET287*'Default-Data'!$F$19/general_dollar_index)/'Zambia-IO-Data'!$BP34","v":0.11985294758234279},null,null,null,null,null,null,null,null,null,null,null,null,"TTL_C64: Post and telecommunications",{"$f":"'General Impact Estimates'!C33","v":0},null,null,6390.0967968384948,11036.704154112333,{"$f":"FK287*CustomRegion1!C32","v":0},{"$f":"FN287*CustomRegion1!$C32","v":3870.4678142104221},{"$f":"FO287*CustomRegion1!$C32","v":6684.9078443676499},{"$f":"FK287*CustomRegion1!D32","v":0},{"$f":"FN287*CustomRegion1!$D32","v":686.32282891937348},{"$f":"FO287*CustomRegion1!$D32","v":1185.3876800026233},{"$f":"(FT287*'Default-Data'!$C$58/general_dollar_index)/CustomRegion1!$E32","v":0.17983438678761426},{"$f":"(FU287*'Default-Data'!$C$58/general_dollar_index)/CustomRegion1!$E32","v":0.31060232525633685},{"$f":"(FV287*'Default-Data'!$C$58/general_dollar_index)/CustomRegion1!$E32","v":4.712127487030812E-5},null,null,null,null,null,null,null,null,null,null,null,null,"C55 Hotels and restaurants",{"$f":"'General Impact Estimates'!C33","v":0},null,null,3786.4263297570051,22823.911528290409,{"$f":"GL287*CustomRegion2!C36","v":0},{"$f":"GO287*CustomRegion2!$C36","v":2722.9572365313074},{"$f":"GP287*CustomRegion2!$C36","v":16413.506998272194},{"$f":"GL287*CustomRegion2!D36","v":0},{"$f":"GO287*CustomRegion2!$D36","v":752.34314355911715},{"$f":"GP287*CustomRegion2!$D36","v":4534.9920616601985},{"$f":"(GT287*'Default-Data'!$C$59/general_dollar_index)/CustomRegion2!$E36","v":0},{"$f":"(GU287*'Default-Data'!$C$59/general_dollar_index)/CustomRegion2!$E36","v":0.5408935523948144},{"$f":"(GV287*'Default-Data'!$C$59/general_dollar_index)/CustomRegion2!$E36","v":3.2604111399347411},null,null,null,null,null,null,null,null,null,null,null,null,"TOURISM",{"$f":"'General Impact Estimates'!C33","v":0},null,null,110.60832384967863,130.91333431438238,{"$f":"HM287*CustomRegion3!D35","v":0},{"$f":"HP287*CustomRegion3!$D35","v":48.34457339525153},{"$f":"HQ287*CustomRegion3!$D35","v":57.219466663106374},{"$f":"HM287*CustomRegion3!E35","v":0},{"$f":"HP287*CustomRegion3!$E35","v":33.881781922072413},{"$f":"HQ287*CustomRegion3!$E35","v":40.101656815262828},{"$f":"(HU287*'Default-Data'!$C$60/general_dollar_index)/CustomRegion3!$F35","v":0},{"$f":"(HV287*'Default-Data'!$C$60/general_dollar_index)/CustomRegion3!$F35","v":0.10167356302044414},{"$f":"(HW287*'Default-Data'!$C$60/general_dollar_index)/CustomRegion3!$F35","v":0.12033836770476025}]
[null,null,null,null,null,null,null,null,null,null,null,null,null,null,null,null,null,null,null,null,null,null,null,null,null,null,null,null,null,287,"TTL_C65T67: Financial intermediation",{"$f":"'General Impact Estimates'!C34","v":0},null,null,19588.512468474659,18959.903619020053,{"$f":"'Colombia-IO-Data'!$AN37*Calculations!AF288","v":0},{"$f":"AI288*'Colombia-IO-Data'!$AN37","v":13051.438822380716},{"$f":"AJ288*'Colombia-IO-Data'!$AN37","v":12632.609166220369},{"$f":"AK288*'Colombia-IO-Data'!$AO37","v":0},{"$f":"AL288*'Colombia-IO-Data'!$AO37","v":4646.3393353583497},{"$f":"AM288*'Colombia-IO-Data'!$AO37","v":4497.2351076393816},{"$f":"(AN288*'Default-Data'!$F$19/general_dollar_index)/'Colombia-IO-Data'!$AP37","v":0},{"$f":"(AO288*'Default-Data'!$F$19/general_dollar_index)/'Colombia-IO-Data'!$AP37","v":0.67345946082346353},{"$f":"(AP288*'Default-Data'!$F$19/general_dollar_index)/'Colombia-IO-Data'!$AP37","v":0.65184768312957908},null,null,null,null,null,null,null,null,null,null,null,null,"DOM_C65T67: Financial intermediation",{"$f":"'General Impact Estimates'!C34","v":0},null,null,13469.038260086996,9875.7994666143932,{"$f":"BG288*'Mexico-IO-Data'!AQ37","v":0},{"$f":"BJ288*'Mexico-IO-Data'!$AQ37","v":9156.1560847304954},{"$f":"BK288*'Mexico-IO-Data'!$AQ37","v":6713.4979967927948},{"$f":"BG288*'Mexico-IO-Data'!AR37","v":0},{"$f":"BJ288*'Mexico-IO-Data'!$AR37","v":2486.6872369126531},{"$f":"BK288*'Mexico-IO-Data'!$AR37","v":1823.2945822651616},{"$f":"(BO288*'Default-Data'!$F$19/general_dollar_index)/'Mexico-IO-Data'!$AS37","v":0},{"$f":"(BP288*'Default-Data'!$F$19/general_dollar_index)/'Mexico-IO-Data'!$AS37","v":0.19455253106266401},{"$f":"(BQ288*'Default-Data'!$F$19/general_dollar_index)/'Mexico-IO-Data'!$AS37","v":0.14265025797652811},null,null,null,null,null,null,null,null,null,null,null,null,"TTL_C65T67: Financial intermediation",{"$f":"'General Impact Estimates'!C34","v":0},null,null,24865.336440469931,18242.367159886991,{"$f":"CH288*'Philippines-IO-Data'!$AN37","v":0},{"$f":"CK288*'Philippines-IO-Data'!$AN37","v":15858.966654745796},{"$f":"CL288*'Philippines-IO-Data'!$AN37","v":11634.875449399307},{"$f":"CH288*'Philippines-IO-Data'!AO37","v":0},{"$f":"CK288*'Philippines-IO-Data'!$AO37","v":3474.4912123075424},{"$f":"CL288*'Philippines-IO-Data'!$AO37","v":2549.0483324229326},{"$f":"(CP288*'Default-Data'!$F$19/general_dollar_index)/'Philippines-IO-Data'!$AP37","v":0},{"$f":"(CQ288*'Default-Data'!$F$19/general_dollar_index)/'Philippines-IO-Data'!$AP37","v":0.90661850846743486},{"$f":"(CR288*'Default-Data'!$F$19/general_dollar_index)/'Philippines-IO-Data'!$AP37","v":0.6651374995471202},null,null,null,null,null,null,null,null,null,null,null,null,"DOM_C65T67: Financial intermediation",{"$f":"'General Impact Estimates'!C34","v":0},null,null,45717.66378637158,110346.92236587005,{"$f":"DI288*'SouthAfrica-IO-Data'!AR37","v":0},{"$f":"DL288*'SouthAfrica-IO-Data'!$AR37","v":26604.168980457107},{"$f":"DM288*'SouthAfrica-IO-Data'!$AR37","v":64213.433626285077},{"$f":"DI288*'SouthAfrica-IO-Data'!AS37","v":0},{"$f":"DL288*'SouthAfrica-IO-Data'!$AS37","v":13366.235968945964},{"$f":"DM288*'SouthAfrica-IO-Data'!$AS37","v":32261.556707734795},{"$f":"(DQ288*'Default-Data'!$F$19/general_dollar_index)/'SouthAfrica-IO-Data'!$AT37","v":0},{"$f":"(DR288*'Default-Data'!$F$19/general_dollar_index)/'SouthAfrica-IO-Data'!$AT37","v":0.85926766393977561},{"$f":"(DS288*'Default-Data'!$F$19/general_dollar_index)/'SouthAfrica-IO-Data'!$AT37","v":2.0739804782529161},null,null,null,null,null,null,null,null,null,null,null,null,"OTHER",{"$f":"'General Impact Estimates'!C34","v":0},null,null,12073.157078126353,7014.978652597305,{"$f":"EJ288*'Zambia-IO-Data'!BO35","v":0},{"$f":"EM288*'Zambia-IO-Data'!$BO35","v":4418.6730850433687},{"$f":"EN288*'Zambia-IO-Data'!$BO35","v":2567.4226852017364},{"$f":"EJ288*'Zambia-IO-Data'!BN35","v":0},{"$f":"EM288*'Zambia-IO-Data'!$BN35","v":3535.489729515848},{"$f":"EN288*'Zambia-IO-Data'!$BN35","v":2054.2584527426402},{"$f":"(ER288*'Default-Data'!$F$19/general_dollar_index)/'Zambia-IO-Data'!$BP35","v":0},{"$f":"(ES288*'Default-Data'!$F$19/general_dollar_index)/'Zambia-IO-Data'!$BP35","v":8.5007793683599822},{"$f":"(ET288*'Default-Data'!$F$19/general_dollar_index)/'Zambia-IO-Data'!$BP35","v":4.9392868338907885},null,null,null,null,null,null,null,null,null,null,null,null,"TTL_C65T67: Financial intermediation",{"$f":"'General Impact Estimates'!C34","v":0},null,null,45652.163527870711,37085.654623406284,{"$f":"FK288*CustomRegion1!C33","v":0},{"$f":"FN288*CustomRegion1!$C33","v":29116.683815592925},{"$f":"FO288*CustomRegion1!$C33","v":23653.014366006475},{"$f":"FK288*CustomRegion1!D33","v":0},{"$f":"FN288*CustomRegion1!$D33","v":6379.0828400878836},{"$f":"FO288*CustomRegion1!$D33","v":5182.0646545517848},{"$f":"(FT288*'Default-Data'!$C$58/general_dollar_index)/CustomRegion1!$E33","v":1.6714851997868827},{"$f":"(FU288*'Default-Data'!$C$58/general_dollar_index)/CustomRegion1!$E33","v":1.3578353803448493},{"$f":"(FV288*'Default-Data'!$C$58/general_dollar_index)/CustomRegion1!$E33","v":4.3797248650686969E-4},null,null,null,null,null,null,null,null,null,null,null,null,"C60T63 Transport and storage",{"$f":"'General Impact Estimates'!C34","v":0},null,null,45708.346813598211,56279.629173161316,{"$f":"GL288*CustomRegion2!C37","v":0},{"$f":"GO288*CustomRegion2!$C37","v":28359.416219281928},{"$f":"GP288*CustomRegion2!$C37","v":34918.292601947636},{"$f":"GL288*CustomRegion2!D37","v":0},{"$f":"GO288*CustomRegion2!$D37","v":9630.2291601091147},{"$f":"GP288*CustomRegion2!$D37","v":11857.478201820793},{"$f":"(GT288*'Default-Data'!$C$59/general_dollar_index)/CustomRegion2!$E37","v":0},{"$f":"(GU288*'Default-Data'!$C$59/general_dollar_index)/CustomRegion2!$E37","v":1.3628924035487286},{"$f":"(GV288*'Default-Data'!$C$59/general_dollar_index)/CustomRegion2!$E37","v":1.678097862244754},null,null,null,null,null,null,null,null,null,null,null,null,"OTHER",{"$f":"'General Impact Estimates'!C34","v":0},null,null,12073.157078126353,7014.978652597305,{"$f":"HM288*CustomRegion3!D36","v":0},{"$f":"HP288*CustomRegion3!$D36","v":4418.6730850433687},{"$f":"HQ288*CustomRegion3!$D36","v":2567.4226852017364},{"$f":"HM288*CustomRegion3!E36","v":0},{"$f":"HP288*CustomRegion3!$E36","v":3535.489729515848},{"$f":"HQ288*CustomRegion3!$E36","v":2054.2584527426402},{"$f":"(HU288*'Default-Data'!$C$60/general_dollar_index)/CustomRegion3!$F36","v":0},{"$f":"(HV288*'Default-Data'!$C$60/general_dollar_index)/CustomRegion3!$F36","v":8.535208637267182},{"$f":"(HW288*'Default-Data'!$C$60/general_dollar_index)/CustomRegion3!$F36","v":4.9592915919541216}]
[null,null,null,null,null,null,null,null,null,null,null,null,null,null,null,null,null,null,null,null,null,null,null,null,null,null,null,null,null,288,"TTL_C70: Real estate activities",{"$f":"'General Impact Estimates'!C35","v":0},null,null,10478.313257078578,25645.705129955622,{"$f":"'Colombia-IO-Data'!$AN38*Calculations!AF289","v":0},{"$f":"AI289*'Colombia-IO-Data'!$AN38","v":9293.0092716444851},{"$f":"AJ289*'Colombia-IO-Data'!$AN38","v":22744.669843644751},{"$f":"AK289*'Colombia-IO-Data'!$AO38","v":0},{"$f":"AL289*'Colombia-IO-Data'!$AO38","v":306.17863553541486},{"$f":"AM289*'Colombia-IO-Data'!$AO38","v":749.37318740007174},{"$f":"(AN289*'Default-Data'!$F$19/general_dollar_index)/'Colombia-IO-Data'!$AP38","v":0},{"$f":"(AO289*'Default-Data'!$F$19/general_dollar_index)/'Colombia-IO-Data'!$AP38","v":6.6348325025460578E-2},{"$f":"(AP289*'Default-Data'!$F$19/general_dollar_index)/'Colombia-IO-Data'!$AP38","v":0.16238773719805935},null,null,null,null,null,null,null,null,null,null,null,null,"DOM_C70: Real estate activities",{"$f":"'General Impact Estimates'!C35","v":0},null,null,5335.8010614502773,17647.80605905057,{"$f":"BG289*'Mexico-IO-Data'!AQ38","v":0},{"$f":"BJ289*'Mexico-IO-Data'!$AQ38","v":4931.2704573111105},{"$f":"BK289*'Mexico-IO-Data'!$AQ38","v":16309.848072127766},{"$f":"BG289*'Mexico-IO-Data'!AR38","v":0},{"$f":"BJ289*'Mexico-IO-Data'!$AR38","v":70.649619260837071},{"$f":"BK289*'Mexico-IO-Data'!$AR38","v":233.66890266372332},{"$f":"(BO289*'Default-Data'!$F$19/general_dollar_index)/'Mexico-IO-Data'!$AS38","v":0},{"$f":"(BP289*'Default-Data'!$F$19/general_dollar_index)/'Mexico-IO-Data'!$AS38","v":3.1215463268900349E-2},{"$f":"(BQ289*'Default-Data'!$F$19/general_dollar_index)/'Mexico-IO-Data'!$AS38","v":0.1032430623759498},null,null,null,null,null,null,null,null,null,null,null,null,"TTL_C70: Real estate activities",{"$f":"'General Impact Estimates'!C35","v":0},null,null,5013.2360736798437,19645.666726334734,{"$f":"CH289*'Philippines-IO-Data'!$AN38","v":0},{"$f":"CK289*'Philippines-IO-Data'!$AN38","v":4068.0930120826897},{"$f":"CL289*'Philippines-IO-Data'!$AN38","v":15941.878330186857},{"$f":"CH289*'Philippines-IO-Data'!AO38","v":0},{"$f":"CK289*'Philippines-IO-Data'!$AO38","v":104.26319629930167},{"$f":"CL289*'Philippines-IO-Data'!$AO38","v":408.58239592435115},{"$f":"(CP289*'Default-Data'!$F$19/general_dollar_index)/'Philippines-IO-Data'!$AP38","v":0},{"$f":"(CQ289*'Default-Data'!$F$19/general_dollar_index)/'Philippines-IO-Data'!$AP38","v":2.7205981463438875E-2},{"$f":"(CR289*'Default-Data'!$F$19/general_dollar_index)/'Philippines-IO-Data'!$AP38","v":0.10661369960206937},null,null,null,null,null,null,null,null,null,null,null,null,"DOM_C70: Real estate activities",{"$f":"'General Impact Estimates'!C35","v":0},null,null,15596.179743940629,58679.271825743846,{"$f":"DI289*'SouthAfrica-IO-Data'!AR38","v":0},{"$f":"DL289*'SouthAfrica-IO-Data'!$AR38","v":9171.0852445169949},{"$f":"DM289*'SouthAfrica-IO-Data'!$AR38","v":34505.411763362266},{"$f":"DI289*'SouthAfrica-IO-Data'!AS38","v":0},{"$f":"DL289*'SouthAfrica-IO-Data'!$AS38","v":563.61433850836488},{"$f":"DM289*'SouthAfrica-IO-Data'!$AS38","v":2120.5500011673275},{"$f":"(DQ289*'Default-Data'!$F$19/general_dollar_index)/'SouthAfrica-IO-Data'!$AT38","v":0},{"$f":"(DR289*'Default-Data'!$F$19/general_dollar_index)/'SouthAfrica-IO-Data'!$AT38","v":3.6232756711629059E-2},{"$f":"(DS289*'Default-Data'!$F$19/general_dollar_index)/'SouthAfrica-IO-Data'!$AT38","v":0.13632260046911523},null,null,null,null,null,null,null,null,null,null,null,null,"FIRE",{"$f":"'General Impact Estimates'!C35","v":0},null,null,30052.011965835773,28512.291571241389,{"$f":"EJ289*'Zambia-IO-Data'!BO36","v":0},{"$f":"EM289*'Zambia-IO-Data'!$BO36","v":6260.6955202195359},{"$f":"EN289*'Zambia-IO-Data'!$BO36","v":5939.9276266160559},{"$f":"EJ289*'Zambia-IO-Data'!BN36","v":0},{"$f":"EM289*'Zambia-IO-Data'!$BN36","v":1491.8460635949814},{"$f":"EN289*'Zambia-IO-Data'!$BN36","v":1415.4110544407229},{"$f":"(ER289*'Default-Data'!$F$19/general_dollar_index)/'Zambia-IO-Data'!$BP36","v":0},{"$f":"(ES289*'Default-Data'!$F$19/general_dollar_index)/'Zambia-IO-Data'!$BP36","v":1.5251393839009459},{"$f":"(ET289*'Default-Data'!$F$19/general_dollar_index)/'Zambia-IO-Data'!$BP36","v":1.4469985853194394},null,null,null,null,null,null,null,null,null,null,null,null,"TTL_C70: Real estate activities",{"$f":"'General Impact Estimates'!C35","v":0},null,null,10234.236398778248,34255.148303805894,{"$f":"FK289*CustomRegion1!C34","v":0},{"$f":"FN289*CustomRegion1!$C34","v":8304.7805780492217},{"$f":"FO289*CustomRegion1!$C34","v":27797.04115156105},{"$f":"FK289*CustomRegion1!D34","v":0},{"$f":"FN289*CustomRegion1!$D34","v":212.84738698451707},{"$f":"FO289*CustomRegion1!$D34","v":712.4243102399513},{"$f":"(FT289*'Default-Data'!$C$58/general_dollar_index)/CustomRegion1!$E34","v":5.5771537394399169E-2},{"$f":"(FU289*'Default-Data'!$C$58/general_dollar_index)/CustomRegion1!$E34","v":0.18667365205717434},{"$f":"(FV289*'Default-Data'!$C$58/general_dollar_index)/CustomRegion1!$E34","v":1.4613589705760051E-5},null,null,null,null,null,null,null,null,null,null,null,null,"C64 Post and telecommunications",{"$f":"'General Impact Estimates'!C35","v":0},null,null,9298.3797731994291,21571.14925908178,{"$f":"GL289*CustomRegion2!C38","v":0},{"$f":"GO289*CustomRegion2!$C38","v":5716.3137706732987},{"$f":"GP289*CustomRegion2!$C38","v":13261.176739021288},{"$f":"GL289*CustomRegion2!D38","v":0},{"$f":"GO289*CustomRegion2!$D38","v":1564.3619971452715},{"$f":"GP289*CustomRegion2!$D38","v":3629.1361461615966},{"$f":"(GT289*'Default-Data'!$C$59/general_dollar_index)/CustomRegion2!$E38","v":0},{"$f":"(GU289*'Default-Data'!$C$59/general_dollar_index)/CustomRegion2!$E38","v":0.13065473395814783},{"$f":"(GV289*'Default-Data'!$C$59/general_dollar_index)/CustomRegion2!$E38","v":0.30310364131826256},null,null,null,null,null,null,null,null,null,null,null,null,"FIRE",{"$f":"'General Impact Estimates'!C35","v":0},null,null,30052.011965835773,28512.291571241389,{"$f":"HM289*CustomRegion3!D37","v":0},{"$f":"HP289*CustomRegion3!$D37","v":6260.6955202195359},{"$f":"HQ289*CustomRegion3!$D37","v":5939.9276266160559},{"$f":"HM289*CustomRegion3!E37","v":0},{"$f":"HP289*CustomRegion3!$E37","v":1491.8460635949814},{"$f":"HQ289*CustomRegion3!$E37","v":1415.4110544407229},{"$f":"(HU289*'Default-Data'!$C$60/general_dollar_index)/CustomRegion3!$F37","v":0},{"$f":"(HV289*'Default-Data'!$C$60/general_dollar_index)/CustomRegion3!$F37","v":1.531316397995057},{"$f":"(HW289*'Default-Data'!$C$60/general_dollar_index)/CustomRegion3!$F37","v":1.4528591189533002}]
[null,null,null,null,null,null,null,null,null,null,null,null,null,null,null,null,null,null,null,null,null,null,null,null,null,null,null,null,null,289,"TTL_C71: Renting of machinery and equipment",{"$f":"'General Impact Estimates'!C36","v":0},null,null,1405.8990734313559,455.5443582454609,{"$f":"'Colombia-IO-Data'!$AN39*Calculations!AF290","v":0},{"$f":"AI290*'Colombia-IO-Data'!$AN39","v":1014.5693489769179},{"$f":"AJ290*'Colombia-IO-Data'!$AN39","v":328.74432575530926},{"$f":"AK290*'Colombia-IO-Data'!$AO39","v":0},{"$f":"AL290*'Colombia-IO-Data'!$AO39","v":387.39163181177315},{"$f":"AM290*'Colombia-IO-Data'!$AO39","v":125.52399787321757},{"$f":"(AN290*'Default-Data'!$F$19/general_dollar_index)/'Colombia-IO-Data'!$AP39","v":0},{"$f":"(AO290*'Default-Data'!$F$19/general_dollar_index)/'Colombia-IO-Data'!$AP39","v":8.9377223878653475E-2},{"$f":"(AP290*'Default-Data'!$F$19/general_dollar_index)/'Colombia-IO-Data'!$AP39","v":2.8960322161809885E-2},null,null,null,null,null,null,null,null,null,null,null,null,"DOM_C71: Renting of machinery and equipment",{"$f":"'General Impact Estimates'!C36","v":0},null,null,3266.783265971304,450.28244072157759,{"$f":"BG290*'Mexico-IO-Data'!AQ39","v":0},{"$f":"BJ290*'Mexico-IO-Data'!$AQ39","v":2687.5780934932386},{"$f":"BK290*'Mexico-IO-Data'!$AQ39","v":370.44674379650445},{"$f":"BG290*'Mexico-IO-Data'!AR39","v":0},{"$f":"BJ290*'Mexico-IO-Data'!$AR39","v":122.31477821257948},{"$f":"BK290*'Mexico-IO-Data'!$AR39","v":16.85945849043128},{"$f":"(BO290*'Default-Data'!$F$19/general_dollar_index)/'Mexico-IO-Data'!$AS39","v":0},{"$f":"(BP290*'Default-Data'!$F$19/general_dollar_index)/'Mexico-IO-Data'!$AS39","v":5.4042930542089231E-2},{"$f":"(BQ290*'Default-Data'!$F$19/general_dollar_index)/'Mexico-IO-Data'!$AS39","v":7.449096155757149E-3},null,null,null,null,null,null,null,null,null,null,null,null,"TTL_C71: Renting of machinery and equipment",{"$f":"'General Impact Estimates'!C36","v":0},null,null,704.98789973225178,376.77480824480392,{"$f":"CH290*'Philippines-IO-Data'!$AN39","v":0},{"$f":"CK290*'Philippines-IO-Data'!$AN39","v":356.42104365253459},{"$f":"CL290*'Philippines-IO-Data'!$AN39","v":190.48620611445807},{"$f":"CH290*'Philippines-IO-Data'!AO39","v":0},{"$f":"CK290*'Philippines-IO-Data'!$AO39","v":97.431693941278624},{"$f":"CL290*'Philippines-IO-Data'!$AO39","v":52.0715430940499},{"$f":"(CP290*'Default-Data'!$F$19/general_dollar_index)/'Philippines-IO-Data'!$AP39","v":0},{"$f":"(CQ290*'Default-Data'!$F$19/general_dollar_index)/'Philippines-IO-Data'!$AP39","v":2.5423399180172931E-2},{"$f":"(CR290*'Default-Data'!$F$19/general_dollar_index)/'Philippines-IO-Data'!$AP39","v":1.3587320228728385E-2},null,null,null,null,null,null,null,null,null,null,null,null,"DOM_C71: Renting of machinery and equipment",{"$f":"'General Impact Estimates'!C36","v":0},null,null,2064.7726965376414,3598.5051467904927,{"$f":"DI290*'SouthAfrica-IO-Data'!AR39","v":0},{"$f":"DL290*'SouthAfrica-IO-Data'!$AR39","v":880.59055892590516},{"$f":"DM290*'SouthAfrica-IO-Data'!$AR39","v":1534.7014534934876},{"$f":"DI290*'SouthAfrica-IO-Data'!AS39","v":0},{"$f":"DL290*'SouthAfrica-IO-Data'!$AS39","v":291.25543672770368},{"$f":"DM290*'SouthAfrica-IO-Data'!$AS39","v":507.60269634176052},{"$f":"(DQ290*'Default-Data'!$F$19/general_dollar_index)/'SouthAfrica-IO-Data'!$AT39","v":0},{"$f":"(DR290*'Default-Data'!$F$19/general_dollar_index)/'SouthAfrica-IO-Data'!$AT39","v":1.8723773791531277E-2},{"$f":"(DS290*'Default-Data'!$F$19/general_dollar_index)/'SouthAfrica-IO-Data'!$AT39","v":3.26319679009461E-2},null,null,null,null,null,null,null,null,null,null,null,null,"PUBLIC",{"$f":"'General Impact Estimates'!C36","v":0},null,null,1170.550407877324,23536.177003710382,{"$f":"EJ290*'Zambia-IO-Data'!BO37","v":0},{"$f":"EM290*'Zambia-IO-Data'!$BO37","v":250.68441174909483},{"$f":"EN290*'Zambia-IO-Data'!$BO37","v":5040.4943241163328},{"$f":"EJ290*'Zambia-IO-Data'!BN37","v":0},{"$f":"EM290*'Zambia-IO-Data'!$BN37","v":163.06258633183381},{"$f":"EN290*'Zambia-IO-Data'!$BN37","v":3278.6882724242855},{"$f":"(ER290*'Default-Data'!$F$19/general_dollar_index)/'Zambia-IO-Data'!$BP37","v":0},{"$f":"(ES290*'Default-Data'!$F$19/general_dollar_index)/'Zambia-IO-Data'!$BP37","v":0.39206989008306137},{"$f":"(ET290*'Default-Data'!$F$19/general_dollar_index)/'Zambia-IO-Data'!$BP37","v":7.8833224684052237},null,null,null,null,null,null,null,null,null,null,null,null,"TTL_C71: Renting of machinery and equipment",{"$f":"'General Impact Estimates'!C36","v":0},null,null,3564.8081195065474,2075.9181694796866,{"$f":"FK290*CustomRegion1!C35","v":0},{"$f":"FN290*CustomRegion1!$C35","v":1802.2616145016179},{"$f":"FO290*CustomRegion1!$C35","v":1049.522865263669},{"$f":"FK290*CustomRegion1!D35","v":0},{"$f":"FN290*CustomRegion1!$D35","v":492.66844692094435},{"$f":"FO290*CustomRegion1!$D35","v":286.89885856580071},{"$f":"(FT290*'Default-Data'!$C$58/general_dollar_index)/CustomRegion1!$E35","v":0.12909191463313913},{"$f":"(FU290*'Default-Data'!$C$58/general_dollar_index)/CustomRegion1!$E35","v":7.5174944102447072E-2},{"$f":"(FV290*'Default-Data'!$C$58/general_dollar_index)/CustomRegion1!$E35","v":3.3825430728921377E-5},null,null,null,null,null,null,null,null,null,null,null,null,"C65T67 Finance and insurance",{"$f":"'General Impact Estimates'!C36","v":0},null,null,23343.352789731245,19223.754893790086,{"$f":"GL290*CustomRegion2!C39","v":0},{"$f":"GO290*CustomRegion2!$C39","v":14440.914388412053},{"$f":"GP290*CustomRegion2!$C39","v":11892.404709196704},{"$f":"GL290*CustomRegion2!D39","v":0},{"$f":"GO290*CustomRegion2!$D39","v":4519.7051615709452},{"$f":"GP290*CustomRegion2!$D39","v":3722.07475939184},{"$f":"(GT290*'Default-Data'!$C$59/general_dollar_index)/CustomRegion2!$E39","v":0},{"$f":"(GU290*'Default-Data'!$C$59/general_dollar_index)/CustomRegion2!$E39","v":0.35361104757682915},{"$f":"(GV290*'Default-Data'!$C$59/general_dollar_index)/CustomRegion2!$E39","v":0.2912063304523948},null,null,null,null,null,null,null,null,null,null,null,null,"PUBLIC",{"$f":"'General Impact Estimates'!C36","v":0},null,null,1170.550407877324,23536.177003710382,{"$f":"HM290*CustomRegion3!D38","v":0},{"$f":"HP290*CustomRegion3!$D38","v":250.68441174909483},{"$f":"HQ290*CustomRegion3!$D38","v":5040.4943241163328},{"$f":"HM290*CustomRegion3!E38","v":0},{"$f":"HP290*CustomRegion3!$E38","v":163.06258633183381},{"$f":"HQ290*CustomRegion3!$E38","v":3278.6882724242855},{"$f":"(HU290*'Default-Data'!$C$60/general_dollar_index)/CustomRegion3!$F38","v":0},{"$f":"(HV290*'Default-Data'!$C$60/general_dollar_index)/CustomRegion3!$F38","v":0.39365782444662439},{"$f":"(HW290*'Default-Data'!$C$60/general_dollar_index)/CustomRegion3!$F38","v":7.9152509560633222}]
[null,null,null,null,null,null,null,null,null,null,null,null,null,null,null,null,null,null,null,null,null,null,null,null,null,null,null,null,null,290,"TTL_C72: Computer and related activities",{"$f":"'General Impact Estimates'!C37","v":0},null,null,4350.977178058426,1790.75502224717,{"$f":"'Colombia-IO-Data'!$AN40*Calculations!AF291","v":0},{"$f":"AI291*'Colombia-IO-Data'!$AN40","v":3105.8982779776493},{"$f":"AJ291*'Colombia-IO-Data'!$AN40","v":1278.3112188970956},{"$f":"AK291*'Colombia-IO-Data'!$AO40","v":0},{"$f":"AL291*'Colombia-IO-Data'!$AO40","v":1198.9006457788728},{"$f":"AM291*'Colombia-IO-Data'!$AO40","v":493.43797145861799},{"$f":"(AN291*'Default-Data'!$F$19/general_dollar_index)/'Colombia-IO-Data'!$AP40","v":0},{"$f":"(AO291*'Default-Data'!$F$19/general_dollar_index)/'Colombia-IO-Data'!$AP40","v":0.11828939597324301},{"$f":"(AP291*'Default-Data'!$F$19/general_dollar_index)/'Colombia-IO-Data'!$AP40","v":4.8685001379895676E-2},null,null,null,null,null,null,null,null,null,null,null,null,"DOM_C72: Computer and related activities",{"$f":"'General Impact Estimates'!C37","v":0},null,null,279.05895008929872,124.30833146431934,{"$f":"BG291*'Mexico-IO-Data'!AQ40","v":0},{"$f":"BJ291*'Mexico-IO-Data'!$AQ40","v":197.75824193242082},{"$f":"BK291*'Mexico-IO-Data'!$AQ40","v":88.092487555299257},{"$f":"BG291*'Mexico-IO-Data'!AR40","v":0},{"$f":"BJ291*'Mexico-IO-Data'!$AR40","v":116.57170782826405},{"$f":"BK291*'Mexico-IO-Data'!$AR40","v":51.92750310083435},{"$f":"(BO291*'Default-Data'!$F$19/general_dollar_index)/'Mexico-IO-Data'!$AS40","v":0},{"$f":"(BP291*'Default-Data'!$F$19/general_dollar_index)/'Mexico-IO-Data'!$AS40","v":9.736010911248448E-3},{"$f":"(BQ291*'Default-Data'!$F$19/general_dollar_index)/'Mexico-IO-Data'!$AS40","v":4.3369591661848407E-3},null,null,null,null,null,null,null,null,null,null,null,null,"TTL_C72: Computer and related activities",{"$f":"'General Impact Estimates'!C37","v":0},null,null,2764.4633905042256,1292.6647497901158,{"$f":"CH291*'Philippines-IO-Data'!$AN40","v":0},{"$f":"CK291*'Philippines-IO-Data'!$AN40","v":1381.3162342402725},{"$f":"CL291*'Philippines-IO-Data'!$AN40","v":645.90430477342852},{"$f":"CH291*'Philippines-IO-Data'!AO40","v":0},{"$f":"CK291*'Philippines-IO-Data'!$AO40","v":481.76135748086716},{"$f":"CL291*'Philippines-IO-Data'!$AO40","v":225.27190150742558},{"$f":"(CP291*'Default-Data'!$F$19/general_dollar_index)/'Philippines-IO-Data'!$AP40","v":0},{"$f":"(CQ291*'Default-Data'!$F$19/general_dollar_index)/'Philippines-IO-Data'!$AP40","v":0.12570869709193258},{"$f":"(CR291*'Default-Data'!$F$19/general_dollar_index)/'Philippines-IO-Data'!$AP40","v":5.8781462627054498E-2},null,null,null,null,null,null,null,null,null,null,null,null,"DOM_C72: Computer and related activities",{"$f":"'General Impact Estimates'!C37","v":0},null,null,329.2076212291679,571.21770803547963,{"$f":"DI291*'SouthAfrica-IO-Data'!AR40","v":0},{"$f":"DL291*'SouthAfrica-IO-Data'!$AR40","v":164.48319228731387},{"$f":"DM291*'SouthAfrica-IO-Data'!$AR40","v":285.39956565377963},{"$f":"DI291*'SouthAfrica-IO-Data'!AS40","v":0},{"$f":"DL291*'SouthAfrica-IO-Data'!$AS40","v":124.35749541546365},{"$f":"DM291*'SouthAfrica-IO-Data'!$AS40","v":215.77630324300665},{"$f":"(DQ291*'Default-Data'!$F$19/general_dollar_index)/'SouthAfrica-IO-Data'!$AT40","v":0},{"$f":"(DR291*'Default-Data'!$F$19/general_dollar_index)/'SouthAfrica-IO-Data'!$AT40","v":7.9945000841903664E-3},{"$f":"(DS291*'Default-Data'!$F$19/general_dollar_index)/'SouthAfrica-IO-Data'!$AT40","v":1.3871489359603159E-2},null,null,null,null,null,null,null,null,null,null,null,null,"LNONE",{"$f":"'General Impact Estimates'!C37","v":0},null,null,{"$f":"'General Impact Estimates'!F37","v":0},187907.54878387216,{"$f":"EJ291*'Zambia-IO-Data'!BO38","v":0},{"$f":"EM291*'Zambia-IO-Data'!$BO38","v":0},{"$f":"EN291*'Zambia-IO-Data'!$BO38","v":0},{"$f":"EJ291*'Zambia-IO-Data'!BN38","v":0},{"$f":"EM291*'Zambia-IO-Data'!$BN38","v":0},{"$f":"EN291*'Zambia-IO-Data'!$BN38","v":0},0,0,0,null,null,null,null,null,null,null,null,null,null,null,null,"TTL_C72: Computer and related activities",{"$f":"'General Impact Estimates'!C37","v":0},null,null,15271.962419343379,6295.4090026985632,{"$f":"FK291*CustomRegion1!C36","v":0},{"$f":"FN291*CustomRegion1!$C36","v":7630.9238498176137},{"$f":"FO291*CustomRegion1!$C36","v":3145.6197562535949},{"$f":"FK291*CustomRegion1!D36","v":0},{"$f":"FN291*CustomRegion1!$D36","v":2661.4356232070377},{"$f":"FO291*CustomRegion1!$D36","v":1097.0971066048905},{"$f":"(FT291*'Default-Data'!$C$58/general_dollar_index)/CustomRegion1!$E36","v":0.69736518021372085},{"$f":"(FU291*'Default-Data'!$C$58/general_dollar_index)/CustomRegion1!$E36","v":0.28746790446035697},{"$f":"(FV291*'Default-Data'!$C$58/general_dollar_index)/CustomRegion1!$E36","v":1.8272776930388442E-4},null,null,null,null,null,null,null,null,null,null,null,null,"C70 Real estate activities",{"$f":"'General Impact Estimates'!C37","v":0},null,null,12819.670058615067,63966.306683984018,{"$f":"GL291*CustomRegion2!C40","v":0},{"$f":"GO291*CustomRegion2!$C40","v":11482.200774579162},{"$f":"GP291*CustomRegion2!$C40","v":57292.736302540696},{"$f":"GL291*CustomRegion2!D40","v":0},{"$f":"GO291*CustomRegion2!$D40","v":113.01789749203957},{"$f":"GP291*CustomRegion2!$D40","v":563.92539423404389},{"$f":"(GT291*'Default-Data'!$C$59/general_dollar_index)/CustomRegion2!$E40","v":0},{"$f":"(GU291*'Default-Data'!$C$59/general_dollar_index)/CustomRegion2!$E40","v":4.9935244730281457E-2},{"$f":"(GV291*'Default-Data'!$C$59/general_dollar_index)/CustomRegion2!$E40","v":0.24916188670631456},null,null,null,null,null,null,null,null,null,null,null,null,"LNONE",{"$f":"'General Impact Estimates'!C37","v":0},null,null,0,187907.54878387216,{"$f":"HM291*CustomRegion3!D39","v":0},{"$f":"HP291*CustomRegion3!$D39","v":0},{"$f":"HQ291*CustomRegion3!$D39","v":0},{"$f":"HM291*CustomRegion3!E39","v":0},{"$f":"HP291*CustomRegion3!$E39","v":0},{"$f":"HQ291*CustomRegion3!$E39","v":0},0,0,0]
[null,null,null,null,null,null,null,null,null,null,null,null,null,null,null,null,null,null,null,null,null,null,null,null,null,null,null,null,null,291,"TTL_C73T74: R&D and other business activities",{"$f":"'General Impact Estimates'!C38","v":0},null,null,42162.640690474487,15543.314240127031,{"$f":"'Colombia-IO-Data'!$AN41*Calculations!AF292","v":0},{"$f":"AI292*'Colombia-IO-Data'!$AN41","v":30749.958347791435},{"$f":"AJ292*'Colombia-IO-Data'!$AN41","v":11336.013533386704},{"$f":"AK292*'Colombia-IO-Data'!$AO41","v":0},{"$f":"AL292*'Colombia-IO-Data'!$AO41","v":11530.870165252083},{"$f":"AM292*'Colombia-IO-Data'!$AO41","v":4250.8708066074805},{"$f":"(AN292*'Default-Data'!$F$19/general_dollar_index)/'Colombia-IO-Data'!$AP41","v":0},{"$f":"(AO292*'Default-Data'!$F$19/general_dollar_index)/'Colombia-IO-Data'!$AP41","v":1.1376919944917039},{"$f":"(AP292*'Default-Data'!$F$19/general_dollar_index)/'Colombia-IO-Data'!$AP41","v":0.41941168506688287},null,null,null,null,null,null,null,null,null,null,null,null,"DOM_C73T74: R&D and other business activities",{"$f":"'General Impact Estimates'!C38","v":0},null,null,39181.410571375418,9559.2978328606987,{"$f":"BG292*'Mexico-IO-Data'!AQ41","v":0},{"$f":"BJ292*'Mexico-IO-Data'!$AQ41","v":29430.94702832355},{"$f":"BK292*'Mexico-IO-Data'!$AQ41","v":7180.425207877227},{"$f":"BG292*'Mexico-IO-Data'!AR41","v":0},{"$f":"BJ292*'Mexico-IO-Data'!$AR41","v":13018.022629086548},{"$f":"BK292*'Mexico-IO-Data'!$AR41","v":3176.0764528797345},{"$f":"(BO292*'Default-Data'!$F$19/general_dollar_index)/'Mexico-IO-Data'!$AS41","v":0},{"$f":"(BP292*'Default-Data'!$F$19/general_dollar_index)/'Mexico-IO-Data'!$AS41","v":3.5101988249126972},{"$f":"(BQ292*'Default-Data'!$F$19/general_dollar_index)/'Mexico-IO-Data'!$AS41","v":0.85640193986309077},null,null,null,null,null,null,null,null,null,null,null,null,"TTL_C73T74: R&D and other business activities",{"$f":"'General Impact Estimates'!C38","v":0},null,null,8176.6038441296114,4862.6412168845691,{"$f":"CH292*'Philippines-IO-Data'!$AN41","v":0},{"$f":"CK292*'Philippines-IO-Data'!$AN41","v":3961.5629199328168},{"$f":"CL292*'Philippines-IO-Data'!$AN41","v":2355.9486927542948},{"$f":"CH292*'Philippines-IO-Data'!AO41","v":0},{"$f":"CK292*'Philippines-IO-Data'!$AO41","v":1550.3024853843494},{"$f":"CL292*'Philippines-IO-Data'!$AO41","v":921.96771517563911},{"$f":"(CP292*'Default-Data'!$F$19/general_dollar_index)/'Philippines-IO-Data'!$AP41","v":0},{"$f":"(CQ292*'Default-Data'!$F$19/general_dollar_index)/'Philippines-IO-Data'!$AP41","v":0.40452913565985049},{"$f":"(CR292*'Default-Data'!$F$19/general_dollar_index)/'Philippines-IO-Data'!$AP41","v":0.24057421467257981},null,null,null,null,null,null,null,null,null,null,null,null,"DOM_C73T74: R&D and other business activities",{"$f":"'General Impact Estimates'!C38","v":0},null,null,39102.446300594791,79438.282679650583,{"$f":"DI292*'SouthAfrica-IO-Data'!AR41","v":0},{"$f":"DL292*'SouthAfrica-IO-Data'!$AR41","v":16659.498898051286},{"$f":"DM292*'SouthAfrica-IO-Data'!$AR41","v":33844.480536876159},{"$f":"DI292*'SouthAfrica-IO-Data'!AS41","v":0},{"$f":"DL292*'SouthAfrica-IO-Data'!$AS41","v":10754.735126257601},{"$f":"DM292*'SouthAfrica-IO-Data'!$AS41","v":21848.701805938508},{"$f":"(DQ292*'Default-Data'!$F$19/general_dollar_index)/'SouthAfrica-IO-Data'!$AT41","v":0},{"$f":"(DR292*'Default-Data'!$F$19/general_dollar_index)/'SouthAfrica-IO-Data'!$AT41","v":0.69138358395741828},{"$f":"(DS292*'Default-Data'!$F$19/general_dollar_index)/'SouthAfrica-IO-Data'!$AT41","v":1.4045751552286869},null,null,null,null,null,null,null,null,null,null,null,null,"LPRIM",{"$f":"'General Impact Estimates'!C38","v":0},null,null,{"$f":"'General Impact Estimates'!F38","v":0},135453.64755128132,{"$f":"EJ292*'Zambia-IO-Data'!BO39","v":0},{"$f":"EM292*'Zambia-IO-Data'!$BO39","v":0},{"$f":"EN292*'Zambia-IO-Data'!$BO39","v":0},{"$f":"EJ292*'Zambia-IO-Data'!BN39","v":0},{"$f":"EM292*'Zambia-IO-Data'!$BN39","v":0},{"$f":"EN292*'Zambia-IO-Data'!$BN39","v":0},0,0,0,null,null,null,null,null,null,null,null,null,null,null,null,"TTL_C73T74: R&D and other business activities",{"$f":"'General Impact Estimates'!C38","v":0},null,null,22879.177367223208,10920.179873292836,{"$f":"FK292*CustomRegion1!C37","v":0},{"$f":"FN292*CustomRegion1!$C37","v":11084.956838361515},{"$f":"FO292*CustomRegion1!$C37","v":5290.8249549221764},{"$f":"FK292*CustomRegion1!D37","v":0},{"$f":"FN292*CustomRegion1!$D37","v":4337.9435046765675},{"$f":"FO292*CustomRegion1!$D37","v":2070.4906732841923},{"$f":"(FT292*'Default-Data'!$C$58/general_dollar_index)/CustomRegion1!$E37","v":1.1366537396273457},{"$f":"(FU292*'Default-Data'!$C$58/general_dollar_index)/CustomRegion1!$E37","v":0.54252227215842619},{"$f":"(FV292*'Default-Data'!$C$58/general_dollar_index)/CustomRegion1!$E37","v":2.9783276854942781E-4},null,null,null,null,null,null,null,null,null,null,null,null,"C71 Renting of machinery and equipment",{"$f":"'General Impact Estimates'!C38","v":0},null,null,6989.2756180949946,3889.0282528534663,{"$f":"GL292*CustomRegion2!C41","v":0},{"$f":"GO292*CustomRegion2!$C41","v":5936.1323682558632},{"$f":"GP292*CustomRegion2!$C41","v":3303.0299210202415},{"$f":"GL292*CustomRegion2!D41","v":0},{"$f":"GO292*CustomRegion2!$D41","v":266.13846402098216},{"$f":"GP292*CustomRegion2!$D41","v":148.0868779976274},{"$f":"(GT292*'Default-Data'!$C$59/general_dollar_index)/CustomRegion2!$E41","v":0},{"$f":"(GU292*'Default-Data'!$C$59/general_dollar_index)/CustomRegion2!$E41","v":0.11758924584457971},{"$f":"(GV292*'Default-Data'!$C$59/general_dollar_index)/CustomRegion2!$E41","v":6.5429942144125508E-2},null,null,null,null,null,null,null,null,null,null,null,null,"LPRIM",{"$f":"'General Impact Estimates'!C38","v":0},null,null,0,135453.64755128132,{"$f":"HM292*CustomRegion3!D40","v":0},{"$f":"HP292*CustomRegion3!$D40","v":0},{"$f":"HQ292*CustomRegion3!$D40","v":0},{"$f":"HM292*CustomRegion3!E40","v":0},{"$f":"HP292*CustomRegion3!$E40","v":0},{"$f":"HQ292*CustomRegion3!$E40","v":0},0,0,0]
[null,null,null,null,null,null,null,null,null,null,null,null,null,null,null,null,null,null,null,null,null,null,null,null,null,null,null,null,null,292,"TTL_C75: Public administration and defence; compulsory social security",{"$f":"'General Impact Estimates'!C39","v":0},null,null,23.963993547661786,30818.960371153833,{"$f":"'Colombia-IO-Data'!$AN42*Calculations!AF293","v":0},{"$f":"AI293*'Colombia-IO-Data'!$AN42","v":14.510520297754855},{"$f":"AJ293*'Colombia-IO-Data'!$AN42","v":18661.294876911878},{"$f":"AK293*'Colombia-IO-Data'!$AO42","v":0},{"$f":"AL293*'Colombia-IO-Data'!$AO42","v":12.18239369409001},{"$f":"AM293*'Colombia-IO-Data'!$AO42","v":15667.201200719219},{"$f":"(AN293*'Default-Data'!$F$19/general_dollar_index)/'Colombia-IO-Data'!$AP42","v":0},{"$f":"(AO293*'Default-Data'!$F$19/general_dollar_index)/'Colombia-IO-Data'!$AP42","v":1.2019744894256573E-3},{"$f":"(AP293*'Default-Data'!$F$19/general_dollar_index)/'Colombia-IO-Data'!$AP42","v":1.5458026260552726},null,null,null,null,null,null,null,null,null,null,null,null,"DOM_C75: Public administration and defence; compulsory social security",{"$f":"'General Impact Estimates'!C39","v":0},null,null,21.764043609531083,12201.718020528622,{"$f":"BG293*'Mexico-IO-Data'!AQ42","v":0},{"$f":"BJ293*'Mexico-IO-Data'!$AQ42","v":15.596425410394895},{"$f":"BK293*'Mexico-IO-Data'!$AQ42","v":8743.9259174479339},{"$f":"BG293*'Mexico-IO-Data'!AR42","v":0},{"$f":"BJ293*'Mexico-IO-Data'!$AR42","v":15.375404791520914},{"$f":"BK293*'Mexico-IO-Data'!$AR42","v":8620.0136832782664},{"$f":"(BO293*'Default-Data'!$F$19/general_dollar_index)/'Mexico-IO-Data'!$AS42","v":0},{"$f":"(BP293*'Default-Data'!$F$19/general_dollar_index)/'Mexico-IO-Data'!$AS42","v":1.097590260090814E-2},{"$f":"(BQ293*'Default-Data'!$F$19/general_dollar_index)/'Mexico-IO-Data'!$AS42","v":6.1534920146189371},null,null,null,null,null,null,null,null,null,null,null,null,"TTL_C75: Public administration and defence; compulsory social security",{"$f":"'General Impact Estimates'!C39","v":0},null,null,128.37462855354678,16649.249728002356,{"$f":"CH293*'Philippines-IO-Data'!$AN42","v":0},{"$f":"CK293*'Philippines-IO-Data'!$AN42","v":71.506974088480746},{"$f":"CL293*'Philippines-IO-Data'!$AN42","v":9273.9311677643564},{"$f":"CH293*'Philippines-IO-Data'!AO42","v":0},{"$f":"CK293*'Philippines-IO-Data'!$AO42","v":60.731404512301602},{"$f":"CL293*'Philippines-IO-Data'!$AO42","v":7876.4186619311749},{"$f":"(CP293*'Default-Data'!$F$19/general_dollar_index)/'Philippines-IO-Data'!$AP42","v":0},{"$f":"(CQ293*'Default-Data'!$F$19/general_dollar_index)/'Philippines-IO-Data'!$AP42","v":1.5846986511589917E-2},{"$f":"(CR293*'Default-Data'!$F$19/general_dollar_index)/'Philippines-IO-Data'!$AP42","v":2.0552381638065969},null,null,null,null,null,null,null,null,null,null,null,null,"DOM_C75: Public administration and defence; compulsory social security",{"$f":"'General Impact Estimates'!C39","v":0},null,null,84.37272770649264,113544.95124583381,{"$f":"DI293*'SouthAfrica-IO-Data'!AR42","v":0},{"$f":"DL293*'SouthAfrica-IO-Data'!$AR42","v":52.225235394418576},{"$f":"DM293*'SouthAfrica-IO-Data'!$AR42","v":70282.328992489522},{"$f":"DI293*'SouthAfrica-IO-Data'!AS42","v":0},{"$f":"DL293*'SouthAfrica-IO-Data'!$AS42","v":46.06407628911824},{"$f":"DM293*'SouthAfrica-IO-Data'!$AS42","v":61990.923354132778},{"$f":"(DQ293*'Default-Data'!$F$19/general_dollar_index)/'SouthAfrica-IO-Data'!$AT42","v":0},{"$f":"(DR293*'Default-Data'!$F$19/general_dollar_index)/'SouthAfrica-IO-Data'!$AT42","v":2.8346695844425748E-3},{"$f":"(DS293*'Default-Data'!$F$19/general_dollar_index)/'SouthAfrica-IO-Data'!$AT42","v":3.8147684508108215},null,null,null,null,null,null,null,null,null,null,null,null,"LSECD",{"$f":"'General Impact Estimates'!C39","v":0},null,null,{"$f":"'General Impact Estimates'!F39","v":0},36120.758300343979,{"$f":"EJ293*'Zambia-IO-Data'!BO40","v":0},{"$f":"EM293*'Zambia-IO-Data'!$BO40","v":0},{"$f":"EN293*'Zambia-IO-Data'!$BO40","v":0},{"$f":"EJ293*'Zambia-IO-Data'!BN40","v":0},{"$f":"EM293*'Zambia-IO-Data'!$BN40","v":0},{"$f":"EN293*'Zambia-IO-Data'!$BN40","v":0},0,0,0,null,null,null,null,null,null,null,null,null,null,null,null,"TTL_C75: Public administration and defence; compulsory social security",{"$f":"'General Impact Estimates'!C39","v":0},null,null,329.42147016195935,28202.539143385326,{"$f":"FK293*CustomRegion1!C38","v":0},{"$f":"FN293*CustomRegion1!$C38","v":183.49367625422155},{"$f":"FO293*CustomRegion1!$C38","v":15709.320903033693},{"$f":"FK293*CustomRegion1!D38","v":0},{"$f":"FN293*CustomRegion1!$D38","v":155.84254291414115},{"$f":"FO293*CustomRegion1!$D38","v":13342.042990033116},{"$f":"(FT293*'Default-Data'!$C$58/general_dollar_index)/CustomRegion1!$E38","v":4.0834789343251472E-2},{"$f":"(FU293*'Default-Data'!$C$58/general_dollar_index)/CustomRegion1!$E38","v":3.4959614025726369},{"$f":"(FV293*'Default-Data'!$C$58/general_dollar_index)/CustomRegion1!$E38","v":1.0699774204957592E-5},null,null,null,null,null,null,null,null,null,null,null,null,"C72 Computer and related activities",{"$f":"'General Impact Estimates'!C39","v":0},null,null,292.2636455119686,310.30049191822883,{"$f":"GL293*CustomRegion2!C42","v":0},{"$f":"GO293*CustomRegion2!$C42","v":151.21025823430213},{"$f":"GP293*CustomRegion2!$C42","v":160.54209352994911},{"$f":"GL293*CustomRegion2!D42","v":0},{"$f":"GO293*CustomRegion2!$D42","v":99.056938639512467},{"$f":"GP293*CustomRegion2!$D42","v":105.17016830441125},{"$f":"(GT293*'Default-Data'!$C$59/general_dollar_index)/CustomRegion2!$E42","v":0},{"$f":"(GU293*'Default-Data'!$C$59/general_dollar_index)/CustomRegion2!$E42","v":8.273186122056006E-3},{"$f":"(GV293*'Default-Data'!$C$59/general_dollar_index)/CustomRegion2!$E42","v":8.7837600154067486E-3},null,null,null,null,null,null,null,null,null,null,null,null,"LSECD",{"$f":"'General Impact Estimates'!C39","v":0},null,null,0,36120.758300343979,{"$f":"HM293*CustomRegion3!D41","v":0},{"$f":"HP293*CustomRegion3!$D41","v":0},{"$f":"HQ293*CustomRegion3!$D41","v":0},{"$f":"HM293*CustomRegion3!E41","v":0},{"$f":"HP293*CustomRegion3!$E41","v":0},{"$f":"HQ293*CustomRegion3!$E41","v":0},0,0,0]
[null,null,null,null,null,null,null,null,null,null,null,null,null,null,null,null,null,null,null,null,null,null,null,null,null,null,null,null,null,293,"TTL_C80: Education",{"$f":"'General Impact Estimates'!C40","v":0},null,null,208.75917725655574,17952.26063293215,{"$f":"'Colombia-IO-Data'!$AN43*Calculations!AF294","v":0},{"$f":"AI294*'Colombia-IO-Data'!$AN43","v":164.5785586015877},{"$f":"AJ294*'Colombia-IO-Data'!$AN43","v":14152.945118082069},{"$f":"AK294*'Colombia-IO-Data'!$AO43","v":0},{"$f":"AL294*'Colombia-IO-Data'!$AO43","v":121.16186679361824},{"$f":"AM294*'Colombia-IO-Data'!$AO43","v":10419.32354800625},{"$f":"(AN294*'Default-Data'!$F$19/general_dollar_index)/'Colombia-IO-Data'!$AP43","v":0},{"$f":"(AO294*'Default-Data'!$F$19/general_dollar_index)/'Colombia-IO-Data'!$AP43","v":1.1954421818412364E-2},{"$f":"(AP294*'Default-Data'!$F$19/general_dollar_index)/'Colombia-IO-Data'!$AP43","v":1.0280213738168009},null,null,null,null,null,null,null,null,null,null,null,null,"DOM_C80: Education",{"$f":"'General Impact Estimates'!C40","v":0},null,null,183.65527415354632,10956.69074040572,{"$f":"BG294*'Mexico-IO-Data'!AQ43","v":0},{"$f":"BJ294*'Mexico-IO-Data'!$AQ43","v":164.77681155106171},{"$f":"BK294*'Mexico-IO-Data'!$AQ43","v":9830.420463970293},{"$f":"BG294*'Mexico-IO-Data'!AR43","v":0},{"$f":"BJ294*'Mexico-IO-Data'!$AR43","v":142.10016878999849},{"$f":"BK294*'Mexico-IO-Data'!$AR43","v":8477.554542156895},{"$f":"(BO294*'Default-Data'!$F$19/general_dollar_index)/'Mexico-IO-Data'!$AS43","v":0},{"$f":"(BP294*'Default-Data'!$F$19/general_dollar_index)/'Mexico-IO-Data'!$AS43","v":3.5561608111324902E-2},{"$f":"(BQ294*'Default-Data'!$F$19/general_dollar_index)/'Mexico-IO-Data'!$AS43","v":2.1215701215393969},null,null,null,null,null,null,null,null,null,null,null,null,"TTL_C80: Education",{"$f":"'General Impact Estimates'!C40","v":0},null,null,147.3178053102051,16145.215475463963,{"$f":"CH294*'Philippines-IO-Data'!$AN43","v":0},{"$f":"CK294*'Philippines-IO-Data'!$AN43","v":100.25919040690667},{"$f":"CL294*'Philippines-IO-Data'!$AN43","v":10987.851937561722},{"$f":"CH294*'Philippines-IO-Data'!AO43","v":0},{"$f":"CK294*'Philippines-IO-Data'!$AO43","v":69.737802166177332},{"$f":"CL294*'Philippines-IO-Data'!$AO43","v":7642.8768429406828},{"$f":"(CP294*'Default-Data'!$F$19/general_dollar_index)/'Philippines-IO-Data'!$AP43","v":0},{"$f":"(CQ294*'Default-Data'!$F$19/general_dollar_index)/'Philippines-IO-Data'!$AP43","v":1.8197076440929095E-2},{"$f":"(CR294*'Default-Data'!$F$19/general_dollar_index)/'Philippines-IO-Data'!$AP43","v":1.9942987851580292},null,null,null,null,null,null,null,null,null,null,null,null,"DOM_C80: Education",{"$f":"'General Impact Estimates'!C40","v":0},null,null,67.414982284491572,6414.3252231645683,{"$f":"DI294*'SouthAfrica-IO-Data'!AR43","v":0},{"$f":"DL294*'SouthAfrica-IO-Data'!$AR43","v":34.391433960774101},{"$f":"DM294*'SouthAfrica-IO-Data'!$AR43","v":3272.2376367981205},{"$f":"DI294*'SouthAfrica-IO-Data'!AS43","v":0},{"$f":"DL294*'SouthAfrica-IO-Data'!$AS43","v":17.447201109536635},{"$f":"DM294*'SouthAfrica-IO-Data'!$AS43","v":1660.0467486330615},{"$f":"(DQ294*'Default-Data'!$F$19/general_dollar_index)/'SouthAfrica-IO-Data'!$AT43","v":0},{"$f":"(DR294*'Default-Data'!$F$19/general_dollar_index)/'SouthAfrica-IO-Data'!$AT43","v":1.0736577025542034E-3},{"$f":"(DS294*'Default-Data'!$F$19/general_dollar_index)/'SouthAfrica-IO-Data'!$AT43","v":0.10215518048311664},null,null,null,null,null,null,null,null,null,null,null,null,"LPOST",{"$f":"'General Impact Estimates'!C40","v":0},null,null,{"$f":"'General Impact Estimates'!F40","v":0},30954.689685518315,{"$f":"EJ294*'Zambia-IO-Data'!BO41","v":0},{"$f":"EM294*'Zambia-IO-Data'!$BO41","v":0},{"$f":"EN294*'Zambia-IO-Data'!$BO41","v":0},{"$f":"EJ294*'Zambia-IO-Data'!BN41","v":0},{"$f":"EM294*'Zambia-IO-Data'!$BN41","v":0},{"$f":"EN294*'Zambia-IO-Data'!$BN41","v":0},0,0,0,null,null,null,null,null,null,null,null,null,null,null,null,"TTL_C80: Education",{"$f":"'General Impact Estimates'!C40","v":0},null,null,424.03225870239589,27345.261069599714,{"$f":"FK294*CustomRegion1!C39","v":0},{"$f":"FN294*CustomRegion1!$C39","v":288.58107731373605},{"$f":"FO294*CustomRegion1!$C39","v":18610.199429258337},{"$f":"FK294*CustomRegion1!D39","v":0},{"$f":"FN294*CustomRegion1!$D39","v":200.72982832725205},{"$f":"FO294*CustomRegion1!$D39","v":12944.792400610875},{"$f":"(FT294*'Default-Data'!$C$58/general_dollar_index)/CustomRegion1!$E39","v":5.2596422654411112E-2},{"$f":"(FU294*'Default-Data'!$C$58/general_dollar_index)/CustomRegion1!$E39","v":3.3918714420765692},{"$f":"(FV294*'Default-Data'!$C$58/general_dollar_index)/CustomRegion1!$E39","v":1.3781627270319709E-5},null,null,null,null,null,null,null,null,null,null,null,null,"C73 Research and development",{"$f":"'General Impact Estimates'!C40","v":0},null,null,0,0,{"$f":"GL294*CustomRegion2!C43","v":0},{"$f":"GO294*CustomRegion2!$C43","v":0},{"$f":"GP294*CustomRegion2!$C43","v":0},{"$f":"GL294*CustomRegion2!D43","v":0},{"$f":"GO294*CustomRegion2!$D43","v":0},{"$f":"GP294*CustomRegion2!$D43","v":0},{"$f":"(GT294*'Default-Data'!$C$59/general_dollar_index)/CustomRegion2!$E43","v":0},{"$f":"(GU294*'Default-Data'!$C$59/general_dollar_index)/CustomRegion2!$E43","v":0},{"$f":"(GV294*'Default-Data'!$C$59/general_dollar_index)/CustomRegion2!$E43","v":0},null,null,null,null,null,null,null,null,null,null,null,null,"LPOST",{"$f":"'General Impact Estimates'!C40","v":0},null,null,0,30954.689685518315,{"$f":"HM294*CustomRegion3!D42","v":0},{"$f":"HP294*CustomRegion3!$D42","v":0},{"$f":"HQ294*CustomRegion3!$D42","v":0},{"$f":"HM294*CustomRegion3!E42","v":0},{"$f":"HP294*CustomRegion3!$E42","v":0},{"$f":"HQ294*CustomRegion3!$E42","v":0},0,0,0]
[null,null,null,null,null,null,null,null,null,null,null,null,null,null,null,null,null,null,null,null,null,null,null,null,null,null,null,null,null,294,"TTL_C85: Health and social work",{"$f":"'General Impact Estimates'!C41","v":0},null,null,19.140650088460241,16931.965269648164,{"$f":"'Colombia-IO-Data'!$AN44*Calculations!AF295","v":0},{"$f":"AI295*'Colombia-IO-Data'!$AN44","v":7.5926819197723265},{"$f":"AJ295*'Colombia-IO-Data'!$AN44","v":6716.5444211624708},{"$f":"AK295*'Colombia-IO-Data'!$AO44","v":0},{"$f":"AL295*'Colombia-IO-Data'!$AO44","v":5.6380111488979079},{"$f":"AM295*'Colombia-IO-Data'!$AO44","v":4987.4277269496833},{"$f":"(AN295*'Default-Data'!$F$19/general_dollar_index)/'Colombia-IO-Data'!$AP44","v":0},{"$f":"(AO295*'Default-Data'!$F$19/general_dollar_index)/'Colombia-IO-Data'!$AP44","v":5.5627372930496411E-4},{"$f":"(AP295*'Default-Data'!$F$19/general_dollar_index)/'Colombia-IO-Data'!$AP44","v":0.4920839899104496},null,null,null,null,null,null,null,null,null,null,null,null,"DOM_C85: Health and social work",{"$f":"'General Impact Estimates'!C41","v":0},null,null,0,7971.3910576832413,{"$f":"BG295*'Mexico-IO-Data'!AQ44","v":0},{"$f":"BJ295*'Mexico-IO-Data'!$AQ44","v":0},{"$f":"BK295*'Mexico-IO-Data'!$AQ44","v":5952.7442025480295},{"$f":"BG295*'Mexico-IO-Data'!AR44","v":0},{"$f":"BJ295*'Mexico-IO-Data'!$AR44","v":0},{"$f":"BK295*'Mexico-IO-Data'!$AR44","v":4182.0478175878598},{"$f":"(BO295*'Default-Data'!$F$19/general_dollar_index)/'Mexico-IO-Data'!$AS44","v":0},{"$f":"(BP295*'Default-Data'!$F$19/general_dollar_index)/'Mexico-IO-Data'!$AS44","v":0},{"$f":"(BQ295*'Default-Data'!$F$19/general_dollar_index)/'Mexico-IO-Data'!$AS44","v":1.8950454698878492},null,null,null,null,null,null,null,null,null,null,null,null,"TTL_C85: Health and social work",{"$f":"'General Impact Estimates'!C41","v":0},null,null,343.09567198958416,7255.0539853898572,{"$f":"CH295*'Philippines-IO-Data'!$AN44","v":0},{"$f":"CK295*'Philippines-IO-Data'!$AN44","v":177.79339898476988},{"$f":"CL295*'Philippines-IO-Data'!$AN44","v":3759.5948103933615},{"$f":"CH295*'Philippines-IO-Data'!AO44","v":0},{"$f":"CK295*'Philippines-IO-Data'!$AO44","v":113.50512943391797},{"$f":"CL295*'Philippines-IO-Data'!$AO44","v":2400.1638869018957},{"$f":"(CP295*'Default-Data'!$F$19/general_dollar_index)/'Philippines-IO-Data'!$AP44","v":0},{"$f":"(CQ295*'Default-Data'!$F$19/general_dollar_index)/'Philippines-IO-Data'!$AP44","v":2.9617530988785595E-2},{"$f":"(CR295*'Default-Data'!$F$19/general_dollar_index)/'Philippines-IO-Data'!$AP44","v":0.62628824488383472},null,null,null,null,null,null,null,null,null,null,null,null,"DOM_C85: Health and social work",{"$f":"'General Impact Estimates'!C41","v":0},null,null,716.38044713897466,19326.403441091334,{"$f":"DI295*'SouthAfrica-IO-Data'!AR44","v":0},{"$f":"DL295*'SouthAfrica-IO-Data'!$AR44","v":330.99092412555535},{"$f":"DM295*'SouthAfrica-IO-Data'!$AR44","v":8929.4231305969333},{"$f":"DI295*'SouthAfrica-IO-Data'!AS44","v":0},{"$f":"DL295*'SouthAfrica-IO-Data'!$AS44","v":146.06342814082529},{"$f":"DM295*'SouthAfrica-IO-Data'!$AS44","v":3940.477090786394},{"$f":"(DQ295*'Default-Data'!$F$19/general_dollar_index)/'SouthAfrica-IO-Data'!$AT44","v":0},{"$f":"(DR295*'Default-Data'!$F$19/general_dollar_index)/'SouthAfrica-IO-Data'!$AT44","v":8.9883829331886666E-3},{"$f":"(DS295*'Default-Data'!$F$19/general_dollar_index)/'SouthAfrica-IO-Data'!$AT44","v":0.24248723641688741},null,null,null,null,null,null,null,null,null,null,null,null,"HRRS",{"$f":"'General Impact Estimates'!C41","v":0},null,null,{"$f":"'General Impact Estimates'!F41","v":0},84112.431326414749,{"$f":"EJ295*'Zambia-IO-Data'!BO42","v":0},{"$f":"EM295*'Zambia-IO-Data'!$BO42","v":0},{"$f":"EN295*'Zambia-IO-Data'!$BO42","v":0},{"$f":"EJ295*'Zambia-IO-Data'!BN42","v":0},{"$f":"EM295*'Zambia-IO-Data'!$BN42","v":0},{"$f":"EN295*'Zambia-IO-Data'!$BN42","v":0},0,0,0,null,null,null,null,null,null,null,null,null,null,null,null,"TTL_C85: Health and social work",{"$f":"'General Impact Estimates'!C41","v":0},null,null,1147.0839922274292,12431.203749507378,{"$f":"FK295*CustomRegion1!C40","v":0},{"$f":"FN295*CustomRegion1!$C40","v":594.42300952524226},{"$f":"FO295*CustomRegion1!$C40","v":6441.8940503692229},{"$f":"FK295*CustomRegion1!D40","v":0},{"$f":"FN295*CustomRegion1!$D40","v":379.48574592716631},{"$f":"FO295*CustomRegion1!$D40","v":4112.5712324639217},{"$f":"(FT295*'Default-Data'!$C$58/general_dollar_index)/CustomRegion1!$E40","v":9.9435110618285208E-2},{"$f":"(FU295*'Default-Data'!$C$58/general_dollar_index)/CustomRegion1!$E40","v":1.0776003573639186},{"$f":"(FV295*'Default-Data'!$C$58/general_dollar_index)/CustomRegion1!$E40","v":2.6054578675975531E-5},null,null,null,null,null,null,null,null,null,null,null,null,"C74 Other Business Activities",{"$f":"'General Impact Estimates'!C41","v":0},null,null,59579.61556197601,41060.863378753013,{"$f":"GL295*CustomRegion2!C44","v":0},{"$f":"GO295*CustomRegion2!$C44","v":42522.810890382527},{"$f":"GP295*CustomRegion2!$C44","v":29305.716594198166},{"$f":"GL295*CustomRegion2!D44","v":0},{"$f":"GO295*CustomRegion2!$D44","v":16777.005056840426},{"$f":"GP295*CustomRegion2!$D44","v":11562.315500793842},{"$f":"(GT295*'Default-Data'!$C$59/general_dollar_index)/CustomRegion2!$E44","v":0},{"$f":"(GU295*'Default-Data'!$C$59/general_dollar_index)/CustomRegion2!$E44","v":4.5237763916998119},{"$f":"(GV295*'Default-Data'!$C$59/general_dollar_index)/CustomRegion2!$E44","v":3.1176798074904144},null,null,null,null,null,null,null,null,null,null,null,null,"HRRS",{"$f":"'General Impact Estimates'!C41","v":0},null,null,0,84112.431326414749,{"$f":"HM295*CustomRegion3!D43","v":0},{"$f":"HP295*CustomRegion3!$D43","v":0},{"$f":"HQ295*CustomRegion3!$D43","v":0},{"$f":"HM295*CustomRegion3!E43","v":0},{"$f":"HP295*CustomRegion3!$E43","v":0},{"$f":"HQ295*CustomRegion3!$E43","v":0},0,0,0]
[null,null,null,null,null,null,null,null,null,null,null,null,null,null,null,null,null,null,null,null,null,null,null,null,null,null,null,null,null,295,"TTL_C90T93: Other community, social and personal services",{"$f":"'General Impact Estimates'!C42","v":0},null,null,5647.1085675800668,12687.811276601598,{"$f":"'Colombia-IO-Data'!$AN45*Calculations!AF296","v":0},{"$f":"AI296*'Colombia-IO-Data'!$AN45","v":3230.6032857536106},{"$f":"AJ296*'Colombia-IO-Data'!$AN45","v":7258.4552446059688},{"$f":"AK296*'Colombia-IO-Data'!$AO45","v":0},{"$f":"AL296*'Colombia-IO-Data'!$AO45","v":1233.8855477265147},{"$f":"AM296*'Colombia-IO-Data'!$AO45","v":2772.2695214958335},{"$f":"(AN296*'Default-Data'!$F$19/general_dollar_index)/'Colombia-IO-Data'!$AP45","v":0},{"$f":"(AO296*'Default-Data'!$F$19/general_dollar_index)/'Colombia-IO-Data'!$AP45","v":0.26083814585129772},{"$f":"(AP296*'Default-Data'!$F$19/general_dollar_index)/'Colombia-IO-Data'!$AP45","v":0.58604596116666119},null,null,null,null,null,null,null,null,null,null,null,null,"DOM_C90T93: Other community, social and personal services",{"$f":"'General Impact Estimates'!C42","v":0},null,null,507.55226752831123,3473.005856199291,{"$f":"BG296*'Mexico-IO-Data'!AQ45","v":0},{"$f":"BJ296*'Mexico-IO-Data'!$AQ45","v":324.72904565379605},{"$f":"BK296*'Mexico-IO-Data'!$AQ45","v":2222.0093365472608},{"$f":"BG296*'Mexico-IO-Data'!AR45","v":0},{"$f":"BJ296*'Mexico-IO-Data'!$AR45","v":56.994341876874863},{"$f":"BK296*'Mexico-IO-Data'!$AR45","v":389.99270769205992},{"$f":"(BO296*'Default-Data'!$F$19/general_dollar_index)/'Mexico-IO-Data'!$AS45","v":0},{"$f":"(BP296*'Default-Data'!$F$19/general_dollar_index)/'Mexico-IO-Data'!$AS45","v":4.0686040707586378E-2},{"$f":"(BQ296*'Default-Data'!$F$19/general_dollar_index)/'Mexico-IO-Data'!$AS45","v":0.27840060360902313},null,null,null,null,null,null,null,null,null,null,null,null,"TTL_C90T93: Other community, social and personal services",{"$f":"'General Impact Estimates'!C42","v":0},null,null,5174.7656427355942,9331.0318107123858,{"$f":"CH296*'Philippines-IO-Data'!$AN45","v":0},{"$f":"CK296*'Philippines-IO-Data'!$AN45","v":2521.9795092562808},{"$f":"CL296*'Philippines-IO-Data'!$AN45","v":4547.5819875767029},{"$f":"CH296*'Philippines-IO-Data'!AO45","v":0},{"$f":"CK296*'Philippines-IO-Data'!$AO45","v":2167.646425911089},{"$f":"CL296*'Philippines-IO-Data'!$AO45","v":3908.6558022096019},{"$f":"(CP296*'Default-Data'!$F$19/general_dollar_index)/'Philippines-IO-Data'!$AP45","v":0},{"$f":"(CQ296*'Default-Data'!$F$19/general_dollar_index)/'Philippines-IO-Data'!$AP45","v":1.2885182298241076},{"$f":"(CR296*'Default-Data'!$F$19/general_dollar_index)/'Philippines-IO-Data'!$AP45","v":2.323429778515651},null,null,null,null,null,null,null,null,null,null,null,null,"DOM_C90T93: Other community, social and personal services",{"$f":"'General Impact Estimates'!C42","v":0},null,null,51353.022308240608,90239.967333129811,{"$f":"DI296*'SouthAfrica-IO-Data'!AR45","v":0},{"$f":"DL296*'SouthAfrica-IO-Data'!$AR45","v":36141.62397816567},{"$f":"DM296*'SouthAfrica-IO-Data'!$AR45","v":63509.776456381456},{"$f":"DI296*'SouthAfrica-IO-Data'!AS45","v":0},{"$f":"DL296*'SouthAfrica-IO-Data'!$AS45","v":20098.77098781048},{"$f":"DM296*'SouthAfrica-IO-Data'!$AS45","v":35318.514000782168},{"$f":"(DQ296*'Default-Data'!$F$19/general_dollar_index)/'SouthAfrica-IO-Data'!$AT45","v":0},{"$f":"(DR296*'Default-Data'!$F$19/general_dollar_index)/'SouthAfrica-IO-Data'!$AT45","v":1.2368287696953579},{"$f":"(DS296*'Default-Data'!$F$19/general_dollar_index)/'SouthAfrica-IO-Data'!$AT45","v":2.1734141975919106},null,null,null,null,null,null,null,null,null,null,null,null,"HRRM",{"$f":"'General Impact Estimates'!C42","v":0},null,null,{"$f":"'General Impact Estimates'!F42","v":0},5015.2234998725653,{"$f":"EJ296*'Zambia-IO-Data'!BO43","v":0},{"$f":"EM296*'Zambia-IO-Data'!$BO43","v":0},{"$f":"EN296*'Zambia-IO-Data'!$BO43","v":0},{"$f":"EJ296*'Zambia-IO-Data'!BN43","v":0},{"$f":"EM296*'Zambia-IO-Data'!$BN43","v":0},{"$f":"EN296*'Zambia-IO-Data'!$BN43","v":0},0,0,0,null,null,null,null,null,null,null,null,null,null,null,null,"TTL_C90T93: Other community, social and personal services",{"$f":"'General Impact Estimates'!C42","v":0},null,null,9330.3920586236545,16756.009323659535,{"$f":"FK296*CustomRegion1!C41","v":0},{"$f":"FN296*CustomRegion1!$C41","v":4547.2701972908862},{"$f":"FO296*CustomRegion1!$C41","v":8166.2272436432613},{"$f":"FK296*CustomRegion1!D41","v":0},{"$f":"FN296*CustomRegion1!$D41","v":3908.3878178361347},{"$f":"FO296*CustomRegion1!$D41","v":7018.8886281162368},{"$f":"(FT296*'Default-Data'!$C$58/general_dollar_index)/CustomRegion1!$E41","v":2.3329783276469103},{"$f":"(FU296*'Default-Data'!$C$58/general_dollar_index)/CustomRegion1!$E41","v":4.1896853170083945},{"$f":"(FV296*'Default-Data'!$C$58/general_dollar_index)/CustomRegion1!$E41","v":1.3925915571714055E-3},null,null,null,null,null,null,null,null,null,null,null,null,"C75 Public admin. and defence; compulsory social security",{"$f":"'General Impact Estimates'!C42","v":0},null,null,611.6862340792718,748.83316105299446,{"$f":"GL296*CustomRegion2!C45","v":0},{"$f":"GO296*CustomRegion2!$C45","v":458.84043220170599},{"$f":"GP296*CustomRegion2!$C45","v":561.71761292244037},{"$f":"GL296*CustomRegion2!D45","v":0},{"$f":"GO296*CustomRegion2!$D45","v":452.61293956475703},{"$f":"GP296*CustomRegion2!$D45","v":554.09384646024409},{"$f":"(GT296*'Default-Data'!$C$59/general_dollar_index)/CustomRegion2!$E45","v":0},{"$f":"(GU296*'Default-Data'!$C$59/general_dollar_index)/CustomRegion2!$E45","v":0.32310274805337885},{"$f":"(GV296*'Default-Data'!$C$59/general_dollar_index)/CustomRegion2!$E45","v":0.39554601475364459},null,null,null,null,null,null,null,null,null,null,null,null,"HRRM",{"$f":"'General Impact Estimates'!C42","v":0},null,null,0,5015.2234998725653,{"$f":"HM296*CustomRegion3!D44","v":0},{"$f":"HP296*CustomRegion3!$D44","v":0},{"$f":"HQ296*CustomRegion3!$D44","v":0},{"$f":"HM296*CustomRegion3!E44","v":0},{"$f":"HP296*CustomRegion3!$E44","v":0},{"$f":"HQ296*CustomRegion3!$E44","v":0},0,0,0]
[null,null,null,null,null,null,null,null,null,null,null,null,null,null,null,null,null,null,null,null,null,null,null,null,null,null,null,null,null,296,"TTL_C95: Private households with employed persons",{"$f":"'General Impact Estimates'!C43","v":0},null,null,0,2235.3164377582743,{"$f":"'Colombia-IO-Data'!$AN46*Calculations!AF297","v":0},{"$f":"AI297*'Colombia-IO-Data'!$AN46","v":0},{"$f":"AJ297*'Colombia-IO-Data'!$AN46","v":2235.3164377582743},{"$f":"AK297*'Colombia-IO-Data'!$AO46","v":0},{"$f":"AL297*'Colombia-IO-Data'!$AO46","v":0},{"$f":"AM297*'Colombia-IO-Data'!$AO46","v":2235.3164377582743},{"$f":"(AN297*'Default-Data'!$F$19/general_dollar_index)/'Colombia-IO-Data'!$AP46","v":0},{"$f":"(AO297*'Default-Data'!$F$19/general_dollar_index)/'Colombia-IO-Data'!$AP46","v":0},{"$f":"(AP297*'Default-Data'!$F$19/general_dollar_index)/'Colombia-IO-Data'!$AP46","v":0.47253636780988356},null,null,null,null,null,null,null,null,null,null,null,null,"DOM_C95: Private households with employed persons",{"$f":"'General Impact Estimates'!C43","v":0},null,null,0,950.72962043784173,{"$f":"BG297*'Mexico-IO-Data'!AQ46","v":0},{"$f":"BJ297*'Mexico-IO-Data'!$AQ46","v":0},{"$f":"BK297*'Mexico-IO-Data'!$AQ46","v":950.72962043784173},{"$f":"BG297*'Mexico-IO-Data'!AR46","v":0},{"$f":"BJ297*'Mexico-IO-Data'!$AR46","v":0},{"$f":"BK297*'Mexico-IO-Data'!$AR46","v":950.72962043784173},{"$f":"(BO297*'Default-Data'!$F$19/general_dollar_index)/'Mexico-IO-Data'!$AS46","v":0},{"$f":"(BP297*'Default-Data'!$F$19/general_dollar_index)/'Mexico-IO-Data'!$AS46","v":0},{"$f":"(BQ297*'Default-Data'!$F$19/general_dollar_index)/'Mexico-IO-Data'!$AS46","v":0.18921155791090377},null,null,null,null,null,null,null,null,null,null,null,null,"TTL_C95: Private households with employed persons",{"$f":"'General Impact Estimates'!C43","v":0},null,null,0,0,{"$f":"CH297*'Philippines-IO-Data'!$AN46","v":0},{"$f":"CK297*'Philippines-IO-Data'!$AN46","v":0},{"$f":"CL297*'Philippines-IO-Data'!$AN46","v":0},{"$f":"CH297*'Philippines-IO-Data'!AO46","v":0},{"$f":"CK297*'Philippines-IO-Data'!$AO46","v":0},{"$f":"CL297*'Philippines-IO-Data'!$AO46","v":0},{"$f":"(CP297*'Default-Data'!$F$19/general_dollar_index)/'Philippines-IO-Data'!$AP46","v":0},{"$f":"(CQ297*'Default-Data'!$F$19/general_dollar_index)/'Philippines-IO-Data'!$AP46","v":0},{"$f":"(CR297*'Default-Data'!$F$19/general_dollar_index)/'Philippines-IO-Data'!$AP46","v":0},null,null,null,null,null,null,null,null,null,null,null,null,"DOM_C95: Private households with employed persons",{"$f":"'General Impact Estimates'!C43","v":0},null,null,0,0,{"$f":"DI297*'SouthAfrica-IO-Data'!AR46","v":0},{"$f":"DL297*'SouthAfrica-IO-Data'!$AR46","v":0},{"$f":"DM297*'SouthAfrica-IO-Data'!$AR46","v":0},{"$f":"DI297*'SouthAfrica-IO-Data'!AS46","v":0},{"$f":"DL297*'SouthAfrica-IO-Data'!$AS46","v":0},{"$f":"DM297*'SouthAfrica-IO-Data'!$AS46","v":0},{"$f":"(DQ297*'Default-Data'!$F$19/general_dollar_index)/'SouthAfrica-IO-Data'!$AT46","v":0},{"$f":"(DR297*'Default-Data'!$F$19/general_dollar_index)/'SouthAfrica-IO-Data'!$AT46","v":0},{"$f":"(DS297*'Default-Data'!$F$19/general_dollar_index)/'SouthAfrica-IO-Data'!$AT46","v":0},null,null,null,null,null,null,null,null,null,null,null,null,"HRRN",{"$f":"'General Impact Estimates'!C43","v":0},null,null,{"$f":"'General Impact Estimates'!F43","v":0},3126.2656163188749,{"$f":"EJ297*'Zambia-IO-Data'!BO44","v":0},{"$f":"EM297*'Zambia-IO-Data'!$BO44","v":0},{"$f":"EN297*'Zambia-IO-Data'!$BO44","v":0},{"$f":"EJ297*'Zambia-IO-Data'!BN44","v":0},{"$f":"EM297*'Zambia-IO-Data'!$BN44","v":0},{"$f":"EN297*'Zambia-IO-Data'!$BN44","v":0},0,0,0,null,null,null,null,null,null,null,null,null,null,null,null,"TTL_C95: Private households with employed persons",{"$f":"'General Impact Estimates'!C43","v":0},null,null,0,0,{"$f":"FK297*CustomRegion1!C42","v":0},{"$f":"FN297*CustomRegion1!$C42","v":0},{"$f":"FO297*CustomRegion1!$C42","v":0},{"$f":"FK297*CustomRegion1!D42","v":0},{"$f":"FN297*CustomRegion1!$D42","v":0},{"$f":"FO297*CustomRegion1!$D42","v":0},{"$f":"(FT297*'Default-Data'!$C$58/general_dollar_index)/CustomRegion1!$E42","v":0},{"$f":"(FU297*'Default-Data'!$C$58/general_dollar_index)/CustomRegion1!$E42","v":0},{"$f":"(FV297*'Default-Data'!$C$58/general_dollar_index)/CustomRegion1!$E42","v":0},null,null,null,null,null,null,null,null,null,null,null,null,"C80 Education",{"$f":"'General Impact Estimates'!C43","v":0},null,null,223.63209097707437,12149.10734821273,{"$f":"GL297*CustomRegion2!C46","v":0},{"$f":"GO297*CustomRegion2!$C46","v":199.18108848480904},{"$f":"GP297*CustomRegion2!$C46","v":10820.774492440249},{"$f":"GL297*CustomRegion2!D46","v":0},{"$f":"GO297*CustomRegion2!$D46","v":151.56124060921431},{"$f":"GP297*CustomRegion2!$D46","v":8233.7636514716833},{"$f":"(GT297*'Default-Data'!$C$59/general_dollar_index)/CustomRegion2!$E46","v":0},{"$f":"(GU297*'Default-Data'!$C$59/general_dollar_index)/CustomRegion2!$E46","v":3.7929310635628551E-2},{"$f":"(GV297*'Default-Data'!$C$59/general_dollar_index)/CustomRegion2!$E46","v":2.0605596653979221},null,null,null,null,null,null,null,null,null,null,null,null,"HRRN",{"$f":"'General Impact Estimates'!C43","v":0},null,null,0,3126.2656163188749,{"$f":"HM297*CustomRegion3!D45","v":0},{"$f":"HP297*CustomRegion3!$D45","v":0},{"$f":"HQ297*CustomRegion3!$D45","v":0},{"$f":"HM297*CustomRegion3!E45","v":0},{"$f":"HP297*CustomRegion3!$E45","v":0},{"$f":"HQ297*CustomRegion3!$E45","v":0},0,0,0]
[null,null,null,null,null,null,null,null,null,null,null,null,null,null,null,null,null,null,null,null,null,null,null,null,null,null,null,null,null,297,"LHH",{"$f":"'General Impact Estimates'!C44","v":0},null,null,0,243729.0467547322,{"$f":"'Colombia-IO-Data'!$AN47*Calculations!AF298","v":0},{"$f":"AI298*'Colombia-IO-Data'!$AN47","v":0},{"$f":"AJ298*'Colombia-IO-Data'!$AN47","v":0},{"$f":"AK298*'Colombia-IO-Data'!$AO47","v":0},{"$f":"AL298*'Colombia-IO-Data'!$AO47","v":0},{"$f":"AM298*'Colombia-IO-Data'!$AO47","v":0},0,0,0,null,null,null,null,null,null,null,null,null,null,null,null,"L",{"$f":"'General Impact Estimates'!C44","v":0},null,null,0,158005.89880777861,{"$f":"BG298*'Mexico-IO-Data'!AQ47","v":0},{"$f":"BJ298*'Mexico-IO-Data'!$AQ47","v":0},{"$f":"BK298*'Mexico-IO-Data'!$AQ47","v":0},{"$f":"BG298*'Mexico-IO-Data'!AR47","v":0},{"$f":"BJ298*'Mexico-IO-Data'!$AR47","v":0},{"$f":"BK298*'Mexico-IO-Data'!$AR47","v":0},0,0,0,null,null,null,null,null,null,null,null,null,null,null,null,"LHH",{"$f":"'General Impact Estimates'!C44","v":0},null,null,0,161808.99272289613,{"$f":"CH298*'Philippines-IO-Data'!$AN47","v":0},{"$f":"CK298*'Philippines-IO-Data'!$AN47","v":0},{"$f":"CL298*'Philippines-IO-Data'!$AN47","v":0},{"$f":"CH298*'Philippines-IO-Data'!AO47","v":0},{"$f":"CK298*'Philippines-IO-Data'!$AO47","v":0},{"$f":"CL298*'Philippines-IO-Data'!$AO47","v":0},0,0,0,null,null,null,null,null,null,null,null,null,null,null,null,"L",{"$f":"'General Impact Estimates'!C44","v":0},null,null,0,476312.39896139619,{"$f":"DI298*'SouthAfrica-IO-Data'!AR47","v":0},{"$f":"DL298*'SouthAfrica-IO-Data'!$AR47","v":0},{"$f":"DM298*'SouthAfrica-IO-Data'!$AR47","v":0},{"$f":"DI298*'SouthAfrica-IO-Data'!AS47","v":0},{"$f":"DL298*'SouthAfrica-IO-Data'!$AS47","v":0},{"$f":"DM298*'SouthAfrica-IO-Data'!$AS47","v":0},0,0,0,null,null,null,null,null,null,null,null,null,null,null,null,"HRS",{"$f":"'General Impact Estimates'!C44","v":0},null,null,{"$f":"'General Impact Estimates'!F44","v":0},98983.5691117479,{"$f":"EJ298*'Zambia-IO-Data'!BO45","v":0},{"$f":"EM298*'Zambia-IO-Data'!$BO45","v":0},{"$f":"EN298*'Zambia-IO-Data'!$BO45","v":0},{"$f":"EJ298*'Zambia-IO-Data'!BN45","v":0},{"$f":"EM298*'Zambia-IO-Data'!$BN45","v":0},{"$f":"EN298*'Zambia-IO-Data'!$BN45","v":0},0,0,0,null,null,null,null,null,null,null,null,null,null,null,null,"LHH",{"$f":"'General Impact Estimates'!C44","v":0},null,null,0,302492.03934849246,{"$f":"FK298*CustomRegion1!AM43","v":0},{"$f":"FN298*CustomRegion1!$AM43","v":0},{"$f":"FO298*CustomRegion1!$AM43","v":0},{"$f":"FK298*CustomRegion1!AN43","v":0},{"$f":"FN298*CustomRegion1!$AN43","v":0},{"$f":"FO298*CustomRegion1!$AN43","v":0},0,0,0,null,null,null,null,null,null,null,null,null,null,null,null,"C85 Health and social work",{"$f":"'General Impact Estimates'!C44","v":0},null,null,96.771504991813373,11105.372833132506,{"$f":"GL298*CustomRegion2!C47","v":0},{"$f":"GO298*CustomRegion2!$C47","v":72.603657372295046},{"$f":"GP298*CustomRegion2!$C47","v":8331.9018778984173},{"$f":"GL298*CustomRegion2!D47","v":0},{"$f":"GO298*CustomRegion2!$D47","v":41.87239385686695},{"$f":"GP298*CustomRegion2!$D47","v":4805.2217978382505},{"$f":"(GT298*'Default-Data'!$C$59/general_dollar_index)/CustomRegion2!$E47","v":0},{"$f":"(GU298*'Default-Data'!$C$59/general_dollar_index)/CustomRegion2!$E47","v":1.8973979675245185E-2},{"$f":"(GV298*'Default-Data'!$C$59/general_dollar_index)/CustomRegion2!$E47","v":2.1774293831609004},null,null,null,null,null,null,null,null,null,null,null,null,"HRS",{"$f":"'General Impact Estimates'!C44","v":0},null,null,0,98983.5691117479,{"$f":"HM298*CustomRegion3!D46","v":0},{"$f":"HP298*CustomRegion3!$D46","v":0},{"$f":"HQ298*CustomRegion3!$D46","v":0},{"$f":"HM298*CustomRegion3!E46","v":0},{"$f":"HP298*CustomRegion3!$E46","v":0},{"$f":"HQ298*CustomRegion3!$E46","v":0},0,0,0]
[null,null,null,null,null,null,null,null,null,null,null,null,null,null,null,null,null,null,null,null,null,null,null,null,null,null,null,null,null,298,"Total",null,null,null,null,null,null,null,null,null,null,null,null,null,null,null,null,null,null,null,null,null,null,null,null,null,null,null,null,null,null,null,null,null,null,null,null,null,null,null,null,null,null,null,null,null,null,null,null,null,null,null,null,null,null,null,null,null,null,null,null,null,null,null,null,null,null,null,null,null,null,null,null,null,null,null,null,null,null,null,null,null,null,null,null,null,null,null,null,null,null,null,null,null,null,null,null,null,null,null,null,null,null,null,null,null,null,null,"HRM",{"$f":"'General Impact Estimates'!C45","v":0},null,null,{"$f":"'General Impact Estimates'!F45","v":0},8440.2241533763809,{"$f":"EJ299*'Zambia-IO-Data'!BO46","v":0},{"$f":"EM299*'Zambia-IO-Data'!$BO46","v":0},{"$f":"EN299*'Zambia-IO-Data'!$BO46","v":0},{"$f":"EJ299*'Zambia-IO-Data'!BN46","v":0},{"$f":"EM299*'Zambia-IO-Data'!$BN46","v":0},{"$f":"EN299*'Zambia-IO-Data'!$BN46","v":0},0,0,0,null,null,null,null,null,null,null,null,null,null,null,null,null,null,null,null,null,null,null,null,null,null,null,null,null,null,null,null,null,null,null,null,null,null,null,null,null,null,null,"C90T93 Other community, social and personal services",{"$f":"'General Impact Estimates'!C45","v":0},null,null,907.75146599619393,14999.729843633844,{"$f":"GL299*CustomRegion2!C48","v":0},{"$f":"GO299*CustomRegion2!$C48","v":639.78341046540868},{"$f":"GP299*CustomRegion2!$C48","v":10571.812522371702},{"$f":"GL299*CustomRegion2!D48","v":0},{"$f":"GO299*CustomRegion2!$D48","v":124.12137967854592},{"$f":"GP299*CustomRegion2!$D48","v":2050.98777885653},{"$f":"(GT299*'Default-Data'!$C$59/general_dollar_index)/CustomRegion2!$E48","v":0},{"$f":"(GU299*'Default-Data'!$C$59/general_dollar_index)/CustomRegion2!$E48","v":8.8605418362276353E-2},{"$f":"(GV299*'Default-Data'!$C$59/general_dollar_index)/CustomRegion2!$E48","v":1.4641202883189519},null,null,null,null,null,null,null,null,null,null,null,null,"HRM",{"$f":"'General Impact Estimates'!C45","v":0},null,null,0,8440.2241533763809,{"$f":"HM299*CustomRegion3!D47","v":0},{"$f":"HP299*CustomRegion3!$D47","v":0},{"$f":"HQ299*CustomRegion3!$D47","v":0},{"$f":"HM299*CustomRegion3!E47","v":0},{"$f":"HP299*CustomRegion3!$E47","v":0},{"$f":"HQ299*CustomRegion3!$E47","v":0},0,0,0]
[null,null,null,null,null,null,null,null,null,null,null,null,null,null,null,null,null,null,null,null,null,null,null,null,null,null,null,null,null,299,null,null,null,null,null,null,null,null,null,null,null,null,null,null,null,null,null,null,null,null,null,null,null,null,null,null,null,null,null,null,null,null,null,null,null,null,null,null,null,null,null,null,null,null,null,null,null,null,null,null,null,null,null,null,null,null,null,null,null,null,null,null,null,null,null,null,null,null,null,null,null,null,null,null,null,null,null,null,null,null,null,null,null,null,null,null,null,null,null,null,null,null,null,null,null,null,null,null,null,null,null,null,null,null,null,null,null,null,"HRL",{"$f":"'General Impact Estimates'!C46","v":0},null,null,{"$f":"'General Impact Estimates'!F46","v":0},3769.3062837585212,{"$f":"EJ300*'Zambia-IO-Data'!BO47","v":0},{"$f":"EM300*'Zambia-IO-Data'!$BO47","v":0},{"$f":"EN300*'Zambia-IO-Data'!$BO47","v":0},{"$f":"EJ300*'Zambia-IO-Data'!BN47","v":0},{"$f":"EM300*'Zambia-IO-Data'!$BN47","v":0},{"$f":"EN300*'Zambia-IO-Data'!$BN47","v":0},0,0,0,null,null,null,null,null,null,null,null,null,null,null,null,null,null,null,null,null,null,null,null,null,null,null,null,null,null,null,null,null,null,null,null,null,null,null,null,null,null,null,"C95 Private households with employed persons",{"$f":"'General Impact Estimates'!C46","v":0},null,null,0,3315.119500638375,{"$f":"GL300*CustomRegion2!C49","v":0},{"$f":"GO300*CustomRegion2!$C49","v":0},{"$f":"GP300*CustomRegion2!$C49","v":3315.119500638375},{"$f":"GL300*CustomRegion2!D49","v":0},{"$f":"GO300*CustomRegion2!$D49","v":0},{"$f":"GP300*CustomRegion2!$D49","v":3315.119500638375},{"$f":"(GT300*'Default-Data'!$C$59/general_dollar_index)/CustomRegion2!$E49","v":0},{"$f":"(GU300*'Default-Data'!$C$59/general_dollar_index)/CustomRegion2!$E49","v":0},{"$f":"(GV300*'Default-Data'!$C$59/general_dollar_index)/CustomRegion2!$E49","v":0.65976583867002203},null,null,null,null,null,null,null,null,null,null,null,null,"HRL",{"$f":"'General Impact Estimates'!C46","v":0},null,null,0,3769.3062837585212,{"$f":"HM300*CustomRegion3!D48","v":0},{"$f":"HP300*CustomRegion3!$D48","v":0},{"$f":"HQ300*CustomRegion3!$D48","v":0},{"$f":"HM300*CustomRegion3!E48","v":0},{"$f":"HP300*CustomRegion3!$E48","v":0},{"$f":"HQ300*CustomRegion3!$E48","v":0},0,0,0]
[null,null,null,null,null,null,null,null,null,null,null,null,null,null,null,null,null,null,null,null,null,null,null,null,null,null,null,null,null,300,null,null,null,null,null,null,null,null,null,null,null,null,null,null,null,null,null,null,null,null,null,null,null,null,null,null,null,null,null,null,null,null,null,null,null,null,null,null,null,null,null,null,null,null,null,null,null,null,null,null,null,null,null,null,null,null,null,null,null,null,null,null,null,null,null,null,null,null,null,null,null,null,null,null,null,null,null,null,null,null,null,null,null,null,null,null,null,null,null,null,null,null,null,null,null,null,null,null,null,null,null,null,null,null,null,null,null,null,"HRN",{"$f":"'General Impact Estimates'!C47","v":0},null,null,{"$f":"'General Impact Estimates'!F47","v":0},6369.8689958208852,{"$f":"EJ301*'Zambia-IO-Data'!BO48","v":0},{"$f":"EM301*'Zambia-IO-Data'!$BO48","v":0},{"$f":"EN301*'Zambia-IO-Data'!$BO48","v":0},{"$f":"EJ301*'Zambia-IO-Data'!BN48","v":0},{"$f":"EM301*'Zambia-IO-Data'!$BN48","v":0},{"$f":"EN301*'Zambia-IO-Data'!$BN48","v":0},0,0,0,null,null,null,null,null,null,null,null,null,null,null,null,null,null,null,null,null,null,null,null,null,null,null,null,null,null,null,null,null,null,null,null,null,null,null,null,null,null,null,"L",{"$f":"'General Impact Estimates'!C47","v":0},null,null,0,431271.12666803284,{"$f":"GL301*CustomRegion2!C50","v":0},{"$f":"GO301*CustomRegion2!$C50","v":0},{"$f":"GP301*CustomRegion2!$C50","v":0},{"$f":"GL301*CustomRegion2!D50","v":0},{"$f":"GO301*CustomRegion2!$D50","v":0},{"$f":"GP301*CustomRegion2!$D50","v":0},0,0,0,null,null,null,null,null,null,null,null,null,null,null,null,"HRN",{"$f":"'General Impact Estimates'!C47","v":0},null,null,0,6369.8689958208852,{"$f":"HM301*CustomRegion3!D49","v":0},{"$f":"HP301*CustomRegion3!$D49","v":0},{"$f":"HQ301*CustomRegion3!$D49","v":0},{"$f":"HM301*CustomRegion3!E49","v":0},{"$f":"HP301*CustomRegion3!$E49","v":0},{"$f":"HQ301*CustomRegion3!$E49","v":0},0,0,0]
[null,null,null,null,null,null,null,null,null,null,null,null,null,null,null,null,null,null,null,null,null,null,null,null,null,null,null,null,null,301,null,null,null,null,null,null,null,null,null,null,null,null,null,null,null,null,null,null,null,null,null,null,null,null,null,null,null,null,null,null,null,null,null,null,null,null,null,null,null,null,null,null,null,null,null,null,null,null,null,null,null,null,null,null,null,null,null,null,null,null,null,null,null,null,null,null,null,null,null,null,null,null,null,null,null,null,null,null,null,null,null,null,null,null,null,null,null,null,null,null,null,null,null,null,null,null,null,null,null,null,null,null,null,null,null,null,null,null,"HUSE",{"$f":"'General Impact Estimates'!C48","v":0},null,null,{"$f":"'General Impact Estimates'!F48","v":0},23336.818480947572,{"$f":"EJ302*'Zambia-IO-Data'!BO49","v":0},{"$f":"EM302*'Zambia-IO-Data'!$BO49","v":0},{"$f":"EN302*'Zambia-IO-Data'!$BO49","v":0},{"$f":"EJ302*'Zambia-IO-Data'!BN49","v":0},{"$f":"EM302*'Zambia-IO-Data'!$BN49","v":0},{"$f":"EN302*'Zambia-IO-Data'!$BN49","v":0},0,0,0,null,null,null,null,null,null,null,null,null,null,null,null,null,null,null,null,null,null,null,null,null,null,null,null,null,null,null,null,null,null,null,null,null,null,null,null,null,null,null,"HH",{"$f":"'General Impact Estimates'!C48","v":0},null,null,0,431271.12666803284,{"$f":"GL302*CustomRegion2!C51","v":0},{"$f":"GO302*CustomRegion2!$C51","v":0},{"$f":"GP302*CustomRegion2!$C51","v":0},{"$f":"GL302*CustomRegion2!D51","v":0},{"$f":"GO302*CustomRegion2!$D51","v":0},{"$f":"GP302*CustomRegion2!$D51","v":0},0,0,0,null,null,null,null,null,null,null,null,null,null,null,null,"HUSE",{"$f":"'General Impact Estimates'!C48","v":0},null,null,0,23336.818480947572,{"$f":"HM302*CustomRegion3!D50","v":0},{"$f":"HP302*CustomRegion3!$D50","v":0},{"$f":"HQ302*CustomRegion3!$D50","v":0},{"$f":"HM302*CustomRegion3!E50","v":0},{"$f":"HP302*CustomRegion3!$E50","v":0},{"$f":"HQ302*CustomRegion3!$E50","v":0},0,0,0]
[null,null,null,null,null,null,null,null,null,null,null,null,null,null,null,null,null,null,null,null,null,null,null,null,null,null,null,null,null,302,null,null,null,null,null,null,null,null,null,null,null,null,null,null,null,null,null,null,null,null,null,null,null,null,null,null,null,null,null,null,null,null,null,null,null,null,null,null,null,null,null,null,null,null,null,null,null,null,null,null,null,null,null,null,null,null,null,null,null,null,null,null,null,null,null,null,null,null,null,null,null,null,null,null,null,null,null,null,null,null,null,null,null,null,null,null,null,null,null,null,null,null,null,null,null,null,null,null,null,null,null,null,null,null,null,null,null,null,"HUPR",{"$f":"'General Impact Estimates'!C49","v":0},null,null,{"$f":"'General Impact Estimates'!F49","v":0},40759.495507764717,{"$f":"EJ303*'Zambia-IO-Data'!BO50","v":0},{"$f":"EM303*'Zambia-IO-Data'!$BO50","v":0},{"$f":"EN303*'Zambia-IO-Data'!$BO50","v":0},{"$f":"EJ303*'Zambia-IO-Data'!BN50","v":0},{"$f":"EM303*'Zambia-IO-Data'!$BN50","v":0},{"$f":"EN303*'Zambia-IO-Data'!$BN50","v":0},0,0,0,null,null,null,null,null,null,null,null,null,null,null,null,null,null,null,null,null,null,null,null,null,null,null,null,null,null,null,null,null,null,null,null,null,null,null,null,null,null,null,null,null,null,null,null,null,null,null,null,null,null,null,null,null,null,null,null,null,null,null,null,null,null,null,null,null,null,"HUPR",{"$f":"'General Impact Estimates'!C49","v":0},null,null,0,40759.495507764717,{"$f":"HM303*CustomRegion3!D51","v":0},{"$f":"HP303*CustomRegion3!$D51","v":0},{"$f":"HQ303*CustomRegion3!$D51","v":0},{"$f":"HM303*CustomRegion3!E51","v":0},{"$f":"HP303*CustomRegion3!$E51","v":0},{"$f":"HQ303*CustomRegion3!$E51","v":0},0,0,0]
[null,null,null,null,null,null,null,null,null,null,null,null,null,null,null,null,null,null,null,null,null,null,null,null,null,null,null,null,null,303,null,null,null,null,null,null,null,null,null,null,null,null,null,null,null,null,null,null,null,null,null,null,null,null,null,null,null,null,null,null,null,null,null,null,null,null,null,null,null,null,null,null,null,null,null,null,null,null,null,null,null,null,null,null,null,null,null,null,null,null,null,null,null,null,null,null,null,null,null,null,null,null,null,null,null,null,null,null,null,null,null,null,null,null,null,null,null,null,null,null,null,null,null,null,null,null,null,null,null,null,null,null,null,null,null,null,null,null,"HUPU",{"$f":"'General Impact Estimates'!C50","v":0},null,null,{"$f":"'General Impact Estimates'!F50","v":0},60230.014763564322,{"$f":"EJ304*'Zambia-IO-Data'!BO51","v":0},{"$f":"EM304*'Zambia-IO-Data'!$BO51","v":0},{"$f":"EN304*'Zambia-IO-Data'!$BO51","v":0},{"$f":"EJ304*'Zambia-IO-Data'!BN51","v":0},{"$f":"EM304*'Zambia-IO-Data'!$BN51","v":0},{"$f":"EN304*'Zambia-IO-Data'!$BN51","v":0},0,0,0,null,null,null,null,null,null,null,null,null,null,null,null,null,null,null,null,null,null,null,null,null,null,null,null,null,null,null,null,null,null,null,null,null,null,null,null,null,null,null,null,null,null,null,null,null,null,null,null,null,null,null,null,null,null,null,null,null,null,null,null,null,null,null,null,null,null,"HUPU",{"$f":"'General Impact Estimates'!C50","v":0},null,null,0,60230.014763564322,{"$f":"HM304*CustomRegion3!D52","v":0},{"$f":"HP304*CustomRegion3!$D52","v":0},{"$f":"HQ304*CustomRegion3!$D52","v":0},{"$f":"HM304*CustomRegion3!E52","v":0},{"$f":"HP304*CustomRegion3!$E52","v":0},{"$f":"HQ304*CustomRegion3!$E52","v":0},0,0,0]
[null,null,null,null,null,null,null,null,null,null,null,null,null,null,null,null,null,null,null,null,null,null,null,null,null,null,null,null,null,304,null,null,null,null,null,null,null,null,null,null,null,null,null,null,null,null,null,null,null,null,null,null,null,null,null,null,null,null,null,null,null,null,null,null,null,null,null,null,null,null,null,null,null,null,null,null,null,null,null,null,null,null,null,null,null,null,null,null,null,null,null,null,null,null,null,null,null,null,null,null,null,null,null,null,null,null,null,null,null,null,null,null,null,null,null,null,null,null,null,null,null,null,null,null,null,null,null,null,null,null,null,null,null,null,null,null,null,null,"HUEM",{"$f":"'General Impact Estimates'!C51","v":0},null,null,{"$f":"'General Impact Estimates'!F51","v":0},2775.5149723438494,{"$f":"EJ305*'Zambia-IO-Data'!BO52","v":0},{"$f":"EM305*'Zambia-IO-Data'!$BO52","v":0},{"$f":"EN305*'Zambia-IO-Data'!$BO52","v":0},{"$f":"EJ305*'Zambia-IO-Data'!BN52","v":0},{"$f":"EM305*'Zambia-IO-Data'!$BN52","v":0},{"$f":"EN305*'Zambia-IO-Data'!$BN52","v":0},0,0,0,null,null,null,null,null,null,null,null,null,null,null,null,null,null,null,null,null,null,null,null,null,null,null,null,null,null,null,null,null,null,null,null,null,null,null,null,null,null,null,null,null,null,null,null,null,null,null,null,null,null,null,null,null,null,null,null,null,null,null,null,null,null,null,null,null,null,"HUEM",{"$f":"'General Impact Estimates'!C51","v":0},null,null,0,2775.5149723438494,{"$f":"HM305*CustomRegion3!D53","v":0},{"$f":"HP305*CustomRegion3!$D53","v":0},{"$f":"HQ305*CustomRegion3!$D53","v":0},{"$f":"HM305*CustomRegion3!E53","v":0},{"$f":"HP305*CustomRegion3!$E53","v":0},{"$f":"HQ305*CustomRegion3!$E53","v":0},0,0,0]
[null,null,null,null,null,null,null,null,null,null,null,null,null,null,null,null,null,null,null,null,null,null,null,null,null,null,null,null,null,305]
[null,null,null,null,null,null,null,null,null,null,null,null,null,null,null,null,null,null,null,null,null,null,null,null,null,null,null,null,null,306,"Agriculture",{"$f":"AF264","v":0},{"$f":"AG264","v":0},null,{"$f":"AI264","v":1821.3278887375748},21511.408393330272,0,1260.9069873853521,14892.367991164158,0,332.88912561083913,3931.6994896931255,0,7.0371342348874447E-2,0.83114451484227458,null,null,null,null,null,null,null,null,null,null,null,null,"Agriculture",{"$f":"BG264","v":0},{"$f":"BH264","v":0},null,{"$f":"BJ264","v":738.78799823583245},8262.0722551871713,0,450.56866797935197,5038.8350916070558,0,74.224313943769587,830.07120629937913,0,7.3052670436000749E-2,0.81696839014424016,null,null,null,null,null,null,null,null,null,null,null,null,"Agriculture",{"$f":"CH264","v":0},{"$f":"CI264","v":0},null,{"$f":"CK264","v":2809.6336584306177},29779.142638120276,0,1982.9180431570762,21016.832237075476,0,570.7745194429009,6049.6057120090327,0,0.33928659426647589,3.5960787469733866,null,null,null,null,null,null,null,null,null,null,null,null,"Agriculture",{"$f":"DI264","v":0},{"$f":"DJ264","v":0},null,{"$f":"DL264","v":4718.7505288514121},31070.151495445487,0,1905.662083880952,12547.645670880507,0,584.57874978501695,3849.1016225135404,0,4.2030932927825011E-2,0.27674856841399947,null,null,null,null,null,null,null,null,null,null,null,null,"Agriculture",{"$f":"SUM(EJ264:EJ276)","v":1000000},{"$f":"SUM(EK264:EK276)","v":0},{"$f":"SUM(EL264:EL276)","v":0},462024.59834766289,198165.26993933466,300861.81735290086,129603.19262359937,75231.87763510838,193502.46036524736,84976.334602651288,60398.645971559818,1930.96499645566,847.98057520871225,602.71931935262228,null,null,null,null,null,null,null,null,null,null,null,null,"Agriculture",{"$f":"FK264","v":0},{"$f":"FL264","v":0},null,{"$f":"FN264","v":7890.0402005691003},57901.741439226855,0,5568.4494766773869,40864.547406579259,0,1602.8544825948907,11762.686051868399,0.95676911927739583,7.021332813670675,5.7111057650153878E-4,null,null,null,null,null,null,null,null,null,null,null,null,"Agriculture",{"$f":"GL264","v":0},{"$f":"GM264","v":0},0,3252.3069273973269,36547.02883570781,0,2004.0112307583327,22519.601585148743,0,359.88938977970037,4044.1717831562883,0,0.35420847412489592,3.9803338389264953,null,null,null,null,null,null,null,null,null,null,null,null,"Agriculture",{"$f":"SUM(HM264:HM276)","v":1000000},{"$f":"SUM(HN264:HN276)","v":0},{"$f":"SUM(HO264:HO276)","v":0},462024.59834766289,198165.26993933466,300861.81735290086,129603.19262359937,75231.87763510838,193502.46036524736,84976.334602651288,60398.645971559818,1938.7856573895046,851.41500751036813,605.16041147163355]
[null,null,null,null,null,null,null,null,null,null,null,null,null,null,null,null,null,null,null,null,null,null,null,null,null,null,null,null,null,307,"Mining and Extraction",{"$f":"AF265","v":0},{"$f":"AG265","v":0},null,{"$f":"AI265","v":432611.53895172017},5433.9511724265758,0,354258.34434318024,4449.7716132355781,0,29383.145318845127,369.07609385966441,0,2.8990846937964525,3.6414850859022692E-2,null,null,null,null,null,null,null,null,null,null,null,null,"Mining and Extraction",{"$f":"BG265","v":0},{"$f":"BH265","v":0},null,{"$f":"BJ265","v":285749.46235393884},4563.129297245061,0,246009.52639316896,3928.5227976932974,0,15267.815927069496,243.81154591801544,0,0.822718116582832,1.3137974469758963E-2,null,null,null,null,null,null,null,null,null,null,null,null,"Mining and Extraction",{"$f":"CH265","v":0},{"$f":"CI265","v":0},null,{"$f":"CK265","v":31080.532147249767},1664.0396417108932,0,17892.636701518597,957.96483229431476,0,4677.1790935655399,250.41435539781062,0,1.4992098376923697,8.0267113489040129E-2,null,null,null,null,null,null,null,null,null,null,null,null,"Mining and Extraction",{"$f":"DI265","v":0},{"$f":"DJ265","v":0},null,{"$f":"DL265","v":293215.74228317454},307143.41293131962,0,174637.70117788477,182932.94605735564,0,59169.396109837384,61979.926864600136,0,3.878968305462601,4.0632182798753034,null,null,null,null,null,null,null,null,null,null,null,null,"Mining and Extraction",{"$f":"EJ277","v":0},{"$f":"EK277","v":0},{"$f":"EL277","v":0},4374.8779216198818,3680.5147580459743,0,1068.8361032173898,899.19470264152289,0,38.981498544108355,32.7945106704178,0,3.5407880690196014E-2,2.9788083179963183E-2,null,null,null,null,null,null,null,null,null,null,null,null,"Mining and Extraction",{"$f":"FK265","v":0},{"$f":"FL265","v":0},null,{"$f":"FN265","v":238795.05246254633},22474.874013758701,0,137471.04134478251,12938.477170706014,0,35935.267186972487,3382.1496481994222,11.566720252436498,1.0886347005312218,3.7230561470996048E-3,null,null,null,null,null,null,null,null,null,null,null,null,"Mining and Extraction",{"$f":"GL265","v":0},{"$f":"GM265","v":0},0,165988.58180624808,20295.121336481301,0,134891.56540240004,16492.945823858849,0,10646.000935049375,1301.6671289915651,0,0.57366802693068797,7.0141343981167059E-2,null,null,null,null,null,null,null,null,null,null,null,null,"Mining and Extraction",{"$f":"HM277","v":0},{"$f":"HN277","v":0},{"$f":"HO277","v":0},4374.8779216198818,3680.5147580459743,0,1068.8361032173898,899.19470264152289,0,38.981498544108355,32.7945106704178,0,3.555128724068881E-2,2.9908728815097561E-2]
[null,null,null,null,null,null,null,null,null,null,null,null,null,null,null,null,null,null,null,null,null,null,null,null,null,null,null,null,null,308,"Utilities",{"$f":"AF282","v":0},{"$f":"AG282","v":0},null,{"$f":"AI282","v":25868.272152916961},15846.960617386419,0,13681.423679076999,8381.2703434722207,0,2411.2335678987133,1477.1270057750003,0,0.23790408596522972,0.14574056816474265,null,null,null,null,null,null,null,null,null,null,null,null,"Utilities",{"$f":"BG282","v":0},{"$f":"BH282","v":0},null,{"$f":"BJ282","v":38624.496440424569},4355.7480274896661,0,17277.808795571393,1948.4469317738101,0,4173.1914795888879,470.61767092791052,0,0.2314447569573648,2.6100406128137098E-2,null,null,null,null,null,null,null,null,null,null,null,null,"Utilities",{"$f":"CH282","v":0},{"$f":"CI282","v":0},null,{"$f":"CK282","v":82296.938120783991},8833.1040934163611,0,49316.936510129817,5293.2909013338713,0,10213.607622953768,1096.2480666103552,0,2.6650940075465472,0.28605016571635439,null,null,null,null,null,null,null,null,null,null,null,null,"Utilities",{"$f":"DI282","v":0},{"$f":"DJ282","v":0},null,{"$f":"DL282","v":50891.854734888861},73177.587473415173,0,27671.253894252979,39788.599037983164,0,9042.0268684067833,13001.564111716249,0,0.33925928407608108,0.4878221881669027,null,null,null,null,null,null,null,null,null,null,null,null,"Utilities",{"$f":"EJ283","v":0},{"$f":"EK283","v":0},{"$f":"EL283","v":0},11195.101953930271,14815.852657487108,0,2984.1588555859698,3949.3037305815024,0,147.72477062625563,195.50232275386344,0,0.25786993186862511,0.34127093536834663,null,null,null,null,null,null,null,null,null,null,null,null,"Utilities",{"$f":"FK282","v":0},{"$f":"FL282","v":0},null,{"$f":"FN282","v":112858.49772601045},17315.238268848727,0,67631.135423453175,10376.260962580365,0,14006.504239534763,2148.9383884053723,3.6700674883870992,0.56307760872783552,9.6165289632350014E-4,null,null,null,null,null,null,null,null,null,null,null,null,"Utilities",{"$f":"GL284","v":0},{"$f":"GM284","v":0},0,62728.273922708038,16322.278648066633,0,24640.841169303585,6411.6968399879424,0,9277.939047008831,2414.1762069151196,0,0.51455351576912134,0.13388995645049254,null,null,null,null,null,null,null,null,null,null,null,null,"Utilities",{"$f":"HM283","v":0},{"$f":"HN283","v":0},{"$f":"HO283","v":0},11195.101953930271,14815.852657487108,0,2984.1588555859698,3949.3037305815024,0,147.72477062625563,195.50232275386344,0,0.25891433883917081,0.34265312731744502]
[null,null,null,null,null,null,null,null,null,null,null,null,null,null,null,null,null,null,null,null,null,null,null,null,null,null,null,null,null,309,"Construction",{"$f":"AF283","v":0},{"$f":"AG283","v":0},null,{"$f":"AI283","v":4587.8636764776184},3176.4402555161269,0,2278.1620383395093,1577.3017939203787,0,449.27873989257455,311.06135142141142,0,0.12754164978781715,8.8304374150891055E-2,null,null,null,null,null,null,null,null,null,null,null,null,"Construction",{"$f":"BG283","v":0},{"$f":"BH283","v":0},null,{"$f":"BJ283","v":1351.5838454883872},290.83120768868412,0,679.76901205952663,146.27138626030171,0,298.97351982220385,64.332545943836053,0,0.10490809065023128,2.2573920812952529E-2,null,null,null,null,null,null,null,null,null,null,null,null,"Construction",{"$f":"CH283","v":0},{"$f":"CI283","v":0},null,{"$f":"CK283","v":3126.7243556513308},2642.3675707088209,0,1720.7256313613691,1454.1702718945296,0,528.76960392725641,446.85859540786964,0,0.16949032231222866,0.14323479791793972,null,null,null,null,null,null,null,null,null,null,null,null,"Construction",{"$f":"DI283","v":0},{"$f":"DJ283","v":0},null,{"$f":"DL283","v":9742.6714579945747},17341.884769120486,0,2900.8867735628219,5163.5574875217335,0,1308.3267812384329,2328.812213201888,0,0.12765426640127578,0.22722367142956226,null,null,null,null,null,null,null,null,null,null,null,null,"Construction",{"$f":"EJ285","v":0},{"$f":"EK285","v":0},{"$f":"EL285","v":0},4375.1835252654037,10362.387140008323,0,265.42414754928637,628.64283459870455,0,116.74711855923054,276.50927852627876,0,0.41855091281540291,0.99131535199634335,null,null,null,null,null,null,null,null,null,null,null,null,"Construction",{"$f":"FK283","v":0},{"$f":"FL283","v":0},null,{"$f":"FN283","v":8792.2766025367146},5140.7332759317669,0,4838.6406945847411,2829.0922082402158,0,1486.8879018194639,869.36460941849282,0.47859436574087583,0.27982809150109478,1.5404830898053975E-4,null,null,null,null,null,null,null,null,null,null,null,null,"Construction",{"$f":"GL285","v":0},{"$f":"GM285","v":0},0,1617.2313713547767,1275.2664096667934,0,788.06479748778725,621.42781959216086,0,325.20795011381892,256.44244990704408,0,0.11411360153569913,8.9984182537016733E-2,null,null,null,null,null,null,null,null,null,null,null,null,"Construction",{"$f":"HM285","v":0},{"$f":"HN285","v":0},{"$f":"HO285","v":0},4375.1835252654037,10362.387140008323,0,265.42414754928637,628.64283459870455,0,116.74711855923054,276.50927852627876,0,0.42024609878650482,0.99533030890167751]
[null,null,null,null,null,null,null,null,null,null,null,null,null,null,null,null,null,null,null,null,null,null,null,null,null,null,null,null,null,310,"Manufacturing",{"$f":"SUM(AF266:AF281)","v":1000000},{"$f":"SUM(AG266:AG281)","v":0},null,{"$f":"SUM(AI266:AI281)","v":152820.08564298891},80870.275405988083,291315.09752364509,51349.567691457472,24211.132724980973,76148.241173161703,13563.383135539598,7841.8164654305829,18.522926513397671,3.2992692309379836,1.907508143102284,null,null,null,null,null,null,null,null,null,null,null,null,"Manufacturing",{"$f":"SUM(BG266:BG281)","v":1000000},{"$f":"SUM(BH266:BH281)","v":0},null,{"$f":"SUM(BJ266:BJ281)","v":196013.79891822612},47580.611067938764,376641.77335229964,66091.441618145866,16113.420483610036,46161.292871819183,11118.286714615193,3585.0869910790821,4.5998210250756486,1.3533362532397075,0.71124937535030641,null,null,null,null,null,null,null,null,null,null,null,null,"Manufacturing",{"$f":"SUM(CH266:CH281)","v":1000000},{"$f":"SUM(CI266:CI281)","v":0},null,{"$f":"SUM(CK266:CK281)","v":630288.76345722948},60243.342297146068,205279.86568762723,128880.97764407448,16943.607726177423,46719.864143806866,28400.485445536517,3802.8644613600545,14.97545390904642,9.1034117623938879,1.2189594834469848,null,null,null,null,null,null,null,null,null,null,null,null,"Manufacturing",{"$f":"SUM(DI266:DI281)","v":1000000},{"$f":"SUM(DJ266:DJ281)","v":0},null,{"$f":"SUM(DL266:DL281)","v":154127.05622603995},305715.32379972812,159536.8781249834,37388.570558850108,72951.437247804381,102704.02388935236,22158.738286686959,42781.849273817628,8.2787319797835437,1.7861642449694493,3.4485451526125872,null,null,null,null,null,null,null,null,null,null,null,null,"Manufacturing",{"$f":"SUM(EJ278:EJ282)+EJ284","v":0},{"$f":"SUM(EK278:EK282)+EK284","v":0},{"$f":"SUM(EL278:EL282)+EL284","v":0},547499.48938495491,197835.65460562985,0,63306.25522330634,23458.701164840375,0,25070.169419094818,7428.3755535294067,0,97.065764825608596,28.760912719082032,null,null,null,null,null,null,null,null,null,null,null,null,"Manufacturing",{"$f":"SUM(FK266:FK281)","v":1000000},{"$f":"SUM(FL266:FL281)","v":0},null,{"$f":"SUM(FN266:FN281)","v":1212509.4332283989},163471.00463398194,205279.86568762723,251255.41239598687,44286.49018514873,46719.864143806866,56156.045360236494,10347.78318695182,18.075314809415598,3.3307088753114473,5.818020185780811E-3,null,null,null,null,null,null,null,null,null,null,null,null,"Manufacturing",{"$f":"SUM(GL266:GL283)","v":1000000},{"$f":"SUM(GM266:GM283)","v":0},0,671014.94687580911,248000.14694946405,361188.05918902927,222471.9021200166,82318.480690057375,88317.33831811737,67189.386916513788,27631.347567568151,8.8005323161648636,8.0230666673650717,4.9321571834131976,null,null,null,null,null,null,null,null,null,null,null,null,"Manufacturing",{"$f":"SUM(HM278:HM282)+HM284","v":0},{"$f":"SUM(HN278:HN282)+HN284","v":0},{"$f":"SUM(HO278:HO282)+HO284","v":0},547499.48938495491,197835.65460562985,0,63306.25522330634,23458.701164840375,0,25070.169419094818,7428.3755535294067,0,97.458893875787524,28.877398179427868]
[null,null,null,null,null,null,null,null,null,null,null,null,null,null,null,null,null,null,null,null,null,null,null,null,null,null,null,null,null,311,"Sales",{"$f":"AF284","v":0},{"$f":"AG284","v":0},null,{"$f":"AI284","v":71753.413738091258},29818.718022078581,0,43108.558532576113,17914.714913957643,0,18700.753872160079,7771.5118691030148,0,5.8440297656348603,2.4286158193138458,null,null,null,null,null,null,null,null,null,null,null,null,"Sales",{"$f":"BG284","v":0},{"$f":"BH284","v":0},null,{"$f":"BJ284","v":94911.012295237757},28098.738968694757,0,72271.709137645797,21396.293652027936,0,14552.878259709376,4308.4307876809398,0,3.0668931428890942,0.90796450046128596,null,null,null,null,null,null,null,null,null,null,null,null,"Sales",{"$f":"CH284","v":0},{"$f":"CI284","v":0},null,{"$f":"CK284","v":90600.855280782562},26303.148196760274,0,62615.601891398386,18178.497883652308,0,13937.67679582514,4046.372157779138,0,4.4675437371264977,1.2970127558836826,null,null,null,null,null,null,null,null,null,null,null,null,"Sales",{"$f":"DI284","v":0},{"$f":"DJ284","v":0},null,{"$f":"DL284","v":137661.92939374354},214119.60744535123,0,80844.210874718163,125745.22798683487,0,38820.169223389959,60380.959584692086,0,4.1838045518442186,6.5074969689453708,null,null,null,null,null,null,null,null,null,null,null,null,"Trade, Transportation, and Warehousing (Sales for other countries)",{"$f":"EJ286","v":0},{"$f":"EK286","v":0},{"$f":"EL286","v":0},35720.121992559689,39248.73151700262,0,8075.2985374108257,8873.0162870244239,0,2972.9865319218643,3266.6727795434472,0,7.6283387880790503,8.3819036529722855,null,null,null,null,null,null,null,null,null,null,null,null,"Sales",{"$f":"FK284","v":0},{"$f":"FL284","v":0},null,{"$f":"FN284","v":184612.75271949865},61116.887764849671,0,127588.62587482911,42238.792352072036,0,28400.094809455266,9401.979990070542,9.1413248743766573,3.0262769940827519,2.9423782216063741E-3,null,null,null,null,null,null,null,null,null,null,null,null,"Sales",{"$f":"GL286","v":0},{"$f":"GM286","v":0},0,174833.54746656859,91865.614717349352,0,128268.82382480301,67398.359871352135,0,31239.790200117186,16414.827542886542,0,6.5835154146301953,3.4592828397639002,null,null,null,null,null,null,null,null,null,null,null,null,"Trade, Transportation, and Warehousing (Sales for other countries)",{"$f":"HM286","v":0},{"$f":"HN286","v":0},{"$f":"HO286","v":0},35720.121992559689,39248.73151700262,0,8075.2985374108257,8873.0162870244239,0,2972.9865319218643,3266.6727795434472,0,7.6592345584630621,8.4158514596753431]
[null,null,null,null,null,null,null,null,null,null,null,null,null,null,null,null,null,null,null,null,null,null,null,null,null,null,null,null,null,312,"Transportation and Warehousing",{"$f":"AF286","v":0},{"$f":"AG286","v":0},null,{"$f":"AI286","v":50018.605241357844},21038.185192242163,0,21818.941676226284,9177.2038318179621,0,5518.5793106771034,2321.1541580552321,0,1.2732213554425642,0.53552606149781334,null,null,null,null,null,null,null,null,null,null,null,null,"Transportation and Warehousing",{"$f":"BG286","v":0},{"$f":"BH286","v":0},null,{"$f":"BJ286","v":26997.033962203343},16235.138720838317,0,19731.999665611009,11866.183235507724,0,6365.8034871311474,3828.1873048670145,0,0.9009032984420432,0.54177396097455066,null,null,null,null,null,null,null,null,null,null,null,null,"Transportation and Warehousing",{"$f":"CH286","v":0},{"$f":"CI286","v":0},null,{"$f":"CK286","v":15450.211877177684},6538.9362122268831,0,6829.3647361441635,2890.3668593466496,0,2541.4165529896159,1075.5943582394605,0,0.81461851720792433,0.34476799177038275,null,null,null,null,null,null,null,null,null,null,null,null,"Transportation and Warehousing",{"$f":"DI286","v":0},{"$f":"DJ286","v":0},null,{"$f":"DL286","v":86178.959312016712},126125.36336767874,0,45572.155066020343,66696.147911692751,0,15875.08078358023,23233.633224451329,0,0.9203743531913402,1.346994099920207,null,null,null,null,null,null,null,null,null,null,null,null,"Transportation and Warehousing",null,null,null,null,null,null,null,null,null,null,null,null,null,null,null,null,null,null,null,null,null,null,null,null,null,null,"Transportation and Warehousing",{"$f":"FK286","v":0},{"$f":"FL286","v":0},null,{"$f":"FN286","v":36708.755804702305},17196.335073691298,0,16226.151744279938,7601.1931277565991,0,6038.2498559473433,2828.6376235131784,1.9435711034139129,0.91047215306513463,6.2558998453914202E-4,null,null,null,null,null,null,null,null,null,null,null,null,"Transportation and Warehousing",{"$f":"GL288","v":0},{"$f":"GM288","v":0},0,45708.346813598211,56279.629173161316,0,28359.416219281928,34918.292601947636,0,9630.2291601091147,11857.478201820793,0,1.3628924035487286,1.678097862244754,null,null,null,null,null,null,null,null,null,null,null,null,"Transportation and Warehousing"]
[null,null,null,null,null,null,null,null,null,null,null,null,null,null,null,null,null,null,null,null,null,null,null,null,null,null,null,null,null,313,"Information",{"$f":"AF287","v":0},{"$f":"AG287","v":0},null,{"$f":"AI287","v":5339.0829919479656},12734.654143700092,0,2919.0378926837093,6962.4199608329427,0,708.54473234106456,1690.0040934579931,0,0.16347219704853561,0.38991000789151636,null,null,null,null,null,null,null,null,null,null,null,null,"Information",{"$f":"BG287","v":0},{"$f":"BH287","v":0},null,{"$f":"BJ287","v":3040.1009243344301},6327.8060064044948,0,1854.8897343186684,3860.8528776423354,0,474.17955792348471,986.97915938411097,0,3.9603240235918248E-2,8.2432007250807932E-2,null,null,null,null,null,null,null,null,null,null,null,null,"Information",{"$f":"CH287","v":0},{"$f":"CI287","v":0},null,{"$f":"CK287","v":3141.7597720164413},5788.8261273934459,0,1902.9571013050879,3506.2794696978322,0,337.43799555309113,621.74387183629176,0,8.8049591590535714E-2,0.16223512085345654,null,null,null,null,null,null,null,null,null,null,null,null,"Information",{"$f":"DI287","v":0},{"$f":"DJ287","v":0},null,{"$f":"DL287","v":13511.340784857299},36264.542201139884,0,5486.7004630997235,14726.346086399533,0,1795.4919758396043,4819.1142216335602,0,0.10409551853322484,0.27939316940539588,null,null,null,null,null,null,null,null,null,null,null,null,"Information",null,null,null,null,null,null,null,null,null,null,null,null,null,null,null,null,null,null,null,null,null,null,null,null,null,null,"Information",{"$f":"FK287","v":0},{"$f":"FL287","v":0},null,{"$f":"FN287","v":6390.0967968384948},11036.704154112333,0,3870.4678142104221,6684.9078443676499,0,686.32282891937348,1185.3876800026233,0.17983438678761426,0.31060232525633685,4.712127487030812E-5,null,null,null,null,null,null,null,null,null,null,null,null,"Information",{"$f":"GL289","v":0},{"$f":"GM289","v":0},0,9298.3797731994291,21571.14925908178,0,5716.3137706732987,13261.176739021288,0,1564.3619971452715,3629.1361461615966,0,0.13065473395814783,0.30310364131826256,null,null,null,null,null,null,null,null,null,null,null,null,"Information"]
[null,null,null,null,null,null,null,null,null,null,null,null,null,null,null,null,null,null,null,null,null,null,null,null,null,null,null,null,null,314,"Finance, Professional, and Business Services",{"$f":"AF292+AF293+AF289+AF288+AF291+AF290","v":0},{"$f":"AG292+AG293+AG289+AG288+AG291+AG290","v":0},null,{"$f":"AI292+AI293+AI289+AI288+AI291+AI290","v":78010.306661065159},93214.18274074918,0,57229.384589068963,66981.642964816114,0,18081.862807430585,25783.642271697991,0,2.0863683746819501,2.8570950549914995,null,null,null,null,null,null,null,null,null,null,null,null,"Finance, Professional, and Business Services",{"$f":"BG292+BG293+BG289+BG288+BG291+BG290","v":0},{"$f":"BH292+BH293+BH289+BH288+BH291+BH290","v":0},null,{"$f":"BJ292+BJ293+BJ289+BJ288+BJ291+BJ290","v":61553.856152582826},49859.212151240179,0,46419.306331201216,39406.236425597534,0,15829.621376092404,13921.840582678151,0,3.8107216632985073,7.2675733301564476,null,null,null,null,null,null,null,null,null,null,null,null,"Finance, Professional, and Business Services",{"$f":"CH292+CH293+CH289+CH288+CH291+CH290","v":0},{"$f":"CI292+CI293+CI289+CI288+CI291+CI290","v":0},null,{"$f":"CK292+CK293+CK289+CK288+CK291+CK290","v":41653.002277069412},61069.364389143564,0,25697.86683874259,40043.024150992707,0,5768.9813499256406,12033.360550055573,0,1.5053327083744197,3.1399323604841491,null,null,null,null,null,null,null,null,null,null,null,null,"Finance, Professional, and Business Services",{"$f":"DI292+DI293+DI289+DI288+DI291+DI290","v":0},{"$f":"DJ292+DJ293+DJ289+DJ288+DJ291+DJ290","v":0},null,{"$f":"DL292+DL293+DL289+DL288+DL291+DL290","v":102894.6428763803},366179.15097192425,0,53532.052109633019,204665.75593816032,0,25146.26244214422,118945.11086855817,0,1.6164369480689873,7.4761501420220897,null,null,null,null,null,null,null,null,null,null,null,null,"Finance, Professional, and Business Services",{"$f":"EJ289","v":0},{"$f":"EK289","v":0},{"$f":"EL289","v":0},30052.011965835773,28512.291571241389,0,6260.6955202195359,5939.9276266160559,0,1491.8460635949814,1415.4110544407229,0,1.5251393839009459,1.4469985853194394,null,null,null,null,null,null,null,null,null,null,null,null,"Finance, Professional, and Business Services",{"$f":"FK292+FK293+FK289+FK288+FK291+FK290","v":0},{"$f":"FL292+FL293+FL289+FL288+FL291+FL290","v":0},null,{"$f":"FN292+FN293+FN289+FN288+FN291+FN290","v":97931.769302884059},118834.8491160686,0,58123.100372577108,76645.343997040662,0,14239.820344791091,22691.018593279736,3.7312023609987395,5.9456355556958913,9.7767181899982092E-4,null,null,null,null,null,null,null,null,null,null,null,null,"Finance, Professional, and Business Services",{"$f":"SUM(GL290:GL295)","v":0},{"$f":"SUM(GM290:GM295)","v":0},0,103024.17767392928,128450.25370129882,0,74533.268679863904,101954.42962048575,0,21774.923518563905,16101.572700721765,0,5.0531851159735579,3.7322617268086562,null,null,null,null,null,null,null,null,null,null,null,null,"Finance, Professional, and Business Services",{"$f":"HM289","v":0},{"$f":"HN289","v":0},{"$f":"HO289","v":0},30052.011965835773,28512.291571241389,0,6260.6955202195359,5939.9276266160559,0,1491.8460635949814,1415.4110544407229,0,1.531316397995057,1.4528591189533002]
[null,null,null,null,null,null,null,null,null,null,null,null,null,null,null,null,null,null,null,null,null,null,null,null,null,null,null,null,null,315,"Education and Health Care",{"$f":"AF294+AF295","v":0},{"$f":"AG294+AG295","v":0},null,{"$f":"AI294+AI295","v":227.89982734501598},34884.225902580314,0,172.17124052136003,20869.48953924454,0,126.79987794251615,15406.751274955934,0,1.2510695547717329E-2,1.5201053637272506,null,null,null,null,null,null,null,null,null,null,null,null,"Education and Health Care",{"$f":"BG294+BG295","v":0},{"$f":"BH294+BH295","v":0},null,{"$f":"BJ294+BJ295","v":183.65527415354632},18928.081798088962,0,164.77681155106171,15783.164666518322,0,142.10016878999849,12659.602359744755,0,3.5561608111324902E-2,4.0166155914272466,null,null,null,null,null,null,null,null,null,null,null,null,"Education and Health Care",{"$f":"CH294+CH295","v":0},{"$f":"CI294+CI295","v":0},null,{"$f":"CK294+CK295","v":490.41347729978929},23400.269460853822,0,278.05258939167652,14747.446747955084,0,183.24293160009529,10043.040729842578,0,4.7814607429714689E-2,2.6205870300418637,null,null,null,null,null,null,null,null,null,null,null,null,"Education and Health Care",{"$f":"DI294+DI295","v":0},{"$f":"DJ294+DJ295","v":0},null,{"$f":"DL294+DL295","v":783.7954294234662},25740.728664255901,0,365.38235808632948,12201.660767395053,0,163.51062925036194,5600.5238394194557,0,1.0062040635742869E-2,0.34464241690000408,null,null,null,null,null,null,null,null,null,null,null,null,"Education and Health Care",null,null,null,null,null,null,null,null,null,null,null,null,null,null,null,null,null,null,null,null,null,null,null,null,null,null,"Education and Health Care",{"$f":"FK294+FK295","v":0},{"$f":"FL294+FL295","v":0},null,{"$f":"FN294+FN295","v":1571.1162509298251},39776.464819107088,0,883.00408683897831,25052.093479627561,0,580.21557425441836,17057.363633074798,0.15203153327269631,4.4694717994404876,3.9836205946295238E-5,null,null,null,null,null,null,null,null,null,null,null,null,"Education and Health Care",{"$f":"GL298+GL297","v":0},{"$f":"GM298+GM297","v":0},0,320.40359596888777,23254.480181345236,0,271.7847458571041,19152.676370338668,0,193.43363446608126,13038.985449309934,0,5.6903290310873739E-2,4.2379890485588225,null,null,null,null,null,null,null,null,null,null,null,null,"Education and Health Care"]
[null,null,null,null,null,null,null,null,null,null,null,null,null,null,null,null,null,null,null,null,null,null,null,null,null,null,null,null,null,316,"Other",{"$f":"AF297+AF296+AF285+AF298","v":0},{"$f":"AG297+AG296+AG285+AG298","v":0},null,{"$f":"AI297+AI296+AI285+AI298","v":11677.854705735515},278875.61793183751,0,6017.8261377396793,18840.416769708732,0,2418.9435318598294,8981.5474879224894,0,0.51135435286673392,1.8986608587333411,null,null,null,null,null,null,null,null,null,null,null,null,"Other",{"$f":"BG297+BG296+BG285+BG298","v":0},{"$f":"BH297+BH296+BH285+BH298","v":0},null,{"$f":"BJ297+BJ296+BJ285+BJ298","v":2510.4055934488983},167380.28292930493,0,1797.6882237095135,6813.5963599938304,0,417.28441140158122,2231.2865653486579,0,0.29971488581127015,1.1078791168699103,null,null,null,null,null,null,null,null,null,null,null,null,"Other",{"$f":"CH297+CH296+CH285+CH298","v":0},{"$f":"CI297+CI296+CI285+CI298","v":0},null,{"$f":"CK297+CK296+CK285+CK298","v":14194.389926906186},179024.91621804595,0,5903.1019135846291,7503.3352529030135,0,3441.3421892779552,5022.1116199535791,0,1.6967850890713139,2.6803337760756456,null,null,null,null,null,null,null,null,null,null,null,null,"Other",{"$f":"DI297+DI296+DI285+DI298","v":0},{"$f":"DJ297+DJ296+DJ285+DJ298","v":0},null,{"$f":"DL297+DL296+DL285+DL298","v":53709.673408391754},574501.46459449723,0,37199.908956200488,67079.422942975114,0,20504.713942365011,36687.77924743991,0,1.2805788618518605,2.3209853773743285,null,null,null,null,null,null,null,null,null,null,null,null,"Other",{"$f":"SUM(EJ290:EJ305)+EJ288+EJ287","v":0},{"$f":"SUM(EK290:EK305)+EK288+EK287","v":0},{"$f":"SUM(EL290:EL305)+EL288+EL287","v":0},13354.315809853357,758037.44602356805,0,4717.7020701877145,7665.1364759811759,0,3732.4340977697543,5373.0483819821884,0,8.9941126913084144,12.942462249878355,null,null,null,null,null,null,null,null,null,null,null,null,"Other",{"$f":"FK297+FK296+FK285+FK298","v":0},{"$f":"FL297+FL296+FL285+FL298","v":0},null,{"$f":"FN297+FN296+FN285+FN298","v":23679.406694416924},333489.19788864348,0,9926.1832580334503,13504.705561833012,0,5934.6672474764409,9029.9359678989204,2.9851901838707788,4.8369943205186212,1.6025232670711085E-3,null,null,null,null,null,null,null,null,null,null,null,null,"Other",{"$f":"GL296+SUM(GL299:GL302)","v":0},{"$f":"GM296+SUM(GM299:GM302)","v":0},0,1519.4377000754657,881605.93584139086,0,1098.6238426671148,14448.649635932517,0,576.73431924330293,5920.2011259551491,0,0.41170816641565522,2.5194321417426182,null,null,null,null,null,null,null,null,null,null,null,null,"Other",{"$f":"SUM(HM290:HM305)+HM288+HM287","v":0},{"$f":"SUM(HN290:HN305)+HN288+HN287","v":0},{"$f":"SUM(HO290:HO305)+HO288+HO287","v":0},13354.315809853357,758037.44602356805,0,4717.7020701877145,7665.1364759811759,0,3732.4340977697543,5373.0483819821884,0,9.0305400247342504,12.994880915722206]
[null,null,null,null,null,null,null,null,null,null,null,null,null,null,null,null,null,null,null,null,null,null,null,null,null,null,null,null,null,317,"Total",{"$f":"SUM(AF307:AF317)","v":1000000},{"$f":"SUM(AG307:AG317)","v":0},null,{"$f":"SUM(AI307:AI317)","v":834736.25147838402},597404.61977783521,291315.09752364509,554094.32480825577,194257.73244715124,76148.241173161703,91695.414020198034,75885.391561372438,18.522926513397671,16.525127744058722,12.639025617274482,null,null,null,null,null,null,null,null,null,null,null,null,"Total",{"$f":"SUM(BG307:BG317)","v":1000000},{"$f":"SUM(BH307:BH317)","v":0},null,{"$f":"SUM(BJ307:BJ317)","v":711674.19375827443},351881.65243012097,376641.77335229964,472749.4843909624,126301.82390823217,46161.292871819183,68714.359216087527,43130.246719871851,4.5998210250756486,10.738857726654294,15.514268574045644,null,null,null,null,null,null,null,null,null,null,null,null,"Total",{"$f":"SUM(CH307:CH317)","v":1000000},{"$f":"SUM(CI307:CI317)","v":0},null,{"$f":"SUM(CK307:CK317)","v":915133.22435059724},405287.45684552635,205279.86568762723,303021.1396008078,132534.81633332322,46719.864143806866,70600.914100597525,44488.214478491747,14.97545390904642,22.396636775011913,15.569459342652888,null,null,null,null,null,null,null,null,null,null,null,null,"Total",{"$f":"SUM(DI307:DI317)","v":1000000},{"$f":"SUM(DJ307:DJ317)","v":0},null,{"$f":"SUM(DL307:DL317)","v":907436.41643576242},2077379.2177138762,159536.8781249834,467504.4843161896,804498.74713500298,102704.02388935236,194568.29579252395,373608.37507204397,8.2787319797835437,14.289429307962607,26.779220035065748,null,null,null,null,null,null,null,null,null,null,null,null,"Total",{"$f":"SUM(EJ307:EJ317)","v":1000000},{"$f":"SUM(EK307:EK317)","v":0},{"$f":"SUM(EL307:EL317)","v":0},1108595.700901682,1250658.1482123178,300861.81735290086,216281.56308107643,126645.80045739215,193502.46036524736,118547.22410276229,78386.959853006134,1930.96499645566,963.90575962298351,655.61397093041899,null,null,null,null,null,null,null,null,null,null,null,null,"Total",{"$f":"SUM(FK307:FK317)","v":1000000},{"$f":"SUM(FL307:FL317)","v":0},null,{"$f":"SUM(FN307:FN317)","v":1931739.1977893321},847754.03044822055,205279.86568762723,683382.21248625382,283021.90429595206,46719.864143806866,165066.929832002,90705.245372683305,52.880620477977864,31.783035237801496,1.7463008887719046E-2,null,null,null,null,null,null,null,null,null,null,null,null,"Total",{"$f":"SUM(GL307:GL317)","v":1000000},{"$f":"SUM(GM307:GM317)","v":0},0,1239305.6339268573,1525466.9050530139,361188.05918902927,623044.61580311274,379497.73759772308,88317.33831811737,152777.89706811035,102610.00630339395,8.8005323161648636,23.178469410562634,25.136673765745385,null,null,null,null,null,null,null,null,null,null,null,null,"Total",{"$f":"SUM(HM307:HM317)","v":1000000},{"$f":"SUM(HN307:HN317)","v":0},{"$f":"SUM(HO307:HO317)","v":0},1108595.700901682,1250658.1482123178,300861.81735290086,216281.56308107643,126645.80045739215,193502.46036524736,118547.22410276229,78386.959853006134,1938.7856573895046,967.80970409221436,658.26929331044641]

{"sheet":"SouthAfrica-IO-Data","index":16,"n_rows":134,"n_cols":47,"rows_kept":134,"cut":false,"hidden":false,"merged":[]}
[]
[]
[]
[]
[]
[]
[]
[]
[]
[]
[null,"Direct Requirements "]
[null,null,"DOM_C01T05: Agriculture, hunting, forestry and fishing","DOM_C10T14: Mining and quarrying","DOM_C15T16: Food products, beverages and tobacco","DOM_C17T19: Textiles, textile products, leather and footwear","DOM_C20: Wood and products of wood and cork","DOM_C21T22: Pulp, paper, paper products, printing and publishing","DOM_C23: Coke, refined petroleum products and nuclear fuel","DOM_C24: Chemicals and chemical products","DOM_C25: Rubber and plastics products","DOM_C26: Other non-metallic mineral products","DOM_C27: Basic metals","DOM_C28: Fabricated metal products","DOM_C29: Machinery and equipment, nec","DOM_C30T33X: Computer, Electronic and optical equipment","DOM_C31: Electrical machinery and apparatus, nec","DOM_C34: Motor vehicles, trailers and semi-trailers","DOM_C35: Other transport equipment","DOM_C36T37: Manufacturing nec; recycling","DOM_C40T41: Electricity, gas and water supply","DOM_C45: Construction","DOM_C50T52: Wholesale and retail trade; repairs","DOM_C55: Hotels and restaurants","DOM_C60T63: Transport and storage","DOM_C64: Post and telecommunications","DOM_C65T67: Financial intermediation","DOM_C70: Real estate activities","DOM_C71: Renting of machinery and equipment","DOM_C72: Computer and related activities","DOM_C73T74: R&D and other business activities","DOM_C75: Public administration and defence; compulsory social security","DOM_C80: Education","DOM_C85: Health and social work","DOM_C90T93: Other community, social and personal services","DOM_C95: Private households with employed persons","HH",null,null,null,null,null,null,"VA % output","Labor % Output","Avg Salaries $2015"]
[null,"DOM_C01T05: Agriculture, hunting, forestry and fishing",1.8687582854617763E-2,5.9620439249327573E-5,0.17536008326925601,0.10103695825578303,0.17676124300328122,7.0948700785005786E-2,5.9518326684758352E-4,4.5221112696148362E-3,2.4347063683420732E-2,1.186576642823718E-3,4.7821212427139073E-5,6.8908489525909599E-4,1.6317479577000723E-3,8.5559110185254067E-4,1.9563318777292577E-3,1.1535309981623057E-3,0,2.4268869989158469E-2,5.6430489393419263E-5,1.952747841671205E-5,4.0534030055404233E-5,5.0163064507213534E-3,1.4401099421075801E-5,2.771285784227689E-5,0,1.7465746983128089E-4,2.9661016949152541E-4,1.2212994626282367E-4,2.7722399940216042E-4,5.2225746114810249E-4,7.2051133062173156E-4,1.4017642093197961E-3,7.8837152007883715E-3,0,2.5764861175918693E-2,null,null,null,null,null,{"$f":"B13","v":"DOM_C01T05: Agriculture, hunting, forestry and fishing"},{"$f":"TRANSPOSE(C48:AJ48)","v":0.40384887317719842},{"$f":"TRANSPOSE(C47:AJ47)","v":0.12388422448077772},14391.35292146129,"<- average wages - not specific to agriculture"]
[null,"DOM_C10T14: Mining and quarrying",6.3676535572249225E-3,1.2235817575083427E-2,3.5984884004426022E-3,6.9358453298894668E-3,1.6560509554140127E-2,2.8868739731029026E-2,0.24933927571864839,1.9286733238231098E-2,1.2139810146857982E-2,0.15649441807607459,0.26447787206231638,0.18266050377406498,9.4118385406315702E-2,7.0009671899412249E-2,0.13154585152838427,6.6904797893413734E-2,1.6786293123408198E-2,7.6207214669063925E-2,0.11309610582597779,3.0885961695766226E-2,0,1.0778840307335139E-3,2.5345934981093414E-3,4.7943244067139021E-3,0,0,0,3.6638983878847092E-4,0,3.6112990859839965E-3,3.1841952353282971E-3,6.1027082704088352E-3,6.5494628388571936E-3,0,5.3273912750555826E-4,null,null,null,null,null,{"$f":"B14","v":"DOM_C10T14: Mining and quarrying"},0.59559456057181115,0.20179474556551691,15783.689727463312]
[null,"DOM_C15T16: Food products, beverages and tobacco",9.4551480335837379E-2,1.0135474672385686E-3,0.14269471690328386,4.406122991605576E-4,7.7205172746574021E-5,2.5132355625874761E-3,2.2035951903523628E-3,2.4843081312410843E-2,0,0,0,0,2.0919845611539389E-4,0,0,0,0,9.211935112421972E-3,3.5269055870887041E-4,0,2.0324920784924121E-3,0.12707976341827429,4.5425182173907674E-3,8.6002235503865945E-3,0,3.1653307609422906E-3,5.1694915254237288E-3,0,5.0310129282809465E-3,3.9607796426921263E-3,3.4166182452062752E-3,6.5441478280399311E-3,1.609407309599143E-2,0,8.6810589406600969E-2,null,null,null,null,null,"DOM_C15T16: Food products, beverages and tobacco",0.26195354550739858,0.13561729900039382,12836.637168141593]
[null,"DOM_C17T19: Textiles, textile products, leather and footwear",8.2854617764030053E-3,3.3728134203905311E-3,3.3757806492751448E-4,0.17258327952292324,1.0036672457054622E-3,5.8845006998113555E-3,4.6055848029872533E-5,4.4008559201141233E-3,1.3842755736903337E-2,1.6712347082024198E-5,0,8.4810448647273354E-5,1.2447308138865936E-3,3.4967636336582105E-3,6.6375545851528382E-4,2.8703033388755857E-2,5.0937717064135218E-3,1.4168063944836133E-2,1.0345589722126867E-4,6.511329192061429E-3,1.7603350195489838E-3,1.1469791609087393E-3,2.2712591086953837E-3,4.3001117751932973E-3,1.1877230162056321E-5,1.1554263388838582E-4,1.6949152542372882E-4,2.4425989252564734E-4,1.8320890395273211E-4,1.7539473632542791E-3,4.5090063916327717E-3,8.6119436506276962E-3,5.0934115061273188E-3,0,2.4704061543221738E-2,null,null,null,null,null,"DOM_C17T19: Textiles, textile products, leather and footwear",0.13309530140160292,0.13375621985034375,12836.637168141593]
[null,"DOM_C20: Wood and products of wood and cork",1.4317277949624392E-3,3.3438549213265722E-3,5.5817595318917498E-3,1.6864815588559273E-3,9.7008299556070265E-2,3.9676261181768391E-3,2.3417627344419802E-3,7.4893009985734661E-3,9.7792915071911513E-4,3.5263052343071062E-3,5.3134680474598971E-4,1.6538037486218302E-3,1.1296716630231271E-3,2.3063760136894577E-3,5.93886462882096E-4,2.8718944161144305E-3,8.3584163000694611E-3,2.3056773263839786E-2,3.7620326262279512E-4,6.0578577488288937E-3,1.5912502084607261E-3,4.0075175501630645E-4,1.4154223431000216E-3,2.4248750611992279E-3,0,8.2492066520312667E-4,4.2372881355932206E-5,1.2212994626282367E-4,1.6874504311435853E-4,6.5838471919171815E-4,1.5572341661824521E-3,2.3698334146511468E-3,1.793766660853534E-3,0,1.8527344364069177E-4,null,null,null,null,null,"DOM_C20: Wood and products of wood and cork",0.2650453580389886,0.22065238370970855,12836.637168141593]
[null,"DOM_C21T22: Pulp, paper, paper products, printing and publishing",3.6676977463543969E-4,5.9961127473609445E-4,1.2546651413139289E-2,6.2521365898127396E-3,8.1451457247635594E-3,0.20110752753605551,1.5729843480971849E-3,2.5106990014265335E-2,6.9298082921647646E-3,5.999732602446687E-3,3.4537542308489332E-4,1.070731914171826E-3,3.1693566101482174E-3,4.0175582173945399E-3,2.6899563318777291E-3,4.9005178956412435E-3,4.1444778884000919E-3,8.1951206372935237E-3,4.4203883358178429E-4,2.0395366346343696E-3,4.8564400466952026E-2,2.1834061135371182E-3,4.9457490011808897E-3,8.7249314106768415E-3,1.1334271068933746E-3,2.4793299602049675E-2,3.8432203389830506E-2,7.3277967757694193E-3,3.9146439359058122E-2,5.1270237476619485E-3,1.6385822196397445E-2,2.8414767314885805E-2,4.8996404162203015E-3,0,6.4770847317215576E-3,null,null,null,null,null,"DOM_C21T22: Pulp, paper, paper products, printing and publishing",0.22970851335726891,0.19149272804722206,12836.637168141593]
[null,"DOM_C23: Coke, refined petroleum products and nuclear fuel",1.4560318161732214E-2,6.7967300744233433E-3,8.2706625907241049E-3,2.5122497815930414E-2,3.7444508782088397E-3,1.053976754092375E-2,4.6580176145904928E-2,5.2546362339514985E-2,0.11075890674265289,3.2421953339126942E-3,1.0674757307346933E-2,1.0399881265371894E-2,5.5960587010867868E-3,5.691540807975598E-3,1.4847161572052401E-2,8.6315940207317369E-3,7.1775874044917808E-4,7.3331851881780173E-3,2.7697965210603291E-3,1.1961665390148169E-2,5.8160542553782864E-3,9.8944226410922556E-3,2.4294654723354882E-2,4.5901730206091285E-2,2.154868900830218E-4,5.4869315906996242E-3,8.4745762711864406E-3,1.2212994626282364E-3,8.6421568509282183E-3,8.7160712626195846E-3,3.4631028471818711E-3,6.4047458624722168E-3,4.7778414454216047E-3,0,3.1627174935559776E-2,null,null,null,null,null,"DOM_C23: Coke, refined petroleum products and nuclear fuel",0.21217220635854123,4.0231554632864035E-2,12836.637168141593]
[null,"DOM_C24: Chemicals and chemical products",4.1241714538223596E-2,1.4554200941321564E-2,1.1932446878340616E-3,5.9634595662247884E-3,7.9521327928971253E-3,1.4616929349479705E-2,4.0139442936804291E-3,5.7146932952924397E-2,2.3470299617258761E-2,5.6487733137241787E-3,1.5249653296209903E-3,3.3712153337291158E-3,2.081524638348169E-3,5.9519380998437627E-4,3.5807860262008734E-3,5.139179481467927E-3,5.6031488770548737E-3,2.7541531147518908E-3,1.9092315578106854E-3,7.511570030961901E-3,2.1390386717809033E-3,3.8278702117074789E-3,2.8431884857038226E-3,5.3809132310420962E-3,1.4422350911068391E-4,2.7891454413056858E-3,4.5338983050847454E-3,2.4425989252564734E-4,4.4307627034884424E-3,8.6152847350296005E-3,6.1127251597908197E-3,1.1686531446760066E-2,4.1799192251370928E-3,0,7.5241604056303169E-3,null,null,null,null,null,"DOM_C24: Chemicals and chemical products",0.23171897289586305,0.16134094151212552,12836.637168141593]
[null,"DOM_C25: Rubber and plastics products",1.7719840919133893E-3,5.0472960427359317E-3,1.0907991222970311E-2,8.9337942036692361E-3,8.4153638293765678E-3,2.1481165946570921E-3,1.3533333805701008E-3,1.7974322396576318E-2,3.3418199598711833E-2,2.3230162444013635E-3,2.6567340237299486E-4,6.6788228309727757E-4,6.7257303641099133E-3,1.0713488579718771E-2,1.3187772925764191E-2,1.8209878998575985E-2,7.8953461449409595E-3,1.2875160771162871E-2,1.7869654974582766E-4,1.5702262366860568E-2,7.4130950395612134E-3,0,6.2048165505663748E-3,1.1556261720229463E-2,3.5631690486168965E-5,1.1231818829150063E-3,3.3898305084745765E-4,1.2212994626282367E-4,4.8694998155857745E-4,4.9738805823628805E-4,6.972690296339338E-4,8.751345616195412E-4,3.8505083722951633E-3,0,3.315895588121539E-3,null,null,null,null,null,"DOM_C25: Rubber and plastics products",0.29452528284071561,0.27801851321047399,12836.637168141593]
[null,"DOM_C26: Other non-metallic mineral products",1.246133451171012E-3,1.7153652092592247E-3,3.474240918212336E-3,7.5967637786303038E-6,2.7021810461300907E-3,2.5558327755126879E-4,1.9485166474176842E-4,5.9629101283880164E-3,3.7093864337621615E-4,6.0883080419814155E-2,3.4537542308489332E-4,4.876600797218217E-4,1.5271487296423753E-3,6.6215311360761859E-3,1.4497816593886464E-3,7.7565015393672287E-3,1.3429034498726557E-3,3.5824192103863224E-3,5.5960235315140772E-4,7.8326885649256106E-2,8.5700520688568945E-4,1.5062738378199105E-3,2.0038101194468335E-3,3.7920427147515542E-3,5.0902414980241374E-6,4.0574273760805255E-4,6.779661016949153E-4,0,6.4364180730762464E-4,1.8128485806769973E-3,1.1388727484020918E-3,2.1607304662995749E-3,5.7660740039473949E-3,0,1.2931712076335155E-3,null,null,null,null,null,"DOM_C26: Other non-metallic mineral products",0.32976803262250148,0.14863961494752323,12836.637168141593]
[null,"DOM_C27: Basic metals",1.3698630136986303E-4,7.0352118314206524E-4,0,4.7859611805370908E-4,2.3933603551437948E-3,6.0853161321730671E-6,1.9130890720100901E-4,3.6376604850213976E-4,2.9169266047311543E-3,3.8438398288655651E-4,1.0961684581909768E-2,4.3444152319565776E-2,4.2875223580849976E-2,3.9059593780224689E-3,2.0279475982532751E-2,2.2768315287865649E-2,2.0351933317897662E-2,1.8652821828515249E-3,6.4895062802432159E-4,1.2261086725871088E-2,0,0,6.3364837452733536E-4,1.1962716968582858E-3,0,0,0,0,0,1.0340435947543884E-4,2.3242300987797795E-5,6.1956429141206458E-5,7.1141671580147873E-4,0,0,null,null,null,null,null,"DOM_C27: Basic metals",0.15953687812498341,0.10270402388935236,12836.637168141593]
[null,"DOM_C28: Fabricated metal products",9.752540874944763E-3,1.320848245540817E-2,4.6885842351043676E-5,2.5221255745052611E-3,8.878594865856012E-3,2.2576522850362079E-3,2.054799373640467E-3,7.3466476462196871E-4,1.14990979446627E-2,1.537535931546226E-3,1.6934022667254692E-2,5.128911881943856E-2,2.7028440530108888E-2,8.6675098578974791E-3,6.7161572052401752E-2,3.5703773239671922E-2,5.593887473952304E-2,1.610741870534602E-2,2.6005050528800713E-3,5.1370286554897164E-2,3.8252543220857194E-3,1.36808357746946E-3,1.2528956496335947E-3,2.3694493455146742E-3,8.314061113439425E-5,2.2302415378455866E-3,3.6440677966101693E-3,6.106497313141182E-4,3.5460565488745913E-3,2.9908729291313637E-3,1.6502033701336432E-3,3.1520333325588783E-3,6.6103623242565425E-3,0,1.1153835596954779E-3,null,null,null,null,null,"DOM_C28: Fabricated metal products",0.2627957764396574,0.24410567381901452,12836.637168141593]
[null,"DOM_C29: Machinery and equipment, nec",1.4405656208572692E-3,4.3761402409006429E-3,0,0,7.7205172746574021E-5,0,0,0,0,0,5.8448148522058869E-5,6.7848358917818683E-4,1.166281392843321E-2,2.2319767874414106E-4,1.5545851528384279E-3,2.9594036642508811E-3,1.1206297754109747E-2,1.3467741392429784E-5,7.9472939229065459E-4,7.5940193842769085E-4,1.3017214223506959E-3,1.3819026035045052E-5,5.019811798203565E-4,9.5147478591817332E-4,0,1.2011059848397317E-3,1.9491525423728812E-3,0,1.9092296306653137E-3,2.7225451608723137E-4,4.8808832074375363E-4,9.2934643711809677E-4,2.2422083260669175E-4,0,2.0897846336576345E-4,null,null,null,null,null,"DOM_C29: Machinery and equipment, nec",0.30389213727602693,0.24330826438500885,12836.637168141593]
[null,"DOM_C30T33X: Computer, Electronic and optical equipment",0,1.5842002429107042E-4,0,0,0,3.286070711373456E-4,7.0855150815188519E-6,0,0,0,1.0626936094919794E-5,8.4810448647273354E-5,1.0920159409223562E-2,3.5600029759690503E-2,1.3240174672489082E-2,4.5743470616781091E-3,4.1907849039129431E-3,4.7137094873504241E-5,1.4107622348354816E-5,0,2.1077695628810198E-4,1.3819026035045052E-5,2.4481869015828865E-4,4.6188096403794817E-4,8.4837358300402288E-5,2.8213898972745378E-4,4.6610169491525426E-4,8.3048363458720076E-3,4.4596904251651895E-4,2.5392969288905234E-3,2.1615339918651948E-3,4.1433361988181816E-3,6.0345853713899764E-4,0,9.9249174691023773E-4,null,null,null,null,null,"DOM_C30T33X: Computer, Electronic and optical equipment",0.25451975299456892,0.17792574957220447,12836.637168141593]
[null,"DOM_C31: Electrical machinery and apparatus, nec",2.8722934158197084E-4,1.863564586821839E-3,0,3.0387055114521215E-5,0,0,3.5427575407594259E-6,0,0,0,2.1253872189839589E-5,7.4209142566364177E-4,1.2499607752894784E-2,1.6442229000818393E-2,1.5021834061135371E-2,3.4605929944869175E-3,7.7795786061588337E-3,1.818145087978021E-4,4.8859398733135523E-3,1.3762532844133835E-2,4.6092982748716809E-4,2.0728539052567577E-4,8.7023786501643776E-4,1.6489150416154751E-3,1.1877230162056321E-5,5.0247610551460808E-4,8.0508474576271186E-4,7.3277967757694185E-4,7.9792298958360967E-4,1.5091800819643161E-3,3.486345148169669E-4,6.8926527419592182E-4,3.299644845273785E-3,0,2.5532801509136412E-3,null,null,null,null,null,"DOM_C31: Electrical machinery and apparatus, nec",0.1881048034934498,0.19191266375545851,12836.637168141593]
[null,"DOM_C34: Motor vehicles, trailers and semi-trailers",1.1754308440123731E-3,1.2878014877854753E-3,1.6175615611110068E-4,1.1395145667945455E-4,3.4742327735958308E-4,1.2779163877563439E-4,5.6684120652150815E-5,1.9971469329529244E-4,2.0233016911429968E-4,2.1726051206631458E-4,3.7194276332219276E-5,3.2864048850818426E-4,5.1253621748271506E-4,1.8599806562011757E-4,7.5109170305676857E-4,3.2426154127652131E-2,6.2514470942347765E-4,1.4141128462051274E-4,1.0345589722126867E-4,0,2.4864732151129395E-3,0,3.5118109588251991E-3,4.4941017800892357E-3,2.3754460324112642E-5,2.7139083773783645E-4,1.271186440677966E-3,0,7.3765690275705298E-4,3.1597230857431566E-3,2.6961069145845437E-3,5.3359974597864063E-3,8.7196990458157902E-4,0,4.8907198590674196E-3,null,null,null,null,null,"DOM_C34: Motor vehicles, trailers and semi-trailers",0.24178009721481927,0.17750057676549907,12836.637168141593]
[null,"DOM_C35: Other transport equipment",0,0,0,0,0,0,0,0,5.058254227857492E-5,0,1.0626936094919794E-5,2.1202612161818338E-5,0,0,0,0,0.22833989349386433,0,0,0,0,0,7.6943016906890717E-3,0,0,0,0,0,0,3.9018784252694075E-3,0,2.3233660927952418E-5,0,0,1.3218667578270232E-3,null,null,null,null,null,"DOM_C35: Other transport equipment",0.12759898124565872,0.13026163463764762,12836.6371681416]
[null,"DOM_C36T37: Manufacturing nec; recycling",0,3.1752142503070455E-3,2.203634590499053E-4,3.4945113381699392E-4,3.5514379463424048E-3,3.304326659769975E-3,3.3656196637214542E-4,6.2767475035663343E-4,6.4071220219528231E-4,4.5123337121465341E-4,3.7258037948788798E-2,2.1732677465863798E-2,6.014455613317574E-3,4.835949706123057E-4,4.1746724890829694E-3,7.5576168845116584E-4,1.3429034498726557E-3,0.14471761513235423,1.2226606035240843E-4,1.2692860970862831E-3,5.3921841125132031E-3,1.0778840307335139E-3,2.4420150018309968E-3,4.3370622523163337E-3,4.8170652042968422E-3,6.6208616256042485E-3,1.1228813559322034E-2,4.8851978505129467E-4,1.1525286444710688E-2,1.5000176703652266E-3,6.182452062754213E-3,9.98272964537689E-3,3.4546617171993988E-3,0,1.4019959626608508E-2,null,null,null,null,null,"DOM_C36T37: Manufacturing nec; recycling",0.2675770859847949,0.10384302000632983,12836.6371681416]
[null,"DOM_C40T41: Electricity, gas and water supply",1.4463102076889086E-2,3.2685628237602779E-2,1.6025580915586729E-2,1.7981539864017928E-2,1.6985138004246284E-2,1.3965800523337187E-2,3.1477400749647499E-2,2.9957203994293864E-2,2.3419717074980192E-2,2.5703589812153219E-2,2.7980722737923819E-2,2.7255957934017475E-2,9.3511709883581078E-3,8.1839148872851729E-3,1.0497816593886463E-2,9.6260172950095868E-3,1.1484139847186849E-2,8.6058867497626305E-3,0.11314783377458841,3.6256018260362038E-3,1.1276567161413457E-2,1.8324028522469737E-2,1.066504277126528E-2,3.6811912833824472E-3,1.7120178905021184E-3,3.2440609742662371E-2,1.0805084745762712E-2,6.7171470444553011E-3,2.5528714379729384E-2,4.8377533243192652E-3,2.0592678675188842E-2,1.6890871494621408E-2,5.5501576466224318E-3,0,2.2629248500969409E-2,null,null,null,null,null,"DOM_C40T41: Electricity, gas and water supply",0.54372657546872583,0.17767139585518055,27577.931034482757]
[null,"DOM_C45: Construction",1.3875386654882899E-3,6.786509427694886E-3,2.6560829691866243E-3,3.8135754168724125E-3,6.5238370970855039E-3,1.2365362380575669E-2,1.9945724954475566E-2,1.1055634807417974E-3,2.9506482995835374E-3,9.0246674242930682E-4,2.2529104521229961E-3,4.5903655330336701E-3,3.4413146030982293E-3,6.1751357785879033E-3,1.6943231441048034E-3,2.7048313060357514E-3,1.2039824033341052E-3,1.0100806044322337E-3,1.4907054281428256E-3,5.738474990724448E-2,9.7860729705190222E-4,7.4069979547841478E-3,2.4887157099536285E-2,2.9809797419009174E-2,2.1379014291701378E-4,1.5737981550797111E-2,9.5762711864406779E-3,8.6712261846604785E-3,2.2124885795765464E-2,4.1270119674184638E-3,3.5793143521208599E-3,4.4608628981668641E-3,2.9646976755773684E-3,0,4.1150042793798762E-3,null,null,null,null,null,"DOM_C45: Construction",0.29775065145837715,0.13428829935190467,10604.947589098532]
[null,"DOM_C50T52: Wholesale and retail trade; repairs",7.2156429518338491E-2,2.5176859774430328E-2,0.10503131974269049,0.16231245489421506,7.762980119668017E-2,7.3833140631655816E-2,8.0888240170619199E-2,7.6940085592011417E-2,7.9245982903100712E-2,7.2297613476836692E-2,9.4000563227613035E-2,9.4118395386311601E-2,8.1221300586801673E-2,6.658730749200209E-2,9.4724890829694319E-2,0.1038098344484133,4.6909006714517247E-2,0.11640842272546684,3.4591889998166016E-2,9.2319408794742319E-2,3.7562306594770882E-2,5.5068818749654525E-2,5.7526220287445938E-2,9.0468624426112906E-2,2.9150116312018229E-3,7.2579583347888124E-2,7.622881355932204E-2,1.0136785539814364E-2,0.10369382899377332,1.867168592300171E-2,1.861708309122603E-2,3.4076036027663549E-2,2.6876050170103336E-2,0,8.073804955097702E-2,null,null,null,null,null,"DOM_C50T52: Wholesale and retail trade; repairs",0.58726629236385208,0.28199640521059166,9600.9380053908353]
[null,"DOM_C55: Hotels and restaurants",3.0932390631904551E-5,4.5141189717348018E-4,4.2666116539449741E-4,5.3937022828275149E-4,8.4925690021231425E-4,8.884561552972677E-4,3.6136126915746139E-4,7.9885877318116975E-4,3.6419430440573948E-3,8.0219265993716152E-4,8.5015488759358356E-5,4.9826138580273097E-4,1.5585284980596844E-3,2.00877910869727E-3,1.6593886462882095E-3,8.1144939181072536E-4,2.5700393609631856E-3,5.9258062126691052E-4,4.6084899671292403E-4,2.4344256426167689E-3,1.8529842311041933E-3,4.8781161903709023E-3,1.3650184951262564E-2,1.5422205389227088E-2,1.2046904878657125E-4,1.4859320125645897E-3,9.6610169491525427E-3,7.0835368832437712E-3,5.2672559886410486E-3,2.1099724996760431E-3,6.856478791400349E-3,1.5489107285301612E-3,1.4948055507112783E-3,0,7.803942020017017E-3,null,null,null,null,null,"DOM_C55: Hotels and restaurants",0.44906307003482393,0.17225415952683656,9600.9380053908353]
[null,"DOM_C60T63: Transport and storage",0.12128590366769774,0.11043749478321156,4.9225445884360758E-2,4.1037717932160905E-2,7.427137618220421E-2,4.0083977362623993E-2,2.5575166686742295E-2,7.7617689015691868E-2,5.4949501761958557E-2,6.0515408784009628E-2,3.1577940606054164E-2,2.2612585870579259E-2,3.3471752978463019E-2,3.4818837884086004E-2,2.8419213973799123E-2,3.3245558905657072E-2,9.2845566103264641E-3,3.6376369500952847E-2,1.4860028873600408E-2,2.7601005882110442E-2,4.2376591250208463E-2,4.1443259079100105E-2,6.6226541637693023E-2,6.5531671177704087E-2,2.4551931492136424E-3,8.0208084222518992E-3,2.7923728813559326E-2,9.4040058622374221E-3,3.8423246317139441E-2,3.2798815692855018E-2,2.8820453224869262E-3,6.1181973776941369E-3,1.1316231650569827E-2,0,2.9707380245983246E-2,null,null,null,null,null,"DOM_C60T63: Transport and storage",0.52880837074190346,0.1842106345947325,17847.568807339449]
[null,"DOM_C64: Post and telecommunications",8.5726911179849746E-4,2.4018519811871966E-3,3.9430993417227727E-3,1.4069206518023321E-2,1.0924531943640224E-2,1.1075275360554981E-2,2.6641536706510883E-3,7.6533523537803136E-3,1.1313628622974591E-2,4.9134300421151142E-3,1.1052013538716586E-3,8.3220252735136981E-3,1.5867702896352625E-2,2.0087791086972697E-2,9.6419213973799132E-3,6.0540488938035488E-3,4.5149340125028945E-3,6.0874191093782627E-3,2.5816948897489315E-3,2.0050380894315118E-2,3.3126725591565216E-2,4.2686971422254159E-2,1.8563017153766709E-2,1.5620814203763407E-2,1.2253908032910108E-2,1.2685506385745803E-2,4.1228813559322029E-2,1.0258915486077188E-2,5.8262842100441879E-2,4.8157635364814502E-2,3.0656595002905289E-2,4.5398573453219029E-2,1.380480607666138E-2,0,1.4314089016091965E-2,null,null,null,null,null,"DOM_C64: Post and telecommunications",0.40608112477252362,0.13288777216335806,17847.568807339449]
[null,"DOM_C65T67: Financial intermediation",3.1219619973486521E-2,3.4561116912274488E-2,7.1266480373586389E-3,2.1438067383294717E-2,2.0073344914109247E-2,9.0366944562770037E-3,2.2957068864121076E-3,1.8559201141226819E-2,1.7552142170665499E-2,9.6764489604920113E-3,2.4229414296417129E-3,1.2594351624120093E-2,2.2446994341181765E-2,4.103117327579793E-2,1.2733624454148473E-2,6.1336027557457769E-3,1.0812688122250521E-2,1.3851572022114031E-2,2.4772984843711057E-2,1.5559060858471346E-2,3.8742425926955364E-2,1.6914487866895141E-2,2.9876109398980402E-2,1.3098944140116212E-2,0.35665964778922327,8.8664192800350386E-2,0.13588983050847459,2.5647288715192968E-2,4.4452265643268159E-2,1.8197858351734507E-2,4.0441603718768156E-3,1.016859893280051E-2,3.9363212835396996E-2,0,5.0109292617258751E-2,null,null,null,null,null,"DOM_C65T67: Financial intermediation",0.58192319504278345,0.2923648074276804,16095.64128256513]
[null,"DOM_C70: Real estate activities",2.7839151568714095E-4,1.8533439400933826E-3,7.6377037189850148E-3,1.3476658943290159E-2,1.2931866435051148E-2,1.1184811050934097E-2,2.9688308191563985E-3,8.837375178316691E-3,1.8445767084253658E-2,4.5123337121465339E-3,1.2114707148208565E-3,9.4775676363327982E-3,1.4005836636925621E-2,2.2468566326910203E-2,9.4672489082969439E-3,7.6292153602596641E-3,1.3012271359110907E-2,1.0861733432994621E-2,6.2543792411039688E-4,1.1152359895766659E-2,5.6379361461633963E-2,4.223094356309768E-2,1.4226228928105596E-2,2.0211910986300614E-2,7.5471313944037886E-3,2.0381183210311779E-2,1.9703389830508476E-2,1.5876893014167073E-2,4.0337297234750873E-2,1.1651969722156413E-2,2.4357931435212084E-2,4.9023024557979605E-2,1.2589584527101657E-2,0,6.3278366798998897E-2,null,null,null,null,null,"DOM_C70: Real estate activities",0.58803408238995913,3.6137974027090722E-2,16095.64128256513]
[null,"DOM_C71: Renting of machinery and equipment",0,0,1.1463588454830179E-3,6.7611197629809702E-4,6.9484655471916616E-4,2.6166859368344187E-3,3.4010472391290486E-4,8.3452211126961481E-4,9.9478999814530691E-4,8.1890500701918578E-4,2.1785218994585577E-4,6.9968620134000514E-4,1.0669121261885088E-3,1.2275872330927758E-3,5.2401746724890829E-4,5.8869857837248708E-4,4.5149340125028945E-3,5.3197578500097651E-4,3.8090580340558003E-4,6.5460447092466944E-3,3.784720292030315E-3,8.0150351003261289E-4,8.83198854495406E-3,3.163884603659945E-3,1.0434995070949483E-3,6.0727058741337665E-4,2.1228813559322036E-2,3.6150464093795805E-2,2.6782248985721758E-3,4.4503142052720509E-5,3.3701336432306796E-3,3.9264886968239593E-3,1.8546661462528825E-3,0,3.833351216067512E-4,null,null,null,null,null,"DOM_C71: Renting of machinery and equipment",0.42648305084745763,0.14105932203389829,16095.64128256513]
[null,"DOM_C72: Computer and related activities",4.4189129474149358E-6,1.7034411214093592E-6,2.3442921175521838E-5,1.5193527557260608E-5,3.860258637328701E-5,3.7120428406255704E-4,1.0628272622278277E-5,4.2796005706134097E-4,2.6977355881906628E-4,1.0027408249214519E-4,9.0328956806818244E-5,3.8164701891273009E-4,8.1587397885003613E-4,2.8643702105498104E-3,5.93886462882096E-4,3.4208160635158032E-4,3.2414910858995135E-4,9.4274189747008483E-5,8.4645734090128908E-5,2.6036637888949398E-5,1.9108899883261995E-4,1.3819026035045052E-5,4.5877788155712916E-4,9.2376192807589635E-4,4.0043233117789884E-4,7.5237063927320995E-5,2.1186440677966101E-4,0.19113336590131902,8.7988486766772656E-4,1.3874508992906982E-4,7.9023823358512495E-4,5.9633063048411213E-4,1.4948055507112785E-4,0,3.1814631736280405E-5,null,null,null,null,null,"DOM_C72: Computer and related activities",0.49963361016121161,0.37774792379091354,16095.64128256513]
[null,"DOM_C73T74: R&D and other business activities",1.652673442333186E-3,1.0733382506000371E-2,3.6029425554659517E-2,1.9926311391347287E-2,2.8064080293379659E-2,2.9075640479522911E-2,1.3327853868336959E-2,8.7589158345221116E-2,3.4800789087659552E-2,1.9753994250952603E-2,1.181715293755081E-2,1.3919514884233739E-2,2.1244103218518249E-2,2.4812141953723683E-2,3.2192139737991267E-2,3.4701394579199844E-2,0.11683260013892105,1.5804394524016351E-2,1.2504055941425151E-2,0.10139317709904121,5.6702475586932762E-2,5.148969100657786E-2,5.4888761793471776E-2,7.6307354068709407E-2,1.0721745342004842E-2,3.450156788667149E-2,5.3050847457627122E-2,6.7049340498290186E-2,4.4514942373567776E-2,7.3863435564031507E-2,0.23653689715281814,0.1618069592559033,4.4813716778638678E-2,0,1.4930419528943828E-2,null,null,null,null,null,"DOM_C73T74: R&D and other business activities",0.42604748485513239,0.275039956415566,16095.64128256513]
[null,"DOM_C75: Public administration and defence; compulsory social security",0,0,0,0,0,0,0,0,0,0,0,0,0,0,0,0,4.1676313961565178E-4,0,0,0,0,0,6.4393487411381809E-4,8.5447978347020408E-4,4.0721931984193099E-5,0,0,3.6638983878847092E-4,0,2.84466701832875E-2,0,1.479209745746304E-2,3.8754217981403512E-5,0,0.23074684536092765,null,null,null,null,null,"DOM_C75: Public administration and defence; compulsory social security",0.618982422567805,0.54595931103900441,16814.639175257733]
[null,"DOM_C80: Education",0,0,2.3442921175521838E-5,2.2790291335890908E-5,3.860258637328701E-5,3.042658066086533E-5,1.0628272622278277E-5,4.2796005706134094E-5,5.058254227857492E-5,1.6712347082024198E-5,1.0626936094919794E-5,1.0601306080909169E-5,5.2299614028848473E-5,3.7199613124023517E-5,9.7816593886462886E-4,1.5910772388445596E-5,1.1576753878212549E-4,6.7338706962148919E-6,4.2322867045064454E-5,0,4.0534030055404233E-5,4.1457078105135152E-5,1.4606829412805455E-4,4.1569286763415336E-5,2.5790556923322295E-4,7.5237063927320995E-5,4.2372881355932206E-5,4.2745481191988274E-3,2.9409850371359629E-4,0,1.1621150493898897E-4,6.9700982783857252E-5,1.1349449551696742E-4,0,1.3207750792870527E-2,null,null,null,null,null,"DOM_C80: Education",0.5101452643811738,0.25880302149912843,16814.639175257733]
[null,"DOM_C85: Health and social work",5.258506407423774E-3,0,0,0,0,0,0,0,0,0,0,0,0,0,0,0,0,0,4.2322867045064454E-5,0,0,0,7.2005497105379014E-4,9.607124051989322E-4,1.0468930014269644E-3,6.661167195565313E-3,6.0169491525423726E-3,0,9.2761560843435953E-3,5.8560899277609281E-3,1.1133062173155142E-2,7.2798804240917583E-4,1.6691995316275941E-3,0,3.5414363744794251E-2,null,null,null,null,null,"DOM_C85: Health and social work",0.46203232576690439,0.20389086375006776,16814.639175257733]
[null,"DOM_C90T93: Other community, social and personal services",1.1900132567388423E-2,1.8012186417782565E-2,5.6204403518313607E-2,7.5602993124928783E-2,5.7826674387183946E-2,0.10243412645286923,2.7268604791225302E-2,6.7689015691868762E-2,7.6868603416007694E-2,4.0176482385186174E-2,3.1620448350433851E-2,4.202357730472394E-2,5.8439588715835288E-2,5.2302656052377057E-2,6.2131004366812223E-2,8.1518842332201025E-2,1.5744385274369067E-3,3.5938667905698878E-2,8.558624224668589E-4,1.1931289312611061E-2,1.7441214075268219E-3,2.9323973246365598E-2,3.3562790850775806E-2,4.4742408986356043E-2,9.1115322814632068E-4,3.5691925719521601E-2,3.3305084745762707E-2,1.1480214948705424E-2,4.9999156274784427E-2,4.6257089415974789E-3,2.3149331783846601E-2,4.824856919371452E-3,1.0117619051573559E-2,0,4.6137454180692136E-2,null,null,null,null,null,"DOM_C90T93: Other community, social and personal services",0.70378767117599683,0.39138438371104856,16814.639175257733]
[null,"DOM_C95: Private households with employed persons",0,0,0,0,0,0,0,0,0,0,0,0,0,0,0,0,0,0,0,0,0,0,0,0,0,0,0,0,0,0,0,0,0,0,0,null,null,null,null,null,"DOM_C95: Private households with employed persons",0,0,16814.639175257733]
[null,"L",0.12388422448077772,0.20179474556551691,0.13561729900039382,0.13375621985034375,0.22065238370970855,0.19149272804722206,4.0231554632864035E-2,0.16134094151212552,0.27801851321047399,0.14863961494752323,0.10270402388935236,0.24410567381901452,0.24330826438500885,0.17792574957220447,0.19191266375545851,0.17750057676549907,0.13026163463764762,0.10384302000632983,0.17767139585518055,0.13428829935190467,0.28199640521059166,0.17225415952683656,0.1842106345947325,0.13288777216335806,0.2923648074276804,3.6137974027090722E-2,0.14105932203389829,0.37774792379091354,0.275039956415566,0.54595931103900441,0.25880302149912843,0.20389086375006776,0.39138438371104856,0,0]
[null,"VA%",0.40384887317719842,0.59559456057181115,0.26195354550739858,0.13309530140160292,0.2650453580389886,0.22970851335726891,0.21217220635854123,0.23171897289586305,0.29452528284071561,0.32976803262250148,0.15953687812498341,0.2627957764396574,0.30389213727602693,0.25451975299456892,0.1881048034934498,0.24178009721481927,0.12759898124565872,0.2675770859847949,0.54372657546872583,0.29775065145837715,0.58726629236385208,0.44906307003482393,0.52880837074190346,0.40608112477252362,0.58192319504278345,0.58803408238995913,0.42648305084745763,0.49963361016121161,0.42604748485513239,0.618982422567805,0.5101452643811738,0.46203232576690439,0.70378767117599683,0,0]
[]
[]
[null,null,null,null,null,null,null,null,null,null,null,null,null,null,null,null,null,null,null,null,null,null,null,null,null,null,null,null,null,null,null,null,null,null,null,null,null,null,null,null,null,null,null,null,null,"Source: http://www.statssa.gov.za/publications/P0277/P0277September2015.pdf"]
[]
[]
[]
[]
[null,"Total Requirements - Type 1"]
[null,null,"DOM_C01T05: Agriculture, hunting, forestry and fishing","DOM_C10T14: Mining and quarrying","DOM_C15T16: Food products, beverages and tobacco","DOM_C17T19: Textiles, textile products, leather and footwear","DOM_C20: Wood and products of wood and cork","DOM_C21T22: Pulp, paper, paper products, printing and publishing","DOM_C23: Coke, refined petroleum products and nuclear fuel","DOM_C24: Chemicals and chemical products","DOM_C25: Rubber and plastics products","DOM_C26: Other non-metallic mineral products","DOM_C27: Basic metals","DOM_C28: Fabricated metal products","DOM_C29: Machinery and equipment, nec","DOM_C30T33X: Computer, Electronic and optical equipment","DOM_C31: Electrical machinery and apparatus, nec","DOM_C34: Motor vehicles, trailers and semi-trailers","DOM_C35: Other transport equipment","DOM_C36T37: Manufacturing nec; recycling","DOM_C40T41: Electricity, gas and water supply","DOM_C45: Construction","DOM_C50T52: Wholesale and retail trade; repairs","DOM_C55: Hotels and restaurants","DOM_C60T63: Transport and storage","DOM_C64: Post and telecommunications","DOM_C65T67: Financial intermediation","DOM_C70: Real estate activities","DOM_C71: Renting of machinery and equipment","DOM_C72: Computer and related activities","DOM_C73T74: R&D and other business activities","DOM_C75: Public administration and defence; compulsory social security","DOM_C80: Education","DOM_C85: Health and social work","DOM_C90T93: Other community, social and personal services","DOM_C95: Private households with employed persons"]
[null,"DOM_C01T05: Agriculture, hunting, forestry and fishing",1.0444638200179919,3.7172256768809066E-3,0.22001822417446548,0.13348672384129084,0.20916362400454944,0.10011231342060989,4.681856452682636E-3,2.0193227754602382E-2,3.3347090294094946E-2,5.6644020068226395E-3,4.7187505288514122E-3,5.4029803693897869E-3,6.2830366922617823E-3,5.6393351968573972E-3,6.9154441398595603E-3,1.0731897833197357E-2,7.5242870601987828E-3,4.4313510910135918E-2,1.5926554779135179E-3,7.0592088463753361E-3,8.4742086113608374E-3,3.6400336268097654E-2,5.6959549317825049E-3,8.5528863263914755E-3,1.050738177467748E-3,6.1493069683876108E-3,9.1605786148457949E-3,3.565790227467289E-3,9.6807173154586958E-3,4.6754125680910519E-3,8.2790551054962268E-3,1.1168985670028369E-2,1.5079105786482246E-2,0]
[null,"DOM_C10T14: Mining and quarrying",2.4731160434934688E-2,1.0290903652880845,2.2666684114209499E-2,3.24406431383268E-2,3.8824118762134936E-2,5.5408840796392009E-2,0.27906526736895793,5.2679010305433913E-2,6.008456568307121E-2,0.18161893580297359,0.29321574228317454,0.22550604508702032,0.12908953679502605,9.0963382427930436E-2,0.17225590778340935,0.10085939247547394,6.0191674611368762E-2,0.1096446001212901,0.13587145250085267,7.9044577572157951E-2,1.3344909857623313E-2,1.6254960513432514E-2,2.1056387694195104E-2,3.1441717635830868E-2,2.8007433251461926E-3,1.4022943756273056E-2,1.5643618377703453E-2,8.723713904409805E-3,1.9664943612900606E-2,1.5165937210204341E-2,1.7853632879197133E-2,2.3208034276746954E-2,1.6911006944734037E-2,0]
[null,"DOM_C15T16: Food products, beverages and tobacco",0.11965050841059507,4.5570641567419731E-3,1.1955454893651574,2.1041851019778471E-2,2.8412722509218318E-2,2.106266094888393E-2,6.3748918651232479E-3,3.8434357044113431E-2,9.8323030713755449E-3,4.3152524376147529E-3,4.2846469506091778E-3,4.5270108991303949E-3,5.0553590481856947E-3,4.4837598467730297E-3,5.2891713022297114E-3,5.9522873053562417E-3,5.1207166079477017E-3,2.1434930935502691E-2,2.0991830456447004E-3,5.5129171430195641E-3,6.834727465469718E-3,0.15700090000468039,1.1632780548886692E-2,1.7908174316257228E-2,1.0485307966633926E-3,7.4747024314994453E-3,1.2803683328918776E-2,4.4093898967664975E-3,1.2821460033927201E-2,8.7066425814768082E-3,1.0903770658980062E-2,1.3835572310530515E-2,2.2676724200960393E-2,0]
[null,"DOM_C17T19: Textiles, textile products, leather and footwear",1.2451676579379713E-2,5.6100112388323114E-3,5.1283693264749797E-3,1.212731083370562,6.0135368773628411E-3,1.2696415648215371E-2,2.7101525236957131E-3,8.665343532628593E-3,1.9992241988420041E-2,2.3463860917170023E-3,3.3845802549840238E-3,3.0992129539347828E-3,4.0615422112962839E-3,6.5496738268540234E-3,3.745511024849608E-3,3.8669983657406218E-2,1.0031552559199899E-2,2.2988309951486079E-2,1.3062140029506751E-3,1.0795770561539332E-2,4.1983429955899489E-3,3.6100184948456857E-3,4.920374767083892E-3,7.9813169079625181E-3,5.3843545059196259E-4,1.9333766143579977E-3,2.7325170129061174E-3,1.547300747985764E-3,3.2679700908044645E-3,3.7575949579670685E-3,7.6530332623102057E-3,1.2878062757350121E-2,7.3780998717299841E-3,0]
[null,"DOM_C20: Wood and products of wood and cork",3.9247461878805616E-3,4.856661794183397E-3,9.2713149559343032E-3,4.4521660735743034E-3,1.1097035670476838,7.7182928997711082E-3,4.8443988653641724E-3,1.0885478516717905E-2,3.2571553676967405E-3,5.864029139210164E-3,3.8454097058351752E-3,4.6070332160713743E-3,3.1883614777248248E-3,4.1026525517977403E-3,2.8840675814723669E-3,5.2199509192589547E-3,1.3651378940490327E-2,3.1788884156972876E-2,1.4418773224500971E-3,9.2792156258298224E-3,3.1896947280896245E-3,2.7395727109941889E-3,3.1307749895664416E-3,4.6812086496981894E-3,4.6394860499777681E-4,2.2497253425445549E-3,1.9376398986477859E-3,9.982350833402983E-4,2.4268308607623538E-3,1.8761661988540143E-3,3.2973538136923226E-3,4.5110597890236966E-3,2.9606764958907228E-3,0]
[null,"DOM_C21T22: Pulp, paper, paper products, printing and publishing",1.6149368949329765E-2,8.4735715991730905E-3,3.774006501539743E-2,3.3142033463477806E-2,2.8583290550346443E-2,1.2695205864791101,1.4019652200119614E-2,5.3129097873130977E-2,2.5845933337422827E-2,1.9951239492912342E-2,1.3737436228370255E-2,1.5518448463600693E-2,1.7680891924096023E-2,1.7905510978489938E-2,1.9131212365998795E-2,2.3426937766643473E-2,2.7063433810719153E-2,3.0065463085078122E-2,6.6758119507574817E-3,2.4664056516497321E-2,7.4152524037000594E-2,2.0698032453671723E-2,2.0531812854107018E-2,3.003959529424292E-2,5.4024171481345624E-3,4.3403516435438029E-2,6.5279898541029807E-2,2.3897732582380312E-2,6.83280190364354E-2,1.8005768064875399E-2,4.3094279194013319E-2,5.6266448727331247E-2,1.5027027893401552E-2,0]
[null,"DOM_C23: Coke, refined petroleum products and nuclear fuel",2.8021221683263015E-2,1.5162699122850664E-2,2.4412619941410574E-2,4.565755496898434E-2,1.9452070604230671E-2,2.6199058497021515E-2,1.0573666036635858,7.1410305076121824E-2,0.13110516863676913,1.2209015040750467E-2,2.0272943256024935E-2,2.0541179374035511E-2,1.5686792598512952E-2,1.5360582080757164E-2,2.7032903490039919E-2,2.1576881752847023E-2,1.1916809042088722E-2,2.0811993701590724E-2,7.4972266139717554E-3,2.6510750914182504E-2,1.5178585880335665E-2,2.1363575465657366E-2,3.4656676973820431E-2,5.9694721023262835E-2,2.5218183469720842E-3,1.1638779222137498E-2,1.8526672910643135E-2,7.0700090886388987E-3,2.060292174491395E-2,1.7444960017965663E-2,1.3577996833953884E-2,1.7755894118403715E-2,1.0496371041754221E-2,0]
[null,"DOM_C24: Chemicals and chemical products",4.8500782605138446E-2,1.7832716373537935E-2,1.4830390383026562E-2,1.7597556005952919E-2,2.2262843357609322E-2,2.7770637216862334E-2,1.0940185796932695E-2,1.0666625574221968,3.1452318207504701E-2,1.1499919934214212E-2,8.4501229656712938E-3,9.7173444375208504E-3,7.0646433922473316E-3,4.8568496185488353E-3,9.8241106228590287E-3,1.1132336574286261E-2,1.2424115518308826E-2,1.0350623582810605E-2,5.3285948824203754E-3,1.4124235855706494E-2,6.0529512274364386E-3,8.7201869541625801E-3,6.4900120285673558E-3,1.0316597711222982E-2,9.2777693239305963E-4,5.8733271828818852E-3,8.9105461815088254E-3,2.7308142605070003E-3,9.4168579422595593E-3,1.1996152142935597E-2,1.0858697988985155E-2,1.7045697472627276E-2,6.9674375829294078E-3,0]
[null,"DOM_C25: Rubber and plastics products",7.2156323772168338E-3,7.9377659089393832E-3,1.7756412654711964E-2,1.6369647823977981E-2,1.4472158306755573E-2,7.6973495671550365E-3,5.7524064974629474E-3,2.4117920933261254E-2,1.0390057874009577,6.2061706979756265E-3,5.0649948129417076E-3,5.1580062269986028E-3,1.0990503447249637E-2,1.4913548520715809E-2,1.8106951179309768E-2,2.3780029174202234E-2,1.4109110356552386E-2,2.0170493401096813E-2,2.2148248003481348E-3,2.1615864026400533E-2,1.043909403063443E-2,5.0610255853196099E-3,9.9360092732953854E-3,1.6397690716578595E-2,8.0022783562472418E-4,3.7455016903209532E-3,4.0234661550355945E-3,1.9993856372288801E-3,5.1275859617554344E-3,3.2160057008144677E-3,3.8507903224193167E-3,4.660953889215857E-3,5.9943070285890269E-3,0]
[null,"DOM_C26: Other non-metallic mineral products",3.8679260394480232E-3,3.8539027420648854E-3,7.0961385939566834E-3,3.0926104046233587E-3,6.4802668841686213E-3,4.4847855196228992E-3,3.981982790276316E-3,9.5044746946190885E-3,3.2228312939275847E-3,1.0668473313187132,2.7843848988486743E-3,3.0968275919137549E-3,4.0342911614826855E-3,9.6595324661592572E-3,4.0607595847839536E-3,1.1016194040405543E-2,3.9511243067366321E-3,6.7066349124321242E-3,1.7254295735120945E-3,9.0647272574507803E-2,2.5872955081698329E-3,4.7578173929653713E-3,6.1417855411191307E-3,8.9301963674379078E-3,4.6022199042693542E-4,3.105745069108747E-3,3.5393797758772106E-3,2.1826519317627228E-3,4.9873766550505728E-3,3.8901255053643133E-3,3.7570450744808426E-3,4.9201313064037846E-3,7.4367224926800051E-3,0]
[null,"DOM_C27: Basic metals",1.3181785783487102E-3,2.1997833581252364E-3,8.8685044909382247E-4,1.6454508699392193E-3,4.1297972078222821E-3,1.2155489417685838E-3,1.510972104801565E-3,1.3288891111715407E-3,4.4264306447724779E-3,1.2810147304814867E-3,1.0129518195488685,4.7374653631057896E-2,4.6310495357234069E-2,5.676258850442182E-3,2.5025692675167355E-2,2.6601889931751839E-2,3.1674325311462734E-2,3.9502245861017674E-3,1.4848833818244592E-3,1.6877459836539772E-2,8.3392431738367511E-4,7.7712225833698417E-4,2.0200163550449868E-3,2.6919781169195706E-3,1.5219571673747936E-4,8.2767063257986227E-4,1.0408840354424608E-3,6.0953848236699473E-4,1.3450864745901423E-3,1.0224803270592799E-3,8.948367605936809E-4,1.1414785597932957E-3,1.5028800642577916E-3,0]
[null,"DOM_C28: Fabricated metal products",1.3629849442452192E-2,1.6901832949684396E-2,6.1781002680961674E-3,9.1698779160172914E-3,1.6778455589778519E-2,9.2227514907629628E-3,9.6060228591869253E-3,5.8174181384629481E-3,1.7363038904710238E-2,6.7158881550139857E-3,2.5408226076076235E-2,1.0613946033577031,3.5426558375439961E-2,1.49500134315898E-2,7.8118467410336997E-2,4.4730561618197606E-2,8.2291819902065383E-2,2.5195478680389162E-2,6.5089401773500396E-3,6.346021501707895E-2,6.9832367396755789E-3,5.16788509396739E-3,6.5289404817075077E-3,8.4817445349169747E-3,8.7229554072492277E-4,5.7688080434432059E-3,7.8862495904429546E-3,3.6183179735830005E-3,9.0487975212197765E-3,6.2396666345149957E-3,5.9180317162247295E-3,7.6867592249821644E-3,9.2965072432002957E-3,0]
[null,"DOM_C29: Machinery and equipment, nec",2.0740347521909148E-3,4.8856534910119423E-3,1.0265474793274046E-3,1.045877454577938E-3,1.1396369185303612E-3,9.6786675001875257E-4,1.6557514554477212E-3,9.4515206074240253E-4,8.6662055564240971E-4,1.2276040747849918E-3,1.7969956488295502E-3,2.1849087695018157E-3,1.0128665497083531,1.1037667249783267E-3,2.9175421851266869E-3,4.1094071404443331E-3,1.5736366432474665E-2,1.1057753021448157E-3,1.7137398646176955E-3,1.9331977979105796E-3,1.8890728681650658E-3,7.0667602351107118E-4,1.255080492523442E-3,1.7822402512223485E-3,1.3849679944369909E-4,1.7075224752974658E-3,2.6466837832919139E-3,5.3115541022076833E-4,2.7143670767631085E-3,8.6262380385710487E-4,1.4449387970127928E-3,1.8358169710933668E-3,6.2886317564851961E-4,0]
[null,"DOM_C30T33X: Computer, Electronic and optical equipment",2.2878495502759262E-4,3.866144235479579E-4,2.6175803975411055E-4,2.9838866623321987E-4,2.6691002434846718E-4,7.2174110771884526E-4,2.2484167433751257E-4,3.0630677843783411E-4,2.5799617427260912E-4,2.1589198050742814E-4,2.4367833977369924E-4,3.4715063645445696E-4,1.1872070577116919E-2,1.0373967887187192,1.4227055973030592E-2,5.2456072235866269E-3,6.2037265292884877E-3,2.944274533444272E-4,2.0957203600357498E-4,4.8061678914918709E-4,4.5921552309965708E-4,2.4319049216911867E-4,5.5472623107532019E-4,8.100542940268692E-4,1.9941722040028024E-4,5.2102126322417475E-4,8.1148911565607064E-4,1.0852090305806972E-2,8.3504619305404615E-4,2.9711302682205484E-3,2.6246048463264508E-3,4.6707670347931147E-3,8.0644792041067081E-4,0]
[null,"DOM_C31: Electrical machinery and apparatus, nec",1.0965828468584072E-3,2.7640010521537066E-3,1.1118052244936802E-3,1.3177040797902149E-3,1.2314692662378577E-3,1.4980300435822797E-3,1.59499058174634E-3,1.2836173274296517E-3,1.2135985820345546E-3,1.1478089207034047E-3,1.4115850556311084E-3,2.1321559741844017E-3,1.412211945578494E-2,1.8305146742228589E-2,1.0167603033772286,4.9170474629435454E-3,1.1490329900159389E-2,1.239816380577951E-3,6.1461483970115961E-3,1.5841116538650966E-2,1.1733338700705977E-3,1.2068182442815075E-3,2.1245703514219342E-3,3.0680352453982028E-3,1.9590788835909345E-4,1.4697616362884687E-3,1.8239402831330186E-3,1.8049290757849764E-3,2.2363077702465027E-3,2.3246315720582486E-3,1.4824776182762E-3,1.8137873489960398E-3,3.8309507048816683E-3,0]
[null,"DOM_C34: Motor vehicles, trailers and semi-trailers",2.4417817147427789E-3,2.1494397985284078E-3,1.6974889943916155E-3,1.7663373751655121E-3,1.9337939899766146E-3,1.4888172331988879E-3,1.2026207250946353E-3,1.5288221428892686E-3,1.3897893603460327E-3,1.3630658489907769E-3,1.2856704469231129E-3,1.5290777096983656E-3,1.6150630050408626E-3,1.1704052996239656E-3,1.9917723683681517E-3,1.0346685453210775,1.8199417247914357E-3,1.4471908336846466E-3,6.9407211456687606E-4,1.2676698858279309E-3,3.4155638518580697E-3,1.1113899673917771E-3,4.60529457640754E-3,5.8240986253747309E-3,2.6414964325500697E-4,9.6829025564187173E-4,2.3904510203589134E-3,5.8206176073841555E-4,2.0824790005573302E-3,4.1845896290647784E-3,3.7847237358832608E-3,6.5662494783501986E-3,1.4114660207227502E-3,0]
[null,"DOM_C35: Other transport equipment",1.6250415846170857E-3,1.3355496282586483E-3,1.1658890291252593E-3,1.021388844024728E-3,1.4217083890816625E-3,9.6660644550742615E-4,7.6892476042787728E-4,1.2472354099335229E-3,1.0385875049044968E-3,1.0540878506133384E-3,8.7472743276807827E-4,7.4623624385586481E-4,7.2096512529260014E-4,6.7479156074520211E-4,7.4353008012073508E-4,7.4558312879546027E-4,1.2963971557543461,8.8813495518605705E-4,4.1297490735085676E-4,7.5165946997561963E-4,6.7079502057643744E-4,7.8633441217630478E-4,1.0909976010780338E-2,1.0127684641609929E-3,9.2743202332044229E-5,2.7590904033464797E-4,5.7101440064080472E-4,2.8915045641154837E-4,7.2105287015817568E-4,5.7574251699896864E-3,3.387537700846329E-4,4.9736112828274281E-4,2.8979950795017279E-4,0]
[null,"DOM_C36T37: Manufacturing nec; recycling",3.3862138249613864E-3,6.4097597855660403E-3,4.5434422549132554E-3,5.5263983383981646E-3,9.1388053804025305E-3,9.2369417813974643E-3,4.1172168170118296E-3,5.879262981580321E-3,5.3095320336700117E-3,4.0685284928596559E-3,4.8329834603884479E-2,3.2667261938223419E-2,1.3573940051648451E-2,4.7478293789896915E-3,1.1962471068474412E-2,7.0932443605854385E-3,1.0566338639657211E-2,1.1739508127625775,2.3437898706145416E-3,8.9683050120270055E-3,1.0252774683133405E-2,5.2256121832083202E-3,6.745600034694637E-3,9.8260291325193393E-3,9.6040895445378086E-3,1.1409469026209762E-2,1.8570667890398376E-2,4.4528135838345214E-3,1.8591081336625855E-2,5.0671319562210519E-3,1.339678918670815E-2,1.7203538370121039E-2,6.7003410013471969E-3,0]
[null,"DOM_C40T41: Electricity, gas and water supply",3.0126761065624338E-2,4.4845740802565676E-2,3.7335248647406852E-2,4.1296838304508657E-2,3.7852147152525883E-2,3.5006191888690225E-2,5.4314057446461214E-2,5.3379077003877951E-2,4.5360130676325834E-2,4.498571095695663E-2,5.0891854734888858E-2,5.0275872682089343E-2,2.6207490617994149E-2,2.2002060251793864E-2,3.1008397746439202E-2,2.7964569315008608E-2,3.5022997085319682E-2,2.7766977948925492E-2,1.1363089422756949,2.499338409328599E-2,2.3867966805493111E-2,3.4872845996787423E-2,2.3354988835352222E-2,1.9508343085378438E-2,5.2948724823601188E-3,4.4952738349199994E-2,2.4074065896952043E-2,1.763254510187488E-2,4.221628952731863E-2,1.4414178814213661E-2,3.8850066024740705E-2,3.4535546963440529E-2,1.3630897800633788E-2,0]
[null,"DOM_C45: Construction",9.4158125273886301E-3,1.3238137159445384E-2,1.1830127707702981E-2,1.3876115625718813E-2,1.6777840282470549E-2,2.4692809438627766E-2,2.8862689202314395E-2,1.2699063514139075E-2,1.354521740245786E-2,8.192746716762421E-3,9.7426714579945742E-3,1.2205016207206959E-2,1.0741052302122883E-2,1.3509792558121212E-2,9.8847303227816794E-3,1.0509858662688203E-2,1.1062710812434581E-2,8.8939454325230767E-3,5.3890645405586229E-3,1.0708666879197943,9.3354712699332768E-3,1.6750094833404623E-2,3.446154177656003E-2,4.1614963072941095E-2,2.3599770989343439E-3,2.1707974582306919E-2,1.8640553999773365E-2,1.744702121002285E-2,3.3224077282226649E-2,1.1829502120478265E-2,1.5351938718027135E-2,1.573552457886376E-2,7.4756165369257183E-3,0]
[null,"DOM_C50T52: Wholesale and retail trade; repairs",0.12553982016139764,5.4770310015368091E-2,0.18451452198149274,0.25632304009238133,0.14866737426286841,0.14743917148872332,0.12085792771471665,0.14288482293291349,0.13899787615664902,0.11138299590285812,0.13766192939374355,0.14323557666078501,0.12700229468325983,0.10691107674198999,0.14689702538477925,0.16068903303355009,0.12230539578381608,0.18711003062405759,5.6864018425063265E-2,0.16342626736024427,1.0791998859711291,0.11427994028069446,0.10069433996544151,0.14609305080366319,1.4418441807603804E-2,0.10460797651911335,0.12352165511584144,4.5259662232005081E-2,0.15762889792338708,5.4246419480753399E-2,7.8440419958635238E-2,9.3444067429451466E-2,5.4407406615596288E-2,0]
[null,"DOM_C55: Hotels and restaurants",3.2766202432143654E-3,3.0071634051098365E-3,3.6658779044433116E-3,3.9759662559184514E-3,4.4543262683037306E-3,4.1729664960619053E-3,2.5180024593459906E-3,4.530043943783279E-3,6.6898740911401243E-3,3.3873836834327504E-3,2.3566511001511491E-3,2.7677674548190205E-3,4.0070528050591995E-3,4.4911181233015804E-3,4.2557857897826861E-3,3.4281301434128325E-3,6.1284384432032189E-3,3.3633703365893572E-3,1.653498332532327E-3,5.9381103587793872E-3,4.5041418456171264E-3,1.0079878109791427,1.667683821153769E-2,1.8851182773729287E-2,9.0119009277779408E-4,3.1296696791945538E-3,1.2741692356041225E-2,1.0980709949253162E-2,8.7793254117925629E-3,4.7753847839982731E-3,1.021750683874185E-2,4.8343978992009496E-3,2.9177571661249814E-3,0]
[null,"DOM_C60T63: Transport and storage",0.16275705008953154,0.13378042312277652,0.11671302846111353,0.1022225792276449,0.14234582188893308,9.6791528625767911E-2,7.7006913853043937E-2,0.12482897048072271,9.721056666697267E-2,0.10559824347879017,8.6178959312016717E-2,7.1769862522389219E-2,7.2019789920835506E-2,6.7473545393826856E-2,7.4147733885985959E-2,7.4406377832622148E-2,4.8423182210985294E-2,8.8807186565163954E-2,4.1357778414551682E-2,7.4976082369073688E-2,6.7121842339005935E-2,7.8739192002529601E-2,1.0936625788030518,0.10090784132087313,9.2251961417007065E-3,2.7520149653783198E-2,5.7081195319563967E-2,2.8695680993126811E-2,7.2073037109329552E-2,5.5282432520407529E-2,3.3738709709646653E-2,3.9004155127053144E-2,2.8925788140055728E-2,0]
[null,"DOM_C64: Post and telecommunications",1.4694033832110147E-2,1.1825810029048969E-2,2.2441045624789119E-2,3.7243261527263212E-2,2.9131525513084847E-2,3.1112939113356095E-2,1.4431027050433072E-2,2.8704262052415351E-2,2.8083544283268227E-2,1.7275469830315821E-2,1.3511340784857299E-2,2.1711128477153598E-2,2.9698975223817221E-2,3.3925861317252066E-2,2.539092313306435E-2,2.2699957186181965E-2,2.7058968234038212E-2,2.3129978114228414E-2,9.2385289483013673E-3,4.2553627072944897E-2,4.7119324047093576E-2,5.8564244994443501E-2,3.4342240002582826E-2,1.0353025444647483,2.2241200541750578E-2,2.5707326837751648E-2,6.0474608818409187E-2,2.689691426009283E-2,7.7543149624418328E-2,6.2126346065136916E-2,5.5480831086407535E-2,6.7234448244516243E-2,2.3066024096704513E-2,0]
[null,"DOM_C65T67: Financial intermediation",8.1011402650406822E-2,7.5624514357101991E-2,6.2225980609611216E-2,9.2096670946230613E-2,8.3285816545326519E-2,6.4514926030160999E-2,4.2720211464020601E-2,7.5698989604327915E-2,6.9337402058952419E-2,5.152819092719995E-2,4.5717663786371578E-2,6.0870171711450892E-2,7.2075429019781964E-2,9.9229667600189586E-2,6.2611262442526475E-2,5.1342392699655411E-2,6.412828548758305E-2,6.7261915148816714E-2,6.1476986245290098E-2,7.0749886937714029E-2,9.2196190214900511E-2,6.4116168486704372E-2,7.8976340337521184E-2,6.0906326037109264E-2,1.5615928429447983,0.16349011212186171,0.24819743021875615,8.1024826373057468E-2,0.1107712565741026,5.2016977687197881E-2,4.9436867192572252E-2,5.8683858401525832E-2,7.9886435787615798E-2,0]
[null,"DOM_C70: Real estate activities",1.5801793699199533E-2,1.1028904066800908E-2,2.8969885356941307E-2,4.0677824610422027E-2,3.2738104677704029E-2,3.2579796580961988E-2,1.5990404028887743E-2,3.0330295243336036E-2,3.6809754341306171E-2,1.7838461184743918E-2,1.559617974394063E-2,2.4970840313441812E-2,2.9456819207956269E-2,3.7441388928253445E-2,2.7130555123547298E-2,2.6468758699690276E-2,3.7383220184029349E-2,3.1778594864882589E-2,7.3796152322994982E-3,3.3963073535617151E-2,7.0649590896672096E-2,5.9576503024274877E-2,2.9972324107142002E-2,4.0599174233388054E-2,1.4969363801234417E-2,1.0340202412695612,3.8805809351648068E-2,3.16592955562695E-2,6.1389151534943474E-2,2.3979717236676593E-2,4.6146033069755406E-2,6.916372425763484E-2,2.1770020923338549E-2,0]
[null,"DOM_C71: Renting of machinery and equipment",2.6657569642793287E-3,1.9119922185518443E-3,4.0012452234295332E-3,3.7135782303413076E-3,3.548830330432756E-3,5.8437583988415892E-3,2.1417577784878343E-3,3.7635406437162748E-3,3.3925608248427425E-3,2.8319426833384835E-3,2.0647726965376412E-3,2.5954096574186541E-3,3.0185030088851531E-3,3.2202977653924313E-3,2.6141149400723354E-3,2.781869496063859E-3,8.0028830051898005E-3,2.9014865963110643E-3,1.3231962208627068E-3,9.5013070779505562E-3,5.7056216965970727E-3,3.0448502828600552E-3,1.1277207060831958E-2,5.9165611502832675E-3,2.0453042428261619E-3,2.1796582268125905E-3,1.023957309357785,4.6906200856021298E-2,5.3806694084147944E-3,1.606586948108811E-3,5.5756425767074817E-3,6.076156691498075E-3,2.9480799360140772E-3,0]
[null,"DOM_C72: Computer and related activities",2.9523364283162088E-4,2.2623731347858823E-4,3.5436828530499434E-4,3.7582650182312478E-4,3.9109005183673366E-4,8.9059509460651717E-4,2.1103208484474253E-4,9.5755983749858076E-4,6.5379311701544568E-4,3.6006575419179898E-4,3.2920762122916791E-4,7.2890455116307378E-4,1.3329501406755128E-3,3.9455296254488417E-3,1.0954699339425591E-3,7.5105501410347862E-4,9.7263705713385065E-4,4.1395181660853618E-4,2.4771697858387185E-4,4.6311054696426043E-4,5.5244283680319032E-4,3.3295712333601012E-4,8.7155556639719779E-4,1.496450800173198E-3,8.4397147663242461E-4,3.6711335279025726E-4,6.927261917617553E-4,1.2365972323492824,1.4922804459039183E-3,4.7858841898419674E-4,1.4768065363311366E-3,1.193247231826083E-3,3.850659845262951E-4,0]
[null,"DOM_C73T74: R&D and other business activities",3.7353486687301971E-2,3.2357509980650755E-2,7.8267290469499734E-2,6.6056417904051881E-2,6.8025382627332501E-2,7.4406245405573238E-2,4.0640088881018575E-2,0.13214917519206107,7.1673288881934402E-2,4.7058228991461087E-2,3.9102446300594791E-2,4.3073803252188687E-2,5.032348766915401E-2,5.2926305193469511E-2,6.4551008555713565E-2,6.9016494893947025E-2,0.18419474109834189,5.1599207453194178E-2,2.6712289340627821E-2,0.14540554771421557,8.3289017690296341E-2,8.730172511911137E-2,8.694772712752083E-2,0.11492804207988654,2.3134608197166263E-2,5.9210927967349815E-2,8.837451376663738E-2,0.10574192788594955,1.0854068740337808,0.10045275768438112,0.27312278750791558,0.19785548325510696,6.1675034978369583E-2,0]
[null,"DOM_C75: Public administration and defence; compulsory social security",2.216323951529027E-4,1.1407208513780302E-4,1.4091122763588393E-4,1.401851894511043E-4,1.6346774824704138E-4,1.2983513887767173E-4,7.863417896581811E-5,1.4551709068642526E-4,1.1906270665071106E-4,1.0329856216691606E-4,8.4372727706492638E-5,8.5388248175025848E-5,9.6216258887141937E-5,1.0013148014015595E-4,9.5580502760574454E-5,9.4745104444576091E-5,6.5037313684796134E-4,1.0364673979721669E-4,4.6132552427796736E-5,1.2153892983337155E-4,1.1504001730007184E-4,1.349481811457696E-4,7.975682222929266E-4,1.0245306046952878E-3,1.2236351108399306E-4,1.6864429553543184E-4,2.222503613022357E-4,5.4022770805355557E-4,2.911929517745362E-4,1.0294884975343959,2.9352499289201576E-4,1.5366911718537843E-2,1.2430563785243004E-4,0]
[null,"DOM_C80: Education",7.8205945124981222E-5,6.437479818465981E-5,1.135743377712462E-4,1.231277659083946E-4,1.3420074480558343E-4,1.2889799875687844E-4,6.4338165415268159E-5,1.5686604561198917E-4,1.3846665042130724E-4,8.0894820210485144E-5,6.7414982284491568E-5,7.6268895201632843E-5,1.3903096109745932E-4,1.4517133197980989E-4,1.0705043522397295E-3,9.7617988651696043E-5,2.6352623115206915E-4,8.1835027815692395E-5,9.0506557641069541E-5,1.1339921362718497E-4,1.2108393026543924E-4,1.2354717639495762E-4,2.3155858896598271E-4,1.3997897221820337E-4,4.1899257661357674E-4,1.6071667507879531E-4,1.6929579347876449E-4,5.3583316194054766E-3,3.9700905760495052E-4,6.8663067119774612E-5,1.0002434176886568,1.7794348202162326E-4,1.727213847222965E-4,0]
[null,"DOM_C85: Health and social work",6.2474995086019471E-3,6.492656508250102E-4,2.4275483651528523E-3,2.0119322094618534E-3,2.3433629321067619E-3,1.8935422746562637E-3,7.1503756776108648E-4,1.9303207830365452E-3,1.4553729373445131E-3,8.5263283188240333E-4,7.1638044713897469E-4,8.5650265806295209E-4,1.0075044768295901E-3,1.0995510508717721E-3,1.134796953881453E-3,1.2050737881366073E-3,2.2362700974727142E-3,1.2115101906574339E-3,4.8271503289065796E-4,1.9168664926706917E-3,1.5589034108017242E-3,1.6965071440349841E-3,2.105621866035062E-3,2.6760085749459304E-3,2.0121537850304877E-3,7.7934124837518567E-3,7.7522877446509581E-3,1.7394178035031436E-3,1.0946409952048703E-2,7.3518963340203306E-3,1.4284896282467723E-2,1.0034281970415482,2.6541041803186879E-3,0]
[null,"DOM_C90T93: Other community, social and personal services",3.7905696718670438E-2,3.2338224916736415E-2,9.0661941954258141E-2,0.11546257878406023,8.9623207415307174E-2,0.15129083504052224,4.553067546978478E-2,0.10223224722271278,0.10470382390761933,5.9821768872282036E-2,5.1353022308240605E-2,6.3634630182770338E-2,7.9965288583331712E-2,7.2591351676250054E-2,8.7017362799136869E-2,0.10936009166113352,3.1790181170431038E-2,6.6226865614884875E-2,1.0003548672642948E-2,4.4437298623604127E-2,2.5470175077167603E-2,5.6998675726631309E-2,5.3129683856821659E-2,7.0407214449477951E-2,6.0552881287459356E-3,5.0866880563584661E-2,5.7431562803286387E-2,3.026035571992286E-2,7.6421077375422072E-2,2.1952788902587901E-2,5.2727013860893235E-2,3.5241554984593949E-2,1.023347230238169,0]
[null,"DOM_C95: Private households with employed persons",0,0,0,0,0,0,0,0,0,0,0,0,0,0,0,0,0,0,0,0,0,0,0,0,0,0,0,0,0,0,0,0,0,1]
[]
[]
[]
[]
[]
[]
[null,"Total Requirements - Type 2"]
[null,null,"DOM_C01T05: Agriculture, hunting, forestry and fishing","DOM_C10T14: Mining and quarrying","DOM_C15T16: Food products, beverages and tobacco","DOM_C17T19: Textiles, textile products, leather and footwear","DOM_C20: Wood and products of wood and cork","DOM_C21T22: Pulp, paper, paper products, printing and publishing","DOM_C23: Coke, refined petroleum products and nuclear fuel","DOM_C24: Chemicals and chemical products","DOM_C25: Rubber and plastics products","DOM_C26: Other non-metallic mineral products","DOM_C27: Basic metals","DOM_C28: Fabricated metal products","DOM_C29: Machinery and equipment, nec","DOM_C30T33X: Computer, Electronic and optical equipment","DOM_C31: Electrical machinery and apparatus, nec","DOM_C34: Motor vehicles, trailers and semi-trailers","DOM_C35: Other transport equipment","DOM_C36T37: Manufacturing nec; recycling","DOM_C40T41: Electricity, gas and water supply","DOM_C45: Construction","DOM_C50T52: Wholesale and retail trade; repairs","DOM_C55: Hotels and restaurants","DOM_C60T63: Transport and storage","DOM_C64: Post and telecommunications","DOM_C65T67: Financial intermediation","DOM_C70: Real estate activities","DOM_C71: Renting of machinery and equipment","DOM_C72: Computer and related activities","DOM_C73T74: R&D and other business activities","DOM_C75: Public administration and defence; compulsory social security","DOM_C80: Education","DOM_C85: Health and social work","DOM_C90T93: Other community, social and personal services","DOM_C95: Private households with employed persons","HH"]
[null,"DOM_C01T05: Agriculture, hunting, forestry and fishing",1.0709477908747116,3.2293471784150186E-2,0.25363588426670575,0.16965676778446143,0.2505592992851477,0.14096189626476691,2.4108850312087399E-2,5.5505653145565957E-2,7.6518718191005808E-2,3.445856871561196E-2,3.1070151495445487E-2,4.5122742315083619E-2,4.4607606946672679E-2,3.7056098283856385E-2,4.3225376134347494E-2,4.5567734801392097E-2,4.0537153156995832E-2,7.3175600237919455E-2,2.7583964257101079E-2,3.9574639795538984E-2,4.5913940354080571E-2,6.7067392169891091E-2,3.5948462249282706E-2,3.7272262636207198E-2,4.37004924843463E-2,2.3277203710945289E-2,4.092200008533383E-2,5.5324101745172771E-2,5.2214298367199589E-2,6.4342843561456531E-2,4.7847683976615124E-2,4.5502314811051159E-2,5.8704270078556171E-2,0,8.8643978002371088E-2]
[null,"DOM_C10T14: Mining and quarrying",3.8728899075665152E-2,1.0441939472436292,4.0434836111880534E-2,5.1557822525033825E-2,6.0703233739613366E-2,7.699932612538074E-2,0.28933313785145487,7.1342907198659142E-2,8.2902335996486734E-2,0.19683769669603604,0.30714341293131964,0.24649937911520584,0.14934546143872185,0.10756828057589747,0.19144702307617431,0.11927139511095332,7.764017105868852E-2,0.12489926058068335,0.14960880137462532,9.6230161511947965E-2,3.313316527252741E-2,3.2463611237160891E-2,3.7045934463753843E-2,4.6620949091886583E-2,2.5342684528331504E-2,2.3075658070331715E-2,3.2430680975197898E-2,3.6079857778375683E-2,4.2145483039469502E-2,4.6702337432342027E-2,3.8767087598901538E-2,4.135444330967597E-2,3.9968487683670603E-2,0,4.6851555715143489E-2]
[null,"DOM_C15T16: Food products, beverages and tobacco",0.17483728701154788,6.4103684854221701E-2,1.2655973095634798,9.6412278584344327E-2,0.11467221807755977,0.10618421981775579,4.6856480324846468E-2,0.11201769590431671,9.97924938403143E-2,6.4315971806843356E-2,5.9195179016814224E-2,8.7294271157739411E-2,8.491534624758186E-2,6.9949394068344994E-2,8.095109484218159E-2,7.8542520565443377E-2,7.3912278950441543E-2,8.1577186124896256E-2,5.6259362080204822E-2,7.326793388933775E-2,8.4850905543247451E-2,0.22090430911018813,7.4672361451875252E-2,7.7753046920211732E-2,8.99212516228729E-2,4.3165477449539136E-2,7.8987509924492161E-2,0.11226234344138167,0.10145210131151768,0.13304046403646361,9.3356102783474629E-2,8.5378689624394349E-2,0.11358198520739277,0,0.1847145813137501]
[null,"DOM_C17T19: Textiles, textile products, leather and footwear",2.8843800354346791E-2,2.3297138510965786E-2,2.5935855040685542E-2,1.2351183545418718,3.1635186916889976E-2,3.7980064454500362E-2,1.4734395022742493E-2,3.0521795910353949E-2,4.6713109183205606E-2,2.0168394250578432E-2,1.9694650547128094E-2,2.7683564660425021E-2,2.7782346868250617E-2,2.5994925141961608E-2,2.6219365218933217E-2,6.0231453970017231E-2,3.0464703998339254E-2,4.0852358482000875E-2,1.739340700307913E-2,3.0921036957527879E-2,2.7371481198636409E-2,2.2591242227331398E-2,2.3645015687980091E-2,2.5757033916460309E-2,2.6936291548250994E-2,1.2534604237202226E-2,2.239109294284573E-2,3.3582853625293646E-2,2.95939213223896E-2,4.0688458515739823E-2,3.2143841894073225E-2,3.4128508316707322E-2,3.4379681192285648E-2,0,5.4865755108306637E-2]
[null,"DOM_C20: Wood and products of wood and cork",5.6094682549135992E-3,6.6744795478103141E-3,1.140983164989305E-2,6.7530472943808173E-3,1.1123368658079886,1.0316853139055743E-2,6.0802061930538527E-3,1.3131804138297374E-2,6.0034276159615773E-3,7.6957094532600677E-3,5.5216986183187098E-3,7.1337222767576839E-3,5.6262983553354998E-3,6.1011638148467367E-3,5.1938474862505482E-3,7.4359593713673178E-3,1.5751422937297883E-2,3.362488522547797E-2,3.09525972829337E-3,1.1347616332638691E-2,5.5713444660386658E-3,4.690392929314194E-3,5.055224572168923E-3,6.5081313299236712E-3,3.1770229631846586E-3,3.3392804458997772E-3,3.9580758793833111E-3,4.2907311383313575E-3,5.1325151018256241E-3,5.6717842435018541E-3,5.8144288619190838E-3,6.6951022633006544E-3,5.7357995074065679E-3,0,5.6389000976525567E-3]
[null,"DOM_C21T22: Pulp, paper, paper products, printing and publishing",3.2076883788313346E-2,2.5659385100417393E-2,5.7957795312257178E-2,5.4894772686318254E-2,5.347873526551012E-2,1.2940876100737431,2.5703086479915326E-2,7.436606352521942E-2,5.1809439628498981E-2,3.7268110894545091E-2,2.9585223261293127E-2,3.9405995433560097E-2,4.072936772582475E-2,3.6799617265200368E-2,4.0968080552173707E-2,4.437728215574966E-2,4.6917439748076384E-2,4.7423183290230028E-2,2.2307038797545569E-2,4.421890392743013E-2,9.6668856128055744E-2,3.9141263288892808E-2,3.87257333134962E-2,4.7311487595275162E-2,3.1052067582991762E-2,5.3704268954898139E-2,8.4381283092283751E-2,5.5025288159259132E-2,9.3907802635420118E-2,5.3889884449549591E-2,6.6890934420397855E-2,7.6914583870048833E-2,4.1263291910388925E-2,0,5.3310671675998123E-2]
[null,"DOM_C23: Coke, refined petroleum products and nuclear fuel",5.1551653567155742E-2,4.0552072044390486E-2,5.4281179500544709E-2,7.7793852046438086E-2,5.6231227428846689E-2,6.2493024073410029E-2,1.074627065026823,0.10278462672948827,0.16946222072087025,3.7792005675355504E-2,4.3685589676916742E-2,5.5831323664102789E-2,4.9737339426616713E-2,4.3273692536527471E-2,5.9293488057489199E-2,5.2527764961907433E-2,4.1248022295015674E-2,4.6455332105352652E-2,3.0589938961022026E-2,5.5400003861331822E-2,4.844297294258576E-2,4.8610587399050373E-2,6.1535371509567595E-2,8.5211262015624317E-2,4.0415197100941123E-2,2.6856542819428238E-2,4.6746004841273718E-2,5.305614274592034E-2,5.8393083089320959E-2,7.0458174247508248E-2,4.8733862675523834E-2,4.8260310056284811E-2,4.9256380345185764E-2,0,7.8758245792768966E-2]
[null,"DOM_C24: Chemicals and chemical products",5.6825136795399016E-2,2.6814707605589412E-2,2.5396982196979851E-2,2.8966404676311692E-2,3.5274195199256626E-2,4.0610343088720809E-2,1.7046414300679491E-2,1.0777618422636523,4.5021881605994615E-2,2.0550407249508695E-2,1.6732808226210507E-2,2.2201928738628175E-2,1.9110695652053877E-2,1.4731662759771058E-2,2.1236928443178427E-2,2.2081821717819666E-2,2.2800610482456369E-2,1.9422460111223342E-2,1.3498097156717294E-2,2.4344378648271183E-2,1.7820883970636154E-2,1.8359354610710404E-2,1.5998880144181635E-2,1.9343577155494066E-2,1.4333306748854286E-2,1.1256911079368595E-2,1.8893691206734668E-2,1.8999315675728181E-2,2.2785872565118086E-2,3.0750621852136246E-2,2.3295778641586325E-2,2.7837236016710468E-2,2.0679555042210924E-2,0,2.7862282197692909E-2]
[null,"DOM_C25: Rubber and plastics products",1.1827095908026136E-2,1.2913542293985012E-2,2.361001422923463E-2,2.2667677656969514E-2,2.1680089773017053E-2,1.4810193881692767E-2,9.1350893353414619E-3,3.0266619810625183E-2,1.046522952734257,1.1219892031381086E-2,9.6533749014339077E-3,1.2074122947407931E-2,1.7663685464337969E-2,2.0383923715416304E-2,2.442933871343821E-2,2.9845743134285646E-2,1.9857403498713209E-2,2.5196041612054108E-2,6.7405046238786272E-3,2.7277542360885271E-2,1.6958205476153454E-2,1.0400859655274687E-2,1.5203660977223891E-2,2.1398389335256444E-2,8.2265230708893841E-3,6.7278592686117805E-3,9.5538542373293477E-3,1.1011688485296836E-2,1.2533652782926862E-2,1.3605466688050414E-2,1.0740591326598934E-2,1.0639169772387528E-2,1.3590443395255411E-2,0,1.5434938891728704E-2]
[null,"DOM_C26: Other non-metallic mineral products",6.4136831279257437E-3,6.6007786347789029E-3,1.0327617624833927E-2,6.5694359251254235E-3,1.0459403334213678E-2,8.4114291354719078E-3,5.8493918579329476E-3,1.2898862104903373E-2,7.372680209495195E-3,1.0696151547090305,5.317398779771435E-3,6.9148677971740125E-3,7.7182193350886115E-3,1.2679451486552652E-2,7.5510317670483889E-3,1.4364769651465534E-2,7.1244678484420586E-3,9.4809873270300504E-3,4.2238297915685487E-3,9.377280043706171E-2,6.1861690679686967E-3,7.7056712237636984E-3,9.0497911179417845E-3,1.1690830571912617E-2,4.5599060950490189E-3,4.7521546947263829E-3,6.5924288932495403E-3,7.1578910734567437E-3,9.0758936696105855E-3,9.6256243935181323E-3,7.5605576963215246E-3,8.2204036297899054E-3,1.1630167344035162E-2,0,8.5208534842175932E-3]
[null,"DOM_C27: Basic metals",1.9443016279951351E-3,2.8753711110694022E-3,1.681625219569352E-3,2.5005680403236879E-3,5.1084565859451396E-3,2.1812978291065313E-3,1.9702570325232896E-3,2.1637308196078677E-3,5.4470763577304298E-3,1.9617544718620811E-3,1.0135748084361813,4.8313691761526084E-2,4.7216548944662463E-2,6.4190009271674281E-3,2.5884117020815462E-2,2.742546433445427E-2,3.2454801793253253E-2,4.6325701258565838E-3,2.0993591190607251E-3,1.7646176162977385E-2,1.719058919876552E-3,1.5021400688756262E-3,2.7352335799679557E-3,3.3709496947214122E-3,1.1605035108278731E-3,1.2326012602601963E-3,1.7917743826564427E-3,1.8331870065003237E-3,2.3506477487878936E-3,2.4331129719994652E-3,1.8303018656244199E-3,1.9531728809580205E-3,2.5342480964782666E-3,0,2.095684145700996E-3]
[null,"DOM_C28: Fabricated metal products",1.7354242184258847E-2,2.0920458561598229E-2,1.0905690776386303E-2,1.4256405531591625E-2,2.2599854253571659E-2,1.4967354166611498E-2,1.2338005737303207E-2,1.0783340413986186E-2,2.3434186560819172E-2,1.0765159545500166E-2,2.9113975754905735E-2,1.0669803213717104,4.081607311477408E-2,1.9368095789605577E-2,8.3224667228611313E-2,4.9629462129039424E-2,8.693435932873711E-2,2.9254301905475785E-2,1.0164050745586427E-2,6.8032801041997271E-2,1.2248318245472229E-2,9.4805374915680127E-3,1.0783295664482582E-2,1.2520498287372167E-2,6.8700530612921589E-3,8.1774730678653082E-3,1.2352800631225904E-2,1.0896995358768152E-2,1.5030217807821324E-2,1.4630589133115816E-2,1.1482496160326153E-2,1.2514992972356141E-2,1.5431434899197793E-2,0,1.2465841699607893E-2]
[null,"DOM_C29: Machinery and equipment, nec",2.6756462263959517E-3,5.5347932155966322E-3,1.7902082670859193E-3,1.8675183473442264E-3,2.0799835669240894E-3,1.8958083297950475E-3,2.0970562159143007E-3,1.7473112389164904E-3,1.8473098504390641E-3,1.8816940968552603E-3,2.3955956574403469E-3,3.0871852698234714E-3,1.0137371329503357,1.8174318040472396E-3,3.7423607832768116E-3,4.9007401073541748E-3,1.6486288683472319E-2,1.7614082585116846E-3,2.3041599974505229E-3,2.6718202821886471E-3,2.7395560653199029E-3,1.4033107090882472E-3,1.942298267537036E-3,2.4346313300931135E-3,1.1073311823939916E-3,2.0966008074353808E-3,3.3681781429211232E-3,1.7069003263812295E-3,3.6805624610653253E-3,2.218032753525149E-3,2.3437821493262402E-3,2.6157349399902573E-3,1.6198550304644327E-3,0,2.0136419336027815E-3]
[null,"DOM_C30T33X: Computer, Electronic and optical equipment",1.2871970649096503E-3,1.5286427507400441E-3,1.6052627105613325E-3,1.743897450830907E-3,1.9212572614288005E-3,2.3542641685466246E-3,1.0012269705847751E-3,1.7175414782985281E-3,1.983318030901164E-3,1.3666293417370996E-3,1.2967923930359976E-3,1.9345212491315902E-3,1.3403683396159187E-2,1.0386523361849389,1.5678155279092883E-2,6.6377954231767577E-3,7.5230610598918963E-3,1.4478792912991829E-3,1.248295274010605E-3,1.7800716956967975E-3,1.9554664320593886E-3,1.4687764708159849E-3,1.7637450852481357E-3,1.9578027128352988E-3,1.9038827888798199E-3,1.20552486078544E-3,2.0808105966870303E-3,1.2920572558478213E-2,2.5348689841816797E-3,5.3556945720626943E-3,4.2059355385853344E-3,6.042872884479346E-3,2.5498950202480241E-3,0,3.5425903575189259E-3]
[null,"DOM_C31: Electrical machinery and apparatus, nec",3.1358391528617862E-3,4.9643618058873972E-3,3.7003530562016137E-3,4.1027845572826661E-3,4.4189214921116441E-3,4.6434333467058253E-3,3.0908621770146111E-3,4.0026614824161203E-3,4.5377985256721057E-3,3.3649494829960922E-3,3.4406335273981501E-3,5.1905634712669946E-3,1.7073097690468605E-2,2.0724226289853178E-2,1.0195561551847583,7.5993944794322576E-3,1.4032308810019758E-2,3.4621869602971633E-3,8.1474698988357949E-3,1.8344793119637503E-2,4.0561798550805654E-3,3.5681706061544715E-3,4.4540026202228196E-3,5.2794169736565004E-3,3.4799237517781725E-3,2.7886035739193181E-3,4.2695584033058641E-3,5.790300594338312E-3,5.5113783344727186E-3,6.9190024681192583E-3,4.5292479225435625E-3,4.4574414420964752E-3,7.1900727891167082E-3,0,6.8255546763937303E-3]
[null,"DOM_C34: Motor vehicles, trailers and semi-trailers",5.9638942130512086E-3,5.9498047103336386E-3,6.1683133060230896E-3,6.5766041031354644E-3,7.4390192475673996E-3,6.9214174676755945E-3,3.7862233973279401E-3,6.2250338812260241E-3,7.1311991742542382E-3,5.1924120974091992E-3,4.7901524294211364E-3,6.8114226698109733E-3,6.7118609367267717E-3,5.3485315528114582E-3,6.8206428569514482E-3,1.0393013753992597,6.2103342725542774E-3,5.2855701348341584E-3,4.1506653117815602E-3,5.5919083602436852E-3,8.3946868020288359E-3,5.1898124011871645E-3,8.6285860497516288E-3,9.6434984726132267E-3,5.9361553068590783E-3,3.2461352024237716E-3,6.6144135118771661E-3,7.4654176167805184E-3,7.7390347425426538E-3,1.2119782035847097E-2,9.0469694558272407E-3,1.113225086576866E-2,7.2131917976141274E-3,0,1.1788793474778674E-2]
[null,"DOM_C35: Other transport equipment",3.4229640512907478E-3,3.2755107907071709E-3,3.4480976406598301E-3,3.476871633135981E-3,4.2319446264180577E-3,3.7397699996850058E-3,2.0877688608355975E-3,3.6444968820379393E-3,3.9693881819878856E-3,3.0088430312075389E-3,2.6636501015960454E-3,3.4426994275469332E-3,3.3227126600107529E-3,2.8075874503746849E-3,3.2085094765060078E-3,3.1104903501990144E-3,1.2986383065986,2.8475012117909399E-3,2.1774519280049003E-3,2.9590408378736264E-3,3.2124733516183603E-3,2.8682347847022497E-3,1.2963733843153942E-2,2.9624463344329016E-3,2.9881153457805417E-3,1.4386738888126991E-3,2.7272081808039548E-3,3.8028769900278181E-3,3.6085383373008948E-3,9.8080796315902618E-3,3.0249569534265921E-3,2.8281545033511054E-3,3.2513894982649219E-3,0,6.0177909290120542E-3]
[null,"DOM_C36T37: Manufacturing nec; recycling",1.4164122293823182E-2,1.803913993381023E-2,1.8224474656424711E-2,2.0246148070915505E-2,2.5985176402133502E-2,2.5861075196564633E-2,1.2023220141610596E-2,2.0249996537222575E-2,2.2878644174820207E-2,1.5786593540712331E-2,5.9053792471862689E-2,4.8831603795103401E-2,2.9170495135671902E-2,1.753318542591625E-2,2.6739149598457353E-2,2.1270025641256872E-2,2.4001244266574847E-2,1.1856965195781408,1.2921204735007054E-2,2.2200774587364889E-2,2.5489236164111986E-2,1.7705867629310763E-2,1.9057150919023446E-2,2.151365750307584E-2,2.696082017325865E-2,1.8379832509620803E-2,3.1496286004911681E-2,2.5516359796698567E-2,3.5900534133892437E-2,2.934937094892277E-2,2.9499625974986503E-2,3.1175819223139577E-2,2.4454024171547746E-2,0,3.6074525470297276E-2]
[null,"DOM_C40T41: Electricity, gas and water supply",5.2524609935822995E-2,6.901305487532744E-2,6.5766154050123163E-2,7.1886328915657619E-2,7.2861024175942632E-2,6.9553231224445067E-2,7.0743726351447905E-2,8.324326811879465E-2,8.1870954613821323E-2,6.9337323401173157E-2,7.317758747341517E-2,8.3867407351603793E-2,5.8619092987500697E-2,4.8571637579164072E-2,6.171619355619698E-2,5.7425703217537746E-2,6.2942420105699143E-2,5.2176033461756269E-2,1.1582901402283874,5.2492119546846489E-2,5.5531249394457333E-2,6.0808385916324002E-2,4.89399394648391E-2,4.3796704287467576E-2,4.1364340934980225E-2,5.9438030029198723E-2,5.0935125435467923E-2,6.1405242384392857E-2,7.8187508702086489E-2,6.4875724369166166E-2,7.2313785428865712E-2,6.3571703266123325E-2,5.05252835420201E-2,0,7.4967399461797327E-2]
[null,"DOM_C45: Construction",1.7053256324816815E-2,2.1478950999880769E-2,2.1524783805331918E-2,2.4306827819935654E-2,2.8715519308119261E-2,3.6473006404124486E-2,3.4465042964025271E-2,2.2882455790676357E-2,2.5995045394262863E-2,1.6496404469669063E-2,1.7341884769120488E-2,2.365939558062673E-2,2.1793086491489245E-2,2.2569754286374994E-2,2.0355783413597787E-2,2.0555812436778315E-2,2.0582956502568101E-2,1.7217190700759239E-2,1.28844345172356E-2,1.0802434833318919,2.0132335853525567E-2,2.5593856108844407E-2,4.3185755589462131E-2,4.9897052781091973E-2,1.4659307258114561E-2,2.6647315040244524E-2,2.7799908264269198E-2,3.2373075818860078E-2,4.5489905414400483E-2,2.9036387493300828E-2,2.6762734356619407E-2,2.5636565216303912E-2,2.0056235290693319E-2,0,2.5563137931100186E-2]
[null,"DOM_C50T52: Wholesale and retail trade; repairs",0.20238214516181197,0.13768329925502504,0.28205499944754064,0.36126917098027045,0.26877549365072212,0.26596282256899884,0.17722467815413018,0.24534260326825144,0.26425886060640463,0.19492827422699124,0.21411960744535122,0.25848109150002402,0.23819970910887692,0.19806572770625958,0.25224903661293779,0.26176400855189269,0.21809108440012734,0.27085238407683615,0.13227690145539181,0.25776866510873692,1.1878299720736594,0.20325934178964705,0.18847094310193482,0.22942132737319032,0.13816522809457815,0.15430397623099942,0.21567632045338855,0.19543461207745252,0.28103861153059073,0.22736940580093376,0.19324742741174139,0.19306103387582735,0.18098431122193182,0,0.25719743477437862]
[null,"DOM_C55: Hotels and restaurants",8.897202194266601E-3,9.0717801488860265E-3,1.0800412773602081E-2,1.1652182834451897E-2,1.3239556647558371E-2,1.2842301970112411E-2,6.6409118085558848E-3,1.202425173739924E-2,1.5852007438426741E-2,9.4982488016046238E-3,7.9490982999711919E-3,1.1197325782754277E-2,1.2140515457587339E-2,1.1158565860749373E-2,1.1961690222175221E-2,1.0821193576857619E-2,1.3134620421729321E-2,9.4886503870405519E-3,7.1695246791426475E-3,1.2838723764234129E-2,1.2449818935500099E-2,1.014496151508063,2.3097200834753345E-2,2.494617543950884E-2,9.9525683989591437E-3,6.7646512992668023E-3,1.9482285495286869E-2,2.1965159113134475E-2,1.7806048755749617E-2,1.743835317047308E-2,1.8614990828740449E-2,1.212081620609182E-2,1.2176142638540019E-2,0,1.8812539310100442E-2]
[null,"DOM_C60T63: Transport and storage",0.20290441842801471,0.17709949655049032,0.16767444167602899,0.1570531816649349,0.20509802140242611,0.15871590008011971,0.1064565263149559,0.17835949869214826,0.16265495400322569,0.149247665354065,0.12612536336767874,0.13198152495691487,0.13011646457517653,0.11509859250176728,0.12919039429421914,0.12721443995094289,9.846778097102496E-2,0.13255957315135877,8.0758314414330748E-2,0.12426661323632678,0.12387717970517644,0.12522774901714936,1.1395227166581032,0.14444388753537493,7.3878469057895371E-2,5.348453328443839E-2,0.10522871419534244,0.10715672478150655,0.1365502015978898,0.14573300516532667,9.372126770791106E-2,9.1050459616973334E-2,9.5057696724916985E-2,0,0.13437646699972056]
[null,"DOM_C64: Post and telecommunications",3.7561703143879285E-2,3.6500061095405004E-2,5.1468321715063957E-2,6.847440161420032E-2,6.4874753685906519E-2,6.6384642025945448E-2,3.1205327011041718E-2,5.9194888658439582E-2,6.5360224420786539E-2,4.213788513679817E-2,3.6264542201139886E-2,5.6007283922659613E-2,6.2790447942726355E-2,6.1052765851561996E-2,5.6742850005166795E-2,5.2779071994800246E-2,5.5564033015278042E-2,4.8051041423246031E-2,3.1680807614067691E-2,7.0629179885542542E-2,7.944678012404445E-2,8.5043812462696045E-2,6.0463864170317287E-2,1.0601003817621144,5.906726725940184E-2,4.049646404206006E-2,8.7899109735897291E-2,7.1587793823649701E-2,0.11426890617348753,0.11364638012728266,8.9646490195463543E-2,9.6879671063126227E-2,6.0734311684689721E-2,0,7.6539926221962901E-2]
[null,"DOM_C65T67: Financial intermediation",0.14596580119949032,0.14571041230383275,0.14467641463751732,0.18080706345243711,0.18481255530105126,0.16470232236049359,9.0366718424067086E-2,0.16230599294942605,0.1752198295695219,0.12214855939120198,0.11034692236587006,0.15828657734235668,0.1660699974323098,0.17628219728749206,0.15166474338840408,0.13678051866892937,0.14509540606401994,0.13804887014504674,0.12522308528720444,0.15049700160920157,0.18402060998729788,0.13932997166405839,0.15317342460562192,0.13134326410055469,1.6661953270004153,0.20549786984605323,0.32609526660593191,0.20796689305697461,0.2150888149304816,0.19835689454145633,0.14648260491974874,0.14288953724809503,0.18688120343506684,0,0.21740758994534373]
[null,"DOM_C70: Real estate activities",5.9101630264182525E-2,5.7749495657073421E-2,8.3932911693371304E-2,9.9813858242257275E-2,0.10041775830080166,9.9366619088393088E-2,4.7752471115127385E-2,8.8064169684370266E-2,0.10739299287051593,6.4915340979719932E-2,5.8679271825743846E-2,8.9910467756513984E-2,9.2115384927459756E-2,8.8806069641254579E-2,8.6495298029841766E-2,8.3423437266876982E-2,9.1357441582565466E-2,7.8966524408305552E-2,4.987397638144226E-2,8.712401581106663E-2,0.13186149428785973,0.10971545369978966,7.9433510634476318E-2,8.7553775837162756E-2,8.4699367697381275E-2,1.0620234109478146,9.0733987576278596E-2,0.11628128980784033,0.13092921854481684,0.12153268707803921,0.11083856624346511,0.12529683014952733,9.3094766528397044E-2,0,0.14492803140200966]
[null,"DOM_C71: Renting of machinery and equipment",4.207205389203517E-3,3.5752174875495809E-3,5.9578962664007399E-3,5.8187858507269775E-3,5.9581857403584113E-3,8.2213295521476604E-3,3.2724684731793388E-3,5.8188322309799846E-3,5.9052821302364609E-3,4.5078516004866008E-3,3.5985051467904926E-3,4.9072217652324727E-3,5.2491106762232453E-3,5.0488498446356099E-3,4.7274644745816689E-3,4.8094221737211293E-3,9.9243331805598974E-3,4.5813488184462551E-3,2.8359702001178291E-3,1.1393805000315622E-2,7.8847290455902469E-3,4.8297671018908764E-3,1.3037995879353701E-2,7.5881170365614658E-3,4.5276509028271249E-3,3.1765544097496221E-3,1.0258059216132474,4.9918693514215698E-2,7.8562544282478573E-3,5.0794146453443552E-3,7.8786582755153468E-3,8.0744618706251256E-3,5.4871984522245568E-3,0,5.1593517078689444E-3]
[null,"DOM_C72: Computer and related activities",5.3846124557410365E-4,4.8868027845741112E-4,6.6311137063324423E-4,7.0801056617597309E-4,7.7126608045713385E-4,1.2657558347375128E-3,3.8944872676296174E-4,1.2818675714608965E-3,1.0502794149601427E-3,6.2451009221934912E-4,5.7121770803547959E-4,1.0936890667411778E-3,1.6849212782192998E-3,4.234059771208323E-3,1.4289387238963502E-3,1.0709857813264781E-3,1.2758257414827133E-3,6.7901995292824326E-4,4.8641999486125792E-4,7.6173080918589371E-4,8.9628765706709513E-4,6.1460199186864136E-4,1.1493932392897409E-3,1.7602082665247097E-3,1.2356649108889346E-3,5.244151897108348E-4,9.8442166468590904E-4,1.2370725783652015,1.882906950185962E-3,1.0265714341005422E-3,1.8402030525181056E-3,1.5085629896600596E-3,7.8571754042074473E-4,0,8.141023256564786E-4]
[null,"DOM_C73T74: R&D and other business activities",7.7892246523963871E-2,7.6098895448985654E-2,0.12972551990657277,0.12142155678848941,0.13138934521267942,0.13693430954316538,7.0376801803540404E-2,0.18620156559525797,0.13775568508071043,9.1133183431619566E-2,7.9438282679650585E-2,0.1038724613913741,0.10898653928600127,0.10101564272217319,0.1201302727368091,0.1223393759755968,0.23472721817506992,9.5778130393914016E-2,6.6496936066768444E-2,0.19517660558785949,0.14059765549534256,0.13424349305965577,0.13325494953143827,0.15888851557462777,8.8418177503786485E-2,8.5428435013786913E-2,0.13699141657282699,0.18496787823602709,1.1505126180544969,0.19178512125617131,0.33369010770134067,0.25040918043182137,0.1284516549814296,0,0.13568648578589784]
[null,"DOM_C75: Public administration and defence; compulsory social security",0.11425301382606781,0.123154111562258,0.14488764280849983,0.15587665309188756,0.17839980787450402,0.17601487850328279,8.372496345574526E-2,0.15218935790264568,0.18600207829896903,0.12408163340926863,0.11354495124583382,0.17110578957992267,0.16510937506727438,0.1353705149992816,0.15643436094449512,0.15008655087542269,0.14279305809817033,0.12437443433562831,0.1119562710026895,0.14012242962005467,0.16131837142566141,0.13217733592653474,0.13105504433215234,0.12468084227185659,0.18375836083240157,7.3915807707186129E-2,0.13697662099867555,0.22339471561042273,0.18342698594798001,1.2863970864849401,0.17066319636549129,0.16319508190698676,0.18796010172330105,0,0.38167219416710679]
[null,"DOM_C80: Education",6.4570465260404457E-3,6.9471537932772739E-3,8.2106114320931942E-3,8.8349234919503136E-3,1.0104624545029622E-2,9.9677918024653287E-3,4.7434588858688348E-3,8.6620986375468782E-3,1.0536640453845593E-2,7.0161614420231992E-3,6.4143252231645687E-3,9.643037818722236E-3,9.3697586834454883E-3,7.7121077398375031E-3,9.8159930461283688E-3,8.4880610881800482E-3,8.2148946679265235E-3,7.0334612643080325E-3,6.3506861994608301E-3,7.9449570856164643E-3,9.1386924101679833E-3,7.5099116208312451E-3,7.5180762488488246E-3,7.0572318288513397E-3,1.0691469653809902E-2,4.2860845588542197E-3,7.8192454660408611E-3,1.7824665300822856E-2,1.0641505033390982E-2,1.443996079428363E-2,1.0097737852056647,8.447354228148983E-3,1.0680132446337183E-2,0,2.1350491857675059E-2]
[null,"DOM_C85: Health and social work",2.4951146697589542E-2,2.0830530313424807E-2,2.6169186546461401E-2,2.7556128145305926E-2,3.1578031320278338E-2,3.0742546431469474E-2,1.4434869878962212E-2,2.6868844899122595E-2,3.1944263788589083E-2,2.1187798511368743E-2,1.9326403441091333E-2,2.8907598843072205E-2,2.8073281153071093E-2,2.3286860339884245E-2,2.6777785354494182E-2,2.5807019157702751E-2,2.5550787528121153E-2,2.1594644534234698E-2,1.8838431855566846E-2,2.488008269469779E-2,2.7999784846392362E-2,2.3354354338296059E-2,2.3470704410113508E-2,2.2958355391162331E-2,3.2132484364176019E-2,1.9889564510777797E-2,3.0183003463929537E-2,3.8292440874031199E-2,4.0984696052719073E-2,4.9490538760822531E-2,4.2229258484090225E-2,1.027675258728453,3.3463293855647704E-2,0,6.2602609667350581E-2]
[null,"DOM_C90T93: Other community, social and personal services",7.6988276049144183E-2,7.4508389334173572E-2,0.14027175592694252,0.16883896329390033,0.15071109230406476,0.21157284753633476,7.4199224939592176E-2,0.15434303809165792,0.16841249437984182,0.10231352023159919,9.0239967333129806E-2,0.12224935814892141,0.13652112250180462,0.11895328668581032,0.1406001810757477,0.16076757769178163,8.0507496452742702E-2,0.10881885085376401,4.8359103161092702E-2,9.2420545411265709E-2,8.0720246671896895E-2,0.10225426264741967,9.7773518558895253E-2,0.11278859709872298,6.8993826127508789E-2,7.6142636485031848E-2,0.10430211257788689,0.10664045471813743,0.13918817769648317,0.11000443032221567,0.11111871370152307,8.5907486732242647E-2,1.0877251875117973,0,0.13081253265189224]
[null,"DOM_C95: Private households with employed persons",0,0,0,0,0,0,0,0,0,0,0,0,0,0,0,0,0,0,0,0,0,0,0,0,0,0,0,0,0,0,0,0,0,1,0]
[null,"L",0.47870865419184677,0.51652738895817241,0.60765301800472904,0.65378840475886124,0.7482438381369011,0.73837299298579084,0.35115089560179047,0.63828659707458224,0.78034491132803618,0.52046639336346778,0.47631239896139621,0.71795101605841849,0.69273235302306679,0.56787090039503352,0.65631693875952091,0.62967206552637223,0.59672111805709216,0.52169412260784043,0.4698035847299144,0.58772977339206445,0.67673853338777146,0.55431963500475856,0.54682649902610347,0.51911452617433573,0.77091183177609768,0.30959377062923527,0.57410074227971863,0.93555274561844259,0.76881195245962708,1.0785133296078726,0.7152192236423548,0.62058903009457189,0.78854276800632994,0,1.6022763218288145]

{"sheet":"Mexico-IO-Data","index":17,"n_rows":145,"n_cols":45,"rows_kept":145,"cut":false,"hidden":false,"merged":[]}
[]
[]
[]
[]
[]
[]
[]
[]
[]
[null,null,null,null,null,null,null,null,null,null,null,null,null,null,null,null,null,null,null,null,null,null,null,null,null,null,null,null,null,null,null,null,null,null,null,null,null,null,null,null,null,"Tranpose Value Added Components"]
[null,"Direct Requirements "]
["->",null,"DOM_C01T05: Agriculture, hunting, forestry and fishing","DOM_C10T14: Mining and quarrying","DOM_C15T16: Food products, beverages and tobacco","DOM_C17T19: Textiles, textile products, leather and footwear","DOM_C20: Wood and products of wood and cork","DOM_C21T22: Pulp, paper, paper products, printing and publishing","DOM_C23: Coke, refined petroleum products and nuclear fuel","DOM_C24: Chemicals and chemical products","DOM_C25: Rubber and plastics products","DOM_C26: Other non-metallic mineral products","DOM_C27: Basic metals","DOM_C28: Fabricated metal products","DOM_C29: Machinery and equipment, nec","DOM_C30T33X: Computer, Electronic and optical equipment","DOM_C31: Electrical machinery and apparatus, nec","DOM_C34: Motor vehicles, trailers and semi-trailers","DOM_C35: Other transport equipment","DOM_C36T37: Manufacturing nec; recycling","DOM_C40T41: Electricity, gas and water supply","DOM_C45: Construction","DOM_C50T52: Wholesale and retail trade; repairs","DOM_C55: Hotels and restaurants","DOM_C60T63: Transport and storage","DOM_C64: Post and telecommunications","DOM_C65T67: Financial intermediation","DOM_C70: Real estate activities","DOM_C71: Renting of machinery and equipment","DOM_C72: Computer and related activities","DOM_C73T74: R&D and other business activities","DOM_C75: Public administration and defence; compulsory social security","DOM_C80: Education","DOM_C85: Health and social work","DOM_C90T93: Other community, social and personal services","DOM_C95: Private households with employed persons","HH",null,null,null,null,null,"VA % Output","L % Output","Avg Annual Earnings"]
[null,"DOM_C01T05: Agriculture, hunting, forestry and fishing",9.3234052426827529E-2,0,0.20601887082236173,3.2478525299391818E-2,0.20181721004810263,9.8513848232380097E-5,0,2.7949865032657643E-3,1.6241030337456386E-2,0,5.1367156630314524E-5,0,0,0,0,9.3333426666760014E-6,2.469135802469136E-5,3.7448380229307206E-3,0,5.229586007429799E-4,0,1.7875923216951144E-5,0,0,0,0,0,0,0,0,0,7.858210932343049E-5,3.9749577660737354E-5,0,1.6970394026567616E-2,null,null,null,null,"DOM_C01T05: Agriculture, hunting, forestry and fishing",{"$f":"TRANSPOSE(C48:AJ48)","v":0.60987545690411116},{"$f":"TRANSPOSE(C47:AJ47)","v":0.10046767695334982},1051.3267752703398]
[null,"DOM_C10T14: Mining and quarrying",2.950101400318816E-3,9.8294508175569475E-3,4.5936560289824244E-4,1.3435683383642504E-5,0,2.5660511896719962E-3,0.43682527171582824,0.21460879258232016,4.2312463049047681E-4,0.10879919654754093,0.23640746009167063,2.2027523390476402E-4,3.942255972684844E-4,5.1754030345113127E-5,1.1291586286812875E-3,2.531669198335865E-4,7.9012345679012352E-4,1.5517993177212917E-3,4.5834665908579417E-2,2.852572682105153E-2,4.2536423746306584E-6,0,2.0478211101801185E-4,0,0,0,0,0,0,0,0,0,0,0,0,null,null,null,null,"DOM_C10T14: Mining and quarrying",0.8609273465174655,5.3430777441527674E-2,19202.310320220251]
[null,"DOM_C15T16: Food products, beverages and tobacco",6.4631026388189947E-2,1.4662068641940556E-6,8.79952687427768E-2,1.3843232446279661E-2,0,2.8991218194100426E-3,0,5.6081115620099497E-3,8.1147189409132541E-4,3.0825527514269238E-4,0,0,3.3408948921057997E-6,1.0350806069022625E-5,1.9752045982763048E-5,1.1666678333345002E-6,0,3.7833123861800093E-4,6.8109401466425026E-5,6.5941096972585477E-5,7.1666140117299989E-3,5.3434113816003125E-2,2.0967730092282487E-4,0,1.7227123393493639E-3,0,5.0579721422457395E-4,0,5.7430175455046241E-5,4.7115314918173192E-3,8.3708929280726919E-5,3.4845552477132604E-3,3.1799662128589884E-4,0,0.12254175615373247,null,null,null,null,"DOM_C15T16: Food products, beverages and tobacco",0.38850654752349123,6.7077802356038219E-2,3982.062502038686]
[null,"DOM_C17T19: Textiles, textile products, leather and footwear",7.8046604972683675E-4,4.1053792197433549E-5,4.3156738184539878E-4,0.11750848687333736,1.7958311063602352E-3,9.8607670944982351E-3,2.0617014327912702E-4,3.7926070545789135E-4,7.7205754494974674E-3,3.1819899369568244E-4,3.2598387861545758E-4,7.5994955697143588E-4,9.6551862381857607E-4,3.6227821241579188E-4,9.6126623782780173E-4,9.4628427961761293E-3,4.9629629629629633E-3,1.7922640880293432E-2,1.0423699702687657E-3,5.4515659378325616E-4,1.6685878951392082E-3,3.3398183210337053E-3,5.7600067879966677E-4,1.7127283017181894E-4,0,4.8151418877860071E-5,1.0375327471273312E-3,0,9.3411938444228266E-4,1.6272165277862014E-3,5.7119034097437185E-4,5.9408074648513451E-3,2.7973765278743912E-3,0,1.1662495080568935E-2,null,null,null,null,"DOM_C17T19: Textiles, textile products, leather and footwear",0.38747167310086622,0.13176374694338203,4283.4804561984056]
[null,"DOM_C20: Wood and products of wood and cork",6.2075678086381618E-4,9.830917024421142E-4,8.6591458579608185E-4,3.6276345135834761E-4,5.7808658471405663E-2,1.8670719807851084E-3,1.4596116338345274E-4,2.8527000888789217E-4,1.043321006688847E-3,1.8694190879621343E-3,4.544017701912439E-4,2.1917385773524019E-3,1.8541966651187188E-3,2.0598104077355025E-3,1.0501504447502355E-3,5.4716721383388049E-4,3.5061728395061726E-3,3.5383589401595403E-2,0,9.5013939033864996E-3,2.7416658578301241E-3,0,1.6317299682710108E-6,1.3875581458847358E-3,0,5.7781702653432085E-6,5.1876637356366561E-4,0,0,0,0,2.2452031235265857E-6,3.9749577660737356E-4,0,4.3150397366579829E-4,null,null,null,null,"DOM_C20: Wood and products of wood and cork",0.46236237306253336,0.16805986103687867,2310.0272993767235]
[null,"DOM_C21T22: Pulp, paper, paper products, printing and publishing",1.8110428412580267E-3,9.0171722147934416E-5,5.5242014787263687E-3,4.872674507134348E-3,9.4067343666488518E-4,0.17520453351347295,1.3683859067198696E-4,6.9124385968673064E-3,9.6159419449822064E-3,1.235507030209017E-2,7.3099415204678359E-4,5.9198969111905328E-3,2.7495564962030732E-3,8.7516065313586293E-3,8.0522507456397361E-3,2.2575022575022576E-3,5.2345679012345677E-3,1.5049888424346578E-2,2.0403207656681239E-3,1.3266565252306305E-3,1.0126762409711608E-2,3.7509645550235816E-3,1.2825397550610144E-3,1.9882541589511154E-3,1.2587696044811081E-2,4.1410220234959659E-3,1.3980753767540786E-2,6.1370932208724114E-4,1.2761219394990682E-2,1.1590219541095353E-2,6.2469840165185623E-3,6.8186818861502392E-3,1.0618105932624465E-2,0,4.0369339968092709E-3,null,null,null,null,"DOM_C21T22: Pulp, paper, paper products, printing and publishing",0.4476516175035653,0.13927981685806501,7375.3753739564572]
[null,"DOM_C23: Coke, refined petroleum products and nuclear fuel",9.0431606765646235E-3,6.3992598587749548E-3,4.9327943258271178E-3,3.2872638678645327E-3,1.0090860502405131E-2,7.8060496885085946E-3,0.1046578031750202,5.9444993181552094E-3,3.4893291445926996E-3,2.3119145635701926E-2,8.7818081239133868E-3,5.7271560815238647E-3,3.8821198646269393E-3,1.4594636557321902E-3,2.6533581770178359E-3,5.4950054950054952E-4,2.6172839506172839E-3,3.6037653576833305E-3,0.11158985110692585,1.2961669289076629E-2,3.8104901781464097E-3,5.6905022240627805E-3,0.10504343257243046,9.57142077018165E-3,2.5848028280092759E-4,6.1104150556004428E-3,1.6691308069410937E-2,9.2843205136274943E-4,4.0318327258236546E-3,1.6575419267131259E-2,1.0438995886773005E-3,5.3458286371167998E-3,8.3772234920003966E-3,0,1.585842828992632E-2,null,null,null,null,"DOM_C23: Coke, refined petroleum products and nuclear fuel",0.12545179541353535,3.2111455944359608E-2,45219.985666637687]
[null,"DOM_C24: Chemicals and chemical products",2.3975977315257052E-2,1.548241138245713E-2,7.0121012605798292E-3,2.3297474987236104E-2,1.1266702298236238E-2,1.9726225324626586E-2,2.7878582206239478E-3,0.1347480307300109,0.15834714767629229,2.1185092377145359E-2,1.1778884147305201E-2,1.0964199767609629E-2,4.7440707467902351E-3,5.2219816618219138E-3,1.073852899929551E-2,5.4775054775054776E-3,1.0419753086419754E-2,2.1519993844101883E-2,0.14270992502043284,9.0169553493898817E-3,2.7938696506096825E-3,6.4323530375662531E-3,1.9956057511954462E-3,1.4024514354648941E-3,1.227781343304406E-3,1.2702344299979488E-3,1.8156823074728294E-3,2.6751431988418202E-4,3.4036169290092705E-3,1.5329858979498548E-2,1.0750852682132575E-3,2.7853989950470816E-2,1.7216535824306867E-2,0,1.9611541262467464E-2,null,null,null,null,"DOM_C24: Chemicals and chemical products",0.29334826191414526,6.421543327237679E-2,12717.25879017399]
[null,"DOM_C25: Rubber and plastics products",1.4434101846299413E-3,1.1876275599971849E-4,6.3970656197856616E-3,5.2220022751090526E-3,4.0619989310529125E-3,5.5543045860541925E-3,1.1494441616446905E-4,2.4618966662983991E-3,1.8669649791915426E-2,1.1236401964878787E-3,3.872293345977557E-4,5.8758418644095801E-3,7.7408534650091378E-3,9.6624774654326204E-3,1.610120948361568E-2,2.4189690856357526E-2,1.1333333333333332E-2,2.3969528304306566E-2,6.2186844817170678E-5,8.3666847297394348E-3,6.2644551335469699E-3,1.6118124100617615E-3,2.3056344451669385E-3,0,9.3992830109428221E-5,1.1363734855174977E-4,2.4641402744274114E-4,0,8.5793649863456832E-4,7.0266168245313246E-4,1.0504649948953966E-4,2.0094567955562938E-3,4.7202623472125611E-4,0,2.7673407158805238E-3,null,null,null,null,"DOM_C25: Rubber and plastics products",0.30844626317192775,0.10783302226910728,5461.5288971282616]
[null,"DOM_C26: Other non-metallic mineral products",1.2505537090217655E-3,1.9845109906866539E-3,5.4762495474102134E-3,1.7018532285947171E-4,2.159273115980759E-3,9.3822712602266756E-5,6.0208979895674256E-5,5.2601810887420582E-4,1.2056153855071121E-3,4.2633693295944949E-2,3.9908329382013592E-4,5.9694588388191049E-3,2.9333057152688921E-3,2.5583742333934257E-3,7.6440417953292997E-3,3.3191699858366526E-3,6.7407407407407407E-3,6.6881268115012698E-3,1.1815500515262429E-3,5.7942637774455331E-2,1.4412113754771331E-3,3.5275155148116926E-3,2.5128641511373568E-4,0,0,3.7076592535952257E-4,2.4122636370710452E-3,0,2.1096799146751678E-5,0,0,4.5577623407589687E-4,5.9624366491106028E-5,0,4.5645690544096227E-3,null,null,null,null,"DOM_C26: Other non-metallic mineral products",0.54697909830360159,0.11822584173577551,4112.7304881095006]
[null,"DOM_C27: Basic metals",1.042630321256701E-3,3.9741537053979877E-3,4.2392287105586677E-5,3.2245640120742009E-4,2.9930518439337251E-4,1.0226675673647076E-3,7.2980581691726378E-6,2.308543424526295E-4,6.2541298123181439E-3,4.0023467175785057E-3,0.10602773826458037,0.1451999273091728,0.12250059300884335,4.573331148163164E-3,9.3568733828012368E-2,3.2849866183199516E-2,9.0222222222222218E-2,2.9644496883576579E-2,1.9544436942539356E-4,4.4261492358014451E-2,9.8723172567564271E-4,0,8.9745148254905601E-6,0,0,1.2519368908243619E-5,6.3548880761549035E-4,0,2.3440887940835198E-5,0,0,7.6336906199903903E-5,0,0,6.1496460352900516E-5,null,null,null,null,"DOM_C27: Basic metals",0.37664177335229965,4.6161292871819186E-2,10383.999515202067]
[null,"DOM_C28: Fabricated metal products",8.6032068415834719E-4,2.6237771834752622E-3,1.7116754613288522E-3,9.987191315174262E-4,1.4323890967397114E-3,6.23921038805074E-4,2.4448494866728338E-3,7.2059534036999356E-4,7.2742659077472387E-3,9.7945627746952248E-4,7.1775723091512568E-3,5.2491588239505269E-2,1.6196658436928916E-2,6.7763277065201457E-3,1.9837638182021691E-2,1.7082350415683751E-2,1.439506172839506E-2,1.0388078077307822E-2,1.5783613470262844E-3,1.7947077373063388E-2,1.4485585759424042E-3,2.8899409200737681E-4,1.7214751165259165E-4,2.7056142737287336E-4,0,8.0894383714804927E-5,2.6457085051746943E-3,0,5.7430175455046241E-5,1.1257379796775447E-3,2.1994110830622369E-4,3.7719412475246635E-4,1.5899831064294942E-3,0,2.6151998446357085E-3,null,null,null,null,"DOM_C28: Fabricated metal products",0.36752372088925112,0.13343722981865841,4675.7659143907185]
[null,"DOM_C29: Machinery and equipment, nec",7.6841252000132572E-5,5.7841860792455491E-4,2.557436336861622E-4,6.8074129143788685E-4,5.1309460181721007E-4,4.175110710800871E-4,1.8245145422931595E-6,1.2861884793789359E-4,1.020136095429095E-3,5.2701708330847401E-4,8.9299826141931414E-4,2.3183968368476414E-3,2.1829407225019293E-2,8.2012886753555937E-3,3.7331366907422162E-3,4.1510041510041517E-3,5.1358024691358023E-3,1.8339446482160723E-3,5.9225566492543509E-6,1.1686590453557229E-3,5.2126453827292072E-4,2.6813884825426716E-5,1.9278889575121993E-3,6.4041145194680118E-4,0,6.7411986429004095E-6,3.3460431094856431E-3,0,7.9699018998839676E-5,0,0,3.3678046852898784E-5,2.5837225479479283E-4,0,1.9146202805038733E-4,null,null,null,null,"DOM_C29: Machinery and equipment, nec",0.35445558447285691,0.12675689310138613,8962.4495644855142]
[null,"DOM_C30T33X: Computer, Electronic and optical equipment",3.1640515529466361E-5,2.565862012339597E-5,5.4901486579366353E-5,1.1465116487374939E-3,0,2.9085040906702694E-4,3.2841261761276872E-5,1.4345948423841976E-4,7.0713979342244067E-4,9.9437185529900759E-5,1.6793108898372055E-4,1.2335413098666784E-3,9.8556399317121092E-4,6.9146834809760804E-2,6.8045798410618702E-3,4.8766715433382103E-3,8.4197530864197536E-3,5.8481032138918108E-3,1.3207301327837202E-3,2.6311150574209849E-4,3.5111884328769432E-4,4.7669128578536389E-5,4.3240844159181785E-5,1.6653179965546858E-2,3.1869443958978E-4,1.1556340530686417E-5,1.154255181179156E-3,2.6751431988418202E-4,6.3876419638775913E-4,5.4437789293211092E-4,1.4772163990716514E-4,5.1864192153464126E-4,1.4061413097485841E-3,0,2.9399423053468429E-3,null,null,null,null,"DOM_C30T33X: Computer, Electronic and optical equipment",0.13554725574254095,5.8114600674527526E-2,7825.963161489366]
[null,"DOM_C31: Electrical machinery and apparatus, nec",4.5200736470666225E-6,3.1523447580172194E-5,1.5289021579064048E-5,1.2092115045278255E-4,0,4.2220220671020044E-5,0,2.9681272601052367E-5,6.2019637619837014E-4,2.485929638247519E-5,6.9345661450924607E-4,1.2335413098666784E-3,4.4701173656375602E-3,9.0586804447396353E-3,1.7974361844314373E-2,4.4753378086711424E-3,5.6049382716049385E-3,2.4815964295790906E-3,3.3166317235824362E-3,3.713593659208576E-3,1.4849078835074299E-4,3.5751846433902288E-4,2.7005130974885227E-4,3.725804609969568E-3,0,6.6448958051446903E-5,9.0784115373641471E-5,1.5736136463775413E-5,3.3989287514211037E-5,3.2396401780470735E-4,7.5502171508106623E-5,1.7737104675860025E-4,2.7824704362516145E-4,0,1.5643876512821497E-3,null,null,null,null,"DOM_C31: Electrical machinery and apparatus, nec",0.26829533259153426,9.2571255505882827E-2,6971.9406878051132]
[null,"DOM_C34: Motor vehicles, trailers and semi-trailers",6.0267648627554964E-5,8.6506204987449285E-5,3.2384927526562938E-4,1.2092115045278255E-4,4.2757883484767506E-5,1.3135179764317345E-4,0,9.8937575336841206E-6,4.6949445300998113E-4,4.176361792255832E-4,5.433064643590959E-4,4.2953670611428982E-4,5.1783870827639897E-4,1.5353695669050228E-4,5.1684520321563306E-4,2.5408858742192078E-2,9.6296296296296299E-4,9.2979711185779885E-4,1.6287030785449465E-4,2.9053255596832214E-4,1.5351782024803375E-3,7.746233394012162E-5,4.2359709976315446E-3,3.2144683343841378E-3,4.1121863172874839E-5,2.6964794571601638E-5,1.4655150053173554E-3,4.7208409391326238E-5,1.0548399573375839E-5,3.846148156585567E-5,1.805486709976463E-5,8.5317718694010239E-5,2.93153135247938E-4,0,1.2916428482188488E-2,null,null,null,null,"DOM_C34: Motor vehicles, trailers and semi-trailers",0.33855650522317188,8.5941419274752601E-2,7434.0346585700618]
[null,"DOM_C35: Other transport equipment",1.808029458826649E-5,8.0641377530673054E-5,4.1697331579265583E-6,0,0,4.6911356301133387E-6,0,0,9.2739645039008624E-5,4.9718592764950381E-6,1.2841789157578632E-4,2.2027523390476403E-5,1.0022684676317398E-5,3.1052418207067875E-4,6.5840153275876834E-5,9.3333426666760014E-6,2.0074074074074074E-2,7.0536332623695084E-5,2.6651504921644578E-5,8.4874679271644674E-6,6.5738109426110171E-6,2.6813884825426716E-5,6.5269198730840425E-4,3.723322395039542E-5,0,0,5.187663735636656E-5,0,0,1.6272165277862014E-4,1.6413515545240573E-6,8.9808124941063427E-6,9.9373944151843386E-6,0,4.5459372272023304E-4,null,null,null,null,"DOM_C35: Other transport equipment",0.3523456790123457,8.9851851851851849E-2,7434.0346585700618]
[null,"DOM_C36T37: Manufacturing nec; recycling",7.5334560784443705E-6,1.8034344429586883E-4,1.5289021579064046E-4,3.2738281844808901E-3,1.9241047568145376E-4,5.4417173309314715E-4,3.6490290845863186E-5,9.563965615894651E-5,2.0228835074133753E-3,6.0159497245589955E-4,6.124545598229809E-5,1.4483096629238235E-3,8.4190551281066145E-4,1.1618779812477897E-2,1.0929465443795556E-3,5.7633390966724295E-4,2.6172839506172839E-3,2.0981352758611845E-2,1.3296139677576016E-3,1.8287228972298211E-3,1.2126747715310677E-3,2.8690856763206583E-3,1.7704270155740465E-4,3.3013458569350606E-4,4.0093816593552974E-4,1.309718593477794E-4,1.1672243405182476E-3,6.4518159501479187E-4,1.0970335556310872E-3,1.5059149320785026E-3,1.3065158374011496E-3,5.7252679649927923E-3,3.5079002285600715E-3,0,5.9605844266958198E-3,null,null,null,null,"DOM_C36T37: Manufacturing nec; recycling",0.37597789006591942,0.15466694026213867,6398.9293337221088]
[null,"DOM_C40T41: Electricity, gas and water supply",1.2064076564020816E-2,6.5224212353672565E-3,1.0529271179290881E-2,1.4837473016669206E-2,9.8556921432389095E-3,2.2634729415296855E-2,3.7220096662780449E-4,6.8135010215304645E-3,2.4970149426753071E-2,2.6077401905216475E-2,2.954401770191244E-2,1.4494110390933472E-2,7.9680343176723317E-3,1.873495898493095E-3,8.1839310521914892E-3,4.1370041370041378E-3,1.2271604938271606E-2,6.1558981198861166E-3,1.0870852729706362E-2,4.7027101137973584E-3,1.8652221812755436E-2,3.8710311726307699E-2,4.9025326896702517E-3,1.1075643017777623E-2,4.2707992180971441E-3,1.1191352775592236E-2,4.8374964334811808E-3,1.6035123056587147E-2,1.1302024120673691E-2,1.9865355228764453E-2,1.7762706523059349E-2,2.1315958454761402E-2,3.288780681705257E-2,0,1.1217160118608153E-2,null,null,null,null,"DOM_C40T41: Electricity, gas and water supply",0.44732774243985646,0.10804520095234711,18657.291387928039]
[null,"DOM_C45: Construction",1.4072495954534085E-3,2.4185082224880941E-3,2.0014719158047481E-4,4.2098474602079847E-4,2.7792624265098877E-4,1.8295428957442017E-4,0,1.3191676711578829E-5,6.6076997090293646E-4,2.9831155658970227E-5,2.6671408250355621E-4,5.6720872730476745E-4,1.3029490079212618E-4,4.8131248220955204E-4,2.5545979471040207E-3,4.4333377666710998E-5,1.9753086419753088E-4,6.6047656911278122E-4,3.0856520142615168E-3,7.1040759432514838E-2,1.0158471380140672E-3,5.3925701704469282E-4,1.0826528339478155E-3,6.8260910575724935E-4,0,1.6082573905205262E-4,1.5562991206909967E-4,0,4.4537687087586876E-5,3.0044334253943408E-3,4.574446782458547E-3,9.8137828529347056E-3,8.4467852529066878E-4,0,1.9431967026009457E-6,null,null,null,null,"DOM_C45: Construction",0.50294253984213311,0.22120234776420508,2948.8410991810188]
[null,"DOM_C50T52: Wholesale and retail trade; repairs",7.5430989022247791E-2,1.3986880380979193E-2,0.11895484248485519,0.14826276613849504,9.3874933190807058E-2,7.2374840501388579E-2,9.0169333194670243E-2,0.10118016037780962,9.9805246745418102E-2,5.8359684187498755E-2,6.7611032084716291E-2,6.1032760434162489E-2,5.9437861025454279E-2,0.11537008444532619,6.2574481673393342E-2,6.8231401564734895E-2,6.1209876543209876E-2,9.3351630030522992E-2,9.9084372742025292E-2,6.4409435452806418E-2,2.4588373093933188E-2,4.0098675096157575E-2,4.2879415971209756E-2,3.0089409381779553E-2,1.1261515957485866E-2,5.5894167033419965E-3,3.1489118875314505E-2,5.6020645811040472E-3,1.3133929513249961E-2,3.2075396338171094E-2,7.1004868248710721E-3,4.7063947875364276E-2,3.0840703567524597E-2,0,0.11945824590376992,null,null,null,null,"DOM_C50T52: Wholesale and retail trade; repairs",0.76146810986307534,0.153331820067834,4909.9591750264099]
[null,"DOM_C55: Hotels and restaurants",2.9983155192208591E-4,1.0893917000961832E-3,4.0307420526623398E-4,7.2552690271669522E-4,2.1378941742383753E-4,2.8193725136981163E-3,1.2406698887593485E-4,1.4148073273168294E-3,1.0027474119842807E-3,8.1538492134518618E-4,8.4953374427058632E-4,1.0683348844381054E-3,1.8374921906581898E-3,1.8010402560099368E-3,2.2286891883884306E-3,1.30666797333464E-3,3.7283950617283948E-3,1.3722522892246132E-3,2.3157196498584513E-3,3.847434499598477E-3,2.1917859072187792E-3,6.2267799205713151E-4,4.1976253433771748E-3,4.8552124031315622E-3,3.3000295196232059E-3,2.6098069031800161E-4,1.4525458459782635E-3,4.1228677535091584E-3,4.495962307052191E-3,2.3881621476891306E-2,3.8194250673774812E-3,5.0157837779583915E-3,3.8656464275067075E-3,0,2.6985629831772891E-2,null,null,null,null,"DOM_C55: Hotels and restaurants",0.73543037774805087,0.1798883946527155,1439.2352660193437]
[null,"DOM_C60T63: Transport and storage",1.5857925045125402E-2,3.1230206207333382E-3,2.4821726533610481E-2,3.7924455630894909E-2,2.005344735435596E-2,1.6897470539668242E-2,1.8445842022583842E-2,2.1805841604239807E-2,2.5207794767165531E-2,1.2648409999403377E-2,1.8711474632527265E-2,1.7891855873914456E-2,1.896291940759252E-2,3.6634952946960744E-2,2.1625198343461743E-2,1.8193018193018193E-2,2.5037037037037038E-2,2.7656654782363354E-2,2.5934875567084799E-2,1.3286151716753609E-2,1.1954281851757471E-2,7.8594475743861865E-3,3.2039833791985432E-2,7.6154354053208761E-3,1.0243749843957215E-2,8.012396101275916E-4,9.960314372422379E-3,1.9355447850443758E-2,9.2509464258506112E-3,1.9943757479648699E-2,3.3385090619019327E-3,1.2797657804101536E-2,1.0141111000695617E-2,0,8.4123728592116268E-2,null,null,null,null,"DOM_C60T63: Transport and storage",0.73089509363274496,0.23579640252493897,7311.4359542271995]
[null,"DOM_C64: Post and telecommunications",3.2695199380448567E-4,9.9628756421986072E-4,1.4677460715901485E-3,1.7332031564898831E-3,1.0689470871191875E-3,3.0773849733543497E-3,2.7002815225938762E-4,1.2614540855447256E-3,3.7153820293752827E-3,2.4411829047590638E-3,2.2522522522522523E-4,2.2578211475238314E-3,1.884264719147671E-3,2.5135207404276606E-3,9.9089430680194624E-4,6.8600068600068603E-4,1.0864197530864198E-3,1.4043142585990201E-3,2.1261978370823117E-3,8.0689704701404352E-3,5.5850324378900543E-3,4.1174209809710796E-3,4.9172182593846909E-3,6.6826190346169698E-2,6.3594961396850946E-2,2.6964794571601638E-3,4.552174928021166E-3,6.4518159501479192E-3,1.3855908861827686E-2,2.4643454669445754E-2,7.5781201272375719E-3,7.3081361670790353E-3,1.7385471529364999E-2,0,2.6887326939758958E-2,null,null,null,null,"DOM_C64: Post and telecommunications",0.61014084087512976,0.15597493955806646,12389.099373637871]
[null,"DOM_C65T67: Financial intermediation",7.36018658864015E-3,8.6946067046707494E-3,4.014758075556955E-3,4.4069041498347415E-3,3.4206306787814005E-3,7.5339638219620204E-3,1.2424944033016415E-3,5.0721996956020598E-3,9.7840325516154094E-3,1.0227114531750292E-2,5.814366998577525E-3,9.4608212962096153E-3,6.1672919708273058E-3,4.3852915045759187E-3,4.6746508825872548E-3,5.2383385716719055E-3,1.1876543209876543E-2,3.2510836945648554E-3,8.090212382881443E-3,3.0719410839149423E-2,8.1136294822273143E-3,8.6072570289619753E-3,1.4043483971924453E-2,4.3431314630671243E-2,0.10018754506882771,9.1198787354666976E-3,5.5767385158094051E-3,6.3101907219739409E-3,2.6096740544531826E-2,3.717450122115204E-2,5.1899536154050687E-3,3.3184102165722935E-3,1.2302494285998212E-2,0,4.2822682957970606E-2,null,null,null,null,"DOM_C65T67: Financial intermediation",0.67979286330064637,0.18462247926650344,13225.494199916704]
[null,"DOM_C70: Real estate activities",8.2868016862888073E-5,4.596558519248364E-4,2.5171289163349988E-3,5.0159884632265351E-3,2.4799572421165153E-3,9.4854762440891686E-3,4.9261892641915308E-5,1.4939573875863022E-3,4.7934804029537582E-3,4.1365869180438721E-3,9.9178125493914982E-4,5.8538143410191033E-3,3.0068054028952198E-3,2.5877015172556563E-3,2.8245425755351159E-3,1.5855015855015856E-3,7.8024691358024693E-3,5.9186395465155054E-3,7.2847446785828521E-4,2.099016106602597E-3,2.8460347739131073E-2,6.1999660357458884E-3,6.5668972573066824E-3,2.3417215649868692E-2,1.2235222931900725E-2,1.3732784663965693E-2,1.3539802350011673E-2,1.5909233964876941E-2,1.5707739009153666E-2,8.2307570550931124E-3,8.7894375744763265E-3,8.2847995258131003E-3,4.6631223293252512E-2,0,9.798352192057333E-2,null,null,null,null,"DOM_C70: Real estate activities",0.9241855909768093,1.3240677163033964E-2,2341.8963532081798]
[null,"DOM_C71: Renting of machinery and equipment",3.5588046514571205E-3,5.6800853918877701E-3,1.0097703797445482E-3,2.2124091971731322E-3,1.1758417958311063E-3,3.9217893867747504E-3,9.1225727114657965E-6,1.3504979033478826E-3,3.8776764081935484E-3,2.734522602072271E-3,9.0287656077129772E-4,3.8878578784190846E-3,4.0725508734769699E-3,4.052340576022358E-3,3.8845690432767329E-3,2.174668841335508E-3,9.3086419753086423E-3,3.1548977864416347E-3,9.2984139393293298E-4,6.5732174685147584E-3,1.6554402732539863E-3,3.1580797683280354E-4,7.4047905960138473E-3,3.7977888429403328E-4,1.1822535662201518E-3,4.7862510364592913E-4,5.8490908619303296E-3,2.0456977402908037E-4,1.6560987330200068E-3,1.0073949594749118E-3,6.7459548890938753E-4,8.2398954633425693E-4,2.5091920898340455E-3,0,4.7791208315144443E-4,null,null,null,null,"DOM_C71: Renting of machinery and equipment",0.82269862267527816,3.7441963011957562E-2,2341.8963532081798]
[null,"DOM_C72: Computer and related activities",0,3.3722757876463274E-5,2.0848665789632791E-4,2.7767078992861177E-4,6.4136825227151259E-5,4.175110710800871E-4,5.4735436268794784E-6,1.2861884793789359E-4,4.5790199738010508E-4,7.0600401726229531E-4,8.297771455666193E-5,3.0838532746666961E-4,3.1738501475005095E-4,2.2426746482882356E-5,1.843524291724551E-4,9.916676583343251E-5,3.2098765432098765E-4,2.6932054274501758E-4,7.6993236440306556E-5,0,5.2822504397686176E-4,1.0129689822938981E-4,6.0292422327613848E-4,3.5048874811972218E-3,2.4966845497816868E-5,6.3463570081019583E-4,9.467486317536897E-4,2.2030591049285576E-4,1.9338732551189039E-3,1.0207085492477082E-4,8.9125389410656304E-4,2.8289559356434977E-4,3.7066481168637581E-3,0,6.7897578902644819E-5,null,null,null,null,"DOM_C72: Computer and related activities",0.70866116950966196,0.41773147856738213,12389.099373637871]
[null,"DOM_C73T74: R&D and other business activities",1.5895592325517623E-3,2.2659493982687032E-2,2.1882064657272257E-2,2.8134321005347407E-2,9.0005344735435595E-3,5.102548224874278E-2,4.811244848027061E-3,3.1115867443436564E-2,4.0973534423796996E-2,3.5310144581667764E-2,1.4667298877825193E-2,3.6229769096486064E-2,4.4717878130836129E-2,2.6780985569251205E-2,3.0997544162282811E-2,1.3963847297180632E-2,5.8271604938271604E-2,2.6342114038012673E-2,2.4540113476185402E-2,2.6796242010354712E-2,6.7411724353146671E-2,5.8799870101624623E-2,4.2938974115051647E-2,6.3696117319406456E-2,7.6007889523177302E-2,1.7172722028600016E-2,3.3214017067413691E-2,0.19556870397180082,0.10800154709860409,4.0470354333795366E-2,2.5605084250575293E-2,5.2670220074810169E-2,0.10597734274073338,0,7.9013807098406112E-3,null,null,null,null,"DOM_C73T74: R&D and other business activities",0.75114567339810834,0.33224997362900111,3837.4341394883281]
[null,"DOM_C75: Public administration and defence; compulsory social security",0,0,0,0,0,0,0,0,0,0,0,0,0,0,0,0,0,0,0,0,2.2930999346872547E-4,0,0,0,0,0,0,0,0,0,0,0,0,0,7.7182401359048913E-2,null,null,null,null,"DOM_C75: Public administration and defence; compulsory social security",0.71661432453502272,0.70645901411388434,1449.4857266622216]
[null,"DOM_C80: Education",0,7.3310343209702781E-7,4.1697331579265583E-6,1.3435683383642504E-5,0,3.7529085040906709E-5,1.8245145422931595E-6,1.6489595889473536E-6,2.3184911259752156E-5,3.9774874211960305E-5,1.9756598703967125E-5,1.1013761695238201E-4,1.7038563949739577E-4,3.6227821241579187E-5,7.5716176267258349E-5,5.4833388166721505E-5,9.876543209876544E-5,5.771154487393234E-5,1.2496594529926681E-3,1.3057642964868412E-6,7.0378446562070887E-5,0,1.5803304742704738E-3,7.4466447900790833E-6,1.7300555292016631E-3,2.8890851326716041E-5,7.7814956034549836E-5,4.311701391074463E-3,9.2474302926594861E-4,1.5680450176848849E-4,8.4037199591631732E-4,2.9187640605845612E-5,1.023551624763987E-3,0,6.8864490720721372E-2,null,null,null,null,"DOM_C80: Education",0.89720707619482176,0.77373312280264062,4134.6697940512486]
[null,"DOM_C85: Health and social work",0,0,0,0,0,0,0,0,0,0,0,0,0,0,0,0,0,0,0,0,0,0,0,0,0,0,0,0,0,0,0,0,0,0,5.0449958627056091E-2,null,null,null,null,"DOM_C85: Health and social work",0.74676353969743647,0.52463212346821009,2283.4788244171646]
[null,"DOM_C90T93: Other community, social and personal services",1.0094831145115458E-4,3.5848757829544658E-4,1.0771810657976943E-4,1.3435683383642504E-4,6.4136825227151259E-5,4.3627561360054046E-4,3.6490290845863189E-6,1.1542717122631475E-4,2.8981139074690196E-4,2.9333969731320728E-4,1.5212581002054686E-4,2.0375459136190674E-4,1.6036295482107837E-4,1.0005779200055204E-4,1.0863625290519677E-4,1.061667728334395E-4,6.1728395061728394E-4,1.538974529971529E-4,3.7015979057839691E-4,1.9129446943532224E-4,3.4377164282242321E-4,3.8850339791507153E-3,4.3648776651249535E-4,7.769332730982511E-4,4.30604652938818E-3,9.5339809378162951E-5,1.6859907140819132E-3,3.4619500220305912E-4,2.1272605806307945E-3,5.6079798698522631E-3,1.1735663614847009E-3,2.7458834200730139E-3,1.722647321872205E-2,0,2.0212903489078265E-2,null,null,null,null,"DOM_C90T93: Other community, social and personal services",0.63979429593560566,0.11229255689158303,1449.4857266622216]
[null,"DOM_C95: Private households with employed persons",0,0,0,0,0,0,0,0,0,0,0,0,0,0,0,0,0,0,0,0,0,0,0,0,0,0,0,0,0,0,0,0,0,0,6.0170514367596352E-3,null,null,null,null,"DOM_C95: Private households with employed persons",1,1,5199.2056088023692]
[null,"L%",0.10046767695334982,5.3430777441527674E-2,6.7077802356038219E-2,0.13176374694338203,0.16805986103687867,0.13927981685806501,3.2111455944359608E-2,6.421543327237679E-2,0.10783302226910728,0.11822584173577551,4.6161292871819186E-2,0.13343722981865841,0.12675689310138613,5.8114600674527526E-2,9.2571255505882827E-2,8.5941419274752601E-2,8.9851851851851849E-2,0.15466694026213867,0.10804520095234711,0.22120234776420508,0.153331820067834,0.1798883946527155,0.23579640252493897,0.15597493955806646,0.18462247926650344,1.3240677163033964E-2,3.7441963011957562E-2,0.41773147856738213,0.33224997362900111,0.70645901411388434,0.77373312280264062,0.52463212346821009,0.11229255689158303,1,0]
[null,"VA%",0.60987545690411116,0.8609273465174655,0.38850654752349123,0.38747167310086622,0.46236237306253336,0.4476516175035653,0.12545179541353535,0.29334826191414526,0.30844626317192775,0.54697909830360159,0.37664177335229965,0.36752372088925112,0.35445558447285691,0.13554725574254095,0.26829533259153426,0.33855650522317188,0.3523456790123457,0.37597789006591942,0.44732774243985646,0.50294253984213311,0.76146810986307534,0.73543037774805087,0.73089509363274496,0.61014084087512976,0.67979286330064637,0.9241855909768093,0.82269862267527816,0.70866116950966196,0.75114567339810834,0.71661432453502272,0.89720707619482176,0.74676353969743647,0.63979429593560566,1,0]
[]
[]
[]
[]
[]
[]
[]
[null,"Total Requirements - Type 1"]
["->",null,"DOM_C01T05: Agriculture, hunting, forestry and fishing","DOM_C10T14: Mining and quarrying","DOM_C15T16: Food products, beverages and tobacco","DOM_C17T19: Textiles, textile products, leather and footwear","DOM_C20: Wood and products of wood and cork","DOM_C21T22: Pulp, paper, paper products, printing and publishing","DOM_C23: Coke, refined petroleum products and nuclear fuel","DOM_C24: Chemicals and chemical products","DOM_C25: Rubber and plastics products","DOM_C26: Other non-metallic mineral products","DOM_C27: Basic metals","DOM_C28: Fabricated metal products","DOM_C29: Machinery and equipment, nec","DOM_C30T33X: Computer, Electronic and optical equipment","DOM_C31: Electrical machinery and apparatus, nec","DOM_C34: Motor vehicles, trailers and semi-trailers","DOM_C35: Other transport equipment","DOM_C36T37: Manufacturing nec; recycling","DOM_C40T41: Electricity, gas and water supply","DOM_C45: Construction","DOM_C50T52: Wholesale and retail trade; repairs","DOM_C55: Hotels and restaurants","DOM_C60T63: Transport and storage","DOM_C64: Post and telecommunications","DOM_C65T67: Financial intermediation","DOM_C70: Real estate activities","DOM_C71: Renting of machinery and equipment","DOM_C72: Computer and related activities","DOM_C73T74: R&D and other business activities","DOM_C75: Public administration and defence; compulsory social security","DOM_C80: Education","DOM_C85: Health and social work","DOM_C90T93: Other community, social and personal services","DOM_C95: Private households with employed persons"]
[null,"DOM_C01T05: Agriculture, hunting, forestry and fishing",1.1216496025296894,4.4971733681814909E-4,0.25428601272101059,4.6297458638970834E-2,0.24085423065171802,2.8207297895794779E-3,6.065418745620294E-4,5.9813892212998163E-3,2.0830537084142144E-2,1.1027307322941788E-3,7.387879982358324E-4,1.2274171892692884E-3,1.0949603672484394E-3,1.4888593005492731E-3,1.1454061332545698E-3,1.4804272843378281E-3,1.9109431341409902E-3,1.5027364359445497E-2,1.4246175754406075E-3,3.8966797384891961E-3,2.9404525353672125E-3,1.4117302528502133E-2,4.663058094206912E-4,6.8369336931552811E-4,7.2855602547229235E-4,8.4719167870348671E-5,5.4868046193398896E-4,1.9996206968702626E-4,3.4528676717749524E-4,1.992713185536882E-3,2.3460198526333663E-4,1.8818377664484511E-3,8.3468057673636838E-4,0]
[null,"DOM_C10T14: Mining and quarrying",2.0953659029523435E-2,1.0206041429235024,1.6081839388721958E-2,1.7287490720877503E-2,1.7522247491785933E-2,2.1875388290977876E-2,0.50107867899238379,0.26123117098485277,5.417956218928318E-2,0.14117868189996083,0.28574946235393883,5.602943657328098E-2,4.4834600295038163E-2,1.0414015031105414E-2,3.9755143196914262E-2,1.7588178988018798E-2,3.9080192610325699E-2,2.6071131164332576E-2,0.14492562038900716,6.8068073590925399E-2,8.4815833026543799E-3,1.3244005047600271E-2,5.7356878508168223E-2,9.4678769984508741E-3,3.7744152021215852E-3,5.5518500308192349E-3,1.2124308128944475E-2,5.6312051729591013E-3,6.765755757262056E-3,1.8448537675321768E-2,4.5464806654277557E-3,1.6143780832163165E-2,1.6491254964695175E-2,0]
[null,"DOM_C15T16: Food products, beverages and tobacco",8.0694438903471374E-2,4.4740853426720155E-4,1.1161633070893275,2.2462432172404345E-2,1.8438659715882245E-2,5.6665446722150821E-3,1.1801806701628454E-3,8.911638597668187E-3,5.100696858367529E-3,1.5060980032886263E-3,1.1538354055853903E-3,1.1977145177615471E-3,1.0956097132156519E-3,1.5979701584551088E-3,1.251706989298707E-3,1.2619448856897382E-3,1.4752069417485654E-3,3.3100006559688053E-3,2.6658333165025788E-3,1.6994940808743048E-3,8.7226038673851713E-3,6.0410135328051832E-2,1.1880938851423742E-3,9.385274836802317E-4,2.7351226305452367E-3,1.8560954885790503E-4,1.1790187652187707E-3,5.6133898626879546E-4,8.1062862275561452E-4,7.5015579039750535E-3,5.5687436156158076E-4,5.2214965397844705E-3,1.4498742634162733E-3,0]
[null,"DOM_C17T19: Textiles, textile products, leather and footwear",1.4280876382142048E-3,1.9879658638119742E-4,1.4560073898407205E-3,1.1340334568022468,2.8585529258403856E-3,1.4103735683106409E-2,6.4656047794890855E-4,1.1058207707565324E-3,9.7483230514224389E-3,9.5079989955386933E-4,8.3204390759592276E-4,1.5468204154277096E-3,1.6920078267724026E-3,1.4264893698992395E-3,1.833730098374789E-3,1.1620591788118589E-2,6.4999409349837198E-3,2.1759160576929653E-2,1.8423207736839862E-3,1.3036662441694086E-3,2.4111084226972638E-3,4.3082716175463784E-3,1.0863415927341506E-3,6.0473282750494203E-4,4.8079876400934543E-4,1.96663336176643E-4,1.6271316431381102E-3,4.2858702540795766E-4,1.5671713897458847E-3,2.4512798991052887E-3,8.9980086622173125E-4,7.3234576674787669E-3,3.8666629186331239E-3,0]
[null,"DOM_C20: Wood and products of wood and cork",1.2239609991636358E-3,1.2006904267232478E-3,1.8060699180335856E-3,1.3079528533908979E-3,1.0620184916753981,2.8513809098311225E-3,1.102973843207911E-3,1.1102035773145722E-3,1.8761543539548915E-3,2.5752552791461348E-3,1.2047746849667932E-3,3.030678652725691E-3,2.5290940438293368E-3,3.3993062666883766E-3,1.7422165272178213E-3,1.0717956106694143E-3,4.4379104129529303E-3,3.8988320159611616E-2,7.9610867200920546E-4,1.1580797817184085E-2,3.1760920351843911E-3,4.4455044841956558E-4,3.4485439871245852E-4,1.8419084692113113E-3,2.6747718409354408E-4,7.439134879338156E-5,8.227752498334008E-4,1.2527346304931137E-4,2.0930261999915108E-4,3.8564955186276226E-4,1.8922082044440738E-4,6.202823801216825E-4,8.5144733901515359E-4,0]
[null,"DOM_C21T22: Pulp, paper, paper products, printing and publishing",5.4157077580213077E-3,1.4504430861516939E-3,1.1712781745816851E-2,1.1295861943041496E-2,4.6763348761777925E-3,1.2162618868177788,2.6953139549116714E-3,1.3033425470379712E-2,1.7361216097435073E-2,1.8474612576293167E-2,3.6423828460979617E-3,1.086998110370713E-2,6.5985377973056918E-3,1.512394528857971E-2,1.3218437176603983E-2,5.586707460262001E-3,1.0606703554653438E-2,2.2596631845883241E-2,7.231654353286739E-3,6.3629850499212718E-3,1.4926180364271823E-2,7.819391473588972E-3,4.1377638683595119E-3,6.0344138138864207E-3,1.9586955020784776E-2,5.8671341993851624E-3,1.8791806423236572E-2,5.0628135275431222E-3,1.8792222455588512E-2,1.720081524784749E-2,8.6912163013902078E-3,1.1189984834370987E-2,1.7088951407481033E-2,0]
[null,"DOM_C23: Coke, refined petroleum products and nuclear fuel",1.814922592118556E-2,9.6907080065205247E-3,1.7466698951480588E-2,1.573671773695496E-2,2.1661678115116698E-2,1.9674054907437358E-2,1.1254603264871423,1.6450347588523009E-2,1.6039428143016669E-2,3.5615115229403436E-2,2.2147245008591249E-2,1.6694702588831961E-2,1.2814894848906466E-2,9.9461626129379345E-3,1.1632348398776401E-2,6.546956492536591E-3,1.294035647090864E-2,1.3385596872321746E-2,0.13475954426075548,2.4273009656261623E-2,1.0370168447123971E-2,1.5200807218375367E-2,0.12439073912215988,1.6115746417554807E-2,5.0890513706974543E-3,9.066637219541011E-3,2.2304949690670043E-2,7.912359306463692E-3,9.3864367874492323E-3,2.6399038826639271E-2,4.9192716486889092E-3,1.2948370036198269E-2,1.8344190789449193E-2,0]
[null,"DOM_C24: Chemicals and chemical products",3.6539309243840926E-2,2.0274271270665941E-2,2.2924859185375932E-2,3.9295640684795748E-2,2.6068040131786565E-2,3.6553985878000905E-2,1.4880632190129112E-2,1.165111945114405,0.19595326067423061,3.521208630829744E-2,2.8044950978877183E-2,2.3631459775626928E-2,1.4245224397683191E-2,1.2409570783054769E-2,2.2621827578323647E-2,1.5368454023187714E-2,2.2458461370048258E-2,3.6916782448240586E-2,0.17261803461011169,2.0655735069103693E-2,9.7709924101570238E-3,1.7470505462288177E-2,6.6595899104637361E-3,5.8675370532083847E-3,4.5905990968659284E-3,4.0311027246885314E-3,4.9854606961707093E-3,5.1707016500144743E-3,8.2071613956984819E-3,2.4145010734106045E-2,5.2778673706066646E-3,3.8866486027381929E-2,2.887647717781254E-2,0]
[null,"DOM_C25: Rubber and plastics products",3.1340346947016881E-3,4.4051383407664734E-4,9.082504611363517E-3,8.012790741327467E-3,5.9997220589559936E-3,8.0190827265353894E-3,1.1715619901217496E-3,4.1582153212302974E-3,1.0210027993682111,2.1281796883699734E-3,1.4394485112306352E-3,7.4260430376721105E-3,9.1743625866568465E-3,1.244517551409772E-2,1.7960081045437046E-2,2.6443480883284354E-2,1.3233004729145697E-2,2.6727467517893549E-2,1.8479031464195869E-3,1.0469156120733838E-2,7.064820979645752E-3,2.8020606899381273E-3,3.1714347189152636E-3,8.7935461287232195E-4,5.9486216508288685E-4,2.7044128346664209E-4,8.8355202629435831E-4,4.591024475792159E-4,1.3881365971311537E-3,1.5494584382123441E-3,4.1140627674586549E-4,3.0947814982270547E-3,1.3552555570225013E-3,0]
[null,"DOM_C26: Other non-metallic mineral products",2.3443031289550665E-3,2.3921891199813888E-3,7.1752321860755241E-3,9.3810503256966762E-4,3.2067257619663742E-3,5.5046362566292246E-4,1.4651700251967787E-3,1.5836092833574466E-3,2.0331201770269567E-3,1.0451223247155945,1.4688111743401944E-3,7.1336871054220961E-3,3.7110062832053968E-3,3.5184981175069973E-3,8.8861842096641594E-3,4.056006494065051E-3,7.8527842239212477E-3,7.8383272258351466E-3,2.2406285618070169E-3,6.5816938404084285E-2,1.8328760521254374E-3,4.34783965098155E-3,6.9906966341275168E-4,3.375612954226153E-4,1.3798585176476861E-4,4.6400222471449629E-4,2.738859215792388E-3,1.3309569682267274E-4,1.7415090376158904E-4,5.6618307494224137E-4,4.0857064645097741E-4,1.448648505035188E-3,4.3607836074442002E-4,0]
[null,"DOM_C27: Basic metals",2.0209219144411913E-3,5.3503767516891124E-3,1.3858714196723089E-3,1.5817759328704739E-3,1.5259340709359189E-3,2.1344855159154941E-3,3.3222012406728509E-3,2.1783422768762986E-3,9.5607112052672975E-3,5.9923151928884316E-3,1.122026263688555,0.17293718023192661,0.14427834038649751,1.013511341835709E-2,0.11169439076808055,4.2525648896054223E-2,0.10791674079516081,3.7227978861636042E-2,2.317046809575167E-3,5.8435891252335191E-2,1.8908900387977455E-3,5.9960830552247652E-4,1.2233697549405296E-3,1.1644698542503519E-3,2.2645165157763797E-4,1.3809493712040944E-4,2.0200819618928739E-3,1.7921078806632348E-4,2.859569626829856E-4,8.1851377563379416E-4,4.684718414475742E-4,1.2880042477590127E-3,8.798745204942047E-4,0]
[null,"DOM_C28: Fabricated metal products",1.6176935120392356E-3,3.0592445912900339E-3,2.8220258409844758E-3,1.9607871329286302E-3,2.3509357612392073E-3,1.3568788596781927E-3,4.6059018982502961E-3,2.0344300618445874E-3,8.7298619285341612E-3,1.9280092419385389E-3,9.7158432813280061E-3,1.0573705755188716,1.9168493931438241E-2,8.755133107419882E-3,2.2907591635479868E-2,1.9541337148986569E-2,1.7206031289138706E-2,1.2388800474203618E-2,3.0628902558990007E-3,2.1655331195090242E-2,1.903723279903628E-3,8.2158729936710818E-4,1.0360557631247339E-3,8.5895595883531085E-4,1.9336442397346057E-4,1.9030520242242533E-4,3.1634477913836082E-3,1.6618485152353809E-4,2.6831625889188991E-4,1.6539425453956128E-3,4.6472170445275055E-4,1.0281264993760853E-3,2.1458673947379056E-3,0]
[null,"DOM_C29: Machinery and equipment, nec",2.7250818081782797E-4,6.7514052827588199E-4,5.4366001228427403E-4,1.0895856820528401E-3,7.6635711631380945E-4,7.1841528448464854E-4,4.551689917094544E-4,4.9236684606037957E-4,1.3742752297933613E-3,7.8759752392777119E-4,1.3609383748297964E-3,2.8796197930493874E-3,1.0227025658721873,9.3345608938046262E-3,4.3090127587885893E-3,4.6737445839431487E-3,5.8340920305942866E-3,2.3183907852687559E-3,3.3973614422871094E-4,1.659316047590121E-3,6.5739745256737767E-4,1.6039560540067227E-4,2.1959798774386164E-3,9.7937881912104263E-4,1.4403696255654622E-4,3.3779470587760745E-5,3.5522200763675239E-3,1.0238594813196201E-4,1.836531574859298E-4,1.6671051583614399E-4,5.4207601607346173E-5,1.9261810120473576E-4,4.2916964186831254E-4,0]
[null,"DOM_C30T33X: Computer, Electronic and optical equipment",2.017349450403532E-4,1.4477907626036344E-4,3.2864279616124867E-4,1.7139844448927455E-3,2.0326223145540086E-4,7.2156466639937791E-4,2.095836594776322E-4,4.2099325451063396E-4,1.1821578520949277E-3,3.8039323166981335E-4,4.3300897728074095E-4,1.7120029445416795E-3,1.4025675720214497E-3,1.0747046655515116,7.7170225443233438E-3,5.6271570613921646E-3,9.6173309436889051E-3,6.7322079615821104E-3,1.7407883064351056E-3,7.9730326294330284E-4,6.9038430195256099E-4,3.8336838229330669E-4,3.5042064843961271E-4,1.9466148652236084E-2,1.9101379690822E-3,1.3695403376692988E-4,1.4733074822955302E-3,7.1115663369950271E-4,1.202751755489584E-3,1.3145353914550326E-3,4.1101577786705439E-4,9.346025935292226E-4,2.1884972467531116E-3,0]
[null,"DOM_C31: Electrical machinery and apparatus, nec",1.2269314316984848E-4,1.0312912371725981E-4,1.7158200446789628E-4,3.3919561814028433E-4,1.2814447003121849E-4,2.5058588875207546E-4,1.0052971670593406E-4,1.6419560351685122E-4,8.8446302377114948E-4,2.0820685251166413E-4,1.0041733313713025E-3,1.6323570273605219E-3,4.9120312282857469E-3,1.0110872885164926E-2,1.0186325457685093,4.8952094491667118E-3,6.187156844814112E-3,2.8288403778404161E-3,3.5526908648951432E-3,4.3023651936730401E-3,3.1283033108207766E-4,5.8080677513142726E-4,4.1346827862673985E-4,4.3683018257939573E-3,3.6745190983034017E-4,1.3382685621722565E-4,2.0833918275730648E-4,1.624478135131675E-4,1.9639964362134696E-4,6.013699985387425E-4,2.1566857866903887E-4,4.0204302344177092E-4,5.7610240838579881E-4,0]
[null,"DOM_C34: Motor vehicles, trailers and semi-trailers",3.9985151001769719E-4,1.7493230501695452E-4,8.5515642367412219E-4,7.250557055527646E-4,4.4215624116606333E-4,5.063683033164904E-4,3.6583697927027996E-4,4.1942086538466355E-4,9.4529053601461052E-4,7.1305365394381745E-4,9.4983108418105464E-4,8.7875475840997407E-4,9.2779973654010645E-4,6.6521253367728453E-4,9.3144884219640504E-4,1.0263927994061277,1.4332713341131619E-3,1.4207372642831826E-3,6.0867621893074696E-4,7.2111174351388065E-4,1.7573599319287126E-3,3.0739546153599559E-4,4.669620234268099E-3,3.6990809172117141E-3,4.1969984172521215E-4,7.2873669382354672E-5,1.6727858643664421E-3,2.2676511722994854E-4,1.8646274795453964E-4,3.5859629170741168E-4,1.0638528777496753E-4,3.2918783439678137E-4,5.5812540324898295E-4,0]
[null,"DOM_C35: Other transport equipment",4.1294319328771069E-5,8.929332257141889E-5,3.9372783677638091E-5,4.1144330073847796E-5,2.9030430503690081E-5,2.947043337598141E-5,6.0615064081867425E-5,4.5184807504597578E-5,1.3082531278033123E-4,3.2913481980325756E-5,1.9124258858592639E-4,7.2895332566612255E-5,5.4926906893789187E-5,3.7827301058972391E-4,1.1283366331983947E-4,3.96686571016E-5,1.0205332063131722,1.1293274957421033E-4,6.7621797159339063E-5,4.2123432620780098E-5,2.1076242334065344E-5,4.1286187137566894E-5,6.9867229146163533E-4,5.805870426420188E-5,1.481084954042629E-5,2.6415422091417058E-6,6.5002073809215113E-5,1.8016530377044995E-5,1.1704670439045043E-5,1.8870193935574149E-4,7.2107125871653564E-6,2.5760218960948925E-5,2.6448268247013789E-5,0]
[null,"DOM_C36T37: Manufacturing nec; recycling",2.5352735761641681E-4,2.9961324332251866E-4,5.4220601449210353E-4,4.2240638144052326E-3,4.962710092111523E-4,1.0770781204149913E-3,3.6604142875567517E-4,4.8093613639615024E-4,2.555152895453802E-3,9.3766595140781859E-4,3.9900507480896064E-4,1.8947261918850688E-3,1.2152673486046635E-3,1.3110962598546792E-2,1.567888314237367E-3,9.9578582902474263E-4,3.2451299308862052E-3,1.0219635461079128,1.7562231511794211E-3,2.404364515032439E-3,1.4935212934948895E-3,3.2386118429800145E-3,4.3458405220733168E-4,8.4939231630724562E-4,7.2712607668949528E-4,2.0981551381053291E-4,1.3875132476411187E-3,1.0200844615092814E-3,1.4116842972280226E-3,1.8936501732449967E-3,1.4706889891663046E-3,6.1646321427696526E-3,4.0277418683957022E-3,0]
[null,"DOM_C40T41: Electricity, gas and water supply",1.7902633961212836E-2,8.2211537340483674E-3,2.0293664385831765E-2,2.3808656599917044E-2,1.7738206852313875E-2,3.2633599628702374E-2,7.0933693086941514E-3,1.4267104239856563E-2,3.3027303460923148E-2,3.2158194460061976E-2,3.8624496440424566E-2,2.4942341130540648E-2,1.6708063369198646E-2,7.565617718226292E-3,1.6437571183218914E-2,9.6802691446695021E-3,2.1096634215749938E-2,1.4001534420081995E-2,1.0176322470636017,1.3431111037929905E-2,2.2308889082508093E-2,4.3282592325206981E-2,8.4720231866053843E-3,1.5405016002233575E-2,8.6543387974468734E-3,1.2321856784654559E-2,7.6086364972055972E-3,2.0223950916156749E-2,1.5048387049843013E-2,2.4749726470672927E-2,1.9501189040450419E-2,2.5407026426403672E-2,3.8604219743501755E-2,0]
[null,"DOM_C45: Construction",1.989550709848359E-3,2.7263378309125797E-3,9.8674817549616618E-4,1.0130448243171972E-3,9.9046802322539382E-4,5.9464585904762078E-4,1.5009562405601646E-3,9.5913859286548729E-4,1.2472230406993814E-3,6.4314006513599713E-4,1.3515838454883872E-3,1.0886035163816632E-3,5.3226929669632423E-4,8.9212796546442536E-4,3.1730257380338666E-3,3.2985349612016E-4,6.3023149213810986E-4,1.1330298975300332E-3,3.9984413702078706E-3,1.0769107426040265,1.2903365341471944E-3,9.0544920051853072E-4,1.489671171867892E-3,9.7424971769407935E-4,1.7355438324521215E-4,2.5200415645505828E-4,3.1137162232246885E-4,1.7990880879786728E-4,2.0082012082384609E-4,3.5145344914863309E-3,5.045782281698206E-3,1.0821605114123438E-2,1.2271355287841153E-3,0]
[null,"DOM_C50T52: Wholesale and retail trade; repairs",0.1076111975939551,2.1005588462135908E-2,0.16804730215242122,0.19346346581664373,0.13403987889770358,0.10748634522572105,0.11700327377391927,0.13422569246596031,0.14106224363541131,8.0136722715927991E-2,9.4911012295237754E-2,9.1801758803733979E-2,8.4348865746818505E-2,0.14091931652649897,8.8460750156060655E-2,8.8219813894638843E-2,8.9253721529175323E-2,0.12575661548381067,0.14181928879648009,9.4512407596180556E-2,1.0369159763185019,6.2152716563388007E-2,6.3342473204523769E-2,4.4162414948597212E-2,2.2274976922552481E-2,9.7724517971606254E-3,4.0951031881482761E-2,1.5063650277408643E-2,2.2993281969297258E-2,4.921743250216077E-2,1.3288053007610772E-2,6.3757269336424074E-2,4.8563181814909789E-2,0]
[null,"DOM_C55: Hotels and restaurants",1.0067264333596629E-3,1.4611013049508179E-3,1.5037797717503229E-3,2.0294762763380996E-3,1.0470900610147075E-3,4.4645337108908736E-3,1.3134832943014897E-3,2.8189522101820033E-3,2.4553871206011383E-3,1.8262981730043943E-3,2.0028533259205871E-3,2.1925961309899348E-3,2.8700447487812427E-3,2.9361457893650579E-3,3.2354646383692892E-3,2.0425614765144659E-3,4.9950139305278982E-3,2.4517119568795479E-3,3.6521679531093701E-3,5.2411137989561533E-3,2.9868912540919642E-3,1.0014946548635033,5.0612050079494528E-3,6.1426428699384488E-3,4.8038500748950426E-3,5.2394348008059683E-4,2.0145475893529378E-3,5.4966548116748629E-3,5.5593275102970539E-3,2.4932410458747938E-2,4.2246402507581529E-3,5.8899898980330056E-3,5.1710520667641478E-3,0]
[null,"DOM_C60T63: Transport and storage",2.430000658758075E-2,5.2910352410978148E-3,3.7775472119963918E-2,5.1612924768043161E-2,3.0582809352306714E-2,2.7068590772544265E-2,2.5910321112511785E-2,3.1204544614694515E-2,3.6956713809062652E-2,1.9075802945402582E-2,2.6997033962203341E-2,2.7529234573190616E-2,2.7091688444687987E-2,4.5865477061285541E-2,2.9941099836686934E-2,2.4656407480706251E-2,3.4402398007574483E-2,3.7558956286598257E-2,3.7519021772827843E-2,2.2115014574113953E-2,1.6092058017945166E-2,1.4216035638130873E-2,1.0383525925752288,1.2771872171909929E-2,1.4939116010648968E-2,2.1327086989120039E-3,1.3117758513346043E-2,2.375367723422361E-2,1.3148004081007721E-2,2.5541033852838239E-2,5.3167306805279434E-3,1.8024338307464728E-2,1.6129548999889557E-2,0]
[null,"DOM_C64: Post and telecommunications",2.6398036878943418E-3,2.6508551788658624E-3,4.841900309878645E-3,5.5847493317881811E-3,3.5797708139762704E-3,7.5091884628976507E-3,2.936594404262396E-3,4.8822403245076355E-3,8.0860740306078656E-3,5.8054504402259626E-3,3.0401009243344302E-3,5.7229237181180767E-3,4.9407225713350321E-3,5.7588477512482703E-3,3.7629912685788925E-3,2.8968680184166952E-3,5.0588790155112395E-3,4.4572645111097542E-3,5.8705193204244008E-3,1.4321246290793095E-2,8.8340136723093852E-3,7.4536880156774914E-3,8.4616609216554006E-3,1.0774448544256148,7.839882451459379E-2,4.2159735726561391E-3,6.7874445551495514E-3,1.177095218839354E-2,1.9702582002073171E-2,3.1494969169622987E-2,9.5210193660229397E-3,1.0411293719453653E-2,2.3292195329236435E-2,0]
[null,"DOM_C65T67: Financial intermediation",1.2445262145526544E-2,1.1667030604978935E-2,1.179385468706338E-2,1.1699972012513968E-2,9.6042154791465099E-3,1.5730990352748449E-2,9.3525318494185761E-3,1.3493318917648189E-2,1.8273948887208874E-2,1.7228101207057554E-2,1.3469038260086996E-2,1.7025597456030748E-2,1.2653790862802661E-2,1.0112435056038847E-2,1.0692848453323028E-2,9.6883826963959641E-3,1.9968157918191995E-2,9.3517071424876475E-3,1.5952373006881859E-2,4.3034833031345948E-2,1.3655802170813003E-2,1.4435734109962385E-2,2.0269165354599002E-2,5.6196985674799194E-2,1.119362201704021,1.1570498953736066E-2,9.2635881128192519E-3,1.5317119195998499E-2,3.4994918787445373E-2,4.6950454852821184E-2,8.1353814178031381E-3,8.6306765583315428E-3,2.1306568293026597E-2,0]
[null,"DOM_C70: Real estate activities",4.3497898471297411E-3,2.0418475836395749E-3,9.3585163583445596E-3,1.3375301243969025E-2,7.7078148074509059E-3,1.7137407007594391E-2,4.7197733338370787E-3,7.5765242727884137E-3,1.1697803164346852E-2,8.6009943841298658E-3,5.3358010614502774E-3,1.1036796676937811E-2,7.6962390738049011E-3,8.8676254073723811E-3,7.491462057423447E-3,5.6302776605612129E-3,1.3470738210664662E-2,1.198922816346077E-2,6.9157622320116172E-3,7.830410874285057E-3,3.2160064976514913E-2,1.040080511622439E-2,1.0542326804101516E-2,2.9444222069280459E-2,1.8754068238483284E-2,1.0149488681246583,1.6495233288509131E-2,2.1035058712797584E-2,2.0160400493051869E-2,1.3069017299888904E-2,1.0470307096108614E-2,1.2411490005060661E-2,5.3104919010568775E-2,0]
[null,"DOM_C71: Renting of machinery and equipment",4.7634259978925038E-3,6.0690075388889165E-3,2.9829019325545466E-3,3.841338462829674E-3,2.8855665241976007E-3,5.6674599359653596E-3,3.4186251004428227E-3,3.8034607822316313E-3,5.5099333401744536E-3,4.2813217706747057E-3,3.2667832659713041E-3,5.3033616799526865E-3,5.2837075427964982E-3,5.4527027910890938E-3,5.159829168162787E-3,3.1267232473112254E-3,1.0827621587586966E-2,4.5595819920517516E-3,2.7760902074896359E-3,8.4813897012174233E-3,2.2626114575690381E-3,1.0361823770711216E-3,8.4070180000400205E-3,1.0521114685563069E-3,1.8507426204395412E-3,6.5531431106692487E-4,1.0063759793680835,9.1757145721942524E-4,2.2541119783829862E-3,1.7940708820701537E-3,9.5619445998056292E-4,1.5805500481419384E-3,3.3615926133927767E-3,0]
[null,"DOM_C72: Computer and related activities",1.5519654763537186E-4,1.3519655587090974E-4,4.8591590381786751E-4,6.2165351349397911E-4,2.5091692040552681E-4,8.1316748781398317E-4,1.878141652357701E-4,4.1168017010958927E-4,7.9906968017511731E-4,9.6103846861179357E-4,2.7905895008929874E-4,5.8216234722262576E-4,5.8099733379015012E-4,2.8917825353612755E-4,4.2546010272912697E-4,2.7812195428923221E-4,6.4660720575714049E-4,5.4539276177787322E-4,3.5098478393680158E-4,3.122973153307112E-4,7.9760054903436147E-4,3.7435545446338884E-4,8.3922324724062971E-4,4.0180053049466867E-3,5.7684064121391162E-4,7.167164906665863E-4,1.129111489187697E-3,1.000749993130392,2.3180785393837949E-3,4.3100827753327661E-4,1.022260192783021E-3,5.4474124085004114E-4,4.211589492529086E-3,0]
[null,"DOM_C73T74: R&D and other business activities",1.8132131976241479E-2,3.0975469116389761E-2,4.7795549667550195E-2,5.964648691923545E-2,2.7635817288410223E-2,8.6066182848495598E-2,3.1671823079480327E-2,6.3025710732338994E-2,7.3885638584284374E-2,5.8405136816029324E-2,3.9181410571375419E-2,6.1411205003612315E-2,6.7762952687954819E-2,5.1528668511816866E-2,5.3136776728874416E-2,3.0916442765514963E-2,8.6050675059919535E-2,5.1371775339083416E-2,5.4676544769707042E-2,5.5005345949024835E-2,8.5193683549254842E-2,7.8823163130334051E-2,6.172473335242476E-2,9.0113099893332174E-2,0.10682414547062126,2.2996168851545741E-2,4.6002198125566204E-2,0.22623981537051624,1.1317962834167543,6.3187305525900447E-2,3.3951519091842096E-2,7.1761933798583755E-2,0.13551278999584876,0]
[null,"DOM_C75: Public administration and defence; compulsory social security",2.4676323017431568E-5,4.8167913530591183E-6,3.8534925759008637E-5,4.4363106082851557E-5,3.0736683754581151E-5,2.4647693121687262E-5,2.6830019944916919E-5,3.0779292662704507E-5,3.2346982166719914E-5,1.8376151362594508E-5,2.1764043609531083E-5,2.1051060711701744E-5,1.9342037853497347E-5,3.231420755230873E-5,2.0284934040524817E-5,2.0229684947991804E-5,2.0466770300914628E-5,2.8837248675241642E-5,3.2520580187660136E-5,2.1672639568593678E-5,2.3777519575721271E-4,1.4252239029214047E-5,1.4525062116822259E-5,1.0126883083425967E-5,5.1078748126265193E-6,2.2409208577803369E-6,9.3904808532803772E-6,3.4542455467277399E-6,5.2725893382041182E-6,1.0000112860491255,3.0470833483873039E-6,1.4620179015119172E-5,1.1136022904797487E-5,0]
[null,"DOM_C80: Education",1.0939788384402786E-4,7.2252254898419604E-5,1.7093399409295716E-4,2.2132168221952704E-4,1.252164776430762E-4,2.5020423554109495E-4,1.0858480693841808E-4,1.6450330962882343E-4,2.4140485924739345E-4,2.0854998746274033E-4,1.8365527415354632E-4,2.932090228937945E-4,3.3863507537457057E-4,2.0390170384811763E-4,2.292245376961971E-4,1.6661780578581303E-4,3.1464798327936379E-4,2.1733713787451138E-4,1.4250622024739922E-3,1.9592702429321686E-4,2.3572253889435265E-4,1.8667759415457355E-4,1.756514567901998E-3,2.5288446771856992E-4,2.0832268769532471E-3,9.3876529742614433E-5,1.7967478675811929E-4,4.6205639566841645E-3,1.1640112529450704E-3,3.8187695419705038E-4,1.0009271577017234,1.8281929665863326E-4,1.3041135404502594E-3,0]
[null,"DOM_C85: Health and social work",0,0,0,0,0,0,0,0,0,0,0,0,0,0,0,0,0,0,0,0,0,0,0,0,0,0,0,0,0,0,0,1,0,0]
[null,"DOM_C90T93: Other community, social and personal services",3.0552764598713883E-4,5.2824832177041385E-4,4.2348031050075098E-4,4.8397689255082394E-4,2.941480367693046E-4,9.1184274246126505E-4,3.7186595907523251E-4,5.2723775088083533E-4,7.0658372853319362E-4,6.5021110907940841E-4,5.0755226752831123E-4,5.6584537006434379E-4,4.9547803156077866E-4,3.9071223474746689E-4,4.0698354125127056E-4,3.1683056476009176E-4,1.0666513493177981E-3,4.526933790298534E-4,7.4591553675701719E-4,6.8226363150727487E-4,6.6713046517462293E-4,4.2687396150937681E-3,7.8119617628388902E-4,1.362059390415359E-3,5.2539489644257992E-3,2.2044864070396348E-4,1.9224500045500255E-3,9.7863189425499448E-4,2.6815054747079108E-3,6.2362720301680835E-3,1.3540854226777709E-3,3.0852914167780179E-3,1.0180269794492331,0]
[null,"DOM_C95: Private households with employed persons",0,0,0,0,0,0,0,0,0,0,0,0,0,0,0,0,0,0,0,0,0,0,0,0,0,0,0,0,0,0,0,0,0,1]
[]
[]
[]
[]
[]
[]
[null,"Total Requirements - Type 2"]
["->",null,"DOM_C01T05: Agriculture, hunting, forestry and fishing","DOM_C10T14: Mining and quarrying","DOM_C15T16: Food products, beverages and tobacco","DOM_C17T19: Textiles, textile products, leather and footwear","DOM_C20: Wood and products of wood and cork","DOM_C21T22: Pulp, paper, paper products, printing and publishing","DOM_C23: Coke, refined petroleum products and nuclear fuel","DOM_C24: Chemicals and chemical products","DOM_C25: Rubber and plastics products","DOM_C26: Other non-metallic mineral products","DOM_C27: Basic metals","DOM_C28: Fabricated metal products","DOM_C29: Machinery and equipment, nec","DOM_C30T33X: Computer, Electronic and optical equipment","DOM_C31: Electrical machinery and apparatus, nec","DOM_C34: Motor vehicles, trailers and semi-trailers","DOM_C35: Other transport equipment","DOM_C36T37: Manufacturing nec; recycling","DOM_C40T41: Electricity, gas and water supply","DOM_C45: Construction","DOM_C50T52: Wholesale and retail trade; repairs","DOM_C55: Hotels and restaurants","DOM_C60T63: Transport and storage","DOM_C64: Post and telecommunications","DOM_C65T67: Financial intermediation","DOM_C70: Real estate activities","DOM_C71: Renting of machinery and equipment","DOM_C72: Computer and related activities","DOM_C73T74: R&D and other business activities","DOM_C75: Public administration and defence; compulsory social security","DOM_C80: Education","DOM_C85: Health and social work","DOM_C90T93: Other community, social and personal services","DOM_C95: Private households with employed persons","HH"]
[null,"DOM_C01T05: Agriculture, hunting, forestry and fishing",1.1330359119537652,6.0106774061978148E-3,0.26613754212334795,6.3005504018474934E-2,0.25897621741111604,2.0025562139441892E-2,8.1152548662477633E-3,1.6689861213844935E-2,3.5214939547630525E-2,1.4344310000004846E-2,9.0008602534230025E-3,1.6217309290103128E-2,1.5106581187335592E-2,1.0795637747357612E-2,1.2505846822379478E-2,1.128534250580626E-2,1.4177544152507583E-2,3.1961044089940091E-2,1.5255682457519643E-2,2.6509469379530887E-2,1.7797649220379849E-2,3.1378560551998412E-2,2.1641384394567028E-2,1.7137984473944743E-2,2.0154830413143345E-2,2.2194279088090666E-3,5.8747297199028261E-3,3.7244968728116501E-2,2.9264981437963761E-2,5.7503480208587997E-2,5.7727058546918536E-2,4.3712251728569518E-2,1.486709284595971E-2,7.1921874696865729E-2,7.1921874696865729E-2]
[null,"DOM_C10T14: Mining and quarrying",2.7242299520155673E-2,1.0236754522790303,2.2627420129560438E-2,2.6515317471370137E-2,2.7530991805802697E-2,3.13775896909428E-2,0.50522572917285813,0.26714544294576859,6.2124044672270631E-2,0.14849198495905108,0.29031259165118389,6.430833001492535E-2,5.2573196072373651E-2,1.5554133887720287E-2,4.6029496426591848E-2,2.3003417988863791E-2,4.5855016741086004E-2,3.5423575406135936E-2,0.15256449541045128,8.055708115663629E-2,1.6687189278292387E-2,2.2777370256900527E-2,6.9051840556301994E-2,1.8555555668629153E-2,1.450351548795533E-2,6.73084625549488E-3,1.506587661890179E-2,2.6091103123330767E-2,2.2738056887502401E-2,4.9107045552254432E-2,3.6299472506231764E-2,3.9246651585516198E-2,2.4241333826147446E-2,3.9722336407313118E-2,3.9722336407313118E-2]
[null,"DOM_C15T16: Food products, beverages and tobacco",0.1117418300659431,1.5610645021399135E-2,1.1484792275095015,6.8020760260779689E-2,6.785242414164952E-2,5.2579476681727494E-2,2.1654413426096229E-2,3.8110750120312835E-2,4.4323078166401061E-2,3.7612309052165678E-2,2.3682275444024591E-2,4.2071102566902802E-2,3.9301516141654259E-2,2.6975041880180232E-2,3.2228561096876059E-2,2.7997301080396293E-2,3.4922915577342999E-2,4.9483572691612854E-2,4.0379412457383732E-2,6.3358465316596835E-2,4.9234167349230126E-2,0.10747692491297954,5.8926815295525445E-2,4.5804936185556845E-2,5.5705327222758678E-2,6.0063838515247237E-3,1.5701716902431606E-2,0.10157306890717874,7.9666826825541576E-2,0.1588644300431567,0.15732327875830915,0.11928173997775307,3.9712473359349153E-2,0.19611153128601769,0.19611153128601769]
[null,"DOM_C17T19: Textiles, textile products, leather and footwear",4.7223683201985268E-3,1.8076904472057289E-3,4.8848852560558053E-3,1.1388674191580417,8.1015960118144409E-3,1.9081428167651938E-2,2.8189771262065902E-3,4.2039899057021782E-3,1.3910010336783102E-2,4.7818462163129139E-3,3.2224220371303361E-3,5.88368762442819E-3,5.7458421353064936E-3,4.1191213112025567E-3,5.1205264524139199E-3,1.4457344382798755E-2,1.004890708928223E-2,2.6658403337110202E-2,5.8439167390952357E-3,7.8459859112205259E-3,6.7095842681183047E-3,9.3022891464673019E-3,7.2127035002238658E-3,5.36527913824491E-3,6.1011976179977572E-3,8.1427607661984053E-4,3.1680612392304989E-3,1.1146427657843882E-2,9.9342012968565638E-3,1.8511624004940701E-2,1.7533486282360056E-2,1.9425809667807527E-2,7.9265125976168346E-3,2.0808396610495106E-2,2.0808396610495106E-2]
[null,"DOM_C20: Wood and products of wood and cork",1.5819018415356761E-3,1.3755051676104294E-3,2.1786354491177733E-3,1.8331881701902698E-3,1.0625881757551581,3.3922332575776369E-3,1.3390182851138175E-3,1.4468358734143426E-3,2.3283434648456247E-3,2.991518517821058E-3,1.4645017828890828E-3,3.501901979424816E-3,2.9695643641541171E-3,3.6918748236236709E-3,2.0993441581765339E-3,1.380023631097008E-3,4.823524165225637E-3,3.952064853410453E-2,1.2309030228746236E-3,1.2291655099472762E-2,3.6431439392434848E-3,9.8717659770261503E-4,1.0105156927956215E-3,2.3591667483664936E-3,8.781629435873783E-4,1.4149820637929339E-4,9.902053175497561E-4,1.2898229579856547E-3,1.1184242226244809E-3,2.1306900183493144E-3,1.9965578218615835E-3,1.935266283397123E-3,1.2925712608310551E-3,2.2609412282033271E-3,2.2609412282033271E-3]
[null,"DOM_C21T22: Pulp, paper, paper products, printing and publishing",8.5299123897135606E-3,2.9713895982937427E-3,1.4954226043769633E-2,1.5865584262141456E-2,9.6327762479759185E-3,1.2209674825113361,4.7489792740108014E-3,1.5962238647283036E-2,2.1295412078549302E-2,2.2096241494898868E-2,5.902095166059702E-3,1.4969781106531493E-2,1.0430776394578291E-2,1.766938924813883E-2,1.6325566597953801E-2,8.2683939715633564E-3,1.3961671725968496E-2,2.7228066131060429E-2,1.1014510124440501E-2,1.2547680337291098E-2,1.8989687599776772E-2,1.2540419831728078E-2,9.9292389943452242E-3,1.0534733246704694E-2,2.4900124672286812E-2,6.4509862273555915E-3,2.0248503817452544E-2,1.5194782282302137E-2,2.6701883412145612E-2,3.2383248934960383E-2,2.4415650606073529E-2,2.2630783082045376E-2,2.0926876555574271E-2,1.9670942265751244E-2,1.9670942265751244E-2]
[null,"DOM_C23: Coke, refined petroleum products and nuclear fuel",2.6862381591326999E-2,1.3946126417818403E-2,2.6535855318641857E-2,2.8522230137275749E-2,3.5529182132968982E-2,3.2839724042167381E-2,1.1312062255965261,2.4644801119103301E-2,2.7046817211623206E-2,4.5747980689227162E-2,2.8469637896069572E-2,2.8165431030220092E-2,2.3537019889551647E-2,1.7067996946993208E-2,2.0325708513903525E-2,1.4049980472945429E-2,2.2327138459333439E-2,2.6343771647384804E-2,0.1453435023206486,4.1577014750480749E-2,2.1739354257647031E-2,2.8409655021438857E-2,0.14059456330857656,2.8707078208812388E-2,1.9954636568370269E-2,1.0700182284712197E-2,2.6380607093181886E-2,3.6260342642822865E-2,3.1516680417288022E-2,6.887759236200211E-2,4.8914275229159317E-2,4.4958294852378247E-2,2.9082226089176939E-2,5.5036840031516897E-2,5.5036840031516897E-2]
[null,"DOM_C24: Chemicals and chemical products",4.4841334039267725E-2,2.4328897459266707E-2,3.1566086759421241E-2,5.1477867766247271E-2,3.9281204978756583E-2,4.9098431971105007E-2,2.0355410638263505E-2,1.1729197427678986,0.20644126530080203,4.486683178523837E-2,3.4069021304872278E-2,3.4560941073470623E-2,2.4461425199895845E-2,1.9195360853678969E-2,3.0904990873418092E-2,2.2517447279384734E-2,3.1402327377655477E-2,4.9263524817908487E-2,0.1827025878504607,3.7143249442878973E-2,2.060372237344996E-2,3.0056092835166099E-2,2.2098835491414469E-2,1.7864745951551086E-2,1.8754750591660208E-2,5.587568848893343E-3,8.8688079120673811E-3,3.2181083361119481E-2,2.9293187893922965E-2,6.4619210676722452E-2,4.719696355427748E-2,6.9366020247153257E-2,3.9107837512392767E-2,5.2439922790473208E-2,5.2439922790473208E-2]
[null,"DOM_C25: Rubber and plastics products",4.5381843490069325E-3,1.1262865342734627E-3,1.0544024783834273E-2,1.0073212188696648E-2,8.2345095125385542E-3,1.0140767505745614E-2,2.0975298660043124E-3,5.4787746602094805E-3,1.0227766712167823,3.7611195865162096E-3,2.4583199882727167E-3,9.2745833352819926E-3,1.0902263331140517E-2,1.3592879238989462E-2,1.9361040590121559E-2,2.7652614396695349E-2,1.4745711167899283E-2,2.8815713994790972E-2,3.5535378915794737E-3,1.3257745432228319E-2,8.8969973953941985E-3,4.930703833546865E-3,5.7827267686773546E-3,2.9084833064550409E-3,2.9904932207620032E-3,5.3369168612069193E-4,1.5403557320303666E-3,5.027460056339049E-3,4.9544878846463133E-3,8.394997358911813E-3,7.5013254067770475E-3,8.2532713228724488E-3,3.0857202847100152E-3,8.8693422716104135E-3,8.8693422716104135E-3]
[null,"DOM_C26: Other non-metallic mineral products",3.7700857836258082E-3,3.0885271620052102E-3,8.6592692365217213E-3,3.0302703170628736E-3,5.4759434186629216E-3,2.7048360941542703E-3,2.4054038045291538E-3,2.9245137903713943E-3,3.8343211427129928E-3,1.0467804224658999,2.5033798720935198E-3,9.0107068979428072E-3,5.4655278920124348E-3,4.6838839142661817E-3,1.0308727606361381E-2,5.2837684960116878E-3,9.3887961407213699E-3,9.9587462255540972E-3,3.9725411306677592E-3,6.8648490054678338E-2,3.6932798530033987E-3,6.5092776877574889E-3,3.3505925259615871E-3,2.3979517150153266E-3,2.5705251439300781E-3,7.3130838883198523E-4,3.4057819531876513E-3,4.7718356053017786E-3,3.7954471029318254E-3,7.5171876385092392E-3,7.6077204576001237E-3,6.6866124882361284E-3,2.1932034547054039E-3,9.0059875957147068E-3,9.0059875957147068E-3]
[null,"DOM_C27: Basic metals",2.5787604712124248E-3,5.6228195445053681E-3,1.9665020534536701E-3,2.4003372044677108E-3,2.4137672189017498E-3,2.9773853959455445E-3,3.6900684277031627E-3,2.7029721933017033E-3,1.0265432464052199E-2,6.6410472089403613E-3,1.1224310394847428,0.17367156566484013,0.14496479831111503,1.0591071504827127E-2,0.11225096196268602,4.3006011720626958E-2,0.10851770663525162,3.8057594420977121E-2,2.994658929979555E-3,5.9543738006548504E-2,2.6187744522416317E-3,1.4452725945609634E-3,2.2607801078051103E-3,1.9705991855938445E-3,1.1781845146374584E-3,2.4267867877196555E-4,2.2810159942208297E-3,1.9941213337277761E-3,1.7027918770148513E-3,3.5380996403853349E-3,3.2851447245657635E-3,3.3373616720736498E-3,1.567351060674217E-3,3.5235995516113942E-3,3.5235995516113942E-3]
[null,"DOM_C28: Fabricated metal products",2.5743735789369279E-3,3.5264776035899333E-3,3.8177937864343281E-3,3.3646005527182034E-3,3.8735488274748951E-3,2.8024324232083998E-3,5.2367855129193857E-3,2.9341580879018005E-3,9.9384423911339382E-3,3.04056946385549E-3,1.0410024296740537E-2,1.0586300293457185,2.0345753203451611E-2,9.5370905525836835E-3,2.3862098205930066E-2,2.0365148148726912E-2,1.823667363739994E-2,1.3811571738713573E-2,4.2249791807507878E-3,2.3555262445930262E-2,3.1520280105371084E-3,2.2718817596371023E-3,2.815190234437106E-3,2.2414488920983518E-3,1.825564005821642E-3,3.6966387124361404E-4,3.6109435488447862E-3,3.278713953646479E-3,2.6981549714960818E-3,6.3179686429883841E-3,5.2952497659174676E-3,4.5427265104230636E-3,3.3248735685971371E-3,6.0428907500896818E-3,6.0428907500896818E-3]
[null,"DOM_C29: Machinery and equipment, nec",4.4045567123988038E-4,7.5716440916697987E-4,7.1846947395032344E-4,1.336028509736079E-3,1.0336555081234679E-3,9.7218569495512793E-4,5.6592213008690268E-4,6.503162685132834E-4,1.5864444415184158E-3,9.8291015108459365E-4,1.4828035243935689E-3,3.1007199464238686E-3,1.0229092365734511,9.471835407067945E-3,4.4765786866732488E-3,4.8183665895391633E-3,6.0150237776876152E-3,2.5681617082628171E-3,5.4374365450224728E-4,1.9928535556807269E-3,8.765403552429996E-4,4.1499829171481905E-4,2.5083112198791718E-3,1.2220787840326974E-3,4.3057353118000418E-4,6.5266316981080647E-5,3.630779034623896E-3,6.4879793020898959E-4,6.1021719705618769E-4,9.854915330823528E-4,9.0221843972075079E-4,8.0961459994727801E-4,6.361470159593932E-4,1.0608440287287048E-3,1.0608440287287048E-3]
[null,"DOM_C30T33X: Computer, Electronic and optical equipment",1.1530416005109815E-3,6.0938776796002703E-4,1.3188177842140306E-3,3.109913026968677E-3,1.7173231947130894E-3,2.1589989491946002E-3,8.3692377267584426E-4,1.3156677532458628E-3,2.383950047338703E-3,1.4867045057758918E-3,1.1232909669586142E-3,2.9643827621986755E-3,2.5732144992774209E-3,1.075482230954637,8.6661679112841825E-3,6.4463409390747703E-3,1.064218445452895E-2,8.1469879073269493E-3,2.8963500942385443E-3,2.6865631173079935E-3,1.9316776448336072E-3,1.8255169335022973E-3,2.1195622058937133E-3,2.0840876499152616E-2,3.5331699303351341E-3,3.153052937855999E-4,1.9182897779423504E-3,3.806203507412842E-3,3.6189427257021416E-3,5.952364924494931E-3,5.2144120785871341E-3,4.4294620533570639E-3,3.3608812639829714E-3,6.0089494782553767E-3,6.0089494782553767E-3]
[null,"DOM_C31: Electrical machinery and apparatus, nec",5.8359719517068554E-4,3.2823007026035298E-4,6.5131759925108473E-4,1.0155171135094972E-3,8.6170060456338662E-4,9.4701672061404171E-4,4.0447334885962194E-4,5.9766161504694337E-4,1.4667262606206882E-3,7.4420998680850342E-4,1.3386120365313494E-3,2.239129753360861E-3,5.4792047144921249E-3,1.0487600035064614E-2,1.0190924026853654,5.2921005740068751E-3,6.6836940372505226E-3,3.5142952791947291E-3,4.1125556648238778E-3,5.2177036044281028E-3,9.1423170693233065E-4,1.2795216501057067E-3,1.270609882445617E-3,5.0343516546251859E-3,1.1538040321102622E-3,2.20237287542751E-4,4.2393122340248635E-4,1.6619849365045716E-3,1.3670339518906058E-3,2.8483787963587606E-3,2.5428937753354686E-3,2.0952876538088525E-3,1.1441175073392872E-3,2.9113106135329973E-3,2.9113106135329973E-3]
[null,"DOM_C34: Motor vehicles, trailers and semi-trailers",3.4967998331621379E-3,1.6874510080063408E-3,4.078639357631488E-3,5.2694564585893649E-3,5.3711331744554017E-3,5.1858895345967227E-3,2.4081226086599839E-3,3.3320050175973024E-3,4.8576865046804692E-3,4.3146145444472195E-3,3.1970219748745569E-3,4.9558371102768175E-3,4.7388032836203136E-3,3.1965517790148979E-3,4.0213611598764422E-3,1.0290596262613241,4.7696490873988086E-3,6.0265080274712838E-3,4.3705705780711212E-3,6.8715366399572601E-3,5.7983506205348057E-3,5.0022638425233331E-3,1.0429003865461228E-2,8.1744633565177024E-3,5.7034283659679408E-3,6.5349047939748455E-4,3.1214114641217802E-3,1.0302591004160172E-2,8.0522950014823291E-3,1.5456901672817129E-2,1.5743687973893465E-2,1.1706590779596184E-2,4.374783991057481E-3,1.9561942412077676E-2,1.9561942412077676E-2]
[null,"DOM_C35: Other transport equipment",1.6274718623325311E-4,1.4860969260958374E-4,1.6578795206161951E-4,2.1936186625113471E-4,2.2232987143405521E-4,2.1298698256473866E-4,1.4070727707538578E-4,1.5940747397376838E-4,2.8425754905915562E-4,1.7415571460452714E-4,2.7937056092459592E-4,2.3278606646724432E-4,2.0438284166576047E-4,4.7754441468662168E-4,2.3401059955127112E-4,1.4425347199208602E-4,1.0206640488720173,2.9355703035848798E-4,2.1515181937343218E-4,2.8332433699858019E-4,1.7955157128860563E-4,2.2540460472587421E-4,9.2453775017259387E-4,2.3356955269702407E-4,2.2202256580267974E-4,2.5411562497266347E-5,1.2181275122564448E-4,4.1315968832149758E-4,3.201786190164998E-4,7.808114234666326E-4,6.2045802694788094E-4,4.719472590530343E-4,1.7612597646731153E-4,7.6715971345460638E-4,7.6715971345460638E-4]
[null,"DOM_C36T37: Manufacturing nec; recycling",1.8543614495223815E-3,1.0814446630771691E-3,2.208446725320827E-3,6.5730961177139745E-3,3.0440934103987218E-3,3.4959551371374271E-3,1.4217130512053429E-3,1.9864711082141361E-3,4.5774975373936528E-3,2.7993377831609344E-3,1.560593649587032E-3,4.0021983688020447E-3,3.1852015438082219E-3,1.4419429430825597E-2,3.1650854460642495E-3,2.3742871475982783E-3,4.9697267577113284E-3,1.0243443009955913,3.7007724661470448E-3,5.5835618495029679E-3,3.5823374390697811E-3,5.6654219079490436E-3,3.4116494414734755E-3,3.1627485740197071E-3,3.4583220384599095E-3,5.0994037442240884E-4,2.1363178786920813E-3,6.2283488239993469E-3,5.4775876055130701E-3,9.6980690598821445E-3,9.5537193252923543E-3,1.204569072418437E-2,6.0005991934175126E-3,1.0111703861225394E-2,1.0111703861225394E-2]
[null,"DOM_C40T41: Electricity, gas and water supply",2.3905473597862839E-2,1.1152880800214105E-2,2.6541767067886631E-2,3.2617104826606402E-2,2.7292082156646115E-2,4.1703952956120172E-2,1.1051947833831987E-2,1.9912589333462766E-2,4.0610731773066074E-2,3.9139128660917864E-2,4.2980244467914236E-2,3.2844982372814621E-2,2.4094961941855213E-2,1.2472132767948552E-2,2.2426772874356626E-2,1.4849400909258124E-2,2.7563561826581203E-2,2.2928936626947873E-2,1.0249239569055695,2.5352528671764719E-2,3.0141573566009192E-2,5.2382693155314103E-2,1.963548241697979E-2,2.4079685480914565E-2,1.8895831940095986E-2,1.3447270978626422E-2,1.041651905174819E-2,3.975400459966083E-2,3.029479244635774E-2,5.401489221807837E-2,4.9811097563308163E-2,4.745993730359821E-2,4.6002079526707748E-2,3.7917069007421027E-2,3.7917069007421027E-2]
[null,"DOM_C45: Construction",2.390357434679637E-3,2.9220878416766297E-3,1.4039309962922079E-3,1.6011806897216388E-3,1.628375697252951E-3,1.2002690024727298E-3,1.7652686309763395E-3,1.3360849261703149E-3,1.7535649136731907E-3,1.1092536951294806E-3,1.6424150531770712E-3,1.6162590836724887E-3,1.0254889731792366E-3,1.2197336231947772E-3,3.5729218637811973E-3,6.7499394600602572E-4,1.0620251485258295E-3,1.7291082631653836E-3,4.4853053407753214E-3,1.0777067299444165,1.8133211221914016E-3,1.5130585704375176E-3,2.2350499930170902E-3,1.5534532402263425E-3,8.5737397069932119E-4,3.2714752267302093E-4,4.9885259441539639E-4,1.4839211307116904E-3,1.2188153001582154E-3,5.4685555789808537E-3,7.0695603434692989E-3,1.229406740142471E-2,1.7210870800407057E-3,2.5317045205204185E-3,2.5317045205204185E-3]
[null,"DOM_C50T52: Wholesale and retail trade; repairs",0.14633525209771717,3.9918030834778205E-2,0.20835353777593693,0.25028637794998215,0.19567150832660063,0.16599879564582312,0.14253988974962223,0.1706444685282483,0.18998260617381124,0.12517042223883951,0.12300975126393252,0.1427813499160957,0.13200142357875666,0.17257102933404062,0.1270968268730911,0.1215656555804524,0.13097158714476723,0.18334689451192193,0.18885778831294509,0.17141694847316447,1.0874442794565704,0.12085706681510625,0.13535745775420163,0.10012232626184185,8.8342398786444745E-2,1.7032449269122861E-2,5.9064558756065449E-2,0.14105116769899162,0.12134717267735774,0.23800572971820944,0.20881593992251135,0.20601962756454867,9.6286449934051263E-2,0.24460134465389324,0.24460134465389324]
[null,"DOM_C55: Hotels and restaurants",7.8294236429123851E-3,4.7932386406504589E-3,8.6052376340570568E-3,1.2040967299653454E-2,1.190581731758006E-2,1.4773700385742522E-2,5.8127177053552675E-3,9.2354880042672741E-3,1.1074547104187637E-2,9.7606764298306479E-3,6.9535019708097702E-3,1.1174566600860511E-2,1.1265833297122146E-2,8.5127842745887378E-3,1.0042661255132127E-2,7.9176844184544581E-3,1.2345183456199414E-2,1.2598403491576295E-2,1.1939767056693798E-2,1.8790738267963066E-2,1.1889350390700378E-2,1.011837631904094,1.7749350410836862E-2,1.6002083872599999E-2,1.6444108838329263E-2,1.8030648202415163E-3,5.205925941802257E-3,2.7694089831481528E-2,2.2888060884984008E-2,5.8194562501401752E-2,3.867422425065755E-2,3.0954849633036245E-2,1.3579298889047976E-2,4.3095717455434168E-2,4.3095717455434168E-2]
[null,"DOM_C60T63: Transport and storage",4.667433439646617E-2,1.6218434004857028E-2,6.1063966574879641E-2,8.4444571128919302E-2,6.6192879059855658E-2,6.0876433555983496E-2,4.0665093676797139E-2,5.2246908190979095E-2,6.5222354945822722E-2,4.5095773438796588E-2,4.3232172683041657E-2,5.6984675066905202E-2,5.4624806128944783E-2,6.4153484532193147E-2,5.2264595059329566E-2,4.3923263766870863E-2,5.8506516564674496E-2,7.0833978700766159E-2,6.4697343395044321E-2,6.6549602574352953E-2,4.528674934160451E-2,4.8134756009004354E-2,1.0799620493357491,4.5104886261564545E-2,5.3112137229980247E-2,6.3274544560635885E-3,2.3583552791876371E-2,9.6547862934595094E-2,6.9975787746265353E-2,0.13462081133282297,0.1182905680969496,0.10022194593535187,4.370352230129753E-2,0.14132793525659068,0.14132793525659068]
[null,"DOM_C64: Post and telecommunications",1.1360419404999692E-2,6.9099170027689064E-3,1.3918821525389155E-2,1.8381208457563539E-2,1.7459147939019756E-2,2.0686129806431745E-2,8.6874130489826718E-3,1.3083709798621581E-2,1.9102887427495732E-2,1.5946991476967071E-2,9.3679069307389257E-3,1.7203473190613935E-2,1.5672027702338297E-2,1.288677967159863E-2,1.246379448207223E-2,1.0406315952830734E-2,1.445369779762188E-2,1.742653384204304E-2,1.6463539174595032E-2,3.1640066762534828E-2,2.0212933574968377E-2,2.0673844996343255E-2,2.4679358530515245E-2,1.0900469666883863,9.3277137358588891E-2,5.8509172496925468E-3,1.0866591462128265E-2,4.0143206557548071E-2,4.1851773147949911E-2,7.4009892077498959E-2,5.3553690676224383E-2,4.2448624856773726E-2,3.4039424341399574E-2,5.5083961582757718E-2,5.5083961582757718E-2]
[null,"DOM_C65T67: Financial intermediation",2.6055516941639337E-2,1.8314143434640277E-2,2.5960195059684051E-2,3.167139087095848E-2,3.1265743198187403E-2,3.6296227365446562E-2,1.8327827812449429E-2,2.6293342776775828E-2,3.5467876728652981E-2,3.3055992495116343E-2,2.334483772670139E-2,3.494327765073979E-2,2.9402126286103204E-2,2.1236990104947215E-2,2.4272181898116613E-2,2.1408369344247388E-2,3.4630640652871497E-2,2.9592830686916025E-2,3.2484886759637802E-2,7.0064295976971558E-2,3.1414869214206831E-2,3.5068417717215139E-2,4.5580107130182478E-2,7.5865087610435686E-2,1.1425827672365505,1.4122153646891749E-2,1.5629907941115042E-2,5.9597663555599541E-2,6.9563135620103925E-2,0.11330344553423528,7.6857120263584169E-2,5.8631301962692173E-2,3.8079756099112884E-2,8.5969474706938762E-2,8.5969474706938762E-2]
[null,"DOM_C70: Real estate activities",2.8670973956632862E-2,1.3920071566118351E-2,3.4673411451917574E-2,4.906372605751181E-2,4.6416421783594168E-2,5.3886969975677247E-2,2.0758402207743158E-2,3.0449846010511452E-2,4.2422921162630668E-2,3.6885039308257546E-2,2.2983607120500849E-2,4.3055241985924871E-2,3.7625094591935616E-2,2.8746926385490576E-2,3.175739048732211E-2,2.6573599978430222E-2,3.9672227266872605E-2,4.8159608489319397E-2,3.6458949835561132E-2,5.6131383525385534E-2,6.3895072560557445E-2,4.7270893457880041E-2,5.5772345207922881E-2,6.4590627145966528E-2,6.0248636702016245E-2,1.0195086110909577,2.787168721707077E-2,0.10016328136344665,8.1932937342577714E-2,0.13164014816804342,0.13327433154911136,0.10176135407939638,8.3078185113684616E-2,0.15362529603353958,0.15362529603353958]
[null,"DOM_C71: Renting of machinery and equipment",5.3839791763115033E-3,6.3720795280286157E-3,3.6288095717933017E-3,4.751925930573813E-3,3.873213712059306E-3,6.6051222636989114E-3,3.8278495066384173E-3,4.3870718614223963E-3,6.2938824088254273E-3,5.0029870439273812E-3,3.7170657066928816E-3,6.1203098974024804E-3,6.0473400343149589E-3,5.9599216563868155E-3,5.7789725020836779E-3,3.6610905368515824E-3,1.1496150604921587E-2,5.4824665183468881E-3,3.5298824112519537E-3,9.7137853758859916E-3,3.0723277828417785E-3,1.9769199006221963E-3,9.5610585086793268E-3,1.9488693435899158E-3,2.9094734055541069E-3,7.7165580898787181E-4,1.0066662487321372,2.9365220908491503E-3,3.8302335976424687E-3,4.8194043443590354E-3,4.0895298828713799E-3,3.8603050918517468E-3,4.1263582376379927E-3,3.9197378429417402E-3,3.9197378429417402E-3]
[null,"DOM_C72: Computer and related activities",3.2651108983810379E-4,2.188648713023427E-4,6.6422998771854022E-4,8.7303708640479696E-4,5.2357417482071645E-4,1.0720255486584645E-3,3.0078770923435924E-4,5.7279620066595963E-4,1.0154925114115379E-3,1.1602667704083802E-3,4.0336728155361806E-4,8.0769516977993987E-4,7.9181141910176448E-4,4.2920487933869082E-4,5.9638543273672412E-4,4.2564337672228191E-4,8.3116631613944583E-4,8.0017115245672099E-4,5.5908228596319087E-4,6.5252166380051931E-4,1.0211368814589073E-3,6.3406247681831586E-4,1.1578162837385594E-3,4.2655709772706583E-3,8.6912176405005189E-4,7.4883459294798269E-4,1.2092454163800204E-3,1.0013073597116275,2.7531944376653662E-3,1.2662044140240626E-3,1.8872721566371552E-3,1.1741074341592805E-3,4.4227163989188772E-3,1.08211208558968E-3,1.08211208558968E-3]
[null,"DOM_C73T74: R&D and other business activities",3.130620255320965E-2,3.7409553919566241E-2,6.1507884277153611E-2,7.8977857676415256E-2,4.860313195301897E-2,0.10597234095471582,4.0359476928541006E-2,7.541551681849587E-2,9.0528531922561731E-2,7.3725772618749241E-2,4.8740708404236117E-2,7.8754655732254028E-2,8.3974534044706145E-2,6.2296701553604152E-2,6.6280916928291481E-2,4.2260824893027904E-2,0.10024325156006079,7.0964207231511423E-2,7.06792211527906E-2,8.1168563158222101E-2,0.10238360439317616,9.8794606288902631E-2,8.6224504908230207E-2,0.10915087449025472,0.12930053358717783,2.5466047595130027E-2,5.2164488838703678E-2,0.26910124782118316,1.1652566509921987,0.12741380204083141,0.10047084964727512,0.12016012897107445,0.15174842726115803,8.3214307463043452E-2,8.3214307463043452E-2]
[null,"DOM_C75: Public administration and defence; compulsory social security",1.6840377347640087E-2,8.2174376199096854E-3,1.7541289127470768E-2,2.4719390399255244E-2,2.6793922187379561E-2,2.5433347404225141E-2,1.111596066318131E-2,1.5845426229662143E-2,2.1275736937161331E-2,1.9574004737114209E-2,1.2223482064138154E-2,2.2158649343962316E-2,2.0712194990081572E-2,1.3776890965059276E-2,1.6797782103786817E-2,1.4500472298710576E-2,1.8136213289277312E-2,2.5037089263381863E-2,2.045872219187294E-2,3.3417033311256492E-2,2.217940423588597E-2,2.5506283363552176E-2,3.128662363233644E-2,2.4310400965088522E-2,2.8694511083428093E-2,3.1548536442019505E-3,7.8750867858427172E-3,5.4712819082071255E-2,4.2714891764016376E-2,1.0819915333040782,8.4909922937935742E-2,6.1791242324547566E-2,2.0734694516280697E-2,0.10621674653208026,0.10621674653208026]
[null,"DOM_C80: Education",1.5209274425814132E-2,7.4468815026255486E-3,1.5887758835549524E-2,2.2378582045678368E-2,2.4157565553238607E-2,2.3066275249640441E-2,1.0066213301014506E-2,1.4365470367372754E-2,1.9317182026292061E-2,1.7768779972111681E-2,1.1140346014559268E-2,2.0171952140611338E-2,1.892005040990399E-2,1.2546022431142872E-2,1.529479543334113E-2,1.3169339217484793E-2,1.658191721586294E-2,2.2673820956158792E-2,1.9767034511937058E-2,3.0183723695908146E-2,1.9938492536441026E-2,2.3077577130291741E-2,2.9837700533756329E-2,2.2073630331184393E-2,2.7845248090256524E-2,2.9248059591750306E-3,7.2427786649763726E-3,5.3747546739708434E-2,3.951566699110786E-2,7.3997101833455259E-2,1.0771703866394489,5.5655937319605213E-2,1.9913101313369708E-2,9.5378703330635209E-2,9.5378703330635209E-2]
[null,"DOM_C85: Health and social work",1.0985709434591954E-2,5.3653110260995203E-3,1.1434561763648125E-2,1.6120212873462453E-2,1.7484408116937557E-2,1.6599521585704859E-2,7.2445369330987174E-3,1.0331720087443343E-2,1.3878321760691341E-2,1.2775706058242579E-2,7.9713910576832414E-3,1.4462508697282826E-2,1.3518655545376949E-2,8.9793417674542565E-3,1.0960750829040003E-2,9.4599527943713384E-3,1.183503008032704E-2,1.6337908820948533E-2,1.334445203502325E-2,2.1817212869410865E-2,1.4334481851426013E-2,1.6653962057336706E-2,2.0430084228977921E-2,1.5875386334174207E-2,1.8742807513061864E-2,2.0596041335263849E-3,5.1386649882053659E-3,3.5741666943595513E-2,2.7902224571432644E-2,5.3557753815923655E-2,5.5469722360766055E-2,1.0403587111680719,1.3538715497239081E-2,6.9391476024730323E-2,6.9391476024730323E-2]
[null,"DOM_C90T93: Other community, social and personal services",5.0918231525998022E-3,2.8658273564878337E-3,5.4053335003459105E-3,7.507292309845837E-3,7.9118212060932617E-3,8.1439851954015485E-3,3.5281932565364546E-3,5.0286007010421534E-3,6.7531435322505011E-3,6.216379126215016E-3,3.9805581237276023E-3,6.8669259515500205E-3,6.3853370959686103E-3,4.3028658748734908E-3,5.1824049880395892E-3,4.438378637922763E-3,6.2229820925766227E-3,7.5708553914823427E-3,6.5598769557914313E-3,1.018766959053097E-2,6.9124318254184967E-3,1.1524600898966253E-2,9.6822526740072256E-3,8.2787078535303295E-3,1.3419886350189739E-2,1.1177847725570044E-3,4.1612830348129182E-3,1.6550696758114349E-2,1.4838052385572566E-2,2.9570517120088763E-2,2.5521344211845615E-2,2.0668927600361112E-2,1.023925578309467,3.0232741169047991E-2,3.0232741169047991E-2]
[null,"DOM_C95: Private households with employed persons",1.3102404944646559E-3,6.3990840224279215E-4,1.3637740874534105E-3,1.9226210024901747E-3,2.0853254560349666E-3,1.9797870587989481E-3,8.6403938770689788E-4,1.2322406774583506E-3,1.6552357655491938E-3,1.5237293069283336E-3,9.5072962043784171E-4,1.724910408340058E-3,1.6123391968203794E-3,1.070945601411075E-3,1.3072637385369444E-3,1.1282669818191663E-3,1.411537029700053E-3,1.9485851013565586E-3,1.5915623416794086E-3,2.60208919124023E-3,1.7096409385967584E-3,1.9862800496152893E-3,2.4366495237751447E-3,1.89342109985257E-3,2.2354118802963038E-3,2.4564428491215539E-4,6.1287684651787765E-4,4.2628270525441091E-3,3.3278346507164547E-3,6.3877110768312062E-3,6.6157472019909491E-3,4.8134913809301022E-3,1.6147317015014165E-3,1.0082761629915302,8.2761629915302799E-3]
[null,"L",0.21775457767571621,0.10634916602730626,0.22665155878870868,0.31952876299916833,0.3465693251839605,0.32902943902123655,0.14359847124262068,0.20479144817182243,0.27509084523309119,0.25323521378253466,0.1580058988077786,0.28667037775382131,0.26796167753697531,0.17798511657527258,0.21725985763567704,0.18751160658629376,0.23458949030693488,0.32384384973879016,0.26450868143758355,0.43245254234381847,0.28413267803431841,0.33010853746082675,0.40495740303781652,0.31467590392948919,0.37151284209399094,4.0824694203452291E-2,0.10185667398049209,0.70845780484797893,0.55306734298229543,1.0616015408821537,1.099499858281705,0.79997510932403015,0.26835929831621957,1.3754515942757579,1.3754515942757579]
[]
[]
[]
[]
[]
[]
[null,"Labor"]
[null,null,"C01T05 Agriculture, hunting, forestry and fishing","C10T14 Mining and quarrying","C15T16 Food products, beverages and tobacco","C17T19 Textiles, textile products, leather and footwear","C20 Wood and products of wood and cork","C21T22 Pulp, paper, paper products, printing and publishing","C23 Coke, refined petroleum products and nuclear fuel","C24 Chemicals and chemical products","C25 Rubber and plastics products","C26 Other non-metallic mineral products","C27 Basic metals","C28 Fabricated metal products except machinery and equipment","C29 Machinery and equipment n.e.c ","C30 Office, accounting and computing machinery","C31 Electrical machinery and apparatus n.e.c","C32 Radio, television and communication equipment","C33 Medical, precision and optical instruments","C34 Motor vehicles, trailers and semi-trailers","C35 Other transport equipment","C36T37 Manufacturing n.e.c; recycling","C40T41 Electricity, gas and water supply","C45 Construction","C50T52 Wholesale and retail trade; repairs","C55 Hotels and restaurants","C60T63 Transport and storage","C64 Post and telecommunications","C65T67 Finance and insurance","C70 Real estate activities","C71 Renting of machinery and equipment","C72 Computer and related activities","C73 Research and development","C74 Other Business Activities","C75 Public admin. and defence; compulsory social security","C80 Education","C85 Health and social work","C90T93 Other community, social and personal services","Private HH","Total"]
[null,"$2014 USD",1138.4725469369573,20794.013480455229,4312.1405688468203,4638.543428582323,2501.5083082413294,7986.7293253757298,48968.325990852492,13771.408039315686,5914.2417561700067,4453.6397852697164,11244.742028399616,5063.3459117110269,9705.3580508782379,8474.6668897541986,7549.8534410463044,8474.6668897541986,7549.8534410463044,8050.2509503608617,8050.2509503608617,6929.3444698570902,20203.817257386505,3193.2741709481552,5316.9517402535621,1558.5352503984288,7917.4898883699325,13416.047084441163,14321.771708332439,2536.0190272084546,2536.0190272084546,13416.047084441163,4155.5237831384111,4155.5237831384111,1569.6353843528536,4477.3976673108236,2472.759197483897,1569.6353843528536,5630.1741672850358,5630.1741672850358]
[null,"Jobs - PV Years",{"$f":"C143*(pv_dollar_yr/'Default-Data'!$F$19)","v":1159.9576260010283},{"$f":"D143*(pv_dollar_yr/'Default-Data'!$F$19)","v":21186.434909403113},{"$f":"E143*(pv_dollar_yr/'Default-Data'!$F$19)","v":4393.5186234220719},{"$f":"F143*(pv_dollar_yr/'Default-Data'!$F$19)","v":4726.0813077989542},{"$f":"G143*(pv_dollar_yr/'Default-Data'!$F$19)","v":2548.7163888635591},{"$f":"H143*(pv_dollar_yr/'Default-Data'!$F$19)","v":8137.4536546366389},{"$f":"I143*(pv_dollar_yr/'Default-Data'!$F$19)","v":49892.448718606705},{"$f":"J143*(pv_dollar_yr/'Default-Data'!$F$19)","v":14031.299936879961},{"$f":"K143*(pv_dollar_yr/'Default-Data'!$F$19)","v":6025.8544183086033},{"$f":"L143*(pv_dollar_yr/'Default-Data'!$F$19)","v":4537.6881913264597},{"$f":"M143*(pv_dollar_yr/'Default-Data'!$F$19)","v":11456.951073040396},{"$f":"N143*(pv_dollar_yr/'Default-Data'!$F$19)","v":5158.9005981499222},{"$f":"O143*(pv_dollar_yr/'Default-Data'!$F$19)","v":9888.5160775072127},{"$f":"P143*(pv_dollar_yr/'Default-Data'!$F$19)","v":8634.5995017947025},{"$f":"Q143*(pv_dollar_yr/'Default-Data'!$F$19)","v":7692.33311571167},{"$f":"R143*(pv_dollar_yr/'Default-Data'!$F$19)","v":8634.5995017947025},{"$f":"S143*(pv_dollar_yr/'Default-Data'!$F$19)","v":7692.33311571167},{"$f":"T143*(pv_dollar_yr/'Default-Data'!$F$19)","v":8202.1740499731113},{"$f":"U143*(pv_dollar_yr/'Default-Data'!$F$19)","v":8202.1740499731113},{"$f":"V143*(pv_dollar_yr/'Default-Data'!$F$19)","v":7060.1139945132754},{"$f":"W143*(pv_dollar_yr/'Default-Data'!$F$19)","v":20585.100593852436},{"$f":"X143*(pv_dollar_yr/'Default-Data'!$F$19)","v":3253.5371506929587},{"$f":"Y143*(pv_dollar_yr/'Default-Data'!$F$19)","v":5417.2924369410184},{"$f":"Z143*(pv_dollar_yr/'Default-Data'!$F$19)","v":1587.9476882907991},{"$f":"AA143*(pv_dollar_yr/'Default-Data'!$F$19)","v":8066.9075416091637},{"$f":"AB143*(pv_dollar_yr/'Default-Data'!$F$19)","v":13669.232664639856},{"$f":"AC143*(pv_dollar_yr/'Default-Data'!$F$19)","v":14592.04998453591},{"$f":"AD143*(pv_dollar_yr/'Default-Data'!$F$19)","v":2583.8783888190242},{"$f":"AE143*(pv_dollar_yr/'Default-Data'!$F$19)","v":2583.8783888190242},{"$f":"AF143*(pv_dollar_yr/'Default-Data'!$F$19)","v":13669.232664639856},{"$f":"AG143*(pv_dollar_yr/'Default-Data'!$F$19)","v":4233.9461897863075},{"$f":"AH143*(pv_dollar_yr/'Default-Data'!$F$19)","v":4233.9461897863075},{"$f":"AI143*(pv_dollar_yr/'Default-Data'!$F$19)","v":1599.257302268501},{"$f":"AJ143*(pv_dollar_yr/'Default-Data'!$F$19)","v":4561.8944284688132},{"$f":"AK143*(pv_dollar_yr/'Default-Data'!$F$19)","v":2519.4247293030776},{"$f":"AL143*(pv_dollar_yr/'Default-Data'!$F$19)","v":1599.257302268501},{"$f":"AM143*(pv_dollar_yr/'Default-Data'!$F$19)","v":5736.425949512075},{"$f":"AN143*(pv_dollar_yr/'Default-Data'!$F$19)","v":5736.425949512075}]
[null,"Jobs - Wind Years",{"$f":"C143*(wind_dollar_yr/'Default-Data'!$F$19)","v":1420.8015191854779},{"$f":"D143*(wind_dollar_yr/'Default-Data'!$F$19)","v":25950.705638429503},{"$f":"E143*(wind_dollar_yr/'Default-Data'!$F$19)","v":5381.5051470873614},{"$f":"F143*(wind_dollar_yr/'Default-Data'!$F$19)","v":5788.8524127077826},{"$f":"G143*(wind_dollar_yr/'Default-Data'!$F$19)","v":3121.8555196317666},{"$f":"H143*(wind_dollar_yr/'Default-Data'!$F$19)","v":9967.3524753385318},{"$f":"I143*(wind_dollar_yr/'Default-Data'!$F$19)","v":61111.94525240107},{"$f":"J143*(wind_dollar_yr/'Default-Data'!$F$19)","v":17186.569422535507},{"$f":"K143*(wind_dollar_yr/'Default-Data'!$F$19)","v":7380.9102332810553},{"$f":"L143*(wind_dollar_yr/'Default-Data'!$F$19)","v":5558.0946504514141},{"$f":"M143*(wind_dollar_yr/'Default-Data'!$F$19)","v":14033.317359986955},{"$f":"N143*(wind_dollar_yr/'Default-Data'!$F$19)","v":6319.0013521854144},{"$f":"O143*(wind_dollar_yr/'Default-Data'!$F$19)","v":12112.18267847296},{"$f":"P143*(wind_dollar_yr/'Default-Data'!$F$19)","v":10576.293318577837},{"$f":"Q143*(wind_dollar_yr/'Default-Data'!$F$19)","v":9422.1360607479746},{"$f":"R143*(wind_dollar_yr/'Default-Data'!$F$19)","v":10576.293318577837},{"$f":"S143*(wind_dollar_yr/'Default-Data'!$F$19)","v":9422.1360607479746},{"$f":"T143*(wind_dollar_yr/'Default-Data'!$F$19)","v":10046.626781533114},{"$f":"U143*(wind_dollar_yr/'Default-Data'!$F$19)","v":10046.626781533114},{"$f":"V143*(wind_dollar_yr/'Default-Data'!$F$19)","v":8647.7475247170987},{"$f":"W143*(wind_dollar_yr/'Default-Data'!$F$19)","v":25214.147086701854},{"$f":"X143*(wind_dollar_yr/'Default-Data'!$F$19)","v":3985.1718914660155},{"$f":"Y143*(wind_dollar_yr/'Default-Data'!$F$19)","v":6635.4987042181629},{"$f":"Z143*(wind_dollar_yr/'Default-Data'!$F$19)","v":1945.0352645111495},{"$f":"AA143*(wind_dollar_yr/'Default-Data'!$F$19)","v":9880.9424011122701},{"$f":"AB143*(wind_dollar_yr/'Default-Data'!$F$19)","v":16743.082764993047},{"$f":"AC143*(wind_dollar_yr/'Default-Data'!$F$19)","v":17873.417374334906},{"$f":"AD143*(wind_dollar_yr/'Default-Data'!$F$19)","v":3164.9245264941601},{"$f":"AE143*(wind_dollar_yr/'Default-Data'!$F$19)","v":3164.9245264941601},{"$f":"AF143*(wind_dollar_yr/'Default-Data'!$F$19)","v":16743.082764993047},{"$f":"AG143*(wind_dollar_yr/'Default-Data'!$F$19)","v":5186.0490795140631},{"$f":"AH143*(wind_dollar_yr/'Default-Data'!$F$19)","v":5186.0490795140631},{"$f":"AI143*(wind_dollar_yr/'Default-Data'!$F$19)","v":1958.8881125469154},{"$f":"AJ143*(wind_dollar_yr/'Default-Data'!$F$19)","v":5587.7442322419038},{"$f":"AK143*(wind_dollar_yr/'Default-Data'!$F$19)","v":3085.9769379748886},{"$f":"AL143*(wind_dollar_yr/'Default-Data'!$F$19)","v":1958.8881125469154},{"$f":"AM143*(wind_dollar_yr/'Default-Data'!$F$19)","v":7026.3969312914624},{"$f":"AN143*(wind_dollar_yr/'Default-Data'!$F$19)","v":7026.3969312914624}]

{"sheet":"Zambia-IO-Data","index":18,"n_rows":182,"n_cols":68,"rows_kept":182,"cut":false,"hidden":false,"merged":[]}
[]
[]
[]
[]
[]
[]
[]
[]
[]
[null,"Direct Requirements (A)",null,null,null,null,null,null,null,null,null,null,null,null,null,null,null,null,null,null,null,null,null,null,null,null,null,null,null,null,null,null,null,null,null,null,null,null,null,null,null,null,null,null,null,null,null,null,null,"LNONE","LPRIM","LSECD","LPOST","HRRS","HRRM","HRRN","HRS","HRM","HRL","HRN","HUSE","HUPR","HUPU","HUEM","KAP-AGR","Labor - total","Value Added (L + K + T)","Avg Wages $2014"]
[null,null,null,"MAIZE","DRSTAP","GRNDNUT","SUGAR","COTTON","TOBAC","COFFEE","WHEAT","HORTI","OTHERCROP","LIVEST","FISH","FOREST","MINING","FOODMFG","TEXTILES","FURNIMFG","INDCHEMMFG","OTHERMFG","ELECWATER","EQUIPMACHIN","CONSTR","TRADETRANS","TOURISM","OTHER","FIRE","PUBLIC","LNONE","LPRIM","LSECD","LPOST","HRRS","HRRM","HRRN","HRS","HRM","HRL","HRN","HUSE","HUPR","HUPU","HUEM",null,null,null,"MAIZE",0.16547460546574863,0.12153230332412067,1.7011120445771962E-2,9.7046498630379441E-3,0,0,0,0,0,0,0,0,0,0,0,3.8318894091527708E-2,{"$f":"SUM(AX11:BA11)","v":0.31372267909867918},0.39483849680684985,{"$f":"TRANSPOSE(D156:AD156)","v":103.69067926364369}]
[null,null,"MAIZE",0.25371014844959039,0,0,0,0,0,0,0,0,0,1.8488746104258942E-3,0,0,0,1.5219150423406698E-2,0,0,0,0,0,0,0,0,0,0,0,0,0,0,0,0,9.8708476627243164E-2,8.0831380643527809E-2,5.7983526802633974E-2,0.13105102457141099,2.5352580495916488E-2,2.7342995890527505E-3,4.3739812911658724E-2,1.802320226512959E-2,5.1356239272347635E-3,5.3544594596741735E-3,2.128738007299701E-3,null,null,null,"DRSTAP",0.30773651359876342,0.16661705673800495,7.2984993309356695E-3,1.4534292886336621E-3,0,0,0,0,0,0,0,0,0,0,0,5.0300255517102101E-3,{"$f":"SUM(AX12:BA12)","v":0.48310549895633775},0.53280921607330967,103.69067926364369]
[null,null,"DRSTAP",0,0.13516993206259997,0,0,0,0,0,0,0,0,0,0,0,0,2.0576938571167536E-2,0,0,0,0,0,0,0,0,0,0,0,0,0,0,0,0,8.9918398059255555E-2,1.3181667723906594E-2,7.2258338504213801E-2,7.0961409351064916E-2,1.9608140384922645E-3,6.0898975010414535E-4,2.2424420544546339E-2,6.1970192204144504E-3,1.7270459118982253E-3,1.1804336549473471E-3,3.6589540053194011E-4,null,null,null,"GRNDNUT",0.23238240054327586,0.11511492642724194,7.5949592194879895E-3,1.6834740941631093E-2,0,0,0,0,0,0,0,0,0,0,0,2.2286056260523258E-2,0.37192702713163694,0.45105417566227013,103.69067926364369]
[null,null,"GRNDNUT",0,0,0.43004569930885728,0,0,0,0,0,0,0,0,0,0,0,9.459376568047231E-3,0,0,0,1.4777575967882592E-4,0,0,0,0,0,0,0,3.5694997027861632E-5,0,0,0,0,2.0145810097091096E-2,2.9381270363054407E-2,4.2234196166471673E-4,1.4735328253537487E-2,3.2633832357764365E-3,7.9172018611859286E-3,4.7230010127606982E-4,3.8864814856110139E-2,1.2738230541037162E-3,1.4316861893330496E-3,1.4049554055340643E-4,null,null,null,"SUGAR",3.2392339624203063E-2,4.1233141166720097E-2,1.057520193711904E-2,6.775829678761224E-3,0,0,0,0,0,0,0,0,0,0,0,0.1368390128978659,9.097651240680342E-2,0.27140068842246767,103.69067926364364]
[null,null,"SUGAR",0,0,0,0.48543694343636468,0,0,0,0,0,0,0,0,0,0,6.9534599745760366E-3,0,0,0,0,0,0,0,0,0,0,0,0,0,0,0,0,0,0,0,0,0,0,0,0,0,0,0,null,null,null,"COTTON",7.6624701956543445E-2,6.363729108781449E-2,8.2386180542847257E-3,2.2092206828355134E-3,0,0,0,0,0,0,0,0,0,0,0,3.6325188820827498E-2,0.15070983178147818,0.22202332930617175,103.69067926364369]
[null,null,"COTTON",0,0,0,0,0.28364708600178279,0,0,0,0,0,0,0,0,0,7.1184022416877628E-5,7.9234572293767944E-2,0,0,0,0,0,0,0,0,0,0,0,0,0,0,0,0,0,0,0,0,0,0,0,0,0,0,null,null,null,"TOBAC",0.17923432165735007,1.6772996405259703E-2,3.6023845986327204E-3,1.0352184096205719E-3,0,0,0,0,0,0,0,0,0,0,0,5.4639459926516303E-2,0.20064492107086304,0.28724810781054666,103.69067926364369]
[null,null,"TOBAC",0,0,0,0,0,0.40791972127919351,0,0,0,0,0,0,0,0,6.6102445239219201E-3,0,1.2716224065821523E-3,0,0,0,0,0,0,0,0,0,0,0,0,0,0,0,0,0,0,0,0,0,0,0,0,0,null,null,null,"COFFEE",9.0204972868852235E-2,0.1154929717176304,2.9366741082831868E-2,1.8792570024583389E-2,0,0,0,0,0,0,0,0,0,0,0,7.601688310594999E-3,0.25385725569389789,0.31921808344135122,103.69067926364369]
[null,null,"COFFEE",0,0,0,0,0,0,0.32800322568984219,0,0,0,0,0,0,0,4.7681378353613161E-3,0,0,0,0,0,0,0,0,0,0,0,0,0,0,0,0,0,0,0,0,0,0,0,0,0,0,0,null,null,null,"WHEAT",4.6579483662539604E-2,5.9323359298057869E-2,1.5205589824093991E-2,9.7417219294778784E-3,0,0,0,0,0,0,0,0,0,0,0,3.3614212896365361E-2,0.13085015471416933,0.21606289377121429,103.69067926364369]
[null,null,"WHEAT",0,0,0,0,0,0,0,0.27572791901566368,0,0,0,0,0,0,2.8804745459880394E-2,0,0,0,0,0,0,0,0,0,0,0,0,0,0,0,0,0,0,0,0,0,0,0,0,0,0,0,null,null,null,"HORTI",0.23799190338934736,9.412058204836711E-2,3.6321887420479995E-2,3.7692909503155556E-2,0,0,0,0,0,0,0,0,0,0,0,5.382406511626029E-2,0.40612728236135004,0.48206774989347195,103.69067926364369]
[null,null,"HORTI",0,0,0,0,0,0,0,0,0.18334187299727578,0,0,0,0,0,1.8381054939382749E-3,0,0,0,4.0558078638125455E-4,0,0,0,0,0,0,0,9.6361618680549399E-5,0,0,0,0,7.0854067498596407E-2,3.7828956335941119E-2,4.802332294617874E-2,0.19529688133145107,1.5225706899198589E-2,5.2627030730098813E-2,3.99520156791821E-2,6.6332426527508953E-2,5.7048615054953074E-2,4.1815078987624411E-2,1.2839300455106761E-2,null,null,null,"OTHERCROP",0.2474918343681469,0.15879406774354882,2.204392019830851E-2,4.4136235896238196E-3,0,0,0,0,0,0,0,0,0,0,0,8.6212375401814364E-3,0.43274344589962804,0.46038809538516151,103.69067926364369]
[null,null,"OTHERCROP",0,0,0,0,0,0,0,0,0,0.22747657843581814,0,0,0,0,5.9706366627923736E-3,0,0,0,2.9186579812729904E-4,0,0,0,0,0,0,0,6.9373537956844193E-5,0,0,0,0,6.46935546077234E-2,7.5664583324574347E-2,2.6586994679617258E-2,6.9270834956700389E-2,5.2134316727368022E-3,1.3872385749054632E-2,1.8187015793386673E-2,4.039070112884121E-2,3.5316117632164912E-2,1.780728954893071E-2,6.2961405554232252E-3,null,null,null,"LIVEST",9.7064858639975965E-2,6.7858240556195923E-2,1.6284411819309442E-2,1.2294949349766011E-2,0,0,0,0,0,0,0,0,0,0,0,0.10350818747556717,0.19350246036524735,0.30086181735290085,103.69067926364369]
[null,null,"LIVEST",0,0,0,0,0,0,0,0,0,0,0.24083492452946634,0,0,0,3.1479718032854917E-2,0,2.0056876142951757E-5,0,3.382622698141003E-4,0,0,0,0,0,0,0,2.8129218894582162E-5,0,0,0,0,0.1883218677217201,8.4637108092161323E-2,1.9745550128025903E-2,0.11336965685728198,2.6265306211931592E-2,1.9868179436689389E-2,1.3115586368444072E-2,2.5921205858683599E-2,2.574694770212561E-2,1.5340414087155481E-2,4.9670223165006562E-3,null,null,null,"FISH",1.8766530164744596E-2,1.6766323251071857E-2,2.28759457266981E-3,9.7358865484022962E-4,0,0,0,0,0,0,0,0,0,0,0,5.0936881555182036E-2,3.8794036643326493E-2,9.1248783504656789E-2,103.69067926364369]
[null,null,"FISH",0,0,0,0,0,0,0,0,0,0,0,0.39024725712225705,0,0,8.8801961631560553E-2,0,0,0,0,0,0,0,0,4.244395918271221E-3,0,0,0,0,0,0,0,1.304637524686294E-2,6.0452072105081085E-4,1.0812416706129558E-2,1.1145727330509014E-2,1.8169385496099151E-4,4.846484822558821E-4,3.8779296893110631E-3,1.1178587608658773E-3,4.5881325493875407E-5,6.6812371270580506E-5,2.6126055155305399E-6,null,null,null,"FOREST",6.8579813296839154E-2,5.1352508814521046E-2,3.1946908407579883E-2,3.00339866988137E-2,0,0,0,0,0,0,0,0,0,0,0,0.13395595615952841,0.18191321721775378,0.32054581216219258,103.69067926364369]
[null,null,"FOREST",0,0,0,0,0,0,0,0,0,0,0,0,0.40713074751887068,3.5039445988749702E-3,0,0,2.4487853060024194E-2,0,0,0,2.0818331926198067E-4,0,1.297706450113996E-3,0,0,0,0,0,0,0,0,0,0,0,0,0,0,0,0,0,0,0,null,null,null,"MINING",2.0225064998570958E-4,4.1277382032826404E-3,3.107228890093927E-3,1.4730876965835108E-3,0,0,0,0,0,0,0,0,0,0,0,0,8.9103054399457884E-3,0.2443122122186287,1139.1639334776073]
[null,null,"MINING",0,0,0,0,0,0,0,0,0,0,0,0,0,0.43502077967156888,2.0041542117288425E-3,0,0,7.8356487355077809E-5,4.2833051060158937E-2,0,5.7773543847990062E-4,3.1755157449624462E-2,0,0,0,0,0,0,0,0,0,0,0,0,0,0,0,0,0,0,0,0,null,null,null,"FOODMFG",2.0793764138150553E-2,1.8769047946097465E-2,5.5557540007868025E-3,6.7973828722273999E-3,0,0,0,0,0,0,0,0,0,0,0,0,5.1915948957262217E-2,0.11213204107571055,267.25067895606037]
[null,null,"FOODMFG",0,0,0,0,0,0,0,0,0,0,0.20410247658750416,0,0,0,0.35698549874119195,3.3384313277515031E-5,5.0770915057845602E-4,0,3.0277911628303537E-4,0,0,0,0,4.0326877925057202E-2,0,0,1.6056672103689176E-2,0,0,0,0,0.13544519289458662,0.10463921240745981,0.31255939853035769,0.14441946591089461,4.4184749179347928E-2,1.1428179841481523E-2,0.136691868419519,0.22682543478809106,0.2578647307908587,0.13792661827959152,4.6215429660028645E-2,null,null,null,"TEXTILES",6.5678953953105478E-4,1.3533111592100397E-2,7.8482202239652764E-3,5.8489166296849197E-3,0,0,0,0,0,0,0,0,0,0,0,0,2.7887037985281644E-2,0.10148505152333756,267.25067895606043]
[null,null,"TEXTILES",2.4627289539160595E-2,2.1631400070905232E-2,1.0008368536222209E-2,0,1.2494819014989373E-3,1.1439395395352379E-2,0,6.2793056691383123E-3,3.6085964634308804E-3,8.8755535669111308E-5,0,0,0,2.3647447923731105E-3,8.9811527394297805E-3,0.45388780763585174,2.8787260592341738E-3,0,2.7161626320937245E-4,1.5688414827696458E-4,3.9194952641269078E-4,1.0118554063526099E-2,8.2718515765971747E-3,1.0205974979974432E-3,1.411851177064644E-3,1.6626069100109903E-2,4.6820253310719678E-3,0,0,0,0,3.6151772981559423E-2,3.8357147459270199E-2,4.2125395838774796E-2,3.9633528452051418E-2,1.8876267934075645E-2,3.5145304139390121E-3,3.5012207836563974E-2,5.3134337822291398E-2,6.411048573887039E-2,3.8502895999158113E-2,9.0016286699412442E-3,null,null,null,"FURNIMFG",3.0395438191422753E-3,1.8612822927086298E-2,1.729816885300384E-2,1.8001407355483008E-2,0,0,0,0,0,0,0,0,0,0,0,0,5.6951942954715416E-2,0.1837365053970062,267.25067895606037]
[null,null,"FURNIMFG",0,0,0,0,0,0,0,0,0,2.2349583291687539E-3,0,1.9150445758806027E-2,6.6245623021246425E-2,5.9240949697826149E-3,9.1682103704246662E-3,5.4096335710727181E-2,0.40604591317732813,4.9945876973098158E-4,2.6794054608980346E-2,4.2773984986836964E-4,1.6905932187053182E-4,2.1427690740577238E-2,1.0476000596040647E-2,1.4078385933963408E-3,3.0944027857925938E-2,3.948648011080416E-3,2.5608671914201027E-2,0,0,0,0,3.4417844683637721E-3,1.1310239955915999E-3,1.5159878977650585E-2,6.8673182073591002E-3,7.2523763134132763E-4,1.1345937767019821E-4,1.2882220426459043E-2,1.6711906131047526E-2,1.3714121707811455E-2,4.5052924526568098E-3,1.0508783095935195E-3,null,null,null,"INDCHEMMFG",2.9348560805022186E-3,1.126475890064896E-2,1.7236834058878138E-2,4.5601389377218577E-3,0,0,0,0,0,0,0,0,0,0,0,0,3.5996587977751175E-2,0.18636737370790524,267.25067895606037]
[null,null,"INDCHEMMFG",0.1159601444596763,4.9221674302286971E-3,4.9421011846526499E-3,6.4674423183745985E-2,4.4182919760958693E-2,9.2605008365294006E-2,2.3259926801298385E-2,1.7769898891689829E-2,4.8716825970282963E-2,4.2670748416695867E-2,1.0053499072916344E-3,0,0,6.5377760697146363E-3,1.3237029116418324E-4,2.0176353048427342E-3,0,0.12267701183781402,9.2297088418251058E-3,4.0542770047662987E-3,9.0876783808871637E-4,1.9226987377142304E-3,4.0832621532258025E-3,0,0,0,0,0,0,0,0,0,0,0,0,0,0,0,0,0,0,0,null,null,null,"OTHERMFG",2.3016425126308696E-4,1.5933718104913785E-3,1.1310764919753948E-3,6.5911657272527872E-4,0,0,0,0,0,0,0,0,0,0,0,0,3.6137291264551389E-3,0.10732166024291469,267.25067895606037]
[null,null,"OTHERMFG",0,0,0,0,4.496090794755373E-3,0,4.8032627833303441E-3,1.7853866877274478E-2,1.1324415087445518E-3,7.0299355100374194E-4,8.4926747490518574E-3,8.5040006691521855E-2,3.1785863326046471E-3,5.5081297780125868E-2,7.0702238431350076E-3,7.9519581053679386E-3,1.8056686495201268E-2,1.3531453130372513E-3,0.26342129468742947,9.8806901407148526E-2,4.771740245787668E-3,0.15829736027110927,5.1565960657126986E-2,2.7347857924608409E-3,1.9883925313206822E-2,7.317999276262149E-3,2.7408904004433313E-2,0,0,0,0,3.323108430192942E-2,4.6868607126200806E-2,4.6346808136696192E-2,3.7872101178486155E-2,2.1442900165201909E-2,5.7279325480056244E-2,3.7177351754168642E-2,9.1892101537474874E-2,9.5799182025450666E-2,5.5030272231975062E-2,4.344641260467292E-2,null,null,null,"ELECWATER",1.2061238892338783E-3,2.4759704628545547E-3,6.3084860709790146E-3,3.2049019614760724E-3,0,0,0,0,0,0,0,0,0,0,0,0,1.319548238454352E-2,0.26655932816568229,592.76185448308138]
[null,null,"ELECWATER",1.4561535973589456E-2,6.8022444248401796E-4,0,0,1.6923291476550122E-2,6.683573480010559E-3,3.1073268075311532E-3,1.5042545947619232E-2,7.0343758348628896E-3,1.9079251056972806E-4,1.2537353340741316E-3,0,1.675129233258139E-3,9.11705061076978E-3,2.8705129860462143E-3,4.2329729644754024E-2,1.8069292364834848E-3,7.2708165490033084E-3,3.0196255415778063E-2,0.50412404733612159,3.1074597840802687E-4,8.7880452025320965E-3,2.5508302287952107E-3,1.183586285572191E-3,3.0638314173479113E-2,2.5297003776002841E-3,1.0936866515557274E-2,0,0,0,0,5.4271980385264083E-5,7.6733863965804754E-5,1.1060362612737031E-3,1.6420015890178203E-3,9.6316510360484257E-4,4.6327722006746274E-3,2.7183130379592291E-3,2.4298153660121096E-2,2.389785575727562E-2,1.6769665666883527E-2,1.1538514505598443E-2,null,null,null,"EQUIPMACHIN",2.6292766195088624E-3,1.2821272659734621E-2,5.460566856534484E-3,7.3439218321585901E-3,0,0,0,0,0,0,0,0,0,0,0,0,2.8255037967936554E-2,0.12599400530786029,267.25067895606037]
[null,null,"EQUIPMACHIN",0,0,0,0,0,0,0,0,0,1.0343070849284338E-3,2.8021714970822259E-2,0.13915544801784793,1.8792683524546968E-3,8.0316262228892946E-2,5.0036694790258429E-3,9.9823430033109655E-3,3.3044510841625102E-3,8.3818225109962778E-4,4.197013599562616E-3,7.6262659247993692E-2,0.1696253082026952,9.2972807384074402E-2,1.7754589497729463E-2,2.5956257225251984E-3,1.6046862979984051E-2,5.9968253322444411E-3,2.9836512343799481E-2,0,0,0,0,0,0,0,0,0,0,0,0,0,0,0,null,null,null,"CONSTR",3.2844249664710705E-3,9.2979827748593119E-3,4.7292604130372553E-3,9.372268161686334E-3,0,0,0,0,0,0,0,0,0,0,0,0,2.6683936316053973E-2,6.0665831734038042E-2,288.61939127378798]
[null,null,"CONSTR",0,0,0,0,0,0,0,0,0,6.1659518298731904E-4,3.7704462319227089E-4,0,0,4.329709453558853E-3,1.4801707755135211E-3,9.2867894249186705E-4,2.7563864927217293E-3,7.3400176451072959E-5,2.5837911504615857E-4,1.6081112111689999E-2,1.2963846020217732E-4,0.53614821775653509,7.8604155481977935E-3,1.0774443701951533E-3,3.4356040122593659E-3,5.9310421821323752E-3,0.11581130762990384,0,0,0,0,1.5538989863204159E-3,6.8227039444267428E-5,8.0598479779982212E-4,2.6984200698953751E-3,5.3533289380990805E-4,3.5556180394788759E-3,1.2491562874578975E-3,1.0164517738209587E-2,3.9293907388320221E-3,4.1002982582455634E-3,1.0067499064125545E-3,null,null,null,"TRADETRANS",6.8873058020527556E-3,3.4960116280276655E-2,2.4672276312427549E-2,1.671032339915296E-2,0,0,0,0,0,0,0,0,0,0,0,0,8.3230021793909925E-2,0.22607141540817993,403.26506307033719]
[null,null,"TRADETRANS",1.9115871053068636E-2,1.4225022683655265E-2,5.8482495177247101E-3,0,5.443177544224259E-3,2.4643755313133362E-3,7.2393314008176645E-4,3.7611210765360671E-3,1.6712552696532216E-3,7.3050389871079976E-4,4.505559214327725E-3,7.2250042963135613E-2,8.4577152596467724E-4,3.2342708813624253E-3,9.5158442519223466E-3,6.6541051923164705E-3,8.6228285345002695E-3,6.197302026278822E-3,1.9417098368185593E-3,1.3804667140571377E-2,4.6190340097712291E-3,1.3431361294681863E-2,0.51678583906114417,1.8901472500548783E-3,2.3412018277239027E-3,4.7218888633742066E-2,1.475073321996029E-2,0,0,0,0,2.5533636839079457E-2,3.4676588945811188E-2,2.6545848278434651E-2,3.078598880168032E-2,1.6351288650488665E-2,2.8450173730964496E-2,2.2237447365646694E-2,7.0832525934745427E-2,6.6791064078323137E-2,4.3297690428629007E-2,2.4808228869852407E-2,null,null,null,"TOURISM",1.7951367712221035E-2,0.15203936499189732,5.481574753006984E-2,8.1515691034939594E-2,0,0,0,0,0,0,0,0,0,0,0,0,0.30632217126912781,0.43707898024884495,346.21128990664289]
[null,null,"TOURISM",0,0,0,0,0,0,0,0,0,0,0,0,0,0,0,0,0,0,3.5916339141733082E-5,0,0,0,1.5073260994304628E-3,0.5,0,0,2.1228980913002776E-4,0,0,0,0,0,0,0,0,0,0,0,0,0,0,0,null,null,null,"OTHER",4.3725300522168477E-2,0.10654177218761059,4.6308182112147267E-2,9.6263619603165193E-2,0,0,0,0,0,0,0,0,0,0,0,0,0.29283887442509154,0.36599151791447643,430.34668779022553]
[null,null,"OTHER",0,0,0,1.792815552618969E-2,0,0,0,0,0,0,3.6430992019599851E-3,0,0,2.2327583856009384E-3,0,0,0,0,0,0,0,0,1.7152480065472826E-2,4.9572357437555287E-4,0.51376968940004653,9.3744608437532628E-3,4.6504413432184321E-4,0,0,0,0,1.228953818748154E-3,1.1150055299243135E-3,3.3822141894655896E-3,1.9232907571446352E-3,1.3947188036826815E-3,1.6907919674222362E-2,4.3822335513284899E-3,1.3772058420680335E-2,1.9598583104063632E-2,1.1676940247057599E-2,1.0727254375221918E-2,null,null,null,"FIRE",2.3789709694325527E-3,6.5131844207530461E-3,2.1392232536145958E-2,1.9357748024198696E-2,0,0,0,0,0,0,0,0,0,0,0,0,4.9642135950530256E-2,0.20832866456119223,1012.1435360883756]
[null,null,"FIRE",0,0,0,0,0,7.7604710010880391E-3,0,0,0,0,0,4.6602978926037521E-2,1.5818059548773694E-3,7.0340766414638154E-3,1.2645449939189842E-2,1.4092658585177626E-2,6.6070101815912871E-3,3.855040684335548E-3,4.2774345057198385E-3,1.9722383587880959E-2,1.5381622958577318E-3,6.3796806816035445E-2,9.6651868420777595E-2,5.9439968212490766E-3,1.3423381118535398E-2,0.56934743273539057,3.1068475097476213E-2,0,0,0,0,2.3255146463313316E-4,2.6340844403775169E-5,2.0147801500408555E-3,7.0523057276528328E-4,8.5294183911847462E-5,3.8009757026884222E-5,3.688008800474409E-3,3.2125492510664634E-2,5.3705091027573648E-2,1.301350769296639E-2,1.110706959954161E-2,null,null,null,"PUBLIC",5.7257571821737333E-3,2.0031738796976492E-2,4.2693596668400204E-2,7.0853105817111586E-2,0,0,0,0,0,0,0,0,0,0,0,0,0.13930419846466202,0.21415943308557375,430.34668779022564]
[null,null,"PUBLIC",0,0,0,0,0,0,0,0,0,0,0,0,1.3940480368518582E-4,3.1259852526966251E-5,1.1867689021294258E-3,0,1.8060981316932956E-5,0,1.1832438587190077E-4,0,0,6.754685495516836E-4,6.0059984486490238E-4,0,2.1136242252978929E-3,5.896562025749885E-4,0.508773505438322,0,0,0,0,2.0546373408181752E-2,1.9149594886393232E-2,1.5809158616407734E-2,2.8806102645308689E-2,1.0922306488361897E-2,4.0634084535567244E-3,2.1823195846692529E-2,5.3587794311913385E-2,5.8623657339870863E-2,4.5114827421070008E-2,1.8423885484008619E-2,null,null,null,"LNONE",0,0,0,0,0.29182637259338529,1.2479564748614617E-2,5.6446217876656418E-3,0.33608889594388175,1.8533524626787808E-2,2.5905831794986317E-3,1.1792550992547239E-2,4.527898083329044E-2,3.7724873996679169E-2,4.9748216702160203E-2,8.9734095938006947E-4,0,0,0,0]
[null,null,"LNONE",0.16547460546574863,0.30773651359876342,0.23238240054327586,3.2392339624203063E-2,7.6624701956543445E-2,0.17923432165735007,9.0204972868852235E-2,4.6579483662539604E-2,0.23799190338934736,0.2474918343681469,9.7064858639975965E-2,1.8766530164744596E-2,6.8579813296839154E-2,2.0225064998570958E-4,2.0793764138150553E-2,6.5678953953105478E-4,3.0395438191422753E-3,2.9348560805022186E-3,2.3016425126308696E-4,1.2061238892338783E-3,2.6292766195088624E-3,3.2844249664710705E-3,6.8873058020527556E-3,1.7951367712221035E-2,4.3725300522168477E-2,2.3789709694325527E-3,5.7257571821737333E-3,0,0,0,0,0,0,0,0,0,0,0,0,0,0,0,null,null,null,"LPRIM",0,0,0,0,0.18955800685333099,1.8345861987178694E-2,1.1056802560869897E-2,0.22408391291012486,3.0041588646057171E-2,6.0096228690587183E-3,2.3574062284951527E-2,7.2144920191386921E-2,0.14020922257675955,0.18091098294536498,2.7382212551680775E-3,0,0,0,0]
[null,null,"LPRIM",0.12153230332412067,0.16661705673800495,0.11511492642724194,4.1233141166720097E-2,6.363729108781449E-2,1.6772996405259703E-2,0.1154929717176304,5.9323359298057869E-2,9.412058204836711E-2,0.15879406774354882,6.7858240556195923E-2,1.6766323251071857E-2,5.1352508814521046E-2,4.1277382032826404E-3,1.8769047946097465E-2,1.3533111592100397E-2,1.8612822927086298E-2,1.126475890064896E-2,1.5933718104913785E-3,2.4759704628545547E-3,1.2821272659734621E-2,9.2979827748593119E-3,3.4960116280276655E-2,0.15203936499189732,0.10654177218761059,6.5131844207530461E-3,2.0031738796976492E-2,0,0,0,0,0,0,0,0,0,0,0,0,0,0,0,null,null,null,"LSECD",0,0,0,0,3.3110047622838895E-2,2.9697329571709038E-3,9.2444988625834789E-3,6.8702849006342132E-2,2.0838181194752413E-2,3.3749496669404584E-2,1.8097936066523442E-2,8.9443246325563677E-2,0.23662880536157163,0.33191910810050285,3.831269521953188E-2,0,0,0,0]
[null,null,"LSECD",1.7011120445771962E-2,7.2984993309356695E-3,7.5949592194879895E-3,1.057520193711904E-2,8.2386180542847257E-3,3.6023845986327204E-3,2.9366741082831868E-2,1.5205589824093991E-2,3.6321887420479995E-2,2.204392019830851E-2,1.6284411819309442E-2,2.28759457266981E-3,3.1946908407579883E-2,3.107228890093927E-3,5.5557540007868025E-3,7.8482202239652764E-3,1.729816885300384E-2,1.7236834058878138E-2,1.1310764919753948E-3,6.3084860709790146E-3,5.460566856534484E-3,4.7292604130372553E-3,2.4672276312427549E-2,5.481574753006984E-2,4.6308182112147267E-2,2.1392232536145958E-2,4.2693596668400204E-2,0,0,0,0,0,0,0,0,0,0,0,0,0,0,0,null,null,null,"LPOST",0,0,0,0,3.649299126645808E-2,1.852666352986036E-3,5.9005360577528377E-3,4.6932817105745504E-2,3.7235055207033019E-3,4.0341300043746961E-2,8.1183931135669542E-3,5.1337283310158376E-2,0.18882139586304864,0.45224744323608218,2.7338831489857492E-2,0,0,0,0]
[null,null,"LPOST",9.7046498630379441E-3,1.4534292886336621E-3,1.6834740941631093E-2,6.775829678761224E-3,2.2092206828355134E-3,1.0352184096205719E-3,1.8792570024583389E-2,9.7417219294778784E-3,3.7692909503155556E-2,4.4136235896238196E-3,1.2294949349766011E-2,9.7358865484022962E-4,3.00339866988137E-2,1.4730876965835108E-3,6.7973828722273999E-3,5.8489166296849197E-3,1.8001407355483008E-2,4.5601389377218577E-3,6.5911657272527872E-4,3.2049019614760724E-3,7.3439218321585901E-3,9.372268161686334E-3,1.671032339915296E-2,8.1515691034939594E-2,9.6263619603165193E-2,1.9357748024198696E-2,7.0853105817111586E-2,0,0,0,0,0,0,0,0,0,0,0,0,0,0,0,null,null,null,"HRRS",0,0,0,0,1.1329062148181811E-2,0,5.8176800525920916E-5,6.4538059841840573E-4,0,0,7.0613697757545654E-5,0,0,0,0,0,0,0,0]
[null,null,"HRRS",0,0,0,0,0,0,0,0,0,0,0,0,0,0,0,0,0,0,0,0,0,0,0,0,0,0,0,0.29182637259338529,0.18955800685333099,3.3110047622838895E-2,3.649299126645808E-2,1.1329062148181811E-2,5.1659218553510985E-3,4.6639784116641386E-3,5.208657015401848E-4,7.8282377321286655E-4,1.7415273869078435E-3,1.0736526303006082E-3,1.0720648442617371E-3,3.2841617933190956E-3,8.345394180674662E-4,8.9425732728277123E-6,null,null,null,"HRRM",0,0,0,0,5.1659218553510985E-3,2.2462377368924411E-3,5.3445417172162722E-4,5.7593568600080207E-3,0,0,6.4822214951076136E-4,4.4067318003425298E-3,0,0,0,0,0,0,0]
[null,null,"HRRM",0,0,0,0,0,0,0,0,0,0,0,0,0,0,0,0,0,0,0,0,0,0,0,0,0,0,0,1.2479564748614617E-2,1.8345861987178694E-2,2.9697329571709038E-3,1.852666352986036E-3,0,2.2462377368924411E-3,0,0,0,0,0,6.4676118415208197E-5,1.3074923767733649E-4,3.8663300424837892E-5,5.5756421969797218E-5,null,null,null,"HRRN",0,0,0,0,4.6639784116641386E-3,0,3.6507984721795149E-3,5.2238533720918787E-3,0,0,5.6583873350342536E-4,0,0,0,0,0,0,0,0]
[null,null,"HRRN",0,0,0,0,0,0,0,0,0,0,0,0,0,0,0,0,0,0,0,0,0,0,0,0,0,0,0,5.6446217876656418E-3,1.1056802560869897E-2,9.2444988625834789E-3,5.9005360577528377E-3,5.8176800525920916E-5,5.3445417172162722E-4,3.6507984721795149E-3,5.2426818991231735E-5,1.0391703396470075E-4,1.719936220718856E-4,1.1184850358256487E-4,2.1267876819464773E-4,3.3409252192578604E-4,9.7996010975976585E-5,1.6190699104844949E-4,null,null,null,"HRS",0,0,0,0,5.208657015401848E-4,0,5.2426818991231735E-5,1.2090106891400309E-2,0,0,6.3638136049530938E-5,0,0,0,0,0,0,0,0]
[null,null,"HRS",0,0,0,0,0,0,0,0,0,0,0,0,0,0,0,0,0,0,0,0,0,0,0,0,0,0,0,0.33608889594388175,0.22408391291012486,6.8702849006342132E-2,4.6932817105745504E-2,6.4538059841840573E-4,5.7593568600080207E-3,5.2238533720918787E-3,1.2090106891400309E-2,8.2272630425796688E-4,1.9535217098063601E-3,1.195778859088528E-3,9.6596772168213601E-4,3.6365133818522205E-3,8.9064953723213083E-4,0,null,null,null,"HRM",0,0,0,0,7.8282377321286655E-4,0,1.0391703396470075E-4,8.2272630425796688E-4,6.3925953422673727E-4,0,1.2546632831845372E-4,7.284999286404837E-4,0,0,0,0,0,0,0]
[null,null,"HRM",0,0,0,0,0,0,0,0,0,0,0,0,0,0,0,0,0,0,0,0,0,0,0,0,0,0,0,1.8533524626787808E-2,3.0041588646057171E-2,2.0838181194752413E-2,3.7235055207033019E-3,0,0,0,0,6.3925953422673727E-4,0,0,1.0383984724331058E-4,2.1118289573205997E-4,6.2241256664259971E-5,9.5859786429812796E-5,null,null,null,"HRL",0,0,0,0,1.7415273869078435E-3,0,1.719936220718856E-4,1.9535217098063601E-3,0,1.8066301513839581E-4,2.0889268067375094E-4,0,0,0,1.5102449582050537E-3,0,0,0,0]
[null,null,"HRL",0,0,0,0,0,0,0,0,0,0,0,0,0,0,0,0,0,0,0,0,0,0,0,0,0,0,0,2.5905831794986317E-3,6.0096228690587183E-3,3.3749496669404584E-2,4.0341300043746961E-2,0,0,0,0,0,1.8066301513839581E-4,0,0,0,0,0,null,null,null,"HRN",0,0,0,0,1.0736526303006082E-3,0,1.1184850358256487E-4,1.195778859088528E-3,0,0,1.0125607919705801E-3,3.7101081614523469E-3,0,0,0,0,0,0,0]
[null,null,"HRN",0,0,0,0,0,0,0,0,0,0,0,0,0,0,0,0,0,0,0,0,0,0,0,0,0,0,0,1.1792550992547239E-2,2.3574062284951527E-2,1.8097936066523442E-2,8.1183931135669542E-3,7.0613697757545654E-5,6.4822214951076136E-4,5.6583873350342536E-4,6.3638136049530938E-5,1.2546632831845372E-4,2.0889268067375094E-4,1.0125607919705801E-3,2.555362307358066E-4,4.052012908540501E-4,1.1846777591330697E-4,2.1044862784638191E-4,null,null,null,"HUSE",0,0,0,0,1.0720648442617371E-3,6.4676118415208197E-5,2.1267876819464773E-4,9.6596772168213601E-4,1.0383984724331058E-4,0,2.555362307358066E-4,7.9056912685409406E-3,0,0,0,0,0,0,0]
[null,null,"HUSE",0,0,0,0,0,0,0,0,0,0,0,0,0,0,0,0,0,0,0,0,0,0,0,0,0,0,0,4.527898083329044E-2,7.2144920191386921E-2,8.9443246325563677E-2,5.1337283310158376E-2,0,4.4067318003425298E-3,0,0,7.284999286404837E-4,0,3.7101081614523469E-3,7.9056912685409406E-3,0,0,0,null,null,null,"HUPR",0,0,0,0,3.2841617933190956E-3,1.3074923767733649E-4,3.3409252192578604E-4,3.6365133818522205E-3,2.1118289573205997E-4,0,4.052012908540501E-4,0,5.7387165927116016E-3,0,0,0,0,0,0]
[null,null,"HUPR",0,0,0,0,0,0,0,0,0,0,0,0,0,0,0,0,0,0,0,0,0,0,0,0,0,0,0,3.7724873996679169E-2,0.14020922257675955,0.23662880536157163,0.18882139586304864,0,0,0,0,0,0,0,0,5.7387165927116016E-3,8.7144041691802215E-4,1.2344587260635577E-4,null,null,null,"HUPU",0,0,0,0,8.345394180674662E-4,3.8663300424837892E-5,9.7996010975976585E-5,8.9064953723213083E-4,6.2241256664259971E-5,0,1.1846777591330697E-4,0,8.7144041691802215E-4,6.4299466090143656E-3,0,0,0,0,0]
[null,null,"HUPU",0,0,0,0,0,0,0,0,0,0,0,0,0,0,0,0,0,0,0,0,0,0,0,0,0,0,0,4.9748216702160203E-2,0.18091098294536498,0.33191910810050285,0.45224744323608218,0,0,0,0,0,0,0,0,0,6.4299466090143656E-3,4.5824291059362913E-4,null,null,null,"HUEM",0,0,0,0,8.9425732728277123E-6,5.5756421969797218E-5,1.6190699104844949E-4,0,9.5859786429812796E-5,0,2.1044862784638191E-4,0,1.2344587260635577E-4,4.5824291059362913E-4,5.568358531708022E-5,0,0,0,0]
[null,null,"HUEM",0,0,0,0,0,0,0,0,0,0,0,0,0,0,0,0,0,0,0,0,0,0,0,0,0,0,0,8.9734095938006947E-4,2.7382212551680775E-3,3.831269521953188E-2,2.7338831489857492E-2,0,0,0,0,0,1.5102449582050537E-3,0,0,0,0,5.568358531708022E-5]
[null,null,"KAP-AGR",3.8318894091527708E-2,5.0300255517102101E-3,2.2286056260523258E-2,0.1368390128978659,3.6325188820827498E-2,5.4639459926516303E-2,7.601688310594999E-3,3.3614212896365361E-2,5.382406511626029E-2,8.6212375401814364E-3,0.10350818747556717,5.0936881555182036E-2,0.13395595615952841,0,0,0,0,0,0,0,0,0,0,0,0,0,0,0,0,0,0,0,0,0,0,0,0,0,0,0,0,0]
[null,null,"KAP-MIN",0,0,0,0,0,0,0,0,0,0,0,0,0,0.17453514194120548,0,0,0,0,0,0,0,0,0,0,0,0,0,0,0,0,0,0,0,0,0,0,0,0,0,0,0,0]
[null,null,"KAP-OTH",0,0,0,0,0,0,0,0,0,0,0,0,0,4.724106855363349E-2,3.149914280101411E-2,4.6915221085864323E-2,0.10865005219257763,4.9890138356257427E-2,4.071657334618365E-2,0.25020433611214182,2.331860576230264E-2,3.0048676511353876E-2,0.14109345260590761,0.12188145584208615,7.0074952189241785E-2,0.15805694124531972,7.4565589479124714E-2,0,0,0,0,0,0,0,0,0,0,0,0,0,0,0]
[null,null,"LAND",4.0906117243312987E-2,4.4031104966337602E-2,5.5250607245028525E-2,2.7227787316301242E-2,2.1877683173676454E-2,2.6035599803691255E-2,3.16047904365966E-2,3.5974998232830166E-2,8.3417360298986588E-3,1.6804129359492197E-2,0,0,0,0,0,0,0,0,0,0,0,0,0,0,0,0,0,0,0,0,0,0,0,0,0,0,0,0,0,0,0,0]
[null,null,"ENTR-MIN",0,0,0,0,0,0,0,0,0,0,0,0,0,0,0,0,0,0,0,0,0,0,0,0,0,0,0,0,0,0,0,0,0,0,0,0,0,0,0,0,0,0]
[null,null,"ENTR-OTH",0,0,0,0,0,0,0,0,0,0,0,0,0,0,0,0,0,0,0,0,0,0,0,0,0,0,0,0,0,0,0,0,0,0,0,0,0,0,0,0,0,0]
[null,null,"DIRTAX",0,0,0,0,0,0,0,0,0,0,0,0,0,0,0,0,0,0,0,0,0,0,0,0,0,0,0,0,0,0,0,0,0,0,0,0,3.2749169383102239E-2,0,5.4567456801817987E-2,0.14233750025831926,5.2137379507843279E-2,6.0486643400037059E-2]
[null,null,"VATTAX",1.4179228807245606E-3,0,1.3325794000833252E-3,1.4138549213306929E-3,1.4194220899538942E-3,2.6405572979408477E-3,3.0450417165110819E-3,2.0716242946430146E-3,6.0677957266695671E-4,3.8782460005110895E-4,2.7298056950517103E-3,5.9565844852571949E-4,3.215173787754134E-3,8.7016367195450785E-3,1.787536449390242E-3,7.0700114445458352E-3,4.2971949961605489E-3,6.1372629120780694E-3,7.0608385843591148E-3,3.1595096689969243E-3,8.9886269914776773E-3,2.7988758271069369E-3,1.7479410083624065E-3,8.8753531376309681E-3,3.0776913001430693E-3,6.2958736534227122E-4,1.6969196631086184E-4,0,0,0,0,0,0,0,0,0,0,0,0,0,0,0]
[null,null,"INDTAX",4.7288349260540558E-4,6.42586598924086E-4,2.5790562499810726E-4,3.0242671421906145E-4,3.3683935187997955E-4,6.1971602449413575E-4,7.1779493588532129E-4,3.4645407445357476E-4,3.1912395131424584E-4,5.4100407553131231E-4,7.1805381656192459E-4,2.8629096155677683E-4,1.4614649971562697E-3,3.167072901066549E-3,2.0562291504527336E-2,0,4.5664449113460378E-5,1.5209762005367507E-2,1.8527468019573272E-2,0,1.0953254635409705E-4,1.1343430795232568E-3,0,0,0,0,1.1995317547614293E-4,2.1913519145940131E-4,1.6283366878352889E-4,9.4994690782648468E-5,7.0437999488342801E-5,8.6387441159835589E-5,4.3045038204005403E-4,3.0173818822793228E-4,4.0134910735412607E-5,5.744516740284649E-4,8.0111684480639806E-4,1.0946848883830514E-3,7.1326204449632694E-5,1.1426268208783309E-4,2.6499059437999767E-3,2.456297807275433E-2]
[null,null,"TARIFFS",0,0,0,1.4641094165947343E-2,1.1354364088355759E-2,2.6678536870411097E-3,2.239151234786536E-2,1.3205449558752852E-2,1.2848762861981704E-2,1.2904539102773726E-3,4.033100004726654E-4,6.3591589606575916E-4,0,1.7569866632323077E-3,6.3671213635166438E-3,1.9612781007645772E-2,1.3791650804439164E-2,7.9133622456451058E-2,3.7403051166343508E-2,0,6.532220203978932E-2,0,0,0,0,0,0,0,0,0,3.4100472441160336E-3,2.9119948548638769E-3,1.853072364477287E-3,9.412680460325373E-3,1.529782959249221E-3,2.3128923118628568E-2,1.9108994030298256E-3,6.1485274873281537E-4,1.5843136286565053E-4,0,1.4700796437330723E-3,7.605935476801811E-3]
[null,null,"GOV",0,0,0,0,0,0,0,0,0,0,0,0,0,0,0,0,0,0,0,0,0,0,0,0,0,0,0,0,0,0,0,0,0,0,0,0,0,0,0,0,0,0]
[null,null,"ROW",0,0,0,8.2238127475578501E-2,0.1242485863801846,2.2137653116729009E-2,0.12384953170054307,0.22860308938967941,0.1043044985853617,2.7169532279635797E-2,5.4908281761726378E-3,6.5753049251517891E-3,0,1.801214439550005E-2,4.6466149853027848E-2,9.4104957856662022E-2,0.19174872840303642,0.43345778835402921,0.29461313611284945,0,0.407019995347564,0,3.7369854392303045E-2,0,0,0.12279061274391728,0,0,0,0,1.9154026111764585E-2,3.1865390386261773E-2,1.5376657799586023E-2,5.2062408690732503E-2,2.6482484297421036E-2,0.18775743272888556,4.0232543448681726E-2,8.3708581314193113E-3,1.6381639883417819E-3,0,1.5070852482791039E-2,5.5506800869637607E-2]
[null,null,"S-I",0,0,0,0,0,0,0,0,0,0,0,0,0,0,0,0,0,0,0,0,0,0,0,0,0,0,0,0,0,0,0,9.385832315920834E-4,7.0222025880397427E-4,1.7214394932881817E-3,1.4608606088068307E-3,3.2677919118066442E-4,3.0980420180502979E-3,2.0755184187213065E-3,8.2633626088516841E-3,1.2752297610910878E-2,6.2010934212535654E-3,6.540543770270483E-3]
[null,null,"CMMD",0.17718651371806479,0.29056203723681706,9.810140579027303E-2,7.8321661955653515E-2,0.16797821668961485,7.5553164548282301E-2,0.10001571438147112,0.13543613842189017,0.11582143409177391,0.22390949514611422,0.19613336246685503,0.14636111354769288,0.19677785109484569,1.898097299267925E-2,0.19329517658258358,0.11263837770764144,9.9565603210357317E-2,0.14111520317676049,0.14611999435491099,0,0.20266042803279816,0,0,0,0,0,0,8.2108598026346319E-2,7.3629426153153807E-2,3.6133809444669922E-2,1.8241844801985305E-2,4.3080501816126153E-2,5.2478695497167882E-2,4.2043429039472821E-2,1.5689575406162354E-2,0.20848894740865204,0.33156435669635997,0.29900854650175901,3.6464241314542248E-2,1.5384812558171129E-2,1.5881476279080663E-2,0.23090350523052347]
[null,null,"CMME",0,0,0,0,9.269730863089698E-2,7.9521984900314854E-2,9.7018995254550724E-2,3.6812443916514961E-3,1.9461819699645132E-2,1.942158254219409E-3,1.2386346063003885E-3,7.3410049773958328E-4,0,0.10143618229476507,1.6890918559245183E-3,2.0745610313347039E-3,2.5838060221745609E-3,2.5840499445667119E-3,1.3888259944155211E-2,0,1.404572230416162E-3,0,0,0,0,0,0,0,0,0,0,2.3773597860026908E-2,5.5235410136224176E-2,4.078370351790768E-2,4.2645310287430107E-4,3.5033017296443293E-2,2.875940798055786E-3,1.8883188898535606E-3,1.8289296282225298E-4,0,8.4872167700577913E-2,2.0177287249724535E-3]
[null,null,"CMMI",0,0,0,0,3.7110511513361734E-2,6.6665445718754133E-3,0,7.9781976547642991E-2,3.283912968549707E-2,1.0844485989317256E-2,2.1899036696549053E-3,2.6345180451529402E-3,0,2.5304621618111346E-3,8.8198549019277844E-3,1.848784314913833E-2,4.598112323155791E-2,9.3632870721632677E-2,5.2995926955342956E-2,0,7.9670674444525608E-2,0,0,0,0,0,0,0,0,0,0,9.5175403701472441E-3,4.6305348650508785E-3,0,9.2423289063194754E-3,5.9113372543120442E-2,1.6058474958394655E-2,3.3385442690966839E-3,6.5636082848378433E-4,0,2.1172505125745963E-3,1.0535883245951817E-2]
[null,null,"TOTAL",1,1,1,1,1,1,1,1,1,1,1,1,1,1,1,1,1,1,1,1,1,1,1,1,1,1,1,1,1,1,1,1,1,1,1,1,1,1,1,1,1,1]
[]
[null,"Type 1 Inverse"]
[null,null,null,"MAIZE","DRSTAP","GRNDNUT","SUGAR","COTTON","TOBAC","COFFEE","WHEAT","HORTI","OTHERCROP","LIVEST","FISH","FOREST","MINING","FOODMFG","TEXTILES","FURNIMFG","INDCHEMMFG","OTHERMFG","ELECWATER","EQUIPMACHIN","CONSTR","TRADETRANS","TOURISM","OTHER","FIRE","PUBLIC"]
[null,null,"MAIZE",1.3399626214614324,3.7876404724049267E-7,2.4641733359371707E-7,3.0224006751617692E-7,3.7636043748719627E-7,3.1564335887926132E-7,1.9242060553808903E-7,7.3997342489597267E-7,1.3879651754508078E-7,1.3879956554540013E-7,1.1948607502499127E-2,5.7788992392535205E-6,3.6654756811005031E-6,2.7811765311244455E-6,3.2303676217323274E-2,5.910531354039772E-6,2.9169450785493079E-5,2.0706687159359446E-7,2.0565436966365825E-5,5.0758510476885242E-6,2.1772832906964578E-7,1.1345840573088293E-5,1.3725217663127404E-5,2.6058154452529179E-3,7.9277336850809954E-6,4.1684273214480144E-6,1.0639264064405077E-3]
[null,null,"DRSTAP",7.69443300191028E-7,1.1562969558579017,2.8216720847175879E-7,3.4567184102111347E-7,4.1425303013767036E-7,3.5723470687171708E-7,2.0837363568888579E-7,8.051107737284848E-7,1.5401281200692267E-7,1.5764925990448232E-7,1.0082439535050541E-2,6.4193882918261577E-6,4.2223838059297415E-6,3.0371150802580907E-6,3.7500399558369445E-2,6.777152309574178E-6,3.3669837050604603E-5,2.3230135006508287E-7,2.2098552260405451E-5,5.5059075671873011E-6,2.4066763114116257E-7,1.2513959116960078E-5,1.5704890666249376E-5,3.0249983277722287E-3,9.0832547177343986E-6,4.7640079241426225E-6,1.234578481533256E-3]
[null,null,"GRNDNUT",3.9449792050816254E-6,1.4800084603335304E-6,1.7545275623692937,1.2393525748251353E-6,4.8468959835811811E-6,2.0410140818361797E-6,3.1705952614396231E-6,1.1409948192270015E-5,1.5275970628367628E-6,7.3379923061893929E-7,7.0417952083758808E-3,6.1907081547396469E-5,6.6737115457809237E-6,4.0432204096114394E-5,2.6173687260416752E-2,1.9122119723082696E-5,3.6306974150965468E-5,1.769986311794011E-6,3.7363581931759943E-4,8.1733788755550252E-5,2.5948850841495945E-6,1.4009374994315558E-4,5.63800932578989E-5,2.1146828315677059E-3,2.9186059019805785E-5,1.8114054634298204E-5,1.045141910223184E-3]
[null,null,"SUGAR",4.3700760871846475E-7,2.4619878909497391E-7,1.6025770450193554E-7,1.9433966124579392,2.3527623940568083E-7,2.0289251327874665E-7,1.183464255647753E-7,4.5726505629876528E-7,8.7472034223239234E-8,8.9537365612241241E-8,5.7263514935630136E-3,3.6459106553397618E-6,2.3981154292497184E-6,1.7249385345182224E-6,2.1298463360355992E-2,3.8491037923035346E-6,1.9122884001682877E-5,1.3193624204513751E-7,1.2550938421404451E-5,3.1270965634037747E-6,1.3668789624242068E-7,7.1073402652874546E-6,8.9196393204524304E-6,1.7180567889393537E-3,5.1588615075241237E-6,2.7057324566066329E-6,7.0118251709538079E-4]
[null,null,"COTTON",6.8696621081398273E-3,5.1697272370268893E-3,3.6224017954679427E-3,4.7582039630467784E-5,1.3963820031626326,4.0812528845912193E-3,1.4679913177977388E-5,1.8153495716760908E-3,9.2108349195151127E-4,4.2131747360547777E-5,1.1557428622454519E-3,1.4071054871253198E-3,1.7202660388993302E-4,1.1157451590799602E-3,4.0495691752763735E-3,0.20308883012895684,1.2177715790222222E-3,8.4610479503967922E-5,2.9044070466138923E-4,8.3365027190266327E-4,1.4587201090572239E-4,6.0485371803660438E-3,5.4028938044942713E-3,8.9721930458123685E-4,1.0604451620688758E-3,8.5682996436198394E-3,4.307244109029806E-3]
[null,null,"TOBAC",1.7427742276083227E-5,1.1671242101715592E-5,8.0098100297244662E-6,9.2680249508404965E-6,4.0258118695633652E-6,1.6889701299508997,1.5802560370378317E-6,8.7460440835182831E-6,2.799552231042734E-6,1.1331977495459174E-5,4.7584846792513369E-3,1.5844663419681664E-4,4.1036179440045051E-4,6.2973378450186711E-5,1.7684257298081416E-2,3.741423914491687E-4,3.6587249647892341E-3,4.0452862350220214E-6,1.495040046899714E-4,4.8470552895065975E-5,2.8911057445757696E-6,2.496719295083566E-4,1.3690909035134029E-4,1.4418674063636095E-3,2.5141218161371469E-4,7.5944361581704224E-5,8.5085657564296145E-4]
[null,null,"COFFEE",2.2946066867874066E-7,1.292722086448239E-7,8.4146910264952551E-8,1.0308503792862178E-7,1.2353707839679065E-7,1.0653327502323727E-7,1.4881024433260688,2.4009729690846758E-7,4.5929157898220565E-8,4.7013606571673528E-8,3.0067495773259639E-3,1.9143673479062216E-6,1.2591844146103878E-6,9.057177533384085E-7,1.1183236966579723E-2,2.0210584721531577E-6,1.0040900118329546E-5,6.9276089749140009E-8,6.5901523572247974E-6,1.641952346243677E-6,7.1771052600327274E-8,3.7318687758840594E-6,4.6834571344105838E-6,9.0210433812388873E-4,2.7087762032539739E-6,1.4207056499071351E-6,3.6817164284707417E-4]
[null,null,"WHEAT",1.2861420549637519E-6,7.2457918402100769E-7,4.7164893534995369E-7,5.7779837948244217E-7,6.9243340389597289E-7,5.9712597391685118E-7,3.4830129255610708E-7,1.3806979461890705,2.5743593384483566E-7,2.6351433958386132E-7,1.6853028026156413E-2,1.0730154187072373E-5,7.0578109961525516E-6,5.0766072425541514E-6,6.2682774595592544E-2,1.1328164916211596E-5,5.6279901850868332E-5,3.8829701378825968E-7,3.6938234966586225E-5,9.2032502864664211E-6,4.0228144374290615E-7,2.091736855779186E-5,2.6251083542421285E-5,5.0563538139548198E-3,1.5182867776645478E-5,7.963148083684927E-6,2.0636261370512946E-3]
[null,null,"HORTI",6.6009517358158477E-6,2.2965905095971442E-6,1.4302960518235721E-6,1.9441428356898446E-6,8.7696607658608776E-6,3.4658212696721108E-6,5.814438251998987E-6,2.0855694762708284E-5,1.2245053350283606,1.2098202890894482E-6,9.7069658915807579E-4,1.1060942122147534E-4,7.5400320321604534E-6,7.3675174791351289E-5,3.577043353964682E-3,2.8213308322504093E-5,2.7742319815181648E-5,3.1018462180387495E-6,6.8824912925246197E-4,1.4972150088311467E-4,4.6715533778957704E-6,2.5280074508283681E-4,8.8488796390014262E-5,2.9498530074908454E-4,4.4609941262736095E-5,2.8775374809406251E-5,4.6516538898830855E-4]
[null,null,"OTHERCROP",5.2161595905979878E-6,1.8567180538732811E-6,1.1594316583357246E-6,1.5664027891208561E-6,6.7761574105390728E-6,2.7269142688436302E-6,4.4759490393918725E-6,1.6069284501379478E-5,2.1194203438101144E-6,1.2944600951612564,3.2879736803233498E-3,8.5767953761266004E-5,6.8037070167334194E-6,5.6815423306591782E-5,1.2203849739422287E-2,2.3176638556235818E-5,2.9618646724238886E-5,2.4184321692875623E-6,5.2916452681068529E-4,1.1529095233455471E-4,3.6146812597320222E-6,1.9547937289236982E-4,7.1288097775562724E-5,9.8933227642636172E-4,3.6233638227490548E-5,2.3095286527257129E-5,6.6613163294882783E-4]
[null,null,"LIVEST",7.3998428016858286E-6,2.915659402303703E-6,1.8450798500107926E-6,2.407252289250858E-6,8.5988683869287388E-6,3.8170757593182456E-6,5.5795862067689552E-6,2.0146251681642632E-5,2.7414435244253978E-6,1.4845878059730624E-6,1.334823567045698,1.1173868072936645E-4,1.8752912722825483E-5,7.1871826399763565E-5,6.5382609894786017E-2,4.1097328954638326E-5,1.2550974417832741E-4,3.2133180211201532E-6,6.5580555306119154E-4,1.4398941161471206E-4,4.6223211797394679E-6,2.5029719746129787E-4,1.0676928829875428E-4,5.2800994265151157E-3,5.7499702345227224E-5,3.438372582764795E-5,2.3273324331200113E-3]
[null,null,"FISH",5.9753806657288092E-6,3.4157233831847197E-6,2.2055792459611339E-6,2.1820033622925865E-6,2.9462839832775038E-6,2.5326095112395058E-6,1.3508926880899388E-6,5.2375256204572703E-6,1.0760794979949107E-6,1.032792793897329E-6,6.1714875979826958E-2,1.6400542122499058,2.6020817352358242E-5,1.9108204945848565E-5,0.2295398237527502,4.2453440189216873E-5,2.0685814622617462E-4,1.7765795822637935E-6,1.3623005496452513E-4,3.5463547883606948E-5,1.7389092269214338E-6,7.9105004097228805E-5,1.4079591904429245E-4,3.2437999836540041E-2,5.6217666024714506E-5,3.4192389099890587E-5,7.5652770445904134E-3]
[null,null,"FOREST",4.6929258622427724E-4,3.0302896363928973E-4,2.0324872090952625E-4,1.8475358249807745E-4,1.2630832578040569E-4,2.2973005731804689E-4,4.1657777684321174E-5,2.1249109496726854E-4,6.9694671782995023E-5,2.2600217242546829E-4,6.5428616818884405E-4,3.7981215335228108E-3,1.694592903440445,1.1827963941530687E-2,1.9531212605001687E-3,7.2765853623831967E-3,7.0166492242523526E-2,1.1775088946142521E-4,3.3348618289368529E-3,1.2821550753673164E-3,5.1554791748137656E-4,5.9679088301994917E-3,7.2558117880297066E-3,4.9489203118726602E-4,4.8779082230880283E-3,1.9875281389623604E-3,5.7925645478188997E-3]
[null,null,"MINING",1.2091524935405086E-3,4.1020480745694029E-4,2.5587740103677378E-4,3.6576412472205086E-4,1.4738302842360119E-3,6.6229329234642896E-4,9.182614820357765E-4,3.2974366983356254E-3,4.7605014976698787E-4,3.0038286615284343E-4,4.3748779216198821E-3,1.7616582784151694E-2,1.1908711980824897E-3,1.7824603091170808,1.0657141711780069E-2,4.9577841267702295E-3,4.4201879707366871E-3,7.0431598733510946E-4,0.10509816516770565,2.7159222604463459E-2,1.9836778631483333E-3,0.16052570531934343,1.5857444753406159E-2,2.1707994901565778E-3,7.9571752693642413E-3,6.3906169527846732E-3,4.5950049765482413E-2]
[null,null,"FOODMFG",3.2339004136922348E-5,1.821895889272013E-5,1.1859231888570077E-5,1.4528274005406306E-5,1.7410679191083753E-5,1.501425077131552E-5,8.7577549442505408E-6,3.3838075704632433E-5,6.4730188220423631E-6,6.6258554294618925E-6,0.42375579039198819,2.6980106847942852E-4,1.7746296229200444E-4,1.2764719261366167E-4,1.5761077861790074,2.8483756570686918E-4,1.4151127177255004E-3,9.7634150806203348E-6,9.2878211141980607E-4,2.3140830201338647E-4,1.0115042287281081E-5,5.2595035339469184E-4,6.6006231271318022E-4,0.12713793649476499,3.8176095863152635E-4,2.0022693280834361E-4,5.1888214000625106E-2]
[null,null,"TEXTILES",6.2107991813010216E-2,4.6739040379885619E-2,3.2749810626189306E-2,4.301720521177424E-4,3.8154529280042572E-3,3.6898240796028603E-2,1.3271195723849104E-4,1.6412388042479867E-2,8.3274303579663374E-3,3.8090353067883582E-4,1.0068270736186843E-2,1.2721276600606785E-2,1.5551182127599645E-3,1.0087240789063711E-2,3.5195835686780731E-2,1.8361082892969214,1.1008496172193811E-2,7.6494725463499579E-4,2.625014872423326E-3,7.5367520978729431E-3,1.3188071447684951E-3,5.4683828913162716E-2,4.884650251701219E-2,7.9974619066705659E-3,9.5870500049693701E-3,7.7465076002451658E-2,3.8894805232121618E-2]
[null,null,"FURNIMFG",7.946426334569108E-3,5.339541414341193E-3,3.6678011555227453E-3,4.2397643549625906E-3,1.7839532830545713E-3,4.5658558283551906E-3,6.9025799534054371E-4,3.8963470904578379E-3,1.2698513486937896E-3,5.24184052978139E-3,1.27990370228843E-2,7.2371858049840782E-2,0.19014610845069158,2.865749779193957E-2,4.0925770927468026E-2,0.17272382455253799,1.696183273161568,1.8327733361745118E-3,6.4782513641138476E-2,2.1365456338341877E-2,1.2935473483769099E-3,0.11351574525701132,6.0315073633156434E-2,1.0449963190469097E-2,0.11507556057518972,3.4319629443877425E-2,0.12643817470670499]
[null,null,"INDCHEMMFG",0.17826829523795512,7.1108754773975564E-3,1.0298733273708414E-2,0.1433609030600704,7.0861908778547575E-2,0.17886709510591062,3.9651802465458637E-2,2.8852113511054496E-2,6.8246204091842774E-2,6.3020127451564573E-2,5.5891556812775979E-3,4.280645702254479E-3,2.9870164817827127E-4,1.5464181935146547E-2,1.2278512143344359E-2,1.6176516651532254E-2,1.2897190677395064E-3,1.1400732050911644,1.5929446179583022E-2,1.3595705445090641E-2,1.4398761186007443E-3,1.2910815533658162E-2,1.2576351786207791E-2,1.2984286094113728E-3,1.9325771547809348E-3,2.6133091283466817E-3,5.5142601360904262E-3]
[null,null,"OTHERMFG",1.3117097446594459E-2,4.5260294334197185E-3,2.8163302420591745E-3,3.7724666678852045E-3,1.7568780073115103E-2,6.8923074188079747E-3,1.1665491710115499E-2,4.1830883284116722E-2,5.4736585802888666E-3,2.4035997316536398E-3,3.3795032482536624E-2,0.22131250334099467,1.425430205995927E-2,0.14769927523950718,5.862221062925433E-2,5.5468407541590624E-2,4.9397153219840305E-2,6.1905765455392853E-3,1.3815201827438583,0.30031719099583831,9.3533534823360617E-3,0.50575625490684928,0.17431486294582244,1.7677125408331849E-2,8.594303021875517E-2,5.6211351420901404E-2,0.21747801652716955]
[null,null,"ELECWATER",4.8982541482676653E-2,6.514553116825408E-3,3.4835682711165804E-3,6.8998601872316033E-3,5.0360036698022449E-2,2.9528602131153572E-2,1.069384789069578E-2,4.6579618724033871E-2,1.9545024642654653E-2,1.6979176641906592E-3,1.1195101953930271E-2,1.9230415667788235E-2,7.6386121304267782E-3,4.4431788301005033E-2,2.138649096858921E-2,0.16914546428563551,1.1284789371222312E-2,1.7426249304900422E-2,8.7205678692195657E-2,2.0392018375920524,1.6594770418768264E-3,8.1056240486092002E-2,3.5306682300994631E-2,8.3547142162773164E-3,0.13517177058247484,2.8150214851040807E-2,7.5354687252701197E-2]
[null,null,"EQUIPMACHIN",7.487317696688452E-3,2.2601364728362995E-3,1.4108756782283737E-3,2.4695653482252806E-3,5.7182887669093747E-3,4.3316409412102715E-3,1.3160545819749419E-3,5.6415179535363883E-3,2.3051679771671271E-3,2.1966851528505481E-3,6.1492203070081353E-2,0.28895943143154768,5.9963210441419867E-3,0.18066068527494472,5.7904698487045894E-2,4.2137891482674238E-2,1.1189149662063217E-2,3.5000689068541979E-3,2.6673634613130038E-2,0.20263641478591837,1.2051078548601091,0.27477211386117628,6.2429863406369801E-2,1.5391596174319443E-2,5.8253742544046534E-2,3.2257999264549926E-2,0.15083556969475426]
[null,null,"CONSTR",3.2417332518484719E-3,1.1334878362314065E-3,7.0185589036092218E-4,1.0194798606799501E-3,2.2442965067142142E-3,1.9655188867257964E-3,4.800856339705102E-4,2.067411681835597E-3,8.7584708258395619E-4,1.9063407153675006E-3,4.3751835252654036E-3,9.6266317602186277E-3,1.8396658121697074E-3,1.9549060356165698E-2,9.9800077940212627E-3,1.2564287613305216E-2,1.1717215940589108E-2,1.3033726340527872E-3,5.826926998147278E-3,7.4390924113100942E-2,7.4751619691052883E-4,2.168775044915896,4.5797697601140552E-2,6.4711802102070948E-3,2.4558678067719591E-2,3.7273298203091776E-2,0.51815234157184364]
[null,null,"TRADETRANS",5.9984818870421085E-2,3.6213730735565434E-2,2.2727050837931195E-2,3.0178260071371697E-3,1.9144903551878558E-2,1.6312985375960976E-2,3.3159742562771377E-3,1.3745601839369282E-2,6.2232439811736205E-3,3.1736609148595085E-3,3.5720121992559688E-2,0.27562010276720389,7.9654980258007432E-3,2.1131767842543305E-2,8.1963413525463449E-2,4.491299382016211E-2,3.5332767984670256E-2,1.6747745610036547E-2,1.3054732650322641E-2,7.6755596712527685E-2,1.2439069277016979E-2,0.10692449616192011,2.1239014309876336,2.0573582543697361E-2,2.6199626992656603E-2,0.23797549437603011,0.11221805343589537]
[null,null,"TOURISM",1.8182510796760316E-4,1.0952498829080942E-4,6.8734148587456029E-5,9.5050756579525503E-6,5.8995974790255154E-5,4.9705701178199581E-5,1.0838928376200931E-5,4.4460534830248588E-5,1.9160714020913253E-5,9.7444442215861142E-6,1.1060832384967862E-4,8.4712253851505933E-4,2.5258148888055945E-5,7.4441518282089379E-5,2.5303422719200893E-4,1.3947026390596595E-4,1.1015390487236991E-4,5.0952801295639321E-5,1.3876562553649782E-4,2.5315367799756049E-4,3.8184249715333988E-5,3.6025624160010504E-4,6.4169012928342491E-3,2.0000634669189461,8.9000664217926491E-5,7.2291998518354827E-4,1.2188400551998747E-3]
[null,null,"OTHER",2.5115351410937826E-3,1.479767605892154E-3,9.313609567348154E-4,7.1857877999503092E-2,8.3601582267114536E-4,1.3260082609646362E-3,1.5628889301909319E-4,6.3322196074075572E-4,2.8744100761977546E-4,1.475498170517911E-4,1.2073157078126352E-2,1.4573732659840355E-2,5.1581662734592271E-4,9.7447467069643658E-3,6.0635559285393591E-3,3.21805006626724E-3,1.9944828879536456E-3,8.8579941375094414E-4,1.4247774835356903E-3,5.2769756567328354E-3,5.927676690911718E-4,1.1493434553051638E-2,8.4512133062310743E-2,3.6817234721022748E-3,2.0592258206110374,5.447126135468592E-2,1.1210313037275186E-2]
[null,null,"FIRE",2.0205663853692026E-2,1.0383168471903587E-2,6.6559864247172909E-3,4.8236250345716153E-3,7.9724731106016397E-3,3.8762825144662089E-2,1.8168785019214014E-3,6.8948356893480233E-3,3.4057705679043887E-3,1.7728803745303762E-3,3.0052011965835772E-2,0.24727169991862019,1.1856979436051769E-2,4.2184513815289627E-2,9.563792528735876E-2,8.3513029672073344E-2,3.7646050974799318E-2,1.5126620213912085E-2,2.4675440139611513E-2,0.12669772115258138,7.5075562374665242E-3,0.3619478084192429,0.49297171968435438,4.1679515573767784E-2,8.3876659941675563E-2,2.3881158736158805,0.26181518361263656]
[null,null,"PUBLIC",1.1659914557997153E-4,6.610888153857495E-5,4.1665356234854652E-5,3.212435533915712E-4,4.4129941648762698E-5,7.6854944805006237E-5,1.0494569042023744E-5,4.1221100856770124E-5,1.5569077987867991E-5,1.0135578192501768E-5,1.1705504078773239E-3,7.685715258048915E-4,5.2055738433869048E-4,2.9900956924695853E-4,4.0794515573413332E-3,2.0906339103030856E-4,2.1095774815572282E-4,4.5898277157523359E-5,4.0475851905094661E-4,4.4670403689041707E-4,3.039650390208743E-5,3.7360431746629994E-3,3.664024853276656E-3,4.1200241913690532E-4,9.054563359688815E-3,3.4594827499167201E-3,2.0371199842493937]
[]
[null,null,"Total",1.7527442001454785,1.2840992153951851,1.8441906172149152,2.1862514656543572,1.5784465934263869,2.0135522238364083,1.5590493667967857,1.5527813902378076,1.341983953529704,1.3770131131993195,2.1085957009016822,2.8312867735775984,1.9392409591308597,2.3158542763175358,2.5365883474866044,2.652483417059492,1.9488168183753667,1.2048820044869593,1.7365454543743253,2.89858009267087,1.2442048215562191,3.8702232484839012,3.1808993723032009,2.3206179037562324,2.6237605910127493,2.9704181092780479,3.682539692105224]
[]
[null,"Type 2 Inverse"]
[null,null,null,"MAIZE","DRSTAP","GRNDNUT","SUGAR","COTTON","TOBAC","COFFEE","WHEAT","HORTI","OTHERCROP","LIVEST","FISH","FOREST","MINING","FOODMFG","TEXTILES","FURNIMFG","INDCHEMMFG","OTHERMFG","ELECWATER","EQUIPMACHIN","CONSTR","TRADETRANS","TOURISM","OTHER","FIRE","PUBLIC","LNONE","LPRIM","LSECD","LPOST","HRRS","HRRM","HRRN","HRS","HRM","HRL","HRN","HUSE","HUPR","HUPU","HUEM"]
[null,null,"MAIZE",1.3887453020367206,6.7799038558939248E-2,7.6755055586383944E-2,1.9952127444034344E-2,2.428341132495767E-2,4.4344825442384252E-2,3.8447794007123767E-2,1.8655178434876137E-2,5.4477715440593835E-2,6.5143720829430693E-2,4.5280227937141156E-2,1.0991132944017297E-2,2.9518164585678724E-2,2.5180015884624066E-3,5.1316959881482049E-2,8.8965515049611778E-3,8.1920497867871526E-3,3.0382609081027142E-3,1.2336597953086996E-3,3.4899102300409396E-3,2.7631557495578943E-3,7.8883476198622002E-3,1.749865445303787E-2,5.1299669117346541E-2,4.7416335593151983E-2,9.8136034198894901E-3,2.0714970059860366E-2,0.13294562480181882,0.10129867149600875,4.5249348495582611E-2,3.8111823096331196E-2,0.17185637416162775,0.13586885042079722,0.11079430390305704,0.22023654683829638,4.1408270912283808E-2,1.2018727536691183E-2,7.5611731495863782E-2,5.2578108932684629E-2,3.3561430235911863E-2,2.2288833287433744E-2,8.3837125497373214E-3]
[null,null,"DRSTAP",2.9307383010218711E-2,1.1970713358921456,4.6172691878137218E-2,1.1964796819684882E-2,1.4584418345845231E-2,2.6727496074990972E-2,2.3059598189242005E-2,1.1188532250568792E-2,3.276763035311079E-2,3.9152480004317286E-2,3.0105755812178801E-2,6.5924829989800178E-3,1.7719324221075989E-2,1.5055647958864239E-3,4.8917952637921182E-2,5.3274358856481019E-3,4.9151152142922769E-3,1.8109702736834887E-3,7.4711863151233793E-4,2.0867152691699999E-3,1.6529805900565866E-3,4.7266764950940872E-3,1.0464247265470725E-2,3.214519662562839E-2,2.8419900810138208E-2,5.8657942724937382E-3,1.2997838379951023E-2,8.0211719216999419E-2,6.0479588167098218E-2,2.661995952633199E-2,2.3094215119923336E-2,0.13107614814844909,3.3871560341253833E-2,0.10933352403320681,0.11160026903469243,7.6114396810902469E-3,6.0037107425513258E-3,3.8658431406327652E-2,2.8438971552075712E-2,2.2825842087364299E-2,1.3012680594680305E-2,4.6065891083670058E-3]
[null,null,"GRNDNUT",1.3511884136025288E-2,1.8255565739107377E-2,1.7753120420196087,5.8159942360166373E-3,6.7276772074765382E-3,1.1602362997112502E-2,1.1077423547775514E-2,5.3958611374242699E-3,1.507967349725416E-2,1.779539347992266E-2,1.6390012526288248E-2,3.3263073589299683E-3,8.7342177328755422E-3,8.6801676970241031E-4,3.1589696314066162E-2,2.7836551980951261E-3,2.7607215048685982E-3,1.0369538293010128E-3,7.7304369060550893E-4,1.2774425011436569E-3,8.9021995082803191E-4,2.7446856653443965E-3,5.8158152711539112E-3,1.7766383409410995E-2,1.5150960806300082E-2,3.5106776225313904E-3,8.1446609110793575E-3,3.4042426004873581E-2,2.999137327237977E-2,1.955821789531216E-2,1.591216827893268E-2,4.9432110178539414E-2,6.1626432343407971E-2,1.5328315304863669E-2,4.0997159437061247E-2,8.7400212706846194E-3,1.653484801045892E-2,8.278317949555131E-3,8.090310959735357E-2,1.451529929208047E-2,9.3846068993087214E-3,2.7219599339840359E-3]
[null,null,"SUGAR",1.8453768576624462E-3,2.3861473705844931E-3,2.7550216053052017E-3,1.9442526070380106,9.159213167847821E-4,1.4556299764072081E-3,1.6004602675142084E-3,7.8100293408459216E-4,2.0766637718577104E-3,2.376973623250156E-3,7.0323604680058551E-3,4.9820604278941443E-4,1.3242536519846072E-3,1.4299756643337754E-4,2.2073863232882417E-2,4.4645590293915558E-4,4.9583684772579043E-4,1.8099061298461146E-4,8.0938063789361099E-5,2.1695695527996985E-4,1.4879647677591535E-4,4.6049093443393174E-4,9.9560874005117836E-4,4.3401515564646213E-3,2.5456975400063192E-3,6.5614242401295958E-4,2.0682093413617194E-3,4.120840334852981E-3,4.4168443826693776E-3,4.0148942835407696E-3,3.7127171374151139E-3,5.2295326774843371E-3,3.6213715813502912E-3,7.6684339018350499E-3,5.2002566738338059E-3,1.3328243577764754E-3,6.7477737757536637E-4,3.5184882761005315E-3,5.9259053447475096E-3,6.4938180882726498E-3,3.5411903797870374E-3,1.2151751427731563E-3]
[null,null,"COTTON",1.1845361893677062E-2,1.1584421937705017E-2,1.1037697634337753E-2,2.3678427738565259E-3,1.3988508974127609,7.983003905593063E-3,4.3470391833071685E-3,3.9288395368739498E-3,6.5260317093047641E-3,6.4421225108626879E-3,4.6837873638151239E-3,2.7501836340143122E-3,3.7622974724144395E-3,1.5020797371794758E-3,6.1478013367094343E-3,0.20429479792429392,2.5236118069835193E-3,5.7952287725863527E-4,4.7749787841459113E-4,1.4198858726243379E-3,5.521102213181181E-4,7.2903592721735013E-3,8.1019158373983099E-3,8.0628545513151822E-3,8.0067420585608444E-3,1.0364571758511203E-2,8.0727548073177766E-3,1.1017618737806758E-2,1.19678246386232E-2,1.1057845762997644E-2,1.034287918774186E-2,1.3028062758083776E-2,1.1776632009417176E-2,1.3312441499904416E-2,1.4550361839362601E-2,5.0328734544158281E-3,1.9617127386963242E-3,9.819769238775854E-3,1.5583596821752249E-2,1.7576639732116709E-2,1.0410470643675495E-2,2.9121727007675644E-3]
[null,null,"TOBAC",1.5819666160986588E-3,2.034088444162899E-3,2.3434321799342115E-3,7.3565320014483068E-4,7.8053308416593521E-4,1.6902032762028438,1.3594056024685338E-3,6.7102532620366901E-4,1.7638258899758683E-3,2.026556005506842E-3,5.8662147396743433E-3,5.7822156382280568E-4,1.5322944559727307E-3,1.8299775636110025E-4,1.8342074424663554E-2,7.4999327592796517E-4,4.063788049997576E-3,1.577433048458916E-4,2.0760598010439378E-4,2.3019867818242735E-4,1.2916667238661267E-4,6.3488427500393331E-4,9.7520437811107123E-4,3.6691425168753973E-3,2.4093184992843358E-3,6.3142043648945845E-4,2.013046657926852E-3,3.4901138887469688E-3,3.7484205653344591E-3,3.4164865509294998E-3,3.1584650599293111E-3,4.4107421963498336E-3,3.0607529235196851E-3,6.4730092763067744E-3,4.4082908892454278E-3,1.1297932138686518E-3,5.8620988796326029E-4,3.0084534748915049E-3,5.0649969114997728E-3,5.5299004278609619E-3,3.0113929339631107E-3,1.0382694108389515E-3]
[null,null,"COFFEE",9.6895660230093025E-4,1.2529003163720019E-3,1.4465860254277035E-3,4.4956228165133439E-4,4.8092507684905337E-4,7.6431124097520674E-4,1.4889427388266541,4.100831471118888E-4,1.0903989958178776E-3,1.2480834341126752E-3,3.6924989478115322E-3,2.6159428219909165E-4,6.9532914856045881E-4,7.5084086772443968E-5,1.1590378100266365E-2,2.3442170795242955E-4,2.6035028307256898E-4,9.5033189929604402E-5,4.2498349841396343E-5,1.1391812645787931E-4,7.8128935004512205E-5,2.4179111673952754E-4,5.2276674977006898E-4,2.2788941392437811E-3,1.3366757194380944E-3,3.4452232949449321E-4,1.0859598070344213E-3,2.1637398523256818E-3,2.319163431660479E-3,2.1081104964678675E-3,1.9494455930975092E-3,2.7458836896955352E-3,1.9014825554814552E-3,4.0264836028687818E-3,2.7305116658683255E-3,6.9982939030182819E-4,3.5430703076723896E-4,1.8474613632927905E-3,3.1115298127650953E-3,3.4097251651586257E-3,1.8593816131657755E-3,6.3805502526649951E-4]
[null,null,"WHEAT",5.4310651268901942E-3,7.0225882145383851E-3,8.1082092810871691E-3,2.5198259906004101E-3,2.6956165088502979E-3,4.2840144925927479E-3,4.7102595384664438E-3,1.38299514328754,6.1117576850395908E-3,6.9955892744446371E-3,2.0696698096608544E-2,1.46625306032449E-3,3.8973653530915554E-3,4.2085121695426648E-4,6.496482727745384E-2,1.3139490045510531E-3,1.4592803638612064E-3,5.3266724484685548E-4,2.382060303071279E-4,6.3851854918669094E-4,4.3791779043195379E-4,1.3552550227714391E-3,2.9301418220711861E-3,1.2773350693034915E-2,7.492154827741686E-3,1.9310701890149231E-3,6.0868757415797293E-3,1.212790338362223E-2,1.2999062710693421E-2,1.181609720580859E-2,1.0926770045531366E-2,1.5390857665027211E-2,1.0657934082849754E-2,2.2568703931225412E-2,1.5304696466125804E-2,3.9225895023734612E-3,1.985914079580564E-3,1.0355141767577651E-2,1.7440328098553334E-2,1.9111732551074172E-2,1.0421955547715227E-2,3.5763401462284459E-3]
[null,null,"HORTI",5.7960818945372999E-2,7.8365128327796824E-2,8.9479366748354758E-2,2.4956369432144736E-2,2.8800398312116279E-2,5.0182706918215983E-2,4.7454300626386968E-2,2.3095549311731807E-2,1.2896624720109449,7.6321846365899657E-2,4.1176158104173487E-2,1.4159589758348173E-2,3.7770673870875127E-2,3.6429063783053311E-3,2.6895517205405162E-2,1.1922533072460471E-2,1.1874871094486976E-2,4.4485143986298971E-3,2.4152023352847982E-3,5.3434582739687111E-3,3.8410943279511577E-3,1.1602989599654839E-2,2.4975997556019584E-2,6.7863601238069532E-2,6.5934749818389579E-2,1.5342410866889668E-2,3.1951089063603041E-2,0.14760124097540808,0.12599109780216106,8.3471723187839866E-2,7.5701962883823193E-2,0.12603931153343831,7.4386858373116427E-2,8.7066647642301154E-2,0.28638871886363504,2.5815811851821791E-2,7.4032966794808183E-2,6.4761163795117094E-2,0.10831528564789347,9.386595159069766E-2,6.5317416869873204E-2,2.1113293871995505E-2]
[null,null,"OTHERCROP",3.1795160505515743E-2,4.2907416125105895E-2,4.8968142195376735E-2,1.3730802787760822E-2,1.5810134306726877E-2,2.7326830547425341E-2,2.6105878238029231E-2,1.2709633873998804E-2,3.563657731206616E-2,1.3362889853083839,2.5338097816804822E-2,7.8132505722628854E-3,2.0726230930093681E-2,2.0275368655970866E-3,2.5000703700816609E-2,6.5808567718344448E-3,6.5591854843431016E-3,2.4560817371866478E-3,1.4816117708891208E-3,2.977076354454281E-3,2.1216128173112232E-3,6.4491611432631454E-3,1.380562226649899E-2,3.8328002863625109E-2,3.6320638389920466E-2,8.4528745010513714E-3,1.7978862757561623E-2,8.0190248422067553E-2,7.0107772426983822E-2,4.6046915619221342E-2,4.1336230580481206E-2,0.10760568774201963,0.11483566445245574,5.3173166524517666E-2,0.11690632853683086,1.1219508027331893E-2,2.3386096538775693E-2,3.3712621826846895E-2,6.9669934412769141E-2,6.1698419881143912E-2,3.2267642197664162E-2,1.1618349554039415E-2]
[null,null,"LIVEST",6.441750122554922E-2,8.879531530155782E-2,0.10082890272677766,2.6770345756951579E-2,3.2043640199792119E-2,5.7743992312383044E-2,5.1359019234722129E-2,2.4954470789040596E-2,7.2134745235167261E-2,8.5641466922561346E-2,1.3790509894165703,1.495751083365696E-2,3.9934980320986455E-2,3.5893504275385582E-3,9.0746318629221043E-2,1.2230795678810153E-2,1.1648606789592524E-2,4.2838297315413122E-3,2.3545491689655595E-3,5.1018825592650278E-3,3.8459539128664574E-3,1.1352304627173697E-2,2.4593931342838236E-2,7.2974149815432349E-2,6.6103862767610891E-2,1.4253320650280182E-2,3.1187055536579467E-2,0.17219209448136852,0.13547109375903832,6.874164246625028E-2,6.2323895361773775E-2,0.3047453334142553,0.15042840305093116,7.6732831217413131E-2,0.21106665088002699,4.5562759369887247E-2,3.7639000106240834E-2,4.3028103255145028E-2,7.7487725859928955E-2,7.5803337466144469E-2,4.3833798720990601E-2,1.5107171068891343E-2]
[null,null,"FISH",2.5432593539579568E-2,3.3503780029066968E-2,3.8488001368919819E-2,1.1448050651641985E-2,1.2630959744735944E-2,2.0838511048687874E-2,2.1548786332822208E-2,1.0502006289431555E-2,2.8574178660494106E-2,3.3059262616213676E-2,7.9558830030872663E-2,1.6465970923712498,1.7538341982494002E-2,1.8066811230069686E-3,0.24003282642862345,5.7746752646108566E-3,6.1983030520009422E-3,2.2662756771587578E-3,1.001071503950221E-3,2.6998131031826284E-3,1.8980641524756626E-3,5.7925607185853904E-3,1.2615925462999006E-2,6.587830720996829E-2,3.24991345440718E-2,8.068721212551028E-3,2.4265727839355915E-2,5.9971122500883885E-2,5.8778745682556366E-2,4.7369326269454372E-2,4.344070929186826E-2,8.1556776248594892E-2,4.262558201091602E-2,0.10299134059928071,7.8672507533533234E-2,1.5300430111200509E-2,8.9426970677435845E-3,4.5671948241270903E-2,6.8007626880098884E-2,7.205811843338561E-2,3.9424136274914576E-2,1.3535356215080238E-2]
[null,null,"FOREST",1.3997844370359778E-3,1.4855023778265763E-3,1.5750483565495303E-3,6.2826841454651752E-4,5.8784571724866729E-4,9.3815437841964834E-4,8.6584964833630936E-4,6.1491663118022578E-4,1.1189045155556342E-3,1.4147845382005476E-3,1.3182370270525524E-3,4.0567791504104297E-3,1.6952835646923818,1.1904618550592867E-2,2.3507039406254612E-3,7.5122449845331672E-3,7.0426478138126691E-2,2.168542372544758E-4,3.3719901455356764E-3,1.3996551472537488E-3,5.9562465728627966E-4,6.2145567154518596E-3,7.7914940797483142E-3,1.9071901462915932E-3,6.2447736080662843E-3,2.3501007925298819E-3,6.5540182092783091E-3,1.9731863841592127E-3,2.293872429128541E-3,2.3081562942220881E-3,2.1241107189933334E-3,2.0971863738613039E-3,1.6669700673074372E-3,3.003793830423037E-3,2.5656295141330493E-3,6.9254736433794464E-4,7.7191258813060133E-4,2.2018764752460627E-3,3.8834894565736482E-3,3.787638046854593E-3,2.026823133764353E-3,8.6246258776227671E-4]
[null,null,"MINING",6.3392404899008381E-3,6.8665221216172804E-3,7.7760611190915837E-3,2.8480077889613295E-3,4.0156174646839649E-3,4.5023643387420787E-3,5.5130376403476613E-3,5.5423983909367348E-3,6.2831634503855037E-3,6.822184078375761E-3,8.0553926796658563E-3,1.9072873639823219E-2,5.0846162693125993E-3,1.7829003355811648,1.2872446941774725E-2,6.2968214234796508E-3,5.9201131329184638E-3,1.2748561647836318E-3,0.10531150785133057,2.7839092930742208E-2,2.4421618019383846E-3,0.16194811431686723,1.8935189095556148E-2,1.0254575447961755E-2,1.5799508995528937E-2,8.503771989090211E-3,5.0410601633640868E-2,1.0605212483132703E-2,1.2762720544818513E-2,1.355186722845785E-2,1.2793195889420576E-2,1.1476995142684028E-2,1.072868828389221E-2,1.2679584976142105E-2,1.3115659564513363E-2,4.5331786903359348E-3,8.6582322316047112E-3,8.9790653334043749E-3,2.1468903631470141E-2,2.1260545134534629E-2,1.3048987743957815E-2,7.5748132361726454E-3]
[null,null,"FOODMFG",0.13655975009023924,0.17657731387086908,0.20387437956182858,6.3358991193743192E-2,6.7779101923327464E-2,0.10771808748800828,0.11843567521375961,5.7795005424222369E-2,0.1536752151891439,0.17589844730864562,0.52040177271531662,3.6867750028549626E-2,9.7996106876606107E-2,1.0581964250050438E-2,1.6334881593924993,3.3038187445848723E-2,3.6692427202504575E-2,1.339348804296037E-2,5.9894984149003417E-3,1.6055033675290261E-2,1.1011089468503524E-2,3.4076793942661013E-2,7.3676051677199761E-2,0.32117559589174471,0.18838418744936358,4.8555201651501123E-2,0.15304957879899739,0.30494634413164223,0.32685094244047197,0.29710622939834602,0.27474481558384078,0.3869906965402245,0.26798515223579861,0.56747184883667001,0.38482424272047644,9.8630347756009498E-2,4.9934207024229696E-2,0.26037168380249337,0.43852297679846491,0.48054909303961774,0.26205166238956584,8.9924187097033204E-2]
[null,null,"TEXTILES",0.10697020747664188,0.10457512028802465,9.9607709580643272E-2,2.1350540226559103E-2,2.6075635442085795E-2,7.2076874250073752E-2,3.9194803083595499E-2,3.5468375591022144E-2,5.886322695792643E-2,5.8084645890562503E-2,4.1878189521359091E-2,2.483105049418706E-2,3.3926566684262548E-2,1.3570666173588684E-2,5.4114220855272809E-2,1.8469819143351345,2.2782791714702311E-2,5.227383546214227E-3,4.3116360718677979E-3,1.2822641570593948E-2,4.9816884324990597E-3,6.5880893079069136E-2,7.3182529967799004E-2,7.260702765998521E-2,7.2219018736469368E-2,9.3661574892782193E-2,7.2847578758509612E-2,9.9335375365832354E-2,0.10790642571508155,9.970610794846041E-2,9.3262246393676432E-2,0.11743791752403011,0.10623075448352697,0.11984681758452154,0.13120283816630321,4.5413164428129579E-2,1.7690814482892128E-2,8.854576736022142E-2,0.14049598353546514,0.15847715598731066,9.3884738377833246E-2,2.6247913943423237E-2]
[null,null,"FURNIMFG",2.6704385349599607E-2,2.9194539752385149E-2,3.1330430311684462E-2,1.3170047269739232E-2,1.1089619548824437E-2,1.8860922024318542E-2,1.7291669580238211E-2,1.2001789189060563E-2,2.240899085909949E-2,2.9216295893471207E-2,2.6176866339808907E-2,7.7577071168627512E-2,0.20404099391839844,3.019763662276128E-2,4.8933061288416208E-2,0.17746284513220706,1.7014035252298094,3.8238307866667932E-3,6.5528380936718242E-2,2.3724337468250142E-2,2.9026269963547658E-3,0.11846796436404484,7.1076573038127394E-2,3.8830473449975179E-2,0.14253006565838583,4.1592403474619892E-2,0.14170093671359704,3.9837063556172017E-2,4.6241117155387611E-2,4.6310510975502948E-2,4.2413895858298252E-2,4.2001726369574235E-2,3.2056732236697159E-2,6.4023294025194966E-2,5.2122198325791631E-2,1.3335377490814246E-2,1.3373463087671228E-2,4.7282490919756497E-2,7.875032444102209E-2,7.6750751937258596E-2,3.9918140102545421E-2,1.5977995295891691E-2]
[null,null,"INDCHEMMFG",0.19157129660448127,2.5204798526340506E-2,3.090986806351053E-2,0.14902712646830865,7.7476143535865113E-2,0.19048433325918523,5.0459040006062085E-2,3.4104948290004704E-2,8.3155786844912899E-2,8.0591819109284285E-2,1.4783052554054862E-2,7.4537358180310756E-3,8.8161487946787007E-3,1.6253468123476059E-2,1.7591224034671522E-2,1.8838762064208002E-2,3.8946766000799607E-3,1.1410497731606168,1.6310854759021859E-2,1.4731301768923698E-2,2.292157275020191E-3,1.5409851549864196E-2,1.807483979532774E-2,1.6318661840287928E-2,1.6548152352164926E-2,5.9287592128052756E-3,1.2292265766306106E-2,3.4301285421985198E-2,2.8810180565273204E-2,1.7544862547779778E-2,1.5624117735474251E-2,4.0665543272025262E-2,3.2179636491205761E-2,2.7926357629498542E-2,5.6583298253666155E-2,9.1510512296889748E-3,8.9437241686976202E-3,1.873579892462467E-2,2.3699205902046761E-2,1.9857224836730927E-2,1.2412101168340095E-2,4.8888487854534144E-3]
[null,null,"OTHERMFG",6.3498429747186863E-2,6.7788934803052009E-2,7.654985487409606E-2,2.8230611762064813E-2,4.2528719923624954E-2,4.4435853833379835E-2,5.6905914981197049E-2,6.3937896071069686E-2,6.2522158259278815E-2,6.6384965856553235E-2,6.9977429668889896E-2,0.23567814369773848,5.2661910573470722E-2,0.15205811740022815,8.0423232666205574E-2,6.8704598127255004E-2,6.4263085496355288E-2,1.1849554385105567E-2,1.383633709388167,0.3070617239654802,1.3890847713796848E-2,0.51984935631880369,0.20480431356682502,9.7676107582706576E-2,0.16354412625971956,7.719482761660848E-2,0.2617825126846578,0.10345374453398977,0.12574460662242631,0.13515560792083267,0.12733060026286092,0.11147015354307249,0.11267313749010785,0.12316616548467778,0.12653105543888235,4.715395903265019E-2,0.10051239921766865,8.9449940970679612E-2,0.21154498243196421,0.21475804000100596,0.12770134159146651,8.2978617019074927E-2]
[null,null,"ELECWATER",6.9449243067398303E-2,3.1784712759940548E-2,3.3100214879977601E-2,1.708276220143257E-2,6.0489412018325799E-2,4.426815155827455E-2,2.9423122973693649E-2,5.5740757193757096E-2,4.279163569738844E-2,2.7475958203344239E-2,2.6010954611417378E-2,2.5261419808813759E-2,2.376262695705602E-2,4.6315780983333776E-2,3.0385663429812967E-2,0.17478306734089688,1.7743153484877133E-2,1.9884504143025141E-2,8.8119801429185032E-2,2.0421448754706812,3.6123271367125599E-3,8.717208471414338E-2,4.8494890558504714E-2,4.2785449149787762E-2,0.16859191350513561,3.7382893998270904E-2,9.4943537534932204E-2,3.9924508477004177E-2,5.2334020388396456E-2,6.0383808042410392E-2,5.7835308409582308E-2,3.7958344839475272E-2,3.1814006576008781E-2,3.747224620466507E-2,4.8891810124481433E-2,1.4195928553724441E-2,2.4266928618077575E-2,3.0367290376527408E-2,9.5372292650865997E-2,9.6412000871211864E-2,6.3001363306959518E-2,3.6726414849241114E-2]
[null,null,"EQUIPMACHIN",2.2472486056479026E-2,2.1602121886061285E-2,2.3775453391679427E-2,9.4455452036636845E-3,1.3151220158891827E-2,1.6136139618141702E-2,1.4342587733300265E-2,1.1996267733579698E-2,1.9211976215564194E-2,2.1481466323476906E-2,7.2117833191155403E-2,0.29299771285380893,1.6804363887858401E-2,0.18182014537710453,6.4221612398723218E-2,4.575968872608932E-2,1.5111415869452884E-2,4.9852220664499888E-3,2.7235292298620997E-2,0.2043971755702936,1.2063272770653151,0.27850286927525864,7.0532029901172466E-2,3.6892737489634744E-2,7.9129511212956069E-2,3.7655467784882386E-2,0.16215699959891905,3.3389820074221303E-2,3.5787242983432846E-2,3.3165819402864651E-2,3.118968514035891E-2,4.2297319010249038E-2,2.7656496379331302E-2,3.8253180142938319E-2,4.2380003554098974E-2,1.0840014777082588E-2,1.1736541184994296E-2,2.3111891932428852E-2,4.9835234873764525E-2,5.0599157251733029E-2,3.1358433260575011E-2,1.4057733762115514E-2]
[null,null,"CONSTR",1.7635776581624258E-2,1.9130497833085184E-2,2.1719164824674005E-2,8.0537005063163695E-3,9.3716158013540073E-3,1.2605427529642324E-2,1.3468501131096487E-2,8.4160073369884923E-3,1.7201549906574048E-2,2.0143767202576292E-2,1.4737570665273727E-2,1.3768328789193637E-2,1.2918646122817025E-2,2.081561144750587E-2,1.6238273864898969E-2,1.6394783870574491E-2,1.6047283795849989E-2,2.9470257576822922E-3,6.4412699481309404E-3,7.6356099729670363E-2,2.0657348776487875E-3,2.1728811094018385,5.4661087759793878E-2,2.971416537097403E-2,4.7133660883939936E-2,4.3408158524231466E-2,0.5311457428467603,2.9203049901366001E-2,3.610922202279912E-2,3.9408206480433722E-2,3.7916899695320215E-2,2.8544808408761065E-2,2.1406554156122425E-2,2.2879113573820248E-2,3.7480485907736644E-2,1.0604692982414139E-2,1.5081370723175969E-2,2.2198781612684394E-2,6.79842688772863E-2,5.7286466501187856E-2,4.2773758853708363E-2,1.6899871309858667E-2]
[null,null,"TRADETRANS",0.11486830792358479,0.10575578948462927,0.10355672333653591,2.9304914442698188E-2,4.6348163838926724E-2,5.7951540287235648E-2,5.2089210111022945E-2,3.7565840564622498E-2,6.8274715543277825E-2,7.3176220063616099E-2,7.4968853509562311E-2,0.29098735987167462,4.9055210791034157E-2,2.5715438354003903E-2,0.10550942710478299,5.8953915126938414E-2,5.092386944517447E-2,2.2673800885832807E-2,1.5276406023285399E-2,8.3806078974914197E-2,1.7225795276490929E-2,0.12171983772019912,2.1559522558424944,0.10497562947556292,0.1080713653939368,0.25981056747471304,0.15822516873199782,0.11574736126959154,0.135200512677662,0.13870652064443381,0.13051862602851044,0.12776761859799712,0.12325160171730958,0.12381209095547584,0.14636805118868601,5.0777705895760916E-2,7.5035861876447937E-2,8.577017715783819E-2,0.22221851809041623,0.21660008624855429,0.13244931787260014,6.9809653092020627E-2]
[null,null,"TOURISM",3.6476606559636155E-4,3.4102147918934857E-4,3.3793289769600969E-4,9.7304368734630559E-5,1.4966237871697486E-4,1.8813942105427471E-4,1.7366227760064239E-4,1.2398796784815841E-4,2.2605859940701172E-4,2.4292583827317463E-4,2.4152165816406101E-4,8.9848651391394026E-4,1.626030045244306E-4,8.9801395469197337E-5,3.3162454517699771E-4,1.8645943663965852E-4,1.6242820786715152E-4,7.081739540047218E-5,1.4621099912101715E-4,2.7680077562502174E-4,5.4219576472518921E-5,4.0985964124415228E-4,6.5243130447786559E-3,2.0003462122986697,3.6330866198856754E-4,7.9621732165276789E-4,1.3733717419619805E-3,3.8434517914928733E-4,4.5150908866873734E-4,4.6605234885896808E-4,4.3981768577620563E-4,4.2070673192993535E-4,4.0327346746787566E-4,4.0299273843808918E-4,4.8667163511709573E-4,1.6785555313054111E-4,2.3954067725330742E-4,2.8821207804249259E-4,7.39344264872938E-4,7.2637475792556433E-4,4.5187616110117226E-4,2.3409526096312646E-4]
[null,null,"OTHER",1.2061358522373786E-2,1.2905283531463628E-2,1.4464524782428548E-2,7.681882919967091E-2,5.5528399180776698E-3,7.7856732550897357E-3,9.1921846608721495E-3,5.0607366268652651E-3,1.1208593400774475E-2,1.1996556577996904E-2,1.9088135730723658E-2,1.7555128401845962E-2,8.4922020655948914E-3,1.0721245731910382E-2,1.0385020579120585E-2,6.0718358768822346E-3,5.3682896541663418E-3,2.1732807579573393E-3,1.8992319380477618E-3,6.8270123634950452E-3,1.5967347717171911E-3,1.4680887690570779E-2,9.1355665823303164E-2,2.1373884967933129E-2,2.0764214222407005,5.9393133883742684E-2,2.1714703796318048E-2,1.6901497308268492E-2,2.5355562719876636E-2,3.3180266820815839E-2,3.2071809612962889E-2,1.5298541057210603E-2,1.2267900875622455E-2,1.689769858653227E-2,1.7686451718946249E-2,6.4473249511592598E-3,3.9545028213616752E-2,1.5660829661162088E-2,4.439225243649509E-2,5.6917149116138634E-2,3.3297281925159586E-2,2.6694710965857418E-2]
[null,null,"FIRE",5.9594300847904097E-2,5.8830057066763919E-2,6.3370763319327089E-2,2.4508866755401006E-2,2.7487455762455853E-2,6.6768781641508998E-2,3.8022758309932819E-2,2.4605880899298035E-2,4.7964061522744739E-2,5.1321962642551511E-2,5.8564303537077159E-2,0.25893283609163753,4.2943121120950063E-2,4.584602642412406E-2,0.11297105880332732,9.4447619084490703E-2,5.016069042449868E-2,1.9927481694175714E-2,2.6450418013352399E-2,0.13241516447753424,1.129157908963601E-2,0.3737782078788236,0.51858184054773271,0.10841416075101042,0.14836084251327247,2.4060092891974385,0.29961212782372404,7.5395543028540693E-2,0.10225733187328709,0.11934396813788818,0.10950793979008966,7.4982932274657757E-2,6.0907781005052057E-2,8.2061974640852492E-2,8.5657375899609214E-2,2.4581815571566943E-2,2.9299197292513346E-2,5.8317170324127504E-2,0.18568770787768168,0.23589752154979532,9.8980518231949255E-2,5.7375052353460118E-2]
[null,null,"PUBLIC",3.2777848160939656E-2,4.0828844312855224E-2,4.7686257215651881E-2,1.6327593746676857E-2,1.6213290828506598E-2,2.4126773558507539E-2,2.9543861692307421E-2,1.447830608204145E-2,3.7078897127830787E-2,4.1350019887382822E-2,2.4706727411587703E-2,1.0201708172255495E-2,2.5756675302624526E-2,3.1926894385129914E-3,1.8308232948709577E-2,8.9468531072460292E-3,1.0114153245002753E-2,3.7980779249890775E-3,1.8084546939277344E-3,4.9402497067595969E-3,3.0429582924922107E-3,1.3129441470807903E-2,2.3918231727687929E-2,5.3537544088823705E-2,6.0679479077793023E-2,1.750840499822294E-2,2.0669229335862607,6.5890544986306906E-2,8.218480695683511E-2,8.9952132550322306E-2,8.762296441639425E-2,6.4827887912726451E-2,5.5629476982276833E-2,4.9213362474992431E-2,8.5575947589815515E-2,2.6829444325353509E-2,1.4399128348648815E-2,5.468796674662979E-2,0.12774253799745866,0.13654491160996982,0.10225268120480148,4.1647925869063296E-2]
[null,null,"LNONE",0.27746594794834017,0.42998310486905283,0.49181552794125927,8.9581439157293635E-2,0.13430912810871617,0.35098735162023381,0.17823848253882624,8.6117897717344183E-2,0.35224432860161847,0.39183596786467978,0.18790754878387217,4.8384461055197184E-2,0.15159970079154828,5.9692765675351204E-3,0.10153653008310931,2.9768260216766047E-2,2.1921534767594886E-2,7.5664765682078297E-3,3.3025075651728526E-3,9.3731561071292765E-3,6.8276144983805617E-3,2.1899948431557653E-2,4.3652572419167181E-2,0.10410720094208833,0.15114259983537517,2.4479832518601172E-2,4.7398268302410999E-2,1.13889185360147,0.11679763774474705,7.1508742566242178E-2,6.3860667331441717E-2,0.18182293475786329,0.11900294467478605,0.11733543114771582,0.21379960934728942,2.8867462107625034E-2,3.9015512848199735E-2,6.4923853151984207E-2,0.10642435685033494,8.2492018227983091E-2,4.9840055874319368E-2,1.7924564545184155E-2]
[null,null,"LPRIM",0.20569845191497901,0.24462921261091372,0.2600851054686939,0.10559746386506834,0.10901130454234408,6.36363130666492E-2,0.20270527235561314,9.8219092275950479E-2,0.15765262938892297,0.2546465343452734,0.13545364755128131,5.5571730390818842E-2,0.11521860389423674,1.6130933692771233E-2,8.1308947355454728E-2,5.2874616278772851E-2,4.5297138353962998E-2,1.668095947665995E-2,7.0398816297435485E-3,1.7246258744742123E-2,1.8609985661040471E-2,4.3942704710936628E-2,0.10796150020167079,0.35486586119608748,0.26760960541489159,4.3145468557744003E-2,8.1383642516218671E-2,9.1676599144396284E-2,1.0809396482152946,5.503496885163113E-2,4.985561583688429E-2,0.12103642268651722,8.2767903491375805E-2,8.2782567092288373E-2,0.13503194252348688,2.1978574668573427E-2,2.7536035005340288E-2,4.7598912635595673E-2,8.1188983032571327E-2,7.0423071054522085E-2,4.1885063363636815E-2,1.7282440592100257E-2]
[null,null,"LSECD",4.0317362140097866E-2,2.5138040876439206E-2,3.170633624535249E-2,3.1858220255351642E-2,1.9482803268937077E-2,2.0262166084772978E-2,5.4312220445582107E-2,2.7347319878839486E-2,5.8899978320858463E-2,4.4549638914495343E-2,3.6120758300343982E-2,2.3183384106998016E-2,6.6007395834697752E-2,1.1019548857068035E-2,2.4478579177299731E-2,2.6708468855889206E-2,3.6557535790782671E-2,2.1674531950537177E-2,5.5364625112502589E-3,2.1596466306153615E-2,8.0601152963755435E-3,2.9965924369016614E-2,7.6108660771109754E-2,0.1282353098113562,0.11685243682349479,6.5448278124455903E-2,0.1112313149365967,2.6195455154391145E-2,2.6420850532774997E-2,1.0227061808546569,2.1112625431392206E-2,3.0436939577930422E-2,2.2579088677244563E-2,2.3520567629938396E-2,3.7942787490145707E-2,7.741232036637292E-3,1.0470519289449851E-2,1.6216532733090247E-2,3.3109730529810033E-2,3.3705050237765107E-2,2.0215662500689117E-2,9.1870086977968307E-3]
[null,null,"LPOST",2.714125972485271E-2,1.7169118434998087E-2,4.6739252421776484E-2,2.6100676917482017E-2,9.6625548373822073E-3,1.2779936127509309E-2,3.7770207463606313E-2,1.9040372161334026E-2,5.9112573356495376E-2,2.0252954248141653E-2,3.0954689685518316E-2,1.9410893674831078E-2,6.271584131609774E-2,8.3581197053409564E-3,2.4125974149716064E-2,2.0932724798320479E-2,3.7372348467147473E-2,7.0792922128171927E-3,4.2797787386777185E-3,1.5070389649413166E-2,1.0223179923901119E-2,3.8701863722497613E-2,6.2623290253759054E-2,0.18171825603851796,0.21949859565815957,6.1544917843248594E-2,0.17024555699512017,2.4325347218279229E-2,2.58831518682337E-2,2.3992468650609153E-2,1.0225266212431436,2.6811659613290739E-2,2.0006777929835521E-2,2.188351370834965E-2,3.4732523704131539E-2,7.5909348156479924E-3,1.1603908295714465E-2,1.6082674011060064E-2,3.5248074445014488E-2,3.6323084250544778E-2,2.2480841077631871E-2,1.060514226156445E-2]
[null,null,"HRRS",0.12413553312637,0.17582875291099917,0.19844792876135176,4.8949347585299938E-2,6.1774900748289251E-2,0.11724454398156922,9.5110819039863292E-2,4.6076493424091917E-2,0.1388523753180842,0.16727405784852128,8.4112431326414744E-2,2.6567226827771899E-2,7.172872441852346E-2,5.5772827344207146E-3,4.7469978278066968E-2,2.0723550039365071E-2,1.7912839155377135E-2,6.4782014731038012E-3,2.6897105442505367E-3,7.4233813394345557E-3,6.2769188337240779E-3,1.7466320147784539E-2,3.8759214823538064E-2,0.11058693569144713,0.10871918944751573,2.0183265774416329E-2,4.0071582101974285E-2,0.35627422423689326,0.24480742969843153,6.8314388661010722E-2,6.8219541814920612E-2,1.0906376698399689,5.7940671190258426E-2,5.7044883515411482E-2,9.2428398575416432E-2,1.4125955928892302E-2,1.9415809290844112E-2,3.0643507576954974E-2,5.0712319343341805E-2,4.3872777582042208E-2,2.5226826769517235E-2,9.3673639476741129E-3]
[null,null,"HRRM",7.4354677645737249E-3,9.9966649777484071E-3,1.1131521771652527E-2,3.2123849273139765E-3,3.7663595588232936E-3,5.6512480079390307E-3,6.2008767972471087E-3,3.0060312123732147E-3,7.6037865780524908E-3,9.7683118654924433E-3,5.0152234998725653E-3,1.7363320555073745E-3,4.3390527615944571E-3,4.2110411179314142E-4,2.888587413087782E-3,1.4672016867755973E-3,1.2905553790065101E-3,4.8106162087394229E-4,1.959148226921475E-4,5.2906940482987162E-4,4.7209536843017706E-4,1.2479082940444509E-3,2.8845722727296715E-3,8.5733675479414007E-3,7.5925579930109302E-3,1.4164805139720987E-3,2.7532764482535209E-3,1.6070307102486626E-2,2.1499646783335175E-2,5.0517716228153627E-3,3.7287451776277345E-3,4.6484245873163813E-3,1.00537208182009,3.1063205781353635E-3,5.3442753439357791E-3,8.0409186474890459E-4,1.0494207861644969E-3,1.7693302981705548E-3,3.0602201800921064E-3,2.6326744841341115E-3,1.5384519143135814E-3,6.4661188472322768E-4]
[null,null,"HRRN",4.4447223851687015E-3,5.5530521103512309E-3,6.3224422741700453E-3,2.1574470784383815E-3,2.2360438491464238E-3,2.9966573056586531E-3,4.0381696449746122E-3,1.9694526468165552E-3,4.7039022916215111E-3,5.6483442617188007E-3,3.1262656163188749E-3,1.2374400433781791E-3,3.1653423208886557E-3,3.6983309150252113E-4,1.8719819415912117E-3,1.1428319375469474E-3,1.2053422139775443E-3,4.7793910909879541E-4,1.7609723544386935E-4,5.4234103892871757E-4,3.8595338910366305E-4,1.1358950068132262E-3,2.5592080066218939E-3,6.8895619334837371E-3,6.3021618563853642E-3,1.6149369262019224E-3,3.2661179016002834E-3,7.9585701953380009E-3,1.3202935320880769E-2,1.0821477441855725E-2,7.3218303145410517E-3,2.9099807114592335E-3,2.4849555726163272E-3,1.0056213439622259,3.3635021176688343E-3,6.3588516931038373E-4,8.7504053654462448E-4,1.2703111948464258E-3,2.2628662215940462E-3,2.1393151881251506E-3,1.1822820644299507E-3,6.1034739125393638E-4]
[null,null,"HRS",0.14562513130615276,0.20490645080215036,0.2314099718711331,5.8132554004978229E-2,7.2470841988157259E-2,0.13617159426065858,0.11264254389785783,5.4605424469570854E-2,0.16303594303889854,0.19571959814621159,9.8983569111747896E-2,3.1748656255432599E-2,8.5671870142126377E-2,6.9015792642912153E-3,5.6049661010680561E-2,2.5114777602296273E-2,2.2215789650765348E-2,8.2653512738728088E-3,3.3321492811601481E-3,9.3945157053228756E-3,7.6400739401977519E-3,2.1496574692620972E-2,4.7946024652533878E-2,0.13434278017024504,0.13151808799666376,2.5828895792890973E-2,5.0913394295067041E-2,0.41203697381348786,0.2893293455258496,0.11070293785557093,8.455434619254322E-2,9.3679169529497175E-2,6.7852501205433929E-2,6.6902664671748421E-2,1.1202631286350886,1.6602373632441131E-2,2.2861811584920358E-2,3.6126754869084871E-2,5.9832085899476986E-2,5.2037072718845667E-2,2.9976251183956616E-2,1.1219977814495302E-2]
[null,null,"HRM",1.2290967267099412E-2,1.5938383323719933E-2,1.7801403111795702E-2,5.6084963928394521E-3,6.2198997730631604E-3,8.9036811085523634E-3,1.0692454627161238E-2,5.2007613543350846E-3,1.2742915560987301E-2,1.5950062259362224E-2,8.4402241533763807E-3,3.1305067358683701E-3,7.90349661263068E-3,8.5898117347923389E-4,4.9370694658150468E-3,2.783341931910808E-3,2.6782479810033861E-3,1.1233957327041635E-3,4.054522042260021E-4,1.2027027232119521E-3,8.9469082045722718E-4,2.5041207848323635E-3,5.8924658049287672E-3,1.5992995591857687E-2,1.4144116381121202E-2,3.3577112148565017E-3,6.3062847031869797E-3,2.4540671755464288E-2,3.5366380194044755E-2,2.4486725146492083E-2,7.0166127529315576E-3,7.7584367840692163E-3,5.2502314020606167E-3,5.2461057526523311E-3,8.960629321384592E-3,1.0020282678829089,1.8167627184280735E-3,3.039317760450987E-3,5.3519073506810826E-3,4.707885436617521E-3,2.7578340480366118E-3,1.1817195788089224E-3]
[null,null,"HRL",4.4113700912103747E-3,4.1258024745112762E-3,5.7937442424097077E-3,2.9953443884570682E-3,2.0507611215023528E-3,2.491539445313334E-3,5.0375433280381021E-3,2.5048794669501519E-3,6.2335999409527491E-3,4.8668509580335143E-3,3.7693062837585211E-3,2.0251632154394661E-3,5.8439627376278922E-3,8.2163481679699724E-4,2.5515487953604475E-3,2.1411111895043105E-3,3.0710106511016907E-3,1.1371456977750365E-3,4.1044126704448906E-4,1.465019104570312E-3,8.1411478218961701E-4,2.8939539130066528E-3,5.8578857588052723E-3,1.4063476960323182E-2,1.4801023913140872E-2,5.0152595502743948E-3,1.1235832043970136E-2,5.3677051690714881E-3,8.736042308130413E-3,3.6006199962895002E-2,4.2435310022729406E-2,3.307856893639606E-3,2.3752523421679411E-3,2.4785236916200102E-3,4.0477931481673638E-3,7.7449729359283708E-4,1.0012689378844215,1.6506361599972002E-3,3.3036030441717448E-3,3.2403528661089087E-3,1.9703590054595539E-3,8.8833866099546324E-4]
[null,null,"HRN",9.1484640028582677E-3,1.1526474179875117E-2,1.2994555512640322E-2,4.3730016921875595E-3,4.6231503382359162E-3,6.1630372300652894E-3,8.2415062960020189E-3,4.0154281900681406E-3,9.5023985836063911E-3,1.1691581955249903E-2,6.3698689958208848E-3,2.480676388895015E-3,6.2681221368896672E-3,7.2515531148170393E-4,3.7869235351259542E-3,2.2723560074398622E-3,2.3157762425840972E-3,9.4167398792811732E-4,3.4332764700271143E-4,1.0414547432999188E-3,7.5552874455555544E-4,2.173707679264027E-3,4.9959593839285429E-3,1.352076740407963E-2,1.2113152911650216E-2,3.0245730502409455E-3,5.9452258088195896E-3,1.6405139438912218E-2,2.7757346698869634E-2,2.1079961527532561E-2,1.0813157375335712E-2,5.8882633171841465E-3,4.6129060781455377E-3,4.542858857385655E-3,6.7970792752173595E-3,1.1960344234158659E-3,1.6157559775248195E-3,1.0033476761684668,4.35065301546784E-3,3.9807191927341869E-3,2.2640236114801681E-3,1.0907168374903824E-3]
[null,null,"HUSE",3.2737421850994014E-2,4.0667730383336577E-2,4.6747916681396703E-2,1.6025072852706761E-2,1.635220318131321E-2,2.3189370814539451E-2,2.9792717645074018E-2,1.4555860602492908E-2,3.5988545078054782E-2,4.1564421621821446E-2,2.3336818480947572E-2,9.3632756901241686E-3,2.4542452812125765E-2,2.8766689873799319E-3,1.4032818586480946E-2,8.7118297896579787E-3,9.5406178988868481E-3,3.8852687184600504E-3,1.3857248806340013E-3,4.4159505221178152E-3,2.9261853091196274E-3,8.9148142758701115E-3,1.9981238340565151E-2,5.1622044066768055E-2,4.834125387888371E-2,1.3360134331212636E-2,2.6958304511177124E-2,6.241667433887578E-2,8.788298609272778E-2,0.10082964277688988,6.1417706553425551E-2,2.1279951887285972E-2,1.9007871118459616E-2,1.4662649891709361E-2,2.4851057924551487E-2,4.7503437812667724E-3,5.3395535890340901E-3,1.2481016350641494E-2,1.0235727170012792,1.3834409585208474E-2,8.3237547106784857E-3,3.4597097891909587E-3]
[null,null,"HUPR",5.4352836443449584E-2,6.0127682440106973E-2,7.1851297364976349E-2,3.0869856711835082E-2,2.6973507590438751E-2,2.9577406006006692E-2,5.5518647195139291E-2,2.7278037404088625E-2,6.0923048356252112E-2,6.5305359227348564E-2,4.0759495507764719E-2,1.8902066810588231E-2,4.968986268342402E-2,6.7206283740022365E-3,2.5760652294470301E-2,1.8943751333122108E-2,2.305154396724423E-2,9.1545731145078729E-3,3.253126199931837E-3,1.0805222917543423E-2,6.7529588535676019E-3,2.1541802638229468E-2,4.6954209037554054E-2,0.11919500717093545,0.11314068547646966,3.4329762070138999E-2,7.2195710090779033E-2,6.7077017909383196E-2,0.16826389507589132,0.25875509075195136,0.20909608568568702,3.6350076150508698E-2,2.539354256971273E-2,2.5913784969735249E-2,4.2836660034871611E-2,7.4888106581884467E-3,1.0073173581264555E-2,1.611120090351674E-2,3.0102810645571181E-2,1.0337920762779014,1.7784308207499665E-2,7.4528657426298243E-3]
[null,null,"HUPU",7.7170841003124685E-2,8.228572594618995E-2,0.10385027036806858,4.6236933071134585E-2,3.7481221091210493E-2,4.17477740461841E-2,8.1171083921706175E-2,3.9999254180192879E-2,9.292780029106032E-2,9.008850288901904E-2,6.0230014763564321E-2,2.9122107091358842E-2,7.9169531982340363E-2,1.072202453071905E-2,3.9048719962764343E-2,2.9569279244644656E-2,3.8570183080200743E-2,1.3879710479508199E-2,5.244948499034641E-3,1.7684465110643647E-2,1.1076644258530371E-2,3.672550326864138E-2,7.5775712581056476E-2,0.1953849867279096,0.19524646101501375,5.8961490066458802E-2,0.13184606925207124,9.3541811226297136E-2,0.22327736302318851,0.36619310096120261,0.48476945804205762,5.3515492313090045E-2,3.7679329806245533E-2,3.8767305673775815E-2,6.3777992551429463E-2,1.1488857751359636E-2,1.5748058594478635E-2,2.4656048127510134E-2,4.7217783150189228E-2,4.4747404811450085E-2,1.0335803670324535,1.2402127931771102E-2]
[null,null,"HUEM",3.1057417551603184E-3,2.4945499735575805E-3,3.6550020212929965E-3,2.308322844954316E-3,1.4327967500519137E-3,1.6187453182358489E-3,3.8362550028763764E-3,1.9184035858783254E-3,4.6301287293090193E-3,3.3169326932817439E-3,2.7755149723438493E-3,1.6176227003047725E-3,4.704117464845857E-3,7.014963165486777E-4,1.9151311655092136E-3,1.7703765235673658E-3,2.5708198727516507E-3,1.0781925868447435E-3,3.5200064687004835E-4,1.2973454422408935E-3,6.4664501071186385E-4,2.3506170968535336E-3,4.9718929143405541E-3,1.0967976052489392E-2,1.1369153918803937E-2,4.3379904911793471E-3,9.1987459677840104E-3,2.9499209907654002E-3,4.7979890789440153E-3,4.0110033561260063E-2,2.9023088897619093E-2,2.3988315552960328E-3,1.7491353334349331E-3,1.8352182752420867E-3,2.9711141488474495E-3,5.9140351997831757E-4,2.3410928076001668E-3,1.2521383662828733E-3,2.5551080431044826E-3,2.5562554814786867E-3,1.5515926593477288E-3,1.0007623865002633]
[]
[null,null,"Total",3.5205920706410296,3.5842195326651378,4.501681811822996,2.9992236497063565,2.4547683538495897,3.435725542025081,3.0802433828374438,2.2945951488817098,3.3429405580862661,3.6605736188878688,3.3592538491139998,3.3006137529636206,3.199426908697272,2.4484398817011575,3.2775059851780619,3.0698601947100892,2.3975373853917858,1.3740865687374835,1.8008351897833206,3.0994807589280455,1.3840547287191336,4.2976229936017152,4.10778154479378,4.7842556466532953,5.0260485904446162,3.5850348993221952,4.9722484550041006,4.0570918459976486,4.1128223806800985,3.7113543756939831,3.5511587275306895,3.7998373082169623,3.0155948798050924,3.3702234625395571,4.1366825124024018,1.6577952852797824,1.7646407104374049,2.4214104860742847,3.7331583618906707,3.683358499236502,2.5709602053109499,1.6824480623313032]
[null,null,null,null,null,null,null,null,null,null,null,null,null,null,null,null,null,null,null,null,null,null,null,null,null,null,null,null,null,null,null,null,null,null,null,null,"General","General","Energy","Energy"]
[null,null,null,"MAIZE","DRSTAP","GRNDNUT","SUGAR","COTTON","TOBAC","COFFEE","WHEAT","HORTI","OTHERCROP","LIVEST","FISH","FOREST","MINING","FOODMFG","TEXTILES","FURNIMFG","INDCHEMMFG","OTHERMFG","ELECWATER","EQUIPMACHIN","CONSTR","TRADETRANS","TOURISM","OTHER","FIRE","PUBLIC",null,null,"Jobs - Transpose",null,null,"Nominal","Real (ZMK)","Real (ZMW)","Real (ZMK)","Real (ZMW)","There can be currency years entered in the general sheet and the energy sheet - this is why there are two calculations here."]
[null,null,"Earnings (K2008)",66425717405.509621,58969559886.463974,40105109896.533691,6602878051.4381704,14807122368.250643,5793482679.5336781,5108991359.2876911,6445437648.1415396,153455745502.05951,83253954898.775345,58550167309.90284,7557939567.1315956,5551856911.971736,360604341188,62292503260.917755,13901954033.697008,21505446598.964943,4441985229.7971754,4512050175.9965591,29184080688,30488172120.626568,76423043827,668151759150,47333626910,178215504107.50232,66697035901,377916747552.49768,null,null,null,"Earnings","Paid Jobs (excludes unpaid family labor)","Avg Earnings (2008 ZMK)","Avg Earnings","Avg Earnings","Average Earnings","Average Earnings"]
[null,null,"Paid Jobs (excludes unpaid family labor)",206416.05135255706,183246.25125919105,124625.50270049779,20518.258111086438,46012.716919409715,18003.084723772714,15876.047169210209,20029.016479363403,476859.41953064594,258709.32676240377,181943.00060565511,23486.084949368702,17252.239436838259,101998,75104.143596291062,16761.155794984425,25928.451497700116,5355.5641383350621,5440.0392758710168,15864,36758.645696818319,85319,533865,44053,133436.28755002664,21233,282959.71244997333,null,null,"MAIZE",797108608866.11548,206416.05135255706,3861660,5765.9605502120667,"placeholder",5765.9605502120667,"placeholder"]
[null,null,"Avg Earnings (K2008)",321805,321805,321805,321804.99999999994,321805,321805,321805,321805,321805,321805,321805,321805,321805,3535406,829415,829415.00000000012,829415,829415,829415,1839642,829415,895733,1251536.9225365964,1074470,1335585,3141197,1335585.0000000002,null,null,"DRSTAP",707634718637.56775,183246.25125919105,3861660,5765.9605502120667,null,5765.9605502120667]
[null,null,"Avg Earnings ($2008)",{"$f":"D154/3400","v":94.648529411764713},{"$f":"E154/3400","v":94.648529411764713},94.648529411764713,94.648529411764684,94.648529411764713,94.648529411764713,94.648529411764713,94.648529411764713,94.648529411764713,94.648529411764713,94.648529411764713,94.648529411764713,94.648529411764713,1039.825294117647,243.94558823529411,243.94558823529414,243.94558823529411,243.94558823529411,243.94558823529411,541.07117647058828,243.94558823529411,263.45088235294116,368.09909486370481,316.0205882352941,392.81911764705882,923.88147058823529,392.81911764705887]
[null,null,"Avg Earnings ($2014)",{"$f":"D155*'Default-Data'!$F$19/'Default-Data'!$F$13","v":103.69067926364369},{"$f":"E155*'Default-Data'!$F$19/'Default-Data'!$F$13","v":103.69067926364369},{"$f":"F155*'Default-Data'!$F$19/'Default-Data'!$F$13","v":103.69067926364369},{"$f":"G155*'Default-Data'!$F$19/'Default-Data'!$F$13","v":103.69067926364364},{"$f":"H155*'Default-Data'!$F$19/'Default-Data'!$F$13","v":103.69067926364369},{"$f":"I155*'Default-Data'!$F$19/'Default-Data'!$F$13","v":103.69067926364369},{"$f":"J155*'Default-Data'!$F$19/'Default-Data'!$F$13","v":103.69067926364369},{"$f":"K155*'Default-Data'!$F$19/'Default-Data'!$F$13","v":103.69067926364369},{"$f":"L155*'Default-Data'!$F$19/'Default-Data'!$F$13","v":103.69067926364369},{"$f":"M155*'Default-Data'!$F$19/'Default-Data'!$F$13","v":103.69067926364369},{"$f":"N155*'Default-Data'!$F$19/'Default-Data'!$F$13","v":103.69067926364369},{"$f":"O155*'Default-Data'!$F$19/'Default-Data'!$F$13","v":103.69067926364369},{"$f":"P155*'Default-Data'!$F$19/'Default-Data'!$F$13","v":103.69067926364369},{"$f":"Q155*'Default-Data'!$F$19/'Default-Data'!$F$13","v":1139.1639334776073},{"$f":"R155*'Default-Data'!$F$19/'Default-Data'!$F$13","v":267.25067895606037},{"$f":"S155*'Default-Data'!$F$19/'Default-Data'!$F$13","v":267.25067895606043},{"$f":"T155*'Default-Data'!$F$19/'Default-Data'!$F$13","v":267.25067895606037},{"$f":"U155*'Default-Data'!$F$19/'Default-Data'!$F$13","v":267.25067895606037},{"$f":"V155*'Default-Data'!$F$19/'Default-Data'!$F$13","v":267.25067895606037},{"$f":"W155*'Default-Data'!$F$19/'Default-Data'!$F$13","v":592.76185448308138},{"$f":"X155*'Default-Data'!$F$19/'Default-Data'!$F$13","v":267.25067895606037},{"$f":"Y155*'Default-Data'!$F$19/'Default-Data'!$F$13","v":288.61939127378798},{"$f":"Z155*'Default-Data'!$F$19/'Default-Data'!$F$13","v":403.26506307033719},{"$f":"AA155*'Default-Data'!$F$19/'Default-Data'!$F$13","v":346.21128990664289},{"$f":"AB155*'Default-Data'!$F$19/'Default-Data'!$F$13","v":430.34668779022553},{"$f":"AC155*'Default-Data'!$F$19/'Default-Data'!$F$13","v":1012.1435360883756},{"$f":"AD155*'Default-Data'!$F$19/'Default-Data'!$F$13","v":430.34668779022564}]
[null,null,null,null,null,null,null,null,null,null,null,null,null,null,null,null,null,null,null,null,null,null,null,null,null,null,null,null,null,null,null,null,"GRNDNUT",481261318758.4043,124625.50270049779,3861660,5765.9605502120667,null,5765.9605502120667]
[null,null,"Job and earnings figures based on the 2008 Labour Force Survey Report published by the Republic of Zambia Central Statistical Office, Ministry of Labour and Social Security",null,null,null,null,null,null,null,null,null,null,null,null,null,null,null,null,null,null,null,null,null,null,null,null,null,null,null,null,null,"SUGAR",79234536617.258041,20518.258111086438,3861659.9999999995,5765.9605502120658,null,5765.9605502120658]
[null,null,"www.zamstats.gov.zm",null,null,null,null,null,null,null,null,null,null,null,null,null,null,null,null,null,null,null,null,null,null,null,null,null,null,null,null,null,"COTTON",177685468419.00772,46012.716919409715,3861660,5765.9605502120667,null,5765.9605502120667]
[null,null,null,null,null,null,null,null,null,null,null,null,null,null,null,null,null,null,null,null,null,null,null,null,null,null,null,null,null,null,null,null,"TOBAC",69521792154.404144,18003.084723772714,3861660.0000000005,5765.9605502120676,null,5765.9605502120676]
[null,null,null,null,null,null,null,null,null,null,null,null,null,null,null,null,null,null,null,null,null,null,null,null,null,null,null,null,null,null,null,null,"COFFEE",61307896311.452301,15876.047169210209,3861660.0000000005,5765.9605502120676,null,5765.9605502120676]
[null,null,null,null,null,null,null,null,null,null,null,null,null,null,null,null,null,null,null,null,null,null,null,null,null,null,null,null,null,null,null,null,"WHEAT",77345251777.698471,20029.016479363403,3861659.9999999995,5765.9605502120658,null,5765.9605502120658]
[null,null,null,null,null,null,null,null,null,null,null,null,null,null,null,null,null,null,null,null,null,null,null,null,null,null,null,null,null,null,null,null,"HORTI",1841468946024.7144,476859.41953064594,3861660.0000000005,5765.9605502120676,null,5765.9605502120676]
[null,null,null,null,null,null,null,null,null,null,null,null,null,null,null,null,null,null,null,null,null,null,null,null,null,null,null,null,null,null,null,null,"OTHERCROP",999047458785.30408,258709.32676240377,3861659.9999999995,5765.9605502120658,null,5765.9605502120658]
[null,null,null,null,null,null,null,null,null,null,null,null,null,null,null,null,null,null,null,null,null,null,null,null,null,null,null,null,null,null,null,null,"LIVEST",702602007718.83411,181943.00060565511,3861660,5765.9605502120667,null,5765.9605502120667]
[null,null,null,null,null,null,null,null,null,null,null,null,null,null,null,null,null,null,null,null,null,null,null,null,null,null,null,null,null,null,null,null,"FISH",90695274805.579147,23486.084949368702,3861660.0000000005,5765.9605502120676,null,5765.9605502120676]
[null,null,null,null,null,null,null,null,null,null,null,null,null,null,null,null,null,null,null,null,null,null,null,null,null,null,null,null,null,null,null,null,"FOREST",66622282943.660835,17252.239436838259,3861660,5765.9605502120667,null,5765.9605502120667]
[null,null,null,null,null,null,null,null,null,null,null,null,null,null,null,null,null,null,null,null,null,null,null,null,null,null,null,null,null,null,null,null,"MINING",4327252094256,101998,42424872,63345.85082575796,null,63345.85082575796]
[null,null,null,null,null,null,null,null,null,null,null,null,null,null,null,null,null,null,null,null,null,null,null,null,null,null,null,null,null,null,null,null,"FOODMFG",747510039131.01306,75104.143596291062,9952980,14861.093425379162,null,14861.093425379162]
[null,null,null,null,null,null,null,null,null,null,null,null,null,null,null,null,null,null,null,null,null,null,null,null,null,null,null,null,null,null,null,null,"TEXTILES",166823448404.36407,16761.155794984425,9952980,14861.093425379162,null,14861.093425379162]
[null,null,null,null,null,null,null,null,null,null,null,null,null,null,null,null,null,null,null,null,null,null,null,null,null,null,null,null,null,null,null,null,"FURNIMFG",258065359187.57932,25928.451497700116,9952980,14861.093425379162,null,14861.093425379162]
[null,null,null,null,null,null,null,null,null,null,null,null,null,null,null,null,null,null,null,null,null,null,null,null,null,null,null,null,null,null,null,null,"INDCHEMMFG",53303822757.566109,5355.5641383350621,9952980,14861.093425379162,null,14861.093425379162]
[null,null,null,null,null,null,null,null,null,null,null,null,null,null,null,null,null,null,null,null,null,null,null,null,null,null,null,null,null,null,null,null,"OTHERMFG",54144602111.95871,5440.0392758710168,9952980,14861.093425379162,null,14861.093425379162]
[null,null,null,null,null,null,null,null,null,null,null,null,null,null,null,null,null,null,null,null,null,null,null,null,null,null,null,null,null,null,null,null,"ELECWATER",350208968256,15864,22075704,32961.896796237554,null,32961.896796237554]
[null,null,null,null,null,null,null,null,null,null,null,null,null,null,null,null,null,null,null,null,null,null,null,null,null,null,null,null,null,null,null,null,"EQUIPMACHIN",365858065447.5188,36758.645696818319,9952980,14861.093425379162,null,14861.093425379162]
[null,null,null,null,null,null,null,null,null,null,null,null,null,null,null,null,null,null,null,null,null,null,null,null,null,null,null,null,null,null,null,null,"CONSTR",917076525924,85319,10748796,16049.350201280604,null,16049.350201280604]
[null,null,null,null,null,null,null,null,null,null,null,null,null,null,null,null,null,null,null,null,null,null,null,null,null,null,null,null,null,null,null,null,"TRADETRANS",8017821109800,533865,15018443.070439156,22424.488502291231,null,22424.488502291231]
[null,null,null,null,null,null,null,null,null,null,null,null,null,null,null,null,null,null,null,null,null,null,null,null,null,null,null,null,null,null,null,null,"TOURISM",568003522920,44053,12893640,19251.881208764185,null,19251.881208764185]
[null,null,null,null,null,null,null,null,null,null,null,null,null,null,null,null,null,null,null,null,null,null,null,null,null,null,null,null,null,null,null,null,"OTHER",2138586049290.0278,133436.28755002664,16027020,23930.4250134553,null,23930.4250134553]
[null,null,null,null,null,null,null,null,null,null,null,null,null,null,null,null,null,null,null,null,null,null,null,null,null,null,null,null,null,null,null,null,"FIRE",800364430812,21233,37694364,56282.587226564203,null,56282.587226564203]
[null,null,null,null,null,null,null,null,null,null,null,null,null,null,null,null,null,null,null,null,null,null,null,null,null,null,null,null,null,null,null,null,"PUBLIC",4535000970629.9717,282959.71244997333,16027020,23930.4250134553,null,23930.4250134553]
[null,null,null,null,null,null,null,null,null,null,null,null,null,null,null,null,null,null,null,null,null,null,null,null,null,null,null,null,null,null,null,null,null,null,2977053.0000000005]

{"sheet":"Philippines-IO-Data","index":19,"n_rows":133,"n_cols":51,"rows_kept":133,"cut":false,"hidden":false,"merged":[]}
[null,"Source:","OECD STAN"]
[]
[]
[]
[]
[]
[]
[]
[]
[]
[null,"Direct Requirements "]
[null,null,"TTL_C01T05: Agriculture, hunting, forestry and fishing","TTL_C10T14: Mining and quarrying","TTL_C15T16: Food products, beverages and tobacco","TTL_C17T19: Textiles, textile products, leather and footwear","TTL_C20: Wood and products of wood and cork","TTL_C21T22: Pulp, paper, paper products, printing and publishing","TTL_C23: Coke, refined petroleum products and nuclear fuel","TTL_C24: Chemicals and chemical products","TTL_C25: Rubber and plastics products","TTL_C26: Other non-metallic mineral products","TTL_C27: Basic metals","TTL_C28: Fabricated metal products","TTL_C29: Machinery and equipment, nec","TTL_C30T33X: Computer, Electronic and optical equipment","TTL_C31: Electrical machinery and apparatus, nec","TTL_C34: Motor vehicles, trailers and semi-trailers","TTL_C35: Other transport equipment","TTL_C36T37: Manufacturing nec; recycling","TTL_C40T41: Electricity, gas and water supply","TTL_C45: Construction","TTL_C50T52: Wholesale and retail trade; repairs","TTL_C55: Hotels and restaurants","TTL_C60T63: Transport and storage","TTL_C64: Post and telecommunications","TTL_C65T67: Financial intermediation","TTL_C70: Real estate activities","TTL_C71: Renting of machinery and equipment","TTL_C72: Computer and related activities","TTL_C73T74: R&D and other business activities","TTL_C75: Public administration and defence; compulsory social security","TTL_C80: Education","TTL_C85: Health and social work","TTL_C90T93: Other community, social and personal services","TTL_C95: Private households with employed persons","LHH",null,null,"VA % Output","L % Output","Avg Earnings ($2014)"]
[null,"TTL_C01T05: Agriculture, hunting, forestry and fishing",6.1735179333750563E-2,1.9278223318938927E-5,0.35810905571995572,0.12225782133433849,0.44746746118864672,0.15504836201670927,0,6.7528735632183909E-2,3.9127828990553379E-2,0,0,0,0,0,0,0,0,2.6641629012381905E-2,5.0381640930045085E-5,0,0,5.3376064707509469E-2,8.8433060359488231E-4,0,0,0,1.4102383302778171E-4,1.2418246543588043E-4,2.8123744475693049E-4,0,0,1.035078394897688E-2,2.0309510221893988E-3,0,0.11007551299117063,null,{"$f":"B13","v":"TTL_C01T05: Agriculture, hunting, forestry and fishing"},{"$f":"TRANSPOSE(C48:AJ48)","v":0.70575679402441327},{"$f":"TRANSPOSE(C47:AI47)","v":0.20314908946589125},{"$f":"$AY$15","v":1740.7063195146825},null,null,null,{"$f":"1/43.034","v":2.3237440163591579E-2}]
[null,"TTL_C10T14: Mining and quarrying",0,1.1528377544725478E-2,0,0,0,0,0.10591246305322295,1.2156599005461807E-2,0,5.1768019965899824E-2,1.3112824322890033E-2,0,0,0,0,0,0,2.9341001114958042E-4,0,1.3010918929365156E-2,0,0,0,0,0,8.4162883233350957E-5,0,0,0,0,0,0,7.1335056564503674E-4,0,1.3884965130294144E-3,null,{"$f":"B14","v":"TTL_C10T14: Mining and quarrying"},0.57568630475015425,0.15048581122763727,{"$f":"$AY$16","v":3228.1165448091092},null,null,null,null,null,null,2006,2014]
[null,"TTL_C15T16: Food products, beverages and tobacco",2.4502246442073342E-2,0,4.5744919568601605E-2,0,0,1.3177661228685133E-4,0,3.0926469389418766E-2,0,0,0,0,0,0,0,0,0,0,0,0,6.3619437010395419E-4,0.19857689262788414,8.759582428507889E-3,0,0,0,1.1846001974333662E-2,1.0348538786323371E-3,1.6793893129770992E-3,0,0,1.276906723359022E-2,2.1568364161267581E-3,0,0.12025514779993314,null,"TTL_C15T16: Food products, beverages and tobacco",0.33303297196471399,5.8272442954714385E-2,{"$f":"$AY$16","v":3228.1165448091092},null,null,null,"ag",132.84,{"$f":"AU15*365.25","v":48519.81},{"$f":"AV15*$AT$13","v":1127.4761816238322},{"$f":"AW15*'Default-Data'!$F$19/'Default-Data'!$F$11","v":1293.09612306805},{"$f":"AX15*$AX$22","v":1740.7063195146825}]
[null,"TTL_C17T19: Textiles, textile products, leather and footwear",1.1041402716083304E-3,0,3.1555474524213568E-5,0.14962306822465132,1.3329151638701582E-3,2.6355322457370265E-4,0,2.0379880981495067E-5,8.7045863181026851E-3,1.2602238750648643E-3,0,3.5011553812758213E-5,3.3046418690439597E-3,2.2884080689268509E-5,0,8.4521760511433494E-4,7.4111000332336323E-3,4.5185141717035388E-2,0,8.2133539472412795E-5,1.9509960683187924E-4,2.0030331645062524E-3,7.3258156510818664E-4,0,0,0,1.1563954308278097E-2,2.4836493087176085E-4,3.8248292486942549E-3,6.1508694821326207E-4,2.44778567188657E-5,1.7273452032952433E-4,7.0160126221088318E-3,0,1.5751509087836131E-2,null,"TTL_C17T19: Textiles, textile products, leather and footwear",0.38369770071617038,0.13252921221258954,3228.1165448091092,null,null,null,"industry",246.35,{"$f":"AU16*365.25","v":89979.337499999994},{"$f":"AV16*$AT$13","v":2090.8894711158619},{"$f":"AW16*'Default-Data'!$F$19/'Default-Data'!$F$11","v":2398.029433286767},{"$f":"AX16*$AX$22","v":3228.1165448091092}]
[null,"TTL_C20: Wood and products of wood and cork",1.2720510041570627E-5,7.7112893275755709E-5,7.0123276720474598E-5,0,1.8896032617218127E-2,0,0,5.9101654846335696E-4,0,2.4710272060095381E-5,0,0,8.4537350138333845E-4,1.6247697289380642E-4,0,2.6124907794443077E-4,9.3054170820870718E-4,2.4705122938794673E-2,0,6.7929268528360226E-3,1.9085831103118625E-5,9.5382531643154863E-5,3.1396352790350856E-5,0,0,1.0286574617409561E-4,2.8204766605556341E-4,0,3.2141422257934913E-5,3.583030766290847E-5,0,0,0,0,3.2630593309309654E-4,null,"TTL_C20: Wood and products of wood and cork",0.14513093931315665,3.7635251685745642E-2,3228.1165448091092,null,null,null,"services",302.62,110531.955,2568.479690477297,{"$f":"AW17*'Default-Data'!$F$19/'Default-Data'!$F$11","v":2945.7749831590891},3965.4663234833888]
[null,"TTL_C21T22: Pulp, paper, paper products, printing and publishing",6.5892242015335844E-4,1.7350400987045035E-4,2.1352537761384514E-3,7.7271013946475682E-4,8.2327113062568603E-3,0.22966027989352447,1.5219135983714058E-3,3.7600880410858396E-3,8.8472844544650248E-4,1.680298500086486E-2,1.2447051785524756E-3,4.0263286884671947E-3,2.5617378829798135E-3,5.1718022357746839E-4,2.7032065622669649E-3,1.7058028030489305E-3,5.649717514124294E-4,7.2765682765095954E-3,7.3893073364066141E-4,2.8505169581602088E-4,4.3133978293048089E-3,8.6798103795270932E-4,2.1872792443944425E-3,2.3986305999847361E-3,3.8853483017997443E-3,6.966816445427384E-4,1.1281906642222536E-3,5.5054226343240337E-3,1.1370028123744476E-2,1.0163863940378368E-2,5.137290178871938E-2,3.9861812383736378E-3,1.0817751519017087E-2,0,2.8645836546017773E-3,null,"TTL_C21T22: Pulp, paper, paper products, printing and publishing",0.2647392140842843,7.8486150278048658E-2,3228.1165448091092,null,null,null,"avg"]
[null,"TTL_C23: Coke, refined petroleum products and nuclear fuel",3.1124543969715014E-2,6.4003701418877235E-2,2.9178295443389478E-2,1.0535243120995099E-2,3.8262505880508071E-2,2.3166328440028465E-2,4.3435707714291311E-2,2.5362761881470613E-2,1.546847798167756E-2,4.3070004200746255E-2,4.8697884001196463E-2,1.4389748617043625E-2,1.7522287119581925E-2,9.0506539126056964E-3,9.150509569972657E-3,3.5145684779936071E-2,2.5357261548687272E-2,1.4611818555249106E-2,0.17860291709700984,4.4584017779495604E-2,4.0557391094127079E-2,5.8479030150418256E-2,0.17765102953873524,4.1027486126102554E-2,4.834748311750578E-2,8.9119141912648286E-3,0.17360033845719924,2.2973756105637882E-2,5.7950984331056651E-2,2.0960729982801456E-2,1.7636295765942733E-2,1.4921605102311985E-2,1.3679546141193058E-2,0,9.7558688805300837E-3,null,"TTL_C23: Coke, refined petroleum products and nuclear fuel",0.16985240863624798,2.3092959069822068E-2,3228.1165448091092]
[null,"TTL_C24: Chemicals and chemical products",1.9480189077661261E-2,1.1354873534855028E-2,1.4936257941461088E-3,1.3267998492272899E-2,6.0373216245883645E-3,1.6735629760430117E-2,1.1495096599917789E-2,0.14347436210972528,0.21396158566169127,3.9289332575551655E-3,2.7692278003454297E-3,5.1817099642882157E-3,1.0195716774259657E-2,2.3890980239596325E-3,1.7399950285856324E-3,4.2414556183919356E-3,6.4805583250249254E-3,1.901296872249281E-2,3.6694628477382842E-3,2.637936032466905E-3,1.2723887402079084E-3,3.5959214429469389E-3,1.3029486407995603E-3,1.853487281806387E-4,8.5486708852171311E-4,6.966816445427384E-4,2.6794528275278519E-3,3.8496564285122941E-3,3.1940538368822817E-2,2.376743741639595E-3,7.0618616633927539E-3,0.12674727610948711,1.0440095337205009E-2,0,1.2682752911771565E-2,null,"TTL_C24: Chemicals and chemical products",0.26987038395695767,6.9984511290454063E-2,3228.1165448091092,null,null,null,null,null,null,null,{"$f":"1.56*40*52","v":3244.8}]
[null,"TTL_C25: Rubber and plastics products",2.1955600331750903E-3,1.9856570018507097E-3,6.2725271026464529E-3,5.4655107425555976E-4,3.1362709738121373E-3,2.2402024088764723E-3,0,7.8666340588570971E-3,2.696994777248209E-2,1.3343546912451506E-3,0,3.1510398431482392E-3,3.1944871400758273E-2,2.89254779912354E-3,2.3924931643052446E-3,7.6592082616179002E-2,3.7886340977068794E-3,4.1194765565401095E-2,0,5.3676683737559185E-3,1.0751684854756825E-3,1.3162789366755372E-3,1.6284241647261975E-2,3.608848766340671E-3,1.1172072532532442E-3,0,3.2435481596389784E-3,7.4509479261528273E-4,1.2936922458818802E-2,2.5499235620103193E-3,1.9092728240715244E-3,1.9000797236247676E-3,3.1471348484339856E-3,0,3.4314553984818447E-3,null,"TTL_C25: Rubber and plastics products",0.30754302348811319,8.6903165044664513E-2,3228.1165448091092,null,null,null,{"$f":"2.1*40*52","v":4368}]
[null,"TTL_C26: Other non-metallic mineral products",0,1.1952498457742135E-3,2.0511058440738817E-3,0,0,0,0,1.4765223771093176E-2,0,7.912229113642541E-2,1.5341714991460745E-3,4.9016175337861494E-4,1.0759299108515218E-2,1.2906621508747441E-3,0,4.9176297024834028E-3,1.3293452974410104E-4,7.8633882988087562E-3,1.662594150691488E-3,7.2156730118852069E-2,1.9085831103118623E-4,3.3765416201676822E-3,0,0,0,2.0484310635850586E-2,0,0,2.7320208919244678E-4,4.060768201796293E-4,1.1626981941461206E-3,1.342014350252458E-3,8.8539393735942787E-3,0,5.7822151546591434E-3,null,"TTL_C26: Other non-metallic mineral products",0.37628802293113245,8.003657120264894E-2,3228.1165448091092,null,null,null,null,null,null,null,{"$f":"AT21/AX20","v":1.346153846153846}]
[null,"TTL_C27: Basic metals",0,1.0410240592227022E-3,8.0641768228545776E-5,0,7.8406774345303435E-5,5.00751126690035E-4,0,0,0,0,0.32034272812358283,0.37315314053637699,0.14947740547187213,3.8033342105564263E-3,2.1967437235893613E-2,0.18302803048930416,6.0850780990362244E-2,2.2181796842908278E-2,5.8778581085052599E-5,3.677166876026669E-2,0,0,0,0,0,0,2.1153574954167254E-3,0,3.7926878264363199E-3,9.5547487101089253E-5,0,0,1.6784719191647924E-5,0,0,null,"TTL_C27: Basic metals",0.20527986568762724,4.6719864143806869E-2,3228.1165448091092]
[null,"TTL_C28: Fabricated metal products",1.8953559961940234E-3,4.9159469463294263E-3,5.3924799798044966E-3,3.2039200904636258E-4,1.2231456797867335E-2,1.8448725720159186E-3,2.1238279797208682E-3,1.640580419010353E-2,1.7123776363480692E-4,9.3899033828362443E-4,1.1636546087862677E-2,1.8486100413136336E-2,4.5778255968849269E-2,1.6659610741787474E-3,7.7989062888391752E-3,6.6234325055323342E-3,6.7464273845131272E-3,1.0797488410304559E-2,2.0740442182868562E-3,1.3566528166972656E-2,4.4745670697311443E-4,8.574889594719623E-3,4.6832892912273359E-3,2.6712022590739105E-3,3.7541782194339785E-4,7.2473593895385543E-4,5.6409533211112682E-4,1.6557662058117395E-4,9.4415427882683801E-3,2.1498184597745082E-4,1.3524015837173299E-3,9.168216848259368E-4,9.9869079190305137E-4,0,3.0348302283894803E-4,null,"TTL_C28: Fabricated metal products",0.25183810657516981,7.7200476157131853E-2,3228.1165448091092,null,null,null,null,{"$f":"12000*12","v":144000},{"$f":"AU24*AT13","v":3346.1913835571872}]
[null,"TTL_C29: Machinery and equipment, nec",3.3836556710577871E-4,1.041024059222702E-2,5.2592457540355945E-5,1.3192612137203166E-4,8.4679316292927704E-3,2.1084257965896212E-4,1.6638283712098968E-4,2.9550827423167848E-4,2.8539627272467823E-5,2.4710272060095382E-4,8.6839896178079687E-4,3.8512709194034035E-4,1.0913003381494006E-2,2.9978145702941745E-4,3.6353467561521251E-3,1.9670518809933612E-3,8.0425390495181114E-3,3.0514641159556368E-3,8.7328177612078163E-4,1.3721132476567784E-3,0,1.2304346581966978E-3,6.3368305381858135E-3,4.1430892181554529E-4,1.8092425153898692E-5,0,3.8076434917501058E-3,8.2788310290586974E-5,2.7641623141824024E-3,1.1943435887636157E-5,3.0597320898582119E-5,2.6574541589157588E-5,1.6197254019940247E-3,0,1.6161087801586254E-4,null,"TTL_C29: Machinery and equipment, nec",0.36586740444717697,0.10884824264781227,3228.1165448091092]
[null,"TTL_C30T33X: Computer, Electronic and optical equipment",5.1136450367113924E-4,2.062769895126465E-3,2.4543146852166107E-5,2.4500565397663024E-4,7.8406774345303435E-5,2.6355322457370265E-5,4.893612856499697E-6,2.6493845275943589E-4,2.8539627272467823E-5,9.8841088240381525E-5,1.350842829436795E-4,0,3.104826314171534E-2,0.4160005492179365,0.3498788217747949,6.6341898205065156E-2,1.0634762379528083E-3,6.4550202452907707E-4,7.1122083112913652E-3,4.1453280510194224E-3,5.8105752469494478E-4,4.0060663290125047E-4,2.3599591847413726E-2,2.3397551216214743E-2,1.2890852922152816E-3,1.8702862940744657E-4,8.4614299816669007E-4,3.3156718271380073E-2,3.25431900361591E-3,1.31138926046245E-2,4.6569122407641985E-3,7.2681371246346004E-3,3.7740441102420356E-2,0,1.8819648428488422E-3,null,"TTL_C30T33X: Computer, Electronic and optical equipment",0.24645926061535292,9.2481435289540836E-2,3228.1165448091092,null,null,null,"Philipine Statistics Authority"]
[null,"TTL_C31: Electrical machinery and apparatus, nec",1.2720510041570627E-5,4.4339913633559529E-3,7.7135604392522059E-5,7.5386355069732378E-5,3.1362709738121374E-4,1.0542128982948106E-4,0,9.1709464416727811E-5,1.1415850908987129E-4,2.2239244854085845E-4,2.0262642441551927E-4,7.0023107625516426E-5,1.9213034122348603E-3,1.4874652448024531E-4,6.6026597066865525E-3,1.5367592820260634E-4,7.9760717846460614E-4,6.4550202452907707E-4,1.5954186294514278E-4,1.8359261764421683E-4,0,0,8.4770152533947306E-4,5.1243471908764813E-4,1.3569318865424018E-5,0,1.833309829361162E-3,7.0370063746998915E-4,1.1651265568501407E-3,2.3886871775272313E-4,1.958228537509256E-4,6.6436353972893964E-5,1.1413609050320587E-3,0,1.4196467013492659E-2,null,"TTL_C31: Electrical machinery and apparatus, nec",0.25983407904548844,8.6891001739995019E-2,3228.1165448091092,null,null,null,"http://202.78.94.69/dews/Table.aspx?rxid=e75f57ad-db45-47cd-af00-543d0500b96d&px_db=Element_03&px_type=PX&px_language=en&px_tableid=Element_03%5cDWI03041.px&layout=tableViewLayout1"]
[null,"TTL_C34: Motor vehicles, trailers and semi-trailers",4.5793836149654263E-5,3.6628624305983963E-4,7.0123276720474594E-6,1.8846588767433094E-5,0,2.6355322457370265E-5,1.9574451425998788E-5,2.0379880981495067E-5,0,2.4710272060095381E-5,1.9297754706239931E-4,3.5011553812758213E-5,5.1234757659596274E-5,1.8307264551414808E-5,0,5.6537373985738874E-2,0,5.8682002229916093E-5,3.2748066604529308E-4,1.9325538699391246E-5,2.5235710014123513E-4,9.5382531643154873E-6,2.176813793464326E-3,7.6320064544968872E-5,2.7138637730848036E-5,1.8702862940744657E-5,8.3204061486391208E-3,4.9672986174352171E-4,5.5443953394937733E-4,3.4635964074144853E-4,1.6522553285234346E-4,0,1.6784719191647923E-4,0,8.7491934876984534E-3,null,"TTL_C34: Motor vehicles, trailers and semi-trailers",0.1633728792721908,4.0539709859847554E-2,3228.1165448091092]
[null,"TTL_C35: Other transport equipment",0,0,0,0,0,0,0,0,0,0,0,0,2.5617378829798137E-5,0,0,0,0.23479561316051845,0,0,0,0,0,0,0,0,0,0,0,0,0,0,0,5.7907281211185338E-4,0,4.0094301797828494E-5,null,"TTL_C35: Other transport equipment",0.20927218344965107,4.6992356264539716E-2,3228.1165448091092]
[null,"TTL_C36T37: Manufacturing nec; recycling",2.7985122091455382E-5,3.8556446637877854E-5,4.5580129868308484E-5,9.4232943837165473E-4,7.8406774345303435E-5,4.2168515931792424E-4,3.4255289995497874E-5,1.2227928588897039E-4,8.5618881817403459E-5,7.413081618028614E-5,1.6403091500303939E-4,5.6018486100413141E-4,1.0246951531919255E-4,4.2381317436525276E-3,2.1749937857320405E-4,5.9933611999016473E-4,3.3233632436025255E-4,2.3766210903116015E-2,1.091602220150977E-4,1.4977292492028216E-4,4.1776763636826319E-4,1.9171888860274129E-3,2.4070537139268987E-4,1.3192468299916048E-3,5.24680329463062E-4,9.3514314703723285E-5,1.4102383302778171E-4,1.6557662058117393E-3,1.4383286460425873E-3,5.6731320466271739E-4,2.7231615599738086E-3,7.7331916024448583E-3,1.6700795595689683E-3,0,2.9065284626364285E-3,null,"TTL_C36T37: Manufacturing nec; recycling",0.40537527140426033,0.13684642920016432,3228.1165448091092]
[null,"TTL_C40T41: Electricity, gas and water supply",6.495092427225963E-3,1.474784083898828E-2,1.2464412437064358E-2,1.1251413494157559E-2,4.4143013956405831E-2,1.7526289434151226E-2,1.2429776655509229E-3,1.81788538354936E-2,4.8802762635919974E-3,2.0484815537819074E-2,4.8311928907071665E-2,1.628037252293257E-2,1.3423506506814223E-2,5.5013329977001502E-3,1.3345140442455879E-2,1.6535529874600441E-2,1.8344965104685942E-2,2.5174578956634001E-2,6.2876287880696269E-2,4.0873514349212478E-3,2.8295804934323533E-2,2.4961608531013629E-2,7.7915282174720706E-3,2.0083079841690381E-2,2.1661156015505206E-2,2.8288080197876294E-3,1.5653645466083766E-2,3.1997681927311859E-2,4.5769385295299315E-2,1.5932543474106633E-2,3.8638296830729502E-2,3.9768801488174334E-2,3.2335761522709727E-2,0,2.4926935845416113E-2,null,"TTL_C40T41: Electricity, gas and water supply",0.59925603110226633,0.12410677549101107,{"$f":"$AY$17","v":3965.4663234833888}]
[null,"TTL_C45: Construction",5.7496705387899243E-4,1.9779457125231339E-2,9.7471354641459683E-4,7.3501696192989068E-4,2.2737964560137994E-3,9.487916084653296E-4,2.3489341711198543E-4,1.1514632754544714E-3,3.4247552726961384E-4,1.0131211544639105E-3,9.6488773531199651E-4,3.5011553812758212E-4,1.6907470027666769E-3,2.0366831813448976E-4,2.3769574944071587E-3,7.6837964101303174E-4,4.3536058491193087E-3,3.4622381315650495E-3,2.5274789866572621E-3,7.0538216252778044E-3,1.5014187134453317E-3,1.2876641771825906E-3,2.5745009288087703E-3,4.819066932696606E-3,2.790756579988873E-3,8.8609488897512995E-2,1.4102383302778171E-4,2.4836493087176085E-4,3.6962635596625151E-3,1.1507500477737435E-2,1.9147803418332689E-2,3.0959340951368592E-3,7.7881097049246365E-3,0,0,null,"TTL_C45: Construction",0.55032853415788974,0.16911295777369795,{"$f":"$AY$16","v":3228.1165448091092}]
[null,"TTL_C50T52: Wholesale and retail trade; repairs",3.3315015798873471E-2,2.5196637877853176E-2,9.1977195910410509E-2,0.12478326422917452,0.11078877214991376,8.386263605935218E-2,7.2611427564742495E-2,8.6074427325344427E-2,8.633237249921516E-2,6.2665249944401882E-2,4.8861914916199498E-2,4.8526013584482879E-2,4.8596167640127058E-2,9.0794878542741736E-2,7.9899950285856322E-2,6.0240963855421686E-2,3.1904287138584245E-2,7.9396749017076468E-2,2.4258760107816708E-2,3.9308145714561794E-2,2.4677979616332384E-2,8.9783577035701681E-2,5.1270244106642944E-2,1.510046991354027E-2,8.5531939915056057E-3,6.8733021307236606E-3,6.9242702016640817E-2,2.3429091812236111E-2,3.1442346323824831E-2,1.3060147143130136E-2,1.7599578980864436E-2,5.264416688812118E-2,2.9331296787404745E-2,0,0.10126093494977111,null,"TTL_C50T52: Wholesale and retail trade; repairs",0.69111490942712817,0.15383603998693679,{"$f":"$AY$16","v":3228.1165448091092}]
[null,"TTL_C55: Hotels and restaurants",2.9511583296443856E-4,1.4073103022825416E-3,1.0167875124468816E-4,6.9732378439502454E-4,0,0,0,3.7906578625580829E-3,5.7079254544935646E-5,0,4.2358571580196642E-3,0,0,6.7050356419556735E-4,0,2.1360954020162282E-3,0,2.1712340825068952E-3,0,1.6185138660740168E-3,1.0104887245151139E-2,0,4.5127024410664296E-2,3.9250318908841137E-4,2.3981509541492717E-2,2.5763193700875766E-3,1.1987025807361443E-2,1.6185114661809753E-2,3.0807553234230612E-2,1.0462449837569273E-2,1.576373972694951E-2,1.518735051820356E-2,2.2776863943066231E-2,0,3.6174929588237696E-2,null,"TTL_C55: Hotels and restaurants",0.37486288761076292,0.14121383809769078,3228.1165448091092]
[null,"TTL_C60T63: Transport and storage",3.747462258246707E-3,2.7953423812461446E-3,8.9231869626803916E-3,1.0648322653599699E-2,1.5524541320370079E-2,1.0673905595234958E-2,5.4710591735666605E-3,9.5174044183581972E-3,9.2182996090071061E-3,5.9304652944228917E-3,9.118189098698366E-3,6.3721027939219943E-3,6.1994056768111486E-3,6.6615558886460643E-3,6.866766094954015E-3,1.3139291861322842E-2,4.7524094383516119E-3,7.8633882988087562E-3,2.7961810716175023E-3,3.5510677360131413E-3,5.2061905953506918E-3,6.2761705821195897E-3,4.3326966850684174E-3,1.1775095672652341E-3,5.3824964832848603E-4,4.909501521945472E-4,1.1987025807361443E-2,1.6971603609570326E-3,2.8204098031337889E-3,1.5407032295050643E-3,2.2397238897762114E-3,5.1421737975019931E-3,7.1502903756420159E-3,0,3.3771738822017082E-2,null,"TTL_C60T63: Transport and storage",0.44202401820988457,0.16449072499411319,3228.1165448091092]
[null,"TTL_C64: Post and telecommunications",3.3327736308915042E-4,3.0845157310302283E-4,2.9802392606201702E-4,1.4323407463249151E-3,2.74423710208562E-3,1.0278575758374403E-3,1.1744670855599271E-4,8.3557512024129768E-4,5.7079254544935645E-4,4.9420544120190764E-4,5.885815185403178E-4,5.2517330719137323E-4,3.6889025514909315E-3,6.1558177054132294E-4,4.1324881928908779E-3,1.1679370543398082E-3,2.858092389498172E-3,1.408368053517986E-3,1.2595410232511272E-4,1.3769446323316263E-3,1.8241813238780713E-2,6.2952470884482215E-4,1.7738939326548233E-3,2.1903858524406069E-2,1.1597244523649059E-2,6.2187019277975988E-4,1.6922859963333801E-3,7.4095537710075323E-3,1.0229007633587786E-2,7.6378272501433225E-3,5.2627391945561245E-3,2.9896359287802285E-3,8.0314881332035314E-3,0,2.7926606455305956E-2,null,"TTL_C64: Post and telecommunications",0.60569783796160004,0.10740413654749835,{"$f":"$AY$17","v":3965.4663234833888}]
[null,"TTL_C65T67: Financial intermediation",8.8585631929497845E-3,9.7740592227020372E-3,4.2775198799489501E-3,1.1552958914436487E-2,1.4818880351262347E-2,5.0602219118150906E-3,6.8314835476735768E-3,8.8346784054781115E-3,6.5926538999400673E-3,3.4347278163532583E-3,1.059446733372572E-2,3.1510398431482392E-3,8.9916999692591457E-3,4.2793230888932112E-3,1.7803877703206562E-2,9.2051880993361205E-3,2.0638085742771685E-2,1.7604600668974825E-2,8.8083902226028833E-3,1.4233259252101654E-2,5.8375074752838485E-2,7.3539931896872395E-3,2.0596007430470162E-2,4.3295282329724488E-2,4.1381899433254779E-2,1.2381295266772962E-2,1.2692144972500352E-2,9.4378673731269139E-3,1.2543190036159099E-2,5.7931635772979176E-2,1.146787587278858E-2,4.5708211533351051E-3,1.3973278727046895E-2,0,8.0851084828439571E-2,null,"TTL_C65T67: Financial intermediation",0.63779417152523665,0.13973232256984808,{"$f":"$AY$17","v":3965.4663234833888}]
[null,"TTL_C70: Real estate activities",4.4776195346328611E-4,6.2847008019740903E-3,1.4305148450976816E-3,3.128533735393894E-3,5.4884742041712399E-3,6.1144348101099012E-3,1.2723393426899212E-4,3.8721773864840627E-3,1.2557435999885841E-3,2.6192888383701103E-3,1.3315450747305552E-3,4.4114557804075345E-3,7.2497182088328725E-3,2.210602194583338E-3,8.3115833954760122E-3,4.1646176542906319E-3,4.3536058491193087E-3,1.4494454550789274E-2,2.4351126449521793E-4,1.3527877089573872E-3,1.2753576472683933E-2,9.0613405060997118E-3,1.5028387535647942E-2,3.0800597477076724E-2,2.0005699113923477E-2,3.5395168115359261E-3,1.1140882809194754E-2,1.1507575130391589E-2,3.1024507834471676E-2,5.5118956621440863E-3,1.0898765704074951E-2,3.8931703428115865E-3,4.6762227667931117E-2,0,0.10787032639229006,null,"TTL_C70: Real estate activities",0.8114704658415588,2.0797583590108058E-2,3965.4663234833888]
[null,"TTL_C71: Renting of machinery and equipment",1.9157088122605363E-3,1.9278223318938928E-4,8.4147932064569507E-5,9.4232943837165476E-5,9.4088129214364106E-4,7.9065967372110791E-5,4.893612856499697E-6,8.1519523925980267E-5,5.9933217272182431E-4,2.2239244854085845E-4,2.3157305647487914E-4,8.4027729150619706E-4,3.074085459575776E-4,7.0940650136732381E-5,1.5535669898086004E-5,3.8418982050651587E-4,8.3084081090063148E-4,3.5209201337949649E-4,2.5190820465022542E-5,1.3431249396076916E-3,1.0009458089635546E-3,3.5291536707967306E-4,9.9107820308207539E-3,6.7924857445022298E-3,1.2664697607729083E-3,3.2730010146303143E-5,1.0012692144972499E-2,6.2091232717940222E-4,9.9638408999598235E-4,6.9271928148289706E-4,1.382998904615912E-3,8.2381078926388527E-4,1.2840310181610661E-3,0,5.6193706058187316E-4,null,"TTL_C71: Renting of machinery and equipment",0.50557044140459739,0.13820335636722605,3965.4663234833888]
[null,"TTL_C72: Computer and related activities",1.5315494090051035E-3,8.7908698334361515E-3,2.384191408496136E-4,1.8846588767433095E-4,7.8406774345303432E-4,3.6897451440318367E-4,2.593614813944839E-4,3.5664791717616366E-4,7.7056993635663126E-4,2.7181299266104919E-4,1.0420787541369563E-3,6.3020796862964788E-4,3.8426068244697202E-4,6.2244699474810347E-4,1.3982102908277405E-4,4.2260880255716744E-3,2.359587902957793E-3,3.5209201337949649E-4,1.6793880310015032E-5,1.690984636196734E-4,9.4368831565419867E-4,5.9137169618756022E-4,4.9972528191308445E-3,1.4871509719905364E-2,8.4401163342937395E-3,5.70437319692712E-4,9.871668311944718E-4,0.1200844440764964,9.9799116110887917E-3,1.3800640168163578E-2,1.0090996432352384E-2,3.4945522189742226E-3,8.4762831917822006E-3,0,1.1861744978034492E-3,null,"TTL_C72: Computer and related activities",0.4996688467588376,0.17426939316168555,3965.4663234833888]
[null,"TTL_C73T74: R&D and other business activities",2.3011402665201266E-2,3.9751696483652066E-2,4.4002356142097809E-3,3.9954768186958155E-3,9.3304061470911078E-3,2.6091769232796562E-3,1.1744670855599272E-3,5.8490258416890838E-3,1.5668255372584834E-2,3.385307272233067E-3,2.8174721871110295E-3,3.9212940270289195E-3,4.8416845988318476E-3,5.4281039394944901E-3,1.8487447178722346E-3,7.1459306614211956E-3,1.4822200066467265E-2,3.6969661404847136E-3,1.1251899807710071E-3,9.7738911972171227E-3,9.0148742243730314E-3,9.9770128098739981E-3,1.1710839590800869E-2,2.0039468376236113E-2,2.2036573837448604E-2,4.1707384357860585E-3,5.9230009871668312E-3,1.8875734746253828E-2,3.6994777018883082E-2,3.1805369768775085E-2,1.8811232888448288E-2,4.1722030294977413E-3,3.2176306690389067E-2,0,9.0705647374933543E-3,null,"TTL_C73T74: R&D and other business activities",0.48449979911611091,0.18960224989955804,3965.4663234833888]
[null,"TTL_C75: Public administration and defence; compulsory social security",0,0,0,0,0,0,0,0,0,0,0,0,0,0,0,0,0,0,0,0,0,0,0,0,0,0,0,0,0,0,0,0,2.4807814965255633E-2,0,0.10146387380040933,null,"TTL_C75: Public administration and defence; compulsory social security",0.55701796292757511,0.47307949550926814,3965.4663234833888]
[null,"TTL_C80: Education",0,1.3494756323257249E-4,3.5061638360237297E-6,1.3192612137203166E-4,0,0,0,0,0,5.9304652944228912E-4,0,0,0,1.922262777898555E-4,0,2.6893287435456109E-3,0,1.408368053517986E-3,0,0,0,0,0,8.1662469063116701E-3,2.1258599555830962E-4,1.080090334828004E-3,4.2307149908334503E-4,2.6492259292987832E-3,5.4560064282844524E-3,8.5258217083890697E-2,0,4.1456284879085835E-3,7.30974520796267E-3,0,8.971747704447014E-2,null,"TTL_C80: Education",0.68056396981880263,0.47338339055032341,3965.4663234833888]
[null,"TTL_C85: Health and social work",1.9843995664850177E-3,1.4651449722393585E-3,0,0,0,0,0,0,0,0,0,0,0,2.9062782475371005E-4,0,0,0,5.2813802006924481E-4,0,0,0,0,3.2442897883362551E-4,8.2861784363109058E-4,1.2529004419074843E-3,1.5289590454058758E-3,4.7948103229445774E-3,4.9259044622899243E-3,1.6295701084773004E-2,6.708030766290847E-2,1.6681659353906975E-2,2.9364868456019134E-3,1.5853167276511464E-2,0,3.39247140042611E-2,null,"TTL_C85: Health and social work",0.5182035609885729,0.33082646824342282,3965.4663234833888]
[null,"TTL_C90T93: Other community, social and personal services",4.3249734141340132E-5,1.9278223318938927E-5,6.8370194802462733E-4,8.6694308330192234E-4,4.7044064607182053E-4,1.1280078011754473E-2,2.7893593282048271E-4,6.7355506643841188E-3,4.7946573817745945E-3,8.1543897798314752E-4,1.5341714991460745E-3,1.3094321125971571E-2,1.0067629880110666E-2,3.1007929333958829E-3,3.6042754163559529E-3,8.9132038357511679E-4,0.10103024260551678,4.2837861627838744E-3,1.3435104248012025E-4,1.3866074016813219E-3,9.1484750420948602E-3,2.3149340429793684E-2,1.1590486905104523E-2,3.763669468703322E-2,1.3180331724615196E-2,8.6126683842129136E-3,6.9101678183613032E-3,8.0304660981869343E-3,3.9156287665729213E-2,2.3677861647238681E-2,5.0057216990080349E-3,7.0954026043050754E-3,7.9131558629024129E-2,0,4.0739511639067402E-2,null,"TTL_C90T93: Other community, social and personal services",0.48736110644868907,0.41888784450636141,{"$f":"AY15","v":1740.7063195146825}]
[null,"TTL_C95: Private households with employed persons",0,0,0,0,0,0,0,0,0,0,0,0,0,0,0,0,0,0,0,0,0,0,0,0,0,0,0,0,0,0,0,0,0,0,0,null,"private HH",0,0,{"$f":"AY15","v":1740.7063195146825}]
[null,"LHH",0.20314908946589125,0.15048581122763727,5.8272442954714385E-2,0.13252921221258954,3.7635251685745642E-2,7.8486150278048658E-2,2.3092959069822068E-2,6.9984511290454063E-2,8.6903165044664513E-2,8.003657120264894E-2,4.6719864143806869E-2,7.7200476157131853E-2,0.10884824264781227,9.2481435289540836E-2,8.6891001739995019E-2,4.0539709859847554E-2,4.6992356264539716E-2,0.13684642920016432,0.12410677549101107,0.16911295777369795,0.15383603998693679,0.14121383809769078,0.16449072499411319,0.10740413654749835,0.13973232256984808,2.0797583590108058E-2,0.13820335636722605,0.17426939316168555,0.18960224989955804,0.47307949550926814,0.47338339055032341,0.33082646824342282,0.41888784450636141,0,0]
[null,"VA % Output",0.70575679402441327,0.57568630475015425,0.33303297196471399,0.38369770071617038,0.14513093931315665,0.2647392140842843,0.16985240863624798,0.26987038395695767,0.30754302348811319,0.37628802293113245,0.20527986568762724,0.25183810657516981,0.36586740444717697,0.24645926061535292,0.25983407904548844,0.1633728792721908,0.20927218344965107,0.40537527140426033,0.59925603110226633,0.55032853415788974,0.69111490942712817,0.37486288761076292,0.44202401820988457,0.60569783796160004,0.63779417152523665,0.8114704658415588,0.50557044140459739,0.4996688467588376,0.48449979911611091,0.55701796292757511,0.68056396981880263,0.5182035609885729,0.48736110644868907,0,0]
[]
[]
[]
[null,"Total Requirements - Type 1 (only direct, indirect)"]
[null,null,"TTL_C01T05: Agriculture, hunting, forestry and fishing","TTL_C10T14: Mining and quarrying","TTL_C15T16: Food products, beverages and tobacco","TTL_C17T19: Textiles, textile products, leather and footwear","TTL_C20: Wood and products of wood and cork","TTL_C21T22: Pulp, paper, paper products, printing and publishing","TTL_C23: Coke, refined petroleum products and nuclear fuel","TTL_C24: Chemicals and chemical products","TTL_C25: Rubber and plastics products","TTL_C26: Other non-metallic mineral products","TTL_C27: Basic metals","TTL_C28: Fabricated metal products","TTL_C29: Machinery and equipment, nec","TTL_C30T33X: Computer, Electronic and optical equipment","TTL_C31: Electrical machinery and apparatus, nec","TTL_C34: Motor vehicles, trailers and semi-trailers","TTL_C35: Other transport equipment","TTL_C36T37: Manufacturing nec; recycling","TTL_C40T41: Electricity, gas and water supply","TTL_C45: Construction","TTL_C50T52: Wholesale and retail trade; repairs","TTL_C55: Hotels and restaurants","TTL_C60T63: Transport and storage","TTL_C64: Post and telecommunications","TTL_C65T67: Financial intermediation","TTL_C70: Real estate activities","TTL_C71: Renting of machinery and equipment","TTL_C72: Computer and related activities","TTL_C73T74: R&D and other business activities","TTL_C75: Public administration and defence; compulsory social security","TTL_C80: Education","TTL_C85: Health and social work","TTL_C90T93: Other community, social and personal services","TTL_C95: Private households with employed persons"]
[null,"TTL_C01T05: Agriculture, hunting, forestry and fishing",1.0799682575461826,2.9592297211504261E-3,0.40720475161085939,0.15829227834415877,0.49669067708686726,0.22104008198358407,2.3816307904461599E-3,0.10358293082236703,6.8734846717062537E-2,5.5987442778336928E-3,2.8096336584306179E-3,3.4261736531579147E-3,6.2115390823369284E-3,2.8469955276485097E-3,2.7494662628401081E-3,8.7304689037343095E-3,6.6705904590535726E-3,5.7240461242555309E-2,1.3798545202499237E-3,5.5672879036889906E-3,3.9104946293616006E-3,0.14086538966593981,1.425824079028337E-2,2.7678234871798086E-3,5.5750310027685764E-3,1.6537709344146179E-3,1.0951682878041042E-2,6.4391965337627054E-3,1.5199989395839471E-2,9.4624906717896105E-3,1.6029085972545726E-2,3.3950504050521822E-2,1.4463336823546514E-2,0]
[null,"TTL_C10T14: Mining and quarrying",5.3936790814186307E-3,1.0213347438971592,7.1102116261876451E-3,4.3268835900416979E-3,9.8684471837210998E-3,6.8883823416803873E-3,0.11412749379108102,2.1770799298188641E-2,8.0727482059967208E-3,6.4232075172428224E-2,3.1080532147249769E-2,1.4756317458517481E-2,9.8379553420790324E-3,4.0915091025182744E-3,4.706409878314906E-3,1.3215174758196646E-2,9.2637018683565716E-3,6.5715394893085914E-3,2.2429840975538493E-2,2.5450991194413249E-2,6.5928960919923816E-3,1.0550026535376409E-2,2.2623657698911136E-2,6.9494434996402845E-3,7.3567440202742225E-3,5.0885681573712236E-3,2.2016678312350678E-2,5.1155854915473573E-3,1.0762535502955341E-2,5.4764875165671601E-3,4.9630583153814191E-3,6.6698304609853565E-3,6.5842185464832894E-3,0]
[null,"TTL_C15T16: Food products, beverages and tobacco",2.9379017048194456E-2,1.7693436074815282E-3,1.0598604666705216,6.0855869946603988E-3,1.488946329365172E-2,8.0611611439536188E-3,1.1972039225503779E-3,4.2654561637034828E-2,1.1489619698714053E-2,1.0090481165895568E-3,2.4588586195875401E-3,1.8104072403828998E-3,1.9715465128387977E-3,1.6309054131307737E-3,1.431844832962157E-3,3.0478395242217204E-3,2.8714013907657973E-3,4.1634611496880148E-3,6.6266400743203316E-4,1.3759193134515284E-3,3.8261105534228576E-3,0.21322817352369325,2.0375163256121095E-2,1.5700748607541128E-3,6.1081119779795119E-3,1.0418563744037418E-3,1.663965040249564E-2,6.2853292358930448E-3,1.1756504853763301E-2,5.6874036389073825E-3,5.1436290105862344E-3,2.3222127301340934E-2,1.0157892809380415E-2,0]
[null,"TTL_C17T19: Textiles, textile products, leather and footwear",1.6533738997399996E-3,3.690440091607722E-4,8.5188274503523683E-4,1.1764152977297142,2.6251756476034487E-3,1.0653063079934075E-3,1.1592543640039394E-4,5.6139351546851085E-4,1.09348280089215E-2,1.7645608956069604E-3,1.9499092222366386E-4,3.9855287856925016E-4,4.5699599717265397E-3,7.3173607724416579E-4,4.3982026672448001E-4,2.2307775807826613E-3,1.3000109485359601E-2,5.5231508117772533E-2,7.8954325193620868E-5,4.7202615544540406E-4,5.2801526593548257E-4,3.108633454902534E-3,1.6493072211406191E-3,7.8373351347078499E-4,4.4211476610427108E-4,2.1435020752939889E-4,1.4069204803579883E-2,8.0355996164227625E-4,5.5458351602143937E-3,1.4268297038331308E-3,5.4916850522283573E-4,9.6855684773646433E-4,9.6095948234742583E-3,0]
[null,"TTL_C20: Wood and products of wood and cork",5.1263869243505131E-5,2.6316590685295421E-4,1.1825094334783479E-4,7.2770163576052832E-5,1.0193381835633044,7.2742557227015468E-5,4.8323648711385761E-5,7.5233701084205409E-4,1.8743007676310367E-4,6.9695520949921048E-5,4.5821954671902106E-5,5.331255188660176E-5,9.4195867512131075E-4,4.9965460267299233E-4,2.2199413125296142E-4,3.8632317244810115E-4,1.3592831301353294E-3,2.5878250354805198E-2,4.2572889790855347E-5,7.0056191723879644E-3,7.0644909082169334E-5,2.1265979611688674E-4,1.2485557298915951E-4,1.3218914826755771E-4,7.211628522179052E-5,7.3893792742827215E-4,3.400812729182699E-4,1.0342152070612623E-4,1.9185537195390301E-4,2.1266912192647171E-4,2.4548889510993217E-4,3.4226689739370728E-4,2.1358115883946685E-4,0]
[null,"TTL_C21T22: Pulp, paper, paper products, printing and publishing",2.1705194914622833E-3,1.9029692111177195E-3,4.8347923871970306E-3,3.0125985533875823E-3,1.3512790799914933E-2,1.3001537954223883,3.0295905724656456E-3,7.9712481470073406E-3,4.2173284724369665E-3,2.474542433057652E-2,3.8512875425437145E-3,7.6926139985052551E-3,5.7592152556041436E-3,2.9747419709389399E-3,5.6967422287996106E-3,5.0413550114223118E-3,5.0837643111011094E-3,1.2100136393068504E-2,2.0181282863993731E-3,3.3624991656917903E-3,6.9287996851757471E-3,4.0017101516821134E-3,4.9411765379840681E-3,5.8120096935923363E-3,6.5718034787229677E-3,2.2374238373602771E-3,3.2958110004476498E-3,9.702003229353353E-3,1.8098888177919038E-2,2.1491868461244588E-2,6.8130654402385415E-2,7.6334315204983098E-3,1.8574050244165644E-2,0]
[null,"TTL_C23: Coke, refined petroleum products and nuclear fuel",4.6274995426870844E-2,8.2401848641806719E-2,6.2163078891990957E-2,3.667479508052475E-2,8.6679062512823091E-2,5.8695019332751029E-2,1.0620853996815356,5.6656207227590127E-2,4.2261219954483377E-2,6.6686393739079808E-2,0.10355608257225875,6.4909784328440634E-2,5.0713905510783953E-2,3.3850055874086495E-2,3.6169240779861729E-2,7.9337347484151027E-2,6.478301343410707E-2,4.2783820913293892E-2,0.20640073481233609,6.5949212131809085E-2,5.971412624394442E-2,9.2841378535053018E-2,0.20731785823321364,6.1227393981001764E-2,6.6366715218729264E-2,1.9974609890605663E-2,0.20238779188220332,4.5436343031248605E-2,8.9876678776730737E-2,4.4991072536444111E-2,3.953653748395216E-2,4.1235089862189309E-2,4.2457562322861415E-2,0]
[null,"TTL_C24: Chemicals and chemical products",2.7948236888008932E-2,1.8309409763716172E-2,1.563511841308024E-2,2.4056077407731618E-2,2.3794837269127966E-2,3.3872568855360871E-2,1.6744079653461228E-2,1.1753637590786641,0.26158202015598297,8.6825945127346846E-3,8.1637648197754095E-3,1.1530790508434903E-2,2.4155609402851462E-2,8.4071732566837372E-3,7.1183392752843921E-3,3.0770700360232345E-2,1.7679982775525262E-2,3.8621837740474695E-2,8.2406514966610125E-3,7.7433158773290026E-3,4.2576466250740077E-3,1.2203862385353115E-2,1.158475445116062E-2,5.1871283582011988E-3,4.7827286066572288E-3,2.6855172287956514E-3,9.9133617362693709E-3,9.4151164789441372E-3,4.9224971317865962E-2,1.8856846517088865E-2,1.5573099496713353E-2,0.15251546770704372,2.1954645962632496E-2,0]
[null,"TTL_C25: Rubber and plastics products",3.4967412619756606E-3,3.6208194918458071E-3,8.627295588928649E-3,2.0457220513849564E-3,6.1278007966187277E-3,4.649919664594054E-3,8.4172628740083089E-4,1.0903874700366915E-2,1.0309382131702096,2.2324376451569377E-3,9.0892639841056258E-4,4.1622854764178019E-3,3.441793074491007E-2,6.2491843954181805E-3,5.3220082712827467E-3,8.5112179217433082E-2,7.110760258150473E-3,4.4804769453431113E-2,4.9474145375463449E-4,6.4172327302976298E-3,1.8489525807918235E-3,4.1394867630837346E-3,1.8378546487112627E-2,4.9304971785354744E-3,2.0073412149037568E-3,8.3111753973631286E-4,5.1722017297284239E-3,2.0313096898582255E-3,1.5370351232726193E-2,4.4172379534500707E-3,3.2309113673096813E-3,4.3807598343561438E-3,5.485174916759092E-3,0]
[null,"TTL_C26: Other non-metallic mineral products",7.9043847869468662E-4,3.8167502219348427E-3,3.0658110976441843E-3,9.2467434434249918E-4,1.3903883904038247E-3,1.4189240261764421E-3,8.1954539977461258E-4,1.9699392392828606E-2,4.7304585190300601E-3,1.0866566587340303,3.2988062913143199E-3,2.4257325525883326E-3,1.3551794924320773E-2,3.1384547649984762E-3,1.981670191077871E-3,7.5116002995050052E-3,3.5330717436017037E-3,1.0632408257900187E-2,2.4881148511353883E-3,7.9524716704219733E-2,1.236592271946202E-3,5.4287967812007122E-3,1.7099224685455398E-3,2.2892409822850191E-3,1.4524645142605164E-3,2.9632123524315088E-2,1.1169414606477404E-3,1.1826575180772677E-3,3.5270488195888149E-3,2.9924033099141805E-3,3.8601591997112039E-3,4.9153061047562232E-3,1.3740887206948438E-2,0]
[null,"TTL_C27: Basic metals",2.2543870758679118E-3,9.6993304946734835E-3,4.687056003641321E-3,1.3461024747900893E-3,1.1318326389988167E-2,3.7724115268970028E-3,2.7108483415721118E-3,1.2115761182504074E-2,3.4142924002237805E-3,1.8064841760965175E-3,1.4824735800525817,0.56420141377136135,0.25141003932868006,1.235966103790982E-2,4.3027149871362705E-2,0.29390141550981325,0.12726482912613463,4.2312340888345935E-2,2.6129759109278145E-3,6.3824181138065914E-2,1.212636743408321E-3,7.1177914238571794E-3,6.8540629098181897E-3,3.4104650872719671E-3,1.468553201309939E-3,6.3351601259121985E-3,8.1550436052031661E-3,1.8264585891999774E-3,1.4272792536025982E-2,2.8051797785051862E-3,3.2858794389782689E-3,3.3025975208921528E-3,4.0945867019095286E-3,0]
[null,"TTL_C28: Fabricated metal products",3.312209697537621E-3,7.1923384035168583E-3,7.5640547463659488E-3,1.7112875734139207E-3,1.5689590874043844E-2,4.1984069471505733E-3,3.5199215696024846E-3,2.1030210931495631E-2,5.4562117124614404E-3,2.1001992248558189E-3,1.8745141335080696E-2,1.0264714996080953,5.1313149372373586E-2,3.85361791693957E-3,1.0447945702958362E-2,1.2343645024042406E-2,1.2472056258289389E-2,1.3724209522153991E-2,3.2459286744156613E-3,1.5677978854732419E-2,1.3034520164974881E-3,1.1374407468767396E-2,7.0486251148887714E-3,3.8882513818057803E-3,1.5039927691357195E-3,2.4006944634166901E-3,2.305209596304471E-3,1.4010603861117721E-3,1.2414482808641537E-2,2.0281302500550075E-3,2.9388014347304803E-3,4.5466249033584366E-3,3.2411110089170234E-3,0]
[null,"TTL_C29: Machinery and equipment, nec",5.9330866391851919E-4,1.1024159865426502E-2,4.6916445498818547E-4,4.5086243216157986E-4,9.3381496253239441E-3,6.7445266326320225E-4,1.4800275081660256E-3,8.582113862788108E-4,4.3881105188711754E-4,1.0919615830694742E-3,1.8872677033143408E-3,1.2778936330098034E-3,1.0116092121111013,7.8072791034671689E-4,4.1642052498098341E-3,2.8256128897177083E-3,1.1350705855803623E-2,3.7271153051118924E-3,1.2820279275720678E-3,1.9403096068129058E-3,2.5920038604802966E-4,1.678087943212134E-3,6.9803187460059498E-3,7.894950490186628E-4,3.1708433673475036E-4,2.6501125067498132E-4,4.3959008786405417E-3,3.9510062060239392E-4,3.3533806241482075E-3,3.931621533054538E-4,3.5145977444920007E-4,3.8518977988576982E-4,2.2358353818169225E-3,0]
[null,"TTL_C30T33X: Computer, Electronic and optical equipment",2.1367159285889314E-3,8.9728477100905063E-3,2.1692026984347357E-3,2.6005616598986964E-3,4.2155253164028834E-3,3.4057420969864473E-3,1.7443640354655114E-3,3.2262005358405887E-3,2.5245575789174424E-3,2.0925871979440933E-3,3.3809369447074127E-3,3.2999491464716503E-3,5.763504030496646E-2,1.7146070638679198,0.60569368110867117,0.12353332114730743,1.5617229672636181E-2,4.0707831310208718E-3,1.3917730135476394E-2,8.7031727326671651E-3,3.9806884490909879E-3,4.4706699235849603E-3,4.440000695590194E-2,4.6570457537018425E-2,5.5088567868890369E-3,2.1425849494534086E-3,6.2560793831626903E-3,6.7613712632527481E-2,1.2940136093639009E-2,2.9049780186439219E-2,1.1218159757153715E-2,1.5224494920977362E-2,7.5293881833685294E-2,0]
[null,"TTL_C31: Electrical machinery and apparatus, nec",9.5797005254558701E-5,4.6651694584516519E-3,1.7140882843321901E-4,1.585852833015901E-4,4.7580482274018747E-4,2.4238849799639083E-4,5.3828751946731587E-4,2.7610137764631592E-4,2.4563403882857008E-4,5.6616856299490453E-4,4.9699669090827534E-4,3.1773198048743568E-4,2.126449996344136E-3,3.3295522686190525E-4,1.0068252094701271,3.8241309826267373E-4,1.3829740854302197E-3,7.837275067377928E-4,2.9158667624315423E-4,3.7558377415069892E-4,9.2186491246337067E-5,1.5396810970781053E-4,1.0614345250851982E-3,6.9450612253560971E-4,1.2925229871505194E-4,7.4659183470125761E-5,2.0273665008704732E-3,9.0925612714465342E-4,1.3920502984885591E-3,4.1697645331633103E-4,3.0540844873793186E-4,1.7495487173562011E-4,1.4104083653711569E-3,0]
[null,"TTL_C34: Motor vehicles, trailers and semi-trailers",1.2620148296072682E-4,4.6915825059421845E-4,1.2824000480676475E-4,1.3889559635491024E-4,1.8466608104181356E-4,1.601380615025638E-4,1.1849575078739341E-4,1.3997867560079459E-4,1.1478793567793364E-4,1.1896512287457413E-4,4.2200309110669744E-4,2.5765943949156752E-4,1.9460375162805402E-4,1.3781278244170001E-4,1.1859739943028018E-4,1.0601130517972668,1.5772264185129239E-4,1.7271873698640721E-4,4.1434758569782631E-4,1.0877388089614436E-4,3.3744301547439969E-4,1.2937486459930713E-4,2.4835407160785435E-3,2.1798693892085454E-4,9.7010301393931237E-5,4.685403896448305E-5,9.0085813787105333E-3,6.6977205328291422E-4,7.1209572235720025E-4,4.7314040825557441E-4,2.5850040815332575E-4,9.304466886311611E-5,3.2329115205736233E-4,0]
[null,"TTL_C35: Other transport equipment",1.9774055907619418E-6,3.0487135358510307E-6,2.9582253734562563E-6,3.4806277222624588E-6,4.2730898055223152E-6,1.4486519866328058E-5,1.7529573196873099E-6,9.0861236336166576E-6,7.998326642967044E-6,2.3796128272413897E-6,3.9792152225422183E-6,1.3595394330640823E-5,4.5295697526459368E-5,6.9532369351954652E-6,7.3626698978505009E-6,4.5035678114259074E-6,1.306952568361448,6.6150333008874282E-6,1.1255311920035312E-6,3.0975313535167016E-6,1.0195224047684085E-5,2.1798478330937197E-5,1.3244401825862105E-5,3.4309777319777982E-5,1.3774580597418201E-5,8.0262822254160354E-6,8.2298618655950261E-6,1.0172269474406646E-5,3.688816007748377E-5,2.395948527919946E-5,7.1038674391093977E-6,8.7337443855493223E-6,8.2684093488229931E-4,0]
[null,"TTL_C36T37: Manufacturing nec; recycling",1.6421647916959852E-4,2.5086425631145004E-4,2.1087559015815253E-4,1.3025415184052618E-3,3.2374420329545403E-4,7.487732220081174E-4,1.3298322340222444E-4,3.3478976797456892E-4,3.0340301205712E-4,1.9225110815459999E-4,4.0031930352196261E-4,8.3436425905668592E-4,5.6642996475591374E-4,7.6062921495417849E-3,3.0213188737781651E-3,1.4134026112122022E-3,9.8969421763428706E-4,1.0245909787959795,2.376916980405776E-4,3.1271535277639542E-4,6.1926049673725306E-4,2.1975158181399253E-3,7.0541379710147933E-4,1.8526785399902879E-3,7.9236723322986867E-4,2.0275848497487405E-4,3.8937983391757196E-4,2.4459142545351061E-3,2.040990958238351E-3,1.7774447246192426E-3,3.1684289359048697E-3,8.1957849296171864E-3,2.6424072749771086E-3,0]
[null,"TTL_C40T41: Electricity, gas and water supply",1.2559300820386917E-2,2.2404483495815249E-2,2.3652297326911823E-2,2.3011473378598244E-2,6.1295290109620017E-2,3.3455643443083084E-2,7.5629013100266549E-3,3.2151294904819508E-2,1.8156277300203878E-2,2.9326756508294416E-2,8.2296938120783994E-2,5.2535097644345934E-2,3.4754289210086275E-2,1.8518934354185158E-2,2.7555449868002638E-2,4.2483717736500309E-2,4.4384536017509885E-2,3.9569481566671574E-2,1.0704370678953694,1.4407138485240818E-2,3.566860063298273E-2,3.8814806629320055E-2,1.7570181411083748E-2,2.9702077530165377E-2,2.9242958680507487E-2,6.6601497589931233E-3,2.4477232721669212E-2,4.491879023244312E-2,6.1330431787758287E-2,3.239030154652954E-2,4.8653551117757585E-2,5.1872534575494102E-2,4.8235361846873895E-2,0]
[null,"TTL_C45: Construction",1.3855878428983919E-3,2.1695478614765274E-2,2.3749997536868686E-3,2.3386012323482219E-3,4.6044351310398643E-3,3.2940838010917565E-3,3.0966678687915626E-3,3.2869680562108263E-3,1.9945598388901231E-3,3.2770123149969163E-3,3.1267243556513309E-3,2.5883830312059372E-3,3.8055295842662523E-3,1.7698640330700407E-3,4.5489707287279324E-3,2.9117243612299224E-3,9.3679068360641906E-3,6.2511614093365524E-3,3.5636154890633393E-3,1.0085033286886596,3.8087071571701603E-3,3.8643086325360013E-3,5.529735277986737E-3,9.4020726452997156E-3,5.7682171665393404E-3,9.0109562101128277E-2,2.5530500734651618E-3,2.538162539028025E-3,8.6693129148496476E-3,1.5614430720333874E-2,2.1318679063013952E-2,4.8059508388683487E-3,1.4971045494032973E-2,0]
[null,"TTL_C50T52: Wholesale and retail trade; repairs",4.9427369141900289E-2,4.2142295952727879E-2,0.12520273257078751,0.16541536624447675,0.15238714882664858,0.13279884941945139,8.617216324564464E-2,0.12483963809217441,0.12716336782384233,8.2680984772109861E-2,9.0600855280782558E-2,9.1457231322339835E-2,8.6047197542912277E-2,0.16871621052576052,0.14998432936459652,0.11514211474903285,7.139206648746689E-2,0.11529929723271971,4.6396445833585577E-2,6.1033360371573482E-2,1.0369367220958143,0.1324094306929218,8.7970373279952788E-2,3.3387494356578742E-2,2.3010555425323358E-2,1.7172747616285296E-2,9.9227688126145699E-2,4.5944059727216671E-2,6.268804254295969E-2,3.7475304761104354E-2,3.8433461056907849E-2,8.3041132599692563E-2,6.0947889030456268E-2,0]
[null,"TTL_C55: Hotels and restaurants",2.5840008689856967E-3,4.3002053470874496E-3,3.2996432184368416E-3,4.5269283725530123E-3,4.6214263307674634E-3,3.7156204139972898E-3,2.1254680261003013E-3,7.7770346593334025E-3,4.5319106219264601E-3,2.0037204078132147E-3,9.019624284170592E-3,5.1964442579434545E-3,3.8330005109060944E-3,4.73721009802634E-3,4.1183921394593176E-3,7.1938144139431703E-3,7.3376808776958579E-3,5.7110925566726013E-3,1.2995372971206798E-3,3.9633509161252503E-3,1.3235722974234768E-2,1.0038524883130162,4.85389008126186E-2,4.7385110461051518E-3,2.7041256439416388E-2,3.942764977656282E-3,1.5240221083393945E-2,2.0862806515424027E-2,3.5774273808728108E-2,1.7541771206717852E-2,1.8365497557524538E-2,1.8177888343676705E-2,2.9230940776777334E-2,0]
[null,"TTL_C60T63: Transport and storage",5.4767856190812087E-3,4.5028026224897605E-3,1.2684737647707802E-2,1.486511407525248E-2,2.0364986658400787E-2,1.6709672754315216E-2,7.0126557357812463E-3,1.394598053973041E-2,1.3879918595704603E-2,8.1045886746035078E-3,1.5450211877177685E-2,1.3320286768406218E-2,1.120253597715797E-2,1.3215692090984702E-2,1.2987415399880433E-2,2.0278568276480738E-2,1.0398053436480531E-2,1.2019808279752476E-2,4.789632327766761E-3,6.0773691217379079E-3,6.4465423718193509E-3,1.0895936913637747E-2,1.0078334230574812,3.0914202755108152E-3,1.9254556993605761E-3,1.5539715288247942E-3,1.5022909177169934E-2,3.7862810703807796E-3,6.1917660946026595E-3,4.0980491183423996E-3,4.5046919541953546E-3,8.4905743385296044E-3,1.0586189756202872E-2,0]
[null,"TTL_C64: Post and telecommunications",1.8804773794888323E-3,2.0456389075403218E-3,3.3282010751134075E-3,5.4501613320432456E-3,6.7896074012253893E-3,4.5688454894097568E-3,2.1167792561128176E-3,4.0163634836821883E-3,3.8881926712571063E-3,2.4616851962931292E-3,3.1417597720164413E-3,3.1640645637467124E-3,6.2542931312440505E-3,4.7841476821925211E-3,8.1381676223716559E-3,4.4141600997553041E-3,7.4930508770952369E-3,4.555475386508686E-3,1.314220402149812E-3,3.1788101220181584E-3,2.0471276599748449E-2,4.0406521359316267E-3,4.4451072714683021E-3,1.0246169008921282,1.3462161138582823E-2,1.5036549544628938E-3,4.2901755557817559E-3,1.0220097303191355E-2,1.3193209965953731E-2,1.0957521539686314E-2,6.9640438059730171E-3,5.2812321260532818E-3,1.1536029701472944E-2,0]
[null,"TTL_C65T67: Financial intermediation",1.4749398193623548E-2,1.5839399988215021E-2,1.8080088870153943E-2,2.7574873038968106E-2,3.31251130239541E-2,1.959472200316115E-2,1.4843695146739378E-2,2.2053019341334131E-2,1.9869225073971961E-2,1.1304478407529493E-2,2.486533644046993E-2,1.7627034910003902E-2,2.060468519136649E-2,1.9903586978515301E-2,3.3107721378801122E-2,2.4482087704278701E-2,3.9466494350897684E-2,3.0702110739902047E-2,1.4932915827560234E-2,2.1610569360675087E-2,6.604933615706185E-2,2.0971875121912446E-2,3.1443302557955619E-2,5.1763303309032969E-2,1.0476765164611426,1.6330722856092224E-2,2.3339733815328372E-2,1.7024732029283254E-2,2.2804366262362211E-2,6.7779232820907906E-2,1.7704408839417582E-2,1.4035922639411691E-2,2.6118246434169708E-2,0]
[null,"TTL_C70: Real estate activities",2.8804342684940259E-3,9.500356520623407E-3,4.9867760639499626E-3,7.6948448278796166E-3,1.0617361175322131E-2,1.2193268036109784E-2,2.9573418255242705E-3,8.5544162532765217E-3,6.1976128590847512E-3,5.4512821941904085E-3,5.0132360736798434E-3,8.6024417821852998E-3,1.1363673013266254E-2,7.8949217114825283E-3,1.3879076607762957E-2,8.922901746895584E-3,1.6484389659204166E-2,1.9018336191284936E-2,1.7627914251099523E-3,4.1448723168867312E-3,1.6708356447051334E-2,1.4195029534345883E-2,1.9647842441940164E-2,3.6896162226075592E-2,2.4046432471468222E-2,1.0052516282894202,1.4864787182643365E-2,1.6498841020849652E-2,3.7857530490721422E-2,1.253521000317352E-2,1.4302998590138935E-2,7.6229193116190662E-3,5.5803002878718755E-2,0]
[null,"TTL_C71: Renting of machinery and equipment",2.2775652757561363E-3,4.3562474184781827E-4,1.2251917837975423E-3,8.4049320651753516E-4,2.4534616075298208E-3,9.503628795098759E-4,2.4733670598727105E-4,7.007693993792242E-4,1.1539295868465969E-3,4.9186087107967345E-4,7.0498789973225183E-4,1.3310541457976026E-3,7.7111515796332868E-4,5.3862420511098746E-4,5.0438848718888378E-4,9.9787699364338889E-4,1.6946444112197786E-3,9.0877215551073913E-4,1.7659081349220932E-4,1.6378308512788717E-3,1.396844184456351E-3,1.0334028315297939E-3,1.0383417693983255E-2,7.310190167168047E-3,1.5725927974387258E-3,2.6255308132870766E-4,1.0105088785443159,9.8068935766662427E-4,1.4862199137281656E-3,1.2742618776205937E-3,1.6945453595787472E-3,1.201536940256505E-3,1.8846238048337357E-3,0]
[null,"TTL_C72: Computer and related activities",2.5954325879232361E-3,1.1101403283120892E-2,1.8026043143121256E-3,1.4185574300084017E-3,3.0371360233637373E-3,1.9034281998626837E-3,1.9026867094193954E-3,1.7425349643722177E-3,2.0945851417707335E-3,1.4567819272919616E-3,2.7644633905042257E-3,2.2902900282870341E-3,1.734068504347425E-3,2.0892518947001619E-3,1.6325177598978744E-3,6.6236609896982469E-3,6.3294151054913393E-3,1.5582244445680163E-3,6.3346425439416299E-4,1.1821313451524933E-3,2.5471594735003286E-3,2.1404539232749232E-3,7.0368767672494281E-3,1.8914786866555677E-2,1.0968895447964106E-2,1.1703780133933829E-3,2.276855632480361E-3,1.1375361004001718,1.3325357604734418E-2,1.8783838309058692E-2,1.2423787390842631E-2,4.8721556606047172E-3,1.2461881718205661E-2,0]
[null,"TTL_C73T74: R&D and other business activities",2.7642513188780152E-2,4.4256414456077767E-2,1.7369294292992648E-2,1.1943908508740001E-2,2.5845889480173051E-2,1.2406082333276853E-2,7.7085797500778082E-3,1.3772553806774602E-2,2.2996728973114729E-2,8.3374223517954163E-3,8.176603844129611E-3,9.1490524157271033E-3,1.0062603744000692E-2,1.3007430439709167E-2,9.0572126747323588E-3,1.4550023352292904E-2,2.9028923311377797E-2,1.0022625841158284E-2,3.6309033983842271E-3,1.378606928497389E-2,1.3118285612534617E-2,1.8714156854492701E-2,1.7733596739598314E-2,2.6227484295256769E-2,2.6521183808350328E-2,6.7916843132032846E-3,1.054930505705054E-2,2.528593848129956E-2,1.044511996136964,4.0077074447903517E-2,2.2793096379786913E-2,9.0080185470478632E-3,4.1811511656939589E-2,0]
[null,"TTL_C75: Public administration and defence; compulsory social security",6.4171779144124957E-5,8.7843704429429101E-5,9.6461060355060505E-5,1.1360643522653874E-4,1.2983129631242629E-4,4.741540030443101E-4,5.5840819475199559E-5,2.9691762790113235E-4,2.6171796152551276E-4,7.680960283149989E-5,1.2837462855354678E-4,4.4427905002423097E-4,3.7467043118618774E-4,2.2708279901134559E-4,2.3679150590513314E-4,1.4453405054396738E-4,3.6649227417948345E-3,2.1276232306219307E-4,3.5489959223187315E-5,9.941323316562417E-5,3.3393332795738989E-4,7.1275170664886222E-4,4.26514681473334E-4,1.1238698000908755E-3,4.5120755129841086E-4,2.6282513473882806E-4,2.6496534168159961E-4,3.3303169020993507E-4,1.2055800562856594E-3,1.0007850035621819,2.3249184404424087E-4,2.8588512591420077E-4,2.7102880022230717E-2,0]
[null,"TTL_C80: Education",2.1836960508733397E-4,4.8818928787477587E-4,1.8587619075727062E-4,3.3296372088910587E-4,2.8441514304551564E-4,3.1639704154724508E-4,1.103699026230115E-4,2.5896384924399947E-4,2.8341353464400853E-4,7.6290278339444099E-4,1.473178053102051E-4,2.7251974173532766E-4,2.9451794364417338E-4,5.6198711404411986E-4,3.5775294180811552E-4,3.0887385819977067E-3,1.6789841256340165E-3,1.6675877170085815E-3,6.0132796256888061E-5,2.0657664152656498E-4,4.1187617080423294E-4,4.4680729521163066E-4,3.7140235346649788E-4,9.066356934749777E-3,7.1802876244351718E-4,1.2686261965296447E-3,7.01565449780678E-4,3.4298022734960605E-3,6.4335643332908143E-3,8.624587216113111E-2,1.0004050612026438,4.404489177652131E-3,1.0832362532228005E-2,0]
[null,"TTL_C85: Health and social work",2.7089875005178246E-3,2.3977180722222283E-3,1.2289879739811344E-3,6.709471920654809E-4,1.620537596010944E-3,1.0618139189447326E-3,3.7822225063101377E-4,7.3965214385328837E-4,7.7361613447414121E-4,3.4647563814221659E-4,3.4309567198958417E-4,5.5865455825898278E-4,5.4308307186105788E-4,9.5660472561777366E-4,5.9661354224032302E-4,5.576245988220069E-4,3.2538922295593212E-3,1.0973789804860187E-3,1.534682865981085E-4,4.0220513914914581E-4,6.2377309055890553E-4,1.1869987897645533E-3,1.1590074211655877E-3,2.5092887919829854E-3,2.2158859365110435E-3,1.9006959045845906E-3,5.3592729898008888E-3,6.428870241334414E-3,1.8256201467839295E-2,7.0181825753931698E-2,1.7439844187599536E-2,1.003520990603556,2.0322686295004663E-2,0]
[null,"TTL_C90T93: Other community, social and personal services",2.5867566020627039E-3,3.5409690273995446E-3,3.8883335952867347E-3,4.5794615682860111E-3,5.2334837426940006E-3,1.9113090117303048E-2,2.2509366324042213E-3,1.1968713420225752E-2,1.0549819155458049E-2,3.0961857357882953E-3,5.1747656427355944E-3,1.7908834399420589E-2,1.5102919451428073E-2,9.1536799725967163E-3,9.5450367650987966E-3,5.8261499751748906E-3,0.14773258938474468,8.5764233311226915E-3,1.430595934099495E-3,4.0073353217466553E-3,1.3460811781492133E-2,2.8730934491695472E-2,1.719275486658883E-2,4.5303054769833678E-2,1.8188121441986956E-2,1.0594449172848375E-2,1.068072065406383E-2,1.3424466873699263E-2,4.8596785245864013E-2,3.1643397988951383E-2,9.3717179191256973E-3,1.1523994608739006E-2,1.0925137929394191,0]
[null,"TTL_C95: Private households with employed persons",0,0,0,0,0,0,0,0,0,0,0,0,0,0,0,0,0,0,0,0,0,0,0,0,0,0,0,0,0,0,0,0,0,1]
[]
[]
[]
[null,"Type 2 Total Requirements (direct, direct, induced)"]
[null,null,"TTL_C01T05: Agriculture, hunting, forestry and fishing","TTL_C10T14: Mining and quarrying","TTL_C15T16: Food products, beverages and tobacco","TTL_C17T19: Textiles, textile products, leather and footwear","TTL_C20: Wood and products of wood and cork","TTL_C21T22: Pulp, paper, paper products, printing and publishing","TTL_C23: Coke, refined petroleum products and nuclear fuel","TTL_C24: Chemicals and chemical products","TTL_C25: Rubber and plastics products","TTL_C26: Other non-metallic mineral products","TTL_C27: Basic metals","TTL_C28: Fabricated metal products","TTL_C29: Machinery and equipment, nec","TTL_C30T33X: Computer, Electronic and optical equipment","TTL_C31: Electrical machinery and apparatus, nec","TTL_C34: Motor vehicles, trailers and semi-trailers","TTL_C35: Other transport equipment","TTL_C36T37: Manufacturing nec; recycling","TTL_C40T41: Electricity, gas and water supply","TTL_C45: Construction","TTL_C50T52: Wholesale and retail trade; repairs","TTL_C55: Hotels and restaurants","TTL_C60T63: Transport and storage","TTL_C64: Post and telecommunications","TTL_C65T67: Financial intermediation","TTL_C70: Real estate activities","TTL_C71: Renting of machinery and equipment","TTL_C72: Computer and related activities","TTL_C73T74: R&D and other business activities","TTL_C75: Public administration and defence; compulsory social security","TTL_C80: Education","TTL_C85: Health and social work","TTL_C90T93: Other community, social and personal services","TTL_C95: Private households with employed persons","LHH"]
[null,"TTL_C01T05: Agriculture, hunting, forestry and fishing",1.1427821258958837,5.1632123954685243E-2,0.45410246928848386,0.21772241016364519,0.54762855008764144,0.2711206950765131,1.9164751763024564E-2,0.14309031409118941,0.11087886861934203,3.7883573561191965E-2,3.2588776296550895E-2,4.1505386507134596E-2,5.0837785851698125E-2,5.5310697390738163E-2,5.1820289717340609E-2,4.0805320042222315E-2,5.230983679586123E-2,0.11142008208337524,4.1146110405049875E-2,5.9288320161815088E-2,5.3112034208638831E-2,0.20162476007478097,7.2638586477904887E-2,4.6775876691203651E-2,5.1991398620831145E-2,1.5721195198244494E-2,5.9916665036096599E-2,6.8724612463366794E-2,8.6036826416166709E-2,0.16164309687280434,0.14973556058793364,0.13393999844012108,0.15204346314989936,0,0.25382667148767041]
[null,"TTL_C10T14: Mining and quarrying",8.9036782863423317E-3,1.0240545544190951,9.730826405789603E-3,7.6478017394156295E-3,1.2714823285537339E-2,9.6868553024546476E-3,0.11506532396804027,2.3978446868788264E-2,1.0427729474555893E-2,6.6036130997883954E-2,3.2744571788960661E-2,1.6884159770305527E-2,1.2331641765069918E-2,7.0231475553771405E-3,7.4484564332468681E-3,1.500749713782404E-2,1.1813994065991521E-2,9.5990624085406442E-3,2.4651954184063768E-2,2.845288847391108E-2,9.3422469812392186E-3,1.3945221695773053E-2,2.5885914463705608E-2,9.40858565748986E-3,9.9504612632215876E-3,5.8746469211638707E-3,2.4752810522630248E-2,8.5960551097235202E-3,1.4720853119001998E-2,1.3980243467348516E-2,1.2434491486482952E-2,1.2257180118457701E-2,1.4272108923339815E-2,0,1.41836737414436E-2]
[null,"TTL_C15T16: Food products, beverages and tobacco",7.8286416132709452E-2,3.9666462912810778E-2,1.096375418780192,5.2358380740769005E-2,5.4550113860431196E-2,4.7054342033516196E-2,1.4264681166904623E-2,7.3415338055963605E-2,4.4303304834715097E-2,2.61462840745171E-2,2.5645146165022083E-2,3.1459198324310565E-2,3.6717912526190277E-2,4.2479578992415896E-2,3.9638795131485625E-2,2.8021584756295174E-2,3.8406497272523495E-2,4.6348163482581126E-2,3.1625000793112604E-2,4.3203560770798108E-2,4.2134837511292392E-2,0.2605359234646058,6.5830584809537088E-2,3.5835110234777486E-2,4.224828093735452E-2,1.1994869628292739E-2,5.4764191789406835E-2,5.4781270881375854E-2,6.6910653914451793E-2,0.12417648631983154,0.1092485995529624,0.10107477727898327,0.11727892071488308,0,0.1976315525041312]
[null,"TTL_C17T19: Textiles, textile products, leather and footwear",8.4952613092409285E-3,5.6706512973222498E-3,5.9601321259921186E-3,1.1828886177356885,8.1734916661377489E-3,6.5202468359831728E-3,1.9439966425094689E-3,4.8646640394939423E-3,1.5525289644457893E-2,5.2811277429462723E-3,3.4386303673726607E-3,4.5462625139457789E-3,9.4307934775493905E-3,6.4462502548221206E-3,5.7847712781484749E-3,5.7244729371056886E-3,1.7971282143481693E-2,6.1132925677643314E-2,4.4104220823851514E-3,6.3234927803951764E-3,5.8872042956797255E-3,9.7267383787243492E-3,8.0082811645810666E-3,5.577231399271498E-3,5.497933959292026E-3,1.7466190437515055E-3,1.9402627242531303E-2,7.5878866436386574E-3,1.3261609973509276E-2,1.8002827980842483E-2,1.5112905292564446E-2,1.1859732327296237E-2,2.4595262142501847E-2,0,2.7647612756129165E-2]
[null,"TTL_C20: Wood and products of wood and cork",2.6406737970399507E-4,4.2806202023199273E-4,2.7713303764621833E-4,2.7411010665848639E-4,1.0195107530686505,2.4240780078209692E-4,1.0518222394773706E-4,8.8618181406142818E-4,3.3020739714400139E-4,1.7907144678635189E-4,1.4670900809480721E-4,1.8231893827542822E-4,1.0931453830999684E-3,6.773933763155024E-4,3.8823836627075744E-4,4.9498772534218086E-4,1.5139017213861245E-3,2.6061802392169878E-2,1.7729471273357142E-4,7.1876175837331377E-3,2.373319897797031E-4,4.1850299055902766E-4,3.2263900570273879E-4,2.8128151363837812E-4,2.2936764119555907E-4,7.8659614917341166E-4,5.0596693426393081E-4,3.1443471744987511E-4,4.3183943891058962E-4,7.2823309011400524E-4,6.9846540996242349E-4,6.8101558417757652E-4,6.7968099667861746E-4,0,8.599248567268767E-4]
[null,"TTL_C21T22: Pulp, paper, paper products, printing and publishing",7.8162806640511718E-3,6.2777282196117903E-3,9.0499970944331147E-3,8.3542267562602465E-3,1.8091127927648939E-2,1.3046550813378706,4.5380710279970269E-3,1.1522203634224458E-2,8.0052671675668041E-3,2.7647210837608498E-2,6.5278609120309186E-3,1.111520437642697E-2,9.7702583247264423E-3,7.6902218280287997E-3,1.0107267436768279E-2,7.9242685133592613E-3,9.185856598747863E-3,1.6969844432473839E-2,5.5923514532281926E-3,8.1909888932435865E-3,1.1351073763915866E-2,9.4628113915457002E-3,1.0188449116238802E-2,9.767489026233778E-3,1.0743744054198064E-2,3.5018152813787572E-3,7.6968231072871464E-3,1.5300266672008855E-2,2.4465760248460321E-2,3.516998414307896E-2,8.0148300230289404E-2,1.6620567959043705E-2,3.0939863013550523E-2,0,2.2814146049315545E-2]
[null,"TTL_C23: Coke, refined petroleum products and nuclear fuel",6.9995926043079928E-2,0.100782603996277,7.98734593591858E-2,5.911789674644688E-2,0.10591516089259077,7.760738342694927E-2,1.0684233511335566,7.1575713412599232E-2,5.8176422213105636E-2,7.8878385977531718E-2,0.11480183124031391,7.9289958480433173E-2,6.7566491270738632E-2,5.3662365869634583E-2,5.4700269500527789E-2,9.1450043905671824E-2,8.2018146760148083E-2,6.3244127857337032E-2,0.22141800124557323,8.6236338403537893E-2,7.8294518396726839E-2,0.11578645177475144,0.229364520312623,7.7846526093600793E-2,8.3895319405224211E-2,2.5287009901592595E-2,0.2208788508618669,6.8957709705283254E-2,0.11662739068442814,0.10246031771538837,9.0029240618109976E-2,7.8994965524691638E-2,9.4413105206922907E-2,0,9.5854705673941526E-2]
[null,"TTL_C24: Chemicals and chemical products",3.9594642425186323E-2,2.7333917882783242E-2,2.433048861064372E-2,3.5075099710963772E-2,3.3239298209911158E-2,4.3158084060117445E-2,1.9855861146330932E-2,1.1826888772309134,0.26939600109581435,1.4668569018224897E-2,1.3685156525539512E-2,1.8591109624030634E-2,3.2429823061921617E-2,1.8134540220893572E-2,1.6216627997333234E-2,3.6717742529705763E-2,2.6142018074647659E-2,4.8667355597291996E-2,1.5613767575918515E-2,1.7703806195656924E-2,1.3380171603213985E-2,2.3469340639699549E-2,2.2409134466945434E-2,1.3346721899906346E-2,1.3388851029067077E-2,5.293777667843595E-3,1.8992026278286573E-2,2.0963540927657256E-2,6.2358926487076499E-2,4.7072861567194223E-2,4.0363800455421713E-2,0.17105465708852577,4.7463566001314031E-2,0,4.7062351515107195E-2]
[null,"TTL_C25: Rubber and plastics products",6.4851592514476733E-3,5.9364697860989479E-3,1.0858490496281613E-2,4.8731561787863833E-3,8.5512091938453483E-3,7.0325432638522695E-3,1.6401961468705953E-3,1.2783468776952323E-2,1.0329432473531124,3.7684131733681289E-3,2.3256919616356591E-3,5.9739332495532217E-3,3.6541058680698325E-2,8.745185271675289E-3,7.6565903535902383E-3,8.6638164874266871E-2,9.282082425725733E-3,4.7382406491832833E-2,2.3866515937014362E-3,8.9730520649613857E-3,4.1897535830458174E-3,7.0301604364181322E-3,2.1156036233695198E-2,7.0242140810572338E-3,4.2156355237898272E-3,1.5003860442888456E-3,7.5017483311359935E-3,4.9945861499150045E-3,1.8740468113449229E-2,1.1657347075340045E-2,9.5920995021494624E-3,9.137836760880284E-3,1.2030655004349649E-2,0,1.2075998680077528E-2]
[null,"TTL_C26: Other non-metallic mineral products",5.02293741319201E-3,7.0964076987747714E-3,6.2258543383475118E-3,4.9291716983763728E-3,4.8226637599299363E-3,4.7934358517294235E-3,1.9504189393329437E-3,2.2361463078543087E-2,7.5701901337711167E-3,1.088832062178084,5.3053725607946356E-3,4.9915708310665184E-3,1.6558782821490044E-2,6.6735429241783408E-3,5.2881407754049236E-3,9.672855080248911E-3,6.6083171721491359E-3,1.4283117782802892E-2,5.1676287878401625E-3,8.3144525796803606E-2,4.5518707178709358E-3,9.5228603578053107E-3,5.6436835536422545E-3,5.254574008080398E-3,4.5800736179214593E-3,3.0580009075262302E-2,4.4162802891030634E-3,5.3795484831283841E-3,8.3001482176793158E-3,1.3246576003292238E-2,1.2869515353266959E-2,1.1652758192706114E-2,2.3011256209577526E-2,0,1.7103247178434207E-2]
[null,"TTL_C27: Basic metals",4.7040871189832512E-3,1.1597541737430132E-2,6.5160365143987755E-3,3.6638389923060993E-3,1.330487033266501E-2,5.7255228902982451E-3,3.3653791522084684E-3,1.3656523454271863E-2,5.0578818651537613E-3,3.0655715363448891E-3,1.4836349472621033,0.56568647832511298,0.25315043395023668,1.4405711314585892E-2,4.4940880095124147E-2,0.29515231385887547,0.12904473007247655,4.4425310889983471E-2,4.1638340464782778E-3,6.5919266483013592E-2,3.1314648110840745E-3,9.4873673824903155E-3,9.1308584504439655E-3,5.1267505615422669E-3,3.2787613725722645E-3,6.8837805298295699E-3,1.0064646087189147E-2,4.2555493313709853E-3,1.7035383143195214E-2,8.740124518677634E-3,8.5003450535876164E-3,7.2021228192484512E-3,9.4601222157732097E-3,0,9.8990752269140607E-3]
[null,"TTL_C28: Fabricated metal products",4.8504323139013754E-3,8.3842686042980754E-3,8.7125133890648358E-3,3.1666472775682933E-3,1.6936987194917433E-2,5.4248101877857726E-3,3.9309164172603864E-3,2.1997690758070315E-2,6.4882590825375442E-3,2.8908089400962057E-3,1.9474390335426601E-2,1.0274040055652065,5.2405982911647074E-2,5.1383796242537401E-3,1.1649620626417598E-2,1.3129112672094951E-2,1.3589696721351364E-2,1.5050991653440426E-2,4.2197479244825663E-3,1.6993530801538276E-2,2.5083279926022225E-3,1.2862318342184358E-2,8.4782770444257714E-3,4.9659462367651584E-3,2.6406638310429828E-3,2.7451857473500137E-3,3.5042926164115572E-3,2.9263419516276437E-3,1.4149176557635241E-2,5.7548176262745354E-3,6.2130835098708819E-3,6.9952259163159475E-3,6.6102533247378685E-3,0,6.2158554627614231E-3]
[null,"TTL_C29: Machinery and equipment, nec",9.628021266740029E-4,1.1310471100591272E-2,7.4503347174039044E-4,8.0045155594782791E-4,9.6377842693116701E-3,9.690446002794806E-4,1.5787517811160395E-3,1.0906078336228252E-3,6.86717143268452E-4,1.2818724049912448E-3,2.0624391872610202E-3,1.5018890751960327E-3,1.0118717195299534,1.0893380211337634E-3,4.4528572458551081E-3,3.0142885456818716E-3,1.1619172097568173E-2,4.0458190602094537E-3,1.5159471555026489E-3,2.2563157811396686E-3,5.4862130072306993E-4,2.0354961200532693E-3,7.3237326552542869E-3,1.048366033957129E-3,5.9012188163244444E-4,3.4776083193552982E-4,4.6839302786229808E-3,7.6148553870470986E-4,3.7700680355263827E-3,1.2883424793505844E-3,1.1379687030734428E-3,9.7336346655473743E-4,3.0451305043470204E-3,0,1.4930985505547812E-3]
[null,"TTL_C30T33X: Computer, Electronic and optical equipment",1.0906855170775423E-2,1.5768609075587525E-2,8.7171120213203439E-3,1.0898260001555931E-2,1.1327525431258466E-2,1.0398050669893261E-2,4.0876412720866626E-3,8.7422634924002283E-3,8.4087508314494696E-3,6.6002294696943919E-3,7.5387325766411266E-3,8.6166094276533458E-3,6.3865804438844723E-2,1.7219321018346665,0.61254500177608784,0.12801164604668896,2.1989429885714708E-2,1.163539953416139E-2,1.9469937162569503E-2,1.6203760509156149E-2,1.0850259841158623E-2,1.2953957973709586E-2,5.2551133039029994E-2,5.2714908826471236E-2,1.1989559501464969E-2,4.1066937173746794E-3,1.3092622375970838E-2,7.6310068784627566E-2,2.2830450772010426E-2,5.0297398609060927E-2,2.9886400239184156E-2,2.9185134690375994E-2,9.4502965695903107E-2,0,3.543955038613987E-2]
[null,"TTL_C31: Electrical machinery and apparatus, nec",5.0781462846804107E-3,8.5258671973957312E-3,3.891300884387786E-3,4.8725390999734899E-3,4.5161589914720739E-3,4.2147454489745093E-3,1.8695121818095852E-3,3.4097976095924299E-3,3.5884664844906687E-3,3.1269771892175166E-3,2.859056117640966E-3,3.338146798245057E-3,5.6661706707175404E-3,4.4943370051395417E-3,1.0107174706586632,2.9265664143399983E-3,5.0030451314258097E-3,5.0812147010145092E-3,3.4458164913861843E-3,4.6366960634173122E-3,3.9948159854959137E-3,4.9733561418142235E-3,5.6921200872288363E-3,4.1851921434841229E-3,3.8109640262577651E-3,1.190476804414399E-3,5.911232436559939E-3,5.8496889539835688E-3,7.0107754806435279E-3,1.2487828855321282E-2,1.0910906485346539E-2,8.1060471354481734E-3,1.2323161572182389E-2,0,2.0133342636135709E-2]
[null,"TTL_C34: Motor vehicles, trailers and semi-trailers",3.3912385580039941E-3,2.9991537499544562E-3,2.5659626124939958E-3,3.2280475442185686E-3,2.8323941742306991E-3,2.7633061641097723E-3,9.9087495063753688E-4,2.1935549717223908E-3,2.3054155409754202E-3,1.7971162595750809E-3,1.9699097450188471E-3,2.2370000695658048E-3,2.5142563068696537E-3,2.8648527845532516E-3,2.6692770835705843E-3,1.0617802883629335,2.530030466249408E-3,2.9889514480849122E-3,2.4813799658194476E-3,2.9011693604401299E-3,2.8949172659249E-3,3.2876200460090995E-3,5.5181252454491641E-3,2.5055060662521941E-3,2.5097125460333924E-3,7.7807252587663584E-4,1.1553759479107584E-2,3.9073404054255634E-3,4.3941631578881873E-3,8.3834209625853421E-3,7.2085037794175745E-3,5.2904543313174518E-3,7.4746452247573614E-3,0,1.3193798038805427E-2]
[null,"TTL_C35: Other transport equipment",3.4767818000236165E-5,2.8457183305535493E-5,2.7440008522857087E-5,3.450464491956722E-5,3.0863935216569855E-5,4.0629854135984922E-5,1.0514166789308498E-5,2.9709967135686338E-5,2.9998561544535992E-5,1.9233102264909831E-5,1.9524673478165866E-5,3.3473697108597087E-5,6.8591715974291161E-5,3.434060322572563E-5,3.297886868674776E-5,2.1247443398711178E-5,1.3069763931910401,3.4898152271825266E-5,2.18845126829034E-5,3.1141255599246879E-5,3.5879659927411904E-5,5.3516391361768385E-5,4.3720404371148438E-5,5.7283083244263147E-5,3.8005086960640342E-5,1.5369830000279662E-5,3.379080884702421E-5,4.2686816485855967E-5,7.3866763062859129E-5,1.0340157297668145E-4,7.6901995776739658E-5,6.0930764626308891E-5,8.9866120642604567E-4,0,1.3250387943420486E-4]
[null,"TTL_C36T37: Manufacturing nec; recycling",1.6331241943771835E-3,1.3890840752706179E-3,1.3075827526396919E-3,2.692320263752383E-3,1.5149307455816492E-3,1.9199126675996645E-3,5.2545795119058008E-4,1.2586733245190088E-3,1.2889445898738286E-3,9.4723461839577754E-4,1.0967071160011158E-3,1.7248499275850776E-3,1.610018584634057E-3,8.8331603310396276E-3,4.1688443018032947E-3,2.1634757644712604E-3,2.0569719195450789E-3,1.0258579738903912,1.1676290129803504E-3,1.5689863137297525E-3,1.7698427325857362E-3,3.6183789222529301E-3,2.0706432034422978E-3,2.881810650160094E-3,1.8778179831582123E-3,5.3172641159893663E-4,1.5344301541198545E-3,3.9024640644361851E-3,3.6975164860210321E-3,5.3362012926614442E-3,6.295166347495669E-3,1.053404785797075E-2,5.8597303650773976E-3,0,5.9357585493375045E-3]
[null,"TTL_C40T41: Electricity, gas and water supply",3.1191181676916716E-2,3.6841861580109089E-2,3.7563121658698531E-2,4.0639668623379623E-2,7.6404507321840634E-2,4.8310579795269377E-2,1.2541118996301254E-2,4.3869994570312383E-2,3.0657058027904211E-2,3.8903098620072595E-2,9.1130042214200346E-2,6.3830172691401302E-2,4.7991348711848188E-2,3.4080743682080743E-2,4.2110861915641763E-2,5.1997776026560701E-2,5.7922071954559978E-2,5.5640267634775829E-2,1.0822325544849063,3.0341897779968419E-2,5.0262785762535983E-2,5.6837281285279928E-2,3.4886988571551494E-2,4.2755768149254525E-2,4.3011004718333475E-2,1.0832836137465161E-2,3.9001250071339977E-2,6.3393921269414261E-2,8.2342089599825363E-2,7.7530188611378142E-2,8.8313632087637511E-2,8.1531468109087332E-2,8.9044447312967664E-2,0,7.5290193481457351E-2]
[null,"TTL_C45: Construction",6.959197893899538E-3,2.601432952522088E-2,6.5363354186358568E-3,7.6119650410744937E-3,9.1242624938945773E-3,7.7378446429023657E-3,4.5858703999771136E-3,6.7925434054308242E-3,5.7340898222440935E-3,6.1417148674140273E-3,5.7690919263601514E-3,5.9672337384342796E-3,7.7653127351371316E-3,6.4250814826451617E-3,8.9031307574376946E-3,5.7577950998535599E-3,1.3417575623962646E-2,1.105863605166625E-2,7.0921611639812917E-3,1.0132701117767047,8.174465909633527E-3,9.2556186489462407E-3,1.0709949298462607E-2,1.3307002147450122E-2,9.8868416022564534E-3,9.1357795004602255E-2,6.8978185756032378E-3,8.0648818667301038E-3,1.4954818284453318E-2,2.9117744217399461E-2,3.3182743009074027E-2,1.3678234389719629E-2,2.7178826913280871E-2,0,2.2522588157437892E-2]
[null,"TTL_C50T52: Wholesale and retail trade; repairs",0.10490923804899911,8.5133807352087601E-2,0.16662627632940827,0.21790846799683863,0.19737925751993254,0.17703376255901515,0.10099626088708541,0.15973549018617678,0.16438809478035818,0.11119734131960249,0.11690400347754283,0.12509161734499102,0.12546440966698158,0.21505604447682292,0.19332732137567415,0.14347300301996291,0.11170403498748674,0.16315475813494548,8.1520953428684331E-2,0.10848376181327279,1.0803951722865808,0.18607661458826327,0.13953622603334606,7.2258672057798776E-2,6.400893509829407E-2,2.9598140437519838E-2,0.14247719325146707,0.1009591602491518,0.1252563926320687,0.17189250696940739,0.1565329395883325,0.17135927261498135,0.1824688641527773,0,0.2241985485466623]
[null,"TTL_C55: Hotels and restaurants",1.9215794276761636E-2,1.718776573333659E-2,1.5717174126866598E-2,2.0262779396975492E-2,1.8108705535797166E-2,1.6975915195703996E-2,6.5692860568515119E-3,1.8237760194508984E-2,1.5690762704546654E-2,1.0552065302873042E-2,1.6904515968608029E-2,1.5279020255208513E-2,1.5649093617930487E-2,1.8628496747277984E-2,1.7111315827920203E-2,1.5686561505247498E-2,1.942199499976965E-2,2.0056718521299775E-2,1.182880686534162E-2,1.8187552253247141E-2,2.6263257547830897E-2,1.0199402938052755,6.3996790512157856E-2,1.6390919477518317E-2,3.9331335959199173E-2,7.6675235426438716E-3,2.8205120218953824E-2,3.7354676818512872E-2,5.4530380858581189E-2,5.7836000323677132E-2,5.3768164540312621E-2,4.4653006933370959E-2,6.565926939581064E-2,0,6.7207972896425147E-2]
[null,"TTL_C60T63: Transport and storage",1.9269522481026022E-2,1.5190449158361943E-2,2.2982589003591208E-2,2.7914846425652534E-2,3.1549979671335937E-2,2.7706427713428069E-2,1.0697911514142518E-2,2.2621054306835208E-2,2.3133948313569328E-2,1.5193726258983598E-2,2.1989148089404567E-2,2.1681761337698269E-2,2.100161530466034E-2,2.473572824880494E-2,2.3762439662656839E-2,2.73215986336665E-2,2.0419568299990126E-2,2.3916627774725099E-2,1.3521549622690341E-2,1.7873491241828691E-2,1.7250269422053797E-2,2.4237544905060995E-2,1.0206526422384403,1.2754755994149998E-2,1.2117611690757609E-2,4.6429116991091122E-3,2.5774692694083265E-2,1.7462979780784271E-2,2.1746195057876175E-2,3.7514030524490323E-2,3.3864103650372443E-2,3.0446375203979838E-2,4.0796182066946032E-2,0,5.5735533893279066E-2]
[null,"TTL_C64: Post and telecommunications",1.4090988833231465E-2,1.1507258580709303E-2,1.2444740684948573E-2,1.7002901584231872E-2,1.6691520753266145E-2,1.4304114401319915E-2,5.3792831624844949E-3,1.1696281447429919E-2,1.2080652006505325E-2,8.7375966805513048E-3,8.9305858994098864E-3,1.0566357670650974E-2,1.4929277042140554E-2,1.498266990882181E-2,1.7677141539723301E-2,1.0649253519303634E-2,1.6364953766967505E-2,1.508755847926109E-2,9.044461123044991E-3,1.3621747277915279E-2,3.0035660681777251E-2,1.5851785692759836E-2,1.5793777532046929E-2,1.0331717129395737,2.2485130163291456E-2,4.2382492345327104E-3,1.380857477527647E-2,2.232788185126991E-2,2.6963322084637129E-2,4.0540208991920311E-2,3.2955508471729518E-2,2.4718386668119333E-2,3.828050114466941E-2,0,4.934186607025462E-2]
[null,"TTL_C65T67: Financial intermediation",5.3228466012762946E-2,4.5655866436979602E-2,4.6809102167561373E-2,6.3981101995463821E-2,6.4329079938512237E-2,5.0273541159760085E-2,2.5124845903532974E-2,4.6254797071283153E-2,4.5686177915036978E-2,3.108180096641926E-2,4.3107703600356921E-2,4.0953931539744436E-2,4.7942221010557368E-2,5.2042259457560865E-2,6.316795478354284E-2,4.413078001814013E-2,6.7424582288285184E-2,6.3891935845763095E-2,3.9293276004481952E-2,5.4519468269214257E-2,9.618964478663028E-2,5.8192380657313497E-2,6.7206444361488094E-2,7.8722140717332481E-2,1.0761106601370272,2.4948268415855391E-2,5.333513003473233E-2,5.5180075851694675E-2,6.6198214267767785E-2,0.16100335705675325,9.9611488275132901E-2,7.5288359989692188E-2,0.11039828125075918,0,0.15549135824759194]
[null,"TTL_C70: Real estate activities",4.4319515923263657E-2,4.1610463595839156E-2,3.5925777327906666E-2,4.690163386864922E-2,4.4221702605909949E-2,4.5232064559914138E-2,1.4029373188608758E-2,3.4617922995586491E-2,3.4000542542482616E-2,2.6749981224079754E-2,2.4658902800014579E-2,3.372376693319068E-2,4.080415697655413E-2,4.2505871212515749E-2,4.6251702485173983E-2,3.0083075611568977E-2,4.6593161898545329E-2,5.4761298550295115E-2,2.7997079616700424E-2,3.9585298146568748E-2,4.9167217359981294E-2,5.4278733624134448E-2,5.8162074657579985E-2,6.5928816289605535E-2,5.4667881179806616E-2,1.0145320811266145,4.7167588254783503E-2,5.7589296113326457E-2,8.4589463272009918E-2,0.11293062796291101,0.10251080468340572,7.3587218780677865E-2,0.14656630465741527,0,0.16745257762788263]
[null,"TTL_C71: Renting of machinery and equipment",3.0723055236596256E-3,1.0514490660875734E-3,1.8185560320511758E-3,1.5924213863297589E-3,3.0979431349360859E-3,1.5839980927250562E-3,4.5968187868199861E-4,1.2006288794271743E-3,1.6871486242063121E-3,9.0033839208399752E-4,1.0817627079770557E-3,1.8128439775439394E-3,1.3357400624992872E-3,1.2024109853245465E-3,1.12524753347374E-3,1.4036978070241758E-3,2.2720860956884185E-3,1.5942692667319594E-3,6.7972562894621992E-4,2.3175257596829246E-3,2.0193570910771392E-3,1.8021489439702955E-3,1.1122063659013878E-2,7.8669934978975141E-3,2.1598668577177075E-3,4.4053842979599207E-4,1.0111283984541903,1.7687434641432693E-3,2.3824692117464684E-3,3.1996973885330938E-3,3.3862405150266962E-3,2.4666345635477233E-3,3.6253295848769564E-3,0,3.211492575167724E-3]
[null,"TTL_C72: Computer and related activities",5.3220817195095615E-3,1.3214215441971031E-2,3.8383589102107523E-3,3.9983239938747644E-3,5.2482672724245222E-3,4.0773471732798855E-3,2.6312150332987944E-3,3.4574870141562196E-3,3.9239894395869442E-3,2.8582145096446156E-3,4.0571281402943414E-3,3.9432474943317123E-3,3.6712221966214076E-3,4.3666169238430839E-3,3.7626033870645672E-3,8.0159787580551256E-3,8.3105414818786128E-3,3.9100747603749136E-3,2.3596535486289749E-3,3.5140750671830588E-3,4.6829192776835131E-3,4.7779205992432468E-3,9.5710738013287597E-3,2.0825105769118963E-2,1.2983755410935702E-2,1.7810223051775633E-3,4.4023468589737668E-3,1.1402398102610178,1.6400270919585461E-2,2.5389753987299993E-2,1.8227770690642856E-2,9.2125390060041543E-3,1.8434014016806093E-2,0,1.101820810544929E-2]
[null,"TTL_C73T74: R&D and other business activities",3.789940033093124E-2,5.2204219553128373E-2,2.5027230511247334E-2,2.1648264742971688E-2,3.4163543341601682E-2,2.0583754079970842E-2,1.0449098400361255E-2,2.0223721074710366E-2,2.9878433407579463E-2,1.3609217562997286E-2,1.3039245061014181E-2,1.5367013496085317E-2,1.7349631095076083E-2,2.1574237153050686E-2,1.7069995701295072E-2,1.9787531196853666E-2,3.6481363532434391E-2,1.8869625253374375E-2,1.0124342019383181E-2,2.2558185690284838E-2,2.1152413297127786E-2,2.8635564681855102E-2,2.7266533219549201E-2,3.3413566714929926E-2,3.410052029430849E-2,9.0887563905281757E-3,1.8544805240490604E-2,3.545653453876918E-2,1.0560789551845973,6.4926671265249772E-2,4.4626049139039212E-2,2.5335319926501027E-2,6.4276993656489131E-2,0,4.1447399937585151E-2]
[null,"TTL_C75: Public administration and defence; compulsory social security",3.5182838331931553E-2,2.7300419329135833E-2,2.6316551503409173E-2,3.3340456450851541E-2,2.8608736095859292E-2,2.8473772529612931E-2,9.4391321950313897E-3,2.2385138841513819E-2,2.3824060024901377E-2,1.8126966106547564E-2,1.6777624356555901E-2,2.173402308180989E-2,2.5324802001980538E-2,2.9559064736459695E-2,2.767184576454796E-2,1.8077293669673689E-2,2.9181413222841512E-2,3.0504099065328832E-2,2.2268444514676071E-2,3.0134357240138857E-2,2.7842069791529069E-2,3.4682767013874231E-2,3.3066438750881319E-2,2.5728374931110881E-2,2.6402179522889934E-2,8.1277950045714267E-3,2.7640844687283391E-2,3.515624526711808E-2,4.0809815941287457E-2,1.0858678062200429,7.4986574363288927E-2,5.6189108482589414E-2,0.10402268623200907,0,0.14191219984339332]
[null,"TTL_C80: Education",3.4273864475350961E-2,2.6876939789003729E-2,2.5612187700594584E-2,3.2553914324502574E-2,2.7901158360043164E-2,2.7468363750408859E-2,9.2095944083746221E-3,2.1678493064647246E-2,2.3132436519743754E-2,1.8266614414807956E-2,1.6292533280774169E-2,2.0917744627307052E-2,2.4489316924533964E-2,2.9005981674713226E-2,2.696224682731007E-2,2.0478607365910003E-2,2.6422996241761577E-2,3.1041893870947988E-2,2.1620013740937388E-2,2.9332252014783202E-2,2.7087239793097614E-2,3.3388424833539494E-2,3.2023195425982545E-2,3.292599286413047E-2,2.5883369010441738E-2,8.8954943936537974E-3,2.7248675865312662E-2,3.7198788620170474E-2,4.4838833792912071E-2,0.16875290428625747,1.0728960616778123,5.8615315587954596E-2,8.542352224671497E-2,0,0.13761599366337313]
[null,"TTL_C85: Health and social work",1.8012248962615458E-2,1.4255832309447821E-2,1.2654618244047759E-2,1.5149833302012425E-2,1.4030465679315719E-2,1.3262888880233741E-2,4.4670722950751057E-3,1.0364784805324942E-2,1.1041109654287236E-2,8.2119868184414128E-3,7.598149657379441E-3,9.835843909677823E-3,1.1415317823931877E-2,1.3738268520158092E-2,1.2551674760631669E-2,8.3719790754075239E-3,1.4372922755380615E-2,1.4297089895095271E-2,9.8416697485076855E-3,1.3490190710790729E-2,1.2610680509277127E-2,1.5989725577142167E-2,1.5382135494276274E-2,1.3230913845700638E-2,1.352424551445496E-2,5.3279242741086346E-3,1.7288548230102698E-2,2.1603385524164697E-2,3.5514088405083126E-2,0.10725738991421029,5.001457957602002E-2,1.0278813017308401,5.384115443708988E-2,0,6.1839463511536019E-2]
[null,"TTL_C90T93: Other community, social and personal services",2.2268928478115083E-2,1.8792191331938699E-2,1.8583319976108421E-2,2.3201369433846403E-2,2.1194417175741002E-2,3.4805408715888414E-2,7.5097796280281029E-3,2.4348003667739E-2,2.3755276873979912E-2,1.3212352366482482E-2,1.450579745344798E-2,2.9840620038289235E-2,2.9086160448587112E-2,2.5592718427839532E-2,2.4920946682856524E-2,1.5876521805355554E-2,0.16203324486569015,2.5553129870379127E-2,1.3891001633590749E-2,2.0840347171564046E-2,2.8877680444546423E-2,4.7769347550572612E-2,3.548572150271518E-2,5.9092590263330684E-2,3.2732281025259671E-2,1.5002352546552404E-2,2.6023466134684588E-2,3.2941052842786568E-2,7.0792883623820704E-2,7.9327849307486611E-2,5.1267462974502659E-2,4.2854821161551128E-2,1.1356233126080506,0,7.9534349757498526E-2]
[null,"TTL_C95: Private households with employed persons",0,0,0,0,0,0,0,0,0,0,0,0,0,0,0,0,0,0,0,0,0,0,0,0,0,0,0,0,0,0,0,0,0,1,0]
[null,"LHH",0.3413076356900564,0.26447074331665382,0.25482508179081004,0.32292164633343579,0.27677781129773676,0.27211977382917235,9.119335409754574E-2,0.21466870183368963,0.22899523388460977,0.17542397946284899,0.16180899272289614,0.20690854503296935,0.24248273788481153,0.2850686084600022,0.26663294547277094,0.17428303485849406,0.24798700782398087,0.2943922859330137,0.21607532114922506,0.2919004829438665,0.26734320918787496,0.33014424370118522,0.31721749162906021,0.23912369967036115,0.25220960124352465,7.6437249318995898E-2,0.26605784249635689,0.33843621810637975,0.38490151933597161,0.82689387335901654,0.72651218475143597,0.54330641975372851,0.747560194397899,0,1.3792014947754028]
[]
[]
[null,"Average Salaries, "]
[]
[null,"Assigned labor category"]
[null,"Avg Annual Salaries $2014"]

{"sheet":"Colombia-IO-Data","index":20,"n_rows":226,"n_cols":42,"rows_kept":226,"cut":false,"hidden":false,"merged":[]}
[null,"Source:",null,"OECD"]
[]
[]
[]
[]
[]
[]
[]
[]
[]
[null,"Direct Requirements "]
[null,null,"DOM_C01T05: Agriculture, hunting, forestry and fishing","DOM_C10T14: Mining and quarrying","DOM_C15T16: Food products, beverages and tobacco","DOM_C17T19: Textiles, textile products, leather and footwear","DOM_C20: Wood and products of wood and cork","DOM_C21T22: Pulp, paper, paper products, printing and publishing","DOM_C23: Coke, refined petroleum products and nuclear fuel","DOM_C24: Chemicals and chemical products","DOM_C25: Rubber and plastics products","DOM_C26: Other non-metallic mineral products","DOM_C27: Basic metals","DOM_C28: Fabricated metal products","DOM_C29: Machinery and equipment, nec","DOM_C30T33X: Computer, Electronic and optical equipment","DOM_C31: Electrical machinery and apparatus, nec","DOM_C34: Motor vehicles, trailers and semi-trailers","DOM_C35: Other transport equipment","DOM_C36T37: Manufacturing nec; recycling","DOM_C40T41: Electricity, gas and water supply","DOM_C45: Construction","DOM_C50T52: Wholesale and retail trade; repairs","DOM_C55: Hotels and restaurants","DOM_C60T63: Transport and storage","DOM_C64: Post and telecommunications","DOM_C65T67: Financial intermediation","DOM_C70: Real estate activities","DOM_C71: Renting of machinery and equipment","DOM_C72: Computer and related activities","DOM_C73T74: R&D and other business activities","DOM_C75: Public administration and defence; compulsory social security","DOM_C80: Education","DOM_C85: Health and social work","DOM_C90T93: Other community, social and personal services","DOM_C95: Private households with employed persons","HH",null,null,"VA % Output","Labor % VA","2014$/Job"]
[null,"DOM_C01T05: Agriculture, hunting, forestry and fishing",3.8155010633897542E-2,0,0.30794423565591855,1.9043904705794493E-2,0.10456845347217129,3.3692982343334061E-3,0,2.5185479268504504E-3,2.9092832583972497E-3,7.6838357708167908E-5,0,0,0,0,0,0,0,5.0918698210640082E-3,0,4.544696224450466E-3,0,6.5588314991739727E-2,0,0,0,0,0,4.1949828005705173E-5,0,2.7121354222721054E-3,0,0,1.4486555097197886E-4,0,3.0492081987079856E-2,null,"TTL_C01T05: Agriculture, hunting, forestry and fishing",{"$f":"TRANSPOSE(C48:AJ48)","v":0.69230092790119757},{"$f":"TRANSPOSE(C49:AJ49)","v":0.26400767775990064},{"$f":"TRANSPOSE(C133:AJ133)","v":4894.76}]
[null,"DOM_C10T14: Mining and quarrying",2.5729798037370092E-4,9.6696612792297118E-2,1.693277525631437E-3,1.6927915294039546E-3,1.026618757791303E-3,4.3980915883283398E-3,0.36320595401799716,1.0669710429021612E-2,5.4785204216571584E-4,0.12003432113310963,0.359234985544785,6.1666562323921615E-3,3.0612244897959182E-3,1.103448275862069E-3,2.0251455573369339E-3,4.664151391818425E-3,2.7493298508488554E-3,6.6770745766782753E-3,7.0092040581529125E-2,4.4093141343887768E-2,0,0,6.9985536322493349E-5,0,0,0,1.0374520178441748E-4,5.2437285007131472E-4,0,0,0,0,0,0,0,null,"TTL_C10T14: Mining and quarrying",0.81888325309491061,8.2942704915881474E-2,10487.331818181818]
[null,"DOM_C15T16: Food products, beverages and tobacco",7.7505316948771635E-2,0,0.12620143731156772,1.7774311058741523E-2,8.5795996186844598E-3,3.4464577358830259E-3,1.8093652746616485E-5,2.9540209920349371E-2,3.2115464540748861E-4,0,3.9244927593108585E-5,0,0,0,0,0,0,1.4410952323766061E-3,0,0,4.0846023256704486E-4,0.22821516918262633,1.566342955789137E-4,1.3790820829655783E-4,4.152626319864693E-4,4.4652977666641477E-5,0,0,9.5885559289237495E-4,1.0537968358420073E-2,6.8252218197091414E-5,1.0557197786322316E-4,9.588719802430982E-4,0,0.10508771963951206,null,"TTL_C15T16: Food products, beverages and tobacco",0.22894784519401848,0.3509353948543138,4253.8081818181818]
[null,"DOM_C17T19: Textiles, textile products, leather and footwear",4.2209896527128652E-3,5.5235557083906464E-4,1.48655365761882E-4,0.18038187385383908,5.1110948155752733E-2,8.8090430935816155E-3,0,5.7070544155231882E-4,6.8009219027468171E-3,1.920958942704198E-4,5.1018405871041165E-4,7.5126776435234456E-4,6.4625850340136056E-4,1.3793103448275861E-3,6.3285798666779176E-4,2.9410890942039749E-3,4.1927280225445042E-3,4.9621712501501138E-2,0,5.580196630021459E-4,2.9038969659063349E-3,2.8801692263314776E-3,4.3657644086888707E-4,3.5028684907325684E-3,2.8549305949069763E-4,0,1.0374520178441748E-4,1.2584948401711551E-4,1.7276677349412164E-5,6.2083916298949892E-3,1.6485535779912847E-3,1.5002333696352766E-4,8.1745560905616636E-3,0,2.9237804937354232E-2,null,"TTL_C17T19: Textiles, textile products, leather and footwear",0.32941391242293233,0.51231800090684665,4253.8081818181818]
[null,"DOM_C20: Wood and products of wood and cork",1.7294332604865211E-3,5.5235557083906464E-4,5.1100281980646937E-5,4.1489988465783206E-5,6.614357996626824E-2,1.2859916924936663E-4,0,1.4887968040495274E-4,1.2090527827105454E-3,6.7873882642214992E-4,6.4100048402077373E-4,2.5981343517185252E-3,1.1564625850340137E-3,2.206896551724138E-3,8.0162011644586962E-4,6.5357535426755007E-4,1.195958485119252E-2,6.3143989431968292E-2,0,1.3260157971339651E-2,1.8061600908824017E-3,1.3985647229530695E-4,2.3328512107497783E-5,1.8617608120035306E-4,0,0,1.0374520178441748E-4,8.3899656011410346E-5,0,1.1069940499069818E-4,0,0,0,0,2.1903163120208681E-4,null,"TTL_C20: Wood and products of wood and cork",0.4151939576153113,0.4081596608972094,4253.8081818181818]
[null,"DOM_C21T22: Pulp, paper, paper products, printing and publishing",1.3418578216957567E-3,4.0405777166437415E-4,1.4036318364047699E-2,6.2317962675606372E-3,1.1072816601891911E-2,0.20867787194094725,1.9903018021278133E-4,1.6240291804173596E-2,1.3091774662787622E-2,9.9121481443536618E-3,2.4855120808968774E-3,5.1336630564076877E-3,5.7142857142857143E-3,1.9310344827586208E-2,5.6113408151210872E-3,3.6837883604171002E-3,3.2991958210186263E-3,1.6068211840999162E-2,1.0093086497228324E-3,1.2656116068089906E-4,2.0663407494394305E-2,1.4029352377122979E-3,1.4696962627723604E-3,2.7912621359223302E-2,9.5294122736061665E-3,8.003187535636511E-4,1.3486876231974271E-3,3.1042872724221832E-3,1.4965921753928286E-2,7.0386371673252261E-3,5.6071822334225864E-3,4.5284822083435199E-3,1.3286240532001489E-2,0,5.5886134675274908E-3,null,"TTL_C21T22: Pulp, paper, paper products, printing and publishing",0.31926029757847763,0.41045677918311452,4253.8081818181818]
[null,"DOM_C23: Coke, refined petroleum products and nuclear fuel",4.7648980416041065E-3,2.4157496561210455E-3,5.725554321922486E-3,7.1030860253420841E-3,4.253134853706827E-3,8.448965419683388E-3,5.1084412921280544E-3,1.0830996749460311E-2,8.2366720822155907E-3,2.3986373997899751E-2,4.5393299582695609E-3,8.138734113817067E-4,5.8503401360544219E-3,1.0482758620689654E-2,5.4847692177875293E-4,2.05579156887793E-2,6.1859921644099247E-4,2.4354509427164647E-2,2.6461667189624518E-3,8.3587893849702867E-3,1.0277455122559344E-2,9.1300053320280076E-3,9.7926428538102128E-2,8.3917144748455429E-3,6.968626043022938E-3,8.1405813130723298E-4,6.2247121070650485E-4,5.6632267807701984E-4,7.7485897912113553E-3,9.0773512092372499E-3,2.7510894104058382E-3,3.1338208165714665E-3,6.5120514341689547E-3,0,1.7273542496221414E-2,null,"TTL_C23: Coke, refined petroleum products and nuclear fuel",0.5398241296953028,5.2410479861460253E-2,4253.8081818181818]
[null,"DOM_C24: Chemicals and chemical products",3.6594938069353204E-2,1.7774243466299863E-3,8.2317908790642148E-3,2.5483150915684046E-2,1.5399281366869546E-2,3.1815434472293305E-2,8.775421582108995E-3,0.18165802337410983,0.22465712018740319,1.5739056937223061E-2,2.7340632889865648E-3,9.609966819007075E-3,2.139455782312925E-2,3.0896551724137928E-2,6.4973419964559961E-3,9.1797629303942245E-3,7.5606570898343528E-3,2.7212681638044914E-2,3.1325175190879614E-3,7.0855074047866968E-3,2.8528394368354539E-3,9.1343758467872342E-4,2.8994007905032957E-4,2.8960723742277143E-4,1.0338309275496475E-3,2.7478755487163985E-5,0,1.8877422602567328E-4,1.71902939626651E-3,3.6592303316369673E-3,1.0657846380007351E-3,5.9848198608672451E-2,8.4366937542252451E-3,0,1.7770740408612651E-2,null,"TTL_C24: Chemicals and chemical products",0.30928512940125558,0.36688194472301333,4253.8081818181818]
[null,"DOM_C25: Rubber and plastics products",3.5891439793901063E-3,6.6841471801925721E-4,1.8681798544106513E-2,6.3147762444922036E-3,1.444599252034905E-2,1.7180849011715384E-2,3.679042725145352E-4,1.9943673854246793E-2,3.3815695016435561E-2,3.7778859206515892E-3,1.7006135290347055E-3,7.1370437613472743E-3,8.979591836734694E-3,5.9034482758620686E-2,7.3411526453463841E-3,7.7834883099135495E-3,8.522922537631452E-3,1.6188303110363879E-2,2.1179792908691559E-3,1.7219988225976871E-2,8.4734224287215613E-3,6.4683618436579468E-4,2.5088148449320471E-2,6.7575022065313338E-4,1.8600305391060606E-4,3.0913599923059486E-5,0,4.1949828005705173E-5,2.2805214101224054E-3,7.1954613243953812E-4,5.250170630545493E-5,5.9453692796657251E-4,8.7816117327299565E-3,0,1.2667264497229036E-3,null,"TTL_C25: Rubber and plastics products",0.25169078475082179,0.57914884035127223,4253.8081818181818]
[null,"DOM_C26: Other non-metallic mineral products",9.6731012874669829E-4,1.5259628610729022E-4,4.6361892196986939E-3,9.1277974624723063E-5,4.3997946762484413E-4,7.7159501549619989E-5,1.8093652746616485E-5,4.3919505719461054E-3,1.8702535232553749E-3,9.3563506902645796E-2,1.6744502439726332E-3,5.6971138796719466E-3,5.2721088435374146E-3,1.2689655172413793E-2,5.6535313475656072E-3,8.0211520751017496E-3,1.7183311567805345E-3,3.1463912573555901E-3,1.4642819788725028E-4,0.11423870585460423,1.761484752945381E-3,1.8662098021905021E-3,0,2.3444395410414829E-4,0,0,0,0,0,6.5804646300026131E-4,0,0,1.8625570839254425E-4,0,4.5362501240076952E-4,null,"TTL_C26: Other non-metallic mineral products",0.44182055682196553,0.29597101449275365,4253.8081818181818]
[null,"DOM_C27: Basic metals",1.2278650455808259E-3,5.6954951856946355E-4,2.9707845751476103E-3,4.8128386620308516E-4,6.7463518369142769E-3,6.1727601239695991E-4,6.0312175822054948E-5,2.2269918860574178E-3,7.1787508973438624E-4,2.3179571241963991E-3,6.0777311199194176E-2,5.2682651975208168E-2,4.7619047619047616E-2,5.2965517241379309E-2,1.4386971563581133E-2,1.3487418674430349E-2,2.8043164478658324E-2,2.8005284015852047E-2,0,2.9607641225955779E-2,1.1339026247824736E-3,9.9647736510406195E-4,9.3314048429991132E-5,1.3790820829655782E-5,2.0330566357670894E-4,0,0,0,0,5.5042204148152704E-4,1.2075392450254632E-4,3.3338519325228368E-5,3.4491797850471155E-5,0,5.403817686317915E-4,null,"TTL_C27: Basic metals",0.29131509752364509,0.26139476402173423,4253.8081818181818]
[null,"DOM_C28: Fabricated metal products",3.810615658699114E-4,2.7725240715268225E-4,8.3850917250061555E-4,4.7298586850992857E-4,5.9397228129353958E-3,5.2725659392240316E-4,2.2918626812380881E-4,3.1823031686558645E-3,3.1359806551554772E-3,7.0435161232487253E-4,2.1846343026830448E-3,0.20678645213798286,0.11020408163265306,3.2827586206896554E-2,3.5819762045397018E-2,9.9610825584504334E-2,0.11938964877311153,1.4699171370241385E-2,6.7984520447651915E-4,6.5198173684099508E-3,1.1509218011394337E-3,1.4859750181376363E-4,1.123101225746679E-3,1.1032656663724625E-4,5.623348141483439E-5,1.4426346630761093E-4,2.0749040356883496E-4,6.502223340884302E-4,1.4685175747000337E-4,5.9347181008902075E-4,1.9950648396072871E-4,3.7783655235258814E-4,2.5592914005049599E-3,0,5.7306144362464281E-4,null,"TTL_C28: Fabricated metal products",0.35387841983346902,0.26236178681999117,4253.8081818181818]
[null,"DOM_C29: Machinery and equipment, nec",4.9179740552441557E-4,4.7283356258596976E-4,8.4083191259064498E-4,1.4853415870750386E-3,8.7995893524968826E-4,1.6074896156170831E-3,1.0856191647969891E-4,1.3026972035433365E-3,1.7569048248762612E-3,3.0479215224239941E-3,8.8955169211046132E-4,7.0744381143179125E-3,1.534013605442177E-2,1.6551724137931034E-3,1.7720023626698171E-3,8.9718071358545499E-3,1.697711182899168E-2,2.9782634802449862E-3,3.1377470975839344E-5,2.6750427143917301E-3,3.0081394210927162E-3,0,2.0695722883937321E-3,1.8548654015887024E-3,0,0,0,2.0974914002852586E-5,0,3.9083039928660378E-3,2.1000682522181973E-5,0,1.7245898925235579E-4,0,6.4347836235923914E-4,null,"TTL_C29: Machinery and equipment, nec",0.35173469387755096,0.51116913257905428,4253.8081818181818]
[null,"DOM_C30T33X: Computer, Electronic and optical equipment",0,1.2250687757909217E-4,1.509781058519114E-4,5.3107185236202508E-4,4.6931143213316713E-3,8.3589460012088322E-4,3.2568574943909676E-4,3.9701248107987399E-4,1.2090527827105454E-3,7.9399636298440181E-4,7.4565362426906319E-4,2.0346835284542667E-3,2.2108843537414968E-3,1.7379310344827585E-2,2.7845751413382836E-3,1.9607260628026501E-3,4.3989277613581687E-3,1.5371682478683801E-3,3.2946344524631313E-4,1.2272597399359909E-4,1.3828080790030166E-4,0,2.2328718731462165E-4,4.4820167696381287E-4,2.8116740707417192E-4,0,6.5359477124183009E-3,1.3423944961825655E-3,2.8074600692794765E-4,1.9987392567764948E-4,3.4126109098545705E-4,3.61167292689974E-4,4.48393372056125E-4,0,2.5287843744468285E-5,null,"TTL_C30T33X: Computer, Electronic and optical equipment",0.23889655172413793,0.39722863741339492,4253.8081818181818]
[null,"DOM_C31: Electrical machinery and apparatus, nec",5.8624856287678682E-5,3.0089408528198073E-5,3.4841101350441088E-5,4.9787986158939844E-5,1.4665982254161473E-4,2.0575867079898665E-4,1.8093652746616485E-5,4.4663904121485822E-4,2.4558884648807954E-4,7.6838357708167908E-5,9.8112318982771472E-4,2.6294371752332061E-3,4.7006802721088432E-2,1.1862068965517241E-2,0.26769892836047593,5.4603250051988954E-2,2.2544504776960614E-2,3.3625555422120808E-4,3.9117247149879717E-3,5.9656328920951055E-3,5.7439720204740684E-4,1.3111544277685027E-4,1.0831094907052543E-3,3.4477052074139455E-4,5.623348141483439E-5,6.5262044282014456E-5,0,1.1326453561540397E-3,1.166175721085321E-4,7.0724619855168274E-5,6.3002047566545908E-5,1.9447469606383215E-4,1.517639105420731E-4,0,1.4900375621740541E-4,null,"TTL_C31: Electrical machinery and apparatus, nec",0.25293224200489411,0.51759799833194331,4253.8081818181818]
[null,"DOM_C34: Motor vehicles, trailers and semi-trailers",1.4004826779834352E-4,2.3641678129298489E-5,4.8777541890617526E-5,5.8085983852096482E-5,0,9.001941847455665E-5,6.0312175822054957E-6,6.8236520185603348E-5,9.4457248649261344E-5,1.4087032246497451E-4,6.5408212655180989E-5,0,4.7619047619047614E-4,0,1.6876212977807783E-4,7.9617361338047005E-2,1.0309986940683208E-3,2.6420079260237785E-4,3.1377470975839344E-5,0,5.9013994017759501E-3,0,5.6588305083616055E-3,2.3444395410414829E-4,3.0279566915680052E-5,0,0,0,0,2.1740133146784337E-3,0,3.8894939212766429E-5,2.4834094452339233E-4,0,3.0703332743283649E-3,null,"TTL_C34: Motor vehicles, trailers and semi-trailers",0.22010635453492172,0.25590498042920773,4253.8081818181818]
[null,"DOM_C35: Other transport equipment",0,0,0,0,0,0,0,0,0,0,0,0,0,0,0,0,7.0039177950374593E-2,0,0,0,0,0,1.4297045277309355E-3,0,0,0,0,0,0,1.1869436201780415E-3,0,0,0,0,1.3422009372063935E-4,null,"TTL_C35: Other transport equipment",0.11155405869819232,0.37707948243992606,4253.8081818181818]
[null,"DOM_C36T37: Manufacturing nec; recycling",7.4909538589811649E-5,2.471629986244842E-4,8.2457273196043907E-4,1.9168374671191843E-3,1.6132580479577621E-3,2.4665320662028523E-2,0,8.4365152229473215E-4,1.9647107719046363E-3,3.0863407012780781E-3,2.5535366220582653E-2,3.4433105866149132E-4,3.6734693877551023E-3,7.4482758620689664E-3,1.2657159733355837E-4,6.0901339829476254E-3,5.4986597016977109E-4,3.3313318121772545E-2,0,5.0701168006105617E-3,1.170068374541014E-4,0,1.6663222933926988E-5,2.6202559576345982E-4,3.0279566915680057E-4,0,0,8.3899656011410346E-5,0,3.9052290093940741E-4,5.9851945188218614E-3,1.7780543640121796E-4,1.1782398145720947E-2,0,5.7543461049912367E-3,null,"TTL_C36T37: Manufacturing nec; recycling",0.37281133661582805,0.23018940858136838,4253.8081818181818]
[null,"DOM_C40T41: Electricity, gas and water supply",2.7162850079957791E-3,3.3786107290233835E-3,1.493521877888908E-2,1.9649658537394928E-2,1.9945735865659602E-2,3.8309692519386318E-2,1.0373694241393452E-3,2.3051537182700182E-2,3.5912645936449161E-2,5.2659887815997744E-2,1.2976989390787907E-2,1.9470356226131597E-2,8.7755102040816321E-3,1.1586206896551725E-2,8.9443928782381235E-3,1.3071507085351001E-3,9.2789882466148867E-3,1.4699171370241385E-2,0.22955234808074468,1.0278300321963922E-3,1.8189244731501217E-2,1.5742594162740486E-2,1.6093340709586686E-2,3.3546171668137691E-2,1.2505461136175865E-2,3.2287537697417684E-4,1.7636684303350969E-3,2.831613390385099E-3,7.3037153494639913E-3,2.9590565950708015E-2,9.9753241980364369E-3,1.4813415420176473E-2,1.1499565403347083E-2,0,2.9677813418507976E-2,null,"TTL_C40T41: Electricity, gas and water supply",0.52888819161175604,0.17624142227144188,10487.331818181818]
[null,"DOM_C45: Construction",3.7259353107280233E-3,6.2607462173314993E-3,2.2530578873285236E-4,3.7340989619204885E-4,4.3997946762484413E-4,3.2149792312341659E-4,1.8093652746616485E-5,5.3968884146795367E-4,2.2669739675822723E-4,1.1269625797197961E-3,1.8314299543450673E-4,2.4103174106304389E-3,4.0816326530612241E-4,2.7586206896551725E-4,2.0251455573369339E-3,1.1883188259410001E-4,1.0309986940683208E-3,8.1662063168007684E-4,2.7941637903984937E-2,1.1724165703076012E-2,2.2975888081896276E-4,2.4343767208901868E-3,5.3488945617905627E-3,4.7647285966460722E-3,3.9103897845392532E-3,2.1354427857962315E-2,2.3861396410416015E-3,4.0062085745448447E-3,1.9824987258450456E-3,3.5073261481219538E-2,1.7273061374494671E-2,1.2890894139088302E-3,1.9943157517142426E-2,0,0,null,"TTL_C45: Construction",0.49656271393150742,0.19721105537341044,3644.949090909091]
[null,"DOM_C50T52: Wholesale and retail trade; repairs",3.7298436344805348E-2,1.1481258596973866E-2,9.090740164357089E-2,9.9451502352482346E-2,7.1789983134120411E-2,4.7028716194493378E-2,3.8310294082169308E-2,5.6921664474826932E-2,6.2360675558242346E-2,3.6677509412698817E-2,5.1894875920620594E-2,3.9065923746321916E-2,3.7619047619047614E-2,3.8896551724137932E-2,4.1051388068517429E-2,5.9594189120941152E-2,3.8421884665612756E-2,6.1342620391497536E-2,9.2249764668967688E-3,3.7864798163712611E-2,2.2375962115313428E-2,6.9971941295245754E-2,7.2088435056754926E-2,1.0081090026478376E-2,2.6646018885798451E-3,5.5300995417917526E-4,6.0172217034962132E-3,1.9716419162681431E-3,7.3944179055484048E-3,1.2358358573822665E-2,4.9824119283876731E-3,1.8447314026626364E-2,1.6604351485216814E-2,0,7.2731340002840025E-2,null,"TTL_C50T52: Wholesale and retail trade; repairs",0.60078756238591835,0.43380605867459854,3311.1154545454547]
[null,"DOM_C55: Hotels and restaurants",3.094089637405264E-4,1.109009628610729E-3,2.8825204517264925E-3,5.6841284198122987E-3,5.6464031678521666E-3,7.0343745579403557E-3,1.4716170900581408E-3,9.8818887868787376E-3,6.0074810140930222E-3,5.4427170043285606E-3,2.4855120808968774E-3,1.5964439992487323E-3,4.1156462585034016E-3,3.3103448275862068E-3,1.2235254408910642E-3,2.0498499747482251E-3,9.6226544779709933E-4,6.2207277530923494E-3,3.8489697730362928E-3,1.6568006489135877E-3,1.4400350595032953E-2,3.7455311486586894E-3,7.4051362718371531E-3,4.0476059135039722E-3,3.1490749592307256E-3,2.4387395494858036E-4,3.1123560535325243E-4,1.3633694101854181E-3,1.7004569681158922E-2,1.0910041358527698E-2,3.4378117288811884E-2,1.3479874647167336E-2,1.6838895710600019E-2,0,7.1174386915680607E-2,null,"TTL_C55: Hotels and restaurants",0.46216882424411954,0.42517518227467449,4894.76]
[null,"DOM_C60T63: Transport and storage",1.5418337203659493E-2,2.9852991746905089E-2,3.384464585181847E-2,2.9549169785330801E-2,5.4264134340397445E-2,3.812965368243721E-2,8.7271718414513502E-3,4.5271829483139375E-2,4.1542297955945141E-2,5.0598058550828572E-2,2.0969872977251024E-2,9.609966819007075E-3,1.7721088435374149E-2,3.83448275862069E-2,5.3581976204539706E-3,1.4943109236208073E-2,8.5916557839026738E-3,3.6868019694968175E-2,1.8836941742495554E-2,2.2422418967299282E-2,5.9401180279880346E-2,8.56620892808755E-3,9.9922682645586583E-2,2.2485933362753754E-2,1.5779980015485834E-2,3.0467070146393068E-3,7.2621641249092229E-4,3.8803590905277284E-3,3.6099617321596708E-2,2.2502729047831366E-2,5.187168582978947E-3,5.6064276665259045E-3,1.2168706281646225E-2,0,4.6210227571141509E-2,null,"TTL_C60T63: Transport and storage",0.43621651525351429,0.25292607645998227,4484.8818181818178]
[null,"DOM_C64: Post and telecommunications",1.322316202933197E-3,6.2328060522696003E-5,1.5864314814900843E-3,2.929193185684294E-3,2.1998973381242206E-3,3.600776738982266E-3,4.8249740657643966E-5,2.4813280067492124E-3,2.7581516605584312E-3,1.8313141920446687E-3,1.0203681174208233E-3,6.135353408877481E-3,2.346938775510204E-3,2.7586206896551722E-3,7.2567715804573458E-3,1.0100710020498501E-3,4.6051275001718333E-3,3.5547015731956289E-3,3.9744796569396506E-3,9.0510405820279328E-4,2.0161341791863983E-2,1.0511087995944163E-2,9.8579626877112071E-3,7.8855913503971753E-2,1.5317135206917583E-2,1.1644122637685739E-3,1.7636684303350969E-3,5.4954274687473775E-3,2.2299871288753745E-2,7.0417121507971893E-3,1.0295584606499712E-2,1.5746893961282864E-2,2.916626426235841E-2,0,3.5847658248408319E-2,null,"TTL_C64: Post and telecommunications",0.54673019638128861,0.24273228316664355,4484.8818181818178]
[null,"DOM_C65T67: Financial intermediation",1.2861642082224617E-2,5.9963892709766166E-3,1.005281910964727E-2,1.8180912945706201E-2,5.4264134340397448E-3,1.8582579956533479E-2,3.190514100986707E-3,1.5464876802064466E-2,1.5358748630369895E-2,1.2780780165458597E-2,7.2472299621940527E-3,8.7960934076253688E-3,9.0816326530612241E-3,1.1586206896551725E-2,1.0167918319129188E-2,8.2885238109384751E-3,8.6603890301738939E-3,1.2321364236819983E-2,2.8966635289195689E-2,1.714136689888722E-2,1.3736602717111506E-2,4.532223805319791E-3,4.0308336277169385E-2,5.8066251103265666E-2,0.10839219825330156,5.1268488050176204E-2,3.3613445378151259E-2,1.0760130883463377E-2,2.8795901972132724E-2,0.1003059608554604,1.1592376752244449E-2,9.4736959082523942E-3,1.8142685669347829E-2,0,3.1009510174466667E-2,null,"TTL_C65T67: Financial intermediation",0.66628024171745703,0.35600207751736673,7138.8309090909088]
[null,"DOM_C70: Real estate activities",1.3353439487749031E-4,1.0316368638239339E-4,3.4980465755842854E-3,1.741749715793579E-2,2.9331964508322946E-3,1.1638224817067682E-2,6.6343393404260447E-5,1.5198134041338924E-3,4.8362111308421817E-3,1.6648310836769715E-3,3.2442473476969767E-3,1.3397608464283478E-2,2.9591836734693877E-3,7.4482758620689664E-3,1.3374398784912667E-2,1.633938385668875E-3,1.0928586157124201E-2,1.8902365798006485E-2,2.5101976780671476E-3,2.4449315131537318E-3,4.9910862063830413E-2,3.4492102479830075E-2,7.3051569342335908E-3,4.2523996028243603E-2,2.6434061917388691E-2,4.5442991886897443E-3,5.7059860981429613E-3,6.9636714489470595E-3,2.3448770332489655E-2,4.4464261004597098E-3,3.1999789993174779E-2,2.3503656124285997E-3,9.9336377809356932E-3,0,8.3628066394206363E-2,null,"TTL_C70: Real estate activities",0.88688026819265342,3.2947200049573785E-2,4774.9909090909086]
[null,"DOM_C71: Renting of machinery and equipment",1.0845598413220556E-3,5.8029573590096287E-5,4.2273869638535187E-4,6.6383981545253134E-5,3.7398254748111752E-3,2.9192011419606227E-3,3.0156087911027474E-5,1.0545644028684153E-3,1.889144972985227E-3,1.0629306149629895E-3,5.2326570124144791E-4,3.9754585863644902E-3,3.3333333333333335E-3,4.6896551724137934E-3,2.9533372711163619E-3,4.6344434211698995E-3,1.1684651866107636E-3,1.321003963011889E-3,1.0720635916745111E-3,1.3960079541771894E-3,1.8253066642839818E-3,2.7971294459061389E-4,3.4792809486039553E-3,7.1712268314210066E-4,1.1506235427958423E-3,5.495751097432797E-5,0.16287996680153544,1.3319070391811393E-2,3.4985271632559628E-4,3.0442336372442E-4,3.2026040846327503E-4,1.0668326184073078E-3,2.7317503897573156E-3,0,3.0345412493361942E-5,null,"TTL_C71: Renting of machinery and equipment",0.72165162361240798,0.38182863714778609,4484.8818181818178]
[null,"DOM_C72: Computer and related activities",1.954161876255956E-5,2.1492434662998625E-5,2.2995126891291119E-4,1.2446996539734962E-4,1.4665982254161473E-3,6.6742968840421283E-3,1.0856191647969891E-4,3.5855189697526113E-3,2.3425397665016814E-3,1.0885434008657121E-3,1.7006135290347055E-3,1.7216552933074565E-2,1.7040816326530612E-2,2.675862068965517E-2,1.1982111214243524E-2,1.610172009150055E-2,1.0103787201869543E-2,2.2817341179296267E-3,1.1086706411463235E-3,1.8984174102134859E-4,3.6867790783265044E-3,7.8669265666110166E-5,8.2782891535749283E-3,1.4632060900264783E-2,1.1553817604540205E-2,9.1023377551230703E-4,6.3284573088494651E-3,0.15917862236764826,9.8477060891649319E-3,4.1143278854876156E-3,2.8718433349083847E-3,6.0787233569666397E-3,7.4640250548419582E-3,0,3.7931765616702425E-4,null,"TTL_C72: Computer and related activities",0.71383924825908207,0.38600769841036642,10487.331818181818]
[null,"DOM_C73T74: R&D and other business activities",6.8949344867230977E-3,2.6091815680880331E-3,2.8729972173573724E-2,9.8223398693895167E-2,3.307178998313412E-2,6.9867928653180894E-2,1.5741477889556342E-3,5.182873874097417E-2,5.004345033437866E-2,3.7906923136029502E-2,2.4161793754823854E-2,1.925123646152883E-2,2.6938775510204082E-2,5.4344827586206894E-2,4.5692346637414567E-2,1.23585157897864E-2,5.4642930785620998E-2,3.5931307793923381E-2,3.4954502667085031E-2,3.6334558675479925E-2,6.195192933637976E-2,1.729412690226655E-2,2.847078270490765E-2,5.8914386584289498E-2,7.8411101354361773E-2,1.9777834261886278E-2,2.8944911297852472E-2,1.6423357664233574E-2,5.4153745151732421E-2,5.6585845851078551E-2,3.6105423426261357E-2,4.6423888160380504E-2,8.7878202563430416E-2,0,2.9092691618635971E-3,null,"TTL_C73T74: R&D and other business activities",0.72931765762808498,0.37498815558819348,10487.331818181818]
[null,"DOM_C75: Public administration and defence; compulsory social security",0,0,0,0,0,0,0,0,0,0,0,2.504225881174482E-3,0,0,2.8689562062273227E-3,0,2.130730634407863E-3,0,0,0,0,0,0,0,0,0,1.3486876231974271E-3,1.1326453561540397E-3,0,0,0,0,0,0,0.12642287888484499,null,"TTL_C75: Public administration and defence; compulsory social security",0.60551344536523111,0.83955595279205353,10487.331818181818]
[null,"DOM_C80: Education",0,2.7940165061898211E-5,0,0,0,0,0,0,0,0,0,1.0955988230138358E-3,0,0,1.1813349084465446E-3,0,1.3746649254244277E-3,0,9.2040581529128761E-4,0,3.1059996851452373E-4,0,1.6329958475248449E-4,4.4820167696381287E-4,4.5851915615172654E-4,0,5.1872600892208741E-4,2.4142126017283327E-2,1.9004345084353379E-4,4.3418766624129393E-3,3.9218774610174836E-3,3.1504900762340808E-3,1.5728259819814848E-3,0,7.214971959671726E-2,null,"TTL_C80: Education",0.7883656218827112,0.73619472562599897,10487.331818181818]
[null,"DOM_C85: Health and social work",0,0,0,0,0,0,0,0,0,0,0,0,0,0,4.2190532444519458E-5,0,0,0,0,0,0,0,0,0,3.0279566915680052E-5,0,0,0,0,3.9974785135529901E-5,0,0.31936634587602514,2.1867799837198714E-3,0,4.716260667093318E-2,null,"TTL_C85: Health and social work",0.39667837219122976,0.7425585858161392,10487.331818181818]
[null,"DOM_C90T93: Other community, social and personal services",1.449336724889834E-3,8.3820495185694634E-5,8.5128424299577721E-3,7.4350059330683498E-3,3.1531861846447163E-3,1.3078535512660588E-2,3.3774818460350768E-4,1.6389171484578545E-2,5.7807836173347947E-3,3.6370155981866143E-3,2.5116753659589494E-3,4.7267263507168346E-3,3.605442176870748E-3,4.413793103448276E-3,3.459623660450595E-3,8.9420991652060262E-3,2.0619973881366416E-3,8.4304071094031471E-3,2.144127183349022E-4,4.4488165572679664E-4,1.087525369209757E-2,6.8267440539146696E-3,6.4053428958015341E-3,3.5642376434245365E-2,1.4750474740352713E-3,8.4840657566618801E-4,1.556178026766262E-3,7.9704673210839825E-3,9.6231092836225746E-3,4.3880014144923969E-3,7.5234945135716916E-3,3.8839375013891052E-3,8.355293111298133E-2,0,3.8174528916649318E-2,null,"TTL_C90T93: Other community, social and personal services",0.57208095914791457,0.38193657301338479,4894.76]
[null,"DOM_C95: Private households with employed persons",0,0,0,0,0,0,0,0,0,0,0,0,0,0,0,0,0,0,0,0,0,0,0,0,0,0,0,0,0,0,0,0,0,0,9.1713173604937755E-3,null,"TTL_C95: Private households with employed persons",1,1,4894.76]
[null,"L",0.18277276028621958,6.7920392022008252E-2,8.0345902454207183E-2,0.16876467708341977,0.16946542494683581,0.1310425534651046,2.829244167812598E-2,0.11347112974864147,0.14576642611554011,0.13076607842635043,7.6148241173161699E-2,9.2844174544543925E-2,0.17979591836734696,9.4896551724137926E-2,0.13091722217534388,5.6326312349603398E-2,4.2064746717987489E-2,8.5817221088026904E-2,9.3212007112226755E-2,9.7927656873517469E-2,0.26062528453935468,0.19650271408966552,0.11033053169011738,0.13270906884377759,0.23719715026018798,2.9220221616163004E-2,0.27554725593941282,0.27554744525547442,0.27348548327185718,0.50836241755200573,0.58039061269491266,0.29455693107816772,0.21849864102316469,1,0]
[null,"VA",0.69230092790119757,0.81888325309491061,0.22894784519401848,0.32941391242293233,0.4151939576153113,0.31926029757847763,0.5398241296953028,0.30928512940125558,0.25169078475082179,0.44182055682196553,0.29131509752364509,0.35387841983346902,0.35173469387755096,0.23889655172413793,0.25293224200489411,0.22010635453492172,0.11155405869819232,0.37281133661582805,0.52888819161175604,0.49656271393150742,0.60078756238591835,0.46216882424411954,0.43621651525351429,0.54673019638128861,0.66628024171745703,0.88688026819265342,0.72165162361240798,0.71383924825908207,0.72931765762808498,0.60551344536523111,0.7883656218827112,0.39667837219122976,0.57208095914791457,1,0]
[null,"L/VA",0.26400767775990064,8.2942704915881474E-2,0.3509353948543138,0.51231800090684665,0.4081596608972094,0.41045677918311452,5.2410479861460253E-2,0.36688194472301333,0.57914884035127223,0.29597101449275365,0.26139476402173423,0.26236178681999117,0.51116913257905428,0.39722863741339492,0.51759799833194331,0.25590498042920773,0.37707948243992606,0.23018940858136838,0.17624142227144188,0.19721105537341044,0.43380605867459854,0.42517518227467449,0.25292607645998227,0.24273228316664355,0.35600207751736673,3.2947200049573785E-2,0.38182863714778609,0.38600769841036642,0.37498815558819348,0.83955595279205353,0.73619472562599897,0.7425585858161392,0.38193657301338479,1,0]
[]
[]
[null,"Total Requirements - Type 1 (only direct, indirect)"]
[null,null,"TTL_C01T05: Agriculture, hunting, forestry and fishing","TTL_C10T14: Mining and quarrying","TTL_C15T16: Food products, beverages and tobacco","TTL_C17T19: Textiles, textile products, leather and footwear","TTL_C20: Wood and products of wood and cork","TTL_C21T22: Pulp, paper, paper products, printing and publishing","TTL_C23: Coke, refined petroleum products and nuclear fuel","TTL_C24: Chemicals and chemical products","TTL_C25: Rubber and plastics products","TTL_C26: Other non-metallic mineral products","TTL_C27: Basic metals","TTL_C28: Fabricated metal products","TTL_C29: Machinery and equipment, nec","TTL_C30T33X: Computer, Electronic and optical equipment","TTL_C31: Electrical machinery and apparatus, nec","TTL_C34: Motor vehicles, trailers and semi-trailers","TTL_C35: Other transport equipment","TTL_C36T37: Manufacturing nec; recycling","TTL_C40T41: Electricity, gas and water supply","TTL_C45: Construction","TTL_C50T52: Wholesale and retail trade; repairs","TTL_C55: Hotels and restaurants","TTL_C60T63: Transport and storage","TTL_C64: Post and telecommunications","TTL_C65T67: Financial intermediation","TTL_C70: Real estate activities","TTL_C71: Renting of machinery and equipment","TTL_C72: Computer and related activities","TTL_C73T74: R&D and other business activities","TTL_C75: Public administration and defence; compulsory social security","TTL_C80: Education","TTL_C85: Health and social work","TTL_C90T93: Other community, social and personal services","TTL_C95: Private households with employed persons"]
[null,"TTL_C01T05: Agriculture, hunting, forestry and fishing",1.0718182356983124,5.7155897571201065E-4,0.37961768783869049,3.6237391820703575E-2,0.12779155909692347,1.0613523993991706E-2,8.1956784746903136E-4,2.0329255658565436E-2,1.0365032588687033E-2,2.4377536541326768E-3,1.8213278887375748E-3,1.8689927200472775E-3,2.271653697803756E-3,3.2615834551990063E-3,1.617628758423721E-3,1.8387086795104597E-3,3.1883778618515459E-3,1.9076362547239666E-2,1.6298959898726872E-3,8.1255010549031656E-3,3.8138013035946259E-3,0.15817952451985862,2.4573489652862999E-3,2.0461748320558353E-3,1.4174366128068673E-3,4.0659162300536917E-4,4.096021312927859E-4,8.0442138364951465E-4,3.7855811416643457E-3,9.9266498978393004E-3,6.1655239785338998E-3,5.6466858150061947E-3,5.2876661277941311E-3,0]
[null,"TTL_C10T14: Mining and quarrying",8.011326007041247E-3,1.1115280406198478,1.6942219452978389E-2,1.5587398832939098E-2,1.6641239724950154E-2,2.4050335069851412E-2,0.40724071602354861,3.1741037945025058E-2,2.0725430092747948E-2,0.17063537372153664,0.43261153895172016,4.5137774874695946E-2,3.7883124349798118E-2,4.0528099581018329E-2,1.9982701377946874E-2,3.2186334975858745E-2,2.7865361732273417E-2,4.0616256111543132E-2,0.10834601119328137,8.9518933322718347E-2,1.2743709891319449E-2,1.2757926978373137E-2,4.9950775950376419E-2,1.2106219482736378E-2,7.554346458144112E-3,3.0520463369256793E-3,2.1231640107712019E-3,2.94349248693804E-3,7.853049500811466E-3,1.4100814993099068E-2,5.7290841469705067E-3,9.5204170249294784E-3,1.0449387005914242E-2,0]
[null,"TTL_C15T16: Food products, beverages and tobacco",9.7918620949963273E-2,7.9467234862417885E-4,1.1821289226652882,3.3603564484308839E-2,2.7718355497799867E-2,1.2634803979166909E-2,1.4683677159314241E-3,4.8508992964826837E-2,1.5363900677997665E-2,3.9735272911961116E-3,2.3601730762510759E-3,2.5615724221431956E-3,3.714362974263764E-3,5.095619610728218E-3,2.5346304407472043E-3,2.7765700128201715E-3,2.8277855965471734E-3,1.0620993026693802E-2,2.4928220343075095E-3,3.2545804234040826E-3,6.3307690759158569E-3,0.2782125348323235,4.2037188113753648E-3,3.2551424435986777E-3,2.6264455742481914E-3,5.0965951367102291E-4,6.562585667376329E-4,1.2109359703689042E-3,7.0496151630080718E-3,1.7433176798405121E-2,1.0474185525655788E-2,1.1049715491097121E-2,8.7662243933510024E-3,0]
[null,"TTL_C17T19: Textiles, textile products, leather and footwear",6.244319658870753E-3,9.918440043385165E-4,3.7950957291932202E-3,1.2217397513627306,6.8802381726502188E-2,1.6933509295640452E-2,6.1300330654665838E-4,2.5940771786324935E-3,1.0301165736395322E-2,1.4586099652405564E-3,3.4424654007189138E-3,2.4239520784875832E-3,2.3033942406063407E-3,4.1802758413667027E-3,2.1661415296609738E-3,5.6076321836270602E-3,7.5288234406733073E-3,6.8551818567691852E-2,5.1178853400452224E-4,2.8434445306407298E-3,4.8189788086524209E-3,5.4113433870482709E-3,1.7277443190885423E-3,5.9929608166621687E-3,9.0740197971686727E-4,1.6772993811792111E-4,3.9170052602658203E-4,6.102079690891082E-4,8.512952866331396E-4,8.3796448614754469E-3,3.0183159141049165E-3,1.2163080706438761E-3,1.2752349881801397E-2,0]
[null,"TTL_C20: Wood and products of wood and cork",2.258496740551673E-3,8.4262591317873169E-4,1.3451676730468684E-3,7.4698784327022043E-4,1.0716512065983921,2.757504724941144E-3,4.124497444659076E-4,7.5537051536394759E-4,1.9703269540565635E-3,1.4443902684686835E-3,3.1697014026865668E-3,4.0699167625530509E-3,2.4186867099074021E-3,3.6517866326872526E-3,1.7543317661633383E-3,2.0974899065829434E-3,1.4742525067706498E-2,7.0564615412654574E-2,7.239811489872087E-4,1.525153800029188E-2,2.2296731275260324E-3,8.6812124759941094E-4,5.1255675924040639E-4,5.8584086985767191E-4,2.0113245845660582E-4,3.5021744232163971E-4,2.5416184635328198E-4,2.7599168594474806E-4,1.9313487004880728E-4,8.8870110075543675E-4,7.9953606039958496E-4,2.8424955841878358E-4,1.4534015831729617E-3,0]
[null,"TTL_C21T22: Pulp, paper, paper products, printing and publishing",7.5776515151536996E-3,1.6667521771154118E-3,2.9292508797470165E-2,1.9814537917239878E-2,2.2925642826703785E-2,1.2729028004296767,2.5916538466717477E-3,3.280036965519164E-2,2.9752077123293051E-2,1.8665006646452213E-2,8.0204379861240262E-3,1.3275668899072371E-2,1.3929800595918201E-2,3.3110190193368062E-2,1.5908659115882243E-2,1.1987359567824051E-2,1.1644127331323991E-2,2.9859480121436098E-2,5.0036361109777345E-3,6.7754216382415796E-3,3.1430180113262533E-2,1.2758066505981477E-2,8.3884305059256075E-3,4.3357502252134604E-2,1.7095223888097394E-2,2.6428331083507266E-3,4.308357512857938E-3,6.5742948207598018E-3,2.3119311877808996E-2,1.4341583443738374E-2,1.0027295236191261E-2,1.5814943963346755E-2,2.4928470704993207E-2,0]
[null,"TTL_C23: Coke, refined petroleum products and nuclear fuel",1.0917889373163977E-2,7.1979244865556227E-3,1.952246422972451E-2,2.0022063958319621E-2,1.7767510456496452E-2,2.3252621752286349E-2,1.0099251510861982,2.5358541283627481E-2,2.3102353257672445E-2,3.7511848185288584E-2,1.338932856871625E-2,6.8092168907896468E-3,1.2745124420320284E-2,2.1930532008345761E-2,6.152061073744994E-3,2.903789048442652E-2,6.64864559416077E-3,3.6856709374143523E-2,9.4387105091039147E-3,1.9015650269917615E-2,2.0924357595581828E-2,1.7975553845284167E-2,0.11427648466390128,1.6029368910217851E-2,1.2287992661023118E-2,2.5831349616599782E-3,2.42509382839239E-3,2.496526556784335E-3,1.471636816174102E-2,1.6238039014423618E-2,5.9967396391304613E-3,1.0883694921224808E-2,1.3707364946235544E-2,0]
[null,"TTL_C24: Chemicals and chemical products",5.2594927541859238E-2,3.5713160175155174E-3,3.9883143856313155E-2,4.6459122149443643E-2,3.7141046182092186E-2,6.1383999552007976E-2,1.2899136740611987E-2,1.2351498078882936,0.2910988248621974,2.660149952317372E-2,8.4988564513019012E-3,2.0827659086672858E-2,3.5104077344045803E-2,6.147457081362219E-2,1.7618262428611999E-2,2.1175595617761753E-2,1.9140708643894135E-2,4.8816012049148989E-2,8.0485270170383878E-3,1.9867592986751604E-2,1.0007815403381444E-2,1.5634122191516737E-2,1.208898269529636E-2,5.127921451925207E-3,3.4749880340757757E-3,8.9495244898386123E-4,1.1732195772652249E-3,1.4163138553514943E-3,5.4666599281292909E-3,8.7140812514998021E-3,3.6618747350627232E-3,0.11098251142558239,1.8557345749554886E-2,0]
[null,"TTL_C25: Rubber and plastics products",8.831471601203348E-3,2.3246078042121207E-3,2.9387847844477583E-2,1.3944324333474886E-2,2.2835991694326055E-2,2.8581619875570688E-2,2.3525129893947629E-3,3.0977145196187938E-2,1.0458403510869763,8.7977013278391046E-3,5.4790814672779249E-3,1.2410142328020086E-2,1.4430235262320774E-2,6.7911972939902671E-2,1.3698904106199863E-2,1.3769726879114532E-2,1.4330495576947266E-2,2.4311940433969871E-2,5.4697173267153724E-3,2.1904090714710816E-2,1.2850987339511221E-2,9.7248777039042212E-3,3.1413765118787663E-2,4.0895279918834807E-3,2.0026804654403423E-3,8.590010552268259E-4,1.0906742065959593E-3,9.8429508261825603E-4,4.991121082178601E-3,4.1436410585482244E-3,1.8306222528725665E-3,5.421438160710541E-3,1.334441771196649E-2,0]
[null,"TTL_C26: Other non-metallic mineral products",2.7214419257177744E-3,1.2351771419032123E-3,7.6310553907159911E-3,1.5018093013026924E-3,1.9399047588705388E-3,1.5761022327440701E-3,6.8800658056003214E-4,7.1851559285852672E-3,4.5450592574514826E-3,1.1044096267440968,3.0217903913780856E-3,9.281893770398628E-3,8.1845528005324228E-3,1.5863992807266459E-2,1.0038848906433358E-2,1.1883018696030935E-2,4.4097130123487947E-3,5.0355314239340521E-3,5.280489037985764E-3,0.12836859667117292,2.8053111586518586E-3,4.7914104624073115E-3,1.6031249011604768E-3,1.7248793877329639E-3,9.3379162834312298E-4,2.8363637149973688E-3,6.409616179547579E-4,8.992858660306504E-4,7.360415251733551E-4,5.9206417656189319E-3,2.7043581848608506E-3,1.3672637938128072E-3,3.7003941639523691E-3,0]
[null,"TTL_C27: Basic metals",2.2999197766037554E-3,1.0846263575205583E-3,5.1352725271953809E-3,1.7160467422618311E-3,9.4741246423154218E-3,2.8218644014713092E-3,6.4454696666256528E-4,4.1194735997345652E-3,2.6620231080227499E-3,3.7958756663015228E-3,1.0665888659220442,7.2143091229054532E-2,6.1491953158140635E-2,6.1224081629817857E-2,2.5337731252529996E-2,2.6245110574267028E-2,4.3923328716627102E-2,3.3581663604573382E-2,1.6972854610545437E-3,3.3781584667240759E-2,2.1007974116681511E-3,2.7630266546157852E-3,1.2722988177098558E-3,7.8991910191426125E-4,6.1613257889655052E-4,7.8855349800754058E-4,6.7633910031249668E-4,4.8062536789936157E-4,3.8099130003143699E-4,2.5513178084464851E-3,1.1798810982915527E-3,8.2953123163311102E-4,1.8114371291554224E-3,0]
[null,"TTL_C28: Fabricated metal products",1.4008910594205848E-3,7.7403102471542491E-4,2.8065602549115914E-3,2.2381554381527705E-3,9.6373278675714082E-3,3.0380482306662676E-3,8.4273440026330832E-4,6.3105132984481475E-3,6.6169530915311855E-3,2.4911820256200454E-3,4.479009415420925E-3,1.2632511827875645,0.1454111450995032,4.4770909924007972E-2,6.3025539552654816E-2,0.14275311281891967,0.16744478860786668,2.1558414330189922E-2,2.1635518808638299E-3,1.0250962454189114E-2,3.4842454322907552E-3,1.3832504019978807E-3,3.9432054667346292E-3,1.2153313036442903E-3,4.4049610884012438E-4,4.6820467087177302E-4,8.0232585096132517E-4,1.3530569062575317E-3,6.5854069288580558E-4,2.6505062659606866E-3,8.1673959300850962E-4,1.6878265771813588E-3,4.6242585052067913E-3,0]
[null,"TTL_C29: Machinery and equipment, nec",1.0370962730230043E-3,7.281122018991537E-4,2.0533907200732588E-3,2.6844429729800993E-3,1.9521452525583548E-3,2.8754191975217946E-3,5.7260542754528521E-4,2.4077640766884687E-3,2.9514566461846196E-3,4.0251850587796822E-3,1.7095775987581256E-3,9.6172091478815627E-3,1.0172795962909347,2.8814530648412322E-3,3.4057370333362351E-3,1.1645895852184273E-2,2.0307437787727561E-2,4.2026188908380422E-3,4.5200672109757116E-4,3.7418137975045191E-3,3.6271457408970451E-3,9.0861241861800739E-4,2.9949537011890975E-3,2.3853469157553036E-3,2.0938247507403221E-4,1.1698420045358029E-4,1.0599213065714032E-4,1.4561382361797504E-4,3.1140083516396384E-4,4.4423545350800045E-3,2.57695355865162E-4,4.9109237826666587E-4,7.2437653934407514E-4,0]
[null,"TTL_C30T33X: Computer, Electronic and optical equipment",1.3937283656235088E-4,1.8399069528439506E-4,4.1398442100449743E-4,8.8993331006835508E-4,5.4070723586722488E-3,1.4301282908329538E-3,4.3206437430836779E-4,7.6281664281624233E-4,1.6383401823998984E-3,1.1121896325773217E-3,1.0390378773128756E-3,2.9335680955104196E-3,3.0420400095689136E-3,1.0182630595961446,4.2371891761390224E-3,2.9764088542865185E-3,5.5836818233280803E-3,2.2956894551623857E-3,5.8031083265900967E-4,5.3447383292382056E-4,3.7205366144003172E-4,1.8676574376262961E-4,5.3205848817008277E-4,7.2261428678290602E-4,4.51714661714046E-4,5.119899691534849E-5,8.0112343469853336E-3,1.8152982092571686E-3,4.2891592376896446E-4,4.0613148549321725E-4,4.4485532393711928E-4,7.4357497533636819E-4,7.4415638886873782E-4,0]
[null,"TTL_C31: Electrical machinery and apparatus, nec",4.7515237082044115E-4,3.1187073996400083E-4,8.7410677693034312E-4,9.6008967245955778E-4,1.1240384143778026E-3,1.418363304993433E-3,2.8310655005372629E-4,1.6059727561885627E-3,1.516116219245739E-3,1.2106398237074838E-3,2.0074883172071316E-3,5.7928705939138099E-3,6.6398466441687745E-2,1.7498725346836021E-2,1.3665319221252505,8.2727523623626342E-2,3.5640571622702524E-2,1.5222145799402415E-3,7.4720323408344969E-3,8.9297371487155521E-3,2.0041904685909125E-3,7.738982830189663E-4,2.893287230877846E-3,1.282073481280612E-3,4.2450132533442187E-4,3.3206404388576267E-4,2.5807008309919034E-4,2.0220713513829174E-3,5.0467352505647906E-4,1.3523228105728642E-3,4.5767974939135041E-4,9.3147903266552114E-4,8.6575882169023669E-4,0]
[null,"TTL_C34: Motor vehicles, trailers and semi-trailers",7.5704807507970598E-4,3.8978137773977188E-4,1.4769014566460817E-3,1.4241542783584033E-3,1.2798261103628878E-3,1.1645898573309822E-3,5.0717245605272289E-4,1.2202569317382869E-3,1.2802239200023749E-3,1.0582608331810154E-3,8.7169962844638074E-4,6.203315634655803E-4,1.1827939162355377E-3,8.7725746001486647E-4,8.7104610589550243E-4,1.0873226755481635,1.825053220795428E-3,1.3814432769764737E-3,4.3357644376304044E-4,7.1305245092501514E-4,7.1644363510279356E-3,1.0040891460739174E-3,7.5729123761741944E-3,6.9292353434412235E-4,2.8015717383975927E-4,6.9025779374960576E-5,1.0587411196153506E-4,1.0162207787726484E-4,4.3280357134439204E-4,2.7876749296026275E-3,1.8139657638640308E-4,5.2555732849577828E-4,7.1586339463001526E-4,0]
[null,"TTL_C35: Other transport equipment",4.9674856057363057E-5,6.0989456448856564E-5,1.0936023838285574E-4,1.0022059911507421E-4,1.3442483705328141E-4,1.1723447089094273E-4,4.3805584785031575E-5,1.2580906354754957E-4,1.2333508622780872E-4,1.2394280808598139E-4,7.692826256480019E-5,4.8037327695189453E-5,5.7344439586748863E-5,1.0239045283465854E-4,4.1440344978876164E-5,5.4286300914847776E-5,1.0753608351049275,1.0656000783728084E-4,5.9297838401814599E-5,7.393878098838217E-5,1.2103428009571266E-4,5.7094164208896967E-5,1.7344884565145694E-3,6.128236947415975E-5,4.2662366979114095E-5,1.0966508332597212E-5,1.0687506141828754E-5,1.5251511317003859E-5,7.5330970062644008E-5,1.3355239357134576E-3,1.9885909858378554E-5,4.0142552828402898E-5,4.6030900681381126E-5,0]
[null,"TTL_C36T37: Manufacturing nec; recycling",6.2970388738347119E-4,4.366107296365526E-4,2.3310302157115441E-3,3.3666896629990866E-3,3.1019286794891198E-3,3.3105543792143345E-2,2.6618966771344932E-4,2.5705482941325341E-3,3.5495973691818724E-3,4.3749145037788552E-3,2.8665643876779667E-2,3.0452351102259719E-3,6.1901167438953115E-3,1.0792404953361513E-2,1.5989620296348534E-3,8.3126719234696625E-3,2.5168800586539532E-3,1.0367797459569945,5.116747808193592E-4,7.0101353145044362E-3,1.3523076493587804E-3,9.5158477304989331E-4,6.578401762939595E-4,2.1243200591910222E-3,9.3725299408255137E-4,2.6181703386077358E-4,2.8267434367434052E-4,6.7413317521356625E-4,8.562745675938985E-4,1.3244904664254534E-3,6.7857856586774892E-3,1.0587493940839019E-3,1.4322294491415283E-2,0]
[null,"TTL_C40T41: Electricity, gas and water supply",1.1640414315598849E-2,7.0267815221372642E-3,3.6068308550550397E-2,4.3435416271125807E-2,4.0866322864056302E-2,7.5084103957990214E-2,6.1167384246832539E-3,4.8781632355724122E-2,6.6967856690973812E-2,8.3668117939474221E-2,2.5868272152916962E-2,4.0352989086949634E-2,2.4492080237266334E-2,3.1381552868901222E-2,2.5572260865268728E-2,1.4667803835586947E-2,2.5824726029599836E-2,3.5452931720420001E-2,1.3031999282868618,1.8082844751852178E-2,3.2627459974060823E-2,3.4036456956587843E-2,3.1706736809665327E-2,5.5221572141127544E-2,2.2714714619668071E-2,2.5953633481636544E-3,5.2535123967598933E-3,7.059785987120479E-3,1.6119999756519031E-2,4.6265781120879319E-2,1.7392813883539679E-2,3.8165561301608086E-2,2.5623110139099989E-2,0]
[null,"TTL_C45: Construction",5.0897522370184902E-3,7.6096957149162153E-3,4.3311786532070412E-3,4.0722466826373154E-3,3.6662154361016392E-3,4.9133903610010642E-3,3.149706196245057E-3,4.1500939885221015E-3,4.1233791996224244E-3,5.890075970549539E-3,4.587863676477618E-3,6.0112337186441281E-3,2.9863006122629941E-3,3.2160226383124079E-3,5.4425240832419669E-3,2.4972518871395856E-3,3.9299939428941799E-3,4.1403456450348711E-3,3.8448425042427847E-2,1.0140733802685862,3.8347325043386928E-3,5.9764191136142926E-3,8.5568933778519696E-3,9.9120666037427561E-3,6.6098366340530991E-3,2.226892048197885E-2,3.8026902415054763E-3,6.3873053162685333E-3,4.3209504336728889E-3,3.8506283075365917E-2,1.95712678579931E-2,4.46094971816028E-3,2.4340705630257729E-2,0]
[null,"TTL_C50T52: Wholesale and retail trade; repairs",5.9058452660206338E-2,1.7831165682830698E-2,0.13986517432268758,0.14316726007919719,0.10900565731794493,8.3299877101808834E-2,4.8515201913268413E-2,9.2919023077286042E-2,9.9343501736792378E-2,5.7992368807281994E-2,7.1753413738091257E-2,6.3879101849823497E-2,6.1746646731720811E-2,6.6953186808061893E-2,6.9656710051553716E-2,8.768729443575568E-2,6.3532802124672466E-2,9.745417192637125E-2,2.1804871150130148E-2,5.8832945512220923E-2,1.0382008816316075,0.11242302008517045,9.5694293259188046E-2,2.2457413469416047E-2,9.5326225677754318E-3,3.2010280290951472E-3,9.7606933406843375E-3,5.6225866898315076E-3,1.7686472649744066E-2,2.5932607426902184E-2,1.3754459338852202E-2,4.3138451330744267E-2,3.2853930620870983E-2,0]
[null,"TTL_C55: Hotels and restaurants",3.1002628270524559E-3,2.1280833984344198E-3,8.7100286183358338E-3,1.3710250868662189E-2,1.1240997370869366E-2,1.5021093276633715E-2,3.3118753393856165E-3,1.7363735504406921E-2,1.4029387256681498E-2,9.9339836967648042E-3,6.0307461381554489E-3,5.3198103806992008E-3,7.8879283093327215E-3,8.6609273813211939E-3,5.5760146816472783E-3,6.0068909893206714E-3,5.2025893281308399E-3,1.2169373829806122E-2,7.3671759196901549E-3,5.6806289772918959E-3,1.8266394743952859E-2,1.0082775719709991,1.2010500904078647E-2,8.4739832586617249E-3,6.2158345553199037E-3,1.1822309284292521E-3,1.7244818963468422E-3,3.7177426280440751E-3,1.9834704436126577E-2,1.4464248232770526E-2,3.6438513154146E-2,2.4378244686460476E-2,2.2545637459533127E-2,0]
[null,"TTL_C60T63: Transport and storage",3.2303322675623497E-2,3.9667292933166468E-2,7.1119826614768122E-2,6.5175971495308252E-2,8.7402468448293524E-2,7.6225924267989728E-2,2.848966057159143E-2,8.1804339263215689E-2,8.0194651404543668E-2,8.0604299797827336E-2,5.0018605241357844E-2,2.8571188119195949E-2,3.6807356842985917E-2,6.6422002146534737E-2,2.3540087755887042E-2,3.478209010487511E-2,2.8030232080306094E-2,6.9253861851948872E-2,3.8541928858035014E-2,4.80452672918232E-2,7.8704067325816682E-2,3.7128329519290661E-2,1.1281719102049794,3.9832021298041344E-2,2.7728858319606888E-2,7.1287833087167411E-3,5.6013607568876295E-3,8.7716426181123752E-3,4.8981679071093694E-2,3.847751252372536E-2,1.292644365882854E-2,2.6088954299429389E-2,2.9911762642403358E-2,0]
[null,"TTL_C64: Post and telecommunications",4.8391555712281736E-3,1.4079059055816198E-3,9.7068905523718732E-3,1.3494541605152264E-2,9.4173405684855518E-3,1.321856835192396E-2,2.0545461848440767E-3,1.0853605776187904E-2,1.1179159231428759E-2,7.3682052268738358E-3,5.3390829919479658E-3,1.2756340408371475E-2,8.47259082976623E-3,9.7709664204810483E-3,1.6425023392362178E-2,7.5108937266763877E-3,1.184657878930811E-2,1.1016566264020242E-2,9.2130405629461953E-3,5.7477830512688887E-3,2.741969285160702E-2,1.7410438692198747E-2,1.7520768314042513E-2,1.0924006656899459,2.2377794326079493E-2,3.257160153259523E-3,4.7462562472922005E-3,9.2329483113985627E-3,2.8595803429912681E-2,1.3691695725563188E-2,1.423502731951142E-2,3.0461940766982151E-2,4.0197559275607371E-2,0]
[null,"TTL_C65T67: Financial intermediation",2.2616800594711717E-2,1.0702852242495179E-2,3.1898833004004049E-2,4.2674545677407943E-2,2.3363640652675089E-2,4.4150690172513524E-2,9.793925388191729E-3,3.6216111318362734E-2,3.7501710698304963E-2,2.918592508994873E-2,1.9588512468474657E-2,2.332104630203528E-2,2.2182782308337853E-2,2.8874306244009874E-2,2.7482562782247585E-2,2.1456228890787962E-2,2.3446757911794028E-2,3.0845107073721911E-2,4.9812722973816975E-2,3.0583468121402859E-2,3.0891848746338775E-2,2.1889095329778702E-2,6.0314374301810032E-2,8.4203017266854516E-2,1.1316801332739184,6.0217230992333566E-2,4.872847672535386E-2,1.9239936834866612E-2,4.2886088589679877E-2,0.12311648508429231,2.0716994057466475E-2,2.7906773805614404E-2,3.5622949221807546E-2,0]
[null,"TTL_C70: Real estate activities",5.6761795189497633E-3,2.0546194859610645E-3,1.5881240308108759E-2,3.5800000256943035E-2,1.4612685145181981E-2,2.6644257080744534E-2,3.6045552726688295E-3,1.2793784635697933E-2,1.6504161304709195E-2,9.1477732233065916E-3,1.0478313257078578E-2,2.4099167013514736E-2,1.2814980601556107E-2,1.7715806651521466E-2,2.7456824432483005E-2,1.2632890637309905E-2,2.2347567954895071E-2,3.1308284294346324E-2,8.5408849577920127E-3,9.6504911383143502E-3,5.8291015227959882E-2,4.493034140289677E-2,1.7971179636794572E-2,5.4334725186594053E-2,3.4863668919028507E-2,1.007393051431771,1.0291108800302588E-2,1.1746471755176603E-2,3.0237126021078232E-2,1.3412770213556696E-2,3.7243888085769138E-2,1.1898883884859062E-2,2.0410199720456726E-2,0]
[null,"TTL_C71: Renting of machinery and equipment",1.9645915986254356E-3,3.7428622301256646E-4,2.2203040360438799E-3,1.2889361995561282E-3,6.113063957818821E-3,5.7601287152634498E-3,3.9423462030120594E-4,2.8206572642238427E-3,3.8708210131187062E-3,2.3510395293162606E-3,1.4058990734313558E-3,7.1381770862774191E-3,6.0469658825811883E-3,7.6285493060486232E-3,6.1074096524579239E-3,8.1132797166770451E-3,3.4723216758050812E-3,3.1870585064183469E-3,2.2260140808175359E-3,2.6636553313259671E-3,3.1913905902465111E-3,1.4121342373068419E-3,5.5628848760811804E-3,2.1187392476351274E-3,2.1814672214508363E-3,3.0987255232126012E-4,1.1949759984672703,1.9169250889192642E-2,1.2115465103396234E-3,1.2584501563247194E-3,7.9917026771109416E-4,2.7533687312289324E-3,4.43275467612907E-3,0]
[null,"TTL_C72: Computer and related activities",1.793159556628194E-3,8.7818249166763025E-4,3.9047194193725758E-3,4.9170094495342232E-3,5.5994380476509873E-3,1.4533257307994728E-2,1.0934789936897775E-3,9.2282858204761394E-3,8.0354061366868894E-3,4.4771160209123558E-3,4.3509771780584263E-3,2.8522152282279046E-2,2.6993664881385195E-2,3.729394923977028E-2,2.3708641757239239E-2,2.7424585013938876E-2,2.0069935741027972E-2,7.0202826173024462E-3,4.0967575610131365E-3,3.2016889069095967E-3,8.1679976018962288E-3,2.7099453419559116E-3,1.4101480473798231E-2,2.2803376958298632E-2,1.7778139592534575E-2,2.471828773689142E-3,1.0743650184656429E-2,1.1907428911361992,1.4665825185339945E-2,8.9018778650206635E-3,5.062717246422435E-3,1.3989561290881863E-2,1.3423319826572213E-2,0]
[null,"TTL_C73T74: R&D and other business activities",2.4162661706026801E-2,7.9324515998851972E-3,6.4049246633002835E-2,0.15360189658576354,6.8090696683452356E-2,0.12172845139696718,9.7460361489942107E-3,9.2152100081158275E-2,9.3783964753665558E-2,6.2686824158361548E-2,4.2162640690474484E-2,4.4181616478657273E-2,5.2233580056394995E-2,8.6397398601560746E-2,8.4269136474512812E-2,3.8988025515322676E-2,8.445883192466995E-2,7.3338829202537606E-2,5.997621402049836E-2,5.9722145486504209E-2,8.4340224128231084E-2,4.6622971808425263E-2,5.4190441912900358E-2,9.1032775816757713E-2,0.10140965220863871,2.8397254094136674E-2,4.3986660734986555E-2,2.8210902165508658E-2,1.0713962523516483,8.2657785970785463E-2,4.83848601107226E-2,9.2196976958785981E-2,0.11994843779966949,0]
[null,"TTL_C75: Public administration and defence; compulsory social security",9.6578169467990557E-6,4.4625086406697473E-6,1.7186210990697947E-5,1.5880445317997328E-5,4.223207717610688E-5,3.6156616998564637E-5,4.7861787486461866E-6,3.4935042078520779E-5,3.5504603906955596E-5,1.8217646461995238E-5,2.3963993547661787E-5,3.222120807427386E-3,5.9348854812260458E-4,2.1506706296591988E-4,4.1135291953194033E-3,6.3694796034747799E-4,2.8402902836338465E-3,7.0831193629564382E-5,3.4623674960160527E-5,5.8666110973321356E-5,2.8288797262364753E-5,1.0779838998756552E-5,4.5345689586520495E-5,3.5537909414249827E-5,2.5490324572966931E-5,5.3661607871228508E-6,1.6265904537649933E-3,1.3837648285777919E-3,2.1502707468158084E-5,1.0000251427898472,1.0212829329371686E-5,2.6543250476959801E-5,3.5344353658878786E-5,0]
[null,"TTL_C80: Education",1.0697618771992812E-4,8.1087451544978591E-5,2.4662159760903321E-4,3.0022581538716571E-4,2.8036385251838027E-4,5.5641887311033201E-4,7.5000521318912199E-5,4.0433491527921967E-4,3.7846390738364961E-4,2.6860788447283316E-4,2.0875917725655574E-4,2.2092425966942762E-3,9.852734200417729E-4,1.0920214516663457E-3,2.3866292810813105E-3,1.0189388260704081E-3,2.3036811448333733E-3,3.3088315427243589E-4,1.3746334167774191E-3,1.8110213980022659E-4,6.4155263727622743E-4,1.9076581420474987E-4,6.6464813155575544E-4,1.2415469502409771E-3,1.0198915228660256E-3,1.0294229165768752E-4,9.3791738911853701E-4,2.8926915624310458E-2,6.4534019068987708E-4,4.7308953029273114E-3,1.0041263007355101,5.106944662820489E-3,2.1725039613520822E-3,0]
[null,"TTL_C85: Health and social work",1.7983369109358929E-5,3.4734303513646605E-6,5.4289348496388717E-5,5.3801539987530929E-5,3.0684922989381783E-5,7.8478726304107992E-5,6.0750107420284303E-6,8.7702225393241297E-5,5.3343944260597956E-5,2.6309453961226986E-5,1.9140650088460239E-5,3.3356967425777315E-5,3.24966513911278E-5,3.6733899383208176E-5,1.1580524358616237E-4,5.4281375260068683E-5,2.6121083181632995E-5,5.060667721534009E-5,1.041741358448158E-5,1.4824518385070906E-5,5.3303285886359427E-5,4.5547793603426284E-5,3.9500228594300781E-5,1.4953944942274806E-4,6.5474081938786787E-5,8.0799260283181628E-6,1.2550321562535131E-5,3.8561462759776258E-5,4.6501359991875388E-5,8.9950690891019895E-5,3.4368875282235078E-5,1.4692586959320177,3.5235110021474155E-3,0]
[null,"TTL_C90T93: Other community, social and personal services",5.274799654531738E-3,9.2680539259581149E-4,1.6438649073445773E-2,1.6135976526493651E-2,9.204692969887714E-3,2.3787080551830448E-2,1.7496799984282377E-3,2.6764157824456208E-2,1.6054090201504962E-2,7.7609805087687309E-3,5.6471085675800668E-3,9.8887477143325322E-3,8.5154969638566325E-3,1.0692044492042509E-2,9.2234423753269675E-3,1.4990198187456491E-2,7.0659581888805967E-3,1.5293526050220503E-2,2.4078789536759416E-3,4.0172840820248776E-3,1.6123674996706115E-2,1.3858498337315502E-2,1.1402614788352991E-2,4.535272855783639E-2,4.7001300940777146E-3,1.6745596080614579E-3,3.1968389082454212E-3,1.167150997039703E-2,1.3869555510273576E-2,7.9855807539109726E-3,1.0401409252410546E-2,1.1903209352053419E-2,1.0961795879787972,0]
[null,"TTL_C95: Private households with employed persons",0,0,0,0,0,0,0,0,0,0,0,0,0,0,0,0,0,0,0,0,0,0,0,0,0,0,0,0,0,0,0,0,0,1]
[]
[]
[]
[null,"Type 2 Total Requirements (direct, direct, induced)"]
[null,null,"TTL_C01T05: Agriculture, hunting, forestry and fishing","TTL_C10T14: Mining and quarrying","TTL_C15T16: Food products, beverages and tobacco","TTL_C17T19: Textiles, textile products, leather and footwear","TTL_C20: Wood and products of wood and cork","TTL_C21T22: Pulp, paper, paper products, printing and publishing","TTL_C23: Coke, refined petroleum products and nuclear fuel","TTL_C24: Chemicals and chemical products","TTL_C25: Rubber and plastics products","TTL_C26: Other non-metallic mineral products","TTL_C27: Basic metals","TTL_C28: Fabricated metal products","TTL_C29: Machinery and equipment, nec","TTL_C30T33X: Computer, Electronic and optical equipment","TTL_C31: Electrical machinery and apparatus, nec","TTL_C34: Motor vehicles, trailers and semi-trailers","TTL_C35: Other transport equipment","TTL_C36T37: Manufacturing nec; recycling","TTL_C40T41: Electricity, gas and water supply","TTL_C45: Construction","TTL_C50T52: Wholesale and retail trade; repairs","TTL_C55: Hotels and restaurants","TTL_C60T63: Transport and storage","TTL_C64: Post and telecommunications","TTL_C65T67: Financial intermediation","TTL_C70: Real estate activities","TTL_C71: Renting of machinery and equipment","TTL_C72: Computer and related activities","TTL_C73T74: R&D and other business activities","TTL_C75: Public administration and defence; compulsory social security","TTL_C80: Education","TTL_C85: Health and social work","TTL_C90T93: Other community, social and personal services","TTL_C95: Private households with employed persons","HH"]
[null,"TTL_C01T05: Agriculture, hunting, forestry and fishing",1.1040533907889527,1.2632027759583501E-2,0.41346844475795841,7.9916727095972723E-2,0.16751074968685514,4.7647863525935752E-2,1.1430920182076726E-2,5.2309886889082065E-2,4.7149556998793418E-2,3.1968941849925284E-2,2.3332736282067845E-2,2.724514502031572E-2,3.8319971428805541E-2,3.0907538127341417E-2,3.6096835217390641E-2,2.2783549096500978E-2,2.2603101042824651E-2,4.6682665434368643E-2,2.4994662343179156E-2,3.2555942169514983E-2,4.7692927199353481E-2,0.19933212787995236,2.9744686482725335E-2,3.2573102723178829E-2,4.265055332195352E-2,7.970547831244167E-3,4.7259390537415374E-2,4.8785504603673785E-2,4.7196562061268363E-2,8.7319879086641794E-2,8.6902207289862074E-2,7.248233890869335E-2,4.7597159128602969E-2,0.12816336946754783,0.12816336946754783]
[null,"TTL_C10T14: Mining and quarrying",1.6154180049663552E-2,1.1145746100164118,2.5493187241122154E-2,2.6621142918400377E-2,2.6674620074927741E-2,3.3405500898139873E-2,0.40992122719256802,3.9819597256087219E-2,3.0017490653850804E-2,0.17809518443153299,0.43804549012414673,5.1547990794657071E-2,4.6989213305791658E-2,4.751168545585633E-2,2.8692420469148872E-2,3.7477166615477273E-2,3.2769673707694374E-2,4.7589825633210597E-2,0.11424813518244706,9.5690255149270528E-2,2.3827922660959788E-2,2.3153398682880903E-2,5.6843772307660682E-2,1.9817561881682853E-2,1.7970156468702429E-2,4.9627612447735699E-3,1.395778952586799E-2,1.5063891981495279E-2,1.8819005162617308E-2,3.3650954193596254E-2,2.6123806190062271E-2,2.6403629358015258E-2,2.1137098144706594E-2,3.237507647319917E-2,3.237507647319917E-2]
[null,"TTL_C15T16: Food products, beverages and tobacco",0.15411458233497657,2.1819843040617803E-2,1.2411413835434741,0.10975031270221275,9.6961332438955508E-2,7.7197245462840139E-2,1.9967275022616849E-2,0.10426123962363955,7.9490836239620652E-2,5.5455628333923104E-2,3.9861288613301377E-2,4.6800145829229395E-2,6.6557859942400266E-2,5.3291168750761245E-2,6.2642675502289247E-2,3.9289980293579697E-2,3.6673722776339839E-2,5.8747416698796073E-2,4.3224920393018562E-2,4.5844483330190262E-2,8.2825814857847541E-2,0.34995439873258671,5.1774086042990462E-2,5.6473129332414218E-2,7.4508669433743263E-2,1.3696001871910163E-2,8.2330098595227136E-2,8.4856976830476036E-2,8.2728537773557098E-2,0.15235379085241468,0.15122348624903934,0.12756517104991127,8.2524908916736445E-2,0.22342885403590709,0.22342885403590709]
[null,"TTL_C17T19: Textiles, textile products, leather and footwear",2.0787795525294545E-2,6.4331436103987677E-3,1.9067479712805327E-2,1.2414464770369547,8.6722416178152253E-2,3.3642224414190021E-2,5.4005076990195841E-3,1.7022719981379997E-2,2.689717222409457E-2,1.4782142041468486E-2,1.3147728115959354E-2,1.3872864221888633E-2,1.8567247709647818E-2,1.6653250562536623E-2,1.7722061940759797E-2,1.5057277462952689E-2,1.6288128529847973E-2,8.1006903665660587E-2,1.1053227364637206E-2,1.3865681890981788E-2,2.4615843651099905E-2,2.3978088052154969E-2,1.4038922395568873E-2,1.9765738947005795E-2,1.9510471705012768E-2,3.5803462031827708E-3,2.1528833730927493E-2,2.2257745382610265E-2,2.0436948017845197E-2,4.3297006287751565E-2,3.9444137411527594E-2,3.1370427231899076E-2,3.1841046326651218E-2,5.7823232603340012E-2,5.7823232603340012E-2]
[null,"TTL_C20: Wood and products of wood and cork",2.8032701364813003E-3,1.0464475643362477E-3,1.917244703538718E-3,1.485167626893045E-3,1.0723224600259127,3.383384229975259E-3,5.91781360227498E-4,1.2958424637827795E-3,2.5919845891510017E-3,1.9434666846988031E-3,3.5332437206531475E-3,4.4987731656127815E-3,3.0279024686853109E-3,4.1190026447743963E-3,2.3370295797396703E-3,2.4514572384938421E-3,1.5070633452747386E-2,7.1031161310466925E-2,1.1188451747876868E-3,1.5664411905586983E-2,2.9712293681410139E-3,1.5635993186924406E-3,9.737121494798475E-4,1.1017452645405623E-3,8.9797120333755124E-4,4.7804813209616123E-4,1.045922216570903E-3,1.0868709130697999E-3,9.2677947109729277E-4,2.1966449331518164E-3,2.1639841922585124E-3,1.4137705922913435E-3,2.1684310631708355E-3,2.1659580610763687E-3,2.1659580610763687E-3]
[null,"TTL_C21T22: Pulp, paper, paper products, printing and publishing",1.5705900567516286E-2,4.7078572590641445E-3,3.7828139604181708E-2,3.0828491923687969E-2,3.2941027346040617E-2,1.2822411868701626,5.2673572616400892E-3,4.086443929476602E-2,3.9027471481946852E-2,2.6111437469962934E-2,1.3444642845583197E-2,1.9674387481541836E-2,2.3019556907385646E-2,4.0081250336669406E-2,2.4602756489953369E-2,1.7268701593093849E-2,1.6539642952511334E-2,3.6820541876857682E-2,1.0895174074295279E-2,1.2935674606787125E-2,4.2494512283460732E-2,2.3134892934251354E-2,1.5269063612667572E-2,5.1055013618369879E-2,2.74923521437139E-2,4.5501209656249311E-3,1.612175649123055E-2,1.8672955215532701E-2,3.4065599045645677E-2,3.3856657593197587E-2,3.0385437387855558E-2,3.2667874634697384E-2,3.5597012408073746E-2,3.231700866625168E-2,3.231700866625168E-2]
[null,"TTL_C23: Coke, refined petroleum products and nuclear fuel",2.3506800337580173E-2,1.190794270369654E-2,3.274232198243282E-2,3.7080311738393303E-2,3.327918870061667E-2,3.7715775463898919E-2,1.014069240648565,3.7848052130240381E-2,3.7467945771966875E-2,4.9044769240729605E-2,2.179025619637515E-2,1.6719456845561909E-2,2.6823203494440589E-2,3.2727206040633561E-2,1.961734948371726E-2,3.7217554284150516E-2,1.4230747210759573E-2,4.7637898052329243E-2,1.8563436681479809E-2,2.8556558236653609E-2,3.8060630324683917E-2,3.4047027929942068E-2,0.12493310664996256,2.7951159767370705E-2,2.8390909913235937E-2,5.5371139630487299E-3,2.0721510063649255E-2,2.123475142136742E-2,3.166981455088351E-2,4.646269494571717E-2,3.7527126724616826E-2,3.6985262718220974E-2,3.0230643299917925E-2,5.0052101272346779E-2,5.0052101272346779E-2]
[null,"TTL_C24: Chemicals and chemical products",6.7488694081405162E-2,9.143673461411251E-3,5.5523374819212372E-2,6.6640499293842789E-2,5.5492698287465093E-2,7.849515677722034E-2,1.7801951816144267E-2,1.2499259755225214,0.30809455878349706,4.0245938998857769E-2,1.8437877797599554E-2,3.2552326983242036E-2,5.175965808870938E-2,7.4247966613703614E-2,3.3548859009416468E-2,3.0852842787863859E-2,2.8110988255524799E-2,6.1571087340853543E-2,1.8843864416181987E-2,3.1155309313725368E-2,3.028150278640045E-2,3.464806101750776E-2,2.4696684855492666E-2,1.9232427414483826E-2,2.25261268369473E-2,4.3897641712816633E-3,2.2819456705204966E-2,2.3585248665317988E-2,2.5524047995636828E-2,4.4472453874136279E-2,4.0965039836487013E-2,0.14186291547192392,3.8105807960725241E-2,5.921594912150633E-2,5.921594912150633E-2]
[null,"TTL_C25: Rubber and plastics products",1.2854295961536675E-2,3.8297082910680111E-3,3.3612293148607406E-2,1.939533871496112E-2,2.7792795129228502E-2,3.3203364142630767E-2,3.6767692725647588E-3,3.4968205949927389E-2,1.0504309193800145,1.2483080936827455E-2,8.1636231568227718E-3,1.5576989311011306E-2,1.8928927770842808E-2,7.1362082598350002E-2,1.800177751500092E-2,1.6383563046982946E-2,1.6753378952005828E-2,2.7757101700941051E-2,8.3855510180776624E-3,2.4952916550144307E-2,1.8326934828122639E-2,1.4860565583258911E-2,3.4819120724651167E-2,7.8991721155503621E-3,7.1484161035537961E-3,1.8029539293308076E-3,6.937349041777216E-3,6.972151194057862E-3,1.040864586399839E-2,1.3802020763256829E-2,1.190625227494225E-2,1.3762272651751646E-2,1.8624481004307396E-2,1.5994299495278471E-2,1.5994299495278471E-2]
[null,"TTL_C26: Other non-metallic mineral products",4.1532411571106069E-3,1.770870855379353E-3,9.134615327151532E-3,3.4419283576257371E-3,3.7041247974681519E-3,3.2210683800412781E-3,1.1593344235317348E-3,8.6056498919788726E-3,6.1789292862894571E-3,1.1057213230099285,3.9772695233116113E-3,1.0409034473059036E-2,9.785722500976618E-3,1.7091952050502367E-2,1.157032288781084E-2,1.2813332396286707E-2,5.2720630041530282E-3,6.2617294411064818E-3,6.3182893653696585E-3,0.12945373141651947,4.7543043790995165E-3,6.6192988561537E-3,2.8151553311170593E-3,3.0808037432508094E-3,2.7652562093597949E-3,3.1723343859866317E-3,2.7219037087306761E-3,3.0304770417099456E-3,2.6642409999370164E-3,9.3582416703177438E-3,6.2904653645942847E-3,4.3359244520320321E-3,5.5796684962408413E-3,5.6926735230640128E-3,5.6926735230640128E-3]
[null,"TTL_C27: Basic metals",3.3221276056809778E-3,1.4670754438844841E-3,6.2087126470201006E-3,3.1011605523775789E-3,1.0733658448542628E-2,3.9962589935807506E-3,9.8104317408060585E-4,5.1336102319531427E-3,3.8284958219018468E-3,4.7323380996545077E-3,1.0672710134101617,7.2947793470450578E-2,6.2635080048831185E-2,6.2100761491562483E-2,2.6431100112820013E-2,2.690929164592059E-2,4.4538988296336103E-2,3.4457086070007518E-2,2.4382047159411005E-3,3.4556297495671288E-2,3.4922467748738886E-3,4.0680153609928063E-3,2.1376065839224562E-3,1.7579574004811009E-3,1.9236744411530956E-3,1.0284138378482491E-3,2.1619910341930588E-3,2.0021517504218824E-3,1.7575953349481346E-3,5.0055316805966499E-3,3.7401191223527656E-3,2.9489541927372499E-3,3.1531119207953186E-3,4.0641839414845282E-3,4.0641839414845282E-3]
[null,"TTL_C28: Fabricated metal products",2.613796449773114E-3,1.2278277431429876E-3,4.0802555549479874E-3,3.881668585628583E-3,1.1131833485165152E-2,4.4315315230572866E-3,1.2420055193066472E-3,7.5138417731305225E-3,8.001036642955657E-3,3.6023458232030108E-3,5.2884146477202628E-3,1.2642060059247524,0.14676752755729267,4.5811138436915637E-2,6.4322881391140382E-2,0.14354119991731915,0.16817530230734137,2.2597150873735372E-2,3.0426930227186494E-3,1.117020151580623E-2,5.1352760593584143E-3,2.9316907399502216E-3,4.9699403675038971E-3,2.3639615889937413E-3,1.9919659056173728E-3,7.528120577934862E-4,2.5651329705448978E-3,3.1584310174997739E-3,2.2919565275490816E-3,5.5625649979859281E-3,3.8546017690130017E-3,4.2026376173988304E-3,6.2162288859748307E-3,4.8223761057091087E-3,4.8223761057091087E-3]
[null,"TTL_C29: Machinery and equipment, nec",1.8913640085175001E-3,1.047728140709742E-3,2.9504737146140193E-3,3.8419943087372294E-3,3.004748316062374E-3,3.8568706991053614E-3,8.538181564411233E-4,3.2552866446475259E-3,3.9262877670743603E-3,4.8077946412540167E-3,2.2796540287860125E-3,1.0289705622620354E-2,1.0182349171097684,3.614101846177852E-3,4.3194746449756816E-3,1.2200957595892502E-2,2.0821949709895371E-2,4.9342168554344715E-3,1.0711992141032123E-3,4.3892478659750276E-3,4.7899917520003573E-3,1.9992025269416369E-3,3.7180987260276798E-3,3.1943447160706915E-3,1.3021062773780098E-3,3.1743751681649298E-4,1.3475640274747016E-3,1.4171663008338933E-3,1.4618404797541206E-3,6.493361842345031E-3,2.3973079443502898E-3,2.2623120872488564E-3,1.8456255196604642E-3,3.3964729222033803E-3,3.3964729222033803E-3]
[null,"TTL_C30T33X: Computer, Electronic and optical equipment",2.984972081581332E-4,2.4352552646444799E-4,5.8108398691860861E-4,1.1055502896626858E-3,5.6031406333600636E-3,1.6129431707029287E-3,4.8444584315125109E-4,9.2068459268287691E-4,1.8199218845741008E-3,1.257966246678263E-3,1.1452259608851119E-3,3.058833951280151E-3,3.219987529594846E-3,1.0183995300164672,4.4073909960302901E-3,3.079800153635198E-3,5.679519911191833E-3,2.4319641399481507E-3,6.9564776071156522E-4,6.5507131661016768E-4,5.8865687971839417E-4,3.8990986175406911E-4,6.667586446537485E-4,8.7330623176551706E-4,6.5525622268465186E-4,8.8537417500875285E-5,8.2425018286697727E-3,2.0521501708625316E-3,6.4320820931140885E-4,7.8817242575884416E-4,8.4340076169035717E-4,1.0734999057057789E-3,9.5301133209327532E-4,6.326606951564843E-4,6.326606951564843E-4]
[null,"TTL_C31: Electrical machinery and apparatus, nec",1.0681530913361182E-3,5.3373617409895892E-4,1.4968282493936548E-3,1.7636185283638726E-3,1.8547161037483079E-3,2.0996502404684739E-3,4.7831391177959379E-4,2.1942912336060621E-3,2.1928075339822132E-3,1.7538981337279552E-3,2.4032140595118641E-3,6.2596925017241447E-3,6.7061614434236708E-2,1.800730273676408E-2,1.3671662046101798,8.3112826732093983E-2,3.5997726561233359E-2,2.0300625321777901E-3,7.9018526175861411E-3,9.3791616711893771E-3,2.811394690150194E-3,1.5309451585501207E-3,3.3952674683948077E-3,1.8436495054587052E-3,1.1830293314469313E-3,4.7121124106295267E-4,1.1199228709241303E-3,2.9047355371326681E-3,1.3032657108620939E-3,2.7760553951671411E-3,1.9429188072162945E-3,2.1609935279191866E-3,1.644087939809402E-3,2.3577045069046385E-3,2.3577045069046385E-3]
[null,"TTL_C34: Motor vehicles, trailers and semi-trailers",2.5909582471901342E-3,1.0759209766022639E-3,3.4027258329620965E-3,3.9091423929524752E-3,3.5395151810699937E-3,3.2715334037184398E-3,1.1108694735345831E-3,3.0396868292909152E-3,3.3729550795780767E-3,2.7383379500581836E-3,2.095518485778465E-3,2.0640219599171897E-3,3.2336410856834076E-3,2.4500805889368306E-3,2.8326239941853792E-3,1.0885142614358669,2.9295882611939995E-3,2.9520105516401291E-3,1.7628358366162042E-3,2.1029398066163877E-3,9.6607908775464442E-3,3.3453273904282873E-3,9.1253331944494576E-3,2.4296498949089927E-3,2.6259759529985568E-3,4.99351496520793E-4,2.7712344391453247E-3,2.8313435989512749E-3,2.9025245720933289E-3,7.1907010624916003E-3,4.774637228425146E-3,4.3279458612485062E-3,3.1229189640182143E-3,7.2914216264071277E-3,7.2914216264071277E-3]
[null,"TTL_C35: Other transport equipment",2.0980043055917331E-4,1.2089887792824323E-4,2.7751118674273199E-4,3.17194230392575E-4,3.3172676391158841E-4,3.0119961320755243E-4,9.651663531487804E-5,2.8467031097501716E-4,3.0605929175379286E-4,2.7063664164366039E-4,1.8378447646045495E-4,1.7409135021502329E-4,2.3641159686487397E-4,2.3971953848913262E-4,2.1271306654898747E-4,1.5832813335489503E-4,1.0754572762014387,2.436921263967481E-4,1.7536046086799492E-4,1.952950582518259E-4,3.3900035542369286E-4,2.6151645523716166E-4,1.8700361399154601E-3,2.1292246093941532E-4,2.4748460167868774E-4,4.8539860467715185E-5,2.4341011171715685E-4,2.5359373409279397E-4,2.9097157237688672E-4,1.7199686592322702E-3,4.2093897637056197E-4,3.7214335501898238E-4,2.561999491809163E-4,6.3664136587441417E-4,6.3664136587441417E-4]
[null,"TTL_C36T37: Manufacturing nec; recycling",3.6296729583121007E-3,1.5590198891637555E-3,5.4813554894625098E-3,7.4317129115633969E-3,6.7984005269818648E-3,3.655214961258068E-2,1.2537366087794304E-3,5.5468300675737608E-3,6.9729541114976453E-3,7.1232385297077348E-3,3.0667606010066972E-2,5.4068701582324187E-3,9.5449583119885748E-3,1.3365279466281204E-2,4.8077740448466766E-3,1.0261906331364647E-2,4.3237138989065697E-3,1.0393489302711756,2.6861199234687679E-3,9.283757623033637E-3,5.4359244390568464E-3,4.7814573739830592E-3,3.1973399351791364E-3,4.965312734620345E-3,4.7746185807412845E-3,9.6575764201884025E-4,4.6427562419223576E-3,5.1394991784166856E-3,4.8963233817315511E-3,8.527101814590243E-3,1.4299556017228369E-2,7.2788184941886642E-3,1.8259833183324713E-2,1.1927541323983876E-2,1.1927541323983876E-2]
[null,"TTL_C40T41: Electricity, gas and water supply",3.5387312885713243E-2,1.5911451942159049E-2,6.1005383890288735E-2,7.5612979601447902E-2,7.012653853772044E-2,0.1023664515069122,1.3933878031213051E-2,7.2341029042474275E-2,9.4066171175904698E-2,0.10542306618677041,4.1715232770303382E-2,5.9047017798144467E-2,5.1048048166513538E-2,5.1747692868145873E-2,5.0972300550415323E-2,3.0097386834364626E-2,4.0127106795228046E-2,5.5789861160131432E-2,1.320412215156469,3.60801897480389E-2,6.4952204466895994E-2,6.4352634903938333E-2,5.1808691785624125E-2,7.7710058957751502E-2,5.309020490251451E-2,8.1675562028519031E-3,3.9766675748486552E-2,4.2406348251403318E-2,4.8099872594988095E-2,0.10327959595727007,7.6869674599442939E-2,8.7401852252290524E-2,5.6791542120210481E-2,9.4415011393372938E-2,9.4415011393372938E-2]
[null,"TTL_C45: Construction",9.8496936783451852E-3,9.3905813661487505E-3,9.3296847943201301E-3,1.0522070718592536E-2,9.5312724142163161E-3,1.0381994032817988E-2,4.716610887225854E-3,8.8724516593906479E-3,9.5550944076562058E-3,1.0250741402731222E-2,7.7643039319937454E-3,9.7583538617247237E-3,8.3093052938110808E-3,7.2983087312116068E-3,1.0533829002564304E-2,5.5900309850678218E-3,6.7968312570361065E-3,8.2167766342692277E-3,4.1898537794151827E-2,1.0176808538099529,1.0314058233441762E-2,1.2053138198768198E-2,1.2586224966532295E-2,1.4419766000155418E-2,1.2698444566202135E-2,2.3385837354714181E-2,1.0720673068783378E-2,1.347233859054776E-2,1.0731148445962358E-2,4.9934403643051323E-2,3.1493093071746893E-2,1.4330106358611748E-2,3.0588254572702447E-2,1.8924994524557957E-2,1.8924994524557957E-2]
[null,"TTL_C50T52: Wholesale and retail trade; repairs",0.10374223079645356,3.4549165327700498E-2,0.18678846995044085,0.20371474995758723,0.1640636675890712,0.13463619629787582,6.3224463032438047E-2,0.13724998492758175,0.15033353181317349,9.8927957847574868E-2,0.10157213176016984,9.9055056677664469E-2,0.1117161606722548,0.10527549986848334,0.1174511508536604,0.11672064636659993,9.0445133731451258E-2,0.13572152041288993,5.4192679832941099E-2,9.2697972916817806E-2,1.0990253175874884,0.16946800073132628,0.1335194978263648,6.4773278531415332E-2,6.6689209335135544E-2,1.3686044778382259E-2,7.4703006941562428E-2,7.2133080320522666E-2,7.7861974664054728E-2,0.13321367595584785,0.12567016237784054,0.1357848023730148,9.1502570374249276E-2,0.17765770167318343,0.17765770167318343]
[null,"TTL_C55: Hotels and restaurants",3.3405383931560124E-2,1.3466448796232138E-2,4.0534019693704341E-2,5.4774348173587804E-2,4.8582058011536179E-2,4.9838054491344728E-2,1.3287888070785757E-2,4.7429572002299601E-2,4.8611490674067198E-2,3.769703407195453E-2,2.6254189600900892E-2,2.9176601714994865E-2,4.1777904373663112E-2,3.4651619904226674E-2,3.7990827775867701E-2,2.5697688926129204E-2,2.3454883618494494E-2,3.8122788661834578E-2,2.9333010175008205E-2,2.8648332235832245E-2,5.9518320490604945E-2,1.0469662218343754,3.7664047963502381E-2,3.7173154833538655E-2,4.4980177145680443E-2,8.29330603494941E-3,4.5769205967810873E-2,4.8826026848165387E-2,6.0646514720112302E-2,8.7223668084812064E-2,0.1123412025764936,8.7212208270868799E-2,6.2321909844588977E-2,0.12048977031301882,0.12048977031301882]
[null,"TTL_C60T63: Transport and storage",6.3829345988342057E-2,5.1462446980774734E-2,0.10422591060255275,0.10789441780959368,0.12624788814550095,0.11244555616280276,3.8867576860179297E-2,0.11308143791199697,0.11616996378754482,0.10948583999501277,7.1056790433600012E-2,5.3389097844024479E-2,7.2062658142957786E-2,9.3459781522672605E-2,5.7260796205186267E-2,5.5266171084492811E-2,4.7017856426839887E-2,9.6252861731130401E-2,6.139270052888194E-2,7.1938270255624048E-2,0.1216179091249853,7.737562875707453E-2,1.1548589615406371,6.9687396203330934E-2,6.8054899716753423E-2,1.4526342249779726E-2,5.1420514328021E-2,5.5697203978391986E-2,9.1437674478939274E-2,0.11416819062941858,9.1887024214668656E-2,9.1454309348214233E-2,7.1290501443014617E-2,0.12534394087167425,0.12534394087167425]
[null,"TTL_C64: Post and telecommunications",2.3922218095163955E-2,8.5476475703400653E-3,2.9746381876565923E-2,3.9352505797294018E-2,3.2930917447408871E-2,3.514272583879012E-2,8.3364176228886405E-3,2.9785991353699283E-2,3.2955427323128422E-2,2.4850531871861894E-2,1.8073737135648058E-2,2.7778905046304456E-2,2.9813027977008265E-2,2.613724355049462E-2,3.6836553933538352E-2,1.9910142252312916E-2,2.3340004997609163E-2,2.7359369720944011E-2,2.3044874035550122E-2,2.0210491047137482E-2,5.3395932165794274E-2,4.1772589292535682E-2,3.367474574932474E-2,1.1104724656230298,4.6787608456176653E-2,7.734987197809527E-3,3.2481114009673101E-2,3.7637527364276932E-2,5.4294903086322309E-2,5.9508128976353852E-2,6.2030769926396806E-2,7.002833786445542E-2,6.5244583185378763E-2,7.587212116555421E-2,7.587212116555421E-2]
[null,"TTL_C65T67: Financial intermediation",5.1028489057295325E-2,2.1332808290063995E-2,6.1734494011638871E-2,8.1173000628351116E-2,5.8371670421850423E-2,7.6792323638848289E-2,1.9146647155772772E-2,6.4403465429217724E-2,6.9923160039732118E-2,5.5214368774787782E-2,3.8548416087494715E-2,4.5687289973176816E-2,5.3955347698315788E-2,5.3241127163189565E-2,5.7872131859695683E-2,3.9916766125766182E-2,4.0558667721257581E-2,5.5176979373618748E-2,7.0406154609700303E-2,5.2116173020762345E-2,6.956639681211696E-2,5.8160518339954968E-2,8.4365114257578172E-2,0.1111090942664397,1.1680225198077365,6.6884013476513557E-2,9.0021331963367035E-2,6.1529902082790779E-2,8.1148019151976683E-2,0.19132997159126558,9.1877361901012644E-2,8.6814936293174758E-2,7.2914041222722797E-2,0.11296169400730594,0.11296169400730594]
[null,"TTL_C70: Real estate activities",4.4106637774266579E-2,1.6433000506150451E-2,5.6237804346310552E-2,8.7874105878467154E-2,6.196554234748991E-2,7.0796259309170328E-2,1.6255312862664288E-2,5.0920801863541365E-2,6.035833622055238E-2,4.435458677817096E-2,3.6124018387034197E-2,5.4352384623725242E-2,5.5791456620990706E-2,5.067506197288444E-2,6.8562620287099918E-2,3.7603138586982061E-2,4.5493624074276262E-2,6.422026711882127E-2,3.6396146564604936E-2,3.8776240487870636E-2,0.11060330940725409,9.3992100252224986E-2,5.0502894853116452E-2,9.0728650535614713E-2,8.4021415049667231E-2,1.016410731119938,6.6144999763423501E-2,6.894908208998525E-2,8.1991302024332413E-2,0.10568027304458946,0.1334974264647307,9.1579740668748522E-2,7.0851191860845458E-2,0.1527952015845411,0.1527952015845411]
[null,"TTL_C71: Renting of machinery and equipment",2.6472313760963367E-3,6.2968923576888674E-4,2.93715720785629E-3,2.213927924539148E-3,6.9541922027239605E-3,6.5444002109575558E-3,6.1894987840974158E-4,3.4979070222967497E-3,4.6498022057663239E-3,2.976417743931412E-3,1.8614434316768169E-3,7.675564634456229E-3,6.8103565200667978E-3,8.2140041702270638E-3,6.8375714202031203E-3,8.5568259369826326E-3,3.8834647981090516E-3,3.7716736697912018E-3,2.7208067647439054E-3,3.1810156740667058E-3,4.1206132557765323E-3,2.2836176820457011E-3,6.1407453504080571E-3,2.7652041150716465E-3,3.0546556871373655E-3,4.7005349043906697E-4,1.1959681304747694,2.0185340183009635E-2,2.1308553292804832E-3,2.8973967226633606E-3,2.5089207365520628E-3,4.1687388520398076E-3,5.3287374255765775E-3,2.7140993665841161E-3,2.7140993665841161E-3]
[null,"TTL_C72: Computer and related activities",4.4766317317638171E-3,1.8821774254474872E-3,6.7226852099733373E-3,8.5531725301839501E-3,8.9059319195522874E-3,1.7616246031922189E-2,1.9768396801953031E-3,1.1890569709263219E-2,1.1097598561465341E-2,6.9354917166170897E-3,6.1417322003055963E-3,3.0634634707702408E-2,2.9994570486448616E-2,3.95953853553761E-2,2.6578923934980615E-2,2.9168175088613881E-2,2.1686148515485157E-2,9.3184178503321318E-3,6.0417986260039407E-3,5.2354439415297129E-3,1.1820792604105809E-2,6.1357661807478004E-3,1.637306287368695E-2,2.5344644756075892E-2,2.1210662906661328E-2,3.10150361042187E-3,1.4643743211828646E-2,1.1947371607896802,1.8279648635717106E-2,1.5344613334667814E-2,1.178378443438805E-2,1.9553412771652377E-2,1.694544797804283E-2,1.0669185082892644E-2,1.0669185082892644E-2]
[null,"TTL_C73T74: R&D and other business activities",4.745454180944228E-2,1.6646881299852225E-2,8.8508498321305543E-2,0.1851629000109915,9.6790252259470494E-2,0.14848803712446634,1.7413390179642073E-2,0.11526007105751072,0.12036304370682149,8.4024922046636211E-2,5.7705954930601516E-2,6.2517445644110228E-2,7.8280704450845687E-2,0.10637329943893462,0.10918248156762657,5.4121959582212331E-2,9.8487162277066068E-2,9.3286079189005944E-2,7.6858693258314847E-2,7.737464021516495E-2,0.11604558855203803,7.6358256180766526E-2,7.3907219822312742E-2,0.11309035681385048,0.13120311242246707,3.3862677189338018E-2,7.783851134210934E-2,6.28801827832184E-2,1.1027633532670293,0.13857914915371447,0.1067220743213313,0.14048984274815007,0.15051964601753443,9.2605908887177069E-2,9.2605908887177069E-2]
[null,"TTL_C75: Public administration and defence; compulsory social security",4.6192313509749748E-2,1.7283252567915366E-2,4.8514482015757102E-2,6.259438196752623E-2,5.6947114285862716E-2,5.3094506936856009E-2,1.5207456366816058E-2,4.5852939540722622E-2,5.2735949843852617E-2,4.232695457702048E-2,3.0842924364701495E-2,3.9578021723558073E-2,5.2239185346988133E-2,3.9822867997452625E-2,5.3511191963750773E-2,3.0644197833931405E-2,3.0655372094681176E-2,3.9621823816515765E-2,3.3508852565853446E-2,3.5059665710538167E-2,6.2893026306571745E-2,5.8969283574987423E-2,3.9139363068987826E-2,4.3770850991996658E-2,5.9099343909741198E-2,1.0842093462339934E-2,6.8747336147613275E-2,7.012529375522164E-2,6.2215538363869387E-2,1.1109048592525252,0.11568002849057202,9.5780633657369302E-2,6.0651300513918004E-2,0.18361707111090783,0.18361707111090783]
[null,"TTL_C80: Education",2.7008697132667112E-2,1.0146103883966678E-2,2.8496636646607187E-2,3.6752641984380836E-2,3.3427856966946209E-2,3.1463280176162081E-2,8.9306625633177629E-3,2.7093643981343656E-2,3.1076842990430318E-2,2.49137439721413E-2,1.8161019810188708E-2,2.3386809942617028E-2,3.1069254136355327E-2,2.4163843372652774E-2,3.1161114403123333E-2,1.8498372399446673E-2,1.8506161442177586E-2,2.3369613835201208E-2,2.0873606591038485E-2,2.0569429963235412E-2,3.7260703276903583E-2,3.4534507875888888E-2,2.3437187527151061E-2,2.671767365490085E-2,3.5430825680957775E-2,6.4154119720943497E-3,4.0036222655137788E-2,6.8969338494370189E-2,3.6873802295551872E-2,6.9319108041820801E-2,1.0715047798634902,6.0884374107288204E-2,3.7481723688371056E-2,0.10695823212531169,0.10695823212531169]
[null,"TTL_C85: Health and social work",2.5390777027086427E-2,9.4964566349054411E-3,2.6698748420086255E-2,3.4434488027790193E-2,3.1294279723959248E-2,2.9228785357722033E-2,8.3584360420767036E-3,2.526015618077565E-2,2.9007017194476951E-2,2.3270768568857601E-2,1.6951105919736625E-2,2.0007322482332206E-2,2.8406690134687766E-2,2.1797296285438767E-2,2.7254926755930612E-2,1.6540292148444213E-2,1.5307752699733248E-2,2.1779958524451182E-2,1.8401189658431572E-2,1.9244405999579391E-2,3.4591248089159539E-2,3.2437404156888235E-2,2.1517789455333138E-2,2.4177760818778093E-2,3.2520703758815168E-2,5.961787906336502E-3,3.6888749949141882E-2,3.7805220894200936E-2,3.4215961946310131E-2,6.1007369242482783E-2,6.3583472347179801E-2,1.5218660815696519,3.6825973256931051E-2,0.10087938832207954,0.10087938832207954]
[null,"TTL_C90T93: Other community, social and personal services",2.4287667467912059E-2,8.0402843912350287E-3,3.6404427580768006E-2,4.1898825361247442E-2,3.2631778033303457E-2,4.5630592707946754E-2,8.008444341016446E-3,4.5626902938123222E-2,3.7750256955499654E-2,2.5179000554271424E-2,1.8334919844181667E-2,2.4856053686354958E-2,2.9777435924196079E-2,2.6998120274155511E-2,2.9559891598893093E-2,2.7343837594521476E-2,1.8517107235171078E-2,3.1576214504278007E-2,1.6188833719267142E-2,1.8426792776138588E-2,4.200436389294071E-2,3.8131035747539246E-2,2.7497171794185447E-2,6.3358053586070467E-2,2.9020155709599416E-2,6.1359155137198198E-3,3.0829677389890568E-2,3.9971606254717393E-2,3.9474124173051801E-2,5.3633483860932057E-2,5.8021341068241541E-2,5.132406629901385E-2,1.1211344794757854,7.559303485130224E-2,7.559303485130224E-2]
[null,"TTL_C95: Private households with employed persons",3.3496538548418347E-3,1.2532403098263552E-3,3.517535997115827E-3,4.5388537257019792E-3,4.1273429427176123E-3,3.8483518328322501E-3,1.1026581740574293E-3,3.3232054997209917E-3,3.8223927771519417E-3,3.0686763597057446E-3,2.2353164377582743E-3,2.6369138331935062E-3,3.7458912826286834E-3,2.8727759608394923E-3,3.582840116711586E-3,2.1764426212483169E-3,2.0174434452377181E-3,2.8686556222170131E-3,2.4279045490169233E-3,2.53864208268713E-3,4.5596145819845968E-3,4.2762932610161232E-3,2.8355109521467506E-3,3.1721467261272454E-3,4.2846596501109795E-3,7.8599389391920485E-4,4.8683052366842302E-3,4.9858615513255888E-3,4.5109682013609398E-3,8.0421678680305635E-3,8.3895964427811425E-3,6.9450977479908055E-3,4.3965092126301763E-3,1.0133178488944556,1.3317848894455607E-2]
[null,"L",0.36523148454885573,0.13664779666493646,0.38353661299170722,0.49489659416361226,0.45002727312615864,0.41960731283919483,0.1202289846393521,0.36234767254222172,0.41677685188577396,0.33459493757399861,0.2437290467547322,0.28751745573130372,0.40843546629020022,0.31323482199124603,0.39065708620497341,0.23730970543267071,0.21997313645780334,0.31278555843831002,0.26472800510375177,0.27680233742892218,0.49716026637847271,0.46626815897099122,0.30917160977995961,0.34587689003016464,0.46718039314259396,8.5701308004555596E-2,0.53081853405868018,0.54363635619050854,0.49185607956304256,0.87688251882688972,0.91476459847742675,0.75726283095462388,0.47937597618947431,1.4521195124948316,1.4521195124948316]
[]
[]
[null,"Average Salaries, $2014 - Based on DANE C2.4.4 and C2.4.5 Mercado Laborial"]
[null,null,"TTL_C01T05: Agriculture, hunting, forestry and fishing","TTL_C10T14: Mining and quarrying","TTL_C15T16: Food products, beverages and tobacco","TTL_C17T19: Textiles, textile products, leather and footwear","TTL_C20: Wood and products of wood and cork","TTL_C21T22: Pulp, paper, paper products, printing and publishing","TTL_C23: Coke, refined petroleum products and nuclear fuel","TTL_C24: Chemicals and chemical products","TTL_C25: Rubber and plastics products","TTL_C26: Other non-metallic mineral products","TTL_C27: Basic metals","TTL_C28: Fabricated metal products","TTL_C29: Machinery and equipment, nec","TTL_C30T33X: Computer, Electronic and optical equipment","TTL_C31: Electrical machinery and apparatus, nec","TTL_C34: Motor vehicles, trailers and semi-trailers","TTL_C35: Other transport equipment","TTL_C36T37: Manufacturing nec; recycling","TTL_C40T41: Electricity, gas and water supply","TTL_C45: Construction","TTL_C50T52: Wholesale and retail trade; repairs","TTL_C55: Hotels and restaurants","TTL_C60T63: Transport and storage","TTL_C64: Post and telecommunications","TTL_C65T67: Financial intermediation","TTL_C70: Real estate activities","TTL_C71: Renting of machinery and equipment","TTL_C72: Computer and related activities","TTL_C73T74: R&D and other business activities","TTL_C75: Public administration and defence; compulsory social security","TTL_C80: Education","TTL_C85: Health and social work","TTL_C90T93: Other community, social and personal services","TTL_C95: Private households with employed persons"]
[null,"Assigned labor category","services","other","mfg","mfg","mfg","mfg","mfg","mfg","mfg","mfg","mfg","mfg","mfg","mfg","mfg","mfg","mfg","mfg","other","construction","sales","services","transport-info","transport-info","finance","real estate","transport-info","other","other","other","other","other","services","services"]
[null,"Avg Annual Salaries $2014",4894.76,10487.331818181818,4253.8081818181818,4253.8081818181818,4253.8081818181818,4253.8081818181818,4253.8081818181818,4253.8081818181818,4253.8081818181818,4253.8081818181818,4253.8081818181818,4253.8081818181818,4253.8081818181818,4253.8081818181818,4253.8081818181818,4253.8081818181818,4253.8081818181818,4253.8081818181818,10487.331818181818,3644.949090909091,3311.1154545454547,4894.76,4484.8818181818178,4484.8818181818178,7138.8309090909088,4774.9909090909086,4484.8818181818178,10487.331818181818,10487.331818181818,10487.331818181818,10487.331818181818,10487.331818181818,4894.76,4894.76]
[]
[]
[]
[]
[]
[]
[]
[]
[]
[]
[]
[]
[]
[]
[]
[]
[]
[]
[]
[]
[]
[]
[]
[]
[]
[]
[]
[]
[]
[]
[]
[]
[]
[]
[]
[]
[]
[]
[]
[]
[]
[]
[]
[]
[]
[]
[]
[]
[]
[]
[]
[]
[]
[]
[]
[]
[]
[]
[]
[]
[]
[]
[]
[]
[]
[]
[]
[]
[]
[]
[]
[]
[]
[]
[]
[]
[]
[]
[]
[]
[]
[]
[]
[]
[]
[]
[]
[]
[]
[]
[null,"PV"]
[null,"Construction Impacts","Output","Output","Value Added","Value Added","Earnings","Earnings","Jobs","Jobs",null,null,"Direct",null,null,null,null,"Indirect",null,null,null,null,"Induced"]
[null,null,"Type 1","Type 2","Type 1","Type 2","Type 1","Type 2","Type 1","Type 2",null,null,"Jobs","Earnings","Output","Value Added",null,"Jobs","Earnings","Output","Value Added",null,"Jobs","Earnings","Output","Value Added"]

{"sheet":"Bangladesh-IO-Data","index":21,"n_rows":0,"n_cols":0,"rows_kept":0,"cut":false,"hidden":true,"merged":[]}

{"sheet":"Not-Technology-Specific","index":22,"n_rows":0,"n_cols":0,"rows_kept":0,"cut":false,"hidden":true,"merged":[]}